{"text_format":"1","workbook":"xlsx","n_sheets":19,"sheets":["Introduction","User Guide","Options","Results","Evidence","SHEETS TO BE HIDDEN ->","Calculations","Inequalities","Health outcome totals 2016","Lists","Demographic data","Prevalence Rates","Population 2016","Population at Risk","Pop2016fraction","Pop2016fractionQ1","Pop2016fractionQ1&2","PARfraction","Targeting"],"not_rendered":{"charts":0,"images":4,"macros":1,"external_links":0,"defined_names":2,"comments":0,"pivot_tables":0},"unopened":[],"bounds":{"document_bytes":16777216,"sheet_cells":100000,"rows_first":2000,"rows_last":500,"rows_between":2000,"halvings":0,"cell_chars":16384,"cell_head_chars":4096},"cells_cut":0,"cells_raw":0,"read":"whole","date_system":"1900"}

{"sheet":"Introduction","index":0,"n_rows":51,"n_cols":10,"rows_kept":51,"cut":false,"hidden":false,"merged":[]}
[]
[null,"Informing Interventions to reduce health Inequalities ('Triple I'):"]
[null,"Alcohol Brief Interventions (ABIs)"]
[]
[]
[]
[null,"Informing Interventions to reduce health Inequalities ('Triple I') is a collaboration between NHS Health Scotland and the Scottish Public Health Observatory (ScotPHO)."]
[null,"Triple I provides national and local decision makers with practical tools and interpreted results about investing in interventions to reduce health inequalities in Scotland. "]
[null,"It does this by modelling the potential impact of different interventions and policies on overall population health and health inequalities."]
[null,"This tool is part of a set of 9 spreadsheets and associated documentation, produced as an update and extension of our 2014 Triple I work.  "]
[null,"Data and evidence have been updated where applicable, new interventions have been included, and presentation of the results has been improved.  "]
[null,"The tool can be used to produce detailed results for different geographies (Scotland, Health Boards, Local Authorities, City Regions, or Integrated Joint Boards)."]
[null,"Results are provided for three health outcomes: premature mortality, years of life lost, and hospital stays.  "]
[]
[null,"The interventions:"]
[null,"The interventions were chosen based on the highest quality and most generalisable evidence linking them to changes in all-cause mortality and hospital admissions."]
[null,"The topics addressed by the interventions span the determinants of health (including ‘upstream’, ‘downstream’, individual-level and population-wide)."]
[null,"There are 9 Triple I spreadsheet tools (corresponding to the topic areas below)."]
[]
[null,null,"Individual-level interventions: ",null,null,null,null,"Population-wide interventions:"]
[null,null,"(N.B. modelled as being implemented in year 1 only)",null,null,null,null,"(N.B. permanent: modelled as remaining "]
[null,null,"Topic","Intervention(s) ",null,null,null,"in place after implementation in year 1)"]
[null,null,"Mental Health","Interventions for depression",null,null,null,"Topic",null,"Intervention(s) "]
[null,null,"Obesity","Weight management service",null,null,null,"Physical Environment",null,"20 mph speed limits "]
[null,null,"Physical inactivity","Physical activity interventions",null,null,null,"Smoking",null,"Tobacco taxation"]
[null,null,"Smoking","Smoking cessation",null,null,null,"Income",null,"Income-based policies"]
[null,null,"Alcohol consumption","Alcohol Brief Interventions (ABIs)"]
[null,null,"Unemployment","Job provision"]
[]
[null,"Pages in this spreadsheet tool:"]
[null,null,"Introduction",null,">>","Information about the Triple I project"]
[null,null,"User guide",null,">>","How to use this spreadsheet tool"]
[null,null,"Options",null,">>","Where users can change the model options, and see high-level results"]
[null,null,"Results",null,">>","Full results for the chosen model options"]
[null,null,"Evidence",null,">>","Summary of the evidence underpinning the model, and definitions of the policies/interventions"]
[]
[null,"Further information is available on the Triple I website:",null,null,null,null,"Triple I website"]
[null,null,"Interactive results browser",null,">>","An online interactive results browser for comparing different interventions (April 2019)"]
[null,null,"National Overview Report",null,">>","A summary report of the national-level findings (April 2019)"]
[null,null,"Technical Report",null,">>","Details of Triple I's methods and data sources (April 2019)"]
[null,null,"Frequently Asked Questions",null,">>","Answers to frequently-asked questions about Triple I (April 2019)"]
[null,null,"Income-based policies",null,">>","Report and Supplementary Information about the income-based policies work (October 2018)"]
[null,null,"nhs.triple.i@nhs.net",null,">>","Email us for more information."]
[]
[null,"Abbreviations used"]
[null,"IJB","Integrated Joint Board"]
[null,"LA","Local Authority"]
[null,"RII","Relative Index of Inequality"]
[null,"SII","Slope Index of Inequality"]
[null,"SIMD","Scottish Index of Multiple Deprivation"]
[null,"Q1 - Q5","Quintiles of the SIMD: Q1 contains the 20% most deprived areas, and Q5 contains the 20% least deprived areas."]

{"sheet":"User Guide","index":1,"n_rows":72,"n_cols":10,"rows_kept":72,"cut":false,"hidden":false,"merged":[]}
[]
[null,"User Guide"]
[]
[null,"Please note: Macros need to be enabled for the tools to work properly."]
[null,"How to do this in a recent version of Excel: File > Options > Trust Center > Trust Center Settings > Macro Settings > \"Enable all macros\""]
[null,"How to do this in an older version of Excel: Tools > Options > Security > Macro Security > \"Medium\""]
[]
[null,"Changing the intervention details:"]
[null,"You can interact with the Triple I model from the Options tab."]
[null,"Any changes made to the shaded cells (blue) on this tab will cause Excel to recalculate the model and present new results.   "]
[null,"Below are the options available (N.B. not every spreadsheet will have all of these options):"]
[]
[null,"Intervention:"]
[null,"Choose the intervention of interest (only relevant for tools covering more than one intervention: Mental health, Physical activity, and Income-based interventions)"]
[]
[null,"Area:"]
[null,"Choose the area to run the model for.  The available geographies are listed below. "]
[null,null,"1. Health Boards:",null,null,"The 14 territorial NHS health boards responsible for delivery of frontline healthcare services in Scotland (2014 boundaries). "]
[null,null,"2. Local Authorities:",null,null,"The 32 elected councils that provide a range of services to local people, including education and care.  "]
[null,null,null,null,null,"The Gaelic name of Eilean Siar is used for the local authority covering the Western Isles.  "]
[null,null,"3. Integrated Joint Boards:",null,null,"31 integration authorities were created by The Public Bodies (Joint Working) Act 2014, in order to integrate the health and "]
[null,null,null,null,null,"social care functions of health boards and local authorities.  These Integrated Joint Boards (IJBs) or Partnerships "]
[null,null,null,null,null,"correspond to local authority areas, with the exception of Clackmannanshire and Stirling IJB which combines two local "]
[null,null,null,null,null,"authorities.  The Gaelic name of Eilean Siar is used for the IJB covering the Western Isles.  "]
[null,null,"4. City Region Deals: ",null,null,"City Region Deals are agreements between the Scottish Government, the UK Government and local government."]
[null,null,null,null,null,"They have been designed to bring about long-term strategic approaches to improving regional economies.  "]
[null,null,null,null,null,"The following 6 city regions are included:"]
[]
[null,null,null,null,null,"City Region:",null,null,null,"Local Authorities (LAs) included: "]
[null,null,null,null,null,"Aberdeen City Region Deal",null,null,null,"Aberdeen and Aberdeenshire"]
[null,null,null,null,null,"Edinburgh & Southeast Scotland City Region Deal",null,null,null,"Edinburgh, Fife, East Lothian, Midlothian, West Lothian, Borders "]
[null,null,null,null,null,"Glasgow City Region Deal",null,null,null,"East Dunbartonshire, East Renfrewshire, Glasgow City, Inverclyde, "]
[null,null,null,null,null,null,null,null,null,"North Lanarkshire, Renfrewshire, South Lanarkshire, West Dunbartonshire"]
[null,null,null,null,null,"Inverness & Highland City Region Deal",null,null,null,"Highland "]
[null,null,null,null,null,"Stirling and Clackmannanshire City Region Deal",null,null,null,"Stirling and Clackmannanshire"]
[null,null,null,null,null,"Tay Cities Region Deal ",null,null,null,"Dundee, Perth & Kinross, Angus, Fife"]
[]
[null,"Targeting strategy:"]
[null,"The strategy for delivering the individual-level* interventions can be altered by the user.  "]
[null,"*Interventions delivered to individuals: mental health, weight management, physical activity, smoking cessation, alcohol brief interventions, and job provision. "]
[null,"Four options are available:"]
[null,"·       Even distribution: treat the same proportion of the eligible population in each subgroup (i.e., age group, sex and SIMD 2016 quintile)."]
[null,"·       Proportionate to need: the proportion of each subgroup treated is proportionate to the subgroup's prevalence of the exposure (e.g., smoking or depression)."]
[null,"·       Most deprived 20% only**: treat only those in SIMD quintile 1 (even distribution within this quintile).    "]
[null,"·       Most deprived 40% only: treat only those in SIMD quintiles 1 and 2 (even distribution within these quintiles).  "]
[null,"**The Orkney Islands, Shetland Islands and the Western Isles do not have population in SIMD 2016 quintile 1, so targeting to quintile 1 will produce an error message."]
[]
[null,"Number to treat:"]
[null,"For individual-level interventions you can choose the number of people to be treated."]
[null,"·       For information the maximum number of people who are eligible to be treated will be calculated in the preceding cell."]
[null,"·       If a higher number is entered an error message will prevent the calculation from occurring."]
[null,"·       Be aware that the model will run and produce results if changes to another cell mean that the number of people then exceeds the new maximum number.  "]
[]
[null,"Number of years:"]
[null,"The interventions are delivered in year 1.  "]
[null,"Their effects can be modelled from year 2 (the first year of follow-up) to year 20."]
[null,"N.B. Individual-level interventions are delivered for a single year, while the population-level interventions are modelled as remaining in place after year 1. "]
[]
[null,"Viewing the results:"]
[null,"Options tab",null,"A summary of the results is shown on the Options tab."]
[null,"Results tab",null,"More detailed results are shown on the Results tab."]
[null,"Technical Report",null,"Further information about how the results are calculated, and how to interpret them, can be found in the Triple I Technical Report.  "]
[]
[null,"For advanced users: How to make more advanced changes to the model"]
[null,"The inner workings of the Triple I tools are described in the Technical Report.  We recommend you consult the report before making any advanced changes."]
[null,"The model data and calculations can be found in a number of 'hidden' tabs."]
[null,"These are hidden to simplify the spreadsheet for users.  "]
[null,"To see the hidden tabs, right-click on any tab, select 'Unhide', then select the tab you want to unhide. "]
[null,"The hidden tabs include population data, prevalence data, targeting calculations, and result calculations."]
[null,"VBA (Visual Basic for Applications) code has been written to create bespoke functions for the calculations.   "]
[null,"The code can be found from the Developer tab > Visual Basic."]
[null,"If the Developer tab is not shown in your version of Excel go to File > Options > Customize Ribbon and switch on the Developer tab (recent Excel versions only)."]

{"sheet":"Options","index":2,"n_rows":30,"n_cols":8,"rows_kept":30,"cut":false,"hidden":false,"merged":[]}
[]
[null,"Options for changing the model:",null,null,"Results summary:"]
[]
[null,"Change the shaded cells (blue) to recalculate.",null,null,"Check the Results tab for a detailed breakdown of the results"]
[null,"N.B. Results may take a few seconds to change.",null,null,"Results shown as cumulative difference from baseline over the follow-up period (% difference in brackets).  "]
[]
[null,"Intervention: (defined on Evidence tab)",null,null,"POLICY IMPACT ON HEALTH*","Whole population","SIMD Q1 & Q2","SIMD Q1"]
[null,"Alcohol Brief Intervention",null,null,"Hospital stays prevented",{"$f":"CONCATENATE(FIXED(Results!E16,0),\" (\",FIXED(Results!F16,2),\"%)\")","v":"4,652 (0.41%)"},{"$f":"CONCATENATE(FIXED(Results!E17,0),\" (\",FIXED(Results!F17,2),\"%)\")","v":"2,210 (0.41%)"},{"$f":"IF(OR(Calculations!$E$2=\"Orkney Health Board\",Calculations!$E$2=\"Orkney Islands Local Authority\",Calculations!$E$2=\"Shetland Health Board\",Calculations!$E$2=\"Western Isles Health Board\",Calculations!$E$2=\"Shetland Islands Local Authority\",Calculations!$E$2=\"Eilean Siar Local Authority\"),\"N/A\", CONCATENATE(FIXED(Results!E18,0),\" (\",FIXED(Results!F18,2),\"%)\"))","v":"1,177 (0.41%)"}]
[null,null,null,null,"Premature deaths prevented",{"$f":"CONCATENATE(FIXED(Results!E20,0),\" (\",FIXED(Results!F20,2),\"%)\")","v":"94 (0.44%)"},{"$f":"CONCATENATE(FIXED(Results!E21,0),\" (\",FIXED(Results!F21,2),\"%)\")","v":"50 (0.44%)"},{"$f":"IF(OR(Calculations!$E$2=\"Orkney Health Board\",Calculations!$E$2=\"Orkney Islands Local Authority\",Calculations!$E$2=\"Shetland Health Board\",Calculations!$E$2=\"Western Isles Health Board\",Calculations!$E$2=\"Shetland Islands Local Authority\",Calculations!$E$2=\"Eilean Siar Local Authority\"),\"N/A\", CONCATENATE(FIXED(Results!E22,0),\" (\",FIXED(Results!F22,2),\"%)\"))","v":"28 (0.44%)"}]
[null,"Choose the area to run the model for:",null,null,"Years of life saved",{"$f":"CONCATENATE(FIXED(Results!E24,0),\" (\",FIXED(Results!F24,2),\"%)\")","v":"2,608 (0.44%)"},{"$f":"CONCATENATE(FIXED(Results!E25,0),\" (\",FIXED(Results!F25,2),\"%)\")","v":"1,399 (0.44%)"},{"$f":"IF(OR(Calculations!$E$2=\"Orkney Health Board\",Calculations!$E$2=\"Orkney Islands Local Authority\",Calculations!$E$2=\"Shetland Health Board\",Calculations!$E$2=\"Western Isles Health Board\",Calculations!$E$2=\"Shetland Islands Local Authority\",Calculations!$E$2=\"Eilean Siar Local Authority\"),\"N/A\", CONCATENATE(FIXED(Results!E26,0),\" (\",FIXED(Results!F26,2),\"%)\"))","v":"788 (0.44%)"}]
[null,"Scotland",null,null,"*N.B. a positive figure indicates an improvement in health outcomes."]
[]
[null,"Choose the targeting strategy:",null,null,"POLICY IMPACT ON HEALTH INEQUALITIES**"]
[null,"Even distribution",null,null,"Gap between most and least deprived","Absolute","Relative"]
[null,null,null,null,"Hospital stays",{"$f":"CONCATENATE(FIXED(Results!E29,0),\" (\",FIXED(Results!F29,3),\"%)\")","v":"-55 (-0.411%)"},{"$f":"CONCATENATE(FIXED(Results!E33,4),\" (\",FIXED(Results!F33,3),\"%)\")","v":"0.0000 (-0.002%)"}]
[null,"Max no. people available to be treated:",null,null,"Premature deaths",{"$f":"CONCATENATE(FIXED(Results!E30,0),\" (\",FIXED(Results!F30,3),\"%)\")","v":"-2 (-0.441%)"},{"$f":"CONCATENATE(FIXED(Results!E34,4),\" (\",FIXED(Results!F34,3),\"%)\")","v":"-0.0002 (-0.007%)"}]
[null,{"$f":"ROUNDDOWN(IF(OR($B$14=\"Even distribution\",$B$14=\"Proportionate to need\"),HLOOKUP(Calculations!$E$2,'Population at Risk'!$C$3:$BC$257,'Population at Risk'!BD255,FALSE),IF($B$14=\"Targeting to SIMD Q1\",HLOOKUP(Calculations!$E$2,'Population at Risk'!$C$3:$BC$257,'Population at Risk'!BD256,FALSE),IF($B$14=\"Targeting to SIMD Q1 & Q2\",HLOOKUP(Calculations!$E$2,'Population at Risk'!$C$3:$BC$257,'Population at Risk'!BD257,FALSE),\"error\"))),0)","v":339384},null,null,"Years of life lost",{"$f":"CONCATENATE(FIXED(Results!E31,0),\" (\",FIXED(Results!F31,3),\"%)\")","v":"-55 (-0.440%)"},{"$f":"CONCATENATE(FIXED(Results!E35,4),\" (\",FIXED(Results!F35,3),\"%)\")","v":"-0.0001 (-0.003%)"}]
[null,null,null,null,"Population-wide inequalities slope","Absolute (SII)","Relative (RII)"]
[null,"Choose the number of people to treat:",null,null,"Hospital stays",{"$f":"CONCATENATE(FIXED(Results!E37,0),\" (\",FIXED(Results!F37,3),\"%)\")","v":"-66 (-0.411%)"},{"$f":"CONCATENATE(FIXED(Results!E41,4),\" (\",FIXED(Results!F41,3),\"%)\")","v":"0.0000 (-0.004%)"}]
[null,"(in addition to current number treated)",null,null,"Premature deaths",{"$f":"CONCATENATE(FIXED(Results!E38,0),\" (\",FIXED(Results!F38,3),\"%)\")","v":"-2 (-0.443%)"},{"$f":"CONCATENATE(FIXED(Results!E42,4),\" (\",FIXED(Results!F42,3),\"%)\")","v":"-0.0001 (-0.007%)"}]
[null,339384,null,null,"Years of life lost",{"$f":"CONCATENATE(FIXED(Results!E39,0),\" (\",FIXED(Results!F39,3),\"%)\")","v":"-65 (-0.443%)"},{"$f":"CONCATENATE(FIXED(Results!E43,4),\" (\",FIXED(Results!F43,3),\"%)\")","v":"-0.0001 (-0.004%)"}]
[null,{"$f":"IF(AND(OR(Calculations!$E$2=\"Orkney Health Board\",Calculations!$E$2=\"Orkney Islands Local Authority\",Calculations!$E$2=\"Shetland Health Board\",Calculations!$E$2=\"Western Isles Health Board\",Calculations!$E$2=\"Shetland Islands Local Authority\",Calculations!$E$2=\"Eilean Siar Local Authority\"),B14=\"Targeting to SIMD Q1\"),\"Error: No Q1 population for this area\", IF(B21>B17,\"Too high: please check and re-enter\",\"\"))","v":""},null,null,"**N.B. Based on rates per 100,000.  A negative figure indicates reduced inequalities / narrowing of the gap."]
[null,"Calculate health impact after this many years:"]
[null,2,null,null,"SELECTED COSTS AND SAVINGS***",null,"£"]
[null,null,null,null,"Direct financial cost of the intervention (£):",null,{"$f":"Results!D50","v":13235976}]
[null,null,null,null,"Direct financial savings from reduced hospitalisations (£):"]
[null,null,null,null,null,"Whole population",{"$f":"CONCATENATE(FIXED(Results!E54,0),\" (\",FIXED(Results!F54,3),\"%)\")","v":"11,686,185 (0.407%)"}]
[null,null,null,null,null,"SIMD Q1 & Q2",{"$f":"CONCATENATE(FIXED(Results!E55,0),\" (\",FIXED(Results!F55,3),\"%)\")","v":"5,551,886 (0.408%)"}]
[null,null,null,null,null,"SIMD Q1",{"$f":"IF(OR(Calculations!$E$2=\"Orkney Health Board\",Calculations!$E$2=\"Orkney Islands Local Authority\",Calculations!$E$2=\"Shetland Health Board\",Calculations!$E$2=\"Western Isles Health Board\",Calculations!$E$2=\"Shetland Islands Local Authority\",Calculations!$E$2=\"Eilean Siar Local Authority\"),\"N/A\", CONCATENATE(FIXED(Results!E56,0),\" (\",FIXED(Results!F56,3),\"%)\"))","v":"2,956,932 (0.408%)"}]
[null,null,null,null,"***Costs/savings from changes to other health outcomes and to health inequalities have not been estimated."]

{"sheet":"Results","index":3,"n_rows":59,"n_cols":8,"rows_kept":59,"cut":false,"hidden":false,"merged":[]}
[]
[null,"Detailed results for intervention:",null,{"$f":"Options!B8","v":"Alcohol Brief Intervention"}]
[]
[null,"Area of interest:",{"$f":"Options!B11","v":"Scotland"},"Targeting strategy:",{"$f":"Options!B14","v":"Even distribution"}]
[null,"Age group:","16+ years","Additional people to be treated:",{"$f":"Options!B21","v":339384}]
[null,"Baseline year (prevalence and population data):",2016,"Health impact calculated after:",{"$f":"CONCATENATE(Options!B24,\" years\")","v":"2 years"}]
[]
[null,"Baseline situation (2016):","No. hazardous / harmful drinkers","No. available for intervention","No. all-cause hospital stays","No. all-cause deaths","No. all-cause premature deaths","Years of life lost (all causes)"]
[null,"Whole population",{"$f":"HLOOKUP(Calculations!$E$2,'Population at Risk'!$C$3:$BC$257,'Population at Risk'!BD251,FALSE)","v":870217.246871504},{"$f":"ROUNDDOWN(HLOOKUP(Calculations!$E$2,'Population at Risk'!$C$3:$BC$257,'Population at Risk'!BD255,FALSE),0)","v":339384},{"$f":"HLOOKUP(Calculations!$E$2,'Health outcome totals 2016'!$C$3:$BC$17,'Health outcome totals 2016'!$BD6,FALSE)","v":1125093},{"$f":"HLOOKUP(Calculations!$E$2,'Health outcome totals 2016'!$C$3:$BC$17,'Health outcome totals 2016'!$BD9,FALSE)","v":56725},{"$f":"HLOOKUP(Calculations!$E$2,'Health outcome totals 2016'!$C$3:$BC$17,'Health outcome totals 2016'!$BD12,FALSE)","v":21313},{"$f":"HLOOKUP(Calculations!$E$2,'Health outcome totals 2016'!$C$3:$BC$17,'Health outcome totals 2016'!$BD15,FALSE)","v":708624.04837918223}]
[null,"Most deprived 40% (Q1 & Q2)",{"$f":"HLOOKUP(Calculations!$E$2,'Population at Risk'!$C$3:$BC$257,'Population at Risk'!BD253,FALSE)","v":299149.91952204495},{"$f":"ROUNDDOWN(HLOOKUP(Calculations!$E$2,'Population at Risk'!$C$3:$BC$257,'Population at Risk'!BD257,FALSE),0)","v":116668},{"$f":"HLOOKUP(Calculations!$E$2,'Health outcome totals 2016'!$C$3:$BC$17,'Health outcome totals 2016'!$BD8,FALSE)","v":534382},{"$f":"HLOOKUP(Calculations!$E$2,'Health outcome totals 2016'!$C$3:$BC$17,'Health outcome totals 2016'!$BD11,FALSE)","v":26567},{"$f":"HLOOKUP(Calculations!$E$2,'Health outcome totals 2016'!$C$3:$BC$17,'Health outcome totals 2016'!$BD14,FALSE)","v":11618},{"$f":"HLOOKUP(Calculations!$E$2,'Health outcome totals 2016'!$C$3:$BC$17,'Health outcome totals 2016'!$BD17,FALSE)","v":372328.97050476068}]
[null,"Most deprived 20% (Q1)",{"$f":"IF(OR(Calculations!$E$2=\"Orkney Health Board\",Calculations!$E$2=\"Orkney Islands Local Authority\",Calculations!$E$2=\"Shetland Health Board\",Calculations!$E$2=\"Western Isles Health Board\",Calculations!$E$2=\"Shetland Islands Local Authority\",Calculations!$E$2=\"Eilean Siar Local Authority\"),\"N/A\", HLOOKUP(Calculations!$E$2,'Population at Risk'!$C$3:$BC$257,'Population at Risk'!BD252,FALSE))","v":138476.6168652614},{"$f":"IF(OR(Calculations!$E$2=\"Orkney Health Board\",Calculations!$E$2=\"Orkney Islands Local Authority\",Calculations!$E$2=\"Shetland Health Board\",Calculations!$E$2=\"Western Isles Health Board\",Calculations!$E$2=\"Shetland Islands Local Authority\",Calculations!$E$2=\"Eilean Siar Local Authority\"),\"N/A\", ROUNDDOWN(HLOOKUP(Calculations!$E$2,'Population at Risk'!$C$3:$BC$257,'Population at Risk'!BD256,FALSE),0))","v":54005},{"$f":"IF(OR(Calculations!$E$2=\"Orkney Health Board\",Calculations!$E$2=\"Orkney Islands Local Authority\",Calculations!$E$2=\"Shetland Health Board\",Calculations!$E$2=\"Western Isles Health Board\",Calculations!$E$2=\"Shetland Islands Local Authority\",Calculations!$E$2=\"Eilean Siar Local Authority\"),\"N/A\", HLOOKUP(Calculations!$E$2,'Health outcome totals 2016'!$C$3:$BC$17,'Health outcome totals 2016'!$BD7,FALSE))","v":283718},{"$f":"IF(OR(Calculations!$E$2=\"Orkney Health Board\",Calculations!$E$2=\"Orkney Islands Local Authority\",Calculations!$E$2=\"Shetland Health Board\",Calculations!$E$2=\"Western Isles Health Board\",Calculations!$E$2=\"Shetland Islands Local Authority\",Calculations!$E$2=\"Eilean Siar Local Authority\"),\"N/A\", HLOOKUP(Calculations!$E$2,'Health outcome totals 2016'!$C$3:$BC$17,'Health outcome totals 2016'!$BD10,FALSE))","v":13665},{"$f":"IF(OR(Calculations!$E$2=\"Orkney Health Board\",Calculations!$E$2=\"Orkney Islands Local Authority\",Calculations!$E$2=\"Shetland Health Board\",Calculations!$E$2=\"Western Isles Health Board\",Calculations!$E$2=\"Shetland Islands Local Authority\",Calculations!$E$2=\"Eilean Siar Local Authority\"),\"N/A\", HLOOKUP(Calculations!$E$2,'Health outcome totals 2016'!$C$3:$BC$17,'Health outcome totals 2016'!$BD13,FALSE))","v":6443},{"$f":"IF(OR(Calculations!$E$2=\"Orkney Health Board\",Calculations!$E$2=\"Orkney Islands Local Authority\",Calculations!$E$2=\"Shetland Health Board\",Calculations!$E$2=\"Western Isles Health Board\",Calculations!$E$2=\"Shetland Islands Local Authority\",Calculations!$E$2=\"Eilean Siar Local Authority\"),\"N/A\", HLOOKUP(Calculations!$E$2,'Health outcome totals 2016'!$C$3:$BC$17,'Health outcome totals 2016'!$BD16,FALSE))","v":203545.71069335938}]
[]
[null,"Health impact","Without intervention","With intervention","Difference","Difference","Interpretation"]
[null,"HEALTH OUTCOMES","n","n","n","%"]
[null,"Hospital stays",null,null,null,"% prevented"]
[null,"Whole population",{"$f":"Calculations!O5","v":1143855.727350824},{"$f":"Calculations!P5","v":1139203.5835557231},{"$f":"C16-D16","v":4652.1437951009721},{"$f":"E16*100/C16","v":0.40670721699102402},"Hospital stays prevented"]
[null,"Q1 & Q2",{"$f":"Calculations!O6","v":542278.73076819046},{"$f":"Calculations!P6","v":540068.58493765676},{"$f":"C17-D17","v":2210.1458305337001},{"$f":"E17*100/C17","v":0.40756638701333797},"(N.B. positive difference = "]
[null,"Q1",{"$f":"IF(OR(Calculations!$E$2=\"Orkney Health Board\",Calculations!$E$2=\"Orkney Islands Local Authority\",Calculations!$E$2=\"Shetland Health Board\",Calculations!$E$2=\"Western Isles Health Board\",Calculations!$E$2=\"Shetland Islands Local Authority\",Calculations!$E$2=\"Eilean Siar Local Authority\"),\"N/A\", Calculations!O7)","v":288715.84006160521},{"$f":"IF(OR(Calculations!$E$2=\"Orkney Health Board\",Calculations!$E$2=\"Orkney Islands Local Authority\",Calculations!$E$2=\"Shetland Health Board\",Calculations!$E$2=\"Western Isles Health Board\",Calculations!$E$2=\"Shetland Islands Local Authority\",Calculations!$E$2=\"Eilean Siar Local Authority\"),\"N/A\", Calculations!P7)","v":287538.71757196879},{"$f":"IF(OR(Calculations!$E$2=\"Orkney Health Board\",Calculations!$E$2=\"Orkney Islands Local Authority\",Calculations!$E$2=\"Shetland Health Board\",Calculations!$E$2=\"Western Isles Health Board\",Calculations!$E$2=\"Shetland Islands Local Authority\",Calculations!$E$2=\"Eilean Siar Local Authority\"),\"N/A\", C18-D18)","v":1177.1224896364147},{"$f":"IF(OR(Calculations!$E$2=\"Orkney Health Board\",Calculations!$E$2=\"Orkney Islands Local Authority\",Calculations!$E$2=\"Shetland Health Board\",Calculations!$E$2=\"Western Isles Health Board\",Calculations!$E$2=\"Shetland Islands Local Authority\",Calculations!$E$2=\"Eilean Siar Local Authority\"),\"N/A\", E18*100/C18)","v":0.40770970147853486},"fewer stays)"]
[null,"Premature deaths (<75 years)",null,null,null,"% prevented"]
[null,"Whole population",{"$f":"Calculations!Q5","v":21618.370831045202},{"$f":"Calculations!R5","v":21524.013521749705},{"$f":"C20-D20","v":94.357309295497544},{"$f":"E20*100/C20","v":0.43646817807378491},"Premature deaths prevented"]
[null,"Q1 & Q2",{"$f":"Calculations!Q6","v":11402.022138497201},{"$f":"Calculations!R6","v":11351.925554162401},{"$f":"C21-D21","v":50.096584334800355},{"$f":"E21*100/C21","v":0.43936578728133519},"(N.B. positive difference = "]
[null,"Q1",{"$f":"IF(OR(Calculations!$E$2=\"Orkney Health Board\",Calculations!$E$2=\"Orkney Islands Local Authority\",Calculations!$E$2=\"Shetland Health Board\",Calculations!$E$2=\"Western Isles Health Board\",Calculations!$E$2=\"Shetland Islands Local Authority\",Calculations!$E$2=\"Eilean Siar Local Authority\"),\"N/A\", Calculations!Q7)","v":6421.9597991925002},{"$f":"IF(OR(Calculations!$E$2=\"Orkney Health Board\",Calculations!$E$2=\"Orkney Islands Local Authority\",Calculations!$E$2=\"Shetland Health Board\",Calculations!$E$2=\"Western Isles Health Board\",Calculations!$E$2=\"Shetland Islands Local Authority\",Calculations!$E$2=\"Eilean Siar Local Authority\"),\"N/A\", Calculations!R7)","v":6393.8237923427005},{"$f":"IF(OR(Calculations!$E$2=\"Orkney Health Board\",Calculations!$E$2=\"Orkney Islands Local Authority\",Calculations!$E$2=\"Shetland Health Board\",Calculations!$E$2=\"Western Isles Health Board\",Calculations!$E$2=\"Shetland Islands Local Authority\",Calculations!$E$2=\"Eilean Siar Local Authority\"),\"N/A\", C22-D22)","v":28.136006849799742},{"$f":"IF(OR(Calculations!$E$2=\"Orkney Health Board\",Calculations!$E$2=\"Orkney Islands Local Authority\",Calculations!$E$2=\"Shetland Health Board\",Calculations!$E$2=\"Western Isles Health Board\",Calculations!$E$2=\"Shetland Islands Local Authority\",Calculations!$E$2=\"Eilean Siar Local Authority\"),\"N/A\", E22*100/C22)","v":0.43812181529597205},"fewer premature deaths)"]
[null,"Years of life lost",null,null,null,"% saved"]
[null,"Whole population",{"$f":"Calculations!M5","v":595503.29781182588},{"$f":"Calculations!N5","v":592895.28439223347},{"$f":"C24-D24","v":2608.0134195924038},{"$f":"E24*100/C24","v":0.43795112960340221},"Years of life saved"]
[null,"Q1 & Q2",{"$f":"Calculations!M6","v":317964.79055923107},{"$f":"Calculations!N6","v":316565.80707872851},{"$f":"C25-D25","v":1398.9834805025603},{"$f":"E25*100/C25","v":0.43998062742797778},"(N.B. positive difference ="]
[null,"Q1",{"$f":"IF(OR(Calculations!$E$2=\"Orkney Health Board\",Calculations!$E$2=\"Orkney Islands Local Authority\",Calculations!$E$2=\"Shetland Health Board\",Calculations!$E$2=\"Western Isles Health Board\",Calculations!$E$2=\"Shetland Islands Local Authority\",Calculations!$E$2=\"Eilean Siar Local Authority\"),\"N/A\", Calculations!M7)","v":179543.48571239173},{"$f":"IF(OR(Calculations!$E$2=\"Orkney Health Board\",Calculations!$E$2=\"Orkney Islands Local Authority\",Calculations!$E$2=\"Shetland Health Board\",Calculations!$E$2=\"Western Isles Health Board\",Calculations!$E$2=\"Shetland Islands Local Authority\",Calculations!$E$2=\"Eilean Siar Local Authority\"),\"N/A\", Calculations!N7)","v":178755.691419546},{"$f":"IF(OR(Calculations!$E$2=\"Orkney Health Board\",Calculations!$E$2=\"Orkney Islands Local Authority\",Calculations!$E$2=\"Shetland Health Board\",Calculations!$E$2=\"Western Isles Health Board\",Calculations!$E$2=\"Shetland Islands Local Authority\",Calculations!$E$2=\"Eilean Siar Local Authority\"),\"N/A\", C26-D26)","v":787.79429284573416},{"$f":"IF(OR(Calculations!$E$2=\"Orkney Health Board\",Calculations!$E$2=\"Orkney Islands Local Authority\",Calculations!$E$2=\"Shetland Health Board\",Calculations!$E$2=\"Western Isles Health Board\",Calculations!$E$2=\"Shetland Islands Local Authority\",Calculations!$E$2=\"Eilean Siar Local Authority\"),\"N/A\", E26*100/C26)","v":0.43877631634471614},"years of life saved)"]
[null,"HEALTH INEQUALITIES ","rate*","rate*","rate*","%"]
[null,"Absolute gap (Q1 minus Q5**)",null,null,null,"% increase"]
[null,"Hospital stays",{"$f":"Inequalities!H17","v":13347.326196375001},{"$f":"Inequalities!J17","v":13292.477643879691},{"$f":"D29-C29","v":-54.848552495310287},{"$f":"E29*100/C29","v":-0.41093288414728785},"Change in the absolute gap"]
[null,"Premature deaths",{"$f":"Inequalities!N17","v":453.28508506681459},{"$f":"Inequalities!P17","v":451.28500557106611},{"$f":"D30-C30","v":-2.00007949574848},{"$f":"E30*100/C30","v":-0.44124096769115329},"(N.B. negative = narrower gap)"]
[null,"YLL",{"$f":"Inequalities!T17","v":12485.544345366901},{"$f":"Inequalities!V17","v":12430.563831000578},{"$f":"D31-C31","v":-54.980514366323405},{"$f":"E31*100/C31","v":-0.44035336262071273}]
[null,"Relative gap Q1 to Q5**",null,null,null,"% increase"]
[null,"Hospital stays",{"$f":"Inequalities!H18","v":1.8136171707492037},{"$f":"Inequalities!J18","v":1.8135742044234588},{"$f":"D33-C33","v":-4.2966325744853151E-5},{"$f":"E33*100/C33","v":-2.3690956635078505E-3},"Change in the relative gap"]
[null,"Premature deaths",{"$f":"Inequalities!N18","v":3.0040227284016279},{"$f":"Inequalities!P18","v":3.0038160913325931},{"$f":"D34-C34","v":-2.066370690347874E-4},{"$f":"E34*100/C34","v":-6.8786786158816539E-3},"(N.B. negative = narrower gap)"]
[null,"YLL",{"$f":"Inequalities!T18","v":2.9919167675900069},{"$f":"Inequalities!V18","v":2.991813966058166},{"$f":"D35-C35","v":-1.0280153184094587E-4},{"$f":"E35*100/C35","v":-3.4359756579643306E-3}]
[null,"Slope Index of Inequality (SII)",null,null,null,"% increase"]
[null,"Hospital stays",{"$f":"Inequalities!H15","v":16090.340555944245},{"$f":"Inequalities!J15","v":16024.153451245549},{"$f":"D37-C37","v":-66.187104698696203},{"$f":"E37*100/C37","v":-0.4113468230741999},"Change in absolute inequalities"]
[null,"Premature deaths",{"$f":"Inequalities!N15","v":533.96587882074641},{"$f":"Inequalities!P15","v":531.5983196635791},{"$f":"D38-C38","v":-2.3675591571673067},{"$f":"E38*100/C38","v":-0.44339146958154263},"(N.B. negative = decreased inequalities)"]
[null,"YLL",{"$f":"Inequalities!T15","v":14710.770501375913},{"$f":"Inequalities!V15","v":14645.626960203897},{"$f":"D39-C39","v":-65.14354117201583},{"$f":"E39*100/C39","v":-0.44282888626345501}]
[null,"Relative Index of Inequality (RII)",null,null,null,"% increase"]
[null,"Hospital stays",{"$f":"Inequalities!H16","v":0.73338952625810161},{"$f":"Inequalities!J16","v":0.73335736952305963},{"$f":"D41-C41","v":-3.2156735041977136E-5},{"$f":"E41*100/C41","v":-4.38467334078892E-3},"Change in relative inequalities"]
[null,"Premature deaths",{"$f":"Inequalities!N16","v":1.2856849498523215},{"$f":"Inequalities!P16","v":1.2855988937996119},{"$f":"D42-C42","v":-8.6056052709615471E-5},{"$f":"E42*100/C42","v":-6.6934012659555656E-3},"(N.B. negative = decreased inequalities)"]
[null,"YLL",{"$f":"Inequalities!T16","v":1.28101683802751},{"$f":"Inequalities!V16","v":1.2809607658119413},{"$f":"D43-C43","v":-5.607221556869213E-5},{"$f":"E43*100/C43","v":-4.3771646011328989E-3}]
[]
[null,"* European age-standardised rate per 100,000"]
[null,"** or the most and least deprived quintiles in the area"]
[]
[null,"Economic impact","Without intervention","With intervention","Difference","Difference","Interpretation"]
[null,null,"£","£","£"]
[null,"Direct financial cost:",0,{"$f":"Evidence!C172*Results!E5","v":13235976},{"$f":"D50-C50","v":13235976},null,"Positive difference = net cost incurred"]
[]
[null,"Direct financial savings:","£","£","£","% saved"]
[null,"Hospital stays"]
[null,"Whole population",{"$f":"Evidence!$C$185*Results!C16","v":2873365587.1052699},{"$f":"Evidence!$C$185*Results!D16","v":2861679401.8919764},{"$f":"C54-D54","v":11686185.213293552},{"$f":"E54*100/C54","v":0.40670721699102091},"Reduction in hospital stay costs"]
[null,"Q1 & Q2",{"$f":"Evidence!$C$185*Results!C17","v":1362204171.6896944},{"$f":"Evidence!$C$185*Results!D17","v":1356652285.3633938},{"$f":"C55-D55","v":5551886.326300621},{"$f":"E55*100/C55","v":0.40756638701333547},"(N.B. positive difference = "]
[null,"Q1",{"$f":"IF(OR(Calculations!$E$2=\"Orkney Health Board\",Calculations!$E$2=\"Orkney Islands Local Authority\",Calculations!$E$2=\"Shetland Health Board\",Calculations!$E$2=\"Western Isles Health Board\",Calculations!$E$2=\"Shetland Islands Local Authority\",Calculations!$E$2=\"Eilean Siar Local Authority\"),\"N/A\", Evidence!$C$185*Results!C18)","v":725254190.2347523},{"$f":"IF(OR(Calculations!$E$2=\"Orkney Health Board\",Calculations!$E$2=\"Orkney Islands Local Authority\",Calculations!$E$2=\"Shetland Health Board\",Calculations!$E$2=\"Western Isles Health Board\",Calculations!$E$2=\"Shetland Islands Local Authority\",Calculations!$E$2=\"Eilean Siar Local Authority\"),\"N/A\", Evidence!$C$185*Results!D18)","v":722297258.54078567},{"$f":"IF(OR(Calculations!$E$2=\"Orkney Health Board\",Calculations!$E$2=\"Orkney Islands Local Authority\",Calculations!$E$2=\"Shetland Health Board\",Calculations!$E$2=\"Western Isles Health Board\",Calculations!$E$2=\"Shetland Islands Local Authority\",Calculations!$E$2=\"Eilean Siar Local Authority\"),\"N/A\", C56-D56)","v":2956931.6939666271},{"$f":"IF(OR(Calculations!$E$2=\"Orkney Health Board\",Calculations!$E$2=\"Orkney Islands Local Authority\",Calculations!$E$2=\"Shetland Health Board\",Calculations!$E$2=\"Western Isles Health Board\",Calculations!$E$2=\"Shetland Islands Local Authority\",Calculations!$E$2=\"Eilean Siar Local Authority\"),\"N/A\", E56*100/C56)","v":0.40770970147852842},"money saved)"]
[null,"Premature deaths (<75 years)",null,null,"Savings not estimated"]
[null,"Years of life lost",null,null,"Savings not estimated"]
[null,"Inequalities",null,null,"Savings not estimated"]

{"sheet":"Evidence","index":4,"n_rows":198,"n_cols":9,"rows_kept":198,"cut":false,"hidden":false,"merged":[]}
[]
[null,"The intervention: Alcohol Brief Interventions"]
[]
[null,"Consistent with the Scottish Government's Local Development Plan, based on NICE Guidance, an Alcohol Brief Intervention (ABI) is described as:"]
[null,"\"a short, evidence-based, structured conversation about alcohol consumption with a patient/client that seeks in a non-confrontational way to motivate and support "]
[null,"the individual to think about and/or plan a change in their drinking behaviour in order to reduce their consumption and/or their risk of harm.\""]
[null,"The key components of an ABI and guidance for professionals delivering ABIs are available at "]
[null,"http://www.healthscotland.scot/publications/alcohol-brief-intervention-resources.  "]
[null,"An Alcohol Brief Intervention is an effective approach for reducing consumption among hazardous and harmful drinkers. "]
[]
[null,"Exposure Rate Ratios (ERR) for hazardous/harmful drinking"]
[]
[null,"Outcome","Sex","ERR","Source","Quoted/calculated?"]
[null,"All-cause hospitalisation","Men",1.1000000000000001,"Hart and Smith (2008)","Calculated"]
[null,null,"Women",1.08,"Hart and Smith (2008)","Calculated"]
[null,"All-cause mortality","Men",1.64,"Wood et al (2018)","Calculated"]
[null,null,"Women",1.45,"Wood et al (2018)","Calculated"]
[]
[null,"Hospitalisation"]
[null,"ERRs were estimated from a prospective cohort study containing men only (Midspan Collaborative Study, Hart and Smith 2008).  The authors provided the information "]
[null,"for all-cause hospitalisations. For men, we extracted the rate ratio for those reporting that they consumed ≥ 35.0 units of alcohol per week (mean weekly consumption "]
[null,"of Scottish men categorised as hazardous/harmful drinkers* in the 2013-2016 Scottish Health Survey (SHeS) was 41.3 units). For women we used the rate ratio for men "]
[null,"reporting that they consumed 22-34 units of alcohol per week (mean weekly consumption of Scottish women categorised as hazardous/harmful drinkers* in the "]
[null,"2013-2016 Scottish Health Survey (combined) was 26.7 units).  These rate ratios were adjusted for age, smoking status, socioeconomic position and a range of "]
[null,"physiological measures. We rebased the rate ratios to a reference group that consumed 1-7 units of alcohol per week to give the ERRs above (note that the reference "]
[null,"group was non-drinkers in the Hart and Smith (2008) paper).  See the ERRs worksheet (hidden) for more details on the calculations. "]
[null,"*Based on the old (1995) drinking guidelines: >14 units per week for women; >21 units for men"]
[]
[null,"Mortality"]
[null,"ERRs by sex estimated from a meta-analysis of the association between alcohol consumption and all-cause mortality (Wood et al, 2018). It was assumed that the linear "]
[null,"part of the J-shaped relationship between alcohol consumption and all-cause mortality in the Wood et al (2018) paper runs from the consumption level at which "]
[null,"mortality starts to notably increase (>125g** per week) to the highest consumption category.  A line of best fit (linear) was fitted to the corresponding data, and the"]
[null,"linear function used to calculate the ERR associated with the mean weekly consumption of men and women categorised as hazardous/harmful drinkers "]
[null,"(41.3 units and 26.7 units per week for men and women based on the 2013-2016 SHeS, respectively). The ERR is adjusted for age, smoking and history of diabetes. "]
[null,"Reference group is those consuming >0g to ≤25g of alcohol per week. See the ERRs worksheet (hidden) for more details on the calculations. "]
[null,"** Note that there is 8g in a unit of alcohol."]
[]
[null,"Intervention Rate Ratios (IRR) for successful Alcohol Brief Intervention"]
[]
[null,"The IRRs give the risk of all-cause hospitalisation or mortality for hazardous/harmful drinkers who had received an ABI, relative to those who had not. "]
[]
[null,"What effect does an ABI have on alcohol consumption?"]
[null,"The average change in alcohol consumption resulting from an ABI delivered in primary care settings is a decrease of 20g per week (Kaner et al, 2018)."]
[]
[null,"Hospitalisation"]
[null,"In the absence of any relevant studies directly assessing the impact of a change of consumption on all-cause hospitalisations, the IRR has been calculated based on "]
[null,"the Midspan Collaborative study (Hart and Smith, 2008). For the 20g per week change in alcohol consumption expected as a result of an ABI, the relative risk of an "]
[null,"alcohol-related hospital admission is estimated to decrease from 1.10 to 1.05.  This is an approximate estimate based on the assumption that although the risk of "]
[null,"hospitalisation will decrease compared with no change, it will still be greater than the population average for non-hazardous / harmful drinkers (since alcohol "]
[null,"consumption will also remain greater for the majority of individuals). The mid-point (between 1.10 and 1) is used as a pragmatic estimate in the absence of robust data. "]
[null,"The IRR has therefore been calculated as 1.05/1.10 = 0.9545"]
[]
[null,"Mortality"]
[null,"In the absence of any relevant studies directly assessing the impact of a change of consumption on all-cause mortality, the IRR has been calculated based on the "]
[null,"Wood et al (2018) meta-analysis of risk thresholds for alcohol consumption. It was assumed that the linear part of the J-shaped relationship between alcohol "]
[null,"consumption and all-cause mortality in the Wood et al (2018) paper runs from the consumption level at which mortality starts to notably increase for all adults "]
[null,"(>125g per week) to the highest consumption category.  A line of best fit (linear) was fitted to the corresponding data, and the gradient of this line used to estimate the "]
[null,"difference in risk of death resulting from a 1g change in consumption.  We calculated that for each 1g increase in alcohol consumption, risk of death increases by "]
[null,"0.22%. Thus, for the 20g per week decrease in consumption after an ABI, risk of death decreases by 4.38%. The IRR has therefore been calculated as 0.9562."]
[null,"See the IRRs worksheet (hidden) for more details on the calculations. "]
[]
[null,"Outcome","IRR relative to untreated","Sources","Quoted/calculated?"]
[null,"All-cause hospitalisation",0.95450000000000002,"Hart and Smith (2008); Kaner et al (2018)","Calculated"]
[null,"All-cause mortality",0.95615302528572865,"Kaner et al (2018); Wood et al (2018)","Calculated"]
[]
[]
[null,"Change in intervention effect over time"]
[]
[null,"The effect decay is assumed to return the intervention effect to baseline over 7 years in a linear fashion (Fleming et al, 2002)."]
[null,"There was no evidence of differential effect by age, sex, or socioeconomic position (Kaner et al, 2018; O'Donnell et al, 2013)"]
[]
[null,null,"IRR for treated group (relative to untreated)"]
[null,"Year","hospitalisation","mortality"]
[null,"0 (pre-intervention)",0.99999999999999978,1]
[null,"1 (intervention)",0.95450000000000002,0.95615302528572865]
[null,2,{"$f":"C75+(C$82-C$75)/7","v":0.96099999999999997},0.96241687881633886]
[null,3,{"$f":"C76+(C$82-C$75)/7","v":0.96749999999999992},0.96868073234694907]
[null,4,0.97399999999999987,0.97494458587755928]
[null,5,0.98049999999999982,0.98120843940816949]
[null,6,0.98699999999999977,0.98747229293877958]
[null,7,0.99349999999999972,0.99373614646938979]
[null,8,0.99999999999999978,1]
[null,9,0.99999999999999978,1]
[null,10,0.99999999999999978,1]
[null,11,0.99999999999999978,1]
[null,12,0.99999999999999978,1]
[null,13,0.99999999999999978,1]
[null,14,0.99999999999999978,1]
[null,15,0.99999999999999978,1]
[null,16,0.99999999999999978,1]
[null,17,0.99999999999999978,1]
[null,18,0.99999999999999978,1]
[null,19,0.99999999999999978,1]
[null,20,0.99999999999999978,1]
[null,21,0.99999999999999978,1]
[]
[]
[null,"Prevalence of harmful/hazardous drinking"]
[]
[null,"The prevalence data (proportion of the adult population exceeding the old 1995 drinking guidelines: women >14 units; men >21 units) were extracted from the Scottish "]
[null,"Health Survey (2013-2016 combined). "]
[null,"* In some cases, estimates have been calculated for aggregated local authorities because of a small sample size. "]
[]
[null,"Prevalence by Area (proportion)",null,null,null,"Prevalence by deprivation quintile (proportion)"]
[null,"Area ","Females","Males",null,"SIMD 2016 quintile ","Age group","Females","Males"]
[null,"SCOTLAND",0.16519026157341937,0.22675821218818437,null,"Q1 (most deprived)","16-24",0.19749328521260184,0.17062984316140015]
[null,"Ayrshire & Arran Health Board",0.16335865593816279,0.25679053408067026,null,null,"25-34",0.11835241970922933,0.15931342036976001]
[null,"Borders Health Board",0.16024585559114549,0.25674223201176266,null,null,"35-44",0.11191344390495908,0.19414150396415247]
[null,"Dumfries & Galloway Health Board",0.15027893082067831,0.22282390957392154,null,null,"45-54",0.10984369714114665,0.26928127000751784]
[null,"Fife Health Board",0.14739272058852801,0.21279446346246733,null,null,"55-64",0.13535690827086339,0.28995123222523911]
[null,"Forth Valley Health Board",0.18156181253633025,0.29220898972415338,null,null,"65-74",7.1221654195186362E-2,0.23378591095726775]
[null,"Grampian Health Board",0.16082669269368133,0.2002588068470573,null,null,"75+",2.3357930566070849E-2,9.4700592698778105E-2]
[null,"Greater Glasgow & Clyde Health Board",0.15427206127806944,0.21543185628477041,null,"Q2","16-24",0.23385601914770177,0.17181850941475407]
[null,"Highland Health Board",0.17767717532417268,0.22588690628327426,null,null,"25-34",0.14880992777152857,0.27051580124701141]
[null,"Lanarkshire Health Board",0.16411905352942932,0.19161691667139241,null,null,"35-44",0.17897217350887754,0.19165316200850172]
[null,"Lothian Health Board",0.19929892741773114,0.27575404513868601,null,null,"45-54",0.19267287215550227,0.22327027316252479]
[null,"Orkney Health Board",0.17978743924848381,0.25250779699235304,null,null,"55-64",0.13382888723852349,0.23686544329639284]
[null,"Shetland Health Board",0.166527505512643,0.24939688701667151,null,null,"65-74",9.0288915876774054E-2,0.23426170078604427]
[null,"Tayside Health Board",0.14175534783412036,0.17621463144000044,null,null,"75+",2.7267281886541043E-2,0.11184551050290638]
[null,"Western Isles Health Board",9.059889864264542E-2,0.20971556461171012,null,"Q3","16-24",0.24049454541874948,0.30078363548549003]
[null,"Aberdeen City Local Authority",0.19597397577061176,0.24828175201740885,null,null,"25-34",0.16210322946460032,0.19099991889950269]
[null,"Aberdeenshire Local Authority",0.14094434471935724,0.18286602425848766,null,null,"35-44",0.20581155250957933,0.2267733915732639]
[null,"Angus Local Authority",0.1376377549286481,0.22291524217906949,"*",null,"45-54",0.22119509820804598,0.2205030989611611]
[null,"Argyll & Bute Local Authority",0.17767717532417268,0.22588690628327415,"*",null,"55-64",0.18444629249435562,0.26888085426727992]
[null,"Clackmannanshire Local Authority",0.16375201506223383,0.28764860841821382,"*",null,"65-74",0.15461972980975777,0.26873249219517059]
[null,"Dumfries & Galloway Local Authority",0.15475740578316183,0.23686179032005295,"*",null,"75+",3.5284009560195895E-2,0.14053064777081969]
[null,"Dundee City Local Authority",0.15997075046710962,0.18882393134095818,"*","Q4","16-24",0.16670894498790137,0.24784088807869259]
[null,"East Ayrshire Local Authority",0.12123339258550994,0.24028532722244589,null,null,"25-34",0.12256152256677488,0.18224018977462617]
[null,"East Dunbartonshire Local Authority",0.15526210413529618,0.23710170238824971,"*",null,"35-44",0.18911466658538528,0.17180830092582686]
[null,"East Lothian Local Authority",0.19361512881556103,0.25790576353721456,"*",null,"45-54",0.24181206029615268,0.23181016241574809]
[null,"East Renfrewshire Local Authority",0.15526210413529618,0.23465424188737383,"*",null,"55-64",0.26945256038640319,0.35992342498257957]
[null,"Edinburgh, City of Local Authority",0.21674996041201042,0.30817234006167987,null,null,"65-74",0.13421334084896991,0.24434672028044677]
[null,"Eilean Siar Local Authority",0.16307608946373023,0.30384113009678093,null,null,"75+",8.612526597120479E-2,0.21313934339187848]
[null,"Falkirk Local Authority",0.17316847405916852,0.21279446346246733,"*","Q5 (least deprived)","16-24",0.17227195965707265,0.20518354450973844]
[null,"Fife Local Authority",0.15275846514985247,0.21369734424438788,null,null,"25-34",0.14643258034406542,0.2041342060590319]
[null,"Glasgow City Local Authority",0.16733137357092864,0.22707553449578119,null,null,"35-44",0.18315706329639325,0.22364376494762034]
[null,"Highland Local Authority",0.12949900318094004,0.20919407863272232,null,null,"45-54",0.28258000902315794,0.2200587460650732]
[null,"Inverclyde Local Authority",0.17206410528660457,0.21962224396908467,"*",null,"55-64",0.25001169714787463,0.29994150060792718]
[null,"Midlothian Local Authority",0.19361512881556103,0.25790576353721456,"*",null,"65-74",0.2319435778829754,0.27741058442283129]
[null,"Moray Local Authority",0.12543037711892177,0.16972784477476283,"*",null,"75+",0.11201545504198153,0.17405732755611802]
[null,"North Ayrshire Local Authority",0.19158238628009625,0.29291121737156928]
[null,"North Lanarkshire Local Authority",0.15549567693481309,0.18285156001871472]
[null,"Orkney Islands Local Authority",0.17978743924848381,0.25250779699235304]
[null,"Perth & Kinross Local Authority",0.14746617430067485,0.19844942109103494,"*"]
[null,"Renfrewshire Local Authority",0.18289556668180024,0.20424322652689197,"*"]
[null,"Scottish Borders Local Authority",0.16024585559114549,0.25674223201176266]
[null,"Shetland Islands Local Authority",0.166527505512643,0.24939688701667151]
[null,"South Ayrshire Local Authority",0.17807863422646494,0.22880973264379428]
[null,"South Lanarkshire Local Authority",0.17762393236272506,0.19526136903080504]
[null,"Stirling Local Authority",0.16265293990810342,0.22961611743836957,"*"]
[null,"West Dunbartonshire Local Authority",0.15880083471140979,0.21529145878444705,"*"]
[null,"West Lothian Local Authority",0.16027388590449043,0.24656045416907865,"*"]
[null,"Aberdeen City Region Deal",0.16633893373176536,0.21211626863225091]
[null,"Edinburgh & SE Scotland City Region Deal",0.18126338235493628,0.25746335888835875]
[null,"Glasgow City Region Deal",0.15803892335868311,0.20641713455003]
[null,"Inverness & Highland City Region Deal",0.1673313735709285,0.22707553449578102]
[null,"Tay Cities Region Deal ",0.14436257634687313,0.19401686333580045]
[null,"Clackmannanshire & Stirling IJB",0.19972425477009684,0.27471254082537472]
[]
[]
[null,"Eligible population"]
[]
[null,"The proportion of the population at risk who would be eligible/available for the intervention was defined as the proportion who wish to reduce their alcohol consumption."]
[]
[null,"Description","Value (%)","Sources","Quoted/calculated?"]
[null,"Proportion of those exceeding the 1995 drinking guidelines who wish to reduce their alcohol consumption",39,"SHeS 2008-2011 KAM module ","Calculated"]
[]
[null,"SHeS = Scottish Health Survey; KAM = Knowledge Attitudes and Motivation module of the SHeS"]
[]
[null,"Intervention costs"]
[]
[null,"Cost of providing an ABI",39]
[]
[null,"The information used to estimate this cost is taken from PSSRU Unit Costs of Health and Social Care (2016)."]
[null,"Table 10.3b in the report provides the cost per GP minute and it has been assumed that an ABI lasts 10 minutes in duration as this is in line with the Scottish "]
[null,"Government’s Local Delivery Plan guidance on delivering an ABI.  In addition, the recently published Cochrane review suggests that longer sessions are no more "]
[null,"effective than briefer interventions and many of the studies included in the review are based on ABIs of 10 minutes.  "]
[]
[]
[null,"Hospitalisation costs"]
[]
[null,"The cost of a continuous inpatient stay was estimated to be £2,113 in 2006/07 (Geue et al 2012; based on healthcare resource groups and the English tariff)."]
[null,"This was inflated to £2,512 for 2015/16 using the Hospital and Community Health Service (HCHS) inflation index."]
[]
[null,"Cost of continuous Inpatient stay ",2512]
[]
[]
[null,"References"]
[]
[null,"Fleming et al (2002)","Fleming M, et al. Brief physician advice for problem drinkers: long-term efficacy and benefit-cost analysis. Alcoholism: Clinical and Experimental Research 2002; 26: 36–43. doi: 10.1111/j.1530-0277.2002.tb02429.x. "]
[null,"Geue et al (2012)","Geue et al. Spoilt for choice: implications of using alternative methods of costing hospital episode statistics. Health Economics 21: 1201-1216. https://onlinelibrary.wiley.com/doi/abs/10.1002/hec.1785"]
[null,"Hart and Smith (2008)","Hart CL, Smith GD. Alcohol consumption and mortality and hospital admissions in men from the Midspan collaborative cohort study. Addiction 2008; 103: 1979-86. doi: 10.1111/j.1360-0443.2008.02373.x. "]
[null,"Kaner et al (2018)","Kaner EFS, et al. Effectiveness of brief alcohol interventions in primary care populations. Cochrane Database of Systematic Reviews, 2018. Issue 2. doi: 10.1002/14651858.CD004148.pub4."]
[null,"O'Donnell et al (2013)","O’Donnell A, et al. The impact of brief alcohol interventions in primary healthcare: a systematic review of reviews. Alcohol and Alcoholism 2013; 49: 66–78. doi: 10.1093/alcalc/agt170."]
[null,"Personal Social Services Research Unit (2016) ","Unit costs of health and social care 2016. https://www.pssru.ac.uk/project-pages/unit-costs/unit-costs-2016/"]
[null,"Scottish Government (2018)","Local Delivery Plan standard: alcohol brief interventions national guidance: 2017-18"]
[null,"Scottish Health Survey (2008-2011)","Knowledge, attitudes and motivations to health; module of the Scottish Health Survey, dataset 2008-2011. Available via https://www.ukdataservice.ac.uk/"]
[null,"Wood et al (2018)","Wood AM, et al for the Emerging Risk Factors Collaboration. Risk thresholds for alcohol consumption: combined analysis of individual-participant data for 599 912 current drinkers in 83 prospective studies. Lancet 2018; 391: 1513-1523. doi: https://doi.org/10.1016/S0140-6736(18)30134-X."]

{"sheet":"SHEETS TO BE HIDDEN ->","index":5,"n_rows":0,"n_cols":0,"rows_kept":0,"cut":false,"hidden":true,"merged":[]}

{"sheet":"Calculations","index":6,"n_rows":249,"n_cols":43,"rows_kept":249,"cut":false,"hidden":true,"merged":[]}
["Calculating the deaths, years of life lost, hospital stays, and premature deaths for each group ",null,null,null,null,null,null,null,null,null,"COUNTS",null,null,null,null,null,null,null,null,null,null,null,null,null,null,null,null,null,null,null,null,null,null,null,null,"EUROPEAN AGE-STANDARDISED RATE (EASR) PER 100000"]
["AREA:",{"$f":"Options!B11","v":"Scotland"},"EQUIVALENT AREA:",null,{"$f":"VLOOKUP(B2,Lists!D2:E85,2)","v":"Scotland"},null,null,null,null,null,"CUMULATIVE INCIDENCE (DEATHS)",null,"YEARS OF LIFE LOST",null,"HOSPITALISATIONS",null,"PREMATURE MORTALITY",null,"AGE STANDARDISED RATE (ASR)",null,null,null,null,null,null,null,"ASR*EUROPEAN STANDARD POPULATION (ESP2013)",null,null,null,null,null,null,null,null,"CUMULATIVE INCIDENCE (DEATHS)",null,"YEARS OF LIFE LOST",null,"HOSPITALISATIONS",null,"PREMATURE MORTALITY"]
["SIMD","group","mean age (2016)","life exp (2014-16)","sex","SIMD","prevalence exposure","population (2016)","no. treated at base","additional no. treated under policy","Baseline","Policy","Baseline","Policy","Baseline","Policy","Baseline","Policy","CI_BASE","CI_POLICY","YLL_BASE","YLL_POLICY","HOSP_BASE","HOSP_POLICY","PREM_BASE","PREM_POLICY","CI_BASE","CI_POLICY","YLL_BASE","YLL_POLICY","HOSP_BASE","HOSP_POLICY","PREM_BASE","PREM_POLICY","ESP2013","Baseline","Policy","Baseline","Policy","Baseline","Policy","Baseline","Policy"]
[]
["All quintiles","16+ Males and Females","N/A",null,"BOTH","ALL",null,{"$f":"SUM(H7:H11)","v":4488783},{"$f":"SUM(I7:I11)","v":0},{"$f":"SUM(J7:J11)","v":339386},{"$f":"SUMIF(K7:K11,\">0\")","v":44505.005993111903},44311.543312530099,595503.29781182588,592895.28439223347,1143855.727350824,1139203.5835557231,21618.370831045202,21524.013521749705,null,null,null,null,null,null,null,null,{"$f":"SUMIF(AA7:AA11,\">0\")","v":906041736.43279529},{"$f":"SUMIF(AB7:AB11,\">0\")","v":902100122.83935225},11483666775.237188,11433314236.537695,21939692318.814999,21850402160.227676,415316270.81897455,413502471.28202653,{"$f":"SUM(AI7:AI11)","v":1000000},{"$f":"AA5/$AI5","v":906.04173643279523},{"$f":"AB5/$AI5","v":902.10012283935225},{"$f":"AC5/$AI5","v":11483.666775237189},11433.314236537695,21939.692318814999,21850.402160227677,415.31627081897454,413.50247128202653]
["Q1 and Q2","16+ Males and Females","N/A",null,"BOTH","Q1&2",null,{"$f":"SUM(H7:H8)","v":1769266},0,133768,23407.446218316298,23305.681655075299,317964.79055923107,316565.80707872851,542278.73076819046,540068.58493765676,11402.022138497201,11351.925554162401,null,null,null,null,null,null,null,null,{"$f":"SUMIF(AA7:AA8,\">0\")","v":502496302.35795581},{"$f":"SUMIF(AB7:AB8,\">0\")","v":500312105.50993204},6390325819.424242,6362200417.4214783,10787710810.292,10743712102.344151,231361091.66891253,230344927.04454726,{"$f":"SUM(AI7:AI8)","v":400000},{"$f":"AA6/$AI6","v":1256.2407558948896},1250.78026377483,15975.814548560606,15905.501043553695,26969.27702573,26859.280255860376,578.40272917228128,575.8623176113681]
["SIMD Q1 (most deprived)","16+ Males and Females","N/A",null,"BOTH",1,null,{"$f":"H12+H17","v":872234},0,65948,12904.409302542301,12848.6988057136,{"$f":"M12+M17","v":179543.48571239173},178755.691419546,288715.84006160521,287538.71757196879,6421.9597991925002,6393.8237923427005,null,null,null,null,null,null,null,null,{"$f":"AA12+AA17","v":294259435.87959629},{"$f":"AB12+AB17","v":292989890.95271957},3750729958.9217272,3734277910.417964,5950449632.4840012,5926169840.8688183,135894536.39303049,135299558.41506302,{"$f":"AI12+AI17","v":200000},{"$f":"AA7/$AI7","v":1471.2971793979814},1464.9494547635979,{"$f":"AC7/$AI7","v":18753.649794608635},{"$f":"AD7/$AI7","v":18671.389552089819},{"$f":"AE7/$AI7","v":29752.248162420005},{"$f":"AF7/$AI7","v":29630.849204344093},{"$f":"AG7/$AI7","v":679.47268196515245},{"$f":"AH7/$AI7","v":676.49779207531515}]
["SIMD Q2",null,"N/A",null,"BOTH",2,null,{"$f":"H13+H18","v":897032},0,67820,{"$f":"K13+K18","v":10503.036915773999},10456.982849361701,138421.30484683931,137810.11565918251,253562.89070658525,252529.867365688,4980.0623393047008,4958.1017618197002,null,null,null,null,null,null,null,null,{"$f":"AA13+AA18","v":208236866.47835952},{"$f":"AB13+AB18","v":207322214.55721247},2639595860.5025153,2627922507.0035148,4837261177.8079996,4817542261.4753323,95466555.275882035,95045368.629484221,{"$f":"AI13+AI18","v":200000},1041.1843323917976,1036.6110727860623,13197.979302512576,13139.612535017573,24186.305889039999,24087.71130737666,477.33277637941018,475.22684314742111]
["SIMD Q3",null,"N/A",null,"BOTH",3,null,907978,0,68651,8988.4615288517016,8949.2072100500991,117496.2804751673,116982.1341336559,227312.98226707341,226388.95023582751,4321.1773759530006,4302.3947371772001,null,null,null,null,null,null,null,null,{"$f":"AA14+AA19","v":169190919.99309552},{"$f":"AB14+AB19","v":168450739.87258014},2139326160.9528532,2129950616.0137479,4182172524.5570002,4165164429.9940262,77310657.571205556,76974416.076717824,{"$f":"AI14+AI19","v":200000},845.95459996547754,842.25369936290065,10696.630804764265,10649.75308006874,20910.862622785,20825.822149970132,386.55328785602779,384.87208038358909]
["SIMD Q4",null,"N/A",null,"BOTH",4,null,910792,0,68864,7029.6330250139999,6999.2477849975003,93219.935393882712,92815.185976199296,200119.05611311671,199307.14050622689,3451.4271043896997,3436.4709208982003,null,null,null,null,null,null,null,null,{"$f":"AA15+AA20","v":134766652.96458128},{"$f":"AB15+AB20","v":134183517.36423501},1700393705.0117462,1692998058.8846209,3688824590.757,3673851315.7966185,61407002.19918891,61140570.85991168,{"$f":"AI15+AI20","v":200000},673.83326482290636,670.91758682117506,8501.9685250587299,8464.9902944231053,18444.122953785001,18369.256578983091,307.03501099594456,305.7028542995584]
["SIMD Q5 (least deprived)",null,"N/A",null,"BOTH",5,null,900747,0,68103,5079.4652209298993,5057.4066624072002,66822.291383544798,66532.157203649811,174144.95820244367,173438.9078760118,2443.7442122052998,2433.2223095119002,null,null,null,null,null,null,null,null,{"$f":"AA16+AA21","v":99587861.11716266},{"$f":"AB16+AB21","v":99153760.092605025},1253621089.8483467,1248165144.2178483,3280984393.2090006,3267674312.0928802,45237519.379667573,45042557.30084981,{"$f":"AI16+AI21","v":200000},{"$f":"AA11/$AI11","v":497.93930558581332},495.76880046302512,6268.1054492417334,6240.8257210892416,16404.921966045004,16338.371560464402,226.18759689833786,225.21278650424904]
["SIMD Q1 (most deprived)","16+ Females","N/A",null,"female",1,null,{"$f":"SUM(H60:H78)","v":457633},{"$f":"SUM(I60:I78)","v":0},{"$f":"SUM(J60:J78)","v":34601},{"$f":"SUMIF(K60:K78,\">0\")","v":6431.6601428363001},6404.4471137732999,82582.880749237214,82226.624034496388,155037.8908593776,154407.32585655883,2638.7937620007001,2627.3293750479002,null,null,null,null,null,null,null,null,{"$f":"SUMIF(AA60:AA78,\">0\")","v":124124532.2053556},{"$f":"SUMIF(AB60:AB78,\">0\")","v":123599216.80354878},{"$f":"SUMIF(AC60:AC78,\">0\")","v":1590340512.3047824},1583477976.3579576,2906076588.3480005,2894255659.04707,53080352.6582518,52849771.441133738,{"$f":"SUM(AI60:AI78)","v":100000},1241.245322053556,1235.9921680354878,15903.405123047824,15834.779763579576,29060.765883480006,28942.5565904707,530.80352658251797,528.49771441133737]
["SIMD Q2",null,"N/A",null,"female",2,null,{"$f":"SUM(H98:H116)","v":469079},{"$f":"SUM(I98:I116)","v":0},{"$f":"SUM(J98:J116)","v":35464},{"$f":"SUMIF(K98:K116,\">0\")","v":5242.5705842589005},5220.1209365958002,64045.981484974902,63770.055371072507,134904.85907071829,134357.32943588111,2052.6670912975001,2043.8001047278999,null,null,null,null,null,null,null,null,{"$f":"SUMIF(AA98:AA116,\">0\")","v":87773372.543581247},{"$f":"SUMIF(AB98:AB116,\">0\")","v":87397367.183269054},1118703632.0183039,1113883604.307179,2362418359.7929997,2352832247.3232388,37260438.435069352,37099496.685863361,{"$f":"SUM(AI98:AI116)","v":100000},877.73372543581252,873.97367183269057,11187.036320183039,11138.836043071789,23624.183597929998,23528.322473232387,372.60438435069352,370.99496685863363]
["SIMD Q3",null,"N/A",null,"female",3,null,{"$f":"SUM(H136:H154)","v":469093},{"$f":"SUM(I136:I154)","v":0},{"$f":"SUM(J136:J154)","v":35467},{"$f":"SUMIF(K136:K154,\">0\")","v":4356.8167174288001},4338.2062795273996,53298.591491444902,53071.390750106802,118438.08137411861,117958.5481384076,1753.1636802344999,1745.7374058558,null,null,null,null,null,null,null,null,{"$f":"SUMIF(AA136:AA154,\">0\")","v":71292685.674606815},{"$f":"SUMIF(AB136:AB154,\">0\")","v":70988118.179459304},906502965.11880529,902639300.3588841,2042486603.9890001,2034218942.99806,30163759.761460051,30036004.949440978,{"$f":"SUM(AI136:AI154)","v":100000},712.9268567460681,709.88118179459309,9065.0296511880533,9026.3930035888407,20424.866039889999,20342.189429980601,301.63759761460051,300.36004949440979]
["SIMD Q4",null,"N/A",null,"female",4,null,{"$f":"SUM(H174:H192)","v":468792},{"$f":"SUM(I174:I192)","v":0},{"$f":"SUM(J174:J192)","v":35444},{"$f":"SUMIF(K174:K192,\">0\")","v":3354.2582969667001},3340.0373937498998,41827.455029887802,41650.493032442799,103630.27058914659,103211.37944996089,1387.4225470626998,1381.566345645,null,null,null,null,null,null,null,null,{"$f":"SUMIF(AA174:AA192,\">0\")","v":56770290.839737087},{"$f":"SUMIF(AB174:AB192,\">0\")","v":56529459.593774259},720385195.64185178,717335222.38467824,1801545672.0019999,1794262920.8322992,23951696.716992989,23850547.05904052,{"$f":"SUM(AI174:AI192)","v":100000},567.70290839737083,565.29459593774254,7203.8519564185181,7173.3522238467822,18015.45672002,17942.629208322993,239.5169671699299,238.5054705904052]
["SIMD Q5 (least deprived)",null,"N/A",null,"female",5,null,{"$f":"SUM(H212:H230)","v":465079},{"$f":"SUM(I212:I230)","v":0},{"$f":"SUM(J212:J230)","v":35162},{"$f":"SUMIF(K212:K230,\">0\")","v":2445.7480702254998},2435.4561750862003,30217.636213056201,30091.157948887099,90811.936485394297,90445.693587994203,993.49811859689999,989.38442336560001,null,null,null,null,null,null,null,null,{"$f":"SUMIF(AA212:AA230,\">0\")","v":41934460.221382231},{"$f":"SUMIF(AB212:AB230,\">0\")","v":41757972.021147646},530992199.75665402,528768520.15281332,1602364950.7030003,1595902179.4665465,17639421.357526444,17566361.257035635,{"$f":"SUM(AI212:AI230)","v":100000},419.34460221382233,417.57972021147646,5309.9219975665401,5287.6852015281329,16023.649507030002,15959.021794665465,176.39421357526444,175.66361257035635]
["SIMD Q1 (most deprived)","16+ Males","N/A",null,"male",1,null,{"$f":"SUM(H79:H97)","v":414601},{"$f":"SUM(I79:I97)","v":0},{"$f":"SUM(J79:J97)","v":31347},{"$f":"SUMIF(K79:K97,\">0\")","v":6472.7491597060007},6444.2516919402997,96960.604963154517,96529.06738504961,133677.94920222761,133131.39171540993,3783.1660371918006,3766.4944172948003,null,null,null,null,null,null,null,null,{"$f":"SUMIF(AA79:AA97,\">0\")","v":170134903.67424071},{"$f":"SUMIF(AB79:AB97,\">0\")","v":169390674.14917076},2160389446.6169448,2150799934.0600066,3044373044.1360002,3031914181.8217487,82814183.734778702,82449786.973929301,{"$f":"SUM(AI79:AI97)","v":100000},1701.3490367424072,1693.9067414917076,21603.894466169448,21507.999340600065,30443.730441360003,30319.141818217486,828.14183734778703,824.49786973929304]
["SIMD Q2",null,"N/A",null,"male",2,null,{"$f":"SUM(H117:H135)","v":427953},{"$f":"SUM(I117:I135)","v":0},{"$f":"SUM(J117:J135)","v":32356},{"$f":"SUMIF(K117:K135,\">0\")","v":5260.4663315150992},5236.8619127659003,74375.323361864415,74040.060288110006,118658.03163586698,118172.53792980689,2927.3952480072003,2914.3016570917998,null,null,null,null,null,null,null,null,{"$f":"SUMIF(AA117:AA135,\">0\")","v":120463493.93477827},{"$f":"SUMIF(AB117:AB135,\">0\")","v":119924847.37394343},1520892228.4842114,1514038902.6963358,2474842818.0149999,2464710014.1520929,58206116.840812691,57945871.943620861,{"$f":"SUM(AI117:AI135)","v":100000},1204.6349393477826,1199.2484737394343,15208.922284842114,15140.389026963358,24748.42818015,24647.100141520928,582.06116840812695,579.45871943620864]
["SIMD Q3",null,"N/A",null,"male",3,null,{"$f":"SUM(H155:H173)","v":438885},{"$f":"SUM(I155:I173)","v":0},{"$f":"SUM(J155:J173)","v":33184},{"$f":"SUMIF(K155:K173,\">0\")","v":4631.6448114229006},4611.0009305226995,64197.688983722393,63910.743383549103,108874.90089295481,108430.40209741991,2568.0136957185005,2556.6573313213999,null,null,null,null,null,null,null,null,{"$f":"SUMIF(AA155:AA173,\">0\")","v":97898234.318488717},{"$f":"SUMIF(AB155:AB173,\">0\")","v":97462621.693120837},1232823195.8340478,1227311315.6548638,2139685920.5679998,2130945486.9959662,47146897.809745505,46938411.127276838,{"$f":"SUM(AI155:AI173)","v":100000},{"$f":"AA19/$AI19","v":978.98234318488721},{"$f":"AB19/$AI19","v":974.62621693120832},{"$f":"AC19/$AI19","v":12328.231958340479},{"$f":"AD19/$AI19","v":12273.113156548638},21396.859205679997,21309.454869959663,471.46897809745508,469.38411127276839]
["SIMD Q4",null,"N/A",null,"male",4,null,{"$f":"SUM(H193:H211)","v":442000},{"$f":"SUM(I193:I211)","v":0},{"$f":"SUM(J193:J211)","v":33420},{"$f":"SUMIF(K193:K211,\">0\")","v":3675.3747280472999},3659.2103912476005,51392.480363994902,51164.692943756498,96488.785523970117,96095.761056265997,2064.0045573269999,2054.9045752532002,null,null,null,null,null,null,null,null,{"$f":"SUMIF(AA193:AA211,\">0\")","v":77996362.124844193},{"$f":"SUMIF(AB193:AB211,\">0\")","v":77654057.770460755},980008509.36989439,975662836.49994266,1887278918.7550004,1879588394.964319,37455305.482195921,37290023.800871164,{"$f":"SUM(AI193:AI211)","v":100000},779.96362124844188,776.54057770460759,9800.0850936989445,9756.6283649994275,18872.789187550003,18795.88394964319,374.55305482195922,372.90023800871165]
["SIMD Q5 (least deprived)",null,"N/A",null,"male",5,null,{"$f":"SUM(H231:H249)","v":435668},{"$f":"SUM(I231:I249)","v":0},{"$f":"SUM(J231:J249)","v":32941},{"$f":"SUMIF(K231:K249,\">0\")","v":2633.7171507043995},2621.9504873210003,36604.655170488601,36440.999254762704,83333.021717049385,82993.214288017596,1450.2460936083999,1443.8378861463002,null,null,null,null,null,null,null,null,{"$f":"SUMIF(AA231:AA249,\">0\")","v":57653400.895780429},{"$f":"SUMIF(AB231:AB249,\">0\")","v":57395788.071457379},722628890.09169257,719396624.06503487,1678619442.506,1671772132.6263335,27598098.022141129,27476196.043814175,{"$f":"SUM(AI231:AI249)","v":100000},{"$f":"AA21/$AI21","v":576.5340089578043},573.95788071457378,7226.2889009169257,7193.9662406503485,16786.194425059999,16717.721326263334,275.9809802214113,274.76196043814173]
[null,"Female 0-4",2.0384007,81.468401,"female","ALL",null,{"$f":"SUM(H60,H98,H136,H174,H212)","v":0},0,0,{"$f":"SUM(K60,K98,K136,K174,K212)","v":{"$error":"#VALUE!"}},{"$error":"#VALUE!"},{"$error":"#VALUE!"},{"$error":"#VALUE!"},{"$error":"#VALUE!"},{"$error":"#VALUE!"},{"$error":"#VALUE!"},{"$error":"#VALUE!"},null,null,null,null,null,null,null,null,{"$f":"SUM(AA60,AA98,AA136,AA174,AA212)","v":{"$error":"#VALUE!"}},{"$error":"#VALUE!"},{"$error":"#VALUE!"},{"$error":"#VALUE!"},{"$error":"#VALUE!"},{"$error":"#VALUE!"},{"$error":"#VALUE!"},{"$error":"#VALUE!"},25000,{"$error":"#VALUE!"},{"$error":"#VALUE!"},{"$error":"#VALUE!"},{"$error":"#VALUE!"},{"$error":"#VALUE!"},{"$error":"#VALUE!"},{"$error":"#VALUE!"},{"$error":"#VALUE!"}]
[null,"Female 5-9",6.9792794999999996,81.439279999999997,"female","ALL",null,{"$f":"SUM(H61,H99,H137,H175,H213)","v":0},0,0,{"$f":"SUM(K61,K99,K137,K175,K213)","v":{"$error":"#VALUE!"}},{"$error":"#VALUE!"},{"$f":"SUM(M61,M99,M137,M175,M213)","v":{"$error":"#VALUE!"}},{"$error":"#VALUE!"},{"$error":"#VALUE!"},{"$error":"#VALUE!"},{"$error":"#VALUE!"},{"$error":"#VALUE!"},null,null,null,null,null,null,null,null,{"$f":"SUM(AA61,AA99,AA137,AA175,AA213)","v":{"$error":"#VALUE!"}},{"$error":"#VALUE!"},{"$error":"#VALUE!"},{"$error":"#VALUE!"},{"$error":"#VALUE!"},{"$error":"#VALUE!"},{"$error":"#VALUE!"},{"$error":"#VALUE!"},27500,{"$error":"#VALUE!"},{"$error":"#VALUE!"},{"$error":"#VALUE!"},{"$error":"#VALUE!"},{"$error":"#VALUE!"},{"$error":"#VALUE!"},{"$error":"#VALUE!"},{"$error":"#VALUE!"}]
[null,"Female 10-15",12.478312000000001,81.948309999999992,"female","ALL",null,{"$f":"SUM(H62,H100,H138,H176,H214)","v":0},0,0,{"$f":"SUM(K62,K100,K138,K176,K214)","v":{"$error":"#VALUE!"}},{"$f":"SUM(L62,L100,L138,L176,L214)","v":{"$error":"#VALUE!"}},{"$error":"#VALUE!"},{"$error":"#VALUE!"},{"$f":"SUM(O62,O100,O138,O176,O214)","v":{"$error":"#VALUE!"}},{"$f":"SUM(P62,P100,P138,P176,P214)","v":{"$error":"#VALUE!"}},{"$error":"#VALUE!"},{"$error":"#VALUE!"},null,null,null,null,null,null,null,null,{"$f":"SUM(AA62,AA100,AA138,AA176,AA214)","v":{"$error":"#VALUE!"}},{"$error":"#VALUE!"},{"$error":"#VALUE!"},{"$error":"#VALUE!"},{"$error":"#VALUE!"},{"$error":"#VALUE!"},{"$error":"#VALUE!"},{"$error":"#VALUE!"},33000,{"$error":"#VALUE!"},{"$error":"#VALUE!"},{"$error":"#VALUE!"},{"$error":"#VALUE!"},{"$error":"#VALUE!"},{"$error":"#VALUE!"},{"$error":"#VALUE!"},{"$error":"#VALUE!"}]
["All quintiles","Female 16-19",17.570053000000001,81.100049999999996,"female","ALL",null,{"$f":"SUM(H63,H101,H139,H177,H215)","v":118803},0,8982,22.937505855199998,22.840810658399999,1434.2821723132001,1428.2358219472999,12465.290273103001,12415.032360672702,22.937505855199998,22.840810658399999,null,null,null,null,null,null,null,null,{"$f":"SUM(AA63,AA101,AA139,AA177,AA215)","v":426137.63162388443},424341.64770808734,26646384.827029727,26534081.958161395,231245008.5,230312713.91680014,426137.63162388443,424341.64770808734,22000,19.369892346540201,19.288256714003971,1211.199310319533,1206.0946344618817,10511.13675,10468.759723490915,19.369892346540201,19.288256714003971]
[null,"Female 20-24",22.077057,81.667060000000006,"female","ALL",null,{"$f":"SUM(H64,H102,H140,H178,H216)","v":182279},0,13782,51.9808124694,51.761718419200001,3045.5559585245996,3032.7192374660003,21506.627044283003,21419.912005436097,51.9808124694,51.761718419200001,null,null,null,null,null,null,null,null,{"$f":"SUM(AA64,AA102,AA140,AA178,AA216)","v":852526.66230306448},848933.60826023575,49949539.701916739,49739022.654766634,353188002.77999997,351763967.30959022,852526.66230306448,848933.60826023575,30000,28.41755541010215,28.297786942007857,1664.9846567305581,1657.9674218255545,11772.933426,11725.46557698634,28.41755541010215,28.297786942007857]
[null,"Female 25-29",26.975186999999998,81.645189999999999,"female","ALL",null,{"$f":"SUM(H65,H103,H141,H179,H217)","v":187975},0,14212,84.832982211100003,84.464881280500009,4552.9864097686004,4533.2304317190001,25701.254892726301,25597.082659977401,84.832982211100003,84.464881280500009,null,null,null,null,null,null,null,null,{"$f":"SUM(AA65,AA103,AA141,AA179,AA217)","v":1293008.5068723918},1287400.2944075398,69395770.442865431,69094777.663052246,399497115.36000001,397877986.62836587,1293008.5068723918,1287400.2944075398,30000,43.100283562413061,42.913343146917995,2313.1923480955143,2303.159255435075,13316.570512,13262.599554278862,43.100283562413061,42.913343146917995]
[null,"Female 30-34",31.999904999999998,81.799899999999994,"female","ALL",null,{"$f":"SUM(H66,H104,H142,H180,H218)","v":179608},0,13580,122.8545101986,122.3215616903,5995.2994834191004,5969.2915988788009,27681.461214470404,27569.259150712602,122.8545101986,122.3215616903,null,null,null,null,null,null,null,null,{"$f":"SUM(AA66,AA104,AA142,AA180,AA218)","v":2147392.4397973437},2138080.1596623105,104792740.32514751,104338301.10111955,491095913.10000002,489105459.84958279,2147392.4397973437,2138080.1596623105,32500,66.073613532225963,65.787081835763402,3224.3920100045389,3210.409264649832,15110.643480000001,15049.398764602547,66.073613532225963,65.787081835763402]
[null,"Female 35-39",36.918118,81.898120000000006,"female","ALL",null,{"$f":"SUM(H67,H105,H143,H181,H219)","v":166485},0,12587,168.2348480224,167.51322164479998,7398.9689524947999,7367.2318229647008,28578.8459945453,28463.283323108401,168.2348480224,167.51322164479998,null,null,null,null,null,null,null,null,{"$f":"SUM(AA67,AA105,AA143,AA181,AA219)","v":3513020.6290603452},3497959.7421343997,154502654.29211423,153840276.45498934,598519214.23000002,596099231.8451941,3513020.6290603452,3497959.7421343997,35000,100.37201797315272,99.941706918125703,4414.3615512032638,4395.4364701425529,17100.548977999999,17031.406624148403,100.37201797315272,99.941706918125703]
[null,"Female 40-44",42.077438000000001,82.30744,"female","ALL",null,{"$f":"SUM(H68,H106,H144,H182,H220)","v":172709},0,13057,265.84911936249995,264.71015705790001,10429.261484289102,10384.5799908017,33419.637561234005,33284.5217132084,265.84911936249995,264.71015705790001,null,null,null,null,null,null,null,null,{"$f":"SUM(AA68,AA106,AA144,AA182,AA220)","v":5446512.0137916524},5423175.1076086368,213666677.19407022,212751170.31783637,681457961.73000002,678702754.62820268,5446512.0137916524,5423175.1076086368,35000,155.61462896547579,154.94786021738963,6104.7622055448637,6078.6048662238964,19470.227478000001,19391.507275091506,155.61462896547579,154.94786021738963]
[null,"Female 45-49",47.025772000000003,82.585769999999997,"female","ALL",null,{"$f":"SUM(H69,H107,H145,H183,H221)","v":202829},0,15336,475.68079478409993,473.66445227109995,16439.527316377,16369.842523160201,44462.663781813499,44283.302217922297,475.68079478409993,473.66445227109995,null,null,null,null,null,null,null,null,{"$f":"SUM(AA69,AA107,AA145,AA183,AA221)","v":8292695.1677753758},8257523.1342079742,286595528.41292828,285379983.00317949,771783001.00999999,768669263.77225614,8292695.1677753758,8257523.1342079742,35000,236.93414765072501,235.92923240594212,8188.4436689408085,8153.7138000908426,22050.942886000001,21961.978964921604,236.93414765072501,235.92923240594212]
[null,"Female 50-54",51.990825999999998,82.980829999999997,"female","ALL",null,{"$f":"SUM(H70,H108,H146,H184,H222)","v":209262},0,15821,746.87534148069994,743.71413185969993,22398.7944785076,22303.989789329,51924.448520960301,51715.014531989691,746.87534148069994,743.71413185969993,null,null,null,null,null,null,null,null,{"$f":"SUM(AA70,AA108,AA146,AA184,AA222)","v":12640998.635327641},12587452.986687848,379103599.6374712,377497765.4205817,874448019.83000016,870920454.30365801,12640998.635327641,12587452.986687848,35000,361.17138958078976,359.64151390536711,10831.531418213463,10785.650440588048,24984.229138000006,24883.441551533087,361.17138958078976,359.64151390536711]
[null,"Female 55-59",56.953040999999999,83.473039999999997,"female","ALL",null,{"$f":"SUM(H71,H109,H147,H185,H223)","v":190084},0,14371,1032.7168751685001,1028.3331085077,26354.933621583295,26243.059900783403,53414.8733387307,53199.20453570439,1032.7168751685001,1028.3331085077,null,null,null,null,null,null,null,null,{"$f":"SUM(AA71,AA109,AA147,AA185,AA223)","v":17881835.40642992},17805876.831049148,456344421.69025701,454405958.92249745,919934892.56499994,916220006.4677434,17881835.40642992,17805876.831049148,32500,550.21032019784366,547.8731332630507,14041.366821238676,13981.721812999922,28305.689001999999,28191.384814392106,550.21032019784366,547.8731332630507]
[null,"Female 60-64",61.947387999999997,84.167389999999997,"female","ALL",null,{"$f":"SUM(H72,H110,H148,H186,H224)","v":165146},0,12487,1358.5167690225001,1352.7666139772,28827.728555690999,28705.710254129503,52377.011972582302,52165.523177964504,1358.5167690225001,1352.7666139772,null,null,null,null,null,null,null,null,{"$f":"SUM(AA72,AA110,AA148,AA186,AA224)","v":25199593.176889386},25092829.082994901,534735417.61277938,532469883.32681167,962839226.39999986,958950601.29054308,25199593.176889386,25092829.082994901,30000,839.98643922964618,836.42763609983001,17824.513920425979,17748.996110893724,32094.640879999995,31965.020043018103,839.98643922964618,836.42763609983001]
[null,"Female 65-69",67.063927000000007,85.193929999999995,"female","ALL",null,{"$f":"SUM(H73,H111,H149,H187,H225)","v":164057},0,12404,2067.1114987898995,2058.1886866661998,35409.626175605503,35256.778377158,58973.220499182193,58734.027228315201,2067.1114987898995,2058.1886866661998,null,null,null,null,null,null,null,null,{"$f":"SUM(AA73,AA111,AA149,AA187,AA225)","v":35600732.303076856},35446895.99128969,609840651.15390372,607205434.67147946,1003826931.03,999754383.4511658,35600732.303076856,35446895.99128969,27500,1294.5720837482493,1288.9780360468978,22176.023678323771,22080.197624417437,36502.797491999998,36354.704852769668,1294.5720837482493,1288.9780360468978]
[null,"Female 70-74",71.938164,86.248159999999999,"female","ALL",null,{"$f":"SUM(H74,H112,H150,H188,H226)","v":127150},0,9614,2427.9541418273998,2417.5383106092004,32316.059915906102,32177.425244055303,51815.942235666997,51605.7606922204,2427.9541418273998,2417.5383106092004,null,null,null,null,null,null,null,null,{"$f":"SUM(AA74,AA112,AA150,AA188,AA226)","v":48801216.356352784},48591712.80650346,649543994.49818957,646755503.08771157,1031603609.2000002,1027418228.1263638,48801216.356352784,48591712.80650346,25000,1952.0486542541114,1943.6685122601384,25981.759779927583,25870.220123508461,41264.144368000008,41096.729125054553,1952.0486542541114,1943.6685122601384]
[null,"Female 75-79",76.942824999999999,87.812830000000005,"female","ALL",null,{"$f":"SUM(H75,H113,H151,H189,H227)","v":104331},0,7888,3079.0358944246004,3065.5522180180001,30390.099673150398,30257.015719598799,48655.3933290477,48456.811534732798,0,0,null,null,null,null,null,null,null,null,{"$f":"SUM(AA75,AA113,AA151,AA189,AA227)","v":59406335.763854243},59146281.014405698,586340831.02092242,583774089.34359026,935996664.24000001,932176532.14015245,0,0,20000,2970.316788192712,2957.3140507202847,29317.041551046121,29188.704467179512,46799.833211999998,46608.826607007621,0,0]
[null,"Female 80-84",81.856712000000002,89.736710000000002,"female","ALL",null,{"$f":"SUM(H76,H114,H152,H190,H228)","v":80217},0,6064,3571.8429199134998,3556.4487772991006,24574.272145319097,24468.3604749203,42391.156082702597,42218.15946553211,0,0,null,null,null,null,null,null,null,null,{"$f":"SUM(AA76,AA114,AA152,AA190,AA228)","v":55891741.958199538},55650991.823534988,384535072.88892996,382878712.44393778,661963668.95000005,659262314.13084745,0,0,12500,4471.3393566559635,4452.0793458827993,30762.805831114398,30630.296995515022,52957.093516000001,52740.985130467794,0,0]
[null,"Female 85-89",86.730819999999994,92.220819999999989,"female","ALL",null,{"$f":"SUM(H77,H115,H153,H191,H229)","v":49691},0,3757,3275.6700337017,3261.8774009426998,14707.7584513206,14645.829530232599,29525.065473962801,29404.557238005,0,0,null,null,null,null,null,null,null,null,{"$f":"SUM(AA77,AA115,AA153,AA191,AA229)","v":50089144.36982464},49878455.727441944,224900258.22051203,223954266.21621239,448983820.05000007,447151167.71195304,0,0,7500,6678.5525826432849,6650.4607636589262,29986.701096068271,29860.56882882832,59864.509340000011,59620.155694927074,0,0]
[null,"Female 90+",92.779342999999997,96.279340000000005,"female","ALL",null,{"$f":"SUM(H78,H116,H154,H192,H230)","v":29050},0,2196,3078.9597644840997,3066.5718478305998,7697.3901743309998,7666.4204198609996,19930.146163744299,19848.824633300599,0,0,null,null,null,null,null,null,null,null,{"$f":"SUM(AA78,AA116,AA154,AA192,AA230)","v":54412450.463483915},54194223.823302187,136030962.92135912,135485396.97558483,348509125.86000001,347086884.09479553,0,0,5000,10882.490092696782,10838.844764660438,27206.192584271823,27097.079395116965,69701.825171999997,69417.376818959106,0,0]
[null,"Male 0-4",2.0320822999999999,77.402082000000007,"male","ALL",null,{"$f":"SUM(H79,H117,H155,H193,H231)","v":0},0,0,{"$error":"#VALUE!"},{"$error":"#VALUE!"},{"$error":"#VALUE!"},{"$error":"#VALUE!"},{"$error":"#VALUE!"},{"$error":"#VALUE!"},{"$error":"#VALUE!"},{"$error":"#VALUE!"},null,null,null,null,null,null,null,null,{"$f":"SUM(AA79,AA117,AA155,AA193,AA231)","v":{"$error":"#VALUE!"}},{"$error":"#VALUE!"},{"$error":"#VALUE!"},{"$error":"#VALUE!"},{"$error":"#VALUE!"},{"$error":"#VALUE!"},{"$error":"#VALUE!"},{"$error":"#VALUE!"},25000,{"$error":"#VALUE!"},{"$error":"#VALUE!"},{"$error":"#VALUE!"},{"$error":"#VALUE!"},{"$error":"#VALUE!"},{"$error":"#VALUE!"},{"$error":"#VALUE!"},{"$error":"#VALUE!"}]
[null,"Male 5-9",6.9784756000000003,77.398476000000002,"male","ALL",null,{"$f":"SUM(H80,H118,H156,H194,H232)","v":0},0,0,{"$error":"#VALUE!"},{"$error":"#VALUE!"},{"$error":"#VALUE!"},{"$error":"#VALUE!"},{"$error":"#VALUE!"},{"$error":"#VALUE!"},{"$error":"#VALUE!"},{"$error":"#VALUE!"},null,null,null,null,null,null,null,null,{"$f":"SUM(AA80,AA118,AA156,AA194,AA232)","v":{"$error":"#VALUE!"}},{"$error":"#VALUE!"},{"$error":"#VALUE!"},{"$error":"#VALUE!"},{"$error":"#VALUE!"},{"$error":"#VALUE!"},{"$error":"#VALUE!"},{"$error":"#VALUE!"},27500,{"$error":"#VALUE!"},{"$error":"#VALUE!"},{"$error":"#VALUE!"},{"$error":"#VALUE!"},{"$error":"#VALUE!"},{"$error":"#VALUE!"},{"$error":"#VALUE!"},{"$error":"#VALUE!"}]
[null,"Male 10-15",12.471144000000001,77.921140000000008,"male","ALL",null,{"$f":"SUM(H81,H119,H157,H195,H233)","v":0},0,0,{"$error":"#VALUE!"},{"$error":"#VALUE!"},{"$error":"#VALUE!"},{"$error":"#VALUE!"},{"$error":"#VALUE!"},{"$error":"#VALUE!"},{"$error":"#VALUE!"},{"$error":"#VALUE!"},null,null,null,null,null,null,null,null,{"$f":"SUM(AA81,AA119,AA157,AA195,AA233)","v":{"$error":"#VALUE!"}},{"$error":"#VALUE!"},{"$error":"#VALUE!"},{"$error":"#VALUE!"},{"$error":"#VALUE!"},{"$error":"#VALUE!"},{"$error":"#VALUE!"},{"$error":"#VALUE!"},33000,{"$error":"#VALUE!"},{"$error":"#VALUE!"},{"$error":"#VALUE!"},{"$error":"#VALUE!"},{"$error":"#VALUE!"},{"$error":"#VALUE!"},{"$error":"#VALUE!"},{"$error":"#VALUE!"}]
[null,"Male 16-19",17.556318000000001,77.07632000000001,"male","ALL",null,{"$f":"SUM(H82,H120,H158,H196,H234)","v":124418},0,9406,56.983853765199996,56.721943863500002,3334.6952363072996,3319.3682683359002,8826.1892314548004,8790.1230249799992,56.983853765199996,56.721943863500002,null,null,null,null,null,null,null,null,{"$f":"SUM(AA82,AA120,AA158,AA196,AA234)","v":1013122.1056860695},1008467.294365931,59287907.650994614,59015508.083228745,156551621.59999999,155911951.11835954,1013122.1056860695,1008467.294365931,22000,46.051004803912249,45.839422471178679,2694.904893227028,2682.5230946922156,7115.9827999999998,7086.9068690163422,46.051004803912249,45.839422471178679]
[null,"Male 20-24",22.054632000000002,77.704629999999995,"male","ALL",null,{"$f":"SUM(H83,H121,H159,H197,H235)","v":181688},0,13736,117.53148696219999,116.99129167080001,6423.0955274213002,6393.5738558267003,15171.5733622719,15109.574071205499,117.53148696219999,116.99129167080001,null,null,null,null,null,null,null,null,{"$f":"SUM(AA83,AA121,AA159,AA197,AA235)","v":1940008.1087697104},1931095.9265310778,106021439.26424924,105534388.52273262,250437460.62000003,249414127.88536903,1940008.1087697104,1931095.9265310778,30000,64.666936958990348,64.369864217702599,3534.0479754749745,3517.8129507577537,8347.9153540000007,8313.8042628456351,64.666936958990348,64.369864217702599]
[null,"Male 25-29",26.959762999999999,77.789760000000001,"male","ALL",null,{"$f":"SUM(H84,H122,H160,H198,H236)","v":186149},0,14074,180.07212359290003,179.23977784280001,8972.9933784178993,8931.5175921872997,18844.707746336899,18767.597925315898,180.07212359290003,179.23977784280001,null,null,null,null,null,null,null,null,{"$f":"SUM(AA84,AA122,AA160,AA198,AA236)","v":2809045.0811252971},2796065.0593107883,139974707.96533912,139327913.51725981,298066844.88,296847241.59690124,2809045.0811252971,2796065.0593107883,30000,93.634836037509899,93.202168643692943,4665.8235988446377,4644.2637839086601,9935.5614960000003,9894.9080532300413,93.634836037509899,93.202168643692943]
[null,"Male 30-34",31.981521999999998,78.061520000000002,"male","ALL",null,{"$f":"SUM(H85,H123,H161,H199,H237)","v":172305},0,13029,242.7441954494,241.62289916680001,10942.907845370601,10892.359811193601,20810.1130147968,20724.9541351195,242.7441954494,241.62289916680001,null,null,null,null,null,null,null,null,{"$f":"SUM(AA85,AA123,AA161,AA199,AA237)","v":4444909.2229324644},4424376.7725203028,200376498.87997773,199450896.05646265,385911765.13499999,384332519.12450325,4444909.2229324644,4424376.7725203028,32500,136.76643762869122,136.13466992370164,6165.4307347685453,6136.950647891158,11874.208157999999,11825.615973061638,136.76643762869122,136.13466992370164]
[null,"Male 35-39",36.926009999999998,78.336009999999987,"male","ALL",null,{"$f":"SUM(H86,H124,H162,H200,H238)","v":161268},0,12193,321.66731876890003,320.18359228630004,12998.5763514513,12938.618964289401,22880.108764238601,22786.489326389001,321.66731876890003,320.18359228630004,null,null,null,null,null,null,null,null,{"$f":"SUM(AA86,AA124,AA162,AA200,AA238)","v":6950348.7099569133},6918290.6072645951,280863591.36935997,279568123.43956262,495329032.51999998,493302292.62348664,6950348.7099569133,6918290.6072645951,35000,198.58139171305467,197.66544592184559,8024.6740391245703,7987.6606697017887,14152.258071999999,14094.351217813904,198.58139171305467,197.66544592184559]
[null,"Male 40-44",42.067703000000002,78.907700000000006,"male","ALL",null,{"$f":"SUM(H87,H125,H163,H201,H239)","v":164929},0,12470,475.95470632170003,473.76138881750001,17058.2152467056,16979.606753935099,27796.411228545301,27682.675674324,475.95470632170003,473.76138881750001,null,null,null,null,null,null,null,null,{"$f":"SUM(AA87,AA125,AA163,AA201,AA239)","v":10241126.302313069},10193935.699929349,367041935.95152134,365350624.90366203,594504097.52999997,592071552.11068428,10241126.302313069,10193935.699929349,35000,292.60360863751623,291.2553057122671,10486.912455757752,10438.589282961771,16985.831357999999,16916.330060305267,292.60360863751623,291.2553057122671]
[null,"Male 45-49",47.038155000000003,79.418149999999997,"male","ALL",null,{"$f":"SUM(H88,H126,H164,H202,H240)","v":189422},0,14323,794.77777102269999,791.19765914159996,24940.122480803399,24827.778587875098,38076.879094208001,37921.6009134735,794.77777102269999,791.19765914159996,null,null,null,null,null,null,null,null,{"$f":"SUM(AA88,AA126,AA164,AA202,AA240)","v":14892462.717930006},14825402.070298119,467325405.62632871,465221042.83894444,709212168.1400001,706320129.60472512,14892462.717930006,14825402.070298119,35000,425.49893479800016,423.58291629423195,13352.154446466535,13292.029795398412,20263.204804000005,20180.575131563575,425.49893479800016,423.58291629423195]
[null,"Male 50-54",51.998646000000001,79.988649999999993,"male","ALL",null,{"$f":"SUM(H89,H127,H165,H203,H241)","v":197429},0,14927,1202.1268095537998,1196.7219097426,32445.407398364201,32299.529130840398,47294.710130008105,47101.8579008495,1202.1268095537998,1196.7219097426,null,null,null,null,null,null,null,null,{"$f":"SUM(AA89,AA127,AA165,AA203,AA241)","v":21632406.613407325},21535189.706612613,583858741.02548826,581234856.32223308,845753788.74000001,842305286.24500144,21632406.613407325,21535189.706612613,35000,618.06876038306643,615.29113447464613,16681.678315013949,16606.710180635229,24164.393963999999,24065.865321285757,618.06876038306643,615.29113447464613]
[null,"Male 55-59",56.950867000000002,80.660870000000003,"male","ALL",null,{"$f":"SUM(H90,H128,H166,H204,H242)","v":180737},0,13666,1595.2192830158999,1588.2479758371001,36227.434702949104,36069.116296004402,51591.136928716893,51381.831362685298,1595.2192830158999,1588.2479758371001,null,null,null,null,null,null,null,null,{"$f":"SUM(AA90,AA128,AA166,AA204,AA242)","v":29144253.052736305},29016852.490910392,661866074.26040351,658972807.11913133,936266656.77999997,932467875.49751949,29144253.052736305,29016852.490910392,32500,896.74624777650172,892.82623048955054,20365.109977243184,20276.086372896349,28808.204824,28691.319246077524,896.74624777650172,892.82623048955054]
[null,"Male 60-64",61.942988999999997,81.612989999999996,"male","ALL",null,{"$f":"SUM(H91,H129,H167,H205,H243)","v":156406},0,11826,1989.7367905269002,1981.0751904751,37148.387868874001,36986.675787245302,53033.3207283355,52818.1767491641,1989.7367905269002,1981.0751904751,null,null,null,null,null,null,null,null,{"$f":"SUM(AA91,AA129,AA167,AA205,AA243)","v":39119425.639465325},38949099.941951036,730359715.80824304,727179734.86532581,1031793595.7400001,1027607395.0237172,39119425.639465325,38949099.941951036,30000,1303.9808546488441,1298.3033313983678,24345.32386027477,24239.32449551086,34393.119858000005,34253.579834123906,1303.9808546488441,1298.3033313983678]
[null,"Male 65-69",67.054419999999993,82.954419999999999,"male","ALL",null,{"$f":"SUM(H92,H130,H168,H206,H244)","v":153467},0,11604,2843.7525101765004,2831.1937049564999,42371.912401629794,42184.786203851996,62174.331774444901,61921.148096541496,2843.7525101765004,2831.1937049564999,null,null,null,null,null,null,null,null,{"$f":"SUM(AA92,AA130,AA168,AA206,AA244)","v":52552496.671612844},52320403.73153498,783032200.40703058,779574015.59987402,1133962873.1749997,1129344662.3414719,52552496.671612844,52320403.73153498,27500,1910.9998789677397,1902.5601356921811,28473.898196619295,28348.146021813602,41235.013569999988,41067.078630598975,1910.9998789677397,1902.5601356921811]
[null,"Male 70-74",71.891098,84.341099999999997,"male","ALL",null,{"$f":"SUM(H93,H131,H169,H207,H245)","v":111869},0,8458,2972.2587826968002,2959.2385333069001,34032.369006395806,33883.287124841103,53814.804399198903,53595.6759920357,2972.2587826968002,2959.2385333069001,null,null,null,null,null,null,null,null,{"$f":"SUM(AA93,AA131,AA169,AA207,AA245)","v":68480997.663738623},68181110.588283166,784107560.21179962,780673852.59806359,1223954579.8000002,1218970237.7321496,68480997.663738623,68181110.588283166,25000,2739.2399065495451,2727.2444235313264,31364.302408471984,31226.954103922544,48958.183192000004,48758.809509285988,2739.2399065495451,2727.2444235313264]
[null,"Male 75-79",76.907700000000006,86.357700000000008,"male","ALL",null,{"$f":"SUM(H94,H132,H170,H208,H246)","v":82515},0,6239,3202.3287842713999,3187.6299291727,27059.6782270933,26935.472901509402,47629.863037836702,47433.835182073002,0,0,null,null,null,null,null,null,null,null,{"$f":"SUM(AA94,AA132,AA170,AA208,AA246)","v":79435207.12166892},79070546.852934763,671227500.17810142,668146120.90730047,1170005851.5599999,1165189352.0621982,0,0,20000,3971.7603560834459,3953.5273426467384,33561.375008905074,33407.306045365025,58500.292578000001,58259.467603109908,0,0]
[null,"Male 80-84",81.797089,88.627089999999995,"male","ALL",null,{"$f":"SUM(H95,H133,H171,H209,H247)","v":56201},0,4250,3100.3531049503999,3086.3960071772003,18075.061702214,17993.6918082392,38436.063031124599,38277.862446024592,0,0,null,null,null,null,null,null,null,null,{"$f":"SUM(AA95,AA133,AA171,AA209,AA247)","v":71057005.363062426},70737330.499053836,414262412.32366067,412398707.546817,869840774.2249999,866259640.95251751,0,0,12500,5684.5604290449937,5658.986439924307,33140.992985892852,32991.896603745357,69587.261937999996,69300.771276201398,0,0]
[null,"Male 85-89",86.630752999999999,91.420750000000012,"male","ALL",null,{"$f":"SUM(H96,H134,H172,H210,H248)","v":28287},0,2139,2194.2786448501001,2184.6706604925002,8316.3094811459996,8279.8952492546996,22836.6916996447,22742.722072609798,0,0,null,null,null,null,null,null,null,null,{"$f":"SUM(AA96,AA134,AA172,AA210,AA248)","v":60496205.255842969},60231833.630080834,229280436.43103066,228278468.76250836,619589003.44500005,617038616.27678859,0,0,7500,8066.1607007790626,8030.9111506774443,30570.724857470756,30437.12916833445,82611.867126000012,82271.815503571808,0,0]
[null,"Male 90+",92.215477000000007,95.515479999999997,"male","ALL",null,{"$f":"SUM(H97,H135,H173,H211,H249)","v":12017},0,908,1384.1660154709,1378.3829498476,3183.5859880812,3170.2849197982996,11815.7848009063,11767.182214129398,0,0,null,null,null,null,null,null,null,null,{"$f":"SUM(AA97,AA135,AA173,AA211,AA249)","v":59937375.317884058},59687988.186571419,137856143.04326206,137282551.89307767,503620030.09000003,501547330.36506748,0,0,5000,{"$f":"AA59/$AI59","v":11987.475063576812},11937.597637314284,{"$f":"AC59/$AI59","v":27571.228608652415},27456.510378615534,100724.006018,100309.46607301349,0,0]
[null,"Female 0-4",2.0384007,81.468401,"female",1,{"$f":"HLOOKUP(Calculations!$E$2,'Prevalence Rates'!$C$3:$BC$249,'Prevalence Rates'!$BD60,FALSE)","v":0},{"$f":"HLOOKUP(Calculations!$E$2,'Population 2016'!$C$3:$BC$249,'Population 2016'!BD60,FALSE)","v":0},0,{"$f":"HLOOKUP(Results!E$4,Targeting!$C$3:$F$249,Targeting!$G60,FALSE)","v":0},{"$f":"IF(AND(OR(Calculations!$E$2=\"Orkney Health Board\",Calculations!$E$2=\"Orkney Islands Local Authority\"),$F60=1),0,IF(AND(OR(Calculations!$E$2=\"Shetland Health Board\",Calculations!$E$2=\"Western Isles Health Board\",Calculations!$E$2=\"Shetland Islands Local Authority\",Calculations!$E$2=\"Eilean Siar Local Authority\"),OR($F60=1,$F60=5)),0,new_ci(VALUE(LEFT(Options!$B$24,2)),$C60,$E60,$F60,2016,$I60,1,$H60,$G60*$H60,Options!B8)))","v":{"$error":"#VALUE!"}},{"$f":"IF(AND(OR(Calculations!$E$2=\"Orkney Health Board\",Calculations!$E$2=\"Orkney Islands Local Authority\"),$F60=1),0,IF(AND(OR(Calculations!$E$2=\"Shetland Health Board\",Calculations!$E$2=\"Western Isles Health Board\",Calculations!$E$2=\"Shetland Islands Local Authority\",Calculations!$E$2=\"Eilean Siar Local Authority\"),OR($F60=1,$F60=5)),0,new_ci(VALUE(LEFT(Options!$B$24,2)),$C60,$E60,$F60,2016,$I60+$J60,1,$H60,$G60*$H60,Options!B8)))","v":{"$error":"#VALUE!"}},{"$f":"IF(AND(OR(Calculations!$E$2=\"Orkney Health Board\",Calculations!$E$2=\"Orkney Islands Local Authority\"),$F60=1),0,IF(AND(OR(Calculations!$E$2=\"Shetland Health Board\",Calculations!$E$2=\"Western Isles Health Board\",Calculations!$E$2=\"Shetland Islands Local Authority\",Calculations!$E$2=\"Eilean Siar Local Authority\"),OR($F60=1,$F60=5)),0,new_yllv2(VALUE(LEFT(Options!$B$24,2)),$C60,$D60,$E60,$F60,2016,$I60,1,$H60,$G60*$H60,Options!B8)))","v":{"$error":"#VALUE!"}},{"$f":"IF(AND(OR(Calculations!$E$2=\"Orkney Health Board\",Calculations!$E$2=\"Orkney Islands Local Authority\"),$F60=1),0,IF(AND(OR(Calculations!$E$2=\"Shetland Health Board\",Calculations!$E$2=\"Western Isles Health Board\",Calculations!$E$2=\"Shetland Islands Local Authority\",Calculations!$E$2=\"Eilean Siar Local Authority\"),OR($F60=1,$F60=5)),0,new_yllv2(VALUE(LEFT(Options!$B$24,2)),$C60,$D60,$E60,$F60,2016,$I60+$J60,1,$H60,$G60*$H60,Options!B8)))","v":{"$error":"#VALUE!"}},{"$f":"IF(AND(OR(Calculations!$E$2=\"Orkney Health Board\",Calculations!$E$2=\"Orkney Islands Local Authority\"),$F60=1),0,IF(AND(OR(Calculations!$E$2=\"Shetland Health Board\",Calculations!$E$2=\"Western Isles Health Board\",Calculations!$E$2=\"Shetland Islands Local Authority\",Calculations!$E$2=\"Eilean Siar Local Authority\"),OR($F60=1,$F60=5)),0,hosp_count(VALUE(LEFT(Options!$B$24,2)),$C60,$E60,$F60,2016,$I60,1,$H60,$G60*$H60, Options!B8)))","v":{"$error":"#VALUE!"}},{"$f":"IF(AND(OR(Calculations!$E$2=\"Orkney Health Board\",Calculations!$E$2=\"Orkney Islands Local Authority\"),$F60=1),0,IF(AND(OR(Calculations!$E$2=\"Shetland Health Board\",Calculations!$E$2=\"Western Isles Health Board\",Calculations!$E$2=\"Shetland Islands Local Authority\",Calculations!$E$2=\"Eilean Siar Local Authority\"),OR($F60=1,$F60=5)),0,hosp_count(VALUE(LEFT(Options!$B$24,2)),$C60,$E60,$F60,2016,$I60+$J60,1,$H60,$G60*$H60, Options!B8)))","v":{"$error":"#VALUE!"}},{"$f":"IF(AND(OR(Calculations!$E$2=\"Orkney Health Board\",Calculations!$E$2=\"Orkney Islands Local Authority\"),$F60=1),0,IF(AND(OR(Calculations!$E$2=\"Shetland Health Board\",Calculations!$E$2=\"Western Isles Health Board\",Calculations!$E$2=\"Shetland Islands Local Authority\",Calculations!$E$2=\"Eilean Siar Local Authority\"),OR($F60=1,$F60=5)),0,prem_mort(VALUE(LEFT(Options!$B$24,2)),$C60,$E60,$F60,2016,$I60,1,$H60,$G60*$H60,Options!B8)))","v":{"$error":"#VALUE!"}},{"$f":"IF(AND(OR(Calculations!$E$2=\"Orkney Health Board\",Calculations!$E$2=\"Orkney Islands Local Authority\"),$F60=1),0,IF(AND(OR(Calculations!$E$2=\"Shetland Health Board\",Calculations!$E$2=\"Western Isles Health Board\",Calculations!$E$2=\"Shetland Islands Local Authority\",Calculations!$E$2=\"Eilean Siar Local Authority\"),OR($F60=1,$F60=5)),0,prem_mort(VALUE(LEFT(Options!$B$24,2)),$C60,$E60,$F60,2016,$I60+$J60,1,$H60,$G60*$H60,Options!B8)))","v":{"$error":"#VALUE!"}},{"$f":"K60*100000/$H60","v":{"$error":"#VALUE!"}},{"$error":"#VALUE!"},{"$error":"#VALUE!"},{"$error":"#VALUE!"},{"$error":"#VALUE!"},{"$error":"#VALUE!"},{"$error":"#VALUE!"},{"$error":"#VALUE!"},{"$f":"S60*$AI60","v":{"$error":"#VALUE!"}},{"$f":"T60*$AI60","v":{"$error":"#VALUE!"}},{"$f":"U60*$AI60","v":{"$error":"#VALUE!"}},{"$f":"V60*$AI60","v":{"$error":"#VALUE!"}},{"$f":"W60*$AI60","v":{"$error":"#VALUE!"}},{"$f":"X60*$AI60","v":{"$error":"#VALUE!"}},{"$f":"Y60*$AI60","v":{"$error":"#VALUE!"}},{"$f":"Z60*$AI60","v":{"$error":"#VALUE!"}},5000]
[null,"Female 5-9",6.9792794999999996,81.439279999999997,"female",1,{"$f":"HLOOKUP(Calculations!$E$2,'Prevalence Rates'!$C$3:$BC$249,'Prevalence Rates'!$BD61,FALSE)","v":0},{"$f":"HLOOKUP(Calculations!$E$2,'Population 2016'!$C$3:$BC$249,'Population 2016'!BD61,FALSE)","v":0},0,{"$f":"HLOOKUP(Results!E$4,Targeting!$C$3:$F$249,Targeting!$G61,FALSE)","v":0},{"$f":"IF(AND(OR(Calculations!$E$2=\"Orkney Health Board\",Calculations!$E$2=\"Orkney Islands Local Authority\"),$F61=1),0,IF(AND(OR(Calculations!$E$2=\"Shetland Health Board\",Calculations!$E$2=\"Western Isles Health Board\",Calculations!$E$2=\"Shetland Islands Local Authority\",Calculations!$E$2=\"Eilean Siar Local Authority\"),OR($F61=1,$F61=5)),0,new_ci(VALUE(LEFT(Options!$B$24,2)),$C61,$E61,$F61,2016,$I61,1,$H61,$G61*$H61,Options!B8)))","v":{"$error":"#VALUE!"}},{"$f":"IF(AND(OR(Calculations!$E$2=\"Orkney Health Board\",Calculations!$E$2=\"Orkney Islands Local Authority\"),$F61=1),0,IF(AND(OR(Calculations!$E$2=\"Shetland Health Board\",Calculations!$E$2=\"Western Isles Health Board\",Calculations!$E$2=\"Shetland Islands Local Authority\",Calculations!$E$2=\"Eilean Siar Local Authority\"),OR($F61=1,$F61=5)),0,new_ci(VALUE(LEFT(Options!$B$24,2)),$C61,$E61,$F61,2016,$I61+$J61,1,$H61,$G61*$H61,Options!B8)))","v":{"$error":"#VALUE!"}},{"$f":"IF(AND(OR(Calculations!$E$2=\"Orkney Health Board\",Calculations!$E$2=\"Orkney Islands Local Authority\"),$F61=1),0,IF(AND(OR(Calculations!$E$2=\"Shetland Health Board\",Calculations!$E$2=\"Western Isles Health Board\",Calculations!$E$2=\"Shetland Islands Local Authority\",Calculations!$E$2=\"Eilean Siar Local Authority\"),OR($F61=1,$F61=5)),0,new_yllv2(VALUE(LEFT(Options!$B$24,2)),$C61,$D61,$E61,$F61,2016,$I61,1,$H61,$G61*$H61,Options!B8)))","v":{"$error":"#VALUE!"}},{"$f":"IF(AND(OR(Calculations!$E$2=\"Orkney Health Board\",Calculations!$E$2=\"Orkney Islands Local Authority\"),$F61=1),0,IF(AND(OR(Calculations!$E$2=\"Shetland Health Board\",Calculations!$E$2=\"Western Isles Health Board\",Calculations!$E$2=\"Shetland Islands Local Authority\",Calculations!$E$2=\"Eilean Siar Local Authority\"),OR($F61=1,$F61=5)),0,new_yllv2(VALUE(LEFT(Options!$B$24,2)),$C61,$D61,$E61,$F61,2016,$I61+$J61,1,$H61,$G61*$H61,Options!B8)))","v":{"$error":"#VALUE!"}},{"$f":"IF(AND(OR(Calculations!$E$2=\"Orkney Health Board\",Calculations!$E$2=\"Orkney Islands Local Authority\"),$F61=1),0,IF(AND(OR(Calculations!$E$2=\"Shetland Health Board\",Calculations!$E$2=\"Western Isles Health Board\",Calculations!$E$2=\"Shetland Islands Local Authority\",Calculations!$E$2=\"Eilean Siar Local Authority\"),OR($F61=1,$F61=5)),0,hosp_count(VALUE(LEFT(Options!$B$24,2)),$C61,$E61,$F61,2016,$I61,1,$H61,$G61*$H61, Options!B8)))","v":{"$error":"#VALUE!"}},{"$f":"IF(AND(OR(Calculations!$E$2=\"Orkney Health Board\",Calculations!$E$2=\"Orkney Islands Local Authority\"),$F61=1),0,IF(AND(OR(Calculations!$E$2=\"Shetland Health Board\",Calculations!$E$2=\"Western Isles Health Board\",Calculations!$E$2=\"Shetland Islands Local Authority\",Calculations!$E$2=\"Eilean Siar Local Authority\"),OR($F61=1,$F61=5)),0,hosp_count(VALUE(LEFT(Options!$B$24,2)),$C61,$E61,$F61,2016,$I61+$J61,1,$H61,$G61*$H61, Options!B8)))","v":{"$error":"#VALUE!"}},{"$f":"IF(AND(OR(Calculations!$E$2=\"Orkney Health Board\",Calculations!$E$2=\"Orkney Islands Local Authority\"),$F61=1),0,IF(AND(OR(Calculations!$E$2=\"Shetland Health Board\",Calculations!$E$2=\"Western Isles Health Board\",Calculations!$E$2=\"Shetland Islands Local Authority\",Calculations!$E$2=\"Eilean Siar Local Authority\"),OR($F61=1,$F61=5)),0,prem_mort(VALUE(LEFT(Options!$B$24,2)),$C61,$E61,$F61,2016,$I61,1,$H61,$G61*$H61,Options!B8)))","v":{"$error":"#VALUE!"}},{"$f":"IF(AND(OR(Calculations!$E$2=\"Orkney Health Board\",Calculations!$E$2=\"Orkney Islands Local Authority\"),$F61=1),0,IF(AND(OR(Calculations!$E$2=\"Shetland Health Board\",Calculations!$E$2=\"Western Isles Health Board\",Calculations!$E$2=\"Shetland Islands Local Authority\",Calculations!$E$2=\"Eilean Siar Local Authority\"),OR($F61=1,$F61=5)),0,prem_mort(VALUE(LEFT(Options!$B$24,2)),$C61,$E61,$F61,2016,$I61+$J61,1,$H61,$G61*$H61,Options!B8)))","v":{"$error":"#VALUE!"}},{"$f":"K61*100000/$H61","v":{"$error":"#VALUE!"}},{"$f":"L61*100000/$H61","v":{"$error":"#VALUE!"}},{"$f":"M61*100000/$H61","v":{"$error":"#VALUE!"}},{"$f":"N61*100000/$H61","v":{"$error":"#VALUE!"}},{"$f":"O61*100000/$H61","v":{"$error":"#VALUE!"}},{"$f":"P61*100000/$H61","v":{"$error":"#VALUE!"}},{"$f":"Q61*100000/$H61","v":{"$error":"#VALUE!"}},{"$f":"R61*100000/$H61","v":{"$error":"#VALUE!"}},{"$f":"S61*$AI61","v":{"$error":"#VALUE!"}},{"$f":"T61*$AI61","v":{"$error":"#VALUE!"}},{"$f":"U61*$AI61","v":{"$error":"#VALUE!"}},{"$error":"#VALUE!"},{"$error":"#VALUE!"},{"$error":"#VALUE!"},{"$error":"#VALUE!"},{"$error":"#VALUE!"},5500]
[null,"Female 10-15",12.478312000000001,81.948309999999992,"female",1,{"$f":"HLOOKUP(Calculations!$E$2,'Prevalence Rates'!$C$3:$BC$249,'Prevalence Rates'!$BD62,FALSE)","v":0},{"$f":"HLOOKUP(Calculations!$E$2,'Population 2016'!$C$3:$BC$249,'Population 2016'!BD62,FALSE)","v":0},0,{"$f":"HLOOKUP(Results!E$4,Targeting!$C$3:$F$249,Targeting!$G62,FALSE)","v":0},{"$f":"IF(AND(OR(Calculations!$E$2=\"Orkney Health Board\",Calculations!$E$2=\"Orkney Islands Local Authority\"),$F62=1),0,IF(AND(OR(Calculations!$E$2=\"Shetland Health Board\",Calculations!$E$2=\"Western Isles Health Board\",Calculations!$E$2=\"Shetland Islands Local Authority\",Calculations!$E$2=\"Eilean Siar Local Authority\"),OR($F62=1,$F62=5)),0,new_ci(VALUE(LEFT(Options!$B$24,2)),$C62,$E62,$F62,2016,$I62,1,$H62,$G62*$H62,Options!B8)))","v":{"$error":"#VALUE!"}},{"$f":"IF(AND(OR(Calculations!$E$2=\"Orkney Health Board\",Calculations!$E$2=\"Orkney Islands Local Authority\"),$F62=1),0,IF(AND(OR(Calculations!$E$2=\"Shetland Health Board\",Calculations!$E$2=\"Western Isles Health Board\",Calculations!$E$2=\"Shetland Islands Local Authority\",Calculations!$E$2=\"Eilean Siar Local Authority\"),OR($F62=1,$F62=5)),0,new_ci(VALUE(LEFT(Options!$B$24,2)),$C62,$E62,$F62,2016,$I62+$J62,1,$H62,$G62*$H62,Options!B8)))","v":{"$error":"#VALUE!"}},{"$f":"IF(AND(OR(Calculations!$E$2=\"Orkney Health Board\",Calculations!$E$2=\"Orkney Islands Local Authority\"),$F62=1),0,IF(AND(OR(Calculations!$E$2=\"Shetland Health Board\",Calculations!$E$2=\"Western Isles Health Board\",Calculations!$E$2=\"Shetland Islands Local Authority\",Calculations!$E$2=\"Eilean Siar Local Authority\"),OR($F62=1,$F62=5)),0,new_yllv2(VALUE(LEFT(Options!$B$24,2)),$C62,$D62,$E62,$F62,2016,$I62,1,$H62,$G62*$H62,Options!B8)))","v":{"$error":"#VALUE!"}},{"$f":"IF(AND(OR(Calculations!$E$2=\"Orkney Health Board\",Calculations!$E$2=\"Orkney Islands Local Authority\"),$F62=1),0,IF(AND(OR(Calculations!$E$2=\"Shetland Health Board\",Calculations!$E$2=\"Western Isles Health Board\",Calculations!$E$2=\"Shetland Islands Local Authority\",Calculations!$E$2=\"Eilean Siar Local Authority\"),OR($F62=1,$F62=5)),0,new_yllv2(VALUE(LEFT(Options!$B$24,2)),$C62,$D62,$E62,$F62,2016,$I62+$J62,1,$H62,$G62*$H62,Options!B8)))","v":{"$error":"#VALUE!"}},{"$f":"IF(AND(OR(Calculations!$E$2=\"Orkney Health Board\",Calculations!$E$2=\"Orkney Islands Local Authority\"),$F62=1),0,IF(AND(OR(Calculations!$E$2=\"Shetland Health Board\",Calculations!$E$2=\"Western Isles Health Board\",Calculations!$E$2=\"Shetland Islands Local Authority\",Calculations!$E$2=\"Eilean Siar Local Authority\"),OR($F62=1,$F62=5)),0,hosp_count(VALUE(LEFT(Options!$B$24,2)),$C62,$E62,$F62,2016,$I62,1,$H62,$G62*$H62, Options!B8)))","v":{"$error":"#VALUE!"}},{"$f":"IF(AND(OR(Calculations!$E$2=\"Orkney Health Board\",Calculations!$E$2=\"Orkney Islands Local Authority\"),$F62=1),0,IF(AND(OR(Calculations!$E$2=\"Shetland Health Board\",Calculations!$E$2=\"Western Isles Health Board\",Calculations!$E$2=\"Shetland Islands Local Authority\",Calculations!$E$2=\"Eilean Siar Local Authority\"),OR($F62=1,$F62=5)),0,hosp_count(VALUE(LEFT(Options!$B$24,2)),$C62,$E62,$F62,2016,$I62+$J62,1,$H62,$G62*$H62, Options!B8)))","v":{"$error":"#VALUE!"}},{"$f":"IF(AND(OR(Calculations!$E$2=\"Orkney Health Board\",Calculations!$E$2=\"Orkney Islands Local Authority\"),$F62=1),0,IF(AND(OR(Calculations!$E$2=\"Shetland Health Board\",Calculations!$E$2=\"Western Isles Health Board\",Calculations!$E$2=\"Shetland Islands Local Authority\",Calculations!$E$2=\"Eilean Siar Local Authority\"),OR($F62=1,$F62=5)),0,prem_mort(VALUE(LEFT(Options!$B$24,2)),$C62,$E62,$F62,2016,$I62,1,$H62,$G62*$H62,Options!B8)))","v":{"$error":"#VALUE!"}},{"$f":"IF(AND(OR(Calculations!$E$2=\"Orkney Health Board\",Calculations!$E$2=\"Orkney Islands Local Authority\"),$F62=1),0,IF(AND(OR(Calculations!$E$2=\"Shetland Health Board\",Calculations!$E$2=\"Western Isles Health Board\",Calculations!$E$2=\"Shetland Islands Local Authority\",Calculations!$E$2=\"Eilean Siar Local Authority\"),OR($F62=1,$F62=5)),0,prem_mort(VALUE(LEFT(Options!$B$24,2)),$C62,$E62,$F62,2016,$I62+$J62,1,$H62,$G62*$H62,Options!B8)))","v":{"$error":"#VALUE!"}},{"$error":"#VALUE!"},{"$error":"#VALUE!"},{"$error":"#VALUE!"},{"$error":"#VALUE!"},{"$error":"#VALUE!"},{"$error":"#VALUE!"},{"$error":"#VALUE!"},{"$error":"#VALUE!"},{"$error":"#VALUE!"},{"$error":"#VALUE!"},{"$error":"#VALUE!"},{"$error":"#VALUE!"},{"$error":"#VALUE!"},{"$error":"#VALUE!"},{"$error":"#VALUE!"},{"$error":"#VALUE!"},6600]
["SIMD Q1 (most deprived)","Female 16-19",17.570053000000001,81.100049999999996,"female",1,{"$f":"HLOOKUP(Calculations!$E$2,'Prevalence Rates'!$C$3:$BC$249,'Prevalence Rates'!$BD63,FALSE)","v":0.19749328521260184},{"$f":"HLOOKUP(Calculations!$E$2,'Population 2016'!$C$3:$BC$249,'Population 2016'!BD63,FALSE)","v":24142},0,{"$f":"HLOOKUP(Results!E$4,Targeting!$C$3:$F$249,Targeting!$G63,FALSE)","v":1825},{"$f":"IF(AND(OR(Calculations!$E$2=\"Orkney Health Board\",Calculations!$E$2=\"Orkney Islands Local Authority\"),$F63=1),0,IF(AND(OR(Calculations!$E$2=\"Shetland Health Board\",Calculations!$E$2=\"Western Isles Health Board\",Calculations!$E$2=\"Shetland Islands Local Authority\",Calculations!$E$2=\"Eilean Siar Local Authority\"),OR($F63=1,$F63=5)),0,new_ci(VALUE(LEFT(Options!$B$24,2)),$C63,$E63,$F63,2016,$I63,1,$H63,$G63*$H63,Options!B8)))","v":7.6776713930999998},{"$f":"IF(AND(OR(Calculations!$E$2=\"Orkney Health Board\",Calculations!$E$2=\"Orkney Islands Local Authority\"),$F63=1),0,IF(AND(OR(Calculations!$E$2=\"Shetland Health Board\",Calculations!$E$2=\"Western Isles Health Board\",Calculations!$E$2=\"Shetland Islands Local Authority\",Calculations!$E$2=\"Eilean Siar Local Authority\"),OR($F63=1,$F63=5)),0,new_ci(VALUE(LEFT(Options!$B$24,2)),$C63,$E63,$F63,2016,$I63+$J63,1,$H63,$G63*$H63,Options!B8)))","v":7.6452028180999996},{"$f":"IF(AND(OR(Calculations!$E$2=\"Orkney Health Board\",Calculations!$E$2=\"Orkney Islands Local Authority\"),$F63=1),0,IF(AND(OR(Calculations!$E$2=\"Shetland Health Board\",Calculations!$E$2=\"Western Isles Health Board\",Calculations!$E$2=\"Shetland Islands Local Authority\",Calculations!$E$2=\"Eilean Siar Local Authority\"),OR($F63=1,$F63=5)),0,new_yllv2(VALUE(LEFT(Options!$B$24,2)),$C63,$D63,$E63,$F63,2016,$I63,1,$H63,$G63*$H63,Options!B8)))","v":480.08476917749999},{"$f":"IF(AND(OR(Calculations!$E$2=\"Orkney Health Board\",Calculations!$E$2=\"Orkney Islands Local Authority\"),$F63=1),0,IF(AND(OR(Calculations!$E$2=\"Shetland Health Board\",Calculations!$E$2=\"Western Isles Health Board\",Calculations!$E$2=\"Shetland Islands Local Authority\",Calculations!$E$2=\"Eilean Siar Local Authority\"),OR($F63=1,$F63=5)),0,new_yllv2(VALUE(LEFT(Options!$B$24,2)),$C63,$D63,$E63,$F63,2016,$I63+$J63,1,$H63,$G63*$H63,Options!B8)))","v":478.05450928020002},{"$f":"IF(AND(OR(Calculations!$E$2=\"Orkney Health Board\",Calculations!$E$2=\"Orkney Islands Local Authority\"),$F63=1),0,IF(AND(OR(Calculations!$E$2=\"Shetland Health Board\",Calculations!$E$2=\"Western Isles Health Board\",Calculations!$E$2=\"Shetland Islands Local Authority\",Calculations!$E$2=\"Eilean Siar Local Authority\"),OR($F63=1,$F63=5)),0,hosp_count(VALUE(LEFT(Options!$B$24,2)),$C63,$E63,$F63,2016,$I63,1,$H63,$G63*$H63, Options!B8)))","v":3441.2180067134},{"$f":"IF(AND(OR(Calculations!$E$2=\"Orkney Health Board\",Calculations!$E$2=\"Orkney Islands Local Authority\"),$F63=1),0,IF(AND(OR(Calculations!$E$2=\"Shetland Health Board\",Calculations!$E$2=\"Western Isles Health Board\",Calculations!$E$2=\"Shetland Islands Local Authority\",Calculations!$E$2=\"Eilean Siar Local Authority\"),OR($F63=1,$F63=5)),0,hosp_count(VALUE(LEFT(Options!$B$24,2)),$C63,$E63,$F63,2016,$I63+$J63,1,$H63,$G63*$H63, Options!B8)))","v":3427.3381795367},{"$f":"IF(AND(OR(Calculations!$E$2=\"Orkney Health Board\",Calculations!$E$2=\"Orkney Islands Local Authority\"),$F63=1),0,IF(AND(OR(Calculations!$E$2=\"Shetland Health Board\",Calculations!$E$2=\"Western Isles Health Board\",Calculations!$E$2=\"Shetland Islands Local Authority\",Calculations!$E$2=\"Eilean Siar Local Authority\"),OR($F63=1,$F63=5)),0,prem_mort(VALUE(LEFT(Options!$B$24,2)),$C63,$E63,$F63,2016,$I63,1,$H63,$G63*$H63,Options!B8)))","v":7.6776713930999998},{"$f":"IF(AND(OR(Calculations!$E$2=\"Orkney Health Board\",Calculations!$E$2=\"Orkney Islands Local Authority\"),$F63=1),0,IF(AND(OR(Calculations!$E$2=\"Shetland Health Board\",Calculations!$E$2=\"Western Isles Health Board\",Calculations!$E$2=\"Shetland Islands Local Authority\",Calculations!$E$2=\"Eilean Siar Local Authority\"),OR($F63=1,$F63=5)),0,prem_mort(VALUE(LEFT(Options!$B$24,2)),$C63,$E63,$F63,2016,$I63+$J63,1,$H63,$G63*$H63,Options!B8)))","v":7.6452028180999996},31.802134840112668,31.667644843426391,1988.5873961457212,1980.1777370565819,14254.071769999999,14196.579320423743,31.802134840112668,31.667644843426391,{"$f":"S63*$AI63","v":139929.39329649575},139337.63731107613,8749784.5430411734,8712782.0430489611,62717915.787999995,62464949.009864472,139929.39329649575,{"$f":"Z63*$AI63","v":139337.63731107613},4400]
[null,"Female 20-24",22.077057,81.667060000000006,"female",1,{"$f":"HLOOKUP(Calculations!$E$2,'Prevalence Rates'!$C$3:$BC$249,'Prevalence Rates'!$BD64,FALSE)","v":0.19749328521260184},{"$f":"HLOOKUP(Calculations!$E$2,'Population 2016'!$C$3:$BC$249,'Population 2016'!BD64,FALSE)","v":37624},0,{"$f":"HLOOKUP(Results!E$4,Targeting!$C$3:$F$249,Targeting!$G64,FALSE)","v":2845},{"$f":"IF(AND(OR(Calculations!$E$2=\"Orkney Health Board\",Calculations!$E$2=\"Orkney Islands Local Authority\"),$F64=1),0,IF(AND(OR(Calculations!$E$2=\"Shetland Health Board\",Calculations!$E$2=\"Western Isles Health Board\",Calculations!$E$2=\"Shetland Islands Local Authority\",Calculations!$E$2=\"Eilean Siar Local Authority\"),OR($F64=1,$F64=5)),0,new_ci(VALUE(LEFT(Options!$B$24,2)),$C64,$E64,$F64,2016,$I64,1,$H64,$G64*$H64,Options!B8)))","v":17.553782910300001},{"$f":"IF(AND(OR(Calculations!$E$2=\"Orkney Health Board\",Calculations!$E$2=\"Orkney Islands Local Authority\"),$F64=1),0,IF(AND(OR(Calculations!$E$2=\"Shetland Health Board\",Calculations!$E$2=\"Western Isles Health Board\",Calculations!$E$2=\"Shetland Islands Local Authority\",Calculations!$E$2=\"Eilean Siar Local Authority\"),OR($F64=1,$F64=5)),0,new_ci(VALUE(LEFT(Options!$B$24,2)),$C64,$E64,$F64,2016,$I64+$J64,1,$H64,$G64*$H64,Options!B8)))","v":17.479535522799999},{"$f":"IF(AND(OR(Calculations!$E$2=\"Orkney Health Board\",Calculations!$E$2=\"Orkney Islands Local Authority\"),$F64=1),0,IF(AND(OR(Calculations!$E$2=\"Shetland Health Board\",Calculations!$E$2=\"Western Isles Health Board\",Calculations!$E$2=\"Shetland Islands Local Authority\",Calculations!$E$2=\"Eilean Siar Local Authority\"),OR($F64=1,$F64=5)),0,new_yllv2(VALUE(LEFT(Options!$B$24,2)),$C64,$D64,$E64,$F64,2016,$I64,1,$H64,$G64*$H64,Options!B8)))","v":1028.4761933758},{"$f":"IF(AND(OR(Calculations!$E$2=\"Orkney Health Board\",Calculations!$E$2=\"Orkney Islands Local Authority\"),$F64=1),0,IF(AND(OR(Calculations!$E$2=\"Shetland Health Board\",Calculations!$E$2=\"Western Isles Health Board\",Calculations!$E$2=\"Shetland Islands Local Authority\",Calculations!$E$2=\"Eilean Siar Local Authority\"),OR($F64=1,$F64=5)),0,new_yllv2(VALUE(LEFT(Options!$B$24,2)),$C64,$D64,$E64,$F64,2016,$I64+$J64,1,$H64,$G64*$H64,Options!B8)))","v":1024.1260387195},{"$f":"IF(AND(OR(Calculations!$E$2=\"Orkney Health Board\",Calculations!$E$2=\"Orkney Islands Local Authority\"),$F64=1),0,IF(AND(OR(Calculations!$E$2=\"Shetland Health Board\",Calculations!$E$2=\"Western Isles Health Board\",Calculations!$E$2=\"Shetland Islands Local Authority\",Calculations!$E$2=\"Eilean Siar Local Authority\"),OR($F64=1,$F64=5)),0,hosp_count(VALUE(LEFT(Options!$B$24,2)),$C64,$E64,$F64,2016,$I64,1,$H64,$G64*$H64, Options!B8)))","v":6006.7410350919999},{"$f":"IF(AND(OR(Calculations!$E$2=\"Orkney Health Board\",Calculations!$E$2=\"Orkney Islands Local Authority\"),$F64=1),0,IF(AND(OR(Calculations!$E$2=\"Shetland Health Board\",Calculations!$E$2=\"Western Isles Health Board\",Calculations!$E$2=\"Shetland Islands Local Authority\",Calculations!$E$2=\"Eilean Siar Local Authority\"),OR($F64=1,$F64=5)),0,hosp_count(VALUE(LEFT(Options!$B$24,2)),$C64,$E64,$F64,2016,$I64+$J64,1,$H64,$G64*$H64, Options!B8)))","v":5982.5062896556001},{"$f":"IF(AND(OR(Calculations!$E$2=\"Orkney Health Board\",Calculations!$E$2=\"Orkney Islands Local Authority\"),$F64=1),0,IF(AND(OR(Calculations!$E$2=\"Shetland Health Board\",Calculations!$E$2=\"Western Isles Health Board\",Calculations!$E$2=\"Shetland Islands Local Authority\",Calculations!$E$2=\"Eilean Siar Local Authority\"),OR($F64=1,$F64=5)),0,prem_mort(VALUE(LEFT(Options!$B$24,2)),$C64,$E64,$F64,2016,$I64,1,$H64,$G64*$H64,Options!B8)))","v":17.553782910300001},{"$f":"IF(AND(OR(Calculations!$E$2=\"Orkney Health Board\",Calculations!$E$2=\"Orkney Islands Local Authority\"),$F64=1),0,IF(AND(OR(Calculations!$E$2=\"Shetland Health Board\",Calculations!$E$2=\"Western Isles Health Board\",Calculations!$E$2=\"Shetland Islands Local Authority\",Calculations!$E$2=\"Eilean Siar Local Authority\"),OR($F64=1,$F64=5)),0,prem_mort(VALUE(LEFT(Options!$B$24,2)),$C64,$E64,$F64,2016,$I64+$J64,1,$H64,$G64*$H64,Options!B8)))","v":17.479535522799999},46.655812540665529,46.458472046566023,2733.5641967249626,2722.0020165838296,15965.18455,15900.771554474803,46.655812540665529,46.458472046566023,279934.87524399318,278750.83227939613,16401385.180349775,16332012.099502977,95791107.299999997,95404629.32684882,279934.87524399318,278750.83227939613,6000]
[null,"Female 25-29",26.975186999999998,81.645189999999999,"female",1,{"$f":"HLOOKUP(Calculations!$E$2,'Prevalence Rates'!$C$3:$BC$249,'Prevalence Rates'!$BD65,FALSE)","v":0.11835241970922933},{"$f":"HLOOKUP(Calculations!$E$2,'Population 2016'!$C$3:$BC$249,'Population 2016'!BD65,FALSE)","v":45129},0,{"$f":"HLOOKUP(Results!E$4,Targeting!$C$3:$F$249,Targeting!$G65,FALSE)","v":3412},{"$f":"IF(AND(OR(Calculations!$E$2=\"Orkney Health Board\",Calculations!$E$2=\"Orkney Islands Local Authority\"),$F65=1),0,IF(AND(OR(Calculations!$E$2=\"Shetland Health Board\",Calculations!$E$2=\"Western Isles Health Board\",Calculations!$E$2=\"Shetland Islands Local Authority\",Calculations!$E$2=\"Eilean Siar Local Authority\"),OR($F65=1,$F65=5)),0,new_ci(VALUE(LEFT(Options!$B$24,2)),$C65,$E65,$F65,2016,$I65,1,$H65,$G65*$H65,Options!B8)))","v":31.9329491883},{"$f":"IF(AND(OR(Calculations!$E$2=\"Orkney Health Board\",Calculations!$E$2=\"Orkney Islands Local Authority\"),$F65=1),0,IF(AND(OR(Calculations!$E$2=\"Shetland Health Board\",Calculations!$E$2=\"Western Isles Health Board\",Calculations!$E$2=\"Shetland Islands Local Authority\",Calculations!$E$2=\"Eilean Siar Local Authority\"),OR($F65=1,$F65=5)),0,new_ci(VALUE(LEFT(Options!$B$24,2)),$C65,$E65,$F65,2016,$I65+$J65,1,$H65,$G65*$H65,Options!B8)))","v":31.793367339100001},{"$f":"IF(AND(OR(Calculations!$E$2=\"Orkney Health Board\",Calculations!$E$2=\"Orkney Islands Local Authority\"),$F65=1),0,IF(AND(OR(Calculations!$E$2=\"Shetland Health Board\",Calculations!$E$2=\"Western Isles Health Board\",Calculations!$E$2=\"Shetland Islands Local Authority\",Calculations!$E$2=\"Eilean Siar Local Authority\"),OR($F65=1,$F65=5)),0,new_yllv2(VALUE(LEFT(Options!$B$24,2)),$C65,$D65,$E65,$F65,2016,$I65,1,$H65,$G65*$H65,Options!B8)))","v":1713.8414787349},{"$f":"IF(AND(OR(Calculations!$E$2=\"Orkney Health Board\",Calculations!$E$2=\"Orkney Islands Local Authority\"),$F65=1),0,IF(AND(OR(Calculations!$E$2=\"Shetland Health Board\",Calculations!$E$2=\"Western Isles Health Board\",Calculations!$E$2=\"Shetland Islands Local Authority\",Calculations!$E$2=\"Eilean Siar Local Authority\"),OR($F65=1,$F65=5)),0,new_yllv2(VALUE(LEFT(Options!$B$24,2)),$C65,$D65,$E65,$F65,2016,$I65+$J65,1,$H65,$G65*$H65,Options!B8)))","v":1706.3501204695999},{"$f":"IF(AND(OR(Calculations!$E$2=\"Orkney Health Board\",Calculations!$E$2=\"Orkney Islands Local Authority\"),$F65=1),0,IF(AND(OR(Calculations!$E$2=\"Shetland Health Board\",Calculations!$E$2=\"Western Isles Health Board\",Calculations!$E$2=\"Shetland Islands Local Authority\",Calculations!$E$2=\"Eilean Siar Local Authority\"),OR($F65=1,$F65=5)),0,hosp_count(VALUE(LEFT(Options!$B$24,2)),$C65,$E65,$F65,2016,$I65,1,$H65,$G65*$H65, Options!B8)))","v":8149.6199866325996},{"$f":"IF(AND(OR(Calculations!$E$2=\"Orkney Health Board\",Calculations!$E$2=\"Orkney Islands Local Authority\"),$F65=1),0,IF(AND(OR(Calculations!$E$2=\"Shetland Health Board\",Calculations!$E$2=\"Western Isles Health Board\",Calculations!$E$2=\"Shetland Islands Local Authority\",Calculations!$E$2=\"Eilean Siar Local Authority\"),OR($F65=1,$F65=5)),0,hosp_count(VALUE(LEFT(Options!$B$24,2)),$C65,$E65,$F65,2016,$I65+$J65,1,$H65,$G65*$H65, Options!B8)))","v":8116.5382531506002},{"$f":"IF(AND(OR(Calculations!$E$2=\"Orkney Health Board\",Calculations!$E$2=\"Orkney Islands Local Authority\"),$F65=1),0,IF(AND(OR(Calculations!$E$2=\"Shetland Health Board\",Calculations!$E$2=\"Western Isles Health Board\",Calculations!$E$2=\"Shetland Islands Local Authority\",Calculations!$E$2=\"Eilean Siar Local Authority\"),OR($F65=1,$F65=5)),0,prem_mort(VALUE(LEFT(Options!$B$24,2)),$C65,$E65,$F65,2016,$I65,1,$H65,$G65*$H65,Options!B8)))","v":31.9329491883},{"$f":"IF(AND(OR(Calculations!$E$2=\"Orkney Health Board\",Calculations!$E$2=\"Orkney Islands Local Authority\"),$F65=1),0,IF(AND(OR(Calculations!$E$2=\"Shetland Health Board\",Calculations!$E$2=\"Western Isles Health Board\",Calculations!$E$2=\"Shetland Islands Local Authority\",Calculations!$E$2=\"Eilean Siar Local Authority\"),OR($F65=1,$F65=5)),0,prem_mort(VALUE(LEFT(Options!$B$24,2)),$C65,$E65,$F65,2016,$I65+$J65,1,$H65,$G65*$H65,Options!B8)))","v":31.793367339100001},70.759266077909984,70.449970837155703,3797.6500226792086,3781.0501461800613,18058.498940000001,17985.194117198698,70.759266077909984,70.449970837155703,424555.59646745992,422699.82502293424,22785900.136075251,22686300.87708037,108350993.64,107911164.70319219,424555.59646745992,422699.82502293424,6000]
[null,"Female 30-34",31.999904999999998,81.799899999999994,"female",1,{"$f":"HLOOKUP(Calculations!$E$2,'Prevalence Rates'!$C$3:$BC$249,'Prevalence Rates'!$BD66,FALSE)","v":0.11835241970922933},{"$f":"HLOOKUP(Calculations!$E$2,'Population 2016'!$C$3:$BC$249,'Population 2016'!BD66,FALSE)","v":41240},0,{"$f":"HLOOKUP(Results!E$4,Targeting!$C$3:$F$249,Targeting!$G66,FALSE)","v":3118},{"$f":"IF(AND(OR(Calculations!$E$2=\"Orkney Health Board\",Calculations!$E$2=\"Orkney Islands Local Authority\"),$F66=1),0,IF(AND(OR(Calculations!$E$2=\"Shetland Health Board\",Calculations!$E$2=\"Western Isles Health Board\",Calculations!$E$2=\"Shetland Islands Local Authority\",Calculations!$E$2=\"Eilean Siar Local Authority\"),OR($F66=1,$F66=5)),0,new_ci(VALUE(LEFT(Options!$B$24,2)),$C66,$E66,$F66,2016,$I66,1,$H66,$G66*$H66,Options!B8)))","v":44.732656850300003},{"$f":"IF(AND(OR(Calculations!$E$2=\"Orkney Health Board\",Calculations!$E$2=\"Orkney Islands Local Authority\"),$F66=1),0,IF(AND(OR(Calculations!$E$2=\"Shetland Health Board\",Calculations!$E$2=\"Western Isles Health Board\",Calculations!$E$2=\"Shetland Islands Local Authority\",Calculations!$E$2=\"Eilean Siar Local Authority\"),OR($F66=1,$F66=5)),0,new_ci(VALUE(LEFT(Options!$B$24,2)),$C66,$E66,$F66,2016,$I66+$J66,1,$H66,$G66*$H66,Options!B8)))","v":44.537185688699999},{"$f":"IF(AND(OR(Calculations!$E$2=\"Orkney Health Board\",Calculations!$E$2=\"Orkney Islands Local Authority\"),$F66=1),0,IF(AND(OR(Calculations!$E$2=\"Shetland Health Board\",Calculations!$E$2=\"Western Isles Health Board\",Calculations!$E$2=\"Shetland Islands Local Authority\",Calculations!$E$2=\"Eilean Siar Local Authority\"),OR($F66=1,$F66=5)),0,new_yllv2(VALUE(LEFT(Options!$B$24,2)),$C66,$D66,$E66,$F66,2016,$I66,1,$H66,$G66*$H66,Options!B8)))","v":2182.9534306313999},{"$f":"IF(AND(OR(Calculations!$E$2=\"Orkney Health Board\",Calculations!$E$2=\"Orkney Islands Local Authority\"),$F66=1),0,IF(AND(OR(Calculations!$E$2=\"Shetland Health Board\",Calculations!$E$2=\"Western Isles Health Board\",Calculations!$E$2=\"Shetland Islands Local Authority\",Calculations!$E$2=\"Eilean Siar Local Authority\"),OR($F66=1,$F66=5)),0,new_yllv2(VALUE(LEFT(Options!$B$24,2)),$C66,$D66,$E66,$F66,2016,$I66+$J66,1,$H66,$G66*$H66,Options!B8)))","v":2173.4144389225999},{"$f":"IF(AND(OR(Calculations!$E$2=\"Orkney Health Board\",Calculations!$E$2=\"Orkney Islands Local Authority\"),$F66=1),0,IF(AND(OR(Calculations!$E$2=\"Shetland Health Board\",Calculations!$E$2=\"Western Isles Health Board\",Calculations!$E$2=\"Shetland Islands Local Authority\",Calculations!$E$2=\"Eilean Siar Local Authority\"),OR($F66=1,$F66=5)),0,hosp_count(VALUE(LEFT(Options!$B$24,2)),$C66,$E66,$F66,2016,$I66,1,$H66,$G66*$H66, Options!B8)))","v":8450.6647051239997},{"$f":"IF(AND(OR(Calculations!$E$2=\"Orkney Health Board\",Calculations!$E$2=\"Orkney Islands Local Authority\"),$F66=1),0,IF(AND(OR(Calculations!$E$2=\"Shetland Health Board\",Calculations!$E$2=\"Western Isles Health Board\",Calculations!$E$2=\"Shetland Islands Local Authority\",Calculations!$E$2=\"Eilean Siar Local Authority\"),OR($F66=1,$F66=5)),0,hosp_count(VALUE(LEFT(Options!$B$24,2)),$C66,$E66,$F66,2016,$I66+$J66,1,$H66,$G66*$H66, Options!B8)))","v":8416.3606144862006},{"$f":"IF(AND(OR(Calculations!$E$2=\"Orkney Health Board\",Calculations!$E$2=\"Orkney Islands Local Authority\"),$F66=1),0,IF(AND(OR(Calculations!$E$2=\"Shetland Health Board\",Calculations!$E$2=\"Western Isles Health Board\",Calculations!$E$2=\"Shetland Islands Local Authority\",Calculations!$E$2=\"Eilean Siar Local Authority\"),OR($F66=1,$F66=5)),0,prem_mort(VALUE(LEFT(Options!$B$24,2)),$C66,$E66,$F66,2016,$I66,1,$H66,$G66*$H66,Options!B8)))","v":44.732656850300003},{"$f":"IF(AND(OR(Calculations!$E$2=\"Orkney Health Board\",Calculations!$E$2=\"Orkney Islands Local Authority\"),$F66=1),0,IF(AND(OR(Calculations!$E$2=\"Shetland Health Board\",Calculations!$E$2=\"Western Isles Health Board\",Calculations!$E$2=\"Shetland Islands Local Authority\",Calculations!$E$2=\"Eilean Siar Local Authority\"),OR($F66=1,$F66=5)),0,prem_mort(VALUE(LEFT(Options!$B$24,2)),$C66,$E66,$F66,2016,$I66+$J66,1,$H66,$G66*$H66,Options!B8)))","v":44.537185688699999},108.46910002497576,107.9951156370029,5293.2915388734236,5270.1611031100865,20491.427510000001,20408.245912915132,108.46910002497576,107.9951156370029,705049.15016234247,701968.25164051878,34406395.002677254,34256047.170215562,133194278.81500001,132653598.43394835,705049.15016234247,701968.25164051878,6500]
[null,"Female 35-39",36.918118,81.898120000000006,"female",1,{"$f":"HLOOKUP(Calculations!$E$2,'Prevalence Rates'!$C$3:$BC$249,'Prevalence Rates'!$BD67,FALSE)","v":0.11191344390495908},{"$f":"HLOOKUP(Calculations!$E$2,'Population 2016'!$C$3:$BC$249,'Population 2016'!BD67,FALSE)","v":35038},0,{"$f":"HLOOKUP(Results!E$4,Targeting!$C$3:$F$249,Targeting!$G67,FALSE)","v":2649},{"$f":"IF(AND(OR(Calculations!$E$2=\"Orkney Health Board\",Calculations!$E$2=\"Orkney Islands Local Authority\"),$F67=1),0,IF(AND(OR(Calculations!$E$2=\"Shetland Health Board\",Calculations!$E$2=\"Western Isles Health Board\",Calculations!$E$2=\"Shetland Islands Local Authority\",Calculations!$E$2=\"Eilean Siar Local Authority\"),OR($F67=1,$F67=5)),0,new_ci(VALUE(LEFT(Options!$B$24,2)),$C67,$E67,$F67,2016,$I67,1,$H67,$G67*$H67,Options!B8)))","v":57.728857164499999},{"$f":"IF(AND(OR(Calculations!$E$2=\"Orkney Health Board\",Calculations!$E$2=\"Orkney Islands Local Authority\"),$F67=1),0,IF(AND(OR(Calculations!$E$2=\"Shetland Health Board\",Calculations!$E$2=\"Western Isles Health Board\",Calculations!$E$2=\"Shetland Islands Local Authority\",Calculations!$E$2=\"Eilean Siar Local Authority\"),OR($F67=1,$F67=5)),0,new_ci(VALUE(LEFT(Options!$B$24,2)),$C67,$E67,$F67,2016,$I67+$J67,1,$H67,$G67*$H67,Options!B8)))","v":57.476029717099998},{"$f":"IF(AND(OR(Calculations!$E$2=\"Orkney Health Board\",Calculations!$E$2=\"Orkney Islands Local Authority\"),$F67=1),0,IF(AND(OR(Calculations!$E$2=\"Shetland Health Board\",Calculations!$E$2=\"Western Isles Health Board\",Calculations!$E$2=\"Shetland Islands Local Authority\",Calculations!$E$2=\"Eilean Siar Local Authority\"),OR($F67=1,$F67=5)),0,new_yllv2(VALUE(LEFT(Options!$B$24,2)),$C67,$D67,$E67,$F67,2016,$I67,1,$H67,$G67*$H67,Options!B8)))","v":2538.9152535523999},{"$f":"IF(AND(OR(Calculations!$E$2=\"Orkney Health Board\",Calculations!$E$2=\"Orkney Islands Local Authority\"),$F67=1),0,IF(AND(OR(Calculations!$E$2=\"Shetland Health Board\",Calculations!$E$2=\"Western Isles Health Board\",Calculations!$E$2=\"Shetland Islands Local Authority\",Calculations!$E$2=\"Eilean Siar Local Authority\"),OR($F67=1,$F67=5)),0,new_yllv2(VALUE(LEFT(Options!$B$24,2)),$C67,$D67,$E67,$F67,2016,$I67+$J67,1,$H67,$G67*$H67,Options!B8)))","v":2527.7959019100999},{"$f":"IF(AND(OR(Calculations!$E$2=\"Orkney Health Board\",Calculations!$E$2=\"Orkney Islands Local Authority\"),$F67=1),0,IF(AND(OR(Calculations!$E$2=\"Shetland Health Board\",Calculations!$E$2=\"Western Isles Health Board\",Calculations!$E$2=\"Shetland Islands Local Authority\",Calculations!$E$2=\"Eilean Siar Local Authority\"),OR($F67=1,$F67=5)),0,hosp_count(VALUE(LEFT(Options!$B$24,2)),$C67,$E67,$F67,2016,$I67,1,$H67,$G67*$H67, Options!B8)))","v":8125.2852417628001},{"$f":"IF(AND(OR(Calculations!$E$2=\"Orkney Health Board\",Calculations!$E$2=\"Orkney Islands Local Authority\"),$F67=1),0,IF(AND(OR(Calculations!$E$2=\"Shetland Health Board\",Calculations!$E$2=\"Western Isles Health Board\",Calculations!$E$2=\"Shetland Islands Local Authority\",Calculations!$E$2=\"Eilean Siar Local Authority\"),OR($F67=1,$F67=5)),0,hosp_count(VALUE(LEFT(Options!$B$24,2)),$C67,$E67,$F67,2016,$I67+$J67,1,$H67,$G67*$H67, Options!B8)))","v":8092.2862612968001},{"$f":"IF(AND(OR(Calculations!$E$2=\"Orkney Health Board\",Calculations!$E$2=\"Orkney Islands Local Authority\"),$F67=1),0,IF(AND(OR(Calculations!$E$2=\"Shetland Health Board\",Calculations!$E$2=\"Western Isles Health Board\",Calculations!$E$2=\"Shetland Islands Local Authority\",Calculations!$E$2=\"Eilean Siar Local Authority\"),OR($F67=1,$F67=5)),0,prem_mort(VALUE(LEFT(Options!$B$24,2)),$C67,$E67,$F67,2016,$I67,1,$H67,$G67*$H67,Options!B8)))","v":57.728857164499999},{"$f":"IF(AND(OR(Calculations!$E$2=\"Orkney Health Board\",Calculations!$E$2=\"Orkney Islands Local Authority\"),$F67=1),0,IF(AND(OR(Calculations!$E$2=\"Shetland Health Board\",Calculations!$E$2=\"Western Isles Health Board\",Calculations!$E$2=\"Shetland Islands Local Authority\",Calculations!$E$2=\"Eilean Siar Local Authority\"),OR($F67=1,$F67=5)),0,prem_mort(VALUE(LEFT(Options!$B$24,2)),$C67,$E67,$F67,2016,$I67+$J67,1,$H67,$G67*$H67,Options!B8)))","v":57.476029717099998},164.76070884325591,164.03912813830698,7246.176304447742,7214.4411836009476,23189.923060000001,23095.742511835153,164.76070884325591,164.03912813830698,1153324.9619027914,1148273.8969681489,50723234.131134197,50501088.285206631,162329461.42000002,161670197.58284608,1153324.9619027914,1148273.8969681489,7000]
[null,"Female 40-44",42.077438000000001,82.30744,"female",1,{"$f":"HLOOKUP(Calculations!$E$2,'Prevalence Rates'!$C$3:$BC$249,'Prevalence Rates'!$BD68,FALSE)","v":0.11191344390495908},{"$f":"HLOOKUP(Calculations!$E$2,'Population 2016'!$C$3:$BC$249,'Population 2016'!BD68,FALSE)","v":33663},0,{"$f":"HLOOKUP(Results!E$4,Targeting!$C$3:$F$249,Targeting!$G68,FALSE)","v":2545},{"$f":"IF(AND(OR(Calculations!$E$2=\"Orkney Health Board\",Calculations!$E$2=\"Orkney Islands Local Authority\"),$F68=1),0,IF(AND(OR(Calculations!$E$2=\"Shetland Health Board\",Calculations!$E$2=\"Western Isles Health Board\",Calculations!$E$2=\"Shetland Islands Local Authority\",Calculations!$E$2=\"Eilean Siar Local Authority\"),OR($F68=1,$F68=5)),0,new_ci(VALUE(LEFT(Options!$B$24,2)),$C68,$E68,$F68,2016,$I68,1,$H68,$G68*$H68,Options!B8)))","v":85.977317268299998},{"$f":"IF(AND(OR(Calculations!$E$2=\"Orkney Health Board\",Calculations!$E$2=\"Orkney Islands Local Authority\"),$F68=1),0,IF(AND(OR(Calculations!$E$2=\"Shetland Health Board\",Calculations!$E$2=\"Western Isles Health Board\",Calculations!$E$2=\"Shetland Islands Local Authority\",Calculations!$E$2=\"Eilean Siar Local Authority\"),OR($F68=1,$F68=5)),0,new_ci(VALUE(LEFT(Options!$B$24,2)),$C68,$E68,$F68,2016,$I68+$J68,1,$H68,$G68*$H68,Options!B8)))","v":85.6010687948},{"$f":"IF(AND(OR(Calculations!$E$2=\"Orkney Health Board\",Calculations!$E$2=\"Orkney Islands Local Authority\"),$F68=1),0,IF(AND(OR(Calculations!$E$2=\"Shetland Health Board\",Calculations!$E$2=\"Western Isles Health Board\",Calculations!$E$2=\"Shetland Islands Local Authority\",Calculations!$E$2=\"Eilean Siar Local Authority\"),OR($F68=1,$F68=5)),0,new_yllv2(VALUE(LEFT(Options!$B$24,2)),$C68,$D68,$E68,$F68,2016,$I68,1,$H68,$G68*$H68,Options!B8)))","v":3372.8903283899999},{"$f":"IF(AND(OR(Calculations!$E$2=\"Orkney Health Board\",Calculations!$E$2=\"Orkney Islands Local Authority\"),$F68=1),0,IF(AND(OR(Calculations!$E$2=\"Shetland Health Board\",Calculations!$E$2=\"Western Isles Health Board\",Calculations!$E$2=\"Shetland Islands Local Authority\",Calculations!$E$2=\"Eilean Siar Local Authority\"),OR($F68=1,$F68=5)),0,new_yllv2(VALUE(LEFT(Options!$B$24,2)),$C68,$D68,$E68,$F68,2016,$I68+$J68,1,$H68,$G68*$H68,Options!B8)))","v":3358.1301000221001},{"$f":"IF(AND(OR(Calculations!$E$2=\"Orkney Health Board\",Calculations!$E$2=\"Orkney Islands Local Authority\"),$F68=1),0,IF(AND(OR(Calculations!$E$2=\"Shetland Health Board\",Calculations!$E$2=\"Western Isles Health Board\",Calculations!$E$2=\"Shetland Islands Local Authority\",Calculations!$E$2=\"Eilean Siar Local Authority\"),OR($F68=1,$F68=5)),0,hosp_count(VALUE(LEFT(Options!$B$24,2)),$C68,$E68,$F68,2016,$I68,1,$H68,$G68*$H68, Options!B8)))","v":8888.1852506181003},{"$f":"IF(AND(OR(Calculations!$E$2=\"Orkney Health Board\",Calculations!$E$2=\"Orkney Islands Local Authority\"),$F68=1),0,IF(AND(OR(Calculations!$E$2=\"Shetland Health Board\",Calculations!$E$2=\"Western Isles Health Board\",Calculations!$E$2=\"Shetland Islands Local Authority\",Calculations!$E$2=\"Eilean Siar Local Authority\"),OR($F68=1,$F68=5)),0,hosp_count(VALUE(LEFT(Options!$B$24,2)),$C68,$E68,$F68,2016,$I68+$J68,1,$H68,$G68*$H68, Options!B8)))","v":8852.0885652572997},{"$f":"IF(AND(OR(Calculations!$E$2=\"Orkney Health Board\",Calculations!$E$2=\"Orkney Islands Local Authority\"),$F68=1),0,IF(AND(OR(Calculations!$E$2=\"Shetland Health Board\",Calculations!$E$2=\"Western Isles Health Board\",Calculations!$E$2=\"Shetland Islands Local Authority\",Calculations!$E$2=\"Eilean Siar Local Authority\"),OR($F68=1,$F68=5)),0,prem_mort(VALUE(LEFT(Options!$B$24,2)),$C68,$E68,$F68,2016,$I68,1,$H68,$G68*$H68,Options!B8)))","v":85.977317268299998},{"$f":"IF(AND(OR(Calculations!$E$2=\"Orkney Health Board\",Calculations!$E$2=\"Orkney Islands Local Authority\"),$F68=1),0,IF(AND(OR(Calculations!$E$2=\"Shetland Health Board\",Calculations!$E$2=\"Western Isles Health Board\",Calculations!$E$2=\"Shetland Islands Local Authority\",Calculations!$E$2=\"Eilean Siar Local Authority\"),OR($F68=1,$F68=5)),0,prem_mort(VALUE(LEFT(Options!$B$24,2)),$C68,$E68,$F68,2016,$I68+$J68,1,$H68,$G68*$H68,Options!B8)))","v":85.6010687948},255.4059865974512,254.28829514541189,10019.577365029854,9975.7303271309756,26403.425869999999,26296.196314224224,255.4059865974512,254.28829514541189,1787841.9061821585,1780018.0660178834,70137041.555208981,69830112.289916828,184823981.09,184073374.19956955,1787841.9061821585,1780018.0660178834,7000]
[null,"Female 45-49",47.025772000000003,82.585769999999997,"female",1,{"$f":"HLOOKUP(Calculations!$E$2,'Prevalence Rates'!$C$3:$BC$249,'Prevalence Rates'!$BD69,FALSE)","v":0.10984369714114665},{"$f":"HLOOKUP(Calculations!$E$2,'Population 2016'!$C$3:$BC$249,'Population 2016'!BD69,FALSE)","v":39197},0,{"$f":"HLOOKUP(Results!E$4,Targeting!$C$3:$F$249,Targeting!$G69,FALSE)","v":2964},{"$f":"IF(AND(OR(Calculations!$E$2=\"Orkney Health Board\",Calculations!$E$2=\"Orkney Islands Local Authority\"),$F69=1),0,IF(AND(OR(Calculations!$E$2=\"Shetland Health Board\",Calculations!$E$2=\"Western Isles Health Board\",Calculations!$E$2=\"Shetland Islands Local Authority\",Calculations!$E$2=\"Eilean Siar Local Authority\"),OR($F69=1,$F69=5)),0,new_ci(VALUE(LEFT(Options!$B$24,2)),$C69,$E69,$F69,2016,$I69,1,$H69,$G69*$H69,Options!B8)))","v":152.39582192660001},{"$f":"IF(AND(OR(Calculations!$E$2=\"Orkney Health Board\",Calculations!$E$2=\"Orkney Islands Local Authority\"),$F69=1),0,IF(AND(OR(Calculations!$E$2=\"Shetland Health Board\",Calculations!$E$2=\"Western Isles Health Board\",Calculations!$E$2=\"Shetland Islands Local Authority\",Calculations!$E$2=\"Eilean Siar Local Authority\"),OR($F69=1,$F69=5)),0,new_ci(VALUE(LEFT(Options!$B$24,2)),$C69,$E69,$F69,2016,$I69+$J69,1,$H69,$G69*$H69,Options!B8)))","v":151.7289417854},{"$f":"IF(AND(OR(Calculations!$E$2=\"Orkney Health Board\",Calculations!$E$2=\"Orkney Islands Local Authority\"),$F69=1),0,IF(AND(OR(Calculations!$E$2=\"Shetland Health Board\",Calculations!$E$2=\"Western Isles Health Board\",Calculations!$E$2=\"Shetland Islands Local Authority\",Calculations!$E$2=\"Eilean Siar Local Authority\"),OR($F69=1,$F69=5)),0,new_yllv2(VALUE(LEFT(Options!$B$24,2)),$C69,$D69,$E69,$F69,2016,$I69,1,$H69,$G69*$H69,Options!B8)))","v":5266.7993009917},{"$f":"IF(AND(OR(Calculations!$E$2=\"Orkney Health Board\",Calculations!$E$2=\"Orkney Islands Local Authority\"),$F69=1),0,IF(AND(OR(Calculations!$E$2=\"Shetland Health Board\",Calculations!$E$2=\"Western Isles Health Board\",Calculations!$E$2=\"Shetland Islands Local Authority\",Calculations!$E$2=\"Eilean Siar Local Authority\"),OR($F69=1,$F69=5)),0,new_yllv2(VALUE(LEFT(Options!$B$24,2)),$C69,$D69,$E69,$F69,2016,$I69+$J69,1,$H69,$G69*$H69,Options!B8)))","v":5243.7519246455004},{"$f":"IF(AND(OR(Calculations!$E$2=\"Orkney Health Board\",Calculations!$E$2=\"Orkney Islands Local Authority\"),$F69=1),0,IF(AND(OR(Calculations!$E$2=\"Shetland Health Board\",Calculations!$E$2=\"Western Isles Health Board\",Calculations!$E$2=\"Shetland Islands Local Authority\",Calculations!$E$2=\"Eilean Siar Local Authority\"),OR($F69=1,$F69=5)),0,hosp_count(VALUE(LEFT(Options!$B$24,2)),$C69,$E69,$F69,2016,$I69,1,$H69,$G69*$H69, Options!B8)))","v":11721.123672973999},{"$f":"IF(AND(OR(Calculations!$E$2=\"Orkney Health Board\",Calculations!$E$2=\"Orkney Islands Local Authority\"),$F69=1),0,IF(AND(OR(Calculations!$E$2=\"Shetland Health Board\",Calculations!$E$2=\"Western Isles Health Board\",Calculations!$E$2=\"Shetland Islands Local Authority\",Calculations!$E$2=\"Eilean Siar Local Authority\"),OR($F69=1,$F69=5)),0,hosp_count(VALUE(LEFT(Options!$B$24,2)),$C69,$E69,$F69,2016,$I69+$J69,1,$H69,$G69*$H69, Options!B8)))","v":11673.504137387001},{"$f":"IF(AND(OR(Calculations!$E$2=\"Orkney Health Board\",Calculations!$E$2=\"Orkney Islands Local Authority\"),$F69=1),0,IF(AND(OR(Calculations!$E$2=\"Shetland Health Board\",Calculations!$E$2=\"Western Isles Health Board\",Calculations!$E$2=\"Shetland Islands Local Authority\",Calculations!$E$2=\"Eilean Siar Local Authority\"),OR($F69=1,$F69=5)),0,prem_mort(VALUE(LEFT(Options!$B$24,2)),$C69,$E69,$F69,2016,$I69,1,$H69,$G69*$H69,Options!B8)))","v":152.39582192660001},{"$f":"IF(AND(OR(Calculations!$E$2=\"Orkney Health Board\",Calculations!$E$2=\"Orkney Islands Local Authority\"),$F69=1),0,IF(AND(OR(Calculations!$E$2=\"Shetland Health Board\",Calculations!$E$2=\"Western Isles Health Board\",Calculations!$E$2=\"Shetland Islands Local Authority\",Calculations!$E$2=\"Eilean Siar Local Authority\"),OR($F69=1,$F69=5)),0,prem_mort(VALUE(LEFT(Options!$B$24,2)),$C69,$E69,$F69,2016,$I69+$J69,1,$H69,$G69*$H69,Options!B8)))","v":151.7289417854},388.79460654284765,387.0932514871036,13436.740824531724,13377.941997207696,29903.1142,29781.626495361892,388.79460654284765,387.0932514871036,2721562.2457999336,2709652.7604097254,94057185.771722063,93645593.980453864,209321799.40000001,208471385.46753323,2721562.2457999336,2709652.7604097254,7000]
[null,"Female 50-54",51.990825999999998,82.980829999999997,"female",1,{"$f":"HLOOKUP(Calculations!$E$2,'Prevalence Rates'!$C$3:$BC$249,'Prevalence Rates'!$BD70,FALSE)","v":0.10984369714114665},{"$f":"HLOOKUP(Calculations!$E$2,'Population 2016'!$C$3:$BC$249,'Population 2016'!BD70,FALSE)","v":39704},0,{"$f":"HLOOKUP(Results!E$4,Targeting!$C$3:$F$249,Targeting!$G70,FALSE)","v":3002},{"$f":"IF(AND(OR(Calculations!$E$2=\"Orkney Health Board\",Calculations!$E$2=\"Orkney Islands Local Authority\"),$F70=1),0,IF(AND(OR(Calculations!$E$2=\"Shetland Health Board\",Calculations!$E$2=\"Western Isles Health Board\",Calculations!$E$2=\"Shetland Islands Local Authority\",Calculations!$E$2=\"Eilean Siar Local Authority\"),OR($F70=1,$F70=5)),0,new_ci(VALUE(LEFT(Options!$B$24,2)),$C70,$E70,$F70,2016,$I70,1,$H70,$G70*$H70,Options!B8)))","v":235.23648800890001},{"$f":"IF(AND(OR(Calculations!$E$2=\"Orkney Health Board\",Calculations!$E$2=\"Orkney Islands Local Authority\"),$F70=1),0,IF(AND(OR(Calculations!$E$2=\"Shetland Health Board\",Calculations!$E$2=\"Western Isles Health Board\",Calculations!$E$2=\"Shetland Islands Local Authority\",Calculations!$E$2=\"Eilean Siar Local Authority\"),OR($F70=1,$F70=5)),0,new_ci(VALUE(LEFT(Options!$B$24,2)),$C70,$E70,$F70,2016,$I70+$J70,1,$H70,$G70*$H70,Options!B8)))","v":234.2089925683},{"$f":"IF(AND(OR(Calculations!$E$2=\"Orkney Health Board\",Calculations!$E$2=\"Orkney Islands Local Authority\"),$F70=1),0,IF(AND(OR(Calculations!$E$2=\"Shetland Health Board\",Calculations!$E$2=\"Western Isles Health Board\",Calculations!$E$2=\"Shetland Islands Local Authority\",Calculations!$E$2=\"Eilean Siar Local Authority\"),OR($F70=1,$F70=5)),0,new_yllv2(VALUE(LEFT(Options!$B$24,2)),$C70,$D70,$E70,$F70,2016,$I70,1,$H70,$G70*$H70,Options!B8)))","v":7054.7432163329004},{"$f":"IF(AND(OR(Calculations!$E$2=\"Orkney Health Board\",Calculations!$E$2=\"Orkney Islands Local Authority\"),$F70=1),0,IF(AND(OR(Calculations!$E$2=\"Shetland Health Board\",Calculations!$E$2=\"Western Isles Health Board\",Calculations!$E$2=\"Shetland Islands Local Authority\",Calculations!$E$2=\"Eilean Siar Local Authority\"),OR($F70=1,$F70=5)),0,new_yllv2(VALUE(LEFT(Options!$B$24,2)),$C70,$D70,$E70,$F70,2016,$I70+$J70,1,$H70,$G70*$H70,Options!B8)))","v":7023.9286239593002},{"$f":"IF(AND(OR(Calculations!$E$2=\"Orkney Health Board\",Calculations!$E$2=\"Orkney Islands Local Authority\"),$F70=1),0,IF(AND(OR(Calculations!$E$2=\"Shetland Health Board\",Calculations!$E$2=\"Western Isles Health Board\",Calculations!$E$2=\"Shetland Islands Local Authority\",Calculations!$E$2=\"Eilean Siar Local Authority\"),OR($F70=1,$F70=5)),0,hosp_count(VALUE(LEFT(Options!$B$24,2)),$C70,$E70,$F70,2016,$I70,1,$H70,$G70*$H70, Options!B8)))","v":13452.080933396001},{"$f":"IF(AND(OR(Calculations!$E$2=\"Orkney Health Board\",Calculations!$E$2=\"Orkney Islands Local Authority\"),$F70=1),0,IF(AND(OR(Calculations!$E$2=\"Shetland Health Board\",Calculations!$E$2=\"Western Isles Health Board\",Calculations!$E$2=\"Shetland Islands Local Authority\",Calculations!$E$2=\"Eilean Siar Local Authority\"),OR($F70=1,$F70=5)),0,hosp_count(VALUE(LEFT(Options!$B$24,2)),$C70,$E70,$F70,2016,$I70+$J70,1,$H70,$G70*$H70, Options!B8)))","v":13397.4351780953},{"$f":"IF(AND(OR(Calculations!$E$2=\"Orkney Health Board\",Calculations!$E$2=\"Orkney Islands Local Authority\"),$F70=1),0,IF(AND(OR(Calculations!$E$2=\"Shetland Health Board\",Calculations!$E$2=\"Western Isles Health Board\",Calculations!$E$2=\"Shetland Islands Local Authority\",Calculations!$E$2=\"Eilean Siar Local Authority\"),OR($F70=1,$F70=5)),0,prem_mort(VALUE(LEFT(Options!$B$24,2)),$C70,$E70,$F70,2016,$I70,1,$H70,$G70*$H70,Options!B8)))","v":235.23648800890001},{"$f":"IF(AND(OR(Calculations!$E$2=\"Orkney Health Board\",Calculations!$E$2=\"Orkney Islands Local Authority\"),$F70=1),0,IF(AND(OR(Calculations!$E$2=\"Shetland Health Board\",Calculations!$E$2=\"Western Isles Health Board\",Calculations!$E$2=\"Shetland Islands Local Authority\",Calculations!$E$2=\"Eilean Siar Local Authority\"),OR($F70=1,$F70=5)),0,prem_mort(VALUE(LEFT(Options!$B$24,2)),$C70,$E70,$F70,2016,$I70+$J70,1,$H70,$G70*$H70,Options!B8)))","v":234.2089925683},592.4755390109309,589.88765003097922,17768.343784840068,17690.732983979702,33880.921150000002,33743.288278499145,592.4755390109309,589.88765003097922,4147328.7730765161,4129213.5502168545,124378406.49388048,123835130.88785791,237166448.05000001,236203017.949494,4147328.7730765161,4129213.5502168545,7000]
[null,"Female 55-59",56.953040999999999,83.473039999999997,"female",1,{"$f":"HLOOKUP(Calculations!$E$2,'Prevalence Rates'!$C$3:$BC$249,'Prevalence Rates'!$BD71,FALSE)","v":0.13535690827086339},{"$f":"HLOOKUP(Calculations!$E$2,'Population 2016'!$C$3:$BC$249,'Population 2016'!BD71,FALSE)","v":35528},0,{"$f":"HLOOKUP(Results!E$4,Targeting!$C$3:$F$249,Targeting!$G71,FALSE)","v":2686},{"$f":"IF(AND(OR(Calculations!$E$2=\"Orkney Health Board\",Calculations!$E$2=\"Orkney Islands Local Authority\"),$F71=1),0,IF(AND(OR(Calculations!$E$2=\"Shetland Health Board\",Calculations!$E$2=\"Western Isles Health Board\",Calculations!$E$2=\"Shetland Islands Local Authority\",Calculations!$E$2=\"Eilean Siar Local Authority\"),OR($F71=1,$F71=5)),0,new_ci(VALUE(LEFT(Options!$B$24,2)),$C71,$E71,$F71,2016,$I71,1,$H71,$G71*$H71,Options!B8)))","v":320.51158790540001},{"$f":"IF(AND(OR(Calculations!$E$2=\"Orkney Health Board\",Calculations!$E$2=\"Orkney Islands Local Authority\"),$F71=1),0,IF(AND(OR(Calculations!$E$2=\"Shetland Health Board\",Calculations!$E$2=\"Western Isles Health Board\",Calculations!$E$2=\"Shetland Islands Local Authority\",Calculations!$E$2=\"Eilean Siar Local Authority\"),OR($F71=1,$F71=5)),0,new_ci(VALUE(LEFT(Options!$B$24,2)),$C71,$E71,$F71,2016,$I71+$J71,1,$H71,$G71*$H71,Options!B8)))","v":319.13033953399997},{"$f":"IF(AND(OR(Calculations!$E$2=\"Orkney Health Board\",Calculations!$E$2=\"Orkney Islands Local Authority\"),$F71=1),0,IF(AND(OR(Calculations!$E$2=\"Shetland Health Board\",Calculations!$E$2=\"Western Isles Health Board\",Calculations!$E$2=\"Shetland Islands Local Authority\",Calculations!$E$2=\"Eilean Siar Local Authority\"),OR($F71=1,$F71=5)),0,new_yllv2(VALUE(LEFT(Options!$B$24,2)),$C71,$D71,$E71,$F71,2016,$I71,1,$H71,$G71*$H71,Options!B8)))","v":8179.4554028342},{"$f":"IF(AND(OR(Calculations!$E$2=\"Orkney Health Board\",Calculations!$E$2=\"Orkney Islands Local Authority\"),$F71=1),0,IF(AND(OR(Calculations!$E$2=\"Shetland Health Board\",Calculations!$E$2=\"Western Isles Health Board\",Calculations!$E$2=\"Shetland Islands Local Authority\",Calculations!$E$2=\"Eilean Siar Local Authority\"),OR($F71=1,$F71=5)),0,new_yllv2(VALUE(LEFT(Options!$B$24,2)),$C71,$D71,$E71,$F71,2016,$I71+$J71,1,$H71,$G71*$H71,Options!B8)))","v":8144.2059457773003},{"$f":"IF(AND(OR(Calculations!$E$2=\"Orkney Health Board\",Calculations!$E$2=\"Orkney Islands Local Authority\"),$F71=1),0,IF(AND(OR(Calculations!$E$2=\"Shetland Health Board\",Calculations!$E$2=\"Western Isles Health Board\",Calculations!$E$2=\"Shetland Islands Local Authority\",Calculations!$E$2=\"Eilean Siar Local Authority\"),OR($F71=1,$F71=5)),0,hosp_count(VALUE(LEFT(Options!$B$24,2)),$C71,$E71,$F71,2016,$I71,1,$H71,$G71*$H71, Options!B8)))","v":13637.468044908001},{"$f":"IF(AND(OR(Calculations!$E$2=\"Orkney Health Board\",Calculations!$E$2=\"Orkney Islands Local Authority\"),$F71=1),0,IF(AND(OR(Calculations!$E$2=\"Shetland Health Board\",Calculations!$E$2=\"Western Isles Health Board\",Calculations!$E$2=\"Shetland Islands Local Authority\",Calculations!$E$2=\"Eilean Siar Local Authority\"),OR($F71=1,$F71=5)),0,hosp_count(VALUE(LEFT(Options!$B$24,2)),$C71,$E71,$F71,2016,$I71+$J71,1,$H71,$G71*$H71, Options!B8)))","v":13582.1863028472},{"$f":"IF(AND(OR(Calculations!$E$2=\"Orkney Health Board\",Calculations!$E$2=\"Orkney Islands Local Authority\"),$F71=1),0,IF(AND(OR(Calculations!$E$2=\"Shetland Health Board\",Calculations!$E$2=\"Western Isles Health Board\",Calculations!$E$2=\"Shetland Islands Local Authority\",Calculations!$E$2=\"Eilean Siar Local Authority\"),OR($F71=1,$F71=5)),0,prem_mort(VALUE(LEFT(Options!$B$24,2)),$C71,$E71,$F71,2016,$I71,1,$H71,$G71*$H71,Options!B8)))","v":320.51158790540001},{"$f":"IF(AND(OR(Calculations!$E$2=\"Orkney Health Board\",Calculations!$E$2=\"Orkney Islands Local Authority\"),$F71=1),0,IF(AND(OR(Calculations!$E$2=\"Shetland Health Board\",Calculations!$E$2=\"Western Isles Health Board\",Calculations!$E$2=\"Shetland Islands Local Authority\",Calculations!$E$2=\"Eilean Siar Local Authority\"),OR($F71=1,$F71=5)),0,prem_mort(VALUE(LEFT(Options!$B$24,2)),$C71,$E71,$F71,2016,$I71+$J71,1,$H71,$G71*$H71,Options!B8)))","v":319.13033953399997},902.13799793233511,898.25022386286867,23022.560805095134,22923.344814730073,38385.127350000002,38229.526860074307,902.13799793233511,898.25022386286867,5863896.986560178,5838626.4551086463,149646645.23311839,149001741.29574546,249503327.77500001,248491924.59048301,5863896.986560178,5838626.4551086463,6500]
[null,"Female 60-64",61.947387999999997,84.167389999999997,"female",1,{"$f":"HLOOKUP(Calculations!$E$2,'Prevalence Rates'!$C$3:$BC$249,'Prevalence Rates'!$BD72,FALSE)","v":0.13535690827086339},{"$f":"HLOOKUP(Calculations!$E$2,'Population 2016'!$C$3:$BC$249,'Population 2016'!BD72,FALSE)","v":29212},0,{"$f":"HLOOKUP(Results!E$4,Targeting!$C$3:$F$249,Targeting!$G72,FALSE)","v":2209},{"$f":"IF(AND(OR(Calculations!$E$2=\"Orkney Health Board\",Calculations!$E$2=\"Orkney Islands Local Authority\"),$F72=1),0,IF(AND(OR(Calculations!$E$2=\"Shetland Health Board\",Calculations!$E$2=\"Western Isles Health Board\",Calculations!$E$2=\"Shetland Islands Local Authority\",Calculations!$E$2=\"Eilean Siar Local Authority\"),OR($F72=1,$F72=5)),0,new_ci(VALUE(LEFT(Options!$B$24,2)),$C72,$E72,$F72,2016,$I72,1,$H72,$G72*$H72,Options!B8)))","v":402.02893827550002},{"$f":"IF(AND(OR(Calculations!$E$2=\"Orkney Health Board\",Calculations!$E$2=\"Orkney Islands Local Authority\"),$F72=1),0,IF(AND(OR(Calculations!$E$2=\"Shetland Health Board\",Calculations!$E$2=\"Western Isles Health Board\",Calculations!$E$2=\"Shetland Islands Local Authority\",Calculations!$E$2=\"Eilean Siar Local Authority\"),OR($F72=1,$F72=5)),0,new_ci(VALUE(LEFT(Options!$B$24,2)),$C72,$E72,$F72,2016,$I72+$J72,1,$H72,$G72*$H72,Options!B8)))","v":400.30286897190001},{"$f":"IF(AND(OR(Calculations!$E$2=\"Orkney Health Board\",Calculations!$E$2=\"Orkney Islands Local Authority\"),$F72=1),0,IF(AND(OR(Calculations!$E$2=\"Shetland Health Board\",Calculations!$E$2=\"Western Isles Health Board\",Calculations!$E$2=\"Shetland Islands Local Authority\",Calculations!$E$2=\"Eilean Siar Local Authority\"),OR($F72=1,$F72=5)),0,new_yllv2(VALUE(LEFT(Options!$B$24,2)),$C72,$D72,$E72,$F72,2016,$I72,1,$H72,$G72*$H72,Options!B8)))","v":8531.0548742640003},{"$f":"IF(AND(OR(Calculations!$E$2=\"Orkney Health Board\",Calculations!$E$2=\"Orkney Islands Local Authority\"),$F72=1),0,IF(AND(OR(Calculations!$E$2=\"Shetland Health Board\",Calculations!$E$2=\"Western Isles Health Board\",Calculations!$E$2=\"Shetland Islands Local Authority\",Calculations!$E$2=\"Eilean Siar Local Authority\"),OR($F72=1,$F72=5)),0,new_yllv2(VALUE(LEFT(Options!$B$24,2)),$C72,$D72,$E72,$F72,2016,$I72+$J72,1,$H72,$G72*$H72,Options!B8)))","v":8494.4276801894994},{"$f":"IF(AND(OR(Calculations!$E$2=\"Orkney Health Board\",Calculations!$E$2=\"Orkney Islands Local Authority\"),$F72=1),0,IF(AND(OR(Calculations!$E$2=\"Shetland Health Board\",Calculations!$E$2=\"Western Isles Health Board\",Calculations!$E$2=\"Shetland Islands Local Authority\",Calculations!$E$2=\"Eilean Siar Local Authority\"),OR($F72=1,$F72=5)),0,hosp_count(VALUE(LEFT(Options!$B$24,2)),$C72,$E72,$F72,2016,$I72,1,$H72,$G72*$H72, Options!B8)))","v":12714.0251895444},{"$f":"IF(AND(OR(Calculations!$E$2=\"Orkney Health Board\",Calculations!$E$2=\"Orkney Islands Local Authority\"),$F72=1),0,IF(AND(OR(Calculations!$E$2=\"Shetland Health Board\",Calculations!$E$2=\"Western Isles Health Board\",Calculations!$E$2=\"Shetland Islands Local Authority\",Calculations!$E$2=\"Eilean Siar Local Authority\"),OR($F72=1,$F72=5)),0,hosp_count(VALUE(LEFT(Options!$B$24,2)),$C72,$E72,$F72,2016,$I72+$J72,1,$H72,$G72*$H72, Options!B8)))","v":12662.4750060353},{"$f":"IF(AND(OR(Calculations!$E$2=\"Orkney Health Board\",Calculations!$E$2=\"Orkney Islands Local Authority\"),$F72=1),0,IF(AND(OR(Calculations!$E$2=\"Shetland Health Board\",Calculations!$E$2=\"Western Isles Health Board\",Calculations!$E$2=\"Shetland Islands Local Authority\",Calculations!$E$2=\"Eilean Siar Local Authority\"),OR($F72=1,$F72=5)),0,prem_mort(VALUE(LEFT(Options!$B$24,2)),$C72,$E72,$F72,2016,$I72,1,$H72,$G72*$H72,Options!B8)))","v":402.02893827550002},{"$f":"IF(AND(OR(Calculations!$E$2=\"Orkney Health Board\",Calculations!$E$2=\"Orkney Islands Local Authority\"),$F72=1),0,IF(AND(OR(Calculations!$E$2=\"Shetland Health Board\",Calculations!$E$2=\"Western Isles Health Board\",Calculations!$E$2=\"Shetland Islands Local Authority\",Calculations!$E$2=\"Eilean Siar Local Authority\"),OR($F72=1,$F72=5)),0,prem_mort(VALUE(LEFT(Options!$B$24,2)),$C72,$E72,$F72,2016,$I72+$J72,1,$H72,$G72*$H72,Options!B8)))","v":400.30286897190001},1376.2458519632344,1370.3370839788445,29203.939731151582,29078.555662705396,43523.295869999994,43346.826667243935,1376.2458519632344,1370.3370839788445,8257475.1117794067,8222022.503873067,175223638.38690948,174471333.97623238,261139775.21999997,260080960.0034636,8257475.1117794067,8222022.503873067,6000]
[null,"Female 65-69",67.063927000000007,85.193929999999995,"female",1,{"$f":"HLOOKUP(Calculations!$E$2,'Prevalence Rates'!$C$3:$BC$249,'Prevalence Rates'!$BD73,FALSE)","v":7.1221654195186362E-2},{"$f":"HLOOKUP(Calculations!$E$2,'Population 2016'!$C$3:$BC$249,'Population 2016'!BD73,FALSE)","v":27762},0,{"$f":"HLOOKUP(Results!E$4,Targeting!$C$3:$F$249,Targeting!$G73,FALSE)","v":2099},{"$f":"IF(AND(OR(Calculations!$E$2=\"Orkney Health Board\",Calculations!$E$2=\"Orkney Islands Local Authority\"),$F73=1),0,IF(AND(OR(Calculations!$E$2=\"Shetland Health Board\",Calculations!$E$2=\"Western Isles Health Board\",Calculations!$E$2=\"Shetland Islands Local Authority\",Calculations!$E$2=\"Eilean Siar Local Authority\"),OR($F73=1,$F73=5)),0,new_ci(VALUE(LEFT(Options!$B$24,2)),$C73,$E73,$F73,2016,$I73,1,$H73,$G73*$H73,Options!B8)))","v":588.18459335019998},{"$f":"IF(AND(OR(Calculations!$E$2=\"Orkney Health Board\",Calculations!$E$2=\"Orkney Islands Local Authority\"),$F73=1),0,IF(AND(OR(Calculations!$E$2=\"Shetland Health Board\",Calculations!$E$2=\"Western Isles Health Board\",Calculations!$E$2=\"Shetland Islands Local Authority\",Calculations!$E$2=\"Eilean Siar Local Authority\"),OR($F73=1,$F73=5)),0,new_ci(VALUE(LEFT(Options!$B$24,2)),$C73,$E73,$F73,2016,$I73+$J73,1,$H73,$G73*$H73,Options!B8)))","v":585.60761032959999},{"$f":"IF(AND(OR(Calculations!$E$2=\"Orkney Health Board\",Calculations!$E$2=\"Orkney Islands Local Authority\"),$F73=1),0,IF(AND(OR(Calculations!$E$2=\"Shetland Health Board\",Calculations!$E$2=\"Western Isles Health Board\",Calculations!$E$2=\"Shetland Islands Local Authority\",Calculations!$E$2=\"Eilean Siar Local Authority\"),OR($F73=1,$F73=5)),0,new_yllv2(VALUE(LEFT(Options!$B$24,2)),$C73,$D73,$E73,$F73,2016,$I73,1,$H73,$G73*$H73,Options!B8)))","v":10075.603848642701},{"$f":"IF(AND(OR(Calculations!$E$2=\"Orkney Health Board\",Calculations!$E$2=\"Orkney Islands Local Authority\"),$F73=1),0,IF(AND(OR(Calculations!$E$2=\"Shetland Health Board\",Calculations!$E$2=\"Western Isles Health Board\",Calculations!$E$2=\"Shetland Islands Local Authority\",Calculations!$E$2=\"Eilean Siar Local Authority\"),OR($F73=1,$F73=5)),0,new_yllv2(VALUE(LEFT(Options!$B$24,2)),$C73,$D73,$E73,$F73,2016,$I73+$J73,1,$H73,$G73*$H73,Options!B8)))","v":10031.4601217689},{"$f":"IF(AND(OR(Calculations!$E$2=\"Orkney Health Board\",Calculations!$E$2=\"Orkney Islands Local Authority\"),$F73=1),0,IF(AND(OR(Calculations!$E$2=\"Shetland Health Board\",Calculations!$E$2=\"Western Isles Health Board\",Calculations!$E$2=\"Shetland Islands Local Authority\",Calculations!$E$2=\"Eilean Siar Local Authority\"),OR($F73=1,$F73=5)),0,hosp_count(VALUE(LEFT(Options!$B$24,2)),$C73,$E73,$F73,2016,$I73,1,$H73,$G73*$H73, Options!B8)))","v":13742.512922031599},{"$f":"IF(AND(OR(Calculations!$E$2=\"Orkney Health Board\",Calculations!$E$2=\"Orkney Islands Local Authority\"),$F73=1),0,IF(AND(OR(Calculations!$E$2=\"Shetland Health Board\",Calculations!$E$2=\"Western Isles Health Board\",Calculations!$E$2=\"Shetland Islands Local Authority\",Calculations!$E$2=\"Eilean Siar Local Authority\"),OR($F73=1,$F73=5)),0,hosp_count(VALUE(LEFT(Options!$B$24,2)),$C73,$E73,$F73,2016,$I73+$J73,1,$H73,$G73*$H73, Options!B8)))","v":13686.517748212},{"$f":"IF(AND(OR(Calculations!$E$2=\"Orkney Health Board\",Calculations!$E$2=\"Orkney Islands Local Authority\"),$F73=1),0,IF(AND(OR(Calculations!$E$2=\"Shetland Health Board\",Calculations!$E$2=\"Western Isles Health Board\",Calculations!$E$2=\"Shetland Islands Local Authority\",Calculations!$E$2=\"Eilean Siar Local Authority\"),OR($F73=1,$F73=5)),0,prem_mort(VALUE(LEFT(Options!$B$24,2)),$C73,$E73,$F73,2016,$I73,1,$H73,$G73*$H73,Options!B8)))","v":588.18459335019998},{"$f":"IF(AND(OR(Calculations!$E$2=\"Orkney Health Board\",Calculations!$E$2=\"Orkney Islands Local Authority\"),$F73=1),0,IF(AND(OR(Calculations!$E$2=\"Shetland Health Board\",Calculations!$E$2=\"Western Isles Health Board\",Calculations!$E$2=\"Shetland Islands Local Authority\",Calculations!$E$2=\"Eilean Siar Local Authority\"),OR($F73=1,$F73=5)),0,prem_mort(VALUE(LEFT(Options!$B$24,2)),$C73,$E73,$F73,2016,$I73+$J73,1,$H73,$G73*$H73,Options!B8)))","v":585.60761032959999},2118.6679394503276,2109.3855281665587,36292.788158787916,36133.780425649813,49501.163180000003,49299.465990245655,2118.6679394503276,2109.3855281665587,11652673.666976802,11601620.404916072,199610334.87333354,198735792.34107396,272256397.49000001,271147062.94635111,11652673.666976802,11601620.404916072,5500]
[null,"Female 70-74",71.938164,86.248159999999999,"female",1,{"$f":"HLOOKUP(Calculations!$E$2,'Prevalence Rates'!$C$3:$BC$249,'Prevalence Rates'!$BD74,FALSE)","v":7.1221654195186362E-2},{"$f":"HLOOKUP(Calculations!$E$2,'Population 2016'!$C$3:$BC$249,'Population 2016'!BD74,FALSE)","v":21786},0,{"$f":"HLOOKUP(Results!E$4,Targeting!$C$3:$F$249,Targeting!$G74,FALSE)","v":1647},{"$f":"IF(AND(OR(Calculations!$E$2=\"Orkney Health Board\",Calculations!$E$2=\"Orkney Islands Local Authority\"),$F74=1),0,IF(AND(OR(Calculations!$E$2=\"Shetland Health Board\",Calculations!$E$2=\"Western Isles Health Board\",Calculations!$E$2=\"Shetland Islands Local Authority\",Calculations!$E$2=\"Eilean Siar Local Authority\"),OR($F74=1,$F74=5)),0,new_ci(VALUE(LEFT(Options!$B$24,2)),$C74,$E74,$F74,2016,$I74,1,$H74,$G74*$H74,Options!B8)))","v":694.83309775930002},{"$f":"IF(AND(OR(Calculations!$E$2=\"Orkney Health Board\",Calculations!$E$2=\"Orkney Islands Local Authority\"),$F74=1),0,IF(AND(OR(Calculations!$E$2=\"Shetland Health Board\",Calculations!$E$2=\"Western Isles Health Board\",Calculations!$E$2=\"Shetland Islands Local Authority\",Calculations!$E$2=\"Eilean Siar Local Authority\"),OR($F74=1,$F74=5)),0,new_ci(VALUE(LEFT(Options!$B$24,2)),$C74,$E74,$F74,2016,$I74+$J74,1,$H74,$G74*$H74,Options!B8)))","v":691.81823197810002},{"$f":"IF(AND(OR(Calculations!$E$2=\"Orkney Health Board\",Calculations!$E$2=\"Orkney Islands Local Authority\"),$F74=1),0,IF(AND(OR(Calculations!$E$2=\"Shetland Health Board\",Calculations!$E$2=\"Western Isles Health Board\",Calculations!$E$2=\"Shetland Islands Local Authority\",Calculations!$E$2=\"Eilean Siar Local Authority\"),OR($F74=1,$F74=5)),0,new_yllv2(VALUE(LEFT(Options!$B$24,2)),$C74,$D74,$E74,$F74,2016,$I74,1,$H74,$G74*$H74,Options!B8)))","v":9248.2257518439001},{"$f":"IF(AND(OR(Calculations!$E$2=\"Orkney Health Board\",Calculations!$E$2=\"Orkney Islands Local Authority\"),$F74=1),0,IF(AND(OR(Calculations!$E$2=\"Shetland Health Board\",Calculations!$E$2=\"Western Isles Health Board\",Calculations!$E$2=\"Shetland Islands Local Authority\",Calculations!$E$2=\"Eilean Siar Local Authority\"),OR($F74=1,$F74=5)),0,new_yllv2(VALUE(LEFT(Options!$B$24,2)),$C74,$D74,$E74,$F74,2016,$I74+$J74,1,$H74,$G74*$H74,Options!B8)))","v":9208.0979003556004},{"$f":"IF(AND(OR(Calculations!$E$2=\"Orkney Health Board\",Calculations!$E$2=\"Orkney Islands Local Authority\"),$F74=1),0,IF(AND(OR(Calculations!$E$2=\"Shetland Health Board\",Calculations!$E$2=\"Western Isles Health Board\",Calculations!$E$2=\"Shetland Islands Local Authority\",Calculations!$E$2=\"Eilean Siar Local Authority\"),OR($F74=1,$F74=5)),0,hosp_count(VALUE(LEFT(Options!$B$24,2)),$C74,$E74,$F74,2016,$I74,1,$H74,$G74*$H74, Options!B8)))","v":12191.007503147401},{"$f":"IF(AND(OR(Calculations!$E$2=\"Orkney Health Board\",Calculations!$E$2=\"Orkney Islands Local Authority\"),$F74=1),0,IF(AND(OR(Calculations!$E$2=\"Shetland Health Board\",Calculations!$E$2=\"Western Isles Health Board\",Calculations!$E$2=\"Shetland Islands Local Authority\",Calculations!$E$2=\"Eilean Siar Local Authority\"),OR($F74=1,$F74=5)),0,hosp_count(VALUE(LEFT(Options!$B$24,2)),$C74,$E74,$F74,2016,$I74+$J74,1,$H74,$G74*$H74, Options!B8)))","v":12141.339299412801},{"$f":"IF(AND(OR(Calculations!$E$2=\"Orkney Health Board\",Calculations!$E$2=\"Orkney Islands Local Authority\"),$F74=1),0,IF(AND(OR(Calculations!$E$2=\"Shetland Health Board\",Calculations!$E$2=\"Western Isles Health Board\",Calculations!$E$2=\"Shetland Islands Local Authority\",Calculations!$E$2=\"Eilean Siar Local Authority\"),OR($F74=1,$F74=5)),0,prem_mort(VALUE(LEFT(Options!$B$24,2)),$C74,$E74,$F74,2016,$I74,1,$H74,$G74*$H74,Options!B8)))","v":694.83309775930002},{"$f":"IF(AND(OR(Calculations!$E$2=\"Orkney Health Board\",Calculations!$E$2=\"Orkney Islands Local Authority\"),$F74=1),0,IF(AND(OR(Calculations!$E$2=\"Shetland Health Board\",Calculations!$E$2=\"Western Isles Health Board\",Calculations!$E$2=\"Shetland Islands Local Authority\",Calculations!$E$2=\"Eilean Siar Local Authority\"),OR($F74=1,$F74=5)),0,prem_mort(VALUE(LEFT(Options!$B$24,2)),$C74,$E74,$F74,2016,$I74+$J74,1,$H74,$G74*$H74,Options!B8)))","v":691.81823197810002},3189.3559981607455,3175.5174514738819,42450.315578095564,42266.124577047645,55957.98909000001,55730.0068824603,3189.3559981607455,3175.5174514738819,15946779.990803728,15877587.25736941,212251577.89047781,211330622.88523823,279789945.45000005,278650034.41230148,15946779.990803728,15877587.25736941,5000]
[null,"Female 75-79",76.942824999999999,87.812830000000005,"female",1,{"$f":"HLOOKUP(Calculations!$E$2,'Prevalence Rates'!$C$3:$BC$249,'Prevalence Rates'!$BD75,FALSE)","v":2.3357930566070849E-2},{"$f":"HLOOKUP(Calculations!$E$2,'Population 2016'!$C$3:$BC$249,'Population 2016'!BD75,FALSE)","v":19138},0,{"$f":"HLOOKUP(Results!E$4,Targeting!$C$3:$F$249,Targeting!$G75,FALSE)","v":1447},{"$f":"IF(AND(OR(Calculations!$E$2=\"Orkney Health Board\",Calculations!$E$2=\"Orkney Islands Local Authority\"),$F75=1),0,IF(AND(OR(Calculations!$E$2=\"Shetland Health Board\",Calculations!$E$2=\"Western Isles Health Board\",Calculations!$E$2=\"Shetland Islands Local Authority\",Calculations!$E$2=\"Eilean Siar Local Authority\"),OR($F75=1,$F75=5)),0,new_ci(VALUE(LEFT(Options!$B$24,2)),$C75,$E75,$F75,2016,$I75,1,$H75,$G75*$H75,Options!B8)))","v":926.39135354059999},{"$f":"IF(AND(OR(Calculations!$E$2=\"Orkney Health Board\",Calculations!$E$2=\"Orkney Islands Local Authority\"),$F75=1),0,IF(AND(OR(Calculations!$E$2=\"Shetland Health Board\",Calculations!$E$2=\"Western Isles Health Board\",Calculations!$E$2=\"Shetland Islands Local Authority\",Calculations!$E$2=\"Eilean Siar Local Authority\"),OR($F75=1,$F75=5)),0,new_ci(VALUE(LEFT(Options!$B$24,2)),$C75,$E75,$F75,2016,$I75+$J75,1,$H75,$G75*$H75,Options!B8)))","v":922.35341032660006},{"$f":"IF(AND(OR(Calculations!$E$2=\"Orkney Health Board\",Calculations!$E$2=\"Orkney Islands Local Authority\"),$F75=1),0,IF(AND(OR(Calculations!$E$2=\"Shetland Health Board\",Calculations!$E$2=\"Western Isles Health Board\",Calculations!$E$2=\"Shetland Islands Local Authority\",Calculations!$E$2=\"Eilean Siar Local Authority\"),OR($F75=1,$F75=5)),0,new_yllv2(VALUE(LEFT(Options!$B$24,2)),$C75,$D75,$E75,$F75,2016,$I75,1,$H75,$G75*$H75,Options!B8)))","v":9143.4872914025},{"$f":"IF(AND(OR(Calculations!$E$2=\"Orkney Health Board\",Calculations!$E$2=\"Orkney Islands Local Authority\"),$F75=1),0,IF(AND(OR(Calculations!$E$2=\"Shetland Health Board\",Calculations!$E$2=\"Western Isles Health Board\",Calculations!$E$2=\"Shetland Islands Local Authority\",Calculations!$E$2=\"Eilean Siar Local Authority\"),OR($F75=1,$F75=5)),0,new_yllv2(VALUE(LEFT(Options!$B$24,2)),$C75,$D75,$E75,$F75,2016,$I75+$J75,1,$H75,$G75*$H75,Options!B8)))","v":9103.6327716905998},{"$f":"IF(AND(OR(Calculations!$E$2=\"Orkney Health Board\",Calculations!$E$2=\"Orkney Islands Local Authority\"),$F75=1),0,IF(AND(OR(Calculations!$E$2=\"Shetland Health Board\",Calculations!$E$2=\"Western Isles Health Board\",Calculations!$E$2=\"Shetland Islands Local Authority\",Calculations!$E$2=\"Eilean Siar Local Authority\"),OR($F75=1,$F75=5)),0,hosp_count(VALUE(LEFT(Options!$B$24,2)),$C75,$E75,$F75,2016,$I75,1,$H75,$G75*$H75, Options!B8)))","v":12145.911451996},{"$f":"IF(AND(OR(Calculations!$E$2=\"Orkney Health Board\",Calculations!$E$2=\"Orkney Islands Local Authority\"),$F75=1),0,IF(AND(OR(Calculations!$E$2=\"Shetland Health Board\",Calculations!$E$2=\"Western Isles Health Board\",Calculations!$E$2=\"Shetland Islands Local Authority\",Calculations!$E$2=\"Eilean Siar Local Authority\"),OR($F75=1,$F75=5)),0,hosp_count(VALUE(LEFT(Options!$B$24,2)),$C75,$E75,$F75,2016,$I75+$J75,1,$H75,$G75*$H75, Options!B8)))","v":12096.2314577364},{"$f":"IF(AND(OR(Calculations!$E$2=\"Orkney Health Board\",Calculations!$E$2=\"Orkney Islands Local Authority\"),$F75=1),0,IF(AND(OR(Calculations!$E$2=\"Shetland Health Board\",Calculations!$E$2=\"Western Isles Health Board\",Calculations!$E$2=\"Shetland Islands Local Authority\",Calculations!$E$2=\"Eilean Siar Local Authority\"),OR($F75=1,$F75=5)),0,prem_mort(VALUE(LEFT(Options!$B$24,2)),$C75,$E75,$F75,2016,$I75,1,$H75,$G75*$H75,Options!B8)))","v":0},{"$f":"IF(AND(OR(Calculations!$E$2=\"Orkney Health Board\",Calculations!$E$2=\"Orkney Islands Local Authority\"),$F75=1),0,IF(AND(OR(Calculations!$E$2=\"Shetland Health Board\",Calculations!$E$2=\"Western Isles Health Board\",Calculations!$E$2=\"Shetland Islands Local Authority\",Calculations!$E$2=\"Eilean Siar Local Authority\"),OR($F75=1,$F75=5)),0,prem_mort(VALUE(LEFT(Options!$B$24,2)),$C75,$E75,$F75,2016,$I75+$J75,1,$H75,$G75*$H75,Options!B8)))","v":0},4840.586025397638,4819.4869386905639,47776.60827360487,47568.360182310586,63464.894200000002,63205.305976258751,0,0,19362344.101590551,19277947.754762255,191106433.09441948,190273440.72924235,253859576.80000001,252821223.90503499,0,0,4000]
[null,"Female 80-84",81.856712000000002,89.736710000000002,"female",1,{"$f":"HLOOKUP(Calculations!$E$2,'Prevalence Rates'!$C$3:$BC$249,'Prevalence Rates'!$BD76,FALSE)","v":2.3357930566070849E-2},{"$f":"HLOOKUP(Calculations!$E$2,'Population 2016'!$C$3:$BC$249,'Population 2016'!BD76,FALSE)","v":14776},0,{"$f":"HLOOKUP(Results!E$4,Targeting!$C$3:$F$249,Targeting!$G76,FALSE)","v":1117},{"$f":"IF(AND(OR(Calculations!$E$2=\"Orkney Health Board\",Calculations!$E$2=\"Orkney Islands Local Authority\"),$F76=1),0,IF(AND(OR(Calculations!$E$2=\"Shetland Health Board\",Calculations!$E$2=\"Western Isles Health Board\",Calculations!$E$2=\"Shetland Islands Local Authority\",Calculations!$E$2=\"Eilean Siar Local Authority\"),OR($F76=1,$F76=5)),0,new_ci(VALUE(LEFT(Options!$B$24,2)),$C76,$E76,$F76,2016,$I76,1,$H76,$G76*$H76,Options!B8)))","v":1072.5345695125},{"$f":"IF(AND(OR(Calculations!$E$2=\"Orkney Health Board\",Calculations!$E$2=\"Orkney Islands Local Authority\"),$F76=1),0,IF(AND(OR(Calculations!$E$2=\"Shetland Health Board\",Calculations!$E$2=\"Western Isles Health Board\",Calculations!$E$2=\"Shetland Islands Local Authority\",Calculations!$E$2=\"Eilean Siar Local Authority\"),OR($F76=1,$F76=5)),0,new_ci(VALUE(LEFT(Options!$B$24,2)),$C76,$E76,$F76,2016,$I76+$J76,1,$H76,$G76*$H76,Options!B8)))","v":1067.9684205097001},{"$f":"IF(AND(OR(Calculations!$E$2=\"Orkney Health Board\",Calculations!$E$2=\"Orkney Islands Local Authority\"),$F76=1),0,IF(AND(OR(Calculations!$E$2=\"Shetland Health Board\",Calculations!$E$2=\"Western Isles Health Board\",Calculations!$E$2=\"Shetland Islands Local Authority\",Calculations!$E$2=\"Eilean Siar Local Authority\"),OR($F76=1,$F76=5)),0,new_yllv2(VALUE(LEFT(Options!$B$24,2)),$C76,$D76,$E76,$F76,2016,$I76,1,$H76,$G76*$H76,Options!B8)))","v":7379.0356931769002},{"$f":"IF(AND(OR(Calculations!$E$2=\"Orkney Health Board\",Calculations!$E$2=\"Orkney Islands Local Authority\"),$F76=1),0,IF(AND(OR(Calculations!$E$2=\"Shetland Health Board\",Calculations!$E$2=\"Western Isles Health Board\",Calculations!$E$2=\"Shetland Islands Local Authority\",Calculations!$E$2=\"Eilean Siar Local Authority\"),OR($F76=1,$F76=5)),0,new_yllv2(VALUE(LEFT(Options!$B$24,2)),$C76,$D76,$E76,$F76,2016,$I76+$J76,1,$H76,$G76*$H76,Options!B8)))","v":7347.6205971699001},{"$f":"IF(AND(OR(Calculations!$E$2=\"Orkney Health Board\",Calculations!$E$2=\"Orkney Islands Local Authority\"),$F76=1),0,IF(AND(OR(Calculations!$E$2=\"Shetland Health Board\",Calculations!$E$2=\"Western Isles Health Board\",Calculations!$E$2=\"Shetland Islands Local Authority\",Calculations!$E$2=\"Eilean Siar Local Authority\"),OR($F76=1,$F76=5)),0,hosp_count(VALUE(LEFT(Options!$B$24,2)),$C76,$E76,$F76,2016,$I76,1,$H76,$G76*$H76, Options!B8)))","v":10611.3411920208},{"$f":"IF(AND(OR(Calculations!$E$2=\"Orkney Health Board\",Calculations!$E$2=\"Orkney Islands Local Authority\"),$F76=1),0,IF(AND(OR(Calculations!$E$2=\"Shetland Health Board\",Calculations!$E$2=\"Western Isles Health Board\",Calculations!$E$2=\"Shetland Islands Local Authority\",Calculations!$E$2=\"Eilean Siar Local Authority\"),OR($F76=1,$F76=5)),0,hosp_count(VALUE(LEFT(Options!$B$24,2)),$C76,$E76,$F76,2016,$I76+$J76,1,$H76,$G76*$H76, Options!B8)))","v":10567.945560267301},{"$f":"IF(AND(OR(Calculations!$E$2=\"Orkney Health Board\",Calculations!$E$2=\"Orkney Islands Local Authority\"),$F76=1),0,IF(AND(OR(Calculations!$E$2=\"Shetland Health Board\",Calculations!$E$2=\"Western Isles Health Board\",Calculations!$E$2=\"Shetland Islands Local Authority\",Calculations!$E$2=\"Eilean Siar Local Authority\"),OR($F76=1,$F76=5)),0,prem_mort(VALUE(LEFT(Options!$B$24,2)),$C76,$E76,$F76,2016,$I76,1,$H76,$G76*$H76,Options!B8)))","v":0},{"$f":"IF(AND(OR(Calculations!$E$2=\"Orkney Health Board\",Calculations!$E$2=\"Orkney Islands Local Authority\"),$F76=1),0,IF(AND(OR(Calculations!$E$2=\"Shetland Health Board\",Calculations!$E$2=\"Western Isles Health Board\",Calculations!$E$2=\"Shetland Islands Local Authority\",Calculations!$E$2=\"Eilean Siar Local Authority\"),OR($F76=1,$F76=5)),0,prem_mort(VALUE(LEFT(Options!$B$24,2)),$C76,$E76,$F76,2016,$I76+$J76,1,$H76,$G76*$H76,Options!B8)))","v":0},7258.6259441831353,7227.7234739422038,49939.331978728347,49726.723045275445,71814.707580000002,71521.017597910803,0,0,18146564.860457838,18069308.68485551,124848329.94682087,124316807.61318861,179536768.95000002,178802543.99477699,0,0,2500]
[null,"Female 85-89",86.730819999999994,92.220819999999989,"female",1,{"$f":"HLOOKUP(Calculations!$E$2,'Prevalence Rates'!$C$3:$BC$249,'Prevalence Rates'!$BD77,FALSE)","v":2.3357930566070849E-2},{"$f":"HLOOKUP(Calculations!$E$2,'Population 2016'!$C$3:$BC$249,'Population 2016'!BD77,FALSE)","v":8869},0,{"$f":"HLOOKUP(Results!E$4,Targeting!$C$3:$F$249,Targeting!$G77,FALSE)","v":671},{"$f":"IF(AND(OR(Calculations!$E$2=\"Orkney Health Board\",Calculations!$E$2=\"Orkney Islands Local Authority\"),$F77=1),0,IF(AND(OR(Calculations!$E$2=\"Shetland Health Board\",Calculations!$E$2=\"Western Isles Health Board\",Calculations!$E$2=\"Shetland Islands Local Authority\",Calculations!$E$2=\"Eilean Siar Local Authority\"),OR($F77=1,$F77=5)),0,new_ci(VALUE(LEFT(Options!$B$24,2)),$C77,$E77,$F77,2016,$I77,1,$H77,$G77*$H77,Options!B8)))","v":956.01270613739996},{"$f":"IF(AND(OR(Calculations!$E$2=\"Orkney Health Board\",Calculations!$E$2=\"Orkney Islands Local Authority\"),$F77=1),0,IF(AND(OR(Calculations!$E$2=\"Shetland Health Board\",Calculations!$E$2=\"Western Isles Health Board\",Calculations!$E$2=\"Shetland Islands Local Authority\",Calculations!$E$2=\"Eilean Siar Local Authority\"),OR($F77=1,$F77=5)),0,new_ci(VALUE(LEFT(Options!$B$24,2)),$C77,$E77,$F77,2016,$I77+$J77,1,$H77,$G77*$H77,Options!B8)))","v":952.08044926599996},{"$f":"IF(AND(OR(Calculations!$E$2=\"Orkney Health Board\",Calculations!$E$2=\"Orkney Islands Local Authority\"),$F77=1),0,IF(AND(OR(Calculations!$E$2=\"Shetland Health Board\",Calculations!$E$2=\"Western Isles Health Board\",Calculations!$E$2=\"Shetland Islands Local Authority\",Calculations!$E$2=\"Eilean Siar Local Authority\"),OR($F77=1,$F77=5)),0,new_yllv2(VALUE(LEFT(Options!$B$24,2)),$C77,$D77,$E77,$F77,2016,$I77,1,$H77,$G77*$H77,Options!B8)))","v":4292.4970505568999},{"$f":"IF(AND(OR(Calculations!$E$2=\"Orkney Health Board\",Calculations!$E$2=\"Orkney Islands Local Authority\"),$F77=1),0,IF(AND(OR(Calculations!$E$2=\"Shetland Health Board\",Calculations!$E$2=\"Western Isles Health Board\",Calculations!$E$2=\"Shetland Islands Local Authority\",Calculations!$E$2=\"Eilean Siar Local Authority\"),OR($F77=1,$F77=5)),0,new_yllv2(VALUE(LEFT(Options!$B$24,2)),$C77,$D77,$E77,$F77,2016,$I77+$J77,1,$H77,$G77*$H77,Options!B8)))","v":4274.8412172042999},{"$f":"IF(AND(OR(Calculations!$E$2=\"Orkney Health Board\",Calculations!$E$2=\"Orkney Islands Local Authority\"),$F77=1),0,IF(AND(OR(Calculations!$E$2=\"Shetland Health Board\",Calculations!$E$2=\"Western Isles Health Board\",Calculations!$E$2=\"Shetland Islands Local Authority\",Calculations!$E$2=\"Eilean Siar Local Authority\"),OR($F77=1,$F77=5)),0,hosp_count(VALUE(LEFT(Options!$B$24,2)),$C77,$E77,$F77,2016,$I77,1,$H77,$G77*$H77, Options!B8)))","v":7200.0139395590004},{"$f":"IF(AND(OR(Calculations!$E$2=\"Orkney Health Board\",Calculations!$E$2=\"Orkney Islands Local Authority\"),$F77=1),0,IF(AND(OR(Calculations!$E$2=\"Shetland Health Board\",Calculations!$E$2=\"Western Isles Health Board\",Calculations!$E$2=\"Shetland Islands Local Authority\",Calculations!$E$2=\"Eilean Siar Local Authority\"),OR($F77=1,$F77=5)),0,hosp_count(VALUE(LEFT(Options!$B$24,2)),$C77,$E77,$F77,2016,$I77+$J77,1,$H77,$G77*$H77, Options!B8)))","v":7170.5452618766003},{"$f":"IF(AND(OR(Calculations!$E$2=\"Orkney Health Board\",Calculations!$E$2=\"Orkney Islands Local Authority\"),$F77=1),0,IF(AND(OR(Calculations!$E$2=\"Shetland Health Board\",Calculations!$E$2=\"Western Isles Health Board\",Calculations!$E$2=\"Shetland Islands Local Authority\",Calculations!$E$2=\"Eilean Siar Local Authority\"),OR($F77=1,$F77=5)),0,prem_mort(VALUE(LEFT(Options!$B$24,2)),$C77,$E77,$F77,2016,$I77,1,$H77,$G77*$H77,Options!B8)))","v":0},{"$f":"IF(AND(OR(Calculations!$E$2=\"Orkney Health Board\",Calculations!$E$2=\"Orkney Islands Local Authority\"),$F77=1),0,IF(AND(OR(Calculations!$E$2=\"Shetland Health Board\",Calculations!$E$2=\"Western Isles Health Board\",Calculations!$E$2=\"Shetland Islands Local Authority\",Calculations!$E$2=\"Eilean Siar Local Authority\"),OR($F77=1,$F77=5)),0,prem_mort(VALUE(LEFT(Options!$B$24,2)),$C77,$E77,$F77,2016,$I77+$J77,1,$H77,$G77*$H77,Options!B8)))","v":0},10779.261541745405,10734.924447694215,48398.884322436577,48199.810770146578,81181.801100000012,80849.535030743034,0,0,16168892.312618108,16102386.671541322,72598326.483654872,72299716.155219868,121772701.65000002,121274302.54611455,0,0,1500]
[null,"Female 90+",92.779342999999997,96.279340000000005,"female",1,{"$f":"HLOOKUP(Calculations!$E$2,'Prevalence Rates'!$C$3:$BC$249,'Prevalence Rates'!$BD78,FALSE)","v":2.3357930566070849E-2},{"$f":"HLOOKUP(Calculations!$E$2,'Population 2016'!$C$3:$BC$249,'Population 2016'!BD78,FALSE)","v":4825},0,{"$f":"HLOOKUP(Results!E$4,Targeting!$C$3:$F$249,Targeting!$G78,FALSE)","v":365},{"$f":"IF(AND(OR(Calculations!$E$2=\"Orkney Health Board\",Calculations!$E$2=\"Orkney Islands Local Authority\"),$F78=1),0,IF(AND(OR(Calculations!$E$2=\"Shetland Health Board\",Calculations!$E$2=\"Western Isles Health Board\",Calculations!$E$2=\"Shetland Islands Local Authority\",Calculations!$E$2=\"Eilean Siar Local Authority\"),OR($F78=1,$F78=5)),0,new_ci(VALUE(LEFT(Options!$B$24,2)),$C78,$E78,$F78,2016,$I78,1,$H78,$G78*$H78,Options!B8)))","v":837.92775164509999},{"$f":"IF(AND(OR(Calculations!$E$2=\"Orkney Health Board\",Calculations!$E$2=\"Orkney Islands Local Authority\"),$F78=1),0,IF(AND(OR(Calculations!$E$2=\"Shetland Health Board\",Calculations!$E$2=\"Western Isles Health Board\",Calculations!$E$2=\"Shetland Islands Local Authority\",Calculations!$E$2=\"Eilean Siar Local Authority\"),OR($F78=1,$F78=5)),0,new_ci(VALUE(LEFT(Options!$B$24,2)),$C78,$E78,$F78,2016,$I78+$J78,1,$H78,$G78*$H78,Options!B8)))","v":834.71545862309995},{"$f":"IF(AND(OR(Calculations!$E$2=\"Orkney Health Board\",Calculations!$E$2=\"Orkney Islands Local Authority\"),$F78=1),0,IF(AND(OR(Calculations!$E$2=\"Shetland Health Board\",Calculations!$E$2=\"Western Isles Health Board\",Calculations!$E$2=\"Shetland Islands Local Authority\",Calculations!$E$2=\"Eilean Siar Local Authority\"),OR($F78=1,$F78=5)),0,new_yllv2(VALUE(LEFT(Options!$B$24,2)),$C78,$D78,$E78,$F78,2016,$I78,1,$H78,$G78*$H78,Options!B8)))","v":2094.8168653295002},{"$f":"IF(AND(OR(Calculations!$E$2=\"Orkney Health Board\",Calculations!$E$2=\"Orkney Islands Local Authority\"),$F78=1),0,IF(AND(OR(Calculations!$E$2=\"Shetland Health Board\",Calculations!$E$2=\"Western Isles Health Board\",Calculations!$E$2=\"Shetland Islands Local Authority\",Calculations!$E$2=\"Eilean Siar Local Authority\"),OR($F78=1,$F78=5)),0,new_yllv2(VALUE(LEFT(Options!$B$24,2)),$C78,$D78,$E78,$F78,2016,$I78+$J78,1,$H78,$G78*$H78,Options!B8)))","v":2086.7861424113999},{"$f":"IF(AND(OR(Calculations!$E$2=\"Orkney Health Board\",Calculations!$E$2=\"Orkney Islands Local Authority\"),$F78=1),0,IF(AND(OR(Calculations!$E$2=\"Shetland Health Board\",Calculations!$E$2=\"Western Isles Health Board\",Calculations!$E$2=\"Shetland Islands Local Authority\",Calculations!$E$2=\"Eilean Siar Local Authority\"),OR($F78=1,$F78=5)),0,hosp_count(VALUE(LEFT(Options!$B$24,2)),$C78,$E78,$F78,2016,$I78,1,$H78,$G78*$H78, Options!B8)))","v":4560.6917838575},{"$f":"IF(AND(OR(Calculations!$E$2=\"Orkney Health Board\",Calculations!$E$2=\"Orkney Islands Local Authority\"),$F78=1),0,IF(AND(OR(Calculations!$E$2=\"Shetland Health Board\",Calculations!$E$2=\"Western Isles Health Board\",Calculations!$E$2=\"Shetland Islands Local Authority\",Calculations!$E$2=\"Eilean Siar Local Authority\"),OR($F78=1,$F78=5)),0,hosp_count(VALUE(LEFT(Options!$B$24,2)),$C78,$E78,$F78,2016,$I78+$J78,1,$H78,$G78*$H78, Options!B8)))","v":4542.0277413057001},{"$f":"IF(AND(OR(Calculations!$E$2=\"Orkney Health Board\",Calculations!$E$2=\"Orkney Islands Local Authority\"),$F78=1),0,IF(AND(OR(Calculations!$E$2=\"Shetland Health Board\",Calculations!$E$2=\"Western Isles Health Board\",Calculations!$E$2=\"Shetland Islands Local Authority\",Calculations!$E$2=\"Eilean Siar Local Authority\"),OR($F78=1,$F78=5)),0,prem_mort(VALUE(LEFT(Options!$B$24,2)),$C78,$E78,$F78,2016,$I78,1,$H78,$G78*$H78,Options!B8)))","v":0},{"$f":"IF(AND(OR(Calculations!$E$2=\"Orkney Health Board\",Calculations!$E$2=\"Orkney Islands Local Authority\"),$F78=1),0,IF(AND(OR(Calculations!$E$2=\"Shetland Health Board\",Calculations!$E$2=\"Western Isles Health Board\",Calculations!$E$2=\"Shetland Islands Local Authority\",Calculations!$E$2=\"Eilean Siar Local Authority\"),OR($F78=1,$F78=5)),0,prem_mort(VALUE(LEFT(Options!$B$24,2)),$C78,$E78,$F78,2016,$I78+$J78,1,$H78,$G78*$H78,Options!B8)))","v":0},17366.378272437305,17299.802251255958,43415.893581958553,43249.453728733672,94522.109509999995,94135.289975247666,0,0,17366378.272437304,17299802.251255959,43415893.581958555,43249453.728733674,94522109.50999999,94135289.975247666,0,0,1000]
[null,"Male 0-4",2.0320822999999999,77.402082000000007,"male",1,{"$f":"HLOOKUP(Calculations!$E$2,'Prevalence Rates'!$C$3:$BC$249,'Prevalence Rates'!$BD79,FALSE)","v":0},{"$f":"HLOOKUP(Calculations!$E$2,'Population 2016'!$C$3:$BC$249,'Population 2016'!BD79,FALSE)","v":0},0,{"$f":"HLOOKUP(Results!E$4,Targeting!$C$3:$F$249,Targeting!$G79,FALSE)","v":0},{"$f":"IF(AND(OR(Calculations!$E$2=\"Orkney Health Board\",Calculations!$E$2=\"Orkney Islands Local Authority\"),$F79=1),0,IF(AND(OR(Calculations!$E$2=\"Shetland Health Board\",Calculations!$E$2=\"Western Isles Health Board\",Calculations!$E$2=\"Shetland Islands Local Authority\",Calculations!$E$2=\"Eilean Siar Local Authority\"),OR($F79=1,$F79=5)),0,new_ci(VALUE(LEFT(Options!$B$24,2)),$C79,$E79,$F79,2016,$I79,1,$H79,$G79*$H79,Options!B8)))","v":{"$error":"#VALUE!"}},{"$f":"IF(AND(OR(Calculations!$E$2=\"Orkney Health Board\",Calculations!$E$2=\"Orkney Islands Local Authority\"),$F79=1),0,IF(AND(OR(Calculations!$E$2=\"Shetland Health Board\",Calculations!$E$2=\"Western Isles Health Board\",Calculations!$E$2=\"Shetland Islands Local Authority\",Calculations!$E$2=\"Eilean Siar Local Authority\"),OR($F79=1,$F79=5)),0,new_ci(VALUE(LEFT(Options!$B$24,2)),$C79,$E79,$F79,2016,$I79+$J79,1,$H79,$G79*$H79,Options!B8)))","v":{"$error":"#VALUE!"}},{"$f":"IF(AND(OR(Calculations!$E$2=\"Orkney Health Board\",Calculations!$E$2=\"Orkney Islands Local Authority\"),$F79=1),0,IF(AND(OR(Calculations!$E$2=\"Shetland Health Board\",Calculations!$E$2=\"Western Isles Health Board\",Calculations!$E$2=\"Shetland Islands Local Authority\",Calculations!$E$2=\"Eilean Siar Local Authority\"),OR($F79=1,$F79=5)),0,new_yllv2(VALUE(LEFT(Options!$B$24,2)),$C79,$D79,$E79,$F79,2016,$I79,1,$H79,$G79*$H79,Options!B8)))","v":{"$error":"#VALUE!"}},{"$f":"IF(AND(OR(Calculations!$E$2=\"Orkney Health Board\",Calculations!$E$2=\"Orkney Islands Local Authority\"),$F79=1),0,IF(AND(OR(Calculations!$E$2=\"Shetland Health Board\",Calculations!$E$2=\"Western Isles Health Board\",Calculations!$E$2=\"Shetland Islands Local Authority\",Calculations!$E$2=\"Eilean Siar Local Authority\"),OR($F79=1,$F79=5)),0,new_yllv2(VALUE(LEFT(Options!$B$24,2)),$C79,$D79,$E79,$F79,2016,$I79+$J79,1,$H79,$G79*$H79,Options!B8)))","v":{"$error":"#VALUE!"}},{"$f":"IF(AND(OR(Calculations!$E$2=\"Orkney Health Board\",Calculations!$E$2=\"Orkney Islands Local Authority\"),$F79=1),0,IF(AND(OR(Calculations!$E$2=\"Shetland Health Board\",Calculations!$E$2=\"Western Isles Health Board\",Calculations!$E$2=\"Shetland Islands Local Authority\",Calculations!$E$2=\"Eilean Siar Local Authority\"),OR($F79=1,$F79=5)),0,hosp_count(VALUE(LEFT(Options!$B$24,2)),$C79,$E79,$F79,2016,$I79,1,$H79,$G79*$H79, Options!B8)))","v":{"$error":"#VALUE!"}},{"$f":"IF(AND(OR(Calculations!$E$2=\"Orkney Health Board\",Calculations!$E$2=\"Orkney Islands Local Authority\"),$F79=1),0,IF(AND(OR(Calculations!$E$2=\"Shetland Health Board\",Calculations!$E$2=\"Western Isles Health Board\",Calculations!$E$2=\"Shetland Islands Local Authority\",Calculations!$E$2=\"Eilean Siar Local Authority\"),OR($F79=1,$F79=5)),0,hosp_count(VALUE(LEFT(Options!$B$24,2)),$C79,$E79,$F79,2016,$I79+$J79,1,$H79,$G79*$H79, Options!B8)))","v":{"$error":"#VALUE!"}},{"$f":"IF(AND(OR(Calculations!$E$2=\"Orkney Health Board\",Calculations!$E$2=\"Orkney Islands Local Authority\"),$F79=1),0,IF(AND(OR(Calculations!$E$2=\"Shetland Health Board\",Calculations!$E$2=\"Western Isles Health Board\",Calculations!$E$2=\"Shetland Islands Local Authority\",Calculations!$E$2=\"Eilean Siar Local Authority\"),OR($F79=1,$F79=5)),0,prem_mort(VALUE(LEFT(Options!$B$24,2)),$C79,$E79,$F79,2016,$I79,1,$H79,$G79*$H79,Options!B8)))","v":{"$error":"#VALUE!"}},{"$f":"IF(AND(OR(Calculations!$E$2=\"Orkney Health Board\",Calculations!$E$2=\"Orkney Islands Local Authority\"),$F79=1),0,IF(AND(OR(Calculations!$E$2=\"Shetland Health Board\",Calculations!$E$2=\"Western Isles Health Board\",Calculations!$E$2=\"Shetland Islands Local Authority\",Calculations!$E$2=\"Eilean Siar Local Authority\"),OR($F79=1,$F79=5)),0,prem_mort(VALUE(LEFT(Options!$B$24,2)),$C79,$E79,$F79,2016,$I79+$J79,1,$H79,$G79*$H79,Options!B8)))","v":{"$error":"#VALUE!"}},{"$error":"#VALUE!"},{"$error":"#VALUE!"},{"$error":"#VALUE!"},{"$error":"#VALUE!"},{"$error":"#VALUE!"},{"$error":"#VALUE!"},{"$error":"#VALUE!"},{"$error":"#VALUE!"},{"$error":"#VALUE!"},{"$error":"#VALUE!"},{"$error":"#VALUE!"},{"$error":"#VALUE!"},{"$error":"#VALUE!"},{"$error":"#VALUE!"},{"$error":"#VALUE!"},{"$error":"#VALUE!"},5000]
[null,"Male 5-9",6.9784756000000003,77.398476000000002,"male",1,{"$f":"HLOOKUP(Calculations!$E$2,'Prevalence Rates'!$C$3:$BC$249,'Prevalence Rates'!$BD80,FALSE)","v":0},{"$f":"HLOOKUP(Calculations!$E$2,'Population 2016'!$C$3:$BC$249,'Population 2016'!BD80,FALSE)","v":0},0,{"$f":"HLOOKUP(Results!E$4,Targeting!$C$3:$F$249,Targeting!$G80,FALSE)","v":0},{"$f":"IF(AND(OR(Calculations!$E$2=\"Orkney Health Board\",Calculations!$E$2=\"Orkney Islands Local Authority\"),$F80=1),0,IF(AND(OR(Calculations!$E$2=\"Shetland Health Board\",Calculations!$E$2=\"Western Isles Health Board\",Calculations!$E$2=\"Shetland Islands Local Authority\",Calculations!$E$2=\"Eilean Siar Local Authority\"),OR($F80=1,$F80=5)),0,new_ci(VALUE(LEFT(Options!$B$24,2)),$C80,$E80,$F80,2016,$I80,1,$H80,$G80*$H80,Options!B8)))","v":{"$error":"#VALUE!"}},{"$f":"IF(AND(OR(Calculations!$E$2=\"Orkney Health Board\",Calculations!$E$2=\"Orkney Islands Local Authority\"),$F80=1),0,IF(AND(OR(Calculations!$E$2=\"Shetland Health Board\",Calculations!$E$2=\"Western Isles Health Board\",Calculations!$E$2=\"Shetland Islands Local Authority\",Calculations!$E$2=\"Eilean Siar Local Authority\"),OR($F80=1,$F80=5)),0,new_ci(VALUE(LEFT(Options!$B$24,2)),$C80,$E80,$F80,2016,$I80+$J80,1,$H80,$G80*$H80,Options!B8)))","v":{"$error":"#VALUE!"}},{"$f":"IF(AND(OR(Calculations!$E$2=\"Orkney Health Board\",Calculations!$E$2=\"Orkney Islands Local Authority\"),$F80=1),0,IF(AND(OR(Calculations!$E$2=\"Shetland Health Board\",Calculations!$E$2=\"Western Isles Health Board\",Calculations!$E$2=\"Shetland Islands Local Authority\",Calculations!$E$2=\"Eilean Siar Local Authority\"),OR($F80=1,$F80=5)),0,new_yllv2(VALUE(LEFT(Options!$B$24,2)),$C80,$D80,$E80,$F80,2016,$I80,1,$H80,$G80*$H80,Options!B8)))","v":{"$error":"#VALUE!"}},{"$f":"IF(AND(OR(Calculations!$E$2=\"Orkney Health Board\",Calculations!$E$2=\"Orkney Islands Local Authority\"),$F80=1),0,IF(AND(OR(Calculations!$E$2=\"Shetland Health Board\",Calculations!$E$2=\"Western Isles Health Board\",Calculations!$E$2=\"Shetland Islands Local Authority\",Calculations!$E$2=\"Eilean Siar Local Authority\"),OR($F80=1,$F80=5)),0,new_yllv2(VALUE(LEFT(Options!$B$24,2)),$C80,$D80,$E80,$F80,2016,$I80+$J80,1,$H80,$G80*$H80,Options!B8)))","v":{"$error":"#VALUE!"}},{"$f":"IF(AND(OR(Calculations!$E$2=\"Orkney Health Board\",Calculations!$E$2=\"Orkney Islands Local Authority\"),$F80=1),0,IF(AND(OR(Calculations!$E$2=\"Shetland Health Board\",Calculations!$E$2=\"Western Isles Health Board\",Calculations!$E$2=\"Shetland Islands Local Authority\",Calculations!$E$2=\"Eilean Siar Local Authority\"),OR($F80=1,$F80=5)),0,hosp_count(VALUE(LEFT(Options!$B$24,2)),$C80,$E80,$F80,2016,$I80,1,$H80,$G80*$H80, Options!B8)))","v":{"$error":"#VALUE!"}},{"$f":"IF(AND(OR(Calculations!$E$2=\"Orkney Health Board\",Calculations!$E$2=\"Orkney Islands Local Authority\"),$F80=1),0,IF(AND(OR(Calculations!$E$2=\"Shetland Health Board\",Calculations!$E$2=\"Western Isles Health Board\",Calculations!$E$2=\"Shetland Islands Local Authority\",Calculations!$E$2=\"Eilean Siar Local Authority\"),OR($F80=1,$F80=5)),0,hosp_count(VALUE(LEFT(Options!$B$24,2)),$C80,$E80,$F80,2016,$I80+$J80,1,$H80,$G80*$H80, Options!B8)))","v":{"$error":"#VALUE!"}},{"$f":"IF(AND(OR(Calculations!$E$2=\"Orkney Health Board\",Calculations!$E$2=\"Orkney Islands Local Authority\"),$F80=1),0,IF(AND(OR(Calculations!$E$2=\"Shetland Health Board\",Calculations!$E$2=\"Western Isles Health Board\",Calculations!$E$2=\"Shetland Islands Local Authority\",Calculations!$E$2=\"Eilean Siar Local Authority\"),OR($F80=1,$F80=5)),0,prem_mort(VALUE(LEFT(Options!$B$24,2)),$C80,$E80,$F80,2016,$I80,1,$H80,$G80*$H80,Options!B8)))","v":{"$error":"#VALUE!"}},{"$f":"IF(AND(OR(Calculations!$E$2=\"Orkney Health Board\",Calculations!$E$2=\"Orkney Islands Local Authority\"),$F80=1),0,IF(AND(OR(Calculations!$E$2=\"Shetland Health Board\",Calculations!$E$2=\"Western Isles Health Board\",Calculations!$E$2=\"Shetland Islands Local Authority\",Calculations!$E$2=\"Eilean Siar Local Authority\"),OR($F80=1,$F80=5)),0,prem_mort(VALUE(LEFT(Options!$B$24,2)),$C80,$E80,$F80,2016,$I80+$J80,1,$H80,$G80*$H80,Options!B8)))","v":{"$error":"#VALUE!"}},{"$error":"#VALUE!"},{"$error":"#VALUE!"},{"$error":"#VALUE!"},{"$error":"#VALUE!"},{"$error":"#VALUE!"},{"$error":"#VALUE!"},{"$error":"#VALUE!"},{"$error":"#VALUE!"},{"$error":"#VALUE!"},{"$error":"#VALUE!"},{"$error":"#VALUE!"},{"$error":"#VALUE!"},{"$error":"#VALUE!"},{"$error":"#VALUE!"},{"$error":"#VALUE!"},{"$error":"#VALUE!"},5500]
[null,"Male 10-15",12.471144000000001,77.921140000000008,"male",1,{"$f":"HLOOKUP(Calculations!$E$2,'Prevalence Rates'!$C$3:$BC$249,'Prevalence Rates'!$BD81,FALSE)","v":0},{"$f":"HLOOKUP(Calculations!$E$2,'Population 2016'!$C$3:$BC$249,'Population 2016'!BD81,FALSE)","v":0},0,{"$f":"HLOOKUP(Results!E$4,Targeting!$C$3:$F$249,Targeting!$G81,FALSE)","v":0},{"$f":"IF(AND(OR(Calculations!$E$2=\"Orkney Health Board\",Calculations!$E$2=\"Orkney Islands Local Authority\"),$F81=1),0,IF(AND(OR(Calculations!$E$2=\"Shetland Health Board\",Calculations!$E$2=\"Western Isles Health Board\",Calculations!$E$2=\"Shetland Islands Local Authority\",Calculations!$E$2=\"Eilean Siar Local Authority\"),OR($F81=1,$F81=5)),0,new_ci(VALUE(LEFT(Options!$B$24,2)),$C81,$E81,$F81,2016,$I81,1,$H81,$G81*$H81,Options!B8)))","v":{"$error":"#VALUE!"}},{"$f":"IF(AND(OR(Calculations!$E$2=\"Orkney Health Board\",Calculations!$E$2=\"Orkney Islands Local Authority\"),$F81=1),0,IF(AND(OR(Calculations!$E$2=\"Shetland Health Board\",Calculations!$E$2=\"Western Isles Health Board\",Calculations!$E$2=\"Shetland Islands Local Authority\",Calculations!$E$2=\"Eilean Siar Local Authority\"),OR($F81=1,$F81=5)),0,new_ci(VALUE(LEFT(Options!$B$24,2)),$C81,$E81,$F81,2016,$I81+$J81,1,$H81,$G81*$H81,Options!B8)))","v":{"$error":"#VALUE!"}},{"$f":"IF(AND(OR(Calculations!$E$2=\"Orkney Health Board\",Calculations!$E$2=\"Orkney Islands Local Authority\"),$F81=1),0,IF(AND(OR(Calculations!$E$2=\"Shetland Health Board\",Calculations!$E$2=\"Western Isles Health Board\",Calculations!$E$2=\"Shetland Islands Local Authority\",Calculations!$E$2=\"Eilean Siar Local Authority\"),OR($F81=1,$F81=5)),0,new_yllv2(VALUE(LEFT(Options!$B$24,2)),$C81,$D81,$E81,$F81,2016,$I81,1,$H81,$G81*$H81,Options!B8)))","v":{"$error":"#VALUE!"}},{"$f":"IF(AND(OR(Calculations!$E$2=\"Orkney Health Board\",Calculations!$E$2=\"Orkney Islands Local Authority\"),$F81=1),0,IF(AND(OR(Calculations!$E$2=\"Shetland Health Board\",Calculations!$E$2=\"Western Isles Health Board\",Calculations!$E$2=\"Shetland Islands Local Authority\",Calculations!$E$2=\"Eilean Siar Local Authority\"),OR($F81=1,$F81=5)),0,new_yllv2(VALUE(LEFT(Options!$B$24,2)),$C81,$D81,$E81,$F81,2016,$I81+$J81,1,$H81,$G81*$H81,Options!B8)))","v":{"$error":"#VALUE!"}},{"$f":"IF(AND(OR(Calculations!$E$2=\"Orkney Health Board\",Calculations!$E$2=\"Orkney Islands Local Authority\"),$F81=1),0,IF(AND(OR(Calculations!$E$2=\"Shetland Health Board\",Calculations!$E$2=\"Western Isles Health Board\",Calculations!$E$2=\"Shetland Islands Local Authority\",Calculations!$E$2=\"Eilean Siar Local Authority\"),OR($F81=1,$F81=5)),0,hosp_count(VALUE(LEFT(Options!$B$24,2)),$C81,$E81,$F81,2016,$I81,1,$H81,$G81*$H81, Options!B8)))","v":{"$error":"#VALUE!"}},{"$f":"IF(AND(OR(Calculations!$E$2=\"Orkney Health Board\",Calculations!$E$2=\"Orkney Islands Local Authority\"),$F81=1),0,IF(AND(OR(Calculations!$E$2=\"Shetland Health Board\",Calculations!$E$2=\"Western Isles Health Board\",Calculations!$E$2=\"Shetland Islands Local Authority\",Calculations!$E$2=\"Eilean Siar Local Authority\"),OR($F81=1,$F81=5)),0,hosp_count(VALUE(LEFT(Options!$B$24,2)),$C81,$E81,$F81,2016,$I81+$J81,1,$H81,$G81*$H81, Options!B8)))","v":{"$error":"#VALUE!"}},{"$f":"IF(AND(OR(Calculations!$E$2=\"Orkney Health Board\",Calculations!$E$2=\"Orkney Islands Local Authority\"),$F81=1),0,IF(AND(OR(Calculations!$E$2=\"Shetland Health Board\",Calculations!$E$2=\"Western Isles Health Board\",Calculations!$E$2=\"Shetland Islands Local Authority\",Calculations!$E$2=\"Eilean Siar Local Authority\"),OR($F81=1,$F81=5)),0,prem_mort(VALUE(LEFT(Options!$B$24,2)),$C81,$E81,$F81,2016,$I81,1,$H81,$G81*$H81,Options!B8)))","v":{"$error":"#VALUE!"}},{"$f":"IF(AND(OR(Calculations!$E$2=\"Orkney Health Board\",Calculations!$E$2=\"Orkney Islands Local Authority\"),$F81=1),0,IF(AND(OR(Calculations!$E$2=\"Shetland Health Board\",Calculations!$E$2=\"Western Isles Health Board\",Calculations!$E$2=\"Shetland Islands Local Authority\",Calculations!$E$2=\"Eilean Siar Local Authority\"),OR($F81=1,$F81=5)),0,prem_mort(VALUE(LEFT(Options!$B$24,2)),$C81,$E81,$F81,2016,$I81+$J81,1,$H81,$G81*$H81,Options!B8)))","v":{"$error":"#VALUE!"}},{"$error":"#VALUE!"},{"$error":"#VALUE!"},{"$error":"#VALUE!"},{"$error":"#VALUE!"},{"$error":"#VALUE!"},{"$error":"#VALUE!"},{"$error":"#VALUE!"},{"$error":"#VALUE!"},{"$error":"#VALUE!"},{"$error":"#VALUE!"},{"$error":"#VALUE!"},{"$error":"#VALUE!"},{"$error":"#VALUE!"},{"$error":"#VALUE!"},{"$error":"#VALUE!"},{"$error":"#VALUE!"},6600]
[null,"Male 16-19",17.556318000000001,77.07632000000001,"male",1,{"$f":"HLOOKUP(Calculations!$E$2,'Prevalence Rates'!$C$3:$BC$249,'Prevalence Rates'!$BD82,FALSE)","v":0.17062984316140015},{"$f":"HLOOKUP(Calculations!$E$2,'Population 2016'!$C$3:$BC$249,'Population 2016'!BD82,FALSE)","v":25359},0,{"$f":"HLOOKUP(Results!E$4,Targeting!$C$3:$F$249,Targeting!$G82,FALSE)","v":1917},{"$f":"IF(AND(OR(Calculations!$E$2=\"Orkney Health Board\",Calculations!$E$2=\"Orkney Islands Local Authority\"),$F82=1),0,IF(AND(OR(Calculations!$E$2=\"Shetland Health Board\",Calculations!$E$2=\"Western Isles Health Board\",Calculations!$E$2=\"Shetland Islands Local Authority\",Calculations!$E$2=\"Eilean Siar Local Authority\"),OR($F82=1,$F82=5)),0,new_ci(VALUE(LEFT(Options!$B$24,2)),$C82,$E82,$F82,2016,$I82,1,$H82,$G82*$H82,Options!B8)))","v":19.172112796699999},{"$f":"IF(AND(OR(Calculations!$E$2=\"Orkney Health Board\",Calculations!$E$2=\"Orkney Islands Local Authority\"),$F82=1),0,IF(AND(OR(Calculations!$E$2=\"Shetland Health Board\",Calculations!$E$2=\"Western Isles Health Board\",Calculations!$E$2=\"Shetland Islands Local Authority\",Calculations!$E$2=\"Eilean Siar Local Authority\"),OR($F82=1,$F82=5)),0,new_ci(VALUE(LEFT(Options!$B$24,2)),$C82,$E82,$F82,2016,$I82+$J82,1,$H82,$G82*$H82,Options!B8)))","v":19.0821111803},{"$f":"IF(AND(OR(Calculations!$E$2=\"Orkney Health Board\",Calculations!$E$2=\"Orkney Islands Local Authority\"),$F82=1),0,IF(AND(OR(Calculations!$E$2=\"Shetland Health Board\",Calculations!$E$2=\"Western Isles Health Board\",Calculations!$E$2=\"Shetland Islands Local Authority\",Calculations!$E$2=\"Eilean Siar Local Authority\"),OR($F82=1,$F82=5)),0,new_yllv2(VALUE(LEFT(Options!$B$24,2)),$C82,$D82,$E82,$F82,2016,$I82,1,$H82,$G82*$H82,Options!B8)))","v":1121.9520792071},{"$f":"IF(AND(OR(Calculations!$E$2=\"Orkney Health Board\",Calculations!$E$2=\"Orkney Islands Local Authority\"),$F82=1),0,IF(AND(OR(Calculations!$E$2=\"Shetland Health Board\",Calculations!$E$2=\"Western Isles Health Board\",Calculations!$E$2=\"Shetland Islands Local Authority\",Calculations!$E$2=\"Eilean Siar Local Authority\"),OR($F82=1,$F82=5)),0,new_yllv2(VALUE(LEFT(Options!$B$24,2)),$C82,$D82,$E82,$F82,2016,$I82+$J82,1,$H82,$G82*$H82,Options!B8)))","v":1116.6851844354001},{"$f":"IF(AND(OR(Calculations!$E$2=\"Orkney Health Board\",Calculations!$E$2=\"Orkney Islands Local Authority\"),$F82=1),0,IF(AND(OR(Calculations!$E$2=\"Shetland Health Board\",Calculations!$E$2=\"Western Isles Health Board\",Calculations!$E$2=\"Shetland Islands Local Authority\",Calculations!$E$2=\"Eilean Siar Local Authority\"),OR($F82=1,$F82=5)),0,hosp_count(VALUE(LEFT(Options!$B$24,2)),$C82,$E82,$F82,2016,$I82,1,$H82,$G82*$H82, Options!B8)))","v":2447.1256447280998},{"$f":"IF(AND(OR(Calculations!$E$2=\"Orkney Health Board\",Calculations!$E$2=\"Orkney Islands Local Authority\"),$F82=1),0,IF(AND(OR(Calculations!$E$2=\"Shetland Health Board\",Calculations!$E$2=\"Western Isles Health Board\",Calculations!$E$2=\"Shetland Islands Local Authority\",Calculations!$E$2=\"Eilean Siar Local Authority\"),OR($F82=1,$F82=5)),0,hosp_count(VALUE(LEFT(Options!$B$24,2)),$C82,$E82,$F82,2016,$I82+$J82,1,$H82,$G82*$H82, Options!B8)))","v":2437.0850933135998},{"$f":"IF(AND(OR(Calculations!$E$2=\"Orkney Health Board\",Calculations!$E$2=\"Orkney Islands Local Authority\"),$F82=1),0,IF(AND(OR(Calculations!$E$2=\"Shetland Health Board\",Calculations!$E$2=\"Western Isles Health Board\",Calculations!$E$2=\"Shetland Islands Local Authority\",Calculations!$E$2=\"Eilean Siar Local Authority\"),OR($F82=1,$F82=5)),0,prem_mort(VALUE(LEFT(Options!$B$24,2)),$C82,$E82,$F82,2016,$I82,1,$H82,$G82*$H82,Options!B8)))","v":19.172112796699999},{"$f":"IF(AND(OR(Calculations!$E$2=\"Orkney Health Board\",Calculations!$E$2=\"Orkney Islands Local Authority\"),$F82=1),0,IF(AND(OR(Calculations!$E$2=\"Shetland Health Board\",Calculations!$E$2=\"Western Isles Health Board\",Calculations!$E$2=\"Shetland Islands Local Authority\",Calculations!$E$2=\"Eilean Siar Local Authority\"),OR($F82=1,$F82=5)),0,prem_mort(VALUE(LEFT(Options!$B$24,2)),$C82,$E82,$F82,2016,$I82+$J82,1,$H82,$G82*$H82,Options!B8)))","v":19.0821111803},75.602795049883667,75.247885091289092,4424.2757175247443,4403.5063860380933,9649.9295899999997,9610.3359490263811,75.602795049883667,75.247885091289092,332652.29821948812,331090.69440167199,19466813.157108877,19375428.098567609,42459690.196000002,42285478.17571608,332652.29821948812,331090.69440167199,4400]
[null,"Male 20-24",22.054632000000002,77.704629999999995,"male",1,{"$f":"HLOOKUP(Calculations!$E$2,'Prevalence Rates'!$C$3:$BC$249,'Prevalence Rates'!$BD83,FALSE)","v":0.17062984316140015},{"$f":"HLOOKUP(Calculations!$E$2,'Population 2016'!$C$3:$BC$249,'Population 2016'!BD83,FALSE)","v":37180},0,{"$f":"HLOOKUP(Results!E$4,Targeting!$C$3:$F$249,Targeting!$G83,FALSE)","v":2811},{"$f":"IF(AND(OR(Calculations!$E$2=\"Orkney Health Board\",Calculations!$E$2=\"Orkney Islands Local Authority\"),$F83=1),0,IF(AND(OR(Calculations!$E$2=\"Shetland Health Board\",Calculations!$E$2=\"Western Isles Health Board\",Calculations!$E$2=\"Shetland Islands Local Authority\",Calculations!$E$2=\"Eilean Siar Local Authority\"),OR($F83=1,$F83=5)),0,new_ci(VALUE(LEFT(Options!$B$24,2)),$C83,$E83,$F83,2016,$I83,1,$H83,$G83*$H83,Options!B8)))","v":39.470214466999998},{"$f":"IF(AND(OR(Calculations!$E$2=\"Orkney Health Board\",Calculations!$E$2=\"Orkney Islands Local Authority\"),$F83=1),0,IF(AND(OR(Calculations!$E$2=\"Shetland Health Board\",Calculations!$E$2=\"Western Isles Health Board\",Calculations!$E$2=\"Shetland Islands Local Authority\",Calculations!$E$2=\"Eilean Siar Local Authority\"),OR($F83=1,$F83=5)),0,new_ci(VALUE(LEFT(Options!$B$24,2)),$C83,$E83,$F83,2016,$I83+$J83,1,$H83,$G83*$H83,Options!B8)))","v":39.284951576600001},{"$f":"IF(AND(OR(Calculations!$E$2=\"Orkney Health Board\",Calculations!$E$2=\"Orkney Islands Local Authority\"),$F83=1),0,IF(AND(OR(Calculations!$E$2=\"Shetland Health Board\",Calculations!$E$2=\"Western Isles Health Board\",Calculations!$E$2=\"Shetland Islands Local Authority\",Calculations!$E$2=\"Eilean Siar Local Authority\"),OR($F83=1,$F83=5)),0,new_yllv2(VALUE(LEFT(Options!$B$24,2)),$C83,$D83,$E83,$F83,2016,$I83,1,$H83,$G83*$H83,Options!B8)))","v":2157.0471416811001},{"$f":"IF(AND(OR(Calculations!$E$2=\"Orkney Health Board\",Calculations!$E$2=\"Orkney Islands Local Authority\"),$F83=1),0,IF(AND(OR(Calculations!$E$2=\"Shetland Health Board\",Calculations!$E$2=\"Western Isles Health Board\",Calculations!$E$2=\"Shetland Islands Local Authority\",Calculations!$E$2=\"Eilean Siar Local Authority\"),OR($F83=1,$F83=5)),0,new_yllv2(VALUE(LEFT(Options!$B$24,2)),$C83,$D83,$E83,$F83,2016,$I83+$J83,1,$H83,$G83*$H83,Options!B8)))","v":2146.9225250913},{"$f":"IF(AND(OR(Calculations!$E$2=\"Orkney Health Board\",Calculations!$E$2=\"Orkney Islands Local Authority\"),$F83=1),0,IF(AND(OR(Calculations!$E$2=\"Shetland Health Board\",Calculations!$E$2=\"Western Isles Health Board\",Calculations!$E$2=\"Shetland Islands Local Authority\",Calculations!$E$2=\"Eilean Siar Local Authority\"),OR($F83=1,$F83=5)),0,hosp_count(VALUE(LEFT(Options!$B$24,2)),$C83,$E83,$F83,2016,$I83,1,$H83,$G83*$H83, Options!B8)))","v":4208.9782071480004},{"$f":"IF(AND(OR(Calculations!$E$2=\"Orkney Health Board\",Calculations!$E$2=\"Orkney Islands Local Authority\"),$F83=1),0,IF(AND(OR(Calculations!$E$2=\"Shetland Health Board\",Calculations!$E$2=\"Western Isles Health Board\",Calculations!$E$2=\"Shetland Islands Local Authority\",Calculations!$E$2=\"Eilean Siar Local Authority\"),OR($F83=1,$F83=5)),0,hosp_count(VALUE(LEFT(Options!$B$24,2)),$C83,$E83,$F83,2016,$I83+$J83,1,$H83,$G83*$H83, Options!B8)))","v":4191.7063337404998},{"$f":"IF(AND(OR(Calculations!$E$2=\"Orkney Health Board\",Calculations!$E$2=\"Orkney Islands Local Authority\"),$F83=1),0,IF(AND(OR(Calculations!$E$2=\"Shetland Health Board\",Calculations!$E$2=\"Western Isles Health Board\",Calculations!$E$2=\"Shetland Islands Local Authority\",Calculations!$E$2=\"Eilean Siar Local Authority\"),OR($F83=1,$F83=5)),0,prem_mort(VALUE(LEFT(Options!$B$24,2)),$C83,$E83,$F83,2016,$I83,1,$H83,$G83*$H83,Options!B8)))","v":39.470214466999998},{"$f":"IF(AND(OR(Calculations!$E$2=\"Orkney Health Board\",Calculations!$E$2=\"Orkney Islands Local Authority\"),$F83=1),0,IF(AND(OR(Calculations!$E$2=\"Shetland Health Board\",Calculations!$E$2=\"Western Isles Health Board\",Calculations!$E$2=\"Shetland Islands Local Authority\",Calculations!$E$2=\"Eilean Siar Local Authority\"),OR($F83=1,$F83=5)),0,prem_mort(VALUE(LEFT(Options!$B$24,2)),$C83,$E83,$F83,2016,$I83+$J83,1,$H83,$G83*$H83,Options!B8)))","v":39.284951576600001},106.15980222431413,105.66151580580957,5801.632979239107,5774.4016274644973,11320.543860000002,11274.089117107314,106.15980222431413,105.66151580580957,636958.81334588479,633969.09483485739,34809797.875434645,34646409.764786981,67923263.160000011,67644534.702643886,636958.81334588479,633969.09483485739,6000]
[null,"Male 25-29",26.959762999999999,77.789760000000001,"male",1,{"$f":"HLOOKUP(Calculations!$E$2,'Prevalence Rates'!$C$3:$BC$249,'Prevalence Rates'!$BD84,FALSE)","v":0.15931342036976001},{"$f":"HLOOKUP(Calculations!$E$2,'Population 2016'!$C$3:$BC$249,'Population 2016'!BD84,FALSE)","v":42600},0,{"$f":"HLOOKUP(Results!E$4,Targeting!$C$3:$F$249,Targeting!$G84,FALSE)","v":3221},{"$f":"IF(AND(OR(Calculations!$E$2=\"Orkney Health Board\",Calculations!$E$2=\"Orkney Islands Local Authority\"),$F84=1),0,IF(AND(OR(Calculations!$E$2=\"Shetland Health Board\",Calculations!$E$2=\"Western Isles Health Board\",Calculations!$E$2=\"Shetland Islands Local Authority\",Calculations!$E$2=\"Eilean Siar Local Authority\"),OR($F84=1,$F84=5)),0,new_ci(VALUE(LEFT(Options!$B$24,2)),$C84,$E84,$F84,2016,$I84,1,$H84,$G84*$H84,Options!B8)))","v":65.477600118500007},{"$f":"IF(AND(OR(Calculations!$E$2=\"Orkney Health Board\",Calculations!$E$2=\"Orkney Islands Local Authority\"),$F84=1),0,IF(AND(OR(Calculations!$E$2=\"Shetland Health Board\",Calculations!$E$2=\"Western Isles Health Board\",Calculations!$E$2=\"Shetland Islands Local Authority\",Calculations!$E$2=\"Eilean Siar Local Authority\"),OR($F84=1,$F84=5)),0,new_ci(VALUE(LEFT(Options!$B$24,2)),$C84,$E84,$F84,2016,$I84+$J84,1,$H84,$G84*$H84,Options!B8)))","v":65.168365114599993},{"$f":"IF(AND(OR(Calculations!$E$2=\"Orkney Health Board\",Calculations!$E$2=\"Orkney Islands Local Authority\"),$F84=1),0,IF(AND(OR(Calculations!$E$2=\"Shetland Health Board\",Calculations!$E$2=\"Western Isles Health Board\",Calculations!$E$2=\"Shetland Islands Local Authority\",Calculations!$E$2=\"Eilean Siar Local Authority\"),OR($F84=1,$F84=5)),0,new_yllv2(VALUE(LEFT(Options!$B$24,2)),$C84,$D84,$E84,$F84,2016,$I84,1,$H84,$G84*$H84,Options!B8)))","v":3262.7486174720998},{"$f":"IF(AND(OR(Calculations!$E$2=\"Orkney Health Board\",Calculations!$E$2=\"Orkney Islands Local Authority\"),$F84=1),0,IF(AND(OR(Calculations!$E$2=\"Shetland Health Board\",Calculations!$E$2=\"Western Isles Health Board\",Calculations!$E$2=\"Shetland Islands Local Authority\",Calculations!$E$2=\"Eilean Siar Local Authority\"),OR($F84=1,$F84=5)),0,new_yllv2(VALUE(LEFT(Options!$B$24,2)),$C84,$D84,$E84,$F84,2016,$I84+$J84,1,$H84,$G84*$H84,Options!B8)))","v":3247.3394381553999},{"$f":"IF(AND(OR(Calculations!$E$2=\"Orkney Health Board\",Calculations!$E$2=\"Orkney Islands Local Authority\"),$F84=1),0,IF(AND(OR(Calculations!$E$2=\"Shetland Health Board\",Calculations!$E$2=\"Western Isles Health Board\",Calculations!$E$2=\"Shetland Islands Local Authority\",Calculations!$E$2=\"Eilean Siar Local Authority\"),OR($F84=1,$F84=5)),0,hosp_count(VALUE(LEFT(Options!$B$24,2)),$C84,$E84,$F84,2016,$I84,1,$H84,$G84*$H84, Options!B8)))","v":5739.7274435999998},{"$f":"IF(AND(OR(Calculations!$E$2=\"Orkney Health Board\",Calculations!$E$2=\"Orkney Islands Local Authority\"),$F84=1),0,IF(AND(OR(Calculations!$E$2=\"Shetland Health Board\",Calculations!$E$2=\"Western Isles Health Board\",Calculations!$E$2=\"Shetland Islands Local Authority\",Calculations!$E$2=\"Eilean Siar Local Authority\"),OR($F84=1,$F84=5)),0,hosp_count(VALUE(LEFT(Options!$B$24,2)),$C84,$E84,$F84,2016,$I84+$J84,1,$H84,$G84*$H84, Options!B8)))","v":5716.1461736143001},{"$f":"IF(AND(OR(Calculations!$E$2=\"Orkney Health Board\",Calculations!$E$2=\"Orkney Islands Local Authority\"),$F84=1),0,IF(AND(OR(Calculations!$E$2=\"Shetland Health Board\",Calculations!$E$2=\"Western Isles Health Board\",Calculations!$E$2=\"Shetland Islands Local Authority\",Calculations!$E$2=\"Eilean Siar Local Authority\"),OR($F84=1,$F84=5)),0,prem_mort(VALUE(LEFT(Options!$B$24,2)),$C84,$E84,$F84,2016,$I84,1,$H84,$G84*$H84,Options!B8)))","v":65.477600118500007},{"$f":"IF(AND(OR(Calculations!$E$2=\"Orkney Health Board\",Calculations!$E$2=\"Orkney Islands Local Authority\"),$F84=1),0,IF(AND(OR(Calculations!$E$2=\"Shetland Health Board\",Calculations!$E$2=\"Western Isles Health Board\",Calculations!$E$2=\"Shetland Islands Local Authority\",Calculations!$E$2=\"Eilean Siar Local Authority\"),OR($F84=1,$F84=5)),0,prem_mort(VALUE(LEFT(Options!$B$24,2)),$C84,$E84,$F84,2016,$I84+$J84,1,$H84,$G84*$H84,Options!B8)))","v":65.168365114599993},153.70328666314555,152.97738289812207,7659.0343133147881,7622.8625308812207,13473.5386,13418.183506136855,153.70328666314555,152.97738289812207,922219.71997887327,917864.29738873243,45954205.879888728,45737175.185287327,80841231.599999994,80509101.036821127,922219.71997887327,917864.29738873243,6000]
[null,"Male 30-34",31.981521999999998,78.061520000000002,"male",1,{"$f":"HLOOKUP(Calculations!$E$2,'Prevalence Rates'!$C$3:$BC$249,'Prevalence Rates'!$BD85,FALSE)","v":0.15931342036976001},{"$f":"HLOOKUP(Calculations!$E$2,'Population 2016'!$C$3:$BC$249,'Population 2016'!BD85,FALSE)","v":38006},0,{"$f":"HLOOKUP(Results!E$4,Targeting!$C$3:$F$249,Targeting!$G85,FALSE)","v":2874},{"$f":"IF(AND(OR(Calculations!$E$2=\"Orkney Health Board\",Calculations!$E$2=\"Orkney Islands Local Authority\"),$F85=1),0,IF(AND(OR(Calculations!$E$2=\"Shetland Health Board\",Calculations!$E$2=\"Western Isles Health Board\",Calculations!$E$2=\"Shetland Islands Local Authority\",Calculations!$E$2=\"Eilean Siar Local Authority\"),OR($F85=1,$F85=5)),0,new_ci(VALUE(LEFT(Options!$B$24,2)),$C85,$E85,$F85,2016,$I85,1,$H85,$G85*$H85,Options!B8)))","v":85.315722732599994},{"$f":"IF(AND(OR(Calculations!$E$2=\"Orkney Health Board\",Calculations!$E$2=\"Orkney Islands Local Authority\"),$F85=1),0,IF(AND(OR(Calculations!$E$2=\"Shetland Health Board\",Calculations!$E$2=\"Western Isles Health Board\",Calculations!$E$2=\"Shetland Islands Local Authority\",Calculations!$E$2=\"Eilean Siar Local Authority\"),OR($F85=1,$F85=5)),0,new_ci(VALUE(LEFT(Options!$B$24,2)),$C85,$E85,$F85,2016,$I85+$J85,1,$H85,$G85*$H85,Options!B8)))","v":84.913014691200004},{"$f":"IF(AND(OR(Calculations!$E$2=\"Orkney Health Board\",Calculations!$E$2=\"Orkney Islands Local Authority\"),$F85=1),0,IF(AND(OR(Calculations!$E$2=\"Shetland Health Board\",Calculations!$E$2=\"Western Isles Health Board\",Calculations!$E$2=\"Shetland Islands Local Authority\",Calculations!$E$2=\"Eilean Siar Local Authority\"),OR($F85=1,$F85=5)),0,new_yllv2(VALUE(LEFT(Options!$B$24,2)),$C85,$D85,$E85,$F85,2016,$I85,1,$H85,$G85*$H85,Options!B8)))","v":3846.0326101542},{"$f":"IF(AND(OR(Calculations!$E$2=\"Orkney Health Board\",Calculations!$E$2=\"Orkney Islands Local Authority\"),$F85=1),0,IF(AND(OR(Calculations!$E$2=\"Shetland Health Board\",Calculations!$E$2=\"Western Isles Health Board\",Calculations!$E$2=\"Shetland Islands Local Authority\",Calculations!$E$2=\"Eilean Siar Local Authority\"),OR($F85=1,$F85=5)),0,new_yllv2(VALUE(LEFT(Options!$B$24,2)),$C85,$D85,$E85,$F85,2016,$I85+$J85,1,$H85,$G85*$H85,Options!B8)))","v":3827.8785324533001},{"$f":"IF(AND(OR(Calculations!$E$2=\"Orkney Health Board\",Calculations!$E$2=\"Orkney Islands Local Authority\"),$F85=1),0,IF(AND(OR(Calculations!$E$2=\"Shetland Health Board\",Calculations!$E$2=\"Western Isles Health Board\",Calculations!$E$2=\"Shetland Islands Local Authority\",Calculations!$E$2=\"Eilean Siar Local Authority\"),OR($F85=1,$F85=5)),0,hosp_count(VALUE(LEFT(Options!$B$24,2)),$C85,$E85,$F85,2016,$I85,1,$H85,$G85*$H85, Options!B8)))","v":6119.9246785464002},{"$f":"IF(AND(OR(Calculations!$E$2=\"Orkney Health Board\",Calculations!$E$2=\"Orkney Islands Local Authority\"),$F85=1),0,IF(AND(OR(Calculations!$E$2=\"Shetland Health Board\",Calculations!$E$2=\"Western Isles Health Board\",Calculations!$E$2=\"Shetland Islands Local Authority\",Calculations!$E$2=\"Eilean Siar Local Authority\"),OR($F85=1,$F85=5)),0,hosp_count(VALUE(LEFT(Options!$B$24,2)),$C85,$E85,$F85,2016,$I85+$J85,1,$H85,$G85*$H85, Options!B8)))","v":6094.7782986131997},{"$f":"IF(AND(OR(Calculations!$E$2=\"Orkney Health Board\",Calculations!$E$2=\"Orkney Islands Local Authority\"),$F85=1),0,IF(AND(OR(Calculations!$E$2=\"Shetland Health Board\",Calculations!$E$2=\"Western Isles Health Board\",Calculations!$E$2=\"Shetland Islands Local Authority\",Calculations!$E$2=\"Eilean Siar Local Authority\"),OR($F85=1,$F85=5)),0,prem_mort(VALUE(LEFT(Options!$B$24,2)),$C85,$E85,$F85,2016,$I85,1,$H85,$G85*$H85,Options!B8)))","v":85.315722732599994},{"$f":"IF(AND(OR(Calculations!$E$2=\"Orkney Health Board\",Calculations!$E$2=\"Orkney Islands Local Authority\"),$F85=1),0,IF(AND(OR(Calculations!$E$2=\"Shetland Health Board\",Calculations!$E$2=\"Western Isles Health Board\",Calculations!$E$2=\"Shetland Islands Local Authority\",Calculations!$E$2=\"Eilean Siar Local Authority\"),OR($F85=1,$F85=5)),0,prem_mort(VALUE(LEFT(Options!$B$24,2)),$C85,$E85,$F85,2016,$I85+$J85,1,$H85,$G85*$H85,Options!B8)))","v":84.913014691200004},224.4796156727885,223.420024972899,10119.540625570173,10071.774278938326,16102.522440000001,16036.358202950061,224.4796156727885,223.420024972899,1459117.5018731253,1452230.1623238435,65777014.06620612,65466532.813099124,104666395.86,104236328.31917539,1459117.5018731253,1452230.1623238435,6500]
[null,"Male 35-39",36.926009999999998,78.336009999999987,"male",1,{"$f":"HLOOKUP(Calculations!$E$2,'Prevalence Rates'!$C$3:$BC$249,'Prevalence Rates'!$BD86,FALSE)","v":0.19414150396415247},{"$f":"HLOOKUP(Calculations!$E$2,'Population 2016'!$C$3:$BC$249,'Population 2016'!BD86,FALSE)","v":32984},0,{"$f":"HLOOKUP(Results!E$4,Targeting!$C$3:$F$249,Targeting!$G86,FALSE)","v":2494},{"$f":"IF(AND(OR(Calculations!$E$2=\"Orkney Health Board\",Calculations!$E$2=\"Orkney Islands Local Authority\"),$F86=1),0,IF(AND(OR(Calculations!$E$2=\"Shetland Health Board\",Calculations!$E$2=\"Western Isles Health Board\",Calculations!$E$2=\"Shetland Islands Local Authority\",Calculations!$E$2=\"Eilean Siar Local Authority\"),OR($F86=1,$F86=5)),0,new_ci(VALUE(LEFT(Options!$B$24,2)),$C86,$E86,$F86,2016,$I86,1,$H86,$G86*$H86,Options!B8)))","v":107.4896603377},{"$f":"IF(AND(OR(Calculations!$E$2=\"Orkney Health Board\",Calculations!$E$2=\"Orkney Islands Local Authority\"),$F86=1),0,IF(AND(OR(Calculations!$E$2=\"Shetland Health Board\",Calculations!$E$2=\"Western Isles Health Board\",Calculations!$E$2=\"Shetland Islands Local Authority\",Calculations!$E$2=\"Eilean Siar Local Authority\"),OR($F86=1,$F86=5)),0,new_ci(VALUE(LEFT(Options!$B$24,2)),$C86,$E86,$F86,2016,$I86+$J86,1,$H86,$G86*$H86,Options!B8)))","v":106.99281463609999},{"$f":"IF(AND(OR(Calculations!$E$2=\"Orkney Health Board\",Calculations!$E$2=\"Orkney Islands Local Authority\"),$F86=1),0,IF(AND(OR(Calculations!$E$2=\"Shetland Health Board\",Calculations!$E$2=\"Western Isles Health Board\",Calculations!$E$2=\"Shetland Islands Local Authority\",Calculations!$E$2=\"Eilean Siar Local Authority\"),OR($F86=1,$F86=5)),0,new_yllv2(VALUE(LEFT(Options!$B$24,2)),$C86,$D86,$E86,$F86,2016,$I86,1,$H86,$G86*$H86,Options!B8)))","v":4343.6571742465003},{"$f":"IF(AND(OR(Calculations!$E$2=\"Orkney Health Board\",Calculations!$E$2=\"Orkney Islands Local Authority\"),$F86=1),0,IF(AND(OR(Calculations!$E$2=\"Shetland Health Board\",Calculations!$E$2=\"Western Isles Health Board\",Calculations!$E$2=\"Shetland Islands Local Authority\",Calculations!$E$2=\"Eilean Siar Local Authority\"),OR($F86=1,$F86=5)),0,new_yllv2(VALUE(LEFT(Options!$B$24,2)),$C86,$D86,$E86,$F86,2016,$I86+$J86,1,$H86,$G86*$H86,Options!B8)))","v":4323.5796394447998},{"$f":"IF(AND(OR(Calculations!$E$2=\"Orkney Health Board\",Calculations!$E$2=\"Orkney Islands Local Authority\"),$F86=1),0,IF(AND(OR(Calculations!$E$2=\"Shetland Health Board\",Calculations!$E$2=\"Western Isles Health Board\",Calculations!$E$2=\"Shetland Islands Local Authority\",Calculations!$E$2=\"Eilean Siar Local Authority\"),OR($F86=1,$F86=5)),0,hosp_count(VALUE(LEFT(Options!$B$24,2)),$C86,$E86,$F86,2016,$I86,1,$H86,$G86*$H86, Options!B8)))","v":6330.2128956528004},{"$f":"IF(AND(OR(Calculations!$E$2=\"Orkney Health Board\",Calculations!$E$2=\"Orkney Islands Local Authority\"),$F86=1),0,IF(AND(OR(Calculations!$E$2=\"Shetland Health Board\",Calculations!$E$2=\"Western Isles Health Board\",Calculations!$E$2=\"Shetland Islands Local Authority\",Calculations!$E$2=\"Eilean Siar Local Authority\"),OR($F86=1,$F86=5)),0,hosp_count(VALUE(LEFT(Options!$B$24,2)),$C86,$E86,$F86,2016,$I86+$J86,1,$H86,$G86*$H86, Options!B8)))","v":6304.2937941629998},{"$f":"IF(AND(OR(Calculations!$E$2=\"Orkney Health Board\",Calculations!$E$2=\"Orkney Islands Local Authority\"),$F86=1),0,IF(AND(OR(Calculations!$E$2=\"Shetland Health Board\",Calculations!$E$2=\"Western Isles Health Board\",Calculations!$E$2=\"Shetland Islands Local Authority\",Calculations!$E$2=\"Eilean Siar Local Authority\"),OR($F86=1,$F86=5)),0,prem_mort(VALUE(LEFT(Options!$B$24,2)),$C86,$E86,$F86,2016,$I86,1,$H86,$G86*$H86,Options!B8)))","v":107.4896603377},{"$f":"IF(AND(OR(Calculations!$E$2=\"Orkney Health Board\",Calculations!$E$2=\"Orkney Islands Local Authority\"),$F86=1),0,IF(AND(OR(Calculations!$E$2=\"Shetland Health Board\",Calculations!$E$2=\"Western Isles Health Board\",Calculations!$E$2=\"Shetland Islands Local Authority\",Calculations!$E$2=\"Eilean Siar Local Authority\"),OR($F86=1,$F86=5)),0,prem_mort(VALUE(LEFT(Options!$B$24,2)),$C86,$E86,$F86,2016,$I86+$J86,1,$H86,$G86*$H86,Options!B8)))","v":106.99281463609999},325.88424793142133,324.3779245576643,13168.982458908866,13108.111931375211,19191.768420000004,19113.187588415592,325.88424793142133,324.3779245576643,2281189.7355199493,2270645.4719036501,92182877.212362066,91756783.519626483,134342378.94000003,133792313.11890915,2281189.7355199493,2270645.4719036501,7000]
[null,"Male 40-44",42.067703000000002,78.907700000000006,"male",1,{"$f":"HLOOKUP(Calculations!$E$2,'Prevalence Rates'!$C$3:$BC$249,'Prevalence Rates'!$BD87,FALSE)","v":0.19414150396415247},{"$f":"HLOOKUP(Calculations!$E$2,'Population 2016'!$C$3:$BC$249,'Population 2016'!BD87,FALSE)","v":31623},0,{"$f":"HLOOKUP(Results!E$4,Targeting!$C$3:$F$249,Targeting!$G87,FALSE)","v":2391},{"$f":"IF(AND(OR(Calculations!$E$2=\"Orkney Health Board\",Calculations!$E$2=\"Orkney Islands Local Authority\"),$F87=1),0,IF(AND(OR(Calculations!$E$2=\"Shetland Health Board\",Calculations!$E$2=\"Western Isles Health Board\",Calculations!$E$2=\"Shetland Islands Local Authority\",Calculations!$E$2=\"Eilean Siar Local Authority\"),OR($F87=1,$F87=5)),0,new_ci(VALUE(LEFT(Options!$B$24,2)),$C87,$E87,$F87,2016,$I87,1,$H87,$G87*$H87,Options!B8)))","v":151.81005340569999},{"$f":"IF(AND(OR(Calculations!$E$2=\"Orkney Health Board\",Calculations!$E$2=\"Orkney Islands Local Authority\"),$F87=1),0,IF(AND(OR(Calculations!$E$2=\"Shetland Health Board\",Calculations!$E$2=\"Western Isles Health Board\",Calculations!$E$2=\"Shetland Islands Local Authority\",Calculations!$E$2=\"Eilean Siar Local Authority\"),OR($F87=1,$F87=5)),0,new_ci(VALUE(LEFT(Options!$B$24,2)),$C87,$E87,$F87,2016,$I87+$J87,1,$H87,$G87*$H87,Options!B8)))","v":151.1093545969},{"$f":"IF(AND(OR(Calculations!$E$2=\"Orkney Health Board\",Calculations!$E$2=\"Orkney Islands Local Authority\"),$F87=1),0,IF(AND(OR(Calculations!$E$2=\"Shetland Health Board\",Calculations!$E$2=\"Western Isles Health Board\",Calculations!$E$2=\"Shetland Islands Local Authority\",Calculations!$E$2=\"Eilean Siar Local Authority\"),OR($F87=1,$F87=5)),0,new_yllv2(VALUE(LEFT(Options!$B$24,2)),$C87,$D87,$E87,$F87,2016,$I87,1,$H87,$G87*$H87,Options!B8)))","v":5440.8718586301002},{"$f":"IF(AND(OR(Calculations!$E$2=\"Orkney Health Board\",Calculations!$E$2=\"Orkney Islands Local Authority\"),$F87=1),0,IF(AND(OR(Calculations!$E$2=\"Shetland Health Board\",Calculations!$E$2=\"Western Isles Health Board\",Calculations!$E$2=\"Shetland Islands Local Authority\",Calculations!$E$2=\"Eilean Siar Local Authority\"),OR($F87=1,$F87=5)),0,new_yllv2(VALUE(LEFT(Options!$B$24,2)),$C87,$D87,$E87,$F87,2016,$I87+$J87,1,$H87,$G87*$H87,Options!B8)))","v":5415.7588154247996},{"$f":"IF(AND(OR(Calculations!$E$2=\"Orkney Health Board\",Calculations!$E$2=\"Orkney Islands Local Authority\"),$F87=1),0,IF(AND(OR(Calculations!$E$2=\"Shetland Health Board\",Calculations!$E$2=\"Western Isles Health Board\",Calculations!$E$2=\"Shetland Islands Local Authority\",Calculations!$E$2=\"Eilean Siar Local Authority\"),OR($F87=1,$F87=5)),0,hosp_count(VALUE(LEFT(Options!$B$24,2)),$C87,$E87,$F87,2016,$I87,1,$H87,$G87*$H87, Options!B8)))","v":7284.1542018173996},{"$f":"IF(AND(OR(Calculations!$E$2=\"Orkney Health Board\",Calculations!$E$2=\"Orkney Islands Local Authority\"),$F87=1),0,IF(AND(OR(Calculations!$E$2=\"Shetland Health Board\",Calculations!$E$2=\"Western Isles Health Board\",Calculations!$E$2=\"Shetland Islands Local Authority\",Calculations!$E$2=\"Eilean Siar Local Authority\"),OR($F87=1,$F87=5)),0,hosp_count(VALUE(LEFT(Options!$B$24,2)),$C87,$E87,$F87,2016,$I87+$J87,1,$H87,$G87*$H87, Options!B8)))","v":7254.3303223387002},{"$f":"IF(AND(OR(Calculations!$E$2=\"Orkney Health Board\",Calculations!$E$2=\"Orkney Islands Local Authority\"),$F87=1),0,IF(AND(OR(Calculations!$E$2=\"Shetland Health Board\",Calculations!$E$2=\"Western Isles Health Board\",Calculations!$E$2=\"Shetland Islands Local Authority\",Calculations!$E$2=\"Eilean Siar Local Authority\"),OR($F87=1,$F87=5)),0,prem_mort(VALUE(LEFT(Options!$B$24,2)),$C87,$E87,$F87,2016,$I87,1,$H87,$G87*$H87,Options!B8)))","v":151.81005340569999},{"$f":"IF(AND(OR(Calculations!$E$2=\"Orkney Health Board\",Calculations!$E$2=\"Orkney Islands Local Authority\"),$F87=1),0,IF(AND(OR(Calculations!$E$2=\"Shetland Health Board\",Calculations!$E$2=\"Western Isles Health Board\",Calculations!$E$2=\"Shetland Islands Local Authority\",Calculations!$E$2=\"Eilean Siar Local Authority\"),OR($F87=1,$F87=5)),0,prem_mort(VALUE(LEFT(Options!$B$24,2)),$C87,$E87,$F87,2016,$I87+$J87,1,$H87,$G87*$H87,Options!B8)))","v":151.1093545969},480.06214908674065,477.8463605505487,17205.425983082252,17126.01212859248,23034.355379999997,22940.044658440693,480.06214908674065,477.8463605505487,3360435.0436071847,3344924.5238538408,120437981.88157576,119882084.90014736,161240487.65999997,160580312.60908484,3360435.0436071847,3344924.5238538408,7000]
[null,"Male 45-49",47.038155000000003,79.418149999999997,"male",1,{"$f":"HLOOKUP(Calculations!$E$2,'Prevalence Rates'!$C$3:$BC$249,'Prevalence Rates'!$BD88,FALSE)","v":0.26928127000751784},{"$f":"HLOOKUP(Calculations!$E$2,'Population 2016'!$C$3:$BC$249,'Population 2016'!BD88,FALSE)","v":35878},0,{"$f":"HLOOKUP(Results!E$4,Targeting!$C$3:$F$249,Targeting!$G88,FALSE)","v":2713},{"$f":"IF(AND(OR(Calculations!$E$2=\"Orkney Health Board\",Calculations!$E$2=\"Orkney Islands Local Authority\"),$F88=1),0,IF(AND(OR(Calculations!$E$2=\"Shetland Health Board\",Calculations!$E$2=\"Western Isles Health Board\",Calculations!$E$2=\"Shetland Islands Local Authority\",Calculations!$E$2=\"Eilean Siar Local Authority\"),OR($F88=1,$F88=5)),0,new_ci(VALUE(LEFT(Options!$B$24,2)),$C88,$E88,$F88,2016,$I88,1,$H88,$G88*$H88,Options!B8)))","v":250.3725043661},{"$f":"IF(AND(OR(Calculations!$E$2=\"Orkney Health Board\",Calculations!$E$2=\"Orkney Islands Local Authority\"),$F88=1),0,IF(AND(OR(Calculations!$E$2=\"Shetland Health Board\",Calculations!$E$2=\"Western Isles Health Board\",Calculations!$E$2=\"Shetland Islands Local Authority\",Calculations!$E$2=\"Eilean Siar Local Authority\"),OR($F88=1,$F88=5)),0,new_ci(VALUE(LEFT(Options!$B$24,2)),$C88,$E88,$F88,2016,$I88+$J88,1,$H88,$G88*$H88,Options!B8)))","v":249.26587437910001},{"$f":"IF(AND(OR(Calculations!$E$2=\"Orkney Health Board\",Calculations!$E$2=\"Orkney Islands Local Authority\"),$F88=1),0,IF(AND(OR(Calculations!$E$2=\"Shetland Health Board\",Calculations!$E$2=\"Western Isles Health Board\",Calculations!$E$2=\"Shetland Islands Local Authority\",Calculations!$E$2=\"Eilean Siar Local Authority\"),OR($F88=1,$F88=5)),0,new_yllv2(VALUE(LEFT(Options!$B$24,2)),$C88,$D88,$E88,$F88,2016,$I88,1,$H88,$G88*$H88,Options!B8)))","v":7856.6879351457001},{"$f":"IF(AND(OR(Calculations!$E$2=\"Orkney Health Board\",Calculations!$E$2=\"Orkney Islands Local Authority\"),$F88=1),0,IF(AND(OR(Calculations!$E$2=\"Shetland Health Board\",Calculations!$E$2=\"Western Isles Health Board\",Calculations!$E$2=\"Shetland Islands Local Authority\",Calculations!$E$2=\"Eilean Siar Local Authority\"),OR($F88=1,$F88=5)),0,new_yllv2(VALUE(LEFT(Options!$B$24,2)),$C88,$D88,$E88,$F88,2016,$I88+$J88,1,$H88,$G88*$H88,Options!B8)))","v":7821.9618916868003},{"$f":"IF(AND(OR(Calculations!$E$2=\"Orkney Health Board\",Calculations!$E$2=\"Orkney Islands Local Authority\"),$F88=1),0,IF(AND(OR(Calculations!$E$2=\"Shetland Health Board\",Calculations!$E$2=\"Western Isles Health Board\",Calculations!$E$2=\"Shetland Islands Local Authority\",Calculations!$E$2=\"Eilean Siar Local Authority\"),OR($F88=1,$F88=5)),0,hosp_count(VALUE(LEFT(Options!$B$24,2)),$C88,$E88,$F88,2016,$I88,1,$H88,$G88*$H88, Options!B8)))","v":9858.8353716774},{"$f":"IF(AND(OR(Calculations!$E$2=\"Orkney Health Board\",Calculations!$E$2=\"Orkney Islands Local Authority\"),$F88=1),0,IF(AND(OR(Calculations!$E$2=\"Shetland Health Board\",Calculations!$E$2=\"Western Isles Health Board\",Calculations!$E$2=\"Shetland Islands Local Authority\",Calculations!$E$2=\"Eilean Siar Local Authority\"),OR($F88=1,$F88=5)),0,hosp_count(VALUE(LEFT(Options!$B$24,2)),$C88,$E88,$F88,2016,$I88+$J88,1,$H88,$G88*$H88, Options!B8)))","v":9818.7610398712004},{"$f":"IF(AND(OR(Calculations!$E$2=\"Orkney Health Board\",Calculations!$E$2=\"Orkney Islands Local Authority\"),$F88=1),0,IF(AND(OR(Calculations!$E$2=\"Shetland Health Board\",Calculations!$E$2=\"Western Isles Health Board\",Calculations!$E$2=\"Shetland Islands Local Authority\",Calculations!$E$2=\"Eilean Siar Local Authority\"),OR($F88=1,$F88=5)),0,prem_mort(VALUE(LEFT(Options!$B$24,2)),$C88,$E88,$F88,2016,$I88,1,$H88,$G88*$H88,Options!B8)))","v":250.3725043661},{"$f":"IF(AND(OR(Calculations!$E$2=\"Orkney Health Board\",Calculations!$E$2=\"Orkney Islands Local Authority\"),$F88=1),0,IF(AND(OR(Calculations!$E$2=\"Shetland Health Board\",Calculations!$E$2=\"Western Isles Health Board\",Calculations!$E$2=\"Shetland Islands Local Authority\",Calculations!$E$2=\"Eilean Siar Local Authority\"),OR($F88=1,$F88=5)),0,prem_mort(VALUE(LEFT(Options!$B$24,2)),$C88,$E88,$F88,2016,$I88+$J88,1,$H88,$G88*$H88,Options!B8)))","v":249.26587437910001},697.84409489408552,694.75966993450027,21898.34420855594,21801.55496874631,27478.776330000001,27367.080215929538,697.84409489408552,694.75966993450027,4884908.6642585983,4863317.6895415019,153288409.45989159,152610884.78122416,192351434.31,191569561.51150677,4884908.6642585983,4863317.6895415019,7000]
[null,"Male 50-54",51.998646000000001,79.988649999999993,"male",1,{"$f":"HLOOKUP(Calculations!$E$2,'Prevalence Rates'!$C$3:$BC$249,'Prevalence Rates'!$BD89,FALSE)","v":0.26928127000751784},{"$f":"HLOOKUP(Calculations!$E$2,'Population 2016'!$C$3:$BC$249,'Population 2016'!BD89,FALSE)","v":36922},0,{"$f":"HLOOKUP(Results!E$4,Targeting!$C$3:$F$249,Targeting!$G89,FALSE)","v":2792},{"$f":"IF(AND(OR(Calculations!$E$2=\"Orkney Health Board\",Calculations!$E$2=\"Orkney Islands Local Authority\"),$F89=1),0,IF(AND(OR(Calculations!$E$2=\"Shetland Health Board\",Calculations!$E$2=\"Western Isles Health Board\",Calculations!$E$2=\"Shetland Islands Local Authority\",Calculations!$E$2=\"Eilean Siar Local Authority\"),OR($F89=1,$F89=5)),0,new_ci(VALUE(LEFT(Options!$B$24,2)),$C89,$E89,$F89,2016,$I89,1,$H89,$G89*$H89,Options!B8)))","v":374.0755463644},{"$f":"IF(AND(OR(Calculations!$E$2=\"Orkney Health Board\",Calculations!$E$2=\"Orkney Islands Local Authority\"),$F89=1),0,IF(AND(OR(Calculations!$E$2=\"Shetland Health Board\",Calculations!$E$2=\"Western Isles Health Board\",Calculations!$E$2=\"Shetland Islands Local Authority\",Calculations!$E$2=\"Eilean Siar Local Authority\"),OR($F89=1,$F89=5)),0,new_ci(VALUE(LEFT(Options!$B$24,2)),$C89,$E89,$F89,2016,$I89+$J89,1,$H89,$G89*$H89,Options!B8)))","v":372.42654370039998},{"$f":"IF(AND(OR(Calculations!$E$2=\"Orkney Health Board\",Calculations!$E$2=\"Orkney Islands Local Authority\"),$F89=1),0,IF(AND(OR(Calculations!$E$2=\"Shetland Health Board\",Calculations!$E$2=\"Western Isles Health Board\",Calculations!$E$2=\"Shetland Islands Local Authority\",Calculations!$E$2=\"Eilean Siar Local Authority\"),OR($F89=1,$F89=5)),0,new_yllv2(VALUE(LEFT(Options!$B$24,2)),$C89,$D89,$E89,$F89,2016,$I89,1,$H89,$G89*$H89,Options!B8)))","v":10096.300492677299},{"$f":"IF(AND(OR(Calculations!$E$2=\"Orkney Health Board\",Calculations!$E$2=\"Orkney Islands Local Authority\"),$F89=1),0,IF(AND(OR(Calculations!$E$2=\"Shetland Health Board\",Calculations!$E$2=\"Western Isles Health Board\",Calculations!$E$2=\"Shetland Islands Local Authority\",Calculations!$E$2=\"Eilean Siar Local Authority\"),OR($F89=1,$F89=5)),0,new_yllv2(VALUE(LEFT(Options!$B$24,2)),$C89,$D89,$E89,$F89,2016,$I89+$J89,1,$H89,$G89*$H89,Options!B8)))","v":10051.79390418},{"$f":"IF(AND(OR(Calculations!$E$2=\"Orkney Health Board\",Calculations!$E$2=\"Orkney Islands Local Authority\"),$F89=1),0,IF(AND(OR(Calculations!$E$2=\"Shetland Health Board\",Calculations!$E$2=\"Western Isles Health Board\",Calculations!$E$2=\"Shetland Islands Local Authority\",Calculations!$E$2=\"Eilean Siar Local Authority\"),OR($F89=1,$F89=5)),0,hosp_count(VALUE(LEFT(Options!$B$24,2)),$C89,$E89,$F89,2016,$I89,1,$H89,$G89*$H89, Options!B8)))","v":12099.025182703401},{"$f":"IF(AND(OR(Calculations!$E$2=\"Orkney Health Board\",Calculations!$E$2=\"Orkney Islands Local Authority\"),$F89=1),0,IF(AND(OR(Calculations!$E$2=\"Shetland Health Board\",Calculations!$E$2=\"Western Isles Health Board\",Calculations!$E$2=\"Shetland Islands Local Authority\",Calculations!$E$2=\"Eilean Siar Local Authority\"),OR($F89=1,$F89=5)),0,hosp_count(VALUE(LEFT(Options!$B$24,2)),$C89,$E89,$F89,2016,$I89+$J89,1,$H89,$G89*$H89, Options!B8)))","v":12049.8439190686},{"$f":"IF(AND(OR(Calculations!$E$2=\"Orkney Health Board\",Calculations!$E$2=\"Orkney Islands Local Authority\"),$F89=1),0,IF(AND(OR(Calculations!$E$2=\"Shetland Health Board\",Calculations!$E$2=\"Western Isles Health Board\",Calculations!$E$2=\"Shetland Islands Local Authority\",Calculations!$E$2=\"Eilean Siar Local Authority\"),OR($F89=1,$F89=5)),0,prem_mort(VALUE(LEFT(Options!$B$24,2)),$C89,$E89,$F89,2016,$I89,1,$H89,$G89*$H89,Options!B8)))","v":374.0755463644},{"$f":"IF(AND(OR(Calculations!$E$2=\"Orkney Health Board\",Calculations!$E$2=\"Orkney Islands Local Authority\"),$F89=1),0,IF(AND(OR(Calculations!$E$2=\"Shetland Health Board\",Calculations!$E$2=\"Western Isles Health Board\",Calculations!$E$2=\"Shetland Islands Local Authority\",Calculations!$E$2=\"Eilean Siar Local Authority\"),OR($F89=1,$F89=5)),0,prem_mort(VALUE(LEFT(Options!$B$24,2)),$C89,$E89,$F89,2016,$I89+$J89,1,$H89,$G89*$H89,Options!B8)))","v":372.42654370039998},1013.1508216358811,1008.684642490656,27344.944728555602,27224.402535561454,32769.148970000002,32635.945829230815,1013.1508216358811,1008.684642490656,7092055.7514511682,7060792.4974345919,191414613.09988922,190570817.74893019,229384042.79000002,228451620.80461571,7092055.7514511682,7060792.4974345919,7000]
[null,"Male 55-59",56.950867000000002,80.660870000000003,"male",1,{"$f":"HLOOKUP(Calculations!$E$2,'Prevalence Rates'!$C$3:$BC$249,'Prevalence Rates'!$BD90,FALSE)","v":0.28995123222523911},{"$f":"HLOOKUP(Calculations!$E$2,'Population 2016'!$C$3:$BC$249,'Population 2016'!BD90,FALSE)","v":33251},0,{"$f":"HLOOKUP(Results!E$4,Targeting!$C$3:$F$249,Targeting!$G90,FALSE)","v":2514},{"$f":"IF(AND(OR(Calculations!$E$2=\"Orkney Health Board\",Calculations!$E$2=\"Orkney Islands Local Authority\"),$F90=1),0,IF(AND(OR(Calculations!$E$2=\"Shetland Health Board\",Calculations!$E$2=\"Western Isles Health Board\",Calculations!$E$2=\"Shetland Islands Local Authority\",Calculations!$E$2=\"Eilean Siar Local Authority\"),OR($F90=1,$F90=5)),0,new_ci(VALUE(LEFT(Options!$B$24,2)),$C90,$E90,$F90,2016,$I90,1,$H90,$G90*$H90,Options!B8)))","v":488.41657285230002},{"$f":"IF(AND(OR(Calculations!$E$2=\"Orkney Health Board\",Calculations!$E$2=\"Orkney Islands Local Authority\"),$F90=1),0,IF(AND(OR(Calculations!$E$2=\"Shetland Health Board\",Calculations!$E$2=\"Western Isles Health Board\",Calculations!$E$2=\"Shetland Islands Local Authority\",Calculations!$E$2=\"Eilean Siar Local Authority\"),OR($F90=1,$F90=5)),0,new_ci(VALUE(LEFT(Options!$B$24,2)),$C90,$E90,$F90,2016,$I90+$J90,1,$H90,$G90*$H90,Options!B8)))","v":486.29565334469999},{"$f":"IF(AND(OR(Calculations!$E$2=\"Orkney Health Board\",Calculations!$E$2=\"Orkney Islands Local Authority\"),$F90=1),0,IF(AND(OR(Calculations!$E$2=\"Shetland Health Board\",Calculations!$E$2=\"Western Isles Health Board\",Calculations!$E$2=\"Shetland Islands Local Authority\",Calculations!$E$2=\"Eilean Siar Local Authority\"),OR($F90=1,$F90=5)),0,new_yllv2(VALUE(LEFT(Options!$B$24,2)),$C90,$D90,$E90,$F90,2016,$I90,1,$H90,$G90*$H90,Options!B8)))","v":11091.9418347255},{"$f":"IF(AND(OR(Calculations!$E$2=\"Orkney Health Board\",Calculations!$E$2=\"Orkney Islands Local Authority\"),$F90=1),0,IF(AND(OR(Calculations!$E$2=\"Shetland Health Board\",Calculations!$E$2=\"Western Isles Health Board\",Calculations!$E$2=\"Shetland Islands Local Authority\",Calculations!$E$2=\"Eilean Siar Local Authority\"),OR($F90=1,$F90=5)),0,new_yllv2(VALUE(LEFT(Options!$B$24,2)),$C90,$D90,$E90,$F90,2016,$I90+$J90,1,$H90,$G90*$H90,Options!B8)))","v":11043.7757463451},{"$f":"IF(AND(OR(Calculations!$E$2=\"Orkney Health Board\",Calculations!$E$2=\"Orkney Islands Local Authority\"),$F90=1),0,IF(AND(OR(Calculations!$E$2=\"Shetland Health Board\",Calculations!$E$2=\"Western Isles Health Board\",Calculations!$E$2=\"Shetland Islands Local Authority\",Calculations!$E$2=\"Eilean Siar Local Authority\"),OR($F90=1,$F90=5)),0,hosp_count(VALUE(LEFT(Options!$B$24,2)),$C90,$E90,$F90,2016,$I90,1,$H90,$G90*$H90, Options!B8)))","v":12990.0302415269},{"$f":"IF(AND(OR(Calculations!$E$2=\"Orkney Health Board\",Calculations!$E$2=\"Orkney Islands Local Authority\"),$F90=1),0,IF(AND(OR(Calculations!$E$2=\"Shetland Health Board\",Calculations!$E$2=\"Western Isles Health Board\",Calculations!$E$2=\"Shetland Islands Local Authority\",Calculations!$E$2=\"Eilean Siar Local Authority\"),OR($F90=1,$F90=5)),0,hosp_count(VALUE(LEFT(Options!$B$24,2)),$C90,$E90,$F90,2016,$I90+$J90,1,$H90,$G90*$H90, Options!B8)))","v":12937.341653088},{"$f":"IF(AND(OR(Calculations!$E$2=\"Orkney Health Board\",Calculations!$E$2=\"Orkney Islands Local Authority\"),$F90=1),0,IF(AND(OR(Calculations!$E$2=\"Shetland Health Board\",Calculations!$E$2=\"Western Isles Health Board\",Calculations!$E$2=\"Shetland Islands Local Authority\",Calculations!$E$2=\"Eilean Siar Local Authority\"),OR($F90=1,$F90=5)),0,prem_mort(VALUE(LEFT(Options!$B$24,2)),$C90,$E90,$F90,2016,$I90,1,$H90,$G90*$H90,Options!B8)))","v":488.41657285230002},{"$f":"IF(AND(OR(Calculations!$E$2=\"Orkney Health Board\",Calculations!$E$2=\"Orkney Islands Local Authority\"),$F90=1),0,IF(AND(OR(Calculations!$E$2=\"Shetland Health Board\",Calculations!$E$2=\"Western Isles Health Board\",Calculations!$E$2=\"Shetland Islands Local Authority\",Calculations!$E$2=\"Eilean Siar Local Authority\"),OR($F90=1,$F90=5)),0,prem_mort(VALUE(LEFT(Options!$B$24,2)),$C90,$E90,$F90,2016,$I90+$J90,1,$H90,$G90*$H90,Options!B8)))","v":486.29565334469999},1468.8778468385915,1462.4993333875673,33358.220308338095,33213.36424872966,39066.585189999998,38908.128035511712,1468.8778468385915,1462.4993333875673,9547706.0044508446,9506245.6670191865,216828432.00419763,215886867.61674279,253932803.73499998,252902832.23082614,9547706.0044508446,9506245.6670191865,6500]
[null,"Male 60-64",61.942988999999997,81.612989999999996,"male",1,{"$f":"HLOOKUP(Calculations!$E$2,'Prevalence Rates'!$C$3:$BC$249,'Prevalence Rates'!$BD91,FALSE)","v":0.28995123222523911},{"$f":"HLOOKUP(Calculations!$E$2,'Population 2016'!$C$3:$BC$249,'Population 2016'!BD91,FALSE)","v":27358},0,{"$f":"HLOOKUP(Results!E$4,Targeting!$C$3:$F$249,Targeting!$G91,FALSE)","v":2068},{"$f":"IF(AND(OR(Calculations!$E$2=\"Orkney Health Board\",Calculations!$E$2=\"Orkney Islands Local Authority\"),$F91=1),0,IF(AND(OR(Calculations!$E$2=\"Shetland Health Board\",Calculations!$E$2=\"Western Isles Health Board\",Calculations!$E$2=\"Shetland Islands Local Authority\",Calculations!$E$2=\"Eilean Siar Local Authority\"),OR($F91=1,$F91=5)),0,new_ci(VALUE(LEFT(Options!$B$24,2)),$C91,$E91,$F91,2016,$I91,1,$H91,$G91*$H91,Options!B8)))","v":583.71297717300001},{"$f":"IF(AND(OR(Calculations!$E$2=\"Orkney Health Board\",Calculations!$E$2=\"Orkney Islands Local Authority\"),$F91=1),0,IF(AND(OR(Calculations!$E$2=\"Shetland Health Board\",Calculations!$E$2=\"Western Isles Health Board\",Calculations!$E$2=\"Shetland Islands Local Authority\",Calculations!$E$2=\"Eilean Siar Local Authority\"),OR($F91=1,$F91=5)),0,new_ci(VALUE(LEFT(Options!$B$24,2)),$C91,$E91,$F91,2016,$I91+$J91,1,$H91,$G91*$H91,Options!B8)))","v":581.1929409114},{"$f":"IF(AND(OR(Calculations!$E$2=\"Orkney Health Board\",Calculations!$E$2=\"Orkney Islands Local Authority\"),$F91=1),0,IF(AND(OR(Calculations!$E$2=\"Shetland Health Board\",Calculations!$E$2=\"Western Isles Health Board\",Calculations!$E$2=\"Shetland Islands Local Authority\",Calculations!$E$2=\"Eilean Siar Local Authority\"),OR($F91=1,$F91=5)),0,new_yllv2(VALUE(LEFT(Options!$B$24,2)),$C91,$D91,$E91,$F91,2016,$I91,1,$H91,$G91*$H91,Options!B8)))","v":10897.921867532899},{"$f":"IF(AND(OR(Calculations!$E$2=\"Orkney Health Board\",Calculations!$E$2=\"Orkney Islands Local Authority\"),$F91=1),0,IF(AND(OR(Calculations!$E$2=\"Shetland Health Board\",Calculations!$E$2=\"Western Isles Health Board\",Calculations!$E$2=\"Shetland Islands Local Authority\",Calculations!$E$2=\"Eilean Siar Local Authority\"),OR($F91=1,$F91=5)),0,new_yllv2(VALUE(LEFT(Options!$B$24,2)),$C91,$D91,$E91,$F91,2016,$I91+$J91,1,$H91,$G91*$H91,Options!B8)))","v":10850.872788008801},{"$f":"IF(AND(OR(Calculations!$E$2=\"Orkney Health Board\",Calculations!$E$2=\"Orkney Islands Local Authority\"),$F91=1),0,IF(AND(OR(Calculations!$E$2=\"Shetland Health Board\",Calculations!$E$2=\"Western Isles Health Board\",Calculations!$E$2=\"Shetland Islands Local Authority\",Calculations!$E$2=\"Eilean Siar Local Authority\"),OR($F91=1,$F91=5)),0,hosp_count(VALUE(LEFT(Options!$B$24,2)),$C91,$E91,$F91,2016,$I91,1,$H91,$G91*$H91, Options!B8)))","v":12759.838377569},{"$f":"IF(AND(OR(Calculations!$E$2=\"Orkney Health Board\",Calculations!$E$2=\"Orkney Islands Local Authority\"),$F91=1),0,IF(AND(OR(Calculations!$E$2=\"Shetland Health Board\",Calculations!$E$2=\"Western Isles Health Board\",Calculations!$E$2=\"Shetland Islands Local Authority\",Calculations!$E$2=\"Eilean Siar Local Authority\"),OR($F91=1,$F91=5)),0,hosp_count(VALUE(LEFT(Options!$B$24,2)),$C91,$E91,$F91,2016,$I91+$J91,1,$H91,$G91*$H91, Options!B8)))","v":12708.0947107091},{"$f":"IF(AND(OR(Calculations!$E$2=\"Orkney Health Board\",Calculations!$E$2=\"Orkney Islands Local Authority\"),$F91=1),0,IF(AND(OR(Calculations!$E$2=\"Shetland Health Board\",Calculations!$E$2=\"Western Isles Health Board\",Calculations!$E$2=\"Shetland Islands Local Authority\",Calculations!$E$2=\"Eilean Siar Local Authority\"),OR($F91=1,$F91=5)),0,prem_mort(VALUE(LEFT(Options!$B$24,2)),$C91,$E91,$F91,2016,$I91,1,$H91,$G91*$H91,Options!B8)))","v":583.71297717300001},{"$f":"IF(AND(OR(Calculations!$E$2=\"Orkney Health Board\",Calculations!$E$2=\"Orkney Islands Local Authority\"),$F91=1),0,IF(AND(OR(Calculations!$E$2=\"Shetland Health Board\",Calculations!$E$2=\"Western Isles Health Board\",Calculations!$E$2=\"Shetland Islands Local Authority\",Calculations!$E$2=\"Eilean Siar Local Authority\"),OR($F91=1,$F91=5)),0,prem_mort(VALUE(LEFT(Options!$B$24,2)),$C91,$E91,$F91,2016,$I91+$J91,1,$H91,$G91*$H91,Options!B8)))","v":581.1929409114},2133.6098295672195,2124.3984973733459,39834.49765162987,39662.522070358951,46640.24555,46451.110134911542,2133.6098295672195,2124.3984973733459,12801658.977403317,12746390.984240076,239006985.90977922,237975132.42215371,279841473.30000001,278706660.80946922,12801658.977403317,12746390.984240076,6000]
[null,"Male 65-69",67.054419999999993,82.954419999999999,"male",1,{"$f":"HLOOKUP(Calculations!$E$2,'Prevalence Rates'!$C$3:$BC$249,'Prevalence Rates'!$BD92,FALSE)","v":0.23378591095726775},{"$f":"HLOOKUP(Calculations!$E$2,'Population 2016'!$C$3:$BC$249,'Population 2016'!BD92,FALSE)","v":25567},0,{"$f":"HLOOKUP(Results!E$4,Targeting!$C$3:$F$249,Targeting!$G92,FALSE)","v":1933},{"$f":"IF(AND(OR(Calculations!$E$2=\"Orkney Health Board\",Calculations!$E$2=\"Orkney Islands Local Authority\"),$F92=1),0,IF(AND(OR(Calculations!$E$2=\"Shetland Health Board\",Calculations!$E$2=\"Western Isles Health Board\",Calculations!$E$2=\"Shetland Islands Local Authority\",Calculations!$E$2=\"Eilean Siar Local Authority\"),OR($F92=1,$F92=5)),0,new_ci(VALUE(LEFT(Options!$B$24,2)),$C92,$E92,$F92,2016,$I92,1,$H92,$G92*$H92,Options!B8)))","v":798.16854235920005},{"$f":"IF(AND(OR(Calculations!$E$2=\"Orkney Health Board\",Calculations!$E$2=\"Orkney Islands Local Authority\"),$F92=1),0,IF(AND(OR(Calculations!$E$2=\"Shetland Health Board\",Calculations!$E$2=\"Western Isles Health Board\",Calculations!$E$2=\"Shetland Islands Local Authority\",Calculations!$E$2=\"Eilean Siar Local Authority\"),OR($F92=1,$F92=5)),0,new_ci(VALUE(LEFT(Options!$B$24,2)),$C92,$E92,$F92,2016,$I92+$J92,1,$H92,$G92*$H92,Options!B8)))","v":794.6489438845},{"$f":"IF(AND(OR(Calculations!$E$2=\"Orkney Health Board\",Calculations!$E$2=\"Orkney Islands Local Authority\"),$F92=1),0,IF(AND(OR(Calculations!$E$2=\"Shetland Health Board\",Calculations!$E$2=\"Western Isles Health Board\",Calculations!$E$2=\"Shetland Islands Local Authority\",Calculations!$E$2=\"Eilean Siar Local Authority\"),OR($F92=1,$F92=5)),0,new_yllv2(VALUE(LEFT(Options!$B$24,2)),$C92,$D92,$E92,$F92,2016,$I92,1,$H92,$G92*$H92,Options!B8)))","v":11892.7112811521},{"$f":"IF(AND(OR(Calculations!$E$2=\"Orkney Health Board\",Calculations!$E$2=\"Orkney Islands Local Authority\"),$F92=1),0,IF(AND(OR(Calculations!$E$2=\"Shetland Health Board\",Calculations!$E$2=\"Western Isles Health Board\",Calculations!$E$2=\"Shetland Islands Local Authority\",Calculations!$E$2=\"Eilean Siar Local Authority\"),OR($F92=1,$F92=5)),0,new_yllv2(VALUE(LEFT(Options!$B$24,2)),$C92,$D92,$E92,$F92,2016,$I92+$J92,1,$H92,$G92*$H92,Options!B8)))","v":11840.2692638791},{"$f":"IF(AND(OR(Calculations!$E$2=\"Orkney Health Board\",Calculations!$E$2=\"Orkney Islands Local Authority\"),$F92=1),0,IF(AND(OR(Calculations!$E$2=\"Shetland Health Board\",Calculations!$E$2=\"Western Isles Health Board\",Calculations!$E$2=\"Shetland Islands Local Authority\",Calculations!$E$2=\"Eilean Siar Local Authority\"),OR($F92=1,$F92=5)),0,hosp_count(VALUE(LEFT(Options!$B$24,2)),$C92,$E92,$F92,2016,$I92,1,$H92,$G92*$H92, Options!B8)))","v":14296.6790701768},{"$f":"IF(AND(OR(Calculations!$E$2=\"Orkney Health Board\",Calculations!$E$2=\"Orkney Islands Local Authority\"),$F92=1),0,IF(AND(OR(Calculations!$E$2=\"Shetland Health Board\",Calculations!$E$2=\"Western Isles Health Board\",Calculations!$E$2=\"Shetland Islands Local Authority\",Calculations!$E$2=\"Eilean Siar Local Authority\"),OR($F92=1,$F92=5)),0,hosp_count(VALUE(LEFT(Options!$B$24,2)),$C92,$E92,$F92,2016,$I92+$J92,1,$H92,$G92*$H92, Options!B8)))","v":14238.3734956642},{"$f":"IF(AND(OR(Calculations!$E$2=\"Orkney Health Board\",Calculations!$E$2=\"Orkney Islands Local Authority\"),$F92=1),0,IF(AND(OR(Calculations!$E$2=\"Shetland Health Board\",Calculations!$E$2=\"Western Isles Health Board\",Calculations!$E$2=\"Shetland Islands Local Authority\",Calculations!$E$2=\"Eilean Siar Local Authority\"),OR($F92=1,$F92=5)),0,prem_mort(VALUE(LEFT(Options!$B$24,2)),$C92,$E92,$F92,2016,$I92,1,$H92,$G92*$H92,Options!B8)))","v":798.16854235920005},{"$f":"IF(AND(OR(Calculations!$E$2=\"Orkney Health Board\",Calculations!$E$2=\"Orkney Islands Local Authority\"),$F92=1),0,IF(AND(OR(Calculations!$E$2=\"Shetland Health Board\",Calculations!$E$2=\"Western Isles Health Board\",Calculations!$E$2=\"Shetland Islands Local Authority\",Calculations!$E$2=\"Eilean Siar Local Authority\"),OR($F92=1,$F92=5)),0,prem_mort(VALUE(LEFT(Options!$B$24,2)),$C92,$E92,$F92,2016,$I92+$J92,1,$H92,$G92*$H92,Options!B8)))","v":794.6489438845},3121.87015433645,3108.1039773321077,46515.865299613179,46310.749262248595,55918.48504,55690.434918700674,3121.87015433645,3108.1039773321077,17170285.848850474,17094571.875326592,255837259.14787248,254709120.94236729,{"$f":"W92*$AI92","v":307551667.71999997},{"$f":"X92*$AI92","v":306297392.0528537},{"$f":"Y92*$AI92","v":17170285.848850474},{"$f":"Z92*$AI92","v":17094571.875326592},5500]
[null,"Male 70-74",71.891098,84.341099999999997,"male",1,{"$f":"HLOOKUP(Calculations!$E$2,'Prevalence Rates'!$C$3:$BC$249,'Prevalence Rates'!$BD93,FALSE)","v":0.23378591095726775},{"$f":"HLOOKUP(Calculations!$E$2,'Population 2016'!$C$3:$BC$249,'Population 2016'!BD93,FALSE)","v":18358},0,{"$f":"HLOOKUP(Results!E$4,Targeting!$C$3:$F$249,Targeting!$G93,FALSE)","v":1388},{"$f":"IF(AND(OR(Calculations!$E$2=\"Orkney Health Board\",Calculations!$E$2=\"Orkney Islands Local Authority\"),$F93=1),0,IF(AND(OR(Calculations!$E$2=\"Shetland Health Board\",Calculations!$E$2=\"Western Isles Health Board\",Calculations!$E$2=\"Shetland Islands Local Authority\",Calculations!$E$2=\"Eilean Siar Local Authority\"),OR($F93=1,$F93=5)),0,new_ci(VALUE(LEFT(Options!$B$24,2)),$C93,$E93,$F93,2016,$I93,1,$H93,$G93*$H93,Options!B8)))","v":819.6845302186},{"$f":"IF(AND(OR(Calculations!$E$2=\"Orkney Health Board\",Calculations!$E$2=\"Orkney Islands Local Authority\"),$F93=1),0,IF(AND(OR(Calculations!$E$2=\"Shetland Health Board\",Calculations!$E$2=\"Western Isles Health Board\",Calculations!$E$2=\"Shetland Islands Local Authority\",Calculations!$E$2=\"Eilean Siar Local Authority\"),OR($F93=1,$F93=5)),0,new_ci(VALUE(LEFT(Options!$B$24,2)),$C93,$E93,$F93,2016,$I93+$J93,1,$H93,$G93*$H93,Options!B8)))","v":816.11384927899996},{"$f":"IF(AND(OR(Calculations!$E$2=\"Orkney Health Board\",Calculations!$E$2=\"Orkney Islands Local Authority\"),$F93=1),0,IF(AND(OR(Calculations!$E$2=\"Shetland Health Board\",Calculations!$E$2=\"Western Isles Health Board\",Calculations!$E$2=\"Shetland Islands Local Authority\",Calculations!$E$2=\"Eilean Siar Local Authority\"),OR($F93=1,$F93=5)),0,new_yllv2(VALUE(LEFT(Options!$B$24,2)),$C93,$D93,$E93,$F93,2016,$I93,1,$H93,$G93*$H93,Options!B8)))","v":9385.3895103720006},{"$f":"IF(AND(OR(Calculations!$E$2=\"Orkney Health Board\",Calculations!$E$2=\"Orkney Islands Local Authority\"),$F93=1),0,IF(AND(OR(Calculations!$E$2=\"Shetland Health Board\",Calculations!$E$2=\"Western Isles Health Board\",Calculations!$E$2=\"Shetland Islands Local Authority\",Calculations!$E$2=\"Eilean Siar Local Authority\"),OR($F93=1,$F93=5)),0,new_yllv2(VALUE(LEFT(Options!$B$24,2)),$C93,$D93,$E93,$F93,2016,$I93+$J93,1,$H93,$G93*$H93,Options!B8)))","v":9344.5052064722004},{"$f":"IF(AND(OR(Calculations!$E$2=\"Orkney Health Board\",Calculations!$E$2=\"Orkney Islands Local Authority\"),$F93=1),0,IF(AND(OR(Calculations!$E$2=\"Shetland Health Board\",Calculations!$E$2=\"Western Isles Health Board\",Calculations!$E$2=\"Shetland Islands Local Authority\",Calculations!$E$2=\"Eilean Siar Local Authority\"),OR($F93=1,$F93=5)),0,hosp_count(VALUE(LEFT(Options!$B$24,2)),$C93,$E93,$F93,2016,$I93,1,$H93,$G93*$H93, Options!B8)))","v":12188.209584951601},{"$f":"IF(AND(OR(Calculations!$E$2=\"Orkney Health Board\",Calculations!$E$2=\"Orkney Islands Local Authority\"),$F93=1),0,IF(AND(OR(Calculations!$E$2=\"Shetland Health Board\",Calculations!$E$2=\"Western Isles Health Board\",Calculations!$E$2=\"Shetland Islands Local Authority\",Calculations!$E$2=\"Eilean Siar Local Authority\"),OR($F93=1,$F93=5)),0,hosp_count(VALUE(LEFT(Options!$B$24,2)),$C93,$E93,$F93,2016,$I93+$J93,1,$H93,$G93*$H93, Options!B8)))","v":12138.5015216802},{"$f":"IF(AND(OR(Calculations!$E$2=\"Orkney Health Board\",Calculations!$E$2=\"Orkney Islands Local Authority\"),$F93=1),0,IF(AND(OR(Calculations!$E$2=\"Shetland Health Board\",Calculations!$E$2=\"Western Isles Health Board\",Calculations!$E$2=\"Shetland Islands Local Authority\",Calculations!$E$2=\"Eilean Siar Local Authority\"),OR($F93=1,$F93=5)),0,prem_mort(VALUE(LEFT(Options!$B$24,2)),$C93,$E93,$F93,2016,$I93,1,$H93,$G93*$H93,Options!B8)))","v":819.6845302186},{"$f":"IF(AND(OR(Calculations!$E$2=\"Orkney Health Board\",Calculations!$E$2=\"Orkney Islands Local Authority\"),$F93=1),0,IF(AND(OR(Calculations!$E$2=\"Shetland Health Board\",Calculations!$E$2=\"Western Isles Health Board\",Calculations!$E$2=\"Shetland Islands Local Authority\",Calculations!$E$2=\"Eilean Siar Local Authority\"),OR($F93=1,$F93=5)),0,prem_mort(VALUE(LEFT(Options!$B$24,2)),$C93,$E93,$F93,2016,$I93+$J93,1,$H93,$G93*$H93,Options!B8)))","v":816.11384927899996},4464.9990751639616,4445.5488031321493,51124.248340625345,50901.542686960456,66391.816019999998,66121.045438937799,4464.9990751639616,4445.5488031321493,22324995.37581981,22227744.015660748,255621241.70312673,254507713.43480229,331959080.09999996,330605227.19468898,22324995.37581981,22227744.015660748,5000]
[null,"Male 75-79",76.907700000000006,86.357700000000008,"male",1,{"$f":"HLOOKUP(Calculations!$E$2,'Prevalence Rates'!$C$3:$BC$249,'Prevalence Rates'!$BD94,FALSE)","v":9.4700592698778105E-2},{"$f":"HLOOKUP(Calculations!$E$2,'Population 2016'!$C$3:$BC$249,'Population 2016'!BD94,FALSE)","v":13914},0,{"$f":"HLOOKUP(Results!E$4,Targeting!$C$3:$F$249,Targeting!$G94,FALSE)","v":1052},{"$f":"IF(AND(OR(Calculations!$E$2=\"Orkney Health Board\",Calculations!$E$2=\"Orkney Islands Local Authority\"),$F94=1),0,IF(AND(OR(Calculations!$E$2=\"Shetland Health Board\",Calculations!$E$2=\"Western Isles Health Board\",Calculations!$E$2=\"Shetland Islands Local Authority\",Calculations!$E$2=\"Eilean Siar Local Authority\"),OR($F94=1,$F94=5)),0,new_ci(VALUE(LEFT(Options!$B$24,2)),$C94,$E94,$F94,2016,$I94,1,$H94,$G94*$H94,Options!B8)))","v":898.1159211703},{"$f":"IF(AND(OR(Calculations!$E$2=\"Orkney Health Board\",Calculations!$E$2=\"Orkney Islands Local Authority\"),$F94=1),0,IF(AND(OR(Calculations!$E$2=\"Shetland Health Board\",Calculations!$E$2=\"Western Isles Health Board\",Calculations!$E$2=\"Shetland Islands Local Authority\",Calculations!$E$2=\"Eilean Siar Local Authority\"),OR($F94=1,$F94=5)),0,new_ci(VALUE(LEFT(Options!$B$24,2)),$C94,$E94,$F94,2016,$I94+$J94,1,$H94,$G94*$H94,Options!B8)))","v":893.98838644110003},{"$f":"IF(AND(OR(Calculations!$E$2=\"Orkney Health Board\",Calculations!$E$2=\"Orkney Islands Local Authority\"),$F94=1),0,IF(AND(OR(Calculations!$E$2=\"Shetland Health Board\",Calculations!$E$2=\"Western Isles Health Board\",Calculations!$E$2=\"Shetland Islands Local Authority\",Calculations!$E$2=\"Eilean Siar Local Authority\"),OR($F94=1,$F94=5)),0,new_yllv2(VALUE(LEFT(Options!$B$24,2)),$C94,$D94,$E94,$F94,2016,$I94,1,$H94,$G94*$H94,Options!B8)))","v":7589.0795338890002},{"$f":"IF(AND(OR(Calculations!$E$2=\"Orkney Health Board\",Calculations!$E$2=\"Orkney Islands Local Authority\"),$F94=1),0,IF(AND(OR(Calculations!$E$2=\"Shetland Health Board\",Calculations!$E$2=\"Western Isles Health Board\",Calculations!$E$2=\"Shetland Islands Local Authority\",Calculations!$E$2=\"Eilean Siar Local Authority\"),OR($F94=1,$F94=5)),0,new_yllv2(VALUE(LEFT(Options!$B$24,2)),$C94,$D94,$E94,$F94,2016,$I94+$J94,1,$H94,$G94*$H94,Options!B8)))","v":7554.2018654272997},{"$f":"IF(AND(OR(Calculations!$E$2=\"Orkney Health Board\",Calculations!$E$2=\"Orkney Islands Local Authority\"),$F94=1),0,IF(AND(OR(Calculations!$E$2=\"Shetland Health Board\",Calculations!$E$2=\"Western Isles Health Board\",Calculations!$E$2=\"Shetland Islands Local Authority\",Calculations!$E$2=\"Eilean Siar Local Authority\"),OR($F94=1,$F94=5)),0,hosp_count(VALUE(LEFT(Options!$B$24,2)),$C94,$E94,$F94,2016,$I94,1,$H94,$G94*$H94, Options!B8)))","v":11038.2262665822},{"$f":"IF(AND(OR(Calculations!$E$2=\"Orkney Health Board\",Calculations!$E$2=\"Orkney Islands Local Authority\"),$F94=1),0,IF(AND(OR(Calculations!$E$2=\"Shetland Health Board\",Calculations!$E$2=\"Western Isles Health Board\",Calculations!$E$2=\"Shetland Islands Local Authority\",Calculations!$E$2=\"Eilean Siar Local Authority\"),OR($F94=1,$F94=5)),0,hosp_count(VALUE(LEFT(Options!$B$24,2)),$C94,$E94,$F94,2016,$I94+$J94,1,$H94,$G94*$H94, Options!B8)))","v":10992.5880414122},{"$f":"IF(AND(OR(Calculations!$E$2=\"Orkney Health Board\",Calculations!$E$2=\"Orkney Islands Local Authority\"),$F94=1),0,IF(AND(OR(Calculations!$E$2=\"Shetland Health Board\",Calculations!$E$2=\"Western Isles Health Board\",Calculations!$E$2=\"Shetland Islands Local Authority\",Calculations!$E$2=\"Eilean Siar Local Authority\"),OR($F94=1,$F94=5)),0,prem_mort(VALUE(LEFT(Options!$B$24,2)),$C94,$E94,$F94,2016,$I94,1,$H94,$G94*$H94,Options!B8)))","v":0},{"$f":"IF(AND(OR(Calculations!$E$2=\"Orkney Health Board\",Calculations!$E$2=\"Orkney Islands Local Authority\"),$F94=1),0,IF(AND(OR(Calculations!$E$2=\"Shetland Health Board\",Calculations!$E$2=\"Western Isles Health Board\",Calculations!$E$2=\"Shetland Islands Local Authority\",Calculations!$E$2=\"Eilean Siar Local Authority\"),OR($F94=1,$F94=5)),0,prem_mort(VALUE(LEFT(Options!$B$24,2)),$C94,$E94,$F94,2016,$I94+$J94,1,$H94,$G94*$H94,Options!B8)))","v":0},6454.7644183577686,6425.0998019340241,54542.759335122901,54292.093326342532,79331.797230000011,79003.795036741416,0,0,25819057.673431076,25700399.207736097,218171037.34049159,217168373.30537012,317327188.92000002,316015180.14696568,0,0,4000]
[null,"Male 80-84",81.797089,88.627089999999995,"male",1,{"$f":"HLOOKUP(Calculations!$E$2,'Prevalence Rates'!$C$3:$BC$249,'Prevalence Rates'!$BD95,FALSE)","v":9.4700592698778105E-2},{"$f":"HLOOKUP(Calculations!$E$2,'Population 2016'!$C$3:$BC$249,'Population 2016'!BD95,FALSE)","v":9236},0,{"$f":"HLOOKUP(Results!E$4,Targeting!$C$3:$F$249,Targeting!$G95,FALSE)","v":698},{"$f":"IF(AND(OR(Calculations!$E$2=\"Orkney Health Board\",Calculations!$E$2=\"Orkney Islands Local Authority\"),$F95=1),0,IF(AND(OR(Calculations!$E$2=\"Shetland Health Board\",Calculations!$E$2=\"Western Isles Health Board\",Calculations!$E$2=\"Shetland Islands Local Authority\",Calculations!$E$2=\"Eilean Siar Local Authority\"),OR($F95=1,$F95=5)),0,new_ci(VALUE(LEFT(Options!$B$24,2)),$C95,$E95,$F95,2016,$I95,1,$H95,$G95*$H95,Options!B8)))","v":849.39524192730005},{"$f":"IF(AND(OR(Calculations!$E$2=\"Orkney Health Board\",Calculations!$E$2=\"Orkney Islands Local Authority\"),$F95=1),0,IF(AND(OR(Calculations!$E$2=\"Shetland Health Board\",Calculations!$E$2=\"Western Isles Health Board\",Calculations!$E$2=\"Shetland Islands Local Authority\",Calculations!$E$2=\"Eilean Siar Local Authority\"),OR($F95=1,$F95=5)),0,new_ci(VALUE(LEFT(Options!$B$24,2)),$C95,$E95,$F95,2016,$I95+$J95,1,$H95,$G95*$H95,Options!B8)))","v":845.60873292329995},{"$f":"IF(AND(OR(Calculations!$E$2=\"Orkney Health Board\",Calculations!$E$2=\"Orkney Islands Local Authority\"),$F95=1),0,IF(AND(OR(Calculations!$E$2=\"Shetland Health Board\",Calculations!$E$2=\"Western Isles Health Board\",Calculations!$E$2=\"Shetland Islands Local Authority\",Calculations!$E$2=\"Eilean Siar Local Authority\"),OR($F95=1,$F95=5)),0,new_yllv2(VALUE(LEFT(Options!$B$24,2)),$C95,$D95,$E95,$F95,2016,$I95,1,$H95,$G95*$H95,Options!B8)))","v":4951.9751098314},{"$f":"IF(AND(OR(Calculations!$E$2=\"Orkney Health Board\",Calculations!$E$2=\"Orkney Islands Local Authority\"),$F95=1),0,IF(AND(OR(Calculations!$E$2=\"Shetland Health Board\",Calculations!$E$2=\"Western Isles Health Board\",Calculations!$E$2=\"Shetland Islands Local Authority\",Calculations!$E$2=\"Eilean Siar Local Authority\"),OR($F95=1,$F95=5)),0,new_yllv2(VALUE(LEFT(Options!$B$24,2)),$C95,$D95,$E95,$F95,2016,$I95+$J95,1,$H95,$G95*$H95,Options!B8)))","v":4929.8997585515999},{"$f":"IF(AND(OR(Calculations!$E$2=\"Orkney Health Board\",Calculations!$E$2=\"Orkney Islands Local Authority\"),$F95=1),0,IF(AND(OR(Calculations!$E$2=\"Shetland Health Board\",Calculations!$E$2=\"Western Isles Health Board\",Calculations!$E$2=\"Shetland Islands Local Authority\",Calculations!$E$2=\"Eilean Siar Local Authority\"),OR($F95=1,$F95=5)),0,hosp_count(VALUE(LEFT(Options!$B$24,2)),$C95,$E95,$F95,2016,$I95,1,$H95,$G95*$H95, Options!B8)))","v":8715.7131399083992},{"$f":"IF(AND(OR(Calculations!$E$2=\"Orkney Health Board\",Calculations!$E$2=\"Orkney Islands Local Authority\"),$F95=1),0,IF(AND(OR(Calculations!$E$2=\"Shetland Health Board\",Calculations!$E$2=\"Western Isles Health Board\",Calculations!$E$2=\"Shetland Islands Local Authority\",Calculations!$E$2=\"Eilean Siar Local Authority\"),OR($F95=1,$F95=5)),0,hosp_count(VALUE(LEFT(Options!$B$24,2)),$C95,$E95,$F95,2016,$I95+$J95,1,$H95,$G95*$H95, Options!B8)))","v":8679.6934359336992},{"$f":"IF(AND(OR(Calculations!$E$2=\"Orkney Health Board\",Calculations!$E$2=\"Orkney Islands Local Authority\"),$F95=1),0,IF(AND(OR(Calculations!$E$2=\"Shetland Health Board\",Calculations!$E$2=\"Western Isles Health Board\",Calculations!$E$2=\"Shetland Islands Local Authority\",Calculations!$E$2=\"Eilean Siar Local Authority\"),OR($F95=1,$F95=5)),0,prem_mort(VALUE(LEFT(Options!$B$24,2)),$C95,$E95,$F95,2016,$I95,1,$H95,$G95*$H95,Options!B8)))","v":0},{"$f":"IF(AND(OR(Calculations!$E$2=\"Orkney Health Board\",Calculations!$E$2=\"Orkney Islands Local Authority\"),$F95=1),0,IF(AND(OR(Calculations!$E$2=\"Shetland Health Board\",Calculations!$E$2=\"Western Isles Health Board\",Calculations!$E$2=\"Shetland Islands Local Authority\",Calculations!$E$2=\"Eilean Siar Local Authority\"),OR($F95=1,$F95=5)),0,prem_mort(VALUE(LEFT(Options!$B$24,2)),$C95,$E95,$F95,2016,$I95+$J95,1,$H95,$G95*$H95,Options!B8)))","v":0},9196.5703976537479,9155.5731152371154,53616.014614891727,53377.000417405805,94366.751189999995,93976.758726003682,0,0,22991425.99413437,22888932.788092788,134040036.53722931,133442501.04351451,235916877.97499999,234941896.81500921,0,0,2500]
[null,"Male 85-89",86.630752999999999,91.420750000000012,"male",1,{"$f":"HLOOKUP(Calculations!$E$2,'Prevalence Rates'!$C$3:$BC$249,'Prevalence Rates'!$BD96,FALSE)","v":9.4700592698778105E-2},{"$f":"HLOOKUP(Calculations!$E$2,'Population 2016'!$C$3:$BC$249,'Population 2016'!BD96,FALSE)","v":4449},0,{"$f":"HLOOKUP(Results!E$4,Targeting!$C$3:$F$249,Targeting!$G96,FALSE)","v":336},{"$f":"IF(AND(OR(Calculations!$E$2=\"Orkney Health Board\",Calculations!$E$2=\"Orkney Islands Local Authority\"),$F96=1),0,IF(AND(OR(Calculations!$E$2=\"Shetland Health Board\",Calculations!$E$2=\"Western Isles Health Board\",Calculations!$E$2=\"Shetland Islands Local Authority\",Calculations!$E$2=\"Eilean Siar Local Authority\"),OR($F96=1,$F96=5)),0,new_ci(VALUE(LEFT(Options!$B$24,2)),$C96,$E96,$F96,2016,$I96,1,$H96,$G96*$H96,Options!B8)))","v":576.86110384569997},{"$f":"IF(AND(OR(Calculations!$E$2=\"Orkney Health Board\",Calculations!$E$2=\"Orkney Islands Local Authority\"),$F96=1),0,IF(AND(OR(Calculations!$E$2=\"Shetland Health Board\",Calculations!$E$2=\"Western Isles Health Board\",Calculations!$E$2=\"Shetland Islands Local Authority\",Calculations!$E$2=\"Eilean Siar Local Authority\"),OR($F96=1,$F96=5)),0,new_ci(VALUE(LEFT(Options!$B$24,2)),$C96,$E96,$F96,2016,$I96+$J96,1,$H96,$G96*$H96,Options!B8)))","v":574.39939614970001},{"$f":"IF(AND(OR(Calculations!$E$2=\"Orkney Health Board\",Calculations!$E$2=\"Orkney Islands Local Authority\"),$F96=1),0,IF(AND(OR(Calculations!$E$2=\"Shetland Health Board\",Calculations!$E$2=\"Western Isles Health Board\",Calculations!$E$2=\"Shetland Islands Local Authority\",Calculations!$E$2=\"Eilean Siar Local Authority\"),OR($F96=1,$F96=5)),0,new_yllv2(VALUE(LEFT(Options!$B$24,2)),$C96,$D96,$E96,$F96,2016,$I96,1,$H96,$G96*$H96,Options!B8)))","v":2186.3018529919},{"$f":"IF(AND(OR(Calculations!$E$2=\"Orkney Health Board\",Calculations!$E$2=\"Orkney Islands Local Authority\"),$F96=1),0,IF(AND(OR(Calculations!$E$2=\"Shetland Health Board\",Calculations!$E$2=\"Western Isles Health Board\",Calculations!$E$2=\"Shetland Islands Local Authority\",Calculations!$E$2=\"Eilean Siar Local Authority\"),OR($F96=1,$F96=5)),0,new_yllv2(VALUE(LEFT(Options!$B$24,2)),$C96,$D96,$E96,$F96,2016,$I96+$J96,1,$H96,$G96*$H96,Options!B8)))","v":2176.9719882091999},{"$f":"IF(AND(OR(Calculations!$E$2=\"Orkney Health Board\",Calculations!$E$2=\"Orkney Islands Local Authority\"),$F96=1),0,IF(AND(OR(Calculations!$E$2=\"Shetland Health Board\",Calculations!$E$2=\"Western Isles Health Board\",Calculations!$E$2=\"Shetland Islands Local Authority\",Calculations!$E$2=\"Eilean Siar Local Authority\"),OR($F96=1,$F96=5)),0,hosp_count(VALUE(LEFT(Options!$B$24,2)),$C96,$E96,$F96,2016,$I96,1,$H96,$G96*$H96, Options!B8)))","v":4984.1843667180001},{"$f":"IF(AND(OR(Calculations!$E$2=\"Orkney Health Board\",Calculations!$E$2=\"Orkney Islands Local Authority\"),$F96=1),0,IF(AND(OR(Calculations!$E$2=\"Shetland Health Board\",Calculations!$E$2=\"Western Isles Health Board\",Calculations!$E$2=\"Shetland Islands Local Authority\",Calculations!$E$2=\"Eilean Siar Local Authority\"),OR($F96=1,$F96=5)),0,hosp_count(VALUE(LEFT(Options!$B$24,2)),$C96,$E96,$F96,2016,$I96+$J96,1,$H96,$G96*$H96, Options!B8)))","v":4963.6000391759999},{"$f":"IF(AND(OR(Calculations!$E$2=\"Orkney Health Board\",Calculations!$E$2=\"Orkney Islands Local Authority\"),$F96=1),0,IF(AND(OR(Calculations!$E$2=\"Shetland Health Board\",Calculations!$E$2=\"Western Isles Health Board\",Calculations!$E$2=\"Shetland Islands Local Authority\",Calculations!$E$2=\"Eilean Siar Local Authority\"),OR($F96=1,$F96=5)),0,prem_mort(VALUE(LEFT(Options!$B$24,2)),$C96,$E96,$F96,2016,$I96,1,$H96,$G96*$H96,Options!B8)))","v":0},{"$f":"IF(AND(OR(Calculations!$E$2=\"Orkney Health Board\",Calculations!$E$2=\"Orkney Islands Local Authority\"),$F96=1),0,IF(AND(OR(Calculations!$E$2=\"Shetland Health Board\",Calculations!$E$2=\"Western Isles Health Board\",Calculations!$E$2=\"Shetland Islands Local Authority\",Calculations!$E$2=\"Eilean Siar Local Authority\"),OR($F96=1,$F96=5)),0,prem_mort(VALUE(LEFT(Options!$B$24,2)),$C96,$E96,$F96,2016,$I96+$J96,1,$H96,$G96*$H96,Options!B8)))","v":0},12966.084599813441,12910.752891654303,49141.42173503933,48931.714727111706,112029.31820000001,111566.64507026298,0,0,19449126.899720162,19366129.337481454,73712132.602559,73397572.090667561,168043977.30000001,167349967.60539448,0,0,1500]
[null,"Male 90+",92.215477000000007,95.515479999999997,"male",1,{"$f":"HLOOKUP(Calculations!$E$2,'Prevalence Rates'!$C$3:$BC$249,'Prevalence Rates'!$BD97,FALSE)","v":9.4700592698778105E-2},{"$f":"HLOOKUP(Calculations!$E$2,'Population 2016'!$C$3:$BC$249,'Population 2016'!BD97,FALSE)","v":1916},0,{"$f":"HLOOKUP(Results!E$4,Targeting!$C$3:$F$249,Targeting!$G97,FALSE)","v":145},{"$f":"IF(AND(OR(Calculations!$E$2=\"Orkney Health Board\",Calculations!$E$2=\"Orkney Islands Local Authority\"),$F97=1),0,IF(AND(OR(Calculations!$E$2=\"Shetland Health Board\",Calculations!$E$2=\"Western Isles Health Board\",Calculations!$E$2=\"Shetland Islands Local Authority\",Calculations!$E$2=\"Eilean Siar Local Authority\"),OR($F97=1,$F97=5)),0,new_ci(VALUE(LEFT(Options!$B$24,2)),$C97,$E97,$F97,2016,$I97,1,$H97,$G97*$H97,Options!B8)))","v":365.21085557089998},{"$f":"IF(AND(OR(Calculations!$E$2=\"Orkney Health Board\",Calculations!$E$2=\"Orkney Islands Local Authority\"),$F97=1),0,IF(AND(OR(Calculations!$E$2=\"Shetland Health Board\",Calculations!$E$2=\"Western Isles Health Board\",Calculations!$E$2=\"Shetland Islands Local Authority\",Calculations!$E$2=\"Eilean Siar Local Authority\"),OR($F97=1,$F97=5)),0,new_ci(VALUE(LEFT(Options!$B$24,2)),$C97,$E97,$F97,2016,$I97+$J97,1,$H97,$G97*$H97,Options!B8)))","v":363.76075913139999},{"$f":"IF(AND(OR(Calculations!$E$2=\"Orkney Health Board\",Calculations!$E$2=\"Orkney Islands Local Authority\"),$F97=1),0,IF(AND(OR(Calculations!$E$2=\"Shetland Health Board\",Calculations!$E$2=\"Western Isles Health Board\",Calculations!$E$2=\"Shetland Islands Local Authority\",Calculations!$E$2=\"Eilean Siar Local Authority\"),OR($F97=1,$F97=5)),0,new_yllv2(VALUE(LEFT(Options!$B$24,2)),$C97,$D97,$E97,$F97,2016,$I97,1,$H97,$G97*$H97,Options!B8)))","v":839.98606344560005},{"$f":"IF(AND(OR(Calculations!$E$2=\"Orkney Health Board\",Calculations!$E$2=\"Orkney Islands Local Authority\"),$F97=1),0,IF(AND(OR(Calculations!$E$2=\"Shetland Health Board\",Calculations!$E$2=\"Western Isles Health Board\",Calculations!$E$2=\"Shetland Islands Local Authority\",Calculations!$E$2=\"Eilean Siar Local Authority\"),OR($F97=1,$F97=5)),0,new_yllv2(VALUE(LEFT(Options!$B$24,2)),$C97,$D97,$E97,$F97,2016,$I97+$J97,1,$H97,$G97*$H97,Options!B8)))","v":836.65083728449997},{"$f":"IF(AND(OR(Calculations!$E$2=\"Orkney Health Board\",Calculations!$E$2=\"Orkney Islands Local Authority\"),$F97=1),0,IF(AND(OR(Calculations!$E$2=\"Shetland Health Board\",Calculations!$E$2=\"Western Isles Health Board\",Calculations!$E$2=\"Shetland Islands Local Authority\",Calculations!$E$2=\"Eilean Siar Local Authority\"),OR($F97=1,$F97=5)),0,hosp_count(VALUE(LEFT(Options!$B$24,2)),$C97,$E97,$F97,2016,$I97,1,$H97,$G97*$H97, Options!B8)))","v":2617.0845289212002},{"$f":"IF(AND(OR(Calculations!$E$2=\"Orkney Health Board\",Calculations!$E$2=\"Orkney Islands Local Authority\"),$F97=1),0,IF(AND(OR(Calculations!$E$2=\"Shetland Health Board\",Calculations!$E$2=\"Western Isles Health Board\",Calculations!$E$2=\"Shetland Islands Local Authority\",Calculations!$E$2=\"Eilean Siar Local Authority\"),OR($F97=1,$F97=5)),0,hosp_count(VALUE(LEFT(Options!$B$24,2)),$C97,$E97,$F97,2016,$I97+$J97,1,$H97,$G97*$H97, Options!B8)))","v":2606.2538430233999},{"$f":"IF(AND(OR(Calculations!$E$2=\"Orkney Health Board\",Calculations!$E$2=\"Orkney Islands Local Authority\"),$F97=1),0,IF(AND(OR(Calculations!$E$2=\"Shetland Health Board\",Calculations!$E$2=\"Western Isles Health Board\",Calculations!$E$2=\"Shetland Islands Local Authority\",Calculations!$E$2=\"Eilean Siar Local Authority\"),OR($F97=1,$F97=5)),0,prem_mort(VALUE(LEFT(Options!$B$24,2)),$C97,$E97,$F97,2016,$I97,1,$H97,$G97*$H97,Options!B8)))","v":0},{"$f":"IF(AND(OR(Calculations!$E$2=\"Orkney Health Board\",Calculations!$E$2=\"Orkney Islands Local Authority\"),$F97=1),0,IF(AND(OR(Calculations!$E$2=\"Shetland Health Board\",Calculations!$E$2=\"Western Isles Health Board\",Calculations!$E$2=\"Shetland Islands Local Authority\",Calculations!$E$2=\"Eilean Siar Local Authority\"),OR($F97=1,$F97=5)),0,prem_mort(VALUE(LEFT(Options!$B$24,2)),$C97,$E97,$F97,2016,$I97+$J97,1,$H97,$G97*$H97,Options!B8)))","v":0},19061.109372176408,18985.425841931105,43840.608739331947,43666.536392719208,136591.05057000002,136025.77468806889,0,0,19061109.372176409,18985425.841931105,43840608.739331946,43666536.392719209,136591050.57000002,136025774.6880689,0,0,1000]
[null,"Female 0-4",2.0384007,81.468401,"female",2,{"$f":"HLOOKUP(Calculations!$E$2,'Prevalence Rates'!$C$3:$BC$249,'Prevalence Rates'!$BD98,FALSE)","v":0},{"$f":"HLOOKUP(Calculations!$E$2,'Population 2016'!$C$3:$BC$249,'Population 2016'!BD98,FALSE)","v":0},0,{"$f":"HLOOKUP(Results!E$4,Targeting!$C$3:$F$249,Targeting!$G98,FALSE)","v":0},{"$f":"IF(AND(OR(Calculations!$E$2=\"Orkney Health Board\",Calculations!$E$2=\"Orkney Islands Local Authority\"),$F98=1),0,IF(AND(OR(Calculations!$E$2=\"Shetland Health Board\",Calculations!$E$2=\"Western Isles Health Board\",Calculations!$E$2=\"Shetland Islands Local Authority\",Calculations!$E$2=\"Eilean Siar Local Authority\"),OR($F98=1,$F98=5)),0,new_ci(VALUE(LEFT(Options!$B$24,2)),$C98,$E98,$F98,2016,$I98,1,$H98,$G98*$H98,Options!B8)))","v":{"$error":"#VALUE!"}},{"$f":"IF(AND(OR(Calculations!$E$2=\"Orkney Health Board\",Calculations!$E$2=\"Orkney Islands Local Authority\"),$F98=1),0,IF(AND(OR(Calculations!$E$2=\"Shetland Health Board\",Calculations!$E$2=\"Western Isles Health Board\",Calculations!$E$2=\"Shetland Islands Local Authority\",Calculations!$E$2=\"Eilean Siar Local Authority\"),OR($F98=1,$F98=5)),0,new_ci(VALUE(LEFT(Options!$B$24,2)),$C98,$E98,$F98,2016,$I98+$J98,1,$H98,$G98*$H98,Options!B8)))","v":{"$error":"#VALUE!"}},{"$f":"IF(AND(OR(Calculations!$E$2=\"Orkney Health Board\",Calculations!$E$2=\"Orkney Islands Local Authority\"),$F98=1),0,IF(AND(OR(Calculations!$E$2=\"Shetland Health Board\",Calculations!$E$2=\"Western Isles Health Board\",Calculations!$E$2=\"Shetland Islands Local Authority\",Calculations!$E$2=\"Eilean Siar Local Authority\"),OR($F98=1,$F98=5)),0,new_yllv2(VALUE(LEFT(Options!$B$24,2)),$C98,$D98,$E98,$F98,2016,$I98,1,$H98,$G98*$H98,Options!B8)))","v":{"$error":"#VALUE!"}},{"$f":"IF(AND(OR(Calculations!$E$2=\"Orkney Health Board\",Calculations!$E$2=\"Orkney Islands Local Authority\"),$F98=1),0,IF(AND(OR(Calculations!$E$2=\"Shetland Health Board\",Calculations!$E$2=\"Western Isles Health Board\",Calculations!$E$2=\"Shetland Islands Local Authority\",Calculations!$E$2=\"Eilean Siar Local Authority\"),OR($F98=1,$F98=5)),0,new_yllv2(VALUE(LEFT(Options!$B$24,2)),$C98,$D98,$E98,$F98,2016,$I98+$J98,1,$H98,$G98*$H98,Options!B8)))","v":{"$error":"#VALUE!"}},{"$f":"IF(AND(OR(Calculations!$E$2=\"Orkney Health Board\",Calculations!$E$2=\"Orkney Islands Local Authority\"),$F98=1),0,IF(AND(OR(Calculations!$E$2=\"Shetland Health Board\",Calculations!$E$2=\"Western Isles Health Board\",Calculations!$E$2=\"Shetland Islands Local Authority\",Calculations!$E$2=\"Eilean Siar Local Authority\"),OR($F98=1,$F98=5)),0,hosp_count(VALUE(LEFT(Options!$B$24,2)),$C98,$E98,$F98,2016,$I98,1,$H98,$G98*$H98, Options!B8)))","v":{"$error":"#VALUE!"}},{"$f":"IF(AND(OR(Calculations!$E$2=\"Orkney Health Board\",Calculations!$E$2=\"Orkney Islands Local Authority\"),$F98=1),0,IF(AND(OR(Calculations!$E$2=\"Shetland Health Board\",Calculations!$E$2=\"Western Isles Health Board\",Calculations!$E$2=\"Shetland Islands Local Authority\",Calculations!$E$2=\"Eilean Siar Local Authority\"),OR($F98=1,$F98=5)),0,hosp_count(VALUE(LEFT(Options!$B$24,2)),$C98,$E98,$F98,2016,$I98+$J98,1,$H98,$G98*$H98, Options!B8)))","v":{"$error":"#VALUE!"}},{"$f":"IF(AND(OR(Calculations!$E$2=\"Orkney Health Board\",Calculations!$E$2=\"Orkney Islands Local Authority\"),$F98=1),0,IF(AND(OR(Calculations!$E$2=\"Shetland Health Board\",Calculations!$E$2=\"Western Isles Health Board\",Calculations!$E$2=\"Shetland Islands Local Authority\",Calculations!$E$2=\"Eilean Siar Local Authority\"),OR($F98=1,$F98=5)),0,prem_mort(VALUE(LEFT(Options!$B$24,2)),$C98,$E98,$F98,2016,$I98,1,$H98,$G98*$H98,Options!B8)))","v":{"$error":"#VALUE!"}},{"$f":"IF(AND(OR(Calculations!$E$2=\"Orkney Health Board\",Calculations!$E$2=\"Orkney Islands Local Authority\"),$F98=1),0,IF(AND(OR(Calculations!$E$2=\"Shetland Health Board\",Calculations!$E$2=\"Western Isles Health Board\",Calculations!$E$2=\"Shetland Islands Local Authority\",Calculations!$E$2=\"Eilean Siar Local Authority\"),OR($F98=1,$F98=5)),0,prem_mort(VALUE(LEFT(Options!$B$24,2)),$C98,$E98,$F98,2016,$I98+$J98,1,$H98,$G98*$H98,Options!B8)))","v":{"$error":"#VALUE!"}},{"$error":"#VALUE!"},{"$error":"#VALUE!"},{"$error":"#VALUE!"},{"$error":"#VALUE!"},{"$error":"#VALUE!"},{"$error":"#VALUE!"},{"$error":"#VALUE!"},{"$error":"#VALUE!"},{"$error":"#VALUE!"},{"$error":"#VALUE!"},{"$error":"#VALUE!"},{"$error":"#VALUE!"},{"$error":"#VALUE!"},{"$error":"#VALUE!"},{"$error":"#VALUE!"},{"$error":"#VALUE!"},5000]
[null,"Female 5-9",6.9792794999999996,81.439279999999997,"female",2,{"$f":"HLOOKUP(Calculations!$E$2,'Prevalence Rates'!$C$3:$BC$249,'Prevalence Rates'!$BD99,FALSE)","v":0},{"$f":"HLOOKUP(Calculations!$E$2,'Population 2016'!$C$3:$BC$249,'Population 2016'!BD99,FALSE)","v":0},0,{"$f":"HLOOKUP(Results!E$4,Targeting!$C$3:$F$249,Targeting!$G99,FALSE)","v":0},{"$f":"IF(AND(OR(Calculations!$E$2=\"Orkney Health Board\",Calculations!$E$2=\"Orkney Islands Local Authority\"),$F99=1),0,IF(AND(OR(Calculations!$E$2=\"Shetland Health Board\",Calculations!$E$2=\"Western Isles Health Board\",Calculations!$E$2=\"Shetland Islands Local Authority\",Calculations!$E$2=\"Eilean Siar Local Authority\"),OR($F99=1,$F99=5)),0,new_ci(VALUE(LEFT(Options!$B$24,2)),$C99,$E99,$F99,2016,$I99,1,$H99,$G99*$H99,Options!B8)))","v":{"$error":"#VALUE!"}},{"$f":"IF(AND(OR(Calculations!$E$2=\"Orkney Health Board\",Calculations!$E$2=\"Orkney Islands Local Authority\"),$F99=1),0,IF(AND(OR(Calculations!$E$2=\"Shetland Health Board\",Calculations!$E$2=\"Western Isles Health Board\",Calculations!$E$2=\"Shetland Islands Local Authority\",Calculations!$E$2=\"Eilean Siar Local Authority\"),OR($F99=1,$F99=5)),0,new_ci(VALUE(LEFT(Options!$B$24,2)),$C99,$E99,$F99,2016,$I99+$J99,1,$H99,$G99*$H99,Options!B8)))","v":{"$error":"#VALUE!"}},{"$f":"IF(AND(OR(Calculations!$E$2=\"Orkney Health Board\",Calculations!$E$2=\"Orkney Islands Local Authority\"),$F99=1),0,IF(AND(OR(Calculations!$E$2=\"Shetland Health Board\",Calculations!$E$2=\"Western Isles Health Board\",Calculations!$E$2=\"Shetland Islands Local Authority\",Calculations!$E$2=\"Eilean Siar Local Authority\"),OR($F99=1,$F99=5)),0,new_yllv2(VALUE(LEFT(Options!$B$24,2)),$C99,$D99,$E99,$F99,2016,$I99,1,$H99,$G99*$H99,Options!B8)))","v":{"$error":"#VALUE!"}},{"$f":"IF(AND(OR(Calculations!$E$2=\"Orkney Health Board\",Calculations!$E$2=\"Orkney Islands Local Authority\"),$F99=1),0,IF(AND(OR(Calculations!$E$2=\"Shetland Health Board\",Calculations!$E$2=\"Western Isles Health Board\",Calculations!$E$2=\"Shetland Islands Local Authority\",Calculations!$E$2=\"Eilean Siar Local Authority\"),OR($F99=1,$F99=5)),0,new_yllv2(VALUE(LEFT(Options!$B$24,2)),$C99,$D99,$E99,$F99,2016,$I99+$J99,1,$H99,$G99*$H99,Options!B8)))","v":{"$error":"#VALUE!"}},{"$f":"IF(AND(OR(Calculations!$E$2=\"Orkney Health Board\",Calculations!$E$2=\"Orkney Islands Local Authority\"),$F99=1),0,IF(AND(OR(Calculations!$E$2=\"Shetland Health Board\",Calculations!$E$2=\"Western Isles Health Board\",Calculations!$E$2=\"Shetland Islands Local Authority\",Calculations!$E$2=\"Eilean Siar Local Authority\"),OR($F99=1,$F99=5)),0,hosp_count(VALUE(LEFT(Options!$B$24,2)),$C99,$E99,$F99,2016,$I99,1,$H99,$G99*$H99, Options!B8)))","v":{"$error":"#VALUE!"}},{"$f":"IF(AND(OR(Calculations!$E$2=\"Orkney Health Board\",Calculations!$E$2=\"Orkney Islands Local Authority\"),$F99=1),0,IF(AND(OR(Calculations!$E$2=\"Shetland Health Board\",Calculations!$E$2=\"Western Isles Health Board\",Calculations!$E$2=\"Shetland Islands Local Authority\",Calculations!$E$2=\"Eilean Siar Local Authority\"),OR($F99=1,$F99=5)),0,hosp_count(VALUE(LEFT(Options!$B$24,2)),$C99,$E99,$F99,2016,$I99+$J99,1,$H99,$G99*$H99, Options!B8)))","v":{"$error":"#VALUE!"}},{"$f":"IF(AND(OR(Calculations!$E$2=\"Orkney Health Board\",Calculations!$E$2=\"Orkney Islands Local Authority\"),$F99=1),0,IF(AND(OR(Calculations!$E$2=\"Shetland Health Board\",Calculations!$E$2=\"Western Isles Health Board\",Calculations!$E$2=\"Shetland Islands Local Authority\",Calculations!$E$2=\"Eilean Siar Local Authority\"),OR($F99=1,$F99=5)),0,prem_mort(VALUE(LEFT(Options!$B$24,2)),$C99,$E99,$F99,2016,$I99,1,$H99,$G99*$H99,Options!B8)))","v":{"$error":"#VALUE!"}},{"$f":"IF(AND(OR(Calculations!$E$2=\"Orkney Health Board\",Calculations!$E$2=\"Orkney Islands Local Authority\"),$F99=1),0,IF(AND(OR(Calculations!$E$2=\"Shetland Health Board\",Calculations!$E$2=\"Western Isles Health Board\",Calculations!$E$2=\"Shetland Islands Local Authority\",Calculations!$E$2=\"Eilean Siar Local Authority\"),OR($F99=1,$F99=5)),0,prem_mort(VALUE(LEFT(Options!$B$24,2)),$C99,$E99,$F99,2016,$I99+$J99,1,$H99,$G99*$H99,Options!B8)))","v":{"$error":"#VALUE!"}},{"$error":"#VALUE!"},{"$error":"#VALUE!"},{"$error":"#VALUE!"},{"$error":"#VALUE!"},{"$error":"#VALUE!"},{"$error":"#VALUE!"},{"$error":"#VALUE!"},{"$error":"#VALUE!"},{"$error":"#VALUE!"},{"$error":"#VALUE!"},{"$error":"#VALUE!"},{"$error":"#VALUE!"},{"$error":"#VALUE!"},{"$error":"#VALUE!"},{"$error":"#VALUE!"},{"$error":"#VALUE!"},5500]
[null,"Female 10-15",12.478312000000001,81.948309999999992,"female",2,{"$f":"HLOOKUP(Calculations!$E$2,'Prevalence Rates'!$C$3:$BC$249,'Prevalence Rates'!$BD100,FALSE)","v":0},{"$f":"HLOOKUP(Calculations!$E$2,'Population 2016'!$C$3:$BC$249,'Population 2016'!BD100,FALSE)","v":0},0,{"$f":"HLOOKUP(Results!E$4,Targeting!$C$3:$F$249,Targeting!$G100,FALSE)","v":0},{"$f":"IF(AND(OR(Calculations!$E$2=\"Orkney Health Board\",Calculations!$E$2=\"Orkney Islands Local Authority\"),$F100=1),0,IF(AND(OR(Calculations!$E$2=\"Shetland Health Board\",Calculations!$E$2=\"Western Isles Health Board\",Calculations!$E$2=\"Shetland Islands Local Authority\",Calculations!$E$2=\"Eilean Siar Local Authority\"),OR($F100=1,$F100=5)),0,new_ci(VALUE(LEFT(Options!$B$24,2)),$C100,$E100,$F100,2016,$I100,1,$H100,$G100*$H100,Options!B8)))","v":{"$error":"#VALUE!"}},{"$f":"IF(AND(OR(Calculations!$E$2=\"Orkney Health Board\",Calculations!$E$2=\"Orkney Islands Local Authority\"),$F100=1),0,IF(AND(OR(Calculations!$E$2=\"Shetland Health Board\",Calculations!$E$2=\"Western Isles Health Board\",Calculations!$E$2=\"Shetland Islands Local Authority\",Calculations!$E$2=\"Eilean Siar Local Authority\"),OR($F100=1,$F100=5)),0,new_ci(VALUE(LEFT(Options!$B$24,2)),$C100,$E100,$F100,2016,$I100+$J100,1,$H100,$G100*$H100,Options!B8)))","v":{"$error":"#VALUE!"}},{"$f":"IF(AND(OR(Calculations!$E$2=\"Orkney Health Board\",Calculations!$E$2=\"Orkney Islands Local Authority\"),$F100=1),0,IF(AND(OR(Calculations!$E$2=\"Shetland Health Board\",Calculations!$E$2=\"Western Isles Health Board\",Calculations!$E$2=\"Shetland Islands Local Authority\",Calculations!$E$2=\"Eilean Siar Local Authority\"),OR($F100=1,$F100=5)),0,new_yllv2(VALUE(LEFT(Options!$B$24,2)),$C100,$D100,$E100,$F100,2016,$I100,1,$H100,$G100*$H100,Options!B8)))","v":{"$error":"#VALUE!"}},{"$f":"IF(AND(OR(Calculations!$E$2=\"Orkney Health Board\",Calculations!$E$2=\"Orkney Islands Local Authority\"),$F100=1),0,IF(AND(OR(Calculations!$E$2=\"Shetland Health Board\",Calculations!$E$2=\"Western Isles Health Board\",Calculations!$E$2=\"Shetland Islands Local Authority\",Calculations!$E$2=\"Eilean Siar Local Authority\"),OR($F100=1,$F100=5)),0,new_yllv2(VALUE(LEFT(Options!$B$24,2)),$C100,$D100,$E100,$F100,2016,$I100+$J100,1,$H100,$G100*$H100,Options!B8)))","v":{"$error":"#VALUE!"}},{"$f":"IF(AND(OR(Calculations!$E$2=\"Orkney Health Board\",Calculations!$E$2=\"Orkney Islands Local Authority\"),$F100=1),0,IF(AND(OR(Calculations!$E$2=\"Shetland Health Board\",Calculations!$E$2=\"Western Isles Health Board\",Calculations!$E$2=\"Shetland Islands Local Authority\",Calculations!$E$2=\"Eilean Siar Local Authority\"),OR($F100=1,$F100=5)),0,hosp_count(VALUE(LEFT(Options!$B$24,2)),$C100,$E100,$F100,2016,$I100,1,$H100,$G100*$H100, Options!B8)))","v":{"$error":"#VALUE!"}},{"$f":"IF(AND(OR(Calculations!$E$2=\"Orkney Health Board\",Calculations!$E$2=\"Orkney Islands Local Authority\"),$F100=1),0,IF(AND(OR(Calculations!$E$2=\"Shetland Health Board\",Calculations!$E$2=\"Western Isles Health Board\",Calculations!$E$2=\"Shetland Islands Local Authority\",Calculations!$E$2=\"Eilean Siar Local Authority\"),OR($F100=1,$F100=5)),0,hosp_count(VALUE(LEFT(Options!$B$24,2)),$C100,$E100,$F100,2016,$I100+$J100,1,$H100,$G100*$H100, Options!B8)))","v":{"$error":"#VALUE!"}},{"$f":"IF(AND(OR(Calculations!$E$2=\"Orkney Health Board\",Calculations!$E$2=\"Orkney Islands Local Authority\"),$F100=1),0,IF(AND(OR(Calculations!$E$2=\"Shetland Health Board\",Calculations!$E$2=\"Western Isles Health Board\",Calculations!$E$2=\"Shetland Islands Local Authority\",Calculations!$E$2=\"Eilean Siar Local Authority\"),OR($F100=1,$F100=5)),0,prem_mort(VALUE(LEFT(Options!$B$24,2)),$C100,$E100,$F100,2016,$I100,1,$H100,$G100*$H100,Options!B8)))","v":{"$error":"#VALUE!"}},{"$f":"IF(AND(OR(Calculations!$E$2=\"Orkney Health Board\",Calculations!$E$2=\"Orkney Islands Local Authority\"),$F100=1),0,IF(AND(OR(Calculations!$E$2=\"Shetland Health Board\",Calculations!$E$2=\"Western Isles Health Board\",Calculations!$E$2=\"Shetland Islands Local Authority\",Calculations!$E$2=\"Eilean Siar Local Authority\"),OR($F100=1,$F100=5)),0,prem_mort(VALUE(LEFT(Options!$B$24,2)),$C100,$E100,$F100,2016,$I100+$J100,1,$H100,$G100*$H100,Options!B8)))","v":{"$error":"#VALUE!"}},{"$error":"#VALUE!"},{"$error":"#VALUE!"},{"$error":"#VALUE!"},{"$error":"#VALUE!"},{"$error":"#VALUE!"},{"$error":"#VALUE!"},{"$error":"#VALUE!"},{"$error":"#VALUE!"},{"$error":"#VALUE!"},{"$error":"#VALUE!"},{"$error":"#VALUE!"},{"$error":"#VALUE!"},{"$error":"#VALUE!"},{"$error":"#VALUE!"},{"$error":"#VALUE!"},{"$error":"#VALUE!"},6600]
["SIMD Q2","Female 16-19",17.570053000000001,81.100049999999996,"female",2,{"$f":"HLOOKUP(Calculations!$E$2,'Prevalence Rates'!$C$3:$BC$249,'Prevalence Rates'!$BD101,FALSE)","v":0.23385601914770177},{"$f":"HLOOKUP(Calculations!$E$2,'Population 2016'!$C$3:$BC$249,'Population 2016'!BD101,FALSE)","v":23121},0,{"$f":"HLOOKUP(Results!E$4,Targeting!$C$3:$F$249,Targeting!$G101,FALSE)","v":1748},{"$f":"IF(AND(OR(Calculations!$E$2=\"Orkney Health Board\",Calculations!$E$2=\"Orkney Islands Local Authority\"),$F101=1),0,IF(AND(OR(Calculations!$E$2=\"Shetland Health Board\",Calculations!$E$2=\"Western Isles Health Board\",Calculations!$E$2=\"Shetland Islands Local Authority\",Calculations!$E$2=\"Eilean Siar Local Authority\"),OR($F101=1,$F101=5)),0,new_ci(VALUE(LEFT(Options!$B$24,2)),$C101,$E101,$F101,2016,$I101,1,$H101,$G101*$H101,Options!B8)))","v":5.1474605061999998},{"$f":"IF(AND(OR(Calculations!$E$2=\"Orkney Health Board\",Calculations!$E$2=\"Orkney Islands Local Authority\"),$F101=1),0,IF(AND(OR(Calculations!$E$2=\"Shetland Health Board\",Calculations!$E$2=\"Western Isles Health Board\",Calculations!$E$2=\"Shetland Islands Local Authority\",Calculations!$E$2=\"Eilean Siar Local Authority\"),OR($F101=1,$F101=5)),0,new_ci(VALUE(LEFT(Options!$B$24,2)),$C101,$E101,$F101,2016,$I101+$J101,1,$H101,$G101*$H101,Options!B8)))","v":5.1260104485999998},{"$f":"IF(AND(OR(Calculations!$E$2=\"Orkney Health Board\",Calculations!$E$2=\"Orkney Islands Local Authority\"),$F101=1),0,IF(AND(OR(Calculations!$E$2=\"Shetland Health Board\",Calculations!$E$2=\"Western Isles Health Board\",Calculations!$E$2=\"Shetland Islands Local Authority\",Calculations!$E$2=\"Eilean Siar Local Authority\"),OR($F101=1,$F101=5)),0,new_yllv2(VALUE(LEFT(Options!$B$24,2)),$C101,$D101,$E101,$F101,2016,$I101,1,$H101,$G101*$H101,Options!B8)))","v":321.8706900103},{"$f":"IF(AND(OR(Calculations!$E$2=\"Orkney Health Board\",Calculations!$E$2=\"Orkney Islands Local Authority\"),$F101=1),0,IF(AND(OR(Calculations!$E$2=\"Shetland Health Board\",Calculations!$E$2=\"Western Isles Health Board\",Calculations!$E$2=\"Shetland Islands Local Authority\",Calculations!$E$2=\"Eilean Siar Local Authority\"),OR($F101=1,$F101=5)),0,new_yllv2(VALUE(LEFT(Options!$B$24,2)),$C101,$D101,$E101,$F101,2016,$I101+$J101,1,$H101,$G101*$H101,Options!B8)))","v":320.52941797289998},{"$f":"IF(AND(OR(Calculations!$E$2=\"Orkney Health Board\",Calculations!$E$2=\"Orkney Islands Local Authority\"),$F101=1),0,IF(AND(OR(Calculations!$E$2=\"Shetland Health Board\",Calculations!$E$2=\"Western Isles Health Board\",Calculations!$E$2=\"Shetland Islands Local Authority\",Calculations!$E$2=\"Eilean Siar Local Authority\"),OR($F101=1,$F101=5)),0,hosp_count(VALUE(LEFT(Options!$B$24,2)),$C101,$E101,$F101,2016,$I101,1,$H101,$G101*$H101, Options!B8)))","v":2679.1393826232002},{"$f":"IF(AND(OR(Calculations!$E$2=\"Orkney Health Board\",Calculations!$E$2=\"Orkney Islands Local Authority\"),$F101=1),0,IF(AND(OR(Calculations!$E$2=\"Shetland Health Board\",Calculations!$E$2=\"Western Isles Health Board\",Calculations!$E$2=\"Shetland Islands Local Authority\",Calculations!$E$2=\"Eilean Siar Local Authority\"),OR($F101=1,$F101=5)),0,hosp_count(VALUE(LEFT(Options!$B$24,2)),$C101,$E101,$F101,2016,$I101+$J101,1,$H101,$G101*$H101, Options!B8)))","v":2668.3630639583998},{"$f":"IF(AND(OR(Calculations!$E$2=\"Orkney Health Board\",Calculations!$E$2=\"Orkney Islands Local Authority\"),$F101=1),0,IF(AND(OR(Calculations!$E$2=\"Shetland Health Board\",Calculations!$E$2=\"Western Isles Health Board\",Calculations!$E$2=\"Shetland Islands Local Authority\",Calculations!$E$2=\"Eilean Siar Local Authority\"),OR($F101=1,$F101=5)),0,prem_mort(VALUE(LEFT(Options!$B$24,2)),$C101,$E101,$F101,2016,$I101,1,$H101,$G101*$H101,Options!B8)))","v":5.1474605061999998},{"$f":"IF(AND(OR(Calculations!$E$2=\"Orkney Health Board\",Calculations!$E$2=\"Orkney Islands Local Authority\"),$F101=1),0,IF(AND(OR(Calculations!$E$2=\"Shetland Health Board\",Calculations!$E$2=\"Western Isles Health Board\",Calculations!$E$2=\"Shetland Islands Local Authority\",Calculations!$E$2=\"Eilean Siar Local Authority\"),OR($F101=1,$F101=5)),0,prem_mort(VALUE(LEFT(Options!$B$24,2)),$C101,$E101,$F101,2016,$I101+$J101,1,$H101,$G101*$H101,Options!B8)))","v":5.1260104485999998},22.263139596903248,22.170366543834607,1392.1140522049218,1386.3129534747632,11587.47192,11540.863561084727,22.263139596903248,22.170366543834607,97957.814226374292,97549.612792872271,6125301.8297016555,6099776.9952889578,50984876.447999999,50779799.668772802,97957.814226374292,97549.612792872271,4400]
[null,"Female 20-24",22.077057,81.667060000000006,"female",2,{"$f":"HLOOKUP(Calculations!$E$2,'Prevalence Rates'!$C$3:$BC$249,'Prevalence Rates'!$BD102,FALSE)","v":0.23385601914770177},{"$f":"HLOOKUP(Calculations!$E$2,'Population 2016'!$C$3:$BC$249,'Population 2016'!BD102,FALSE)","v":36899},0,{"$f":"HLOOKUP(Results!E$4,Targeting!$C$3:$F$249,Targeting!$G102,FALSE)","v":2790},{"$f":"IF(AND(OR(Calculations!$E$2=\"Orkney Health Board\",Calculations!$E$2=\"Orkney Islands Local Authority\"),$F102=1),0,IF(AND(OR(Calculations!$E$2=\"Shetland Health Board\",Calculations!$E$2=\"Western Isles Health Board\",Calculations!$E$2=\"Shetland Islands Local Authority\",Calculations!$E$2=\"Eilean Siar Local Authority\"),OR($F102=1,$F102=5)),0,new_ci(VALUE(LEFT(Options!$B$24,2)),$C102,$E102,$F102,2016,$I102,1,$H102,$G102*$H102,Options!B8)))","v":12.0520317969},{"$f":"IF(AND(OR(Calculations!$E$2=\"Orkney Health Board\",Calculations!$E$2=\"Orkney Islands Local Authority\"),$F102=1),0,IF(AND(OR(Calculations!$E$2=\"Shetland Health Board\",Calculations!$E$2=\"Western Isles Health Board\",Calculations!$E$2=\"Shetland Islands Local Authority\",Calculations!$E$2=\"Eilean Siar Local Authority\"),OR($F102=1,$F102=5)),0,new_ci(VALUE(LEFT(Options!$B$24,2)),$C102,$E102,$F102,2016,$I102+$J102,1,$H102,$G102*$H102,Options!B8)))","v":12.0018070539},{"$f":"IF(AND(OR(Calculations!$E$2=\"Orkney Health Board\",Calculations!$E$2=\"Orkney Islands Local Authority\"),$F102=1),0,IF(AND(OR(Calculations!$E$2=\"Shetland Health Board\",Calculations!$E$2=\"Western Isles Health Board\",Calculations!$E$2=\"Shetland Islands Local Authority\",Calculations!$E$2=\"Eilean Siar Local Authority\"),OR($F102=1,$F102=5)),0,new_yllv2(VALUE(LEFT(Options!$B$24,2)),$C102,$D102,$E102,$F102,2016,$I102,1,$H102,$G102*$H102,Options!B8)))","v":706.12857913649998},{"$f":"IF(AND(OR(Calculations!$E$2=\"Orkney Health Board\",Calculations!$E$2=\"Orkney Islands Local Authority\"),$F102=1),0,IF(AND(OR(Calculations!$E$2=\"Shetland Health Board\",Calculations!$E$2=\"Western Isles Health Board\",Calculations!$E$2=\"Shetland Islands Local Authority\",Calculations!$E$2=\"Eilean Siar Local Authority\"),OR($F102=1,$F102=5)),0,new_yllv2(VALUE(LEFT(Options!$B$24,2)),$C102,$D102,$E102,$F102,2016,$I102+$J102,1,$H102,$G102*$H102,Options!B8)))","v":703.18591129339995},{"$f":"IF(AND(OR(Calculations!$E$2=\"Orkney Health Board\",Calculations!$E$2=\"Orkney Islands Local Authority\"),$F102=1),0,IF(AND(OR(Calculations!$E$2=\"Shetland Health Board\",Calculations!$E$2=\"Western Isles Health Board\",Calculations!$E$2=\"Shetland Islands Local Authority\",Calculations!$E$2=\"Eilean Siar Local Authority\"),OR($F102=1,$F102=5)),0,hosp_count(VALUE(LEFT(Options!$B$24,2)),$C102,$E102,$F102,2016,$I102,1,$H102,$G102*$H102, Options!B8)))","v":4788.9278407905003},{"$f":"IF(AND(OR(Calculations!$E$2=\"Orkney Health Board\",Calculations!$E$2=\"Orkney Islands Local Authority\"),$F102=1),0,IF(AND(OR(Calculations!$E$2=\"Shetland Health Board\",Calculations!$E$2=\"Western Isles Health Board\",Calculations!$E$2=\"Shetland Islands Local Authority\",Calculations!$E$2=\"Eilean Siar Local Authority\"),OR($F102=1,$F102=5)),0,hosp_count(VALUE(LEFT(Options!$B$24,2)),$C102,$E102,$F102,2016,$I102+$J102,1,$H102,$G102*$H102, Options!B8)))","v":4769.6628767159},{"$f":"IF(AND(OR(Calculations!$E$2=\"Orkney Health Board\",Calculations!$E$2=\"Orkney Islands Local Authority\"),$F102=1),0,IF(AND(OR(Calculations!$E$2=\"Shetland Health Board\",Calculations!$E$2=\"Western Isles Health Board\",Calculations!$E$2=\"Shetland Islands Local Authority\",Calculations!$E$2=\"Eilean Siar Local Authority\"),OR($F102=1,$F102=5)),0,prem_mort(VALUE(LEFT(Options!$B$24,2)),$C102,$E102,$F102,2016,$I102,1,$H102,$G102*$H102,Options!B8)))","v":12.0520317969},{"$f":"IF(AND(OR(Calculations!$E$2=\"Orkney Health Board\",Calculations!$E$2=\"Orkney Islands Local Authority\"),$F102=1),0,IF(AND(OR(Calculations!$E$2=\"Shetland Health Board\",Calculations!$E$2=\"Western Isles Health Board\",Calculations!$E$2=\"Shetland Islands Local Authority\",Calculations!$E$2=\"Eilean Siar Local Authority\"),OR($F102=1,$F102=5)),0,prem_mort(VALUE(LEFT(Options!$B$24,2)),$C102,$E102,$F102,2016,$I102+$J102,1,$H102,$G102*$H102,Options!B8)))","v":12.0018070539},32.662217937884492,32.526103834521258,1913.6794469673973,1905.704521242852,12978.47595,12926.265960367218,32.662217937884492,32.526103834521258,195973.30762730696,195156.62300712755,11482076.681804383,11434227.127457112,77870855.700000003,77557595.762203306,195973.30762730696,195156.62300712755,6000]
[null,"Female 25-29",26.975186999999998,81.645189999999999,"female",2,{"$f":"HLOOKUP(Calculations!$E$2,'Prevalence Rates'!$C$3:$BC$249,'Prevalence Rates'!$BD103,FALSE)","v":0.14880992777152857},{"$f":"HLOOKUP(Calculations!$E$2,'Population 2016'!$C$3:$BC$249,'Population 2016'!BD103,FALSE)","v":40610},0,{"$f":"HLOOKUP(Results!E$4,Targeting!$C$3:$F$249,Targeting!$G103,FALSE)","v":3070},{"$f":"IF(AND(OR(Calculations!$E$2=\"Orkney Health Board\",Calculations!$E$2=\"Orkney Islands Local Authority\"),$F103=1),0,IF(AND(OR(Calculations!$E$2=\"Shetland Health Board\",Calculations!$E$2=\"Western Isles Health Board\",Calculations!$E$2=\"Shetland Islands Local Authority\",Calculations!$E$2=\"Eilean Siar Local Authority\"),OR($F103=1,$F103=5)),0,new_ci(VALUE(LEFT(Options!$B$24,2)),$C103,$E103,$F103,2016,$I103,1,$H103,$G103*$H103,Options!B8)))","v":20.1174019539},{"$f":"IF(AND(OR(Calculations!$E$2=\"Orkney Health Board\",Calculations!$E$2=\"Orkney Islands Local Authority\"),$F103=1),0,IF(AND(OR(Calculations!$E$2=\"Shetland Health Board\",Calculations!$E$2=\"Western Isles Health Board\",Calculations!$E$2=\"Shetland Islands Local Authority\",Calculations!$E$2=\"Eilean Siar Local Authority\"),OR($F103=1,$F103=5)),0,new_ci(VALUE(LEFT(Options!$B$24,2)),$C103,$E103,$F103,2016,$I103+$J103,1,$H103,$G103*$H103,Options!B8)))","v":20.0305897219},{"$f":"IF(AND(OR(Calculations!$E$2=\"Orkney Health Board\",Calculations!$E$2=\"Orkney Islands Local Authority\"),$F103=1),0,IF(AND(OR(Calculations!$E$2=\"Shetland Health Board\",Calculations!$E$2=\"Western Isles Health Board\",Calculations!$E$2=\"Shetland Islands Local Authority\",Calculations!$E$2=\"Eilean Siar Local Authority\"),OR($F103=1,$F103=5)),0,new_yllv2(VALUE(LEFT(Options!$B$24,2)),$C103,$D103,$E103,$F103,2016,$I103,1,$H103,$G103*$H103,Options!B8)))","v":1079.701023218},{"$f":"IF(AND(OR(Calculations!$E$2=\"Orkney Health Board\",Calculations!$E$2=\"Orkney Islands Local Authority\"),$F103=1),0,IF(AND(OR(Calculations!$E$2=\"Shetland Health Board\",Calculations!$E$2=\"Western Isles Health Board\",Calculations!$E$2=\"Shetland Islands Local Authority\",Calculations!$E$2=\"Eilean Siar Local Authority\"),OR($F103=1,$F103=5)),0,new_yllv2(VALUE(LEFT(Options!$B$24,2)),$C103,$D103,$E103,$F103,2016,$I103+$J103,1,$H103,$G103*$H103,Options!B8)))","v":1075.0418104661001},{"$f":"IF(AND(OR(Calculations!$E$2=\"Orkney Health Board\",Calculations!$E$2=\"Orkney Islands Local Authority\"),$F103=1),0,IF(AND(OR(Calculations!$E$2=\"Shetland Health Board\",Calculations!$E$2=\"Western Isles Health Board\",Calculations!$E$2=\"Shetland Islands Local Authority\",Calculations!$E$2=\"Eilean Siar Local Authority\"),OR($F103=1,$F103=5)),0,hosp_count(VALUE(LEFT(Options!$B$24,2)),$C103,$E103,$F103,2016,$I103,1,$H103,$G103*$H103, Options!B8)))","v":5961.6213822700001},{"$f":"IF(AND(OR(Calculations!$E$2=\"Orkney Health Board\",Calculations!$E$2=\"Orkney Islands Local Authority\"),$F103=1),0,IF(AND(OR(Calculations!$E$2=\"Shetland Health Board\",Calculations!$E$2=\"Western Isles Health Board\",Calculations!$E$2=\"Shetland Islands Local Authority\",Calculations!$E$2=\"Eilean Siar Local Authority\"),OR($F103=1,$F103=5)),0,hosp_count(VALUE(LEFT(Options!$B$24,2)),$C103,$E103,$F103,2016,$I103+$J103,1,$H103,$G103*$H103, Options!B8)))","v":5937.4823224436004},{"$f":"IF(AND(OR(Calculations!$E$2=\"Orkney Health Board\",Calculations!$E$2=\"Orkney Islands Local Authority\"),$F103=1),0,IF(AND(OR(Calculations!$E$2=\"Shetland Health Board\",Calculations!$E$2=\"Western Isles Health Board\",Calculations!$E$2=\"Shetland Islands Local Authority\",Calculations!$E$2=\"Eilean Siar Local Authority\"),OR($F103=1,$F103=5)),0,prem_mort(VALUE(LEFT(Options!$B$24,2)),$C103,$E103,$F103,2016,$I103,1,$H103,$G103*$H103,Options!B8)))","v":20.1174019539},{"$f":"IF(AND(OR(Calculations!$E$2=\"Orkney Health Board\",Calculations!$E$2=\"Orkney Islands Local Authority\"),$F103=1),0,IF(AND(OR(Calculations!$E$2=\"Shetland Health Board\",Calculations!$E$2=\"Western Isles Health Board\",Calculations!$E$2=\"Shetland Islands Local Authority\",Calculations!$E$2=\"Eilean Siar Local Authority\"),OR($F103=1,$F103=5)),0,prem_mort(VALUE(LEFT(Options!$B$24,2)),$C103,$E103,$F103,2016,$I103+$J103,1,$H103,$G103*$H103,Options!B8)))","v":20.0305897219},49.53804962792416,49.324279049248958,2658.7072721447921,2647.234204545925,14680.180700000001,14620.739528302391,49.53804962792416,49.324279049248958,297228.29776754498,295945.67429549375,15952243.632868752,15883405.22727555,88081084.200000003,87724437.169814348,297228.29776754498,295945.67429549375,6000]
[null,"Female 30-34",31.999904999999998,81.799899999999994,"female",2,{"$f":"HLOOKUP(Calculations!$E$2,'Prevalence Rates'!$C$3:$BC$249,'Prevalence Rates'!$BD104,FALSE)","v":0.14880992777152857},{"$f":"HLOOKUP(Calculations!$E$2,'Population 2016'!$C$3:$BC$249,'Population 2016'!BD104,FALSE)","v":38102},0,{"$f":"HLOOKUP(Results!E$4,Targeting!$C$3:$F$249,Targeting!$G104,FALSE)","v":2881},{"$f":"IF(AND(OR(Calculations!$E$2=\"Orkney Health Board\",Calculations!$E$2=\"Orkney Islands Local Authority\"),$F104=1),0,IF(AND(OR(Calculations!$E$2=\"Shetland Health Board\",Calculations!$E$2=\"Western Isles Health Board\",Calculations!$E$2=\"Shetland Islands Local Authority\",Calculations!$E$2=\"Eilean Siar Local Authority\"),OR($F104=1,$F104=5)),0,new_ci(VALUE(LEFT(Options!$B$24,2)),$C104,$E104,$F104,2016,$I104,1,$H104,$G104*$H104,Options!B8)))","v":28.935717701400002},{"$f":"IF(AND(OR(Calculations!$E$2=\"Orkney Health Board\",Calculations!$E$2=\"Orkney Islands Local Authority\"),$F104=1),0,IF(AND(OR(Calculations!$E$2=\"Shetland Health Board\",Calculations!$E$2=\"Western Isles Health Board\",Calculations!$E$2=\"Shetland Islands Local Authority\",Calculations!$E$2=\"Eilean Siar Local Authority\"),OR($F104=1,$F104=5)),0,new_ci(VALUE(LEFT(Options!$B$24,2)),$C104,$E104,$F104,2016,$I104+$J104,1,$H104,$G104*$H104,Options!B8)))","v":28.8108528566},{"$f":"IF(AND(OR(Calculations!$E$2=\"Orkney Health Board\",Calculations!$E$2=\"Orkney Islands Local Authority\"),$F104=1),0,IF(AND(OR(Calculations!$E$2=\"Shetland Health Board\",Calculations!$E$2=\"Western Isles Health Board\",Calculations!$E$2=\"Shetland Islands Local Authority\",Calculations!$E$2=\"Eilean Siar Local Authority\"),OR($F104=1,$F104=5)),0,new_yllv2(VALUE(LEFT(Options!$B$24,2)),$C104,$D104,$E104,$F104,2016,$I104,1,$H104,$G104*$H104,Options!B8)))","v":1412.0628791496999},{"$f":"IF(AND(OR(Calculations!$E$2=\"Orkney Health Board\",Calculations!$E$2=\"Orkney Islands Local Authority\"),$F104=1),0,IF(AND(OR(Calculations!$E$2=\"Shetland Health Board\",Calculations!$E$2=\"Western Isles Health Board\",Calculations!$E$2=\"Shetland Islands Local Authority\",Calculations!$E$2=\"Eilean Siar Local Authority\"),OR($F104=1,$F104=5)),0,new_yllv2(VALUE(LEFT(Options!$B$24,2)),$C104,$D104,$E104,$F104,2016,$I104+$J104,1,$H104,$G104*$H104,Options!B8)))","v":1405.9694753478},{"$f":"IF(AND(OR(Calculations!$E$2=\"Orkney Health Board\",Calculations!$E$2=\"Orkney Islands Local Authority\"),$F104=1),0,IF(AND(OR(Calculations!$E$2=\"Shetland Health Board\",Calculations!$E$2=\"Western Isles Health Board\",Calculations!$E$2=\"Shetland Islands Local Authority\",Calculations!$E$2=\"Eilean Siar Local Authority\"),OR($F104=1,$F104=5)),0,hosp_count(VALUE(LEFT(Options!$B$24,2)),$C104,$E104,$F104,2016,$I104,1,$H104,$G104*$H104, Options!B8)))","v":6347.0181481669997},{"$f":"IF(AND(OR(Calculations!$E$2=\"Orkney Health Board\",Calculations!$E$2=\"Orkney Islands Local Authority\"),$F104=1),0,IF(AND(OR(Calculations!$E$2=\"Shetland Health Board\",Calculations!$E$2=\"Western Isles Health Board\",Calculations!$E$2=\"Shetland Islands Local Authority\",Calculations!$E$2=\"Eilean Siar Local Authority\"),OR($F104=1,$F104=5)),0,hosp_count(VALUE(LEFT(Options!$B$24,2)),$C104,$E104,$F104,2016,$I104+$J104,1,$H104,$G104*$H104, Options!B8)))","v":6321.3132553092},{"$f":"IF(AND(OR(Calculations!$E$2=\"Orkney Health Board\",Calculations!$E$2=\"Orkney Islands Local Authority\"),$F104=1),0,IF(AND(OR(Calculations!$E$2=\"Shetland Health Board\",Calculations!$E$2=\"Western Isles Health Board\",Calculations!$E$2=\"Shetland Islands Local Authority\",Calculations!$E$2=\"Eilean Siar Local Authority\"),OR($F104=1,$F104=5)),0,prem_mort(VALUE(LEFT(Options!$B$24,2)),$C104,$E104,$F104,2016,$I104,1,$H104,$G104*$H104,Options!B8)))","v":28.935717701400002},{"$f":"IF(AND(OR(Calculations!$E$2=\"Orkney Health Board\",Calculations!$E$2=\"Orkney Islands Local Authority\"),$F104=1),0,IF(AND(OR(Calculations!$E$2=\"Shetland Health Board\",Calculations!$E$2=\"Western Isles Health Board\",Calculations!$E$2=\"Shetland Islands Local Authority\",Calculations!$E$2=\"Eilean Siar Local Authority\"),OR($F104=1,$F104=5)),0,prem_mort(VALUE(LEFT(Options!$B$24,2)),$C104,$E104,$F104,2016,$I104+$J104,1,$H104,$G104*$H104,Options!B8)))","v":28.8108528566},75.942779122880694,75.615067074169332,3706.0072414825991,3690.0148951440869,16657.965850000001,16590.502480996274,75.942779122880694,75.615067074169332,493628.06429872452,491497.93598210067,24089047.069636893,23985096.818436567,108276778.02500001,107838266.12647578,493628.06429872452,491497.93598210067,6500]
[null,"Female 35-39",36.918118,81.898120000000006,"female",2,{"$f":"HLOOKUP(Calculations!$E$2,'Prevalence Rates'!$C$3:$BC$249,'Prevalence Rates'!$BD105,FALSE)","v":0.17897217350887754},{"$f":"HLOOKUP(Calculations!$E$2,'Population 2016'!$C$3:$BC$249,'Population 2016'!BD105,FALSE)","v":33014},0,{"$f":"HLOOKUP(Results!E$4,Targeting!$C$3:$F$249,Targeting!$G105,FALSE)","v":2496},{"$f":"IF(AND(OR(Calculations!$E$2=\"Orkney Health Board\",Calculations!$E$2=\"Orkney Islands Local Authority\"),$F105=1),0,IF(AND(OR(Calculations!$E$2=\"Shetland Health Board\",Calculations!$E$2=\"Western Isles Health Board\",Calculations!$E$2=\"Shetland Islands Local Authority\",Calculations!$E$2=\"Eilean Siar Local Authority\"),OR($F105=1,$F105=5)),0,new_ci(VALUE(LEFT(Options!$B$24,2)),$C105,$E105,$F105,2016,$I105,1,$H105,$G105*$H105,Options!B8)))","v":38.086257909799997},{"$f":"IF(AND(OR(Calculations!$E$2=\"Orkney Health Board\",Calculations!$E$2=\"Orkney Islands Local Authority\"),$F105=1),0,IF(AND(OR(Calculations!$E$2=\"Shetland Health Board\",Calculations!$E$2=\"Western Isles Health Board\",Calculations!$E$2=\"Shetland Islands Local Authority\",Calculations!$E$2=\"Eilean Siar Local Authority\"),OR($F105=1,$F105=5)),0,new_ci(VALUE(LEFT(Options!$B$24,2)),$C105,$E105,$F105,2016,$I105+$J105,1,$H105,$G105*$H105,Options!B8)))","v":37.924038127400003},{"$f":"IF(AND(OR(Calculations!$E$2=\"Orkney Health Board\",Calculations!$E$2=\"Orkney Islands Local Authority\"),$F105=1),0,IF(AND(OR(Calculations!$E$2=\"Shetland Health Board\",Calculations!$E$2=\"Western Isles Health Board\",Calculations!$E$2=\"Shetland Islands Local Authority\",Calculations!$E$2=\"Eilean Siar Local Authority\"),OR($F105=1,$F105=5)),0,new_yllv2(VALUE(LEFT(Options!$B$24,2)),$C105,$D105,$E105,$F105,2016,$I105,1,$H105,$G105*$H105,Options!B8)))","v":1675.0336990455},{"$f":"IF(AND(OR(Calculations!$E$2=\"Orkney Health Board\",Calculations!$E$2=\"Orkney Islands Local Authority\"),$F105=1),0,IF(AND(OR(Calculations!$E$2=\"Shetland Health Board\",Calculations!$E$2=\"Western Isles Health Board\",Calculations!$E$2=\"Shetland Islands Local Authority\",Calculations!$E$2=\"Eilean Siar Local Authority\"),OR($F105=1,$F105=5)),0,new_yllv2(VALUE(LEFT(Options!$B$24,2)),$C105,$D105,$E105,$F105,2016,$I105+$J105,1,$H105,$G105*$H105,Options!B8)))","v":1667.8992726910999},{"$f":"IF(AND(OR(Calculations!$E$2=\"Orkney Health Board\",Calculations!$E$2=\"Orkney Islands Local Authority\"),$F105=1),0,IF(AND(OR(Calculations!$E$2=\"Shetland Health Board\",Calculations!$E$2=\"Western Isles Health Board\",Calculations!$E$2=\"Shetland Islands Local Authority\",Calculations!$E$2=\"Eilean Siar Local Authority\"),OR($F105=1,$F105=5)),0,hosp_count(VALUE(LEFT(Options!$B$24,2)),$C105,$E105,$F105,2016,$I105,1,$H105,$G105*$H105, Options!B8)))","v":6223.6793335352004},{"$f":"IF(AND(OR(Calculations!$E$2=\"Orkney Health Board\",Calculations!$E$2=\"Orkney Islands Local Authority\"),$F105=1),0,IF(AND(OR(Calculations!$E$2=\"Shetland Health Board\",Calculations!$E$2=\"Western Isles Health Board\",Calculations!$E$2=\"Shetland Islands Local Authority\",Calculations!$E$2=\"Eilean Siar Local Authority\"),OR($F105=1,$F105=5)),0,hosp_count(VALUE(LEFT(Options!$B$24,2)),$C105,$E105,$F105,2016,$I105+$J105,1,$H105,$G105*$H105, Options!B8)))","v":6198.5367540191},{"$f":"IF(AND(OR(Calculations!$E$2=\"Orkney Health Board\",Calculations!$E$2=\"Orkney Islands Local Authority\"),$F105=1),0,IF(AND(OR(Calculations!$E$2=\"Shetland Health Board\",Calculations!$E$2=\"Western Isles Health Board\",Calculations!$E$2=\"Shetland Islands Local Authority\",Calculations!$E$2=\"Eilean Siar Local Authority\"),OR($F105=1,$F105=5)),0,prem_mort(VALUE(LEFT(Options!$B$24,2)),$C105,$E105,$F105,2016,$I105,1,$H105,$G105*$H105,Options!B8)))","v":38.086257909799997},{"$f":"IF(AND(OR(Calculations!$E$2=\"Orkney Health Board\",Calculations!$E$2=\"Orkney Islands Local Authority\"),$F105=1),0,IF(AND(OR(Calculations!$E$2=\"Shetland Health Board\",Calculations!$E$2=\"Western Isles Health Board\",Calculations!$E$2=\"Shetland Islands Local Authority\",Calculations!$E$2=\"Eilean Siar Local Authority\"),OR($F105=1,$F105=5)),0,prem_mort(VALUE(LEFT(Options!$B$24,2)),$C105,$E105,$F105,2016,$I105+$J105,1,$H105,$G105*$H105,Options!B8)))","v":37.924038127400003},115.36396047070939,114.87259383110197,5073.7072122296604,5052.0969064369656,18851.63668,18775.479354271218,115.36396047070939,114.87259383110197,807547.72329496569,804108.15681771375,35515950.485607624,35364678.345058762,131961456.75999999,131428355.47989853,807547.72329496569,804108.15681771375,7000]
[null,"Female 40-44",42.077438000000001,82.30744,"female",2,{"$f":"HLOOKUP(Calculations!$E$2,'Prevalence Rates'!$C$3:$BC$249,'Prevalence Rates'!$BD106,FALSE)","v":0.17897217350887754},{"$f":"HLOOKUP(Calculations!$E$2,'Population 2016'!$C$3:$BC$249,'Population 2016'!BD106,FALSE)","v":33442},0,{"$f":"HLOOKUP(Results!E$4,Targeting!$C$3:$F$249,Targeting!$G106,FALSE)","v":2528},{"$f":"IF(AND(OR(Calculations!$E$2=\"Orkney Health Board\",Calculations!$E$2=\"Orkney Islands Local Authority\"),$F106=1),0,IF(AND(OR(Calculations!$E$2=\"Shetland Health Board\",Calculations!$E$2=\"Western Isles Health Board\",Calculations!$E$2=\"Shetland Islands Local Authority\",Calculations!$E$2=\"Eilean Siar Local Authority\"),OR($F106=1,$F106=5)),0,new_ci(VALUE(LEFT(Options!$B$24,2)),$C106,$E106,$F106,2016,$I106,1,$H106,$G106*$H106,Options!B8)))","v":59.813473761700003},{"$f":"IF(AND(OR(Calculations!$E$2=\"Orkney Health Board\",Calculations!$E$2=\"Orkney Islands Local Authority\"),$F106=1),0,IF(AND(OR(Calculations!$E$2=\"Shetland Health Board\",Calculations!$E$2=\"Western Isles Health Board\",Calculations!$E$2=\"Shetland Islands Local Authority\",Calculations!$E$2=\"Eilean Siar Local Authority\"),OR($F106=1,$F106=5)),0,new_ci(VALUE(LEFT(Options!$B$24,2)),$C106,$E106,$F106,2016,$I106+$J106,1,$H106,$G106*$H106,Options!B8)))","v":59.558877617699999},{"$f":"IF(AND(OR(Calculations!$E$2=\"Orkney Health Board\",Calculations!$E$2=\"Orkney Islands Local Authority\"),$F106=1),0,IF(AND(OR(Calculations!$E$2=\"Shetland Health Board\",Calculations!$E$2=\"Western Isles Health Board\",Calculations!$E$2=\"Shetland Islands Local Authority\",Calculations!$E$2=\"Eilean Siar Local Authority\"),OR($F106=1,$F106=5)),0,new_yllv2(VALUE(LEFT(Options!$B$24,2)),$C106,$D106,$E106,$F106,2016,$I106,1,$H106,$G106*$H106,Options!B8)))","v":2346.4826952983999},{"$f":"IF(AND(OR(Calculations!$E$2=\"Orkney Health Board\",Calculations!$E$2=\"Orkney Islands Local Authority\"),$F106=1),0,IF(AND(OR(Calculations!$E$2=\"Shetland Health Board\",Calculations!$E$2=\"Western Isles Health Board\",Calculations!$E$2=\"Shetland Islands Local Authority\",Calculations!$E$2=\"Eilean Siar Local Authority\"),OR($F106=1,$F106=5)),0,new_yllv2(VALUE(LEFT(Options!$B$24,2)),$C106,$D106,$E106,$F106,2016,$I106+$J106,1,$H106,$G106*$H106,Options!B8)))","v":2336.4948880601},{"$f":"IF(AND(OR(Calculations!$E$2=\"Orkney Health Board\",Calculations!$E$2=\"Orkney Islands Local Authority\"),$F106=1),0,IF(AND(OR(Calculations!$E$2=\"Shetland Health Board\",Calculations!$E$2=\"Western Isles Health Board\",Calculations!$E$2=\"Shetland Islands Local Authority\",Calculations!$E$2=\"Eilean Siar Local Authority\"),OR($F106=1,$F106=5)),0,hosp_count(VALUE(LEFT(Options!$B$24,2)),$C106,$E106,$F106,2016,$I106,1,$H106,$G106*$H106, Options!B8)))","v":7177.9805397336004},{"$f":"IF(AND(OR(Calculations!$E$2=\"Orkney Health Board\",Calculations!$E$2=\"Orkney Islands Local Authority\"),$F106=1),0,IF(AND(OR(Calculations!$E$2=\"Shetland Health Board\",Calculations!$E$2=\"Western Isles Health Board\",Calculations!$E$2=\"Shetland Islands Local Authority\",Calculations!$E$2=\"Eilean Siar Local Authority\"),OR($F106=1,$F106=5)),0,hosp_count(VALUE(LEFT(Options!$B$24,2)),$C106,$E106,$F106,2016,$I106+$J106,1,$H106,$G106*$H106, Options!B8)))","v":7148.9868629133998},{"$f":"IF(AND(OR(Calculations!$E$2=\"Orkney Health Board\",Calculations!$E$2=\"Orkney Islands Local Authority\"),$F106=1),0,IF(AND(OR(Calculations!$E$2=\"Shetland Health Board\",Calculations!$E$2=\"Western Isles Health Board\",Calculations!$E$2=\"Shetland Islands Local Authority\",Calculations!$E$2=\"Eilean Siar Local Authority\"),OR($F106=1,$F106=5)),0,prem_mort(VALUE(LEFT(Options!$B$24,2)),$C106,$E106,$F106,2016,$I106,1,$H106,$G106*$H106,Options!B8)))","v":59.813473761700003},{"$f":"IF(AND(OR(Calculations!$E$2=\"Orkney Health Board\",Calculations!$E$2=\"Orkney Islands Local Authority\"),$F106=1),0,IF(AND(OR(Calculations!$E$2=\"Shetland Health Board\",Calculations!$E$2=\"Western Isles Health Board\",Calculations!$E$2=\"Shetland Islands Local Authority\",Calculations!$E$2=\"Eilean Siar Local Authority\"),OR($F106=1,$F106=5)),0,prem_mort(VALUE(LEFT(Options!$B$24,2)),$C106,$E106,$F106,2016,$I106+$J106,1,$H106,$G106*$H106,Options!B8)))","v":59.558877617699999},178.85734633604449,178.09603976347108,7016.5740544776027,6986.7079961129721,21463.969080000003,21377.270686302854,178.85734633604449,178.09603976347108,1252001.4243523113,1246672.2783442975,49116018.381343216,48906955.972790807,150247783.56000003,149640894.80411997,1252001.4243523113,1246672.2783442975,7000]
[null,"Female 45-49",47.025772000000003,82.585769999999997,"female",2,{"$f":"HLOOKUP(Calculations!$E$2,'Prevalence Rates'!$C$3:$BC$249,'Prevalence Rates'!$BD107,FALSE)","v":0.19267287215550227},{"$f":"HLOOKUP(Calculations!$E$2,'Population 2016'!$C$3:$BC$249,'Population 2016'!BD107,FALSE)","v":39170},0,{"$f":"HLOOKUP(Results!E$4,Targeting!$C$3:$F$249,Targeting!$G107,FALSE)","v":2962},{"$f":"IF(AND(OR(Calculations!$E$2=\"Orkney Health Board\",Calculations!$E$2=\"Orkney Islands Local Authority\"),$F107=1),0,IF(AND(OR(Calculations!$E$2=\"Shetland Health Board\",Calculations!$E$2=\"Western Isles Health Board\",Calculations!$E$2=\"Shetland Islands Local Authority\",Calculations!$E$2=\"Eilean Siar Local Authority\"),OR($F107=1,$F107=5)),0,new_ci(VALUE(LEFT(Options!$B$24,2)),$C107,$E107,$F107,2016,$I107,1,$H107,$G107*$H107,Options!B8)))","v":106.6684077722},{"$f":"IF(AND(OR(Calculations!$E$2=\"Orkney Health Board\",Calculations!$E$2=\"Orkney Islands Local Authority\"),$F107=1),0,IF(AND(OR(Calculations!$E$2=\"Shetland Health Board\",Calculations!$E$2=\"Western Isles Health Board\",Calculations!$E$2=\"Shetland Islands Local Authority\",Calculations!$E$2=\"Eilean Siar Local Authority\"),OR($F107=1,$F107=5)),0,new_ci(VALUE(LEFT(Options!$B$24,2)),$C107,$E107,$F107,2016,$I107+$J107,1,$H107,$G107*$H107,Options!B8)))","v":106.217126042},{"$f":"IF(AND(OR(Calculations!$E$2=\"Orkney Health Board\",Calculations!$E$2=\"Orkney Islands Local Authority\"),$F107=1),0,IF(AND(OR(Calculations!$E$2=\"Shetland Health Board\",Calculations!$E$2=\"Western Isles Health Board\",Calculations!$E$2=\"Shetland Islands Local Authority\",Calculations!$E$2=\"Eilean Siar Local Authority\"),OR($F107=1,$F107=5)),0,new_yllv2(VALUE(LEFT(Options!$B$24,2)),$C107,$D107,$E107,$F107,2016,$I107,1,$H107,$G107*$H107,Options!B8)))","v":3686.4599592703998},{"$f":"IF(AND(OR(Calculations!$E$2=\"Orkney Health Board\",Calculations!$E$2=\"Orkney Islands Local Authority\"),$F107=1),0,IF(AND(OR(Calculations!$E$2=\"Shetland Health Board\",Calculations!$E$2=\"Western Isles Health Board\",Calculations!$E$2=\"Shetland Islands Local Authority\",Calculations!$E$2=\"Eilean Siar Local Authority\"),OR($F107=1,$F107=5)),0,new_yllv2(VALUE(LEFT(Options!$B$24,2)),$C107,$D107,$E107,$F107,2016,$I107+$J107,1,$H107,$G107*$H107,Options!B8)))","v":3670.8636635773},{"$f":"IF(AND(OR(Calculations!$E$2=\"Orkney Health Board\",Calculations!$E$2=\"Orkney Islands Local Authority\"),$F107=1),0,IF(AND(OR(Calculations!$E$2=\"Shetland Health Board\",Calculations!$E$2=\"Western Isles Health Board\",Calculations!$E$2=\"Shetland Islands Local Authority\",Calculations!$E$2=\"Eilean Siar Local Authority\"),OR($F107=1,$F107=5)),0,hosp_count(VALUE(LEFT(Options!$B$24,2)),$C107,$E107,$F107,2016,$I107,1,$H107,$G107*$H107, Options!B8)))","v":9521.8151117819998},{"$f":"IF(AND(OR(Calculations!$E$2=\"Orkney Health Board\",Calculations!$E$2=\"Orkney Islands Local Authority\"),$F107=1),0,IF(AND(OR(Calculations!$E$2=\"Shetland Health Board\",Calculations!$E$2=\"Western Isles Health Board\",Calculations!$E$2=\"Shetland Islands Local Authority\",Calculations!$E$2=\"Eilean Siar Local Authority\"),OR($F107=1,$F107=5)),0,hosp_count(VALUE(LEFT(Options!$B$24,2)),$C107,$E107,$F107,2016,$I107+$J107,1,$H107,$G107*$H107, Options!B8)))","v":9483.3826344904992},{"$f":"IF(AND(OR(Calculations!$E$2=\"Orkney Health Board\",Calculations!$E$2=\"Orkney Islands Local Authority\"),$F107=1),0,IF(AND(OR(Calculations!$E$2=\"Shetland Health Board\",Calculations!$E$2=\"Western Isles Health Board\",Calculations!$E$2=\"Shetland Islands Local Authority\",Calculations!$E$2=\"Eilean Siar Local Authority\"),OR($F107=1,$F107=5)),0,prem_mort(VALUE(LEFT(Options!$B$24,2)),$C107,$E107,$F107,2016,$I107,1,$H107,$G107*$H107,Options!B8)))","v":106.6684077722},{"$f":"IF(AND(OR(Calculations!$E$2=\"Orkney Health Board\",Calculations!$E$2=\"Orkney Islands Local Authority\"),$F107=1),0,IF(AND(OR(Calculations!$E$2=\"Shetland Health Board\",Calculations!$E$2=\"Western Isles Health Board\",Calculations!$E$2=\"Shetland Islands Local Authority\",Calculations!$E$2=\"Eilean Siar Local Authority\"),OR($F107=1,$F107=5)),0,prem_mort(VALUE(LEFT(Options!$B$24,2)),$C107,$E107,$F107,2016,$I107+$J107,1,$H107,$G107*$H107,Options!B8)))","v":106.217126042},272.32169459331118,271.16958397242786,9411.4372205014042,9371.6202797480219,24308.94846,24210.831336457748,272.32169459331118,271.16958397242786,1906251.8621531783,1898187.087806995,65880060.543509826,65601341.95823615,170162639.22,169475819.35520422,1906251.8621531783,1898187.087806995,7000]
[null,"Female 50-54",51.990825999999998,82.980829999999997,"female",2,{"$f":"HLOOKUP(Calculations!$E$2,'Prevalence Rates'!$C$3:$BC$249,'Prevalence Rates'!$BD108,FALSE)","v":0.19267287215550227},{"$f":"HLOOKUP(Calculations!$E$2,'Population 2016'!$C$3:$BC$249,'Population 2016'!BD108,FALSE)","v":40518},0,{"$f":"HLOOKUP(Results!E$4,Targeting!$C$3:$F$249,Targeting!$G108,FALSE)","v":3063},{"$f":"IF(AND(OR(Calculations!$E$2=\"Orkney Health Board\",Calculations!$E$2=\"Orkney Islands Local Authority\"),$F108=1),0,IF(AND(OR(Calculations!$E$2=\"Shetland Health Board\",Calculations!$E$2=\"Western Isles Health Board\",Calculations!$E$2=\"Shetland Islands Local Authority\",Calculations!$E$2=\"Eilean Siar Local Authority\"),OR($F108=1,$F108=5)),0,new_ci(VALUE(LEFT(Options!$B$24,2)),$C108,$E108,$F108,2016,$I108,1,$H108,$G108*$H108,Options!B8)))","v":168.19506718349999},{"$f":"IF(AND(OR(Calculations!$E$2=\"Orkney Health Board\",Calculations!$E$2=\"Orkney Islands Local Authority\"),$F108=1),0,IF(AND(OR(Calculations!$E$2=\"Shetland Health Board\",Calculations!$E$2=\"Western Isles Health Board\",Calculations!$E$2=\"Shetland Islands Local Authority\",Calculations!$E$2=\"Eilean Siar Local Authority\"),OR($F108=1,$F108=5)),0,new_ci(VALUE(LEFT(Options!$B$24,2)),$C108,$E108,$F108,2016,$I108+$J108,1,$H108,$G108*$H108,Options!B8)))","v":167.4845099931},{"$f":"IF(AND(OR(Calculations!$E$2=\"Orkney Health Board\",Calculations!$E$2=\"Orkney Islands Local Authority\"),$F108=1),0,IF(AND(OR(Calculations!$E$2=\"Shetland Health Board\",Calculations!$E$2=\"Western Isles Health Board\",Calculations!$E$2=\"Shetland Islands Local Authority\",Calculations!$E$2=\"Eilean Siar Local Authority\"),OR($F108=1,$F108=5)),0,new_yllv2(VALUE(LEFT(Options!$B$24,2)),$C108,$D108,$E108,$F108,2016,$I108,1,$H108,$G108*$H108,Options!B8)))","v":5044.1707376134},{"$f":"IF(AND(OR(Calculations!$E$2=\"Orkney Health Board\",Calculations!$E$2=\"Orkney Islands Local Authority\"),$F108=1),0,IF(AND(OR(Calculations!$E$2=\"Shetland Health Board\",Calculations!$E$2=\"Western Isles Health Board\",Calculations!$E$2=\"Shetland Islands Local Authority\",Calculations!$E$2=\"Eilean Siar Local Authority\"),OR($F108=1,$F108=5)),0,new_yllv2(VALUE(LEFT(Options!$B$24,2)),$C108,$D108,$E108,$F108,2016,$I108+$J108,1,$H108,$G108*$H108,Options!B8)))","v":5022.8611246311002},{"$f":"IF(AND(OR(Calculations!$E$2=\"Orkney Health Board\",Calculations!$E$2=\"Orkney Islands Local Authority\"),$F108=1),0,IF(AND(OR(Calculations!$E$2=\"Shetland Health Board\",Calculations!$E$2=\"Western Isles Health Board\",Calculations!$E$2=\"Shetland Islands Local Authority\",Calculations!$E$2=\"Eilean Siar Local Authority\"),OR($F108=1,$F108=5)),0,hosp_count(VALUE(LEFT(Options!$B$24,2)),$C108,$E108,$F108,2016,$I108,1,$H108,$G108*$H108, Options!B8)))","v":11159.7113811168},{"$f":"IF(AND(OR(Calculations!$E$2=\"Orkney Health Board\",Calculations!$E$2=\"Orkney Islands Local Authority\"),$F108=1),0,IF(AND(OR(Calculations!$E$2=\"Shetland Health Board\",Calculations!$E$2=\"Western Isles Health Board\",Calculations!$E$2=\"Shetland Islands Local Authority\",Calculations!$E$2=\"Eilean Siar Local Authority\"),OR($F108=1,$F108=5)),0,hosp_count(VALUE(LEFT(Options!$B$24,2)),$C108,$E108,$F108,2016,$I108+$J108,1,$H108,$G108*$H108, Options!B8)))","v":11114.681675229},{"$f":"IF(AND(OR(Calculations!$E$2=\"Orkney Health Board\",Calculations!$E$2=\"Orkney Islands Local Authority\"),$F108=1),0,IF(AND(OR(Calculations!$E$2=\"Shetland Health Board\",Calculations!$E$2=\"Western Isles Health Board\",Calculations!$E$2=\"Shetland Islands Local Authority\",Calculations!$E$2=\"Eilean Siar Local Authority\"),OR($F108=1,$F108=5)),0,prem_mort(VALUE(LEFT(Options!$B$24,2)),$C108,$E108,$F108,2016,$I108,1,$H108,$G108*$H108,Options!B8)))","v":168.19506718349999},{"$f":"IF(AND(OR(Calculations!$E$2=\"Orkney Health Board\",Calculations!$E$2=\"Orkney Islands Local Authority\"),$F108=1),0,IF(AND(OR(Calculations!$E$2=\"Shetland Health Board\",Calculations!$E$2=\"Western Isles Health Board\",Calculations!$E$2=\"Shetland Islands Local Authority\",Calculations!$E$2=\"Eilean Siar Local Authority\"),OR($F108=1,$F108=5)),0,prem_mort(VALUE(LEFT(Options!$B$24,2)),$C108,$E108,$F108,2016,$I108+$J108,1,$H108,$G108*$H108,Options!B8)))","v":167.4845099931},415.11196797349317,413.35828518954537,12449.209579972852,12396.616626267585,27542.601760000001,27431.466694380273,415.11196797349317,413.35828518954537,2905783.7758144522,2893507.9963268177,87144467.059809968,86776316.38387309,192798212.32000002,192020266.86066192,2905783.7758144522,2893507.9963268177,7000]
[null,"Female 55-59",56.953040999999999,83.473039999999997,"female",2,{"$f":"HLOOKUP(Calculations!$E$2,'Prevalence Rates'!$C$3:$BC$249,'Prevalence Rates'!$BD109,FALSE)","v":0.13382888723852349},{"$f":"HLOOKUP(Calculations!$E$2,'Population 2016'!$C$3:$BC$249,'Population 2016'!BD109,FALSE)","v":37275},0,{"$f":"HLOOKUP(Results!E$4,Targeting!$C$3:$F$249,Targeting!$G109,FALSE)","v":2818},{"$f":"IF(AND(OR(Calculations!$E$2=\"Orkney Health Board\",Calculations!$E$2=\"Orkney Islands Local Authority\"),$F109=1),0,IF(AND(OR(Calculations!$E$2=\"Shetland Health Board\",Calculations!$E$2=\"Western Isles Health Board\",Calculations!$E$2=\"Shetland Islands Local Authority\",Calculations!$E$2=\"Eilean Siar Local Authority\"),OR($F109=1,$F109=5)),0,new_ci(VALUE(LEFT(Options!$B$24,2)),$C109,$E109,$F109,2016,$I109,1,$H109,$G109*$H109,Options!B8)))","v":235.7229007688},{"$f":"IF(AND(OR(Calculations!$E$2=\"Orkney Health Board\",Calculations!$E$2=\"Orkney Islands Local Authority\"),$F109=1),0,IF(AND(OR(Calculations!$E$2=\"Shetland Health Board\",Calculations!$E$2=\"Western Isles Health Board\",Calculations!$E$2=\"Shetland Islands Local Authority\",Calculations!$E$2=\"Eilean Siar Local Authority\"),OR($F109=1,$F109=5)),0,new_ci(VALUE(LEFT(Options!$B$24,2)),$C109,$E109,$F109,2016,$I109+$J109,1,$H109,$G109*$H109,Options!B8)))","v":234.70413402720001},{"$f":"IF(AND(OR(Calculations!$E$2=\"Orkney Health Board\",Calculations!$E$2=\"Orkney Islands Local Authority\"),$F109=1),0,IF(AND(OR(Calculations!$E$2=\"Shetland Health Board\",Calculations!$E$2=\"Western Isles Health Board\",Calculations!$E$2=\"Shetland Islands Local Authority\",Calculations!$E$2=\"Eilean Siar Local Authority\"),OR($F109=1,$F109=5)),0,new_yllv2(VALUE(LEFT(Options!$B$24,2)),$C109,$D109,$E109,$F109,2016,$I109,1,$H109,$G109*$H109,Options!B8)))","v":6015.6481918969002},{"$f":"IF(AND(OR(Calculations!$E$2=\"Orkney Health Board\",Calculations!$E$2=\"Orkney Islands Local Authority\"),$F109=1),0,IF(AND(OR(Calculations!$E$2=\"Shetland Health Board\",Calculations!$E$2=\"Western Isles Health Board\",Calculations!$E$2=\"Shetland Islands Local Authority\",Calculations!$E$2=\"Eilean Siar Local Authority\"),OR($F109=1,$F109=5)),0,new_yllv2(VALUE(LEFT(Options!$B$24,2)),$C109,$D109,$E109,$F109,2016,$I109+$J109,1,$H109,$G109*$H109,Options!B8)))","v":5989.6492656700002},{"$f":"IF(AND(OR(Calculations!$E$2=\"Orkney Health Board\",Calculations!$E$2=\"Orkney Islands Local Authority\"),$F109=1),0,IF(AND(OR(Calculations!$E$2=\"Shetland Health Board\",Calculations!$E$2=\"Western Isles Health Board\",Calculations!$E$2=\"Shetland Islands Local Authority\",Calculations!$E$2=\"Eilean Siar Local Authority\"),OR($F109=1,$F109=5)),0,hosp_count(VALUE(LEFT(Options!$B$24,2)),$C109,$E109,$F109,2016,$I109,1,$H109,$G109*$H109, Options!B8)))","v":11631.357148215},{"$f":"IF(AND(OR(Calculations!$E$2=\"Orkney Health Board\",Calculations!$E$2=\"Orkney Islands Local Authority\"),$F109=1),0,IF(AND(OR(Calculations!$E$2=\"Shetland Health Board\",Calculations!$E$2=\"Western Isles Health Board\",Calculations!$E$2=\"Shetland Islands Local Authority\",Calculations!$E$2=\"Eilean Siar Local Authority\"),OR($F109=1,$F109=5)),0,hosp_count(VALUE(LEFT(Options!$B$24,2)),$C109,$E109,$F109,2016,$I109+$J109,1,$H109,$G109*$H109, Options!B8)))","v":11584.2031008664},{"$f":"IF(AND(OR(Calculations!$E$2=\"Orkney Health Board\",Calculations!$E$2=\"Orkney Islands Local Authority\"),$F109=1),0,IF(AND(OR(Calculations!$E$2=\"Shetland Health Board\",Calculations!$E$2=\"Western Isles Health Board\",Calculations!$E$2=\"Shetland Islands Local Authority\",Calculations!$E$2=\"Eilean Siar Local Authority\"),OR($F109=1,$F109=5)),0,prem_mort(VALUE(LEFT(Options!$B$24,2)),$C109,$E109,$F109,2016,$I109,1,$H109,$G109*$H109,Options!B8)))","v":235.7229007688},{"$f":"IF(AND(OR(Calculations!$E$2=\"Orkney Health Board\",Calculations!$E$2=\"Orkney Islands Local Authority\"),$F109=1),0,IF(AND(OR(Calculations!$E$2=\"Shetland Health Board\",Calculations!$E$2=\"Western Isles Health Board\",Calculations!$E$2=\"Shetland Islands Local Authority\",Calculations!$E$2=\"Eilean Siar Local Authority\"),OR($F109=1,$F109=5)),0,prem_mort(VALUE(LEFT(Options!$B$24,2)),$C109,$E109,$F109,2016,$I109+$J109,1,$H109,$G109*$H109,Options!B8)))","v":234.70413402720001},632.38873445687454,629.65562448611672,16138.55987095077,16068.810907230049,31204.177460000003,31077.674314866261,632.38873445687454,629.65562448611672,4110526.7739696847,4092761.5591597585,104900639.16118,104447270.89699532,202827153.49000001,202004883.04663068,4110526.7739696847,4092761.5591597585,6500]
[null,"Female 60-64",61.947387999999997,84.167389999999997,"female",2,{"$f":"HLOOKUP(Calculations!$E$2,'Prevalence Rates'!$C$3:$BC$249,'Prevalence Rates'!$BD110,FALSE)","v":0.13382888723852349},{"$f":"HLOOKUP(Calculations!$E$2,'Population 2016'!$C$3:$BC$249,'Population 2016'!BD110,FALSE)","v":32644},0,{"$f":"HLOOKUP(Results!E$4,Targeting!$C$3:$F$249,Targeting!$G110,FALSE)","v":2468},{"$f":"IF(AND(OR(Calculations!$E$2=\"Orkney Health Board\",Calculations!$E$2=\"Orkney Islands Local Authority\"),$F110=1),0,IF(AND(OR(Calculations!$E$2=\"Shetland Health Board\",Calculations!$E$2=\"Western Isles Health Board\",Calculations!$E$2=\"Shetland Islands Local Authority\",Calculations!$E$2=\"Eilean Siar Local Authority\"),OR($F110=1,$F110=5)),0,new_ci(VALUE(LEFT(Options!$B$24,2)),$C110,$E110,$F110,2016,$I110,1,$H110,$G110*$H110,Options!B8)))","v":315.1581514746},{"$f":"IF(AND(OR(Calculations!$E$2=\"Orkney Health Board\",Calculations!$E$2=\"Orkney Islands Local Authority\"),$F110=1),0,IF(AND(OR(Calculations!$E$2=\"Shetland Health Board\",Calculations!$E$2=\"Western Isles Health Board\",Calculations!$E$2=\"Shetland Islands Local Authority\",Calculations!$E$2=\"Eilean Siar Local Authority\"),OR($F110=1,$F110=5)),0,new_ci(VALUE(LEFT(Options!$B$24,2)),$C110,$E110,$F110,2016,$I110+$J110,1,$H110,$G110*$H110,Options!B8)))","v":313.79980474979999},{"$f":"IF(AND(OR(Calculations!$E$2=\"Orkney Health Board\",Calculations!$E$2=\"Orkney Islands Local Authority\"),$F110=1),0,IF(AND(OR(Calculations!$E$2=\"Shetland Health Board\",Calculations!$E$2=\"Western Isles Health Board\",Calculations!$E$2=\"Shetland Islands Local Authority\",Calculations!$E$2=\"Eilean Siar Local Authority\"),OR($F110=1,$F110=5)),0,new_yllv2(VALUE(LEFT(Options!$B$24,2)),$C110,$D110,$E110,$F110,2016,$I110,1,$H110,$G110*$H110,Options!B8)))","v":6687.6566046073003},{"$f":"IF(AND(OR(Calculations!$E$2=\"Orkney Health Board\",Calculations!$E$2=\"Orkney Islands Local Authority\"),$F110=1),0,IF(AND(OR(Calculations!$E$2=\"Shetland Health Board\",Calculations!$E$2=\"Western Isles Health Board\",Calculations!$E$2=\"Shetland Islands Local Authority\",Calculations!$E$2=\"Eilean Siar Local Authority\"),OR($F110=1,$F110=5)),0,new_yllv2(VALUE(LEFT(Options!$B$24,2)),$C110,$D110,$E110,$F110,2016,$I110+$J110,1,$H110,$G110*$H110,Options!B8)))","v":6658.8324843904002},{"$f":"IF(AND(OR(Calculations!$E$2=\"Orkney Health Board\",Calculations!$E$2=\"Orkney Islands Local Authority\"),$F110=1),0,IF(AND(OR(Calculations!$E$2=\"Shetland Health Board\",Calculations!$E$2=\"Western Isles Health Board\",Calculations!$E$2=\"Shetland Islands Local Authority\",Calculations!$E$2=\"Eilean Siar Local Authority\"),OR($F110=1,$F110=5)),0,hosp_count(VALUE(LEFT(Options!$B$24,2)),$C110,$E110,$F110,2016,$I110,1,$H110,$G110*$H110, Options!B8)))","v":11549.811549477199},{"$f":"IF(AND(OR(Calculations!$E$2=\"Orkney Health Board\",Calculations!$E$2=\"Orkney Islands Local Authority\"),$F110=1),0,IF(AND(OR(Calculations!$E$2=\"Shetland Health Board\",Calculations!$E$2=\"Western Isles Health Board\",Calculations!$E$2=\"Shetland Islands Local Authority\",Calculations!$E$2=\"Eilean Siar Local Authority\"),OR($F110=1,$F110=5)),0,hosp_count(VALUE(LEFT(Options!$B$24,2)),$C110,$E110,$F110,2016,$I110+$J110,1,$H110,$G110*$H110, Options!B8)))","v":11502.986102410599},{"$f":"IF(AND(OR(Calculations!$E$2=\"Orkney Health Board\",Calculations!$E$2=\"Orkney Islands Local Authority\"),$F110=1),0,IF(AND(OR(Calculations!$E$2=\"Shetland Health Board\",Calculations!$E$2=\"Western Isles Health Board\",Calculations!$E$2=\"Shetland Islands Local Authority\",Calculations!$E$2=\"Eilean Siar Local Authority\"),OR($F110=1,$F110=5)),0,prem_mort(VALUE(LEFT(Options!$B$24,2)),$C110,$E110,$F110,2016,$I110,1,$H110,$G110*$H110,Options!B8)))","v":315.1581514746},{"$f":"IF(AND(OR(Calculations!$E$2=\"Orkney Health Board\",Calculations!$E$2=\"Orkney Islands Local Authority\"),$F110=1),0,IF(AND(OR(Calculations!$E$2=\"Shetland Health Board\",Calculations!$E$2=\"Western Isles Health Board\",Calculations!$E$2=\"Shetland Islands Local Authority\",Calculations!$E$2=\"Eilean Siar Local Authority\"),OR($F110=1,$F110=5)),0,prem_mort(VALUE(LEFT(Options!$B$24,2)),$C110,$E110,$F110,2016,$I110+$J110,1,$H110,$G110*$H110,Options!B8)))","v":313.79980474979999},965.43974842114937,961.27865687354495,20486.633392376243,20398.335021414045,35381.116129999995,35237.673392999022,965.43974842114937,961.27865687354495,5792638.490526896,5767671.9412412699,122919800.35425746,122390010.12848426,212286696.77999997,211426040.35799414,5792638.490526896,5767671.9412412699,6000]
[null,"Female 65-69",67.063927000000007,85.193929999999995,"female",2,{"$f":"HLOOKUP(Calculations!$E$2,'Prevalence Rates'!$C$3:$BC$249,'Prevalence Rates'!$BD111,FALSE)","v":9.0288915876774054E-2},{"$f":"HLOOKUP(Calculations!$E$2,'Population 2016'!$C$3:$BC$249,'Population 2016'!BD111,FALSE)","v":32580},0,{"$f":"HLOOKUP(Results!E$4,Targeting!$C$3:$F$249,Targeting!$G111,FALSE)","v":2463},{"$f":"IF(AND(OR(Calculations!$E$2=\"Orkney Health Board\",Calculations!$E$2=\"Orkney Islands Local Authority\"),$F111=1),0,IF(AND(OR(Calculations!$E$2=\"Shetland Health Board\",Calculations!$E$2=\"Western Isles Health Board\",Calculations!$E$2=\"Shetland Islands Local Authority\",Calculations!$E$2=\"Eilean Siar Local Authority\"),OR($F111=1,$F111=5)),0,new_ci(VALUE(LEFT(Options!$B$24,2)),$C111,$E111,$F111,2016,$I111,1,$H111,$G111*$H111,Options!B8)))","v":484.75467265809999},{"$f":"IF(AND(OR(Calculations!$E$2=\"Orkney Health Board\",Calculations!$E$2=\"Orkney Islands Local Authority\"),$F111=1),0,IF(AND(OR(Calculations!$E$2=\"Shetland Health Board\",Calculations!$E$2=\"Western Isles Health Board\",Calculations!$E$2=\"Shetland Islands Local Authority\",Calculations!$E$2=\"Eilean Siar Local Authority\"),OR($F111=1,$F111=5)),0,new_ci(VALUE(LEFT(Options!$B$24,2)),$C111,$E111,$F111,2016,$I111+$J111,1,$H111,$G111*$H111,Options!B8)))","v":482.63636753769998},{"$f":"IF(AND(OR(Calculations!$E$2=\"Orkney Health Board\",Calculations!$E$2=\"Orkney Islands Local Authority\"),$F111=1),0,IF(AND(OR(Calculations!$E$2=\"Shetland Health Board\",Calculations!$E$2=\"Western Isles Health Board\",Calculations!$E$2=\"Shetland Islands Local Authority\",Calculations!$E$2=\"Eilean Siar Local Authority\"),OR($F111=1,$F111=5)),0,new_yllv2(VALUE(LEFT(Options!$B$24,2)),$C111,$D111,$E111,$F111,2016,$I111,1,$H111,$G111*$H111,Options!B8)))","v":8303.8489968973008},{"$f":"IF(AND(OR(Calculations!$E$2=\"Orkney Health Board\",Calculations!$E$2=\"Orkney Islands Local Authority\"),$F111=1),0,IF(AND(OR(Calculations!$E$2=\"Shetland Health Board\",Calculations!$E$2=\"Western Isles Health Board\",Calculations!$E$2=\"Shetland Islands Local Authority\",Calculations!$E$2=\"Eilean Siar Local Authority\"),OR($F111=1,$F111=5)),0,new_yllv2(VALUE(LEFT(Options!$B$24,2)),$C111,$D111,$E111,$F111,2016,$I111+$J111,1,$H111,$G111*$H111,Options!B8)))","v":8267.5624238299006},{"$f":"IF(AND(OR(Calculations!$E$2=\"Orkney Health Board\",Calculations!$E$2=\"Orkney Islands Local Authority\"),$F111=1),0,IF(AND(OR(Calculations!$E$2=\"Shetland Health Board\",Calculations!$E$2=\"Western Isles Health Board\",Calculations!$E$2=\"Shetland Islands Local Authority\",Calculations!$E$2=\"Eilean Siar Local Authority\"),OR($F111=1,$F111=5)),0,hosp_count(VALUE(LEFT(Options!$B$24,2)),$C111,$E111,$F111,2016,$I111,1,$H111,$G111*$H111, Options!B8)))","v":13110.408911123999},{"$f":"IF(AND(OR(Calculations!$E$2=\"Orkney Health Board\",Calculations!$E$2=\"Orkney Islands Local Authority\"),$F111=1),0,IF(AND(OR(Calculations!$E$2=\"Shetland Health Board\",Calculations!$E$2=\"Western Isles Health Board\",Calculations!$E$2=\"Shetland Islands Local Authority\",Calculations!$E$2=\"Eilean Siar Local Authority\"),OR($F111=1,$F111=5)),0,hosp_count(VALUE(LEFT(Options!$B$24,2)),$C111,$E111,$F111,2016,$I111+$J111,1,$H111,$G111*$H111, Options!B8)))","v":13057.076144701599},{"$f":"IF(AND(OR(Calculations!$E$2=\"Orkney Health Board\",Calculations!$E$2=\"Orkney Islands Local Authority\"),$F111=1),0,IF(AND(OR(Calculations!$E$2=\"Shetland Health Board\",Calculations!$E$2=\"Western Isles Health Board\",Calculations!$E$2=\"Shetland Islands Local Authority\",Calculations!$E$2=\"Eilean Siar Local Authority\"),OR($F111=1,$F111=5)),0,prem_mort(VALUE(LEFT(Options!$B$24,2)),$C111,$E111,$F111,2016,$I111,1,$H111,$G111*$H111,Options!B8)))","v":484.75467265809999},{"$f":"IF(AND(OR(Calculations!$E$2=\"Orkney Health Board\",Calculations!$E$2=\"Orkney Islands Local Authority\"),$F111=1),0,IF(AND(OR(Calculations!$E$2=\"Shetland Health Board\",Calculations!$E$2=\"Western Isles Health Board\",Calculations!$E$2=\"Shetland Islands Local Authority\",Calculations!$E$2=\"Eilean Siar Local Authority\"),OR($F111=1,$F111=5)),0,prem_mort(VALUE(LEFT(Options!$B$24,2)),$C111,$E111,$F111,2016,$I111+$J111,1,$H111,$G111*$H111,Options!B8)))","v":482.63636753769998},1487.890339650399,1481.3884823133824,25487.565981882446,25376.189146193676,40240.665779999996,40076.967908844694,1487.890339650399,1481.3884823133824,8183396.8680771943,8147636.652723603,140181612.90035346,139569040.30406523,221323661.78999996,220423323.49864581,8183396.8680771943,8147636.652723603,5500]
[null,"Female 70-74",71.938164,86.248159999999999,"female",2,{"$f":"HLOOKUP(Calculations!$E$2,'Prevalence Rates'!$C$3:$BC$249,'Prevalence Rates'!$BD112,FALSE)","v":9.0288915876774054E-2},{"$f":"HLOOKUP(Calculations!$E$2,'Population 2016'!$C$3:$BC$249,'Population 2016'!BD112,FALSE)","v":25764},0,{"$f":"HLOOKUP(Results!E$4,Targeting!$C$3:$F$249,Targeting!$G112,FALSE)","v":1948},{"$f":"IF(AND(OR(Calculations!$E$2=\"Orkney Health Board\",Calculations!$E$2=\"Orkney Islands Local Authority\"),$F112=1),0,IF(AND(OR(Calculations!$E$2=\"Shetland Health Board\",Calculations!$E$2=\"Western Isles Health Board\",Calculations!$E$2=\"Shetland Islands Local Authority\",Calculations!$E$2=\"Eilean Siar Local Authority\"),OR($F112=1,$F112=5)),0,new_ci(VALUE(LEFT(Options!$B$24,2)),$C112,$E112,$F112,2016,$I112,1,$H112,$G112*$H112,Options!B8)))","v":578.01554781039999},{"$f":"IF(AND(OR(Calculations!$E$2=\"Orkney Health Board\",Calculations!$E$2=\"Orkney Islands Local Authority\"),$F112=1),0,IF(AND(OR(Calculations!$E$2=\"Shetland Health Board\",Calculations!$E$2=\"Western Isles Health Board\",Calculations!$E$2=\"Shetland Islands Local Authority\",Calculations!$E$2=\"Eilean Siar Local Authority\"),OR($F112=1,$F112=5)),0,new_ci(VALUE(LEFT(Options!$B$24,2)),$C112,$E112,$F112,2016,$I112+$J112,1,$H112,$G112*$H112,Options!B8)))","v":575.50598655199997},{"$f":"IF(AND(OR(Calculations!$E$2=\"Orkney Health Board\",Calculations!$E$2=\"Orkney Islands Local Authority\"),$F112=1),0,IF(AND(OR(Calculations!$E$2=\"Shetland Health Board\",Calculations!$E$2=\"Western Isles Health Board\",Calculations!$E$2=\"Shetland Islands Local Authority\",Calculations!$E$2=\"Eilean Siar Local Authority\"),OR($F112=1,$F112=5)),0,new_yllv2(VALUE(LEFT(Options!$B$24,2)),$C112,$D112,$E112,$F112,2016,$I112,1,$H112,$G112*$H112,Options!B8)))","v":7693.3846292941998},{"$f":"IF(AND(OR(Calculations!$E$2=\"Orkney Health Board\",Calculations!$E$2=\"Orkney Islands Local Authority\"),$F112=1),0,IF(AND(OR(Calculations!$E$2=\"Shetland Health Board\",Calculations!$E$2=\"Western Isles Health Board\",Calculations!$E$2=\"Shetland Islands Local Authority\",Calculations!$E$2=\"Eilean Siar Local Authority\"),OR($F112=1,$F112=5)),0,new_yllv2(VALUE(LEFT(Options!$B$24,2)),$C112,$D112,$E112,$F112,2016,$I112+$J112,1,$H112,$G112*$H112,Options!B8)))","v":7659.9823789831999},{"$f":"IF(AND(OR(Calculations!$E$2=\"Orkney Health Board\",Calculations!$E$2=\"Orkney Islands Local Authority\"),$F112=1),0,IF(AND(OR(Calculations!$E$2=\"Shetland Health Board\",Calculations!$E$2=\"Western Isles Health Board\",Calculations!$E$2=\"Shetland Islands Local Authority\",Calculations!$E$2=\"Eilean Siar Local Authority\"),OR($F112=1,$F112=5)),0,hosp_count(VALUE(LEFT(Options!$B$24,2)),$C112,$E112,$F112,2016,$I112,1,$H112,$G112*$H112, Options!B8)))","v":11719.9333841844},{"$f":"IF(AND(OR(Calculations!$E$2=\"Orkney Health Board\",Calculations!$E$2=\"Orkney Islands Local Authority\"),$F112=1),0,IF(AND(OR(Calculations!$E$2=\"Shetland Health Board\",Calculations!$E$2=\"Western Isles Health Board\",Calculations!$E$2=\"Shetland Islands Local Authority\",Calculations!$E$2=\"Eilean Siar Local Authority\"),OR($F112=1,$F112=5)),0,hosp_count(VALUE(LEFT(Options!$B$24,2)),$C112,$E112,$F112,2016,$I112+$J112,1,$H112,$G112*$H112, Options!B8)))","v":11672.2501890924},{"$f":"IF(AND(OR(Calculations!$E$2=\"Orkney Health Board\",Calculations!$E$2=\"Orkney Islands Local Authority\"),$F112=1),0,IF(AND(OR(Calculations!$E$2=\"Shetland Health Board\",Calculations!$E$2=\"Western Isles Health Board\",Calculations!$E$2=\"Shetland Islands Local Authority\",Calculations!$E$2=\"Eilean Siar Local Authority\"),OR($F112=1,$F112=5)),0,prem_mort(VALUE(LEFT(Options!$B$24,2)),$C112,$E112,$F112,2016,$I112,1,$H112,$G112*$H112,Options!B8)))","v":578.01554781039999},{"$f":"IF(AND(OR(Calculations!$E$2=\"Orkney Health Board\",Calculations!$E$2=\"Orkney Islands Local Authority\"),$F112=1),0,IF(AND(OR(Calculations!$E$2=\"Shetland Health Board\",Calculations!$E$2=\"Western Isles Health Board\",Calculations!$E$2=\"Shetland Islands Local Authority\",Calculations!$E$2=\"Eilean Siar Local Authority\"),OR($F112=1,$F112=5)),0,prem_mort(VALUE(LEFT(Options!$B$24,2)),$C112,$E112,$F112,2016,$I112+$J112,1,$H112,$G112*$H112,Options!B8)))","v":575.50598655199997},2243.5008065921438,2233.7602334730632,29860.986761738084,29731.339772485637,45489.572210000006,45304.495377629253,2243.5008065921438,2233.7602334730632,11217504.032960718,11168801.167365316,149304933.80869043,148656698.86242819,227447861.05000004,226522476.88814625,11217504.032960718,11168801.167365316,5000]
[null,"Female 75-79",76.942824999999999,87.812830000000005,"female",2,{"$f":"HLOOKUP(Calculations!$E$2,'Prevalence Rates'!$C$3:$BC$249,'Prevalence Rates'!$BD113,FALSE)","v":2.7267281886541043E-2},{"$f":"HLOOKUP(Calculations!$E$2,'Population 2016'!$C$3:$BC$249,'Population 2016'!BD113,FALSE)","v":22167},0,{"$f":"HLOOKUP(Results!E$4,Targeting!$C$3:$F$249,Targeting!$G113,FALSE)","v":1676},{"$f":"IF(AND(OR(Calculations!$E$2=\"Orkney Health Board\",Calculations!$E$2=\"Orkney Islands Local Authority\"),$F113=1),0,IF(AND(OR(Calculations!$E$2=\"Shetland Health Board\",Calculations!$E$2=\"Western Isles Health Board\",Calculations!$E$2=\"Shetland Islands Local Authority\",Calculations!$E$2=\"Eilean Siar Local Authority\"),OR($F113=1,$F113=5)),0,new_ci(VALUE(LEFT(Options!$B$24,2)),$C113,$E113,$F113,2016,$I113,1,$H113,$G113*$H113,Options!B8)))","v":756.71452063729998},{"$f":"IF(AND(OR(Calculations!$E$2=\"Orkney Health Board\",Calculations!$E$2=\"Orkney Islands Local Authority\"),$F113=1),0,IF(AND(OR(Calculations!$E$2=\"Shetland Health Board\",Calculations!$E$2=\"Western Isles Health Board\",Calculations!$E$2=\"Shetland Islands Local Authority\",Calculations!$E$2=\"Eilean Siar Local Authority\"),OR($F113=1,$F113=5)),0,new_ci(VALUE(LEFT(Options!$B$24,2)),$C113,$E113,$F113,2016,$I113+$J113,1,$H113,$G113*$H113,Options!B8)))","v":753.37689552170002},{"$f":"IF(AND(OR(Calculations!$E$2=\"Orkney Health Board\",Calculations!$E$2=\"Orkney Islands Local Authority\"),$F113=1),0,IF(AND(OR(Calculations!$E$2=\"Shetland Health Board\",Calculations!$E$2=\"Western Isles Health Board\",Calculations!$E$2=\"Shetland Islands Local Authority\",Calculations!$E$2=\"Eilean Siar Local Authority\"),OR($F113=1,$F113=5)),0,new_yllv2(VALUE(LEFT(Options!$B$24,2)),$C113,$D113,$E113,$F113,2016,$I113,1,$H113,$G113*$H113,Options!B8)))","v":7468.7761022628001},{"$f":"IF(AND(OR(Calculations!$E$2=\"Orkney Health Board\",Calculations!$E$2=\"Orkney Islands Local Authority\"),$F113=1),0,IF(AND(OR(Calculations!$E$2=\"Shetland Health Board\",Calculations!$E$2=\"Western Isles Health Board\",Calculations!$E$2=\"Shetland Islands Local Authority\",Calculations!$E$2=\"Eilean Siar Local Authority\"),OR($F113=1,$F113=5)),0,new_yllv2(VALUE(LEFT(Options!$B$24,2)),$C113,$D113,$E113,$F113,2016,$I113+$J113,1,$H113,$G113*$H113,Options!B8)))","v":7435.8337256837003},{"$f":"IF(AND(OR(Calculations!$E$2=\"Orkney Health Board\",Calculations!$E$2=\"Orkney Islands Local Authority\"),$F113=1),0,IF(AND(OR(Calculations!$E$2=\"Shetland Health Board\",Calculations!$E$2=\"Western Isles Health Board\",Calculations!$E$2=\"Shetland Islands Local Authority\",Calculations!$E$2=\"Eilean Siar Local Authority\"),OR($F113=1,$F113=5)),0,hosp_count(VALUE(LEFT(Options!$B$24,2)),$C113,$E113,$F113,2016,$I113,1,$H113,$G113*$H113, Options!B8)))","v":11436.4236510261},{"$f":"IF(AND(OR(Calculations!$E$2=\"Orkney Health Board\",Calculations!$E$2=\"Orkney Islands Local Authority\"),$F113=1),0,IF(AND(OR(Calculations!$E$2=\"Shetland Health Board\",Calculations!$E$2=\"Western Isles Health Board\",Calculations!$E$2=\"Shetland Islands Local Authority\",Calculations!$E$2=\"Eilean Siar Local Authority\"),OR($F113=1,$F113=5)),0,hosp_count(VALUE(LEFT(Options!$B$24,2)),$C113,$E113,$F113,2016,$I113+$J113,1,$H113,$G113*$H113, Options!B8)))","v":11389.6607739336},{"$f":"IF(AND(OR(Calculations!$E$2=\"Orkney Health Board\",Calculations!$E$2=\"Orkney Islands Local Authority\"),$F113=1),0,IF(AND(OR(Calculations!$E$2=\"Shetland Health Board\",Calculations!$E$2=\"Western Isles Health Board\",Calculations!$E$2=\"Shetland Islands Local Authority\",Calculations!$E$2=\"Eilean Siar Local Authority\"),OR($F113=1,$F113=5)),0,prem_mort(VALUE(LEFT(Options!$B$24,2)),$C113,$E113,$F113,2016,$I113,1,$H113,$G113*$H113,Options!B8)))","v":0},{"$f":"IF(AND(OR(Calculations!$E$2=\"Orkney Health Board\",Calculations!$E$2=\"Orkney Islands Local Authority\"),$F113=1),0,IF(AND(OR(Calculations!$E$2=\"Shetland Health Board\",Calculations!$E$2=\"Western Isles Health Board\",Calculations!$E$2=\"Shetland Islands Local Authority\",Calculations!$E$2=\"Eilean Siar Local Authority\"),OR($F113=1,$F113=5)),0,prem_mort(VALUE(LEFT(Options!$B$24,2)),$C113,$E113,$F113,2016,$I113+$J113,1,$H113,$G113*$H113,Options!B8)))","v":0},3413.698383350476,3398.641654358732,33693.220112161318,33544.610121729143,51592.112829999991,51381.155654502632,0,0,13654793.533401905,13594566.617434928,134772880.44864526,134178440.48691657,206368451.31999996,205524622.61801052,0,0,4000]
[null,"Female 80-84",81.856712000000002,89.736710000000002,"female",2,{"$f":"HLOOKUP(Calculations!$E$2,'Prevalence Rates'!$C$3:$BC$249,'Prevalence Rates'!$BD114,FALSE)","v":2.7267281886541043E-2},{"$f":"HLOOKUP(Calculations!$E$2,'Population 2016'!$C$3:$BC$249,'Population 2016'!BD114,FALSE)","v":17470},0,{"$f":"HLOOKUP(Results!E$4,Targeting!$C$3:$F$249,Targeting!$G114,FALSE)","v":1321},{"$f":"IF(AND(OR(Calculations!$E$2=\"Orkney Health Board\",Calculations!$E$2=\"Orkney Islands Local Authority\"),$F114=1),0,IF(AND(OR(Calculations!$E$2=\"Shetland Health Board\",Calculations!$E$2=\"Western Isles Health Board\",Calculations!$E$2=\"Shetland Islands Local Authority\",Calculations!$E$2=\"Eilean Siar Local Authority\"),OR($F114=1,$F114=5)),0,new_ci(VALUE(LEFT(Options!$B$24,2)),$C114,$E114,$F114,2016,$I114,1,$H114,$G114*$H114,Options!B8)))","v":897.68892252930004},{"$f":"IF(AND(OR(Calculations!$E$2=\"Orkney Health Board\",Calculations!$E$2=\"Orkney Islands Local Authority\"),$F114=1),0,IF(AND(OR(Calculations!$E$2=\"Shetland Health Board\",Calculations!$E$2=\"Western Isles Health Board\",Calculations!$E$2=\"Shetland Islands Local Authority\",Calculations!$E$2=\"Eilean Siar Local Authority\"),OR($F114=1,$F114=5)),0,new_ci(VALUE(LEFT(Options!$B$24,2)),$C114,$E114,$F114,2016,$I114+$J114,1,$H114,$G114*$H114,Options!B8)))","v":893.79307028029996},{"$f":"IF(AND(OR(Calculations!$E$2=\"Orkney Health Board\",Calculations!$E$2=\"Orkney Islands Local Authority\"),$F114=1),0,IF(AND(OR(Calculations!$E$2=\"Shetland Health Board\",Calculations!$E$2=\"Western Isles Health Board\",Calculations!$E$2=\"Shetland Islands Local Authority\",Calculations!$E$2=\"Eilean Siar Local Authority\"),OR($F114=1,$F114=5)),0,new_yllv2(VALUE(LEFT(Options!$B$24,2)),$C114,$D114,$E114,$F114,2016,$I114,1,$H114,$G114*$H114,Options!B8)))","v":6176.0979916237002},{"$f":"IF(AND(OR(Calculations!$E$2=\"Orkney Health Board\",Calculations!$E$2=\"Orkney Islands Local Authority\"),$F114=1),0,IF(AND(OR(Calculations!$E$2=\"Shetland Health Board\",Calculations!$E$2=\"Western Isles Health Board\",Calculations!$E$2=\"Shetland Islands Local Authority\",Calculations!$E$2=\"Eilean Siar Local Authority\"),OR($F114=1,$F114=5)),0,new_yllv2(VALUE(LEFT(Options!$B$24,2)),$C114,$D114,$E114,$F114,2016,$I114+$J114,1,$H114,$G114*$H114,Options!B8)))","v":6149.2945359423002},{"$f":"IF(AND(OR(Calculations!$E$2=\"Orkney Health Board\",Calculations!$E$2=\"Orkney Islands Local Authority\"),$F114=1),0,IF(AND(OR(Calculations!$E$2=\"Shetland Health Board\",Calculations!$E$2=\"Western Isles Health Board\",Calculations!$E$2=\"Shetland Islands Local Authority\",Calculations!$E$2=\"Eilean Siar Local Authority\"),OR($F114=1,$F114=5)),0,hosp_count(VALUE(LEFT(Options!$B$24,2)),$C114,$E114,$F114,2016,$I114,1,$H114,$G114*$H114, Options!B8)))","v":10198.963905691},{"$f":"IF(AND(OR(Calculations!$E$2=\"Orkney Health Board\",Calculations!$E$2=\"Orkney Islands Local Authority\"),$F114=1),0,IF(AND(OR(Calculations!$E$2=\"Shetland Health Board\",Calculations!$E$2=\"Western Isles Health Board\",Calculations!$E$2=\"Shetland Islands Local Authority\",Calculations!$E$2=\"Eilean Siar Local Authority\"),OR($F114=1,$F114=5)),0,hosp_count(VALUE(LEFT(Options!$B$24,2)),$C114,$E114,$F114,2016,$I114+$J114,1,$H114,$G114*$H114, Options!B8)))","v":10157.256818240699},{"$f":"IF(AND(OR(Calculations!$E$2=\"Orkney Health Board\",Calculations!$E$2=\"Orkney Islands Local Authority\"),$F114=1),0,IF(AND(OR(Calculations!$E$2=\"Shetland Health Board\",Calculations!$E$2=\"Western Isles Health Board\",Calculations!$E$2=\"Shetland Islands Local Authority\",Calculations!$E$2=\"Eilean Siar Local Authority\"),OR($F114=1,$F114=5)),0,prem_mort(VALUE(LEFT(Options!$B$24,2)),$C114,$E114,$F114,2016,$I114,1,$H114,$G114*$H114,Options!B8)))","v":0},{"$f":"IF(AND(OR(Calculations!$E$2=\"Orkney Health Board\",Calculations!$E$2=\"Orkney Islands Local Authority\"),$F114=1),0,IF(AND(OR(Calculations!$E$2=\"Shetland Health Board\",Calculations!$E$2=\"Western Isles Health Board\",Calculations!$E$2=\"Shetland Islands Local Authority\",Calculations!$E$2=\"Eilean Siar Local Authority\"),OR($F114=1,$F114=5)),0,prem_mort(VALUE(LEFT(Options!$B$24,2)),$C114,$E114,$F114,2016,$I114+$J114,1,$H114,$G114*$H114,Options!B8)))","v":0},5138.4597740658273,5116.1595322283911,35352.592968653116,35199.167349412135,58379.873530000004,58141.138055184318,0,0,12846149.435164569,12790398.830570977,88381482.421632797,87997918.373530343,145949683.82500002,145352845.13796079,0,0,2500]
[null,"Female 85-89",86.730819999999994,92.220819999999989,"female",2,{"$f":"HLOOKUP(Calculations!$E$2,'Prevalence Rates'!$C$3:$BC$249,'Prevalence Rates'!$BD115,FALSE)","v":2.7267281886541043E-2},{"$f":"HLOOKUP(Calculations!$E$2,'Population 2016'!$C$3:$BC$249,'Population 2016'!BD115,FALSE)","v":10411},0,{"$f":"HLOOKUP(Results!E$4,Targeting!$C$3:$F$249,Targeting!$G115,FALSE)","v":787},{"$f":"IF(AND(OR(Calculations!$E$2=\"Orkney Health Board\",Calculations!$E$2=\"Orkney Islands Local Authority\"),$F115=1),0,IF(AND(OR(Calculations!$E$2=\"Shetland Health Board\",Calculations!$E$2=\"Western Isles Health Board\",Calculations!$E$2=\"Shetland Islands Local Authority\",Calculations!$E$2=\"Eilean Siar Local Authority\"),OR($F115=1,$F115=5)),0,new_ci(VALUE(LEFT(Options!$B$24,2)),$C115,$E115,$F115,2016,$I115,1,$H115,$G115*$H115,Options!B8)))","v":798.95014613729995},{"$f":"IF(AND(OR(Calculations!$E$2=\"Orkney Health Board\",Calculations!$E$2=\"Orkney Islands Local Authority\"),$F115=1),0,IF(AND(OR(Calculations!$E$2=\"Shetland Health Board\",Calculations!$E$2=\"Western Isles Health Board\",Calculations!$E$2=\"Shetland Islands Local Authority\",Calculations!$E$2=\"Eilean Siar Local Authority\"),OR($F115=1,$F115=5)),0,new_ci(VALUE(LEFT(Options!$B$24,2)),$C115,$E115,$F115,2016,$I115+$J115,1,$H115,$G115*$H115,Options!B8)))","v":795.56785332540005},{"$f":"IF(AND(OR(Calculations!$E$2=\"Orkney Health Board\",Calculations!$E$2=\"Orkney Islands Local Authority\"),$F115=1),0,IF(AND(OR(Calculations!$E$2=\"Shetland Health Board\",Calculations!$E$2=\"Western Isles Health Board\",Calculations!$E$2=\"Shetland Islands Local Authority\",Calculations!$E$2=\"Eilean Siar Local Authority\"),OR($F115=1,$F115=5)),0,new_yllv2(VALUE(LEFT(Options!$B$24,2)),$C115,$D115,$E115,$F115,2016,$I115,1,$H115,$G115*$H115,Options!B8)))","v":3587.2861561565001},{"$f":"IF(AND(OR(Calculations!$E$2=\"Orkney Health Board\",Calculations!$E$2=\"Orkney Islands Local Authority\"),$F115=1),0,IF(AND(OR(Calculations!$E$2=\"Shetland Health Board\",Calculations!$E$2=\"Western Isles Health Board\",Calculations!$E$2=\"Shetland Islands Local Authority\",Calculations!$E$2=\"Eilean Siar Local Authority\"),OR($F115=1,$F115=5)),0,new_yllv2(VALUE(LEFT(Options!$B$24,2)),$C115,$D115,$E115,$F115,2016,$I115+$J115,1,$H115,$G115*$H115,Options!B8)))","v":3572.0996614310002},{"$f":"IF(AND(OR(Calculations!$E$2=\"Orkney Health Board\",Calculations!$E$2=\"Orkney Islands Local Authority\"),$F115=1),0,IF(AND(OR(Calculations!$E$2=\"Shetland Health Board\",Calculations!$E$2=\"Western Isles Health Board\",Calculations!$E$2=\"Shetland Islands Local Authority\",Calculations!$E$2=\"Eilean Siar Local Authority\"),OR($F115=1,$F115=5)),0,hosp_count(VALUE(LEFT(Options!$B$24,2)),$C115,$E115,$F115,2016,$I115,1,$H115,$G115*$H115, Options!B8)))","v":6870.6983567419002},{"$f":"IF(AND(OR(Calculations!$E$2=\"Orkney Health Board\",Calculations!$E$2=\"Orkney Islands Local Authority\"),$F115=1),0,IF(AND(OR(Calculations!$E$2=\"Shetland Health Board\",Calculations!$E$2=\"Western Isles Health Board\",Calculations!$E$2=\"Shetland Islands Local Authority\",Calculations!$E$2=\"Eilean Siar Local Authority\"),OR($F115=1,$F115=5)),0,hosp_count(VALUE(LEFT(Options!$B$24,2)),$C115,$E115,$F115,2016,$I115+$J115,1,$H115,$G115*$H115, Options!B8)))","v":6842.6099527342003},{"$f":"IF(AND(OR(Calculations!$E$2=\"Orkney Health Board\",Calculations!$E$2=\"Orkney Islands Local Authority\"),$F115=1),0,IF(AND(OR(Calculations!$E$2=\"Shetland Health Board\",Calculations!$E$2=\"Western Isles Health Board\",Calculations!$E$2=\"Shetland Islands Local Authority\",Calculations!$E$2=\"Eilean Siar Local Authority\"),OR($F115=1,$F115=5)),0,prem_mort(VALUE(LEFT(Options!$B$24,2)),$C115,$E115,$F115,2016,$I115,1,$H115,$G115*$H115,Options!B8)))","v":0},{"$f":"IF(AND(OR(Calculations!$E$2=\"Orkney Health Board\",Calculations!$E$2=\"Orkney Islands Local Authority\"),$F115=1),0,IF(AND(OR(Calculations!$E$2=\"Shetland Health Board\",Calculations!$E$2=\"Western Isles Health Board\",Calculations!$E$2=\"Shetland Islands Local Authority\",Calculations!$E$2=\"Eilean Siar Local Authority\"),OR($F115=1,$F115=5)),0,prem_mort(VALUE(LEFT(Options!$B$24,2)),$C115,$E115,$F115,2016,$I115+$J115,1,$H115,$G115*$H115,Options!B8)))","v":0},7674.0961112025743,7641.6084269080784,34456.691539299776,34310.821836816831,65994.605290000007,65724.809842802802,0,0,11511144.166803861,11462412.640362117,51685037.308949664,51466232.755225249,98991907.935000017,98587214.764204204,0,0,1500]
[null,"Female 90+",92.779342999999997,96.279340000000005,"female",2,{"$f":"HLOOKUP(Calculations!$E$2,'Prevalence Rates'!$C$3:$BC$249,'Prevalence Rates'!$BD116,FALSE)","v":2.7267281886541043E-2},{"$f":"HLOOKUP(Calculations!$E$2,'Population 2016'!$C$3:$BC$249,'Population 2016'!BD116,FALSE)","v":5892},0,{"$f":"HLOOKUP(Results!E$4,Targeting!$C$3:$F$249,Targeting!$G116,FALSE)","v":445},{"$f":"IF(AND(OR(Calculations!$E$2=\"Orkney Health Board\",Calculations!$E$2=\"Orkney Islands Local Authority\"),$F116=1),0,IF(AND(OR(Calculations!$E$2=\"Shetland Health Board\",Calculations!$E$2=\"Western Isles Health Board\",Calculations!$E$2=\"Shetland Islands Local Authority\",Calculations!$E$2=\"Eilean Siar Local Authority\"),OR($F116=1,$F116=5)),0,new_ci(VALUE(LEFT(Options!$B$24,2)),$C116,$E116,$F116,2016,$I116,1,$H116,$G116*$H116,Options!B8)))","v":736.54990365749995},{"$f":"IF(AND(OR(Calculations!$E$2=\"Orkney Health Board\",Calculations!$E$2=\"Orkney Islands Local Authority\"),$F116=1),0,IF(AND(OR(Calculations!$E$2=\"Shetland Health Board\",Calculations!$E$2=\"Western Isles Health Board\",Calculations!$E$2=\"Shetland Islands Local Authority\",Calculations!$E$2=\"Eilean Siar Local Authority\"),OR($F116=1,$F116=5)),0,new_ci(VALUE(LEFT(Options!$B$24,2)),$C116,$E116,$F116,2016,$I116+$J116,1,$H116,$G116*$H116,Options!B8)))","v":733.58301274049995},{"$f":"IF(AND(OR(Calculations!$E$2=\"Orkney Health Board\",Calculations!$E$2=\"Orkney Islands Local Authority\"),$F116=1),0,IF(AND(OR(Calculations!$E$2=\"Shetland Health Board\",Calculations!$E$2=\"Western Isles Health Board\",Calculations!$E$2=\"Shetland Islands Local Authority\",Calculations!$E$2=\"Eilean Siar Local Authority\"),OR($F116=1,$F116=5)),0,new_yllv2(VALUE(LEFT(Options!$B$24,2)),$C116,$D116,$E116,$F116,2016,$I116,1,$H116,$G116*$H116,Options!B8)))","v":1841.3725494939999},{"$f":"IF(AND(OR(Calculations!$E$2=\"Orkney Health Board\",Calculations!$E$2=\"Orkney Islands Local Authority\"),$F116=1),0,IF(AND(OR(Calculations!$E$2=\"Shetland Health Board\",Calculations!$E$2=\"Western Isles Health Board\",Calculations!$E$2=\"Shetland Islands Local Authority\",Calculations!$E$2=\"Eilean Siar Local Authority\"),OR($F116=1,$F116=5)),0,new_yllv2(VALUE(LEFT(Options!$B$24,2)),$C116,$D116,$E116,$F116,2016,$I116+$J116,1,$H116,$G116*$H116,Options!B8)))","v":1833.9553311022},{"$f":"IF(AND(OR(Calculations!$E$2=\"Orkney Health Board\",Calculations!$E$2=\"Orkney Islands Local Authority\"),$F116=1),0,IF(AND(OR(Calculations!$E$2=\"Shetland Health Board\",Calculations!$E$2=\"Western Isles Health Board\",Calculations!$E$2=\"Shetland Islands Local Authority\",Calculations!$E$2=\"Eilean Siar Local Authority\"),OR($F116=1,$F116=5)),0,hosp_count(VALUE(LEFT(Options!$B$24,2)),$C116,$E116,$F116,2016,$I116,1,$H116,$G116*$H116, Options!B8)))","v":4527.3690442404004},{"$f":"IF(AND(OR(Calculations!$E$2=\"Orkney Health Board\",Calculations!$E$2=\"Orkney Islands Local Authority\"),$F116=1),0,IF(AND(OR(Calculations!$E$2=\"Shetland Health Board\",Calculations!$E$2=\"Western Isles Health Board\",Calculations!$E$2=\"Shetland Islands Local Authority\",Calculations!$E$2=\"Eilean Siar Local Authority\"),OR($F116=1,$F116=5)),0,hosp_count(VALUE(LEFT(Options!$B$24,2)),$C116,$E116,$F116,2016,$I116+$J116,1,$H116,$G116*$H116, Options!B8)))","v":4508.8769088224999},{"$f":"IF(AND(OR(Calculations!$E$2=\"Orkney Health Board\",Calculations!$E$2=\"Orkney Islands Local Authority\"),$F116=1),0,IF(AND(OR(Calculations!$E$2=\"Shetland Health Board\",Calculations!$E$2=\"Western Isles Health Board\",Calculations!$E$2=\"Shetland Islands Local Authority\",Calculations!$E$2=\"Eilean Siar Local Authority\"),OR($F116=1,$F116=5)),0,prem_mort(VALUE(LEFT(Options!$B$24,2)),$C116,$E116,$F116,2016,$I116,1,$H116,$G116*$H116,Options!B8)))","v":0},{"$f":"IF(AND(OR(Calculations!$E$2=\"Orkney Health Board\",Calculations!$E$2=\"Orkney Islands Local Authority\"),$F116=1),0,IF(AND(OR(Calculations!$E$2=\"Shetland Health Board\",Calculations!$E$2=\"Western Isles Health Board\",Calculations!$E$2=\"Shetland Islands Local Authority\",Calculations!$E$2=\"Eilean Siar Local Authority\"),OR($F116=1,$F116=5)),0,prem_mort(VALUE(LEFT(Options!$B$24,2)),$C116,$E116,$F116,2016,$I116+$J116,1,$H116,$G116*$H116,Options!B8)))","v":0},12500.846973141548,12450.492409037677,31252.079930312288,31126.193671116773,76839.257370000007,76525.405784495932,0,0,12500846.973141547,12450492.409037678,31252079.930312287,31126193.671116773,76839257.370000005,76525405.784495935,0,0,1000]
[null,"Male 0-4",2.0320822999999999,77.402082000000007,"male",2,{"$f":"HLOOKUP(Calculations!$E$2,'Prevalence Rates'!$C$3:$BC$249,'Prevalence Rates'!$BD117,FALSE)","v":0},{"$f":"HLOOKUP(Calculations!$E$2,'Population 2016'!$C$3:$BC$249,'Population 2016'!BD117,FALSE)","v":0},0,{"$f":"HLOOKUP(Results!E$4,Targeting!$C$3:$F$249,Targeting!$G117,FALSE)","v":0},{"$f":"IF(AND(OR(Calculations!$E$2=\"Orkney Health Board\",Calculations!$E$2=\"Orkney Islands Local Authority\"),$F117=1),0,IF(AND(OR(Calculations!$E$2=\"Shetland Health Board\",Calculations!$E$2=\"Western Isles Health Board\",Calculations!$E$2=\"Shetland Islands Local Authority\",Calculations!$E$2=\"Eilean Siar Local Authority\"),OR($F117=1,$F117=5)),0,new_ci(VALUE(LEFT(Options!$B$24,2)),$C117,$E117,$F117,2016,$I117,1,$H117,$G117*$H117,Options!B8)))","v":{"$error":"#VALUE!"}},{"$f":"IF(AND(OR(Calculations!$E$2=\"Orkney Health Board\",Calculations!$E$2=\"Orkney Islands Local Authority\"),$F117=1),0,IF(AND(OR(Calculations!$E$2=\"Shetland Health Board\",Calculations!$E$2=\"Western Isles Health Board\",Calculations!$E$2=\"Shetland Islands Local Authority\",Calculations!$E$2=\"Eilean Siar Local Authority\"),OR($F117=1,$F117=5)),0,new_ci(VALUE(LEFT(Options!$B$24,2)),$C117,$E117,$F117,2016,$I117+$J117,1,$H117,$G117*$H117,Options!B8)))","v":{"$error":"#VALUE!"}},{"$f":"IF(AND(OR(Calculations!$E$2=\"Orkney Health Board\",Calculations!$E$2=\"Orkney Islands Local Authority\"),$F117=1),0,IF(AND(OR(Calculations!$E$2=\"Shetland Health Board\",Calculations!$E$2=\"Western Isles Health Board\",Calculations!$E$2=\"Shetland Islands Local Authority\",Calculations!$E$2=\"Eilean Siar Local Authority\"),OR($F117=1,$F117=5)),0,new_yllv2(VALUE(LEFT(Options!$B$24,2)),$C117,$D117,$E117,$F117,2016,$I117,1,$H117,$G117*$H117,Options!B8)))","v":{"$error":"#VALUE!"}},{"$f":"IF(AND(OR(Calculations!$E$2=\"Orkney Health Board\",Calculations!$E$2=\"Orkney Islands Local Authority\"),$F117=1),0,IF(AND(OR(Calculations!$E$2=\"Shetland Health Board\",Calculations!$E$2=\"Western Isles Health Board\",Calculations!$E$2=\"Shetland Islands Local Authority\",Calculations!$E$2=\"Eilean Siar Local Authority\"),OR($F117=1,$F117=5)),0,new_yllv2(VALUE(LEFT(Options!$B$24,2)),$C117,$D117,$E117,$F117,2016,$I117+$J117,1,$H117,$G117*$H117,Options!B8)))","v":{"$error":"#VALUE!"}},{"$f":"IF(AND(OR(Calculations!$E$2=\"Orkney Health Board\",Calculations!$E$2=\"Orkney Islands Local Authority\"),$F117=1),0,IF(AND(OR(Calculations!$E$2=\"Shetland Health Board\",Calculations!$E$2=\"Western Isles Health Board\",Calculations!$E$2=\"Shetland Islands Local Authority\",Calculations!$E$2=\"Eilean Siar Local Authority\"),OR($F117=1,$F117=5)),0,hosp_count(VALUE(LEFT(Options!$B$24,2)),$C117,$E117,$F117,2016,$I117,1,$H117,$G117*$H117, Options!B8)))","v":{"$error":"#VALUE!"}},{"$f":"IF(AND(OR(Calculations!$E$2=\"Orkney Health Board\",Calculations!$E$2=\"Orkney Islands Local Authority\"),$F117=1),0,IF(AND(OR(Calculations!$E$2=\"Shetland Health Board\",Calculations!$E$2=\"Western Isles Health Board\",Calculations!$E$2=\"Shetland Islands Local Authority\",Calculations!$E$2=\"Eilean Siar Local Authority\"),OR($F117=1,$F117=5)),0,hosp_count(VALUE(LEFT(Options!$B$24,2)),$C117,$E117,$F117,2016,$I117+$J117,1,$H117,$G117*$H117, Options!B8)))","v":{"$error":"#VALUE!"}},{"$f":"IF(AND(OR(Calculations!$E$2=\"Orkney Health Board\",Calculations!$E$2=\"Orkney Islands Local Authority\"),$F117=1),0,IF(AND(OR(Calculations!$E$2=\"Shetland Health Board\",Calculations!$E$2=\"Western Isles Health Board\",Calculations!$E$2=\"Shetland Islands Local Authority\",Calculations!$E$2=\"Eilean Siar Local Authority\"),OR($F117=1,$F117=5)),0,prem_mort(VALUE(LEFT(Options!$B$24,2)),$C117,$E117,$F117,2016,$I117,1,$H117,$G117*$H117,Options!B8)))","v":{"$error":"#VALUE!"}},{"$f":"IF(AND(OR(Calculations!$E$2=\"Orkney Health Board\",Calculations!$E$2=\"Orkney Islands Local Authority\"),$F117=1),0,IF(AND(OR(Calculations!$E$2=\"Shetland Health Board\",Calculations!$E$2=\"Western Isles Health Board\",Calculations!$E$2=\"Shetland Islands Local Authority\",Calculations!$E$2=\"Eilean Siar Local Authority\"),OR($F117=1,$F117=5)),0,prem_mort(VALUE(LEFT(Options!$B$24,2)),$C117,$E117,$F117,2016,$I117+$J117,1,$H117,$G117*$H117,Options!B8)))","v":{"$error":"#VALUE!"}},{"$error":"#VALUE!"},{"$error":"#VALUE!"},{"$error":"#VALUE!"},{"$error":"#VALUE!"},{"$error":"#VALUE!"},{"$error":"#VALUE!"},{"$error":"#VALUE!"},{"$error":"#VALUE!"},{"$error":"#VALUE!"},{"$error":"#VALUE!"},{"$error":"#VALUE!"},{"$error":"#VALUE!"},{"$error":"#VALUE!"},{"$error":"#VALUE!"},{"$error":"#VALUE!"},{"$error":"#VALUE!"},5000]
[null,"Male 5-9",6.9784756000000003,77.398476000000002,"male",2,{"$f":"HLOOKUP(Calculations!$E$2,'Prevalence Rates'!$C$3:$BC$249,'Prevalence Rates'!$BD118,FALSE)","v":0},{"$f":"HLOOKUP(Calculations!$E$2,'Population 2016'!$C$3:$BC$249,'Population 2016'!BD118,FALSE)","v":0},0,{"$f":"HLOOKUP(Results!E$4,Targeting!$C$3:$F$249,Targeting!$G118,FALSE)","v":0},{"$f":"IF(AND(OR(Calculations!$E$2=\"Orkney Health Board\",Calculations!$E$2=\"Orkney Islands Local Authority\"),$F118=1),0,IF(AND(OR(Calculations!$E$2=\"Shetland Health Board\",Calculations!$E$2=\"Western Isles Health Board\",Calculations!$E$2=\"Shetland Islands Local Authority\",Calculations!$E$2=\"Eilean Siar Local Authority\"),OR($F118=1,$F118=5)),0,new_ci(VALUE(LEFT(Options!$B$24,2)),$C118,$E118,$F118,2016,$I118,1,$H118,$G118*$H118,Options!B8)))","v":{"$error":"#VALUE!"}},{"$f":"IF(AND(OR(Calculations!$E$2=\"Orkney Health Board\",Calculations!$E$2=\"Orkney Islands Local Authority\"),$F118=1),0,IF(AND(OR(Calculations!$E$2=\"Shetland Health Board\",Calculations!$E$2=\"Western Isles Health Board\",Calculations!$E$2=\"Shetland Islands Local Authority\",Calculations!$E$2=\"Eilean Siar Local Authority\"),OR($F118=1,$F118=5)),0,new_ci(VALUE(LEFT(Options!$B$24,2)),$C118,$E118,$F118,2016,$I118+$J118,1,$H118,$G118*$H118,Options!B8)))","v":{"$error":"#VALUE!"}},{"$f":"IF(AND(OR(Calculations!$E$2=\"Orkney Health Board\",Calculations!$E$2=\"Orkney Islands Local Authority\"),$F118=1),0,IF(AND(OR(Calculations!$E$2=\"Shetland Health Board\",Calculations!$E$2=\"Western Isles Health Board\",Calculations!$E$2=\"Shetland Islands Local Authority\",Calculations!$E$2=\"Eilean Siar Local Authority\"),OR($F118=1,$F118=5)),0,new_yllv2(VALUE(LEFT(Options!$B$24,2)),$C118,$D118,$E118,$F118,2016,$I118,1,$H118,$G118*$H118,Options!B8)))","v":{"$error":"#VALUE!"}},{"$f":"IF(AND(OR(Calculations!$E$2=\"Orkney Health Board\",Calculations!$E$2=\"Orkney Islands Local Authority\"),$F118=1),0,IF(AND(OR(Calculations!$E$2=\"Shetland Health Board\",Calculations!$E$2=\"Western Isles Health Board\",Calculations!$E$2=\"Shetland Islands Local Authority\",Calculations!$E$2=\"Eilean Siar Local Authority\"),OR($F118=1,$F118=5)),0,new_yllv2(VALUE(LEFT(Options!$B$24,2)),$C118,$D118,$E118,$F118,2016,$I118+$J118,1,$H118,$G118*$H118,Options!B8)))","v":{"$error":"#VALUE!"}},{"$f":"IF(AND(OR(Calculations!$E$2=\"Orkney Health Board\",Calculations!$E$2=\"Orkney Islands Local Authority\"),$F118=1),0,IF(AND(OR(Calculations!$E$2=\"Shetland Health Board\",Calculations!$E$2=\"Western Isles Health Board\",Calculations!$E$2=\"Shetland Islands Local Authority\",Calculations!$E$2=\"Eilean Siar Local Authority\"),OR($F118=1,$F118=5)),0,hosp_count(VALUE(LEFT(Options!$B$24,2)),$C118,$E118,$F118,2016,$I118,1,$H118,$G118*$H118, Options!B8)))","v":{"$error":"#VALUE!"}},{"$f":"IF(AND(OR(Calculations!$E$2=\"Orkney Health Board\",Calculations!$E$2=\"Orkney Islands Local Authority\"),$F118=1),0,IF(AND(OR(Calculations!$E$2=\"Shetland Health Board\",Calculations!$E$2=\"Western Isles Health Board\",Calculations!$E$2=\"Shetland Islands Local Authority\",Calculations!$E$2=\"Eilean Siar Local Authority\"),OR($F118=1,$F118=5)),0,hosp_count(VALUE(LEFT(Options!$B$24,2)),$C118,$E118,$F118,2016,$I118+$J118,1,$H118,$G118*$H118, Options!B8)))","v":{"$error":"#VALUE!"}},{"$f":"IF(AND(OR(Calculations!$E$2=\"Orkney Health Board\",Calculations!$E$2=\"Orkney Islands Local Authority\"),$F118=1),0,IF(AND(OR(Calculations!$E$2=\"Shetland Health Board\",Calculations!$E$2=\"Western Isles Health Board\",Calculations!$E$2=\"Shetland Islands Local Authority\",Calculations!$E$2=\"Eilean Siar Local Authority\"),OR($F118=1,$F118=5)),0,prem_mort(VALUE(LEFT(Options!$B$24,2)),$C118,$E118,$F118,2016,$I118,1,$H118,$G118*$H118,Options!B8)))","v":{"$error":"#VALUE!"}},{"$f":"IF(AND(OR(Calculations!$E$2=\"Orkney Health Board\",Calculations!$E$2=\"Orkney Islands Local Authority\"),$F118=1),0,IF(AND(OR(Calculations!$E$2=\"Shetland Health Board\",Calculations!$E$2=\"Western Isles Health Board\",Calculations!$E$2=\"Shetland Islands Local Authority\",Calculations!$E$2=\"Eilean Siar Local Authority\"),OR($F118=1,$F118=5)),0,prem_mort(VALUE(LEFT(Options!$B$24,2)),$C118,$E118,$F118,2016,$I118+$J118,1,$H118,$G118*$H118,Options!B8)))","v":{"$error":"#VALUE!"}},{"$error":"#VALUE!"},{"$error":"#VALUE!"},{"$error":"#VALUE!"},{"$error":"#VALUE!"},{"$error":"#VALUE!"},{"$error":"#VALUE!"},{"$error":"#VALUE!"},{"$error":"#VALUE!"},{"$error":"#VALUE!"},{"$error":"#VALUE!"},{"$error":"#VALUE!"},{"$error":"#VALUE!"},{"$error":"#VALUE!"},{"$error":"#VALUE!"},{"$error":"#VALUE!"},{"$error":"#VALUE!"},5500]
[null,"Male 10-15",12.471144000000001,77.921140000000008,"male",2,{"$f":"HLOOKUP(Calculations!$E$2,'Prevalence Rates'!$C$3:$BC$249,'Prevalence Rates'!$BD119,FALSE)","v":0},{"$f":"HLOOKUP(Calculations!$E$2,'Population 2016'!$C$3:$BC$249,'Population 2016'!BD119,FALSE)","v":0},0,{"$f":"HLOOKUP(Results!E$4,Targeting!$C$3:$F$249,Targeting!$G119,FALSE)","v":0},{"$f":"IF(AND(OR(Calculations!$E$2=\"Orkney Health Board\",Calculations!$E$2=\"Orkney Islands Local Authority\"),$F119=1),0,IF(AND(OR(Calculations!$E$2=\"Shetland Health Board\",Calculations!$E$2=\"Western Isles Health Board\",Calculations!$E$2=\"Shetland Islands Local Authority\",Calculations!$E$2=\"Eilean Siar Local Authority\"),OR($F119=1,$F119=5)),0,new_ci(VALUE(LEFT(Options!$B$24,2)),$C119,$E119,$F119,2016,$I119,1,$H119,$G119*$H119,Options!B8)))","v":{"$error":"#VALUE!"}},{"$f":"IF(AND(OR(Calculations!$E$2=\"Orkney Health Board\",Calculations!$E$2=\"Orkney Islands Local Authority\"),$F119=1),0,IF(AND(OR(Calculations!$E$2=\"Shetland Health Board\",Calculations!$E$2=\"Western Isles Health Board\",Calculations!$E$2=\"Shetland Islands Local Authority\",Calculations!$E$2=\"Eilean Siar Local Authority\"),OR($F119=1,$F119=5)),0,new_ci(VALUE(LEFT(Options!$B$24,2)),$C119,$E119,$F119,2016,$I119+$J119,1,$H119,$G119*$H119,Options!B8)))","v":{"$error":"#VALUE!"}},{"$f":"IF(AND(OR(Calculations!$E$2=\"Orkney Health Board\",Calculations!$E$2=\"Orkney Islands Local Authority\"),$F119=1),0,IF(AND(OR(Calculations!$E$2=\"Shetland Health Board\",Calculations!$E$2=\"Western Isles Health Board\",Calculations!$E$2=\"Shetland Islands Local Authority\",Calculations!$E$2=\"Eilean Siar Local Authority\"),OR($F119=1,$F119=5)),0,new_yllv2(VALUE(LEFT(Options!$B$24,2)),$C119,$D119,$E119,$F119,2016,$I119,1,$H119,$G119*$H119,Options!B8)))","v":{"$error":"#VALUE!"}},{"$f":"IF(AND(OR(Calculations!$E$2=\"Orkney Health Board\",Calculations!$E$2=\"Orkney Islands Local Authority\"),$F119=1),0,IF(AND(OR(Calculations!$E$2=\"Shetland Health Board\",Calculations!$E$2=\"Western Isles Health Board\",Calculations!$E$2=\"Shetland Islands Local Authority\",Calculations!$E$2=\"Eilean Siar Local Authority\"),OR($F119=1,$F119=5)),0,new_yllv2(VALUE(LEFT(Options!$B$24,2)),$C119,$D119,$E119,$F119,2016,$I119+$J119,1,$H119,$G119*$H119,Options!B8)))","v":{"$error":"#VALUE!"}},{"$f":"IF(AND(OR(Calculations!$E$2=\"Orkney Health Board\",Calculations!$E$2=\"Orkney Islands Local Authority\"),$F119=1),0,IF(AND(OR(Calculations!$E$2=\"Shetland Health Board\",Calculations!$E$2=\"Western Isles Health Board\",Calculations!$E$2=\"Shetland Islands Local Authority\",Calculations!$E$2=\"Eilean Siar Local Authority\"),OR($F119=1,$F119=5)),0,hosp_count(VALUE(LEFT(Options!$B$24,2)),$C119,$E119,$F119,2016,$I119,1,$H119,$G119*$H119, Options!B8)))","v":{"$error":"#VALUE!"}},{"$f":"IF(AND(OR(Calculations!$E$2=\"Orkney Health Board\",Calculations!$E$2=\"Orkney Islands Local Authority\"),$F119=1),0,IF(AND(OR(Calculations!$E$2=\"Shetland Health Board\",Calculations!$E$2=\"Western Isles Health Board\",Calculations!$E$2=\"Shetland Islands Local Authority\",Calculations!$E$2=\"Eilean Siar Local Authority\"),OR($F119=1,$F119=5)),0,hosp_count(VALUE(LEFT(Options!$B$24,2)),$C119,$E119,$F119,2016,$I119+$J119,1,$H119,$G119*$H119, Options!B8)))","v":{"$error":"#VALUE!"}},{"$f":"IF(AND(OR(Calculations!$E$2=\"Orkney Health Board\",Calculations!$E$2=\"Orkney Islands Local Authority\"),$F119=1),0,IF(AND(OR(Calculations!$E$2=\"Shetland Health Board\",Calculations!$E$2=\"Western Isles Health Board\",Calculations!$E$2=\"Shetland Islands Local Authority\",Calculations!$E$2=\"Eilean Siar Local Authority\"),OR($F119=1,$F119=5)),0,prem_mort(VALUE(LEFT(Options!$B$24,2)),$C119,$E119,$F119,2016,$I119,1,$H119,$G119*$H119,Options!B8)))","v":{"$error":"#VALUE!"}},{"$f":"IF(AND(OR(Calculations!$E$2=\"Orkney Health Board\",Calculations!$E$2=\"Orkney Islands Local Authority\"),$F119=1),0,IF(AND(OR(Calculations!$E$2=\"Shetland Health Board\",Calculations!$E$2=\"Western Isles Health Board\",Calculations!$E$2=\"Shetland Islands Local Authority\",Calculations!$E$2=\"Eilean Siar Local Authority\"),OR($F119=1,$F119=5)),0,prem_mort(VALUE(LEFT(Options!$B$24,2)),$C119,$E119,$F119,2016,$I119+$J119,1,$H119,$G119*$H119,Options!B8)))","v":{"$error":"#VALUE!"}},{"$error":"#VALUE!"},{"$error":"#VALUE!"},{"$error":"#VALUE!"},{"$error":"#VALUE!"},{"$error":"#VALUE!"},{"$error":"#VALUE!"},{"$error":"#VALUE!"},{"$error":"#VALUE!"},{"$error":"#VALUE!"},{"$error":"#VALUE!"},{"$error":"#VALUE!"},{"$error":"#VALUE!"},{"$error":"#VALUE!"},{"$error":"#VALUE!"},{"$error":"#VALUE!"},{"$error":"#VALUE!"},6600]
[null,"Male 16-19",17.556318000000001,77.07632000000001,"male",2,{"$f":"HLOOKUP(Calculations!$E$2,'Prevalence Rates'!$C$3:$BC$249,'Prevalence Rates'!$BD120,FALSE)","v":0.17181850941475407},{"$f":"HLOOKUP(Calculations!$E$2,'Population 2016'!$C$3:$BC$249,'Population 2016'!BD120,FALSE)","v":23693},0,{"$f":"HLOOKUP(Results!E$4,Targeting!$C$3:$F$249,Targeting!$G120,FALSE)","v":1791},{"$f":"IF(AND(OR(Calculations!$E$2=\"Orkney Health Board\",Calculations!$E$2=\"Orkney Islands Local Authority\"),$F120=1),0,IF(AND(OR(Calculations!$E$2=\"Shetland Health Board\",Calculations!$E$2=\"Western Isles Health Board\",Calculations!$E$2=\"Shetland Islands Local Authority\",Calculations!$E$2=\"Eilean Siar Local Authority\"),OR($F120=1,$F120=5)),0,new_ci(VALUE(LEFT(Options!$B$24,2)),$C120,$E120,$F120,2016,$I120,1,$H120,$G120*$H120,Options!B8)))","v":12.5406053924},{"$f":"IF(AND(OR(Calculations!$E$2=\"Orkney Health Board\",Calculations!$E$2=\"Orkney Islands Local Authority\"),$F120=1),0,IF(AND(OR(Calculations!$E$2=\"Shetland Health Board\",Calculations!$E$2=\"Western Isles Health Board\",Calculations!$E$2=\"Shetland Islands Local Authority\",Calculations!$E$2=\"Eilean Siar Local Authority\"),OR($F120=1,$F120=5)),0,new_ci(VALUE(LEFT(Options!$B$24,2)),$C120,$E120,$F120,2016,$I120+$J120,1,$H120,$G120*$H120,Options!B8)))","v":12.4817647739},{"$f":"IF(AND(OR(Calculations!$E$2=\"Orkney Health Board\",Calculations!$E$2=\"Orkney Islands Local Authority\"),$F120=1),0,IF(AND(OR(Calculations!$E$2=\"Shetland Health Board\",Calculations!$E$2=\"Western Isles Health Board\",Calculations!$E$2=\"Shetland Islands Local Authority\",Calculations!$E$2=\"Eilean Siar Local Authority\"),OR($F120=1,$F120=5)),0,new_yllv2(VALUE(LEFT(Options!$B$24,2)),$C120,$D120,$E120,$F120,2016,$I120,1,$H120,$G120*$H120,Options!B8)))","v":733.87625264450003},{"$f":"IF(AND(OR(Calculations!$E$2=\"Orkney Health Board\",Calculations!$E$2=\"Orkney Islands Local Authority\"),$F120=1),0,IF(AND(OR(Calculations!$E$2=\"Shetland Health Board\",Calculations!$E$2=\"Western Isles Health Board\",Calculations!$E$2=\"Shetland Islands Local Authority\",Calculations!$E$2=\"Eilean Siar Local Authority\"),OR($F120=1,$F120=5)),0,new_yllv2(VALUE(LEFT(Options!$B$24,2)),$C120,$D120,$E120,$F120,2016,$I120+$J120,1,$H120,$G120*$H120,Options!B8)))","v":730.43289953220005},{"$f":"IF(AND(OR(Calculations!$E$2=\"Orkney Health Board\",Calculations!$E$2=\"Orkney Islands Local Authority\"),$F120=1),0,IF(AND(OR(Calculations!$E$2=\"Shetland Health Board\",Calculations!$E$2=\"Western Isles Health Board\",Calculations!$E$2=\"Shetland Islands Local Authority\",Calculations!$E$2=\"Eilean Siar Local Authority\"),OR($F120=1,$F120=5)),0,hosp_count(VALUE(LEFT(Options!$B$24,2)),$C120,$E120,$F120,2016,$I120,1,$H120,$G120*$H120, Options!B8)))","v":1858.6343223870001},{"$f":"IF(AND(OR(Calculations!$E$2=\"Orkney Health Board\",Calculations!$E$2=\"Orkney Islands Local Authority\"),$F120=1),0,IF(AND(OR(Calculations!$E$2=\"Shetland Health Board\",Calculations!$E$2=\"Western Isles Health Board\",Calculations!$E$2=\"Shetland Islands Local Authority\",Calculations!$E$2=\"Eilean Siar Local Authority\"),OR($F120=1,$F120=5)),0,hosp_count(VALUE(LEFT(Options!$B$24,2)),$C120,$E120,$F120,2016,$I120+$J120,1,$H120,$G120*$H120, Options!B8)))","v":1851.0094945549999},{"$f":"IF(AND(OR(Calculations!$E$2=\"Orkney Health Board\",Calculations!$E$2=\"Orkney Islands Local Authority\"),$F120=1),0,IF(AND(OR(Calculations!$E$2=\"Shetland Health Board\",Calculations!$E$2=\"Western Isles Health Board\",Calculations!$E$2=\"Shetland Islands Local Authority\",Calculations!$E$2=\"Eilean Siar Local Authority\"),OR($F120=1,$F120=5)),0,prem_mort(VALUE(LEFT(Options!$B$24,2)),$C120,$E120,$F120,2016,$I120,1,$H120,$G120*$H120,Options!B8)))","v":12.5406053924},{"$f":"IF(AND(OR(Calculations!$E$2=\"Orkney Health Board\",Calculations!$E$2=\"Orkney Islands Local Authority\"),$F120=1),0,IF(AND(OR(Calculations!$E$2=\"Shetland Health Board\",Calculations!$E$2=\"Western Isles Health Board\",Calculations!$E$2=\"Shetland Islands Local Authority\",Calculations!$E$2=\"Eilean Siar Local Authority\"),OR($F120=1,$F120=5)),0,prem_mort(VALUE(LEFT(Options!$B$24,2)),$C120,$E120,$F120,2016,$I120+$J120,1,$H120,$G120*$H120,Options!B8)))","v":12.4817647739},52.929580012661972,52.681234009623104,3097.4391282003121,3082.905919605791,7844.6558999999997,7812.4741255012032,52.929580012661972,52.681234009623104,232890.15205571268,231797.42964234165,13628732.164081372,13564786.046265481,34516485.960000001,34374886.152205296,232890.15205571268,231797.42964234165,4400]
[null,"Male 20-24",22.054632000000002,77.704629999999995,"male",2,{"$f":"HLOOKUP(Calculations!$E$2,'Prevalence Rates'!$C$3:$BC$249,'Prevalence Rates'!$BD121,FALSE)","v":0.17181850941475407},{"$f":"HLOOKUP(Calculations!$E$2,'Population 2016'!$C$3:$BC$249,'Population 2016'!BD121,FALSE)","v":35964},0,{"$f":"HLOOKUP(Results!E$4,Targeting!$C$3:$F$249,Targeting!$G121,FALSE)","v":2719},{"$f":"IF(AND(OR(Calculations!$E$2=\"Orkney Health Board\",Calculations!$E$2=\"Orkney Islands Local Authority\"),$F121=1),0,IF(AND(OR(Calculations!$E$2=\"Shetland Health Board\",Calculations!$E$2=\"Western Isles Health Board\",Calculations!$E$2=\"Shetland Islands Local Authority\",Calculations!$E$2=\"Eilean Siar Local Authority\"),OR($F121=1,$F121=5)),0,new_ci(VALUE(LEFT(Options!$B$24,2)),$C121,$E121,$F121,2016,$I121,1,$H121,$G121*$H121,Options!B8)))","v":26.730648296599998},{"$f":"IF(AND(OR(Calculations!$E$2=\"Orkney Health Board\",Calculations!$E$2=\"Orkney Islands Local Authority\"),$F121=1),0,IF(AND(OR(Calculations!$E$2=\"Shetland Health Board\",Calculations!$E$2=\"Western Isles Health Board\",Calculations!$E$2=\"Shetland Islands Local Authority\",Calculations!$E$2=\"Eilean Siar Local Authority\"),OR($F121=1,$F121=5)),0,new_ci(VALUE(LEFT(Options!$B$24,2)),$C121,$E121,$F121,2016,$I121+$J121,1,$H121,$G121*$H121,Options!B8)))","v":26.605233605900001},{"$f":"IF(AND(OR(Calculations!$E$2=\"Orkney Health Board\",Calculations!$E$2=\"Orkney Islands Local Authority\"),$F121=1),0,IF(AND(OR(Calculations!$E$2=\"Shetland Health Board\",Calculations!$E$2=\"Western Isles Health Board\",Calculations!$E$2=\"Shetland Islands Local Authority\",Calculations!$E$2=\"Eilean Siar Local Authority\"),OR($F121=1,$F121=5)),0,new_yllv2(VALUE(LEFT(Options!$B$24,2)),$C121,$D121,$E121,$F121,2016,$I121,1,$H121,$G121*$H121,Options!B8)))","v":1460.8298759479001},{"$f":"IF(AND(OR(Calculations!$E$2=\"Orkney Health Board\",Calculations!$E$2=\"Orkney Islands Local Authority\"),$F121=1),0,IF(AND(OR(Calculations!$E$2=\"Shetland Health Board\",Calculations!$E$2=\"Western Isles Health Board\",Calculations!$E$2=\"Shetland Islands Local Authority\",Calculations!$E$2=\"Eilean Siar Local Authority\"),OR($F121=1,$F121=5)),0,new_yllv2(VALUE(LEFT(Options!$B$24,2)),$C121,$D121,$E121,$F121,2016,$I121+$J121,1,$H121,$G121*$H121,Options!B8)))","v":1453.975963352},{"$f":"IF(AND(OR(Calculations!$E$2=\"Orkney Health Board\",Calculations!$E$2=\"Orkney Islands Local Authority\"),$F121=1),0,IF(AND(OR(Calculations!$E$2=\"Shetland Health Board\",Calculations!$E$2=\"Western Isles Health Board\",Calculations!$E$2=\"Shetland Islands Local Authority\",Calculations!$E$2=\"Eilean Siar Local Authority\"),OR($F121=1,$F121=5)),0,hosp_count(VALUE(LEFT(Options!$B$24,2)),$C121,$E121,$F121,2016,$I121,1,$H121,$G121*$H121, Options!B8)))","v":3309.6725972171998},{"$f":"IF(AND(OR(Calculations!$E$2=\"Orkney Health Board\",Calculations!$E$2=\"Orkney Islands Local Authority\"),$F121=1),0,IF(AND(OR(Calculations!$E$2=\"Shetland Health Board\",Calculations!$E$2=\"Western Isles Health Board\",Calculations!$E$2=\"Shetland Islands Local Authority\",Calculations!$E$2=\"Eilean Siar Local Authority\"),OR($F121=1,$F121=5)),0,hosp_count(VALUE(LEFT(Options!$B$24,2)),$C121,$E121,$F121,2016,$I121+$J121,1,$H121,$G121*$H121, Options!B8)))","v":3296.0930026497999},{"$f":"IF(AND(OR(Calculations!$E$2=\"Orkney Health Board\",Calculations!$E$2=\"Orkney Islands Local Authority\"),$F121=1),0,IF(AND(OR(Calculations!$E$2=\"Shetland Health Board\",Calculations!$E$2=\"Western Isles Health Board\",Calculations!$E$2=\"Shetland Islands Local Authority\",Calculations!$E$2=\"Eilean Siar Local Authority\"),OR($F121=1,$F121=5)),0,prem_mort(VALUE(LEFT(Options!$B$24,2)),$C121,$E121,$F121,2016,$I121,1,$H121,$G121*$H121,Options!B8)))","v":26.730648296599998},{"$f":"IF(AND(OR(Calculations!$E$2=\"Orkney Health Board\",Calculations!$E$2=\"Orkney Islands Local Authority\"),$F121=1),0,IF(AND(OR(Calculations!$E$2=\"Shetland Health Board\",Calculations!$E$2=\"Western Isles Health Board\",Calculations!$E$2=\"Shetland Islands Local Authority\",Calculations!$E$2=\"Eilean Siar Local Authority\"),OR($F121=1,$F121=5)),0,prem_mort(VALUE(LEFT(Options!$B$24,2)),$C121,$E121,$F121,2016,$I121+$J121,1,$H121,$G121*$H121,Options!B8)))","v":26.605233605900001},74.326126950839722,73.977404087142702,4061.922689211156,4042.8649854076302,9202.7377299999989,9164.9788751245687,74.326126950839722,73.977404087142702,445956.76170503831,443864.42452285619,24371536.135266937,24257189.91244578,55216426.379999995,54989873.250747412,445956.76170503831,443864.42452285619,6000]
[null,"Male 25-29",26.959762999999999,77.789760000000001,"male",2,{"$f":"HLOOKUP(Calculations!$E$2,'Prevalence Rates'!$C$3:$BC$249,'Prevalence Rates'!$BD122,FALSE)","v":0.27051580124701141},{"$f":"HLOOKUP(Calculations!$E$2,'Population 2016'!$C$3:$BC$249,'Population 2016'!BD122,FALSE)","v":39611},0,{"$f":"HLOOKUP(Results!E$4,Targeting!$C$3:$F$249,Targeting!$G122,FALSE)","v":2995},{"$f":"IF(AND(OR(Calculations!$E$2=\"Orkney Health Board\",Calculations!$E$2=\"Orkney Islands Local Authority\"),$F122=1),0,IF(AND(OR(Calculations!$E$2=\"Shetland Health Board\",Calculations!$E$2=\"Western Isles Health Board\",Calculations!$E$2=\"Shetland Islands Local Authority\",Calculations!$E$2=\"Eilean Siar Local Authority\"),OR($F122=1,$F122=5)),0,new_ci(VALUE(LEFT(Options!$B$24,2)),$C122,$E122,$F122,2016,$I122,1,$H122,$G122*$H122,Options!B8)))","v":42.6294235716},{"$f":"IF(AND(OR(Calculations!$E$2=\"Orkney Health Board\",Calculations!$E$2=\"Orkney Islands Local Authority\"),$F122=1),0,IF(AND(OR(Calculations!$E$2=\"Shetland Health Board\",Calculations!$E$2=\"Western Isles Health Board\",Calculations!$E$2=\"Shetland Islands Local Authority\",Calculations!$E$2=\"Eilean Siar Local Authority\"),OR($F122=1,$F122=5)),0,new_ci(VALUE(LEFT(Options!$B$24,2)),$C122,$E122,$F122,2016,$I122+$J122,1,$H122,$G122*$H122,Options!B8)))","v":42.440208157100002},{"$f":"IF(AND(OR(Calculations!$E$2=\"Orkney Health Board\",Calculations!$E$2=\"Orkney Islands Local Authority\"),$F122=1),0,IF(AND(OR(Calculations!$E$2=\"Shetland Health Board\",Calculations!$E$2=\"Western Isles Health Board\",Calculations!$E$2=\"Shetland Islands Local Authority\",Calculations!$E$2=\"Eilean Siar Local Authority\"),OR($F122=1,$F122=5)),0,new_yllv2(VALUE(LEFT(Options!$B$24,2)),$C122,$D122,$E122,$F122,2016,$I122,1,$H122,$G122*$H122,Options!B8)))","v":2124.2240486845999},{"$f":"IF(AND(OR(Calculations!$E$2=\"Orkney Health Board\",Calculations!$E$2=\"Orkney Islands Local Authority\"),$F122=1),0,IF(AND(OR(Calculations!$E$2=\"Shetland Health Board\",Calculations!$E$2=\"Western Isles Health Board\",Calculations!$E$2=\"Shetland Islands Local Authority\",Calculations!$E$2=\"Eilean Siar Local Authority\"),OR($F122=1,$F122=5)),0,new_yllv2(VALUE(LEFT(Options!$B$24,2)),$C122,$D122,$E122,$F122,2016,$I122+$J122,1,$H122,$G122*$H122,Options!B8)))","v":2114.7954451476999},{"$f":"IF(AND(OR(Calculations!$E$2=\"Orkney Health Board\",Calculations!$E$2=\"Orkney Islands Local Authority\"),$F122=1),0,IF(AND(OR(Calculations!$E$2=\"Shetland Health Board\",Calculations!$E$2=\"Western Isles Health Board\",Calculations!$E$2=\"Shetland Islands Local Authority\",Calculations!$E$2=\"Eilean Siar Local Authority\"),OR($F122=1,$F122=5)),0,hosp_count(VALUE(LEFT(Options!$B$24,2)),$C122,$E122,$F122,2016,$I122,1,$H122,$G122*$H122, Options!B8)))","v":4338.5762131854999},{"$f":"IF(AND(OR(Calculations!$E$2=\"Orkney Health Board\",Calculations!$E$2=\"Orkney Islands Local Authority\"),$F122=1),0,IF(AND(OR(Calculations!$E$2=\"Shetland Health Board\",Calculations!$E$2=\"Western Isles Health Board\",Calculations!$E$2=\"Shetland Islands Local Authority\",Calculations!$E$2=\"Eilean Siar Local Authority\"),OR($F122=1,$F122=5)),0,hosp_count(VALUE(LEFT(Options!$B$24,2)),$C122,$E122,$F122,2016,$I122+$J122,1,$H122,$G122*$H122, Options!B8)))","v":4320.9444740707004},{"$f":"IF(AND(OR(Calculations!$E$2=\"Orkney Health Board\",Calculations!$E$2=\"Orkney Islands Local Authority\"),$F122=1),0,IF(AND(OR(Calculations!$E$2=\"Shetland Health Board\",Calculations!$E$2=\"Western Isles Health Board\",Calculations!$E$2=\"Shetland Islands Local Authority\",Calculations!$E$2=\"Eilean Siar Local Authority\"),OR($F122=1,$F122=5)),0,prem_mort(VALUE(LEFT(Options!$B$24,2)),$C122,$E122,$F122,2016,$I122,1,$H122,$G122*$H122,Options!B8)))","v":42.6294235716},{"$f":"IF(AND(OR(Calculations!$E$2=\"Orkney Health Board\",Calculations!$E$2=\"Orkney Islands Local Authority\"),$F122=1),0,IF(AND(OR(Calculations!$E$2=\"Shetland Health Board\",Calculations!$E$2=\"Western Isles Health Board\",Calculations!$E$2=\"Shetland Islands Local Authority\",Calculations!$E$2=\"Eilean Siar Local Authority\"),OR($F122=1,$F122=5)),0,prem_mort(VALUE(LEFT(Options!$B$24,2)),$C122,$E122,$F122,2016,$I122+$J122,1,$H122,$G122*$H122,Options!B8)))","v":42.440208157100002},107.62016503395522,107.14248102067609,5362.7125007816012,5338.9095078329256,10952.958049999999,10908.445820783874,107.62016503395522,107.14248102067609,645720.99020373134,642854.88612405653,32176275.004689608,32033457.046997555,65717748.299999997,65450674.924703248,645720.99020373134,642854.88612405653,6000]
[null,"Male 30-34",31.981521999999998,78.061520000000002,"male",2,{"$f":"HLOOKUP(Calculations!$E$2,'Prevalence Rates'!$C$3:$BC$249,'Prevalence Rates'!$BD123,FALSE)","v":0.27051580124701141},{"$f":"HLOOKUP(Calculations!$E$2,'Population 2016'!$C$3:$BC$249,'Population 2016'!BD123,FALSE)","v":37146},0,{"$f":"HLOOKUP(Results!E$4,Targeting!$C$3:$F$249,Targeting!$G123,FALSE)","v":2809},{"$f":"IF(AND(OR(Calculations!$E$2=\"Orkney Health Board\",Calculations!$E$2=\"Orkney Islands Local Authority\"),$F123=1),0,IF(AND(OR(Calculations!$E$2=\"Shetland Health Board\",Calculations!$E$2=\"Western Isles Health Board\",Calculations!$E$2=\"Shetland Islands Local Authority\",Calculations!$E$2=\"Eilean Siar Local Authority\"),OR($F123=1,$F123=5)),0,new_ci(VALUE(LEFT(Options!$B$24,2)),$C123,$E123,$F123,2016,$I123,1,$H123,$G123*$H123,Options!B8)))","v":58.391044893699998},{"$f":"IF(AND(OR(Calculations!$E$2=\"Orkney Health Board\",Calculations!$E$2=\"Orkney Islands Local Authority\"),$F123=1),0,IF(AND(OR(Calculations!$E$2=\"Shetland Health Board\",Calculations!$E$2=\"Western Isles Health Board\",Calculations!$E$2=\"Shetland Islands Local Authority\",Calculations!$E$2=\"Eilean Siar Local Authority\"),OR($F123=1,$F123=5)),0,new_ci(VALUE(LEFT(Options!$B$24,2)),$C123,$E123,$F123,2016,$I123+$J123,1,$H123,$G123*$H123,Options!B8)))","v":58.131942733700001},{"$f":"IF(AND(OR(Calculations!$E$2=\"Orkney Health Board\",Calculations!$E$2=\"Orkney Islands Local Authority\"),$F123=1),0,IF(AND(OR(Calculations!$E$2=\"Shetland Health Board\",Calculations!$E$2=\"Western Isles Health Board\",Calculations!$E$2=\"Shetland Islands Local Authority\",Calculations!$E$2=\"Eilean Siar Local Authority\"),OR($F123=1,$F123=5)),0,new_yllv2(VALUE(LEFT(Options!$B$24,2)),$C123,$D123,$E123,$F123,2016,$I123,1,$H123,$G123*$H123,Options!B8)))","v":2632.2681870258998},{"$f":"IF(AND(OR(Calculations!$E$2=\"Orkney Health Board\",Calculations!$E$2=\"Orkney Islands Local Authority\"),$F123=1),0,IF(AND(OR(Calculations!$E$2=\"Shetland Health Board\",Calculations!$E$2=\"Western Isles Health Board\",Calculations!$E$2=\"Shetland Islands Local Authority\",Calculations!$E$2=\"Eilean Siar Local Authority\"),OR($F123=1,$F123=5)),0,new_yllv2(VALUE(LEFT(Options!$B$24,2)),$C123,$D123,$E123,$F123,2016,$I123+$J123,1,$H123,$G123*$H123,Options!B8)))","v":2620.5878621713},{"$f":"IF(AND(OR(Calculations!$E$2=\"Orkney Health Board\",Calculations!$E$2=\"Orkney Islands Local Authority\"),$F123=1),0,IF(AND(OR(Calculations!$E$2=\"Shetland Health Board\",Calculations!$E$2=\"Western Isles Health Board\",Calculations!$E$2=\"Shetland Islands Local Authority\",Calculations!$E$2=\"Eilean Siar Local Authority\"),OR($F123=1,$F123=5)),0,hosp_count(VALUE(LEFT(Options!$B$24,2)),$C123,$E123,$F123,2016,$I123,1,$H123,$G123*$H123, Options!B8)))","v":4862.4564060936},{"$f":"IF(AND(OR(Calculations!$E$2=\"Orkney Health Board\",Calculations!$E$2=\"Orkney Islands Local Authority\"),$F123=1),0,IF(AND(OR(Calculations!$E$2=\"Shetland Health Board\",Calculations!$E$2=\"Western Isles Health Board\",Calculations!$E$2=\"Shetland Islands Local Authority\",Calculations!$E$2=\"Eilean Siar Local Authority\"),OR($F123=1,$F123=5)),0,hosp_count(VALUE(LEFT(Options!$B$24,2)),$C123,$E123,$F123,2016,$I123+$J123,1,$H123,$G123*$H123, Options!B8)))","v":4842.6929766988997},{"$f":"IF(AND(OR(Calculations!$E$2=\"Orkney Health Board\",Calculations!$E$2=\"Orkney Islands Local Authority\"),$F123=1),0,IF(AND(OR(Calculations!$E$2=\"Shetland Health Board\",Calculations!$E$2=\"Western Isles Health Board\",Calculations!$E$2=\"Shetland Islands Local Authority\",Calculations!$E$2=\"Eilean Siar Local Authority\"),OR($F123=1,$F123=5)),0,prem_mort(VALUE(LEFT(Options!$B$24,2)),$C123,$E123,$F123,2016,$I123,1,$H123,$G123*$H123,Options!B8)))","v":58.391044893699998},{"$f":"IF(AND(OR(Calculations!$E$2=\"Orkney Health Board\",Calculations!$E$2=\"Orkney Islands Local Authority\"),$F123=1),0,IF(AND(OR(Calculations!$E$2=\"Shetland Health Board\",Calculations!$E$2=\"Western Isles Health Board\",Calculations!$E$2=\"Shetland Islands Local Authority\",Calculations!$E$2=\"Eilean Siar Local Authority\"),OR($F123=1,$F123=5)),0,prem_mort(VALUE(LEFT(Options!$B$24,2)),$C123,$E123,$F123,2016,$I123+$J123,1,$H123,$G123*$H123,Options!B8)))","v":58.131942733700001},157.1933583527163,156.4958346354924,7086.2762801537174,7054.8319123762994,13090.121159999999,13036.916428953049,157.1933583527163,156.4958346354924,1021756.8292926559,1017222.9251307006,46060795.82099916,45856407.430445947,85085787.539999992,84739956.78819482,1021756.8292926559,1017222.9251307006,6500]
[null,"Male 35-39",36.926009999999998,78.336009999999987,"male",2,{"$f":"HLOOKUP(Calculations!$E$2,'Prevalence Rates'!$C$3:$BC$249,'Prevalence Rates'!$BD124,FALSE)","v":0.19165316200850172},{"$f":"HLOOKUP(Calculations!$E$2,'Population 2016'!$C$3:$BC$249,'Population 2016'!BD124,FALSE)","v":32341},0,{"$f":"HLOOKUP(Results!E$4,Targeting!$C$3:$F$249,Targeting!$G124,FALSE)","v":2445},{"$f":"IF(AND(OR(Calculations!$E$2=\"Orkney Health Board\",Calculations!$E$2=\"Orkney Islands Local Authority\"),$F124=1),0,IF(AND(OR(Calculations!$E$2=\"Shetland Health Board\",Calculations!$E$2=\"Western Isles Health Board\",Calculations!$E$2=\"Shetland Islands Local Authority\",Calculations!$E$2=\"Eilean Siar Local Authority\"),OR($F124=1,$F124=5)),0,new_ci(VALUE(LEFT(Options!$B$24,2)),$C124,$E124,$F124,2016,$I124,1,$H124,$G124*$H124,Options!B8)))","v":73.815784848000007},{"$f":"IF(AND(OR(Calculations!$E$2=\"Orkney Health Board\",Calculations!$E$2=\"Orkney Islands Local Authority\"),$F124=1),0,IF(AND(OR(Calculations!$E$2=\"Shetland Health Board\",Calculations!$E$2=\"Western Isles Health Board\",Calculations!$E$2=\"Shetland Islands Local Authority\",Calculations!$E$2=\"Eilean Siar Local Authority\"),OR($F124=1,$F124=5)),0,new_ci(VALUE(LEFT(Options!$B$24,2)),$C124,$E124,$F124,2016,$I124+$J124,1,$H124,$G124*$H124,Options!B8)))","v":73.473857465999998},{"$f":"IF(AND(OR(Calculations!$E$2=\"Orkney Health Board\",Calculations!$E$2=\"Orkney Islands Local Authority\"),$F124=1),0,IF(AND(OR(Calculations!$E$2=\"Shetland Health Board\",Calculations!$E$2=\"Western Isles Health Board\",Calculations!$E$2=\"Shetland Islands Local Authority\",Calculations!$E$2=\"Eilean Siar Local Authority\"),OR($F124=1,$F124=5)),0,new_yllv2(VALUE(LEFT(Options!$B$24,2)),$C124,$D124,$E124,$F124,2016,$I124,1,$H124,$G124*$H124,Options!B8)))","v":2982.8958657077001},{"$f":"IF(AND(OR(Calculations!$E$2=\"Orkney Health Board\",Calculations!$E$2=\"Orkney Islands Local Authority\"),$F124=1),0,IF(AND(OR(Calculations!$E$2=\"Shetland Health Board\",Calculations!$E$2=\"Western Isles Health Board\",Calculations!$E$2=\"Shetland Islands Local Authority\",Calculations!$E$2=\"Eilean Siar Local Authority\"),OR($F124=1,$F124=5)),0,new_yllv2(VALUE(LEFT(Options!$B$24,2)),$C124,$D124,$E124,$F124,2016,$I124+$J124,1,$H124,$G124*$H124,Options!B8)))","v":2969.0785802011001},{"$f":"IF(AND(OR(Calculations!$E$2=\"Orkney Health Board\",Calculations!$E$2=\"Orkney Islands Local Authority\"),$F124=1),0,IF(AND(OR(Calculations!$E$2=\"Shetland Health Board\",Calculations!$E$2=\"Western Isles Health Board\",Calculations!$E$2=\"Shetland Islands Local Authority\",Calculations!$E$2=\"Eilean Siar Local Authority\"),OR($F124=1,$F124=5)),0,hosp_count(VALUE(LEFT(Options!$B$24,2)),$C124,$E124,$F124,2016,$I124,1,$H124,$G124*$H124, Options!B8)))","v":5045.6624380724998},{"$f":"IF(AND(OR(Calculations!$E$2=\"Orkney Health Board\",Calculations!$E$2=\"Orkney Islands Local Authority\"),$F124=1),0,IF(AND(OR(Calculations!$E$2=\"Shetland Health Board\",Calculations!$E$2=\"Western Isles Health Board\",Calculations!$E$2=\"Shetland Islands Local Authority\",Calculations!$E$2=\"Eilean Siar Local Authority\"),OR($F124=1,$F124=5)),0,hosp_count(VALUE(LEFT(Options!$B$24,2)),$C124,$E124,$F124,2016,$I124+$J124,1,$H124,$G124*$H124, Options!B8)))","v":5025.0011149704997},{"$f":"IF(AND(OR(Calculations!$E$2=\"Orkney Health Board\",Calculations!$E$2=\"Orkney Islands Local Authority\"),$F124=1),0,IF(AND(OR(Calculations!$E$2=\"Shetland Health Board\",Calculations!$E$2=\"Western Isles Health Board\",Calculations!$E$2=\"Shetland Islands Local Authority\",Calculations!$E$2=\"Eilean Siar Local Authority\"),OR($F124=1,$F124=5)),0,prem_mort(VALUE(LEFT(Options!$B$24,2)),$C124,$E124,$F124,2016,$I124,1,$H124,$G124*$H124,Options!B8)))","v":73.815784848000007},{"$f":"IF(AND(OR(Calculations!$E$2=\"Orkney Health Board\",Calculations!$E$2=\"Orkney Islands Local Authority\"),$F124=1),0,IF(AND(OR(Calculations!$E$2=\"Shetland Health Board\",Calculations!$E$2=\"Western Isles Health Board\",Calculations!$E$2=\"Shetland Islands Local Authority\",Calculations!$E$2=\"Eilean Siar Local Authority\"),OR($F124=1,$F124=5)),0,prem_mort(VALUE(LEFT(Options!$B$24,2)),$C124,$E124,$F124,2016,$I124+$J124,1,$H124,$G124*$H124,Options!B8)))","v":73.473857465999998},228.24212253177083,227.18486585448812,9223.2641715089212,9180.5404291799878,15601.442249999998,15537.55639890696,228.24212253177083,227.18486585448812,1597694.8577223958,1590294.0609814168,{"$f":"U124*$AI124","v":64562849.200562447},{"$f":"V124*$AI124","v":64263783.004259914},{"$f":"W124*$AI124","v":109210095.74999999},{"$f":"X124*$AI124","v":108762894.79234871},{"$f":"Y124*$AI124","v":1597694.8577223958},{"$f":"Z124*$AI124","v":1590294.0609814168},7000]
[null,"Male 40-44",42.067703000000002,78.907700000000006,"male",2,{"$f":"HLOOKUP(Calculations!$E$2,'Prevalence Rates'!$C$3:$BC$249,'Prevalence Rates'!$BD125,FALSE)","v":0.19165316200850172},{"$f":"HLOOKUP(Calculations!$E$2,'Population 2016'!$C$3:$BC$249,'Population 2016'!BD125,FALSE)","v":32014},0,{"$f":"HLOOKUP(Results!E$4,Targeting!$C$3:$F$249,Targeting!$G125,FALSE)","v":2420},{"$f":"IF(AND(OR(Calculations!$E$2=\"Orkney Health Board\",Calculations!$E$2=\"Orkney Islands Local Authority\"),$F125=1),0,IF(AND(OR(Calculations!$E$2=\"Shetland Health Board\",Calculations!$E$2=\"Western Isles Health Board\",Calculations!$E$2=\"Shetland Islands Local Authority\",Calculations!$E$2=\"Eilean Siar Local Authority\"),OR($F125=1,$F125=5)),0,new_ci(VALUE(LEFT(Options!$B$24,2)),$C125,$E125,$F125,2016,$I125,1,$H125,$G125*$H125,Options!B8)))","v":107.66529722529999},{"$f":"IF(AND(OR(Calculations!$E$2=\"Orkney Health Board\",Calculations!$E$2=\"Orkney Islands Local Authority\"),$F125=1),0,IF(AND(OR(Calculations!$E$2=\"Shetland Health Board\",Calculations!$E$2=\"Western Isles Health Board\",Calculations!$E$2=\"Shetland Islands Local Authority\",Calculations!$E$2=\"Eilean Siar Local Authority\"),OR($F125=1,$F125=5)),0,new_ci(VALUE(LEFT(Options!$B$24,2)),$C125,$E125,$F125,2016,$I125+$J125,1,$H125,$G125*$H125,Options!B8)))","v":107.1671194133},{"$f":"IF(AND(OR(Calculations!$E$2=\"Orkney Health Board\",Calculations!$E$2=\"Orkney Islands Local Authority\"),$F125=1),0,IF(AND(OR(Calculations!$E$2=\"Shetland Health Board\",Calculations!$E$2=\"Western Isles Health Board\",Calculations!$E$2=\"Shetland Islands Local Authority\",Calculations!$E$2=\"Eilean Siar Local Authority\"),OR($F125=1,$F125=5)),0,new_yllv2(VALUE(LEFT(Options!$B$24,2)),$C125,$D125,$E125,$F125,2016,$I125,1,$H125,$G125*$H125,Options!B8)))","v":3858.7239295589002},{"$f":"IF(AND(OR(Calculations!$E$2=\"Orkney Health Board\",Calculations!$E$2=\"Orkney Islands Local Authority\"),$F125=1),0,IF(AND(OR(Calculations!$E$2=\"Shetland Health Board\",Calculations!$E$2=\"Western Isles Health Board\",Calculations!$E$2=\"Shetland Islands Local Authority\",Calculations!$E$2=\"Eilean Siar Local Authority\"),OR($F125=1,$F125=5)),0,new_yllv2(VALUE(LEFT(Options!$B$24,2)),$C125,$D125,$E125,$F125,2016,$I125+$J125,1,$H125,$G125*$H125,Options!B8)))","v":3840.8692382713002},{"$f":"IF(AND(OR(Calculations!$E$2=\"Orkney Health Board\",Calculations!$E$2=\"Orkney Islands Local Authority\"),$F125=1),0,IF(AND(OR(Calculations!$E$2=\"Shetland Health Board\",Calculations!$E$2=\"Western Isles Health Board\",Calculations!$E$2=\"Shetland Islands Local Authority\",Calculations!$E$2=\"Eilean Siar Local Authority\"),OR($F125=1,$F125=5)),0,hosp_count(VALUE(LEFT(Options!$B$24,2)),$C125,$E125,$F125,2016,$I125,1,$H125,$G125*$H125, Options!B8)))","v":5994.6765736841999},{"$f":"IF(AND(OR(Calculations!$E$2=\"Orkney Health Board\",Calculations!$E$2=\"Orkney Islands Local Authority\"),$F125=1),0,IF(AND(OR(Calculations!$E$2=\"Shetland Health Board\",Calculations!$E$2=\"Western Isles Health Board\",Calculations!$E$2=\"Shetland Islands Local Authority\",Calculations!$E$2=\"Eilean Siar Local Authority\"),OR($F125=1,$F125=5)),0,hosp_count(VALUE(LEFT(Options!$B$24,2)),$C125,$E125,$F125,2016,$I125+$J125,1,$H125,$G125*$H125, Options!B8)))","v":5970.1319882015996},{"$f":"IF(AND(OR(Calculations!$E$2=\"Orkney Health Board\",Calculations!$E$2=\"Orkney Islands Local Authority\"),$F125=1),0,IF(AND(OR(Calculations!$E$2=\"Shetland Health Board\",Calculations!$E$2=\"Western Isles Health Board\",Calculations!$E$2=\"Shetland Islands Local Authority\",Calculations!$E$2=\"Eilean Siar Local Authority\"),OR($F125=1,$F125=5)),0,prem_mort(VALUE(LEFT(Options!$B$24,2)),$C125,$E125,$F125,2016,$I125,1,$H125,$G125*$H125,Options!B8)))","v":107.66529722529999},{"$f":"IF(AND(OR(Calculations!$E$2=\"Orkney Health Board\",Calculations!$E$2=\"Orkney Islands Local Authority\"),$F125=1),0,IF(AND(OR(Calculations!$E$2=\"Shetland Health Board\",Calculations!$E$2=\"Western Isles Health Board\",Calculations!$E$2=\"Shetland Islands Local Authority\",Calculations!$E$2=\"Eilean Siar Local Authority\"),OR($F125=1,$F125=5)),0,prem_mort(VALUE(LEFT(Options!$B$24,2)),$C125,$E125,$F125,2016,$I125+$J125,1,$H125,$G125*$H125,Options!B8)))","v":107.1671194133},{"$f":"K125*100000/$H125","v":336.3069195517586},{"$f":"L125*100000/$H125","v":334.75079469388396},{"$f":"M125*100000/$H125","v":12053.238987814393},{"$f":"N125*100000/$H125","v":11997.467477576374},{"$f":"O125*100000/$H125","v":18725.172030000002},{"$f":"P125*100000/$H125","v":18648.503742742549},{"$f":"Q125*100000/$H125","v":336.3069195517586},{"$f":"R125*100000/$H125","v":334.75079469388396},{"$f":"S125*$AI125","v":2354148.4368623104},{"$f":"T125*$AI125","v":2343255.5628571878},84372672.914700747,83982272.343034625,131076204.21000001,130539526.19919784,2354148.4368623104,2343255.5628571878,7000]
[null,"Male 45-49",47.038155000000003,79.418149999999997,"male",2,{"$f":"HLOOKUP(Calculations!$E$2,'Prevalence Rates'!$C$3:$BC$249,'Prevalence Rates'!$BD126,FALSE)","v":0.22327027316252479},{"$f":"HLOOKUP(Calculations!$E$2,'Population 2016'!$C$3:$BC$249,'Population 2016'!BD126,FALSE)","v":36688},0,{"$f":"HLOOKUP(Results!E$4,Targeting!$C$3:$F$249,Targeting!$G126,FALSE)","v":2774},{"$f":"IF(AND(OR(Calculations!$E$2=\"Orkney Health Board\",Calculations!$E$2=\"Orkney Islands Local Authority\"),$F126=1),0,IF(AND(OR(Calculations!$E$2=\"Shetland Health Board\",Calculations!$E$2=\"Western Isles Health Board\",Calculations!$E$2=\"Shetland Islands Local Authority\",Calculations!$E$2=\"Eilean Siar Local Authority\"),OR($F126=1,$F126=5)),0,new_ci(VALUE(LEFT(Options!$B$24,2)),$C126,$E126,$F126,2016,$I126,1,$H126,$G126*$H126,Options!B8)))","v":179.4230888463},{"$f":"IF(AND(OR(Calculations!$E$2=\"Orkney Health Board\",Calculations!$E$2=\"Orkney Islands Local Authority\"),$F126=1),0,IF(AND(OR(Calculations!$E$2=\"Shetland Health Board\",Calculations!$E$2=\"Western Isles Health Board\",Calculations!$E$2=\"Shetland Islands Local Authority\",Calculations!$E$2=\"Eilean Siar Local Authority\"),OR($F126=1,$F126=5)),0,new_ci(VALUE(LEFT(Options!$B$24,2)),$C126,$E126,$F126,2016,$I126+$J126,1,$H126,$G126*$H126,Options!B8)))","v":178.60840194049999},{"$f":"IF(AND(OR(Calculations!$E$2=\"Orkney Health Board\",Calculations!$E$2=\"Orkney Islands Local Authority\"),$F126=1),0,IF(AND(OR(Calculations!$E$2=\"Shetland Health Board\",Calculations!$E$2=\"Western Isles Health Board\",Calculations!$E$2=\"Shetland Islands Local Authority\",Calculations!$E$2=\"Eilean Siar Local Authority\"),OR($F126=1,$F126=5)),0,new_yllv2(VALUE(LEFT(Options!$B$24,2)),$C126,$D126,$E126,$F126,2016,$I126,1,$H126,$G126*$H126,Options!B8)))","v":5630.2956308814},{"$f":"IF(AND(OR(Calculations!$E$2=\"Orkney Health Board\",Calculations!$E$2=\"Orkney Islands Local Authority\"),$F126=1),0,IF(AND(OR(Calculations!$E$2=\"Shetland Health Board\",Calculations!$E$2=\"Western Isles Health Board\",Calculations!$E$2=\"Shetland Islands Local Authority\",Calculations!$E$2=\"Eilean Siar Local Authority\"),OR($F126=1,$F126=5)),0,new_yllv2(VALUE(LEFT(Options!$B$24,2)),$C126,$D126,$E126,$F126,2016,$I126+$J126,1,$H126,$G126*$H126,Options!B8)))","v":5604.7307598508996},{"$f":"IF(AND(OR(Calculations!$E$2=\"Orkney Health Board\",Calculations!$E$2=\"Orkney Islands Local Authority\"),$F126=1),0,IF(AND(OR(Calculations!$E$2=\"Shetland Health Board\",Calculations!$E$2=\"Western Isles Health Board\",Calculations!$E$2=\"Shetland Islands Local Authority\",Calculations!$E$2=\"Eilean Siar Local Authority\"),OR($F126=1,$F126=5)),0,hosp_count(VALUE(LEFT(Options!$B$24,2)),$C126,$E126,$F126,2016,$I126,1,$H126,$G126*$H126, Options!B8)))","v":8195.4193310032006},{"$f":"IF(AND(OR(Calculations!$E$2=\"Orkney Health Board\",Calculations!$E$2=\"Orkney Islands Local Authority\"),$F126=1),0,IF(AND(OR(Calculations!$E$2=\"Shetland Health Board\",Calculations!$E$2=\"Western Isles Health Board\",Calculations!$E$2=\"Shetland Islands Local Authority\",Calculations!$E$2=\"Eilean Siar Local Authority\"),OR($F126=1,$F126=5)),0,hosp_count(VALUE(LEFT(Options!$B$24,2)),$C126,$E126,$F126,2016,$I126+$J126,1,$H126,$G126*$H126, Options!B8)))","v":8161.9595640204998},{"$f":"IF(AND(OR(Calculations!$E$2=\"Orkney Health Board\",Calculations!$E$2=\"Orkney Islands Local Authority\"),$F126=1),0,IF(AND(OR(Calculations!$E$2=\"Shetland Health Board\",Calculations!$E$2=\"Western Isles Health Board\",Calculations!$E$2=\"Shetland Islands Local Authority\",Calculations!$E$2=\"Eilean Siar Local Authority\"),OR($F126=1,$F126=5)),0,prem_mort(VALUE(LEFT(Options!$B$24,2)),$C126,$E126,$F126,2016,$I126,1,$H126,$G126*$H126,Options!B8)))","v":179.4230888463},{"$f":"IF(AND(OR(Calculations!$E$2=\"Orkney Health Board\",Calculations!$E$2=\"Orkney Islands Local Authority\"),$F126=1),0,IF(AND(OR(Calculations!$E$2=\"Shetland Health Board\",Calculations!$E$2=\"Western Isles Health Board\",Calculations!$E$2=\"Shetland Islands Local Authority\",Calculations!$E$2=\"Eilean Siar Local Authority\"),OR($F126=1,$F126=5)),0,prem_mort(VALUE(LEFT(Options!$B$24,2)),$C126,$E126,$F126,2016,$I126+$J126,1,$H126,$G126*$H126,Options!B8)))","v":178.60840194049999},489.05115799798307,486.83057659316393,15346.422892720781,15276.741059340657,22338.146890000004,22246.946042358537,489.05115799798307,486.83057659316393,3423358.1059858813,3407814.0361521477,107424960.24904546,106937187.41538459,156367028.23000002,155728622.29650977,3423358.1059858813,3407814.0361521477,7000]
[null,"Male 50-54",51.998646000000001,79.988649999999993,"male",2,{"$f":"HLOOKUP(Calculations!$E$2,'Prevalence Rates'!$C$3:$BC$249,'Prevalence Rates'!$BD127,FALSE)","v":0.22327027316252479},{"$f":"HLOOKUP(Calculations!$E$2,'Population 2016'!$C$3:$BC$249,'Population 2016'!BD127,FALSE)","v":37819},0,{"$f":"HLOOKUP(Results!E$4,Targeting!$C$3:$F$249,Targeting!$G127,FALSE)","v":2859},{"$f":"IF(AND(OR(Calculations!$E$2=\"Orkney Health Board\",Calculations!$E$2=\"Orkney Islands Local Authority\"),$F127=1),0,IF(AND(OR(Calculations!$E$2=\"Shetland Health Board\",Calculations!$E$2=\"Western Isles Health Board\",Calculations!$E$2=\"Shetland Islands Local Authority\",Calculations!$E$2=\"Eilean Siar Local Authority\"),OR($F127=1,$F127=5)),0,new_ci(VALUE(LEFT(Options!$B$24,2)),$C127,$E127,$F127,2016,$I127,1,$H127,$G127*$H127,Options!B8)))","v":268.65863312840003},{"$f":"IF(AND(OR(Calculations!$E$2=\"Orkney Health Board\",Calculations!$E$2=\"Orkney Islands Local Authority\"),$F127=1),0,IF(AND(OR(Calculations!$E$2=\"Shetland Health Board\",Calculations!$E$2=\"Western Isles Health Board\",Calculations!$E$2=\"Shetland Islands Local Authority\",Calculations!$E$2=\"Eilean Siar Local Authority\"),OR($F127=1,$F127=5)),0,new_ci(VALUE(LEFT(Options!$B$24,2)),$C127,$E127,$F127,2016,$I127+$J127,1,$H127,$G127*$H127,Options!B8)))","v":267.44136784850002},{"$f":"IF(AND(OR(Calculations!$E$2=\"Orkney Health Board\",Calculations!$E$2=\"Orkney Islands Local Authority\"),$F127=1),0,IF(AND(OR(Calculations!$E$2=\"Shetland Health Board\",Calculations!$E$2=\"Western Isles Health Board\",Calculations!$E$2=\"Shetland Islands Local Authority\",Calculations!$E$2=\"Eilean Siar Local Authority\"),OR($F127=1,$F127=5)),0,new_yllv2(VALUE(LEFT(Options!$B$24,2)),$C127,$D127,$E127,$F127,2016,$I127,1,$H127,$G127*$H127,Options!B8)))","v":7251.0975827700004},{"$f":"IF(AND(OR(Calculations!$E$2=\"Orkney Health Board\",Calculations!$E$2=\"Orkney Islands Local Authority\"),$F127=1),0,IF(AND(OR(Calculations!$E$2=\"Shetland Health Board\",Calculations!$E$2=\"Western Isles Health Board\",Calculations!$E$2=\"Shetland Islands Local Authority\",Calculations!$E$2=\"Eilean Siar Local Authority\"),OR($F127=1,$F127=5)),0,new_yllv2(VALUE(LEFT(Options!$B$24,2)),$C127,$D127,$E127,$F127,2016,$I127+$J127,1,$H127,$G127*$H127,Options!B8)))","v":7218.2435879964996},{"$f":"IF(AND(OR(Calculations!$E$2=\"Orkney Health Board\",Calculations!$E$2=\"Orkney Islands Local Authority\"),$F127=1),0,IF(AND(OR(Calculations!$E$2=\"Shetland Health Board\",Calculations!$E$2=\"Western Isles Health Board\",Calculations!$E$2=\"Shetland Islands Local Authority\",Calculations!$E$2=\"Eilean Siar Local Authority\"),OR($F127=1,$F127=5)),0,hosp_count(VALUE(LEFT(Options!$B$24,2)),$C127,$E127,$F127,2016,$I127,1,$H127,$G127*$H127, Options!B8)))","v":10074.533773875301},{"$f":"IF(AND(OR(Calculations!$E$2=\"Orkney Health Board\",Calculations!$E$2=\"Orkney Islands Local Authority\"),$F127=1),0,IF(AND(OR(Calculations!$E$2=\"Shetland Health Board\",Calculations!$E$2=\"Western Isles Health Board\",Calculations!$E$2=\"Shetland Islands Local Authority\",Calculations!$E$2=\"Eilean Siar Local Authority\"),OR($F127=1,$F127=5)),0,hosp_count(VALUE(LEFT(Options!$B$24,2)),$C127,$E127,$F127,2016,$I127+$J127,1,$H127,$G127*$H127, Options!B8)))","v":10033.409486480299},{"$f":"IF(AND(OR(Calculations!$E$2=\"Orkney Health Board\",Calculations!$E$2=\"Orkney Islands Local Authority\"),$F127=1),0,IF(AND(OR(Calculations!$E$2=\"Shetland Health Board\",Calculations!$E$2=\"Western Isles Health Board\",Calculations!$E$2=\"Shetland Islands Local Authority\",Calculations!$E$2=\"Eilean Siar Local Authority\"),OR($F127=1,$F127=5)),0,prem_mort(VALUE(LEFT(Options!$B$24,2)),$C127,$E127,$F127,2016,$I127,1,$H127,$G127*$H127,Options!B8)))","v":268.65863312840003},{"$f":"IF(AND(OR(Calculations!$E$2=\"Orkney Health Board\",Calculations!$E$2=\"Orkney Islands Local Authority\"),$F127=1),0,IF(AND(OR(Calculations!$E$2=\"Shetland Health Board\",Calculations!$E$2=\"Western Isles Health Board\",Calculations!$E$2=\"Shetland Islands Local Authority\",Calculations!$E$2=\"Eilean Siar Local Authority\"),OR($F127=1,$F127=5)),0,prem_mort(VALUE(LEFT(Options!$B$24,2)),$C127,$E127,$F127,2016,$I127+$J127,1,$H127,$G127*$H127,Options!B8)))","v":267.44136784850002},710.38005533832211,707.16139466537982,19173.160535101404,19086.288870664215,26638.815870000002,26530.076116450196,710.38005533832211,707.16139466537982,4972660.3873682544,4950129.7626576591,134212123.74570982,133604022.09464951,186471711.09,185710532.81515136,4972660.3873682544,4950129.7626576591,7000]
[null,"Male 55-59",56.950867000000002,80.660870000000003,"male",2,{"$f":"HLOOKUP(Calculations!$E$2,'Prevalence Rates'!$C$3:$BC$249,'Prevalence Rates'!$BD128,FALSE)","v":0.23686544329639284},{"$f":"HLOOKUP(Calculations!$E$2,'Population 2016'!$C$3:$BC$249,'Population 2016'!BD128,FALSE)","v":35036},0,{"$f":"HLOOKUP(Results!E$4,Targeting!$C$3:$F$249,Targeting!$G128,FALSE)","v":2649},{"$f":"IF(AND(OR(Calculations!$E$2=\"Orkney Health Board\",Calculations!$E$2=\"Orkney Islands Local Authority\"),$F128=1),0,IF(AND(OR(Calculations!$E$2=\"Shetland Health Board\",Calculations!$E$2=\"Western Isles Health Board\",Calculations!$E$2=\"Shetland Islands Local Authority\",Calculations!$E$2=\"Eilean Siar Local Authority\"),OR($F128=1,$F128=5)),0,new_ci(VALUE(LEFT(Options!$B$24,2)),$C128,$E128,$F128,2016,$I128,1,$H128,$G128*$H128,Options!B8)))","v":361.10865238759999},{"$f":"IF(AND(OR(Calculations!$E$2=\"Orkney Health Board\",Calculations!$E$2=\"Orkney Islands Local Authority\"),$F128=1),0,IF(AND(OR(Calculations!$E$2=\"Shetland Health Board\",Calculations!$E$2=\"Western Isles Health Board\",Calculations!$E$2=\"Shetland Islands Local Authority\",Calculations!$E$2=\"Eilean Siar Local Authority\"),OR($F128=1,$F128=5)),0,new_ci(VALUE(LEFT(Options!$B$24,2)),$C128,$E128,$F128,2016,$I128+$J128,1,$H128,$G128*$H128,Options!B8)))","v":359.48904637039999},{"$f":"IF(AND(OR(Calculations!$E$2=\"Orkney Health Board\",Calculations!$E$2=\"Orkney Islands Local Authority\"),$F128=1),0,IF(AND(OR(Calculations!$E$2=\"Shetland Health Board\",Calculations!$E$2=\"Western Isles Health Board\",Calculations!$E$2=\"Shetland Islands Local Authority\",Calculations!$E$2=\"Eilean Siar Local Authority\"),OR($F128=1,$F128=5)),0,new_yllv2(VALUE(LEFT(Options!$B$24,2)),$C128,$D128,$E128,$F128,2016,$I128,1,$H128,$G128*$H128,Options!B8)))","v":8200.7785790483995},{"$f":"IF(AND(OR(Calculations!$E$2=\"Orkney Health Board\",Calculations!$E$2=\"Orkney Islands Local Authority\"),$F128=1),0,IF(AND(OR(Calculations!$E$2=\"Shetland Health Board\",Calculations!$E$2=\"Western Isles Health Board\",Calculations!$E$2=\"Shetland Islands Local Authority\",Calculations!$E$2=\"Eilean Siar Local Authority\"),OR($F128=1,$F128=5)),0,new_yllv2(VALUE(LEFT(Options!$B$24,2)),$C128,$D128,$E128,$F128,2016,$I128+$J128,1,$H128,$G128*$H128,Options!B8)))","v":8163.9973215389},{"$f":"IF(AND(OR(Calculations!$E$2=\"Orkney Health Board\",Calculations!$E$2=\"Orkney Islands Local Authority\"),$F128=1),0,IF(AND(OR(Calculations!$E$2=\"Shetland Health Board\",Calculations!$E$2=\"Western Isles Health Board\",Calculations!$E$2=\"Shetland Islands Local Authority\",Calculations!$E$2=\"Eilean Siar Local Authority\"),OR($F128=1,$F128=5)),0,hosp_count(VALUE(LEFT(Options!$B$24,2)),$C128,$E128,$F128,2016,$I128,1,$H128,$G128*$H128, Options!B8)))","v":11126.785665237599},{"$f":"IF(AND(OR(Calculations!$E$2=\"Orkney Health Board\",Calculations!$E$2=\"Orkney Islands Local Authority\"),$F128=1),0,IF(AND(OR(Calculations!$E$2=\"Shetland Health Board\",Calculations!$E$2=\"Western Isles Health Board\",Calculations!$E$2=\"Shetland Islands Local Authority\",Calculations!$E$2=\"Eilean Siar Local Authority\"),OR($F128=1,$F128=5)),0,hosp_count(VALUE(LEFT(Options!$B$24,2)),$C128,$E128,$F128,2016,$I128+$J128,1,$H128,$G128*$H128, Options!B8)))","v":11081.4197869415},{"$f":"IF(AND(OR(Calculations!$E$2=\"Orkney Health Board\",Calculations!$E$2=\"Orkney Islands Local Authority\"),$F128=1),0,IF(AND(OR(Calculations!$E$2=\"Shetland Health Board\",Calculations!$E$2=\"Western Isles Health Board\",Calculations!$E$2=\"Shetland Islands Local Authority\",Calculations!$E$2=\"Eilean Siar Local Authority\"),OR($F128=1,$F128=5)),0,prem_mort(VALUE(LEFT(Options!$B$24,2)),$C128,$E128,$F128,2016,$I128,1,$H128,$G128*$H128,Options!B8)))","v":361.10865238759999},{"$f":"IF(AND(OR(Calculations!$E$2=\"Orkney Health Board\",Calculations!$E$2=\"Orkney Islands Local Authority\"),$F128=1),0,IF(AND(OR(Calculations!$E$2=\"Shetland Health Board\",Calculations!$E$2=\"Western Isles Health Board\",Calculations!$E$2=\"Shetland Islands Local Authority\",Calculations!$E$2=\"Eilean Siar Local Authority\"),OR($F128=1,$F128=5)),0,prem_mort(VALUE(LEFT(Options!$B$24,2)),$C128,$E128,$F128,2016,$I128+$J128,1,$H128,$G128*$H128,Options!B8)))","v":359.48904637039999},1030.6788799737415,1026.0561889781939,23406.720456240437,23301.739129863283,31758.150659999996,31628.667048012045,1030.6788799737415,1026.0561889781939,6699412.719829319,6669365.2283582604,152143682.96556285,151461304.34411135,206427979.28999996,205586335.8120783,6699412.719829319,6669365.2283582604,6500]
[null,"Male 60-64",61.942988999999997,81.612989999999996,"male",2,{"$f":"HLOOKUP(Calculations!$E$2,'Prevalence Rates'!$C$3:$BC$249,'Prevalence Rates'!$BD129,FALSE)","v":0.23686544329639284},{"$f":"HLOOKUP(Calculations!$E$2,'Population 2016'!$C$3:$BC$249,'Population 2016'!BD129,FALSE)","v":29980},0,{"$f":"HLOOKUP(Results!E$4,Targeting!$C$3:$F$249,Targeting!$G129,FALSE)","v":2267},{"$f":"IF(AND(OR(Calculations!$E$2=\"Orkney Health Board\",Calculations!$E$2=\"Orkney Islands Local Authority\"),$F129=1),0,IF(AND(OR(Calculations!$E$2=\"Shetland Health Board\",Calculations!$E$2=\"Western Isles Health Board\",Calculations!$E$2=\"Shetland Islands Local Authority\",Calculations!$E$2=\"Eilean Siar Local Authority\"),OR($F129=1,$F129=5)),0,new_ci(VALUE(LEFT(Options!$B$24,2)),$C129,$E129,$F129,2016,$I129,1,$H129,$G129*$H129,Options!B8)))","v":449.31749073560002},{"$f":"IF(AND(OR(Calculations!$E$2=\"Orkney Health Board\",Calculations!$E$2=\"Orkney Islands Local Authority\"),$F129=1),0,IF(AND(OR(Calculations!$E$2=\"Shetland Health Board\",Calculations!$E$2=\"Western Isles Health Board\",Calculations!$E$2=\"Shetland Islands Local Authority\",Calculations!$E$2=\"Eilean Siar Local Authority\"),OR($F129=1,$F129=5)),0,new_ci(VALUE(LEFT(Options!$B$24,2)),$C129,$E129,$F129,2016,$I129+$J129,1,$H129,$G129*$H129,Options!B8)))","v":447.31029596330001},{"$f":"IF(AND(OR(Calculations!$E$2=\"Orkney Health Board\",Calculations!$E$2=\"Orkney Islands Local Authority\"),$F129=1),0,IF(AND(OR(Calculations!$E$2=\"Shetland Health Board\",Calculations!$E$2=\"Western Isles Health Board\",Calculations!$E$2=\"Shetland Islands Local Authority\",Calculations!$E$2=\"Eilean Siar Local Authority\"),OR($F129=1,$F129=5)),0,new_yllv2(VALUE(LEFT(Options!$B$24,2)),$C129,$D129,$E129,$F129,2016,$I129,1,$H129,$G129*$H129,Options!B8)))","v":8388.7580013510997},{"$f":"IF(AND(OR(Calculations!$E$2=\"Orkney Health Board\",Calculations!$E$2=\"Orkney Islands Local Authority\"),$F129=1),0,IF(AND(OR(Calculations!$E$2=\"Shetland Health Board\",Calculations!$E$2=\"Western Isles Health Board\",Calculations!$E$2=\"Shetland Islands Local Authority\",Calculations!$E$2=\"Eilean Siar Local Authority\"),OR($F129=1,$F129=5)),0,new_yllv2(VALUE(LEFT(Options!$B$24,2)),$C129,$D129,$E129,$F129,2016,$I129+$J129,1,$H129,$G129*$H129,Options!B8)))","v":8351.2836729450992},{"$f":"IF(AND(OR(Calculations!$E$2=\"Orkney Health Board\",Calculations!$E$2=\"Orkney Islands Local Authority\"),$F129=1),0,IF(AND(OR(Calculations!$E$2=\"Shetland Health Board\",Calculations!$E$2=\"Western Isles Health Board\",Calculations!$E$2=\"Shetland Islands Local Authority\",Calculations!$E$2=\"Eilean Siar Local Authority\"),OR($F129=1,$F129=5)),0,hosp_count(VALUE(LEFT(Options!$B$24,2)),$C129,$E129,$F129,2016,$I129,1,$H129,$G129*$H129, Options!B8)))","v":11366.904471358001},{"$f":"IF(AND(OR(Calculations!$E$2=\"Orkney Health Board\",Calculations!$E$2=\"Orkney Islands Local Authority\"),$F129=1),0,IF(AND(OR(Calculations!$E$2=\"Shetland Health Board\",Calculations!$E$2=\"Western Isles Health Board\",Calculations!$E$2=\"Shetland Islands Local Authority\",Calculations!$E$2=\"Eilean Siar Local Authority\"),OR($F129=1,$F129=5)),0,hosp_count(VALUE(LEFT(Options!$B$24,2)),$C129,$E129,$F129,2016,$I129+$J129,1,$H129,$G129*$H129, Options!B8)))","v":11320.5539885815},{"$f":"IF(AND(OR(Calculations!$E$2=\"Orkney Health Board\",Calculations!$E$2=\"Orkney Islands Local Authority\"),$F129=1),0,IF(AND(OR(Calculations!$E$2=\"Shetland Health Board\",Calculations!$E$2=\"Western Isles Health Board\",Calculations!$E$2=\"Shetland Islands Local Authority\",Calculations!$E$2=\"Eilean Siar Local Authority\"),OR($F129=1,$F129=5)),0,prem_mort(VALUE(LEFT(Options!$B$24,2)),$C129,$E129,$F129,2016,$I129,1,$H129,$G129*$H129,Options!B8)))","v":449.31749073560002},{"$f":"IF(AND(OR(Calculations!$E$2=\"Orkney Health Board\",Calculations!$E$2=\"Orkney Islands Local Authority\"),$F129=1),0,IF(AND(OR(Calculations!$E$2=\"Shetland Health Board\",Calculations!$E$2=\"Western Isles Health Board\",Calculations!$E$2=\"Shetland Islands Local Authority\",Calculations!$E$2=\"Eilean Siar Local Authority\"),OR($F129=1,$F129=5)),0,prem_mort(VALUE(LEFT(Options!$B$24,2)),$C129,$E129,$F129,2016,$I129+$J129,1,$H129,$G129*$H129,Options!B8)))","v":447.31029596330001},1498.7241185310206,1492.0290058815879,27981.180791698134,27856.183031838224,37914.958210000004,37760.353530958972,1498.7241185310206,1492.0290058815879,8992344.711186124,8952174.0352895278,167887084.7501888,167137098.19102934,227489749.26000002,226562121.18575382,8992344.711186124,8952174.0352895278,6000]
[null,"Male 65-69",67.054419999999993,82.954419999999999,"male",2,{"$f":"HLOOKUP(Calculations!$E$2,'Prevalence Rates'!$C$3:$BC$249,'Prevalence Rates'!$BD130,FALSE)","v":0.23426170078604427},{"$f":"HLOOKUP(Calculations!$E$2,'Population 2016'!$C$3:$BC$249,'Population 2016'!BD130,FALSE)","v":29727},0,{"$f":"HLOOKUP(Results!E$4,Targeting!$C$3:$F$249,Targeting!$G130,FALSE)","v":2248},{"$f":"IF(AND(OR(Calculations!$E$2=\"Orkney Health Board\",Calculations!$E$2=\"Orkney Islands Local Authority\"),$F130=1),0,IF(AND(OR(Calculations!$E$2=\"Shetland Health Board\",Calculations!$E$2=\"Western Isles Health Board\",Calculations!$E$2=\"Shetland Islands Local Authority\",Calculations!$E$2=\"Eilean Siar Local Authority\"),OR($F130=1,$F130=5)),0,new_ci(VALUE(LEFT(Options!$B$24,2)),$C130,$E130,$F130,2016,$I130,1,$H130,$G130*$H130,Options!B8)))","v":652.89658034870001},{"$f":"IF(AND(OR(Calculations!$E$2=\"Orkney Health Board\",Calculations!$E$2=\"Orkney Islands Local Authority\"),$F130=1),0,IF(AND(OR(Calculations!$E$2=\"Shetland Health Board\",Calculations!$E$2=\"Western Isles Health Board\",Calculations!$E$2=\"Shetland Islands Local Authority\",Calculations!$E$2=\"Eilean Siar Local Authority\"),OR($F130=1,$F130=5)),0,new_ci(VALUE(LEFT(Options!$B$24,2)),$C130,$E130,$F130,2016,$I130+$J130,1,$H130,$G130*$H130,Options!B8)))","v":649.99368871750005},{"$f":"IF(AND(OR(Calculations!$E$2=\"Orkney Health Board\",Calculations!$E$2=\"Orkney Islands Local Authority\"),$F130=1),0,IF(AND(OR(Calculations!$E$2=\"Shetland Health Board\",Calculations!$E$2=\"Western Isles Health Board\",Calculations!$E$2=\"Shetland Islands Local Authority\",Calculations!$E$2=\"Eilean Siar Local Authority\"),OR($F130=1,$F130=5)),0,new_yllv2(VALUE(LEFT(Options!$B$24,2)),$C130,$D130,$E130,$F130,2016,$I130,1,$H130,$G130*$H130,Options!B8)))","v":9728.1590471956006},{"$f":"IF(AND(OR(Calculations!$E$2=\"Orkney Health Board\",Calculations!$E$2=\"Orkney Islands Local Authority\"),$F130=1),0,IF(AND(OR(Calculations!$E$2=\"Shetland Health Board\",Calculations!$E$2=\"Western Isles Health Board\",Calculations!$E$2=\"Shetland Islands Local Authority\",Calculations!$E$2=\"Eilean Siar Local Authority\"),OR($F130=1,$F130=5)),0,new_yllv2(VALUE(LEFT(Options!$B$24,2)),$C130,$D130,$E130,$F130,2016,$I130+$J130,1,$H130,$G130*$H130,Options!B8)))","v":9684.9059618907995},{"$f":"IF(AND(OR(Calculations!$E$2=\"Orkney Health Board\",Calculations!$E$2=\"Orkney Islands Local Authority\"),$F130=1),0,IF(AND(OR(Calculations!$E$2=\"Shetland Health Board\",Calculations!$E$2=\"Western Isles Health Board\",Calculations!$E$2=\"Shetland Islands Local Authority\",Calculations!$E$2=\"Eilean Siar Local Authority\"),OR($F130=1,$F130=5)),0,hosp_count(VALUE(LEFT(Options!$B$24,2)),$C130,$E130,$F130,2016,$I130,1,$H130,$G130*$H130, Options!B8)))","v":13513.138667486101},{"$f":"IF(AND(OR(Calculations!$E$2=\"Orkney Health Board\",Calculations!$E$2=\"Orkney Islands Local Authority\"),$F130=1),0,IF(AND(OR(Calculations!$E$2=\"Shetland Health Board\",Calculations!$E$2=\"Western Isles Health Board\",Calculations!$E$2=\"Shetland Islands Local Authority\",Calculations!$E$2=\"Eilean Siar Local Authority\"),OR($F130=1,$F130=5)),0,hosp_count(VALUE(LEFT(Options!$B$24,2)),$C130,$E130,$F130,2016,$I130+$J130,1,$H130,$G130*$H130, Options!B8)))","v":13458.019316476801},{"$f":"IF(AND(OR(Calculations!$E$2=\"Orkney Health Board\",Calculations!$E$2=\"Orkney Islands Local Authority\"),$F130=1),0,IF(AND(OR(Calculations!$E$2=\"Shetland Health Board\",Calculations!$E$2=\"Western Isles Health Board\",Calculations!$E$2=\"Shetland Islands Local Authority\",Calculations!$E$2=\"Eilean Siar Local Authority\"),OR($F130=1,$F130=5)),0,prem_mort(VALUE(LEFT(Options!$B$24,2)),$C130,$E130,$F130,2016,$I130,1,$H130,$G130*$H130,Options!B8)))","v":652.89658034870001},{"$f":"IF(AND(OR(Calculations!$E$2=\"Orkney Health Board\",Calculations!$E$2=\"Orkney Islands Local Authority\"),$F130=1),0,IF(AND(OR(Calculations!$E$2=\"Shetland Health Board\",Calculations!$E$2=\"Western Isles Health Board\",Calculations!$E$2=\"Shetland Islands Local Authority\",Calculations!$E$2=\"Eilean Siar Local Authority\"),OR($F130=1,$F130=5)),0,prem_mort(VALUE(LEFT(Options!$B$24,2)),$C130,$E130,$F130,2016,$I130+$J130,1,$H130,$G130*$H130,Options!B8)))","v":649.99368871750005},2196.3083403932451,2186.5431719228313,32724.994271859254,32579.49326165035,45457.458429999999,45272.03995181754,2196.3083403932451,2186.5431719228313,12079695.872162849,12025987.445575573,179987468.49522591,179187212.93907693,250016021.36499998,248996219.73499647,12079695.872162849,12025987.445575573,5500]
[null,"Male 70-74",71.891098,84.341099999999997,"male",2,{"$f":"HLOOKUP(Calculations!$E$2,'Prevalence Rates'!$C$3:$BC$249,'Prevalence Rates'!$BD131,FALSE)","v":0.23426170078604427},{"$f":"HLOOKUP(Calculations!$E$2,'Population 2016'!$C$3:$BC$249,'Population 2016'!BD131,FALSE)","v":22052},0,{"$f":"HLOOKUP(Results!E$4,Targeting!$C$3:$F$249,Targeting!$G131,FALSE)","v":1667},{"$f":"IF(AND(OR(Calculations!$E$2=\"Orkney Health Board\",Calculations!$E$2=\"Orkney Islands Local Authority\"),$F131=1),0,IF(AND(OR(Calculations!$E$2=\"Shetland Health Board\",Calculations!$E$2=\"Western Isles Health Board\",Calculations!$E$2=\"Shetland Islands Local Authority\",Calculations!$E$2=\"Eilean Siar Local Authority\"),OR($F131=1,$F131=5)),0,new_ci(VALUE(LEFT(Options!$B$24,2)),$C131,$E131,$F131,2016,$I131,1,$H131,$G131*$H131,Options!B8)))","v":694.21799833299997},{"$f":"IF(AND(OR(Calculations!$E$2=\"Orkney Health Board\",Calculations!$E$2=\"Orkney Islands Local Authority\"),$F131=1),0,IF(AND(OR(Calculations!$E$2=\"Shetland Health Board\",Calculations!$E$2=\"Western Isles Health Board\",Calculations!$E$2=\"Shetland Islands Local Authority\",Calculations!$E$2=\"Eilean Siar Local Authority\"),OR($F131=1,$F131=5)),0,new_ci(VALUE(LEFT(Options!$B$24,2)),$C131,$E131,$F131,2016,$I131+$J131,1,$H131,$G131*$H131,Options!B8)))","v":691.15873010170003},{"$f":"IF(AND(OR(Calculations!$E$2=\"Orkney Health Board\",Calculations!$E$2=\"Orkney Islands Local Authority\"),$F131=1),0,IF(AND(OR(Calculations!$E$2=\"Shetland Health Board\",Calculations!$E$2=\"Western Isles Health Board\",Calculations!$E$2=\"Shetland Islands Local Authority\",Calculations!$E$2=\"Eilean Siar Local Authority\"),OR($F131=1,$F131=5)),0,new_yllv2(VALUE(LEFT(Options!$B$24,2)),$C131,$D131,$E131,$F131,2016,$I131,1,$H131,$G131*$H131,Options!B8)))","v":7948.7974693488004},{"$f":"IF(AND(OR(Calculations!$E$2=\"Orkney Health Board\",Calculations!$E$2=\"Orkney Islands Local Authority\"),$F131=1),0,IF(AND(OR(Calculations!$E$2=\"Shetland Health Board\",Calculations!$E$2=\"Western Isles Health Board\",Calculations!$E$2=\"Shetland Islands Local Authority\",Calculations!$E$2=\"Eilean Siar Local Authority\"),OR($F131=1,$F131=5)),0,new_yllv2(VALUE(LEFT(Options!$B$24,2)),$C131,$D131,$E131,$F131,2016,$I131+$J131,1,$H131,$G131*$H131,Options!B8)))","v":7913.7688419818996},{"$f":"IF(AND(OR(Calculations!$E$2=\"Orkney Health Board\",Calculations!$E$2=\"Orkney Islands Local Authority\"),$F131=1),0,IF(AND(OR(Calculations!$E$2=\"Shetland Health Board\",Calculations!$E$2=\"Western Isles Health Board\",Calculations!$E$2=\"Shetland Islands Local Authority\",Calculations!$E$2=\"Eilean Siar Local Authority\"),OR($F131=1,$F131=5)),0,hosp_count(VALUE(LEFT(Options!$B$24,2)),$C131,$E131,$F131,2016,$I131,1,$H131,$G131*$H131, Options!B8)))","v":11901.790057320401},{"$f":"IF(AND(OR(Calculations!$E$2=\"Orkney Health Board\",Calculations!$E$2=\"Orkney Islands Local Authority\"),$F131=1),0,IF(AND(OR(Calculations!$E$2=\"Shetland Health Board\",Calculations!$E$2=\"Western Isles Health Board\",Calculations!$E$2=\"Shetland Islands Local Authority\",Calculations!$E$2=\"Eilean Siar Local Authority\"),OR($F131=1,$F131=5)),0,hosp_count(VALUE(LEFT(Options!$B$24,2)),$C131,$E131,$F131,2016,$I131+$J131,1,$H131,$G131*$H131, Options!B8)))","v":11853.260923599901},{"$f":"IF(AND(OR(Calculations!$E$2=\"Orkney Health Board\",Calculations!$E$2=\"Orkney Islands Local Authority\"),$F131=1),0,IF(AND(OR(Calculations!$E$2=\"Shetland Health Board\",Calculations!$E$2=\"Western Isles Health Board\",Calculations!$E$2=\"Shetland Islands Local Authority\",Calculations!$E$2=\"Eilean Siar Local Authority\"),OR($F131=1,$F131=5)),0,prem_mort(VALUE(LEFT(Options!$B$24,2)),$C131,$E131,$F131,2016,$I131,1,$H131,$G131*$H131,Options!B8)))","v":694.21799833299997},{"$f":"IF(AND(OR(Calculations!$E$2=\"Orkney Health Board\",Calculations!$E$2=\"Orkney Islands Local Authority\"),$F131=1),0,IF(AND(OR(Calculations!$E$2=\"Shetland Health Board\",Calculations!$E$2=\"Western Isles Health Board\",Calculations!$E$2=\"Shetland Islands Local Authority\",Calculations!$E$2=\"Eilean Siar Local Authority\"),OR($F131=1,$F131=5)),0,prem_mort(VALUE(LEFT(Options!$B$24,2)),$C131,$E131,$F131,2016,$I131+$J131,1,$H131,$G131*$H131,Options!B8)))","v":691.15873010170003},3148.0954032876834,3134.2224292658261,36045.698663834577,35886.853083538452,53971.476770000008,53751.409956466086,3148.0954032876834,3134.2224292658261,15740477.016438417,15671112.146329131,180228493.31917289,179434265.41769224,269857383.85000002,268757049.78233045,15740477.016438417,15671112.146329131,5000]
[null,"Male 75-79",76.907700000000006,86.357700000000008,"male",2,{"$f":"HLOOKUP(Calculations!$E$2,'Prevalence Rates'!$C$3:$BC$249,'Prevalence Rates'!$BD132,FALSE)","v":0.11184551050290638},{"$f":"HLOOKUP(Calculations!$E$2,'Population 2016'!$C$3:$BC$249,'Population 2016'!BD132,FALSE)","v":16695},0,{"$f":"HLOOKUP(Results!E$4,Targeting!$C$3:$F$249,Targeting!$G132,FALSE)","v":1262},{"$f":"IF(AND(OR(Calculations!$E$2=\"Orkney Health Board\",Calculations!$E$2=\"Orkney Islands Local Authority\"),$F132=1),0,IF(AND(OR(Calculations!$E$2=\"Shetland Health Board\",Calculations!$E$2=\"Western Isles Health Board\",Calculations!$E$2=\"Shetland Islands Local Authority\",Calculations!$E$2=\"Eilean Siar Local Authority\"),OR($F132=1,$F132=5)),0,new_ci(VALUE(LEFT(Options!$B$24,2)),$C132,$E132,$F132,2016,$I132,1,$H132,$G132*$H132,Options!B8)))","v":762.026164569},{"$f":"IF(AND(OR(Calculations!$E$2=\"Orkney Health Board\",Calculations!$E$2=\"Orkney Islands Local Authority\"),$F132=1),0,IF(AND(OR(Calculations!$E$2=\"Shetland Health Board\",Calculations!$E$2=\"Western Isles Health Board\",Calculations!$E$2=\"Shetland Islands Local Authority\",Calculations!$E$2=\"Eilean Siar Local Authority\"),OR($F132=1,$F132=5)),0,new_ci(VALUE(LEFT(Options!$B$24,2)),$C132,$E132,$F132,2016,$I132+$J132,1,$H132,$G132*$H132,Options!B8)))","v":758.48732524980005},{"$f":"IF(AND(OR(Calculations!$E$2=\"Orkney Health Board\",Calculations!$E$2=\"Orkney Islands Local Authority\"),$F132=1),0,IF(AND(OR(Calculations!$E$2=\"Shetland Health Board\",Calculations!$E$2=\"Western Isles Health Board\",Calculations!$E$2=\"Shetland Islands Local Authority\",Calculations!$E$2=\"Eilean Siar Local Authority\"),OR($F132=1,$F132=5)),0,new_yllv2(VALUE(LEFT(Options!$B$24,2)),$C132,$D132,$E132,$F132,2016,$I132,1,$H132,$G132*$H132,Options!B8)))","v":6439.1210906080996},{"$f":"IF(AND(OR(Calculations!$E$2=\"Orkney Health Board\",Calculations!$E$2=\"Orkney Islands Local Authority\"),$F132=1),0,IF(AND(OR(Calculations!$E$2=\"Shetland Health Board\",Calculations!$E$2=\"Western Isles Health Board\",Calculations!$E$2=\"Shetland Islands Local Authority\",Calculations!$E$2=\"Eilean Siar Local Authority\"),OR($F132=1,$F132=5)),0,new_yllv2(VALUE(LEFT(Options!$B$24,2)),$C132,$D132,$E132,$F132,2016,$I132+$J132,1,$H132,$G132*$H132,Options!B8)))","v":6409.2178983608001},{"$f":"IF(AND(OR(Calculations!$E$2=\"Orkney Health Board\",Calculations!$E$2=\"Orkney Islands Local Authority\"),$F132=1),0,IF(AND(OR(Calculations!$E$2=\"Shetland Health Board\",Calculations!$E$2=\"Western Isles Health Board\",Calculations!$E$2=\"Shetland Islands Local Authority\",Calculations!$E$2=\"Eilean Siar Local Authority\"),OR($F132=1,$F132=5)),0,hosp_count(VALUE(LEFT(Options!$B$24,2)),$C132,$E132,$F132,2016,$I132,1,$H132,$G132*$H132, Options!B8)))","v":10766.7212647995},{"$f":"IF(AND(OR(Calculations!$E$2=\"Orkney Health Board\",Calculations!$E$2=\"Orkney Islands Local Authority\"),$F132=1),0,IF(AND(OR(Calculations!$E$2=\"Shetland Health Board\",Calculations!$E$2=\"Western Isles Health Board\",Calculations!$E$2=\"Shetland Islands Local Authority\",Calculations!$E$2=\"Eilean Siar Local Authority\"),OR($F132=1,$F132=5)),0,hosp_count(VALUE(LEFT(Options!$B$24,2)),$C132,$E132,$F132,2016,$I132+$J132,1,$H132,$G132*$H132, Options!B8)))","v":10722.2903626772},{"$f":"IF(AND(OR(Calculations!$E$2=\"Orkney Health Board\",Calculations!$E$2=\"Orkney Islands Local Authority\"),$F132=1),0,IF(AND(OR(Calculations!$E$2=\"Shetland Health Board\",Calculations!$E$2=\"Western Isles Health Board\",Calculations!$E$2=\"Shetland Islands Local Authority\",Calculations!$E$2=\"Eilean Siar Local Authority\"),OR($F132=1,$F132=5)),0,prem_mort(VALUE(LEFT(Options!$B$24,2)),$C132,$E132,$F132,2016,$I132,1,$H132,$G132*$H132,Options!B8)))","v":0},{"$f":"IF(AND(OR(Calculations!$E$2=\"Orkney Health Board\",Calculations!$E$2=\"Orkney Islands Local Authority\"),$F132=1),0,IF(AND(OR(Calculations!$E$2=\"Shetland Health Board\",Calculations!$E$2=\"Western Isles Health Board\",Calculations!$E$2=\"Shetland Islands Local Authority\",Calculations!$E$2=\"Eilean Siar Local Authority\"),OR($F132=1,$F132=5)),0,prem_mort(VALUE(LEFT(Options!$B$24,2)),$C132,$E132,$F132,2016,$I132+$J132,1,$H132,$G132*$H132,Options!B8)))","v":0},4564.3975116442052,4543.2005106307279,38569.158973393831,38390.044314829589,64490.69341,64224.560423343515,0,0,18257590.04657682,18172802.042522911,154276635.89357531,153560177.25931835,257962773.63999999,256898241.69337407,0,0,4000]
[null,"Male 80-84",81.797089,88.627089999999995,"male",2,{"$f":"HLOOKUP(Calculations!$E$2,'Prevalence Rates'!$C$3:$BC$249,'Prevalence Rates'!$BD133,FALSE)","v":0.11184551050290638},{"$f":"HLOOKUP(Calculations!$E$2,'Population 2016'!$C$3:$BC$249,'Population 2016'!BD133,FALSE)","v":11333},0,{"$f":"HLOOKUP(Results!E$4,Targeting!$C$3:$F$249,Targeting!$G133,FALSE)","v":857},{"$f":"IF(AND(OR(Calculations!$E$2=\"Orkney Health Board\",Calculations!$E$2=\"Orkney Islands Local Authority\"),$F133=1),0,IF(AND(OR(Calculations!$E$2=\"Shetland Health Board\",Calculations!$E$2=\"Western Isles Health Board\",Calculations!$E$2=\"Shetland Islands Local Authority\",Calculations!$E$2=\"Eilean Siar Local Authority\"),OR($F133=1,$F133=5)),0,new_ci(VALUE(LEFT(Options!$B$24,2)),$C133,$E133,$F133,2016,$I133,1,$H133,$G133*$H133,Options!B8)))","v":740.29316061930001},{"$f":"IF(AND(OR(Calculations!$E$2=\"Orkney Health Board\",Calculations!$E$2=\"Orkney Islands Local Authority\"),$F133=1),0,IF(AND(OR(Calculations!$E$2=\"Shetland Health Board\",Calculations!$E$2=\"Western Isles Health Board\",Calculations!$E$2=\"Shetland Islands Local Authority\",Calculations!$E$2=\"Eilean Siar Local Authority\"),OR($F133=1,$F133=5)),0,new_ci(VALUE(LEFT(Options!$B$24,2)),$C133,$E133,$F133,2016,$I133+$J133,1,$H133,$G133*$H133,Options!B8)))","v":736.92406959949994},{"$f":"IF(AND(OR(Calculations!$E$2=\"Orkney Health Board\",Calculations!$E$2=\"Orkney Islands Local Authority\"),$F133=1),0,IF(AND(OR(Calculations!$E$2=\"Shetland Health Board\",Calculations!$E$2=\"Western Isles Health Board\",Calculations!$E$2=\"Shetland Islands Local Authority\",Calculations!$E$2=\"Eilean Siar Local Authority\"),OR($F133=1,$F133=5)),0,new_yllv2(VALUE(LEFT(Options!$B$24,2)),$C133,$D133,$E133,$F133,2016,$I133,1,$H133,$G133*$H133,Options!B8)))","v":4315.9098667036997},{"$f":"IF(AND(OR(Calculations!$E$2=\"Orkney Health Board\",Calculations!$E$2=\"Orkney Islands Local Authority\"),$F133=1),0,IF(AND(OR(Calculations!$E$2=\"Shetland Health Board\",Calculations!$E$2=\"Western Isles Health Board\",Calculations!$E$2=\"Shetland Islands Local Authority\",Calculations!$E$2=\"Eilean Siar Local Authority\"),OR($F133=1,$F133=5)),0,new_yllv2(VALUE(LEFT(Options!$B$24,2)),$C133,$D133,$E133,$F133,2016,$I133+$J133,1,$H133,$G133*$H133,Options!B8)))","v":4296.2680626891997},{"$f":"IF(AND(OR(Calculations!$E$2=\"Orkney Health Board\",Calculations!$E$2=\"Orkney Islands Local Authority\"),$F133=1),0,IF(AND(OR(Calculations!$E$2=\"Shetland Health Board\",Calculations!$E$2=\"Western Isles Health Board\",Calculations!$E$2=\"Shetland Islands Local Authority\",Calculations!$E$2=\"Eilean Siar Local Authority\"),OR($F133=1,$F133=5)),0,hosp_count(VALUE(LEFT(Options!$B$24,2)),$C133,$E133,$F133,2016,$I133,1,$H133,$G133*$H133, Options!B8)))","v":8693.8800865902995},{"$f":"IF(AND(OR(Calculations!$E$2=\"Orkney Health Board\",Calculations!$E$2=\"Orkney Islands Local Authority\"),$F133=1),0,IF(AND(OR(Calculations!$E$2=\"Shetland Health Board\",Calculations!$E$2=\"Western Isles Health Board\",Calculations!$E$2=\"Shetland Islands Local Authority\",Calculations!$E$2=\"Eilean Siar Local Authority\"),OR($F133=1,$F133=5)),0,hosp_count(VALUE(LEFT(Options!$B$24,2)),$C133,$E133,$F133,2016,$I133+$J133,1,$H133,$G133*$H133, Options!B8)))","v":8657.9896857723998},{"$f":"IF(AND(OR(Calculations!$E$2=\"Orkney Health Board\",Calculations!$E$2=\"Orkney Islands Local Authority\"),$F133=1),0,IF(AND(OR(Calculations!$E$2=\"Shetland Health Board\",Calculations!$E$2=\"Western Isles Health Board\",Calculations!$E$2=\"Shetland Islands Local Authority\",Calculations!$E$2=\"Eilean Siar Local Authority\"),OR($F133=1,$F133=5)),0,prem_mort(VALUE(LEFT(Options!$B$24,2)),$C133,$E133,$F133,2016,$I133,1,$H133,$G133*$H133,Options!B8)))","v":0},{"$f":"IF(AND(OR(Calculations!$E$2=\"Orkney Health Board\",Calculations!$E$2=\"Orkney Islands Local Authority\"),$F133=1),0,IF(AND(OR(Calculations!$E$2=\"Shetland Health Board\",Calculations!$E$2=\"Western Isles Health Board\",Calculations!$E$2=\"Shetland Islands Local Authority\",Calculations!$E$2=\"Eilean Siar Local Authority\"),OR($F133=1,$F133=5)),0,prem_mort(VALUE(LEFT(Options!$B$24,2)),$C133,$E133,$F133,2016,$I133+$J133,1,$H133,$G133*$H133,Options!B8)))","v":0},6532.190599305568,6502.4624512441542,38082.677726142239,37909.362593216269,76712.962910000002,76396.273588391428,0,0,16330476.49826392,16256156.128110385,95206694.315355599,94773406.483040676,191782407.27500001,190990683.97097856,0,0,2500]
[null,"Male 85-89",86.630752999999999,91.420750000000012,"male",2,{"$f":"HLOOKUP(Calculations!$E$2,'Prevalence Rates'!$C$3:$BC$249,'Prevalence Rates'!$BD134,FALSE)","v":0.11184551050290638},{"$f":"HLOOKUP(Calculations!$E$2,'Population 2016'!$C$3:$BC$249,'Population 2016'!BD134,FALSE)","v":5568},0,{"$f":"HLOOKUP(Results!E$4,Targeting!$C$3:$F$249,Targeting!$G134,FALSE)","v":421},{"$f":"IF(AND(OR(Calculations!$E$2=\"Orkney Health Board\",Calculations!$E$2=\"Orkney Islands Local Authority\"),$F134=1),0,IF(AND(OR(Calculations!$E$2=\"Shetland Health Board\",Calculations!$E$2=\"Western Isles Health Board\",Calculations!$E$2=\"Shetland Islands Local Authority\",Calculations!$E$2=\"Eilean Siar Local Authority\"),OR($F134=1,$F134=5)),0,new_ci(VALUE(LEFT(Options!$B$24,2)),$C134,$E134,$F134,2016,$I134,1,$H134,$G134*$H134,Options!B8)))","v":516.01308327239997},{"$f":"IF(AND(OR(Calculations!$E$2=\"Orkney Health Board\",Calculations!$E$2=\"Orkney Islands Local Authority\"),$F134=1),0,IF(AND(OR(Calculations!$E$2=\"Shetland Health Board\",Calculations!$E$2=\"Western Isles Health Board\",Calculations!$E$2=\"Shetland Islands Local Authority\",Calculations!$E$2=\"Eilean Siar Local Authority\"),OR($F134=1,$F134=5)),0,new_ci(VALUE(LEFT(Options!$B$24,2)),$C134,$E134,$F134,2016,$I134+$J134,1,$H134,$G134*$H134,Options!B8)))","v":513.73316324539996},{"$f":"IF(AND(OR(Calculations!$E$2=\"Orkney Health Board\",Calculations!$E$2=\"Orkney Islands Local Authority\"),$F134=1),0,IF(AND(OR(Calculations!$E$2=\"Shetland Health Board\",Calculations!$E$2=\"Western Isles Health Board\",Calculations!$E$2=\"Shetland Islands Local Authority\",Calculations!$E$2=\"Eilean Siar Local Authority\"),OR($F134=1,$F134=5)),0,new_yllv2(VALUE(LEFT(Options!$B$24,2)),$C134,$D134,$E134,$F134,2016,$I134,1,$H134,$G134*$H134,Options!B8)))","v":1955.6880375631999},{"$f":"IF(AND(OR(Calculations!$E$2=\"Orkney Health Board\",Calculations!$E$2=\"Orkney Islands Local Authority\"),$F134=1),0,IF(AND(OR(Calculations!$E$2=\"Shetland Health Board\",Calculations!$E$2=\"Western Isles Health Board\",Calculations!$E$2=\"Shetland Islands Local Authority\",Calculations!$E$2=\"Eilean Siar Local Authority\"),OR($F134=1,$F134=5)),0,new_yllv2(VALUE(LEFT(Options!$B$24,2)),$C134,$D134,$E134,$F134,2016,$I134+$J134,1,$H134,$G134*$H134,Options!B8)))","v":1947.0471475006},{"$f":"IF(AND(OR(Calculations!$E$2=\"Orkney Health Board\",Calculations!$E$2=\"Orkney Islands Local Authority\"),$F134=1),0,IF(AND(OR(Calculations!$E$2=\"Shetland Health Board\",Calculations!$E$2=\"Western Isles Health Board\",Calculations!$E$2=\"Shetland Islands Local Authority\",Calculations!$E$2=\"Eilean Siar Local Authority\"),OR($F134=1,$F134=5)),0,hosp_count(VALUE(LEFT(Options!$B$24,2)),$C134,$E134,$F134,2016,$I134,1,$H134,$G134*$H134, Options!B8)))","v":5070.8489366592003},{"$f":"IF(AND(OR(Calculations!$E$2=\"Orkney Health Board\",Calculations!$E$2=\"Orkney Islands Local Authority\"),$F134=1),0,IF(AND(OR(Calculations!$E$2=\"Shetland Health Board\",Calculations!$E$2=\"Western Isles Health Board\",Calculations!$E$2=\"Shetland Islands Local Authority\",Calculations!$E$2=\"Eilean Siar Local Authority\"),OR($F134=1,$F134=5)),0,hosp_count(VALUE(LEFT(Options!$B$24,2)),$C134,$E134,$F134,2016,$I134+$J134,1,$H134,$G134*$H134, Options!B8)))","v":5049.9178260913004},{"$f":"IF(AND(OR(Calculations!$E$2=\"Orkney Health Board\",Calculations!$E$2=\"Orkney Islands Local Authority\"),$F134=1),0,IF(AND(OR(Calculations!$E$2=\"Shetland Health Board\",Calculations!$E$2=\"Western Isles Health Board\",Calculations!$E$2=\"Shetland Islands Local Authority\",Calculations!$E$2=\"Eilean Siar Local Authority\"),OR($F134=1,$F134=5)),0,prem_mort(VALUE(LEFT(Options!$B$24,2)),$C134,$E134,$F134,2016,$I134,1,$H134,$G134*$H134,Options!B8)))","v":0},{"$f":"IF(AND(OR(Calculations!$E$2=\"Orkney Health Board\",Calculations!$E$2=\"Orkney Islands Local Authority\"),$F134=1),0,IF(AND(OR(Calculations!$E$2=\"Shetland Health Board\",Calculations!$E$2=\"Western Isles Health Board\",Calculations!$E$2=\"Shetland Islands Local Authority\",Calculations!$E$2=\"Eilean Siar Local Authority\"),OR($F134=1,$F134=5)),0,prem_mort(VALUE(LEFT(Options!$B$24,2)),$C134,$E134,$F134,2016,$I134+$J134,1,$H134,$G134*$H134,Options!B8)))","v":0},9267.4763518749987,9226.5295123096257,35123.707571178158,34968.519172065375,91071.281190000009,90695.363255950069,0,0,13901214.527812498,13839794.268464439,52685561.356767237,52452778.758098058,136606921.78500003,136043044.88392511,0,0,1500]
[null,"Male 90+",92.215477000000007,95.515479999999997,"male",2,{"$f":"HLOOKUP(Calculations!$E$2,'Prevalence Rates'!$C$3:$BC$249,'Prevalence Rates'!$BD135,FALSE)","v":0.11184551050290638},{"$f":"HLOOKUP(Calculations!$E$2,'Population 2016'!$C$3:$BC$249,'Population 2016'!BD135,FALSE)","v":2286},0,{"$f":"HLOOKUP(Results!E$4,Targeting!$C$3:$F$249,Targeting!$G135,FALSE)","v":173},{"$f":"IF(AND(OR(Calculations!$E$2=\"Orkney Health Board\",Calculations!$E$2=\"Orkney Islands Local Authority\"),$F135=1),0,IF(AND(OR(Calculations!$E$2=\"Shetland Health Board\",Calculations!$E$2=\"Western Isles Health Board\",Calculations!$E$2=\"Shetland Islands Local Authority\",Calculations!$E$2=\"Eilean Siar Local Authority\"),OR($F135=1,$F135=5)),0,new_ci(VALUE(LEFT(Options!$B$24,2)),$C135,$E135,$F135,2016,$I135,1,$H135,$G135*$H135,Options!B8)))","v":314.73867504719999},{"$f":"IF(AND(OR(Calculations!$E$2=\"Orkney Health Board\",Calculations!$E$2=\"Orkney Islands Local Authority\"),$F135=1),0,IF(AND(OR(Calculations!$E$2=\"Shetland Health Board\",Calculations!$E$2=\"Western Isles Health Board\",Calculations!$E$2=\"Shetland Islands Local Authority\",Calculations!$E$2=\"Eilean Siar Local Authority\"),OR($F135=1,$F135=5)),0,new_ci(VALUE(LEFT(Options!$B$24,2)),$C135,$E135,$F135,2016,$I135+$J135,1,$H135,$G135*$H135,Options!B8)))","v":313.41569757939999},{"$f":"IF(AND(OR(Calculations!$E$2=\"Orkney Health Board\",Calculations!$E$2=\"Orkney Islands Local Authority\"),$F135=1),0,IF(AND(OR(Calculations!$E$2=\"Shetland Health Board\",Calculations!$E$2=\"Western Isles Health Board\",Calculations!$E$2=\"Shetland Islands Local Authority\",Calculations!$E$2=\"Eilean Siar Local Authority\"),OR($F135=1,$F135=5)),0,new_yllv2(VALUE(LEFT(Options!$B$24,2)),$C135,$D135,$E135,$F135,2016,$I135,1,$H135,$G135*$H135,Options!B8)))","v":723.89989682459998},{"$f":"IF(AND(OR(Calculations!$E$2=\"Orkney Health Board\",Calculations!$E$2=\"Orkney Islands Local Authority\"),$F135=1),0,IF(AND(OR(Calculations!$E$2=\"Shetland Health Board\",Calculations!$E$2=\"Western Isles Health Board\",Calculations!$E$2=\"Shetland Islands Local Authority\",Calculations!$E$2=\"Eilean Siar Local Authority\"),OR($F135=1,$F135=5)),0,new_yllv2(VALUE(LEFT(Options!$B$24,2)),$C135,$D135,$E135,$F135,2016,$I135+$J135,1,$H135,$G135*$H135,Options!B8)))","v":720.85704467970004},{"$f":"IF(AND(OR(Calculations!$E$2=\"Orkney Health Board\",Calculations!$E$2=\"Orkney Islands Local Authority\"),$F135=1),0,IF(AND(OR(Calculations!$E$2=\"Shetland Health Board\",Calculations!$E$2=\"Western Isles Health Board\",Calculations!$E$2=\"Shetland Islands Local Authority\",Calculations!$E$2=\"Eilean Siar Local Authority\"),OR($F135=1,$F135=5)),0,hosp_count(VALUE(LEFT(Options!$B$24,2)),$C135,$E135,$F135,2016,$I135,1,$H135,$G135*$H135, Options!B8)))","v":2538.3308308974001},{"$f":"IF(AND(OR(Calculations!$E$2=\"Orkney Health Board\",Calculations!$E$2=\"Orkney Islands Local Authority\"),$F135=1),0,IF(AND(OR(Calculations!$E$2=\"Shetland Health Board\",Calculations!$E$2=\"Western Isles Health Board\",Calculations!$E$2=\"Shetland Islands Local Authority\",Calculations!$E$2=\"Eilean Siar Local Authority\"),OR($F135=1,$F135=5)),0,hosp_count(VALUE(LEFT(Options!$B$24,2)),$C135,$E135,$F135,2016,$I135+$J135,1,$H135,$G135*$H135, Options!B8)))","v":2527.8439380189998},{"$f":"IF(AND(OR(Calculations!$E$2=\"Orkney Health Board\",Calculations!$E$2=\"Orkney Islands Local Authority\"),$F135=1),0,IF(AND(OR(Calculations!$E$2=\"Shetland Health Board\",Calculations!$E$2=\"Western Isles Health Board\",Calculations!$E$2=\"Shetland Islands Local Authority\",Calculations!$E$2=\"Eilean Siar Local Authority\"),OR($F135=1,$F135=5)),0,prem_mort(VALUE(LEFT(Options!$B$24,2)),$C135,$E135,$F135,2016,$I135,1,$H135,$G135*$H135,Options!B8)))","v":0},{"$f":"IF(AND(OR(Calculations!$E$2=\"Orkney Health Board\",Calculations!$E$2=\"Orkney Islands Local Authority\"),$F135=1),0,IF(AND(OR(Calculations!$E$2=\"Shetland Health Board\",Calculations!$E$2=\"Western Isles Health Board\",Calculations!$E$2=\"Shetland Islands Local Authority\",Calculations!$E$2=\"Eilean Siar Local Authority\"),OR($F135=1,$F135=5)),0,prem_mort(VALUE(LEFT(Options!$B$24,2)),$C135,$E135,$F135,2016,$I135+$J135,1,$H135,$G135*$H135,Options!B8)))","v":0},13768.096021312336,13710.222991224846,31666.662153307083,31533.554010485565,111038.09409,110579.34986959754,0,0,13768096.021312336,13710222.991224846,31666662.153307084,31533554.010485563,111038094.09,110579349.86959754,0,0,1000]
[null,"Female 0-4",2.0384007,81.468401,"female",3,{"$f":"HLOOKUP(Calculations!$E$2,'Prevalence Rates'!$C$3:$BC$249,'Prevalence Rates'!$BD136,FALSE)","v":0},{"$f":"HLOOKUP(Calculations!$E$2,'Population 2016'!$C$3:$BC$249,'Population 2016'!BD136,FALSE)","v":0},0,{"$f":"HLOOKUP(Results!E$4,Targeting!$C$3:$F$249,Targeting!$G136,FALSE)","v":0},{"$f":"IF(AND(OR(Calculations!$E$2=\"Orkney Health Board\",Calculations!$E$2=\"Orkney Islands Local Authority\"),$F136=1),0,IF(AND(OR(Calculations!$E$2=\"Shetland Health Board\",Calculations!$E$2=\"Western Isles Health Board\",Calculations!$E$2=\"Shetland Islands Local Authority\",Calculations!$E$2=\"Eilean Siar Local Authority\"),OR($F136=1,$F136=5)),0,new_ci(VALUE(LEFT(Options!$B$24,2)),$C136,$E136,$F136,2016,$I136,1,$H136,$G136*$H136,Options!B8)))","v":{"$error":"#VALUE!"}},{"$f":"IF(AND(OR(Calculations!$E$2=\"Orkney Health Board\",Calculations!$E$2=\"Orkney Islands Local Authority\"),$F136=1),0,IF(AND(OR(Calculations!$E$2=\"Shetland Health Board\",Calculations!$E$2=\"Western Isles Health Board\",Calculations!$E$2=\"Shetland Islands Local Authority\",Calculations!$E$2=\"Eilean Siar Local Authority\"),OR($F136=1,$F136=5)),0,new_ci(VALUE(LEFT(Options!$B$24,2)),$C136,$E136,$F136,2016,$I136+$J136,1,$H136,$G136*$H136,Options!B8)))","v":{"$error":"#VALUE!"}},{"$f":"IF(AND(OR(Calculations!$E$2=\"Orkney Health Board\",Calculations!$E$2=\"Orkney Islands Local Authority\"),$F136=1),0,IF(AND(OR(Calculations!$E$2=\"Shetland Health Board\",Calculations!$E$2=\"Western Isles Health Board\",Calculations!$E$2=\"Shetland Islands Local Authority\",Calculations!$E$2=\"Eilean Siar Local Authority\"),OR($F136=1,$F136=5)),0,new_yllv2(VALUE(LEFT(Options!$B$24,2)),$C136,$D136,$E136,$F136,2016,$I136,1,$H136,$G136*$H136,Options!B8)))","v":{"$error":"#VALUE!"}},{"$f":"IF(AND(OR(Calculations!$E$2=\"Orkney Health Board\",Calculations!$E$2=\"Orkney Islands Local Authority\"),$F136=1),0,IF(AND(OR(Calculations!$E$2=\"Shetland Health Board\",Calculations!$E$2=\"Western Isles Health Board\",Calculations!$E$2=\"Shetland Islands Local Authority\",Calculations!$E$2=\"Eilean Siar Local Authority\"),OR($F136=1,$F136=5)),0,new_yllv2(VALUE(LEFT(Options!$B$24,2)),$C136,$D136,$E136,$F136,2016,$I136+$J136,1,$H136,$G136*$H136,Options!B8)))","v":{"$error":"#VALUE!"}},{"$f":"IF(AND(OR(Calculations!$E$2=\"Orkney Health Board\",Calculations!$E$2=\"Orkney Islands Local Authority\"),$F136=1),0,IF(AND(OR(Calculations!$E$2=\"Shetland Health Board\",Calculations!$E$2=\"Western Isles Health Board\",Calculations!$E$2=\"Shetland Islands Local Authority\",Calculations!$E$2=\"Eilean Siar Local Authority\"),OR($F136=1,$F136=5)),0,hosp_count(VALUE(LEFT(Options!$B$24,2)),$C136,$E136,$F136,2016,$I136,1,$H136,$G136*$H136, Options!B8)))","v":{"$error":"#VALUE!"}},{"$f":"IF(AND(OR(Calculations!$E$2=\"Orkney Health Board\",Calculations!$E$2=\"Orkney Islands Local Authority\"),$F136=1),0,IF(AND(OR(Calculations!$E$2=\"Shetland Health Board\",Calculations!$E$2=\"Western Isles Health Board\",Calculations!$E$2=\"Shetland Islands Local Authority\",Calculations!$E$2=\"Eilean Siar Local Authority\"),OR($F136=1,$F136=5)),0,hosp_count(VALUE(LEFT(Options!$B$24,2)),$C136,$E136,$F136,2016,$I136+$J136,1,$H136,$G136*$H136, Options!B8)))","v":{"$error":"#VALUE!"}},{"$f":"IF(AND(OR(Calculations!$E$2=\"Orkney Health Board\",Calculations!$E$2=\"Orkney Islands Local Authority\"),$F136=1),0,IF(AND(OR(Calculations!$E$2=\"Shetland Health Board\",Calculations!$E$2=\"Western Isles Health Board\",Calculations!$E$2=\"Shetland Islands Local Authority\",Calculations!$E$2=\"Eilean Siar Local Authority\"),OR($F136=1,$F136=5)),0,prem_mort(VALUE(LEFT(Options!$B$24,2)),$C136,$E136,$F136,2016,$I136,1,$H136,$G136*$H136,Options!B8)))","v":{"$error":"#VALUE!"}},{"$f":"IF(AND(OR(Calculations!$E$2=\"Orkney Health Board\",Calculations!$E$2=\"Orkney Islands Local Authority\"),$F136=1),0,IF(AND(OR(Calculations!$E$2=\"Shetland Health Board\",Calculations!$E$2=\"Western Isles Health Board\",Calculations!$E$2=\"Shetland Islands Local Authority\",Calculations!$E$2=\"Eilean Siar Local Authority\"),OR($F136=1,$F136=5)),0,prem_mort(VALUE(LEFT(Options!$B$24,2)),$C136,$E136,$F136,2016,$I136+$J136,1,$H136,$G136*$H136,Options!B8)))","v":{"$error":"#VALUE!"}},{"$error":"#VALUE!"},{"$error":"#VALUE!"},{"$error":"#VALUE!"},{"$error":"#VALUE!"},{"$error":"#VALUE!"},{"$error":"#VALUE!"},{"$error":"#VALUE!"},{"$error":"#VALUE!"},{"$error":"#VALUE!"},{"$error":"#VALUE!"},{"$error":"#VALUE!"},{"$error":"#VALUE!"},{"$error":"#VALUE!"},{"$error":"#VALUE!"},{"$error":"#VALUE!"},{"$error":"#VALUE!"},5000]
[null,"Female 5-9",6.9792794999999996,81.439279999999997,"female",3,{"$f":"HLOOKUP(Calculations!$E$2,'Prevalence Rates'!$C$3:$BC$249,'Prevalence Rates'!$BD137,FALSE)","v":0},{"$f":"HLOOKUP(Calculations!$E$2,'Population 2016'!$C$3:$BC$249,'Population 2016'!BD137,FALSE)","v":0},0,{"$f":"HLOOKUP(Results!E$4,Targeting!$C$3:$F$249,Targeting!$G137,FALSE)","v":0},{"$f":"IF(AND(OR(Calculations!$E$2=\"Orkney Health Board\",Calculations!$E$2=\"Orkney Islands Local Authority\"),$F137=1),0,IF(AND(OR(Calculations!$E$2=\"Shetland Health Board\",Calculations!$E$2=\"Western Isles Health Board\",Calculations!$E$2=\"Shetland Islands Local Authority\",Calculations!$E$2=\"Eilean Siar Local Authority\"),OR($F137=1,$F137=5)),0,new_ci(VALUE(LEFT(Options!$B$24,2)),$C137,$E137,$F137,2016,$I137,1,$H137,$G137*$H137,Options!B8)))","v":{"$error":"#VALUE!"}},{"$f":"IF(AND(OR(Calculations!$E$2=\"Orkney Health Board\",Calculations!$E$2=\"Orkney Islands Local Authority\"),$F137=1),0,IF(AND(OR(Calculations!$E$2=\"Shetland Health Board\",Calculations!$E$2=\"Western Isles Health Board\",Calculations!$E$2=\"Shetland Islands Local Authority\",Calculations!$E$2=\"Eilean Siar Local Authority\"),OR($F137=1,$F137=5)),0,new_ci(VALUE(LEFT(Options!$B$24,2)),$C137,$E137,$F137,2016,$I137+$J137,1,$H137,$G137*$H137,Options!B8)))","v":{"$error":"#VALUE!"}},{"$f":"IF(AND(OR(Calculations!$E$2=\"Orkney Health Board\",Calculations!$E$2=\"Orkney Islands Local Authority\"),$F137=1),0,IF(AND(OR(Calculations!$E$2=\"Shetland Health Board\",Calculations!$E$2=\"Western Isles Health Board\",Calculations!$E$2=\"Shetland Islands Local Authority\",Calculations!$E$2=\"Eilean Siar Local Authority\"),OR($F137=1,$F137=5)),0,new_yllv2(VALUE(LEFT(Options!$B$24,2)),$C137,$D137,$E137,$F137,2016,$I137,1,$H137,$G137*$H137,Options!B8)))","v":{"$error":"#VALUE!"}},{"$f":"IF(AND(OR(Calculations!$E$2=\"Orkney Health Board\",Calculations!$E$2=\"Orkney Islands Local Authority\"),$F137=1),0,IF(AND(OR(Calculations!$E$2=\"Shetland Health Board\",Calculations!$E$2=\"Western Isles Health Board\",Calculations!$E$2=\"Shetland Islands Local Authority\",Calculations!$E$2=\"Eilean Siar Local Authority\"),OR($F137=1,$F137=5)),0,new_yllv2(VALUE(LEFT(Options!$B$24,2)),$C137,$D137,$E137,$F137,2016,$I137+$J137,1,$H137,$G137*$H137,Options!B8)))","v":{"$error":"#VALUE!"}},{"$f":"IF(AND(OR(Calculations!$E$2=\"Orkney Health Board\",Calculations!$E$2=\"Orkney Islands Local Authority\"),$F137=1),0,IF(AND(OR(Calculations!$E$2=\"Shetland Health Board\",Calculations!$E$2=\"Western Isles Health Board\",Calculations!$E$2=\"Shetland Islands Local Authority\",Calculations!$E$2=\"Eilean Siar Local Authority\"),OR($F137=1,$F137=5)),0,hosp_count(VALUE(LEFT(Options!$B$24,2)),$C137,$E137,$F137,2016,$I137,1,$H137,$G137*$H137, Options!B8)))","v":{"$error":"#VALUE!"}},{"$f":"IF(AND(OR(Calculations!$E$2=\"Orkney Health Board\",Calculations!$E$2=\"Orkney Islands Local Authority\"),$F137=1),0,IF(AND(OR(Calculations!$E$2=\"Shetland Health Board\",Calculations!$E$2=\"Western Isles Health Board\",Calculations!$E$2=\"Shetland Islands Local Authority\",Calculations!$E$2=\"Eilean Siar Local Authority\"),OR($F137=1,$F137=5)),0,hosp_count(VALUE(LEFT(Options!$B$24,2)),$C137,$E137,$F137,2016,$I137+$J137,1,$H137,$G137*$H137, Options!B8)))","v":{"$error":"#VALUE!"}},{"$f":"IF(AND(OR(Calculations!$E$2=\"Orkney Health Board\",Calculations!$E$2=\"Orkney Islands Local Authority\"),$F137=1),0,IF(AND(OR(Calculations!$E$2=\"Shetland Health Board\",Calculations!$E$2=\"Western Isles Health Board\",Calculations!$E$2=\"Shetland Islands Local Authority\",Calculations!$E$2=\"Eilean Siar Local Authority\"),OR($F137=1,$F137=5)),0,prem_mort(VALUE(LEFT(Options!$B$24,2)),$C137,$E137,$F137,2016,$I137,1,$H137,$G137*$H137,Options!B8)))","v":{"$error":"#VALUE!"}},{"$f":"IF(AND(OR(Calculations!$E$2=\"Orkney Health Board\",Calculations!$E$2=\"Orkney Islands Local Authority\"),$F137=1),0,IF(AND(OR(Calculations!$E$2=\"Shetland Health Board\",Calculations!$E$2=\"Western Isles Health Board\",Calculations!$E$2=\"Shetland Islands Local Authority\",Calculations!$E$2=\"Eilean Siar Local Authority\"),OR($F137=1,$F137=5)),0,prem_mort(VALUE(LEFT(Options!$B$24,2)),$C137,$E137,$F137,2016,$I137+$J137,1,$H137,$G137*$H137,Options!B8)))","v":{"$error":"#VALUE!"}},{"$error":"#VALUE!"},{"$error":"#VALUE!"},{"$error":"#VALUE!"},{"$error":"#VALUE!"},{"$error":"#VALUE!"},{"$error":"#VALUE!"},{"$error":"#VALUE!"},{"$error":"#VALUE!"},{"$error":"#VALUE!"},{"$error":"#VALUE!"},{"$error":"#VALUE!"},{"$error":"#VALUE!"},{"$error":"#VALUE!"},{"$error":"#VALUE!"},{"$error":"#VALUE!"},{"$error":"#VALUE!"},5500]
[null,"Female 10-15",12.478312000000001,81.948309999999992,"female",3,{"$f":"HLOOKUP(Calculations!$E$2,'Prevalence Rates'!$C$3:$BC$249,'Prevalence Rates'!$BD138,FALSE)","v":0},{"$f":"HLOOKUP(Calculations!$E$2,'Population 2016'!$C$3:$BC$249,'Population 2016'!BD138,FALSE)","v":0},0,{"$f":"HLOOKUP(Results!E$4,Targeting!$C$3:$F$249,Targeting!$G138,FALSE)","v":0},{"$f":"IF(AND(OR(Calculations!$E$2=\"Orkney Health Board\",Calculations!$E$2=\"Orkney Islands Local Authority\"),$F138=1),0,IF(AND(OR(Calculations!$E$2=\"Shetland Health Board\",Calculations!$E$2=\"Western Isles Health Board\",Calculations!$E$2=\"Shetland Islands Local Authority\",Calculations!$E$2=\"Eilean Siar Local Authority\"),OR($F138=1,$F138=5)),0,new_ci(VALUE(LEFT(Options!$B$24,2)),$C138,$E138,$F138,2016,$I138,1,$H138,$G138*$H138,Options!B8)))","v":{"$error":"#VALUE!"}},{"$f":"IF(AND(OR(Calculations!$E$2=\"Orkney Health Board\",Calculations!$E$2=\"Orkney Islands Local Authority\"),$F138=1),0,IF(AND(OR(Calculations!$E$2=\"Shetland Health Board\",Calculations!$E$2=\"Western Isles Health Board\",Calculations!$E$2=\"Shetland Islands Local Authority\",Calculations!$E$2=\"Eilean Siar Local Authority\"),OR($F138=1,$F138=5)),0,new_ci(VALUE(LEFT(Options!$B$24,2)),$C138,$E138,$F138,2016,$I138+$J138,1,$H138,$G138*$H138,Options!B8)))","v":{"$error":"#VALUE!"}},{"$f":"IF(AND(OR(Calculations!$E$2=\"Orkney Health Board\",Calculations!$E$2=\"Orkney Islands Local Authority\"),$F138=1),0,IF(AND(OR(Calculations!$E$2=\"Shetland Health Board\",Calculations!$E$2=\"Western Isles Health Board\",Calculations!$E$2=\"Shetland Islands Local Authority\",Calculations!$E$2=\"Eilean Siar Local Authority\"),OR($F138=1,$F138=5)),0,new_yllv2(VALUE(LEFT(Options!$B$24,2)),$C138,$D138,$E138,$F138,2016,$I138,1,$H138,$G138*$H138,Options!B8)))","v":{"$error":"#VALUE!"}},{"$f":"IF(AND(OR(Calculations!$E$2=\"Orkney Health Board\",Calculations!$E$2=\"Orkney Islands Local Authority\"),$F138=1),0,IF(AND(OR(Calculations!$E$2=\"Shetland Health Board\",Calculations!$E$2=\"Western Isles Health Board\",Calculations!$E$2=\"Shetland Islands Local Authority\",Calculations!$E$2=\"Eilean Siar Local Authority\"),OR($F138=1,$F138=5)),0,new_yllv2(VALUE(LEFT(Options!$B$24,2)),$C138,$D138,$E138,$F138,2016,$I138+$J138,1,$H138,$G138*$H138,Options!B8)))","v":{"$error":"#VALUE!"}},{"$f":"IF(AND(OR(Calculations!$E$2=\"Orkney Health Board\",Calculations!$E$2=\"Orkney Islands Local Authority\"),$F138=1),0,IF(AND(OR(Calculations!$E$2=\"Shetland Health Board\",Calculations!$E$2=\"Western Isles Health Board\",Calculations!$E$2=\"Shetland Islands Local Authority\",Calculations!$E$2=\"Eilean Siar Local Authority\"),OR($F138=1,$F138=5)),0,hosp_count(VALUE(LEFT(Options!$B$24,2)),$C138,$E138,$F138,2016,$I138,1,$H138,$G138*$H138, Options!B8)))","v":{"$error":"#VALUE!"}},{"$f":"IF(AND(OR(Calculations!$E$2=\"Orkney Health Board\",Calculations!$E$2=\"Orkney Islands Local Authority\"),$F138=1),0,IF(AND(OR(Calculations!$E$2=\"Shetland Health Board\",Calculations!$E$2=\"Western Isles Health Board\",Calculations!$E$2=\"Shetland Islands Local Authority\",Calculations!$E$2=\"Eilean Siar Local Authority\"),OR($F138=1,$F138=5)),0,hosp_count(VALUE(LEFT(Options!$B$24,2)),$C138,$E138,$F138,2016,$I138+$J138,1,$H138,$G138*$H138, Options!B8)))","v":{"$error":"#VALUE!"}},{"$f":"IF(AND(OR(Calculations!$E$2=\"Orkney Health Board\",Calculations!$E$2=\"Orkney Islands Local Authority\"),$F138=1),0,IF(AND(OR(Calculations!$E$2=\"Shetland Health Board\",Calculations!$E$2=\"Western Isles Health Board\",Calculations!$E$2=\"Shetland Islands Local Authority\",Calculations!$E$2=\"Eilean Siar Local Authority\"),OR($F138=1,$F138=5)),0,prem_mort(VALUE(LEFT(Options!$B$24,2)),$C138,$E138,$F138,2016,$I138,1,$H138,$G138*$H138,Options!B8)))","v":{"$error":"#VALUE!"}},{"$f":"IF(AND(OR(Calculations!$E$2=\"Orkney Health Board\",Calculations!$E$2=\"Orkney Islands Local Authority\"),$F138=1),0,IF(AND(OR(Calculations!$E$2=\"Shetland Health Board\",Calculations!$E$2=\"Western Isles Health Board\",Calculations!$E$2=\"Shetland Islands Local Authority\",Calculations!$E$2=\"Eilean Siar Local Authority\"),OR($F138=1,$F138=5)),0,prem_mort(VALUE(LEFT(Options!$B$24,2)),$C138,$E138,$F138,2016,$I138+$J138,1,$H138,$G138*$H138,Options!B8)))","v":{"$error":"#VALUE!"}},{"$error":"#VALUE!"},{"$error":"#VALUE!"},{"$error":"#VALUE!"},{"$error":"#VALUE!"},{"$error":"#VALUE!"},{"$error":"#VALUE!"},{"$error":"#VALUE!"},{"$error":"#VALUE!"},{"$error":"#VALUE!"},{"$error":"#VALUE!"},{"$error":"#VALUE!"},{"$error":"#VALUE!"},{"$error":"#VALUE!"},{"$error":"#VALUE!"},{"$error":"#VALUE!"},{"$error":"#VALUE!"},6600]
["SIMD Q3","Female 16-19",17.570053000000001,81.100049999999996,"female",3,{"$f":"HLOOKUP(Calculations!$E$2,'Prevalence Rates'!$C$3:$BC$249,'Prevalence Rates'!$BD139,FALSE)","v":0.24049454541874948},{"$f":"HLOOKUP(Calculations!$E$2,'Population 2016'!$C$3:$BC$249,'Population 2016'!BD139,FALSE)","v":22864},0,{"$f":"HLOOKUP(Results!E$4,Targeting!$C$3:$F$249,Targeting!$G139,FALSE)","v":1729},{"$f":"IF(AND(OR(Calculations!$E$2=\"Orkney Health Board\",Calculations!$E$2=\"Orkney Islands Local Authority\"),$F139=1),0,IF(AND(OR(Calculations!$E$2=\"Shetland Health Board\",Calculations!$E$2=\"Western Isles Health Board\",Calculations!$E$2=\"Shetland Islands Local Authority\",Calculations!$E$2=\"Eilean Siar Local Authority\"),OR($F139=1,$F139=5)),0,new_ci(VALUE(LEFT(Options!$B$24,2)),$C139,$E139,$F139,2016,$I139,1,$H139,$G139*$H139,Options!B8)))","v":4.1158336309000001},{"$f":"IF(AND(OR(Calculations!$E$2=\"Orkney Health Board\",Calculations!$E$2=\"Orkney Islands Local Authority\"),$F139=1),0,IF(AND(OR(Calculations!$E$2=\"Shetland Health Board\",Calculations!$E$2=\"Western Isles Health Board\",Calculations!$E$2=\"Shetland Islands Local Authority\",Calculations!$E$2=\"Eilean Siar Local Authority\"),OR($F139=1,$F139=5)),0,new_ci(VALUE(LEFT(Options!$B$24,2)),$C139,$E139,$F139,2016,$I139+$J139,1,$H139,$G139*$H139,Options!B8)))","v":4.0987237927000004},{"$f":"IF(AND(OR(Calculations!$E$2=\"Orkney Health Board\",Calculations!$E$2=\"Orkney Islands Local Authority\"),$F139=1),0,IF(AND(OR(Calculations!$E$2=\"Shetland Health Board\",Calculations!$E$2=\"Western Isles Health Board\",Calculations!$E$2=\"Shetland Islands Local Authority\",Calculations!$E$2=\"Eilean Siar Local Authority\"),OR($F139=1,$F139=5)),0,new_yllv2(VALUE(LEFT(Options!$B$24,2)),$C139,$D139,$E139,$F139,2016,$I139,1,$H139,$G139*$H139,Options!B8)))","v":257.36306459270003},{"$f":"IF(AND(OR(Calculations!$E$2=\"Orkney Health Board\",Calculations!$E$2=\"Orkney Islands Local Authority\"),$F139=1),0,IF(AND(OR(Calculations!$E$2=\"Shetland Health Board\",Calculations!$E$2=\"Western Isles Health Board\",Calculations!$E$2=\"Shetland Islands Local Authority\",Calculations!$E$2=\"Eilean Siar Local Authority\"),OR($F139=1,$F139=5)),0,new_yllv2(VALUE(LEFT(Options!$B$24,2)),$C139,$D139,$E139,$F139,2016,$I139+$J139,1,$H139,$G139*$H139,Options!B8)))","v":256.29318646140001},{"$f":"IF(AND(OR(Calculations!$E$2=\"Orkney Health Board\",Calculations!$E$2=\"Orkney Islands Local Authority\"),$F139=1),0,IF(AND(OR(Calculations!$E$2=\"Shetland Health Board\",Calculations!$E$2=\"Western Isles Health Board\",Calculations!$E$2=\"Shetland Islands Local Authority\",Calculations!$E$2=\"Eilean Siar Local Authority\"),OR($F139=1,$F139=5)),0,hosp_count(VALUE(LEFT(Options!$B$24,2)),$C139,$E139,$F139,2016,$I139,1,$H139,$G139*$H139, Options!B8)))","v":2290.5686582223998},{"$f":"IF(AND(OR(Calculations!$E$2=\"Orkney Health Board\",Calculations!$E$2=\"Orkney Islands Local Authority\"),$F139=1),0,IF(AND(OR(Calculations!$E$2=\"Shetland Health Board\",Calculations!$E$2=\"Western Isles Health Board\",Calculations!$E$2=\"Shetland Islands Local Authority\",Calculations!$E$2=\"Eilean Siar Local Authority\"),OR($F139=1,$F139=5)),0,hosp_count(VALUE(LEFT(Options!$B$24,2)),$C139,$E139,$F139,2016,$I139+$J139,1,$H139,$G139*$H139, Options!B8)))","v":2281.3578010338001},{"$f":"IF(AND(OR(Calculations!$E$2=\"Orkney Health Board\",Calculations!$E$2=\"Orkney Islands Local Authority\"),$F139=1),0,IF(AND(OR(Calculations!$E$2=\"Shetland Health Board\",Calculations!$E$2=\"Western Isles Health Board\",Calculations!$E$2=\"Shetland Islands Local Authority\",Calculations!$E$2=\"Eilean Siar Local Authority\"),OR($F139=1,$F139=5)),0,prem_mort(VALUE(LEFT(Options!$B$24,2)),$C139,$E139,$F139,2016,$I139,1,$H139,$G139*$H139,Options!B8)))","v":4.1158336309000001},{"$f":"IF(AND(OR(Calculations!$E$2=\"Orkney Health Board\",Calculations!$E$2=\"Orkney Islands Local Authority\"),$F139=1),0,IF(AND(OR(Calculations!$E$2=\"Shetland Health Board\",Calculations!$E$2=\"Western Isles Health Board\",Calculations!$E$2=\"Shetland Islands Local Authority\",Calculations!$E$2=\"Eilean Siar Local Authority\"),OR($F139=1,$F139=5)),0,prem_mort(VALUE(LEFT(Options!$B$24,2)),$C139,$E139,$F139,2016,$I139+$J139,1,$H139,$G139*$H139,Options!B8)))","v":4.0987237927000004},18.001371723670399,17.926538631473061,1125.6257198770995,1120.9464068465711,10018.232409999999,9977.9469954242486,18.001371723670399,17.926538631473061,79206.035584149751,78876.769978481476,4952753.1674592383,4932164.1901249131,44080222.603999995,43902966.779866695,79206.035584149751,78876.769978481476,4400]
[null,"Female 20-24",22.077057,81.667060000000006,"female",3,{"$f":"HLOOKUP(Calculations!$E$2,'Prevalence Rates'!$C$3:$BC$249,'Prevalence Rates'!$BD140,FALSE)","v":0.24049454541874948},{"$f":"HLOOKUP(Calculations!$E$2,'Population 2016'!$C$3:$BC$249,'Population 2016'!BD140,FALSE)","v":34910},0,{"$f":"HLOOKUP(Results!E$4,Targeting!$C$3:$F$249,Targeting!$G140,FALSE)","v":2639},{"$f":"IF(AND(OR(Calculations!$E$2=\"Orkney Health Board\",Calculations!$E$2=\"Orkney Islands Local Authority\"),$F140=1),0,IF(AND(OR(Calculations!$E$2=\"Shetland Health Board\",Calculations!$E$2=\"Western Isles Health Board\",Calculations!$E$2=\"Shetland Islands Local Authority\",Calculations!$E$2=\"Eilean Siar Local Authority\"),OR($F140=1,$F140=5)),0,new_ci(VALUE(LEFT(Options!$B$24,2)),$C140,$E140,$F140,2016,$I140,1,$H140,$G140*$H140,Options!B8)))","v":9.2197518951999999},{"$f":"IF(AND(OR(Calculations!$E$2=\"Orkney Health Board\",Calculations!$E$2=\"Orkney Islands Local Authority\"),$F140=1),0,IF(AND(OR(Calculations!$E$2=\"Shetland Health Board\",Calculations!$E$2=\"Western Isles Health Board\",Calculations!$E$2=\"Shetland Islands Local Authority\",Calculations!$E$2=\"Eilean Siar Local Authority\"),OR($F140=1,$F140=5)),0,new_ci(VALUE(LEFT(Options!$B$24,2)),$C140,$E140,$F140,2016,$I140+$J140,1,$H140,$G140*$H140,Options!B8)))","v":9.1814407404999994},{"$f":"IF(AND(OR(Calculations!$E$2=\"Orkney Health Board\",Calculations!$E$2=\"Orkney Islands Local Authority\"),$F140=1),0,IF(AND(OR(Calculations!$E$2=\"Shetland Health Board\",Calculations!$E$2=\"Western Isles Health Board\",Calculations!$E$2=\"Shetland Islands Local Authority\",Calculations!$E$2=\"Eilean Siar Local Authority\"),OR($F140=1,$F140=5)),0,new_yllv2(VALUE(LEFT(Options!$B$24,2)),$C140,$D140,$E140,$F140,2016,$I140,1,$H140,$G140*$H140,Options!B8)))","v":540.18529119899995},{"$f":"IF(AND(OR(Calculations!$E$2=\"Orkney Health Board\",Calculations!$E$2=\"Orkney Islands Local Authority\"),$F140=1),0,IF(AND(OR(Calculations!$E$2=\"Shetland Health Board\",Calculations!$E$2=\"Western Isles Health Board\",Calculations!$E$2=\"Shetland Islands Local Authority\",Calculations!$E$2=\"Eilean Siar Local Authority\"),OR($F140=1,$F140=5)),0,new_yllv2(VALUE(LEFT(Options!$B$24,2)),$C140,$D140,$E140,$F140,2016,$I140+$J140,1,$H140,$G140*$H140,Options!B8)))","v":537.94064053019997},{"$f":"IF(AND(OR(Calculations!$E$2=\"Orkney Health Board\",Calculations!$E$2=\"Orkney Islands Local Authority\"),$F140=1),0,IF(AND(OR(Calculations!$E$2=\"Shetland Health Board\",Calculations!$E$2=\"Western Isles Health Board\",Calculations!$E$2=\"Shetland Islands Local Authority\",Calculations!$E$2=\"Eilean Siar Local Authority\"),OR($F140=1,$F140=5)),0,hosp_count(VALUE(LEFT(Options!$B$24,2)),$C140,$E140,$F140,2016,$I140,1,$H140,$G140*$H140, Options!B8)))","v":3917.2018699179998},{"$f":"IF(AND(OR(Calculations!$E$2=\"Orkney Health Board\",Calculations!$E$2=\"Orkney Islands Local Authority\"),$F140=1),0,IF(AND(OR(Calculations!$E$2=\"Shetland Health Board\",Calculations!$E$2=\"Western Isles Health Board\",Calculations!$E$2=\"Shetland Islands Local Authority\",Calculations!$E$2=\"Eilean Siar Local Authority\"),OR($F140=1,$F140=5)),0,hosp_count(VALUE(LEFT(Options!$B$24,2)),$C140,$E140,$F140,2016,$I140+$J140,1,$H140,$G140*$H140, Options!B8)))","v":3901.4555362850001},{"$f":"IF(AND(OR(Calculations!$E$2=\"Orkney Health Board\",Calculations!$E$2=\"Orkney Islands Local Authority\"),$F140=1),0,IF(AND(OR(Calculations!$E$2=\"Shetland Health Board\",Calculations!$E$2=\"Western Isles Health Board\",Calculations!$E$2=\"Shetland Islands Local Authority\",Calculations!$E$2=\"Eilean Siar Local Authority\"),OR($F140=1,$F140=5)),0,prem_mort(VALUE(LEFT(Options!$B$24,2)),$C140,$E140,$F140,2016,$I140,1,$H140,$G140*$H140,Options!B8)))","v":9.2197518951999999},{"$f":"IF(AND(OR(Calculations!$E$2=\"Orkney Health Board\",Calculations!$E$2=\"Orkney Islands Local Authority\"),$F140=1),0,IF(AND(OR(Calculations!$E$2=\"Shetland Health Board\",Calculations!$E$2=\"Western Isles Health Board\",Calculations!$E$2=\"Shetland Islands Local Authority\",Calculations!$E$2=\"Eilean Siar Local Authority\"),OR($F140=1,$F140=5)),0,prem_mort(VALUE(LEFT(Options!$B$24,2)),$C140,$E140,$F140,2016,$I140+$J140,1,$H140,$G140*$H140,Options!B8)))","v":9.1814407404999994},26.410059854482956,26.300317217129759,1547.365486104268,1540.935664652535,11220.858980000001,11175.753469736464,26.410059854482956,26.300317217129759,158460.35912689773,157801.90330277855,9284192.9166256078,9245613.9879152104,67325153.88000001,67054520.818418786,158460.35912689773,157801.90330277855,6000]
[null,"Female 25-29",26.975186999999998,81.645189999999999,"female",3,{"$f":"HLOOKUP(Calculations!$E$2,'Prevalence Rates'!$C$3:$BC$249,'Prevalence Rates'!$BD141,FALSE)","v":0.16210322946460032},{"$f":"HLOOKUP(Calculations!$E$2,'Population 2016'!$C$3:$BC$249,'Population 2016'!BD141,FALSE)","v":36432},0,{"$f":"HLOOKUP(Results!E$4,Targeting!$C$3:$F$249,Targeting!$G141,FALSE)","v":2755},{"$f":"IF(AND(OR(Calculations!$E$2=\"Orkney Health Board\",Calculations!$E$2=\"Orkney Islands Local Authority\"),$F141=1),0,IF(AND(OR(Calculations!$E$2=\"Shetland Health Board\",Calculations!$E$2=\"Western Isles Health Board\",Calculations!$E$2=\"Shetland Islands Local Authority\",Calculations!$E$2=\"Eilean Siar Local Authority\"),OR($F141=1,$F141=5)),0,new_ci(VALUE(LEFT(Options!$B$24,2)),$C141,$E141,$F141,2016,$I141,1,$H141,$G141*$H141,Options!B8)))","v":14.5932649093},{"$f":"IF(AND(OR(Calculations!$E$2=\"Orkney Health Board\",Calculations!$E$2=\"Orkney Islands Local Authority\"),$F141=1),0,IF(AND(OR(Calculations!$E$2=\"Shetland Health Board\",Calculations!$E$2=\"Western Isles Health Board\",Calculations!$E$2=\"Shetland Islands Local Authority\",Calculations!$E$2=\"Eilean Siar Local Authority\"),OR($F141=1,$F141=5)),0,new_ci(VALUE(LEFT(Options!$B$24,2)),$C141,$E141,$F141,2016,$I141+$J141,1,$H141,$G141*$H141,Options!B8)))","v":14.5306178623},{"$f":"IF(AND(OR(Calculations!$E$2=\"Orkney Health Board\",Calculations!$E$2=\"Orkney Islands Local Authority\"),$F141=1),0,IF(AND(OR(Calculations!$E$2=\"Shetland Health Board\",Calculations!$E$2=\"Western Isles Health Board\",Calculations!$E$2=\"Shetland Islands Local Authority\",Calculations!$E$2=\"Eilean Siar Local Authority\"),OR($F141=1,$F141=5)),0,new_yllv2(VALUE(LEFT(Options!$B$24,2)),$C141,$D141,$E141,$F141,2016,$I141,1,$H141,$G141*$H141,Options!B8)))","v":783.22057146190002},{"$f":"IF(AND(OR(Calculations!$E$2=\"Orkney Health Board\",Calculations!$E$2=\"Orkney Islands Local Authority\"),$F141=1),0,IF(AND(OR(Calculations!$E$2=\"Shetland Health Board\",Calculations!$E$2=\"Western Isles Health Board\",Calculations!$E$2=\"Shetland Islands Local Authority\",Calculations!$E$2=\"Eilean Siar Local Authority\"),OR($F141=1,$F141=5)),0,new_yllv2(VALUE(LEFT(Options!$B$24,2)),$C141,$D141,$E141,$F141,2016,$I141+$J141,1,$H141,$G141*$H141,Options!B8)))","v":779.85830426150005},{"$f":"IF(AND(OR(Calculations!$E$2=\"Orkney Health Board\",Calculations!$E$2=\"Orkney Islands Local Authority\"),$F141=1),0,IF(AND(OR(Calculations!$E$2=\"Shetland Health Board\",Calculations!$E$2=\"Western Isles Health Board\",Calculations!$E$2=\"Shetland Islands Local Authority\",Calculations!$E$2=\"Eilean Siar Local Authority\"),OR($F141=1,$F141=5)),0,hosp_count(VALUE(LEFT(Options!$B$24,2)),$C141,$E141,$F141,2016,$I141,1,$H141,$G141*$H141, Options!B8)))","v":4623.9893221104003},{"$f":"IF(AND(OR(Calculations!$E$2=\"Orkney Health Board\",Calculations!$E$2=\"Orkney Islands Local Authority\"),$F141=1),0,IF(AND(OR(Calculations!$E$2=\"Shetland Health Board\",Calculations!$E$2=\"Western Isles Health Board\",Calculations!$E$2=\"Shetland Islands Local Authority\",Calculations!$E$2=\"Eilean Siar Local Authority\"),OR($F141=1,$F141=5)),0,hosp_count(VALUE(LEFT(Options!$B$24,2)),$C141,$E141,$F141,2016,$I141+$J141,1,$H141,$G141*$H141, Options!B8)))","v":4605.2803553002996},{"$f":"IF(AND(OR(Calculations!$E$2=\"Orkney Health Board\",Calculations!$E$2=\"Orkney Islands Local Authority\"),$F141=1),0,IF(AND(OR(Calculations!$E$2=\"Shetland Health Board\",Calculations!$E$2=\"Western Isles Health Board\",Calculations!$E$2=\"Shetland Islands Local Authority\",Calculations!$E$2=\"Eilean Siar Local Authority\"),OR($F141=1,$F141=5)),0,prem_mort(VALUE(LEFT(Options!$B$24,2)),$C141,$E141,$F141,2016,$I141,1,$H141,$G141*$H141,Options!B8)))","v":14.5932649093},{"$f":"IF(AND(OR(Calculations!$E$2=\"Orkney Health Board\",Calculations!$E$2=\"Orkney Islands Local Authority\"),$F141=1),0,IF(AND(OR(Calculations!$E$2=\"Shetland Health Board\",Calculations!$E$2=\"Western Isles Health Board\",Calculations!$E$2=\"Shetland Islands Local Authority\",Calculations!$E$2=\"Eilean Siar Local Authority\"),OR($F141=1,$F141=5)),0,prem_mort(VALUE(LEFT(Options!$B$24,2)),$C141,$E141,$F141,2016,$I141+$J141,1,$H141,$G141*$H141,Options!B8)))","v":14.5306178623},40.056172895531404,39.884216793752742,2149.8149194716184,2140.5860349733753,12692.109470000001,12640.756355128182,40.056172895531404,39.884216793752742,240337.03737318842,239305.30076251645,12898889.51682971,12843516.209840251,76152656.820000008,75844538.130769089,240337.03737318842,239305.30076251645,6000]
[null,"Female 30-34",31.999904999999998,81.799899999999994,"female",3,{"$f":"HLOOKUP(Calculations!$E$2,'Prevalence Rates'!$C$3:$BC$249,'Prevalence Rates'!$BD142,FALSE)","v":0.16210322946460032},{"$f":"HLOOKUP(Calculations!$E$2,'Population 2016'!$C$3:$BC$249,'Population 2016'!BD142,FALSE)","v":34795},0,{"$f":"HLOOKUP(Results!E$4,Targeting!$C$3:$F$249,Targeting!$G142,FALSE)","v":2631},{"$f":"IF(AND(OR(Calculations!$E$2=\"Orkney Health Board\",Calculations!$E$2=\"Orkney Islands Local Authority\"),$F142=1),0,IF(AND(OR(Calculations!$E$2=\"Shetland Health Board\",Calculations!$E$2=\"Western Isles Health Board\",Calculations!$E$2=\"Shetland Islands Local Authority\",Calculations!$E$2=\"Eilean Siar Local Authority\"),OR($F142=1,$F142=5)),0,new_ci(VALUE(LEFT(Options!$B$24,2)),$C142,$E142,$F142,2016,$I142,1,$H142,$G142*$H142,Options!B8)))","v":21.3670720822},{"$f":"IF(AND(OR(Calculations!$E$2=\"Orkney Health Board\",Calculations!$E$2=\"Orkney Islands Local Authority\"),$F142=1),0,IF(AND(OR(Calculations!$E$2=\"Shetland Health Board\",Calculations!$E$2=\"Western Isles Health Board\",Calculations!$E$2=\"Shetland Islands Local Authority\",Calculations!$E$2=\"Eilean Siar Local Authority\"),OR($F142=1,$F142=5)),0,new_ci(VALUE(LEFT(Options!$B$24,2)),$C142,$E142,$F142,2016,$I142+$J142,1,$H142,$G142*$H142,Options!B8)))","v":21.275368840300001},{"$f":"IF(AND(OR(Calculations!$E$2=\"Orkney Health Board\",Calculations!$E$2=\"Orkney Islands Local Authority\"),$F142=1),0,IF(AND(OR(Calculations!$E$2=\"Shetland Health Board\",Calculations!$E$2=\"Western Isles Health Board\",Calculations!$E$2=\"Shetland Islands Local Authority\",Calculations!$E$2=\"Eilean Siar Local Authority\"),OR($F142=1,$F142=5)),0,new_yllv2(VALUE(LEFT(Options!$B$24,2)),$C142,$D142,$E142,$F142,2016,$I142,1,$H142,$G142*$H142,Options!B8)))","v":1042.7130107759999},{"$f":"IF(AND(OR(Calculations!$E$2=\"Orkney Health Board\",Calculations!$E$2=\"Orkney Islands Local Authority\"),$F142=1),0,IF(AND(OR(Calculations!$E$2=\"Shetland Health Board\",Calculations!$E$2=\"Western Isles Health Board\",Calculations!$E$2=\"Shetland Islands Local Authority\",Calculations!$E$2=\"Eilean Siar Local Authority\"),OR($F142=1,$F142=5)),0,new_yllv2(VALUE(LEFT(Options!$B$24,2)),$C142,$D142,$E142,$F142,2016,$I142+$J142,1,$H142,$G142*$H142,Options!B8)))","v":1038.2378930298},{"$f":"IF(AND(OR(Calculations!$E$2=\"Orkney Health Board\",Calculations!$E$2=\"Orkney Islands Local Authority\"),$F142=1),0,IF(AND(OR(Calculations!$E$2=\"Shetland Health Board\",Calculations!$E$2=\"Western Isles Health Board\",Calculations!$E$2=\"Shetland Islands Local Authority\",Calculations!$E$2=\"Eilean Siar Local Authority\"),OR($F142=1,$F142=5)),0,hosp_count(VALUE(LEFT(Options!$B$24,2)),$C142,$E142,$F142,2016,$I142,1,$H142,$G142*$H142, Options!B8)))","v":5011.1939968795004},{"$f":"IF(AND(OR(Calculations!$E$2=\"Orkney Health Board\",Calculations!$E$2=\"Orkney Islands Local Authority\"),$F142=1),0,IF(AND(OR(Calculations!$E$2=\"Shetland Health Board\",Calculations!$E$2=\"Western Isles Health Board\",Calculations!$E$2=\"Shetland Islands Local Authority\",Calculations!$E$2=\"Eilean Siar Local Authority\"),OR($F142=1,$F142=5)),0,hosp_count(VALUE(LEFT(Options!$B$24,2)),$C142,$E142,$F142,2016,$I142+$J142,1,$H142,$G142*$H142, Options!B8)))","v":4990.9199888972998},{"$f":"IF(AND(OR(Calculations!$E$2=\"Orkney Health Board\",Calculations!$E$2=\"Orkney Islands Local Authority\"),$F142=1),0,IF(AND(OR(Calculations!$E$2=\"Shetland Health Board\",Calculations!$E$2=\"Western Isles Health Board\",Calculations!$E$2=\"Shetland Islands Local Authority\",Calculations!$E$2=\"Eilean Siar Local Authority\"),OR($F142=1,$F142=5)),0,prem_mort(VALUE(LEFT(Options!$B$24,2)),$C142,$E142,$F142,2016,$I142,1,$H142,$G142*$H142,Options!B8)))","v":21.3670720822},{"$f":"IF(AND(OR(Calculations!$E$2=\"Orkney Health Board\",Calculations!$E$2=\"Orkney Islands Local Authority\"),$F142=1),0,IF(AND(OR(Calculations!$E$2=\"Shetland Health Board\",Calculations!$E$2=\"Western Isles Health Board\",Calculations!$E$2=\"Shetland Islands Local Authority\",Calculations!$E$2=\"Eilean Siar Local Authority\"),OR($F142=1,$F142=5)),0,prem_mort(VALUE(LEFT(Options!$B$24,2)),$C142,$E142,$F142,2016,$I142+$J142,1,$H142,$G142*$H142,Options!B8)))","v":21.275368840300001},61.408455474062364,61.144902544331075,2996.7323200919668,2983.8709384388562,14402.052010000001,14343.784994675383,61.408455474062364,61.144902544331075,399154.96058140538,397441.86653815198,19478760.080597784,19395161.099852566,93613338.065000013,93234602.465389997,399154.96058140538,397441.86653815198,6500]
[null,"Female 35-39",36.918118,81.898120000000006,"female",3,{"$f":"HLOOKUP(Calculations!$E$2,'Prevalence Rates'!$C$3:$BC$249,'Prevalence Rates'!$BD143,FALSE)","v":0.20581155250957933},{"$f":"HLOOKUP(Calculations!$E$2,'Population 2016'!$C$3:$BC$249,'Population 2016'!BD143,FALSE)","v":31957},0,{"$f":"HLOOKUP(Results!E$4,Targeting!$C$3:$F$249,Targeting!$G143,FALSE)","v":2416},{"$f":"IF(AND(OR(Calculations!$E$2=\"Orkney Health Board\",Calculations!$E$2=\"Orkney Islands Local Authority\"),$F143=1),0,IF(AND(OR(Calculations!$E$2=\"Shetland Health Board\",Calculations!$E$2=\"Western Isles Health Board\",Calculations!$E$2=\"Shetland Islands Local Authority\",Calculations!$E$2=\"Eilean Siar Local Authority\"),OR($F143=1,$F143=5)),0,new_ci(VALUE(LEFT(Options!$B$24,2)),$C143,$E143,$F143,2016,$I143,1,$H143,$G143*$H143,Options!B8)))","v":29.8122365274},{"$f":"IF(AND(OR(Calculations!$E$2=\"Orkney Health Board\",Calculations!$E$2=\"Orkney Islands Local Authority\"),$F143=1),0,IF(AND(OR(Calculations!$E$2=\"Shetland Health Board\",Calculations!$E$2=\"Western Isles Health Board\",Calculations!$E$2=\"Shetland Islands Local Authority\",Calculations!$E$2=\"Eilean Siar Local Authority\"),OR($F143=1,$F143=5)),0,new_ci(VALUE(LEFT(Options!$B$24,2)),$C143,$E143,$F143,2016,$I143+$J143,1,$H143,$G143*$H143,Options!B8)))","v":29.686642216999999},{"$f":"IF(AND(OR(Calculations!$E$2=\"Orkney Health Board\",Calculations!$E$2=\"Orkney Islands Local Authority\"),$F143=1),0,IF(AND(OR(Calculations!$E$2=\"Shetland Health Board\",Calculations!$E$2=\"Western Isles Health Board\",Calculations!$E$2=\"Shetland Islands Local Authority\",Calculations!$E$2=\"Eilean Siar Local Authority\"),OR($F143=1,$F143=5)),0,new_yllv2(VALUE(LEFT(Options!$B$24,2)),$C143,$D143,$E143,$F143,2016,$I143,1,$H143,$G143*$H143,Options!B8)))","v":1311.1422220995},{"$f":"IF(AND(OR(Calculations!$E$2=\"Orkney Health Board\",Calculations!$E$2=\"Orkney Islands Local Authority\"),$F143=1),0,IF(AND(OR(Calculations!$E$2=\"Shetland Health Board\",Calculations!$E$2=\"Western Isles Health Board\",Calculations!$E$2=\"Shetland Islands Local Authority\",Calculations!$E$2=\"Eilean Siar Local Authority\"),OR($F143=1,$F143=5)),0,new_yllv2(VALUE(LEFT(Options!$B$24,2)),$C143,$D143,$E143,$F143,2016,$I143+$J143,1,$H143,$G143*$H143,Options!B8)))","v":1305.6185840769001},{"$f":"IF(AND(OR(Calculations!$E$2=\"Orkney Health Board\",Calculations!$E$2=\"Orkney Islands Local Authority\"),$F143=1),0,IF(AND(OR(Calculations!$E$2=\"Shetland Health Board\",Calculations!$E$2=\"Western Isles Health Board\",Calculations!$E$2=\"Shetland Islands Local Authority\",Calculations!$E$2=\"Eilean Siar Local Authority\"),OR($F143=1,$F143=5)),0,hosp_count(VALUE(LEFT(Options!$B$24,2)),$C143,$E143,$F143,2016,$I143,1,$H143,$G143*$H143, Options!B8)))","v":5208.5576023617004},{"$f":"IF(AND(OR(Calculations!$E$2=\"Orkney Health Board\",Calculations!$E$2=\"Orkney Islands Local Authority\"),$F143=1),0,IF(AND(OR(Calculations!$E$2=\"Shetland Health Board\",Calculations!$E$2=\"Western Isles Health Board\",Calculations!$E$2=\"Shetland Islands Local Authority\",Calculations!$E$2=\"Eilean Siar Local Authority\"),OR($F143=1,$F143=5)),0,hosp_count(VALUE(LEFT(Options!$B$24,2)),$C143,$E143,$F143,2016,$I143+$J143,1,$H143,$G143*$H143, Options!B8)))","v":5187.5611352427004},{"$f":"IF(AND(OR(Calculations!$E$2=\"Orkney Health Board\",Calculations!$E$2=\"Orkney Islands Local Authority\"),$F143=1),0,IF(AND(OR(Calculations!$E$2=\"Shetland Health Board\",Calculations!$E$2=\"Western Isles Health Board\",Calculations!$E$2=\"Shetland Islands Local Authority\",Calculations!$E$2=\"Eilean Siar Local Authority\"),OR($F143=1,$F143=5)),0,prem_mort(VALUE(LEFT(Options!$B$24,2)),$C143,$E143,$F143,2016,$I143,1,$H143,$G143*$H143,Options!B8)))","v":29.8122365274},{"$f":"IF(AND(OR(Calculations!$E$2=\"Orkney Health Board\",Calculations!$E$2=\"Orkney Islands Local Authority\"),$F143=1),0,IF(AND(OR(Calculations!$E$2=\"Shetland Health Board\",Calculations!$E$2=\"Western Isles Health Board\",Calculations!$E$2=\"Shetland Islands Local Authority\",Calculations!$E$2=\"Eilean Siar Local Authority\"),OR($F143=1,$F143=5)),0,prem_mort(VALUE(LEFT(Options!$B$24,2)),$C143,$E143,$F143,2016,$I143+$J143,1,$H143,$G143*$H143,Options!B8)))","v":29.686642216999999},93.288595698594975,92.89558537096724,4102.8326254013209,4085.5480304061707,16298.643810000001,16232.94156285853,93.288595698594975,92.89558537096724,653020.16989016486,650269.09759677073,28719828.377809245,28598836.212843195,114090506.67000002,113630590.94000971,653020.16989016486,650269.09759677073,7000]
[null,"Female 40-44",42.077438000000001,82.30744,"female",3,{"$f":"HLOOKUP(Calculations!$E$2,'Prevalence Rates'!$C$3:$BC$249,'Prevalence Rates'!$BD144,FALSE)","v":0.20581155250957933},{"$f":"HLOOKUP(Calculations!$E$2,'Population 2016'!$C$3:$BC$249,'Population 2016'!BD144,FALSE)","v":33291},0,{"$f":"HLOOKUP(Results!E$4,Targeting!$C$3:$F$249,Targeting!$G144,FALSE)","v":2517},{"$f":"IF(AND(OR(Calculations!$E$2=\"Orkney Health Board\",Calculations!$E$2=\"Orkney Islands Local Authority\"),$F144=1),0,IF(AND(OR(Calculations!$E$2=\"Shetland Health Board\",Calculations!$E$2=\"Western Isles Health Board\",Calculations!$E$2=\"Shetland Islands Local Authority\",Calculations!$E$2=\"Eilean Siar Local Authority\"),OR($F144=1,$F144=5)),0,new_ci(VALUE(LEFT(Options!$B$24,2)),$C144,$E144,$F144,2016,$I144,1,$H144,$G144*$H144,Options!B8)))","v":48.152503116299997},{"$f":"IF(AND(OR(Calculations!$E$2=\"Orkney Health Board\",Calculations!$E$2=\"Orkney Islands Local Authority\"),$F144=1),0,IF(AND(OR(Calculations!$E$2=\"Shetland Health Board\",Calculations!$E$2=\"Western Isles Health Board\",Calculations!$E$2=\"Shetland Islands Local Authority\",Calculations!$E$2=\"Eilean Siar Local Authority\"),OR($F144=1,$F144=5)),0,new_ci(VALUE(LEFT(Options!$B$24,2)),$C144,$E144,$F144,2016,$I144+$J144,1,$H144,$G144*$H144,Options!B8)))","v":47.949713963699999},{"$f":"IF(AND(OR(Calculations!$E$2=\"Orkney Health Board\",Calculations!$E$2=\"Orkney Islands Local Authority\"),$F144=1),0,IF(AND(OR(Calculations!$E$2=\"Shetland Health Board\",Calculations!$E$2=\"Western Isles Health Board\",Calculations!$E$2=\"Shetland Islands Local Authority\",Calculations!$E$2=\"Eilean Siar Local Authority\"),OR($F144=1,$F144=5)),0,new_yllv2(VALUE(LEFT(Options!$B$24,2)),$C144,$D144,$E144,$F144,2016,$I144,1,$H144,$G144*$H144,Options!B8)))","v":1889.0227935575001},{"$f":"IF(AND(OR(Calculations!$E$2=\"Orkney Health Board\",Calculations!$E$2=\"Orkney Islands Local Authority\"),$F144=1),0,IF(AND(OR(Calculations!$E$2=\"Shetland Health Board\",Calculations!$E$2=\"Western Isles Health Board\",Calculations!$E$2=\"Shetland Islands Local Authority\",Calculations!$E$2=\"Eilean Siar Local Authority\"),OR($F144=1,$F144=5)),0,new_yllv2(VALUE(LEFT(Options!$B$24,2)),$C144,$D144,$E144,$F144,2016,$I144+$J144,1,$H144,$G144*$H144,Options!B8)))","v":1881.0673746954001},{"$f":"IF(AND(OR(Calculations!$E$2=\"Orkney Health Board\",Calculations!$E$2=\"Orkney Islands Local Authority\"),$F144=1),0,IF(AND(OR(Calculations!$E$2=\"Shetland Health Board\",Calculations!$E$2=\"Western Isles Health Board\",Calculations!$E$2=\"Shetland Islands Local Authority\",Calculations!$E$2=\"Eilean Siar Local Authority\"),OR($F144=1,$F144=5)),0,hosp_count(VALUE(LEFT(Options!$B$24,2)),$C144,$E144,$F144,2016,$I144,1,$H144,$G144*$H144, Options!B8)))","v":6177.8773554561003},{"$f":"IF(AND(OR(Calculations!$E$2=\"Orkney Health Board\",Calculations!$E$2=\"Orkney Islands Local Authority\"),$F144=1),0,IF(AND(OR(Calculations!$E$2=\"Shetland Health Board\",Calculations!$E$2=\"Western Isles Health Board\",Calculations!$E$2=\"Shetland Islands Local Authority\",Calculations!$E$2=\"Eilean Siar Local Authority\"),OR($F144=1,$F144=5)),0,hosp_count(VALUE(LEFT(Options!$B$24,2)),$C144,$E144,$F144,2016,$I144+$J144,1,$H144,$G144*$H144, Options!B8)))","v":6152.9719575842},{"$f":"IF(AND(OR(Calculations!$E$2=\"Orkney Health Board\",Calculations!$E$2=\"Orkney Islands Local Authority\"),$F144=1),0,IF(AND(OR(Calculations!$E$2=\"Shetland Health Board\",Calculations!$E$2=\"Western Isles Health Board\",Calculations!$E$2=\"Shetland Islands Local Authority\",Calculations!$E$2=\"Eilean Siar Local Authority\"),OR($F144=1,$F144=5)),0,prem_mort(VALUE(LEFT(Options!$B$24,2)),$C144,$E144,$F144,2016,$I144,1,$H144,$G144*$H144,Options!B8)))","v":48.152503116299997},{"$f":"IF(AND(OR(Calculations!$E$2=\"Orkney Health Board\",Calculations!$E$2=\"Orkney Islands Local Authority\"),$F144=1),0,IF(AND(OR(Calculations!$E$2=\"Shetland Health Board\",Calculations!$E$2=\"Western Isles Health Board\",Calculations!$E$2=\"Shetland Islands Local Authority\",Calculations!$E$2=\"Eilean Siar Local Authority\"),OR($F144=1,$F144=5)),0,prem_mort(VALUE(LEFT(Options!$B$24,2)),$C144,$E144,$F144,2016,$I144+$J144,1,$H144,$G144*$H144,Options!B8)))","v":47.949713963699999},144.6412036775705,144.0320626106155,5674.2747095536342,5650.3781042786341,18557.199710000001,18482.388506155417,144.6412036775705,144.0320626106155,1012488.4257429935,1008224.4382743085,39719922.966875441,39552646.729950435,129900397.97,129376719.54308791,1012488.4257429935,1008224.4382743085,7000]
[null,"Female 45-49",47.025772000000003,82.585769999999997,"female",3,{"$f":"HLOOKUP(Calculations!$E$2,'Prevalence Rates'!$C$3:$BC$249,'Prevalence Rates'!$BD145,FALSE)","v":0.22119509820804598},{"$f":"HLOOKUP(Calculations!$E$2,'Population 2016'!$C$3:$BC$249,'Population 2016'!BD145,FALSE)","v":40488},0,{"$f":"HLOOKUP(Results!E$4,Targeting!$C$3:$F$249,Targeting!$G145,FALSE)","v":3061},{"$f":"IF(AND(OR(Calculations!$E$2=\"Orkney Health Board\",Calculations!$E$2=\"Orkney Islands Local Authority\"),$F145=1),0,IF(AND(OR(Calculations!$E$2=\"Shetland Health Board\",Calculations!$E$2=\"Western Isles Health Board\",Calculations!$E$2=\"Shetland Islands Local Authority\",Calculations!$E$2=\"Eilean Siar Local Authority\"),OR($F145=1,$F145=5)),0,new_ci(VALUE(LEFT(Options!$B$24,2)),$C145,$E145,$F145,2016,$I145,1,$H145,$G145*$H145,Options!B8)))","v":89.173021521600006},{"$f":"IF(AND(OR(Calculations!$E$2=\"Orkney Health Board\",Calculations!$E$2=\"Orkney Islands Local Authority\"),$F145=1),0,IF(AND(OR(Calculations!$E$2=\"Shetland Health Board\",Calculations!$E$2=\"Western Isles Health Board\",Calculations!$E$2=\"Shetland Islands Local Authority\",Calculations!$E$2=\"Eilean Siar Local Authority\"),OR($F145=1,$F145=5)),0,new_ci(VALUE(LEFT(Options!$B$24,2)),$C145,$E145,$F145,2016,$I145+$J145,1,$H145,$G145*$H145,Options!B8)))","v":88.800074485300001},{"$f":"IF(AND(OR(Calculations!$E$2=\"Orkney Health Board\",Calculations!$E$2=\"Orkney Islands Local Authority\"),$F145=1),0,IF(AND(OR(Calculations!$E$2=\"Shetland Health Board\",Calculations!$E$2=\"Western Isles Health Board\",Calculations!$E$2=\"Shetland Islands Local Authority\",Calculations!$E$2=\"Eilean Siar Local Authority\"),OR($F145=1,$F145=5)),0,new_yllv2(VALUE(LEFT(Options!$B$24,2)),$C145,$D145,$E145,$F145,2016,$I145,1,$H145,$G145*$H145,Options!B8)))","v":3081.8194454405002},{"$f":"IF(AND(OR(Calculations!$E$2=\"Orkney Health Board\",Calculations!$E$2=\"Orkney Islands Local Authority\"),$F145=1),0,IF(AND(OR(Calculations!$E$2=\"Shetland Health Board\",Calculations!$E$2=\"Western Isles Health Board\",Calculations!$E$2=\"Shetland Islands Local Authority\",Calculations!$E$2=\"Eilean Siar Local Authority\"),OR($F145=1,$F145=5)),0,new_yllv2(VALUE(LEFT(Options!$B$24,2)),$C145,$D145,$E145,$F145,2016,$I145+$J145,1,$H145,$G145*$H145,Options!B8)))","v":3068.9303966118},{"$f":"IF(AND(OR(Calculations!$E$2=\"Orkney Health Board\",Calculations!$E$2=\"Orkney Islands Local Authority\"),$F145=1),0,IF(AND(OR(Calculations!$E$2=\"Shetland Health Board\",Calculations!$E$2=\"Western Isles Health Board\",Calculations!$E$2=\"Shetland Islands Local Authority\",Calculations!$E$2=\"Eilean Siar Local Authority\"),OR($F145=1,$F145=5)),0,hosp_count(VALUE(LEFT(Options!$B$24,2)),$C145,$E145,$F145,2016,$I145,1,$H145,$G145*$H145, Options!B8)))","v":8509.3209577487996},{"$f":"IF(AND(OR(Calculations!$E$2=\"Orkney Health Board\",Calculations!$E$2=\"Orkney Islands Local Authority\"),$F145=1),0,IF(AND(OR(Calculations!$E$2=\"Shetland Health Board\",Calculations!$E$2=\"Western Isles Health Board\",Calculations!$E$2=\"Shetland Islands Local Authority\",Calculations!$E$2=\"Eilean Siar Local Authority\"),OR($F145=1,$F145=5)),0,hosp_count(VALUE(LEFT(Options!$B$24,2)),$C145,$E145,$F145,2016,$I145+$J145,1,$H145,$G145*$H145, Options!B8)))","v":8475.0596262143008},{"$f":"IF(AND(OR(Calculations!$E$2=\"Orkney Health Board\",Calculations!$E$2=\"Orkney Islands Local Authority\"),$F145=1),0,IF(AND(OR(Calculations!$E$2=\"Shetland Health Board\",Calculations!$E$2=\"Western Isles Health Board\",Calculations!$E$2=\"Shetland Islands Local Authority\",Calculations!$E$2=\"Eilean Siar Local Authority\"),OR($F145=1,$F145=5)),0,prem_mort(VALUE(LEFT(Options!$B$24,2)),$C145,$E145,$F145,2016,$I145,1,$H145,$G145*$H145,Options!B8)))","v":89.173021521600006},{"$f":"IF(AND(OR(Calculations!$E$2=\"Orkney Health Board\",Calculations!$E$2=\"Orkney Islands Local Authority\"),$F145=1),0,IF(AND(OR(Calculations!$E$2=\"Shetland Health Board\",Calculations!$E$2=\"Western Isles Health Board\",Calculations!$E$2=\"Shetland Islands Local Authority\",Calculations!$E$2=\"Eilean Siar Local Authority\"),OR($F145=1,$F145=5)),0,prem_mort(VALUE(LEFT(Options!$B$24,2)),$C145,$E145,$F145,2016,$I145+$J145,1,$H145,$G145*$H145,Options!B8)))","v":88.800074485300001},220.24555799644338,219.32442818934004,7611.6860438660851,7579.8517995746897,21016.896259999998,20932.275306792879,220.24555799644338,219.32442818934004,1541718.9059751036,1535270.9973253803,53281802.307062596,53058962.597022831,147118273.81999999,146525927.14755017,1541718.9059751036,1535270.9973253803,7000]
[null,"Female 50-54",51.990825999999998,82.980829999999997,"female",3,{"$f":"HLOOKUP(Calculations!$E$2,'Prevalence Rates'!$C$3:$BC$249,'Prevalence Rates'!$BD146,FALSE)","v":0.22119509820804598},{"$f":"HLOOKUP(Calculations!$E$2,'Population 2016'!$C$3:$BC$249,'Population 2016'!BD146,FALSE)","v":42537},0,{"$f":"HLOOKUP(Results!E$4,Targeting!$C$3:$F$249,Targeting!$G146,FALSE)","v":3216},{"$f":"IF(AND(OR(Calculations!$E$2=\"Orkney Health Board\",Calculations!$E$2=\"Orkney Islands Local Authority\"),$F146=1),0,IF(AND(OR(Calculations!$E$2=\"Shetland Health Board\",Calculations!$E$2=\"Western Isles Health Board\",Calculations!$E$2=\"Shetland Islands Local Authority\",Calculations!$E$2=\"Eilean Siar Local Authority\"),OR($F146=1,$F146=5)),0,new_ci(VALUE(LEFT(Options!$B$24,2)),$C146,$E146,$F146,2016,$I146,1,$H146,$G146*$H146,Options!B8)))","v":142.82939135140001},{"$f":"IF(AND(OR(Calculations!$E$2=\"Orkney Health Board\",Calculations!$E$2=\"Orkney Islands Local Authority\"),$F146=1),0,IF(AND(OR(Calculations!$E$2=\"Shetland Health Board\",Calculations!$E$2=\"Western Isles Health Board\",Calculations!$E$2=\"Shetland Islands Local Authority\",Calculations!$E$2=\"Eilean Siar Local Authority\"),OR($F146=1,$F146=5)),0,new_ci(VALUE(LEFT(Options!$B$24,2)),$C146,$E146,$F146,2016,$I146+$J146,1,$H146,$G146*$H146,Options!B8)))","v":142.2325589962},{"$f":"IF(AND(OR(Calculations!$E$2=\"Orkney Health Board\",Calculations!$E$2=\"Orkney Islands Local Authority\"),$F146=1),0,IF(AND(OR(Calculations!$E$2=\"Shetland Health Board\",Calculations!$E$2=\"Western Isles Health Board\",Calculations!$E$2=\"Shetland Islands Local Authority\",Calculations!$E$2=\"Eilean Siar Local Authority\"),OR($F146=1,$F146=5)),0,new_yllv2(VALUE(LEFT(Options!$B$24,2)),$C146,$D146,$E146,$F146,2016,$I146,1,$H146,$G146*$H146,Options!B8)))","v":4283.4540179461001},{"$f":"IF(AND(OR(Calculations!$E$2=\"Orkney Health Board\",Calculations!$E$2=\"Orkney Islands Local Authority\"),$F146=1),0,IF(AND(OR(Calculations!$E$2=\"Shetland Health Board\",Calculations!$E$2=\"Western Isles Health Board\",Calculations!$E$2=\"Shetland Islands Local Authority\",Calculations!$E$2=\"Eilean Siar Local Authority\"),OR($F146=1,$F146=5)),0,new_yllv2(VALUE(LEFT(Options!$B$24,2)),$C146,$D146,$E146,$F146,2016,$I146+$J146,1,$H146,$G146*$H146,Options!B8)))","v":4265.5550132262997},{"$f":"IF(AND(OR(Calculations!$E$2=\"Orkney Health Board\",Calculations!$E$2=\"Orkney Islands Local Authority\"),$F146=1),0,IF(AND(OR(Calculations!$E$2=\"Shetland Health Board\",Calculations!$E$2=\"Western Isles Health Board\",Calculations!$E$2=\"Shetland Islands Local Authority\",Calculations!$E$2=\"Eilean Siar Local Authority\"),OR($F146=1,$F146=5)),0,hosp_count(VALUE(LEFT(Options!$B$24,2)),$C146,$E146,$F146,2016,$I146,1,$H146,$G146*$H146, Options!B8)))","v":10129.178571979501},{"$f":"IF(AND(OR(Calculations!$E$2=\"Orkney Health Board\",Calculations!$E$2=\"Orkney Islands Local Authority\"),$F146=1),0,IF(AND(OR(Calculations!$E$2=\"Shetland Health Board\",Calculations!$E$2=\"Western Isles Health Board\",Calculations!$E$2=\"Shetland Islands Local Authority\",Calculations!$E$2=\"Eilean Siar Local Authority\"),OR($F146=1,$F146=5)),0,hosp_count(VALUE(LEFT(Options!$B$24,2)),$C146,$E146,$F146,2016,$I146+$J146,1,$H146,$G146*$H146, Options!B8)))","v":10088.394016296799},{"$f":"IF(AND(OR(Calculations!$E$2=\"Orkney Health Board\",Calculations!$E$2=\"Orkney Islands Local Authority\"),$F146=1),0,IF(AND(OR(Calculations!$E$2=\"Shetland Health Board\",Calculations!$E$2=\"Western Isles Health Board\",Calculations!$E$2=\"Shetland Islands Local Authority\",Calculations!$E$2=\"Eilean Siar Local Authority\"),OR($F146=1,$F146=5)),0,prem_mort(VALUE(LEFT(Options!$B$24,2)),$C146,$E146,$F146,2016,$I146,1,$H146,$G146*$H146,Options!B8)))","v":142.82939135140001},{"$f":"IF(AND(OR(Calculations!$E$2=\"Orkney Health Board\",Calculations!$E$2=\"Orkney Islands Local Authority\"),$F146=1),0,IF(AND(OR(Calculations!$E$2=\"Shetland Health Board\",Calculations!$E$2=\"Western Isles Health Board\",Calculations!$E$2=\"Shetland Islands Local Authority\",Calculations!$E$2=\"Eilean Siar Local Authority\"),OR($F146=1,$F146=5)),0,prem_mort(VALUE(LEFT(Options!$B$24,2)),$C146,$E146,$F146,2016,$I146+$J146,1,$H146,$G146*$H146,Options!B8)))","v":142.2325589962},335.77683276065545,334.37374285022452,10069.948557599502,10027.869885573265,23812.630350000003,23716.750161734017,335.77683276065545,334.37374285022452,2350437.8293245882,2340616.1999515714,70489639.903196514,70195089.199012861,166688412.45000002,166017251.1321381,2350437.8293245882,2340616.1999515714,7000]
[null,"Female 55-59",56.953040999999999,83.473039999999997,"female",3,{"$f":"HLOOKUP(Calculations!$E$2,'Prevalence Rates'!$C$3:$BC$249,'Prevalence Rates'!$BD147,FALSE)","v":0.18444629249435562},{"$f":"HLOOKUP(Calculations!$E$2,'Population 2016'!$C$3:$BC$249,'Population 2016'!BD147,FALSE)","v":39153},0,{"$f":"HLOOKUP(Results!E$4,Targeting!$C$3:$F$249,Targeting!$G147,FALSE)","v":2960},{"$f":"IF(AND(OR(Calculations!$E$2=\"Orkney Health Board\",Calculations!$E$2=\"Orkney Islands Local Authority\"),$F147=1),0,IF(AND(OR(Calculations!$E$2=\"Shetland Health Board\",Calculations!$E$2=\"Western Isles Health Board\",Calculations!$E$2=\"Shetland Islands Local Authority\",Calculations!$E$2=\"Eilean Siar Local Authority\"),OR($F147=1,$F147=5)),0,new_ci(VALUE(LEFT(Options!$B$24,2)),$C147,$E147,$F147,2016,$I147,1,$H147,$G147*$H147,Options!B8)))","v":200.3189850386},{"$f":"IF(AND(OR(Calculations!$E$2=\"Orkney Health Board\",Calculations!$E$2=\"Orkney Islands Local Authority\"),$F147=1),0,IF(AND(OR(Calculations!$E$2=\"Shetland Health Board\",Calculations!$E$2=\"Western Isles Health Board\",Calculations!$E$2=\"Shetland Islands Local Authority\",Calculations!$E$2=\"Eilean Siar Local Authority\"),OR($F147=1,$F147=5)),0,new_ci(VALUE(LEFT(Options!$B$24,2)),$C147,$E147,$F147,2016,$I147+$J147,1,$H147,$G147*$H147,Options!B8)))","v":199.4704445026},{"$f":"IF(AND(OR(Calculations!$E$2=\"Orkney Health Board\",Calculations!$E$2=\"Orkney Islands Local Authority\"),$F147=1),0,IF(AND(OR(Calculations!$E$2=\"Shetland Health Board\",Calculations!$E$2=\"Western Isles Health Board\",Calculations!$E$2=\"Shetland Islands Local Authority\",Calculations!$E$2=\"Eilean Siar Local Authority\"),OR($F147=1,$F147=5)),0,new_yllv2(VALUE(LEFT(Options!$B$24,2)),$C147,$D147,$E147,$F147,2016,$I147,1,$H147,$G147*$H147,Options!B8)))","v":5112.1402978660999},{"$f":"IF(AND(OR(Calculations!$E$2=\"Orkney Health Board\",Calculations!$E$2=\"Orkney Islands Local Authority\"),$F147=1),0,IF(AND(OR(Calculations!$E$2=\"Shetland Health Board\",Calculations!$E$2=\"Western Isles Health Board\",Calculations!$E$2=\"Shetland Islands Local Authority\",Calculations!$E$2=\"Eilean Siar Local Authority\"),OR($F147=1,$F147=5)),0,new_yllv2(VALUE(LEFT(Options!$B$24,2)),$C147,$D147,$E147,$F147,2016,$I147+$J147,1,$H147,$G147*$H147,Options!B8)))","v":5090.4855442359003},{"$f":"IF(AND(OR(Calculations!$E$2=\"Orkney Health Board\",Calculations!$E$2=\"Orkney Islands Local Authority\"),$F147=1),0,IF(AND(OR(Calculations!$E$2=\"Shetland Health Board\",Calculations!$E$2=\"Western Isles Health Board\",Calculations!$E$2=\"Shetland Islands Local Authority\",Calculations!$E$2=\"Eilean Siar Local Authority\"),OR($F147=1,$F147=5)),0,hosp_count(VALUE(LEFT(Options!$B$24,2)),$C147,$E147,$F147,2016,$I147,1,$H147,$G147*$H147, Options!B8)))","v":10562.8275926019},{"$f":"IF(AND(OR(Calculations!$E$2=\"Orkney Health Board\",Calculations!$E$2=\"Orkney Islands Local Authority\"),$F147=1),0,IF(AND(OR(Calculations!$E$2=\"Shetland Health Board\",Calculations!$E$2=\"Western Isles Health Board\",Calculations!$E$2=\"Shetland Islands Local Authority\",Calculations!$E$2=\"Eilean Siar Local Authority\"),OR($F147=1,$F147=5)),0,hosp_count(VALUE(LEFT(Options!$B$24,2)),$C147,$E147,$F147,2016,$I147+$J147,1,$H147,$G147*$H147, Options!B8)))","v":10520.1759676334},{"$f":"IF(AND(OR(Calculations!$E$2=\"Orkney Health Board\",Calculations!$E$2=\"Orkney Islands Local Authority\"),$F147=1),0,IF(AND(OR(Calculations!$E$2=\"Shetland Health Board\",Calculations!$E$2=\"Western Isles Health Board\",Calculations!$E$2=\"Shetland Islands Local Authority\",Calculations!$E$2=\"Eilean Siar Local Authority\"),OR($F147=1,$F147=5)),0,prem_mort(VALUE(LEFT(Options!$B$24,2)),$C147,$E147,$F147,2016,$I147,1,$H147,$G147*$H147,Options!B8)))","v":200.3189850386},{"$f":"IF(AND(OR(Calculations!$E$2=\"Orkney Health Board\",Calculations!$E$2=\"Orkney Islands Local Authority\"),$F147=1),0,IF(AND(OR(Calculations!$E$2=\"Shetland Health Board\",Calculations!$E$2=\"Western Isles Health Board\",Calculations!$E$2=\"Shetland Islands Local Authority\",Calculations!$E$2=\"Eilean Siar Local Authority\"),OR($F147=1,$F147=5)),0,prem_mort(VALUE(LEFT(Options!$B$24,2)),$C147,$E147,$F147,2016,$I147+$J147,1,$H147,$G147*$H147,Options!B8)))","v":199.4704445026},511.63125440860216,509.46401170433933,13056.829100876306,13001.52106923071,26978.335230000001,26869.399452489975,511.63125440860216,509.46401170433933,3325603.1536559141,3311516.0760782058,84869389.15569599,84509886.949999616,175359178.995,174651096.44118485,3325603.1536559141,3311516.0760782058,6500]
[null,"Female 60-64",61.947387999999997,84.167389999999997,"female",3,{"$f":"HLOOKUP(Calculations!$E$2,'Prevalence Rates'!$C$3:$BC$249,'Prevalence Rates'!$BD148,FALSE)","v":0.18444629249435562},{"$f":"HLOOKUP(Calculations!$E$2,'Population 2016'!$C$3:$BC$249,'Population 2016'!BD148,FALSE)","v":34585},0,{"$f":"HLOOKUP(Results!E$4,Targeting!$C$3:$F$249,Targeting!$G148,FALSE)","v":2615},{"$f":"IF(AND(OR(Calculations!$E$2=\"Orkney Health Board\",Calculations!$E$2=\"Orkney Islands Local Authority\"),$F148=1),0,IF(AND(OR(Calculations!$E$2=\"Shetland Health Board\",Calculations!$E$2=\"Western Isles Health Board\",Calculations!$E$2=\"Shetland Islands Local Authority\",Calculations!$E$2=\"Eilean Siar Local Authority\"),OR($F148=1,$F148=5)),0,new_ci(VALUE(LEFT(Options!$B$24,2)),$C148,$E148,$F148,2016,$I148,1,$H148,$G148*$H148,Options!B8)))","v":270.2247013443},{"$f":"IF(AND(OR(Calculations!$E$2=\"Orkney Health Board\",Calculations!$E$2=\"Orkney Islands Local Authority\"),$F148=1),0,IF(AND(OR(Calculations!$E$2=\"Shetland Health Board\",Calculations!$E$2=\"Western Isles Health Board\",Calculations!$E$2=\"Shetland Islands Local Authority\",Calculations!$E$2=\"Eilean Siar Local Authority\"),OR($F148=1,$F148=5)),0,new_ci(VALUE(LEFT(Options!$B$24,2)),$C148,$E148,$F148,2016,$I148+$J148,1,$H148,$G148*$H148,Options!B8)))","v":269.08237232779999},{"$f":"IF(AND(OR(Calculations!$E$2=\"Orkney Health Board\",Calculations!$E$2=\"Orkney Islands Local Authority\"),$F148=1),0,IF(AND(OR(Calculations!$E$2=\"Shetland Health Board\",Calculations!$E$2=\"Western Isles Health Board\",Calculations!$E$2=\"Shetland Islands Local Authority\",Calculations!$E$2=\"Eilean Siar Local Authority\"),OR($F148=1,$F148=5)),0,new_yllv2(VALUE(LEFT(Options!$B$24,2)),$C148,$D148,$E148,$F148,2016,$I148,1,$H148,$G148*$H148,Options!B8)))","v":5734.1687029754003},{"$f":"IF(AND(OR(Calculations!$E$2=\"Orkney Health Board\",Calculations!$E$2=\"Orkney Islands Local Authority\"),$F148=1),0,IF(AND(OR(Calculations!$E$2=\"Shetland Health Board\",Calculations!$E$2=\"Western Isles Health Board\",Calculations!$E$2=\"Shetland Islands Local Authority\",Calculations!$E$2=\"Eilean Siar Local Authority\"),OR($F148=1,$F148=5)),0,new_yllv2(VALUE(LEFT(Options!$B$24,2)),$C148,$D148,$E148,$F148,2016,$I148+$J148,1,$H148,$G148*$H148,Options!B8)))","v":5709.9284789607},{"$f":"IF(AND(OR(Calculations!$E$2=\"Orkney Health Board\",Calculations!$E$2=\"Orkney Islands Local Authority\"),$F148=1),0,IF(AND(OR(Calculations!$E$2=\"Shetland Health Board\",Calculations!$E$2=\"Western Isles Health Board\",Calculations!$E$2=\"Shetland Islands Local Authority\",Calculations!$E$2=\"Eilean Siar Local Authority\"),OR($F148=1,$F148=5)),0,hosp_count(VALUE(LEFT(Options!$B$24,2)),$C148,$E148,$F148,2016,$I148,1,$H148,$G148*$H148, Options!B8)))","v":10579.416535496001},{"$f":"IF(AND(OR(Calculations!$E$2=\"Orkney Health Board\",Calculations!$E$2=\"Orkney Islands Local Authority\"),$F148=1),0,IF(AND(OR(Calculations!$E$2=\"Shetland Health Board\",Calculations!$E$2=\"Western Isles Health Board\",Calculations!$E$2=\"Shetland Islands Local Authority\",Calculations!$E$2=\"Eilean Siar Local Authority\"),OR($F148=1,$F148=5)),0,hosp_count(VALUE(LEFT(Options!$B$24,2)),$C148,$E148,$F148,2016,$I148+$J148,1,$H148,$G148*$H148, Options!B8)))","v":10536.692294726399},{"$f":"IF(AND(OR(Calculations!$E$2=\"Orkney Health Board\",Calculations!$E$2=\"Orkney Islands Local Authority\"),$F148=1),0,IF(AND(OR(Calculations!$E$2=\"Shetland Health Board\",Calculations!$E$2=\"Western Isles Health Board\",Calculations!$E$2=\"Shetland Islands Local Authority\",Calculations!$E$2=\"Eilean Siar Local Authority\"),OR($F148=1,$F148=5)),0,prem_mort(VALUE(LEFT(Options!$B$24,2)),$C148,$E148,$F148,2016,$I148,1,$H148,$G148*$H148,Options!B8)))","v":270.2247013443},{"$f":"IF(AND(OR(Calculations!$E$2=\"Orkney Health Board\",Calculations!$E$2=\"Orkney Islands Local Authority\"),$F148=1),0,IF(AND(OR(Calculations!$E$2=\"Shetland Health Board\",Calculations!$E$2=\"Western Isles Health Board\",Calculations!$E$2=\"Shetland Islands Local Authority\",Calculations!$E$2=\"Eilean Siar Local Authority\"),OR($F148=1,$F148=5)),0,prem_mort(VALUE(LEFT(Options!$B$24,2)),$C148,$E148,$F148,2016,$I148+$J148,1,$H148,$G148*$H148,Options!B8)))","v":269.08237232779999},781.33497569553276,778.03201482665895,16579.929746929018,16509.840910685845,30589.609759999999,30466.07574013705,781.33497569553276,778.03201482665895,4688009.8541731965,4668192.0889599537,99479578.481574103,99059045.464115068,183537658.56,182796454.4408223,4688009.8541731965,4668192.0889599537,6000]
[null,"Female 65-69",67.063927000000007,85.193929999999995,"female",3,{"$f":"HLOOKUP(Calculations!$E$2,'Prevalence Rates'!$C$3:$BC$249,'Prevalence Rates'!$BD149,FALSE)","v":0.15461972980975777},{"$f":"HLOOKUP(Calculations!$E$2,'Population 2016'!$C$3:$BC$249,'Population 2016'!BD149,FALSE)","v":35061},0,{"$f":"HLOOKUP(Results!E$4,Targeting!$C$3:$F$249,Targeting!$G149,FALSE)","v":2651},{"$f":"IF(AND(OR(Calculations!$E$2=\"Orkney Health Board\",Calculations!$E$2=\"Orkney Islands Local Authority\"),$F149=1),0,IF(AND(OR(Calculations!$E$2=\"Shetland Health Board\",Calculations!$E$2=\"Western Isles Health Board\",Calculations!$E$2=\"Shetland Islands Local Authority\",Calculations!$E$2=\"Eilean Siar Local Authority\"),OR($F149=1,$F149=5)),0,new_ci(VALUE(LEFT(Options!$B$24,2)),$C149,$E149,$F149,2016,$I149,1,$H149,$G149*$H149,Options!B8)))","v":422.39209975300002},{"$f":"IF(AND(OR(Calculations!$E$2=\"Orkney Health Board\",Calculations!$E$2=\"Orkney Islands Local Authority\"),$F149=1),0,IF(AND(OR(Calculations!$E$2=\"Shetland Health Board\",Calculations!$E$2=\"Western Isles Health Board\",Calculations!$E$2=\"Shetland Islands Local Authority\",Calculations!$E$2=\"Eilean Siar Local Authority\"),OR($F149=1,$F149=5)),0,new_ci(VALUE(LEFT(Options!$B$24,2)),$C149,$E149,$F149,2016,$I149+$J149,1,$H149,$G149*$H149,Options!B8)))","v":420.59065167270001},{"$f":"IF(AND(OR(Calculations!$E$2=\"Orkney Health Board\",Calculations!$E$2=\"Orkney Islands Local Authority\"),$F149=1),0,IF(AND(OR(Calculations!$E$2=\"Shetland Health Board\",Calculations!$E$2=\"Western Isles Health Board\",Calculations!$E$2=\"Shetland Islands Local Authority\",Calculations!$E$2=\"Eilean Siar Local Authority\"),OR($F149=1,$F149=5)),0,new_yllv2(VALUE(LEFT(Options!$B$24,2)),$C149,$D149,$E149,$F149,2016,$I149,1,$H149,$G149*$H149,Options!B8)))","v":7235.5779359451999},{"$f":"IF(AND(OR(Calculations!$E$2=\"Orkney Health Board\",Calculations!$E$2=\"Orkney Islands Local Authority\"),$F149=1),0,IF(AND(OR(Calculations!$E$2=\"Shetland Health Board\",Calculations!$E$2=\"Western Isles Health Board\",Calculations!$E$2=\"Shetland Islands Local Authority\",Calculations!$E$2=\"Eilean Siar Local Authority\"),OR($F149=1,$F149=5)),0,new_yllv2(VALUE(LEFT(Options!$B$24,2)),$C149,$D149,$E149,$F149,2016,$I149+$J149,1,$H149,$G149*$H149,Options!B8)))","v":7204.7191249253001},{"$f":"IF(AND(OR(Calculations!$E$2=\"Orkney Health Board\",Calculations!$E$2=\"Orkney Islands Local Authority\"),$F149=1),0,IF(AND(OR(Calculations!$E$2=\"Shetland Health Board\",Calculations!$E$2=\"Western Isles Health Board\",Calculations!$E$2=\"Shetland Islands Local Authority\",Calculations!$E$2=\"Eilean Siar Local Authority\"),OR($F149=1,$F149=5)),0,hosp_count(VALUE(LEFT(Options!$B$24,2)),$C149,$E149,$F149,2016,$I149,1,$H149,$G149*$H149, Options!B8)))","v":12198.090860927399},{"$f":"IF(AND(OR(Calculations!$E$2=\"Orkney Health Board\",Calculations!$E$2=\"Orkney Islands Local Authority\"),$F149=1),0,IF(AND(OR(Calculations!$E$2=\"Shetland Health Board\",Calculations!$E$2=\"Western Isles Health Board\",Calculations!$E$2=\"Shetland Islands Local Authority\",Calculations!$E$2=\"Eilean Siar Local Authority\"),OR($F149=1,$F149=5)),0,hosp_count(VALUE(LEFT(Options!$B$24,2)),$C149,$E149,$F149,2016,$I149+$J149,1,$H149,$G149*$H149, Options!B8)))","v":12148.713436484901},{"$f":"IF(AND(OR(Calculations!$E$2=\"Orkney Health Board\",Calculations!$E$2=\"Orkney Islands Local Authority\"),$F149=1),0,IF(AND(OR(Calculations!$E$2=\"Shetland Health Board\",Calculations!$E$2=\"Western Isles Health Board\",Calculations!$E$2=\"Shetland Islands Local Authority\",Calculations!$E$2=\"Eilean Siar Local Authority\"),OR($F149=1,$F149=5)),0,prem_mort(VALUE(LEFT(Options!$B$24,2)),$C149,$E149,$F149,2016,$I149,1,$H149,$G149*$H149,Options!B8)))","v":422.39209975300002},{"$f":"IF(AND(OR(Calculations!$E$2=\"Orkney Health Board\",Calculations!$E$2=\"Orkney Islands Local Authority\"),$F149=1),0,IF(AND(OR(Calculations!$E$2=\"Shetland Health Board\",Calculations!$E$2=\"Western Isles Health Board\",Calculations!$E$2=\"Shetland Islands Local Authority\",Calculations!$E$2=\"Eilean Siar Local Authority\"),OR($F149=1,$F149=5)),0,prem_mort(VALUE(LEFT(Options!$B$24,2)),$C149,$E149,$F149,2016,$I149+$J149,1,$H149,$G149*$H149,Options!B8)))","v":420.59065167270001},1204.73488991472,1199.5968502686744,20637.112278443856,20549.097643892928,34791.052339999995,34650.219436082545,1204.73488991472,1199.5968502686744,6626041.8945309604,6597782.6764777089,113504117.53144121,113020037.0414111,191350787.86999997,190576206.89845401,6626041.8945309604,6597782.6764777089,5500]
[null,"Female 70-74",71.938164,86.248159999999999,"female",3,{"$f":"HLOOKUP(Calculations!$E$2,'Prevalence Rates'!$C$3:$BC$249,'Prevalence Rates'!$BD150,FALSE)","v":0.15461972980975777},{"$f":"HLOOKUP(Calculations!$E$2,'Population 2016'!$C$3:$BC$249,'Population 2016'!BD150,FALSE)","v":27558},0,{"$f":"HLOOKUP(Results!E$4,Targeting!$C$3:$F$249,Targeting!$G150,FALSE)","v":2084},{"$f":"IF(AND(OR(Calculations!$E$2=\"Orkney Health Board\",Calculations!$E$2=\"Orkney Islands Local Authority\"),$F150=1),0,IF(AND(OR(Calculations!$E$2=\"Shetland Health Board\",Calculations!$E$2=\"Western Isles Health Board\",Calculations!$E$2=\"Shetland Islands Local Authority\",Calculations!$E$2=\"Eilean Siar Local Authority\"),OR($F150=1,$F150=5)),0,new_ci(VALUE(LEFT(Options!$B$24,2)),$C150,$E150,$F150,2016,$I150,1,$H150,$G150*$H150,Options!B8)))","v":500.9648190643},{"$f":"IF(AND(OR(Calculations!$E$2=\"Orkney Health Board\",Calculations!$E$2=\"Orkney Islands Local Authority\"),$F150=1),0,IF(AND(OR(Calculations!$E$2=\"Shetland Health Board\",Calculations!$E$2=\"Western Isles Health Board\",Calculations!$E$2=\"Shetland Islands Local Authority\",Calculations!$E$2=\"Eilean Siar Local Authority\"),OR($F150=1,$F150=5)),0,new_ci(VALUE(LEFT(Options!$B$24,2)),$C150,$E150,$F150,2016,$I150+$J150,1,$H150,$G150*$H150,Options!B8)))","v":498.8387964547},{"$f":"IF(AND(OR(Calculations!$E$2=\"Orkney Health Board\",Calculations!$E$2=\"Orkney Islands Local Authority\"),$F150=1),0,IF(AND(OR(Calculations!$E$2=\"Shetland Health Board\",Calculations!$E$2=\"Western Isles Health Board\",Calculations!$E$2=\"Shetland Islands Local Authority\",Calculations!$E$2=\"Eilean Siar Local Authority\"),OR($F150=1,$F150=5)),0,new_yllv2(VALUE(LEFT(Options!$B$24,2)),$C150,$D150,$E150,$F150,2016,$I150,1,$H150,$G150*$H150,Options!B8)))","v":6667.8397378866002},{"$f":"IF(AND(OR(Calculations!$E$2=\"Orkney Health Board\",Calculations!$E$2=\"Orkney Islands Local Authority\"),$F150=1),0,IF(AND(OR(Calculations!$E$2=\"Shetland Health Board\",Calculations!$E$2=\"Western Isles Health Board\",Calculations!$E$2=\"Shetland Islands Local Authority\",Calculations!$E$2=\"Eilean Siar Local Authority\"),OR($F150=1,$F150=5)),0,new_yllv2(VALUE(LEFT(Options!$B$24,2)),$C150,$D150,$E150,$F150,2016,$I150+$J150,1,$H150,$G150*$H150,Options!B8)))","v":6639.5423854568999},{"$f":"IF(AND(OR(Calculations!$E$2=\"Orkney Health Board\",Calculations!$E$2=\"Orkney Islands Local Authority\"),$F150=1),0,IF(AND(OR(Calculations!$E$2=\"Shetland Health Board\",Calculations!$E$2=\"Western Isles Health Board\",Calculations!$E$2=\"Shetland Islands Local Authority\",Calculations!$E$2=\"Eilean Siar Local Authority\"),OR($F150=1,$F150=5)),0,hosp_count(VALUE(LEFT(Options!$B$24,2)),$C150,$E150,$F150,2016,$I150,1,$H150,$G150*$H150, Options!B8)))","v":10838.3196694914},{"$f":"IF(AND(OR(Calculations!$E$2=\"Orkney Health Board\",Calculations!$E$2=\"Orkney Islands Local Authority\"),$F150=1),0,IF(AND(OR(Calculations!$E$2=\"Shetland Health Board\",Calculations!$E$2=\"Western Isles Health Board\",Calculations!$E$2=\"Shetland Islands Local Authority\",Calculations!$E$2=\"Eilean Siar Local Authority\"),OR($F150=1,$F150=5)),0,hosp_count(VALUE(LEFT(Options!$B$24,2)),$C150,$E150,$F150,2016,$I150+$J150,1,$H150,$G150*$H150, Options!B8)))","v":10794.4400234362},{"$f":"IF(AND(OR(Calculations!$E$2=\"Orkney Health Board\",Calculations!$E$2=\"Orkney Islands Local Authority\"),$F150=1),0,IF(AND(OR(Calculations!$E$2=\"Shetland Health Board\",Calculations!$E$2=\"Western Isles Health Board\",Calculations!$E$2=\"Shetland Islands Local Authority\",Calculations!$E$2=\"Eilean Siar Local Authority\"),OR($F150=1,$F150=5)),0,prem_mort(VALUE(LEFT(Options!$B$24,2)),$C150,$E150,$F150,2016,$I150,1,$H150,$G150*$H150,Options!B8)))","v":500.9648190643},{"$f":"IF(AND(OR(Calculations!$E$2=\"Orkney Health Board\",Calculations!$E$2=\"Orkney Islands Local Authority\"),$F150=1),0,IF(AND(OR(Calculations!$E$2=\"Shetland Health Board\",Calculations!$E$2=\"Western Isles Health Board\",Calculations!$E$2=\"Shetland Islands Local Authority\",Calculations!$E$2=\"Eilean Siar Local Authority\"),OR($F150=1,$F150=5)),0,prem_mort(VALUE(LEFT(Options!$B$24,2)),$C150,$E150,$F150,2016,$I150+$J150,1,$H150,$G150*$H150,Options!B8)))","v":498.8387964547},1817.8562271002975,1810.1415068390304,24195.659111280213,24092.976215461571,39329.12283,39169.896303926995,1817.8562271002975,1810.1415068390304,9089281.1355014872,9050707.5341951512,120978295.55640106,120464881.07730785,196645614.15000001,195849481.51963496,9089281.1355014872,9050707.5341951512,5000]
[null,"Female 75-79",76.942824999999999,87.812830000000005,"female",3,{"$f":"HLOOKUP(Calculations!$E$2,'Prevalence Rates'!$C$3:$BC$249,'Prevalence Rates'!$BD151,FALSE)","v":3.5284009560195895E-2},{"$f":"HLOOKUP(Calculations!$E$2,'Population 2016'!$C$3:$BC$249,'Population 2016'!BD151,FALSE)","v":22028},0,{"$f":"HLOOKUP(Results!E$4,Targeting!$C$3:$F$249,Targeting!$G151,FALSE)","v":1665},{"$f":"IF(AND(OR(Calculations!$E$2=\"Orkney Health Board\",Calculations!$E$2=\"Orkney Islands Local Authority\"),$F151=1),0,IF(AND(OR(Calculations!$E$2=\"Shetland Health Board\",Calculations!$E$2=\"Western Isles Health Board\",Calculations!$E$2=\"Shetland Islands Local Authority\",Calculations!$E$2=\"Eilean Siar Local Authority\"),OR($F151=1,$F151=5)),0,new_ci(VALUE(LEFT(Options!$B$24,2)),$C151,$E151,$F151,2016,$I151,1,$H151,$G151*$H151,Options!B8)))","v":610.02129860160005},{"$f":"IF(AND(OR(Calculations!$E$2=\"Orkney Health Board\",Calculations!$E$2=\"Orkney Islands Local Authority\"),$F151=1),0,IF(AND(OR(Calculations!$E$2=\"Shetland Health Board\",Calculations!$E$2=\"Western Isles Health Board\",Calculations!$E$2=\"Shetland Islands Local Authority\",Calculations!$E$2=\"Eilean Siar Local Authority\"),OR($F151=1,$F151=5)),0,new_ci(VALUE(LEFT(Options!$B$24,2)),$C151,$E151,$F151,2016,$I151+$J151,1,$H151,$G151*$H151,Options!B8)))","v":607.32447079559995},{"$f":"IF(AND(OR(Calculations!$E$2=\"Orkney Health Board\",Calculations!$E$2=\"Orkney Islands Local Authority\"),$F151=1),0,IF(AND(OR(Calculations!$E$2=\"Shetland Health Board\",Calculations!$E$2=\"Western Isles Health Board\",Calculations!$E$2=\"Shetland Islands Local Authority\",Calculations!$E$2=\"Eilean Siar Local Authority\"),OR($F151=1,$F151=5)),0,new_yllv2(VALUE(LEFT(Options!$B$24,2)),$C151,$D151,$E151,$F151,2016,$I151,1,$H151,$G151*$H151,Options!B8)))","v":6020.9132673042996},{"$f":"IF(AND(OR(Calculations!$E$2=\"Orkney Health Board\",Calculations!$E$2=\"Orkney Islands Local Authority\"),$F151=1),0,IF(AND(OR(Calculations!$E$2=\"Shetland Health Board\",Calculations!$E$2=\"Western Isles Health Board\",Calculations!$E$2=\"Shetland Islands Local Authority\",Calculations!$E$2=\"Eilean Siar Local Authority\"),OR($F151=1,$F151=5)),0,new_yllv2(VALUE(LEFT(Options!$B$24,2)),$C151,$D151,$E151,$F151,2016,$I151+$J151,1,$H151,$G151*$H151,Options!B8)))","v":5994.2955633748998},{"$f":"IF(AND(OR(Calculations!$E$2=\"Orkney Health Board\",Calculations!$E$2=\"Orkney Islands Local Authority\"),$F151=1),0,IF(AND(OR(Calculations!$E$2=\"Shetland Health Board\",Calculations!$E$2=\"Western Isles Health Board\",Calculations!$E$2=\"Shetland Islands Local Authority\",Calculations!$E$2=\"Eilean Siar Local Authority\"),OR($F151=1,$F151=5)),0,hosp_count(VALUE(LEFT(Options!$B$24,2)),$C151,$E151,$F151,2016,$I151,1,$H151,$G151*$H151, Options!B8)))","v":9825.6386700275998},{"$f":"IF(AND(OR(Calculations!$E$2=\"Orkney Health Board\",Calculations!$E$2=\"Orkney Islands Local Authority\"),$F151=1),0,IF(AND(OR(Calculations!$E$2=\"Shetland Health Board\",Calculations!$E$2=\"Western Isles Health Board\",Calculations!$E$2=\"Shetland Islands Local Authority\",Calculations!$E$2=\"Eilean Siar Local Authority\"),OR($F151=1,$F151=5)),0,hosp_count(VALUE(LEFT(Options!$B$24,2)),$C151,$E151,$F151,2016,$I151+$J151,1,$H151,$G151*$H151, Options!B8)))","v":9785.4997188434008},{"$f":"IF(AND(OR(Calculations!$E$2=\"Orkney Health Board\",Calculations!$E$2=\"Orkney Islands Local Authority\"),$F151=1),0,IF(AND(OR(Calculations!$E$2=\"Shetland Health Board\",Calculations!$E$2=\"Western Isles Health Board\",Calculations!$E$2=\"Shetland Islands Local Authority\",Calculations!$E$2=\"Eilean Siar Local Authority\"),OR($F151=1,$F151=5)),0,prem_mort(VALUE(LEFT(Options!$B$24,2)),$C151,$E151,$F151,2016,$I151,1,$H151,$G151*$H151,Options!B8)))","v":0},{"$f":"IF(AND(OR(Calculations!$E$2=\"Orkney Health Board\",Calculations!$E$2=\"Orkney Islands Local Authority\"),$F151=1),0,IF(AND(OR(Calculations!$E$2=\"Shetland Health Board\",Calculations!$E$2=\"Western Isles Health Board\",Calculations!$E$2=\"Shetland Islands Local Authority\",Calculations!$E$2=\"Eilean Siar Local Authority\"),OR($F151=1,$F151=5)),0,prem_mort(VALUE(LEFT(Options!$B$24,2)),$C151,$E151,$F151,2016,$I151+$J151,1,$H151,$G151*$H151,Options!B8)))","v":0},2769.2995215253318,2757.0567949682222,27333.000123952697,27212.164351620209,44605.223669999999,44423.005805535686,0,0,11077198.086101327,11028227.179872889,109332000.49581079,108848657.40648083,178420894.68000001,177692023.22214276,0,0,4000]
[null,"Female 80-84",81.856712000000002,89.736710000000002,"female",3,{"$f":"HLOOKUP(Calculations!$E$2,'Prevalence Rates'!$C$3:$BC$249,'Prevalence Rates'!$BD152,FALSE)","v":3.5284009560195895E-2},{"$f":"HLOOKUP(Calculations!$E$2,'Population 2016'!$C$3:$BC$249,'Population 2016'!BD152,FALSE)","v":16697},0,{"$f":"HLOOKUP(Results!E$4,Targeting!$C$3:$F$249,Targeting!$G152,FALSE)","v":1262},{"$f":"IF(AND(OR(Calculations!$E$2=\"Orkney Health Board\",Calculations!$E$2=\"Orkney Islands Local Authority\"),$F152=1),0,IF(AND(OR(Calculations!$E$2=\"Shetland Health Board\",Calculations!$E$2=\"Western Isles Health Board\",Calculations!$E$2=\"Shetland Islands Local Authority\",Calculations!$E$2=\"Eilean Siar Local Authority\"),OR($F152=1,$F152=5)),0,new_ci(VALUE(LEFT(Options!$B$24,2)),$C152,$E152,$F152,2016,$I152,1,$H152,$G152*$H152,Options!B8)))","v":697.19575531570001},{"$f":"IF(AND(OR(Calculations!$E$2=\"Orkney Health Board\",Calculations!$E$2=\"Orkney Islands Local Authority\"),$F152=1),0,IF(AND(OR(Calculations!$E$2=\"Shetland Health Board\",Calculations!$E$2=\"Western Isles Health Board\",Calculations!$E$2=\"Shetland Islands Local Authority\",Calculations!$E$2=\"Eilean Siar Local Authority\"),OR($F152=1,$F152=5)),0,new_ci(VALUE(LEFT(Options!$B$24,2)),$C152,$E152,$F152,2016,$I152+$J152,1,$H152,$G152*$H152,Options!B8)))","v":694.15369876290004},{"$f":"IF(AND(OR(Calculations!$E$2=\"Orkney Health Board\",Calculations!$E$2=\"Orkney Islands Local Authority\"),$F152=1),0,IF(AND(OR(Calculations!$E$2=\"Shetland Health Board\",Calculations!$E$2=\"Western Isles Health Board\",Calculations!$E$2=\"Shetland Islands Local Authority\",Calculations!$E$2=\"Eilean Siar Local Authority\"),OR($F152=1,$F152=5)),0,new_yllv2(VALUE(LEFT(Options!$B$24,2)),$C152,$D152,$E152,$F152,2016,$I152,1,$H152,$G152*$H152,Options!B8)))","v":4796.7054021804997},{"$f":"IF(AND(OR(Calculations!$E$2=\"Orkney Health Board\",Calculations!$E$2=\"Orkney Islands Local Authority\"),$F152=1),0,IF(AND(OR(Calculations!$E$2=\"Shetland Health Board\",Calculations!$E$2=\"Western Isles Health Board\",Calculations!$E$2=\"Shetland Islands Local Authority\",Calculations!$E$2=\"Eilean Siar Local Authority\"),OR($F152=1,$F152=5)),0,new_yllv2(VALUE(LEFT(Options!$B$24,2)),$C152,$D152,$E152,$F152,2016,$I152+$J152,1,$H152,$G152*$H152,Options!B8)))","v":4775.7760591814003},{"$f":"IF(AND(OR(Calculations!$E$2=\"Orkney Health Board\",Calculations!$E$2=\"Orkney Islands Local Authority\"),$F152=1),0,IF(AND(OR(Calculations!$E$2=\"Shetland Health Board\",Calculations!$E$2=\"Western Isles Health Board\",Calculations!$E$2=\"Shetland Islands Local Authority\",Calculations!$E$2=\"Eilean Siar Local Authority\"),OR($F152=1,$F152=5)),0,hosp_count(VALUE(LEFT(Options!$B$24,2)),$C152,$E152,$F152,2016,$I152,1,$H152,$G152*$H152, Options!B8)))","v":8427.6017503116},{"$f":"IF(AND(OR(Calculations!$E$2=\"Orkney Health Board\",Calculations!$E$2=\"Orkney Islands Local Authority\"),$F152=1),0,IF(AND(OR(Calculations!$E$2=\"Shetland Health Board\",Calculations!$E$2=\"Western Isles Health Board\",Calculations!$E$2=\"Shetland Islands Local Authority\",Calculations!$E$2=\"Eilean Siar Local Authority\"),OR($F152=1,$F152=5)),0,hosp_count(VALUE(LEFT(Options!$B$24,2)),$C152,$E152,$F152,2016,$I152+$J152,1,$H152,$G152*$H152, Options!B8)))","v":8393.1754008129992},{"$f":"IF(AND(OR(Calculations!$E$2=\"Orkney Health Board\",Calculations!$E$2=\"Orkney Islands Local Authority\"),$F152=1),0,IF(AND(OR(Calculations!$E$2=\"Shetland Health Board\",Calculations!$E$2=\"Western Isles Health Board\",Calculations!$E$2=\"Shetland Islands Local Authority\",Calculations!$E$2=\"Eilean Siar Local Authority\"),OR($F152=1,$F152=5)),0,prem_mort(VALUE(LEFT(Options!$B$24,2)),$C152,$E152,$F152,2016,$I152,1,$H152,$G152*$H152,Options!B8)))","v":0},{"$f":"IF(AND(OR(Calculations!$E$2=\"Orkney Health Board\",Calculations!$E$2=\"Orkney Islands Local Authority\"),$F152=1),0,IF(AND(OR(Calculations!$E$2=\"Shetland Health Board\",Calculations!$E$2=\"Western Isles Health Board\",Calculations!$E$2=\"Shetland Islands Local Authority\",Calculations!$E$2=\"Eilean Siar Local Authority\"),OR($F152=1,$F152=5)),0,prem_mort(VALUE(LEFT(Options!$B$24,2)),$C152,$E152,$F152,2016,$I152+$J152,1,$H152,$G152*$H152,Options!B8)))","v":0},4175.5749854207343,4157.3558050122783,28727.947548544646,28602.599623773138,50473.74828,50267.565435784869,0,0,10438937.463551836,10393389.512530696,71819868.871361613,71506499.059432849,126184370.7,125668913.58946218,0,0,2500]
[null,"Female 85-89",86.730819999999994,92.220819999999989,"female",3,{"$f":"HLOOKUP(Calculations!$E$2,'Prevalence Rates'!$C$3:$BC$249,'Prevalence Rates'!$BD153,FALSE)","v":3.5284009560195895E-2},{"$f":"HLOOKUP(Calculations!$E$2,'Population 2016'!$C$3:$BC$249,'Population 2016'!BD153,FALSE)","v":10459},0,{"$f":"HLOOKUP(Results!E$4,Targeting!$C$3:$F$249,Targeting!$G153,FALSE)","v":791},{"$f":"IF(AND(OR(Calculations!$E$2=\"Orkney Health Board\",Calculations!$E$2=\"Orkney Islands Local Authority\"),$F153=1),0,IF(AND(OR(Calculations!$E$2=\"Shetland Health Board\",Calculations!$E$2=\"Western Isles Health Board\",Calculations!$E$2=\"Shetland Islands Local Authority\",Calculations!$E$2=\"Eilean Siar Local Authority\"),OR($F153=1,$F153=5)),0,new_ci(VALUE(LEFT(Options!$B$24,2)),$C153,$E153,$F153,2016,$I153,1,$H153,$G153*$H153,Options!B8)))","v":653.8882912885},{"$f":"IF(AND(OR(Calculations!$E$2=\"Orkney Health Board\",Calculations!$E$2=\"Orkney Islands Local Authority\"),$F153=1),0,IF(AND(OR(Calculations!$E$2=\"Shetland Health Board\",Calculations!$E$2=\"Western Isles Health Board\",Calculations!$E$2=\"Shetland Islands Local Authority\",Calculations!$E$2=\"Eilean Siar Local Authority\"),OR($F153=1,$F153=5)),0,new_ci(VALUE(LEFT(Options!$B$24,2)),$C153,$E153,$F153,2016,$I153+$J153,1,$H153,$G153*$H153,Options!B8)))","v":651.08912587960003},{"$f":"IF(AND(OR(Calculations!$E$2=\"Orkney Health Board\",Calculations!$E$2=\"Orkney Islands Local Authority\"),$F153=1),0,IF(AND(OR(Calculations!$E$2=\"Shetland Health Board\",Calculations!$E$2=\"Western Isles Health Board\",Calculations!$E$2=\"Shetland Islands Local Authority\",Calculations!$E$2=\"Eilean Siar Local Authority\"),OR($F153=1,$F153=5)),0,new_yllv2(VALUE(LEFT(Options!$B$24,2)),$C153,$D153,$E153,$F153,2016,$I153,1,$H153,$G153*$H153,Options!B8)))","v":2935.9584278853999},{"$f":"IF(AND(OR(Calculations!$E$2=\"Orkney Health Board\",Calculations!$E$2=\"Orkney Islands Local Authority\"),$F153=1),0,IF(AND(OR(Calculations!$E$2=\"Shetland Health Board\",Calculations!$E$2=\"Western Isles Health Board\",Calculations!$E$2=\"Shetland Islands Local Authority\",Calculations!$E$2=\"Eilean Siar Local Authority\"),OR($F153=1,$F153=5)),0,new_yllv2(VALUE(LEFT(Options!$B$24,2)),$C153,$D153,$E153,$F153,2016,$I153+$J153,1,$H153,$G153*$H153,Options!B8)))","v":2923.3901751993999},{"$f":"IF(AND(OR(Calculations!$E$2=\"Orkney Health Board\",Calculations!$E$2=\"Orkney Islands Local Authority\"),$F153=1),0,IF(AND(OR(Calculations!$E$2=\"Shetland Health Board\",Calculations!$E$2=\"Western Isles Health Board\",Calculations!$E$2=\"Shetland Islands Local Authority\",Calculations!$E$2=\"Eilean Siar Local Authority\"),OR($F153=1,$F153=5)),0,hosp_count(VALUE(LEFT(Options!$B$24,2)),$C153,$E153,$F153,2016,$I153,1,$H153,$G153*$H153, Options!B8)))","v":5967.6178789523001},{"$f":"IF(AND(OR(Calculations!$E$2=\"Orkney Health Board\",Calculations!$E$2=\"Orkney Islands Local Authority\"),$F153=1),0,IF(AND(OR(Calculations!$E$2=\"Shetland Health Board\",Calculations!$E$2=\"Western Isles Health Board\",Calculations!$E$2=\"Shetland Islands Local Authority\",Calculations!$E$2=\"Eilean Siar Local Authority\"),OR($F153=1,$F153=5)),0,hosp_count(VALUE(LEFT(Options!$B$24,2)),$C153,$E153,$F153,2016,$I153+$J153,1,$H153,$G153*$H153, Options!B8)))","v":5943.2255432678003},{"$f":"IF(AND(OR(Calculations!$E$2=\"Orkney Health Board\",Calculations!$E$2=\"Orkney Islands Local Authority\"),$F153=1),0,IF(AND(OR(Calculations!$E$2=\"Shetland Health Board\",Calculations!$E$2=\"Western Isles Health Board\",Calculations!$E$2=\"Shetland Islands Local Authority\",Calculations!$E$2=\"Eilean Siar Local Authority\"),OR($F153=1,$F153=5)),0,prem_mort(VALUE(LEFT(Options!$B$24,2)),$C153,$E153,$F153,2016,$I153,1,$H153,$G153*$H153,Options!B8)))","v":0},{"$f":"IF(AND(OR(Calculations!$E$2=\"Orkney Health Board\",Calculations!$E$2=\"Orkney Islands Local Authority\"),$F153=1),0,IF(AND(OR(Calculations!$E$2=\"Shetland Health Board\",Calculations!$E$2=\"Western Isles Health Board\",Calculations!$E$2=\"Shetland Islands Local Authority\",Calculations!$E$2=\"Eilean Siar Local Authority\"),OR($F153=1,$F153=5)),0,prem_mort(VALUE(LEFT(Options!$B$24,2)),$C153,$E153,$F153,2016,$I153+$J153,1,$H153,$G153*$H153,Options!B8)))","v":0},6251.9197943254612,6225.1565721350034,28071.119876521658,27950.953008886128,57057.250970000008,56824.032347908986,0,0,9377879.6914881915,9337734.8582025059,42106679.814782485,41926429.513329193,85585876.455000013,85236048.521863475,0,0,1500]
[null,"Female 90+",92.779342999999997,96.279340000000005,"female",3,{"$f":"HLOOKUP(Calculations!$E$2,'Prevalence Rates'!$C$3:$BC$249,'Prevalence Rates'!$BD154,FALSE)","v":3.5284009560195895E-2},{"$f":"HLOOKUP(Calculations!$E$2,'Population 2016'!$C$3:$BC$249,'Population 2016'!BD154,FALSE)","v":6278},0,{"$f":"HLOOKUP(Results!E$4,Targeting!$C$3:$F$249,Targeting!$G154,FALSE)","v":475},{"$f":"IF(AND(OR(Calculations!$E$2=\"Orkney Health Board\",Calculations!$E$2=\"Orkney Islands Local Authority\"),$F154=1),0,IF(AND(OR(Calculations!$E$2=\"Shetland Health Board\",Calculations!$E$2=\"Western Isles Health Board\",Calculations!$E$2=\"Shetland Islands Local Authority\",Calculations!$E$2=\"Eilean Siar Local Authority\"),OR($F154=1,$F154=5)),0,new_ci(VALUE(LEFT(Options!$B$24,2)),$C154,$E154,$F154,2016,$I154,1,$H154,$G154*$H154,Options!B8)))","v":642.54769198849999},{"$f":"IF(AND(OR(Calculations!$E$2=\"Orkney Health Board\",Calculations!$E$2=\"Orkney Islands Local Authority\"),$F154=1),0,IF(AND(OR(Calculations!$E$2=\"Shetland Health Board\",Calculations!$E$2=\"Western Isles Health Board\",Calculations!$E$2=\"Shetland Islands Local Authority\",Calculations!$E$2=\"Eilean Siar Local Authority\"),OR($F154=1,$F154=5)),0,new_ci(VALUE(LEFT(Options!$B$24,2)),$C154,$E154,$F154,2016,$I154+$J154,1,$H154,$G154*$H154,Options!B8)))","v":639.9015782335},{"$f":"IF(AND(OR(Calculations!$E$2=\"Orkney Health Board\",Calculations!$E$2=\"Orkney Islands Local Authority\"),$F154=1),0,IF(AND(OR(Calculations!$E$2=\"Shetland Health Board\",Calculations!$E$2=\"Western Isles Health Board\",Calculations!$E$2=\"Shetland Islands Local Authority\",Calculations!$E$2=\"Eilean Siar Local Authority\"),OR($F154=1,$F154=5)),0,new_yllv2(VALUE(LEFT(Options!$B$24,2)),$C154,$D154,$E154,$F154,2016,$I154,1,$H154,$G154*$H154,Options!B8)))","v":1606.3673023281999},{"$f":"IF(AND(OR(Calculations!$E$2=\"Orkney Health Board\",Calculations!$E$2=\"Orkney Islands Local Authority\"),$F154=1),0,IF(AND(OR(Calculations!$E$2=\"Shetland Health Board\",Calculations!$E$2=\"Western Isles Health Board\",Calculations!$E$2=\"Shetland Islands Local Authority\",Calculations!$E$2=\"Eilean Siar Local Authority\"),OR($F154=1,$F154=5)),0,new_yllv2(VALUE(LEFT(Options!$B$24,2)),$C154,$D154,$E154,$F154,2016,$I154+$J154,1,$H154,$G154*$H154,Options!B8)))","v":1599.752025879},{"$f":"IF(AND(OR(Calculations!$E$2=\"Orkney Health Board\",Calculations!$E$2=\"Orkney Islands Local Authority\"),$F154=1),0,IF(AND(OR(Calculations!$E$2=\"Shetland Health Board\",Calculations!$E$2=\"Western Isles Health Board\",Calculations!$E$2=\"Shetland Islands Local Authority\",Calculations!$E$2=\"Eilean Siar Local Authority\"),OR($F154=1,$F154=5)),0,hosp_count(VALUE(LEFT(Options!$B$24,2)),$C154,$E154,$F154,2016,$I154,1,$H154,$G154*$H154, Options!B8)))","v":4170.6800816340001},{"$f":"IF(AND(OR(Calculations!$E$2=\"Orkney Health Board\",Calculations!$E$2=\"Orkney Islands Local Authority\"),$F154=1),0,IF(AND(OR(Calculations!$E$2=\"Shetland Health Board\",Calculations!$E$2=\"Western Isles Health Board\",Calculations!$E$2=\"Shetland Islands Local Authority\",Calculations!$E$2=\"Eilean Siar Local Authority\"),OR($F154=1,$F154=5)),0,hosp_count(VALUE(LEFT(Options!$B$24,2)),$C154,$E154,$F154,2016,$I154+$J154,1,$H154,$G154*$H154, Options!B8)))","v":4153.6253363481001},{"$f":"IF(AND(OR(Calculations!$E$2=\"Orkney Health Board\",Calculations!$E$2=\"Orkney Islands Local Authority\"),$F154=1),0,IF(AND(OR(Calculations!$E$2=\"Shetland Health Board\",Calculations!$E$2=\"Western Isles Health Board\",Calculations!$E$2=\"Shetland Islands Local Authority\",Calculations!$E$2=\"Eilean Siar Local Authority\"),OR($F154=1,$F154=5)),0,prem_mort(VALUE(LEFT(Options!$B$24,2)),$C154,$E154,$F154,2016,$I154,1,$H154,$G154*$H154,Options!B8)))","v":0},{"$f":"IF(AND(OR(Calculations!$E$2=\"Orkney Health Board\",Calculations!$E$2=\"Orkney Islands Local Authority\"),$F154=1),0,IF(AND(OR(Calculations!$E$2=\"Shetland Health Board\",Calculations!$E$2=\"Western Isles Health Board\",Calculations!$E$2=\"Shetland Islands Local Authority\",Calculations!$E$2=\"Eilean Siar Local Authority\"),OR($F154=1,$F154=5)),0,prem_mort(VALUE(LEFT(Options!$B$24,2)),$C154,$E154,$F154,2016,$I154+$J154,1,$H154,$G154*$H154,Options!B8)))","v":0},10234.910672005415,10192.761679412233,25587.245975281938,25481.873620245304,66433.260299999994,66161.601407265058,0,0,10234910.672005415,10192761.679412233,25587245.975281939,25481873.620245304,66433260.299999997,66161601.40726506,0,0,1000]
[null,"Male 0-4",2.0320822999999999,77.402082000000007,"male",3,{"$f":"HLOOKUP(Calculations!$E$2,'Prevalence Rates'!$C$3:$BC$249,'Prevalence Rates'!$BD155,FALSE)","v":0},{"$f":"HLOOKUP(Calculations!$E$2,'Population 2016'!$C$3:$BC$249,'Population 2016'!BD155,FALSE)","v":0},0,{"$f":"HLOOKUP(Results!E$4,Targeting!$C$3:$F$249,Targeting!$G155,FALSE)","v":0},{"$f":"IF(AND(OR(Calculations!$E$2=\"Orkney Health Board\",Calculations!$E$2=\"Orkney Islands Local Authority\"),$F155=1),0,IF(AND(OR(Calculations!$E$2=\"Shetland Health Board\",Calculations!$E$2=\"Western Isles Health Board\",Calculations!$E$2=\"Shetland Islands Local Authority\",Calculations!$E$2=\"Eilean Siar Local Authority\"),OR($F155=1,$F155=5)),0,new_ci(VALUE(LEFT(Options!$B$24,2)),$C155,$E155,$F155,2016,$I155,1,$H155,$G155*$H155,Options!B8)))","v":{"$error":"#VALUE!"}},{"$f":"IF(AND(OR(Calculations!$E$2=\"Orkney Health Board\",Calculations!$E$2=\"Orkney Islands Local Authority\"),$F155=1),0,IF(AND(OR(Calculations!$E$2=\"Shetland Health Board\",Calculations!$E$2=\"Western Isles Health Board\",Calculations!$E$2=\"Shetland Islands Local Authority\",Calculations!$E$2=\"Eilean Siar Local Authority\"),OR($F155=1,$F155=5)),0,new_ci(VALUE(LEFT(Options!$B$24,2)),$C155,$E155,$F155,2016,$I155+$J155,1,$H155,$G155*$H155,Options!B8)))","v":{"$error":"#VALUE!"}},{"$f":"IF(AND(OR(Calculations!$E$2=\"Orkney Health Board\",Calculations!$E$2=\"Orkney Islands Local Authority\"),$F155=1),0,IF(AND(OR(Calculations!$E$2=\"Shetland Health Board\",Calculations!$E$2=\"Western Isles Health Board\",Calculations!$E$2=\"Shetland Islands Local Authority\",Calculations!$E$2=\"Eilean Siar Local Authority\"),OR($F155=1,$F155=5)),0,new_yllv2(VALUE(LEFT(Options!$B$24,2)),$C155,$D155,$E155,$F155,2016,$I155,1,$H155,$G155*$H155,Options!B8)))","v":{"$error":"#VALUE!"}},{"$f":"IF(AND(OR(Calculations!$E$2=\"Orkney Health Board\",Calculations!$E$2=\"Orkney Islands Local Authority\"),$F155=1),0,IF(AND(OR(Calculations!$E$2=\"Shetland Health Board\",Calculations!$E$2=\"Western Isles Health Board\",Calculations!$E$2=\"Shetland Islands Local Authority\",Calculations!$E$2=\"Eilean Siar Local Authority\"),OR($F155=1,$F155=5)),0,new_yllv2(VALUE(LEFT(Options!$B$24,2)),$C155,$D155,$E155,$F155,2016,$I155+$J155,1,$H155,$G155*$H155,Options!B8)))","v":{"$error":"#VALUE!"}},{"$f":"IF(AND(OR(Calculations!$E$2=\"Orkney Health Board\",Calculations!$E$2=\"Orkney Islands Local Authority\"),$F155=1),0,IF(AND(OR(Calculations!$E$2=\"Shetland Health Board\",Calculations!$E$2=\"Western Isles Health Board\",Calculations!$E$2=\"Shetland Islands Local Authority\",Calculations!$E$2=\"Eilean Siar Local Authority\"),OR($F155=1,$F155=5)),0,hosp_count(VALUE(LEFT(Options!$B$24,2)),$C155,$E155,$F155,2016,$I155,1,$H155,$G155*$H155, Options!B8)))","v":{"$error":"#VALUE!"}},{"$f":"IF(AND(OR(Calculations!$E$2=\"Orkney Health Board\",Calculations!$E$2=\"Orkney Islands Local Authority\"),$F155=1),0,IF(AND(OR(Calculations!$E$2=\"Shetland Health Board\",Calculations!$E$2=\"Western Isles Health Board\",Calculations!$E$2=\"Shetland Islands Local Authority\",Calculations!$E$2=\"Eilean Siar Local Authority\"),OR($F155=1,$F155=5)),0,hosp_count(VALUE(LEFT(Options!$B$24,2)),$C155,$E155,$F155,2016,$I155+$J155,1,$H155,$G155*$H155, Options!B8)))","v":{"$error":"#VALUE!"}},{"$f":"IF(AND(OR(Calculations!$E$2=\"Orkney Health Board\",Calculations!$E$2=\"Orkney Islands Local Authority\"),$F155=1),0,IF(AND(OR(Calculations!$E$2=\"Shetland Health Board\",Calculations!$E$2=\"Western Isles Health Board\",Calculations!$E$2=\"Shetland Islands Local Authority\",Calculations!$E$2=\"Eilean Siar Local Authority\"),OR($F155=1,$F155=5)),0,prem_mort(VALUE(LEFT(Options!$B$24,2)),$C155,$E155,$F155,2016,$I155,1,$H155,$G155*$H155,Options!B8)))","v":{"$error":"#VALUE!"}},{"$f":"IF(AND(OR(Calculations!$E$2=\"Orkney Health Board\",Calculations!$E$2=\"Orkney Islands Local Authority\"),$F155=1),0,IF(AND(OR(Calculations!$E$2=\"Shetland Health Board\",Calculations!$E$2=\"Western Isles Health Board\",Calculations!$E$2=\"Shetland Islands Local Authority\",Calculations!$E$2=\"Eilean Siar Local Authority\"),OR($F155=1,$F155=5)),0,prem_mort(VALUE(LEFT(Options!$B$24,2)),$C155,$E155,$F155,2016,$I155+$J155,1,$H155,$G155*$H155,Options!B8)))","v":{"$error":"#VALUE!"}},{"$error":"#VALUE!"},{"$error":"#VALUE!"},{"$error":"#VALUE!"},{"$error":"#VALUE!"},{"$error":"#VALUE!"},{"$error":"#VALUE!"},{"$error":"#VALUE!"},{"$error":"#VALUE!"},{"$error":"#VALUE!"},{"$error":"#VALUE!"},{"$error":"#VALUE!"},{"$error":"#VALUE!"},{"$error":"#VALUE!"},{"$error":"#VALUE!"},{"$error":"#VALUE!"},{"$error":"#VALUE!"},5000]
[null,"Male 5-9",6.9784756000000003,77.398476000000002,"male",3,{"$f":"HLOOKUP(Calculations!$E$2,'Prevalence Rates'!$C$3:$BC$249,'Prevalence Rates'!$BD156,FALSE)","v":0},{"$f":"HLOOKUP(Calculations!$E$2,'Population 2016'!$C$3:$BC$249,'Population 2016'!BD156,FALSE)","v":0},0,{"$f":"HLOOKUP(Results!E$4,Targeting!$C$3:$F$249,Targeting!$G156,FALSE)","v":0},{"$f":"IF(AND(OR(Calculations!$E$2=\"Orkney Health Board\",Calculations!$E$2=\"Orkney Islands Local Authority\"),$F156=1),0,IF(AND(OR(Calculations!$E$2=\"Shetland Health Board\",Calculations!$E$2=\"Western Isles Health Board\",Calculations!$E$2=\"Shetland Islands Local Authority\",Calculations!$E$2=\"Eilean Siar Local Authority\"),OR($F156=1,$F156=5)),0,new_ci(VALUE(LEFT(Options!$B$24,2)),$C156,$E156,$F156,2016,$I156,1,$H156,$G156*$H156,Options!B8)))","v":{"$error":"#VALUE!"}},{"$f":"IF(AND(OR(Calculations!$E$2=\"Orkney Health Board\",Calculations!$E$2=\"Orkney Islands Local Authority\"),$F156=1),0,IF(AND(OR(Calculations!$E$2=\"Shetland Health Board\",Calculations!$E$2=\"Western Isles Health Board\",Calculations!$E$2=\"Shetland Islands Local Authority\",Calculations!$E$2=\"Eilean Siar Local Authority\"),OR($F156=1,$F156=5)),0,new_ci(VALUE(LEFT(Options!$B$24,2)),$C156,$E156,$F156,2016,$I156+$J156,1,$H156,$G156*$H156,Options!B8)))","v":{"$error":"#VALUE!"}},{"$f":"IF(AND(OR(Calculations!$E$2=\"Orkney Health Board\",Calculations!$E$2=\"Orkney Islands Local Authority\"),$F156=1),0,IF(AND(OR(Calculations!$E$2=\"Shetland Health Board\",Calculations!$E$2=\"Western Isles Health Board\",Calculations!$E$2=\"Shetland Islands Local Authority\",Calculations!$E$2=\"Eilean Siar Local Authority\"),OR($F156=1,$F156=5)),0,new_yllv2(VALUE(LEFT(Options!$B$24,2)),$C156,$D156,$E156,$F156,2016,$I156,1,$H156,$G156*$H156,Options!B8)))","v":{"$error":"#VALUE!"}},{"$f":"IF(AND(OR(Calculations!$E$2=\"Orkney Health Board\",Calculations!$E$2=\"Orkney Islands Local Authority\"),$F156=1),0,IF(AND(OR(Calculations!$E$2=\"Shetland Health Board\",Calculations!$E$2=\"Western Isles Health Board\",Calculations!$E$2=\"Shetland Islands Local Authority\",Calculations!$E$2=\"Eilean Siar Local Authority\"),OR($F156=1,$F156=5)),0,new_yllv2(VALUE(LEFT(Options!$B$24,2)),$C156,$D156,$E156,$F156,2016,$I156+$J156,1,$H156,$G156*$H156,Options!B8)))","v":{"$error":"#VALUE!"}},{"$f":"IF(AND(OR(Calculations!$E$2=\"Orkney Health Board\",Calculations!$E$2=\"Orkney Islands Local Authority\"),$F156=1),0,IF(AND(OR(Calculations!$E$2=\"Shetland Health Board\",Calculations!$E$2=\"Western Isles Health Board\",Calculations!$E$2=\"Shetland Islands Local Authority\",Calculations!$E$2=\"Eilean Siar Local Authority\"),OR($F156=1,$F156=5)),0,hosp_count(VALUE(LEFT(Options!$B$24,2)),$C156,$E156,$F156,2016,$I156,1,$H156,$G156*$H156, Options!B8)))","v":{"$error":"#VALUE!"}},{"$f":"IF(AND(OR(Calculations!$E$2=\"Orkney Health Board\",Calculations!$E$2=\"Orkney Islands Local Authority\"),$F156=1),0,IF(AND(OR(Calculations!$E$2=\"Shetland Health Board\",Calculations!$E$2=\"Western Isles Health Board\",Calculations!$E$2=\"Shetland Islands Local Authority\",Calculations!$E$2=\"Eilean Siar Local Authority\"),OR($F156=1,$F156=5)),0,hosp_count(VALUE(LEFT(Options!$B$24,2)),$C156,$E156,$F156,2016,$I156+$J156,1,$H156,$G156*$H156, Options!B8)))","v":{"$error":"#VALUE!"}},{"$f":"IF(AND(OR(Calculations!$E$2=\"Orkney Health Board\",Calculations!$E$2=\"Orkney Islands Local Authority\"),$F156=1),0,IF(AND(OR(Calculations!$E$2=\"Shetland Health Board\",Calculations!$E$2=\"Western Isles Health Board\",Calculations!$E$2=\"Shetland Islands Local Authority\",Calculations!$E$2=\"Eilean Siar Local Authority\"),OR($F156=1,$F156=5)),0,prem_mort(VALUE(LEFT(Options!$B$24,2)),$C156,$E156,$F156,2016,$I156,1,$H156,$G156*$H156,Options!B8)))","v":{"$error":"#VALUE!"}},{"$f":"IF(AND(OR(Calculations!$E$2=\"Orkney Health Board\",Calculations!$E$2=\"Orkney Islands Local Authority\"),$F156=1),0,IF(AND(OR(Calculations!$E$2=\"Shetland Health Board\",Calculations!$E$2=\"Western Isles Health Board\",Calculations!$E$2=\"Shetland Islands Local Authority\",Calculations!$E$2=\"Eilean Siar Local Authority\"),OR($F156=1,$F156=5)),0,prem_mort(VALUE(LEFT(Options!$B$24,2)),$C156,$E156,$F156,2016,$I156+$J156,1,$H156,$G156*$H156,Options!B8)))","v":{"$error":"#VALUE!"}},{"$error":"#VALUE!"},{"$error":"#VALUE!"},{"$error":"#VALUE!"},{"$error":"#VALUE!"},{"$error":"#VALUE!"},{"$error":"#VALUE!"},{"$error":"#VALUE!"},{"$error":"#VALUE!"},{"$error":"#VALUE!"},{"$error":"#VALUE!"},{"$error":"#VALUE!"},{"$error":"#VALUE!"},{"$f":"W156*$AI156","v":{"$error":"#VALUE!"}},{"$f":"X156*$AI156","v":{"$error":"#VALUE!"}},{"$f":"Y156*$AI156","v":{"$error":"#VALUE!"}},{"$f":"Z156*$AI156","v":{"$error":"#VALUE!"}},5500]
[null,"Male 10-15",12.471144000000001,77.921140000000008,"male",3,{"$f":"HLOOKUP(Calculations!$E$2,'Prevalence Rates'!$C$3:$BC$249,'Prevalence Rates'!$BD157,FALSE)","v":0},{"$f":"HLOOKUP(Calculations!$E$2,'Population 2016'!$C$3:$BC$249,'Population 2016'!BD157,FALSE)","v":0},0,{"$f":"HLOOKUP(Results!E$4,Targeting!$C$3:$F$249,Targeting!$G157,FALSE)","v":0},{"$f":"IF(AND(OR(Calculations!$E$2=\"Orkney Health Board\",Calculations!$E$2=\"Orkney Islands Local Authority\"),$F157=1),0,IF(AND(OR(Calculations!$E$2=\"Shetland Health Board\",Calculations!$E$2=\"Western Isles Health Board\",Calculations!$E$2=\"Shetland Islands Local Authority\",Calculations!$E$2=\"Eilean Siar Local Authority\"),OR($F157=1,$F157=5)),0,new_ci(VALUE(LEFT(Options!$B$24,2)),$C157,$E157,$F157,2016,$I157,1,$H157,$G157*$H157,Options!B8)))","v":{"$error":"#VALUE!"}},{"$f":"IF(AND(OR(Calculations!$E$2=\"Orkney Health Board\",Calculations!$E$2=\"Orkney Islands Local Authority\"),$F157=1),0,IF(AND(OR(Calculations!$E$2=\"Shetland Health Board\",Calculations!$E$2=\"Western Isles Health Board\",Calculations!$E$2=\"Shetland Islands Local Authority\",Calculations!$E$2=\"Eilean Siar Local Authority\"),OR($F157=1,$F157=5)),0,new_ci(VALUE(LEFT(Options!$B$24,2)),$C157,$E157,$F157,2016,$I157+$J157,1,$H157,$G157*$H157,Options!B8)))","v":{"$error":"#VALUE!"}},{"$f":"IF(AND(OR(Calculations!$E$2=\"Orkney Health Board\",Calculations!$E$2=\"Orkney Islands Local Authority\"),$F157=1),0,IF(AND(OR(Calculations!$E$2=\"Shetland Health Board\",Calculations!$E$2=\"Western Isles Health Board\",Calculations!$E$2=\"Shetland Islands Local Authority\",Calculations!$E$2=\"Eilean Siar Local Authority\"),OR($F157=1,$F157=5)),0,new_yllv2(VALUE(LEFT(Options!$B$24,2)),$C157,$D157,$E157,$F157,2016,$I157,1,$H157,$G157*$H157,Options!B8)))","v":{"$error":"#VALUE!"}},{"$f":"IF(AND(OR(Calculations!$E$2=\"Orkney Health Board\",Calculations!$E$2=\"Orkney Islands Local Authority\"),$F157=1),0,IF(AND(OR(Calculations!$E$2=\"Shetland Health Board\",Calculations!$E$2=\"Western Isles Health Board\",Calculations!$E$2=\"Shetland Islands Local Authority\",Calculations!$E$2=\"Eilean Siar Local Authority\"),OR($F157=1,$F157=5)),0,new_yllv2(VALUE(LEFT(Options!$B$24,2)),$C157,$D157,$E157,$F157,2016,$I157+$J157,1,$H157,$G157*$H157,Options!B8)))","v":{"$error":"#VALUE!"}},{"$f":"IF(AND(OR(Calculations!$E$2=\"Orkney Health Board\",Calculations!$E$2=\"Orkney Islands Local Authority\"),$F157=1),0,IF(AND(OR(Calculations!$E$2=\"Shetland Health Board\",Calculations!$E$2=\"Western Isles Health Board\",Calculations!$E$2=\"Shetland Islands Local Authority\",Calculations!$E$2=\"Eilean Siar Local Authority\"),OR($F157=1,$F157=5)),0,hosp_count(VALUE(LEFT(Options!$B$24,2)),$C157,$E157,$F157,2016,$I157,1,$H157,$G157*$H157, Options!B8)))","v":{"$error":"#VALUE!"}},{"$f":"IF(AND(OR(Calculations!$E$2=\"Orkney Health Board\",Calculations!$E$2=\"Orkney Islands Local Authority\"),$F157=1),0,IF(AND(OR(Calculations!$E$2=\"Shetland Health Board\",Calculations!$E$2=\"Western Isles Health Board\",Calculations!$E$2=\"Shetland Islands Local Authority\",Calculations!$E$2=\"Eilean Siar Local Authority\"),OR($F157=1,$F157=5)),0,hosp_count(VALUE(LEFT(Options!$B$24,2)),$C157,$E157,$F157,2016,$I157+$J157,1,$H157,$G157*$H157, Options!B8)))","v":{"$error":"#VALUE!"}},{"$f":"IF(AND(OR(Calculations!$E$2=\"Orkney Health Board\",Calculations!$E$2=\"Orkney Islands Local Authority\"),$F157=1),0,IF(AND(OR(Calculations!$E$2=\"Shetland Health Board\",Calculations!$E$2=\"Western Isles Health Board\",Calculations!$E$2=\"Shetland Islands Local Authority\",Calculations!$E$2=\"Eilean Siar Local Authority\"),OR($F157=1,$F157=5)),0,prem_mort(VALUE(LEFT(Options!$B$24,2)),$C157,$E157,$F157,2016,$I157,1,$H157,$G157*$H157,Options!B8)))","v":{"$error":"#VALUE!"}},{"$f":"IF(AND(OR(Calculations!$E$2=\"Orkney Health Board\",Calculations!$E$2=\"Orkney Islands Local Authority\"),$F157=1),0,IF(AND(OR(Calculations!$E$2=\"Shetland Health Board\",Calculations!$E$2=\"Western Isles Health Board\",Calculations!$E$2=\"Shetland Islands Local Authority\",Calculations!$E$2=\"Eilean Siar Local Authority\"),OR($F157=1,$F157=5)),0,prem_mort(VALUE(LEFT(Options!$B$24,2)),$C157,$E157,$F157,2016,$I157+$J157,1,$H157,$G157*$H157,Options!B8)))","v":{"$error":"#VALUE!"}},{"$error":"#VALUE!"},{"$error":"#VALUE!"},{"$error":"#VALUE!"},{"$error":"#VALUE!"},{"$error":"#VALUE!"},{"$error":"#VALUE!"},{"$error":"#VALUE!"},{"$error":"#VALUE!"},{"$error":"#VALUE!"},{"$error":"#VALUE!"},{"$error":"#VALUE!"},{"$error":"#VALUE!"},{"$error":"#VALUE!"},{"$error":"#VALUE!"},{"$error":"#VALUE!"},{"$error":"#VALUE!"},6600]
[null,"Male 16-19",17.556318000000001,77.07632000000001,"male",3,{"$f":"HLOOKUP(Calculations!$E$2,'Prevalence Rates'!$C$3:$BC$249,'Prevalence Rates'!$BD158,FALSE)","v":0.30078363548549003},{"$f":"HLOOKUP(Calculations!$E$2,'Population 2016'!$C$3:$BC$249,'Population 2016'!BD158,FALSE)","v":23727},0,{"$f":"HLOOKUP(Results!E$4,Targeting!$C$3:$F$249,Targeting!$G158,FALSE)","v":1794},{"$f":"IF(AND(OR(Calculations!$E$2=\"Orkney Health Board\",Calculations!$E$2=\"Orkney Islands Local Authority\"),$F158=1),0,IF(AND(OR(Calculations!$E$2=\"Shetland Health Board\",Calculations!$E$2=\"Western Isles Health Board\",Calculations!$E$2=\"Shetland Islands Local Authority\",Calculations!$E$2=\"Eilean Siar Local Authority\"),OR($F158=1,$F158=5)),0,new_ci(VALUE(LEFT(Options!$B$24,2)),$C158,$E158,$F158,2016,$I158,1,$H158,$G158*$H158,Options!B8)))","v":10.154830758099999},{"$f":"IF(AND(OR(Calculations!$E$2=\"Orkney Health Board\",Calculations!$E$2=\"Orkney Islands Local Authority\"),$F158=1),0,IF(AND(OR(Calculations!$E$2=\"Shetland Health Board\",Calculations!$E$2=\"Western Isles Health Board\",Calculations!$E$2=\"Shetland Islands Local Authority\",Calculations!$E$2=\"Eilean Siar Local Authority\"),OR($F158=1,$F158=5)),0,new_ci(VALUE(LEFT(Options!$B$24,2)),$C158,$E158,$F158,2016,$I158+$J158,1,$H158,$G158*$H158,Options!B8)))","v":10.110465317499999},{"$f":"IF(AND(OR(Calculations!$E$2=\"Orkney Health Board\",Calculations!$E$2=\"Orkney Islands Local Authority\"),$F158=1),0,IF(AND(OR(Calculations!$E$2=\"Shetland Health Board\",Calculations!$E$2=\"Western Isles Health Board\",Calculations!$E$2=\"Shetland Islands Local Authority\",Calculations!$E$2=\"Eilean Siar Local Authority\"),OR($F158=1,$F158=5)),0,new_yllv2(VALUE(LEFT(Options!$B$24,2)),$C158,$D158,$E158,$F158,2016,$I158,1,$H158,$G158*$H158,Options!B8)))","v":594.26071627370004},{"$f":"IF(AND(OR(Calculations!$E$2=\"Orkney Health Board\",Calculations!$E$2=\"Orkney Islands Local Authority\"),$F158=1),0,IF(AND(OR(Calculations!$E$2=\"Shetland Health Board\",Calculations!$E$2=\"Western Isles Health Board\",Calculations!$E$2=\"Shetland Islands Local Authority\",Calculations!$E$2=\"Eilean Siar Local Authority\"),OR($F158=1,$F158=5)),0,new_yllv2(VALUE(LEFT(Options!$B$24,2)),$C158,$D158,$E158,$F158,2016,$I158+$J158,1,$H158,$G158*$H158,Options!B8)))","v":591.664450601},{"$f":"IF(AND(OR(Calculations!$E$2=\"Orkney Health Board\",Calculations!$E$2=\"Orkney Islands Local Authority\"),$F158=1),0,IF(AND(OR(Calculations!$E$2=\"Shetland Health Board\",Calculations!$E$2=\"Western Isles Health Board\",Calculations!$E$2=\"Shetland Islands Local Authority\",Calculations!$E$2=\"Eilean Siar Local Authority\"),OR($F158=1,$F158=5)),0,hosp_count(VALUE(LEFT(Options!$B$24,2)),$C158,$E158,$F158,2016,$I158,1,$H158,$G158*$H158, Options!B8)))","v":1609.2337632294},{"$f":"IF(AND(OR(Calculations!$E$2=\"Orkney Health Board\",Calculations!$E$2=\"Orkney Islands Local Authority\"),$F158=1),0,IF(AND(OR(Calculations!$E$2=\"Shetland Health Board\",Calculations!$E$2=\"Western Isles Health Board\",Calculations!$E$2=\"Shetland Islands Local Authority\",Calculations!$E$2=\"Eilean Siar Local Authority\"),OR($F158=1,$F158=5)),0,hosp_count(VALUE(LEFT(Options!$B$24,2)),$C158,$E158,$F158,2016,$I158+$J158,1,$H158,$G158*$H158, Options!B8)))","v":1602.7131620895},{"$f":"IF(AND(OR(Calculations!$E$2=\"Orkney Health Board\",Calculations!$E$2=\"Orkney Islands Local Authority\"),$F158=1),0,IF(AND(OR(Calculations!$E$2=\"Shetland Health Board\",Calculations!$E$2=\"Western Isles Health Board\",Calculations!$E$2=\"Shetland Islands Local Authority\",Calculations!$E$2=\"Eilean Siar Local Authority\"),OR($F158=1,$F158=5)),0,prem_mort(VALUE(LEFT(Options!$B$24,2)),$C158,$E158,$F158,2016,$I158,1,$H158,$G158*$H158,Options!B8)))","v":10.154830758099999},{"$f":"IF(AND(OR(Calculations!$E$2=\"Orkney Health Board\",Calculations!$E$2=\"Orkney Islands Local Authority\"),$F158=1),0,IF(AND(OR(Calculations!$E$2=\"Shetland Health Board\",Calculations!$E$2=\"Western Isles Health Board\",Calculations!$E$2=\"Shetland Islands Local Authority\",Calculations!$E$2=\"Eilean Siar Local Authority\"),OR($F158=1,$F158=5)),0,prem_mort(VALUE(LEFT(Options!$B$24,2)),$C158,$E158,$F158,2016,$I158+$J158,1,$H158,$G158*$H158,Options!B8)))","v":10.110465317499999},42.798629232941373,42.611646299574325,2504.5758683090999,2493.6336266742528,6782.2892199999997,6754.807443374636,42.798629232941373,42.611646299574325,188313.96862494203,187491.24371812702,11020133.82056004,10971987.957366712,29842072.568,29721152.750848398,188313.96862494203,187491.24371812702,4400]
[null,"Male 20-24",22.054632000000002,77.704629999999995,"male",3,{"$f":"HLOOKUP(Calculations!$E$2,'Prevalence Rates'!$C$3:$BC$249,'Prevalence Rates'!$BD159,FALSE)","v":0.30078363548549003},{"$f":"HLOOKUP(Calculations!$E$2,'Population 2016'!$C$3:$BC$249,'Population 2016'!BD159,FALSE)","v":35247},0,{"$f":"HLOOKUP(Results!E$4,Targeting!$C$3:$F$249,Targeting!$G159,FALSE)","v":2665},{"$f":"IF(AND(OR(Calculations!$E$2=\"Orkney Health Board\",Calculations!$E$2=\"Orkney Islands Local Authority\"),$F159=1),0,IF(AND(OR(Calculations!$E$2=\"Shetland Health Board\",Calculations!$E$2=\"Western Isles Health Board\",Calculations!$E$2=\"Shetland Islands Local Authority\",Calculations!$E$2=\"Eilean Siar Local Authority\"),OR($F159=1,$F159=5)),0,new_ci(VALUE(LEFT(Options!$B$24,2)),$C159,$E159,$F159,2016,$I159,1,$H159,$G159*$H159,Options!B8)))","v":21.183800435199998},{"$f":"IF(AND(OR(Calculations!$E$2=\"Orkney Health Board\",Calculations!$E$2=\"Orkney Islands Local Authority\"),$F159=1),0,IF(AND(OR(Calculations!$E$2=\"Shetland Health Board\",Calculations!$E$2=\"Western Isles Health Board\",Calculations!$E$2=\"Shetland Islands Local Authority\",Calculations!$E$2=\"Eilean Siar Local Authority\"),OR($F159=1,$F159=5)),0,new_ci(VALUE(LEFT(Options!$B$24,2)),$C159,$E159,$F159,2016,$I159+$J159,1,$H159,$G159*$H159,Options!B8)))","v":21.091264439700002},{"$f":"IF(AND(OR(Calculations!$E$2=\"Orkney Health Board\",Calculations!$E$2=\"Orkney Islands Local Authority\"),$F159=1),0,IF(AND(OR(Calculations!$E$2=\"Shetland Health Board\",Calculations!$E$2=\"Western Isles Health Board\",Calculations!$E$2=\"Shetland Islands Local Authority\",Calculations!$E$2=\"Eilean Siar Local Authority\"),OR($F159=1,$F159=5)),0,new_yllv2(VALUE(LEFT(Options!$B$24,2)),$C159,$D159,$E159,$F159,2016,$I159,1,$H159,$G159*$H159,Options!B8)))","v":1157.6946514161},{"$f":"IF(AND(OR(Calculations!$E$2=\"Orkney Health Board\",Calculations!$E$2=\"Orkney Islands Local Authority\"),$F159=1),0,IF(AND(OR(Calculations!$E$2=\"Shetland Health Board\",Calculations!$E$2=\"Western Isles Health Board\",Calculations!$E$2=\"Shetland Islands Local Authority\",Calculations!$E$2=\"Eilean Siar Local Authority\"),OR($F159=1,$F159=5)),0,new_yllv2(VALUE(LEFT(Options!$B$24,2)),$C159,$D159,$E159,$F159,2016,$I159+$J159,1,$H159,$G159*$H159,Options!B8)))","v":1152.6375594471001},{"$f":"IF(AND(OR(Calculations!$E$2=\"Orkney Health Board\",Calculations!$E$2=\"Orkney Islands Local Authority\"),$F159=1),0,IF(AND(OR(Calculations!$E$2=\"Shetland Health Board\",Calculations!$E$2=\"Western Isles Health Board\",Calculations!$E$2=\"Shetland Islands Local Authority\",Calculations!$E$2=\"Eilean Siar Local Authority\"),OR($F159=1,$F159=5)),0,hosp_count(VALUE(LEFT(Options!$B$24,2)),$C159,$E159,$F159,2016,$I159,1,$H159,$G159*$H159, Options!B8)))","v":2804.4106752117},{"$f":"IF(AND(OR(Calculations!$E$2=\"Orkney Health Board\",Calculations!$E$2=\"Orkney Islands Local Authority\"),$F159=1),0,IF(AND(OR(Calculations!$E$2=\"Shetland Health Board\",Calculations!$E$2=\"Western Isles Health Board\",Calculations!$E$2=\"Shetland Islands Local Authority\",Calculations!$E$2=\"Eilean Siar Local Authority\"),OR($F159=1,$F159=5)),0,hosp_count(VALUE(LEFT(Options!$B$24,2)),$C159,$E159,$F159,2016,$I159+$J159,1,$H159,$G159*$H159, Options!B8)))","v":2793.0473468994001},{"$f":"IF(AND(OR(Calculations!$E$2=\"Orkney Health Board\",Calculations!$E$2=\"Orkney Islands Local Authority\"),$F159=1),0,IF(AND(OR(Calculations!$E$2=\"Shetland Health Board\",Calculations!$E$2=\"Western Isles Health Board\",Calculations!$E$2=\"Shetland Islands Local Authority\",Calculations!$E$2=\"Eilean Siar Local Authority\"),OR($F159=1,$F159=5)),0,prem_mort(VALUE(LEFT(Options!$B$24,2)),$C159,$E159,$F159,2016,$I159,1,$H159,$G159*$H159,Options!B8)))","v":21.183800435199998},{"$f":"IF(AND(OR(Calculations!$E$2=\"Orkney Health Board\",Calculations!$E$2=\"Orkney Islands Local Authority\"),$F159=1),0,IF(AND(OR(Calculations!$E$2=\"Shetland Health Board\",Calculations!$E$2=\"Western Isles Health Board\",Calculations!$E$2=\"Shetland Islands Local Authority\",Calculations!$E$2=\"Eilean Siar Local Authority\"),OR($F159=1,$F159=5)),0,prem_mort(VALUE(LEFT(Options!$B$24,2)),$C159,$E159,$F159,2016,$I159+$J159,1,$H159,$G159*$H159,Options!B8)))","v":21.091264439700002},60.101002738389077,59.838466932504907,3284.5196794510171,3270.1720981845269,7956.4521100000002,7924.2129738684134,60.101002738389077,59.838466932504907,360606.01643033448,359030.80159502942,19707118.076706104,19621032.589107163,47738712.660000004,47545277.843210481,360606.01643033448,359030.80159502942,6000]
[null,"Male 25-29",26.959762999999999,77.789760000000001,"male",3,{"$f":"HLOOKUP(Calculations!$E$2,'Prevalence Rates'!$C$3:$BC$249,'Prevalence Rates'!$BD160,FALSE)","v":0.19099991889950269},{"$f":"HLOOKUP(Calculations!$E$2,'Population 2016'!$C$3:$BC$249,'Population 2016'!BD160,FALSE)","v":35940},0,{"$f":"HLOOKUP(Results!E$4,Targeting!$C$3:$F$249,Targeting!$G160,FALSE)","v":2717},{"$f":"IF(AND(OR(Calculations!$E$2=\"Orkney Health Board\",Calculations!$E$2=\"Orkney Islands Local Authority\"),$F160=1),0,IF(AND(OR(Calculations!$E$2=\"Shetland Health Board\",Calculations!$E$2=\"Western Isles Health Board\",Calculations!$E$2=\"Shetland Islands Local Authority\",Calculations!$E$2=\"Eilean Siar Local Authority\"),OR($F160=1,$F160=5)),0,new_ci(VALUE(LEFT(Options!$B$24,2)),$C160,$E160,$F160,2016,$I160,1,$H160,$G160*$H160,Options!B8)))","v":31.2773790189},{"$f":"IF(AND(OR(Calculations!$E$2=\"Orkney Health Board\",Calculations!$E$2=\"Orkney Islands Local Authority\"),$F160=1),0,IF(AND(OR(Calculations!$E$2=\"Shetland Health Board\",Calculations!$E$2=\"Western Isles Health Board\",Calculations!$E$2=\"Shetland Islands Local Authority\",Calculations!$E$2=\"Eilean Siar Local Authority\"),OR($F160=1,$F160=5)),0,new_ci(VALUE(LEFT(Options!$B$24,2)),$C160,$E160,$F160,2016,$I160+$J160,1,$H160,$G160*$H160,Options!B8)))","v":31.132261875299999},{"$f":"IF(AND(OR(Calculations!$E$2=\"Orkney Health Board\",Calculations!$E$2=\"Orkney Islands Local Authority\"),$F160=1),0,IF(AND(OR(Calculations!$E$2=\"Shetland Health Board\",Calculations!$E$2=\"Western Isles Health Board\",Calculations!$E$2=\"Shetland Islands Local Authority\",Calculations!$E$2=\"Eilean Siar Local Authority\"),OR($F160=1,$F160=5)),0,new_yllv2(VALUE(LEFT(Options!$B$24,2)),$C160,$D160,$E160,$F160,2016,$I160,1,$H160,$G160*$H160,Options!B8)))","v":1558.5517026796999},{"$f":"IF(AND(OR(Calculations!$E$2=\"Orkney Health Board\",Calculations!$E$2=\"Orkney Islands Local Authority\"),$F160=1),0,IF(AND(OR(Calculations!$E$2=\"Shetland Health Board\",Calculations!$E$2=\"Western Isles Health Board\",Calculations!$E$2=\"Shetland Islands Local Authority\",Calculations!$E$2=\"Eilean Siar Local Authority\"),OR($F160=1,$F160=5)),0,new_yllv2(VALUE(LEFT(Options!$B$24,2)),$C160,$D160,$E160,$F160,2016,$I160+$J160,1,$H160,$G160*$H160,Options!B8)))","v":1551.3205158494},{"$f":"IF(AND(OR(Calculations!$E$2=\"Orkney Health Board\",Calculations!$E$2=\"Orkney Islands Local Authority\"),$F160=1),0,IF(AND(OR(Calculations!$E$2=\"Shetland Health Board\",Calculations!$E$2=\"Western Isles Health Board\",Calculations!$E$2=\"Shetland Islands Local Authority\",Calculations!$E$2=\"Eilean Siar Local Authority\"),OR($F160=1,$F160=5)),0,hosp_count(VALUE(LEFT(Options!$B$24,2)),$C160,$E160,$F160,2016,$I160,1,$H160,$G160*$H160, Options!B8)))","v":3403.3914588540001},{"$f":"IF(AND(OR(Calculations!$E$2=\"Orkney Health Board\",Calculations!$E$2=\"Orkney Islands Local Authority\"),$F160=1),0,IF(AND(OR(Calculations!$E$2=\"Shetland Health Board\",Calculations!$E$2=\"Western Isles Health Board\",Calculations!$E$2=\"Shetland Islands Local Authority\",Calculations!$E$2=\"Eilean Siar Local Authority\"),OR($F160=1,$F160=5)),0,hosp_count(VALUE(LEFT(Options!$B$24,2)),$C160,$E160,$F160,2016,$I160+$J160,1,$H160,$G160*$H160, Options!B8)))","v":3389.4545702646001},{"$f":"IF(AND(OR(Calculations!$E$2=\"Orkney Health Board\",Calculations!$E$2=\"Orkney Islands Local Authority\"),$F160=1),0,IF(AND(OR(Calculations!$E$2=\"Shetland Health Board\",Calculations!$E$2=\"Western Isles Health Board\",Calculations!$E$2=\"Shetland Islands Local Authority\",Calculations!$E$2=\"Eilean Siar Local Authority\"),OR($F160=1,$F160=5)),0,prem_mort(VALUE(LEFT(Options!$B$24,2)),$C160,$E160,$F160,2016,$I160,1,$H160,$G160*$H160,Options!B8)))","v":31.2773790189},{"$f":"IF(AND(OR(Calculations!$E$2=\"Orkney Health Board\",Calculations!$E$2=\"Orkney Islands Local Authority\"),$F160=1),0,IF(AND(OR(Calculations!$E$2=\"Shetland Health Board\",Calculations!$E$2=\"Western Isles Health Board\",Calculations!$E$2=\"Shetland Islands Local Authority\",Calculations!$E$2=\"Eilean Siar Local Authority\"),OR($F160=1,$F160=5)),0,prem_mort(VALUE(LEFT(Options!$B$24,2)),$C160,$E160,$F160,2016,$I160+$J160,1,$H160,$G160*$H160,Options!B8)))","v":31.132261875299999},87.026652807178621,86.622876670283802,4336.5378483018922,4316.4176846115743,9469.6479099999997,9430.8697002353929,87.026652807178621,86.622876670283802,522159.91684307175,519737.26002170279,26019227.089811351,25898506.107669447,56817887.460000001,56585218.201412357,522159.91684307175,519737.26002170279,6000]
[null,"Male 30-34",31.981521999999998,78.061520000000002,"male",3,{"$f":"HLOOKUP(Calculations!$E$2,'Prevalence Rates'!$C$3:$BC$249,'Prevalence Rates'!$BD161,FALSE)","v":0.19099991889950269},{"$f":"HLOOKUP(Calculations!$E$2,'Population 2016'!$C$3:$BC$249,'Population 2016'!BD161,FALSE)","v":34643},0,{"$f":"HLOOKUP(Results!E$4,Targeting!$C$3:$F$249,Targeting!$G161,FALSE)","v":2619},{"$f":"IF(AND(OR(Calculations!$E$2=\"Orkney Health Board\",Calculations!$E$2=\"Orkney Islands Local Authority\"),$F161=1),0,IF(AND(OR(Calculations!$E$2=\"Shetland Health Board\",Calculations!$E$2=\"Western Isles Health Board\",Calculations!$E$2=\"Shetland Islands Local Authority\",Calculations!$E$2=\"Eilean Siar Local Authority\"),OR($F161=1,$F161=5)),0,new_ci(VALUE(LEFT(Options!$B$24,2)),$C161,$E161,$F161,2016,$I161,1,$H161,$G161*$H161,Options!B8)))","v":44.038333608400002},{"$f":"IF(AND(OR(Calculations!$E$2=\"Orkney Health Board\",Calculations!$E$2=\"Orkney Islands Local Authority\"),$F161=1),0,IF(AND(OR(Calculations!$E$2=\"Shetland Health Board\",Calculations!$E$2=\"Western Isles Health Board\",Calculations!$E$2=\"Shetland Islands Local Authority\",Calculations!$E$2=\"Eilean Siar Local Authority\"),OR($F161=1,$F161=5)),0,new_ci(VALUE(LEFT(Options!$B$24,2)),$C161,$E161,$F161,2016,$I161+$J161,1,$H161,$G161*$H161,Options!B8)))","v":43.8340796317},{"$f":"IF(AND(OR(Calculations!$E$2=\"Orkney Health Board\",Calculations!$E$2=\"Orkney Islands Local Authority\"),$F161=1),0,IF(AND(OR(Calculations!$E$2=\"Shetland Health Board\",Calculations!$E$2=\"Western Isles Health Board\",Calculations!$E$2=\"Shetland Islands Local Authority\",Calculations!$E$2=\"Eilean Siar Local Authority\"),OR($F161=1,$F161=5)),0,new_yllv2(VALUE(LEFT(Options!$B$24,2)),$C161,$D161,$E161,$F161,2016,$I161,1,$H161,$G161*$H161,Options!B8)))","v":1985.2479909900001},{"$f":"IF(AND(OR(Calculations!$E$2=\"Orkney Health Board\",Calculations!$E$2=\"Orkney Islands Local Authority\"),$F161=1),0,IF(AND(OR(Calculations!$E$2=\"Shetland Health Board\",Calculations!$E$2=\"Western Isles Health Board\",Calculations!$E$2=\"Shetland Islands Local Authority\",Calculations!$E$2=\"Eilean Siar Local Authority\"),OR($F161=1,$F161=5)),0,new_yllv2(VALUE(LEFT(Options!$B$24,2)),$C161,$D161,$E161,$F161,2016,$I161+$J161,1,$H161,$G161*$H161,Options!B8)))","v":1976.0402221289},{"$f":"IF(AND(OR(Calculations!$E$2=\"Orkney Health Board\",Calculations!$E$2=\"Orkney Islands Local Authority\"),$F161=1),0,IF(AND(OR(Calculations!$E$2=\"Shetland Health Board\",Calculations!$E$2=\"Western Isles Health Board\",Calculations!$E$2=\"Shetland Islands Local Authority\",Calculations!$E$2=\"Eilean Siar Local Authority\"),OR($F161=1,$F161=5)),0,hosp_count(VALUE(LEFT(Options!$B$24,2)),$C161,$E161,$F161,2016,$I161,1,$H161,$G161*$H161, Options!B8)))","v":3920.6815400494002},{"$f":"IF(AND(OR(Calculations!$E$2=\"Orkney Health Board\",Calculations!$E$2=\"Orkney Islands Local Authority\"),$F161=1),0,IF(AND(OR(Calculations!$E$2=\"Shetland Health Board\",Calculations!$E$2=\"Western Isles Health Board\",Calculations!$E$2=\"Shetland Islands Local Authority\",Calculations!$E$2=\"Eilean Siar Local Authority\"),OR($F161=1,$F161=5)),0,hosp_count(VALUE(LEFT(Options!$B$24,2)),$C161,$E161,$F161,2016,$I161+$J161,1,$H161,$G161*$H161, Options!B8)))","v":3904.6260365847002},{"$f":"IF(AND(OR(Calculations!$E$2=\"Orkney Health Board\",Calculations!$E$2=\"Orkney Islands Local Authority\"),$F161=1),0,IF(AND(OR(Calculations!$E$2=\"Shetland Health Board\",Calculations!$E$2=\"Western Isles Health Board\",Calculations!$E$2=\"Shetland Islands Local Authority\",Calculations!$E$2=\"Eilean Siar Local Authority\"),OR($F161=1,$F161=5)),0,prem_mort(VALUE(LEFT(Options!$B$24,2)),$C161,$E161,$F161,2016,$I161,1,$H161,$G161*$H161,Options!B8)))","v":44.038333608400002},{"$f":"IF(AND(OR(Calculations!$E$2=\"Orkney Health Board\",Calculations!$E$2=\"Orkney Islands Local Authority\"),$F161=1),0,IF(AND(OR(Calculations!$E$2=\"Shetland Health Board\",Calculations!$E$2=\"Western Isles Health Board\",Calculations!$E$2=\"Shetland Islands Local Authority\",Calculations!$E$2=\"Eilean Siar Local Authority\"),OR($F161=1,$F161=5)),0,prem_mort(VALUE(LEFT(Options!$B$24,2)),$C161,$E161,$F161,2016,$I161+$J161,1,$H161,$G161*$H161,Options!B8)))","v":43.8340796317},127.12043878532461,126.53084210865111,5730.5891262015421,5704.0101091963743,11317.384580000002,11271.038987918773,127.12043878532461,126.53084210865111,826282.85210460995,822450.47370623227,37248829.320310026,37076065.709776431,73562999.770000011,73261753.421472028,826282.85210460995,822450.47370623227,6500]
[null,"Male 35-39",36.926009999999998,78.336009999999987,"male",3,{"$f":"HLOOKUP(Calculations!$E$2,'Prevalence Rates'!$C$3:$BC$249,'Prevalence Rates'!$BD162,FALSE)","v":0.2267733915732639},{"$f":"HLOOKUP(Calculations!$E$2,'Population 2016'!$C$3:$BC$249,'Population 2016'!BD162,FALSE)","v":32007},0,{"$f":"HLOOKUP(Results!E$4,Targeting!$C$3:$F$249,Targeting!$G162,FALSE)","v":2420},{"$f":"IF(AND(OR(Calculations!$E$2=\"Orkney Health Board\",Calculations!$E$2=\"Orkney Islands Local Authority\"),$F162=1),0,IF(AND(OR(Calculations!$E$2=\"Shetland Health Board\",Calculations!$E$2=\"Western Isles Health Board\",Calculations!$E$2=\"Shetland Islands Local Authority\",Calculations!$E$2=\"Eilean Siar Local Authority\"),OR($F162=1,$F162=5)),0,new_ci(VALUE(LEFT(Options!$B$24,2)),$C162,$E162,$F162,2016,$I162,1,$H162,$G162*$H162,Options!B8)))","v":59.081071797299998},{"$f":"IF(AND(OR(Calculations!$E$2=\"Orkney Health Board\",Calculations!$E$2=\"Orkney Islands Local Authority\"),$F162=1),0,IF(AND(OR(Calculations!$E$2=\"Shetland Health Board\",Calculations!$E$2=\"Western Isles Health Board\",Calculations!$E$2=\"Shetland Islands Local Authority\",Calculations!$E$2=\"Eilean Siar Local Authority\"),OR($F162=1,$F162=5)),0,new_ci(VALUE(LEFT(Options!$B$24,2)),$C162,$E162,$F162,2016,$I162+$J162,1,$H162,$G162*$H162,Options!B8)))","v":58.812620955299998},{"$f":"IF(AND(OR(Calculations!$E$2=\"Orkney Health Board\",Calculations!$E$2=\"Orkney Islands Local Authority\"),$F162=1),0,IF(AND(OR(Calculations!$E$2=\"Shetland Health Board\",Calculations!$E$2=\"Western Isles Health Board\",Calculations!$E$2=\"Shetland Islands Local Authority\",Calculations!$E$2=\"Eilean Siar Local Authority\"),OR($F162=1,$F162=5)),0,new_yllv2(VALUE(LEFT(Options!$B$24,2)),$C162,$D162,$E162,$F162,2016,$I162,1,$H162,$G162*$H162,Options!B8)))","v":2387.4661113288998},{"$f":"IF(AND(OR(Calculations!$E$2=\"Orkney Health Board\",Calculations!$E$2=\"Orkney Islands Local Authority\"),$F162=1),0,IF(AND(OR(Calculations!$E$2=\"Shetland Health Board\",Calculations!$E$2=\"Western Isles Health Board\",Calculations!$E$2=\"Shetland Islands Local Authority\",Calculations!$E$2=\"Eilean Siar Local Authority\"),OR($F162=1,$F162=5)),0,new_yllv2(VALUE(LEFT(Options!$B$24,2)),$C162,$D162,$E162,$F162,2016,$I162+$J162,1,$H162,$G162*$H162,Options!B8)))","v":2376.6180128036999},{"$f":"IF(AND(OR(Calculations!$E$2=\"Orkney Health Board\",Calculations!$E$2=\"Orkney Islands Local Authority\"),$F162=1),0,IF(AND(OR(Calculations!$E$2=\"Shetland Health Board\",Calculations!$E$2=\"Western Isles Health Board\",Calculations!$E$2=\"Shetland Islands Local Authority\",Calculations!$E$2=\"Eilean Siar Local Authority\"),OR($F162=1,$F162=5)),0,hosp_count(VALUE(LEFT(Options!$B$24,2)),$C162,$E162,$F162,2016,$I162,1,$H162,$G162*$H162, Options!B8)))","v":4317.2989802075999},{"$f":"IF(AND(OR(Calculations!$E$2=\"Orkney Health Board\",Calculations!$E$2=\"Orkney Islands Local Authority\"),$F162=1),0,IF(AND(OR(Calculations!$E$2=\"Shetland Health Board\",Calculations!$E$2=\"Western Isles Health Board\",Calculations!$E$2=\"Shetland Islands Local Authority\",Calculations!$E$2=\"Eilean Siar Local Authority\"),OR($F162=1,$F162=5)),0,hosp_count(VALUE(LEFT(Options!$B$24,2)),$C162,$E162,$F162,2016,$I162+$J162,1,$H162,$G162*$H162, Options!B8)))","v":4299.6790962872001},{"$f":"IF(AND(OR(Calculations!$E$2=\"Orkney Health Board\",Calculations!$E$2=\"Orkney Islands Local Authority\"),$F162=1),0,IF(AND(OR(Calculations!$E$2=\"Shetland Health Board\",Calculations!$E$2=\"Western Isles Health Board\",Calculations!$E$2=\"Shetland Islands Local Authority\",Calculations!$E$2=\"Eilean Siar Local Authority\"),OR($F162=1,$F162=5)),0,prem_mort(VALUE(LEFT(Options!$B$24,2)),$C162,$E162,$F162,2016,$I162,1,$H162,$G162*$H162,Options!B8)))","v":59.081071797299998},{"$f":"IF(AND(OR(Calculations!$E$2=\"Orkney Health Board\",Calculations!$E$2=\"Orkney Islands Local Authority\"),$F162=1),0,IF(AND(OR(Calculations!$E$2=\"Shetland Health Board\",Calculations!$E$2=\"Western Isles Health Board\",Calculations!$E$2=\"Shetland Islands Local Authority\",Calculations!$E$2=\"Eilean Siar Local Authority\"),OR($F162=1,$F162=5)),0,prem_mort(VALUE(LEFT(Options!$B$24,2)),$C162,$E162,$F162,2016,$I162+$J162,1,$H162,$G162*$H162,Options!B8)))","v":58.812620955299998},184.58797074796138,183.74924533789482,7459.1998979251412,7425.3070041044148,13488.608679999999,13433.55858495704,184.58797074796138,183.74924533789482,1292115.7952357295,1286244.7173652637,52214399.285475992,51977149.028730907,94420260.75999999,94034910.094699278,1292115.7952357295,1286244.7173652637,7000]
[null,"Male 40-44",42.067703000000002,78.907700000000006,"male",3,{"$f":"HLOOKUP(Calculations!$E$2,'Prevalence Rates'!$C$3:$BC$249,'Prevalence Rates'!$BD163,FALSE)","v":0.2267733915732639},{"$f":"HLOOKUP(Calculations!$E$2,'Population 2016'!$C$3:$BC$249,'Population 2016'!BD163,FALSE)","v":31831},0,{"$f":"HLOOKUP(Results!E$4,Targeting!$C$3:$F$249,Targeting!$G163,FALSE)","v":2407},{"$f":"IF(AND(OR(Calculations!$E$2=\"Orkney Health Board\",Calculations!$E$2=\"Orkney Islands Local Authority\"),$F163=1),0,IF(AND(OR(Calculations!$E$2=\"Shetland Health Board\",Calculations!$E$2=\"Western Isles Health Board\",Calculations!$E$2=\"Shetland Islands Local Authority\",Calculations!$E$2=\"Eilean Siar Local Authority\"),OR($F163=1,$F163=5)),0,new_ci(VALUE(LEFT(Options!$B$24,2)),$C163,$E163,$F163,2016,$I163,1,$H163,$G163*$H163,Options!B8)))","v":86.584493287699999},{"$f":"IF(AND(OR(Calculations!$E$2=\"Orkney Health Board\",Calculations!$E$2=\"Orkney Islands Local Authority\"),$F163=1),0,IF(AND(OR(Calculations!$E$2=\"Shetland Health Board\",Calculations!$E$2=\"Western Isles Health Board\",Calculations!$E$2=\"Shetland Islands Local Authority\",Calculations!$E$2=\"Eilean Siar Local Authority\"),OR($F163=1,$F163=5)),0,new_ci(VALUE(LEFT(Options!$B$24,2)),$C163,$E163,$F163,2016,$I163+$J163,1,$H163,$G163*$H163,Options!B8)))","v":86.191324520400002},{"$f":"IF(AND(OR(Calculations!$E$2=\"Orkney Health Board\",Calculations!$E$2=\"Orkney Islands Local Authority\"),$F163=1),0,IF(AND(OR(Calculations!$E$2=\"Shetland Health Board\",Calculations!$E$2=\"Western Isles Health Board\",Calculations!$E$2=\"Shetland Islands Local Authority\",Calculations!$E$2=\"Eilean Siar Local Authority\"),OR($F163=1,$F163=5)),0,new_yllv2(VALUE(LEFT(Options!$B$24,2)),$C163,$D163,$E163,$F163,2016,$I163,1,$H163,$G163*$H163,Options!B8)))","v":3103.1879796776998},{"$f":"IF(AND(OR(Calculations!$E$2=\"Orkney Health Board\",Calculations!$E$2=\"Orkney Islands Local Authority\"),$F163=1),0,IF(AND(OR(Calculations!$E$2=\"Shetland Health Board\",Calculations!$E$2=\"Western Isles Health Board\",Calculations!$E$2=\"Shetland Islands Local Authority\",Calculations!$E$2=\"Eilean Siar Local Authority\"),OR($F163=1,$F163=5)),0,new_yllv2(VALUE(LEFT(Options!$B$24,2)),$C163,$D163,$E163,$F163,2016,$I163+$J163,1,$H163,$G163*$H163,Options!B8)))","v":3089.0968122372001},{"$f":"IF(AND(OR(Calculations!$E$2=\"Orkney Health Board\",Calculations!$E$2=\"Orkney Islands Local Authority\"),$F163=1),0,IF(AND(OR(Calculations!$E$2=\"Shetland Health Board\",Calculations!$E$2=\"Western Isles Health Board\",Calculations!$E$2=\"Shetland Islands Local Authority\",Calculations!$E$2=\"Eilean Siar Local Authority\"),OR($F163=1,$F163=5)),0,hosp_count(VALUE(LEFT(Options!$B$24,2)),$C163,$E163,$F163,2016,$I163,1,$H163,$G163*$H163, Options!B8)))","v":5153.2179005501002},{"$f":"IF(AND(OR(Calculations!$E$2=\"Orkney Health Board\",Calculations!$E$2=\"Orkney Islands Local Authority\"),$F163=1),0,IF(AND(OR(Calculations!$E$2=\"Shetland Health Board\",Calculations!$E$2=\"Western Isles Health Board\",Calculations!$E$2=\"Shetland Islands Local Authority\",Calculations!$E$2=\"Eilean Siar Local Authority\"),OR($F163=1,$F163=5)),0,hosp_count(VALUE(LEFT(Options!$B$24,2)),$C163,$E163,$F163,2016,$I163+$J163,1,$H163,$G163*$H163, Options!B8)))","v":5132.1837566905997},{"$f":"IF(AND(OR(Calculations!$E$2=\"Orkney Health Board\",Calculations!$E$2=\"Orkney Islands Local Authority\"),$F163=1),0,IF(AND(OR(Calculations!$E$2=\"Shetland Health Board\",Calculations!$E$2=\"Western Isles Health Board\",Calculations!$E$2=\"Shetland Islands Local Authority\",Calculations!$E$2=\"Eilean Siar Local Authority\"),OR($F163=1,$F163=5)),0,prem_mort(VALUE(LEFT(Options!$B$24,2)),$C163,$E163,$F163,2016,$I163,1,$H163,$G163*$H163,Options!B8)))","v":86.584493287699999},{"$f":"IF(AND(OR(Calculations!$E$2=\"Orkney Health Board\",Calculations!$E$2=\"Orkney Islands Local Authority\"),$F163=1),0,IF(AND(OR(Calculations!$E$2=\"Shetland Health Board\",Calculations!$E$2=\"Western Isles Health Board\",Calculations!$E$2=\"Shetland Islands Local Authority\",Calculations!$E$2=\"Eilean Siar Local Authority\"),OR($F163=1,$F163=5)),0,prem_mort(VALUE(LEFT(Options!$B$24,2)),$C163,$E163,$F163,2016,$I163+$J163,1,$H163,$G163*$H163,Options!B8)))","v":86.191324520400002},272.01311076529169,270.77793509597564,9748.9490737887591,9704.6803815060794,16189.305710000001,16123.22502180453,272.01311076529169,270.77793509597564,1904091.7753570417,1895445.5456718295,68242643.51652132,67932762.670542553,113325139.97,112862575.15263171,1904091.7753570417,1895445.5456718295,7000]
[null,"Male 45-49",47.038155000000003,79.418149999999997,"male",3,{"$f":"HLOOKUP(Calculations!$E$2,'Prevalence Rates'!$C$3:$BC$249,'Prevalence Rates'!$BD164,FALSE)","v":0.2205030989611611},{"$f":"HLOOKUP(Calculations!$E$2,'Population 2016'!$C$3:$BC$249,'Population 2016'!BD164,FALSE)","v":37651},0,{"$f":"HLOOKUP(Results!E$4,Targeting!$C$3:$F$249,Targeting!$G164,FALSE)","v":2847},{"$f":"IF(AND(OR(Calculations!$E$2=\"Orkney Health Board\",Calculations!$E$2=\"Orkney Islands Local Authority\"),$F164=1),0,IF(AND(OR(Calculations!$E$2=\"Shetland Health Board\",Calculations!$E$2=\"Western Isles Health Board\",Calculations!$E$2=\"Shetland Islands Local Authority\",Calculations!$E$2=\"Eilean Siar Local Authority\"),OR($F164=1,$F164=5)),0,new_ci(VALUE(LEFT(Options!$B$24,2)),$C164,$E164,$F164,2016,$I164,1,$H164,$G164*$H164,Options!B8)))","v":148.95511722699999},{"$f":"IF(AND(OR(Calculations!$E$2=\"Orkney Health Board\",Calculations!$E$2=\"Orkney Islands Local Authority\"),$F164=1),0,IF(AND(OR(Calculations!$E$2=\"Shetland Health Board\",Calculations!$E$2=\"Western Isles Health Board\",Calculations!$E$2=\"Shetland Islands Local Authority\",Calculations!$E$2=\"Eilean Siar Local Authority\"),OR($F164=1,$F164=5)),0,new_ci(VALUE(LEFT(Options!$B$24,2)),$C164,$E164,$F164,2016,$I164+$J164,1,$H164,$G164*$H164,Options!B8)))","v":148.27712666830001},{"$f":"IF(AND(OR(Calculations!$E$2=\"Orkney Health Board\",Calculations!$E$2=\"Orkney Islands Local Authority\"),$F164=1),0,IF(AND(OR(Calculations!$E$2=\"Shetland Health Board\",Calculations!$E$2=\"Western Isles Health Board\",Calculations!$E$2=\"Shetland Islands Local Authority\",Calculations!$E$2=\"Eilean Siar Local Authority\"),OR($F164=1,$F164=5)),0,new_yllv2(VALUE(LEFT(Options!$B$24,2)),$C164,$D164,$E164,$F164,2016,$I164,1,$H164,$G164*$H164,Options!B8)))","v":4674.2108338076996},{"$f":"IF(AND(OR(Calculations!$E$2=\"Orkney Health Board\",Calculations!$E$2=\"Orkney Islands Local Authority\"),$F164=1),0,IF(AND(OR(Calculations!$E$2=\"Shetland Health Board\",Calculations!$E$2=\"Western Isles Health Board\",Calculations!$E$2=\"Shetland Islands Local Authority\",Calculations!$E$2=\"Eilean Siar Local Authority\"),OR($F164=1,$F164=5)),0,new_yllv2(VALUE(LEFT(Options!$B$24,2)),$C164,$D164,$E164,$F164,2016,$I164+$J164,1,$H164,$G164*$H164,Options!B8)))","v":4652.9354934656003},{"$f":"IF(AND(OR(Calculations!$E$2=\"Orkney Health Board\",Calculations!$E$2=\"Orkney Islands Local Authority\"),$F164=1),0,IF(AND(OR(Calculations!$E$2=\"Shetland Health Board\",Calculations!$E$2=\"Western Isles Health Board\",Calculations!$E$2=\"Shetland Islands Local Authority\",Calculations!$E$2=\"Eilean Siar Local Authority\"),OR($F164=1,$F164=5)),0,hosp_count(VALUE(LEFT(Options!$B$24,2)),$C164,$E164,$F164,2016,$I164,1,$H164,$G164*$H164, Options!B8)))","v":7271.5344409603003},{"$f":"IF(AND(OR(Calculations!$E$2=\"Orkney Health Board\",Calculations!$E$2=\"Orkney Islands Local Authority\"),$F164=1),0,IF(AND(OR(Calculations!$E$2=\"Shetland Health Board\",Calculations!$E$2=\"Western Isles Health Board\",Calculations!$E$2=\"Shetland Islands Local Authority\",Calculations!$E$2=\"Eilean Siar Local Authority\"),OR($F164=1,$F164=5)),0,hosp_count(VALUE(LEFT(Options!$B$24,2)),$C164,$E164,$F164,2016,$I164+$J164,1,$H164,$G164*$H164, Options!B8)))","v":7241.8366667926002},{"$f":"IF(AND(OR(Calculations!$E$2=\"Orkney Health Board\",Calculations!$E$2=\"Orkney Islands Local Authority\"),$F164=1),0,IF(AND(OR(Calculations!$E$2=\"Shetland Health Board\",Calculations!$E$2=\"Western Isles Health Board\",Calculations!$E$2=\"Shetland Islands Local Authority\",Calculations!$E$2=\"Eilean Siar Local Authority\"),OR($F164=1,$F164=5)),0,prem_mort(VALUE(LEFT(Options!$B$24,2)),$C164,$E164,$F164,2016,$I164,1,$H164,$G164*$H164,Options!B8)))","v":148.95511722699999},{"$f":"IF(AND(OR(Calculations!$E$2=\"Orkney Health Board\",Calculations!$E$2=\"Orkney Islands Local Authority\"),$F164=1),0,IF(AND(OR(Calculations!$E$2=\"Shetland Health Board\",Calculations!$E$2=\"Western Isles Health Board\",Calculations!$E$2=\"Shetland Islands Local Authority\",Calculations!$E$2=\"Eilean Siar Local Authority\"),OR($F164=1,$F164=5)),0,prem_mort(VALUE(LEFT(Options!$B$24,2)),$C164,$E164,$F164,2016,$I164+$J164,1,$H164,$G164*$H164,Options!B8)))","v":148.27712666830001},395.62061360123232,393.8198896929697,12414.572876703673,12358.066169465885,19312.991529999999,19234.115074745958,395.62061360123232,393.8198896929697,2769344.2952086264,2756739.2278507878,86902010.136925712,86506463.186261192,135190940.71000001,134638805.5232217,2769344.2952086264,2756739.2278507878,7000]
[null,"Male 50-54",51.998646000000001,79.988649999999993,"male",3,{"$f":"HLOOKUP(Calculations!$E$2,'Prevalence Rates'!$C$3:$BC$249,'Prevalence Rates'!$BD165,FALSE)","v":0.2205030989611611},{"$f":"HLOOKUP(Calculations!$E$2,'Population 2016'!$C$3:$BC$249,'Population 2016'!BD165,FALSE)","v":40386},0,{"$f":"HLOOKUP(Results!E$4,Targeting!$C$3:$F$249,Targeting!$G165,FALSE)","v":3053},{"$f":"IF(AND(OR(Calculations!$E$2=\"Orkney Health Board\",Calculations!$E$2=\"Orkney Islands Local Authority\"),$F165=1),0,IF(AND(OR(Calculations!$E$2=\"Shetland Health Board\",Calculations!$E$2=\"Western Isles Health Board\",Calculations!$E$2=\"Shetland Islands Local Authority\",Calculations!$E$2=\"Eilean Siar Local Authority\"),OR($F165=1,$F165=5)),0,new_ci(VALUE(LEFT(Options!$B$24,2)),$C165,$E165,$F165,2016,$I165,1,$H165,$G165*$H165,Options!B8)))","v":232.13666375619999},{"$f":"IF(AND(OR(Calculations!$E$2=\"Orkney Health Board\",Calculations!$E$2=\"Orkney Islands Local Authority\"),$F165=1),0,IF(AND(OR(Calculations!$E$2=\"Shetland Health Board\",Calculations!$E$2=\"Western Isles Health Board\",Calculations!$E$2=\"Shetland Islands Local Authority\",Calculations!$E$2=\"Eilean Siar Local Authority\"),OR($F165=1,$F165=5)),0,new_ci(VALUE(LEFT(Options!$B$24,2)),$C165,$E165,$F165,2016,$I165+$J165,1,$H165,$G165*$H165,Options!B8)))","v":231.0820134546},{"$f":"IF(AND(OR(Calculations!$E$2=\"Orkney Health Board\",Calculations!$E$2=\"Orkney Islands Local Authority\"),$F165=1),0,IF(AND(OR(Calculations!$E$2=\"Shetland Health Board\",Calculations!$E$2=\"Western Isles Health Board\",Calculations!$E$2=\"Shetland Islands Local Authority\",Calculations!$E$2=\"Eilean Siar Local Authority\"),OR($F165=1,$F165=5)),0,new_yllv2(VALUE(LEFT(Options!$B$24,2)),$C165,$D165,$E165,$F165,2016,$I165,1,$H165,$G165*$H165,Options!B8)))","v":6265.3694833264999},{"$f":"IF(AND(OR(Calculations!$E$2=\"Orkney Health Board\",Calculations!$E$2=\"Orkney Islands Local Authority\"),$F165=1),0,IF(AND(OR(Calculations!$E$2=\"Shetland Health Board\",Calculations!$E$2=\"Western Isles Health Board\",Calculations!$E$2=\"Shetland Islands Local Authority\",Calculations!$E$2=\"Eilean Siar Local Authority\"),OR($F165=1,$F165=5)),0,new_yllv2(VALUE(LEFT(Options!$B$24,2)),$C165,$D165,$E165,$F165,2016,$I165+$J165,1,$H165,$G165*$H165,Options!B8)))","v":6236.9044674676998},{"$f":"IF(AND(OR(Calculations!$E$2=\"Orkney Health Board\",Calculations!$E$2=\"Orkney Islands Local Authority\"),$F165=1),0,IF(AND(OR(Calculations!$E$2=\"Shetland Health Board\",Calculations!$E$2=\"Western Isles Health Board\",Calculations!$E$2=\"Shetland Islands Local Authority\",Calculations!$E$2=\"Eilean Siar Local Authority\"),OR($F165=1,$F165=5)),0,hosp_count(VALUE(LEFT(Options!$B$24,2)),$C165,$E165,$F165,2016,$I165,1,$H165,$G165*$H165, Options!B8)))","v":9301.3966469789993},{"$f":"IF(AND(OR(Calculations!$E$2=\"Orkney Health Board\",Calculations!$E$2=\"Orkney Islands Local Authority\"),$F165=1),0,IF(AND(OR(Calculations!$E$2=\"Shetland Health Board\",Calculations!$E$2=\"Western Isles Health Board\",Calculations!$E$2=\"Shetland Islands Local Authority\",Calculations!$E$2=\"Eilean Siar Local Authority\"),OR($F165=1,$F165=5)),0,hosp_count(VALUE(LEFT(Options!$B$24,2)),$C165,$E165,$F165,2016,$I165+$J165,1,$H165,$G165*$H165, Options!B8)))","v":9263.4187414315002},{"$f":"IF(AND(OR(Calculations!$E$2=\"Orkney Health Board\",Calculations!$E$2=\"Orkney Islands Local Authority\"),$F165=1),0,IF(AND(OR(Calculations!$E$2=\"Shetland Health Board\",Calculations!$E$2=\"Western Isles Health Board\",Calculations!$E$2=\"Shetland Islands Local Authority\",Calculations!$E$2=\"Eilean Siar Local Authority\"),OR($F165=1,$F165=5)),0,prem_mort(VALUE(LEFT(Options!$B$24,2)),$C165,$E165,$F165,2016,$I165,1,$H165,$G165*$H165,Options!B8)))","v":232.13666375619999},{"$f":"IF(AND(OR(Calculations!$E$2=\"Orkney Health Board\",Calculations!$E$2=\"Orkney Islands Local Authority\"),$F165=1),0,IF(AND(OR(Calculations!$E$2=\"Shetland Health Board\",Calculations!$E$2=\"Western Isles Health Board\",Calculations!$E$2=\"Shetland Islands Local Authority\",Calculations!$E$2=\"Eilean Siar Local Authority\"),OR($F165=1,$F165=5)),0,prem_mort(VALUE(LEFT(Options!$B$24,2)),$C165,$E165,$F165,2016,$I165+$J165,1,$H165,$G165*$H165,Options!B8)))","v":231.0820134546},574.79488871440594,572.18346321646118,15513.716345581388,15443.233960946121,23031.240149999998,22937.202846113752,574.79488871440594,572.18346321646118,4023564.2210008418,4005284.2425152282,108596014.41906972,108102637.72662285,161218681.04999998,160560419.92279628,4023564.2210008418,4005284.2425152282,7000]
[null,"Male 55-59",56.950867000000002,80.660870000000003,"male",3,{"$f":"HLOOKUP(Calculations!$E$2,'Prevalence Rates'!$C$3:$BC$249,'Prevalence Rates'!$BD166,FALSE)","v":0.26888085426727992},{"$f":"HLOOKUP(Calculations!$E$2,'Population 2016'!$C$3:$BC$249,'Population 2016'!BD166,FALSE)","v":37545},0,{"$f":"HLOOKUP(Results!E$4,Targeting!$C$3:$F$249,Targeting!$G166,FALSE)","v":2839},{"$f":"IF(AND(OR(Calculations!$E$2=\"Orkney Health Board\",Calculations!$E$2=\"Orkney Islands Local Authority\"),$F166=1),0,IF(AND(OR(Calculations!$E$2=\"Shetland Health Board\",Calculations!$E$2=\"Western Isles Health Board\",Calculations!$E$2=\"Shetland Islands Local Authority\",Calculations!$E$2=\"Eilean Siar Local Authority\"),OR($F166=1,$F166=5)),0,new_ci(VALUE(LEFT(Options!$B$24,2)),$C166,$E166,$F166,2016,$I166,1,$H166,$G166*$H166,Options!B8)))","v":313.2088375408},{"$f":"IF(AND(OR(Calculations!$E$2=\"Orkney Health Board\",Calculations!$E$2=\"Orkney Islands Local Authority\"),$F166=1),0,IF(AND(OR(Calculations!$E$2=\"Shetland Health Board\",Calculations!$E$2=\"Western Isles Health Board\",Calculations!$E$2=\"Shetland Islands Local Authority\",Calculations!$E$2=\"Eilean Siar Local Authority\"),OR($F166=1,$F166=5)),0,new_ci(VALUE(LEFT(Options!$B$24,2)),$C166,$E166,$F166,2016,$I166+$J166,1,$H166,$G166*$H166,Options!B8)))","v":311.8258027924},{"$f":"IF(AND(OR(Calculations!$E$2=\"Orkney Health Board\",Calculations!$E$2=\"Orkney Islands Local Authority\"),$F166=1),0,IF(AND(OR(Calculations!$E$2=\"Shetland Health Board\",Calculations!$E$2=\"Western Isles Health Board\",Calculations!$E$2=\"Shetland Islands Local Authority\",Calculations!$E$2=\"Eilean Siar Local Authority\"),OR($F166=1,$F166=5)),0,new_yllv2(VALUE(LEFT(Options!$B$24,2)),$C166,$D166,$E166,$F166,2016,$I166,1,$H166,$G166*$H166,Options!B8)))","v":7112.9736401781001},{"$f":"IF(AND(OR(Calculations!$E$2=\"Orkney Health Board\",Calculations!$E$2=\"Orkney Islands Local Authority\"),$F166=1),0,IF(AND(OR(Calculations!$E$2=\"Shetland Health Board\",Calculations!$E$2=\"Western Isles Health Board\",Calculations!$E$2=\"Shetland Islands Local Authority\",Calculations!$E$2=\"Eilean Siar Local Authority\"),OR($F166=1,$F166=5)),0,new_yllv2(VALUE(LEFT(Options!$B$24,2)),$C166,$D166,$E166,$F166,2016,$I166+$J166,1,$H166,$G166*$H166,Options!B8)))","v":7081.5649168928003},{"$f":"IF(AND(OR(Calculations!$E$2=\"Orkney Health Board\",Calculations!$E$2=\"Orkney Islands Local Authority\"),$F166=1),0,IF(AND(OR(Calculations!$E$2=\"Shetland Health Board\",Calculations!$E$2=\"Western Isles Health Board\",Calculations!$E$2=\"Shetland Islands Local Authority\",Calculations!$E$2=\"Eilean Siar Local Authority\"),OR($F166=1,$F166=5)),0,hosp_count(VALUE(LEFT(Options!$B$24,2)),$C166,$E166,$F166,2016,$I166,1,$H166,$G166*$H166, Options!B8)))","v":10308.838145089499},{"$f":"IF(AND(OR(Calculations!$E$2=\"Orkney Health Board\",Calculations!$E$2=\"Orkney Islands Local Authority\"),$F166=1),0,IF(AND(OR(Calculations!$E$2=\"Shetland Health Board\",Calculations!$E$2=\"Western Isles Health Board\",Calculations!$E$2=\"Shetland Islands Local Authority\",Calculations!$E$2=\"Eilean Siar Local Authority\"),OR($F166=1,$F166=5)),0,hosp_count(VALUE(LEFT(Options!$B$24,2)),$C166,$E166,$F166,2016,$I166+$J166,1,$H166,$G166*$H166, Options!B8)))","v":10266.933801181},{"$f":"IF(AND(OR(Calculations!$E$2=\"Orkney Health Board\",Calculations!$E$2=\"Orkney Islands Local Authority\"),$F166=1),0,IF(AND(OR(Calculations!$E$2=\"Shetland Health Board\",Calculations!$E$2=\"Western Isles Health Board\",Calculations!$E$2=\"Shetland Islands Local Authority\",Calculations!$E$2=\"Eilean Siar Local Authority\"),OR($F166=1,$F166=5)),0,prem_mort(VALUE(LEFT(Options!$B$24,2)),$C166,$E166,$F166,2016,$I166,1,$H166,$G166*$H166,Options!B8)))","v":313.2088375408},{"$f":"IF(AND(OR(Calculations!$E$2=\"Orkney Health Board\",Calculations!$E$2=\"Orkney Islands Local Authority\"),$F166=1),0,IF(AND(OR(Calculations!$E$2=\"Shetland Health Board\",Calculations!$E$2=\"Western Isles Health Board\",Calculations!$E$2=\"Shetland Islands Local Authority\",Calculations!$E$2=\"Eilean Siar Local Authority\"),OR($F166=1,$F166=5)),0,prem_mort(VALUE(LEFT(Options!$B$24,2)),$C166,$E166,$F166,2016,$I166+$J166,1,$H166,$G166*$H166,Options!B8)))","v":311.8258027924},834.22249977573586,830.53882752004267,18945.195472574509,18861.539264596617,27457.28631,27345.675326091354,834.22249977573586,830.53882752004267,5422446.2485422827,5398502.3788802773,123143770.57173431,122600005.219878,178472361.01499999,177746889.6195938,5422446.2485422827,5398502.3788802773,6500]
[null,"Male 60-64",61.942988999999997,81.612989999999996,"male",3,{"$f":"HLOOKUP(Calculations!$E$2,'Prevalence Rates'!$C$3:$BC$249,'Prevalence Rates'!$BD167,FALSE)","v":0.26888085426727992},{"$f":"HLOOKUP(Calculations!$E$2,'Population 2016'!$C$3:$BC$249,'Population 2016'!BD167,FALSE)","v":33247},0,{"$f":"HLOOKUP(Results!E$4,Targeting!$C$3:$F$249,Targeting!$G167,FALSE)","v":2514},{"$f":"IF(AND(OR(Calculations!$E$2=\"Orkney Health Board\",Calculations!$E$2=\"Orkney Islands Local Authority\"),$F167=1),0,IF(AND(OR(Calculations!$E$2=\"Shetland Health Board\",Calculations!$E$2=\"Western Isles Health Board\",Calculations!$E$2=\"Shetland Islands Local Authority\",Calculations!$E$2=\"Eilean Siar Local Authority\"),OR($F167=1,$F167=5)),0,new_ci(VALUE(LEFT(Options!$B$24,2)),$C167,$E167,$F167,2016,$I167,1,$H167,$G167*$H167,Options!B8)))","v":403.49442726130002},{"$f":"IF(AND(OR(Calculations!$E$2=\"Orkney Health Board\",Calculations!$E$2=\"Orkney Islands Local Authority\"),$F167=1),0,IF(AND(OR(Calculations!$E$2=\"Shetland Health Board\",Calculations!$E$2=\"Western Isles Health Board\",Calculations!$E$2=\"Shetland Islands Local Authority\",Calculations!$E$2=\"Eilean Siar Local Authority\"),OR($F167=1,$F167=5)),0,new_ci(VALUE(LEFT(Options!$B$24,2)),$C167,$E167,$F167,2016,$I167+$J167,1,$H167,$G167*$H167,Options!B8)))","v":401.71846349830003},{"$f":"IF(AND(OR(Calculations!$E$2=\"Orkney Health Board\",Calculations!$E$2=\"Orkney Islands Local Authority\"),$F167=1),0,IF(AND(OR(Calculations!$E$2=\"Shetland Health Board\",Calculations!$E$2=\"Western Isles Health Board\",Calculations!$E$2=\"Shetland Islands Local Authority\",Calculations!$E$2=\"Eilean Siar Local Authority\"),OR($F167=1,$F167=5)),0,new_yllv2(VALUE(LEFT(Options!$B$24,2)),$C167,$D167,$E167,$F167,2016,$I167,1,$H167,$G167*$H167,Options!B8)))","v":7533.2413604629},{"$f":"IF(AND(OR(Calculations!$E$2=\"Orkney Health Board\",Calculations!$E$2=\"Orkney Islands Local Authority\"),$F167=1),0,IF(AND(OR(Calculations!$E$2=\"Shetland Health Board\",Calculations!$E$2=\"Western Isles Health Board\",Calculations!$E$2=\"Shetland Islands Local Authority\",Calculations!$E$2=\"Eilean Siar Local Authority\"),OR($F167=1,$F167=5)),0,new_yllv2(VALUE(LEFT(Options!$B$24,2)),$C167,$D167,$E167,$F167,2016,$I167+$J167,1,$H167,$G167*$H167,Options!B8)))","v":7500.0841152316998},{"$f":"IF(AND(OR(Calculations!$E$2=\"Orkney Health Board\",Calculations!$E$2=\"Orkney Islands Local Authority\"),$F167=1),0,IF(AND(OR(Calculations!$E$2=\"Shetland Health Board\",Calculations!$E$2=\"Western Isles Health Board\",Calculations!$E$2=\"Shetland Islands Local Authority\",Calculations!$E$2=\"Eilean Siar Local Authority\"),OR($F167=1,$F167=5)),0,hosp_count(VALUE(LEFT(Options!$B$24,2)),$C167,$E167,$F167,2016,$I167,1,$H167,$G167*$H167, Options!B8)))","v":10898.467983401801},{"$f":"IF(AND(OR(Calculations!$E$2=\"Orkney Health Board\",Calculations!$E$2=\"Orkney Islands Local Authority\"),$F167=1),0,IF(AND(OR(Calculations!$E$2=\"Shetland Health Board\",Calculations!$E$2=\"Western Isles Health Board\",Calculations!$E$2=\"Shetland Islands Local Authority\",Calculations!$E$2=\"Eilean Siar Local Authority\"),OR($F167=1,$F167=5)),0,hosp_count(VALUE(LEFT(Options!$B$24,2)),$C167,$E167,$F167,2016,$I167+$J167,1,$H167,$G167*$H167, Options!B8)))","v":10854.1669045613},{"$f":"IF(AND(OR(Calculations!$E$2=\"Orkney Health Board\",Calculations!$E$2=\"Orkney Islands Local Authority\"),$F167=1),0,IF(AND(OR(Calculations!$E$2=\"Shetland Health Board\",Calculations!$E$2=\"Western Isles Health Board\",Calculations!$E$2=\"Shetland Islands Local Authority\",Calculations!$E$2=\"Eilean Siar Local Authority\"),OR($F167=1,$F167=5)),0,prem_mort(VALUE(LEFT(Options!$B$24,2)),$C167,$E167,$F167,2016,$I167,1,$H167,$G167*$H167,Options!B8)))","v":403.49442726130002},{"$f":"IF(AND(OR(Calculations!$E$2=\"Orkney Health Board\",Calculations!$E$2=\"Orkney Islands Local Authority\"),$F167=1),0,IF(AND(OR(Calculations!$E$2=\"Shetland Health Board\",Calculations!$E$2=\"Western Isles Health Board\",Calculations!$E$2=\"Shetland Islands Local Authority\",Calculations!$E$2=\"Eilean Siar Local Authority\"),OR($F167=1,$F167=5)),0,prem_mort(VALUE(LEFT(Options!$B$24,2)),$C167,$E167,$F167,2016,$I167+$J167,1,$H167,$G167*$H167,Options!B8)))","v":401.71846349830003},1213.6265746121455,1208.2848482518723,22658.409361635338,22558.67932514723,32780.304940000002,32647.056590252654,1213.6265746121455,1208.2848482518723,7281759.4476728728,7249709.0895112334,135950456.16981202,135352075.95088339,196681829.64000002,195882339.54151592,7281759.4476728728,7249709.0895112334,6000]
[null,"Male 65-69",67.054419999999993,82.954419999999999,"male",3,{"$f":"HLOOKUP(Calculations!$E$2,'Prevalence Rates'!$C$3:$BC$249,'Prevalence Rates'!$BD168,FALSE)","v":0.26873249219517059},{"$f":"HLOOKUP(Calculations!$E$2,'Population 2016'!$C$3:$BC$249,'Population 2016'!BD168,FALSE)","v":33371},0,{"$f":"HLOOKUP(Results!E$4,Targeting!$C$3:$F$249,Targeting!$G168,FALSE)","v":2523},{"$f":"IF(AND(OR(Calculations!$E$2=\"Orkney Health Board\",Calculations!$E$2=\"Orkney Islands Local Authority\"),$F168=1),0,IF(AND(OR(Calculations!$E$2=\"Shetland Health Board\",Calculations!$E$2=\"Western Isles Health Board\",Calculations!$E$2=\"Shetland Islands Local Authority\",Calculations!$E$2=\"Eilean Siar Local Authority\"),OR($F168=1,$F168=5)),0,new_ci(VALUE(LEFT(Options!$B$24,2)),$C168,$E168,$F168,2016,$I168,1,$H168,$G168*$H168,Options!B8)))","v":593.92445667660002},{"$f":"IF(AND(OR(Calculations!$E$2=\"Orkney Health Board\",Calculations!$E$2=\"Orkney Islands Local Authority\"),$F168=1),0,IF(AND(OR(Calculations!$E$2=\"Shetland Health Board\",Calculations!$E$2=\"Western Isles Health Board\",Calculations!$E$2=\"Shetland Islands Local Authority\",Calculations!$E$2=\"Eilean Siar Local Authority\"),OR($F168=1,$F168=5)),0,new_ci(VALUE(LEFT(Options!$B$24,2)),$C168,$E168,$F168,2016,$I168+$J168,1,$H168,$G168*$H168,Options!B8)))","v":591.32314099049995},{"$f":"IF(AND(OR(Calculations!$E$2=\"Orkney Health Board\",Calculations!$E$2=\"Orkney Islands Local Authority\"),$F168=1),0,IF(AND(OR(Calculations!$E$2=\"Shetland Health Board\",Calculations!$E$2=\"Western Isles Health Board\",Calculations!$E$2=\"Shetland Islands Local Authority\",Calculations!$E$2=\"Eilean Siar Local Authority\"),OR($F168=1,$F168=5)),0,new_yllv2(VALUE(LEFT(Options!$B$24,2)),$C168,$D168,$E168,$F168,2016,$I168,1,$H168,$G168*$H168,Options!B8)))","v":8849.4744044812996},{"$f":"IF(AND(OR(Calculations!$E$2=\"Orkney Health Board\",Calculations!$E$2=\"Orkney Islands Local Authority\"),$F168=1),0,IF(AND(OR(Calculations!$E$2=\"Shetland Health Board\",Calculations!$E$2=\"Western Isles Health Board\",Calculations!$E$2=\"Shetland Islands Local Authority\",Calculations!$E$2=\"Eilean Siar Local Authority\"),OR($F168=1,$F168=5)),0,new_yllv2(VALUE(LEFT(Options!$B$24,2)),$C168,$D168,$E168,$F168,2016,$I168+$J168,1,$H168,$G168*$H168,Options!B8)))","v":8810.7148007585001},{"$f":"IF(AND(OR(Calculations!$E$2=\"Orkney Health Board\",Calculations!$E$2=\"Orkney Islands Local Authority\"),$F168=1),0,IF(AND(OR(Calculations!$E$2=\"Shetland Health Board\",Calculations!$E$2=\"Western Isles Health Board\",Calculations!$E$2=\"Shetland Islands Local Authority\",Calculations!$E$2=\"Eilean Siar Local Authority\"),OR($F168=1,$F168=5)),0,hosp_count(VALUE(LEFT(Options!$B$24,2)),$C168,$E168,$F168,2016,$I168,1,$H168,$G168*$H168, Options!B8)))","v":13115.2562048768},{"$f":"IF(AND(OR(Calculations!$E$2=\"Orkney Health Board\",Calculations!$E$2=\"Orkney Islands Local Authority\"),$F168=1),0,IF(AND(OR(Calculations!$E$2=\"Shetland Health Board\",Calculations!$E$2=\"Western Isles Health Board\",Calculations!$E$2=\"Shetland Islands Local Authority\",Calculations!$E$2=\"Eilean Siar Local Authority\"),OR($F168=1,$F168=5)),0,hosp_count(VALUE(LEFT(Options!$B$24,2)),$C168,$E168,$F168,2016,$I168+$J168,1,$H168,$G168*$H168, Options!B8)))","v":13061.9513058754},{"$f":"IF(AND(OR(Calculations!$E$2=\"Orkney Health Board\",Calculations!$E$2=\"Orkney Islands Local Authority\"),$F168=1),0,IF(AND(OR(Calculations!$E$2=\"Shetland Health Board\",Calculations!$E$2=\"Western Isles Health Board\",Calculations!$E$2=\"Shetland Islands Local Authority\",Calculations!$E$2=\"Eilean Siar Local Authority\"),OR($F168=1,$F168=5)),0,prem_mort(VALUE(LEFT(Options!$B$24,2)),$C168,$E168,$F168,2016,$I168,1,$H168,$G168*$H168,Options!B8)))","v":593.92445667660002},{"$f":"IF(AND(OR(Calculations!$E$2=\"Orkney Health Board\",Calculations!$E$2=\"Orkney Islands Local Authority\"),$F168=1),0,IF(AND(OR(Calculations!$E$2=\"Shetland Health Board\",Calculations!$E$2=\"Western Isles Health Board\",Calculations!$E$2=\"Shetland Islands Local Authority\",Calculations!$E$2=\"Eilean Siar Local Authority\"),OR($F168=1,$F168=5)),0,prem_mort(VALUE(LEFT(Options!$B$24,2)),$C168,$E168,$F168,2016,$I168+$J168,1,$H168,$G168*$H168,Options!B8)))","v":591.32314099049995},1779.7622387000688,1771.9671001483321,26518.457356630908,26402.309792210304,39301.358079999998,39141.623882638814,1779.7622387000688,1771.9671001483321,9788692.3128503785,9745819.0508158263,145851515.46147001,145212703.85715666,216157469.44,215278931.35451347,9788692.3128503785,9745819.0508158263,5500]
[null,"Male 70-74",71.891098,84.341099999999997,"male",3,{"$f":"HLOOKUP(Calculations!$E$2,'Prevalence Rates'!$C$3:$BC$249,'Prevalence Rates'!$BD169,FALSE)","v":0.26873249219517059},{"$f":"HLOOKUP(Calculations!$E$2,'Population 2016'!$C$3:$BC$249,'Population 2016'!BD169,FALSE)","v":24436},0,{"$f":"HLOOKUP(Results!E$4,Targeting!$C$3:$F$249,Targeting!$G169,FALSE)","v":1848},{"$f":"IF(AND(OR(Calculations!$E$2=\"Orkney Health Board\",Calculations!$E$2=\"Orkney Islands Local Authority\"),$F169=1),0,IF(AND(OR(Calculations!$E$2=\"Shetland Health Board\",Calculations!$E$2=\"Western Isles Health Board\",Calculations!$E$2=\"Shetland Islands Local Authority\",Calculations!$E$2=\"Eilean Siar Local Authority\"),OR($F169=1,$F169=5)),0,new_ci(VALUE(LEFT(Options!$B$24,2)),$C169,$E169,$F169,2016,$I169,1,$H169,$G169*$H169,Options!B8)))","v":623.97428435100005},{"$f":"IF(AND(OR(Calculations!$E$2=\"Orkney Health Board\",Calculations!$E$2=\"Orkney Islands Local Authority\"),$F169=1),0,IF(AND(OR(Calculations!$E$2=\"Shetland Health Board\",Calculations!$E$2=\"Western Isles Health Board\",Calculations!$E$2=\"Shetland Islands Local Authority\",Calculations!$E$2=\"Eilean Siar Local Authority\"),OR($F169=1,$F169=5)),0,new_ci(VALUE(LEFT(Options!$B$24,2)),$C169,$E169,$F169,2016,$I169+$J169,1,$H169,$G169*$H169,Options!B8)))","v":621.25876717740005},{"$f":"IF(AND(OR(Calculations!$E$2=\"Orkney Health Board\",Calculations!$E$2=\"Orkney Islands Local Authority\"),$F169=1),0,IF(AND(OR(Calculations!$E$2=\"Shetland Health Board\",Calculations!$E$2=\"Western Isles Health Board\",Calculations!$E$2=\"Shetland Islands Local Authority\",Calculations!$E$2=\"Eilean Siar Local Authority\"),OR($F169=1,$F169=5)),0,new_yllv2(VALUE(LEFT(Options!$B$24,2)),$C169,$D169,$E169,$F169,2016,$I169,1,$H169,$G169*$H169,Options!B8)))","v":7144.5068037675001},{"$f":"IF(AND(OR(Calculations!$E$2=\"Orkney Health Board\",Calculations!$E$2=\"Orkney Islands Local Authority\"),$F169=1),0,IF(AND(OR(Calculations!$E$2=\"Shetland Health Board\",Calculations!$E$2=\"Western Isles Health Board\",Calculations!$E$2=\"Shetland Islands Local Authority\",Calculations!$E$2=\"Eilean Siar Local Authority\"),OR($F169=1,$F169=5)),0,new_yllv2(VALUE(LEFT(Options!$B$24,2)),$C169,$D169,$E169,$F169,2016,$I169+$J169,1,$H169,$G169*$H169,Options!B8)))","v":7113.4141266987999},{"$f":"IF(AND(OR(Calculations!$E$2=\"Orkney Health Board\",Calculations!$E$2=\"Orkney Islands Local Authority\"),$F169=1),0,IF(AND(OR(Calculations!$E$2=\"Shetland Health Board\",Calculations!$E$2=\"Western Isles Health Board\",Calculations!$E$2=\"Shetland Islands Local Authority\",Calculations!$E$2=\"Eilean Siar Local Authority\"),OR($F169=1,$F169=5)),0,hosp_count(VALUE(LEFT(Options!$B$24,2)),$C169,$E169,$F169,2016,$I169,1,$H169,$G169*$H169, Options!B8)))","v":11402.414531516401},{"$f":"IF(AND(OR(Calculations!$E$2=\"Orkney Health Board\",Calculations!$E$2=\"Orkney Islands Local Authority\"),$F169=1),0,IF(AND(OR(Calculations!$E$2=\"Shetland Health Board\",Calculations!$E$2=\"Western Isles Health Board\",Calculations!$E$2=\"Shetland Islands Local Authority\",Calculations!$E$2=\"Eilean Siar Local Authority\"),OR($F169=1,$F169=5)),0,hosp_count(VALUE(LEFT(Options!$B$24,2)),$C169,$E169,$F169,2016,$I169+$J169,1,$H169,$G169*$H169, Options!B8)))","v":11356.0579939033},{"$f":"IF(AND(OR(Calculations!$E$2=\"Orkney Health Board\",Calculations!$E$2=\"Orkney Islands Local Authority\"),$F169=1),0,IF(AND(OR(Calculations!$E$2=\"Shetland Health Board\",Calculations!$E$2=\"Western Isles Health Board\",Calculations!$E$2=\"Shetland Islands Local Authority\",Calculations!$E$2=\"Eilean Siar Local Authority\"),OR($F169=1,$F169=5)),0,prem_mort(VALUE(LEFT(Options!$B$24,2)),$C169,$E169,$F169,2016,$I169,1,$H169,$G169*$H169,Options!B8)))","v":623.97428435100005},{"$f":"IF(AND(OR(Calculations!$E$2=\"Orkney Health Board\",Calculations!$E$2=\"Orkney Islands Local Authority\"),$F169=1),0,IF(AND(OR(Calculations!$E$2=\"Shetland Health Board\",Calculations!$E$2=\"Western Isles Health Board\",Calculations!$E$2=\"Shetland Islands Local Authority\",Calculations!$E$2=\"Eilean Siar Local Authority\"),OR($F169=1,$F169=5)),0,prem_mort(VALUE(LEFT(Options!$B$24,2)),$C169,$E169,$F169,2016,$I169+$J169,1,$H169,$G169*$H169,Options!B8)))","v":621.25876717740005},2553.5041919749551,2542.3914191250615,29237.628105121541,29110.38683376494,46662.360990000001,46472.655074084549,2553.5041919749551,2542.3914191250615,12767520.959874775,12711957.095625307,146188140.52560771,145551934.1688247,233311804.95000002,232363275.37042275,12767520.959874775,12711957.095625307,5000]
[null,"Male 75-79",76.907700000000006,86.357700000000008,"male",3,{"$f":"HLOOKUP(Calculations!$E$2,'Prevalence Rates'!$C$3:$BC$249,'Prevalence Rates'!$BD170,FALSE)","v":0.14053064777081969},{"$f":"HLOOKUP(Calculations!$E$2,'Population 2016'!$C$3:$BC$249,'Population 2016'!BD170,FALSE)","v":18146},0,{"$f":"HLOOKUP(Results!E$4,Targeting!$C$3:$F$249,Targeting!$G170,FALSE)","v":1372},{"$f":"IF(AND(OR(Calculations!$E$2=\"Orkney Health Board\",Calculations!$E$2=\"Orkney Islands Local Authority\"),$F170=1),0,IF(AND(OR(Calculations!$E$2=\"Shetland Health Board\",Calculations!$E$2=\"Western Isles Health Board\",Calculations!$E$2=\"Shetland Islands Local Authority\",Calculations!$E$2=\"Eilean Siar Local Authority\"),OR($F170=1,$F170=5)),0,new_ci(VALUE(LEFT(Options!$B$24,2)),$C170,$E170,$F170,2016,$I170,1,$H170,$G170*$H170,Options!B8)))","v":672.69670846450003},{"$f":"IF(AND(OR(Calculations!$E$2=\"Orkney Health Board\",Calculations!$E$2=\"Orkney Islands Local Authority\"),$F170=1),0,IF(AND(OR(Calculations!$E$2=\"Shetland Health Board\",Calculations!$E$2=\"Western Isles Health Board\",Calculations!$E$2=\"Shetland Islands Local Authority\",Calculations!$E$2=\"Eilean Siar Local Authority\"),OR($F170=1,$F170=5)),0,new_ci(VALUE(LEFT(Options!$B$24,2)),$C170,$E170,$F170,2016,$I170+$J170,1,$H170,$G170*$H170,Options!B8)))","v":669.59410141570004},{"$f":"IF(AND(OR(Calculations!$E$2=\"Orkney Health Board\",Calculations!$E$2=\"Orkney Islands Local Authority\"),$F170=1),0,IF(AND(OR(Calculations!$E$2=\"Shetland Health Board\",Calculations!$E$2=\"Western Isles Health Board\",Calculations!$E$2=\"Shetland Islands Local Authority\",Calculations!$E$2=\"Eilean Siar Local Authority\"),OR($F170=1,$F170=5)),0,new_yllv2(VALUE(LEFT(Options!$B$24,2)),$C170,$D170,$E170,$F170,2016,$I170,1,$H170,$G170*$H170,Options!B8)))","v":5684.2871865249999},{"$f":"IF(AND(OR(Calculations!$E$2=\"Orkney Health Board\",Calculations!$E$2=\"Orkney Islands Local Authority\"),$F170=1),0,IF(AND(OR(Calculations!$E$2=\"Shetland Health Board\",Calculations!$E$2=\"Western Isles Health Board\",Calculations!$E$2=\"Shetland Islands Local Authority\",Calculations!$E$2=\"Eilean Siar Local Authority\"),OR($F170=1,$F170=5)),0,new_yllv2(VALUE(LEFT(Options!$B$24,2)),$C170,$D170,$E170,$F170,2016,$I170+$J170,1,$H170,$G170*$H170,Options!B8)))","v":5658.0701569626999},{"$f":"IF(AND(OR(Calculations!$E$2=\"Orkney Health Board\",Calculations!$E$2=\"Orkney Islands Local Authority\"),$F170=1),0,IF(AND(OR(Calculations!$E$2=\"Shetland Health Board\",Calculations!$E$2=\"Western Isles Health Board\",Calculations!$E$2=\"Shetland Islands Local Authority\",Calculations!$E$2=\"Eilean Siar Local Authority\"),OR($F170=1,$F170=5)),0,hosp_count(VALUE(LEFT(Options!$B$24,2)),$C170,$E170,$F170,2016,$I170,1,$H170,$G170*$H170, Options!B8)))","v":10117.666517439},{"$f":"IF(AND(OR(Calculations!$E$2=\"Orkney Health Board\",Calculations!$E$2=\"Orkney Islands Local Authority\"),$F170=1),0,IF(AND(OR(Calculations!$E$2=\"Shetland Health Board\",Calculations!$E$2=\"Western Isles Health Board\",Calculations!$E$2=\"Shetland Islands Local Authority\",Calculations!$E$2=\"Eilean Siar Local Authority\"),OR($F170=1,$F170=5)),0,hosp_count(VALUE(LEFT(Options!$B$24,2)),$C170,$E170,$F170,2016,$I170+$J170,1,$H170,$G170*$H170, Options!B8)))","v":10076.0225556849},{"$f":"IF(AND(OR(Calculations!$E$2=\"Orkney Health Board\",Calculations!$E$2=\"Orkney Islands Local Authority\"),$F170=1),0,IF(AND(OR(Calculations!$E$2=\"Shetland Health Board\",Calculations!$E$2=\"Western Isles Health Board\",Calculations!$E$2=\"Shetland Islands Local Authority\",Calculations!$E$2=\"Eilean Siar Local Authority\"),OR($F170=1,$F170=5)),0,prem_mort(VALUE(LEFT(Options!$B$24,2)),$C170,$E170,$F170,2016,$I170,1,$H170,$G170*$H170,Options!B8)))","v":0},{"$f":"IF(AND(OR(Calculations!$E$2=\"Orkney Health Board\",Calculations!$E$2=\"Orkney Islands Local Authority\"),$F170=1),0,IF(AND(OR(Calculations!$E$2=\"Shetland Health Board\",Calculations!$E$2=\"Western Isles Health Board\",Calculations!$E$2=\"Shetland Islands Local Authority\",Calculations!$E$2=\"Eilean Siar Local Authority\"),OR($F170=1,$F170=5)),0,prem_mort(VALUE(LEFT(Options!$B$24,2)),$C170,$E170,$F170,2016,$I170+$J170,1,$H170,$G170*$H170,Options!B8)))","v":0},3707.1349524109996,3690.0369305395129,31325.290347872811,31180.812063059075,55757.007150000005,55527.513257383995,0,0,14828539.809643999,14760147.722158052,125301161.39149125,124723248.25223629,223028028.60000002,222110053.02953598,0,0,4000]
[null,"Male 80-84",81.797089,88.627089999999995,"male",3,{"$f":"HLOOKUP(Calculations!$E$2,'Prevalence Rates'!$C$3:$BC$249,'Prevalence Rates'!$BD171,FALSE)","v":0.14053064777081969},{"$f":"HLOOKUP(Calculations!$E$2,'Population 2016'!$C$3:$BC$249,'Population 2016'!BD171,FALSE)","v":12096},0,{"$f":"HLOOKUP(Results!E$4,Targeting!$C$3:$F$249,Targeting!$G171,FALSE)","v":915},{"$f":"IF(AND(OR(Calculations!$E$2=\"Orkney Health Board\",Calculations!$E$2=\"Orkney Islands Local Authority\"),$F171=1),0,IF(AND(OR(Calculations!$E$2=\"Shetland Health Board\",Calculations!$E$2=\"Western Isles Health Board\",Calculations!$E$2=\"Shetland Islands Local Authority\",Calculations!$E$2=\"Eilean Siar Local Authority\"),OR($F171=1,$F171=5)),0,new_ci(VALUE(LEFT(Options!$B$24,2)),$C171,$E171,$F171,2016,$I171,1,$H171,$G171*$H171,Options!B8)))","v":643.00389233099997},{"$f":"IF(AND(OR(Calculations!$E$2=\"Orkney Health Board\",Calculations!$E$2=\"Orkney Islands Local Authority\"),$F171=1),0,IF(AND(OR(Calculations!$E$2=\"Shetland Health Board\",Calculations!$E$2=\"Western Isles Health Board\",Calculations!$E$2=\"Shetland Islands Local Authority\",Calculations!$E$2=\"Eilean Siar Local Authority\"),OR($F171=1,$F171=5)),0,new_ci(VALUE(LEFT(Options!$B$24,2)),$C171,$E171,$F171,2016,$I171+$J171,1,$H171,$G171*$H171,Options!B8)))","v":640.08438371399996},{"$f":"IF(AND(OR(Calculations!$E$2=\"Orkney Health Board\",Calculations!$E$2=\"Orkney Islands Local Authority\"),$F171=1),0,IF(AND(OR(Calculations!$E$2=\"Shetland Health Board\",Calculations!$E$2=\"Western Isles Health Board\",Calculations!$E$2=\"Shetland Islands Local Authority\",Calculations!$E$2=\"Eilean Siar Local Authority\"),OR($F171=1,$F171=5)),0,new_yllv2(VALUE(LEFT(Options!$B$24,2)),$C171,$D171,$E171,$F171,2016,$I171,1,$H171,$G171*$H171,Options!B8)))","v":3748.7133352935998},{"$f":"IF(AND(OR(Calculations!$E$2=\"Orkney Health Board\",Calculations!$E$2=\"Orkney Islands Local Authority\"),$F171=1),0,IF(AND(OR(Calculations!$E$2=\"Shetland Health Board\",Calculations!$E$2=\"Western Isles Health Board\",Calculations!$E$2=\"Shetland Islands Local Authority\",Calculations!$E$2=\"Eilean Siar Local Authority\"),OR($F171=1,$F171=5)),0,new_yllv2(VALUE(LEFT(Options!$B$24,2)),$C171,$D171,$E171,$F171,2016,$I171+$J171,1,$H171,$G171*$H171,Options!B8)))","v":3731.6925971370001},{"$f":"IF(AND(OR(Calculations!$E$2=\"Orkney Health Board\",Calculations!$E$2=\"Orkney Islands Local Authority\"),$F171=1),0,IF(AND(OR(Calculations!$E$2=\"Shetland Health Board\",Calculations!$E$2=\"Western Isles Health Board\",Calculations!$E$2=\"Shetland Islands Local Authority\",Calculations!$E$2=\"Eilean Siar Local Authority\"),OR($F171=1,$F171=5)),0,hosp_count(VALUE(LEFT(Options!$B$24,2)),$C171,$E171,$F171,2016,$I171,1,$H171,$G171*$H171, Options!B8)))","v":8022.5594273664001},{"$f":"IF(AND(OR(Calculations!$E$2=\"Orkney Health Board\",Calculations!$E$2=\"Orkney Islands Local Authority\"),$F171=1),0,IF(AND(OR(Calculations!$E$2=\"Shetland Health Board\",Calculations!$E$2=\"Western Isles Health Board\",Calculations!$E$2=\"Shetland Islands Local Authority\",Calculations!$E$2=\"Eilean Siar Local Authority\"),OR($F171=1,$F171=5)),0,hosp_count(VALUE(LEFT(Options!$B$24,2)),$C171,$E171,$F171,2016,$I171+$J171,1,$H171,$G171*$H171, Options!B8)))","v":7989.5231782581996},{"$f":"IF(AND(OR(Calculations!$E$2=\"Orkney Health Board\",Calculations!$E$2=\"Orkney Islands Local Authority\"),$F171=1),0,IF(AND(OR(Calculations!$E$2=\"Shetland Health Board\",Calculations!$E$2=\"Western Isles Health Board\",Calculations!$E$2=\"Shetland Islands Local Authority\",Calculations!$E$2=\"Eilean Siar Local Authority\"),OR($F171=1,$F171=5)),0,prem_mort(VALUE(LEFT(Options!$B$24,2)),$C171,$E171,$F171,2016,$I171,1,$H171,$G171*$H171,Options!B8)))","v":0},{"$f":"IF(AND(OR(Calculations!$E$2=\"Orkney Health Board\",Calculations!$E$2=\"Orkney Islands Local Authority\"),$F171=1),0,IF(AND(OR(Calculations!$E$2=\"Shetland Health Board\",Calculations!$E$2=\"Western Isles Health Board\",Calculations!$E$2=\"Shetland Islands Local Authority\",Calculations!$E$2=\"Eilean Siar Local Authority\"),OR($F171=1,$F171=5)),0,prem_mort(VALUE(LEFT(Options!$B$24,2)),$C171,$E171,$F171,2016,$I171+$J171,1,$H171,$G171*$H171,Options!B8)))","v":0},5315.8390569692456,5291.7029076884919,30991.347017969576,30850.633243526787,66324.069340000002,66050.952201208667,0,0,13289597.642423114,13229257.269221229,77478367.544923946,77126583.108816966,165810173.34999999,165127380.50302166,0,0,2500]
[null,"Male 85-89",86.630752999999999,91.420750000000012,"male",3,{"$f":"HLOOKUP(Calculations!$E$2,'Prevalence Rates'!$C$3:$BC$249,'Prevalence Rates'!$BD172,FALSE)","v":0.14053064777081969},{"$f":"HLOOKUP(Calculations!$E$2,'Population 2016'!$C$3:$BC$249,'Population 2016'!BD172,FALSE)","v":6019},0,{"$f":"HLOOKUP(Results!E$4,Targeting!$C$3:$F$249,Targeting!$G172,FALSE)","v":455},{"$f":"IF(AND(OR(Calculations!$E$2=\"Orkney Health Board\",Calculations!$E$2=\"Orkney Islands Local Authority\"),$F172=1),0,IF(AND(OR(Calculations!$E$2=\"Shetland Health Board\",Calculations!$E$2=\"Western Isles Health Board\",Calculations!$E$2=\"Shetland Islands Local Authority\",Calculations!$E$2=\"Eilean Siar Local Authority\"),OR($F172=1,$F172=5)),0,new_ci(VALUE(LEFT(Options!$B$24,2)),$C172,$E172,$F172,2016,$I172,1,$H172,$G172*$H172,Options!B8)))","v":455.2101252969},{"$f":"IF(AND(OR(Calculations!$E$2=\"Orkney Health Board\",Calculations!$E$2=\"Orkney Islands Local Authority\"),$F172=1),0,IF(AND(OR(Calculations!$E$2=\"Shetland Health Board\",Calculations!$E$2=\"Western Isles Health Board\",Calculations!$E$2=\"Shetland Islands Local Authority\",Calculations!$E$2=\"Eilean Siar Local Authority\"),OR($F172=1,$F172=5)),0,new_ci(VALUE(LEFT(Options!$B$24,2)),$C172,$E172,$F172,2016,$I172+$J172,1,$H172,$G172*$H172,Options!B8)))","v":453.19185144839997},{"$f":"IF(AND(OR(Calculations!$E$2=\"Orkney Health Board\",Calculations!$E$2=\"Orkney Islands Local Authority\"),$F172=1),0,IF(AND(OR(Calculations!$E$2=\"Shetland Health Board\",Calculations!$E$2=\"Western Isles Health Board\",Calculations!$E$2=\"Shetland Islands Local Authority\",Calculations!$E$2=\"Eilean Siar Local Authority\"),OR($F172=1,$F172=5)),0,new_yllv2(VALUE(LEFT(Options!$B$24,2)),$C172,$D172,$E172,$F172,2016,$I172,1,$H172,$G172*$H172,Options!B8)))","v":1725.2450092449001},{"$f":"IF(AND(OR(Calculations!$E$2=\"Orkney Health Board\",Calculations!$E$2=\"Orkney Islands Local Authority\"),$F172=1),0,IF(AND(OR(Calculations!$E$2=\"Shetland Health Board\",Calculations!$E$2=\"Western Isles Health Board\",Calculations!$E$2=\"Shetland Islands Local Authority\",Calculations!$E$2=\"Eilean Siar Local Authority\"),OR($F172=1,$F172=5)),0,new_yllv2(VALUE(LEFT(Options!$B$24,2)),$C172,$D172,$E172,$F172,2016,$I172+$J172,1,$H172,$G172*$H172,Options!B8)))","v":1717.5957574138999},{"$f":"IF(AND(OR(Calculations!$E$2=\"Orkney Health Board\",Calculations!$E$2=\"Orkney Islands Local Authority\"),$F172=1),0,IF(AND(OR(Calculations!$E$2=\"Shetland Health Board\",Calculations!$E$2=\"Western Isles Health Board\",Calculations!$E$2=\"Shetland Islands Local Authority\",Calculations!$E$2=\"Eilean Siar Local Authority\"),OR($F172=1,$F172=5)),0,hosp_count(VALUE(LEFT(Options!$B$24,2)),$C172,$E172,$F172,2016,$I172,1,$H172,$G172*$H172, Options!B8)))","v":4739.2344881063},{"$f":"IF(AND(OR(Calculations!$E$2=\"Orkney Health Board\",Calculations!$E$2=\"Orkney Islands Local Authority\"),$F172=1),0,IF(AND(OR(Calculations!$E$2=\"Shetland Health Board\",Calculations!$E$2=\"Western Isles Health Board\",Calculations!$E$2=\"Shetland Islands Local Authority\",Calculations!$E$2=\"Eilean Siar Local Authority\"),OR($F172=1,$F172=5)),0,hosp_count(VALUE(LEFT(Options!$B$24,2)),$C172,$E172,$F172,2016,$I172+$J172,1,$H172,$G172*$H172, Options!B8)))","v":4719.7318337518},{"$f":"IF(AND(OR(Calculations!$E$2=\"Orkney Health Board\",Calculations!$E$2=\"Orkney Islands Local Authority\"),$F172=1),0,IF(AND(OR(Calculations!$E$2=\"Shetland Health Board\",Calculations!$E$2=\"Western Isles Health Board\",Calculations!$E$2=\"Shetland Islands Local Authority\",Calculations!$E$2=\"Eilean Siar Local Authority\"),OR($F172=1,$F172=5)),0,prem_mort(VALUE(LEFT(Options!$B$24,2)),$C172,$E172,$F172,2016,$I172,1,$H172,$G172*$H172,Options!B8)))","v":0},{"$f":"IF(AND(OR(Calculations!$E$2=\"Orkney Health Board\",Calculations!$E$2=\"Orkney Islands Local Authority\"),$F172=1),0,IF(AND(OR(Calculations!$E$2=\"Shetland Health Board\",Calculations!$E$2=\"Western Isles Health Board\",Calculations!$E$2=\"Shetland Islands Local Authority\",Calculations!$E$2=\"Eilean Siar Local Authority\"),OR($F172=1,$F172=5)),0,prem_mort(VALUE(LEFT(Options!$B$24,2)),$C172,$E172,$F172,2016,$I172+$J172,1,$H172,$G172*$H172,Options!B8)))","v":0},7562.8862817228774,7529.3545680079742,28663.316319071277,28536.231224686824,78737.904770000008,78413.886588333611,0,0,11344329.422584316,11294031.852011962,42994974.478606917,42804346.837030239,118106857.15500002,117620829.88250041,0,0,1500]
[null,"Male 90+",92.215477000000007,95.515479999999997,"male",3,{"$f":"HLOOKUP(Calculations!$E$2,'Prevalence Rates'!$C$3:$BC$249,'Prevalence Rates'!$BD173,FALSE)","v":0.14053064777081969},{"$f":"HLOOKUP(Calculations!$E$2,'Population 2016'!$C$3:$BC$249,'Population 2016'!BD173,FALSE)","v":2593},0,{"$f":"HLOOKUP(Results!E$4,Targeting!$C$3:$F$249,Targeting!$G173,FALSE)","v":196},{"$f":"IF(AND(OR(Calculations!$E$2=\"Orkney Health Board\",Calculations!$E$2=\"Orkney Islands Local Authority\"),$F173=1),0,IF(AND(OR(Calculations!$E$2=\"Shetland Health Board\",Calculations!$E$2=\"Western Isles Health Board\",Calculations!$E$2=\"Shetland Islands Local Authority\",Calculations!$E$2=\"Eilean Siar Local Authority\"),OR($F173=1,$F173=5)),0,new_ci(VALUE(LEFT(Options!$B$24,2)),$C173,$E173,$F173,2016,$I173,1,$H173,$G173*$H173,Options!B8)))","v":292.72038961200002},{"$f":"IF(AND(OR(Calculations!$E$2=\"Orkney Health Board\",Calculations!$E$2=\"Orkney Islands Local Authority\"),$F173=1),0,IF(AND(OR(Calculations!$E$2=\"Shetland Health Board\",Calculations!$E$2=\"Western Isles Health Board\",Calculations!$E$2=\"Shetland Islands Local Authority\",Calculations!$E$2=\"Eilean Siar Local Authority\"),OR($F173=1,$F173=5)),0,new_ci(VALUE(LEFT(Options!$B$24,2)),$C173,$E173,$F173,2016,$I173+$J173,1,$H173,$G173*$H173,Options!B8)))","v":291.47326262320001},{"$f":"IF(AND(OR(Calculations!$E$2=\"Orkney Health Board\",Calculations!$E$2=\"Orkney Islands Local Authority\"),$F173=1),0,IF(AND(OR(Calculations!$E$2=\"Shetland Health Board\",Calculations!$E$2=\"Western Isles Health Board\",Calculations!$E$2=\"Shetland Islands Local Authority\",Calculations!$E$2=\"Eilean Siar Local Authority\"),OR($F173=1,$F173=5)),0,new_yllv2(VALUE(LEFT(Options!$B$24,2)),$C173,$D173,$E173,$F173,2016,$I173,1,$H173,$G173*$H173,Options!B8)))","v":673.25777426879995},{"$f":"IF(AND(OR(Calculations!$E$2=\"Orkney Health Board\",Calculations!$E$2=\"Orkney Islands Local Authority\"),$F173=1),0,IF(AND(OR(Calculations!$E$2=\"Shetland Health Board\",Calculations!$E$2=\"Western Isles Health Board\",Calculations!$E$2=\"Shetland Islands Local Authority\",Calculations!$E$2=\"Eilean Siar Local Authority\"),OR($F173=1,$F173=5)),0,new_yllv2(VALUE(LEFT(Options!$B$24,2)),$C173,$D173,$E173,$F173,2016,$I173+$J173,1,$H173,$G173*$H173,Options!B8)))","v":670.38937845309999},{"$f":"IF(AND(OR(Calculations!$E$2=\"Orkney Health Board\",Calculations!$E$2=\"Orkney Islands Local Authority\"),$F173=1),0,IF(AND(OR(Calculations!$E$2=\"Shetland Health Board\",Calculations!$E$2=\"Western Isles Health Board\",Calculations!$E$2=\"Shetland Islands Local Authority\",Calculations!$E$2=\"Eilean Siar Local Authority\"),OR($F173=1,$F173=5)),0,hosp_count(VALUE(LEFT(Options!$B$24,2)),$C173,$E173,$F173,2016,$I173,1,$H173,$G173*$H173, Options!B8)))","v":2489.2981891170998},{"$f":"IF(AND(OR(Calculations!$E$2=\"Orkney Health Board\",Calculations!$E$2=\"Orkney Islands Local Authority\"),$F173=1),0,IF(AND(OR(Calculations!$E$2=\"Shetland Health Board\",Calculations!$E$2=\"Western Isles Health Board\",Calculations!$E$2=\"Shetland Islands Local Authority\",Calculations!$E$2=\"Eilean Siar Local Authority\"),OR($F173=1,$F173=5)),0,hosp_count(VALUE(LEFT(Options!$B$24,2)),$C173,$E173,$F173,2016,$I173+$J173,1,$H173,$G173*$H173, Options!B8)))","v":2479.0551471639001},{"$f":"IF(AND(OR(Calculations!$E$2=\"Orkney Health Board\",Calculations!$E$2=\"Orkney Islands Local Authority\"),$F173=1),0,IF(AND(OR(Calculations!$E$2=\"Shetland Health Board\",Calculations!$E$2=\"Western Isles Health Board\",Calculations!$E$2=\"Shetland Islands Local Authority\",Calculations!$E$2=\"Eilean Siar Local Authority\"),OR($F173=1,$F173=5)),0,prem_mort(VALUE(LEFT(Options!$B$24,2)),$C173,$E173,$F173,2016,$I173,1,$H173,$G173*$H173,Options!B8)))","v":0},{"$f":"IF(AND(OR(Calculations!$E$2=\"Orkney Health Board\",Calculations!$E$2=\"Orkney Islands Local Authority\"),$F173=1),0,IF(AND(OR(Calculations!$E$2=\"Shetland Health Board\",Calculations!$E$2=\"Western Isles Health Board\",Calculations!$E$2=\"Shetland Islands Local Authority\",Calculations!$E$2=\"Eilean Siar Local Authority\"),OR($F173=1,$F173=5)),0,prem_mort(VALUE(LEFT(Options!$B$24,2)),$C173,$E173,$F173,2016,$I173+$J173,1,$H173,$G173*$H173,Options!B8)))","v":0},11288.869634091787,11240.773722452757,25964.434025021212,25853.813283960666,96000.70147,95605.674784570001,0,0,11288869.634091787,11240773.722452758,25964434.02502121,25853813.283960667,96000701.469999999,95605674.784570009,0,0,1000]
[null,"Female 0-4",2.0384007,81.468401,"female",4,{"$f":"HLOOKUP(Calculations!$E$2,'Prevalence Rates'!$C$3:$BC$249,'Prevalence Rates'!$BD174,FALSE)","v":0},{"$f":"HLOOKUP(Calculations!$E$2,'Population 2016'!$C$3:$BC$249,'Population 2016'!BD174,FALSE)","v":0},0,{"$f":"HLOOKUP(Results!E$4,Targeting!$C$3:$F$249,Targeting!$G174,FALSE)","v":0},{"$f":"IF(AND(OR(Calculations!$E$2=\"Orkney Health Board\",Calculations!$E$2=\"Orkney Islands Local Authority\"),$F174=1),0,IF(AND(OR(Calculations!$E$2=\"Shetland Health Board\",Calculations!$E$2=\"Western Isles Health Board\",Calculations!$E$2=\"Shetland Islands Local Authority\",Calculations!$E$2=\"Eilean Siar Local Authority\"),OR($F174=1,$F174=5)),0,new_ci(VALUE(LEFT(Options!$B$24,2)),$C174,$E174,$F174,2016,$I174,1,$H174,$G174*$H174,Options!B8)))","v":{"$error":"#VALUE!"}},{"$f":"IF(AND(OR(Calculations!$E$2=\"Orkney Health Board\",Calculations!$E$2=\"Orkney Islands Local Authority\"),$F174=1),0,IF(AND(OR(Calculations!$E$2=\"Shetland Health Board\",Calculations!$E$2=\"Western Isles Health Board\",Calculations!$E$2=\"Shetland Islands Local Authority\",Calculations!$E$2=\"Eilean Siar Local Authority\"),OR($F174=1,$F174=5)),0,new_ci(VALUE(LEFT(Options!$B$24,2)),$C174,$E174,$F174,2016,$I174+$J174,1,$H174,$G174*$H174,Options!B8)))","v":{"$error":"#VALUE!"}},{"$f":"IF(AND(OR(Calculations!$E$2=\"Orkney Health Board\",Calculations!$E$2=\"Orkney Islands Local Authority\"),$F174=1),0,IF(AND(OR(Calculations!$E$2=\"Shetland Health Board\",Calculations!$E$2=\"Western Isles Health Board\",Calculations!$E$2=\"Shetland Islands Local Authority\",Calculations!$E$2=\"Eilean Siar Local Authority\"),OR($F174=1,$F174=5)),0,new_yllv2(VALUE(LEFT(Options!$B$24,2)),$C174,$D174,$E174,$F174,2016,$I174,1,$H174,$G174*$H174,Options!B8)))","v":{"$error":"#VALUE!"}},{"$f":"IF(AND(OR(Calculations!$E$2=\"Orkney Health Board\",Calculations!$E$2=\"Orkney Islands Local Authority\"),$F174=1),0,IF(AND(OR(Calculations!$E$2=\"Shetland Health Board\",Calculations!$E$2=\"Western Isles Health Board\",Calculations!$E$2=\"Shetland Islands Local Authority\",Calculations!$E$2=\"Eilean Siar Local Authority\"),OR($F174=1,$F174=5)),0,new_yllv2(VALUE(LEFT(Options!$B$24,2)),$C174,$D174,$E174,$F174,2016,$I174+$J174,1,$H174,$G174*$H174,Options!B8)))","v":{"$error":"#VALUE!"}},{"$f":"IF(AND(OR(Calculations!$E$2=\"Orkney Health Board\",Calculations!$E$2=\"Orkney Islands Local Authority\"),$F174=1),0,IF(AND(OR(Calculations!$E$2=\"Shetland Health Board\",Calculations!$E$2=\"Western Isles Health Board\",Calculations!$E$2=\"Shetland Islands Local Authority\",Calculations!$E$2=\"Eilean Siar Local Authority\"),OR($F174=1,$F174=5)),0,hosp_count(VALUE(LEFT(Options!$B$24,2)),$C174,$E174,$F174,2016,$I174,1,$H174,$G174*$H174, Options!B8)))","v":{"$error":"#VALUE!"}},{"$f":"IF(AND(OR(Calculations!$E$2=\"Orkney Health Board\",Calculations!$E$2=\"Orkney Islands Local Authority\"),$F174=1),0,IF(AND(OR(Calculations!$E$2=\"Shetland Health Board\",Calculations!$E$2=\"Western Isles Health Board\",Calculations!$E$2=\"Shetland Islands Local Authority\",Calculations!$E$2=\"Eilean Siar Local Authority\"),OR($F174=1,$F174=5)),0,hosp_count(VALUE(LEFT(Options!$B$24,2)),$C174,$E174,$F174,2016,$I174+$J174,1,$H174,$G174*$H174, Options!B8)))","v":{"$error":"#VALUE!"}},{"$f":"IF(AND(OR(Calculations!$E$2=\"Orkney Health Board\",Calculations!$E$2=\"Orkney Islands Local Authority\"),$F174=1),0,IF(AND(OR(Calculations!$E$2=\"Shetland Health Board\",Calculations!$E$2=\"Western Isles Health Board\",Calculations!$E$2=\"Shetland Islands Local Authority\",Calculations!$E$2=\"Eilean Siar Local Authority\"),OR($F174=1,$F174=5)),0,prem_mort(VALUE(LEFT(Options!$B$24,2)),$C174,$E174,$F174,2016,$I174,1,$H174,$G174*$H174,Options!B8)))","v":{"$error":"#VALUE!"}},{"$f":"IF(AND(OR(Calculations!$E$2=\"Orkney Health Board\",Calculations!$E$2=\"Orkney Islands Local Authority\"),$F174=1),0,IF(AND(OR(Calculations!$E$2=\"Shetland Health Board\",Calculations!$E$2=\"Western Isles Health Board\",Calculations!$E$2=\"Shetland Islands Local Authority\",Calculations!$E$2=\"Eilean Siar Local Authority\"),OR($F174=1,$F174=5)),0,prem_mort(VALUE(LEFT(Options!$B$24,2)),$C174,$E174,$F174,2016,$I174+$J174,1,$H174,$G174*$H174,Options!B8)))","v":{"$error":"#VALUE!"}},{"$error":"#VALUE!"},{"$error":"#VALUE!"},{"$error":"#VALUE!"},{"$error":"#VALUE!"},{"$error":"#VALUE!"},{"$error":"#VALUE!"},{"$error":"#VALUE!"},{"$error":"#VALUE!"},{"$error":"#VALUE!"},{"$error":"#VALUE!"},{"$error":"#VALUE!"},{"$error":"#VALUE!"},{"$error":"#VALUE!"},{"$error":"#VALUE!"},{"$error":"#VALUE!"},{"$error":"#VALUE!"},5000]
[null,"Female 5-9",6.9792794999999996,81.439279999999997,"female",4,{"$f":"HLOOKUP(Calculations!$E$2,'Prevalence Rates'!$C$3:$BC$249,'Prevalence Rates'!$BD175,FALSE)","v":0},{"$f":"HLOOKUP(Calculations!$E$2,'Population 2016'!$C$3:$BC$249,'Population 2016'!BD175,FALSE)","v":0},0,{"$f":"HLOOKUP(Results!E$4,Targeting!$C$3:$F$249,Targeting!$G175,FALSE)","v":0},{"$f":"IF(AND(OR(Calculations!$E$2=\"Orkney Health Board\",Calculations!$E$2=\"Orkney Islands Local Authority\"),$F175=1),0,IF(AND(OR(Calculations!$E$2=\"Shetland Health Board\",Calculations!$E$2=\"Western Isles Health Board\",Calculations!$E$2=\"Shetland Islands Local Authority\",Calculations!$E$2=\"Eilean Siar Local Authority\"),OR($F175=1,$F175=5)),0,new_ci(VALUE(LEFT(Options!$B$24,2)),$C175,$E175,$F175,2016,$I175,1,$H175,$G175*$H175,Options!B8)))","v":{"$error":"#VALUE!"}},{"$f":"IF(AND(OR(Calculations!$E$2=\"Orkney Health Board\",Calculations!$E$2=\"Orkney Islands Local Authority\"),$F175=1),0,IF(AND(OR(Calculations!$E$2=\"Shetland Health Board\",Calculations!$E$2=\"Western Isles Health Board\",Calculations!$E$2=\"Shetland Islands Local Authority\",Calculations!$E$2=\"Eilean Siar Local Authority\"),OR($F175=1,$F175=5)),0,new_ci(VALUE(LEFT(Options!$B$24,2)),$C175,$E175,$F175,2016,$I175+$J175,1,$H175,$G175*$H175,Options!B8)))","v":{"$error":"#VALUE!"}},{"$f":"IF(AND(OR(Calculations!$E$2=\"Orkney Health Board\",Calculations!$E$2=\"Orkney Islands Local Authority\"),$F175=1),0,IF(AND(OR(Calculations!$E$2=\"Shetland Health Board\",Calculations!$E$2=\"Western Isles Health Board\",Calculations!$E$2=\"Shetland Islands Local Authority\",Calculations!$E$2=\"Eilean Siar Local Authority\"),OR($F175=1,$F175=5)),0,new_yllv2(VALUE(LEFT(Options!$B$24,2)),$C175,$D175,$E175,$F175,2016,$I175,1,$H175,$G175*$H175,Options!B8)))","v":{"$error":"#VALUE!"}},{"$f":"IF(AND(OR(Calculations!$E$2=\"Orkney Health Board\",Calculations!$E$2=\"Orkney Islands Local Authority\"),$F175=1),0,IF(AND(OR(Calculations!$E$2=\"Shetland Health Board\",Calculations!$E$2=\"Western Isles Health Board\",Calculations!$E$2=\"Shetland Islands Local Authority\",Calculations!$E$2=\"Eilean Siar Local Authority\"),OR($F175=1,$F175=5)),0,new_yllv2(VALUE(LEFT(Options!$B$24,2)),$C175,$D175,$E175,$F175,2016,$I175+$J175,1,$H175,$G175*$H175,Options!B8)))","v":{"$error":"#VALUE!"}},{"$f":"IF(AND(OR(Calculations!$E$2=\"Orkney Health Board\",Calculations!$E$2=\"Orkney Islands Local Authority\"),$F175=1),0,IF(AND(OR(Calculations!$E$2=\"Shetland Health Board\",Calculations!$E$2=\"Western Isles Health Board\",Calculations!$E$2=\"Shetland Islands Local Authority\",Calculations!$E$2=\"Eilean Siar Local Authority\"),OR($F175=1,$F175=5)),0,hosp_count(VALUE(LEFT(Options!$B$24,2)),$C175,$E175,$F175,2016,$I175,1,$H175,$G175*$H175, Options!B8)))","v":{"$error":"#VALUE!"}},{"$f":"IF(AND(OR(Calculations!$E$2=\"Orkney Health Board\",Calculations!$E$2=\"Orkney Islands Local Authority\"),$F175=1),0,IF(AND(OR(Calculations!$E$2=\"Shetland Health Board\",Calculations!$E$2=\"Western Isles Health Board\",Calculations!$E$2=\"Shetland Islands Local Authority\",Calculations!$E$2=\"Eilean Siar Local Authority\"),OR($F175=1,$F175=5)),0,hosp_count(VALUE(LEFT(Options!$B$24,2)),$C175,$E175,$F175,2016,$I175+$J175,1,$H175,$G175*$H175, Options!B8)))","v":{"$error":"#VALUE!"}},{"$f":"IF(AND(OR(Calculations!$E$2=\"Orkney Health Board\",Calculations!$E$2=\"Orkney Islands Local Authority\"),$F175=1),0,IF(AND(OR(Calculations!$E$2=\"Shetland Health Board\",Calculations!$E$2=\"Western Isles Health Board\",Calculations!$E$2=\"Shetland Islands Local Authority\",Calculations!$E$2=\"Eilean Siar Local Authority\"),OR($F175=1,$F175=5)),0,prem_mort(VALUE(LEFT(Options!$B$24,2)),$C175,$E175,$F175,2016,$I175,1,$H175,$G175*$H175,Options!B8)))","v":{"$error":"#VALUE!"}},{"$f":"IF(AND(OR(Calculations!$E$2=\"Orkney Health Board\",Calculations!$E$2=\"Orkney Islands Local Authority\"),$F175=1),0,IF(AND(OR(Calculations!$E$2=\"Shetland Health Board\",Calculations!$E$2=\"Western Isles Health Board\",Calculations!$E$2=\"Shetland Islands Local Authority\",Calculations!$E$2=\"Eilean Siar Local Authority\"),OR($F175=1,$F175=5)),0,prem_mort(VALUE(LEFT(Options!$B$24,2)),$C175,$E175,$F175,2016,$I175+$J175,1,$H175,$G175*$H175,Options!B8)))","v":{"$error":"#VALUE!"}},{"$error":"#VALUE!"},{"$error":"#VALUE!"},{"$error":"#VALUE!"},{"$error":"#VALUE!"},{"$error":"#VALUE!"},{"$error":"#VALUE!"},{"$error":"#VALUE!"},{"$error":"#VALUE!"},{"$error":"#VALUE!"},{"$error":"#VALUE!"},{"$error":"#VALUE!"},{"$error":"#VALUE!"},{"$error":"#VALUE!"},{"$error":"#VALUE!"},{"$error":"#VALUE!"},{"$error":"#VALUE!"},5500]
[null,"Female 10-15",12.478312000000001,81.948309999999992,"female",4,{"$f":"HLOOKUP(Calculations!$E$2,'Prevalence Rates'!$C$3:$BC$249,'Prevalence Rates'!$BD176,FALSE)","v":0},{"$f":"HLOOKUP(Calculations!$E$2,'Population 2016'!$C$3:$BC$249,'Population 2016'!BD176,FALSE)","v":0},0,{"$f":"HLOOKUP(Results!E$4,Targeting!$C$3:$F$249,Targeting!$G176,FALSE)","v":0},{"$f":"IF(AND(OR(Calculations!$E$2=\"Orkney Health Board\",Calculations!$E$2=\"Orkney Islands Local Authority\"),$F176=1),0,IF(AND(OR(Calculations!$E$2=\"Shetland Health Board\",Calculations!$E$2=\"Western Isles Health Board\",Calculations!$E$2=\"Shetland Islands Local Authority\",Calculations!$E$2=\"Eilean Siar Local Authority\"),OR($F176=1,$F176=5)),0,new_ci(VALUE(LEFT(Options!$B$24,2)),$C176,$E176,$F176,2016,$I176,1,$H176,$G176*$H176,Options!B8)))","v":{"$error":"#VALUE!"}},{"$f":"IF(AND(OR(Calculations!$E$2=\"Orkney Health Board\",Calculations!$E$2=\"Orkney Islands Local Authority\"),$F176=1),0,IF(AND(OR(Calculations!$E$2=\"Shetland Health Board\",Calculations!$E$2=\"Western Isles Health Board\",Calculations!$E$2=\"Shetland Islands Local Authority\",Calculations!$E$2=\"Eilean Siar Local Authority\"),OR($F176=1,$F176=5)),0,new_ci(VALUE(LEFT(Options!$B$24,2)),$C176,$E176,$F176,2016,$I176+$J176,1,$H176,$G176*$H176,Options!B8)))","v":{"$error":"#VALUE!"}},{"$f":"IF(AND(OR(Calculations!$E$2=\"Orkney Health Board\",Calculations!$E$2=\"Orkney Islands Local Authority\"),$F176=1),0,IF(AND(OR(Calculations!$E$2=\"Shetland Health Board\",Calculations!$E$2=\"Western Isles Health Board\",Calculations!$E$2=\"Shetland Islands Local Authority\",Calculations!$E$2=\"Eilean Siar Local Authority\"),OR($F176=1,$F176=5)),0,new_yllv2(VALUE(LEFT(Options!$B$24,2)),$C176,$D176,$E176,$F176,2016,$I176,1,$H176,$G176*$H176,Options!B8)))","v":{"$error":"#VALUE!"}},{"$f":"IF(AND(OR(Calculations!$E$2=\"Orkney Health Board\",Calculations!$E$2=\"Orkney Islands Local Authority\"),$F176=1),0,IF(AND(OR(Calculations!$E$2=\"Shetland Health Board\",Calculations!$E$2=\"Western Isles Health Board\",Calculations!$E$2=\"Shetland Islands Local Authority\",Calculations!$E$2=\"Eilean Siar Local Authority\"),OR($F176=1,$F176=5)),0,new_yllv2(VALUE(LEFT(Options!$B$24,2)),$C176,$D176,$E176,$F176,2016,$I176+$J176,1,$H176,$G176*$H176,Options!B8)))","v":{"$error":"#VALUE!"}},{"$f":"IF(AND(OR(Calculations!$E$2=\"Orkney Health Board\",Calculations!$E$2=\"Orkney Islands Local Authority\"),$F176=1),0,IF(AND(OR(Calculations!$E$2=\"Shetland Health Board\",Calculations!$E$2=\"Western Isles Health Board\",Calculations!$E$2=\"Shetland Islands Local Authority\",Calculations!$E$2=\"Eilean Siar Local Authority\"),OR($F176=1,$F176=5)),0,hosp_count(VALUE(LEFT(Options!$B$24,2)),$C176,$E176,$F176,2016,$I176,1,$H176,$G176*$H176, Options!B8)))","v":{"$error":"#VALUE!"}},{"$f":"IF(AND(OR(Calculations!$E$2=\"Orkney Health Board\",Calculations!$E$2=\"Orkney Islands Local Authority\"),$F176=1),0,IF(AND(OR(Calculations!$E$2=\"Shetland Health Board\",Calculations!$E$2=\"Western Isles Health Board\",Calculations!$E$2=\"Shetland Islands Local Authority\",Calculations!$E$2=\"Eilean Siar Local Authority\"),OR($F176=1,$F176=5)),0,hosp_count(VALUE(LEFT(Options!$B$24,2)),$C176,$E176,$F176,2016,$I176+$J176,1,$H176,$G176*$H176, Options!B8)))","v":{"$error":"#VALUE!"}},{"$f":"IF(AND(OR(Calculations!$E$2=\"Orkney Health Board\",Calculations!$E$2=\"Orkney Islands Local Authority\"),$F176=1),0,IF(AND(OR(Calculations!$E$2=\"Shetland Health Board\",Calculations!$E$2=\"Western Isles Health Board\",Calculations!$E$2=\"Shetland Islands Local Authority\",Calculations!$E$2=\"Eilean Siar Local Authority\"),OR($F176=1,$F176=5)),0,prem_mort(VALUE(LEFT(Options!$B$24,2)),$C176,$E176,$F176,2016,$I176,1,$H176,$G176*$H176,Options!B8)))","v":{"$error":"#VALUE!"}},{"$f":"IF(AND(OR(Calculations!$E$2=\"Orkney Health Board\",Calculations!$E$2=\"Orkney Islands Local Authority\"),$F176=1),0,IF(AND(OR(Calculations!$E$2=\"Shetland Health Board\",Calculations!$E$2=\"Western Isles Health Board\",Calculations!$E$2=\"Shetland Islands Local Authority\",Calculations!$E$2=\"Eilean Siar Local Authority\"),OR($F176=1,$F176=5)),0,prem_mort(VALUE(LEFT(Options!$B$24,2)),$C176,$E176,$F176,2016,$I176+$J176,1,$H176,$G176*$H176,Options!B8)))","v":{"$error":"#VALUE!"}},{"$error":"#VALUE!"},{"$error":"#VALUE!"},{"$error":"#VALUE!"},{"$error":"#VALUE!"},{"$error":"#VALUE!"},{"$error":"#VALUE!"},{"$error":"#VALUE!"},{"$error":"#VALUE!"},{"$error":"#VALUE!"},{"$error":"#VALUE!"},{"$error":"#VALUE!"},{"$error":"#VALUE!"},{"$error":"#VALUE!"},{"$error":"#VALUE!"},{"$error":"#VALUE!"},{"$error":"#VALUE!"},6600]
["SIMD Q4","Female 16-19",17.570053000000001,81.100049999999996,"female",4,{"$f":"HLOOKUP(Calculations!$E$2,'Prevalence Rates'!$C$3:$BC$249,'Prevalence Rates'!$BD177,FALSE)","v":0.16670894498790137},{"$f":"HLOOKUP(Calculations!$E$2,'Population 2016'!$C$3:$BC$249,'Population 2016'!BD177,FALSE)","v":23408},0,{"$f":"HLOOKUP(Results!E$4,Targeting!$C$3:$F$249,Targeting!$G177,FALSE)","v":1770},{"$f":"IF(AND(OR(Calculations!$E$2=\"Orkney Health Board\",Calculations!$E$2=\"Orkney Islands Local Authority\"),$F177=1),0,IF(AND(OR(Calculations!$E$2=\"Shetland Health Board\",Calculations!$E$2=\"Western Isles Health Board\",Calculations!$E$2=\"Shetland Islands Local Authority\",Calculations!$E$2=\"Eilean Siar Local Authority\"),OR($F177=1,$F177=5)),0,new_ci(VALUE(LEFT(Options!$B$24,2)),$C177,$E177,$F177,2016,$I177,1,$H177,$G177*$H177,Options!B8)))","v":3.3423290718000001},{"$f":"IF(AND(OR(Calculations!$E$2=\"Orkney Health Board\",Calculations!$E$2=\"Orkney Islands Local Authority\"),$F177=1),0,IF(AND(OR(Calculations!$E$2=\"Shetland Health Board\",Calculations!$E$2=\"Western Isles Health Board\",Calculations!$E$2=\"Shetland Islands Local Authority\",Calculations!$E$2=\"Eilean Siar Local Authority\"),OR($F177=1,$F177=5)),0,new_ci(VALUE(LEFT(Options!$B$24,2)),$C177,$E177,$F177,2016,$I177+$J177,1,$H177,$G177*$H177,Options!B8)))","v":3.3280064087999999},{"$f":"IF(AND(OR(Calculations!$E$2=\"Orkney Health Board\",Calculations!$E$2=\"Orkney Islands Local Authority\"),$F177=1),0,IF(AND(OR(Calculations!$E$2=\"Shetland Health Board\",Calculations!$E$2=\"Western Isles Health Board\",Calculations!$E$2=\"Shetland Islands Local Authority\",Calculations!$E$2=\"Eilean Siar Local Authority\"),OR($F177=1,$F177=5)),0,new_yllv2(VALUE(LEFT(Options!$B$24,2)),$C177,$D177,$E177,$F177,2016,$I177,1,$H177,$G177*$H177,Options!B8)))","v":208.9958268327},{"$f":"IF(AND(OR(Calculations!$E$2=\"Orkney Health Board\",Calculations!$E$2=\"Orkney Islands Local Authority\"),$F177=1),0,IF(AND(OR(Calculations!$E$2=\"Shetland Health Board\",Calculations!$E$2=\"Western Isles Health Board\",Calculations!$E$2=\"Shetland Islands Local Authority\",Calculations!$E$2=\"Eilean Siar Local Authority\"),OR($F177=1,$F177=5)),0,new_yllv2(VALUE(LEFT(Options!$B$24,2)),$C177,$D177,$E177,$F177,2016,$I177+$J177,1,$H177,$G177*$H177,Options!B8)))","v":208.10023075820001},{"$f":"IF(AND(OR(Calculations!$E$2=\"Orkney Health Board\",Calculations!$E$2=\"Orkney Islands Local Authority\"),$F177=1),0,IF(AND(OR(Calculations!$E$2=\"Shetland Health Board\",Calculations!$E$2=\"Western Isles Health Board\",Calculations!$E$2=\"Shetland Islands Local Authority\",Calculations!$E$2=\"Eilean Siar Local Authority\"),OR($F177=1,$F177=5)),0,hosp_count(VALUE(LEFT(Options!$B$24,2)),$C177,$E177,$F177,2016,$I177,1,$H177,$G177*$H177, Options!B8)))","v":2068.4330629423998},{"$f":"IF(AND(OR(Calculations!$E$2=\"Orkney Health Board\",Calculations!$E$2=\"Orkney Islands Local Authority\"),$F177=1),0,IF(AND(OR(Calculations!$E$2=\"Shetland Health Board\",Calculations!$E$2=\"Western Isles Health Board\",Calculations!$E$2=\"Shetland Islands Local Authority\",Calculations!$E$2=\"Eilean Siar Local Authority\"),OR($F177=1,$F177=5)),0,hosp_count(VALUE(LEFT(Options!$B$24,2)),$C177,$E177,$F177,2016,$I177+$J177,1,$H177,$G177*$H177, Options!B8)))","v":2060.0676598166001},{"$f":"IF(AND(OR(Calculations!$E$2=\"Orkney Health Board\",Calculations!$E$2=\"Orkney Islands Local Authority\"),$F177=1),0,IF(AND(OR(Calculations!$E$2=\"Shetland Health Board\",Calculations!$E$2=\"Western Isles Health Board\",Calculations!$E$2=\"Shetland Islands Local Authority\",Calculations!$E$2=\"Eilean Siar Local Authority\"),OR($F177=1,$F177=5)),0,prem_mort(VALUE(LEFT(Options!$B$24,2)),$C177,$E177,$F177,2016,$I177,1,$H177,$G177*$H177,Options!B8)))","v":3.3423290718000001},{"$f":"IF(AND(OR(Calculations!$E$2=\"Orkney Health Board\",Calculations!$E$2=\"Orkney Islands Local Authority\"),$F177=1),0,IF(AND(OR(Calculations!$E$2=\"Shetland Health Board\",Calculations!$E$2=\"Western Isles Health Board\",Calculations!$E$2=\"Shetland Islands Local Authority\",Calculations!$E$2=\"Eilean Siar Local Authority\"),OR($F177=1,$F177=5)),0,prem_mort(VALUE(LEFT(Options!$B$24,2)),$C177,$E177,$F177,2016,$I177+$J177,1,$H177,$G177*$H177,Options!B8)))","v":3.3280064087999999},14.278576007347914,14.217388964456594,892.83931490387897,889.01328929511294,8836.436529999999,8800.6991618959328,14.278576007347914,14.217388964456594,62825.734432330821,62556.511443609015,3928492.9855770674,3911658.4728984968,38880320.731999993,38723076.312342107,62825.734432330821,62556.511443609015,4400]
[null,"Female 20-24",22.077057,81.667060000000006,"female",4,{"$f":"HLOOKUP(Calculations!$E$2,'Prevalence Rates'!$C$3:$BC$249,'Prevalence Rates'!$BD178,FALSE)","v":0.16670894498790137},{"$f":"HLOOKUP(Calculations!$E$2,'Population 2016'!$C$3:$BC$249,'Population 2016'!BD178,FALSE)","v":34833},0,{"$f":"HLOOKUP(Results!E$4,Targeting!$C$3:$F$249,Targeting!$G178,FALSE)","v":2634},{"$f":"IF(AND(OR(Calculations!$E$2=\"Orkney Health Board\",Calculations!$E$2=\"Orkney Islands Local Authority\"),$F178=1),0,IF(AND(OR(Calculations!$E$2=\"Shetland Health Board\",Calculations!$E$2=\"Western Isles Health Board\",Calculations!$E$2=\"Shetland Islands Local Authority\",Calculations!$E$2=\"Eilean Siar Local Authority\"),OR($F178=1,$F178=5)),0,new_ci(VALUE(LEFT(Options!$B$24,2)),$C178,$E178,$F178,2016,$I178,1,$H178,$G178*$H178,Options!B8)))","v":7.2969860201000003},{"$f":"IF(AND(OR(Calculations!$E$2=\"Orkney Health Board\",Calculations!$E$2=\"Orkney Islands Local Authority\"),$F178=1),0,IF(AND(OR(Calculations!$E$2=\"Shetland Health Board\",Calculations!$E$2=\"Western Isles Health Board\",Calculations!$E$2=\"Shetland Islands Local Authority\",Calculations!$E$2=\"Eilean Siar Local Authority\"),OR($F178=1,$F178=5)),0,new_ci(VALUE(LEFT(Options!$B$24,2)),$C178,$E178,$F178,2016,$I178+$J178,1,$H178,$G178*$H178,Options!B8)))","v":7.2657172793000004},{"$f":"IF(AND(OR(Calculations!$E$2=\"Orkney Health Board\",Calculations!$E$2=\"Orkney Islands Local Authority\"),$F178=1),0,IF(AND(OR(Calculations!$E$2=\"Shetland Health Board\",Calculations!$E$2=\"Western Isles Health Board\",Calculations!$E$2=\"Shetland Islands Local Authority\",Calculations!$E$2=\"Eilean Siar Local Authority\"),OR($F178=1,$F178=5)),0,new_yllv2(VALUE(LEFT(Options!$B$24,2)),$C178,$D178,$E178,$F178,2016,$I178,1,$H178,$G178*$H178,Options!B8)))","v":427.53043280859998},{"$f":"IF(AND(OR(Calculations!$E$2=\"Orkney Health Board\",Calculations!$E$2=\"Orkney Islands Local Authority\"),$F178=1),0,IF(AND(OR(Calculations!$E$2=\"Shetland Health Board\",Calculations!$E$2=\"Western Isles Health Board\",Calculations!$E$2=\"Shetland Islands Local Authority\",Calculations!$E$2=\"Eilean Siar Local Authority\"),OR($F178=1,$F178=5)),0,new_yllv2(VALUE(LEFT(Options!$B$24,2)),$C178,$D178,$E178,$F178,2016,$I178+$J178,1,$H178,$G178*$H178,Options!B8)))","v":425.69839719129999},{"$f":"IF(AND(OR(Calculations!$E$2=\"Orkney Health Board\",Calculations!$E$2=\"Orkney Islands Local Authority\"),$F178=1),0,IF(AND(OR(Calculations!$E$2=\"Shetland Health Board\",Calculations!$E$2=\"Western Isles Health Board\",Calculations!$E$2=\"Shetland Islands Local Authority\",Calculations!$E$2=\"Eilean Siar Local Authority\"),OR($F178=1,$F178=5)),0,hosp_count(VALUE(LEFT(Options!$B$24,2)),$C178,$E178,$F178,2016,$I178,1,$H178,$G178*$H178, Options!B8)))","v":3447.4902269472},{"$f":"IF(AND(OR(Calculations!$E$2=\"Orkney Health Board\",Calculations!$E$2=\"Orkney Islands Local Authority\"),$F178=1),0,IF(AND(OR(Calculations!$E$2=\"Shetland Health Board\",Calculations!$E$2=\"Western Isles Health Board\",Calculations!$E$2=\"Shetland Islands Local Authority\",Calculations!$E$2=\"Eilean Siar Local Authority\"),OR($F178=1,$F178=5)),0,hosp_count(VALUE(LEFT(Options!$B$24,2)),$C178,$E178,$F178,2016,$I178+$J178,1,$H178,$G178*$H178, Options!B8)))","v":3433.5469652452998},{"$f":"IF(AND(OR(Calculations!$E$2=\"Orkney Health Board\",Calculations!$E$2=\"Orkney Islands Local Authority\"),$F178=1),0,IF(AND(OR(Calculations!$E$2=\"Shetland Health Board\",Calculations!$E$2=\"Western Isles Health Board\",Calculations!$E$2=\"Shetland Islands Local Authority\",Calculations!$E$2=\"Eilean Siar Local Authority\"),OR($F178=1,$F178=5)),0,prem_mort(VALUE(LEFT(Options!$B$24,2)),$C178,$E178,$F178,2016,$I178,1,$H178,$G178*$H178,Options!B8)))","v":7.2969860201000003},{"$f":"IF(AND(OR(Calculations!$E$2=\"Orkney Health Board\",Calculations!$E$2=\"Orkney Islands Local Authority\"),$F178=1),0,IF(AND(OR(Calculations!$E$2=\"Shetland Health Board\",Calculations!$E$2=\"Western Isles Health Board\",Calculations!$E$2=\"Shetland Islands Local Authority\",Calculations!$E$2=\"Eilean Siar Local Authority\"),OR($F178=1,$F178=5)),0,prem_mort(VALUE(LEFT(Options!$B$24,2)),$C178,$E178,$F178,2016,$I178+$J178,1,$H178,$G178*$H178,Options!B8)))","v":7.2657172793000004},20.94848568914535,20.858718110125459,1227.3718393724341,1222.1123566482934,9897.1958399999985,9857.1669544549713,20.94848568914535,20.858718110125459,125690.9141348721,125152.30866075275,7364231.0362346051,7332674.1398897599,59383175.039999992,59143001.726729825,125690.9141348721,125152.30866075275,6000]
[null,"Female 25-29",26.975186999999998,81.645189999999999,"female",4,{"$f":"HLOOKUP(Calculations!$E$2,'Prevalence Rates'!$C$3:$BC$249,'Prevalence Rates'!$BD179,FALSE)","v":0.12256152256677488},{"$f":"HLOOKUP(Calculations!$E$2,'Population 2016'!$C$3:$BC$249,'Population 2016'!BD179,FALSE)","v":33433},0,{"$f":"HLOOKUP(Results!E$4,Targeting!$C$3:$F$249,Targeting!$G179,FALSE)","v":2528},{"$f":"IF(AND(OR(Calculations!$E$2=\"Orkney Health Board\",Calculations!$E$2=\"Orkney Islands Local Authority\"),$F179=1),0,IF(AND(OR(Calculations!$E$2=\"Shetland Health Board\",Calculations!$E$2=\"Western Isles Health Board\",Calculations!$E$2=\"Shetland Islands Local Authority\",Calculations!$E$2=\"Eilean Siar Local Authority\"),OR($F179=1,$F179=5)),0,new_ci(VALUE(LEFT(Options!$B$24,2)),$C179,$E179,$F179,2016,$I179,1,$H179,$G179*$H179,Options!B8)))","v":10.622690222499999},{"$f":"IF(AND(OR(Calculations!$E$2=\"Orkney Health Board\",Calculations!$E$2=\"Orkney Islands Local Authority\"),$F179=1),0,IF(AND(OR(Calculations!$E$2=\"Shetland Health Board\",Calculations!$E$2=\"Western Isles Health Board\",Calculations!$E$2=\"Shetland Islands Local Authority\",Calculations!$E$2=\"Eilean Siar Local Authority\"),OR($F179=1,$F179=5)),0,new_ci(VALUE(LEFT(Options!$B$24,2)),$C179,$E179,$F179,2016,$I179+$J179,1,$H179,$G179*$H179,Options!B8)))","v":10.576320382500001},{"$f":"IF(AND(OR(Calculations!$E$2=\"Orkney Health Board\",Calculations!$E$2=\"Orkney Islands Local Authority\"),$F179=1),0,IF(AND(OR(Calculations!$E$2=\"Shetland Health Board\",Calculations!$E$2=\"Western Isles Health Board\",Calculations!$E$2=\"Shetland Islands Local Authority\",Calculations!$E$2=\"Eilean Siar Local Authority\"),OR($F179=1,$F179=5)),0,new_yllv2(VALUE(LEFT(Options!$B$24,2)),$C179,$D179,$E179,$F179,2016,$I179,1,$H179,$G179*$H179,Options!B8)))","v":570.11981610960004},{"$f":"IF(AND(OR(Calculations!$E$2=\"Orkney Health Board\",Calculations!$E$2=\"Orkney Islands Local Authority\"),$F179=1),0,IF(AND(OR(Calculations!$E$2=\"Shetland Health Board\",Calculations!$E$2=\"Western Isles Health Board\",Calculations!$E$2=\"Shetland Islands Local Authority\",Calculations!$E$2=\"Eilean Siar Local Authority\"),OR($F179=1,$F179=5)),0,new_yllv2(VALUE(LEFT(Options!$B$24,2)),$C179,$D179,$E179,$F179,2016,$I179+$J179,1,$H179,$G179*$H179,Options!B8)))","v":567.63114665770001},{"$f":"IF(AND(OR(Calculations!$E$2=\"Orkney Health Board\",Calculations!$E$2=\"Orkney Islands Local Authority\"),$F179=1),0,IF(AND(OR(Calculations!$E$2=\"Shetland Health Board\",Calculations!$E$2=\"Western Isles Health Board\",Calculations!$E$2=\"Shetland Islands Local Authority\",Calculations!$E$2=\"Eilean Siar Local Authority\"),OR($F179=1,$F179=5)),0,hosp_count(VALUE(LEFT(Options!$B$24,2)),$C179,$E179,$F179,2016,$I179,1,$H179,$G179*$H179, Options!B8)))","v":3742.7879046867001},{"$f":"IF(AND(OR(Calculations!$E$2=\"Orkney Health Board\",Calculations!$E$2=\"Orkney Islands Local Authority\"),$F179=1),0,IF(AND(OR(Calculations!$E$2=\"Shetland Health Board\",Calculations!$E$2=\"Western Isles Health Board\",Calculations!$E$2=\"Shetland Islands Local Authority\",Calculations!$E$2=\"Eilean Siar Local Authority\"),OR($F179=1,$F179=5)),0,hosp_count(VALUE(LEFT(Options!$B$24,2)),$C179,$E179,$F179,2016,$I179+$J179,1,$H179,$G179*$H179, Options!B8)))","v":3727.5981876323999},{"$f":"IF(AND(OR(Calculations!$E$2=\"Orkney Health Board\",Calculations!$E$2=\"Orkney Islands Local Authority\"),$F179=1),0,IF(AND(OR(Calculations!$E$2=\"Shetland Health Board\",Calculations!$E$2=\"Western Isles Health Board\",Calculations!$E$2=\"Shetland Islands Local Authority\",Calculations!$E$2=\"Eilean Siar Local Authority\"),OR($F179=1,$F179=5)),0,prem_mort(VALUE(LEFT(Options!$B$24,2)),$C179,$E179,$F179,2016,$I179,1,$H179,$G179*$H179,Options!B8)))","v":10.622690222499999},{"$f":"IF(AND(OR(Calculations!$E$2=\"Orkney Health Board\",Calculations!$E$2=\"Orkney Islands Local Authority\"),$F179=1),0,IF(AND(OR(Calculations!$E$2=\"Shetland Health Board\",Calculations!$E$2=\"Western Isles Health Board\",Calculations!$E$2=\"Shetland Islands Local Authority\",Calculations!$E$2=\"Eilean Siar Local Authority\"),OR($F179=1,$F179=5)),0,prem_mort(VALUE(LEFT(Options!$B$24,2)),$C179,$E179,$F179,2016,$I179+$J179,1,$H179,$G179*$H179,Options!B8)))","v":10.576320382500001},31.773069190620042,31.634374368139262,1705.2607187796491,1697.8169672410493,11194.89099,11149.45768442078,31.773069190620042,31.634374368139262,190638.41514372025,189806.24620883557,10231564.312677894,10186901.803446295,67169345.939999998,66896746.106524684,190638.41514372025,189806.24620883557,6000]
[null,"Female 30-34",31.999904999999998,81.799899999999994,"female",4,{"$f":"HLOOKUP(Calculations!$E$2,'Prevalence Rates'!$C$3:$BC$249,'Prevalence Rates'!$BD180,FALSE)","v":0.12256152256677488},{"$f":"HLOOKUP(Calculations!$E$2,'Population 2016'!$C$3:$BC$249,'Population 2016'!BD180,FALSE)","v":33838},0,{"$f":"HLOOKUP(Results!E$4,Targeting!$C$3:$F$249,Targeting!$G180,FALSE)","v":2558},{"$f":"IF(AND(OR(Calculations!$E$2=\"Orkney Health Board\",Calculations!$E$2=\"Orkney Islands Local Authority\"),$F180=1),0,IF(AND(OR(Calculations!$E$2=\"Shetland Health Board\",Calculations!$E$2=\"Western Isles Health Board\",Calculations!$E$2=\"Shetland Islands Local Authority\",Calculations!$E$2=\"Eilean Siar Local Authority\"),OR($F180=1,$F180=5)),0,new_ci(VALUE(LEFT(Options!$B$24,2)),$C180,$E180,$F180,2016,$I180,1,$H180,$G180*$H180,Options!B8)))","v":16.4828530775},{"$f":"IF(AND(OR(Calculations!$E$2=\"Orkney Health Board\",Calculations!$E$2=\"Orkney Islands Local Authority\"),$F180=1),0,IF(AND(OR(Calculations!$E$2=\"Shetland Health Board\",Calculations!$E$2=\"Western Isles Health Board\",Calculations!$E$2=\"Shetland Islands Local Authority\",Calculations!$E$2=\"Eilean Siar Local Authority\"),OR($F180=1,$F180=5)),0,new_ci(VALUE(LEFT(Options!$B$24,2)),$C180,$E180,$F180,2016,$I180+$J180,1,$H180,$G180*$H180,Options!B8)))","v":16.410930303099999},{"$f":"IF(AND(OR(Calculations!$E$2=\"Orkney Health Board\",Calculations!$E$2=\"Orkney Islands Local Authority\"),$F180=1),0,IF(AND(OR(Calculations!$E$2=\"Shetland Health Board\",Calculations!$E$2=\"Western Isles Health Board\",Calculations!$E$2=\"Shetland Islands Local Authority\",Calculations!$E$2=\"Eilean Siar Local Authority\"),OR($F180=1,$F180=5)),0,new_yllv2(VALUE(LEFT(Options!$B$24,2)),$C180,$D180,$E180,$F180,2016,$I180,1,$H180,$G180*$H180,Options!B8)))","v":804.36314776769996},{"$f":"IF(AND(OR(Calculations!$E$2=\"Orkney Health Board\",Calculations!$E$2=\"Orkney Islands Local Authority\"),$F180=1),0,IF(AND(OR(Calculations!$E$2=\"Shetland Health Board\",Calculations!$E$2=\"Western Isles Health Board\",Calculations!$E$2=\"Shetland Islands Local Authority\",Calculations!$E$2=\"Eilean Siar Local Authority\"),OR($F180=1,$F180=5)),0,new_yllv2(VALUE(LEFT(Options!$B$24,2)),$C180,$D180,$E180,$F180,2016,$I180+$J180,1,$H180,$G180*$H180,Options!B8)))","v":800.85331673660005},{"$f":"IF(AND(OR(Calculations!$E$2=\"Orkney Health Board\",Calculations!$E$2=\"Orkney Islands Local Authority\"),$F180=1),0,IF(AND(OR(Calculations!$E$2=\"Shetland Health Board\",Calculations!$E$2=\"Western Isles Health Board\",Calculations!$E$2=\"Shetland Islands Local Authority\",Calculations!$E$2=\"Eilean Siar Local Authority\"),OR($F180=1,$F180=5)),0,hosp_count(VALUE(LEFT(Options!$B$24,2)),$C180,$E180,$F180,2016,$I180,1,$H180,$G180*$H180, Options!B8)))","v":4298.4820839800004},{"$f":"IF(AND(OR(Calculations!$E$2=\"Orkney Health Board\",Calculations!$E$2=\"Orkney Islands Local Authority\"),$F180=1),0,IF(AND(OR(Calculations!$E$2=\"Shetland Health Board\",Calculations!$E$2=\"Western Isles Health Board\",Calculations!$E$2=\"Shetland Islands Local Authority\",Calculations!$E$2=\"Eilean Siar Local Authority\"),OR($F180=1,$F180=5)),0,hosp_count(VALUE(LEFT(Options!$B$24,2)),$C180,$E180,$F180,2016,$I180+$J180,1,$H180,$G180*$H180, Options!B8)))","v":4281.0413917627002},{"$f":"IF(AND(OR(Calculations!$E$2=\"Orkney Health Board\",Calculations!$E$2=\"Orkney Islands Local Authority\"),$F180=1),0,IF(AND(OR(Calculations!$E$2=\"Shetland Health Board\",Calculations!$E$2=\"Western Isles Health Board\",Calculations!$E$2=\"Shetland Islands Local Authority\",Calculations!$E$2=\"Eilean Siar Local Authority\"),OR($F180=1,$F180=5)),0,prem_mort(VALUE(LEFT(Options!$B$24,2)),$C180,$E180,$F180,2016,$I180,1,$H180,$G180*$H180,Options!B8)))","v":16.4828530775},{"$f":"IF(AND(OR(Calculations!$E$2=\"Orkney Health Board\",Calculations!$E$2=\"Orkney Islands Local Authority\"),$F180=1),0,IF(AND(OR(Calculations!$E$2=\"Shetland Health Board\",Calculations!$E$2=\"Western Isles Health Board\",Calculations!$E$2=\"Shetland Islands Local Authority\",Calculations!$E$2=\"Eilean Siar Local Authority\"),OR($F180=1,$F180=5)),0,prem_mort(VALUE(LEFT(Options!$B$24,2)),$C180,$E180,$F180,2016,$I180+$J180,1,$H180,$G180*$H180,Options!B8)))","v":16.410930303099999},48.711073578521187,48.498523267037051,2377.1001470763636,2366.7276929387081,12703.121000000001,12651.579265212778,48.711073578521187,48.498523267037051,316621.97826038772,315240.40123574081,15451150.955996362,15383730.004101602,82570286.5,82235265.223883063,316621.97826038772,315240.40123574081,6500]
[null,"Female 35-39",36.918118,81.898120000000006,"female",4,{"$f":"HLOOKUP(Calculations!$E$2,'Prevalence Rates'!$C$3:$BC$249,'Prevalence Rates'!$BD181,FALSE)","v":0.18911466658538528},{"$f":"HLOOKUP(Calculations!$E$2,'Population 2016'!$C$3:$BC$249,'Population 2016'!BD181,FALSE)","v":32800},0,{"$f":"HLOOKUP(Results!E$4,Targeting!$C$3:$F$249,Targeting!$G181,FALSE)","v":2480},{"$f":"IF(AND(OR(Calculations!$E$2=\"Orkney Health Board\",Calculations!$E$2=\"Orkney Islands Local Authority\"),$F181=1),0,IF(AND(OR(Calculations!$E$2=\"Shetland Health Board\",Calculations!$E$2=\"Western Isles Health Board\",Calculations!$E$2=\"Shetland Islands Local Authority\",Calculations!$E$2=\"Eilean Siar Local Authority\"),OR($F181=1,$F181=5)),0,new_ci(VALUE(LEFT(Options!$B$24,2)),$C181,$E181,$F181,2016,$I181,1,$H181,$G181*$H181,Options!B8)))","v":24.272610951099999},{"$f":"IF(AND(OR(Calculations!$E$2=\"Orkney Health Board\",Calculations!$E$2=\"Orkney Islands Local Authority\"),$F181=1),0,IF(AND(OR(Calculations!$E$2=\"Shetland Health Board\",Calculations!$E$2=\"Western Isles Health Board\",Calculations!$E$2=\"Shetland Islands Local Authority\",Calculations!$E$2=\"Eilean Siar Local Authority\"),OR($F181=1,$F181=5)),0,new_ci(VALUE(LEFT(Options!$B$24,2)),$C181,$E181,$F181,2016,$I181+$J181,1,$H181,$G181*$H181,Options!B8)))","v":24.169620023099998},{"$f":"IF(AND(OR(Calculations!$E$2=\"Orkney Health Board\",Calculations!$E$2=\"Orkney Islands Local Authority\"),$F181=1),0,IF(AND(OR(Calculations!$E$2=\"Shetland Health Board\",Calculations!$E$2=\"Western Isles Health Board\",Calculations!$E$2=\"Shetland Islands Local Authority\",Calculations!$E$2=\"Eilean Siar Local Authority\"),OR($F181=1,$F181=5)),0,new_yllv2(VALUE(LEFT(Options!$B$24,2)),$C181,$D181,$E181,$F181,2016,$I181,1,$H181,$G181*$H181,Options!B8)))","v":1067.5094781746},{"$f":"IF(AND(OR(Calculations!$E$2=\"Orkney Health Board\",Calculations!$E$2=\"Orkney Islands Local Authority\"),$F181=1),0,IF(AND(OR(Calculations!$E$2=\"Shetland Health Board\",Calculations!$E$2=\"Western Isles Health Board\",Calculations!$E$2=\"Shetland Islands Local Authority\",Calculations!$E$2=\"Eilean Siar Local Authority\"),OR($F181=1,$F181=5)),0,new_yllv2(VALUE(LEFT(Options!$B$24,2)),$C181,$D181,$E181,$F181,2016,$I181+$J181,1,$H181,$G181*$H181,Options!B8)))","v":1062.9799369551999},{"$f":"IF(AND(OR(Calculations!$E$2=\"Orkney Health Board\",Calculations!$E$2=\"Orkney Islands Local Authority\"),$F181=1),0,IF(AND(OR(Calculations!$E$2=\"Shetland Health Board\",Calculations!$E$2=\"Western Isles Health Board\",Calculations!$E$2=\"Shetland Islands Local Authority\",Calculations!$E$2=\"Eilean Siar Local Authority\"),OR($F181=1,$F181=5)),0,hosp_count(VALUE(LEFT(Options!$B$24,2)),$C181,$E181,$F181,2016,$I181,1,$H181,$G181*$H181, Options!B8)))","v":4715.32218784},{"$f":"IF(AND(OR(Calculations!$E$2=\"Orkney Health Board\",Calculations!$E$2=\"Orkney Islands Local Authority\"),$F181=1),0,IF(AND(OR(Calculations!$E$2=\"Shetland Health Board\",Calculations!$E$2=\"Western Isles Health Board\",Calculations!$E$2=\"Shetland Islands Local Authority\",Calculations!$E$2=\"Eilean Siar Local Authority\"),OR($F181=1,$F181=5)),0,hosp_count(VALUE(LEFT(Options!$B$24,2)),$C181,$E181,$F181,2016,$I181+$J181,1,$H181,$G181*$H181, Options!B8)))","v":4696.2869579685002},{"$f":"IF(AND(OR(Calculations!$E$2=\"Orkney Health Board\",Calculations!$E$2=\"Orkney Islands Local Authority\"),$F181=1),0,IF(AND(OR(Calculations!$E$2=\"Shetland Health Board\",Calculations!$E$2=\"Western Isles Health Board\",Calculations!$E$2=\"Shetland Islands Local Authority\",Calculations!$E$2=\"Eilean Siar Local Authority\"),OR($F181=1,$F181=5)),0,prem_mort(VALUE(LEFT(Options!$B$24,2)),$C181,$E181,$F181,2016,$I181,1,$H181,$G181*$H181,Options!B8)))","v":24.272610951099999},{"$f":"IF(AND(OR(Calculations!$E$2=\"Orkney Health Board\",Calculations!$E$2=\"Orkney Islands Local Authority\"),$F181=1),0,IF(AND(OR(Calculations!$E$2=\"Shetland Health Board\",Calculations!$E$2=\"Western Isles Health Board\",Calculations!$E$2=\"Shetland Islands Local Authority\",Calculations!$E$2=\"Eilean Siar Local Authority\"),OR($F181=1,$F181=5)),0,prem_mort(VALUE(LEFT(Options!$B$24,2)),$C181,$E181,$F181,2016,$I181+$J181,1,$H181,$G181*$H181,Options!B8)))","v":24.169620023099998},74.001862655792692,73.687865924085358,3254.6020676054877,3240.7924907170732,14375.98228,14317.948042586891,74.001862655792692,73.687865924085358,518013.03859054885,515815.0614685975,22782214.473238412,22685547.435019512,100631875.96000001,100225636.29810824,518013.03859054885,515815.0614685975,7000]
[null,"Female 40-44",42.077438000000001,82.30744,"female",4,{"$f":"HLOOKUP(Calculations!$E$2,'Prevalence Rates'!$C$3:$BC$249,'Prevalence Rates'!$BD182,FALSE)","v":0.18911466658538528},{"$f":"HLOOKUP(Calculations!$E$2,'Population 2016'!$C$3:$BC$249,'Population 2016'!BD182,FALSE)","v":35805},0,{"$f":"HLOOKUP(Results!E$4,Targeting!$C$3:$F$249,Targeting!$G182,FALSE)","v":2707},{"$f":"IF(AND(OR(Calculations!$E$2=\"Orkney Health Board\",Calculations!$E$2=\"Orkney Islands Local Authority\"),$F182=1),0,IF(AND(OR(Calculations!$E$2=\"Shetland Health Board\",Calculations!$E$2=\"Western Isles Health Board\",Calculations!$E$2=\"Shetland Islands Local Authority\",Calculations!$E$2=\"Eilean Siar Local Authority\"),OR($F182=1,$F182=5)),0,new_ci(VALUE(LEFT(Options!$B$24,2)),$C182,$E182,$F182,2016,$I182,1,$H182,$G182*$H182,Options!B8)))","v":41.084086725299997},{"$f":"IF(AND(OR(Calculations!$E$2=\"Orkney Health Board\",Calculations!$E$2=\"Orkney Islands Local Authority\"),$F182=1),0,IF(AND(OR(Calculations!$E$2=\"Shetland Health Board\",Calculations!$E$2=\"Western Isles Health Board\",Calculations!$E$2=\"Shetland Islands Local Authority\",Calculations!$E$2=\"Eilean Siar Local Authority\"),OR($F182=1,$F182=5)),0,new_ci(VALUE(LEFT(Options!$B$24,2)),$C182,$E182,$F182,2016,$I182+$J182,1,$H182,$G182*$H182,Options!B8)))","v":40.909833074799998},{"$f":"IF(AND(OR(Calculations!$E$2=\"Orkney Health Board\",Calculations!$E$2=\"Orkney Islands Local Authority\"),$F182=1),0,IF(AND(OR(Calculations!$E$2=\"Shetland Health Board\",Calculations!$E$2=\"Western Isles Health Board\",Calculations!$E$2=\"Shetland Islands Local Authority\",Calculations!$E$2=\"Eilean Siar Local Authority\"),OR($F182=1,$F182=5)),0,new_yllv2(VALUE(LEFT(Options!$B$24,2)),$C182,$D182,$E182,$F182,2016,$I182,1,$H182,$G182*$H182,Options!B8)))","v":1611.7288044017},{"$f":"IF(AND(OR(Calculations!$E$2=\"Orkney Health Board\",Calculations!$E$2=\"Orkney Islands Local Authority\"),$F182=1),0,IF(AND(OR(Calculations!$E$2=\"Shetland Health Board\",Calculations!$E$2=\"Western Isles Health Board\",Calculations!$E$2=\"Shetland Islands Local Authority\",Calculations!$E$2=\"Eilean Siar Local Authority\"),OR($F182=1,$F182=5)),0,new_yllv2(VALUE(LEFT(Options!$B$24,2)),$C182,$D182,$E182,$F182,2016,$I182+$J182,1,$H182,$G182*$H182,Options!B8)))","v":1604.8928333440999},{"$f":"IF(AND(OR(Calculations!$E$2=\"Orkney Health Board\",Calculations!$E$2=\"Orkney Islands Local Authority\"),$F182=1),0,IF(AND(OR(Calculations!$E$2=\"Shetland Health Board\",Calculations!$E$2=\"Western Isles Health Board\",Calculations!$E$2=\"Shetland Islands Local Authority\",Calculations!$E$2=\"Eilean Siar Local Authority\"),OR($F182=1,$F182=5)),0,hosp_count(VALUE(LEFT(Options!$B$24,2)),$C182,$E182,$F182,2016,$I182,1,$H182,$G182*$H182, Options!B8)))","v":5860.6013343570003},{"$f":"IF(AND(OR(Calculations!$E$2=\"Orkney Health Board\",Calculations!$E$2=\"Orkney Islands Local Authority\"),$F182=1),0,IF(AND(OR(Calculations!$E$2=\"Shetland Health Board\",Calculations!$E$2=\"Western Isles Health Board\",Calculations!$E$2=\"Shetland Islands Local Authority\",Calculations!$E$2=\"Eilean Siar Local Authority\"),OR($F182=1,$F182=5)),0,hosp_count(VALUE(LEFT(Options!$B$24,2)),$C182,$E182,$F182,2016,$I182+$J182,1,$H182,$G182*$H182, Options!B8)))","v":5836.9445520295003},{"$f":"IF(AND(OR(Calculations!$E$2=\"Orkney Health Board\",Calculations!$E$2=\"Orkney Islands Local Authority\"),$F182=1),0,IF(AND(OR(Calculations!$E$2=\"Shetland Health Board\",Calculations!$E$2=\"Western Isles Health Board\",Calculations!$E$2=\"Shetland Islands Local Authority\",Calculations!$E$2=\"Eilean Siar Local Authority\"),OR($F182=1,$F182=5)),0,prem_mort(VALUE(LEFT(Options!$B$24,2)),$C182,$E182,$F182,2016,$I182,1,$H182,$G182*$H182,Options!B8)))","v":41.084086725299997},{"$f":"IF(AND(OR(Calculations!$E$2=\"Orkney Health Board\",Calculations!$E$2=\"Orkney Islands Local Authority\"),$F182=1),0,IF(AND(OR(Calculations!$E$2=\"Shetland Health Board\",Calculations!$E$2=\"Western Isles Health Board\",Calculations!$E$2=\"Shetland Islands Local Authority\",Calculations!$E$2=\"Eilean Siar Local Authority\"),OR($F182=1,$F182=5)),0,prem_mort(VALUE(LEFT(Options!$B$24,2)),$C182,$E182,$F182,2016,$I182+$J182,1,$H182,$G182*$H182,Options!B8)))","v":40.909833074799998},114.74399308839547,114.2573190191314,4501.4070783457619,4482.3148536352455,16368.108740000001,16302.037570254155,114.74399308839547,114.2573190191314,803207.95161876827,799801.23313391977,31509849.548420332,31376203.97544672,114576761.18000001,114114262.99177909,803207.95161876827,799801.23313391977,7000]
[null,"Female 45-49",47.025772000000003,82.585769999999997,"female",4,{"$f":"HLOOKUP(Calculations!$E$2,'Prevalence Rates'!$C$3:$BC$249,'Prevalence Rates'!$BD183,FALSE)","v":0.24181206029615268},{"$f":"HLOOKUP(Calculations!$E$2,'Population 2016'!$C$3:$BC$249,'Population 2016'!BD183,FALSE)","v":42189},0,{"$f":"HLOOKUP(Results!E$4,Targeting!$C$3:$F$249,Targeting!$G183,FALSE)","v":3190},{"$f":"IF(AND(OR(Calculations!$E$2=\"Orkney Health Board\",Calculations!$E$2=\"Orkney Islands Local Authority\"),$F183=1),0,IF(AND(OR(Calculations!$E$2=\"Shetland Health Board\",Calculations!$E$2=\"Western Isles Health Board\",Calculations!$E$2=\"Shetland Islands Local Authority\",Calculations!$E$2=\"Eilean Siar Local Authority\"),OR($F183=1,$F183=5)),0,new_ci(VALUE(LEFT(Options!$B$24,2)),$C183,$E183,$F183,2016,$I183,1,$H183,$G183*$H183,Options!B8)))","v":73.718847121600007},{"$f":"IF(AND(OR(Calculations!$E$2=\"Orkney Health Board\",Calculations!$E$2=\"Orkney Islands Local Authority\"),$F183=1),0,IF(AND(OR(Calculations!$E$2=\"Shetland Health Board\",Calculations!$E$2=\"Western Isles Health Board\",Calculations!$E$2=\"Shetland Islands Local Authority\",Calculations!$E$2=\"Eilean Siar Local Authority\"),OR($F183=1,$F183=5)),0,new_ci(VALUE(LEFT(Options!$B$24,2)),$C183,$E183,$F183,2016,$I183+$J183,1,$H183,$G183*$H183,Options!B8)))","v":73.412960892599997},{"$f":"IF(AND(OR(Calculations!$E$2=\"Orkney Health Board\",Calculations!$E$2=\"Orkney Islands Local Authority\"),$F183=1),0,IF(AND(OR(Calculations!$E$2=\"Shetland Health Board\",Calculations!$E$2=\"Western Isles Health Board\",Calculations!$E$2=\"Shetland Islands Local Authority\",Calculations!$E$2=\"Eilean Siar Local Authority\"),OR($F183=1,$F183=5)),0,new_yllv2(VALUE(LEFT(Options!$B$24,2)),$C183,$D183,$E183,$F183,2016,$I183,1,$H183,$G183*$H183,Options!B8)))","v":2547.7232090848001},{"$f":"IF(AND(OR(Calculations!$E$2=\"Orkney Health Board\",Calculations!$E$2=\"Orkney Islands Local Authority\"),$F183=1),0,IF(AND(OR(Calculations!$E$2=\"Shetland Health Board\",Calculations!$E$2=\"Western Isles Health Board\",Calculations!$E$2=\"Shetland Islands Local Authority\",Calculations!$E$2=\"Eilean Siar Local Authority\"),OR($F183=1,$F183=5)),0,new_yllv2(VALUE(LEFT(Options!$B$24,2)),$C183,$D183,$E183,$F183,2016,$I183+$J183,1,$H183,$G183*$H183,Options!B8)))","v":2537.1517816222999},{"$f":"IF(AND(OR(Calculations!$E$2=\"Orkney Health Board\",Calculations!$E$2=\"Orkney Islands Local Authority\"),$F183=1),0,IF(AND(OR(Calculations!$E$2=\"Shetland Health Board\",Calculations!$E$2=\"Western Isles Health Board\",Calculations!$E$2=\"Shetland Islands Local Authority\",Calculations!$E$2=\"Eilean Siar Local Authority\"),OR($F183=1,$F183=5)),0,hosp_count(VALUE(LEFT(Options!$B$24,2)),$C183,$E183,$F183,2016,$I183,1,$H183,$G183*$H183, Options!B8)))","v":7820.8484750382004},{"$f":"IF(AND(OR(Calculations!$E$2=\"Orkney Health Board\",Calculations!$E$2=\"Orkney Islands Local Authority\"),$F183=1),0,IF(AND(OR(Calculations!$E$2=\"Shetland Health Board\",Calculations!$E$2=\"Western Isles Health Board\",Calculations!$E$2=\"Shetland Islands Local Authority\",Calculations!$E$2=\"Eilean Siar Local Authority\"),OR($F183=1,$F183=5)),0,hosp_count(VALUE(LEFT(Options!$B$24,2)),$C183,$E183,$F183,2016,$I183+$J183,1,$H183,$G183*$H183, Options!B8)))","v":7789.4061706197999},{"$f":"IF(AND(OR(Calculations!$E$2=\"Orkney Health Board\",Calculations!$E$2=\"Orkney Islands Local Authority\"),$F183=1),0,IF(AND(OR(Calculations!$E$2=\"Shetland Health Board\",Calculations!$E$2=\"Western Isles Health Board\",Calculations!$E$2=\"Shetland Islands Local Authority\",Calculations!$E$2=\"Eilean Siar Local Authority\"),OR($F183=1,$F183=5)),0,prem_mort(VALUE(LEFT(Options!$B$24,2)),$C183,$E183,$F183,2016,$I183,1,$H183,$G183*$H183,Options!B8)))","v":73.718847121600007},{"$f":"IF(AND(OR(Calculations!$E$2=\"Orkney Health Board\",Calculations!$E$2=\"Orkney Islands Local Authority\"),$F183=1),0,IF(AND(OR(Calculations!$E$2=\"Shetland Health Board\",Calculations!$E$2=\"Western Isles Health Board\",Calculations!$E$2=\"Shetland Islands Local Authority\",Calculations!$E$2=\"Eilean Siar Local Authority\"),OR($F183=1,$F183=5)),0,prem_mort(VALUE(LEFT(Options!$B$24,2)),$C183,$E183,$F183,2016,$I183+$J183,1,$H183,$G183*$H183,Options!B8)))","v":73.412960892599997},174.73475816350233,174.00972028870083,6038.8328926611202,6013.7755851579795,18537.648380000002,18463.121123088484,174.73475816350233,174.00972028870083,1223143.3071445164,1218068.0420209058,42271830.248627841,42096429.096105859,129763538.66000001,129241847.86161938,1223143.3071445164,1218068.0420209058,7000]
[null,"Female 50-54",51.990825999999998,82.980829999999997,"female",4,{"$f":"HLOOKUP(Calculations!$E$2,'Prevalence Rates'!$C$3:$BC$249,'Prevalence Rates'!$BD184,FALSE)","v":0.24181206029615268},{"$f":"HLOOKUP(Calculations!$E$2,'Population 2016'!$C$3:$BC$249,'Population 2016'!BD184,FALSE)","v":44075},0,{"$f":"HLOOKUP(Results!E$4,Targeting!$C$3:$F$249,Targeting!$G184,FALSE)","v":3332},{"$f":"IF(AND(OR(Calculations!$E$2=\"Orkney Health Board\",Calculations!$E$2=\"Orkney Islands Local Authority\"),$F184=1),0,IF(AND(OR(Calculations!$E$2=\"Shetland Health Board\",Calculations!$E$2=\"Western Isles Health Board\",Calculations!$E$2=\"Shetland Islands Local Authority\",Calculations!$E$2=\"Eilean Siar Local Authority\"),OR($F184=1,$F184=5)),0,new_ci(VALUE(LEFT(Options!$B$24,2)),$C184,$E184,$F184,2016,$I184,1,$H184,$G184*$H184,Options!B8)))","v":117.4271237494},{"$f":"IF(AND(OR(Calculations!$E$2=\"Orkney Health Board\",Calculations!$E$2=\"Orkney Islands Local Authority\"),$F184=1),0,IF(AND(OR(Calculations!$E$2=\"Shetland Health Board\",Calculations!$E$2=\"Western Isles Health Board\",Calculations!$E$2=\"Shetland Islands Local Authority\",Calculations!$E$2=\"Eilean Siar Local Authority\"),OR($F184=1,$F184=5)),0,new_ci(VALUE(LEFT(Options!$B$24,2)),$C184,$E184,$F184,2016,$I184+$J184,1,$H184,$G184*$H184,Options!B8)))","v":116.9403068874},{"$f":"IF(AND(OR(Calculations!$E$2=\"Orkney Health Board\",Calculations!$E$2=\"Orkney Islands Local Authority\"),$F184=1),0,IF(AND(OR(Calculations!$E$2=\"Shetland Health Board\",Calculations!$E$2=\"Western Isles Health Board\",Calculations!$E$2=\"Shetland Islands Local Authority\",Calculations!$E$2=\"Eilean Siar Local Authority\"),OR($F184=1,$F184=5)),0,new_yllv2(VALUE(LEFT(Options!$B$24,2)),$C184,$D184,$E184,$F184,2016,$I184,1,$H184,$G184*$H184,Options!B8)))","v":3521.6399109529998},{"$f":"IF(AND(OR(Calculations!$E$2=\"Orkney Health Board\",Calculations!$E$2=\"Orkney Islands Local Authority\"),$F184=1),0,IF(AND(OR(Calculations!$E$2=\"Shetland Health Board\",Calculations!$E$2=\"Western Isles Health Board\",Calculations!$E$2=\"Shetland Islands Local Authority\",Calculations!$E$2=\"Eilean Siar Local Authority\"),OR($F184=1,$F184=5)),0,new_yllv2(VALUE(LEFT(Options!$B$24,2)),$C184,$D184,$E184,$F184,2016,$I184+$J184,1,$H184,$G184*$H184,Options!B8)))","v":3507.0402713143999},{"$f":"IF(AND(OR(Calculations!$E$2=\"Orkney Health Board\",Calculations!$E$2=\"Orkney Islands Local Authority\"),$F184=1),0,IF(AND(OR(Calculations!$E$2=\"Shetland Health Board\",Calculations!$E$2=\"Western Isles Health Board\",Calculations!$E$2=\"Shetland Islands Local Authority\",Calculations!$E$2=\"Eilean Siar Local Authority\"),OR($F184=1,$F184=5)),0,hosp_count(VALUE(LEFT(Options!$B$24,2)),$C184,$E184,$F184,2016,$I184,1,$H184,$G184*$H184, Options!B8)))","v":9257.3301240100009},{"$f":"IF(AND(OR(Calculations!$E$2=\"Orkney Health Board\",Calculations!$E$2=\"Orkney Islands Local Authority\"),$F184=1),0,IF(AND(OR(Calculations!$E$2=\"Shetland Health Board\",Calculations!$E$2=\"Western Isles Health Board\",Calculations!$E$2=\"Shetland Islands Local Authority\",Calculations!$E$2=\"Eilean Siar Local Authority\"),OR($F184=1,$F184=5)),0,hosp_count(VALUE(LEFT(Options!$B$24,2)),$C184,$E184,$F184,2016,$I184+$J184,1,$H184,$G184*$H184, Options!B8)))","v":9220.1194558312},{"$f":"IF(AND(OR(Calculations!$E$2=\"Orkney Health Board\",Calculations!$E$2=\"Orkney Islands Local Authority\"),$F184=1),0,IF(AND(OR(Calculations!$E$2=\"Shetland Health Board\",Calculations!$E$2=\"Western Isles Health Board\",Calculations!$E$2=\"Shetland Islands Local Authority\",Calculations!$E$2=\"Eilean Siar Local Authority\"),OR($F184=1,$F184=5)),0,prem_mort(VALUE(LEFT(Options!$B$24,2)),$C184,$E184,$F184,2016,$I184,1,$H184,$G184*$H184,Options!B8)))","v":117.4271237494},{"$f":"IF(AND(OR(Calculations!$E$2=\"Orkney Health Board\",Calculations!$E$2=\"Orkney Islands Local Authority\"),$F184=1),0,IF(AND(OR(Calculations!$E$2=\"Shetland Health Board\",Calculations!$E$2=\"Western Isles Health Board\",Calculations!$E$2=\"Shetland Islands Local Authority\",Calculations!$E$2=\"Eilean Siar Local Authority\"),OR($F184=1,$F184=5)),0,prem_mort(VALUE(LEFT(Options!$B$24,2)),$C184,$E184,$F184,2016,$I184+$J184,1,$H184,$G184*$H184,Options!B8)))","v":116.9403068874},266.42569200090753,265.32117274509358,7990.1075688099818,7956.9830319101529,21003.585080000004,20919.159287195009,266.42569200090753,265.32117274509358,1864979.8440063528,1857248.209215655,55930752.981669873,55698881.223371074,147025095.56000003,146434115.01036507,1864979.8440063528,1857248.209215655,7000]
[null,"Female 55-59",56.953040999999999,83.473039999999997,"female",4,{"$f":"HLOOKUP(Calculations!$E$2,'Prevalence Rates'!$C$3:$BC$249,'Prevalence Rates'!$BD185,FALSE)","v":0.26945256038640319},{"$f":"HLOOKUP(Calculations!$E$2,'Population 2016'!$C$3:$BC$249,'Population 2016'!BD185,FALSE)","v":39814},0,{"$f":"HLOOKUP(Results!E$4,Targeting!$C$3:$F$249,Targeting!$G185,FALSE)","v":3010},{"$f":"IF(AND(OR(Calculations!$E$2=\"Orkney Health Board\",Calculations!$E$2=\"Orkney Islands Local Authority\"),$F185=1),0,IF(AND(OR(Calculations!$E$2=\"Shetland Health Board\",Calculations!$E$2=\"Western Isles Health Board\",Calculations!$E$2=\"Shetland Islands Local Authority\",Calculations!$E$2=\"Eilean Siar Local Authority\"),OR($F185=1,$F185=5)),0,new_ci(VALUE(LEFT(Options!$B$24,2)),$C185,$E185,$F185,2016,$I185,1,$H185,$G185*$H185,Options!B8)))","v":161.6571057486},{"$f":"IF(AND(OR(Calculations!$E$2=\"Orkney Health Board\",Calculations!$E$2=\"Orkney Islands Local Authority\"),$F185=1),0,IF(AND(OR(Calculations!$E$2=\"Shetland Health Board\",Calculations!$E$2=\"Western Isles Health Board\",Calculations!$E$2=\"Shetland Islands Local Authority\",Calculations!$E$2=\"Eilean Siar Local Authority\"),OR($F185=1,$F185=5)),0,new_ci(VALUE(LEFT(Options!$B$24,2)),$C185,$E185,$F185,2016,$I185+$J185,1,$H185,$G185*$H185,Options!B8)))","v":160.9950020686},{"$f":"IF(AND(OR(Calculations!$E$2=\"Orkney Health Board\",Calculations!$E$2=\"Orkney Islands Local Authority\"),$F185=1),0,IF(AND(OR(Calculations!$E$2=\"Shetland Health Board\",Calculations!$E$2=\"Western Isles Health Board\",Calculations!$E$2=\"Shetland Islands Local Authority\",Calculations!$E$2=\"Eilean Siar Local Authority\"),OR($F185=1,$F185=5)),0,new_yllv2(VALUE(LEFT(Options!$B$24,2)),$C185,$D185,$E185,$F185,2016,$I185,1,$H185,$G185*$H185,Options!B8)))","v":4125.4891770472004},{"$f":"IF(AND(OR(Calculations!$E$2=\"Orkney Health Board\",Calculations!$E$2=\"Orkney Islands Local Authority\"),$F185=1),0,IF(AND(OR(Calculations!$E$2=\"Shetland Health Board\",Calculations!$E$2=\"Western Isles Health Board\",Calculations!$E$2=\"Shetland Islands Local Authority\",Calculations!$E$2=\"Eilean Siar Local Authority\"),OR($F185=1,$F185=5)),0,new_yllv2(VALUE(LEFT(Options!$B$24,2)),$C185,$D185,$E185,$F185,2016,$I185+$J185,1,$H185,$G185*$H185,Options!B8)))","v":4108.5922917956996},{"$f":"IF(AND(OR(Calculations!$E$2=\"Orkney Health Board\",Calculations!$E$2=\"Orkney Islands Local Authority\"),$F185=1),0,IF(AND(OR(Calculations!$E$2=\"Shetland Health Board\",Calculations!$E$2=\"Western Isles Health Board\",Calculations!$E$2=\"Shetland Islands Local Authority\",Calculations!$E$2=\"Eilean Siar Local Authority\"),OR($F185=1,$F185=5)),0,hosp_count(VALUE(LEFT(Options!$B$24,2)),$C185,$E185,$F185,2016,$I185,1,$H185,$G185*$H185, Options!B8)))","v":9474.0793686367997},{"$f":"IF(AND(OR(Calculations!$E$2=\"Orkney Health Board\",Calculations!$E$2=\"Orkney Islands Local Authority\"),$F185=1),0,IF(AND(OR(Calculations!$E$2=\"Shetland Health Board\",Calculations!$E$2=\"Western Isles Health Board\",Calculations!$E$2=\"Shetland Islands Local Authority\",Calculations!$E$2=\"Eilean Siar Local Authority\"),OR($F185=1,$F185=5)),0,hosp_count(VALUE(LEFT(Options!$B$24,2)),$C185,$E185,$F185,2016,$I185+$J185,1,$H185,$G185*$H185, Options!B8)))","v":9436.0783129338997},{"$f":"IF(AND(OR(Calculations!$E$2=\"Orkney Health Board\",Calculations!$E$2=\"Orkney Islands Local Authority\"),$F185=1),0,IF(AND(OR(Calculations!$E$2=\"Shetland Health Board\",Calculations!$E$2=\"Western Isles Health Board\",Calculations!$E$2=\"Shetland Islands Local Authority\",Calculations!$E$2=\"Eilean Siar Local Authority\"),OR($F185=1,$F185=5)),0,prem_mort(VALUE(LEFT(Options!$B$24,2)),$C185,$E185,$F185,2016,$I185,1,$H185,$G185*$H185,Options!B8)))","v":161.6571057486},{"$f":"IF(AND(OR(Calculations!$E$2=\"Orkney Health Board\",Calculations!$E$2=\"Orkney Islands Local Authority\"),$F185=1),0,IF(AND(OR(Calculations!$E$2=\"Shetland Health Board\",Calculations!$E$2=\"Western Isles Health Board\",Calculations!$E$2=\"Shetland Islands Local Authority\",Calculations!$E$2=\"Eilean Siar Local Authority\"),OR($F185=1,$F185=5)),0,prem_mort(VALUE(LEFT(Options!$B$24,2)),$C185,$E185,$F185,2016,$I185+$J185,1,$H185,$G185*$H185,Options!B8)))","v":160.9950020686},406.03080762696544,404.36781551363845,10361.905804609434,10319.466247540311,23795.849119999999,23700.402654679005,406.03080762696544,404.36781551363845,2639200.2495752755,2628390.8008386497,67352387.729961321,67076530.609012023,154673019.28,154052617.25541353,2639200.2495752755,2628390.8008386497,6500]
[null,"Female 60-64",61.947387999999997,84.167389999999997,"female",4,{"$f":"HLOOKUP(Calculations!$E$2,'Prevalence Rates'!$C$3:$BC$249,'Prevalence Rates'!$BD186,FALSE)","v":0.26945256038640319},{"$f":"HLOOKUP(Calculations!$E$2,'Population 2016'!$C$3:$BC$249,'Population 2016'!BD186,FALSE)","v":35061},0,{"$f":"HLOOKUP(Results!E$4,Targeting!$C$3:$F$249,Targeting!$G186,FALSE)","v":2651},{"$f":"IF(AND(OR(Calculations!$E$2=\"Orkney Health Board\",Calculations!$E$2=\"Orkney Islands Local Authority\"),$F186=1),0,IF(AND(OR(Calculations!$E$2=\"Shetland Health Board\",Calculations!$E$2=\"Western Isles Health Board\",Calculations!$E$2=\"Shetland Islands Local Authority\",Calculations!$E$2=\"Eilean Siar Local Authority\"),OR($F186=1,$F186=5)),0,new_ci(VALUE(LEFT(Options!$B$24,2)),$C186,$E186,$F186,2016,$I186,1,$H186,$G186*$H186,Options!B8)))","v":217.4631300719},{"$f":"IF(AND(OR(Calculations!$E$2=\"Orkney Health Board\",Calculations!$E$2=\"Orkney Islands Local Authority\"),$F186=1),0,IF(AND(OR(Calculations!$E$2=\"Shetland Health Board\",Calculations!$E$2=\"Western Isles Health Board\",Calculations!$E$2=\"Shetland Islands Local Authority\",Calculations!$E$2=\"Eilean Siar Local Authority\"),OR($F186=1,$F186=5)),0,new_ci(VALUE(LEFT(Options!$B$24,2)),$C186,$E186,$F186,2016,$I186+$J186,1,$H186,$G186*$H186,Options!B8)))","v":216.57378637709999},{"$f":"IF(AND(OR(Calculations!$E$2=\"Orkney Health Board\",Calculations!$E$2=\"Orkney Islands Local Authority\"),$F186=1),0,IF(AND(OR(Calculations!$E$2=\"Shetland Health Board\",Calculations!$E$2=\"Western Isles Health Board\",Calculations!$E$2=\"Shetland Islands Local Authority\",Calculations!$E$2=\"Eilean Siar Local Authority\"),OR($F186=1,$F186=5)),0,new_yllv2(VALUE(LEFT(Options!$B$24,2)),$C186,$D186,$E186,$F186,2016,$I186,1,$H186,$G186*$H186,Options!B8)))","v":4614.5680550520001},{"$f":"IF(AND(OR(Calculations!$E$2=\"Orkney Health Board\",Calculations!$E$2=\"Orkney Islands Local Authority\"),$F186=1),0,IF(AND(OR(Calculations!$E$2=\"Shetland Health Board\",Calculations!$E$2=\"Western Isles Health Board\",Calculations!$E$2=\"Shetland Islands Local Authority\",Calculations!$E$2=\"Eilean Siar Local Authority\"),OR($F186=1,$F186=5)),0,new_yllv2(VALUE(LEFT(Options!$B$24,2)),$C186,$D186,$E186,$F186,2016,$I186+$J186,1,$H186,$G186*$H186,Options!B8)))","v":4595.6961800695999},{"$f":"IF(AND(OR(Calculations!$E$2=\"Orkney Health Board\",Calculations!$E$2=\"Orkney Islands Local Authority\"),$F186=1),0,IF(AND(OR(Calculations!$E$2=\"Shetland Health Board\",Calculations!$E$2=\"Western Isles Health Board\",Calculations!$E$2=\"Shetland Islands Local Authority\",Calculations!$E$2=\"Eilean Siar Local Authority\"),OR($F186=1,$F186=5)),0,hosp_count(VALUE(LEFT(Options!$B$24,2)),$C186,$E186,$F186,2016,$I186,1,$H186,$G186*$H186, Options!B8)))","v":9459.8509845723001},{"$f":"IF(AND(OR(Calculations!$E$2=\"Orkney Health Board\",Calculations!$E$2=\"Orkney Islands Local Authority\"),$F186=1),0,IF(AND(OR(Calculations!$E$2=\"Shetland Health Board\",Calculations!$E$2=\"Western Isles Health Board\",Calculations!$E$2=\"Shetland Islands Local Authority\",Calculations!$E$2=\"Eilean Siar Local Authority\"),OR($F186=1,$F186=5)),0,hosp_count(VALUE(LEFT(Options!$B$24,2)),$C186,$E186,$F186,2016,$I186+$J186,1,$H186,$G186*$H186, Options!B8)))","v":9421.9022162089004},{"$f":"IF(AND(OR(Calculations!$E$2=\"Orkney Health Board\",Calculations!$E$2=\"Orkney Islands Local Authority\"),$F186=1),0,IF(AND(OR(Calculations!$E$2=\"Shetland Health Board\",Calculations!$E$2=\"Western Isles Health Board\",Calculations!$E$2=\"Shetland Islands Local Authority\",Calculations!$E$2=\"Eilean Siar Local Authority\"),OR($F186=1,$F186=5)),0,prem_mort(VALUE(LEFT(Options!$B$24,2)),$C186,$E186,$F186,2016,$I186,1,$H186,$G186*$H186,Options!B8)))","v":217.4631300719},{"$f":"IF(AND(OR(Calculations!$E$2=\"Orkney Health Board\",Calculations!$E$2=\"Orkney Islands Local Authority\"),$F186=1),0,IF(AND(OR(Calculations!$E$2=\"Shetland Health Board\",Calculations!$E$2=\"Western Isles Health Board\",Calculations!$E$2=\"Shetland Islands Local Authority\",Calculations!$E$2=\"Eilean Siar Local Authority\"),OR($F186=1,$F186=5)),0,prem_mort(VALUE(LEFT(Options!$B$24,2)),$C186,$E186,$F186,2016,$I186+$J186,1,$H186,$G186*$H186,Options!B8)))","v":216.57378637709999},620.24223516699465,617.7056740455206,13161.54147072816,13107.715638657197,26981.121429999999,26872.885018136676,620.24223516699465,617.7056740455206,3721453.4110019677,3706234.0442731236,78969248.824368954,78646293.831943184,161886728.57999998,161237310.10882005,3721453.4110019677,3706234.0442731236,6000]
[null,"Female 65-69",67.063927000000007,85.193929999999995,"female",4,{"$f":"HLOOKUP(Calculations!$E$2,'Prevalence Rates'!$C$3:$BC$249,'Prevalence Rates'!$BD187,FALSE)","v":0.13421334084896991},{"$f":"HLOOKUP(Calculations!$E$2,'Population 2016'!$C$3:$BC$249,'Population 2016'!BD187,FALSE)","v":34888},0,{"$f":"HLOOKUP(Results!E$4,Targeting!$C$3:$F$249,Targeting!$G187,FALSE)","v":2638},{"$f":"IF(AND(OR(Calculations!$E$2=\"Orkney Health Board\",Calculations!$E$2=\"Orkney Islands Local Authority\"),$F187=1),0,IF(AND(OR(Calculations!$E$2=\"Shetland Health Board\",Calculations!$E$2=\"Western Isles Health Board\",Calculations!$E$2=\"Shetland Islands Local Authority\",Calculations!$E$2=\"Eilean Siar Local Authority\"),OR($F187=1,$F187=5)),0,new_ci(VALUE(LEFT(Options!$B$24,2)),$C187,$E187,$F187,2016,$I187,1,$H187,$G187*$H187,Options!B8)))","v":333.80961180219998},{"$f":"IF(AND(OR(Calculations!$E$2=\"Orkney Health Board\",Calculations!$E$2=\"Orkney Islands Local Authority\"),$F187=1),0,IF(AND(OR(Calculations!$E$2=\"Shetland Health Board\",Calculations!$E$2=\"Western Isles Health Board\",Calculations!$E$2=\"Shetland Islands Local Authority\",Calculations!$E$2=\"Eilean Siar Local Authority\"),OR($F187=1,$F187=5)),0,new_ci(VALUE(LEFT(Options!$B$24,2)),$C187,$E187,$F187,2016,$I187+$J187,1,$H187,$G187*$H187,Options!B8)))","v":332.37081520999999},{"$f":"IF(AND(OR(Calculations!$E$2=\"Orkney Health Board\",Calculations!$E$2=\"Orkney Islands Local Authority\"),$F187=1),0,IF(AND(OR(Calculations!$E$2=\"Shetland Health Board\",Calculations!$E$2=\"Western Isles Health Board\",Calculations!$E$2=\"Shetland Islands Local Authority\",Calculations!$E$2=\"Eilean Siar Local Authority\"),OR($F187=1,$F187=5)),0,new_yllv2(VALUE(LEFT(Options!$B$24,2)),$C187,$D187,$E187,$F187,2016,$I187,1,$H187,$G187*$H187,Options!B8)))","v":5718.1596516005002},{"$f":"IF(AND(OR(Calculations!$E$2=\"Orkney Health Board\",Calculations!$E$2=\"Orkney Islands Local Authority\"),$F187=1),0,IF(AND(OR(Calculations!$E$2=\"Shetland Health Board\",Calculations!$E$2=\"Western Isles Health Board\",Calculations!$E$2=\"Shetland Islands Local Authority\",Calculations!$E$2=\"Eilean Siar Local Authority\"),OR($F187=1,$F187=5)),0,new_yllv2(VALUE(LEFT(Options!$B$24,2)),$C187,$D187,$E187,$F187,2016,$I187+$J187,1,$H187,$G187*$H187,Options!B8)))","v":5693.5130616596998},{"$f":"IF(AND(OR(Calculations!$E$2=\"Orkney Health Board\",Calculations!$E$2=\"Orkney Islands Local Authority\"),$F187=1),0,IF(AND(OR(Calculations!$E$2=\"Shetland Health Board\",Calculations!$E$2=\"Western Isles Health Board\",Calculations!$E$2=\"Shetland Islands Local Authority\",Calculations!$E$2=\"Eilean Siar Local Authority\"),OR($F187=1,$F187=5)),0,hosp_count(VALUE(LEFT(Options!$B$24,2)),$C187,$E187,$F187,2016,$I187,1,$H187,$G187*$H187, Options!B8)))","v":10706.0606319744},{"$f":"IF(AND(OR(Calculations!$E$2=\"Orkney Health Board\",Calculations!$E$2=\"Orkney Islands Local Authority\"),$F187=1),0,IF(AND(OR(Calculations!$E$2=\"Shetland Health Board\",Calculations!$E$2=\"Western Isles Health Board\",Calculations!$E$2=\"Shetland Islands Local Authority\",Calculations!$E$2=\"Eilean Siar Local Authority\"),OR($F187=1,$F187=5)),0,hosp_count(VALUE(LEFT(Options!$B$24,2)),$C187,$E187,$F187,2016,$I187+$J187,1,$H187,$G187*$H187, Options!B8)))","v":10662.651565292101},{"$f":"IF(AND(OR(Calculations!$E$2=\"Orkney Health Board\",Calculations!$E$2=\"Orkney Islands Local Authority\"),$F187=1),0,IF(AND(OR(Calculations!$E$2=\"Shetland Health Board\",Calculations!$E$2=\"Western Isles Health Board\",Calculations!$E$2=\"Shetland Islands Local Authority\",Calculations!$E$2=\"Eilean Siar Local Authority\"),OR($F187=1,$F187=5)),0,prem_mort(VALUE(LEFT(Options!$B$24,2)),$C187,$E187,$F187,2016,$I187,1,$H187,$G187*$H187,Options!B8)))","v":333.80961180219998},{"$f":"IF(AND(OR(Calculations!$E$2=\"Orkney Health Board\",Calculations!$E$2=\"Orkney Islands Local Authority\"),$F187=1),0,IF(AND(OR(Calculations!$E$2=\"Shetland Health Board\",Calculations!$E$2=\"Western Isles Health Board\",Calculations!$E$2=\"Shetland Islands Local Authority\",Calculations!$E$2=\"Eilean Siar Local Authority\"),OR($F187=1,$F187=5)),0,prem_mort(VALUE(LEFT(Options!$B$24,2)),$C187,$E187,$F187,2016,$I187+$J187,1,$H187,$G187*$H187,Options!B8)))","v":332.37081520999999},956.80351926794299,952.67947491974314,16390.047155470362,16319.402263413494,30686.942880000002,30562.518818195658,956.80351926794299,952.67947491974314,5262419.3559736861,5239737.1120585874,90145259.355086982,89756712.448774219,168778185.84,168093853.50007612,5262419.3559736861,5239737.1120585874,5500]
[null,"Female 70-74",71.938164,86.248159999999999,"female",4,{"$f":"HLOOKUP(Calculations!$E$2,'Prevalence Rates'!$C$3:$BC$249,'Prevalence Rates'!$BD188,FALSE)","v":0.13421334084896991},{"$f":"HLOOKUP(Calculations!$E$2,'Population 2016'!$C$3:$BC$249,'Population 2016'!BD188,FALSE)","v":26320},0,{"$f":"HLOOKUP(Results!E$4,Targeting!$C$3:$F$249,Targeting!$G188,FALSE)","v":1990},{"$f":"IF(AND(OR(Calculations!$E$2=\"Orkney Health Board\",Calculations!$E$2=\"Orkney Islands Local Authority\"),$F188=1),0,IF(AND(OR(Calculations!$E$2=\"Shetland Health Board\",Calculations!$E$2=\"Western Isles Health Board\",Calculations!$E$2=\"Shetland Islands Local Authority\",Calculations!$E$2=\"Eilean Siar Local Authority\"),OR($F188=1,$F188=5)),0,new_ci(VALUE(LEFT(Options!$B$24,2)),$C188,$E188,$F188,2016,$I188,1,$H188,$G188*$H188,Options!B8)))","v":380.24517250069999},{"$f":"IF(AND(OR(Calculations!$E$2=\"Orkney Health Board\",Calculations!$E$2=\"Orkney Islands Local Authority\"),$F188=1),0,IF(AND(OR(Calculations!$E$2=\"Shetland Health Board\",Calculations!$E$2=\"Western Isles Health Board\",Calculations!$E$2=\"Shetland Islands Local Authority\",Calculations!$E$2=\"Eilean Siar Local Authority\"),OR($F188=1,$F188=5)),0,new_ci(VALUE(LEFT(Options!$B$24,2)),$C188,$E188,$F188,2016,$I188+$J188,1,$H188,$G188*$H188,Options!B8)))","v":378.61304673770002},{"$f":"IF(AND(OR(Calculations!$E$2=\"Orkney Health Board\",Calculations!$E$2=\"Orkney Islands Local Authority\"),$F188=1),0,IF(AND(OR(Calculations!$E$2=\"Shetland Health Board\",Calculations!$E$2=\"Western Isles Health Board\",Calculations!$E$2=\"Shetland Islands Local Authority\",Calculations!$E$2=\"Eilean Siar Local Authority\"),OR($F188=1,$F188=5)),0,new_yllv2(VALUE(LEFT(Options!$B$24,2)),$C188,$D188,$E188,$F188,2016,$I188,1,$H188,$G188*$H188,Options!B8)))","v":5061.0617250036003},{"$f":"IF(AND(OR(Calculations!$E$2=\"Orkney Health Board\",Calculations!$E$2=\"Orkney Islands Local Authority\"),$F188=1),0,IF(AND(OR(Calculations!$E$2=\"Shetland Health Board\",Calculations!$E$2=\"Western Isles Health Board\",Calculations!$E$2=\"Shetland Islands Local Authority\",Calculations!$E$2=\"Eilean Siar Local Authority\"),OR($F188=1,$F188=5)),0,new_yllv2(VALUE(LEFT(Options!$B$24,2)),$C188,$D188,$E188,$F188,2016,$I188+$J188,1,$H188,$G188*$H188,Options!B8)))","v":5039.3381376265997},{"$f":"IF(AND(OR(Calculations!$E$2=\"Orkney Health Board\",Calculations!$E$2=\"Orkney Islands Local Authority\"),$F188=1),0,IF(AND(OR(Calculations!$E$2=\"Shetland Health Board\",Calculations!$E$2=\"Western Isles Health Board\",Calculations!$E$2=\"Shetland Islands Local Authority\",Calculations!$E$2=\"Eilean Siar Local Authority\"),OR($F188=1,$F188=5)),0,hosp_count(VALUE(LEFT(Options!$B$24,2)),$C188,$E188,$F188,2016,$I188,1,$H188,$G188*$H188, Options!B8)))","v":9130.3243339839992},{"$f":"IF(AND(OR(Calculations!$E$2=\"Orkney Health Board\",Calculations!$E$2=\"Orkney Islands Local Authority\"),$F188=1),0,IF(AND(OR(Calculations!$E$2=\"Shetland Health Board\",Calculations!$E$2=\"Western Isles Health Board\",Calculations!$E$2=\"Shetland Islands Local Authority\",Calculations!$E$2=\"Eilean Siar Local Authority\"),OR($F188=1,$F188=5)),0,hosp_count(VALUE(LEFT(Options!$B$24,2)),$C188,$E188,$F188,2016,$I188+$J188,1,$H188,$G188*$H188, Options!B8)))","v":9093.3069751304993},{"$f":"IF(AND(OR(Calculations!$E$2=\"Orkney Health Board\",Calculations!$E$2=\"Orkney Islands Local Authority\"),$F188=1),0,IF(AND(OR(Calculations!$E$2=\"Shetland Health Board\",Calculations!$E$2=\"Western Isles Health Board\",Calculations!$E$2=\"Shetland Islands Local Authority\",Calculations!$E$2=\"Eilean Siar Local Authority\"),OR($F188=1,$F188=5)),0,prem_mort(VALUE(LEFT(Options!$B$24,2)),$C188,$E188,$F188,2016,$I188,1,$H188,$G188*$H188,Options!B8)))","v":380.24517250069999},{"$f":"IF(AND(OR(Calculations!$E$2=\"Orkney Health Board\",Calculations!$E$2=\"Orkney Islands Local Authority\"),$F188=1),0,IF(AND(OR(Calculations!$E$2=\"Shetland Health Board\",Calculations!$E$2=\"Western Isles Health Board\",Calculations!$E$2=\"Shetland Islands Local Authority\",Calculations!$E$2=\"Eilean Siar Local Authority\"),OR($F188=1,$F188=5)),0,prem_mort(VALUE(LEFT(Options!$B$24,2)),$C188,$E188,$F188,2016,$I188+$J188,1,$H188,$G188*$H188,Options!B8)))","v":378.61304673770002},1444.7005034221124,1438.4994176964287,19228.957921746201,19146.421495541792,34689.682119999998,34549.038659310412,1444.7005034221124,1438.4994176964287,7223502.517110562,7192497.0884821434,{"$f":"U188*$AI188","v":96144789.608731002},{"$f":"V188*$AI188","v":95732107.477708966},{"$f":"W188*$AI188","v":173448410.59999999},{"$f":"X188*$AI188","v":172745193.29655206},{"$f":"Y188*$AI188","v":7223502.517110562},{"$f":"Z188*$AI188","v":7192497.0884821434},5000]
[null,"Female 75-79",76.942824999999999,87.812830000000005,"female",4,{"$f":"HLOOKUP(Calculations!$E$2,'Prevalence Rates'!$C$3:$BC$249,'Prevalence Rates'!$BD189,FALSE)","v":8.612526597120479E-2},{"$f":"HLOOKUP(Calculations!$E$2,'Population 2016'!$C$3:$BC$249,'Population 2016'!BD189,FALSE)","v":20708},0,{"$f":"HLOOKUP(Results!E$4,Targeting!$C$3:$F$249,Targeting!$G189,FALSE)","v":1566},{"$f":"IF(AND(OR(Calculations!$E$2=\"Orkney Health Board\",Calculations!$E$2=\"Orkney Islands Local Authority\"),$F189=1),0,IF(AND(OR(Calculations!$E$2=\"Shetland Health Board\",Calculations!$E$2=\"Western Isles Health Board\",Calculations!$E$2=\"Shetland Islands Local Authority\",Calculations!$E$2=\"Eilean Siar Local Authority\"),OR($F189=1,$F189=5)),0,new_ci(VALUE(LEFT(Options!$B$24,2)),$C189,$E189,$F189,2016,$I189,1,$H189,$G189*$H189,Options!B8)))","v":456.14668256120001},{"$f":"IF(AND(OR(Calculations!$E$2=\"Orkney Health Board\",Calculations!$E$2=\"Orkney Islands Local Authority\"),$F189=1),0,IF(AND(OR(Calculations!$E$2=\"Shetland Health Board\",Calculations!$E$2=\"Western Isles Health Board\",Calculations!$E$2=\"Shetland Islands Local Authority\",Calculations!$E$2=\"Eilean Siar Local Authority\"),OR($F189=1,$F189=5)),0,new_ci(VALUE(LEFT(Options!$B$24,2)),$C189,$E189,$F189,2016,$I189+$J189,1,$H189,$G189*$H189,Options!B8)))","v":454.16172024560001},{"$f":"IF(AND(OR(Calculations!$E$2=\"Orkney Health Board\",Calculations!$E$2=\"Orkney Islands Local Authority\"),$F189=1),0,IF(AND(OR(Calculations!$E$2=\"Shetland Health Board\",Calculations!$E$2=\"Western Isles Health Board\",Calculations!$E$2=\"Shetland Islands Local Authority\",Calculations!$E$2=\"Eilean Siar Local Authority\"),OR($F189=1,$F189=5)),0,new_yllv2(VALUE(LEFT(Options!$B$24,2)),$C189,$D189,$E189,$F189,2016,$I189,1,$H189,$G189*$H189,Options!B8)))","v":4502.1700376125},{"$f":"IF(AND(OR(Calculations!$E$2=\"Orkney Health Board\",Calculations!$E$2=\"Orkney Islands Local Authority\"),$F189=1),0,IF(AND(OR(Calculations!$E$2=\"Shetland Health Board\",Calculations!$E$2=\"Western Isles Health Board\",Calculations!$E$2=\"Shetland Islands Local Authority\",Calculations!$E$2=\"Eilean Siar Local Authority\"),OR($F189=1,$F189=5)),0,new_yllv2(VALUE(LEFT(Options!$B$24,2)),$C189,$D189,$E189,$F189,2016,$I189+$J189,1,$H189,$G189*$H189,Options!B8)))","v":4482.5784496326996},{"$f":"IF(AND(OR(Calculations!$E$2=\"Orkney Health Board\",Calculations!$E$2=\"Orkney Islands Local Authority\"),$F189=1),0,IF(AND(OR(Calculations!$E$2=\"Shetland Health Board\",Calculations!$E$2=\"Western Isles Health Board\",Calculations!$E$2=\"Shetland Islands Local Authority\",Calculations!$E$2=\"Eilean Siar Local Authority\"),OR($F189=1,$F189=5)),0,hosp_count(VALUE(LEFT(Options!$B$24,2)),$C189,$E189,$F189,2016,$I189,1,$H189,$G189*$H189, Options!B8)))","v":8147.2292633240004},{"$f":"IF(AND(OR(Calculations!$E$2=\"Orkney Health Board\",Calculations!$E$2=\"Orkney Islands Local Authority\"),$F189=1),0,IF(AND(OR(Calculations!$E$2=\"Shetland Health Board\",Calculations!$E$2=\"Western Isles Health Board\",Calculations!$E$2=\"Shetland Islands Local Authority\",Calculations!$E$2=\"Eilean Siar Local Authority\"),OR($F189=1,$F189=5)),0,hosp_count(VALUE(LEFT(Options!$B$24,2)),$C189,$E189,$F189,2016,$I189+$J189,1,$H189,$G189*$H189, Options!B8)))","v":8114.0648950599998},{"$f":"IF(AND(OR(Calculations!$E$2=\"Orkney Health Board\",Calculations!$E$2=\"Orkney Islands Local Authority\"),$F189=1),0,IF(AND(OR(Calculations!$E$2=\"Shetland Health Board\",Calculations!$E$2=\"Western Isles Health Board\",Calculations!$E$2=\"Shetland Islands Local Authority\",Calculations!$E$2=\"Eilean Siar Local Authority\"),OR($F189=1,$F189=5)),0,prem_mort(VALUE(LEFT(Options!$B$24,2)),$C189,$E189,$F189,2016,$I189,1,$H189,$G189*$H189,Options!B8)))","v":0},{"$f":"IF(AND(OR(Calculations!$E$2=\"Orkney Health Board\",Calculations!$E$2=\"Orkney Islands Local Authority\"),$F189=1),0,IF(AND(OR(Calculations!$E$2=\"Shetland Health Board\",Calculations!$E$2=\"Western Isles Health Board\",Calculations!$E$2=\"Shetland Islands Local Authority\",Calculations!$E$2=\"Eilean Siar Local Authority\"),OR($F189=1,$F189=5)),0,prem_mort(VALUE(LEFT(Options!$B$24,2)),$C189,$E189,$F189,2016,$I189+$J189,1,$H189,$G189*$H189,Options!B8)))","v":0},{"$f":"K189*100000/$H189","v":2202.7558555205719},{"$f":"L189*100000/$H189","v":2193.1703701255556},{"$f":"M189*100000/$H189","v":21741.211307767531},{"$f":"N189*100000/$H189","v":21646.602518991207},{"$f":"O189*100000/$H189","v":39343.390300000006},{"$f":"P189*100000/$H189","v":39183.23785522503},{"$f":"Q189*100000/$H189","v":0},{"$f":"R189*100000/$H189","v":0},{"$f":"S189*$AI189","v":8811023.4220822882},{"$f":"T189*$AI189","v":8772681.4805022217},86964845.231070131,86586410.075964823,157373561.20000002,156732951.42090011,0,0,4000]
[null,"Female 80-84",81.856712000000002,89.736710000000002,"female",4,{"$f":"HLOOKUP(Calculations!$E$2,'Prevalence Rates'!$C$3:$BC$249,'Prevalence Rates'!$BD190,FALSE)","v":8.612526597120479E-2},{"$f":"HLOOKUP(Calculations!$E$2,'Population 2016'!$C$3:$BC$249,'Population 2016'!BD190,FALSE)","v":15634},0,{"$f":"HLOOKUP(Results!E$4,Targeting!$C$3:$F$249,Targeting!$G190,FALSE)","v":1182},{"$f":"IF(AND(OR(Calculations!$E$2=\"Orkney Health Board\",Calculations!$E$2=\"Orkney Islands Local Authority\"),$F190=1),0,IF(AND(OR(Calculations!$E$2=\"Shetland Health Board\",Calculations!$E$2=\"Western Isles Health Board\",Calculations!$E$2=\"Shetland Islands Local Authority\",Calculations!$E$2=\"Eilean Siar Local Authority\"),OR($F190=1,$F190=5)),0,new_ci(VALUE(LEFT(Options!$B$24,2)),$C190,$E190,$F190,2016,$I190,1,$H190,$G190*$H190,Options!B8)))","v":520.01366539670005},{"$f":"IF(AND(OR(Calculations!$E$2=\"Orkney Health Board\",Calculations!$E$2=\"Orkney Islands Local Authority\"),$F190=1),0,IF(AND(OR(Calculations!$E$2=\"Shetland Health Board\",Calculations!$E$2=\"Western Isles Health Board\",Calculations!$E$2=\"Shetland Islands Local Authority\",Calculations!$E$2=\"Eilean Siar Local Authority\"),OR($F190=1,$F190=5)),0,new_ci(VALUE(LEFT(Options!$B$24,2)),$C190,$E190,$F190,2016,$I190+$J190,1,$H190,$G190*$H190,Options!B8)))","v":517.77375648470002},{"$f":"IF(AND(OR(Calculations!$E$2=\"Orkney Health Board\",Calculations!$E$2=\"Orkney Islands Local Authority\"),$F190=1),0,IF(AND(OR(Calculations!$E$2=\"Shetland Health Board\",Calculations!$E$2=\"Western Isles Health Board\",Calculations!$E$2=\"Shetland Islands Local Authority\",Calculations!$E$2=\"Eilean Siar Local Authority\"),OR($F190=1,$F190=5)),0,new_yllv2(VALUE(LEFT(Options!$B$24,2)),$C190,$D190,$E190,$F190,2016,$I190,1,$H190,$G190*$H190,Options!B8)))","v":3577.6929779020002},{"$f":"IF(AND(OR(Calculations!$E$2=\"Orkney Health Board\",Calculations!$E$2=\"Orkney Islands Local Authority\"),$F190=1),0,IF(AND(OR(Calculations!$E$2=\"Shetland Health Board\",Calculations!$E$2=\"Western Isles Health Board\",Calculations!$E$2=\"Shetland Islands Local Authority\",Calculations!$E$2=\"Eilean Siar Local Authority\"),OR($F190=1,$F190=5)),0,new_yllv2(VALUE(LEFT(Options!$B$24,2)),$C190,$D190,$E190,$F190,2016,$I190+$J190,1,$H190,$G190*$H190,Options!B8)))","v":3562.2824090672002},{"$f":"IF(AND(OR(Calculations!$E$2=\"Orkney Health Board\",Calculations!$E$2=\"Orkney Islands Local Authority\"),$F190=1),0,IF(AND(OR(Calculations!$E$2=\"Shetland Health Board\",Calculations!$E$2=\"Western Isles Health Board\",Calculations!$E$2=\"Shetland Islands Local Authority\",Calculations!$E$2=\"Eilean Siar Local Authority\"),OR($F190=1,$F190=5)),0,hosp_count(VALUE(LEFT(Options!$B$24,2)),$C190,$E190,$F190,2016,$I190,1,$H190,$G190*$H190, Options!B8)))","v":6960.2000923551996},{"$f":"IF(AND(OR(Calculations!$E$2=\"Orkney Health Board\",Calculations!$E$2=\"Orkney Islands Local Authority\"),$F190=1),0,IF(AND(OR(Calculations!$E$2=\"Shetland Health Board\",Calculations!$E$2=\"Western Isles Health Board\",Calculations!$E$2=\"Shetland Islands Local Authority\",Calculations!$E$2=\"Eilean Siar Local Authority\"),OR($F190=1,$F190=5)),0,hosp_count(VALUE(LEFT(Options!$B$24,2)),$C190,$E190,$F190,2016,$I190+$J190,1,$H190,$G190*$H190, Options!B8)))","v":6931.8746120326005},{"$f":"IF(AND(OR(Calculations!$E$2=\"Orkney Health Board\",Calculations!$E$2=\"Orkney Islands Local Authority\"),$F190=1),0,IF(AND(OR(Calculations!$E$2=\"Shetland Health Board\",Calculations!$E$2=\"Western Isles Health Board\",Calculations!$E$2=\"Shetland Islands Local Authority\",Calculations!$E$2=\"Eilean Siar Local Authority\"),OR($F190=1,$F190=5)),0,prem_mort(VALUE(LEFT(Options!$B$24,2)),$C190,$E190,$F190,2016,$I190,1,$H190,$G190*$H190,Options!B8)))","v":0},{"$f":"IF(AND(OR(Calculations!$E$2=\"Orkney Health Board\",Calculations!$E$2=\"Orkney Islands Local Authority\"),$F190=1),0,IF(AND(OR(Calculations!$E$2=\"Shetland Health Board\",Calculations!$E$2=\"Western Isles Health Board\",Calculations!$E$2=\"Shetland Islands Local Authority\",Calculations!$E$2=\"Eilean Siar Local Authority\"),OR($F190=1,$F190=5)),0,prem_mort(VALUE(LEFT(Options!$B$24,2)),$C190,$E190,$F190,2016,$I190+$J190,1,$H190,$G190*$H190,Options!B8)))","v":0},3326.1715837066654,3311.8444191166686,22884.053843558911,22785.482979833698,44519.637280000003,44338.458564875276,0,0,8315428.9592666635,8279611.0477916719,57210134.608897276,56963707.449584246,111299093.2,110846146.41218819,0,0,2500]
[null,"Female 85-89",86.730819999999994,92.220819999999989,"female",4,{"$f":"HLOOKUP(Calculations!$E$2,'Prevalence Rates'!$C$3:$BC$249,'Prevalence Rates'!$BD191,FALSE)","v":8.612526597120479E-2},{"$f":"HLOOKUP(Calculations!$E$2,'Population 2016'!$C$3:$BC$249,'Population 2016'!BD191,FALSE)","v":9988},0,{"$f":"HLOOKUP(Results!E$4,Targeting!$C$3:$F$249,Targeting!$G191,FALSE)","v":755},{"$f":"IF(AND(OR(Calculations!$E$2=\"Orkney Health Board\",Calculations!$E$2=\"Orkney Islands Local Authority\"),$F191=1),0,IF(AND(OR(Calculations!$E$2=\"Shetland Health Board\",Calculations!$E$2=\"Western Isles Health Board\",Calculations!$E$2=\"Shetland Islands Local Authority\",Calculations!$E$2=\"Eilean Siar Local Authority\"),OR($F191=1,$F191=5)),0,new_ci(VALUE(LEFT(Options!$B$24,2)),$C191,$E191,$F191,2016,$I191,1,$H191,$G191*$H191,Options!B8)))","v":498.50037748599999},{"$f":"IF(AND(OR(Calculations!$E$2=\"Orkney Health Board\",Calculations!$E$2=\"Orkney Islands Local Authority\"),$F191=1),0,IF(AND(OR(Calculations!$E$2=\"Shetland Health Board\",Calculations!$E$2=\"Western Isles Health Board\",Calculations!$E$2=\"Shetland Islands Local Authority\",Calculations!$E$2=\"Eilean Siar Local Authority\"),OR($F191=1,$F191=5)),0,new_ci(VALUE(LEFT(Options!$B$24,2)),$C191,$E191,$F191,2016,$I191+$J191,1,$H191,$G191*$H191,Options!B8)))","v":496.38549247499998},{"$f":"IF(AND(OR(Calculations!$E$2=\"Orkney Health Board\",Calculations!$E$2=\"Orkney Islands Local Authority\"),$F191=1),0,IF(AND(OR(Calculations!$E$2=\"Shetland Health Board\",Calculations!$E$2=\"Western Isles Health Board\",Calculations!$E$2=\"Shetland Islands Local Authority\",Calculations!$E$2=\"Eilean Siar Local Authority\"),OR($F191=1,$F191=5)),0,new_yllv2(VALUE(LEFT(Options!$B$24,2)),$C191,$D191,$E191,$F191,2016,$I191,1,$H191,$G191*$H191,Options!B8)))","v":2238.2666949120999},{"$f":"IF(AND(OR(Calculations!$E$2=\"Orkney Health Board\",Calculations!$E$2=\"Orkney Islands Local Authority\"),$F191=1),0,IF(AND(OR(Calculations!$E$2=\"Shetland Health Board\",Calculations!$E$2=\"Western Isles Health Board\",Calculations!$E$2=\"Shetland Islands Local Authority\",Calculations!$E$2=\"Eilean Siar Local Authority\"),OR($F191=1,$F191=5)),0,new_yllv2(VALUE(LEFT(Options!$B$24,2)),$C191,$D191,$E191,$F191,2016,$I191+$J191,1,$H191,$G191*$H191,Options!B8)))","v":2228.7708612126999},{"$f":"IF(AND(OR(Calculations!$E$2=\"Orkney Health Board\",Calculations!$E$2=\"Orkney Islands Local Authority\"),$F191=1),0,IF(AND(OR(Calculations!$E$2=\"Shetland Health Board\",Calculations!$E$2=\"Western Isles Health Board\",Calculations!$E$2=\"Shetland Islands Local Authority\",Calculations!$E$2=\"Eilean Siar Local Authority\"),OR($F191=1,$F191=5)),0,hosp_count(VALUE(LEFT(Options!$B$24,2)),$C191,$E191,$F191,2016,$I191,1,$H191,$G191*$H191, Options!B8)))","v":5026.6128475639998},{"$f":"IF(AND(OR(Calculations!$E$2=\"Orkney Health Board\",Calculations!$E$2=\"Orkney Islands Local Authority\"),$F191=1),0,IF(AND(OR(Calculations!$E$2=\"Shetland Health Board\",Calculations!$E$2=\"Western Isles Health Board\",Calculations!$E$2=\"Shetland Islands Local Authority\",Calculations!$E$2=\"Eilean Siar Local Authority\"),OR($F191=1,$F191=5)),0,hosp_count(VALUE(LEFT(Options!$B$24,2)),$C191,$E191,$F191,2016,$I191+$J191,1,$H191,$G191*$H191, Options!B8)))","v":5006.1600818254001},{"$f":"IF(AND(OR(Calculations!$E$2=\"Orkney Health Board\",Calculations!$E$2=\"Orkney Islands Local Authority\"),$F191=1),0,IF(AND(OR(Calculations!$E$2=\"Shetland Health Board\",Calculations!$E$2=\"Western Isles Health Board\",Calculations!$E$2=\"Shetland Islands Local Authority\",Calculations!$E$2=\"Eilean Siar Local Authority\"),OR($F191=1,$F191=5)),0,prem_mort(VALUE(LEFT(Options!$B$24,2)),$C191,$E191,$F191,2016,$I191,1,$H191,$G191*$H191,Options!B8)))","v":0},{"$f":"IF(AND(OR(Calculations!$E$2=\"Orkney Health Board\",Calculations!$E$2=\"Orkney Islands Local Authority\"),$F191=1),0,IF(AND(OR(Calculations!$E$2=\"Shetland Health Board\",Calculations!$E$2=\"Western Isles Health Board\",Calculations!$E$2=\"Shetland Islands Local Authority\",Calculations!$E$2=\"Eilean Siar Local Authority\"),OR($F191=1,$F191=5)),0,prem_mort(VALUE(LEFT(Options!$B$24,2)),$C191,$E191,$F191,2016,$I191+$J191,1,$H191,$G191*$H191,Options!B8)))","v":0},4990.9929664197034,4969.8187071986376,22409.558419224068,22314.485995321382,50326.520299999996,50121.746914551462,0,0,7486489.4496295555,7454728.0607979568,33614337.628836103,33471728.992982071,75489780.449999988,75182620.3718272,0,0,1500]
[null,"Female 90+",92.779342999999997,96.279340000000005,"female",4,{"$f":"HLOOKUP(Calculations!$E$2,'Prevalence Rates'!$C$3:$BC$249,'Prevalence Rates'!$BD192,FALSE)","v":8.612526597120479E-2},{"$f":"HLOOKUP(Calculations!$E$2,'Population 2016'!$C$3:$BC$249,'Population 2016'!BD192,FALSE)","v":5998},0,{"$f":"HLOOKUP(Results!E$4,Targeting!$C$3:$F$249,Targeting!$G192,FALSE)","v":453},{"$f":"IF(AND(OR(Calculations!$E$2=\"Orkney Health Board\",Calculations!$E$2=\"Orkney Islands Local Authority\"),$F192=1),0,IF(AND(OR(Calculations!$E$2=\"Shetland Health Board\",Calculations!$E$2=\"Western Isles Health Board\",Calculations!$E$2=\"Shetland Islands Local Authority\",Calculations!$E$2=\"Eilean Siar Local Authority\"),OR($F192=1,$F192=5)),0,new_ci(VALUE(LEFT(Options!$B$24,2)),$C192,$E192,$F192,2016,$I192,1,$H192,$G192*$H192,Options!B8)))","v":492.17502446010002},{"$f":"IF(AND(OR(Calculations!$E$2=\"Orkney Health Board\",Calculations!$E$2=\"Orkney Islands Local Authority\"),$F192=1),0,IF(AND(OR(Calculations!$E$2=\"Shetland Health Board\",Calculations!$E$2=\"Western Isles Health Board\",Calculations!$E$2=\"Shetland Islands Local Authority\",Calculations!$E$2=\"Eilean Siar Local Authority\"),OR($F192=1,$F192=5)),0,new_ci(VALUE(LEFT(Options!$B$24,2)),$C192,$E192,$F192,2016,$I192+$J192,1,$H192,$G192*$H192,Options!B8)))","v":490.15007889959998},{"$f":"IF(AND(OR(Calculations!$E$2=\"Orkney Health Board\",Calculations!$E$2=\"Orkney Islands Local Authority\"),$F192=1),0,IF(AND(OR(Calculations!$E$2=\"Shetland Health Board\",Calculations!$E$2=\"Western Isles Health Board\",Calculations!$E$2=\"Shetland Islands Local Authority\",Calculations!$E$2=\"Eilean Siar Local Authority\"),OR($F192=1,$F192=5)),0,new_yllv2(VALUE(LEFT(Options!$B$24,2)),$C192,$D192,$E192,$F192,2016,$I192,1,$H192,$G192*$H192,Options!B8)))","v":1230.4360846252},{"$f":"IF(AND(OR(Calculations!$E$2=\"Orkney Health Board\",Calculations!$E$2=\"Orkney Islands Local Authority\"),$F192=1),0,IF(AND(OR(Calculations!$E$2=\"Shetland Health Board\",Calculations!$E$2=\"Western Isles Health Board\",Calculations!$E$2=\"Shetland Islands Local Authority\",Calculations!$E$2=\"Eilean Siar Local Authority\"),OR($F192=1,$F192=5)),0,new_yllv2(VALUE(LEFT(Options!$B$24,2)),$C192,$D192,$E192,$F192,2016,$I192+$J192,1,$H192,$G192*$H192,Options!B8)))","v":1225.3737267987999},{"$f":"IF(AND(OR(Calculations!$E$2=\"Orkney Health Board\",Calculations!$E$2=\"Orkney Islands Local Authority\"),$F192=1),0,IF(AND(OR(Calculations!$E$2=\"Shetland Health Board\",Calculations!$E$2=\"Western Isles Health Board\",Calculations!$E$2=\"Shetland Islands Local Authority\",Calculations!$E$2=\"Eilean Siar Local Authority\"),OR($F192=1,$F192=5)),0,hosp_count(VALUE(LEFT(Options!$B$24,2)),$C192,$E192,$F192,2016,$I192,1,$H192,$G192*$H192, Options!B8)))","v":3514.6176669343999},{"$f":"IF(AND(OR(Calculations!$E$2=\"Orkney Health Board\",Calculations!$E$2=\"Orkney Islands Local Authority\"),$F192=1),0,IF(AND(OR(Calculations!$E$2=\"Shetland Health Board\",Calculations!$E$2=\"Western Isles Health Board\",Calculations!$E$2=\"Shetland Islands Local Authority\",Calculations!$E$2=\"Eilean Siar Local Authority\"),OR($F192=1,$F192=5)),0,hosp_count(VALUE(LEFT(Options!$B$24,2)),$C192,$E192,$F192,2016,$I192+$J192,1,$H192,$G192*$H192, Options!B8)))","v":3500.3294505714998},{"$f":"IF(AND(OR(Calculations!$E$2=\"Orkney Health Board\",Calculations!$E$2=\"Orkney Islands Local Authority\"),$F192=1),0,IF(AND(OR(Calculations!$E$2=\"Shetland Health Board\",Calculations!$E$2=\"Western Isles Health Board\",Calculations!$E$2=\"Shetland Islands Local Authority\",Calculations!$E$2=\"Eilean Siar Local Authority\"),OR($F192=1,$F192=5)),0,prem_mort(VALUE(LEFT(Options!$B$24,2)),$C192,$E192,$F192,2016,$I192,1,$H192,$G192*$H192,Options!B8)))","v":0},{"$f":"IF(AND(OR(Calculations!$E$2=\"Orkney Health Board\",Calculations!$E$2=\"Orkney Islands Local Authority\"),$F192=1),0,IF(AND(OR(Calculations!$E$2=\"Shetland Health Board\",Calculations!$E$2=\"Western Isles Health Board\",Calculations!$E$2=\"Shetland Islands Local Authority\",Calculations!$E$2=\"Eilean Siar Local Authority\"),OR($F192=1,$F192=5)),0,prem_mort(VALUE(LEFT(Options!$B$24,2)),$C192,$E192,$F192,2016,$I192+$J192,1,$H192,$G192*$H192,Options!B8)))","v":0},8205.6522917655893,8171.8919456418807,20514.106112457488,20429.705348429474,58596.493280000002,58358.276935170055,0,0,8205652.2917655893,8171891.9456418809,20514106.112457488,20429705.348429475,58596493.280000001,58358276.935170054,0,0,1000]
[null,"Male 0-4",2.0320822999999999,77.402082000000007,"male",4,{"$f":"HLOOKUP(Calculations!$E$2,'Prevalence Rates'!$C$3:$BC$249,'Prevalence Rates'!$BD193,FALSE)","v":0},{"$f":"HLOOKUP(Calculations!$E$2,'Population 2016'!$C$3:$BC$249,'Population 2016'!BD193,FALSE)","v":0},0,{"$f":"HLOOKUP(Results!E$4,Targeting!$C$3:$F$249,Targeting!$G193,FALSE)","v":0},{"$f":"IF(AND(OR(Calculations!$E$2=\"Orkney Health Board\",Calculations!$E$2=\"Orkney Islands Local Authority\"),$F193=1),0,IF(AND(OR(Calculations!$E$2=\"Shetland Health Board\",Calculations!$E$2=\"Western Isles Health Board\",Calculations!$E$2=\"Shetland Islands Local Authority\",Calculations!$E$2=\"Eilean Siar Local Authority\"),OR($F193=1,$F193=5)),0,new_ci(VALUE(LEFT(Options!$B$24,2)),$C193,$E193,$F193,2016,$I193,1,$H193,$G193*$H193,Options!B8)))","v":{"$error":"#VALUE!"}},{"$f":"IF(AND(OR(Calculations!$E$2=\"Orkney Health Board\",Calculations!$E$2=\"Orkney Islands Local Authority\"),$F193=1),0,IF(AND(OR(Calculations!$E$2=\"Shetland Health Board\",Calculations!$E$2=\"Western Isles Health Board\",Calculations!$E$2=\"Shetland Islands Local Authority\",Calculations!$E$2=\"Eilean Siar Local Authority\"),OR($F193=1,$F193=5)),0,new_ci(VALUE(LEFT(Options!$B$24,2)),$C193,$E193,$F193,2016,$I193+$J193,1,$H193,$G193*$H193,Options!B8)))","v":{"$error":"#VALUE!"}},{"$f":"IF(AND(OR(Calculations!$E$2=\"Orkney Health Board\",Calculations!$E$2=\"Orkney Islands Local Authority\"),$F193=1),0,IF(AND(OR(Calculations!$E$2=\"Shetland Health Board\",Calculations!$E$2=\"Western Isles Health Board\",Calculations!$E$2=\"Shetland Islands Local Authority\",Calculations!$E$2=\"Eilean Siar Local Authority\"),OR($F193=1,$F193=5)),0,new_yllv2(VALUE(LEFT(Options!$B$24,2)),$C193,$D193,$E193,$F193,2016,$I193,1,$H193,$G193*$H193,Options!B8)))","v":{"$error":"#VALUE!"}},{"$f":"IF(AND(OR(Calculations!$E$2=\"Orkney Health Board\",Calculations!$E$2=\"Orkney Islands Local Authority\"),$F193=1),0,IF(AND(OR(Calculations!$E$2=\"Shetland Health Board\",Calculations!$E$2=\"Western Isles Health Board\",Calculations!$E$2=\"Shetland Islands Local Authority\",Calculations!$E$2=\"Eilean Siar Local Authority\"),OR($F193=1,$F193=5)),0,new_yllv2(VALUE(LEFT(Options!$B$24,2)),$C193,$D193,$E193,$F193,2016,$I193+$J193,1,$H193,$G193*$H193,Options!B8)))","v":{"$error":"#VALUE!"}},{"$f":"IF(AND(OR(Calculations!$E$2=\"Orkney Health Board\",Calculations!$E$2=\"Orkney Islands Local Authority\"),$F193=1),0,IF(AND(OR(Calculations!$E$2=\"Shetland Health Board\",Calculations!$E$2=\"Western Isles Health Board\",Calculations!$E$2=\"Shetland Islands Local Authority\",Calculations!$E$2=\"Eilean Siar Local Authority\"),OR($F193=1,$F193=5)),0,hosp_count(VALUE(LEFT(Options!$B$24,2)),$C193,$E193,$F193,2016,$I193,1,$H193,$G193*$H193, Options!B8)))","v":{"$error":"#VALUE!"}},{"$f":"IF(AND(OR(Calculations!$E$2=\"Orkney Health Board\",Calculations!$E$2=\"Orkney Islands Local Authority\"),$F193=1),0,IF(AND(OR(Calculations!$E$2=\"Shetland Health Board\",Calculations!$E$2=\"Western Isles Health Board\",Calculations!$E$2=\"Shetland Islands Local Authority\",Calculations!$E$2=\"Eilean Siar Local Authority\"),OR($F193=1,$F193=5)),0,hosp_count(VALUE(LEFT(Options!$B$24,2)),$C193,$E193,$F193,2016,$I193+$J193,1,$H193,$G193*$H193, Options!B8)))","v":{"$error":"#VALUE!"}},{"$f":"IF(AND(OR(Calculations!$E$2=\"Orkney Health Board\",Calculations!$E$2=\"Orkney Islands Local Authority\"),$F193=1),0,IF(AND(OR(Calculations!$E$2=\"Shetland Health Board\",Calculations!$E$2=\"Western Isles Health Board\",Calculations!$E$2=\"Shetland Islands Local Authority\",Calculations!$E$2=\"Eilean Siar Local Authority\"),OR($F193=1,$F193=5)),0,prem_mort(VALUE(LEFT(Options!$B$24,2)),$C193,$E193,$F193,2016,$I193,1,$H193,$G193*$H193,Options!B8)))","v":{"$error":"#VALUE!"}},{"$f":"IF(AND(OR(Calculations!$E$2=\"Orkney Health Board\",Calculations!$E$2=\"Orkney Islands Local Authority\"),$F193=1),0,IF(AND(OR(Calculations!$E$2=\"Shetland Health Board\",Calculations!$E$2=\"Western Isles Health Board\",Calculations!$E$2=\"Shetland Islands Local Authority\",Calculations!$E$2=\"Eilean Siar Local Authority\"),OR($F193=1,$F193=5)),0,prem_mort(VALUE(LEFT(Options!$B$24,2)),$C193,$E193,$F193,2016,$I193+$J193,1,$H193,$G193*$H193,Options!B8)))","v":{"$error":"#VALUE!"}},{"$error":"#VALUE!"},{"$error":"#VALUE!"},{"$error":"#VALUE!"},{"$error":"#VALUE!"},{"$error":"#VALUE!"},{"$error":"#VALUE!"},{"$error":"#VALUE!"},{"$error":"#VALUE!"},{"$error":"#VALUE!"},{"$error":"#VALUE!"},{"$error":"#VALUE!"},{"$error":"#VALUE!"},{"$error":"#VALUE!"},{"$error":"#VALUE!"},{"$error":"#VALUE!"},{"$error":"#VALUE!"},5000]
[null,"Male 5-9",6.9784756000000003,77.398476000000002,"male",4,{"$f":"HLOOKUP(Calculations!$E$2,'Prevalence Rates'!$C$3:$BC$249,'Prevalence Rates'!$BD194,FALSE)","v":0},{"$f":"HLOOKUP(Calculations!$E$2,'Population 2016'!$C$3:$BC$249,'Population 2016'!BD194,FALSE)","v":0},0,{"$f":"HLOOKUP(Results!E$4,Targeting!$C$3:$F$249,Targeting!$G194,FALSE)","v":0},{"$f":"IF(AND(OR(Calculations!$E$2=\"Orkney Health Board\",Calculations!$E$2=\"Orkney Islands Local Authority\"),$F194=1),0,IF(AND(OR(Calculations!$E$2=\"Shetland Health Board\",Calculations!$E$2=\"Western Isles Health Board\",Calculations!$E$2=\"Shetland Islands Local Authority\",Calculations!$E$2=\"Eilean Siar Local Authority\"),OR($F194=1,$F194=5)),0,new_ci(VALUE(LEFT(Options!$B$24,2)),$C194,$E194,$F194,2016,$I194,1,$H194,$G194*$H194,Options!B8)))","v":{"$error":"#VALUE!"}},{"$f":"IF(AND(OR(Calculations!$E$2=\"Orkney Health Board\",Calculations!$E$2=\"Orkney Islands Local Authority\"),$F194=1),0,IF(AND(OR(Calculations!$E$2=\"Shetland Health Board\",Calculations!$E$2=\"Western Isles Health Board\",Calculations!$E$2=\"Shetland Islands Local Authority\",Calculations!$E$2=\"Eilean Siar Local Authority\"),OR($F194=1,$F194=5)),0,new_ci(VALUE(LEFT(Options!$B$24,2)),$C194,$E194,$F194,2016,$I194+$J194,1,$H194,$G194*$H194,Options!B8)))","v":{"$error":"#VALUE!"}},{"$f":"IF(AND(OR(Calculations!$E$2=\"Orkney Health Board\",Calculations!$E$2=\"Orkney Islands Local Authority\"),$F194=1),0,IF(AND(OR(Calculations!$E$2=\"Shetland Health Board\",Calculations!$E$2=\"Western Isles Health Board\",Calculations!$E$2=\"Shetland Islands Local Authority\",Calculations!$E$2=\"Eilean Siar Local Authority\"),OR($F194=1,$F194=5)),0,new_yllv2(VALUE(LEFT(Options!$B$24,2)),$C194,$D194,$E194,$F194,2016,$I194,1,$H194,$G194*$H194,Options!B8)))","v":{"$error":"#VALUE!"}},{"$f":"IF(AND(OR(Calculations!$E$2=\"Orkney Health Board\",Calculations!$E$2=\"Orkney Islands Local Authority\"),$F194=1),0,IF(AND(OR(Calculations!$E$2=\"Shetland Health Board\",Calculations!$E$2=\"Western Isles Health Board\",Calculations!$E$2=\"Shetland Islands Local Authority\",Calculations!$E$2=\"Eilean Siar Local Authority\"),OR($F194=1,$F194=5)),0,new_yllv2(VALUE(LEFT(Options!$B$24,2)),$C194,$D194,$E194,$F194,2016,$I194+$J194,1,$H194,$G194*$H194,Options!B8)))","v":{"$error":"#VALUE!"}},{"$f":"IF(AND(OR(Calculations!$E$2=\"Orkney Health Board\",Calculations!$E$2=\"Orkney Islands Local Authority\"),$F194=1),0,IF(AND(OR(Calculations!$E$2=\"Shetland Health Board\",Calculations!$E$2=\"Western Isles Health Board\",Calculations!$E$2=\"Shetland Islands Local Authority\",Calculations!$E$2=\"Eilean Siar Local Authority\"),OR($F194=1,$F194=5)),0,hosp_count(VALUE(LEFT(Options!$B$24,2)),$C194,$E194,$F194,2016,$I194,1,$H194,$G194*$H194, Options!B8)))","v":{"$error":"#VALUE!"}},{"$f":"IF(AND(OR(Calculations!$E$2=\"Orkney Health Board\",Calculations!$E$2=\"Orkney Islands Local Authority\"),$F194=1),0,IF(AND(OR(Calculations!$E$2=\"Shetland Health Board\",Calculations!$E$2=\"Western Isles Health Board\",Calculations!$E$2=\"Shetland Islands Local Authority\",Calculations!$E$2=\"Eilean Siar Local Authority\"),OR($F194=1,$F194=5)),0,hosp_count(VALUE(LEFT(Options!$B$24,2)),$C194,$E194,$F194,2016,$I194+$J194,1,$H194,$G194*$H194, Options!B8)))","v":{"$error":"#VALUE!"}},{"$f":"IF(AND(OR(Calculations!$E$2=\"Orkney Health Board\",Calculations!$E$2=\"Orkney Islands Local Authority\"),$F194=1),0,IF(AND(OR(Calculations!$E$2=\"Shetland Health Board\",Calculations!$E$2=\"Western Isles Health Board\",Calculations!$E$2=\"Shetland Islands Local Authority\",Calculations!$E$2=\"Eilean Siar Local Authority\"),OR($F194=1,$F194=5)),0,prem_mort(VALUE(LEFT(Options!$B$24,2)),$C194,$E194,$F194,2016,$I194,1,$H194,$G194*$H194,Options!B8)))","v":{"$error":"#VALUE!"}},{"$f":"IF(AND(OR(Calculations!$E$2=\"Orkney Health Board\",Calculations!$E$2=\"Orkney Islands Local Authority\"),$F194=1),0,IF(AND(OR(Calculations!$E$2=\"Shetland Health Board\",Calculations!$E$2=\"Western Isles Health Board\",Calculations!$E$2=\"Shetland Islands Local Authority\",Calculations!$E$2=\"Eilean Siar Local Authority\"),OR($F194=1,$F194=5)),0,prem_mort(VALUE(LEFT(Options!$B$24,2)),$C194,$E194,$F194,2016,$I194+$J194,1,$H194,$G194*$H194,Options!B8)))","v":{"$error":"#VALUE!"}},{"$error":"#VALUE!"},{"$error":"#VALUE!"},{"$error":"#VALUE!"},{"$error":"#VALUE!"},{"$error":"#VALUE!"},{"$error":"#VALUE!"},{"$error":"#VALUE!"},{"$error":"#VALUE!"},{"$error":"#VALUE!"},{"$error":"#VALUE!"},{"$error":"#VALUE!"},{"$error":"#VALUE!"},{"$error":"#VALUE!"},{"$error":"#VALUE!"},{"$error":"#VALUE!"},{"$error":"#VALUE!"},5500]
[null,"Male 10-15",12.471144000000001,77.921140000000008,"male",4,{"$f":"HLOOKUP(Calculations!$E$2,'Prevalence Rates'!$C$3:$BC$249,'Prevalence Rates'!$BD195,FALSE)","v":0},{"$f":"HLOOKUP(Calculations!$E$2,'Population 2016'!$C$3:$BC$249,'Population 2016'!BD195,FALSE)","v":0},0,{"$f":"HLOOKUP(Results!E$4,Targeting!$C$3:$F$249,Targeting!$G195,FALSE)","v":0},{"$f":"IF(AND(OR(Calculations!$E$2=\"Orkney Health Board\",Calculations!$E$2=\"Orkney Islands Local Authority\"),$F195=1),0,IF(AND(OR(Calculations!$E$2=\"Shetland Health Board\",Calculations!$E$2=\"Western Isles Health Board\",Calculations!$E$2=\"Shetland Islands Local Authority\",Calculations!$E$2=\"Eilean Siar Local Authority\"),OR($F195=1,$F195=5)),0,new_ci(VALUE(LEFT(Options!$B$24,2)),$C195,$E195,$F195,2016,$I195,1,$H195,$G195*$H195,Options!B8)))","v":{"$error":"#VALUE!"}},{"$f":"IF(AND(OR(Calculations!$E$2=\"Orkney Health Board\",Calculations!$E$2=\"Orkney Islands Local Authority\"),$F195=1),0,IF(AND(OR(Calculations!$E$2=\"Shetland Health Board\",Calculations!$E$2=\"Western Isles Health Board\",Calculations!$E$2=\"Shetland Islands Local Authority\",Calculations!$E$2=\"Eilean Siar Local Authority\"),OR($F195=1,$F195=5)),0,new_ci(VALUE(LEFT(Options!$B$24,2)),$C195,$E195,$F195,2016,$I195+$J195,1,$H195,$G195*$H195,Options!B8)))","v":{"$error":"#VALUE!"}},{"$f":"IF(AND(OR(Calculations!$E$2=\"Orkney Health Board\",Calculations!$E$2=\"Orkney Islands Local Authority\"),$F195=1),0,IF(AND(OR(Calculations!$E$2=\"Shetland Health Board\",Calculations!$E$2=\"Western Isles Health Board\",Calculations!$E$2=\"Shetland Islands Local Authority\",Calculations!$E$2=\"Eilean Siar Local Authority\"),OR($F195=1,$F195=5)),0,new_yllv2(VALUE(LEFT(Options!$B$24,2)),$C195,$D195,$E195,$F195,2016,$I195,1,$H195,$G195*$H195,Options!B8)))","v":{"$error":"#VALUE!"}},{"$f":"IF(AND(OR(Calculations!$E$2=\"Orkney Health Board\",Calculations!$E$2=\"Orkney Islands Local Authority\"),$F195=1),0,IF(AND(OR(Calculations!$E$2=\"Shetland Health Board\",Calculations!$E$2=\"Western Isles Health Board\",Calculations!$E$2=\"Shetland Islands Local Authority\",Calculations!$E$2=\"Eilean Siar Local Authority\"),OR($F195=1,$F195=5)),0,new_yllv2(VALUE(LEFT(Options!$B$24,2)),$C195,$D195,$E195,$F195,2016,$I195+$J195,1,$H195,$G195*$H195,Options!B8)))","v":{"$error":"#VALUE!"}},{"$f":"IF(AND(OR(Calculations!$E$2=\"Orkney Health Board\",Calculations!$E$2=\"Orkney Islands Local Authority\"),$F195=1),0,IF(AND(OR(Calculations!$E$2=\"Shetland Health Board\",Calculations!$E$2=\"Western Isles Health Board\",Calculations!$E$2=\"Shetland Islands Local Authority\",Calculations!$E$2=\"Eilean Siar Local Authority\"),OR($F195=1,$F195=5)),0,hosp_count(VALUE(LEFT(Options!$B$24,2)),$C195,$E195,$F195,2016,$I195,1,$H195,$G195*$H195, Options!B8)))","v":{"$error":"#VALUE!"}},{"$f":"IF(AND(OR(Calculations!$E$2=\"Orkney Health Board\",Calculations!$E$2=\"Orkney Islands Local Authority\"),$F195=1),0,IF(AND(OR(Calculations!$E$2=\"Shetland Health Board\",Calculations!$E$2=\"Western Isles Health Board\",Calculations!$E$2=\"Shetland Islands Local Authority\",Calculations!$E$2=\"Eilean Siar Local Authority\"),OR($F195=1,$F195=5)),0,hosp_count(VALUE(LEFT(Options!$B$24,2)),$C195,$E195,$F195,2016,$I195+$J195,1,$H195,$G195*$H195, Options!B8)))","v":{"$error":"#VALUE!"}},{"$f":"IF(AND(OR(Calculations!$E$2=\"Orkney Health Board\",Calculations!$E$2=\"Orkney Islands Local Authority\"),$F195=1),0,IF(AND(OR(Calculations!$E$2=\"Shetland Health Board\",Calculations!$E$2=\"Western Isles Health Board\",Calculations!$E$2=\"Shetland Islands Local Authority\",Calculations!$E$2=\"Eilean Siar Local Authority\"),OR($F195=1,$F195=5)),0,prem_mort(VALUE(LEFT(Options!$B$24,2)),$C195,$E195,$F195,2016,$I195,1,$H195,$G195*$H195,Options!B8)))","v":{"$error":"#VALUE!"}},{"$f":"IF(AND(OR(Calculations!$E$2=\"Orkney Health Board\",Calculations!$E$2=\"Orkney Islands Local Authority\"),$F195=1),0,IF(AND(OR(Calculations!$E$2=\"Shetland Health Board\",Calculations!$E$2=\"Western Isles Health Board\",Calculations!$E$2=\"Shetland Islands Local Authority\",Calculations!$E$2=\"Eilean Siar Local Authority\"),OR($F195=1,$F195=5)),0,prem_mort(VALUE(LEFT(Options!$B$24,2)),$C195,$E195,$F195,2016,$I195+$J195,1,$H195,$G195*$H195,Options!B8)))","v":{"$error":"#VALUE!"}},{"$error":"#VALUE!"},{"$error":"#VALUE!"},{"$error":"#VALUE!"},{"$error":"#VALUE!"},{"$error":"#VALUE!"},{"$error":"#VALUE!"},{"$error":"#VALUE!"},{"$error":"#VALUE!"},{"$error":"#VALUE!"},{"$error":"#VALUE!"},{"$error":"#VALUE!"},{"$error":"#VALUE!"},{"$error":"#VALUE!"},{"$error":"#VALUE!"},{"$error":"#VALUE!"},{"$error":"#VALUE!"},6600]
[null,"Male 16-19",17.556318000000001,77.07632000000001,"male",4,{"$f":"HLOOKUP(Calculations!$E$2,'Prevalence Rates'!$C$3:$BC$249,'Prevalence Rates'!$BD196,FALSE)","v":0.24784088807869259},{"$f":"HLOOKUP(Calculations!$E$2,'Population 2016'!$C$3:$BC$249,'Population 2016'!BD196,FALSE)","v":24732},0,{"$f":"HLOOKUP(Results!E$4,Targeting!$C$3:$F$249,Targeting!$G196,FALSE)","v":1870},{"$f":"IF(AND(OR(Calculations!$E$2=\"Orkney Health Board\",Calculations!$E$2=\"Orkney Islands Local Authority\"),$F196=1),0,IF(AND(OR(Calculations!$E$2=\"Shetland Health Board\",Calculations!$E$2=\"Western Isles Health Board\",Calculations!$E$2=\"Shetland Islands Local Authority\",Calculations!$E$2=\"Eilean Siar Local Authority\"),OR($F196=1,$F196=5)),0,new_ci(VALUE(LEFT(Options!$B$24,2)),$C196,$E196,$F196,2016,$I196,1,$H196,$G196*$H196,Options!B8)))","v":8.3961577358999993},{"$f":"IF(AND(OR(Calculations!$E$2=\"Orkney Health Board\",Calculations!$E$2=\"Orkney Islands Local Authority\"),$F196=1),0,IF(AND(OR(Calculations!$E$2=\"Shetland Health Board\",Calculations!$E$2=\"Western Isles Health Board\",Calculations!$E$2=\"Shetland Islands Local Authority\",Calculations!$E$2=\"Eilean Siar Local Authority\"),OR($F196=1,$F196=5)),0,new_ci(VALUE(LEFT(Options!$B$24,2)),$C196,$E196,$F196,2016,$I196+$J196,1,$H196,$G196*$H196,Options!B8)))","v":8.3584003789000008},{"$f":"IF(AND(OR(Calculations!$E$2=\"Orkney Health Board\",Calculations!$E$2=\"Orkney Islands Local Authority\"),$F196=1),0,IF(AND(OR(Calculations!$E$2=\"Shetland Health Board\",Calculations!$E$2=\"Western Isles Health Board\",Calculations!$E$2=\"Shetland Islands Local Authority\",Calculations!$E$2=\"Eilean Siar Local Authority\"),OR($F196=1,$F196=5)),0,new_yllv2(VALUE(LEFT(Options!$B$24,2)),$C196,$D196,$E196,$F196,2016,$I196,1,$H196,$G196*$H196,Options!B8)))","v":491.3431674972},{"$f":"IF(AND(OR(Calculations!$E$2=\"Orkney Health Board\",Calculations!$E$2=\"Orkney Islands Local Authority\"),$F196=1),0,IF(AND(OR(Calculations!$E$2=\"Shetland Health Board\",Calculations!$E$2=\"Western Isles Health Board\",Calculations!$E$2=\"Shetland Islands Local Authority\",Calculations!$E$2=\"Eilean Siar Local Authority\"),OR($F196=1,$F196=5)),0,new_yllv2(VALUE(LEFT(Options!$B$24,2)),$C196,$D196,$E196,$F196,2016,$I196+$J196,1,$H196,$G196*$H196,Options!B8)))","v":489.13360689000001},{"$f":"IF(AND(OR(Calculations!$E$2=\"Orkney Health Board\",Calculations!$E$2=\"Orkney Islands Local Authority\"),$F196=1),0,IF(AND(OR(Calculations!$E$2=\"Shetland Health Board\",Calculations!$E$2=\"Western Isles Health Board\",Calculations!$E$2=\"Shetland Islands Local Authority\",Calculations!$E$2=\"Eilean Siar Local Authority\"),OR($F196=1,$F196=5)),0,hosp_count(VALUE(LEFT(Options!$B$24,2)),$C196,$E196,$F196,2016,$I196,1,$H196,$G196*$H196, Options!B8)))","v":1479.5226009359999},{"$f":"IF(AND(OR(Calculations!$E$2=\"Orkney Health Board\",Calculations!$E$2=\"Orkney Islands Local Authority\"),$F196=1),0,IF(AND(OR(Calculations!$E$2=\"Shetland Health Board\",Calculations!$E$2=\"Western Isles Health Board\",Calculations!$E$2=\"Shetland Islands Local Authority\",Calculations!$E$2=\"Eilean Siar Local Authority\"),OR($F196=1,$F196=5)),0,hosp_count(VALUE(LEFT(Options!$B$24,2)),$C196,$E196,$F196,2016,$I196+$J196,1,$H196,$G196*$H196, Options!B8)))","v":1473.4965782636},{"$f":"IF(AND(OR(Calculations!$E$2=\"Orkney Health Board\",Calculations!$E$2=\"Orkney Islands Local Authority\"),$F196=1),0,IF(AND(OR(Calculations!$E$2=\"Shetland Health Board\",Calculations!$E$2=\"Western Isles Health Board\",Calculations!$E$2=\"Shetland Islands Local Authority\",Calculations!$E$2=\"Eilean Siar Local Authority\"),OR($F196=1,$F196=5)),0,prem_mort(VALUE(LEFT(Options!$B$24,2)),$C196,$E196,$F196,2016,$I196,1,$H196,$G196*$H196,Options!B8)))","v":8.3961577358999993},{"$f":"IF(AND(OR(Calculations!$E$2=\"Orkney Health Board\",Calculations!$E$2=\"Orkney Islands Local Authority\"),$F196=1),0,IF(AND(OR(Calculations!$E$2=\"Shetland Health Board\",Calculations!$E$2=\"Western Isles Health Board\",Calculations!$E$2=\"Shetland Islands Local Authority\",Calculations!$E$2=\"Eilean Siar Local Authority\"),OR($F196=1,$F196=5)),0,prem_mort(VALUE(LEFT(Options!$B$24,2)),$C196,$E196,$F196,2016,$I196+$J196,1,$H196,$G196*$H196,Options!B8)))","v":8.3584003789000008},33.948559501455598,33.795893493854116,1986.6697699223678,1977.7357548520138,5982.2197999999989,5957.8545134384594,33.948559501455598,33.795893493854116,149373.66180640462,148701.93137295812,8741346.9876584187,8702037.3213488609,26321767.119999994,26214559.85912922,149373.66180640462,148701.93137295812,4400]
[null,"Male 20-24",22.054632000000002,77.704629999999995,"male",4,{"$f":"HLOOKUP(Calculations!$E$2,'Prevalence Rates'!$C$3:$BC$249,'Prevalence Rates'!$BD197,FALSE)","v":0.24784088807869259},{"$f":"HLOOKUP(Calculations!$E$2,'Population 2016'!$C$3:$BC$249,'Population 2016'!BD197,FALSE)","v":35228},0,{"$f":"HLOOKUP(Results!E$4,Targeting!$C$3:$F$249,Targeting!$G197,FALSE)","v":2663},{"$f":"IF(AND(OR(Calculations!$E$2=\"Orkney Health Board\",Calculations!$E$2=\"Orkney Islands Local Authority\"),$F197=1),0,IF(AND(OR(Calculations!$E$2=\"Shetland Health Board\",Calculations!$E$2=\"Western Isles Health Board\",Calculations!$E$2=\"Shetland Islands Local Authority\",Calculations!$E$2=\"Eilean Siar Local Authority\"),OR($F197=1,$F197=5)),0,new_ci(VALUE(LEFT(Options!$B$24,2)),$C197,$E197,$F197,2016,$I197,1,$H197,$G197*$H197,Options!B8)))","v":16.794595988699999},{"$f":"IF(AND(OR(Calculations!$E$2=\"Orkney Health Board\",Calculations!$E$2=\"Orkney Islands Local Authority\"),$F197=1),0,IF(AND(OR(Calculations!$E$2=\"Shetland Health Board\",Calculations!$E$2=\"Western Isles Health Board\",Calculations!$E$2=\"Shetland Islands Local Authority\",Calculations!$E$2=\"Eilean Siar Local Authority\"),OR($F197=1,$F197=5)),0,new_ci(VALUE(LEFT(Options!$B$24,2)),$C197,$E197,$F197,2016,$I197+$J197,1,$H197,$G197*$H197,Options!B8)))","v":16.719097275700001},{"$f":"IF(AND(OR(Calculations!$E$2=\"Orkney Health Board\",Calculations!$E$2=\"Orkney Islands Local Authority\"),$F197=1),0,IF(AND(OR(Calculations!$E$2=\"Shetland Health Board\",Calculations!$E$2=\"Western Isles Health Board\",Calculations!$E$2=\"Shetland Islands Local Authority\",Calculations!$E$2=\"Eilean Siar Local Authority\"),OR($F197=1,$F197=5)),0,new_yllv2(VALUE(LEFT(Options!$B$24,2)),$C197,$D197,$E197,$F197,2016,$I197,1,$H197,$G197*$H197,Options!B8)))","v":917.82463719329996},{"$f":"IF(AND(OR(Calculations!$E$2=\"Orkney Health Board\",Calculations!$E$2=\"Orkney Islands Local Authority\"),$F197=1),0,IF(AND(OR(Calculations!$E$2=\"Shetland Health Board\",Calculations!$E$2=\"Western Isles Health Board\",Calculations!$E$2=\"Shetland Islands Local Authority\",Calculations!$E$2=\"Eilean Siar Local Authority\"),OR($F197=1,$F197=5)),0,new_yllv2(VALUE(LEFT(Options!$B$24,2)),$C197,$D197,$E197,$F197,2016,$I197+$J197,1,$H197,$G197*$H197,Options!B8)))","v":913.69863267879998},{"$f":"IF(AND(OR(Calculations!$E$2=\"Orkney Health Board\",Calculations!$E$2=\"Orkney Islands Local Authority\"),$F197=1),0,IF(AND(OR(Calculations!$E$2=\"Shetland Health Board\",Calculations!$E$2=\"Western Isles Health Board\",Calculations!$E$2=\"Shetland Islands Local Authority\",Calculations!$E$2=\"Eilean Siar Local Authority\"),OR($F197=1,$F197=5)),0,hosp_count(VALUE(LEFT(Options!$B$24,2)),$C197,$E197,$F197,2016,$I197,1,$H197,$G197*$H197, Options!B8)))","v":2472.2563462364001},{"$f":"IF(AND(OR(Calculations!$E$2=\"Orkney Health Board\",Calculations!$E$2=\"Orkney Islands Local Authority\"),$F197=1),0,IF(AND(OR(Calculations!$E$2=\"Shetland Health Board\",Calculations!$E$2=\"Western Isles Health Board\",Calculations!$E$2=\"Shetland Islands Local Authority\",Calculations!$E$2=\"Eilean Siar Local Authority\"),OR($F197=1,$F197=5)),0,hosp_count(VALUE(LEFT(Options!$B$24,2)),$C197,$E197,$F197,2016,$I197+$J197,1,$H197,$G197*$H197, Options!B8)))","v":2462.1892674564001},{"$f":"IF(AND(OR(Calculations!$E$2=\"Orkney Health Board\",Calculations!$E$2=\"Orkney Islands Local Authority\"),$F197=1),0,IF(AND(OR(Calculations!$E$2=\"Shetland Health Board\",Calculations!$E$2=\"Western Isles Health Board\",Calculations!$E$2=\"Shetland Islands Local Authority\",Calculations!$E$2=\"Eilean Siar Local Authority\"),OR($F197=1,$F197=5)),0,prem_mort(VALUE(LEFT(Options!$B$24,2)),$C197,$E197,$F197,2016,$I197,1,$H197,$G197*$H197,Options!B8)))","v":16.794595988699999},{"$f":"IF(AND(OR(Calculations!$E$2=\"Orkney Health Board\",Calculations!$E$2=\"Orkney Islands Local Authority\"),$F197=1),0,IF(AND(OR(Calculations!$E$2=\"Shetland Health Board\",Calculations!$E$2=\"Western Isles Health Board\",Calculations!$E$2=\"Shetland Islands Local Authority\",Calculations!$E$2=\"Eilean Siar Local Authority\"),OR($F197=1,$F197=5)),0,prem_mort(VALUE(LEFT(Options!$B$24,2)),$C197,$E197,$F197,2016,$I197+$J197,1,$H197,$G197*$H197,Options!B8)))","v":16.719097275700001},47.673997924094465,47.459683421426142,2605.3838912038718,2593.6716040615415,7017.8731299999999,6989.2962060190757,47.673997924094465,47.459683421426142,286043.9875445668,284758.10052855685,15632303.347223232,15562029.624369249,42107238.780000001,41935777.236114457,286043.9875445668,284758.10052855685,6000]
[null,"Male 25-29",26.959762999999999,77.789760000000001,"male",4,{"$f":"HLOOKUP(Calculations!$E$2,'Prevalence Rates'!$C$3:$BC$249,'Prevalence Rates'!$BD198,FALSE)","v":0.18224018977462617},{"$f":"HLOOKUP(Calculations!$E$2,'Population 2016'!$C$3:$BC$249,'Population 2016'!BD198,FALSE)","v":33718},0,{"$f":"HLOOKUP(Results!E$4,Targeting!$C$3:$F$249,Targeting!$G198,FALSE)","v":2549},{"$f":"IF(AND(OR(Calculations!$E$2=\"Orkney Health Board\",Calculations!$E$2=\"Orkney Islands Local Authority\"),$F198=1),0,IF(AND(OR(Calculations!$E$2=\"Shetland Health Board\",Calculations!$E$2=\"Western Isles Health Board\",Calculations!$E$2=\"Shetland Islands Local Authority\",Calculations!$E$2=\"Eilean Siar Local Authority\"),OR($F198=1,$F198=5)),0,new_ci(VALUE(LEFT(Options!$B$24,2)),$C198,$E198,$F198,2016,$I198,1,$H198,$G198*$H198,Options!B8)))","v":23.276954935300001},{"$f":"IF(AND(OR(Calculations!$E$2=\"Orkney Health Board\",Calculations!$E$2=\"Orkney Islands Local Authority\"),$F198=1),0,IF(AND(OR(Calculations!$E$2=\"Shetland Health Board\",Calculations!$E$2=\"Western Isles Health Board\",Calculations!$E$2=\"Shetland Islands Local Authority\",Calculations!$E$2=\"Eilean Siar Local Authority\"),OR($F198=1,$F198=5)),0,new_ci(VALUE(LEFT(Options!$B$24,2)),$C198,$E198,$F198,2016,$I198+$J198,1,$H198,$G198*$H198,Options!B8)))","v":23.168398887999999},{"$f":"IF(AND(OR(Calculations!$E$2=\"Orkney Health Board\",Calculations!$E$2=\"Orkney Islands Local Authority\"),$F198=1),0,IF(AND(OR(Calculations!$E$2=\"Shetland Health Board\",Calculations!$E$2=\"Western Isles Health Board\",Calculations!$E$2=\"Shetland Islands Local Authority\",Calculations!$E$2=\"Eilean Siar Local Authority\"),OR($F198=1,$F198=5)),0,new_yllv2(VALUE(LEFT(Options!$B$24,2)),$C198,$D198,$E198,$F198,2016,$I198,1,$H198,$G198*$H198,Options!B8)))","v":1159.8905945951001},{"$f":"IF(AND(OR(Calculations!$E$2=\"Orkney Health Board\",Calculations!$E$2=\"Orkney Islands Local Authority\"),$F198=1),0,IF(AND(OR(Calculations!$E$2=\"Shetland Health Board\",Calculations!$E$2=\"Western Isles Health Board\",Calculations!$E$2=\"Shetland Islands Local Authority\",Calculations!$E$2=\"Eilean Siar Local Authority\"),OR($F198=1,$F198=5)),0,new_yllv2(VALUE(LEFT(Options!$B$24,2)),$C198,$D198,$E198,$F198,2016,$I198+$J198,1,$H198,$G198*$H198,Options!B8)))","v":1154.4812470838001},{"$f":"IF(AND(OR(Calculations!$E$2=\"Orkney Health Board\",Calculations!$E$2=\"Orkney Islands Local Authority\"),$F198=1),0,IF(AND(OR(Calculations!$E$2=\"Shetland Health Board\",Calculations!$E$2=\"Western Isles Health Board\",Calculations!$E$2=\"Shetland Islands Local Authority\",Calculations!$E$2=\"Eilean Siar Local Authority\"),OR($F198=1,$F198=5)),0,hosp_count(VALUE(LEFT(Options!$B$24,2)),$C198,$E198,$F198,2016,$I198,1,$H198,$G198*$H198, Options!B8)))","v":2816.3180454054},{"$f":"IF(AND(OR(Calculations!$E$2=\"Orkney Health Board\",Calculations!$E$2=\"Orkney Islands Local Authority\"),$F198=1),0,IF(AND(OR(Calculations!$E$2=\"Shetland Health Board\",Calculations!$E$2=\"Western Isles Health Board\",Calculations!$E$2=\"Shetland Islands Local Authority\",Calculations!$E$2=\"Eilean Siar Local Authority\"),OR($F198=1,$F198=5)),0,hosp_count(VALUE(LEFT(Options!$B$24,2)),$C198,$E198,$F198,2016,$I198+$J198,1,$H198,$G198*$H198, Options!B8)))","v":2804.7753949997},{"$f":"IF(AND(OR(Calculations!$E$2=\"Orkney Health Board\",Calculations!$E$2=\"Orkney Islands Local Authority\"),$F198=1),0,IF(AND(OR(Calculations!$E$2=\"Shetland Health Board\",Calculations!$E$2=\"Western Isles Health Board\",Calculations!$E$2=\"Shetland Islands Local Authority\",Calculations!$E$2=\"Eilean Siar Local Authority\"),OR($F198=1,$F198=5)),0,prem_mort(VALUE(LEFT(Options!$B$24,2)),$C198,$E198,$F198,2016,$I198,1,$H198,$G198*$H198,Options!B8)))","v":23.276954935300001},{"$f":"IF(AND(OR(Calculations!$E$2=\"Orkney Health Board\",Calculations!$E$2=\"Orkney Islands Local Authority\"),$F198=1),0,IF(AND(OR(Calculations!$E$2=\"Shetland Health Board\",Calculations!$E$2=\"Western Isles Health Board\",Calculations!$E$2=\"Shetland Islands Local Authority\",Calculations!$E$2=\"Eilean Siar Local Authority\"),OR($F198=1,$F198=5)),0,prem_mort(VALUE(LEFT(Options!$B$24,2)),$C198,$E198,$F198,2016,$I198+$J198,1,$H198,$G198*$H198,Options!B8)))","v":23.168398887999999},69.034210022243315,68.71225721573046,3439.9744783056531,3423.9315709229495,8352.5655299999999,8318.3326264894131,69.034210022243315,68.71225721573046,414205.26013345987,412273.54329438275,20639846.86983392,20543589.425537698,50115393.18,49909995.75893648,414205.26013345987,412273.54329438275,6000]
[null,"Male 30-34",31.981521999999998,78.061520000000002,"male",4,{"$f":"HLOOKUP(Calculations!$E$2,'Prevalence Rates'!$C$3:$BC$249,'Prevalence Rates'!$BD199,FALSE)","v":0.18224018977462617},{"$f":"HLOOKUP(Calculations!$E$2,'Population 2016'!$C$3:$BC$249,'Population 2016'!BD199,FALSE)","v":32346},0,{"$f":"HLOOKUP(Results!E$4,Targeting!$C$3:$F$249,Targeting!$G199,FALSE)","v":2446},{"$f":"IF(AND(OR(Calculations!$E$2=\"Orkney Health Board\",Calculations!$E$2=\"Orkney Islands Local Authority\"),$F199=1),0,IF(AND(OR(Calculations!$E$2=\"Shetland Health Board\",Calculations!$E$2=\"Western Isles Health Board\",Calculations!$E$2=\"Shetland Islands Local Authority\",Calculations!$E$2=\"Eilean Siar Local Authority\"),OR($F199=1,$F199=5)),0,new_ci(VALUE(LEFT(Options!$B$24,2)),$C199,$E199,$F199,2016,$I199,1,$H199,$G199*$H199,Options!B8)))","v":32.618732568200002},{"$f":"IF(AND(OR(Calculations!$E$2=\"Orkney Health Board\",Calculations!$E$2=\"Orkney Islands Local Authority\"),$F199=1),0,IF(AND(OR(Calculations!$E$2=\"Shetland Health Board\",Calculations!$E$2=\"Western Isles Health Board\",Calculations!$E$2=\"Shetland Islands Local Authority\",Calculations!$E$2=\"Eilean Siar Local Authority\"),OR($F199=1,$F199=5)),0,new_ci(VALUE(LEFT(Options!$B$24,2)),$C199,$E199,$F199,2016,$I199+$J199,1,$H199,$G199*$H199,Options!B8)))","v":32.466608734799998},{"$f":"IF(AND(OR(Calculations!$E$2=\"Orkney Health Board\",Calculations!$E$2=\"Orkney Islands Local Authority\"),$F199=1),0,IF(AND(OR(Calculations!$E$2=\"Shetland Health Board\",Calculations!$E$2=\"Western Isles Health Board\",Calculations!$E$2=\"Shetland Islands Local Authority\",Calculations!$E$2=\"Eilean Siar Local Authority\"),OR($F199=1,$F199=5)),0,new_yllv2(VALUE(LEFT(Options!$B$24,2)),$C199,$D199,$E199,$F199,2016,$I199,1,$H199,$G199*$H199,Options!B8)))","v":1470.452398937},{"$f":"IF(AND(OR(Calculations!$E$2=\"Orkney Health Board\",Calculations!$E$2=\"Orkney Islands Local Authority\"),$F199=1),0,IF(AND(OR(Calculations!$E$2=\"Shetland Health Board\",Calculations!$E$2=\"Western Isles Health Board\",Calculations!$E$2=\"Shetland Islands Local Authority\",Calculations!$E$2=\"Eilean Siar Local Authority\"),OR($F199=1,$F199=5)),0,new_yllv2(VALUE(LEFT(Options!$B$24,2)),$C199,$D199,$E199,$F199,2016,$I199+$J199,1,$H199,$G199*$H199,Options!B8)))","v":1463.5946568316001},{"$f":"IF(AND(OR(Calculations!$E$2=\"Orkney Health Board\",Calculations!$E$2=\"Orkney Islands Local Authority\"),$F199=1),0,IF(AND(OR(Calculations!$E$2=\"Shetland Health Board\",Calculations!$E$2=\"Western Isles Health Board\",Calculations!$E$2=\"Shetland Islands Local Authority\",Calculations!$E$2=\"Eilean Siar Local Authority\"),OR($F199=1,$F199=5)),0,hosp_count(VALUE(LEFT(Options!$B$24,2)),$C199,$E199,$F199,2016,$I199,1,$H199,$G199*$H199, Options!B8)))","v":3228.8860305809999},{"$f":"IF(AND(OR(Calculations!$E$2=\"Orkney Health Board\",Calculations!$E$2=\"Orkney Islands Local Authority\"),$F199=1),0,IF(AND(OR(Calculations!$E$2=\"Shetland Health Board\",Calculations!$E$2=\"Western Isles Health Board\",Calculations!$E$2=\"Shetland Islands Local Authority\",Calculations!$E$2=\"Eilean Siar Local Authority\"),OR($F199=1,$F199=5)),0,hosp_count(VALUE(LEFT(Options!$B$24,2)),$C199,$E199,$F199,2016,$I199+$J199,1,$H199,$G199*$H199, Options!B8)))","v":3215.6485784279998},{"$f":"IF(AND(OR(Calculations!$E$2=\"Orkney Health Board\",Calculations!$E$2=\"Orkney Islands Local Authority\"),$F199=1),0,IF(AND(OR(Calculations!$E$2=\"Shetland Health Board\",Calculations!$E$2=\"Western Isles Health Board\",Calculations!$E$2=\"Shetland Islands Local Authority\",Calculations!$E$2=\"Eilean Siar Local Authority\"),OR($F199=1,$F199=5)),0,prem_mort(VALUE(LEFT(Options!$B$24,2)),$C199,$E199,$F199,2016,$I199,1,$H199,$G199*$H199,Options!B8)))","v":32.618732568200002},{"$f":"IF(AND(OR(Calculations!$E$2=\"Orkney Health Board\",Calculations!$E$2=\"Orkney Islands Local Authority\"),$F199=1),0,IF(AND(OR(Calculations!$E$2=\"Shetland Health Board\",Calculations!$E$2=\"Western Isles Health Board\",Calculations!$E$2=\"Shetland Islands Local Authority\",Calculations!$E$2=\"Eilean Siar Local Authority\"),OR($F199=1,$F199=5)),0,prem_mort(VALUE(LEFT(Options!$B$24,2)),$C199,$E199,$F199,2016,$I199+$J199,1,$H199,$G199*$H199,Options!B8)))","v":32.466608734799998},100.84317247325791,100.37287063253569,4546.0100134081495,4524.8088073690724,9982.3348499999993,9941.4103086254854,100.84317247325791,100.37287063253569,655480.62107617641,652423.65911148197,29549065.087152973,29411257.24789897,64885176.524999999,64619167.006065652,655480.62107617641,652423.65911148197,6500]
[null,"Male 35-39",36.926009999999998,78.336009999999987,"male",4,{"$f":"HLOOKUP(Calculations!$E$2,'Prevalence Rates'!$C$3:$BC$249,'Prevalence Rates'!$BD200,FALSE)","v":0.17180830092582686},{"$f":"HLOOKUP(Calculations!$E$2,'Population 2016'!$C$3:$BC$249,'Population 2016'!BD200,FALSE)","v":32021},0,{"$f":"HLOOKUP(Results!E$4,Targeting!$C$3:$F$249,Targeting!$G200,FALSE)","v":2421},{"$f":"IF(AND(OR(Calculations!$E$2=\"Orkney Health Board\",Calculations!$E$2=\"Orkney Islands Local Authority\"),$F200=1),0,IF(AND(OR(Calculations!$E$2=\"Shetland Health Board\",Calculations!$E$2=\"Western Isles Health Board\",Calculations!$E$2=\"Shetland Islands Local Authority\",Calculations!$E$2=\"Eilean Siar Local Authority\"),OR($F200=1,$F200=5)),0,new_ci(VALUE(LEFT(Options!$B$24,2)),$C200,$E200,$F200,2016,$I200,1,$H200,$G200*$H200,Options!B8)))","v":46.892022846700002},{"$f":"IF(AND(OR(Calculations!$E$2=\"Orkney Health Board\",Calculations!$E$2=\"Orkney Islands Local Authority\"),$F200=1),0,IF(AND(OR(Calculations!$E$2=\"Shetland Health Board\",Calculations!$E$2=\"Western Isles Health Board\",Calculations!$E$2=\"Shetland Islands Local Authority\",Calculations!$E$2=\"Eilean Siar Local Authority\"),OR($F200=1,$F200=5)),0,new_ci(VALUE(LEFT(Options!$B$24,2)),$C200,$E200,$F200,2016,$I200+$J200,1,$H200,$G200*$H200,Options!B8)))","v":46.672150774000002},{"$f":"IF(AND(OR(Calculations!$E$2=\"Orkney Health Board\",Calculations!$E$2=\"Orkney Islands Local Authority\"),$F200=1),0,IF(AND(OR(Calculations!$E$2=\"Shetland Health Board\",Calculations!$E$2=\"Western Isles Health Board\",Calculations!$E$2=\"Shetland Islands Local Authority\",Calculations!$E$2=\"Eilean Siar Local Authority\"),OR($F200=1,$F200=5)),0,new_yllv2(VALUE(LEFT(Options!$B$24,2)),$C200,$D200,$E200,$F200,2016,$I200,1,$H200,$G200*$H200,Options!B8)))","v":1894.9066432351001},{"$f":"IF(AND(OR(Calculations!$E$2=\"Orkney Health Board\",Calculations!$E$2=\"Orkney Islands Local Authority\"),$F200=1),0,IF(AND(OR(Calculations!$E$2=\"Shetland Health Board\",Calculations!$E$2=\"Western Isles Health Board\",Calculations!$E$2=\"Shetland Islands Local Authority\",Calculations!$E$2=\"Eilean Siar Local Authority\"),OR($F200=1,$F200=5)),0,new_yllv2(VALUE(LEFT(Options!$B$24,2)),$C200,$D200,$E200,$F200,2016,$I200+$J200,1,$H200,$G200*$H200,Options!B8)))","v":1886.0216127773001},{"$f":"IF(AND(OR(Calculations!$E$2=\"Orkney Health Board\",Calculations!$E$2=\"Orkney Islands Local Authority\"),$F200=1),0,IF(AND(OR(Calculations!$E$2=\"Shetland Health Board\",Calculations!$E$2=\"Western Isles Health Board\",Calculations!$E$2=\"Shetland Islands Local Authority\",Calculations!$E$2=\"Eilean Siar Local Authority\"),OR($F200=1,$F200=5)),0,hosp_count(VALUE(LEFT(Options!$B$24,2)),$C200,$E200,$F200,2016,$I200,1,$H200,$G200*$H200, Options!B8)))","v":3809.6765630297},{"$f":"IF(AND(OR(Calculations!$E$2=\"Orkney Health Board\",Calculations!$E$2=\"Orkney Islands Local Authority\"),$F200=1),0,IF(AND(OR(Calculations!$E$2=\"Shetland Health Board\",Calculations!$E$2=\"Western Isles Health Board\",Calculations!$E$2=\"Shetland Islands Local Authority\",Calculations!$E$2=\"Eilean Siar Local Authority\"),OR($F200=1,$F200=5)),0,hosp_count(VALUE(LEFT(Options!$B$24,2)),$C200,$E200,$F200,2016,$I200+$J200,1,$H200,$G200*$H200, Options!B8)))","v":3794.0447628891002},{"$f":"IF(AND(OR(Calculations!$E$2=\"Orkney Health Board\",Calculations!$E$2=\"Orkney Islands Local Authority\"),$F200=1),0,IF(AND(OR(Calculations!$E$2=\"Shetland Health Board\",Calculations!$E$2=\"Western Isles Health Board\",Calculations!$E$2=\"Shetland Islands Local Authority\",Calculations!$E$2=\"Eilean Siar Local Authority\"),OR($F200=1,$F200=5)),0,prem_mort(VALUE(LEFT(Options!$B$24,2)),$C200,$E200,$F200,2016,$I200,1,$H200,$G200*$H200,Options!B8)))","v":46.892022846700002},{"$f":"IF(AND(OR(Calculations!$E$2=\"Orkney Health Board\",Calculations!$E$2=\"Orkney Islands Local Authority\"),$F200=1),0,IF(AND(OR(Calculations!$E$2=\"Shetland Health Board\",Calculations!$E$2=\"Western Isles Health Board\",Calculations!$E$2=\"Shetland Islands Local Authority\",Calculations!$E$2=\"Eilean Siar Local Authority\"),OR($F200=1,$F200=5)),0,prem_mort(VALUE(LEFT(Options!$B$24,2)),$C200,$E200,$F200,2016,$I200+$J200,1,$H200,$G200*$H200,Options!B8)))","v":46.672150774000002},146.44146918178694,145.75481956840824,5917.6997696358649,5889.9522587592519,11897.431570000001,11848.614230939385,146.44146918178694,145.75481956840824,1025090.2842725086,1020283.7369788577,41423898.387451053,41229665.811314762,83282020.99000001,82940299.616575703,1025090.2842725086,1020283.7369788577,7000]
[null,"Male 40-44",42.067703000000002,78.907700000000006,"male",4,{"$f":"HLOOKUP(Calculations!$E$2,'Prevalence Rates'!$C$3:$BC$249,'Prevalence Rates'!$BD201,FALSE)","v":0.17180830092582686},{"$f":"HLOOKUP(Calculations!$E$2,'Population 2016'!$C$3:$BC$249,'Population 2016'!BD201,FALSE)","v":34348},0,{"$f":"HLOOKUP(Results!E$4,Targeting!$C$3:$F$249,Targeting!$G201,FALSE)","v":2597},{"$f":"IF(AND(OR(Calculations!$E$2=\"Orkney Health Board\",Calculations!$E$2=\"Orkney Islands Local Authority\"),$F201=1),0,IF(AND(OR(Calculations!$E$2=\"Shetland Health Board\",Calculations!$E$2=\"Western Isles Health Board\",Calculations!$E$2=\"Shetland Islands Local Authority\",Calculations!$E$2=\"Eilean Siar Local Authority\"),OR($F201=1,$F201=5)),0,new_ci(VALUE(LEFT(Options!$B$24,2)),$C201,$E201,$F201,2016,$I201,1,$H201,$G201*$H201,Options!B8)))","v":74.130098184800005},{"$f":"IF(AND(OR(Calculations!$E$2=\"Orkney Health Board\",Calculations!$E$2=\"Orkney Islands Local Authority\"),$F201=1),0,IF(AND(OR(Calculations!$E$2=\"Shetland Health Board\",Calculations!$E$2=\"Western Isles Health Board\",Calculations!$E$2=\"Shetland Islands Local Authority\",Calculations!$E$2=\"Eilean Siar Local Authority\"),OR($F201=1,$F201=5)),0,new_ci(VALUE(LEFT(Options!$B$24,2)),$C201,$E201,$F201,2016,$I201+$J201,1,$H201,$G201*$H201,Options!B8)))","v":73.782723984200004},{"$f":"IF(AND(OR(Calculations!$E$2=\"Orkney Health Board\",Calculations!$E$2=\"Orkney Islands Local Authority\"),$F201=1),0,IF(AND(OR(Calculations!$E$2=\"Shetland Health Board\",Calculations!$E$2=\"Western Isles Health Board\",Calculations!$E$2=\"Shetland Islands Local Authority\",Calculations!$E$2=\"Eilean Siar Local Authority\"),OR($F201=1,$F201=5)),0,new_yllv2(VALUE(LEFT(Options!$B$24,2)),$C201,$D201,$E201,$F201,2016,$I201,1,$H201,$G201*$H201,Options!B8)))","v":2656.8224965528998},{"$f":"IF(AND(OR(Calculations!$E$2=\"Orkney Health Board\",Calculations!$E$2=\"Orkney Islands Local Authority\"),$F201=1),0,IF(AND(OR(Calculations!$E$2=\"Shetland Health Board\",Calculations!$E$2=\"Western Isles Health Board\",Calculations!$E$2=\"Shetland Islands Local Authority\",Calculations!$E$2=\"Eilean Siar Local Authority\"),OR($F201=1,$F201=5)),0,new_yllv2(VALUE(LEFT(Options!$B$24,2)),$C201,$D201,$E201,$F201,2016,$I201+$J201,1,$H201,$G201*$H201,Options!B8)))","v":2644.3726062455999},{"$f":"IF(AND(OR(Calculations!$E$2=\"Orkney Health Board\",Calculations!$E$2=\"Orkney Islands Local Authority\"),$F201=1),0,IF(AND(OR(Calculations!$E$2=\"Shetland Health Board\",Calculations!$E$2=\"Western Isles Health Board\",Calculations!$E$2=\"Shetland Islands Local Authority\",Calculations!$E$2=\"Eilean Siar Local Authority\"),OR($F201=1,$F201=5)),0,hosp_count(VALUE(LEFT(Options!$B$24,2)),$C201,$E201,$F201,2016,$I201,1,$H201,$G201*$H201, Options!B8)))","v":4904.7371514212},{"$f":"IF(AND(OR(Calculations!$E$2=\"Orkney Health Board\",Calculations!$E$2=\"Orkney Islands Local Authority\"),$F201=1),0,IF(AND(OR(Calculations!$E$2=\"Shetland Health Board\",Calculations!$E$2=\"Western Isles Health Board\",Calculations!$E$2=\"Shetland Islands Local Authority\",Calculations!$E$2=\"Eilean Siar Local Authority\"),OR($F201=1,$F201=5)),0,hosp_count(VALUE(LEFT(Options!$B$24,2)),$C201,$E201,$F201,2016,$I201+$J201,1,$H201,$G201*$H201, Options!B8)))","v":4884.6116261937996},{"$f":"IF(AND(OR(Calculations!$E$2=\"Orkney Health Board\",Calculations!$E$2=\"Orkney Islands Local Authority\"),$F201=1),0,IF(AND(OR(Calculations!$E$2=\"Shetland Health Board\",Calculations!$E$2=\"Western Isles Health Board\",Calculations!$E$2=\"Shetland Islands Local Authority\",Calculations!$E$2=\"Eilean Siar Local Authority\"),OR($F201=1,$F201=5)),0,prem_mort(VALUE(LEFT(Options!$B$24,2)),$C201,$E201,$F201,2016,$I201,1,$H201,$G201*$H201,Options!B8)))","v":74.130098184800005},{"$f":"IF(AND(OR(Calculations!$E$2=\"Orkney Health Board\",Calculations!$E$2=\"Orkney Islands Local Authority\"),$F201=1),0,IF(AND(OR(Calculations!$E$2=\"Shetland Health Board\",Calculations!$E$2=\"Western Isles Health Board\",Calculations!$E$2=\"Shetland Islands Local Authority\",Calculations!$E$2=\"Eilean Siar Local Authority\"),OR($F201=1,$F201=5)),0,prem_mort(VALUE(LEFT(Options!$B$24,2)),$C201,$E201,$F201,2016,$I201+$J201,1,$H201,$G201*$H201,Options!B8)))","v":73.782723984200004},215.82071207872369,214.80937459007805,7735.0136734392099,7698.7673408804003,14279.54219,14220.949185378477,215.82071207872369,214.80937459007805,1510744.9845510658,1503665.6221305463,54145095.71407447,53891371.386162803,99956795.329999998,99546644.297649339,1510744.9845510658,1503665.6221305463,7000]
[null,"Male 45-49",47.038155000000003,79.418149999999997,"male",4,{"$f":"HLOOKUP(Calculations!$E$2,'Prevalence Rates'!$C$3:$BC$249,'Prevalence Rates'!$BD202,FALSE)","v":0.23181016241574809},{"$f":"HLOOKUP(Calculations!$E$2,'Population 2016'!$C$3:$BC$249,'Population 2016'!BD202,FALSE)","v":39846},0,{"$f":"HLOOKUP(Results!E$4,Targeting!$C$3:$F$249,Targeting!$G202,FALSE)","v":3013},{"$f":"IF(AND(OR(Calculations!$E$2=\"Orkney Health Board\",Calculations!$E$2=\"Orkney Islands Local Authority\"),$F202=1),0,IF(AND(OR(Calculations!$E$2=\"Shetland Health Board\",Calculations!$E$2=\"Western Isles Health Board\",Calculations!$E$2=\"Shetland Islands Local Authority\",Calculations!$E$2=\"Eilean Siar Local Authority\"),OR($F202=1,$F202=5)),0,new_ci(VALUE(LEFT(Options!$B$24,2)),$C202,$E202,$F202,2016,$I202,1,$H202,$G202*$H202,Options!B8)))","v":125.0895820511},{"$f":"IF(AND(OR(Calculations!$E$2=\"Orkney Health Board\",Calculations!$E$2=\"Orkney Islands Local Authority\"),$F202=1),0,IF(AND(OR(Calculations!$E$2=\"Shetland Health Board\",Calculations!$E$2=\"Western Isles Health Board\",Calculations!$E$2=\"Shetland Islands Local Authority\",Calculations!$E$2=\"Eilean Siar Local Authority\"),OR($F202=1,$F202=5)),0,new_ci(VALUE(LEFT(Options!$B$24,2)),$C202,$E202,$F202,2016,$I202+$J202,1,$H202,$G202*$H202,Options!B8)))","v":124.5233766807},{"$f":"IF(AND(OR(Calculations!$E$2=\"Orkney Health Board\",Calculations!$E$2=\"Orkney Islands Local Authority\"),$F202=1),0,IF(AND(OR(Calculations!$E$2=\"Shetland Health Board\",Calculations!$E$2=\"Western Isles Health Board\",Calculations!$E$2=\"Shetland Islands Local Authority\",Calculations!$E$2=\"Eilean Siar Local Authority\"),OR($F202=1,$F202=5)),0,new_yllv2(VALUE(LEFT(Options!$B$24,2)),$C202,$D202,$E202,$F202,2016,$I202,1,$H202,$G202*$H202,Options!B8)))","v":3925.3104593155999},{"$f":"IF(AND(OR(Calculations!$E$2=\"Orkney Health Board\",Calculations!$E$2=\"Orkney Islands Local Authority\"),$F202=1),0,IF(AND(OR(Calculations!$E$2=\"Shetland Health Board\",Calculations!$E$2=\"Western Isles Health Board\",Calculations!$E$2=\"Shetland Islands Local Authority\",Calculations!$E$2=\"Eilean Siar Local Authority\"),OR($F202=1,$F202=5)),0,new_yllv2(VALUE(LEFT(Options!$B$24,2)),$C202,$D202,$E202,$F202,2016,$I202+$J202,1,$H202,$G202*$H202,Options!B8)))","v":3907.5429376235002},{"$f":"IF(AND(OR(Calculations!$E$2=\"Orkney Health Board\",Calculations!$E$2=\"Orkney Islands Local Authority\"),$F202=1),0,IF(AND(OR(Calculations!$E$2=\"Shetland Health Board\",Calculations!$E$2=\"Western Isles Health Board\",Calculations!$E$2=\"Shetland Islands Local Authority\",Calculations!$E$2=\"Eilean Siar Local Authority\"),OR($F202=1,$F202=5)),0,hosp_count(VALUE(LEFT(Options!$B$24,2)),$C202,$E202,$F202,2016,$I202,1,$H202,$G202*$H202, Options!B8)))","v":6787.6640703324001},{"$f":"IF(AND(OR(Calculations!$E$2=\"Orkney Health Board\",Calculations!$E$2=\"Orkney Islands Local Authority\"),$F202=1),0,IF(AND(OR(Calculations!$E$2=\"Shetland Health Board\",Calculations!$E$2=\"Western Isles Health Board\",Calculations!$E$2=\"Shetland Islands Local Authority\",Calculations!$E$2=\"Eilean Siar Local Authority\"),OR($F202=1,$F202=5)),0,hosp_count(VALUE(LEFT(Options!$B$24,2)),$C202,$E202,$F202,2016,$I202+$J202,1,$H202,$G202*$H202, Options!B8)))","v":6759.9728929711},{"$f":"IF(AND(OR(Calculations!$E$2=\"Orkney Health Board\",Calculations!$E$2=\"Orkney Islands Local Authority\"),$F202=1),0,IF(AND(OR(Calculations!$E$2=\"Shetland Health Board\",Calculations!$E$2=\"Western Isles Health Board\",Calculations!$E$2=\"Shetland Islands Local Authority\",Calculations!$E$2=\"Eilean Siar Local Authority\"),OR($F202=1,$F202=5)),0,prem_mort(VALUE(LEFT(Options!$B$24,2)),$C202,$E202,$F202,2016,$I202,1,$H202,$G202*$H202,Options!B8)))","v":125.0895820511},{"$f":"IF(AND(OR(Calculations!$E$2=\"Orkney Health Board\",Calculations!$E$2=\"Orkney Islands Local Authority\"),$F202=1),0,IF(AND(OR(Calculations!$E$2=\"Shetland Health Board\",Calculations!$E$2=\"Western Isles Health Board\",Calculations!$E$2=\"Shetland Islands Local Authority\",Calculations!$E$2=\"Eilean Siar Local Authority\"),OR($F202=1,$F202=5)),0,prem_mort(VALUE(LEFT(Options!$B$24,2)),$C202,$E202,$F202,2016,$I202+$J202,1,$H202,$G202*$H202,Options!B8)))","v":124.5233766807},313.93259562089042,312.51161140566177,9851.203280920543,9806.6128033516543,17034.74394,16965.248438917581,313.93259562089042,312.51161140566177,2197528.1693462329,2187581.2798396326,68958422.966443807,68646289.623461574,119243207.58,118756739.07242307,2197528.1693462329,2187581.2798396326,7000]
[null,"Male 50-54",51.998646000000001,79.988649999999993,"male",4,{"$f":"HLOOKUP(Calculations!$E$2,'Prevalence Rates'!$C$3:$BC$249,'Prevalence Rates'!$BD203,FALSE)","v":0.23181016241574809},{"$f":"HLOOKUP(Calculations!$E$2,'Population 2016'!$C$3:$BC$249,'Population 2016'!BD203,FALSE)","v":42258},0,{"$f":"HLOOKUP(Results!E$4,Targeting!$C$3:$F$249,Targeting!$G203,FALSE)","v":3195},{"$f":"IF(AND(OR(Calculations!$E$2=\"Orkney Health Board\",Calculations!$E$2=\"Orkney Islands Local Authority\"),$F203=1),0,IF(AND(OR(Calculations!$E$2=\"Shetland Health Board\",Calculations!$E$2=\"Western Isles Health Board\",Calculations!$E$2=\"Shetland Islands Local Authority\",Calculations!$E$2=\"Eilean Siar Local Authority\"),OR($F203=1,$F203=5)),0,new_ci(VALUE(LEFT(Options!$B$24,2)),$C203,$E203,$F203,2016,$I203,1,$H203,$G203*$H203,Options!B8)))","v":192.78091732780001},{"$f":"IF(AND(OR(Calculations!$E$2=\"Orkney Health Board\",Calculations!$E$2=\"Orkney Islands Local Authority\"),$F203=1),0,IF(AND(OR(Calculations!$E$2=\"Shetland Health Board\",Calculations!$E$2=\"Western Isles Health Board\",Calculations!$E$2=\"Shetland Islands Local Authority\",Calculations!$E$2=\"Eilean Siar Local Authority\"),OR($F203=1,$F203=5)),0,new_ci(VALUE(LEFT(Options!$B$24,2)),$C203,$E203,$F203,2016,$I203+$J203,1,$H203,$G203*$H203,Options!B8)))","v":191.90950440130001},{"$f":"IF(AND(OR(Calculations!$E$2=\"Orkney Health Board\",Calculations!$E$2=\"Orkney Islands Local Authority\"),$F203=1),0,IF(AND(OR(Calculations!$E$2=\"Shetland Health Board\",Calculations!$E$2=\"Western Isles Health Board\",Calculations!$E$2=\"Shetland Islands Local Authority\",Calculations!$E$2=\"Eilean Siar Local Authority\"),OR($F203=1,$F203=5)),0,new_yllv2(VALUE(LEFT(Options!$B$24,2)),$C203,$D203,$E203,$F203,2016,$I203,1,$H203,$G203*$H203,Options!B8)))","v":5203.1577298009997},{"$f":"IF(AND(OR(Calculations!$E$2=\"Orkney Health Board\",Calculations!$E$2=\"Orkney Islands Local Authority\"),$F203=1),0,IF(AND(OR(Calculations!$E$2=\"Shetland Health Board\",Calculations!$E$2=\"Western Isles Health Board\",Calculations!$E$2=\"Shetland Islands Local Authority\",Calculations!$E$2=\"Eilean Siar Local Authority\"),OR($F203=1,$F203=5)),0,new_yllv2(VALUE(LEFT(Options!$B$24,2)),$C203,$D203,$E203,$F203,2016,$I203+$J203,1,$H203,$G203*$H203,Options!B8)))","v":5179.6382914290998},{"$f":"IF(AND(OR(Calculations!$E$2=\"Orkney Health Board\",Calculations!$E$2=\"Orkney Islands Local Authority\"),$F203=1),0,IF(AND(OR(Calculations!$E$2=\"Shetland Health Board\",Calculations!$E$2=\"Western Isles Health Board\",Calculations!$E$2=\"Shetland Islands Local Authority\",Calculations!$E$2=\"Eilean Siar Local Authority\"),OR($F203=1,$F203=5)),0,hosp_count(VALUE(LEFT(Options!$B$24,2)),$C203,$E203,$F203,2016,$I203,1,$H203,$G203*$H203, Options!B8)))","v":8584.4469732443995},{"$f":"IF(AND(OR(Calculations!$E$2=\"Orkney Health Board\",Calculations!$E$2=\"Orkney Islands Local Authority\"),$F203=1),0,IF(AND(OR(Calculations!$E$2=\"Shetland Health Board\",Calculations!$E$2=\"Western Isles Health Board\",Calculations!$E$2=\"Shetland Islands Local Authority\",Calculations!$E$2=\"Eilean Siar Local Authority\"),OR($F203=1,$F203=5)),0,hosp_count(VALUE(LEFT(Options!$B$24,2)),$C203,$E203,$F203,2016,$I203+$J203,1,$H203,$G203*$H203, Options!B8)))","v":8549.4298126768008},{"$f":"IF(AND(OR(Calculations!$E$2=\"Orkney Health Board\",Calculations!$E$2=\"Orkney Islands Local Authority\"),$F203=1),0,IF(AND(OR(Calculations!$E$2=\"Shetland Health Board\",Calculations!$E$2=\"Western Isles Health Board\",Calculations!$E$2=\"Shetland Islands Local Authority\",Calculations!$E$2=\"Eilean Siar Local Authority\"),OR($F203=1,$F203=5)),0,prem_mort(VALUE(LEFT(Options!$B$24,2)),$C203,$E203,$F203,2016,$I203,1,$H203,$G203*$H203,Options!B8)))","v":192.78091732780001},{"$f":"IF(AND(OR(Calculations!$E$2=\"Orkney Health Board\",Calculations!$E$2=\"Orkney Islands Local Authority\"),$F203=1),0,IF(AND(OR(Calculations!$E$2=\"Shetland Health Board\",Calculations!$E$2=\"Western Isles Health Board\",Calculations!$E$2=\"Shetland Islands Local Authority\",Calculations!$E$2=\"Eilean Siar Local Authority\"),OR($F203=1,$F203=5)),0,prem_mort(VALUE(LEFT(Options!$B$24,2)),$C203,$E203,$F203,2016,$I203+$J203,1,$H203,$G203*$H203,Options!B8)))","v":191.90950440130001},456.19981382886084,454.13768848809701,12312.834800040229,12257.178028844479,20314.371179999998,20231.506017030624,456.19981382886084,454.13768848809701,3193398.6968020257,3178963.819416679,86189843.600281611,85800246.201911345,142200598.25999999,141620542.11921436,3193398.6968020257,3178963.819416679,7000]
[null,"Male 55-59",56.950867000000002,80.660870000000003,"male",4,{"$f":"HLOOKUP(Calculations!$E$2,'Prevalence Rates'!$C$3:$BC$249,'Prevalence Rates'!$BD204,FALSE)","v":0.35992342498257957},{"$f":"HLOOKUP(Calculations!$E$2,'Population 2016'!$C$3:$BC$249,'Population 2016'!BD204,FALSE)","v":38483},0,{"$f":"HLOOKUP(Results!E$4,Targeting!$C$3:$F$249,Targeting!$G204,FALSE)","v":2910},{"$f":"IF(AND(OR(Calculations!$E$2=\"Orkney Health Board\",Calculations!$E$2=\"Orkney Islands Local Authority\"),$F204=1),0,IF(AND(OR(Calculations!$E$2=\"Shetland Health Board\",Calculations!$E$2=\"Western Isles Health Board\",Calculations!$E$2=\"Shetland Islands Local Authority\",Calculations!$E$2=\"Eilean Siar Local Authority\"),OR($F204=1,$F204=5)),0,new_ci(VALUE(LEFT(Options!$B$24,2)),$C204,$E204,$F204,2016,$I204,1,$H204,$G204*$H204,Options!B8)))","v":254.86721996380001},{"$f":"IF(AND(OR(Calculations!$E$2=\"Orkney Health Board\",Calculations!$E$2=\"Orkney Islands Local Authority\"),$F204=1),0,IF(AND(OR(Calculations!$E$2=\"Shetland Health Board\",Calculations!$E$2=\"Western Isles Health Board\",Calculations!$E$2=\"Shetland Islands Local Authority\",Calculations!$E$2=\"Eilean Siar Local Authority\"),OR($F204=1,$F204=5)),0,new_ci(VALUE(LEFT(Options!$B$24,2)),$C204,$E204,$F204,2016,$I204+$J204,1,$H204,$G204*$H204,Options!B8)))","v":253.7930342038},{"$f":"IF(AND(OR(Calculations!$E$2=\"Orkney Health Board\",Calculations!$E$2=\"Orkney Islands Local Authority\"),$F204=1),0,IF(AND(OR(Calculations!$E$2=\"Shetland Health Board\",Calculations!$E$2=\"Western Isles Health Board\",Calculations!$E$2=\"Shetland Islands Local Authority\",Calculations!$E$2=\"Eilean Siar Local Authority\"),OR($F204=1,$F204=5)),0,new_yllv2(VALUE(LEFT(Options!$B$24,2)),$C204,$D204,$E204,$F204,2016,$I204,1,$H204,$G204*$H204,Options!B8)))","v":5788.0353299795997},{"$f":"IF(AND(OR(Calculations!$E$2=\"Orkney Health Board\",Calculations!$E$2=\"Orkney Islands Local Authority\"),$F204=1),0,IF(AND(OR(Calculations!$E$2=\"Shetland Health Board\",Calculations!$E$2=\"Western Isles Health Board\",Calculations!$E$2=\"Shetland Islands Local Authority\",Calculations!$E$2=\"Eilean Siar Local Authority\"),OR($F204=1,$F204=5)),0,new_yllv2(VALUE(LEFT(Options!$B$24,2)),$C204,$D204,$E204,$F204,2016,$I204+$J204,1,$H204,$G204*$H204,Options!B8)))","v":5763.6405681473998},{"$f":"IF(AND(OR(Calculations!$E$2=\"Orkney Health Board\",Calculations!$E$2=\"Orkney Islands Local Authority\"),$F204=1),0,IF(AND(OR(Calculations!$E$2=\"Shetland Health Board\",Calculations!$E$2=\"Western Isles Health Board\",Calculations!$E$2=\"Shetland Islands Local Authority\",Calculations!$E$2=\"Eilean Siar Local Authority\"),OR($F204=1,$F204=5)),0,hosp_count(VALUE(LEFT(Options!$B$24,2)),$C204,$E204,$F204,2016,$I204,1,$H204,$G204*$H204, Options!B8)))","v":9319.9287622851007},{"$f":"IF(AND(OR(Calculations!$E$2=\"Orkney Health Board\",Calculations!$E$2=\"Orkney Islands Local Authority\"),$F204=1),0,IF(AND(OR(Calculations!$E$2=\"Shetland Health Board\",Calculations!$E$2=\"Western Isles Health Board\",Calculations!$E$2=\"Shetland Islands Local Authority\",Calculations!$E$2=\"Eilean Siar Local Authority\"),OR($F204=1,$F204=5)),0,hosp_count(VALUE(LEFT(Options!$B$24,2)),$C204,$E204,$F204,2016,$I204+$J204,1,$H204,$G204*$H204, Options!B8)))","v":9282.3762263543995},{"$f":"IF(AND(OR(Calculations!$E$2=\"Orkney Health Board\",Calculations!$E$2=\"Orkney Islands Local Authority\"),$F204=1),0,IF(AND(OR(Calculations!$E$2=\"Shetland Health Board\",Calculations!$E$2=\"Western Isles Health Board\",Calculations!$E$2=\"Shetland Islands Local Authority\",Calculations!$E$2=\"Eilean Siar Local Authority\"),OR($F204=1,$F204=5)),0,prem_mort(VALUE(LEFT(Options!$B$24,2)),$C204,$E204,$F204,2016,$I204,1,$H204,$G204*$H204,Options!B8)))","v":254.86721996380001},{"$f":"IF(AND(OR(Calculations!$E$2=\"Orkney Health Board\",Calculations!$E$2=\"Orkney Islands Local Authority\"),$F204=1),0,IF(AND(OR(Calculations!$E$2=\"Shetland Health Board\",Calculations!$E$2=\"Western Isles Health Board\",Calculations!$E$2=\"Shetland Islands Local Authority\",Calculations!$E$2=\"Eilean Siar Local Authority\"),OR($F204=1,$F204=5)),0,prem_mort(VALUE(LEFT(Options!$B$24,2)),$C204,$E204,$F204,2016,$I204+$J204,1,$H204,$G204*$H204,Options!B8)))","v":253.7930342038},662.28521675493073,659.49389133851309,15040.499259360236,14977.108250779303,24218.30097,24120.718827415742,662.28521675493073,659.49389133851309,4304853.9089070493,4286710.2937003355,97763245.185841531,97351203.630065471,157418956.30500001,156784672.37820232,4304853.9089070493,4286710.2937003355,6500]
[null,"Male 60-64",61.942988999999997,81.612989999999996,"male",4,{"$f":"HLOOKUP(Calculations!$E$2,'Prevalence Rates'!$C$3:$BC$249,'Prevalence Rates'!$BD205,FALSE)","v":0.35992342498257957},{"$f":"HLOOKUP(Calculations!$E$2,'Population 2016'!$C$3:$BC$249,'Population 2016'!BD205,FALSE)","v":33820},0,{"$f":"HLOOKUP(Results!E$4,Targeting!$C$3:$F$249,Targeting!$G205,FALSE)","v":2557},{"$f":"IF(AND(OR(Calculations!$E$2=\"Orkney Health Board\",Calculations!$E$2=\"Orkney Islands Local Authority\"),$F205=1),0,IF(AND(OR(Calculations!$E$2=\"Shetland Health Board\",Calculations!$E$2=\"Western Isles Health Board\",Calculations!$E$2=\"Shetland Islands Local Authority\",Calculations!$E$2=\"Eilean Siar Local Authority\"),OR($F205=1,$F205=5)),0,new_ci(VALUE(LEFT(Options!$B$24,2)),$C205,$E205,$F205,2016,$I205,1,$H205,$G205*$H205,Options!B8)))","v":325.98753568990003},{"$f":"IF(AND(OR(Calculations!$E$2=\"Orkney Health Board\",Calculations!$E$2=\"Orkney Islands Local Authority\"),$F205=1),0,IF(AND(OR(Calculations!$E$2=\"Shetland Health Board\",Calculations!$E$2=\"Western Isles Health Board\",Calculations!$E$2=\"Shetland Islands Local Authority\",Calculations!$E$2=\"Eilean Siar Local Authority\"),OR($F205=1,$F205=5)),0,new_ci(VALUE(LEFT(Options!$B$24,2)),$C205,$E205,$F205,2016,$I205+$J205,1,$H205,$G205*$H205,Options!B8)))","v":324.61704582499999},{"$f":"IF(AND(OR(Calculations!$E$2=\"Orkney Health Board\",Calculations!$E$2=\"Orkney Islands Local Authority\"),$F205=1),0,IF(AND(OR(Calculations!$E$2=\"Shetland Health Board\",Calculations!$E$2=\"Western Isles Health Board\",Calculations!$E$2=\"Shetland Islands Local Authority\",Calculations!$E$2=\"Eilean Siar Local Authority\"),OR($F205=1,$F205=5)),0,new_yllv2(VALUE(LEFT(Options!$B$24,2)),$C205,$D205,$E205,$F205,2016,$I205,1,$H205,$G205*$H205,Options!B8)))","v":6086.1876173179999},{"$f":"IF(AND(OR(Calculations!$E$2=\"Orkney Health Board\",Calculations!$E$2=\"Orkney Islands Local Authority\"),$F205=1),0,IF(AND(OR(Calculations!$E$2=\"Shetland Health Board\",Calculations!$E$2=\"Western Isles Health Board\",Calculations!$E$2=\"Shetland Islands Local Authority\",Calculations!$E$2=\"Eilean Siar Local Authority\"),OR($F205=1,$F205=5)),0,new_yllv2(VALUE(LEFT(Options!$B$24,2)),$C205,$D205,$E205,$F205,2016,$I205+$J205,1,$H205,$G205*$H205,Options!B8)))","v":6060.6005701698004},{"$f":"IF(AND(OR(Calculations!$E$2=\"Orkney Health Board\",Calculations!$E$2=\"Orkney Islands Local Authority\"),$F205=1),0,IF(AND(OR(Calculations!$E$2=\"Shetland Health Board\",Calculations!$E$2=\"Western Isles Health Board\",Calculations!$E$2=\"Shetland Islands Local Authority\",Calculations!$E$2=\"Eilean Siar Local Authority\"),OR($F205=1,$F205=5)),0,hosp_count(VALUE(LEFT(Options!$B$24,2)),$C205,$E205,$F205,2016,$I205,1,$H205,$G205*$H205, Options!B8)))","v":9778.5092826239998},{"$f":"IF(AND(OR(Calculations!$E$2=\"Orkney Health Board\",Calculations!$E$2=\"Orkney Islands Local Authority\"),$F205=1),0,IF(AND(OR(Calculations!$E$2=\"Shetland Health Board\",Calculations!$E$2=\"Western Isles Health Board\",Calculations!$E$2=\"Shetland Islands Local Authority\",Calculations!$E$2=\"Eilean Siar Local Authority\"),OR($F205=1,$F205=5)),0,hosp_count(VALUE(LEFT(Options!$B$24,2)),$C205,$E205,$F205,2016,$I205+$J205,1,$H205,$G205*$H205, Options!B8)))","v":9739.1150732623992},{"$f":"IF(AND(OR(Calculations!$E$2=\"Orkney Health Board\",Calculations!$E$2=\"Orkney Islands Local Authority\"),$F205=1),0,IF(AND(OR(Calculations!$E$2=\"Shetland Health Board\",Calculations!$E$2=\"Western Isles Health Board\",Calculations!$E$2=\"Shetland Islands Local Authority\",Calculations!$E$2=\"Eilean Siar Local Authority\"),OR($F205=1,$F205=5)),0,prem_mort(VALUE(LEFT(Options!$B$24,2)),$C205,$E205,$F205,2016,$I205,1,$H205,$G205*$H205,Options!B8)))","v":325.98753568990003},{"$f":"IF(AND(OR(Calculations!$E$2=\"Orkney Health Board\",Calculations!$E$2=\"Orkney Islands Local Authority\"),$F205=1),0,IF(AND(OR(Calculations!$E$2=\"Shetland Health Board\",Calculations!$E$2=\"Western Isles Health Board\",Calculations!$E$2=\"Shetland Islands Local Authority\",Calculations!$E$2=\"Eilean Siar Local Authority\"),OR($F205=1,$F205=5)),0,prem_mort(VALUE(LEFT(Options!$B$24,2)),$C205,$E205,$F205,2016,$I205+$J205,1,$H205,$G205*$H205,Options!B8)))","v":324.61704582499999},963.88981575960975,959.83750983146069,17995.823824121821,17920.167268390895,28913.392320000003,28796.910328984031,963.88981575960975,959.83750983146069,5783338.8945576586,5759025.058988764,107974942.94473092,107521003.61034536,173480353.92000002,172781461.97390419,5783338.8945576586,5759025.058988764,6000]
[null,"Male 65-69",67.054419999999993,82.954419999999999,"male",4,{"$f":"HLOOKUP(Calculations!$E$2,'Prevalence Rates'!$C$3:$BC$249,'Prevalence Rates'!$BD206,FALSE)","v":0.24434672028044677},{"$f":"HLOOKUP(Calculations!$E$2,'Population 2016'!$C$3:$BC$249,'Population 2016'!BD206,FALSE)","v":33114},0,{"$f":"HLOOKUP(Results!E$4,Targeting!$C$3:$F$249,Targeting!$G206,FALSE)","v":2504},{"$f":"IF(AND(OR(Calculations!$E$2=\"Orkney Health Board\",Calculations!$E$2=\"Orkney Islands Local Authority\"),$F206=1),0,IF(AND(OR(Calculations!$E$2=\"Shetland Health Board\",Calculations!$E$2=\"Western Isles Health Board\",Calculations!$E$2=\"Shetland Islands Local Authority\",Calculations!$E$2=\"Eilean Siar Local Authority\"),OR($F206=1,$F206=5)),0,new_ci(VALUE(LEFT(Options!$B$24,2)),$C206,$E206,$F206,2016,$I206,1,$H206,$G206*$H206,Options!B8)))","v":468.38387952530002},{"$f":"IF(AND(OR(Calculations!$E$2=\"Orkney Health Board\",Calculations!$E$2=\"Orkney Islands Local Authority\"),$F206=1),0,IF(AND(OR(Calculations!$E$2=\"Shetland Health Board\",Calculations!$E$2=\"Western Isles Health Board\",Calculations!$E$2=\"Shetland Islands Local Authority\",Calculations!$E$2=\"Eilean Siar Local Authority\"),OR($F206=1,$F206=5)),0,new_ci(VALUE(LEFT(Options!$B$24,2)),$C206,$E206,$F206,2016,$I206+$J206,1,$H206,$G206*$H206,Options!B8)))","v":466.29843038690001},{"$f":"IF(AND(OR(Calculations!$E$2=\"Orkney Health Board\",Calculations!$E$2=\"Orkney Islands Local Authority\"),$F206=1),0,IF(AND(OR(Calculations!$E$2=\"Shetland Health Board\",Calculations!$E$2=\"Western Isles Health Board\",Calculations!$E$2=\"Shetland Islands Local Authority\",Calculations!$E$2=\"Eilean Siar Local Authority\"),OR($F206=1,$F206=5)),0,new_yllv2(VALUE(LEFT(Options!$B$24,2)),$C206,$D206,$E206,$F206,2016,$I206,1,$H206,$G206*$H206,Options!B8)))","v":6978.9198049269999},{"$f":"IF(AND(OR(Calculations!$E$2=\"Orkney Health Board\",Calculations!$E$2=\"Orkney Islands Local Authority\"),$F206=1),0,IF(AND(OR(Calculations!$E$2=\"Shetland Health Board\",Calculations!$E$2=\"Western Isles Health Board\",Calculations!$E$2=\"Shetland Islands Local Authority\",Calculations!$E$2=\"Eilean Siar Local Authority\"),OR($F206=1,$F206=5)),0,new_yllv2(VALUE(LEFT(Options!$B$24,2)),$C206,$D206,$E206,$F206,2016,$I206+$J206,1,$H206,$G206*$H206,Options!B8)))","v":6947.8466127647998},{"$f":"IF(AND(OR(Calculations!$E$2=\"Orkney Health Board\",Calculations!$E$2=\"Orkney Islands Local Authority\"),$F206=1),0,IF(AND(OR(Calculations!$E$2=\"Shetland Health Board\",Calculations!$E$2=\"Western Isles Health Board\",Calculations!$E$2=\"Shetland Islands Local Authority\",Calculations!$E$2=\"Eilean Siar Local Authority\"),OR($F206=1,$F206=5)),0,hosp_count(VALUE(LEFT(Options!$B$24,2)),$C206,$E206,$F206,2016,$I206,1,$H206,$G206*$H206, Options!B8)))","v":11479.031884186799},{"$f":"IF(AND(OR(Calculations!$E$2=\"Orkney Health Board\",Calculations!$E$2=\"Orkney Islands Local Authority\"),$F206=1),0,IF(AND(OR(Calculations!$E$2=\"Shetland Health Board\",Calculations!$E$2=\"Western Isles Health Board\",Calculations!$E$2=\"Shetland Islands Local Authority\",Calculations!$E$2=\"Eilean Siar Local Authority\"),OR($F206=1,$F206=5)),0,hosp_count(VALUE(LEFT(Options!$B$24,2)),$C206,$E206,$F206,2016,$I206+$J206,1,$H206,$G206*$H206, Options!B8)))","v":11432.258065277299},{"$f":"IF(AND(OR(Calculations!$E$2=\"Orkney Health Board\",Calculations!$E$2=\"Orkney Islands Local Authority\"),$F206=1),0,IF(AND(OR(Calculations!$E$2=\"Shetland Health Board\",Calculations!$E$2=\"Western Isles Health Board\",Calculations!$E$2=\"Shetland Islands Local Authority\",Calculations!$E$2=\"Eilean Siar Local Authority\"),OR($F206=1,$F206=5)),0,prem_mort(VALUE(LEFT(Options!$B$24,2)),$C206,$E206,$F206,2016,$I206,1,$H206,$G206*$H206,Options!B8)))","v":468.38387952530002},{"$f":"IF(AND(OR(Calculations!$E$2=\"Orkney Health Board\",Calculations!$E$2=\"Orkney Islands Local Authority\"),$F206=1),0,IF(AND(OR(Calculations!$E$2=\"Shetland Health Board\",Calculations!$E$2=\"Western Isles Health Board\",Calculations!$E$2=\"Shetland Islands Local Authority\",Calculations!$E$2=\"Eilean Siar Local Authority\"),OR($F206=1,$F206=5)),0,prem_mort(VALUE(LEFT(Options!$B$24,2)),$C206,$E206,$F206,2016,$I206+$J206,1,$H206,$G206*$H206,Options!B8)))","v":466.29843038690001},1414.4587773307364,1408.1609904780455,21075.435782228062,20981.598758122847,34665.192620000002,34523.941732431296,1414.4587773307364,1408.1609904780455,7779523.2753190501,7744885.4476292506,115914896.80225433,115398793.16967566,190658559.41,189881679.52837214,7779523.2753190501,7744885.4476292506,5500]
[null,"Male 70-74",71.891098,84.341099999999997,"male",4,{"$f":"HLOOKUP(Calculations!$E$2,'Prevalence Rates'!$C$3:$BC$249,'Prevalence Rates'!$BD207,FALSE)","v":0.24434672028044677},{"$f":"HLOOKUP(Calculations!$E$2,'Population 2016'!$C$3:$BC$249,'Population 2016'!BD207,FALSE)","v":24360},0,{"$f":"HLOOKUP(Results!E$4,Targeting!$C$3:$F$249,Targeting!$G207,FALSE)","v":1842},{"$f":"IF(AND(OR(Calculations!$E$2=\"Orkney Health Board\",Calculations!$E$2=\"Orkney Islands Local Authority\"),$F207=1),0,IF(AND(OR(Calculations!$E$2=\"Shetland Health Board\",Calculations!$E$2=\"Western Isles Health Board\",Calculations!$E$2=\"Shetland Islands Local Authority\",Calculations!$E$2=\"Eilean Siar Local Authority\"),OR($F207=1,$F207=5)),0,new_ci(VALUE(LEFT(Options!$B$24,2)),$C207,$E207,$F207,2016,$I207,1,$H207,$G207*$H207,Options!B8)))","v":494.7868605095},{"$f":"IF(AND(OR(Calculations!$E$2=\"Orkney Health Board\",Calculations!$E$2=\"Orkney Islands Local Authority\"),$F207=1),0,IF(AND(OR(Calculations!$E$2=\"Shetland Health Board\",Calculations!$E$2=\"Western Isles Health Board\",Calculations!$E$2=\"Shetland Islands Local Authority\",Calculations!$E$2=\"Eilean Siar Local Authority\"),OR($F207=1,$F207=5)),0,new_ci(VALUE(LEFT(Options!$B$24,2)),$C207,$E207,$F207,2016,$I207+$J207,1,$H207,$G207*$H207,Options!B8)))","v":492.5958037199},{"$f":"IF(AND(OR(Calculations!$E$2=\"Orkney Health Board\",Calculations!$E$2=\"Orkney Islands Local Authority\"),$F207=1),0,IF(AND(OR(Calculations!$E$2=\"Shetland Health Board\",Calculations!$E$2=\"Western Isles Health Board\",Calculations!$E$2=\"Shetland Islands Local Authority\",Calculations!$E$2=\"Eilean Siar Local Authority\"),OR($F207=1,$F207=5)),0,new_yllv2(VALUE(LEFT(Options!$B$24,2)),$C207,$D207,$E207,$F207,2016,$I207,1,$H207,$G207*$H207,Options!B8)))","v":5665.3105424075002},{"$f":"IF(AND(OR(Calculations!$E$2=\"Orkney Health Board\",Calculations!$E$2=\"Orkney Islands Local Authority\"),$F207=1),0,IF(AND(OR(Calculations!$E$2=\"Shetland Health Board\",Calculations!$E$2=\"Western Isles Health Board\",Calculations!$E$2=\"Shetland Islands Local Authority\",Calculations!$E$2=\"Eilean Siar Local Authority\"),OR($F207=1,$F207=5)),0,new_yllv2(VALUE(LEFT(Options!$B$24,2)),$C207,$D207,$E207,$F207,2016,$I207+$J207,1,$H207,$G207*$H207,Options!B8)))","v":5640.2229377844997},{"$f":"IF(AND(OR(Calculations!$E$2=\"Orkney Health Board\",Calculations!$E$2=\"Orkney Islands Local Authority\"),$F207=1),0,IF(AND(OR(Calculations!$E$2=\"Shetland Health Board\",Calculations!$E$2=\"Western Isles Health Board\",Calculations!$E$2=\"Shetland Islands Local Authority\",Calculations!$E$2=\"Eilean Siar Local Authority\"),OR($F207=1,$F207=5)),0,hosp_count(VALUE(LEFT(Options!$B$24,2)),$C207,$E207,$F207,2016,$I207,1,$H207,$G207*$H207, Options!B8)))","v":10026.054313548},{"$f":"IF(AND(OR(Calculations!$E$2=\"Orkney Health Board\",Calculations!$E$2=\"Orkney Islands Local Authority\"),$F207=1),0,IF(AND(OR(Calculations!$E$2=\"Shetland Health Board\",Calculations!$E$2=\"Western Isles Health Board\",Calculations!$E$2=\"Shetland Islands Local Authority\",Calculations!$E$2=\"Eilean Siar Local Authority\"),OR($F207=1,$F207=5)),0,hosp_count(VALUE(LEFT(Options!$B$24,2)),$C207,$E207,$F207,2016,$I207+$J207,1,$H207,$G207*$H207, Options!B8)))","v":9985.2019410954999},{"$f":"IF(AND(OR(Calculations!$E$2=\"Orkney Health Board\",Calculations!$E$2=\"Orkney Islands Local Authority\"),$F207=1),0,IF(AND(OR(Calculations!$E$2=\"Shetland Health Board\",Calculations!$E$2=\"Western Isles Health Board\",Calculations!$E$2=\"Shetland Islands Local Authority\",Calculations!$E$2=\"Eilean Siar Local Authority\"),OR($F207=1,$F207=5)),0,prem_mort(VALUE(LEFT(Options!$B$24,2)),$C207,$E207,$F207,2016,$I207,1,$H207,$G207*$H207,Options!B8)))","v":494.7868605095},{"$f":"IF(AND(OR(Calculations!$E$2=\"Orkney Health Board\",Calculations!$E$2=\"Orkney Islands Local Authority\"),$F207=1),0,IF(AND(OR(Calculations!$E$2=\"Shetland Health Board\",Calculations!$E$2=\"Western Isles Health Board\",Calculations!$E$2=\"Shetland Islands Local Authority\",Calculations!$E$2=\"Eilean Siar Local Authority\"),OR($F207=1,$F207=5)),0,prem_mort(VALUE(LEFT(Options!$B$24,2)),$C207,$E207,$F207,2016,$I207+$J207,1,$H207,$G207*$H207,Options!B8)))","v":492.5958037199},2031.1447475759442,2022.1502615759443,23256.611422034075,23153.624539345237,41157.85843,40990.155751623563,2031.1447475759442,2022.1502615759443,10155723.737879721,10110751.307879722,116283057.11017038,115768122.69672619,205789292.15000001,204950778.75811782,10155723.737879721,10110751.307879722,5000]
[null,"Male 75-79",76.907700000000006,86.357700000000008,"male",4,{"$f":"HLOOKUP(Calculations!$E$2,'Prevalence Rates'!$C$3:$BC$249,'Prevalence Rates'!$BD208,FALSE)","v":0.21313934339187848},{"$f":"HLOOKUP(Calculations!$E$2,'Population 2016'!$C$3:$BC$249,'Population 2016'!BD208,FALSE)","v":17285},0,{"$f":"HLOOKUP(Results!E$4,Targeting!$C$3:$F$249,Targeting!$G208,FALSE)","v":1307},{"$f":"IF(AND(OR(Calculations!$E$2=\"Orkney Health Board\",Calculations!$E$2=\"Orkney Islands Local Authority\"),$F208=1),0,IF(AND(OR(Calculations!$E$2=\"Shetland Health Board\",Calculations!$E$2=\"Western Isles Health Board\",Calculations!$E$2=\"Shetland Islands Local Authority\",Calculations!$E$2=\"Eilean Siar Local Authority\"),OR($F208=1,$F208=5)),0,new_ci(VALUE(LEFT(Options!$B$24,2)),$C208,$E208,$F208,2016,$I208,1,$H208,$G208*$H208,Options!B8)))","v":510.22349799800003},{"$f":"IF(AND(OR(Calculations!$E$2=\"Orkney Health Board\",Calculations!$E$2=\"Orkney Islands Local Authority\"),$F208=1),0,IF(AND(OR(Calculations!$E$2=\"Shetland Health Board\",Calculations!$E$2=\"Western Isles Health Board\",Calculations!$E$2=\"Shetland Islands Local Authority\",Calculations!$E$2=\"Eilean Siar Local Authority\"),OR($F208=1,$F208=5)),0,new_ci(VALUE(LEFT(Options!$B$24,2)),$C208,$E208,$F208,2016,$I208+$J208,1,$H208,$G208*$H208,Options!B8)))","v":507.9448706691},{"$f":"IF(AND(OR(Calculations!$E$2=\"Orkney Health Board\",Calculations!$E$2=\"Orkney Islands Local Authority\"),$F208=1),0,IF(AND(OR(Calculations!$E$2=\"Shetland Health Board\",Calculations!$E$2=\"Western Isles Health Board\",Calculations!$E$2=\"Shetland Islands Local Authority\",Calculations!$E$2=\"Eilean Siar Local Authority\"),OR($F208=1,$F208=5)),0,new_yllv2(VALUE(LEFT(Options!$B$24,2)),$C208,$D208,$E208,$F208,2016,$I208,1,$H208,$G208*$H208,Options!B8)))","v":4311.3885580831002},{"$f":"IF(AND(OR(Calculations!$E$2=\"Orkney Health Board\",Calculations!$E$2=\"Orkney Islands Local Authority\"),$F208=1),0,IF(AND(OR(Calculations!$E$2=\"Shetland Health Board\",Calculations!$E$2=\"Western Isles Health Board\",Calculations!$E$2=\"Shetland Islands Local Authority\",Calculations!$E$2=\"Eilean Siar Local Authority\"),OR($F208=1,$F208=5)),0,new_yllv2(VALUE(LEFT(Options!$B$24,2)),$C208,$D208,$E208,$F208,2016,$I208+$J208,1,$H208,$G208*$H208,Options!B8)))","v":4292.1341571538997},{"$f":"IF(AND(OR(Calculations!$E$2=\"Orkney Health Board\",Calculations!$E$2=\"Orkney Islands Local Authority\"),$F208=1),0,IF(AND(OR(Calculations!$E$2=\"Shetland Health Board\",Calculations!$E$2=\"Western Isles Health Board\",Calculations!$E$2=\"Shetland Islands Local Authority\",Calculations!$E$2=\"Eilean Siar Local Authority\"),OR($F208=1,$F208=5)),0,hosp_count(VALUE(LEFT(Options!$B$24,2)),$C208,$E208,$F208,2016,$I208,1,$H208,$G208*$H208, Options!B8)))","v":8500.7040771635002},{"$f":"IF(AND(OR(Calculations!$E$2=\"Orkney Health Board\",Calculations!$E$2=\"Orkney Islands Local Authority\"),$F208=1),0,IF(AND(OR(Calculations!$E$2=\"Shetland Health Board\",Calculations!$E$2=\"Western Isles Health Board\",Calculations!$E$2=\"Shetland Islands Local Authority\",Calculations!$E$2=\"Eilean Siar Local Authority\"),OR($F208=1,$F208=5)),0,hosp_count(VALUE(LEFT(Options!$B$24,2)),$C208,$E208,$F208,2016,$I208+$J208,1,$H208,$G208*$H208, Options!B8)))","v":8465.9615824434004},{"$f":"IF(AND(OR(Calculations!$E$2=\"Orkney Health Board\",Calculations!$E$2=\"Orkney Islands Local Authority\"),$F208=1),0,IF(AND(OR(Calculations!$E$2=\"Shetland Health Board\",Calculations!$E$2=\"Western Isles Health Board\",Calculations!$E$2=\"Shetland Islands Local Authority\",Calculations!$E$2=\"Eilean Siar Local Authority\"),OR($F208=1,$F208=5)),0,prem_mort(VALUE(LEFT(Options!$B$24,2)),$C208,$E208,$F208,2016,$I208,1,$H208,$G208*$H208,Options!B8)))","v":0},{"$f":"IF(AND(OR(Calculations!$E$2=\"Orkney Health Board\",Calculations!$E$2=\"Orkney Islands Local Authority\"),$F208=1),0,IF(AND(OR(Calculations!$E$2=\"Shetland Health Board\",Calculations!$E$2=\"Western Isles Health Board\",Calculations!$E$2=\"Shetland Islands Local Authority\",Calculations!$E$2=\"Eilean Siar Local Authority\"),OR($F208=1,$F208=5)),0,prem_mort(VALUE(LEFT(Options!$B$24,2)),$C208,$E208,$F208,2016,$I208+$J208,1,$H208,$G208*$H208,Options!B8)))","v":0},2951.8281631356667,2938.6454768244143,24942.947978496388,24831.554279166328,49179.659110000001,48978.661165423204,0,0,11807312.652542667,11754581.907297658,99771791.91398555,99326217.116665319,196718636.44,195914644.66169283,0,0,4000]
[null,"Male 80-84",81.797089,88.627089999999995,"male",4,{"$f":"HLOOKUP(Calculations!$E$2,'Prevalence Rates'!$C$3:$BC$249,'Prevalence Rates'!$BD209,FALSE)","v":0.21313934339187848},{"$f":"HLOOKUP(Calculations!$E$2,'Population 2016'!$C$3:$BC$249,'Population 2016'!BD209,FALSE)","v":11713},0,{"$f":"HLOOKUP(Results!E$4,Targeting!$C$3:$F$249,Targeting!$G209,FALSE)","v":886},{"$f":"IF(AND(OR(Calculations!$E$2=\"Orkney Health Board\",Calculations!$E$2=\"Orkney Islands Local Authority\"),$F209=1),0,IF(AND(OR(Calculations!$E$2=\"Shetland Health Board\",Calculations!$E$2=\"Western Isles Health Board\",Calculations!$E$2=\"Shetland Islands Local Authority\",Calculations!$E$2=\"Eilean Siar Local Authority\"),OR($F209=1,$F209=5)),0,new_ci(VALUE(LEFT(Options!$B$24,2)),$C209,$E209,$F209,2016,$I209,1,$H209,$G209*$H209,Options!B8)))","v":496.63366837360002},{"$f":"IF(AND(OR(Calculations!$E$2=\"Orkney Health Board\",Calculations!$E$2=\"Orkney Islands Local Authority\"),$F209=1),0,IF(AND(OR(Calculations!$E$2=\"Shetland Health Board\",Calculations!$E$2=\"Western Isles Health Board\",Calculations!$E$2=\"Shetland Islands Local Authority\",Calculations!$E$2=\"Eilean Siar Local Authority\"),OR($F209=1,$F209=5)),0,new_ci(VALUE(LEFT(Options!$B$24,2)),$C209,$E209,$F209,2016,$I209+$J209,1,$H209,$G209*$H209,Options!B8)))","v":494.44121184620002},{"$f":"IF(AND(OR(Calculations!$E$2=\"Orkney Health Board\",Calculations!$E$2=\"Orkney Islands Local Authority\"),$F209=1),0,IF(AND(OR(Calculations!$E$2=\"Shetland Health Board\",Calculations!$E$2=\"Western Isles Health Board\",Calculations!$E$2=\"Shetland Islands Local Authority\",Calculations!$E$2=\"Eilean Siar Local Authority\"),OR($F209=1,$F209=5)),0,new_yllv2(VALUE(LEFT(Options!$B$24,2)),$C209,$D209,$E209,$F209,2016,$I209,1,$H209,$G209*$H209,Options!B8)))","v":2895.3747832518002},{"$f":"IF(AND(OR(Calculations!$E$2=\"Orkney Health Board\",Calculations!$E$2=\"Orkney Islands Local Authority\"),$F209=1),0,IF(AND(OR(Calculations!$E$2=\"Shetland Health Board\",Calculations!$E$2=\"Western Isles Health Board\",Calculations!$E$2=\"Shetland Islands Local Authority\",Calculations!$E$2=\"Eilean Siar Local Authority\"),OR($F209=1,$F209=5)),0,new_yllv2(VALUE(LEFT(Options!$B$24,2)),$C209,$D209,$E209,$F209,2016,$I209+$J209,1,$H209,$G209*$H209,Options!B8)))","v":2882.5927595046001},{"$f":"IF(AND(OR(Calculations!$E$2=\"Orkney Health Board\",Calculations!$E$2=\"Orkney Islands Local Authority\"),$F209=1),0,IF(AND(OR(Calculations!$E$2=\"Shetland Health Board\",Calculations!$E$2=\"Western Isles Health Board\",Calculations!$E$2=\"Shetland Islands Local Authority\",Calculations!$E$2=\"Eilean Siar Local Authority\"),OR($F209=1,$F209=5)),0,hosp_count(VALUE(LEFT(Options!$B$24,2)),$C209,$E209,$F209,2016,$I209,1,$H209,$G209*$H209, Options!B8)))","v":6852.1264324473996},{"$f":"IF(AND(OR(Calculations!$E$2=\"Orkney Health Board\",Calculations!$E$2=\"Orkney Islands Local Authority\"),$F209=1),0,IF(AND(OR(Calculations!$E$2=\"Shetland Health Board\",Calculations!$E$2=\"Western Isles Health Board\",Calculations!$E$2=\"Shetland Islands Local Authority\",Calculations!$E$2=\"Eilean Siar Local Authority\"),OR($F209=1,$F209=5)),0,hosp_count(VALUE(LEFT(Options!$B$24,2)),$C209,$E209,$F209,2016,$I209+$J209,1,$H209,$G209*$H209, Options!B8)))","v":6824.1114183606996},{"$f":"IF(AND(OR(Calculations!$E$2=\"Orkney Health Board\",Calculations!$E$2=\"Orkney Islands Local Authority\"),$F209=1),0,IF(AND(OR(Calculations!$E$2=\"Shetland Health Board\",Calculations!$E$2=\"Western Isles Health Board\",Calculations!$E$2=\"Shetland Islands Local Authority\",Calculations!$E$2=\"Eilean Siar Local Authority\"),OR($F209=1,$F209=5)),0,prem_mort(VALUE(LEFT(Options!$B$24,2)),$C209,$E209,$F209,2016,$I209,1,$H209,$G209*$H209,Options!B8)))","v":0},{"$f":"IF(AND(OR(Calculations!$E$2=\"Orkney Health Board\",Calculations!$E$2=\"Orkney Islands Local Authority\"),$F209=1),0,IF(AND(OR(Calculations!$E$2=\"Shetland Health Board\",Calculations!$E$2=\"Western Isles Health Board\",Calculations!$E$2=\"Shetland Islands Local Authority\",Calculations!$E$2=\"Eilean Siar Local Authority\"),OR($F209=1,$F209=5)),0,prem_mort(VALUE(LEFT(Options!$B$24,2)),$C209,$E209,$F209,2016,$I209+$J209,1,$H209,$G209*$H209,Options!B8)))","v":0},4240.0210737949292,4221.302927057116,24719.327100245879,24610.200286046274,58500.182979999998,58261.004169390413,0,0,10600052.684487322,10553257.317642789,61798317.750614695,61525500.715115689,146250457.44999999,145652510.42347604,0,0,2500]
[null,"Male 85-89",86.630752999999999,91.420750000000012,"male",4,{"$f":"HLOOKUP(Calculations!$E$2,'Prevalence Rates'!$C$3:$BC$249,'Prevalence Rates'!$BD210,FALSE)","v":0.21313934339187848},{"$f":"HLOOKUP(Calculations!$E$2,'Population 2016'!$C$3:$BC$249,'Population 2016'!BD210,FALSE)","v":6184},0,{"$f":"HLOOKUP(Results!E$4,Targeting!$C$3:$F$249,Targeting!$G210,FALSE)","v":468},{"$f":"IF(AND(OR(Calculations!$E$2=\"Orkney Health Board\",Calculations!$E$2=\"Orkney Islands Local Authority\"),$F210=1),0,IF(AND(OR(Calculations!$E$2=\"Shetland Health Board\",Calculations!$E$2=\"Western Isles Health Board\",Calculations!$E$2=\"Shetland Islands Local Authority\",Calculations!$E$2=\"Eilean Siar Local Authority\"),OR($F210=1,$F210=5)),0,new_ci(VALUE(LEFT(Options!$B$24,2)),$C210,$E210,$F210,2016,$I210,1,$H210,$G210*$H210,Options!B8)))","v":373.94370538380002},{"$f":"IF(AND(OR(Calculations!$E$2=\"Orkney Health Board\",Calculations!$E$2=\"Orkney Islands Local Authority\"),$F210=1),0,IF(AND(OR(Calculations!$E$2=\"Shetland Health Board\",Calculations!$E$2=\"Western Isles Health Board\",Calculations!$E$2=\"Shetland Islands Local Authority\",Calculations!$E$2=\"Eilean Siar Local Authority\"),OR($F210=1,$F210=5)),0,new_ci(VALUE(LEFT(Options!$B$24,2)),$C210,$E210,$F210,2016,$I210+$J210,1,$H210,$G210*$H210,Options!B8)))","v":372.31999183260001},{"$f":"IF(AND(OR(Calculations!$E$2=\"Orkney Health Board\",Calculations!$E$2=\"Orkney Islands Local Authority\"),$F210=1),0,IF(AND(OR(Calculations!$E$2=\"Shetland Health Board\",Calculations!$E$2=\"Western Isles Health Board\",Calculations!$E$2=\"Shetland Islands Local Authority\",Calculations!$E$2=\"Eilean Siar Local Authority\"),OR($F210=1,$F210=5)),0,new_yllv2(VALUE(LEFT(Options!$B$24,2)),$C210,$D210,$E210,$F210,2016,$I210,1,$H210,$G210*$H210,Options!B8)))","v":1417.2455215734999},{"$f":"IF(AND(OR(Calculations!$E$2=\"Orkney Health Board\",Calculations!$E$2=\"Orkney Islands Local Authority\"),$F210=1),0,IF(AND(OR(Calculations!$E$2=\"Shetland Health Board\",Calculations!$E$2=\"Western Isles Health Board\",Calculations!$E$2=\"Shetland Islands Local Authority\",Calculations!$E$2=\"Eilean Siar Local Authority\"),OR($F210=1,$F210=5)),0,new_yllv2(VALUE(LEFT(Options!$B$24,2)),$C210,$D210,$E210,$F210,2016,$I210+$J210,1,$H210,$G210*$H210,Options!B8)))","v":1411.0916520855999},{"$f":"IF(AND(OR(Calculations!$E$2=\"Orkney Health Board\",Calculations!$E$2=\"Orkney Islands Local Authority\"),$F210=1),0,IF(AND(OR(Calculations!$E$2=\"Shetland Health Board\",Calculations!$E$2=\"Western Isles Health Board\",Calculations!$E$2=\"Shetland Islands Local Authority\",Calculations!$E$2=\"Eilean Siar Local Authority\"),OR($F210=1,$F210=5)),0,hosp_count(VALUE(LEFT(Options!$B$24,2)),$C210,$E210,$F210,2016,$I210,1,$H210,$G210*$H210, Options!B8)))","v":4294.7648959575999},{"$f":"IF(AND(OR(Calculations!$E$2=\"Orkney Health Board\",Calculations!$E$2=\"Orkney Islands Local Authority\"),$F210=1),0,IF(AND(OR(Calculations!$E$2=\"Shetland Health Board\",Calculations!$E$2=\"Western Isles Health Board\",Calculations!$E$2=\"Shetland Islands Local Authority\",Calculations!$E$2=\"Eilean Siar Local Authority\"),OR($F210=1,$F210=5)),0,hosp_count(VALUE(LEFT(Options!$B$24,2)),$C210,$E210,$F210,2016,$I210+$J210,1,$H210,$G210*$H210, Options!B8)))","v":4277.1971652579996},{"$f":"IF(AND(OR(Calculations!$E$2=\"Orkney Health Board\",Calculations!$E$2=\"Orkney Islands Local Authority\"),$F210=1),0,IF(AND(OR(Calculations!$E$2=\"Shetland Health Board\",Calculations!$E$2=\"Western Isles Health Board\",Calculations!$E$2=\"Shetland Islands Local Authority\",Calculations!$E$2=\"Eilean Siar Local Authority\"),OR($F210=1,$F210=5)),0,prem_mort(VALUE(LEFT(Options!$B$24,2)),$C210,$E210,$F210,2016,$I210,1,$H210,$G210*$H210,Options!B8)))","v":0},{"$f":"IF(AND(OR(Calculations!$E$2=\"Orkney Health Board\",Calculations!$E$2=\"Orkney Islands Local Authority\"),$F210=1),0,IF(AND(OR(Calculations!$E$2=\"Shetland Health Board\",Calculations!$E$2=\"Western Isles Health Board\",Calculations!$E$2=\"Shetland Islands Local Authority\",Calculations!$E$2=\"Eilean Siar Local Authority\"),OR($F210=1,$F210=5)),0,prem_mort(VALUE(LEFT(Options!$B$24,2)),$C210,$E210,$F210,2016,$I210+$J210,1,$H210,$G210*$H210,Options!B8)))","v":0},6046.955132338293,6020.6984448997418,22917.941810696961,22818.42904407503,69449.626390000005,69165.542775840862,0,0,9070432.6985074393,9031047.6673496123,34376912.716045439,34227643.566112548,104174439.58500001,103748314.16376129,0,0,1500]
[null,"Male 90+",92.215477000000007,95.515479999999997,"male",4,{"$f":"HLOOKUP(Calculations!$E$2,'Prevalence Rates'!$C$3:$BC$249,'Prevalence Rates'!$BD211,FALSE)","v":0.21313934339187848},{"$f":"HLOOKUP(Calculations!$E$2,'Population 2016'!$C$3:$BC$249,'Population 2016'!BD211,FALSE)","v":2544},0,{"$f":"HLOOKUP(Results!E$4,Targeting!$C$3:$F$249,Targeting!$G211,FALSE)","v":192},{"$f":"IF(AND(OR(Calculations!$E$2=\"Orkney Health Board\",Calculations!$E$2=\"Orkney Islands Local Authority\"),$F211=1),0,IF(AND(OR(Calculations!$E$2=\"Shetland Health Board\",Calculations!$E$2=\"Western Isles Health Board\",Calculations!$E$2=\"Shetland Islands Local Authority\",Calculations!$E$2=\"Eilean Siar Local Authority\"),OR($F211=1,$F211=5)),0,new_ci(VALUE(LEFT(Options!$B$24,2)),$C211,$E211,$F211,2016,$I211,1,$H211,$G211*$H211,Options!B8)))","v":230.56929896490001},{"$f":"IF(AND(OR(Calculations!$E$2=\"Orkney Health Board\",Calculations!$E$2=\"Orkney Islands Local Authority\"),$F211=1),0,IF(AND(OR(Calculations!$E$2=\"Shetland Health Board\",Calculations!$E$2=\"Western Isles Health Board\",Calculations!$E$2=\"Shetland Islands Local Authority\",Calculations!$E$2=\"Eilean Siar Local Authority\"),OR($F211=1,$F211=5)),0,new_ci(VALUE(LEFT(Options!$B$24,2)),$C211,$E211,$F211,2016,$I211+$J211,1,$H211,$G211*$H211,Options!B8)))","v":229.59974164650001},{"$f":"IF(AND(OR(Calculations!$E$2=\"Orkney Health Board\",Calculations!$E$2=\"Orkney Islands Local Authority\"),$F211=1),0,IF(AND(OR(Calculations!$E$2=\"Shetland Health Board\",Calculations!$E$2=\"Western Isles Health Board\",Calculations!$E$2=\"Shetland Islands Local Authority\",Calculations!$E$2=\"Eilean Siar Local Authority\"),OR($F211=1,$F211=5)),0,new_yllv2(VALUE(LEFT(Options!$B$24,2)),$C211,$D211,$E211,$F211,2016,$I211,1,$H211,$G211*$H211,Options!B8)))","v":530.31007932720001},{"$f":"IF(AND(OR(Calculations!$E$2=\"Orkney Health Board\",Calculations!$E$2=\"Orkney Islands Local Authority\"),$F211=1),0,IF(AND(OR(Calculations!$E$2=\"Shetland Health Board\",Calculations!$E$2=\"Western Isles Health Board\",Calculations!$E$2=\"Shetland Islands Local Authority\",Calculations!$E$2=\"Eilean Siar Local Authority\"),OR($F211=1,$F211=5)),0,new_yllv2(VALUE(LEFT(Options!$B$24,2)),$C211,$D211,$E211,$F211,2016,$I211+$J211,1,$H211,$G211*$H211,Options!B8)))","v":528.08009458619995},{"$f":"IF(AND(OR(Calculations!$E$2=\"Orkney Health Board\",Calculations!$E$2=\"Orkney Islands Local Authority\"),$F211=1),0,IF(AND(OR(Calculations!$E$2=\"Shetland Health Board\",Calculations!$E$2=\"Western Isles Health Board\",Calculations!$E$2=\"Shetland Islands Local Authority\",Calculations!$E$2=\"Eilean Siar Local Authority\"),OR($F211=1,$F211=5)),0,hosp_count(VALUE(LEFT(Options!$B$24,2)),$C211,$E211,$F211,2016,$I211,1,$H211,$G211*$H211, Options!B8)))","v":2154.1580945711999},{"$f":"IF(AND(OR(Calculations!$E$2=\"Orkney Health Board\",Calculations!$E$2=\"Orkney Islands Local Authority\"),$F211=1),0,IF(AND(OR(Calculations!$E$2=\"Shetland Health Board\",Calculations!$E$2=\"Western Isles Health Board\",Calculations!$E$2=\"Shetland Islands Local Authority\",Calculations!$E$2=\"Eilean Siar Local Authority\"),OR($F211=1,$F211=5)),0,hosp_count(VALUE(LEFT(Options!$B$24,2)),$C211,$E211,$F211,2016,$I211+$J211,1,$H211,$G211*$H211, Options!B8)))","v":2145.3706703357998},{"$f":"IF(AND(OR(Calculations!$E$2=\"Orkney Health Board\",Calculations!$E$2=\"Orkney Islands Local Authority\"),$F211=1),0,IF(AND(OR(Calculations!$E$2=\"Shetland Health Board\",Calculations!$E$2=\"Western Isles Health Board\",Calculations!$E$2=\"Shetland Islands Local Authority\",Calculations!$E$2=\"Eilean Siar Local Authority\"),OR($F211=1,$F211=5)),0,prem_mort(VALUE(LEFT(Options!$B$24,2)),$C211,$E211,$F211,2016,$I211,1,$H211,$G211*$H211,Options!B8)))","v":0},{"$f":"IF(AND(OR(Calculations!$E$2=\"Orkney Health Board\",Calculations!$E$2=\"Orkney Islands Local Authority\"),$F211=1),0,IF(AND(OR(Calculations!$E$2=\"Shetland Health Board\",Calculations!$E$2=\"Western Isles Health Board\",Calculations!$E$2=\"Shetland Islands Local Authority\",Calculations!$E$2=\"Eilean Siar Local Authority\"),OR($F211=1,$F211=5)),0,prem_mort(VALUE(LEFT(Options!$B$24,2)),$C211,$E211,$F211,2016,$I211+$J211,1,$H211,$G211*$H211,Options!B8)))","v":0},9063.258607110849,9025.147077299529,20845.521986132073,20757.865353231129,84676.025729999994,84330.608110683956,0,0,9063258.6071108487,9025147.0772995297,20845521.986132074,20757865.353231128,84676025.729999989,84330608.110683963,0,0,1000]
[null,"Female 0-4",2.0384007,81.468401,"female",5,{"$f":"HLOOKUP(Calculations!$E$2,'Prevalence Rates'!$C$3:$BC$249,'Prevalence Rates'!$BD212,FALSE)","v":0},{"$f":"HLOOKUP(Calculations!$E$2,'Population 2016'!$C$3:$BC$249,'Population 2016'!BD212,FALSE)","v":0},0,{"$f":"HLOOKUP(Results!E$4,Targeting!$C$3:$F$249,Targeting!$G212,FALSE)","v":0},{"$f":"IF(AND(OR(Calculations!$E$2=\"Orkney Health Board\",Calculations!$E$2=\"Orkney Islands Local Authority\"),$F212=1),0,IF(AND(OR(Calculations!$E$2=\"Shetland Health Board\",Calculations!$E$2=\"Western Isles Health Board\",Calculations!$E$2=\"Shetland Islands Local Authority\",Calculations!$E$2=\"Eilean Siar Local Authority\"),OR($F212=1,$F212=5)),0,new_ci(VALUE(LEFT(Options!$B$24,2)),$C212,$E212,$F212,2016,$I212,1,$H212,$G212*$H212,Options!B8)))","v":{"$error":"#VALUE!"}},{"$f":"IF(AND(OR(Calculations!$E$2=\"Orkney Health Board\",Calculations!$E$2=\"Orkney Islands Local Authority\"),$F212=1),0,IF(AND(OR(Calculations!$E$2=\"Shetland Health Board\",Calculations!$E$2=\"Western Isles Health Board\",Calculations!$E$2=\"Shetland Islands Local Authority\",Calculations!$E$2=\"Eilean Siar Local Authority\"),OR($F212=1,$F212=5)),0,new_ci(VALUE(LEFT(Options!$B$24,2)),$C212,$E212,$F212,2016,$I212+$J212,1,$H212,$G212*$H212,Options!B8)))","v":{"$error":"#VALUE!"}},{"$f":"IF(AND(OR(Calculations!$E$2=\"Orkney Health Board\",Calculations!$E$2=\"Orkney Islands Local Authority\"),$F212=1),0,IF(AND(OR(Calculations!$E$2=\"Shetland Health Board\",Calculations!$E$2=\"Western Isles Health Board\",Calculations!$E$2=\"Shetland Islands Local Authority\",Calculations!$E$2=\"Eilean Siar Local Authority\"),OR($F212=1,$F212=5)),0,new_yllv2(VALUE(LEFT(Options!$B$24,2)),$C212,$D212,$E212,$F212,2016,$I212,1,$H212,$G212*$H212,Options!B8)))","v":{"$error":"#VALUE!"}},{"$f":"IF(AND(OR(Calculations!$E$2=\"Orkney Health Board\",Calculations!$E$2=\"Orkney Islands Local Authority\"),$F212=1),0,IF(AND(OR(Calculations!$E$2=\"Shetland Health Board\",Calculations!$E$2=\"Western Isles Health Board\",Calculations!$E$2=\"Shetland Islands Local Authority\",Calculations!$E$2=\"Eilean Siar Local Authority\"),OR($F212=1,$F212=5)),0,new_yllv2(VALUE(LEFT(Options!$B$24,2)),$C212,$D212,$E212,$F212,2016,$I212+$J212,1,$H212,$G212*$H212,Options!B8)))","v":{"$error":"#VALUE!"}},{"$f":"IF(AND(OR(Calculations!$E$2=\"Orkney Health Board\",Calculations!$E$2=\"Orkney Islands Local Authority\"),$F212=1),0,IF(AND(OR(Calculations!$E$2=\"Shetland Health Board\",Calculations!$E$2=\"Western Isles Health Board\",Calculations!$E$2=\"Shetland Islands Local Authority\",Calculations!$E$2=\"Eilean Siar Local Authority\"),OR($F212=1,$F212=5)),0,hosp_count(VALUE(LEFT(Options!$B$24,2)),$C212,$E212,$F212,2016,$I212,1,$H212,$G212*$H212, Options!B8)))","v":{"$error":"#VALUE!"}},{"$f":"IF(AND(OR(Calculations!$E$2=\"Orkney Health Board\",Calculations!$E$2=\"Orkney Islands Local Authority\"),$F212=1),0,IF(AND(OR(Calculations!$E$2=\"Shetland Health Board\",Calculations!$E$2=\"Western Isles Health Board\",Calculations!$E$2=\"Shetland Islands Local Authority\",Calculations!$E$2=\"Eilean Siar Local Authority\"),OR($F212=1,$F212=5)),0,hosp_count(VALUE(LEFT(Options!$B$24,2)),$C212,$E212,$F212,2016,$I212+$J212,1,$H212,$G212*$H212, Options!B8)))","v":{"$error":"#VALUE!"}},{"$f":"IF(AND(OR(Calculations!$E$2=\"Orkney Health Board\",Calculations!$E$2=\"Orkney Islands Local Authority\"),$F212=1),0,IF(AND(OR(Calculations!$E$2=\"Shetland Health Board\",Calculations!$E$2=\"Western Isles Health Board\",Calculations!$E$2=\"Shetland Islands Local Authority\",Calculations!$E$2=\"Eilean Siar Local Authority\"),OR($F212=1,$F212=5)),0,prem_mort(VALUE(LEFT(Options!$B$24,2)),$C212,$E212,$F212,2016,$I212,1,$H212,$G212*$H212,Options!B8)))","v":{"$error":"#VALUE!"}},{"$f":"IF(AND(OR(Calculations!$E$2=\"Orkney Health Board\",Calculations!$E$2=\"Orkney Islands Local Authority\"),$F212=1),0,IF(AND(OR(Calculations!$E$2=\"Shetland Health Board\",Calculations!$E$2=\"Western Isles Health Board\",Calculations!$E$2=\"Shetland Islands Local Authority\",Calculations!$E$2=\"Eilean Siar Local Authority\"),OR($F212=1,$F212=5)),0,prem_mort(VALUE(LEFT(Options!$B$24,2)),$C212,$E212,$F212,2016,$I212+$J212,1,$H212,$G212*$H212,Options!B8)))","v":{"$error":"#VALUE!"}},{"$error":"#VALUE!"},{"$error":"#VALUE!"},{"$error":"#VALUE!"},{"$error":"#VALUE!"},{"$error":"#VALUE!"},{"$error":"#VALUE!"},{"$error":"#VALUE!"},{"$error":"#VALUE!"},{"$error":"#VALUE!"},{"$error":"#VALUE!"},{"$error":"#VALUE!"},{"$error":"#VALUE!"},{"$error":"#VALUE!"},{"$error":"#VALUE!"},{"$error":"#VALUE!"},{"$error":"#VALUE!"},5000]
[null,"Female 5-9",6.9792794999999996,81.439279999999997,"female",5,{"$f":"HLOOKUP(Calculations!$E$2,'Prevalence Rates'!$C$3:$BC$249,'Prevalence Rates'!$BD213,FALSE)","v":0},{"$f":"HLOOKUP(Calculations!$E$2,'Population 2016'!$C$3:$BC$249,'Population 2016'!BD213,FALSE)","v":0},0,{"$f":"HLOOKUP(Results!E$4,Targeting!$C$3:$F$249,Targeting!$G213,FALSE)","v":0},{"$f":"IF(AND(OR(Calculations!$E$2=\"Orkney Health Board\",Calculations!$E$2=\"Orkney Islands Local Authority\"),$F213=1),0,IF(AND(OR(Calculations!$E$2=\"Shetland Health Board\",Calculations!$E$2=\"Western Isles Health Board\",Calculations!$E$2=\"Shetland Islands Local Authority\",Calculations!$E$2=\"Eilean Siar Local Authority\"),OR($F213=1,$F213=5)),0,new_ci(VALUE(LEFT(Options!$B$24,2)),$C213,$E213,$F213,2016,$I213,1,$H213,$G213*$H213,Options!B8)))","v":{"$error":"#VALUE!"}},{"$f":"IF(AND(OR(Calculations!$E$2=\"Orkney Health Board\",Calculations!$E$2=\"Orkney Islands Local Authority\"),$F213=1),0,IF(AND(OR(Calculations!$E$2=\"Shetland Health Board\",Calculations!$E$2=\"Western Isles Health Board\",Calculations!$E$2=\"Shetland Islands Local Authority\",Calculations!$E$2=\"Eilean Siar Local Authority\"),OR($F213=1,$F213=5)),0,new_ci(VALUE(LEFT(Options!$B$24,2)),$C213,$E213,$F213,2016,$I213+$J213,1,$H213,$G213*$H213,Options!B8)))","v":{"$error":"#VALUE!"}},{"$f":"IF(AND(OR(Calculations!$E$2=\"Orkney Health Board\",Calculations!$E$2=\"Orkney Islands Local Authority\"),$F213=1),0,IF(AND(OR(Calculations!$E$2=\"Shetland Health Board\",Calculations!$E$2=\"Western Isles Health Board\",Calculations!$E$2=\"Shetland Islands Local Authority\",Calculations!$E$2=\"Eilean Siar Local Authority\"),OR($F213=1,$F213=5)),0,new_yllv2(VALUE(LEFT(Options!$B$24,2)),$C213,$D213,$E213,$F213,2016,$I213,1,$H213,$G213*$H213,Options!B8)))","v":{"$error":"#VALUE!"}},{"$f":"IF(AND(OR(Calculations!$E$2=\"Orkney Health Board\",Calculations!$E$2=\"Orkney Islands Local Authority\"),$F213=1),0,IF(AND(OR(Calculations!$E$2=\"Shetland Health Board\",Calculations!$E$2=\"Western Isles Health Board\",Calculations!$E$2=\"Shetland Islands Local Authority\",Calculations!$E$2=\"Eilean Siar Local Authority\"),OR($F213=1,$F213=5)),0,new_yllv2(VALUE(LEFT(Options!$B$24,2)),$C213,$D213,$E213,$F213,2016,$I213+$J213,1,$H213,$G213*$H213,Options!B8)))","v":{"$error":"#VALUE!"}},{"$f":"IF(AND(OR(Calculations!$E$2=\"Orkney Health Board\",Calculations!$E$2=\"Orkney Islands Local Authority\"),$F213=1),0,IF(AND(OR(Calculations!$E$2=\"Shetland Health Board\",Calculations!$E$2=\"Western Isles Health Board\",Calculations!$E$2=\"Shetland Islands Local Authority\",Calculations!$E$2=\"Eilean Siar Local Authority\"),OR($F213=1,$F213=5)),0,hosp_count(VALUE(LEFT(Options!$B$24,2)),$C213,$E213,$F213,2016,$I213,1,$H213,$G213*$H213, Options!B8)))","v":{"$error":"#VALUE!"}},{"$f":"IF(AND(OR(Calculations!$E$2=\"Orkney Health Board\",Calculations!$E$2=\"Orkney Islands Local Authority\"),$F213=1),0,IF(AND(OR(Calculations!$E$2=\"Shetland Health Board\",Calculations!$E$2=\"Western Isles Health Board\",Calculations!$E$2=\"Shetland Islands Local Authority\",Calculations!$E$2=\"Eilean Siar Local Authority\"),OR($F213=1,$F213=5)),0,hosp_count(VALUE(LEFT(Options!$B$24,2)),$C213,$E213,$F213,2016,$I213+$J213,1,$H213,$G213*$H213, Options!B8)))","v":{"$error":"#VALUE!"}},{"$f":"IF(AND(OR(Calculations!$E$2=\"Orkney Health Board\",Calculations!$E$2=\"Orkney Islands Local Authority\"),$F213=1),0,IF(AND(OR(Calculations!$E$2=\"Shetland Health Board\",Calculations!$E$2=\"Western Isles Health Board\",Calculations!$E$2=\"Shetland Islands Local Authority\",Calculations!$E$2=\"Eilean Siar Local Authority\"),OR($F213=1,$F213=5)),0,prem_mort(VALUE(LEFT(Options!$B$24,2)),$C213,$E213,$F213,2016,$I213,1,$H213,$G213*$H213,Options!B8)))","v":{"$error":"#VALUE!"}},{"$f":"IF(AND(OR(Calculations!$E$2=\"Orkney Health Board\",Calculations!$E$2=\"Orkney Islands Local Authority\"),$F213=1),0,IF(AND(OR(Calculations!$E$2=\"Shetland Health Board\",Calculations!$E$2=\"Western Isles Health Board\",Calculations!$E$2=\"Shetland Islands Local Authority\",Calculations!$E$2=\"Eilean Siar Local Authority\"),OR($F213=1,$F213=5)),0,prem_mort(VALUE(LEFT(Options!$B$24,2)),$C213,$E213,$F213,2016,$I213+$J213,1,$H213,$G213*$H213,Options!B8)))","v":{"$error":"#VALUE!"}},{"$error":"#VALUE!"},{"$error":"#VALUE!"},{"$error":"#VALUE!"},{"$error":"#VALUE!"},{"$error":"#VALUE!"},{"$error":"#VALUE!"},{"$error":"#VALUE!"},{"$error":"#VALUE!"},{"$error":"#VALUE!"},{"$error":"#VALUE!"},{"$error":"#VALUE!"},{"$error":"#VALUE!"},{"$error":"#VALUE!"},{"$error":"#VALUE!"},{"$error":"#VALUE!"},{"$error":"#VALUE!"},5500]
[null,"Female 10-15",12.478312000000001,81.948309999999992,"female",5,{"$f":"HLOOKUP(Calculations!$E$2,'Prevalence Rates'!$C$3:$BC$249,'Prevalence Rates'!$BD214,FALSE)","v":0},{"$f":"HLOOKUP(Calculations!$E$2,'Population 2016'!$C$3:$BC$249,'Population 2016'!BD214,FALSE)","v":0},0,{"$f":"HLOOKUP(Results!E$4,Targeting!$C$3:$F$249,Targeting!$G214,FALSE)","v":0},{"$f":"IF(AND(OR(Calculations!$E$2=\"Orkney Health Board\",Calculations!$E$2=\"Orkney Islands Local Authority\"),$F214=1),0,IF(AND(OR(Calculations!$E$2=\"Shetland Health Board\",Calculations!$E$2=\"Western Isles Health Board\",Calculations!$E$2=\"Shetland Islands Local Authority\",Calculations!$E$2=\"Eilean Siar Local Authority\"),OR($F214=1,$F214=5)),0,new_ci(VALUE(LEFT(Options!$B$24,2)),$C214,$E214,$F214,2016,$I214,1,$H214,$G214*$H214,Options!B8)))","v":{"$error":"#VALUE!"}},{"$f":"IF(AND(OR(Calculations!$E$2=\"Orkney Health Board\",Calculations!$E$2=\"Orkney Islands Local Authority\"),$F214=1),0,IF(AND(OR(Calculations!$E$2=\"Shetland Health Board\",Calculations!$E$2=\"Western Isles Health Board\",Calculations!$E$2=\"Shetland Islands Local Authority\",Calculations!$E$2=\"Eilean Siar Local Authority\"),OR($F214=1,$F214=5)),0,new_ci(VALUE(LEFT(Options!$B$24,2)),$C214,$E214,$F214,2016,$I214+$J214,1,$H214,$G214*$H214,Options!B8)))","v":{"$error":"#VALUE!"}},{"$f":"IF(AND(OR(Calculations!$E$2=\"Orkney Health Board\",Calculations!$E$2=\"Orkney Islands Local Authority\"),$F214=1),0,IF(AND(OR(Calculations!$E$2=\"Shetland Health Board\",Calculations!$E$2=\"Western Isles Health Board\",Calculations!$E$2=\"Shetland Islands Local Authority\",Calculations!$E$2=\"Eilean Siar Local Authority\"),OR($F214=1,$F214=5)),0,new_yllv2(VALUE(LEFT(Options!$B$24,2)),$C214,$D214,$E214,$F214,2016,$I214,1,$H214,$G214*$H214,Options!B8)))","v":{"$error":"#VALUE!"}},{"$f":"IF(AND(OR(Calculations!$E$2=\"Orkney Health Board\",Calculations!$E$2=\"Orkney Islands Local Authority\"),$F214=1),0,IF(AND(OR(Calculations!$E$2=\"Shetland Health Board\",Calculations!$E$2=\"Western Isles Health Board\",Calculations!$E$2=\"Shetland Islands Local Authority\",Calculations!$E$2=\"Eilean Siar Local Authority\"),OR($F214=1,$F214=5)),0,new_yllv2(VALUE(LEFT(Options!$B$24,2)),$C214,$D214,$E214,$F214,2016,$I214+$J214,1,$H214,$G214*$H214,Options!B8)))","v":{"$error":"#VALUE!"}},{"$f":"IF(AND(OR(Calculations!$E$2=\"Orkney Health Board\",Calculations!$E$2=\"Orkney Islands Local Authority\"),$F214=1),0,IF(AND(OR(Calculations!$E$2=\"Shetland Health Board\",Calculations!$E$2=\"Western Isles Health Board\",Calculations!$E$2=\"Shetland Islands Local Authority\",Calculations!$E$2=\"Eilean Siar Local Authority\"),OR($F214=1,$F214=5)),0,hosp_count(VALUE(LEFT(Options!$B$24,2)),$C214,$E214,$F214,2016,$I214,1,$H214,$G214*$H214, Options!B8)))","v":{"$error":"#VALUE!"}},{"$f":"IF(AND(OR(Calculations!$E$2=\"Orkney Health Board\",Calculations!$E$2=\"Orkney Islands Local Authority\"),$F214=1),0,IF(AND(OR(Calculations!$E$2=\"Shetland Health Board\",Calculations!$E$2=\"Western Isles Health Board\",Calculations!$E$2=\"Shetland Islands Local Authority\",Calculations!$E$2=\"Eilean Siar Local Authority\"),OR($F214=1,$F214=5)),0,hosp_count(VALUE(LEFT(Options!$B$24,2)),$C214,$E214,$F214,2016,$I214+$J214,1,$H214,$G214*$H214, Options!B8)))","v":{"$error":"#VALUE!"}},{"$f":"IF(AND(OR(Calculations!$E$2=\"Orkney Health Board\",Calculations!$E$2=\"Orkney Islands Local Authority\"),$F214=1),0,IF(AND(OR(Calculations!$E$2=\"Shetland Health Board\",Calculations!$E$2=\"Western Isles Health Board\",Calculations!$E$2=\"Shetland Islands Local Authority\",Calculations!$E$2=\"Eilean Siar Local Authority\"),OR($F214=1,$F214=5)),0,prem_mort(VALUE(LEFT(Options!$B$24,2)),$C214,$E214,$F214,2016,$I214,1,$H214,$G214*$H214,Options!B8)))","v":{"$error":"#VALUE!"}},{"$f":"IF(AND(OR(Calculations!$E$2=\"Orkney Health Board\",Calculations!$E$2=\"Orkney Islands Local Authority\"),$F214=1),0,IF(AND(OR(Calculations!$E$2=\"Shetland Health Board\",Calculations!$E$2=\"Western Isles Health Board\",Calculations!$E$2=\"Shetland Islands Local Authority\",Calculations!$E$2=\"Eilean Siar Local Authority\"),OR($F214=1,$F214=5)),0,prem_mort(VALUE(LEFT(Options!$B$24,2)),$C214,$E214,$F214,2016,$I214+$J214,1,$H214,$G214*$H214,Options!B8)))","v":{"$error":"#VALUE!"}},{"$error":"#VALUE!"},{"$error":"#VALUE!"},{"$error":"#VALUE!"},{"$error":"#VALUE!"},{"$error":"#VALUE!"},{"$error":"#VALUE!"},{"$error":"#VALUE!"},{"$error":"#VALUE!"},{"$error":"#VALUE!"},{"$error":"#VALUE!"},{"$error":"#VALUE!"},{"$error":"#VALUE!"},{"$error":"#VALUE!"},{"$error":"#VALUE!"},{"$error":"#VALUE!"},{"$error":"#VALUE!"},6600]
["SIMD Q5 (least deprived)","Female 16-19",17.570053000000001,81.100049999999996,"female",5,{"$f":"HLOOKUP(Calculations!$E$2,'Prevalence Rates'!$C$3:$BC$249,'Prevalence Rates'!$BD215,FALSE)","v":0.17227195965707265},{"$f":"HLOOKUP(Calculations!$E$2,'Population 2016'!$C$3:$BC$249,'Population 2016'!BD215,FALSE)","v":25268},0,{"$f":"HLOOKUP(Results!E$4,Targeting!$C$3:$F$249,Targeting!$G215,FALSE)","v":1910},{"$f":"IF(AND(OR(Calculations!$E$2=\"Orkney Health Board\",Calculations!$E$2=\"Orkney Islands Local Authority\"),$F215=1),0,IF(AND(OR(Calculations!$E$2=\"Shetland Health Board\",Calculations!$E$2=\"Western Isles Health Board\",Calculations!$E$2=\"Shetland Islands Local Authority\",Calculations!$E$2=\"Eilean Siar Local Authority\"),OR($F215=1,$F215=5)),0,new_ci(VALUE(LEFT(Options!$B$24,2)),$C215,$E215,$F215,2016,$I215,1,$H215,$G215*$H215,Options!B8)))","v":2.6542112532000002},{"$f":"IF(AND(OR(Calculations!$E$2=\"Orkney Health Board\",Calculations!$E$2=\"Orkney Islands Local Authority\"),$F215=1),0,IF(AND(OR(Calculations!$E$2=\"Shetland Health Board\",Calculations!$E$2=\"Western Isles Health Board\",Calculations!$E$2=\"Shetland Islands Local Authority\",Calculations!$E$2=\"Eilean Siar Local Authority\"),OR($F215=1,$F215=5)),0,new_ci(VALUE(LEFT(Options!$B$24,2)),$C215,$E215,$F215,2016,$I215+$J215,1,$H215,$G215*$H215,Options!B8)))","v":2.6428671902},{"$f":"IF(AND(OR(Calculations!$E$2=\"Orkney Health Board\",Calculations!$E$2=\"Orkney Islands Local Authority\"),$F215=1),0,IF(AND(OR(Calculations!$E$2=\"Shetland Health Board\",Calculations!$E$2=\"Western Isles Health Board\",Calculations!$E$2=\"Shetland Islands Local Authority\",Calculations!$E$2=\"Eilean Siar Local Authority\"),OR($F215=1,$F215=5)),0,new_yllv2(VALUE(LEFT(Options!$B$24,2)),$C215,$D215,$E215,$F215,2016,$I215,1,$H215,$G215*$H215,Options!B8)))","v":165.9678217},{"$f":"IF(AND(OR(Calculations!$E$2=\"Orkney Health Board\",Calculations!$E$2=\"Orkney Islands Local Authority\"),$F215=1),0,IF(AND(OR(Calculations!$E$2=\"Shetland Health Board\",Calculations!$E$2=\"Western Isles Health Board\",Calculations!$E$2=\"Shetland Islands Local Authority\",Calculations!$E$2=\"Eilean Siar Local Authority\"),OR($F215=1,$F215=5)),0,new_yllv2(VALUE(LEFT(Options!$B$24,2)),$C215,$D215,$E215,$F215,2016,$I215+$J215,1,$H215,$G215*$H215,Options!B8)))","v":165.2584774746},{"$f":"IF(AND(OR(Calculations!$E$2=\"Orkney Health Board\",Calculations!$E$2=\"Orkney Islands Local Authority\"),$F215=1),0,IF(AND(OR(Calculations!$E$2=\"Shetland Health Board\",Calculations!$E$2=\"Western Isles Health Board\",Calculations!$E$2=\"Shetland Islands Local Authority\",Calculations!$E$2=\"Eilean Siar Local Authority\"),OR($F215=1,$F215=5)),0,hosp_count(VALUE(LEFT(Options!$B$24,2)),$C215,$E215,$F215,2016,$I215,1,$H215,$G215*$H215, Options!B8)))","v":1985.9311626015999},{"$f":"IF(AND(OR(Calculations!$E$2=\"Orkney Health Board\",Calculations!$E$2=\"Orkney Islands Local Authority\"),$F215=1),0,IF(AND(OR(Calculations!$E$2=\"Shetland Health Board\",Calculations!$E$2=\"Western Isles Health Board\",Calculations!$E$2=\"Shetland Islands Local Authority\",Calculations!$E$2=\"Eilean Siar Local Authority\"),OR($F215=1,$F215=5)),0,hosp_count(VALUE(LEFT(Options!$B$24,2)),$C215,$E215,$F215,2016,$I215+$J215,1,$H215,$G215*$H215, Options!B8)))","v":1977.9056563271999},{"$f":"IF(AND(OR(Calculations!$E$2=\"Orkney Health Board\",Calculations!$E$2=\"Orkney Islands Local Authority\"),$F215=1),0,IF(AND(OR(Calculations!$E$2=\"Shetland Health Board\",Calculations!$E$2=\"Western Isles Health Board\",Calculations!$E$2=\"Shetland Islands Local Authority\",Calculations!$E$2=\"Eilean Siar Local Authority\"),OR($F215=1,$F215=5)),0,prem_mort(VALUE(LEFT(Options!$B$24,2)),$C215,$E215,$F215,2016,$I215,1,$H215,$G215*$H215,Options!B8)))","v":2.6542112532000002},{"$f":"IF(AND(OR(Calculations!$E$2=\"Orkney Health Board\",Calculations!$E$2=\"Orkney Islands Local Authority\"),$F215=1),0,IF(AND(OR(Calculations!$E$2=\"Shetland Health Board\",Calculations!$E$2=\"Western Isles Health Board\",Calculations!$E$2=\"Shetland Islands Local Authority\",Calculations!$E$2=\"Eilean Siar Local Authority\"),OR($F215=1,$F215=5)),0,prem_mort(VALUE(LEFT(Options!$B$24,2)),$C215,$E215,$F215,2016,$I215+$J215,1,$H215,$G215*$H215,Options!B8)))","v":2.6428671902},10.504239564666772,10.459344586829191,656.83006846604405,654.02278563637799,7859.4711200000002,7827.7095786259297,10.504239564666772,10.459344586829191,46218.654084533795,46021.116182048441,2890052.3012505937,2877700.256800063,34581672.928000003,34441922.145954087,46218.654084533795,46021.116182048441,4400]
[null,"Female 20-24",22.077057,81.667060000000006,"female",5,{"$f":"HLOOKUP(Calculations!$E$2,'Prevalence Rates'!$C$3:$BC$249,'Prevalence Rates'!$BD216,FALSE)","v":0.17227195965707265},{"$f":"HLOOKUP(Calculations!$E$2,'Population 2016'!$C$3:$BC$249,'Population 2016'!BD216,FALSE)","v":38013},0,{"$f":"HLOOKUP(Results!E$4,Targeting!$C$3:$F$249,Targeting!$G216,FALSE)","v":2874},{"$f":"IF(AND(OR(Calculations!$E$2=\"Orkney Health Board\",Calculations!$E$2=\"Orkney Islands Local Authority\"),$F216=1),0,IF(AND(OR(Calculations!$E$2=\"Shetland Health Board\",Calculations!$E$2=\"Western Isles Health Board\",Calculations!$E$2=\"Shetland Islands Local Authority\",Calculations!$E$2=\"Eilean Siar Local Authority\"),OR($F216=1,$F216=5)),0,new_ci(VALUE(LEFT(Options!$B$24,2)),$C216,$E216,$F216,2016,$I216,1,$H216,$G216*$H216,Options!B8)))","v":5.8582598469000002},{"$f":"IF(AND(OR(Calculations!$E$2=\"Orkney Health Board\",Calculations!$E$2=\"Orkney Islands Local Authority\"),$F216=1),0,IF(AND(OR(Calculations!$E$2=\"Shetland Health Board\",Calculations!$E$2=\"Western Isles Health Board\",Calculations!$E$2=\"Shetland Islands Local Authority\",Calculations!$E$2=\"Eilean Siar Local Authority\"),OR($F216=1,$F216=5)),0,new_ci(VALUE(LEFT(Options!$B$24,2)),$C216,$E216,$F216,2016,$I216+$J216,1,$H216,$G216*$H216,Options!B8)))","v":5.8332178227},{"$f":"IF(AND(OR(Calculations!$E$2=\"Orkney Health Board\",Calculations!$E$2=\"Orkney Islands Local Authority\"),$F216=1),0,IF(AND(OR(Calculations!$E$2=\"Shetland Health Board\",Calculations!$E$2=\"Western Isles Health Board\",Calculations!$E$2=\"Shetland Islands Local Authority\",Calculations!$E$2=\"Eilean Siar Local Authority\"),OR($F216=1,$F216=5)),0,new_yllv2(VALUE(LEFT(Options!$B$24,2)),$C216,$D216,$E216,$F216,2016,$I216,1,$H216,$G216*$H216,Options!B8)))","v":343.23546200470003},{"$f":"IF(AND(OR(Calculations!$E$2=\"Orkney Health Board\",Calculations!$E$2=\"Orkney Islands Local Authority\"),$F216=1),0,IF(AND(OR(Calculations!$E$2=\"Shetland Health Board\",Calculations!$E$2=\"Western Isles Health Board\",Calculations!$E$2=\"Shetland Islands Local Authority\",Calculations!$E$2=\"Eilean Siar Local Authority\"),OR($F216=1,$F216=5)),0,new_yllv2(VALUE(LEFT(Options!$B$24,2)),$C216,$D216,$E216,$F216,2016,$I216+$J216,1,$H216,$G216*$H216,Options!B8)))","v":341.76824973160001},{"$f":"IF(AND(OR(Calculations!$E$2=\"Orkney Health Board\",Calculations!$E$2=\"Orkney Islands Local Authority\"),$F216=1),0,IF(AND(OR(Calculations!$E$2=\"Shetland Health Board\",Calculations!$E$2=\"Western Isles Health Board\",Calculations!$E$2=\"Shetland Islands Local Authority\",Calculations!$E$2=\"Eilean Siar Local Authority\"),OR($F216=1,$F216=5)),0,hosp_count(VALUE(LEFT(Options!$B$24,2)),$C216,$E216,$F216,2016,$I216,1,$H216,$G216*$H216, Options!B8)))","v":3346.2660715352999},{"$f":"IF(AND(OR(Calculations!$E$2=\"Orkney Health Board\",Calculations!$E$2=\"Orkney Islands Local Authority\"),$F216=1),0,IF(AND(OR(Calculations!$E$2=\"Shetland Health Board\",Calculations!$E$2=\"Western Isles Health Board\",Calculations!$E$2=\"Shetland Islands Local Authority\",Calculations!$E$2=\"Eilean Siar Local Authority\"),OR($F216=1,$F216=5)),0,hosp_count(VALUE(LEFT(Options!$B$24,2)),$C216,$E216,$F216,2016,$I216+$J216,1,$H216,$G216*$H216, Options!B8)))","v":3332.7403375343001},{"$f":"IF(AND(OR(Calculations!$E$2=\"Orkney Health Board\",Calculations!$E$2=\"Orkney Islands Local Authority\"),$F216=1),0,IF(AND(OR(Calculations!$E$2=\"Shetland Health Board\",Calculations!$E$2=\"Western Isles Health Board\",Calculations!$E$2=\"Shetland Islands Local Authority\",Calculations!$E$2=\"Eilean Siar Local Authority\"),OR($F216=1,$F216=5)),0,prem_mort(VALUE(LEFT(Options!$B$24,2)),$C216,$E216,$F216,2016,$I216,1,$H216,$G216*$H216,Options!B8)))","v":5.8582598469000002},{"$f":"IF(AND(OR(Calculations!$E$2=\"Orkney Health Board\",Calculations!$E$2=\"Orkney Islands Local Authority\"),$F216=1),0,IF(AND(OR(Calculations!$E$2=\"Shetland Health Board\",Calculations!$E$2=\"Western Isles Health Board\",Calculations!$E$2=\"Shetland Islands Local Authority\",Calculations!$E$2=\"Eilean Siar Local Authority\"),OR($F216=1,$F216=5)),0,prem_mort(VALUE(LEFT(Options!$B$24,2)),$C216,$E216,$F216,2016,$I216+$J216,1,$H216,$G216*$H216,Options!B8)))","v":5.8332178227},15.411201028332414,15.345323501696788,902.94231448372932,899.08255000026304,8802.9518100000005,8767.3699458982464,15.411201028332414,15.345323501696788,92467.20616999449,92071.94101018073,5417653.8869023761,5394495.3000015784,52817710.859999999,52604219.675389476,92467.20616999449,92071.94101018073,6000]
[null,"Female 25-29",26.975186999999998,81.645189999999999,"female",5,{"$f":"HLOOKUP(Calculations!$E$2,'Prevalence Rates'!$C$3:$BC$249,'Prevalence Rates'!$BD217,FALSE)","v":0.14643258034406542},{"$f":"HLOOKUP(Calculations!$E$2,'Population 2016'!$C$3:$BC$249,'Population 2016'!BD217,FALSE)","v":32371},0,{"$f":"HLOOKUP(Results!E$4,Targeting!$C$3:$F$249,Targeting!$G217,FALSE)","v":2447},{"$f":"IF(AND(OR(Calculations!$E$2=\"Orkney Health Board\",Calculations!$E$2=\"Orkney Islands Local Authority\"),$F217=1),0,IF(AND(OR(Calculations!$E$2=\"Shetland Health Board\",Calculations!$E$2=\"Western Isles Health Board\",Calculations!$E$2=\"Shetland Islands Local Authority\",Calculations!$E$2=\"Eilean Siar Local Authority\"),OR($F217=1,$F217=5)),0,new_ci(VALUE(LEFT(Options!$B$24,2)),$C217,$E217,$F217,2016,$I217,1,$H217,$G217*$H217,Options!B8)))","v":7.5666759371000003},{"$f":"IF(AND(OR(Calculations!$E$2=\"Orkney Health Board\",Calculations!$E$2=\"Orkney Islands Local Authority\"),$F217=1),0,IF(AND(OR(Calculations!$E$2=\"Shetland Health Board\",Calculations!$E$2=\"Western Isles Health Board\",Calculations!$E$2=\"Shetland Islands Local Authority\",Calculations!$E$2=\"Eilean Siar Local Authority\"),OR($F217=1,$F217=5)),0,new_ci(VALUE(LEFT(Options!$B$24,2)),$C217,$E217,$F217,2016,$I217+$J217,1,$H217,$G217*$H217,Options!B8)))","v":7.5339859747000002},{"$f":"IF(AND(OR(Calculations!$E$2=\"Orkney Health Board\",Calculations!$E$2=\"Orkney Islands Local Authority\"),$F217=1),0,IF(AND(OR(Calculations!$E$2=\"Shetland Health Board\",Calculations!$E$2=\"Western Isles Health Board\",Calculations!$E$2=\"Shetland Islands Local Authority\",Calculations!$E$2=\"Eilean Siar Local Authority\"),OR($F217=1,$F217=5)),0,new_yllv2(VALUE(LEFT(Options!$B$24,2)),$C217,$D217,$E217,$F217,2016,$I217,1,$H217,$G217*$H217,Options!B8)))","v":406.10352024420001},{"$f":"IF(AND(OR(Calculations!$E$2=\"Orkney Health Board\",Calculations!$E$2=\"Orkney Islands Local Authority\"),$F217=1),0,IF(AND(OR(Calculations!$E$2=\"Shetland Health Board\",Calculations!$E$2=\"Western Isles Health Board\",Calculations!$E$2=\"Shetland Islands Local Authority\",Calculations!$E$2=\"Eilean Siar Local Authority\"),OR($F217=1,$F217=5)),0,new_yllv2(VALUE(LEFT(Options!$B$24,2)),$C217,$D217,$E217,$F217,2016,$I217+$J217,1,$H217,$G217*$H217,Options!B8)))","v":404.34904986409998},{"$f":"IF(AND(OR(Calculations!$E$2=\"Orkney Health Board\",Calculations!$E$2=\"Orkney Islands Local Authority\"),$F217=1),0,IF(AND(OR(Calculations!$E$2=\"Shetland Health Board\",Calculations!$E$2=\"Western Isles Health Board\",Calculations!$E$2=\"Shetland Islands Local Authority\",Calculations!$E$2=\"Eilean Siar Local Authority\"),OR($F217=1,$F217=5)),0,hosp_count(VALUE(LEFT(Options!$B$24,2)),$C217,$E217,$F217,2016,$I217,1,$H217,$G217*$H217, Options!B8)))","v":3223.2362970265999},{"$f":"IF(AND(OR(Calculations!$E$2=\"Orkney Health Board\",Calculations!$E$2=\"Orkney Islands Local Authority\"),$F217=1),0,IF(AND(OR(Calculations!$E$2=\"Shetland Health Board\",Calculations!$E$2=\"Western Isles Health Board\",Calculations!$E$2=\"Shetland Islands Local Authority\",Calculations!$E$2=\"Eilean Siar Local Authority\"),OR($F217=1,$F217=5)),0,hosp_count(VALUE(LEFT(Options!$B$24,2)),$C217,$E217,$F217,2016,$I217+$J217,1,$H217,$G217*$H217, Options!B8)))","v":3210.1835414504999},{"$f":"IF(AND(OR(Calculations!$E$2=\"Orkney Health Board\",Calculations!$E$2=\"Orkney Islands Local Authority\"),$F217=1),0,IF(AND(OR(Calculations!$E$2=\"Shetland Health Board\",Calculations!$E$2=\"Western Isles Health Board\",Calculations!$E$2=\"Shetland Islands Local Authority\",Calculations!$E$2=\"Eilean Siar Local Authority\"),OR($F217=1,$F217=5)),0,prem_mort(VALUE(LEFT(Options!$B$24,2)),$C217,$E217,$F217,2016,$I217,1,$H217,$G217*$H217,Options!B8)))","v":7.5666759371000003},{"$f":"IF(AND(OR(Calculations!$E$2=\"Orkney Health Board\",Calculations!$E$2=\"Orkney Islands Local Authority\"),$F217=1),0,IF(AND(OR(Calculations!$E$2=\"Shetland Health Board\",Calculations!$E$2=\"Western Isles Health Board\",Calculations!$E$2=\"Shetland Islands Local Authority\",Calculations!$E$2=\"Eilean Siar Local Authority\"),OR($F217=1,$F217=5)),0,prem_mort(VALUE(LEFT(Options!$B$24,2)),$C217,$E217,$F217,2016,$I217+$J217,1,$H217,$G217*$H217,Options!B8)))","v":7.5339859747000002},23.374860020079701,23.27387468629329,1254.5288074023044,1249.1089242349633,9957.1724599999998,9916.8500863442587,23.374860020079701,23.27387468629329,140249.16012047822,139643.24811775974,7527172.8444138262,7494653.54540978,59743034.759999998,59501100.518065549,140249.16012047822,139643.24811775974,6000]
[null,"Female 30-34",31.999904999999998,81.799899999999994,"female",5,{"$f":"HLOOKUP(Calculations!$E$2,'Prevalence Rates'!$C$3:$BC$249,'Prevalence Rates'!$BD218,FALSE)","v":0.14643258034406542},{"$f":"HLOOKUP(Calculations!$E$2,'Population 2016'!$C$3:$BC$249,'Population 2016'!BD218,FALSE)","v":31633},0,{"$f":"HLOOKUP(Results!E$4,Targeting!$C$3:$F$249,Targeting!$G218,FALSE)","v":2392},{"$f":"IF(AND(OR(Calculations!$E$2=\"Orkney Health Board\",Calculations!$E$2=\"Orkney Islands Local Authority\"),$F218=1),0,IF(AND(OR(Calculations!$E$2=\"Shetland Health Board\",Calculations!$E$2=\"Western Isles Health Board\",Calculations!$E$2=\"Shetland Islands Local Authority\",Calculations!$E$2=\"Eilean Siar Local Authority\"),OR($F218=1,$F218=5)),0,new_ci(VALUE(LEFT(Options!$B$24,2)),$C218,$E218,$F218,2016,$I218,1,$H218,$G218*$H218,Options!B8)))","v":11.336210487200001},{"$f":"IF(AND(OR(Calculations!$E$2=\"Orkney Health Board\",Calculations!$E$2=\"Orkney Islands Local Authority\"),$F218=1),0,IF(AND(OR(Calculations!$E$2=\"Shetland Health Board\",Calculations!$E$2=\"Western Isles Health Board\",Calculations!$E$2=\"Shetland Islands Local Authority\",Calculations!$E$2=\"Eilean Siar Local Authority\"),OR($F218=1,$F218=5)),0,new_ci(VALUE(LEFT(Options!$B$24,2)),$C218,$E218,$F218,2016,$I218+$J218,1,$H218,$G218*$H218,Options!B8)))","v":11.2872240016},{"$f":"IF(AND(OR(Calculations!$E$2=\"Orkney Health Board\",Calculations!$E$2=\"Orkney Islands Local Authority\"),$F218=1),0,IF(AND(OR(Calculations!$E$2=\"Shetland Health Board\",Calculations!$E$2=\"Western Isles Health Board\",Calculations!$E$2=\"Shetland Islands Local Authority\",Calculations!$E$2=\"Eilean Siar Local Authority\"),OR($F218=1,$F218=5)),0,new_yllv2(VALUE(LEFT(Options!$B$24,2)),$C218,$D218,$E218,$F218,2016,$I218,1,$H218,$G218*$H218,Options!B8)))","v":553.2070150943},{"$f":"IF(AND(OR(Calculations!$E$2=\"Orkney Health Board\",Calculations!$E$2=\"Orkney Islands Local Authority\"),$F218=1),0,IF(AND(OR(Calculations!$E$2=\"Shetland Health Board\",Calculations!$E$2=\"Western Isles Health Board\",Calculations!$E$2=\"Shetland Islands Local Authority\",Calculations!$E$2=\"Eilean Siar Local Authority\"),OR($F218=1,$F218=5)),0,new_yllv2(VALUE(LEFT(Options!$B$24,2)),$C218,$D218,$E218,$F218,2016,$I218+$J218,1,$H218,$G218*$H218,Options!B8)))","v":550.81647484200005},{"$f":"IF(AND(OR(Calculations!$E$2=\"Orkney Health Board\",Calculations!$E$2=\"Orkney Islands Local Authority\"),$F218=1),0,IF(AND(OR(Calculations!$E$2=\"Shetland Health Board\",Calculations!$E$2=\"Western Isles Health Board\",Calculations!$E$2=\"Shetland Islands Local Authority\",Calculations!$E$2=\"Eilean Siar Local Authority\"),OR($F218=1,$F218=5)),0,hosp_count(VALUE(LEFT(Options!$B$24,2)),$C218,$E218,$F218,2016,$I218,1,$H218,$G218*$H218, Options!B8)))","v":3574.1022803198998},{"$f":"IF(AND(OR(Calculations!$E$2=\"Orkney Health Board\",Calculations!$E$2=\"Orkney Islands Local Authority\"),$F218=1),0,IF(AND(OR(Calculations!$E$2=\"Shetland Health Board\",Calculations!$E$2=\"Western Isles Health Board\",Calculations!$E$2=\"Shetland Islands Local Authority\",Calculations!$E$2=\"Eilean Siar Local Authority\"),OR($F218=1,$F218=5)),0,hosp_count(VALUE(LEFT(Options!$B$24,2)),$C218,$E218,$F218,2016,$I218+$J218,1,$H218,$G218*$H218, Options!B8)))","v":3559.6239002572001},{"$f":"IF(AND(OR(Calculations!$E$2=\"Orkney Health Board\",Calculations!$E$2=\"Orkney Islands Local Authority\"),$F218=1),0,IF(AND(OR(Calculations!$E$2=\"Shetland Health Board\",Calculations!$E$2=\"Western Isles Health Board\",Calculations!$E$2=\"Shetland Islands Local Authority\",Calculations!$E$2=\"Eilean Siar Local Authority\"),OR($F218=1,$F218=5)),0,prem_mort(VALUE(LEFT(Options!$B$24,2)),$C218,$E218,$F218,2016,$I218,1,$H218,$G218*$H218,Options!B8)))","v":11.336210487200001},{"$f":"IF(AND(OR(Calculations!$E$2=\"Orkney Health Board\",Calculations!$E$2=\"Orkney Islands Local Authority\"),$F218=1),0,IF(AND(OR(Calculations!$E$2=\"Shetland Health Board\",Calculations!$E$2=\"Western Isles Health Board\",Calculations!$E$2=\"Shetland Islands Local Authority\",Calculations!$E$2=\"Eilean Siar Local Authority\"),OR($F218=1,$F218=5)),0,prem_mort(VALUE(LEFT(Options!$B$24,2)),$C218,$E218,$F218,2016,$I218+$J218,1,$H218,$G218*$H218,Options!B8)))","v":11.2872240016},35.836659460689788,35.681800656276671,1748.8288024983403,1741.2716936174252,11298.651029999999,11252.881169213164,35.836659460689788,35.681800656276671,232938.28649448362,231931.70426579835,11367387.216239212,11318266.008513264,73441231.694999993,73143727.599885568,232938.28649448362,231931.70426579835,6500]
[null,"Female 35-39",36.918118,81.898120000000006,"female",5,{"$f":"HLOOKUP(Calculations!$E$2,'Prevalence Rates'!$C$3:$BC$249,'Prevalence Rates'!$BD219,FALSE)","v":0.18315706329639325},{"$f":"HLOOKUP(Calculations!$E$2,'Population 2016'!$C$3:$BC$249,'Population 2016'!BD219,FALSE)","v":33676},0,{"$f":"HLOOKUP(Results!E$4,Targeting!$C$3:$F$249,Targeting!$G219,FALSE)","v":2546},{"$f":"IF(AND(OR(Calculations!$E$2=\"Orkney Health Board\",Calculations!$E$2=\"Orkney Islands Local Authority\"),$F219=1),0,IF(AND(OR(Calculations!$E$2=\"Shetland Health Board\",Calculations!$E$2=\"Western Isles Health Board\",Calculations!$E$2=\"Shetland Islands Local Authority\",Calculations!$E$2=\"Eilean Siar Local Authority\"),OR($F219=1,$F219=5)),0,new_ci(VALUE(LEFT(Options!$B$24,2)),$C219,$E219,$F219,2016,$I219,1,$H219,$G219*$H219,Options!B8)))","v":18.3348854696},{"$f":"IF(AND(OR(Calculations!$E$2=\"Orkney Health Board\",Calculations!$E$2=\"Orkney Islands Local Authority\"),$F219=1),0,IF(AND(OR(Calculations!$E$2=\"Shetland Health Board\",Calculations!$E$2=\"Western Isles Health Board\",Calculations!$E$2=\"Shetland Islands Local Authority\",Calculations!$E$2=\"Eilean Siar Local Authority\"),OR($F219=1,$F219=5)),0,new_ci(VALUE(LEFT(Options!$B$24,2)),$C219,$E219,$F219,2016,$I219+$J219,1,$H219,$G219*$H219,Options!B8)))","v":18.2568915602},{"$f":"IF(AND(OR(Calculations!$E$2=\"Orkney Health Board\",Calculations!$E$2=\"Orkney Islands Local Authority\"),$F219=1),0,IF(AND(OR(Calculations!$E$2=\"Shetland Health Board\",Calculations!$E$2=\"Western Isles Health Board\",Calculations!$E$2=\"Shetland Islands Local Authority\",Calculations!$E$2=\"Eilean Siar Local Authority\"),OR($F219=1,$F219=5)),0,new_yllv2(VALUE(LEFT(Options!$B$24,2)),$C219,$D219,$E219,$F219,2016,$I219,1,$H219,$G219*$H219,Options!B8)))","v":806.36829962280001},{"$f":"IF(AND(OR(Calculations!$E$2=\"Orkney Health Board\",Calculations!$E$2=\"Orkney Islands Local Authority\"),$F219=1),0,IF(AND(OR(Calculations!$E$2=\"Shetland Health Board\",Calculations!$E$2=\"Western Isles Health Board\",Calculations!$E$2=\"Shetland Islands Local Authority\",Calculations!$E$2=\"Eilean Siar Local Authority\"),OR($F219=1,$F219=5)),0,new_yllv2(VALUE(LEFT(Options!$B$24,2)),$C219,$D219,$E219,$F219,2016,$I219+$J219,1,$H219,$G219*$H219,Options!B8)))","v":802.93812733139998},{"$f":"IF(AND(OR(Calculations!$E$2=\"Orkney Health Board\",Calculations!$E$2=\"Orkney Islands Local Authority\"),$F219=1),0,IF(AND(OR(Calculations!$E$2=\"Shetland Health Board\",Calculations!$E$2=\"Western Isles Health Board\",Calculations!$E$2=\"Shetland Islands Local Authority\",Calculations!$E$2=\"Eilean Siar Local Authority\"),OR($F219=1,$F219=5)),0,hosp_count(VALUE(LEFT(Options!$B$24,2)),$C219,$E219,$F219,2016,$I219,1,$H219,$G219*$H219, Options!B8)))","v":4306.0016290455997},{"$f":"IF(AND(OR(Calculations!$E$2=\"Orkney Health Board\",Calculations!$E$2=\"Orkney Islands Local Authority\"),$F219=1),0,IF(AND(OR(Calculations!$E$2=\"Shetland Health Board\",Calculations!$E$2=\"Western Isles Health Board\",Calculations!$E$2=\"Shetland Islands Local Authority\",Calculations!$E$2=\"Eilean Siar Local Authority\"),OR($F219=1,$F219=5)),0,hosp_count(VALUE(LEFT(Options!$B$24,2)),$C219,$E219,$F219,2016,$I219+$J219,1,$H219,$G219*$H219, Options!B8)))","v":4288.6122145812997},{"$f":"IF(AND(OR(Calculations!$E$2=\"Orkney Health Board\",Calculations!$E$2=\"Orkney Islands Local Authority\"),$F219=1),0,IF(AND(OR(Calculations!$E$2=\"Shetland Health Board\",Calculations!$E$2=\"Western Isles Health Board\",Calculations!$E$2=\"Shetland Islands Local Authority\",Calculations!$E$2=\"Eilean Siar Local Authority\"),OR($F219=1,$F219=5)),0,prem_mort(VALUE(LEFT(Options!$B$24,2)),$C219,$E219,$F219,2016,$I219,1,$H219,$G219*$H219,Options!B8)))","v":18.3348854696},{"$f":"IF(AND(OR(Calculations!$E$2=\"Orkney Health Board\",Calculations!$E$2=\"Orkney Islands Local Authority\"),$F219=1),0,IF(AND(OR(Calculations!$E$2=\"Shetland Health Board\",Calculations!$E$2=\"Western Isles Health Board\",Calculations!$E$2=\"Shetland Islands Local Authority\",Calculations!$E$2=\"Eilean Siar Local Authority\"),OR($F219=1,$F219=5)),0,prem_mort(VALUE(LEFT(Options!$B$24,2)),$C219,$E219,$F219,2016,$I219+$J219,1,$H219,$G219*$H219,Options!B8)))","v":18.2568915602},54.444962197410618,54.213361326166996,2394.4895463321063,2384.3037395516094,12786.55906,12734.921649190223,54.444962197410618,54.213361326166996,381114.73538187431,379493.52928316896,16761426.824324744,16690126.176861266,89505913.420000002,89144451.544331551,381114.73538187431,379493.52928316896,7000]
[null,"Female 40-44",42.077438000000001,82.30744,"female",5,{"$f":"HLOOKUP(Calculations!$E$2,'Prevalence Rates'!$C$3:$BC$249,'Prevalence Rates'!$BD220,FALSE)","v":0.18315706329639325},{"$f":"HLOOKUP(Calculations!$E$2,'Population 2016'!$C$3:$BC$249,'Population 2016'!BD220,FALSE)","v":36508},0,{"$f":"HLOOKUP(Results!E$4,Targeting!$C$3:$F$249,Targeting!$G220,FALSE)","v":2760},{"$f":"IF(AND(OR(Calculations!$E$2=\"Orkney Health Board\",Calculations!$E$2=\"Orkney Islands Local Authority\"),$F220=1),0,IF(AND(OR(Calculations!$E$2=\"Shetland Health Board\",Calculations!$E$2=\"Western Isles Health Board\",Calculations!$E$2=\"Shetland Islands Local Authority\",Calculations!$E$2=\"Eilean Siar Local Authority\"),OR($F220=1,$F220=5)),0,new_ci(VALUE(LEFT(Options!$B$24,2)),$C220,$E220,$F220,2016,$I220,1,$H220,$G220*$H220,Options!B8)))","v":30.8217384909},{"$f":"IF(AND(OR(Calculations!$E$2=\"Orkney Health Board\",Calculations!$E$2=\"Orkney Islands Local Authority\"),$F220=1),0,IF(AND(OR(Calculations!$E$2=\"Shetland Health Board\",Calculations!$E$2=\"Western Isles Health Board\",Calculations!$E$2=\"Shetland Islands Local Authority\",Calculations!$E$2=\"Eilean Siar Local Authority\"),OR($F220=1,$F220=5)),0,new_ci(VALUE(LEFT(Options!$B$24,2)),$C220,$E220,$F220,2016,$I220+$J220,1,$H220,$G220*$H220,Options!B8)))","v":30.690663606899999},{"$f":"IF(AND(OR(Calculations!$E$2=\"Orkney Health Board\",Calculations!$E$2=\"Orkney Islands Local Authority\"),$F220=1),0,IF(AND(OR(Calculations!$E$2=\"Shetland Health Board\",Calculations!$E$2=\"Western Isles Health Board\",Calculations!$E$2=\"Shetland Islands Local Authority\",Calculations!$E$2=\"Eilean Siar Local Authority\"),OR($F220=1,$F220=5)),0,new_yllv2(VALUE(LEFT(Options!$B$24,2)),$C220,$D220,$E220,$F220,2016,$I220,1,$H220,$G220*$H220,Options!B8)))","v":1209.1368626415001},{"$f":"IF(AND(OR(Calculations!$E$2=\"Orkney Health Board\",Calculations!$E$2=\"Orkney Islands Local Authority\"),$F220=1),0,IF(AND(OR(Calculations!$E$2=\"Shetland Health Board\",Calculations!$E$2=\"Western Isles Health Board\",Calculations!$E$2=\"Shetland Islands Local Authority\",Calculations!$E$2=\"Eilean Siar Local Authority\"),OR($F220=1,$F220=5)),0,new_yllv2(VALUE(LEFT(Options!$B$24,2)),$C220,$D220,$E220,$F220,2016,$I220+$J220,1,$H220,$G220*$H220,Options!B8)))","v":1203.99479468},{"$f":"IF(AND(OR(Calculations!$E$2=\"Orkney Health Board\",Calculations!$E$2=\"Orkney Islands Local Authority\"),$F220=1),0,IF(AND(OR(Calculations!$E$2=\"Shetland Health Board\",Calculations!$E$2=\"Western Isles Health Board\",Calculations!$E$2=\"Shetland Islands Local Authority\",Calculations!$E$2=\"Eilean Siar Local Authority\"),OR($F220=1,$F220=5)),0,hosp_count(VALUE(LEFT(Options!$B$24,2)),$C220,$E220,$F220,2016,$I220,1,$H220,$G220*$H220, Options!B8)))","v":5314.9930810692003},{"$f":"IF(AND(OR(Calculations!$E$2=\"Orkney Health Board\",Calculations!$E$2=\"Orkney Islands Local Authority\"),$F220=1),0,IF(AND(OR(Calculations!$E$2=\"Shetland Health Board\",Calculations!$E$2=\"Western Isles Health Board\",Calculations!$E$2=\"Shetland Islands Local Authority\",Calculations!$E$2=\"Eilean Siar Local Authority\"),OR($F220=1,$F220=5)),0,hosp_count(VALUE(LEFT(Options!$B$24,2)),$C220,$E220,$F220,2016,$I220+$J220,1,$H220,$G220*$H220, Options!B8)))","v":5293.529775424},{"$f":"IF(AND(OR(Calculations!$E$2=\"Orkney Health Board\",Calculations!$E$2=\"Orkney Islands Local Authority\"),$F220=1),0,IF(AND(OR(Calculations!$E$2=\"Shetland Health Board\",Calculations!$E$2=\"Western Isles Health Board\",Calculations!$E$2=\"Shetland Islands Local Authority\",Calculations!$E$2=\"Eilean Siar Local Authority\"),OR($F220=1,$F220=5)),0,prem_mort(VALUE(LEFT(Options!$B$24,2)),$C220,$E220,$F220,2016,$I220,1,$H220,$G220*$H220,Options!B8)))","v":30.8217384909},{"$f":"IF(AND(OR(Calculations!$E$2=\"Orkney Health Board\",Calculations!$E$2=\"Orkney Islands Local Authority\"),$F220=1),0,IF(AND(OR(Calculations!$E$2=\"Shetland Health Board\",Calculations!$E$2=\"Western Isles Health Board\",Calculations!$E$2=\"Shetland Islands Local Authority\",Calculations!$E$2=\"Eilean Siar Local Authority\"),OR($F220=1,$F220=5)),0,prem_mort(VALUE(LEFT(Options!$B$24,2)),$C220,$E220,$F220,2016,$I220+$J220,1,$H220,$G220*$H220,Options!B8)))","v":30.690663606899999},84.424615127917178,84.065584548318171,3311.9778203174651,3297.8930499616527,14558.433990000001,14499.643298520872,84.424615127917178,84.065584548318171,590972.30589542026,588459.09183822724,23183844.742222257,23085251.349731568,{"$f":"W220*$AI220","v":101909037.93000001},{"$f":"X220*$AI220","v":101497503.0896461},{"$f":"Y220*$AI220","v":590972.30589542026},{"$f":"Z220*$AI220","v":588459.09183822724},7000]
[null,"Female 45-49",47.025772000000003,82.585769999999997,"female",5,{"$f":"HLOOKUP(Calculations!$E$2,'Prevalence Rates'!$C$3:$BC$249,'Prevalence Rates'!$BD221,FALSE)","v":0.28258000902315794},{"$f":"HLOOKUP(Calculations!$E$2,'Population 2016'!$C$3:$BC$249,'Population 2016'!BD221,FALSE)","v":41785},0,{"$f":"HLOOKUP(Results!E$4,Targeting!$C$3:$F$249,Targeting!$G221,FALSE)","v":3159},{"$f":"IF(AND(OR(Calculations!$E$2=\"Orkney Health Board\",Calculations!$E$2=\"Orkney Islands Local Authority\"),$F221=1),0,IF(AND(OR(Calculations!$E$2=\"Shetland Health Board\",Calculations!$E$2=\"Western Isles Health Board\",Calculations!$E$2=\"Shetland Islands Local Authority\",Calculations!$E$2=\"Eilean Siar Local Authority\"),OR($F221=1,$F221=5)),0,new_ci(VALUE(LEFT(Options!$B$24,2)),$C221,$E221,$F221,2016,$I221,1,$H221,$G221*$H221,Options!B8)))","v":53.724696442099997},{"$f":"IF(AND(OR(Calculations!$E$2=\"Orkney Health Board\",Calculations!$E$2=\"Orkney Islands Local Authority\"),$F221=1),0,IF(AND(OR(Calculations!$E$2=\"Shetland Health Board\",Calculations!$E$2=\"Western Isles Health Board\",Calculations!$E$2=\"Shetland Islands Local Authority\",Calculations!$E$2=\"Eilean Siar Local Authority\"),OR($F221=1,$F221=5)),0,new_ci(VALUE(LEFT(Options!$B$24,2)),$C221,$E221,$F221,2016,$I221+$J221,1,$H221,$G221*$H221,Options!B8)))","v":53.505349065799997},{"$f":"IF(AND(OR(Calculations!$E$2=\"Orkney Health Board\",Calculations!$E$2=\"Orkney Islands Local Authority\"),$F221=1),0,IF(AND(OR(Calculations!$E$2=\"Shetland Health Board\",Calculations!$E$2=\"Western Isles Health Board\",Calculations!$E$2=\"Shetland Islands Local Authority\",Calculations!$E$2=\"Eilean Siar Local Authority\"),OR($F221=1,$F221=5)),0,new_yllv2(VALUE(LEFT(Options!$B$24,2)),$C221,$D221,$E221,$F221,2016,$I221,1,$H221,$G221*$H221,Options!B8)))","v":1856.7254015896001},{"$f":"IF(AND(OR(Calculations!$E$2=\"Orkney Health Board\",Calculations!$E$2=\"Orkney Islands Local Authority\"),$F221=1),0,IF(AND(OR(Calculations!$E$2=\"Shetland Health Board\",Calculations!$E$2=\"Western Isles Health Board\",Calculations!$E$2=\"Shetland Islands Local Authority\",Calculations!$E$2=\"Eilean Siar Local Authority\"),OR($F221=1,$F221=5)),0,new_yllv2(VALUE(LEFT(Options!$B$24,2)),$C221,$D221,$E221,$F221,2016,$I221+$J221,1,$H221,$G221*$H221,Options!B8)))","v":1849.1447567032999},{"$f":"IF(AND(OR(Calculations!$E$2=\"Orkney Health Board\",Calculations!$E$2=\"Orkney Islands Local Authority\"),$F221=1),0,IF(AND(OR(Calculations!$E$2=\"Shetland Health Board\",Calculations!$E$2=\"Western Isles Health Board\",Calculations!$E$2=\"Shetland Islands Local Authority\",Calculations!$E$2=\"Eilean Siar Local Authority\"),OR($F221=1,$F221=5)),0,hosp_count(VALUE(LEFT(Options!$B$24,2)),$C221,$E221,$F221,2016,$I221,1,$H221,$G221*$H221, Options!B8)))","v":6889.5555642705003},{"$f":"IF(AND(OR(Calculations!$E$2=\"Orkney Health Board\",Calculations!$E$2=\"Orkney Islands Local Authority\"),$F221=1),0,IF(AND(OR(Calculations!$E$2=\"Shetland Health Board\",Calculations!$E$2=\"Western Isles Health Board\",Calculations!$E$2=\"Shetland Islands Local Authority\",Calculations!$E$2=\"Eilean Siar Local Authority\"),OR($F221=1,$F221=5)),0,hosp_count(VALUE(LEFT(Options!$B$24,2)),$C221,$E221,$F221,2016,$I221+$J221,1,$H221,$G221*$H221, Options!B8)))","v":6861.9496492107},{"$f":"IF(AND(OR(Calculations!$E$2=\"Orkney Health Board\",Calculations!$E$2=\"Orkney Islands Local Authority\"),$F221=1),0,IF(AND(OR(Calculations!$E$2=\"Shetland Health Board\",Calculations!$E$2=\"Western Isles Health Board\",Calculations!$E$2=\"Shetland Islands Local Authority\",Calculations!$E$2=\"Eilean Siar Local Authority\"),OR($F221=1,$F221=5)),0,prem_mort(VALUE(LEFT(Options!$B$24,2)),$C221,$E221,$F221,2016,$I221,1,$H221,$G221*$H221,Options!B8)))","v":53.724696442099997},{"$f":"IF(AND(OR(Calculations!$E$2=\"Orkney Health Board\",Calculations!$E$2=\"Orkney Islands Local Authority\"),$F221=1),0,IF(AND(OR(Calculations!$E$2=\"Shetland Health Board\",Calculations!$E$2=\"Western Isles Health Board\",Calculations!$E$2=\"Shetland Islands Local Authority\",Calculations!$E$2=\"Eilean Siar Local Authority\"),OR($F221=1,$F221=5)),0,prem_mort(VALUE(LEFT(Options!$B$24,2)),$C221,$E221,$F221,2016,$I221+$J221,1,$H221,$G221*$H221,Options!B8)))","v":53.505349065799997},128.57412095752062,128.04917809213833,4443.5213631437118,4425.3793387658252,16488.10713,16422.040562907023,128.57412095752062,128.04917809213833,900018.84670264437,896344.24664496828,31104649.542005982,30977655.371360775,115416749.91,114954283.94034916,900018.84670264437,896344.24664496828,7000]
[null,"Female 50-54",51.990825999999998,82.980829999999997,"female",5,{"$f":"HLOOKUP(Calculations!$E$2,'Prevalence Rates'!$C$3:$BC$249,'Prevalence Rates'!$BD222,FALSE)","v":0.28258000902315794},{"$f":"HLOOKUP(Calculations!$E$2,'Population 2016'!$C$3:$BC$249,'Population 2016'!BD222,FALSE)","v":42428},0,{"$f":"HLOOKUP(Results!E$4,Targeting!$C$3:$F$249,Targeting!$G222,FALSE)","v":3208},{"$f":"IF(AND(OR(Calculations!$E$2=\"Orkney Health Board\",Calculations!$E$2=\"Orkney Islands Local Authority\"),$F222=1),0,IF(AND(OR(Calculations!$E$2=\"Shetland Health Board\",Calculations!$E$2=\"Western Isles Health Board\",Calculations!$E$2=\"Shetland Islands Local Authority\",Calculations!$E$2=\"Eilean Siar Local Authority\"),OR($F222=1,$F222=5)),0,new_ci(VALUE(LEFT(Options!$B$24,2)),$C222,$E222,$F222,2016,$I222,1,$H222,$G222*$H222,Options!B8)))","v":83.187271187500002},{"$f":"IF(AND(OR(Calculations!$E$2=\"Orkney Health Board\",Calculations!$E$2=\"Orkney Islands Local Authority\"),$F222=1),0,IF(AND(OR(Calculations!$E$2=\"Shetland Health Board\",Calculations!$E$2=\"Western Isles Health Board\",Calculations!$E$2=\"Shetland Islands Local Authority\",Calculations!$E$2=\"Eilean Siar Local Authority\"),OR($F222=1,$F222=5)),0,new_ci(VALUE(LEFT(Options!$B$24,2)),$C222,$E222,$F222,2016,$I222+$J222,1,$H222,$G222*$H222,Options!B8)))","v":82.847763414699997},{"$f":"IF(AND(OR(Calculations!$E$2=\"Orkney Health Board\",Calculations!$E$2=\"Orkney Islands Local Authority\"),$F222=1),0,IF(AND(OR(Calculations!$E$2=\"Shetland Health Board\",Calculations!$E$2=\"Western Isles Health Board\",Calculations!$E$2=\"Shetland Islands Local Authority\",Calculations!$E$2=\"Eilean Siar Local Authority\"),OR($F222=1,$F222=5)),0,new_yllv2(VALUE(LEFT(Options!$B$24,2)),$C222,$D222,$E222,$F222,2016,$I222,1,$H222,$G222*$H222,Options!B8)))","v":2494.7865956621999},{"$f":"IF(AND(OR(Calculations!$E$2=\"Orkney Health Board\",Calculations!$E$2=\"Orkney Islands Local Authority\"),$F222=1),0,IF(AND(OR(Calculations!$E$2=\"Shetland Health Board\",Calculations!$E$2=\"Western Isles Health Board\",Calculations!$E$2=\"Shetland Islands Local Authority\",Calculations!$E$2=\"Eilean Siar Local Authority\"),OR($F222=1,$F222=5)),0,new_yllv2(VALUE(LEFT(Options!$B$24,2)),$C222,$D222,$E222,$F222,2016,$I222+$J222,1,$H222,$G222*$H222,Options!B8)))","v":2484.6047561978999},{"$f":"IF(AND(OR(Calculations!$E$2=\"Orkney Health Board\",Calculations!$E$2=\"Orkney Islands Local Authority\"),$F222=1),0,IF(AND(OR(Calculations!$E$2=\"Shetland Health Board\",Calculations!$E$2=\"Western Isles Health Board\",Calculations!$E$2=\"Shetland Islands Local Authority\",Calculations!$E$2=\"Eilean Siar Local Authority\"),OR($F222=1,$F222=5)),0,hosp_count(VALUE(LEFT(Options!$B$24,2)),$C222,$E222,$F222,2016,$I222,1,$H222,$G222*$H222, Options!B8)))","v":7926.1475104580004},{"$f":"IF(AND(OR(Calculations!$E$2=\"Orkney Health Board\",Calculations!$E$2=\"Orkney Islands Local Authority\"),$F222=1),0,IF(AND(OR(Calculations!$E$2=\"Shetland Health Board\",Calculations!$E$2=\"Western Isles Health Board\",Calculations!$E$2=\"Shetland Islands Local Authority\",Calculations!$E$2=\"Eilean Siar Local Authority\"),OR($F222=1,$F222=5)),0,hosp_count(VALUE(LEFT(Options!$B$24,2)),$C222,$E222,$F222,2016,$I222+$J222,1,$H222,$G222*$H222, Options!B8)))","v":7894.3842065374001},{"$f":"IF(AND(OR(Calculations!$E$2=\"Orkney Health Board\",Calculations!$E$2=\"Orkney Islands Local Authority\"),$F222=1),0,IF(AND(OR(Calculations!$E$2=\"Shetland Health Board\",Calculations!$E$2=\"Western Isles Health Board\",Calculations!$E$2=\"Shetland Islands Local Authority\",Calculations!$E$2=\"Eilean Siar Local Authority\"),OR($F222=1,$F222=5)),0,prem_mort(VALUE(LEFT(Options!$B$24,2)),$C222,$E222,$F222,2016,$I222,1,$H222,$G222*$H222,Options!B8)))","v":83.187271187500002},{"$f":"IF(AND(OR(Calculations!$E$2=\"Orkney Health Board\",Calculations!$E$2=\"Orkney Islands Local Authority\"),$F222=1),0,IF(AND(OR(Calculations!$E$2=\"Shetland Health Board\",Calculations!$E$2=\"Western Isles Health Board\",Calculations!$E$2=\"Shetland Islands Local Authority\",Calculations!$E$2=\"Eilean Siar Local Authority\"),OR($F222=1,$F222=5)),0,prem_mort(VALUE(LEFT(Options!$B$24,2)),$C222,$E222,$F222,2016,$I222+$J222,1,$H222,$G222*$H222,Options!B8)))","v":82.847763414699997},196.06691615796174,195.26671871099273,5880.0475998449137,5856.0496752095314,18681.407350000001,18606.543335856983,196.06691615796174,195.26671871099273,1372468.4131057323,1366867.030976949,41160333.198914394,40992347.726466723,130769851.45,130245803.35099888,1372468.4131057323,1366867.030976949,7000]
[null,"Female 55-59",56.953040999999999,83.473039999999997,"female",5,{"$f":"HLOOKUP(Calculations!$E$2,'Prevalence Rates'!$C$3:$BC$249,'Prevalence Rates'!$BD223,FALSE)","v":0.25001169714787463},{"$f":"HLOOKUP(Calculations!$E$2,'Population 2016'!$C$3:$BC$249,'Population 2016'!BD223,FALSE)","v":38314},0,{"$f":"HLOOKUP(Results!E$4,Targeting!$C$3:$F$249,Targeting!$G223,FALSE)","v":2897},{"$f":"IF(AND(OR(Calculations!$E$2=\"Orkney Health Board\",Calculations!$E$2=\"Orkney Islands Local Authority\"),$F223=1),0,IF(AND(OR(Calculations!$E$2=\"Shetland Health Board\",Calculations!$E$2=\"Western Isles Health Board\",Calculations!$E$2=\"Shetland Islands Local Authority\",Calculations!$E$2=\"Eilean Siar Local Authority\"),OR($F223=1,$F223=5)),0,new_ci(VALUE(LEFT(Options!$B$24,2)),$C223,$E223,$F223,2016,$I223,1,$H223,$G223*$H223,Options!B8)))","v":114.50629570709999},{"$f":"IF(AND(OR(Calculations!$E$2=\"Orkney Health Board\",Calculations!$E$2=\"Orkney Islands Local Authority\"),$F223=1),0,IF(AND(OR(Calculations!$E$2=\"Shetland Health Board\",Calculations!$E$2=\"Western Isles Health Board\",Calculations!$E$2=\"Shetland Islands Local Authority\",Calculations!$E$2=\"Eilean Siar Local Authority\"),OR($F223=1,$F223=5)),0,new_ci(VALUE(LEFT(Options!$B$24,2)),$C223,$E223,$F223,2016,$I223+$J223,1,$H223,$G223*$H223,Options!B8)))","v":114.0331883753},{"$f":"IF(AND(OR(Calculations!$E$2=\"Orkney Health Board\",Calculations!$E$2=\"Orkney Islands Local Authority\"),$F223=1),0,IF(AND(OR(Calculations!$E$2=\"Shetland Health Board\",Calculations!$E$2=\"Western Isles Health Board\",Calculations!$E$2=\"Shetland Islands Local Authority\",Calculations!$E$2=\"Eilean Siar Local Authority\"),OR($F223=1,$F223=5)),0,new_yllv2(VALUE(LEFT(Options!$B$24,2)),$C223,$D223,$E223,$F223,2016,$I223,1,$H223,$G223*$H223,Options!B8)))","v":2922.2005519388999},{"$f":"IF(AND(OR(Calculations!$E$2=\"Orkney Health Board\",Calculations!$E$2=\"Orkney Islands Local Authority\"),$F223=1),0,IF(AND(OR(Calculations!$E$2=\"Shetland Health Board\",Calculations!$E$2=\"Western Isles Health Board\",Calculations!$E$2=\"Shetland Islands Local Authority\",Calculations!$E$2=\"Eilean Siar Local Authority\"),OR($F223=1,$F223=5)),0,new_yllv2(VALUE(LEFT(Options!$B$24,2)),$C223,$D223,$E223,$F223,2016,$I223+$J223,1,$H223,$G223*$H223,Options!B8)))","v":2910.1268533044999},{"$f":"IF(AND(OR(Calculations!$E$2=\"Orkney Health Board\",Calculations!$E$2=\"Orkney Islands Local Authority\"),$F223=1),0,IF(AND(OR(Calculations!$E$2=\"Shetland Health Board\",Calculations!$E$2=\"Western Isles Health Board\",Calculations!$E$2=\"Shetland Islands Local Authority\",Calculations!$E$2=\"Eilean Siar Local Authority\"),OR($F223=1,$F223=5)),0,hosp_count(VALUE(LEFT(Options!$B$24,2)),$C223,$E223,$F223,2016,$I223,1,$H223,$G223*$H223, Options!B8)))","v":8109.1411843690003},{"$f":"IF(AND(OR(Calculations!$E$2=\"Orkney Health Board\",Calculations!$E$2=\"Orkney Islands Local Authority\"),$F223=1),0,IF(AND(OR(Calculations!$E$2=\"Shetland Health Board\",Calculations!$E$2=\"Western Isles Health Board\",Calculations!$E$2=\"Shetland Islands Local Authority\",Calculations!$E$2=\"Eilean Siar Local Authority\"),OR($F223=1,$F223=5)),0,hosp_count(VALUE(LEFT(Options!$B$24,2)),$C223,$E223,$F223,2016,$I223+$J223,1,$H223,$G223*$H223, Options!B8)))","v":8076.5608514235},{"$f":"IF(AND(OR(Calculations!$E$2=\"Orkney Health Board\",Calculations!$E$2=\"Orkney Islands Local Authority\"),$F223=1),0,IF(AND(OR(Calculations!$E$2=\"Shetland Health Board\",Calculations!$E$2=\"Western Isles Health Board\",Calculations!$E$2=\"Shetland Islands Local Authority\",Calculations!$E$2=\"Eilean Siar Local Authority\"),OR($F223=1,$F223=5)),0,prem_mort(VALUE(LEFT(Options!$B$24,2)),$C223,$E223,$F223,2016,$I223,1,$H223,$G223*$H223,Options!B8)))","v":114.50629570709999},{"$f":"IF(AND(OR(Calculations!$E$2=\"Orkney Health Board\",Calculations!$E$2=\"Orkney Islands Local Authority\"),$F223=1),0,IF(AND(OR(Calculations!$E$2=\"Shetland Health Board\",Calculations!$E$2=\"Western Isles Health Board\",Calculations!$E$2=\"Shetland Islands Local Authority\",Calculations!$E$2=\"Eilean Siar Local Authority\"),OR($F223=1,$F223=5)),0,prem_mort(VALUE(LEFT(Options!$B$24,2)),$C223,$E223,$F223,2016,$I223+$J223,1,$H223,$G223*$H223,Options!B8)))","v":114.0331883753},298.8628065644412,297.62799074829047,7626.9785246617421,7595.4660262684656,21164.955850000002,21079.920789850967,298.8628065644412,297.62799074829047,1942608.2426688678,1934581.9398638881,49575360.41030132,49370529.17074503,137572213.02500001,137019485.1340313,1942608.2426688678,1934581.9398638881,6500]
[null,"Female 60-64",61.947387999999997,84.167389999999997,"female",5,{"$f":"HLOOKUP(Calculations!$E$2,'Prevalence Rates'!$C$3:$BC$249,'Prevalence Rates'!$BD224,FALSE)","v":0.25001169714787463},{"$f":"HLOOKUP(Calculations!$E$2,'Population 2016'!$C$3:$BC$249,'Population 2016'!BD224,FALSE)","v":33644},0,{"$f":"HLOOKUP(Results!E$4,Targeting!$C$3:$F$249,Targeting!$G224,FALSE)","v":2544},{"$f":"IF(AND(OR(Calculations!$E$2=\"Orkney Health Board\",Calculations!$E$2=\"Orkney Islands Local Authority\"),$F224=1),0,IF(AND(OR(Calculations!$E$2=\"Shetland Health Board\",Calculations!$E$2=\"Western Isles Health Board\",Calculations!$E$2=\"Shetland Islands Local Authority\",Calculations!$E$2=\"Eilean Siar Local Authority\"),OR($F224=1,$F224=5)),0,new_ci(VALUE(LEFT(Options!$B$24,2)),$C224,$E224,$F224,2016,$I224,1,$H224,$G224*$H224,Options!B8)))","v":153.6418478562},{"$f":"IF(AND(OR(Calculations!$E$2=\"Orkney Health Board\",Calculations!$E$2=\"Orkney Islands Local Authority\"),$F224=1),0,IF(AND(OR(Calculations!$E$2=\"Shetland Health Board\",Calculations!$E$2=\"Western Isles Health Board\",Calculations!$E$2=\"Shetland Islands Local Authority\",Calculations!$E$2=\"Eilean Siar Local Authority\"),OR($F224=1,$F224=5)),0,new_ci(VALUE(LEFT(Options!$B$24,2)),$C224,$E224,$F224,2016,$I224+$J224,1,$H224,$G224*$H224,Options!B8)))","v":153.00778155059999},{"$f":"IF(AND(OR(Calculations!$E$2=\"Orkney Health Board\",Calculations!$E$2=\"Orkney Islands Local Authority\"),$F224=1),0,IF(AND(OR(Calculations!$E$2=\"Shetland Health Board\",Calculations!$E$2=\"Western Isles Health Board\",Calculations!$E$2=\"Shetland Islands Local Authority\",Calculations!$E$2=\"Eilean Siar Local Authority\"),OR($F224=1,$F224=5)),0,new_yllv2(VALUE(LEFT(Options!$B$24,2)),$C224,$D224,$E224,$F224,2016,$I224,1,$H224,$G224*$H224,Options!B8)))","v":3260.2803187923},{"$f":"IF(AND(OR(Calculations!$E$2=\"Orkney Health Board\",Calculations!$E$2=\"Orkney Islands Local Authority\"),$F224=1),0,IF(AND(OR(Calculations!$E$2=\"Shetland Health Board\",Calculations!$E$2=\"Western Isles Health Board\",Calculations!$E$2=\"Shetland Islands Local Authority\",Calculations!$E$2=\"Eilean Siar Local Authority\"),OR($F224=1,$F224=5)),0,new_yllv2(VALUE(LEFT(Options!$B$24,2)),$C224,$D224,$E224,$F224,2016,$I224+$J224,1,$H224,$G224*$H224,Options!B8)))","v":3246.8254305193},{"$f":"IF(AND(OR(Calculations!$E$2=\"Orkney Health Board\",Calculations!$E$2=\"Orkney Islands Local Authority\"),$F224=1),0,IF(AND(OR(Calculations!$E$2=\"Shetland Health Board\",Calculations!$E$2=\"Western Isles Health Board\",Calculations!$E$2=\"Shetland Islands Local Authority\",Calculations!$E$2=\"Eilean Siar Local Authority\"),OR($F224=1,$F224=5)),0,hosp_count(VALUE(LEFT(Options!$B$24,2)),$C224,$E224,$F224,2016,$I224,1,$H224,$G224*$H224, Options!B8)))","v":8073.9077134924},{"$f":"IF(AND(OR(Calculations!$E$2=\"Orkney Health Board\",Calculations!$E$2=\"Orkney Islands Local Authority\"),$F224=1),0,IF(AND(OR(Calculations!$E$2=\"Shetland Health Board\",Calculations!$E$2=\"Western Isles Health Board\",Calculations!$E$2=\"Shetland Islands Local Authority\",Calculations!$E$2=\"Eilean Siar Local Authority\"),OR($F224=1,$F224=5)),0,hosp_count(VALUE(LEFT(Options!$B$24,2)),$C224,$E224,$F224,2016,$I224+$J224,1,$H224,$G224*$H224, Options!B8)))","v":8041.4675585833002},{"$f":"IF(AND(OR(Calculations!$E$2=\"Orkney Health Board\",Calculations!$E$2=\"Orkney Islands Local Authority\"),$F224=1),0,IF(AND(OR(Calculations!$E$2=\"Shetland Health Board\",Calculations!$E$2=\"Western Isles Health Board\",Calculations!$E$2=\"Shetland Islands Local Authority\",Calculations!$E$2=\"Eilean Siar Local Authority\"),OR($F224=1,$F224=5)),0,prem_mort(VALUE(LEFT(Options!$B$24,2)),$C224,$E224,$F224,2016,$I224,1,$H224,$G224*$H224,Options!B8)))","v":153.6418478562},{"$f":"IF(AND(OR(Calculations!$E$2=\"Orkney Health Board\",Calculations!$E$2=\"Orkney Islands Local Authority\"),$F224=1),0,IF(AND(OR(Calculations!$E$2=\"Shetland Health Board\",Calculations!$E$2=\"Western Isles Health Board\",Calculations!$E$2=\"Shetland Islands Local Authority\",Calculations!$E$2=\"Eilean Siar Local Authority\"),OR($F224=1,$F224=5)),0,prem_mort(VALUE(LEFT(Options!$B$24,2)),$C224,$E224,$F224,2016,$I224+$J224,1,$H224,$G224*$H224,Options!B8)))","v":153.00778155059999},456.66938490131969,454.78475077458086,9690.5252609448944,9650.5333210061235,23998.06121,23901.639396573832,456.66938490131969,454.78475077458086,2740016.3094079182,2728708.504647485,58143151.565669365,57903199.926036738,143988367.25999999,143409836.37944299,2740016.3094079182,2728708.504647485,6000]
[null,"Female 65-69",67.063927000000007,85.193929999999995,"female",5,{"$f":"HLOOKUP(Calculations!$E$2,'Prevalence Rates'!$C$3:$BC$249,'Prevalence Rates'!$BD225,FALSE)","v":0.2319435778829754},{"$f":"HLOOKUP(Calculations!$E$2,'Population 2016'!$C$3:$BC$249,'Population 2016'!BD225,FALSE)","v":33766},0,{"$f":"HLOOKUP(Results!E$4,Targeting!$C$3:$F$249,Targeting!$G225,FALSE)","v":2553},{"$f":"IF(AND(OR(Calculations!$E$2=\"Orkney Health Board\",Calculations!$E$2=\"Orkney Islands Local Authority\"),$F225=1),0,IF(AND(OR(Calculations!$E$2=\"Shetland Health Board\",Calculations!$E$2=\"Western Isles Health Board\",Calculations!$E$2=\"Shetland Islands Local Authority\",Calculations!$E$2=\"Eilean Siar Local Authority\"),OR($F225=1,$F225=5)),0,new_ci(VALUE(LEFT(Options!$B$24,2)),$C225,$E225,$F225,2016,$I225,1,$H225,$G225*$H225,Options!B8)))","v":237.9705212264},{"$f":"IF(AND(OR(Calculations!$E$2=\"Orkney Health Board\",Calculations!$E$2=\"Orkney Islands Local Authority\"),$F225=1),0,IF(AND(OR(Calculations!$E$2=\"Shetland Health Board\",Calculations!$E$2=\"Western Isles Health Board\",Calculations!$E$2=\"Shetland Islands Local Authority\",Calculations!$E$2=\"Eilean Siar Local Authority\"),OR($F225=1,$F225=5)),0,new_ci(VALUE(LEFT(Options!$B$24,2)),$C225,$E225,$F225,2016,$I225+$J225,1,$H225,$G225*$H225,Options!B8)))","v":236.9832419162},{"$f":"IF(AND(OR(Calculations!$E$2=\"Orkney Health Board\",Calculations!$E$2=\"Orkney Islands Local Authority\"),$F225=1),0,IF(AND(OR(Calculations!$E$2=\"Shetland Health Board\",Calculations!$E$2=\"Western Isles Health Board\",Calculations!$E$2=\"Shetland Islands Local Authority\",Calculations!$E$2=\"Eilean Siar Local Authority\"),OR($F225=1,$F225=5)),0,new_yllv2(VALUE(LEFT(Options!$B$24,2)),$C225,$D225,$E225,$F225,2016,$I225,1,$H225,$G225*$H225,Options!B8)))","v":4076.4357425198},{"$f":"IF(AND(OR(Calculations!$E$2=\"Orkney Health Board\",Calculations!$E$2=\"Orkney Islands Local Authority\"),$F225=1),0,IF(AND(OR(Calculations!$E$2=\"Shetland Health Board\",Calculations!$E$2=\"Western Isles Health Board\",Calculations!$E$2=\"Shetland Islands Local Authority\",Calculations!$E$2=\"Eilean Siar Local Authority\"),OR($F225=1,$F225=5)),0,new_yllv2(VALUE(LEFT(Options!$B$24,2)),$C225,$D225,$E225,$F225,2016,$I225+$J225,1,$H225,$G225*$H225,Options!B8)))","v":4059.5236449742001},{"$f":"IF(AND(OR(Calculations!$E$2=\"Orkney Health Board\",Calculations!$E$2=\"Orkney Islands Local Authority\"),$F225=1),0,IF(AND(OR(Calculations!$E$2=\"Shetland Health Board\",Calculations!$E$2=\"Western Isles Health Board\",Calculations!$E$2=\"Shetland Islands Local Authority\",Calculations!$E$2=\"Eilean Siar Local Authority\"),OR($F225=1,$F225=5)),0,hosp_count(VALUE(LEFT(Options!$B$24,2)),$C225,$E225,$F225,2016,$I225,1,$H225,$G225*$H225, Options!B8)))","v":9216.1471731248002},{"$f":"IF(AND(OR(Calculations!$E$2=\"Orkney Health Board\",Calculations!$E$2=\"Orkney Islands Local Authority\"),$F225=1),0,IF(AND(OR(Calculations!$E$2=\"Shetland Health Board\",Calculations!$E$2=\"Western Isles Health Board\",Calculations!$E$2=\"Shetland Islands Local Authority\",Calculations!$E$2=\"Eilean Siar Local Authority\"),OR($F225=1,$F225=5)),0,hosp_count(VALUE(LEFT(Options!$B$24,2)),$C225,$E225,$F225,2016,$I225+$J225,1,$H225,$G225*$H225, Options!B8)))","v":9179.0683336246002},{"$f":"IF(AND(OR(Calculations!$E$2=\"Orkney Health Board\",Calculations!$E$2=\"Orkney Islands Local Authority\"),$F225=1),0,IF(AND(OR(Calculations!$E$2=\"Shetland Health Board\",Calculations!$E$2=\"Western Isles Health Board\",Calculations!$E$2=\"Shetland Islands Local Authority\",Calculations!$E$2=\"Eilean Siar Local Authority\"),OR($F225=1,$F225=5)),0,prem_mort(VALUE(LEFT(Options!$B$24,2)),$C225,$E225,$F225,2016,$I225,1,$H225,$G225*$H225,Options!B8)))","v":237.9705212264},{"$f":"IF(AND(OR(Calculations!$E$2=\"Orkney Health Board\",Calculations!$E$2=\"Orkney Islands Local Authority\"),$F225=1),0,IF(AND(OR(Calculations!$E$2=\"Shetland Health Board\",Calculations!$E$2=\"Western Isles Health Board\",Calculations!$E$2=\"Shetland Islands Local Authority\",Calculations!$E$2=\"Eilean Siar Local Authority\"),OR($F225=1,$F225=5)),0,prem_mort(VALUE(LEFT(Options!$B$24,2)),$C225,$E225,$F225,2016,$I225+$J225,1,$H225,$G225*$H225,Options!B8)))","v":236.9832419162},704.76373045785704,701.83984456613155,12072.604817034295,12022.518642937275,27294.163280000001,27184.352110479773,704.76373045785704,701.83984456613155,3876200.5175182135,3860119.1451137234,66399326.493688621,66123852.536155015,150117898.03999999,149513936.60763875,3876200.5175182135,3860119.1451137234,5500]
[null,"Female 70-74",71.938164,86.248159999999999,"female",5,{"$f":"HLOOKUP(Calculations!$E$2,'Prevalence Rates'!$C$3:$BC$249,'Prevalence Rates'!$BD226,FALSE)","v":0.2319435778829754},{"$f":"HLOOKUP(Calculations!$E$2,'Population 2016'!$C$3:$BC$249,'Population 2016'!BD226,FALSE)","v":25722},0,{"$f":"HLOOKUP(Results!E$4,Targeting!$C$3:$F$249,Targeting!$G226,FALSE)","v":1945},{"$f":"IF(AND(OR(Calculations!$E$2=\"Orkney Health Board\",Calculations!$E$2=\"Orkney Islands Local Authority\"),$F226=1),0,IF(AND(OR(Calculations!$E$2=\"Shetland Health Board\",Calculations!$E$2=\"Western Isles Health Board\",Calculations!$E$2=\"Shetland Islands Local Authority\",Calculations!$E$2=\"Eilean Siar Local Authority\"),OR($F226=1,$F226=5)),0,new_ci(VALUE(LEFT(Options!$B$24,2)),$C226,$E226,$F226,2016,$I226,1,$H226,$G226*$H226,Options!B8)))","v":273.8955046927},{"$f":"IF(AND(OR(Calculations!$E$2=\"Orkney Health Board\",Calculations!$E$2=\"Orkney Islands Local Authority\"),$F226=1),0,IF(AND(OR(Calculations!$E$2=\"Shetland Health Board\",Calculations!$E$2=\"Western Isles Health Board\",Calculations!$E$2=\"Shetland Islands Local Authority\",Calculations!$E$2=\"Eilean Siar Local Authority\"),OR($F226=1,$F226=5)),0,new_ci(VALUE(LEFT(Options!$B$24,2)),$C226,$E226,$F226,2016,$I226+$J226,1,$H226,$G226*$H226,Options!B8)))","v":272.76224888669998},{"$f":"IF(AND(OR(Calculations!$E$2=\"Orkney Health Board\",Calculations!$E$2=\"Orkney Islands Local Authority\"),$F226=1),0,IF(AND(OR(Calculations!$E$2=\"Shetland Health Board\",Calculations!$E$2=\"Western Isles Health Board\",Calculations!$E$2=\"Shetland Islands Local Authority\",Calculations!$E$2=\"Eilean Siar Local Authority\"),OR($F226=1,$F226=5)),0,new_yllv2(VALUE(LEFT(Options!$B$24,2)),$C226,$D226,$E226,$F226,2016,$I226,1,$H226,$G226*$H226,Options!B8)))","v":3645.5480718777999},{"$f":"IF(AND(OR(Calculations!$E$2=\"Orkney Health Board\",Calculations!$E$2=\"Orkney Islands Local Authority\"),$F226=1),0,IF(AND(OR(Calculations!$E$2=\"Shetland Health Board\",Calculations!$E$2=\"Western Isles Health Board\",Calculations!$E$2=\"Shetland Islands Local Authority\",Calculations!$E$2=\"Eilean Siar Local Authority\"),OR($F226=1,$F226=5)),0,new_yllv2(VALUE(LEFT(Options!$B$24,2)),$C226,$D226,$E226,$F226,2016,$I226+$J226,1,$H226,$G226*$H226,Options!B8)))","v":3630.4644416330002},{"$f":"IF(AND(OR(Calculations!$E$2=\"Orkney Health Board\",Calculations!$E$2=\"Orkney Islands Local Authority\"),$F226=1),0,IF(AND(OR(Calculations!$E$2=\"Shetland Health Board\",Calculations!$E$2=\"Western Isles Health Board\",Calculations!$E$2=\"Shetland Islands Local Authority\",Calculations!$E$2=\"Eilean Siar Local Authority\"),OR($F226=1,$F226=5)),0,hosp_count(VALUE(LEFT(Options!$B$24,2)),$C226,$E226,$F226,2016,$I226,1,$H226,$G226*$H226, Options!B8)))","v":7936.3573448597999},{"$f":"IF(AND(OR(Calculations!$E$2=\"Orkney Health Board\",Calculations!$E$2=\"Orkney Islands Local Authority\"),$F226=1),0,IF(AND(OR(Calculations!$E$2=\"Shetland Health Board\",Calculations!$E$2=\"Western Isles Health Board\",Calculations!$E$2=\"Shetland Islands Local Authority\",Calculations!$E$2=\"Eilean Siar Local Authority\"),OR($F226=1,$F226=5)),0,hosp_count(VALUE(LEFT(Options!$B$24,2)),$C226,$E226,$F226,2016,$I226+$J226,1,$H226,$G226*$H226, Options!B8)))","v":7904.4242051484998},{"$f":"IF(AND(OR(Calculations!$E$2=\"Orkney Health Board\",Calculations!$E$2=\"Orkney Islands Local Authority\"),$F226=1),0,IF(AND(OR(Calculations!$E$2=\"Shetland Health Board\",Calculations!$E$2=\"Western Isles Health Board\",Calculations!$E$2=\"Shetland Islands Local Authority\",Calculations!$E$2=\"Eilean Siar Local Authority\"),OR($F226=1,$F226=5)),0,prem_mort(VALUE(LEFT(Options!$B$24,2)),$C226,$E226,$F226,2016,$I226,1,$H226,$G226*$H226,Options!B8)))","v":273.8955046927},{"$f":"IF(AND(OR(Calculations!$E$2=\"Orkney Health Board\",Calculations!$E$2=\"Orkney Islands Local Authority\"),$F226=1),0,IF(AND(OR(Calculations!$E$2=\"Shetland Health Board\",Calculations!$E$2=\"Western Isles Health Board\",Calculations!$E$2=\"Shetland Islands Local Authority\",Calculations!$E$2=\"Eilean Siar Local Authority\"),OR($F226=1,$F226=5)),0,prem_mort(VALUE(LEFT(Options!$B$24,2)),$C226,$E226,$F226,2016,$I226+$J226,1,$H226,$G226*$H226,Options!B8)))","v":272.76224888669998},1064.8297359952569,1060.4239518182878,14172.879526777853,14114.238557005678,30854.355590000003,30730.208401945805,1064.8297359952569,1060.4239518182878,5324148.6799762845,5302119.7590914387,70864397.633889273,70571192.785028383,154271777.95000002,153651042.00972903,5324148.6799762845,5302119.7590914387,5000]
[null,"Female 75-79",76.942824999999999,87.812830000000005,"female",5,{"$f":"HLOOKUP(Calculations!$E$2,'Prevalence Rates'!$C$3:$BC$249,'Prevalence Rates'!$BD227,FALSE)","v":0.11201545504198153},{"$f":"HLOOKUP(Calculations!$E$2,'Population 2016'!$C$3:$BC$249,'Population 2016'!BD227,FALSE)","v":20290},0,{"$f":"HLOOKUP(Results!E$4,Targeting!$C$3:$F$249,Targeting!$G227,FALSE)","v":1534},{"$f":"IF(AND(OR(Calculations!$E$2=\"Orkney Health Board\",Calculations!$E$2=\"Orkney Islands Local Authority\"),$F227=1),0,IF(AND(OR(Calculations!$E$2=\"Shetland Health Board\",Calculations!$E$2=\"Western Isles Health Board\",Calculations!$E$2=\"Shetland Islands Local Authority\",Calculations!$E$2=\"Eilean Siar Local Authority\"),OR($F227=1,$F227=5)),0,new_ci(VALUE(LEFT(Options!$B$24,2)),$C227,$E227,$F227,2016,$I227,1,$H227,$G227*$H227,Options!B8)))","v":329.76203908389999},{"$f":"IF(AND(OR(Calculations!$E$2=\"Orkney Health Board\",Calculations!$E$2=\"Orkney Islands Local Authority\"),$F227=1),0,IF(AND(OR(Calculations!$E$2=\"Shetland Health Board\",Calculations!$E$2=\"Western Isles Health Board\",Calculations!$E$2=\"Shetland Islands Local Authority\",Calculations!$E$2=\"Eilean Siar Local Authority\"),OR($F227=1,$F227=5)),0,new_ci(VALUE(LEFT(Options!$B$24,2)),$C227,$E227,$F227,2016,$I227+$J227,1,$H227,$G227*$H227,Options!B8)))","v":328.33572112849998},{"$f":"IF(AND(OR(Calculations!$E$2=\"Orkney Health Board\",Calculations!$E$2=\"Orkney Islands Local Authority\"),$F227=1),0,IF(AND(OR(Calculations!$E$2=\"Shetland Health Board\",Calculations!$E$2=\"Western Isles Health Board\",Calculations!$E$2=\"Shetland Islands Local Authority\",Calculations!$E$2=\"Eilean Siar Local Authority\"),OR($F227=1,$F227=5)),0,new_yllv2(VALUE(LEFT(Options!$B$24,2)),$C227,$D227,$E227,$F227,2016,$I227,1,$H227,$G227*$H227,Options!B8)))","v":3254.7529745683},{"$f":"IF(AND(OR(Calculations!$E$2=\"Orkney Health Board\",Calculations!$E$2=\"Orkney Islands Local Authority\"),$F227=1),0,IF(AND(OR(Calculations!$E$2=\"Shetland Health Board\",Calculations!$E$2=\"Western Isles Health Board\",Calculations!$E$2=\"Shetland Islands Local Authority\",Calculations!$E$2=\"Eilean Siar Local Authority\"),OR($F227=1,$F227=5)),0,new_yllv2(VALUE(LEFT(Options!$B$24,2)),$C227,$D227,$E227,$F227,2016,$I227+$J227,1,$H227,$G227*$H227,Options!B8)))","v":3240.6752092168999},{"$f":"IF(AND(OR(Calculations!$E$2=\"Orkney Health Board\",Calculations!$E$2=\"Orkney Islands Local Authority\"),$F227=1),0,IF(AND(OR(Calculations!$E$2=\"Shetland Health Board\",Calculations!$E$2=\"Western Isles Health Board\",Calculations!$E$2=\"Shetland Islands Local Authority\",Calculations!$E$2=\"Eilean Siar Local Authority\"),OR($F227=1,$F227=5)),0,hosp_count(VALUE(LEFT(Options!$B$24,2)),$C227,$E227,$F227,2016,$I227,1,$H227,$G227*$H227, Options!B8)))","v":7100.1902926740004},{"$f":"IF(AND(OR(Calculations!$E$2=\"Orkney Health Board\",Calculations!$E$2=\"Orkney Islands Local Authority\"),$F227=1),0,IF(AND(OR(Calculations!$E$2=\"Shetland Health Board\",Calculations!$E$2=\"Western Isles Health Board\",Calculations!$E$2=\"Shetland Islands Local Authority\",Calculations!$E$2=\"Eilean Siar Local Authority\"),OR($F227=1,$F227=5)),0,hosp_count(VALUE(LEFT(Options!$B$24,2)),$C227,$E227,$F227,2016,$I227+$J227,1,$H227,$G227*$H227, Options!B8)))","v":7071.3546891593996},{"$f":"IF(AND(OR(Calculations!$E$2=\"Orkney Health Board\",Calculations!$E$2=\"Orkney Islands Local Authority\"),$F227=1),0,IF(AND(OR(Calculations!$E$2=\"Shetland Health Board\",Calculations!$E$2=\"Western Isles Health Board\",Calculations!$E$2=\"Shetland Islands Local Authority\",Calculations!$E$2=\"Eilean Siar Local Authority\"),OR($F227=1,$F227=5)),0,prem_mort(VALUE(LEFT(Options!$B$24,2)),$C227,$E227,$F227,2016,$I227,1,$H227,$G227*$H227,Options!B8)))","v":0},{"$f":"IF(AND(OR(Calculations!$E$2=\"Orkney Health Board\",Calculations!$E$2=\"Orkney Islands Local Authority\"),$F227=1),0,IF(AND(OR(Calculations!$E$2=\"Shetland Health Board\",Calculations!$E$2=\"Western Isles Health Board\",Calculations!$E$2=\"Shetland Islands Local Authority\",Calculations!$E$2=\"Eilean Siar Local Authority\"),OR($F227=1,$F227=5)),0,prem_mort(VALUE(LEFT(Options!$B$24,2)),$C227,$E227,$F227,2016,$I227+$J227,1,$H227,$G227*$H227,Options!B8)))","v":0},1625.2441551695417,1618.2144954583539,16041.167937744211,15971.785161246426,34993.545060000004,34851.427743516011,0,0,6500976.6206781669,6472857.981833416,64164671.750976846,63887140.644985706,139974180.24000001,139405710.97406405,0,0,4000]
[null,"Female 80-84",81.856712000000002,89.736710000000002,"female",5,{"$f":"HLOOKUP(Calculations!$E$2,'Prevalence Rates'!$C$3:$BC$249,'Prevalence Rates'!$BD228,FALSE)","v":0.11201545504198153},{"$f":"HLOOKUP(Calculations!$E$2,'Population 2016'!$C$3:$BC$249,'Population 2016'!BD228,FALSE)","v":15640},0,{"$f":"HLOOKUP(Results!E$4,Targeting!$C$3:$F$249,Targeting!$G228,FALSE)","v":1182},{"$f":"IF(AND(OR(Calculations!$E$2=\"Orkney Health Board\",Calculations!$E$2=\"Orkney Islands Local Authority\"),$F228=1),0,IF(AND(OR(Calculations!$E$2=\"Shetland Health Board\",Calculations!$E$2=\"Western Isles Health Board\",Calculations!$E$2=\"Shetland Islands Local Authority\",Calculations!$E$2=\"Eilean Siar Local Authority\"),OR($F228=1,$F228=5)),0,new_ci(VALUE(LEFT(Options!$B$24,2)),$C228,$E228,$F228,2016,$I228,1,$H228,$G228*$H228,Options!B8)))","v":384.41000715929999},{"$f":"IF(AND(OR(Calculations!$E$2=\"Orkney Health Board\",Calculations!$E$2=\"Orkney Islands Local Authority\"),$F228=1),0,IF(AND(OR(Calculations!$E$2=\"Shetland Health Board\",Calculations!$E$2=\"Western Isles Health Board\",Calculations!$E$2=\"Shetland Islands Local Authority\",Calculations!$E$2=\"Eilean Siar Local Authority\"),OR($F228=1,$F228=5)),0,new_ci(VALUE(LEFT(Options!$B$24,2)),$C228,$E228,$F228,2016,$I228+$J228,1,$H228,$G228*$H228,Options!B8)))","v":382.75983126149998},{"$f":"IF(AND(OR(Calculations!$E$2=\"Orkney Health Board\",Calculations!$E$2=\"Orkney Islands Local Authority\"),$F228=1),0,IF(AND(OR(Calculations!$E$2=\"Shetland Health Board\",Calculations!$E$2=\"Western Isles Health Board\",Calculations!$E$2=\"Shetland Islands Local Authority\",Calculations!$E$2=\"Eilean Siar Local Authority\"),OR($F228=1,$F228=5)),0,new_yllv2(VALUE(LEFT(Options!$B$24,2)),$C228,$D228,$E228,$F228,2016,$I228,1,$H228,$G228*$H228,Options!B8)))","v":2644.740080436},{"$f":"IF(AND(OR(Calculations!$E$2=\"Orkney Health Board\",Calculations!$E$2=\"Orkney Islands Local Authority\"),$F228=1),0,IF(AND(OR(Calculations!$E$2=\"Shetland Health Board\",Calculations!$E$2=\"Western Isles Health Board\",Calculations!$E$2=\"Shetland Islands Local Authority\",Calculations!$E$2=\"Eilean Siar Local Authority\"),OR($F228=1,$F228=5)),0,new_yllv2(VALUE(LEFT(Options!$B$24,2)),$C228,$D228,$E228,$F228,2016,$I228+$J228,1,$H228,$G228*$H228,Options!B8)))","v":2633.3868735595001},{"$f":"IF(AND(OR(Calculations!$E$2=\"Orkney Health Board\",Calculations!$E$2=\"Orkney Islands Local Authority\"),$F228=1),0,IF(AND(OR(Calculations!$E$2=\"Shetland Health Board\",Calculations!$E$2=\"Western Isles Health Board\",Calculations!$E$2=\"Shetland Islands Local Authority\",Calculations!$E$2=\"Eilean Siar Local Authority\"),OR($F228=1,$F228=5)),0,hosp_count(VALUE(LEFT(Options!$B$24,2)),$C228,$E228,$F228,2016,$I228,1,$H228,$G228*$H228, Options!B8)))","v":6193.0491423240001},{"$f":"IF(AND(OR(Calculations!$E$2=\"Orkney Health Board\",Calculations!$E$2=\"Orkney Islands Local Authority\"),$F228=1),0,IF(AND(OR(Calculations!$E$2=\"Shetland Health Board\",Calculations!$E$2=\"Western Isles Health Board\",Calculations!$E$2=\"Shetland Islands Local Authority\",Calculations!$E$2=\"Eilean Siar Local Authority\"),OR($F228=1,$F228=5)),0,hosp_count(VALUE(LEFT(Options!$B$24,2)),$C228,$E228,$F228,2016,$I228+$J228,1,$H228,$G228*$H228, Options!B8)))","v":6167.9070741784999},{"$f":"IF(AND(OR(Calculations!$E$2=\"Orkney Health Board\",Calculations!$E$2=\"Orkney Islands Local Authority\"),$F228=1),0,IF(AND(OR(Calculations!$E$2=\"Shetland Health Board\",Calculations!$E$2=\"Western Isles Health Board\",Calculations!$E$2=\"Shetland Islands Local Authority\",Calculations!$E$2=\"Eilean Siar Local Authority\"),OR($F228=1,$F228=5)),0,prem_mort(VALUE(LEFT(Options!$B$24,2)),$C228,$E228,$F228,2016,$I228,1,$H228,$G228*$H228,Options!B8)))","v":0},{"$f":"IF(AND(OR(Calculations!$E$2=\"Orkney Health Board\",Calculations!$E$2=\"Orkney Islands Local Authority\"),$F228=1),0,IF(AND(OR(Calculations!$E$2=\"Shetland Health Board\",Calculations!$E$2=\"Western Isles Health Board\",Calculations!$E$2=\"Shetland Islands Local Authority\",Calculations!$E$2=\"Eilean Siar Local Authority\"),OR($F228=1,$F228=5)),0,prem_mort(VALUE(LEFT(Options!$B$24,2)),$C228,$E228,$F228,2016,$I228+$J228,1,$H228,$G228*$H228,Options!B8)))","v":0},2457.8644959034527,2447.3134991144498,16910.102816086957,16837.511979280691,39597.500910000002,39436.745998583763,0,0,6144661.2397586321,6118283.7477861242,42275257.040217392,42093779.948201731,98993752.275000006,98591864.99645941,0,0,2500]
[null,"Female 85-89",86.730819999999994,92.220819999999989,"female",5,{"$f":"HLOOKUP(Calculations!$E$2,'Prevalence Rates'!$C$3:$BC$249,'Prevalence Rates'!$BD229,FALSE)","v":0.11201545504198153},{"$f":"HLOOKUP(Calculations!$E$2,'Population 2016'!$C$3:$BC$249,'Population 2016'!BD229,FALSE)","v":9964},0,{"$f":"HLOOKUP(Results!E$4,Targeting!$C$3:$F$249,Targeting!$G229,FALSE)","v":753},{"$f":"IF(AND(OR(Calculations!$E$2=\"Orkney Health Board\",Calculations!$E$2=\"Orkney Islands Local Authority\"),$F229=1),0,IF(AND(OR(Calculations!$E$2=\"Shetland Health Board\",Calculations!$E$2=\"Western Isles Health Board\",Calculations!$E$2=\"Shetland Islands Local Authority\",Calculations!$E$2=\"Eilean Siar Local Authority\"),OR($F229=1,$F229=5)),0,new_ci(VALUE(LEFT(Options!$B$24,2)),$C229,$E229,$F229,2016,$I229,1,$H229,$G229*$H229,Options!B8)))","v":368.31851265249998},{"$f":"IF(AND(OR(Calculations!$E$2=\"Orkney Health Board\",Calculations!$E$2=\"Orkney Islands Local Authority\"),$F229=1),0,IF(AND(OR(Calculations!$E$2=\"Shetland Health Board\",Calculations!$E$2=\"Western Isles Health Board\",Calculations!$E$2=\"Shetland Islands Local Authority\",Calculations!$E$2=\"Eilean Siar Local Authority\"),OR($F229=1,$F229=5)),0,new_ci(VALUE(LEFT(Options!$B$24,2)),$C229,$E229,$F229,2016,$I229+$J229,1,$H229,$G229*$H229,Options!B8)))","v":366.75447999670001},{"$f":"IF(AND(OR(Calculations!$E$2=\"Orkney Health Board\",Calculations!$E$2=\"Orkney Islands Local Authority\"),$F229=1),0,IF(AND(OR(Calculations!$E$2=\"Shetland Health Board\",Calculations!$E$2=\"Western Isles Health Board\",Calculations!$E$2=\"Shetland Islands Local Authority\",Calculations!$E$2=\"Eilean Siar Local Authority\"),OR($F229=1,$F229=5)),0,new_yllv2(VALUE(LEFT(Options!$B$24,2)),$C229,$D229,$E229,$F229,2016,$I229,1,$H229,$G229*$H229,Options!B8)))","v":1653.7501218097},{"$f":"IF(AND(OR(Calculations!$E$2=\"Orkney Health Board\",Calculations!$E$2=\"Orkney Islands Local Authority\"),$F229=1),0,IF(AND(OR(Calculations!$E$2=\"Shetland Health Board\",Calculations!$E$2=\"Western Isles Health Board\",Calculations!$E$2=\"Shetland Islands Local Authority\",Calculations!$E$2=\"Eilean Siar Local Authority\"),OR($F229=1,$F229=5)),0,new_yllv2(VALUE(LEFT(Options!$B$24,2)),$C229,$D229,$E229,$F229,2016,$I229+$J229,1,$H229,$G229*$H229,Options!B8)))","v":1646.7276151852},{"$f":"IF(AND(OR(Calculations!$E$2=\"Orkney Health Board\",Calculations!$E$2=\"Orkney Islands Local Authority\"),$F229=1),0,IF(AND(OR(Calculations!$E$2=\"Shetland Health Board\",Calculations!$E$2=\"Western Isles Health Board\",Calculations!$E$2=\"Shetland Islands Local Authority\",Calculations!$E$2=\"Eilean Siar Local Authority\"),OR($F229=1,$F229=5)),0,hosp_count(VALUE(LEFT(Options!$B$24,2)),$C229,$E229,$F229,2016,$I229,1,$H229,$G229*$H229, Options!B8)))","v":4460.1224511456003},{"$f":"IF(AND(OR(Calculations!$E$2=\"Orkney Health Board\",Calculations!$E$2=\"Orkney Islands Local Authority\"),$F229=1),0,IF(AND(OR(Calculations!$E$2=\"Shetland Health Board\",Calculations!$E$2=\"Western Isles Health Board\",Calculations!$E$2=\"Shetland Islands Local Authority\",Calculations!$E$2=\"Eilean Siar Local Authority\"),OR($F229=1,$F229=5)),0,hosp_count(VALUE(LEFT(Options!$B$24,2)),$C229,$E229,$F229,2016,$I229+$J229,1,$H229,$G229*$H229, Options!B8)))","v":4442.0163983009998},{"$f":"IF(AND(OR(Calculations!$E$2=\"Orkney Health Board\",Calculations!$E$2=\"Orkney Islands Local Authority\"),$F229=1),0,IF(AND(OR(Calculations!$E$2=\"Shetland Health Board\",Calculations!$E$2=\"Western Isles Health Board\",Calculations!$E$2=\"Shetland Islands Local Authority\",Calculations!$E$2=\"Eilean Siar Local Authority\"),OR($F229=1,$F229=5)),0,prem_mort(VALUE(LEFT(Options!$B$24,2)),$C229,$E229,$F229,2016,$I229,1,$H229,$G229*$H229,Options!B8)))","v":0},{"$f":"IF(AND(OR(Calculations!$E$2=\"Orkney Health Board\",Calculations!$E$2=\"Orkney Islands Local Authority\"),$F229=1),0,IF(AND(OR(Calculations!$E$2=\"Shetland Health Board\",Calculations!$E$2=\"Western Isles Health Board\",Calculations!$E$2=\"Shetland Islands Local Authority\",Calculations!$E$2=\"Eilean Siar Local Authority\"),OR($F229=1,$F229=5)),0,prem_mort(VALUE(LEFT(Options!$B$24,2)),$C229,$E229,$F229,2016,$I229+$J229,1,$H229,$G229*$H229,Options!B8)))","v":0},3696.4924995232836,3680.7956643586913,16597.251322859291,16526.772532970695,44762.369039999998,44580.654338629065,0,0,5544738.7492849259,5521193.4965380365,24895876.984288935,24790158.799456045,67143553.560000002,66870981.5079436,0,0,1500]
[null,"Female 90+",92.779342999999997,96.279340000000005,"female",5,{"$f":"HLOOKUP(Calculations!$E$2,'Prevalence Rates'!$C$3:$BC$249,'Prevalence Rates'!$BD230,FALSE)","v":0.11201545504198153},{"$f":"HLOOKUP(Calculations!$E$2,'Population 2016'!$C$3:$BC$249,'Population 2016'!BD230,FALSE)","v":6057},0,{"$f":"HLOOKUP(Results!E$4,Targeting!$C$3:$F$249,Targeting!$G230,FALSE)","v":458},{"$f":"IF(AND(OR(Calculations!$E$2=\"Orkney Health Board\",Calculations!$E$2=\"Orkney Islands Local Authority\"),$F230=1),0,IF(AND(OR(Calculations!$E$2=\"Shetland Health Board\",Calculations!$E$2=\"Western Isles Health Board\",Calculations!$E$2=\"Shetland Islands Local Authority\",Calculations!$E$2=\"Eilean Siar Local Authority\"),OR($F230=1,$F230=5)),0,new_ci(VALUE(LEFT(Options!$B$24,2)),$C230,$E230,$F230,2016,$I230,1,$H230,$G230*$H230,Options!B8)))","v":369.75939273289998},{"$f":"IF(AND(OR(Calculations!$E$2=\"Orkney Health Board\",Calculations!$E$2=\"Orkney Islands Local Authority\"),$F230=1),0,IF(AND(OR(Calculations!$E$2=\"Shetland Health Board\",Calculations!$E$2=\"Western Isles Health Board\",Calculations!$E$2=\"Shetland Islands Local Authority\",Calculations!$E$2=\"Eilean Siar Local Authority\"),OR($F230=1,$F230=5)),0,new_ci(VALUE(LEFT(Options!$B$24,2)),$C230,$E230,$F230,2016,$I230+$J230,1,$H230,$G230*$H230,Options!B8)))","v":368.22171933390001},{"$f":"IF(AND(OR(Calculations!$E$2=\"Orkney Health Board\",Calculations!$E$2=\"Orkney Islands Local Authority\"),$F230=1),0,IF(AND(OR(Calculations!$E$2=\"Shetland Health Board\",Calculations!$E$2=\"Western Isles Health Board\",Calculations!$E$2=\"Shetland Islands Local Authority\",Calculations!$E$2=\"Eilean Siar Local Authority\"),OR($F230=1,$F230=5)),0,new_yllv2(VALUE(LEFT(Options!$B$24,2)),$C230,$D230,$E230,$F230,2016,$I230,1,$H230,$G230*$H230,Options!B8)))","v":924.3973725541},{"$f":"IF(AND(OR(Calculations!$E$2=\"Orkney Health Board\",Calculations!$E$2=\"Orkney Islands Local Authority\"),$F230=1),0,IF(AND(OR(Calculations!$E$2=\"Shetland Health Board\",Calculations!$E$2=\"Western Isles Health Board\",Calculations!$E$2=\"Shetland Islands Local Authority\",Calculations!$E$2=\"Eilean Siar Local Authority\"),OR($F230=1,$F230=5)),0,new_yllv2(VALUE(LEFT(Options!$B$24,2)),$C230,$D230,$E230,$F230,2016,$I230+$J230,1,$H230,$G230*$H230,Options!B8)))","v":920.55319366959998},{"$f":"IF(AND(OR(Calculations!$E$2=\"Orkney Health Board\",Calculations!$E$2=\"Orkney Islands Local Authority\"),$F230=1),0,IF(AND(OR(Calculations!$E$2=\"Shetland Health Board\",Calculations!$E$2=\"Western Isles Health Board\",Calculations!$E$2=\"Shetland Islands Local Authority\",Calculations!$E$2=\"Eilean Siar Local Authority\"),OR($F230=1,$F230=5)),0,hosp_count(VALUE(LEFT(Options!$B$24,2)),$C230,$E230,$F230,2016,$I230,1,$H230,$G230*$H230, Options!B8)))","v":3156.7875870779999},{"$f":"IF(AND(OR(Calculations!$E$2=\"Orkney Health Board\",Calculations!$E$2=\"Orkney Islands Local Authority\"),$F230=1),0,IF(AND(OR(Calculations!$E$2=\"Shetland Health Board\",Calculations!$E$2=\"Western Isles Health Board\",Calculations!$E$2=\"Shetland Islands Local Authority\",Calculations!$E$2=\"Eilean Siar Local Authority\"),OR($F230=1,$F230=5)),0,hosp_count(VALUE(LEFT(Options!$B$24,2)),$C230,$E230,$F230,2016,$I230+$J230,1,$H230,$G230*$H230, Options!B8)))","v":3143.9651962528001},{"$f":"IF(AND(OR(Calculations!$E$2=\"Orkney Health Board\",Calculations!$E$2=\"Orkney Islands Local Authority\"),$F230=1),0,IF(AND(OR(Calculations!$E$2=\"Shetland Health Board\",Calculations!$E$2=\"Western Isles Health Board\",Calculations!$E$2=\"Shetland Islands Local Authority\",Calculations!$E$2=\"Eilean Siar Local Authority\"),OR($F230=1,$F230=5)),0,prem_mort(VALUE(LEFT(Options!$B$24,2)),$C230,$E230,$F230,2016,$I230,1,$H230,$G230*$H230,Options!B8)))","v":0},{"$f":"IF(AND(OR(Calculations!$E$2=\"Orkney Health Board\",Calculations!$E$2=\"Orkney Islands Local Authority\"),$F230=1),0,IF(AND(OR(Calculations!$E$2=\"Shetland Health Board\",Calculations!$E$2=\"Western Isles Health Board\",Calculations!$E$2=\"Shetland Islands Local Authority\",Calculations!$E$2=\"Eilean Siar Local Authority\"),OR($F230=1,$F230=5)),0,prem_mort(VALUE(LEFT(Options!$B$24,2)),$C230,$E230,$F230,2016,$I230+$J230,1,$H230,$G230*$H230,Options!B8)))","v":0},6104.6622541340603,6079.2755379544324,15261.637321348853,15198.170607059601,52118.005399999995,51906.309992616814,0,0,6104662.2541340599,6079275.537954432,15261637.321348853,15198170.607059602,52118005.399999991,51906309.992616817,0,0,1000]
[null,"Male 0-4",2.0320822999999999,77.402082000000007,"male",5,{"$f":"HLOOKUP(Calculations!$E$2,'Prevalence Rates'!$C$3:$BC$249,'Prevalence Rates'!$BD231,FALSE)","v":0},{"$f":"HLOOKUP(Calculations!$E$2,'Population 2016'!$C$3:$BC$249,'Population 2016'!BD231,FALSE)","v":0},0,{"$f":"HLOOKUP(Results!E$4,Targeting!$C$3:$F$249,Targeting!$G231,FALSE)","v":0},{"$f":"IF(AND(OR(Calculations!$E$2=\"Orkney Health Board\",Calculations!$E$2=\"Orkney Islands Local Authority\"),$F231=1),0,IF(AND(OR(Calculations!$E$2=\"Shetland Health Board\",Calculations!$E$2=\"Western Isles Health Board\",Calculations!$E$2=\"Shetland Islands Local Authority\",Calculations!$E$2=\"Eilean Siar Local Authority\"),OR($F231=1,$F231=5)),0,new_ci(VALUE(LEFT(Options!$B$24,2)),$C231,$E231,$F231,2016,$I231,1,$H231,$G231*$H231,Options!B8)))","v":{"$error":"#VALUE!"}},{"$f":"IF(AND(OR(Calculations!$E$2=\"Orkney Health Board\",Calculations!$E$2=\"Orkney Islands Local Authority\"),$F231=1),0,IF(AND(OR(Calculations!$E$2=\"Shetland Health Board\",Calculations!$E$2=\"Western Isles Health Board\",Calculations!$E$2=\"Shetland Islands Local Authority\",Calculations!$E$2=\"Eilean Siar Local Authority\"),OR($F231=1,$F231=5)),0,new_ci(VALUE(LEFT(Options!$B$24,2)),$C231,$E231,$F231,2016,$I231+$J231,1,$H231,$G231*$H231,Options!B8)))","v":{"$error":"#VALUE!"}},{"$f":"IF(AND(OR(Calculations!$E$2=\"Orkney Health Board\",Calculations!$E$2=\"Orkney Islands Local Authority\"),$F231=1),0,IF(AND(OR(Calculations!$E$2=\"Shetland Health Board\",Calculations!$E$2=\"Western Isles Health Board\",Calculations!$E$2=\"Shetland Islands Local Authority\",Calculations!$E$2=\"Eilean Siar Local Authority\"),OR($F231=1,$F231=5)),0,new_yllv2(VALUE(LEFT(Options!$B$24,2)),$C231,$D231,$E231,$F231,2016,$I231,1,$H231,$G231*$H231,Options!B8)))","v":{"$error":"#VALUE!"}},{"$f":"IF(AND(OR(Calculations!$E$2=\"Orkney Health Board\",Calculations!$E$2=\"Orkney Islands Local Authority\"),$F231=1),0,IF(AND(OR(Calculations!$E$2=\"Shetland Health Board\",Calculations!$E$2=\"Western Isles Health Board\",Calculations!$E$2=\"Shetland Islands Local Authority\",Calculations!$E$2=\"Eilean Siar Local Authority\"),OR($F231=1,$F231=5)),0,new_yllv2(VALUE(LEFT(Options!$B$24,2)),$C231,$D231,$E231,$F231,2016,$I231+$J231,1,$H231,$G231*$H231,Options!B8)))","v":{"$error":"#VALUE!"}},{"$f":"IF(AND(OR(Calculations!$E$2=\"Orkney Health Board\",Calculations!$E$2=\"Orkney Islands Local Authority\"),$F231=1),0,IF(AND(OR(Calculations!$E$2=\"Shetland Health Board\",Calculations!$E$2=\"Western Isles Health Board\",Calculations!$E$2=\"Shetland Islands Local Authority\",Calculations!$E$2=\"Eilean Siar Local Authority\"),OR($F231=1,$F231=5)),0,hosp_count(VALUE(LEFT(Options!$B$24,2)),$C231,$E231,$F231,2016,$I231,1,$H231,$G231*$H231, Options!B8)))","v":{"$error":"#VALUE!"}},{"$f":"IF(AND(OR(Calculations!$E$2=\"Orkney Health Board\",Calculations!$E$2=\"Orkney Islands Local Authority\"),$F231=1),0,IF(AND(OR(Calculations!$E$2=\"Shetland Health Board\",Calculations!$E$2=\"Western Isles Health Board\",Calculations!$E$2=\"Shetland Islands Local Authority\",Calculations!$E$2=\"Eilean Siar Local Authority\"),OR($F231=1,$F231=5)),0,hosp_count(VALUE(LEFT(Options!$B$24,2)),$C231,$E231,$F231,2016,$I231+$J231,1,$H231,$G231*$H231, Options!B8)))","v":{"$error":"#VALUE!"}},{"$f":"IF(AND(OR(Calculations!$E$2=\"Orkney Health Board\",Calculations!$E$2=\"Orkney Islands Local Authority\"),$F231=1),0,IF(AND(OR(Calculations!$E$2=\"Shetland Health Board\",Calculations!$E$2=\"Western Isles Health Board\",Calculations!$E$2=\"Shetland Islands Local Authority\",Calculations!$E$2=\"Eilean Siar Local Authority\"),OR($F231=1,$F231=5)),0,prem_mort(VALUE(LEFT(Options!$B$24,2)),$C231,$E231,$F231,2016,$I231,1,$H231,$G231*$H231,Options!B8)))","v":{"$error":"#VALUE!"}},{"$f":"IF(AND(OR(Calculations!$E$2=\"Orkney Health Board\",Calculations!$E$2=\"Orkney Islands Local Authority\"),$F231=1),0,IF(AND(OR(Calculations!$E$2=\"Shetland Health Board\",Calculations!$E$2=\"Western Isles Health Board\",Calculations!$E$2=\"Shetland Islands Local Authority\",Calculations!$E$2=\"Eilean Siar Local Authority\"),OR($F231=1,$F231=5)),0,prem_mort(VALUE(LEFT(Options!$B$24,2)),$C231,$E231,$F231,2016,$I231+$J231,1,$H231,$G231*$H231,Options!B8)))","v":{"$error":"#VALUE!"}},{"$error":"#VALUE!"},{"$error":"#VALUE!"},{"$error":"#VALUE!"},{"$error":"#VALUE!"},{"$error":"#VALUE!"},{"$error":"#VALUE!"},{"$error":"#VALUE!"},{"$error":"#VALUE!"},{"$error":"#VALUE!"},{"$error":"#VALUE!"},{"$error":"#VALUE!"},{"$error":"#VALUE!"},{"$error":"#VALUE!"},{"$error":"#VALUE!"},{"$error":"#VALUE!"},{"$error":"#VALUE!"},5000]
[null,"Male 5-9",6.9784756000000003,77.398476000000002,"male",5,{"$f":"HLOOKUP(Calculations!$E$2,'Prevalence Rates'!$C$3:$BC$249,'Prevalence Rates'!$BD232,FALSE)","v":0},{"$f":"HLOOKUP(Calculations!$E$2,'Population 2016'!$C$3:$BC$249,'Population 2016'!BD232,FALSE)","v":0},0,{"$f":"HLOOKUP(Results!E$4,Targeting!$C$3:$F$249,Targeting!$G232,FALSE)","v":0},{"$f":"IF(AND(OR(Calculations!$E$2=\"Orkney Health Board\",Calculations!$E$2=\"Orkney Islands Local Authority\"),$F232=1),0,IF(AND(OR(Calculations!$E$2=\"Shetland Health Board\",Calculations!$E$2=\"Western Isles Health Board\",Calculations!$E$2=\"Shetland Islands Local Authority\",Calculations!$E$2=\"Eilean Siar Local Authority\"),OR($F232=1,$F232=5)),0,new_ci(VALUE(LEFT(Options!$B$24,2)),$C232,$E232,$F232,2016,$I232,1,$H232,$G232*$H232,Options!B8)))","v":{"$error":"#VALUE!"}},{"$f":"IF(AND(OR(Calculations!$E$2=\"Orkney Health Board\",Calculations!$E$2=\"Orkney Islands Local Authority\"),$F232=1),0,IF(AND(OR(Calculations!$E$2=\"Shetland Health Board\",Calculations!$E$2=\"Western Isles Health Board\",Calculations!$E$2=\"Shetland Islands Local Authority\",Calculations!$E$2=\"Eilean Siar Local Authority\"),OR($F232=1,$F232=5)),0,new_ci(VALUE(LEFT(Options!$B$24,2)),$C232,$E232,$F232,2016,$I232+$J232,1,$H232,$G232*$H232,Options!B8)))","v":{"$error":"#VALUE!"}},{"$f":"IF(AND(OR(Calculations!$E$2=\"Orkney Health Board\",Calculations!$E$2=\"Orkney Islands Local Authority\"),$F232=1),0,IF(AND(OR(Calculations!$E$2=\"Shetland Health Board\",Calculations!$E$2=\"Western Isles Health Board\",Calculations!$E$2=\"Shetland Islands Local Authority\",Calculations!$E$2=\"Eilean Siar Local Authority\"),OR($F232=1,$F232=5)),0,new_yllv2(VALUE(LEFT(Options!$B$24,2)),$C232,$D232,$E232,$F232,2016,$I232,1,$H232,$G232*$H232,Options!B8)))","v":{"$error":"#VALUE!"}},{"$f":"IF(AND(OR(Calculations!$E$2=\"Orkney Health Board\",Calculations!$E$2=\"Orkney Islands Local Authority\"),$F232=1),0,IF(AND(OR(Calculations!$E$2=\"Shetland Health Board\",Calculations!$E$2=\"Western Isles Health Board\",Calculations!$E$2=\"Shetland Islands Local Authority\",Calculations!$E$2=\"Eilean Siar Local Authority\"),OR($F232=1,$F232=5)),0,new_yllv2(VALUE(LEFT(Options!$B$24,2)),$C232,$D232,$E232,$F232,2016,$I232+$J232,1,$H232,$G232*$H232,Options!B8)))","v":{"$error":"#VALUE!"}},{"$f":"IF(AND(OR(Calculations!$E$2=\"Orkney Health Board\",Calculations!$E$2=\"Orkney Islands Local Authority\"),$F232=1),0,IF(AND(OR(Calculations!$E$2=\"Shetland Health Board\",Calculations!$E$2=\"Western Isles Health Board\",Calculations!$E$2=\"Shetland Islands Local Authority\",Calculations!$E$2=\"Eilean Siar Local Authority\"),OR($F232=1,$F232=5)),0,hosp_count(VALUE(LEFT(Options!$B$24,2)),$C232,$E232,$F232,2016,$I232,1,$H232,$G232*$H232, Options!B8)))","v":{"$error":"#VALUE!"}},{"$f":"IF(AND(OR(Calculations!$E$2=\"Orkney Health Board\",Calculations!$E$2=\"Orkney Islands Local Authority\"),$F232=1),0,IF(AND(OR(Calculations!$E$2=\"Shetland Health Board\",Calculations!$E$2=\"Western Isles Health Board\",Calculations!$E$2=\"Shetland Islands Local Authority\",Calculations!$E$2=\"Eilean Siar Local Authority\"),OR($F232=1,$F232=5)),0,hosp_count(VALUE(LEFT(Options!$B$24,2)),$C232,$E232,$F232,2016,$I232+$J232,1,$H232,$G232*$H232, Options!B8)))","v":{"$error":"#VALUE!"}},{"$f":"IF(AND(OR(Calculations!$E$2=\"Orkney Health Board\",Calculations!$E$2=\"Orkney Islands Local Authority\"),$F232=1),0,IF(AND(OR(Calculations!$E$2=\"Shetland Health Board\",Calculations!$E$2=\"Western Isles Health Board\",Calculations!$E$2=\"Shetland Islands Local Authority\",Calculations!$E$2=\"Eilean Siar Local Authority\"),OR($F232=1,$F232=5)),0,prem_mort(VALUE(LEFT(Options!$B$24,2)),$C232,$E232,$F232,2016,$I232,1,$H232,$G232*$H232,Options!B8)))","v":{"$error":"#VALUE!"}},{"$f":"IF(AND(OR(Calculations!$E$2=\"Orkney Health Board\",Calculations!$E$2=\"Orkney Islands Local Authority\"),$F232=1),0,IF(AND(OR(Calculations!$E$2=\"Shetland Health Board\",Calculations!$E$2=\"Western Isles Health Board\",Calculations!$E$2=\"Shetland Islands Local Authority\",Calculations!$E$2=\"Eilean Siar Local Authority\"),OR($F232=1,$F232=5)),0,prem_mort(VALUE(LEFT(Options!$B$24,2)),$C232,$E232,$F232,2016,$I232+$J232,1,$H232,$G232*$H232,Options!B8)))","v":{"$error":"#VALUE!"}},{"$error":"#VALUE!"},{"$error":"#VALUE!"},{"$error":"#VALUE!"},{"$error":"#VALUE!"},{"$error":"#VALUE!"},{"$error":"#VALUE!"},{"$error":"#VALUE!"},{"$error":"#VALUE!"},{"$error":"#VALUE!"},{"$error":"#VALUE!"},{"$error":"#VALUE!"},{"$error":"#VALUE!"},{"$error":"#VALUE!"},{"$error":"#VALUE!"},{"$error":"#VALUE!"},{"$error":"#VALUE!"},5500]
[null,"Male 10-15",12.471144000000001,77.921140000000008,"male",5,{"$f":"HLOOKUP(Calculations!$E$2,'Prevalence Rates'!$C$3:$BC$249,'Prevalence Rates'!$BD233,FALSE)","v":0},{"$f":"HLOOKUP(Calculations!$E$2,'Population 2016'!$C$3:$BC$249,'Population 2016'!BD233,FALSE)","v":0},0,{"$f":"HLOOKUP(Results!E$4,Targeting!$C$3:$F$249,Targeting!$G233,FALSE)","v":0},{"$f":"IF(AND(OR(Calculations!$E$2=\"Orkney Health Board\",Calculations!$E$2=\"Orkney Islands Local Authority\"),$F233=1),0,IF(AND(OR(Calculations!$E$2=\"Shetland Health Board\",Calculations!$E$2=\"Western Isles Health Board\",Calculations!$E$2=\"Shetland Islands Local Authority\",Calculations!$E$2=\"Eilean Siar Local Authority\"),OR($F233=1,$F233=5)),0,new_ci(VALUE(LEFT(Options!$B$24,2)),$C233,$E233,$F233,2016,$I233,1,$H233,$G233*$H233,Options!B8)))","v":{"$error":"#VALUE!"}},{"$f":"IF(AND(OR(Calculations!$E$2=\"Orkney Health Board\",Calculations!$E$2=\"Orkney Islands Local Authority\"),$F233=1),0,IF(AND(OR(Calculations!$E$2=\"Shetland Health Board\",Calculations!$E$2=\"Western Isles Health Board\",Calculations!$E$2=\"Shetland Islands Local Authority\",Calculations!$E$2=\"Eilean Siar Local Authority\"),OR($F233=1,$F233=5)),0,new_ci(VALUE(LEFT(Options!$B$24,2)),$C233,$E233,$F233,2016,$I233+$J233,1,$H233,$G233*$H233,Options!B8)))","v":{"$error":"#VALUE!"}},{"$f":"IF(AND(OR(Calculations!$E$2=\"Orkney Health Board\",Calculations!$E$2=\"Orkney Islands Local Authority\"),$F233=1),0,IF(AND(OR(Calculations!$E$2=\"Shetland Health Board\",Calculations!$E$2=\"Western Isles Health Board\",Calculations!$E$2=\"Shetland Islands Local Authority\",Calculations!$E$2=\"Eilean Siar Local Authority\"),OR($F233=1,$F233=5)),0,new_yllv2(VALUE(LEFT(Options!$B$24,2)),$C233,$D233,$E233,$F233,2016,$I233,1,$H233,$G233*$H233,Options!B8)))","v":{"$error":"#VALUE!"}},{"$f":"IF(AND(OR(Calculations!$E$2=\"Orkney Health Board\",Calculations!$E$2=\"Orkney Islands Local Authority\"),$F233=1),0,IF(AND(OR(Calculations!$E$2=\"Shetland Health Board\",Calculations!$E$2=\"Western Isles Health Board\",Calculations!$E$2=\"Shetland Islands Local Authority\",Calculations!$E$2=\"Eilean Siar Local Authority\"),OR($F233=1,$F233=5)),0,new_yllv2(VALUE(LEFT(Options!$B$24,2)),$C233,$D233,$E233,$F233,2016,$I233+$J233,1,$H233,$G233*$H233,Options!B8)))","v":{"$error":"#VALUE!"}},{"$f":"IF(AND(OR(Calculations!$E$2=\"Orkney Health Board\",Calculations!$E$2=\"Orkney Islands Local Authority\"),$F233=1),0,IF(AND(OR(Calculations!$E$2=\"Shetland Health Board\",Calculations!$E$2=\"Western Isles Health Board\",Calculations!$E$2=\"Shetland Islands Local Authority\",Calculations!$E$2=\"Eilean Siar Local Authority\"),OR($F233=1,$F233=5)),0,hosp_count(VALUE(LEFT(Options!$B$24,2)),$C233,$E233,$F233,2016,$I233,1,$H233,$G233*$H233, Options!B8)))","v":{"$error":"#VALUE!"}},{"$f":"IF(AND(OR(Calculations!$E$2=\"Orkney Health Board\",Calculations!$E$2=\"Orkney Islands Local Authority\"),$F233=1),0,IF(AND(OR(Calculations!$E$2=\"Shetland Health Board\",Calculations!$E$2=\"Western Isles Health Board\",Calculations!$E$2=\"Shetland Islands Local Authority\",Calculations!$E$2=\"Eilean Siar Local Authority\"),OR($F233=1,$F233=5)),0,hosp_count(VALUE(LEFT(Options!$B$24,2)),$C233,$E233,$F233,2016,$I233+$J233,1,$H233,$G233*$H233, Options!B8)))","v":{"$error":"#VALUE!"}},{"$f":"IF(AND(OR(Calculations!$E$2=\"Orkney Health Board\",Calculations!$E$2=\"Orkney Islands Local Authority\"),$F233=1),0,IF(AND(OR(Calculations!$E$2=\"Shetland Health Board\",Calculations!$E$2=\"Western Isles Health Board\",Calculations!$E$2=\"Shetland Islands Local Authority\",Calculations!$E$2=\"Eilean Siar Local Authority\"),OR($F233=1,$F233=5)),0,prem_mort(VALUE(LEFT(Options!$B$24,2)),$C233,$E233,$F233,2016,$I233,1,$H233,$G233*$H233,Options!B8)))","v":{"$error":"#VALUE!"}},{"$f":"IF(AND(OR(Calculations!$E$2=\"Orkney Health Board\",Calculations!$E$2=\"Orkney Islands Local Authority\"),$F233=1),0,IF(AND(OR(Calculations!$E$2=\"Shetland Health Board\",Calculations!$E$2=\"Western Isles Health Board\",Calculations!$E$2=\"Shetland Islands Local Authority\",Calculations!$E$2=\"Eilean Siar Local Authority\"),OR($F233=1,$F233=5)),0,prem_mort(VALUE(LEFT(Options!$B$24,2)),$C233,$E233,$F233,2016,$I233+$J233,1,$H233,$G233*$H233,Options!B8)))","v":{"$error":"#VALUE!"}},{"$error":"#VALUE!"},{"$error":"#VALUE!"},{"$error":"#VALUE!"},{"$error":"#VALUE!"},{"$error":"#VALUE!"},{"$error":"#VALUE!"},{"$error":"#VALUE!"},{"$error":"#VALUE!"},{"$error":"#VALUE!"},{"$error":"#VALUE!"},{"$error":"#VALUE!"},{"$error":"#VALUE!"},{"$error":"#VALUE!"},{"$error":"#VALUE!"},{"$error":"#VALUE!"},{"$error":"#VALUE!"},6600]
[null,"Male 16-19",17.556318000000001,77.07632000000001,"male",5,{"$f":"HLOOKUP(Calculations!$E$2,'Prevalence Rates'!$C$3:$BC$249,'Prevalence Rates'!$BD234,FALSE)","v":0.20518354450973844},{"$f":"HLOOKUP(Calculations!$E$2,'Population 2016'!$C$3:$BC$249,'Population 2016'!BD234,FALSE)","v":26907},0,{"$f":"HLOOKUP(Results!E$4,Targeting!$C$3:$F$249,Targeting!$G234,FALSE)","v":2034},{"$f":"IF(AND(OR(Calculations!$E$2=\"Orkney Health Board\",Calculations!$E$2=\"Orkney Islands Local Authority\"),$F234=1),0,IF(AND(OR(Calculations!$E$2=\"Shetland Health Board\",Calculations!$E$2=\"Western Isles Health Board\",Calculations!$E$2=\"Shetland Islands Local Authority\",Calculations!$E$2=\"Eilean Siar Local Authority\"),OR($F234=1,$F234=5)),0,new_ci(VALUE(LEFT(Options!$B$24,2)),$C234,$E234,$F234,2016,$I234,1,$H234,$G234*$H234,Options!B8)))","v":6.7201470820999996},{"$f":"IF(AND(OR(Calculations!$E$2=\"Orkney Health Board\",Calculations!$E$2=\"Orkney Islands Local Authority\"),$F234=1),0,IF(AND(OR(Calculations!$E$2=\"Shetland Health Board\",Calculations!$E$2=\"Western Isles Health Board\",Calculations!$E$2=\"Shetland Islands Local Authority\",Calculations!$E$2=\"Eilean Siar Local Authority\"),OR($F234=1,$F234=5)),0,new_ci(VALUE(LEFT(Options!$B$24,2)),$C234,$E234,$F234,2016,$I234+$J234,1,$H234,$G234*$H234,Options!B8)))","v":6.6892022128999997},{"$f":"IF(AND(OR(Calculations!$E$2=\"Orkney Health Board\",Calculations!$E$2=\"Orkney Islands Local Authority\"),$F234=1),0,IF(AND(OR(Calculations!$E$2=\"Shetland Health Board\",Calculations!$E$2=\"Western Isles Health Board\",Calculations!$E$2=\"Shetland Islands Local Authority\",Calculations!$E$2=\"Eilean Siar Local Authority\"),OR($F234=1,$F234=5)),0,new_yllv2(VALUE(LEFT(Options!$B$24,2)),$C234,$D234,$E234,$F234,2016,$I234,1,$H234,$G234*$H234,Options!B8)))","v":393.26302068479998},{"$f":"IF(AND(OR(Calculations!$E$2=\"Orkney Health Board\",Calculations!$E$2=\"Orkney Islands Local Authority\"),$F234=1),0,IF(AND(OR(Calculations!$E$2=\"Shetland Health Board\",Calculations!$E$2=\"Western Isles Health Board\",Calculations!$E$2=\"Shetland Islands Local Authority\",Calculations!$E$2=\"Eilean Siar Local Authority\"),OR($F234=1,$F234=5)),0,new_yllv2(VALUE(LEFT(Options!$B$24,2)),$C234,$D234,$E234,$F234,2016,$I234+$J234,1,$H234,$G234*$H234,Options!B8)))","v":391.45212687729997},{"$f":"IF(AND(OR(Calculations!$E$2=\"Orkney Health Board\",Calculations!$E$2=\"Orkney Islands Local Authority\"),$F234=1),0,IF(AND(OR(Calculations!$E$2=\"Shetland Health Board\",Calculations!$E$2=\"Western Isles Health Board\",Calculations!$E$2=\"Shetland Islands Local Authority\",Calculations!$E$2=\"Eilean Siar Local Authority\"),OR($F234=1,$F234=5)),0,hosp_count(VALUE(LEFT(Options!$B$24,2)),$C234,$E234,$F234,2016,$I234,1,$H234,$G234*$H234, Options!B8)))","v":1431.6729001742999},{"$f":"IF(AND(OR(Calculations!$E$2=\"Orkney Health Board\",Calculations!$E$2=\"Orkney Islands Local Authority\"),$F234=1),0,IF(AND(OR(Calculations!$E$2=\"Shetland Health Board\",Calculations!$E$2=\"Western Isles Health Board\",Calculations!$E$2=\"Shetland Islands Local Authority\",Calculations!$E$2=\"Eilean Siar Local Authority\"),OR($F234=1,$F234=5)),0,hosp_count(VALUE(LEFT(Options!$B$24,2)),$C234,$E234,$F234,2016,$I234+$J234,1,$H234,$G234*$H234, Options!B8)))","v":1425.8186967582999},{"$f":"IF(AND(OR(Calculations!$E$2=\"Orkney Health Board\",Calculations!$E$2=\"Orkney Islands Local Authority\"),$F234=1),0,IF(AND(OR(Calculations!$E$2=\"Shetland Health Board\",Calculations!$E$2=\"Western Isles Health Board\",Calculations!$E$2=\"Shetland Islands Local Authority\",Calculations!$E$2=\"Eilean Siar Local Authority\"),OR($F234=1,$F234=5)),0,prem_mort(VALUE(LEFT(Options!$B$24,2)),$C234,$E234,$F234,2016,$I234,1,$H234,$G234*$H234,Options!B8)))","v":6.7201470820999996},{"$f":"IF(AND(OR(Calculations!$E$2=\"Orkney Health Board\",Calculations!$E$2=\"Orkney Islands Local Authority\"),$F234=1),0,IF(AND(OR(Calculations!$E$2=\"Shetland Health Board\",Calculations!$E$2=\"Western Isles Health Board\",Calculations!$E$2=\"Shetland Islands Local Authority\",Calculations!$E$2=\"Eilean Siar Local Authority\"),OR($F234=1,$F234=5)),0,prem_mort(VALUE(LEFT(Options!$B$24,2)),$C234,$E234,$F234,2016,$I234+$J234,1,$H234,$G234*$H234,Options!B8)))","v":6.6892022128999997},24.975460222618647,24.860453461552755,1461.5639821786153,1454.8337862909279,5320.819489999999,5299.062313741033,24.975460222618647,24.860453461552755,109892.02497952204,109385.99523083212,6430881.5215859078,6401268.6596800834,23411605.755999994,23315874.180460546,109892.02497952204,109385.99523083212,4400]
[null,"Male 20-24",22.054632000000002,77.704629999999995,"male",5,{"$f":"HLOOKUP(Calculations!$E$2,'Prevalence Rates'!$C$3:$BC$249,'Prevalence Rates'!$BD235,FALSE)","v":0.20518354450973844},{"$f":"HLOOKUP(Calculations!$E$2,'Population 2016'!$C$3:$BC$249,'Population 2016'!BD235,FALSE)","v":38069},0,{"$f":"HLOOKUP(Results!E$4,Targeting!$C$3:$F$249,Targeting!$G235,FALSE)","v":2878},{"$f":"IF(AND(OR(Calculations!$E$2=\"Orkney Health Board\",Calculations!$E$2=\"Orkney Islands Local Authority\"),$F235=1),0,IF(AND(OR(Calculations!$E$2=\"Shetland Health Board\",Calculations!$E$2=\"Western Isles Health Board\",Calculations!$E$2=\"Shetland Islands Local Authority\",Calculations!$E$2=\"Eilean Siar Local Authority\"),OR($F235=1,$F235=5)),0,new_ci(VALUE(LEFT(Options!$B$24,2)),$C235,$E235,$F235,2016,$I235,1,$H235,$G235*$H235,Options!B8)))","v":13.352227774699999},{"$f":"IF(AND(OR(Calculations!$E$2=\"Orkney Health Board\",Calculations!$E$2=\"Orkney Islands Local Authority\"),$F235=1),0,IF(AND(OR(Calculations!$E$2=\"Shetland Health Board\",Calculations!$E$2=\"Western Isles Health Board\",Calculations!$E$2=\"Shetland Islands Local Authority\",Calculations!$E$2=\"Eilean Siar Local Authority\"),OR($F235=1,$F235=5)),0,new_ci(VALUE(LEFT(Options!$B$24,2)),$C235,$E235,$F235,2016,$I235+$J235,1,$H235,$G235*$H235,Options!B8)))","v":13.2907447729},{"$f":"IF(AND(OR(Calculations!$E$2=\"Orkney Health Board\",Calculations!$E$2=\"Orkney Islands Local Authority\"),$F235=1),0,IF(AND(OR(Calculations!$E$2=\"Shetland Health Board\",Calculations!$E$2=\"Western Isles Health Board\",Calculations!$E$2=\"Shetland Islands Local Authority\",Calculations!$E$2=\"Eilean Siar Local Authority\"),OR($F235=1,$F235=5)),0,new_yllv2(VALUE(LEFT(Options!$B$24,2)),$C235,$D235,$E235,$F235,2016,$I235,1,$H235,$G235*$H235,Options!B8)))","v":729.69922118290003},{"$f":"IF(AND(OR(Calculations!$E$2=\"Orkney Health Board\",Calculations!$E$2=\"Orkney Islands Local Authority\"),$F235=1),0,IF(AND(OR(Calculations!$E$2=\"Shetland Health Board\",Calculations!$E$2=\"Western Isles Health Board\",Calculations!$E$2=\"Shetland Islands Local Authority\",Calculations!$E$2=\"Eilean Siar Local Authority\"),OR($F235=1,$F235=5)),0,new_yllv2(VALUE(LEFT(Options!$B$24,2)),$C235,$D235,$E235,$F235,2016,$I235+$J235,1,$H235,$G235*$H235,Options!B8)))","v":726.33917525749996},{"$f":"IF(AND(OR(Calculations!$E$2=\"Orkney Health Board\",Calculations!$E$2=\"Orkney Islands Local Authority\"),$F235=1),0,IF(AND(OR(Calculations!$E$2=\"Shetland Health Board\",Calculations!$E$2=\"Western Isles Health Board\",Calculations!$E$2=\"Shetland Islands Local Authority\",Calculations!$E$2=\"Eilean Siar Local Authority\"),OR($F235=1,$F235=5)),0,hosp_count(VALUE(LEFT(Options!$B$24,2)),$C235,$E235,$F235,2016,$I235,1,$H235,$G235*$H235, Options!B8)))","v":2376.2555364586001},{"$f":"IF(AND(OR(Calculations!$E$2=\"Orkney Health Board\",Calculations!$E$2=\"Orkney Islands Local Authority\"),$F235=1),0,IF(AND(OR(Calculations!$E$2=\"Shetland Health Board\",Calculations!$E$2=\"Western Isles Health Board\",Calculations!$E$2=\"Shetland Islands Local Authority\",Calculations!$E$2=\"Eilean Siar Local Authority\"),OR($F235=1,$F235=5)),0,hosp_count(VALUE(LEFT(Options!$B$24,2)),$C235,$E235,$F235,2016,$I235+$J235,1,$H235,$G235*$H235, Options!B8)))","v":2366.5381204594},{"$f":"IF(AND(OR(Calculations!$E$2=\"Orkney Health Board\",Calculations!$E$2=\"Orkney Islands Local Authority\"),$F235=1),0,IF(AND(OR(Calculations!$E$2=\"Shetland Health Board\",Calculations!$E$2=\"Western Isles Health Board\",Calculations!$E$2=\"Shetland Islands Local Authority\",Calculations!$E$2=\"Eilean Siar Local Authority\"),OR($F235=1,$F235=5)),0,prem_mort(VALUE(LEFT(Options!$B$24,2)),$C235,$E235,$F235,2016,$I235,1,$H235,$G235*$H235,Options!B8)))","v":13.352227774699999},{"$f":"IF(AND(OR(Calculations!$E$2=\"Orkney Health Board\",Calculations!$E$2=\"Orkney Islands Local Authority\"),$F235=1),0,IF(AND(OR(Calculations!$E$2=\"Shetland Health Board\",Calculations!$E$2=\"Western Isles Health Board\",Calculations!$E$2=\"Shetland Islands Local Authority\",Calculations!$E$2=\"Eilean Siar Local Authority\"),OR($F235=1,$F235=5)),0,prem_mort(VALUE(LEFT(Options!$B$24,2)),$C235,$E235,$F235,2016,$I235+$J235,1,$H235,$G235*$H235,Options!B8)))","v":13.2907447729},35.07375495731435,34.912250841629671,1916.7806382697211,1907.9544386705718,6241.9699400000009,6216.4441421088031,35.07375495731435,34.912250841629671,210442.52974388609,209473.50504977803,11500683.829618327,11447726.632023431,37451819.640000008,37298664.852652818,210442.52974388609,209473.50504977803,6000]
[null,"Male 25-29",26.959762999999999,77.789760000000001,"male",5,{"$f":"HLOOKUP(Calculations!$E$2,'Prevalence Rates'!$C$3:$BC$249,'Prevalence Rates'!$BD236,FALSE)","v":0.2041342060590319},{"$f":"HLOOKUP(Calculations!$E$2,'Population 2016'!$C$3:$BC$249,'Population 2016'!BD236,FALSE)","v":34280},0,{"$f":"HLOOKUP(Results!E$4,Targeting!$C$3:$F$249,Targeting!$G236,FALSE)","v":2592},{"$f":"IF(AND(OR(Calculations!$E$2=\"Orkney Health Board\",Calculations!$E$2=\"Orkney Islands Local Authority\"),$F236=1),0,IF(AND(OR(Calculations!$E$2=\"Shetland Health Board\",Calculations!$E$2=\"Western Isles Health Board\",Calculations!$E$2=\"Shetland Islands Local Authority\",Calculations!$E$2=\"Eilean Siar Local Authority\"),OR($F236=1,$F236=5)),0,new_ci(VALUE(LEFT(Options!$B$24,2)),$C236,$E236,$F236,2016,$I236,1,$H236,$G236*$H236,Options!B8)))","v":17.410765948600002},{"$f":"IF(AND(OR(Calculations!$E$2=\"Orkney Health Board\",Calculations!$E$2=\"Orkney Islands Local Authority\"),$F236=1),0,IF(AND(OR(Calculations!$E$2=\"Shetland Health Board\",Calculations!$E$2=\"Western Isles Health Board\",Calculations!$E$2=\"Shetland Islands Local Authority\",Calculations!$E$2=\"Eilean Siar Local Authority\"),OR($F236=1,$F236=5)),0,new_ci(VALUE(LEFT(Options!$B$24,2)),$C236,$E236,$F236,2016,$I236+$J236,1,$H236,$G236*$H236,Options!B8)))","v":17.330543807800002},{"$f":"IF(AND(OR(Calculations!$E$2=\"Orkney Health Board\",Calculations!$E$2=\"Orkney Islands Local Authority\"),$F236=1),0,IF(AND(OR(Calculations!$E$2=\"Shetland Health Board\",Calculations!$E$2=\"Western Isles Health Board\",Calculations!$E$2=\"Shetland Islands Local Authority\",Calculations!$E$2=\"Eilean Siar Local Authority\"),OR($F236=1,$F236=5)),0,new_yllv2(VALUE(LEFT(Options!$B$24,2)),$C236,$D236,$E236,$F236,2016,$I236,1,$H236,$G236*$H236,Options!B8)))","v":867.57841498640005},{"$f":"IF(AND(OR(Calculations!$E$2=\"Orkney Health Board\",Calculations!$E$2=\"Orkney Islands Local Authority\"),$F236=1),0,IF(AND(OR(Calculations!$E$2=\"Shetland Health Board\",Calculations!$E$2=\"Western Isles Health Board\",Calculations!$E$2=\"Shetland Islands Local Authority\",Calculations!$E$2=\"Eilean Siar Local Authority\"),OR($F236=1,$F236=5)),0,new_yllv2(VALUE(LEFT(Options!$B$24,2)),$C236,$D236,$E236,$F236,2016,$I236+$J236,1,$H236,$G236*$H236,Options!B8)))","v":863.58094595099999},{"$f":"IF(AND(OR(Calculations!$E$2=\"Orkney Health Board\",Calculations!$E$2=\"Orkney Islands Local Authority\"),$F236=1),0,IF(AND(OR(Calculations!$E$2=\"Shetland Health Board\",Calculations!$E$2=\"Western Isles Health Board\",Calculations!$E$2=\"Shetland Islands Local Authority\",Calculations!$E$2=\"Eilean Siar Local Authority\"),OR($F236=1,$F236=5)),0,hosp_count(VALUE(LEFT(Options!$B$24,2)),$C236,$E236,$F236,2016,$I236,1,$H236,$G236*$H236, Options!B8)))","v":2546.6945852919998},{"$f":"IF(AND(OR(Calculations!$E$2=\"Orkney Health Board\",Calculations!$E$2=\"Orkney Islands Local Authority\"),$F236=1),0,IF(AND(OR(Calculations!$E$2=\"Shetland Health Board\",Calculations!$E$2=\"Western Isles Health Board\",Calculations!$E$2=\"Shetland Islands Local Authority\",Calculations!$E$2=\"Eilean Siar Local Authority\"),OR($F236=1,$F236=5)),0,hosp_count(VALUE(LEFT(Options!$B$24,2)),$C236,$E236,$F236,2016,$I236+$J236,1,$H236,$G236*$H236, Options!B8)))","v":2536.2773123666002},{"$f":"IF(AND(OR(Calculations!$E$2=\"Orkney Health Board\",Calculations!$E$2=\"Orkney Islands Local Authority\"),$F236=1),0,IF(AND(OR(Calculations!$E$2=\"Shetland Health Board\",Calculations!$E$2=\"Western Isles Health Board\",Calculations!$E$2=\"Shetland Islands Local Authority\",Calculations!$E$2=\"Eilean Siar Local Authority\"),OR($F236=1,$F236=5)),0,prem_mort(VALUE(LEFT(Options!$B$24,2)),$C236,$E236,$F236,2016,$I236,1,$H236,$G236*$H236,Options!B8)))","v":17.410765948600002},{"$f":"IF(AND(OR(Calculations!$E$2=\"Orkney Health Board\",Calculations!$E$2=\"Orkney Islands Local Authority\"),$F236=1),0,IF(AND(OR(Calculations!$E$2=\"Shetland Health Board\",Calculations!$E$2=\"Western Isles Health Board\",Calculations!$E$2=\"Shetland Islands Local Authority\",Calculations!$E$2=\"Eilean Siar Local Authority\"),OR($F236=1,$F236=5)),0,prem_mort(VALUE(LEFT(Options!$B$24,2)),$C236,$E236,$F236,2016,$I236+$J236,1,$H236,$G236*$H236,Options!B8)))","v":17.330543807800002},50.789865661026838,50.555845413652285,2530.8588535192534,2519.1976252946324,7429.0973899999999,7398.7086125046681,50.789865661026838,50.555845413652285,304739.19396616105,303335.07248191372,15185153.121115521,15115185.751767794,44574584.339999996,44392251.675028011,304739.19396616105,303335.07248191372,6000]
[null,"Male 30-34",31.981521999999998,78.061520000000002,"male",5,{"$f":"HLOOKUP(Calculations!$E$2,'Prevalence Rates'!$C$3:$BC$249,'Prevalence Rates'!$BD237,FALSE)","v":0.2041342060590319},{"$f":"HLOOKUP(Calculations!$E$2,'Population 2016'!$C$3:$BC$249,'Population 2016'!BD237,FALSE)","v":30164},0,{"$f":"HLOOKUP(Results!E$4,Targeting!$C$3:$F$249,Targeting!$G237,FALSE)","v":2281},{"$f":"IF(AND(OR(Calculations!$E$2=\"Orkney Health Board\",Calculations!$E$2=\"Orkney Islands Local Authority\"),$F237=1),0,IF(AND(OR(Calculations!$E$2=\"Shetland Health Board\",Calculations!$E$2=\"Western Isles Health Board\",Calculations!$E$2=\"Shetland Islands Local Authority\",Calculations!$E$2=\"Eilean Siar Local Authority\"),OR($F237=1,$F237=5)),0,new_ci(VALUE(LEFT(Options!$B$24,2)),$C237,$E237,$F237,2016,$I237,1,$H237,$G237*$H237,Options!B8)))","v":22.380361646499999},{"$f":"IF(AND(OR(Calculations!$E$2=\"Orkney Health Board\",Calculations!$E$2=\"Orkney Islands Local Authority\"),$F237=1),0,IF(AND(OR(Calculations!$E$2=\"Shetland Health Board\",Calculations!$E$2=\"Western Isles Health Board\",Calculations!$E$2=\"Shetland Islands Local Authority\",Calculations!$E$2=\"Eilean Siar Local Authority\"),OR($F237=1,$F237=5)),0,new_ci(VALUE(LEFT(Options!$B$24,2)),$C237,$E237,$F237,2016,$I237+$J237,1,$H237,$G237*$H237,Options!B8)))","v":22.277253375400001},{"$f":"IF(AND(OR(Calculations!$E$2=\"Orkney Health Board\",Calculations!$E$2=\"Orkney Islands Local Authority\"),$F237=1),0,IF(AND(OR(Calculations!$E$2=\"Shetland Health Board\",Calculations!$E$2=\"Western Isles Health Board\",Calculations!$E$2=\"Shetland Islands Local Authority\",Calculations!$E$2=\"Eilean Siar Local Authority\"),OR($F237=1,$F237=5)),0,new_yllv2(VALUE(LEFT(Options!$B$24,2)),$C237,$D237,$E237,$F237,2016,$I237,1,$H237,$G237*$H237,Options!B8)))","v":1008.9066582635},{"$f":"IF(AND(OR(Calculations!$E$2=\"Orkney Health Board\",Calculations!$E$2=\"Orkney Islands Local Authority\"),$F237=1),0,IF(AND(OR(Calculations!$E$2=\"Shetland Health Board\",Calculations!$E$2=\"Western Isles Health Board\",Calculations!$E$2=\"Shetland Islands Local Authority\",Calculations!$E$2=\"Eilean Siar Local Authority\"),OR($F237=1,$F237=5)),0,new_yllv2(VALUE(LEFT(Options!$B$24,2)),$C237,$D237,$E237,$F237,2016,$I237+$J237,1,$H237,$G237*$H237,Options!B8)))","v":1004.2585376085},{"$f":"IF(AND(OR(Calculations!$E$2=\"Orkney Health Board\",Calculations!$E$2=\"Orkney Islands Local Authority\"),$F237=1),0,IF(AND(OR(Calculations!$E$2=\"Shetland Health Board\",Calculations!$E$2=\"Western Isles Health Board\",Calculations!$E$2=\"Shetland Islands Local Authority\",Calculations!$E$2=\"Eilean Siar Local Authority\"),OR($F237=1,$F237=5)),0,hosp_count(VALUE(LEFT(Options!$B$24,2)),$C237,$E237,$F237,2016,$I237,1,$H237,$G237*$H237, Options!B8)))","v":2678.1643595263999},{"$f":"IF(AND(OR(Calculations!$E$2=\"Orkney Health Board\",Calculations!$E$2=\"Orkney Islands Local Authority\"),$F237=1),0,IF(AND(OR(Calculations!$E$2=\"Shetland Health Board\",Calculations!$E$2=\"Western Isles Health Board\",Calculations!$E$2=\"Shetland Islands Local Authority\",Calculations!$E$2=\"Eilean Siar Local Authority\"),OR($F237=1,$F237=5)),0,hosp_count(VALUE(LEFT(Options!$B$24,2)),$C237,$E237,$F237,2016,$I237+$J237,1,$H237,$G237*$H237, Options!B8)))","v":2667.2082447947},{"$f":"IF(AND(OR(Calculations!$E$2=\"Orkney Health Board\",Calculations!$E$2=\"Orkney Islands Local Authority\"),$F237=1),0,IF(AND(OR(Calculations!$E$2=\"Shetland Health Board\",Calculations!$E$2=\"Western Isles Health Board\",Calculations!$E$2=\"Shetland Islands Local Authority\",Calculations!$E$2=\"Eilean Siar Local Authority\"),OR($F237=1,$F237=5)),0,prem_mort(VALUE(LEFT(Options!$B$24,2)),$C237,$E237,$F237,2016,$I237,1,$H237,$G237*$H237,Options!B8)))","v":22.380361646499999},{"$f":"IF(AND(OR(Calculations!$E$2=\"Orkney Health Board\",Calculations!$E$2=\"Orkney Islands Local Authority\"),$F237=1),0,IF(AND(OR(Calculations!$E$2=\"Shetland Health Board\",Calculations!$E$2=\"Western Isles Health Board\",Calculations!$E$2=\"Shetland Islands Local Authority\",Calculations!$E$2=\"Eilean Siar Local Authority\"),OR($F237=1,$F237=5)),0,prem_mort(VALUE(LEFT(Options!$B$24,2)),$C237,$E237,$F237,2016,$I237+$J237,1,$H237,$G237*$H237,Options!B8)))","v":22.277253375400001},74.195602859368776,73.853777268929861,3344.73762850915,3329.3281315757195,8878.6777600000005,8842.3559368608276,74.195602859368776,73.853777268929861,482271.41858589707,480049.55224804411,21740794.585309476,21640632.855242178,57711405.440000005,57475313.589595377,482271.41858589707,480049.55224804411,6500]
[null,"Male 35-39",36.926009999999998,78.336009999999987,"male",5,{"$f":"HLOOKUP(Calculations!$E$2,'Prevalence Rates'!$C$3:$BC$249,'Prevalence Rates'!$BD238,FALSE)","v":0.22364376494762034},{"$f":"HLOOKUP(Calculations!$E$2,'Population 2016'!$C$3:$BC$249,'Population 2016'!BD238,FALSE)","v":31915},0,{"$f":"HLOOKUP(Results!E$4,Targeting!$C$3:$F$249,Targeting!$G238,FALSE)","v":2413},{"$f":"IF(AND(OR(Calculations!$E$2=\"Orkney Health Board\",Calculations!$E$2=\"Orkney Islands Local Authority\"),$F238=1),0,IF(AND(OR(Calculations!$E$2=\"Shetland Health Board\",Calculations!$E$2=\"Western Isles Health Board\",Calculations!$E$2=\"Shetland Islands Local Authority\",Calculations!$E$2=\"Eilean Siar Local Authority\"),OR($F238=1,$F238=5)),0,new_ci(VALUE(LEFT(Options!$B$24,2)),$C238,$E238,$F238,2016,$I238,1,$H238,$G238*$H238,Options!B8)))","v":34.388778939200002},{"$f":"IF(AND(OR(Calculations!$E$2=\"Orkney Health Board\",Calculations!$E$2=\"Orkney Islands Local Authority\"),$F238=1),0,IF(AND(OR(Calculations!$E$2=\"Shetland Health Board\",Calculations!$E$2=\"Western Isles Health Board\",Calculations!$E$2=\"Shetland Islands Local Authority\",Calculations!$E$2=\"Eilean Siar Local Authority\"),OR($F238=1,$F238=5)),0,new_ci(VALUE(LEFT(Options!$B$24,2)),$C238,$E238,$F238,2016,$I238+$J238,1,$H238,$G238*$H238,Options!B8)))","v":34.232148454899999},{"$f":"IF(AND(OR(Calculations!$E$2=\"Orkney Health Board\",Calculations!$E$2=\"Orkney Islands Local Authority\"),$F238=1),0,IF(AND(OR(Calculations!$E$2=\"Shetland Health Board\",Calculations!$E$2=\"Western Isles Health Board\",Calculations!$E$2=\"Shetland Islands Local Authority\",Calculations!$E$2=\"Eilean Siar Local Authority\"),OR($F238=1,$F238=5)),0,new_yllv2(VALUE(LEFT(Options!$B$24,2)),$C238,$D238,$E238,$F238,2016,$I238,1,$H238,$G238*$H238,Options!B8)))","v":1389.6505569331},{"$f":"IF(AND(OR(Calculations!$E$2=\"Orkney Health Board\",Calculations!$E$2=\"Orkney Islands Local Authority\"),$F238=1),0,IF(AND(OR(Calculations!$E$2=\"Shetland Health Board\",Calculations!$E$2=\"Western Isles Health Board\",Calculations!$E$2=\"Shetland Islands Local Authority\",Calculations!$E$2=\"Eilean Siar Local Authority\"),OR($F238=1,$F238=5)),0,new_yllv2(VALUE(LEFT(Options!$B$24,2)),$C238,$D238,$E238,$F238,2016,$I238+$J238,1,$H238,$G238*$H238,Options!B8)))","v":1383.3211190625},{"$f":"IF(AND(OR(Calculations!$E$2=\"Orkney Health Board\",Calculations!$E$2=\"Orkney Islands Local Authority\"),$F238=1),0,IF(AND(OR(Calculations!$E$2=\"Shetland Health Board\",Calculations!$E$2=\"Western Isles Health Board\",Calculations!$E$2=\"Shetland Islands Local Authority\",Calculations!$E$2=\"Eilean Siar Local Authority\"),OR($F238=1,$F238=5)),0,hosp_count(VALUE(LEFT(Options!$B$24,2)),$C238,$E238,$F238,2016,$I238,1,$H238,$G238*$H238, Options!B8)))","v":3377.257887276},{"$f":"IF(AND(OR(Calculations!$E$2=\"Orkney Health Board\",Calculations!$E$2=\"Orkney Islands Local Authority\"),$F238=1),0,IF(AND(OR(Calculations!$E$2=\"Shetland Health Board\",Calculations!$E$2=\"Western Isles Health Board\",Calculations!$E$2=\"Shetland Islands Local Authority\",Calculations!$E$2=\"Eilean Siar Local Authority\"),OR($F238=1,$F238=5)),0,hosp_count(VALUE(LEFT(Options!$B$24,2)),$C238,$E238,$F238,2016,$I238+$J238,1,$H238,$G238*$H238, Options!B8)))","v":3363.4705580792001},{"$f":"IF(AND(OR(Calculations!$E$2=\"Orkney Health Board\",Calculations!$E$2=\"Orkney Islands Local Authority\"),$F238=1),0,IF(AND(OR(Calculations!$E$2=\"Shetland Health Board\",Calculations!$E$2=\"Western Isles Health Board\",Calculations!$E$2=\"Shetland Islands Local Authority\",Calculations!$E$2=\"Eilean Siar Local Authority\"),OR($F238=1,$F238=5)),0,prem_mort(VALUE(LEFT(Options!$B$24,2)),$C238,$E238,$F238,2016,$I238,1,$H238,$G238*$H238,Options!B8)))","v":34.388778939200002},{"$f":"IF(AND(OR(Calculations!$E$2=\"Orkney Health Board\",Calculations!$E$2=\"Orkney Islands Local Authority\"),$F238=1),0,IF(AND(OR(Calculations!$E$2=\"Shetland Health Board\",Calculations!$E$2=\"Western Isles Health Board\",Calculations!$E$2=\"Shetland Islands Local Authority\",Calculations!$E$2=\"Eilean Siar Local Authority\"),OR($F238=1,$F238=5)),0,prem_mort(VALUE(LEFT(Options!$B$24,2)),$C238,$E238,$F238,2016,$I238+$J238,1,$H238,$G238*$H238,Options!B8)))","v":34.232148454899999},107.75114817233276,107.26037429077236,4354.223897644054,4334.3917250900831,10582.039439999999,10538.839285850541,107.75114817233276,107.26037429077236,754258.03720632929,750822.62003540655,30479567.283508379,30340742.075630583,74074276.079999983,73771875.000953794,754258.03720632929,750822.62003540655,7000]
[null,"Male 40-44",42.067703000000002,78.907700000000006,"male",5,{"$f":"HLOOKUP(Calculations!$E$2,'Prevalence Rates'!$C$3:$BC$249,'Prevalence Rates'!$BD239,FALSE)","v":0.22364376494762034},{"$f":"HLOOKUP(Calculations!$E$2,'Population 2016'!$C$3:$BC$249,'Population 2016'!BD239,FALSE)","v":35113},0,{"$f":"HLOOKUP(Results!E$4,Targeting!$C$3:$F$249,Targeting!$G239,FALSE)","v":2655},{"$f":"IF(AND(OR(Calculations!$E$2=\"Orkney Health Board\",Calculations!$E$2=\"Orkney Islands Local Authority\"),$F239=1),0,IF(AND(OR(Calculations!$E$2=\"Shetland Health Board\",Calculations!$E$2=\"Western Isles Health Board\",Calculations!$E$2=\"Shetland Islands Local Authority\",Calculations!$E$2=\"Eilean Siar Local Authority\"),OR($F239=1,$F239=5)),0,new_ci(VALUE(LEFT(Options!$B$24,2)),$C239,$E239,$F239,2016,$I239,1,$H239,$G239*$H239,Options!B8)))","v":55.7647642182},{"$f":"IF(AND(OR(Calculations!$E$2=\"Orkney Health Board\",Calculations!$E$2=\"Orkney Islands Local Authority\"),$F239=1),0,IF(AND(OR(Calculations!$E$2=\"Shetland Health Board\",Calculations!$E$2=\"Western Isles Health Board\",Calculations!$E$2=\"Shetland Islands Local Authority\",Calculations!$E$2=\"Eilean Siar Local Authority\"),OR($F239=1,$F239=5)),0,new_ci(VALUE(LEFT(Options!$B$24,2)),$C239,$E239,$F239,2016,$I239+$J239,1,$H239,$G239*$H239,Options!B8)))","v":55.510866302700002},{"$f":"IF(AND(OR(Calculations!$E$2=\"Orkney Health Board\",Calculations!$E$2=\"Orkney Islands Local Authority\"),$F239=1),0,IF(AND(OR(Calculations!$E$2=\"Shetland Health Board\",Calculations!$E$2=\"Western Isles Health Board\",Calculations!$E$2=\"Shetland Islands Local Authority\",Calculations!$E$2=\"Eilean Siar Local Authority\"),OR($F239=1,$F239=5)),0,new_yllv2(VALUE(LEFT(Options!$B$24,2)),$C239,$D239,$E239,$F239,2016,$I239,1,$H239,$G239*$H239,Options!B8)))","v":1998.6089822859999},{"$f":"IF(AND(OR(Calculations!$E$2=\"Orkney Health Board\",Calculations!$E$2=\"Orkney Islands Local Authority\"),$F239=1),0,IF(AND(OR(Calculations!$E$2=\"Shetland Health Board\",Calculations!$E$2=\"Western Isles Health Board\",Calculations!$E$2=\"Shetland Islands Local Authority\",Calculations!$E$2=\"Eilean Siar Local Authority\"),OR($F239=1,$F239=5)),0,new_yllv2(VALUE(LEFT(Options!$B$24,2)),$C239,$D239,$E239,$F239,2016,$I239+$J239,1,$H239,$G239*$H239,Options!B8)))","v":1989.5092817561999},{"$f":"IF(AND(OR(Calculations!$E$2=\"Orkney Health Board\",Calculations!$E$2=\"Orkney Islands Local Authority\"),$F239=1),0,IF(AND(OR(Calculations!$E$2=\"Shetland Health Board\",Calculations!$E$2=\"Western Isles Health Board\",Calculations!$E$2=\"Shetland Islands Local Authority\",Calculations!$E$2=\"Eilean Siar Local Authority\"),OR($F239=1,$F239=5)),0,hosp_count(VALUE(LEFT(Options!$B$24,2)),$C239,$E239,$F239,2016,$I239,1,$H239,$G239*$H239, Options!B8)))","v":4459.6254010723997},{"$f":"IF(AND(OR(Calculations!$E$2=\"Orkney Health Board\",Calculations!$E$2=\"Orkney Islands Local Authority\"),$F239=1),0,IF(AND(OR(Calculations!$E$2=\"Shetland Health Board\",Calculations!$E$2=\"Western Isles Health Board\",Calculations!$E$2=\"Shetland Islands Local Authority\",Calculations!$E$2=\"Eilean Siar Local Authority\"),OR($F239=1,$F239=5)),0,hosp_count(VALUE(LEFT(Options!$B$24,2)),$C239,$E239,$F239,2016,$I239+$J239,1,$H239,$G239*$H239, Options!B8)))","v":4441.4179808993003},{"$f":"IF(AND(OR(Calculations!$E$2=\"Orkney Health Board\",Calculations!$E$2=\"Orkney Islands Local Authority\"),$F239=1),0,IF(AND(OR(Calculations!$E$2=\"Shetland Health Board\",Calculations!$E$2=\"Western Isles Health Board\",Calculations!$E$2=\"Shetland Islands Local Authority\",Calculations!$E$2=\"Eilean Siar Local Authority\"),OR($F239=1,$F239=5)),0,prem_mort(VALUE(LEFT(Options!$B$24,2)),$C239,$E239,$F239,2016,$I239,1,$H239,$G239*$H239,Options!B8)))","v":55.7647642182},{"$f":"IF(AND(OR(Calculations!$E$2=\"Orkney Health Board\",Calculations!$E$2=\"Orkney Islands Local Authority\"),$F239=1),0,IF(AND(OR(Calculations!$E$2=\"Shetland Health Board\",Calculations!$E$2=\"Western Isles Health Board\",Calculations!$E$2=\"Shetland Islands Local Authority\",Calculations!$E$2=\"Eilean Siar Local Authority\"),OR($F239=1,$F239=5)),0,prem_mort(VALUE(LEFT(Options!$B$24,2)),$C239,$E239,$F239,2016,$I239+$J239,1,$H239,$G239*$H239,Options!B8)))","v":55.510866302700002},158.81515170506648,158.092063630849,5691.9345606641409,5666.0190862535237,12700.78148,12648.927693160085,158.81515170506648,158.092063630849,1111706.0619354653,1106644.4454159429,39843541.924648985,39662133.603774667,88905470.359999999,88542493.852120593,1111706.0619354653,1106644.4454159429,7000]
[null,"Male 45-49",47.038155000000003,79.418149999999997,"male",5,{"$f":"HLOOKUP(Calculations!$E$2,'Prevalence Rates'!$C$3:$BC$249,'Prevalence Rates'!$BD240,FALSE)","v":0.2200587460650732},{"$f":"HLOOKUP(Calculations!$E$2,'Population 2016'!$C$3:$BC$249,'Population 2016'!BD240,FALSE)","v":39359},0,{"$f":"HLOOKUP(Results!E$4,Targeting!$C$3:$F$249,Targeting!$G240,FALSE)","v":2976},{"$f":"IF(AND(OR(Calculations!$E$2=\"Orkney Health Board\",Calculations!$E$2=\"Orkney Islands Local Authority\"),$F240=1),0,IF(AND(OR(Calculations!$E$2=\"Shetland Health Board\",Calculations!$E$2=\"Western Isles Health Board\",Calculations!$E$2=\"Shetland Islands Local Authority\",Calculations!$E$2=\"Eilean Siar Local Authority\"),OR($F240=1,$F240=5)),0,new_ci(VALUE(LEFT(Options!$B$24,2)),$C240,$E240,$F240,2016,$I240,1,$H240,$G240*$H240,Options!B8)))","v":90.937478532200004},{"$f":"IF(AND(OR(Calculations!$E$2=\"Orkney Health Board\",Calculations!$E$2=\"Orkney Islands Local Authority\"),$F240=1),0,IF(AND(OR(Calculations!$E$2=\"Shetland Health Board\",Calculations!$E$2=\"Western Isles Health Board\",Calculations!$E$2=\"Shetland Islands Local Authority\",Calculations!$E$2=\"Eilean Siar Local Authority\"),OR($F240=1,$F240=5)),0,new_ci(VALUE(LEFT(Options!$B$24,2)),$C240,$E240,$F240,2016,$I240+$J240,1,$H240,$G240*$H240,Options!B8)))","v":90.522879473000003},{"$f":"IF(AND(OR(Calculations!$E$2=\"Orkney Health Board\",Calculations!$E$2=\"Orkney Islands Local Authority\"),$F240=1),0,IF(AND(OR(Calculations!$E$2=\"Shetland Health Board\",Calculations!$E$2=\"Western Isles Health Board\",Calculations!$E$2=\"Shetland Islands Local Authority\",Calculations!$E$2=\"Eilean Siar Local Authority\"),OR($F240=1,$F240=5)),0,new_yllv2(VALUE(LEFT(Options!$B$24,2)),$C240,$D240,$E240,$F240,2016,$I240,1,$H240,$G240*$H240,Options!B8)))","v":2853.6176216529998},{"$f":"IF(AND(OR(Calculations!$E$2=\"Orkney Health Board\",Calculations!$E$2=\"Orkney Islands Local Authority\"),$F240=1),0,IF(AND(OR(Calculations!$E$2=\"Shetland Health Board\",Calculations!$E$2=\"Western Isles Health Board\",Calculations!$E$2=\"Shetland Islands Local Authority\",Calculations!$E$2=\"Eilean Siar Local Authority\"),OR($F240=1,$F240=5)),0,new_yllv2(VALUE(LEFT(Options!$B$24,2)),$C240,$D240,$E240,$F240,2016,$I240+$J240,1,$H240,$G240*$H240,Options!B8)))","v":2840.6075052483002},{"$f":"IF(AND(OR(Calculations!$E$2=\"Orkney Health Board\",Calculations!$E$2=\"Orkney Islands Local Authority\"),$F240=1),0,IF(AND(OR(Calculations!$E$2=\"Shetland Health Board\",Calculations!$E$2=\"Western Isles Health Board\",Calculations!$E$2=\"Shetland Islands Local Authority\",Calculations!$E$2=\"Eilean Siar Local Authority\"),OR($F240=1,$F240=5)),0,hosp_count(VALUE(LEFT(Options!$B$24,2)),$C240,$E240,$F240,2016,$I240,1,$H240,$G240*$H240, Options!B8)))","v":5963.4258802347003},{"$f":"IF(AND(OR(Calculations!$E$2=\"Orkney Health Board\",Calculations!$E$2=\"Orkney Islands Local Authority\"),$F240=1),0,IF(AND(OR(Calculations!$E$2=\"Shetland Health Board\",Calculations!$E$2=\"Western Isles Health Board\",Calculations!$E$2=\"Shetland Islands Local Authority\",Calculations!$E$2=\"Eilean Siar Local Authority\"),OR($F240=1,$F240=5)),0,hosp_count(VALUE(LEFT(Options!$B$24,2)),$C240,$E240,$F240,2016,$I240+$J240,1,$H240,$G240*$H240, Options!B8)))","v":5939.0707498181},{"$f":"IF(AND(OR(Calculations!$E$2=\"Orkney Health Board\",Calculations!$E$2=\"Orkney Islands Local Authority\"),$F240=1),0,IF(AND(OR(Calculations!$E$2=\"Shetland Health Board\",Calculations!$E$2=\"Western Isles Health Board\",Calculations!$E$2=\"Shetland Islands Local Authority\",Calculations!$E$2=\"Eilean Siar Local Authority\"),OR($F240=1,$F240=5)),0,prem_mort(VALUE(LEFT(Options!$B$24,2)),$C240,$E240,$F240,2016,$I240,1,$H240,$G240*$H240,Options!B8)))","v":90.937478532200004},{"$f":"IF(AND(OR(Calculations!$E$2=\"Orkney Health Board\",Calculations!$E$2=\"Orkney Islands Local Authority\"),$F240=1),0,IF(AND(OR(Calculations!$E$2=\"Shetland Health Board\",Calculations!$E$2=\"Western Isles Health Board\",Calculations!$E$2=\"Shetland Islands Local Authority\",Calculations!$E$2=\"Eilean Siar Local Authority\"),OR($F240=1,$F240=5)),0,prem_mort(VALUE(LEFT(Options!$B$24,2)),$C240,$E240,$F240,2016,$I240+$J240,1,$H240,$G240*$H240,Options!B8)))","v":90.522879473000003},231.04621187580989,229.99283384486395,7250.2289734317428,7217.1739760875544,15151.365330000001,15089.485885866256,231.04621187580989,229.99283384486395,1617323.4831306692,1609949.8369140476,50751602.814022198,50520217.83261288,106059557.31,105626401.20106378,1617323.4831306692,1609949.8369140476,7000]
[null,"Male 50-54",51.998646000000001,79.988649999999993,"male",5,{"$f":"HLOOKUP(Calculations!$E$2,'Prevalence Rates'!$C$3:$BC$249,'Prevalence Rates'!$BD241,FALSE)","v":0.2200587460650732},{"$f":"HLOOKUP(Calculations!$E$2,'Population 2016'!$C$3:$BC$249,'Population 2016'!BD241,FALSE)","v":40044},0,{"$f":"HLOOKUP(Results!E$4,Targeting!$C$3:$F$249,Targeting!$G241,FALSE)","v":3028},{"$f":"IF(AND(OR(Calculations!$E$2=\"Orkney Health Board\",Calculations!$E$2=\"Orkney Islands Local Authority\"),$F241=1),0,IF(AND(OR(Calculations!$E$2=\"Shetland Health Board\",Calculations!$E$2=\"Western Isles Health Board\",Calculations!$E$2=\"Shetland Islands Local Authority\",Calculations!$E$2=\"Eilean Siar Local Authority\"),OR($F241=1,$F241=5)),0,new_ci(VALUE(LEFT(Options!$B$24,2)),$C241,$E241,$F241,2016,$I241,1,$H241,$G241*$H241,Options!B8)))","v":134.475048977},{"$f":"IF(AND(OR(Calculations!$E$2=\"Orkney Health Board\",Calculations!$E$2=\"Orkney Islands Local Authority\"),$F241=1),0,IF(AND(OR(Calculations!$E$2=\"Shetland Health Board\",Calculations!$E$2=\"Western Isles Health Board\",Calculations!$E$2=\"Shetland Islands Local Authority\",Calculations!$E$2=\"Eilean Siar Local Authority\"),OR($F241=1,$F241=5)),0,new_ci(VALUE(LEFT(Options!$B$24,2)),$C241,$E241,$F241,2016,$I241+$J241,1,$H241,$G241*$H241,Options!B8)))","v":133.86248033780001},{"$f":"IF(AND(OR(Calculations!$E$2=\"Orkney Health Board\",Calculations!$E$2=\"Orkney Islands Local Authority\"),$F241=1),0,IF(AND(OR(Calculations!$E$2=\"Shetland Health Board\",Calculations!$E$2=\"Western Isles Health Board\",Calculations!$E$2=\"Shetland Islands Local Authority\",Calculations!$E$2=\"Eilean Siar Local Authority\"),OR($F241=1,$F241=5)),0,new_yllv2(VALUE(LEFT(Options!$B$24,2)),$C241,$D241,$E241,$F241,2016,$I241,1,$H241,$G241*$H241,Options!B8)))","v":3629.4821097894001},{"$f":"IF(AND(OR(Calculations!$E$2=\"Orkney Health Board\",Calculations!$E$2=\"Orkney Islands Local Authority\"),$F241=1),0,IF(AND(OR(Calculations!$E$2=\"Shetland Health Board\",Calculations!$E$2=\"Western Isles Health Board\",Calculations!$E$2=\"Shetland Islands Local Authority\",Calculations!$E$2=\"Eilean Siar Local Authority\"),OR($F241=1,$F241=5)),0,new_yllv2(VALUE(LEFT(Options!$B$24,2)),$C241,$D241,$E241,$F241,2016,$I241+$J241,1,$H241,$G241*$H241,Options!B8)))","v":3612.9488797671002},{"$f":"IF(AND(OR(Calculations!$E$2=\"Orkney Health Board\",Calculations!$E$2=\"Orkney Islands Local Authority\"),$F241=1),0,IF(AND(OR(Calculations!$E$2=\"Shetland Health Board\",Calculations!$E$2=\"Western Isles Health Board\",Calculations!$E$2=\"Shetland Islands Local Authority\",Calculations!$E$2=\"Eilean Siar Local Authority\"),OR($F241=1,$F241=5)),0,hosp_count(VALUE(LEFT(Options!$B$24,2)),$C241,$E241,$F241,2016,$I241,1,$H241,$G241*$H241, Options!B8)))","v":7235.3075532060002},{"$f":"IF(AND(OR(Calculations!$E$2=\"Orkney Health Board\",Calculations!$E$2=\"Orkney Islands Local Authority\"),$F241=1),0,IF(AND(OR(Calculations!$E$2=\"Shetland Health Board\",Calculations!$E$2=\"Western Isles Health Board\",Calculations!$E$2=\"Shetland Islands Local Authority\",Calculations!$E$2=\"Eilean Siar Local Authority\"),OR($F241=1,$F241=5)),0,hosp_count(VALUE(LEFT(Options!$B$24,2)),$C241,$E241,$F241,2016,$I241+$J241,1,$H241,$G241*$H241, Options!B8)))","v":7205.7559411923003},{"$f":"IF(AND(OR(Calculations!$E$2=\"Orkney Health Board\",Calculations!$E$2=\"Orkney Islands Local Authority\"),$F241=1),0,IF(AND(OR(Calculations!$E$2=\"Shetland Health Board\",Calculations!$E$2=\"Western Isles Health Board\",Calculations!$E$2=\"Shetland Islands Local Authority\",Calculations!$E$2=\"Eilean Siar Local Authority\"),OR($F241=1,$F241=5)),0,prem_mort(VALUE(LEFT(Options!$B$24,2)),$C241,$E241,$F241,2016,$I241,1,$H241,$G241*$H241,Options!B8)))","v":134.475048977},{"$f":"IF(AND(OR(Calculations!$E$2=\"Orkney Health Board\",Calculations!$E$2=\"Orkney Islands Local Authority\"),$F241=1),0,IF(AND(OR(Calculations!$E$2=\"Shetland Health Board\",Calculations!$E$2=\"Western Isles Health Board\",Calculations!$E$2=\"Shetland Islands Local Authority\",Calculations!$E$2=\"Eilean Siar Local Authority\"),OR($F241=1,$F241=5)),0,prem_mort(VALUE(LEFT(Options!$B$24,2)),$C241,$E241,$F241,2016,$I241+$J241,1,$H241,$G241*$H241,Options!B8)))","v":133.86248033780001},335.81822239786237,334.28848351263611,9063.7351657911295,9022.4475071598754,18068.393650000002,17994.595797603386,335.81822239786237,334.28848351263611,2350727.5567850368,2340019.3845884525,63446146.160537906,63157132.550119124,126478755.55000001,125962170.5832237,2350727.5567850368,2340019.3845884525,7000]
[null,"Male 55-59",56.950867000000002,80.660870000000003,"male",5,{"$f":"HLOOKUP(Calculations!$E$2,'Prevalence Rates'!$C$3:$BC$249,'Prevalence Rates'!$BD242,FALSE)","v":0.29994150060792718},{"$f":"HLOOKUP(Calculations!$E$2,'Population 2016'!$C$3:$BC$249,'Population 2016'!BD242,FALSE)","v":36422},0,{"$f":"HLOOKUP(Results!E$4,Targeting!$C$3:$F$249,Targeting!$G242,FALSE)","v":2754},{"$f":"IF(AND(OR(Calculations!$E$2=\"Orkney Health Board\",Calculations!$E$2=\"Orkney Islands Local Authority\"),$F242=1),0,IF(AND(OR(Calculations!$E$2=\"Shetland Health Board\",Calculations!$E$2=\"Western Isles Health Board\",Calculations!$E$2=\"Shetland Islands Local Authority\",Calculations!$E$2=\"Eilean Siar Local Authority\"),OR($F242=1,$F242=5)),0,new_ci(VALUE(LEFT(Options!$B$24,2)),$C242,$E242,$F242,2016,$I242,1,$H242,$G242*$H242,Options!B8)))","v":177.61800027140001},{"$f":"IF(AND(OR(Calculations!$E$2=\"Orkney Health Board\",Calculations!$E$2=\"Orkney Islands Local Authority\"),$F242=1),0,IF(AND(OR(Calculations!$E$2=\"Shetland Health Board\",Calculations!$E$2=\"Western Isles Health Board\",Calculations!$E$2=\"Shetland Islands Local Authority\",Calculations!$E$2=\"Eilean Siar Local Authority\"),OR($F242=1,$F242=5)),0,new_ci(VALUE(LEFT(Options!$B$24,2)),$C242,$E242,$F242,2016,$I242+$J242,1,$H242,$G242*$H242,Options!B8)))","v":176.84443912579999},{"$f":"IF(AND(OR(Calculations!$E$2=\"Orkney Health Board\",Calculations!$E$2=\"Orkney Islands Local Authority\"),$F242=1),0,IF(AND(OR(Calculations!$E$2=\"Shetland Health Board\",Calculations!$E$2=\"Western Isles Health Board\",Calculations!$E$2=\"Shetland Islands Local Authority\",Calculations!$E$2=\"Eilean Siar Local Authority\"),OR($F242=1,$F242=5)),0,new_yllv2(VALUE(LEFT(Options!$B$24,2)),$C242,$D242,$E242,$F242,2016,$I242,1,$H242,$G242*$H242,Options!B8)))","v":4033.7053190175002},{"$f":"IF(AND(OR(Calculations!$E$2=\"Orkney Health Board\",Calculations!$E$2=\"Orkney Islands Local Authority\"),$F242=1),0,IF(AND(OR(Calculations!$E$2=\"Shetland Health Board\",Calculations!$E$2=\"Western Isles Health Board\",Calculations!$E$2=\"Shetland Islands Local Authority\",Calculations!$E$2=\"Eilean Siar Local Authority\"),OR($F242=1,$F242=5)),0,new_yllv2(VALUE(LEFT(Options!$B$24,2)),$C242,$D242,$E242,$F242,2016,$I242+$J242,1,$H242,$G242*$H242,Options!B8)))","v":4016.1377430801999},{"$f":"IF(AND(OR(Calculations!$E$2=\"Orkney Health Board\",Calculations!$E$2=\"Orkney Islands Local Authority\"),$F242=1),0,IF(AND(OR(Calculations!$E$2=\"Shetland Health Board\",Calculations!$E$2=\"Western Isles Health Board\",Calculations!$E$2=\"Shetland Islands Local Authority\",Calculations!$E$2=\"Eilean Siar Local Authority\"),OR($F242=1,$F242=5)),0,hosp_count(VALUE(LEFT(Options!$B$24,2)),$C242,$E242,$F242,2016,$I242,1,$H242,$G242*$H242, Options!B8)))","v":7845.5541145777997},{"$f":"IF(AND(OR(Calculations!$E$2=\"Orkney Health Board\",Calculations!$E$2=\"Orkney Islands Local Authority\"),$F242=1),0,IF(AND(OR(Calculations!$E$2=\"Shetland Health Board\",Calculations!$E$2=\"Western Isles Health Board\",Calculations!$E$2=\"Shetland Islands Local Authority\",Calculations!$E$2=\"Eilean Siar Local Authority\"),OR($F242=1,$F242=5)),0,hosp_count(VALUE(LEFT(Options!$B$24,2)),$C242,$E242,$F242,2016,$I242+$J242,1,$H242,$G242*$H242, Options!B8)))","v":7813.7598951204},{"$f":"IF(AND(OR(Calculations!$E$2=\"Orkney Health Board\",Calculations!$E$2=\"Orkney Islands Local Authority\"),$F242=1),0,IF(AND(OR(Calculations!$E$2=\"Shetland Health Board\",Calculations!$E$2=\"Western Isles Health Board\",Calculations!$E$2=\"Shetland Islands Local Authority\",Calculations!$E$2=\"Eilean Siar Local Authority\"),OR($F242=1,$F242=5)),0,prem_mort(VALUE(LEFT(Options!$B$24,2)),$C242,$E242,$F242,2016,$I242,1,$H242,$G242*$H242,Options!B8)))","v":177.61800027140001},{"$f":"IF(AND(OR(Calculations!$E$2=\"Orkney Health Board\",Calculations!$E$2=\"Orkney Islands Local Authority\"),$F242=1),0,IF(AND(OR(Calculations!$E$2=\"Shetland Health Board\",Calculations!$E$2=\"Western Isles Health Board\",Calculations!$E$2=\"Shetland Islands Local Authority\",Calculations!$E$2=\"Eilean Siar Local Authority\"),OR($F242=1,$F242=5)),0,prem_mort(VALUE(LEFT(Options!$B$24,2)),$C242,$E242,$F242,2016,$I242+$J242,1,$H242,$G242*$H242,Options!B8)))","v":176.84443912579999},487.66679553950905,485.54291122343636,11074.914389702653,11026.680970512876,21540.700990000001,21453.406993356763,487.66679553950905,485.54291122343636,3169834.171006809,3156028.9229523363,71986943.533067241,71673426.308333695,140014556.435,139447145.45681897,3169834.171006809,3156028.9229523363,6500]
[null,"Male 60-64",61.942988999999997,81.612989999999996,"male",5,{"$f":"HLOOKUP(Calculations!$E$2,'Prevalence Rates'!$C$3:$BC$249,'Prevalence Rates'!$BD243,FALSE)","v":0.29994150060792718},{"$f":"HLOOKUP(Calculations!$E$2,'Population 2016'!$C$3:$BC$249,'Population 2016'!BD243,FALSE)","v":32001},0,{"$f":"HLOOKUP(Results!E$4,Targeting!$C$3:$F$249,Targeting!$G243,FALSE)","v":2420},{"$f":"IF(AND(OR(Calculations!$E$2=\"Orkney Health Board\",Calculations!$E$2=\"Orkney Islands Local Authority\"),$F243=1),0,IF(AND(OR(Calculations!$E$2=\"Shetland Health Board\",Calculations!$E$2=\"Western Isles Health Board\",Calculations!$E$2=\"Shetland Islands Local Authority\",Calculations!$E$2=\"Eilean Siar Local Authority\"),OR($F243=1,$F243=5)),0,new_ci(VALUE(LEFT(Options!$B$24,2)),$C243,$E243,$F243,2016,$I243,1,$H243,$G243*$H243,Options!B8)))","v":227.2243596671},{"$f":"IF(AND(OR(Calculations!$E$2=\"Orkney Health Board\",Calculations!$E$2=\"Orkney Islands Local Authority\"),$F243=1),0,IF(AND(OR(Calculations!$E$2=\"Shetland Health Board\",Calculations!$E$2=\"Western Isles Health Board\",Calculations!$E$2=\"Shetland Islands Local Authority\",Calculations!$E$2=\"Eilean Siar Local Authority\"),OR($F243=1,$F243=5)),0,new_ci(VALUE(LEFT(Options!$B$24,2)),$C243,$E243,$F243,2016,$I243+$J243,1,$H243,$G243*$H243,Options!B8)))","v":226.23644427709999},{"$f":"IF(AND(OR(Calculations!$E$2=\"Orkney Health Board\",Calculations!$E$2=\"Orkney Islands Local Authority\"),$F243=1),0,IF(AND(OR(Calculations!$E$2=\"Shetland Health Board\",Calculations!$E$2=\"Western Isles Health Board\",Calculations!$E$2=\"Shetland Islands Local Authority\",Calculations!$E$2=\"Eilean Siar Local Authority\"),OR($F243=1,$F243=5)),0,new_yllv2(VALUE(LEFT(Options!$B$24,2)),$C243,$D243,$E243,$F243,2016,$I243,1,$H243,$G243*$H243,Options!B8)))","v":4242.2790222090998},{"$f":"IF(AND(OR(Calculations!$E$2=\"Orkney Health Board\",Calculations!$E$2=\"Orkney Islands Local Authority\"),$F243=1),0,IF(AND(OR(Calculations!$E$2=\"Shetland Health Board\",Calculations!$E$2=\"Western Isles Health Board\",Calculations!$E$2=\"Shetland Islands Local Authority\",Calculations!$E$2=\"Eilean Siar Local Authority\"),OR($F243=1,$F243=5)),0,new_yllv2(VALUE(LEFT(Options!$B$24,2)),$C243,$D243,$E243,$F243,2016,$I243+$J243,1,$H243,$G243*$H243,Options!B8)))","v":4223.8346408898997},{"$f":"IF(AND(OR(Calculations!$E$2=\"Orkney Health Board\",Calculations!$E$2=\"Orkney Islands Local Authority\"),$F243=1),0,IF(AND(OR(Calculations!$E$2=\"Shetland Health Board\",Calculations!$E$2=\"Western Isles Health Board\",Calculations!$E$2=\"Shetland Islands Local Authority\",Calculations!$E$2=\"Eilean Siar Local Authority\"),OR($F243=1,$F243=5)),0,hosp_count(VALUE(LEFT(Options!$B$24,2)),$C243,$E243,$F243,2016,$I243,1,$H243,$G243*$H243, Options!B8)))","v":8229.6006133826995},{"$f":"IF(AND(OR(Calculations!$E$2=\"Orkney Health Board\",Calculations!$E$2=\"Orkney Islands Local Authority\"),$F243=1),0,IF(AND(OR(Calculations!$E$2=\"Shetland Health Board\",Calculations!$E$2=\"Western Isles Health Board\",Calculations!$E$2=\"Shetland Islands Local Authority\",Calculations!$E$2=\"Eilean Siar Local Authority\"),OR($F243=1,$F243=5)),0,hosp_count(VALUE(LEFT(Options!$B$24,2)),$C243,$E243,$F243,2016,$I243+$J243,1,$H243,$G243*$H243, Options!B8)))","v":8196.2460720498002},{"$f":"IF(AND(OR(Calculations!$E$2=\"Orkney Health Board\",Calculations!$E$2=\"Orkney Islands Local Authority\"),$F243=1),0,IF(AND(OR(Calculations!$E$2=\"Shetland Health Board\",Calculations!$E$2=\"Western Isles Health Board\",Calculations!$E$2=\"Shetland Islands Local Authority\",Calculations!$E$2=\"Eilean Siar Local Authority\"),OR($F243=1,$F243=5)),0,prem_mort(VALUE(LEFT(Options!$B$24,2)),$C243,$E243,$F243,2016,$I243,1,$H243,$G243*$H243,Options!B8)))","v":227.2243596671},{"$f":"IF(AND(OR(Calculations!$E$2=\"Orkney Health Board\",Calculations!$E$2=\"Orkney Islands Local Authority\"),$F243=1),0,IF(AND(OR(Calculations!$E$2=\"Shetland Health Board\",Calculations!$E$2=\"Western Isles Health Board\",Calculations!$E$2=\"Shetland Islands Local Authority\",Calculations!$E$2=\"Eilean Siar Local Authority\"),OR($F243=1,$F243=5)),0,prem_mort(VALUE(LEFT(Options!$B$24,2)),$C243,$E243,$F243,2016,$I243+$J243,1,$H243,$G243*$H243,Options!B8)))","v":226.23644427709999},710.05393477422581,706.96679565357329,13256.707672288678,13199.070781819004,25716.698269999997,25612.468585512328,710.05393477422581,706.96679565357329,4260323.6086453544,4241800.7739214394,79540246.033732072,79194424.69091402,154300189.61999997,153674811.51307398,4260323.6086453544,4241800.7739214394,6000]
[null,"Male 65-69",67.054419999999993,82.954419999999999,"male",5,{"$f":"HLOOKUP(Calculations!$E$2,'Prevalence Rates'!$C$3:$BC$249,'Prevalence Rates'!$BD244,FALSE)","v":0.27741058442283129},{"$f":"HLOOKUP(Calculations!$E$2,'Population 2016'!$C$3:$BC$249,'Population 2016'!BD244,FALSE)","v":31688},0,{"$f":"HLOOKUP(Results!E$4,Targeting!$C$3:$F$249,Targeting!$G244,FALSE)","v":2396},{"$f":"IF(AND(OR(Calculations!$E$2=\"Orkney Health Board\",Calculations!$E$2=\"Orkney Islands Local Authority\"),$F244=1),0,IF(AND(OR(Calculations!$E$2=\"Shetland Health Board\",Calculations!$E$2=\"Western Isles Health Board\",Calculations!$E$2=\"Shetland Islands Local Authority\",Calculations!$E$2=\"Eilean Siar Local Authority\"),OR($F244=1,$F244=5)),0,new_ci(VALUE(LEFT(Options!$B$24,2)),$C244,$E244,$F244,2016,$I244,1,$H244,$G244*$H244,Options!B8)))","v":330.3790512667},{"$f":"IF(AND(OR(Calculations!$E$2=\"Orkney Health Board\",Calculations!$E$2=\"Orkney Islands Local Authority\"),$F244=1),0,IF(AND(OR(Calculations!$E$2=\"Shetland Health Board\",Calculations!$E$2=\"Western Isles Health Board\",Calculations!$E$2=\"Shetland Islands Local Authority\",Calculations!$E$2=\"Eilean Siar Local Authority\"),OR($F244=1,$F244=5)),0,new_ci(VALUE(LEFT(Options!$B$24,2)),$C244,$E244,$F244,2016,$I244+$J244,1,$H244,$G244*$H244,Options!B8)))","v":328.92950097710002},{"$f":"IF(AND(OR(Calculations!$E$2=\"Orkney Health Board\",Calculations!$E$2=\"Orkney Islands Local Authority\"),$F244=1),0,IF(AND(OR(Calculations!$E$2=\"Shetland Health Board\",Calculations!$E$2=\"Western Isles Health Board\",Calculations!$E$2=\"Shetland Islands Local Authority\",Calculations!$E$2=\"Eilean Siar Local Authority\"),OR($F244=1,$F244=5)),0,new_yllv2(VALUE(LEFT(Options!$B$24,2)),$C244,$D244,$E244,$F244,2016,$I244,1,$H244,$G244*$H244,Options!B8)))","v":4922.6478638737999},{"$f":"IF(AND(OR(Calculations!$E$2=\"Orkney Health Board\",Calculations!$E$2=\"Orkney Islands Local Authority\"),$F244=1),0,IF(AND(OR(Calculations!$E$2=\"Shetland Health Board\",Calculations!$E$2=\"Western Isles Health Board\",Calculations!$E$2=\"Shetland Islands Local Authority\",Calculations!$E$2=\"Eilean Siar Local Authority\"),OR($F244=1,$F244=5)),0,new_yllv2(VALUE(LEFT(Options!$B$24,2)),$C244,$D244,$E244,$F244,2016,$I244+$J244,1,$H244,$G244*$H244,Options!B8)))","v":4901.0495645587998},{"$f":"IF(AND(OR(Calculations!$E$2=\"Orkney Health Board\",Calculations!$E$2=\"Orkney Islands Local Authority\"),$F244=1),0,IF(AND(OR(Calculations!$E$2=\"Shetland Health Board\",Calculations!$E$2=\"Western Isles Health Board\",Calculations!$E$2=\"Shetland Islands Local Authority\",Calculations!$E$2=\"Eilean Siar Local Authority\"),OR($F244=1,$F244=5)),0,hosp_count(VALUE(LEFT(Options!$B$24,2)),$C244,$E244,$F244,2016,$I244,1,$H244,$G244*$H244, Options!B8)))","v":9770.2259477183998},{"$f":"IF(AND(OR(Calculations!$E$2=\"Orkney Health Board\",Calculations!$E$2=\"Orkney Islands Local Authority\"),$F244=1),0,IF(AND(OR(Calculations!$E$2=\"Shetland Health Board\",Calculations!$E$2=\"Western Isles Health Board\",Calculations!$E$2=\"Shetland Islands Local Authority\",Calculations!$E$2=\"Eilean Siar Local Authority\"),OR($F244=1,$F244=5)),0,hosp_count(VALUE(LEFT(Options!$B$24,2)),$C244,$E244,$F244,2016,$I244+$J244,1,$H244,$G244*$H244, Options!B8)))","v":9730.5459132478009},{"$f":"IF(AND(OR(Calculations!$E$2=\"Orkney Health Board\",Calculations!$E$2=\"Orkney Islands Local Authority\"),$F244=1),0,IF(AND(OR(Calculations!$E$2=\"Shetland Health Board\",Calculations!$E$2=\"Western Isles Health Board\",Calculations!$E$2=\"Shetland Islands Local Authority\",Calculations!$E$2=\"Eilean Siar Local Authority\"),OR($F244=1,$F244=5)),0,prem_mort(VALUE(LEFT(Options!$B$24,2)),$C244,$E244,$F244,2016,$I244,1,$H244,$G244*$H244,Options!B8)))","v":330.3790512667},{"$f":"IF(AND(OR(Calculations!$E$2=\"Orkney Health Board\",Calculations!$E$2=\"Orkney Islands Local Authority\"),$F244=1),0,IF(AND(OR(Calculations!$E$2=\"Shetland Health Board\",Calculations!$E$2=\"Western Isles Health Board\",Calculations!$E$2=\"Shetland Islands Local Authority\",Calculations!$E$2=\"Eilean Siar Local Authority\"),OR($F244=1,$F244=5)),0,prem_mort(VALUE(LEFT(Options!$B$24,2)),$C244,$E244,$F244,2016,$I244+$J244,1,$H244,$G244*$H244,Options!B8)))","v":328.92950097710002},1042.5998840781999,1038.0254385795886,15534.738272765084,15466.579034835899,30832.573679999998,30707.352667406594,1042.5998840781999,1038.0254385795886,5734299.3624300994,5709139.9121877374,85441060.500207961,85066184.691597447,169579155.23999998,168890439.67073628,5734299.3624300994,5709139.9121877374,5500]
[null,"Male 70-74",71.891098,84.341099999999997,"male",5,{"$f":"HLOOKUP(Calculations!$E$2,'Prevalence Rates'!$C$3:$BC$249,'Prevalence Rates'!$BD245,FALSE)","v":0.27741058442283129},{"$f":"HLOOKUP(Calculations!$E$2,'Population 2016'!$C$3:$BC$249,'Population 2016'!BD245,FALSE)","v":22663},0,{"$f":"HLOOKUP(Results!E$4,Targeting!$C$3:$F$249,Targeting!$G245,FALSE)","v":1713},{"$f":"IF(AND(OR(Calculations!$E$2=\"Orkney Health Board\",Calculations!$E$2=\"Orkney Islands Local Authority\"),$F245=1),0,IF(AND(OR(Calculations!$E$2=\"Shetland Health Board\",Calculations!$E$2=\"Western Isles Health Board\",Calculations!$E$2=\"Shetland Islands Local Authority\",Calculations!$E$2=\"Eilean Siar Local Authority\"),OR($F245=1,$F245=5)),0,new_ci(VALUE(LEFT(Options!$B$24,2)),$C245,$E245,$F245,2016,$I245,1,$H245,$G245*$H245,Options!B8)))","v":339.59510928470002},{"$f":"IF(AND(OR(Calculations!$E$2=\"Orkney Health Board\",Calculations!$E$2=\"Orkney Islands Local Authority\"),$F245=1),0,IF(AND(OR(Calculations!$E$2=\"Shetland Health Board\",Calculations!$E$2=\"Western Isles Health Board\",Calculations!$E$2=\"Shetland Islands Local Authority\",Calculations!$E$2=\"Eilean Siar Local Authority\"),OR($F245=1,$F245=5)),0,new_ci(VALUE(LEFT(Options!$B$24,2)),$C245,$E245,$F245,2016,$I245+$J245,1,$H245,$G245*$H245,Options!B8)))","v":338.11138302889998},{"$f":"IF(AND(OR(Calculations!$E$2=\"Orkney Health Board\",Calculations!$E$2=\"Orkney Islands Local Authority\"),$F245=1),0,IF(AND(OR(Calculations!$E$2=\"Shetland Health Board\",Calculations!$E$2=\"Western Isles Health Board\",Calculations!$E$2=\"Shetland Islands Local Authority\",Calculations!$E$2=\"Eilean Siar Local Authority\"),OR($F245=1,$F245=5)),0,new_yllv2(VALUE(LEFT(Options!$B$24,2)),$C245,$D245,$E245,$F245,2016,$I245,1,$H245,$G245*$H245,Options!B8)))","v":3888.3646804999998},{"$f":"IF(AND(OR(Calculations!$E$2=\"Orkney Health Board\",Calculations!$E$2=\"Orkney Islands Local Authority\"),$F245=1),0,IF(AND(OR(Calculations!$E$2=\"Shetland Health Board\",Calculations!$E$2=\"Western Isles Health Board\",Calculations!$E$2=\"Shetland Islands Local Authority\",Calculations!$E$2=\"Eilean Siar Local Authority\"),OR($F245=1,$F245=5)),0,new_yllv2(VALUE(LEFT(Options!$B$24,2)),$C245,$D245,$E245,$F245,2016,$I245+$J245,1,$H245,$G245*$H245,Options!B8)))","v":3871.3760119037001},{"$f":"IF(AND(OR(Calculations!$E$2=\"Orkney Health Board\",Calculations!$E$2=\"Orkney Islands Local Authority\"),$F245=1),0,IF(AND(OR(Calculations!$E$2=\"Shetland Health Board\",Calculations!$E$2=\"Western Isles Health Board\",Calculations!$E$2=\"Shetland Islands Local Authority\",Calculations!$E$2=\"Eilean Siar Local Authority\"),OR($F245=1,$F245=5)),0,hosp_count(VALUE(LEFT(Options!$B$24,2)),$C245,$E245,$F245,2016,$I245,1,$H245,$G245*$H245, Options!B8)))","v":8296.3359118624994},{"$f":"IF(AND(OR(Calculations!$E$2=\"Orkney Health Board\",Calculations!$E$2=\"Orkney Islands Local Authority\"),$F245=1),0,IF(AND(OR(Calculations!$E$2=\"Shetland Health Board\",Calculations!$E$2=\"Western Isles Health Board\",Calculations!$E$2=\"Shetland Islands Local Authority\",Calculations!$E$2=\"Eilean Siar Local Authority\"),OR($F245=1,$F245=5)),0,hosp_count(VALUE(LEFT(Options!$B$24,2)),$C245,$E245,$F245,2016,$I245+$J245,1,$H245,$G245*$H245, Options!B8)))","v":8262.6536117567994},{"$f":"IF(AND(OR(Calculations!$E$2=\"Orkney Health Board\",Calculations!$E$2=\"Orkney Islands Local Authority\"),$F245=1),0,IF(AND(OR(Calculations!$E$2=\"Shetland Health Board\",Calculations!$E$2=\"Western Isles Health Board\",Calculations!$E$2=\"Shetland Islands Local Authority\",Calculations!$E$2=\"Eilean Siar Local Authority\"),OR($F245=1,$F245=5)),0,prem_mort(VALUE(LEFT(Options!$B$24,2)),$C245,$E245,$F245,2016,$I245,1,$H245,$G245*$H245,Options!B8)))","v":339.59510928470002},{"$f":"IF(AND(OR(Calculations!$E$2=\"Orkney Health Board\",Calculations!$E$2=\"Orkney Islands Local Authority\"),$F245=1),0,IF(AND(OR(Calculations!$E$2=\"Shetland Health Board\",Calculations!$E$2=\"Western Isles Health Board\",Calculations!$E$2=\"Shetland Islands Local Authority\",Calculations!$E$2=\"Eilean Siar Local Authority\"),OR($F245=1,$F245=5)),0,prem_mort(VALUE(LEFT(Options!$B$24,2)),$C245,$E245,$F245,2016,$I245+$J245,1,$H245,$G245*$H245,Options!B8)))","v":338.11138302889998},1498.4561147451793,1491.9092045576488,17157.325510744387,17082.363376003621,36607.403749999998,36458.781325317919,1498.4561147451793,1491.9092045576488,7492280.5737258969,7459546.0227882434,85786627.553721935,85411816.8800181,183037018.75,182293906.6265896,7492280.5737258969,7459546.0227882434,5000]
[null,"Male 75-79",76.907700000000006,86.357700000000008,"male",5,{"$f":"HLOOKUP(Calculations!$E$2,'Prevalence Rates'!$C$3:$BC$249,'Prevalence Rates'!$BD246,FALSE)","v":0.17405732755611802},{"$f":"HLOOKUP(Calculations!$E$2,'Population 2016'!$C$3:$BC$249,'Population 2016'!BD246,FALSE)","v":16475},0,{"$f":"HLOOKUP(Results!E$4,Targeting!$C$3:$F$249,Targeting!$G246,FALSE)","v":1246},{"$f":"IF(AND(OR(Calculations!$E$2=\"Orkney Health Board\",Calculations!$E$2=\"Orkney Islands Local Authority\"),$F246=1),0,IF(AND(OR(Calculations!$E$2=\"Shetland Health Board\",Calculations!$E$2=\"Western Isles Health Board\",Calculations!$E$2=\"Shetland Islands Local Authority\",Calculations!$E$2=\"Eilean Siar Local Authority\"),OR($F246=1,$F246=5)),0,new_ci(VALUE(LEFT(Options!$B$24,2)),$C246,$E246,$F246,2016,$I246,1,$H246,$G246*$H246,Options!B8)))","v":359.26649206960002},{"$f":"IF(AND(OR(Calculations!$E$2=\"Orkney Health Board\",Calculations!$E$2=\"Orkney Islands Local Authority\"),$F246=1),0,IF(AND(OR(Calculations!$E$2=\"Shetland Health Board\",Calculations!$E$2=\"Western Isles Health Board\",Calculations!$E$2=\"Shetland Islands Local Authority\",Calculations!$E$2=\"Eilean Siar Local Authority\"),OR($F246=1,$F246=5)),0,new_ci(VALUE(LEFT(Options!$B$24,2)),$C246,$E246,$F246,2016,$I246+$J246,1,$H246,$G246*$H246,Options!B8)))","v":357.61524539700002},{"$f":"IF(AND(OR(Calculations!$E$2=\"Orkney Health Board\",Calculations!$E$2=\"Orkney Islands Local Authority\"),$F246=1),0,IF(AND(OR(Calculations!$E$2=\"Shetland Health Board\",Calculations!$E$2=\"Western Isles Health Board\",Calculations!$E$2=\"Shetland Islands Local Authority\",Calculations!$E$2=\"Eilean Siar Local Authority\"),OR($F246=1,$F246=5)),0,new_yllv2(VALUE(LEFT(Options!$B$24,2)),$C246,$D246,$E246,$F246,2016,$I246,1,$H246,$G246*$H246,Options!B8)))","v":3035.8018579881},{"$f":"IF(AND(OR(Calculations!$E$2=\"Orkney Health Board\",Calculations!$E$2=\"Orkney Islands Local Authority\"),$F246=1),0,IF(AND(OR(Calculations!$E$2=\"Shetland Health Board\",Calculations!$E$2=\"Western Isles Health Board\",Calculations!$E$2=\"Shetland Islands Local Authority\",Calculations!$E$2=\"Eilean Siar Local Authority\"),OR($F246=1,$F246=5)),0,new_yllv2(VALUE(LEFT(Options!$B$24,2)),$C246,$D246,$E246,$F246,2016,$I246+$J246,1,$H246,$G246*$H246,Options!B8)))","v":3021.8488236047001},{"$f":"IF(AND(OR(Calculations!$E$2=\"Orkney Health Board\",Calculations!$E$2=\"Orkney Islands Local Authority\"),$F246=1),0,IF(AND(OR(Calculations!$E$2=\"Shetland Health Board\",Calculations!$E$2=\"Western Isles Health Board\",Calculations!$E$2=\"Shetland Islands Local Authority\",Calculations!$E$2=\"Eilean Siar Local Authority\"),OR($F246=1,$F246=5)),0,hosp_count(VALUE(LEFT(Options!$B$24,2)),$C246,$E246,$F246,2016,$I246,1,$H246,$G246*$H246, Options!B8)))","v":7206.5449118525003},{"$f":"IF(AND(OR(Calculations!$E$2=\"Orkney Health Board\",Calculations!$E$2=\"Orkney Islands Local Authority\"),$F246=1),0,IF(AND(OR(Calculations!$E$2=\"Shetland Health Board\",Calculations!$E$2=\"Western Isles Health Board\",Calculations!$E$2=\"Shetland Islands Local Authority\",Calculations!$E$2=\"Eilean Siar Local Authority\"),OR($F246=1,$F246=5)),0,hosp_count(VALUE(LEFT(Options!$B$24,2)),$C246,$E246,$F246,2016,$I246+$J246,1,$H246,$G246*$H246, Options!B8)))","v":7176.9726398553003},{"$f":"IF(AND(OR(Calculations!$E$2=\"Orkney Health Board\",Calculations!$E$2=\"Orkney Islands Local Authority\"),$F246=1),0,IF(AND(OR(Calculations!$E$2=\"Shetland Health Board\",Calculations!$E$2=\"Western Isles Health Board\",Calculations!$E$2=\"Shetland Islands Local Authority\",Calculations!$E$2=\"Eilean Siar Local Authority\"),OR($F246=1,$F246=5)),0,prem_mort(VALUE(LEFT(Options!$B$24,2)),$C246,$E246,$F246,2016,$I246,1,$H246,$G246*$H246,Options!B8)))","v":0},{"$f":"IF(AND(OR(Calculations!$E$2=\"Orkney Health Board\",Calculations!$E$2=\"Orkney Islands Local Authority\"),$F246=1),0,IF(AND(OR(Calculations!$E$2=\"Shetland Health Board\",Calculations!$E$2=\"Western Isles Health Board\",Calculations!$E$2=\"Shetland Islands Local Authority\",Calculations!$E$2=\"Eilean Siar Local Authority\"),OR($F246=1,$F246=5)),0,prem_mort(VALUE(LEFT(Options!$B$24,2)),$C246,$E246,$F246,2016,$I246+$J246,1,$H246,$G246*$H246,Options!B8)))","v":0},2180.6767348685889,2170.6539933050076,18426.718409639456,18342.026243427619,43742.305990000001,43562.808132657359,0,0,8722706.9394743554,8682615.9732200298,73706873.638557822,73368104.973710477,174969223.96000001,174251232.53062943,0,0,4000]
[null,"Male 80-84",81.797089,88.627089999999995,"male",5,{"$f":"HLOOKUP(Calculations!$E$2,'Prevalence Rates'!$C$3:$BC$249,'Prevalence Rates'!$BD247,FALSE)","v":0.17405732755611802},{"$f":"HLOOKUP(Calculations!$E$2,'Population 2016'!$C$3:$BC$249,'Population 2016'!BD247,FALSE)","v":11823},0,{"$f":"HLOOKUP(Results!E$4,Targeting!$C$3:$F$249,Targeting!$G247,FALSE)","v":894},{"$f":"IF(AND(OR(Calculations!$E$2=\"Orkney Health Board\",Calculations!$E$2=\"Orkney Islands Local Authority\"),$F247=1),0,IF(AND(OR(Calculations!$E$2=\"Shetland Health Board\",Calculations!$E$2=\"Western Isles Health Board\",Calculations!$E$2=\"Shetland Islands Local Authority\",Calculations!$E$2=\"Eilean Siar Local Authority\"),OR($F247=1,$F247=5)),0,new_ci(VALUE(LEFT(Options!$B$24,2)),$C247,$E247,$F247,2016,$I247,1,$H247,$G247*$H247,Options!B8)))","v":371.0271416992},{"$f":"IF(AND(OR(Calculations!$E$2=\"Orkney Health Board\",Calculations!$E$2=\"Orkney Islands Local Authority\"),$F247=1),0,IF(AND(OR(Calculations!$E$2=\"Shetland Health Board\",Calculations!$E$2=\"Western Isles Health Board\",Calculations!$E$2=\"Shetland Islands Local Authority\",Calculations!$E$2=\"Eilean Siar Local Authority\"),OR($F247=1,$F247=5)),0,new_ci(VALUE(LEFT(Options!$B$24,2)),$C247,$E247,$F247,2016,$I247+$J247,1,$H247,$G247*$H247,Options!B8)))","v":369.33760909419999},{"$f":"IF(AND(OR(Calculations!$E$2=\"Orkney Health Board\",Calculations!$E$2=\"Orkney Islands Local Authority\"),$F247=1),0,IF(AND(OR(Calculations!$E$2=\"Shetland Health Board\",Calculations!$E$2=\"Western Isles Health Board\",Calculations!$E$2=\"Shetland Islands Local Authority\",Calculations!$E$2=\"Eilean Siar Local Authority\"),OR($F247=1,$F247=5)),0,new_yllv2(VALUE(LEFT(Options!$B$24,2)),$C247,$D247,$E247,$F247,2016,$I247,1,$H247,$G247*$H247,Options!B8)))","v":2163.0886071334999},{"$f":"IF(AND(OR(Calculations!$E$2=\"Orkney Health Board\",Calculations!$E$2=\"Orkney Islands Local Authority\"),$F247=1),0,IF(AND(OR(Calculations!$E$2=\"Shetland Health Board\",Calculations!$E$2=\"Western Isles Health Board\",Calculations!$E$2=\"Shetland Islands Local Authority\",Calculations!$E$2=\"Eilean Siar Local Authority\"),OR($F247=1,$F247=5)),0,new_yllv2(VALUE(LEFT(Options!$B$24,2)),$C247,$D247,$E247,$F247,2016,$I247+$J247,1,$H247,$G247*$H247,Options!B8)))","v":2153.2386303568001},{"$f":"IF(AND(OR(Calculations!$E$2=\"Orkney Health Board\",Calculations!$E$2=\"Orkney Islands Local Authority\"),$F247=1),0,IF(AND(OR(Calculations!$E$2=\"Shetland Health Board\",Calculations!$E$2=\"Western Isles Health Board\",Calculations!$E$2=\"Shetland Islands Local Authority\",Calculations!$E$2=\"Eilean Siar Local Authority\"),OR($F247=1,$F247=5)),0,hosp_count(VALUE(LEFT(Options!$B$24,2)),$C247,$E247,$F247,2016,$I247,1,$H247,$G247*$H247, Options!B8)))","v":6151.7839448121003},{"$f":"IF(AND(OR(Calculations!$E$2=\"Orkney Health Board\",Calculations!$E$2=\"Orkney Islands Local Authority\"),$F247=1),0,IF(AND(OR(Calculations!$E$2=\"Shetland Health Board\",Calculations!$E$2=\"Western Isles Health Board\",Calculations!$E$2=\"Shetland Islands Local Authority\",Calculations!$E$2=\"Eilean Siar Local Authority\"),OR($F247=1,$F247=5)),0,hosp_count(VALUE(LEFT(Options!$B$24,2)),$C247,$E247,$F247,2016,$I247+$J247,1,$H247,$G247*$H247, Options!B8)))","v":6126.5447276996001},{"$f":"IF(AND(OR(Calculations!$E$2=\"Orkney Health Board\",Calculations!$E$2=\"Orkney Islands Local Authority\"),$F247=1),0,IF(AND(OR(Calculations!$E$2=\"Shetland Health Board\",Calculations!$E$2=\"Western Isles Health Board\",Calculations!$E$2=\"Shetland Islands Local Authority\",Calculations!$E$2=\"Eilean Siar Local Authority\"),OR($F247=1,$F247=5)),0,prem_mort(VALUE(LEFT(Options!$B$24,2)),$C247,$E247,$F247,2016,$I247,1,$H247,$G247*$H247,Options!B8)))","v":0},{"$f":"IF(AND(OR(Calculations!$E$2=\"Orkney Health Board\",Calculations!$E$2=\"Orkney Islands Local Authority\"),$F247=1),0,IF(AND(OR(Calculations!$E$2=\"Shetland Health Board\",Calculations!$E$2=\"Western Isles Health Board\",Calculations!$E$2=\"Shetland Islands Local Authority\",Calculations!$E$2=\"Eilean Siar Local Authority\"),OR($F247=1,$F247=5)),0,prem_mort(VALUE(LEFT(Options!$B$24,2)),$C247,$E247,$F247,2016,$I247+$J247,1,$H247,$G247*$H247,Options!B8)))","v":0},3138.1810175014798,3123.8907983946542,18295.598470214834,18212.286478531674,52032.343269999998,51818.867696012858,0,0,7845452.5437536994,7809726.9959866358,45738996.175537087,45530716.196329184,130080858.175,129547169.24003215,0,0,2500]
[null,"Male 85-89",86.630752999999999,91.420750000000012,"male",5,{"$f":"HLOOKUP(Calculations!$E$2,'Prevalence Rates'!$C$3:$BC$249,'Prevalence Rates'!$BD248,FALSE)","v":0.17405732755611802},{"$f":"HLOOKUP(Calculations!$E$2,'Population 2016'!$C$3:$BC$249,'Population 2016'!BD248,FALSE)","v":6067},0,{"$f":"HLOOKUP(Results!E$4,Targeting!$C$3:$F$249,Targeting!$G248,FALSE)","v":459},{"$f":"IF(AND(OR(Calculations!$E$2=\"Orkney Health Board\",Calculations!$E$2=\"Orkney Islands Local Authority\"),$F248=1),0,IF(AND(OR(Calculations!$E$2=\"Shetland Health Board\",Calculations!$E$2=\"Western Isles Health Board\",Calculations!$E$2=\"Shetland Islands Local Authority\",Calculations!$E$2=\"Eilean Siar Local Authority\"),OR($F248=1,$F248=5)),0,new_ci(VALUE(LEFT(Options!$B$24,2)),$C248,$E248,$F248,2016,$I248,1,$H248,$G248*$H248,Options!B8)))","v":272.2506270513},{"$f":"IF(AND(OR(Calculations!$E$2=\"Orkney Health Board\",Calculations!$E$2=\"Orkney Islands Local Authority\"),$F248=1),0,IF(AND(OR(Calculations!$E$2=\"Shetland Health Board\",Calculations!$E$2=\"Western Isles Health Board\",Calculations!$E$2=\"Shetland Islands Local Authority\",Calculations!$E$2=\"Eilean Siar Local Authority\"),OR($F248=1,$F248=5)),0,new_ci(VALUE(LEFT(Options!$B$24,2)),$C248,$E248,$F248,2016,$I248+$J248,1,$H248,$G248*$H248,Options!B8)))","v":271.0262578164},{"$f":"IF(AND(OR(Calculations!$E$2=\"Orkney Health Board\",Calculations!$E$2=\"Orkney Islands Local Authority\"),$F248=1),0,IF(AND(OR(Calculations!$E$2=\"Shetland Health Board\",Calculations!$E$2=\"Western Isles Health Board\",Calculations!$E$2=\"Shetland Islands Local Authority\",Calculations!$E$2=\"Eilean Siar Local Authority\"),OR($F248=1,$F248=5)),0,new_yllv2(VALUE(LEFT(Options!$B$24,2)),$C248,$D248,$E248,$F248,2016,$I248,1,$H248,$G248*$H248,Options!B8)))","v":1031.8290597724999},{"$f":"IF(AND(OR(Calculations!$E$2=\"Orkney Health Board\",Calculations!$E$2=\"Orkney Islands Local Authority\"),$F248=1),0,IF(AND(OR(Calculations!$E$2=\"Shetland Health Board\",Calculations!$E$2=\"Western Isles Health Board\",Calculations!$E$2=\"Shetland Islands Local Authority\",Calculations!$E$2=\"Eilean Siar Local Authority\"),OR($F248=1,$F248=5)),0,new_yllv2(VALUE(LEFT(Options!$B$24,2)),$C248,$D248,$E248,$F248,2016,$I248+$J248,1,$H248,$G248*$H248,Options!B8)))","v":1027.1887040454001},{"$f":"IF(AND(OR(Calculations!$E$2=\"Orkney Health Board\",Calculations!$E$2=\"Orkney Islands Local Authority\"),$F248=1),0,IF(AND(OR(Calculations!$E$2=\"Shetland Health Board\",Calculations!$E$2=\"Western Isles Health Board\",Calculations!$E$2=\"Shetland Islands Local Authority\",Calculations!$E$2=\"Eilean Siar Local Authority\"),OR($F248=1,$F248=5)),0,hosp_count(VALUE(LEFT(Options!$B$24,2)),$C248,$E248,$F248,2016,$I248,1,$H248,$G248*$H248, Options!B8)))","v":3747.6590122036},{"$f":"IF(AND(OR(Calculations!$E$2=\"Orkney Health Board\",Calculations!$E$2=\"Orkney Islands Local Authority\"),$F248=1),0,IF(AND(OR(Calculations!$E$2=\"Shetland Health Board\",Calculations!$E$2=\"Western Isles Health Board\",Calculations!$E$2=\"Shetland Islands Local Authority\",Calculations!$E$2=\"Eilean Siar Local Authority\"),OR($F248=1,$F248=5)),0,hosp_count(VALUE(LEFT(Options!$B$24,2)),$C248,$E248,$F248,2016,$I248+$J248,1,$H248,$G248*$H248, Options!B8)))","v":3732.2752083327},{"$f":"IF(AND(OR(Calculations!$E$2=\"Orkney Health Board\",Calculations!$E$2=\"Orkney Islands Local Authority\"),$F248=1),0,IF(AND(OR(Calculations!$E$2=\"Shetland Health Board\",Calculations!$E$2=\"Western Isles Health Board\",Calculations!$E$2=\"Shetland Islands Local Authority\",Calculations!$E$2=\"Eilean Siar Local Authority\"),OR($F248=1,$F248=5)),0,prem_mort(VALUE(LEFT(Options!$B$24,2)),$C248,$E248,$F248,2016,$I248,1,$H248,$G248*$H248,Options!B8)))","v":0},{"$f":"IF(AND(OR(Calculations!$E$2=\"Orkney Health Board\",Calculations!$E$2=\"Orkney Islands Local Authority\"),$F248=1),0,IF(AND(OR(Calculations!$E$2=\"Shetland Health Board\",Calculations!$E$2=\"Western Isles Health Board\",Calculations!$E$2=\"Shetland Islands Local Authority\",Calculations!$E$2=\"Eilean Siar Local Authority\"),OR($F248=1,$F248=5)),0,prem_mort(VALUE(LEFT(Options!$B$24,2)),$C248,$E248,$F248,2016,$I248+$J248,1,$H248,$G248*$H248,Options!B8)))","v":0},4487.4011381457058,4467.2203365155765,17007.236851368056,16930.751673733314,61771.20508,61517.639827471568,0,0,6731101.7072185585,6700830.5047733644,25510855.277052082,25396127.510599971,92656807.620000005,92276459.741207346,0,0,1500]
[null,"Male 90+",92.215477000000007,95.515479999999997,"male",5,{"$f":"HLOOKUP(Calculations!$E$2,'Prevalence Rates'!$C$3:$BC$249,'Prevalence Rates'!$BD249,FALSE)","v":0.17405732755611802},{"$f":"HLOOKUP(Calculations!$E$2,'Population 2016'!$C$3:$BC$249,'Population 2016'!BD249,FALSE)","v":2678},0,{"$f":"HLOOKUP(Results!E$4,Targeting!$C$3:$F$249,Targeting!$G249,FALSE)","v":202},{"$f":"IF(AND(OR(Calculations!$E$2=\"Orkney Health Board\",Calculations!$E$2=\"Orkney Islands Local Authority\"),$F249=1),0,IF(AND(OR(Calculations!$E$2=\"Shetland Health Board\",Calculations!$E$2=\"Western Isles Health Board\",Calculations!$E$2=\"Shetland Islands Local Authority\",Calculations!$E$2=\"Eilean Siar Local Authority\"),OR($F249=1,$F249=5)),0,new_ci(VALUE(LEFT(Options!$B$24,2)),$C249,$E249,$F249,2016,$I249,1,$H249,$G249*$H249,Options!B8)))","v":180.92679627589999},{"$f":"IF(AND(OR(Calculations!$E$2=\"Orkney Health Board\",Calculations!$E$2=\"Orkney Islands Local Authority\"),$F249=1),0,IF(AND(OR(Calculations!$E$2=\"Shetland Health Board\",Calculations!$E$2=\"Western Isles Health Board\",Calculations!$E$2=\"Shetland Islands Local Authority\",Calculations!$E$2=\"Eilean Siar Local Authority\"),OR($F249=1,$F249=5)),0,new_ci(VALUE(LEFT(Options!$B$24,2)),$C249,$E249,$F249,2016,$I249+$J249,1,$H249,$G249*$H249,Options!B8)))","v":180.1334888671},{"$f":"IF(AND(OR(Calculations!$E$2=\"Orkney Health Board\",Calculations!$E$2=\"Orkney Islands Local Authority\"),$F249=1),0,IF(AND(OR(Calculations!$E$2=\"Shetland Health Board\",Calculations!$E$2=\"Western Isles Health Board\",Calculations!$E$2=\"Shetland Islands Local Authority\",Calculations!$E$2=\"Eilean Siar Local Authority\"),OR($F249=1,$F249=5)),0,new_yllv2(VALUE(LEFT(Options!$B$24,2)),$C249,$D249,$E249,$F249,2016,$I249,1,$H249,$G249*$H249,Options!B8)))","v":416.13217421500002},{"$f":"IF(AND(OR(Calculations!$E$2=\"Orkney Health Board\",Calculations!$E$2=\"Orkney Islands Local Authority\"),$F249=1),0,IF(AND(OR(Calculations!$E$2=\"Shetland Health Board\",Calculations!$E$2=\"Western Isles Health Board\",Calculations!$E$2=\"Shetland Islands Local Authority\",Calculations!$E$2=\"Eilean Siar Local Authority\"),OR($F249=1,$F249=5)),0,new_yllv2(VALUE(LEFT(Options!$B$24,2)),$C249,$D249,$E249,$F249,2016,$I249+$J249,1,$H249,$G249*$H249,Options!B8)))","v":414.30756479479999},{"$f":"IF(AND(OR(Calculations!$E$2=\"Orkney Health Board\",Calculations!$E$2=\"Orkney Islands Local Authority\"),$F249=1),0,IF(AND(OR(Calculations!$E$2=\"Shetland Health Board\",Calculations!$E$2=\"Western Isles Health Board\",Calculations!$E$2=\"Shetland Islands Local Authority\",Calculations!$E$2=\"Eilean Siar Local Authority\"),OR($F249=1,$F249=5)),0,hosp_count(VALUE(LEFT(Options!$B$24,2)),$C249,$E249,$F249,2016,$I249,1,$H249,$G249*$H249, Options!B8)))","v":2016.9131573994},{"$f":"IF(AND(OR(Calculations!$E$2=\"Orkney Health Board\",Calculations!$E$2=\"Orkney Islands Local Authority\"),$F249=1),0,IF(AND(OR(Calculations!$E$2=\"Shetland Health Board\",Calculations!$E$2=\"Western Isles Health Board\",Calculations!$E$2=\"Shetland Islands Local Authority\",Calculations!$E$2=\"Eilean Siar Local Authority\"),OR($F249=1,$F249=5)),0,hosp_count(VALUE(LEFT(Options!$B$24,2)),$C249,$E249,$F249,2016,$I249+$J249,1,$H249,$G249*$H249, Options!B8)))","v":2008.6586155872999},{"$f":"IF(AND(OR(Calculations!$E$2=\"Orkney Health Board\",Calculations!$E$2=\"Orkney Islands Local Authority\"),$F249=1),0,IF(AND(OR(Calculations!$E$2=\"Shetland Health Board\",Calculations!$E$2=\"Western Isles Health Board\",Calculations!$E$2=\"Shetland Islands Local Authority\",Calculations!$E$2=\"Eilean Siar Local Authority\"),OR($F249=1,$F249=5)),0,prem_mort(VALUE(LEFT(Options!$B$24,2)),$C249,$E249,$F249,2016,$I249,1,$H249,$G249*$H249,Options!B8)))","v":0},{"$f":"IF(AND(OR(Calculations!$E$2=\"Orkney Health Board\",Calculations!$E$2=\"Orkney Islands Local Authority\"),$F249=1),0,IF(AND(OR(Calculations!$E$2=\"Shetland Health Board\",Calculations!$E$2=\"Western Isles Health Board\",Calculations!$E$2=\"Shetland Islands Local Authority\",Calculations!$E$2=\"Eilean Siar Local Authority\"),OR($F249=1,$F249=5)),0,prem_mort(VALUE(LEFT(Options!$B$24,2)),$C249,$E249,$F249,2016,$I249+$J249,1,$H249,$G249*$H249,Options!B8)))","v":0},6756.0416831926814,6726.4185536631812,15538.916139469755,15470.782852681104,75314.158230000001,75005.922912147114,0,0,6756041.6831926815,6726418.5536631811,15538916.139469754,15470782.852681104,75314158.230000004,75005922.91214712,0,0,1000]

{"sheet":"Inequalities","index":7,"n_rows":18,"n_cols":25,"rows_kept":18,"cut":false,"hidden":true,"merged":[]}
["Relative Index of Inequality calculation"]
["Area:",{"$f":"Options!$B$11","v":"Scotland"}]
["Year:",{"$f":"Options!B24","v":2},null,null,null,null,null,"STANDARDISED RATES"]
[null,null,null,null,null,null,null,"Hospital Stays",null,null,null,null,null,"Premature Death",null,null,null,null,null,"Years of Life Lost (YLL)"]
[null,null,null,null,null,null,null,"Without intervention",null,"With intervention",null,"Difference","% Difference","Without intervention",null,"With intervention",null,"Difference","% Difference","Without intervention",null,"With intervention",null,"Difference","% Difference"]
[null,null,"a",null,"b","√a","b*√a","Y","Y*√a","Y","Y*√a",null,null,"Y","Y*√a","Y","Y*√a",null,null,"Y","Y*√a","Y","Y*√a"]
["SIMD quintile","Population","Proportion of total population","Cumulative proportion","Relative rank"]
[null,null,null,0," "]
["Q1 (most dep)",{"$f":"Calculations!H7","v":872234},{"$f":"B9/$B$14","v":0.19431413815281337},{"$f":"D8+C9","v":0.19431413815281337},{"$f":"D8+(0.5*C9)","v":9.7157069076406685E-2},{"$f":"SQRT(C9)","v":0.44081077363514309},{"$f":"E9*SQRT(C9)","v":4.2827882783693871E-2},{"$f":"Calculations!AN7/($B$3-1)","v":29752.248162420005},{"$f":"SQRT($C9)*H9","v":13115.111529861128},{"$f":"Calculations!AO7/($B$3-1)","v":29630.849204344093},{"$f":"SQRT($C9)*J9","v":13061.597561233184},null,null,{"$f":"Calculations!AP7/($B$3-1)","v":679.47268196515245},{"$f":"SQRT($C9)*N9","v":299.51887860100442},{"$f":"Calculations!AQ7/($B$3-1)","v":676.49779207531515},{"$f":"SQRT($C9)*P9","v":298.20751508718587},null,null,{"$f":"Calculations!AL7/($B$3-1)","v":18753.649794608635},{"$f":"SQRT($C9)*T9","v":8266.8108744439742},{"$f":"Calculations!AM7/($B$3-1)","v":18671.389552089819},{"$f":"SQRT($C9)*V9","v":8230.5496732998399}]
["Q2",{"$f":"Calculations!H8","v":897032},{"$f":"B10/$B$14","v":0.19983857540005831},{"$f":"D9+C10","v":0.39415271355287168},{"$f":"D9+(0.5*C10)","v":0.29423342585284251},{"$f":"SQRT(C10)","v":0.44703308087887444},{"$f":"E10*SQRT(C10)","v":0.13153207485654206},{"$f":"Calculations!AN8/($B$3-1)","v":24186.305889039999},10812.078836656416,{"$f":"Calculations!AO8/($B$3-1)","v":24087.71130737666},10768.003797057489,null,null,{"$f":"Calculations!AP8/($B$3-1)","v":477.33277637941018},213.38354162935457,{"$f":"Calculations!AQ8/($B$3-1)","v":475.22684314742111},212.44211980853328,null,null,{"$f":"Calculations!AL8/($B$3-1)","v":13197.979302512576},5899.9333489778155,{"$f":"Calculations!AM8/($B$3-1)","v":13139.612535017573},5873.841473083583]
["Q3",{"$f":"Calculations!H9","v":907978},{"$f":"B11/$B$14","v":0.2022770982691745},{"$f":"D10+C11","v":0.59642981182204613},{"$f":"D10+(0.5*C11)","v":0.49529126268745893},{"$f":"SQRT(C11)","v":0.44975226321740119},{"$f":"E11*SQRT(C11)","v":0.22275836634548904},{"$f":"Calculations!AN9/($B$3-1)","v":20910.862622785},9404.7077904257148,{"$f":"Calculations!AO9/($B$3-1)","v":20825.822149970132},9366.4606453121505,null,null,{"$f":"Calculations!AP9/($B$3-1)","v":386.55328785602779},173.85321606737605,{"$f":"Calculations!AQ9/($B$3-1)","v":384.87208038358909},173.09708920170874,null,null,{"$f":"Calculations!AL9/($B$3-1)","v":10696.630804764265},4810.8339132436995,{"$f":"Calculations!AM9/($B$3-1)","v":10649.75308006874},4789.7505504674054]
["Q4",{"$f":"Calculations!H10","v":910792},0.20290399424521077,{"$f":"D11+C12","v":0.7993338060672569},{"$f":"D11+(0.5*C12)","v":0.69788180894465146},{"$f":"SQRT(C12)","v":0.45044865883384622},{"$f":"E12*SQRT(C12)","v":0.31435992486365677},{"$f":"Calculations!AN10/($B$3-1)","v":18444.122953785001},8308.1304478990114,{"$f":"Calculations!AO10/($B$3-1)","v":18369.256578983091},8274.406989777739,null,null,{"$f":"Calculations!AP10/($B$3-1)","v":307.03501099594456},138.30350891815846,{"$f":"Calculations!AQ10/($B$3-1)","v":305.7028542995584},137.70344072091478,null,null,{"$f":"Calculations!AL10/($B$3-1)","v":8501.9685250587299},3829.7003195602783,{"$f":"Calculations!AM10/($B$3-1)","v":8464.9902944231053},3813.0435251644126]
["Q5 (least dep)",{"$f":"Calculations!H11","v":900747},0.20066619393274301,{"$f":"D12+C13","v":0.99999999999999989},{"$f":"D12+(0.5*C13)","v":0.8996669030336284},{"$f":"SQRT(C13)","v":0.44795780374131561},{"$f":"E13*SQRT(C13)","v":0.40301280998169531},{"$f":"Calculations!AN11/($B$3-1)","v":16404.921966045004},7348.7128144571852,{"$f":"Calculations!AO11/($B$3-1)","v":16338.371560464402},7318.9010409352049,null,null,{"$f":"Calculations!AP11/($B$3-1)","v":226.18759689833786},101.32249914010544,{"$f":"Calculations!AQ11/($B$3-1)","v":225.21278650424904},100.8858252169052,null,null,{"$f":"Calculations!AL11/($B$3-1)","v":6268.1054492417334},2807.8467506612992,{"$f":"Calculations!AM11/($B$3-1)","v":6240.8257210892416},2795.6265835514491]
["Total",{"$f":"SUM(B9:B13)","v":4488783},null,null,null,null,{"$f":"E14*SQRT(D14)","v":0},{"$f":"IF(OR(Calculations!$E$2=\"Orkney Health Board\",Calculations!$E$2=\"Orkney Islands Local Authority\"),AVERAGE(H10:H13),IF(OR(Calculations!$E$2=\"Shetland Health Board\",Calculations!$E$2=\"Western Isles Health Board\",Calculations!$E$2=\"Shetland Islands Local Authority\",Calculations!$E$2=\"Eilean Siar Local Authority\"),AVERAGE(H10:H12),AVERAGE(H9:H13)))","v":21939.692318815003},0,{"$f":"IF(OR(Calculations!$E$2=\"Orkney Health Board\",Calculations!$E$2=\"Orkney Islands Local Authority\"),AVERAGE(J10:J13),IF(OR(Calculations!$E$2=\"Shetland Health Board\",Calculations!$E$2=\"Western Isles Health Board\",Calculations!$E$2=\"Shetland Islands Local Authority\",Calculations!$E$2=\"Eilean Siar Local Authority\"),AVERAGE(J10:J12),AVERAGE(J9:J13)))","v":21850.402160227677},0,null,null,{"$f":"IF(OR(Calculations!$E$2=\"Orkney Health Board\",Calculations!$E$2=\"Orkney Islands Local Authority\"),AVERAGE(N10:N13),IF(OR(Calculations!$E$2=\"Shetland Health Board\",Calculations!$E$2=\"Western Isles Health Board\",Calculations!$E$2=\"Shetland Islands Local Authority\",Calculations!$E$2=\"Eilean Siar Local Authority\"),AVERAGE(N10:N12),AVERAGE(N9:N13)))","v":415.31627081897449},0,{"$f":"IF(OR(Calculations!$E$2=\"Orkney Health Board\",Calculations!$E$2=\"Orkney Islands Local Authority\"),AVERAGE(P10:P13),IF(OR(Calculations!$E$2=\"Shetland Health Board\",Calculations!$E$2=\"Western Isles Health Board\",Calculations!$E$2=\"Shetland Islands Local Authority\",Calculations!$E$2=\"Eilean Siar Local Authority\"),AVERAGE(P10:P12),AVERAGE(P9:P13)))","v":413.50247128202653},0,null,null,{"$f":"IF(OR(Calculations!$E$2=\"Orkney Health Board\",Calculations!$E$2=\"Orkney Islands Local Authority\"),AVERAGE(T10:T13),IF(OR(Calculations!$E$2=\"Shetland Health Board\",Calculations!$E$2=\"Western Isles Health Board\",Calculations!$E$2=\"Shetland Islands Local Authority\",Calculations!$E$2=\"Eilean Siar Local Authority\"),AVERAGE(T10:T12),AVERAGE(T9:T13)))","v":11483.666775237187},0,{"$f":"IF(OR(Calculations!$E$2=\"Orkney Health Board\",Calculations!$E$2=\"Orkney Islands Local Authority\"),AVERAGE(V10:V13),IF(OR(Calculations!$E$2=\"Shetland Health Board\",Calculations!$E$2=\"Western Isles Health Board\",Calculations!$E$2=\"Shetland Islands Local Authority\",Calculations!$E$2=\"Eilean Siar Local Authority\"),AVERAGE(V10:V12),AVERAGE(V9:V13)))","v":11433.314236537695},0]
[null,null,null,null,"Slope Index of Inequality =",null,null,{"$f":"IF(OR(Calculations!$E$2=\"Orkney Health Board\",Calculations!$E$2=\"Orkney Islands Local Authority\"),-LINEST(I10:I13,$F10:$G13,0),IF(OR(Calculations!$E$2=\"Shetland Health Board\",Calculations!$E$2=\"Western Isles Health Board\",Calculations!$E$2=\"Shetland Islands Local Authority\",Calculations!$E$2=\"Eilean Siar Local Authority\"),-LINEST(I10:I12,$F10:$G12,0),-LINEST(I9:I13,$F9:$G13,0)))","v":16090.340555944245},null,{"$f":"IF(OR(Calculations!$E$2=\"Orkney Health Board\",Calculations!$E$2=\"Orkney Islands Local Authority\"),-LINEST(K10:K13,$F10:$G13,0),IF(OR(Calculations!$E$2=\"Shetland Health Board\",Calculations!$E$2=\"Western Isles Health Board\",Calculations!$E$2=\"Shetland Islands Local Authority\",Calculations!$E$2=\"Eilean Siar Local Authority\"),-LINEST(K10:K12,$F10:$G12,0),-LINEST(K9:K13,$F9:$G13,0)))","v":16024.153451245549},null,{"$f":"H15-J15","v":66.187104698696203},{"$f":"L15*100/H15","v":0.4113468230741999},{"$f":"IF(OR(Calculations!$E$2=\"Orkney Health Board\",Calculations!$E$2=\"Orkney Islands Local Authority\"),-LINEST(O10:O13,$F10:$G13,0),IF(OR(Calculations!$E$2=\"Shetland Health Board\",Calculations!$E$2=\"Western Isles Health Board\",Calculations!$E$2=\"Shetland Islands Local Authority\",Calculations!$E$2=\"Eilean Siar Local Authority\"),-LINEST(O10:O12,$F10:$G12,0),-LINEST(O9:O13,$F9:$G13,0)))","v":533.96587882074641},null,{"$f":"IF(OR(Calculations!$E$2=\"Orkney Health Board\",Calculations!$E$2=\"Orkney Islands Local Authority\"),-LINEST(Q10:Q13,$F10:$G13,0),IF(OR(Calculations!$E$2=\"Shetland Health Board\",Calculations!$E$2=\"Western Isles Health Board\",Calculations!$E$2=\"Shetland Islands Local Authority\",Calculations!$E$2=\"Eilean Siar Local Authority\"),-LINEST(Q10:Q12,$F10:$G12,0),-LINEST(Q9:Q13,$F9:$G13,0)))","v":531.5983196635791},null,{"$f":"N15-P15","v":2.3675591571673067},{"$f":"R15*100/N15","v":0.44339146958154263},{"$f":"IF(OR(Calculations!$E$2=\"Orkney Health Board\",Calculations!$E$2=\"Orkney Islands Local Authority\"),-LINEST(U10:U13,$F10:$G13,0),IF(OR(Calculations!$E$2=\"Shetland Health Board\",Calculations!$E$2=\"Western Isles Health Board\",Calculations!$E$2=\"Shetland Islands Local Authority\",Calculations!$E$2=\"Eilean Siar Local Authority\"),-LINEST(U10:U12,$F10:$G12,0),-LINEST(U9:U13,$F9:$G13,0)))","v":14710.770501375913},null,{"$f":"IF(OR(Calculations!$E$2=\"Orkney Health Board\",Calculations!$E$2=\"Orkney Islands Local Authority\"),-LINEST(W10:W13,$F10:$G13,0),IF(OR(Calculations!$E$2=\"Shetland Health Board\",Calculations!$E$2=\"Western Isles Health Board\",Calculations!$E$2=\"Shetland Islands Local Authority\",Calculations!$E$2=\"Eilean Siar Local Authority\"),-LINEST(W10:W12,$F10:$G12,0),-LINEST(W9:W13,$F9:$G13,0)))","v":14645.626960203897},null,{"$f":"T15-V15","v":65.14354117201583},{"$f":"X15*100/T15","v":0.44282888626345501}]
[null,null,null,null,"Relative Index of Inequality =",null,null,{"$f":"H15/H14","v":0.73338952625810161},null,{"$f":"J15/J14","v":0.73335736952305963},null,{"$f":"H16-J16","v":3.2156735041977136E-5},{"$f":"L16*100/H16","v":4.38467334078892E-3},{"$f":"N15/N14","v":1.2856849498523215},null,{"$f":"P15/P14","v":1.2855988937996119},null,{"$f":"N16-P16","v":8.6056052709615471E-5},{"$f":"R16*100/N16","v":6.6934012659555656E-3},{"$f":"T15/T14","v":1.28101683802751},null,{"$f":"V15/V14","v":1.2809607658119413},null,{"$f":"T16-V16","v":5.607221556869213E-5},{"$f":"X16*100/T16","v":4.3771646011328989E-3}]
[null,null,null,null,"Absolute difference (Q1-Q5) =",null,null,{"$f":"IF(OR(Calculations!$E$2=\"Orkney Health Board\",Calculations!$E$2=\"Orkney Islands Local Authority\"),H10-H13,IF(OR(Calculations!$E$2=\"Shetland Health Board\",Calculations!$E$2=\"Western Isles Health Board\",Calculations!$E$2=\"Shetland Islands Local Authority\",Calculations!$E$2=\"Eilean Siar Local Authority\"),H10-H12,H9-H13))","v":13347.326196375001},null,{"$f":"IF(OR(Calculations!$E$2=\"Orkney Health Board\",Calculations!$E$2=\"Orkney Islands Local Authority\"),J10-J13,IF(OR(Calculations!$E$2=\"Shetland Health Board\",Calculations!$E$2=\"Western Isles Health Board\",Calculations!$E$2=\"Shetland Islands Local Authority\",Calculations!$E$2=\"Eilean Siar Local Authority\"),J10-J12,J9-J13))","v":13292.477643879691},null,{"$f":"H17-J17","v":54.848552495310287},{"$f":"L17*100/H17","v":0.41093288414728785},{"$f":"IF(OR(Calculations!$E$2=\"Orkney Health Board\",Calculations!$E$2=\"Orkney Islands Local Authority\"),N10-N13,IF(OR(Calculations!$E$2=\"Shetland Health Board\",Calculations!$E$2=\"Western Isles Health Board\",Calculations!$E$2=\"Shetland Islands Local Authority\",Calculations!$E$2=\"Eilean Siar Local Authority\"),N10-N12,N9-N13))","v":453.28508506681459},null,{"$f":"IF(OR(Calculations!$E$2=\"Orkney Health Board\",Calculations!$E$2=\"Orkney Islands Local Authority\"),P10-P13,IF(OR(Calculations!$E$2=\"Shetland Health Board\",Calculations!$E$2=\"Western Isles Health Board\",Calculations!$E$2=\"Shetland Islands Local Authority\",Calculations!$E$2=\"Eilean Siar Local Authority\"),P10-P12,P9-P13))","v":451.28500557106611},null,{"$f":"N17-P17","v":2.00007949574848},{"$f":"R17*100/N17","v":0.44124096769115329},{"$f":"IF(OR(Calculations!$E$2=\"Orkney Health Board\",Calculations!$E$2=\"Orkney Islands Local Authority\"),T10-T13,IF(OR(Calculations!$E$2=\"Shetland Health Board\",Calculations!$E$2=\"Western Isles Health Board\",Calculations!$E$2=\"Shetland Islands Local Authority\",Calculations!$E$2=\"Eilean Siar Local Authority\"),T10-T12,T9-T13))","v":12485.544345366901},null,{"$f":"IF(OR(Calculations!$E$2=\"Orkney Health Board\",Calculations!$E$2=\"Orkney Islands Local Authority\"),V10-V13,IF(OR(Calculations!$E$2=\"Shetland Health Board\",Calculations!$E$2=\"Western Isles Health Board\",Calculations!$E$2=\"Shetland Islands Local Authority\",Calculations!$E$2=\"Eilean Siar Local Authority\"),V10-V12,V9-V13))","v":12430.563831000578},null,{"$f":"T17-V17","v":54.980514366323405},{"$f":"X17*100/T17","v":0.44035336262071273}]
[null,null,null,null,"Relative difference (Q1/Q5) =",null,null,{"$f":"IF(OR(Calculations!$E$2=\"Orkney Health Board\",Calculations!$E$2=\"Orkney Islands Local Authority\"),H10/H13,IF(OR(Calculations!$E$2=\"Shetland Health Board\",Calculations!$E$2=\"Western Isles Health Board\",Calculations!$E$2=\"Shetland Islands Local Authority\",Calculations!$E$2=\"Eilean Siar Local Authority\"),H10/H12,H9/H13))","v":1.8136171707492037},null,{"$f":"IF(OR(Calculations!$E$2=\"Orkney Health Board\",Calculations!$E$2=\"Orkney Islands Local Authority\"),J10/J13,IF(OR(Calculations!$E$2=\"Shetland Health Board\",Calculations!$E$2=\"Western Isles Health Board\",Calculations!$E$2=\"Shetland Islands Local Authority\",Calculations!$E$2=\"Eilean Siar Local Authority\"),J10/J12,J9/J13))","v":1.8135742044234588},null,{"$f":"H18-J18","v":4.2966325744853151E-5},{"$f":"L18*100/H18","v":2.3690956635078505E-3},{"$f":"IF(OR(Calculations!$E$2=\"Orkney Health Board\",Calculations!$E$2=\"Orkney Islands Local Authority\"),N10/N13,IF(OR(Calculations!$E$2=\"Shetland Health Board\",Calculations!$E$2=\"Western Isles Health Board\",Calculations!$E$2=\"Shetland Islands Local Authority\",Calculations!$E$2=\"Eilean Siar Local Authority\"),N10/N12,N9/N13))","v":3.0040227284016279},null,{"$f":"IF(OR(Calculations!$E$2=\"Orkney Health Board\",Calculations!$E$2=\"Orkney Islands Local Authority\"),P10/P13,IF(OR(Calculations!$E$2=\"Shetland Health Board\",Calculations!$E$2=\"Western Isles Health Board\",Calculations!$E$2=\"Shetland Islands Local Authority\",Calculations!$E$2=\"Eilean Siar Local Authority\"),P10/P12,P9/P13))","v":3.0038160913325931},null,{"$f":"N18-P18","v":2.066370690347874E-4},{"$f":"R18*100/N18","v":6.8786786158816539E-3},{"$f":"IF(OR(Calculations!$E$2=\"Orkney Health Board\",Calculations!$E$2=\"Orkney Islands Local Authority\"),T10/T13,IF(OR(Calculations!$E$2=\"Shetland Health Board\",Calculations!$E$2=\"Western Isles Health Board\",Calculations!$E$2=\"Shetland Islands Local Authority\",Calculations!$E$2=\"Eilean Siar Local Authority\"),T10/T12,T9/T13))","v":2.9919167675900069},null,{"$f":"IF(OR(Calculations!$E$2=\"Orkney Health Board\",Calculations!$E$2=\"Orkney Islands Local Authority\"),V10/V13,IF(OR(Calculations!$E$2=\"Shetland Health Board\",Calculations!$E$2=\"Western Isles Health Board\",Calculations!$E$2=\"Shetland Islands Local Authority\",Calculations!$E$2=\"Eilean Siar Local Authority\"),V10/V12,V9/V13))","v":2.991813966058166},null,{"$f":"T18-V18","v":1.0280153184094587E-4},{"$f":"X18*100/T18","v":3.4359756579643306E-3}]

{"sheet":"Health outcome totals 2016","index":8,"n_rows":17,"n_cols":56,"rows_kept":17,"cut":false,"hidden":true,"merged":[]}
["Health outcome totals, 2016"]
[]
[null,null,"Aberdeen City Local Authority","Aberdeen City Region Deal","Aberdeenshire Local Authority","Angus Local Authority","Argyll & Bute Local Authority","Ayrshire & Arran Health Board","Borders Health Board","Clackmannanshire & Stirling IJB","Clackmannanshire Local Authority","Dumfries & Galloway Health Board","Dumfries & Galloway Local Authority","Dundee City Local Authority","East Ayrshire Local Authority","East Dunbartonshire Local Authority","East Lothian Local Authority","East Renfrewshire Local Authority","Edinburgh & SE Scotland City Region Deal","Edinburgh, City of Local Authority","Eilean Siar Local Authority","Falkirk Local Authority","Fife Health Board","Fife Local Authority","Forth Valley Health Board","Glasgow City Local Authority","Glasgow City Region Deal","Grampian Health Board","Greater Glasgow & Clyde Health Board","Highland Health Board","Highland Local Authority","Inverclyde Local Authority","Inverness & Highland City Region Deal","Lanarkshire Health Board","Lothian Health Board","Midlothian Local Authority","Moray Local Authority","North Ayrshire Local Authority","North Lanarkshire Local Authority","Orkney Health Board","Orkney Islands Local Authority","Perth & Kinross Local Authority","Renfrewshire Local Authority","Scotland","Scottish Borders Local Authority","Shetland Health Board","Shetland Islands Local Authority","South Ayrshire Local Authority","South Lanarkshire Local Authority","Stirling Local Authority","Tay Cities Region Deal ","Tayside Health Board","West Dunbartonshire Local Authority","West Lothian Local Authority","Western Isles Health Board",1]
[null,null,"S12000033","Aber_deal","S12000034","S12000041","S12000035","S08000015","S08000016","ClacksStirIJB","S12000005","S08000017","S12000006","S12000042","S12000008","S12000045","S12000010","S12000011","EdinSE_deal","S12000036","S12000013","S12000014","S08000018","S12000015","S08000019","S12000046","GClyde_deal","S08000020","S08000021","S08000022","S12000017","S12000018","Inver_deal","S08000023","S08000024","S12000019","S12000020","S12000021","S12000044","S08000025","S12000023","S12000024","S12000038","S00000001","S12000026","S08000026","S12000027","S12000028","S12000029","S12000030","Tay_deal","S08000027","S12000039","S12000040","S08000028",2]
[null,null,null,null,null,null,null,null,null,null,null,null,null,null,null,null,null,null,null,null,null,null,null,null,null,null,null,null,null,null,null,null,null,null,null,null,null,null,null,null,null,null,null,null,null,null,null,null,null,null,null,null,null,null,null,3]
[null,"All hospital admissions (16+)",41626,84145,42519,18091,21023,90768,25209,20471,7651,34490,34490,23727,28249,28833,18105,21705,243108,77192,7253,24369,73148,73148,44840,155175,465272,101100,299797,63264,42241,21552,42241,165475,144751,16294,16955,33649,88230,4636,4636,23268,47578,1125093,25209,5276,5276,28870,77245,12820,138234,65086,24954,33160,7253,4]
[null,"All hospital admissions (SIMD Q1, 16+)",4722,5748,1026,1291,1909,30005,1818,4205,2064,3291,3291,9713,9944,1787,691,1667,41988,13947,0,4489,16974,16974,8694,88379,175909,5919,127063,5479,3570,10387,3570,48846,23196,1769,171,14603,30793,0,0,1429,14646,283718,1818,0,0,5458,18053,2141,29407,12433,10197,6789,0,5]
[null,"All hospital admissions (SIMD Q1 and Q2, 16+)",15717,21194,5477,4707,5862,52925,6550,8550,4153,13054,13054,14796,17671,7386,6437,3905,98104,26095,1759,12454,34033,34033,21004,114868,279835,24321,181891,18570,12708,13017,12708,97944,57521,8106,3127,21482,57322,758,758,4360,25069,534382,6550,189,189,13772,40622,4397,57896,23863,17646,16883,1759,6]
[null,"All deaths (16+)",2126,4486,2360,1434,1110,4492,1277,1445,546,1858,1858,1690,1454,1113,1001,883,13129,4361,359,1734,4091,4091,3179,6321,19540,5465,12443,3507,2397,1006,2397,7097,7761,848,979,1593,3569,223,223,1617,2070,56725,1277,232,232,1445,3528,899,8832,4741,1050,1551,359,7]
[null,"All deaths (SIMD Q1, 16+)",202,270,68,101,108,1512,66,296,141,153,153,703,542,54,27,76,2183,793,0,306,909,909,602,3747,7764,282,5491,286,178,495,178,2273,1208,86,12,699,1432,0,0,79,684,13665,66,0,0,271,841,155,1792,883,435,302,0,8]
[null,"All deaths (SIMD Q1 and Q2, 16+)",759,1068,309,366,335,2716,302,581,291,699,699,1072,985,270,354,152,5276,1482,88,941,1903,1903,1522,4890,12279,1233,7808,1019,684,593,684,4471,3071,440,165,1017,2551,35,35,252,1137,26567,302,10,10,714,1920,290,3593,1690,766,795,88,9]
[null,"Premature deaths (16+)",811,1608,797,476,393,1746,418,519,224,616,616,687,565,356,362,248,4764,1514,133,665,1511,1511,1184,2759,7841,1940,4946,1277,884,382,884,2895,2835,327,332,659,1546,66,66,520,784,21313,418,63,63,522,1349,295,3194,1683,417,632,133,10]
[null,"Premature deaths (SIMD Q1, 16+)",107,137,30,43,47,690,33,124,56,77,77,368,228,26,18,35,1042,380,0,144,431,431,268,1758,3631,142,2540,142,95,222,95,1091,578,43,5,329,672,0,0,40,308,6443,33,0,0,133,419,68,882,451,191,137,0,11]
[null,"Premature deaths (SIMD Q1 and Q2, 16+)",364,493,129,150,141,1182,114,247,124,288,288,516,405,100,145,71,2222,649,42,398,801,801,645,2232,5428,569,3464,449,308,273,308,1964,1307,173,76,469,1151,10,10,112,460,11618,114,5,5,308,813,123,1579,778,328,340,42,12]
[null,"Years of Life Lost (16+)",27478.849984764998,54444.2399408817,26965.3899561166,16090.8199598789,12686.9499692916,56848.409873366298,13994.529939413,17303.359948515801,7163.6299738883899,21118.8499506712,21118.8499506712,23122.199981927799,17993.719950675899,12374.2699501514,12200.3899704217,9172.4499734640103,160653.58962154301,53280.459909200603,4023.4899880886001,22452.289941430001,50451.919886112199,50451.919886112199,39755.649889945897,89197.719813108401,256885.999366998,65559.529895305604,162663.369581103,41357.789903044701,28670.839933752999,12320.2399550676,28670.839933752999,94222.629785895304,96207.1397960186,10264.6499630212,11115.289954423901,21125.3999617099,49180.329858660698,2374.0299997329698,2374.0299997329698,18424.4199427366,25842.089928984598,708624.04837918223,13994.529939413,2409.2700059413901,2409.2700059413901,17729.289960980401,45042.299927234599,10139.7299746275,108089.35977065501,57637.439884543397,13756.599960327099,20461.639953374801,4023.4899880886001,13]
[null,"Years of Life Lost (SIMD Q1, 16+)",3295.92993164062,4366.02978515625,1070.09997558593,1397.83996582031,1470.84997558593,22073.8203125,964.219970703125,4154.080078125,1917.78002929687,2255.6298828125,2255.6298828125,11311.849609375,7246.14013671875,801.34997558593705,506.52999877929602,1143.19995117187,33291.8515625,12423.990234375,0,4594.18994140625,13844.83984375,13844.83984375,8748.26953125,55460.6796875,114187.4921875,4533.0498046875,80170.8125,4432.89990234375,2962.05004882812,6832.72021484375,2962.05004882812,34016.6796875,18482.7890625,1343.33996582031,167.02000427246,10474.1796875,20828.01953125,0,0,1313.01000976562,9733.16015625,203545.71069335938,964.219970703125,0,0,4353.5,13188.66015625,2236.30004882812,27867.5390625,14022.7001953125,6199.7001953125,4208.93017578125,0,14]
[null,"Years of Life Lost (SIMD Q1 and Q2, 16+)",11539.6896972656,15803.310058593701,4263.6199951171802,4814.6199951171802,4330.8499755859302,37723.6103515625,3783.65991210937,8139.5300292968705,4124.93994140625,9004.40966796875,9004.40966796875,16525.039550781199,12834.580078125,3274.6199951171802,4628.5700378417896,2192.68994140625,71927.140625,21426.830078125,1201.05004882812,13288.649902343701,25972.349609375,25972.349609375,21428.1796875,71527.9296875,173737.29296875,18071.849609375,110859.11328125,13808.199707031201,9477.3498535156195,8312.5902099609302,9477.3498535156195,62878.1796875,42171.12890625,5422.7598876953098,2268.54002380371,14767.939453125,36228.279296875,369.36999511718699,369.36999511718699,3594.6298828125,14987.880371093701,372328.97050476068,3783.65991210937,123.58000183105401,123.58000183105401,10121.08984375,26649.900390625,4014.59008789062,50906.638671875,24934.2900390625,10563.400390625,10692.970214843701,1201.05004882812,15]

{"sheet":"Lists","index":9,"n_rows":85,"n_cols":12,"rows_kept":85,"cut":false,"hidden":true,"merged":[]}
["AREA LOOK-UP",null,null,"AREA name","Equivalent to",null,"AREA CODE LOOK-UP",null,"INTERVENTIONS",null,"TARGETING OPTIONS"]
[1,"Scotland",null,"Aberdeen City IJB","Aberdeen City Local Authority",null,"Scotland","S00000001",1,"Alcohol Brief Intervention",1,"Even distribution"]
[2,"Ayrshire & Arran Health Board",null,"Aberdeen City Local Authority","Aberdeen City Local Authority",null,"Ayrshire & Arran Health Board","S08000015",null,null,2,"Targeting to SIMD Q1"]
[3,"Borders Health Board",null,"Aberdeen City Region Deal","Aberdeen City Region Deal",null,"Borders Health Board","S08000016",null,null,3,"Targeting to SIMD Q1 & Q2"]
[4,"Dumfries & Galloway Health Board",null,"Aberdeenshire IJB","Aberdeenshire Local Authority",null,"Dumfries & Galloway Health Board","S08000017",null,null,4,"Proportionate to need"]
[5,"Fife Health Board",null,"Aberdeenshire Local Authority","Aberdeenshire Local Authority",null,"Fife Health Board","S08000018"]
[6,"Forth Valley Health Board",null,"Angus IJB","Angus Local Authority",null,"Forth Valley Health Board","S08000019"]
[7,"Grampian Health Board",null,"Angus Local Authority","Angus Local Authority",null,"Grampian Health Board","S08000020"]
[8,"Greater Glasgow & Clyde Health Board",null,"Argyll & Bute IJB","Argyll & Bute Local Authority",null,"Greater Glasgow & Clyde Health Board","S08000021"]
[9,"Highland Health Board",null,"Argyll & Bute Local Authority","Argyll & Bute Local Authority",null,"Highland Health Board","S08000022"]
[10,"Lanarkshire Health Board",null,"Ayrshire & Arran Health Board","Ayrshire & Arran Health Board",null,"Lanarkshire Health Board","S08000023"]
[11,"Lothian Health Board",null,"Borders Health Board","Borders Health Board",null,"Lothian Health Board","S08000024"]
[12,"Orkney Health Board",null,"Clackmannanshire & Stirling IJB","Clackmannanshire & Stirling IJB",null,"Orkney Health Board","S08000025"]
[13,"Shetland Health Board",null,"Clackmannanshire Local Authority","Clackmannanshire Local Authority",null,"Shetland Health Board","S08000026"]
[14,"Tayside Health Board",null,"Dumfries & Galloway Health Board","Dumfries & Galloway Health Board",null,"Tayside Health Board","S08000027"]
[15,"Western Isles Health Board",null,"Dumfries & Galloway IJB","Dumfries & Galloway Local Authority",null,"Western Isles Health Board","S08000028"]
[16,"Aberdeen City Local Authority",null,"Dumfries & Galloway Local Authority","Dumfries & Galloway Local Authority",null,"Clackmannanshire Local Authority","S12000005"]
[17,"Aberdeenshire Local Authority",null,"Dundee City IJB","Dundee City Local Authority",null,"Dumfries & Galloway Local Authority","S12000006"]
[18,"Angus Local Authority",null,"Dundee City Local Authority","Dundee City Local Authority",null,"East Ayrshire Local Authority","S12000008"]
[19,"Argyll & Bute Local Authority",null,"East Ayrshire IJB","East Ayrshire Local Authority",null,"East Lothian Local Authority","S12000010"]
[20,"Clackmannanshire Local Authority",null,"East Ayrshire Local Authority","East Ayrshire Local Authority",null,"East Renfrewshire Local Authority","S12000011"]
[21,"Dumfries & Galloway Local Authority",null,"East Dunbartonshire IJB","East Dunbartonshire Local Authority",null,"Eilean Siar Local Authority","S12000013"]
[22,"Dundee City Local Authority",null,"East Dunbartonshire Local Authority","East Dunbartonshire Local Authority",null,"Falkirk Local Authority","S12000014"]
[23,"East Ayrshire Local Authority",null,"East Lothian IJB","East Lothian Local Authority",null,"Fife Local Authority","S12000015"]
[24,"East Dunbartonshire Local Authority",null,"East Lothian Local Authority","East Lothian Local Authority",null,"Highland Local Authority","S12000017"]
[25,"East Lothian Local Authority",null,"East Renfrewshire IJB","East Renfrewshire Local Authority",null,"Inverclyde Local Authority","S12000018"]
[26,"East Renfrewshire Local Authority",null,"East Renfrewshire Local Authority","East Renfrewshire Local Authority",null,"Midlothian Local Authority","S12000019"]
[27,"Edinburgh, City of Local Authority",null,"Edinburgh & SE Scotland City Region Deal","Edinburgh & SE Scotland City Region Deal",null,"Moray Local Authority","S12000020"]
[28,"Eilean Siar Local Authority",null,"Edinburgh, City of Local Authority","Edinburgh, City of Local Authority",null,"North Ayrshire Local Authority","S12000021"]
[29,"Falkirk Local Authority",null,"Edinburgh, City of, IJB","Edinburgh, City of Local Authority",null,"Orkney Islands Local Authority","S12000023"]
[30,"Fife Local Authority",null,"Eilean Siar IJB","Eilean Siar Local Authority",null,"Perth & Kinross Local Authority","S12000024"]
[31,"Glasgow City Local Authority",null,"Eilean Siar Local Authority","Eilean Siar Local Authority",null,"Scottish Borders Local Authority","S12000026"]
[32,"Highland Local Authority",null,"Falkirk IJB","Falkirk Local Authority",null,"Shetland Islands Local Authority","S12000027"]
[33,"Inverclyde Local Authority",null,"Falkirk Local Authority","Falkirk Local Authority",null,"South Ayrshire Local Authority","S12000028"]
[34,"Midlothian Local Authority",null,"Fife Health Board","Fife Health Board",null,"South Lanarkshire Local Authority","S12000029"]
[35,"Moray Local Authority",null,"Fife IJB","Fife Local Authority",null,"Stirling Local Authority","S12000030"]
[36,"North Ayrshire Local Authority",null,"Fife Local Authority","Fife Local Authority",null,"Aberdeen City Local Authority","S12000033"]
[37,"North Lanarkshire Local Authority",null,"Forth Valley Health Board","Forth Valley Health Board",null,"Aberdeenshire Local Authority","S12000034"]
[38,"Orkney Islands Local Authority",null,"Glasgow City IJB","Glasgow City Local Authority",null,"Argyll & Bute Local Authority","S12000035"]
[39,"Perth & Kinross Local Authority",null,"Glasgow City Local Authority","Glasgow City Local Authority",null,"Edinburgh, City of Local Authority","S12000036"]
[40,"Renfrewshire Local Authority",null,"Glasgow City Region Deal","Glasgow City Region Deal",null,"Renfrewshire Local Authority","S12000038"]
[41,"Scottish Borders Local Authority",null,"Grampian Health Board","Grampian Health Board",null,"West Dunbartonshire Local Authority","S12000039"]
[42,"Shetland Islands Local Authority",null,"Greater Glasgow & Clyde Health Board","Greater Glasgow & Clyde Health Board",null,"West Lothian Local Authority","S12000040"]
[43,"South Ayrshire Local Authority",null,"Highland Health Board","Highland Health Board",null,"Angus Local Authority","S12000041"]
[44,"South Lanarkshire Local Authority",null,"Highland Local Authority","Highland Local Authority",null,"Dundee City Local Authority","S12000042"]
[45,"Stirling Local Authority",null,"Highland Partnership","Highland Local Authority",null,"North Lanarkshire Local Authority","S12000044"]
[46,"West Dunbartonshire Local Authority",null,"Inverclyde IJB","Inverclyde Local Authority",null,"East Dunbartonshire Local Authority","S12000045"]
[47,"West Lothian Local Authority",null,"Inverclyde Local Authority","Inverclyde Local Authority",null,"Glasgow City Local Authority","S12000046"]
[48,"Aberdeen City Region Deal",null,"Inverness & Highland City Region Deal","Inverness & Highland City Region Deal"]
[49,"Edinburgh & SE Scotland City Region Deal",null,"Lanarkshire Health Board","Lanarkshire Health Board"]
[50,"Glasgow City Region Deal",null,"Lothian Health Board","Lothian Health Board"]
[51,"Inverness & Highland City Region Deal",null,"Midlothian IJB","Midlothian Local Authority"]
[52,"Stirling & Clackmannanshire City Region Deal",null,"Midlothian Local Authority","Midlothian Local Authority"]
[53,"Tay Cities Region Deal ",null,"Moray IJB","Moray Local Authority"]
[54,"Aberdeen City IJB",null,"Moray Local Authority","Moray Local Authority"]
[55,"Aberdeenshire IJB",null,"North Ayrshire IJB","North Ayrshire Local Authority"]
[56,"Angus IJB",null,"North Ayrshire Local Authority","North Ayrshire Local Authority"]
[57,"Argyll & Bute IJB",null,"North Lanarkshire IJB","North Lanarkshire Local Authority"]
[58,"Clackmannanshire & Stirling IJB",null,"North Lanarkshire Local Authority","North Lanarkshire Local Authority"]
[59,"Dumfries & Galloway IJB",null,"Orkney Health Board","Orkney Health Board"]
[60,"Dundee City IJB",null,"Orkney Islands IJB","Orkney Islands Local Authority"]
[61,"East Ayrshire IJB",null,"Orkney Islands Local Authority","Orkney Islands Local Authority"]
[62,"East Dunbartonshire IJB",null,"Perth & Kinross IJB","Perth & Kinross Local Authority"]
[63,"East Lothian IJB",null,"Perth & Kinross Local Authority","Perth & Kinross Local Authority"]
[64,"East Renfrewshire IJB",null,"Renfrewshire IJB","Renfrewshire Local Authority"]
[65,"Edinburgh, City of, IJB",null,"Renfrewshire Local Authority","Renfrewshire Local Authority"]
[66,"Eilean Siar IJB",null,"Scotland","Scotland"]
[67,"Falkirk IJB",null,"Scottish Borders IJB","Scottish Borders Local Authority"]
[68,"Fife IJB",null,"Scottish Borders Local Authority","Scottish Borders Local Authority"]
[69,"Glasgow City IJB",null,"Shetland Health Board","Shetland Health Board"]
[70,"Highland Partnership",null,"Shetland Islands IJB","Shetland Islands Local Authority"]
[71,"Inverclyde IJB",null,"Shetland Islands Local Authority","Shetland Islands Local Authority"]
[72,"Midlothian IJB",null,"South Ayrshire IJB","South Ayrshire Local Authority"]
[73,"Moray IJB",null,"South Ayrshire Local Authority","South Ayrshire Local Authority"]
[74,"North Ayrshire IJB",null,"South Lanarkshire IJB","South Lanarkshire Local Authority"]
[75,"North Lanarkshire IJB",null,"South Lanarkshire Local Authority","South Lanarkshire Local Authority"]
[76,"Orkney Islands IJB",null,"Stirling & Clackmannanshire City Region Deal","Clackmannanshire & Stirling IJB"]
[77,"Perth & Kinross IJB",null,"Stirling Local Authority","Stirling Local Authority"]
[78,"Renfrewshire IJB",null,"Tay Cities Region Deal ","Tay Cities Region Deal "]
[79,"Scottish Borders IJB",null,"Tayside Health Board","Tayside Health Board"]
[80,"Shetland Islands IJB",null,"West Dunbartonshire IJB","West Dunbartonshire Local Authority"]
[81,"South Ayrshire IJB",null,"West Dunbartonshire Local Authority","West Dunbartonshire Local Authority"]
[82,"South Lanarkshire IJB",null,"West Lothian IJB","West Lothian Local Authority"]
[83,"West Dunbartonshire IJB",null,"West Lothian Local Authority","West Lothian Local Authority"]
[84,"West Lothian IJB",null,"Western Isles Health Board","Western Isles Health Board"]

{"sheet":"Demographic data","index":10,"n_rows":41,"n_cols":4,"rows_kept":41,"cut":false,"hidden":true,"merged":[]}
["Demographic data"]
[]
["sub group","European Standard Population (ESP 2013)","mean age (2016)","life expectancy (2014-2016)"]
["Female 0-4",5000,2.0384009999999999,81.468401]
["Female 5-9",5500,6.9792800000000002,81.439279999999997]
["Female 10-15",6600,12.47831,81.948309999999992]
["Female 16-19",4400,17.570049999999998,81.100049999999996]
["Female 20-24",6000,22.077059999999999,81.667060000000006]
["Female 25-29",6000,26.975190000000001,81.645189999999999]
["Female 30-34",6500,31.9999,81.799899999999994]
["Female 35-39",7000,36.918120000000002,81.898120000000006]
["Female 40-44",7000,42.077440000000003,82.30744]
["Female 45-49",7000,47.025770000000001,82.585769999999997]
["Female 50-54",7000,51.990830000000003,82.980829999999997]
["Female 55-59",6500,56.953040000000001,83.473039999999997]
["Female 60-64",6000,61.947389999999999,84.167389999999997]
["Female 65-69",5500,67.063929999999999,85.193929999999995]
["Female 70-74",5000,71.938159999999996,86.248159999999999]
["Female 75-79",4000,76.942830000000001,87.812830000000005]
["Female 80-84",2500,81.856710000000007,89.736710000000002]
["Female 85-89",1500,86.730819999999994,92.220819999999989]
["Female 90+",1000,92.779340000000005,96.279340000000005]
["Male 0-4",5000,2.0320819999999999,77.402082000000007]
["Male 5-9",5500,6.9784759999999997,77.398476000000002]
["Male 10-15",6600,12.47114,77.921140000000008]
["Male 16-19",4400,17.556319999999999,77.07632000000001]
["Male 20-24",6000,22.05463,77.704629999999995]
["Male 25-29",6000,26.959759999999999,77.789760000000001]
["Male 30-34",6500,31.98152,78.061520000000002]
["Male 35-39",7000,36.926009999999998,78.336009999999987]
["Male 40-44",7000,42.067700000000002,78.907700000000006]
["Male 45-49",7000,47.038150000000002,79.418149999999997]
["Male 50-54",7000,51.998649999999998,79.988649999999993]
["Male 55-59",6500,56.950870000000002,80.660870000000003]
["Male 60-64",6000,61.942990000000002,81.612989999999996]
["Male 65-69",5500,67.054419999999993,82.954419999999999]
["Male 70-74",5000,71.891099999999994,84.341099999999997]
["Male 75-79",4000,76.907700000000006,86.357700000000008]
["Male 80-84",2500,81.797089999999997,88.627089999999995]
["Male 85-89",1500,86.630750000000006,91.420750000000012]
["Male 90+",1000,92.215479999999999,95.515479999999997]

{"sheet":"Prevalence Rates","index":11,"n_rows":254,"n_cols":56,"rows_kept":254,"cut":false,"hidden":true,"merged":[]}
["Prevalence of harmful/hazardous drinking"]
[]
["SIMD","group","Aberdeen City Local Authority","Aberdeen City Region Deal","Aberdeenshire Local Authority","Angus Local Authority","Argyll & Bute Local Authority","Ayrshire & Arran Health Board","Borders Health Board","Clackmannanshire & Stirling IJB","Clackmannanshire Local Authority","Dumfries & Galloway Health Board","Dumfries & Galloway Local Authority","Dundee City Local Authority","East Ayrshire Local Authority","East Dunbartonshire Local Authority","East Lothian Local Authority","East Renfrewshire Local Authority","Edinburgh & SE Scotland City Region Deal","Edinburgh, City of Local Authority","Eilean Siar Local Authority","Falkirk Local Authority","Fife Health Board","Fife Local Authority","Forth Valley Health Board","Glasgow City Local Authority","Glasgow City Region Deal","Grampian Health Board","Greater Glasgow & Clyde Health Board","Highland Health Board","Highland Local Authority","Inverclyde Local Authority","Inverness & Highland City Region Deal","Lanarkshire Health Board","Lothian Health Board","Midlothian Local Authority","Moray Local Authority","North Ayrshire Local Authority","North Lanarkshire Local Authority","Orkney Health Board","Orkney Islands Local Authority","Perth & Kinross Local Authority","Renfrewshire Local Authority","Scotland","Scottish Borders Local Authority","Shetland Health Board","Shetland Islands Local Authority","South Ayrshire Local Authority","South Lanarkshire Local Authority","Stirling Local Authority","Tay Cities Region Deal ","Tayside Health Board","West Dunbartonshire Local Authority","West Lothian Local Authority","Western Isles Health Board",1]
[null,null,null,null,null,null,null,null,null,null,null,null,null,null,null,null,null,null,null,null,null,null,null,null,null,null,null,null,null,null,null,null,null,null,null,null,null,null,null,null,null,null,null,null,null,null,null,null,null,null,null,null,null,null,null,2]
["All quintiles","16+ Males and Females",null,null,null,null,null,null,null,null,null,null,null,null,null,null,null,null,null,null,null,null,null,null,null,null,null,null,null,null,null,null,null,null,null,null,null,null,null,null,null,null,null,null,null,null,null,null,null,null,null,null,null,null,null,3]
["Q1 and Q2","16+ Males and Females",null,null,null,null,null,null,null,null,null,null,null,null,null,null,null,null,null,null,null,null,null,null,null,null,null,null,null,null,null,null,null,null,null,null,null,null,null,null,null,null,null,null,null,null,null,null,null,null,null,null,null,null,null,4]
["SIMD Q1 (most deprived)","16+ Males and Females",null,null,null,null,null,null,null,null,null,null,null,null,null,null,null,null,null,null,null,null,null,null,null,null,null,null,null,null,null,null,null,null,null,null,null,null,null,null,null,null,null,null,null,null,null,null,null,null,null,null,null,null,null,5]
["SIMD Q2",null,null,null,null,null,null,null,null,null,null,null,null,null,null,null,null,null,null,null,null,null,null,null,null,null,null,null,null,null,null,null,null,null,null,null,null,null,null,null,null,null,null,null,null,null,null,null,null,null,null,null,null,null,null,6]
["SIMD Q3",null,null,null,null,null,null,null,null,null,null,null,null,null,null,null,null,null,null,null,null,null,null,null,null,null,null,null,null,null,null,null,null,null,null,null,null,null,null,null,null,null,null,null,null,null,null,null,null,null,null,null,null,null,null,7]
["SIMD Q4",null,null,null,null,null,null,null,null,null,null,null,null,null,null,null,null,null,null,null,null,null,null,null,null,null,null,null,null,null,null,null,null,null,null,null,null,null,null,null,null,null,null,null,null,null,null,null,null,null,null,null,null,null,null,8]
["SIMD Q5 (least deprived)",null,null,null,null,null,null,null,null,null,null,null,null,null,null,null,null,null,null,null,null,null,null,null,null,null,null,null,null,null,null,null,null,null,null,null,null,null,null,null,null,null,null,null,null,null,null,null,null,null,null,null,null,null,null,9]
["SIMD Q1 (most deprived)","16+ Females",null,null,null,null,null,null,null,null,null,null,null,null,null,null,null,null,null,null,null,null,null,null,null,null,null,null,null,null,null,null,null,null,null,null,null,null,null,null,null,null,null,null,null,null,null,null,null,null,null,null,null,null,null,10]
["SIMD Q2",null,null,null,null,null,null,null,null,null,null,null,null,null,null,null,null,null,null,null,null,null,null,null,null,null,null,null,null,null,null,null,null,null,null,null,null,null,null,null,null,null,null,null,null,null,null,null,null,null,null,null,null,null,null,11]
["SIMD Q3",null,null,null,null,null,null,null,null,null,null,null,null,null,null,null,null,null,null,null,null,null,null,null,null,null,null,null,null,null,null,null,null,null,null,null,null,null,null,null,null,null,null,null,null,null,null,null,null,null,null,null,null,null,null,12]
["SIMD Q4",null,null,null,null,null,null,null,null,null,null,null,null,null,null,null,null,null,null,null,null,null,null,null,null,null,null,null,null,null,null,null,null,null,null,null,null,null,null,null,null,null,null,null,null,null,null,null,null,null,null,null,null,null,null,13]
["SIMD Q5 (least deprived)",null,null,null,null,null,null,null,null,null,null,null,null,null,null,null,null,null,null,null,null,null,null,null,null,null,null,null,null,null,null,null,null,null,null,null,null,null,null,null,null,null,null,null,null,null,null,null,null,null,null,null,null,null,null,14]
["SIMD Q1 (most deprived)","16+ Males",null,null,null,null,null,null,null,null,null,null,null,null,null,null,null,null,null,null,null,null,null,null,null,null,null,null,null,null,null,null,null,null,null,null,null,null,null,null,null,null,null,null,null,null,null,null,null,null,null,null,null,null,null,15]
["SIMD Q2",null,null,null,null,null,null,null,null,null,null,null,null,null,null,null,null,null,null,null,null,null,null,null,null,null,null,null,null,null,null,null,null,null,null,null,null,null,null,null,null,null,null,null,null,null,null,null,null,null,null,null,null,null,null,16]
["SIMD Q3",null,null,null,null,null,null,null,null,null,null,null,null,null,null,null,null,null,null,null,null,null,null,null,null,null,null,null,null,null,null,null,null,null,null,null,null,null,null,null,null,null,null,null,null,null,null,null,null,null,null,null,null,null,null,17]
["SIMD Q4",null,null,null,null,null,null,null,null,null,null,null,null,null,null,null,null,null,null,null,null,null,null,null,null,null,null,null,null,null,null,null,null,null,null,null,null,null,null,null,null,null,null,null,null,null,null,null,null,null,null,null,null,null,null,18]
["SIMD Q5 (least deprived)",null,null,null,null,null,null,null,null,null,null,null,null,null,null,null,null,null,null,null,null,null,null,null,null,null,null,null,null,null,null,null,null,null,null,null,null,null,null,null,null,null,null,null,null,null,null,null,null,null,null,null,null,null,null,19]
["All quintiles","Female 0-4",null,null,null,null,null,null,null,null,null,null,null,null,null,null,null,null,null,null,null,null,null,null,null,null,null,null,null,null,null,null,null,null,null,null,null,null,null,null,null,null,null,null,null,null,null,null,null,null,null,null,null,null,null,20]
[null,"Female 5-9",null,null,null,null,null,null,null,null,null,null,null,null,null,null,null,null,null,null,null,null,null,null,null,null,null,null,null,null,null,null,null,null,null,null,null,null,null,null,null,null,null,null,null,null,null,null,null,null,null,null,null,null,null,21]
[null,"Female 10-15",null,null,null,null,null,null,null,null,null,null,null,null,null,null,null,null,null,null,null,null,null,null,null,null,null,null,null,null,null,null,null,null,null,null,null,null,null,null,null,null,null,null,null,null,null,null,null,null,null,null,null,null,null,22]
[null,"Female 16-19",null,null,null,null,null,null,null,null,null,null,null,null,null,null,null,null,null,null,null,null,null,null,null,null,null,null,null,null,null,null,null,null,null,null,null,null,null,null,null,null,null,null,null,null,null,null,null,null,null,null,null,null,null,23]
[null,"Female 20-24",null,null,null,null,null,null,null,null,null,null,null,null,null,null,null,null,null,null,null,null,null,null,null,null,null,null,null,null,null,null,null,null,null,null,null,null,null,null,null,null,null,null,null,null,null,null,null,null,null,null,null,null,null,24]
[null,"Female 25-29",null,null,null,null,null,null,null,null,null,null,null,null,null,null,null,null,null,null,null,null,null,null,null,null,null,null,null,null,null,null,null,null,null,null,null,null,null,null,null,null,null,null,null,null,null,null,null,null,null,null,null,null,null,25]
[null,"Female 30-34",null,null,null,null,null,null,null,null,null,null,null,null,null,null,null,null,null,null,null,null,null,null,null,null,null,null,null,null,null,null,null,null,null,null,null,null,null,null,null,null,null,null,null,null,null,null,null,null,null,null,null,null,null,26]
[null,"Female 35-39",null,null,null,null,null,null,null,null,null,null,null,null,null,null,null,null,null,null,null,null,null,null,null,null,null,null,null,null,null,null,null,null,null,null,null,null,null,null,null,null,null,null,null,null,null,null,null,null,null,null,null,null,null,27]
[null,"Female 40-44",null,null,null,null,null,null,null,null,null,null,null,null,null,null,null,null,null,null,null,null,null,null,null,null,null,null,null,null,null,null,null,null,null,null,null,null,null,null,null,null,null,null,null,null,null,null,null,null,null,null,null,null,null,28]
[null,"Female 45-49",null,null,null,null,null,null,null,null,null,null,null,null,null,null,null,null,null,null,null,null,null,null,null,null,null,null,null,null,null,null,null,null,null,null,null,null,null,null,null,null,null,null,null,null,null,null,null,null,null,null,null,null,null,29]
[null,"Female 50-54",null,null,null,null,null,null,null,null,null,null,null,null,null,null,null,null,null,null,null,null,null,null,null,null,null,null,null,null,null,null,null,null,null,null,null,null,null,null,null,null,null,null,null,null,null,null,null,null,null,null,null,null,null,30]
[null,"Female 55-59",null,null,null,null,null,null,null,null,null,null,null,null,null,null,null,null,null,null,null,null,null,null,null,null,null,null,null,null,null,null,null,null,null,null,null,null,null,null,null,null,null,null,null,null,null,null,null,null,null,null,null,null,null,31]
[null,"Female 60-64",null,null,null,null,null,null,null,null,null,null,null,null,null,null,null,null,null,null,null,null,null,null,null,null,null,null,null,null,null,null,null,null,null,null,null,null,null,null,null,null,null,null,null,null,null,null,null,null,null,null,null,null,null,32]
[null,"Female 65-69",null,null,null,null,null,null,null,null,null,null,null,null,null,null,null,null,null,null,null,null,null,null,null,null,null,null,null,null,null,null,null,null,null,null,null,null,null,null,null,null,null,null,null,null,null,null,null,null,null,null,null,null,null,33]
[null,"Female 70-74",null,null,null,null,null,null,null,null,null,null,null,null,null,null,null,null,null,null,null,null,null,null,null,null,null,null,null,null,null,null,null,null,null,null,null,null,null,null,null,null,null,null,null,null,null,null,null,null,null,null,null,null,null,34]
[null,"Female 75-79",null,null,null,null,null,null,null,null,null,null,null,null,null,null,null,null,null,null,null,null,null,null,null,null,null,null,null,null,null,null,null,null,null,null,null,null,null,null,null,null,null,null,null,null,null,null,null,null,null,null,null,null,null,35]
[null,"Female 80-84",null,null,null,null,null,null,null,null,null,null,null,null,null,null,null,null,null,null,null,null,null,null,null,null,null,null,null,null,null,null,null,null,null,null,null,null,null,null,null,null,null,null,null,null,null,null,null,null,null,null,null,null,null,36]
[null,"Female 85-89",null,null,null,null,null,null,null,null,null,null,null,null,null,null,null,null,null,null,null,null,null,null,null,null,null,null,null,null,null,null,null,null,null,null,null,null,null,null,null,null,null,null,null,null,null,null,null,null,null,null,null,null,null,37]
[null,"Female 90+",null,null,null,null,null,null,null,null,null,null,null,null,null,null,null,null,null,null,null,null,null,null,null,null,null,null,null,null,null,null,null,null,null,null,null,null,null,null,null,null,null,null,null,null,null,null,null,null,null,null,null,null,null,38]
[null,"Male 0-4",null,null,null,null,null,null,null,null,null,null,null,null,null,null,null,null,null,null,null,null,null,null,null,null,null,null,null,null,null,null,null,null,null,null,null,null,null,null,null,null,null,null,null,null,null,null,null,null,null,null,null,null,null,39]
[null,"Male 5-9",null,null,null,null,null,null,null,null,null,null,null,null,null,null,null,null,null,null,null,null,null,null,null,null,null,null,null,null,null,null,null,null,null,null,null,null,null,null,null,null,null,null,null,null,null,null,null,null,null,null,null,null,null,40]
[null,"Male 10-15",null,null,null,null,null,null,null,null,null,null,null,null,null,null,null,null,null,null,null,null,null,null,null,null,null,null,null,null,null,null,null,null,null,null,null,null,null,null,null,null,null,null,null,null,null,null,null,null,null,null,null,null,null,41]
[null,"Male 16-19",null,null,null,null,null,null,null,null,null,null,null,null,null,null,null,null,null,null,null,null,null,null,null,null,null,null,null,null,null,null,null,null,null,null,null,null,null,null,null,null,null,null,null,null,null,null,null,null,null,null,null,null,null,42]
[null,"Male 20-24",null,null,null,null,null,null,null,null,null,null,null,null,null,null,null,null,null,null,null,null,null,null,null,null,null,null,null,null,null,null,null,null,null,null,null,null,null,null,null,null,null,null,null,null,null,null,null,null,null,null,null,null,null,43]
[null,"Male 25-29",null,null,null,null,null,null,null,null,null,null,null,null,null,null,null,null,null,null,null,null,null,null,null,null,null,null,null,null,null,null,null,null,null,null,null,null,null,null,null,null,null,null,null,null,null,null,null,null,null,null,null,null,null,44]
[null,"Male 30-34",null,null,null,null,null,null,null,null,null,null,null,null,null,null,null,null,null,null,null,null,null,null,null,null,null,null,null,null,null,null,null,null,null,null,null,null,null,null,null,null,null,null,null,null,null,null,null,null,null,null,null,null,null,45]
[null,"Male 35-39",null,null,null,null,null,null,null,null,null,null,null,null,null,null,null,null,null,null,null,null,null,null,null,null,null,null,null,null,null,null,null,null,null,null,null,null,null,null,null,null,null,null,null,null,null,null,null,null,null,null,null,null,null,46]
[null,"Male 40-44",null,null,null,null,null,null,null,null,null,null,null,null,null,null,null,null,null,null,null,null,null,null,null,null,null,null,null,null,null,null,null,null,null,null,null,null,null,null,null,null,null,null,null,null,null,null,null,null,null,null,null,null,null,47]
[null,"Male 45-49",null,null,null,null,null,null,null,null,null,null,null,null,null,null,null,null,null,null,null,null,null,null,null,null,null,null,null,null,null,null,null,null,null,null,null,null,null,null,null,null,null,null,null,null,null,null,null,null,null,null,null,null,null,48]
[null,"Male 50-54",null,null,null,null,null,null,null,null,null,null,null,null,null,null,null,null,null,null,null,null,null,null,null,null,null,null,null,null,null,null,null,null,null,null,null,null,null,null,null,null,null,null,null,null,null,null,null,null,null,null,null,null,null,49]
[null,"Male 55-59",null,null,null,null,null,null,null,null,null,null,null,null,null,null,null,null,null,null,null,null,null,null,null,null,null,null,null,null,null,null,null,null,null,null,null,null,null,null,null,null,null,null,null,null,null,null,null,null,null,null,null,null,null,50]
[null,"Male 60-64",null,null,null,null,null,null,null,null,null,null,null,null,null,null,null,null,null,null,null,null,null,null,null,null,null,null,null,null,null,null,null,null,null,null,null,null,null,null,null,null,null,null,null,null,null,null,null,null,null,null,null,null,null,51]
[null,"Male 65-69",null,null,null,null,null,null,null,null,null,null,null,null,null,null,null,null,null,null,null,null,null,null,null,null,null,null,null,null,null,null,null,null,null,null,null,null,null,null,null,null,null,null,null,null,null,null,null,null,null,null,null,null,null,52]
[null,"Male 70-74",null,null,null,null,null,null,null,null,null,null,null,null,null,null,null,null,null,null,null,null,null,null,null,null,null,null,null,null,null,null,null,null,null,null,null,null,null,null,null,null,null,null,null,null,null,null,null,null,null,null,null,null,null,53]
[null,"Male 75-79",null,null,null,null,null,null,null,null,null,null,null,null,null,null,null,null,null,null,null,null,null,null,null,null,null,null,null,null,null,null,null,null,null,null,null,null,null,null,null,null,null,null,null,null,null,null,null,null,null,null,null,null,null,54]
[null,"Male 80-84",null,null,null,null,null,null,null,null,null,null,null,null,null,null,null,null,null,null,null,null,null,null,null,null,null,null,null,null,null,null,null,null,null,null,null,null,null,null,null,null,null,null,null,null,null,null,null,null,null,null,null,null,null,55]
[null,"Male 85-89",null,null,null,null,null,null,null,null,null,null,null,null,null,null,null,null,null,null,null,null,null,null,null,null,null,null,null,null,null,null,null,null,null,null,null,null,null,null,null,null,null,null,null,null,null,null,null,null,null,null,null,null,null,56]
[null,"Male 90+",null,null,null,null,null,null,null,null,null,null,null,null,null,null,null,null,null,null,null,null,null,null,null,null,null,null,null,null,null,null,null,null,null,null,null,null,null,null,null,null,null,null,null,null,null,null,null,null,null,null,null,null,null,57]
["SIMD Q1 (most deprived)","Female 0-4",null,null,null,null,null,null,null,null,null,null,null,null,null,null,null,null,null,null,null,null,null,null,null,null,null,null,null,null,null,null,null,null,null,null,null,null,null,null,null,null,null,null,null,null,null,null,null,null,null,null,null,null,null,58]
[null,"Female 5-9",null,null,null,null,null,null,null,null,null,null,null,null,null,null,null,null,null,null,null,null,null,null,null,null,null,null,null,null,null,null,null,null,null,null,null,null,null,null,null,null,null,null,null,null,null,null,null,null,null,null,null,null,null,59]
[null,"Female 10-15",null,null,null,null,null,null,null,null,null,null,null,null,null,null,null,null,null,null,null,null,null,null,null,null,null,null,null,null,null,null,null,null,null,null,null,null,null,null,null,null,null,null,null,null,null,null,null,null,null,null,null,null,null,60]
[null,"Female 16-19",{"$f":"$AR63*C$253","v":0.23429676739092173},0.19886658068427937,0.16850606933866788,0.16455287455346954,0.21242202008664055,0.19530350834152421,0.19158199860549088,0.23878041499228439,0.19577378900420489,0.17966603759400257,{"$f":"$AR63*M$253","v":0.1850202801786367},0.19125309656122289,0.14494063240247365,0.18562367250125311,0.23147664694296383,0.18562367250125311,0.21670951137827002,0.25913550437986177,0.19496568587671853,0.2070316404335874,{"$f":"$AR63*W$253","v":0.17621542776305774},0.18263044588176586,0.21706629970446256,0.20005309254245635,0.1889434998666481,0.19227641864248676,0.18444002635581691,0.21242202008664055,0.15482258655177472,0.20571131189301589,{"$f":"$AR63*AG$253","v":0.20005309254245618},0.19621260199472501,0.23827191470110867,0.23147664694296383,0.14995833898877617,0.22904640076805896,0.18590292055784874,0.21494494698988667,0.21494494698988667,0.17630324537884676,0.21866087002202164,0.19749328521260184,{"$f":"$AR63*AS$253","v":0.19158199860549088},0.1990920277545194,0.1990920277545194,0.2129019844425073,0.21235836544216827,0.19445978925133028,0.1725927375678098,0.16947566444631312,0.18985440329798561,0.19161551025814705,0.10831555056063107,61]
[null,"Female 20-24",0.23429676739092173,0.19886658068427937,0.16850606933866788,0.16455287455346954,0.21242202008664055,0.19530350834152421,0.19158199860549088,0.23878041499228439,0.19577378900420489,0.17966603759400257,0.1850202801786367,0.19125309656122289,0.14494063240247365,0.18562367250125311,0.23147664694296383,0.18562367250125311,0.21670951137827002,0.25913550437986177,0.19496568587671853,0.2070316404335874,0.17621542776305774,0.18263044588176586,0.21706629970446256,0.20005309254245635,0.1889434998666481,0.19227641864248676,0.18444002635581691,0.21242202008664055,0.15482258655177472,0.20571131189301589,0.20005309254245618,0.19621260199472501,0.23827191470110867,0.23147664694296383,0.14995833898877617,0.22904640076805896,0.18590292055784874,0.21494494698988667,0.21494494698988667,0.17630324537884676,0.21866087002202164,0.19749328521260184,0.19158199860549088,0.1990920277545194,0.1990920277545194,0.2129019844425073,0.21235836544216827,0.19445978925133028,0.1725927375678098,0.16947566444631312,0.18985440329798561,0.19161551025814705,0.10831555056063107,62]
[null,"Female 25-29",0.14040775776713166,0.1191753987886132,0.10098116004528326,9.8612116622331075E-2,0.12729880942388733,0.11704014526386602,0.11480994446611811,0.14309468731095643,0.11732197182982143,0.1076690291820754,0.11087768290880581,0.11461284230771042,8.6859026829961813E-2,0.11123927971620486,0.13871773535179743,0.11123927971620486,0.1298681877614867,0.15529294549388184,0.11683769733709805,0.12406849972296019,0.10560117141908794,0.10944551942317496,0.13008200141942164,0.11988644346680451,0.11322876306136488,0.11522609173707248,0.11052995238266501,0.12729880942388733,9.2781016449843892E-2,0.12327726230230776,0.11988644346680441,0.11758494066530358,0.14278995674850362,0.13871773535179743,8.9866003574718231E-2,0.13726135411342033,0.11140662557387092,0.12881073173267493,0.12881073173267493,0.1056537981568048,0.13103758456887643,0.11835241970922933,0.11480994446611811,0.11931050316064559,0.11931050316064559,0.12758643916699408,0.12726066290568588,0.11653452708159809,0.10343019051711479,0.10156221234285638,0.11377464301421585,0.11483002709918609,6.4910599300568347E-2,63]
[null,"Female 30-34",0.14040775776713166,0.1191753987886132,0.10098116004528326,9.8612116622331075E-2,0.12729880942388733,0.11704014526386602,0.11480994446611811,0.14309468731095643,0.11732197182982143,0.1076690291820754,0.11087768290880581,0.11461284230771042,8.6859026829961813E-2,0.11123927971620486,0.13871773535179743,0.11123927971620486,0.1298681877614867,0.15529294549388184,0.11683769733709805,0.12406849972296019,0.10560117141908794,0.10944551942317496,0.13008200141942164,0.11988644346680451,0.11322876306136488,0.11522609173707248,0.11052995238266501,0.12729880942388733,9.2781016449843892E-2,0.12327726230230776,0.11988644346680441,0.11758494066530358,0.14278995674850362,0.13871773535179743,8.9866003574718231E-2,0.13726135411342033,0.11140662557387092,0.12881073173267493,0.12881073173267493,0.1056537981568048,0.13103758456887643,0.11835241970922933,0.11480994446611811,0.11931050316064559,0.11931050316064559,0.12758643916699408,0.12726066290568588,0.11653452708159809,0.10343019051711479,0.10156221234285638,0.11377464301421585,0.11483002709918609,6.4910599300568347E-2,64]
[null,"Female 35-39",0.13276885898318141,0.11269164872123458,9.5487269444514966E-2,9.3247114077397469E-2,0.12037310434910632,0.11067256388839593,0.10856369739889997,0.1353096058434331,0.11093905765047926,0.10181128435965511,0.1048453709439354,0.10837731860408784,8.2133452367566848E-2,0.10518729503911221,0.13117078241456287,0.10518729503911221,0.12280269538883327,0.14684421651085297,0.11048113016231169,0.11731853998617627,9.9855928615090767E-2,0.10349112446291157,0.12300487649228856,0.11336400893915143,0.10706854033426906,0.10895720413394241,0.10451655873353101,0.12037310434910632,8.7733255521221687E-2,0.11657034992036061,0.11336400893915133,0.11118771963889307,0.1350214541791834,0.13117078241456287,8.4976834227224518E-2,0.12979363575017033,0.10534553642784469,0.12180277036614988,0.12180277036614988,9.9905692189623904E-2,0.1239084710402984,0.11191344390495908,0.10856369739889997,0.11281940272574001,0.11281940272574001,0.12064508556587959,0.12033703319622753,0.11019445391635151,9.7803060156730362E-2,9.6036709530911646E-2,0.10758472163104625,0.1085826874342101,6.1379131339339602E-2,65]
[null,"Female 40-44",0.13276885898318141,0.11269164872123458,9.5487269444514966E-2,9.3247114077397469E-2,0.12037310434910632,0.11067256388839593,0.10856369739889997,0.1353096058434331,0.11093905765047926,0.10181128435965511,0.1048453709439354,0.10837731860408784,8.2133452367566848E-2,0.10518729503911221,0.13117078241456287,0.10518729503911221,0.12280269538883327,0.14684421651085297,0.11048113016231169,0.11731853998617627,9.9855928615090767E-2,0.10349112446291157,0.12300487649228856,0.11336400893915143,0.10706854033426906,0.10895720413394241,0.10451655873353101,0.12037310434910632,8.7733255521221687E-2,0.11657034992036061,0.11336400893915133,0.11118771963889307,0.1350214541791834,0.13117078241456287,8.4976834227224518E-2,0.12979363575017033,0.10534553642784469,0.12180277036614988,0.12180277036614988,9.9905692189623904E-2,0.1239084710402984,0.11191344390495908,0.10856369739889997,0.11281940272574001,0.11281940272574001,0.12064508556587959,0.12033703319622753,0.11019445391635151,9.7803060156730362E-2,9.6036709530911646E-2,0.10758472163104625,0.1085826874342101,6.1379131339339602E-2,66]
[null,"Female 45-49",0.13031340853302034,0.11060750970173,9.3721311218031386E-2,9.1522585675247306E-2,0.11814690314857676,0.1086257661761804,0.10655590143160128,0.13280716637740242,0.10888733135611665,9.9928368697601702E-2,0.10290634235505369,0.10637296955874906,8.0614461964743755E-2,0.10324194284633836,0.12874488707137385,0.10324194284633836,0.12053156090757888,0.14412845394200541,0.10843787285883726,0.11514883043208732,9.8009175643445232E-2,0.10157714154480633,0.12073000283842024,0.11126743517242978,0.10508839606267316,0.1069421305844072,0.10258361125505606,0.11814690314857676,8.6110701381542226E-2,0.11441447752393034,0.11126743517242968,0.1091313945463178,0.13252434384032244,0.12874488707137385,8.3405257824033976E-2,0.12739320959774575,0.10339725769120979,0.11955012867278174,0.11955012867278174,9.8058018881745729E-2,0.12161688615115498,0.10984369714114665,0.10655590143160128,0.11073290100137922,0.11073290100137922,0.11841385429725818,0.11811149910189479,0.10815649845340342,9.5994273292640528E-2,9.4260589863576577E-2,0.10559503101245872,0.10657454026188405,6.0243974971860619E-2,67]
[null,"Female 50-54",0.13031340853302034,0.11060750970173,9.3721311218031386E-2,9.1522585675247306E-2,0.11814690314857676,0.1086257661761804,0.10655590143160128,0.13280716637740242,0.10888733135611665,9.9928368697601702E-2,0.10290634235505369,0.10637296955874906,8.0614461964743755E-2,0.10324194284633836,0.12874488707137385,0.10324194284633836,0.12053156090757888,0.14412845394200541,0.10843787285883726,0.11514883043208732,9.8009175643445232E-2,0.10157714154480633,0.12073000283842024,0.11126743517242978,0.10508839606267316,0.1069421305844072,0.10258361125505606,0.11814690314857676,8.6110701381542226E-2,0.11441447752393034,0.11126743517242968,0.1091313945463178,0.13252434384032244,0.12874488707137385,8.3405257824033976E-2,0.12739320959774575,0.10339725769120979,0.11955012867278174,0.11955012867278174,9.8058018881745729E-2,0.12161688615115498,0.10984369714114665,0.10655590143160128,0.11073290100137922,0.11073290100137922,0.11841385429725818,0.11811149910189479,0.10815649845340342,9.5994273292640528E-2,9.4260589863576577E-2,0.10559503101245872,0.10657454026188405,6.0243974971860619E-2,68]
[null,"Female 55-59",0.16058108516323971,0.13629813029260726,0.11548980283559752,0.1127803830022046,0.14558868599824284,0.13385609052532313,0.13130546177140312,0.16365406395562349,0.13417840901048836,0.12313856313555882,0.12680822573501427,0.13108004061954898,9.9338647709986572E-2,0.12722177558900458,0.15864824585492551,0.12722177558900458,0.14852722421157236,0.17760492797671443,0.13362455554259542,0.14189425596504956,0.12077360233264876,0.12517029368402893,0.14877175791654654,0.13711133554450566,0.12949710139407752,0.13178139972113095,0.12641053442422015,0.14558868599824284,0.10611148942905516,0.14098933613974435,0.13711133554450552,0.134479160348145,0.16330555070265751,0.15864824585492551,0.1027776570383347,0.15698261652368981,0.1274131651521522,0.14731783635922427,0.14731783635922427,0.12083379030791144,0.14986463612743323,0.13535690827086339,0.13130546177140312,0.13645264601891952,0.13645264601891952,0.14591764144207173,0.14554505871307424,0.13327782677638195,0.11829070199543446,0.11615433882680418,0.13012141159311261,0.13132842981150486,7.4236741901176725E-2,69]
[null,"Female 60-64",0.16058108516323971,0.13629813029260726,0.11548980283559752,0.1127803830022046,0.14558868599824284,0.13385609052532313,0.13130546177140312,0.16365406395562349,0.13417840901048836,0.12313856313555882,0.12680822573501427,0.13108004061954898,9.9338647709986572E-2,0.12722177558900458,0.15864824585492551,0.12722177558900458,0.14852722421157236,0.17760492797671443,0.13362455554259542,0.14189425596504956,0.12077360233264876,0.12517029368402893,0.14877175791654654,0.13711133554450566,0.12949710139407752,0.13178139972113095,0.12641053442422015,0.14558868599824284,0.10611148942905516,0.14098933613974435,0.13711133554450552,0.134479160348145,0.16330555070265751,0.15864824585492551,0.1027776570383347,0.15698261652368981,0.1274131651521522,0.14731783635922427,0.14731783635922427,0.12083379030791144,0.14986463612743323,0.13535690827086339,0.13130546177140312,0.13645264601891952,0.13645264601891952,0.14591764144207173,0.14554505871307424,0.13327782677638195,0.11829070199543446,0.11615433882680418,0.13012141159311261,0.13132842981150486,7.4236741901176725E-2,70]
[null,"Female 65-69",{"$f":"$AR73*C$253","v":8.4494028889147588E-2},7.1716903312574534E-2,6.076804579613581E-2,5.9342412151657621E-2,7.6605377452540729E-2,7.0431958834614394E-2,6.9089877359700166E-2,8.6110958794655842E-2,7.0601555318343293E-2,6.4792645412548422E-2,{"$f":"$AR73*M$253","v":6.6723536447296478E-2},6.8971265997112674E-2,5.2269683947421153E-2,6.6941136753550706E-2,8.3477013839157344E-2,6.6941136753550706E-2,7.8151567854956611E-2,9.3451578684154962E-2,7.0310130516543445E-2,7.4661454370714239E-2,{"$f":"$AR73*W$253","v":6.35482580913415E-2},6.5861694731046208E-2,7.8280235798079897E-2,7.2144792985737852E-2,6.8138360225484682E-2,6.9340304829615854E-2,6.651428053730532E-2,7.6605377452540729E-2,5.58333955968403E-2,7.4185306624023048E-2,{"$f":"$AR73*AG$253","v":7.2144792985737782E-2},7.0759803671108984E-2,8.5927579233891133E-2,8.3477013839157344E-2,5.4079210600227794E-2,8.2600598458796831E-2,6.7041841486373002E-2,7.7515216120064512E-2,7.7515216120064512E-2,6.357992760282509E-2,7.8855282871831509E-2,7.1221654195186362E-2,{"$f":"$AR73*AS$253","v":6.9089877359700166E-2},7.1798205890830136E-2,7.1798205890830136E-2,7.6778466149418495E-2,7.6582421790672817E-2,7.0127689911167301E-2,6.2241813732666275E-2,6.1117709165154736E-2,6.8466857719068269E-2,6.9101962607734893E-2,3.9061645451317052E-2,71]
[null,"Female 70-74",8.4494028889147588E-2,7.1716903312574534E-2,6.076804579613581E-2,5.9342412151657621E-2,7.6605377452540729E-2,7.0431958834614394E-2,6.9089877359700166E-2,8.6110958794655842E-2,7.0601555318343293E-2,6.4792645412548422E-2,6.6723536447296478E-2,6.8971265997112674E-2,5.2269683947421153E-2,6.6941136753550706E-2,8.3477013839157344E-2,6.6941136753550706E-2,7.8151567854956611E-2,9.3451578684154962E-2,7.0310130516543445E-2,7.4661454370714239E-2,6.35482580913415E-2,6.5861694731046208E-2,7.8280235798079897E-2,7.2144792985737852E-2,6.8138360225484682E-2,6.9340304829615854E-2,6.651428053730532E-2,7.6605377452540729E-2,5.58333955968403E-2,7.4185306624023048E-2,7.2144792985737782E-2,7.0759803671108984E-2,8.5927579233891133E-2,8.3477013839157344E-2,5.4079210600227794E-2,8.2600598458796831E-2,6.7041841486373002E-2,7.7515216120064512E-2,7.7515216120064512E-2,6.357992760282509E-2,7.8855282871831509E-2,7.1221654195186362E-2,6.9089877359700166E-2,7.1798205890830136E-2,7.1798205890830136E-2,7.6778466149418495E-2,7.6582421790672817E-2,7.0127689911167301E-2,6.2241813732666275E-2,6.1117709165154736E-2,6.8466857719068269E-2,6.9101962607734893E-2,3.9061645451317052E-2,72]
[null,"Female 75-79",2.7710752893095301E-2,2.3520353001039267E-2,1.9929553874892834E-2,1.9462001526429875E-2,2.5123582255198892E-2,2.3098941223447085E-2,2.2658790734676561E-2,2.8241042969755978E-2,2.3154562269264597E-2,2.124946590808954E-2,2.1882723015495254E-2,2.26198908242073E-2,1.7142421952295074E-2,2.1954087446749725E-2,2.7377211539826276E-2,2.1954087446749725E-2,2.5630672528089468E-2,3.0648480590074932E-2,2.3058986276786007E-2,2.4486051143570279E-2,2.0841355299391903E-2,2.1600072476209164E-2,2.5672870605563437E-2,2.3660684159991244E-2,2.2346730148544679E-2,2.2740921197949664E-2,2.1814095221443768E-2,2.5123582255198892E-2,1.8311180670486378E-2,2.4329893214748186E-2,2.3660684159991223E-2,2.3206461569805499E-2,2.8180901611120301E-2,2.7377211539826276E-2,1.7735876266033394E-2,2.7089781405931958E-2,2.1987114679597915E-2,2.5421973926418782E-2,2.5421973926418782E-2,2.0851741666553042E-2,2.5861463664411829E-2,2.3357930566070849E-2,2.2658790734676561E-2,2.354701708233865E-2,2.354701708233865E-2,2.5180348611009196E-2,2.5116053691560936E-2,2.2999152858972804E-2,2.0412892397719599E-2,2.004422985072259E-2,2.2454464541026294E-2,2.2662754225663381E-2,1.2810699394145874E-2,73]
[null,"Female 80-84",2.7710752893095301E-2,2.3520353001039267E-2,1.9929553874892834E-2,1.9462001526429875E-2,2.5123582255198892E-2,2.3098941223447085E-2,2.2658790734676561E-2,2.8241042969755978E-2,2.3154562269264597E-2,2.124946590808954E-2,2.1882723015495254E-2,2.26198908242073E-2,1.7142421952295074E-2,2.1954087446749725E-2,2.7377211539826276E-2,2.1954087446749725E-2,2.5630672528089468E-2,3.0648480590074932E-2,2.3058986276786007E-2,2.4486051143570279E-2,2.0841355299391903E-2,2.1600072476209164E-2,2.5672870605563437E-2,2.3660684159991244E-2,2.2346730148544679E-2,2.2740921197949664E-2,2.1814095221443768E-2,2.5123582255198892E-2,1.8311180670486378E-2,2.4329893214748186E-2,2.3660684159991223E-2,2.3206461569805499E-2,2.8180901611120301E-2,2.7377211539826276E-2,1.7735876266033394E-2,2.7089781405931958E-2,2.1987114679597915E-2,2.5421973926418782E-2,2.5421973926418782E-2,2.0851741666553042E-2,2.5861463664411829E-2,2.3357930566070849E-2,2.2658790734676561E-2,2.354701708233865E-2,2.354701708233865E-2,2.5180348611009196E-2,2.5116053691560936E-2,2.2999152858972804E-2,2.0412892397719599E-2,2.004422985072259E-2,2.2454464541026294E-2,2.2662754225663381E-2,1.2810699394145874E-2,74]
[null,"Female 85-89",2.7710752893095301E-2,2.3520353001039267E-2,1.9929553874892834E-2,1.9462001526429875E-2,2.5123582255198892E-2,2.3098941223447085E-2,2.2658790734676561E-2,2.8241042969755978E-2,2.3154562269264597E-2,2.124946590808954E-2,2.1882723015495254E-2,2.26198908242073E-2,1.7142421952295074E-2,2.1954087446749725E-2,2.7377211539826276E-2,2.1954087446749725E-2,2.5630672528089468E-2,3.0648480590074932E-2,2.3058986276786007E-2,2.4486051143570279E-2,2.0841355299391903E-2,2.1600072476209164E-2,2.5672870605563437E-2,2.3660684159991244E-2,2.2346730148544679E-2,2.2740921197949664E-2,2.1814095221443768E-2,2.5123582255198892E-2,1.8311180670486378E-2,2.4329893214748186E-2,2.3660684159991223E-2,2.3206461569805499E-2,2.8180901611120301E-2,2.7377211539826276E-2,1.7735876266033394E-2,2.7089781405931958E-2,2.1987114679597915E-2,2.5421973926418782E-2,2.5421973926418782E-2,2.0851741666553042E-2,2.5861463664411829E-2,2.3357930566070849E-2,2.2658790734676561E-2,2.354701708233865E-2,2.354701708233865E-2,2.5180348611009196E-2,2.5116053691560936E-2,2.2999152858972804E-2,2.0412892397719599E-2,2.004422985072259E-2,2.2454464541026294E-2,2.2662754225663381E-2,1.2810699394145874E-2,75]
[null,"Female 90+",2.7710752893095301E-2,2.3520353001039267E-2,1.9929553874892834E-2,1.9462001526429875E-2,2.5123582255198892E-2,2.3098941223447085E-2,2.2658790734676561E-2,2.8241042969755978E-2,2.3154562269264597E-2,2.124946590808954E-2,2.1882723015495254E-2,2.26198908242073E-2,1.7142421952295074E-2,2.1954087446749725E-2,2.7377211539826276E-2,2.1954087446749725E-2,2.5630672528089468E-2,3.0648480590074932E-2,2.3058986276786007E-2,2.4486051143570279E-2,2.0841355299391903E-2,2.1600072476209164E-2,2.5672870605563437E-2,2.3660684159991244E-2,2.2346730148544679E-2,2.2740921197949664E-2,2.1814095221443768E-2,2.5123582255198892E-2,1.8311180670486378E-2,2.4329893214748186E-2,2.3660684159991223E-2,2.3206461569805499E-2,2.8180901611120301E-2,2.7377211539826276E-2,1.7735876266033394E-2,2.7089781405931958E-2,2.1987114679597915E-2,2.5421973926418782E-2,2.5421973926418782E-2,2.0851741666553042E-2,2.5861463664411829E-2,2.3357930566070849E-2,2.2658790734676561E-2,2.354701708233865E-2,2.354701708233865E-2,2.5180348611009196E-2,2.5116053691560936E-2,2.2999152858972804E-2,2.0412892397719599E-2,2.004422985072259E-2,2.2454464541026294E-2,2.2662754225663381E-2,1.2810699394145874E-2,76]
[null,"Male 0-4",null,null,null,null,null,null,null,null,null,null,null,null,null,null,null,null,null,null,null,null,null,null,null,null,null,null,null,null,null,null,null,null,null,null,null,null,null,null,null,null,null,null,null,null,null,null,null,null,null,null,null,null,null,77]
[null,"Male 5-9",null,null,null,null,null,null,null,null,null,null,null,null,null,null,null,null,null,null,null,null,null,null,null,null,null,null,null,null,null,null,null,null,null,null,null,null,null,null,null,null,null,null,null,null,null,null,null,null,null,null,null,null,null,78]
[null,"Male 10-15",null,null,null,null,null,null,null,null,null,null,null,null,null,null,null,null,null,null,null,null,null,null,null,null,null,null,null,null,null,null,null,null,null,null,null,null,null,null,null,null,null,null,null,null,null,null,null,null,null,null,null,null,null,79]
[null,"Male 16-19",{"$f":"$AR82*C$254","v":0.18682576475514998},0.15961214943195037,0.13760207728609178,0.16773810502498787,0.1699742074141177,0.19322840894138987,0.19319206285115331,0.20671426760325237,0.21644833263750834,0.16766937954006925,{"$f":"$AR82*M$254","v":0.17823253122007551},0.14208525229987462,0.1808086565082207,0.17841305900856844,0.19406759101741192,0.17657140662747806,0.19373469266228863,0.23189192375431006,0.22863279734879541,0.16012247395954307,{"$f":"$AR82*W$254","v":0.16012247395954307},0.16080186900647833,0.21987990470486474,0.17086862020525834,0.15532369458296733,0.15068970810038432,0.16210704562855549,0.16997420741411778,0.15741327506045205,0.16526020681491477,{"$f":"$AR82*AG$254","v":0.1708686202052582},0.14418690341224355,0.20749797336595585,0.19406759101741192,0.12771592814467117,0.22040831332206945,0.1375911933099831,0.19000575715458434,0.19000575715458434,0.14932819089318236,0.15368788355122612,0.17062984316140015,{"$f":"$AR82*AS$254","v":0.19319206285115331},0.18766487575444674,0.18766487575444674,0.17217356063123371,0.14692926201745121,0.17278034487820038,0.14599280282815458,0.13259707172324373,0.16200140004584757,0.18553053147975754,0.15780568012462548,80]
[null,"Male 20-24",0.18682576475514998,0.15961214943195037,0.13760207728609178,0.16773810502498787,0.1699742074141177,0.19322840894138987,0.19319206285115331,0.20671426760325237,0.21644833263750834,0.16766937954006925,0.17823253122007551,0.14208525229987462,0.1808086565082207,0.17841305900856844,0.19406759101741192,0.17657140662747806,0.19373469266228863,0.23189192375431006,0.22863279734879541,0.16012247395954307,0.16012247395954307,0.16080186900647833,0.21987990470486474,0.17086862020525834,0.15532369458296733,0.15068970810038432,0.16210704562855549,0.16997420741411778,0.15741327506045205,0.16526020681491477,0.1708686202052582,0.14418690341224355,0.20749797336595585,0.19406759101741192,0.12771592814467117,0.22040831332206945,0.1375911933099831,0.19000575715458434,0.19000575715458434,0.14932819089318236,0.15368788355122612,0.17062984316140015,0.19319206285115331,0.18766487575444674,0.18766487575444674,0.17217356063123371,0.14692926201745121,0.17278034487820038,0.14599280282815458,0.13259707172324373,0.16200140004584757,0.18553053147975754,0.15780568012462548,81]
[null,"Male 25-29",0.17443520456257605,0.14902643633400267,0.12847610462664075,0.15661346657041356,0.15870126735197021,0.18041321594570547,0.18037928038176557,0.19300467257625634,0.20209316006459169,0.15654929906099022,0.16641188694624401,0.13266194886308183,0.16881715980679063,0.16658044186561641,0.18119674222907434,0.16486093058595067,0.18088592218372043,0.21651250944699976,0.21346953311027064,0.14950291538645349,0.14950291538645349,0.15013725195211011,0.20529714521259859,0.15953636136799351,0.1450223981339176,0.14069574446765823,0.15135586733613221,0.15870126735197029,0.14697339455305561,0.15429990622328574,0.1595363613679934,0.13462421537480038,0.19373640181720561,0.18119674222907434,0.11924561947337547,0.20579050899117343,0.12846594249187596,0.17740429517719097,0.17740429517719097,0.13942452508919081,0.14349507650179977,0.15931342036976001,0.18037928038176557,0.17521866448313286,0.17521866448313286,0.16075475622078758,0.13718469671371136,0.16132129764179393,0.13631034487865507,0.123803038412586,0.15125722832424357,0.17322587306782511,0.14733977473477297,82]
[null,"Male 30-34",0.17443520456257605,0.14902643633400267,0.12847610462664075,0.15661346657041356,0.15870126735197021,0.18041321594570547,0.18037928038176557,0.19300467257625634,0.20209316006459169,0.15654929906099022,0.16641188694624401,0.13266194886308183,0.16881715980679063,0.16658044186561641,0.18119674222907434,0.16486093058595067,0.18088592218372043,0.21651250944699976,0.21346953311027064,0.14950291538645349,0.14950291538645349,0.15013725195211011,0.20529714521259859,0.15953636136799351,0.1450223981339176,0.14069574446765823,0.15135586733613221,0.15870126735197029,0.14697339455305561,0.15429990622328574,0.1595363613679934,0.13462421537480038,0.19373640181720561,0.18119674222907434,0.11924561947337547,0.20579050899117343,0.12846594249187596,0.17740429517719097,0.17740429517719097,0.13942452508919081,0.14349507650179977,0.15931342036976001,0.18037928038176557,0.17521866448313286,0.17521866448313286,0.16075475622078758,0.13718469671371136,0.16132129764179393,0.13631034487865507,0.123803038412586,0.15125722832424357,0.17322587306782511,0.14733977473477297,83]
[null,"Male 35-39",0.21256911614522836,0.18160564510604815,0.1565627309851311,0.19085130349000368,0.19339552595894693,0.21985400223920532,0.21981264789877453,0.2351981227890052,0.2462734774305011,0.19077310808903769,0.20279179201772221,0.16166365778424338,0.20572289028619753,0.20299719533824329,0.22080881804000616,0.20090177547252933,0.2204300484992659,0.26384509298421899,0.26013688057393514,0.18218628896916725,0.18218628896916725,0.18295930014795056,0.25017789737120144,0.19441318290113005,0.17672626961909771,0.17145375053093778,0.18444432145286513,0.19339552595894705,0.17910378042867683,0.18803196733953534,0.19441318290112994,0.16405490248214358,0.23608981800842069,0.22080881804000616,0.14531433605509636,0.25077911719155083,0.15655034726929509,0.2161872904081959,0.2161872904081959,0.16990462528190833,0.17486505467557231,0.19414150396415247,0.21981264789877453,0.21352385107540256,0.21352385107540256,0.19589793546368645,0.16717513991634458,0.1965883305558066,0.16610964286118332,0.15086806884797405,0.18432411860948164,0.21109540831422927,0.1795502563083371,84]
[null,"Male 40-44",0.21256911614522836,0.18160564510604815,0.1565627309851311,0.19085130349000368,0.19339552595894693,0.21985400223920532,0.21981264789877453,0.2351981227890052,0.2462734774305011,0.19077310808903769,0.20279179201772221,0.16166365778424338,0.20572289028619753,0.20299719533824329,0.22080881804000616,0.20090177547252933,0.2204300484992659,0.26384509298421899,0.26013688057393514,0.18218628896916725,0.18218628896916725,0.18295930014795056,0.25017789737120144,0.19441318290113005,0.17672626961909771,0.17145375053093778,0.18444432145286513,0.19339552595894705,0.17910378042867683,0.18803196733953534,0.19441318290112994,0.16405490248214358,0.23608981800842069,0.22080881804000616,0.14531433605509636,0.25077911719155083,0.15655034726929509,0.2161872904081959,0.2161872904081959,0.16990462528190833,0.17486505467557231,0.19414150396415247,0.21981264789877453,0.21352385107540256,0.21352385107540256,0.19589793546368645,0.16717513991634458,0.1965883305558066,0.16610964286118332,0.15086806884797405,0.18432411860948164,0.21109540831422927,0.1795502563083371,85]
[null,"Male 45-49",0.29484103291242647,0.2518935815173296,0.2171581561627649,0.26471764324988378,0.26824657160177912,0.30494543274033981,0.30488807277822899,0.32622828151007793,0.34159019796147394,0.26460918340770206,0.28127953161275515,0.22423332565838172,0.28534507065585235,0.2815644334286177,0.30626979670277404,0.27865801047877475,0.30574442968496451,0.36596266266259575,0.36081923826899853,0.25269895550326338,0.25269895550326338,0.25377114989602556,0.34700576927830373,0.26965809849441946,0.24512571168454941,0.23781253749351841,0.2558309280207971,0.26824657160177928,0.24842340495047921,0.26080712229648478,0.2696580984944193,0.22755006832288791,0.32746509494894038,0.30626979670277404,0.20155622658842121,0.34783968285923117,0.21714097950213523,0.29985957114740541,0.29985957114740541,0.23566384488559264,0.24254413941115222,0.26928127000751784,0.30488807277822899,0.29616528470438397,0.29616528470438397,0.27171750386384486,0.23187795021238738,0.27267510676387907,0.23040006735712698,0.20925945433319362,0.25566420234048715,0.29279694698412989,0.24904268310300057,86]
[null,"Male 50-54",0.29484103291242647,0.2518935815173296,0.2171581561627649,0.26471764324988378,0.26824657160177912,0.30494543274033981,0.30488807277822899,0.32622828151007793,0.34159019796147394,0.26460918340770206,0.28127953161275515,0.22423332565838172,0.28534507065585235,0.2815644334286177,0.30626979670277404,0.27865801047877475,0.30574442968496451,0.36596266266259575,0.36081923826899853,0.25269895550326338,0.25269895550326338,0.25377114989602556,0.34700576927830373,0.26965809849441946,0.24512571168454941,0.23781253749351841,0.2558309280207971,0.26824657160177928,0.24842340495047921,0.26080712229648478,0.2696580984944193,0.22755006832288791,0.32746509494894038,0.30626979670277404,0.20155622658842121,0.34783968285923117,0.21714097950213523,0.29985957114740541,0.29985957114740541,0.23566384488559264,0.24254413941115222,0.26928127000751784,0.30488807277822899,0.29616528470438397,0.29616528470438397,0.27171750386384486,0.23187795021238738,0.27267510676387907,0.23040006735712698,0.20925945433319362,0.25566420234048715,0.29279694698412989,0.24904268310300057,87]
[null,"Male 55-59",0.31747295606981368,0.27122886916174815,0.23382716133727649,0.28503730263126797,0.28883711063142364,0.32835296707435985,0.32829120417605667,0.35126948193585283,0.36781057521092198,0.28492051743901659,0.30287047735841238,0.24144541905493819,0.30724808615078375,0.30317724816564395,0.32977898887978202,0.30004772892484738,0.32921329482248601,0.39405386414170845,0.38851563179179699,0.27209606345126236,0.27209606345126236,0.27325055921458707,0.37364184441310089,0.2903569859715418,0.26394149935136418,0.25606696775803034,0.275468445387552,0.28883711063142381,0.26749232271880646,0.28082661107797502,0.29035698597154158,0.24501675404797632,0.35260123286164458,0.32977898887978202,0.2170276315926119,0.37453976898970626,0.23380866620051874,0.32287671603113954,0.32287671603113954,0.25375334204865985,0.26116176624282261,0.28995123222523911,0.32829120417605667,0.31889885709458166,0.31889885709458166,0.29257447077655441,0.24967684305732568,0.29360557903313544,0.24808551828766995,0.22532215715187581,0.27528892188616583,0.31527196662235851,0.26815913650577616,88]
[null,"Male 60-64",0.31747295606981368,0.27122886916174815,0.23382716133727649,0.28503730263126797,0.28883711063142364,0.32835296707435985,0.32829120417605667,0.35126948193585283,0.36781057521092198,0.28492051743901659,0.30287047735841238,0.24144541905493819,0.30724808615078375,0.30317724816564395,0.32977898887978202,0.30004772892484738,0.32921329482248601,0.39405386414170845,0.38851563179179699,0.27209606345126236,0.27209606345126236,0.27325055921458707,0.37364184441310089,0.2903569859715418,0.26394149935136418,0.25606696775803034,0.275468445387552,0.28883711063142381,0.26749232271880646,0.28082661107797502,0.29035698597154158,0.24501675404797632,0.35260123286164458,0.32977898887978202,0.2170276315926119,0.37453976898970626,0.23380866620051874,0.32287671603113954,0.32287671603113954,0.25375334204865985,0.26116176624282261,0.28995123222523911,0.32829120417605667,0.31889885709458166,0.31889885709458166,0.29257447077655441,0.24967684305732568,0.29360557903313544,0.24808551828766995,0.22532215715187581,0.27528892188616583,0.31527196662235851,0.26815913650577616,89]
[null,"Male 65-69",{"$f":"$AR92*C$254","v":0.25597650911661624},0.2186901837534917,0.18853341474100757,0.2298238394816963,0.23288760150802568,0.26474899566341259,0.26469919661502656,0.28322644189374296,0.29656342456446039,0.22972967629312391,{"$f":"$AR92*M$254","v":0.24420261955050079},0.19467596949672328,0.24773225883323396,0.24444996698225102,0.26589878835188291,0.24192665469641264,0.26544267268204047,0.31772322844635142,0.31325778546450794,0.21938939722258127,{"$f":"$AR92*W$254","v":0.21938939722258127},0.2203202601185717,0.30126514137389077,0.23411306772937626,0.212814421900272,0.20646523508088557,0.22210852821926855,0.23288760150802582,0.215677429135092,0.22642878455127968,{"$f":"$AR92*AG$254","v":0.23411306772937612},0.19755551513021932,0.28430022454665665,0.26589878835188291,0.17498805632032258,0.30198913248612558,0.18851850222498889,0.26033352783130692,0.26033352783130692,0.20459977277562741,0.21057314004052238,0.23378591095726775,{"$f":"$AR92*AS$254","v":0.26469919661502656},0.25712620442038148,0.25712620442038148,0.23590101220953996,0.20131291648986033,0.23673238851103159,0.20002984102903995,0.1816758817140926,0.22196377951450291,0.25420186474269302,0.21621507702652945,90]
[null,"Male 70-74",0.25597650911661624,0.2186901837534917,0.18853341474100757,0.2298238394816963,0.23288760150802568,0.26474899566341259,0.26469919661502656,0.28322644189374296,0.29656342456446039,0.22972967629312391,0.24420261955050079,0.19467596949672328,0.24773225883323396,0.24444996698225102,0.26589878835188291,0.24192665469641264,0.26544267268204047,0.31772322844635142,0.31325778546450794,0.21938939722258127,0.21938939722258127,0.2203202601185717,0.30126514137389077,0.23411306772937626,0.212814421900272,0.20646523508088557,0.22210852821926855,0.23288760150802582,0.215677429135092,0.22642878455127968,0.23411306772937612,0.19755551513021932,0.28430022454665665,0.26589878835188291,0.17498805632032258,0.30198913248612558,0.18851850222498889,0.26033352783130692,0.26033352783130692,0.20459977277562741,0.21057314004052238,0.23378591095726775,0.26469919661502656,0.25712620442038148,0.25712620442038148,0.23590101220953996,0.20131291648986033,0.23673238851103159,0.20002984102903995,0.1816758817140926,0.22196377951450291,0.25420186474269302,0.21621507702652945,91]
[null,"Male 75-79",0.10368942692504091,8.8585706187597521E-2,7.6369983316750975E-2,9.3095660581546627E-2,9.4336710902301127E-2,0.10724293308810272,0.10722276078867424,0.11472766603204787,0.12013013087074867,9.3057517522661254E-2,9.8920130453257815E-2,7.8858172505180305E-2,0.1003498955349903,9.9020324465349294E-2,0.10770868420472482,9.7998196279546507E-2,0.10752392360860329,0.12870141714202127,0.12689258231826461,8.8868939380199352E-2,8.8868939380199352E-2,8.9246007731370036E-2,0.12203467407753008,9.4833115399129198E-2,8.6205587865760394E-2,8.3633697402005866E-2,8.9970388633310971E-2,9.4336710902301182E-2,8.7365317641298082E-2,9.1720412120940578E-2,9.4833115399129128E-2,8.0024601555924502E-2,0.11516262745998089,0.10770868420472482,7.0883110880752387E-2,0.12232794404900331,7.6363942644326291E-2,0.10545434189785248,0.10545434189785248,8.2878047135307498E-2,8.5297702871090619E-2,9.4700592698778105E-2,0.10722276078867424,0.10415513859365155,0.10415513859365155,9.5557365210808209E-2,8.1546627131837995E-2,9.5894134129793099E-2,8.1026886630285039E-2,7.3592175024364201E-2,8.9911754697341278E-2,0.10297056464051769,8.7583104820063012E-2,92]
[null,"Male 80-84",0.10368942692504091,8.8585706187597521E-2,7.6369983316750975E-2,9.3095660581546627E-2,9.4336710902301127E-2,0.10724293308810272,0.10722276078867424,0.11472766603204787,0.12013013087074867,9.3057517522661254E-2,9.8920130453257815E-2,7.8858172505180305E-2,0.1003498955349903,9.9020324465349294E-2,0.10770868420472482,9.7998196279546507E-2,0.10752392360860329,0.12870141714202127,0.12689258231826461,8.8868939380199352E-2,8.8868939380199352E-2,8.9246007731370036E-2,0.12203467407753008,9.4833115399129198E-2,8.6205587865760394E-2,8.3633697402005866E-2,8.9970388633310971E-2,9.4336710902301182E-2,8.7365317641298082E-2,9.1720412120940578E-2,9.4833115399129128E-2,8.0024601555924502E-2,0.11516262745998089,0.10770868420472482,7.0883110880752387E-2,0.12232794404900331,7.6363942644326291E-2,0.10545434189785248,0.10545434189785248,8.2878047135307498E-2,8.5297702871090619E-2,9.4700592698778105E-2,0.10722276078867424,0.10415513859365155,0.10415513859365155,9.5557365210808209E-2,8.1546627131837995E-2,9.5894134129793099E-2,8.1026886630285039E-2,7.3592175024364201E-2,8.9911754697341278E-2,0.10297056464051769,8.7583104820063012E-2,93]
[null,"Male 85-89",0.10368942692504091,8.8585706187597521E-2,7.6369983316750975E-2,9.3095660581546627E-2,9.4336710902301127E-2,0.10724293308810272,0.10722276078867424,0.11472766603204787,0.12013013087074867,9.3057517522661254E-2,9.8920130453257815E-2,7.8858172505180305E-2,0.1003498955349903,9.9020324465349294E-2,0.10770868420472482,9.7998196279546507E-2,0.10752392360860329,0.12870141714202127,0.12689258231826461,8.8868939380199352E-2,8.8868939380199352E-2,8.9246007731370036E-2,0.12203467407753008,9.4833115399129198E-2,8.6205587865760394E-2,8.3633697402005866E-2,8.9970388633310971E-2,9.4336710902301182E-2,8.7365317641298082E-2,9.1720412120940578E-2,9.4833115399129128E-2,8.0024601555924502E-2,0.11516262745998089,0.10770868420472482,7.0883110880752387E-2,0.12232794404900331,7.6363942644326291E-2,0.10545434189785248,0.10545434189785248,8.2878047135307498E-2,8.5297702871090619E-2,9.4700592698778105E-2,0.10722276078867424,0.10415513859365155,0.10415513859365155,9.5557365210808209E-2,8.1546627131837995E-2,9.5894134129793099E-2,8.1026886630285039E-2,7.3592175024364201E-2,8.9911754697341278E-2,0.10297056464051769,8.7583104820063012E-2,94]
[null,"Male 90+",0.10368942692504091,8.8585706187597521E-2,7.6369983316750975E-2,9.3095660581546627E-2,9.4336710902301127E-2,0.10724293308810272,0.10722276078867424,0.11472766603204787,0.12013013087074867,9.3057517522661254E-2,9.8920130453257815E-2,7.8858172505180305E-2,0.1003498955349903,9.9020324465349294E-2,0.10770868420472482,9.7998196279546507E-2,0.10752392360860329,0.12870141714202127,0.12689258231826461,8.8868939380199352E-2,8.8868939380199352E-2,8.9246007731370036E-2,0.12203467407753008,9.4833115399129198E-2,8.6205587865760394E-2,8.3633697402005866E-2,8.9970388633310971E-2,9.4336710902301182E-2,8.7365317641298082E-2,9.1720412120940578E-2,9.4833115399129128E-2,8.0024601555924502E-2,0.11516262745998089,0.10770868420472482,7.0883110880752387E-2,0.12232794404900331,7.6363942644326291E-2,0.10545434189785248,0.10545434189785248,8.2878047135307498E-2,8.5297702871090619E-2,9.4700592698778105E-2,0.10722276078867424,0.10415513859365155,0.10415513859365155,9.5557365210808209E-2,8.1546627131837995E-2,9.5894134129793099E-2,8.1026886630285039E-2,7.3592175024364201E-2,8.9911754697341278E-2,0.10297056464051769,8.7583104820063012E-2,95]
["SIMD Q2","Female 0-4",null,null,null,null,null,null,null,null,null,null,null,null,null,null,null,null,null,null,null,null,null,null,null,null,null,null,null,null,null,null,null,null,null,null,null,null,null,null,null,null,null,null,null,null,null,null,null,null,null,null,null,null,null,96]
[null,"Female 5-9",null,null,null,null,null,null,null,null,null,null,null,null,null,null,null,null,null,null,null,null,null,null,null,null,null,null,null,null,null,null,null,null,null,null,null,null,null,null,null,null,null,null,null,null,null,null,null,null,null,null,null,null,null,97]
[null,"Female 10-15",null,null,null,null,null,null,null,null,null,null,null,null,null,null,null,null,null,null,null,null,null,null,null,null,null,null,null,null,null,null,null,null,null,null,null,null,null,null,null,null,null,null,null,null,null,null,null,null,null,null,null,null,null,98]
[null,"Female 16-19",{"$f":"$AR101*C$253","v":0.27743580882880475},0.23548216766092514,0.19953163741919977,0.19485057500035985,0.25153345311613218,0.23126305756249821,0.22685633836112742,0.28274499176222484,0.23181992694435216,0.21274639430168218,{"$f":"$AR101*M$253","v":0.21908646735806853},0.22646687842237934,0.17162729998594434,0.21980095710084363,0.27409644394474547,0.21980095710084363,0.25661036317163882,0.30684788806297841,0.2308630347631758,0.24515058938483736,{"$f":"$AR101*W$253","v":0.20866045346664061},0.21625661350006403,0.2570328438527007,0.23688714170612424,0.22373203562380767,0.22767861596562136,0.21839937640733673,0.25153345311613218,0.18332873305627842,0.24358716014655837,{"$f":"$AR101*AG$253","v":0.23688714170612404},0.23233953478318509,0.28214286570157532,0.27409644394474547,0.17756887357545004,0.27121873751842129,0.22013162069175957,0.25452090477332973,0.25452090477332973,0.20876444018202364,0.25892100863923517,0.23385601914770177,{"$f":"$AR101*AS$253","v":0.22685633836112742},0.23574912435425316,0.23574912435425316,0.25210178916601333,0.25145807829141076,0.23026399175882156,0.20437074859513524,0.20067975570491722,0.2248106558414584,0.22689602022513003,0.12825875795540465,99]
[null,"Female 20-24",0.27743580882880475,0.23548216766092514,0.19953163741919977,0.19485057500035985,0.25153345311613218,0.23126305756249821,0.22685633836112742,0.28274499176222484,0.23181992694435216,0.21274639430168218,0.21908646735806853,0.22646687842237934,0.17162729998594434,0.21980095710084363,0.27409644394474547,0.21980095710084363,0.25661036317163882,0.30684788806297841,0.2308630347631758,0.24515058938483736,0.20866045346664061,0.21625661350006403,0.2570328438527007,0.23688714170612424,0.22373203562380767,0.22767861596562136,0.21839937640733673,0.25153345311613218,0.18332873305627842,0.24358716014655837,0.23688714170612404,0.23233953478318509,0.28214286570157532,0.27409644394474547,0.17756887357545004,0.27121873751842129,0.22013162069175957,0.25452090477332973,0.25452090477332973,0.20876444018202364,0.25892100863923517,0.23385601914770177,0.22685633836112742,0.23574912435425316,0.23574912435425316,0.25210178916601333,0.25145807829141076,0.23026399175882156,0.20437074859513524,0.20067975570491722,0.2248106558414584,0.22689602022513003,0.12825875795540465,100]
[null,"Female 25-29",0.1765411162967527,0.14984469712953133,0.126968245934831,0.12398953893819123,0.16005863405505869,0.14715994489909806,0.14435581110576937,0.17991951609902199,0.14751429837177701,0.13537721066606803,0.13941159822224714,0.14410798551818677,0.10921183986459661,0.13986625047966328,0.174416173569126,0.13986625047966328,0.16328923133203249,0.19525694581612674,0.14690539783167136,0.15599701744886144,0.13277719821927594,0.13761087335851097,0.16355806905475953,0.15073872622892734,0.14236771917479665,0.14487905216400188,0.13897438067649606,0.16005863405505869,0.11665782913768008,0.15500215833481293,0.1507387262289272,0.14784494115466562,0.17953636438062204,0.174416173569126,0.11299264969761241,0.17258499861365692,0.14007666210498818,0.16195964334679608,0.16195964334679608,0.13284336823132756,0.16475956759445493,0.14880992777152857,0.14435581110576937,0.15001457005560376,0.15001457005560376,0.16042028412864245,0.16001067068741281,0.14652420795879623,0.13004752431814487,0.12769882964951776,0.14305407908661977,0.14438106192179534,8.1615074852339126E-2,101]
[null,"Female 30-34",0.1765411162967527,0.14984469712953133,0.126968245934831,0.12398953893819123,0.16005863405505869,0.14715994489909806,0.14435581110576937,0.17991951609902199,0.14751429837177701,0.13537721066606803,0.13941159822224714,0.14410798551818677,0.10921183986459661,0.13986625047966328,0.174416173569126,0.13986625047966328,0.16328923133203249,0.19525694581612674,0.14690539783167136,0.15599701744886144,0.13277719821927594,0.13761087335851097,0.16355806905475953,0.15073872622892734,0.14236771917479665,0.14487905216400188,0.13897438067649606,0.16005863405505869,0.11665782913768008,0.15500215833481293,0.1507387262289272,0.14784494115466562,0.17953636438062204,0.174416173569126,0.11299264969761241,0.17258499861365692,0.14007666210498818,0.16195964334679608,0.16195964334679608,0.13284336823132756,0.16475956759445493,0.14880992777152857,0.14435581110576937,0.15001457005560376,0.15001457005560376,0.16042028412864245,0.16001067068741281,0.14652420795879623,0.13004752431814487,0.12769882964951776,0.14305407908661977,0.14438106192179534,8.1615074852339126E-2,102]
[null,"Female 35-39",0.21232418945746256,0.18021668000018148,0.15270340683489059,0.14912094648820448,0.19250087715704592,0.17698775603516778,0.17361525308917983,0.21638735624108207,0.17741393332149197,0.16281678245066,0.1676688989762127,0.17331719579740512,0.1313479594149094,0.16821570458198801,0.20976854263846051,0.16821570458198801,0.1963862833597797,0.23483352561712201,0.17668161488853934,0.1876160125323757,0.15968977415409696,0.16550318565600236,0.19670961173093182,0.18129191962629532,0.1712241953193788,0.17424454974205328,0.16714306191929659,0.19250087715704592,0.1403031743261991,0.18641950568204146,0.18129191962629518,0.17781159400445024,0.21592654360006674,0.20976854263846051,0.13589510061423493,0.20756620730530656,0.16846876448518042,0.19478720153000828,0.19478720153000828,0.15976935614876178,0.19815464169860425,0.17897217350887754,0.17361525308917983,0.18042098442566426,0.18042098442566426,0.19293582999042347,0.19244319210682825,0.1762231617390104,0.15640682335658065,0.15358207237357982,0.17204967334405025,0.17364562198656941,9.8157613246335804E-2,103]
[null,"Female 40-44",0.21232418945746256,0.18021668000018148,0.15270340683489059,0.14912094648820448,0.19250087715704592,0.17698775603516778,0.17361525308917983,0.21638735624108207,0.17741393332149197,0.16281678245066,0.1676688989762127,0.17331719579740512,0.1313479594149094,0.16821570458198801,0.20976854263846051,0.16821570458198801,0.1963862833597797,0.23483352561712201,0.17668161488853934,0.1876160125323757,0.15968977415409696,0.16550318565600236,0.19670961173093182,0.18129191962629532,0.1712241953193788,0.17424454974205328,0.16714306191929659,0.19250087715704592,0.1403031743261991,0.18641950568204146,0.18129191962629518,0.17781159400445024,0.21592654360006674,0.20976854263846051,0.13589510061423493,0.20756620730530656,0.16846876448518042,0.19478720153000828,0.19478720153000828,0.15976935614876178,0.19815464169860425,0.17897217350887754,0.17361525308917983,0.18042098442566426,0.18042098442566426,0.19293582999042347,0.19244319210682825,0.1762231617390104,0.15640682335658065,0.15358207237357982,0.17204967334405025,0.17364562198656941,9.8157613246335804E-2,104]
[null,"Female 45-49",0.2285780555088868,0.19401264825250433,0.16439317579919271,0.16053647053129269,0.20723722669916506,0.19053654332449402,0.18690586814065516,0.23295226630880186,0.19099534538401891,0.1752807517216087,0.18050430803588149,0.18658499393240693,0.14140292368399732,0.18109297276800101,0.22582676851729322,0.18109297276800101,0.2114200689695272,0.25281052898879436,0.19020696642519491,0.20197841534948147,0.17191436432215637,0.17817280477764086,0.21176814881176118,0.19517019974756111,0.18433176983830399,0.18758333878410663,0.17993821703941268,0.20723722669916506,0.15104367924895323,0.20069031336754856,0.19517019974756095,0.19142344783383963,0.23245617748488434,0.22582676851729322,0.14629815816539121,0.22345583975351385,0.18136540494234155,0.20969857404149889,0.20969857404149889,0.17200003848693468,0.21332379888162195,0.19267287215550227,0.18690586814065516,0.19423259261413378,0.19423259261413378,0.20770547609244222,0.20717512573627253,0.18971341771683051,0.16838009669327669,0.16533910504441654,0.1852204399527495,0.18693856184141056,0.10567178627443102,105]
[null,"Female 50-54",0.2285780555088868,0.19401264825250433,0.16439317579919271,0.16053647053129269,0.20723722669916506,0.19053654332449402,0.18690586814065516,0.23295226630880186,0.19099534538401891,0.1752807517216087,0.18050430803588149,0.18658499393240693,0.14140292368399732,0.18109297276800101,0.22582676851729322,0.18109297276800101,0.2114200689695272,0.25281052898879436,0.19020696642519491,0.20197841534948147,0.17191436432215637,0.17817280477764086,0.21176814881176118,0.19517019974756111,0.18433176983830399,0.18758333878410663,0.17993821703941268,0.20723722669916506,0.15104367924895323,0.20069031336754856,0.19517019974756095,0.19142344783383963,0.23245617748488434,0.22582676851729322,0.14629815816539121,0.22345583975351385,0.18136540494234155,0.20969857404149889,0.20969857404149889,0.17200003848693468,0.21332379888162195,0.19267287215550227,0.18690586814065516,0.19423259261413378,0.19423259261413378,0.20770547609244222,0.20717512573627253,0.18971341771683051,0.16838009669327669,0.16533910504441654,0.1852204399527495,0.18693856184141056,0.10567178627443102,106]
[null,"Female 55-59",0.15876831270367392,0.13475948396552845,0.11418605816524464,0.11150722450985881,0.14394516017368075,0.13234501196832632,0.12982317682702252,0.16180660116302126,0.13266369185513158,0.12174847291580643,0.12537670932058007,0.12960030041607276,9.8217230672879657E-2,0.1257855906808607,0.15685729288837982,0.1257855906808607,0.14685052573072208,0.17559997626156026,0.1321160907444961,0.14029243593050103,0.11941020975170677,0.12375726760492686,0.14709229893644218,0.13556350908215054,0.12803523072131337,0.13029374199447746,0.12498350747910845,0.14394516017368075,0.10491361493789104,0.13939773159063581,0.13556350908215042,0.13296104806227502,0.16146202221667758,0.15685729288837982,0.10161741761195149,0.15521046656234511,0.12597481967989976,0.14565479045139926,0.14565479045139926,0.11946971827519065,0.14817283983175811,0.13382888723852349,0.12982317682702252,0.13491225539018184,0.13491225539018184,0.14427040209565625,0.14390202538948738,0.13177327614013856,0.11695533845257358,0.11484309232308142,0.12865249318907993,0.12984588558484014,7.3398695993904736E-2,107]
[null,"Female 60-64",0.15876831270367392,0.13475948396552845,0.11418605816524464,0.11150722450985881,0.14394516017368075,0.13234501196832632,0.12982317682702252,0.16180660116302126,0.13266369185513158,0.12174847291580643,0.12537670932058007,0.12960030041607276,9.8217230672879657E-2,0.1257855906808607,0.15685729288837982,0.1257855906808607,0.14685052573072208,0.17559997626156026,0.1321160907444961,0.14029243593050103,0.11941020975170677,0.12375726760492686,0.14709229893644218,0.13556350908215054,0.12803523072131337,0.13029374199447746,0.12498350747910845,0.14394516017368075,0.10491361493789104,0.13939773159063581,0.13556350908215042,0.13296104806227502,0.16146202221667758,0.15685729288837982,0.10161741761195149,0.15521046656234511,0.12597481967989976,0.14565479045139926,0.14565479045139926,0.11946971827519065,0.14817283983175811,0.13382888723852349,0.12982317682702252,0.13491225539018184,0.13491225539018184,0.14427040209565625,0.14390202538948738,0.13177327614013856,0.11695533845257358,0.11484309232308142,0.12865249318907993,0.12984588558484014,7.3398695993904736E-2,108]
[null,"Female 65-69",{"$f":"$AR111*C$253","v":0.10711453353153896},9.0916751700066814E-2,7.7036696730558185E-2,7.5229396441735499E-2,9.7113954438149588E-2,8.9287805487178795E-2,8.7586425720623237E-2,0.10916434338033833,8.9502805866283036E-2,8.2138750878417821E-2,{"$f":"$AR111*M$253","v":8.4586574650185362E-2},8.7436060056420295E-2,6.6263177262081099E-2,8.4862430300663594E-2,0.10582524606227674,8.4862430300663594E-2,9.9074086602317132E-2,0.11847017345653944,8.9133361633185026E-2,9.4649609716178584E-2,{"$f":"$AR111*W$253","v":8.0561219670638479E-2},8.3494003084740406E-2,9.9237201166616038E-2,9.1459194797483587E-2,8.6380171085606652E-2,8.7903896931029055E-2,8.4321297334354839E-2,9.7113954438149588E-2,7.0780955807938459E-2,9.4045989029019353E-2,{"$f":"$AR111*AG$253","v":9.1459194797483503E-2},8.9703420024602673E-2,0.10893186995743763,0.10582524606227674,6.8557145319664933E-2,0.10471419921220471,8.4990095422359108E-2,9.8267372564164457E-2,9.8267372564164457E-2,8.0601367654991152E-2,9.9966198231537545E-2,9.0288915876774054E-2,{"$f":"$AR111*AS$253","v":8.7586425720623237E-2},9.1019820376744373E-2,9.1019820376744373E-2,9.7333381955920895E-2,9.7084853150813472E-2,8.8902078540178356E-2,7.8905017689217968E-2,7.747997099689323E-2,8.6796613007646503E-2,8.7601746397396152E-2,4.9519119711778699E-2,109]
[null,"Female 70-74",0.10711453353153896,9.0916751700066814E-2,7.7036696730558185E-2,7.5229396441735499E-2,9.7113954438149588E-2,8.9287805487178795E-2,8.7586425720623237E-2,0.10916434338033833,8.9502805866283036E-2,8.2138750878417821E-2,8.4586574650185362E-2,8.7436060056420295E-2,6.6263177262081099E-2,8.4862430300663594E-2,0.10582524606227674,8.4862430300663594E-2,9.9074086602317132E-2,0.11847017345653944,8.9133361633185026E-2,9.4649609716178584E-2,8.0561219670638479E-2,8.3494003084740406E-2,9.9237201166616038E-2,9.1459194797483587E-2,8.6380171085606652E-2,8.7903896931029055E-2,8.4321297334354839E-2,9.7113954438149588E-2,7.0780955807938459E-2,9.4045989029019353E-2,9.1459194797483503E-2,8.9703420024602673E-2,0.10893186995743763,0.10582524606227674,6.8557145319664933E-2,0.10471419921220471,8.4990095422359108E-2,9.8267372564164457E-2,9.8267372564164457E-2,8.0601367654991152E-2,9.9966198231537545E-2,9.0288915876774054E-2,8.7586425720623237E-2,9.1019820376744373E-2,9.1019820376744373E-2,9.7333381955920895E-2,9.7084853150813472E-2,8.8902078540178356E-2,7.8905017689217968E-2,7.747997099689323E-2,8.6796613007646503E-2,8.7601746397396152E-2,4.9519119711778699E-2,110]
[null,"Female 75-79",3.2348623876888895E-2,2.7456888508859523E-2,2.3265107405065863E-2,2.2719302131512544E-2,2.9328445746272486E-2,2.6964946224100547E-2,2.6451128982634898E-2,3.2967667116230726E-2,2.7029876408340984E-2,2.4805929412940606E-2,2.5545172986143495E-2,2.6405718503263606E-2,2.0011501030413725E-2,2.5628481482081699E-2,3.1959258642897843E-2,2.5628481482081699E-2,2.992040629576205E-2,3.5778030818264063E-2,2.6918304130089367E-2,2.8584212840748382E-2,2.4329514476404634E-2,2.5215216018924326E-2,2.9969666947098354E-2,2.7620706500260127E-2,2.6086839691523755E-2,2.654700539117226E-2,2.5465059150700745E-2,2.9328445746272486E-2,2.1375871616931632E-2,2.8401919197398165E-2,2.7620706500260103E-2,2.7090461949237261E-2,3.2897460067095104E-2,3.1959258642897843E-2,2.0704280128018882E-2,3.1623722133727501E-2,2.5667036390251183E-2,2.9676778394523762E-2,2.9676778394523762E-2,2.4341639180704051E-2,3.0189824297207693E-2,2.7267281886541043E-2,2.6451128982634898E-2,2.7488015282653943E-2,2.7488015282653943E-2,2.9394712927826645E-2,2.9319657148055869E-2,2.6848456560967914E-2,2.3829340940706465E-2,2.3398976377307187E-2,2.6212605287082916E-2,2.6455755831990693E-2,1.4954790218073491E-2,111]
[null,"Female 80-84",3.2348623876888895E-2,2.7456888508859523E-2,2.3265107405065863E-2,2.2719302131512544E-2,2.9328445746272486E-2,2.6964946224100547E-2,2.6451128982634898E-2,3.2967667116230726E-2,2.7029876408340984E-2,2.4805929412940606E-2,2.5545172986143495E-2,2.6405718503263606E-2,2.0011501030413725E-2,2.5628481482081699E-2,3.1959258642897843E-2,2.5628481482081699E-2,2.992040629576205E-2,3.5778030818264063E-2,2.6918304130089367E-2,2.8584212840748382E-2,2.4329514476404634E-2,2.5215216018924326E-2,2.9969666947098354E-2,2.7620706500260127E-2,2.6086839691523755E-2,2.654700539117226E-2,2.5465059150700745E-2,2.9328445746272486E-2,2.1375871616931632E-2,2.8401919197398165E-2,2.7620706500260103E-2,2.7090461949237261E-2,3.2897460067095104E-2,3.1959258642897843E-2,2.0704280128018882E-2,3.1623722133727501E-2,2.5667036390251183E-2,2.9676778394523762E-2,2.9676778394523762E-2,2.4341639180704051E-2,3.0189824297207693E-2,2.7267281886541043E-2,2.6451128982634898E-2,2.7488015282653943E-2,2.7488015282653943E-2,2.9394712927826645E-2,2.9319657148055869E-2,2.6848456560967914E-2,2.3829340940706465E-2,2.3398976377307187E-2,2.6212605287082916E-2,2.6455755831990693E-2,1.4954790218073491E-2,112]
[null,"Female 85-89",3.2348623876888895E-2,2.7456888508859523E-2,2.3265107405065863E-2,2.2719302131512544E-2,2.9328445746272486E-2,2.6964946224100547E-2,2.6451128982634898E-2,3.2967667116230726E-2,2.7029876408340984E-2,2.4805929412940606E-2,2.5545172986143495E-2,2.6405718503263606E-2,2.0011501030413725E-2,2.5628481482081699E-2,3.1959258642897843E-2,2.5628481482081699E-2,2.992040629576205E-2,3.5778030818264063E-2,2.6918304130089367E-2,2.8584212840748382E-2,2.4329514476404634E-2,2.5215216018924326E-2,2.9969666947098354E-2,2.7620706500260127E-2,2.6086839691523755E-2,2.654700539117226E-2,2.5465059150700745E-2,2.9328445746272486E-2,2.1375871616931632E-2,2.8401919197398165E-2,2.7620706500260103E-2,2.7090461949237261E-2,3.2897460067095104E-2,3.1959258642897843E-2,2.0704280128018882E-2,3.1623722133727501E-2,2.5667036390251183E-2,2.9676778394523762E-2,2.9676778394523762E-2,2.4341639180704051E-2,3.0189824297207693E-2,2.7267281886541043E-2,2.6451128982634898E-2,2.7488015282653943E-2,2.7488015282653943E-2,2.9394712927826645E-2,2.9319657148055869E-2,2.6848456560967914E-2,2.3829340940706465E-2,2.3398976377307187E-2,2.6212605287082916E-2,2.6455755831990693E-2,1.4954790218073491E-2,113]
[null,"Female 90+",3.2348623876888895E-2,2.7456888508859523E-2,2.3265107405065863E-2,2.2719302131512544E-2,2.9328445746272486E-2,2.6964946224100547E-2,2.6451128982634898E-2,3.2967667116230726E-2,2.7029876408340984E-2,2.4805929412940606E-2,2.5545172986143495E-2,2.6405718503263606E-2,2.0011501030413725E-2,2.5628481482081699E-2,3.1959258642897843E-2,2.5628481482081699E-2,2.992040629576205E-2,3.5778030818264063E-2,2.6918304130089367E-2,2.8584212840748382E-2,2.4329514476404634E-2,2.5215216018924326E-2,2.9969666947098354E-2,2.7620706500260127E-2,2.6086839691523755E-2,2.654700539117226E-2,2.5465059150700745E-2,2.9328445746272486E-2,2.1375871616931632E-2,2.8401919197398165E-2,2.7620706500260103E-2,2.7090461949237261E-2,3.2897460067095104E-2,3.1959258642897843E-2,2.0704280128018882E-2,3.1623722133727501E-2,2.5667036390251183E-2,2.9676778394523762E-2,2.9676778394523762E-2,2.4341639180704051E-2,3.0189824297207693E-2,2.7267281886541043E-2,2.6451128982634898E-2,2.7488015282653943E-2,2.7488015282653943E-2,2.9394712927826645E-2,2.9319657148055869E-2,2.6848456560967914E-2,2.3829340940706465E-2,2.3398976377307187E-2,2.6212605287082916E-2,2.6455755831990693E-2,1.4954790218073491E-2,114]
[null,"Male 0-4",null,null,null,null,null,null,null,null,null,null,null,null,null,null,null,null,null,null,null,null,null,null,null,null,null,null,null,null,null,null,null,null,null,null,null,null,null,null,null,null,null,null,null,null,null,null,null,null,null,null,null,null,null,115]
[null,"Male 5-9",null,null,null,null,null,null,null,null,null,null,null,null,null,null,null,null,null,null,null,null,null,null,null,null,null,null,null,null,null,null,null,null,null,null,null,null,null,null,null,null,null,null,null,null,null,null,null,null,null,null,null,null,null,116]
[null,"Male 10-15",null,null,null,null,null,null,null,null,null,null,null,null,null,null,null,null,null,null,null,null,null,null,null,null,null,null,null,null,null,null,null,null,null,null,null,null,null,null,null,null,null,null,null,null,null,null,null,null,null,null,null,null,null,117]
[null,"Male 16-19",{"$f":"$AR120*C$254","v":0.18812725737629379},0.16072406263622838,0.13856066074740728,0.16890662643455245,0.17115830628305137,0.19457450458704223,0.19453790529742326,0.20815431038494991,0.21795618626870208,0.16883742218423642,{"$f":"$AR120*M$254","v":0.17947416041685532},0.1430750671023672,0.18206823188098997,0.17965594582409769,0.19541953269442491,0.17780146385824502,0.19508431525470774,0.23350736276008432,0.23022553215756714,0.16123794226023896,{"$f":"$AR120*W$254","v":0.16123794226023896},0.16192207020705868,0.22141166384893265,0.17205894986173595,0.15640573293379897,0.1517394645054069,0.16323633913899552,0.17115830628305145,0.15850987014855331,0.16641146633214568,{"$f":"$AR120*AG$254","v":0.17205894986173584},0.14519135904020553,0.20894347571190913,0.19541953269442491,0.12860564128622134,0.22194375354255177,0.13854970094977251,0.19132940269799015,0.19132940269799015,0.15036846250042529,0.154758526279028,0.17181850941475407,{"$f":"$AR120*AS$254","v":0.19453790529742326},0.18897221391180624,0.18897221391180624,0.17337298095214759,0.14795282185994099,0.17398399226715858,0.14700983897340983,0.13352078859205596,0.16312995759277352,0.18682300105981922,0.15890500884155032,118]
[null,"Male 20-24",0.18812725737629379,0.16072406263622838,0.13856066074740728,0.16890662643455245,0.17115830628305137,0.19457450458704223,0.19453790529742326,0.20815431038494991,0.21795618626870208,0.16883742218423642,0.17947416041685532,0.1430750671023672,0.18206823188098997,0.17965594582409769,0.19541953269442491,0.17780146385824502,0.19508431525470774,0.23350736276008432,0.23022553215756714,0.16123794226023896,0.16123794226023896,0.16192207020705868,0.22141166384893265,0.17205894986173595,0.15640573293379897,0.1517394645054069,0.16323633913899552,0.17115830628305145,0.15850987014855331,0.16641146633214568,0.17205894986173584,0.14519135904020553,0.20894347571190913,0.19541953269442491,0.12860564128622134,0.22194375354255177,0.13854970094977251,0.19132940269799015,0.19132940269799015,0.15036846250042529,0.154758526279028,0.17181850941475407,0.19453790529742326,0.18897221391180624,0.18897221391180624,0.17337298095214759,0.14795282185994099,0.17398399226715858,0.14700983897340983,0.13352078859205596,0.16312995759277352,0.18682300105981922,0.15890500884155032,119]
[null,"Male 25-29",0.2961927439534684,0.25304839817205788,0.2181537268078613,0.26593125235172727,0.26947635922317664,0.30634346782480126,0.30628584489354621,0.32772388870444114,0.34315623250400434,0.26582229527086498,0.28256906938415816,0.22526133271380402,0.28665324706095585,0.28285527734430566,0.30767390338918549,0.27993552977694791,0.3071461278043201,0.36764043378842493,0.36247342915067743,0.25385746442869833,0.25385746442869833,0.25493457434147659,0.34859663173393096,0.27089435731986433,0.24624950075710253,0.23890279901326983,0.25700379560516901,0.26947635922317681,0.24956231243566809,0.26200280345154037,0.27089435731986417,0.22859328112371011,0.32896637236621828,0.30767390338918549,0.20248026953515458,0.34943436842653136,0.21813647140011289,0.30123428988678258,0.30123428988678258,0.23674425563425819,0.24365609315769685,0.27051580124701141,0.30628584489354621,0.29752306683312568,0.29752306683312568,0.27296320411929809,0.23294100436865656,0.27392519718985953,0.23145634609766416,0.21021881304955178,0.25683630556400777,0.29413928682778173,0.25018442969476823,120]
[null,"Male 30-34",0.2961927439534684,0.25304839817205788,0.2181537268078613,0.26593125235172727,0.26947635922317664,0.30634346782480126,0.30628584489354621,0.32772388870444114,0.34315623250400434,0.26582229527086498,0.28256906938415816,0.22526133271380402,0.28665324706095585,0.28285527734430566,0.30767390338918549,0.27993552977694791,0.3071461278043201,0.36764043378842493,0.36247342915067743,0.25385746442869833,0.25385746442869833,0.25493457434147659,0.34859663173393096,0.27089435731986433,0.24624950075710253,0.23890279901326983,0.25700379560516901,0.26947635922317681,0.24956231243566809,0.26200280345154037,0.27089435731986417,0.22859328112371011,0.32896637236621828,0.30767390338918549,0.20248026953515458,0.34943436842653136,0.21813647140011289,0.30123428988678258,0.30123428988678258,0.23674425563425819,0.24365609315769685,0.27051580124701141,0.30628584489354621,0.29752306683312568,0.29752306683312568,0.27296320411929809,0.23294100436865656,0.27392519718985953,0.23145634609766416,0.21021881304955178,0.25683630556400777,0.29413928682778173,0.25018442969476823,121]
[null,"Male 35-39",0.20984458460828592,0.17927797720983238,0.15455604202760917,0.18840513254732622,0.19091674531981243,0.21703609918025629,0.21699527488486092,0.23218355174223798,0.2431169518347816,0.18832793938901823,0.20019257797005277,0.15959158945184407,0.20308610789456938,0.20039534860415775,0.21797867695792175,0.19832678606189136,0.21760476216549909,0.26046334924957465,0.25680266557648795,0.17985117886993776,0.17985117886993776,0.18061428224380005,0.24697132821574566,0.19192135879414357,0.17446114144001423,0.16925620105188055,0.18208026979888473,0.19091674531981254,0.17680817932249282,0.18562193226830756,0.19192135879414346,0.16195218519325366,0.23306381796486081,0.21797867695792175,0.14345181953091102,0.24756484210782626,0.15454381703579176,0.21341638416704253,0.21341638416704253,0.1677269311829373,0.17262378197889675,0.19165316200850172,0.21699527488486092,0.21078708255185619,0.21078708255185619,0.1933870810513828,0.16503243005729024,0.19406862724185844,0.16398058964417533,0.14893436926382053,0.18196160761410471,0.20838976552055588,0.17724893265112271,122]
[null,"Male 40-44",0.20984458460828592,0.17927797720983238,0.15455604202760917,0.18840513254732622,0.19091674531981243,0.21703609918025629,0.21699527488486092,0.23218355174223798,0.2431169518347816,0.18832793938901823,0.20019257797005277,0.15959158945184407,0.20308610789456938,0.20039534860415775,0.21797867695792175,0.19832678606189136,0.21760476216549909,0.26046334924957465,0.25680266557648795,0.17985117886993776,0.17985117886993776,0.18061428224380005,0.24697132821574566,0.19192135879414357,0.17446114144001423,0.16925620105188055,0.18208026979888473,0.19091674531981254,0.17680817932249282,0.18562193226830756,0.19192135879414346,0.16195218519325366,0.23306381796486081,0.21797867695792175,0.14345181953091102,0.24756484210782626,0.15454381703579176,0.21341638416704253,0.21341638416704253,0.1677269311829373,0.17262378197889675,0.19165316200850172,0.21699527488486092,0.21078708255185619,0.21078708255185619,0.1933870810513828,0.16503243005729024,0.19406862724185844,0.16398058964417533,0.14893436926382053,0.18196160761410471,0.20838976552055588,0.17724893265112271,123]
[null,"Male 45-49",0.24446274319799738,0.20885354837969519,0.18005322406781996,0.21948641477252123,0.22241236947065768,0.25284064526916111,0.2527930861707926,0.27048698011585681,0.28322406829992286,0.21939648702303313,0.23321844054157043,0.18591948808950043,0.23658931744169748,0.23345466234136494,0.25393872054060879,0.23104484807571199,0.2535031208512073,0.30343210895314598,0.29916752059422597,0.20952131138390412,0.20952131138390412,0.21041030427579244,0.2877143029427035,0.22358271449646383,0.20324207697564597,0.19717847515413406,0.21211813647874925,0.22241236947065782,0.20597630678772985,0.21624406865075493,0.22358271449646366,0.18866951240680044,0.2715124642660845,0.25393872054060879,0.16711713282824381,0.28840572909723111,0.18003898231342427,0.24862378418896208,0.24862378418896208,0.19539692092460859,0.20110160747082634,0.22327027316252479,0.2527930861707926,0.24556072546508209,0.24556072546508209,0.2252902376352664,0.19225790669674386,0.22608421881734375,0.19103254368212724,0.17350414133708092,0.21197989853823085,0.24276792192964214,0.20648977139770128,124]
[null,"Male 50-54",0.24446274319799738,0.20885354837969519,0.18005322406781996,0.21948641477252123,0.22241236947065768,0.25284064526916111,0.2527930861707926,0.27048698011585681,0.28322406829992286,0.21939648702303313,0.23321844054157043,0.18591948808950043,0.23658931744169748,0.23345466234136494,0.25393872054060879,0.23104484807571199,0.2535031208512073,0.30343210895314598,0.29916752059422597,0.20952131138390412,0.20952131138390412,0.21041030427579244,0.2877143029427035,0.22358271449646383,0.20324207697564597,0.19717847515413406,0.21211813647874925,0.22241236947065782,0.20597630678772985,0.21624406865075493,0.22358271449646366,0.18866951240680044,0.2715124642660845,0.25393872054060879,0.16711713282824381,0.28840572909723111,0.18003898231342427,0.24862378418896208,0.24862378418896208,0.19539692092460859,0.20110160747082634,0.22327027316252479,0.2527930861707926,0.24556072546508209,0.24556072546508209,0.2252902376352664,0.19225790669674386,0.22608421881734375,0.19103254368212724,0.17350414133708092,0.21197989853823085,0.24276792192964214,0.20648977139770128,125]
[null,"Male 55-59",0.2593483459165894,0.22157086843787022,0.19101686100739415,0.23285118164738883,0.23595530091424152,0.26823638757064083,0.26818593254696815,0.28695722696772691,0.3004698903254141,0.23275577809927905,0.24741936542336174,0.19724032823528417,0.25099549868972343,0.24766997102585442,0.26940132584146448,0.24511342054463403,0.26893920201249083,0.3219084205859693,0.31738415679659815,0.22227929225877785,0.22227929225877785,0.22322241689620409,0.30523354024665933,0.23719690952348754,0.21561770842763628,0.2091848872863295,0.22503424086228466,0.23595530091424166,0.218518428471285,0.22941140553848666,0.23719690952348738,0.20015780452877605,0.28804515396488828,0.26940132584146448,0.17729307708137937,0.30596706809288399,0.19100175205706021,0.26376275722597975,0.26376275722597975,0.20729485227917949,0.21334690340312482,0.23686544329639284,0.26818593254696815,0.26051318551991309,0.26051318551991309,0.23900840560616088,0.20396470005575462,0.23985073316727265,0.20266472335243016,0.18406899749547889,0.22488758546299004,0.25755032513509069,0.2190631585006578,126]
[null,"Male 60-64",0.2593483459165894,0.22157086843787022,0.19101686100739415,0.23285118164738883,0.23595530091424152,0.26823638757064083,0.26818593254696815,0.28695722696772691,0.3004698903254141,0.23275577809927905,0.24741936542336174,0.19724032823528417,0.25099549868972343,0.24766997102585442,0.26940132584146448,0.24511342054463403,0.26893920201249083,0.3219084205859693,0.31738415679659815,0.22227929225877785,0.22227929225877785,0.22322241689620409,0.30523354024665933,0.23719690952348754,0.21561770842763628,0.2091848872863295,0.22503424086228466,0.23595530091424166,0.218518428471285,0.22941140553848666,0.23719690952348738,0.20015780452877605,0.28804515396488828,0.26940132584146448,0.17729307708137937,0.30596706809288399,0.19100175205706021,0.26376275722597975,0.26376275722597975,0.20729485227917949,0.21334690340312482,0.23686544329639284,0.26818593254696815,0.26051318551991309,0.26051318551991309,0.23900840560616088,0.20396470005575462,0.23985073316727265,0.20266472335243016,0.18406899749547889,0.22488758546299004,0.25755032513509069,0.2190631585006578,127]
[null,"Male 65-69",{"$f":"$AR130*C$254","v":0.25649746018225028},0.21913525148514895,0.18891710886847221,0.23029156589338648,0.23336156314066631,0.26528780007125591,0.26523789967424455,0.28380285071043271,0.29716697616608234,0.23019721106842683,{"$f":"$AR130*M$254","v":0.24469960896302337},0.19507216465585192,0.2482364315976664,0.2449474597843565,0.26643993276244132,0.2424190121748559,0.26598288882795035,0.31836984346195196,0.31389531262557074,0.21983588795982248,{"$f":"$AR130*W$254","v":0.21983588795982248},0.22076864530315615,0.30187826168316734,0.23458952337186223,0.21324753156433388,0.2068854231856572,0.22256055280098327,0.23336156314066642,0.21611636545361934,0.22688960151065335,{"$f":"$AR130*AG$254","v":0.23458952337186206},0.19795757060196606,0.28487881867409709,0.26643993276244132,0.17534418358656234,0.30260372622725235,0.18890216600321902,0.26086334609163092,0.26086334609163092,0.20501616438134065,0.21100168835566496,0.23426170078604427,{"$f":"$AR130*AS$254","v":0.26523789967424455},0.25764949529053782,0.25764949529053782,0.23638110659053926,0.2017226188439287,0.23721417486904744,0.20043693212971284,0.18204561972054317,0.22241550951062358,0.25471920413754945,0.21665510754015677,128]
[null,"Male 70-74",0.25649746018225028,0.21913525148514895,0.18891710886847221,0.23029156589338648,0.23336156314066631,0.26528780007125591,0.26523789967424455,0.28380285071043271,0.29716697616608234,0.23019721106842683,0.24469960896302337,0.19507216465585192,0.2482364315976664,0.2449474597843565,0.26643993276244132,0.2424190121748559,0.26598288882795035,0.31836984346195196,0.31389531262557074,0.21983588795982248,0.21983588795982248,0.22076864530315615,0.30187826168316734,0.23458952337186223,0.21324753156433388,0.2068854231856572,0.22256055280098327,0.23336156314066642,0.21611636545361934,0.22688960151065335,0.23458952337186206,0.19795757060196606,0.28487881867409709,0.26643993276244132,0.17534418358656234,0.30260372622725235,0.18890216600321902,0.26086334609163092,0.26086334609163092,0.20501616438134065,0.21100168835566496,0.23426170078604427,0.26523789967424455,0.25764949529053782,0.25764949529053782,0.23638110659053926,0.2017226188439287,0.23721417486904744,0.20043693212971284,0.18204561972054317,0.22241550951062358,0.25471920413754945,0.21665510754015677,129]
[null,"Male 75-79",0.12246171388887878,0.1046235641135555,9.019626517364622E-2,0.10995001600959069,0.11141575030679932,0.12665855890913175,0.12663473454791815,0.1354983533944335,0.14187889886557381,0.10990496740142891,0.11682896774205162,9.3134924606252723E-2,0.11851758236323194,0.11694730121930186,0.12720863119401798,0.11574012346589381,0.12699042091037421,0.15200195999282912,0.14986564755261028,0.10495807480789383,0.10495807480789383,0.10540340889746304,0.14412824706041419,0.11200202556423379,0.10181254106526333,9.8775026793402887E-2,0.10625893418476344,0.11141575030679939,0.10318223226881276,0.10832578788428136,0.11200202556423371,9.4512527944606378E-2,0.1360120617205364,0.12720863119401798,8.3716030666344074E-2,0.14447461162625097,9.0189130877314325E-2,0.12454615507876882,0.12454615507876882,9.7882571029061866E-2,0.10074028947936507,0.11184551050290638,0.12663473454791815,0.12301173958395122,0.12301173958395122,0.11285739602824482,9.6310106214026442E-2,0.11325513473918598,9.5696270122101149E-2,8.6915553008206803E-2,0.10618968496134848,0.121612706328287,0.1034394483800934,130]
[null,"Male 80-84",0.12246171388887878,0.1046235641135555,9.019626517364622E-2,0.10995001600959069,0.11141575030679932,0.12665855890913175,0.12663473454791815,0.1354983533944335,0.14187889886557381,0.10990496740142891,0.11682896774205162,9.3134924606252723E-2,0.11851758236323194,0.11694730121930186,0.12720863119401798,0.11574012346589381,0.12699042091037421,0.15200195999282912,0.14986564755261028,0.10495807480789383,0.10495807480789383,0.10540340889746304,0.14412824706041419,0.11200202556423379,0.10181254106526333,9.8775026793402887E-2,0.10625893418476344,0.11141575030679939,0.10318223226881276,0.10832578788428136,0.11200202556423371,9.4512527944606378E-2,0.1360120617205364,0.12720863119401798,8.3716030666344074E-2,0.14447461162625097,9.0189130877314325E-2,0.12454615507876882,0.12454615507876882,9.7882571029061866E-2,0.10074028947936507,0.11184551050290638,0.12663473454791815,0.12301173958395122,0.12301173958395122,0.11285739602824482,9.6310106214026442E-2,0.11325513473918598,9.5696270122101149E-2,8.6915553008206803E-2,0.10618968496134848,0.121612706328287,0.1034394483800934,131]
[null,"Male 85-89",0.12246171388887878,0.1046235641135555,9.019626517364622E-2,0.10995001600959069,0.11141575030679932,0.12665855890913175,0.12663473454791815,0.1354983533944335,0.14187889886557381,0.10990496740142891,0.11682896774205162,9.3134924606252723E-2,0.11851758236323194,0.11694730121930186,0.12720863119401798,0.11574012346589381,0.12699042091037421,0.15200195999282912,0.14986564755261028,0.10495807480789383,0.10495807480789383,0.10540340889746304,0.14412824706041419,0.11200202556423379,0.10181254106526333,9.8775026793402887E-2,0.10625893418476344,0.11141575030679939,0.10318223226881276,0.10832578788428136,0.11200202556423371,9.4512527944606378E-2,0.1360120617205364,0.12720863119401798,8.3716030666344074E-2,0.14447461162625097,9.0189130877314325E-2,0.12454615507876882,0.12454615507876882,9.7882571029061866E-2,0.10074028947936507,0.11184551050290638,0.12663473454791815,0.12301173958395122,0.12301173958395122,0.11285739602824482,9.6310106214026442E-2,0.11325513473918598,9.5696270122101149E-2,8.6915553008206803E-2,0.10618968496134848,0.121612706328287,0.1034394483800934,132]
[null,"Male 90+",0.12246171388887878,0.1046235641135555,9.019626517364622E-2,0.10995001600959069,0.11141575030679932,0.12665855890913175,0.12663473454791815,0.1354983533944335,0.14187889886557381,0.10990496740142891,0.11682896774205162,9.3134924606252723E-2,0.11851758236323194,0.11694730121930186,0.12720863119401798,0.11574012346589381,0.12699042091037421,0.15200195999282912,0.14986564755261028,0.10495807480789383,0.10495807480789383,0.10540340889746304,0.14412824706041419,0.11200202556423379,0.10181254106526333,9.8775026793402887E-2,0.10625893418476344,0.11141575030679939,0.10318223226881276,0.10832578788428136,0.11200202556423371,9.4512527944606378E-2,0.1360120617205364,0.12720863119401798,8.3716030666344074E-2,0.14447461162625097,9.0189130877314325E-2,0.12454615507876882,0.12454615507876882,9.7882571029061866E-2,0.10074028947936507,0.11184551050290638,0.12663473454791815,0.12301173958395122,0.12301173958395122,0.11285739602824482,9.6310106214026442E-2,0.11325513473918598,9.5696270122101149E-2,8.6915553008206803E-2,0.10618968496134848,0.121612706328287,0.1034394483800934,133]
["SIMD Q3","Female 0-4",null,null,null,null,null,null,null,null,null,null,null,null,null,null,null,null,null,null,null,null,null,null,null,null,null,null,null,null,null,null,null,null,null,null,null,null,null,null,null,null,null,null,null,null,null,null,null,null,null,null,null,null,null,134]
[null,"Female 5-9",null,null,null,null,null,null,null,null,null,null,null,null,null,null,null,null,null,null,null,null,null,null,null,null,null,null,null,null,null,null,null,null,null,null,null,null,null,null,null,null,null,null,null,null,null,null,null,null,null,null,null,null,null,135]
[null,"Female 10-15",null,null,null,null,null,null,null,null,null,null,null,null,null,null,null,null,null,null,null,null,null,null,null,null,null,null,null,null,null,null,null,null,null,null,null,null,null,null,null,null,null,null,null,null,null,null,null,null,null,null,null,null,null,136]
[null,"Female 16-19",{"$f":"$AR139*C$253","v":0.28531144492383359},0.24216685579543484,0.20519578932660021,0.20038184447883184,0.25867379289718417,0.23782797681814419,0.23329616303381573,0.29077134089217899,0.2384006541831942,0.21878567664639009,{"$f":"$AR139*M$253","v":0.22530572686008279},0.23289564740343172,0.17649932484952532,0.22604049899261675,0.28187728469692941,0.22604049899261675,0.26389482240235074,0.315558451825868,0.23741659847675795,0.25210973729954722,{"$f":"$AR139*W$253","v":0.21458374723994367},0.22239554126955308,0.26432929614269096,0.24361171317202387,0.2300831699738094,0.23414178282765943,0.22459913129559911,0.25867379289718417,0.18853292927524906,0.25050192662473703,{"$f":"$AR139*AG$253","v":0.24361171317202365},0.2389350122529654,0.29015212213626052,0.28187728469692941,0.18260956329747277,0.27891788813587559,0.22638054920930001,0.26174605005300461,0.26174605005300461,0.2146906858508752,0.26627106071077122,0.24049454541874948,{"$f":"$AR139*AS$253","v":0.23329616303381573},0.24244139065172121,0.24244139065172121,0.25925826243728584,0.25859627838943938,0.23680055029658489,0.21017226949901072,0.20637649951835363,0.23119240923935744,0.23333697135630174,0.13189966973215536,137]
[null,"Female 20-24",0.28531144492383359,0.24216685579543484,0.20519578932660021,0.20038184447883184,0.25867379289718417,0.23782797681814419,0.23329616303381573,0.29077134089217899,0.2384006541831942,0.21878567664639009,0.22530572686008279,0.23289564740343172,0.17649932484952532,0.22604049899261675,0.28187728469692941,0.22604049899261675,0.26389482240235074,0.315558451825868,0.23741659847675795,0.25210973729954722,0.21458374723994367,0.22239554126955308,0.26432929614269096,0.24361171317202387,0.2300831699738094,0.23414178282765943,0.22459913129559911,0.25867379289718417,0.18853292927524906,0.25050192662473703,0.24361171317202365,0.2389350122529654,0.29015212213626052,0.28187728469692941,0.18260956329747277,0.27891788813587559,0.22638054920930001,0.26174605005300461,0.26174605005300461,0.2146906858508752,0.26627106071077122,0.24049454541874948,0.23329616303381573,0.24244139065172121,0.24244139065172121,0.25925826243728584,0.25859627838943938,0.23680055029658489,0.21017226949901072,0.20637649951835363,0.23119240923935744,0.23333697135630174,0.13189966973215536,138]
[null,"Female 25-29",0.1923116657171349,0.16323043554013039,0.13831041392004231,0.13506561680861939,0.17435679105935201,0.16030585239313966,0.15725122323931534,0.19599186049023659,0.16069186052548312,0.14747055773437356,0.15186534013607267,0.15698125920739417,0.11896781486919766,0.15236060681830427,0.18999690027282623,0.15236060681830427,0.1778759799974787,0.21269939422848425,0.16002856644657321,0.16993234721631428,0.14463828423901745,0.14990375517893861,0.17816883319422824,0.16420432892491804,0.15508553357526289,0.15782120581103051,0.15138906562128593,0.17435679105935201,0.12707895991039928,0.1688486165965592,0.1642043289249179,0.16105203987445568,0.19557448154343071,0.18999690027282623,0.12308636726083884,0.18800214509458318,0.15258981467085042,0.17642761892714029,0.17642761892714029,0.14471036526753422,0.17947766249344446,0.16210322946460032,0.15725122323931534,0.16341548334122347,0.16341548334122347,0.17475074760339421,0.17430454308834747,0.15961332459841421,0.14166476653502433,0.13910626122215777,0.15583320652926355,0.15727872972954571,8.8905810282172162E-2,139]
[null,"Female 30-34",0.1923116657171349,0.16323043554013039,0.13831041392004231,0.13506561680861939,0.17435679105935201,0.16030585239313966,0.15725122323931534,0.19599186049023659,0.16069186052548312,0.14747055773437356,0.15186534013607267,0.15698125920739417,0.11896781486919766,0.15236060681830427,0.18999690027282623,0.15236060681830427,0.1778759799974787,0.21269939422848425,0.16002856644657321,0.16993234721631428,0.14463828423901745,0.14990375517893861,0.17816883319422824,0.16420432892491804,0.15508553357526289,0.15782120581103051,0.15138906562128593,0.17435679105935201,0.12707895991039928,0.1688486165965592,0.1642043289249179,0.16105203987445568,0.19557448154343071,0.18999690027282623,0.12308636726083884,0.18800214509458318,0.15258981467085042,0.17642761892714029,0.17642761892714029,0.14471036526753422,0.17947766249344446,0.16210322946460032,0.15725122323931534,0.16341548334122347,0.16341548334122347,0.17475074760339421,0.17430454308834747,0.15961332459841421,0.14166476653502433,0.13910626122215777,0.15583320652926355,0.15727872972954571,8.8905810282172162E-2,140]
[null,"Female 35-39",0.24416516942736263,0.20724269014434024,0.17560341710121663,0.17148371675171567,0.22136907436720729,0.2035295438984972,0.19965128699660806,0.24883766486308806,0.20401963242579751,0.18723343475024956,0.19281319396925384,0.19930853184783678,0.15104542184490377,0.19344200071858894,0.24122626764630509,0.19344200071858894,0.22583715153829512,0.27005009516834511,0.20317749260784485,0.21575165601388638,0.18363748785186734,0.19032270166542617,0.22620896751802291,0.20847917698154866,0.19690165669322218,0.20037495547857204,0.19220850029576717,0.22136907436720729,0.16134359640363227,0.21437571623717344,0.2084791769815485,0.20447692788646646,0.24830774692554511,0.24122626764630509,0.15627447042472134,0.23869366134680886,0.19373301049140909,0.22399826503698778,0.22399826503698778,0.18372900427898925,0.22787069992725006,0.20581155250957933,0.19965128699660806,0.20747763287408869,0.20747763287408869,0.22186925445750177,0.22130273863741687,0.20265028800051643,0.17986221269482805,0.17661385081897743,0.19785092668580984,0.19968621013464238,0.1128777193503835,141]
[null,"Female 40-44",0.24416516942736263,0.20724269014434024,0.17560341710121663,0.17148371675171567,0.22136907436720729,0.2035295438984972,0.19965128699660806,0.24883766486308806,0.20401963242579751,0.18723343475024956,0.19281319396925384,0.19930853184783678,0.15104542184490377,0.19344200071858894,0.24122626764630509,0.19344200071858894,0.22583715153829512,0.27005009516834511,0.20317749260784485,0.21575165601388638,0.18363748785186734,0.19032270166542617,0.22620896751802291,0.20847917698154866,0.19690165669322218,0.20037495547857204,0.19220850029576717,0.22136907436720729,0.16134359640363227,0.21437571623717344,0.2084791769815485,0.20447692788646646,0.24830774692554511,0.24122626764630509,0.15627447042472134,0.23869366134680886,0.19373301049140909,0.22399826503698778,0.22399826503698778,0.18372900427898925,0.22787069992725006,0.20581155250957933,0.19965128699660806,0.20747763287408869,0.20747763287408869,0.22186925445750177,0.22130273863741687,0.20265028800051643,0.17986221269482805,0.17661385081897743,0.19785092668580984,0.19968621013464238,0.1128777193503835,142]
[null,"Female 45-49",0.2624154862636095,0.22273320734628513,0.18872903205744088,0.18430140147847632,0.23791547922267181,0.21874251907589826,0.21457437882415281,0.26743723103050654,0.21926923965404357,0.20122834448510166,0.20722516717739176,0.21420600417331659,0.16233543021013924,0.20790097457973175,0.25925691396697143,0.20790097457973175,0.24271752632162608,0.29023520105400302,0.21836415343577464,0.23187818253457326,0.19736361571920036,0.2045485210755851,0.24311713397799115,0.22406211636064449,0.21161922525003576,0.21535213847362941,0.20657527520164154,0.23791547922267181,0.17340334989251727,0.23039939706151674,0.2240621163606443,0.21976071602210628,0.26686770396165277,0.25925691396697143,0.16795532812181529,0.25653500602590334,0.20821373610596075,0.24074119080843279,0.24074119080843279,0.19746197261334963,0.24490307387773214,0.22119509820804598,0.21457437882415281,0.22298571105439235,0.22298571105439235,0.23845304566559172,0.23784418517679937,0.21779754250712763,0.19330615466348613,0.1898149914348787,0.21263944917175467,0.21461191231949375,0.12131485289702684,143]
[null,"Female 50-54",0.2624154862636095,0.22273320734628513,0.18872903205744088,0.18430140147847632,0.23791547922267181,0.21874251907589826,0.21457437882415281,0.26743723103050654,0.21926923965404357,0.20122834448510166,0.20722516717739176,0.21420600417331659,0.16233543021013924,0.20790097457973175,0.25925691396697143,0.20790097457973175,0.24271752632162608,0.29023520105400302,0.21836415343577464,0.23187818253457326,0.19736361571920036,0.2045485210755851,0.24311713397799115,0.22406211636064449,0.21161922525003576,0.21535213847362941,0.20657527520164154,0.23791547922267181,0.17340334989251727,0.23039939706151674,0.2240621163606443,0.21976071602210628,0.26686770396165277,0.25925691396697143,0.16795532812181529,0.25653500602590334,0.20821373610596075,0.24074119080843279,0.24074119080843279,0.19746197261334963,0.24490307387773214,0.22119509820804598,0.21457437882415281,0.22298571105439235,0.22298571105439235,0.23845304566559172,0.23784418517679937,0.21779754250712763,0.19330615466348613,0.1898149914348787,0.21263944917175467,0.21461191231949375,0.12131485289702684,144]
[null,"Female 55-59",0.2188184273817044,0.18572886399028032,0.15737405815522332,0.15368202315336021,0.19838879082377189,0.18240117878415851,0.17892552302931061,0.22300587191194396,0.18284039131014321,0.16779676577708144,0.17279729120146758,0.17861834923049644,0.13536542394160184,0.17336082163596489,0.21618461246261284,0.17336082163596489,0.20239303771242728,0.24201624366654928,0.18208567387426935,0.19335451565298639,0.16457411347537301,0.17056533645293442,0.20272625554259624,0.18683699135271567,0.17646133135005077,0.17957406761714206,0.17225537066877922,0.19838879082377189,0.14459454686330353,0.19212141193545623,0.1868369913527155,0.18325021501180813,0.22253096465958502,0.21618461246261284,0.14005164593477851,0.21391491556467906,0.17362162173693982,0.20074504568599197,0.20074504568599197,0.16465612959875939,0.20421548381118626,0.18444629249435562,0.17892552302931061,0.18593941735777694,0.18593941735777694,0.19883704730942284,0.19832934139408459,0.1816131982818065,0.16119074894908125,0.15827959893162646,0.17731205779652073,0.1789568208027065,0.10115990373488669,145]
[null,"Female 60-64",0.2188184273817044,0.18572886399028032,0.15737405815522332,0.15368202315336021,0.19838879082377189,0.18240117878415851,0.17892552302931061,0.22300587191194396,0.18284039131014321,0.16779676577708144,0.17279729120146758,0.17861834923049644,0.13536542394160184,0.17336082163596489,0.21618461246261284,0.17336082163596489,0.20239303771242728,0.24201624366654928,0.18208567387426935,0.19335451565298639,0.16457411347537301,0.17056533645293442,0.20272625554259624,0.18683699135271567,0.17646133135005077,0.17957406761714206,0.17225537066877922,0.19838879082377189,0.14459454686330353,0.19212141193545623,0.1868369913527155,0.18325021501180813,0.22253096465958502,0.21618461246261284,0.14005164593477851,0.21391491556467906,0.17362162173693982,0.20074504568599197,0.20074504568599197,0.16465612959875939,0.20421548381118626,0.18444629249435562,0.17892552302931061,0.18593941735777694,0.18593941735777694,0.19883704730942284,0.19832934139408459,0.1816131982818065,0.16119074894908125,0.15827959893162646,0.17731205779652073,0.1789568208027065,0.10115990373488669,146]
[null,"Female 65-69",{"$f":"$AR149*C$253","v":0.18343359284486893},0.15569489838853331,0.13192531019169373,0.12883030922032038,0.16630760542608827,0.15290532869589105,0.14999171657358312,0.18694389133394701,0.15327351675312129,0.14066257573704005,{"$f":"$AR149*M$253","v":0.14485447289891482},0.14973421543796805,0.11347566271127021,0.14532687558233667,0.18122568860536623,0.14532687558233667,0.16966433091860206,0.20288012135803424,0.15264084366200401,0.16208741614405839,{"$f":"$AR149*W$253","v":0.13796105421864902},0.14298344456053624,0.16994366454017701,0.15662383196078061,0.14792600602720132,0.15053538588557619,0.1444001856090513,0.16630760542608827,0.12121235653816419,0.16105371597555132,{"$f":"$AR149*AG$253","v":0.15662383196078047},0.15361706841341288,0.18654578069669103,0.18122568860536623,0.11740408202843104,0.17932302134996828,0.14554550204861999,0.16828283347341022,0.16828283347341022,0.13802980762467604,0.17119207170196091,0.15461972980975777,{"$f":"$AR149*AS$253","v":0.14999171657358312},0.15587140345324671,0.15587140345324671,0.16668337495639174,0.16625776948397589,0.15224477146418225,0.13512480903405599,0.13268441718314197,0.14863916264052401,0.15001795322600195,8.4801471320156446E-2,147]
[null,"Female 70-74",0.18343359284486893,0.15569489838853331,0.13192531019169373,0.12883030922032038,0.16630760542608827,0.15290532869589105,0.14999171657358312,0.18694389133394701,0.15327351675312129,0.14066257573704005,0.14485447289891482,0.14973421543796805,0.11347566271127021,0.14532687558233667,0.18122568860536623,0.14532687558233667,0.16966433091860206,0.20288012135803424,0.15264084366200401,0.16208741614405839,0.13796105421864902,0.14298344456053624,0.16994366454017701,0.15662383196078061,0.14792600602720132,0.15053538588557619,0.1444001856090513,0.16630760542608827,0.12121235653816419,0.16105371597555132,0.15662383196078047,0.15361706841341288,0.18654578069669103,0.18122568860536623,0.11740408202843104,0.17932302134996828,0.14554550204861999,0.16828283347341022,0.16828283347341022,0.13802980762467604,0.17119207170196091,0.15461972980975777,0.14999171657358312,0.15587140345324671,0.15587140345324671,0.16668337495639174,0.16625776948397589,0.15224477146418225,0.13512480903405599,0.13268441718314197,0.14863916264052401,0.15001795322600195,8.4801471320156446E-2,148]
[null,"Female 75-79",4.1859293452154146E-2,3.5529361550262199E-2,3.0105174234638786E-2,2.939889927220601E-2,3.795116669138731E-2,3.4892785585311767E-2,3.4227903308614575E-2,4.2660338736608884E-2,3.4976805593283873E-2,3.2099006208160412E-2,3.3055591371754539E-2,3.4169141903831482E-2,2.589499006938082E-2,3.3163393014006975E-2,4.1355452743142028E-2,3.3163393014006975E-2,3.8717166829367995E-2,4.6296964497210165E-2,3.4832430464554011E-2,3.6988125304908435E-2,3.1482522715405213E-2,3.2628625279781845E-2,3.8780910377402007E-2,3.5741342913082383E-2,3.3756511004690549E-2,3.4351967897432258E-2,3.2951923637382342E-2,3.795116669138731E-2,2.7660492953704239E-2,3.6752236348997991E-2,3.5741342913082348E-2,3.505520360937836E-2,4.2569490437053326E-2,4.1355452743142028E-2,2.6791449951400439E-2,4.0921266693845902E-2,3.3213283272746551E-2,3.8401911013544808E-2,3.8401911013544808E-2,3.1498212148044498E-2,3.90657951737058E-2,3.5284009560195895E-2,3.4227903308614575E-2,3.5569639763129553E-2,3.5569639763129553E-2,3.8036916781081377E-2,3.7939794197979784E-2,3.4742047334072108E-2,3.0835295467424834E-2,3.0278401405430165E-2,3.3919252362429014E-2,3.4233890476590569E-2,1.9351579054371428E-2,149]
[null,"Female 80-84",4.1859293452154146E-2,3.5529361550262199E-2,3.0105174234638786E-2,2.939889927220601E-2,3.795116669138731E-2,3.4892785585311767E-2,3.4227903308614575E-2,4.2660338736608884E-2,3.4976805593283873E-2,3.2099006208160412E-2,3.3055591371754539E-2,3.4169141903831482E-2,2.589499006938082E-2,3.3163393014006975E-2,4.1355452743142028E-2,3.3163393014006975E-2,3.8717166829367995E-2,4.6296964497210165E-2,3.4832430464554011E-2,3.6988125304908435E-2,3.1482522715405213E-2,3.2628625279781845E-2,3.8780910377402007E-2,3.5741342913082383E-2,3.3756511004690549E-2,3.4351967897432258E-2,3.2951923637382342E-2,3.795116669138731E-2,2.7660492953704239E-2,3.6752236348997991E-2,3.5741342913082348E-2,3.505520360937836E-2,4.2569490437053326E-2,4.1355452743142028E-2,2.6791449951400439E-2,4.0921266693845902E-2,3.3213283272746551E-2,3.8401911013544808E-2,3.8401911013544808E-2,3.1498212148044498E-2,3.90657951737058E-2,3.5284009560195895E-2,3.4227903308614575E-2,3.5569639763129553E-2,3.5569639763129553E-2,3.8036916781081377E-2,3.7939794197979784E-2,3.4742047334072108E-2,3.0835295467424834E-2,3.0278401405430165E-2,3.3919252362429014E-2,3.4233890476590569E-2,1.9351579054371428E-2,150]
[null,"Female 85-89",4.1859293452154146E-2,3.5529361550262199E-2,3.0105174234638786E-2,2.939889927220601E-2,3.795116669138731E-2,3.4892785585311767E-2,3.4227903308614575E-2,4.2660338736608884E-2,3.4976805593283873E-2,3.2099006208160412E-2,3.3055591371754539E-2,3.4169141903831482E-2,2.589499006938082E-2,3.3163393014006975E-2,4.1355452743142028E-2,3.3163393014006975E-2,3.8717166829367995E-2,4.6296964497210165E-2,3.4832430464554011E-2,3.6988125304908435E-2,3.1482522715405213E-2,3.2628625279781845E-2,3.8780910377402007E-2,3.5741342913082383E-2,3.3756511004690549E-2,3.4351967897432258E-2,3.2951923637382342E-2,3.795116669138731E-2,2.7660492953704239E-2,3.6752236348997991E-2,3.5741342913082348E-2,3.505520360937836E-2,4.2569490437053326E-2,4.1355452743142028E-2,2.6791449951400439E-2,4.0921266693845902E-2,3.3213283272746551E-2,3.8401911013544808E-2,3.8401911013544808E-2,3.1498212148044498E-2,3.90657951737058E-2,3.5284009560195895E-2,3.4227903308614575E-2,3.5569639763129553E-2,3.5569639763129553E-2,3.8036916781081377E-2,3.7939794197979784E-2,3.4742047334072108E-2,3.0835295467424834E-2,3.0278401405430165E-2,3.3919252362429014E-2,3.4233890476590569E-2,1.9351579054371428E-2,151]
[null,"Female 90+",4.1859293452154146E-2,3.5529361550262199E-2,3.0105174234638786E-2,2.939889927220601E-2,3.795116669138731E-2,3.4892785585311767E-2,3.4227903308614575E-2,4.2660338736608884E-2,3.4976805593283873E-2,3.2099006208160412E-2,3.3055591371754539E-2,3.4169141903831482E-2,2.589499006938082E-2,3.3163393014006975E-2,4.1355452743142028E-2,3.3163393014006975E-2,3.8717166829367995E-2,4.6296964497210165E-2,3.4832430464554011E-2,3.6988125304908435E-2,3.1482522715405213E-2,3.2628625279781845E-2,3.8780910377402007E-2,3.5741342913082383E-2,3.3756511004690549E-2,3.4351967897432258E-2,3.2951923637382342E-2,3.795116669138731E-2,2.7660492953704239E-2,3.6752236348997991E-2,3.5741342913082348E-2,3.505520360937836E-2,4.2569490437053326E-2,4.1355452743142028E-2,2.6791449951400439E-2,4.0921266693845902E-2,3.3213283272746551E-2,3.8401911013544808E-2,3.8401911013544808E-2,3.1498212148044498E-2,3.90657951737058E-2,3.5284009560195895E-2,3.4227903308614575E-2,3.5569639763129553E-2,3.5569639763129553E-2,3.8036916781081377E-2,3.7939794197979784E-2,3.4742047334072108E-2,3.0835295467424834E-2,3.0278401405430165E-2,3.3919252362429014E-2,3.4233890476590569E-2,1.9351579054371428E-2,152]
[null,"Male 0-4",null,null,null,null,null,null,null,null,null,null,null,null,null,null,null,null,null,null,null,null,null,null,null,null,null,null,null,null,null,null,null,null,null,null,null,null,null,null,null,null,null,null,null,null,null,null,null,null,null,null,null,null,null,153]
[null,"Male 5-9",null,null,null,null,null,null,null,null,null,null,null,null,null,null,null,null,null,null,null,null,null,null,null,null,null,null,null,null,null,null,null,null,null,null,null,null,null,null,null,null,null,null,null,null,null,null,null,null,null,null,null,null,null,154]
[null,"Male 10-15",null,null,null,null,null,null,null,null,null,null,null,null,null,null,null,null,null,null,null,null,null,null,null,null,null,null,null,null,null,null,null,null,null,null,null,null,null,null,null,null,null,null,null,null,null,null,null,null,null,null,null,null,null,155]
[null,"Male 16-19",{"$f":"$AR158*C$254","v":0.32933355434345946},0.28136181622334078,0.24256280313940384,0.29568612444388764,0.29962789098049553,0.3406200360009245,0.34055596567796992,0.3643926980441145,0.38155175659336393,0.29556497622724903,{"$f":"$AR158*M$254","v":0.31418553582942593},0.25046567437329342,0.31872668944756222,0.31450376740910158,0.34209933312142532,0.31125733121586835,0.34151250507513559,0.40877547897977623,0.40303034160758638,0.28226140836878716,{"$f":"$AR158*W$254","v":0.28226140836878716},0.28345903539792722,0.38760087849798636,0.30120454794717594,0.27380219466949351,0.26563347532241244,0.28575978046142525,0.29962789098049569,0.27748567465759177,0.29131812399226803,{"$f":"$AR158*AG$254","v":0.30120454794717572},0.25417043228895592,0.36577420238174618,0.34209933312142532,0.22513565308983424,0.38853234899552619,0.24254361703548524,0.33493919551968293,0.33493919551968293,0.2632334139511382,0.27091861240757359,0.30078363548549003,{"$f":"$AR158*AS$254","v":0.34055596567796992},0.3308127261710137,0.3308127261710137,0.30350487664785686,0.2590046194147041,0.30457450648737633,0.25735384371086667,0.23374005712425017,0.28557355007023977,0.32705033725695132,0.27817740020570325,156]
[null,"Male 20-24",0.32933355434345946,0.28136181622334078,0.24256280313940384,0.29568612444388764,0.29962789098049553,0.3406200360009245,0.34055596567796992,0.3643926980441145,0.38155175659336393,0.29556497622724903,0.31418553582942593,0.25046567437329342,0.31872668944756222,0.31450376740910158,0.34209933312142532,0.31125733121586835,0.34151250507513559,0.40877547897977623,0.40303034160758638,0.28226140836878716,0.28226140836878716,0.28345903539792722,0.38760087849798636,0.30120454794717594,0.27380219466949351,0.26563347532241244,0.28575978046142525,0.29962789098049569,0.27748567465759177,0.29131812399226803,0.30120454794717572,0.25417043228895592,0.36577420238174618,0.34209933312142532,0.22513565308983424,0.38853234899552619,0.24254361703548524,0.33493919551968293,0.33493919551968293,0.2632334139511382,0.27091861240757359,0.30078363548549003,0.34055596567796992,0.3308127261710137,0.3308127261710137,0.30350487664785686,0.2590046194147041,0.30457450648737633,0.25735384371086667,0.23374005712425017,0.28557355007023977,0.32705033725695132,0.27817740020570325,157]
[null,"Male 25-29",0.20912933667071187,0.17866691448600208,0.15402924315640545,0.18776296023330444,0.1902660122613766,0.21629633921643557,0.21625565406922523,0.23139216221540196,0.2422882961955917,0.18768603018518049,0.1995102285599977,0.15904762709311712,0.20239389598882646,0.19971230805747833,0.21723570425066649,0.19765079613839034,0.2168630639337544,0.25957556902063927,0.25592736265999871,0.1792381624082687,0.1792381624082687,0.17999866477093343,0.24612953506927979,0.19126720154576776,0.17386649673267182,0.16867929720206257,0.18145965555863791,0.19026601226137671,0.17620553481850096,0.18498924639523034,0.19126720154576765,0.16140017682638866,0.23226942808134929,0.21723570425066649,0.14296286901425959,0.24672102598998835,0.15401705983304567,0.21268896187542166,0.21268896187542166,0.16715523979605609,0.17203539984710564,0.19099991889950269,0.21625565406922523,0.21006862214295929,0.21006862214295929,0.19272792793988525,0.16446992278338726,0.19340715110397441,0.16342166753158371,0.14842673166788881,0.18134139782977032,0.20767947628303113,0.17664478585480406,158]
[null,"Male 30-34",0.20912933667071187,0.17866691448600208,0.15402924315640545,0.18776296023330444,0.1902660122613766,0.21629633921643557,0.21625565406922523,0.23139216221540196,0.2422882961955917,0.18768603018518049,0.1995102285599977,0.15904762709311712,0.20239389598882646,0.19971230805747833,0.21723570425066649,0.19765079613839034,0.2168630639337544,0.25957556902063927,0.25592736265999871,0.1792381624082687,0.1792381624082687,0.17999866477093343,0.24612953506927979,0.19126720154576776,0.17386649673267182,0.16867929720206257,0.18145965555863791,0.19026601226137671,0.17620553481850096,0.18498924639523034,0.19126720154576765,0.16140017682638866,0.23226942808134929,0.21723570425066649,0.14296286901425959,0.24672102598998835,0.15401705983304567,0.21268896187542166,0.21268896187542166,0.16715523979605609,0.17203539984710564,0.19099991889950269,0.21625565406922523,0.21006862214295929,0.21006862214295929,0.19272792793988525,0.16446992278338726,0.19340715110397441,0.16342166753158371,0.14842673166788881,0.18134139782977032,0.20767947628303113,0.17664478585480406,159]
[null,"Male 35-39",0.24829837220631282,0.21213046787333739,0.1828782654636612,0.22293016431251056,0.22590202734240497,0.25680772385458839,0.25675941855229972,0.27473093031346923,0.2876678638575324,0.22283882559348137,0.23687764604713421,0.18883657137343327,0.24030141212396133,0.23711757417524623,0.25792302796552868,0.23466994983930986,0.25748059370173426,0.30819296937682361,0.30386146947709369,0.21280870810248509,0.21280870810248509,0.21371164932400311,0.2922285504392248,0.22709073512268238,0.20643095228629679,0.20027221233969797,0.21544627747407769,0.22590202734240511,0.20920808225995718,0.21963694566646119,0.22709073512268221,0.19162974366865015,0.27577250434595352,0.25792302796552868,0.16973920649917268,0.29293082509434892,0.18286380025563992,0.25252470007625527,0.25252470007625527,0.19846270546187417,0.2042568987399308,0.2267733915732639,0.25675941855229972,0.24941358185364843,0.24941358185364843,0.22882504935937531,0.1952744399907631,0.22963148813402565,0.19402985098750258,0.17622642739535507,0.2153058705754278,0.24657695913285968,0.20972960314765415,160]
[null,"Male 40-44",0.24829837220631282,0.21213046787333739,0.1828782654636612,0.22293016431251056,0.22590202734240497,0.25680772385458839,0.25675941855229972,0.27473093031346923,0.2876678638575324,0.22283882559348137,0.23687764604713421,0.18883657137343327,0.24030141212396133,0.23711757417524623,0.25792302796552868,0.23466994983930986,0.25748059370173426,0.30819296937682361,0.30386146947709369,0.21280870810248509,0.21280870810248509,0.21371164932400311,0.2922285504392248,0.22709073512268238,0.20643095228629679,0.20027221233969797,0.21544627747407769,0.22590202734240511,0.20920808225995718,0.21963694566646119,0.22709073512268221,0.19162974366865015,0.27577250434595352,0.25792302796552868,0.16973920649917268,0.29293082509434892,0.18286380025563992,0.25252470007625527,0.25252470007625527,0.19846270546187417,0.2042568987399308,0.2267733915732639,0.25675941855229972,0.24941358185364843,0.24941358185364843,0.22882504935937531,0.1952744399907631,0.22963148813402565,0.19402985098750258,0.17622642739535507,0.2153058705754278,0.24657695913285968,0.20972960314765415,161]
[null,"Male 45-49",0.24143291308855119,0.20626505263974121,0.17782167470186319,0.21676613707542619,0.2196558279833126,0.249706980850989,0.24966001119208409,0.26713460999251071,0.27971383684858087,0.21667732387533531,0.23032797042744496,0.18361523323423132,0.23365706924640661,0.23056126453399609,0.25079144676226856,0.2281813171009113,0.25036124582212982,0.29967142244585926,0.29545968867756206,0.20692453950162409,0.20692453950162409,0.20780251436517935,0.28414842027866055,0.22081166794977414,0.20072312886816912,0.1947346783074595,0.20948917998314776,0.21965582798331271,0.20342347109598383,0.21356397604598301,0.220811667949774,0.18633117421282183,0.26814738446471353,0.25079144676226856,0.16504591120067158,0.28483127701375821,0.17780760945737537,0.24554238283755017,0.24554238283755017,0.19297520436131632,0.19860918798226793,0.2205030989611611,0.24966001119208409,0.24251728714814821,0.24251728714814821,0.22249802833407742,0.18987509454766682,0.22328216904696788,0.18866491847609157,0.17135376020063539,0.20935265534040623,0.23975909714984991,0.20393057191196737,162]
[null,"Male 50-54",0.24143291308855119,0.20626505263974121,0.17782167470186319,0.21676613707542619,0.2196558279833126,0.249706980850989,0.24966001119208409,0.26713460999251071,0.27971383684858087,0.21667732387533531,0.23032797042744496,0.18361523323423132,0.23365706924640661,0.23056126453399609,0.25079144676226856,0.2281813171009113,0.25036124582212982,0.29967142244585926,0.29545968867756206,0.20692453950162409,0.20692453950162409,0.20780251436517935,0.28414842027866055,0.22081166794977414,0.20072312886816912,0.1947346783074595,0.20948917998314776,0.21965582798331271,0.20342347109598383,0.21356397604598301,0.220811667949774,0.18633117421282183,0.26814738446471353,0.25079144676226856,0.16504591120067158,0.28483127701375821,0.17780760945737537,0.24554238283755017,0.24554238283755017,0.19297520436131632,0.19860918798226793,0.2205030989611611,0.24966001119208409,0.24251728714814821,0.24251728714814821,0.22249802833407742,0.18987509454766682,0.22328216904696788,0.18866491847609157,0.17135376020063539,0.20935265534040623,0.23975909714984991,0.20393057191196737,163]
[null,"Male 55-59",0.29440261032758486,0.25151902091420403,0.21683524642661361,0.26432401352928353,0.26784769443690537,0.30449198511964387,0.30443471045062337,0.32574318672861113,0.34108226032447847,0.26421571496466856,0.28086127470293981,0.22389989528991605,0.28492076837264224,0.28114575287562993,0.30581437977995635,0.27824365171726134,0.30528979397215572,0.36541848366913887,0.36028270744240398,0.25232319732549496,0.25232319732549496,0.25339379738712731,0.34648977879753795,0.26925712241792971,0.24476121476542551,0.23745891511482245,0.25545051266396096,0.26784769443690548,0.24805400442892458,0.26041930744055086,0.26925712241792954,0.2272117060259255,0.32697816105118954,0.30581437977995635,0.20125651660240285,0.3473224523660286,0.21681809530732693,0.29941368609886471,0.29941368609886471,0.23531341756885224,0.24218348123719169,0.26888085426727992,0.30443471045062337,0.29572489298421584,0.29572489298421584,0.27131346549369678,0.23153315244358397,0.27226964445780683,0.23005746716989861,0.20894828980509159,0.25528403490132717,0.29236156391325097,0.24867236172750073,164]
[null,"Male 60-64",0.29440261032758486,0.25151902091420403,0.21683524642661361,0.26432401352928353,0.26784769443690537,0.30449198511964387,0.30443471045062337,0.32574318672861113,0.34108226032447847,0.26421571496466856,0.28086127470293981,0.22389989528991605,0.28492076837264224,0.28114575287562993,0.30581437977995635,0.27824365171726134,0.30528979397215572,0.36541848366913887,0.36028270744240398,0.25232319732549496,0.25232319732549496,0.25339379738712731,0.34648977879753795,0.26925712241792971,0.24476121476542551,0.23745891511482245,0.25545051266396096,0.26784769443690548,0.24805400442892458,0.26041930744055086,0.26925712241792954,0.2272117060259255,0.32697816105118954,0.30581437977995635,0.20125651660240285,0.3473224523660286,0.21681809530732693,0.29941368609886471,0.29941368609886471,0.23531341756885224,0.24218348123719169,0.26888085426727992,0.30443471045062337,0.29572489298421584,0.29572489298421584,0.27131346549369678,0.23153315244358397,0.27226964445780683,0.23005746716989861,0.20894828980509159,0.25528403490132717,0.29236156391325097,0.24867236172750073,165]
[null,"Male 65-69",{"$f":"$AR168*C$254","v":0.29424016595637209},0.25138023868956616,0.21671560188533953,0.26417816581371328,0.26769990243786301,0.30432397367094427,0.30426673060472642,0.32556344937137072,0.34089405923057992,0.26406992700567528,{"$f":"$AR168*M$254","v":0.28070630211925124},0.2237763526431151,0.28476355585671975,0.28099062332363922,0.30564563866527705,0.27809012347579343,0.30512134231147137,0.36521685442494467,0.36008391199760753,0.2521839713754046,{"$f":"$AR168*W$254","v":0.2521839713754046},0.25325398070533917,0.34629859396332136,0.26910855272998752,0.24462616133778914,0.23732789092277548,0.25530956113550984,0.26769990243786318,0.24791713411812324,0.26027561424910201,{"$f":"$AR168*AG$254","v":0.26910855272998735},0.22708633600058337,0.32679774226443636,0.30564563866527705,0.20114546803440417,0.34713080808230468,0.21669846022963329,0.2992484767350051,0.2992484767350051,0.23518357721141669,0.24204985014172037,0.26873249219517059,{"$f":"$AR168*AS$254","v":0.30426673060472642},0.29556171900882433,0.29556171900882433,0.27116376116446333,0.23140539794670043,0.27211941253172078,0.22993052692111607,0.20883299709924361,0.25514317523135327,0.29220024574299486,0.24853515022182196,166]
[null,"Male 70-74",0.29424016595637209,0.25138023868956616,0.21671560188533953,0.26417816581371328,0.26769990243786301,0.30432397367094427,0.30426673060472642,0.32556344937137072,0.34089405923057992,0.26406992700567528,0.28070630211925124,0.2237763526431151,0.28476355585671975,0.28099062332363922,0.30564563866527705,0.27809012347579343,0.30512134231147137,0.36521685442494467,0.36008391199760753,0.2521839713754046,0.2521839713754046,0.25325398070533917,0.34629859396332136,0.26910855272998752,0.24462616133778914,0.23732789092277548,0.25530956113550984,0.26769990243786318,0.24791713411812324,0.26027561424910201,0.26910855272998735,0.22708633600058337,0.32679774226443636,0.30564563866527705,0.20114546803440417,0.34713080808230468,0.21669846022963329,0.2992484767350051,0.2992484767350051,0.23518357721141669,0.24204985014172037,0.26873249219517059,0.30426673060472642,0.29556171900882433,0.29556171900882433,0.27116376116446333,0.23140539794670043,0.27211941253172078,0.22993052692111607,0.20883299709924361,0.25514317523135327,0.29220024574299486,0.24853515022182196,167]
[null,"Male 75-79",0.15386960015245063,0.13145648109485608,0.11332899742123982,0.13814901378485159,0.139990666519239,0.15914281448745571,0.15911287986693304,0.17024976048461396,0.17826673125222664,0.13809241151214807,0.14679221759875716,0.11702133797013732,0.14891391301131984,0.14694090018902098,0.1598339643974365,0.14542411627075588,0.15955978948980873,0.19098606465452556,0.18830184988618209,0.13187678410344586,0.13187678410344586,0.13243633350154141,0.18109297217563702,0.14072730441671752,0.12792451196977495,0.12410796317565445,0.13351127627097439,0.13999066651923908,0.12964548933592318,0.13610821814137,0.14072730441671741,0.11875225670473463,0.17089522013255065,0.1598339643974365,0.1051867702641263,0.18152816923078066,0.11332003338432496,0.15648864019561637,0.15648864019561637,0.12298661833037891,0.12657725887698626,0.14053064777081969,0.15911287986693304,0.15456069152367841,0.15456069152367841,0.14180205265516713,0.12101086178851926,0.14230179983715741,0.12023959449995761,0.10920687751060801,0.13342426662543411,0.1528028467180409,0.12996867393736874,168]
[null,"Male 80-84",0.15386960015245063,0.13145648109485608,0.11332899742123982,0.13814901378485159,0.139990666519239,0.15914281448745571,0.15911287986693304,0.17024976048461396,0.17826673125222664,0.13809241151214807,0.14679221759875716,0.11702133797013732,0.14891391301131984,0.14694090018902098,0.1598339643974365,0.14542411627075588,0.15955978948980873,0.19098606465452556,0.18830184988618209,0.13187678410344586,0.13187678410344586,0.13243633350154141,0.18109297217563702,0.14072730441671752,0.12792451196977495,0.12410796317565445,0.13351127627097439,0.13999066651923908,0.12964548933592318,0.13610821814137,0.14072730441671741,0.11875225670473463,0.17089522013255065,0.1598339643974365,0.1051867702641263,0.18152816923078066,0.11332003338432496,0.15648864019561637,0.15648864019561637,0.12298661833037891,0.12657725887698626,0.14053064777081969,0.15911287986693304,0.15456069152367841,0.15456069152367841,0.14180205265516713,0.12101086178851926,0.14230179983715741,0.12023959449995761,0.10920687751060801,0.13342426662543411,0.1528028467180409,0.12996867393736874,169]
[null,"Male 85-89",0.15386960015245063,0.13145648109485608,0.11332899742123982,0.13814901378485159,0.139990666519239,0.15914281448745571,0.15911287986693304,0.17024976048461396,0.17826673125222664,0.13809241151214807,0.14679221759875716,0.11702133797013732,0.14891391301131984,0.14694090018902098,0.1598339643974365,0.14542411627075588,0.15955978948980873,0.19098606465452556,0.18830184988618209,0.13187678410344586,0.13187678410344586,0.13243633350154141,0.18109297217563702,0.14072730441671752,0.12792451196977495,0.12410796317565445,0.13351127627097439,0.13999066651923908,0.12964548933592318,0.13610821814137,0.14072730441671741,0.11875225670473463,0.17089522013255065,0.1598339643974365,0.1051867702641263,0.18152816923078066,0.11332003338432496,0.15648864019561637,0.15648864019561637,0.12298661833037891,0.12657725887698626,0.14053064777081969,0.15911287986693304,0.15456069152367841,0.15456069152367841,0.14180205265516713,0.12101086178851926,0.14230179983715741,0.12023959449995761,0.10920687751060801,0.13342426662543411,0.1528028467180409,0.12996867393736874,170]
[null,"Male 90+",0.15386960015245063,0.13145648109485608,0.11332899742123982,0.13814901378485159,0.139990666519239,0.15914281448745571,0.15911287986693304,0.17024976048461396,0.17826673125222664,0.13809241151214807,0.14679221759875716,0.11702133797013732,0.14891391301131984,0.14694090018902098,0.1598339643974365,0.14542411627075588,0.15955978948980873,0.19098606465452556,0.18830184988618209,0.13187678410344586,0.13187678410344586,0.13243633350154141,0.18109297217563702,0.14072730441671752,0.12792451196977495,0.12410796317565445,0.13351127627097439,0.13999066651923908,0.12964548933592318,0.13610821814137,0.14072730441671741,0.11875225670473463,0.17089522013255065,0.1598339643974365,0.1051867702641263,0.18152816923078066,0.11332003338432496,0.15648864019561637,0.15648864019561637,0.12298661833037891,0.12657725887698626,0.14053064777081969,0.15911287986693304,0.15456069152367841,0.15456069152367841,0.14180205265516713,0.12101086178851926,0.14230179983715741,0.12023959449995761,0.10920687751060801,0.13342426662543411,0.1528028467180409,0.12996867393736874,171]
["SIMD Q4","Female 0-4",null,null,null,null,null,null,null,null,null,null,null,null,null,null,null,null,null,null,null,null,null,null,null,null,null,null,null,null,null,null,null,null,null,null,null,null,null,null,null,null,null,null,null,null,null,null,null,null,null,null,null,null,null,172]
[null,"Female 5-9",null,null,null,null,null,null,null,null,null,null,null,null,null,null,null,null,null,null,null,null,null,null,null,null,null,null,null,null,null,null,null,null,null,null,null,null,null,null,null,null,null,null,null,null,null,null,null,null,null,null,null,null,null,173]
[null,"Female 10-15",null,null,null,null,null,null,null,null,null,null,null,null,null,null,null,null,null,null,null,null,null,null,null,null,null,null,null,null,null,null,null,null,null,null,null,null,null,null,null,null,null,null,null,null,null,null,null,null,null,null,null,null,null,174]
[null,"Female 16-19",{"$f":"$AR177*C$253","v":0.19777567051846254},0.16786817751063535,0.14224012230728234,0.13890313324832448,0.17931065769006205,0.16486050041145273,0.1617190824073497,0.20156042786105299,0.16525747589869175,0.1516605263070564,{"$f":"$AR177*M$253","v":0.15618017431196332},0.1614414480931235,0.12234795673019573,0.15668951262900482,0.19539513740761899,0.15668951262900482,0.18292983466158752,0.21874266002294387,0.1645753361506003,0.17476050549588809,{"$f":"$AR177*W$253","v":0.14874778158329305},0.15416285633632504,0.18323100847303903,0.16886974138598121,0.15949186065329929,0.16230525945950325,0.15569036777234679,0.17931065769006205,0.13068955755411921,0.17364598366392231,{"$f":"$AR177*AG$253","v":0.16886974138598104},0.16562788874902154,0.20113119024430726,0.19539513740761899,0.12658352641227807,0.19334370677065768,0.15692523278959086,0.18144032241192323,0.18144032241192323,0.14882191059514163,0.18457702454170247,0.16670894498790137,{"$f":"$AR177*AS$253","v":0.1617190824073497},0.16805848293387982,0.16805848293387982,0.17971580742116408,0.17925692523727443,0.16414829635225667,0.14568977958683196,0.14305858141229424,0.16026077666915606,0.16174737041852486,9.143182331646324E-2,175]
[null,"Female 20-24",0.19777567051846254,0.16786817751063535,0.14224012230728234,0.13890313324832448,0.17931065769006205,0.16486050041145273,0.1617190824073497,0.20156042786105299,0.16525747589869175,0.1516605263070564,0.15618017431196332,0.1614414480931235,0.12234795673019573,0.15668951262900482,0.19539513740761899,0.15668951262900482,0.18292983466158752,0.21874266002294387,0.1645753361506003,0.17476050549588809,0.14874778158329305,0.15416285633632504,0.18323100847303903,0.16886974138598121,0.15949186065329929,0.16230525945950325,0.15569036777234679,0.17931065769006205,0.13068955755411921,0.17364598366392231,0.16886974138598104,0.16562788874902154,0.20113119024430726,0.19539513740761899,0.12658352641227807,0.19334370677065768,0.15692523278959086,0.18144032241192323,0.18144032241192323,0.14882191059514163,0.18457702454170247,0.16670894498790137,0.1617190824073497,0.16805848293387982,0.16805848293387982,0.17971580742116408,0.17925692523727443,0.16414829635225667,0.14568977958683196,0.14305858141229424,0.16026077666915606,0.16174737041852486,9.143182331646324E-2,176]
[null,"Female 25-29",0.14540123991047232,0.12341377019515205,0.10457246886980172,0.10211917243820218,0.1318260830007574,0.12120257820007467,0.11889306221321813,0.1481837278116904,0.1214944276874626,0.11149818636798538,0.11482095312766633,0.11868895028466615,8.9948094032236414E-2,0.11519540981709434,0.1436511132894516,0.11519540981709434,0.13448683908736669,0.16081580664231337,0.12099293038547038,0.12848089009062902,0.10935678700744907,0.11333785596924154,0.13470825684567242,0.12415010257083336,0.1172556474404831,0.11932400940690865,0.1144608558619622,0.1318260830007574,9.6080694161752689E-2,0.12766151298600184,0.12415010257083327,0.1217667487852778,0.14786815976670573,0.1436511132894516,9.3062011340101072E-2,0.14214293709456083,0.11536870718744963,0.13339177553685377,0.13339177553685377,0.10941128537020453,0.13569782449476714,0.12256152256677488,0.11889306221321813,0.12355367943893768,0.12355367943893768,0.13212394205034222,0.13178657983417341,0.12067897813842447,0.10710859702144855,0.10517418579672594,0.11782094114824559,0.11891385906800157,6.7219089398804263E-2,177]
[null,"Female 30-34",0.14540123991047232,0.12341377019515205,0.10457246886980172,0.10211917243820218,0.1318260830007574,0.12120257820007467,0.11889306221321813,0.1481837278116904,0.1214944276874626,0.11149818636798538,0.11482095312766633,0.11868895028466615,8.9948094032236414E-2,0.11519540981709434,0.1436511132894516,0.11519540981709434,0.13448683908736669,0.16081580664231337,0.12099293038547038,0.12848089009062902,0.10935678700744907,0.11333785596924154,0.13470825684567242,0.12415010257083336,0.1172556474404831,0.11932400940690865,0.1144608558619622,0.1318260830007574,9.6080694161752689E-2,0.12766151298600184,0.12415010257083327,0.1217667487852778,0.14786815976670573,0.1436511132894516,9.3062011340101072E-2,0.14214293709456083,0.11536870718744963,0.13339177553685377,0.13339177553685377,0.10941128537020453,0.13569782449476714,0.12256152256677488,0.11889306221321813,0.12355367943893768,0.12355367943893768,0.13212394205034222,0.13178657983417341,0.12067897813842447,0.10710859702144855,0.10517418579672594,0.11782094114824559,0.11891385906800157,6.7219089398804263E-2,178]
[null,"Female 35-39",0.22435676736790858,0.19042970023308595,0.16135722835483315,0.15757174717786518,0.20341005245233371,0.18701779062109902,0.18345416529496919,0.22865019699163108,0.187468119707623,0.17204373687809324,0.17717082664279246,0.1831392168633097,0.13879155102393154,0.17774862014999421,0.22165629004447929,0.17774862014999421,0.20751564766399569,0.24814172521601341,0.1866943002162075,0.19824835872812227,0.16873951857521322,0.17488238065456294,0.20785729930686964,0.19156587452993454,0.18092760441091149,0.18411912468143804,0.17661518998851669,0.20341005245233371,0.14825426496959984,0.19698404489859356,0.19156587452993437,0.18788831613256077,0.2281632697377716,0.22165629004447929,0.14359638227209462,0.21932914664518455,0.17801602115586054,0.20582594461602458,0.20582594461602458,0.16882361054376993,0.20938422025320719,0.18911466658538528,0.18345416529496919,0.19064558275018112,0.19064558275018112,0.20386965440302737,0.20334909834519518,0.18620986616806265,0.16527052038786247,0.16228568855694969,0.18179986292098405,0.18348625522153039,0.10372028197432162,179]
[null,"Female 40-44",0.22435676736790858,0.19042970023308595,0.16135722835483315,0.15757174717786518,0.20341005245233371,0.18701779062109902,0.18345416529496919,0.22865019699163108,0.187468119707623,0.17204373687809324,0.17717082664279246,0.1831392168633097,0.13879155102393154,0.17774862014999421,0.22165629004447929,0.17774862014999421,0.20751564766399569,0.24814172521601341,0.1866943002162075,0.19824835872812227,0.16873951857521322,0.17488238065456294,0.20785729930686964,0.19156587452993454,0.18092760441091149,0.18411912468143804,0.17661518998851669,0.20341005245233371,0.14825426496959984,0.19698404489859356,0.19156587452993437,0.18788831613256077,0.2281632697377716,0.22165629004447929,0.14359638227209462,0.21932914664518455,0.17801602115586054,0.20582594461602458,0.20582594461602458,0.16882361054376993,0.20938422025320719,0.18911466658538528,0.18345416529496919,0.19064558275018112,0.19064558275018112,0.20386965440302737,0.20334909834519518,0.18620986616806265,0.16527052038786247,0.16228568855694969,0.18179986292098405,0.18348625522153039,0.10372028197432162,180]
[null,"Female 45-49",0.28687448275791849,0.24349353218540823,0.20631992503099864,0.20147960767675663,0.26009090017478559,0.23913088328188548,0.23457424260565357,0.29236428998331482,0.2397066979777514,0.21998426259952444,0.22654003197326295,0.23417153280782704,0.17746625108868794,0.22727882944955025,0.28342150897670915,0.22727882944955025,0.26534053234134075,0.31728719354949836,0.2387172512632523,0.25349088433991773,0.21575931352542962,0.22361390334832948,0.26577738628375891,0.24494630500592582,0.23134364762394802,0.23542449500626628,0.22582956542631313,0.26009090017478559,0.18956577989050122,0.2518742655049041,0.2449463050059256,0.24024398345157477,0.29174167892624514,0.28342150897670915,0.18360996360169424,0.28044589978600698,0.2276207425825785,0.26317998825083733,0.26317998825083733,0.21586683798420492,0.26772978853055412,0.24181206029615268,0.23457424260565357,0.24376957104153332,0.24376957104153332,0.26067857164744307,0.2600129610149266,0.23809782815147254,0.21132366813634942,0.20750710357421021,0.23245896369773475,0.23461527449068195,0.13262226315685902,181]
[null,"Female 50-54",0.28687448275791849,0.24349353218540823,0.20631992503099864,0.20147960767675663,0.26009090017478559,0.23913088328188548,0.23457424260565357,0.29236428998331482,0.2397066979777514,0.21998426259952444,0.22654003197326295,0.23417153280782704,0.17746625108868794,0.22727882944955025,0.28342150897670915,0.22727882944955025,0.26534053234134075,0.31728719354949836,0.2387172512632523,0.25349088433991773,0.21575931352542962,0.22361390334832948,0.26577738628375891,0.24494630500592582,0.23134364762394802,0.23542449500626628,0.22582956542631313,0.26009090017478559,0.18956577989050122,0.2518742655049041,0.2449463050059256,0.24024398345157477,0.29174167892624514,0.28342150897670915,0.18360996360169424,0.28044589978600698,0.2276207425825785,0.26317998825083733,0.26317998825083733,0.21586683798420492,0.26772978853055412,0.24181206029615268,0.23457424260565357,0.24376957104153332,0.24376957104153332,0.26067857164744307,0.2600129610149266,0.23809782815147254,0.21132366813634942,0.20750710357421021,0.23245896369773475,0.23461527449068195,0.13262226315685902,182]
[null,"Female 55-59",0.31966587520066742,0.27132623411972639,0.2299034712753649,0.22450987799227584,0.28982077609970808,0.26646490952044277,0.26138741878045318,0.32578319875805811,0.26710654312597581,0.24512972069945937,0.25243485196914534,0.26093867695184403,0.19775165754536228,0.25325809821810752,0.31581820678762601,0.25325809821810752,0.29567047121678669,0.35355493259940118,0.26600399699878441,0.28246634074558263,0.24042183580685825,0.24917425012388322,0.29615726006079757,0.27294506717407785,0.25778754833426487,0.26233485988839128,0.25164317503661326,0.28982077609970808,0.21123423162014052,0.28066493314114049,0.27294506717407763,0.26770524339924928,0.32508941969986366,0.31581820678762601,0.20459763150083859,0.31250246846521956,0.25363909397576895,0.29326296459242363,0.29326296459242363,0.24054165092561486,0.29833283303949365,0.26945256038640319,0.26138741878045318,0.27163382579426054,0.27163382579426054,0.29047562177936387,0.28973392804857012,0.26531377028624098,0.23547917080665098,0.23122635110903564,0.25903035140766778,0.26143314084437685,0.14778174557583706,183]
[null,"Female 60-64",0.31966587520066742,0.27132623411972639,0.2299034712753649,0.22450987799227584,0.28982077609970808,0.26646490952044277,0.26138741878045318,0.32578319875805811,0.26710654312597581,0.24512972069945937,0.25243485196914534,0.26093867695184403,0.19775165754536228,0.25325809821810752,0.31581820678762601,0.25325809821810752,0.29567047121678669,0.35355493259940118,0.26600399699878441,0.28246634074558263,0.24042183580685825,0.24917425012388322,0.29615726006079757,0.27294506717407785,0.25778754833426487,0.26233485988839128,0.25164317503661326,0.28982077609970808,0.21123423162014052,0.28066493314114049,0.27294506717407763,0.26770524339924928,0.32508941969986366,0.31581820678762601,0.20459763150083859,0.31250246846521956,0.25363909397576895,0.29326296459242363,0.29326296459242363,0.24054165092561486,0.29833283303949365,0.26945256038640319,0.26138741878045318,0.27163382579426054,0.27163382579426054,0.29047562177936387,0.28973392804857012,0.26531377028624098,0.23547917080665098,0.23122635110903564,0.25903035140766778,0.26143314084437685,0.14778174557583706,184]
[null,"Female 65-69",{"$f":"$AR187*C$253","v":0.15922441042893276},0.13514661092459901,0.11451408332655404,0.11182755411834812,0.14435867505583341,0.13272520281296149,0.13019612313241785,0.16227142705595657,0.13304479817949302,0.12209822281618031,{"$f":"$AR187*M$253","v":0.12573688214693166},0.12997260645879652,9.8499381781802342E-2,0.12614693811098021,0.15730790077894913,0.12614693811098021,0.14727238692958647,0.17610442673007337,0.13249562396137371,0.14069545753984666,{"$f":"$AR187*W$253","v":0.11975324246467693},0.12411278822032956,0.14751485468327574,0.13595294578439651,0.12840304074896022,0.13066804010426503,0.12534255074464021,0.14435867505583341,0.10521500291831988,0.13979818296032065,{"$f":"$AR187*AG$253","v":0.13595294578439637},0.13334300860929185,0.16192585822900687,0.15730790077894913,0.10190933652341586,0.15565634357350649,0.12633671071292429,0.14607321663145151,0.14607321663145151,0.119812921939793,0.14859849967559952,0.13421334084896991,{"$f":"$AR187*AS$253","v":0.13019612313241785},0.13529982121956652,0.13529982121956652,0.14468485130845868,0.14431541635726056,0.13215182454487973,0.11729131899501757,0.11517300496294181,0.12902207644214339,0.13021889712625523,7.3609550274017083E-2,185]
[null,"Female 70-74",0.15922441042893276,0.13514661092459901,0.11451408332655404,0.11182755411834812,0.14435867505583341,0.13272520281296149,0.13019612313241785,0.16227142705595657,0.13304479817949302,0.12209822281618031,0.12573688214693166,0.12997260645879652,9.8499381781802342E-2,0.12614693811098021,0.15730790077894913,0.12614693811098021,0.14727238692958647,0.17610442673007337,0.13249562396137371,0.14069545753984666,0.11975324246467693,0.12411278822032956,0.14751485468327574,0.13595294578439651,0.12840304074896022,0.13066804010426503,0.12534255074464021,0.14435867505583341,0.10521500291831988,0.13979818296032065,0.13595294578439637,0.13334300860929185,0.16192585822900687,0.15730790077894913,0.10190933652341586,0.15565634357350649,0.12633671071292429,0.14607321663145151,0.14607321663145151,0.119812921939793,0.14859849967559952,0.13421334084896991,0.13019612313241785,0.13529982121956652,0.13529982121956652,0.14468485130845868,0.14431541635726056,0.13215182454487973,0.11729131899501757,0.11517300496294181,0.12902207644214339,0.13021889712625523,7.3609550274017083E-2,186]
[null,"Female 75-79",0.1021749746378164,8.672414930856967E-2,7.3484169469013483E-2,7.1760212363612796E-2,9.2635569651940475E-2,8.5170321527214543E-2,8.354740044670661E-2,0.10413025803782069,8.5375407219676888E-2,7.8350943714964261E-2,8.0685886729252324E-2,8.3403968856055E-2,6.320746805269678E-2,8.0949021368054749E-2,0.10094514232534187,8.0949021368054749E-2,9.45053108304484E-2,0.11300695217699384,8.5022999811435115E-2,9.0284867546776712E-2,7.6846159949110857E-2,7.9643698817782133E-2,9.4660903408979244E-2,8.7241577783433902E-2,8.2396771930892024E-2,8.3850231554699076E-2,8.0432842607942756E-2,9.2635569651940475E-2,6.7516910414281942E-2,8.9709082670831775E-2,8.7241577783433819E-2,8.556677010818968E-2,0.10390850506643842,0.10094514232534187,6.5395650369100902E-2,9.9885331112196746E-2,8.1070799245820821E-2,9.3735798200643122E-2,9.3735798200643122E-2,7.6884456519592456E-2,9.5356282963589029E-2,8.612526597120479E-2,8.354740044670661E-2,8.6822464999991536E-2,8.6822464999991536E-2,9.2844878326720087E-2,9.2607810362911602E-2,8.480238227819295E-2,7.5266333291910181E-2,7.3907002257684901E-2,8.2794009741856453E-2,8.3562014614449287E-2,4.7235558367513426E-2,187]
[null,"Female 80-84",0.1021749746378164,8.672414930856967E-2,7.3484169469013483E-2,7.1760212363612796E-2,9.2635569651940475E-2,8.5170321527214543E-2,8.354740044670661E-2,0.10413025803782069,8.5375407219676888E-2,7.8350943714964261E-2,8.0685886729252324E-2,8.3403968856055E-2,6.320746805269678E-2,8.0949021368054749E-2,0.10094514232534187,8.0949021368054749E-2,9.45053108304484E-2,0.11300695217699384,8.5022999811435115E-2,9.0284867546776712E-2,7.6846159949110857E-2,7.9643698817782133E-2,9.4660903408979244E-2,8.7241577783433902E-2,8.2396771930892024E-2,8.3850231554699076E-2,8.0432842607942756E-2,9.2635569651940475E-2,6.7516910414281942E-2,8.9709082670831775E-2,8.7241577783433819E-2,8.556677010818968E-2,0.10390850506643842,0.10094514232534187,6.5395650369100902E-2,9.9885331112196746E-2,8.1070799245820821E-2,9.3735798200643122E-2,9.3735798200643122E-2,7.6884456519592456E-2,9.5356282963589029E-2,8.612526597120479E-2,8.354740044670661E-2,8.6822464999991536E-2,8.6822464999991536E-2,9.2844878326720087E-2,9.2607810362911602E-2,8.480238227819295E-2,7.5266333291910181E-2,7.3907002257684901E-2,8.2794009741856453E-2,8.3562014614449287E-2,4.7235558367513426E-2,188]
[null,"Female 85-89",0.1021749746378164,8.672414930856967E-2,7.3484169469013483E-2,7.1760212363612796E-2,9.2635569651940475E-2,8.5170321527214543E-2,8.354740044670661E-2,0.10413025803782069,8.5375407219676888E-2,7.8350943714964261E-2,8.0685886729252324E-2,8.3403968856055E-2,6.320746805269678E-2,8.0949021368054749E-2,0.10094514232534187,8.0949021368054749E-2,9.45053108304484E-2,0.11300695217699384,8.5022999811435115E-2,9.0284867546776712E-2,7.6846159949110857E-2,7.9643698817782133E-2,9.4660903408979244E-2,8.7241577783433902E-2,8.2396771930892024E-2,8.3850231554699076E-2,8.0432842607942756E-2,9.2635569651940475E-2,6.7516910414281942E-2,8.9709082670831775E-2,8.7241577783433819E-2,8.556677010818968E-2,0.10390850506643842,0.10094514232534187,6.5395650369100902E-2,9.9885331112196746E-2,8.1070799245820821E-2,9.3735798200643122E-2,9.3735798200643122E-2,7.6884456519592456E-2,9.5356282963589029E-2,8.612526597120479E-2,8.354740044670661E-2,8.6822464999991536E-2,8.6822464999991536E-2,9.2844878326720087E-2,9.2607810362911602E-2,8.480238227819295E-2,7.5266333291910181E-2,7.3907002257684901E-2,8.2794009741856453E-2,8.3562014614449287E-2,4.7235558367513426E-2,189]
[null,"Female 90+",0.1021749746378164,8.672414930856967E-2,7.3484169469013483E-2,7.1760212363612796E-2,9.2635569651940475E-2,8.5170321527214543E-2,8.354740044670661E-2,0.10413025803782069,8.5375407219676888E-2,7.8350943714964261E-2,8.0685886729252324E-2,8.3403968856055E-2,6.320746805269678E-2,8.0949021368054749E-2,0.10094514232534187,8.0949021368054749E-2,9.45053108304484E-2,0.11300695217699384,8.5022999811435115E-2,9.0284867546776712E-2,7.6846159949110857E-2,7.9643698817782133E-2,9.4660903408979244E-2,8.7241577783433902E-2,8.2396771930892024E-2,8.3850231554699076E-2,8.0432842607942756E-2,9.2635569651940475E-2,6.7516910414281942E-2,8.9709082670831775E-2,8.7241577783433819E-2,8.556677010818968E-2,0.10390850506643842,0.10094514232534187,6.5395650369100902E-2,9.9885331112196746E-2,8.1070799245820821E-2,9.3735798200643122E-2,9.3735798200643122E-2,7.6884456519592456E-2,9.5356282963589029E-2,8.612526597120479E-2,8.354740044670661E-2,8.6822464999991536E-2,8.6822464999991536E-2,9.2844878326720087E-2,9.2607810362911602E-2,8.480238227819295E-2,7.5266333291910181E-2,7.3907002257684901E-2,8.2794009741856453E-2,8.3562014614449287E-2,4.7235558367513426E-2,190]
[null,"Male 0-4",null,null,null,null,null,null,null,null,null,null,null,null,null,null,null,null,null,null,null,null,null,null,null,null,null,null,null,null,null,null,null,null,null,null,null,null,null,null,null,null,null,null,null,null,null,null,null,null,null,null,null,null,null,191]
[null,"Male 5-9",null,null,null,null,null,null,null,null,null,null,null,null,null,null,null,null,null,null,null,null,null,null,null,null,null,null,null,null,null,null,null,null,null,null,null,null,null,null,null,null,null,null,null,null,null,null,null,null,null,null,null,null,null,192]
[null,"Male 10-15",null,null,null,null,null,null,null,null,null,null,null,null,null,null,null,null,null,null,null,null,null,null,null,null,null,null,null,null,null,null,null,null,null,null,null,null,null,null,null,null,null,null,null,null,null,null,null,null,null,null,null,null,null,193]
[null,"Male 16-19",{"$f":"$AR196*C$254","v":0.27136556299298026},0.23183762072584774,0.19986785666678003,0.24364062079519333,0.24688857315621496,0.28066544273130117,0.28061264981351186,0.30025373470492839,0.31439252354753283,0.24354079660910555,{"$f":"$AR196*M$254","v":0.25888383886230809},0.20637969572284207,0.26262567655837832,0.25914605657636086,0.28188435981595372,0.25647104525826492,0.28140082292436996,0.33682443385464028,0.33209053286910512,0.23257887021528947,{"$f":"$AR196*W$254","v":0.23257887021528947},0.23356569566545077,0.3193769029088569,0.24818771319149913,0.22560861389700143,0.21887772026251767,0.23546147267093726,0.2468885731562151,0.22864374228753653,0.24004145852923367,{"$f":"$AR196*AG$254","v":0.24818771319149896},0.20943235678418048,0.30139207210606572,0.28188435981595372,0.18550816473076603,0.32014441964877777,0.19985204762508704,0.27598452135194568,0.27598452135194568,0.21690010821344505,0.22323258839452134,0.24784088807869259,{"$f":"$AR196*AS$254","v":0.28061264981351186},0.27258437683825582,0.27258437683825582,0.25008314712070695,0.21341564938735075,0.25096450494096895,0.21205543670225094,0.19259805555489767,0.23530802181758828,0.26948422875921035,0.22921371303702215,194]
[null,"Male 20-24",0.27136556299298026,0.23183762072584774,0.19986785666678003,0.24364062079519333,0.24688857315621496,0.28066544273130117,0.28061264981351186,0.30025373470492839,0.31439252354753283,0.24354079660910555,0.25888383886230809,0.20637969572284207,0.26262567655837832,0.25914605657636086,0.28188435981595372,0.25647104525826492,0.28140082292436996,0.33682443385464028,0.33209053286910512,0.23257887021528947,0.23257887021528947,0.23356569566545077,0.3193769029088569,0.24818771319149913,0.22560861389700143,0.21887772026251767,0.23546147267093726,0.2468885731562151,0.22864374228753653,0.24004145852923367,0.24818771319149896,0.20943235678418048,0.30139207210606572,0.28188435981595372,0.18550816473076603,0.32014441964877777,0.19985204762508704,0.27598452135194568,0.27598452135194568,0.21690010821344505,0.22323258839452134,0.24784088807869259,0.28061264981351186,0.27258437683825582,0.27258437683825582,0.25008314712070695,0.21341564938735075,0.25096450494096895,0.21205543670225094,0.19259805555489767,0.23530802181758828,0.26948422875921035,0.22921371303702215,195]
[null,"Male 25-29",0.19953814756521057,0.17047280747542087,0.14696508074663092,0.17915168604635509,0.18153994191180206,0.2063764536313778,0.20633763440573968,0.22077994481601704,0.23117635511713525,0.17907828420068803,0.19036019556575681,0.15175330917236901,0.19311161086742074,0.19055300719720997,0.20727273705962346,0.18858604131826148,0.20691718695016256,0.247670790813624,0.24418990022827269,0.17101785655377683,0.17101785655377683,0.17174348039537118,0.23484142526660959,0.18249521417704198,0.16589254876429183,0.16094324704571636,0.17313746652868645,0.18153994191180217,0.16812431277292403,0.17650518159156997,0.18249521417704184,0.15399796515084213,0.22161697709757086,0.20727273705962346,0.13640623791883466,0.23540578894938485,0.14695345618064176,0.20293451954573577,0.20293451954573577,0.15948908668534373,0.16414543051500666,0.18224018977462617,0.20633763440573968,0.20043435508038226,0.20043435508038226,0.18388894804251465,0.15692692495871341,0.18453702035079697,0.15592674528784434,0.1416195143046943,0.17302463239202648,0.19815478136421927,0.16854341866928149,196]
[null,"Male 30-34",0.19953814756521057,0.17047280747542087,0.14696508074663092,0.17915168604635509,0.18153994191180206,0.2063764536313778,0.20633763440573968,0.22077994481601704,0.23117635511713525,0.17907828420068803,0.19036019556575681,0.15175330917236901,0.19311161086742074,0.19055300719720997,0.20727273705962346,0.18858604131826148,0.20691718695016256,0.247670790813624,0.24418990022827269,0.17101785655377683,0.17101785655377683,0.17174348039537118,0.23484142526660959,0.18249521417704198,0.16589254876429183,0.16094324704571636,0.17313746652868645,0.18153994191180217,0.16812431277292403,0.17650518159156997,0.18249521417704184,0.15399796515084213,0.22161697709757086,0.20727273705962346,0.13640623791883466,0.23540578894938485,0.14695345618064176,0.20293451954573577,0.20293451954573577,0.15948908668534373,0.16414543051500666,0.18224018977462617,0.20633763440573968,0.20043435508038226,0.20043435508038226,0.18388894804251465,0.15692692495871341,0.18453702035079697,0.15592674528784434,0.1416195143046943,0.17302463239202648,0.19815478136421927,0.16854341866928149,197]
[null,"Male 35-39",0.18811607991333956,0.16071451331689515,0.1385524282526906,0.1688965909533254,0.17114813701967896,0.19456294406494037,0.19452634694984525,0.2081419430272074,0.21794323653865424,0.16882739081473647,0.17946349707222745,0.14306656638702955,0.18205741441123374,0.1796452716788039,0.1954079219655083,0.17779089989583363,0.19507272444252496,0.23349348906664302,0.23021185345203185,0.16122836240907032,0.16122836240907032,0.16191244970885735,0.22139850881385259,0.17204872708719043,0.15639644018531543,0.15173044900033414,0.16322664055433025,0.17114813701967904,0.15850045238407742,0.16640157909929049,0.17204872708719032,0.14518273258671027,0.20893106146640389,0.1954079219655083,0.12859800026273954,0.22193056689369642,0.13854146910622531,0.19131803498158084,0.19131803498158084,0.15035952845257639,0.1547493313982943,0.17180830092582686,0.19452634694984525,0.18896098624628965,0.18896098624628965,0.17336268010526937,0.14794403133586503,0.17397365511742646,0.1470011044760704,0.13351285553818104,0.16312026532870108,0.18681190108843568,0.15889556760015691,198]
[null,"Male 40-44",0.18811607991333956,0.16071451331689515,0.1385524282526906,0.1688965909533254,0.17114813701967896,0.19456294406494037,0.19452634694984525,0.2081419430272074,0.21794323653865424,0.16882739081473647,0.17946349707222745,0.14306656638702955,0.18205741441123374,0.1796452716788039,0.1954079219655083,0.17779089989583363,0.19507272444252496,0.23349348906664302,0.23021185345203185,0.16122836240907032,0.16122836240907032,0.16191244970885735,0.22139850881385259,0.17204872708719043,0.15639644018531543,0.15173044900033414,0.16322664055433025,0.17114813701967904,0.15850045238407742,0.16640157909929049,0.17204872708719032,0.14518273258671027,0.20893106146640389,0.1954079219655083,0.12859800026273954,0.22193056689369642,0.13854146910622531,0.19131803498158084,0.19131803498158084,0.15035952845257639,0.1547493313982943,0.17180830092582686,0.19452634694984525,0.18896098624628965,0.18896098624628965,0.17336268010526937,0.14794403133586503,0.17397365511742646,0.1470011044760704,0.13351285553818104,0.16312026532870108,0.18681190108843568,0.15889556760015691,199]
[null,"Male 45-49",0.25381322557023139,0.21684201073987239,0.18694009965338301,0.22788157480970156,0.23091944467114256,0.26251157493985838,0.26246219674830168,0.28083286639041144,0.29405713686238238,0.22778820740382508,0.24213883834385497,0.19303074305331977,0.24563864828556242,0.24238409541727041,0.26365165061322721,0.2398821079005258,0.26319938962335998,0.31503811708681984,0.31061041201836254,0.21753531508472901,0.21753531508472901,0.21845831116358927,0.29871911898424824,0.23213455435265892,0.21101590554844329,0.20472037635344867,0.22023146642845556,0.2309194446711427,0.21385471721756222,0.22451521183424356,0.23213455435265876,0.19588595335342329,0.28189757439677471,0.26365165061322721,0.17350921443612782,0.29943699157386461,0.18692531316455585,0.25813342267605915,0.25813342267605915,0.20287067926010505,0.20879356498993551,0.23181016241574809,0.26246219674830168,0.25495320468190313,0.25495320468190313,0.23390738873194211,0.19961160053153204,0.23473173898764507,0.19833936847209543,0.18014052033642802,0.22008794100973464,0.25205357889663638,0.21438782139191676,200]
[null,"Male 50-54",0.25381322557023139,0.21684201073987239,0.18694009965338301,0.22788157480970156,0.23091944467114256,0.26251157493985838,0.26246219674830168,0.28083286639041144,0.29405713686238238,0.22778820740382508,0.24213883834385497,0.19303074305331977,0.24563864828556242,0.24238409541727041,0.26365165061322721,0.2398821079005258,0.26319938962335998,0.31503811708681984,0.31061041201836254,0.21753531508472901,0.21753531508472901,0.21845831116358927,0.29871911898424824,0.23213455435265892,0.21101590554844329,0.20472037635344867,0.22023146642845556,0.2309194446711427,0.21385471721756222,0.22451521183424356,0.23213455435265876,0.19588595335342329,0.28189757439677471,0.26365165061322721,0.17350921443612782,0.29943699157386461,0.18692531316455585,0.25813342267605915,0.25813342267605915,0.20287067926010505,0.20879356498993551,0.23181016241574809,0.26246219674830168,0.25495320468190313,0.25495320468190313,0.23390738873194211,0.19961160053153204,0.23473173898764507,0.19833936847209543,0.18014052033642802,0.22008794100973464,0.25205357889663638,0.21438782139191676,201]
[null,"Male 55-59",0.39408680146331504,0.33668290627236996,0.29025526850353212,0.35382364621629575,0.35854043910314171,0.40759242030325299,0.4075157525349406,0.43603924032299135,0.45657209648238301,0.35367867795366831,0.37596039409919668,0.29971199468847459,0.38139442497981113,0.37634119606639677,0.40936257540267568,0.37245644870715328,0.40866036578959108,0.48914852101517686,0.48227378025125078,0.33775937536136769,0.33775937536136769,0.33919247866661911,0.46381059092552196,0.36042709684818258,0.3276369191898576,0.31786207409106332,0.34194559401456476,0.35854043910314193,0.33204464147511831,0.34859681371147944,0.3604270968481823,0.30414517854697909,0.43769237471651012,0.40936257540267568,0.26940160895053755,0.4649252062575816,0.29023231004628985,0.40079461842321429,0.40079461842321429,0.31499011495830298,0.32418636975336973,0.35992342498257957,0.4075157525349406,0.39585680663481226,0.39585680663481226,0.36317971396845394,0.30992985890200436,0.36445965339960684,0.30795450926489992,0.27969780264140176,0.34172274718274448,0.39135466042635891,0.33287237343607551,202]
[null,"Male 60-64",0.39408680146331504,0.33668290627236996,0.29025526850353212,0.35382364621629575,0.35854043910314171,0.40759242030325299,0.4075157525349406,0.43603924032299135,0.45657209648238301,0.35367867795366831,0.37596039409919668,0.29971199468847459,0.38139442497981113,0.37634119606639677,0.40936257540267568,0.37245644870715328,0.40866036578959108,0.48914852101517686,0.48227378025125078,0.33775937536136769,0.33775937536136769,0.33919247866661911,0.46381059092552196,0.36042709684818258,0.3276369191898576,0.31786207409106332,0.34194559401456476,0.35854043910314193,0.33204464147511831,0.34859681371147944,0.3604270968481823,0.30414517854697909,0.43769237471651012,0.40936257540267568,0.26940160895053755,0.4649252062575816,0.29023231004628985,0.40079461842321429,0.40079461842321429,0.31499011495830298,0.32418636975336973,0.35992342498257957,0.4075157525349406,0.39585680663481226,0.39585680663481226,0.36317971396845394,0.30992985890200436,0.36445965339960684,0.30795450926489992,0.27969780264140176,0.34172274718274448,0.39135466042635891,0.33287237343607551,203]
[null,"Male 65-69",{"$f":"$AR206*C$254","v":0.26753973417549376},0.22856907389710585,0.19705003336860119,0.24020567017777592,0.24340783150472686,0.27670850019581145,0.27665645157536045,0.29602062797567918,0.3099600820714507,0.24010725335614366,{"$f":"$AR206*M$254","v":0.25523398277822351},0.20347006570740425,0.25892306643162866,0.25549250363378101,0.27791023246136926,0.25285520577967441,0.27743351268155797,0.33207573762634252,0.32740857721986177,0.22929987293135209,{"$f":"$AR206*W$254","v":0.22929987293135209},0.23027278569044302,0.3148741895014821,0.24468865570313725,0.22242788629472024,0.21579188770347715,0.23214183521356543,0.243407831504727,0.2254202241353668,0.23665725045469477,{"$f":"$AR206*AG$254","v":0.24468865570313711},0.20647968903569477,0.29714291660487491,0.27791023246136926,0.18289279056656391,0.31563088545917434,0.19703444720960053,0.27209357246615867,0.27209357246615867,0.2138421568825298,0.22008535902517071,0.24434672028044677,{"$f":"$AR206*AS$254","v":0.27665645157536045},0.26874136465718779,0.26874136465718779,0.2465573669868184,0.21040682346071743,0.24742629904417193,0.20906578764106495,0.18988272505014656,0.23199054777657016,0.26568492380365932,0.22598215919124984,204]
[null,"Male 70-74",0.26753973417549376,0.22856907389710585,0.19705003336860119,0.24020567017777592,0.24340783150472686,0.27670850019581145,0.27665645157536045,0.29602062797567918,0.3099600820714507,0.24010725335614366,0.25523398277822351,0.20347006570740425,0.25892306643162866,0.25549250363378101,0.27791023246136926,0.25285520577967441,0.27743351268155797,0.33207573762634252,0.32740857721986177,0.22929987293135209,0.22929987293135209,0.23027278569044302,0.3148741895014821,0.24468865570313725,0.22242788629472024,0.21579188770347715,0.23214183521356543,0.243407831504727,0.2254202241353668,0.23665725045469477,0.24468865570313711,0.20647968903569477,0.29714291660487491,0.27791023246136926,0.18289279056656391,0.31563088545917434,0.19703444720960053,0.27209357246615867,0.27209357246615867,0.2138421568825298,0.22008535902517071,0.24434672028044677,0.27665645157536045,0.26874136465718779,0.26874136465718779,0.2465573669868184,0.21040682346071743,0.24742629904417193,0.20906578764106495,0.18988272505014656,0.23199054777657016,0.26568492380365932,0.22598215919124984,205]
[null,"Male 75-79",0.23337020119588481,0.19937678015159899,0.17188327586033195,0.20952717827329978,0.21232036723805384,0.24136795441737818,0.24132255332185848,0.25821358356998875,0.27037272403155899,0.20944133101200921,0.22263611084366922,0.17748335707147564,0.22585403358354483,0.22286161403578653,0.24241620432112088,0.22056114553632011,0.24200037004786248,0.28966382111786515,0.285592739241259,0.20001424328649148,0.20001424328649148,0.20086289796215978,0.27465921345033206,0.21343760764273903,0.19401993029612929,0.18823146552417069,0.20249323696432847,0.21232036723805395,0.19663009392685069,0.2064319542040417,0.21343760764273886,0.18010859852882968,0.25919253618800792,0.24241620432112088,0.15953416214355134,0.27531926601573875,0.17186968032816527,0.23734243418542983,0.23734243418542983,0.18653074964596836,0.19197658498936065,0.21313934339187848,0.24132255332185848,0.23441836231535462,0.23441836231535462,0.2150676516045964,0.18353416876689255,0.21582560574428741,0.18236440682477334,0.16563135896482692,0.20236127159582423,0.23175228275476356,0.19712025998556562,206]
[null,"Male 80-84",0.23337020119588481,0.19937678015159899,0.17188327586033195,0.20952717827329978,0.21232036723805384,0.24136795441737818,0.24132255332185848,0.25821358356998875,0.27037272403155899,0.20944133101200921,0.22263611084366922,0.17748335707147564,0.22585403358354483,0.22286161403578653,0.24241620432112088,0.22056114553632011,0.24200037004786248,0.28966382111786515,0.285592739241259,0.20001424328649148,0.20001424328649148,0.20086289796215978,0.27465921345033206,0.21343760764273903,0.19401993029612929,0.18823146552417069,0.20249323696432847,0.21232036723805395,0.19663009392685069,0.2064319542040417,0.21343760764273886,0.18010859852882968,0.25919253618800792,0.24241620432112088,0.15953416214355134,0.27531926601573875,0.17186968032816527,0.23734243418542983,0.23734243418542983,0.18653074964596836,0.19197658498936065,0.21313934339187848,0.24132255332185848,0.23441836231535462,0.23441836231535462,0.2150676516045964,0.18353416876689255,0.21582560574428741,0.18236440682477334,0.16563135896482692,0.20236127159582423,0.23175228275476356,0.19712025998556562,207]
[null,"Male 85-89",0.23337020119588481,0.19937678015159899,0.17188327586033195,0.20952717827329978,0.21232036723805384,0.24136795441737818,0.24132255332185848,0.25821358356998875,0.27037272403155899,0.20944133101200921,0.22263611084366922,0.17748335707147564,0.22585403358354483,0.22286161403578653,0.24241620432112088,0.22056114553632011,0.24200037004786248,0.28966382111786515,0.285592739241259,0.20001424328649148,0.20001424328649148,0.20086289796215978,0.27465921345033206,0.21343760764273903,0.19401993029612929,0.18823146552417069,0.20249323696432847,0.21232036723805395,0.19663009392685069,0.2064319542040417,0.21343760764273886,0.18010859852882968,0.25919253618800792,0.24241620432112088,0.15953416214355134,0.27531926601573875,0.17186968032816527,0.23734243418542983,0.23734243418542983,0.18653074964596836,0.19197658498936065,0.21313934339187848,0.24132255332185848,0.23441836231535462,0.23441836231535462,0.2150676516045964,0.18353416876689255,0.21582560574428741,0.18236440682477334,0.16563135896482692,0.20236127159582423,0.23175228275476356,0.19712025998556562,208]
[null,"Male 90+",0.23337020119588481,0.19937678015159899,0.17188327586033195,0.20952717827329978,0.21232036723805384,0.24136795441737818,0.24132255332185848,0.25821358356998875,0.27037272403155899,0.20944133101200921,0.22263611084366922,0.17748335707147564,0.22585403358354483,0.22286161403578653,0.24241620432112088,0.22056114553632011,0.24200037004786248,0.28966382111786515,0.285592739241259,0.20001424328649148,0.20001424328649148,0.20086289796215978,0.27465921345033206,0.21343760764273903,0.19401993029612929,0.18823146552417069,0.20249323696432847,0.21232036723805395,0.19663009392685069,0.2064319542040417,0.21343760764273886,0.18010859852882968,0.25919253618800792,0.24241620432112088,0.15953416214355134,0.27531926601573875,0.17186968032816527,0.23734243418542983,0.23734243418542983,0.18653074964596836,0.19197658498936065,0.21313934339187848,0.24132255332185848,0.23441836231535462,0.23441836231535462,0.2150676516045964,0.18353416876689255,0.21582560574428741,0.18236440682477334,0.16563135896482692,0.20236127159582423,0.23175228275476356,0.19712025998556562,209]
["SIMD Q5 (least deprived)","Female 0-4",null,null,null,null,null,null,null,null,null,null,null,null,null,null,null,null,null,null,null,null,null,null,null,null,null,null,null,null,null,null,null,null,null,null,null,null,null,null,null,null,null,null,null,null,null,null,null,null,null,null,null,null,null,210]
[null,"Female 5-9",null,null,null,null,null,null,null,null,null,null,null,null,null,null,null,null,null,null,null,null,null,null,null,null,null,null,null,null,null,null,null,null,null,null,null,null,null,null,null,null,null,null,null,null,null,null,null,null,null,null,null,null,null,211]
[null,"Female 10-15",null,null,null,null,null,null,null,null,null,null,null,null,null,null,null,null,null,null,null,null,null,null,null,null,null,null,null,null,null,null,null,null,null,null,null,null,null,null,null,null,null,null,null,null,null,null,null,null,null,null,null,null,null,212]
[null,"Female 16-19",{"$f":"$AR215*C$253","v":0.20437537011094237},0.17346987533222785,0.14698662158479592,0.14353827845850117,0.18529418676308781,0.17036183318170323,0.1671155872426619,0.20828642337975087,0.17077205559134925,0.15672138091591747,{"$f":"$AR215*M$253","v":0.16139184787149688},0.16682868837599779,0.12643066193886107,0.16191818261623142,0.20191539950730542,0.16191818261623142,0.18903413430624871,0.2260420201536765,0.17006715309693168,0.18059219770494125,{"$f":"$AR215*W$253","v":0.15371143899840414},0.15930721275524762,0.18934535817428955,0.1745048610166498,0.16481404393801816,0.16772132480214214,0.16088569667223931,0.18529418676308781,0.13505061883870614,0.1794404846994557,{"$f":"$AR215*AG$253","v":0.17450486101664964},0.17115482897890269,0.20784286226549462,0.20191539950730542,0.13080757098503953,0.19979551340308027,0.16216176866974394,0.18749491759414305,0.18749491759414305,0.15378804166744225,0.19073629029191161,0.17227195965707265,{"$f":"$AR215*AS$253","v":0.1671155872426619},0.17366653117572847,0.17366653117572847,0.1857128561880341,0.18523866127860003,0.16962586314144934,0.15055139262774403,0.14783239236170181,0.16560861839155433,0.16714481921410951,9.4482868804007261E-2,213]
[null,"Female 20-24",0.20437537011094237,0.17346987533222785,0.14698662158479592,0.14353827845850117,0.18529418676308781,0.17036183318170323,0.1671155872426619,0.20828642337975087,0.17077205559134925,0.15672138091591747,0.16139184787149688,0.16682868837599779,0.12643066193886107,0.16191818261623142,0.20191539950730542,0.16191818261623142,0.18903413430624871,0.2260420201536765,0.17006715309693168,0.18059219770494125,0.15371143899840414,0.15930721275524762,0.18934535817428955,0.1745048610166498,0.16481404393801816,0.16772132480214214,0.16088569667223931,0.18529418676308781,0.13505061883870614,0.1794404846994557,0.17450486101664964,0.17115482897890269,0.20784286226549462,0.20191539950730542,0.13080757098503953,0.19979551340308027,0.16216176866974394,0.18749491759414305,0.18749491759414305,0.15378804166744225,0.19073629029191161,0.17227195965707265,0.1671155872426619,0.17366653117572847,0.17366653117572847,0.1857128561880341,0.18523866127860003,0.16962586314144934,0.15055139262774403,0.14783239236170181,0.16560861839155433,0.16714481921410951,9.4482868804007261E-2,214]
[null,"Female 25-29",0.17372074285154859,0.14745081850480127,0.12493983534850162,0.12200871537459396,0.15750158031803738,0.14480895715472777,0.14204962144953517,0.17704517024620273,0.14515764957152624,0.13321446071830756,0.13718439598274978,0.14180575505696005,0.10746710085128804,0.13763178483784633,0.1716297476380608,0.13763178483784633,0.16068056644083215,0.19213757330663281,0.14455847666286481,0.15350485100756484,0.1306559853718576,0.13541243901566191,0.16094510928432565,0.1483305648354912,0.14009329074113971,0.14256450334919299,0.13675416330704873,0.15750158031803738,0.11479413500015116,0.15252588549544793,0.14833056483549109,0.14548301009414444,0.17666813965672012,0.1716297476380608,0.11118750948214717,0.16982782704172497,0.13783883498357327,0.15937221959604669,0.15937221959604669,0.13072109826957362,0.16212741300614014,0.14643258034406542,0.14204962144953517,0.14761797758664408,0.14761797758664408,0.15785745276720486,0.15745438320026739,0.14418337657698996,0.12796992000762894,0.12565874745403793,0.14076868555140595,0.14207446886530808,8.0311214342841969E-2,215]
[null,"Female 30-34",0.17372074285154859,0.14745081850480127,0.12493983534850162,0.12200871537459396,0.15750158031803738,0.14480895715472777,0.14204962144953517,0.17704517024620273,0.14515764957152624,0.13321446071830756,0.13718439598274978,0.14180575505696005,0.10746710085128804,0.13763178483784633,0.1716297476380608,0.13763178483784633,0.16068056644083215,0.19213757330663281,0.14455847666286481,0.15350485100756484,0.1306559853718576,0.13541243901566191,0.16094510928432565,0.1483305648354912,0.14009329074113971,0.14256450334919299,0.13675416330704873,0.15750158031803738,0.11479413500015116,0.15252588549544793,0.14833056483549109,0.14548301009414444,0.17666813965672012,0.1716297476380608,0.11118750948214717,0.16982782704172497,0.13783883498357327,0.15937221959604669,0.15937221959604669,0.13072109826957362,0.16212741300614014,0.14643258034406542,0.14204962144953517,0.14761797758664408,0.14761797758664408,0.15785745276720486,0.15745438320026739,0.14418337657698996,0.12796992000762894,0.12565874745403793,0.14076868555140595,0.14207446886530808,8.0311214342841969E-2,216]
[null,"Female 35-39",0.21728894635057261,0.18443066996793106,0.15627405647976675,0.15260782779398585,0.19700210737126345,0.18112624437235142,0.17767488250175903,0.22144712178746134,0.18156238692276244,0.16662391222259706,0.17158948534029769,0.17736985576388559,0.13441925660703527,0.1721490768510017,0.21467354107826658,0.1721490768510017,0.2009783656680372,0.24032461623670739,0.18081294475559356,0.19200302040867112,0.16342378538012156,0.169373131345737,0.20130925439660088,0.18553105182281843,0.17522791484917555,0.17831889394008929,0.17105135268409236,0.19700210737126345,0.14358387048070281,0.19077853574927034,0.18553105182281829,0.18196934606870735,0.22097553400706244,0.21467354107826658,0.13907272318864997,0.21241970874161931,0.17240805403051551,0.19934189265567237,0.19934189265567237,0.16350522823321043,0.20278807336641708,0.18315706329639325,0.17767488250175903,0.18463975162490734,0.18463975162490734,0.19744723066653327,0.19694307347684942,0.1803437716384523,0.16006406964760961,0.1571732677735162,0.17607269495018396,0.17770596151226872,0.10045282364238729,217]
[null,"Female 40-44",0.21728894635057261,0.18443066996793106,0.15627405647976675,0.15260782779398585,0.19700210737126345,0.18112624437235142,0.17767488250175903,0.22144712178746134,0.18156238692276244,0.16662391222259706,0.17158948534029769,0.17736985576388559,0.13441925660703527,0.1721490768510017,0.21467354107826658,0.1721490768510017,0.2009783656680372,0.24032461623670739,0.18081294475559356,0.19200302040867112,0.16342378538012156,0.169373131345737,0.20130925439660088,0.18553105182281843,0.17522791484917555,0.17831889394008929,0.17105135268409236,0.19700210737126345,0.14358387048070281,0.19077853574927034,0.18553105182281829,0.18196934606870735,0.22097553400706244,0.21467354107826658,0.13907272318864997,0.21241970874161931,0.17240805403051551,0.19934189265567237,0.19934189265567237,0.16350522823321043,0.20278807336641708,0.18315706329639325,0.17767488250175903,0.18463975162490734,0.18463975162490734,0.19744723066653327,0.19694307347684942,0.1803437716384523,0.16006406964760961,0.1571732677735162,0.17607269495018396,0.17770596151226872,0.10045282364238729,218]
[null,"Female 45-49",0.33523966433669289,0.28454496619301994,0.24110412940327802,0.23544776586226396,0.30394054303254919,0.27944680291277452,0.27412194210216018,0.34165501753862987,0.28011969624056876,0.25707218587110064,0.26473321554230872,0.27365133803814379,0.20738591273127385,0.26559656949272731,0.33120454151835271,0.26559656949272731,0.31007522921477115,0.37077976138304386,0.27896343521219547,0.29622780723316111,0.25213493772054141,0.261313760564654,0.31058573390522842,0.28624266711094631,0.27034668971002357,0.27511554155597912,0.26390296893259929,0.30394054303254919,0.22152534379937247,0.29433863692285617,0.28624266711094609,0.28074756456878641,0.34092743828592759,0.33120454151835271,0.21456541542123389,0.32772726387170348,0.26599612696764369,0.30755043137035565,0.30755043137035565,0.25226059010733187,0.3128672985378631,0.28258000902315794,0.27412194210216018,0.28486754341418513,0.28486754341418513,0.30462729211298306,0.3038494638346414,0.27823958137173149,0.24695147121959557,0.24249145856726581,0.27165004085722583,0.27416989169750855,0.15498151859604792,219]
[null,"Female 50-54",0.33523966433669289,0.28454496619301994,0.24110412940327802,0.23544776586226396,0.30394054303254919,0.27944680291277452,0.27412194210216018,0.34165501753862987,0.28011969624056876,0.25707218587110064,0.26473321554230872,0.27365133803814379,0.20738591273127385,0.26559656949272731,0.33120454151835271,0.26559656949272731,0.31007522921477115,0.37077976138304386,0.27896343521219547,0.29622780723316111,0.25213493772054141,0.261313760564654,0.31058573390522842,0.28624266711094631,0.27034668971002357,0.27511554155597912,0.26390296893259929,0.30394054303254919,0.22152534379937247,0.29433863692285617,0.28624266711094609,0.28074756456878641,0.34092743828592759,0.33120454151835271,0.21456541542123389,0.32772726387170348,0.26599612696764369,0.30755043137035565,0.30755043137035565,0.25226059010733187,0.3128672985378631,0.28258000902315794,0.27412194210216018,0.28486754341418513,0.28486754341418513,0.30462729211298306,0.3038494638346414,0.27823958137173149,0.24695147121959557,0.24249145856726581,0.27165004085722583,0.27416989169750855,0.15498151859604792,220]
[null,"Female 55-59",0.29660214720012879,0.25175018628784707,0.21331605441535095,0.20831160610542682,0.26891035660412493,0.24723960375075518,0.24252845134850295,0.30227810901838986,0.24783494382262677,0.22744373779774574,0.23422180761457406,0.24211208601135073,0.1834839774609027,0.23498565707133373,0.29303208607832215,0.23498565707133373,0.27433799923599012,0.32804612658874216,0.24681194582977914,0.26208653996711662,0.2230755243716489,0.23119645651051154,0.27478966651600889,0.25325222137237957,0.23918830969806409,0.24340753506922763,0.23348724976434868,0.26891035660412493,0.19599379077098375,0.26041510299210396,0.25325222137237935,0.24839044818001477,0.30163438576136792,0.29303208607832215,0.18983601792689173,0.28995557656549986,0.23533916418161122,0.27210419297269606,0.27210419297269606,0.22318669489139217,0.27680827302653105,0.25001169714787463,0.24252845134850295,0.25203558538173043,0.25203558538173043,0.26951795550578661,0.26882977459507729,0.24617151861850189,0.21848947010160169,0.2145434891514115,0.24034144517080364,0.24257087458909965,0.13711936886369563,221]
[null,"Female 60-64",0.29660214720012879,0.25175018628784707,0.21331605441535095,0.20831160610542682,0.26891035660412493,0.24723960375075518,0.24252845134850295,0.30227810901838986,0.24783494382262677,0.22744373779774574,0.23422180761457406,0.24211208601135073,0.1834839774609027,0.23498565707133373,0.29303208607832215,0.23498565707133373,0.27433799923599012,0.32804612658874216,0.24681194582977914,0.26208653996711662,0.2230755243716489,0.23119645651051154,0.27478966651600889,0.25325222137237957,0.23918830969806409,0.24340753506922763,0.23348724976434868,0.26891035660412493,0.19599379077098375,0.26041510299210396,0.25325222137237935,0.24839044818001477,0.30163438576136792,0.29303208607832215,0.18983601792689173,0.28995557656549986,0.23533916418161122,0.27210419297269606,0.27210419297269606,0.22318669489139217,0.27680827302653105,0.25001169714787463,0.24252845134850295,0.25203558538173043,0.25203558538173043,0.26951795550578661,0.26882977459507729,0.24617151861850189,0.21848947010160169,0.2145434891514115,0.24034144517080364,0.24257087458909965,0.13711936886369563,222]
[null,"Female 65-69",{"$f":"$AR225*C$253","v":0.27516697824214437},0.23355642798493445,0.19789989606650923,0.19325711471037266,0.24947644831056168,0.22937182116883509,0.2250011394903533,0.28043274343262647,0.22992413655208427,0.21100658454665802,{"$f":"$AR225*M$253","v":0.21729480938729778},0.22461486449959389,0.17022375633612541,0.21800345613457381,0.27185492220917018,0.21800345613457381,0.25451184011769123,0.30433852967543507,0.22897506969907283,0.24314578273106704,{"$f":"$AR225*W$253","v":0.20695405795464789},0.21448809767167182,0.25493086581183011,0.23494991235221252,0.22190238685646951,0.22581669262554505,0.21661333736864047,0.24947644831056168,0.18182949675103116,0.24159513899474205,{"$f":"$AR225*AG$253","v":0.2349499123522123},0.23043949511191175,0.27983554147326439,0.27185492220917018,0.17611674058184856,0.26900074925672246,0.21833141560567143,0.25243946901299302,0.25243946901299302,0.20705719428146188,0.25680358945528209,0.2319435778829754,{"$f":"$AR225*AS$253","v":0.2250011394903533},0.23382120154439201,0.23382120154439201,0.25004013658905777,0.24940168989043676,0.2283809255832101,0.20269943367948409,0.1990386252041757,0.22297218627138563,0.22504049684171581,0.12720987607427786,223]
[null,"Female 70-74",0.27516697824214437,0.23355642798493445,0.19789989606650923,0.19325711471037266,0.24947644831056168,0.22937182116883509,0.2250011394903533,0.28043274343262647,0.22992413655208427,0.21100658454665802,0.21729480938729778,0.22461486449959389,0.17022375633612541,0.21800345613457381,0.27185492220917018,0.21800345613457381,0.25451184011769123,0.30433852967543507,0.22897506969907283,0.24314578273106704,0.20695405795464789,0.21448809767167182,0.25493086581183011,0.23494991235221252,0.22190238685646951,0.22581669262554505,0.21661333736864047,0.24947644831056168,0.18182949675103116,0.24159513899474205,0.2349499123522123,0.23043949511191175,0.27983554147326439,0.27185492220917018,0.17611674058184856,0.26900074925672246,0.21833141560567143,0.25243946901299302,0.25243946901299302,0.20705719428146188,0.25680358945528209,0.2319435778829754,0.2250011394903533,0.23382120154439201,0.23382120154439201,0.25004013658905777,0.24940168989043676,0.2283809255832101,0.20269943367948409,0.1990386252041757,0.22297218627138563,0.22504049684171581,0.12720987607427786,224]
[null,"Female 75-79",0.13288988020988543,0.11279436920608313,9.5574307825135929E-2,9.3332110515708985E-2,0.120482826620293,0.11077344394074275,0.10866265518113413,0.13543294300705278,0.11104018061673106,0.1019040871947467,0.10494093940406261,0.10847610649866497,8.2208318501350658E-2,0.10528317516926322,0.13129034696544556,0.10528317516926322,0.12291463227638608,0.14697806768162172,0.1105818357193398,0.11742547796646009,9.9946949107902236E-2,0.10358545850277151,0.12311699767158978,0.113467342292552,0.10716613525367935,0.10905652060471362,0.10461182747535558,0.120482826620293,8.7813225977300235E-2,0.1166766059118086,0.1134673422925519,0.11128906926506425,0.13514452868732688,0.13129034696544556,8.5054292155223324E-2,0.12991194500685263,0.10544156079789599,0.1219137958038809,0.1219137958038809,9.9996758042837516E-2,0.12402141586244388,0.11201545504198153,0.10866265518113413,0.11292223966068431,0.11292223966068431,0.12075505575288588,0.12044672258790312,0.11029489816277395,9.7892209422651769E-2,9.6124248736151927E-2,0.10768278705908496,0.1086816625262064,6.1435079532504794E-2,225]
[null,"Female 80-84",0.13288988020988543,0.11279436920608313,9.5574307825135929E-2,9.3332110515708985E-2,0.120482826620293,0.11077344394074275,0.10866265518113413,0.13543294300705278,0.11104018061673106,0.1019040871947467,0.10494093940406261,0.10847610649866497,8.2208318501350658E-2,0.10528317516926322,0.13129034696544556,0.10528317516926322,0.12291463227638608,0.14697806768162172,0.1105818357193398,0.11742547796646009,9.9946949107902236E-2,0.10358545850277151,0.12311699767158978,0.113467342292552,0.10716613525367935,0.10905652060471362,0.10461182747535558,0.120482826620293,8.7813225977300235E-2,0.1166766059118086,0.1134673422925519,0.11128906926506425,0.13514452868732688,0.13129034696544556,8.5054292155223324E-2,0.12991194500685263,0.10544156079789599,0.1219137958038809,0.1219137958038809,9.9996758042837516E-2,0.12402141586244388,0.11201545504198153,0.10866265518113413,0.11292223966068431,0.11292223966068431,0.12075505575288588,0.12044672258790312,0.11029489816277395,9.7892209422651769E-2,9.6124248736151927E-2,0.10768278705908496,0.1086816625262064,6.1435079532504794E-2,226]
[null,"Female 85-89",0.13288988020988543,0.11279436920608313,9.5574307825135929E-2,9.3332110515708985E-2,0.120482826620293,0.11077344394074275,0.10866265518113413,0.13543294300705278,0.11104018061673106,0.1019040871947467,0.10494093940406261,0.10847610649866497,8.2208318501350658E-2,0.10528317516926322,0.13129034696544556,0.10528317516926322,0.12291463227638608,0.14697806768162172,0.1105818357193398,0.11742547796646009,9.9946949107902236E-2,0.10358545850277151,0.12311699767158978,0.113467342292552,0.10716613525367935,0.10905652060471362,0.10461182747535558,0.120482826620293,8.7813225977300235E-2,0.1166766059118086,0.1134673422925519,0.11128906926506425,0.13514452868732688,0.13129034696544556,8.5054292155223324E-2,0.12991194500685263,0.10544156079789599,0.1219137958038809,0.1219137958038809,9.9996758042837516E-2,0.12402141586244388,0.11201545504198153,0.10866265518113413,0.11292223966068431,0.11292223966068431,0.12075505575288588,0.12044672258790312,0.11029489816277395,9.7892209422651769E-2,9.6124248736151927E-2,0.10768278705908496,0.1086816625262064,6.1435079532504794E-2,227]
[null,"Female 90+",0.13288988020988543,0.11279436920608313,9.5574307825135929E-2,9.3332110515708985E-2,0.120482826620293,0.11077344394074275,0.10866265518113413,0.13543294300705278,0.11104018061673106,0.1019040871947467,0.10494093940406261,0.10847610649866497,8.2208318501350658E-2,0.10528317516926322,0.13129034696544556,0.10528317516926322,0.12291463227638608,0.14697806768162172,0.1105818357193398,0.11742547796646009,9.9946949107902236E-2,0.10358545850277151,0.12311699767158978,0.113467342292552,0.10716613525367935,0.10905652060471362,0.10461182747535558,0.120482826620293,8.7813225977300235E-2,0.1166766059118086,0.1134673422925519,0.11128906926506425,0.13514452868732688,0.13129034696544556,8.5054292155223324E-2,0.12991194500685263,0.10544156079789599,0.1219137958038809,0.1219137958038809,9.9996758042837516E-2,0.12402141586244388,0.11201545504198153,0.10866265518113413,0.11292223966068431,0.11292223966068431,0.12075505575288588,0.12044672258790312,0.11029489816277395,9.7892209422651769E-2,9.6124248736151927E-2,0.10768278705908496,0.1086816625262064,6.1435079532504794E-2,228]
[null,"Male 0-4",null,null,null,null,null,null,null,null,null,null,null,null,null,null,null,null,null,null,null,null,null,null,null,null,null,null,null,null,null,null,null,null,null,null,null,null,null,null,null,null,null,null,null,null,null,null,null,null,null,null,null,null,null,229]
[null,"Male 5-9",null,null,null,null,null,null,null,null,null,null,null,null,null,null,null,null,null,null,null,null,null,null,null,null,null,null,null,null,null,null,null,null,null,null,null,null,null,null,null,null,null,null,null,null,null,null,null,null,null,null,null,null,null,230]
[null,"Male 10-15",null,null,null,null,null,null,null,null,null,null,null,null,null,null,null,null,null,null,null,null,null,null,null,null,null,null,null,null,null,null,null,null,null,null,null,null,null,null,null,null,null,null,null,null,null,null,null,null,null,null,null,null,null,231]
[null,"Male 16-19",{"$f":"$AR234*C$254","v":0.22465925015206281},0.19193469302018479,0.16546743187683069,0.20170620977374029,0.20439513807366469,0.23235847324239126,0.2323147668221916,0.24857530981523451,0.26028058908650314,0.20162356691166827,{"$f":"$AR234*M$254","v":0.21432582850167359},0.17085848025935391,0.21742363664548589,0.21454291439262435,0.23336759538454999,0.21232831490459991,0.23296728285304841,0.27885161222403904,0.27493249060088759,0.19254836172831741,{"$f":"$AR234*W$254","v":0.19254836172831741},0.19336533888348406,0.26440707778845179,0.20547067552561843,0.18677779695744859,0.18120539676009736,0.19493482263009762,0.2043951380736648,0.18929053166413831,0.19872652035800181,{"$f":"$AR234*AG$254","v":0.20547067552561832},0.17338572998641832,0.24951772131409586,0.23336759538454999,0.15357927043446307,0.26504249273708419,0.16545434382168767,0.22848321259580007,0.22848321259580007,0.17956816307747334,0.18481072308911414,0.20518354450973844,{"$f":"$AR234*AS$254","v":0.2323147668221916},0.22566828682397699,0.22566828682397699,0.20703987524481651,0.17668343482226606,0.20776953742019297,0.17555733629115008,0.15944887871725985,0.19480778309984792,0.22310172334732564,0.18976240141715983,232]
[null,"Male 20-24",0.22465925015206281,0.19193469302018479,0.16546743187683069,0.20170620977374029,0.20439513807366469,0.23235847324239126,0.2323147668221916,0.24857530981523451,0.26028058908650314,0.20162356691166827,0.21432582850167359,0.17085848025935391,0.21742363664548589,0.21454291439262435,0.23336759538454999,0.21232831490459991,0.23296728285304841,0.27885161222403904,0.27493249060088759,0.19254836172831741,0.19254836172831741,0.19336533888348406,0.26440707778845179,0.20547067552561843,0.18677779695744859,0.18120539676009736,0.19493482263009762,0.2043951380736648,0.18929053166413831,0.19872652035800181,0.20547067552561832,0.17338572998641832,0.24951772131409586,0.23336759538454999,0.15357927043446307,0.26504249273708419,0.16545434382168767,0.22848321259580007,0.22848321259580007,0.17956816307747334,0.18481072308911414,0.20518354450973844,0.2323147668221916,0.22566828682397699,0.22566828682397699,0.20703987524481651,0.17668343482226606,0.20776953742019297,0.17555733629115008,0.15944887871725985,0.19480778309984792,0.22310172334732564,0.18976240141715983,233]
[null,"Male 25-29",0.22351031011374375,0.19095311112046731,0.1646212073951214,0.2006746549179764,0.20334983164799278,0.23117015825883205,0.23112667535961393,0.24730405957385349,0.25894947634667009,0.20059243470350538,0.21322973508266324,0.16998468517313581,0.21631170058565374,0.21344571076483473,0.23217411960377501,0.21124243706027529,0.23177585432870723,0.27742552457433323,0.27352644590843744,0.19156364143768764,0.19156364143768764,0.19237644045301217,0.26305486158600089,0.20441986864518927,0.18582258817326461,0.18027868603994562,0.19393789763176905,0.20334983164799289,0.1883224723896752,0.19771020406672696,0.20441986864518913,0.17249901017799854,0.248241651443419,0.23217411960377501,0.15279384373719354,0.26368702693028834,0.16460818627419352,0.22731471625809133,0.22731471625809133,0.1786498254081921,0.18386557420642155,0.2041342060590319,0.23112667535961393,0.22451418642554941,0.22451418642554941,0.20598104324908811,0.17577985007230523,0.20670697382611208,0.17465951057264964,0.1586334339906379,0.19381150780013026,0.22196074872732571,0.18879192893223801,234]
[null,"Male 30-34",0.22351031011374375,0.19095311112046731,0.1646212073951214,0.2006746549179764,0.20334983164799278,0.23117015825883205,0.23112667535961393,0.24730405957385349,0.25894947634667009,0.20059243470350538,0.21322973508266324,0.16998468517313581,0.21631170058565374,0.21344571076483473,0.23217411960377501,0.21124243706027529,0.23177585432870723,0.27742552457433323,0.27352644590843744,0.19156364143768764,0.19156364143768764,0.19237644045301217,0.26305486158600089,0.20441986864518927,0.18582258817326461,0.18027868603994562,0.19393789763176905,0.20334983164799289,0.1883224723896752,0.19771020406672696,0.20441986864518913,0.17249901017799854,0.248241651443419,0.23217411960377501,0.15279384373719354,0.26368702693028834,0.16460818627419352,0.22731471625809133,0.22731471625809133,0.1786498254081921,0.18386557420642155,0.2041342060590319,0.23112667535961393,0.22451418642554941,0.22451418642554941,0.20598104324908811,0.17577985007230523,0.20670697382611208,0.17465951057264964,0.1586334339906379,0.19381150780013026,0.22196074872732571,0.18879192893223801,235]
[null,"Male 35-39",0.24487168624739256,0.20920292352714748,0.1803544213526925,0.21985357682995257,0.22278442613419955,0.25326360307097084,0.25321596441461963,0.27093945712328643,0.28369785220923155,0.21976349864720163,0.23360857385596676,0.18623049859935031,0.2369850896385699,0.23384519081316596,0.25436351522866185,0.23143134535330573,0.25392718685781396,0.30393969735003801,0.29966797508701021,0.20987180358107796,0.20987180358107796,0.21076228360126786,0.28819559822255197,0.22395672894080054,0.20358206512122817,0.19750831996340756,0.21247297270626134,0.22278442613419966,0.20632086881750591,0.21660580683503128,0.2239567289408004,0.18898512322226546,0.27196665672761572,0.25436351522866185,0.16739669031422688,0.28888818101107766,0.18034015577435375,0.24903968792598288,0.24903968792598288,0.19572378550789857,0.20143801498847733,0.22364376494762034,0.25321596441461963,0.24597150524514064,0.24597150524514064,0.22566710846462998,0.19257952026291095,0.22646241783717724,0.19135210743210862,0.17379438316171594,0.2123345035180518,0.24317402984199926,0.20683519236320153,236]
[null,"Male 40-44",0.24487168624739256,0.20920292352714748,0.1803544213526925,0.21985357682995257,0.22278442613419955,0.25326360307097084,0.25321596441461963,0.27093945712328643,0.28369785220923155,0.21976349864720163,0.23360857385596676,0.18623049859935031,0.2369850896385699,0.23384519081316596,0.25436351522866185,0.23143134535330573,0.25392718685781396,0.30393969735003801,0.29966797508701021,0.20987180358107796,0.20987180358107796,0.21076228360126786,0.28819559822255197,0.22395672894080054,0.20358206512122817,0.19750831996340756,0.21247297270626134,0.22278442613419966,0.20632086881750591,0.21660580683503128,0.2239567289408004,0.18898512322226546,0.27196665672761572,0.25436351522866185,0.16739669031422688,0.28888818101107766,0.18034015577435375,0.24903968792598288,0.24903968792598288,0.19572378550789857,0.20143801498847733,0.22364376494762034,0.25321596441461963,0.24597150524514064,0.24597150524514064,0.22566710846462998,0.19257952026291095,0.22646241783717724,0.19135210743210862,0.17379438316171594,0.2123345035180518,0.24317402984199926,0.20683519236320153,237]
[null,"Male 45-49",0.24094638290077938,0.20584939193504365,0.17746333245400711,0.2163293148210586,0.21921318248868321,0.24920377694756427,0.24915690194086182,0.26659628632198307,0.27915016380241919,0.21624068059533524,0.22986381867088615,0.18324521593725057,0.23318620876462562,0.23009664264838978,0.25028605746747901,0.22772149123195695,0.24985672345861948,0.29906753132112701,0.29486428494419215,0.20650754981380387,0.20650754981380387,0.20738375540211926,0.28357581075949972,0.22036669323238586,0.20031863612387391,0.19434225335433034,0.2090670220893896,0.21921318248868335,0.20301353668263719,0.21313360671465315,0.2203666932323857,0.18595568381253721,0.26760701987380009,0.25028605746747901,0.16471331438468576,0.28425729141703077,0.17744929555348429,0.24504757133857252,0.24504757133857252,0.19258632506059406,0.19820895520420101,0.2200587460650732,0.24915690194086182,0.24202857175410902,0.24202857175410902,0.22204965530109111,0.18949246251866261,0.22283221583121607,0.1882847251667458,0.17100845194891728,0.20893077256804399,0.23927593999839092,0.20351961560043769,238]
[null,"Male 50-54",0.24094638290077938,0.20584939193504365,0.17746333245400711,0.2163293148210586,0.21921318248868321,0.24920377694756427,0.24915690194086182,0.26659628632198307,0.27915016380241919,0.21624068059533524,0.22986381867088615,0.18324521593725057,0.23318620876462562,0.23009664264838978,0.25028605746747901,0.22772149123195695,0.24985672345861948,0.29906753132112701,0.29486428494419215,0.20650754981380387,0.20650754981380387,0.20738375540211926,0.28357581075949972,0.22036669323238586,0.20031863612387391,0.19434225335433034,0.2090670220893896,0.21921318248868335,0.20301353668263719,0.21313360671465315,0.2203666932323857,0.18595568381253721,0.26760701987380009,0.25028605746747901,0.16471331438468576,0.28425729141703077,0.17744929555348429,0.24504757133857252,0.24504757133857252,0.19258632506059406,0.19820895520420101,0.2200587460650732,0.24915690194086182,0.24202857175410902,0.24202857175410902,0.22204965530109111,0.18949246251866261,0.22283221583121607,0.1882847251667458,0.17100845194891728,0.20893077256804399,0.23927593999839092,0.20351961560043769,239]
[null,"Male 55-59",0.32841148532192938,0.28057405861055157,0.24188367511372719,0.294858261592228,0.29878899195968278,0.33966636705596975,0.3396024761172875,0.36337247033240117,0.38048348690075245,0.29473745256671063,0.31330587827318734,0.24976441986627343,0.31783431755651603,0.31362321886718164,0.34114152243618795,0.31038587205522972,0.34055633739273022,0.40763098823184812,0.40190193611160258,0.28147113207535218,0.28147113207535218,0.28266540598493201,0.38651567245667262,0.30036123459770647,0.27303560250661779,0.26488975396318304,0.28495970941586179,0.29878899195968295,0.2767087694769757,0.29050249068068817,0.30036123459770625,0.25345880519019348,0.36475010673026165,0.34114152243618795,0.22450531764840034,0.38744453502046589,0.24186454272711688,0.33400143180805453,0.33400143180805453,0.26249641229055787,0.27016009370651095,0.29994150060792718,0.3396024761172875,0.3298865157599965,0.3298865157599965,0.30265512283155294,0.25827945754508658,0.30372175791840744,0.25663330368775683,0.23308563104794405,0.28477400043305484,0.32613466079310971,0.27739855832993149,240]
[null,"Male 60-64",0.32841148532192938,0.28057405861055157,0.24188367511372719,0.294858261592228,0.29878899195968278,0.33966636705596975,0.3396024761172875,0.36337247033240117,0.38048348690075245,0.29473745256671063,0.31330587827318734,0.24976441986627343,0.31783431755651603,0.31362321886718164,0.34114152243618795,0.31038587205522972,0.34055633739273022,0.40763098823184812,0.40190193611160258,0.28147113207535218,0.28147113207535218,0.28266540598493201,0.38651567245667262,0.30036123459770647,0.27303560250661779,0.26488975396318304,0.28495970941586179,0.29878899195968295,0.2767087694769757,0.29050249068068817,0.30036123459770625,0.25345880519019348,0.36475010673026165,0.34114152243618795,0.22450531764840034,0.38744453502046589,0.24186454272711688,0.33400143180805453,0.33400143180805453,0.26249641229055787,0.27016009370651095,0.29994150060792718,0.3396024761172875,0.3298865157599965,0.3298865157599965,0.30265512283155294,0.25827945754508658,0.30372175791840744,0.25663330368775683,0.23308563104794405,0.28477400043305484,0.32613466079310971,0.27739855832993149,241]
[null,"Male 65-69",{"$f":"$AR244*C$254","v":0.30374196931626174},0.25949798015707382,0.22371392934835471,0.27270918663943705,0.27634464957548993,0.31415141020097359,0.31409231860276776,0.33607676548183274,0.35190244181096431,0.27259745251026724,{"$f":"$AR244*M$254","v":0.28977106075255887},0.23100269066701179,0.29395933408440972,0.29006456345046039,0.3155157552993057,0.28707039869078976,0.31497452801141096,0.37701068523381459,0.37171198634204755,0.26032766752489778,{"$f":"$AR244*W$254","v":0.26032766752489778},0.26143223032313001,0.35748150345139457,0.27779878895995203,0.25252579555041038,0.2449918444283615,0.26355419095321131,0.2763446495754901,0.2559230426598112,0.26868061122812131,{"$f":"$AR244*AG$254","v":0.2777987889599518},0.23441956225602023,0.33735091699963887,0.3155157552993057,0.20764099415601212,0.35834059199415413,0.22369623414265555,0.30891201186944395,0.30891201186944395,0.24277828508168631,0.24986628836272926,0.27741058442283129,{"$f":"$AR244*AS$254","v":0.31409231860276776},0.30510619885781004,0.30510619885781004,0.27992036558160072,0.23887809828507833,0.28090687749212484,0.23735559972223796,0.21557677413268789,0.2633824320023872,0.30163617461333486,0.25656101615944016,242]
[null,"Male 70-74",0.30374196931626174,0.25949798015707382,0.22371392934835471,0.27270918663943705,0.27634464957548993,0.31415141020097359,0.31409231860276776,0.33607676548183274,0.35190244181096431,0.27259745251026724,0.28977106075255887,0.23100269066701179,0.29395933408440972,0.29006456345046039,0.3155157552993057,0.28707039869078976,0.31497452801141096,0.37701068523381459,0.37171198634204755,0.26032766752489778,0.26032766752489778,0.26143223032313001,0.35748150345139457,0.27779878895995203,0.25252579555041038,0.2449918444283615,0.26355419095321131,0.2763446495754901,0.2559230426598112,0.26868061122812131,0.2777987889599518,0.23441956225602023,0.33735091699963887,0.3155157552993057,0.20764099415601212,0.35834059199415413,0.22369623414265555,0.30891201186944395,0.30891201186944395,0.24277828508168631,0.24986628836272926,0.27741058442283129,0.31409231860276776,0.30510619885781004,0.30510619885781004,0.27992036558160072,0.23887809828507833,0.28090687749212484,0.23735559972223796,0.21557677413268789,0.2633824320023872,0.30163617461333486,0.25656101615944016,243]
[null,"Male 75-79",0.1905785806832746,0.16281831865328589,0.14036612467569598,0.17110750235150873,0.17338852188937251,0.19710983638685917,0.19707276020360495,0.21086658886926618,0.22079618450581265,0.17103739636056187,0.18181273271396092,0.14493935434881527,0.18444060527597309,0.18199688680935541,0.19796587532341978,0.18011824069563462,0.19762628995566101,0.23654999490530557,0.23322540161141814,0.1633388941974778,0.1633388941974778,0.16403193642287886,0.22429668742074119,0.17430090097425913,0.15844372053768541,0.15371665000802068,0.16536333045465199,0.17338852188937262,0.16057527494156773,0.16857982997948734,0.17430090097425902,0.14708322185344785,0.21166603712590829,0.19796587532341978,0.13028138998043401,0.22483571031418237,0.14035502207043324,0.19382245038648213,0.19382245038648213,0.15232778366367855,0.1567750505600522,0.17405732755611802,0.19707276020360495,0.19143454711537397,0.19143454711537397,0.17563205406540022,0.14988066690279633,0.176251026939508,0.1489253968232232,0.13526058231257723,0.16525556274266473,0.18925732973268145,0.1609755623445451,244]
[null,"Male 80-84",0.1905785806832746,0.16281831865328589,0.14036612467569598,0.17110750235150873,0.17338852188937251,0.19710983638685917,0.19707276020360495,0.21086658886926618,0.22079618450581265,0.17103739636056187,0.18181273271396092,0.14493935434881527,0.18444060527597309,0.18199688680935541,0.19796587532341978,0.18011824069563462,0.19762628995566101,0.23654999490530557,0.23322540161141814,0.1633388941974778,0.1633388941974778,0.16403193642287886,0.22429668742074119,0.17430090097425913,0.15844372053768541,0.15371665000802068,0.16536333045465199,0.17338852188937262,0.16057527494156773,0.16857982997948734,0.17430090097425902,0.14708322185344785,0.21166603712590829,0.19796587532341978,0.13028138998043401,0.22483571031418237,0.14035502207043324,0.19382245038648213,0.19382245038648213,0.15232778366367855,0.1567750505600522,0.17405732755611802,0.19707276020360495,0.19143454711537397,0.19143454711537397,0.17563205406540022,0.14988066690279633,0.176251026939508,0.1489253968232232,0.13526058231257723,0.16525556274266473,0.18925732973268145,0.1609755623445451,245]
[null,"Male 85-89",0.1905785806832746,0.16281831865328589,0.14036612467569598,0.17110750235150873,0.17338852188937251,0.19710983638685917,0.19707276020360495,0.21086658886926618,0.22079618450581265,0.17103739636056187,0.18181273271396092,0.14493935434881527,0.18444060527597309,0.18199688680935541,0.19796587532341978,0.18011824069563462,0.19762628995566101,0.23654999490530557,0.23322540161141814,0.1633388941974778,0.1633388941974778,0.16403193642287886,0.22429668742074119,0.17430090097425913,0.15844372053768541,0.15371665000802068,0.16536333045465199,0.17338852188937262,0.16057527494156773,0.16857982997948734,0.17430090097425902,0.14708322185344785,0.21166603712590829,0.19796587532341978,0.13028138998043401,0.22483571031418237,0.14035502207043324,0.19382245038648213,0.19382245038648213,0.15232778366367855,0.1567750505600522,0.17405732755611802,0.19707276020360495,0.19143454711537397,0.19143454711537397,0.17563205406540022,0.14988066690279633,0.176251026939508,0.1489253968232232,0.13526058231257723,0.16525556274266473,0.18925732973268145,0.1609755623445451,246]
[null,"Male 90+",0.1905785806832746,0.16281831865328589,0.14036612467569598,0.17110750235150873,0.17338852188937251,0.19710983638685917,0.19707276020360495,0.21086658886926618,0.22079618450581265,0.17103739636056187,0.18181273271396092,0.14493935434881527,0.18444060527597309,0.18199688680935541,0.19796587532341978,0.18011824069563462,0.19762628995566101,0.23654999490530557,0.23322540161141814,0.1633388941974778,0.1633388941974778,0.16403193642287886,0.22429668742074119,0.17430090097425913,0.15844372053768541,0.15371665000802068,0.16536333045465199,0.17338852188937262,0.16057527494156773,0.16857982997948734,0.17430090097425902,0.14708322185344785,0.21166603712590829,0.19796587532341978,0.13028138998043401,0.22483571031418237,0.14035502207043324,0.19382245038648213,0.19382245038648213,0.15232778366367855,0.1567750505600522,0.17405732755611802,0.19707276020360495,0.19143454711537397,0.19143454711537397,0.17563205406540022,0.14988066690279633,0.176251026939508,0.1489253968232232,0.13526058231257723,0.16525556274266473,0.18925732973268145,0.1609755623445451,247]
[null,null,"Aberdeen City Local Authority","Aberdeen City Deal","Aberdeenshire Local Authority","Angus Local Authority","Argyll & Bute Local Authority","Ayrshire & Arran Health Board","Borders Health Board","Clacks & Stirling IJB","Clackmannanshire Local Authority","Dumfries & Galloway Health Board","Dumfries & Galloway Local Authority","Dundee City Local Authority","East Ayrshire Local Authority","East Dunbartonshire Local Authority","East Lothian Local Authority","East Renfrewshire Local Authority","Edinburgh & Southeast City Deal","Edinburgh, City of Local Authority","Eilean Siar Local Authority","Falkirk Local Authority","Fife Health Board","Fife Local Authority","Forth Valley Health Board","Glasgow City Local Authority","Glasgow & Clyde City Deal","Grampian Health Board","Greater Glasgow & Clyde Health Board","Highland Health Board","Highland Local Authority","Inverclyde Local Authority","Inverness City Deal","Lanarkshire Health Board","Lothian Health Board","Midlothian Local Authority","Moray Local Authority","North Ayrshire Local Authority","North Lanarkshire Local Authority","Orkney Health Board","Orkney Islands Local Authority","Perth & Kinross Local Authority","Renfrewshire Local Authority","SCOTLAND","Scottish Borders Local Authority","Shetland Health Board","Shetland Islands Local Authority","South Ayrshire Local Authority","South Lanarkshire Local Authority","Stirling Local Authority","Tay Cities Deal ","Tayside Health Board","West Dunbartonshire Local Authority","West Lothian Local Authority","Western Isles Health Board",248]
["Overall prevalence","Female",0.19597397577061176,0.16633893373176536,0.14094434471935724,0.1376377549286481,0.17767717532417268,0.16335865593816279,0.16024585559114549,0.19972425477009684,0.16375201506223383,0.15027893082067831,0.15475740578316183,0.15997075046710962,0.12123339258550994,0.15526210413529618,0.19361512881556103,0.15526210413529618,0.18126338235493628,0.21674996041201042,0.16307608946373023,0.17316847405916852,0.14739272058852801,0.15275846514985247,0.18156181253633025,0.16733137357092864,0.15803892335868311,0.16082669269368133,0.15427206127806944,0.17767717532417268,0.12949900318094004,0.17206410528660457,0.1673313735709285,0.16411905352942932,0.19929892741773114,0.19361512881556103,0.12543037711892177,0.19158238628009625,0.15549567693481309,0.17978743924848381,0.17978743924848381,0.14746617430067485,0.18289556668180024,0.16519026157341937,0.16024585559114549,0.166527505512643,0.166527505512643,0.17807863422646494,0.17762393236272506,0.16265293990810342,0.14436257634687313,0.14175534783412036,0.15880083471140979,0.16027388590449043,9.059889864264542E-2,249]
[null,"Male",0.24828175201740885,0.21211626863225091,0.18286602425848766,0.22291524217906949,0.22588690628327415,0.25679053408067026,0.25674223201176266,0.27471254082537472,0.28764860841821382,0.22282390957392154,0.23686179032005295,0.18882393134095818,0.24028532722244589,0.23710170238824971,0.25790576353721456,0.23465424188737383,0.25746335888835875,0.30817234006167987,0.30384113009678093,0.21279446346246733,0.21279446346246733,0.21369734424438788,0.29220898972415338,0.22707553449578119,0.20641713455003,0.2002588068470573,0.21543185628477041,0.22588690628327426,0.20919407863272232,0.21962224396908467,0.22707553449578102,0.19161691667139241,0.27575404513868601,0.25790576353721456,0.16972784477476283,0.29291121737156928,0.18285156001871472,0.25250779699235304,0.25250779699235304,0.19844942109103494,0.20424322652689197,0.22675821218818437,0.25674223201176266,0.24939688701667151,0.24939688701667151,0.22880973264379428,0.19526136903080504,0.22961611743836957,0.19401686333580045,0.17621463144000044,0.21529145878444705,0.24656045416907865,0.20971556461171012,250]
["Crude weights","Female",{"$f":"C251/$AR251","v":1.1863530810108347},1.0069536312092797,0.85322429649833831,0.833207439819172,1.0755911010238546,0.98891214519663118,0.97006841725911108,1.2090558660525439,0.99129339406883676,0.90973238609399698,0.93684339687530171,0.96840303383144699,0.73390157162277603,0.93989865175126808,1.1720735046448736,0.93989865175126808,1.0973006557918255,1.3121231139625937,0.98720159354702941,1.0482971115231463,0.89226034988157465,0.9247425586402287,1.099107240384352,1.0129614904481379,0.95670847575020135,0.97358458762535083,0.93390530294367691,1.0755911010238546,0.78393848370646091,1.0416116764251875,1.012961490448137,0.99351530753818706,1.2064810934944374,1.1720735046448736,0.75930854473024623,1.159768042348833,0.94131261403507438,1.0883658487856844,1.0883658487856844,0.89270501115547307,1.1071812886530945,null,{"$f":"AS251/$AR251","v":0.97006841725911108},1.0080951741736257,1.0080951741736257,1.0780213829210343,1.075268788068233,0.98464000455506129,0.87391699106130838,0.85813380573355846,0.96132080183691837,0.97023810228217455,0.54845181416689281,251]
[null,"Male",{"$f":"C252/$AR252","v":1.09491845795363},0.93542926884702082,0.80643617046481642,0.98305256523223228,0.99615755523690963,1.1324420474243393,1.1322290360919536,1.2114778034913838,1.2685256496002761,0.98264978994014207,1.0445566140003066,0.83271044306988573,1.0596543556404276,1.0456146222897602,1.1373601910531079,1.0348213615859549,1.1354091938010715,1.3590349698379645,1.3399344048656823,0.93842009693510609,0.93842009693510609,0.94240178638841354,1.2886368564312549,1.001399386176733,0.91029618093269526,0.88313805667538303,0.95005095606409906,0.99615755523691019,0.92254245883326269,0.96853049708657235,1.0013993861767323,0.84502746261013673,1.2160708204465842,1.1373601910531079,0.7484970142290035,1.2917336688493786,0.80637238340443451,1.1135552470434869,1.1135552470434869,0.87515869514063616,0.9007092821731747,null,{"$f":"AS252/$AR252","v":1.1322290360919536},1.0998361850273344,1.0998361850273344,1.0090471715922129,0.8610994377957063,1.0126033153225491,0.8556111880736994,0.7771036371276453,0.9494318053882822,1.0873275626483623,0.92484220345532298,252]

{"sheet":"Population 2016","index":12,"n_rows":249,"n_cols":56,"rows_kept":249,"cut":false,"hidden":true,"merged":[]}
["Population 2016 (16+ only)"]
[]
["SIMD","group","Aberdeen City Local Authority","Aberdeen City Region Deal","Aberdeenshire Local Authority","Angus Local Authority","Argyll & Bute Local Authority","Ayrshire & Arran Health Board","Borders Health Board","Clackmannanshire & Stirling IJB","Clackmannanshire Local Authority","Dumfries & Galloway Health Board","Dumfries & Galloway Local Authority","Dundee City Local Authority","East Ayrshire Local Authority","East Dunbartonshire Local Authority","East Lothian Local Authority","East Renfrewshire Local Authority","Edinburgh & SE Scotland City Region Deal","Edinburgh, City of Local Authority","Eilean Siar Local Authority","Falkirk Local Authority","Fife Health Board","Fife Local Authority","Forth Valley Health Board","Glasgow City Local Authority","Glasgow City Region Deal","Grampian Health Board","Greater Glasgow & Clyde Health Board","Highland Health Board","Highland Local Authority","Inverclyde Local Authority","Inverness & Highland City Region Deal","Lanarkshire Health Board","Lothian Health Board","Midlothian Local Authority","Moray Local Authority","North Ayrshire Local Authority","North Lanarkshire Local Authority","Orkney Health Board","Orkney Islands Local Authority","Perth & Kinross Local Authority","Renfrewshire Local Authority","Scotland","Scottish Borders Local Authority","Shetland Health Board","Shetland Islands Local Authority","South Ayrshire Local Authority","South Lanarkshire Local Authority","Stirling Local Authority","Tay Cities Region Deal ","Tayside Health Board","West Dunbartonshire Local Authority","West Lothian Local Authority","Western Isles Health Board",1]
[null,null,"popS12000033","Aber_deal","popS12000034","popS12000041","popS12000035","popS08000015","popS08000016","ClacksStirIJB","popS12000005","popS08000017","popS12000006","popS12000042","popS12000008","popS12000045","popS12000010","popS12000011","EdinSE_deal","popS12000036","popS12000013","popS12000014","popS08000018","popS12000015","popS08000019","popS12000046","GClyde_deal","popS08000020","popS08000021","popS08000022","popS12000017","popS12000018","Inver_deal","popS08000023","popS08000024","popS12000019","popS12000020","popS12000021","popS12000044","popS08000025","popS12000023","popS12000024","popS12000038","popS00000001","popS12000026","popS08000026","popS12000027","popS12000028","popS12000029","popS12000030","Tay_deal","popS08000027","popS12000039","popS12000040","popS08000028",2]
["All quintiles","16+ Males and Females",195653,408972,213319,97075,73892,308413,95528,120583,42326,125906,125906,124421,100941,88730,85101,75148,1132942,429806,22593,131021,305958,305958,251604,516583,1505157,488515,966842,268690,194798,66309,194798,538315,731456,71726,79543,112762,276091,18334,18334,126166,145976,4488783,95528,18967,18967,94710,262224,78257,653620,347662,74096,144823,22593,3]
["Q1 and Q2","16+ Males and Females",55772,76466,20694,23106,17866,167717,20594,42609,21032,44748,44748,68009,58204,18917,25984,11714,380156,118643,5432,56576,120625,120625,99185,329151,800085,89168,514066,67593,49727,36156,49727,286019,238937,32594,12702,67548,163920,2601,2601,20837,67935,1769266,20594,629,629,41965,122099,21577,232577,111952,50193,61716,5432,4]
["SIMD Q1 (most deprived)","16+ Males and Females",15706,20077,4371,6722,5398,92567,5141,19886,9977,9984,9984,43099,31424,4139,2919,4928,153150,55966,0,19042,59089,59089,38928,237443,481887,20712,343232,18565,13167,27666,13167,138655,88920,7071,635,44986,86094,0,0,6620,40910,872234,5141,0,0,16157,52561,9909,115530,56441,28146,22964,0,5]
["SIMD Q2",null,40066,56389,16323,16384,12468,75150,15453,22723,11055,34764,34764,24910,26780,14778,23065,6786,227006,62677,5432,37534,61536,61536,60257,91708,318198,68456,170834,49028,36560,8490,36560,147364,150017,25523,12067,22562,77826,2601,2601,14217,27025,897032,15453,629,629,25808,69538,11668,117047,55511,22047,38752,5432,6]
["SIMD Q3",null,30458,73451,42993,31913,30426,53711,31989,20856,8000,46905,46905,15883,17462,5452,18382,8332,231265,65662,15862,24167,66386,66386,45023,73726,236775,95627,135271,92816,62390,10471,62390,101504,132890,16953,22176,16287,50065,5744,5744,30213,25960,907978,31989,6241,6241,19962,51439,12856,144395,78009,11330,31893,15862,7]
["SIMD Q4",null,33670,111128,77458,24649,18051,45109,34098,29073,7505,22879,22879,21569,13653,16324,26540,11252,219384,69016,1299,25092,52998,52998,54165,60616,224957,141579,135338,82327,64276,11701,64276,89619,132288,11108,30451,18431,37360,8622,8622,52156,25824,910792,34098,12097,12097,13025,52259,21568,151372,98374,9621,25624,1299,8]
["SIMD Q5 (least deprived)",null,75753,147927,72174,17407,7549,41876,8847,28045,5789,11374,11374,18960,11622,48037,14195,43850,302137,176485,0,25186,65949,65949,53231,53090,243340,162141,182167,25954,18405,7981,18405,61173,227341,11071,14214,10496,24746,1367,1367,22960,26257,900747,8847,0,0,19758,36427,22256,125276,59327,2952,25590,0,9]
["SIMD Q1 (most deprived)","16+ Females",7940,10084,2144,3486,2800,49250,2661,10561,5216,5227,5227,22625,16592,2201,1560,2687,79990,29099,0,9861,30881,30881,20422,124184,253184,10434,180380,9647,6847,14769,6847,72804,46448,3734,350,24175,45017,0,0,3368,21320,457633,2661,0,0,8483,27787,5345,60360,29479,15219,12055,0,10]
["SIMD Q2",null,20589,29017,8428,8582,6570,39721,7980,11880,5783,18133,18133,12948,14006,7886,12341,3614,118897,32276,2752,19564,32365,32365,31444,46945,166820,35348,89074,25793,19223,4529,19223,77746,78552,13662,6331,12037,41225,1291,1291,7061,14478,469079,7980,289,289,13678,36521,6097,60956,28591,11622,20273,2752,11]
["SIMD Q3",null,14775,36682,21907,16368,15775,28008,16557,10891,4166,24265,24265,8282,8844,2911,9630,4472,119474,33598,8104,12476,34614,34614,23367,37875,123784,48192,70410,47689,31914,5526,31914,53374,68303,8881,11510,8619,26311,2915,2915,15578,13674,469093,16557,3067,3067,10545,27063,6725,74842,40228,5952,16194,8104,12]
["SIMD Q4",null,17048,56213,39165,12745,9303,23680,17825,14853,3589,11799,11799,11465,7065,8598,14037,6065,113758,35609,688,12801,27274,27274,27654,31260,116221,71636,70387,42063,32760,6043,32760,45834,68659,5845,15423,9678,18881,4382,4382,26672,13379,468792,17825,6029,6029,6937,26953,11264,78156,50882,5042,13168,688,13]
["SIMD Q5 (least deprived)",null,38569,74964,36395,9014,2838,21882,4614,14673,3026,6007,6007,9920,6015,24782,7409,23171,157070,92126,0,12867,34322,34322,27540,27520,126501,81756,94858,12542,9704,4256,9704,31643,118134,5603,6792,5410,12785,683,683,12164,13607,465079,4614,0,0,10457,18858,11647,65420,31098,1522,12996,0,14]
["SIMD Q1 (most deprived)","16+ Males",7766,9993,2227,3236,2598,43317,2480,9325,4761,4757,4757,20474,14832,1938,1359,2241,73160,26867,0,9181,28208,28208,18506,113259,228703,10278,162852,8918,6320,12897,6320,65851,42472,3337,285,20811,41077,0,0,3252,19590,414601,2480,0,0,7674,24774,4564,55170,26962,12927,10909,0,15]
["SIMD Q2",null,19477,27372,7895,7802,5898,35429,7473,10843,5272,16631,16631,11962,12774,6892,10724,3172,108109,30401,2680,17970,29171,29171,28813,44763,151378,33108,81760,23235,17337,3961,17337,69618,71465,11861,5736,10525,36601,1310,1310,7156,12547,427953,7473,340,340,12130,33017,5571,56091,26920,10425,18479,2680,16]
["SIMD Q3",null,15683,36769,21086,15545,14651,25703,15432,9965,3834,22640,22640,7601,8618,2541,8752,3860,111791,32064,7758,11691,31772,31772,21656,35851,112991,47435,64861,45127,30476,4945,30476,48130,64587,8072,10666,7668,23754,2829,2829,14635,12286,438885,15432,3174,3174,9417,24376,6131,69553,37781,5378,15699,7758,17]
["SIMD Q4",null,16622,54915,38293,11904,8748,21429,16273,14220,3916,11080,11080,10104,6588,7726,12503,5187,105626,33407,611,12291,25724,25724,26511,29356,108736,69943,64951,40264,31516,5658,31516,43785,63629,5263,15028,8753,18479,4240,4240,25484,12445,442000,16273,6068,6068,6088,25306,10304,73216,47492,4579,12456,611,18]
["SIMD Q5 (least deprived)",null,37184,72963,35779,8393,4711,19994,4233,13372,2763,5367,5367,9040,5607,23255,6786,20679,145067,84359,0,12319,31627,31627,25691,25570,116839,80385,87309,13412,8701,3725,8701,29530,109207,5468,7422,5086,11961,684,684,10796,12650,435668,4233,0,0,9301,17569,10609,59856,28229,1430,12594,0,19]
["All quintiles","Female 0-4",null,null,null,null,null,null,null,null,null,null,null,null,null,null,null,null,null,null,null,null,null,null,null,null,null,null,null,null,null,null,null,null,null,null,null,null,null,null,null,null,null,null,null,null,null,null,null,null,null,null,null,null,null,20]
[null,"Female 5-9",null,null,null,null,null,null,null,null,null,null,null,null,null,null,null,null,null,null,null,null,null,null,null,null,null,null,null,null,null,null,null,null,null,null,null,null,null,null,null,null,null,null,null,null,null,null,null,null,null,null,null,null,null,21]
[null,"Female 10-15",null,null,null,null,null,null,null,null,null,null,null,null,null,null,null,null,null,null,null,null,null,null,null,null,null,null,null,null,null,null,null,null,null,null,null,null,null,null,null,null,null,null,null,null,null,null,null,null,null,null,null,null,null,22]
[null,"Female 16-19",5132,10449,5317,2420,1755,8055,2394,3878,1120,3007,3007,3946,2632,2319,2320,2269,29879,10481,506,3283,8533,8533,7161,13662,40734,12500,25770,6512,4757,1715,4757,14964,18952,2013,2051,3036,8055,395,395,3162,3858,118803,2394,526,526,2387,6909,2758,18061,9528,1947,4138,506,23]
[null,"Female 20-24",11186,17539,6353,3023,1897,10449,2757,5440,1411,3797,3797,7387,3516,2847,3144,2491,50597,24791,559,4465,12368,12368,9905,28898,64015,20059,44900,7538,5641,2383,5641,19115,35472,2476,2520,3967,10067,534,534,3854,5454,182279,2757,562,562,2966,9048,4029,26632,14264,2827,5061,559,24]
[null,"Female 25-29",11646,18412,6766,2919,1880,10393,2483,4660,1408,3846,3846,6884,3706,2469,2796,2248,52083,27486,611,4641,11146,11146,9301,32603,67710,21019,48136,8030,6150,2297,6150,19574,38454,2653,2607,3823,10607,595,595,3890,5624,187975,2483,694,694,2864,8967,3252,24839,13693,2895,5519,611,25]
[null,"Female 30-34",9712,17943,8231,3238,1920,10174,2828,3996,1462,3753,3753,5361,3622,2437,2969,2196,48660,22996,664,5214,10880,10880,9210,26708,63296,20877,42021,8755,6835,2230,6835,21275,34952,2878,2934,3676,11344,594,594,4385,5477,179608,2828,641,641,2876,9931,2534,23864,12984,2973,6109,664,26]
[null,"Female 35-39",7583,16085,8502,3276,2083,10193,2805,4130,1504,3612,3612,4328,3547,3044,3171,2902,44086,18399,746,5111,10973,10973,9241,21043,58299,18652,37236,8759,6676,2249,6676,21063,30308,2893,2567,3679,11088,587,587,4006,5318,166485,2805,700,700,2967,9975,2626,22583,11610,2680,5845,746,27]
[null,"Female 40-44",6824,15898,9074,3662,2531,11821,3657,4700,1736,4255,4255,3957,4002,3415,3457,3182,44368,16077,826,5798,11795,11795,10498,18545,58315,19026,36123,9983,7452,2474,7452,22192,28916,2880,3128,4405,11655,679,679,4598,5707,172709,3657,721,721,3414,10537,2964,24012,12217,2800,6502,826,28]
[null,"Female 45-49",7059,17560,10501,4288,3168,14637,4591,5736,2106,5713,5713,4585,4999,4300,4361,3828,50032,16115,994,6395,13972,13972,12131,21204,69713,21168,43438,12131,8963,3245,8963,26275,31469,3511,3608,5391,13605,825,825,5763,7211,202829,4591,849,849,4247,12670,3630,28608,14636,3650,7482,994,29]
[null,"Female 50-54",7514,18002,10488,4561,3606,15343,4773,5816,2099,6247,6247,5222,5016,4541,4176,3870,50162,16086,1055,6308,14461,14461,12124,22092,71857,21705,45100,13200,9594,3438,9594,26757,30928,3468,3703,5694,13668,884,884,6032,7332,209262,4773,870,870,4633,13089,3717,30276,15815,3827,7198,1055,30]
[null,"Female 55-59",6840,15898,9058,4348,3443,14228,4541,5068,1864,5813,5813,4949,4484,4332,3915,3436,45797,14875,972,5503,13155,13155,10571,19421,64733,19238,40548,12373,8930,3211,8930,24185,28101,3217,3340,5208,12011,805,805,5481,6630,190084,4541,776,776,4536,12174,3204,27933,14778,3518,6094,972,31]
[null,"Female 60-64",5820,14164,8344,3966,3221,12941,4117,4397,1655,5644,5644,3904,3948,3656,3310,2999,39293,12299,979,4825,11746,11746,9222,15156,53781,17262,32864,11540,8319,2621,8319,20917,23430,2702,3098,4810,10348,750,750,5122,5470,165146,4117,742,742,4183,10569,2742,24738,12992,2962,5119,979,32]
[null,"Female 65-69",5622,13715,8093,4306,3532,13256,4447,4573,1787,5665,5665,4107,4031,3622,3350,2876,40441,12277,1002,4943,12418,12418,9516,13288,50288,16937,30723,11757,8225,2639,8225,19565,23576,2896,3222,4928,9706,779,779,5320,5474,164057,4447,683,683,4297,9859,2786,26151,13733,2824,5053,1002,33]
[null,"Female 70-74",4129,10057,5928,3313,2739,10604,3466,3610,1346,4801,4801,3099,3110,2935,2627,2330,30842,9152,794,3713,9547,9547,7323,10260,39137,12629,23856,9093,6354,2076,6354,15281,17829,2151,2572,3901,7638,666,666,4272,4201,127150,3466,577,577,3593,7643,2264,20231,10684,2054,3899,794,34]
[null,"Female 75-79",3695,8281,4586,2642,2245,8316,2800,2850,983,3660,3660,2766,2449,2597,2148,1948,24775,7867,713,3109,7370,7370,5959,9530,33698,10254,21120,7233,4988,1746,4988,12578,14605,1653,1973,3062,6233,498,498,3398,3509,104331,2800,419,419,2805,6345,1867,16176,8806,1790,2937,713,35]
[null,"Female 80-84",3033,6388,3355,2034,1632,6246,2000,2054,662,2870,2870,2379,1804,1951,1635,1685,18839,6454,553,2196,5495,5495,4250,7853,26368,7981,16925,5426,3794,1382,3794,9443,11344,1238,1593,2273,4548,327,327,2633,2732,80217,2000,311,311,2169,4895,1392,12541,7046,1322,2017,553,36]
[null,"Female 85-89",2017,4180,2163,1315,1000,3632,1227,1203,412,1757,1757,1526,1048,1203,1030,1082,12103,4595,330,1285,3473,3473,2488,4753,15785,5134,10347,3415,2415,892,2415,5438,7403,693,954,1283,2478,219,219,1798,1579,49691,1227,189,189,1301,2960,791,8112,4639,838,1085,330,37]
[null,"Female 90+",1109,2389,1280,884,634,2253,751,747,225,991,991,840,608,710,568,667,7232,2758,240,780,2124,2124,1527,2768,8781,2925,6002,1989,1355,525,1355,2779,4357,403,536,783,1168,134,134,1129,882,29050,751,125,125,862,1611,522,4977,2853,450,628,240,38]
[null,"Male 0-4",null,null,null,null,null,null,null,null,null,null,null,null,null,null,null,null,null,null,null,null,null,null,null,null,null,null,null,null,null,null,null,null,null,null,null,null,null,null,null,null,null,null,null,null,null,null,null,null,null,null,null,null,null,39]
[null,"Male 5-9",null,null,null,null,null,null,null,null,null,null,null,null,null,null,null,null,null,null,null,null,null,null,null,null,null,null,null,null,null,null,null,null,null,null,null,null,null,null,null,null,null,null,null,null,null,null,null,null,null,null,null,null,null,40]
[null,"Male 10-15",null,null,null,null,null,null,null,null,null,null,null,null,null,null,null,null,null,null,null,null,null,null,null,null,null,null,null,null,null,null,null,null,null,null,null,null,null,null,null,null,null,null,null,null,null,null,null,null,null,null,null,null,null,41]
[null,"Male 16-19",4618,10741,6123,2762,2139,8596,2478,3910,1252,3221,3221,3524,2828,2623,2309,2475,30158,10532,556,3747,8648,8648,7657,13791,42639,13104,26871,7596,5457,1848,5457,15768,19032,1961,2363,3245,8401,494,494,3562,4118,124418,2478,549,549,2523,7367,2658,18496,9848,2016,4230,556,42]
[null,"Male 20-24",10055,17241,7186,3297,2955,10847,2809,5494,1591,3996,3996,6850,3689,3335,2990,2815,46618,20799,650,4670,12020,12020,10164,27102,64147,20259,44004,9133,6178,2412,6178,20143,31789,2508,3018,4148,10761,577,577,4430,5464,181688,2809,720,720,3010,9382,3903,26597,14577,2876,5492,650,43]
[null,"Male 25-29",13084,20153,7069,3008,2486,9915,2465,4320,1326,3672,3672,7015,3552,2823,2551,2235,49299,25953,613,4538,10466,10466,8858,31828,66712,23042,47795,8662,6176,2322,6176,18917,36368,2460,2889,3564,10197,605,605,4041,5719,186149,2465,707,707,2799,8720,2994,24530,14064,2868,5404,613,44]
[null,"Male 30-34",10533,18196,7663,3098,1993,9097,2438,3686,1379,3519,3519,5275,3358,2430,2530,1892,45742,22449,618,4657,10197,10197,8343,27904,61765,21010,42551,8457,6464,2227,6464,19214,33107,2518,2814,3224,10357,540,540,4186,5418,172305,2438,655,655,2515,8857,2307,22756,12559,2680,5610,618,45]
[null,"Male 35-39",8518,16872,8354,2990,2111,9060,2607,3767,1433,3252,3252,4008,3246,2566,2713,2396,42754,18925,687,4994,10280,10280,8761,22182,56216,19515,36499,8592,6481,2010,6481,19717,29867,2614,2643,3157,10380,536,536,4185,4942,161268,2607,712,712,2657,9337,2334,21463,11183,2403,5615,687,46]
[null,"Male 40-44",7308,16431,9123,3389,2439,10458,3273,4276,1613,3894,3894,3685,3714,3061,3382,2856,43545,16766,816,5398,11190,11190,9674,18717,55295,19411,34216,9153,6714,2118,6714,21079,29082,2717,2980,3700,11022,622,622,4187,5030,164929,3273,800,800,3044,10057,2663,22451,11261,2434,6217,816,47]
[null,"Male 45-49",7281,17228,9947,4018,3009,12866,4231,5337,2056,5061,5061,4514,4466,3704,3741,3208,47799,16303,1062,6279,13408,13408,11616,19948,63590,20910,38936,11193,8184,2694,8184,24654,30160,3128,3682,4645,12690,795,795,5184,6312,189422,4231,814,814,3755,11964,3281,27124,13716,3070,6988,1062,48]
[null,"Male 50-54",7284,17410,10126,4570,3357,13909,4657,5491,2021,5884,5884,4693,4685,4160,4090,3473,48325,16177,1035,6186,13327,13327,11677,19976,66121,21027,41191,12412,9055,3256,9055,24930,30341,3186,3617,5069,12858,908,908,5940,6814,197429,4657,928,928,4155,12072,3470,28530,15203,3512,6888,1035,49]
[null,"Male 55-59",6797,15936,9139,4032,3246,13173,4341,4964,1828,5552,5552,4632,4283,3876,3744,3233,44067,14276,1018,5421,12779,12779,10385,17580,59729,19197,37212,11962,8716,2965,8716,22517,26947,2942,3261,4790,11103,876,876,5288,6350,180737,4341,826,826,4100,11414,3136,26731,13952,3208,5985,1018,50]
[null,"Male 60-64",6027,14211,8184,3723,3097,11857,4040,4209,1579,5261,5261,3735,3731,3387,3034,2791,37412,12088,987,4431,10956,10956,8640,14433,50045,17177,30858,11077,7980,2425,7980,19187,22416,2609,2966,4304,9377,766,766,4954,5063,156406,4040,772,772,3822,9810,2630,23368,12412,2759,4685,987,51]
[null,"Male 65-69",5436,13667,8231,4139,3351,12280,4344,4311,1637,5663,5663,3703,3787,3321,3001,2478,37322,11191,1050,4682,11517,11517,8993,12473,45785,16610,27887,11360,8009,2361,8009,17898,21461,2602,2943,4478,8878,770,770,5018,4816,153467,4344,774,774,4015,9020,2674,24377,12860,2438,4667,1050,52]
[null,"Male 70-74",3551,9080,5529,2968,2599,9328,3194,3112,1185,4333,4333,2650,2773,2472,2305,1844,27189,7692,741,3266,8633,8633,6378,8760,33436,11338,20327,8593,5994,1795,5994,13109,15362,1939,2258,3391,6342,611,611,3766,3632,111869,3194,538,538,3164,6767,1927,18017,9384,1824,3426,741,53]
[null,"Male 75-79",2734,6713,3979,2218,1841,6859,2310,2318,810,3339,3339,2157,2086,2013,1690,1519,19727,5881,580,2408,6060,6060,4726,6503,24796,8457,15290,5897,4056,1293,4056,9506,11357,1321,1744,2461,4679,467,467,2901,2725,82515,2310,391,391,2312,4827,1508,13336,7276,1237,2465,580,54]
[null,"Male 80-84",2016,4681,2665,1505,1171,4512,1523,1512,486,2250,2250,1534,1329,1495,1188,1102,13669,4490,355,1683,4105,4105,3195,4488,16812,5789,10574,3989,2818,847,2818,6238,8041,862,1108,1620,2981,282,282,2077,1771,56201,1523,232,232,1563,3257,1026,9221,5116,871,1501,355,55]
[null,"Male 85-89",1046,2394,1348,820,580,2206,872,732,249,1098,1098,852,643,749,598,561,7057,2411,210,763,2030,2030,1495,2162,8120,2993,5207,2040,1460,423,1460,2913,4155,460,599,748,1326,147,147,1130,930,28287,872,119,119,815,1587,483,4832,2802,382,686,210,56]
[null,"Male 90+",444,1058,614,343,232,909,309,286,101,480,480,354,249,337,258,261,3070,1165,71,329,886,886,615,952,3439,1310,2315,840,608,190,608,1124,1875,174,252,299,520,67,67,474,414,12017,309,45,45,361,604,185,2057,1171,161,278,71,57]
["SIMD Q1 (most deprived)","Female 0-4",null,null,null,null,null,null,null,null,null,null,null,null,null,null,null,null,null,null,null,null,null,null,null,null,null,null,null,null,null,null,null,null,null,null,null,null,null,null,null,null,null,null,null,null,null,null,null,null,null,null,null,null,null,58]
[null,"Female 5-9",null,null,null,null,null,null,null,null,null,null,null,null,null,null,null,null,null,null,null,null,null,null,null,null,null,null,null,null,null,null,null,null,null,null,null,null,null,null,null,null,null,null,null,null,null,null,null,null,null,null,null,null,null,59]
[null,"Female 10-15",null,null,null,null,null,null,null,null,null,null,null,null,null,null,null,null,null,null,null,null,null,null,null,null,null,null,null,null,null,null,null,null,null,null,null,null,null,null,null,null,null,null,null,null,null,null,null,null,null,null,null,null,null,60]
[null,"Female 16-19",367,479,112,222,146,2710,169,594,274,315,315,1259,870,113,83,167,4509,1504,0,474,1829,1829,1068,6019,12832,495,8838,549,403,688,403,3994,2511,205,16,1351,2539,0,0,183,1046,24142,169,0,0,489,1455,320,3493,1664,805,719,0,61]
[null,"Female 20-24",782,982,200,320,208,4057,217,957,442,502,502,2144,1363,177,120,229,6262,2376,0,776,2248,2248,1733,10248,20452,1017,14969,811,603,1133,603,5483,3797,326,35,1946,3424,0,0,326,1925,37624,217,0,0,748,2059,515,5038,2790,1257,975,0,62]
[null,"Female 25-29",1031,1269,238,299,172,4063,204,1014,428,504,504,2793,1402,192,137,220,8045,3578,0,892,2758,2758,1906,14159,25059,1292,19205,767,595,1143,595,5854,5083,337,23,1950,3719,0,0,401,2185,45129,204,0,0,711,2135,586,6251,3493,1306,1031,0,63]
[null,"Female 30-34",906,1141,235,332,201,3606,207,887,409,430,430,2239,1246,165,124,214,7688,3523,0,874,2433,2433,1761,11989,22794,1174,16689,856,655,1118,655,6105,5048,296,33,1693,3760,0,0,360,1864,41240,207,0,0,667,2345,478,5364,2931,1339,1105,0,64]
[null,"Female 35-39",648,820,172,298,177,3239,192,774,422,361,361,1753,1095,151,145,215,6597,2822,0,690,2211,2211,1464,9938,19487,844,14051,699,522,993,522,5436,4194,280,24,1582,3365,0,0,296,1645,35038,192,0,0,562,2071,352,4558,2347,1109,947,0,65]
[null,"Female 40-44",661,829,168,255,208,3677,233,774,407,365,365,1449,1232,176,106,201,6089,2185,0,792,2275,2275,1566,8898,18428,857,12865,734,526,999,526,5563,3581,284,28,1837,3465,0,0,243,1486,33663,233,0,0,608,2098,367,4222,1947,1105,1006,0,66]
[null,"Female 45-49",594,790,196,304,239,4383,227,982,472,458,458,1647,1527,211,153,246,6820,2329,0,789,2760,2760,1771,10444,21908,818,15496,849,610,1343,610,6412,3833,312,28,2122,3984,0,0,239,1877,39197,227,0,0,734,2428,510,4950,2190,1375,1039,0,67]
[null,"Female 50-54",627,812,185,279,233,4464,220,905,457,473,473,1866,1566,212,125,258,6559,2093,0,840,2766,2766,1745,10956,22425,839,15965,795,562,1323,562,6460,3573,317,27,2202,4042,0,0,259,1798,39704,220,0,0,696,2418,448,5170,2404,1418,1038,0,68]
[null,"Female 55-59",541,700,159,260,223,3913,195,835,419,384,384,1669,1268,212,137,195,6082,2063,0,766,2446,2446,1601,9487,19924,723,14043,739,516,1263,516,5881,3441,310,23,1961,3571,0,0,233,1653,35528,195,0,0,684,2310,416,4608,2162,1233,931,0,69]
[null,"Female 60-64",440,565,125,209,200,3543,186,639,338,345,345,1330,1151,163,97,172,4925,1543,0,649,2086,2086,1288,7302,16077,602,10991,681,481,1042,481,5086,2653,232,37,1762,3061,0,0,212,1259,29212,186,0,0,630,2025,301,3837,1751,1053,781,0,70]
[null,"Female 65-69",408,525,117,187,225,3388,193,684,372,298,298,1327,1122,147,102,173,4911,1493,0,654,2098,2098,1338,6552,14944,557,10089,630,405,1045,405,4855,2620,261,32,1726,2902,0,0,182,1213,27762,193,0,0,540,1953,312,3794,1696,959,764,0,71]
[null,"Female 70-74",287,367,80,161,166,2652,149,528,279,311,311,958,867,102,87,124,3786,1086,0,473,1663,1663,1001,5396,11902,381,8053,483,317,788,317,3849,1974,198,14,1345,2379,0,0,151,960,21786,149,0,0,440,1470,249,2933,1270,683,603,0,72]
[null,"Female 75-79",243,297,54,166,144,2288,104,412,213,189,189,839,739,86,75,109,3115,962,0,508,1365,1365,920,5115,10810,307,7609,409,265,751,265,3201,1646,130,10,1167,1967,0,0,95,958,19138,104,0,0,382,1234,199,2465,1100,590,479,0,73]
[null,"Female 80-84",189,239,50,97,117,1672,82,311,140,151,151,671,560,56,42,94,2364,762,0,363,986,986,674,4049,8473,249,6032,316,199,598,199,2441,1296,136,10,821,1481,0,0,109,787,14776,82,0,0,291,960,171,1863,877,448,356,0,74]
[null,"Female 85-89",145,180,35,60,86,1027,59,165,88,101,101,442,381,33,21,44,1424,509,0,217,605,605,382,2360,4985,188,3577,208,122,361,122,1408,760,72,8,453,894,0,0,52,453,8869,59,0,0,193,514,77,1159,554,326,158,0,75]
[null,"Female 90+",71,89,18,37,55,568,24,100,56,40,40,239,203,5,6,26,814,271,0,104,352,352,204,1272,2684,91,1908,121,66,181,66,776,438,38,2,257,464,0,0,27,211,4825,24,0,0,108,312,44,655,303,213,123,0,76]
[null,"Male 0-4",null,null,null,null,null,null,null,null,null,null,null,null,null,null,null,null,null,null,null,null,null,null,null,null,null,null,null,null,null,null,null,null,null,null,null,null,null,null,null,null,null,null,null,null,null,null,null,null,null,null,null,null,null,77]
[null,"Male 5-9",null,null,null,null,null,null,null,null,null,null,null,null,null,null,null,null,null,null,null,null,null,null,null,null,null,null,null,null,null,null,null,null,null,null,null,null,null,null,null,null,null,null,null,null,null,null,null,null,null,null,null,null,null,78]
[null,"Male 10-15",null,null,null,null,null,null,null,null,null,null,null,null,null,null,null,null,null,null,null,null,null,null,null,null,null,null,null,null,null,null,null,null,null,null,null,null,null,null,null,null,null,null,null,null,null,null,null,null,null,null,null,null,null,79]
[null,"Male 16-19",377,466,89,241,178,2741,177,694,342,294,294,1171,940,136,88,163,4493,1501,0,502,1784,1784,1196,6797,13975,489,9777,588,410,774,410,4198,2532,207,23,1370,2730,0,0,171,1068,25359,177,0,0,431,1468,352,3367,1583,839,736,0,80]
[null,"Male 20-24",616,848,232,340,279,3842,211,887,427,439,439,1933,1299,169,119,194,6147,2198,0,737,2299,2299,1624,10608,20829,872,15004,845,566,1102,566,5825,3637,331,24,1872,3747,0,0,309,1746,37180,211,0,0,671,2078,460,4881,2582,1185,989,0,81]
[null,"Male 25-29",1034,1297,263,314,225,3699,158,865,346,496,496,2715,1282,163,105,196,7309,3335,0,832,2441,2441,1697,13525,23796,1309,18229,822,597,1111,597,5567,4710,255,12,1707,3574,0,0,443,2064,42600,158,0,0,710,1993,519,5913,3472,1170,1015,0,82]
[null,"Male 30-34",867,1140,273,258,176,3261,174,759,363,346,346,2130,1116,134,110,184,6619,2881,0,764,2287,2287,1523,11843,21614,1149,16292,796,620,1046,620,5322,4158,281,9,1550,3370,0,0,310,1941,38006,174,0,0,595,1952,396,4985,2698,1144,886,0,83]
[null,"Male 35-39",826,1033,207,256,150,2914,187,657,362,298,298,1533,948,136,86,165,6118,2620,0,721,2123,2123,1378,9660,18511,1059,13358,612,462,831,462,5153,3808,238,26,1384,3174,0,0,305,1610,32984,187,0,0,582,1979,295,4217,2094,956,864,0,84]
[null,"Male 40-44",675,887,212,251,167,3182,190,633,352,341,341,1296,1123,136,133,169,5949,2370,0,754,2102,2102,1387,8680,17348,917,12125,700,533,854,533,5223,3657,267,30,1491,3200,0,0,252,1408,31623,190,0,0,568,2023,281,3901,1799,878,887,0,85]
[null,"Male 45-49",626,815,189,277,203,3604,252,780,425,406,406,1626,1280,185,94,183,6621,2305,0,851,2635,2635,1631,9474,19864,854,13826,738,535,1118,535,6038,3734,309,39,1724,3787,0,0,257,1813,35878,252,0,0,600,2251,355,4795,2160,1053,1026,0,86]
[null,"Male 50-54",615,772,157,292,263,3880,260,861,454,437,437,1665,1353,189,143,241,6530,2390,0,858,2439,2439,1719,9703,20490,797,14561,815,552,1285,552,5929,3831,305,25,1895,3785,0,0,297,1800,36922,260,0,0,632,2144,407,4693,2254,1343,993,0,87]
[null,"Male 55-59",562,744,182,232,213,3779,197,814,428,389,389,1605,1264,173,112,193,5690,1884,0,727,2413,2413,1541,8490,18264,771,12759,747,534,1125,534,5505,3080,269,27,1860,3387,0,0,233,1675,33251,197,0,0,655,2118,386,4483,2070,1103,815,0,88]
[null,"Male 60-64",506,607,101,196,207,3230,154,635,333,322,322,1294,1045,160,87,146,4762,1610,0,623,2018,2018,1258,6842,14830,627,10291,645,438,964,438,4539,2590,244,20,1575,2722,0,0,194,1196,27358,154,0,0,610,1817,302,3702,1684,983,649,0,89]
[null,"Male 65-69",435,554,119,205,171,3104,200,620,337,371,371,1230,1089,127,101,136,4456,1314,0,644,1949,1949,1264,6096,13626,573,9229,577,406,978,406,4397,2307,203,19,1490,2667,0,0,161,1075,25567,200,0,0,525,1730,283,3545,1596,817,689,0,90]
[null,"Male 70-74",253,320,67,135,156,2302,139,445,245,226,226,875,747,88,64,87,3277,894,0,406,1490,1490,851,4417,9819,335,6634,419,263,674,263,3185,1648,152,15,1143,1879,0,0,119,770,18358,139,0,0,412,1306,200,2619,1129,598,538,0,91]
[null,"Male 75-79",167,225,58,122,90,1795,73,356,182,183,183,664,635,67,61,101,2383,725,0,350,1000,1000,706,3313,7452,232,5066,281,191,506,191,2386,1310,116,7,852,1478,0,0,96,679,13914,73,0,0,308,908,174,1882,882,400,408,0,92]
[null,"Male 80-84",120,162,42,69,69,1204,56,170,81,116,116,422,422,43,39,48,1646,496,0,256,725,725,426,2264,4928,165,3371,196,127,325,127,1557,865,74,3,555,970,0,0,64,425,9236,56,0,0,227,587,89,1280,555,266,256,0,93]
[null,"Male 85-89",62,83,21,37,39,565,38,104,55,67,67,224,208,23,10,24,789,234,0,104,347,347,208,1083,2336,87,1617,104,65,141,65,719,404,56,4,251,419,0,0,32,226,4449,38,0,0,106,300,49,640,293,120,104,0,94]
[null,"Male 90+",25,40,15,11,12,215,14,45,29,26,26,91,81,9,7,11,371,110,0,52,156,156,97,464,1021,42,713,33,21,63,21,308,201,30,2,92,188,0,0,9,94,1916,14,0,0,42,120,16,267,111,72,54,0,95]
["SIMD Q2","Female 0-4",null,null,null,null,null,null,null,null,null,null,null,null,null,null,null,null,null,null,null,null,null,null,null,null,null,null,null,null,null,null,null,null,null,null,null,null,null,null,null,null,null,null,null,null,null,null,null,null,null,null,null,null,null,96]
[null,"Female 5-9",null,null,null,null,null,null,null,null,null,null,null,null,null,null,null,null,null,null,null,null,null,null,null,null,null,null,null,null,null,null,null,null,null,null,null,null,null,null,null,null,null,null,null,null,null,null,null,null,null,null,null,null,null,97]
[null,"Female 10-15",null,null,null,null,null,null,null,null,null,null,null,null,null,null,null,null,null,null,null,null,null,null,null,null,null,null,null,null,null,null,null,null,null,null,null,null,null,null,null,null,null,null,null,null,null,null,null,null,null,null,null,null,null,98]
[null,"Female 16-19",959,1342,383,387,281,1847,362,646,329,884,884,668,690,359,552,215,5913,1606,118,929,1557,1557,1575,2401,8450,1616,4538,1238,957,231,957,3912,3994,760,274,561,2196,49,49,362,755,23121,362,14,14,596,1716,317,2974,1417,577,1076,118,99]
[null,"Female 20-24",2193,2788,595,753,365,2502,553,1032,376,1105,1105,1621,894,514,929,273,10080,4104,144,1303,2106,2106,2335,4568,12732,3344,7386,1593,1228,289,1228,5346,7421,953,556,762,2801,88,88,576,960,36899,553,26,26,846,2545,656,5056,2950,782,1435,144,100]
[null,"Female 25-29",2497,3162,665,776,428,2689,560,1019,434,1072,1072,1497,1016,584,927,254,11158,4643,157,1414,2393,2393,2433,5944,14679,3657,9066,1727,1299,357,1299,5613,8205,1001,495,763,3033,100,100,642,1074,40610,560,23,23,910,2580,585,5308,2915,853,1634,157,101]
[null,"Female 30-34",2127,2745,618,706,356,2556,474,846,403,1091,1091,1106,966,516,953,246,10451,3896,150,1505,2371,2371,2351,4938,13925,3276,7994,1718,1362,379,1362,5931,7606,1060,531,786,3202,62,62,694,1031,38102,474,16,16,804,2729,443,4877,2506,884,1697,150,102]
[null,"Female 35-39",1590,2207,617,566,373,2574,455,848,407,1065,1065,862,960,578,899,269,8704,2632,153,1467,2235,2235,2315,3687,11871,2646,6545,1625,1252,248,1252,5326,6014,1025,439,770,2945,71,71,528,956,33014,455,34,34,844,2381,441,4191,1956,807,1458,153,103]
[null,"Female 40-44",1433,2044,611,626,439,2816,494,905,462,1197,1197,767,1025,550,873,266,8657,2320,200,1535,2390,2390,2440,3234,11853,2501,6289,1806,1367,291,1367,5564,5773,971,457,916,3066,105,105,460,1112,33442,494,14,14,875,2498,443,4243,1853,836,1609,200,104]
[null,"Female 45-49",1498,2184,686,665,520,3587,664,1040,545,1566,1566,799,1328,754,1094,385,9718,2170,233,1758,2735,2735,2798,3645,14257,2712,7483,2134,1614,400,1614,6774,6319,1216,528,1140,3608,95,95,583,1267,39170,664,23,23,1119,3166,495,4782,2047,1032,1839,233,105]
[null,"Female 50-54",1562,2295,733,620,577,3706,713,1090,562,1695,1695,953,1254,740,1112,363,9801,2060,270,1752,2947,2947,2842,3735,14788,2808,7726,2331,1754,480,1754,7062,6141,1207,513,1189,3723,122,122,562,1315,40518,713,20,20,1263,3339,528,5082,2135,1093,1762,270,106]
[null,"Female 55-59",1390,2044,654,671,587,3484,693,936,471,1582,1582,900,1188,700,1053,288,9078,1871,231,1530,2660,2660,2466,3343,13419,2553,6938,2259,1672,438,1672,6481,5725,1183,509,1060,3369,109,109,509,1159,37275,693,14,14,1236,3112,465,4740,2080,1010,1618,231,107]
[null,"Female 60-64",1242,1852,610,563,526,3066,629,796,418,1556,1556,775,1040,528,882,251,7802,1536,248,1426,2425,2425,2222,2630,11399,2340,5533,2041,1515,318,1515,5866,4748,969,488,923,3059,104,104,498,941,32644,629,30,30,1103,2807,378,4261,1836,865,1361,248,108]
[null,"Female 65-69",1175,1846,671,601,577,3156,684,825,459,1539,1539,799,1047,523,858,247,8027,1507,236,1421,2498,2498,2246,2289,10956,2299,5323,2117,1540,360,1540,5633,4845,1041,453,976,2936,119,119,460,1056,32580,684,25,25,1133,2697,366,4358,1860,848,1439,236,109]
[null,"Female 70-74",810,1333,523,485,476,2542,547,672,353,1252,1252,642,854,468,694,146,6254,1136,173,1160,1922,1922,1832,1748,8804,1687,4127,1602,1126,274,1126,4677,3785,756,354,747,2486,103,103,369,855,25764,547,19,19,941,2191,319,3418,1496,636,1199,173,110]
[null,"Female 75-79",804,1228,424,427,440,2066,442,534,240,981,981,617,730,380,613,158,5240,1088,166,962,1578,1578,1496,1715,7811,1536,3868,1472,1032,202,1032,3943,3220,601,308,568,2070,63,63,282,805,22167,442,10,10,768,1873,294,2904,1326,608,918,166,111]
[null,"Female 80-84",713,1051,338,330,334,1620,350,357,161,817,817,502,541,350,483,151,4031,815,153,693,1257,1257,1050,1545,6306,1272,3305,1078,744,156,744,3001,2424,473,221,478,1529,60,60,236,671,17470,350,15,15,601,1472,196,2325,1068,432,653,153,112]
[null,"Female 85-89",401,587,186,245,187,890,213,208,102,455,455,275,289,203,272,67,2527,556,63,433,809,809,641,960,3673,728,1920,676,489,80,489,1753,1505,307,141,244,842,29,29,204,353,10411,213,5,5,357,911,106,1533,724,257,370,63,113]
[null,"Female 90+",195,309,114,161,104,620,147,126,61,276,276,165,184,139,147,35,1456,336,57,276,482,482,402,563,1897,373,1033,376,272,26,272,864,827,139,64,154,360,12,12,96,168,5892,147,1,1,282,504,65,904,422,102,205,57,114]
[null,"Male 0-4",null,null,null,null,null,null,null,null,null,null,null,null,null,null,null,null,null,null,null,null,null,null,null,null,null,null,null,null,null,null,null,null,null,null,null,null,null,null,null,null,null,null,null,null,null,null,null,null,null,null,null,null,null,115]
[null,"Male 5-9",null,null,null,null,null,null,null,null,null,null,null,null,null,null,null,null,null,null,null,null,null,null,null,null,null,null,null,null,null,null,null,null,null,null,null,null,null,null,null,null,null,null,null,null,null,null,null,null,null,null,null,null,null,116]
[null,"Male 10-15",null,null,null,null,null,null,null,null,null,null,null,null,null,null,null,null,null,null,null,null,null,null,null,null,null,null,null,null,null,null,null,null,null,null,null,null,null,null,null,null,null,null,null,null,null,null,null,null,null,null,null,null,null,117]
[null,"Male 16-19",925,1350,425,390,304,2032,365,621,306,904,904,564,727,419,608,218,5932,1517,140,1094,1635,1635,1715,2329,8547,1696,4487,1318,1014,213,1014,4060,3932,717,346,663,2211,67,67,380,725,23693,365,8,8,642,1849,315,2969,1334,583,1090,140,118]
[null,"Male 20-24",2227,2839,612,608,398,2609,540,1032,406,1220,1220,1679,978,616,853,295,8771,2929,156,1315,2030,2030,2347,4391,12741,3325,7435,1706,1308,322,1308,5306,6201,886,486,832,2832,91,91,669,976,35964,540,42,42,799,2474,626,4986,2956,835,1533,156,119]
[null,"Male 25-29",2659,3378,719,711,364,2551,568,1041,387,993,993,1555,940,580,850,258,10315,4305,177,1333,2157,2157,2374,6039,14465,3910,9057,1655,1291,320,1291,5408,7590,932,532,776,2896,104,104,755,1016,39611,568,46,46,835,2512,654,5178,3021,844,1503,177,120]
[null,"Male 30-34",2113,2753,640,719,387,2429,483,825,367,997,997,1196,961,508,831,220,9827,3889,146,1335,2107,2107,2160,5603,13940,3248,8561,1637,1250,319,1250,5379,7237,902,495,704,2963,71,71,752,1092,37146,483,24,24,764,2416,458,4774,2667,819,1615,146,121]
[null,"Male 35-39",1642,2265,623,614,377,2151,472,729,384,940,940,817,848,442,798,199,8615,2981,142,1335,2065,2065,2064,4380,11927,2731,6999,1557,1180,307,1180,4928,6078,886,466,603,2651,72,72,678,866,32341,472,33,33,700,2277,345,4174,2109,805,1413,142,122]
[null,"Male 40-44",1429,2014,585,580,360,2509,514,785,417,1122,1122,767,944,496,822,265,8563,2552,199,1446,2265,2265,2231,3379,11460,2417,6072,1530,1170,261,1170,5388,5784,883,403,743,2932,102,102,505,918,32014,514,29,29,822,2456,368,4117,1852,753,1527,199,123]
[null,"Male 45-49",1517,2140,623,666,498,3221,612,967,533,1351,1351,912,1179,566,936,284,9183,2341,235,1710,2595,2595,2677,3570,13124,2662,6727,1928,1430,319,1430,6397,5976,1025,522,992,3316,105,105,611,1061,36688,612,13,13,1050,3081,434,4784,2189,927,1674,235,124]
[null,"Male 50-54",1408,2065,657,667,512,3406,693,977,498,1582,1582,848,1234,726,1012,342,9438,2254,259,1662,2706,2706,2639,3451,13528,2570,7034,2125,1613,419,1613,6494,6039,1112,505,1006,3378,119,119,602,1120,37819,693,36,36,1166,3116,479,4823,2117,976,1661,259,125]
[null,"Male 55-59",1385,2032,647,563,542,3150,671,911,448,1530,1530,788,1136,622,950,282,8618,1937,257,1517,2522,2522,2428,3099,12461,2499,6391,2091,1549,381,1549,6070,5425,1049,467,914,3042,110,110,515,1055,35036,671,26,26,1100,3028,463,4388,1866,952,1489,257,126]
[null,"Male 60-64",1133,1677,544,560,505,2766,642,766,412,1384,1384,655,953,492,749,257,7336,1534,259,1249,2270,2270,2015,2467,10473,2051,5204,1879,1374,287,1374,5269,4424,921,374,847,2728,109,109,472,923,29980,642,21,21,966,2541,354,3957,1687,778,1220,259,127]
[null,"Male 65-69",1034,1670,636,598,547,2950,661,800,404,1537,1537,728,959,443,765,202,7355,1418,255,1398,2351,2351,2198,2048,9471,2054,4509,2003,1456,271,1456,4962,4343,881,384,883,2561,121,121,434,842,29727,661,23,23,1108,2401,396,4111,1760,703,1279,255,128]
[null,"Male 70-74",672,1103,431,406,433,2179,474,531,287,1161,1161,498,722,319,546,121,5419,1031,163,980,1692,1692,1511,1516,7393,1401,3466,1508,1075,216,1075,3927,3253,680,298,610,2005,98,98,291,704,22052,474,24,24,847,1922,244,2887,1195,590,996,163,129]
[null,"Male 75-79",558,884,326,303,321,1673,350,423,214,919,919,446,575,282,463,98,4030,750,145,725,1276,1276,1148,1131,5554,1091,2681,1066,745,152,745,2873,2404,472,207,468,1489,81,81,231,589,16695,350,8,8,630,1384,209,2256,980,429,719,145,130]
[null,"Male 80-84",451,719,268,227,211,1039,221,271,127,583,583,297,357,202,324,82,2740,546,89,525,878,878,796,800,3807,867,1869,697,486,107,486,1938,1641,294,148,292,1002,35,35,150,413,11333,221,6,6,390,936,144,1552,674,265,477,89,131]
[null,"Male 85-89",231,334,103,122,104,550,151,127,62,284,284,145,191,115,150,32,1369,272,49,253,430,430,380,396,1801,406,894,364,260,49,260,907,788,157,72,136,447,16,16,81,174,5568,151,1,1,223,460,65,778,348,128,209,49,132]
[null,"Male 90+",93,149,56,68,35,214,56,37,20,124,124,67,70,64,67,17,598,145,9,93,192,192,130,164,686,180,374,171,136,18,136,312,350,64,31,56,148,9,9,30,73,2286,56,0,0,88,164,17,357,165,38,74,9,133]
["SIMD Q3","Female 0-4",null,null,null,null,null,null,null,null,null,null,null,null,null,null,null,null,null,null,null,null,null,null,null,null,null,null,null,null,null,null,null,null,null,null,null,null,null,null,null,null,null,null,null,null,null,null,null,null,null,null,null,null,null,134]
[null,"Female 5-9",null,null,null,null,null,null,null,null,null,null,null,null,null,null,null,null,null,null,null,null,null,null,null,null,null,null,null,null,null,null,null,null,null,null,null,null,null,null,null,null,null,null,null,null,null,null,null,null,null,null,null,null,null,135]
[null,"Female 10-15",null,null,null,null,null,null,null,null,null,null,null,null,null,null,null,null,null,null,null,null,null,null,null,null,null,null,null,null,null,null,null,null,null,null,null,null,null,null,null,null,null,null,null,null,null,null,null,null,null,null,null,null,null,136]
[null,"Female 16-19",686,1739,1053,783,761,1343,778,521,175,1068,1068,476,417,164,454,231,5612,1436,359,598,1613,1613,1119,2366,6658,2309,3947,2204,1443,276,1443,2711,3221,478,570,407,1401,123,123,661,662,22864,778,149,149,519,1310,346,3533,1920,248,853,359,137]
[null,"Female 20-24",2047,3366,1319,892,679,1536,944,908,256,1258,1258,856,496,216,627,258,9979,4577,365,780,2249,2249,1688,5281,10715,4056,7340,2329,1650,319,1650,3375,6786,516,690,475,1711,169,169,894,872,34910,944,173,173,565,1664,652,4891,2642,394,1066,365,138]
[null,"Female 25-29",2001,3419,1418,811,728,1569,769,843,265,1309,1309,957,535,200,591,266,11165,5634,413,789,2483,2483,1632,4977,10596,4149,7016,2509,1781,307,1781,3580,7913,581,730,430,1886,184,184,928,883,36432,769,210,210,604,1694,578,5179,2696,383,1107,413,139]
[null,"Female 30-34",1580,3122,1542,1001,825,1684,948,690,274,1254,1254,616,555,161,607,281,10090,4317,453,918,2372,2372,1608,3952,9993,3968,6020,2744,1919,269,1919,3973,6770,615,846,465,2153,203,203,993,973,34795,948,188,188,664,1820,416,4982,2610,384,1231,453,140]
[null,"Female 35-39",986,2487,1501,1074,844,1712,901,700,237,1233,1233,481,545,195,619,295,8723,2948,547,934,2446,2446,1634,2996,9211,3196,5164,2899,2055,373,2055,4047,5376,619,709,499,2218,142,142,915,930,31957,901,190,190,668,1829,463,4916,2470,375,1190,547,141]
[null,"Female 40-44",869,2490,1621,1248,1048,1991,1201,773,293,1568,1568,422,658,213,683,311,8627,2347,574,1000,2434,2434,1773,2508,9074,3339,4878,3250,2202,415,2202,4196,4992,659,849,586,2292,193,193,1034,1027,33291,1201,198,198,747,1904,480,5138,2704,404,1303,574,142]
[null,"Female 45-49",895,2978,2083,1415,1294,2544,1550,940,393,2162,2162,536,868,310,942,357,10109,2094,709,1129,3028,3028,2069,2734,10876,3978,5847,4181,2887,489,2887,5029,5531,869,1000,744,2502,260,260,1369,1377,40488,1550,280,280,932,2527,547,6348,3320,580,1626,709,143]
[null,"Female 50-54",996,3074,2078,1588,1612,2825,1593,997,405,2340,2340,660,926,266,849,404,10273,2070,719,1196,3271,3271,2193,2861,10969,4168,5977,4739,3127,546,3127,4992,5409,875,1094,798,2428,284,284,1497,1329,42537,1593,282,282,1101,2564,592,7016,3745,571,1615,719,144]
[null,"Female 55-59",906,2768,1862,1542,1487,2500,1570,898,386,2173,2173,638,808,279,836,395,9353,1821,683,1070,2987,2987,1968,2555,10187,3724,5518,4507,3020,571,3020,4669,4796,764,956,764,2144,244,244,1372,1172,39153,1570,262,262,928,2525,512,6539,3552,546,1375,683,145]
[null,"Female 60-64",841,2642,1801,1362,1473,2298,1415,833,326,2131,2131,526,666,240,729,343,8015,1486,693,970,2581,2581,1803,1882,8296,3506,4371,4238,2765,397,2765,3925,4019,649,864,762,1815,221,221,1235,1017,34585,1415,261,261,870,2110,507,5704,3123,492,1155,693,146]
[null,"Female 65-69",794,2604,1810,1443,1556,2476,1515,823,359,2297,2297,548,770,211,739,327,8396,1422,707,1016,2823,2823,1839,1598,7763,3496,4058,4342,2786,395,2786,3705,4058,720,892,784,1794,227,227,1293,1042,35061,1515,234,234,922,1911,464,6107,3284,485,1177,707,147]
[null,"Female 70-74",599,1937,1338,1085,1160,1997,1143,657,279,1869,1869,415,608,162,589,261,6421,1066,575,729,2149,2149,1386,1242,6160,2692,3141,3394,2234,329,2234,3019,3129,545,755,653,1406,229,229,1119,795,27558,1143,216,216,736,1613,378,4768,2619,352,929,575,148]
[null,"Female 75-79",553,1598,1045,818,954,1479,921,537,217,1422,1422,400,433,119,501,257,5125,892,509,604,1689,1689,1141,1038,5134,2207,2637,2589,1635,296,1635,2497,2515,430,609,517,1087,185,185,851,639,22028,921,168,168,529,1410,320,3758,2069,288,692,509,149]
[null,"Female 80-84",501,1179,678,624,676,1081,680,386,148,1051,1051,397,318,78,390,250,3774,707,381,419,1223,1223,805,937,4117,1687,2178,1879,1203,216,1203,1939,1871,297,508,359,834,106,106,671,454,16697,680,124,124,404,1105,238,2915,1692,243,477,381,150]
[null,"Female 85-89",331,820,489,408,407,610,397,243,108,717,717,222,144,50,302,154,2406,491,245,220,815,815,463,565,2472,1088,1337,1219,812,175,812,1135,1194,155,268,227,441,78,78,458,259,10459,397,73,73,239,694,135,1903,1088,134,246,245,151]
[null,"Female 90+",190,459,269,274,271,363,232,142,45,413,413,132,97,47,172,82,1406,290,172,104,451,451,246,383,1563,629,981,666,395,153,395,582,723,109,170,149,199,67,67,288,243,6278,232,59,59,117,383,97,1145,694,73,152,172,152]
[null,"Male 0-4",null,null,null,null,null,null,null,null,null,null,null,null,null,null,null,null,null,null,null,null,null,null,null,null,null,null,null,null,null,null,null,null,null,null,null,null,null,null,null,null,null,null,null,null,null,null,null,null,null,null,null,null,null,153]
[null,"Male 5-9",null,null,null,null,null,null,null,null,null,null,null,null,null,null,null,null,null,null,null,null,null,null,null,null,null,null,null,null,null,null,null,null,null,null,null,null,null,null,null,null,null,null,null,null,null,null,null,null,null,null,null,null,null,154]
[null,"Male 10-15",null,null,null,null,null,null,null,null,null,null,null,null,null,null,null,null,null,null,null,null,null,null,null,null,null,null,null,null,null,null,null,null,null,null,null,null,null,null,null,null,null,null,null,null,null,null,null,null,null,null,null,null,null,155]
[null,"Male 16-19",619,1851,1232,925,815,1444,794,512,217,1208,1208,389,465,160,516,246,5571,1311,381,626,1656,1656,1138,2054,6634,2408,3768,2505,1690,260,1690,2866,3121,412,557,383,1487,150,150,807,785,23727,794,167,167,596,1379,295,3777,2121,263,882,381,156]
[null,"Male 20-24",2020,3535,1515,983,822,1804,938,931,293,1382,1382,762,629,221,635,326,9367,3675,447,830,2293,2293,1761,4734,10454,4210,6922,2598,1776,386,1776,3532,6136,599,675,528,1746,180,180,1070,864,35247,938,229,229,647,1786,638,5108,2815,391,1227,447,157]
[null,"Male 25-29",2507,3861,1354,874,741,1601,868,783,228,1315,1315,898,628,208,597,252,10586,5065,411,773,2284,2284,1556,4871,10361,4548,7046,2522,1781,364,1781,3315,7434,568,687,422,1654,203,203,863,916,35940,868,202,202,551,1661,555,4919,2635,435,1204,411,158]
[null,"Male 30-34",1901,3336,1435,977,702,1491,885,655,220,1233,1233,736,532,179,525,254,9969,4483,449,775,2265,2265,1430,4492,10217,4128,6576,2653,1951,323,1951,3641,6819,567,792,394,1927,175,175,963,950,34643,885,222,222,565,1714,435,4941,2676,378,1244,449,159]
[null,"Male 35-39",1378,2828,1450,967,788,1594,835,642,222,1144,1144,528,598,158,540,263,8852,3418,495,936,2232,2232,1578,3444,9199,3551,5375,2770,1982,347,1982,3824,5785,586,723,417,2112,162,162,942,831,32007,835,225,225,579,1712,420,4669,2437,332,1241,495,160]
[null,"Male 40-44",1063,2661,1598,1136,943,1780,1098,717,292,1367,1367,478,609,188,701,265,8689,2555,562,954,2385,2385,1671,2499,8483,3466,4552,2890,1947,349,1947,3931,5206,640,805,515,2101,166,166,923,847,31831,1098,220,220,656,1830,425,4922,2537,404,1310,562,161]
[null,"Male 45-49",1045,3055,2010,1368,1251,2296,1359,882,370,1886,1886,501,798,236,802,305,9492,2240,755,1160,2847,2847,2042,2602,9794,4032,5135,3799,2548,402,2548,4659,5286,743,977,674,2351,216,216,1207,1096,37651,1359,263,263,824,2308,512,5923,3076,494,1501,755,162]
[null,"Male 50-54",1068,3059,1991,1592,1399,2568,1561,946,380,2194,2194,642,905,242,819,388,9822,2201,720,1203,2967,2967,2149,2611,10234,4060,5533,4402,3003,479,3003,4701,5294,749,1001,756,2320,284,284,1419,1267,40386,1561,300,300,907,2381,566,6620,3653,546,1525,720,163]
[null,"Male 55-59",947,2791,1844,1476,1413,2249,1530,888,376,2106,2106,596,713,231,839,380,9193,1854,709,1022,2906,2906,1910,2317,9276,3753,5061,4380,2967,511,2967,4215,4757,692,962,722,1919,303,303,1324,1096,37545,1530,270,270,814,2296,512,6302,3396,526,1372,709,164]
[null,"Male 60-64",850,2574,1724,1256,1370,2167,1350,778,308,2038,2038,500,680,204,739,296,7823,1524,683,847,2431,2431,1625,1935,7810,3410,4163,4178,2808,383,2808,3647,4042,658,836,641,1637,242,242,1249,882,33247,1350,266,266,846,2010,470,5436,3005,463,1121,683,165]
[null,"Male 65-69",802,2600,1798,1465,1569,2320,1462,797,326,2190,2190,503,709,222,691,261,7857,1374,743,911,2594,2594,1708,1535,7064,3469,3692,4333,2764,358,2764,3372,3801,662,869,763,1649,234,234,1208,918,33371,1462,277,277,848,1723,471,5770,3176,398,1074,743,166]
[null,"Male 70-74",496,1770,1274,957,1133,1761,1079,571,249,1755,1755,354,545,123,526,217,5596,815,536,687,1900,1900,1258,1089,5184,2408,2713,3255,2122,301,2122,2471,2617,470,638,574,1160,195,195,970,679,24436,1079,207,207,642,1311,322,4181,2281,304,806,536,167]
[null,"Male 75-79",449,1329,880,715,851,1302,799,400,165,1317,1317,308,407,68,349,172,4159,651,413,488,1438,1438,888,776,3820,1893,1896,2293,1442,214,1442,1924,1922,344,564,429,846,140,140,742,479,18146,799,156,156,466,1078,235,3203,1765,187,578,413,168]
[null,"Male 80-84",317,916,599,470,508,803,522,283,105,892,892,210,259,69,274,129,2829,545,245,290,910,910,573,535,2594,1232,1373,1521,1013,141,1013,1221,1397,223,316,274,511,105,105,529,335,12096,522,93,93,270,710,178,2119,1209,164,355,245,169]
[null,"Male 85-89",158,417,259,267,245,374,259,124,56,413,413,144,106,20,140,71,1413,248,149,125,467,467,249,237,1267,607,694,740,495,89,495,573,687,121,190,117,244,53,53,286,208,6019,259,57,57,151,329,68,1164,697,69,178,149,170]
[null,"Male 90+",63,186,123,117,101,149,93,56,27,200,200,52,35,12,59,35,573,105,60,64,197,197,120,120,600,260,362,288,187,38,187,238,283,38,74,59,90,21,21,133,133,2593,93,20,20,55,148,29,499,302,24,81,60,171]
["SIMD Q4","Female 0-4",null,null,null,null,null,null,null,null,null,null,null,null,null,null,null,null,null,null,null,null,null,null,null,null,null,null,null,null,null,null,null,null,null,null,null,null,null,null,null,null,null,null,null,null,null,null,null,null,null,null,null,null,null,172]
[null,"Female 5-9",null,null,null,null,null,null,null,null,null,null,null,null,null,null,null,null,null,null,null,null,null,null,null,null,null,null,null,null,null,null,null,null,null,null,null,null,null,null,null,null,null,null,null,null,null,null,null,null,null,null,null,null,null,173]
[null,"Female 10-15",null,null,null,null,null,null,null,null,null,null,null,null,null,null,null,null,null,null,null,null,null,null,null,null,null,null,null,null,null,null,null,null,null,null,null,null,null,null,null,null,null,null,null,null,null,null,null,null,null,null,null,null,null,174]
[null,"Female 16-19",1082,2976,1894,569,433,1093,875,880,179,481,481,911,337,362,874,347,5276,1328,29,605,1236,1236,1485,1386,5855,3751,3282,1946,1513,325,1513,2573,3165,287,775,461,1132,197,197,1452,647,23408,875,363,363,295,1441,701,4168,2932,215,676,29,175]
[null,"Female 20-24",2572,4756,2184,634,461,1319,840,1254,191,624,624,1990,445,550,1110,357,8161,3456,50,805,1598,1598,2059,4937,10228,5560,7331,2129,1668,397,1668,2897,5723,332,804,535,1272,233,233,1483,814,34833,840,363,363,339,1625,1063,5705,4107,276,825,50,176]
[null,"Female 25-29",2096,4458,2362,631,406,1203,792,987,175,607,607,998,412,436,777,382,9342,4806,41,776,1580,1580,1763,4096,9115,5351,6268,2277,1871,319,1871,2847,6970,385,893,498,1234,257,257,1387,750,33433,792,461,461,293,1613,812,4596,3016,285,1002,41,177]
[null,"Female 30-34",1659,4533,2874,707,426,1307,920,894,235,624,624,781,461,467,863,341,9182,4054,61,882,1666,1666,1776,3266,8788,5547,5502,2667,2241,285,2241,3286,6596,481,1014,469,1365,290,290,1671,859,33838,920,437,437,377,1921,659,4825,3159,284,1198,61,178]
[null,"Female 35-39",1289,4279,2990,763,521,1435,946,980,244,605,605,660,543,502,958,404,8414,3028,46,941,1788,1788,1921,2401,8648,5267,4827,2670,2149,403,2149,3821,5680,492,988,512,1524,315,315,1580,853,32800,946,476,476,380,2297,736,4791,3003,264,1202,46,179]
[null,"Female 40-44",1032,4278,3246,824,642,1765,1248,1195,324,749,749,647,559,597,1156,463,8792,2583,52,1157,2062,2062,2352,2023,9050,5535,4898,3193,2551,466,2551,4152,5482,472,1257,661,1717,338,338,1999,1017,35805,1248,509,509,545,2435,871,5532,3470,332,1271,52,180]
[null,"Female 45-49",1060,4916,3856,1089,851,2127,1657,1405,401,1025,1025,749,671,762,1391,564,9998,2440,52,1304,2558,2558,2709,2256,10779,6352,5996,3821,2970,619,2970,4783,5783,552,1436,848,2076,395,395,2547,1313,42189,1657,546,546,608,2707,1004,6943,4385,482,1400,52,181]
[null,"Female 50-54",1120,5059,3939,1238,908,2293,1803,1481,361,1135,1135,834,692,853,1356,566,10326,2652,66,1218,2674,2674,2699,2381,11241,6550,6431,4130,3222,690,3222,4810,5849,539,1491,986,2063,411,411,2584,1401,44075,1803,568,568,615,2747,1120,7330,4656,540,1302,66,182]
[null,"Female 55-59",1037,4423,3386,1097,848,2195,1691,1228,322,1139,1139,841,660,914,1271,522,9310,2379,58,1067,2469,2469,2295,2093,10126,5775,5988,3761,2913,591,2913,4138,5150,462,1352,889,1694,399,399,2318,1309,39814,1691,500,500,646,2444,906,6725,4256,559,1038,58,183]
[null,"Female 60-64",959,3995,3036,1106,803,2041,1524,1023,264,1097,1097,601,589,730,1062,466,8119,1996,38,888,2250,2250,1911,1635,8356,5199,4848,3583,2780,464,2780,3508,4345,422,1204,891,1445,369,369,2190,1135,35061,1524,451,451,561,2063,759,6147,3897,418,865,38,184]
[null,"Female 65-69",988,3965,2977,1187,921,2080,1655,1061,293,1044,1044,664,582,714,1063,425,8269,1919,59,987,2316,2316,2048,1431,7576,5290,4498,3646,2725,434,2725,3078,4298,459,1325,914,1206,382,382,2219,1057,34888,1655,424,424,584,1872,768,6386,4070,437,857,59,185]
[null,"Female 70-74",696,2869,2173,943,729,1752,1324,844,227,900,900,466,431,507,761,332,6267,1445,46,739,1793,1793,1583,1025,5385,3866,3323,2793,2064,363,2064,2062,3150,354,997,745,790,289,289,1688,760,26320,1324,342,342,576,1272,617,4890,3097,336,590,46,186]
[null,"Female 75-79",592,2298,1706,734,561,1235,1068,619,149,709,709,407,305,480,570,302,4862,1182,38,582,1309,1309,1201,920,4486,3022,2785,2157,1596,242,1596,1701,2485,263,724,512,677,227,227,1389,570,20708,1068,241,241,418,1024,470,3839,2530,271,470,38,187]
[null,"Female 80-84",457,1728,1271,591,383,941,729,486,110,561,561,405,191,337,443,257,3631,1013,19,423,976,976,909,691,3303,2317,2127,1636,1253,226,1253,1176,1926,178,589,381,429,134,134,1015,439,15634,729,172,172,369,747,376,2987,2011,177,292,19,188]
[null,"Female 85-89",280,1087,807,349,250,552,474,299,69,328,328,324,116,258,253,169,2389,835,22,254,592,592,553,445,2100,1464,1421,1002,752,144,752,679,1323,96,377,226,178,98,98,696,294,9988,474,111,111,210,501,230,1961,1369,111,139,22,189]
[null,"Female 90+",129,593,464,283,160,342,279,217,45,171,171,187,71,129,129,168,1420,493,11,173,407,407,390,274,1185,790,862,652,492,75,492,323,734,71,197,150,79,48,48,454,161,5998,279,65,65,121,244,172,1331,924,55,41,11,190]
[null,"Male 0-4",null,null,null,null,null,null,null,null,null,null,null,null,null,null,null,null,null,null,null,null,null,null,null,null,null,null,null,null,null,null,null,null,null,null,null,null,null,null,null,null,null,null,null,null,null,null,null,null,null,null,null,null,null,191]
[null,"Male 5-9",null,null,null,null,null,null,null,null,null,null,null,null,null,null,null,null,null,null,null,null,null,null,null,null,null,null,null,null,null,null,null,null,null,null,null,null,null,null,null,null,null,null,null,null,null,null,null,null,null,null,null,null,null,192]
[null,"Male 10-15",null,null,null,null,null,null,null,null,null,null,null,null,null,null,null,null,null,null,null,null,null,null,null,null,null,null,null,null,null,null,null,null,null,null,null,null,null,null,null,null,null,null,null,null,null,null,null,null,null,null,null,null,null,193]
[null,"Male 16-19",864,3036,2172,703,506,1224,850,887,230,530,530,764,360,450,741,351,5165,1255,35,817,1393,1393,1704,1295,6138,3869,3424,2351,1845,396,1845,2714,2922,275,833,516,1150,247,247,1628,709,24732,850,374,374,348,1564,657,4488,3095,223,651,35,194]
[null,"Male 20-24",2141,4587,2446,841,566,1330,880,1289,301,642,642,1669,402,597,931,359,7703,2963,47,956,1822,1822,2245,4227,10081,5633,6841,2612,2046,415,2046,3240,5001,299,1046,586,1511,259,259,1717,915,35228,880,449,449,342,1729,988,6049,4227,328,808,47,195]
[null,"Male 25-29",2425,4870,2445,698,460,1183,705,923,250,607,607,1097,396,471,656,379,8535,4394,25,783,1592,1592,1706,4060,9419,5814,6535,2476,2016,329,2016,2884,6238,329,944,447,1294,253,253,1446,969,33718,705,459,459,340,1590,673,4833,3241,327,859,25,196]
[null,"Male 30-34",1793,4435,2642,681,400,1120,711,862,311,641,641,696,421,426,691,297,8655,4162,23,811,1593,1593,1673,3364,8697,5396,5455,2509,2109,350,2109,3242,6351,386,961,379,1407,253,253,1593,763,32346,711,409,409,320,1835,551,4563,2970,255,1112,23,197]
[null,"Male 35-39",1410,4392,2982,650,500,1313,843,1016,315,547,547,567,468,424,839,355,8327,3277,50,937,1744,1744,1953,2491,8318,5349,4664,2650,2150,338,2150,3654,5740,473,957,472,1527,241,241,1602,833,32021,843,454,454,373,2127,701,4563,2819,223,1151,50,198]
[null,"Male 40-44",1182,4472,3290,768,626,1567,1096,1129,340,713,713,578,556,506,1115,431,8523,2736,55,1029,1858,1858,2158,2165,8703,5637,4733,2996,2370,409,2370,3970,5569,453,1165,599,1714,308,308,1791,917,34348,1096,551,551,412,2256,789,4995,3137,305,1265,55,199]
[null,"Male 45-49",1108,4649,3541,985,767,1992,1507,1411,427,944,944,692,628,668,1232,447,9571,2552,72,1240,2496,2496,2651,2237,10048,6126,5484,3583,2816,566,2816,4564,5568,471,1477,782,1991,406,406,2238,1135,39846,1507,538,538,582,2573,984,6411,3915,431,1313,72,200]
[null,"Male 50-54",1144,4977,3833,1168,865,2145,1729,1457,400,1119,1119,765,662,716,1335,559,9927,2528,56,1183,2559,2559,2640,2180,10501,6471,5827,3900,3035,645,3035,4674,5639,485,1494,887,2030,442,442,2532,1256,42258,1729,592,592,596,2644,1057,7024,4465,471,1291,56,201]
[null,"Male 55-59",1038,4504,3466,1025,803,2055,1594,1286,335,1032,1032,828,629,765,1249,420,9120,2326,52,1095,2389,2389,2381,1892,9235,5816,5354,3697,2894,566,2894,3881,5137,464,1312,830,1589,390,390,2322,1225,38483,1594,530,530,596,2292,951,6564,4175,486,1098,52,202]
[null,"Male 60-64",999,4067,3068,1028,788,1873,1526,1018,257,1046,1046,623,584,688,957,435,7736,2022,45,849,2043,2043,1867,1603,7844,5335,4598,3435,2647,474,2647,3246,4167,392,1268,767,1323,361,361,2142,1002,33820,1526,485,485,522,1923,761,5836,3793,396,796,45,203]
[null,"Male 65-69",920,4039,3119,1056,822,1882,1618,974,265,1053,1053,585,538,687,936,388,7692,1704,52,891,2202,2202,1865,1386,7242,5241,4231,3458,2636,403,2636,3011,3872,430,1202,837,1159,352,352,2162,944,33114,1618,474,474,507,1852,709,6005,3803,423,802,52,204]
[null,"Male 70-74",663,2714,2051,866,675,1555,1242,803,207,826,826,410,439,479,744,277,5750,1199,42,643,1652,1652,1446,896,4974,3647,2962,2680,2005,307,2005,2012,2856,353,933,678,793,277,277,1580,720,24360,1242,307,307,438,1219,596,4508,2856,283,560,42,205]
[null,"Male 75-79",448,1947,1499,681,453,1024,911,527,128,609,609,317,253,373,491,207,4096,953,22,475,1142,1142,1002,699,3473,2624,2183,1770,1317,221,1317,1290,2043,207,677,461,506,224,224,1216,494,17285,911,227,227,310,784,399,3356,2214,189,392,22,206]
[null,"Male 80-84",305,1272,967,409,307,702,594,362,92,456,456,278,156,270,327,157,2720,696,21,341,720,720,703,501,2361,1719,1523,1230,923,133,923,838,1406,158,447,309,302,126,126,855,307,11713,594,133,133,237,536,270,2262,1542,155,225,21,207]
[null,"Male 85-89",141,684,543,250,140,324,344,200,42,229,229,152,63,144,197,76,1510,429,12,171,360,360,371,256,1204,898,792,639,499,77,499,412,806,70,214,153,129,68,68,466,180,6184,344,61,61,108,283,158,1228,868,59,110,12,208]
[null,"Male 90+",41,270,229,95,70,140,123,76,16,86,86,83,33,62,62,49,596,211,2,70,159,159,146,104,498,368,345,278,208,29,208,153,314,18,98,50,54,33,33,194,76,2544,123,25,25,57,99,60,531,372,25,23,2,209]
["SIMD Q5 (least deprived)","Female 0-4",null,null,null,null,null,null,null,null,null,null,null,null,null,null,null,null,null,null,null,null,null,null,null,null,null,null,null,null,null,null,null,null,null,null,null,null,null,null,null,null,null,null,null,null,null,null,null,null,null,null,null,null,null,210]
[null,"Female 5-9",null,null,null,null,null,null,null,null,null,null,null,null,null,null,null,null,null,null,null,null,null,null,null,null,null,null,null,null,null,null,null,null,null,null,null,null,null,null,null,null,null,null,null,null,null,null,null,null,null,null,null,null,null,211]
[null,"Female 10-15",null,null,null,null,null,null,null,null,null,null,null,null,null,null,null,null,null,null,null,null,null,null,null,null,null,null,null,null,null,null,null,null,null,null,null,null,null,null,null,null,null,null,null,null,null,null,null,null,null,null,null,null,null,212]
[null,"Female 16-19",2038,3913,1875,459,134,1062,210,1237,163,259,259,632,318,1321,357,1309,8569,4607,0,677,2298,2298,1914,1490,6939,4329,5165,575,441,195,441,1774,6061,283,416,256,787,26,26,504,748,25268,210,0,0,488,987,1074,3893,1595,102,814,0,213]
[null,"Female 20-24",3592,5647,2055,424,184,1035,203,1289,146,308,308,776,318,1390,358,1374,16115,10278,0,801,4167,4167,2090,3864,9888,6082,7874,676,492,245,492,2014,11745,349,435,249,859,44,44,575,883,38013,203,0,0,468,1155,1143,5942,1775,118,760,0,214]
[null,"Female 25-29",4021,6104,2083,402,146,869,158,797,106,354,354,639,341,1057,364,1126,12373,8825,0,770,1932,1932,1567,3427,8261,6570,6581,750,604,171,604,1680,10283,349,466,182,735,54,54,532,732,32371,158,0,0,346,945,691,3505,1573,68,745,0,215]
[null,"Female 30-34",3440,6402,2962,492,112,1021,279,679,141,354,354,619,394,1128,422,1114,11249,7206,0,1035,2038,2038,1714,2563,7796,6912,5816,770,658,179,658,1980,8932,426,510,263,864,39,39,667,750,31633,279,0,0,364,1116,538,3816,1778,82,878,0,216]
[null,"Female 35-39",3070,6292,3222,575,168,1233,311,828,194,348,348,572,404,1618,550,1719,11648,6969,0,1079,2293,2293,1907,2021,9082,6699,6649,866,698,232,698,2433,9044,477,407,316,1036,59,59,687,934,33676,311,0,0,513,1397,634,4127,1834,125,1048,0,217]
[null,"Female 40-44",2829,6257,3428,709,194,1572,481,1053,250,376,376,672,528,1879,639,1941,12203,6642,0,1314,2634,2634,2367,1882,9910,6794,7193,1000,806,303,806,2717,9088,494,537,405,1115,43,43,862,1065,36508,481,0,0,639,1602,803,4877,2243,123,1313,0,218]
[null,"Female 45-49",3012,6692,3680,815,264,1996,493,1369,295,502,502,854,605,2263,781,2276,13387,7082,0,1415,2891,2891,2784,2125,11893,7308,8616,1146,882,394,882,3277,10003,562,616,537,1435,75,75,1025,1377,41785,493,0,0,854,1842,1074,5585,2694,181,1578,0,219]
[null,"Female 50-54",3209,6762,3553,836,276,2055,444,1343,314,604,604,909,578,2470,734,2279,13203,7211,0,1302,2803,2803,2645,2159,12434,7340,9001,1205,929,399,929,3433,9956,530,578,519,1412,67,67,1130,1489,42428,444,0,0,958,2021,1029,5678,2875,205,1481,0,220]
[null,"Female 55-59",2966,5963,2997,778,298,2136,392,1171,266,535,535,901,560,2227,618,2036,11974,6741,0,1070,2593,2593,2241,1943,11077,6463,8061,1107,809,348,809,3016,8989,498,500,534,1233,53,53,1049,1337,38314,392,0,0,1042,1783,905,5321,2728,170,1132,0,221]
[null,"Female 60-64",2338,5110,2772,726,219,1993,363,1106,309,515,515,672,502,1995,540,1767,10432,5738,0,892,2404,2404,1998,1707,9653,5615,7121,997,778,400,778,2532,7665,430,505,472,968,56,56,987,1118,33644,363,0,0,1019,1564,797,4789,2385,134,957,0,222]
[null,"Female 65-69",2257,4775,2518,888,253,2156,400,1180,304,487,487,769,510,2027,588,1704,10838,5936,0,865,2683,2683,2045,1418,9049,5295,6755,1022,769,405,769,2294,7755,415,520,528,868,51,51,1166,1106,33766,400,0,0,1118,1426,876,5506,2823,95,816,0,223]
[null,"Female 70-74",1737,3551,1814,639,208,1661,303,909,208,469,469,618,350,1696,496,1467,8114,4419,0,612,2020,2020,1521,849,6886,4003,5212,821,613,322,613,1674,5791,298,452,411,577,45,45,945,831,25722,303,0,0,900,1097,701,4222,2202,47,578,0,224]
[null,"Female 75-79",1503,2860,1357,497,146,1248,265,748,164,359,359,503,242,1532,389,1122,6433,3743,0,453,1429,1429,1201,742,5457,3182,4221,606,460,255,460,1236,4739,229,322,298,432,23,23,781,537,20290,265,0,0,708,804,584,3210,1781,33,378,0,225]
[null,"Female 80-84",1173,2191,1018,392,122,932,159,514,103,290,290,404,194,1130,277,933,5039,3157,0,298,1053,1053,812,631,4169,2456,3283,517,395,186,395,886,3827,154,265,234,275,27,27,602,381,15640,159,0,0,504,611,411,2451,1398,22,239,0,226]
[null,"Female 85-89",860,1506,646,253,70,553,84,288,45,156,156,263,118,659,182,648,3357,2204,0,161,652,652,449,423,2555,1666,2092,310,240,132,240,463,2621,63,160,133,123,14,14,388,220,9964,84,0,0,302,340,243,1556,904,10,172,0,227]
[null,"Female 90+",524,939,415,129,44,360,69,162,18,91,91,117,53,390,114,356,2136,1368,0,123,432,432,285,276,1452,1042,1218,174,130,90,130,234,1635,46,103,73,66,7,7,264,99,6057,69,0,0,234,168,144,942,510,7,107,0,228]
[null,"Male 0-4",null,null,null,null,null,null,null,null,null,null,null,null,null,null,null,null,null,null,null,null,null,null,null,null,null,null,null,null,null,null,null,null,null,null,null,null,null,null,null,null,null,null,null,null,null,null,null,null,null,null,null,null,null,229]
[null,"Male 5-9",null,null,null,null,null,null,null,null,null,null,null,null,null,null,null,null,null,null,null,null,null,null,null,null,null,null,null,null,null,null,null,null,null,null,null,null,null,null,null,null,null,null,null,null,null,null,null,null,null,null,null,null,null,230]
[null,"Male 10-15",null,null,null,null,null,null,null,null,null,null,null,null,null,null,null,null,null,null,null,null,null,null,null,null,null,null,null,null,null,null,null,null,null,null,null,null,null,null,null,null,null,null,null,null,null,null,null,null,null,null,null,null,null,231]
[null,"Male 16-19",1833,4038,2205,503,336,1155,292,1196,157,285,285,636,336,1458,356,1497,8997,4948,0,708,2180,2180,1904,1316,7345,4642,5415,834,498,205,498,1930,6525,350,604,313,823,30,30,576,831,26907,292,0,0,506,1107,1039,3895,1715,108,871,0,232]
[null,"Male 20-24",3051,5432,2381,525,890,1262,240,1355,164,313,313,807,381,1732,452,1641,14630,9034,0,832,3576,3576,2187,3142,10042,6219,7802,1372,482,187,482,2240,10814,393,787,330,925,47,47,665,963,38069,240,0,0,551,1315,1191,5573,1997,137,935,0,233]
[null,"Male 25-29",4459,6747,2288,411,696,881,166,708,115,261,261,750,306,1401,343,1150,12554,8854,0,817,1992,1992,1525,3333,8671,7461,6928,1187,491,198,491,1743,10396,376,714,212,779,45,45,534,754,34280,166,0,0,363,964,593,3687,1695,92,823,0,234]
[null,"Male 30-34",3859,6532,2673,463,328,796,185,585,118,302,302,517,328,1183,373,937,10672,7034,0,972,1945,1945,1557,2602,7297,7089,5667,862,534,189,534,1630,8542,382,557,197,690,41,41,568,672,30164,185,0,0,271,940,467,3493,1548,84,753,0,235]
[null,"Male 35-39",3262,6354,3092,503,296,1088,270,723,150,323,323,563,384,1406,450,1414,10842,6629,0,1065,2116,2116,1788,2207,8261,6825,6103,1003,707,187,707,2158,8456,431,471,281,916,61,61,658,802,31915,270,0,0,423,1242,573,3840,1724,87,946,0,236]
[null,"Male 40-44",2959,6397,3438,654,343,1420,375,1012,212,351,351,566,482,1735,611,1726,11821,6553,0,1215,2580,2580,2227,1994,9301,6974,6734,1037,694,245,694,2567,8866,474,577,352,1075,46,46,716,940,35113,375,0,0,586,1492,800,4516,1936,94,1228,0,237]
[null,"Male 45-49",2985,6569,3584,722,290,1753,501,1297,301,474,474,783,581,2049,677,1989,12932,6865,0,1318,2835,2835,2615,2065,10760,7236,7764,1145,855,289,855,2996,9596,580,667,473,1245,68,68,871,1207,39359,501,0,0,699,1751,996,5211,2376,165,1474,0,238]
[null,"Male 50-54",3049,6537,3488,851,318,1910,414,1250,289,552,552,773,531,2287,781,1943,12608,6804,0,1280,2656,2656,2530,2031,11368,7129,8236,1170,852,428,852,3132,9538,535,592,525,1345,63,63,1090,1371,40044,414,0,0,854,1787,961,5370,2714,176,1418,0,239]
[null,"Male 55-59",2865,5865,3000,736,275,1940,349,1065,241,495,495,815,541,2085,594,1958,11446,6275,0,1060,2549,2549,2125,1782,10493,6358,7647,1047,772,382,772,2846,8548,468,493,464,1166,73,73,894,1299,36422,349,0,0,935,1680,824,4994,2445,141,1211,0,240]
[null,"Male 60-64",2539,5286,2747,683,227,1821,368,1012,269,471,471,663,469,1843,502,1657,9755,5398,0,863,2194,2194,1875,1586,9088,5754,6602,940,713,317,713,2486,7193,394,468,474,967,54,54,897,1060,32001,368,0,0,878,1519,743,4437,2243,139,899,0,241]
[null,"Male 65-69",2245,4804,2559,815,242,2024,403,1120,305,512,512,657,492,1842,508,1491,9962,5381,0,838,2421,2421,1958,1408,8382,5273,6226,989,747,351,747,2156,7138,426,469,505,842,63,63,1053,1037,31688,403,0,0,1027,1314,815,4946,2525,97,823,0,242]
[null,"Male 70-74",1467,3173,1706,604,202,1531,260,762,197,365,365,513,320,1463,425,1142,7147,3753,0,550,1899,1899,1312,842,6066,3547,4552,731,529,297,529,1514,4988,284,374,386,505,41,41,806,759,22663,260,0,0,825,1009,565,3822,1923,49,526,0,243]
[null,"Male 75-79",1112,2328,1216,397,126,1065,177,612,121,311,311,422,216,1223,326,941,5059,2802,0,370,1204,1204,982,584,4497,2617,3464,487,361,200,361,1033,3678,182,289,251,360,22,22,616,484,16475,177,0,0,598,673,491,2639,1435,32,368,0,244]
[null,"Male 80-84",823,1612,789,330,76,764,130,426,81,203,203,327,135,911,224,686,3734,2207,0,271,872,872,697,388,3122,1806,2438,345,269,141,269,684,2732,113,194,190,196,16,16,479,291,11823,130,0,0,439,488,345,2008,1136,21,188,0,245]
[null,"Male 85-89",454,876,422,144,52,393,80,177,34,105,105,187,75,447,101,358,1976,1228,0,110,426,426,287,190,1512,995,1210,193,141,67,141,302,1470,56,119,91,87,10,10,265,142,6067,80,0,0,227,215,143,1022,596,6,85,0,246]
[null,"Male 90+",222,413,191,52,14,191,23,72,9,44,44,61,30,190,63,149,932,594,0,50,182,182,122,100,634,460,521,70,56,42,56,113,727,24,47,42,40,4,4,108,38,2678,23,0,0,119,73,63,403,221,2,46,0,247]

{"sheet":"Population at Risk","index":13,"n_rows":257,"n_cols":56,"rows_kept":257,"cut":false,"hidden":true,"merged":[]}
["Population at Risk "]
["(=prevalence*population in 2016)"]
["SIMD","group","Aberdeen City Local Authority","Aberdeen City Region Deal","Aberdeenshire Local Authority","Angus Local Authority","Argyll & Bute Local Authority","Ayrshire & Arran Health Board","Borders Health Board","Clackmannanshire & Stirling IJB","Clackmannanshire Local Authority","Dumfries & Galloway Health Board","Dumfries & Galloway Local Authority","Dundee City Local Authority","East Ayrshire Local Authority","East Dunbartonshire Local Authority","East Lothian Local Authority","East Renfrewshire Local Authority","Edinburgh & SE Scotland City Region Deal","Edinburgh, City of Local Authority","Eilean Siar Local Authority","Falkirk Local Authority","Fife Health Board","Fife Local Authority","Forth Valley Health Board","Glasgow City Local Authority","Glasgow City Region Deal","Grampian Health Board","Greater Glasgow & Clyde Health Board","Highland Health Board","Highland Local Authority","Inverclyde Local Authority","Inverness & Highland City Region Deal","Lanarkshire Health Board","Lothian Health Board","Midlothian Local Authority","Moray Local Authority","North Ayrshire Local Authority","North Lanarkshire Local Authority","Orkney Health Board","Orkney Islands Local Authority","Perth & Kinross Local Authority","Renfrewshire Local Authority","Scotland","Scottish Borders Local Authority","Shetland Health Board","Shetland Islands Local Authority","South Ayrshire Local Authority","South Lanarkshire Local Authority","Stirling Local Authority","Tay Cities Region Deal ","Tayside Health Board","West Dunbartonshire Local Authority","West Lothian Local Authority","Western Isles Health Board",1]
[null,null,"popS12000033","Aber_deal","popS12000034","popS12000041","popS12000035","popS08000015","popS08000016","ClacksStirIJB","popS12000005","popS08000017","popS12000006","popS12000042","popS12000008","popS12000045","popS12000010","popS12000011","EdinSE_deal","popS12000036","popS12000013","popS12000014","popS08000018","popS12000015","popS08000019","popS12000046","GClyde_deal","popS08000020","popS08000021","popS08000022","popS12000017","popS12000018","Inver_deal","popS08000023","popS08000024","popS12000019","popS12000020","popS12000021","popS12000044","popS08000025","popS12000023","popS12000024","popS12000038","popS00000001","popS12000026","popS08000026","popS12000027","popS12000028","popS12000029","popS12000030","Tay_deal","popS08000027","popS12000039","popS12000040","popS08000028",2]
["All quintiles","16+ Males and Females",{"$f":"SUM(C7:C11)","v":44296.324364425614},80906.981382326048,36924.975185687581,17861.132609590324,15026.598043299202,61655.833769562567,20400.730590494757,28785.154517953295,9329.6896219595728,23207.33548605843,24347.973511016306,20538.201480815194,17287.348987037461,18306.439561812724,19603.206344890124,15424.314114488016,249311.16502935765,114082.5770730389,5228.066611743885,25116.555637803067,54404.562785502487,55385.507555529177,59314.494901598038,93867.639736269339,262748.7213400568,92202.27817001479,170521.37210030941,55089.308640582633,33489.289898776027,12247.697874835474,39110.678350706985,92385.251750494645,{"$f":"SUM(AI7:AI11)","v":175023.77163784817},16014.687891296402,12213.406644352342,25463.825414734842,44394.701719889912,4131.108621528263,4131.108621528263,22734.175908474295,27661.338199194226,870217.246871504,20400.730590494757,4173.5582274224762,4173.5582274224762,18940.710931573376,47961.836541182056,15661.255440011519,110140.45339010682,55482.60137540962,12817.052811887374,29271.1842004928,3361.2772215042769,3]
["Q1 and Q2","16+ Males and Females",{"$f":"SUM(C7:C8)","v":11215.052213135821},13031.957198575623,2975.9874155062812,3667.5928472269411,3075.0332712671693,29925.730495850636,3775.2410538055046,8820.756081135567,4153.3513795187282,7288.1832263144188,7651.6048132549004,10068.160277309225,9024.045912206202,3267.3769941987507,5236.0665881537925,1987.7074911874943,73143.345233084634,27663.646247524292,1134.5084482368325,9535.2019594002122,18666.209118585692,18979.781718292434,20563.421413331569,54820.171887252887,124014.50050727249,14518.328776206994,80479.109071487808,11885.974232151411,7405.5120015067896,5856.131834318413,8614.5184526514204,43654.537314870693,{"$f":"SUM(AI7:AI8)","v":50290.882471857542},6543.8358145183565,1705.1732155032821,13738.395638441663,23736.90995997646,506.8271322970337,506.8271322970337,3224.2955476608422,11067.577571937793,299149.91952204495,3775.2410538055046,124.66120388044899,124.66120388044899,7306.3865399481983,19584.457673358836,3696.5325737393787,33893.654557325033,15372.330393647431,8015.0892619211827,11033.712139392326,732.53464696303001,4]
["SIMD Q1 (most deprived)","16+ Males and Females",{"$f":"SUM(C12,C17)","v":2864.3299577311154},3120.1909166494888,581.80740724095131,993.69733034182627,871.3284778537178,15785.448257245342,892.84599468562715,3843.0003880287409,1870.5585999733867,1529.6374305656223,1607.6207076613923,6047.8487050421099,4657.0270059230315,671.92548190419484,530.92679566179038,774.77487822584226,27373.214163691766,11957.131272885143,0,2956.4416202434695,8682.1517553652775,8819.0586560473148,7544.7632838349145,37718.64526193554,70820.390328968148,3067.8323538719101,51233.520503414169,3043.319652391061,1842.970549256557,4339.5814327756443,2129.1818954192013,19858.70843736548,{"$f":"SUM(AI12,AI17)","v":17169.097470608242},1294.6666254872353,77.700865772961464,8821.4233328848641,11739.770993043207,0,0,937.82509553455384,6356.1677197911886,138476.6168652614,892.84599468562715,0,0,2657.1352125519988,7859.5078991126593,1572.1204137742432,15864.37987041469,7248.8289667272184,4264.8216705103187,3816.1125081146324,0,5]
["SIMD Q2",null,{"$f":"SUM(C13,C18)","v":8350.7222554047057},9911.766281926135,2394.1800082653299,2673.8955168851148,2203.7047934134516,14140.282238605294,2882.3950591198773,4977.7556931068266,2282.7927795453415,5758.545795748797,6043.9841055935076,4020.3115722671155,4367.0189062831705,2595.4515122945559,4705.139792492002,1212.932612961652,45770.131069392868,15706.514974639149,1134.5084482368325,6578.7603391567436,9984.0573632204141,10160.723062245121,13018.658129496656,17101.526625317343,53194.110178304341,11450.496422335083,29245.588568073643,8842.6545797603503,5562.5414522502324,1516.5504015427687,6485.3365572322191,23795.828877505213,{"$f":"SUM(AI13,AI18)","v":33121.7850012493},5249.1691890311213,1627.4723497303207,4916.9723055567993,11997.138966933253,506.8271322970337,506.8271322970337,2286.4704521262884,4711.409852146604,160673.30265678355,2882.3950591198773,124.66120388044899,124.66120388044899,4649.2513273961995,11724.949774246177,2124.4121599651353,18029.274686910343,8123.5014269202129,3750.267591410864,7217.5996312776942,732.53464696303001,6]
["SIMD Q3",null,{"$f":"SUM(C14,C19)","v":7091.3374617671388},14588.379539796453,7311.2204022946044,5967.3364564116073,6325.5910226443375,11677.63900385029,6885.2813736924654,5174.2578966710189,1871.5854192734369,8954.7753067084213,9394.7256285567692,2853.4844696526466,3290.9295024768044,1126.9428382896035,4296.2177484228396,1647.6397257188908,52924.27028850613,18085.719719841745,3777.9315964339003,4902.6822931462175,12396.888988886394,12623.292589032006,11123.888341088503,15530.313527523202,45347.323124170936,18051.298663907499,26328.429223830455,19429.451310059347,10960.943655968231,2113.3821347469257,12794.764884566062,18943.796507323415,{"$f":"SUM(AI14,AI19)","v":33111.751498635815},4001.2553036792215,3369.1161000688026,4036.8571037761812,8967.1673899282396,1275.5402000570175,1275.5402000570175,5371.209899775663,5265.6472052990803,185407.06101389354,6885.2813736924654,1350.9391674371684,1350.9391674371684,4232.3154165245578,9989.9653125595833,2640.9646631265509,25297.933280360194,12824.599596633936,2201.5311117815199,6844.2215243947994,2426.9037657796498,7]
["SIMD Q4",null,{"$f":"SUM(C15,C20)","v":7630.691530738487},22295.066805649236,13510.365427818993,4737.9704536285199,3937.2956449841904,10175.220793544744,7679.0020447144962,7392.0206089347794,1831.9750279839802,4603.7281512560949,4829.4556143419031,3926.9503448320047,2649.8271330400726,3455.8868671675523,6475.0971987282473,2307.8684150578219,50742.731045275053,18314.645011304718,315.62656707315182,5187.8057967526856,10263.726419406514,10449.879008177621,13690.414469064428,12222.541502558883,43739.371816631581,27197.804847710366,26380.659333138836,17912.933950538369,11680.526587400233,2508.7498739927892,13642.879601595665,17316.28695456103,{"$f":"SUM(AI15,AI20)","v":32654.370240768101},2657.5232091055086,4831.5593764654786,4816.120474276664,6884.4621481621571,2013.7260187377256,2013.7260187377256,9712.7325909864667,5452.8731727657478,190128.33657577838,7679.0020447144962,2697.9578561048584,2697.9578561048584,2829.8077484931073,10583.207588366848,4517.9481992412148,27416.073720295168,16713.838078957862,1962.0934694009038,5525.063144159074,201.83880876159708,8]
["SIMD Q5 (least deprived)",null,{"$f":"SUM(C16,C21)","v":18359.243158784171},30991.577838304736,13127.401940067703,3488.2328523232582,1688.6781044035035,9877.2434763168912,2061.2061182822927,7398.1199312119306,1472.7777951834282,2360.6488017794945,2472.1874548627343,3689.606389021319,2322.5464393143811,10456.232862156816,3595.8248095852477,9481.0984825238083,72500.818462491865,50018.566094368143,0,5490.8655885039534,13077.738258623891,13332.554240027117,13936.770678113531,11294.612818934351,49647.525891981764,32434.845882189929,37333.174471852297,5860.9491478335021,3442.307653900778,1769.4340317773449,4058.5154118938385,12470.630973739499,{"$f":"SUM(AI16,AI21)","v":58966.767426586717},2812.0735639933164,2307.557952314779,2872.452198240333,4806.1622218230559,335.01527043648599,335.01527043648599,4425.9378700513207,5875.2402491916064,195531.92975978716,2061.2061182822927,0,0,4572.2012266075135,7804.2059668967813,4805.8100039043757,23532.791832126426,10571.833306170385,638.33896878376538,5868.1873925466016,0,9]
["SIMD Q1 (most deprived)","16+ Females",{"$f":"SUM(C60:C78)","v":1108.293883252727},1196.1010414845787,216.41082250579507,336.88670473646692,326.42523131410508,5497.3779810026263,294.65893167130235,1475.9325398147848,590.53981855165659,553.74605635679086,570.24828880830512,2548.5470917376833,1370.6639804347928,239.93911982376517,208.75319685552626,290.14205076808622,10060.176334622656,4438.9647654553219,0,1153.4492463155909,3111.4525479829358,3224.7231323136662,2551.0708085014785,14372.212278787545,27519.075654622437,1196.0490315822258,19187.356288332401,1180.7060572404921,622.63774281764199,1697.5372380558899,804.53768896742372,8165.7382243654984,{"$f":"SUM(AI60:AI78)","v":6487.4956441307913},500.28041139862665,30.872835446640913,3161.0227247158314,4795.8478213140188,0,0,353.66714925887402,2685.1707202386192,52179.614572064478,294.65893167130235,0,0,1041.164766913093,3359.3384234832706,615.40481861648482,6046.9448653827712,2945.2874427034744,1670.8240235397445,1347.8792093820184,0,10]
["SIMD Q2",null,{"$f":"SUM(C98:C116)","v":3730.9618561197212},4393.9806607873406,1039.8564384640015,1035.6452730133001,965.3332817691512,5636.8955684690718,1088.8845443105174,2169.5648039021562,858.36622234636923,2329.8857354011016,2399.3188546977258,1886.968773221028,1493.8379058914761,1072.0764330933882,2119.9008691682843,514.33161226115192,19458.936099829556,6663.0700413479208,375.18507429749815,3001.2670793826023,4175.9215211674236,4327.9434670359351,5119.0059233455786,7297.3342075796272,23625.439432270028,5157.7135882732755,12470.256268788398,3935.0499737094228,2164.4611956173035,696.02283377120762,2796.7957745401727,11268.148724224877,{"$f":"SUM(AI98:AI116)","v":14394.304347984245},2371.178148033996,709.20613970395164,2030.4114040889681,5709.441103766073,198.60078294450832,198.60078294450832,935.12795372922938,2313.9417149363621,69146.986126509175,1088.8845443105174,43.085881748685345,43.085881748685345,2063.2447710170154,5673.4324679891406,914.26147643753734,7794.6237149855533,3637.6468082385531,1636.9746980953689,2931.0844600395521,208.4386167849116,11]
["SIMD Q3",null,{"$f":"SUM(C136:C154)","v":3121.3055023780234},6539.2910956293972,3296.1115968492045,2366.4396650971034,2879.9925995103017,4816.6627716049734,2774.9095142306041,2319.0314116371769,718.55970080442603,3741.0836707531485,3852.5720175262318,1384.7489986268563,1145.3421343263285,493.50409489710728,1946.178190640866,707.34644024680586,23281.693909376718,8067.7795091492735,1341.8217716024415,2320.9709697099497,5404.1106632644105,5600.844106303005,4541.6108760151392,7108.4555134768661,21183.057305426708,8257.6383979292168,11859.278436375382,8834.4384129083901,4339.8641154842135,987.14518550787807,5607.7298335686282,9381.7781772007565,{"$f":"SUM(AI136:AI154)","v":14839.790277750393},1843.5561488893381,1509.1654699432452,1704.1818677810245,4459.20895238718,537.53661323722577,537.53661323722577,2369.4708420331035,2674.0384994701772,82473.72911409958,2774.9095142306041,531.39475541902141,531.39475541902141,1984.2395738094885,5059.9879841934635,1174.85338036284,11344.315573246477,5942.0160079632988,1000.3167773909275,2831.2093203351887,745.46535351488365,12]
["SIMD Q4",null,{"$f":"SUM(C174:C192)","v":3469.9304924962544},10168.389058614073,6120.4325309752685,1895.8680189397892,1806.1632899325282,4256.0986533644755,3136.2791402400894,3261.2012616432144,657.64913350544953,1937.024196006616,1994.7496157721571,1923.0318446092681,958.97797241452463,1477.1676803195696,3034.9440217246524,1022.7713854718946,22369.154001696268,8016.5841563036547,118.90790173632422,2439.012681634712,4434.0027242456526,4595.4199632213667,5521.8651712444098,5519.7723966497824,20301.702446381481,12549.853080528354,11809.336715489047,8205.570205515387,4664.1714953268329,1172.5132986898345,6026.7817026585481,8519.6449560652072,{"$f":"SUM(AI174:AI192)","v":14698.759143279196},1236.6902487278041,2120.1315032635794,2042.8761743742693,3355.0043976667839,868.27718707463634,868.27718707463634,4308.9226729540087,2744.9024865307106,84684.972663464447,3136.2791402400894,1105.4087271648841,1105.4087271648841,1332.0912635011478,5388.2538622715456,2002.6464911372423,12284.985143532454,7798.7007578898829,895.29617645446672,2356.734702719828,66.060726453799873,13]
["SIMD Q5 (least deprived)",null,{"$f":"SUM(C212:C230)","v":9025.8048560013449},15222.807620722291,6407.4235250952415,1547.5221859605863,635.06135202314294,4510.0226346655918,932.64832266513588,3636.5330740813301,636.69860964230554,1119.978692831216,1153.355271350694,1948.3737200471551,921.16736588053266,4793.201702497654,1796.6154181677982,4489.5803233979559,34555.722597410866,23799.673801963767,0,2803.1811865715608,6197.7181913641971,6423.3424457042229,6244.8846768044896,5465.2967829573081,24882.840482678923,16053.856172879921,18078.288925496974,2772.563965658595,1557.9066768560133,915.60168170365216,2013.0399287274654,6607.9386089920554,{"$f":"SUM(AI212:AI230)","v":28453.721884463725},1361.1081407559727,1041.578827059906,1315.8667469453619,2543.4093004544893,154.50072052083817,154.50072052083817,2214.5623145431468,3183.8221062870493,94532.934551017257,932.64832266513588,0,0,2340.201484407236,4246.3302190846362,2329.1219414612874,11619.663204563727,5449.1365965784416,318.55115344810287,2669.7380614820104,0,14]
["SIMD Q1 (most deprived)","16+ Males",{"$f":"SUM(C79:C97)","v":1756.0360744783882},1924.0898751649102,365.3965847351563,656.81062560535929,544.90324653961272,10288.070276242715,598.18706301432485,2367.067848213956,1280.01878142173,975.89137420883139,1037.3724188530871,3499.3016133044266,3286.3630254882382,431.98636208042973,322.17359880626412,484.63282745775609,17313.037829069108,7518.1665074298207,0,1802.9923739278788,5570.6992073823412,5594.3355237336482,4993.6924753334361,23346.432983147992,43301.314674345718,1871.7833222896843,32046.164215081768,1862.6135951505689,1220.332806438915,2642.0441947197546,1324.6442064517773,11692.970212999982,{"$f":"SUM(AI79:AI97)","v":10681.601826477452},794.38621408860854,46.828030326320551,5660.4006081690331,6943.9231717291877,0,0,584.15794627567982,3670.9969995525689,86297.002293196929,598.18706301432485,0,0,1615.9704456389059,4500.1694756293891,956.71559515775834,9817.435005031919,4303.5415240237435,2593.9976469705744,2468.233298732614,0,15]
["SIMD Q2",null,{"$f":"SUM(C117:C135)","v":4619.7603992849845},5517.7856211387943,1354.3235698013282,1638.2502438718147,1238.3715116443002,8503.3866701362222,1793.5105148093596,2808.1908892046708,1424.4265571989724,3428.6600603476954,3644.6652508957818,2133.3427990460873,2873.1810003916939,1523.3750792011676,2585.2389233237177,698.60100070049998,26311.194969563312,9043.4449332912282,759.32337393933426,3577.4932597741413,5808.1358420529914,5832.7795952091847,7899.6522061510777,9804.192417737715,29568.670746034313,6292.7828340618071,16775.332299285245,4907.604606050927,3398.0802566329285,820.52756777156105,3688.5407826920464,12527.680153280338,{"$f":"SUM(AI117:AI135)","v":18727.480653265051},2877.9910409971253,918.26621002636921,2886.5609014678307,6287.6978631671791,308.2263493525254,308.2263493525254,1351.3424983970588,2397.4681372102418,91526.316530274358,1793.5105148093596,81.575322131763656,81.575322131763656,2586.0065563791836,6051.5173062570366,1210.1506835275982,10234.65097192479,4485.8546186816593,2113.2928933154949,4286.5151712381421,524.09603017811844,16]
["SIMD Q3",null,{"$f":"SUM(C155:C173)","v":3970.0319593891154},8049.0884441670551,4015.1088054453994,3600.8967913145034,3445.5984231340353,6860.976232245318,4110.3718594618613,2855.2264850338424,1153.0257184690108,5213.6916359552724,5542.1536110305378,1468.7354710257903,2145.5873681504759,633.43874339249624,2350.0395577819736,940.2932854720849,29642.576379129412,10017.940210692472,2436.1098248314588,2581.7113234362673,6992.7783256219836,7022.4484827290007,6582.2774650733636,8421.8580140463364,24164.265818744228,9793.660265978282,14469.150787455072,10595.012897150955,6621.0795404840173,1126.2369492390474,7187.0350509974332,9562.0183301226589,{"$f":"SUM(AI155:AI173)","v":18271.96122088542},2157.6991547898833,1859.9506301255576,2332.675235995157,4507.9584375410595,738.00358681979162,738.00358681979162,3001.7390577425595,2591.6087058289031,102933.33189979396,4110.3718594618613,819.544412018147,819.544412018147,2248.075842715069,4929.9773283661207,1466.111282763711,13953.617707113719,6882.5835886706373,1201.2143343905923,4013.0122040596107,1681.4384122647662,17]
["SIMD Q4",null,{"$f":"SUM(C193:C211)","v":4160.7610382422326},12126.677747035161,7389.9328968437248,2842.1024346887307,2131.1323550516622,5919.1221401802686,4542.7229044744072,4130.8193472915655,1174.3258944785307,2666.7039552494793,2834.7059985697456,2003.9185002227368,1690.8491606255479,1978.7191868479827,3440.1531770035949,1285.0970295859272,28373.577043578785,10298.060855001062,196.71866533682757,2748.7931151179732,5829.7236951608602,5854.4590449562538,8168.5492978200173,6702.7691059091003,23437.6693702501,14647.95176718201,14571.322617649788,9707.3637450229799,7016.3550920733987,1336.2365753029546,7616.097898937116,8796.6419984958247,{"$f":"SUM(AI193:AI211)","v":17955.611097488905},1420.8329603777042,2711.4278732018993,2773.2442999023951,3529.4577504953731,1145.4488316630893,1145.4488316630893,5403.8099180324571,2707.9706862350372,105443.36391231394,4542.7229044744072,1592.5491289399743,1592.5491289399743,1497.7164849919593,5194.9537260953011,2515.3017081039725,15131.088576762713,8915.1373210679794,1066.7972929464372,3168.328441439246,135.77808230779721,18]
["SIMD Q5 (least deprived)",null,{"$f":"SUM(C231:C249)","v":9333.438302782828},15768.770217582445,6719.9784149724601,1940.7106663626719,1053.6167523803606,5367.2208416512995,1128.5577956171569,3761.5868571306005,836.0791855411228,1240.6701089482785,1318.8321835120403,1741.2326689741642,1401.3790734338486,5663.0311596591628,1799.2093914174495,4991.5181591258533,37945.095865080999,26218.892292404373,0,2687.6844019323921,6880.0200672596939,6909.2117943228941,7691.8860013090407,5829.3160359770436,24764.685409302841,16380.989709310008,19254.885546355323,3088.3851821749067,1884.4009770447647,853.83235007369285,2045.4754831663731,5862.6923647474423,{"$f":"SUM(AI231:AI249)","v":30513.045542122993},1450.9654232373437,1265.979125254873,1556.5854512949711,2262.7529213685666,180.51454991564782,180.51454991564782,2211.3755555081739,2691.418142904557,100998.99520876989,1128.5577956171569,0,0,2231.9997422002775,3557.8757478121447,2476.6880624430883,11913.128627562699,5122.6967095919445,319.78781533566251,3198.4493310645912,0,19]
["All quintiles","Female 0-4",{"$f":"SUM(C60,C98,C136,C174,C212)","v":0},0,0,0,0,0,0,0,0,0,0,0,0,0,0,0,0,0,0,0,0,0,0,0,0,0,0,0,0,0,0,0,{"$f":"SUM(AI60,AI98,AI136,AI174,AI212)","v":0},0,0,0,0,0,0,0,0,0,0,0,0,0,0,0,0,0,0,0,0,20]
[null,"Female 5-9",{"$f":"SUM(C61,C99,C137,C175,C213)","v":0},0,0,0,0,0,0,0,0,0,0,0,0,0,0,0,0,0,0,0,0,0,0,0,0,0,0,0,0,0,0,0,{"$f":"SUM(AI61,AI99,AI137,AI175,AI213)","v":0},0,0,0,0,0,0,0,0,0,0,0,0,0,0,0,0,0,0,0,0,21]
[null,"Female 10-15",{"$f":"SUM(C62,C100,C138,C176,C214)","v":0},0,0,0,0,0,0,0,0,0,0,0,0,0,0,0,0,0,0,0,0,0,0,0,0,0,0,0,0,0,0,0,{"$f":"SUM(AI62,AI100,AI138,AI176,AI214)","v":0},0,0,0,0,0,0,0,0,0,0,0,0,0,0,0,0,0,0,0,0,22]
[null,"Female 16-19",{"$f":"SUM(C63,C101,C139,C177,C215)","v":1178.2817853041188},2010.7656418236511,856.36717017987939,413.75684753368347,401.01620745909048,1636.935141578919,472.60223751875469,911.00418202711785,229.04782188115877,591.86526787405933,609.50349413014362,755.43474178722863,399.55761755733954,407.57018323437507,541.3452337245385,396.79387627859671,6560.4293121052924,2667.545282996859,117.24708170357826,704.63054168042106,1530.3870725795041,1586.0999061483953,1566.9430826640939,2843.3366090902359,7924.4219320066013,2338.6114904786109,4849.6205046338919,1453.6178407843677,767.18274034665978,358.36238753184591,991.31065543993259,3070.1274350163467,{"$f":"SUM(AI63,AI101,AI139,AI177,AI215)","v":4556.0751741418662},503.72381460300051,307.65883836234519,715.39407990924519,1577.8363792386169,85.284899863009329,85.284899863009329,543.34535178218653,862.56815377301916,23928.826057662642,472.60223751875469,100.42948425306437,100.42948425306437,532.56081194928538,1520.3843967054722,514.39994110743896,3146.5352396040198,1617.8540250655328,391.23240662656769,826.34521144798089,65.138037748758961,23]
[null,"Female 20-24",{"$f":"SUM(C64,C102,C140,C178,C216)","v":2618.4646826323478},3444.9103405197284,1035.7857187298034,527.04482465334149,428.3893395021243,2130.045773141373,557.0249201474511,1305.56404245059,291.22377275481983,743.4158515344127,765.57044938541162,1427.2356670123663,533.18234451886531,505.90333554747497,748.32416710887139,439.2456699546691,11116.249308792319,6398.5552412027937,128.13010225744398,962.06992332440154,2196.3845654311845,2276.3426426651336,2195.5398847030046,5926.7547091410497,12439.133920325443,3829.0798207389003,8430.7182341107982,1682.4295732357957,914.00012365690532,496.27809451637728,1181.0198718040683,3948.8563353111686,{"$f":"SUM(AI64,AI102,AI140,AI178,AI216)","v":8559.6611863845683},617.46363693374337,388.65188286177738,938.06693670788945,1979.3632446404747,117.15829357513121,117.15829357513121,678.78766606040642,1220.3405503305537,36810.751877146395,557.0249201474511,109.07706712095671,109.07706712095671,666.8469916862839,2012.7540482244458,773.96592944472081,4656.5098544202219,2460.0331851645233,569.31251838478568,1021.6297661885787,71.184231763638138,24]
[null,"Female 25-29",{"$f":"SUM(C65,C103,C141,C179,C217)","v":1973.6913146093179},2633.3457561813289,811.84141507746051,348.72382170699603,293.84885491242301,1394.4127697877468,341.79381902324775,781.01947826784465,193.46658817565557,507.26583883573397,522.38291044479308,895.13983781313129,370.08826200462806,329.21394860315223,467.06643386917443,299.50462685061348,8097.2328297424247,5129.0593966386587,94.116655547811433,683.22541236539553,1393.3318130882503,1444.0552312349982,1426.3362555560871,4427.555752631908,8796.5975383176265,2908.6465485385843,6062.2349483876042,1229.8148128403745,682.1734887546553,314.88415569446585,881.46645212006945,2685.8435908562246,{"$f":"SUM(AI65,AI103,AI141,AI179,AI217)","v":6593.7976460128075},446.931126156885,282.76908332833983,581.87876404874578,1370.6346755251184,91.546432388431356,91.546432388431356,483.24091152154966,842.19830855272096,26127.810814006632,341.79381902324775,94.725832834286081,94.725832834286081,435.57686203545074,1341.1670870655994,443.88443960669645,3011.3218874254057,1616.8959305050059,373.45017018290616,753.41313302087372,52.287649063705324,25]
[null,"Female 30-34",{"$f":"SUM(C66,C104,C142,C180,C218)","v":1645.3848271540883},2560.3230037570202,986.08467469714424,387.70306251251407,300.21037539571051,1374.4043533761173,390.27793422007312,667.06120526367715,200.4809376023444,495.65508617178085,510.42614477145048,693.17587413441561,363.56023107600589,324.10043378010073,495.14639533266387,293.62907705019848,7542.0848707290634,4262.5320261344768,101.90931902856207,771.40694061574459,1363.2897025977495,1412.9194555327319,1415.1966900949085,3616.2473814229443,8235.7865760722852,2883.4298785765063,5292.0835922286587,1335.239929048209,754.37542957481139,305.67573983204431,974.76176432446368,2922.7660596660417,{"$f":"SUM(AI66,AI104,AI142,AI180,AI218)","v":5963.7347344294976},485.00014530123383,318.16625114482514,566.7860349026588,1472.5112939409439,90.755435999644234,90.755435999644234,543.94328799906987,826.91292842800021,24970.530140618517,390.27793422007312,87.115301903855439,87.115301903855439,437.383398732709,1481.2107547535209,344.11097429533328,2899.9473802884886,1536.425959173572,383.64818371716109,832.71214515016447,56.616957739001919,26]
[null,"Female 35-39",{"$f":"SUM(C67,C105,C143,C181,C219)","v":1620.6494773473387},2980.8443978363839,1360.1956641892698,504.34035157698389,419.01735678133105,1654.1766864756498,508.52950846719745,869.84788831123296,248.34173034693941,603.08415427555633,621.05671550183024,657.57970673586556,428.01911816150835,518.60016259963766,687.33791641080825,492.66538882541727,8576.485727458361,4254.7792934818763,146.7583133443832,951.41749427654577,1703.30239777714,1765.3101111884287,1788.2779633690816,3254.546363216446,9088.7900735372914,3357.7230168178285,5544.9201686250826,1752.412336942004,971.83738126314404,365.59372742449398,1255.7539432725969,3539.6117957089341,{"$f":"SUM(AI67,AI105,AI143,AI181,AI219)","v":6494.2347611804425},612.5138087497794,370.97181674484,663.68879943859929,1730.2392189756447,122.23398916461528,122.23398916461528,661.11174030532209,973.19382365771844,28777.888694882648,508.52950846719745,136.30236110563564,136.30236110563564,557.60993858263498,1854.4102976696529,461.71835816817128,3437.8854611035149,1737.6405981877947,402.3538908645703,1000.4160383579767,81.533360282167948,27]
[null,"Female 40-44",{"$f":"SUM(C68,C106,C144,C182,C220)","v":1450.4469246622564},2946.4595287561679,1453.4698108162977,569.1774746779904,510.34794321781391,1925.3847169141486,665.25488897439243,999.3325119073595,293.02545347499347,717.1461829904938,738.51791625625651,611.76484065761258,483.7658038019635,581.81878923261525,755.20064550217649,542.48745524239314,8673.1753440979992,3736.6621431452159,161.66830734585358,1078.3238387855661,1834.2035812523982,1900.9766745989969,2039.0449617463637,2854.5839991863345,9163.168537308884,3428.8118397313419,5428.794889380516,2001.9503392828578,1087.1459605337707,409.2682392171148,1404.749244239563,3740.3891846546067,{"$f":"SUM(AI68,AI106,AI144,AI182,AI220)","v":6228.6247340298096},610.57636568025396,452.34314259798407,799.44258828677653,1823.4720642489922,141.82519197719972,141.82519197719972,766.1666816690074,1067.4122084927631,30062.150787167368,665.25488897439243,140.64506671087105,140.64506671087105,645.18513839099376,1965.2084620746471,522.78520553599026,3695.5997067667613,1864.8058850880557,424.66091466763856,1115.3600789928184,89.816788219052015,28]
[null,"Female 45-49",{"$f":"SUM(C69,C107,C145,C183,C221)","v":1968.5067727323694},4275.5921659122296,2207.0984964962236,806.66732397836188,745.4407572595486,2782.4494899387123,1004.7156107017383,1502.5755379493808,420.4177910984626,1109.8466373081355,1142.9212695951594,848.18483000978779,696.3368511778433,997.00895832996628,1163.882531349162,902.02201235583755,12134.088685067738,4892.0695505191889,211.55170502872375,1457.4354098910142,2619.1425685428794,2714.4909001048263,2894.0110882374724,3646.9228288548488,12940.751675804979,4958.8362544195388,7771.8210068377211,2879.3987730623076,1555.3232167960839,618.47966711988056,2009.7017260403791,5170.7263202733875,{"$f":"SUM(AI69,AI107,AI145,AI183,AI221)","v":8550.3409604834505},882.65363880905306,643.37230648372781,1129.737756286333,2441.4969272108638,209.53645185599237,209.53645185599237,1202.4172706640809,1618.1351636456252,42817.701624286958,1004.7156107017383,200.00153451403213,200.00153451403213,960.22071438809485,2807.2692216930272,806.08274158978361,5353.9169396217458,2738.2562499440764,620.88542009045204,1564.5714053755717,117.53011459009113,29]
[null,"Female 50-54",{"$f":"SUM(C70,C108,C146,C184,C222)","v":2097.1947577189562},4375.681045722964,2199.3547255184567,864.00412524529327,850.67398798167255,2931.5717615115718,1043.1706694774673,1532.5775772052275,420.39663918495842,1220.1950569738353,1256.558191727064,961.73154780699906,696.55982542315871,1061.090119137456,1114.7452970799991,910.29956344172228,12189.961340144519,4938.3759066257189,224.11504583849924,1422.3580097101901,2706.9760333023451,2805.5218900470391,2884.5072404489974,3790.2635012257279,13365.781458637159,5075.4246933361073,8090.3509970326304,3144.9019915512004,1672.135089889804,664.73413430677465,2160.6394992590231,5273.2466413208613,{"$f":"SUM(AI70,AI108,AI146,AI184,AI222)","v":8445.1809328190284},868.53743886627171,658.82729190895975,1197.5338829482519,2443.8661926796526,222.72657829556576,222.72657829556576,1260.5159976946843,1665.6129832668,44224.10065815186,1043.1706694774673,205.22773872121223,205.22773872121223,1059.4351295808779,2915.5192107729231,830.53703778699173,5659.4269664615067,2953.7746078479004,654.81291909360164,1498.1230541432615,124.50983089541137,30]
[null,"Female 55-59",{"$f":"SUM(C71,C109,C147,C185,C223)","v":1717.0272981179178},3586.2168663014431,1803.8324257971481,749.47569263671858,737.8695223550892,2553.8661208926196,933.56237582892743,1242.390828803889,341.21414522825978,1005.3988160289365,1035.3607900748459,886.96378179027738,585.28585923850289,918.1795592071162,950.1346451358088,740.14354596923749,10167.04902184264,4188.1242257068134,170.31156404403404,1112.0519421319414,2276.6626134989565,2359.5431654527792,2295.3630190113931,3294.6756558004213,11355.662212646093,4184.7784181243933,6981.8038976293574,2714.6001396995543,1440.7289176919182,605.32449552400726,1861.6293779798643,4365.0976372861951,{"$f":"SUM(AI71,AI109,AI147,AI185,AI223)","v":6939.1649887289277},691.74616802630408,559.51053194259293,1068.4479734020135,1971.484151894796,196.29160840651446,196.29160840651446,1106.5709593399588,1419.4094513955342,37325.990102642631,933.56237582892743,186.42181182033039,186.42181182033039,931.13162494625135,2472.2469839130781,672.86360709350288,4899.6580605235531,2621.5824367058035,572.84711428810181,1124.3808698658277,94.618654268918149,31]
[null,"Female 60-64",{"$f":"SUM(C72,C110,C148,C186,C224)","v":1451.8876137491429},3187.6704238210077,1656.8194412041667,695.20673407338495,688.67703163878957,2335.7832548785832,845.65346326106987,1086.7326935998904,307.50881803454604,975.53916458286903,1004.611288663388,688.25340518938367,515.22275873868773,782.43333604966301,804.97185675147637,646.15502029802565,8761.8471420971327,3491.4264253289266,169.05831438545749,964.31157017435385,2043.4919711486073,2117.8840841818628,1998.9588288517575,2587.912945470116,9468.2792063813868,3744.4186859383572,5716.4689740811727,2540.2411288899975,1349.5020082471308,501.9061376161427,1743.7510647182703,3751.2022200216816,{"$f":"SUM(AI72,AI110,AI148,AI186,AI224)","v":5818.7643499226006},588.38400361347522,516.59943257278928,998.16452815349794,1684.8087171068828,182.96462204462503,182.96462204462503,1035.5344866856906,1183.8767809455862,32560.500983890888,845.65346326106987,175.08441102529673,175.08441102529673,861.64221925783158,2135.3075005346859,579.57666775574205,4365.4966879735121,2321.3206641524093,476.02022599328274,944.26287580303301,93.922396226646654,32]
[null,"Female 65-69",{"$f":"SUM(C73,C111,C149,C187,C225)","v":1084.3450008014618},2262.0014692252626,1136.8066606699397,546.56365914005551,528.11747682962198,1669.6034527912047,605.9559517125997,805.89592302903134,231.24982236384324,699.05243369712014,719.88495362974766,502.47127351208337,359.5411481985164,616.84928829391311,560.3074931994081,505.15406320853265,6579.7664560013627,2751.0511979939665,136.76979162818952,697.19402002170193,1556.6364753126475,1613.304902817189,1463.5961513839773,1460.0353051402308,6093.7665297910289,2653.9186374943292,3732.8946824277323,1757.2559115277015,895.85058843023558,333.51486198054351,1157.568056851414,2357.0474325796417,{"$f":"SUM(AI73,AI111,AI149,AI187,AI225)","v":4375.9899083971886},447.45819673305715,364.12193873446324,669.66123374310462,1047.0687166942346,118.56840220647682,118.56840220647682,734.41427952030142,820.6912862641293,22854.232676227391,605.9559517125997,96.11652811457455,96.11652811457455,669.46199105724395,1354.9271853933606,426.61386601872971,3270.3061621037496,1714.1441759783233,288.91824336472314,650.65458370520764,75.984115941497393,33]
[null,"Female 70-74",{"$f":"SUM(C74,C112,C150,C188,C226)","v":809.67451143095036},1666.18765422767,829.49721562350874,414.76595096823661,408.98813262824279,1332.6282480732439,470.19971093228003,633.51760981705365,172.08102516831497,594.73707156255443,612.46088068009419,383.72734365876067,272.93132055828437,503.77692640041539,441.99850546831613,420.31278391059226,4992.9709619407658,2051.6836001259894,109.2833553704165,516.04930371049329,1189.7624837362991,1233.0750812030215,1116.968849487223,1082.515019768367,4702.1681970957598,1989.0606526898464,2882.696488753626,1365.0389086295502,696.81219468199026,265.75367034054113,900.38176968972914,1816.3763078949587,{"$f":"SUM(AI74,AI112,AI150,AI188,AI226)","v":3296.2239910895942},332.00009874723963,294.87479557987115,532.94052858690327,801.19812226410841,102.23324395159405,102.23324395159405,591.71108929508284,623.60851063877681,17637.396942493622,470.19971093228003,81.670138590151169,81.670138590151169,556.42679877799424,1050.6257188796189,345.00278603367951,2525.8792384944536,1336.0038649235732,208.11760538376654,492.9722124089003,60.713693031832463,34]
[null,"Female 75-79",{"$f":"SUM(C75,C113,C151,C189,C227)","v":316.11127077012719},619.36251472799802,297.45883735703615,136.03818866940688,122.28677225799342,403.5969914230717,163.59603949404823,217.90911693985214,49.940584211973544,166.1299390355515,171.08079121706871,137.44697037279903,77.661867108389345,215.7226728682559,150.9740743329007,157.53961460353028,1685.2426046069347,793.4203529949516,25.42901958488736,168.01728884892879,363.43021834233429,376.66067985837697,374.25394064835655,369.9484446119136,1573.0759041956512,723.98570456074344,1016.9485124032499,424.53010451602438,220.28834133641087,86.349731955306197,284.64428167048999,551.73678392905776,{"$f":"SUM(AI75,AI113,AI151,AI189,AI227)","v":1158.0404104564809},97.163458510762027,97.604203003703986,160.58739309488496,232.91794417417628,33.056034071396041,33.056034071396041,220.540214382437,194.99371547313484,5884.9696658779285,163.59603949404823,27.174793698030264,27.174793698030264,176.61930028878061,331.07360068514191,127.8570729925739,838.57867197312828,473.90371073096856,64.944851387124388,139.18751064135807,14.127400132840766,35]
[null,"Female 80-84",{"$f":"SUM(C76,C114,C152,C190,C228)","v":251.84720003622374},473.35946439355541,219.9644168888465,106.72656982637247,88.568476710860054,303.40986613624955,112.57430733347304,157.23915038842551,33.598449444933706,130.71823391784207,134.61377891902174,119.60172117966545,56.681625380129276,159.03595021314101,113.80091553857262,133.25753410180323,1289.8342709147228,663.73099345222442,19.005093535316018,117.37861197280293,269.88089082393481,279.70574456407707,266.00806124450469,303.84756325121776,1211.7551670100045,559.50585119624316,802.03521837972016,324.70677203350749,172.108059469859,68.894559971801471,222.38841447667042,405.1461258162189,{"$f":"SUM(AI76,AI114,AI152,AI190,AI228)","v":913.23930034273758},69.309548338809705,79.420486734798544,120.50329074263303,163.28349582652774,21.703478716698136,21.703478716698136,167.38853874881283,147.45978268078761,4509.0374292791321,112.57430733347304,19.756419539866418,19.756419539866418,135.48092649699856,251.96440129690819,94.680658771843866,648.07166534949272,376.80863280138033,46.649384962078308,92.048140431142315,10.558510132063514,36]
[null,"Female 85-89",{"$f":"SUM(C77,C115,C153,C191,C229)","v":173.73957335588435},313.62240388887903,140.78900218023355,67.386038092241648,54.683862548300326,177.27774596522298,69.288567587121335,92.023143902521269,19.459855103331329,78.0440285317448,80.369825141036841,80.397215753858404,33.07611300887703,97.851696226808258,71.191150677656054,89.694132751997358,843.65805590661876,476.52493756151728,12.100304619862937,67.665683134760016,168.60819068882458,174.74627185437257,154.60016612886173,189.36813950709819,737.50420380908099,365.42135650592661,504.12166650396045,201.48472367389789,106.99497640697882,45.806306232349108,138.25292803492368,229.57860975712904,{"$f":"SUM(AI77,AI115,AI153,AI191,AI229)","v":613.44089609965295},36.154772331480032,48.504146029141019,69.129360234287574,83.315097331330577,14.748876997415042,14.748876997415042,112.78648998158607,87.809750647915507,2836.4177644600472,69.288567587121335,12.371317394120789,12.371317394120789,80.409994193820097,153.29847510444498,55.613255733241687,418.78604667265148,249.06326991183067,28.868937767657282,52.099247868648604,6.7224709361449255,37]
[null,"Female 90+",{"$f":"SUM(C78,C116,C154,C192,C230)","v":99.043579825570674},184.22680014239432,84.86923846409708,44.781182455664748,34.839657070617605,111.51123622230322,43.180448437807549,57.572201215568768,10.360050775672011,43.624588028246279,44.924648017801886,42.561670827755883,18.518612994955021,56.733670907393147,39.964435075595262,55.267447302727831,515.60701148818316,290.53170031075445,8.4607743732441705,44.345172970155303,107.71506990156263,111.63637312596339,98.831272335014376,114.5569611322711,415.47218844029533,213.4574220457294,297.00285306649039,120.70532931493764,62.582709021646423,27.994328464773623,80.86587854077888,115.49621075593856,{"$f":"SUM(AI78,AI116,AI154,AI192,AI230)","v":367.55732308969311},23.196876404388448,27.558627387164229,42.395767419631341,39.415333836181397,8.2817642628998236,8.2817642628998236,73.275966868185421,47.652129269852075,1689.93080836027,43.180448437807549,7.7695569863067462,7.7695569863067462,54.950019282731056,79.975612255531587,36.59556608095135,262.61253292877683,154.27441719289945,15.240042154194077,28.469480557252957,4.7004857818247228,38]
[null,"Male 0-4",{"$f":"SUM(C79,C117,C155,C193,C231)","v":0},0,0,0,0,0,0,0,0,0,0,0,0,0,0,0,0,0,0,0,0,0,0,0,0,0,0,0,0,0,0,0,{"$f":"SUM(AI79,AI117,AI155,AI193,AI231)","v":0},0,0,0,0,0,0,0,0,0,0,0,0,0,0,0,0,0,0,0,0,39]
[null,"Male 5-9",{"$f":"SUM(C80,C118,C156,C194,C232)","v":0},0,0,0,0,0,0,0,0,0,0,0,0,0,0,0,0,0,0,0,0,0,0,0,0,0,0,0,0,0,0,0,{"$f":"SUM(AI80,AI118,AI156,AI194,AI232)","v":0},0,0,0,0,0,0,0,0,0,0,0,0,0,0,0,0,0,0,0,0,40]
[null,"Male 10-15",{"$f":"SUM(C81,C119,C157,C195,C233)","v":0},0,0,0,0,0,0,0,0,0,0,0,0,0,0,0,0,0,0,0,0,0,0,0,0,0,0,0,0,0,0,0,{"$f":"SUM(AI81,AI119,AI157,AI195,AI233)","v":0},0,0,0,0,0,0,0,0,0,0,0,0,0,0,0,0,0,0,0,0,41]
[null,"Male 16-19",{"$f":"SUM(C82,C120,C158,C196,C234)","v":1094.5687484790308},2291.048774962781,1168.9409111325135,652.54571266630592,520.08664958866052,2028.778332712629,681.95943156008673,1022.9137230865897,336.69098684352423,745.50565729449841,792.47242819748612,610.84739659729985,618.13123776222312,579.2799147547272,604.37145435891955,551.98798617831699,7479.6981922294162,3040.6775415768725,197.40930330496849,759.81260946879297,1760.4452161756572,1767.9147345430338,2131.4364879245504,2772.5959448213284,8080.5207813718225,2658.6761590946799,5255.897038572979,1826.9999291904028,1210.3336305659943,374.89510889244764,1313.7903227247566,2826.2598723540341,{"$f":"SUM(AI82,AI120,AI158,AI196,AI234)","v":4997.3026669636565},480.42957886251395,420.12575756654149,846.06880828071019,1408.6184848020662,138.08262246052237,138.08262246052237,751.64913955557745,800.85931798371962,27185.065931543693,681.95943156008673,158.70405991936141,158.70405991936141,558.19227695734628,1375.7949324235915,586.2293475008546,3535.5560715041252,1753.3263666227408,379.64271302363181,998.40177374270206,136.25477067248576,42]
[null,"Male 20-24",{"$f":"SUM(C83,C121,C159,C197,C235)","v":2465.7268956218813},3692.2891556471632,1367.0601857696611,761.18316712901651,683.48854144713982,2531.028406630609,767.95016580135416,1461.2670143947191,430.02648054115866,907.52067769531493,964.69437630106893,1188.0591799637039,801.82619078470179,736.62372570161642,774.93647335399112,628.68004470645167,11676.861207059444,6213.0476615302059,231.67800076001953,946.86076321026769,2454.9716428836241,2465.3880168834603,2854.5627134828269,5688.6658281241544,12240.313894595414,4114.1066367411768,8755.618915165167,2139.3606190722448,1348.284515012821,484.92910052658073,1463.5329494026657,3574.9489014385631,{"$f":"SUM(AI83,AI121,AI159,AI197,AI235)","v":8500.2655187289929},618.29246770485588,532.44251591651744,1077.4752982733764,1786.4298217627872,159.91873286121657,159.91873286121657,920.22897957550072,1035.6875921647197,39667.090402467555,767.95016580135416,206.08333247783486,206.08333247783486,650.02853373066284,1735.2709126104285,878.11792289128675,5021.2497331632458,2527.5627427012173,543.71412916260704,1297.5234882396539,159.90752378397124,43]
[null,"Male 25-29",{"$f":"SUM(C84,C122,C160,C198,C236)","v":2972.7422353662696},3856.4809469159595,1135.180285270982,609.88373620074015,499.82415110354157,2242.925365361697,574.0152542976831,1068.1608361779167,345.5407054531442,749.47226519916489,796.68893194519251,1147.2452267047922,755.64459607329582,621.53674013116756,625.84482978771621,468.74702198311093,11461.772174207328,7164.1025929706611,175.44869051863623,891.74400196277395,1975.7423315490073,1984.1253493783088,2360.7333511534184,6147.5848418394135,11988.192365954645,4166.2174321928596,8840.3693140903961,1747.1558455406589,1155.1550679079173,419.82100375526562,1253.8952162753531,3265.5229637232969,{"$f":"SUM(AI84,AI122,AI160,AI198,AI236)","v":9099.2110587158168},611.83732670514883,445.2282348629152,887.6897790842927,1663.9922660098964,136.07582108562124,136.07582108562124,710.78217567735453,999.00441992856668,37509.185498719737,574.0152542976831,148.11929172909703,148.11929172909703,585.54660168512373,1550.7070314217549,616.98445147593588,4205.9187874065638,2183.8921380117272,547.03402060114229,1220.8503521052214,121.09723650903048,44]
[null,"Male 30-34",{"$f":"SUM(C85,C123,C161,C199,C237)","v":2394.9436446538152},3465.9178273061252,1224.0385563493044,629.96992038858798,405.10023622606496,2070.0866963582666,560.17280472528375,903.40980819974175,355.05346424578266,725.97585653158228,771.71225222649764,862.54394396308828,723.79749940329111,535.44262014399942,619.48380801361918,396.06774779489626,10641.896971672319,6199.4204338616801,173.44887419558862,916.92485937651634,1927.7880109812841,1935.9675600090663,2220.0676358135897,5412.1968797942882,11142.34107344157,3780.3692068344135,7902.888925562941,1703.0060085272228,1201.9917694925582,403.87216492191851,1304.7354174696911,3314.1661668231727,{"$f":"SUM(AI85,AI123,AI161,AI199,AI237)","v":8298.1004338333423},620.30857992719984,430.7201018560724,803.350306865736,1696.4026266297919,119.27053972181324,119.27053972181324,737.76299485981906,956.83065642261408,34772.501368144753,560.17280472528375,135.75343894760834,135.75343894760834,527.74957327865513,1565.6654085577707,471.6851398994184,3913.525533942598,1958.0386192860315,512.33569975468788,1274.3509009297393,119.71693421363666,45]
[null,"Male 35-39",{"$f":"SUM(C86,C124,C162,C200,C238)","v":1926.3171679798666},3228.7017314999148,1364.68959629148,600.48128723282457,430.51399807078894,2047.8626693844726,590.2748702645622,907.52567476949389,357.5769714518305,652.13845855386012,693.223106645038,663.88893950345448,687.14770830170721,558.60287284385186,610.62580604720688,524.69371197961743,9879.9234145673581,5301.0933744664098,198.38799857562427,945.23103531320953,1958.4342127516898,1966.7437927312508,2263.3156339432885,4423.5932700523217,10233.833370383731,3514.5752883562604,6954.2223996846433,1718.3593926030376,1192.6748440775687,386.20353782549734,1294.6221014891726,3314.595021697246,{"$f":"SUM(AI86,AI124,AI162,AI200,AI238)","v":7409.9501923137077},598.88312301927863,395.2602943271815,804.44085848640657,1669.539213349052,117.57404846642636,117.57404846642636,722.15385404332369,891.22189714981641,32499.218585605224,590.2748702645622,148.86231739709766,148.86231739709766,541.99472531471577,1594.7890052170026,473.11095658671343,3696.4228516446537,1735.4783808404661,449.02342152543162,1227.9063081312393,136.93028037455608,46]
[null,"Male 40-44",{"$f":"SUM(C87,C125,C163,C201,C239)","v":1654.2217605221822},3143.6156336769354,1491.7420413278387,683.92414181139497,497.60648487251393,2365.7512061401217,743.37867887452342,1037.3095611643375,406.3116943085393,778.48917011520427,827.5338985428175,610.28566829338035,784.53438724580235,668.20372894892739,762.64602865882227,624.77491500358576,10076.21492188953,4708.0033972364326,234.53552823570951,1021.3510003283959,2138.898818973259,2147.9741050812745,2505.8932639490467,3722.5636576705274,10070.96078112467,3493.1863795883464,6526.0349388444283,1824.1236159422504,1228.4887760455506,406.80658699377886,1333.497330640869,3544.2539115277455,{"$f":"SUM(AI87,AI125,AI163,AI201,AI239)","v":7221.8867050440276},625.5899589372259,445.21513520184453,943.33676562753044,1769.6061726532857,134.06935181661882,134.06935181661882,720.13128884195385,908.94109305395898,33247.419974373232,743.37867887452342,165.10131682351206,165.10131682351206,624.00979011100492,1721.9575603805411,542.6871063255378,3876.5333649484082,1749.6203076604727,455.54836264096923,1363.4033791115025,161.87983078456367,47]
[null,"Male 45-49",{"$f":"SUM(C88,C126,C164,C202,C240)","v":1808.1678691027198},3642.7027618345496,1808.6210926475501,896.69393142626041,680.69189182315711,3446.5275643113014,1091.1872566587435,1493.6622531997714,609.21497891622573,1130.0195656519272,1201.2106686792006,903.2114707802674,1120.3810953774655,872.0178140248172,961.87323808038923,746.37180277879338,12478.910478916489,5082.2183681004244,315.74038195652457,1355.2814607812948,2927.1007649270714,2939.5203691987012,3449.8638024428892,4901.8252955055923,13778.124822908756,4173.5288016286067,8870.7097755172235,2539.6329728963929,1721.567102255837,635.08816123626264,1868.7229221312582,4900.1298438648219,{"$f":"SUM(AI88,AI126,AI164,AI202,AI240)","v":8400.3028822241686},810.60844144961459,622.48258183309406,1446.3638034720584,2430.4405160349093,200.6080564902548,200.6080564902548,1034.6414677965345,1346.9959055025786,44052.77528409622,1091.1872566587435,204.13916006987296,204.13916006987296,874.27043648006941,2397.9375447145767,762.15760255168573,5388.8357182051268,2470.4513720714658,698.47146279655647,1750.3206583867745,217.92860121221315,48]
[null,"Male 50-54",{"$f":"SUM(C89,C127,C165,C203,C241)","v":1808.3889803593163},3681.5693808921424,1841.9652586325151,1019.0486069967685,761.17759652083851,3724.6775858604651,1201.1238806908723,1540.2765152395928,600.71604597418354,1312.3693639755952,1395.0484833824555,938.20626321276279,1175.9174080074795,978.2776228506998,1053.6291254646501,811.26522538251811,12611.095647058841,5049.4353812517602,307.60954675477751,1335.6442858692058,2902.3994533859072,2914.7142507038416,3472.4811933739898,4918.2338248792803,14319.3854302002,4197.1195470029315,9381.4614965559267,2815.2374534923565,1902.2667860914203,764.07405674863378,2064.8684227991985,4948.2911663054074,{"$f":"SUM(AI89,AI127,AI165,AI203,AI241)","v":8455.8109813881856},825.40903015295862,611.37706333815493,1579.4604974324179,2460.6916318549247,228.85323686149894,228.85323686149894,1185.0405775189768,1447.4402876932515,45899.36593739102,1201.1238806908723,232.52766943287406,232.52766943287406,965.25880053504818,2414.710664966628,807.90402447072984,5655.8039328910463,2733.3787251820522,804.98919072001013,1724.3119631071736,212.31658056656846,49]
[null,"Male 55-59",{"$f":"SUM(C90,C128,C166,C204,C242)","v":2166.3775377521833},4516.0025342952758,2297.6644328202678,1167.0510313507395,937.95381528809503,4267.1481337673704,1478.5126086567814,1784.3494858377644,664.92853960274374,1534.2801521599738,1630.9396257701558,1128.1091476184395,1288.4864343661868,1213.2504811538756,1263.3766919443478,996.93102986978579,14622.46114026788,5739.0638704767334,362.08640444645522,1461.0917481728607,3474.7844510108025,3489.5278613941618,3904.3634164268715,5041.2445734438952,15668.534362854452,5144.2188525074489,10255.59438090002,3520.6728354331026,2391.8585396396998,844.68769707572699,2596.3094169627511,5423.2036429351729,{"$f":"SUM(AI90,AI128,AI166,AI204,AI242)","v":9570.4015108428812},932.53455711106471,746.40041456528286,1792.7268666093112,2532.2044045568673,300.42825588985534,300.42825588985534,1443.5151820032138,1676.0263016556223,52810.520266265405,1478.5126086567814,296.42317144570654,296.42317144570654,1174.8323348099898,2822.2895086538488,960.65255983342843,6754.3224600902495,3257.1107007491128,858.24645375118007,1866.2156439809507,249.91729961814301,50]
[null,"Male 60-64",{"$f":"SUM(C91,C129,C167,C205,C243)","v":1932.2546863674988},4036.0240834097549,2056.3112998288143,1083.3738350088902,896.25301742908061,3844.3091210617567,1380.5618228260889,1507.9144427865999,571.01693931152192,1461.1192679012181,1553.1696141943637,905.88711795841812,1125.8177218944877,1064.6460543037485,1019.4822206685126,865.4891835944353,12412.457415166846,4874.5823915269984,349.97790590478712,1190.5277283588744,2974.6516098069483,2987.2729709443702,3238.7841735289094,4146.9373600100262,13135.333332766724,4619.2969027300696,8522.9342879931846,3261.1756748939138,2190.1571211285245,693.62270046346396,2377.366998915656,4612.7574498287513,{"$f":"SUM(AI91,AI129,AI167,AI205,AI243)","v":7956.7063243757038},824.69044567957371,685.56834014862989,1611.9342775993505,2130.27155003593,263.93118714197232,263.93118714197232,1351.1458852420244,1334.078936540481,45744.231756933325,1380.5618228260889,276.12414964760353,276.12414964760353,1094.1947473345535,2425.640377767978,804.56183967486811,5906.8537750746218,2901.5613581423072,738.67385380818314,1451.2735859018628,241.55983791617678,51]
[null,"Male 65-69",{"$f":"SUM(C92,C130,C168,C206,C244)","v":1540.5860449476472},3310.5176385174982,1719.3244090634757,1047.7644312339553,854.45034451497804,3467.0193632813157,1247.3093941976394,1326.8468126794135,520.59846225976798,1409.758796928626,1498.5734394413423,764.82223993697494,993.66513098371399,911.75906474121939,862.28944378040319,680.58197201569624,10808.249910938197,3965.2962723458713,364.61089734917573,1100.817713269867,2733.7609328007675,2745.3602017311191,2922.9947035436471,3050.953404844543,10375.00985879896,3789.3449716604696,6619.0485368908539,2876.7521740776524,1872.8556467195158,565.79286967602968,2032.9432830597964,3743.7711102589533,{"$f":"SUM(AI92,AI130,AI168,AI206,AI244)","v":6693.8157645153606},744.95955931144954,562.67311180940271,1427.1687543161661,1760.6082069509978,216.82700268894135,216.82700268894135,1123.9916174008142,1093.1032295210421,38790.857856313633,1247.3093941976394,215.17994140463372,215.17994140463372,1028.1879674944116,1934.8781122297376,693.46467367760488,5289.2020057788195,2540.0639547617898,562.92959240511664,1276.0798914249272,251.65974131549868,52]
[null,"Male 70-74",{"$f":"SUM(C93,C131,C169,C207,C245)","v":1006.039785108645},2200.3536212649092,1155.9562714191757,750.07755787064139,660.80191761719891,2634.6763488291522,916.09107079089767,956.42686952263512,376.31409995192314,1080.4472522260719,1148.5153051932657,548.63134739612269,727.21305197434936,680.95704900306009,664.12274063421273,508.60116353184435,7865.0415941292158,2723.0155222931317,257.92107303191983,768.3816892414502,2051.1677006153091,2059.870746113992,2072.482130465678,2135.9219673296452,7572.4836121077187,2586.4769796192254,4824.8204846970721,2175.1932519555839,1402.4792542822781,432.4160320271867,1522.3601373752151,2738.0723832965432,{"$f":"SUM(AI93,AI131,AI169,AI207,AI245)","v":4781.8138025234794},552.95800684449262,431.504901572503,1081.3321441205721,1253.5602372628373,171.95337294007896,171.95337294007896,845.68505234058011,823.14832604525293,28263.770139174867,916.09107079089767,149.86846267155619,149.86846267155619,810.4195773251497,1451.5119380301712,499.027647218845,3913.520782595037,1855.8638518050116,420.08208022015833,933.41851379808543,178.02087373397461,53]
[null,"Male 75-79",{"$f":"SUM(C94,C132,C170,C208,C246)","v":471.21045297048431},1054.352314723669,561.90119732995527,354.06675713568967,281.41489715446136,1068.6875394861893,434.00733427527524,431.38766771647499,142.96382583356933,480.64229756450754,510.92270718329115,247.36920673948856,289.45799735543142,355.31505649906501,304.81311123112908,261.40071954307223,3422.6349873179579,1270.5046327626751,105.78222316142939,326.99676007542462,837.51055282276354,841.06408598568214,907.89414574045793,801.04540436907814,3082.8951587530873,1258.2987849267959,2008.668884163515,926.52366409068998,597.43584228772283,171.34063484885058,648.50336157268885,1075.2295942740013,{"$f":"SUM(AI94,AI132,AI170,AI208,AI246)","v":2114.3346874246977},213.72950864737714,222.80668802859543,433.06905609295649,480.5201375391818,89.425447354805456,89.425447354805456,442.47854354016749,348.59923521070237,12286.702001121779,434.00733427527524,78.308530039950938,78.308530039950938,338.31052484856525,582.54771058277083,246.45049638007498,1758.5398787374461,903.64244349243029,150.00487292568724,378.26516380789133,73.012428070929275,54]
[null,"Male 80-84",{"$f":"SUM(C95,C133,C171,C209,C247)","v":344.4737107102959},726.05975770485611,372.22420794722848,238.47438238296152,179.4930953644417,708.54263317865048,286.0127297294473,287.70692332312865,89.225949093816567,328.27353749916813,348.95473270993267,182.24924451690481,183.35984724066091,263.99195058433656,212.82519632119624,191.14352751095663,2372.5103492454796,974.58823654928722,65.469443378363366,228.56740243368466,563.03281517258552,565.42174719712398,619.89934706159761,554.15389258498419,2097.0000158353364,853.52067808415245,1396.7521099393757,630.04566883109271,417.25716657414296,111.81645793710223,452.92340367036536,704.29601853062024,{"$f":"SUM(AI95,AI133,AI171,AI209,AI247)","v":1504.2484078697776},141.68465845710278,142.42800140909674,287.60975206985393,301.76329834836633,53.796728561844496,53.796728561844496,317.49530108999437,224.8189963036906,8396.4394729762444,286.0127297294473,46.28985693714796,46.28985693714796,232.06596573576411,395.44792132018534,169.25255555609627,1218.5732119203456,640.51543180722945,108.77473690577004,226.33937766103585,45.187961480180533,55]
[null,"Male 85-89",{"$f":"SUM(C96,C134,C172,C210,C248)","v":178.45667120059716},376.11680140802525,192.81331869994239,130.76550298218487,88.305137605885335,345.44126014437518,163.18732487124862,139.21704139237605,44.249310560204549,160.40102179015037,170.50626776556379,102.10099691485956,87.356360793316497,132.10990593163831,110.28568219571727,97.625730146638915,1240.0743522272485,533.57438176688424,38.82750523401414,104.45107459858119,279.14344881989518,280.32784643643828,291.51581364264314,268.166635989106,1019.9878979081803,444.69224899840412,693.59870483917575,323.0961436595166,217.44017389411718,57.544282212301198,236.02648808501647,329.92947004989969,{"$f":"SUM(AI96,AI134,AI172,AI210,AI248)","v":791.16648110329675},73.398574425605204,75.940369108075416,134.17555427646991,134.34319729836852,28.364146440102015,28.364146440102015,173.04495061006827,119.95200354230148,4263.9922141479547,163.18732487124862,23.232491257670254,23.232491257670254,119.80417262371677,192.74372367155823,81.041261279280704,642.41304073048354,352.30963999365423,46.51881303649813,104.90452519133902,26.799308507119306,56]
[null,"Male 90+",{"$f":"SUM(C97,C135,C173,C211,C249)","v":75.551583035114376},164.65894102880571,86.307207267361889,53.466760026118749,36.460514123123708,145.31393394745021,57.605509156621139,54.516797384080881,17.447682761430563,69.20379362269351,73.563624683520374,43.073662473247694,34.622960525692818,58.535929564488008,46.208797792165974,45.780520322400903,535.67932952805813,257.88074010292877,13.218087299626935,44.990341727453327,121.52517480129865,122.04080261915763,119.76963319352961,118.88577556000718,431.68925967194195,193.53902885595124,308.23527241031195,133.64477534421457,90.002436698356178,25.96724196596406,97.695649670291843,126.57554273801935,{"$f":"SUM(AI97,AI135,AI173,AI211,AI249)","v":354.38292237272555},26.56097625520373,32.278357391111946,53.263974222177012,52.798379212103363,13.014766969481977,13.014766969481977,72.677965860025168,52.75447301298874,1809.8731550744612,57.605509156621139,8.9516728883574324,8.9516728883574324,54.903043660618295,72.601231611448242,31.639746673766666,272.64973976306862,146.99772890825736,19.100579681131169,40.97292101410541,9.1233159916340973,57]
["SIMD Q1 (most deprived)","Female 0-4",{"$f":"'Population 2016'!C60*'Prevalence Rates'!C60","v":0},{"$f":"'Population 2016'!D60*'Prevalence Rates'!D60","v":0},{"$f":"'Population 2016'!E60*'Prevalence Rates'!E60","v":0},{"$f":"'Population 2016'!F60*'Prevalence Rates'!F60","v":0},{"$f":"'Population 2016'!G60*'Prevalence Rates'!G60","v":0},{"$f":"'Population 2016'!H60*'Prevalence Rates'!H60","v":0},{"$f":"'Population 2016'!I60*'Prevalence Rates'!I60","v":0},{"$f":"'Population 2016'!J60*'Prevalence Rates'!J60","v":0},{"$f":"'Population 2016'!K60*'Prevalence Rates'!K60","v":0},{"$f":"'Population 2016'!L60*'Prevalence Rates'!L60","v":0},{"$f":"'Population 2016'!M60*'Prevalence Rates'!M60","v":0},{"$f":"'Population 2016'!N60*'Prevalence Rates'!N60","v":0},{"$f":"'Population 2016'!O60*'Prevalence Rates'!O60","v":0},{"$f":"'Population 2016'!P60*'Prevalence Rates'!P60","v":0},{"$f":"'Population 2016'!Q60*'Prevalence Rates'!Q60","v":0},{"$f":"'Population 2016'!R60*'Prevalence Rates'!R60","v":0},{"$f":"'Population 2016'!S60*'Prevalence Rates'!S60","v":0},{"$f":"'Population 2016'!T60*'Prevalence Rates'!T60","v":0},{"$f":"'Population 2016'!U60*'Prevalence Rates'!U60","v":0},{"$f":"'Population 2016'!V60*'Prevalence Rates'!V60","v":0},{"$f":"'Population 2016'!W60*'Prevalence Rates'!W60","v":0},{"$f":"'Population 2016'!X60*'Prevalence Rates'!X60","v":0},{"$f":"'Population 2016'!Y60*'Prevalence Rates'!Y60","v":0},{"$f":"'Population 2016'!Z60*'Prevalence Rates'!Z60","v":0},{"$f":"'Population 2016'!AA60*'Prevalence Rates'!AA60","v":0},{"$f":"'Population 2016'!AB60*'Prevalence Rates'!AB60","v":0},{"$f":"'Population 2016'!AC60*'Prevalence Rates'!AC60","v":0},{"$f":"'Population 2016'!AD60*'Prevalence Rates'!AD60","v":0},{"$f":"'Population 2016'!AE60*'Prevalence Rates'!AE60","v":0},{"$f":"'Population 2016'!AF60*'Prevalence Rates'!AF60","v":0},{"$f":"'Population 2016'!AG60*'Prevalence Rates'!AG60","v":0},{"$f":"'Population 2016'!AH60*'Prevalence Rates'!AH60","v":0},{"$f":"'Population 2016'!AI60*'Prevalence Rates'!AI60","v":0},{"$f":"'Population 2016'!AJ60*'Prevalence Rates'!AJ60","v":0},{"$f":"'Population 2016'!AK60*'Prevalence Rates'!AK60","v":0},{"$f":"'Population 2016'!AL60*'Prevalence Rates'!AL60","v":0},{"$f":"'Population 2016'!AM60*'Prevalence Rates'!AM60","v":0},{"$f":"'Population 2016'!AN60*'Prevalence Rates'!AN60","v":0},{"$f":"'Population 2016'!AO60*'Prevalence Rates'!AO60","v":0},{"$f":"'Population 2016'!AP60*'Prevalence Rates'!AP60","v":0},{"$f":"'Population 2016'!AQ60*'Prevalence Rates'!AQ60","v":0},{"$f":"'Population 2016'!AR60*'Prevalence Rates'!AR60","v":0},{"$f":"'Population 2016'!AS60*'Prevalence Rates'!AS60","v":0},{"$f":"'Population 2016'!AT60*'Prevalence Rates'!AT60","v":0},{"$f":"'Population 2016'!AU60*'Prevalence Rates'!AU60","v":0},{"$f":"'Population 2016'!AV60*'Prevalence Rates'!AV60","v":0},{"$f":"'Population 2016'!AW60*'Prevalence Rates'!AW60","v":0},{"$f":"'Population 2016'!AX60*'Prevalence Rates'!AX60","v":0},{"$f":"'Population 2016'!AY60*'Prevalence Rates'!AY60","v":0},{"$f":"'Population 2016'!AZ60*'Prevalence Rates'!AZ60","v":0},{"$f":"'Population 2016'!BA60*'Prevalence Rates'!BA60","v":0},{"$f":"'Population 2016'!BB60*'Prevalence Rates'!BB60","v":0},{"$f":"'Population 2016'!BC60*'Prevalence Rates'!BC60","v":0},58]
[null,"Female 5-9",{"$f":"'Population 2016'!C61*'Prevalence Rates'!C61","v":0},{"$f":"'Population 2016'!D61*'Prevalence Rates'!D61","v":0},{"$f":"'Population 2016'!E61*'Prevalence Rates'!E61","v":0},{"$f":"'Population 2016'!F61*'Prevalence Rates'!F61","v":0},{"$f":"'Population 2016'!G61*'Prevalence Rates'!G61","v":0},{"$f":"'Population 2016'!H61*'Prevalence Rates'!H61","v":0},{"$f":"'Population 2016'!I61*'Prevalence Rates'!I61","v":0},{"$f":"'Population 2016'!J61*'Prevalence Rates'!J61","v":0},{"$f":"'Population 2016'!K61*'Prevalence Rates'!K61","v":0},{"$f":"'Population 2016'!L61*'Prevalence Rates'!L61","v":0},{"$f":"'Population 2016'!M61*'Prevalence Rates'!M61","v":0},{"$f":"'Population 2016'!N61*'Prevalence Rates'!N61","v":0},{"$f":"'Population 2016'!O61*'Prevalence Rates'!O61","v":0},{"$f":"'Population 2016'!P61*'Prevalence Rates'!P61","v":0},{"$f":"'Population 2016'!Q61*'Prevalence Rates'!Q61","v":0},{"$f":"'Population 2016'!R61*'Prevalence Rates'!R61","v":0},{"$f":"'Population 2016'!S61*'Prevalence Rates'!S61","v":0},{"$f":"'Population 2016'!T61*'Prevalence Rates'!T61","v":0},{"$f":"'Population 2016'!U61*'Prevalence Rates'!U61","v":0},{"$f":"'Population 2016'!V61*'Prevalence Rates'!V61","v":0},{"$f":"'Population 2016'!W61*'Prevalence Rates'!W61","v":0},{"$f":"'Population 2016'!X61*'Prevalence Rates'!X61","v":0},{"$f":"'Population 2016'!Y61*'Prevalence Rates'!Y61","v":0},{"$f":"'Population 2016'!Z61*'Prevalence Rates'!Z61","v":0},{"$f":"'Population 2016'!AA61*'Prevalence Rates'!AA61","v":0},{"$f":"'Population 2016'!AB61*'Prevalence Rates'!AB61","v":0},{"$f":"'Population 2016'!AC61*'Prevalence Rates'!AC61","v":0},{"$f":"'Population 2016'!AD61*'Prevalence Rates'!AD61","v":0},{"$f":"'Population 2016'!AE61*'Prevalence Rates'!AE61","v":0},{"$f":"'Population 2016'!AF61*'Prevalence Rates'!AF61","v":0},{"$f":"'Population 2016'!AG61*'Prevalence Rates'!AG61","v":0},{"$f":"'Population 2016'!AH61*'Prevalence Rates'!AH61","v":0},{"$f":"'Population 2016'!AI61*'Prevalence Rates'!AI61","v":0},{"$f":"'Population 2016'!AJ61*'Prevalence Rates'!AJ61","v":0},{"$f":"'Population 2016'!AK61*'Prevalence Rates'!AK61","v":0},{"$f":"'Population 2016'!AL61*'Prevalence Rates'!AL61","v":0},{"$f":"'Population 2016'!AM61*'Prevalence Rates'!AM61","v":0},{"$f":"'Population 2016'!AN61*'Prevalence Rates'!AN61","v":0},{"$f":"'Population 2016'!AO61*'Prevalence Rates'!AO61","v":0},{"$f":"'Population 2016'!AP61*'Prevalence Rates'!AP61","v":0},{"$f":"'Population 2016'!AQ61*'Prevalence Rates'!AQ61","v":0},{"$f":"'Population 2016'!AR61*'Prevalence Rates'!AR61","v":0},{"$f":"'Population 2016'!AS61*'Prevalence Rates'!AS61","v":0},{"$f":"'Population 2016'!AT61*'Prevalence Rates'!AT61","v":0},{"$f":"'Population 2016'!AU61*'Prevalence Rates'!AU61","v":0},{"$f":"'Population 2016'!AV61*'Prevalence Rates'!AV61","v":0},{"$f":"'Population 2016'!AW61*'Prevalence Rates'!AW61","v":0},{"$f":"'Population 2016'!AX61*'Prevalence Rates'!AX61","v":0},{"$f":"'Population 2016'!AY61*'Prevalence Rates'!AY61","v":0},{"$f":"'Population 2016'!AZ61*'Prevalence Rates'!AZ61","v":0},{"$f":"'Population 2016'!BA61*'Prevalence Rates'!BA61","v":0},{"$f":"'Population 2016'!BB61*'Prevalence Rates'!BB61","v":0},{"$f":"'Population 2016'!BC61*'Prevalence Rates'!BC61","v":0},59]
[null,"Female 10-15",{"$f":"'Population 2016'!C62*'Prevalence Rates'!C62","v":0},{"$f":"'Population 2016'!D62*'Prevalence Rates'!D62","v":0},{"$f":"'Population 2016'!E62*'Prevalence Rates'!E62","v":0},{"$f":"'Population 2016'!F62*'Prevalence Rates'!F62","v":0},{"$f":"'Population 2016'!G62*'Prevalence Rates'!G62","v":0},{"$f":"'Population 2016'!H62*'Prevalence Rates'!H62","v":0},{"$f":"'Population 2016'!I62*'Prevalence Rates'!I62","v":0},{"$f":"'Population 2016'!J62*'Prevalence Rates'!J62","v":0},{"$f":"'Population 2016'!K62*'Prevalence Rates'!K62","v":0},{"$f":"'Population 2016'!L62*'Prevalence Rates'!L62","v":0},{"$f":"'Population 2016'!M62*'Prevalence Rates'!M62","v":0},{"$f":"'Population 2016'!N62*'Prevalence Rates'!N62","v":0},{"$f":"'Population 2016'!O62*'Prevalence Rates'!O62","v":0},{"$f":"'Population 2016'!P62*'Prevalence Rates'!P62","v":0},{"$f":"'Population 2016'!Q62*'Prevalence Rates'!Q62","v":0},{"$f":"'Population 2016'!R62*'Prevalence Rates'!R62","v":0},{"$f":"'Population 2016'!S62*'Prevalence Rates'!S62","v":0},{"$f":"'Population 2016'!T62*'Prevalence Rates'!T62","v":0},{"$f":"'Population 2016'!U62*'Prevalence Rates'!U62","v":0},{"$f":"'Population 2016'!V62*'Prevalence Rates'!V62","v":0},{"$f":"'Population 2016'!W62*'Prevalence Rates'!W62","v":0},{"$f":"'Population 2016'!X62*'Prevalence Rates'!X62","v":0},{"$f":"'Population 2016'!Y62*'Prevalence Rates'!Y62","v":0},{"$f":"'Population 2016'!Z62*'Prevalence Rates'!Z62","v":0},{"$f":"'Population 2016'!AA62*'Prevalence Rates'!AA62","v":0},{"$f":"'Population 2016'!AB62*'Prevalence Rates'!AB62","v":0},{"$f":"'Population 2016'!AC62*'Prevalence Rates'!AC62","v":0},{"$f":"'Population 2016'!AD62*'Prevalence Rates'!AD62","v":0},{"$f":"'Population 2016'!AE62*'Prevalence Rates'!AE62","v":0},{"$f":"'Population 2016'!AF62*'Prevalence Rates'!AF62","v":0},{"$f":"'Population 2016'!AG62*'Prevalence Rates'!AG62","v":0},{"$f":"'Population 2016'!AH62*'Prevalence Rates'!AH62","v":0},{"$f":"'Population 2016'!AI62*'Prevalence Rates'!AI62","v":0},{"$f":"'Population 2016'!AJ62*'Prevalence Rates'!AJ62","v":0},{"$f":"'Population 2016'!AK62*'Prevalence Rates'!AK62","v":0},{"$f":"'Population 2016'!AL62*'Prevalence Rates'!AL62","v":0},{"$f":"'Population 2016'!AM62*'Prevalence Rates'!AM62","v":0},{"$f":"'Population 2016'!AN62*'Prevalence Rates'!AN62","v":0},{"$f":"'Population 2016'!AO62*'Prevalence Rates'!AO62","v":0},{"$f":"'Population 2016'!AP62*'Prevalence Rates'!AP62","v":0},{"$f":"'Population 2016'!AQ62*'Prevalence Rates'!AQ62","v":0},{"$f":"'Population 2016'!AR62*'Prevalence Rates'!AR62","v":0},{"$f":"'Population 2016'!AS62*'Prevalence Rates'!AS62","v":0},{"$f":"'Population 2016'!AT62*'Prevalence Rates'!AT62","v":0},{"$f":"'Population 2016'!AU62*'Prevalence Rates'!AU62","v":0},{"$f":"'Population 2016'!AV62*'Prevalence Rates'!AV62","v":0},{"$f":"'Population 2016'!AW62*'Prevalence Rates'!AW62","v":0},{"$f":"'Population 2016'!AX62*'Prevalence Rates'!AX62","v":0},{"$f":"'Population 2016'!AY62*'Prevalence Rates'!AY62","v":0},{"$f":"'Population 2016'!AZ62*'Prevalence Rates'!AZ62","v":0},{"$f":"'Population 2016'!BA62*'Prevalence Rates'!BA62","v":0},{"$f":"'Population 2016'!BB62*'Prevalence Rates'!BB62","v":0},{"$f":"'Population 2016'!BC62*'Prevalence Rates'!BC62","v":0},60]
[null,"Female 16-19",{"$f":"'Population 2016'!C63*'Prevalence Rates'!C63","v":85.986913632468273},{"$f":"'Population 2016'!D63*'Prevalence Rates'!D63","v":95.257092147769825},{"$f":"'Population 2016'!E63*'Prevalence Rates'!E63","v":18.872679765930801},{"$f":"'Population 2016'!F63*'Prevalence Rates'!F63","v":36.530738150870235},{"$f":"'Population 2016'!G63*'Prevalence Rates'!G63","v":31.013614932649521},{"$f":"'Population 2016'!H63*'Prevalence Rates'!H63","v":529.27250760553056},{"$f":"'Population 2016'!I63*'Prevalence Rates'!I63","v":32.377357764327961},{"$f":"'Population 2016'!J63*'Prevalence Rates'!J63","v":141.83556650541692},{"$f":"'Population 2016'!K63*'Prevalence Rates'!K63","v":53.642018187152139},{"$f":"'Population 2016'!L63*'Prevalence Rates'!L63","v":56.594801842110812},{"$f":"'Population 2016'!M63*'Prevalence Rates'!M63","v":58.28138825627056},{"$f":"'Population 2016'!N63*'Prevalence Rates'!N63","v":240.78764857057962},{"$f":"'Population 2016'!O63*'Prevalence Rates'!O63","v":126.09835019015208},{"$f":"'Population 2016'!P63*'Prevalence Rates'!P63","v":20.975474992641601},{"$f":"'Population 2016'!Q63*'Prevalence Rates'!Q63","v":19.212561696265997},{"$f":"'Population 2016'!R63*'Prevalence Rates'!R63","v":30.999153307709271},{"$f":"'Population 2016'!S63*'Prevalence Rates'!S63","v":977.14318680461952},{"$f":"'Population 2016'!T63*'Prevalence Rates'!T63","v":389.73979858731212},{"$f":"'Population 2016'!U63*'Prevalence Rates'!U63","v":0},{"$f":"'Population 2016'!V63*'Prevalence Rates'!V63","v":98.132997565520427},{"$f":"'Population 2016'!W63*'Prevalence Rates'!W63","v":322.29801737863261},{"$f":"'Population 2016'!X63*'Prevalence Rates'!X63","v":334.03108551774977},{"$f":"'Population 2016'!Y63*'Prevalence Rates'!Y63","v":231.82680808436601},{"$f":"'Population 2016'!Z63*'Prevalence Rates'!Z63","v":1204.1195640130447},{"$f":"'Population 2016'!AA63*'Prevalence Rates'!AA63","v":2424.5229902888286},{"$f":"'Population 2016'!AB63*'Prevalence Rates'!AB63","v":95.176827228030945},{"$f":"'Population 2016'!AC63*'Prevalence Rates'!AC63","v":1630.0809529327098},{"$f":"'Population 2016'!AD63*'Prevalence Rates'!AD63","v":116.61968902756566},{"$f":"'Population 2016'!AE63*'Prevalence Rates'!AE63","v":62.393502380365213},{"$f":"'Population 2016'!AF63*'Prevalence Rates'!AF63","v":141.52938258239493},{"$f":"'Population 2016'!AG63*'Prevalence Rates'!AG63","v":80.621396294609838},{"$f":"'Population 2016'!AH63*'Prevalence Rates'!AH63","v":783.67313236693167},{"$f":"'Population 2016'!AI63*'Prevalence Rates'!AI63","v":598.30077781448392},{"$f":"'Population 2016'!AJ63*'Prevalence Rates'!AJ63","v":47.452712623307583},{"$f":"'Population 2016'!AK63*'Prevalence Rates'!AK63","v":2.3993334238204187},{"$f":"'Population 2016'!AL63*'Prevalence Rates'!AL63","v":309.44168743764766},{"$f":"'Population 2016'!AM63*'Prevalence Rates'!AM63","v":472.00751529637796},{"$f":"'Population 2016'!AN63*'Prevalence Rates'!AN63","v":0},{"$f":"'Population 2016'!AO63*'Prevalence Rates'!AO63","v":0},{"$f":"'Population 2016'!AP63*'Prevalence Rates'!AP63","v":32.263493904328953},{"$f":"'Population 2016'!AQ63*'Prevalence Rates'!AQ63","v":228.71927004303464},{"$f":"'Population 2016'!AR63*'Prevalence Rates'!AR63","v":4767.8828916026341},{"$f":"'Population 2016'!AS63*'Prevalence Rates'!AS63","v":32.377357764327961},{"$f":"'Population 2016'!AT63*'Prevalence Rates'!AT63","v":0},{"$f":"'Population 2016'!AU63*'Prevalence Rates'!AU63","v":0},{"$f":"'Population 2016'!AV63*'Prevalence Rates'!AV63","v":104.10907039238607},{"$f":"'Population 2016'!AW63*'Prevalence Rates'!AW63","v":308.98142171835485},{"$f":"'Population 2016'!AX63*'Prevalence Rates'!AX63","v":62.227132560425687},{"$f":"'Population 2016'!AY63*'Prevalence Rates'!AY63","v":602.86643232435961},{"$f":"'Population 2016'!AZ63*'Prevalence Rates'!AZ63","v":282.00750563866507},{"$f":"'Population 2016'!BA63*'Prevalence Rates'!BA63","v":152.83279465487843},{"$f":"'Population 2016'!BB63*'Prevalence Rates'!BB63","v":137.77155187560774},{"$f":"'Population 2016'!BC63*'Prevalence Rates'!BC63","v":0},61]
[null,"Female 20-24",{"$f":"'Population 2016'!C64*'Prevalence Rates'!C64","v":183.22007209970079},{"$f":"'Population 2016'!D64*'Prevalence Rates'!D64","v":195.28698223196236},{"$f":"'Population 2016'!E64*'Prevalence Rates'!E64","v":33.701213867733578},{"$f":"'Population 2016'!F64*'Prevalence Rates'!F64","v":52.656919857110253},{"$f":"'Population 2016'!G64*'Prevalence Rates'!G64","v":44.18378017802123},{"$f":"'Population 2016'!H64*'Prevalence Rates'!H64","v":792.34633334156376},{"$f":"'Population 2016'!I64*'Prevalence Rates'!I64","v":41.57329369739152},{"$f":"'Population 2016'!J64*'Prevalence Rates'!J64","v":228.51285714761616},{"$f":"'Population 2016'!K64*'Prevalence Rates'!K64","v":86.532014739858568},{"$f":"'Population 2016'!L64*'Prevalence Rates'!L64","v":90.192350872189294},{"$f":"'Population 2016'!M64*'Prevalence Rates'!M64","v":92.880180649675623},{"$f":"'Population 2016'!N64*'Prevalence Rates'!N64","v":410.04663902726185},{"$f":"'Population 2016'!O64*'Prevalence Rates'!O64","v":197.55408196457159},{"$f":"'Population 2016'!P64*'Prevalence Rates'!P64","v":32.8553900327218},{"$f":"'Population 2016'!Q64*'Prevalence Rates'!Q64","v":27.777197633155659},{"$f":"'Population 2016'!R64*'Prevalence Rates'!R64","v":42.507821002786962},{"$f":"'Population 2016'!S64*'Prevalence Rates'!S64","v":1357.034960250727},{"$f":"'Population 2016'!T64*'Prevalence Rates'!T64","v":615.70595840655153},{"$f":"'Population 2016'!U64*'Prevalence Rates'!U64","v":0},{"$f":"'Population 2016'!V64*'Prevalence Rates'!V64","v":160.65655297646381},{"$f":"'Population 2016'!W64*'Prevalence Rates'!W64","v":396.13228161135379},{"$f":"'Population 2016'!X64*'Prevalence Rates'!X64","v":410.55324234220967},{"$f":"'Population 2016'!Y64*'Prevalence Rates'!Y64","v":376.17589738783363},{"$f":"'Population 2016'!Z64*'Prevalence Rates'!Z64","v":2050.1440923750924},{"$f":"'Population 2016'!AA64*'Prevalence Rates'!AA64","v":3864.2724592726868},{"$f":"'Population 2016'!AB64*'Prevalence Rates'!AB64","v":195.54511775940904},{"$f":"'Population 2016'!AC64*'Prevalence Rates'!AC64","v":2760.8827545202234},{"$f":"'Population 2016'!AD64*'Prevalence Rates'!AD64","v":172.27425829026549},{"$f":"'Population 2016'!AE64*'Prevalence Rates'!AE64","v":93.358019690720155},{"$f":"'Population 2016'!AF64*'Prevalence Rates'!AF64","v":233.070916374787},{"$f":"'Population 2016'!AG64*'Prevalence Rates'!AG64","v":120.63201480310107},{"$f":"'Population 2016'!AH64*'Prevalence Rates'!AH64","v":1075.8336967370772},{"$f":"'Population 2016'!AI64*'Prevalence Rates'!AI64","v":904.71846012010963},{"$f":"'Population 2016'!AJ64*'Prevalence Rates'!AJ64","v":75.461386903406208},{"$f":"'Population 2016'!AK64*'Prevalence Rates'!AK64","v":5.2485418646071658},{"$f":"'Population 2016'!AL64*'Prevalence Rates'!AL64","v":445.72429589464275},{"$f":"'Population 2016'!AM64*'Prevalence Rates'!AM64","v":636.53159999007403},{"$f":"'Population 2016'!AN64*'Prevalence Rates'!AN64","v":0},{"$f":"'Population 2016'!AO64*'Prevalence Rates'!AO64","v":0},{"$f":"'Population 2016'!AP64*'Prevalence Rates'!AP64","v":57.474857993504045},{"$f":"'Population 2016'!AQ64*'Prevalence Rates'!AQ64","v":420.92217479239167},{"$f":"'Population 2016'!AR64*'Prevalence Rates'!AR64","v":7430.4873628389314},{"$f":"'Population 2016'!AS64*'Prevalence Rates'!AS64","v":41.57329369739152},{"$f":"'Population 2016'!AT64*'Prevalence Rates'!AT64","v":0},{"$f":"'Population 2016'!AU64*'Prevalence Rates'!AU64","v":0},{"$f":"'Population 2016'!AV64*'Prevalence Rates'!AV64","v":159.25068436299546},{"$f":"'Population 2016'!AW64*'Prevalence Rates'!AW64","v":437.24587444542448},{"$f":"'Population 2016'!AX64*'Prevalence Rates'!AX64","v":100.1467914644351},{"$f":"'Population 2016'!AY64*'Prevalence Rates'!AY64","v":869.52221186662575},{"$f":"'Population 2016'!AZ64*'Prevalence Rates'!AZ64","v":472.83710380521359},{"$f":"'Population 2016'!BA64*'Prevalence Rates'!BA64","v":238.64698494556791},{"$f":"'Population 2016'!BB64*'Prevalence Rates'!BB64","v":186.82512250169339},{"$f":"'Population 2016'!BC64*'Prevalence Rates'!BC64","v":0},62]
[null,"Female 25-29",{"$f":"'Population 2016'!C65*'Prevalence Rates'!C65","v":144.76039825791273},{"$f":"'Population 2016'!D65*'Prevalence Rates'!D65","v":151.23358106275015},{"$f":"'Population 2016'!E65*'Prevalence Rates'!E65","v":24.033516090777418},{"$f":"'Population 2016'!F65*'Prevalence Rates'!F65","v":29.485022870076993},{"$f":"'Population 2016'!G65*'Prevalence Rates'!G65","v":21.895395220908622},{"$f":"'Population 2016'!H65*'Prevalence Rates'!H65","v":475.53411020708768},{"$f":"'Population 2016'!I65*'Prevalence Rates'!I65","v":23.421228671088095},{"$f":"'Population 2016'!J65*'Prevalence Rates'!J65","v":145.0980129333098},{"$f":"'Population 2016'!K65*'Prevalence Rates'!K65","v":50.213803943163569},{"$f":"'Population 2016'!L65*'Prevalence Rates'!L65","v":54.265190707766003},{"$f":"'Population 2016'!M65*'Prevalence Rates'!M65","v":55.882352186038133},{"$f":"'Population 2016'!N65*'Prevalence Rates'!N65","v":320.1136685654352},{"$f":"'Population 2016'!O65*'Prevalence Rates'!O65","v":121.77635561560646},{"$f":"'Population 2016'!P65*'Prevalence Rates'!P65","v":21.357941705511333},{"$f":"'Population 2016'!Q65*'Prevalence Rates'!Q65","v":19.004329743196248},{"$f":"'Population 2016'!R65*'Prevalence Rates'!R65","v":24.472641537565067},{"$f":"'Population 2016'!S65*'Prevalence Rates'!S65","v":1044.7895705411606},{"$f":"'Population 2016'!T65*'Prevalence Rates'!T65","v":555.63815897710924},{"$f":"'Population 2016'!U65*'Prevalence Rates'!U65","v":0},{"$f":"'Population 2016'!V65*'Prevalence Rates'!V65","v":110.66910175288049},{"$f":"'Population 2016'!W65*'Prevalence Rates'!W65","v":291.24803077384456},{"$f":"'Population 2016'!X65*'Prevalence Rates'!X65","v":301.85074256911656},{"$f":"'Population 2016'!Y65*'Prevalence Rates'!Y65","v":247.93629470541765},{"$f":"'Population 2016'!Z65*'Prevalence Rates'!Z65","v":1697.4721530464851},{"$f":"'Population 2016'!AA65*'Prevalence Rates'!AA65","v":2837.3995735547423},{"$f":"'Population 2016'!AB65*'Prevalence Rates'!AB65","v":148.87211052429763},{"$f":"'Population 2016'!AC65*'Prevalence Rates'!AC65","v":2122.7277355090814},{"$f":"'Population 2016'!AD65*'Prevalence Rates'!AD65","v":97.638186828121576},{"$f":"'Population 2016'!AE65*'Prevalence Rates'!AE65","v":55.204704787657114},{"$f":"'Population 2016'!AF65*'Prevalence Rates'!AF65","v":140.90591081153778},{"$f":"'Population 2016'!AG65*'Prevalence Rates'!AG65","v":71.33243386274863},{"$f":"'Population 2016'!AH65*'Prevalence Rates'!AH65","v":688.34224265468708},{"$f":"'Population 2016'!AI65*'Prevalence Rates'!AI65","v":725.80135015264386},{"$f":"'Population 2016'!AJ65*'Prevalence Rates'!AJ65","v":46.747876813555735},{"$f":"'Population 2016'!AK65*'Prevalence Rates'!AK65","v":2.0669180822185194},{"$f":"'Population 2016'!AL65*'Prevalence Rates'!AL65","v":267.65964052116965},{"$f":"'Population 2016'!AM65*'Prevalence Rates'!AM65","v":414.32124050922596},{"$f":"'Population 2016'!AN65*'Prevalence Rates'!AN65","v":0},{"$f":"'Population 2016'!AO65*'Prevalence Rates'!AO65","v":0},{"$f":"'Population 2016'!AP65*'Prevalence Rates'!AP65","v":42.367173060878727},{"$f":"'Population 2016'!AQ65*'Prevalence Rates'!AQ65","v":286.317122282995},{"$f":"'Population 2016'!AR65*'Prevalence Rates'!AR65","v":5341.1263490578103},{"$f":"'Population 2016'!AS65*'Prevalence Rates'!AS65","v":23.421228671088095},{"$f":"'Population 2016'!AT65*'Prevalence Rates'!AT65","v":0},{"$f":"'Population 2016'!AU65*'Prevalence Rates'!AU65","v":0},{"$f":"'Population 2016'!AV65*'Prevalence Rates'!AV65","v":90.713958247732791},{"$f":"'Population 2016'!AW65*'Prevalence Rates'!AW65","v":271.70151530363938},{"$f":"'Population 2016'!AX65*'Prevalence Rates'!AX65","v":68.289232869816473},{"$f":"'Population 2016'!AY65*'Prevalence Rates'!AY65","v":646.54212092248451},{"$f":"'Population 2016'!AZ65*'Prevalence Rates'!AZ65","v":354.75680771359731},{"$f":"'Population 2016'!BA65*'Prevalence Rates'!BA65","v":148.58968377656589},{"$f":"'Population 2016'!BB65*'Prevalence Rates'!BB65","v":118.38975793926086},{"$f":"'Population 2016'!BC65*'Prevalence Rates'!BC65","v":0},63]
[null,"Female 30-34",{"$f":"'Population 2016'!C66*'Prevalence Rates'!C66","v":127.20942853702128},{"$f":"'Population 2016'!D66*'Prevalence Rates'!D66","v":135.97913001780768},{"$f":"'Population 2016'!E66*'Prevalence Rates'!E66","v":23.730572610641566},{"$f":"'Population 2016'!F66*'Prevalence Rates'!F66","v":32.739222718613917},{"$f":"'Population 2016'!G66*'Prevalence Rates'!G66","v":25.587060694201352},{"$f":"'Population 2016'!H66*'Prevalence Rates'!H66","v":422.04676382150086},{"$f":"'Population 2016'!I66*'Prevalence Rates'!I66","v":23.765658504486449},{"$f":"'Population 2016'!J66*'Prevalence Rates'!J66","v":126.92498764481834},{"$f":"'Population 2016'!K66*'Prevalence Rates'!K66","v":47.984686478396966},{"$f":"'Population 2016'!L66*'Prevalence Rates'!L66","v":46.297682548292421},{"$f":"'Population 2016'!M66*'Prevalence Rates'!M66","v":47.677403650786502},{"$f":"'Population 2016'!N66*'Prevalence Rates'!N66","v":256.6181539269636},{"$f":"'Population 2016'!O66*'Prevalence Rates'!O66","v":108.22634743013242},{"$f":"'Population 2016'!P66*'Prevalence Rates'!P66","v":18.354481153173801},{"$f":"'Population 2016'!Q66*'Prevalence Rates'!Q66","v":17.200999183622883},{"$f":"'Population 2016'!R66*'Prevalence Rates'!R66","v":23.80520585926784},{"$f":"'Population 2016'!S66*'Prevalence Rates'!S66","v":998.4266275103098},{"$f":"'Population 2016'!T66*'Prevalence Rates'!T66","v":547.09704697494567},{"$f":"'Population 2016'!U66*'Prevalence Rates'!U66","v":0},{"$f":"'Population 2016'!V66*'Prevalence Rates'!V66","v":108.43586875786721},{"$f":"'Population 2016'!W66*'Prevalence Rates'!W66","v":256.92765006264096},{"$f":"'Population 2016'!X66*'Prevalence Rates'!X66","v":266.28094875658468},{"$f":"'Population 2016'!Y66*'Prevalence Rates'!Y66","v":229.07440449960151},{"$f":"'Population 2016'!Z66*'Prevalence Rates'!Z66","v":1437.3185707235193},{"$f":"'Population 2016'!AA66*'Prevalence Rates'!AA66","v":2580.9364252207511},{"$f":"'Population 2016'!AB66*'Prevalence Rates'!AB66","v":135.27543169932309},{"$f":"'Population 2016'!AC66*'Prevalence Rates'!AC66","v":1844.6343753142964},{"$f":"'Population 2016'!AD66*'Prevalence Rates'!AD66","v":108.96778086684755},{"$f":"'Population 2016'!AE66*'Prevalence Rates'!AE66","v":60.771565774647748},{"$f":"'Population 2016'!AF66*'Prevalence Rates'!AF66","v":137.82397925398007},{"$f":"'Population 2016'!AG66*'Prevalence Rates'!AG66","v":78.525620470756891},{"$f":"'Population 2016'!AH66*'Prevalence Rates'!AH66","v":717.85606276167834},{"$f":"'Population 2016'!AI66*'Prevalence Rates'!AI66","v":720.80370166644627},{"$f":"'Population 2016'!AJ66*'Prevalence Rates'!AJ66","v":41.060449664132037},{"$f":"'Population 2016'!AK66*'Prevalence Rates'!AK66","v":2.9655781179657015},{"$f":"'Population 2016'!AL66*'Prevalence Rates'!AL66","v":232.38347251402061},{"$f":"'Population 2016'!AM66*'Prevalence Rates'!AM66","v":418.88891215775465},{"$f":"'Population 2016'!AN66*'Prevalence Rates'!AN66","v":0},{"$f":"'Population 2016'!AO66*'Prevalence Rates'!AO66","v":0},{"$f":"'Population 2016'!AP66*'Prevalence Rates'!AP66","v":38.035367336449724},{"$f":"'Population 2016'!AQ66*'Prevalence Rates'!AQ66","v":244.25405763638565},{"$f":"'Population 2016'!AR66*'Prevalence Rates'!AR66","v":4880.8537888086175},{"$f":"'Population 2016'!AS66*'Prevalence Rates'!AS66","v":23.765658504486449},{"$f":"'Population 2016'!AT66*'Prevalence Rates'!AT66","v":0},{"$f":"'Population 2016'!AU66*'Prevalence Rates'!AU66","v":0},{"$f":"'Population 2016'!AV66*'Prevalence Rates'!AV66","v":85.100154924385052},{"$f":"'Population 2016'!AW66*'Prevalence Rates'!AW66","v":298.42625451383338},{"$f":"'Population 2016'!AX66*'Prevalence Rates'!AX66","v":55.703503945003888},{"$f":"'Population 2016'!AY66*'Prevalence Rates'!AY66","v":554.79954193380377},{"$f":"'Population 2016'!AZ66*'Prevalence Rates'!AZ66","v":297.67884437691202},{"$f":"'Population 2016'!BA66*'Prevalence Rates'!BA66","v":152.34424699603503},{"$f":"'Population 2016'!BB66*'Prevalence Rates'!BB66","v":126.88717994460063},{"$f":"'Population 2016'!BC66*'Prevalence Rates'!BC66","v":0},64]
[null,"Female 35-39",{"$f":"'Population 2016'!C67*'Prevalence Rates'!C67","v":86.034220621101554},{"$f":"'Population 2016'!D67*'Prevalence Rates'!D67","v":92.407151951412359},{"$f":"'Population 2016'!E67*'Prevalence Rates'!E67","v":16.423810344456573},{"$f":"'Population 2016'!F67*'Prevalence Rates'!F67","v":27.787639995064445},{"$f":"'Population 2016'!G67*'Prevalence Rates'!G67","v":21.30603946979182},{"$f":"'Population 2016'!H67*'Prevalence Rates'!H67","v":358.46843443451439},{"$f":"'Population 2016'!I67*'Prevalence Rates'!I67","v":20.844229900588793},{"$f":"'Population 2016'!J67*'Prevalence Rates'!J67","v":104.72963492281723},{"$f":"'Population 2016'!K67*'Prevalence Rates'!K67","v":46.816282328502247},{"$f":"'Population 2016'!L67*'Prevalence Rates'!L67","v":36.753873653835498},{"$f":"'Population 2016'!M67*'Prevalence Rates'!M67","v":37.849178910760678},{"$f":"'Population 2016'!N67*'Prevalence Rates'!N67","v":189.98543951296597},{"$f":"'Population 2016'!O67*'Prevalence Rates'!O67","v":89.936130342485697},{"$f":"'Population 2016'!P67*'Prevalence Rates'!P67","v":15.883281550905945},{"$f":"'Population 2016'!Q67*'Prevalence Rates'!Q67","v":19.019763450111615},{"$f":"'Population 2016'!R67*'Prevalence Rates'!R67","v":22.615268433409128},{"$f":"'Population 2016'!S67*'Prevalence Rates'!S67","v":810.12938148013313},{"$f":"'Population 2016'!T67*'Prevalence Rates'!T67","v":414.39437899362707},{"$f":"'Population 2016'!U67*'Prevalence Rates'!U67","v":0},{"$f":"'Population 2016'!V67*'Prevalence Rates'!V67","v":80.949792590461627},{"$f":"'Population 2016'!W67*'Prevalence Rates'!W67","v":220.7814581679657},{"$f":"'Population 2016'!X67*'Prevalence Rates'!X67","v":228.81887618749749},{"$f":"'Population 2016'!Y67*'Prevalence Rates'!Y67","v":180.07913918471044},{"$f":"'Population 2016'!Z67*'Prevalence Rates'!Z67","v":1126.6115208372869},{"$f":"'Population 2016'!AA67*'Prevalence Rates'!AA67","v":2086.4446454939011},{"$f":"'Population 2016'!AB67*'Prevalence Rates'!AB67","v":91.959880289047405},{"$f":"'Population 2016'!AC67*'Prevalence Rates'!AC67","v":1468.5621667648443},{"$f":"'Population 2016'!AD67*'Prevalence Rates'!AD67","v":84.140799940025317},{"$f":"'Population 2016'!AE67*'Prevalence Rates'!AE67","v":45.796759382077724},{"$f":"'Population 2016'!AF67*'Prevalence Rates'!AF67","v":115.75435747091808},{"$f":"'Population 2016'!AG67*'Prevalence Rates'!AG67","v":59.176012666236993},{"$f":"'Population 2016'!AH67*'Prevalence Rates'!AH67","v":604.41644395702269},{"$f":"'Population 2016'!AI67*'Prevalence Rates'!AI67","v":566.27997882749514},{"$f":"'Population 2016'!AJ67*'Prevalence Rates'!AJ67","v":36.727819076077601},{"$f":"'Population 2016'!AK67*'Prevalence Rates'!AK67","v":2.0394440214533884},{"$f":"'Population 2016'!AL67*'Prevalence Rates'!AL67","v":205.33353175676947},{"$f":"'Population 2016'!AM67*'Prevalence Rates'!AM67","v":354.48773007969737},{"$f":"'Population 2016'!AN67*'Prevalence Rates'!AN67","v":0},{"$f":"'Population 2016'!AO67*'Prevalence Rates'!AO67","v":0},{"$f":"'Population 2016'!AP67*'Prevalence Rates'!AP67","v":29.572084888128675},{"$f":"'Population 2016'!AQ67*'Prevalence Rates'!AQ67","v":203.82943486129085},{"$f":"'Population 2016'!AR67*'Prevalence Rates'!AR67","v":3921.2232475419564},{"$f":"'Population 2016'!AS67*'Prevalence Rates'!AS67","v":20.844229900588793},{"$f":"'Population 2016'!AT67*'Prevalence Rates'!AT67","v":0},{"$f":"'Population 2016'!AU67*'Prevalence Rates'!AU67","v":0},{"$f":"'Population 2016'!AV67*'Prevalence Rates'!AV67","v":67.802538088024335},{"$f":"'Population 2016'!AW67*'Prevalence Rates'!AW67","v":249.21799574938723},{"$f":"'Population 2016'!AX67*'Prevalence Rates'!AX67","v":38.788447778555728},{"$f":"'Population 2016'!AY67*'Prevalence Rates'!AY67","v":445.78634819437701},{"$f":"'Population 2016'!AZ67*'Prevalence Rates'!AZ67","v":225.39815726904962},{"$f":"'Population 2016'!BA67*'Prevalence Rates'!BA67","v":119.31145628883029},{"$f":"'Population 2016'!BB67*'Prevalence Rates'!BB67","v":102.82780500019696},{"$f":"'Population 2016'!BC67*'Prevalence Rates'!BC67","v":0},65]
[null,"Female 40-44",{"$f":"'Population 2016'!C68*'Prevalence Rates'!C68","v":87.760215787882913},{"$f":"'Population 2016'!D68*'Prevalence Rates'!D68","v":93.421376789903462},{"$f":"'Population 2016'!E68*'Prevalence Rates'!E68","v":16.041861266678513},{"$f":"'Population 2016'!F68*'Prevalence Rates'!F68","v":23.778014089736356},{"$f":"'Population 2016'!G68*'Prevalence Rates'!G68","v":25.037605704614116},{"$f":"'Population 2016'!H68*'Prevalence Rates'!H68","v":406.94301741763184},{"$f":"'Population 2016'!I68*'Prevalence Rates'!I68","v":25.295341493943692},{"$f":"'Population 2016'!J68*'Prevalence Rates'!J68","v":104.72963492281723},{"$f":"'Population 2016'!K68*'Prevalence Rates'!K68","v":45.152196463745057},{"$f":"'Population 2016'!L68*'Prevalence Rates'!L68","v":37.161118791274113},{"$f":"'Population 2016'!M68*'Prevalence Rates'!M68","v":38.268560394536422},{"$f":"'Population 2016'!N68*'Prevalence Rates'!N68","v":157.03873465732326},{"$f":"'Population 2016'!O68*'Prevalence Rates'!O68","v":101.18841331684236},{"$f":"'Population 2016'!P68*'Prevalence Rates'!P68","v":18.512963926883749},{"$f":"'Population 2016'!Q68*'Prevalence Rates'!Q68","v":13.904102935943664},{"$f":"'Population 2016'!R68*'Prevalence Rates'!R68","v":21.142646302861554},{"$f":"'Population 2016'!S68*'Prevalence Rates'!S68","v":747.74561222260581},{"$f":"'Population 2016'!T68*'Prevalence Rates'!T68","v":320.85461307621375},{"$f":"'Population 2016'!U68*'Prevalence Rates'!U68","v":0},{"$f":"'Population 2016'!V68*'Prevalence Rates'!V68","v":92.916283669051609},{"$f":"'Population 2016'!W68*'Prevalence Rates'!W68","v":227.17223759933148},{"$f":"'Population 2016'!X68*'Prevalence Rates'!X68","v":235.44230815312383},{"$f":"'Population 2016'!Y68*'Prevalence Rates'!Y68","v":192.62563658692389},{"$f":"'Population 2016'!Z68*'Prevalence Rates'!Z68","v":1008.7129515405694},{"$f":"'Population 2016'!AA68*'Prevalence Rates'!AA68","v":1973.0590612799103},{"$f":"'Population 2016'!AB68*'Prevalence Rates'!AB68","v":93.376323942788645},{"$f":"'Population 2016'!AC68*'Prevalence Rates'!AC68","v":1344.6055281068764},{"$f":"'Population 2016'!AD68*'Prevalence Rates'!AD68","v":88.353858592244038},{"$f":"'Population 2016'!AE68*'Prevalence Rates'!AE68","v":46.147692404162605},{"$f":"'Population 2016'!AF68*'Prevalence Rates'!AF68","v":116.45377957044025},{"$f":"'Population 2016'!AG68*'Prevalence Rates'!AG68","v":59.629468701993602},{"$f":"'Population 2016'!AH68*'Prevalence Rates'!AH68","v":618.53728435116216},{"$f":"'Population 2016'!AI68*'Prevalence Rates'!AI68","v":483.51182741565577},{"$f":"'Population 2016'!AJ68*'Prevalence Rates'!AJ68","v":37.252502205735858},{"$f":"'Population 2016'!AK68*'Prevalence Rates'!AK68","v":2.3793513583622863},{"$f":"'Population 2016'!AL68*'Prevalence Rates'!AL68","v":238.43090887306289},{"$f":"'Population 2016'!AM68*'Prevalence Rates'!AM68","v":365.02228372248186},{"$f":"'Population 2016'!AN68*'Prevalence Rates'!AN68","v":0},{"$f":"'Population 2016'!AO68*'Prevalence Rates'!AO68","v":0},{"$f":"'Population 2016'!AP68*'Prevalence Rates'!AP68","v":24.277083202078607},{"$f":"'Population 2016'!AQ68*'Prevalence Rates'!AQ68","v":184.12798796588342},{"$f":"'Population 2016'!AR68*'Prevalence Rates'!AR68","v":3767.3422621726377},{"$f":"'Population 2016'!AS68*'Prevalence Rates'!AS68","v":25.295341493943692},{"$f":"'Population 2016'!AT68*'Prevalence Rates'!AT68","v":0},{"$f":"'Population 2016'!AU68*'Prevalence Rates'!AU68","v":0},{"$f":"'Population 2016'!AV68*'Prevalence Rates'!AV68","v":73.352212024054793},{"$f":"'Population 2016'!AW68*'Prevalence Rates'!AW68","v":252.46709564568536},{"$f":"'Population 2016'!AX68*'Prevalence Rates'!AX68","v":40.441364587301003},{"$f":"'Population 2016'!AY68*'Prevalence Rates'!AY68","v":412.9245199817156},{"$f":"'Population 2016'!AZ68*'Prevalence Rates'!AZ68","v":186.98347345668498},{"$f":"'Population 2016'!BA68*'Prevalence Rates'!BA68","v":118.8811174023061},{"$f":"'Population 2016'!BB68*'Prevalence Rates'!BB68","v":109.23418355881536},{"$f":"'Population 2016'!BC68*'Prevalence Rates'!BC68","v":0},66]
[null,"Female 45-49",{"$f":"'Population 2016'!C69*'Prevalence Rates'!C69","v":77.406164668614082},{"$f":"'Population 2016'!D69*'Prevalence Rates'!D69","v":87.379932664366706},{"$f":"'Population 2016'!E69*'Prevalence Rates'!E69","v":18.36937699873415},{"$f":"'Population 2016'!F69*'Prevalence Rates'!F69","v":27.82286604527518},{"$f":"'Population 2016'!G69*'Prevalence Rates'!G69","v":28.237109852509846},{"$f":"'Population 2016'!H69*'Prevalence Rates'!H69","v":476.10673315019869},{"$f":"'Population 2016'!I69*'Prevalence Rates'!I69","v":24.188189624973489},{"$f":"'Population 2016'!J69*'Prevalence Rates'!J69","v":130.41663738260917},{"$f":"'Population 2016'!K69*'Prevalence Rates'!K69","v":51.394820400087063},{"$f":"'Population 2016'!L69*'Prevalence Rates'!L69","v":45.767192863501577},{"$f":"'Population 2016'!M69*'Prevalence Rates'!M69","v":47.131104798614594},{"$f":"'Population 2016'!N69*'Prevalence Rates'!N69","v":175.19628086325969},{"$f":"'Population 2016'!O69*'Prevalence Rates'!O69","v":123.09828342016371},{"$f":"'Population 2016'!P69*'Prevalence Rates'!P69","v":21.784049940577393},{"$f":"'Population 2016'!Q69*'Prevalence Rates'!Q69","v":19.6979677219202},{"$f":"'Population 2016'!R69*'Prevalence Rates'!R69","v":25.397517940199236},{"$f":"'Population 2016'!S69*'Prevalence Rates'!S69","v":822.02524538968794},{"$f":"'Population 2016'!T69*'Prevalence Rates'!T69","v":335.67516923093058},{"$f":"'Population 2016'!U69*'Prevalence Rates'!U69","v":0},{"$f":"'Population 2016'!V69*'Prevalence Rates'!V69","v":90.8524272109169},{"$f":"'Population 2016'!W69*'Prevalence Rates'!W69","v":270.50532477590883},{"$f":"'Population 2016'!X69*'Prevalence Rates'!X69","v":280.35291066366551},{"$f":"'Population 2016'!Y69*'Prevalence Rates'!Y69","v":213.81283502684224},{"$f":"'Population 2016'!Z69*'Prevalence Rates'!Z69","v":1162.0770929408566},{"$f":"'Population 2016'!AA69*'Prevalence Rates'!AA69","v":2302.2765809410434},{"$f":"'Population 2016'!AB69*'Prevalence Rates'!AB69","v":87.478662818045095},{"$f":"'Population 2016'!AC69*'Prevalence Rates'!AC69","v":1589.6356400083487},{"$f":"'Population 2016'!AD69*'Prevalence Rates'!AD69","v":100.30672077314166},{"$f":"'Population 2016'!AE69*'Prevalence Rates'!AE69","v":52.52752784274076},{"$f":"'Population 2016'!AF69*'Prevalence Rates'!AF69","v":153.65864331463845},{"$f":"'Population 2016'!AG69*'Prevalence Rates'!AG69","v":67.873135455182108},{"$f":"'Population 2016'!AH69*'Prevalence Rates'!AH69","v":699.75050183098972},{"$f":"'Population 2016'!AI69*'Prevalence Rates'!AI69","v":507.96580993995593},{"$f":"'Population 2016'!AJ69*'Prevalence Rates'!AJ69","v":40.168404766268644},{"$f":"'Population 2016'!AK69*'Prevalence Rates'!AK69","v":2.3353472190729514},{"$f":"'Population 2016'!AL69*'Prevalence Rates'!AL69","v":270.32839076641648},{"$f":"'Population 2016'!AM69*'Prevalence Rates'!AM69","v":411.93467464177979},{"$f":"'Population 2016'!AN69*'Prevalence Rates'!AN69","v":0},{"$f":"'Population 2016'!AO69*'Prevalence Rates'!AO69","v":0},{"$f":"'Population 2016'!AP69*'Prevalence Rates'!AP69","v":23.435866512737228},{"$f":"'Population 2016'!AQ69*'Prevalence Rates'!AQ69","v":228.27489530571791},{"$f":"'Population 2016'!AR69*'Prevalence Rates'!AR69","v":4305.5433968415255},{"$f":"'Population 2016'!AS69*'Prevalence Rates'!AS69","v":24.188189624973489},{"$f":"'Population 2016'!AT69*'Prevalence Rates'!AT69","v":0},{"$f":"'Population 2016'!AU69*'Prevalence Rates'!AU69","v":0},{"$f":"'Population 2016'!AV69*'Prevalence Rates'!AV69","v":86.915769054187507},{"$f":"'Population 2016'!AW69*'Prevalence Rates'!AW69","v":286.77471981940056},{"$f":"'Population 2016'!AX69*'Prevalence Rates'!AX69","v":55.159814211235741},{"$f":"'Population 2016'!AY69*'Prevalence Rates'!AY69","v":475.17165279857062},{"$f":"'Population 2016'!AZ69*'Prevalence Rates'!AZ69","v":206.43069180123271},{"$f":"'Population 2016'!BA69*'Prevalence Rates'!BA69","v":145.19316764213073},{"$f":"'Population 2016'!BB69*'Prevalence Rates'!BB69","v":110.73094733209753},{"$f":"'Population 2016'!BC69*'Prevalence Rates'!BC69","v":0},67]
[null,"Female 50-54",{"$f":"'Population 2016'!C70*'Prevalence Rates'!C70","v":81.706507150203748},{"$f":"'Population 2016'!D70*'Prevalence Rates'!D70","v":89.813297877804757},{"$f":"'Population 2016'!E70*'Prevalence Rates'!E70","v":17.338442575335808},{"$f":"'Population 2016'!F70*'Prevalence Rates'!F70","v":25.534801403393999},{"$f":"'Population 2016'!G70*'Prevalence Rates'!G70","v":27.528228433618384},{"$f":"'Population 2016'!H70*'Prevalence Rates'!H70","v":484.90542021046929},{"$f":"'Population 2016'!I70*'Prevalence Rates'!I70","v":23.442298314952282},{"$f":"'Population 2016'!J70*'Prevalence Rates'!J70","v":120.19048557154919},{"$f":"'Population 2016'!K70*'Prevalence Rates'!K70","v":49.761510429745314},{"$f":"'Population 2016'!L70*'Prevalence Rates'!L70","v":47.266118393965606},{"$f":"'Population 2016'!M70*'Prevalence Rates'!M70","v":48.674699933940396},{"$f":"'Population 2016'!N70*'Prevalence Rates'!N70","v":198.49196119662574},{"$f":"'Population 2016'!O70*'Prevalence Rates'!O70","v":126.24224743678872},{"$f":"'Population 2016'!P70*'Prevalence Rates'!P70","v":21.887291883423732},{"$f":"'Population 2016'!Q70*'Prevalence Rates'!Q70","v":16.093110883921732},{"$f":"'Population 2016'!R70*'Prevalence Rates'!R70","v":26.636421254355298},{"$f":"'Population 2016'!S70*'Prevalence Rates'!S70","v":790.56650799280987},{"$f":"'Population 2016'!T70*'Prevalence Rates'!T70","v":301.66085410061731},{"$f":"'Population 2016'!U70*'Prevalence Rates'!U70","v":0},{"$f":"'Population 2016'!V70*'Prevalence Rates'!V70","v":96.72501756295334},{"$f":"'Population 2016'!W70*'Prevalence Rates'!W70","v":271.0933798297695},{"$f":"'Population 2016'!X70*'Prevalence Rates'!X70","v":280.96237351293433},{"$f":"'Population 2016'!Y70*'Prevalence Rates'!Y70","v":210.6738549530433},{"$f":"'Population 2016'!Z70*'Prevalence Rates'!Z70","v":1219.0460197491407},{"$f":"'Population 2016'!AA70*'Prevalence Rates'!AA70","v":2356.6072817054455},{"$f":"'Population 2016'!AB70*'Prevalence Rates'!AB70","v":89.724447560317643},{"$f":"'Population 2016'!AC70*'Prevalence Rates'!AC70","v":1637.74735368697},{"$f":"'Population 2016'!AD70*'Prevalence Rates'!AD70","v":93.926788003118517},{"$f":"'Population 2016'!AE70*'Prevalence Rates'!AE70","v":48.394214176426729},{"$f":"'Population 2016'!AF70*'Prevalence Rates'!AF70","v":151.37035376415986},{"$f":"'Population 2016'!AG70*'Prevalence Rates'!AG70","v":62.532298566905482},{"$f":"'Population 2016'!AH70*'Prevalence Rates'!AH70","v":704.98880876921305},{"$f":"'Population 2016'!AI70*'Prevalence Rates'!AI70","v":473.5094805414721},{"$f":"'Population 2016'!AJ70*'Prevalence Rates'!AJ70","v":40.81212920162551},{"$f":"'Population 2016'!AK70*'Prevalence Rates'!AK70","v":2.2519419612489173},{"$f":"'Population 2016'!AL70*'Prevalence Rates'!AL70","v":280.51984753423613},{"$f":"'Population 2016'!AM70*'Prevalence Rates'!AM70","v":417.93171558786997},{"$f":"'Population 2016'!AN70*'Prevalence Rates'!AN70","v":0},{"$f":"'Population 2016'!AO70*'Prevalence Rates'!AO70","v":0},{"$f":"'Population 2016'!AP70*'Prevalence Rates'!AP70","v":25.397026890372143},{"$f":"'Population 2016'!AQ70*'Prevalence Rates'!AQ70","v":218.66716129977667},{"$f":"'Population 2016'!AR70*'Prevalence Rates'!AR70","v":4361.2341512920866},{"$f":"'Population 2016'!AS70*'Prevalence Rates'!AS70","v":23.442298314952282},{"$f":"'Population 2016'!AT70*'Prevalence Rates'!AT70","v":0},{"$f":"'Population 2016'!AU70*'Prevalence Rates'!AU70","v":0},{"$f":"'Population 2016'!AV70*'Prevalence Rates'!AV70","v":82.416042590891692},{"$f":"'Population 2016'!AW70*'Prevalence Rates'!AW70","v":285.59360482838161},{"$f":"'Population 2016'!AX70*'Prevalence Rates'!AX70","v":48.454111307124734},{"$f":"'Population 2016'!AY70*'Prevalence Rates'!AY70","v":496.29039292295153},{"$f":"'Population 2016'!AZ70*'Prevalence Rates'!AZ70","v":226.6024580320381},{"$f":"'Population 2016'!BA70*'Prevalence Rates'!BA70","v":149.73375397566647},{"$f":"'Population 2016'!BB70*'Prevalence Rates'!BB70","v":110.62437279183564},{"$f":"'Population 2016'!BC70*'Prevalence Rates'!BC70","v":0},68]
[null,"Female 55-59",{"$f":"'Population 2016'!C71*'Prevalence Rates'!C71","v":86.874367073312683},{"$f":"'Population 2016'!D71*'Prevalence Rates'!D71","v":95.408691204825089},{"$f":"'Population 2016'!E71*'Prevalence Rates'!E71","v":18.362878650860008},{"$f":"'Population 2016'!F71*'Prevalence Rates'!F71","v":29.322899580573196},{"$f":"'Population 2016'!G71*'Prevalence Rates'!G71","v":32.466276977608153},{"$f":"'Population 2016'!H71*'Prevalence Rates'!H71","v":523.77888222558943},{"$f":"'Population 2016'!I71*'Prevalence Rates'!I71","v":25.604565045423609},{"$f":"'Population 2016'!J71*'Prevalence Rates'!J71","v":136.65114340294562},{"$f":"'Population 2016'!K71*'Prevalence Rates'!K71","v":56.220753375394622},{"$f":"'Population 2016'!L71*'Prevalence Rates'!L71","v":47.285208244054587},{"$f":"'Population 2016'!M71*'Prevalence Rates'!M71","v":48.694358682245479},{"$f":"'Population 2016'!N71*'Prevalence Rates'!N71","v":218.77258779402723},{"$f":"'Population 2016'!O71*'Prevalence Rates'!O71","v":125.96140529626297},{"$f":"'Population 2016'!P71*'Prevalence Rates'!P71","v":26.971016424868971},{"$f":"'Population 2016'!Q71*'Prevalence Rates'!Q71","v":21.734809682124794},{"$f":"'Population 2016'!R71*'Prevalence Rates'!R71","v":24.808246239855894},{"$f":"'Population 2016'!S71*'Prevalence Rates'!S71","v":903.3425776547831},{"$f":"'Population 2016'!T71*'Prevalence Rates'!T71","v":366.39896641596187},{"$f":"'Population 2016'!U71*'Prevalence Rates'!U71","v":0},{"$f":"'Population 2016'!V71*'Prevalence Rates'!V71","v":108.69100006922797},{"$f":"'Population 2016'!W71*'Prevalence Rates'!W71","v":295.41223130565885},{"$f":"'Population 2016'!X71*'Prevalence Rates'!X71","v":306.16653835113476},{"$f":"'Population 2016'!Y71*'Prevalence Rates'!Y71","v":238.183584424391},{"$f":"'Population 2016'!Z71*'Prevalence Rates'!Z71","v":1300.7752403107252},{"$f":"'Population 2016'!AA71*'Prevalence Rates'!AA71","v":2580.1002481756004},{"$f":"'Population 2016'!AB71*'Prevalence Rates'!AB71","v":95.277951998377674},{"$f":"'Population 2016'!AC71*'Prevalence Rates'!AC71","v":1775.1831349193235},{"$f":"'Population 2016'!AD71*'Prevalence Rates'!AD71","v":107.59003895270146},{"$f":"'Population 2016'!AE71*'Prevalence Rates'!AE71","v":54.753528545392463},{"$f":"'Population 2016'!AF71*'Prevalence Rates'!AF71","v":178.06953154449712},{"$f":"'Population 2016'!AG71*'Prevalence Rates'!AG71","v":70.749449140964856},{"$f":"'Population 2016'!AH71*'Prevalence Rates'!AH71","v":790.87194200744079},{"$f":"'Population 2016'!AI71*'Prevalence Rates'!AI71","v":561.93439996784446},{"$f":"'Population 2016'!AJ71*'Prevalence Rates'!AJ71","v":49.18095621502691},{"$f":"'Population 2016'!AK71*'Prevalence Rates'!AK71","v":2.3638861118816981},{"$f":"'Population 2016'!AL71*'Prevalence Rates'!AL71","v":307.8429110029557},{"$f":"'Population 2016'!AM71*'Prevalence Rates'!AM71","v":454.99241275833549},{"$f":"'Population 2016'!AN71*'Prevalence Rates'!AN71","v":0},{"$f":"'Population 2016'!AO71*'Prevalence Rates'!AO71","v":0},{"$f":"'Population 2016'!AP71*'Prevalence Rates'!AP71","v":28.154273141743367},{"$f":"'Population 2016'!AQ71*'Prevalence Rates'!AQ71","v":247.72624351864712},{"$f":"'Population 2016'!AR71*'Prevalence Rates'!AR71","v":4808.9602370472339},{"$f":"'Population 2016'!AS71*'Prevalence Rates'!AS71","v":25.604565045423609},{"$f":"'Population 2016'!AT71*'Prevalence Rates'!AT71","v":0},{"$f":"'Population 2016'!AU71*'Prevalence Rates'!AU71","v":0},{"$f":"'Population 2016'!AV71*'Prevalence Rates'!AV71","v":99.807666746377066},{"$f":"'Population 2016'!AW71*'Prevalence Rates'!AW71","v":336.20908562720149},{"$f":"'Population 2016'!AX71*'Prevalence Rates'!AX71","v":55.443575938974888},{"$f":"'Population 2016'!AY71*'Prevalence Rates'!AY71","v":545.08355479496197},{"$f":"'Population 2016'!AZ71*'Prevalence Rates'!AZ71","v":251.12568054355063},{"$f":"'Population 2016'!BA71*'Prevalence Rates'!BA71","v":160.43970049430786},{"$f":"'Population 2016'!BB71*'Prevalence Rates'!BB71","v":122.26676815451103},{"$f":"'Population 2016'!BC71*'Prevalence Rates'!BC71","v":0},69]
[null,"Female 60-64",{"$f":"'Population 2016'!C72*'Prevalence Rates'!C72","v":70.65567747182547},{"$f":"'Population 2016'!D72*'Prevalence Rates'!D72","v":77.008443615323102},{"$f":"'Population 2016'!E72*'Prevalence Rates'!E72","v":14.436225354449691},{"$f":"'Population 2016'!F72*'Prevalence Rates'!F72","v":23.57110004746076},{"$f":"'Population 2016'!G72*'Prevalence Rates'!G72","v":29.11773719964857},{"$f":"'Population 2016'!H72*'Prevalence Rates'!H72","v":474.25212873121984},{"$f":"'Population 2016'!I72*'Prevalence Rates'!I72","v":24.422815889480979},{"$f":"'Population 2016'!J72*'Prevalence Rates'!J72","v":104.5749468676434},{"$f":"'Population 2016'!K72*'Prevalence Rates'!K72","v":45.352302245545069},{"$f":"'Population 2016'!L72*'Prevalence Rates'!L72","v":42.482804281767791},{"$f":"'Population 2016'!M72*'Prevalence Rates'!M72","v":43.74883787857992},{"$f":"'Population 2016'!N72*'Prevalence Rates'!N72","v":174.33645402400015},{"$f":"'Population 2016'!O72*'Prevalence Rates'!O72","v":114.33878351419455},{"$f":"'Population 2016'!P72*'Prevalence Rates'!P72","v":20.737149421007746},{"$f":"'Population 2016'!Q72*'Prevalence Rates'!Q72","v":15.388879847927775},{"$f":"'Population 2016'!R72*'Prevalence Rates'!R72","v":21.882145401308787},{"$f":"'Population 2016'!S72*'Prevalence Rates'!S72","v":731.4965792419938},{"$f":"'Population 2016'!T72*'Prevalence Rates'!T72","v":274.04440386807039},{"$f":"'Population 2016'!U72*'Prevalence Rates'!U72","v":0},{"$f":"'Population 2016'!V72*'Prevalence Rates'!V72","v":92.089372121317169},{"$f":"'Population 2016'!W72*'Prevalence Rates'!W72","v":251.93373446590533},{"$f":"'Population 2016'!X72*'Prevalence Rates'!X72","v":261.10523262488437},{"$f":"'Population 2016'!Y72*'Prevalence Rates'!Y72","v":191.61802419651195},{"$f":"'Population 2016'!Z72*'Prevalence Rates'!Z72","v":1001.1869721459803},{"$f":"'Population 2016'!AA72*'Prevalence Rates'!AA72","v":2081.9248991125842},{"$f":"'Population 2016'!AB72*'Prevalence Rates'!AB72","v":79.332402632120832},{"$f":"'Population 2016'!AC72*'Prevalence Rates'!AC72","v":1389.3781838566038},{"$f":"'Population 2016'!AD72*'Prevalence Rates'!AD72","v":99.145895164803377},{"$f":"'Population 2016'!AE72*'Prevalence Rates'!AE72","v":51.03962641537553},{"$f":"'Population 2016'!AF72*'Prevalence Rates'!AF72","v":146.91088825761361},{"$f":"'Population 2016'!AG72*'Prevalence Rates'!AG72","v":65.950552396907156},{"$f":"'Population 2016'!AH72*'Prevalence Rates'!AH72","v":683.96100953066548},{"$f":"'Population 2016'!AI72*'Prevalence Rates'!AI72","v":433.24962601415035},{"$f":"'Population 2016'!AJ72*'Prevalence Rates'!AJ72","v":36.806393038342719},{"$f":"'Population 2016'!AK72*'Prevalence Rates'!AK72","v":3.8027733104183841},{"$f":"'Population 2016'!AL72*'Prevalence Rates'!AL72","v":276.60337031474143},{"$f":"'Population 2016'!AM72*'Prevalence Rates'!AM72","v":390.01169853073787},{"$f":"'Population 2016'!AN72*'Prevalence Rates'!AN72","v":0},{"$f":"'Population 2016'!AO72*'Prevalence Rates'!AO72","v":0},{"$f":"'Population 2016'!AP72*'Prevalence Rates'!AP72","v":25.616763545277227},{"$f":"'Population 2016'!AQ72*'Prevalence Rates'!AQ72","v":188.67957688443843},{"$f":"'Population 2016'!AR72*'Prevalence Rates'!AR72","v":3954.0460044084612},{"$f":"'Population 2016'!AS72*'Prevalence Rates'!AS72","v":24.422815889480979},{"$f":"'Population 2016'!AT72*'Prevalence Rates'!AT72","v":0},{"$f":"'Population 2016'!AU72*'Prevalence Rates'!AU72","v":0},{"$f":"'Population 2016'!AV72*'Prevalence Rates'!AV72","v":91.928114108505184},{"$f":"'Population 2016'!AW72*'Prevalence Rates'!AW72","v":294.72874389397532},{"$f":"'Population 2016'!AX72*'Prevalence Rates'!AX72","v":40.116625859690963},{"$f":"'Population 2016'!AY72*'Prevalence Rates'!AY72","v":453.88142355648199},{"$f":"'Population 2016'!AZ72*'Prevalence Rates'!AZ72","v":203.3862472857341},{"$f":"'Population 2016'!BA72*'Prevalence Rates'!BA72","v":137.01784640754758},{"$f":"'Population 2016'!BB72*'Prevalence Rates'!BB72","v":102.5675036827853},{"$f":"'Population 2016'!BC72*'Prevalence Rates'!BC72","v":0},70]
[null,"Female 65-69",{"$f":"'Population 2016'!C73*'Prevalence Rates'!C73","v":34.473563786772218},{"$f":"'Population 2016'!D73*'Prevalence Rates'!D73","v":37.651374239101628},{"$f":"'Population 2016'!E73*'Prevalence Rates'!E73","v":7.1098613581478896},{"$f":"'Population 2016'!F73*'Prevalence Rates'!F73","v":11.097031072359975},{"$f":"'Population 2016'!G73*'Prevalence Rates'!G73","v":17.236209926821665},{"$f":"'Population 2016'!H73*'Prevalence Rates'!H73","v":238.62347653167356},{"$f":"'Population 2016'!I73*'Prevalence Rates'!I73","v":13.334346330422132},{"$f":"'Population 2016'!J73*'Prevalence Rates'!J73","v":58.899895815544596},{"$f":"'Population 2016'!K73*'Prevalence Rates'!K73","v":26.263778578423704},{"$f":"'Population 2016'!L73*'Prevalence Rates'!L73","v":19.308208332939429},{"$f":"'Population 2016'!M73*'Prevalence Rates'!M73","v":19.88361386129435},{"$f":"'Population 2016'!N73*'Prevalence Rates'!N73","v":91.524869978168525},{"$f":"'Population 2016'!O73*'Prevalence Rates'!O73","v":58.646585389006532},{"$f":"'Population 2016'!P73*'Prevalence Rates'!P73","v":9.840347102771954},{"$f":"'Population 2016'!Q73*'Prevalence Rates'!Q73","v":8.5146554115940489},{"$f":"'Population 2016'!R73*'Prevalence Rates'!R73","v":11.580816658364272},{"$f":"'Population 2016'!S73*'Prevalence Rates'!S73","v":383.80234973569191},{"$f":"'Population 2016'!T73*'Prevalence Rates'!T73","v":139.52320697544337},{"$f":"'Population 2016'!U73*'Prevalence Rates'!U73","v":0},{"$f":"'Population 2016'!V73*'Prevalence Rates'!V73","v":48.828591158447111},{"$f":"'Population 2016'!W73*'Prevalence Rates'!W73","v":133.32424547563446},{"$f":"'Population 2016'!X73*'Prevalence Rates'!X73","v":138.17783554573495},{"$f":"'Population 2016'!Y73*'Prevalence Rates'!Y73","v":104.7389554978309},{"$f":"'Population 2016'!Z73*'Prevalence Rates'!Z73","v":472.69268364255441},{"$f":"'Population 2016'!AA73*'Prevalence Rates'!AA73","v":1018.259655209643},{"$f":"'Population 2016'!AB73*'Prevalence Rates'!AB73","v":38.622549790096031},{"$f":"'Population 2016'!AC73*'Prevalence Rates'!AC73","v":671.06257634087342},{"$f":"'Population 2016'!AD73*'Prevalence Rates'!AD73","v":48.26138779510066},{"$f":"'Population 2016'!AE73*'Prevalence Rates'!AE73","v":22.612525216720321},{"$f":"'Population 2016'!AF73*'Prevalence Rates'!AF73","v":77.523645422104082},{"$f":"'Population 2016'!AG73*'Prevalence Rates'!AG73","v":29.2186411592238},{"$f":"'Population 2016'!AH73*'Prevalence Rates'!AH73","v":343.53884682323411},{"$f":"'Population 2016'!AI73*'Prevalence Rates'!AI73","v":225.13025759279478},{"$f":"'Population 2016'!AJ73*'Prevalence Rates'!AJ73","v":21.787500612020068},{"$f":"'Population 2016'!AK73*'Prevalence Rates'!AK73","v":1.7305347392072894},{"$f":"'Population 2016'!AL73*'Prevalence Rates'!AL73","v":142.56863293988334},{"$f":"'Population 2016'!AM73*'Prevalence Rates'!AM73","v":194.55542399345444},{"$f":"'Population 2016'!AN73*'Prevalence Rates'!AN73","v":0},{"$f":"'Population 2016'!AO73*'Prevalence Rates'!AO73","v":0},{"$f":"'Population 2016'!AP73*'Prevalence Rates'!AP73","v":11.571546823714167},{"$f":"'Population 2016'!AQ73*'Prevalence Rates'!AQ73","v":95.651458123531626},{"$f":"'Population 2016'!AR73*'Prevalence Rates'!AR73","v":1977.2555637667638},{"$f":"'Population 2016'!AS73*'Prevalence Rates'!AS73","v":13.334346330422132},{"$f":"'Population 2016'!AT73*'Prevalence Rates'!AT73","v":0},{"$f":"'Population 2016'!AU73*'Prevalence Rates'!AU73","v":0},{"$f":"'Population 2016'!AV73*'Prevalence Rates'!AV73","v":41.460371720685984},{"$f":"'Population 2016'!AW73*'Prevalence Rates'!AW73","v":149.56546975718402},{"$f":"'Population 2016'!AX73*'Prevalence Rates'!AX73","v":21.879839252284199},{"$f":"'Population 2016'!AY73*'Prevalence Rates'!AY73","v":236.14544130173584},{"$f":"'Population 2016'!AZ73*'Prevalence Rates'!AZ73","v":103.65563474410243},{"$f":"'Population 2016'!BA73*'Prevalence Rates'!BA73","v":65.659716552586474},{"$f":"'Population 2016'!BB73*'Prevalence Rates'!BB73","v":52.793899432309459},{"$f":"'Population 2016'!BC73*'Prevalence Rates'!BC73","v":0},71]
[null,"Female 70-74",{"$f":"'Population 2016'!C74*'Prevalence Rates'!C74","v":24.249786291185359},{"$f":"'Population 2016'!D74*'Prevalence Rates'!D74","v":26.320103515714855},{"$f":"'Population 2016'!E74*'Prevalence Rates'!E74","v":4.8614436636908644},{"$f":"'Population 2016'!F74*'Prevalence Rates'!F74","v":9.5541283564168769},{"$f":"'Population 2016'!G74*'Prevalence Rates'!G74","v":12.71649265712176},{"$f":"'Population 2016'!H74*'Prevalence Rates'!H74","v":186.78555482939737},{"$f":"'Population 2016'!I74*'Prevalence Rates'!I74","v":10.294391726595325},{"$f":"'Population 2016'!J74*'Prevalence Rates'!J74","v":45.466586243578284},{"$f":"'Population 2016'!K74*'Prevalence Rates'!K74","v":19.69783393381778},{"$f":"'Population 2016'!L74*'Prevalence Rates'!L74","v":20.150512723302558},{"$f":"'Population 2016'!M74*'Prevalence Rates'!M74","v":20.751019835109204},{"$f":"'Population 2016'!N74*'Prevalence Rates'!N74","v":66.07447282523394},{"$f":"'Population 2016'!O74*'Prevalence Rates'!O74","v":45.317815982414139},{"$f":"'Population 2016'!P74*'Prevalence Rates'!P74","v":6.8279959488621724},{"$f":"'Population 2016'!Q74*'Prevalence Rates'!Q74","v":7.2625002040066891},{"$f":"'Population 2016'!R74*'Prevalence Rates'!R74","v":8.3007009574402879},{"$f":"'Population 2016'!S74*'Prevalence Rates'!S74","v":295.88183589886575},{"$f":"'Population 2016'!T74*'Prevalence Rates'!T74","v":101.48841445099229},{"$f":"'Population 2016'!U74*'Prevalence Rates'!U74","v":0},{"$f":"'Population 2016'!V74*'Prevalence Rates'!V74","v":35.314867917347833},{"$f":"'Population 2016'!W74*'Prevalence Rates'!W74","v":105.68075320590091},{"$f":"'Population 2016'!X74*'Prevalence Rates'!X74","v":109.52799833772984},{"$f":"'Population 2016'!Y74*'Prevalence Rates'!Y74","v":78.358516033877976},{"$f":"'Population 2016'!Z74*'Prevalence Rates'!Z74","v":389.29330295104143},{"$f":"'Population 2016'!AA74*'Prevalence Rates'!AA74","v":810.98276340371865},{"$f":"'Population 2016'!AB74*'Prevalence Rates'!AB74","v":26.418656140083641},{"$f":"'Population 2016'!AC74*'Prevalence Rates'!AC74","v":535.63950116691979},{"$f":"'Population 2016'!AD74*'Prevalence Rates'!AD74","v":37.000397309577174},{"$f":"'Population 2016'!AE74*'Prevalence Rates'!AE74","v":17.699186404198375},{"$f":"'Population 2016'!AF74*'Prevalence Rates'!AF74","v":58.458021619730161},{"$f":"'Population 2016'!AG74*'Prevalence Rates'!AG74","v":22.869899376478877},{"$f":"'Population 2016'!AH74*'Prevalence Rates'!AH74","v":272.3544843300985},{"$f":"'Population 2016'!AI74*'Prevalence Rates'!AI74","v":169.62104140770109},{"$f":"'Population 2016'!AJ74*'Prevalence Rates'!AJ74","v":16.528448740153156},{"$f":"'Population 2016'!AK74*'Prevalence Rates'!AK74","v":0.7571089484031891},{"$f":"'Population 2016'!AL74*'Prevalence Rates'!AL74","v":111.09780492708174},{"$f":"'Population 2016'!AM74*'Prevalence Rates'!AM74","v":159.49254089608138},{"$f":"'Population 2016'!AN74*'Prevalence Rates'!AN74","v":0},{"$f":"'Population 2016'!AO74*'Prevalence Rates'!AO74","v":0},{"$f":"'Population 2016'!AP74*'Prevalence Rates'!AP74","v":9.6005690680265889},{"$f":"'Population 2016'!AQ74*'Prevalence Rates'!AQ74","v":75.701071556958254},{"$f":"'Population 2016'!AR74*'Prevalence Rates'!AR74","v":1551.6349582963301},{"$f":"'Population 2016'!AS74*'Prevalence Rates'!AS74","v":10.294391726595325},{"$f":"'Population 2016'!AT74*'Prevalence Rates'!AT74","v":0},{"$f":"'Population 2016'!AU74*'Prevalence Rates'!AU74","v":0},{"$f":"'Population 2016'!AV74*'Prevalence Rates'!AV74","v":33.782525105744135},{"$f":"'Population 2016'!AW74*'Prevalence Rates'!AW74","v":112.57616003228904},{"$f":"'Population 2016'!AX74*'Prevalence Rates'!AX74","v":17.46179478788066},{"$f":"'Population 2016'!AY74*'Prevalence Rates'!AY74","v":182.55523967791018},{"$f":"'Population 2016'!AZ74*'Prevalence Rates'!AZ74","v":77.619490639746516},{"$f":"'Population 2016'!BA74*'Prevalence Rates'!BA74","v":46.762863822123627},{"$f":"'Population 2016'!BB74*'Prevalence Rates'!BB74","v":41.668483452464137},{"$f":"'Population 2016'!BC74*'Prevalence Rates'!BC74","v":0},72]
[null,"Female 75-79",{"$f":"'Population 2016'!C75*'Prevalence Rates'!C75","v":6.7337129530221578},{"$f":"'Population 2016'!D75*'Prevalence Rates'!D75","v":6.9855448413086618},{"$f":"'Population 2016'!E75*'Prevalence Rates'!E75","v":1.076195909244213},{"$f":"'Population 2016'!F75*'Prevalence Rates'!F75","v":3.2306922533873594},{"$f":"'Population 2016'!G75*'Prevalence Rates'!G75","v":3.6177958447486405},{"$f":"'Population 2016'!H75*'Prevalence Rates'!H75","v":52.850377519246933},{"$f":"'Population 2016'!I75*'Prevalence Rates'!I75","v":2.3565142364063623},{"$f":"'Population 2016'!J75*'Prevalence Rates'!J75","v":11.635309703539463},{"$f":"'Population 2016'!K75*'Prevalence Rates'!K75","v":4.9319217633533592},{"$f":"'Population 2016'!L75*'Prevalence Rates'!L75","v":4.0161490566289233},{"$f":"'Population 2016'!M75*'Prevalence Rates'!M75","v":4.1358346499286034},{"$f":"'Population 2016'!N75*'Prevalence Rates'!N75","v":18.978088401509925},{"$f":"'Population 2016'!O75*'Prevalence Rates'!O75","v":12.668249822746059},{"$f":"'Population 2016'!P75*'Prevalence Rates'!P75","v":1.8880515204204764},{"$f":"'Population 2016'!Q75*'Prevalence Rates'!Q75","v":2.0532908654869706},{"$f":"'Population 2016'!R75*'Prevalence Rates'!R75","v":2.3929955316957199},{"$f":"'Population 2016'!S75*'Prevalence Rates'!S75","v":79.839544924998691},{"$f":"'Population 2016'!T75*'Prevalence Rates'!T75","v":29.483838327652084},{"$f":"'Population 2016'!U75*'Prevalence Rates'!U75","v":0},{"$f":"'Population 2016'!V75*'Prevalence Rates'!V75","v":12.438913980933702},{"$f":"'Population 2016'!W75*'Prevalence Rates'!W75","v":28.448449983669946},{"$f":"'Population 2016'!X75*'Prevalence Rates'!X75","v":29.48409893002551},{"$f":"'Population 2016'!Y75*'Prevalence Rates'!Y75","v":23.619040957118361},{"$f":"'Population 2016'!Z75*'Prevalence Rates'!Z75","v":121.02439947835521},{"$f":"'Population 2016'!AA75*'Prevalence Rates'!AA75","v":241.56815290576799},{"$f":"'Population 2016'!AB75*'Prevalence Rates'!AB75","v":6.981462807770547},{"$f":"'Population 2016'!AC75*'Prevalence Rates'!AC75","v":165.98345053996565},{"$f":"'Population 2016'!AD75*'Prevalence Rates'!AD75","v":10.275545142376346},{"$f":"'Population 2016'!AE75*'Prevalence Rates'!AE75","v":4.8524628776788905},{"$f":"'Population 2016'!AF75*'Prevalence Rates'!AF75","v":18.271749804275888},{"$f":"'Population 2016'!AG75*'Prevalence Rates'!AG75","v":6.2700813023976742},{"$f":"'Population 2016'!AH75*'Prevalence Rates'!AH75","v":74.283883484947395},{"$f":"'Population 2016'!AI75*'Prevalence Rates'!AI75","v":46.385764051904019},{"$f":"'Population 2016'!AJ75*'Prevalence Rates'!AJ75","v":3.5590375001774159},{"$f":"'Population 2016'!AK75*'Prevalence Rates'!AK75","v":0.17735876266033396},{"$f":"'Population 2016'!AL75*'Prevalence Rates'!AL75","v":31.613774900722596},{"$f":"'Population 2016'!AM75*'Prevalence Rates'!AM75","v":43.248654574769098},{"$f":"'Population 2016'!AN75*'Prevalence Rates'!AN75","v":0},{"$f":"'Population 2016'!AO75*'Prevalence Rates'!AO75","v":0},{"$f":"'Population 2016'!AP75*'Prevalence Rates'!AP75","v":1.980915458322539},{"$f":"'Population 2016'!AQ75*'Prevalence Rates'!AQ75","v":24.77528219050653},{"$f":"'Population 2016'!AR75*'Prevalence Rates'!AR75","v":447.02407517346393},{"$f":"'Population 2016'!AS75*'Prevalence Rates'!AS75","v":2.3565142364063623},{"$f":"'Population 2016'!AT75*'Prevalence Rates'!AT75","v":0},{"$f":"'Population 2016'!AU75*'Prevalence Rates'!AU75","v":0},{"$f":"'Population 2016'!AV75*'Prevalence Rates'!AV75","v":9.6188931694055135},{"$f":"'Population 2016'!AW75*'Prevalence Rates'!AW75","v":30.993210255386195},{"$f":"'Population 2016'!AX75*'Prevalence Rates'!AX75","v":4.5768314189355879},{"$f":"'Population 2016'!AY75*'Prevalence Rates'!AY75","v":50.317779760378812},{"$f":"'Population 2016'!AZ75*'Prevalence Rates'!AZ75","v":22.048652835794847},{"$f":"'Population 2016'!BA75*'Prevalence Rates'!BA75","v":13.248134079205514},{"$f":"'Population 2016'!BB75*'Prevalence Rates'!BB75","v":10.855459274092759},{"$f":"'Population 2016'!BC75*'Prevalence Rates'!BC75","v":0},73]
[null,"Female 80-84",{"$f":"'Population 2016'!C76*'Prevalence Rates'!C76","v":5.237332296795012},{"$f":"'Population 2016'!D76*'Prevalence Rates'!D76","v":5.6213643672483844},{"$f":"'Population 2016'!E76*'Prevalence Rates'!E76","v":0.99647769374464168},{"$f":"'Population 2016'!F76*'Prevalence Rates'!F76","v":1.8878141480636978},{"$f":"'Population 2016'!G76*'Prevalence Rates'!G76","v":2.9394591238582701},{"$f":"'Population 2016'!H76*'Prevalence Rates'!H76","v":38.621429725603527},{"$f":"'Population 2016'!I76*'Prevalence Rates'!I76","v":1.8580208402434779},{"$f":"'Population 2016'!J76*'Prevalence Rates'!J76","v":8.7829643635941093},{"$f":"'Population 2016'!K76*'Prevalence Rates'!K76","v":3.2416387176970436},{"$f":"'Population 2016'!L76*'Prevalence Rates'!L76","v":3.2086693521215204},{"$f":"'Population 2016'!M76*'Prevalence Rates'!M76","v":3.3042911753397832},{"$f":"'Population 2016'!N76*'Prevalence Rates'!N76","v":15.177946743043098},{"$f":"'Population 2016'!O76*'Prevalence Rates'!O76","v":9.5997562932852407},{"$f":"'Population 2016'!P76*'Prevalence Rates'!P76","v":1.2294288970179845},{"$f":"'Population 2016'!Q76*'Prevalence Rates'!Q76","v":1.1498428846727036},{"$f":"'Population 2016'!R76*'Prevalence Rates'!R76","v":2.063684219994474},{"$f":"'Population 2016'!S76*'Prevalence Rates'!S76","v":60.590909856403506},{"$f":"'Population 2016'!T76*'Prevalence Rates'!T76","v":23.354142209637097},{"$f":"'Population 2016'!U76*'Prevalence Rates'!U76","v":0},{"$f":"'Population 2016'!V76*'Prevalence Rates'!V76","v":8.8884365651160113},{"$f":"'Population 2016'!W76*'Prevalence Rates'!W76","v":20.549576325200416},{"$f":"'Population 2016'!X76*'Prevalence Rates'!X76","v":21.297671461542237},{"$f":"'Population 2016'!Y76*'Prevalence Rates'!Y76","v":17.303514788149755},{"$f":"'Population 2016'!Z76*'Prevalence Rates'!Z76","v":95.802110163804542},{"$f":"'Population 2016'!AA76*'Prevalence Rates'!AA76","v":189.34384454861907},{"$f":"'Population 2016'!AB76*'Prevalence Rates'!AB76","v":5.6624893782894663},{"$f":"'Population 2016'!AC76*'Prevalence Rates'!AC76","v":131.5826223757488},{"$f":"'Population 2016'!AD76*'Prevalence Rates'!AD76","v":7.9390519926428498},{"$f":"'Population 2016'!AE76*'Prevalence Rates'!AE76","v":3.6439249534267892},{"$f":"'Population 2016'!AF76*'Prevalence Rates'!AF76","v":14.549276142419416},{"$f":"'Population 2016'!AG76*'Prevalence Rates'!AG76","v":4.7084761478382537},{"$f":"'Population 2016'!AH76*'Prevalence Rates'!AH76","v":56.646972691895222},{"$f":"'Population 2016'!AI76*'Prevalence Rates'!AI76","v":36.522448488011911},{"$f":"'Population 2016'!AJ76*'Prevalence Rates'!AJ76","v":3.7233007694163733},{"$f":"'Population 2016'!AK76*'Prevalence Rates'!AK76","v":0.17735876266033396},{"$f":"'Population 2016'!AL76*'Prevalence Rates'!AL76","v":22.240710534270139},{"$f":"'Population 2016'!AM76*'Prevalence Rates'!AM76","v":32.562916840484512},{"$f":"'Population 2016'!AN76*'Prevalence Rates'!AN76","v":0},{"$f":"'Population 2016'!AO76*'Prevalence Rates'!AO76","v":0},{"$f":"'Population 2016'!AP76*'Prevalence Rates'!AP76","v":2.2728398416542817},{"$f":"'Population 2016'!AQ76*'Prevalence Rates'!AQ76","v":20.352971903892108},{"$f":"'Population 2016'!AR76*'Prevalence Rates'!AR76","v":345.13678204426287},{"$f":"'Population 2016'!AS76*'Prevalence Rates'!AS76","v":1.8580208402434779},{"$f":"'Population 2016'!AT76*'Prevalence Rates'!AT76","v":0},{"$f":"'Population 2016'!AU76*'Prevalence Rates'!AU76","v":0},{"$f":"'Population 2016'!AV76*'Prevalence Rates'!AV76","v":7.3274814458036763},{"$f":"'Population 2016'!AW76*'Prevalence Rates'!AW76","v":24.111411543898498},{"$f":"'Population 2016'!AX76*'Prevalence Rates'!AX76","v":3.9328551388843493},{"$f":"'Population 2016'!AY76*'Prevalence Rates'!AY76","v":38.02921853695161},{"$f":"'Population 2016'!AZ76*'Prevalence Rates'!AZ76","v":17.578789579083711},{"$f":"'Population 2016'!BA76*'Prevalence Rates'!BA76","v":10.05960011437978},{"$f":"'Population 2016'!BB76*'Prevalence Rates'!BB76","v":8.0679405043361641},{"$f":"'Population 2016'!BC76*'Prevalence Rates'!BC76","v":0},74]
[null,"Female 85-89",{"$f":"'Population 2016'!C77*'Prevalence Rates'!C77","v":4.0180591694988186},{"$f":"'Population 2016'!D77*'Prevalence Rates'!D77","v":4.2336635401870684},{"$f":"'Population 2016'!E77*'Prevalence Rates'!E77","v":0.69753438562124925},{"$f":"'Population 2016'!F77*'Prevalence Rates'!F77","v":1.1677200915857926},{"$f":"'Population 2016'!G77*'Prevalence Rates'!G77","v":2.1606280739471049},{"$f":"'Population 2016'!H77*'Prevalence Rates'!H77","v":23.722612636480157},{"$f":"'Population 2016'!I77*'Prevalence Rates'!I77","v":1.3368686533459171},{"$f":"'Population 2016'!J77*'Prevalence Rates'!J77","v":4.6597720900097359},{"$f":"'Population 2016'!K77*'Prevalence Rates'!K77","v":2.0376014796952844},{"$f":"'Population 2016'!L77*'Prevalence Rates'!L77","v":2.1461960567170437},{"$f":"'Population 2016'!M77*'Prevalence Rates'!M77","v":2.2101550245650206},{"$f":"'Population 2016'!N77*'Prevalence Rates'!N77","v":9.9979917442996271},{"$f":"'Population 2016'!O77*'Prevalence Rates'!O77","v":6.5312627638244232},{"$f":"'Population 2016'!P77*'Prevalence Rates'!P77","v":0.72448488574274095},{"$f":"'Population 2016'!Q77*'Prevalence Rates'!Q77","v":0.57492144233635178},{"$f":"'Population 2016'!R77*'Prevalence Rates'!R77","v":0.96597984765698786},{"$f":"'Population 2016'!S77*'Prevalence Rates'!S77","v":36.498077679999405},{"$f":"'Population 2016'!T77*'Prevalence Rates'!T77","v":15.60007662034814},{"$f":"'Population 2016'!U77*'Prevalence Rates'!U77","v":0},{"$f":"'Population 2016'!V77*'Prevalence Rates'!V77","v":5.3134730981547502},{"$f":"'Population 2016'!W77*'Prevalence Rates'!W77","v":12.609019956132101},{"$f":"'Population 2016'!X77*'Prevalence Rates'!X77","v":13.068043848106544},{"$f":"'Population 2016'!Y77*'Prevalence Rates'!Y77","v":9.8070365713252325},{"$f":"'Population 2016'!Z77*'Prevalence Rates'!Z77","v":55.839214617579337},{"$f":"'Population 2016'!AA77*'Prevalence Rates'!AA77","v":111.39844979049522},{"$f":"'Population 2016'!AB77*'Prevalence Rates'!AB77","v":4.2752931852145366},{"$f":"'Population 2016'!AC77*'Prevalence Rates'!AC77","v":78.029018607104362},{"$f":"'Population 2016'!AD77*'Prevalence Rates'!AD77","v":5.2257051090813693},{"$f":"'Population 2016'!AE77*'Prevalence Rates'!AE77","v":2.2339640417993381},{"$f":"'Population 2016'!AF77*'Prevalence Rates'!AF77","v":8.7830914505240951},{"$f":"'Population 2016'!AG77*'Prevalence Rates'!AG77","v":2.8866034675189294},{"$f":"'Population 2016'!AH77*'Prevalence Rates'!AH77","v":32.67469789028614},{"$f":"'Population 2016'!AI77*'Prevalence Rates'!AI77","v":21.417485224451429},{"$f":"'Population 2016'!AJ77*'Prevalence Rates'!AJ77","v":1.9711592308674919},{"$f":"'Population 2016'!AK77*'Prevalence Rates'!AK77","v":0.14188701012826715},{"$f":"'Population 2016'!AL77*'Prevalence Rates'!AL77","v":12.271670976887178},{"$f":"'Population 2016'!AM77*'Prevalence Rates'!AM77","v":19.656480523560536},{"$f":"'Population 2016'!AN77*'Prevalence Rates'!AN77","v":0},{"$f":"'Population 2016'!AO77*'Prevalence Rates'!AO77","v":0},{"$f":"'Population 2016'!AP77*'Prevalence Rates'!AP77","v":1.0842905666607581},{"$f":"'Population 2016'!AQ77*'Prevalence Rates'!AQ77","v":11.715243039978558},{"$f":"'Population 2016'!AR77*'Prevalence Rates'!AR77","v":207.16148619048235},{"$f":"'Population 2016'!AS77*'Prevalence Rates'!AS77","v":1.3368686533459171},{"$f":"'Population 2016'!AT77*'Prevalence Rates'!AT77","v":0},{"$f":"'Population 2016'!AU77*'Prevalence Rates'!AU77","v":0},{"$f":"'Population 2016'!AV77*'Prevalence Rates'!AV77","v":4.8598072819247751},{"$f":"'Population 2016'!AW77*'Prevalence Rates'!AW77","v":12.909651597462322},{"$f":"'Population 2016'!AX77*'Prevalence Rates'!AX77","v":1.7709347701409059},{"$f":"'Population 2016'!AY77*'Prevalence Rates'!AY77","v":23.658542288957015},{"$f":"'Population 2016'!AZ77*'Prevalence Rates'!AZ77","v":11.104503337300315},{"$f":"'Population 2016'!BA77*'Prevalence Rates'!BA77","v":7.3201554403745721},{"$f":"'Population 2016'!BB77*'Prevalence Rates'!BB77","v":3.5807151676548141},{"$f":"'Population 2016'!BC77*'Prevalence Rates'!BC77","v":0},75]
[null,"Female 90+",{"$f":"'Population 2016'!C78*'Prevalence Rates'!C78","v":1.9674634554097663},{"$f":"'Population 2016'!D78*'Prevalence Rates'!D78","v":2.0933114170924947},{"$f":"'Population 2016'!E78*'Prevalence Rates'!E78","v":0.35873196974807103},{"$f":"'Population 2016'!F78*'Prevalence Rates'!F78","v":0.72009405647790536},{"$f":"'Population 2016'!G78*'Prevalence Rates'!G78","v":1.381797024035939},{"$f":"'Population 2016'!H78*'Prevalence Rates'!H78","v":13.120198614917944},{"$f":"'Population 2016'!I78*'Prevalence Rates'!I78","v":0.54381097763223751},{"$f":"'Population 2016'!J78*'Prevalence Rates'!J78","v":2.8241042969755976},{"$f":"'Population 2016'!K78*'Prevalence Rates'!K78","v":1.2966554870788174},{"$f":"'Population 2016'!L78*'Prevalence Rates'!L78","v":0.84997863632358162},{"$f":"'Population 2016'!M78*'Prevalence Rates'!M78","v":0.87530892061981014},{"$f":"'Population 2016'!N78*'Prevalence Rates'!N78","v":5.4061539069855442},{"$f":"'Population 2016'!O78*'Prevalence Rates'!O78","v":3.4799116563158998},{"$f":"'Population 2016'!P78*'Prevalence Rates'!P78","v":0.10977043723374863},{"$f":"'Population 2016'!Q78*'Prevalence Rates'!Q78","v":0.16426326923895765},{"$f":"'Population 2016'!R78*'Prevalence Rates'!R78","v":0.57080627361549285},{"$f":"'Population 2016'!S78*'Prevalence Rates'!S78","v":20.863367437864827},{"$f":"'Population 2016'!T78*'Prevalence Rates'!T78","v":8.3057382399103066},{"$f":"'Population 2016'!U78*'Prevalence Rates'!U78","v":0},{"$f":"'Population 2016'!V78*'Prevalence Rates'!V78","v":2.5465493189313091},{"$f":"'Population 2016'!W78*'Prevalence Rates'!W78","v":7.33615706538595},{"$f":"'Population 2016'!X78*'Prevalence Rates'!X78","v":7.6032255116256255},{"$f":"'Population 2016'!Y78*'Prevalence Rates'!Y78","v":5.237265603534941},{"$f":"'Population 2016'!Z78*'Prevalence Rates'!Z78","v":30.096390251508861},{"$f":"'Population 2016'!AA78*'Prevalence Rates'!AA78","v":59.978623718693918},{"$f":"'Population 2016'!AB78*'Prevalence Rates'!AB78","v":2.0694238290134193},{"$f":"'Population 2016'!AC78*'Prevalence Rates'!AC78","v":41.621293682514711},{"$f":"'Population 2016'!AD78*'Prevalence Rates'!AD78","v":3.0399534528790659},{"$f":"'Population 2016'!AE78*'Prevalence Rates'!AE78","v":1.208537924252101},{"$f":"'Population 2016'!AF78*'Prevalence Rates'!AF78","v":4.4037106718694217},{"$f":"'Population 2016'!AG78*'Prevalence Rates'!AG78","v":1.5616051545594207},{"$f":"'Population 2016'!AH78*'Prevalence Rates'!AH78","v":18.008214178169066},{"$f":"'Population 2016'!AI78*'Prevalence Rates'!AI78","v":12.343234905670691},{"$f":"'Population 2016'!AJ78*'Prevalence Rates'!AJ78","v":1.0403340385133986},{"$f":"'Population 2016'!AK78*'Prevalence Rates'!AK78","v":3.5471752532066789E-2},{"$f":"'Population 2016'!AL78*'Prevalence Rates'!AL78","v":6.9620738213245135},{"$f":"'Population 2016'!AM78*'Prevalence Rates'!AM78","v":10.202021211333433},{"$f":"'Population 2016'!AN78*'Prevalence Rates'!AN78","v":0},{"$f":"'Population 2016'!AO78*'Prevalence Rates'!AO78","v":0},{"$f":"'Population 2016'!AP78*'Prevalence Rates'!AP78","v":0.56299702499693216},{"$f":"'Population 2016'!AQ78*'Prevalence Rates'!AQ78","v":5.4567688331908961},{"$f":"'Population 2016'!AR78*'Prevalence Rates'!AR78","v":112.70201498129184},{"$f":"'Population 2016'!AS78*'Prevalence Rates'!AS78","v":0.54381097763223751},{"$f":"'Population 2016'!AT78*'Prevalence Rates'!AT78","v":0},{"$f":"'Population 2016'!AU78*'Prevalence Rates'!AU78","v":0},{"$f":"'Population 2016'!AV78*'Prevalence Rates'!AV78","v":2.7194776499889932},{"$f":"'Population 2016'!AW78*'Prevalence Rates'!AW78","v":7.8362087517670123},{"$f":"'Population 2016'!AX78*'Prevalence Rates'!AX78","v":1.0119627257948034},{"$f":"'Population 2016'!AY78*'Prevalence Rates'!AY78","v":13.370444520506338},{"$f":"'Population 2016'!AZ78*'Prevalence Rates'!AZ78","v":6.0734016447689445},{"$f":"'Population 2016'!BA78*'Prevalence Rates'!BA78","v":4.7828009472386004},{"$f":"'Population 2016'!BB78*'Prevalence Rates'!BB78","v":2.7875187697565957},{"$f":"'Population 2016'!BC78*'Prevalence Rates'!BC78","v":0},76]
[null,"Male 0-4",{"$f":"'Population 2016'!C79*'Prevalence Rates'!C79","v":0},{"$f":"'Population 2016'!D79*'Prevalence Rates'!D79","v":0},{"$f":"'Population 2016'!E79*'Prevalence Rates'!E79","v":0},{"$f":"'Population 2016'!F79*'Prevalence Rates'!F79","v":0},{"$f":"'Population 2016'!G79*'Prevalence Rates'!G79","v":0},{"$f":"'Population 2016'!H79*'Prevalence Rates'!H79","v":0},{"$f":"'Population 2016'!I79*'Prevalence Rates'!I79","v":0},{"$f":"'Population 2016'!J79*'Prevalence Rates'!J79","v":0},{"$f":"'Population 2016'!K79*'Prevalence Rates'!K79","v":0},{"$f":"'Population 2016'!L79*'Prevalence Rates'!L79","v":0},{"$f":"'Population 2016'!M79*'Prevalence Rates'!M79","v":0},{"$f":"'Population 2016'!N79*'Prevalence Rates'!N79","v":0},{"$f":"'Population 2016'!O79*'Prevalence Rates'!O79","v":0},{"$f":"'Population 2016'!P79*'Prevalence Rates'!P79","v":0},{"$f":"'Population 2016'!Q79*'Prevalence Rates'!Q79","v":0},{"$f":"'Population 2016'!R79*'Prevalence Rates'!R79","v":0},{"$f":"'Population 2016'!S79*'Prevalence Rates'!S79","v":0},{"$f":"'Population 2016'!T79*'Prevalence Rates'!T79","v":0},{"$f":"'Population 2016'!U79*'Prevalence Rates'!U79","v":0},{"$f":"'Population 2016'!V79*'Prevalence Rates'!V79","v":0},{"$f":"'Population 2016'!W79*'Prevalence Rates'!W79","v":0},{"$f":"'Population 2016'!X79*'Prevalence Rates'!X79","v":0},{"$f":"'Population 2016'!Y79*'Prevalence Rates'!Y79","v":0},{"$f":"'Population 2016'!Z79*'Prevalence Rates'!Z79","v":0},{"$f":"'Population 2016'!AA79*'Prevalence Rates'!AA79","v":0},{"$f":"'Population 2016'!AB79*'Prevalence Rates'!AB79","v":0},{"$f":"'Population 2016'!AC79*'Prevalence Rates'!AC79","v":0},{"$f":"'Population 2016'!AD79*'Prevalence Rates'!AD79","v":0},{"$f":"'Population 2016'!AE79*'Prevalence Rates'!AE79","v":0},{"$f":"'Population 2016'!AF79*'Prevalence Rates'!AF79","v":0},{"$f":"'Population 2016'!AG79*'Prevalence Rates'!AG79","v":0},{"$f":"'Population 2016'!AH79*'Prevalence Rates'!AH79","v":0},{"$f":"'Population 2016'!AI79*'Prevalence Rates'!AI79","v":0},{"$f":"'Population 2016'!AJ79*'Prevalence Rates'!AJ79","v":0},{"$f":"'Population 2016'!AK79*'Prevalence Rates'!AK79","v":0},{"$f":"'Population 2016'!AL79*'Prevalence Rates'!AL79","v":0},{"$f":"'Population 2016'!AM79*'Prevalence Rates'!AM79","v":0},{"$f":"'Population 2016'!AN79*'Prevalence Rates'!AN79","v":0},{"$f":"'Population 2016'!AO79*'Prevalence Rates'!AO79","v":0},{"$f":"'Population 2016'!AP79*'Prevalence Rates'!AP79","v":0},{"$f":"'Population 2016'!AQ79*'Prevalence Rates'!AQ79","v":0},{"$f":"'Population 2016'!AR79*'Prevalence Rates'!AR79","v":0},{"$f":"'Population 2016'!AS79*'Prevalence Rates'!AS79","v":0},{"$f":"'Population 2016'!AT79*'Prevalence Rates'!AT79","v":0},{"$f":"'Population 2016'!AU79*'Prevalence Rates'!AU79","v":0},{"$f":"'Population 2016'!AV79*'Prevalence Rates'!AV79","v":0},{"$f":"'Population 2016'!AW79*'Prevalence Rates'!AW79","v":0},{"$f":"'Population 2016'!AX79*'Prevalence Rates'!AX79","v":0},{"$f":"'Population 2016'!AY79*'Prevalence Rates'!AY79","v":0},{"$f":"'Population 2016'!AZ79*'Prevalence Rates'!AZ79","v":0},{"$f":"'Population 2016'!BA79*'Prevalence Rates'!BA79","v":0},{"$f":"'Population 2016'!BB79*'Prevalence Rates'!BB79","v":0},{"$f":"'Population 2016'!BC79*'Prevalence Rates'!BC79","v":0},77]
[null,"Male 5-9",{"$f":"'Population 2016'!C80*'Prevalence Rates'!C80","v":0},{"$f":"'Population 2016'!D80*'Prevalence Rates'!D80","v":0},{"$f":"'Population 2016'!E80*'Prevalence Rates'!E80","v":0},{"$f":"'Population 2016'!F80*'Prevalence Rates'!F80","v":0},{"$f":"'Population 2016'!G80*'Prevalence Rates'!G80","v":0},{"$f":"'Population 2016'!H80*'Prevalence Rates'!H80","v":0},{"$f":"'Population 2016'!I80*'Prevalence Rates'!I80","v":0},{"$f":"'Population 2016'!J80*'Prevalence Rates'!J80","v":0},{"$f":"'Population 2016'!K80*'Prevalence Rates'!K80","v":0},{"$f":"'Population 2016'!L80*'Prevalence Rates'!L80","v":0},{"$f":"'Population 2016'!M80*'Prevalence Rates'!M80","v":0},{"$f":"'Population 2016'!N80*'Prevalence Rates'!N80","v":0},{"$f":"'Population 2016'!O80*'Prevalence Rates'!O80","v":0},{"$f":"'Population 2016'!P80*'Prevalence Rates'!P80","v":0},{"$f":"'Population 2016'!Q80*'Prevalence Rates'!Q80","v":0},{"$f":"'Population 2016'!R80*'Prevalence Rates'!R80","v":0},{"$f":"'Population 2016'!S80*'Prevalence Rates'!S80","v":0},{"$f":"'Population 2016'!T80*'Prevalence Rates'!T80","v":0},{"$f":"'Population 2016'!U80*'Prevalence Rates'!U80","v":0},{"$f":"'Population 2016'!V80*'Prevalence Rates'!V80","v":0},{"$f":"'Population 2016'!W80*'Prevalence Rates'!W80","v":0},{"$f":"'Population 2016'!X80*'Prevalence Rates'!X80","v":0},{"$f":"'Population 2016'!Y80*'Prevalence Rates'!Y80","v":0},{"$f":"'Population 2016'!Z80*'Prevalence Rates'!Z80","v":0},{"$f":"'Population 2016'!AA80*'Prevalence Rates'!AA80","v":0},{"$f":"'Population 2016'!AB80*'Prevalence Rates'!AB80","v":0},{"$f":"'Population 2016'!AC80*'Prevalence Rates'!AC80","v":0},{"$f":"'Population 2016'!AD80*'Prevalence Rates'!AD80","v":0},{"$f":"'Population 2016'!AE80*'Prevalence Rates'!AE80","v":0},{"$f":"'Population 2016'!AF80*'Prevalence Rates'!AF80","v":0},{"$f":"'Population 2016'!AG80*'Prevalence Rates'!AG80","v":0},{"$f":"'Population 2016'!AH80*'Prevalence Rates'!AH80","v":0},{"$f":"'Population 2016'!AI80*'Prevalence Rates'!AI80","v":0},{"$f":"'Population 2016'!AJ80*'Prevalence Rates'!AJ80","v":0},{"$f":"'Population 2016'!AK80*'Prevalence Rates'!AK80","v":0},{"$f":"'Population 2016'!AL80*'Prevalence Rates'!AL80","v":0},{"$f":"'Population 2016'!AM80*'Prevalence Rates'!AM80","v":0},{"$f":"'Population 2016'!AN80*'Prevalence Rates'!AN80","v":0},{"$f":"'Population 2016'!AO80*'Prevalence Rates'!AO80","v":0},{"$f":"'Population 2016'!AP80*'Prevalence Rates'!AP80","v":0},{"$f":"'Population 2016'!AQ80*'Prevalence Rates'!AQ80","v":0},{"$f":"'Population 2016'!AR80*'Prevalence Rates'!AR80","v":0},{"$f":"'Population 2016'!AS80*'Prevalence Rates'!AS80","v":0},{"$f":"'Population 2016'!AT80*'Prevalence Rates'!AT80","v":0},{"$f":"'Population 2016'!AU80*'Prevalence Rates'!AU80","v":0},{"$f":"'Population 2016'!AV80*'Prevalence Rates'!AV80","v":0},{"$f":"'Population 2016'!AW80*'Prevalence Rates'!AW80","v":0},{"$f":"'Population 2016'!AX80*'Prevalence Rates'!AX80","v":0},{"$f":"'Population 2016'!AY80*'Prevalence Rates'!AY80","v":0},{"$f":"'Population 2016'!AZ80*'Prevalence Rates'!AZ80","v":0},{"$f":"'Population 2016'!BA80*'Prevalence Rates'!BA80","v":0},{"$f":"'Population 2016'!BB80*'Prevalence Rates'!BB80","v":0},{"$f":"'Population 2016'!BC80*'Prevalence Rates'!BC80","v":0},78]
[null,"Male 10-15",{"$f":"'Population 2016'!C81*'Prevalence Rates'!C81","v":0},{"$f":"'Population 2016'!D81*'Prevalence Rates'!D81","v":0},{"$f":"'Population 2016'!E81*'Prevalence Rates'!E81","v":0},{"$f":"'Population 2016'!F81*'Prevalence Rates'!F81","v":0},{"$f":"'Population 2016'!G81*'Prevalence Rates'!G81","v":0},{"$f":"'Population 2016'!H81*'Prevalence Rates'!H81","v":0},{"$f":"'Population 2016'!I81*'Prevalence Rates'!I81","v":0},{"$f":"'Population 2016'!J81*'Prevalence Rates'!J81","v":0},{"$f":"'Population 2016'!K81*'Prevalence Rates'!K81","v":0},{"$f":"'Population 2016'!L81*'Prevalence Rates'!L81","v":0},{"$f":"'Population 2016'!M81*'Prevalence Rates'!M81","v":0},{"$f":"'Population 2016'!N81*'Prevalence Rates'!N81","v":0},{"$f":"'Population 2016'!O81*'Prevalence Rates'!O81","v":0},{"$f":"'Population 2016'!P81*'Prevalence Rates'!P81","v":0},{"$f":"'Population 2016'!Q81*'Prevalence Rates'!Q81","v":0},{"$f":"'Population 2016'!R81*'Prevalence Rates'!R81","v":0},{"$f":"'Population 2016'!S81*'Prevalence Rates'!S81","v":0},{"$f":"'Population 2016'!T81*'Prevalence Rates'!T81","v":0},{"$f":"'Population 2016'!U81*'Prevalence Rates'!U81","v":0},{"$f":"'Population 2016'!V81*'Prevalence Rates'!V81","v":0},{"$f":"'Population 2016'!W81*'Prevalence Rates'!W81","v":0},{"$f":"'Population 2016'!X81*'Prevalence Rates'!X81","v":0},{"$f":"'Population 2016'!Y81*'Prevalence Rates'!Y81","v":0},{"$f":"'Population 2016'!Z81*'Prevalence Rates'!Z81","v":0},{"$f":"'Population 2016'!AA81*'Prevalence Rates'!AA81","v":0},{"$f":"'Population 2016'!AB81*'Prevalence Rates'!AB81","v":0},{"$f":"'Population 2016'!AC81*'Prevalence Rates'!AC81","v":0},{"$f":"'Population 2016'!AD81*'Prevalence Rates'!AD81","v":0},{"$f":"'Population 2016'!AE81*'Prevalence Rates'!AE81","v":0},{"$f":"'Population 2016'!AF81*'Prevalence Rates'!AF81","v":0},{"$f":"'Population 2016'!AG81*'Prevalence Rates'!AG81","v":0},{"$f":"'Population 2016'!AH81*'Prevalence Rates'!AH81","v":0},{"$f":"'Population 2016'!AI81*'Prevalence Rates'!AI81","v":0},{"$f":"'Population 2016'!AJ81*'Prevalence Rates'!AJ81","v":0},{"$f":"'Population 2016'!AK81*'Prevalence Rates'!AK81","v":0},{"$f":"'Population 2016'!AL81*'Prevalence Rates'!AL81","v":0},{"$f":"'Population 2016'!AM81*'Prevalence Rates'!AM81","v":0},{"$f":"'Population 2016'!AN81*'Prevalence Rates'!AN81","v":0},{"$f":"'Population 2016'!AO81*'Prevalence Rates'!AO81","v":0},{"$f":"'Population 2016'!AP81*'Prevalence Rates'!AP81","v":0},{"$f":"'Population 2016'!AQ81*'Prevalence Rates'!AQ81","v":0},{"$f":"'Population 2016'!AR81*'Prevalence Rates'!AR81","v":0},{"$f":"'Population 2016'!AS81*'Prevalence Rates'!AS81","v":0},{"$f":"'Population 2016'!AT81*'Prevalence Rates'!AT81","v":0},{"$f":"'Population 2016'!AU81*'Prevalence Rates'!AU81","v":0},{"$f":"'Population 2016'!AV81*'Prevalence Rates'!AV81","v":0},{"$f":"'Population 2016'!AW81*'Prevalence Rates'!AW81","v":0},{"$f":"'Population 2016'!AX81*'Prevalence Rates'!AX81","v":0},{"$f":"'Population 2016'!AY81*'Prevalence Rates'!AY81","v":0},{"$f":"'Population 2016'!AZ81*'Prevalence Rates'!AZ81","v":0},{"$f":"'Population 2016'!BA81*'Prevalence Rates'!BA81","v":0},{"$f":"'Population 2016'!BB81*'Prevalence Rates'!BB81","v":0},{"$f":"'Population 2016'!BC81*'Prevalence Rates'!BC81","v":0},79]
[null,"Male 16-19",{"$f":"'Population 2016'!C82*'Prevalence Rates'!C82","v":70.433313312691538},{"$f":"'Population 2016'!D82*'Prevalence Rates'!D82","v":74.37926163528887},{"$f":"'Population 2016'!E82*'Prevalence Rates'!E82","v":12.246584878462169},{"$f":"'Population 2016'!F82*'Prevalence Rates'!F82","v":40.424883311022079},{"$f":"'Population 2016'!G82*'Prevalence Rates'!G82","v":30.255408919712952},{"$f":"'Population 2016'!H82*'Prevalence Rates'!H82","v":529.6390689083496},{"$f":"'Population 2016'!I82*'Prevalence Rates'!I82","v":34.194995124654135},{"$f":"'Population 2016'!J82*'Prevalence Rates'!J82","v":143.45970171665715},{"$f":"'Population 2016'!K82*'Prevalence Rates'!K82","v":74.025329762027852},{"$f":"'Population 2016'!L82*'Prevalence Rates'!L82","v":49.294797584780362},{"$f":"'Population 2016'!M82*'Prevalence Rates'!M82","v":52.400364178702198},{"$f":"'Population 2016'!N82*'Prevalence Rates'!N82","v":166.38183044315318},{"$f":"'Population 2016'!O82*'Prevalence Rates'!O82","v":169.96013711772747},{"$f":"'Population 2016'!P82*'Prevalence Rates'!P82","v":24.264176025165309},{"$f":"'Population 2016'!Q82*'Prevalence Rates'!Q82","v":17.07794800953225},{"$f":"'Population 2016'!R82*'Prevalence Rates'!R82","v":28.781139280278921},{"$f":"'Population 2016'!S82*'Prevalence Rates'!S82","v":870.44997413166277},{"$f":"'Population 2016'!T82*'Prevalence Rates'!T82","v":348.06977755521939},{"$f":"'Population 2016'!U82*'Prevalence Rates'!U82","v":0},{"$f":"'Population 2016'!V82*'Prevalence Rates'!V82","v":80.381481927690615},{"$f":"'Population 2016'!W82*'Prevalence Rates'!W82","v":285.65849354382482},{"$f":"'Population 2016'!X82*'Prevalence Rates'!X82","v":286.87053430755736},{"$f":"'Population 2016'!Y82*'Prevalence Rates'!Y82","v":262.97636602701823},{"$f":"'Population 2016'!Z82*'Prevalence Rates'!Z82","v":1161.3940115351409},{"$f":"'Population 2016'!AA82*'Prevalence Rates'!AA82","v":2170.6486317969684},{"$f":"'Population 2016'!AB82*'Prevalence Rates'!AB82","v":73.687267261087925},{"$f":"'Population 2016'!AC82*'Prevalence Rates'!AC82","v":1584.920585110387},{"$f":"'Population 2016'!AD82*'Prevalence Rates'!AD82","v":99.944833959501253},{"$f":"'Population 2016'!AE82*'Prevalence Rates'!AE82","v":64.539442774785343},{"$f":"'Population 2016'!AF82*'Prevalence Rates'!AF82","v":127.91140007474402},{"$f":"'Population 2016'!AG82*'Prevalence Rates'!AG82","v":70.05613428415586},{"$f":"'Population 2016'!AH82*'Prevalence Rates'!AH82","v":605.29662052459844},{"$f":"'Population 2016'!AI82*'Prevalence Rates'!AI82","v":525.38486856260022},{"$f":"'Population 2016'!AJ82*'Prevalence Rates'!AJ82","v":40.171991340604265},{"$f":"'Population 2016'!AK82*'Prevalence Rates'!AK82","v":2.9374663473274367},{"$f":"'Population 2016'!AL82*'Prevalence Rates'!AL82","v":301.95938925123517},{"$f":"'Population 2016'!AM82*'Prevalence Rates'!AM82","v":375.62395773625383},{"$f":"'Population 2016'!AN82*'Prevalence Rates'!AN82","v":0},{"$f":"'Population 2016'!AO82*'Prevalence Rates'!AO82","v":0},{"$f":"'Population 2016'!AP82*'Prevalence Rates'!AP82","v":25.535120642734185},{"$f":"'Population 2016'!AQ82*'Prevalence Rates'!AQ82","v":164.1386596327095},{"$f":"'Population 2016'!AR82*'Prevalence Rates'!AR82","v":4327.0021927299467},{"$f":"'Population 2016'!AS82*'Prevalence Rates'!AS82","v":34.194995124654135},{"$f":"'Population 2016'!AT82*'Prevalence Rates'!AT82","v":0},{"$f":"'Population 2016'!AU82*'Prevalence Rates'!AU82","v":0},{"$f":"'Population 2016'!AV82*'Prevalence Rates'!AV82","v":74.206804632061733},{"$f":"'Population 2016'!AW82*'Prevalence Rates'!AW82","v":215.69215664161837},{"$f":"'Population 2016'!AX82*'Prevalence Rates'!AX82","v":60.818681397126532},{"$f":"'Population 2016'!AY82*'Prevalence Rates'!AY82","v":491.55776712239646},{"$f":"'Population 2016'!AZ82*'Prevalence Rates'!AZ82","v":209.90116453789483},{"$f":"'Population 2016'!BA82*'Prevalence Rates'!BA82","v":135.9191746384661},{"$f":"'Population 2016'!BB82*'Prevalence Rates'!BB82","v":136.55047116910154},{"$f":"'Population 2016'!BC82*'Prevalence Rates'!BC82","v":0},80]
[null,"Male 20-24",{"$f":"'Population 2016'!C83*'Prevalence Rates'!C83","v":115.08467108917239},{"$f":"'Population 2016'!D83*'Prevalence Rates'!D83","v":135.35110271829393},{"$f":"'Population 2016'!E83*'Prevalence Rates'!E83","v":31.923681930373291},{"$f":"'Population 2016'!F83*'Prevalence Rates'!F83","v":57.030955708495874},{"$f":"'Population 2016'!G83*'Prevalence Rates'!G83","v":47.422803868538836},{"$f":"'Population 2016'!H83*'Prevalence Rates'!H83","v":742.38354715281992},{"$f":"'Population 2016'!I83*'Prevalence Rates'!I83","v":40.763525261593351},{"$f":"'Population 2016'!J83*'Prevalence Rates'!J83","v":183.35555536408486},{"$f":"'Population 2016'!K83*'Prevalence Rates'!K83","v":92.423438036216069},{"$f":"'Population 2016'!L83*'Prevalence Rates'!L83","v":73.606857618090402},{"$f":"'Population 2016'!M83*'Prevalence Rates'!M83","v":78.244081205613156},{"$f":"'Population 2016'!N83*'Prevalence Rates'!N83","v":274.65079269565763},{"$f":"'Population 2016'!O83*'Prevalence Rates'!O83","v":234.8704448041787},{"$f":"'Population 2016'!P83*'Prevalence Rates'!P83","v":30.151806972448068},{"$f":"'Population 2016'!Q83*'Prevalence Rates'!Q83","v":23.094043331072019},{"$f":"'Population 2016'!R83*'Prevalence Rates'!R83","v":34.254852885730742},{"$f":"'Population 2016'!S83*'Prevalence Rates'!S83","v":1190.8871557950881},{"$f":"'Population 2016'!T83*'Prevalence Rates'!T83","v":509.69844841197352},{"$f":"'Population 2016'!U83*'Prevalence Rates'!U83","v":0},{"$f":"'Population 2016'!V83*'Prevalence Rates'!V83","v":118.01026330818324},{"$f":"'Population 2016'!W83*'Prevalence Rates'!W83","v":368.12156763298952},{"$f":"'Population 2016'!X83*'Prevalence Rates'!X83","v":369.68349684589367},{"$f":"'Population 2016'!Y83*'Prevalence Rates'!Y83","v":357.08496524070034},{"$f":"'Population 2016'!Z83*'Prevalence Rates'!Z83","v":1812.5743231373804},{"$f":"'Population 2016'!AA83*'Prevalence Rates'!AA83","v":3235.2372344686264},{"$f":"'Population 2016'!AB83*'Prevalence Rates'!AB83","v":131.40142546353513},{"$f":"'Population 2016'!AC83*'Prevalence Rates'!AC83","v":2432.2541126108467},{"$f":"'Population 2016'!AD83*'Prevalence Rates'!AD83","v":143.62820526492953},{"$f":"'Population 2016'!AE83*'Prevalence Rates'!AE83","v":89.095913684215859},{"$f":"'Population 2016'!AF83*'Prevalence Rates'!AF83","v":182.11674791003608},{"$f":"'Population 2016'!AG83*'Prevalence Rates'!AG83","v":96.711639036176138},{"$f":"'Population 2016'!AH83*'Prevalence Rates'!AH83","v":839.88871237631872},{"$f":"'Population 2016'!AI83*'Prevalence Rates'!AI83","v":754.67012913198141},{"$f":"'Population 2016'!AJ83*'Prevalence Rates'!AJ83","v":64.236372626763341},{"$f":"'Population 2016'!AK83*'Prevalence Rates'!AK83","v":3.0651822754721083},{"$f":"'Population 2016'!AL83*'Prevalence Rates'!AL83","v":412.60436253891402},{"$f":"'Population 2016'!AM83*'Prevalence Rates'!AM83","v":515.55420133250664},{"$f":"'Population 2016'!AN83*'Prevalence Rates'!AN83","v":0},{"$f":"'Population 2016'!AO83*'Prevalence Rates'!AO83","v":0},{"$f":"'Population 2016'!AP83*'Prevalence Rates'!AP83","v":46.142410985993351},{"$f":"'Population 2016'!AQ83*'Prevalence Rates'!AQ83","v":268.33904468044079},{"$f":"'Population 2016'!AR83*'Prevalence Rates'!AR83","v":6344.0175687408573},{"$f":"'Population 2016'!AS83*'Prevalence Rates'!AS83","v":40.763525261593351},{"$f":"'Population 2016'!AT83*'Prevalence Rates'!AT83","v":0},{"$f":"'Population 2016'!AU83*'Prevalence Rates'!AU83","v":0},{"$f":"'Population 2016'!AV83*'Prevalence Rates'!AV83","v":115.52845918355781},{"$f":"'Population 2016'!AW83*'Prevalence Rates'!AW83","v":305.3190064722636},{"$f":"'Population 2016'!AX83*'Prevalence Rates'!AX83","v":79.478958643972177},{"$f":"'Population 2016'!AY83*'Prevalence Rates'!AY83","v":712.59087060422246},{"$f":"'Population 2016'!AZ83*'Prevalence Rates'!AZ83","v":342.36563918941528},{"$f":"'Population 2016'!BA83*'Prevalence Rates'!BA83","v":191.97165905432936},{"$f":"'Population 2016'!BB83*'Prevalence Rates'!BB83","v":183.48969563348021},{"$f":"'Population 2016'!BC83*'Prevalence Rates'!BC83","v":0},81]
[null,"Male 25-29",{"$f":"'Population 2016'!C84*'Prevalence Rates'!C84","v":180.36600151770364},{"$f":"'Population 2016'!D84*'Prevalence Rates'!D84","v":193.28728792520147},{"$f":"'Population 2016'!E84*'Prevalence Rates'!E84","v":33.789215516806514},{"$f":"'Population 2016'!F84*'Prevalence Rates'!F84","v":49.176628503109853},{"$f":"'Population 2016'!G84*'Prevalence Rates'!G84","v":35.707785154193296},{"$f":"'Population 2016'!H84*'Prevalence Rates'!H84","v":667.34848578316451},{"$f":"'Population 2016'!I84*'Prevalence Rates'!I84","v":28.499926300318961},{"$f":"'Population 2016'!J84*'Prevalence Rates'!J84","v":166.94904177846172},{"$f":"'Population 2016'!K84*'Prevalence Rates'!K84","v":69.924233382348717},{"$f":"'Population 2016'!L84*'Prevalence Rates'!L84","v":77.648452334251147},{"$f":"'Population 2016'!M84*'Prevalence Rates'!M84","v":82.540295925337034},{"$f":"'Population 2016'!N84*'Prevalence Rates'!N84","v":360.1771911632672},{"$f":"'Population 2016'!O84*'Prevalence Rates'!O84","v":216.42359887230558},{"$f":"'Population 2016'!P84*'Prevalence Rates'!P84","v":27.152612024095475},{"$f":"'Population 2016'!Q84*'Prevalence Rates'!Q84","v":19.025657934052806},{"$f":"'Population 2016'!R84*'Prevalence Rates'!R84","v":32.312742394846332},{"$f":"'Population 2016'!S84*'Prevalence Rates'!S84","v":1322.0952052408127},{"$f":"'Population 2016'!T84*'Prevalence Rates'!T84","v":722.06921900574423},{"$f":"'Population 2016'!U84*'Prevalence Rates'!U84","v":0},{"$f":"'Population 2016'!V84*'Prevalence Rates'!V84","v":124.38642560152931},{"$f":"'Population 2016'!W84*'Prevalence Rates'!W84","v":364.93661645833299},{"$f":"'Population 2016'!X84*'Prevalence Rates'!X84","v":366.48503201510078},{"$f":"'Population 2016'!Y84*'Prevalence Rates'!Y84","v":348.38925542577982},{"$f":"'Population 2016'!Z84*'Prevalence Rates'!Z84","v":2157.7292875021121},{"$f":"'Population 2016'!AA84*'Prevalence Rates'!AA84","v":3450.9529859947033},{"$f":"'Population 2016'!AB84*'Prevalence Rates'!AB84","v":184.17072950816461},{"$f":"'Population 2016'!AC84*'Prevalence Rates'!AC84","v":2759.0661056703539},{"$f":"'Population 2016'!AD84*'Prevalence Rates'!AD84","v":130.45244176331957},{"$f":"'Population 2016'!AE84*'Prevalence Rates'!AE84","v":87.7431165481742},{"$f":"'Population 2016'!AF84*'Prevalence Rates'!AF84","v":171.42719581407044},{"$f":"'Population 2016'!AG84*'Prevalence Rates'!AG84","v":95.243207736692057},{"$f":"'Population 2016'!AH84*'Prevalence Rates'!AH84","v":749.45300699151369},{"$f":"'Population 2016'!AI84*'Prevalence Rates'!AI84","v":912.49845255903847},{"$f":"'Population 2016'!AJ84*'Prevalence Rates'!AJ84","v":46.205169268413954},{"$f":"'Population 2016'!AK84*'Prevalence Rates'!AK84","v":1.4309474336805057},{"$f":"'Population 2016'!AL84*'Prevalence Rates'!AL84","v":351.28439884793306},{"$f":"'Population 2016'!AM84*'Prevalence Rates'!AM84","v":459.13727846596464},{"$f":"'Population 2016'!AN84*'Prevalence Rates'!AN84","v":0},{"$f":"'Population 2016'!AO84*'Prevalence Rates'!AO84","v":0},{"$f":"'Population 2016'!AP84*'Prevalence Rates'!AP84","v":61.76506461451153},{"$f":"'Population 2016'!AQ84*'Prevalence Rates'!AQ84","v":296.17383789971473},{"$f":"'Population 2016'!AR84*'Prevalence Rates'!AR84","v":6786.7517077517768},{"$f":"'Population 2016'!AS84*'Prevalence Rates'!AS84","v":28.499926300318961},{"$f":"'Population 2016'!AT84*'Prevalence Rates'!AT84","v":0},{"$f":"'Population 2016'!AU84*'Prevalence Rates'!AU84","v":0},{"$f":"'Population 2016'!AV84*'Prevalence Rates'!AV84","v":114.13587691675919},{"$f":"'Population 2016'!AW84*'Prevalence Rates'!AW84","v":273.40910055042673},{"$f":"'Population 2016'!AX84*'Prevalence Rates'!AX84","v":83.725753476091043},{"$f":"'Population 2016'!AY84*'Prevalence Rates'!AY84","v":806.00306926748738},{"$f":"'Population 2016'!AZ84*'Prevalence Rates'!AZ84","v":429.84414936849856},{"$f":"'Population 2016'!BA84*'Prevalence Rates'!BA84","v":176.97095713936497},{"$f":"'Population 2016'!BB84*'Prevalence Rates'!BB84","v":175.82426116384249},{"$f":"'Population 2016'!BC84*'Prevalence Rates'!BC84","v":0},82]
[null,"Male 30-34",{"$f":"'Population 2016'!C85*'Prevalence Rates'!C85","v":151.23532235575342},{"$f":"'Population 2016'!D85*'Prevalence Rates'!D85","v":169.89013742076304},{"$f":"'Population 2016'!E85*'Prevalence Rates'!E85","v":35.073976563072925},{"$f":"'Population 2016'!F85*'Prevalence Rates'!F85","v":40.406274375166696},{"$f":"'Population 2016'!G85*'Prevalence Rates'!G85","v":27.931423053946759},{"$f":"'Population 2016'!H85*'Prevalence Rates'!H85","v":588.32749719894559},{"$f":"'Population 2016'!I85*'Prevalence Rates'!I85","v":31.385994786427208},{"$f":"'Population 2016'!J85*'Prevalence Rates'!J85","v":146.49054648537856},{"$f":"'Population 2016'!K85*'Prevalence Rates'!K85","v":73.359817103446787},{"$f":"'Population 2016'!L85*'Prevalence Rates'!L85","v":54.166057475102612},{"$f":"'Population 2016'!M85*'Prevalence Rates'!M85","v":57.578512883400428},{"$f":"'Population 2016'!N85*'Prevalence Rates'!N85","v":282.56995107836428},{"$f":"'Population 2016'!O85*'Prevalence Rates'!O85","v":188.39995034437834},{"$f":"'Population 2016'!P85*'Prevalence Rates'!P85","v":22.321779209992599},{"$f":"'Population 2016'!Q85*'Prevalence Rates'!Q85","v":19.931641645198177},{"$f":"'Population 2016'!R85*'Prevalence Rates'!R85","v":30.334411227814922},{"$f":"'Population 2016'!S85*'Prevalence Rates'!S85","v":1197.2839189340455},{"$f":"'Population 2016'!T85*'Prevalence Rates'!T85","v":623.77253971680636},{"$f":"'Population 2016'!U85*'Prevalence Rates'!U85","v":0},{"$f":"'Population 2016'!V85*'Prevalence Rates'!V85","v":114.22022735525047},{"$f":"'Population 2016'!W85*'Prevalence Rates'!W85","v":341.91316748881917},{"$f":"'Population 2016'!X85*'Prevalence Rates'!X85","v":343.3638952144758},{"$f":"'Population 2016'!Y85*'Prevalence Rates'!Y85","v":312.66755215878766},{"$f":"'Population 2016'!Z85*'Prevalence Rates'!Z85","v":1889.3891276811471},{"$f":"'Population 2016'!AA85*'Prevalence Rates'!AA85","v":3134.5141132664949},{"$f":"'Population 2016'!AB85*'Prevalence Rates'!AB85","v":161.6594103933393},{"$f":"'Population 2016'!AC85*'Prevalence Rates'!AC85","v":2465.8897906402658},{"$f":"'Population 2016'!AD85*'Prevalence Rates'!AD85","v":126.32620881216836},{"$f":"'Population 2016'!AE85*'Prevalence Rates'!AE85","v":91.123504622894473},{"$f":"'Population 2016'!AF85*'Prevalence Rates'!AF85","v":161.39770190955687},{"$f":"'Population 2016'!AG85*'Prevalence Rates'!AG85","v":98.912544048155908},{"$f":"'Population 2016'!AH85*'Prevalence Rates'!AH85","v":716.47007422468755},{"$f":"'Population 2016'!AI85*'Prevalence Rates'!AI85","v":805.55595875594088},{"$f":"'Population 2016'!AJ85*'Prevalence Rates'!AJ85","v":50.916284566369889},{"$f":"'Population 2016'!AK85*'Prevalence Rates'!AK85","v":1.0732105752603793},{"$f":"'Population 2016'!AL85*'Prevalence Rates'!AL85","v":318.9752889363188},{"$f":"'Population 2016'!AM85*'Prevalence Rates'!AM85","v":432.93022619762195},{"$f":"'Population 2016'!AN85*'Prevalence Rates'!AN85","v":0},{"$f":"'Population 2016'!AO85*'Prevalence Rates'!AO85","v":0},{"$f":"'Population 2016'!AP85*'Prevalence Rates'!AP85","v":43.221602777649153},{"$f":"'Population 2016'!AQ85*'Prevalence Rates'!AQ85","v":278.52394348999337},{"$f":"'Population 2016'!AR85*'Prevalence Rates'!AR85","v":6054.8658545730987},{"$f":"'Population 2016'!AS85*'Prevalence Rates'!AS85","v":31.385994786427208},{"$f":"'Population 2016'!AT85*'Prevalence Rates'!AT85","v":0},{"$f":"'Population 2016'!AU85*'Prevalence Rates'!AU85","v":0},{"$f":"'Population 2016'!AV85*'Prevalence Rates'!AV85","v":95.649079951368606},{"$f":"'Population 2016'!AW85*'Prevalence Rates'!AW85","v":267.78452798516457},{"$f":"'Population 2016'!AX85*'Prevalence Rates'!AX85","v":63.883233866150391},{"$f":"'Population 2016'!AY85*'Prevalence Rates'!AY85","v":679.50706922009545},{"$f":"'Population 2016'!AZ85*'Prevalence Rates'!AZ85","v":334.02059763715704},{"$f":"'Population 2016'!BA85*'Prevalence Rates'!BA85","v":173.03826920293466},{"$f":"'Population 2016'!BB85*'Prevalence Rates'!BB85","v":153.47812353809306},{"$f":"'Population 2016'!BC85*'Prevalence Rates'!BC85","v":0},83]
[null,"Male 35-39",{"$f":"'Population 2016'!C86*'Prevalence Rates'!C86","v":175.58208993595863},{"$f":"'Population 2016'!D86*'Prevalence Rates'!D86","v":187.59863139454774},{"$f":"'Population 2016'!E86*'Prevalence Rates'!E86","v":32.408485313922135},{"$f":"'Population 2016'!F86*'Prevalence Rates'!F86","v":48.857933693440941},{"$f":"'Population 2016'!G86*'Prevalence Rates'!G86","v":29.009328893842039},{"$f":"'Population 2016'!H86*'Prevalence Rates'!H86","v":640.6545625250443},{"$f":"'Population 2016'!I86*'Prevalence Rates'!I86","v":41.104965157070836},{"$f":"'Population 2016'!J86*'Prevalence Rates'!J86","v":154.52516667237643},{"$f":"'Population 2016'!K86*'Prevalence Rates'!K86","v":89.150998829841399},{"$f":"'Population 2016'!L86*'Prevalence Rates'!L86","v":56.85038621053323},{"$f":"'Population 2016'!M86*'Prevalence Rates'!M86","v":60.431954021281221},{"$f":"'Population 2016'!N86*'Prevalence Rates'!N86","v":247.8303873832451},{"$f":"'Population 2016'!O86*'Prevalence Rates'!O86","v":195.02529999131525},{"$f":"'Population 2016'!P86*'Prevalence Rates'!P86","v":27.607618566001086},{"$f":"'Population 2016'!Q86*'Prevalence Rates'!Q86","v":18.989558351440529},{"$f":"'Population 2016'!R86*'Prevalence Rates'!R86","v":33.148792952967341},{"$f":"'Population 2016'!S86*'Prevalence Rates'!S86","v":1348.5910367185088},{"$f":"'Population 2016'!T86*'Prevalence Rates'!T86","v":691.27414361865374},{"$f":"'Population 2016'!U86*'Prevalence Rates'!U86","v":0},{"$f":"'Population 2016'!V86*'Prevalence Rates'!V86","v":131.35631434676958},{"$f":"'Population 2016'!W86*'Prevalence Rates'!W86","v":386.78149148154205},{"$f":"'Population 2016'!X86*'Prevalence Rates'!X86","v":388.42259421409904},{"$f":"'Population 2016'!Y86*'Prevalence Rates'!Y86","v":344.74514257751559},{"$f":"'Population 2016'!Z86*'Prevalence Rates'!Z86","v":1878.0313468249162},{"$f":"'Population 2016'!AA86*'Prevalence Rates'!AA86","v":3271.3799769191178},{"$f":"'Population 2016'!AB86*'Prevalence Rates'!AB86","v":181.5695218122631},{"$f":"'Population 2016'!AC86*'Prevalence Rates'!AC86","v":2463.8072459673722},{"$f":"'Population 2016'!AD86*'Prevalence Rates'!AD86","v":118.35806188687559},{"$f":"'Population 2016'!AE86*'Prevalence Rates'!AE86","v":82.745946558048701},{"$f":"'Population 2016'!AF86*'Prevalence Rates'!AF86","v":156.25456485915387},{"$f":"'Population 2016'!AG86*'Prevalence Rates'!AG86","v":89.818890500322027},{"$f":"'Population 2016'!AH86*'Prevalence Rates'!AH86","v":845.37491249048583},{"$f":"'Population 2016'!AI86*'Prevalence Rates'!AI86","v":899.03002697606598},{"$f":"'Population 2016'!AJ86*'Prevalence Rates'!AJ86","v":52.552498693521464},{"$f":"'Population 2016'!AK86*'Prevalence Rates'!AK86","v":3.7781727374325054},{"$f":"'Population 2016'!AL86*'Prevalence Rates'!AL86","v":347.07829819310632},{"$f":"'Population 2016'!AM86*'Prevalence Rates'!AM86","v":496.8908022327426},{"$f":"'Population 2016'!AN86*'Prevalence Rates'!AN86","v":0},{"$f":"'Population 2016'!AO86*'Prevalence Rates'!AO86","v":0},{"$f":"'Population 2016'!AP86*'Prevalence Rates'!AP86","v":51.820910710982041},{"$f":"'Population 2016'!AQ86*'Prevalence Rates'!AQ86","v":281.53273802767143},{"$f":"'Population 2016'!AR86*'Prevalence Rates'!AR86","v":6403.5633667536049},{"$f":"'Population 2016'!AS86*'Prevalence Rates'!AS86","v":41.104965157070836},{"$f":"'Population 2016'!AT86*'Prevalence Rates'!AT86","v":0},{"$f":"'Population 2016'!AU86*'Prevalence Rates'!AU86","v":0},{"$f":"'Population 2016'!AV86*'Prevalence Rates'!AV86","v":114.01259843986551},{"$f":"'Population 2016'!AW86*'Prevalence Rates'!AW86","v":330.83960189444593},{"$f":"'Population 2016'!AX86*'Prevalence Rates'!AX86","v":57.993557513962948},{"$f":"'Population 2016'!AY86*'Prevalence Rates'!AY86","v":700.48436394561008},{"$f":"'Population 2016'!AZ86*'Prevalence Rates'!AZ86","v":315.91773616765767},{"$f":"'Population 2016'!BA86*'Prevalence Rates'!BA86","v":176.21385739066446},{"$f":"'Population 2016'!BB86*'Prevalence Rates'!BB86","v":182.38643278349409},{"$f":"'Population 2016'!BC86*'Prevalence Rates'!BC86","v":0},84]
[null,"Male 40-44",{"$f":"'Population 2016'!C87*'Prevalence Rates'!C87","v":143.48415339802915},{"$f":"'Population 2016'!D87*'Prevalence Rates'!D87","v":161.08420720906472},{"$f":"'Population 2016'!E87*'Prevalence Rates'!E87","v":33.191298968847796},{"$f":"'Population 2016'!F87*'Prevalence Rates'!F87","v":47.903677175990921},{"$f":"'Population 2016'!G87*'Prevalence Rates'!G87","v":32.297052835144136},{"$f":"'Population 2016'!H87*'Prevalence Rates'!H87","v":699.57543512515133},{"$f":"'Population 2016'!I87*'Prevalence Rates'!I87","v":41.764403100767161},{"$f":"'Population 2016'!J87*'Prevalence Rates'!J87","v":148.8804117254403},{"$f":"'Population 2016'!K87*'Prevalence Rates'!K87","v":86.688264055536393},{"$f":"'Population 2016'!L87*'Prevalence Rates'!L87","v":65.053629858361859},{"$f":"'Population 2016'!M87*'Prevalence Rates'!M87","v":69.15200107804327},{"$f":"'Population 2016'!N87*'Prevalence Rates'!N87","v":209.51610048837941},{"$f":"'Population 2016'!O87*'Prevalence Rates'!O87","v":231.02680579139982},{"$f":"'Population 2016'!P87*'Prevalence Rates'!P87","v":27.607618566001086},{"$f":"'Population 2016'!Q87*'Prevalence Rates'!Q87","v":29.367572799320818},{"$f":"'Population 2016'!R87*'Prevalence Rates'!R87","v":33.952400054857456},{"$f":"'Population 2016'!S87*'Prevalence Rates'!S87","v":1311.3383585221329},{"$f":"'Population 2016'!T87*'Prevalence Rates'!T87","v":625.31287037259904},{"$f":"'Population 2016'!U87*'Prevalence Rates'!U87","v":0},{"$f":"'Population 2016'!V87*'Prevalence Rates'!V87","v":137.36846188275211},{"$f":"'Population 2016'!W87*'Prevalence Rates'!W87","v":382.95557941318958},{"$f":"'Population 2016'!X87*'Prevalence Rates'!X87","v":384.58044891099206},{"$f":"'Population 2016'!Y87*'Prevalence Rates'!Y87","v":346.99674365385641},{"$f":"'Population 2016'!Z87*'Prevalence Rates'!Z87","v":1687.5064275818088},{"$f":"'Population 2016'!AA87*'Prevalence Rates'!AA87","v":3065.847325352107},{"$f":"'Population 2016'!AB87*'Prevalence Rates'!AB87","v":157.22308923686995},{"$f":"'Population 2016'!AC87*'Prevalence Rates'!AC87","v":2236.3873976159898},{"$f":"'Population 2016'!AD87*'Prevalence Rates'!AD87","v":135.37686817126294},{"$f":"'Population 2016'!AE87*'Prevalence Rates'!AE87","v":95.462314968484748},{"$f":"'Population 2016'!AF87*'Prevalence Rates'!AF87","v":160.57930010796318},{"$f":"'Population 2016'!AG87*'Prevalence Rates'!AG87","v":103.62222648630225},{"$f":"'Population 2016'!AH87*'Prevalence Rates'!AH87","v":856.8587556642359},{"$f":"'Population 2016'!AI87*'Prevalence Rates'!AI87","v":863.38046445679447},{"$f":"'Population 2016'!AJ87*'Prevalence Rates'!AJ87","v":58.955954416681642},{"$f":"'Population 2016'!AK87*'Prevalence Rates'!AK87","v":4.3594300816528904},{"$f":"'Population 2016'!AL87*'Prevalence Rates'!AL87","v":373.91166373260228},{"$f":"'Population 2016'!AM87*'Prevalence Rates'!AM87","v":500.96111126174429},{"$f":"'Population 2016'!AN87*'Prevalence Rates'!AN87","v":0},{"$f":"'Population 2016'!AO87*'Prevalence Rates'!AO87","v":0},{"$f":"'Population 2016'!AP87*'Prevalence Rates'!AP87","v":42.815965571040898},{"$f":"'Population 2016'!AQ87*'Prevalence Rates'!AQ87","v":246.20999698320583},{"$f":"'Population 2016'!AR87*'Prevalence Rates'!AR87","v":6139.336779858394},{"$f":"'Population 2016'!AS87*'Prevalence Rates'!AS87","v":41.764403100767161},{"$f":"'Population 2016'!AT87*'Prevalence Rates'!AT87","v":0},{"$f":"'Population 2016'!AU87*'Prevalence Rates'!AU87","v":0},{"$f":"'Population 2016'!AV87*'Prevalence Rates'!AV87","v":111.2700273433739},{"$f":"'Population 2016'!AW87*'Prevalence Rates'!AW87","v":338.19530805076511},{"$f":"'Population 2016'!AX87*'Prevalence Rates'!AX87","v":55.241320886181654},{"$f":"'Population 2016'!AY87*'Prevalence Rates'!AY87","v":647.99371680147613},{"$f":"'Population 2016'!AZ87*'Prevalence Rates'!AZ87","v":271.41165585750531},{"$f":"'Population 2016'!BA87*'Prevalence Rates'!BA87","v":161.83657613912487},{"$f":"'Population 2016'!BB87*'Prevalence Rates'!BB87","v":187.24162717472137},{"$f":"'Population 2016'!BC87*'Prevalence Rates'!BC87","v":0},85]
[null,"Male 45-49",{"$f":"'Population 2016'!C88*'Prevalence Rates'!C88","v":184.57048660317898},{"$f":"'Population 2016'!D88*'Prevalence Rates'!D88","v":205.29326893662363},{"$f":"'Population 2016'!E88*'Prevalence Rates'!E88","v":41.042891514762566},{"$f":"'Population 2016'!F88*'Prevalence Rates'!F88","v":73.326787180217806},{"$f":"'Population 2016'!G88*'Prevalence Rates'!G88","v":54.454054035161164},{"$f":"'Population 2016'!H88*'Prevalence Rates'!H88","v":1099.0233395961848},{"$f":"'Population 2016'!I88*'Prevalence Rates'!I88","v":76.831794340113703},{"$f":"'Population 2016'!J88*'Prevalence Rates'!J88","v":254.45805957786078},{"$f":"'Population 2016'!K88*'Prevalence Rates'!K88","v":145.17583413362644},{"$f":"'Population 2016'!L88*'Prevalence Rates'!L88","v":107.43132846352704},{"$f":"'Population 2016'!M88*'Prevalence Rates'!M88","v":114.19948983477859},{"$f":"'Population 2016'!N88*'Prevalence Rates'!N88","v":364.60338752052866},{"$f":"'Population 2016'!O88*'Prevalence Rates'!O88","v":365.24169043949098},{"$f":"'Population 2016'!P88*'Prevalence Rates'!P88","v":52.089420184294276},{"$f":"'Population 2016'!Q88*'Prevalence Rates'!Q88","v":28.78936089006076},{"$f":"'Population 2016'!R88*'Prevalence Rates'!R88","v":50.994415917615783},{"$f":"'Population 2016'!S88*'Prevalence Rates'!S88","v":2024.33386894415},{"$f":"'Population 2016'!T88*'Prevalence Rates'!T88","v":843.54393743728315},{"$f":"'Population 2016'!U88*'Prevalence Rates'!U88","v":0},{"$f":"'Population 2016'!V88*'Prevalence Rates'!V88","v":215.04681113327715},{"$f":"'Population 2016'!W88*'Prevalence Rates'!W88","v":665.86174775109896},{"$f":"'Population 2016'!X88*'Prevalence Rates'!X88","v":668.68697997602737},{"$f":"'Population 2016'!Y88*'Prevalence Rates'!Y88","v":565.96640969291343},{"$f":"'Population 2016'!Z88*'Prevalence Rates'!Z88","v":2554.7408251361298},{"$f":"'Population 2016'!AA88*'Prevalence Rates'!AA88","v":4869.1771369018898},{"$f":"'Population 2016'!AB88*'Prevalence Rates'!AB88","v":203.09190701946471},{"$f":"'Population 2016'!AC88*'Prevalence Rates'!AC88","v":3537.1184108155408},{"$f":"'Population 2016'!AD88*'Prevalence Rates'!AD88","v":197.96596984211311},{"$f":"'Population 2016'!AE88*'Prevalence Rates'!AE88","v":132.90652164850638},{"$f":"'Population 2016'!AF88*'Prevalence Rates'!AF88","v":291.58236272747001},{"$f":"'Population 2016'!AG88*'Prevalence Rates'!AG88","v":144.26708269451433},{"$f":"'Population 2016'!AH88*'Prevalence Rates'!AH88","v":1373.9473125335971},{"$f":"'Population 2016'!AI88*'Prevalence Rates'!AI88","v":1222.7546645393434},{"$f":"'Population 2016'!AJ88*'Prevalence Rates'!AJ88","v":94.637367181157174},{"$f":"'Population 2016'!AK88*'Prevalence Rates'!AK88","v":7.8606928369484272},{"$f":"'Population 2016'!AL88*'Prevalence Rates'!AL88","v":599.67561324931455},{"$f":"'Population 2016'!AM88*'Prevalence Rates'!AM88","v":822.31288937458612},{"$f":"'Population 2016'!AN88*'Prevalence Rates'!AN88","v":0},{"$f":"'Population 2016'!AO88*'Prevalence Rates'!AO88","v":0},{"$f":"'Population 2016'!AP88*'Prevalence Rates'!AP88","v":60.565608135597309},{"$f":"'Population 2016'!AQ88*'Prevalence Rates'!AQ88","v":439.73252475241895},{"$f":"'Population 2016'!AR88*'Prevalence Rates'!AR88","v":9661.2734053297245},{"$f":"'Population 2016'!AS88*'Prevalence Rates'!AS88","v":76.831794340113703},{"$f":"'Population 2016'!AT88*'Prevalence Rates'!AT88","v":0},{"$f":"'Population 2016'!AU88*'Prevalence Rates'!AU88","v":0},{"$f":"'Population 2016'!AV88*'Prevalence Rates'!AV88","v":163.0305023183069},{"$f":"'Population 2016'!AW88*'Prevalence Rates'!AW88","v":521.95726592808398},{"$f":"'Population 2016'!AX88*'Prevalence Rates'!AX88","v":96.799662901177072},{"$f":"'Population 2016'!AY88*'Prevalence Rates'!AY88","v":1104.7683229774238},{"$f":"'Population 2016'!AZ88*'Prevalence Rates'!AZ88","v":452.00042135969824},{"$f":"'Population 2016'!BA88*'Prevalence Rates'!BA88","v":269.21440506453297},{"$f":"'Population 2016'!BB88*'Prevalence Rates'!BB88","v":300.40966760571729},{"$f":"'Population 2016'!BC88*'Prevalence Rates'!BC88","v":0},86]
[null,"Male 50-54",{"$f":"'Population 2016'!C89*'Prevalence Rates'!C89","v":181.32723524114229},{"$f":"'Population 2016'!D89*'Prevalence Rates'!D89","v":194.46184493137847},{"$f":"'Population 2016'!E89*'Prevalence Rates'!E89","v":34.093830517554089},{"$f":"'Population 2016'!F89*'Prevalence Rates'!F89","v":77.297551828966064},{"$f":"'Population 2016'!G89*'Prevalence Rates'!G89","v":70.548848331267905},{"$f":"'Population 2016'!H89*'Prevalence Rates'!H89","v":1183.1882790325185},{"$f":"'Population 2016'!I89*'Prevalence Rates'!I89","v":79.270898922339541},{"$f":"'Population 2016'!J89*'Prevalence Rates'!J89","v":280.88255038017712},{"$f":"'Population 2016'!K89*'Prevalence Rates'!K89","v":155.08194987450918},{"$f":"'Population 2016'!L89*'Prevalence Rates'!L89","v":115.6342131491658},{"$f":"'Population 2016'!M89*'Prevalence Rates'!M89","v":122.919155314774},{"$f":"'Population 2016'!N89*'Prevalence Rates'!N89","v":373.34848722120557},{"$f":"'Population 2016'!O89*'Prevalence Rates'!O89","v":386.07188059736825},{"$f":"'Population 2016'!P89*'Prevalence Rates'!P89","v":53.215677918008744},{"$f":"'Population 2016'!Q89*'Prevalence Rates'!Q89","v":43.796580928496688},{"$f":"'Population 2016'!R89*'Prevalence Rates'!R89","v":67.156580525384712},{"$f":"'Population 2016'!S89*'Prevalence Rates'!S89","v":1996.5111258428183},{"$f":"'Population 2016'!T89*'Prevalence Rates'!T89","v":874.65076376360389},{"$f":"'Population 2016'!U89*'Prevalence Rates'!U89","v":0},{"$f":"'Population 2016'!V89*'Prevalence Rates'!V89","v":216.81570382179999},{"$f":"'Population 2016'!W89*'Prevalence Rates'!W89","v":616.33275247245933},{"$f":"'Population 2016'!X89*'Prevalence Rates'!X89","v":618.94783459640632},{"$f":"'Population 2016'!Y89*'Prevalence Rates'!Y89","v":596.50291738940416},{"$f":"'Population 2016'!Z89*'Prevalence Rates'!Z89","v":2616.492529691352},{"$f":"'Population 2016'!AA89*'Prevalence Rates'!AA89","v":5022.6258324164173},{"$f":"'Population 2016'!AB89*'Prevalence Rates'!AB89","v":189.53659238233416},{"$f":"'Population 2016'!AC89*'Prevalence Rates'!AC89","v":3725.1541429108265},{"$f":"'Population 2016'!AD89*'Prevalence Rates'!AD89","v":218.62095585545012},{"$f":"'Population 2016'!AE89*'Prevalence Rates'!AE89","v":137.12971953266452},{"$f":"'Population 2016'!AF89*'Prevalence Rates'!AF89","v":335.13715215098296},{"$f":"'Population 2016'!AG89*'Prevalence Rates'!AG89","v":148.85127036891944},{"$f":"'Population 2016'!AH89*'Prevalence Rates'!AH89","v":1349.1443550864024},{"$f":"'Population 2016'!AI89*'Prevalence Rates'!AI89","v":1254.5187787493905},{"$f":"'Population 2016'!AJ89*'Prevalence Rates'!AJ89","v":93.412287994346087},{"$f":"'Population 2016'!AK89*'Prevalence Rates'!AK89","v":5.0389056647105299},{"$f":"'Population 2016'!AL89*'Prevalence Rates'!AL89","v":659.15619901824311},{"$f":"'Population 2016'!AM89*'Prevalence Rates'!AM89","v":821.87860741558188},{"$f":"'Population 2016'!AN89*'Prevalence Rates'!AN89","v":0},{"$f":"'Population 2016'!AO89*'Prevalence Rates'!AO89","v":0},{"$f":"'Population 2016'!AP89*'Prevalence Rates'!AP89","v":69.992161931021016},{"$f":"'Population 2016'!AQ89*'Prevalence Rates'!AQ89","v":436.57945094007397},{"$f":"'Population 2016'!AR89*'Prevalence Rates'!AR89","v":9942.4030512175741},{"$f":"'Population 2016'!AS89*'Prevalence Rates'!AS89","v":79.270898922339541},{"$f":"'Population 2016'!AT89*'Prevalence Rates'!AT89","v":0},{"$f":"'Population 2016'!AU89*'Prevalence Rates'!AU89","v":0},{"$f":"'Population 2016'!AV89*'Prevalence Rates'!AV89","v":171.72546244194996},{"$f":"'Population 2016'!AW89*'Prevalence Rates'!AW89","v":497.14632525535853},{"$f":"'Population 2016'!AX89*'Prevalence Rates'!AX89","v":110.97876845289878},{"$f":"'Population 2016'!AY89*'Prevalence Rates'!AY89","v":1081.2675161069969},{"$f":"'Population 2016'!AZ89*'Prevalence Rates'!AZ89","v":471.67081006701841},{"$f":"'Population 2016'!BA89*'Prevalence Rates'!BA89","v":343.35702374327423},{"$f":"'Population 2016'!BB89*'Prevalence Rates'!BB89","v":290.74736835524101},{"$f":"'Population 2016'!BC89*'Prevalence Rates'!BC89","v":0},87]
[null,"Male 55-59",{"$f":"'Population 2016'!C90*'Prevalence Rates'!C90","v":178.41980131123529},{"$f":"'Population 2016'!D90*'Prevalence Rates'!D90","v":201.79427865634062},{"$f":"'Population 2016'!E90*'Prevalence Rates'!E90","v":42.556543363384321},{"$f":"'Population 2016'!F90*'Prevalence Rates'!F90","v":66.128654210454172},{"$f":"'Population 2016'!G90*'Prevalence Rates'!G90","v":61.522304564493233},{"$f":"'Population 2016'!H90*'Prevalence Rates'!H90","v":1240.8458625740059},{"$f":"'Population 2016'!I90*'Prevalence Rates'!I90","v":64.673367222683169},{"$f":"'Population 2016'!J90*'Prevalence Rates'!J90","v":285.93335829578422},{"$f":"'Population 2016'!K90*'Prevalence Rates'!K90","v":157.42292619027461},{"$f":"'Population 2016'!L90*'Prevalence Rates'!L90","v":110.83408128377745},{"$f":"'Population 2016'!M90*'Prevalence Rates'!M90","v":117.81661569242242},{"$f":"'Population 2016'!N90*'Prevalence Rates'!N90","v":387.5198975831758},{"$f":"'Population 2016'!O90*'Prevalence Rates'!O90","v":388.36158089459065},{"$f":"'Population 2016'!P90*'Prevalence Rates'!P90","v":52.449663932656406},{"$f":"'Population 2016'!Q90*'Prevalence Rates'!Q90","v":36.935246754535584},{"$f":"'Population 2016'!R90*'Prevalence Rates'!R90","v":57.909211682495545},{"$f":"'Population 2016'!S90*'Prevalence Rates'!S90","v":1873.2236475399454},{"$f":"'Population 2016'!T90*'Prevalence Rates'!T90","v":742.39748004297871},{"$f":"'Population 2016'!U90*'Prevalence Rates'!U90","v":0},{"$f":"'Population 2016'!V90*'Prevalence Rates'!V90","v":197.81383812906773},{"$f":"'Population 2016'!W90*'Prevalence Rates'!W90","v":656.56780110789612},{"$f":"'Population 2016'!X90*'Prevalence Rates'!X90","v":659.3535993847986},{"$f":"'Population 2016'!Y90*'Prevalence Rates'!Y90","v":575.78208224058847},{"$f":"'Population 2016'!Z90*'Prevalence Rates'!Z90","v":2465.1308108983899},{"$f":"'Population 2016'!AA90*'Prevalence Rates'!AA90","v":4820.6275441533153},{"$f":"'Population 2016'!AB90*'Prevalence Rates'!AB90","v":197.42763214144139},{"$f":"'Population 2016'!AC90*'Prevalence Rates'!AC90","v":3514.7018946997759},{"$f":"'Population 2016'!AD90*'Prevalence Rates'!AD90","v":215.76132164167359},{"$f":"'Population 2016'!AE90*'Prevalence Rates'!AE90","v":142.84090033184265},{"$f":"'Population 2016'!AF90*'Prevalence Rates'!AF90","v":315.92993746272191},{"$f":"'Population 2016'!AG90*'Prevalence Rates'!AG90","v":155.05063050880321},{"$f":"'Population 2016'!AH90*'Prevalence Rates'!AH90","v":1348.8172310341097},{"$f":"'Population 2016'!AI90*'Prevalence Rates'!AI90","v":1086.0117972138653},{"$f":"'Population 2016'!AJ90*'Prevalence Rates'!AJ90","v":88.710548008661362},{"$f":"'Population 2016'!AK90*'Prevalence Rates'!AK90","v":5.8597460530005216},{"$f":"'Population 2016'!AL90*'Prevalence Rates'!AL90","v":696.64397032085367},{"$f":"'Population 2016'!AM90*'Prevalence Rates'!AM90","v":791.90995242115696},{"$f":"'Population 2016'!AN90*'Prevalence Rates'!AN90","v":0},{"$f":"'Population 2016'!AO90*'Prevalence Rates'!AO90","v":0},{"$f":"'Population 2016'!AP90*'Prevalence Rates'!AP90","v":59.124528697337745},{"$f":"'Population 2016'!AQ90*'Prevalence Rates'!AQ90","v":437.44595845672785},{"$f":"'Population 2016'!AR90*'Prevalence Rates'!AR90","v":9641.1684227214264},{"$f":"'Population 2016'!AS90*'Prevalence Rates'!AS90","v":64.673367222683169},{"$f":"'Population 2016'!AT90*'Prevalence Rates'!AT90","v":0},{"$f":"'Population 2016'!AU90*'Prevalence Rates'!AU90","v":0},{"$f":"'Population 2016'!AV90*'Prevalence Rates'!AV90","v":191.63627835864312},{"$f":"'Population 2016'!AW90*'Prevalence Rates'!AW90","v":528.81555359541585},{"$f":"'Population 2016'!AX90*'Prevalence Rates'!AX90","v":113.33175350679028},{"$f":"'Population 2016'!AY90*'Prevalence Rates'!AY90","v":1112.1673784836244},{"$f":"'Population 2016'!AZ90*'Prevalence Rates'!AZ90","v":466.41686530438295},{"$f":"'Population 2016'!BA90*'Prevalence Rates'!BA90","v":303.64368084044088},{"$f":"'Population 2016'!BB90*'Prevalence Rates'!BB90","v":256.94665279722221},{"$f":"'Population 2016'!BC90*'Prevalence Rates'!BC90","v":0},88]
[null,"Male 60-64",{"$f":"'Population 2016'!C91*'Prevalence Rates'!C91","v":160.64131577132574},{"$f":"'Population 2016'!D91*'Prevalence Rates'!D91","v":164.63592358118112},{"$f":"'Population 2016'!E91*'Prevalence Rates'!E91","v":23.616543295064925},{"$f":"'Population 2016'!F91*'Prevalence Rates'!F91","v":55.867311315728521},{"$f":"'Population 2016'!G91*'Prevalence Rates'!G91","v":59.789281900704694},{"$f":"'Population 2016'!H91*'Prevalence Rates'!H91","v":1060.5800836501824},{"$f":"'Population 2016'!I91*'Prevalence Rates'!I91","v":50.556845443112728},{"$f":"'Population 2016'!J91*'Prevalence Rates'!J91","v":223.05612102926656},{"$f":"'Population 2016'!K91*'Prevalence Rates'!K91","v":122.48092154523702},{"$f":"'Population 2016'!L91*'Prevalence Rates'!L91","v":91.744406615363346},{"$f":"'Population 2016'!M91*'Prevalence Rates'!M91","v":97.524293709408781},{"$f":"'Population 2016'!N91*'Prevalence Rates'!N91","v":312.43037225709003},{"$f":"'Population 2016'!O91*'Prevalence Rates'!O91","v":321.07425002756901},{"$f":"'Population 2016'!P91*'Prevalence Rates'!P91","v":48.508359706503029},{"$f":"'Population 2016'!Q91*'Prevalence Rates'!Q91","v":28.690772032541037},{"$f":"'Population 2016'!R91*'Prevalence Rates'!R91","v":43.806968423027719},{"$f":"'Population 2016'!S91*'Prevalence Rates'!S91","v":1567.7137099446784},{"$f":"'Population 2016'!T91*'Prevalence Rates'!T91","v":634.42672126815057},{"$f":"'Population 2016'!U91*'Prevalence Rates'!U91","v":0},{"$f":"'Population 2016'!V91*'Prevalence Rates'!V91","v":169.51584753013645},{"$f":"'Population 2016'!W91*'Prevalence Rates'!W91","v":549.08985604464749},{"$f":"'Population 2016'!X91*'Prevalence Rates'!X91","v":551.4196284950367},{"$f":"'Population 2016'!Y91*'Prevalence Rates'!Y91","v":470.04144027168093},{"$f":"'Population 2016'!Z91*'Prevalence Rates'!Z91","v":1986.622498017289},{"$f":"'Population 2016'!AA91*'Prevalence Rates'!AA91","v":3914.2524353807307},{"$f":"'Population 2016'!AB91*'Prevalence Rates'!AB91","v":160.55398878428502},{"$f":"'Population 2016'!AC91*'Prevalence Rates'!AC91","v":2834.8457714832975},{"$f":"'Population 2016'!AD91*'Prevalence Rates'!AD91","v":186.29993635726836},{"$f":"'Population 2016'!AE91*'Prevalence Rates'!AE91","v":117.16163735083722},{"$f":"'Population 2016'!AF91*'Prevalence Rates'!AF91","v":270.71685307916789},{"$f":"'Population 2016'!AG91*'Prevalence Rates'!AG91","v":127.17635985553521},{"$f":"'Population 2016'!AH91*'Prevalence Rates'!AH91","v":1112.1310466237646},{"$f":"'Population 2016'!AI91*'Prevalence Rates'!AI91","v":913.23719311165951},{"$f":"'Population 2016'!AJ91*'Prevalence Rates'!AJ91","v":80.466073286666813},{"$f":"'Population 2016'!AK91*'Prevalence Rates'!AK91","v":4.3405526318522378},{"$f":"'Population 2016'!AL91*'Prevalence Rates'!AL91","v":589.9001361587874},{"$f":"'Population 2016'!AM91*'Prevalence Rates'!AM91","v":636.42718939781196},{"$f":"'Population 2016'!AN91*'Prevalence Rates'!AN91","v":0},{"$f":"'Population 2016'!AO91*'Prevalence Rates'!AO91","v":0},{"$f":"'Population 2016'!AP91*'Prevalence Rates'!AP91","v":49.228148357440013},{"$f":"'Population 2016'!AQ91*'Prevalence Rates'!AQ91","v":312.34947242641584},{"$f":"'Population 2016'!AR91*'Prevalence Rates'!AR91","v":7932.4858112180918},{"$f":"'Population 2016'!AS91*'Prevalence Rates'!AS91","v":50.556845443112728},{"$f":"'Population 2016'!AT91*'Prevalence Rates'!AT91","v":0},{"$f":"'Population 2016'!AU91*'Prevalence Rates'!AU91","v":0},{"$f":"'Population 2016'!AV91*'Prevalence Rates'!AV91","v":178.4704271736982},{"$f":"'Population 2016'!AW91*'Prevalence Rates'!AW91","v":453.66282383516074},{"$f":"'Population 2016'!AX91*'Prevalence Rates'!AX91","v":88.668884868006899},{"$f":"'Population 2016'!AY91*'Prevalence Rates'!AY91","v":918.41258870095419},{"$f":"'Population 2016'!AZ91*'Prevalence Rates'!AZ91","v":379.44251264375885},{"$f":"'Population 2016'!BA91*'Prevalence Rates'!BA91","v":270.60901021410103},{"$f":"'Population 2016'!BB91*'Prevalence Rates'!BB91","v":204.61150633791067},{"$f":"'Population 2016'!BC91*'Prevalence Rates'!BC91","v":0},89]
[null,"Male 65-69",{"$f":"'Population 2016'!C92*'Prevalence Rates'!C92","v":111.34978146572806},{"$f":"'Population 2016'!D92*'Prevalence Rates'!D92","v":121.1543617994344},{"$f":"'Population 2016'!E92*'Prevalence Rates'!E92","v":22.435476354179901},{"$f":"'Population 2016'!F92*'Prevalence Rates'!F92","v":47.113887093747742},{"$f":"'Population 2016'!G92*'Prevalence Rates'!G92","v":39.823779857872388},{"$f":"'Population 2016'!H92*'Prevalence Rates'!H92","v":821.78088253923272},{"$f":"'Population 2016'!I92*'Prevalence Rates'!I92","v":52.939839323005309},{"$f":"'Population 2016'!J92*'Prevalence Rates'!J92","v":175.60039397412064},{"$f":"'Population 2016'!K92*'Prevalence Rates'!K92","v":99.941874078223151},{"$f":"'Population 2016'!L92*'Prevalence Rates'!L92","v":85.229709904748972},{"$f":"'Population 2016'!M92*'Prevalence Rates'!M92","v":90.599171853235788},{"$f":"'Population 2016'!N92*'Prevalence Rates'!N92","v":239.45144248096963},{"$f":"'Population 2016'!O92*'Prevalence Rates'!O92","v":269.78042986939181},{"$f":"'Population 2016'!P92*'Prevalence Rates'!P92","v":31.045145806745879},{"$f":"'Population 2016'!Q92*'Prevalence Rates'!Q92","v":26.855777623540174},{"$f":"'Population 2016'!R92*'Prevalence Rates'!R92","v":32.902025038712118},{"$f":"'Population 2016'!S92*'Prevalence Rates'!S92","v":1182.8125494711724},{"$f":"'Population 2016'!T92*'Prevalence Rates'!T92","v":417.48832217850577},{"$f":"'Population 2016'!U92*'Prevalence Rates'!U92","v":0},{"$f":"'Population 2016'!V92*'Prevalence Rates'!V92","v":141.28677181134233},{"$f":"'Population 2016'!W92*'Prevalence Rates'!W92","v":427.58993518681092},{"$f":"'Population 2016'!X92*'Prevalence Rates'!X92","v":429.40418697109624},{"$f":"'Population 2016'!Y92*'Prevalence Rates'!Y92","v":380.79913869659794},{"$f":"'Population 2016'!Z92*'Prevalence Rates'!Z92","v":1427.1532608782777},{"$f":"'Population 2016'!AA92*'Prevalence Rates'!AA92","v":2899.8093128131063},{"$f":"'Population 2016'!AB92*'Prevalence Rates'!AB92","v":118.30457970134744},{"$f":"'Population 2016'!AC92*'Prevalence Rates'!AC92","v":2049.8396069356295},{"$f":"'Population 2016'!AD92*'Prevalence Rates'!AD92","v":134.37614607013089},{"$f":"'Population 2016'!AE92*'Prevalence Rates'!AE92","v":87.565036228847347},{"$f":"'Population 2016'!AF92*'Prevalence Rates'!AF92","v":221.44735129115153},{"$f":"'Population 2016'!AG92*'Prevalence Rates'!AG92","v":95.049905498126705},{"$f":"'Population 2016'!AH92*'Prevalence Rates'!AH92","v":868.65160002757432},{"$f":"'Population 2016'!AI92*'Prevalence Rates'!AI92","v":655.88061802913694},{"$f":"'Population 2016'!AJ92*'Prevalence Rates'!AJ92","v":53.977454035432231},{"$f":"'Population 2016'!AK92*'Prevalence Rates'!AK92","v":3.3247730700861289},{"$f":"'Population 2016'!AL92*'Prevalence Rates'!AL92","v":449.9638074043271},{"$f":"'Population 2016'!AM92*'Prevalence Rates'!AM92","v":502.77884543404537},{"$f":"'Population 2016'!AN92*'Prevalence Rates'!AN92","v":0},{"$f":"'Population 2016'!AO92*'Prevalence Rates'!AO92","v":0},{"$f":"'Population 2016'!AP92*'Prevalence Rates'!AP92","v":32.94056341687601},{"$f":"'Population 2016'!AQ92*'Prevalence Rates'!AQ92","v":226.36612554356157},{"$f":"'Population 2016'!AR92*'Prevalence Rates'!AR92","v":5977.2043854444646},{"$f":"'Population 2016'!AS92*'Prevalence Rates'!AS92","v":52.939839323005309},{"$f":"'Population 2016'!AT92*'Prevalence Rates'!AT92","v":0},{"$f":"'Population 2016'!AU92*'Prevalence Rates'!AU92","v":0},{"$f":"'Population 2016'!AV92*'Prevalence Rates'!AV92","v":123.84803141000847},{"$f":"'Population 2016'!AW92*'Prevalence Rates'!AW92","v":348.27134552745838},{"$f":"'Population 2016'!AX92*'Prevalence Rates'!AX92","v":66.995265948621935},{"$f":"'Population 2016'!AY92*'Prevalence Rates'!AY92","v":709.10578644794657},{"$f":"'Population 2016'!AZ92*'Prevalence Rates'!AZ92","v":289.95470721569177},{"$f":"'Population 2016'!BA92*'Prevalence Rates'!BA92","v":181.34440786334889},{"$f":"'Population 2016'!BB92*'Prevalence Rates'!BB92","v":175.14508480771548},{"$f":"'Population 2016'!BC92*'Prevalence Rates'!BC92","v":0},90]
[null,"Male 70-74",{"$f":"'Population 2016'!C93*'Prevalence Rates'!C93","v":64.762056806503907},{"$f":"'Population 2016'!D93*'Prevalence Rates'!D93","v":69.980858801117336},{"$f":"'Population 2016'!E93*'Prevalence Rates'!E93","v":12.631738787647507},{"$f":"'Population 2016'!F93*'Prevalence Rates'!F93","v":31.026218330029},{"$f":"'Population 2016'!G93*'Prevalence Rates'!G93","v":36.330465835252006},{"$f":"'Population 2016'!H93*'Prevalence Rates'!H93","v":609.45218801717579},{"$f":"'Population 2016'!I93*'Prevalence Rates'!I93","v":36.793188329488693},{"$f":"'Population 2016'!J93*'Prevalence Rates'!J93","v":126.03576664271561},{"$f":"'Population 2016'!K93*'Prevalence Rates'!K93","v":72.658039018292797},{"$f":"'Population 2016'!L93*'Prevalence Rates'!L93","v":51.918906842246002},{"$f":"'Population 2016'!M93*'Prevalence Rates'!M93","v":55.189792018413179},{"$f":"'Population 2016'!N93*'Prevalence Rates'!N93","v":170.34147330963287},{"$f":"'Population 2016'!O93*'Prevalence Rates'!O93","v":185.05599734842576},{"$f":"'Population 2016'!P93*'Prevalence Rates'!P93","v":21.511597094438091},{"$f":"'Population 2016'!Q93*'Prevalence Rates'!Q93","v":17.017522454520506},{"$f":"'Population 2016'!R93*'Prevalence Rates'!R93","v":21.047618958587901},{"$f":"'Population 2016'!S93*'Prevalence Rates'!S93","v":869.85563837904658},{"$f":"'Population 2016'!T93*'Prevalence Rates'!T93","v":284.04456623103817},{"$f":"'Population 2016'!U93*'Prevalence Rates'!U93","v":0},{"$f":"'Population 2016'!V93*'Prevalence Rates'!V93","v":89.072095272368003},{"$f":"'Population 2016'!W93*'Prevalence Rates'!W93","v":326.89020186164612},{"$f":"'Population 2016'!X93*'Prevalence Rates'!X93","v":328.27718757667185},{"$f":"'Population 2016'!Y93*'Prevalence Rates'!Y93","v":256.37663530918104},{"$f":"'Population 2016'!Z93*'Prevalence Rates'!Z93","v":1034.077420160655},{"$f":"'Population 2016'!AA93*'Prevalence Rates'!AA93","v":2089.6248086387709},{"$f":"'Population 2016'!AB93*'Prevalence Rates'!AB93","v":69.165853752096666},{"$f":"'Population 2016'!AC93*'Prevalence Rates'!AC93","v":1473.4679762066276},{"$f":"'Population 2016'!AD93*'Prevalence Rates'!AD93","v":97.579905031862822},{"$f":"'Population 2016'!AE93*'Prevalence Rates'!AE93","v":56.723163862529198},{"$f":"'Population 2016'!AF93*'Prevalence Rates'!AF93","v":152.6130007875625},{"$f":"'Population 2016'!AG93*'Prevalence Rates'!AG93","v":61.571736812825918},{"$f":"'Population 2016'!AH93*'Prevalence Rates'!AH93","v":629.21431568974856},{"$f":"'Population 2016'!AI93*'Prevalence Rates'!AI93","v":468.52677005289019},{"$f":"'Population 2016'!AJ93*'Prevalence Rates'!AJ93","v":40.416615829486204},{"$f":"'Population 2016'!AK93*'Prevalence Rates'!AK93","v":2.6248208448048387},{"$f":"'Population 2016'!AL93*'Prevalence Rates'!AL93","v":345.17357843164154},{"$f":"'Population 2016'!AM93*'Prevalence Rates'!AM93","v":354.22626568075412},{"$f":"'Population 2016'!AN93*'Prevalence Rates'!AN93","v":0},{"$f":"'Population 2016'!AO93*'Prevalence Rates'!AO93","v":0},{"$f":"'Population 2016'!AP93*'Prevalence Rates'!AP93","v":24.347372960299662},{"$f":"'Population 2016'!AQ93*'Prevalence Rates'!AQ93","v":162.14131783120223},{"$f":"'Population 2016'!AR93*'Prevalence Rates'!AR93","v":4291.8417533535212},{"$f":"'Population 2016'!AS93*'Prevalence Rates'!AS93","v":36.793188329488693},{"$f":"'Population 2016'!AT93*'Prevalence Rates'!AT93","v":0},{"$f":"'Population 2016'!AU93*'Prevalence Rates'!AU93","v":0},{"$f":"'Population 2016'!AV93*'Prevalence Rates'!AV93","v":97.191217030330463},{"$f":"'Population 2016'!AW93*'Prevalence Rates'!AW93","v":262.91466893575756},{"$f":"'Population 2016'!AX93*'Prevalence Rates'!AX93","v":47.346477702206322},{"$f":"'Population 2016'!AY93*'Prevalence Rates'!AY93","v":523.8781536550556},{"$f":"'Population 2016'!AZ93*'Prevalence Rates'!AZ93","v":205.11207045521056},{"$f":"'Population 2016'!BA93*'Prevalence Rates'!BA93","v":132.73434014967273},{"$f":"'Population 2016'!BB93*'Prevalence Rates'!BB93","v":136.76060323156884},{"$f":"'Population 2016'!BC93*'Prevalence Rates'!BC93","v":0},91]
[null,"Male 75-79",{"$f":"'Population 2016'!C94*'Prevalence Rates'!C94","v":17.316134296481831},{"$f":"'Population 2016'!D94*'Prevalence Rates'!D94","v":19.931783892209442},{"$f":"'Population 2016'!E94*'Prevalence Rates'!E94","v":4.4294590323715566},{"$f":"'Population 2016'!F94*'Prevalence Rates'!F94","v":11.357670590948688},{"$f":"'Population 2016'!G94*'Prevalence Rates'!G94","v":8.4903039812071022},{"$f":"'Population 2016'!H94*'Prevalence Rates'!H94","v":192.50106489314439},{"$f":"'Population 2016'!I94*'Prevalence Rates'!I94","v":7.8272615375732197},{"$f":"'Population 2016'!J94*'Prevalence Rates'!J94","v":40.843049107409044},{"$f":"'Population 2016'!K94*'Prevalence Rates'!K94","v":21.863683818476257},{"$f":"'Population 2016'!L94*'Prevalence Rates'!L94","v":17.029525706647011},{"$f":"'Population 2016'!M94*'Prevalence Rates'!M94","v":18.102383872946181},{"$f":"'Population 2016'!N94*'Prevalence Rates'!N94","v":52.361826543439719},{"$f":"'Population 2016'!O94*'Prevalence Rates'!O94","v":63.722183664718841},{"$f":"'Population 2016'!P94*'Prevalence Rates'!P94","v":6.6343617391784031},{"$f":"'Population 2016'!Q94*'Prevalence Rates'!Q94","v":6.5702297364882138},{"$f":"'Population 2016'!R94*'Prevalence Rates'!R94","v":9.8978178242341972},{"$f":"'Population 2016'!S94*'Prevalence Rates'!S94","v":256.22950995930165},{"$f":"'Population 2016'!T94*'Prevalence Rates'!T94","v":93.308527427965416},{"$f":"'Population 2016'!U94*'Prevalence Rates'!U94","v":0},{"$f":"'Population 2016'!V94*'Prevalence Rates'!V94","v":31.104128783069772},{"$f":"'Population 2016'!W94*'Prevalence Rates'!W94","v":88.86893938019935},{"$f":"'Population 2016'!X94*'Prevalence Rates'!X94","v":89.246007731370042},{"$f":"'Population 2016'!Y94*'Prevalence Rates'!Y94","v":86.156479898736237},{"$f":"'Population 2016'!Z94*'Prevalence Rates'!Z94","v":314.18211131731505},{"$f":"'Population 2016'!AA94*'Prevalence Rates'!AA94","v":642.40404077564642},{"$f":"'Population 2016'!AB94*'Prevalence Rates'!AB94","v":19.40301779726536},{"$f":"'Population 2016'!AC94*'Prevalence Rates'!AC94","v":455.7899888163534},{"$f":"'Population 2016'!AD94*'Prevalence Rates'!AD94","v":26.508615763546633},{"$f":"'Population 2016'!AE94*'Prevalence Rates'!AE94","v":16.686775669487933},{"$f":"'Population 2016'!AF94*'Prevalence Rates'!AF94","v":46.410528533195929},{"$f":"'Population 2016'!AG94*'Prevalence Rates'!AG94","v":18.113125041233662},{"$f":"'Population 2016'!AH94*'Prevalence Rates'!AH94","v":190.93869931243586},{"$f":"'Population 2016'!AI94*'Prevalence Rates'!AI94","v":150.86304197257496},{"$f":"'Population 2016'!AJ94*'Prevalence Rates'!AJ94","v":12.494207367748078},{"$f":"'Population 2016'!AK94*'Prevalence Rates'!AK94","v":0.49618177616526671},{"$f":"'Population 2016'!AL94*'Prevalence Rates'!AL94","v":104.22340832975082},{"$f":"'Population 2016'!AM94*'Prevalence Rates'!AM94","v":112.86590722831426},{"$f":"'Population 2016'!AN94*'Prevalence Rates'!AN94","v":0},{"$f":"'Population 2016'!AO94*'Prevalence Rates'!AO94","v":0},{"$f":"'Population 2016'!AP94*'Prevalence Rates'!AP94","v":7.9562925249895198},{"$f":"'Population 2016'!AQ94*'Prevalence Rates'!AQ94","v":57.917140249470528},{"$f":"'Population 2016'!AR94*'Prevalence Rates'!AR94","v":1317.6640468107985},{"$f":"'Population 2016'!AS94*'Prevalence Rates'!AS94","v":7.8272615375732197},{"$f":"'Population 2016'!AT94*'Prevalence Rates'!AT94","v":0},{"$f":"'Population 2016'!AU94*'Prevalence Rates'!AU94","v":0},{"$f":"'Population 2016'!AV94*'Prevalence Rates'!AV94","v":29.431668484928927},{"$f":"'Population 2016'!AW94*'Prevalence Rates'!AW94","v":74.044337435708897},{"$f":"'Population 2016'!AX94*'Prevalence Rates'!AX94","v":16.685579338583999},{"$f":"'Population 2016'!AY94*'Prevalence Rates'!AY94","v":152.49260063819645},{"$f":"'Population 2016'!AZ94*'Prevalence Rates'!AZ94","v":64.908298371489224},{"$f":"'Population 2016'!BA94*'Prevalence Rates'!BA94","v":35.964701878936509},{"$f":"'Population 2016'!BB94*'Prevalence Rates'!BB94","v":42.011990373331223},{"$f":"'Population 2016'!BC94*'Prevalence Rates'!BC94","v":0},92]
[null,"Male 80-84",{"$f":"'Population 2016'!C95*'Prevalence Rates'!C95","v":12.44273123100491},{"$f":"'Population 2016'!D95*'Prevalence Rates'!D95","v":14.350884402390799},{"$f":"'Population 2016'!E95*'Prevalence Rates'!E95","v":3.2075392993035408},{"$f":"'Population 2016'!F95*'Prevalence Rates'!F95","v":6.4236005801267169},{"$f":"'Population 2016'!G95*'Prevalence Rates'!G95","v":6.5092330522587778},{"$f":"'Population 2016'!H95*'Prevalence Rates'!H95","v":129.12049143807567},{"$f":"'Population 2016'!I95*'Prevalence Rates'!I95","v":6.0044746041657575},{"$f":"'Population 2016'!J95*'Prevalence Rates'!J95","v":19.503703225448138},{"$f":"'Population 2016'!K95*'Prevalence Rates'!K95","v":9.7305406005306416},{"$f":"'Population 2016'!L95*'Prevalence Rates'!L95","v":10.794672032628705},{"$f":"'Population 2016'!M95*'Prevalence Rates'!M95","v":11.474735132577907},{"$f":"'Population 2016'!N95*'Prevalence Rates'!N95","v":33.278148797186091},{"$f":"'Population 2016'!O95*'Prevalence Rates'!O95","v":42.347655915765905},{"$f":"'Population 2016'!P95*'Prevalence Rates'!P95","v":4.2578739520100193},{"$f":"'Population 2016'!Q95*'Prevalence Rates'!Q95","v":4.200638683984268},{"$f":"'Population 2016'!R95*'Prevalence Rates'!R95","v":4.7039134214182319},{"$f":"'Population 2016'!S95*'Prevalence Rates'!S95","v":176.984378259761},{"$f":"'Population 2016'!T95*'Prevalence Rates'!T95","v":63.835902902442548},{"$f":"'Population 2016'!U95*'Prevalence Rates'!U95","v":0},{"$f":"'Population 2016'!V95*'Prevalence Rates'!V95","v":22.750448481331034},{"$f":"'Population 2016'!W95*'Prevalence Rates'!W95","v":64.429981050644528},{"$f":"'Population 2016'!X95*'Prevalence Rates'!X95","v":64.703355605243274},{"$f":"'Population 2016'!Y95*'Prevalence Rates'!Y95","v":51.98677115702781},{"$f":"'Population 2016'!Z95*'Prevalence Rates'!Z95","v":214.70217326362851},{"$f":"'Population 2016'!AA95*'Prevalence Rates'!AA95","v":424.8211370024672},{"$f":"'Population 2016'!AB95*'Prevalence Rates'!AB95","v":13.799560071330967},{"$f":"'Population 2016'!AC95*'Prevalence Rates'!AC95","v":303.29018008289131},{"$f":"'Population 2016'!AD95*'Prevalence Rates'!AD95","v":18.489995336851031},{"$f":"'Population 2016'!AE95*'Prevalence Rates'!AE95","v":11.095395340444856},{"$f":"'Population 2016'!AF95*'Prevalence Rates'!AF95","v":29.809133939305688},{"$f":"'Population 2016'!AG95*'Prevalence Rates'!AG95","v":12.043805655689399},{"$f":"'Population 2016'!AH95*'Prevalence Rates'!AH95","v":124.59830462257445},{"$f":"'Population 2016'!AI95*'Prevalence Rates'!AI95","v":99.615672752883469},{"$f":"'Population 2016'!AJ95*'Prevalence Rates'!AJ95","v":7.9704426311496368},{"$f":"'Population 2016'!AK95*'Prevalence Rates'!AK95","v":0.21264933264225716},{"$f":"'Population 2016'!AL95*'Prevalence Rates'!AL95","v":67.892008947196842},{"$f":"'Population 2016'!AM95*'Prevalence Rates'!AM95","v":74.073024364996499},{"$f":"'Population 2016'!AN95*'Prevalence Rates'!AN95","v":0},{"$f":"'Population 2016'!AO95*'Prevalence Rates'!AO95","v":0},{"$f":"'Population 2016'!AP95*'Prevalence Rates'!AP95","v":5.3041950166596799},{"$f":"'Population 2016'!AQ95*'Prevalence Rates'!AQ95","v":36.251523720213513},{"$f":"'Population 2016'!AR95*'Prevalence Rates'!AR95","v":874.65467416591457},{"$f":"'Population 2016'!AS95*'Prevalence Rates'!AS95","v":6.0044746041657575},{"$f":"'Population 2016'!AT95*'Prevalence Rates'!AT95","v":0},{"$f":"'Population 2016'!AU95*'Prevalence Rates'!AU95","v":0},{"$f":"'Population 2016'!AV95*'Prevalence Rates'!AV95","v":21.691521902853463},{"$f":"'Population 2016'!AW95*'Prevalence Rates'!AW95","v":47.867870126388901},{"$f":"'Population 2016'!AX95*'Prevalence Rates'!AX95","v":8.5345779375515853},{"$f":"'Population 2016'!AY95*'Prevalence Rates'!AY95","v":103.71441488676484},{"$f":"'Population 2016'!AZ95*'Prevalence Rates'!AZ95","v":40.843657138522133},{"$f":"'Population 2016'!BA95*'Prevalence Rates'!BA95","v":23.916526749492782},{"$f":"'Population 2016'!BB95*'Prevalence Rates'!BB95","v":26.36046454797253},{"$f":"'Population 2016'!BC95*'Prevalence Rates'!BC95","v":0},93]
[null,"Male 85-89",{"$f":"'Population 2016'!C96*'Prevalence Rates'!C96","v":6.4287444693525364},{"$f":"'Population 2016'!D96*'Prevalence Rates'!D96","v":7.3526136135705942},{"$f":"'Population 2016'!E96*'Prevalence Rates'!E96","v":1.6037696496517704},{"$f":"'Population 2016'!F96*'Prevalence Rates'!F96","v":3.4445394415172252},{"$f":"'Population 2016'!G96*'Prevalence Rates'!G96","v":3.6791317251897437},{"$f":"'Population 2016'!H96*'Prevalence Rates'!H96","v":60.592257194778036},{"$f":"'Population 2016'!I96*'Prevalence Rates'!I96","v":4.0744649099696213},{"$f":"'Population 2016'!J96*'Prevalence Rates'!J96","v":11.931677267332979},{"$f":"'Population 2016'!K96*'Prevalence Rates'!K96","v":6.6071571978911772},{"$f":"'Population 2016'!L96*'Prevalence Rates'!L96","v":6.2348536740183036},{"$f":"'Population 2016'!M96*'Prevalence Rates'!M96","v":6.627648740368274},{"$f":"'Population 2016'!N96*'Prevalence Rates'!N96","v":17.664230641160387},{"$f":"'Population 2016'!O96*'Prevalence Rates'!O96","v":20.87277827127798},{"$f":"'Population 2016'!P96*'Prevalence Rates'!P96","v":2.2774674627030338},{"$f":"'Population 2016'!Q96*'Prevalence Rates'!Q96","v":1.0770868420472481},{"$f":"'Population 2016'!R96*'Prevalence Rates'!R96","v":2.3519567107091159},{"$f":"'Population 2016'!S96*'Prevalence Rates'!S96","v":84.836375727187999},{"$f":"'Population 2016'!T96*'Prevalence Rates'!T96","v":30.116131611232976},{"$f":"'Population 2016'!U96*'Prevalence Rates'!U96","v":0},{"$f":"'Population 2016'!V96*'Prevalence Rates'!V96","v":9.2423696955407326},{"$f":"'Population 2016'!W96*'Prevalence Rates'!W96","v":30.837521964929174},{"$f":"'Population 2016'!X96*'Prevalence Rates'!X96","v":30.968364682785403},{"$f":"'Population 2016'!Y96*'Prevalence Rates'!Y96","v":25.383212208126256},{"$f":"'Population 2016'!Z96*'Prevalence Rates'!Z96","v":102.70426397725691},{"$f":"'Population 2016'!AA96*'Prevalence Rates'!AA96","v":201.37625325441627},{"$f":"'Population 2016'!AB96*'Prevalence Rates'!AB96","v":7.2761316739745103},{"$f":"'Population 2016'!AC96*'Prevalence Rates'!AC96","v":145.48211842006384},{"$f":"'Population 2016'!AD96*'Prevalence Rates'!AD96","v":9.8110179338393237},{"$f":"'Population 2016'!AE96*'Prevalence Rates'!AE96","v":5.6787456466843755},{"$f":"'Population 2016'!AF96*'Prevalence Rates'!AF96","v":12.932578109052622},{"$f":"'Population 2016'!AG96*'Prevalence Rates'!AG96","v":6.1641525009433931},{"$f":"'Population 2016'!AH96*'Prevalence Rates'!AH96","v":57.537688518709714},{"$f":"'Population 2016'!AI96*'Prevalence Rates'!AI96","v":46.52570149383228},{"$f":"'Population 2016'!AJ96*'Prevalence Rates'!AJ96","v":6.0316863154645901},{"$f":"'Population 2016'!AK96*'Prevalence Rates'!AK96","v":0.28353244352300955},{"$f":"'Population 2016'!AL96*'Prevalence Rates'!AL96","v":30.704313956299831},{"$f":"'Population 2016'!AM96*'Prevalence Rates'!AM96","v":31.996491967972716},{"$f":"'Population 2016'!AN96*'Prevalence Rates'!AN96","v":0},{"$f":"'Population 2016'!AO96*'Prevalence Rates'!AO96","v":0},{"$f":"'Population 2016'!AP96*'Prevalence Rates'!AP96","v":2.6520975083298399},{"$f":"'Population 2016'!AQ96*'Prevalence Rates'!AQ96","v":19.277280848866479},{"$f":"'Population 2016'!AR96*'Prevalence Rates'!AR96","v":421.3229369168638},{"$f":"'Population 2016'!AS96*'Prevalence Rates'!AS96","v":4.0744649099696213},{"$f":"'Population 2016'!AT96*'Prevalence Rates'!AT96","v":0},{"$f":"'Population 2016'!AU96*'Prevalence Rates'!AU96","v":0},{"$f":"'Population 2016'!AV96*'Prevalence Rates'!AV96","v":10.129080712345671},{"$f":"'Population 2016'!AW96*'Prevalence Rates'!AW96","v":24.4639881395514},{"$f":"'Population 2016'!AX96*'Prevalence Rates'!AX96","v":4.6988125723598619},{"$f":"'Population 2016'!AY96*'Prevalence Rates'!AY96","v":51.857207443382421},{"$f":"'Population 2016'!AZ96*'Prevalence Rates'!AZ96","v":21.562507282138711},{"$f":"'Population 2016'!BA96*'Prevalence Rates'!BA96","v":10.789410563680953},{"$f":"'Population 2016'!BB96*'Prevalence Rates'!BB96","v":10.708938722613841},{"$f":"'Population 2016'!BC96*'Prevalence Rates'!BC96","v":0},94]
[null,"Male 90+",{"$f":"'Population 2016'!C97*'Prevalence Rates'!C97","v":2.5922356731260225},{"$f":"'Population 2016'!D97*'Prevalence Rates'!D97","v":3.543428247503901},{"$f":"'Population 2016'!E97*'Prevalence Rates'!E97","v":1.1455497497512646},{"$f":"'Population 2016'!F97*'Prevalence Rates'!F97","v":1.0240522663970129},{"$f":"'Population 2016'!G97*'Prevalence Rates'!G97","v":1.1320405308276136},{"$f":"'Population 2016'!H97*'Prevalence Rates'!H97","v":23.057230613942085},{"$f":"'Population 2016'!I97*'Prevalence Rates'!I97","v":1.5011186510414394},{"$f":"'Population 2016'!J97*'Prevalence Rates'!J97","v":5.1627449714421543},{"$f":"'Population 2016'!K97*'Prevalence Rates'!K97","v":3.4837737952517114},{"$f":"'Population 2016'!L97*'Prevalence Rates'!L97","v":2.4194954555891925},{"$f":"'Population 2016'!M97*'Prevalence Rates'!M97","v":2.5719233917847033},{"$f":"'Population 2016'!N97*'Prevalence Rates'!N97","v":7.1760936979714076},{"$f":"'Population 2016'!O97*'Prevalence Rates'!O97","v":8.1283415383342135},{"$f":"'Population 2016'!P97*'Prevalence Rates'!P97","v":0.8911829201881436},{"$f":"'Population 2016'!Q97*'Prevalence Rates'!Q97","v":0.75396078943307376},{"$f":"'Population 2016'!R97*'Prevalence Rates'!R97","v":1.0779801590750115},{"$f":"'Population 2016'!S97*'Prevalence Rates'!S97","v":39.891375658791816},{"$f":"'Population 2016'!T97*'Prevalence Rates'!T97","v":14.157155885622339},{"$f":"'Population 2016'!U97*'Prevalence Rates'!U97","v":0},{"$f":"'Population 2016'!V97*'Prevalence Rates'!V97","v":4.6211848477703663},{"$f":"'Population 2016'!W97*'Prevalence Rates'!W97","v":13.8635545433111},{"$f":"'Population 2016'!X97*'Prevalence Rates'!X97","v":13.922377206093726},{"$f":"'Population 2016'!Y97*'Prevalence Rates'!Y97","v":11.837363385520417},{"$f":"'Population 2016'!Z97*'Prevalence Rates'!Z97","v":44.002565545195949},{"$f":"'Population 2016'!AA97*'Prevalence Rates'!AA97","v":88.015905210941369},{"$f":"'Population 2016'!AB97*'Prevalence Rates'!AB97","v":3.5126152908842463},{"$f":"'Population 2016'!AC97*'Prevalence Rates'!AC97","v":64.14888709555072},{"$f":"'Population 2016'!AD97*'Prevalence Rates'!AD97","v":3.1131114597759391},{"$f":"'Population 2016'!AE97*'Prevalence Rates'!AE97","v":1.8346716704672597},{"$f":"'Population 2016'!AF97*'Prevalence Rates'!AF97","v":5.7783859636192565},{"$f":"'Population 2016'!AG97*'Prevalence Rates'!AG97","v":1.9914954233817117},{"$f":"'Population 2016'!AH97*'Prevalence Rates'!AH97","v":24.647577279224748},{"$f":"'Population 2016'!AI97*'Prevalence Rates'!AI97","v":23.147688119456159},{"$f":"'Population 2016'!AJ97*'Prevalence Rates'!AJ97","v":3.2312605261417446},{"$f":"'Population 2016'!AK97*'Prevalence Rates'!AK97","v":0.14176622176150477},{"$f":"'Population 2016'!AL97*'Prevalence Rates'!AL97","v":11.254170852508304},{"$f":"'Population 2016'!AM97*'Prevalence Rates'!AM97","v":14.356421217133343},{"$f":"'Population 2016'!AN97*'Prevalence Rates'!AN97","v":0},{"$f":"'Population 2016'!AO97*'Prevalence Rates'!AO97","v":0},{"$f":"'Population 2016'!AP97*'Prevalence Rates'!AP97","v":0.74590242421776742},{"$f":"'Population 2016'!AQ97*'Prevalence Rates'!AQ97","v":8.0179840698825178},{"$f":"'Population 2016'!AR97*'Prevalence Rates'!AR97","v":181.44633561085885},{"$f":"'Population 2016'!AS97*'Prevalence Rates'!AS97","v":1.5011186510414394},{"$f":"'Population 2016'!AT97*'Prevalence Rates'!AT97","v":0},{"$f":"'Population 2016'!AU97*'Prevalence Rates'!AU97","v":0},{"$f":"'Population 2016'!AV97*'Prevalence Rates'!AV97","v":4.0134093388539451},{"$f":"'Population 2016'!AW97*'Prevalence Rates'!AW97","v":9.7855952558205601},{"$f":"'Population 2016'!AX97*'Prevalence Rates'!AX97","v":1.5343061460766896},{"$f":"'Population 2016'!AY97*'Prevalence Rates'!AY97","v":21.634178730286106},{"$f":"'Population 2016'!AZ97*'Prevalence Rates'!AZ97","v":8.1687314277044258},{"$f":"'Population 2016'!BA97*'Prevalence Rates'!BA97","v":6.4736463382085718},{"$f":"'Population 2016'!BB97*'Prevalence Rates'!BB97","v":5.5604104905879552},{"$f":"'Population 2016'!BC97*'Prevalence Rates'!BC97","v":0},95]
["SIMD Q2","Female 0-4",{"$f":"'Population 2016'!C98*'Prevalence Rates'!C98","v":0},{"$f":"'Population 2016'!D98*'Prevalence Rates'!D98","v":0},{"$f":"'Population 2016'!E98*'Prevalence Rates'!E98","v":0},{"$f":"'Population 2016'!F98*'Prevalence Rates'!F98","v":0},{"$f":"'Population 2016'!G98*'Prevalence Rates'!G98","v":0},{"$f":"'Population 2016'!H98*'Prevalence Rates'!H98","v":0},{"$f":"'Population 2016'!I98*'Prevalence Rates'!I98","v":0},{"$f":"'Population 2016'!J98*'Prevalence Rates'!J98","v":0},{"$f":"'Population 2016'!K98*'Prevalence Rates'!K98","v":0},{"$f":"'Population 2016'!L98*'Prevalence Rates'!L98","v":0},{"$f":"'Population 2016'!M98*'Prevalence Rates'!M98","v":0},{"$f":"'Population 2016'!N98*'Prevalence Rates'!N98","v":0},{"$f":"'Population 2016'!O98*'Prevalence Rates'!O98","v":0},{"$f":"'Population 2016'!P98*'Prevalence Rates'!P98","v":0},{"$f":"'Population 2016'!Q98*'Prevalence Rates'!Q98","v":0},{"$f":"'Population 2016'!R98*'Prevalence Rates'!R98","v":0},{"$f":"'Population 2016'!S98*'Prevalence Rates'!S98","v":0},{"$f":"'Population 2016'!T98*'Prevalence Rates'!T98","v":0},{"$f":"'Population 2016'!U98*'Prevalence Rates'!U98","v":0},{"$f":"'Population 2016'!V98*'Prevalence Rates'!V98","v":0},{"$f":"'Population 2016'!W98*'Prevalence Rates'!W98","v":0},{"$f":"'Population 2016'!X98*'Prevalence Rates'!X98","v":0},{"$f":"'Population 2016'!Y98*'Prevalence Rates'!Y98","v":0},{"$f":"'Population 2016'!Z98*'Prevalence Rates'!Z98","v":0},{"$f":"'Population 2016'!AA98*'Prevalence Rates'!AA98","v":0},{"$f":"'Population 2016'!AB98*'Prevalence Rates'!AB98","v":0},{"$f":"'Population 2016'!AC98*'Prevalence Rates'!AC98","v":0},{"$f":"'Population 2016'!AD98*'Prevalence Rates'!AD98","v":0},{"$f":"'Population 2016'!AE98*'Prevalence Rates'!AE98","v":0},{"$f":"'Population 2016'!AF98*'Prevalence Rates'!AF98","v":0},{"$f":"'Population 2016'!AG98*'Prevalence Rates'!AG98","v":0},{"$f":"'Population 2016'!AH98*'Prevalence Rates'!AH98","v":0},{"$f":"'Population 2016'!AI98*'Prevalence Rates'!AI98","v":0},{"$f":"'Population 2016'!AJ98*'Prevalence Rates'!AJ98","v":0},{"$f":"'Population 2016'!AK98*'Prevalence Rates'!AK98","v":0},{"$f":"'Population 2016'!AL98*'Prevalence Rates'!AL98","v":0},{"$f":"'Population 2016'!AM98*'Prevalence Rates'!AM98","v":0},{"$f":"'Population 2016'!AN98*'Prevalence Rates'!AN98","v":0},{"$f":"'Population 2016'!AO98*'Prevalence Rates'!AO98","v":0},{"$f":"'Population 2016'!AP98*'Prevalence Rates'!AP98","v":0},{"$f":"'Population 2016'!AQ98*'Prevalence Rates'!AQ98","v":0},{"$f":"'Population 2016'!AR98*'Prevalence Rates'!AR98","v":0},{"$f":"'Population 2016'!AS98*'Prevalence Rates'!AS98","v":0},{"$f":"'Population 2016'!AT98*'Prevalence Rates'!AT98","v":0},{"$f":"'Population 2016'!AU98*'Prevalence Rates'!AU98","v":0},{"$f":"'Population 2016'!AV98*'Prevalence Rates'!AV98","v":0},{"$f":"'Population 2016'!AW98*'Prevalence Rates'!AW98","v":0},{"$f":"'Population 2016'!AX98*'Prevalence Rates'!AX98","v":0},{"$f":"'Population 2016'!AY98*'Prevalence Rates'!AY98","v":0},{"$f":"'Population 2016'!AZ98*'Prevalence Rates'!AZ98","v":0},{"$f":"'Population 2016'!BA98*'Prevalence Rates'!BA98","v":0},{"$f":"'Population 2016'!BB98*'Prevalence Rates'!BB98","v":0},{"$f":"'Population 2016'!BC98*'Prevalence Rates'!BC98","v":0},96]
[null,"Female 5-9",{"$f":"'Population 2016'!C99*'Prevalence Rates'!C99","v":0},{"$f":"'Population 2016'!D99*'Prevalence Rates'!D99","v":0},{"$f":"'Population 2016'!E99*'Prevalence Rates'!E99","v":0},{"$f":"'Population 2016'!F99*'Prevalence Rates'!F99","v":0},{"$f":"'Population 2016'!G99*'Prevalence Rates'!G99","v":0},{"$f":"'Population 2016'!H99*'Prevalence Rates'!H99","v":0},{"$f":"'Population 2016'!I99*'Prevalence Rates'!I99","v":0},{"$f":"'Population 2016'!J99*'Prevalence Rates'!J99","v":0},{"$f":"'Population 2016'!K99*'Prevalence Rates'!K99","v":0},{"$f":"'Population 2016'!L99*'Prevalence Rates'!L99","v":0},{"$f":"'Population 2016'!M99*'Prevalence Rates'!M99","v":0},{"$f":"'Population 2016'!N99*'Prevalence Rates'!N99","v":0},{"$f":"'Population 2016'!O99*'Prevalence Rates'!O99","v":0},{"$f":"'Population 2016'!P99*'Prevalence Rates'!P99","v":0},{"$f":"'Population 2016'!Q99*'Prevalence Rates'!Q99","v":0},{"$f":"'Population 2016'!R99*'Prevalence Rates'!R99","v":0},{"$f":"'Population 2016'!S99*'Prevalence Rates'!S99","v":0},{"$f":"'Population 2016'!T99*'Prevalence Rates'!T99","v":0},{"$f":"'Population 2016'!U99*'Prevalence Rates'!U99","v":0},{"$f":"'Population 2016'!V99*'Prevalence Rates'!V99","v":0},{"$f":"'Population 2016'!W99*'Prevalence Rates'!W99","v":0},{"$f":"'Population 2016'!X99*'Prevalence Rates'!X99","v":0},{"$f":"'Population 2016'!Y99*'Prevalence Rates'!Y99","v":0},{"$f":"'Population 2016'!Z99*'Prevalence Rates'!Z99","v":0},{"$f":"'Population 2016'!AA99*'Prevalence Rates'!AA99","v":0},{"$f":"'Population 2016'!AB99*'Prevalence Rates'!AB99","v":0},{"$f":"'Population 2016'!AC99*'Prevalence Rates'!AC99","v":0},{"$f":"'Population 2016'!AD99*'Prevalence Rates'!AD99","v":0},{"$f":"'Population 2016'!AE99*'Prevalence Rates'!AE99","v":0},{"$f":"'Population 2016'!AF99*'Prevalence Rates'!AF99","v":0},{"$f":"'Population 2016'!AG99*'Prevalence Rates'!AG99","v":0},{"$f":"'Population 2016'!AH99*'Prevalence Rates'!AH99","v":0},{"$f":"'Population 2016'!AI99*'Prevalence Rates'!AI99","v":0},{"$f":"'Population 2016'!AJ99*'Prevalence Rates'!AJ99","v":0},{"$f":"'Population 2016'!AK99*'Prevalence Rates'!AK99","v":0},{"$f":"'Population 2016'!AL99*'Prevalence Rates'!AL99","v":0},{"$f":"'Population 2016'!AM99*'Prevalence Rates'!AM99","v":0},{"$f":"'Population 2016'!AN99*'Prevalence Rates'!AN99","v":0},{"$f":"'Population 2016'!AO99*'Prevalence Rates'!AO99","v":0},{"$f":"'Population 2016'!AP99*'Prevalence Rates'!AP99","v":0},{"$f":"'Population 2016'!AQ99*'Prevalence Rates'!AQ99","v":0},{"$f":"'Population 2016'!AR99*'Prevalence Rates'!AR99","v":0},{"$f":"'Population 2016'!AS99*'Prevalence Rates'!AS99","v":0},{"$f":"'Population 2016'!AT99*'Prevalence Rates'!AT99","v":0},{"$f":"'Population 2016'!AU99*'Prevalence Rates'!AU99","v":0},{"$f":"'Population 2016'!AV99*'Prevalence Rates'!AV99","v":0},{"$f":"'Population 2016'!AW99*'Prevalence Rates'!AW99","v":0},{"$f":"'Population 2016'!AX99*'Prevalence Rates'!AX99","v":0},{"$f":"'Population 2016'!AY99*'Prevalence Rates'!AY99","v":0},{"$f":"'Population 2016'!AZ99*'Prevalence Rates'!AZ99","v":0},{"$f":"'Population 2016'!BA99*'Prevalence Rates'!BA99","v":0},{"$f":"'Population 2016'!BB99*'Prevalence Rates'!BB99","v":0},{"$f":"'Population 2016'!BC99*'Prevalence Rates'!BC99","v":0},97]
[null,"Female 10-15",{"$f":"'Population 2016'!C100*'Prevalence Rates'!C100","v":0},{"$f":"'Population 2016'!D100*'Prevalence Rates'!D100","v":0},{"$f":"'Population 2016'!E100*'Prevalence Rates'!E100","v":0},{"$f":"'Population 2016'!F100*'Prevalence Rates'!F100","v":0},{"$f":"'Population 2016'!G100*'Prevalence Rates'!G100","v":0},{"$f":"'Population 2016'!H100*'Prevalence Rates'!H100","v":0},{"$f":"'Population 2016'!I100*'Prevalence Rates'!I100","v":0},{"$f":"'Population 2016'!J100*'Prevalence Rates'!J100","v":0},{"$f":"'Population 2016'!K100*'Prevalence Rates'!K100","v":0},{"$f":"'Population 2016'!L100*'Prevalence Rates'!L100","v":0},{"$f":"'Population 2016'!M100*'Prevalence Rates'!M100","v":0},{"$f":"'Population 2016'!N100*'Prevalence Rates'!N100","v":0},{"$f":"'Population 2016'!O100*'Prevalence Rates'!O100","v":0},{"$f":"'Population 2016'!P100*'Prevalence Rates'!P100","v":0},{"$f":"'Population 2016'!Q100*'Prevalence Rates'!Q100","v":0},{"$f":"'Population 2016'!R100*'Prevalence Rates'!R100","v":0},{"$f":"'Population 2016'!S100*'Prevalence Rates'!S100","v":0},{"$f":"'Population 2016'!T100*'Prevalence Rates'!T100","v":0},{"$f":"'Population 2016'!U100*'Prevalence Rates'!U100","v":0},{"$f":"'Population 2016'!V100*'Prevalence Rates'!V100","v":0},{"$f":"'Population 2016'!W100*'Prevalence Rates'!W100","v":0},{"$f":"'Population 2016'!X100*'Prevalence Rates'!X100","v":0},{"$f":"'Population 2016'!Y100*'Prevalence Rates'!Y100","v":0},{"$f":"'Population 2016'!Z100*'Prevalence Rates'!Z100","v":0},{"$f":"'Population 2016'!AA100*'Prevalence Rates'!AA100","v":0},{"$f":"'Population 2016'!AB100*'Prevalence Rates'!AB100","v":0},{"$f":"'Population 2016'!AC100*'Prevalence Rates'!AC100","v":0},{"$f":"'Population 2016'!AD100*'Prevalence Rates'!AD100","v":0},{"$f":"'Population 2016'!AE100*'Prevalence Rates'!AE100","v":0},{"$f":"'Population 2016'!AF100*'Prevalence Rates'!AF100","v":0},{"$f":"'Population 2016'!AG100*'Prevalence Rates'!AG100","v":0},{"$f":"'Population 2016'!AH100*'Prevalence Rates'!AH100","v":0},{"$f":"'Population 2016'!AI100*'Prevalence Rates'!AI100","v":0},{"$f":"'Population 2016'!AJ100*'Prevalence Rates'!AJ100","v":0},{"$f":"'Population 2016'!AK100*'Prevalence Rates'!AK100","v":0},{"$f":"'Population 2016'!AL100*'Prevalence Rates'!AL100","v":0},{"$f":"'Population 2016'!AM100*'Prevalence Rates'!AM100","v":0},{"$f":"'Population 2016'!AN100*'Prevalence Rates'!AN100","v":0},{"$f":"'Population 2016'!AO100*'Prevalence Rates'!AO100","v":0},{"$f":"'Population 2016'!AP100*'Prevalence Rates'!AP100","v":0},{"$f":"'Population 2016'!AQ100*'Prevalence Rates'!AQ100","v":0},{"$f":"'Population 2016'!AR100*'Prevalence Rates'!AR100","v":0},{"$f":"'Population 2016'!AS100*'Prevalence Rates'!AS100","v":0},{"$f":"'Population 2016'!AT100*'Prevalence Rates'!AT100","v":0},{"$f":"'Population 2016'!AU100*'Prevalence Rates'!AU100","v":0},{"$f":"'Population 2016'!AV100*'Prevalence Rates'!AV100","v":0},{"$f":"'Population 2016'!AW100*'Prevalence Rates'!AW100","v":0},{"$f":"'Population 2016'!AX100*'Prevalence Rates'!AX100","v":0},{"$f":"'Population 2016'!AY100*'Prevalence Rates'!AY100","v":0},{"$f":"'Population 2016'!AZ100*'Prevalence Rates'!AZ100","v":0},{"$f":"'Population 2016'!BA100*'Prevalence Rates'!BA100","v":0},{"$f":"'Population 2016'!BB100*'Prevalence Rates'!BB100","v":0},{"$f":"'Population 2016'!BC100*'Prevalence Rates'!BC100","v":0},98]
[null,"Female 16-19",{"$f":"'Population 2016'!C101*'Prevalence Rates'!C101","v":266.06094066682374},{"$f":"'Population 2016'!D101*'Prevalence Rates'!D101","v":316.01706900096156},{"$f":"'Population 2016'!E101*'Prevalence Rates'!E101","v":76.420617131553513},{"$f":"'Population 2016'!F101*'Prevalence Rates'!F101","v":75.407172525139259},{"$f":"'Population 2016'!G101*'Prevalence Rates'!G101","v":70.680900325633147},{"$f":"'Population 2016'!H101*'Prevalence Rates'!H101","v":427.14286731793419},{"$f":"'Population 2016'!I101*'Prevalence Rates'!I101","v":82.121994486728127},{"$f":"'Population 2016'!J101*'Prevalence Rates'!J101","v":182.65326467839725},{"$f":"'Population 2016'!K101*'Prevalence Rates'!K101","v":76.268755964691863},{"$f":"'Population 2016'!L101*'Prevalence Rates'!L101","v":188.06781256268704},{"$f":"'Population 2016'!M101*'Prevalence Rates'!M101","v":193.67243714453258},{"$f":"'Population 2016'!N101*'Prevalence Rates'!N101","v":151.27987478614941},{"$f":"'Population 2016'!O101*'Prevalence Rates'!O101","v":118.42283699030159},{"$f":"'Population 2016'!P101*'Prevalence Rates'!P101","v":78.908543599202858},{"$f":"'Population 2016'!Q101*'Prevalence Rates'!Q101","v":151.30123705749949},{"$f":"'Population 2016'!R101*'Prevalence Rates'!R101","v":47.257205776681381},{"$f":"'Population 2016'!S101*'Prevalence Rates'!S101","v":1517.3370774339003},{"$f":"'Population 2016'!T101*'Prevalence Rates'!T101","v":492.79770822914332},{"$f":"'Population 2016'!U101*'Prevalence Rates'!U101","v":27.241838102054743},{"$f":"'Population 2016'!V101*'Prevalence Rates'!V101","v":227.7448975385139},{"$f":"'Population 2016'!W101*'Prevalence Rates'!W101","v":324.88432604755945},{"$f":"'Population 2016'!X101*'Prevalence Rates'!X101","v":336.71154721959971},{"$f":"'Population 2016'!Y101*'Prevalence Rates'!Y101","v":404.8267290680036},{"$f":"'Population 2016'!Z101*'Prevalence Rates'!Z101","v":568.76602723640428},{"$f":"'Population 2016'!AA101*'Prevalence Rates'!AA101","v":1890.5357010211749},{"$f":"'Population 2016'!AB101*'Prevalence Rates'!AB101","v":367.92864340044412},{"$f":"'Population 2016'!AC101*'Prevalence Rates'!AC101","v":991.0963701364941},{"$f":"'Population 2016'!AD101*'Prevalence Rates'!AD101","v":311.39841495777165},{"$f":"'Population 2016'!AE101*'Prevalence Rates'!AE101","v":175.44559753485845},{"$f":"'Population 2016'!AF101*'Prevalence Rates'!AF101","v":56.268633993854984},{"$f":"'Population 2016'!AG101*'Prevalence Rates'!AG101","v":226.70099461276072},{"$f":"'Population 2016'!AH101*'Prevalence Rates'!AH101","v":908.91226007182001},{"$f":"'Population 2016'!AI101*'Prevalence Rates'!AI101","v":1126.8786056120919},{"$f":"'Population 2016'!AJ101*'Prevalence Rates'!AJ101","v":208.31329739800657},{"$f":"'Population 2016'!AK101*'Prevalence Rates'!AK101","v":48.65387135967331},{"$f":"'Population 2016'!AL101*'Prevalence Rates'!AL101","v":152.15371174783434},{"$f":"'Population 2016'!AM101*'Prevalence Rates'!AM101","v":483.40903903910402},{"$f":"'Population 2016'!AN101*'Prevalence Rates'!AN101","v":12.471524333893157},{"$f":"'Population 2016'!AO101*'Prevalence Rates'!AO101","v":12.471524333893157},{"$f":"'Population 2016'!AP101*'Prevalence Rates'!AP101","v":75.572727345892559},{"$f":"'Population 2016'!AQ101*'Prevalence Rates'!AQ101","v":195.48536152262255},{"$f":"'Population 2016'!AR101*'Prevalence Rates'!AR101","v":5406.9850187140128},{"$f":"'Population 2016'!AS101*'Prevalence Rates'!AS101","v":82.121994486728127},{"$f":"'Population 2016'!AT101*'Prevalence Rates'!AT101","v":3.3004877409595443},{"$f":"'Population 2016'!AU101*'Prevalence Rates'!AU101","v":3.3004877409595443},{"$f":"'Population 2016'!AV101*'Prevalence Rates'!AV101","v":150.25266634294394},{"$f":"'Population 2016'!AW101*'Prevalence Rates'!AW101","v":431.50206234806086},{"$f":"'Population 2016'!AX101*'Prevalence Rates'!AX101","v":72.993685387546435},{"$f":"'Population 2016'!AY101*'Prevalence Rates'!AY101","v":607.7986063219322},{"$f":"'Population 2016'!AZ101*'Prevalence Rates'!AZ101","v":284.36321383386769},{"$f":"'Population 2016'!BA101*'Prevalence Rates'!BA101","v":129.71574842052149},{"$f":"'Population 2016'!BB101*'Prevalence Rates'!BB101","v":244.14011776223992},{"$f":"'Population 2016'!BC101*'Prevalence Rates'!BC101","v":15.134533438737748},99]
[null,"Female 20-24",{"$f":"'Population 2016'!C102*'Prevalence Rates'!C102","v":608.41672876156883},{"$f":"'Population 2016'!D102*'Prevalence Rates'!D102","v":656.52428343865927},{"$f":"'Population 2016'!E102*'Prevalence Rates'!E102","v":118.72132426442386},{"$f":"'Population 2016'!F102*'Prevalence Rates'!F102","v":146.72248297527096},{"$f":"'Population 2016'!G102*'Prevalence Rates'!G102","v":91.80971038738825},{"$f":"'Population 2016'!H102*'Prevalence Rates'!H102","v":578.62017002137054},{"$f":"'Population 2016'!I102*'Prevalence Rates'!I102","v":125.45155511370346},{"$f":"'Population 2016'!J102*'Prevalence Rates'!J102","v":291.79283149861601},{"$f":"'Population 2016'!K102*'Prevalence Rates'!K102","v":87.164292531076413},{"$f":"'Population 2016'!L102*'Prevalence Rates'!L102","v":235.08476570335881},{"$f":"'Population 2016'!M102*'Prevalence Rates'!M102","v":242.09054643066571},{"$f":"'Population 2016'!N102*'Prevalence Rates'!N102","v":367.1028099226769},{"$f":"'Population 2016'!O102*'Prevalence Rates'!O102","v":153.43480618743425},{"$f":"'Population 2016'!P102*'Prevalence Rates'!P102","v":112.97769194983363},{"$f":"'Population 2016'!Q102*'Prevalence Rates'!Q102","v":254.63559642466853},{"$f":"'Population 2016'!R102*'Prevalence Rates'!R102","v":60.005661288530312},{"$f":"'Population 2016'!S102*'Prevalence Rates'!S102","v":2586.6324607701195},{"$f":"'Population 2016'!T102*'Prevalence Rates'!T102","v":1259.3037326104634},{"$f":"'Population 2016'!U102*'Prevalence Rates'!U102","v":33.244277005897317},{"$f":"'Population 2016'!V102*'Prevalence Rates'!V102","v":319.43121796844309},{"$f":"'Population 2016'!W102*'Prevalence Rates'!W102","v":439.43891500074511},{"$f":"'Population 2016'!X102*'Prevalence Rates'!X102","v":455.43642803113482},{"$f":"'Population 2016'!Y102*'Prevalence Rates'!Y102","v":600.17169039605608},{"$f":"'Population 2016'!Z102*'Prevalence Rates'!Z102","v":1082.1004633135756},{"$f":"'Population 2016'!AA102*'Prevalence Rates'!AA102","v":2848.5562775623193},{"$f":"'Population 2016'!AB102*'Prevalence Rates'!AB102","v":761.35729178903784},{"$f":"'Population 2016'!AC102*'Prevalence Rates'!AC102","v":1613.097794144589},{"$f":"'Population 2016'!AD102*'Prevalence Rates'!AD102","v":400.69279081399856},{"$f":"'Population 2016'!AE102*'Prevalence Rates'!AE102","v":225.1276841931099},{"$f":"'Population 2016'!AF102*'Prevalence Rates'!AF102","v":70.396689282355368},{"$f":"'Population 2016'!AG102*'Prevalence Rates'!AG102","v":290.89741001512033},{"$f":"'Population 2016'!AH102*'Prevalence Rates'!AH102","v":1242.0871529509075},{"$f":"'Population 2016'!AI102*'Prevalence Rates'!AI102","v":2093.7822063713907},{"$f":"'Population 2016'!AJ102*'Prevalence Rates'!AJ102","v":261.21391107934244},{"$f":"'Population 2016'!AK102*'Prevalence Rates'!AK102","v":98.728293707950215},{"$f":"'Population 2016'!AL102*'Prevalence Rates'!AL102","v":206.66867798903704},{"$f":"'Population 2016'!AM102*'Prevalence Rates'!AM102","v":616.58866955761857},{"$f":"'Population 2016'!AN102*'Prevalence Rates'!AN102","v":22.397839620053016},{"$f":"'Population 2016'!AO102*'Prevalence Rates'!AO102","v":22.397839620053016},{"$f":"'Population 2016'!AP102*'Prevalence Rates'!AP102","v":120.24831754484562},{"$f":"'Population 2016'!AQ102*'Prevalence Rates'!AQ102","v":248.56416829366577},{"$f":"'Population 2016'!AR102*'Prevalence Rates'!AR102","v":8629.0532505310475},{"$f":"'Population 2016'!AS102*'Prevalence Rates'!AS102","v":125.45155511370346},{"$f":"'Population 2016'!AT102*'Prevalence Rates'!AT102","v":6.129477233210582},{"$f":"'Population 2016'!AU102*'Prevalence Rates'!AU102","v":6.129477233210582},{"$f":"'Population 2016'!AV102*'Prevalence Rates'!AV102","v":213.27811363444729},{"$f":"'Population 2016'!AW102*'Prevalence Rates'!AW102","v":639.9608092516404},{"$f":"'Population 2016'!AX102*'Prevalence Rates'!AX102","v":151.05317859378695},{"$f":"'Population 2016'!AY102*'Prevalence Rates'!AY102","v":1033.2985048970038},{"$f":"'Population 2016'!AZ102*'Prevalence Rates'!AZ102","v":592.00527932950581},{"$f":"'Population 2016'!BA102*'Prevalence Rates'!BA102","v":175.80193286802046},{"$f":"'Population 2016'!BB102*'Prevalence Rates'!BB102","v":325.59578902306157},{"$f":"'Population 2016'!BC102*'Prevalence Rates'!BC102","v":18.469261145578269},100]
[null,"Female 25-29",{"$f":"'Population 2016'!C103*'Prevalence Rates'!C103","v":440.82316739299148},{"$f":"'Population 2016'!D103*'Prevalence Rates'!D103","v":473.80893232357806},{"$f":"'Population 2016'!E103*'Prevalence Rates'!E103","v":84.433883546662614},{"$f":"'Population 2016'!F103*'Prevalence Rates'!F103","v":96.215882216036391},{"$f":"'Population 2016'!G103*'Prevalence Rates'!G103","v":68.505095375565119},{"$f":"'Population 2016'!H103*'Prevalence Rates'!H103","v":395.7130918336747},{"$f":"'Population 2016'!I103*'Prevalence Rates'!I103","v":80.839254219230838},{"$f":"'Population 2016'!J103*'Prevalence Rates'!J103","v":183.3379869049034},{"$f":"'Population 2016'!K103*'Prevalence Rates'!K103","v":64.021205493351218},{"$f":"'Population 2016'!L103*'Prevalence Rates'!L103","v":145.12436983402492},{"$f":"'Population 2016'!M103*'Prevalence Rates'!M103","v":149.44923329424893},{"$f":"'Population 2016'!N103*'Prevalence Rates'!N103","v":215.72965432072559},{"$f":"'Population 2016'!O103*'Prevalence Rates'!O103","v":110.95922930243016},{"$f":"'Population 2016'!P103*'Prevalence Rates'!P103","v":81.681890280123355},{"$f":"'Population 2016'!Q103*'Prevalence Rates'!Q103","v":161.68379289857981},{"$f":"'Population 2016'!R103*'Prevalence Rates'!R103","v":35.526027621834473},{"$f":"'Population 2016'!S103*'Prevalence Rates'!S103","v":1821.9812432028186},{"$f":"'Population 2016'!T103*'Prevalence Rates'!T103","v":906.57799942427641},{"$f":"'Population 2016'!U103*'Prevalence Rates'!U103","v":23.064147459572403},{"$f":"'Population 2016'!V103*'Prevalence Rates'!V103","v":220.57978267269007},{"$f":"'Population 2016'!W103*'Prevalence Rates'!W103","v":317.73583533872733},{"$f":"'Population 2016'!X103*'Prevalence Rates'!X103","v":329.30281994691671},{"$f":"'Population 2016'!Y103*'Prevalence Rates'!Y103","v":397.93678201022993},{"$f":"'Population 2016'!Z103*'Prevalence Rates'!Z103","v":895.99098870474415},{"$f":"'Population 2016'!AA103*'Prevalence Rates'!AA103","v":2089.8157497668399},{"$f":"'Population 2016'!AB103*'Prevalence Rates'!AB103","v":529.82269376375484},{"$f":"'Population 2016'!AC103*'Prevalence Rates'!AC103","v":1259.9417352131134},{"$f":"'Population 2016'!AD103*'Prevalence Rates'!AD103","v":276.42126101308634},{"$f":"'Population 2016'!AE103*'Prevalence Rates'!AE103","v":151.53852004984643},{"$f":"'Population 2016'!AF103*'Prevalence Rates'!AF103","v":55.335770525528218},{"$f":"'Population 2016'!AG103*'Prevalence Rates'!AG103","v":195.80960537137642},{"$f":"'Population 2016'!AH103*'Prevalence Rates'!AH103","v":829.85365470113811},{"$f":"'Population 2016'!AI103*'Prevalence Rates'!AI103","v":1473.0958697430037},{"$f":"'Population 2016'!AJ103*'Prevalence Rates'!AJ103","v":174.59058974269513},{"$f":"'Population 2016'!AK103*'Prevalence Rates'!AK103","v":55.931361600318141},{"$f":"'Population 2016'!AL103*'Prevalence Rates'!AL103","v":131.68235394222023},{"$f":"'Population 2016'!AM103*'Prevalence Rates'!AM103","v":424.85251616442912},{"$f":"'Population 2016'!AN103*'Prevalence Rates'!AN103","v":16.195964334679608},{"$f":"'Population 2016'!AO103*'Prevalence Rates'!AO103","v":16.195964334679608},{"$f":"'Population 2016'!AP103*'Prevalence Rates'!AP103","v":85.285442404512295},{"$f":"'Population 2016'!AQ103*'Prevalence Rates'!AQ103","v":176.95177559644458},{"$f":"'Population 2016'!AR103*'Prevalence Rates'!AR103","v":6043.1711668017751},{"$f":"'Population 2016'!AS103*'Prevalence Rates'!AS103","v":80.839254219230838},{"$f":"'Population 2016'!AT103*'Prevalence Rates'!AT103","v":3.4503351112788865},{"$f":"'Population 2016'!AU103*'Prevalence Rates'!AU103","v":3.4503351112788865},{"$f":"'Population 2016'!AV103*'Prevalence Rates'!AV103","v":145.98245855706463},{"$f":"'Population 2016'!AW103*'Prevalence Rates'!AW103","v":412.82753037352506},{"$f":"'Population 2016'!AX103*'Prevalence Rates'!AX103","v":85.716661655895791},{"$f":"'Population 2016'!AY103*'Prevalence Rates'!AY103","v":690.29225908071294},{"$f":"'Population 2016'!AZ103*'Prevalence Rates'!AZ103","v":372.24208842834429},{"$f":"'Population 2016'!BA103*'Prevalence Rates'!BA103","v":122.02512946088666},{"$f":"'Population 2016'!BB103*'Prevalence Rates'!BB103","v":235.91865518021359},{"$f":"'Population 2016'!BC103*'Prevalence Rates'!BC103","v":12.813566751817243},101]
[null,"Female 30-34",{"$f":"'Population 2016'!C104*'Prevalence Rates'!C104","v":375.502954363193},{"$f":"'Population 2016'!D104*'Prevalence Rates'!D104","v":411.32369362056352},{"$f":"'Population 2016'!E104*'Prevalence Rates'!E104","v":78.466375987725556},{"$f":"'Population 2016'!F104*'Prevalence Rates'!F104","v":87.536614490363007},{"$f":"'Population 2016'!G104*'Prevalence Rates'!G104","v":56.980873723600894},{"$f":"'Population 2016'!H104*'Prevalence Rates'!H104","v":376.14081916209466},{"$f":"'Population 2016'!I104*'Prevalence Rates'!I104","v":68.424654464134676},{"$f":"'Population 2016'!J104*'Prevalence Rates'!J104","v":152.2119106197726},{"$f":"'Population 2016'!K104*'Prevalence Rates'!K104","v":59.448262243826136},{"$f":"'Population 2016'!L104*'Prevalence Rates'!L104","v":147.69653683668022},{"$f":"'Population 2016'!M104*'Prevalence Rates'!M104","v":152.09805366047163},{"$f":"'Population 2016'!N104*'Prevalence Rates'!N104","v":159.38343198311458},{"$f":"'Population 2016'!O104*'Prevalence Rates'!O104","v":105.49863730920032},{"$f":"'Population 2016'!P104*'Prevalence Rates'!P104","v":72.170985247506252},{"$f":"'Population 2016'!Q104*'Prevalence Rates'!Q104","v":166.21861341137708},{"$f":"'Population 2016'!R104*'Prevalence Rates'!R104","v":34.407097617997167},{"$f":"'Population 2016'!S104*'Prevalence Rates'!S104","v":1706.5357566510716},{"$f":"'Population 2016'!T104*'Prevalence Rates'!T104","v":760.72106089962972},{"$f":"'Population 2016'!U104*'Prevalence Rates'!U104","v":22.035809674750706},{"$f":"'Population 2016'!V104*'Prevalence Rates'!V104","v":234.77551126053646},{"$f":"'Population 2016'!W104*'Prevalence Rates'!W104","v":314.81473697790324},{"$f":"'Population 2016'!X104*'Prevalence Rates'!X104","v":326.27538073302952},{"$f":"'Population 2016'!Y104*'Prevalence Rates'!Y104","v":384.52502034773966},{"$f":"'Population 2016'!Z104*'Prevalence Rates'!Z104","v":744.3478301184432},{"$f":"'Population 2016'!AA104*'Prevalence Rates'!AA104","v":1982.4704895090433},{"$f":"'Population 2016'!AB104*'Prevalence Rates'!AB104","v":474.62377488927012},{"$f":"'Population 2016'!AC104*'Prevalence Rates'!AC104","v":1110.9611991279096},{"$f":"'Population 2016'!AD104*'Prevalence Rates'!AD104","v":274.98073330659082},{"$f":"'Population 2016'!AE104*'Prevalence Rates'!AE104","v":158.88796328552027},{"$f":"'Population 2016'!AF104*'Prevalence Rates'!AF104","v":58.745818008894098},{"$f":"'Population 2016'!AG104*'Prevalence Rates'!AG104","v":205.30614512379884},{"$f":"'Population 2016'!AH104*'Prevalence Rates'!AH104","v":876.86834598832183},{"$f":"'Population 2016'!AI104*'Prevalence Rates'!AI104","v":1365.5535874790112},{"$f":"'Population 2016'!AJ104*'Prevalence Rates'!AJ104","v":184.88114398327357},{"$f":"'Population 2016'!AK104*'Prevalence Rates'!AK104","v":59.999096989432189},{"$f":"'Population 2016'!AL104*'Prevalence Rates'!AL104","v":135.65180891033435},{"$f":"'Population 2016'!AM104*'Prevalence Rates'!AM104","v":448.52547206017215},{"$f":"'Population 2016'!AN104*'Prevalence Rates'!AN104","v":10.041497887501357},{"$f":"'Population 2016'!AO104*'Prevalence Rates'!AO104","v":10.041497887501357},{"$f":"'Population 2016'!AP104*'Prevalence Rates'!AP104","v":92.193297552541324},{"$f":"'Population 2016'!AQ104*'Prevalence Rates'!AQ104","v":169.86711418988304},{"$f":"'Population 2016'!AR104*'Prevalence Rates'!AR104","v":5669.9558679507818},{"$f":"'Population 2016'!AS104*'Prevalence Rates'!AS104","v":68.424654464134676},{"$f":"'Population 2016'!AT104*'Prevalence Rates'!AT104","v":2.4002331208896601},{"$f":"'Population 2016'!AU104*'Prevalence Rates'!AU104","v":2.4002331208896601},{"$f":"'Population 2016'!AV104*'Prevalence Rates'!AV104","v":128.97790843942855},{"$f":"'Population 2016'!AW104*'Prevalence Rates'!AW104","v":436.66912030594955},{"$f":"'Population 2016'!AX104*'Prevalence Rates'!AX104","v":64.910224125746723},{"$f":"'Population 2016'!AY104*'Prevalence Rates'!AY104","v":634.24177609959247},{"$f":"'Population 2016'!AZ104*'Prevalence Rates'!AZ104","v":320.0132671016915},{"$f":"'Population 2016'!BA104*'Prevalence Rates'!BA104","v":126.45980591257188},{"$f":"'Population 2016'!BB104*'Prevalence Rates'!BB104","v":245.0146620812867},{"$f":"'Population 2016'!BC104*'Prevalence Rates'!BC104","v":12.242261227850868},102]
[null,"Female 35-39",{"$f":"'Population 2016'!C105*'Prevalence Rates'!C105","v":337.5954612373655},{"$f":"'Population 2016'!D105*'Prevalence Rates'!D105","v":397.73821276040053},{"$f":"'Population 2016'!E105*'Prevalence Rates'!E105","v":94.218002017127489},{"$f":"'Population 2016'!F105*'Prevalence Rates'!F105","v":84.402455712323743},{"$f":"'Population 2016'!G105*'Prevalence Rates'!G105","v":71.802827179578131},{"$f":"'Population 2016'!H105*'Prevalence Rates'!H105","v":455.56648403452186},{"$f":"'Population 2016'!I105*'Prevalence Rates'!I105","v":78.994940155576828},{"$f":"'Population 2016'!J105*'Prevalence Rates'!J105","v":183.4964780924376},{"$f":"'Population 2016'!K105*'Prevalence Rates'!K105","v":72.207470861847227},{"$f":"'Population 2016'!L105*'Prevalence Rates'!L105","v":173.39987330995291},{"$f":"'Population 2016'!M105*'Prevalence Rates'!M105","v":178.56737740966653},{"$f":"'Population 2016'!N105*'Prevalence Rates'!N105","v":149.39942277736321},{"$f":"'Population 2016'!O105*'Prevalence Rates'!O105","v":126.09404103831302},{"$f":"'Population 2016'!P105*'Prevalence Rates'!P105","v":97.228677248389062},{"$f":"'Population 2016'!Q105*'Prevalence Rates'!Q105","v":188.58191983197599},{"$f":"'Population 2016'!R105*'Prevalence Rates'!R105","v":45.250024532554775},{"$f":"'Population 2016'!S105*'Prevalence Rates'!S105","v":1709.3462103635225},{"$f":"'Population 2016'!T105*'Prevalence Rates'!T105","v":618.08183942426513},{"$f":"'Population 2016'!U105*'Prevalence Rates'!U105","v":27.032287077946521},{"$f":"'Population 2016'!V105*'Prevalence Rates'!V105","v":275.23269038499512},{"$f":"'Population 2016'!W105*'Prevalence Rates'!W105","v":356.90664523440671},{"$f":"'Population 2016'!X105*'Prevalence Rates'!X105","v":369.89961994116527},{"$f":"'Population 2016'!Y105*'Prevalence Rates'!Y105","v":455.38275115710718},{"$f":"'Population 2016'!Z105*'Prevalence Rates'!Z105","v":668.42330766215082},{"$f":"'Population 2016'!AA105*'Prevalence Rates'!AA105","v":2032.6024226363456},{"$f":"'Population 2016'!AB105*'Prevalence Rates'!AB105","v":461.05107861747297},{"$f":"'Population 2016'!AC105*'Prevalence Rates'!AC105","v":1093.9513402617963},{"$f":"'Population 2016'!AD105*'Prevalence Rates'!AD105","v":312.81392538019963},{"$f":"'Population 2016'!AE105*'Prevalence Rates'!AE105","v":175.65957425640127},{"$f":"'Population 2016'!AF105*'Prevalence Rates'!AF105","v":46.232037409146287},{"$f":"'Population 2016'!AG105*'Prevalence Rates'!AG105","v":226.97748337212155},{"$f":"'Population 2016'!AH105*'Prevalence Rates'!AH105","v":947.02454966770199},{"$f":"'Population 2016'!AI105*'Prevalence Rates'!AI105","v":1298.5822332108014},{"$f":"'Population 2016'!AJ105*'Prevalence Rates'!AJ105","v":215.01275620442203},{"$f":"'Population 2016'!AK105*'Prevalence Rates'!AK105","v":59.657949169649136},{"$f":"'Population 2016'!AL105*'Prevalence Rates'!AL105","v":159.82597962508606},{"$f":"'Population 2016'!AM105*'Prevalence Rates'!AM105","v":496.14051140885636},{"$f":"'Population 2016'!AN105*'Prevalence Rates'!AN105","v":13.829891308630588},{"$f":"'Population 2016'!AO105*'Prevalence Rates'!AO105","v":13.829891308630588},{"$f":"'Population 2016'!AP105*'Prevalence Rates'!AP105","v":84.358220046546222},{"$f":"'Population 2016'!AQ105*'Prevalence Rates'!AQ105","v":189.43583746386565},{"$f":"'Population 2016'!AR105*'Prevalence Rates'!AR105","v":5908.5873362220827},{"$f":"'Population 2016'!AS105*'Prevalence Rates'!AS105","v":78.994940155576828},{"$f":"'Population 2016'!AT105*'Prevalence Rates'!AT105","v":6.134313470472585},{"$f":"'Population 2016'!AU105*'Prevalence Rates'!AU105","v":6.134313470472585},{"$f":"'Population 2016'!AV105*'Prevalence Rates'!AV105","v":162.83784051191742},{"$f":"'Population 2016'!AW105*'Prevalence Rates'!AW105","v":458.2072404063581},{"$f":"'Population 2016'!AX105*'Prevalence Rates'!AX105","v":77.714414326903579},{"$f":"'Population 2016'!AY105*'Prevalence Rates'!AY105","v":655.50099668742951},{"$f":"'Population 2016'!AZ105*'Prevalence Rates'!AZ105","v":300.40653356272213},{"$f":"'Population 2016'!BA105*'Prevalence Rates'!BA105","v":138.84408638864855},{"$f":"'Population 2016'!BB105*'Prevalence Rates'!BB105","v":253.17531685641819},{"$f":"'Population 2016'!BC105*'Prevalence Rates'!BC105","v":15.018114826689377},103]
[null,"Female 40-44",{"$f":"'Population 2016'!C106*'Prevalence Rates'!C106","v":304.26056349254384},{"$f":"'Population 2016'!D106*'Prevalence Rates'!D106","v":368.36289392037094},{"$f":"'Population 2016'!E106*'Prevalence Rates'!E106","v":93.301781576118145},{"$f":"'Population 2016'!F106*'Prevalence Rates'!F106","v":93.349712501616011},{"$f":"'Population 2016'!G106*'Prevalence Rates'!G106","v":84.507885071943164},{"$f":"'Population 2016'!H106*'Prevalence Rates'!H106","v":498.39752099503249},{"$f":"'Population 2016'!I106*'Prevalence Rates'!I106","v":85.765935026054834},{"$f":"'Population 2016'!J106*'Prevalence Rates'!J106","v":195.83055739817928},{"$f":"'Population 2016'!K106*'Prevalence Rates'!K106","v":81.965237194529294},{"$f":"'Population 2016'!L106*'Prevalence Rates'!L106","v":194.89168859344002},{"$f":"'Population 2016'!M106*'Prevalence Rates'!M106","v":200.6996720745266},{"$f":"'Population 2016'!N106*'Prevalence Rates'!N106","v":132.93428917660972},{"$f":"'Population 2016'!O106*'Prevalence Rates'!O106","v":134.63165840028213},{"$f":"'Population 2016'!P106*'Prevalence Rates'!P106","v":92.518637520093407},{"$f":"'Population 2016'!Q106*'Prevalence Rates'!Q106","v":183.12793772337602},{"$f":"'Population 2016'!R106*'Prevalence Rates'!R106","v":44.745377418808808},{"$f":"'Population 2016'!S106*'Prevalence Rates'!S106","v":1700.1160550456129},{"$f":"'Population 2016'!T106*'Prevalence Rates'!T106","v":544.81377943172311},{"$f":"'Population 2016'!U106*'Prevalence Rates'!U106","v":35.336322977707866},{"$f":"'Population 2016'!V106*'Prevalence Rates'!V106","v":287.9905792371967},{"$f":"'Population 2016'!W106*'Prevalence Rates'!W106","v":381.65856022829172},{"$f":"'Population 2016'!X106*'Prevalence Rates'!X106","v":395.55261371784565},{"$f":"'Population 2016'!Y106*'Prevalence Rates'!Y106","v":479.97145262347362},{"$f":"'Population 2016'!Z106*'Prevalence Rates'!Z106","v":586.29806807143905},{"$f":"'Population 2016'!AA106*'Prevalence Rates'!AA106","v":2029.520387120597},{"$f":"'Population 2016'!AB106*'Prevalence Rates'!AB106","v":435.78561890487526},{"$f":"'Population 2016'!AC106*'Prevalence Rates'!AC106","v":1051.1627164104564},{"$f":"'Population 2016'!AD106*'Prevalence Rates'!AD106","v":347.65658414562495},{"$f":"'Population 2016'!AE106*'Prevalence Rates'!AE106","v":191.79443930391417},{"$f":"'Population 2016'!AF106*'Prevalence Rates'!AF106","v":54.248076153474067},{"$f":"'Population 2016'!AG106*'Prevalence Rates'!AG106","v":247.82605412914552},{"$f":"'Population 2016'!AH106*'Prevalence Rates'!AH106","v":989.34370904076115},{"$f":"'Population 2016'!AI106*'Prevalence Rates'!AI106","v":1246.5439362031852},{"$f":"'Population 2016'!AJ106*'Prevalence Rates'!AJ106","v":203.68525490194514},{"$f":"'Population 2016'!AK106*'Prevalence Rates'!AK106","v":62.104060980705363},{"$f":"'Population 2016'!AL106*'Prevalence Rates'!AL106","v":190.13064589166081},{"$f":"'Population 2016'!AM106*'Prevalence Rates'!AM106","v":516.5252319115632},{"$f":"'Population 2016'!AN106*'Prevalence Rates'!AN106","v":20.452656160650868},{"$f":"'Population 2016'!AO106*'Prevalence Rates'!AO106","v":20.452656160650868},{"$f":"'Population 2016'!AP106*'Prevalence Rates'!AP106","v":73.493903828430419},{"$f":"'Population 2016'!AQ106*'Prevalence Rates'!AQ106","v":220.34796156884792},{"$f":"'Population 2016'!AR106*'Prevalence Rates'!AR106","v":5985.1874264838825},{"$f":"'Population 2016'!AS106*'Prevalence Rates'!AS106","v":85.765935026054834},{"$f":"'Population 2016'!AT106*'Prevalence Rates'!AT106","v":2.5258937819592995},{"$f":"'Population 2016'!AU106*'Prevalence Rates'!AU106","v":2.5258937819592995},{"$f":"'Population 2016'!AV106*'Prevalence Rates'!AV106","v":168.81885124162054},{"$f":"'Population 2016'!AW106*'Prevalence Rates'!AW106","v":480.72309388285697},{"$f":"'Population 2016'!AX106*'Prevalence Rates'!AX106","v":78.066860650381599},{"$f":"'Population 2016'!AY106*'Prevalence Rates'!AY106","v":663.6341515019717},{"$f":"'Population 2016'!AZ106*'Prevalence Rates'!AZ106","v":284.5875801082434},{"$f":"'Population 2016'!BA106*'Prevalence Rates'!BA106","v":143.83352691562601},{"$f":"'Population 2016'!BB106*'Prevalence Rates'!BB106","v":279.3958057763902},{"$f":"'Population 2016'!BC106*'Prevalence Rates'!BC106","v":19.631522649267161},104]
[null,"Female 45-49",{"$f":"'Population 2016'!C107*'Prevalence Rates'!C107","v":342.40992715231243},{"$f":"'Population 2016'!D107*'Prevalence Rates'!D107","v":423.72362378346946},{"$f":"'Population 2016'!E107*'Prevalence Rates'!E107","v":112.77371859824621},{"$f":"'Population 2016'!F107*'Prevalence Rates'!F107","v":106.75675290330965},{"$f":"'Population 2016'!G107*'Prevalence Rates'!G107","v":107.76335788356583},{"$f":"'Population 2016'!H107*'Prevalence Rates'!H107","v":683.45458090496004},{"$f":"'Population 2016'!I107*'Prevalence Rates'!I107","v":124.10549644539502},{"$f":"'Population 2016'!J107*'Prevalence Rates'!J107","v":242.27035696115394},{"$f":"'Population 2016'!K107*'Prevalence Rates'!K107","v":104.09246323429031},{"$f":"'Population 2016'!L107*'Prevalence Rates'!L107","v":274.48965719603922},{"$f":"'Population 2016'!M107*'Prevalence Rates'!M107","v":282.66974638419043},{"$f":"'Population 2016'!N107*'Prevalence Rates'!N107","v":149.08141015199314},{"$f":"'Population 2016'!O107*'Prevalence Rates'!O107","v":187.78308265234844},{"$f":"'Population 2016'!P107*'Prevalence Rates'!P107","v":136.54410146707278},{"$f":"'Population 2016'!Q107*'Prevalence Rates'!Q107","v":247.05448475791877},{"$f":"'Population 2016'!R107*'Prevalence Rates'!R107","v":69.720794515680396},{"$f":"'Population 2016'!S107*'Prevalence Rates'!S107","v":2054.5802302458651},{"$f":"'Population 2016'!T107*'Prevalence Rates'!T107","v":548.59884790568378},{"$f":"'Population 2016'!U107*'Prevalence Rates'!U107","v":44.318223177070415},{"$f":"'Population 2016'!V107*'Prevalence Rates'!V107","v":355.07805418438841},{"$f":"'Population 2016'!W107*'Prevalence Rates'!W107","v":470.1857864210977},{"$f":"'Population 2016'!X107*'Prevalence Rates'!X107","v":487.30262106684773},{"$f":"'Population 2016'!Y107*'Prevalence Rates'!Y107","v":592.52728037530778},{"$f":"'Population 2016'!Z107*'Prevalence Rates'!Z107","v":711.39537807986028},{"$f":"'Population 2016'!AA107*'Prevalence Rates'!AA107","v":2628.0180425846997},{"$f":"'Population 2016'!AB107*'Prevalence Rates'!AB107","v":508.7260147824972},{"$f":"'Population 2016'!AC107*'Prevalence Rates'!AC107","v":1346.4776781059252},{"$f":"'Population 2016'!AD107*'Prevalence Rates'!AD107","v":442.24424177601821},{"$f":"'Population 2016'!AE107*'Prevalence Rates'!AE107","v":243.78449830781051},{"$f":"'Population 2016'!AF107*'Prevalence Rates'!AF107","v":80.276125347019416},{"$f":"'Population 2016'!AG107*'Prevalence Rates'!AG107","v":315.00470239256339},{"$f":"'Population 2016'!AH107*'Prevalence Rates'!AH107","v":1296.7024356264296},{"$f":"'Population 2016'!AI107*'Prevalence Rates'!AI107","v":1468.8905855269841},{"$f":"'Population 2016'!AJ107*'Prevalence Rates'!AJ107","v":274.60535051702857},{"$f":"'Population 2016'!AK107*'Prevalence Rates'!AK107","v":77.245427511326554},{"$f":"'Population 2016'!AL107*'Prevalence Rates'!AL107","v":254.7396573190058},{"$f":"'Population 2016'!AM107*'Prevalence Rates'!AM107","v":654.36638103196833},{"$f":"'Population 2016'!AN107*'Prevalence Rates'!AN107","v":19.921364533942395},{"$f":"'Population 2016'!AO107*'Prevalence Rates'!AO107","v":19.921364533942395},{"$f":"'Population 2016'!AP107*'Prevalence Rates'!AP107","v":100.27602243788292},{"$f":"'Population 2016'!AQ107*'Prevalence Rates'!AQ107","v":270.281253183015},{"$f":"'Population 2016'!AR107*'Prevalence Rates'!AR107","v":7546.996402331024},{"$f":"'Population 2016'!AS107*'Prevalence Rates'!AS107","v":124.10549644539502},{"$f":"'Population 2016'!AT107*'Prevalence Rates'!AT107","v":4.467349630125077},{"$f":"'Population 2016'!AU107*'Prevalence Rates'!AU107","v":4.467349630125077},{"$f":"'Population 2016'!AV107*'Prevalence Rates'!AV107","v":232.42242774744284},{"$f":"'Population 2016'!AW107*'Prevalence Rates'!AW107","v":655.91644808103888},{"$f":"'Population 2016'!AX107*'Prevalence Rates'!AX107","v":93.908141769831104},{"$f":"'Population 2016'!AY107*'Prevalence Rates'!AY107","v":805.19362238724909},{"$f":"'Population 2016'!AZ107*'Prevalence Rates'!AZ107","v":338.44914802592064},{"$f":"'Population 2016'!BA107*'Prevalence Rates'!BA107","v":191.1474940312375},{"$f":"'Population 2016'!BB107*'Prevalence Rates'!BB107","v":343.78001522635401},{"$f":"'Population 2016'!BC107*'Prevalence Rates'!BC107","v":24.62152620194243},105]
[null,"Female 50-54",{"$f":"'Population 2016'!C108*'Prevalence Rates'!C108","v":357.0389227048812},{"$f":"'Population 2016'!D108*'Prevalence Rates'!D108","v":445.25902773949747},{"$f":"'Population 2016'!E108*'Prevalence Rates'!E108","v":120.50019786080826},{"$f":"'Population 2016'!F108*'Prevalence Rates'!F108","v":99.532611729401467},{"$f":"'Population 2016'!G108*'Prevalence Rates'!G108","v":119.57587980541824},{"$f":"'Population 2016'!H108*'Prevalence Rates'!H108","v":706.12842956057477},{"$f":"'Population 2016'!I108*'Prevalence Rates'!I108","v":133.26388398428713},{"$f":"'Population 2016'!J108*'Prevalence Rates'!J108","v":253.91797027659402},{"$f":"'Population 2016'!K108*'Prevalence Rates'!K108","v":107.33938410581862},{"$f":"'Population 2016'!L108*'Prevalence Rates'!L108","v":297.10087416812672},{"$f":"'Population 2016'!M108*'Prevalence Rates'!M108","v":305.95480212081912},{"$f":"'Population 2016'!N108*'Prevalence Rates'!N108","v":177.81549921758381},{"$f":"'Population 2016'!O108*'Prevalence Rates'!O108","v":177.31926629973265},{"$f":"'Population 2016'!P108*'Prevalence Rates'!P108","v":134.00879984832076},{"$f":"'Population 2016'!Q108*'Prevalence Rates'!Q108","v":251.11936659123006},{"$f":"'Population 2016'!R108*'Prevalence Rates'!R108","v":65.736749114784374},{"$f":"'Population 2016'!S108*'Prevalence Rates'!S108","v":2072.1280959703358},{"$f":"'Population 2016'!T108*'Prevalence Rates'!T108","v":520.78968971691643},{"$f":"'Population 2016'!U108*'Prevalence Rates'!U108","v":51.355880934802627},{"$f":"'Population 2016'!V108*'Prevalence Rates'!V108","v":353.86618369229154},{"$f":"'Population 2016'!W108*'Prevalence Rates'!W108","v":506.63163165739485},{"$f":"'Population 2016'!X108*'Prevalence Rates'!X108","v":525.07525567970765},{"$f":"'Population 2016'!Y108*'Prevalence Rates'!Y108","v":601.84507892302531},{"$f":"'Population 2016'!Z108*'Prevalence Rates'!Z108","v":728.96069605714081},{"$f":"'Population 2016'!AA108*'Prevalence Rates'!AA108","v":2725.8982123688393},{"$f":"'Population 2016'!AB108*'Prevalence Rates'!AB108","v":526.73401530577144},{"$f":"'Population 2016'!AC108*'Prevalence Rates'!AC108","v":1390.2026648465023},{"$f":"'Population 2016'!AD108*'Prevalence Rates'!AD108","v":483.06997543575375},{"$f":"'Population 2016'!AE108*'Prevalence Rates'!AE108","v":264.93061340266399},{"$f":"'Population 2016'!AF108*'Prevalence Rates'!AF108","v":96.331350416423305},{"$f":"'Population 2016'!AG108*'Prevalence Rates'!AG108","v":342.32853035722189},{"$f":"'Population 2016'!AH108*'Prevalence Rates'!AH108","v":1351.8323886025755},{"$f":"'Population 2016'!AI108*'Prevalence Rates'!AI108","v":1427.5133859346747},{"$f":"'Population 2016'!AJ108*'Prevalence Rates'!AJ108","v":272.5729096003729},{"$f":"'Population 2016'!AK108*'Prevalence Rates'!AK108","v":75.050955138845694},{"$f":"'Population 2016'!AL108*'Prevalence Rates'!AL108","v":265.68899346692797},{"$f":"'Population 2016'!AM108*'Prevalence Rates'!AM108","v":675.22340260033752},{"$f":"'Population 2016'!AN108*'Prevalence Rates'!AN108","v":25.583226033062864},{"$f":"'Population 2016'!AO108*'Prevalence Rates'!AO108","v":25.583226033062864},{"$f":"'Population 2016'!AP108*'Prevalence Rates'!AP108","v":96.664021629657285},{"$f":"'Population 2016'!AQ108*'Prevalence Rates'!AQ108","v":280.52079552933287},{"$f":"'Population 2016'!AR108*'Prevalence Rates'!AR108","v":7806.7194339966409},{"$f":"'Population 2016'!AS108*'Prevalence Rates'!AS108","v":133.26388398428713},{"$f":"'Population 2016'!AT108*'Prevalence Rates'!AT108","v":3.8846518522826754},{"$f":"'Population 2016'!AU108*'Prevalence Rates'!AU108","v":3.8846518522826754},{"$f":"'Population 2016'!AV108*'Prevalence Rates'!AV108","v":262.33201630475452},{"$f":"'Population 2016'!AW108*'Prevalence Rates'!AW108","v":691.75774483341399},{"$f":"'Population 2016'!AX108*'Prevalence Rates'!AX108","v":100.1686845544865},{"$f":"'Population 2016'!AY108*'Prevalence Rates'!AY108","v":855.70765139523212},{"$f":"'Population 2016'!AZ108*'Prevalence Rates'!AZ108","v":352.99898926982934},{"$f":"'Population 2016'!BA108*'Prevalence Rates'!BA108","v":202.44594086835522},{"$f":"'Population 2016'!BB108*'Prevalence Rates'!BB108","v":329.38574596456539},{"$f":"'Population 2016'!BC108*'Prevalence Rates'!BC108","v":28.531382294096375},106]
[null,"Female 55-59",{"$f":"'Population 2016'!C109*'Prevalence Rates'!C109","v":220.68795465810675},{"$f":"'Population 2016'!D109*'Prevalence Rates'!D109","v":275.44838522554016},{"$f":"'Population 2016'!E109*'Prevalence Rates'!E109","v":74.677682040069996},{"$f":"'Population 2016'!F109*'Prevalence Rates'!F109","v":74.821347646115257},{"$f":"'Population 2016'!G109*'Prevalence Rates'!G109","v":84.495809021950606},{"$f":"'Population 2016'!H109*'Prevalence Rates'!H109","v":461.09002169764892},{"$f":"'Population 2016'!I109*'Prevalence Rates'!I109","v":89.96746154112661},{"$f":"'Population 2016'!J109*'Prevalence Rates'!J109","v":151.4509786885879},{"$f":"'Population 2016'!K109*'Prevalence Rates'!K109","v":62.484598863766976},{"$f":"'Population 2016'!L109*'Prevalence Rates'!L109","v":192.60608415280578},{"$f":"'Population 2016'!M109*'Prevalence Rates'!M109","v":198.34595414515766},{"$f":"'Population 2016'!N109*'Prevalence Rates'!N109","v":116.64027037446549},{"$f":"'Population 2016'!O109*'Prevalence Rates'!O109","v":116.68207003938103},{"$f":"'Population 2016'!P109*'Prevalence Rates'!P109","v":88.049913476602498},{"$f":"'Population 2016'!Q109*'Prevalence Rates'!Q109","v":165.17072941146395},{"$f":"'Population 2016'!R109*'Prevalence Rates'!R109","v":36.226250116087883},{"$f":"'Population 2016'!S109*'Prevalence Rates'!S109","v":1333.1090725834949},{"$f":"'Population 2016'!T109*'Prevalence Rates'!T109","v":328.54755558537926},{"$f":"'Population 2016'!U109*'Prevalence Rates'!U109","v":30.518816961978597},{"$f":"'Population 2016'!V109*'Prevalence Rates'!V109","v":214.64742697366657},{"$f":"'Population 2016'!W109*'Prevalence Rates'!W109","v":317.63115793954},{"$f":"'Population 2016'!X109*'Prevalence Rates'!X109","v":329.19433182910547},{"$f":"'Population 2016'!Y109*'Prevalence Rates'!Y109","v":362.72960917726641},{"$f":"'Population 2016'!Z109*'Prevalence Rates'!Z109","v":453.18881086162924},{"$f":"'Population 2016'!AA109*'Prevalence Rates'!AA109","v":1718.1047610493042},{"$f":"'Population 2016'!AB109*'Prevalence Rates'!AB109","v":332.63992331190099},{"$f":"'Population 2016'!AC109*'Prevalence Rates'!AC109","v":867.1355748900545},{"$f":"'Population 2016'!AD109*'Prevalence Rates'!AD109","v":325.17211683234484},{"$f":"'Population 2016'!AE109*'Prevalence Rates'!AE109","v":175.41556417615382},{"$f":"'Population 2016'!AF109*'Prevalence Rates'!AF109","v":61.056206436698488},{"$f":"'Population 2016'!AG109*'Prevalence Rates'!AG109","v":226.66218718535552},{"$f":"'Population 2016'!AH109*'Prevalence Rates'!AH109","v":861.72055249160439},{"$f":"'Population 2016'!AI109*'Prevalence Rates'!AI109","v":924.37007719047915},{"$f":"'Population 2016'!AJ109*'Prevalence Rates'!AJ109","v":185.56217748695332},{"$f":"'Population 2016'!AK109*'Prevalence Rates'!AK109","v":51.723265564483306},{"$f":"'Population 2016'!AL109*'Prevalence Rates'!AL109","v":164.52309455608582},{"$f":"'Population 2016'!AM109*'Prevalence Rates'!AM109","v":424.40916750158232},{"$f":"'Population 2016'!AN109*'Prevalence Rates'!AN109","v":15.87637215920252},{"$f":"'Population 2016'!AO109*'Prevalence Rates'!AO109","v":15.87637215920252},{"$f":"'Population 2016'!AP109*'Prevalence Rates'!AP109","v":60.81008660207204},{"$f":"'Population 2016'!AQ109*'Prevalence Rates'!AQ109","v":171.73232136500764},{"$f":"'Population 2016'!AR109*'Prevalence Rates'!AR109","v":4988.4717718159627},{"$f":"'Population 2016'!AS109*'Prevalence Rates'!AS109","v":89.96746154112661},{"$f":"'Population 2016'!AT109*'Prevalence Rates'!AT109","v":1.8887715754625458},{"$f":"'Population 2016'!AU109*'Prevalence Rates'!AU109","v":1.8887715754625458},{"$f":"'Population 2016'!AV109*'Prevalence Rates'!AV109","v":178.31821699023112},{"$f":"'Population 2016'!AW109*'Prevalence Rates'!AW109","v":447.82310301208469},{"$f":"'Population 2016'!AX109*'Prevalence Rates'!AX109","v":61.274573405164432},{"$f":"'Population 2016'!AY109*'Prevalence Rates'!AY109","v":554.36830426519873},{"$f":"'Population 2016'!AZ109*'Prevalence Rates'!AZ109","v":238.87363203200934},{"$f":"'Population 2016'!BA109*'Prevalence Rates'!BA109","v":129.93901812097073},{"$f":"'Population 2016'!BB109*'Prevalence Rates'!BB109","v":210.09064287627135},{"$f":"'Population 2016'!BC109*'Prevalence Rates'!BC109","v":16.955098774591995},107]
[null,"Female 60-64",{"$f":"'Population 2016'!C110*'Prevalence Rates'!C110","v":197.19024437796301},{"$f":"'Population 2016'!D110*'Prevalence Rates'!D110","v":249.57456430415868},{"$f":"'Population 2016'!E110*'Prevalence Rates'!E110","v":69.653495480799236},{"$f":"'Population 2016'!F110*'Prevalence Rates'!F110","v":62.778567399050509},{"$f":"'Population 2016'!G110*'Prevalence Rates'!G110","v":75.715154251356083},{"$f":"'Population 2016'!H110*'Prevalence Rates'!H110","v":405.76980669488847},{"$f":"'Population 2016'!I110*'Prevalence Rates'!I110","v":81.658778224197164},{"$f":"'Population 2016'!J110*'Prevalence Rates'!J110","v":128.79805452576491},{"$f":"'Population 2016'!K110*'Prevalence Rates'!K110","v":55.453423195444998},{"$f":"'Population 2016'!L110*'Prevalence Rates'!L110","v":189.44062385699479},{"$f":"'Population 2016'!M110*'Prevalence Rates'!M110","v":195.08615970282258},{"$f":"'Population 2016'!N110*'Prevalence Rates'!N110","v":100.44023282245639},{"$f":"'Population 2016'!O110*'Prevalence Rates'!O110","v":102.14591989979485},{"$f":"'Population 2016'!P110*'Prevalence Rates'!P110","v":66.414791879494459},{"$f":"'Population 2016'!Q110*'Prevalence Rates'!Q110","v":138.34813232755101},{"$f":"'Population 2016'!R110*'Prevalence Rates'!R110","v":31.572183260896036},{"$f":"'Population 2016'!S110*'Prevalence Rates'!S110","v":1145.7278017510937},{"$f":"'Population 2016'!T110*'Prevalence Rates'!T110","v":269.72156353775654},{"$f":"'Population 2016'!U110*'Prevalence Rates'!U110","v":32.76479050463503},{"$f":"'Population 2016'!V110*'Prevalence Rates'!V110","v":200.05701363689448},{"$f":"'Population 2016'!W110*'Prevalence Rates'!W110","v":289.56975864788893},{"$f":"'Population 2016'!X110*'Prevalence Rates'!X110","v":300.11137394194765},{"$f":"'Population 2016'!Y110*'Prevalence Rates'!Y110","v":326.83908823677456},{"$f":"'Population 2016'!Z110*'Prevalence Rates'!Z110","v":356.53202888605591},{"$f":"'Population 2016'!AA110*'Prevalence Rates'!AA110","v":1459.473594992251},{"$f":"'Population 2016'!AB110*'Prevalence Rates'!AB110","v":304.88735626707728},{"$f":"'Population 2016'!AC110*'Prevalence Rates'!AC110","v":691.53374688190706},{"$f":"'Population 2016'!AD110*'Prevalence Rates'!AD110","v":293.79207191448239},{"$f":"'Population 2016'!AE110*'Prevalence Rates'!AE110","v":158.94412663090495},{"$f":"'Population 2016'!AF110*'Prevalence Rates'!AF110","v":44.328478645822187},{"$f":"'Population 2016'!AG110*'Prevalence Rates'!AG110","v":205.37871625945789},{"$f":"'Population 2016'!AH110*'Prevalence Rates'!AH110","v":779.9495079333052},{"$f":"'Population 2016'!AI110*'Prevalence Rates'!AI110","v":766.62168148478509},{"$f":"'Population 2016'!AJ110*'Prevalence Rates'!AJ110","v":151.99471680884005},{"$f":"'Population 2016'!AK110*'Prevalence Rates'!AK110","v":49.589299794632325},{"$f":"'Population 2016'!AL110*'Prevalence Rates'!AL110","v":143.25926063704452},{"$f":"'Population 2016'!AM110*'Prevalence Rates'!AM110","v":385.35697340081339},{"$f":"'Population 2016'!AN110*'Prevalence Rates'!AN110","v":15.148098206945523},{"$f":"'Population 2016'!AO110*'Prevalence Rates'!AO110","v":15.148098206945523},{"$f":"'Population 2016'!AP110*'Prevalence Rates'!AP110","v":59.495919701044947},{"$f":"'Population 2016'!AQ110*'Prevalence Rates'!AQ110","v":139.43064228168438},{"$f":"'Population 2016'!AR110*'Prevalence Rates'!AR110","v":4368.7101950143606},{"$f":"'Population 2016'!AS110*'Prevalence Rates'!AS110","v":81.658778224197164},{"$f":"'Population 2016'!AT110*'Prevalence Rates'!AT110","v":4.0473676617054553},{"$f":"'Population 2016'!AU110*'Prevalence Rates'!AU110","v":4.0473676617054553},{"$f":"'Population 2016'!AV110*'Prevalence Rates'!AV110","v":159.13025351150884},{"$f":"'Population 2016'!AW110*'Prevalence Rates'!AW110","v":403.93298526829108},{"$f":"'Population 2016'!AX110*'Prevalence Rates'!AX110","v":49.810298380972377},{"$f":"'Population 2016'!AY110*'Prevalence Rates'!AY110","v":498.34669714641603},{"$f":"'Population 2016'!AZ110*'Prevalence Rates'!AZ110","v":210.85191750517748},{"$f":"'Population 2016'!BA110*'Prevalence Rates'!BA110","v":111.28440660855414},{"$f":"'Population 2016'!BB110*'Prevalence Rates'!BB110","v":176.72025028096743},{"$f":"'Population 2016'!BC110*'Prevalence Rates'!BC110","v":18.202876606488374},108]
[null,"Female 65-69",{"$f":"'Population 2016'!C111*'Prevalence Rates'!C111","v":125.85957689955828},{"$f":"'Population 2016'!D111*'Prevalence Rates'!D111","v":167.83232363832334},{"$f":"'Population 2016'!E111*'Prevalence Rates'!E111","v":51.691623506204543},{"$f":"'Population 2016'!F111*'Prevalence Rates'!F111","v":45.212867261483034},{"$f":"'Population 2016'!G111*'Prevalence Rates'!G111","v":56.034751710812316},{"$f":"'Population 2016'!H111*'Prevalence Rates'!H111","v":281.79231411753625},{"$f":"'Population 2016'!I111*'Prevalence Rates'!I111","v":59.909115192906292},{"$f":"'Population 2016'!J111*'Prevalence Rates'!J111","v":90.060583288779114},{"$f":"'Population 2016'!K111*'Prevalence Rates'!K111","v":41.081787892623915},{"$f":"'Population 2016'!L111*'Prevalence Rates'!L111","v":126.41153760188503},{"$f":"'Population 2016'!M111*'Prevalence Rates'!M111","v":130.17873838663527},{"$f":"'Population 2016'!N111*'Prevalence Rates'!N111","v":69.861411985079812},{"$f":"'Population 2016'!O111*'Prevalence Rates'!O111","v":69.377546593398904},{"$f":"'Population 2016'!P111*'Prevalence Rates'!P111","v":44.383051047247058},{"$f":"'Population 2016'!Q111*'Prevalence Rates'!Q111","v":90.798061121433435},{"$f":"'Population 2016'!R111*'Prevalence Rates'!R111","v":20.961020284263906},{"$f":"'Population 2016'!S111*'Prevalence Rates'!S111","v":795.26769315679962},{"$f":"'Population 2016'!T111*'Prevalence Rates'!T111","v":178.53455139900495},{"$f":"'Population 2016'!U111*'Prevalence Rates'!U111","v":21.035473345431665},{"$f":"'Population 2016'!V111*'Prevalence Rates'!V111","v":134.49709540668977},{"$f":"'Population 2016'!W111*'Prevalence Rates'!W111","v":201.24192673725491},{"$f":"'Population 2016'!X111*'Prevalence Rates'!X111","v":208.56801970568154},{"$f":"'Population 2016'!Y111*'Prevalence Rates'!Y111","v":222.88675382021961},{"$f":"'Population 2016'!Z111*'Prevalence Rates'!Z111","v":209.35009689143993},{"$f":"'Population 2016'!AA111*'Prevalence Rates'!AA111","v":946.38115441390653},{"$f":"'Population 2016'!AB111*'Prevalence Rates'!AB111","v":202.09105904443581},{"$f":"'Population 2016'!AC111*'Prevalence Rates'!AC111","v":448.84226571077079},{"$f":"'Population 2016'!AD111*'Prevalence Rates'!AD111","v":205.59024154556269},{"$f":"'Population 2016'!AE111*'Prevalence Rates'!AE111","v":109.00267194422523},{"$f":"'Population 2016'!AF111*'Prevalence Rates'!AF111","v":33.856556050446969},{"$f":"'Population 2016'!AG111*'Prevalence Rates'!AG111","v":140.84715998812459},{"$f":"'Population 2016'!AH111*'Prevalence Rates'!AH111","v":505.29936499858684},{"$f":"'Population 2016'!AI111*'Prevalence Rates'!AI111","v":527.77490994378536},{"$f":"'Population 2016'!AJ111*'Prevalence Rates'!AJ111","v":110.16408115083009},{"$f":"'Population 2016'!AK111*'Prevalence Rates'!AK111","v":31.056386829808215},{"$f":"'Population 2016'!AL111*'Prevalence Rates'!AL111","v":102.20105843111179},{"$f":"'Population 2016'!AM111*'Prevalence Rates'!AM111","v":249.53092016004635},{"$f":"'Population 2016'!AN111*'Prevalence Rates'!AN111","v":11.69381733513557},{"$f":"'Population 2016'!AO111*'Prevalence Rates'!AO111","v":11.69381733513557},{"$f":"'Population 2016'!AP111*'Prevalence Rates'!AP111","v":37.07662912129593},{"$f":"'Population 2016'!AQ111*'Prevalence Rates'!AQ111","v":105.56430533250365},{"$f":"'Population 2016'!AR111*'Prevalence Rates'!AR111","v":2941.6128792652985},{"$f":"'Population 2016'!AS111*'Prevalence Rates'!AS111","v":59.909115192906292},{"$f":"'Population 2016'!AT111*'Prevalence Rates'!AT111","v":2.2754955094186093},{"$f":"'Population 2016'!AU111*'Prevalence Rates'!AU111","v":2.2754955094186093},{"$f":"'Population 2016'!AV111*'Prevalence Rates'!AV111","v":110.27872175605837},{"$f":"'Population 2016'!AW111*'Prevalence Rates'!AW111","v":261.83784894774391},{"$f":"'Population 2016'!AX111*'Prevalence Rates'!AX111","v":32.538160745705277},{"$f":"'Population 2016'!AY111*'Prevalence Rates'!AY111","v":343.86806708961188},{"$f":"'Population 2016'!AZ111*'Prevalence Rates'!AZ111","v":144.11274605422142},{"$f":"'Population 2016'!BA111*'Prevalence Rates'!BA111","v":73.603527830484239},{"$f":"'Population 2016'!BB111*'Prevalence Rates'!BB111","v":126.05891306585306},{"$f":"'Population 2016'!BC111*'Prevalence Rates'!BC111","v":11.686512251979773},109]
[null,"Female 70-74",{"$f":"'Population 2016'!C112*'Prevalence Rates'!C112","v":86.762772160546561},{"$f":"'Population 2016'!D112*'Prevalence Rates'!D112","v":121.19203001618907},{"$f":"'Population 2016'!E112*'Prevalence Rates'!E112","v":40.290192390081934},{"$f":"'Population 2016'!F112*'Prevalence Rates'!F112","v":36.486257274241716},{"$f":"'Population 2016'!G112*'Prevalence Rates'!G112","v":46.226242312559201},{"$f":"'Population 2016'!H112*'Prevalence Rates'!H112","v":226.96960154840849},{"$f":"'Population 2016'!I112*'Prevalence Rates'!I112","v":47.909774869180907},{"$f":"'Population 2016'!J112*'Prevalence Rates'!J112","v":73.358438751587357},{"$f":"'Population 2016'!K112*'Prevalence Rates'!K112","v":31.594490470797911},{"$f":"'Population 2016'!L112*'Prevalence Rates'!L112","v":102.83771609977912},{"$f":"'Population 2016'!M112*'Prevalence Rates'!M112","v":105.90239146203207},{"$f":"'Population 2016'!N112*'Prevalence Rates'!N112","v":56.133950556221826},{"$f":"'Population 2016'!O112*'Prevalence Rates'!O112","v":56.588753381817256},{"$f":"'Population 2016'!P112*'Prevalence Rates'!P112","v":39.715617380710562},{"$f":"'Population 2016'!Q112*'Prevalence Rates'!Q112","v":73.442720767220052},{"$f":"'Population 2016'!R112*'Prevalence Rates'!R112","v":12.389914823896884},{"$f":"'Population 2016'!S112*'Prevalence Rates'!S112","v":619.60933761089132},{"$f":"'Population 2016'!T112*'Prevalence Rates'!T112","v":134.58211704662881},{"$f":"'Population 2016'!U112*'Prevalence Rates'!U112","v":15.420071562541009},{"$f":"'Population 2016'!V112*'Prevalence Rates'!V112","v":109.79354727076716},{"$f":"'Population 2016'!W112*'Prevalence Rates'!W112","v":154.83866420696717},{"$f":"'Population 2016'!X112*'Prevalence Rates'!X112","v":160.47547392887105},{"$f":"'Population 2016'!Y112*'Prevalence Rates'!Y112","v":181.80255253724059},{"$f":"'Population 2016'!Z112*'Prevalence Rates'!Z112","v":159.87067250600131},{"$f":"'Population 2016'!AA112*'Prevalence Rates'!AA112","v":760.49102623768101},{"$f":"'Population 2016'!AB112*'Prevalence Rates'!AB112","v":148.293874122646},{"$f":"'Population 2016'!AC112*'Prevalence Rates'!AC112","v":347.99399409888241},{"$f":"'Population 2016'!AD112*'Prevalence Rates'!AD112","v":155.57655500991564},{"$f":"'Population 2016'!AE112*'Prevalence Rates'!AE112","v":79.699356239738705},{"$f":"'Population 2016'!AF112*'Prevalence Rates'!AF112","v":25.768600993951303},{"$f":"'Population 2016'!AG112*'Prevalence Rates'!AG112","v":102.98305334196642},{"$f":"'Population 2016'!AH112*'Prevalence Rates'!AH112","v":419.54289545506668},{"$f":"'Population 2016'!AI112*'Prevalence Rates'!AI112","v":412.30712778890143},{"$f":"'Population 2016'!AJ112*'Prevalence Rates'!AJ112","v":80.003886023081208},{"$f":"'Population 2016'!AK112*'Prevalence Rates'!AK112","v":24.269229443161386},{"$f":"'Population 2016'!AL112*'Prevalence Rates'!AL112","v":78.221506811516917},{"$f":"'Population 2016'!AM112*'Prevalence Rates'!AM112","v":211.28537721998475},{"$f":"'Population 2016'!AN112*'Prevalence Rates'!AN112","v":10.12153937410894},{"$f":"'Population 2016'!AO112*'Prevalence Rates'!AO112","v":10.12153937410894},{"$f":"'Population 2016'!AP112*'Prevalence Rates'!AP112","v":29.741904664691734},{"$f":"'Population 2016'!AQ112*'Prevalence Rates'!AQ112","v":85.471099487964608},{"$f":"'Population 2016'!AR112*'Prevalence Rates'!AR112","v":2326.2036286492066},{"$f":"'Population 2016'!AS112*'Prevalence Rates'!AS112","v":47.909774869180907},{"$f":"'Population 2016'!AT112*'Prevalence Rates'!AT112","v":1.729376587158143},{"$f":"'Population 2016'!AU112*'Prevalence Rates'!AU112","v":1.729376587158143},{"$f":"'Population 2016'!AV112*'Prevalence Rates'!AV112","v":91.590712420521555},{"$f":"'Population 2016'!AW112*'Prevalence Rates'!AW112","v":212.7129132534323},{"$f":"'Population 2016'!AX112*'Prevalence Rates'!AX112","v":28.359763054316897},{"$f":"'Population 2016'!AY112*'Prevalence Rates'!AY112","v":269.69735046174702},{"$f":"'Population 2016'!AZ112*'Prevalence Rates'!AZ112","v":115.91003661135227},{"$f":"'Population 2016'!BA112*'Prevalence Rates'!BA112","v":55.202645872863179},{"$f":"'Population 2016'!BB112*'Prevalence Rates'!BB112","v":105.03449393047799},{"$f":"'Population 2016'!BC112*'Prevalence Rates'!BC112","v":8.5668077101377147},110]
[null,"Female 75-79",{"$f":"'Population 2016'!C113*'Prevalence Rates'!C113","v":26.008293597018671},{"$f":"'Population 2016'!D113*'Prevalence Rates'!D113","v":33.717059088879495},{"$f":"'Population 2016'!E113*'Prevalence Rates'!E113","v":9.864405539747926},{"$f":"'Population 2016'!F113*'Prevalence Rates'!F113","v":9.7011420101558556},{"$f":"'Population 2016'!G113*'Prevalence Rates'!G113","v":12.904516128359894},{"$f":"'Population 2016'!H113*'Prevalence Rates'!H113","v":55.70957889899173},{"$f":"'Population 2016'!I113*'Prevalence Rates'!I113","v":11.691399010324625},{"$f":"'Population 2016'!J113*'Prevalence Rates'!J113","v":17.604734240067206},{"$f":"'Population 2016'!K113*'Prevalence Rates'!K113","v":6.4871703380018362},{"$f":"'Population 2016'!L113*'Prevalence Rates'!L113","v":24.334616754094736},{"$f":"'Population 2016'!M113*'Prevalence Rates'!M113","v":25.059814699406768},{"$f":"'Population 2016'!N113*'Prevalence Rates'!N113","v":16.292328316513643},{"$f":"'Population 2016'!O113*'Prevalence Rates'!O113","v":14.60839575220202},{"$f":"'Population 2016'!P113*'Prevalence Rates'!P113","v":9.7388229631910459},{"$f":"'Population 2016'!Q113*'Prevalence Rates'!Q113","v":19.591025548096379},{"$f":"'Population 2016'!R113*'Prevalence Rates'!R113","v":4.049300074168908},{"$f":"'Population 2016'!S113*'Prevalence Rates'!S113","v":156.78292898979313},{"$f":"'Population 2016'!T113*'Prevalence Rates'!T113","v":38.926497530271298},{"$f":"'Population 2016'!U113*'Prevalence Rates'!U113","v":4.4684384855948345},{"$f":"'Population 2016'!V113*'Prevalence Rates'!V113","v":27.498012752799944},{"$f":"'Population 2016'!W113*'Prevalence Rates'!W113","v":38.391973843766515},{"$f":"'Population 2016'!X113*'Prevalence Rates'!X113","v":39.789610877862586},{"$f":"'Population 2016'!Y113*'Prevalence Rates'!Y113","v":44.834621752859135},{"$f":"'Population 2016'!Z113*'Prevalence Rates'!Z113","v":47.369511647946119},{"$f":"'Population 2016'!AA113*'Prevalence Rates'!AA113","v":203.76430483049205},{"$f":"'Population 2016'!AB113*'Prevalence Rates'!AB113","v":40.776200280840591},{"$f":"'Population 2016'!AC113*'Prevalence Rates'!AC113","v":98.498848794910487},{"$f":"'Population 2016'!AD113*'Prevalence Rates'!AD113","v":43.171472138513103},{"$f":"'Population 2016'!AE113*'Prevalence Rates'!AE113","v":22.059899508673443},{"$f":"'Population 2016'!AF113*'Prevalence Rates'!AF113","v":5.7371876778744291},{"$f":"'Population 2016'!AG113*'Prevalence Rates'!AG113","v":28.504569108268427},{"$f":"'Population 2016'!AH113*'Prevalence Rates'!AH113","v":106.81769146584251},{"$f":"'Population 2016'!AI113*'Prevalence Rates'!AI113","v":105.92982141604624},{"$f":"'Population 2016'!AJ113*'Prevalence Rates'!AJ113","v":19.207514444381605},{"$f":"'Population 2016'!AK113*'Prevalence Rates'!AK113","v":6.376918279429816},{"$f":"'Population 2016'!AL113*'Prevalence Rates'!AL113","v":17.962274171957219},{"$f":"'Population 2016'!AM113*'Prevalence Rates'!AM113","v":53.130765327819951},{"$f":"'Population 2016'!AN113*'Prevalence Rates'!AN113","v":1.869637038854997},{"$f":"'Population 2016'!AO113*'Prevalence Rates'!AO113","v":1.869637038854997},{"$f":"'Population 2016'!AP113*'Prevalence Rates'!AP113","v":6.8643422489585424},{"$f":"'Population 2016'!AQ113*'Prevalence Rates'!AQ113","v":24.302808559252192},{"$f":"'Population 2016'!AR113*'Prevalence Rates'!AR113","v":604.43383757895526},{"$f":"'Population 2016'!AS113*'Prevalence Rates'!AS113","v":11.691399010324625},{"$f":"'Population 2016'!AT113*'Prevalence Rates'!AT113","v":0.27488015282653944},{"$f":"'Population 2016'!AU113*'Prevalence Rates'!AU113","v":0.27488015282653944},{"$f":"'Population 2016'!AV113*'Prevalence Rates'!AV113","v":22.575139528570865},{"$f":"'Population 2016'!AW113*'Prevalence Rates'!AW113","v":54.915717838308645},{"$f":"'Population 2016'!AX113*'Prevalence Rates'!AX113","v":7.8934462289245664},{"$f":"'Population 2016'!AY113*'Prevalence Rates'!AY113","v":69.200406091811573},{"$f":"'Population 2016'!AZ113*'Prevalence Rates'!AZ113","v":31.027042676309332},{"$f":"'Population 2016'!BA113*'Prevalence Rates'!BA113","v":15.937264014546413},{"$f":"'Population 2016'!BB113*'Prevalence Rates'!BB113","v":24.286383853767457},{"$f":"'Population 2016'!BC113*'Prevalence Rates'!BC113","v":2.4824951762001994},111]
[null,"Female 80-84",{"$f":"'Population 2016'!C114*'Prevalence Rates'!C114","v":23.064568824221784},{"$f":"'Population 2016'!D114*'Prevalence Rates'!D114","v":28.857189822811357},{"$f":"'Population 2016'!E114*'Prevalence Rates'!E114","v":7.8636063029122614},{"$f":"'Population 2016'!F114*'Prevalence Rates'!F114","v":7.4973697033991398},{"$f":"'Population 2016'!G114*'Prevalence Rates'!G114","v":9.7957008792550102},{"$f":"'Population 2016'!H114*'Prevalence Rates'!H114","v":43.683212883042884},{"$f":"'Population 2016'!I114*'Prevalence Rates'!I114","v":9.2578951439222141},{"$f":"'Population 2016'!J114*'Prevalence Rates'!J114","v":11.769457160494369},{"$f":"'Population 2016'!K114*'Prevalence Rates'!K114","v":4.3518101017428981},{"$f":"'Population 2016'!L114*'Prevalence Rates'!L114","v":20.266444330372476},{"$f":"'Population 2016'!M114*'Prevalence Rates'!M114","v":20.870406329679234},{"$f":"'Population 2016'!N114*'Prevalence Rates'!N114","v":13.255670688638331},{"$f":"'Population 2016'!O114*'Prevalence Rates'!O114","v":10.826222057453824},{"$f":"'Population 2016'!P114*'Prevalence Rates'!P114","v":8.969968518728594},{"$f":"'Population 2016'!Q114*'Prevalence Rates'!Q114","v":15.436321924519659},{"$f":"'Population 2016'!R114*'Prevalence Rates'!R114","v":3.8699007037943365},{"$f":"'Population 2016'!S114*'Prevalence Rates'!S114","v":120.60915777821683},{"$f":"'Population 2016'!T114*'Prevalence Rates'!T114","v":29.159095116885211},{"$f":"'Population 2016'!U114*'Prevalence Rates'!U114","v":4.1185005319036732},{"$f":"'Population 2016'!V114*'Prevalence Rates'!V114","v":19.808859498638629},{"$f":"'Population 2016'!W114*'Prevalence Rates'!W114","v":30.582199696840625},{"$f":"'Population 2016'!X114*'Prevalence Rates'!X114","v":31.695526535787877},{"$f":"'Population 2016'!Y114*'Prevalence Rates'!Y114","v":31.46815029445327},{"$f":"'Population 2016'!Z114*'Prevalence Rates'!Z114","v":42.673991542901895},{"$f":"'Population 2016'!AA114*'Prevalence Rates'!AA114","v":164.50361109474881},{"$f":"'Population 2016'!AB114*'Prevalence Rates'!AB114","v":33.767790857571114},{"$f":"'Population 2016'!AC114*'Prevalence Rates'!AC114","v":84.162020493065967},{"$f":"'Population 2016'!AD114*'Prevalence Rates'!AD114","v":31.616064514481739},{"$f":"'Population 2016'!AE114*'Prevalence Rates'!AE114","v":15.903648482997134},{"$f":"'Population 2016'!AF114*'Prevalence Rates'!AF114","v":4.4306993947941136},{"$f":"'Population 2016'!AG114*'Prevalence Rates'!AG114","v":20.549805636193515},{"$f":"'Population 2016'!AH114*'Prevalence Rates'!AH114","v":81.298476309661027},{"$f":"'Population 2016'!AI114*'Prevalence Rates'!AI114","v":79.743443202638531},{"$f":"'Population 2016'!AJ114*'Prevalence Rates'!AJ114","v":15.11672933809068},{"$f":"'Population 2016'!AK114*'Prevalence Rates'!AK114","v":4.5756459082921728},{"$f":"'Population 2016'!AL114*'Prevalence Rates'!AL114","v":15.116139179921745},{"$f":"'Population 2016'!AM114*'Prevalence Rates'!AM114","v":39.244898640694061},{"$f":"'Population 2016'!AN114*'Prevalence Rates'!AN114","v":1.7806067036714257},{"$f":"'Population 2016'!AO114*'Prevalence Rates'!AO114","v":1.7806067036714257},{"$f":"'Population 2016'!AP114*'Prevalence Rates'!AP114","v":5.7446268466461561},{"$f":"'Population 2016'!AQ114*'Prevalence Rates'!AQ114","v":20.257372103426363},{"$f":"'Population 2016'!AR114*'Prevalence Rates'!AR114","v":476.35941455787201},{"$f":"'Population 2016'!AS114*'Prevalence Rates'!AS114","v":9.2578951439222141},{"$f":"'Population 2016'!AT114*'Prevalence Rates'!AT114","v":0.41232022923980916},{"$f":"'Population 2016'!AU114*'Prevalence Rates'!AU114","v":0.41232022923980916},{"$f":"'Population 2016'!AV114*'Prevalence Rates'!AV114","v":17.666222469623815},{"$f":"'Population 2016'!AW114*'Prevalence Rates'!AW114","v":43.158535321938238},{"$f":"'Population 2016'!AX114*'Prevalence Rates'!AX114","v":5.2622974859497109},{"$f":"'Population 2016'!AY114*'Prevalence Rates'!AY114","v":55.403217687142529},{"$f":"'Population 2016'!AZ114*'Prevalence Rates'!AZ114","v":24.990106770964076},{"$f":"'Population 2016'!BA114*'Prevalence Rates'!BA114","v":11.32384548401982},{"$f":"'Population 2016'!BB114*'Prevalence Rates'!BB114","v":17.275608558289921},{"$f":"'Population 2016'!BC114*'Prevalence Rates'!BC114","v":2.2880829033652441},112]
[null,"Female 85-89",{"$f":"'Population 2016'!C115*'Prevalence Rates'!C115","v":12.971798174632447},{"$f":"'Population 2016'!D115*'Prevalence Rates'!D115","v":16.117193554700538},{"$f":"'Population 2016'!E115*'Prevalence Rates'!E115","v":4.3273099773422503},{"$f":"'Population 2016'!F115*'Prevalence Rates'!F115","v":5.5662290222205737},{"$f":"'Population 2016'!G115*'Prevalence Rates'!G115","v":5.4844193545529549},{"$f":"'Population 2016'!H115*'Prevalence Rates'!H115","v":23.998802139449488},{"$f":"'Population 2016'!I115*'Prevalence Rates'!I115","v":5.6340904733012334},{"$f":"'Population 2016'!J115*'Prevalence Rates'!J115","v":6.8572747601759909},{"$f":"'Population 2016'!K115*'Prevalence Rates'!K115","v":2.7570473936507804},{"$f":"'Population 2016'!L115*'Prevalence Rates'!L115","v":11.286697882887976},{"$f":"'Population 2016'!M115*'Prevalence Rates'!M115","v":11.62305370869529},{"$f":"'Population 2016'!N115*'Prevalence Rates'!N115","v":7.2615725883974918},{"$f":"'Population 2016'!O115*'Prevalence Rates'!O115","v":5.7833237977895662},{"$f":"'Population 2016'!P115*'Prevalence Rates'!P115","v":5.202581740862585},{"$f":"'Population 2016'!Q115*'Prevalence Rates'!Q115","v":8.6929183508682133},{"$f":"'Population 2016'!R115*'Prevalence Rates'!R115","v":1.7171082592994737},{"$f":"'Population 2016'!S115*'Prevalence Rates'!S115","v":75.608866709390696},{"$f":"'Population 2016'!T115*'Prevalence Rates'!T115","v":19.892585134954818},{"$f":"'Population 2016'!U115*'Prevalence Rates'!U115","v":1.6958531601956301},{"$f":"'Population 2016'!V115*'Prevalence Rates'!V115","v":12.37696416004405},{"$f":"'Population 2016'!W115*'Prevalence Rates'!W115","v":19.682577211411349},{"$f":"'Population 2016'!X115*'Prevalence Rates'!X115","v":20.399109759309781},{"$f":"'Population 2016'!Y115*'Prevalence Rates'!Y115","v":19.210556513090044},{"$f":"'Population 2016'!Z115*'Prevalence Rates'!Z115","v":26.515878240249723},{"$f":"'Population 2016'!AA115*'Prevalence Rates'!AA115","v":95.816962186966748},{"$f":"'Population 2016'!AB115*'Prevalence Rates'!AB115","v":19.326219924773405},{"$f":"'Population 2016'!AC115*'Prevalence Rates'!AC115","v":48.892913569345431},{"$f":"'Population 2016'!AD115*'Prevalence Rates'!AD115","v":19.826029324480199},{"$f":"'Population 2016'!AE115*'Prevalence Rates'!AE115","v":10.452801220679568},{"$f":"'Population 2016'!AF115*'Prevalence Rates'!AF115","v":2.272153535791853},{"$f":"'Population 2016'!AG115*'Prevalence Rates'!AG115","v":13.506525478627189},{"$f":"'Population 2016'!AH115*'Prevalence Rates'!AH115","v":47.489579797012922},{"$f":"'Population 2016'!AI115*'Prevalence Rates'!AI115","v":49.510677400978132},{"$f":"'Population 2016'!AJ115*'Prevalence Rates'!AJ115","v":9.8114924033696376},{"$f":"'Population 2016'!AK115*'Prevalence Rates'!AK115","v":2.9193034980506622},{"$f":"'Population 2016'!AL115*'Prevalence Rates'!AL115","v":7.7161882006295102},{"$f":"'Population 2016'!AM115*'Prevalence Rates'!AM115","v":21.611644640591496},{"$f":"'Population 2016'!AN115*'Prevalence Rates'!AN115","v":0.86062657344118909},{"$f":"'Population 2016'!AO115*'Prevalence Rates'!AO115","v":0.86062657344118909},{"$f":"'Population 2016'!AP115*'Prevalence Rates'!AP115","v":4.9656943928636261},{"$f":"'Population 2016'!AQ115*'Prevalence Rates'!AQ115","v":10.657007976914315},{"$f":"'Population 2016'!AR115*'Prevalence Rates'!AR115","v":283.87967172077879},{"$f":"'Population 2016'!AS115*'Prevalence Rates'!AS115","v":5.6340904733012334},{"$f":"'Population 2016'!AT115*'Prevalence Rates'!AT115","v":0.13744007641326972},{"$f":"'Population 2016'!AU115*'Prevalence Rates'!AU115","v":0.13744007641326972},{"$f":"'Population 2016'!AV115*'Prevalence Rates'!AV115","v":10.493912515234113},{"$f":"'Population 2016'!AW115*'Prevalence Rates'!AW115","v":26.710207661878897},{"$f":"'Population 2016'!AX115*'Prevalence Rates'!AX115","v":2.8459363954625987},{"$f":"'Population 2016'!AY115*'Prevalence Rates'!AY115","v":36.530379662103009},{"$f":"'Population 2016'!AZ115*'Prevalence Rates'!AZ115","v":16.940858897170404},{"$f":"'Population 2016'!BA115*'Prevalence Rates'!BA115","v":6.7366395587803094},{"$f":"'Population 2016'!BB115*'Prevalence Rates'!BB115","v":9.788629657836557},{"$f":"'Population 2016'!BC115*'Prevalence Rates'!BC115","v":0.94215178373862996},113]
[null,"Female 90+",{"$f":"'Population 2016'!C116*'Prevalence Rates'!C116","v":6.3079816559933342},{"$f":"'Population 2016'!D116*'Prevalence Rates'!D116","v":8.4841785492375923},{"$f":"'Population 2016'!E116*'Prevalence Rates'!E116","v":2.6522222441775085},{"$f":"'Population 2016'!F116*'Prevalence Rates'!F116","v":3.6578076431735198},{"$f":"'Population 2016'!G116*'Prevalence Rates'!G116","v":3.0501583576123386},{"$f":"'Population 2016'!H116*'Prevalence Rates'!H116","v":16.718266658942341},{"$f":"'Population 2016'!I116*'Prevalence Rates'!I116","v":3.8883159604473301},{"$f":"'Population 2016'!J116*'Prevalence Rates'!J116","v":4.1539260566450711},{"$f":"'Population 2016'!K116*'Prevalence Rates'!K116","v":1.6488224609088},{"$f":"'Population 2016'!L116*'Prevalence Rates'!L116","v":6.8464365179716076},{"$f":"'Population 2016'!M116*'Prevalence Rates'!M116","v":7.050467744175605},{"$f":"'Population 2016'!N116*'Prevalence Rates'!N116","v":4.3569435530384952},{"$f":"'Population 2016'!O116*'Prevalence Rates'!O116","v":3.6821161895961252},{"$f":"'Population 2016'!P116*'Prevalence Rates'!P116","v":3.562358926009356},{"$f":"'Population 2016'!Q116*'Prevalence Rates'!Q116","v":4.6980110205059828},{"$f":"'Population 2016'!R116*'Prevalence Rates'!R116","v":0.89699685187285949},{"$f":"'Population 2016'!S116*'Prevalence Rates'!S116","v":43.564111566629542},{"$f":"'Population 2016'!T116*'Prevalence Rates'!T116","v":12.021418354936726},{"$f":"'Population 2016'!U116*'Prevalence Rates'!U116","v":1.5343433354150939},{"$f":"'Population 2016'!V116*'Prevalence Rates'!V116","v":7.8892427440465536},{"$f":"'Population 2016'!W116*'Prevalence Rates'!W116","v":11.726825977627033},{"$f":"'Population 2016'!X116*'Prevalence Rates'!X116","v":12.153734121121525},{"$f":"'Population 2016'!Y116*'Prevalence Rates'!Y116","v":12.047806112733538},{"$f":"'Population 2016'!Z116*'Prevalence Rates'!Z116","v":15.550457759646452},{"$f":"'Population 2016'!AA116*'Prevalence Rates'!AA116","v":49.486734894820565},{"$f":"'Population 2016'!AB116*'Prevalence Rates'!AB116","v":9.9020330109072532},{"$f":"'Population 2016'!AC116*'Prevalence Rates'!AC116","v":26.305406102673871},{"$f":"'Population 2016'!AD116*'Prevalence Rates'!AD116","v":11.027495600598455},{"$f":"'Population 2016'!AE116*'Prevalence Rates'!AE116","v":5.8142370798054035},{"$f":"'Population 2016'!AF116*'Prevalence Rates'!AF116","v":0.73844989913235226},{"$f":"'Population 2016'!AG116*'Prevalence Rates'!AG116","v":7.5128321680707479},{"$f":"'Population 2016'!AH116*'Prevalence Rates'!AH116","v":23.406159124140995},{"$f":"'Population 2016'!AI116*'Prevalence Rates'!AI116","v":27.206199475487651},{"$f":"'Population 2016'!AJ116*'Prevalence Rates'!AJ116","v":4.4423369513628002},{"$f":"'Population 2016'!AK116*'Prevalence Rates'!AK116","v":1.3250739281932085},{"$f":"'Population 2016'!AL116*'Prevalence Rates'!AL116","v":4.8700532085940349},{"$f":"'Population 2016'!AM116*'Prevalence Rates'!AM116","v":9.240133100490425},{"$f":"'Population 2016'!AN116*'Prevalence Rates'!AN116","v":0.35612134073428514},{"$f":"'Population 2016'!AO116*'Prevalence Rates'!AO116","v":0.35612134073428514},{"$f":"'Population 2016'!AP116*'Prevalence Rates'!AP116","v":2.336797361347589},{"$f":"'Population 2016'!AQ116*'Prevalence Rates'!AQ116","v":5.0718904819308923},{"$f":"'Population 2016'!AR116*'Prevalence Rates'!AR116","v":160.65882487549982},{"$f":"'Population 2016'!AS116*'Prevalence Rates'!AS116","v":3.8883159604473301},{"$f":"'Population 2016'!AT116*'Prevalence Rates'!AT116","v":2.7488015282653943E-2},{"$f":"'Population 2016'!AU116*'Prevalence Rates'!AU116","v":2.7488015282653943E-2},{"$f":"'Population 2016'!AV116*'Prevalence Rates'!AV116","v":8.2893090456471139},{"$f":"'Population 2016'!AW116*'Prevalence Rates'!AW116","v":14.777107202620158},{"$f":"'Population 2016'!AX116*'Prevalence Rates'!AX116","v":1.7451496764629144},{"$f":"'Population 2016'!AY116*'Prevalence Rates'!AY116","v":21.541724210398645},{"$f":"'Population 2016'!AZ116*'Prevalence Rates'!AZ116","v":9.8743680312236339},{"$f":"'Population 2016'!BA116*'Prevalence Rates'!BA116","v":2.6736857392824573},{"$f":"'Population 2016'!BB116*'Prevalence Rates'!BB116","v":5.4234299455580919},{"$f":"'Population 2016'!BC116*'Prevalence Rates'!BC116","v":0.85242304243018896},114]
[null,"Male 0-4",{"$f":"'Population 2016'!C117*'Prevalence Rates'!C117","v":0},{"$f":"'Population 2016'!D117*'Prevalence Rates'!D117","v":0},{"$f":"'Population 2016'!E117*'Prevalence Rates'!E117","v":0},{"$f":"'Population 2016'!F117*'Prevalence Rates'!F117","v":0},{"$f":"'Population 2016'!G117*'Prevalence Rates'!G117","v":0},{"$f":"'Population 2016'!H117*'Prevalence Rates'!H117","v":0},{"$f":"'Population 2016'!I117*'Prevalence Rates'!I117","v":0},{"$f":"'Population 2016'!J117*'Prevalence Rates'!J117","v":0},{"$f":"'Population 2016'!K117*'Prevalence Rates'!K117","v":0},{"$f":"'Population 2016'!L117*'Prevalence Rates'!L117","v":0},{"$f":"'Population 2016'!M117*'Prevalence Rates'!M117","v":0},{"$f":"'Population 2016'!N117*'Prevalence Rates'!N117","v":0},{"$f":"'Population 2016'!O117*'Prevalence Rates'!O117","v":0},{"$f":"'Population 2016'!P117*'Prevalence Rates'!P117","v":0},{"$f":"'Population 2016'!Q117*'Prevalence Rates'!Q117","v":0},{"$f":"'Population 2016'!R117*'Prevalence Rates'!R117","v":0},{"$f":"'Population 2016'!S117*'Prevalence Rates'!S117","v":0},{"$f":"'Population 2016'!T117*'Prevalence Rates'!T117","v":0},{"$f":"'Population 2016'!U117*'Prevalence Rates'!U117","v":0},{"$f":"'Population 2016'!V117*'Prevalence Rates'!V117","v":0},{"$f":"'Population 2016'!W117*'Prevalence Rates'!W117","v":0},{"$f":"'Population 2016'!X117*'Prevalence Rates'!X117","v":0},{"$f":"'Population 2016'!Y117*'Prevalence Rates'!Y117","v":0},{"$f":"'Population 2016'!Z117*'Prevalence Rates'!Z117","v":0},{"$f":"'Population 2016'!AA117*'Prevalence Rates'!AA117","v":0},{"$f":"'Population 2016'!AB117*'Prevalence Rates'!AB117","v":0},{"$f":"'Population 2016'!AC117*'Prevalence Rates'!AC117","v":0},{"$f":"'Population 2016'!AD117*'Prevalence Rates'!AD117","v":0},{"$f":"'Population 2016'!AE117*'Prevalence Rates'!AE117","v":0},{"$f":"'Population 2016'!AF117*'Prevalence Rates'!AF117","v":0},{"$f":"'Population 2016'!AG117*'Prevalence Rates'!AG117","v":0},{"$f":"'Population 2016'!AH117*'Prevalence Rates'!AH117","v":0},{"$f":"'Population 2016'!AI117*'Prevalence Rates'!AI117","v":0},{"$f":"'Population 2016'!AJ117*'Prevalence Rates'!AJ117","v":0},{"$f":"'Population 2016'!AK117*'Prevalence Rates'!AK117","v":0},{"$f":"'Population 2016'!AL117*'Prevalence Rates'!AL117","v":0},{"$f":"'Population 2016'!AM117*'Prevalence Rates'!AM117","v":0},{"$f":"'Population 2016'!AN117*'Prevalence Rates'!AN117","v":0},{"$f":"'Population 2016'!AO117*'Prevalence Rates'!AO117","v":0},{"$f":"'Population 2016'!AP117*'Prevalence Rates'!AP117","v":0},{"$f":"'Population 2016'!AQ117*'Prevalence Rates'!AQ117","v":0},{"$f":"'Population 2016'!AR117*'Prevalence Rates'!AR117","v":0},{"$f":"'Population 2016'!AS117*'Prevalence Rates'!AS117","v":0},{"$f":"'Population 2016'!AT117*'Prevalence Rates'!AT117","v":0},{"$f":"'Population 2016'!AU117*'Prevalence Rates'!AU117","v":0},{"$f":"'Population 2016'!AV117*'Prevalence Rates'!AV117","v":0},{"$f":"'Population 2016'!AW117*'Prevalence Rates'!AW117","v":0},{"$f":"'Population 2016'!AX117*'Prevalence Rates'!AX117","v":0},{"$f":"'Population 2016'!AY117*'Prevalence Rates'!AY117","v":0},{"$f":"'Population 2016'!AZ117*'Prevalence Rates'!AZ117","v":0},{"$f":"'Population 2016'!BA117*'Prevalence Rates'!BA117","v":0},{"$f":"'Population 2016'!BB117*'Prevalence Rates'!BB117","v":0},{"$f":"'Population 2016'!BC117*'Prevalence Rates'!BC117","v":0},115]
[null,"Male 5-9",{"$f":"'Population 2016'!C118*'Prevalence Rates'!C118","v":0},{"$f":"'Population 2016'!D118*'Prevalence Rates'!D118","v":0},{"$f":"'Population 2016'!E118*'Prevalence Rates'!E118","v":0},{"$f":"'Population 2016'!F118*'Prevalence Rates'!F118","v":0},{"$f":"'Population 2016'!G118*'Prevalence Rates'!G118","v":0},{"$f":"'Population 2016'!H118*'Prevalence Rates'!H118","v":0},{"$f":"'Population 2016'!I118*'Prevalence Rates'!I118","v":0},{"$f":"'Population 2016'!J118*'Prevalence Rates'!J118","v":0},{"$f":"'Population 2016'!K118*'Prevalence Rates'!K118","v":0},{"$f":"'Population 2016'!L118*'Prevalence Rates'!L118","v":0},{"$f":"'Population 2016'!M118*'Prevalence Rates'!M118","v":0},{"$f":"'Population 2016'!N118*'Prevalence Rates'!N118","v":0},{"$f":"'Population 2016'!O118*'Prevalence Rates'!O118","v":0},{"$f":"'Population 2016'!P118*'Prevalence Rates'!P118","v":0},{"$f":"'Population 2016'!Q118*'Prevalence Rates'!Q118","v":0},{"$f":"'Population 2016'!R118*'Prevalence Rates'!R118","v":0},{"$f":"'Population 2016'!S118*'Prevalence Rates'!S118","v":0},{"$f":"'Population 2016'!T118*'Prevalence Rates'!T118","v":0},{"$f":"'Population 2016'!U118*'Prevalence Rates'!U118","v":0},{"$f":"'Population 2016'!V118*'Prevalence Rates'!V118","v":0},{"$f":"'Population 2016'!W118*'Prevalence Rates'!W118","v":0},{"$f":"'Population 2016'!X118*'Prevalence Rates'!X118","v":0},{"$f":"'Population 2016'!Y118*'Prevalence Rates'!Y118","v":0},{"$f":"'Population 2016'!Z118*'Prevalence Rates'!Z118","v":0},{"$f":"'Population 2016'!AA118*'Prevalence Rates'!AA118","v":0},{"$f":"'Population 2016'!AB118*'Prevalence Rates'!AB118","v":0},{"$f":"'Population 2016'!AC118*'Prevalence Rates'!AC118","v":0},{"$f":"'Population 2016'!AD118*'Prevalence Rates'!AD118","v":0},{"$f":"'Population 2016'!AE118*'Prevalence Rates'!AE118","v":0},{"$f":"'Population 2016'!AF118*'Prevalence Rates'!AF118","v":0},{"$f":"'Population 2016'!AG118*'Prevalence Rates'!AG118","v":0},{"$f":"'Population 2016'!AH118*'Prevalence Rates'!AH118","v":0},{"$f":"'Population 2016'!AI118*'Prevalence Rates'!AI118","v":0},{"$f":"'Population 2016'!AJ118*'Prevalence Rates'!AJ118","v":0},{"$f":"'Population 2016'!AK118*'Prevalence Rates'!AK118","v":0},{"$f":"'Population 2016'!AL118*'Prevalence Rates'!AL118","v":0},{"$f":"'Population 2016'!AM118*'Prevalence Rates'!AM118","v":0},{"$f":"'Population 2016'!AN118*'Prevalence Rates'!AN118","v":0},{"$f":"'Population 2016'!AO118*'Prevalence Rates'!AO118","v":0},{"$f":"'Population 2016'!AP118*'Prevalence Rates'!AP118","v":0},{"$f":"'Population 2016'!AQ118*'Prevalence Rates'!AQ118","v":0},{"$f":"'Population 2016'!AR118*'Prevalence Rates'!AR118","v":0},{"$f":"'Population 2016'!AS118*'Prevalence Rates'!AS118","v":0},{"$f":"'Population 2016'!AT118*'Prevalence Rates'!AT118","v":0},{"$f":"'Population 2016'!AU118*'Prevalence Rates'!AU118","v":0},{"$f":"'Population 2016'!AV118*'Prevalence Rates'!AV118","v":0},{"$f":"'Population 2016'!AW118*'Prevalence Rates'!AW118","v":0},{"$f":"'Population 2016'!AX118*'Prevalence Rates'!AX118","v":0},{"$f":"'Population 2016'!AY118*'Prevalence Rates'!AY118","v":0},{"$f":"'Population 2016'!AZ118*'Prevalence Rates'!AZ118","v":0},{"$f":"'Population 2016'!BA118*'Prevalence Rates'!BA118","v":0},{"$f":"'Population 2016'!BB118*'Prevalence Rates'!BB118","v":0},{"$f":"'Population 2016'!BC118*'Prevalence Rates'!BC118","v":0},116]
[null,"Male 10-15",{"$f":"'Population 2016'!C119*'Prevalence Rates'!C119","v":0},{"$f":"'Population 2016'!D119*'Prevalence Rates'!D119","v":0},{"$f":"'Population 2016'!E119*'Prevalence Rates'!E119","v":0},{"$f":"'Population 2016'!F119*'Prevalence Rates'!F119","v":0},{"$f":"'Population 2016'!G119*'Prevalence Rates'!G119","v":0},{"$f":"'Population 2016'!H119*'Prevalence Rates'!H119","v":0},{"$f":"'Population 2016'!I119*'Prevalence Rates'!I119","v":0},{"$f":"'Population 2016'!J119*'Prevalence Rates'!J119","v":0},{"$f":"'Population 2016'!K119*'Prevalence Rates'!K119","v":0},{"$f":"'Population 2016'!L119*'Prevalence Rates'!L119","v":0},{"$f":"'Population 2016'!M119*'Prevalence Rates'!M119","v":0},{"$f":"'Population 2016'!N119*'Prevalence Rates'!N119","v":0},{"$f":"'Population 2016'!O119*'Prevalence Rates'!O119","v":0},{"$f":"'Population 2016'!P119*'Prevalence Rates'!P119","v":0},{"$f":"'Population 2016'!Q119*'Prevalence Rates'!Q119","v":0},{"$f":"'Population 2016'!R119*'Prevalence Rates'!R119","v":0},{"$f":"'Population 2016'!S119*'Prevalence Rates'!S119","v":0},{"$f":"'Population 2016'!T119*'Prevalence Rates'!T119","v":0},{"$f":"'Population 2016'!U119*'Prevalence Rates'!U119","v":0},{"$f":"'Population 2016'!V119*'Prevalence Rates'!V119","v":0},{"$f":"'Population 2016'!W119*'Prevalence Rates'!W119","v":0},{"$f":"'Population 2016'!X119*'Prevalence Rates'!X119","v":0},{"$f":"'Population 2016'!Y119*'Prevalence Rates'!Y119","v":0},{"$f":"'Population 2016'!Z119*'Prevalence Rates'!Z119","v":0},{"$f":"'Population 2016'!AA119*'Prevalence Rates'!AA119","v":0},{"$f":"'Population 2016'!AB119*'Prevalence Rates'!AB119","v":0},{"$f":"'Population 2016'!AC119*'Prevalence Rates'!AC119","v":0},{"$f":"'Population 2016'!AD119*'Prevalence Rates'!AD119","v":0},{"$f":"'Population 2016'!AE119*'Prevalence Rates'!AE119","v":0},{"$f":"'Population 2016'!AF119*'Prevalence Rates'!AF119","v":0},{"$f":"'Population 2016'!AG119*'Prevalence Rates'!AG119","v":0},{"$f":"'Population 2016'!AH119*'Prevalence Rates'!AH119","v":0},{"$f":"'Population 2016'!AI119*'Prevalence Rates'!AI119","v":0},{"$f":"'Population 2016'!AJ119*'Prevalence Rates'!AJ119","v":0},{"$f":"'Population 2016'!AK119*'Prevalence Rates'!AK119","v":0},{"$f":"'Population 2016'!AL119*'Prevalence Rates'!AL119","v":0},{"$f":"'Population 2016'!AM119*'Prevalence Rates'!AM119","v":0},{"$f":"'Population 2016'!AN119*'Prevalence Rates'!AN119","v":0},{"$f":"'Population 2016'!AO119*'Prevalence Rates'!AO119","v":0},{"$f":"'Population 2016'!AP119*'Prevalence Rates'!AP119","v":0},{"$f":"'Population 2016'!AQ119*'Prevalence Rates'!AQ119","v":0},{"$f":"'Population 2016'!AR119*'Prevalence Rates'!AR119","v":0},{"$f":"'Population 2016'!AS119*'Prevalence Rates'!AS119","v":0},{"$f":"'Population 2016'!AT119*'Prevalence Rates'!AT119","v":0},{"$f":"'Population 2016'!AU119*'Prevalence Rates'!AU119","v":0},{"$f":"'Population 2016'!AV119*'Prevalence Rates'!AV119","v":0},{"$f":"'Population 2016'!AW119*'Prevalence Rates'!AW119","v":0},{"$f":"'Population 2016'!AX119*'Prevalence Rates'!AX119","v":0},{"$f":"'Population 2016'!AY119*'Prevalence Rates'!AY119","v":0},{"$f":"'Population 2016'!AZ119*'Prevalence Rates'!AZ119","v":0},{"$f":"'Population 2016'!BA119*'Prevalence Rates'!BA119","v":0},{"$f":"'Population 2016'!BB119*'Prevalence Rates'!BB119","v":0},{"$f":"'Population 2016'!BC119*'Prevalence Rates'!BC119","v":0},117]
[null,"Male 16-19",{"$f":"'Population 2016'!C120*'Prevalence Rates'!C120","v":174.01771307307175},{"$f":"'Population 2016'!D120*'Prevalence Rates'!D120","v":216.97748455890832},{"$f":"'Population 2016'!E120*'Prevalence Rates'!E120","v":58.888280817648095},{"$f":"'Population 2016'!F120*'Prevalence Rates'!F120","v":65.873584309475461},{"$f":"'Population 2016'!G120*'Prevalence Rates'!G120","v":52.032125110047616},{"$f":"'Population 2016'!H120*'Prevalence Rates'!H120","v":395.37539332086982},{"$f":"'Population 2016'!I120*'Prevalence Rates'!I120","v":71.006335433559485},{"$f":"'Population 2016'!J120*'Prevalence Rates'!J120","v":129.26382674905389},{"$f":"'Population 2016'!K120*'Prevalence Rates'!K120","v":66.694592998222845},{"$f":"'Population 2016'!L120*'Prevalence Rates'!L120","v":152.62902965454973},{"$f":"'Population 2016'!M120*'Prevalence Rates'!M120","v":162.24464101683722},{"$f":"'Population 2016'!N120*'Prevalence Rates'!N120","v":80.694337845735106},{"$f":"'Population 2016'!O120*'Prevalence Rates'!O120","v":132.36360457747972},{"$f":"'Population 2016'!P120*'Prevalence Rates'!P120","v":75.275841300296932},{"$f":"'Population 2016'!Q120*'Prevalence Rates'!Q120","v":118.81507587821035},{"$f":"'Population 2016'!R120*'Prevalence Rates'!R120","v":38.760719121097416},{"$f":"'Population 2016'!S120*'Prevalence Rates'!S120","v":1157.2401580909263},{"$f":"'Population 2016'!T120*'Prevalence Rates'!T120","v":354.23066930704795},{"$f":"'Population 2016'!U120*'Prevalence Rates'!U120","v":32.231574502059402},{"$f":"'Population 2016'!V120*'Prevalence Rates'!V120","v":176.39430883270143},{"$f":"'Population 2016'!W120*'Prevalence Rates'!W120","v":263.62403559549068},{"$f":"'Population 2016'!X120*'Prevalence Rates'!X120","v":264.74258478854091},{"$f":"'Population 2016'!Y120*'Prevalence Rates'!Y120","v":379.72100350091949},{"$f":"'Population 2016'!Z120*'Prevalence Rates'!Z120","v":400.725294227983},{"$f":"'Population 2016'!AA120*'Prevalence Rates'!AA120","v":1336.7997993851798},{"$f":"'Population 2016'!AB120*'Prevalence Rates'!AB120","v":257.35013180117011},{"$f":"'Population 2016'!AC120*'Prevalence Rates'!AC120","v":732.44145371667287},{"$f":"'Population 2016'!AD120*'Prevalence Rates'!AD120","v":225.58664768106181},{"$f":"'Population 2016'!AE120*'Prevalence Rates'!AE120","v":160.72900833063306},{"$f":"'Population 2016'!AF120*'Prevalence Rates'!AF120","v":35.445642328747027},{"$f":"'Population 2016'!AG120*'Prevalence Rates'!AG120","v":174.46777515980014},{"$f":"'Population 2016'!AH120*'Prevalence Rates'!AH120","v":589.47691770323445},{"$f":"'Population 2016'!AI120*'Prevalence Rates'!AI120","v":821.56574649922675},{"$f":"'Population 2016'!AJ120*'Prevalence Rates'!AJ120","v":140.11580494190267},{"$f":"'Population 2016'!AK120*'Prevalence Rates'!AK120","v":44.497551885032586},{"$f":"'Population 2016'!AL120*'Prevalence Rates'!AL120","v":147.14870859871183},{"$f":"'Population 2016'!AM120*'Prevalence Rates'!AM120","v":306.33338879994699},{"$f":"'Population 2016'!AN120*'Prevalence Rates'!AN120","v":12.81906998076534},{"$f":"'Population 2016'!AO120*'Prevalence Rates'!AO120","v":12.81906998076534},{"$f":"'Population 2016'!AP120*'Prevalence Rates'!AP120","v":57.140015750161609},{"$f":"'Population 2016'!AQ120*'Prevalence Rates'!AQ120","v":112.1999315522953},{"$f":"'Population 2016'!AR120*'Prevalence Rates'!AR120","v":4070.895943563768},{"$f":"'Population 2016'!AS120*'Prevalence Rates'!AS120","v":71.006335433559485},{"$f":"'Population 2016'!AT120*'Prevalence Rates'!AT120","v":1.5117777112944499},{"$f":"'Population 2016'!AU120*'Prevalence Rates'!AU120","v":1.5117777112944499},{"$f":"'Population 2016'!AV120*'Prevalence Rates'!AV120","v":111.30545377127875},{"$f":"'Population 2016'!AW120*'Prevalence Rates'!AW120","v":273.56476761903087},{"$f":"'Population 2016'!AX120*'Prevalence Rates'!AX120","v":54.804957564154954},{"$f":"'Population 2016'!AY120*'Prevalence Rates'!AY120","v":436.47221191205381},{"$f":"'Population 2016'!AZ120*'Prevalence Rates'!AZ120","v":178.11673198180264},{"$f":"'Population 2016'!BA120*'Prevalence Rates'!BA120","v":95.10476527658696},{"$f":"'Population 2016'!BB120*'Prevalence Rates'!BB120","v":203.63707115520296},{"$f":"'Population 2016'!BC120*'Prevalence Rates'!BC120","v":22.246701237817046},118]
[null,"Male 20-24",{"$f":"'Population 2016'!C121*'Prevalence Rates'!C121","v":418.95940217700627},{"$f":"'Population 2016'!D121*'Prevalence Rates'!D121","v":456.29561382425237},{"$f":"'Population 2016'!E121*'Prevalence Rates'!E121","v":84.79912437741325},{"$f":"'Population 2016'!F121*'Prevalence Rates'!F121","v":102.69522887220789},{"$f":"'Population 2016'!G121*'Prevalence Rates'!G121","v":68.121005900654438},{"$f":"'Population 2016'!H121*'Prevalence Rates'!H121","v":507.64488246759316},{"$f":"'Population 2016'!I121*'Prevalence Rates'!I121","v":105.05046886060856},{"$f":"'Population 2016'!J121*'Prevalence Rates'!J121","v":214.8152483172683},{"$f":"'Population 2016'!K121*'Prevalence Rates'!K121","v":88.490211625093053},{"$f":"'Population 2016'!L121*'Prevalence Rates'!L121","v":205.98165506476843},{"$f":"'Population 2016'!M121*'Prevalence Rates'!M121","v":218.9584757085635},{"$f":"'Population 2016'!N121*'Prevalence Rates'!N121","v":240.22303766487454},{"$f":"'Population 2016'!O121*'Prevalence Rates'!O121","v":178.06273077960819},{"$f":"'Population 2016'!P121*'Prevalence Rates'!P121","v":110.66806262764418},{"$f":"'Population 2016'!Q121*'Prevalence Rates'!Q121","v":166.69286138834445},{"$f":"'Population 2016'!R121*'Prevalence Rates'!R121","v":52.45143183818228},{"$f":"'Population 2016'!S121*'Prevalence Rates'!S121","v":1711.0845290990414},{"$f":"'Population 2016'!T121*'Prevalence Rates'!T121","v":683.94306552428702},{"$f":"'Population 2016'!U121*'Prevalence Rates'!U121","v":35.915183016580471},{"$f":"'Population 2016'!V121*'Prevalence Rates'!V121","v":212.02789407221425},{"$f":"'Population 2016'!W121*'Prevalence Rates'!W121","v":327.31302278828508},{"$f":"'Population 2016'!X121*'Prevalence Rates'!X121","v":328.70180252032912},{"$f":"'Population 2016'!Y121*'Prevalence Rates'!Y121","v":519.6531750534449},{"$f":"'Population 2016'!Z121*'Prevalence Rates'!Z121","v":755.51084884288252},{"$f":"'Population 2016'!AA121*'Prevalence Rates'!AA121","v":1992.7654433095327},{"$f":"'Population 2016'!AB121*'Prevalence Rates'!AB121","v":504.53371948047794},{"$f":"'Population 2016'!AC121*'Prevalence Rates'!AC121","v":1213.6621814984317},{"$f":"'Population 2016'!AD121*'Prevalence Rates'!AD121","v":291.9960705188858},{"$f":"'Population 2016'!AE121*'Prevalence Rates'!AE121","v":207.33091015430773},{"$f":"'Population 2016'!AF121*'Prevalence Rates'!AF121","v":53.584492158950908},{"$f":"'Population 2016'!AG121*'Prevalence Rates'!AG121","v":225.05310641915048},{"$f":"'Population 2016'!AH121*'Prevalence Rates'!AH121","v":770.38535106733048},{"$f":"'Population 2016'!AI121*'Prevalence Rates'!AI121","v":1295.6584928895486},{"$f":"'Population 2016'!AJ121*'Prevalence Rates'!AJ121","v":173.14170596726046},{"$f":"'Population 2016'!AK121*'Prevalence Rates'!AK121","v":62.502341665103572},{"$f":"'Population 2016'!AL121*'Prevalence Rates'!AL121","v":184.65720294740308},{"$f":"'Population 2016'!AM121*'Prevalence Rates'!AM121","v":392.37275308975575},{"$f":"'Population 2016'!AN121*'Prevalence Rates'!AN121","v":17.410975645517105},{"$f":"'Population 2016'!AO121*'Prevalence Rates'!AO121","v":17.410975645517105},{"$f":"'Population 2016'!AP121*'Prevalence Rates'!AP121","v":100.59650141278452},{"$f":"'Population 2016'!AQ121*'Prevalence Rates'!AQ121","v":151.04432164833133},{"$f":"'Population 2016'!AR121*'Prevalence Rates'!AR121","v":6179.280872592215},{"$f":"'Population 2016'!AS121*'Prevalence Rates'!AS121","v":105.05046886060856},{"$f":"'Population 2016'!AT121*'Prevalence Rates'!AT121","v":7.9368329842958625},{"$f":"'Population 2016'!AU121*'Prevalence Rates'!AU121","v":7.9368329842958625},{"$f":"'Population 2016'!AV121*'Prevalence Rates'!AV121","v":138.52501178076594},{"$f":"'Population 2016'!AW121*'Prevalence Rates'!AW121","v":366.03528128149401},{"$f":"'Population 2016'!AX121*'Prevalence Rates'!AX121","v":108.91397915924126},{"$f":"'Population 2016'!AY121*'Prevalence Rates'!AY121","v":732.99105712142136},{"$f":"'Population 2016'!AZ121*'Prevalence Rates'!AZ121","v":394.68745107811742},{"$f":"'Population 2016'!BA121*'Prevalence Rates'!BA121","v":136.21351458996588},{"$f":"'Population 2016'!BB121*'Prevalence Rates'!BB121","v":286.39966062470285},{"$f":"'Population 2016'!BC121*'Prevalence Rates'!BC121","v":24.78918137928185},119]
[null,"Male 25-29",{"$f":"'Population 2016'!C122*'Prevalence Rates'!C122","v":787.5765061722725},{"$f":"'Population 2016'!D122*'Prevalence Rates'!D122","v":854.79748902521146},{"$f":"'Population 2016'!E122*'Prevalence Rates'!E122","v":156.85252957485227},{"$f":"'Population 2016'!F122*'Prevalence Rates'!F122","v":189.07712042207808},{"$f":"'Population 2016'!G122*'Prevalence Rates'!G122","v":98.089394757236292},{"$f":"'Population 2016'!H122*'Prevalence Rates'!H122","v":781.48218642106804},{"$f":"'Population 2016'!I122*'Prevalence Rates'!I122","v":173.97035989953426},{"$f":"'Population 2016'!J122*'Prevalence Rates'!J122","v":341.16056814132321},{"$f":"'Population 2016'!K122*'Prevalence Rates'!K122","v":132.80146197904969},{"$f":"'Population 2016'!L122*'Prevalence Rates'!L122","v":263.96153920396893},{"$f":"'Population 2016'!M122*'Prevalence Rates'!M122","v":280.59108589846903},{"$f":"'Population 2016'!N122*'Prevalence Rates'!N122","v":350.28137236996525},{"$f":"'Population 2016'!O122*'Prevalence Rates'!O122","v":269.45405223729853},{"$f":"'Population 2016'!P122*'Prevalence Rates'!P122","v":164.05606085969728},{"$f":"'Population 2016'!Q122*'Prevalence Rates'!Q122","v":261.52281788080768},{"$f":"'Population 2016'!R122*'Prevalence Rates'!R122","v":72.223366682452564},{"$f":"'Population 2016'!S122*'Prevalence Rates'!S122","v":3168.2123083015617},{"$f":"'Population 2016'!T122*'Prevalence Rates'!T122","v":1582.6920674591693},{"$f":"'Population 2016'!U122*'Prevalence Rates'!U122","v":64.157796959669909},{"$f":"'Population 2016'!V122*'Prevalence Rates'!V122","v":338.39200008345489},{"$f":"'Population 2016'!W122*'Prevalence Rates'!W122","v":547.57055077270229},{"$f":"'Population 2016'!X122*'Prevalence Rates'!X122","v":549.89387685456506},{"$f":"'Population 2016'!Y122*'Prevalence Rates'!Y122","v":827.56840373635214},{"$f":"'Population 2016'!Z122*'Prevalence Rates'!Z122","v":1635.9310238546607},{"$f":"'Population 2016'!AA122*'Prevalence Rates'!AA122","v":3561.9990284514879},{"$f":"'Population 2016'!AB122*'Prevalence Rates'!AB122","v":934.10994414188508},{"$f":"'Population 2016'!AC122*'Prevalence Rates'!AC122","v":2327.6833767960156},{"$f":"'Population 2016'!AD122*'Prevalence Rates'!AD122","v":445.98337451435759},{"$f":"'Population 2016'!AE122*'Prevalence Rates'!AE122","v":322.18494535444751},{"$f":"'Population 2016'!AF122*'Prevalence Rates'!AF122","v":83.84089710449291},{"$f":"'Population 2016'!AG122*'Prevalence Rates'!AG122","v":349.72461529994462},{"$f":"'Population 2016'!AH122*'Prevalence Rates'!AH122","v":1236.2324643170243},{"$f":"'Population 2016'!AI122*'Prevalence Rates'!AI122","v":2496.854766259597},{"$f":"'Population 2016'!AJ122*'Prevalence Rates'!AJ122","v":286.75207795872086},{"$f":"'Population 2016'!AK122*'Prevalence Rates'!AK122","v":107.71950339270224},{"$f":"'Population 2016'!AL122*'Prevalence Rates'!AL122","v":271.16106989898833},{"$f":"'Population 2016'!AM122*'Prevalence Rates'!AM122","v":631.72322117472697},{"$f":"'Population 2016'!AN122*'Prevalence Rates'!AN122","v":31.328366148225388},{"$f":"'Population 2016'!AO122*'Prevalence Rates'!AO122","v":31.328366148225388},{"$f":"'Population 2016'!AP122*'Prevalence Rates'!AP122","v":178.74191300386494},{"$f":"'Population 2016'!AQ122*'Prevalence Rates'!AQ122","v":247.55459064822},{"$f":"'Population 2016'!AR122*'Prevalence Rates'!AR122","v":10715.401403195368},{"$f":"'Population 2016'!AS122*'Prevalence Rates'!AS122","v":173.97035989953426},{"$f":"'Population 2016'!AT122*'Prevalence Rates'!AT122","v":13.686061074323781},{"$f":"'Population 2016'!AU122*'Prevalence Rates'!AU122","v":13.686061074323781},{"$f":"'Population 2016'!AV122*'Prevalence Rates'!AV122","v":227.92427543961389},{"$f":"'Population 2016'!AW122*'Prevalence Rates'!AW122","v":585.14780297406526},{"$f":"'Population 2016'!AX122*'Prevalence Rates'!AX122","v":179.14707896216814},{"$f":"'Population 2016'!AY122*'Prevalence Rates'!AY122","v":1198.4809600937051},{"$f":"'Population 2016'!AZ122*'Prevalence Rates'!AZ122","v":635.07103422269597},{"$f":"'Population 2016'!BA122*'Prevalence Rates'!BA122","v":216.76984189602257},{"$f":"'Population 2016'!BB122*'Prevalence Rates'!BB122","v":442.09134810215596},{"$f":"'Population 2016'!BC122*'Prevalence Rates'!BC122","v":44.282644055973975},120]
[null,"Male 30-34",{"$f":"'Population 2016'!C123*'Prevalence Rates'!C123","v":625.85526797367868},{"$f":"'Population 2016'!D123*'Prevalence Rates'!D123","v":696.64224016767537},{"$f":"'Population 2016'!E123*'Prevalence Rates'!E123","v":139.61838515703124},{"$f":"'Population 2016'!F123*'Prevalence Rates'!F123","v":191.2045704408919},{"$f":"'Population 2016'!G123*'Prevalence Rates'!G123","v":104.28735101936937},{"$f":"'Population 2016'!H123*'Prevalence Rates'!H123","v":744.10828334644225},{"$f":"'Population 2016'!I123*'Prevalence Rates'!I123","v":147.93606308358281},{"$f":"'Population 2016'!J123*'Prevalence Rates'!J123","v":270.37220818116396},{"$f":"'Population 2016'!K123*'Prevalence Rates'!K123","v":125.9383373289696},{"$f":"'Population 2016'!L123*'Prevalence Rates'!L123","v":265.02482838505239},{"$f":"'Population 2016'!M123*'Prevalence Rates'!M123","v":281.7213621760057},{"$f":"'Population 2016'!N123*'Prevalence Rates'!N123","v":269.41255392570963},{"$f":"'Population 2016'!O123*'Prevalence Rates'!O123","v":275.47377042557855},{"$f":"'Population 2016'!P123*'Prevalence Rates'!P123","v":143.69048089090728},{"$f":"'Population 2016'!Q123*'Prevalence Rates'!Q123","v":255.67701371641314},{"$f":"'Population 2016'!R123*'Prevalence Rates'!R123","v":61.585816550928541},{"$f":"'Population 2016'!S123*'Prevalence Rates'!S123","v":3018.3249979330535},{"$f":"'Population 2016'!T123*'Prevalence Rates'!T123","v":1429.7536470031846},{"$f":"'Population 2016'!U123*'Prevalence Rates'!U123","v":52.921120655998905},{"$f":"'Population 2016'!V123*'Prevalence Rates'!V123","v":338.8997150123123},{"$f":"'Population 2016'!W123*'Prevalence Rates'!W123","v":534.87767755126742},{"$f":"'Population 2016'!X123*'Prevalence Rates'!X123","v":537.14714813749117},{"$f":"'Population 2016'!Y123*'Prevalence Rates'!Y123","v":752.96872454529091},{"$f":"'Population 2016'!Z123*'Prevalence Rates'!Z123","v":1517.8210840631998},{"$f":"'Population 2016'!AA123*'Prevalence Rates'!AA123","v":3432.7180405540093},{"$f":"'Population 2016'!AB123*'Prevalence Rates'!AB123","v":775.95629119510045},{"$f":"'Population 2016'!AC123*'Prevalence Rates'!AC123","v":2200.2094941758519},{"$f":"'Population 2016'!AD123*'Prevalence Rates'!AD123","v":441.13280004834041},{"$f":"'Population 2016'!AE123*'Prevalence Rates'!AE123","v":311.9528905445851},{"$f":"'Population 2016'!AF123*'Prevalence Rates'!AF123","v":83.578894301041373},{"$f":"'Population 2016'!AG123*'Prevalence Rates'!AG123","v":338.61794664983023},{"$f":"'Population 2016'!AH123*'Prevalence Rates'!AH123","v":1229.6032591644366},{"$f":"'Population 2016'!AI123*'Prevalence Rates'!AI123","v":2380.7296368143216},{"$f":"'Population 2016'!AJ123*'Prevalence Rates'!AJ123","v":277.52186085704528},{"$f":"'Population 2016'!AK123*'Prevalence Rates'!AK123","v":100.22773341990151},{"$f":"'Population 2016'!AL123*'Prevalence Rates'!AL123","v":246.00179537227808},{"$f":"'Population 2016'!AM123*'Prevalence Rates'!AM123","v":646.33836475853445},{"$f":"'Population 2016'!AN123*'Prevalence Rates'!AN123","v":21.387634581961564},{"$f":"'Population 2016'!AO123*'Prevalence Rates'!AO123","v":21.387634581961564},{"$f":"'Population 2016'!AP123*'Prevalence Rates'!AP123","v":178.03168023696216},{"$f":"'Population 2016'!AQ123*'Prevalence Rates'!AQ123","v":266.07245372820495},{"$f":"'Population 2016'!AR123*'Prevalence Rates'!AR123","v":10048.579953121485},{"$f":"'Population 2016'!AS123*'Prevalence Rates'!AS123","v":147.93606308358281},{"$f":"'Population 2016'!AT123*'Prevalence Rates'!AT123","v":7.1405536039950164},{"$f":"'Population 2016'!AU123*'Prevalence Rates'!AU123","v":7.1405536039950164},{"$f":"'Population 2016'!AV123*'Prevalence Rates'!AV123","v":208.54388794714373},{"$f":"'Population 2016'!AW123*'Prevalence Rates'!AW123","v":562.78546655467426},{"$f":"'Population 2016'!AX123*'Prevalence Rates'!AX123","v":125.45774031295566},{"$f":"'Population 2016'!AY123*'Prevalence Rates'!AY123","v":1104.9725962702487},{"$f":"'Population 2016'!AZ123*'Prevalence Rates'!AZ123","v":560.65357440315461},{"$f":"'Population 2016'!BA123*'Prevalence Rates'!BA123","v":210.34893425692238},{"$f":"'Population 2016'!BB123*'Prevalence Rates'!BB123","v":475.03494822686747},{"$f":"'Population 2016'!BC123*'Prevalence Rates'!BC123","v":36.526926735436163},121]
[null,"Male 35-39",{"$f":"'Population 2016'!C124*'Prevalence Rates'!C124","v":344.56480792680549},{"$f":"'Population 2016'!D124*'Prevalence Rates'!D124","v":406.06461838027036},{"$f":"'Population 2016'!E124*'Prevalence Rates'!E124","v":96.288414183200516},{"$f":"'Population 2016'!F124*'Prevalence Rates'!F124","v":115.6807513840583},{"$f":"'Population 2016'!G124*'Prevalence Rates'!G124","v":71.975612985569285},{"$f":"'Population 2016'!H124*'Prevalence Rates'!H124","v":466.84464933673127},{"$f":"'Population 2016'!I124*'Prevalence Rates'!I124","v":102.42176974565436},{"$f":"'Population 2016'!J124*'Prevalence Rates'!J124","v":169.26180922009149},{"$f":"'Population 2016'!K124*'Prevalence Rates'!K124","v":93.356909504556143},{"$f":"'Population 2016'!L124*'Prevalence Rates'!L124","v":177.02826302567715},{"$f":"'Population 2016'!M124*'Prevalence Rates'!M124","v":188.18102329184961},{"$f":"'Population 2016'!N124*'Prevalence Rates'!N124","v":130.38632858215661},{"$f":"'Population 2016'!O124*'Prevalence Rates'!O124","v":172.21701949459484},{"$f":"'Population 2016'!P124*'Prevalence Rates'!P124","v":88.574744083037729},{"$f":"'Population 2016'!Q124*'Prevalence Rates'!Q124","v":173.94698421242157},{"$f":"'Population 2016'!R124*'Prevalence Rates'!R124","v":39.467030426316377},{"$f":"'Population 2016'!S124*'Prevalence Rates'!S124","v":1874.6650260557747},{"$f":"'Population 2016'!T124*'Prevalence Rates'!T124","v":776.44124411298208},{"$f":"'Population 2016'!U124*'Prevalence Rates'!U124","v":36.465978511861287},{"$f":"'Population 2016'!V124*'Prevalence Rates'!V124","v":240.10132379136692},{"$f":"'Population 2016'!W124*'Prevalence Rates'!W124","v":371.39268436642146},{"$f":"'Population 2016'!X124*'Prevalence Rates'!X124","v":372.9684928334471},{"$f":"'Population 2016'!Y124*'Prevalence Rates'!Y124","v":509.74882143729906},{"$f":"'Population 2016'!Z124*'Prevalence Rates'!Z124","v":840.61555151834887},{"$f":"'Population 2016'!AA124*'Prevalence Rates'!AA124","v":2080.79803395505},{"$f":"'Population 2016'!AB124*'Prevalence Rates'!AB124","v":462.23868507268577},{"$f":"'Population 2016'!AC124*'Prevalence Rates'!AC124","v":1274.3798083223942},{"$f":"'Population 2016'!AD124*'Prevalence Rates'!AD124","v":297.25737246294813},{"$f":"'Population 2016'!AE124*'Prevalence Rates'!AE124","v":208.63365160054153},{"$f":"'Population 2016'!AF124*'Prevalence Rates'!AF124","v":56.985933206370419},{"$f":"'Population 2016'!AG124*'Prevalence Rates'!AG124","v":226.46720337708928},{"$f":"'Population 2016'!AH124*'Prevalence Rates'!AH124","v":798.10036863235405},{"$f":"'Population 2016'!AI124*'Prevalence Rates'!AI124","v":1416.561885590424},{"$f":"'Population 2016'!AJ124*'Prevalence Rates'!AJ124","v":193.12910778471868},{"$f":"'Population 2016'!AK124*'Prevalence Rates'!AK124","v":66.84854790140453},{"$f":"'Population 2016'!AL124*'Prevalence Rates'!AL124","v":149.28159979101923},{"$f":"'Population 2016'!AM124*'Prevalence Rates'!AM124","v":409.69565896188396},{"$f":"'Population 2016'!AN124*'Prevalence Rates'!AN124","v":15.365979660027062},{"$f":"'Population 2016'!AO124*'Prevalence Rates'!AO124","v":15.365979660027062},{"$f":"'Population 2016'!AP124*'Prevalence Rates'!AP124","v":113.71885934203149},{"$f":"'Population 2016'!AQ124*'Prevalence Rates'!AQ124","v":149.49219519372457},{"$f":"'Population 2016'!AR124*'Prevalence Rates'!AR124","v":6198.2549125169544},{"$f":"'Population 2016'!AS124*'Prevalence Rates'!AS124","v":102.42176974565436},{"$f":"'Population 2016'!AT124*'Prevalence Rates'!AT124","v":6.9559737242112538},{"$f":"'Population 2016'!AU124*'Prevalence Rates'!AU124","v":6.9559737242112538},{"$f":"'Population 2016'!AV124*'Prevalence Rates'!AV124","v":135.37095673596795},{"$f":"'Population 2016'!AW124*'Prevalence Rates'!AW124","v":375.77884324044987},{"$f":"'Population 2016'!AX124*'Prevalence Rates'!AX124","v":66.953676398441161},{"$f":"'Population 2016'!AY124*'Prevalence Rates'!AY124","v":684.4549811747878},{"$f":"'Population 2016'!AZ124*'Prevalence Rates'!AZ124","v":314.10258477739751},{"$f":"'Population 2016'!BA124*'Prevalence Rates'!BA124","v":146.47909412935428},{"$f":"'Population 2016'!BB124*'Prevalence Rates'!BB124","v":294.45473868054546},{"$f":"'Population 2016'!BC124*'Prevalence Rates'!BC124","v":25.169348436459426},122]
[null,"Male 40-44",{"$f":"'Population 2016'!C125*'Prevalence Rates'!C125","v":299.86791140524059},{"$f":"'Population 2016'!D125*'Prevalence Rates'!D125","v":361.06584610060241},{"$f":"'Population 2016'!E125*'Prevalence Rates'!E125","v":90.415284586151358},{"$f":"'Population 2016'!F125*'Prevalence Rates'!F125","v":109.27497687744921},{"$f":"'Population 2016'!G125*'Prevalence Rates'!G125","v":68.730028315132472},{"$f":"'Population 2016'!H125*'Prevalence Rates'!H125","v":544.54357284326306},{"$f":"'Population 2016'!I125*'Prevalence Rates'!I125","v":111.53557129081851},{"$f":"'Population 2016'!J125*'Prevalence Rates'!J125","v":182.26408811765683},{"$f":"'Population 2016'!K125*'Prevalence Rates'!K125","v":101.37976891510392},{"$f":"'Population 2016'!L125*'Prevalence Rates'!L125","v":211.30394799447845},{"$f":"'Population 2016'!M125*'Prevalence Rates'!M125","v":224.6160724823992},{"$f":"'Population 2016'!N125*'Prevalence Rates'!N125","v":122.4067491095644},{"$f":"'Population 2016'!O125*'Prevalence Rates'!O125","v":191.71328585247349},{"$f":"'Population 2016'!P125*'Prevalence Rates'!P125","v":99.396092907662251},{"$f":"'Population 2016'!Q125*'Prevalence Rates'!Q125","v":179.17847245941169},{"$f":"'Population 2016'!R125*'Prevalence Rates'!R125","v":52.556598306401213},{"$f":"'Population 2016'!S125*'Prevalence Rates'!S125","v":1863.3495784231689},{"$f":"'Population 2016'!T125*'Prevalence Rates'!T125","v":664.70246728491452},{"$f":"'Population 2016'!U125*'Prevalence Rates'!U125","v":51.103730449721105},{"$f":"'Population 2016'!V125*'Prevalence Rates'!V125","v":260.06480464593},{"$f":"'Population 2016'!W125*'Prevalence Rates'!W125","v":407.36292014040902},{"$f":"'Population 2016'!X125*'Prevalence Rates'!X125","v":409.09134928220709},{"$f":"'Population 2016'!Y125*'Prevalence Rates'!Y125","v":550.99303324932862},{"$f":"'Population 2016'!Z125*'Prevalence Rates'!Z125","v":648.50227136541116},{"$f":"'Population 2016'!AA125*'Prevalence Rates'!AA125","v":1999.3246809025632},{"$f":"'Population 2016'!AB125*'Prevalence Rates'!AB125","v":409.09223794239529},{"$f":"'Population 2016'!AC125*'Prevalence Rates'!AC125","v":1105.5913982188281},{"$f":"'Population 2016'!AD125*'Prevalence Rates'!AD125","v":292.10262033931321},{"$f":"'Population 2016'!AE125*'Prevalence Rates'!AE125","v":206.8655698073166},{"$f":"'Population 2016'!AF125*'Prevalence Rates'!AF125","v":48.447324322028273},{"$f":"'Population 2016'!AG125*'Prevalence Rates'!AG125","v":224.54798978914783},{"$f":"'Population 2016'!AH125*'Prevalence Rates'!AH125","v":872.59837382125068},{"$f":"'Population 2016'!AI125*'Prevalence Rates'!AI125","v":1348.0411231087548},{"$f":"'Population 2016'!AJ125*'Prevalence Rates'!AJ125","v":192.4751717538449},{"$f":"'Population 2016'!AK125*'Prevalence Rates'!AK125","v":57.811083270957141},{"$f":"'Population 2016'!AL125*'Prevalence Rates'!AL125","v":183.9406776861149},{"$f":"'Population 2016'!AM125*'Prevalence Rates'!AM125","v":453.12247154894146},{"$f":"'Population 2016'!AN125*'Prevalence Rates'!AN125","v":21.76847118503834},{"$f":"'Population 2016'!AO125*'Prevalence Rates'!AO125","v":21.76847118503834},{"$f":"'Population 2016'!AP125*'Prevalence Rates'!AP125","v":84.702100247383342},{"$f":"'Population 2016'!AQ125*'Prevalence Rates'!AQ125","v":158.46863185662721},{"$f":"'Population 2016'!AR125*'Prevalence Rates'!AR125","v":6135.5843285401743},{"$f":"'Population 2016'!AS125*'Prevalence Rates'!AS125","v":111.53557129081851},{"$f":"'Population 2016'!AT125*'Prevalence Rates'!AT125","v":6.1128253940038295},{"$f":"'Population 2016'!AU125*'Prevalence Rates'!AU125","v":6.1128253940038295},{"$f":"'Population 2016'!AV125*'Prevalence Rates'!AV125","v":158.96418062423666},{"$f":"'Population 2016'!AW125*'Prevalence Rates'!AW125","v":405.31964822070483},{"$f":"'Population 2016'!AX125*'Prevalence Rates'!AX125","v":71.417254825003909},{"$f":"'Population 2016'!AY125*'Prevalence Rates'!AY125","v":675.10808756506981},{"$f":"'Population 2016'!AZ125*'Prevalence Rates'!AZ125","v":275.82645187659563},{"$f":"'Population 2016'!BA125*'Prevalence Rates'!BA125","v":137.01709053342086},{"$f":"'Population 2016'!BB125*'Prevalence Rates'!BB125","v":318.21117194988881},{"$f":"'Population 2016'!BC125*'Prevalence Rates'!BC125","v":35.272537597573418},123]
[null,"Male 45-49",{"$f":"'Population 2016'!C126*'Prevalence Rates'!C126","v":370.84998143136204},{"$f":"'Population 2016'!D126*'Prevalence Rates'!D126","v":446.94659353254769},{"$f":"'Population 2016'!E126*'Prevalence Rates'!E126","v":112.17315859425183},{"$f":"'Population 2016'!F126*'Prevalence Rates'!F126","v":146.17795223849913},{"$f":"'Population 2016'!G126*'Prevalence Rates'!G126","v":110.76135999638753},{"$f":"'Population 2016'!H126*'Prevalence Rates'!H126","v":814.39971841196791},{"$f":"'Population 2016'!I126*'Prevalence Rates'!I126","v":154.70936873652508},{"$f":"'Population 2016'!J126*'Prevalence Rates'!J126","v":261.56090977203354},{"$f":"'Population 2016'!K126*'Prevalence Rates'!K126","v":150.95842840385887},{"$f":"'Population 2016'!L126*'Prevalence Rates'!L126","v":296.40465396811777},{"$f":"'Population 2016'!M126*'Prevalence Rates'!M126","v":315.07811317166164},{"$f":"'Population 2016'!N126*'Prevalence Rates'!N126","v":169.55857313762439},{"$f":"'Population 2016'!O126*'Prevalence Rates'!O126","v":278.93880526376131},{"$f":"'Population 2016'!P126*'Prevalence Rates'!P126","v":132.13533888521255},{"$f":"'Population 2016'!Q126*'Prevalence Rates'!Q126","v":237.68664242600983},{"$f":"'Population 2016'!R126*'Prevalence Rates'!R126","v":65.616736853502204},{"$f":"'Population 2016'!S126*'Prevalence Rates'!S126","v":2327.9191587766368},{"$f":"'Population 2016'!T126*'Prevalence Rates'!T126","v":710.33456705931474},{"$f":"'Population 2016'!U126*'Prevalence Rates'!U126","v":70.304367339643107},{"$f":"'Population 2016'!V126*'Prevalence Rates'!V126","v":358.28144246647605},{"$f":"'Population 2016'!W126*'Prevalence Rates'!W126","v":543.70780304123116},{"$f":"'Population 2016'!X126*'Prevalence Rates'!X126","v":546.01473959568136},{"$f":"'Population 2016'!Y126*'Prevalence Rates'!Y126","v":770.21118897761733},{"$f":"'Population 2016'!Z126*'Prevalence Rates'!Z126","v":798.19029075237586},{"$f":"'Population 2016'!AA126*'Prevalence Rates'!AA126","v":2667.3490182283776},{"$f":"'Population 2016'!AB126*'Prevalence Rates'!AB126","v":524.88910086030489},{"$f":"'Population 2016'!AC126*'Prevalence Rates'!AC126","v":1426.9187040925462},{"$f":"'Population 2016'!AD126*'Prevalence Rates'!AD126","v":428.81104833942828},{"$f":"'Population 2016'!AE126*'Prevalence Rates'!AE126","v":294.54611870645368},{"$f":"'Population 2016'!AF126*'Prevalence Rates'!AF126","v":68.981857899590821},{"$f":"'Population 2016'!AG126*'Prevalence Rates'!AG126","v":319.72328172994304},{"$f":"'Population 2016'!AH126*'Prevalence Rates'!AH126","v":1206.9188708663023},{"$f":"'Population 2016'!AI126*'Prevalence Rates'!AI126","v":1622.5584864541208},{"$f":"'Population 2016'!AJ126*'Prevalence Rates'!AJ126","v":260.28718855412399},{"$f":"'Population 2016'!AK126*'Prevalence Rates'!AK126","v":87.23514333634327},{"$f":"'Population 2016'!AL126*'Prevalence Rates'!AL126","v":286.09848326445325},{"$f":"'Population 2016'!AM126*'Prevalence Rates'!AM126","v":597.00926535131487},{"$f":"'Population 2016'!AN126*'Prevalence Rates'!AN126","v":26.105497339841019},{"$f":"'Population 2016'!AO126*'Prevalence Rates'!AO126","v":26.105497339841019},{"$f":"'Population 2016'!AP126*'Prevalence Rates'!AP126","v":119.38751868493584},{"$f":"'Population 2016'!AQ126*'Prevalence Rates'!AQ126","v":213.36880552654674},{"$f":"'Population 2016'!AR126*'Prevalence Rates'!AR126","v":8191.3397817867099},{"$f":"'Population 2016'!AS126*'Prevalence Rates'!AS126","v":154.70936873652508},{"$f":"'Population 2016'!AT126*'Prevalence Rates'!AT126","v":3.192289431046067},{"$f":"'Population 2016'!AU126*'Prevalence Rates'!AU126","v":3.192289431046067},{"$f":"'Population 2016'!AV126*'Prevalence Rates'!AV126","v":236.55474951702971},{"$f":"'Population 2016'!AW126*'Prevalence Rates'!AW126","v":592.3466105326678},{"$f":"'Population 2016'!AX126*'Prevalence Rates'!AX126","v":98.120550966727194},{"$f":"'Population 2016'!AY126*'Prevalence Rates'!AY126","v":913.89968897529673},{"$f":"'Population 2016'!AZ126*'Prevalence Rates'!AZ126","v":379.80056538687012},{"$f":"'Population 2016'!BA126*'Prevalence Rates'!BA126","v":196.50536594494},{"$f":"'Population 2016'!BB126*'Prevalence Rates'!BB126","v":406.39350131022093},{"$f":"'Population 2016'!BC126*'Prevalence Rates'!BC126","v":48.525096278459799},124]
[null,"Male 50-54",{"$f":"'Population 2016'!C127*'Prevalence Rates'!C127","v":344.20354242278029},{"$f":"'Population 2016'!D127*'Prevalence Rates'!D127","v":431.28257740407059},{"$f":"'Population 2016'!E127*'Prevalence Rates'!E127","v":118.29496821255771},{"$f":"'Population 2016'!F127*'Prevalence Rates'!F127","v":146.39743865327165},{"$f":"'Population 2016'!G127*'Prevalence Rates'!G127","v":113.87513316897673},{"$f":"'Population 2016'!H127*'Prevalence Rates'!H127","v":861.17523778676275},{"$f":"'Population 2016'!I127*'Prevalence Rates'!I127","v":175.18560871635927},{"$f":"'Population 2016'!J127*'Prevalence Rates'!J127","v":264.26577957319211},{"$f":"'Population 2016'!K127*'Prevalence Rates'!K127","v":141.04558601336157},{"$f":"'Population 2016'!L127*'Prevalence Rates'!L127","v":347.0852424704384},{"$f":"'Population 2016'!M127*'Prevalence Rates'!M127","v":368.95157293676442},{"$f":"'Population 2016'!N127*'Prevalence Rates'!N127","v":157.65972589989636},{"$f":"'Population 2016'!O127*'Prevalence Rates'!O127","v":291.9512177230547},{"$f":"'Population 2016'!P127*'Prevalence Rates'!P127","v":169.48808485983096},{"$f":"'Population 2016'!Q127*'Prevalence Rates'!Q127","v":256.98598518709611},{"$f":"'Population 2016'!R127*'Prevalence Rates'!R127","v":79.017338041893495},{"$f":"'Population 2016'!S127*'Prevalence Rates'!S127","v":2392.5624545936944},{"$f":"'Population 2016'!T127*'Prevalence Rates'!T127","v":683.93597358039108},{"$f":"'Population 2016'!U127*'Prevalence Rates'!U127","v":77.48438783390452},{"$f":"'Population 2016'!V127*'Prevalence Rates'!V127","v":348.22441952004863},{"$f":"'Population 2016'!W127*'Prevalence Rates'!W127","v":566.96466860484452},{"$f":"'Population 2016'!X127*'Prevalence Rates'!X127","v":569.37028337029437},{"$f":"'Population 2016'!Y127*'Prevalence Rates'!Y127","v":759.27804546579455},{"$f":"'Population 2016'!Z127*'Prevalence Rates'!Z127","v":771.58394772729673},{"$f":"'Population 2016'!AA127*'Prevalence Rates'!AA127","v":2749.4588173265388},{"$f":"'Population 2016'!AB127*'Prevalence Rates'!AB127","v":506.74868114612451},{"$f":"'Population 2016'!AC127*'Prevalence Rates'!AC127","v":1492.0389719915222},{"$f":"'Population 2016'!AD127*'Prevalence Rates'!AD127","v":472.62628512514789},{"$f":"'Population 2016'!AE127*'Prevalence Rates'!AE127","v":332.23978284860823},{"$f":"'Population 2016'!AF127*'Prevalence Rates'!AF127","v":90.606264764666321},{"$f":"'Population 2016'!AG127*'Prevalence Rates'!AG127","v":360.63891848279587},{"$f":"'Population 2016'!AH127*'Prevalence Rates'!AH127","v":1225.219813569762},{"$f":"'Population 2016'!AI127*'Prevalence Rates'!AI127","v":1639.6637717028843},{"$f":"'Population 2016'!AJ127*'Prevalence Rates'!AJ127","v":282.37985724115697},{"$f":"'Population 2016'!AK127*'Prevalence Rates'!AK127","v":84.394152078263119},{"$f":"'Population 2016'!AL127*'Prevalence Rates'!AL127","v":290.13616347181448},{"$f":"'Population 2016'!AM127*'Prevalence Rates'!AM127","v":608.17168225474722},{"$f":"'Population 2016'!AN127*'Prevalence Rates'!AN127","v":29.586230318486489},{"$f":"'Population 2016'!AO127*'Prevalence Rates'!AO127","v":29.586230318486489},{"$f":"'Population 2016'!AP127*'Prevalence Rates'!AP127","v":117.62894639661437},{"$f":"'Population 2016'!AQ127*'Prevalence Rates'!AQ127","v":225.2338003673255},{"$f":"'Population 2016'!AR127*'Prevalence Rates'!AR127","v":8443.8584607335251},{"$f":"'Population 2016'!AS127*'Prevalence Rates'!AS127","v":175.18560871635927},{"$f":"'Population 2016'!AT127*'Prevalence Rates'!AT127","v":8.8401861167429558},{"$f":"'Population 2016'!AU127*'Prevalence Rates'!AU127","v":8.8401861167429558},{"$f":"'Population 2016'!AV127*'Prevalence Rates'!AV127","v":262.6884170827206},{"$f":"'Population 2016'!AW127*'Prevalence Rates'!AW127","v":599.07563726705382},{"$f":"'Population 2016'!AX127*'Prevalence Rates'!AX127","v":108.29434081350766},{"$f":"'Population 2016'!AY127*'Prevalence Rates'!AY127","v":921.34995817889967},{"$f":"'Population 2016'!AZ127*'Prevalence Rates'!AZ127","v":367.30826721060032},{"$f":"'Population 2016'!BA127*'Prevalence Rates'!BA127","v":206.89238097331332},{"$f":"'Population 2016'!BB127*'Prevalence Rates'!BB127","v":403.23751832513557},{"$f":"'Population 2016'!BC127*'Prevalence Rates'!BC127","v":53.480850792004631},125]
[null,"Male 55-59",{"$f":"'Population 2016'!C128*'Prevalence Rates'!C128","v":359.1974590944763},{"$f":"'Population 2016'!D128*'Prevalence Rates'!D128","v":450.2320046657523},{"$f":"'Population 2016'!E128*'Prevalence Rates'!E128","v":123.58790907178401},{"$f":"'Population 2016'!F128*'Prevalence Rates'!F128","v":131.09521526747992},{"$f":"'Population 2016'!G128*'Prevalence Rates'!G128","v":127.88777309551891},{"$f":"'Population 2016'!H128*'Prevalence Rates'!H128","v":844.94462084751865},{"$f":"'Population 2016'!I128*'Prevalence Rates'!I128","v":179.95276073901564},{"$f":"'Population 2016'!J128*'Prevalence Rates'!J128","v":261.41803376759924},{"$f":"'Population 2016'!K128*'Prevalence Rates'!K128","v":134.61051086578553},{"$f":"'Population 2016'!L128*'Prevalence Rates'!L128","v":356.11634049189695},{"$f":"'Population 2016'!M128*'Prevalence Rates'!M128","v":378.55162909774344},{"$f":"'Population 2016'!N128*'Prevalence Rates'!N128","v":155.42537864940394},{"$f":"'Population 2016'!O128*'Prevalence Rates'!O128","v":285.13088651152583},{"$f":"'Population 2016'!P128*'Prevalence Rates'!P128","v":154.05072197808144},{"$f":"'Population 2016'!Q128*'Prevalence Rates'!Q128","v":255.93125954939126},{"$f":"'Population 2016'!R128*'Prevalence Rates'!R128","v":69.121984593586802},{"$f":"'Population 2016'!S128*'Prevalence Rates'!S128","v":2317.7180429436462},{"$f":"'Population 2016'!T128*'Prevalence Rates'!T128","v":623.53661067502253},{"$f":"'Population 2016'!U128*'Prevalence Rates'!U128","v":81.567728296725718},{"$f":"'Population 2016'!V128*'Prevalence Rates'!V128","v":337.19768635656601},{"$f":"'Population 2016'!W128*'Prevalence Rates'!W128","v":560.5883750766377},{"$f":"'Population 2016'!X128*'Prevalence Rates'!X128","v":562.96693541222669},{"$f":"'Population 2016'!Y128*'Prevalence Rates'!Y128","v":741.10703571888882},{"$f":"'Population 2016'!Z128*'Prevalence Rates'!Z128","v":735.07322261328784},{"$f":"'Population 2016'!AA128*'Prevalence Rates'!AA128","v":2686.8122647167756},{"$f":"'Population 2016'!AB128*'Prevalence Rates'!AB128","v":522.75303332853741},{"$f":"'Population 2016'!AC128*'Prevalence Rates'!AC128","v":1438.1938333508613},{"$f":"'Population 2016'!AD128*'Prevalence Rates'!AD128","v":493.38253421167929},{"$f":"'Population 2016'!AE128*'Prevalence Rates'!AE128","v":338.48504570202044},{"$f":"'Population 2016'!AF128*'Prevalence Rates'!AF128","v":87.405745510163413},{"$f":"'Population 2016'!AG128*'Prevalence Rates'!AG128","v":367.41801285188194},{"$f":"'Population 2016'!AH128*'Prevalence Rates'!AH128","v":1214.9578734896706},{"$f":"'Population 2016'!AI128*'Prevalence Rates'!AI128","v":1562.6449602595189},{"$f":"'Population 2016'!AJ128*'Prevalence Rates'!AJ128","v":282.60199080769621},{"$f":"'Population 2016'!AK128*'Prevalence Rates'!AK128","v":82.795866997004168},{"$f":"'Population 2016'!AL128*'Prevalence Rates'!AL128","v":279.65390023689594},{"$f":"'Population 2016'!AM128*'Prevalence Rates'!AM128","v":581.02732975757715},{"$f":"'Population 2016'!AN128*'Prevalence Rates'!AN128","v":29.013903294857773},{"$f":"'Population 2016'!AO128*'Prevalence Rates'!AO128","v":29.013903294857773},{"$f":"'Population 2016'!AP128*'Prevalence Rates'!AP128","v":106.75684892377744},{"$f":"'Population 2016'!AQ128*'Prevalence Rates'!AQ128","v":225.08098309029668},{"$f":"'Population 2016'!AR128*'Prevalence Rates'!AR128","v":8298.8176713324192},{"$f":"'Population 2016'!AS128*'Prevalence Rates'!AS128","v":179.95276073901564},{"$f":"'Population 2016'!AT128*'Prevalence Rates'!AT128","v":6.7733428235177406},{"$f":"'Population 2016'!AU128*'Prevalence Rates'!AU128","v":6.7733428235177406},{"$f":"'Population 2016'!AV128*'Prevalence Rates'!AV128","v":262.90924616677694},{"$f":"'Population 2016'!AW128*'Prevalence Rates'!AW128","v":617.60511176882494},{"$f":"'Population 2016'!AX128*'Prevalence Rates'!AX128","v":111.05088945644724},{"$f":"'Population 2016'!AY128*'Prevalence Rates'!AY128","v":889.29280607046348},{"$f":"'Population 2016'!AZ128*'Prevalence Rates'!AZ128","v":343.47274932656359},{"$f":"'Population 2016'!BA128*'Prevalence Rates'!BA128","v":214.09298136076652},{"$f":"'Population 2016'!BB128*'Prevalence Rates'!BB128","v":383.49243412615004},{"$f":"'Population 2016'!BC128*'Prevalence Rates'!BC128","v":56.299231734669057},126]
[null,"Male 60-64",{"$f":"'Population 2016'!C129*'Prevalence Rates'!C129","v":293.84167592349581},{"$f":"'Population 2016'!D129*'Prevalence Rates'!D129","v":371.57434637030838},{"$f":"'Population 2016'!E129*'Prevalence Rates'!E129","v":103.91317238802242},{"$f":"'Population 2016'!F129*'Prevalence Rates'!F129","v":130.39666172253774},{"$f":"'Population 2016'!G129*'Prevalence Rates'!G129","v":119.15742696169197},{"$f":"'Population 2016'!H129*'Prevalence Rates'!H129","v":741.94184802039251},{"$f":"'Population 2016'!I129*'Prevalence Rates'!I129","v":172.17536869515357},{"$f":"'Population 2016'!J129*'Prevalence Rates'!J129","v":219.80923585727882},{"$f":"'Population 2016'!K129*'Prevalence Rates'!K129","v":123.79359481407062},{"$f":"'Population 2016'!L129*'Prevalence Rates'!L129","v":322.13399688940223},{"$f":"'Population 2016'!M129*'Prevalence Rates'!M129","v":342.42840174593266},{"$f":"'Population 2016'!N129*'Prevalence Rates'!N129","v":129.19241499411115},{"$f":"'Population 2016'!O129*'Prevalence Rates'!O129","v":239.19871025130644},{"$f":"'Population 2016'!P129*'Prevalence Rates'!P129","v":121.85362574472038},{"$f":"'Population 2016'!Q129*'Prevalence Rates'!Q129","v":201.78159305525691},{"$f":"'Population 2016'!R129*'Prevalence Rates'!R129","v":62.994149079970946},{"$f":"'Population 2016'!S129*'Prevalence Rates'!S129","v":1972.9379859636326},{"$f":"'Population 2016'!T129*'Prevalence Rates'!T129","v":493.80751717887694},{"$f":"'Population 2016'!U129*'Prevalence Rates'!U129","v":82.202496610318917},{"$f":"'Population 2016'!V129*'Prevalence Rates'!V129","v":277.62683603121354},{"$f":"'Population 2016'!W129*'Prevalence Rates'!W129","v":504.57399342742571},{"$f":"'Population 2016'!X129*'Prevalence Rates'!X129","v":506.71488635438328},{"$f":"'Population 2016'!Y129*'Prevalence Rates'!Y129","v":615.04558359701855},{"$f":"'Population 2016'!Z129*'Prevalence Rates'!Z129","v":585.16477579444381},{"$f":"'Population 2016'!AA129*'Prevalence Rates'!AA129","v":2258.1642603626346},{"$f":"'Population 2016'!AB129*'Prevalence Rates'!AB129","v":429.03820382426181},{"$f":"'Population 2016'!AC129*'Prevalence Rates'!AC129","v":1171.0781894473294},{"$f":"'Population 2016'!AD129*'Prevalence Rates'!AD129","v":443.36001041786005},{"$f":"'Population 2016'!AE129*'Prevalence Rates'!AE129","v":300.24432071954561},{"$f":"'Population 2016'!AF129*'Prevalence Rates'!AF129","v":65.84107338954567},{"$f":"'Population 2016'!AG129*'Prevalence Rates'!AG129","v":325.90855368527167},{"$f":"'Population 2016'!AH129*'Prevalence Rates'!AH129","v":1054.631472062121},{"$f":"'Population 2016'!AI129*'Prevalence Rates'!AI129","v":1274.3117611406658},{"$f":"'Population 2016'!AJ129*'Prevalence Rates'!AJ129","v":248.11862109998879},{"$f":"'Population 2016'!AK129*'Prevalence Rates'!AK129","v":66.307610828435884},{"$f":"'Population 2016'!AL129*'Prevalence Rates'!AL129","v":259.15410667467273},{"$f":"'Population 2016'!AM129*'Prevalence Rates'!AM129","v":521.0527796116603},{"$f":"'Population 2016'!AN129*'Prevalence Rates'!AN129","v":28.750140537631793},{"$f":"'Population 2016'!AO129*'Prevalence Rates'!AO129","v":28.750140537631793},{"$f":"'Population 2016'!AP129*'Prevalence Rates'!AP129","v":97.843170275772721},{"$f":"'Population 2016'!AQ129*'Prevalence Rates'!AQ129","v":196.9191918410842},{"$f":"'Population 2016'!AR129*'Prevalence Rates'!AR129","v":7101.2259900258568},{"$f":"'Population 2016'!AS129*'Prevalence Rates'!AS129","v":172.17536869515357},{"$f":"'Population 2016'!AT129*'Prevalence Rates'!AT129","v":5.4707768959181751},{"$f":"'Population 2016'!AU129*'Prevalence Rates'!AU129","v":5.4707768959181751},{"$f":"'Population 2016'!AV129*'Prevalence Rates'!AV129","v":230.88211981555142},{"$f":"'Population 2016'!AW129*'Prevalence Rates'!AW129","v":518.27430284167247},{"$f":"'Population 2016'!AX129*'Prevalence Rates'!AX129","v":84.907159541214511},{"$f":"'Population 2016'!AY129*'Prevalence Rates'!AY129","v":801.94431030556609},{"$f":"'Population 2016'!AZ129*'Prevalence Rates'!AZ129","v":310.52439877487291},{"$f":"'Population 2016'!BA129*'Prevalence Rates'!BA129","v":174.96254149020623},{"$f":"'Population 2016'!BB129*'Prevalence Rates'!BB129","v":314.21139666481065},{"$f":"'Population 2016'!BC129*'Prevalence Rates'!BC129","v":56.73735805167037},127]
[null,"Male 65-69",{"$f":"'Population 2016'!C130*'Prevalence Rates'!C130","v":265.21837382844677},{"$f":"'Population 2016'!D130*'Prevalence Rates'!D130","v":365.95586998019877},{"$f":"'Population 2016'!E130*'Prevalence Rates'!E130","v":120.15128124034833},{"$f":"'Population 2016'!F130*'Prevalence Rates'!F130","v":137.71435640424511},{"$f":"'Population 2016'!G130*'Prevalence Rates'!G130","v":127.64877503794447},{"$f":"'Population 2016'!H130*'Prevalence Rates'!H130","v":782.59901021020494},{"$f":"'Population 2016'!I130*'Prevalence Rates'!I130","v":175.32225168467565},{"$f":"'Population 2016'!J130*'Prevalence Rates'!J130","v":227.04228056834617},{"$f":"'Population 2016'!K130*'Prevalence Rates'!K130","v":120.05545837109726},{"$f":"'Population 2016'!L130*'Prevalence Rates'!L130","v":353.81311341217202},{"$f":"'Population 2016'!M130*'Prevalence Rates'!M130","v":376.10329897616691},{"$f":"'Population 2016'!N130*'Prevalence Rates'!N130","v":142.01253586946021},{"$f":"'Population 2016'!O130*'Prevalence Rates'!O130","v":238.05873790216208},{"$f":"'Population 2016'!P130*'Prevalence Rates'!P130","v":108.51172468446993},{"$f":"'Population 2016'!Q130*'Prevalence Rates'!Q130","v":203.82654856326761},{"$f":"'Population 2016'!R130*'Prevalence Rates'!R130","v":48.968640459320888},{"$f":"'Population 2016'!S130*'Prevalence Rates'!S130","v":1956.3041473295748},{"$f":"'Population 2016'!T130*'Prevalence Rates'!T130","v":451.44843802904791},{"$f":"'Population 2016'!U130*'Prevalence Rates'!U130","v":80.043304719520535},{"$f":"'Population 2016'!V130*'Prevalence Rates'!V130","v":307.33057136783185},{"$f":"'Population 2016'!W130*'Prevalence Rates'!W130","v":516.83417259354269},{"$f":"'Population 2016'!X130*'Prevalence Rates'!X130","v":519.02708510772015},{"$f":"'Population 2016'!Y130*'Prevalence Rates'!Y130","v":663.52841917960177},{"$f":"'Population 2016'!Z130*'Prevalence Rates'!Z130","v":480.43934386557385},{"$f":"'Population 2016'!AA130*'Prevalence Rates'!AA130","v":2019.6673714458061},{"$f":"'Population 2016'!AB130*'Prevalence Rates'!AB130","v":424.94265922333989},{"$f":"'Population 2016'!AC130*'Prevalence Rates'!AC130","v":1003.5255325796336},{"$f":"'Population 2016'!AD130*'Prevalence Rates'!AD130","v":467.42321097075484},{"$f":"'Population 2016'!AE130*'Prevalence Rates'!AE130","v":314.66542810046974},{"$f":"'Population 2016'!AF130*'Prevalence Rates'!AF130","v":61.487082009387059},{"$f":"'Population 2016'!AG130*'Prevalence Rates'!AG130","v":341.56234602943118},{"$f":"'Population 2016'!AH130*'Prevalence Rates'!AH130","v":982.26546532695556},{"$f":"'Population 2016'!AI130*'Prevalence Rates'!AI130","v":1237.2287095016036},{"$f":"'Population 2016'!AJ130*'Prevalence Rates'!AJ130","v":234.73358076371082},{"$f":"'Population 2016'!AK130*'Prevalence Rates'!AK130","v":67.332166497239939},{"$f":"'Population 2016'!AL130*'Prevalence Rates'!AL130","v":267.19909025866383},{"$f":"'Population 2016'!AM130*'Prevalence Rates'!AM130","v":483.77844713424389},{"$f":"'Population 2016'!AN130*'Prevalence Rates'!AN130","v":31.564464877087342},{"$f":"'Population 2016'!AO130*'Prevalence Rates'!AO130","v":31.564464877087342},{"$f":"'Population 2016'!AP130*'Prevalence Rates'!AP130","v":88.97701534150184},{"$f":"'Population 2016'!AQ130*'Prevalence Rates'!AQ130","v":177.66342159546988},{"$f":"'Population 2016'!AR130*'Prevalence Rates'!AR130","v":6963.8975792667379},{"$f":"'Population 2016'!AS130*'Prevalence Rates'!AS130","v":175.32225168467565},{"$f":"'Population 2016'!AT130*'Prevalence Rates'!AT130","v":5.9259383916823696},{"$f":"'Population 2016'!AU130*'Prevalence Rates'!AU130","v":5.9259383916823696},{"$f":"'Population 2016'!AV130*'Prevalence Rates'!AV130","v":261.91026610231751},{"$f":"'Population 2016'!AW130*'Prevalence Rates'!AW130","v":484.33600784427279},{"$f":"'Population 2016'!AX130*'Prevalence Rates'!AX130","v":93.936813248142784},{"$f":"'Population 2016'!AY130*'Prevalence Rates'!AY130","v":823.99622798524945},{"$f":"'Population 2016'!AZ130*'Prevalence Rates'!AZ130","v":320.40029070815598},{"$f":"'Population 2016'!BA130*'Prevalence Rates'!BA130","v":156.35810318596839},{"$f":"'Population 2016'!BB130*'Prevalence Rates'!BB130","v":325.78586209192576},{"$f":"'Population 2016'!BC130*'Prevalence Rates'!BC130","v":55.247052422739976},128]
[null,"Male 70-74",{"$f":"'Population 2016'!C131*'Prevalence Rates'!C131","v":172.36629324247218},{"$f":"'Population 2016'!D131*'Prevalence Rates'!D131","v":241.70618238811929},{"$f":"'Population 2016'!E131*'Prevalence Rates'!E131","v":81.423273922311523},{"$f":"'Population 2016'!F131*'Prevalence Rates'!F131","v":93.498375752714907},{"$f":"'Population 2016'!G131*'Prevalence Rates'!G131","v":101.04555683990851},{"$f":"'Population 2016'!H131*'Prevalence Rates'!H131","v":578.06211635526665},{"$f":"'Population 2016'!I131*'Prevalence Rates'!I131","v":125.72276444559192},{"$f":"'Population 2016'!J131*'Prevalence Rates'!J131","v":150.69931372723977},{"$f":"'Population 2016'!K131*'Prevalence Rates'!K131","v":85.286922159665636},{"$f":"'Population 2016'!L131*'Prevalence Rates'!L131","v":267.25896205044353},{"$f":"'Population 2016'!M131*'Prevalence Rates'!M131","v":284.09624600607015},{"$f":"'Population 2016'!N131*'Prevalence Rates'!N131","v":97.145937998614258},{"$f":"'Population 2016'!O131*'Prevalence Rates'!O131","v":179.22670361351513},{"$f":"'Population 2016'!P131*'Prevalence Rates'!P131","v":78.138239671209718},{"$f":"'Population 2016'!Q131*'Prevalence Rates'!Q131","v":145.47620328829296},{"$f":"'Population 2016'!R131*'Prevalence Rates'!R131","v":29.332700473157562},{"$f":"'Population 2016'!S131*'Prevalence Rates'!S131","v":1441.3612745586629},{"$f":"'Population 2016'!T131*'Prevalence Rates'!T131","v":328.23930860927248},{"$f":"'Population 2016'!U131*'Prevalence Rates'!U131","v":51.164935957968034},{"$f":"'Population 2016'!V131*'Prevalence Rates'!V131","v":215.43917020062602},{"$f":"'Population 2016'!W131*'Prevalence Rates'!W131","v":371.96232242801966},{"$f":"'Population 2016'!X131*'Prevalence Rates'!X131","v":373.54054785294022},{"$f":"'Population 2016'!Y131*'Prevalence Rates'!Y131","v":456.13805340326587},{"$f":"'Population 2016'!Z131*'Prevalence Rates'!Z131","v":355.63771743174311},{"$f":"'Population 2016'!AA131*'Prevalence Rates'!AA131","v":1576.5390008551203},{"$f":"'Population 2016'!AB131*'Prevalence Rates'!AB131","v":289.84647788310571},{"$f":"'Population 2016'!AC131*'Prevalence Rates'!AC131","v":771.39487600820803},{"$f":"'Population 2016'!AD131*'Prevalence Rates'!AD131","v":351.90923721612495},{"$f":"'Population 2016'!AE131*'Prevalence Rates'!AE131","v":232.32509286264079},{"$f":"'Population 2016'!AF131*'Prevalence Rates'!AF131","v":49.008153926301127},{"$f":"'Population 2016'!AG131*'Prevalence Rates'!AG131","v":252.18373762475173},{"$f":"'Population 2016'!AH131*'Prevalence Rates'!AH131","v":777.37937975392072},{"$f":"'Population 2016'!AI131*'Prevalence Rates'!AI131","v":926.71079714683788},{"$f":"'Population 2016'!AJ131*'Prevalence Rates'!AJ131","v":181.17915427846009},{"$f":"'Population 2016'!AK131*'Prevalence Rates'!AK131","v":52.252566708795577},{"$f":"'Population 2016'!AL131*'Prevalence Rates'!AL131","v":184.58827299862392},{"$f":"'Population 2016'!AM131*'Prevalence Rates'!AM131","v":378.74884283645412},{"$f":"'Population 2016'!AN131*'Prevalence Rates'!AN131","v":25.564607916979831},{"$f":"'Population 2016'!AO131*'Prevalence Rates'!AO131","v":25.564607916979831},{"$f":"'Population 2016'!AP131*'Prevalence Rates'!AP131","v":59.659703834970131},{"$f":"'Population 2016'!AQ131*'Prevalence Rates'!AQ131","v":148.54518860238812},{"$f":"'Population 2016'!AR131*'Prevalence Rates'!AR131","v":5165.9390257338482},{"$f":"'Population 2016'!AS131*'Prevalence Rates'!AS131","v":125.72276444559192},{"$f":"'Population 2016'!AT131*'Prevalence Rates'!AT131","v":6.1835878869729077},{"$f":"'Population 2016'!AU131*'Prevalence Rates'!AU131","v":6.1835878869729077},{"$f":"'Population 2016'!AV131*'Prevalence Rates'!AV131","v":200.21479728218677},{"$f":"'Population 2016'!AW131*'Prevalence Rates'!AW131","v":387.71087341803093},{"$f":"'Population 2016'!AX131*'Prevalence Rates'!AX131","v":57.880258668047574},{"$f":"'Population 2016'!AY131*'Prevalence Rates'!AY131","v":578.66142305848098},{"$f":"'Population 2016'!AZ131*'Prevalence Rates'!AZ131","v":217.54451556604909},{"$f":"'Population 2016'!BA131*'Prevalence Rates'!BA131","v":131.22515061126791},{"$f":"'Population 2016'!BB131*'Prevalence Rates'!BB131","v":253.70032732099926},{"$f":"'Population 2016'!BC131*'Prevalence Rates'!BC131","v":35.314782529045551},129]
[null,"Male 75-79",{"$f":"'Population 2016'!C132*'Prevalence Rates'!C132","v":68.33363634999435},{"$f":"'Population 2016'!D132*'Prevalence Rates'!D132","v":92.487230676383064},{"$f":"'Population 2016'!E132*'Prevalence Rates'!E132","v":29.403982446608669},{"$f":"'Population 2016'!F132*'Prevalence Rates'!F132","v":33.314854850905981},{"$f":"'Population 2016'!G132*'Prevalence Rates'!G132","v":35.764455848482584},{"$f":"'Population 2016'!H132*'Prevalence Rates'!H132","v":211.89976905497741},{"$f":"'Population 2016'!I132*'Prevalence Rates'!I132","v":44.322157091771352},{"$f":"'Population 2016'!J132*'Prevalence Rates'!J132","v":57.315803485845372},{"$f":"'Population 2016'!K132*'Prevalence Rates'!K132","v":30.362084357232796},{"$f":"'Population 2016'!L132*'Prevalence Rates'!L132","v":101.00266504191318},{"$f":"'Population 2016'!M132*'Prevalence Rates'!M132","v":107.36582135494544},{"$f":"'Population 2016'!N132*'Prevalence Rates'!N132","v":41.538176374388712},{"$f":"'Population 2016'!O132*'Prevalence Rates'!O132","v":68.14760985885836},{"$f":"'Population 2016'!P132*'Prevalence Rates'!P132","v":32.979138943843125},{"$f":"'Population 2016'!Q132*'Prevalence Rates'!Q132","v":58.897596242830325},{"$f":"'Population 2016'!R132*'Prevalence Rates'!R132","v":11.342532099657593},{"$f":"'Population 2016'!S132*'Prevalence Rates'!S132","v":511.77139626880808},{"$f":"'Population 2016'!T132*'Prevalence Rates'!T132","v":114.00146999462184},{"$f":"'Population 2016'!U132*'Prevalence Rates'!U132","v":21.73051889512849},{"$f":"'Population 2016'!V132*'Prevalence Rates'!V132","v":76.094604235723025},{"$f":"'Population 2016'!W132*'Prevalence Rates'!W132","v":133.92650345487255},{"$f":"'Population 2016'!X132*'Prevalence Rates'!X132","v":134.49474975316284},{"$f":"'Population 2016'!Y132*'Prevalence Rates'!Y132","v":165.45922762535548},{"$f":"'Population 2016'!Z132*'Prevalence Rates'!Z132","v":126.67429091314841},{"$f":"'Population 2016'!AA132*'Prevalence Rates'!AA132","v":565.46685307647249},{"$f":"'Population 2016'!AB132*'Prevalence Rates'!AB132","v":107.76355423160255},{"$f":"'Population 2016'!AC132*'Prevalence Rates'!AC132","v":284.88020254935077},{"$f":"'Population 2016'!AD132*'Prevalence Rates'!AD132","v":118.76918982704815},{"$f":"'Population 2016'!AE132*'Prevalence Rates'!AE132","v":76.870763040265501},{"$f":"'Population 2016'!AF132*'Prevalence Rates'!AF132","v":16.465519758410768},{"$f":"'Population 2016'!AG132*'Prevalence Rates'!AG132","v":83.44150904535411},{"$f":"'Population 2016'!AH132*'Prevalence Rates'!AH132","v":271.53449278485414},{"$f":"'Population 2016'!AI132*'Prevalence Rates'!AI132","v":326.97299637616948},{"$f":"'Population 2016'!AJ132*'Prevalence Rates'!AJ132","v":60.042473923576487},{"$f":"'Population 2016'!AK132*'Prevalence Rates'!AK132","v":17.329218347933224},{"$f":"'Population 2016'!AL132*'Prevalence Rates'!AL132","v":67.61411824108545},{"$f":"'Population 2016'!AM132*'Prevalence Rates'!AM132","v":134.29161587632103},{"$f":"'Population 2016'!AN132*'Prevalence Rates'!AN132","v":10.088238561380274},{"$f":"'Population 2016'!AO132*'Prevalence Rates'!AO132","v":10.088238561380274},{"$f":"'Population 2016'!AP132*'Prevalence Rates'!AP132","v":22.610873907713291},{"$f":"'Population 2016'!AQ132*'Prevalence Rates'!AQ132","v":59.336030503346031},{"$f":"'Population 2016'!AR132*'Prevalence Rates'!AR132","v":1867.2607978460219},{"$f":"'Population 2016'!AS132*'Prevalence Rates'!AS132","v":44.322157091771352},{"$f":"'Population 2016'!AT132*'Prevalence Rates'!AT132","v":0.98409391667160973},{"$f":"'Population 2016'!AU132*'Prevalence Rates'!AU132","v":0.98409391667160973},{"$f":"'Population 2016'!AV132*'Prevalence Rates'!AV132","v":71.100159497794237},{"$f":"'Population 2016'!AW132*'Prevalence Rates'!AW132","v":133.29318700021258},{"$f":"'Population 2016'!AX132*'Prevalence Rates'!AX132","v":23.670323160489872},{"$f":"'Population 2016'!AY132*'Prevalence Rates'!AY132","v":215.8907853954602},{"$f":"'Population 2016'!AZ132*'Prevalence Rates'!AZ132","v":85.177241948042663},{"$f":"'Population 2016'!BA132*'Prevalence Rates'!BA132","v":45.555374848418495},{"$f":"'Population 2016'!BB132*'Prevalence Rates'!BB132","v":87.439535850038354},{"$f":"'Population 2016'!BC132*'Prevalence Rates'!BC132","v":14.998720015113543},130]
[null,"Male 80-84",{"$f":"'Population 2016'!C133*'Prevalence Rates'!C133","v":55.230232963884326},{"$f":"'Population 2016'!D133*'Prevalence Rates'!D133","v":75.224342597646398},{"$f":"'Population 2016'!E133*'Prevalence Rates'!E133","v":24.172599066537188},{"$f":"'Population 2016'!F133*'Prevalence Rates'!F133","v":24.958653634177086},{"$f":"'Population 2016'!G133*'Prevalence Rates'!G133","v":23.508723314734656},{"$f":"'Population 2016'!H133*'Prevalence Rates'!H133","v":131.59824270658788},{"$f":"'Population 2016'!I133*'Prevalence Rates'!I133","v":27.986276335089912},{"$f":"'Population 2016'!J133*'Prevalence Rates'!J133","v":36.720053769891479},{"$f":"'Population 2016'!K133*'Prevalence Rates'!K133","v":18.018620155927874},{"$f":"'Population 2016'!L133*'Prevalence Rates'!L133","v":64.07459599503305},{"$f":"'Population 2016'!M133*'Prevalence Rates'!M133","v":68.11128819361609},{"$f":"'Population 2016'!N133*'Prevalence Rates'!N133","v":27.661072608057058},{"$f":"'Population 2016'!O133*'Prevalence Rates'!O133","v":42.310776903673805},{"$f":"'Population 2016'!P133*'Prevalence Rates'!P133","v":23.623354846298977},{"$f":"'Population 2016'!Q133*'Prevalence Rates'!Q133","v":41.215596506861829},{"$f":"'Population 2016'!R133*'Prevalence Rates'!R133","v":9.4906901242032919},{"$f":"'Population 2016'!S133*'Prevalence Rates'!S133","v":347.95375329442533},{"$f":"'Population 2016'!T133*'Prevalence Rates'!T133","v":82.993070156084698},{"$f":"'Population 2016'!U133*'Prevalence Rates'!U133","v":13.338042632182315},{"$f":"'Population 2016'!V133*'Prevalence Rates'!V133","v":55.102989274144264},{"$f":"'Population 2016'!W133*'Prevalence Rates'!W133","v":92.153189681330787},{"$f":"'Population 2016'!X133*'Prevalence Rates'!X133","v":92.544193011972553},{"$f":"'Population 2016'!Y133*'Prevalence Rates'!Y133","v":114.7260846600897},{"$f":"'Population 2016'!Z133*'Prevalence Rates'!Z133","v":89.601620451387035},{"$f":"'Population 2016'!AA133*'Prevalence Rates'!AA133","v":387.60034383545747},{"$f":"'Population 2016'!AB133*'Prevalence Rates'!AB133","v":85.637948229880308},{"$f":"'Population 2016'!AC133*'Prevalence Rates'!AC133","v":198.59794799132288},{"$f":"'Population 2016'!AD133*'Prevalence Rates'!AD133","v":77.656777963839176},{"$f":"'Population 2016'!AE133*'Prevalence Rates'!AE133","v":50.146564882643005},{"$f":"'Population 2016'!AF133*'Prevalence Rates'!AF133","v":11.590859303618107},{"$f":"'Population 2016'!AG133*'Prevalence Rates'!AG133","v":54.43298442421758},{"$f":"'Population 2016'!AH133*'Prevalence Rates'!AH133","v":183.16527915664716},{"$f":"'Population 2016'!AI133*'Prevalence Rates'!AI133","v":223.19579328340023},{"$f":"'Population 2016'!AJ133*'Prevalence Rates'!AJ133","v":37.399337571041286},{"$f":"'Population 2016'!AK133*'Prevalence Rates'!AK133","v":12.389972538618922},{"$f":"'Population 2016'!AL133*'Prevalence Rates'!AL133","v":42.186586594865283},{"$f":"'Population 2016'!AM133*'Prevalence Rates'!AM133","v":90.369509139068953},{"$f":"'Population 2016'!AN133*'Prevalence Rates'!AN133","v":4.3591154277569082},{"$f":"'Population 2016'!AO133*'Prevalence Rates'!AO133","v":4.3591154277569082},{"$f":"'Population 2016'!AP133*'Prevalence Rates'!AP133","v":14.68238565435928},{"$f":"'Population 2016'!AQ133*'Prevalence Rates'!AQ133","v":41.605739554977774},{"$f":"'Population 2016'!AR133*'Prevalence Rates'!AR133","v":1267.5451705294379},{"$f":"'Population 2016'!AS133*'Prevalence Rates'!AS133","v":27.986276335089912},{"$f":"'Population 2016'!AT133*'Prevalence Rates'!AT133","v":0.73807043750370727},{"$f":"'Population 2016'!AU133*'Prevalence Rates'!AU133","v":0.73807043750370727},{"$f":"'Population 2016'!AV133*'Prevalence Rates'!AV133","v":44.014384451015481},{"$f":"'Population 2016'!AW133*'Prevalence Rates'!AW133","v":90.146259416328746},{"$f":"'Population 2016'!AX133*'Prevalence Rates'!AX133","v":16.308739402442782},{"$f":"'Population 2016'!AY133*'Prevalence Rates'!AY133","v":148.52061122950099},{"$f":"'Population 2016'!AZ133*'Prevalence Rates'!AZ133","v":58.581082727531388},{"$f":"'Population 2016'!BA133*'Prevalence Rates'!BA133","v":28.140266514757347},{"$f":"'Population 2016'!BB133*'Prevalence Rates'!BB133","v":58.009260918592894},{"$f":"'Population 2016'!BC133*'Prevalence Rates'!BC133","v":9.2061109058283126},131]
[null,"Male 85-89",{"$f":"'Population 2016'!C134*'Prevalence Rates'!C134","v":28.288655908330998},{"$f":"'Population 2016'!D134*'Prevalence Rates'!D134","v":34.944270413927541},{"$f":"'Population 2016'!E134*'Prevalence Rates'!E134","v":9.2902153128855609},{"$f":"'Population 2016'!F134*'Prevalence Rates'!F134","v":13.413901953170063},{"$f":"'Population 2016'!G134*'Prevalence Rates'!G134","v":11.587238031907129},{"$f":"'Population 2016'!H134*'Prevalence Rates'!H134","v":69.662207400022467},{"$f":"'Population 2016'!I134*'Prevalence Rates'!I134","v":19.12184491673564},{"$f":"'Population 2016'!J134*'Prevalence Rates'!J134","v":17.208290881093056},{"$f":"'Population 2016'!K134*'Prevalence Rates'!K134","v":8.7964917296655756},{"$f":"'Population 2016'!L134*'Prevalence Rates'!L134","v":31.21301074200581},{"$f":"'Population 2016'!M134*'Prevalence Rates'!M134","v":33.179426838742657},{"$f":"'Population 2016'!N134*'Prevalence Rates'!N134","v":13.504564067906644},{"$f":"'Population 2016'!O134*'Prevalence Rates'!O134","v":22.6368582313773},{"$f":"'Population 2016'!P134*'Prevalence Rates'!P134","v":13.448939640219713},{"$f":"'Population 2016'!Q134*'Prevalence Rates'!Q134","v":19.081294679102697},{"$f":"'Population 2016'!R134*'Prevalence Rates'!R134","v":3.7036839509086019},{"$f":"'Population 2016'!S134*'Prevalence Rates'!S134","v":173.84988622630229},{"$f":"'Population 2016'!T134*'Prevalence Rates'!T134","v":41.344533118049519},{"$f":"'Population 2016'!U134*'Prevalence Rates'!U134","v":7.3434167300779034},{"$f":"'Population 2016'!V134*'Prevalence Rates'!V134","v":26.554392926397139},{"$f":"'Population 2016'!W134*'Prevalence Rates'!W134","v":45.131972167394352},{"$f":"'Population 2016'!X134*'Prevalence Rates'!X134","v":45.323465825909103},{"$f":"'Population 2016'!Y134*'Prevalence Rates'!Y134","v":54.768733882957392},{"$f":"'Population 2016'!Z134*'Prevalence Rates'!Z134","v":44.352802123436582},{"$f":"'Population 2016'!AA134*'Prevalence Rates'!AA134","v":183.36438645853926},{"$f":"'Population 2016'!AB134*'Prevalence Rates'!AB134","v":40.102660878121569},{"$f":"'Population 2016'!AC134*'Prevalence Rates'!AC134","v":94.995487161178517},{"$f":"'Population 2016'!AD134*'Prevalence Rates'!AD134","v":40.555333111674976},{"$f":"'Population 2016'!AE134*'Prevalence Rates'!AE134","v":26.827380389891317},{"$f":"'Population 2016'!AF134*'Prevalence Rates'!AF134","v":5.3079636063297864},{"$f":"'Population 2016'!AG134*'Prevalence Rates'!AG134","v":29.120526646700764},{"$f":"'Population 2016'!AH134*'Prevalence Rates'!AH134","v":85.722862845757987},{"$f":"'Population 2016'!AI134*'Prevalence Rates'!AI134","v":107.17750463578268},{"$f":"'Population 2016'!AJ134*'Prevalence Rates'!AJ134","v":19.971755097460825},{"$f":"'Population 2016'!AK134*'Prevalence Rates'!AK134","v":6.027554207976773},{"$f":"'Population 2016'!AL134*'Prevalence Rates'!AL134","v":19.64854718117013},{"$f":"'Population 2016'!AM134*'Prevalence Rates'!AM134","v":40.3145415021595},{"$f":"'Population 2016'!AN134*'Prevalence Rates'!AN134","v":1.9927384812603011},{"$f":"'Population 2016'!AO134*'Prevalence Rates'!AO134","v":1.9927384812603011},{"$f":"'Population 2016'!AP134*'Prevalence Rates'!AP134","v":7.9284882533540113},{"$f":"'Population 2016'!AQ134*'Prevalence Rates'!AQ134","v":17.528810369409523},{"$f":"'Population 2016'!AR134*'Prevalence Rates'!AR134","v":622.75580248018275},{"$f":"'Population 2016'!AS134*'Prevalence Rates'!AS134","v":19.12184491673564},{"$f":"'Population 2016'!AT134*'Prevalence Rates'!AT134","v":0.12301173958395122},{"$f":"'Population 2016'!AU134*'Prevalence Rates'!AU134","v":0.12301173958395122},{"$f":"'Population 2016'!AV134*'Prevalence Rates'!AV134","v":25.167199314298596},{"$f":"'Population 2016'!AW134*'Prevalence Rates'!AW134","v":44.302648858452166},{"$f":"'Population 2016'!AX134*'Prevalence Rates'!AX134","v":7.3615837580470886},{"$f":"'Population 2016'!AY134*'Prevalence Rates'!AY134","v":74.451698154994688},{"$f":"'Population 2016'!AZ134*'Prevalence Rates'!AZ134","v":30.246612446855966},{"$f":"'Population 2016'!BA134*'Prevalence Rates'!BA134","v":13.592279675052605},{"$f":"'Population 2016'!BB134*'Prevalence Rates'!BB134","v":25.417055622611983},{"$f":"'Population 2016'!BC134*'Prevalence Rates'!BC134","v":5.0685329706245765},132]
[null,"Male 90+",{"$f":"'Population 2016'!C135*'Prevalence Rates'!C135","v":11.388939391665726},{"$f":"'Population 2016'!D135*'Prevalence Rates'!D135","v":15.588911052919769},{"$f":"'Population 2016'!E135*'Prevalence Rates'!E135","v":5.0509908497241884},{"$f":"'Population 2016'!F135*'Prevalence Rates'!F135","v":7.476601088652167},{"$f":"'Population 2016'!G135*'Prevalence Rates'!G135","v":3.8995512607379759},{"$f":"'Population 2016'!H135*'Prevalence Rates'!H135","v":27.104931606554192},{"$f":"'Population 2016'!I135*'Prevalence Rates'!I135","v":7.0915451346834164},{"$f":"'Population 2016'!J135*'Prevalence Rates'!J135","v":5.0134390755940395},{"$f":"'Population 2016'!K135*'Prevalence Rates'!K135","v":2.8375779773114762},{"$f":"'Population 2016'!L135*'Prevalence Rates'!L135","v":13.628215957777185},{"$f":"'Population 2016'!M135*'Prevalence Rates'!M135","v":14.4867920000144},{"$f":"'Population 2016'!N135*'Prevalence Rates'!N135","v":6.2400399486189322},{"$f":"'Population 2016'!O135*'Prevalence Rates'!O135","v":8.2962307654262357},{"$f":"'Population 2016'!P135*'Prevalence Rates'!P135","v":7.4846272780353189},{"$f":"'Population 2016'!Q135*'Prevalence Rates'!Q135","v":8.5229782899992053},{"$f":"'Population 2016'!R135*'Prevalence Rates'!R135","v":1.9675820989201949},{"$f":"'Population 2016'!S135*'Prevalence Rates'!S135","v":75.940271704403784},{"$f":"'Population 2016'!T135*'Prevalence Rates'!T135","v":22.040284198960222},{"$f":"'Population 2016'!U135*'Prevalence Rates'!U135","v":1.3487908279734926},{"$f":"'Population 2016'!V135*'Prevalence Rates'!V135","v":9.7611009571341274},{"$f":"'Population 2016'!W135*'Prevalence Rates'!W135","v":20.151950363115617},{"$f":"'Population 2016'!X135*'Prevalence Rates'!X135","v":20.237454508312904},{"$f":"'Population 2016'!Y135*'Prevalence Rates'!Y135","v":18.736672117853846},{"$f":"'Population 2016'!Z135*'Prevalence Rates'!Z135","v":18.368332192534343},{"$f":"'Population 2016'!AA135*'Prevalence Rates'!AA135","v":69.843403170770642},{"$f":"'Population 2016'!AB135*'Prevalence Rates'!AB135","v":17.77950482281252},{"$f":"'Population 2016'!AC135*'Prevalence Rates'!AC135","v":39.740841385101525},{"$f":"'Population 2016'!AD135*'Prevalence Rates'!AD135","v":19.052093302462694},{"$f":"'Population 2016'!AE135*'Prevalence Rates'!AE135","v":14.032783588558535},{"$f":"'Population 2016'!AF135*'Prevalence Rates'!AF135","v":1.9498641819170646},{"$f":"'Population 2016'!AG135*'Prevalence Rates'!AG135","v":15.232275476735785},{"$f":"'Population 2016'!AH135*'Prevalence Rates'!AH135","v":29.48790871871719},{"$f":"'Population 2016'!AI135*'Prevalence Rates'!AI135","v":47.604221602187742},{"$f":"'Population 2016'!AJ135*'Prevalence Rates'!AJ135","v":8.141352396417151},{"$f":"'Population 2016'!AK135*'Prevalence Rates'!AK135","v":2.5951969506566663},{"$f":"'Population 2016'!AL135*'Prevalence Rates'!AL135","v":8.0905782510700543},{"$f":"'Population 2016'!AM135*'Prevalence Rates'!AM135","v":13.34799136984252},{"$f":"'Population 2016'!AN135*'Prevalence Rates'!AN135","v":1.1209153957089193},{"$f":"'Population 2016'!AO135*'Prevalence Rates'!AO135","v":1.1209153957089193},{"$f":"'Population 2016'!AP135*'Prevalence Rates'!AP135","v":2.936477130871856},{"$f":"'Population 2016'!AQ135*'Prevalence Rates'!AQ135","v":7.3540411319936503},{"$f":"'Population 2016'!AR135*'Prevalence Rates'!AR135","v":255.67883700964398},{"$f":"'Population 2016'!AS135*'Prevalence Rates'!AS135","v":7.0915451346834164},{"$f":"'Population 2016'!AT135*'Prevalence Rates'!AT135","v":0},{"$f":"'Population 2016'!AU135*'Prevalence Rates'!AU135","v":0},{"$f":"'Population 2016'!AV135*'Prevalence Rates'!AV135","v":9.931450850485545},{"$f":"'Population 2016'!AW135*'Prevalence Rates'!AW135","v":15.794857419100337},{"$f":"'Population 2016'!AX135*'Prevalence Rates'!AX135","v":1.9253372905661617},{"$f":"'Population 2016'!AY135*'Prevalence Rates'!AY135","v":34.163568433590108},{"$f":"'Population 2016'!AZ135*'Prevalence Rates'!AZ135","v":14.341066246354123},{"$f":"'Population 2016'!BA135*'Prevalence Rates'!BA135","v":4.0352080285312422},{"$f":"'Population 2016'!BB135*'Prevalence Rates'!BB135","v":8.9993402682932384},{"$f":"'Population 2016'!BC135*'Prevalence Rates'!BC135","v":0.93095503542084068},133]
["SIMD Q3","Female 0-4",{"$f":"'Population 2016'!C136*'Prevalence Rates'!C136","v":0},{"$f":"'Population 2016'!D136*'Prevalence Rates'!D136","v":0},{"$f":"'Population 2016'!E136*'Prevalence Rates'!E136","v":0},{"$f":"'Population 2016'!F136*'Prevalence Rates'!F136","v":0},{"$f":"'Population 2016'!G136*'Prevalence Rates'!G136","v":0},{"$f":"'Population 2016'!H136*'Prevalence Rates'!H136","v":0},{"$f":"'Population 2016'!I136*'Prevalence Rates'!I136","v":0},{"$f":"'Population 2016'!J136*'Prevalence Rates'!J136","v":0},{"$f":"'Population 2016'!K136*'Prevalence Rates'!K136","v":0},{"$f":"'Population 2016'!L136*'Prevalence Rates'!L136","v":0},{"$f":"'Population 2016'!M136*'Prevalence Rates'!M136","v":0},{"$f":"'Population 2016'!N136*'Prevalence Rates'!N136","v":0},{"$f":"'Population 2016'!O136*'Prevalence Rates'!O136","v":0},{"$f":"'Population 2016'!P136*'Prevalence Rates'!P136","v":0},{"$f":"'Population 2016'!Q136*'Prevalence Rates'!Q136","v":0},{"$f":"'Population 2016'!R136*'Prevalence Rates'!R136","v":0},{"$f":"'Population 2016'!S136*'Prevalence Rates'!S136","v":0},{"$f":"'Population 2016'!T136*'Prevalence Rates'!T136","v":0},{"$f":"'Population 2016'!U136*'Prevalence Rates'!U136","v":0},{"$f":"'Population 2016'!V136*'Prevalence Rates'!V136","v":0},{"$f":"'Population 2016'!W136*'Prevalence Rates'!W136","v":0},{"$f":"'Population 2016'!X136*'Prevalence Rates'!X136","v":0},{"$f":"'Population 2016'!Y136*'Prevalence Rates'!Y136","v":0},{"$f":"'Population 2016'!Z136*'Prevalence Rates'!Z136","v":0},{"$f":"'Population 2016'!AA136*'Prevalence Rates'!AA136","v":0},{"$f":"'Population 2016'!AB136*'Prevalence Rates'!AB136","v":0},{"$f":"'Population 2016'!AC136*'Prevalence Rates'!AC136","v":0},{"$f":"'Population 2016'!AD136*'Prevalence Rates'!AD136","v":0},{"$f":"'Population 2016'!AE136*'Prevalence Rates'!AE136","v":0},{"$f":"'Population 2016'!AF136*'Prevalence Rates'!AF136","v":0},{"$f":"'Population 2016'!AG136*'Prevalence Rates'!AG136","v":0},{"$f":"'Population 2016'!AH136*'Prevalence Rates'!AH136","v":0},{"$f":"'Population 2016'!AI136*'Prevalence Rates'!AI136","v":0},{"$f":"'Population 2016'!AJ136*'Prevalence Rates'!AJ136","v":0},{"$f":"'Population 2016'!AK136*'Prevalence Rates'!AK136","v":0},{"$f":"'Population 2016'!AL136*'Prevalence Rates'!AL136","v":0},{"$f":"'Population 2016'!AM136*'Prevalence Rates'!AM136","v":0},{"$f":"'Population 2016'!AN136*'Prevalence Rates'!AN136","v":0},{"$f":"'Population 2016'!AO136*'Prevalence Rates'!AO136","v":0},{"$f":"'Population 2016'!AP136*'Prevalence Rates'!AP136","v":0},{"$f":"'Population 2016'!AQ136*'Prevalence Rates'!AQ136","v":0},{"$f":"'Population 2016'!AR136*'Prevalence Rates'!AR136","v":0},{"$f":"'Population 2016'!AS136*'Prevalence Rates'!AS136","v":0},{"$f":"'Population 2016'!AT136*'Prevalence Rates'!AT136","v":0},{"$f":"'Population 2016'!AU136*'Prevalence Rates'!AU136","v":0},{"$f":"'Population 2016'!AV136*'Prevalence Rates'!AV136","v":0},{"$f":"'Population 2016'!AW136*'Prevalence Rates'!AW136","v":0},{"$f":"'Population 2016'!AX136*'Prevalence Rates'!AX136","v":0},{"$f":"'Population 2016'!AY136*'Prevalence Rates'!AY136","v":0},{"$f":"'Population 2016'!AZ136*'Prevalence Rates'!AZ136","v":0},{"$f":"'Population 2016'!BA136*'Prevalence Rates'!BA136","v":0},{"$f":"'Population 2016'!BB136*'Prevalence Rates'!BB136","v":0},{"$f":"'Population 2016'!BC136*'Prevalence Rates'!BC136","v":0},134]
[null,"Female 5-9",{"$f":"'Population 2016'!C137*'Prevalence Rates'!C137","v":0},{"$f":"'Population 2016'!D137*'Prevalence Rates'!D137","v":0},{"$f":"'Population 2016'!E137*'Prevalence Rates'!E137","v":0},{"$f":"'Population 2016'!F137*'Prevalence Rates'!F137","v":0},{"$f":"'Population 2016'!G137*'Prevalence Rates'!G137","v":0},{"$f":"'Population 2016'!H137*'Prevalence Rates'!H137","v":0},{"$f":"'Population 2016'!I137*'Prevalence Rates'!I137","v":0},{"$f":"'Population 2016'!J137*'Prevalence Rates'!J137","v":0},{"$f":"'Population 2016'!K137*'Prevalence Rates'!K137","v":0},{"$f":"'Population 2016'!L137*'Prevalence Rates'!L137","v":0},{"$f":"'Population 2016'!M137*'Prevalence Rates'!M137","v":0},{"$f":"'Population 2016'!N137*'Prevalence Rates'!N137","v":0},{"$f":"'Population 2016'!O137*'Prevalence Rates'!O137","v":0},{"$f":"'Population 2016'!P137*'Prevalence Rates'!P137","v":0},{"$f":"'Population 2016'!Q137*'Prevalence Rates'!Q137","v":0},{"$f":"'Population 2016'!R137*'Prevalence Rates'!R137","v":0},{"$f":"'Population 2016'!S137*'Prevalence Rates'!S137","v":0},{"$f":"'Population 2016'!T137*'Prevalence Rates'!T137","v":0},{"$f":"'Population 2016'!U137*'Prevalence Rates'!U137","v":0},{"$f":"'Population 2016'!V137*'Prevalence Rates'!V137","v":0},{"$f":"'Population 2016'!W137*'Prevalence Rates'!W137","v":0},{"$f":"'Population 2016'!X137*'Prevalence Rates'!X137","v":0},{"$f":"'Population 2016'!Y137*'Prevalence Rates'!Y137","v":0},{"$f":"'Population 2016'!Z137*'Prevalence Rates'!Z137","v":0},{"$f":"'Population 2016'!AA137*'Prevalence Rates'!AA137","v":0},{"$f":"'Population 2016'!AB137*'Prevalence Rates'!AB137","v":0},{"$f":"'Population 2016'!AC137*'Prevalence Rates'!AC137","v":0},{"$f":"'Population 2016'!AD137*'Prevalence Rates'!AD137","v":0},{"$f":"'Population 2016'!AE137*'Prevalence Rates'!AE137","v":0},{"$f":"'Population 2016'!AF137*'Prevalence Rates'!AF137","v":0},{"$f":"'Population 2016'!AG137*'Prevalence Rates'!AG137","v":0},{"$f":"'Population 2016'!AH137*'Prevalence Rates'!AH137","v":0},{"$f":"'Population 2016'!AI137*'Prevalence Rates'!AI137","v":0},{"$f":"'Population 2016'!AJ137*'Prevalence Rates'!AJ137","v":0},{"$f":"'Population 2016'!AK137*'Prevalence Rates'!AK137","v":0},{"$f":"'Population 2016'!AL137*'Prevalence Rates'!AL137","v":0},{"$f":"'Population 2016'!AM137*'Prevalence Rates'!AM137","v":0},{"$f":"'Population 2016'!AN137*'Prevalence Rates'!AN137","v":0},{"$f":"'Population 2016'!AO137*'Prevalence Rates'!AO137","v":0},{"$f":"'Population 2016'!AP137*'Prevalence Rates'!AP137","v":0},{"$f":"'Population 2016'!AQ137*'Prevalence Rates'!AQ137","v":0},{"$f":"'Population 2016'!AR137*'Prevalence Rates'!AR137","v":0},{"$f":"'Population 2016'!AS137*'Prevalence Rates'!AS137","v":0},{"$f":"'Population 2016'!AT137*'Prevalence Rates'!AT137","v":0},{"$f":"'Population 2016'!AU137*'Prevalence Rates'!AU137","v":0},{"$f":"'Population 2016'!AV137*'Prevalence Rates'!AV137","v":0},{"$f":"'Population 2016'!AW137*'Prevalence Rates'!AW137","v":0},{"$f":"'Population 2016'!AX137*'Prevalence Rates'!AX137","v":0},{"$f":"'Population 2016'!AY137*'Prevalence Rates'!AY137","v":0},{"$f":"'Population 2016'!AZ137*'Prevalence Rates'!AZ137","v":0},{"$f":"'Population 2016'!BA137*'Prevalence Rates'!BA137","v":0},{"$f":"'Population 2016'!BB137*'Prevalence Rates'!BB137","v":0},{"$f":"'Population 2016'!BC137*'Prevalence Rates'!BC137","v":0},135]
[null,"Female 10-15",{"$f":"'Population 2016'!C138*'Prevalence Rates'!C138","v":0},{"$f":"'Population 2016'!D138*'Prevalence Rates'!D138","v":0},{"$f":"'Population 2016'!E138*'Prevalence Rates'!E138","v":0},{"$f":"'Population 2016'!F138*'Prevalence Rates'!F138","v":0},{"$f":"'Population 2016'!G138*'Prevalence Rates'!G138","v":0},{"$f":"'Population 2016'!H138*'Prevalence Rates'!H138","v":0},{"$f":"'Population 2016'!I138*'Prevalence Rates'!I138","v":0},{"$f":"'Population 2016'!J138*'Prevalence Rates'!J138","v":0},{"$f":"'Population 2016'!K138*'Prevalence Rates'!K138","v":0},{"$f":"'Population 2016'!L138*'Prevalence Rates'!L138","v":0},{"$f":"'Population 2016'!M138*'Prevalence Rates'!M138","v":0},{"$f":"'Population 2016'!N138*'Prevalence Rates'!N138","v":0},{"$f":"'Population 2016'!O138*'Prevalence Rates'!O138","v":0},{"$f":"'Population 2016'!P138*'Prevalence Rates'!P138","v":0},{"$f":"'Population 2016'!Q138*'Prevalence Rates'!Q138","v":0},{"$f":"'Population 2016'!R138*'Prevalence Rates'!R138","v":0},{"$f":"'Population 2016'!S138*'Prevalence Rates'!S138","v":0},{"$f":"'Population 2016'!T138*'Prevalence Rates'!T138","v":0},{"$f":"'Population 2016'!U138*'Prevalence Rates'!U138","v":0},{"$f":"'Population 2016'!V138*'Prevalence Rates'!V138","v":0},{"$f":"'Population 2016'!W138*'Prevalence Rates'!W138","v":0},{"$f":"'Population 2016'!X138*'Prevalence Rates'!X138","v":0},{"$f":"'Population 2016'!Y138*'Prevalence Rates'!Y138","v":0},{"$f":"'Population 2016'!Z138*'Prevalence Rates'!Z138","v":0},{"$f":"'Population 2016'!AA138*'Prevalence Rates'!AA138","v":0},{"$f":"'Population 2016'!AB138*'Prevalence Rates'!AB138","v":0},{"$f":"'Population 2016'!AC138*'Prevalence Rates'!AC138","v":0},{"$f":"'Population 2016'!AD138*'Prevalence Rates'!AD138","v":0},{"$f":"'Population 2016'!AE138*'Prevalence Rates'!AE138","v":0},{"$f":"'Population 2016'!AF138*'Prevalence Rates'!AF138","v":0},{"$f":"'Population 2016'!AG138*'Prevalence Rates'!AG138","v":0},{"$f":"'Population 2016'!AH138*'Prevalence Rates'!AH138","v":0},{"$f":"'Population 2016'!AI138*'Prevalence Rates'!AI138","v":0},{"$f":"'Population 2016'!AJ138*'Prevalence Rates'!AJ138","v":0},{"$f":"'Population 2016'!AK138*'Prevalence Rates'!AK138","v":0},{"$f":"'Population 2016'!AL138*'Prevalence Rates'!AL138","v":0},{"$f":"'Population 2016'!AM138*'Prevalence Rates'!AM138","v":0},{"$f":"'Population 2016'!AN138*'Prevalence Rates'!AN138","v":0},{"$f":"'Population 2016'!AO138*'Prevalence Rates'!AO138","v":0},{"$f":"'Population 2016'!AP138*'Prevalence Rates'!AP138","v":0},{"$f":"'Population 2016'!AQ138*'Prevalence Rates'!AQ138","v":0},{"$f":"'Population 2016'!AR138*'Prevalence Rates'!AR138","v":0},{"$f":"'Population 2016'!AS138*'Prevalence Rates'!AS138","v":0},{"$f":"'Population 2016'!AT138*'Prevalence Rates'!AT138","v":0},{"$f":"'Population 2016'!AU138*'Prevalence Rates'!AU138","v":0},{"$f":"'Population 2016'!AV138*'Prevalence Rates'!AV138","v":0},{"$f":"'Population 2016'!AW138*'Prevalence Rates'!AW138","v":0},{"$f":"'Population 2016'!AX138*'Prevalence Rates'!AX138","v":0},{"$f":"'Population 2016'!AY138*'Prevalence Rates'!AY138","v":0},{"$f":"'Population 2016'!AZ138*'Prevalence Rates'!AZ138","v":0},{"$f":"'Population 2016'!BA138*'Prevalence Rates'!BA138","v":0},{"$f":"'Population 2016'!BB138*'Prevalence Rates'!BB138","v":0},{"$f":"'Population 2016'!BC138*'Prevalence Rates'!BC138","v":0},136]
[null,"Female 16-19",{"$f":"'Population 2016'!C139*'Prevalence Rates'!C139","v":195.72365121774985},{"$f":"'Population 2016'!D139*'Prevalence Rates'!D139","v":421.1281622282612},{"$f":"'Population 2016'!E139*'Prevalence Rates'!E139","v":216.07116616091002},{"$f":"'Population 2016'!F139*'Prevalence Rates'!F139","v":156.89898422692534},{"$f":"'Population 2016'!G139*'Prevalence Rates'!G139","v":196.85075639475716},{"$f":"'Population 2016'!H139*'Prevalence Rates'!H139","v":319.40297286676764},{"$f":"'Population 2016'!I139*'Prevalence Rates'!I139","v":181.50441484030864},{"$f":"'Population 2016'!J139*'Prevalence Rates'!J139","v":151.49186860482524},{"$f":"'Population 2016'!K139*'Prevalence Rates'!K139","v":41.720114482058982},{"$f":"'Population 2016'!L139*'Prevalence Rates'!L139","v":233.66310265834463},{"$f":"'Population 2016'!M139*'Prevalence Rates'!M139","v":240.62651628656843},{"$f":"'Population 2016'!N139*'Prevalence Rates'!N139","v":110.85832816403349},{"$f":"'Population 2016'!O139*'Prevalence Rates'!O139","v":73.600218462252059},{"$f":"'Population 2016'!P139*'Prevalence Rates'!P139","v":37.070641834789143},{"$f":"'Population 2016'!Q139*'Prevalence Rates'!Q139","v":127.97228725240595},{"$f":"'Population 2016'!R139*'Prevalence Rates'!R139","v":52.21535526729447},{"$f":"'Population 2016'!S139*'Prevalence Rates'!S139","v":1480.9777433219924},{"$f":"'Population 2016'!T139*'Prevalence Rates'!T139","v":453.14193682194644},{"$f":"'Population 2016'!U139*'Prevalence Rates'!U139","v":85.232558853156107},{"$f":"'Population 2016'!V139*'Prevalence Rates'!V139","v":150.76162290512923},{"$f":"'Population 2016'!W139*'Prevalence Rates'!W139","v":346.12358429802913},{"$f":"'Population 2016'!X139*'Prevalence Rates'!X139","v":358.7240080677891},{"$f":"'Population 2016'!Y139*'Prevalence Rates'!Y139","v":295.78448238367116},{"$f":"'Population 2016'!Z139*'Prevalence Rates'!Z139","v":576.38531336500853},{"$f":"'Population 2016'!AA139*'Prevalence Rates'!AA139","v":1531.8937456856229},{"$f":"'Population 2016'!AB139*'Prevalence Rates'!AB139","v":540.63337654906559},{"$f":"'Population 2016'!AC139*'Prevalence Rates'!AC139","v":886.49277122372973},{"$f":"'Population 2016'!AD139*'Prevalence Rates'!AD139","v":570.11703954539394},{"$f":"'Population 2016'!AE139*'Prevalence Rates'!AE139","v":272.05301694418438},{"$f":"'Population 2016'!AF139*'Prevalence Rates'!AF139","v":69.138531748427425},{"$f":"'Population 2016'!AG139*'Prevalence Rates'!AG139","v":351.5317021072301},{"$f":"'Population 2016'!AH139*'Prevalence Rates'!AH139","v":647.75281821778924},{"$f":"'Population 2016'!AI139*'Prevalence Rates'!AI139","v":934.57998540089511},{"$f":"'Population 2016'!AJ139*'Prevalence Rates'!AJ139","v":134.73734208513227},{"$f":"'Population 2016'!AK139*'Prevalence Rates'!AK139","v":104.08745107955949},{"$f":"'Population 2016'!AL139*'Prevalence Rates'!AL139","v":113.51958047130137},{"$f":"'Population 2016'!AM139*'Prevalence Rates'!AM139","v":317.15914944222931},{"$f":"'Population 2016'!AN139*'Prevalence Rates'!AN139","v":32.194764156519568},{"$f":"'Population 2016'!AO139*'Prevalence Rates'!AO139","v":32.194764156519568},{"$f":"'Population 2016'!AP139*'Prevalence Rates'!AP139","v":141.9105433474285},{"$f":"'Population 2016'!AQ139*'Prevalence Rates'!AQ139","v":176.27144219053054},{"$f":"'Population 2016'!AR139*'Prevalence Rates'!AR139","v":5498.6672864542879},{"$f":"'Population 2016'!AS139*'Prevalence Rates'!AS139","v":181.50441484030864},{"$f":"'Population 2016'!AT139*'Prevalence Rates'!AT139","v":36.123767207106461},{"$f":"'Population 2016'!AU139*'Prevalence Rates'!AU139","v":36.123767207106461},{"$f":"'Population 2016'!AV139*'Prevalence Rates'!AV139","v":134.55503820495136},{"$f":"'Population 2016'!AW139*'Prevalence Rates'!AW139","v":338.76112469016562},{"$f":"'Population 2016'!AX139*'Prevalence Rates'!AX139","v":81.932990402618373},{"$f":"'Population 2016'!AY139*'Prevalence Rates'!AY139","v":742.5386281400049},{"$f":"'Population 2016'!AZ139*'Prevalence Rates'!AZ139","v":396.24287907523899},{"$f":"'Population 2016'!BA139*'Prevalence Rates'!BA139","v":57.335717491360647},{"$f":"'Population 2016'!BB139*'Prevalence Rates'!BB139","v":199.03643656692537},{"$f":"'Population 2016'!BC139*'Prevalence Rates'!BC139","v":47.351981433843775},137]
[null,"Female 20-24",{"$f":"'Population 2016'!C140*'Prevalence Rates'!C140","v":584.03252775908732},{"$f":"'Population 2016'!D140*'Prevalence Rates'!D140","v":815.13363660743369},{"$f":"'Population 2016'!E140*'Prevalence Rates'!E140","v":270.65324612178568},{"$f":"'Population 2016'!F140*'Prevalence Rates'!F140","v":178.74060527511801},{"$f":"'Population 2016'!G140*'Prevalence Rates'!G140","v":175.63950537718804},{"$f":"'Population 2016'!H140*'Prevalence Rates'!H140","v":365.30377239266949},{"$f":"'Population 2016'!I140*'Prevalence Rates'!I140","v":220.23157790392204},{"$f":"'Population 2016'!J140*'Prevalence Rates'!J140","v":264.02037753009853},{"$f":"'Population 2016'!K140*'Prevalence Rates'!K140","v":61.030567470897715},{"$f":"'Population 2016'!L140*'Prevalence Rates'!L140","v":275.23238122115873},{"$f":"'Population 2016'!M140*'Prevalence Rates'!M140","v":283.43460438998414},{"$f":"'Population 2016'!N140*'Prevalence Rates'!N140","v":199.35867417733755},{"$f":"'Population 2016'!O140*'Prevalence Rates'!O140","v":87.543665125364555},{"$f":"'Population 2016'!P140*'Prevalence Rates'!P140","v":48.824747782405218},{"$f":"'Population 2016'!Q140*'Prevalence Rates'!Q140","v":176.73705750497473},{"$f":"'Population 2016'!R140*'Prevalence Rates'!R140","v":58.318448740095121},{"$f":"'Population 2016'!S140*'Prevalence Rates'!S140","v":2633.4064327530582},{"$f":"'Population 2016'!T140*'Prevalence Rates'!T140","v":1444.3110340069979},{"$f":"'Population 2016'!U140*'Prevalence Rates'!U140","v":86.657058444016656},{"$f":"'Population 2016'!V140*'Prevalence Rates'!V140","v":196.64559509364682},{"$f":"'Population 2016'!W140*'Prevalence Rates'!W140","v":482.59884754263328},{"$f":"'Population 2016'!X140*'Prevalence Rates'!X140","v":500.16757231522485},{"$f":"'Population 2016'!Y140*'Prevalence Rates'!Y140","v":446.18785188886233},{"$f":"'Population 2016'!Z140*'Prevalence Rates'!Z140","v":1286.5134572614581},{"$f":"'Population 2016'!AA140*'Prevalence Rates'!AA140","v":2465.3411662693675},{"$f":"'Population 2016'!AB140*'Prevalence Rates'!AB140","v":949.67907114898662},{"$f":"'Population 2016'!AC140*'Prevalence Rates'!AC140","v":1648.5576237096975},{"$f":"'Population 2016'!AD140*'Prevalence Rates'!AD140","v":602.45126365754197},{"$f":"'Population 2016'!AE140*'Prevalence Rates'!AE140","v":311.07933330416097},{"$f":"'Population 2016'!AF140*'Prevalence Rates'!AF140","v":79.910114593291112},{"$f":"'Population 2016'!AG140*'Prevalence Rates'!AG140","v":401.95932673383902},{"$f":"'Population 2016'!AH140*'Prevalence Rates'!AH140","v":806.40566635375819},{"$f":"'Population 2016'!AI140*'Prevalence Rates'!AI140","v":1968.9723008166638},{"$f":"'Population 2016'!AJ140*'Prevalence Rates'!AJ140","v":145.44867890361559},{"$f":"'Population 2016'!AK140*'Prevalence Rates'!AK140","v":126.00059867525621},{"$f":"'Population 2016'!AL140*'Prevalence Rates'!AL140","v":132.48599686454091},{"$f":"'Population 2016'!AM140*'Prevalence Rates'!AM140","v":387.33711969711231},{"$f":"'Population 2016'!AN140*'Prevalence Rates'!AN140","v":44.235082458957777},{"$f":"'Population 2016'!AO140*'Prevalence Rates'!AO140","v":44.235082458957777},{"$f":"'Population 2016'!AP140*'Prevalence Rates'!AP140","v":191.93347315068243},{"$f":"'Population 2016'!AQ140*'Prevalence Rates'!AQ140","v":232.18836493979251},{"$f":"'Population 2016'!AR140*'Prevalence Rates'!AR140","v":8395.6645805685439},{"$f":"'Population 2016'!AS140*'Prevalence Rates'!AS140","v":220.23157790392204},{"$f":"'Population 2016'!AT140*'Prevalence Rates'!AT140","v":41.942360582747767},{"$f":"'Population 2016'!AU140*'Prevalence Rates'!AU140","v":41.942360582747767},{"$f":"'Population 2016'!AV140*'Prevalence Rates'!AV140","v":146.48091827706651},{"$f":"'Population 2016'!AW140*'Prevalence Rates'!AW140","v":430.30420724002715},{"$f":"'Population 2016'!AX140*'Prevalence Rates'!AX140","v":154.39395879337334},{"$f":"'Population 2016'!AY140*'Prevalence Rates'!AY140","v":1027.9525701196615},{"$f":"'Population 2016'!AZ140*'Prevalence Rates'!AZ140","v":545.24671172749026},{"$f":"'Population 2016'!BA140*'Prevalence Rates'!BA140","v":91.089809240306835},{"$f":"'Population 2016'!BB140*'Prevalence Rates'!BB140","v":248.73721146581767},{"$f":"'Population 2016'!BC140*'Prevalence Rates'!BC140","v":48.143379452236708},138]
[null,"Female 25-29",{"$f":"'Population 2016'!C141*'Prevalence Rates'!C141","v":384.81564309998691},{"$f":"'Population 2016'!D141*'Prevalence Rates'!D141","v":558.08485911170578},{"$f":"'Population 2016'!E141*'Prevalence Rates'!E141","v":196.12416693861999},{"$f":"'Population 2016'!F141*'Prevalence Rates'!F141","v":109.53821523179033},{"$f":"'Population 2016'!G141*'Prevalence Rates'!G141","v":126.93174389120826},{"$f":"'Population 2016'!H141*'Prevalence Rates'!H141","v":251.51988240483612},{"$f":"'Population 2016'!I141*'Prevalence Rates'!I141","v":120.9261906710335},{"$f":"'Population 2016'!J141*'Prevalence Rates'!J141","v":165.22113839326946},{"$f":"'Population 2016'!K141*'Prevalence Rates'!K141","v":42.58334303925303},{"$f":"'Population 2016'!L141*'Prevalence Rates'!L141","v":193.03896007429501},{"$f":"'Population 2016'!M141*'Prevalence Rates'!M141","v":198.79173023811913},{"$f":"'Population 2016'!N141*'Prevalence Rates'!N141","v":150.23106506147622},{"$f":"'Population 2016'!O141*'Prevalence Rates'!O141","v":63.64778095502075},{"$f":"'Population 2016'!P141*'Prevalence Rates'!P141","v":30.472121363660854},{"$f":"'Population 2016'!Q141*'Prevalence Rates'!Q141","v":112.2881680612403},{"$f":"'Population 2016'!R141*'Prevalence Rates'!R141","v":40.527921413668935},{"$f":"'Population 2016'!S141*'Prevalence Rates'!S141","v":1985.9853166718497},{"$f":"'Population 2016'!T141*'Prevalence Rates'!T141","v":1198.3483870832802},{"$f":"'Population 2016'!U141*'Prevalence Rates'!U141","v":66.091797942434738},{"$f":"'Population 2016'!V141*'Prevalence Rates'!V141","v":134.07662195367197},{"$f":"'Population 2016'!W141*'Prevalence Rates'!W141","v":359.13685976548032},{"$f":"'Population 2016'!X141*'Prevalence Rates'!X141","v":372.21102410930456},{"$f":"'Population 2016'!Y141*'Prevalence Rates'!Y141","v":290.77153577298049},{"$f":"'Population 2016'!Z141*'Prevalence Rates'!Z141","v":817.24494505931705},{"$f":"'Population 2016'!AA141*'Prevalence Rates'!AA141","v":1643.2863137634856},{"$f":"'Population 2016'!AB141*'Prevalence Rates'!AB141","v":654.80018290996554},{"$f":"'Population 2016'!AC141*'Prevalence Rates'!AC141","v":1062.145684398942},{"$f":"'Population 2016'!AD141*'Prevalence Rates'!AD141","v":437.46118876791417},{"$f":"'Population 2016'!AE141*'Prevalence Rates'!AE141","v":226.3276276004211},{"$f":"'Population 2016'!AF141*'Prevalence Rates'!AF141","v":51.836525295143673},{"$f":"'Population 2016'!AG141*'Prevalence Rates'!AG141","v":292.44790981527876},{"$f":"'Population 2016'!AH141*'Prevalence Rates'!AH141","v":576.56630275055136},{"$f":"'Population 2016'!AI141*'Prevalence Rates'!AI141","v":1547.5808724531673},{"$f":"'Population 2016'!AJ141*'Prevalence Rates'!AJ141","v":110.38819905851204},{"$f":"'Population 2016'!AK141*'Prevalence Rates'!AK141","v":89.853048100412352},{"$f":"'Population 2016'!AL141*'Prevalence Rates'!AL141","v":80.840922390670769},{"$f":"'Population 2016'!AM141*'Prevalence Rates'!AM141","v":287.78439046922392},{"$f":"'Population 2016'!AN141*'Prevalence Rates'!AN141","v":32.462681882593813},{"$f":"'Population 2016'!AO141*'Prevalence Rates'!AO141","v":32.462681882593813},{"$f":"'Population 2016'!AP141*'Prevalence Rates'!AP141","v":134.29121896827175},{"$f":"'Population 2016'!AQ141*'Prevalence Rates'!AQ141","v":158.47877598171146},{"$f":"'Population 2016'!AR141*'Prevalence Rates'!AR141","v":5905.7448558543192},{"$f":"'Population 2016'!AS141*'Prevalence Rates'!AS141","v":120.9261906710335},{"$f":"'Population 2016'!AT141*'Prevalence Rates'!AT141","v":34.317251501656926},{"$f":"'Population 2016'!AU141*'Prevalence Rates'!AU141","v":34.317251501656926},{"$f":"'Population 2016'!AV141*'Prevalence Rates'!AV141","v":105.54945155245011},{"$f":"'Population 2016'!AW141*'Prevalence Rates'!AW141","v":295.27189599166064},{"$f":"'Population 2016'!AX141*'Prevalence Rates'!AX141","v":92.256501617883416},{"$f":"'Population 2016'!AY141*'Prevalence Rates'!AY141","v":733.68182588489094},{"$f":"'Population 2016'!AZ141*'Prevalence Rates'!AZ141","v":375.03048025493734},{"$f":"'Population 2016'!BA141*'Prevalence Rates'!BA141","v":59.684118100707941},{"$f":"'Population 2016'!BB141*'Prevalence Rates'!BB141","v":174.1075538106071},{"$f":"'Population 2016'!BC141*'Prevalence Rates'!BC141","v":36.718099646537105},139]
[null,"Female 30-34",{"$f":"'Population 2016'!C142*'Prevalence Rates'!C142","v":303.85243183307313},{"$f":"'Population 2016'!D142*'Prevalence Rates'!D142","v":509.60541975628706},{"$f":"'Population 2016'!E142*'Prevalence Rates'!E142","v":213.27465826470524},{"$f":"'Population 2016'!F142*'Prevalence Rates'!F142","v":135.200682425428},{"$f":"'Population 2016'!G142*'Prevalence Rates'!G142","v":143.84435262396539},{"$f":"'Population 2016'!H142*'Prevalence Rates'!H142","v":269.9550554300472},{"$f":"'Population 2016'!I142*'Prevalence Rates'!I142","v":149.07415963087095},{"$f":"'Population 2016'!J142*'Prevalence Rates'!J142","v":135.23438373826326},{"$f":"'Population 2016'!K142*'Prevalence Rates'!K142","v":44.029569783982375},{"$f":"'Population 2016'!L142*'Prevalence Rates'!L142","v":184.92807939890446},{"$f":"'Population 2016'!M142*'Prevalence Rates'!M142","v":190.43913653063512},{"$f":"'Population 2016'!N142*'Prevalence Rates'!N142","v":96.70045567175481},{"$f":"'Population 2016'!O142*'Prevalence Rates'!O142","v":66.0271372524047},{"$f":"'Population 2016'!P142*'Prevalence Rates'!P142","v":24.530057697746987},{"$f":"'Population 2016'!Q142*'Prevalence Rates'!Q142","v":115.32811846560553},{"$f":"'Population 2016'!R142*'Prevalence Rates'!R142","v":42.813330515943498},{"$f":"'Population 2016'!S142*'Prevalence Rates'!S142","v":1794.76863817456},{"$f":"'Population 2016'!T142*'Prevalence Rates'!T142","v":918.22328488436654},{"$f":"'Population 2016'!U142*'Prevalence Rates'!U142","v":72.492940600297658},{"$f":"'Population 2016'!V142*'Prevalence Rates'!V142","v":155.99789474457651},{"$f":"'Population 2016'!W142*'Prevalence Rates'!W142","v":343.08201021494938},{"$f":"'Population 2016'!X142*'Prevalence Rates'!X142","v":355.57170728444237},{"$f":"'Population 2016'!Y142*'Prevalence Rates'!Y142","v":286.49548377631902},{"$f":"'Population 2016'!Z142*'Prevalence Rates'!Z142","v":648.93550791127609},{"$f":"'Population 2016'!AA142*'Prevalence Rates'!AA142","v":1549.769737017602},{"$f":"'Population 2016'!AB142*'Prevalence Rates'!AB142","v":626.23454465816906},{"$f":"'Population 2016'!AC142*'Prevalence Rates'!AC142","v":911.36217504014132},{"$f":"'Population 2016'!AD142*'Prevalence Rates'!AD142","v":478.4350346668619},{"$f":"'Population 2016'!AE142*'Prevalence Rates'!AE142","v":243.8645240680562},{"$f":"'Population 2016'!AF142*'Prevalence Rates'!AF142","v":45.420277864474421},{"$f":"'Population 2016'!AG142*'Prevalence Rates'!AG142","v":315.10810720691745},{"$f":"'Population 2016'!AH142*'Prevalence Rates'!AH142","v":639.85975442121241},{"$f":"'Population 2016'!AI142*'Prevalence Rates'!AI142","v":1324.0392400490259},{"$f":"'Population 2016'!AJ142*'Prevalence Rates'!AJ142","v":116.84809366778813},{"$f":"'Population 2016'!AK142*'Prevalence Rates'!AK142","v":104.13106670266966},{"$f":"'Population 2016'!AL142*'Prevalence Rates'!AL142","v":87.420997468981184},{"$f":"'Population 2016'!AM142*'Prevalence Rates'!AM142","v":328.52587098634098},{"$f":"'Population 2016'!AN142*'Prevalence Rates'!AN142","v":35.814806642209476},{"$f":"'Population 2016'!AO142*'Prevalence Rates'!AO142","v":35.814806642209476},{"$f":"'Population 2016'!AP142*'Prevalence Rates'!AP142","v":143.69739271066149},{"$f":"'Population 2016'!AQ142*'Prevalence Rates'!AQ142","v":174.63176560612146},{"$f":"'Population 2016'!AR142*'Prevalence Rates'!AR142","v":5640.3818692207678},{"$f":"'Population 2016'!AS142*'Prevalence Rates'!AS142","v":149.07415963087095},{"$f":"'Population 2016'!AT142*'Prevalence Rates'!AT142","v":30.722110868150011},{"$f":"'Population 2016'!AU142*'Prevalence Rates'!AU142","v":30.722110868150011},{"$f":"'Population 2016'!AV142*'Prevalence Rates'!AV142","v":116.03449640865375},{"$f":"'Population 2016'!AW142*'Prevalence Rates'!AW142","v":317.23426842079238},{"$f":"'Population 2016'!AX142*'Prevalence Rates'!AX142","v":66.399143032940316},{"$f":"'Population 2016'!AY142*'Prevalence Rates'!AY142","v":705.77386687749117},{"$f":"'Population 2016'!AZ142*'Prevalence Rates'!AZ142","v":363.0673417898318},{"$f":"'Population 2016'!BA142*'Prevalence Rates'!BA142","v":59.8399513072372},{"$f":"'Population 2016'!BB142*'Prevalence Rates'!BB142","v":193.61011629707076},{"$f":"'Population 2016'!BC142*'Prevalence Rates'!BC142","v":40.27433205782399},140]
[null,"Female 35-39",{"$f":"'Population 2016'!C143*'Prevalence Rates'!C143","v":240.74685705537956},{"$f":"'Population 2016'!D143*'Prevalence Rates'!D143","v":515.41257038897413},{"$f":"'Population 2016'!E143*'Prevalence Rates'!E143","v":263.58072906892619},{"$f":"'Population 2016'!F143*'Prevalence Rates'!F143","v":184.17351179134263},{"$f":"'Population 2016'!G143*'Prevalence Rates'!G143","v":186.83549876592295},{"$f":"'Population 2016'!H143*'Prevalence Rates'!H143","v":348.44257915422719},{"$f":"'Population 2016'!I143*'Prevalence Rates'!I143","v":179.88580958394385},{"$f":"'Population 2016'!J143*'Prevalence Rates'!J143","v":174.18636540416165},{"$f":"'Population 2016'!K143*'Prevalence Rates'!K143","v":48.352652884914008},{"$f":"'Population 2016'!L143*'Prevalence Rates'!L143","v":230.85882504705771},{"$f":"'Population 2016'!M143*'Prevalence Rates'!M143","v":237.73866816408997},{"$f":"'Population 2016'!N143*'Prevalence Rates'!N143","v":95.867403818809493},{"$f":"'Population 2016'!O143*'Prevalence Rates'!O143","v":82.31975490547255},{"$f":"'Population 2016'!P143*'Prevalence Rates'!P143","v":37.721190140124847},{"$f":"'Population 2016'!Q143*'Prevalence Rates'!Q143","v":149.31905967306284},{"$f":"'Population 2016'!R143*'Prevalence Rates'!R143","v":57.06539021198374},{"$f":"'Population 2016'!S143*'Prevalence Rates'!S143","v":1969.9774728685484},{"$f":"'Population 2016'!T143*'Prevalence Rates'!T143","v":796.10768055628137},{"$f":"'Population 2016'!U143*'Prevalence Rates'!U143","v":111.13808845649113},{"$f":"'Population 2016'!V143*'Prevalence Rates'!V143","v":201.51204671696988},{"$f":"'Population 2016'!W143*'Prevalence Rates'!W143","v":449.17729528566753},{"$f":"'Population 2016'!X143*'Prevalence Rates'!X143","v":465.52932827363242},{"$f":"'Population 2016'!Y143*'Prevalence Rates'!Y143","v":369.62545292444946},{"$f":"'Population 2016'!Z143*'Prevalence Rates'!Z143","v":624.60361423671975},{"$f":"'Population 2016'!AA143*'Prevalence Rates'!AA143","v":1813.6611598012696},{"$f":"'Population 2016'!AB143*'Prevalence Rates'!AB143","v":640.39835770951618},{"$f":"'Population 2016'!AC143*'Prevalence Rates'!AC143","v":992.56469552734166},{"$f":"'Population 2016'!AD143*'Prevalence Rates'!AD143","v":641.74894659053393},{"$f":"'Population 2016'!AE143*'Prevalence Rates'!AE143","v":331.56109060946432},{"$f":"'Population 2016'!AF143*'Prevalence Rates'!AF143","v":79.962142156465688},{"$f":"'Population 2016'!AG143*'Prevalence Rates'!AG143","v":428.42470869708217},{"$f":"'Population 2016'!AH143*'Prevalence Rates'!AH143","v":827.51812715652977},{"$f":"'Population 2016'!AI143*'Prevalence Rates'!AI143","v":1334.9024474717305},{"$f":"'Population 2016'!AJ143*'Prevalence Rates'!AJ143","v":149.31905967306284},{"$f":"'Population 2016'!AK143*'Prevalence Rates'!AK143","v":110.79859953112744},{"$f":"'Population 2016'!AL143*'Prevalence Rates'!AL143","v":119.10813701205763},{"$f":"'Population 2016'!AM143*'Prevalence Rates'!AM143","v":429.69981726994536},{"$f":"'Population 2016'!AN143*'Prevalence Rates'!AN143","v":31.807753635252265},{"$f":"'Population 2016'!AO143*'Prevalence Rates'!AO143","v":31.807753635252265},{"$f":"'Population 2016'!AP143*'Prevalence Rates'!AP143","v":168.11203891527515},{"$f":"'Population 2016'!AQ143*'Prevalence Rates'!AQ143","v":211.91975093234257},{"$f":"'Population 2016'!AR143*'Prevalence Rates'!AR143","v":6577.1197835486264},{"$f":"'Population 2016'!AS143*'Prevalence Rates'!AS143","v":179.88580958394385},{"$f":"'Population 2016'!AT143*'Prevalence Rates'!AT143","v":39.42075024607685},{"$f":"'Population 2016'!AU143*'Prevalence Rates'!AU143","v":39.42075024607685},{"$f":"'Population 2016'!AV143*'Prevalence Rates'!AV143","v":148.20866197761117},{"$f":"'Population 2016'!AW143*'Prevalence Rates'!AW143","v":404.76270896783547},{"$f":"'Population 2016'!AX143*'Prevalence Rates'!AX143","v":93.827083344239114},{"$f":"'Population 2016'!AY143*'Prevalence Rates'!AY143","v":884.2026376077747},{"$f":"'Population 2016'!AZ143*'Prevalence Rates'!AZ143","v":436.23621152287427},{"$f":"'Population 2016'!BA143*'Prevalence Rates'!BA143","v":74.194097507178682},{"$f":"'Population 2016'!BB143*'Prevalence Rates'!BB143","v":237.62659006022443},{"$f":"'Population 2016'!BC143*'Prevalence Rates'!BC143","v":61.744112484659773},141]
[null,"Female 40-44",{"$f":"'Population 2016'!C144*'Prevalence Rates'!C144","v":212.17953223237814},{"$f":"'Population 2016'!D144*'Prevalence Rates'!D144","v":516.03429845940718},{"$f":"'Population 2016'!E144*'Prevalence Rates'!E144","v":284.65313912107217},{"$f":"'Population 2016'!F144*'Prevalence Rates'!F144","v":214.01167850614115},{"$f":"'Population 2016'!G144*'Prevalence Rates'!G144","v":231.99478993683323},{"$f":"'Population 2016'!H144*'Prevalence Rates'!H144","v":405.22732190190794},{"$f":"'Population 2016'!I144*'Prevalence Rates'!I144","v":239.78119568292627},{"$f":"'Population 2016'!J144*'Prevalence Rates'!J144","v":192.35151493916706},{"$f":"'Population 2016'!K144*'Prevalence Rates'!K144","v":59.777752300758671},{"$f":"'Population 2016'!L144*'Prevalence Rates'!L144","v":293.5820256883913},{"$f":"'Population 2016'!M144*'Prevalence Rates'!M144","v":302.33108814379},{"$f":"'Population 2016'!N144*'Prevalence Rates'!N144","v":84.108200439787126},{"$f":"'Population 2016'!O144*'Prevalence Rates'!O144","v":99.387887573946685},{"$f":"'Population 2016'!P144*'Prevalence Rates'!P144","v":41.203146153059443},{"$f":"'Population 2016'!Q144*'Prevalence Rates'!Q144","v":164.75754080242638},{"$f":"'Population 2016'!R144*'Prevalence Rates'!R144","v":60.160462223481161},{"$f":"'Population 2016'!S144*'Prevalence Rates'!S144","v":1948.297106320872},{"$f":"'Population 2016'!T144*'Prevalence Rates'!T144","v":633.80757336010595},{"$f":"'Population 2016'!U144*'Prevalence Rates'!U144","v":116.62388075690293},{"$f":"'Population 2016'!V144*'Prevalence Rates'!V144","v":215.75165601388639},{"$f":"'Population 2016'!W144*'Prevalence Rates'!W144","v":446.97364543144511},{"$f":"'Population 2016'!X144*'Prevalence Rates'!X144","v":463.24545585364729},{"$f":"'Population 2016'!Y144*'Prevalence Rates'!Y144","v":401.0684994094546},{"$f":"'Population 2016'!Z144*'Prevalence Rates'!Z144","v":522.86577586972408},{"$f":"'Population 2016'!AA144*'Prevalence Rates'!AA144","v":1786.6856328342981},{"$f":"'Population 2016'!AB144*'Prevalence Rates'!AB144","v":669.051976342952},{"$f":"'Population 2016'!AC144*'Prevalence Rates'!AC144","v":937.59306444275228},{"$f":"'Population 2016'!AD144*'Prevalence Rates'!AD144","v":719.44949169342374},{"$f":"'Population 2016'!AE144*'Prevalence Rates'!AE144","v":355.27859928079829},{"$f":"'Population 2016'!AF144*'Prevalence Rates'!AF144","v":88.965922238426984},{"$f":"'Population 2016'!AG144*'Prevalence Rates'!AG144","v":459.07114771336978},{"$f":"'Population 2016'!AH144*'Prevalence Rates'!AH144","v":857.98518941161331},{"$f":"'Population 2016'!AI144*'Prevalence Rates'!AI144","v":1239.5522726523211},{"$f":"'Population 2016'!AJ144*'Prevalence Rates'!AJ144","v":158.96811037891504},{"$f":"'Population 2016'!AK144*'Prevalence Rates'!AK144","v":132.67702539058843},{"$f":"'Population 2016'!AL144*'Prevalence Rates'!AL144","v":139.87448554923},{"$f":"'Population 2016'!AM144*'Prevalence Rates'!AM144","v":444.03606004630961},{"$f":"'Population 2016'!AN144*'Prevalence Rates'!AN144","v":43.231665152138639},{"$f":"'Population 2016'!AO144*'Prevalence Rates'!AO144","v":43.231665152138639},{"$f":"'Population 2016'!AP144*'Prevalence Rates'!AP144","v":189.97579042447489},{"$f":"'Population 2016'!AQ144*'Prevalence Rates'!AQ144","v":234.02320882528582},{"$f":"'Population 2016'!AR144*'Prevalence Rates'!AR144","v":6851.6723945964059},{"$f":"'Population 2016'!AS144*'Prevalence Rates'!AS144","v":239.78119568292627},{"$f":"'Population 2016'!AT144*'Prevalence Rates'!AT144","v":41.080571309069562},{"$f":"'Population 2016'!AU144*'Prevalence Rates'!AU144","v":41.080571309069562},{"$f":"'Population 2016'!AV144*'Prevalence Rates'!AV144","v":165.73633307975382},{"$f":"'Population 2016'!AW144*'Prevalence Rates'!AW144","v":421.3604143656417},{"$f":"'Population 2016'!AX144*'Prevalence Rates'!AX144","v":97.272138240247884},{"$f":"'Population 2016'!AY144*'Prevalence Rates'!AY144","v":924.13204882602656},{"$f":"'Population 2016'!AZ144*'Prevalence Rates'!AZ144","v":477.56385261451499},{"$f":"'Population 2016'!BA144*'Prevalence Rates'!BA144","v":79.931774381067171},{"$f":"'Population 2016'!BB144*'Prevalence Rates'!BB144","v":260.191131805439},{"$f":"'Population 2016'!BC144*'Prevalence Rates'!BC144","v":64.791810907120123},142]
[null,"Female 45-49",{"$f":"'Population 2016'!C145*'Prevalence Rates'!C145","v":234.8618602059305},{"$f":"'Population 2016'!D145*'Prevalence Rates'!D145","v":663.2994914772371},{"$f":"'Population 2016'!E145*'Prevalence Rates'!E145","v":393.12257377564936},{"$f":"'Population 2016'!F145*'Prevalence Rates'!F145","v":260.78648309204397},{"$f":"'Population 2016'!G145*'Prevalence Rates'!G145","v":307.86263011413735},{"$f":"'Population 2016'!H145*'Prevalence Rates'!H145","v":556.4809685290852},{"$f":"'Population 2016'!I145*'Prevalence Rates'!I145","v":332.59028717743684},{"$f":"'Population 2016'!J145*'Prevalence Rates'!J145","v":251.39099716867614},{"$f":"'Population 2016'!K145*'Prevalence Rates'!K145","v":86.172811184039119},{"$f":"'Population 2016'!L145*'Prevalence Rates'!L145","v":435.05568077678976},{"$f":"'Population 2016'!M145*'Prevalence Rates'!M145","v":448.02081143752099},{"$f":"'Population 2016'!N145*'Prevalence Rates'!N145","v":114.81441823689769},{"$f":"'Population 2016'!O145*'Prevalence Rates'!O145","v":140.90715342240085},{"$f":"'Population 2016'!P145*'Prevalence Rates'!P145","v":64.449302119716847},{"$f":"'Population 2016'!Q145*'Prevalence Rates'!Q145","v":244.22001295688708},{"$f":"'Population 2016'!R145*'Prevalence Rates'!R145","v":74.22064792496424},{"$f":"'Population 2016'!S145*'Prevalence Rates'!S145","v":2453.631473585318},{"$f":"'Population 2016'!T145*'Prevalence Rates'!T145","v":607.75251100708238},{"$f":"'Population 2016'!U145*'Prevalence Rates'!U145","v":154.82018478596422},{"$f":"'Population 2016'!V145*'Prevalence Rates'!V145","v":261.79046808153322},{"$f":"'Population 2016'!W145*'Prevalence Rates'!W145","v":597.61702839773864},{"$f":"'Population 2016'!X145*'Prevalence Rates'!X145","v":619.37292181687167},{"$f":"'Population 2016'!Y145*'Prevalence Rates'!Y145","v":503.0093502004637},{"$f":"'Population 2016'!Z145*'Prevalence Rates'!Z145","v":612.58582613000203},{"$f":"'Population 2016'!AA145*'Prevalence Rates'!AA145","v":2301.5706938193889},{"$f":"'Population 2016'!AB145*'Prevalence Rates'!AB145","v":856.67080684809775},{"$f":"'Population 2016'!AC145*'Prevalence Rates'!AC145","v":1207.845634103998},{"$f":"'Population 2016'!AD145*'Prevalence Rates'!AD145","v":994.7246186299908},{"$f":"'Population 2016'!AE145*'Prevalence Rates'!AE145","v":500.61547113969738},{"$f":"'Population 2016'!AF145*'Prevalence Rates'!AF145","v":112.66530516308168},{"$f":"'Population 2016'!AG145*'Prevalence Rates'!AG145","v":646.86732993318014},{"$f":"'Population 2016'!AH145*'Prevalence Rates'!AH145","v":1105.1766408751726},{"$f":"'Population 2016'!AI145*'Prevalence Rates'!AI145","v":1476.0452706119015},{"$f":"'Population 2016'!AJ145*'Prevalence Rates'!AJ145","v":225.29425823729818},{"$f":"'Population 2016'!AK145*'Prevalence Rates'!AK145","v":167.95532812181528},{"$f":"'Population 2016'!AL145*'Prevalence Rates'!AL145","v":190.86204448327209},{"$f":"'Population 2016'!AM145*'Prevalence Rates'!AM145","v":520.95076773711378},{"$f":"'Population 2016'!AN145*'Prevalence Rates'!AN145","v":62.592709610192522},{"$f":"'Population 2016'!AO145*'Prevalence Rates'!AO145","v":62.592709610192522},{"$f":"'Population 2016'!AP145*'Prevalence Rates'!AP145","v":270.32544050767564},{"$f":"'Population 2016'!AQ145*'Prevalence Rates'!AQ145","v":337.23153272963714},{"$f":"'Population 2016'!AR145*'Prevalence Rates'!AR145","v":8955.7471362473661},{"$f":"'Population 2016'!AS145*'Prevalence Rates'!AS145","v":332.59028717743684},{"$f":"'Population 2016'!AT145*'Prevalence Rates'!AT145","v":62.43599909522986},{"$f":"'Population 2016'!AU145*'Prevalence Rates'!AU145","v":62.43599909522986},{"$f":"'Population 2016'!AV145*'Prevalence Rates'!AV145","v":222.2382385603315},{"$f":"'Population 2016'!AW145*'Prevalence Rates'!AW145","v":601.03225594177195},{"$f":"'Population 2016'!AX145*'Prevalence Rates'!AX145","v":119.13525575139882},{"$f":"'Population 2016'!AY145*'Prevalence Rates'!AY145","v":1227.1074698038101},{"$f":"'Population 2016'!AZ145*'Prevalence Rates'!AZ145","v":630.18577156379729},{"$f":"'Population 2016'!BA145*'Prevalence Rates'!BA145","v":123.33088051961771},{"$f":"'Population 2016'!BB145*'Prevalence Rates'!BB145","v":348.95896943149683},{"$f":"'Population 2016'!BC145*'Prevalence Rates'!BC145","v":86.012230703992032},143]
[null,"Female 50-54",{"$f":"'Population 2016'!C146*'Prevalence Rates'!C146","v":261.36582431855504},{"$f":"'Population 2016'!D146*'Prevalence Rates'!D146","v":684.68187938248047},{"$f":"'Population 2016'!E146*'Prevalence Rates'!E146","v":392.17892861536217},{"$f":"'Population 2016'!F146*'Prevalence Rates'!F146","v":292.67062554782041},{"$f":"'Population 2016'!G146*'Prevalence Rates'!G146","v":383.51975250694699},{"$f":"'Population 2016'!H146*'Prevalence Rates'!H146","v":617.94761638941259},{"$f":"'Population 2016'!I146*'Prevalence Rates'!I146","v":341.81698546687545},{"$f":"'Population 2016'!J146*'Prevalence Rates'!J146","v":266.634919337415},{"$f":"'Population 2016'!K146*'Prevalence Rates'!K146","v":88.804042059887649},{"$f":"'Population 2016'!L146*'Prevalence Rates'!L146","v":470.87432609513786},{"$f":"'Population 2016'!M146*'Prevalence Rates'!M146","v":484.9068911950967},{"$f":"'Population 2016'!N146*'Prevalence Rates'!N146","v":141.37596275438895},{"$f":"'Population 2016'!O146*'Prevalence Rates'!O146","v":150.32260837458892},{"$f":"'Population 2016'!P146*'Prevalence Rates'!P146","v":55.301659238208643},{"$f":"'Population 2016'!Q146*'Prevalence Rates'!Q146","v":220.10911995795874},{"$f":"'Population 2016'!R146*'Prevalence Rates'!R146","v":83.991993730211632},{"$f":"'Population 2016'!S146*'Prevalence Rates'!S146","v":2493.4371479020647},{"$f":"'Population 2016'!T146*'Prevalence Rates'!T146","v":600.78686618178631},{"$f":"'Population 2016'!U146*'Prevalence Rates'!U146","v":157.00382632032196},{"$f":"'Population 2016'!V146*'Prevalence Rates'!V146","v":277.32630631134964},{"$f":"'Population 2016'!W146*'Prevalence Rates'!W146","v":645.57638701750432},{"$f":"'Population 2016'!X146*'Prevalence Rates'!X146","v":669.07821243823889},{"$f":"'Population 2016'!Y146*'Prevalence Rates'!Y146","v":533.15587481373461},{"$f":"'Population 2016'!Z146*'Prevalence Rates'!Z146","v":641.04171490780391},{"$f":"'Population 2016'!AA146*'Prevalence Rates'!AA146","v":2321.2512817676425},{"$f":"'Population 2016'!AB146*'Prevalence Rates'!AB146","v":897.58771315808735},{"$f":"'Population 2016'!AC146*'Prevalence Rates'!AC146","v":1234.7004198802115},{"$f":"'Population 2016'!AD146*'Prevalence Rates'!AD146","v":1127.4814560362418},{"$f":"'Population 2016'!AE146*'Prevalence Rates'!AE146","v":542.23227511390144},{"$f":"'Population 2016'!AF146*'Prevalence Rates'!AF146","v":125.79807079558815},{"$f":"'Population 2016'!AG146*'Prevalence Rates'!AG146","v":700.64223785973468},{"$f":"'Population 2016'!AH146*'Prevalence Rates'!AH146","v":1097.0454943823545},{"$f":"'Population 2016'!AI146*'Prevalence Rates'!AI146","v":1443.4874107285798},{"$f":"'Population 2016'!AJ146*'Prevalence Rates'!AJ146","v":226.8497997211},{"$f":"'Population 2016'!AK146*'Prevalence Rates'!AK146","v":183.74312896526592},{"$f":"'Population 2016'!AL146*'Prevalence Rates'!AL146","v":204.71493480867088},{"$f":"'Population 2016'!AM146*'Prevalence Rates'!AM146","v":505.54295126527268},{"$f":"'Population 2016'!AN146*'Prevalence Rates'!AN146","v":68.370498189594912},{"$f":"'Population 2016'!AO146*'Prevalence Rates'!AO146","v":68.370498189594912},{"$f":"'Population 2016'!AP146*'Prevalence Rates'!AP146","v":295.60057300218438},{"$f":"'Population 2016'!AQ146*'Prevalence Rates'!AQ146","v":325.476185183506},{"$f":"'Population 2016'!AR146*'Prevalence Rates'!AR146","v":9408.9758924756516},{"$f":"'Population 2016'!AS146*'Prevalence Rates'!AS146","v":341.81698546687545},{"$f":"'Population 2016'!AT146*'Prevalence Rates'!AT146","v":62.881970517338644},{"$f":"'Population 2016'!AU146*'Prevalence Rates'!AU146","v":62.881970517338644},{"$f":"'Population 2016'!AV146*'Prevalence Rates'!AV146","v":262.53680327781649},{"$f":"'Population 2016'!AW146*'Prevalence Rates'!AW146","v":609.83249079331358},{"$f":"'Population 2016'!AX146*'Prevalence Rates'!AX146","v":128.93614516421957},{"$f":"'Population 2016'!AY146*'Prevalence Rates'!AY146","v":1356.2359811190188},{"$f":"'Population 2016'!AZ146*'Prevalence Rates'!AZ146","v":710.8571429236207},{"$f":"'Population 2016'!BA146*'Prevalence Rates'!BA146","v":121.41712547707192},{"$f":"'Population 2016'!BB146*'Prevalence Rates'!BB146","v":346.59823839598243},{"$f":"'Population 2016'!BC146*'Prevalence Rates'!BC146","v":87.225379232962297},144]
[null,"Female 55-59",{"$f":"'Population 2016'!C147*'Prevalence Rates'!C147","v":198.2494952078242},{"$f":"'Population 2016'!D147*'Prevalence Rates'!D147","v":514.09749552509595},{"$f":"'Population 2016'!E147*'Prevalence Rates'!E147","v":293.03049628502583},{"$f":"'Population 2016'!F147*'Prevalence Rates'!F147","v":236.97767970248145},{"$f":"'Population 2016'!G147*'Prevalence Rates'!G147","v":295.00413195494883},{"$f":"'Population 2016'!H147*'Prevalence Rates'!H147","v":456.00294696039629},{"$f":"'Population 2016'!I147*'Prevalence Rates'!I147","v":280.91307115601768},{"$f":"'Population 2016'!J147*'Prevalence Rates'!J147","v":200.25927297692567},{"$f":"'Population 2016'!K147*'Prevalence Rates'!K147","v":70.576391045715283},{"$f":"'Population 2016'!L147*'Prevalence Rates'!L147","v":364.62237203359797},{"$f":"'Population 2016'!M147*'Prevalence Rates'!M147","v":375.48851378078905},{"$f":"'Population 2016'!N147*'Prevalence Rates'!N147","v":113.95850680905673},{"$f":"'Population 2016'!O147*'Prevalence Rates'!O147","v":109.37526254481429},{"$f":"'Population 2016'!P147*'Prevalence Rates'!P147","v":48.367669236434203},{"$f":"'Population 2016'!Q147*'Prevalence Rates'!Q147","v":180.73033601874434},{"$f":"'Population 2016'!R147*'Prevalence Rates'!R147","v":68.477524546206126},{"$f":"'Population 2016'!S147*'Prevalence Rates'!S147","v":1892.9820817243324},{"$f":"'Population 2016'!T147*'Prevalence Rates'!T147","v":440.71157971678622},{"$f":"'Population 2016'!U147*'Prevalence Rates'!U147","v":124.36451525612597},{"$f":"'Population 2016'!V147*'Prevalence Rates'!V147","v":206.88933174869544},{"$f":"'Population 2016'!W147*'Prevalence Rates'!W147","v":491.58287695093918},{"$f":"'Population 2016'!X147*'Prevalence Rates'!X147","v":509.47865998491511},{"$f":"'Population 2016'!Y147*'Prevalence Rates'!Y147","v":398.96527090782939},{"$f":"'Population 2016'!Z147*'Prevalence Rates'!Z147","v":477.36851290618853},{"$f":"'Population 2016'!AA147*'Prevalence Rates'!AA147","v":1797.6115824629671},{"$f":"'Population 2016'!AB147*'Prevalence Rates'!AB147","v":668.73382780623706},{"$f":"'Population 2016'!AC147*'Prevalence Rates'!AC147","v":950.50513535032371},{"$f":"'Population 2016'!AD147*'Prevalence Rates'!AD147","v":894.13828024273994},{"$f":"'Population 2016'!AE147*'Prevalence Rates'!AE147","v":436.67553152717664},{"$f":"'Population 2016'!AF147*'Prevalence Rates'!AF147","v":109.70132621514551},{"$f":"'Population 2016'!AG147*'Prevalence Rates'!AG147","v":564.24771388520082},{"$f":"'Population 2016'!AH147*'Prevalence Rates'!AH147","v":855.5952538901322},{"$f":"'Population 2016'!AI147*'Prevalence Rates'!AI147","v":1067.2585065073697},{"$f":"'Population 2016'!AJ147*'Prevalence Rates'!AJ147","v":165.16504392143619},{"$f":"'Population 2016'!AK147*'Prevalence Rates'!AK147","v":133.88937351364825},{"$f":"'Population 2016'!AL147*'Prevalence Rates'!AL147","v":163.43099549141482},{"$f":"'Population 2016'!AM147*'Prevalence Rates'!AM147","v":372.24475700399898},{"$f":"'Population 2016'!AN147*'Prevalence Rates'!AN147","v":48.98179114738204},{"$f":"'Population 2016'!AO147*'Prevalence Rates'!AO147","v":48.98179114738204},{"$f":"'Population 2016'!AP147*'Prevalence Rates'!AP147","v":225.90820980949789},{"$f":"'Population 2016'!AQ147*'Prevalence Rates'!AQ147","v":239.34054702671028},{"$f":"'Population 2016'!AR147*'Prevalence Rates'!AR147","v":7221.6256900315057},{"$f":"'Population 2016'!AS147*'Prevalence Rates'!AS147","v":280.91307115601768},{"$f":"'Population 2016'!AT147*'Prevalence Rates'!AT147","v":48.716127347737562},{"$f":"'Population 2016'!AU147*'Prevalence Rates'!AU147","v":48.716127347737562},{"$f":"'Population 2016'!AV147*'Prevalence Rates'!AV147","v":184.52077990314439},{"$f":"'Population 2016'!AW147*'Prevalence Rates'!AW147","v":500.78158702006357},{"$f":"'Population 2016'!AX147*'Prevalence Rates'!AX147","v":92.985957520284927},{"$f":"'Population 2016'!AY147*'Prevalence Rates'!AY147","v":1054.0263073780422},{"$f":"'Population 2016'!AZ147*'Prevalence Rates'!AZ147","v":562.2091354051372},{"$f":"'Population 2016'!BA147*'Prevalence Rates'!BA147","v":96.812383556900315},{"$f":"'Population 2016'!BB147*'Prevalence Rates'!BB147","v":246.06562860372145},{"$f":"'Population 2016'!BC147*'Prevalence Rates'!BC147","v":69.092214250927611},145]
[null,"Female 60-64",{"$f":"'Population 2016'!C148*'Prevalence Rates'!C148","v":184.02629742801341},{"$f":"'Population 2016'!D148*'Prevalence Rates'!D148","v":490.69565866232062},{"$f":"'Population 2016'!E148*'Prevalence Rates'!E148","v":283.43067873755717},{"$f":"'Population 2016'!F148*'Prevalence Rates'!F148","v":209.3149155348766},{"$f":"'Population 2016'!G148*'Prevalence Rates'!G148","v":292.22668888341599},{"$f":"'Population 2016'!H148*'Prevalence Rates'!H148","v":419.15790884599625},{"$f":"'Population 2016'!I148*'Prevalence Rates'!I148","v":253.17961508647451},{"$f":"'Population 2016'!J148*'Prevalence Rates'!J148","v":185.76389130264931},{"$f":"'Population 2016'!K148*'Prevalence Rates'!K148","v":59.605967567106688},{"$f":"'Population 2016'!L148*'Prevalence Rates'!L148","v":357.57490787096054},{"$f":"'Population 2016'!M148*'Prevalence Rates'!M148","v":368.23102755032744},{"$f":"'Population 2016'!N148*'Prevalence Rates'!N148","v":93.953251695241121},{"$f":"'Population 2016'!O148*'Prevalence Rates'!O148","v":90.153372345106817},{"$f":"'Population 2016'!P148*'Prevalence Rates'!P148","v":41.606597192631575},{"$f":"'Population 2016'!Q148*'Prevalence Rates'!Q148","v":157.59858248524475},{"$f":"'Population 2016'!R148*'Prevalence Rates'!R148","v":59.462761821135956},{"$f":"'Population 2016'!S148*'Prevalence Rates'!S148","v":1622.1801972651047},{"$f":"'Population 2016'!T148*'Prevalence Rates'!T148","v":359.6361380884922},{"$f":"'Population 2016'!U148*'Prevalence Rates'!U148","v":126.18537199486866},{"$f":"'Population 2016'!V148*'Prevalence Rates'!V148","v":187.55388018339681},{"$f":"'Population 2016'!W148*'Prevalence Rates'!W148","v":424.76578687993776},{"$f":"'Population 2016'!X148*'Prevalence Rates'!X148","v":440.22913338502377},{"$f":"'Population 2016'!Y148*'Prevalence Rates'!Y148","v":365.51543874330105},{"$f":"'Population 2016'!Z148*'Prevalence Rates'!Z148","v":351.62721772581091},{"$f":"'Population 2016'!AA148*'Prevalence Rates'!AA148","v":1463.9232048800211},{"$f":"'Population 2016'!AB148*'Prevalence Rates'!AB148","v":629.58668106570008},{"$f":"'Population 2016'!AC148*'Prevalence Rates'!AC148","v":752.92822519323397},{"$f":"'Population 2016'!AD148*'Prevalence Rates'!AD148","v":840.77169551114525},{"$f":"'Population 2016'!AE148*'Prevalence Rates'!AE148","v":399.80392207703426},{"$f":"'Population 2016'!AF148*'Prevalence Rates'!AF148","v":76.272200538376126},{"$f":"'Population 2016'!AG148*'Prevalence Rates'!AG148","v":516.60428109025838},{"$f":"'Population 2016'!AH148*'Prevalence Rates'!AH148","v":719.25709392134695},{"$f":"'Population 2016'!AI148*'Prevalence Rates'!AI148","v":894.35194696687222},{"$f":"'Population 2016'!AJ148*'Prevalence Rates'!AJ148","v":140.30381348823573},{"$f":"'Population 2016'!AK148*'Prevalence Rates'!AK148","v":121.00462208764863},{"$f":"'Population 2016'!AL148*'Prevalence Rates'!AL148","v":163.00316566028545},{"$f":"'Population 2016'!AM148*'Prevalence Rates'!AM148","v":315.12324345254575},{"$f":"'Population 2016'!AN148*'Prevalence Rates'!AN148","v":44.364655096604224},{"$f":"'Population 2016'!AO148*'Prevalence Rates'!AO148","v":44.364655096604224},{"$f":"'Population 2016'!AP148*'Prevalence Rates'!AP148","v":203.35032005446786},{"$f":"'Population 2016'!AQ148*'Prevalence Rates'!AQ148","v":207.68714703597644},{"$f":"'Population 2016'!AR148*'Prevalence Rates'!AR148","v":6379.0750259172892},{"$f":"'Population 2016'!AS148*'Prevalence Rates'!AS148","v":253.17961508647451},{"$f":"'Population 2016'!AT148*'Prevalence Rates'!AT148","v":48.530187930379782},{"$f":"'Population 2016'!AU148*'Prevalence Rates'!AU148","v":48.530187930379782},{"$f":"'Population 2016'!AV148*'Prevalence Rates'!AV148","v":172.98823115919788},{"$f":"'Population 2016'!AW148*'Prevalence Rates'!AW148","v":418.47491034151847},{"$f":"'Population 2016'!AX148*'Prevalence Rates'!AX148","v":92.077891528875895},{"$f":"'Population 2016'!AY148*'Prevalence Rates'!AY148","v":919.43203200555945},{"$f":"'Population 2016'!AZ148*'Prevalence Rates'!AZ148","v":494.30718746346946},{"$f":"'Population 2016'!BA148*'Prevalence Rates'!BA148","v":87.237532435888198},{"$f":"'Population 2016'!BB148*'Prevalence Rates'!BB148","v":206.695128027126},{"$f":"'Population 2016'!BC148*'Prevalence Rates'!BC148","v":70.10381328827647},146]
[null,"Female 65-69",{"$f":"'Population 2016'!C149*'Prevalence Rates'!C149","v":145.64627271882594},{"$f":"'Population 2016'!D149*'Prevalence Rates'!D149","v":405.42951540374077},{"$f":"'Population 2016'!E149*'Prevalence Rates'!E149","v":238.78481144696565},{"$f":"'Population 2016'!F149*'Prevalence Rates'!F149","v":185.9021362049223},{"$f":"'Population 2016'!G149*'Prevalence Rates'!G149","v":258.77463404299334},{"$f":"'Population 2016'!H149*'Prevalence Rates'!H149","v":378.59359385102624},{"$f":"'Population 2016'!I149*'Prevalence Rates'!I149","v":227.23745060897843},{"$f":"'Population 2016'!J149*'Prevalence Rates'!J149","v":153.8548225678384},{"$f":"'Population 2016'!K149*'Prevalence Rates'!K149","v":55.025192514370545},{"$f":"'Population 2016'!L149*'Prevalence Rates'!L149","v":323.10193646798098},{"$f":"'Population 2016'!M149*'Prevalence Rates'!M149","v":332.73072424880735},{"$f":"'Population 2016'!N149*'Prevalence Rates'!N149","v":82.054350060006499},{"$f":"'Population 2016'!O149*'Prevalence Rates'!O149","v":87.376260287678065},{"$f":"'Population 2016'!P149*'Prevalence Rates'!P149","v":30.663970747873037},{"$f":"'Population 2016'!Q149*'Prevalence Rates'!Q149","v":133.92578387936564},{"$f":"'Population 2016'!R149*'Prevalence Rates'!R149","v":47.521888315424093},{"$f":"'Population 2016'!S149*'Prevalence Rates'!S149","v":1424.5017223925829},{"$f":"'Population 2016'!T149*'Prevalence Rates'!T149","v":288.49553257112467},{"$f":"'Population 2016'!U149*'Prevalence Rates'!U149","v":107.91707646903683},{"$f":"'Population 2016'!V149*'Prevalence Rates'!V149","v":164.68081480236333},{"$f":"'Population 2016'!W149*'Prevalence Rates'!W149","v":389.46405605924616},{"$f":"'Population 2016'!X149*'Prevalence Rates'!X149","v":403.64226399439383},{"$f":"'Population 2016'!Y149*'Prevalence Rates'!Y149","v":312.52639908938551},{"$f":"'Population 2016'!Z149*'Prevalence Rates'!Z149","v":250.28488347332743},{"$f":"'Population 2016'!AA149*'Prevalence Rates'!AA149","v":1148.3495847891638},{"$f":"'Population 2016'!AB149*'Prevalence Rates'!AB149","v":526.27170905597438},{"$f":"'Population 2016'!AC149*'Prevalence Rates'!AC149","v":585.97595320153016},{"$f":"'Population 2016'!AD149*'Prevalence Rates'!AD149","v":722.10762276007529},{"$f":"'Population 2016'!AE149*'Prevalence Rates'!AE149","v":337.69762531532541},{"$f":"'Population 2016'!AF149*'Prevalence Rates'!AF149","v":63.616217810342775},{"$f":"'Population 2016'!AG149*'Prevalence Rates'!AG149","v":436.35399584273438},{"$f":"'Population 2016'!AH149*'Prevalence Rates'!AH149","v":569.15123847169468},{"$f":"'Population 2016'!AI149*'Prevalence Rates'!AI149","v":757.00277806717224},{"$f":"'Population 2016'!AJ149*'Prevalence Rates'!AJ149","v":130.48249579586368},{"$f":"'Population 2016'!AK149*'Prevalence Rates'!AK149","v":104.72444116936049},{"$f":"'Population 2016'!AL149*'Prevalence Rates'!AL149","v":140.58924873837512},{"$f":"'Population 2016'!AM149*'Prevalence Rates'!AM149","v":261.10863067522428},{"$f":"'Population 2016'!AN149*'Prevalence Rates'!AN149","v":38.200203198464123},{"$f":"'Population 2016'!AO149*'Prevalence Rates'!AO149","v":38.200203198464123},{"$f":"'Population 2016'!AP149*'Prevalence Rates'!AP149","v":178.47254125870612},{"$f":"'Population 2016'!AQ149*'Prevalence Rates'!AQ149","v":178.38213871344325},{"$f":"'Population 2016'!AR149*'Prevalence Rates'!AR149","v":5421.1223468599173},{"$f":"'Population 2016'!AS149*'Prevalence Rates'!AS149","v":227.23745060897843},{"$f":"'Population 2016'!AT149*'Prevalence Rates'!AT149","v":36.473908408059728},{"$f":"'Population 2016'!AU149*'Prevalence Rates'!AU149","v":36.473908408059728},{"$f":"'Population 2016'!AV149*'Prevalence Rates'!AV149","v":153.68207170979318},{"$f":"'Population 2016'!AW149*'Prevalence Rates'!AW149","v":317.71859748387794},{"$f":"'Population 2016'!AX149*'Prevalence Rates'!AX149","v":70.641573959380565},{"$f":"'Population 2016'!AY149*'Prevalence Rates'!AY149","v":825.20720877097995},{"$f":"'Population 2016'!AZ149*'Prevalence Rates'!AZ149","v":435.73562602943827},{"$f":"'Population 2016'!BA149*'Prevalence Rates'!BA149","v":72.089993880654148},{"$f":"'Population 2016'!BB149*'Prevalence Rates'!BB149","v":176.57113094700429},{"$f":"'Population 2016'!BC149*'Prevalence Rates'!BC149","v":59.954640223350609},147]
[null,"Female 70-74",{"$f":"'Population 2016'!C150*'Prevalence Rates'!C150","v":109.87672211407649},{"$f":"'Population 2016'!D150*'Prevalence Rates'!D150","v":301.58101817858903},{"$f":"'Population 2016'!E150*'Prevalence Rates'!E150","v":176.51606503648622},{"$f":"'Population 2016'!F150*'Prevalence Rates'!F150","v":139.7808855040476},{"$f":"'Population 2016'!G150*'Prevalence Rates'!G150","v":192.9168222942624},{"$f":"'Population 2016'!H150*'Prevalence Rates'!H150","v":305.35194140569445},{"$f":"'Population 2016'!I150*'Prevalence Rates'!I150","v":171.44053204360551},{"$f":"'Population 2016'!J150*'Prevalence Rates'!J150","v":122.82213660640319},{"$f":"'Population 2016'!K150*'Prevalence Rates'!K150","v":42.763311174120837},{"$f":"'Population 2016'!L150*'Prevalence Rates'!L150","v":262.89835405252785},{"$f":"'Population 2016'!M150*'Prevalence Rates'!M150","v":270.73300984807179},{"$f":"'Population 2016'!N150*'Prevalence Rates'!N150","v":62.139699406756741},{"$f":"'Population 2016'!O150*'Prevalence Rates'!O150","v":68.993202928452291},{"$f":"'Population 2016'!P150*'Prevalence Rates'!P150","v":23.542953844338541},{"$f":"'Population 2016'!Q150*'Prevalence Rates'!Q150","v":106.74193058856071},{"$f":"'Population 2016'!R150*'Prevalence Rates'!R150","v":37.930314526989875},{"$f":"'Population 2016'!S150*'Prevalence Rates'!S150","v":1089.4146688283438},{"$f":"'Population 2016'!T150*'Prevalence Rates'!T150","v":216.27020936766451},{"$f":"'Population 2016'!U150*'Prevalence Rates'!U150","v":87.768485105652303},{"$f":"'Population 2016'!V150*'Prevalence Rates'!V150","v":118.16172636901857},{"$f":"'Population 2016'!W150*'Prevalence Rates'!W150","v":296.47830551587674},{"$f":"'Population 2016'!X150*'Prevalence Rates'!X150","v":307.2714223605924},{"$f":"'Population 2016'!Y150*'Prevalence Rates'!Y150","v":235.54191905268533},{"$f":"'Population 2016'!Z150*'Prevalence Rates'!Z150","v":194.52679929528952},{"$f":"'Population 2016'!AA150*'Prevalence Rates'!AA150","v":911.22419712756016},{"$f":"'Population 2016'!AB150*'Prevalence Rates'!AB150","v":405.24125880397111},{"$f":"'Population 2016'!AC150*'Prevalence Rates'!AC150","v":453.56098299803011},{"$f":"'Population 2016'!AD150*'Prevalence Rates'!AD150","v":564.44801281614355},{"$f":"'Population 2016'!AE150*'Prevalence Rates'!AE150","v":270.78840450625881},{"$f":"'Population 2016'!AF150*'Prevalence Rates'!AF150","v":52.986672555956382},{"$f":"'Population 2016'!AG150*'Prevalence Rates'!AG150","v":349.89764060038357},{"$f":"'Population 2016'!AH150*'Prevalence Rates'!AH150","v":463.76992954009347},{"$f":"'Population 2016'!AI150*'Prevalence Rates'!AI150","v":583.70174779994625},{"$f":"'Population 2016'!AJ150*'Prevalence Rates'!AJ150","v":98.768000289924586},{"$f":"'Population 2016'!AK150*'Prevalence Rates'!AK150","v":88.640081931465431},{"$f":"'Population 2016'!AL150*'Prevalence Rates'!AL150","v":117.09793294152928},{"$f":"'Population 2016'!AM150*'Prevalence Rates'!AM150","v":204.6369758803597},{"$f":"'Population 2016'!AN150*'Prevalence Rates'!AN150","v":38.536768865410941},{"$f":"'Population 2016'!AO150*'Prevalence Rates'!AO150","v":38.536768865410941},{"$f":"'Population 2016'!AP150*'Prevalence Rates'!AP150","v":154.45535473201249},{"$f":"'Population 2016'!AQ150*'Prevalence Rates'!AQ150","v":136.09769700305893},{"$f":"'Population 2016'!AR150*'Prevalence Rates'!AR150","v":4261.0105140973046},{"$f":"'Population 2016'!AS150*'Prevalence Rates'!AS150","v":171.44053204360551},{"$f":"'Population 2016'!AT150*'Prevalence Rates'!AT150","v":33.668223145901287},{"$f":"'Population 2016'!AU150*'Prevalence Rates'!AU150","v":33.668223145901287},{"$f":"'Population 2016'!AV150*'Prevalence Rates'!AV150","v":122.67896396790432},{"$f":"'Population 2016'!AW150*'Prevalence Rates'!AW150","v":268.1737821776531},{"$f":"'Population 2016'!AX150*'Prevalence Rates'!AX150","v":57.548523613460887},{"$f":"'Population 2016'!AY150*'Prevalence Rates'!AY150","v":644.275089474379},{"$f":"'Population 2016'!AZ150*'Prevalence Rates'!AZ150","v":347.50048860264883},{"$f":"'Population 2016'!BA150*'Prevalence Rates'!BA150","v":52.320985249464457},{"$f":"'Population 2016'!BB150*'Prevalence Rates'!BB150","v":139.3666785469558},{"$f":"'Population 2016'!BC150*'Prevalence Rates'!BC150","v":48.76084600908996},148]
[null,"Female 75-79",{"$f":"'Population 2016'!C151*'Prevalence Rates'!C151","v":23.148189279041244},{"$f":"'Population 2016'!D151*'Prevalence Rates'!D151","v":56.775919757318995},{"$f":"'Population 2016'!E151*'Prevalence Rates'!E151","v":31.459907075197531},{"$f":"'Population 2016'!F151*'Prevalence Rates'!F151","v":24.048299604664518},{"$f":"'Population 2016'!G151*'Prevalence Rates'!G151","v":36.205413023583496},{"$f":"'Population 2016'!H151*'Prevalence Rates'!H151","v":51.606429880676103},{"$f":"'Population 2016'!I151*'Prevalence Rates'!I151","v":31.523898947234024},{"$f":"'Population 2016'!J151*'Prevalence Rates'!J151","v":22.908601901558971},{"$f":"'Population 2016'!K151*'Prevalence Rates'!K151","v":7.5899668137426008},{"$f":"'Population 2016'!L151*'Prevalence Rates'!L151","v":45.644786828004108},{"$f":"'Population 2016'!M151*'Prevalence Rates'!M151","v":47.005050930634951},{"$f":"'Population 2016'!N151*'Prevalence Rates'!N151","v":13.667656761532593},{"$f":"'Population 2016'!O151*'Prevalence Rates'!O151","v":11.212530700041896},{"$f":"'Population 2016'!P151*'Prevalence Rates'!P151","v":3.9464437686668301},{"$f":"'Population 2016'!Q151*'Prevalence Rates'!Q151","v":20.719081824314156},{"$f":"'Population 2016'!R151*'Prevalence Rates'!R151","v":8.5229920045997929},{"$f":"'Population 2016'!S151*'Prevalence Rates'!S151","v":198.42548000051099},{"$f":"'Population 2016'!T151*'Prevalence Rates'!T151","v":41.296892331511465},{"$f":"'Population 2016'!U151*'Prevalence Rates'!U151","v":17.72970710645799},{"$f":"'Population 2016'!V151*'Prevalence Rates'!V151","v":22.340827684164694},{"$f":"'Population 2016'!W151*'Prevalence Rates'!W151","v":53.173980866319404},{"$f":"'Population 2016'!X151*'Prevalence Rates'!X151","v":55.109748097551538},{"$f":"'Population 2016'!Y151*'Prevalence Rates'!Y151","v":44.249018740615689},{"$f":"'Population 2016'!Z151*'Prevalence Rates'!Z151","v":37.099513943779513},{"$f":"'Population 2016'!AA151*'Prevalence Rates'!AA151","v":173.30592749808127},{"$f":"'Population 2016'!AB151*'Prevalence Rates'!AB151","v":75.81479314963299},{"$f":"'Population 2016'!AC151*'Prevalence Rates'!AC151","v":86.894222631777239},{"$f":"'Population 2016'!AD151*'Prevalence Rates'!AD151","v":98.255570564001744},{"$f":"'Population 2016'!AE151*'Prevalence Rates'!AE151","v":45.224905979306428},{"$f":"'Population 2016'!AF151*'Prevalence Rates'!AF151","v":10.878661959303406},{"$f":"'Population 2016'!AG151*'Prevalence Rates'!AG151","v":58.437095662889639},{"$f":"'Population 2016'!AH151*'Prevalence Rates'!AH151","v":87.532843412617765},{"$f":"'Population 2016'!AI151*'Prevalence Rates'!AI151","v":107.06226844918912},{"$f":"'Population 2016'!AJ151*'Prevalence Rates'!AJ151","v":17.782844679551072},{"$f":"'Population 2016'!AK151*'Prevalence Rates'!AK151","v":16.315993020402868},{"$f":"'Population 2016'!AL151*'Prevalence Rates'!AL151","v":21.156294880718331},{"$f":"'Population 2016'!AM151*'Prevalence Rates'!AM151","v":36.102838917475502},{"$f":"'Population 2016'!AN151*'Prevalence Rates'!AN151","v":7.1043535375057898},{"$f":"'Population 2016'!AO151*'Prevalence Rates'!AO151","v":7.1043535375057898},{"$f":"'Population 2016'!AP151*'Prevalence Rates'!AP151","v":26.804978537985868},{"$f":"'Population 2016'!AQ151*'Prevalence Rates'!AQ151","v":24.963043115998005},{"$f":"'Population 2016'!AR151*'Prevalence Rates'!AR151","v":777.23616259199514},{"$f":"'Population 2016'!AS151*'Prevalence Rates'!AS151","v":31.523898947234024},{"$f":"'Population 2016'!AT151*'Prevalence Rates'!AT151","v":5.9756994802057646},{"$f":"'Population 2016'!AU151*'Prevalence Rates'!AU151","v":5.9756994802057646},{"$f":"'Population 2016'!AV151*'Prevalence Rates'!AV151","v":20.12152897719205},{"$f":"'Population 2016'!AW151*'Prevalence Rates'!AW151","v":53.495109819151494},{"$f":"'Population 2016'!AX151*'Prevalence Rates'!AX151","v":11.117455146903074},{"$f":"'Population 2016'!AY151*'Prevalence Rates'!AY151","v":115.87904036658253},{"$f":"'Population 2016'!AZ151*'Prevalence Rates'!AZ151","v":62.64601250783501},{"$f":"'Population 2016'!BA151*'Prevalence Rates'!BA151","v":9.7687446803795552},{"$f":"'Population 2016'!BB151*'Prevalence Rates'!BB151","v":23.689852209800673},{"$f":"'Population 2016'!BC151*'Prevalence Rates'!BC151","v":9.8499537386750564},149]
[null,"Female 80-84",{"$f":"'Population 2016'!C152*'Prevalence Rates'!C152","v":20.971506019529226},{"$f":"'Population 2016'!D152*'Prevalence Rates'!D152","v":41.889117267759133},{"$f":"'Population 2016'!E152*'Prevalence Rates'!E152","v":20.411308131085097},{"$f":"'Population 2016'!F152*'Prevalence Rates'!F152","v":18.344913145856552},{"$f":"'Population 2016'!G152*'Prevalence Rates'!G152","v":25.654988683377823},{"$f":"'Population 2016'!H152*'Prevalence Rates'!H152","v":37.71910121772202},{"$f":"'Population 2016'!I152*'Prevalence Rates'!I152","v":23.274974249857912},{"$f":"'Population 2016'!J152*'Prevalence Rates'!J152","v":16.466890752331029},{"$f":"'Population 2016'!K152*'Prevalence Rates'!K152","v":5.1765672278060135},{"$f":"'Population 2016'!L152*'Prevalence Rates'!L152","v":33.736055524776596},{"$f":"'Population 2016'!M152*'Prevalence Rates'!M152","v":34.741426531714019},{"$f":"'Population 2016'!N152*'Prevalence Rates'!N152","v":13.565149335821099},{"$f":"'Population 2016'!O152*'Prevalence Rates'!O152","v":8.2346068420631013},{"$f":"'Population 2016'!P152*'Prevalence Rates'!P152","v":2.5867446550925441},{"$f":"'Population 2016'!Q152*'Prevalence Rates'!Q152","v":16.128626569825389},{"$f":"'Population 2016'!R152*'Prevalence Rates'!R152","v":8.2908482535017445},{"$f":"'Population 2016'!S152*'Prevalence Rates'!S152","v":146.11858761403482},{"$f":"'Population 2016'!T152*'Prevalence Rates'!T152","v":32.731953899527589},{"$f":"'Population 2016'!U152*'Prevalence Rates'!U152","v":13.271156006995078},{"$f":"'Population 2016'!V152*'Prevalence Rates'!V152","v":15.498024502756634},{"$f":"'Population 2016'!W152*'Prevalence Rates'!W152","v":38.503125280940573},{"$f":"'Population 2016'!X152*'Prevalence Rates'!X152","v":39.904808717173196},{"$f":"'Population 2016'!Y152*'Prevalence Rates'!Y152","v":31.218632853808614},{"$f":"'Population 2016'!Z152*'Prevalence Rates'!Z152","v":33.489638309558195},{"$f":"'Population 2016'!AA152*'Prevalence Rates'!AA152","v":138.97555580631098},{"$f":"'Population 2016'!AB152*'Prevalence Rates'!AB152","v":57.951769842968218},{"$f":"'Population 2016'!AC152*'Prevalence Rates'!AC152","v":71.769289682218741},{"$f":"'Population 2016'!AD152*'Prevalence Rates'!AD152","v":71.310242213116751},{"$f":"'Population 2016'!AE152*'Prevalence Rates'!AE152","v":33.275573023306201},{"$f":"'Population 2016'!AF152*'Prevalence Rates'!AF152","v":7.9384830513835656},{"$f":"'Population 2016'!AG152*'Prevalence Rates'!AG152","v":42.996835524438062},{"$f":"'Population 2016'!AH152*'Prevalence Rates'!AH152","v":67.972039798584646},{"$f":"'Population 2016'!AI152*'Prevalence Rates'!AI152","v":79.647516607726772},{"$f":"'Population 2016'!AJ152*'Prevalence Rates'!AJ152","v":12.282569464713182},{"$f":"'Population 2016'!AK152*'Prevalence Rates'!AK152","v":13.610056575311424},{"$f":"'Population 2016'!AL152*'Prevalence Rates'!AL152","v":14.69073474309068},{"$f":"'Population 2016'!AM152*'Prevalence Rates'!AM152","v":27.699878249470622},{"$f":"'Population 2016'!AN152*'Prevalence Rates'!AN152","v":4.07060256743575},{"$f":"'Population 2016'!AO152*'Prevalence Rates'!AO152","v":4.07060256743575},{"$f":"'Population 2016'!AP152*'Prevalence Rates'!AP152","v":21.135300351337857},{"$f":"'Population 2016'!AQ152*'Prevalence Rates'!AQ152","v":17.735871008862432},{"$f":"'Population 2016'!AR152*'Prevalence Rates'!AR152","v":589.13710762659082},{"$f":"'Population 2016'!AS152*'Prevalence Rates'!AS152","v":23.274974249857912},{"$f":"'Population 2016'!AT152*'Prevalence Rates'!AT152","v":4.4106353306280646},{"$f":"'Population 2016'!AU152*'Prevalence Rates'!AU152","v":4.4106353306280646},{"$f":"'Population 2016'!AV152*'Prevalence Rates'!AV152","v":15.366914379556876},{"$f":"'Population 2016'!AW152*'Prevalence Rates'!AW152","v":41.923472588767659},{"$f":"'Population 2016'!AX152*'Prevalence Rates'!AX152","v":8.2686072655091625},{"$f":"'Population 2016'!AY152*'Prevalence Rates'!AY152","v":89.884886287543395},{"$f":"'Population 2016'!AZ152*'Prevalence Rates'!AZ152","v":51.231055177987841},{"$f":"'Population 2016'!BA152*'Prevalence Rates'!BA152","v":8.2423783240702502},{"$f":"'Population 2016'!BB152*'Prevalence Rates'!BB152","v":16.3295657573337},{"$f":"'Population 2016'!BC152*'Prevalence Rates'!BC152","v":7.372951619715514},150]
[null,"Female 85-89",{"$f":"'Population 2016'!C153*'Prevalence Rates'!C153","v":13.855426132663023},{"$f":"'Population 2016'!D153*'Prevalence Rates'!D153","v":29.134076471215003},{"$f":"'Population 2016'!E153*'Prevalence Rates'!E153","v":14.721430200738366},{"$f":"'Population 2016'!F153*'Prevalence Rates'!F153","v":11.994750903060051},{"$f":"'Population 2016'!G153*'Prevalence Rates'!G153","v":15.446124843394635},{"$f":"'Population 2016'!H153*'Prevalence Rates'!H153","v":21.284599207040177},{"$f":"'Population 2016'!I153*'Prevalence Rates'!I153","v":13.588477613519986},{"$f":"'Population 2016'!J153*'Prevalence Rates'!J153","v":10.366462312995958},{"$f":"'Population 2016'!K153*'Prevalence Rates'!K153","v":3.7774950040746584},{"$f":"'Population 2016'!L153*'Prevalence Rates'!L153","v":23.014987451251017},{"$f":"'Population 2016'!M153*'Prevalence Rates'!M153","v":23.700859013548005},{"$f":"'Population 2016'!N153*'Prevalence Rates'!N153","v":7.585549502650589},{"$f":"'Population 2016'!O153*'Prevalence Rates'!O153","v":3.728878569990838},{"$f":"'Population 2016'!P153*'Prevalence Rates'!P153","v":1.6581696507003487},{"$f":"'Population 2016'!Q153*'Prevalence Rates'!Q153","v":12.489346728428892},{"$f":"'Population 2016'!R153*'Prevalence Rates'!R153","v":5.1071625241570739},{"$f":"'Population 2016'!S153*'Prevalence Rates'!S153","v":93.153503391459395},{"$f":"'Population 2016'!T153*'Prevalence Rates'!T153","v":22.731809568130192},{"$f":"'Population 2016'!U153*'Prevalence Rates'!U153","v":8.5339454638157335},{"$f":"'Population 2016'!V153*'Prevalence Rates'!V153","v":8.1373875670798554},{"$f":"'Population 2016'!W153*'Prevalence Rates'!W153","v":25.658256013055247},{"$f":"'Population 2016'!X153*'Prevalence Rates'!X153","v":26.592329603022204},{"$f":"'Population 2016'!Y153*'Prevalence Rates'!Y153","v":17.95556150473713},{"$f":"'Population 2016'!Z153*'Prevalence Rates'!Z153","v":20.193858745891546},{"$f":"'Population 2016'!AA153*'Prevalence Rates'!AA153","v":83.446095203595036},{"$f":"'Population 2016'!AB153*'Prevalence Rates'!AB153","v":37.374941072406294},{"$f":"'Population 2016'!AC153*'Prevalence Rates'!AC153","v":44.05672190318019},{"$f":"'Population 2016'!AD153*'Prevalence Rates'!AD153","v":46.262472196801134},{"$f":"'Population 2016'!AE153*'Prevalence Rates'!AE153","v":22.460320278407842},{"$f":"'Population 2016'!AF153*'Prevalence Rates'!AF153","v":6.4316413610746483},{"$f":"'Population 2016'!AG153*'Prevalence Rates'!AG153","v":29.021970445422866},{"$f":"'Population 2016'!AH153*'Prevalence Rates'!AH153","v":39.78765609664444},{"$f":"'Population 2016'!AI153*'Prevalence Rates'!AI153","v":50.827971581841673},{"$f":"'Population 2016'!AJ153*'Prevalence Rates'!AJ153","v":6.4100951751870143},{"$f":"'Population 2016'!AK153*'Prevalence Rates'!AK153","v":7.1801085869753178},{"$f":"'Population 2016'!AL153*'Prevalence Rates'!AL153","v":9.2891275395030206},{"$f":"'Population 2016'!AM153*'Prevalence Rates'!AM153","v":14.647057923281229},{"$f":"'Population 2016'!AN153*'Prevalence Rates'!AN153","v":2.9953490590564948},{"$f":"'Population 2016'!AO153*'Prevalence Rates'!AO153","v":2.9953490590564948},{"$f":"'Population 2016'!AP153*'Prevalence Rates'!AP153","v":14.42618116380438},{"$f":"'Population 2016'!AQ153*'Prevalence Rates'!AQ153","v":10.118040949989803},{"$f":"'Population 2016'!AR153*'Prevalence Rates'!AR153","v":369.03545599008885},{"$f":"'Population 2016'!AS153*'Prevalence Rates'!AS153","v":13.588477613519986},{"$f":"'Population 2016'!AT153*'Prevalence Rates'!AT153","v":2.5965837027084575},{"$f":"'Population 2016'!AU153*'Prevalence Rates'!AU153","v":2.5965837027084575},{"$f":"'Population 2016'!AV153*'Prevalence Rates'!AV153","v":9.0908231106784498},{"$f":"'Population 2016'!AW153*'Prevalence Rates'!AW153","v":26.330217173397969},{"$f":"'Population 2016'!AX153*'Prevalence Rates'!AX153","v":4.6901763900997349},{"$f":"'Population 2016'!AY153*'Prevalence Rates'!AY153","v":58.679567274509459},{"$f":"'Population 2016'!AZ153*'Prevalence Rates'!AZ153","v":32.942900729108018},{"$f":"'Population 2016'!BA153*'Prevalence Rates'!BA153","v":4.5451798165654882},{"$f":"'Population 2016'!BB153*'Prevalence Rates'!BB153","v":8.4215370572412791},{"$f":"'Population 2016'!BC153*'Prevalence Rates'!BC153","v":4.741136868321},151]
[null,"Female 90+",{"$f":"'Population 2016'!C154*'Prevalence Rates'!C154","v":7.9532657559092881},{"$f":"'Population 2016'!D154*'Prevalence Rates'!D154","v":16.30797695157035},{"$f":"'Population 2016'!E154*'Prevalence Rates'!E154","v":8.0982918691178334},{"$f":"'Population 2016'!F154*'Prevalence Rates'!F154","v":8.0552984005844461},{"$f":"'Population 2016'!G154*'Prevalence Rates'!G154","v":10.284766173365961},{"$f":"'Population 2016'!H154*'Prevalence Rates'!H154","v":12.666081167468171},{"$f":"'Population 2016'!I154*'Prevalence Rates'!I154","v":7.9408735675985813},{"$f":"'Population 2016'!J154*'Prevalence Rates'!J154","v":6.0577681005984614},{"$f":"'Population 2016'!K154*'Prevalence Rates'!K154","v":1.5739562516977743},{"$f":"'Population 2016'!L154*'Prevalence Rates'!L154","v":13.256889563970249},{"$f":"'Population 2016'!M154*'Prevalence Rates'!M154","v":13.651959236534625},{"$f":"'Population 2016'!N154*'Prevalence Rates'!N154","v":4.5103267313057556},{"$f":"'Population 2016'!O154*'Prevalence Rates'!O154","v":2.5118140367299397},{"$f":"'Population 2016'!P154*'Prevalence Rates'!P154","v":1.5586794716583279},{"$f":"'Population 2016'!Q154*'Prevalence Rates'!Q154","v":7.1131378718204292},{"$f":"'Population 2016'!R154*'Prevalence Rates'!R154","v":2.7193982271485719},{"$f":"'Population 2016'!S154*'Prevalence Rates'!S154","v":54.436336562091398},{"$f":"'Population 2016'!T154*'Prevalence Rates'!T154","v":13.426119704190947},{"$f":"'Population 2016'!U154*'Prevalence Rates'!U154","v":5.9911780399032901},{"$f":"'Population 2016'!V154*'Prevalence Rates'!V154","v":3.8467650317104773},{"$f":"'Population 2016'!W154*'Prevalence Rates'!W154","v":14.198617744647752},{"$f":"'Population 2016'!X154*'Prevalence Rates'!X154","v":14.715510001181611},{"$f":"'Population 2016'!Y154*'Prevalence Rates'!Y154","v":9.5401039528408944},{"$f":"'Population 2016'!Z154*'Prevalence Rates'!Z154","v":13.688934335710552},{"$f":"'Population 2016'!AA154*'Prevalence Rates'!AA154","v":52.761426700331327},{"$f":"'Population 2016'!AB154*'Prevalence Rates'!AB154","v":21.607387807484891},{"$f":"'Population 2016'!AC154*'Prevalence Rates'!AC154","v":32.325837088272081},{"$f":"'Population 2016'!AD154*'Prevalence Rates'!AD154","v":25.275477016463949},{"$f":"'Population 2016'!AE154*'Prevalence Rates'!AE154","v":10.925894716713174},{"$f":"'Population 2016'!AF154*'Prevalence Rates'!AF154","v":5.6230921613966922},{"$f":"'Population 2016'!AG154*'Prevalence Rates'!AG154","v":14.117830450667528},{"$f":"'Population 2016'!AH154*'Prevalence Rates'!AH154","v":20.402128500658204},{"$f":"'Population 2016'!AI154*'Prevalence Rates'!AI154","v":30.777741585989553},{"$f":"'Population 2016'!AJ154*'Prevalence Rates'!AJ154","v":4.5077443490024809},{"$f":"'Population 2016'!AK154*'Prevalence Rates'!AK154","v":4.5545464917380745},{"$f":"'Population 2016'!AL154*'Prevalence Rates'!AL154","v":6.0972687373830396},{"$f":"'Population 2016'!AM154*'Prevalence Rates'!AM154","v":6.6094433712765639},{"$f":"'Population 2016'!AN154*'Prevalence Rates'!AN154","v":2.5729280379075021},{"$f":"'Population 2016'!AO154*'Prevalence Rates'!AO154","v":2.5729280379075021},{"$f":"'Population 2016'!AP154*'Prevalence Rates'!AP154","v":9.0714850986368152},{"$f":"'Population 2016'!AQ154*'Prevalence Rates'!AQ154","v":9.4929882272105086},{"$f":"'Population 2016'!AR154*'Prevalence Rates'!AR154","v":221.51301201890982},{"$f":"'Population 2016'!AS154*'Prevalence Rates'!AS154","v":7.9408735675985813},{"$f":"'Population 2016'!AT154*'Prevalence Rates'!AT154","v":2.0986087460246434},{"$f":"'Population 2016'!AU154*'Prevalence Rates'!AU154","v":2.0986087460246434},{"$f":"'Population 2016'!AV154*'Prevalence Rates'!AV154","v":4.450319263386521},{"$f":"'Population 2016'!AW154*'Prevalence Rates'!AW154","v":14.530941177826257},{"$f":"'Population 2016'!AX154*'Prevalence Rates'!AX154","v":3.3699785914049945},{"$f":"'Population 2016'!AY154*'Prevalence Rates'!AY154","v":35.306413310201435},{"$f":"'Population 2016'!AZ154*'Prevalence Rates'!AZ154","v":21.013210575368536},{"$f":"'Population 2016'!BA154*'Prevalence Rates'!BA154","v":2.476105422457318},{"$f":"'Population 2016'!BB154*'Prevalence Rates'!BB154","v":5.2035513524417665},{"$f":"'Population 2016'!BC154*'Prevalence Rates'!BC154","v":3.3284715973518857},152]
[null,"Male 0-4",{"$f":"'Population 2016'!C155*'Prevalence Rates'!C155","v":0},{"$f":"'Population 2016'!D155*'Prevalence Rates'!D155","v":0},{"$f":"'Population 2016'!E155*'Prevalence Rates'!E155","v":0},{"$f":"'Population 2016'!F155*'Prevalence Rates'!F155","v":0},{"$f":"'Population 2016'!G155*'Prevalence Rates'!G155","v":0},{"$f":"'Population 2016'!H155*'Prevalence Rates'!H155","v":0},{"$f":"'Population 2016'!I155*'Prevalence Rates'!I155","v":0},{"$f":"'Population 2016'!J155*'Prevalence Rates'!J155","v":0},{"$f":"'Population 2016'!K155*'Prevalence Rates'!K155","v":0},{"$f":"'Population 2016'!L155*'Prevalence Rates'!L155","v":0},{"$f":"'Population 2016'!M155*'Prevalence Rates'!M155","v":0},{"$f":"'Population 2016'!N155*'Prevalence Rates'!N155","v":0},{"$f":"'Population 2016'!O155*'Prevalence Rates'!O155","v":0},{"$f":"'Population 2016'!P155*'Prevalence Rates'!P155","v":0},{"$f":"'Population 2016'!Q155*'Prevalence Rates'!Q155","v":0},{"$f":"'Population 2016'!R155*'Prevalence Rates'!R155","v":0},{"$f":"'Population 2016'!S155*'Prevalence Rates'!S155","v":0},{"$f":"'Population 2016'!T155*'Prevalence Rates'!T155","v":0},{"$f":"'Population 2016'!U155*'Prevalence Rates'!U155","v":0},{"$f":"'Population 2016'!V155*'Prevalence Rates'!V155","v":0},{"$f":"'Population 2016'!W155*'Prevalence Rates'!W155","v":0},{"$f":"'Population 2016'!X155*'Prevalence Rates'!X155","v":0},{"$f":"'Population 2016'!Y155*'Prevalence Rates'!Y155","v":0},{"$f":"'Population 2016'!Z155*'Prevalence Rates'!Z155","v":0},{"$f":"'Population 2016'!AA155*'Prevalence Rates'!AA155","v":0},{"$f":"'Population 2016'!AB155*'Prevalence Rates'!AB155","v":0},{"$f":"'Population 2016'!AC155*'Prevalence Rates'!AC155","v":0},{"$f":"'Population 2016'!AD155*'Prevalence Rates'!AD155","v":0},{"$f":"'Population 2016'!AE155*'Prevalence Rates'!AE155","v":0},{"$f":"'Population 2016'!AF155*'Prevalence Rates'!AF155","v":0},{"$f":"'Population 2016'!AG155*'Prevalence Rates'!AG155","v":0},{"$f":"'Population 2016'!AH155*'Prevalence Rates'!AH155","v":0},{"$f":"'Population 2016'!AI155*'Prevalence Rates'!AI155","v":0},{"$f":"'Population 2016'!AJ155*'Prevalence Rates'!AJ155","v":0},{"$f":"'Population 2016'!AK155*'Prevalence Rates'!AK155","v":0},{"$f":"'Population 2016'!AL155*'Prevalence Rates'!AL155","v":0},{"$f":"'Population 2016'!AM155*'Prevalence Rates'!AM155","v":0},{"$f":"'Population 2016'!AN155*'Prevalence Rates'!AN155","v":0},{"$f":"'Population 2016'!AO155*'Prevalence Rates'!AO155","v":0},{"$f":"'Population 2016'!AP155*'Prevalence Rates'!AP155","v":0},{"$f":"'Population 2016'!AQ155*'Prevalence Rates'!AQ155","v":0},{"$f":"'Population 2016'!AR155*'Prevalence Rates'!AR155","v":0},{"$f":"'Population 2016'!AS155*'Prevalence Rates'!AS155","v":0},{"$f":"'Population 2016'!AT155*'Prevalence Rates'!AT155","v":0},{"$f":"'Population 2016'!AU155*'Prevalence Rates'!AU155","v":0},{"$f":"'Population 2016'!AV155*'Prevalence Rates'!AV155","v":0},{"$f":"'Population 2016'!AW155*'Prevalence Rates'!AW155","v":0},{"$f":"'Population 2016'!AX155*'Prevalence Rates'!AX155","v":0},{"$f":"'Population 2016'!AY155*'Prevalence Rates'!AY155","v":0},{"$f":"'Population 2016'!AZ155*'Prevalence Rates'!AZ155","v":0},{"$f":"'Population 2016'!BA155*'Prevalence Rates'!BA155","v":0},{"$f":"'Population 2016'!BB155*'Prevalence Rates'!BB155","v":0},{"$f":"'Population 2016'!BC155*'Prevalence Rates'!BC155","v":0},153]
[null,"Male 5-9",{"$f":"'Population 2016'!C156*'Prevalence Rates'!C156","v":0},{"$f":"'Population 2016'!D156*'Prevalence Rates'!D156","v":0},{"$f":"'Population 2016'!E156*'Prevalence Rates'!E156","v":0},{"$f":"'Population 2016'!F156*'Prevalence Rates'!F156","v":0},{"$f":"'Population 2016'!G156*'Prevalence Rates'!G156","v":0},{"$f":"'Population 2016'!H156*'Prevalence Rates'!H156","v":0},{"$f":"'Population 2016'!I156*'Prevalence Rates'!I156","v":0},{"$f":"'Population 2016'!J156*'Prevalence Rates'!J156","v":0},{"$f":"'Population 2016'!K156*'Prevalence Rates'!K156","v":0},{"$f":"'Population 2016'!L156*'Prevalence Rates'!L156","v":0},{"$f":"'Population 2016'!M156*'Prevalence Rates'!M156","v":0},{"$f":"'Population 2016'!N156*'Prevalence Rates'!N156","v":0},{"$f":"'Population 2016'!O156*'Prevalence Rates'!O156","v":0},{"$f":"'Population 2016'!P156*'Prevalence Rates'!P156","v":0},{"$f":"'Population 2016'!Q156*'Prevalence Rates'!Q156","v":0},{"$f":"'Population 2016'!R156*'Prevalence Rates'!R156","v":0},{"$f":"'Population 2016'!S156*'Prevalence Rates'!S156","v":0},{"$f":"'Population 2016'!T156*'Prevalence Rates'!T156","v":0},{"$f":"'Population 2016'!U156*'Prevalence Rates'!U156","v":0},{"$f":"'Population 2016'!V156*'Prevalence Rates'!V156","v":0},{"$f":"'Population 2016'!W156*'Prevalence Rates'!W156","v":0},{"$f":"'Population 2016'!X156*'Prevalence Rates'!X156","v":0},{"$f":"'Population 2016'!Y156*'Prevalence Rates'!Y156","v":0},{"$f":"'Population 2016'!Z156*'Prevalence Rates'!Z156","v":0},{"$f":"'Population 2016'!AA156*'Prevalence Rates'!AA156","v":0},{"$f":"'Population 2016'!AB156*'Prevalence Rates'!AB156","v":0},{"$f":"'Population 2016'!AC156*'Prevalence Rates'!AC156","v":0},{"$f":"'Population 2016'!AD156*'Prevalence Rates'!AD156","v":0},{"$f":"'Population 2016'!AE156*'Prevalence Rates'!AE156","v":0},{"$f":"'Population 2016'!AF156*'Prevalence Rates'!AF156","v":0},{"$f":"'Population 2016'!AG156*'Prevalence Rates'!AG156","v":0},{"$f":"'Population 2016'!AH156*'Prevalence Rates'!AH156","v":0},{"$f":"'Population 2016'!AI156*'Prevalence Rates'!AI156","v":0},{"$f":"'Population 2016'!AJ156*'Prevalence Rates'!AJ156","v":0},{"$f":"'Population 2016'!AK156*'Prevalence Rates'!AK156","v":0},{"$f":"'Population 2016'!AL156*'Prevalence Rates'!AL156","v":0},{"$f":"'Population 2016'!AM156*'Prevalence Rates'!AM156","v":0},{"$f":"'Population 2016'!AN156*'Prevalence Rates'!AN156","v":0},{"$f":"'Population 2016'!AO156*'Prevalence Rates'!AO156","v":0},{"$f":"'Population 2016'!AP156*'Prevalence Rates'!AP156","v":0},{"$f":"'Population 2016'!AQ156*'Prevalence Rates'!AQ156","v":0},{"$f":"'Population 2016'!AR156*'Prevalence Rates'!AR156","v":0},{"$f":"'Population 2016'!AS156*'Prevalence Rates'!AS156","v":0},{"$f":"'Population 2016'!AT156*'Prevalence Rates'!AT156","v":0},{"$f":"'Population 2016'!AU156*'Prevalence Rates'!AU156","v":0},{"$f":"'Population 2016'!AV156*'Prevalence Rates'!AV156","v":0},{"$f":"'Population 2016'!AW156*'Prevalence Rates'!AW156","v":0},{"$f":"'Population 2016'!AX156*'Prevalence Rates'!AX156","v":0},{"$f":"'Population 2016'!AY156*'Prevalence Rates'!AY156","v":0},{"$f":"'Population 2016'!AZ156*'Prevalence Rates'!AZ156","v":0},{"$f":"'Population 2016'!BA156*'Prevalence Rates'!BA156","v":0},{"$f":"'Population 2016'!BB156*'Prevalence Rates'!BB156","v":0},{"$f":"'Population 2016'!BC156*'Prevalence Rates'!BC156","v":0},154]
[null,"Male 10-15",{"$f":"'Population 2016'!C157*'Prevalence Rates'!C157","v":0},{"$f":"'Population 2016'!D157*'Prevalence Rates'!D157","v":0},{"$f":"'Population 2016'!E157*'Prevalence Rates'!E157","v":0},{"$f":"'Population 2016'!F157*'Prevalence Rates'!F157","v":0},{"$f":"'Population 2016'!G157*'Prevalence Rates'!G157","v":0},{"$f":"'Population 2016'!H157*'Prevalence Rates'!H157","v":0},{"$f":"'Population 2016'!I157*'Prevalence Rates'!I157","v":0},{"$f":"'Population 2016'!J157*'Prevalence Rates'!J157","v":0},{"$f":"'Population 2016'!K157*'Prevalence Rates'!K157","v":0},{"$f":"'Population 2016'!L157*'Prevalence Rates'!L157","v":0},{"$f":"'Population 2016'!M157*'Prevalence Rates'!M157","v":0},{"$f":"'Population 2016'!N157*'Prevalence Rates'!N157","v":0},{"$f":"'Population 2016'!O157*'Prevalence Rates'!O157","v":0},{"$f":"'Population 2016'!P157*'Prevalence Rates'!P157","v":0},{"$f":"'Population 2016'!Q157*'Prevalence Rates'!Q157","v":0},{"$f":"'Population 2016'!R157*'Prevalence Rates'!R157","v":0},{"$f":"'Population 2016'!S157*'Prevalence Rates'!S157","v":0},{"$f":"'Population 2016'!T157*'Prevalence Rates'!T157","v":0},{"$f":"'Population 2016'!U157*'Prevalence Rates'!U157","v":0},{"$f":"'Population 2016'!V157*'Prevalence Rates'!V157","v":0},{"$f":"'Population 2016'!W157*'Prevalence Rates'!W157","v":0},{"$f":"'Population 2016'!X157*'Prevalence Rates'!X157","v":0},{"$f":"'Population 2016'!Y157*'Prevalence Rates'!Y157","v":0},{"$f":"'Population 2016'!Z157*'Prevalence Rates'!Z157","v":0},{"$f":"'Population 2016'!AA157*'Prevalence Rates'!AA157","v":0},{"$f":"'Population 2016'!AB157*'Prevalence Rates'!AB157","v":0},{"$f":"'Population 2016'!AC157*'Prevalence Rates'!AC157","v":0},{"$f":"'Population 2016'!AD157*'Prevalence Rates'!AD157","v":0},{"$f":"'Population 2016'!AE157*'Prevalence Rates'!AE157","v":0},{"$f":"'Population 2016'!AF157*'Prevalence Rates'!AF157","v":0},{"$f":"'Population 2016'!AG157*'Prevalence Rates'!AG157","v":0},{"$f":"'Population 2016'!AH157*'Prevalence Rates'!AH157","v":0},{"$f":"'Population 2016'!AI157*'Prevalence Rates'!AI157","v":0},{"$f":"'Population 2016'!AJ157*'Prevalence Rates'!AJ157","v":0},{"$f":"'Population 2016'!AK157*'Prevalence Rates'!AK157","v":0},{"$f":"'Population 2016'!AL157*'Prevalence Rates'!AL157","v":0},{"$f":"'Population 2016'!AM157*'Prevalence Rates'!AM157","v":0},{"$f":"'Population 2016'!AN157*'Prevalence Rates'!AN157","v":0},{"$f":"'Population 2016'!AO157*'Prevalence Rates'!AO157","v":0},{"$f":"'Population 2016'!AP157*'Prevalence Rates'!AP157","v":0},{"$f":"'Population 2016'!AQ157*'Prevalence Rates'!AQ157","v":0},{"$f":"'Population 2016'!AR157*'Prevalence Rates'!AR157","v":0},{"$f":"'Population 2016'!AS157*'Prevalence Rates'!AS157","v":0},{"$f":"'Population 2016'!AT157*'Prevalence Rates'!AT157","v":0},{"$f":"'Population 2016'!AU157*'Prevalence Rates'!AU157","v":0},{"$f":"'Population 2016'!AV157*'Prevalence Rates'!AV157","v":0},{"$f":"'Population 2016'!AW157*'Prevalence Rates'!AW157","v":0},{"$f":"'Population 2016'!AX157*'Prevalence Rates'!AX157","v":0},{"$f":"'Population 2016'!AY157*'Prevalence Rates'!AY157","v":0},{"$f":"'Population 2016'!AZ157*'Prevalence Rates'!AZ157","v":0},{"$f":"'Population 2016'!BA157*'Prevalence Rates'!BA157","v":0},{"$f":"'Population 2016'!BB157*'Prevalence Rates'!BB157","v":0},{"$f":"'Population 2016'!BC157*'Prevalence Rates'!BC157","v":0},155]
[null,"Male 16-19",{"$f":"'Population 2016'!C158*'Prevalence Rates'!C158","v":203.8574701386014},{"$f":"'Population 2016'!D158*'Prevalence Rates'!D158","v":520.80072182940376},{"$f":"'Population 2016'!E158*'Prevalence Rates'!E158","v":298.83737346774552},{"$f":"'Population 2016'!F158*'Prevalence Rates'!F158","v":273.50966511059607},{"$f":"'Population 2016'!G158*'Prevalence Rates'!G158","v":244.19673114910384},{"$f":"'Population 2016'!H158*'Prevalence Rates'!H158","v":491.855331985335},{"$f":"'Population 2016'!I158*'Prevalence Rates'!I158","v":270.40143674830813},{"$f":"'Population 2016'!J158*'Prevalence Rates'!J158","v":186.56906139858663},{"$f":"'Population 2016'!K158*'Prevalence Rates'!K158","v":82.796731180759977},{"$f":"'Population 2016'!L158*'Prevalence Rates'!L158","v":357.04249128251683},{"$f":"'Population 2016'!M158*'Prevalence Rates'!M158","v":379.53612728194651},{"$f":"'Population 2016'!N158*'Prevalence Rates'!N158","v":97.431147331211136},{"$f":"'Population 2016'!O158*'Prevalence Rates'!O158","v":148.20791059311642},{"$f":"'Population 2016'!P158*'Prevalence Rates'!P158","v":50.320602785456252},{"$f":"'Population 2016'!Q158*'Prevalence Rates'!Q158","v":176.52325589065546},{"$f":"'Population 2016'!R158*'Prevalence Rates'!R158","v":76.56930347910361},{"$f":"'Population 2016'!S158*'Prevalence Rates'!S158","v":1902.5661657735805},{"$f":"'Population 2016'!T158*'Prevalence Rates'!T158","v":535.90465294248668},{"$f":"'Population 2016'!U158*'Prevalence Rates'!U158","v":153.55456015249041},{"$f":"'Population 2016'!V158*'Prevalence Rates'!V158","v":176.69564163886076},{"$f":"'Population 2016'!W158*'Prevalence Rates'!W158","v":467.42489225871151},{"$f":"'Population 2016'!X158*'Prevalence Rates'!X158","v":469.40816261896748},{"$f":"'Population 2016'!Y158*'Prevalence Rates'!Y158","v":441.08979973070848},{"$f":"'Population 2016'!Z158*'Prevalence Rates'!Z158","v":618.6741414834994},{"$f":"'Population 2016'!AA158*'Prevalence Rates'!AA158","v":1816.4037594374199},{"$f":"'Population 2016'!AB158*'Prevalence Rates'!AB158","v":639.64540857636916},{"$f":"'Population 2016'!AC158*'Prevalence Rates'!AC158","v":1076.7428527786503},{"$f":"'Population 2016'!AD158*'Prevalence Rates'!AD158","v":750.56786690614172},{"$f":"'Population 2016'!AE158*'Prevalence Rates'!AE158","v":468.95079017133008},{"$f":"'Population 2016'!AF158*'Prevalence Rates'!AF158","v":75.742712237989693},{"$f":"'Population 2016'!AG158*'Prevalence Rates'!AG158","v":509.03568603072694},{"$f":"'Population 2016'!AH158*'Prevalence Rates'!AH158","v":728.45245894014761},{"$f":"'Population 2016'!AI158*'Prevalence Rates'!AI158","v":1141.5812856334298},{"$f":"'Population 2016'!AJ158*'Prevalence Rates'!AJ158","v":140.94492524602722},{"$f":"'Population 2016'!AK158*'Prevalence Rates'!AK158","v":125.40055877103767},{"$f":"'Population 2016'!AL158*'Prevalence Rates'!AL158","v":148.80788966528652},{"$f":"'Population 2016'!AM158*'Prevalence Rates'!AM158","v":360.66235853176653},{"$f":"'Population 2016'!AN158*'Prevalence Rates'!AN158","v":50.240879327952442},{"$f":"'Population 2016'!AO158*'Prevalence Rates'!AO158","v":50.240879327952442},{"$f":"'Population 2016'!AP158*'Prevalence Rates'!AP158","v":212.42936505856852},{"$f":"'Population 2016'!AQ158*'Prevalence Rates'!AQ158","v":212.67111073994528},{"$f":"'Population 2016'!AR158*'Prevalence Rates'!AR158","v":7136.693319164222},{"$f":"'Population 2016'!AS158*'Prevalence Rates'!AS158","v":270.40143674830813},{"$f":"'Population 2016'!AT158*'Prevalence Rates'!AT158","v":55.245725270559291},{"$f":"'Population 2016'!AU158*'Prevalence Rates'!AU158","v":55.245725270559291},{"$f":"'Population 2016'!AV158*'Prevalence Rates'!AV158","v":180.88890648212268},{"$f":"'Population 2016'!AW158*'Prevalence Rates'!AW158","v":357.16737017287693},{"$f":"'Population 2016'!AX158*'Prevalence Rates'!AX158","v":89.849479413776024},{"$f":"'Population 2016'!AY158*'Prevalence Rates'!AY158","v":972.02546769594346},{"$f":"'Population 2016'!AZ158*'Prevalence Rates'!AZ158","v":495.76266116053461},{"$f":"'Population 2016'!BA158*'Prevalence Rates'!BA158","v":75.105843668473057},{"$f":"'Population 2016'!BB158*'Prevalence Rates'!BB158","v":288.45839746063109},{"$f":"'Population 2016'!BC158*'Prevalence Rates'!BC158","v":105.98558947837294},156]
[null,"Male 20-24",{"$f":"'Population 2016'!C159*'Prevalence Rates'!C159","v":665.2537797737881},{"$f":"'Population 2016'!D159*'Prevalence Rates'!D159","v":994.6140203495097},{"$f":"'Population 2016'!E159*'Prevalence Rates'!E159","v":367.4826467561968},{"$f":"'Population 2016'!F159*'Prevalence Rates'!F159","v":290.65946032834154},{"$f":"'Population 2016'!G159*'Prevalence Rates'!G159","v":246.29412638596733},{"$f":"'Population 2016'!H159*'Prevalence Rates'!H159","v":614.47854494566775},{"$f":"'Population 2016'!I159*'Prevalence Rates'!I159","v":319.4414958059358},{"$f":"'Population 2016'!J159*'Prevalence Rates'!J159","v":339.24960187907061},{"$f":"'Population 2016'!K159*'Prevalence Rates'!K159","v":111.79466468185564},{"$f":"'Population 2016'!L159*'Prevalence Rates'!L159","v":408.47079714605815},{"$f":"'Population 2016'!M159*'Prevalence Rates'!M159","v":434.20441051626665},{"$f":"'Population 2016'!N159*'Prevalence Rates'!N159","v":190.85484387244958},{"$f":"'Population 2016'!O159*'Prevalence Rates'!O159","v":200.47908766251663},{"$f":"'Population 2016'!P159*'Prevalence Rates'!P159","v":69.505332597411453},{"$f":"'Population 2016'!Q159*'Prevalence Rates'!Q159","v":217.23307653210509},{"$f":"'Population 2016'!R159*'Prevalence Rates'!R159","v":101.46988997637308},{"$f":"'Population 2016'!S159*'Prevalence Rates'!S159","v":3198.9476350387949},{"$f":"'Population 2016'!T159*'Prevalence Rates'!T159","v":1502.2498852506776},{"$f":"'Population 2016'!U159*'Prevalence Rates'!U159","v":180.15456269859112},{"$f":"'Population 2016'!V159*'Prevalence Rates'!V159","v":234.27696894609335},{"$f":"'Population 2016'!W159*'Prevalence Rates'!W159","v":647.22540938962891},{"$f":"'Population 2016'!X159*'Prevalence Rates'!X159","v":649.97156816744712},{"$f":"'Population 2016'!Y159*'Prevalence Rates'!Y159","v":682.56514703495395},{"$f":"'Population 2016'!Z159*'Prevalence Rates'!Z159","v":1425.902329981931},{"$f":"'Population 2016'!AA159*'Prevalence Rates'!AA159","v":2862.3281430748852},{"$f":"'Population 2016'!AB159*'Prevalence Rates'!AB159","v":1118.3169311073564},{"$f":"'Population 2016'!AC159*'Prevalence Rates'!AC159","v":1978.0292003539855},{"$f":"'Population 2016'!AD159*'Prevalence Rates'!AD159","v":778.43326076732785},{"$f":"'Population 2016'!AE159*'Prevalence Rates'!AE159","v":492.81455819188301},{"$f":"'Population 2016'!AF159*'Prevalence Rates'!AF159","v":112.44879586101545},{"$f":"'Population 2016'!AG159*'Prevalence Rates'!AG159","v":534.93927715418408},{"$f":"'Population 2016'!AH159*'Prevalence Rates'!AH159","v":897.72996684459224},{"$f":"'Population 2016'!AI159*'Prevalence Rates'!AI159","v":2244.3905058143946},{"$f":"'Population 2016'!AJ159*'Prevalence Rates'!AJ159","v":204.91750053973377},{"$f":"'Population 2016'!AK159*'Prevalence Rates'!AK159","v":151.96656583563811},{"$f":"'Population 2016'!AL159*'Prevalence Rates'!AL159","v":205.14508026963782},{"$f":"'Population 2016'!AM159*'Prevalence Rates'!AM159","v":423.48115534395725},{"$f":"'Population 2016'!AN159*'Prevalence Rates'!AN159","v":60.289055193542929},{"$f":"'Population 2016'!AO159*'Prevalence Rates'!AO159","v":60.289055193542929},{"$f":"'Population 2016'!AP159*'Prevalence Rates'!AP159","v":281.65975292771788},{"$f":"'Population 2016'!AQ159*'Prevalence Rates'!AQ159","v":234.07368112014359},{"$f":"'Population 2016'!AR159*'Prevalence Rates'!AR159","v":10601.720799957067},{"$f":"'Population 2016'!AS159*'Prevalence Rates'!AS159","v":319.4414958059358},{"$f":"'Population 2016'!AT159*'Prevalence Rates'!AT159","v":75.756114293162142},{"$f":"'Population 2016'!AU159*'Prevalence Rates'!AU159","v":75.756114293162142},{"$f":"'Population 2016'!AV159*'Prevalence Rates'!AV159","v":196.36765519116338},{"$f":"'Population 2016'!AW159*'Prevalence Rates'!AW159","v":462.58225027466153},{"$f":"'Population 2016'!AX159*'Prevalence Rates'!AX159","v":194.31853513894609},{"$f":"'Population 2016'!AY159*'Prevalence Rates'!AY159","v":1314.563433675107},{"$f":"'Population 2016'!AZ159*'Prevalence Rates'!AZ159","v":657.9782608047642},{"$f":"'Population 2016'!BA159*'Prevalence Rates'!BA159","v":111.65925807746375},{"$f":"'Population 2016'!BB159*'Prevalence Rates'!BB159","v":401.29076381427927},{"$f":"'Population 2016'!BC159*'Prevalence Rates'!BC159","v":124.34529789194936},157]
[null,"Male 25-29",{"$f":"'Population 2016'!C160*'Prevalence Rates'!C160","v":524.28724703347461},{"$f":"'Population 2016'!D160*'Prevalence Rates'!D160","v":689.83295683045401},{"$f":"'Population 2016'!E160*'Prevalence Rates'!E160","v":208.55559523377298},{"$f":"'Population 2016'!F160*'Prevalence Rates'!F160","v":164.10482724390809},{"$f":"'Population 2016'!G160*'Prevalence Rates'!G160","v":140.98711508568007},{"$f":"'Population 2016'!H160*'Prevalence Rates'!H160","v":346.29043908551336},{"$f":"'Population 2016'!I160*'Prevalence Rates'!I160","v":187.70990773208749},{"$f":"'Population 2016'!J160*'Prevalence Rates'!J160","v":181.18006301465974},{"$f":"'Population 2016'!K160*'Prevalence Rates'!K160","v":55.241731532594905},{"$f":"'Population 2016'!L160*'Prevalence Rates'!L160","v":246.80712969351234},{"$f":"'Population 2016'!M160*'Prevalence Rates'!M160","v":262.35595055639698},{"$f":"'Population 2016'!N160*'Prevalence Rates'!N160","v":142.82476912961917},{"$f":"'Population 2016'!O160*'Prevalence Rates'!O160","v":127.10336668098302},{"$f":"'Population 2016'!P160*'Prevalence Rates'!P160","v":41.540160075955491},{"$f":"'Population 2016'!Q160*'Prevalence Rates'!Q160","v":129.68971543764789},{"$f":"'Population 2016'!R160*'Prevalence Rates'!R160","v":49.808000626874367},{"$f":"'Population 2016'!S160*'Prevalence Rates'!S160","v":2295.7123948027242},{"$f":"'Population 2016'!T160*'Prevalence Rates'!T160","v":1314.7502570895379},{"$f":"'Population 2016'!U160*'Prevalence Rates'!U160","v":105.18614605325948},{"$f":"'Population 2016'!V160*'Prevalence Rates'!V160","v":138.5510995415917},{"$f":"'Population 2016'!W160*'Prevalence Rates'!W160","v":409.37996294048571},{"$f":"'Population 2016'!X160*'Prevalence Rates'!X160","v":411.11695033681195},{"$f":"'Population 2016'!Y160*'Prevalence Rates'!Y160","v":382.97755656779935},{"$f":"'Population 2016'!Z160*'Prevalence Rates'!Z160","v":931.6625387294348},{"$f":"'Population 2016'!AA160*'Prevalence Rates'!AA160","v":1801.4307726472127},{"$f":"'Population 2016'!AB160*'Prevalence Rates'!AB160","v":767.15344367498051},{"$f":"'Population 2016'!AC160*'Prevalence Rates'!AC160","v":1278.5647330661627},{"$f":"'Population 2016'!AD160*'Prevalence Rates'!AD160","v":479.85088292319205},{"$f":"'Population 2016'!AE160*'Prevalence Rates'!AE160","v":313.82205751175019},{"$f":"'Population 2016'!AF160*'Prevalence Rates'!AF160","v":67.336085687863843},{"$f":"'Population 2016'!AG160*'Prevalence Rates'!AG160","v":340.6468859530122},{"$f":"'Population 2016'!AH160*'Prevalence Rates'!AH160","v":535.04158617947837},{"$f":"'Population 2016'!AI160*'Prevalence Rates'!AI160","v":1726.6909283567506},{"$f":"'Population 2016'!AJ160*'Prevalence Rates'!AJ160","v":123.38988001437856},{"$f":"'Population 2016'!AK160*'Prevalence Rates'!AK160","v":98.215491012796335},{"$f":"'Population 2016'!AL160*'Prevalence Rates'!AL160","v":104.11627296777509},{"$f":"'Population 2016'!AM160*'Prevalence Rates'!AM160","v":254.74421696385755},{"$f":"'Population 2016'!AN160*'Prevalence Rates'!AN160","v":43.175859260710595},{"$f":"'Population 2016'!AO160*'Prevalence Rates'!AO160","v":43.175859260710595},{"$f":"'Population 2016'!AP160*'Prevalence Rates'!AP160","v":144.2549719439964},{"$f":"'Population 2016'!AQ160*'Prevalence Rates'!AQ160","v":157.58442625994877},{"$f":"'Population 2016'!AR160*'Prevalence Rates'!AR160","v":6864.5370852481265},{"$f":"'Population 2016'!AS160*'Prevalence Rates'!AS160","v":187.70990773208749},{"$f":"'Population 2016'!AT160*'Prevalence Rates'!AT160","v":42.433861672877775},{"$f":"'Population 2016'!AU160*'Prevalence Rates'!AU160","v":42.433861672877775},{"$f":"'Population 2016'!AV160*'Prevalence Rates'!AV160","v":106.19308829487677},{"$f":"'Population 2016'!AW160*'Prevalence Rates'!AW160","v":273.18454174320624},{"$f":"'Population 2016'!AX160*'Prevalence Rates'!AX160","v":107.34096886270579},{"$f":"'Population 2016'!AY160*'Prevalence Rates'!AY160","v":803.87118258786029},{"$f":"'Population 2016'!AZ160*'Prevalence Rates'!AZ160","v":391.10443794488702},{"$f":"'Population 2016'!BA160*'Prevalence Rates'!BA160","v":78.883508055950088},{"$f":"'Population 2016'!BB160*'Prevalence Rates'!BB160","v":250.04608944476948},{"$f":"'Population 2016'!BC160*'Prevalence Rates'!BC160","v":72.601006986324464},158]
[null,"Male 30-34",{"$f":"'Population 2016'!C161*'Prevalence Rates'!C161","v":397.5548690110233},{"$f":"'Population 2016'!D161*'Prevalence Rates'!D161","v":596.03282672530293},{"$f":"'Population 2016'!E161*'Prevalence Rates'!E161","v":221.03196392944182},{"$f":"'Population 2016'!F161*'Prevalence Rates'!F161","v":183.44441214793844},{"$f":"'Population 2016'!G161*'Prevalence Rates'!G161","v":133.56674060748637},{"$f":"'Population 2016'!H161*'Prevalence Rates'!H161","v":322.49784177170545},{"$f":"'Population 2016'!I161*'Prevalence Rates'!I161","v":191.38625385126431},{"$f":"'Population 2016'!J161*'Prevalence Rates'!J161","v":151.56186625108828},{"$f":"'Population 2016'!K161*'Prevalence Rates'!K161","v":53.30342516303017},{"$f":"'Population 2016'!L161*'Prevalence Rates'!L161","v":231.41687521832753},{"$f":"'Population 2016'!M161*'Prevalence Rates'!M161","v":245.99611181447716},{"$f":"'Population 2016'!N161*'Prevalence Rates'!N161","v":117.05905354053421},{"$f":"'Population 2016'!O161*'Prevalence Rates'!O161","v":107.67355266605567},{"$f":"'Population 2016'!P161*'Prevalence Rates'!P161","v":35.748503142288619},{"$f":"'Population 2016'!Q161*'Prevalence Rates'!Q161","v":114.04874473159991},{"$f":"'Population 2016'!R161*'Prevalence Rates'!R161","v":50.203302219151148},{"$f":"'Population 2016'!S161*'Prevalence Rates'!S161","v":2161.9078843555976},{"$f":"'Population 2016'!T161*'Prevalence Rates'!T161","v":1163.6772759195258},{"$f":"'Population 2016'!U161*'Prevalence Rates'!U161","v":114.91138583433943},{"$f":"'Population 2016'!V161*'Prevalence Rates'!V161","v":138.90957586640823},{"$f":"'Population 2016'!W161*'Prevalence Rates'!W161","v":405.97443785472859},{"$f":"'Population 2016'!X161*'Prevalence Rates'!X161","v":407.69697570616421},{"$f":"'Population 2016'!Y161*'Prevalence Rates'!Y161","v":351.96523514907011},{"$f":"'Population 2016'!Z161*'Prevalence Rates'!Z161","v":859.17226934358882},{"$f":"'Population 2016'!AA161*'Prevalence Rates'!AA161","v":1776.3939971177081},{"$f":"'Population 2016'!AB161*'Prevalence Rates'!AB161","v":696.30813885011423},{"$f":"'Population 2016'!AC161*'Prevalence Rates'!AC161","v":1193.278694953603},{"$f":"'Population 2016'!AD161*'Prevalence Rates'!AD161","v":504.77573052943239},{"$f":"'Population 2016'!AE161*'Prevalence Rates'!AE161","v":343.77699843089539},{"$f":"'Population 2016'!AF161*'Prevalence Rates'!AF161","v":59.751526585659398},{"$f":"'Population 2016'!AG161*'Prevalence Rates'!AG161","v":373.16231021579267},{"$f":"'Population 2016'!AH161*'Prevalence Rates'!AH161","v":587.65804382488113},{"$f":"'Population 2016'!AI161*'Prevalence Rates'!AI161","v":1583.8452300867209},{"$f":"'Population 2016'!AJ161*'Prevalence Rates'!AJ161","v":123.17264431012789},{"$f":"'Population 2016'!AK161*'Prevalence Rates'!AK161","v":113.2265922592936},{"$f":"'Population 2016'!AL161*'Prevalence Rates'!AL161","v":97.208084240055413},{"$f":"'Population 2016'!AM161*'Prevalence Rates'!AM161","v":296.79087429827899},{"$f":"'Population 2016'!AN161*'Prevalence Rates'!AN161","v":37.220568328198787},{"$f":"'Population 2016'!AO161*'Prevalence Rates'!AO161","v":37.220568328198787},{"$f":"'Population 2016'!AP161*'Prevalence Rates'!AP161","v":160.97049592360202},{"$f":"'Population 2016'!AQ161*'Prevalence Rates'!AQ161","v":163.43362985475036},{"$f":"'Population 2016'!AR161*'Prevalence Rates'!AR161","v":6616.8101904354717},{"$f":"'Population 2016'!AS161*'Prevalence Rates'!AS161","v":191.38625385126431},{"$f":"'Population 2016'!AT161*'Prevalence Rates'!AT161","v":46.635234115736964},{"$f":"'Population 2016'!AU161*'Prevalence Rates'!AU161","v":46.635234115736964},{"$f":"'Population 2016'!AV161*'Prevalence Rates'!AV161","v":108.89127928603516},{"$f":"'Population 2016'!AW161*'Prevalence Rates'!AW161","v":281.90144765072574},{"$f":"'Population 2016'!AX161*'Prevalence Rates'!AX161","v":84.132110730228874},{"$f":"'Population 2016'!AY161*'Prevalence Rates'!AY161","v":807.46645927355519},{"$f":"'Population 2016'!AZ161*'Prevalence Rates'!AZ161","v":397.18993394327043},{"$f":"'Population 2016'!BA161*'Prevalence Rates'!BA161","v":68.547048379653177},{"$f":"'Population 2016'!BB161*'Prevalence Rates'!BB161","v":258.35326849609072},{"$f":"'Population 2016'!BC161*'Prevalence Rates'!BC161","v":79.313508848807018},159]
[null,"Male 35-39",{"$f":"'Population 2016'!C162*'Prevalence Rates'!C162","v":342.15515690029906},{"$f":"'Population 2016'!D162*'Prevalence Rates'!D162","v":599.90496314579809},{"$f":"'Population 2016'!E162*'Prevalence Rates'!E162","v":265.17348492230877},{"$f":"'Population 2016'!F162*'Prevalence Rates'!F162","v":215.57346889019772},{"$f":"'Population 2016'!G162*'Prevalence Rates'!G162","v":178.01079754581511},{"$f":"'Population 2016'!H162*'Prevalence Rates'!H162","v":409.3515118242139},{"$f":"'Population 2016'!I162*'Prevalence Rates'!I162","v":214.39411449117026},{"$f":"'Population 2016'!J162*'Prevalence Rates'!J162","v":176.37725726124725},{"$f":"'Population 2016'!K162*'Prevalence Rates'!K162","v":63.86226577637219},{"$f":"'Population 2016'!L162*'Prevalence Rates'!L162","v":254.9276164789427},{"$f":"'Population 2016'!M162*'Prevalence Rates'!M162","v":270.98802707792152},{"$f":"'Population 2016'!N162*'Prevalence Rates'!N162","v":99.705709685172764},{"$f":"'Population 2016'!O162*'Prevalence Rates'!O162","v":143.70024445012888},{"$f":"'Population 2016'!P162*'Prevalence Rates'!P162","v":37.464576719688907},{"$f":"'Population 2016'!Q162*'Prevalence Rates'!Q162","v":139.2784351013855},{"$f":"'Population 2016'!R162*'Prevalence Rates'!R162","v":61.718196807738494},{"$f":"'Population 2016'!S162*'Prevalence Rates'!S162","v":2279.2182154477518},{"$f":"'Population 2016'!T162*'Prevalence Rates'!T162","v":1053.4035693299832},{"$f":"'Population 2016'!U162*'Prevalence Rates'!U162","v":150.41142739116137},{"$f":"'Population 2016'!V162*'Prevalence Rates'!V162","v":199.18895078392603},{"$f":"'Population 2016'!W162*'Prevalence Rates'!W162","v":474.98903648474669},{"$f":"'Population 2016'!X162*'Prevalence Rates'!X162","v":477.00440129117493},{"$f":"'Population 2016'!Y162*'Prevalence Rates'!Y162","v":461.13665259309676},{"$f":"'Population 2016'!Z162*'Prevalence Rates'!Z162","v":782.10049176251812},{"$f":"'Population 2016'!AA162*'Prevalence Rates'!AA162","v":1898.9583300816441},{"$f":"'Population 2016'!AB162*'Prevalence Rates'!AB162","v":711.16662601826749},{"$f":"'Population 2016'!AC162*'Prevalence Rates'!AC162","v":1158.0237414231676},{"$f":"'Population 2016'!AD162*'Prevalence Rates'!AD162","v":625.74861573846215},{"$f":"'Population 2016'!AE162*'Prevalence Rates'!AE162","v":414.65041903923515},{"$f":"'Population 2016'!AF162*'Prevalence Rates'!AF162","v":76.21402014626203},{"$f":"'Population 2016'!AG162*'Prevalence Rates'!AG162","v":450.09383701315613},{"$f":"'Population 2016'!AH162*'Prevalence Rates'!AH162","v":732.79213978891823},{"$f":"'Population 2016'!AI162*'Prevalence Rates'!AI162","v":1595.3439376413412},{"$f":"'Population 2016'!AJ162*'Prevalence Rates'!AJ162","v":151.1428943877998},{"$f":"'Population 2016'!AK162*'Prevalence Rates'!AK162","v":122.72144629890185},{"$f":"'Population 2016'!AL162*'Prevalence Rates'!AL162","v":122.15215406434351},{"$f":"'Population 2016'!AM162*'Prevalence Rates'!AM162","v":386.2083461399115},{"$f":"'Population 2016'!AN162*'Prevalence Rates'!AN162","v":40.909001412353355},{"$f":"'Population 2016'!AO162*'Prevalence Rates'!AO162","v":40.909001412353355},{"$f":"'Population 2016'!AP162*'Prevalence Rates'!AP162","v":186.95186854508546},{"$f":"'Population 2016'!AQ162*'Prevalence Rates'!AQ162","v":169.73748285288249},{"$f":"'Population 2016'!AR162*'Prevalence Rates'!AR162","v":7258.3359440854574},{"$f":"'Population 2016'!AS162*'Prevalence Rates'!AS162","v":214.39411449117026},{"$f":"'Population 2016'!AT162*'Prevalence Rates'!AT162","v":56.118055917070897},{"$f":"'Population 2016'!AU162*'Prevalence Rates'!AU162","v":56.118055917070897},{"$f":"'Population 2016'!AV162*'Prevalence Rates'!AV162","v":132.48970357907831},{"$f":"'Population 2016'!AW162*'Prevalence Rates'!AW162","v":334.30984126418645},{"$f":"'Population 2016'!AX162*'Prevalence Rates'!AX162","v":96.445225016290777},{"$f":"'Population 2016'!AY162*'Prevalence Rates'!AY162","v":905.92537426064951},{"$f":"'Population 2016'!AZ162*'Prevalence Rates'!AZ162","v":429.46380356248034},{"$f":"'Population 2016'!BA162*'Prevalence Rates'!BA162","v":71.481549031042036},{"$f":"'Population 2016'!BB162*'Prevalence Rates'!BB162","v":306.00200628387887},{"$f":"'Population 2016'!BC162*'Prevalence Rates'!BC162","v":103.8161535580888},160]
[null,"Male 40-44",{"$f":"'Population 2016'!C163*'Prevalence Rates'!C163","v":263.94116965531055},{"$f":"'Population 2016'!D163*'Prevalence Rates'!D163","v":564.47917501095083},{"$f":"'Population 2016'!E163*'Prevalence Rates'!E163","v":292.23946821093062},{"$f":"'Population 2016'!F163*'Prevalence Rates'!F163","v":253.248666659012},{"$f":"'Population 2016'!G163*'Prevalence Rates'!G163","v":213.02561178388788},{"$f":"'Population 2016'!H163*'Prevalence Rates'!H163","v":457.11774846116731},{"$f":"'Population 2016'!I163*'Prevalence Rates'!I163","v":281.9218415704251},{"$f":"'Population 2016'!J163*'Prevalence Rates'!J163","v":196.98207703475745},{"$f":"'Population 2016'!K163*'Prevalence Rates'!K163","v":83.999016246399464},{"$f":"'Population 2016'!L163*'Prevalence Rates'!L163","v":304.620674586289},{"$f":"'Population 2016'!M163*'Prevalence Rates'!M163","v":323.81174214643249},{"$f":"'Population 2016'!N163*'Prevalence Rates'!N163","v":90.263881116501096},{"$f":"'Population 2016'!O163*'Prevalence Rates'!O163","v":146.34355998349244},{"$f":"'Population 2016'!P163*'Prevalence Rates'!P163","v":44.578103944946292},{"$f":"'Population 2016'!Q163*'Prevalence Rates'!Q163","v":180.8040426038356},{"$f":"'Population 2016'!R163*'Prevalence Rates'!R163","v":62.187536707417109},{"$f":"'Population 2016'!S163*'Prevalence Rates'!S163","v":2237.2488786743688},{"$f":"'Population 2016'!T163*'Prevalence Rates'!T163","v":787.43303675778429},{"$f":"'Population 2016'!U163*'Prevalence Rates'!U163","v":170.77014584612667},{"$f":"'Population 2016'!V163*'Prevalence Rates'!V163","v":203.01950752977078},{"$f":"'Population 2016'!W163*'Prevalence Rates'!W163","v":507.54876882442693},{"$f":"'Population 2016'!X163*'Prevalence Rates'!X163","v":509.70228363774743},{"$f":"'Population 2016'!Y163*'Prevalence Rates'!Y163","v":488.31390778394461},{"$f":"'Population 2016'!Z163*'Prevalence Rates'!Z163","v":567.49974707158322},{"$f":"'Population 2016'!AA163*'Prevalence Rates'!AA163","v":1751.1537682446558},{"$f":"'Population 2016'!AB163*'Prevalence Rates'!AB163","v":694.14348796939316},{"$f":"'Population 2016'!AC163*'Prevalence Rates'!AC163","v":980.71145506200162},{"$f":"'Population 2016'!AD163*'Prevalence Rates'!AD163","v":652.85685901955071},{"$f":"'Population 2016'!AE163*'Prevalence Rates'!AE163","v":407.32813616013664},{"$f":"'Population 2016'!AF163*'Prevalence Rates'!AF163","v":76.653294037594961},{"$f":"'Population 2016'!AG163*'Prevalence Rates'!AG163","v":442.1456612838623},{"$f":"'Population 2016'!AH163*'Prevalence Rates'!AH163","v":753.29652236146376},{"$f":"'Population 2016'!AI163*'Prevalence Rates'!AI163","v":1435.671657625034},{"$f":"'Population 2016'!AJ163*'Prevalence Rates'!AJ163","v":165.07073789793836},{"$f":"'Population 2016'!AK163*'Prevalence Rates'!AK163","v":136.64006123183401},{"$f":"'Population 2016'!AL163*'Prevalence Rates'!AL163","v":150.85937492358968},{"$f":"'Population 2016'!AM163*'Prevalence Rates'!AM163","v":384.19684433709949},{"$f":"'Population 2016'!AN163*'Prevalence Rates'!AN163","v":41.919100212658378},{"$f":"'Population 2016'!AO163*'Prevalence Rates'!AO163","v":41.919100212658378},{"$f":"'Population 2016'!AP163*'Prevalence Rates'!AP163","v":183.18107714130986},{"$f":"'Population 2016'!AQ163*'Prevalence Rates'!AQ163","v":173.0055932327214},{"$f":"'Population 2016'!AR163*'Prevalence Rates'!AR163","v":7218.4238271685635},{"$f":"'Population 2016'!AS163*'Prevalence Rates'!AS163","v":281.9218415704251},{"$f":"'Population 2016'!AT163*'Prevalence Rates'!AT163","v":54.870988007802652},{"$f":"'Population 2016'!AU163*'Prevalence Rates'!AU163","v":54.870988007802652},{"$f":"'Population 2016'!AV163*'Prevalence Rates'!AV163","v":150.10923237975021},{"$f":"'Population 2016'!AW163*'Prevalence Rates'!AW163","v":357.35222518309649},{"$f":"'Population 2016'!AX163*'Prevalence Rates'!AX163","v":97.593382456960896},{"$f":"'Population 2016'!AY163*'Prevalence Rates'!AY163","v":955.01492656048777},{"$f":"'Population 2016'!AZ163*'Prevalence Rates'!AZ163","v":447.08644630201582},{"$f":"'Population 2016'!BA163*'Prevalence Rates'!BA163","v":86.983571712472838},{"$f":"'Population 2016'!BB163*'Prevalence Rates'!BB163","v":323.01581646404617},{"$f":"'Population 2016'!BC163*'Prevalence Rates'!BC163","v":117.86803696898163},161]
[null,"Male 45-49",{"$f":"'Population 2016'!C164*'Prevalence Rates'!C164","v":252.29739417753601},{"$f":"'Population 2016'!D164*'Prevalence Rates'!D164","v":630.13973581440939},{"$f":"'Population 2016'!E164*'Prevalence Rates'!E164","v":357.42156615074504},{"$f":"'Population 2016'!F164*'Prevalence Rates'!F164","v":296.53607551918304},{"$f":"'Population 2016'!G164*'Prevalence Rates'!G164","v":274.78944080712404},{"$f":"'Population 2016'!H164*'Prevalence Rates'!H164","v":573.32722803387071},{"$f":"'Population 2016'!I164*'Prevalence Rates'!I164","v":339.2879552100423},{"$f":"'Population 2016'!J164*'Prevalence Rates'!J164","v":235.61272601339445},{"$f":"'Population 2016'!K164*'Prevalence Rates'!K164","v":103.49411963397492},{"$f":"'Population 2016'!L164*'Prevalence Rates'!L164","v":408.65343282888239},{"$f":"'Population 2016'!M164*'Prevalence Rates'!M164","v":434.3985522261612},{"$f":"'Population 2016'!N164*'Prevalence Rates'!N164","v":91.991231850349891},{"$f":"'Population 2016'!O164*'Prevalence Rates'!O164","v":186.45834125863249},{"$f":"'Population 2016'!P164*'Prevalence Rates'!P164","v":54.412458430023079},{"$f":"'Population 2016'!Q164*'Prevalence Rates'!Q164","v":201.13474030333938},{"$f":"'Population 2016'!R164*'Prevalence Rates'!R164","v":69.59530171577795},{"$f":"'Population 2016'!S164*'Prevalence Rates'!S164","v":2376.4289453436563},{"$f":"'Population 2016'!T164*'Prevalence Rates'!T164","v":671.2639862787247},{"$f":"'Population 2016'!U164*'Prevalence Rates'!U164","v":223.07206495155935},{"$f":"'Population 2016'!V164*'Prevalence Rates'!V164","v":240.03246582188396},{"$f":"'Population 2016'!W164*'Prevalence Rates'!W164","v":589.11416396112384},{"$f":"'Population 2016'!X164*'Prevalence Rates'!X164","v":591.61375839766561},{"$f":"'Population 2016'!Y164*'Prevalence Rates'!Y164","v":580.23107420902488},{"$f":"'Population 2016'!Z164*'Prevalence Rates'!Z164","v":574.55196000531225},{"$f":"'Population 2016'!AA164*'Prevalence Rates'!AA164","v":1965.8823241348484},{"$f":"'Population 2016'!AB164*'Prevalence Rates'!AB164","v":785.17022293567675},{"$f":"'Population 2016'!AC164*'Prevalence Rates'!AC164","v":1075.7269392134638},{"$f":"'Population 2016'!AD164*'Prevalence Rates'!AD164","v":834.47249050860501},{"$f":"'Population 2016'!AE164*'Prevalence Rates'!AE164","v":518.32300435256684},{"$f":"'Population 2016'!AF164*'Prevalence Rates'!AF164","v":85.852718370485164},{"$f":"'Population 2016'!AG164*'Prevalence Rates'!AG164","v":562.62812993602415},{"$f":"'Population 2016'!AH164*'Prevalence Rates'!AH164","v":868.11694065753693},{"$f":"'Population 2016'!AI164*'Prevalence Rates'!AI164","v":1417.4270742804758},{"$f":"'Population 2016'!AJ164*'Prevalence Rates'!AJ164","v":186.33804494436555},{"$f":"'Population 2016'!AK164*'Prevalence Rates'!AK164","v":161.24985524305615},{"$f":"'Population 2016'!AL164*'Prevalence Rates'!AL164","v":191.97628070727302},{"$f":"'Population 2016'!AM164*'Prevalence Rates'!AM164","v":418.02568983428949},{"$f":"'Population 2016'!AN164*'Prevalence Rates'!AN164","v":53.037154692910839},{"$f":"'Population 2016'!AO164*'Prevalence Rates'!AO164","v":53.037154692910839},{"$f":"'Population 2016'!AP164*'Prevalence Rates'!AP164","v":232.92107166410881},{"$f":"'Population 2016'!AQ164*'Prevalence Rates'!AQ164","v":217.67567002856563},{"$f":"'Population 2016'!AR164*'Prevalence Rates'!AR164","v":8302.1621789866767},{"$f":"'Population 2016'!AS164*'Prevalence Rates'!AS164","v":339.2879552100423},{"$f":"'Population 2016'!AT164*'Prevalence Rates'!AT164","v":63.782046519962982},{"$f":"'Population 2016'!AU164*'Prevalence Rates'!AU164","v":63.782046519962982},{"$f":"'Population 2016'!AV164*'Prevalence Rates'!AV164","v":183.33837534727979},{"$f":"'Population 2016'!AW164*'Prevalence Rates'!AW164","v":438.23171821601505},{"$f":"'Population 2016'!AX164*'Prevalence Rates'!AX164","v":114.32047055204755},{"$f":"'Population 2016'!AY164*'Prevalence Rates'!AY164","v":1117.4623121338905},{"$f":"'Population 2016'!AZ164*'Prevalence Rates'!AZ164","v":527.08416637715447},{"$f":"'Population 2016'!BA164*'Prevalence Rates'!BA164","v":103.42021173816067},{"$f":"'Population 2016'!BB164*'Prevalence Rates'!BB164","v":359.87840482192473},{"$f":"'Population 2016'!BC164*'Prevalence Rates'!BC164","v":153.96758179353537},162]
[null,"Male 50-54",{"$f":"'Population 2016'!C165*'Prevalence Rates'!C165","v":257.85035117857268},{"$f":"'Population 2016'!D165*'Prevalence Rates'!D165","v":630.96479602496834},{"$f":"'Population 2016'!E165*'Prevalence Rates'!E165","v":354.04295433140959},{"$f":"'Population 2016'!F165*'Prevalence Rates'!F165","v":345.09169022407849},{"$f":"'Population 2016'!G165*'Prevalence Rates'!G165","v":307.29850334865432},{"$f":"'Population 2016'!H165*'Prevalence Rates'!H165","v":641.24752682533972},{"$f":"'Population 2016'!I165*'Prevalence Rates'!I165","v":389.71927747084328},{"$f":"'Population 2016'!J165*'Prevalence Rates'!J165","v":252.70934105291514},{"$f":"'Population 2016'!K165*'Prevalence Rates'!K165","v":106.29125800246072},{"$f":"'Population 2016'!L165*'Prevalence Rates'!L165","v":475.39004858248569},{"$f":"'Population 2016'!M165*'Prevalence Rates'!M165","v":505.33956711781423},{"$f":"'Population 2016'!N165*'Prevalence Rates'!N165","v":117.8809797363765},{"$f":"'Population 2016'!O165*'Prevalence Rates'!O165","v":211.45964766799798},{"$f":"'Population 2016'!P165*'Prevalence Rates'!P165","v":55.79582601722705},{"$f":"'Population 2016'!Q165*'Prevalence Rates'!Q165","v":205.39819489829796},{"$f":"'Population 2016'!R165*'Prevalence Rates'!R165","v":88.534351035153591},{"$f":"'Population 2016'!S165*'Prevalence Rates'!S165","v":2459.048156464959},{"$f":"'Population 2016'!T165*'Prevalence Rates'!T165","v":659.57680080333625},{"$f":"'Population 2016'!U165*'Prevalence Rates'!U165","v":212.73097584784469},{"$f":"'Population 2016'!V165*'Prevalence Rates'!V165","v":248.93022102045379},{"$f":"'Population 2016'!W165*'Prevalence Rates'!W165","v":613.94510870131865},{"$f":"'Population 2016'!X165*'Prevalence Rates'!X165","v":616.55006012148715},{"$f":"'Population 2016'!Y165*'Prevalence Rates'!Y165","v":610.63495517884155},{"$f":"'Population 2016'!Z165*'Prevalence Rates'!Z165","v":576.53926501686033},{"$f":"'Population 2016'!AA165*'Prevalence Rates'!AA165","v":2054.2005008368428},{"$f":"'Population 2016'!AB165*'Prevalence Rates'!AB165","v":790.62279392828555},{"$f":"'Population 2016'!AC165*'Prevalence Rates'!AC165","v":1159.1036328467565},{"$f":"'Population 2016'!AD165*'Prevalence Rates'!AD165","v":966.9249547825425},{"$f":"'Population 2016'!AE165*'Prevalence Rates'!AE165","v":610.88068370123938},{"$f":"'Population 2016'!AF165*'Prevalence Rates'!AF165","v":102.29714452602586},{"$f":"'Population 2016'!AG165*'Prevalence Rates'!AG165","v":663.0974388531713},{"$f":"'Population 2016'!AH165*'Prevalence Rates'!AH165","v":875.94284997447539},{"$f":"'Population 2016'!AI165*'Prevalence Rates'!AI165","v":1419.5722533561934},{"$f":"'Population 2016'!AJ165*'Prevalence Rates'!AJ165","v":187.84279362493913},{"$f":"'Population 2016'!AK165*'Prevalence Rates'!AK165","v":165.21095711187226},{"$f":"'Population 2016'!AL165*'Prevalence Rates'!AL165","v":215.33244542240121},{"$f":"'Population 2016'!AM165*'Prevalence Rates'!AM165","v":412.51365394111087},{"$f":"'Population 2016'!AN165*'Prevalence Rates'!AN165","v":69.734036725864243},{"$f":"'Population 2016'!AO165*'Prevalence Rates'!AO165","v":69.734036725864243},{"$f":"'Population 2016'!AP165*'Prevalence Rates'!AP165","v":273.83181498870783},{"$f":"'Population 2016'!AQ165*'Prevalence Rates'!AQ165","v":251.63784117353347},{"$f":"'Population 2016'!AR165*'Prevalence Rates'!AR165","v":8905.2381546454526},{"$f":"'Population 2016'!AS165*'Prevalence Rates'!AS165","v":389.71927747084328},{"$f":"'Population 2016'!AT165*'Prevalence Rates'!AT165","v":72.755186144444465},{"$f":"'Population 2016'!AU165*'Prevalence Rates'!AU165","v":72.755186144444465},{"$f":"'Population 2016'!AV165*'Prevalence Rates'!AV165","v":201.80571169900821},{"$f":"'Population 2016'!AW165*'Prevalence Rates'!AW165","v":452.09260011799472},{"$f":"'Population 2016'!AX165*'Prevalence Rates'!AX165","v":126.37770768058382},{"$f":"'Population 2016'!AY165*'Prevalence Rates'!AY165","v":1248.9617603117263},{"$f":"'Population 2016'!AZ165*'Prevalence Rates'!AZ165","v":625.95528601292108},{"$f":"'Population 2016'!BA165*'Prevalence Rates'!BA165","v":114.3065498158618},{"$f":"'Population 2016'!BB165*'Prevalence Rates'!BB165","v":365.63262315352114},{"$f":"'Population 2016'!BC165*'Prevalence Rates'!BC165","v":146.83001177661652},163]
[null,"Male 55-59",{"$f":"'Population 2016'!C166*'Prevalence Rates'!C166","v":278.79927198022284},{"$f":"'Population 2016'!D166*'Prevalence Rates'!D166","v":701.98958737154339},{"$f":"'Population 2016'!E166*'Prevalence Rates'!E166","v":399.84419441067553},{"$f":"'Population 2016'!F166*'Prevalence Rates'!F166","v":390.14224396922248},{"$f":"'Population 2016'!G166*'Prevalence Rates'!G166","v":378.46879223934729},{"$f":"'Population 2016'!H166*'Prevalence Rates'!H166","v":684.80247453407901},{"$f":"'Population 2016'!I166*'Prevalence Rates'!I166","v":465.78510698945377},{"$f":"'Population 2016'!J166*'Prevalence Rates'!J166","v":289.25994981500668},{"$f":"'Population 2016'!K166*'Prevalence Rates'!K166","v":128.24692988200391},{"$f":"'Population 2016'!L166*'Prevalence Rates'!L166","v":556.43829571559195},{"$f":"'Population 2016'!M166*'Prevalence Rates'!M166","v":591.49384452439119},{"$f":"'Population 2016'!N166*'Prevalence Rates'!N166","v":133.44433759278996},{"$f":"'Population 2016'!O166*'Prevalence Rates'!O166","v":203.14850784969391},{"$f":"'Population 2016'!P166*'Prevalence Rates'!P166","v":64.944668914270508},{"$f":"'Population 2016'!Q166*'Prevalence Rates'!Q166","v":256.57826463538339},{"$f":"'Population 2016'!R166*'Prevalence Rates'!R166","v":105.7325876525593},{"$f":"'Population 2016'!S166*'Prevalence Rates'!S166","v":2806.5290759860277},{"$f":"'Population 2016'!T166*'Prevalence Rates'!T166","v":677.48586872258352},{"$f":"'Population 2016'!U166*'Prevalence Rates'!U166","v":255.44043957666443},{"$f":"'Population 2016'!V166*'Prevalence Rates'!V166","v":257.87430766665585},{"$f":"'Population 2016'!W166*'Prevalence Rates'!W166","v":733.25121142788839},{"$f":"'Population 2016'!X166*'Prevalence Rates'!X166","v":736.36237520699194},{"$f":"'Population 2016'!Y166*'Prevalence Rates'!Y166","v":661.79547750329743},{"$f":"'Population 2016'!Z166*'Prevalence Rates'!Z166","v":623.86875264234311},{"$f":"'Population 2016'!AA166*'Prevalence Rates'!AA166","v":2270.4050281640871},{"$f":"'Population 2016'!AB166*'Prevalence Rates'!AB166","v":891.18330842592866},{"$f":"'Population 2016'!AC166*'Prevalence Rates'!AC166","v":1292.8350445923065},{"$f":"'Population 2016'!AD166*'Prevalence Rates'!AD166","v":1173.172901633646},{"$f":"'Population 2016'!AE166*'Prevalence Rates'!AE166","v":735.97623114061923},{"$f":"'Population 2016'!AF166*'Prevalence Rates'!AF166","v":133.0742661021215},{"$f":"'Population 2016'!AG166*'Prevalence Rates'!AG166","v":798.88588221399698},{"$f":"'Population 2016'!AH166*'Prevalence Rates'!AH166","v":957.69734089927601},{"$f":"'Population 2016'!AI166*'Prevalence Rates'!AI166","v":1555.4351121205086},{"$f":"'Population 2016'!AJ166*'Prevalence Rates'!AJ166","v":211.6235508077298},{"$f":"'Population 2016'!AK166*'Prevalence Rates'!AK166","v":193.60876897151155},{"$f":"'Population 2016'!AL166*'Prevalence Rates'!AL166","v":250.76681060827264},{"$f":"'Population 2016'!AM166*'Prevalence Rates'!AM166","v":416.07392489476035},{"$f":"'Population 2016'!AN166*'Prevalence Rates'!AN166","v":90.722346887956007},{"$f":"'Population 2016'!AO166*'Prevalence Rates'!AO166","v":90.722346887956007},{"$f":"'Population 2016'!AP166*'Prevalence Rates'!AP166","v":311.55496486116039},{"$f":"'Population 2016'!AQ166*'Prevalence Rates'!AQ166","v":265.43309543596212},{"$f":"'Population 2016'!AR166*'Prevalence Rates'!AR166","v":10095.131673465025},{"$f":"'Population 2016'!AS166*'Prevalence Rates'!AS166","v":465.78510698945377},{"$f":"'Population 2016'!AT166*'Prevalence Rates'!AT166","v":79.845721105738278},{"$f":"'Population 2016'!AU166*'Prevalence Rates'!AU166","v":79.845721105738278},{"$f":"'Population 2016'!AV166*'Prevalence Rates'!AV166","v":220.84916091186918},{"$f":"'Population 2016'!AW166*'Prevalence Rates'!AW166","v":531.6001180104688},{"$f":"'Population 2016'!AX166*'Prevalence Rates'!AX166","v":139.40205796239709},{"$f":"'Population 2016'!AY166*'Prevalence Rates'!AY166","v":1449.822158104701},{"$f":"'Population 2016'!AZ166*'Prevalence Rates'!AZ166","v":709.588392178091},{"$f":"'Population 2016'!BA166*'Prevalence Rates'!BA166","v":134.27940235809808},{"$f":"'Population 2016'!BB166*'Prevalence Rates'!BB166","v":401.12006568898033},{"$f":"'Population 2016'!BC166*'Prevalence Rates'!BC166","v":176.30870446479801},164]
[null,"Male 60-64",{"$f":"'Population 2016'!C167*'Prevalence Rates'!C167","v":250.24221877844712},{"$f":"'Population 2016'!D167*'Prevalence Rates'!D167","v":647.40995983316122},{"$f":"'Population 2016'!E167*'Prevalence Rates'!E167","v":373.82396483948185},{"$f":"'Population 2016'!F167*'Prevalence Rates'!F167","v":331.99096099278012},{"$f":"'Population 2016'!G167*'Prevalence Rates'!G167","v":366.95134137856036},{"$f":"'Population 2016'!H167*'Prevalence Rates'!H167","v":659.83413175426824},{"$f":"'Population 2016'!I167*'Prevalence Rates'!I167","v":410.98685910834155},{"$f":"'Population 2016'!J167*'Prevalence Rates'!J167","v":253.42819927485945},{"$f":"'Population 2016'!K167*'Prevalence Rates'!K167","v":105.05333617993936},{"$f":"'Population 2016'!L167*'Prevalence Rates'!L167","v":538.47162709799454},{"$f":"'Population 2016'!M167*'Prevalence Rates'!M167","v":572.39527784459131},{"$f":"'Population 2016'!N167*'Prevalence Rates'!N167","v":111.94994764495803},{"$f":"'Population 2016'!O167*'Prevalence Rates'!O167","v":193.74612249339671},{"$f":"'Population 2016'!P167*'Prevalence Rates'!P167","v":57.353733586628508},{"$f":"'Population 2016'!Q167*'Prevalence Rates'!Q167","v":225.99682665738774},{"$f":"'Population 2016'!R167*'Prevalence Rates'!R167","v":82.360120908309355},{"$f":"'Population 2016'!S167*'Prevalence Rates'!S167","v":2388.2820582441741},{"$f":"'Population 2016'!T167*'Prevalence Rates'!T167","v":556.89776911176762},{"$f":"'Population 2016'!U167*'Prevalence Rates'!U167","v":246.07308918316193},{"$f":"'Population 2016'!V167*'Prevalence Rates'!V167","v":213.71774813469423},{"$f":"'Population 2016'!W167*'Prevalence Rates'!W167","v":613.39769269827821},{"$f":"'Population 2016'!X167*'Prevalence Rates'!X167","v":616.00032144810643},{"$f":"'Population 2016'!Y167*'Prevalence Rates'!Y167","v":563.04589054599921},{"$f":"'Population 2016'!Z167*'Prevalence Rates'!Z167","v":521.01253187869395},{"$f":"'Population 2016'!AA167*'Prevalence Rates'!AA167","v":1911.5850873179731},{"$f":"'Population 2016'!AB167*'Prevalence Rates'!AB167","v":809.73490054154456},{"$f":"'Population 2016'!AC167*'Prevalence Rates'!AC167","v":1063.4404842200695},{"$f":"'Population 2016'!AD167*'Prevalence Rates'!AD167","v":1119.0676673573912},{"$f":"'Population 2016'!AE167*'Prevalence Rates'!AE167","v":696.53564443642028},{"$f":"'Population 2016'!AF167*'Prevalence Rates'!AF167","v":99.740594749730974},{"$f":"'Population 2016'!AG167*'Prevalence Rates'!AG167","v":756.07399974954615},{"$f":"'Population 2016'!AH167*'Prevalence Rates'!AH167","v":828.64109187655026},{"$f":"'Population 2016'!AI167*'Prevalence Rates'!AI167","v":1321.6457269689081},{"$f":"'Population 2016'!AJ167*'Prevalence Rates'!AJ167","v":201.22586189521127},{"$f":"'Population 2016'!AK167*'Prevalence Rates'!AK167","v":168.25044787960877},{"$f":"'Population 2016'!AL167*'Prevalence Rates'!AL167","v":222.63369196662433},{"$f":"'Population 2016'!AM167*'Prevalence Rates'!AM167","v":354.93122201809416},{"$f":"'Population 2016'!AN167*'Prevalence Rates'!AN167","v":72.458112035925254},{"$f":"'Population 2016'!AO167*'Prevalence Rates'!AO167","v":72.458112035925254},{"$f":"'Population 2016'!AP167*'Prevalence Rates'!AP167","v":293.90645854349646},{"$f":"'Population 2016'!AQ167*'Prevalence Rates'!AQ167","v":213.60583045120308},{"$f":"'Population 2016'!AR167*'Prevalence Rates'!AR167","v":8939.481761824256},{"$f":"'Population 2016'!AS167*'Prevalence Rates'!AS167","v":410.98685910834155},{"$f":"'Population 2016'!AT167*'Prevalence Rates'!AT167","v":78.662821533801406},{"$f":"'Population 2016'!AU167*'Prevalence Rates'!AU167","v":78.662821533801406},{"$f":"'Population 2016'!AV167*'Prevalence Rates'!AV167","v":229.53119180766748},{"$f":"'Population 2016'!AW167*'Prevalence Rates'!AW167","v":465.38163641160378},{"$f":"'Population 2016'!AX167*'Prevalence Rates'!AX167","v":127.9667328951692},{"$f":"'Population 2016'!AY167*'Prevalence Rates'!AY167","v":1250.5923915355688},{"$f":"'Population 2016'!AZ167*'Prevalence Rates'!AZ167","v":627.88961086430027},{"$f":"'Population 2016'!BA167*'Prevalence Rates'!BA167","v":118.19650815931448},{"$f":"'Population 2016'!BB167*'Prevalence Rates'!BB167","v":327.73731314675433},{"$f":"'Population 2016'!BC167*'Prevalence Rates'!BC167","v":169.843223059883},165]
[null,"Male 65-69",{"$f":"'Population 2016'!C168*'Prevalence Rates'!C168","v":235.9806130970104},{"$f":"'Population 2016'!D168*'Prevalence Rates'!D168","v":653.58862059287196},{"$f":"'Population 2016'!E168*'Prevalence Rates'!E168","v":389.65465218984048},{"$f":"'Population 2016'!F168*'Prevalence Rates'!F168","v":387.02101291708993},{"$f":"'Population 2016'!G168*'Prevalence Rates'!G168","v":420.02114692500709},{"$f":"'Population 2016'!H168*'Prevalence Rates'!H168","v":706.03161891659067},{"$f":"'Population 2016'!I168*'Prevalence Rates'!I168","v":444.83796014411001},{"$f":"'Population 2016'!J168*'Prevalence Rates'!J168","v":259.47406914898244},{"$f":"'Population 2016'!K168*'Prevalence Rates'!K168","v":111.13146330916905},{"$f":"'Population 2016'!L168*'Prevalence Rates'!L168","v":578.31314014242889},{"$f":"'Population 2016'!M168*'Prevalence Rates'!M168","v":614.74680164116023},{"$f":"'Population 2016'!N168*'Prevalence Rates'!N168","v":112.55950537948689},{"$f":"'Population 2016'!O168*'Prevalence Rates'!O168","v":201.89736110241429},{"$f":"'Population 2016'!P168*'Prevalence Rates'!P168","v":62.379918377847908},{"$f":"'Population 2016'!Q168*'Prevalence Rates'!Q168","v":211.20113631770644},{"$f":"'Population 2016'!R168*'Prevalence Rates'!R168","v":72.581522227182091},{"$f":"'Population 2016'!S168*'Prevalence Rates'!S168","v":2397.3383865412306},{"$f":"'Population 2016'!T168*'Prevalence Rates'!T168","v":501.807957979874},{"$f":"'Population 2016'!U168*'Prevalence Rates'!U168","v":267.54234661422237},{"$f":"'Population 2016'!V168*'Prevalence Rates'!V168","v":229.7395979229936},{"$f":"'Population 2016'!W168*'Prevalence Rates'!W168","v":654.16522174779959},{"$f":"'Population 2016'!X168*'Prevalence Rates'!X168","v":656.94082594964982},{"$f":"'Population 2016'!Y168*'Prevalence Rates'!Y168","v":591.4779984893529},{"$f":"'Population 2016'!Z168*'Prevalence Rates'!Z168","v":413.08162844053084},{"$f":"'Population 2016'!AA168*'Prevalence Rates'!AA168","v":1728.0392036901426},{"$f":"'Population 2016'!AB168*'Prevalence Rates'!AB168","v":823.29045361110809},{"$f":"'Population 2016'!AC168*'Prevalence Rates'!AC168","v":942.60289971230236},{"$f":"'Population 2016'!AD168*'Prevalence Rates'!AD168","v":1159.9436772632612},{"$f":"'Population 2016'!AE168*'Prevalence Rates'!AE168","v":685.24295870249261},{"$f":"'Population 2016'!AF168*'Prevalence Rates'!AF168","v":93.178669901178523},{"$f":"'Population 2016'!AG168*'Prevalence Rates'!AG168","v":743.81603974568509},{"$f":"'Population 2016'!AH168*'Prevalence Rates'!AH168","v":765.73512499396713},{"$f":"'Population 2016'!AI168*'Prevalence Rates'!AI168","v":1242.1582183471226},{"$f":"'Population 2016'!AJ168*'Prevalence Rates'!AJ168","v":202.33741279641342},{"$f":"'Population 2016'!AK168*'Prevalence Rates'!AK168","v":174.79541172189721},{"$f":"'Population 2016'!AL168*'Prevalence Rates'!AL168","v":264.86080656679849},{"$f":"'Population 2016'!AM168*'Prevalence Rates'!AM168","v":357.3357609186653},{"$f":"'Population 2016'!AN168*'Prevalence Rates'!AN168","v":70.024143555991188},{"$f":"'Population 2016'!AO168*'Prevalence Rates'!AO168","v":70.024143555991188},{"$f":"'Population 2016'!AP168*'Prevalence Rates'!AP168","v":284.10176127139135},{"$f":"'Population 2016'!AQ168*'Prevalence Rates'!AQ168","v":222.20176243009931},{"$f":"'Population 2016'!AR168*'Prevalence Rates'!AR168","v":8967.8719970450384},{"$f":"'Population 2016'!AS168*'Prevalence Rates'!AS168","v":444.83796014411001},{"$f":"'Population 2016'!AT168*'Prevalence Rates'!AT168","v":81.87059616544434},{"$f":"'Population 2016'!AU168*'Prevalence Rates'!AU168","v":81.87059616544434},{"$f":"'Population 2016'!AV168*'Prevalence Rates'!AV168","v":229.94686946746492},{"$f":"'Population 2016'!AW168*'Prevalence Rates'!AW168","v":398.71150066216484},{"$f":"'Population 2016'!AX168*'Prevalence Rates'!AX168","v":128.16824330244049},{"$f":"'Population 2016'!AY168*'Prevalence Rates'!AY168","v":1326.6991403348397},{"$f":"'Population 2016'!AZ168*'Prevalence Rates'!AZ168","v":663.25359878719769},{"$f":"'Population 2016'!BA168*'Prevalence Rates'!BA168","v":101.5469837420786},{"$f":"'Population 2016'!BB168*'Prevalence Rates'!BB168","v":313.82306392797648},{"$f":"'Population 2016'!BC168*'Prevalence Rates'!BC168","v":184.66161661481371},166]
[null,"Male 70-74",{"$f":"'Population 2016'!C169*'Prevalence Rates'!C169","v":145.94312231436055},{"$f":"'Population 2016'!D169*'Prevalence Rates'!D169","v":444.94302248053208},{"$f":"'Population 2016'!E169*'Prevalence Rates'!E169","v":276.09567680192254},{"$f":"'Population 2016'!F169*'Prevalence Rates'!F169","v":252.8185046837236},{"$f":"'Population 2016'!G169*'Prevalence Rates'!G169","v":303.3039894620988},{"$f":"'Population 2016'!H169*'Prevalence Rates'!H169","v":535.9145176345329},{"$f":"'Population 2016'!I169*'Prevalence Rates'!I169","v":328.30380232249979},{"$f":"'Population 2016'!J169*'Prevalence Rates'!J169","v":185.89672959105269},{"$f":"'Population 2016'!K169*'Prevalence Rates'!K169","v":84.882620748414396},{"$f":"'Population 2016'!L169*'Prevalence Rates'!L169","v":463.44272189496013},{"$f":"'Population 2016'!M169*'Prevalence Rates'!M169","v":492.6395602192859},{"$f":"'Population 2016'!N169*'Prevalence Rates'!N169","v":79.216828835662739},{"$f":"'Population 2016'!O169*'Prevalence Rates'!O169","v":155.19613794191227},{"$f":"'Population 2016'!P169*'Prevalence Rates'!P169","v":34.561846668807625},{"$f":"'Population 2016'!Q169*'Prevalence Rates'!Q169","v":160.76960593793572},{"$f":"'Population 2016'!R169*'Prevalence Rates'!R169","v":60.345556794247173},{"$f":"'Population 2016'!S169*'Prevalence Rates'!S169","v":1707.4590315749938},{"$f":"'Population 2016'!T169*'Prevalence Rates'!T169","v":297.65173635632993},{"$f":"'Population 2016'!U169*'Prevalence Rates'!U169","v":193.00497683071762},{"$f":"'Population 2016'!V169*'Prevalence Rates'!V169","v":173.25038833490296},{"$f":"'Population 2016'!W169*'Prevalence Rates'!W169","v":479.14954561326874},{"$f":"'Population 2016'!X169*'Prevalence Rates'!X169","v":481.18256334014444},{"$f":"'Population 2016'!Y169*'Prevalence Rates'!Y169","v":435.64363120585824},{"$f":"'Population 2016'!Z169*'Prevalence Rates'!Z169","v":293.05921392295642},{"$f":"'Population 2016'!AA169*'Prevalence Rates'!AA169","v":1268.1420203750988},{"$f":"'Population 2016'!AB169*'Prevalence Rates'!AB169","v":571.48556134204341},{"$f":"'Population 2016'!AC169*'Prevalence Rates'!AC169","v":692.65483936063822},{"$f":"'Population 2016'!AD169*'Prevalence Rates'!AD169","v":871.36318243524465},{"$f":"'Population 2016'!AE169*'Prevalence Rates'!AE169","v":526.08015859865748},{"$f":"'Population 2016'!AF169*'Prevalence Rates'!AF169","v":78.342959888979706},{"$f":"'Population 2016'!AG169*'Prevalence Rates'!AG169","v":571.04834889303311},{"$f":"'Population 2016'!AH169*'Prevalence Rates'!AH169","v":561.13033625744151},{"$f":"'Population 2016'!AI169*'Prevalence Rates'!AI169","v":855.22969150603001},{"$f":"'Population 2016'!AJ169*'Prevalence Rates'!AJ169","v":143.65345017268021},{"$f":"'Population 2016'!AK169*'Prevalence Rates'!AK169","v":128.33080860594987},{"$f":"'Population 2016'!AL169*'Prevalence Rates'!AL169","v":199.25308383924289},{"$f":"'Population 2016'!AM169*'Prevalence Rates'!AM169","v":251.37021386637463},{"$f":"'Population 2016'!AN169*'Prevalence Rates'!AN169","v":58.353452963325992},{"$f":"'Population 2016'!AO169*'Prevalence Rates'!AO169","v":58.353452963325992},{"$f":"'Population 2016'!AP169*'Prevalence Rates'!AP169","v":228.12806989507419},{"$f":"'Population 2016'!AQ169*'Prevalence Rates'!AQ169","v":164.35184824622814},{"$f":"'Population 2016'!AR169*'Prevalence Rates'!AR169","v":6566.7471792811884},{"$f":"'Population 2016'!AS169*'Prevalence Rates'!AS169","v":328.30380232249979},{"$f":"'Population 2016'!AT169*'Prevalence Rates'!AT169","v":61.181275834826636},{"$f":"'Population 2016'!AU169*'Prevalence Rates'!AU169","v":61.181275834826636},{"$f":"'Population 2016'!AV169*'Prevalence Rates'!AV169","v":174.08713466758547},{"$f":"'Population 2016'!AW169*'Prevalence Rates'!AW169","v":303.37247670812428},{"$f":"'Population 2016'!AX169*'Prevalence Rates'!AX169","v":87.622450835214096},{"$f":"'Population 2016'!AY169*'Prevalence Rates'!AY169","v":961.33953305718626},{"$f":"'Population 2016'!AZ169*'Prevalence Rates'!AZ169","v":476.34806638337466},{"$f":"'Population 2016'!BA169*'Prevalence Rates'!BA169","v":77.563525270331397},{"$f":"'Population 2016'!BB169*'Prevalence Rates'!BB169","v":235.51339806885386},{"$f":"'Population 2016'!BC169*'Prevalence Rates'!BC169","v":133.21484051889658},167]
[null,"Male 75-79",{"$f":"'Population 2016'!C170*'Prevalence Rates'!C170","v":69.087450468450328},{"$f":"'Population 2016'!D170*'Prevalence Rates'!D170","v":174.70566337506372},{"$f":"'Population 2016'!E170*'Prevalence Rates'!E170","v":99.729517730691043},{"$f":"'Population 2016'!F170*'Prevalence Rates'!F170","v":98.776544856168883},{"$f":"'Population 2016'!G170*'Prevalence Rates'!G170","v":119.13205720787239},{"$f":"'Population 2016'!H170*'Prevalence Rates'!H170","v":207.20394446266732},{"$f":"'Population 2016'!I170*'Prevalence Rates'!I170","v":127.1311910136795},{"$f":"'Population 2016'!J170*'Prevalence Rates'!J170","v":68.099904193845589},{"$f":"'Population 2016'!K170*'Prevalence Rates'!K170","v":29.414010656617396},{"$f":"'Population 2016'!L170*'Prevalence Rates'!L170","v":181.86770596149901},{"$f":"'Population 2016'!M170*'Prevalence Rates'!M170","v":193.32535057756317},{"$f":"'Population 2016'!N170*'Prevalence Rates'!N170","v":36.042572094802296},{"$f":"'Population 2016'!O170*'Prevalence Rates'!O170","v":60.607962595607177},{"$f":"'Population 2016'!P170*'Prevalence Rates'!P170","v":9.9919812128534264},{"$f":"'Population 2016'!Q170*'Prevalence Rates'!Q170","v":55.782053574705337},{"$f":"'Population 2016'!R170*'Prevalence Rates'!R170","v":25.012947998570013},{"$f":"'Population 2016'!S170*'Prevalence Rates'!S170","v":663.60916448811452},{"$f":"'Population 2016'!T170*'Prevalence Rates'!T170","v":124.33192809009614},{"$f":"'Population 2016'!U170*'Prevalence Rates'!U170","v":77.768664002993205},{"$f":"'Population 2016'!V170*'Prevalence Rates'!V170","v":64.355870642481577},{"$f":"'Population 2016'!W170*'Prevalence Rates'!W170","v":189.63881554075513},{"$f":"'Population 2016'!X170*'Prevalence Rates'!X170","v":190.44344757521654},{"$f":"'Population 2016'!Y170*'Prevalence Rates'!Y170","v":160.81055929196569},{"$f":"'Population 2016'!Z170*'Prevalence Rates'!Z170","v":109.20438822737279},{"$f":"'Population 2016'!AA170*'Prevalence Rates'!AA170","v":488.67163572454029},{"$f":"'Population 2016'!AB170*'Prevalence Rates'!AB170","v":234.93637429151389},{"$f":"'Population 2016'!AC170*'Prevalence Rates'!AC170","v":253.13737980976745},{"$f":"'Population 2016'!AD170*'Prevalence Rates'!AD170","v":320.99859832861523},{"$f":"'Population 2016'!AE170*'Prevalence Rates'!AE170","v":186.94879562240124},{"$f":"'Population 2016'!AF170*'Prevalence Rates'!AF170","v":29.127158682253182},{"$f":"'Population 2016'!AG170*'Prevalence Rates'!AG170","v":202.92877296890651},{"$f":"'Population 2016'!AH170*'Prevalence Rates'!AH170","v":228.47934189990943},{"$f":"'Population 2016'!AI170*'Prevalence Rates'!AI170","v":328.46061309476238},{"$f":"'Population 2016'!AJ170*'Prevalence Rates'!AJ170","v":54.982883752718152},{"$f":"'Population 2016'!AK170*'Prevalence Rates'!AK170","v":59.325338428967235},{"$f":"'Population 2016'!AL170*'Prevalence Rates'!AL170","v":77.875584600004899},{"$f":"'Population 2016'!AM170*'Prevalence Rates'!AM170","v":95.868748243138924},{"$f":"'Population 2016'!AN170*'Prevalence Rates'!AN170","v":21.908409627386291},{"$f":"'Population 2016'!AO170*'Prevalence Rates'!AO170","v":21.908409627386291},{"$f":"'Population 2016'!AP170*'Prevalence Rates'!AP170","v":91.256070801141149},{"$f":"'Population 2016'!AQ170*'Prevalence Rates'!AQ170","v":60.630507002076421},{"$f":"'Population 2016'!AR170*'Prevalence Rates'!AR170","v":2550.0691344492943},{"$f":"'Population 2016'!AS170*'Prevalence Rates'!AS170","v":127.1311910136795},{"$f":"'Population 2016'!AT170*'Prevalence Rates'!AT170","v":24.11146787769383},{"$f":"'Population 2016'!AU170*'Prevalence Rates'!AU170","v":24.11146787769383},{"$f":"'Population 2016'!AV170*'Prevalence Rates'!AV170","v":66.079756537307887},{"$f":"'Population 2016'!AW170*'Prevalence Rates'!AW170","v":130.44970900802377},{"$f":"'Population 2016'!AX170*'Prevalence Rates'!AX170","v":33.440922961731992},{"$f":"'Population 2016'!AY170*'Prevalence Rates'!AY170","v":385.12742118336422},{"$f":"'Population 2016'!AZ170*'Prevalence Rates'!AZ170","v":192.75013880622313},{"$f":"'Population 2016'!BA170*'Prevalence Rates'!BA170","v":24.950337858956178},{"$f":"'Population 2016'!BB170*'Prevalence Rates'!BB170","v":88.320045403027635},{"$f":"'Population 2016'!BC170*'Prevalence Rates'!BC170","v":53.677062336133289},168]
[null,"Male 80-84",{"$f":"'Population 2016'!C171*'Prevalence Rates'!C171","v":48.776663248326848},{"$f":"'Population 2016'!D171*'Prevalence Rates'!D171","v":120.41413668288817},{"$f":"'Population 2016'!E171*'Prevalence Rates'!E171","v":67.88406945532266},{"$f":"'Population 2016'!F171*'Prevalence Rates'!F171","v":64.93003647888024},{"$f":"'Population 2016'!G171*'Prevalence Rates'!G171","v":71.115258591773411},{"$f":"'Population 2016'!H171*'Prevalence Rates'!H171","v":127.79168003342693},{"$f":"'Population 2016'!I171*'Prevalence Rates'!I171","v":83.056923290539046},{"$f":"'Population 2016'!J171*'Prevalence Rates'!J171","v":48.180682217145751},{"$f":"'Population 2016'!K171*'Prevalence Rates'!K171","v":18.718006781483798},{"$f":"'Population 2016'!L171*'Prevalence Rates'!L171","v":123.17843106883608},{"$f":"'Population 2016'!M171*'Prevalence Rates'!M171","v":130.93865809809139},{"$f":"'Population 2016'!N171*'Prevalence Rates'!N171","v":24.574480973728836},{"$f":"'Population 2016'!O171*'Prevalence Rates'!O171","v":38.56870346993184},{"$f":"'Population 2016'!P171*'Prevalence Rates'!P171","v":10.138922113042447},{"$f":"'Population 2016'!Q171*'Prevalence Rates'!Q171","v":43.794506244897597},{"$f":"'Population 2016'!R171*'Prevalence Rates'!R171","v":18.75971099892751},{"$f":"'Population 2016'!S171*'Prevalence Rates'!S171","v":451.39464446666892},{"$f":"'Population 2016'!T171*'Prevalence Rates'!T171","v":104.08740523671642},{"$f":"'Population 2016'!U171*'Prevalence Rates'!U171","v":46.133953222114613},{"$f":"'Population 2016'!V171*'Prevalence Rates'!V171","v":38.244267389999301},{"$f":"'Population 2016'!W171*'Prevalence Rates'!W171","v":120.00787353413573},{"$f":"'Population 2016'!X171*'Prevalence Rates'!X171","v":120.51706348640268},{"$f":"'Population 2016'!Y171*'Prevalence Rates'!Y171","v":103.76627305664002},{"$f":"'Population 2016'!Z171*'Prevalence Rates'!Z171","v":75.289107862943879},{"$f":"'Population 2016'!AA171*'Prevalence Rates'!AA171","v":331.83618404959623},{"$f":"'Population 2016'!AB171*'Prevalence Rates'!AB171","v":152.9010106324063},{"$f":"'Population 2016'!AC171*'Prevalence Rates'!AC171","v":183.31098232004786},{"$f":"'Population 2016'!AD171*'Prevalence Rates'!AD171","v":212.92580377576263},{"$f":"'Population 2016'!AE171*'Prevalence Rates'!AE171","v":131.33088069729018},{"$f":"'Population 2016'!AF171*'Prevalence Rates'!AF171","v":19.19125875793317},{"$f":"'Population 2016'!AG171*'Prevalence Rates'!AG171","v":142.55675937413474},{"$f":"'Population 2016'!AH171*'Prevalence Rates'!AH171","v":144.99650543648099},{"$f":"'Population 2016'!AI171*'Prevalence Rates'!AI171","v":238.74062252517325},{"$f":"'Population 2016'!AJ171*'Prevalence Rates'!AJ171","v":35.64297406062834},{"$f":"'Population 2016'!AK171*'Prevalence Rates'!AK171","v":33.239019403463914},{"$f":"'Population 2016'!AL171*'Prevalence Rates'!AL171","v":49.738718369233901},{"$f":"'Population 2016'!AM171*'Prevalence Rates'!AM171","v":57.906537059390054},{"$f":"'Population 2016'!AN171*'Prevalence Rates'!AN171","v":16.431307220539718},{"$f":"'Population 2016'!AO171*'Prevalence Rates'!AO171","v":16.431307220539718},{"$f":"'Population 2016'!AP171*'Prevalence Rates'!AP171","v":65.059921096770438},{"$f":"'Population 2016'!AQ171*'Prevalence Rates'!AQ171","v":42.403381723790396},{"$f":"'Population 2016'!AR171*'Prevalence Rates'!AR171","v":1699.8587154358349},{"$f":"'Population 2016'!AS171*'Prevalence Rates'!AS171","v":83.056923290539046},{"$f":"'Population 2016'!AT171*'Prevalence Rates'!AT171","v":14.374144311702091},{"$f":"'Population 2016'!AU171*'Prevalence Rates'!AU171","v":14.374144311702091},{"$f":"'Population 2016'!AV171*'Prevalence Rates'!AV171","v":38.286554216895127},{"$f":"'Population 2016'!AW171*'Prevalence Rates'!AW171","v":85.917711869848674},{"$f":"'Population 2016'!AX171*'Prevalence Rates'!AX171","v":25.32972037101402},{"$f":"'Population 2016'!AY171*'Prevalence Rates'!AY171","v":254.78770074541018},{"$f":"'Population 2016'!AZ171*'Prevalence Rates'!AZ171","v":132.03111491032507},{"$f":"'Population 2016'!BA171*'Prevalence Rates'!BA171","v":21.881579726571193},{"$f":"'Population 2016'!BB171*'Prevalence Rates'!BB171","v":54.24501058490452},{"$f":"'Population 2016'!BC171*'Prevalence Rates'!BC171","v":31.842325114655342},169]
[null,"Male 85-89",{"$f":"'Population 2016'!C172*'Prevalence Rates'!C172","v":24.3113968240872},{"$f":"'Population 2016'!D172*'Prevalence Rates'!D172","v":54.817352616554984},{"$f":"'Population 2016'!E172*'Prevalence Rates'!E172","v":29.352210332101112},{"$f":"'Population 2016'!F172*'Prevalence Rates'!F172","v":36.885786680555377},{"$f":"'Population 2016'!G172*'Prevalence Rates'!G172","v":34.297713297213555},{"$f":"'Population 2016'!H172*'Prevalence Rates'!H172","v":59.519412618308436},{"$f":"'Population 2016'!I172*'Prevalence Rates'!I172","v":41.21023588553566},{"$f":"'Population 2016'!J172*'Prevalence Rates'!J172","v":21.110970300092131},{"$f":"'Population 2016'!K172*'Prevalence Rates'!K172","v":9.9829369501246923},{"$f":"'Population 2016'!L172*'Prevalence Rates'!L172","v":57.032165954517154},{"$f":"'Population 2016'!M172*'Prevalence Rates'!M172","v":60.625185868286707},{"$f":"'Population 2016'!N172*'Prevalence Rates'!N172","v":16.851072667699775},{"$f":"'Population 2016'!O172*'Prevalence Rates'!O172","v":15.784874779199903},{"$f":"'Population 2016'!P172*'Prevalence Rates'!P172","v":2.9388180037804195},{"$f":"'Population 2016'!Q172*'Prevalence Rates'!Q172","v":22.376755015641109},{"$f":"'Population 2016'!R172*'Prevalence Rates'!R172","v":10.325112255223667},{"$f":"'Population 2016'!S172*'Prevalence Rates'!S172","v":225.45798254909974},{"$f":"'Population 2016'!T172*'Prevalence Rates'!T172","v":47.364544034322336},{"$f":"'Population 2016'!U172*'Prevalence Rates'!U172","v":28.05697563304113},{"$f":"'Population 2016'!V172*'Prevalence Rates'!V172","v":16.484598012930732},{"$f":"'Population 2016'!W172*'Prevalence Rates'!W172","v":61.586458176309215},{"$f":"'Population 2016'!X172*'Prevalence Rates'!X172","v":61.847767745219841},{"$f":"'Population 2016'!Y172*'Prevalence Rates'!Y172","v":45.09215007173362},{"$f":"'Population 2016'!Z172*'Prevalence Rates'!Z172","v":33.352371146762053},{"$f":"'Population 2016'!AA172*'Prevalence Rates'!AA172","v":162.08035666570487},{"$f":"'Population 2016'!AB172*'Prevalence Rates'!AB172","v":75.333533647622247},{"$f":"'Population 2016'!AC172*'Prevalence Rates'!AC172","v":92.656825732056234},{"$f":"'Population 2016'!AD172*'Prevalence Rates'!AD172","v":103.59309322423692},{"$f":"'Population 2016'!AE172*'Prevalence Rates'!AE172","v":64.174517221281974},{"$f":"'Population 2016'!AF172*'Prevalence Rates'!AF172","v":12.113631414581929},{"$f":"'Population 2016'!AG172*'Prevalence Rates'!AG172","v":69.660015686275116},{"$f":"'Population 2016'!AH172*'Prevalence Rates'!AH172","v":68.045043091812943},{"$f":"'Population 2016'!AI172*'Prevalence Rates'!AI172","v":117.40501623106229},{"$f":"'Population 2016'!AJ172*'Prevalence Rates'!AJ172","v":19.339909692089815},{"$f":"'Population 2016'!AK172*'Prevalence Rates'!AK172","v":19.985486350183997},{"$f":"'Population 2016'!AL172*'Prevalence Rates'!AL172","v":21.238795800001338},{"$f":"'Population 2016'!AM172*'Prevalence Rates'!AM172","v":27.650088145775289},{"$f":"'Population 2016'!AN172*'Prevalence Rates'!AN172","v":8.2938979303676668},{"$f":"'Population 2016'!AO172*'Prevalence Rates'!AO172","v":8.2938979303676668},{"$f":"'Population 2016'!AP172*'Prevalence Rates'!AP172","v":35.174172842488368},{"$f":"'Population 2016'!AQ172*'Prevalence Rates'!AQ172","v":26.328069846413143},{"$f":"'Population 2016'!AR172*'Prevalence Rates'!AR172","v":845.8539689325637},{"$f":"'Population 2016'!AS172*'Prevalence Rates'!AS172","v":41.21023588553566},{"$f":"'Population 2016'!AT172*'Prevalence Rates'!AT172","v":8.8099594168496687},{"$f":"'Population 2016'!AU172*'Prevalence Rates'!AU172","v":8.8099594168496687},{"$f":"'Population 2016'!AV172*'Prevalence Rates'!AV172","v":21.412109950930237},{"$f":"'Population 2016'!AW172*'Prevalence Rates'!AW172","v":39.812573528422838},{"$f":"'Population 2016'!AX172*'Prevalence Rates'!AX172","v":9.6765223889267027},{"$f":"'Population 2016'!AY172*'Prevalence Rates'!AY172","v":139.95888799795065},{"$f":"'Population 2016'!AZ172*'Prevalence Rates'!AZ172","v":76.117193624893787},{"$f":"'Population 2016'!BA172*'Prevalence Rates'!BA172","v":9.206274397154953},{"$f":"'Population 2016'!BB172*'Prevalence Rates'!BB172","v":27.19890671581128},{"$f":"'Population 2016'!BC172*'Prevalence Rates'!BC172","v":19.365332416667943},170]
[null,"Male 90+",{"$f":"'Population 2016'!C173*'Prevalence Rates'!C173","v":9.6937848096043897},{"$f":"'Population 2016'!D173*'Prevalence Rates'!D173","v":24.450905483643233},{"$f":"'Population 2016'!E173*'Prevalence Rates'!E173","v":13.939466682812498},{"$f":"'Population 2016'!F173*'Prevalence Rates'!F173","v":16.163434612827636},{"$f":"'Population 2016'!G173*'Prevalence Rates'!G173","v":14.13905731844314},{"$f":"'Population 2016'!H173*'Prevalence Rates'!H173","v":23.712279358630902},{"$f":"'Population 2016'!I173*'Prevalence Rates'!I173","v":14.797497827624772},{"$f":"'Population 2016'!J173*'Prevalence Rates'!J173","v":9.5339865871383811},{"$f":"'Population 2016'!K173*'Prevalence Rates'!K173","v":4.8132017438101196},{"$f":"'Population 2016'!L173*'Prevalence Rates'!L173","v":27.618482302429616},{"$f":"'Population 2016'!M173*'Prevalence Rates'!M173","v":29.358443519751432},{"$f":"'Population 2016'!N173*'Prevalence Rates'!N173","v":6.0851095744471406},{"$f":"'Population 2016'!O173*'Prevalence Rates'!O173","v":5.2119869553961946},{"$f":"'Population 2016'!P173*'Prevalence Rates'!P173","v":1.7632908022682519},{"$f":"'Population 2016'!Q173*'Prevalence Rates'!Q173","v":9.4302038994487525},{"$f":"'Population 2016'!R173*'Prevalence Rates'!R173","v":5.089844069476456},{"$f":"'Population 2016'!S173*'Prevalence Rates'!S173","v":91.427759377660408},{"$f":"'Population 2016'!T173*'Prevalence Rates'!T173","v":20.053536788725182},{"$f":"'Population 2016'!U173*'Prevalence Rates'!U173","v":11.298110993170926},{"$f":"'Population 2016'!V173*'Prevalence Rates'!V173","v":8.440114182620535},{"$f":"'Population 2016'!W173*'Prevalence Rates'!W173","v":25.979726468378836},{"$f":"'Population 2016'!X173*'Prevalence Rates'!X173","v":26.089957699803659},{"$f":"'Population 2016'!Y173*'Prevalence Rates'!Y173","v":21.731156661076444},{"$f":"'Population 2016'!Z173*'Prevalence Rates'!Z173","v":16.887276530006101},{"$f":"'Population 2016'!AA173*'Prevalence Rates'!AA173","v":76.754707181864973},{"$f":"'Population 2016'!AB173*'Prevalence Rates'!AB173","v":32.26807042567016},{"$f":"'Population 2016'!AC173*'Prevalence Rates'!AC173","v":48.331082010092729},{"$f":"'Population 2016'!AD173*'Prevalence Rates'!AD173","v":40.317311957540852},{"$f":"'Population 2016'!AE173*'Prevalence Rates'!AE173","v":24.243706505817634},{"$f":"'Population 2016'!AF173*'Prevalence Rates'!AF173","v":5.1721122893720599},{"$f":"'Population 2016'!AG173*'Prevalence Rates'!AG173","v":26.316005925926156},{"$f":"'Population 2016'!AH173*'Prevalence Rates'!AH173","v":28.263037095726844},{"$f":"'Population 2016'!AI173*'Prevalence Rates'!AI173","v":48.363347297511837},{"$f":"'Population 2016'!AJ173*'Prevalence Rates'!AJ173","v":6.0736906471025867},{"$f":"'Population 2016'!AK173*'Prevalence Rates'!AK173","v":7.7838209995453465},{"$f":"'Population 2016'!AL173*'Prevalence Rates'!AL173","v":10.710161984616059},{"$f":"'Population 2016'!AM173*'Prevalence Rates'!AM173","v":10.198803004589246},{"$f":"'Population 2016'!AN173*'Prevalence Rates'!AN173","v":3.2862614441079439},{"$f":"'Population 2016'!AO173*'Prevalence Rates'!AO173","v":3.2862614441079439},{"$f":"'Population 2016'!AP173*'Prevalence Rates'!AP173","v":16.357220237940396},{"$f":"'Population 2016'!AQ173*'Prevalence Rates'!AQ173","v":16.834775430639173},{"$f":"'Population 2016'!AR173*'Prevalence Rates'!AR173","v":364.39596966973545},{"$f":"'Population 2016'!AS173*'Prevalence Rates'!AS173","v":14.797497827624772},{"$f":"'Population 2016'!AT173*'Prevalence Rates'!AT173","v":3.0912138304735679},{"$f":"'Population 2016'!AU173*'Prevalence Rates'!AU173","v":3.0912138304735679},{"$f":"'Population 2016'!AV173*'Prevalence Rates'!AV173","v":7.7991128960341918},{"$f":"'Population 2016'!AW173*'Prevalence Rates'!AW173","v":17.909607544700851},{"$f":"'Population 2016'!AX173*'Prevalence Rates'!AX173","v":4.1267521952775645},{"$f":"'Population 2016'!AY173*'Prevalence Rates'!AY173","v":59.999557655478846},{"$f":"'Population 2016'!AZ173*'Prevalence Rates'!AZ173","v":32.980477008203621},{"$f":"'Population 2016'!BA173*'Prevalence Rates'!BA173","v":3.2021823990104186},{"$f":"'Population 2016'!BB173*'Prevalence Rates'!BB173","v":12.377030584161313},{"$f":"'Population 2016'!BC173*'Prevalence Rates'!BC173","v":7.798120436242125},171]
["SIMD Q4","Female 0-4",{"$f":"'Population 2016'!C174*'Prevalence Rates'!C174","v":0},{"$f":"'Population 2016'!D174*'Prevalence Rates'!D174","v":0},{"$f":"'Population 2016'!E174*'Prevalence Rates'!E174","v":0},{"$f":"'Population 2016'!F174*'Prevalence Rates'!F174","v":0},{"$f":"'Population 2016'!G174*'Prevalence Rates'!G174","v":0},{"$f":"'Population 2016'!H174*'Prevalence Rates'!H174","v":0},{"$f":"'Population 2016'!I174*'Prevalence Rates'!I174","v":0},{"$f":"'Population 2016'!J174*'Prevalence Rates'!J174","v":0},{"$f":"'Population 2016'!K174*'Prevalence Rates'!K174","v":0},{"$f":"'Population 2016'!L174*'Prevalence Rates'!L174","v":0},{"$f":"'Population 2016'!M174*'Prevalence Rates'!M174","v":0},{"$f":"'Population 2016'!N174*'Prevalence Rates'!N174","v":0},{"$f":"'Population 2016'!O174*'Prevalence Rates'!O174","v":0},{"$f":"'Population 2016'!P174*'Prevalence Rates'!P174","v":0},{"$f":"'Population 2016'!Q174*'Prevalence Rates'!Q174","v":0},{"$f":"'Population 2016'!R174*'Prevalence Rates'!R174","v":0},{"$f":"'Population 2016'!S174*'Prevalence Rates'!S174","v":0},{"$f":"'Population 2016'!T174*'Prevalence Rates'!T174","v":0},{"$f":"'Population 2016'!U174*'Prevalence Rates'!U174","v":0},{"$f":"'Population 2016'!V174*'Prevalence Rates'!V174","v":0},{"$f":"'Population 2016'!W174*'Prevalence Rates'!W174","v":0},{"$f":"'Population 2016'!X174*'Prevalence Rates'!X174","v":0},{"$f":"'Population 2016'!Y174*'Prevalence Rates'!Y174","v":0},{"$f":"'Population 2016'!Z174*'Prevalence Rates'!Z174","v":0},{"$f":"'Population 2016'!AA174*'Prevalence Rates'!AA174","v":0},{"$f":"'Population 2016'!AB174*'Prevalence Rates'!AB174","v":0},{"$f":"'Population 2016'!AC174*'Prevalence Rates'!AC174","v":0},{"$f":"'Population 2016'!AD174*'Prevalence Rates'!AD174","v":0},{"$f":"'Population 2016'!AE174*'Prevalence Rates'!AE174","v":0},{"$f":"'Population 2016'!AF174*'Prevalence Rates'!AF174","v":0},{"$f":"'Population 2016'!AG174*'Prevalence Rates'!AG174","v":0},{"$f":"'Population 2016'!AH174*'Prevalence Rates'!AH174","v":0},{"$f":"'Population 2016'!AI174*'Prevalence Rates'!AI174","v":0},{"$f":"'Population 2016'!AJ174*'Prevalence Rates'!AJ174","v":0},{"$f":"'Population 2016'!AK174*'Prevalence Rates'!AK174","v":0},{"$f":"'Population 2016'!AL174*'Prevalence Rates'!AL174","v":0},{"$f":"'Population 2016'!AM174*'Prevalence Rates'!AM174","v":0},{"$f":"'Population 2016'!AN174*'Prevalence Rates'!AN174","v":0},{"$f":"'Population 2016'!AO174*'Prevalence Rates'!AO174","v":0},{"$f":"'Population 2016'!AP174*'Prevalence Rates'!AP174","v":0},{"$f":"'Population 2016'!AQ174*'Prevalence Rates'!AQ174","v":0},{"$f":"'Population 2016'!AR174*'Prevalence Rates'!AR174","v":0},{"$f":"'Population 2016'!AS174*'Prevalence Rates'!AS174","v":0},{"$f":"'Population 2016'!AT174*'Prevalence Rates'!AT174","v":0},{"$f":"'Population 2016'!AU174*'Prevalence Rates'!AU174","v":0},{"$f":"'Population 2016'!AV174*'Prevalence Rates'!AV174","v":0},{"$f":"'Population 2016'!AW174*'Prevalence Rates'!AW174","v":0},{"$f":"'Population 2016'!AX174*'Prevalence Rates'!AX174","v":0},{"$f":"'Population 2016'!AY174*'Prevalence Rates'!AY174","v":0},{"$f":"'Population 2016'!AZ174*'Prevalence Rates'!AZ174","v":0},{"$f":"'Population 2016'!BA174*'Prevalence Rates'!BA174","v":0},{"$f":"'Population 2016'!BB174*'Prevalence Rates'!BB174","v":0},{"$f":"'Population 2016'!BC174*'Prevalence Rates'!BC174","v":0},172]
[null,"Female 5-9",{"$f":"'Population 2016'!C175*'Prevalence Rates'!C175","v":0},{"$f":"'Population 2016'!D175*'Prevalence Rates'!D175","v":0},{"$f":"'Population 2016'!E175*'Prevalence Rates'!E175","v":0},{"$f":"'Population 2016'!F175*'Prevalence Rates'!F175","v":0},{"$f":"'Population 2016'!G175*'Prevalence Rates'!G175","v":0},{"$f":"'Population 2016'!H175*'Prevalence Rates'!H175","v":0},{"$f":"'Population 2016'!I175*'Prevalence Rates'!I175","v":0},{"$f":"'Population 2016'!J175*'Prevalence Rates'!J175","v":0},{"$f":"'Population 2016'!K175*'Prevalence Rates'!K175","v":0},{"$f":"'Population 2016'!L175*'Prevalence Rates'!L175","v":0},{"$f":"'Population 2016'!M175*'Prevalence Rates'!M175","v":0},{"$f":"'Population 2016'!N175*'Prevalence Rates'!N175","v":0},{"$f":"'Population 2016'!O175*'Prevalence Rates'!O175","v":0},{"$f":"'Population 2016'!P175*'Prevalence Rates'!P175","v":0},{"$f":"'Population 2016'!Q175*'Prevalence Rates'!Q175","v":0},{"$f":"'Population 2016'!R175*'Prevalence Rates'!R175","v":0},{"$f":"'Population 2016'!S175*'Prevalence Rates'!S175","v":0},{"$f":"'Population 2016'!T175*'Prevalence Rates'!T175","v":0},{"$f":"'Population 2016'!U175*'Prevalence Rates'!U175","v":0},{"$f":"'Population 2016'!V175*'Prevalence Rates'!V175","v":0},{"$f":"'Population 2016'!W175*'Prevalence Rates'!W175","v":0},{"$f":"'Population 2016'!X175*'Prevalence Rates'!X175","v":0},{"$f":"'Population 2016'!Y175*'Prevalence Rates'!Y175","v":0},{"$f":"'Population 2016'!Z175*'Prevalence Rates'!Z175","v":0},{"$f":"'Population 2016'!AA175*'Prevalence Rates'!AA175","v":0},{"$f":"'Population 2016'!AB175*'Prevalence Rates'!AB175","v":0},{"$f":"'Population 2016'!AC175*'Prevalence Rates'!AC175","v":0},{"$f":"'Population 2016'!AD175*'Prevalence Rates'!AD175","v":0},{"$f":"'Population 2016'!AE175*'Prevalence Rates'!AE175","v":0},{"$f":"'Population 2016'!AF175*'Prevalence Rates'!AF175","v":0},{"$f":"'Population 2016'!AG175*'Prevalence Rates'!AG175","v":0},{"$f":"'Population 2016'!AH175*'Prevalence Rates'!AH175","v":0},{"$f":"'Population 2016'!AI175*'Prevalence Rates'!AI175","v":0},{"$f":"'Population 2016'!AJ175*'Prevalence Rates'!AJ175","v":0},{"$f":"'Population 2016'!AK175*'Prevalence Rates'!AK175","v":0},{"$f":"'Population 2016'!AL175*'Prevalence Rates'!AL175","v":0},{"$f":"'Population 2016'!AM175*'Prevalence Rates'!AM175","v":0},{"$f":"'Population 2016'!AN175*'Prevalence Rates'!AN175","v":0},{"$f":"'Population 2016'!AO175*'Prevalence Rates'!AO175","v":0},{"$f":"'Population 2016'!AP175*'Prevalence Rates'!AP175","v":0},{"$f":"'Population 2016'!AQ175*'Prevalence Rates'!AQ175","v":0},{"$f":"'Population 2016'!AR175*'Prevalence Rates'!AR175","v":0},{"$f":"'Population 2016'!AS175*'Prevalence Rates'!AS175","v":0},{"$f":"'Population 2016'!AT175*'Prevalence Rates'!AT175","v":0},{"$f":"'Population 2016'!AU175*'Prevalence Rates'!AU175","v":0},{"$f":"'Population 2016'!AV175*'Prevalence Rates'!AV175","v":0},{"$f":"'Population 2016'!AW175*'Prevalence Rates'!AW175","v":0},{"$f":"'Population 2016'!AX175*'Prevalence Rates'!AX175","v":0},{"$f":"'Population 2016'!AY175*'Prevalence Rates'!AY175","v":0},{"$f":"'Population 2016'!AZ175*'Prevalence Rates'!AZ175","v":0},{"$f":"'Population 2016'!BA175*'Prevalence Rates'!BA175","v":0},{"$f":"'Population 2016'!BB175*'Prevalence Rates'!BB175","v":0},{"$f":"'Population 2016'!BC175*'Prevalence Rates'!BC175","v":0},173]
[null,"Female 10-15",{"$f":"'Population 2016'!C176*'Prevalence Rates'!C176","v":0},{"$f":"'Population 2016'!D176*'Prevalence Rates'!D176","v":0},{"$f":"'Population 2016'!E176*'Prevalence Rates'!E176","v":0},{"$f":"'Population 2016'!F176*'Prevalence Rates'!F176","v":0},{"$f":"'Population 2016'!G176*'Prevalence Rates'!G176","v":0},{"$f":"'Population 2016'!H176*'Prevalence Rates'!H176","v":0},{"$f":"'Population 2016'!I176*'Prevalence Rates'!I176","v":0},{"$f":"'Population 2016'!J176*'Prevalence Rates'!J176","v":0},{"$f":"'Population 2016'!K176*'Prevalence Rates'!K176","v":0},{"$f":"'Population 2016'!L176*'Prevalence Rates'!L176","v":0},{"$f":"'Population 2016'!M176*'Prevalence Rates'!M176","v":0},{"$f":"'Population 2016'!N176*'Prevalence Rates'!N176","v":0},{"$f":"'Population 2016'!O176*'Prevalence Rates'!O176","v":0},{"$f":"'Population 2016'!P176*'Prevalence Rates'!P176","v":0},{"$f":"'Population 2016'!Q176*'Prevalence Rates'!Q176","v":0},{"$f":"'Population 2016'!R176*'Prevalence Rates'!R176","v":0},{"$f":"'Population 2016'!S176*'Prevalence Rates'!S176","v":0},{"$f":"'Population 2016'!T176*'Prevalence Rates'!T176","v":0},{"$f":"'Population 2016'!U176*'Prevalence Rates'!U176","v":0},{"$f":"'Population 2016'!V176*'Prevalence Rates'!V176","v":0},{"$f":"'Population 2016'!W176*'Prevalence Rates'!W176","v":0},{"$f":"'Population 2016'!X176*'Prevalence Rates'!X176","v":0},{"$f":"'Population 2016'!Y176*'Prevalence Rates'!Y176","v":0},{"$f":"'Population 2016'!Z176*'Prevalence Rates'!Z176","v":0},{"$f":"'Population 2016'!AA176*'Prevalence Rates'!AA176","v":0},{"$f":"'Population 2016'!AB176*'Prevalence Rates'!AB176","v":0},{"$f":"'Population 2016'!AC176*'Prevalence Rates'!AC176","v":0},{"$f":"'Population 2016'!AD176*'Prevalence Rates'!AD176","v":0},{"$f":"'Population 2016'!AE176*'Prevalence Rates'!AE176","v":0},{"$f":"'Population 2016'!AF176*'Prevalence Rates'!AF176","v":0},{"$f":"'Population 2016'!AG176*'Prevalence Rates'!AG176","v":0},{"$f":"'Population 2016'!AH176*'Prevalence Rates'!AH176","v":0},{"$f":"'Population 2016'!AI176*'Prevalence Rates'!AI176","v":0},{"$f":"'Population 2016'!AJ176*'Prevalence Rates'!AJ176","v":0},{"$f":"'Population 2016'!AK176*'Prevalence Rates'!AK176","v":0},{"$f":"'Population 2016'!AL176*'Prevalence Rates'!AL176","v":0},{"$f":"'Population 2016'!AM176*'Prevalence Rates'!AM176","v":0},{"$f":"'Population 2016'!AN176*'Prevalence Rates'!AN176","v":0},{"$f":"'Population 2016'!AO176*'Prevalence Rates'!AO176","v":0},{"$f":"'Population 2016'!AP176*'Prevalence Rates'!AP176","v":0},{"$f":"'Population 2016'!AQ176*'Prevalence Rates'!AQ176","v":0},{"$f":"'Population 2016'!AR176*'Prevalence Rates'!AR176","v":0},{"$f":"'Population 2016'!AS176*'Prevalence Rates'!AS176","v":0},{"$f":"'Population 2016'!AT176*'Prevalence Rates'!AT176","v":0},{"$f":"'Population 2016'!AU176*'Prevalence Rates'!AU176","v":0},{"$f":"'Population 2016'!AV176*'Prevalence Rates'!AV176","v":0},{"$f":"'Population 2016'!AW176*'Prevalence Rates'!AW176","v":0},{"$f":"'Population 2016'!AX176*'Prevalence Rates'!AX176","v":0},{"$f":"'Population 2016'!AY176*'Prevalence Rates'!AY176","v":0},{"$f":"'Population 2016'!AZ176*'Prevalence Rates'!AZ176","v":0},{"$f":"'Population 2016'!BA176*'Prevalence Rates'!BA176","v":0},{"$f":"'Population 2016'!BB176*'Prevalence Rates'!BB176","v":0},{"$f":"'Population 2016'!BC176*'Prevalence Rates'!BC176","v":0},174]
[null,"Female 16-19",{"$f":"'Population 2016'!C177*'Prevalence Rates'!C177","v":213.99327550097647},{"$f":"'Population 2016'!D177*'Prevalence Rates'!D177","v":499.57569627165077},{"$f":"'Population 2016'!E177*'Prevalence Rates'!E177","v":269.40279164999276},{"$f":"'Population 2016'!F177*'Prevalence Rates'!F177","v":79.035882818296628},{"$f":"'Population 2016'!G177*'Prevalence Rates'!G177","v":77.641514779796864},{"$f":"'Population 2016'!H177*'Prevalence Rates'!H177","v":180.19252694971783},{"$f":"'Population 2016'!I177*'Prevalence Rates'!I177","v":141.50419710643098},{"$f":"'Population 2016'!J177*'Prevalence Rates'!J177","v":177.37317651772662},{"$f":"'Population 2016'!K177*'Prevalence Rates'!K177","v":29.581088185865823},{"$f":"'Population 2016'!L177*'Prevalence Rates'!L177","v":72.948713153694129},{"$f":"'Population 2016'!M177*'Prevalence Rates'!M177","v":75.122663844054358},{"$f":"'Population 2016'!N177*'Prevalence Rates'!N177","v":147.07315921283549},{"$f":"'Population 2016'!O177*'Prevalence Rates'!O177","v":41.23126141807596},{"$f":"'Population 2016'!P177*'Prevalence Rates'!P177","v":56.721603571699745},{"$f":"'Population 2016'!Q177*'Prevalence Rates'!Q177","v":170.77535009425901},{"$f":"'Population 2016'!R177*'Prevalence Rates'!R177","v":54.371260882264671},{"$f":"'Population 2016'!S177*'Prevalence Rates'!S177","v":965.13780767453579},{"$f":"'Population 2016'!T177*'Prevalence Rates'!T177","v":290.49025251046947},{"$f":"'Population 2016'!U177*'Prevalence Rates'!U177","v":4.7726847483674089},{"$f":"'Population 2016'!V177*'Prevalence Rates'!V177","v":105.7301058250123},{"$f":"'Population 2016'!W177*'Prevalence Rates'!W177","v":183.85225803695022},{"$f":"'Population 2016'!X177*'Prevalence Rates'!X177","v":190.54529043169774},{"$f":"'Population 2016'!Y177*'Prevalence Rates'!Y177","v":272.09804758246293},{"$f":"'Population 2016'!Z177*'Prevalence Rates'!Z177","v":234.05346156096996},{"$f":"'Population 2016'!AA177*'Prevalence Rates'!AA177","v":933.82484412506733},{"$f":"'Population 2016'!AB177*'Prevalence Rates'!AB177","v":608.80702823259674},{"$f":"'Population 2016'!AC177*'Prevalence Rates'!AC177","v":510.97578702884221},{"$f":"'Population 2016'!AD177*'Prevalence Rates'!AD177","v":348.93853986486073},{"$f":"'Population 2016'!AE177*'Prevalence Rates'!AE177","v":197.73330057938236},{"$f":"'Population 2016'!AF177*'Prevalence Rates'!AF177","v":56.434944690774749},{"$f":"'Population 2016'!AG177*'Prevalence Rates'!AG177","v":255.49991871698933},{"$f":"'Population 2016'!AH177*'Prevalence Rates'!AH177","v":426.16055775123243},{"$f":"'Population 2016'!AI177*'Prevalence Rates'!AI177","v":636.5802171232325},{"$f":"'Population 2016'!AJ177*'Prevalence Rates'!AJ177","v":56.078404435986648},{"$f":"'Population 2016'!AK177*'Prevalence Rates'!AK177","v":98.102232969515512},{"$f":"'Population 2016'!AL177*'Prevalence Rates'!AL177","v":89.131448821273196},{"$f":"'Population 2016'!AM177*'Prevalence Rates'!AM177","v":177.63936351781686},{"$f":"'Population 2016'!AN177*'Prevalence Rates'!AN177","v":35.743743515148878},{"$f":"'Population 2016'!AO177*'Prevalence Rates'!AO177","v":35.743743515148878},{"$f":"'Population 2016'!AP177*'Prevalence Rates'!AP177","v":216.08941418414565},{"$f":"'Population 2016'!AQ177*'Prevalence Rates'!AQ177","v":119.4213348784815},{"$f":"'Population 2016'!AR177*'Prevalence Rates'!AR177","v":3902.3229842767951},{"$f":"'Population 2016'!AS177*'Prevalence Rates'!AS177","v":141.50419710643098},{"$f":"'Population 2016'!AT177*'Prevalence Rates'!AT177","v":61.005229304998373},{"$f":"'Population 2016'!AU177*'Prevalence Rates'!AU177","v":61.005229304998373},{"$f":"'Population 2016'!AV177*'Prevalence Rates'!AV177","v":53.016163189243407},{"$f":"'Population 2016'!AW177*'Prevalence Rates'!AW177","v":258.30922926691244},{"$f":"'Population 2016'!AX177*'Prevalence Rates'!AX177","v":115.06795574293193},{"$f":"'Population 2016'!AY177*'Prevalence Rates'!AY177","v":607.23500131791559},{"$f":"'Population 2016'!AZ177*'Prevalence Rates'!AZ177","v":419.44776070084674},{"$f":"'Population 2016'!BA177*'Prevalence Rates'!BA177","v":34.456066983868553},{"$f":"'Population 2016'!BB177*'Prevalence Rates'!BB177","v":109.3412224029228},{"$f":"'Population 2016'!BC177*'Prevalence Rates'!BC177","v":2.6515228761774341},175]
[null,"Female 20-24",{"$f":"'Population 2016'!C178*'Prevalence Rates'!C178","v":508.67902457348566},{"$f":"'Population 2016'!D178*'Prevalence Rates'!D178","v":798.38105224058177},{"$f":"'Population 2016'!E178*'Prevalence Rates'!E178","v":310.65242711910463},{"$f":"'Population 2016'!F178*'Prevalence Rates'!F178","v":88.064586479437722},{"$f":"'Population 2016'!G178*'Prevalence Rates'!G178","v":82.662213195118611},{"$f":"'Population 2016'!H178*'Prevalence Rates'!H178","v":217.45100004270614},{"$f":"'Population 2016'!I178*'Prevalence Rates'!I178","v":135.84402922217373},{"$f":"'Population 2016'!J178*'Prevalence Rates'!J178","v":252.75677653776046},{"$f":"'Population 2016'!K178*'Prevalence Rates'!K178","v":31.564177896650122},{"$f":"'Population 2016'!L178*'Prevalence Rates'!L178","v":94.636168415603194},{"$f":"'Population 2016'!M178*'Prevalence Rates'!M178","v":97.456428770665113},{"$f":"'Population 2016'!N178*'Prevalence Rates'!N178","v":321.26848170531576},{"$f":"'Population 2016'!O178*'Prevalence Rates'!O178","v":54.444840744937103},{"$f":"'Population 2016'!P178*'Prevalence Rates'!P178","v":86.179231945952651},{"$f":"'Population 2016'!Q178*'Prevalence Rates'!Q178","v":216.88860252245709},{"$f":"'Population 2016'!R178*'Prevalence Rates'!R178","v":55.938156008554721},{"$f":"'Population 2016'!S178*'Prevalence Rates'!S178","v":1492.8903806732158},{"$f":"'Population 2016'!T178*'Prevalence Rates'!T178","v":755.97463303929408},{"$f":"'Population 2016'!U178*'Prevalence Rates'!U178","v":8.2287668075300147},{"$f":"'Population 2016'!V178*'Prevalence Rates'!V178","v":140.68220692418993},{"$f":"'Population 2016'!W178*'Prevalence Rates'!W178","v":237.69895497010228},{"$f":"'Population 2016'!X178*'Prevalence Rates'!X178","v":246.35224442544742},{"$f":"'Population 2016'!Y178*'Prevalence Rates'!Y178","v":377.27264644598733},{"$f":"'Population 2016'!Z178*'Prevalence Rates'!Z178","v":833.70991322258919},{"$f":"'Population 2016'!AA178*'Prevalence Rates'!AA178","v":1631.2827507619452},{"$f":"'Population 2016'!AB178*'Prevalence Rates'!AB178","v":902.41724259483806},{"$f":"'Population 2016'!AC178*'Prevalence Rates'!AC178","v":1141.3660861390742},{"$f":"'Population 2016'!AD178*'Prevalence Rates'!AD178","v":381.75239022214208},{"$f":"'Population 2016'!AE178*'Prevalence Rates'!AE178","v":217.99018200027083},{"$f":"'Population 2016'!AF178*'Prevalence Rates'!AF178","v":68.937455514577152},{"$f":"'Population 2016'!AG178*'Prevalence Rates'!AG178","v":281.67472863181638},{"$f":"'Population 2016'!AH178*'Prevalence Rates'!AH178","v":479.82399370591543},{"$f":"'Population 2016'!AI178*'Prevalence Rates'!AI178","v":1151.0738017681704},{"$f":"'Population 2016'!AJ178*'Prevalence Rates'!AJ178","v":64.871185619329509},{"$f":"'Population 2016'!AK178*'Prevalence Rates'!AK178","v":101.77315523547158},{"$f":"'Population 2016'!AL178*'Prevalence Rates'!AL178","v":103.43888312230186},{"$f":"'Population 2016'!AM178*'Prevalence Rates'!AM178","v":199.60889610835957},{"$f":"'Population 2016'!AN178*'Prevalence Rates'!AN178","v":42.275595121978114},{"$f":"'Population 2016'!AO178*'Prevalence Rates'!AO178","v":42.275595121978114},{"$f":"'Population 2016'!AP178*'Prevalence Rates'!AP178","v":220.70289341259505},{"$f":"'Population 2016'!AQ178*'Prevalence Rates'!AQ178","v":150.24569797694582},{"$f":"'Population 2016'!AR178*'Prevalence Rates'!AR178","v":5806.9726807635689},{"$f":"'Population 2016'!AS178*'Prevalence Rates'!AS178","v":135.84402922217373},{"$f":"'Population 2016'!AT178*'Prevalence Rates'!AT178","v":61.005229304998373},{"$f":"'Population 2016'!AU178*'Prevalence Rates'!AU178","v":61.005229304998373},{"$f":"'Population 2016'!AV178*'Prevalence Rates'!AV178","v":60.923658715774621},{"$f":"'Population 2016'!AW178*'Prevalence Rates'!AW178","v":291.29250351057095},{"$f":"'Population 2016'!AX178*'Prevalence Rates'!AX178","v":174.48963902244884},{"$f":"'Population 2016'!AY178*'Prevalence Rates'!AY178","v":831.1601925428763},{"$f":"'Population 2016'!AZ178*'Prevalence Rates'!AZ178","v":587.54159386029244},{"$f":"'Population 2016'!BA178*'Prevalence Rates'!BA178","v":44.231974360687069},{"$f":"'Population 2016'!BB178*'Prevalence Rates'!BB178","v":133.441580595283},{"$f":"'Population 2016'!BC178*'Prevalence Rates'!BC178","v":4.5715911658231621},176]
[null,"Female 25-29",{"$f":"'Population 2016'!C179*'Prevalence Rates'!C179","v":304.76099885234999},{"$f":"'Population 2016'!D179*'Prevalence Rates'!D179","v":550.17858752998791},{"$f":"'Population 2016'!E179*'Prevalence Rates'!E179","v":247.00017147047166},{"$f":"'Population 2016'!F179*'Prevalence Rates'!F179","v":64.437197808505573},{"$f":"'Population 2016'!G179*'Prevalence Rates'!G179","v":53.521389698307509},{"$f":"'Population 2016'!H179*'Prevalence Rates'!H179","v":145.80670157468984},{"$f":"'Population 2016'!I179*'Prevalence Rates'!I179","v":94.163305272868755},{"$f":"'Population 2016'!J179*'Prevalence Rates'!J179","v":146.25733935013841},{"$f":"'Population 2016'!K179*'Prevalence Rates'!K179","v":21.261524845305956},{"$f":"'Population 2016'!L179*'Prevalence Rates'!L179","v":67.679399125367127},{"$f":"'Population 2016'!M179*'Prevalence Rates'!M179","v":69.696318548493466},{"$f":"'Population 2016'!N179*'Prevalence Rates'!N179","v":118.45157238409682},{"$f":"'Population 2016'!O179*'Prevalence Rates'!O179","v":37.058614741281403},{"$f":"'Population 2016'!P179*'Prevalence Rates'!P179","v":50.225198680253129},{"$f":"'Population 2016'!Q179*'Prevalence Rates'!Q179","v":111.61691502590389},{"$f":"'Population 2016'!R179*'Prevalence Rates'!R179","v":44.004646550130033},{"$f":"'Population 2016'!S179*'Prevalence Rates'!S179","v":1256.3760507541797},{"$f":"'Population 2016'!T179*'Prevalence Rates'!T179","v":772.88076672295813},{"$f":"'Population 2016'!U179*'Prevalence Rates'!U179","v":4.9607101458042857},{"$f":"'Population 2016'!V179*'Prevalence Rates'!V179","v":99.701170710328114},{"$f":"'Population 2016'!W179*'Prevalence Rates'!W179","v":172.78372347176952},{"$f":"'Population 2016'!X179*'Prevalence Rates'!X179","v":179.07381243140162},{"$f":"'Population 2016'!Y179*'Prevalence Rates'!Y179","v":237.49065681892048},{"$f":"'Population 2016'!Z179*'Prevalence Rates'!Z179","v":508.51882013013346},{"$f":"'Population 2016'!AA179*'Prevalence Rates'!AA179","v":1068.7852264200035},{"$f":"'Population 2016'!AB179*'Prevalence Rates'!AB179","v":638.50277433636825},{"$f":"'Population 2016'!AC179*'Prevalence Rates'!AC179","v":717.44064454277907},{"$f":"'Population 2016'!AD179*'Prevalence Rates'!AD179","v":300.16799099272458},{"$f":"'Population 2016'!AE179*'Prevalence Rates'!AE179","v":179.76697877663929},{"$f":"'Population 2016'!AF179*'Prevalence Rates'!AF179","v":40.724022642534585},{"$f":"'Population 2016'!AG179*'Prevalence Rates'!AG179","v":232.28484191002903},{"$f":"'Population 2016'!AH179*'Prevalence Rates'!AH179","v":346.66993379168588},{"$f":"'Population 2016'!AI179*'Prevalence Rates'!AI179","v":1030.6410735739389},{"$f":"'Population 2016'!AJ179*'Prevalence Rates'!AJ179","v":55.305678616438868},{"$f":"'Population 2016'!AK179*'Prevalence Rates'!AK179","v":83.104376126710264},{"$f":"'Population 2016'!AL179*'Prevalence Rates'!AL179","v":70.787182673091294},{"$f":"'Population 2016'!AM179*'Prevalence Rates'!AM179","v":142.36498466931283},{"$f":"'Population 2016'!AN179*'Prevalence Rates'!AN179","v":34.281686312971416},{"$f":"'Population 2016'!AO179*'Prevalence Rates'!AO179","v":34.281686312971416},{"$f":"'Population 2016'!AP179*'Prevalence Rates'!AP179","v":151.7534528084737},{"$f":"'Population 2016'!AQ179*'Prevalence Rates'!AQ179","v":101.77336837107535},{"$f":"'Population 2016'!AR179*'Prevalence Rates'!AR179","v":4097.5993839749844},{"$f":"'Population 2016'!AS179*'Prevalence Rates'!AS179","v":94.163305272868755},{"$f":"'Population 2016'!AT179*'Prevalence Rates'!AT179","v":56.958246221350272},{"$f":"'Population 2016'!AU179*'Prevalence Rates'!AU179","v":56.958246221350272},{"$f":"'Population 2016'!AV179*'Prevalence Rates'!AV179","v":38.712315020750275},{"$f":"'Population 2016'!AW179*'Prevalence Rates'!AW179","v":212.5717532725217},{"$f":"'Population 2016'!AX179*'Prevalence Rates'!AX179","v":97.991330248400672},{"$f":"'Population 2016'!AY179*'Prevalence Rates'!AY179","v":492.27111191057753},{"$f":"'Population 2016'!AZ179*'Prevalence Rates'!AZ179","v":317.20534436292542},{"$f":"'Population 2016'!BA179*'Prevalence Rates'!BA179","v":33.578968227249995},{"$f":"'Population 2016'!BB179*'Prevalence Rates'!BB179","v":119.15168678613757},{"$f":"'Population 2016'!BC179*'Prevalence Rates'!BC179","v":2.7559826653509747},177]
[null,"Female 30-34",{"$f":"'Population 2016'!C180*'Prevalence Rates'!C180","v":241.22065701147358},{"$f":"'Population 2016'!D180*'Prevalence Rates'!D180","v":559.43462029462421},{"$f":"'Population 2016'!E180*'Prevalence Rates'!E180","v":300.54127553181013},{"$f":"'Population 2016'!F180*'Prevalence Rates'!F180","v":72.198254913808938},{"$f":"'Population 2016'!G180*'Prevalence Rates'!G180","v":56.157911358322657},{"$f":"'Population 2016'!H180*'Prevalence Rates'!H180","v":158.4117697074976},{"$f":"'Population 2016'!I180*'Prevalence Rates'!I180","v":109.38161723616068},{"$f":"'Population 2016'!J180*'Prevalence Rates'!J180","v":132.47625266365122},{"$f":"'Population 2016'!K180*'Prevalence Rates'!K180","v":28.551190506553713},{"$f":"'Population 2016'!L180*'Prevalence Rates'!L180","v":69.57486829362287},{"$f":"'Population 2016'!M180*'Prevalence Rates'!M180","v":71.648274751663791},{"$f":"'Population 2016'!N180*'Prevalence Rates'!N180","v":92.696070172324269},{"$f":"'Population 2016'!O180*'Prevalence Rates'!O180","v":41.466071348860986},{"$f":"'Population 2016'!P180*'Prevalence Rates'!P180","v":53.796256384583053},{"$f":"'Population 2016'!Q180*'Prevalence Rates'!Q180","v":123.97091076879673},{"$f":"'Population 2016'!R180*'Prevalence Rates'!R180","v":39.28163474762917},{"$f":"'Population 2016'!S180*'Prevalence Rates'!S180","v":1234.8581565002009},{"$f":"'Population 2016'!T180*'Prevalence Rates'!T180","v":651.94728012793837},{"$f":"'Population 2016'!U180*'Prevalence Rates'!U180","v":7.3805687535136926},{"$f":"'Population 2016'!V180*'Prevalence Rates'!V180","v":113.32014505993479},{"$f":"'Population 2016'!W180*'Prevalence Rates'!W180","v":182.18840715441016},{"$f":"'Population 2016'!X180*'Prevalence Rates'!X180","v":188.82086804475639},{"$f":"'Population 2016'!Y180*'Prevalence Rates'!Y180","v":239.24186415791422},{"$f":"'Population 2016'!Z180*'Prevalence Rates'!Z180","v":405.47423499634175},{"$f":"'Population 2016'!AA180*'Prevalence Rates'!AA180","v":1030.4426297069654},{"$f":"'Population 2016'!AB180*'Prevalence Rates'!AB180","v":661.89028018012232},{"$f":"'Population 2016'!AC180*'Prevalence Rates'!AC180","v":629.763628952516},{"$f":"'Population 2016'!AD180*'Prevalence Rates'!AD180","v":351.58016336302001},{"$f":"'Population 2016'!AE180*'Prevalence Rates'!AE180","v":215.31683561648777},{"$f":"'Population 2016'!AF180*'Prevalence Rates'!AF180","v":36.383531201010527},{"$f":"'Population 2016'!AG180*'Prevalence Rates'!AG180","v":278.22037986123735},{"$f":"'Population 2016'!AH180*'Prevalence Rates'!AH180","v":400.12553650842284},{"$f":"'Population 2016'!AI180*'Prevalence Rates'!AI180","v":975.33838182119098},{"$f":"'Population 2016'!AJ180*'Prevalence Rates'!AJ180","v":69.096185492226212},{"$f":"'Population 2016'!AK180*'Prevalence Rates'!AK180","v":94.364879498862493},{"$f":"'Population 2016'!AL180*'Prevalence Rates'!AL180","v":66.665037497349033},{"$f":"'Population 2016'!AM180*'Prevalence Rates'!AM180","v":157.47828531086873},{"$f":"'Population 2016'!AN180*'Prevalence Rates'!AN180","v":38.683614905687591},{"$f":"'Population 2016'!AO180*'Prevalence Rates'!AO180","v":38.683614905687591},{"$f":"'Population 2016'!AP180*'Prevalence Rates'!AP180","v":182.82625785361176},{"$f":"'Population 2016'!AQ180*'Prevalence Rates'!AQ180","v":116.56443124100497},{"$f":"'Population 2016'!AR180*'Prevalence Rates'!AR180","v":4147.2368006145289},{"$f":"'Population 2016'!AS180*'Prevalence Rates'!AS180","v":109.38161723616068},{"$f":"'Population 2016'!AT180*'Prevalence Rates'!AT180","v":53.992957914815769},{"$f":"'Population 2016'!AU180*'Prevalence Rates'!AU180","v":53.992957914815769},{"$f":"'Population 2016'!AV180*'Prevalence Rates'!AV180","v":49.810726152979022},{"$f":"'Population 2016'!AW180*'Prevalence Rates'!AW180","v":253.16201986144713},{"$f":"'Population 2016'!AX180*'Prevalence Rates'!AX180","v":79.527446593221725},{"$f":"'Population 2016'!AY180*'Prevalence Rates'!AY180","v":516.79898062848929},{"$f":"'Population 2016'!AZ180*'Prevalence Rates'!AZ180","v":332.24525293185724},{"$f":"'Population 2016'!BA180*'Prevalence Rates'!BA180","v":33.461147286101749},{"$f":"'Population 2016'!BB180*'Prevalence Rates'!BB180","v":142.45880316346589},{"$f":"'Population 2016'!BC180*'Prevalence Rates'!BC180","v":4.1003644533270602},178]
[null,"Female 35-39",{"$f":"'Population 2016'!C181*'Prevalence Rates'!C181","v":289.19587313723417},{"$f":"'Population 2016'!D181*'Prevalence Rates'!D181","v":814.84868729737479},{"$f":"'Population 2016'!E181*'Prevalence Rates'!E181","v":482.45811278095113},{"$f":"'Population 2016'!F181*'Prevalence Rates'!F181","v":120.22724309671113},{"$f":"'Population 2016'!G181*'Prevalence Rates'!G181","v":105.97663732766586},{"$f":"'Population 2016'!H181*'Prevalence Rates'!H181","v":268.37052954127711},{"$f":"'Population 2016'!I181*'Prevalence Rates'!I181","v":173.54764036904086},{"$f":"'Population 2016'!J181*'Prevalence Rates'!J181","v":224.07719305179847},{"$f":"'Population 2016'!K181*'Prevalence Rates'!K181","v":45.742221208660013},{"$f":"'Population 2016'!L181*'Prevalence Rates'!L181","v":104.08646081124641},{"$f":"'Population 2016'!M181*'Prevalence Rates'!M181","v":107.18835011888945},{"$f":"'Population 2016'!N181*'Prevalence Rates'!N181","v":120.87188312978439},{"$f":"'Population 2016'!O181*'Prevalence Rates'!O181","v":75.363812205994819},{"$f":"'Population 2016'!P181*'Prevalence Rates'!P181","v":89.229807315297094},{"$f":"'Population 2016'!Q181*'Prevalence Rates'!Q181","v":212.34672586261115},{"$f":"'Population 2016'!R181*'Prevalence Rates'!R181","v":71.810442540597663},{"$f":"'Population 2016'!S181*'Prevalence Rates'!S181","v":1746.0366594448597},{"$f":"'Population 2016'!T181*'Prevalence Rates'!T181","v":751.37314395408862},{"$f":"'Population 2016'!U181*'Prevalence Rates'!U181","v":8.5879378099455455},{"$f":"'Population 2016'!V181*'Prevalence Rates'!V181","v":186.55170556316307},{"$f":"'Population 2016'!W181*'Prevalence Rates'!W181","v":301.70625921248126},{"$f":"'Population 2016'!X181*'Prevalence Rates'!X181","v":312.68969661035851},{"$f":"'Population 2016'!Y181*'Prevalence Rates'!Y181","v":399.29387196849655},{"$f":"'Population 2016'!Z181*'Prevalence Rates'!Z181","v":459.94966474637283},{"$f":"'Population 2016'!AA181*'Prevalence Rates'!AA181","v":1564.6619229455625},{"$f":"'Population 2016'!AB181*'Prevalence Rates'!AB181","v":969.7554296971341},{"$f":"'Population 2016'!AC181*'Prevalence Rates'!AC181","v":852.52152207457004},{"$f":"'Population 2016'!AD181*'Prevalence Rates'!AD181","v":543.10484004773105},{"$f":"'Population 2016'!AE181*'Prevalence Rates'!AE181","v":318.59841541967006},{"$f":"'Population 2016'!AF181*'Prevalence Rates'!AF181","v":79.38457009413321},{"$f":"'Population 2016'!AG181*'Prevalence Rates'!AG181","v":411.67506436482898},{"$f":"'Population 2016'!AH181*'Prevalence Rates'!AH181","v":717.92125594251468},{"$f":"'Population 2016'!AI181*'Prevalence Rates'!AI181","v":1295.9673721105426},{"$f":"'Population 2016'!AJ181*'Prevalence Rates'!AJ181","v":109.05489470188381},{"$f":"'Population 2016'!AK181*'Prevalence Rates'!AK181","v":141.87322568482949},{"$f":"'Population 2016'!AL181*'Prevalence Rates'!AL181","v":112.29652308233449},{"$f":"'Population 2016'!AM181*'Prevalence Rates'!AM181","v":271.29641624153146},{"$f":"'Population 2016'!AN181*'Prevalence Rates'!AN181","v":64.835172554047745},{"$f":"'Population 2016'!AO181*'Prevalence Rates'!AO181","v":64.835172554047745},{"$f":"'Population 2016'!AP181*'Prevalence Rates'!AP181","v":266.74130465915647},{"$f":"'Population 2016'!AQ181*'Prevalence Rates'!AQ181","v":178.60473987598573},{"$f":"'Population 2016'!AR181*'Prevalence Rates'!AR181","v":6202.9610640006376},{"$f":"'Population 2016'!AS181*'Prevalence Rates'!AS181","v":173.54764036904086},{"$f":"'Population 2016'!AT181*'Prevalence Rates'!AT181","v":90.747297389086214},{"$f":"'Population 2016'!AU181*'Prevalence Rates'!AU181","v":90.747297389086214},{"$f":"'Population 2016'!AV181*'Prevalence Rates'!AV181","v":77.470468673150407},{"$f":"'Population 2016'!AW181*'Prevalence Rates'!AW181","v":467.09287889891334},{"$f":"'Population 2016'!AX181*'Prevalence Rates'!AX181","v":137.05046149969411},{"$f":"'Population 2016'!AY181*'Prevalence Rates'!AY181","v":791.81106317824913},{"$f":"'Population 2016'!AZ181*'Prevalence Rates'!AZ181","v":487.34392273651991},{"$f":"'Population 2016'!BA181*'Prevalence Rates'!BA181","v":47.99516381113979},{"$f":"'Population 2016'!BB181*'Prevalence Rates'!BB181","v":220.55047877627953},{"$f":"'Population 2016'!BC181*'Prevalence Rates'!BC181","v":4.7711329708187948},179]
[null,"Female 40-44",{"$f":"'Population 2016'!C182*'Prevalence Rates'!C182","v":231.53618392368165},{"$f":"'Population 2016'!D182*'Prevalence Rates'!D182","v":814.65825759714164},{"$f":"'Population 2016'!E182*'Prevalence Rates'!E182","v":523.76556323978843},{"$f":"'Population 2016'!F182*'Prevalence Rates'!F182","v":129.83911967456092},{"$f":"'Population 2016'!G182*'Prevalence Rates'!G182","v":130.58925367439824},{"$f":"'Population 2016'!H182*'Prevalence Rates'!H182","v":330.08640044623979},{"$f":"'Population 2016'!I182*'Prevalence Rates'!I182","v":228.95079828812155},{"$f":"'Population 2016'!J182*'Prevalence Rates'!J182","v":273.23698540499913},{"$f":"'Population 2016'!K182*'Prevalence Rates'!K182","v":60.739670785269851},{"$f":"'Population 2016'!L182*'Prevalence Rates'!L182","v":128.86075892169183},{"$f":"'Population 2016'!M182*'Prevalence Rates'!M182","v":132.70094915545155},{"$f":"'Population 2016'!N182*'Prevalence Rates'!N182","v":118.49107331056138},{"$f":"'Population 2016'!O182*'Prevalence Rates'!O182","v":77.584477022377726},{"$f":"'Population 2016'!P182*'Prevalence Rates'!P182","v":106.11592622954655},{"$f":"'Population 2016'!Q182*'Prevalence Rates'!Q182","v":256.23467129141807},{"$f":"'Population 2016'!R182*'Prevalence Rates'!R182","v":82.297611129447318},{"$f":"'Population 2016'!S182*'Prevalence Rates'!S182","v":1824.4775742618501},{"$f":"'Population 2016'!T182*'Prevalence Rates'!T182","v":640.9500762329626},{"$f":"'Population 2016'!U182*'Prevalence Rates'!U182","v":9.708103611242791},{"$f":"'Population 2016'!V182*'Prevalence Rates'!V182","v":229.37335104843746},{"$f":"'Population 2016'!W182*'Prevalence Rates'!W182","v":347.94088730208966},{"$f":"'Population 2016'!X182*'Prevalence Rates'!X182","v":360.60746890970876},{"$f":"'Population 2016'!Y182*'Prevalence Rates'!Y182","v":488.8803679697574},{"$f":"'Population 2016'!Z182*'Prevalence Rates'!Z182","v":387.53776417405754},{"$f":"'Population 2016'!AA182*'Prevalence Rates'!AA182","v":1637.3948199187489},{"$f":"'Population 2016'!AB182*'Prevalence Rates'!AB182","v":1019.0993551117596},{"$f":"'Population 2016'!AC182*'Prevalence Rates'!AC182","v":865.06120056375471},{"$f":"'Population 2016'!AD182*'Prevalence Rates'!AD182","v":649.48829748030153},{"$f":"'Population 2016'!AE182*'Prevalence Rates'!AE182","v":378.19662993744919},{"$f":"'Population 2016'!AF182*'Prevalence Rates'!AF182","v":91.794564922744598},{"$f":"'Population 2016'!AG182*'Prevalence Rates'!AG182","v":488.68454592586261},{"$f":"'Population 2016'!AH182*'Prevalence Rates'!AH182","v":780.11228858239235},{"$f":"'Population 2016'!AI182*'Prevalence Rates'!AI182","v":1250.791044702464},{"$f":"'Population 2016'!AJ182*'Prevalence Rates'!AJ182","v":104.62176890099423},{"$f":"'Population 2016'!AK182*'Prevalence Rates'!AK182","v":180.50065251602294},{"$f":"'Population 2016'!AL182*'Prevalence Rates'!AL182","v":144.976565932467},{"$f":"'Population 2016'!AM182*'Prevalence Rates'!AM182","v":305.65350832461257},{"$f":"'Population 2016'!AN182*'Prevalence Rates'!AN182","v":69.5691692802163},{"$f":"'Population 2016'!AO182*'Prevalence Rates'!AO182","v":69.5691692802163},{"$f":"'Population 2016'!AP182*'Prevalence Rates'!AP182","v":337.47839747699607},{"$f":"'Population 2016'!AQ182*'Prevalence Rates'!AQ182","v":212.9437519975117},{"$f":"'Population 2016'!AR182*'Prevalence Rates'!AR182","v":6771.2506370897199},{"$f":"'Population 2016'!AS182*'Prevalence Rates'!AS182","v":228.95079828812155},{"$f":"'Population 2016'!AT182*'Prevalence Rates'!AT182","v":97.038601619842183},{"$f":"'Population 2016'!AU182*'Prevalence Rates'!AU182","v":97.038601619842183},{"$f":"'Population 2016'!AV182*'Prevalence Rates'!AV182","v":111.10896164964991},{"$f":"'Population 2016'!AW182*'Prevalence Rates'!AW182","v":495.15505447055028},{"$f":"'Population 2016'!AX182*'Prevalence Rates'!AX182","v":162.18879343238257},{"$f":"'Population 2016'!AY182*'Prevalence Rates'!AY182","v":914.27651878565518},{"$f":"'Population 2016'!AZ182*'Prevalence Rates'!AZ182","v":563.13133929261539},{"$f":"'Population 2016'!BA182*'Prevalence Rates'!BA182","v":60.357554489766706},{"$f":"'Population 2016'!BB182*'Prevalence Rates'!BB182","v":233.21103038656514},{"$f":"'Population 2016'!BC182*'Prevalence Rates'!BC182","v":5.3934546626647242},180]
[null,"Female 45-49",{"$f":"'Population 2016'!C183*'Prevalence Rates'!C183","v":304.08695172339361},{"$f":"'Population 2016'!D183*'Prevalence Rates'!D183","v":1197.0142042234668},{"$f":"'Population 2016'!E183*'Prevalence Rates'!E183","v":795.56963091953071},{"$f":"'Population 2016'!F183*'Prevalence Rates'!F183","v":219.41129275998796},{"$f":"'Population 2016'!G183*'Prevalence Rates'!G183","v":221.33735604874255},{"$f":"'Population 2016'!H183*'Prevalence Rates'!H183","v":508.6313887405704},{"$f":"'Population 2016'!I183*'Prevalence Rates'!I183","v":388.68951999756797},{"$f":"'Population 2016'!J183*'Prevalence Rates'!J183","v":410.77182742655731},{"$f":"'Population 2016'!K183*'Prevalence Rates'!K183","v":96.122385889078316},{"$f":"'Population 2016'!L183*'Prevalence Rates'!L183","v":225.48386916451256},{"$f":"'Population 2016'!M183*'Prevalence Rates'!M183","v":232.20353277259451},{"$f":"'Population 2016'!N183*'Prevalence Rates'!N183","v":175.39447807306246},{"$f":"'Population 2016'!O183*'Prevalence Rates'!O183","v":119.07985448050961},{"$f":"'Population 2016'!P183*'Prevalence Rates'!P183","v":173.18646804055729},{"$f":"'Population 2016'!Q183*'Prevalence Rates'!Q183","v":394.23931898660243},{"$f":"'Population 2016'!R183*'Prevalence Rates'!R183","v":128.18525980954635},{"$f":"'Population 2016'!S183*'Prevalence Rates'!S183","v":2652.874642348725},{"$f":"'Population 2016'!T183*'Prevalence Rates'!T183","v":774.18075226077599},{"$f":"'Population 2016'!U183*'Prevalence Rates'!U183","v":12.41329706568912},{"$f":"'Population 2016'!V183*'Prevalence Rates'!V183","v":330.55211317925273},{"$f":"'Population 2016'!W183*'Prevalence Rates'!W183","v":551.91232399804903},{"$f":"'Population 2016'!X183*'Prevalence Rates'!X183","v":572.00436476502682},{"$f":"'Population 2016'!Y183*'Prevalence Rates'!Y183","v":719.99093944270294},{"$f":"'Population 2016'!Z183*'Prevalence Rates'!Z183","v":552.59886409336866},{"$f":"'Population 2016'!AA183*'Prevalence Rates'!AA183","v":2493.6531777385358},{"$f":"'Population 2016'!AB183*'Prevalence Rates'!AB183","v":1495.4163922798034},{"$f":"'Population 2016'!AC183*'Prevalence Rates'!AC183","v":1354.0740742961736},{"$f":"'Population 2016'!AD183*'Prevalence Rates'!AD183","v":993.80732956785573},{"$f":"'Population 2016'!AE183*'Prevalence Rates'!AE183","v":563.01036627478857},{"$f":"'Population 2016'!AF183*'Prevalence Rates'!AF183","v":155.91017034753565},{"$f":"'Population 2016'!AG183*'Prevalence Rates'!AG183","v":727.49052586759899},{"$f":"'Population 2016'!AH183*'Prevalence Rates'!AH183","v":1149.0869728488822},{"$f":"'Population 2016'!AI183*'Prevalence Rates'!AI183","v":1687.1421292304756},{"$f":"'Population 2016'!AJ183*'Prevalence Rates'!AJ183","v":156.44867295514345},{"$f":"'Population 2016'!AK183*'Prevalence Rates'!AK183","v":263.6639077320329},{"$f":"'Population 2016'!AL183*'Prevalence Rates'!AL183","v":237.81812301853392},{"$f":"'Population 2016'!AM183*'Prevalence Rates'!AM183","v":472.54066160143299},{"$f":"'Population 2016'!AN183*'Prevalence Rates'!AN183","v":103.95609535908075},{"$f":"'Population 2016'!AO183*'Prevalence Rates'!AO183","v":103.95609535908075},{"$f":"'Population 2016'!AP183*'Prevalence Rates'!AP183","v":549.81283634576994},{"$f":"'Population 2016'!AQ183*'Prevalence Rates'!AQ183","v":351.52921234061756},{"$f":"'Population 2016'!AR183*'Prevalence Rates'!AR183","v":10201.809011834386},{"$f":"'Population 2016'!AS183*'Prevalence Rates'!AS183","v":388.68951999756797},{"$f":"'Population 2016'!AT183*'Prevalence Rates'!AT183","v":133.0981857886772},{"$f":"'Population 2016'!AU183*'Prevalence Rates'!AU183","v":133.0981857886772},{"$f":"'Population 2016'!AV183*'Prevalence Rates'!AV183","v":158.49257156164538},{"$f":"'Population 2016'!AW183*'Prevalence Rates'!AW183","v":703.8550854674063},{"$f":"'Population 2016'!AX183*'Prevalence Rates'!AX183","v":239.05021946407842},{"$f":"'Population 2016'!AY183*'Prevalence Rates'!AY183","v":1467.2202278706741},{"$f":"'Population 2016'!AZ183*'Prevalence Rates'!AZ183","v":909.91864917291173},{"$f":"'Population 2016'!BA183*'Prevalence Rates'!BA183","v":112.04522050230815},{"$f":"'Population 2016'!BB183*'Prevalence Rates'!BB183","v":328.46138428695474},{"$f":"'Population 2016'!BC183*'Prevalence Rates'!BC183","v":6.8963576841566692},181]
[null,"Female 50-54",{"$f":"'Population 2016'!C184*'Prevalence Rates'!C184","v":321.29942068886874},{"$f":"'Population 2016'!D184*'Prevalence Rates'!D184","v":1231.8337793259802},{"$f":"'Population 2016'!E184*'Prevalence Rates'!E184","v":812.69418469710365},{"$f":"'Population 2016'!F184*'Prevalence Rates'!F184","v":249.4317543038247},{"$f":"'Population 2016'!G184*'Prevalence Rates'!G184","v":236.16253735870532},{"$f":"'Population 2016'!H184*'Prevalence Rates'!H184","v":548.3271153653634},{"$f":"'Population 2016'!I184*'Prevalence Rates'!I184","v":422.93735941799338},{"$f":"'Population 2016'!J184*'Prevalence Rates'!J184","v":432.99151346528924},{"$f":"'Population 2016'!K184*'Prevalence Rates'!K184","v":86.53411796996825},{"$f":"'Population 2016'!L184*'Prevalence Rates'!L184","v":249.68213805046025},{"$f":"'Population 2016'!M184*'Prevalence Rates'!M184","v":257.12293628965347},{"$f":"'Population 2016'!N184*'Prevalence Rates'!N184","v":195.29905836172776},{"$f":"'Population 2016'!O184*'Prevalence Rates'!O184","v":122.80664575337205},{"$f":"'Population 2016'!P184*'Prevalence Rates'!P184","v":193.86884152046636},{"$f":"'Population 2016'!Q184*'Prevalence Rates'!Q184","v":384.31956617241758},{"$f":"'Population 2016'!R184*'Prevalence Rates'!R184","v":128.63981746844544},{"$f":"'Population 2016'!S184*'Prevalence Rates'!S184","v":2739.9063369566848},{"$f":"'Population 2016'!T184*'Prevalence Rates'!T184","v":841.44563729326967},{"$f":"'Population 2016'!U184*'Prevalence Rates'!U184","v":15.755338583374652},{"$f":"'Population 2016'!V184*'Prevalence Rates'!V184","v":308.7518971260198},{"$f":"'Population 2016'!W184*'Prevalence Rates'!W184","v":576.94040436699879},{"$f":"'Population 2016'!X184*'Prevalence Rates'!X184","v":597.94357755343299},{"$f":"'Population 2016'!Y184*'Prevalence Rates'!Y184","v":717.33316557986529},{"$f":"'Population 2016'!Z184*'Prevalence Rates'!Z184","v":583.21715221910938},{"$f":"'Population 2016'!AA184*'Prevalence Rates'!AA184","v":2600.5339429407995},{"$f":"'Population 2016'!AB184*'Prevalence Rates'!AB184","v":1542.0304422910442},{"$f":"'Population 2016'!AC184*'Prevalence Rates'!AC184","v":1452.3099352566198},{"$f":"'Population 2016'!AD184*'Prevalence Rates'!AD184","v":1074.1754177218645},{"$f":"'Population 2016'!AE184*'Prevalence Rates'!AE184","v":610.78094280719495},{"$f":"'Population 2016'!AF184*'Prevalence Rates'!AF184","v":173.79324319838383},{"$f":"'Population 2016'!AG184*'Prevalence Rates'!AG184","v":789.21699472909222},{"$f":"'Population 2016'!AH184*'Prevalence Rates'!AH184","v":1155.5735604020747},{"$f":"'Population 2016'!AI184*'Prevalence Rates'!AI184","v":1706.3970800396078},{"$f":"'Population 2016'!AJ184*'Prevalence Rates'!AJ184","v":152.76419333844623},{"$f":"'Population 2016'!AK184*'Prevalence Rates'!AK184","v":273.76245573012613},{"$f":"'Population 2016'!AL184*'Prevalence Rates'!AL184","v":276.51965718900288},{"$f":"'Population 2016'!AM184*'Prevalence Rates'!AM184","v":469.58159194785947},{"$f":"'Population 2016'!AN184*'Prevalence Rates'!AN184","v":108.16697517109414},{"$f":"'Population 2016'!AO184*'Prevalence Rates'!AO184","v":108.16697517109414},{"$f":"'Population 2016'!AP184*'Prevalence Rates'!AP184","v":557.79990935118553},{"$f":"'Population 2016'!AQ184*'Prevalence Rates'!AQ184","v":375.08943373130631},{"$f":"'Population 2016'!AR184*'Prevalence Rates'!AR184","v":10657.86655755293},{"$f":"'Population 2016'!AS184*'Prevalence Rates'!AS184","v":422.93735941799338},{"$f":"'Population 2016'!AT184*'Prevalence Rates'!AT184","v":138.46111635159093},{"$f":"'Population 2016'!AU184*'Prevalence Rates'!AU184","v":138.46111635159093},{"$f":"'Population 2016'!AV184*'Prevalence Rates'!AV184","v":160.3173215631775},{"$f":"'Population 2016'!AW184*'Prevalence Rates'!AW184","v":714.25560390800342},{"$f":"'Population 2016'!AX184*'Prevalence Rates'!AX184","v":266.66956752964927},{"$f":"'Population 2016'!AY184*'Prevalence Rates'!AY184","v":1549.0024874394412},{"$f":"'Population 2016'!AZ184*'Prevalence Rates'!AZ184","v":966.15307424152275},{"$f":"'Population 2016'!BA184*'Prevalence Rates'!BA184","v":125.52784039677677},{"$f":"'Population 2016'!BB184*'Prevalence Rates'!BB184","v":305.4690873868679},{"$f":"'Population 2016'!BC184*'Prevalence Rates'!BC184","v":8.7530693683526959},182]
[null,"Female 55-59",{"$f":"'Population 2016'!C185*'Prevalence Rates'!C185","v":331.49351258309213},{"$f":"'Population 2016'!D185*'Prevalence Rates'!D185","v":1200.0759335115499},{"$f":"'Population 2016'!E185*'Prevalence Rates'!E185","v":778.45315373838548},{"$f":"'Population 2016'!F185*'Prevalence Rates'!F185","v":246.2873361575266},{"$f":"'Population 2016'!G185*'Prevalence Rates'!G185","v":245.76801813255244},{"$f":"'Population 2016'!H185*'Prevalence Rates'!H185","v":584.89047639737191},{"$f":"'Population 2016'!I185*'Prevalence Rates'!I185","v":442.00612515774634},{"$f":"'Population 2016'!J185*'Prevalence Rates'!J185","v":400.06176807489538},{"$f":"'Population 2016'!K185*'Prevalence Rates'!K185","v":86.008306886564213},{"$f":"'Population 2016'!L185*'Prevalence Rates'!L185","v":279.2027518766842},{"$f":"'Population 2016'!M185*'Prevalence Rates'!M185","v":287.52329639285654},{"$f":"'Population 2016'!N185*'Prevalence Rates'!N185","v":219.44942731650082},{"$f":"'Population 2016'!O185*'Prevalence Rates'!O185","v":130.51609397993911},{"$f":"'Population 2016'!P185*'Prevalence Rates'!P185","v":231.47790177135028},{"$f":"'Population 2016'!Q185*'Prevalence Rates'!Q185","v":401.40494082707266},{"$f":"'Population 2016'!R185*'Prevalence Rates'!R185","v":132.20072726985214},{"$f":"'Population 2016'!S185*'Prevalence Rates'!S185","v":2752.6920870282843},{"$f":"'Population 2016'!T185*'Prevalence Rates'!T185","v":841.10718465397542},{"$f":"'Population 2016'!U185*'Prevalence Rates'!U185","v":15.428231825929496},{"$f":"'Population 2016'!V185*'Prevalence Rates'!V185","v":301.39158557553668},{"$f":"'Population 2016'!W185*'Prevalence Rates'!W185","v":593.60151260713303},{"$f":"'Population 2016'!X185*'Prevalence Rates'!X185","v":615.21122355586772},{"$f":"'Population 2016'!Y185*'Prevalence Rates'!Y185","v":679.68091183953038},{"$f":"'Population 2016'!Z185*'Prevalence Rates'!Z185","v":571.27402559534494},{"$f":"'Population 2016'!AA185*'Prevalence Rates'!AA185","v":2610.3567144327662},{"$f":"'Population 2016'!AB185*'Prevalence Rates'!AB185","v":1514.9838158554596},{"$f":"'Population 2016'!AC185*'Prevalence Rates'!AC185","v":1506.8393321192402},{"$f":"'Population 2016'!AD185*'Prevalence Rates'!AD185","v":1090.015938911002},{"$f":"'Population 2016'!AE185*'Prevalence Rates'!AE185","v":615.32531670946935},{"$f":"'Population 2016'!AF185*'Prevalence Rates'!AF185","v":165.87297548641402},{"$f":"'Population 2016'!AG185*'Prevalence Rates'!AG185","v":795.08898067808809},{"$f":"'Population 2016'!AH185*'Prevalence Rates'!AH185","v":1107.7642971860935},{"$f":"'Population 2016'!AI185*'Prevalence Rates'!AI185","v":1674.2105114542978},{"$f":"'Population 2016'!AJ185*'Prevalence Rates'!AJ185","v":145.90801153588322},{"$f":"'Population 2016'!AK185*'Prevalence Rates'!AK185","v":276.61599778913376},{"$f":"'Population 2016'!AL185*'Prevalence Rates'!AL185","v":277.8146944655802},{"$f":"'Population 2016'!AM185*'Prevalence Rates'!AM185","v":429.66462519495258},{"$f":"'Population 2016'!AN185*'Prevalence Rates'!AN185","v":117.01192287237703},{"$f":"'Population 2016'!AO185*'Prevalence Rates'!AO185","v":117.01192287237703},{"$f":"'Population 2016'!AP185*'Prevalence Rates'!AP185","v":557.57554684557522},{"$f":"'Population 2016'!AQ185*'Prevalence Rates'!AQ185","v":390.51767844869721},{"$f":"'Population 2016'!AR185*'Prevalence Rates'!AR185","v":10727.984239224257},{"$f":"'Population 2016'!AS185*'Prevalence Rates'!AS185","v":442.00612515774634},{"$f":"'Population 2016'!AT185*'Prevalence Rates'!AT185","v":135.81691289713027},{"$f":"'Population 2016'!AU185*'Prevalence Rates'!AU185","v":135.81691289713027},{"$f":"'Population 2016'!AV185*'Prevalence Rates'!AV185","v":187.64725166946906},{"$f":"'Population 2016'!AW185*'Prevalence Rates'!AW185","v":708.10972015070536},{"$f":"'Population 2016'!AX185*'Prevalence Rates'!AX185","v":240.37427587933433},{"$f":"'Population 2016'!AY185*'Prevalence Rates'!AY185","v":1583.5974236747279},{"$f":"'Population 2016'!AZ185*'Prevalence Rates'!AZ185","v":984.09935032005569},{"$f":"'Population 2016'!BA185*'Prevalence Rates'!BA185","v":144.7979664368863},{"$f":"'Population 2016'!BB185*'Prevalence Rates'!BB185","v":271.36760019646317},{"$f":"'Population 2016'!BC185*'Prevalence Rates'!BC185","v":8.5713412433985496},183]
[null,"Female 60-64",{"$f":"'Population 2016'!C186*'Prevalence Rates'!C186","v":306.55957431744002},{"$f":"'Population 2016'!D186*'Prevalence Rates'!D186","v":1083.948305308307},{"$f":"'Population 2016'!E186*'Prevalence Rates'!E186","v":697.98693879200778},{"$f":"'Population 2016'!F186*'Prevalence Rates'!F186","v":248.30792505945709},{"$f":"'Population 2016'!G186*'Prevalence Rates'!G186","v":232.72608320806557},{"$f":"'Population 2016'!H186*'Prevalence Rates'!H186","v":543.85488033122374},{"$f":"'Population 2016'!I186*'Prevalence Rates'!I186","v":398.35442622141068},{"$f":"'Population 2016'!J186*'Prevalence Rates'!J186","v":333.27621232949343},{"$f":"'Population 2016'!K186*'Prevalence Rates'!K186","v":70.516127385257619},{"$f":"'Population 2016'!L186*'Prevalence Rates'!L186","v":268.90730360730691},{"$f":"'Population 2016'!M186*'Prevalence Rates'!M186","v":276.92103261015245},{"$f":"'Population 2016'!N186*'Prevalence Rates'!N186","v":156.82414484805827},{"$f":"'Population 2016'!O186*'Prevalence Rates'!O186","v":116.47572629421839},{"$f":"'Population 2016'!P186*'Prevalence Rates'!P186","v":184.87841169921847},{"$f":"'Population 2016'!Q186*'Prevalence Rates'!Q186","v":335.39893560845883},{"$f":"'Population 2016'!R186*'Prevalence Rates'!R186","v":118.0182737696381},{"$f":"'Population 2016'!S186*'Prevalence Rates'!S186","v":2400.5485558090913},{"$f":"'Population 2016'!T186*'Prevalence Rates'!T186","v":705.69564546840479},{"$f":"'Population 2016'!U186*'Prevalence Rates'!U186","v":10.108151885953808},{"$f":"'Population 2016'!V186*'Prevalence Rates'!V186","v":250.83011058207737},{"$f":"'Population 2016'!W186*'Prevalence Rates'!W186","v":540.94913056543101},{"$f":"'Population 2016'!X186*'Prevalence Rates'!X186","v":560.64206277873723},{"$f":"'Population 2016'!Y186*'Prevalence Rates'!Y186","v":565.95652397618414},{"$f":"'Population 2016'!Z186*'Prevalence Rates'!Z186","v":446.26518482961728},{"$f":"'Population 2016'!AA186*'Prevalence Rates'!AA186","v":2154.0727538811175},{"$f":"'Population 2016'!AB186*'Prevalence Rates'!AB186","v":1363.8789365597463},{"$f":"'Population 2016'!AC186*'Prevalence Rates'!AC186","v":1219.966112577501},{"$f":"'Population 2016'!AD186*'Prevalence Rates'!AD186","v":1038.4278407652541},{"$f":"'Population 2016'!AE186*'Prevalence Rates'!AE186","v":587.23116390399059},{"$f":"'Population 2016'!AF186*'Prevalence Rates'!AF186","v":130.22852897748919},{"$f":"'Population 2016'!AG186*'Prevalence Rates'!AG186","v":758.78728674393585},{"$f":"'Population 2016'!AH186*'Prevalence Rates'!AH186","v":939.10999384456647},{"$f":"'Population 2016'!AI186*'Prevalence Rates'!AI186","v":1412.5135285959077},{"$f":"'Population 2016'!AJ186*'Prevalence Rates'!AJ186","v":133.27528326437817},{"$f":"'Population 2016'!AK186*'Prevalence Rates'!AK186","v":246.33554832700966},{"$f":"'Population 2016'!AL186*'Prevalence Rates'!AL186","v":278.43969940251066},{"$f":"'Population 2016'!AM186*'Prevalence Rates'!AM186","v":366.50849079498613},{"$f":"'Population 2016'!AN186*'Prevalence Rates'!AN186","v":108.21403393460432},{"$f":"'Population 2016'!AO186*'Prevalence Rates'!AO186","v":108.21403393460432},{"$f":"'Population 2016'!AP186*'Prevalence Rates'!AP186","v":526.78621552709649},{"$f":"'Population 2016'!AQ186*'Prevalence Rates'!AQ186","v":338.60776549982529},{"$f":"'Population 2016'!AR186*'Prevalence Rates'!AR186","v":9447.2762197076827},{"$f":"'Population 2016'!AS186*'Prevalence Rates'!AS186","v":398.35442622141068},{"$f":"'Population 2016'!AT186*'Prevalence Rates'!AT186","v":122.5068554332115},{"$f":"'Population 2016'!AU186*'Prevalence Rates'!AU186","v":122.5068554332115},{"$f":"'Population 2016'!AV186*'Prevalence Rates'!AV186","v":162.95682381822314},{"$f":"'Population 2016'!AW186*'Prevalence Rates'!AW186","v":597.72109356420015},{"$f":"'Population 2016'!AX186*'Prevalence Rates'!AX186","v":201.37315164725689},{"$f":"'Population 2016'!AY186*'Prevalence Rates'!AY186","v":1447.4904629484836},{"$f":"'Population 2016'!AZ186*'Prevalence Rates'!AZ186","v":901.08909027191191},{"$f":"'Population 2016'!BA186*'Prevalence Rates'!BA186","v":108.27468688840513},{"$f":"'Population 2016'!BB186*'Prevalence Rates'!BB186","v":226.13966683038598},{"$f":"'Population 2016'!BC186*'Prevalence Rates'!BC186","v":5.6157063318818086},184]
[null,"Female 65-69",{"$f":"'Population 2016'!C187*'Prevalence Rates'!C187","v":157.31371750378557},{"$f":"'Population 2016'!D187*'Prevalence Rates'!D187","v":535.85631231603509},{"$f":"'Population 2016'!E187*'Prevalence Rates'!E187","v":340.90842606315135},{"$f":"'Population 2016'!F187*'Prevalence Rates'!F187","v":132.73930673847923},{"$f":"'Population 2016'!G187*'Prevalence Rates'!G187","v":132.95433972642257},{"$f":"'Population 2016'!H187*'Prevalence Rates'!H187","v":276.06842185095991},{"$f":"'Population 2016'!I187*'Prevalence Rates'!I187","v":215.47458378415155},{"$f":"'Population 2016'!J187*'Prevalence Rates'!J187","v":172.16998410636992},{"$f":"'Population 2016'!K187*'Prevalence Rates'!K187","v":38.982125866591453},{"$f":"'Population 2016'!L187*'Prevalence Rates'!L187","v":127.47054462009224},{"$f":"'Population 2016'!M187*'Prevalence Rates'!M187","v":131.26930496139664},{"$f":"'Population 2016'!N187*'Prevalence Rates'!N187","v":86.301810688640884},{"$f":"'Population 2016'!O187*'Prevalence Rates'!O187","v":57.326640197008963},{"$f":"'Population 2016'!P187*'Prevalence Rates'!P187","v":90.068913811239867},{"$f":"'Population 2016'!Q187*'Prevalence Rates'!Q187","v":167.21829852802293},{"$f":"'Population 2016'!R187*'Prevalence Rates'!R187","v":53.612448697166592},{"$f":"'Population 2016'!S187*'Prevalence Rates'!S187","v":1217.7953675207505},{"$f":"'Population 2016'!T187*'Prevalence Rates'!T187","v":337.94439489501082},{"$f":"'Population 2016'!U187*'Prevalence Rates'!U187","v":7.8172418137210489},{"$f":"'Population 2016'!V187*'Prevalence Rates'!V187","v":138.86641659182865},{"$f":"'Population 2016'!W187*'Prevalence Rates'!W187","v":277.34850954819177},{"$f":"'Population 2016'!X187*'Prevalence Rates'!X187","v":287.44521751828324},{"$f":"'Population 2016'!Y187*'Prevalence Rates'!Y187","v":302.11042239134872},{"$f":"'Population 2016'!Z187*'Prevalence Rates'!Z187","v":194.5486654174714},{"$f":"'Population 2016'!AA187*'Prevalence Rates'!AA187","v":972.78143671412261},{"$f":"'Population 2016'!AB187*'Prevalence Rates'!AB187","v":691.23393215156204},{"$f":"'Population 2016'!AC187*'Prevalence Rates'!AC187","v":563.79079324939164},{"$f":"'Population 2016'!AD187*'Prevalence Rates'!AD187","v":526.3317292535686},{"$f":"'Population 2016'!AE187*'Prevalence Rates'!AE187","v":286.71088295242168},{"$f":"'Population 2016'!AF187*'Prevalence Rates'!AF187","v":60.672411404779162},{"$f":"'Population 2016'!AG187*'Prevalence Rates'!AG187","v":370.47177726248009},{"$f":"'Population 2016'!AH187*'Prevalence Rates'!AH187","v":410.42978049940029},{"$f":"'Population 2016'!AI187*'Prevalence Rates'!AI187","v":695.95733866827152},{"$f":"'Population 2016'!AJ187*'Prevalence Rates'!AJ187","v":72.204326457537647},{"$f":"'Population 2016'!AK187*'Prevalence Rates'!AK187","v":135.02987089352601},{"$f":"'Population 2016'!AL187*'Prevalence Rates'!AL187","v":142.26989802618493},{"$f":"'Population 2016'!AM187*'Prevalence Rates'!AM187","v":152.36207311978669},{"$f":"'Population 2016'!AN187*'Prevalence Rates'!AN187","v":55.799968753214479},{"$f":"'Population 2016'!AO187*'Prevalence Rates'!AO187","v":55.799968753214479},{"$f":"'Population 2016'!AP187*'Prevalence Rates'!AP187","v":265.86487378440069},{"$f":"'Population 2016'!AQ187*'Prevalence Rates'!AQ187","v":157.0686141571087},{"$f":"'Population 2016'!AR187*'Prevalence Rates'!AR187","v":4682.4350355388624},{"$f":"'Population 2016'!AS187*'Prevalence Rates'!AS187","v":215.47458378415155},{"$f":"'Population 2016'!AT187*'Prevalence Rates'!AT187","v":57.367124197096203},{"$f":"'Population 2016'!AU187*'Prevalence Rates'!AU187","v":57.367124197096203},{"$f":"'Population 2016'!AV187*'Prevalence Rates'!AV187","v":84.495953164139863},{"$f":"'Population 2016'!AW187*'Prevalence Rates'!AW187","v":270.15845942079176},{"$f":"'Population 2016'!AX187*'Prevalence Rates'!AX187","v":101.49260125046763},{"$f":"'Population 2016'!AY187*'Prevalence Rates'!AY187","v":749.02236310218223},{"$f":"'Population 2016'!AZ187*'Prevalence Rates'!AZ187","v":468.75413019917312},{"$f":"'Population 2016'!BA187*'Prevalence Rates'!BA187","v":56.382647405216659},{"$f":"'Population 2016'!BB187*'Prevalence Rates'!BB187","v":111.59759483720073},{"$f":"'Population 2016'!BC187*'Prevalence Rates'!BC187","v":4.3429634661670082},185]
[null,"Female 70-74",{"$f":"'Population 2016'!C188*'Prevalence Rates'!C188","v":110.8201896585372},{"$f":"'Population 2016'!D188*'Prevalence Rates'!D188","v":387.73562674267458},{"$f":"'Population 2016'!E188*'Prevalence Rates'!E188","v":248.83910306860193},{"$f":"'Population 2016'!F188*'Prevalence Rates'!F188","v":105.45338353360228},{"$f":"'Population 2016'!G188*'Prevalence Rates'!G188","v":105.23747411570255},{"$f":"'Population 2016'!H188*'Prevalence Rates'!H188","v":232.53455532830853},{"$f":"'Population 2016'!I188*'Prevalence Rates'!I188","v":172.37966702732123},{"$f":"'Population 2016'!J188*'Prevalence Rates'!J188","v":136.95708443522733},{"$f":"'Population 2016'!K188*'Prevalence Rates'!K188","v":30.201169186744917},{"$f":"'Population 2016'!L188*'Prevalence Rates'!L188","v":109.88840053456228},{"$f":"'Population 2016'!M188*'Prevalence Rates'!M188","v":113.16319393223849},{"$f":"'Population 2016'!N188*'Prevalence Rates'!N188","v":60.567234609799179},{"$f":"'Population 2016'!O188*'Prevalence Rates'!O188","v":42.453233547956806},{"$f":"'Population 2016'!P188*'Prevalence Rates'!P188","v":63.956497622266966},{"$f":"'Population 2016'!Q188*'Prevalence Rates'!Q188","v":119.71131249278028},{"$f":"'Population 2016'!R188*'Prevalence Rates'!R188","v":41.880783452845428},{"$f":"'Population 2016'!S188*'Prevalence Rates'!S188","v":922.95604888771845},{"$f":"'Population 2016'!T188*'Prevalence Rates'!T188","v":254.47089662495603},{"$f":"'Population 2016'!U188*'Prevalence Rates'!U188","v":6.0947987022231906},{"$f":"'Population 2016'!V188*'Prevalence Rates'!V188","v":103.97394312194669},{"$f":"'Population 2016'!W188*'Prevalence Rates'!W188","v":214.71756373916574},{"$f":"'Population 2016'!X188*'Prevalence Rates'!X188","v":222.53422927905089},{"$f":"'Population 2016'!Y188*'Prevalence Rates'!Y188","v":233.51601496362551},{"$f":"'Population 2016'!Z188*'Prevalence Rates'!Z188","v":139.35176942900642},{"$f":"'Population 2016'!AA188*'Prevalence Rates'!AA188","v":691.45037443315084},{"$f":"'Population 2016'!AB188*'Prevalence Rates'!AB188","v":505.16264304308856},{"$f":"'Population 2016'!AC188*'Prevalence Rates'!AC188","v":416.51329612443942},{"$f":"'Population 2016'!AD188*'Prevalence Rates'!AD188","v":403.1937794309427},{"$f":"'Population 2016'!AE188*'Prevalence Rates'!AE188","v":217.16376602341222},{"$f":"'Population 2016'!AF188*'Prevalence Rates'!AF188","v":50.746740414596395},{"$f":"'Population 2016'!AG188*'Prevalence Rates'!AG188","v":280.60688009899411},{"$f":"'Population 2016'!AH188*'Prevalence Rates'!AH188","v":274.95328375235982},{"$f":"'Population 2016'!AI188*'Prevalence Rates'!AI188","v":510.06645342137165},{"$f":"'Population 2016'!AJ188*'Prevalence Rates'!AJ188","v":55.686996875747994},{"$f":"'Population 2016'!AK188*'Prevalence Rates'!AK188","v":101.60360851384561},{"$f":"'Population 2016'!AL188*'Prevalence Rates'!AL188","v":115.96397596226234},{"$f":"'Population 2016'!AM188*'Prevalence Rates'!AM188","v":99.806001463210194},{"$f":"'Population 2016'!AN188*'Prevalence Rates'!AN188","v":42.215159606489486},{"$f":"'Population 2016'!AO188*'Prevalence Rates'!AO188","v":42.215159606489486},{"$f":"'Population 2016'!AP188*'Prevalence Rates'!AP188","v":202.24421223437056},{"$f":"'Population 2016'!AQ188*'Prevalence Rates'!AQ188","v":112.93485975345563},{"$f":"'Population 2016'!AR188*'Prevalence Rates'!AR188","v":3532.4951311448881},{"$f":"'Population 2016'!AS188*'Prevalence Rates'!AS188","v":172.37966702732123},{"$f":"'Population 2016'!AT188*'Prevalence Rates'!AT188","v":46.272538857091746},{"$f":"'Population 2016'!AU188*'Prevalence Rates'!AU188","v":46.272538857091746},{"$f":"'Population 2016'!AV188*'Prevalence Rates'!AV188","v":83.338474353672197},{"$f":"'Population 2016'!AW188*'Prevalence Rates'!AW188","v":183.56920960643544},{"$f":"'Population 2016'!AX188*'Prevalence Rates'!AX188","v":81.537675744190793},{"$f":"'Population 2016'!AY188*'Prevalence Rates'!AY188","v":573.55454988563599},{"$f":"'Population 2016'!AZ188*'Prevalence Rates'!AZ188","v":356.69079637023077},{"$f":"'Population 2016'!BA188*'Prevalence Rates'!BA188","v":43.351417684560182},{"$f":"'Population 2016'!BB188*'Prevalence Rates'!BB188","v":76.829149304490585},{"$f":"'Population 2016'!BC188*'Prevalence Rates'!BC188","v":3.3860393126047859},186]
[null,"Female 75-79",{"$f":"'Population 2016'!C189*'Prevalence Rates'!C189","v":60.487584985587311},{"$f":"'Population 2016'!D189*'Prevalence Rates'!D189","v":199.29209511109309},{"$f":"'Population 2016'!E189*'Prevalence Rates'!E189","v":125.363993114137},{"$f":"'Population 2016'!F189*'Prevalence Rates'!F189","v":52.671995874891792},{"$f":"'Population 2016'!G189*'Prevalence Rates'!G189","v":51.968554574738604},{"$f":"'Population 2016'!H189*'Prevalence Rates'!H189","v":105.18534708610996},{"$f":"'Population 2016'!I189*'Prevalence Rates'!I189","v":89.228623677082666},{"$f":"'Population 2016'!J189*'Prevalence Rates'!J189","v":64.456629725411005},{"$f":"'Population 2016'!K189*'Prevalence Rates'!K189","v":12.720935675731857},{"$f":"'Population 2016'!L189*'Prevalence Rates'!L189","v":55.550819093909659},{"$f":"'Population 2016'!M189*'Prevalence Rates'!M189","v":57.206293691039896},{"$f":"'Population 2016'!N189*'Prevalence Rates'!N189","v":33.945415324414384},{"$f":"'Population 2016'!O189*'Prevalence Rates'!O189","v":19.278277756072519},{"$f":"'Population 2016'!P189*'Prevalence Rates'!P189","v":38.855530256666277},{"$f":"'Population 2016'!Q189*'Prevalence Rates'!Q189","v":57.538731125444862},{"$f":"'Population 2016'!R189*'Prevalence Rates'!R189","v":24.446604453152535},{"$f":"'Population 2016'!S189*'Prevalence Rates'!S189","v":459.48482125764014},{"$f":"'Population 2016'!T189*'Prevalence Rates'!T189","v":133.57421747320672},{"$f":"'Population 2016'!U189*'Prevalence Rates'!U189","v":3.2308739928345345},{"$f":"'Population 2016'!V189*'Prevalence Rates'!V189","v":52.545792912224044},{"$f":"'Population 2016'!W189*'Prevalence Rates'!W189","v":100.59162337338611},{"$f":"'Population 2016'!X189*'Prevalence Rates'!X189","v":104.25360175247681},{"$f":"'Population 2016'!Y189*'Prevalence Rates'!Y189","v":113.68774499418407},{"$f":"'Population 2016'!Z189*'Prevalence Rates'!Z189","v":80.262251560759196},{"$f":"'Population 2016'!AA189*'Prevalence Rates'!AA189","v":369.63191888198162},{"$f":"'Population 2016'!AB189*'Prevalence Rates'!AB189","v":253.39539975830061},{"$f":"'Population 2016'!AC189*'Prevalence Rates'!AC189","v":224.00546666312059},{"$f":"'Population 2016'!AD189*'Prevalence Rates'!AD189","v":199.81492373923561},{"$f":"'Population 2016'!AE189*'Prevalence Rates'!AE189","v":107.75698902119397},{"$f":"'Population 2016'!AF189*'Prevalence Rates'!AF189","v":21.709598006341288},{"$f":"'Population 2016'!AG189*'Prevalence Rates'!AG189","v":139.23755814236037},{"$f":"'Population 2016'!AH189*'Prevalence Rates'!AH189","v":145.54907595403066},{"$f":"'Population 2016'!AI189*'Prevalence Rates'!AI189","v":258.21263509009947},{"$f":"'Population 2016'!AJ189*'Prevalence Rates'!AJ189","v":26.54857243156491},{"$f":"'Population 2016'!AK189*'Prevalence Rates'!AK189","v":47.346450867229052},{"$f":"'Population 2016'!AL189*'Prevalence Rates'!AL189","v":51.141289529444734},{"$f":"'Population 2016'!AM189*'Prevalence Rates'!AM189","v":54.884931089420697},{"$f":"'Population 2016'!AN189*'Prevalence Rates'!AN189","v":21.27802619154599},{"$f":"'Population 2016'!AO189*'Prevalence Rates'!AO189","v":21.27802619154599},{"$f":"'Population 2016'!AP189*'Prevalence Rates'!AP189","v":106.79251010571392},{"$f":"'Population 2016'!AQ189*'Prevalence Rates'!AQ189","v":54.353081289245743},{"$f":"'Population 2016'!AR189*'Prevalence Rates'!AR189","v":1783.4820077317088},{"$f":"'Population 2016'!AS189*'Prevalence Rates'!AS189","v":89.228623677082666},{"$f":"'Population 2016'!AT189*'Prevalence Rates'!AT189","v":20.924214064997962},{"$f":"'Population 2016'!AU189*'Prevalence Rates'!AU189","v":20.924214064997962},{"$f":"'Population 2016'!AV189*'Prevalence Rates'!AV189","v":38.809159140568994},{"$f":"'Population 2016'!AW189*'Prevalence Rates'!AW189","v":94.830397811621481},{"$f":"'Population 2016'!AX189*'Prevalence Rates'!AX189","v":39.857119670750684},{"$f":"'Population 2016'!AY189*'Prevalence Rates'!AY189","v":288.94745350764316},{"$f":"'Population 2016'!AZ189*'Prevalence Rates'!AZ189","v":186.98471571194281},{"$f":"'Population 2016'!BA189*'Prevalence Rates'!BA189","v":22.437176640043099},{"$f":"'Population 2016'!BB189*'Prevalence Rates'!BB189","v":39.274146868791163},{"$f":"'Population 2016'!BC189*'Prevalence Rates'!BC189","v":1.7949512179655103},187]
[null,"Female 80-84",{"$f":"'Population 2016'!C190*'Prevalence Rates'!C190","v":46.693963409482095},{"$f":"'Population 2016'!D190*'Prevalence Rates'!D190","v":149.85933000520839},{"$f":"'Population 2016'!E190*'Prevalence Rates'!E190","v":93.398379395116137},{"$f":"'Population 2016'!F190*'Prevalence Rates'!F190","v":42.410285506895164},{"$f":"'Population 2016'!G190*'Prevalence Rates'!G190","v":35.479423176693203},{"$f":"'Population 2016'!H190*'Prevalence Rates'!H190","v":80.145272557108882},{"$f":"'Population 2016'!I190*'Prevalence Rates'!I190","v":60.906054925649116},{"$f":"'Population 2016'!J190*'Prevalence Rates'!J190","v":50.60730540638086},{"$f":"'Population 2016'!K190*'Prevalence Rates'!K190","v":9.3912947941644571},{"$f":"'Population 2016'!L190*'Prevalence Rates'!L190","v":43.954879424094948},{"$f":"'Population 2016'!M190*'Prevalence Rates'!M190","v":45.264782455110556},{"$f":"'Population 2016'!N190*'Prevalence Rates'!N190","v":33.778607386702276},{"$f":"'Population 2016'!O190*'Prevalence Rates'!O190","v":12.072626398065085},{"$f":"'Population 2016'!P190*'Prevalence Rates'!P190","v":27.27982020103445},{"$f":"'Population 2016'!Q190*'Prevalence Rates'!Q190","v":44.718698050126449},{"$f":"'Population 2016'!R190*'Prevalence Rates'!R190","v":20.803898491590072},{"$f":"'Population 2016'!S190*'Prevalence Rates'!S190","v":343.14878362535813},{"$f":"'Population 2016'!T190*'Prevalence Rates'!T190","v":114.47604255529477},{"$f":"'Population 2016'!U190*'Prevalence Rates'!U190","v":1.6154369964172672},{"$f":"'Population 2016'!V190*'Prevalence Rates'!V190","v":38.190498972286548},{"$f":"'Population 2016'!W190*'Prevalence Rates'!W190","v":75.001852110332194},{"$f":"'Population 2016'!X190*'Prevalence Rates'!X190","v":77.732250046155357},{"$f":"'Population 2016'!Y190*'Prevalence Rates'!Y190","v":86.046761198762127},{"$f":"'Population 2016'!Z190*'Prevalence Rates'!Z190","v":60.283930248352824},{"$f":"'Population 2016'!AA190*'Prevalence Rates'!AA190","v":272.15653768773637},{"$f":"'Population 2016'!AB190*'Prevalence Rates'!AB190","v":194.28098651223775},{"$f":"'Population 2016'!AC190*'Prevalence Rates'!AC190","v":171.08065622709424},{"$f":"'Population 2016'!AD190*'Prevalence Rates'!AD190","v":151.55179195057462},{"$f":"'Population 2016'!AE190*'Prevalence Rates'!AE190","v":84.598688749095274},{"$f":"'Population 2016'!AF190*'Prevalence Rates'!AF190","v":20.27425268360798},{"$f":"'Population 2016'!AG190*'Prevalence Rates'!AG190","v":109.31369696264258},{"$f":"'Population 2016'!AH190*'Prevalence Rates'!AH190","v":100.62652164723106},{"$f":"'Population 2016'!AI190*'Prevalence Rates'!AI190","v":200.12778075796041},{"$f":"'Population 2016'!AJ190*'Prevalence Rates'!AJ190","v":17.968235333910851},{"$f":"'Population 2016'!AK190*'Prevalence Rates'!AK190","v":38.518038067400433},{"$f":"'Population 2016'!AL190*'Prevalence Rates'!AL190","v":38.056311153746961},{"$f":"'Population 2016'!AM190*'Prevalence Rates'!AM190","v":34.779372876457131},{"$f":"'Population 2016'!AN190*'Prevalence Rates'!AN190","v":12.560596958886178},{"$f":"'Population 2016'!AO190*'Prevalence Rates'!AO190","v":12.560596958886178},{"$f":"'Population 2016'!AP190*'Prevalence Rates'!AP190","v":78.037723367386349},{"$f":"'Population 2016'!AQ190*'Prevalence Rates'!AQ190","v":41.86140822101558},{"$f":"'Population 2016'!AR190*'Prevalence Rates'!AR190","v":1346.4824081938157},{"$f":"'Population 2016'!AS190*'Prevalence Rates'!AS190","v":60.906054925649116},{"$f":"'Population 2016'!AT190*'Prevalence Rates'!AT190","v":14.933463979998544},{"$f":"'Population 2016'!AU190*'Prevalence Rates'!AU190","v":14.933463979998544},{"$f":"'Population 2016'!AV190*'Prevalence Rates'!AV190","v":34.25976010255971},{"$f":"'Population 2016'!AW190*'Prevalence Rates'!AW190","v":69.178034341094971},{"$f":"'Population 2016'!AX190*'Prevalence Rates'!AX190","v":31.88569573660055},{"$f":"'Population 2016'!AY190*'Prevalence Rates'!AY190","v":224.82053754293571},{"$f":"'Population 2016'!AZ190*'Prevalence Rates'!AZ190","v":148.62698154020433},{"$f":"'Population 2016'!BA190*'Prevalence Rates'!BA190","v":14.654539724308592},{"$f":"'Population 2016'!BB190*'Prevalence Rates'!BB190","v":24.400108267419192},{"$f":"'Population 2016'!BC190*'Prevalence Rates'!BC190","v":0.89747560898275514},188]
[null,"Female 85-89",{"$f":"'Population 2016'!C191*'Prevalence Rates'!C191","v":28.608992898588593},{"$f":"'Population 2016'!D191*'Prevalence Rates'!D191","v":94.269150298415227},{"$f":"'Population 2016'!E191*'Prevalence Rates'!E191","v":59.30172476149388},{"$f":"'Population 2016'!F191*'Prevalence Rates'!F191","v":25.044314114900867},{"$f":"'Population 2016'!G191*'Prevalence Rates'!G191","v":23.158892412985118},{"$f":"'Population 2016'!H191*'Prevalence Rates'!H191","v":47.014017483022428},{"$f":"'Population 2016'!I191*'Prevalence Rates'!I191","v":39.601467811738935},{"$f":"'Population 2016'!J191*'Prevalence Rates'!J191","v":31.134947153308389},{"$f":"'Population 2016'!K191*'Prevalence Rates'!K191","v":5.8909030981577049},{"$f":"'Population 2016'!L191*'Prevalence Rates'!L191","v":25.699109538508278},{"$f":"'Population 2016'!M191*'Prevalence Rates'!M191","v":26.464970847194763},{"$f":"'Population 2016'!N191*'Prevalence Rates'!N191","v":27.022885909361818},{"$f":"'Population 2016'!O191*'Prevalence Rates'!O191","v":7.3320662941128267},{"$f":"'Population 2016'!P191*'Prevalence Rates'!P191","v":20.884847512958125},{"$f":"'Population 2016'!Q191*'Prevalence Rates'!Q191","v":25.539121008311493},{"$f":"'Population 2016'!R191*'Prevalence Rates'!R191","v":13.680384611201253},{"$f":"'Population 2016'!S191*'Prevalence Rates'!S191","v":225.77318757394121},{"$f":"'Population 2016'!T191*'Prevalence Rates'!T191","v":94.360805067789855},{"$f":"'Population 2016'!U191*'Prevalence Rates'!U191","v":1.8705059958515726},{"$f":"'Population 2016'!V191*'Prevalence Rates'!V191","v":22.932356356881286},{"$f":"'Population 2016'!W191*'Prevalence Rates'!W191","v":45.492926689873627},{"$f":"'Population 2016'!X191*'Prevalence Rates'!X191","v":47.149069700127022},{"$f":"'Population 2016'!Y191*'Prevalence Rates'!Y191","v":52.347479585165523},{"$f":"'Population 2016'!Z191*'Prevalence Rates'!Z191","v":38.822502113628083},{"$f":"'Population 2016'!AA191*'Prevalence Rates'!AA191","v":173.03322105487325},{"$f":"'Population 2016'!AB191*'Prevalence Rates'!AB191","v":122.75673899607945},{"$f":"'Population 2016'!AC191*'Prevalence Rates'!AC191","v":114.29506934588666},{"$f":"'Population 2016'!AD191*'Prevalence Rates'!AD191","v":92.82084079124435},{"$f":"'Population 2016'!AE191*'Prevalence Rates'!AE191","v":50.772716631540021},{"$f":"'Population 2016'!AF191*'Prevalence Rates'!AF191","v":12.918107904599776},{"$f":"'Population 2016'!AG191*'Prevalence Rates'!AG191","v":65.605666493142238},{"$f":"'Population 2016'!AH191*'Prevalence Rates'!AH191","v":58.09983690346079},{"$f":"'Population 2016'!AI191*'Prevalence Rates'!AI191","v":137.47095220289802},{"$f":"'Population 2016'!AJ191*'Prevalence Rates'!AJ191","v":9.6907336632328196},{"$f":"'Population 2016'!AK191*'Prevalence Rates'!AK191","v":24.654160189151039},{"$f":"'Population 2016'!AL191*'Prevalence Rates'!AL191","v":22.574084831356465},{"$f":"'Population 2016'!AM191*'Prevalence Rates'!AM191","v":14.430602265756105},{"$f":"'Population 2016'!AN191*'Prevalence Rates'!AN191","v":9.1861082236630267},{"$f":"'Population 2016'!AO191*'Prevalence Rates'!AO191","v":9.1861082236630267},{"$f":"'Population 2016'!AP191*'Prevalence Rates'!AP191","v":53.511581737636348},{"$f":"'Population 2016'!AQ191*'Prevalence Rates'!AQ191","v":28.034747191295175},{"$f":"'Population 2016'!AR191*'Prevalence Rates'!AR191","v":860.21915652039343},{"$f":"'Population 2016'!AS191*'Prevalence Rates'!AS191","v":39.601467811738935},{"$f":"'Population 2016'!AT191*'Prevalence Rates'!AT191","v":9.6372936149990611},{"$f":"'Population 2016'!AU191*'Prevalence Rates'!AU191","v":9.6372936149990611},{"$f":"'Population 2016'!AV191*'Prevalence Rates'!AV191","v":19.49742444861122},{"$f":"'Population 2016'!AW191*'Prevalence Rates'!AW191","v":46.39651299181871},{"$f":"'Population 2016'!AX191*'Prevalence Rates'!AX191","v":19.504547923984379},{"$f":"'Population 2016'!AY191*'Prevalence Rates'!AY191","v":147.59727958543587},{"$f":"'Population 2016'!AZ191*'Prevalence Rates'!AZ191","v":101.17868609077063},{"$f":"'Population 2016'!BA191*'Prevalence Rates'!BA191","v":9.1901350813460656},{"$f":"'Population 2016'!BB191*'Prevalence Rates'!BB191","v":11.61512003140845},{"$f":"'Population 2016'!BC191*'Prevalence Rates'!BC191","v":1.0391822840852953},189]
[null,"Female 90+",{"$f":"'Population 2016'!C192*'Prevalence Rates'!C192","v":13.180571728278315},{"$f":"'Population 2016'!D192*'Prevalence Rates'!D192","v":51.427420539981817},{"$f":"'Population 2016'!E192*'Prevalence Rates'!E192","v":34.096654633622258},{"$f":"'Population 2016'!F192*'Prevalence Rates'!F192","v":20.30814009890242},{"$f":"'Population 2016'!G192*'Prevalence Rates'!G192","v":14.821691144310476},{"$f":"'Population 2016'!H192*'Prevalence Rates'!H192","v":29.128249962307375},{"$f":"'Population 2016'!I192*'Prevalence Rates'!I192","v":23.309724724631145},{"$f":"'Population 2016'!J192*'Prevalence Rates'!J192","v":22.596265994207091},{"$f":"'Population 2016'!K192*'Prevalence Rates'!K192","v":3.8418933248854601},{"$f":"'Population 2016'!L192*'Prevalence Rates'!L192","v":13.398011375258889},{"$f":"'Population 2016'!M192*'Prevalence Rates'!M192","v":13.797286630702148},{"$f":"'Population 2016'!N192*'Prevalence Rates'!N192","v":15.596542176082284},{"$f":"'Population 2016'!O192*'Prevalence Rates'!O192","v":4.4877302317414713},{"$f":"'Population 2016'!P192*'Prevalence Rates'!P192","v":10.442423756479062},{"$f":"'Population 2016'!Q192*'Prevalence Rates'!Q192","v":13.021923359969101},{"$f":"'Population 2016'!R192*'Prevalence Rates'!R192","v":13.599435589833197},{"$f":"'Population 2016'!S192*'Prevalence Rates'!S192","v":134.19754137923672},{"$f":"'Population 2016'!T192*'Prevalence Rates'!T192","v":55.712427423257964},{"$f":"'Population 2016'!U192*'Prevalence Rates'!U192","v":0.93525299792578631},{"$f":"'Population 2016'!V192*'Prevalence Rates'!V192","v":15.619282085592371},{"$f":"'Population 2016'!W192*'Prevalence Rates'!W192","v":31.276387099288119},{"$f":"'Population 2016'!X192*'Prevalence Rates'!X192","v":32.414985418837325},{"$f":"'Population 2016'!Y192*'Prevalence Rates'!Y192","v":36.917752329501909},{"$f":"'Population 2016'!Z192*'Prevalence Rates'!Z192","v":23.904192312660889},{"$f":"'Population 2016'!AA192*'Prevalence Rates'!AA192","v":97.640174738107049},{"$f":"'Population 2016'!AB192*'Prevalence Rates'!AB192","v":66.241682928212271},{"$f":"'Population 2016'!AC192*'Prevalence Rates'!AC192","v":69.333110328046658},{"$f":"'Population 2016'!AD192*'Prevalence Rates'!AD192","v":60.398391413065191},{"$f":"'Population 2016'!AE192*'Prevalence Rates'!AE192","v":33.218319923826712},{"$f":"'Population 2016'!AF192*'Prevalence Rates'!AF192","v":6.7281812003123829},{"$f":"'Population 2016'!AG192*'Prevalence Rates'!AG192","v":42.92285626944944},{"$f":"'Population 2016'!AH192*'Prevalence Rates'!AH192","v":27.638066744945267},{"$f":"'Population 2016'!AI192*'Prevalence Rates'!AI192","v":76.268842718765796},{"$f":"'Population 2016'!AJ192*'Prevalence Rates'!AJ192","v":7.1671051050992727},{"$f":"'Population 2016'!AK192*'Prevalence Rates'!AK192","v":12.882943122712877},{"$f":"'Population 2016'!AL192*'Prevalence Rates'!AL192","v":14.982799666829512},{"$f":"'Population 2016'!AM192*'Prevalence Rates'!AM192","v":6.4045931404198448},{"$f":"'Population 2016'!AN192*'Prevalence Rates'!AN192","v":4.4993183136308694},{"$f":"'Population 2016'!AO192*'Prevalence Rates'!AO192","v":4.4993183136308694},{"$f":"'Population 2016'!AP192*'Prevalence Rates'!AP192","v":34.905543259894976},{"$f":"'Population 2016'!AQ192*'Prevalence Rates'!AQ192","v":15.352361557137833},{"$f":"'Population 2016'!AR192*'Prevalence Rates'!AR192","v":516.57934529528632},{"$f":"'Population 2016'!AS192*'Prevalence Rates'!AS192","v":23.309724724631145},{"$f":"'Population 2016'!AT192*'Prevalence Rates'!AT192","v":5.6434602249994494},{"$f":"'Population 2016'!AU192*'Prevalence Rates'!AU192","v":5.6434602249994494},{"$f":"'Population 2016'!AV192*'Prevalence Rates'!AV192","v":11.234230277533131},{"$f":"'Population 2016'!AW192*'Prevalence Rates'!AW192","v":22.59630572855043},{"$f":"'Population 2016'!AX192*'Prevalence Rates'!AX192","v":14.586009751849188},{"$f":"'Population 2016'!AY192*'Prevalence Rates'!AY192","v":100.17948961153245},{"$f":"'Population 2016'!AZ192*'Prevalence Rates'!AZ192","v":68.290070086100854},{"$f":"'Population 2016'!BA192*'Prevalence Rates'!BA192","v":4.5536705358021052},{"$f":"'Population 2016'!BB192*'Prevalence Rates'!BB192","v":3.4260425991924208},{"$f":"'Population 2016'!BC192*'Prevalence Rates'!BC192","v":0.51959114204264767},190]
[null,"Male 0-4",{"$f":"'Population 2016'!C193*'Prevalence Rates'!C193","v":0},{"$f":"'Population 2016'!D193*'Prevalence Rates'!D193","v":0},{"$f":"'Population 2016'!E193*'Prevalence Rates'!E193","v":0},{"$f":"'Population 2016'!F193*'Prevalence Rates'!F193","v":0},{"$f":"'Population 2016'!G193*'Prevalence Rates'!G193","v":0},{"$f":"'Population 2016'!H193*'Prevalence Rates'!H193","v":0},{"$f":"'Population 2016'!I193*'Prevalence Rates'!I193","v":0},{"$f":"'Population 2016'!J193*'Prevalence Rates'!J193","v":0},{"$f":"'Population 2016'!K193*'Prevalence Rates'!K193","v":0},{"$f":"'Population 2016'!L193*'Prevalence Rates'!L193","v":0},{"$f":"'Population 2016'!M193*'Prevalence Rates'!M193","v":0},{"$f":"'Population 2016'!N193*'Prevalence Rates'!N193","v":0},{"$f":"'Population 2016'!O193*'Prevalence Rates'!O193","v":0},{"$f":"'Population 2016'!P193*'Prevalence Rates'!P193","v":0},{"$f":"'Population 2016'!Q193*'Prevalence Rates'!Q193","v":0},{"$f":"'Population 2016'!R193*'Prevalence Rates'!R193","v":0},{"$f":"'Population 2016'!S193*'Prevalence Rates'!S193","v":0},{"$f":"'Population 2016'!T193*'Prevalence Rates'!T193","v":0},{"$f":"'Population 2016'!U193*'Prevalence Rates'!U193","v":0},{"$f":"'Population 2016'!V193*'Prevalence Rates'!V193","v":0},{"$f":"'Population 2016'!W193*'Prevalence Rates'!W193","v":0},{"$f":"'Population 2016'!X193*'Prevalence Rates'!X193","v":0},{"$f":"'Population 2016'!Y193*'Prevalence Rates'!Y193","v":0},{"$f":"'Population 2016'!Z193*'Prevalence Rates'!Z193","v":0},{"$f":"'Population 2016'!AA193*'Prevalence Rates'!AA193","v":0},{"$f":"'Population 2016'!AB193*'Prevalence Rates'!AB193","v":0},{"$f":"'Population 2016'!AC193*'Prevalence Rates'!AC193","v":0},{"$f":"'Population 2016'!AD193*'Prevalence Rates'!AD193","v":0},{"$f":"'Population 2016'!AE193*'Prevalence Rates'!AE193","v":0},{"$f":"'Population 2016'!AF193*'Prevalence Rates'!AF193","v":0},{"$f":"'Population 2016'!AG193*'Prevalence Rates'!AG193","v":0},{"$f":"'Population 2016'!AH193*'Prevalence Rates'!AH193","v":0},{"$f":"'Population 2016'!AI193*'Prevalence Rates'!AI193","v":0},{"$f":"'Population 2016'!AJ193*'Prevalence Rates'!AJ193","v":0},{"$f":"'Population 2016'!AK193*'Prevalence Rates'!AK193","v":0},{"$f":"'Population 2016'!AL193*'Prevalence Rates'!AL193","v":0},{"$f":"'Population 2016'!AM193*'Prevalence Rates'!AM193","v":0},{"$f":"'Population 2016'!AN193*'Prevalence Rates'!AN193","v":0},{"$f":"'Population 2016'!AO193*'Prevalence Rates'!AO193","v":0},{"$f":"'Population 2016'!AP193*'Prevalence Rates'!AP193","v":0},{"$f":"'Population 2016'!AQ193*'Prevalence Rates'!AQ193","v":0},{"$f":"'Population 2016'!AR193*'Prevalence Rates'!AR193","v":0},{"$f":"'Population 2016'!AS193*'Prevalence Rates'!AS193","v":0},{"$f":"'Population 2016'!AT193*'Prevalence Rates'!AT193","v":0},{"$f":"'Population 2016'!AU193*'Prevalence Rates'!AU193","v":0},{"$f":"'Population 2016'!AV193*'Prevalence Rates'!AV193","v":0},{"$f":"'Population 2016'!AW193*'Prevalence Rates'!AW193","v":0},{"$f":"'Population 2016'!AX193*'Prevalence Rates'!AX193","v":0},{"$f":"'Population 2016'!AY193*'Prevalence Rates'!AY193","v":0},{"$f":"'Population 2016'!AZ193*'Prevalence Rates'!AZ193","v":0},{"$f":"'Population 2016'!BA193*'Prevalence Rates'!BA193","v":0},{"$f":"'Population 2016'!BB193*'Prevalence Rates'!BB193","v":0},{"$f":"'Population 2016'!BC193*'Prevalence Rates'!BC193","v":0},191]
[null,"Male 5-9",{"$f":"'Population 2016'!C194*'Prevalence Rates'!C194","v":0},{"$f":"'Population 2016'!D194*'Prevalence Rates'!D194","v":0},{"$f":"'Population 2016'!E194*'Prevalence Rates'!E194","v":0},{"$f":"'Population 2016'!F194*'Prevalence Rates'!F194","v":0},{"$f":"'Population 2016'!G194*'Prevalence Rates'!G194","v":0},{"$f":"'Population 2016'!H194*'Prevalence Rates'!H194","v":0},{"$f":"'Population 2016'!I194*'Prevalence Rates'!I194","v":0},{"$f":"'Population 2016'!J194*'Prevalence Rates'!J194","v":0},{"$f":"'Population 2016'!K194*'Prevalence Rates'!K194","v":0},{"$f":"'Population 2016'!L194*'Prevalence Rates'!L194","v":0},{"$f":"'Population 2016'!M194*'Prevalence Rates'!M194","v":0},{"$f":"'Population 2016'!N194*'Prevalence Rates'!N194","v":0},{"$f":"'Population 2016'!O194*'Prevalence Rates'!O194","v":0},{"$f":"'Population 2016'!P194*'Prevalence Rates'!P194","v":0},{"$f":"'Population 2016'!Q194*'Prevalence Rates'!Q194","v":0},{"$f":"'Population 2016'!R194*'Prevalence Rates'!R194","v":0},{"$f":"'Population 2016'!S194*'Prevalence Rates'!S194","v":0},{"$f":"'Population 2016'!T194*'Prevalence Rates'!T194","v":0},{"$f":"'Population 2016'!U194*'Prevalence Rates'!U194","v":0},{"$f":"'Population 2016'!V194*'Prevalence Rates'!V194","v":0},{"$f":"'Population 2016'!W194*'Prevalence Rates'!W194","v":0},{"$f":"'Population 2016'!X194*'Prevalence Rates'!X194","v":0},{"$f":"'Population 2016'!Y194*'Prevalence Rates'!Y194","v":0},{"$f":"'Population 2016'!Z194*'Prevalence Rates'!Z194","v":0},{"$f":"'Population 2016'!AA194*'Prevalence Rates'!AA194","v":0},{"$f":"'Population 2016'!AB194*'Prevalence Rates'!AB194","v":0},{"$f":"'Population 2016'!AC194*'Prevalence Rates'!AC194","v":0},{"$f":"'Population 2016'!AD194*'Prevalence Rates'!AD194","v":0},{"$f":"'Population 2016'!AE194*'Prevalence Rates'!AE194","v":0},{"$f":"'Population 2016'!AF194*'Prevalence Rates'!AF194","v":0},{"$f":"'Population 2016'!AG194*'Prevalence Rates'!AG194","v":0},{"$f":"'Population 2016'!AH194*'Prevalence Rates'!AH194","v":0},{"$f":"'Population 2016'!AI194*'Prevalence Rates'!AI194","v":0},{"$f":"'Population 2016'!AJ194*'Prevalence Rates'!AJ194","v":0},{"$f":"'Population 2016'!AK194*'Prevalence Rates'!AK194","v":0},{"$f":"'Population 2016'!AL194*'Prevalence Rates'!AL194","v":0},{"$f":"'Population 2016'!AM194*'Prevalence Rates'!AM194","v":0},{"$f":"'Population 2016'!AN194*'Prevalence Rates'!AN194","v":0},{"$f":"'Population 2016'!AO194*'Prevalence Rates'!AO194","v":0},{"$f":"'Population 2016'!AP194*'Prevalence Rates'!AP194","v":0},{"$f":"'Population 2016'!AQ194*'Prevalence Rates'!AQ194","v":0},{"$f":"'Population 2016'!AR194*'Prevalence Rates'!AR194","v":0},{"$f":"'Population 2016'!AS194*'Prevalence Rates'!AS194","v":0},{"$f":"'Population 2016'!AT194*'Prevalence Rates'!AT194","v":0},{"$f":"'Population 2016'!AU194*'Prevalence Rates'!AU194","v":0},{"$f":"'Population 2016'!AV194*'Prevalence Rates'!AV194","v":0},{"$f":"'Population 2016'!AW194*'Prevalence Rates'!AW194","v":0},{"$f":"'Population 2016'!AX194*'Prevalence Rates'!AX194","v":0},{"$f":"'Population 2016'!AY194*'Prevalence Rates'!AY194","v":0},{"$f":"'Population 2016'!AZ194*'Prevalence Rates'!AZ194","v":0},{"$f":"'Population 2016'!BA194*'Prevalence Rates'!BA194","v":0},{"$f":"'Population 2016'!BB194*'Prevalence Rates'!BB194","v":0},{"$f":"'Population 2016'!BC194*'Prevalence Rates'!BC194","v":0},192]
[null,"Male 10-15",{"$f":"'Population 2016'!C195*'Prevalence Rates'!C195","v":0},{"$f":"'Population 2016'!D195*'Prevalence Rates'!D195","v":0},{"$f":"'Population 2016'!E195*'Prevalence Rates'!E195","v":0},{"$f":"'Population 2016'!F195*'Prevalence Rates'!F195","v":0},{"$f":"'Population 2016'!G195*'Prevalence Rates'!G195","v":0},{"$f":"'Population 2016'!H195*'Prevalence Rates'!H195","v":0},{"$f":"'Population 2016'!I195*'Prevalence Rates'!I195","v":0},{"$f":"'Population 2016'!J195*'Prevalence Rates'!J195","v":0},{"$f":"'Population 2016'!K195*'Prevalence Rates'!K195","v":0},{"$f":"'Population 2016'!L195*'Prevalence Rates'!L195","v":0},{"$f":"'Population 2016'!M195*'Prevalence Rates'!M195","v":0},{"$f":"'Population 2016'!N195*'Prevalence Rates'!N195","v":0},{"$f":"'Population 2016'!O195*'Prevalence Rates'!O195","v":0},{"$f":"'Population 2016'!P195*'Prevalence Rates'!P195","v":0},{"$f":"'Population 2016'!Q195*'Prevalence Rates'!Q195","v":0},{"$f":"'Population 2016'!R195*'Prevalence Rates'!R195","v":0},{"$f":"'Population 2016'!S195*'Prevalence Rates'!S195","v":0},{"$f":"'Population 2016'!T195*'Prevalence Rates'!T195","v":0},{"$f":"'Population 2016'!U195*'Prevalence Rates'!U195","v":0},{"$f":"'Population 2016'!V195*'Prevalence Rates'!V195","v":0},{"$f":"'Population 2016'!W195*'Prevalence Rates'!W195","v":0},{"$f":"'Population 2016'!X195*'Prevalence Rates'!X195","v":0},{"$f":"'Population 2016'!Y195*'Prevalence Rates'!Y195","v":0},{"$f":"'Population 2016'!Z195*'Prevalence Rates'!Z195","v":0},{"$f":"'Population 2016'!AA195*'Prevalence Rates'!AA195","v":0},{"$f":"'Population 2016'!AB195*'Prevalence Rates'!AB195","v":0},{"$f":"'Population 2016'!AC195*'Prevalence Rates'!AC195","v":0},{"$f":"'Population 2016'!AD195*'Prevalence Rates'!AD195","v":0},{"$f":"'Population 2016'!AE195*'Prevalence Rates'!AE195","v":0},{"$f":"'Population 2016'!AF195*'Prevalence Rates'!AF195","v":0},{"$f":"'Population 2016'!AG195*'Prevalence Rates'!AG195","v":0},{"$f":"'Population 2016'!AH195*'Prevalence Rates'!AH195","v":0},{"$f":"'Population 2016'!AI195*'Prevalence Rates'!AI195","v":0},{"$f":"'Population 2016'!AJ195*'Prevalence Rates'!AJ195","v":0},{"$f":"'Population 2016'!AK195*'Prevalence Rates'!AK195","v":0},{"$f":"'Population 2016'!AL195*'Prevalence Rates'!AL195","v":0},{"$f":"'Population 2016'!AM195*'Prevalence Rates'!AM195","v":0},{"$f":"'Population 2016'!AN195*'Prevalence Rates'!AN195","v":0},{"$f":"'Population 2016'!AO195*'Prevalence Rates'!AO195","v":0},{"$f":"'Population 2016'!AP195*'Prevalence Rates'!AP195","v":0},{"$f":"'Population 2016'!AQ195*'Prevalence Rates'!AQ195","v":0},{"$f":"'Population 2016'!AR195*'Prevalence Rates'!AR195","v":0},{"$f":"'Population 2016'!AS195*'Prevalence Rates'!AS195","v":0},{"$f":"'Population 2016'!AT195*'Prevalence Rates'!AT195","v":0},{"$f":"'Population 2016'!AU195*'Prevalence Rates'!AU195","v":0},{"$f":"'Population 2016'!AV195*'Prevalence Rates'!AV195","v":0},{"$f":"'Population 2016'!AW195*'Prevalence Rates'!AW195","v":0},{"$f":"'Population 2016'!AX195*'Prevalence Rates'!AX195","v":0},{"$f":"'Population 2016'!AY195*'Prevalence Rates'!AY195","v":0},{"$f":"'Population 2016'!AZ195*'Prevalence Rates'!AZ195","v":0},{"$f":"'Population 2016'!BA195*'Prevalence Rates'!BA195","v":0},{"$f":"'Population 2016'!BB195*'Prevalence Rates'!BB195","v":0},{"$f":"'Population 2016'!BC195*'Prevalence Rates'!BC195","v":0},193]
[null,"Male 16-19",{"$f":"'Population 2016'!C196*'Prevalence Rates'!C196","v":234.45984642593496},{"$f":"'Population 2016'!D196*'Prevalence Rates'!D196","v":703.85901652367374},{"$f":"'Population 2016'!E196*'Prevalence Rates'!E196","v":434.1129846802462},{"$f":"'Population 2016'!F196*'Prevalence Rates'!F196","v":171.2793564190209},{"$f":"'Population 2016'!G196*'Prevalence Rates'!G196","v":124.92561801704477},{"$f":"'Population 2016'!H196*'Prevalence Rates'!H196","v":343.53450190311264},{"$f":"'Population 2016'!I196*'Prevalence Rates'!I196","v":238.52075234148509},{"$f":"'Population 2016'!J196*'Prevalence Rates'!J196","v":266.32506268327148},{"$f":"'Population 2016'!K196*'Prevalence Rates'!K196","v":72.310280415932553},{"$f":"'Population 2016'!L196*'Prevalence Rates'!L196","v":129.07662220282594},{"$f":"'Population 2016'!M196*'Prevalence Rates'!M196","v":137.20843459702328},{"$f":"'Population 2016'!N196*'Prevalence Rates'!N196","v":157.67408753225135},{"$f":"'Population 2016'!O196*'Prevalence Rates'!O196","v":94.545243561016193},{"$f":"'Population 2016'!P196*'Prevalence Rates'!P196","v":116.61572545936239},{"$f":"'Population 2016'!Q196*'Prevalence Rates'!Q196","v":208.87631062362172},{"$f":"'Population 2016'!R196*'Prevalence Rates'!R196","v":90.021336885650982},{"$f":"'Population 2016'!S196*'Prevalence Rates'!S196","v":1453.4352504043709},{"$f":"'Population 2016'!T196*'Prevalence Rates'!T196","v":422.71466448757354},{"$f":"'Population 2016'!U196*'Prevalence Rates'!U196","v":11.623168650418679},{"$f":"'Population 2016'!V196*'Prevalence Rates'!V196","v":190.01693696589149},{"$f":"'Population 2016'!W196*'Prevalence Rates'!W196","v":323.98236620989826},{"$f":"'Population 2016'!X196*'Prevalence Rates'!X196","v":325.3570140619729},{"$f":"'Population 2016'!Y196*'Prevalence Rates'!Y196","v":544.21824255669219},{"$f":"'Population 2016'!Z196*'Prevalence Rates'!Z196","v":321.40308858299136},{"$f":"'Population 2016'!AA196*'Prevalence Rates'!AA196","v":1384.7856720997947},{"$f":"'Population 2016'!AB196*'Prevalence Rates'!AB196","v":846.8378996956809},{"$f":"'Population 2016'!AC196*'Prevalence Rates'!AC196","v":806.22008242528921},{"$f":"'Population 2016'!AD196*'Prevalence Rates'!AD196","v":580.43503549026173},{"$f":"'Population 2016'!AE196*'Prevalence Rates'!AE196","v":421.84770452050492},{"$f":"'Population 2016'!AF196*'Prevalence Rates'!AF196","v":95.056417577576539},{"$f":"'Population 2016'!AG196*'Prevalence Rates'!AG196","v":457.90633083831557},{"$f":"'Population 2016'!AH196*'Prevalence Rates'!AH196","v":568.39941631226588},{"$f":"'Population 2016'!AI196*'Prevalence Rates'!AI196","v":880.66763469392401},{"$f":"'Population 2016'!AJ196*'Prevalence Rates'!AJ196","v":77.518198949387269},{"$f":"'Population 2016'!AK196*'Prevalence Rates'!AK196","v":154.52830122072811},{"$f":"'Population 2016'!AL196*'Prevalence Rates'!AL196","v":165.19452053876932},{"$f":"'Population 2016'!AM196*'Prevalence Rates'!AM196","v":229.82985476885011},{"$f":"'Population 2016'!AN196*'Prevalence Rates'!AN196","v":68.168176773930583},{"$f":"'Population 2016'!AO196*'Prevalence Rates'!AO196","v":68.168176773930583},{"$f":"'Population 2016'!AP196*'Prevalence Rates'!AP196","v":353.11337617148854},{"$f":"'Population 2016'!AQ196*'Prevalence Rates'!AQ196","v":158.27190517171564},{"$f":"'Population 2016'!AR196*'Prevalence Rates'!AR196","v":6129.6008439622256},{"$f":"'Population 2016'!AS196*'Prevalence Rates'!AS196","v":238.52075234148509},{"$f":"'Population 2016'!AT196*'Prevalence Rates'!AT196","v":101.94655693750768},{"$f":"'Population 2016'!AU196*'Prevalence Rates'!AU196","v":101.94655693750768},{"$f":"'Population 2016'!AV196*'Prevalence Rates'!AV196","v":87.028935198006025},{"$f":"'Population 2016'!AW196*'Prevalence Rates'!AW196","v":333.78207564181656},{"$f":"'Population 2016'!AX196*'Prevalence Rates'!AX196","v":164.88367974621659},{"$f":"'Population 2016'!AY196*'Prevalence Rates'!AY196","v":951.70479991970217},{"$f":"'Population 2016'!AZ196*'Prevalence Rates'!AZ196","v":596.09098194240835},{"$f":"'Population 2016'!BA196*'Prevalence Rates'!BA196","v":52.473688865322188},{"$f":"'Population 2016'!BB196*'Prevalence Rates'!BB196","v":175.43423292224594},{"$f":"'Population 2016'!BC196*'Prevalence Rates'!BC196","v":8.0224799562957756},194]
[null,"Male 20-24",{"$f":"'Population 2016'!C197*'Prevalence Rates'!C197","v":580.99367036797071},{"$f":"'Population 2016'!D197*'Prevalence Rates'!D197","v":1063.4391662694636},{"$f":"'Population 2016'!E197*'Prevalence Rates'!E197","v":488.87677740694397},{"$f":"'Population 2016'!F197*'Prevalence Rates'!F197","v":204.90176208875758},{"$f":"'Population 2016'!G197*'Prevalence Rates'!G197","v":139.73893240641766},{"$f":"'Population 2016'!H197*'Prevalence Rates'!H197","v":373.28503883263056},{"$f":"'Population 2016'!I197*'Prevalence Rates'!I197","v":246.93913183589044},{"$f":"'Population 2016'!J197*'Prevalence Rates'!J197","v":387.02706403465271},{"$f":"'Population 2016'!K197*'Prevalence Rates'!K197","v":94.632149587807376},{"$f":"'Population 2016'!L197*'Prevalence Rates'!L197","v":156.35319142304576},{"$f":"'Population 2016'!M197*'Prevalence Rates'!M197","v":166.20342454960181},{"$f":"'Population 2016'!N197*'Prevalence Rates'!N197","v":344.4477121614234},{"$f":"'Population 2016'!O197*'Prevalence Rates'!O197","v":105.57552197646808},{"$f":"'Population 2016'!P197*'Prevalence Rates'!P197","v":154.71019577608743},{"$f":"'Population 2016'!Q197*'Prevalence Rates'!Q197","v":262.43433898865294},{"$f":"'Population 2016'!R197*'Prevalence Rates'!R197","v":92.073105247717109},{"$f":"'Population 2016'!S197*'Prevalence Rates'!S197","v":2167.6305389864219},{"$f":"'Population 2016'!T197*'Prevalence Rates'!T197","v":998.01079751129919},{"$f":"'Population 2016'!U197*'Prevalence Rates'!U197","v":15.60825504484794},{"$f":"'Population 2016'!V197*'Prevalence Rates'!V197","v":222.34539992581674},{"$f":"'Population 2016'!W197*'Prevalence Rates'!W197","v":423.75870153225742},{"$f":"'Population 2016'!X197*'Prevalence Rates'!X197","v":425.5566975024513},{"$f":"'Population 2016'!Y197*'Prevalence Rates'!Y197","v":717.00114703038378},{"$f":"'Population 2016'!Z197*'Prevalence Rates'!Z197","v":1049.0894636604669},{"$f":"'Population 2016'!AA197*'Prevalence Rates'!AA197","v":2274.3604366956715},{"$f":"'Population 2016'!AB197*'Prevalence Rates'!AB197","v":1232.938198238762},{"$f":"'Population 2016'!AC197*'Prevalence Rates'!AC197","v":1610.7919345418818},{"$f":"'Population 2016'!AD197*'Prevalence Rates'!AD197","v":644.87295308403384},{"$f":"'Population 2016'!AE197*'Prevalence Rates'!AE197","v":467.80509672029973},{"$f":"'Population 2016'!AF197*'Prevalence Rates'!AF197","v":99.617205289631968},{"$f":"'Population 2016'!AG197*'Prevalence Rates'!AG197","v":507.79206118980687},{"$f":"'Population 2016'!AH197*'Prevalence Rates'!AH197","v":678.56083598074474},{"$f":"'Population 2016'!AI197*'Prevalence Rates'!AI197","v":1507.2617526024346},{"$f":"'Population 2016'!AJ197*'Prevalence Rates'!AJ197","v":84.283423584970166},{"$f":"'Population 2016'!AK197*'Prevalence Rates'!AK197","v":194.04154030838126},{"$f":"'Population 2016'!AL197*'Prevalence Rates'!AL197","v":187.60462991418376},{"$f":"'Population 2016'!AM197*'Prevalence Rates'!AM197","v":301.9764439615065},{"$f":"'Population 2016'!AN197*'Prevalence Rates'!AN197","v":71.479991030153926},{"$f":"'Population 2016'!AO197*'Prevalence Rates'!AO197","v":71.479991030153926},{"$f":"'Population 2016'!AP197*'Prevalence Rates'!AP197","v":372.41748580248515},{"$f":"'Population 2016'!AQ197*'Prevalence Rates'!AQ197","v":204.25781838098703},{"$f":"'Population 2016'!AR197*'Prevalence Rates'!AR197","v":8730.9388052361828},{"$f":"'Population 2016'!AS197*'Prevalence Rates'!AS197","v":246.93913183589044},{"$f":"'Population 2016'!AT197*'Prevalence Rates'!AT197","v":122.39038520037685},{"$f":"'Population 2016'!AU197*'Prevalence Rates'!AU197","v":122.39038520037685},{"$f":"'Population 2016'!AV197*'Prevalence Rates'!AV197","v":85.52843631528178},{"$f":"'Population 2016'!AW197*'Prevalence Rates'!AW197","v":368.99565779072947},{"$f":"'Population 2016'!AX197*'Prevalence Rates'!AX197","v":247.95293088167733},{"$f":"'Population 2016'!AY197*'Prevalence Rates'!AY197","v":1282.723336611916},{"$f":"'Population 2016'!AZ197*'Prevalence Rates'!AZ197","v":814.11198083055251},{"$f":"'Population 2016'!BA197*'Prevalence Rates'!BA197","v":77.181031156168956},{"$f":"'Population 2016'!BB197*'Prevalence Rates'!BB197","v":217.74325683744198},{"$f":"'Population 2016'!BC197*'Prevalence Rates'!BC197","v":10.773044512740041},195]
[null,"Male 25-29",{"$f":"'Population 2016'!C198*'Prevalence Rates'!C198","v":483.88000784563565},{"$f":"'Population 2016'!D198*'Prevalence Rates'!D198","v":830.20257240529963},{"$f":"'Population 2016'!E198*'Prevalence Rates'!E198","v":359.32962242551258},{"$f":"'Population 2016'!F198*'Prevalence Rates'!F198","v":125.04787686035586},{"$f":"'Population 2016'!G198*'Prevalence Rates'!G198","v":83.508373279428952},{"$f":"'Population 2016'!H198*'Prevalence Rates'!H198","v":244.14334464591994},{"$f":"'Population 2016'!I198*'Prevalence Rates'!I198","v":145.46803225604648},{"$f":"'Population 2016'!J198*'Prevalence Rates'!J198","v":203.77988906518374},{"$f":"'Population 2016'!K198*'Prevalence Rates'!K198","v":57.794088779283811},{"$f":"'Population 2016'!L198*'Prevalence Rates'!L198","v":108.70051850981763},{"$f":"'Population 2016'!M198*'Prevalence Rates'!M198","v":115.54863870841439},{"$f":"'Population 2016'!N198*'Prevalence Rates'!N198","v":166.4733801620888},{"$f":"'Population 2016'!O198*'Prevalence Rates'!O198","v":76.472197903498611},{"$f":"'Population 2016'!P198*'Prevalence Rates'!P198","v":89.750466389885901},{"$f":"'Population 2016'!Q198*'Prevalence Rates'!Q198","v":135.97091551111299},{"$f":"'Population 2016'!R198*'Prevalence Rates'!R198","v":71.474109659621107},{"$f":"'Population 2016'!S198*'Prevalence Rates'!S198","v":1766.0381906196374},{"$f":"'Population 2016'!T198*'Prevalence Rates'!T198","v":1088.2654548350638},{"$f":"'Population 2016'!U198*'Prevalence Rates'!U198","v":6.1047475057068175},{"$f":"'Population 2016'!V198*'Prevalence Rates'!V198","v":133.90698168160725},{"$f":"'Population 2016'!W198*'Prevalence Rates'!W198","v":272.26042763361272},{"$f":"'Population 2016'!X198*'Prevalence Rates'!X198","v":273.41562078943093},{"$f":"'Population 2016'!Y198*'Prevalence Rates'!Y198","v":400.63947150483597},{"$f":"'Population 2016'!Z198*'Prevalence Rates'!Z198","v":740.93056955879047},{"$f":"'Population 2016'!AA198*'Prevalence Rates'!AA198","v":1562.5419168108647},{"$f":"'Population 2016'!AB198*'Prevalence Rates'!AB198","v":935.72403832379496},{"$f":"'Population 2016'!AC198*'Prevalence Rates'!AC198","v":1131.4533437649659},{"$f":"'Population 2016'!AD198*'Prevalence Rates'!AD198","v":449.49289617362217},{"$f":"'Population 2016'!AE198*'Prevalence Rates'!AE198","v":338.93861455021482},{"$f":"'Population 2016'!AF198*'Prevalence Rates'!AF198","v":58.070204743626519},{"$f":"'Population 2016'!AG198*'Prevalence Rates'!AG198","v":367.91035178091636},{"$f":"'Population 2016'!AH198*'Prevalence Rates'!AH198","v":444.13013149502871},{"$f":"'Population 2016'!AI198*'Prevalence Rates'!AI198","v":1382.4467031346471},{"$f":"'Population 2016'!AJ198*'Prevalence Rates'!AJ198","v":68.192730492616121},{"$f":"'Population 2016'!AK198*'Prevalence Rates'!AK198","v":128.76748859537992},{"$f":"'Population 2016'!AL198*'Prevalence Rates'!AL198","v":105.22638766037502},{"$f":"'Population 2016'!AM198*'Prevalence Rates'!AM198","v":190.15777229775043},{"$f":"'Population 2016'!AN198*'Prevalence Rates'!AN198","v":51.342433445071151},{"$f":"'Population 2016'!AO198*'Prevalence Rates'!AO198","v":51.342433445071151},{"$f":"'Population 2016'!AP198*'Prevalence Rates'!AP198","v":230.62121934700704},{"$f":"'Population 2016'!AQ198*'Prevalence Rates'!AQ198","v":159.05692216904146},{"$f":"'Population 2016'!AR198*'Prevalence Rates'!AR198","v":6144.774718820845},{"$f":"'Population 2016'!AS198*'Prevalence Rates'!AS198","v":145.46803225604648},{"$f":"'Population 2016'!AT198*'Prevalence Rates'!AT198","v":91.999368981895458},{"$f":"'Population 2016'!AU198*'Prevalence Rates'!AU198","v":91.999368981895458},{"$f":"'Population 2016'!AV198*'Prevalence Rates'!AV198","v":62.52224233445498},{"$f":"'Population 2016'!AW198*'Prevalence Rates'!AW198","v":249.51381068435433},{"$f":"'Population 2016'!AX198*'Prevalence Rates'!AX198","v":124.19341469608636},{"$f":"'Population 2016'!AY198*'Prevalence Rates'!AY198","v":753.59395997615172},{"$f":"'Population 2016'!AZ198*'Prevalence Rates'!AZ198","v":458.98884586151422},{"$f":"'Population 2016'!BA198*'Prevalence Rates'!BA198","v":56.579054792192657},{"$f":"'Population 2016'!BB198*'Prevalence Rates'!BB198","v":170.21495719186436},{"$f":"'Population 2016'!BC198*'Prevalence Rates'!BC198","v":4.2135854667320372},196]
[null,"Male 30-34",{"$f":"'Population 2016'!C199*'Prevalence Rates'!C199","v":357.77189858442256},{"$f":"'Population 2016'!D199*'Prevalence Rates'!D199","v":756.0469011534916},{"$f":"'Population 2016'!E199*'Prevalence Rates'!E199","v":388.28174333259892},{"$f":"'Population 2016'!F199*'Prevalence Rates'!F199","v":122.00229819756781},{"$f":"'Population 2016'!G199*'Prevalence Rates'!G199","v":72.615976764720827},{"$f":"'Population 2016'!H199*'Prevalence Rates'!H199","v":231.14162806714313},{"$f":"'Population 2016'!I199*'Prevalence Rates'!I199","v":146.70605806248091},{"$f":"'Population 2016'!J199*'Prevalence Rates'!J199","v":190.3123124314067},{"$f":"'Population 2016'!K199*'Prevalence Rates'!K199","v":71.895846441429057},{"$f":"'Population 2016'!L199*'Prevalence Rates'!L199","v":114.78918017264103},{"$f":"'Population 2016'!M199*'Prevalence Rates'!M199","v":122.02088535765012},{"$f":"'Population 2016'!N199*'Prevalence Rates'!N199","v":105.62030318396883},{"$f":"'Population 2016'!O199*'Prevalence Rates'!O199","v":81.299988175184126},{"$f":"'Population 2016'!P199*'Prevalence Rates'!P199","v":81.175581066011446},{"$f":"'Population 2016'!Q199*'Prevalence Rates'!Q199","v":143.22546130819981},{"$f":"'Population 2016'!R199*'Prevalence Rates'!R199","v":56.010054271523657},{"$f":"'Population 2016'!S199*'Prevalence Rates'!S199","v":1790.8682530536569},{"$f":"'Population 2016'!T199*'Prevalence Rates'!T199","v":1030.8058313663032},{"$f":"'Population 2016'!U199*'Prevalence Rates'!U199","v":5.6163677052502718},{"$f":"'Population 2016'!V199*'Prevalence Rates'!V199","v":138.69548166511299},{"$f":"'Population 2016'!W199*'Prevalence Rates'!W199","v":272.43144549016648},{"$f":"'Population 2016'!X199*'Prevalence Rates'!X199","v":273.58736426982631},{"$f":"'Population 2016'!Y199*'Prevalence Rates'!Y199","v":392.88970447103782},{"$f":"'Population 2016'!Z199*'Prevalence Rates'!Z199","v":613.91390049156928},{"$f":"'Population 2016'!AA199*'Prevalence Rates'!AA199","v":1442.7674966030461},{"$f":"'Population 2016'!AB199*'Prevalence Rates'!AB199","v":868.44976105868545},{"$f":"'Population 2016'!AC199*'Prevalence Rates'!AC199","v":944.46487991398453},{"$f":"'Population 2016'!AD199*'Prevalence Rates'!AD199","v":455.48371425671166},{"$f":"'Population 2016'!AE199*'Prevalence Rates'!AE199","v":354.57417563809679},{"$f":"'Population 2016'!AF199*'Prevalence Rates'!AF199","v":61.776813557049486},{"$f":"'Population 2016'!AG199*'Prevalence Rates'!AG199","v":384.88240669938125},{"$f":"'Population 2016'!AH199*'Prevalence Rates'!AH199","v":499.26140301903018},{"$f":"'Population 2016'!AI199*'Prevalence Rates'!AI199","v":1407.4894215466725},{"$f":"'Population 2016'!AJ199*'Prevalence Rates'!AJ199","v":80.007276505014659},{"$f":"'Population 2016'!AK199*'Prevalence Rates'!AK199","v":131.08639464000012},{"$f":"'Population 2016'!AL199*'Prevalence Rates'!AL199","v":89.218794011816854},{"$f":"'Population 2016'!AM199*'Prevalence Rates'!AM199","v":206.76351284616297},{"$f":"'Population 2016'!AN199*'Prevalence Rates'!AN199","v":51.342433445071151},{"$f":"'Population 2016'!AO199*'Prevalence Rates'!AO199","v":51.342433445071151},{"$f":"'Population 2016'!AP199*'Prevalence Rates'!AP199","v":254.06611508975257},{"$f":"'Population 2016'!AQ199*'Prevalence Rates'!AQ199","v":125.24296348295007},{"$f":"'Population 2016'!AR199*'Prevalence Rates'!AR199","v":5894.7411784500582},{"$f":"'Population 2016'!AS199*'Prevalence Rates'!AS199","v":146.70605806248091},{"$f":"'Population 2016'!AT199*'Prevalence Rates'!AT199","v":81.977651227876351},{"$f":"'Population 2016'!AU199*'Prevalence Rates'!AU199","v":81.977651227876351},{"$f":"'Population 2016'!AV199*'Prevalence Rates'!AV199","v":58.84446337360469},{"$f":"'Population 2016'!AW199*'Prevalence Rates'!AW199","v":287.96090729923912},{"$f":"'Population 2016'!AX199*'Prevalence Rates'!AX199","v":101.67989821328914},{"$f":"'Population 2016'!AY199*'Prevalence Rates'!AY199","v":711.49373874843366},{"$f":"'Population 2016'!AZ199*'Prevalence Rates'!AZ199","v":420.60995748494207},{"$f":"'Population 2016'!BA199*'Prevalence Rates'!BA199","v":44.12128125996675},{"$f":"'Population 2016'!BB199*'Prevalence Rates'!BB199","v":220.34811687701182},{"$f":"'Population 2016'!BC199*'Prevalence Rates'!BC199","v":3.8764986293934744},197]
[null,"Male 35-39",{"$f":"'Population 2016'!C200*'Prevalence Rates'!C200","v":265.24367267780877},{"$f":"'Population 2016'!D200*'Prevalence Rates'!D200","v":705.85814248780355},{"$f":"'Population 2016'!E200*'Prevalence Rates'!E200","v":413.16334104952335},{"$f":"'Population 2016'!F200*'Prevalence Rates'!F200","v":109.78278411966151},{"$f":"'Population 2016'!G200*'Prevalence Rates'!G200","v":85.574068509839478},{"$f":"'Population 2016'!H200*'Prevalence Rates'!H200","v":255.46114555726672},{"$f":"'Population 2016'!I200*'Prevalence Rates'!I200","v":163.98571047871954},{"$f":"'Population 2016'!J200*'Prevalence Rates'!J200","v":211.47221411564271},{"$f":"'Population 2016'!K200*'Prevalence Rates'!K200","v":68.652119509676083},{"$f":"'Population 2016'!L200*'Prevalence Rates'!L200","v":92.348582775660844},{"$f":"'Population 2016'!M200*'Prevalence Rates'!M200","v":98.166532898508407},{"$f":"'Population 2016'!N200*'Prevalence Rates'!N200","v":81.118743141445762},{"$f":"'Population 2016'!O200*'Prevalence Rates'!O200","v":85.20286994445739},{"$f":"'Population 2016'!P200*'Prevalence Rates'!P200","v":76.169595191812846},{"$f":"'Population 2016'!Q200*'Prevalence Rates'!Q200","v":163.94724652906146},{"$f":"'Population 2016'!R200*'Prevalence Rates'!R200","v":63.115769463020939},{"$f":"'Population 2016'!S200*'Prevalence Rates'!S200","v":1624.3705764329054},{"$f":"'Population 2016'!T200*'Prevalence Rates'!T200","v":765.15816367138916},{"$f":"'Population 2016'!U200*'Prevalence Rates'!U200","v":11.510592672601593},{"$f":"'Population 2016'!V200*'Prevalence Rates'!V200","v":151.0709755772989},{"$f":"'Population 2016'!W200*'Prevalence Rates'!W200","v":281.18226404141865},{"$f":"'Population 2016'!X200*'Prevalence Rates'!X200","v":282.3753122922472},{"$f":"'Population 2016'!Y200*'Prevalence Rates'!Y200","v":432.39128771345412},{"$f":"'Population 2016'!Z200*'Prevalence Rates'!Z200","v":428.57337917419136},{"$f":"'Population 2016'!AA200*'Prevalence Rates'!AA200","v":1300.9055894614537},{"$f":"'Population 2016'!AB200*'Prevalence Rates'!AB200","v":811.60617170278726},{"$f":"'Population 2016'!AC200*'Prevalence Rates'!AC200","v":761.28905154539632},{"$f":"'Population 2016'!AD200*'Prevalence Rates'!AD200","v":453.54256310214947},{"$f":"'Population 2016'!AE200*'Prevalence Rates'!AE200","v":340.77597262576649},{"$f":"'Population 2016'!AF200*'Prevalence Rates'!AF200","v":56.243733735560184},{"$f":"'Population 2016'!AG200*'Prevalence Rates'!AG200","v":369.90476323745918},{"$f":"'Population 2016'!AH200*'Prevalence Rates'!AH200","v":530.49770487183935},{"$f":"'Population 2016'!AI200*'Prevalence Rates'!AI200","v":1199.2642928171583},{"$f":"'Population 2016'!AJ200*'Prevalence Rates'!AJ200","v":92.427947089685418},{"$f":"'Population 2016'!AK200*'Prevalence Rates'!AK200","v":123.06828625144175},{"$f":"'Population 2016'!AL200*'Prevalence Rates'!AL200","v":104.75122757382471},{"$f":"'Population 2016'!AM200*'Prevalence Rates'!AM200","v":211.55282332520605},{"$f":"'Population 2016'!AN200*'Prevalence Rates'!AN200","v":46.107646430560983},{"$f":"'Population 2016'!AO200*'Prevalence Rates'!AO200","v":46.107646430560983},{"$f":"'Population 2016'!AP200*'Prevalence Rates'!AP200","v":240.87596458102738},{"$f":"'Population 2016'!AQ200*'Prevalence Rates'!AQ200","v":128.90619305477915},{"$f":"'Population 2016'!AR200*'Prevalence Rates'!AR200","v":5501.4736039459021},{"$f":"'Population 2016'!AS200*'Prevalence Rates'!AS200","v":163.98571047871954},{"$f":"'Population 2016'!AT200*'Prevalence Rates'!AT200","v":85.788287755815503},{"$f":"'Population 2016'!AU200*'Prevalence Rates'!AU200","v":85.788287755815503},{"$f":"'Population 2016'!AV200*'Prevalence Rates'!AV200","v":64.664279679265476},{"$f":"'Population 2016'!AW200*'Prevalence Rates'!AW200","v":314.6769546513849},{"$f":"'Population 2016'!AX200*'Prevalence Rates'!AX200","v":121.95553223731595},{"$f":"'Population 2016'!AY200*'Prevalence Rates'!AY200","v":670.76603972430928},{"$f":"'Population 2016'!AZ200*'Prevalence Rates'!AZ200","v":376.37273976213237},{"$f":"'Population 2016'!BA200*'Prevalence Rates'!BA200","v":36.375819168300339},{"$f":"'Population 2016'!BB200*'Prevalence Rates'!BB200","v":215.02049815278946},{"$f":"'Population 2016'!BC200*'Prevalence Rates'!BC200","v":7.944778380007846},198]
[null,"Male 40-44",{"$f":"'Population 2016'!C201*'Prevalence Rates'!C201","v":222.35320645756735},{"$f":"'Population 2016'!D201*'Prevalence Rates'!D201","v":718.71530355315508},{"$f":"'Population 2016'!E201*'Prevalence Rates'!E201","v":455.83748895135204},{"$f":"'Population 2016'!F201*'Prevalence Rates'!F201","v":129.7125818521539},{"$f":"'Population 2016'!G201*'Prevalence Rates'!G201","v":107.13873377431902},{"$f":"'Population 2016'!H201*'Prevalence Rates'!H201","v":304.88013334976159},{"$f":"'Population 2016'!I201*'Prevalence Rates'!I201","v":213.20087625703039},{"$f":"'Population 2016'!J201*'Prevalence Rates'!J201","v":234.99225367771714},{"$f":"'Population 2016'!K201*'Prevalence Rates'!K201","v":74.100700423142442},{"$f":"'Population 2016'!L201*'Prevalence Rates'!L201","v":120.3739296509071},{"$f":"'Population 2016'!M201*'Prevalence Rates'!M201","v":127.95747341249817},{"$f":"'Population 2016'!N201*'Prevalence Rates'!N201","v":82.692475371703082},{"$f":"'Population 2016'!O201*'Prevalence Rates'!O201","v":101.22392241264596},{"$f":"'Population 2016'!P201*'Prevalence Rates'!P201","v":90.900507469474775},{"$f":"'Population 2016'!Q201*'Prevalence Rates'!Q201","v":217.87983299154175},{"$f":"'Population 2016'!R201*'Prevalence Rates'!R201","v":76.627877855104302},{"$f":"'Population 2016'!S201*'Prevalence Rates'!S201","v":1662.6048304236404},{"$f":"'Population 2016'!T201*'Prevalence Rates'!T201","v":638.83818608633533},{"$f":"'Population 2016'!U201*'Prevalence Rates'!U201","v":12.661651939861752},{"$f":"'Population 2016'!V201*'Prevalence Rates'!V201","v":165.90398491893336},{"$f":"'Population 2016'!W201*'Prevalence Rates'!W201","v":299.56229735605268},{"$f":"'Population 2016'!X201*'Prevalence Rates'!X201","v":300.83333155905694},{"$f":"'Population 2016'!Y201*'Prevalence Rates'!Y201","v":477.7779820202939},{"$f":"'Population 2016'!Z201*'Prevalence Rates'!Z201","v":372.48549414376731},{"$f":"'Population 2016'!AA201*'Prevalence Rates'!AA201","v":1361.1182189328001},{"$f":"'Population 2016'!AB201*'Prevalence Rates'!AB201","v":855.30454101488351},{"$f":"'Population 2016'!AC201*'Prevalence Rates'!AC201","v":772.55168974364506},{"$f":"'Population 2016'!AD201*'Prevalence Rates'!AD201","v":512.75981851095844},{"$f":"'Population 2016'!AE201*'Prevalence Rates'!AE201","v":375.64607215026348},{"$f":"'Population 2016'!AF201*'Prevalence Rates'!AF201","v":68.058245851609811},{"$f":"'Population 2016'!AG201*'Prevalence Rates'!AG201","v":407.75548319664108},{"$f":"'Population 2016'!AH201*'Prevalence Rates'!AH201","v":576.37544836923973},{"$f":"'Population 2016'!AI201*'Prevalence Rates'!AI201","v":1163.5370813064033},{"$f":"'Population 2016'!AJ201*'Prevalence Rates'!AJ201","v":88.519788650375261},{"$f":"'Population 2016'!AK201*'Prevalence Rates'!AK201","v":149.81667030609157},{"$f":"'Population 2016'!AL201*'Prevalence Rates'!AL201","v":132.93640956932416},{"$f":"'Population 2016'!AM201*'Prevalence Rates'!AM201","v":237.46007804807019},{"$f":"'Population 2016'!AN201*'Prevalence Rates'!AN201","v":58.925954774326897},{"$f":"'Population 2016'!AO201*'Prevalence Rates'!AO201","v":58.925954774326897},{"$f":"'Population 2016'!AP201*'Prevalence Rates'!AP201","v":269.2939154585643},{"$f":"'Population 2016'!AQ201*'Prevalence Rates'!AQ201","v":141.90513689223587},{"$f":"'Population 2016'!AR201*'Prevalence Rates'!AR201","v":5901.271520200301},{"$f":"'Population 2016'!AS201*'Prevalence Rates'!AS201","v":213.20087625703039},{"$f":"'Population 2016'!AT201*'Prevalence Rates'!AT201","v":104.11750342170559},{"$f":"'Population 2016'!AU201*'Prevalence Rates'!AU201","v":104.11750342170559},{"$f":"'Population 2016'!AV201*'Prevalence Rates'!AV201","v":71.42542420337098},{"$f":"'Population 2016'!AW201*'Prevalence Rates'!AW201","v":333.7617346937115},{"$f":"'Population 2016'!AX201*'Prevalence Rates'!AX201","v":137.26521388764948},{"$f":"'Population 2016'!AY201*'Prevalence Rates'!AY201","v":734.27051685797164},{"$f":"'Population 2016'!AZ201*'Prevalence Rates'!AZ201","v":418.82982782327394},{"$f":"'Population 2016'!BA201*'Prevalence Rates'!BA201","v":49.751680925253829},{"$f":"'Population 2016'!BB201*'Prevalence Rates'!BB201","v":236.31705487687114},{"$f":"'Population 2016'!BC201*'Prevalence Rates'!BC201","v":8.7392562180086308},199]
[null,"Male 45-49",{"$f":"'Population 2016'!C202*'Prevalence Rates'!C202","v":281.22505393181638},{"$f":"'Population 2016'!D202*'Prevalence Rates'!D202","v":1008.0985079296668},{"$f":"'Population 2016'!E202*'Prevalence Rates'!E202","v":661.95489287262922},{"$f":"'Population 2016'!F202*'Prevalence Rates'!F202","v":224.46335118755604},{"$f":"'Population 2016'!G202*'Prevalence Rates'!G202","v":177.11521406276634},{"$f":"'Population 2016'!H202*'Prevalence Rates'!H202","v":522.9230572801979},{"$f":"'Population 2016'!I202*'Prevalence Rates'!I202","v":395.53053049969066},{"$f":"'Population 2016'!J202*'Prevalence Rates'!J202","v":396.25517447687054},{"$f":"'Population 2016'!K202*'Prevalence Rates'!K202","v":125.56239744023728},{"$f":"'Population 2016'!L202*'Prevalence Rates'!L202","v":215.03206778921088},{"$f":"'Population 2016'!M202*'Prevalence Rates'!M202","v":228.57906339659908},{"$f":"'Population 2016'!N202*'Prevalence Rates'!N202","v":133.57727419289728},{"$f":"'Population 2016'!O202*'Prevalence Rates'!O202","v":154.26107112333321},{"$f":"'Population 2016'!P202*'Prevalence Rates'!P202","v":161.91257573873662},{"$f":"'Population 2016'!Q202*'Prevalence Rates'!Q202","v":324.81883355549593},{"$f":"'Population 2016'!R202*'Prevalence Rates'!R202","v":107.22730223153503},{"$f":"'Population 2016'!S202*'Prevalence Rates'!S202","v":2519.0813580851782},{"$f":"'Population 2016'!T202*'Prevalence Rates'!T202","v":803.97727480556421},{"$f":"'Population 2016'!U202*'Prevalence Rates'!U202","v":22.363949665322103},{"$f":"'Population 2016'!V202*'Prevalence Rates'!V202","v":269.74379070506399},{"$f":"'Population 2016'!W202*'Prevalence Rates'!W202","v":542.96814645148356},{"$f":"'Population 2016'!X202*'Prevalence Rates'!X202","v":545.27194466431877},{"$f":"'Population 2016'!Y202*'Prevalence Rates'!Y202","v":791.90438442724212},{"$f":"'Population 2016'!Z202*'Prevalence Rates'!Z202","v":519.28499808689799},{"$f":"'Population 2016'!AA202*'Prevalence Rates'!AA202","v":2120.2878189507583},{"$f":"'Population 2016'!AB202*'Prevalence Rates'!AB202","v":1254.1170255412264},{"$f":"'Population 2016'!AC202*'Prevalence Rates'!AC202","v":1207.7493618936503},{"$f":"'Population 2016'!AD202*'Prevalence Rates'!AD202","v":827.3843702567043},{"$f":"'Population 2016'!AE202*'Prevalence Rates'!AE202","v":602.21488368465521},{"$f":"'Population 2016'!AF202*'Prevalence Rates'!AF202","v":127.07560989818185},{"$f":"'Population 2016'!AG202*'Prevalence Rates'!AG202","v":653.69090505708709},{"$f":"'Population 2016'!AH202*'Prevalence Rates'!AH202","v":894.02349110502394},{"$f":"'Population 2016'!AI202*'Prevalence Rates'!AI202","v":1569.6056942412415},{"$f":"'Population 2016'!AJ202*'Prevalence Rates'!AJ202","v":124.17992743883002},{"$f":"'Population 2016'!AK202*'Prevalence Rates'!AK202","v":256.27310972216077},{"$f":"'Population 2016'!AL202*'Prevalence Rates'!AL202","v":234.15972741076212},{"$f":"'Population 2016'!AM202*'Prevalence Rates'!AM202","v":372.16829851063068},{"$f":"'Population 2016'!AN202*'Prevalence Rates'!AN202","v":104.80216960648002},{"$f":"'Population 2016'!AO202*'Prevalence Rates'!AO202","v":104.80216960648002},{"$f":"'Population 2016'!AP202*'Prevalence Rates'!AP202","v":454.02458018411511},{"$f":"'Population 2016'!AQ202*'Prevalence Rates'!AQ202","v":236.98069626357682},{"$f":"'Population 2016'!AR202*'Prevalence Rates'!AR202","v":9236.7077316178984},{"$f":"'Population 2016'!AS202*'Prevalence Rates'!AS202","v":395.53053049969066},{"$f":"'Population 2016'!AT202*'Prevalence Rates'!AT202","v":137.16482411886389},{"$f":"'Population 2016'!AU202*'Prevalence Rates'!AU202","v":137.16482411886389},{"$f":"'Population 2016'!AV202*'Prevalence Rates'!AV202","v":136.1341002419903},{"$f":"'Population 2016'!AW202*'Prevalence Rates'!AW202","v":513.6006481676319},{"$f":"'Population 2016'!AX202*'Prevalence Rates'!AX202","v":230.97603116384275},{"$f":"'Population 2016'!AY202*'Prevalence Rates'!AY202","v":1271.5536912746038},{"$f":"'Population 2016'!AZ202*'Prevalence Rates'!AZ202","v":705.25013711711574},{"$f":"'Population 2016'!BA202*'Prevalence Rates'!BA202","v":94.857902575195624},{"$f":"'Population 2016'!BB202*'Prevalence Rates'!BB202","v":330.94634909128354},{"$f":"'Population 2016'!BC202*'Prevalence Rates'!BC202","v":15.435923140218007},200]
[null,"Male 50-54",{"$f":"'Population 2016'!C203*'Prevalence Rates'!C203","v":290.3623300523447},{"$f":"'Population 2016'!D203*'Prevalence Rates'!D203","v":1079.2226874523449},{"$f":"'Population 2016'!E203*'Prevalence Rates'!E203","v":716.54140197141714},{"$f":"'Population 2016'!F203*'Prevalence Rates'!F203","v":266.16567937773141},{"$f":"'Population 2016'!G203*'Prevalence Rates'!G203","v":199.74531964053833},{"$f":"'Population 2016'!H203*'Prevalence Rates'!H203","v":563.08732824599622},{"$f":"'Population 2016'!I203*'Prevalence Rates'!I203","v":453.79713817781362},{"$f":"'Population 2016'!J203*'Prevalence Rates'!J203","v":409.17348633082946},{"$f":"'Population 2016'!K203*'Prevalence Rates'!K203","v":117.62285474495296},{"$f":"'Population 2016'!L203*'Prevalence Rates'!L203","v":254.89500408488027},{"$f":"'Population 2016'!M203*'Prevalence Rates'!M203","v":270.95336010677369},{"$f":"'Population 2016'!N203*'Prevalence Rates'!N203","v":147.66851843578962},{"$f":"'Population 2016'!O203*'Prevalence Rates'!O203","v":162.61278516504231},{"$f":"'Population 2016'!P203*'Prevalence Rates'!P203","v":173.54701231876561},{"$f":"'Population 2016'!Q203*'Prevalence Rates'!Q203","v":351.97495356865829},{"$f":"'Population 2016'!R203*'Prevalence Rates'!R203","v":134.09409831639391},{"$f":"'Population 2016'!S203*'Prevalence Rates'!S203","v":2612.7803407910947},{"$f":"'Population 2016'!T203*'Prevalence Rates'!T203","v":796.41635999548055},{"$f":"'Population 2016'!U203*'Prevalence Rates'!U203","v":17.394183073028302},{"$f":"'Population 2016'!V203*'Prevalence Rates'!V203","v":257.34427774523442},{"$f":"'Population 2016'!W203*'Prevalence Rates'!W203","v":556.67287130182149},{"$f":"'Population 2016'!X203*'Prevalence Rates'!X203","v":559.03481826762493},{"$f":"'Population 2016'!Y203*'Prevalence Rates'!Y203","v":788.61847411841541},{"$f":"'Population 2016'!Z203*'Prevalence Rates'!Z203","v":506.05332848879647},{"$f":"'Population 2016'!AA203*'Prevalence Rates'!AA203","v":2215.878024164203},{"$f":"'Population 2016'!AB203*'Prevalence Rates'!AB203","v":1324.7455553831664},{"$f":"'Population 2016'!AC203*'Prevalence Rates'!AC203","v":1283.2887548786105},{"$f":"'Population 2016'!AD203*'Prevalence Rates'!AD203","v":900.58583421745652},{"$f":"'Population 2016'!AE203*'Prevalence Rates'!AE203","v":649.04906675530128},{"$f":"'Population 2016'!AF203*'Prevalence Rates'!AF203","v":144.81231163308709},{"$f":"'Population 2016'!AG203*'Prevalence Rates'!AG203","v":704.52837246031936},{"$f":"'Population 2016'!AH203*'Prevalence Rates'!AH203","v":915.57094597390051},{"$f":"'Population 2016'!AI203*'Prevalence Rates'!AI203","v":1589.6204220234126},{"$f":"'Population 2016'!AJ203*'Prevalence Rates'!AJ203","v":127.87105054741519},{"$f":"'Population 2016'!AK203*'Prevalence Rates'!AK203","v":259.22276636757499},{"$f":"'Population 2016'!AL203*'Prevalence Rates'!AL203","v":265.60061152601793},{"$f":"'Population 2016'!AM203*'Prevalence Rates'!AM203","v":379.45838572404836},{"$f":"'Population 2016'!AN203*'Prevalence Rates'!AN203","v":114.09497282281815},{"$f":"'Population 2016'!AO203*'Prevalence Rates'!AO203","v":114.09497282281815},{"$f":"'Population 2016'!AP203*'Prevalence Rates'!AP203","v":513.66855988658597},{"$f":"'Population 2016'!AQ203*'Prevalence Rates'!AQ203","v":262.24471762735902},{"$f":"'Population 2016'!AR203*'Prevalence Rates'!AR203","v":9795.8338433646823},{"$f":"'Population 2016'!AS203*'Prevalence Rates'!AS203","v":453.79713817781362},{"$f":"'Population 2016'!AT203*'Prevalence Rates'!AT203","v":150.93229717168666},{"$f":"'Population 2016'!AU203*'Prevalence Rates'!AU203","v":150.93229717168666},{"$f":"'Population 2016'!AV203*'Prevalence Rates'!AV203","v":139.40880368423751},{"$f":"'Population 2016'!AW203*'Prevalence Rates'!AW203","v":527.77307180537071},{"$f":"'Population 2016'!AX203*'Prevalence Rates'!AX203","v":248.11144810994085},{"$f":"'Population 2016'!AY203*'Prevalence Rates'!AY203","v":1393.1357241479984},{"$f":"'Population 2016'!AZ203*'Prevalence Rates'!AZ203","v":804.32742330215115},{"$f":"'Population 2016'!BA203*'Prevalence Rates'!BA203","v":103.66142021558501},{"$f":"'Population 2016'!BB203*'Prevalence Rates'!BB203","v":325.40117035555755},{"$f":"'Population 2016'!BC203*'Prevalence Rates'!BC203","v":12.005717997947338},201]
[null,"Male 55-59",{"$f":"'Population 2016'!C204*'Prevalence Rates'!C204","v":409.06209991892104},{"$f":"'Population 2016'!D204*'Prevalence Rates'!D204","v":1516.4198098507543},{"$f":"'Population 2016'!E204*'Prevalence Rates'!E204","v":1006.0247606332423},{"$f":"'Population 2016'!F204*'Prevalence Rates'!F204","v":362.66923737170316},{"$f":"'Population 2016'!G204*'Prevalence Rates'!G204","v":287.90797259982281},{"$f":"'Population 2016'!H204*'Prevalence Rates'!H204","v":837.60242372318487},{"$f":"'Population 2016'!I204*'Prevalence Rates'!I204","v":649.58010954069528},{"$f":"'Population 2016'!J204*'Prevalence Rates'!J204","v":560.74646305536692},{"$f":"'Population 2016'!K204*'Prevalence Rates'!K204","v":152.95165232159832},{"$f":"'Population 2016'!L204*'Prevalence Rates'!L204","v":364.99639564818568},{"$f":"'Population 2016'!M204*'Prevalence Rates'!M204","v":387.99112671037096},{"$f":"'Population 2016'!N204*'Prevalence Rates'!N204","v":248.16153160205695},{"$f":"'Population 2016'!O204*'Prevalence Rates'!O204","v":239.89709331230119},{"$f":"'Population 2016'!P204*'Prevalence Rates'!P204","v":287.9010149907935},{"$f":"'Population 2016'!Q204*'Prevalence Rates'!Q204","v":511.2938566779419},{"$f":"'Population 2016'!R204*'Prevalence Rates'!R204","v":156.43170845700436},{"$f":"'Population 2016'!S204*'Prevalence Rates'!S204","v":3726.9825360010709},{"$f":"'Population 2016'!T204*'Prevalence Rates'!T204","v":1137.7594598813014},{"$f":"'Population 2016'!U204*'Prevalence Rates'!U204","v":25.078236573065041},{"$f":"'Population 2016'!V204*'Prevalence Rates'!V204","v":369.84651602069761},{"$f":"'Population 2016'!W204*'Prevalence Rates'!W204","v":806.90714773830746},{"$f":"'Population 2016'!X204*'Prevalence Rates'!X204","v":810.33083153455311},{"$f":"'Population 2016'!Y204*'Prevalence Rates'!Y204","v":1104.3330169936678},{"$f":"'Population 2016'!Z204*'Prevalence Rates'!Z204","v":681.92806723676142},{"$f":"'Population 2016'!AA204*'Prevalence Rates'!AA204","v":3025.7269487183348},{"$f":"'Population 2016'!AB204*'Prevalence Rates'!AB204","v":1848.6858229136242},{"$f":"'Population 2016'!AC204*'Prevalence Rates'!AC204","v":1830.7767103539798},{"$f":"'Population 2016'!AD204*'Prevalence Rates'!AD204","v":1325.5240033643156},{"$f":"'Population 2016'!AE204*'Prevalence Rates'!AE204","v":960.93719242899238},{"$f":"'Population 2016'!AF204*'Prevalence Rates'!AF204","v":197.30579656069736},{"$f":"'Population 2016'!AG204*'Prevalence Rates'!AG204","v":1043.0760182786396},{"$f":"'Population 2016'!AH204*'Prevalence Rates'!AH204","v":1180.3874379408257},{"$f":"'Population 2016'!AI204*'Prevalence Rates'!AI204","v":2248.4257289187126},{"$f":"'Population 2016'!AJ204*'Prevalence Rates'!AJ204","v":189.94423498684151},{"$f":"'Population 2016'!AK204*'Prevalence Rates'!AK204","v":353.45491094310529},{"$f":"'Population 2016'!AL204*'Prevalence Rates'!AL204","v":385.88792119379275},{"$f":"'Population 2016'!AM204*'Prevalence Rates'!AM204","v":461.17914066355456},{"$f":"'Population 2016'!AN204*'Prevalence Rates'!AN204","v":156.30990118505358},{"$f":"'Population 2016'!AO204*'Prevalence Rates'!AO204","v":156.30990118505358},{"$f":"'Population 2016'!AP204*'Prevalence Rates'!AP204","v":731.40704693317957},{"$f":"'Population 2016'!AQ204*'Prevalence Rates'!AQ204","v":397.1283029478779},{"$f":"'Population 2016'!AR204*'Prevalence Rates'!AR204","v":13850.93316360461},{"$f":"'Population 2016'!AS204*'Prevalence Rates'!AS204","v":649.58010954069528},{"$f":"'Population 2016'!AT204*'Prevalence Rates'!AT204","v":209.8041075164505},{"$f":"'Population 2016'!AU204*'Prevalence Rates'!AU204","v":209.8041075164505},{"$f":"'Population 2016'!AV204*'Prevalence Rates'!AV204","v":216.45510952519854},{"$f":"'Population 2016'!AW204*'Prevalence Rates'!AW204","v":710.35923660339404},{"$f":"'Population 2016'!AX204*'Prevalence Rates'!AX204","v":346.60113038302609},{"$f":"'Population 2016'!AY204*'Prevalence Rates'!AY204","v":2021.413398814803},{"$f":"'Population 2016'!AZ204*'Prevalence Rates'!AZ204","v":1167.7383260278523},{"$f":"'Population 2016'!BA204*'Prevalence Rates'!BA204","v":166.07725513081382},{"$f":"'Population 2016'!BB204*'Prevalence Rates'!BB204","v":429.7074171481421},{"$f":"'Population 2016'!BC204*'Prevalence Rates'!BC204","v":17.309363418675925},202]
[null,"Male 60-64",{"$f":"'Population 2016'!C205*'Prevalence Rates'!C205","v":393.69271466185171},{"$f":"'Population 2016'!D205*'Prevalence Rates'!D205","v":1369.2893798097286},{"$f":"'Population 2016'!E205*'Prevalence Rates'!E205","v":890.50316376883654},{"$f":"'Population 2016'!F205*'Prevalence Rates'!F205","v":363.73070831035204},{"$f":"'Population 2016'!G205*'Prevalence Rates'!G205","v":282.52986601327564},{"$f":"'Population 2016'!H205*'Prevalence Rates'!H205","v":763.42060322799284},{"$f":"'Population 2016'!I205*'Prevalence Rates'!I205","v":621.86903836831937},{"$f":"'Population 2016'!J205*'Prevalence Rates'!J205","v":443.88794664880521},{"$f":"'Population 2016'!K205*'Prevalence Rates'!K205","v":117.33902879597244},{"$f":"'Population 2016'!L205*'Prevalence Rates'!L205","v":369.94789713953708},{"$f":"'Population 2016'!M205*'Prevalence Rates'!M205","v":393.25457222775975},{"$f":"'Population 2016'!N205*'Prevalence Rates'!N205","v":186.72057269091968},{"$f":"'Population 2016'!O205*'Prevalence Rates'!O205","v":222.73434418820969},{"$f":"'Population 2016'!P205*'Prevalence Rates'!P205","v":258.92274289368095},{"$f":"'Population 2016'!Q205*'Prevalence Rates'!Q205","v":391.7599846603606},{"$f":"'Population 2016'!R205*'Prevalence Rates'!R205","v":162.01855518761167},{"$f":"'Population 2016'!S205*'Prevalence Rates'!S205","v":3161.3965897482767},{"$f":"'Population 2016'!T205*'Prevalence Rates'!T205","v":989.05830949268761},{"$f":"'Population 2016'!U205*'Prevalence Rates'!U205","v":21.702320111306285},{"$f":"'Population 2016'!V205*'Prevalence Rates'!V205","v":286.75770968180115},{"$f":"'Population 2016'!W205*'Prevalence Rates'!W205","v":690.04240386327422},{"$f":"'Population 2016'!X205*'Prevalence Rates'!X205","v":692.9702339159029},{"$f":"'Population 2016'!Y205*'Prevalence Rates'!Y205","v":865.93437325794946},{"$f":"'Population 2016'!Z205*'Prevalence Rates'!Z205","v":577.76463624763664},{"$f":"'Population 2016'!AA205*'Prevalence Rates'!AA205","v":2569.983994125243},{"$f":"'Population 2016'!AB205*'Prevalence Rates'!AB205","v":1695.7941652758227},{"$f":"'Population 2016'!AC205*'Prevalence Rates'!AC205","v":1572.2658412789688},{"$f":"'Population 2016'!AD205*'Prevalence Rates'!AD205","v":1231.5864083192926},{"$f":"'Population 2016'!AE205*'Prevalence Rates'!AE205","v":878.92216598463813},{"$f":"'Population 2016'!AF205*'Prevalence Rates'!AF205","v":165.23488969924125},{"$f":"'Population 2016'!AG205*'Prevalence Rates'!AG205","v":954.05052535713855},{"$f":"'Population 2016'!AH205*'Prevalence Rates'!AH205","v":987.25524956349409},{"$f":"'Population 2016'!AI205*'Prevalence Rates'!AI205","v":1823.8641254436977},{"$f":"'Population 2016'!AJ205*'Prevalence Rates'!AJ205","v":160.47012955784888},{"$f":"'Population 2016'!AK205*'Prevalence Rates'!AK205","v":341.60124014928164},{"$f":"'Population 2016'!AL205*'Prevalence Rates'!AL205","v":356.59763319956511},{"$f":"'Population 2016'!AM205*'Prevalence Rates'!AM205","v":383.97734619124145},{"$f":"'Population 2016'!AN205*'Prevalence Rates'!AN205","v":144.68685725078035},{"$f":"'Population 2016'!AO205*'Prevalence Rates'!AO205","v":144.68685725078035},{"$f":"'Population 2016'!AP205*'Prevalence Rates'!AP205","v":674.70882624068497},{"$f":"'Population 2016'!AQ205*'Prevalence Rates'!AQ205","v":324.83474249287644},{"$f":"'Population 2016'!AR205*'Prevalence Rates'!AR205","v":12172.610232910842},{"$f":"'Population 2016'!AS205*'Prevalence Rates'!AS205","v":621.86903836831937},{"$f":"'Population 2016'!AT205*'Prevalence Rates'!AT205","v":191.99055121788396},{"$f":"'Population 2016'!AU205*'Prevalence Rates'!AU205","v":191.99055121788396},{"$f":"'Population 2016'!AV205*'Prevalence Rates'!AV205","v":189.57981069153297},{"$f":"'Population 2016'!AW205*'Prevalence Rates'!AW205","v":595.99511866855437},{"$f":"'Population 2016'!AX205*'Prevalence Rates'!AX205","v":277.35379623710082},{"$f":"'Population 2016'!AY205*'Prevalence Rates'!AY205","v":1797.2225160699559},{"$f":"'Population 2016'!AZ205*'Prevalence Rates'!AZ205","v":1060.8937654188369},{"$f":"'Population 2016'!BA205*'Prevalence Rates'!BA205","v":135.3222078843668},{"$f":"'Population 2016'!BB205*'Prevalence Rates'!BB205","v":311.51830969938169},{"$f":"'Population 2016'!BC205*'Prevalence Rates'!BC205","v":14.979256804623398},203]
[null,"Male 65-69",{"$f":"'Population 2016'!C206*'Prevalence Rates'!C206","v":246.13655544145425},{"$f":"'Population 2016'!D206*'Prevalence Rates'!D206","v":923.19048947041051},{"$f":"'Population 2016'!E206*'Prevalence Rates'!E206","v":614.59905407666713},{"$f":"'Population 2016'!F206*'Prevalence Rates'!F206","v":253.65718770773137},{"$f":"'Population 2016'!G206*'Prevalence Rates'!G206","v":200.08123749688548},{"$f":"'Population 2016'!H206*'Prevalence Rates'!H206","v":520.76539736851714},{"$f":"'Population 2016'!I206*'Prevalence Rates'!I206","v":447.63013864893321},{"$f":"'Population 2016'!J206*'Prevalence Rates'!J206","v":288.32409164831154},{"$f":"'Population 2016'!K206*'Prevalence Rates'!K206","v":82.139421748934438},{"$f":"'Population 2016'!L206*'Prevalence Rates'!L206","v":252.83293778401926},{"$f":"'Population 2016'!M206*'Prevalence Rates'!M206","v":268.76138386546938},{"$f":"'Population 2016'!N206*'Prevalence Rates'!N206","v":119.02998843883148},{"$f":"'Population 2016'!O206*'Prevalence Rates'!O206","v":139.30060974021623},{"$f":"'Population 2016'!P206*'Prevalence Rates'!P206","v":175.52334999640755},{"$f":"'Population 2016'!Q206*'Prevalence Rates'!Q206","v":260.12397758384162},{"$f":"'Population 2016'!R206*'Prevalence Rates'!R206","v":98.107819842513663},{"$f":"'Population 2016'!S206*'Prevalence Rates'!S206","v":2134.0185795465441},{"$f":"'Population 2016'!T206*'Prevalence Rates'!T206","v":565.85705691528767},{"$f":"'Population 2016'!U206*'Prevalence Rates'!U206","v":17.025246015432813},{"$f":"'Population 2016'!V206*'Prevalence Rates'!V206","v":204.30618678183473},{"$f":"'Population 2016'!W206*'Prevalence Rates'!W206","v":504.91832019483729},{"$f":"'Population 2016'!X206*'Prevalence Rates'!X206","v":507.06067409035552},{"$f":"'Population 2016'!Y206*'Prevalence Rates'!Y206","v":587.24036342026409},{"$f":"'Population 2016'!Z206*'Prevalence Rates'!Z206","v":339.13847680454825},{"$f":"'Population 2016'!AA206*'Prevalence Rates'!AA206","v":1610.822752546364},{"$f":"'Population 2016'!AB206*'Prevalence Rates'!AB206","v":1130.9652834539238},{"$f":"'Population 2016'!AC206*'Prevalence Rates'!AC206","v":982.19210478859532},{"$f":"'Population 2016'!AD206*'Prevalence Rates'!AD206","v":841.704281343346},{"$f":"'Population 2016'!AE206*'Prevalence Rates'!AE206","v":594.20771082082695},{"$f":"'Population 2016'!AF206*'Prevalence Rates'!AF206","v":95.372871933241996},{"$f":"'Population 2016'!AG206*'Prevalence Rates'!AG206","v":644.99929643346945},{"$f":"'Population 2016'!AH206*'Prevalence Rates'!AH206","v":621.71034368647702},{"$f":"'Population 2016'!AI206*'Prevalence Rates'!AI206","v":1150.5373730940757},{"$f":"'Population 2016'!AJ206*'Prevalence Rates'!AJ206","v":119.50139995838877},{"$f":"'Population 2016'!AK206*'Prevalence Rates'!AK206","v":219.83713426100982},{"$f":"'Population 2016'!AL206*'Prevalence Rates'!AL206","v":264.18305112932893},{"$f":"'Population 2016'!AM206*'Prevalence Rates'!AM206","v":228.36292431592702},{"$f":"'Population 2016'!AN206*'Prevalence Rates'!AN206","v":95.776937508087855},{"$f":"'Population 2016'!AO206*'Prevalence Rates'!AO206","v":95.776937508087855},{"$f":"'Population 2016'!AP206*'Prevalence Rates'!AP206","v":462.32674318002944},{"$f":"'Population 2016'!AQ206*'Prevalence Rates'!AQ206","v":207.76057891976114},{"$f":"'Population 2016'!AR206*'Prevalence Rates'!AR206","v":8091.297295366714},{"$f":"'Population 2016'!AS206*'Prevalence Rates'!AS206","v":447.63013864893321},{"$f":"'Population 2016'!AT206*'Prevalence Rates'!AT206","v":127.383406847507},{"$f":"'Population 2016'!AU206*'Prevalence Rates'!AU206","v":127.383406847507},{"$f":"'Population 2016'!AV206*'Prevalence Rates'!AV206","v":125.00458506231693},{"$f":"'Population 2016'!AW206*'Prevalence Rates'!AW206","v":389.67343704924866},{"$f":"'Population 2016'!AX206*'Prevalence Rates'!AX206","v":175.42524602231791},{"$f":"'Population 2016'!AY206*'Prevalence Rates'!AY206","v":1255.4400547845951},{"$f":"'Population 2016'!AZ206*'Prevalence Rates'!AZ206","v":722.12400336570738},{"$f":"'Population 2016'!BA206*'Prevalence Rates'!BA206","v":98.132001709489174},{"$f":"'Population 2016'!BB206*'Prevalence Rates'!BB206","v":213.07930889053478},{"$f":"'Population 2016'!BC206*'Prevalence Rates'!BC206","v":11.751072277944992},204]
[null,"Male 70-74",{"$f":"'Population 2016'!C207*'Prevalence Rates'!C207","v":177.37884375835236},{"$f":"'Population 2016'!D207*'Prevalence Rates'!D207","v":620.33646655674522},{"$f":"'Population 2016'!E207*'Prevalence Rates'!E207","v":404.14961843900102},{"$f":"'Population 2016'!F207*'Prevalence Rates'!F207","v":208.01811037395393},{"$f":"'Population 2016'!G207*'Prevalence Rates'!G207","v":164.30028626569063},{"$f":"'Population 2016'!H207*'Prevalence Rates'!H207","v":430.28171780448679},{"$f":"'Population 2016'!I207*'Prevalence Rates'!I207","v":343.60731285659767},{"$f":"'Population 2016'!J207*'Prevalence Rates'!J207","v":237.70456426447038},{"$f":"'Population 2016'!K207*'Prevalence Rates'!K207","v":64.161736988790295},{"$f":"'Population 2016'!L207*'Prevalence Rates'!L207","v":198.32859127217466},{"$f":"'Population 2016'!M207*'Prevalence Rates'!M207","v":210.82326977481262},{"$f":"'Population 2016'!N207*'Prevalence Rates'!N207","v":83.422726940035744},{"$f":"'Population 2016'!O207*'Prevalence Rates'!O207","v":113.66722616348498},{"$f":"'Population 2016'!P207*'Prevalence Rates'!P207","v":122.3809092405811},{"$f":"'Population 2016'!Q207*'Prevalence Rates'!Q207","v":206.76521295125872},{"$f":"'Population 2016'!R207*'Prevalence Rates'!R207","v":70.040892000969805},{"$f":"'Population 2016'!S207*'Prevalence Rates'!S207","v":1595.2426979189584},{"$f":"'Population 2016'!T207*'Prevalence Rates'!T207","v":398.15880941398467},{"$f":"'Population 2016'!U207*'Prevalence Rates'!U207","v":13.751160243234194},{"$f":"'Population 2016'!V207*'Prevalence Rates'!V207","v":147.43981829485941},{"$f":"'Population 2016'!W207*'Prevalence Rates'!W207","v":378.80339008259364},{"$f":"'Population 2016'!X207*'Prevalence Rates'!X207","v":380.41064196061188},{"$f":"'Population 2016'!Y207*'Prevalence Rates'!Y207","v":455.30807801914312},{"$f":"'Population 2016'!Z207*'Prevalence Rates'!Z207","v":219.24103551001099},{"$f":"'Population 2016'!AA207*'Prevalence Rates'!AA207","v":1106.3563064299385},{"$f":"'Population 2016'!AB207*'Prevalence Rates'!AB207","v":786.99301445458116},{"$f":"'Population 2016'!AC207*'Prevalence Rates'!AC207","v":687.60411590258082},{"$f":"'Population 2016'!AD207*'Prevalence Rates'!AD207","v":652.33298843266834},{"$f":"'Population 2016'!AE207*'Prevalence Rates'!AE207","v":451.96754939141044},{"$f":"'Population 2016'!AF207*'Prevalence Rates'!AF207","v":72.653775889591287},{"$f":"'Population 2016'!AG207*'Prevalence Rates'!AG207","v":490.60075468478988},{"$f":"'Population 2016'!AH207*'Prevalence Rates'!AH207","v":415.43713433981787},{"$f":"'Population 2016'!AI207*'Prevalence Rates'!AI207","v":848.64016982352268},{"$f":"'Population 2016'!AJ207*'Prevalence Rates'!AJ207","v":98.102312058863347},{"$f":"'Population 2016'!AK207*'Prevalence Rates'!AK207","v":170.63897359860414},{"$f":"'Population 2016'!AL207*'Prevalence Rates'!AL207","v":213.9977403413202},{"$f":"'Population 2016'!AM207*'Prevalence Rates'!AM207","v":156.24831663721324},{"$f":"'Population 2016'!AN207*'Prevalence Rates'!AN207","v":75.369919573125955},{"$f":"'Population 2016'!AO207*'Prevalence Rates'!AO207","v":75.369919573125955},{"$f":"'Population 2016'!AP207*'Prevalence Rates'!AP207","v":337.87060787439708},{"$f":"'Population 2016'!AQ207*'Prevalence Rates'!AQ207","v":158.46145849812291},{"$f":"'Population 2016'!AR207*'Prevalence Rates'!AR207","v":5952.2861060316836},{"$f":"'Population 2016'!AS207*'Prevalence Rates'!AS207","v":343.60731285659767},{"$f":"'Population 2016'!AT207*'Prevalence Rates'!AT207","v":82.50359894975665},{"$f":"'Population 2016'!AU207*'Prevalence Rates'!AU207","v":82.50359894975665},{"$f":"'Population 2016'!AV207*'Prevalence Rates'!AV207","v":107.99212674022647},{"$f":"'Population 2016'!AW207*'Prevalence Rates'!AW207","v":256.48591779861454},{"$f":"'Population 2016'!AX207*'Prevalence Rates'!AX207","v":147.46607423032648},{"$f":"'Population 2016'!AY207*'Prevalence Rates'!AY207","v":942.46857068592078},{"$f":"'Population 2016'!AZ207*'Prevalence Rates'!AZ207","v":542.30506274321851},{"$f":"'Population 2016'!BA207*'Prevalence Rates'!BA207","v":65.653325020769358},{"$f":"'Population 2016'!BB207*'Prevalence Rates'!BB207","v":148.78355733004923},{"$f":"'Population 2016'!BC207*'Prevalence Rates'!BC207","v":9.4912506860324939},205]
[null,"Male 75-79",{"$f":"'Population 2016'!C208*'Prevalence Rates'!C208","v":104.5498501357564},{"$f":"'Population 2016'!D208*'Prevalence Rates'!D208","v":388.18659095516324},{"$f":"'Population 2016'!E208*'Prevalence Rates'!E208","v":257.65303051463758},{"$f":"'Population 2016'!F208*'Prevalence Rates'!F208","v":142.68800840411714},{"$f":"'Population 2016'!G208*'Prevalence Rates'!G208","v":96.181126358838384},{"$f":"'Population 2016'!H208*'Prevalence Rates'!H208","v":247.16078532339526},{"$f":"'Population 2016'!I208*'Prevalence Rates'!I208","v":219.84484607621309},{"$f":"'Population 2016'!J208*'Prevalence Rates'!J208","v":136.07855854138407},{"$f":"'Population 2016'!K208*'Prevalence Rates'!K208","v":34.60770867603955},{"$f":"'Population 2016'!L208*'Prevalence Rates'!L208","v":127.54977058631361},{"$f":"'Population 2016'!M208*'Prevalence Rates'!M208","v":135.58539150379454},{"$f":"'Population 2016'!N208*'Prevalence Rates'!N208","v":56.262224191657779},{"$f":"'Population 2016'!O208*'Prevalence Rates'!O208","v":57.141070496636843},{"$f":"'Population 2016'!P208*'Prevalence Rates'!P208","v":83.127382035348376},{"$f":"'Population 2016'!Q208*'Prevalence Rates'!Q208","v":119.02635632167035},{"$f":"'Population 2016'!R208*'Prevalence Rates'!R208","v":45.656157126018265},{"$f":"'Population 2016'!S208*'Prevalence Rates'!S208","v":991.23351571604474},{"$f":"'Population 2016'!T208*'Prevalence Rates'!T208","v":276.04962152532551},{"$f":"'Population 2016'!U208*'Prevalence Rates'!U208","v":6.283040263307698},{"$f":"'Population 2016'!V208*'Prevalence Rates'!V208","v":95.006765561083455},{"$f":"'Population 2016'!W208*'Prevalence Rates'!W208","v":228.41626583317327},{"$f":"'Population 2016'!X208*'Prevalence Rates'!X208","v":229.38542947278648},{"$f":"'Population 2016'!Y208*'Prevalence Rates'!Y208","v":275.2085318772327},{"$f":"'Population 2016'!Z208*'Prevalence Rates'!Z208","v":149.19288774227459},{"$f":"'Population 2016'!AA208*'Prevalence Rates'!AA208","v":673.83121791845701},{"$f":"'Population 2016'!AB208*'Prevalence Rates'!AB208","v":493.91936553542388},{"$f":"'Population 2016'!AC208*'Prevalence Rates'!AC208","v":442.04273629312905},{"$f":"'Population 2016'!AD208*'Prevalence Rates'!AD208","v":375.8070500113555},{"$f":"'Population 2016'!AE208*'Prevalence Rates'!AE208","v":258.96183370166233},{"$f":"'Population 2016'!AF208*'Prevalence Rates'!AF208","v":45.621461879093218},{"$f":"'Population 2016'!AG208*'Prevalence Rates'!AG208","v":281.09732926548708},{"$f":"'Population 2016'!AH208*'Prevalence Rates'!AH208","v":232.34009210219028},{"$f":"'Population 2016'!AI208*'Prevalence Rates'!AI208","v":529.53035143210013},{"$f":"'Population 2016'!AJ208*'Prevalence Rates'!AJ208","v":50.180154294472018},{"$f":"'Population 2016'!AK208*'Prevalence Rates'!AK208","v":108.00462777118426},{"$f":"'Population 2016'!AL208*'Prevalence Rates'!AL208","v":126.92218163325556},{"$f":"'Population 2016'!AM208*'Prevalence Rates'!AM208","v":86.966058246051631},{"$f":"'Population 2016'!AN208*'Prevalence Rates'!AN208","v":53.164705257536284},{"$f":"'Population 2016'!AO208*'Prevalence Rates'!AO208","v":53.164705257536284},{"$f":"'Population 2016'!AP208*'Prevalence Rates'!AP208","v":226.82139156949754},{"$f":"'Population 2016'!AQ208*'Prevalence Rates'!AQ208","v":94.836432984744164},{"$f":"'Population 2016'!AR208*'Prevalence Rates'!AR208","v":3684.1135505286197},{"$f":"'Population 2016'!AS208*'Prevalence Rates'!AS208","v":219.84484607621309},{"$f":"'Population 2016'!AT208*'Prevalence Rates'!AT208","v":53.2129682455855},{"$f":"'Population 2016'!AU208*'Prevalence Rates'!AU208","v":53.2129682455855},{"$f":"'Population 2016'!AV208*'Prevalence Rates'!AV208","v":66.670971997424886},{"$f":"'Population 2016'!AW208*'Prevalence Rates'!AW208","v":143.89078831324375},{"$f":"'Population 2016'!AX208*'Prevalence Rates'!AX208","v":86.114416691970675},{"$f":"'Population 2016'!AY208*'Prevalence Rates'!AY208","v":612.01494930393937},{"$f":"'Population 2016'!AZ208*'Prevalence Rates'!AZ208","v":366.70782874812681},{"$f":"'Population 2016'!BA208*'Prevalence Rates'!BA208","v":38.246280331610777},{"$f":"'Population 2016'!BB208*'Prevalence Rates'!BB208","v":90.846894839867318},{"$f":"'Population 2016'!BC208*'Prevalence Rates'!BC208","v":4.3366457196824433},206]
[null,"Male 80-84",{"$f":"'Population 2016'!C209*'Prevalence Rates'!C209","v":71.177911364744872},{"$f":"'Population 2016'!D209*'Prevalence Rates'!D209","v":253.60726435283391},{"$f":"'Population 2016'!E209*'Prevalence Rates'!E209","v":166.21112775694098},{"$f":"'Population 2016'!F209*'Prevalence Rates'!F209","v":85.69661591377961},{"$f":"'Population 2016'!G209*'Prevalence Rates'!G209","v":65.182352742082529},{"$f":"'Population 2016'!H209*'Prevalence Rates'!H209","v":169.44030400099948},{"$f":"'Population 2016'!I209*'Prevalence Rates'!I209","v":143.34559667318393},{"$f":"'Population 2016'!J209*'Prevalence Rates'!J209","v":93.473317252335931},{"$f":"'Population 2016'!K209*'Prevalence Rates'!K209","v":24.874290610903426},{"$f":"'Population 2016'!L209*'Prevalence Rates'!L209","v":95.505246941476202},{"$f":"'Population 2016'!M209*'Prevalence Rates'!M209","v":101.52206654471317},{"$f":"'Population 2016'!N209*'Prevalence Rates'!N209","v":49.340373265870227},{"$f":"'Population 2016'!O209*'Prevalence Rates'!O209","v":35.233229239032994},{"$f":"'Population 2016'!P209*'Prevalence Rates'!P209","v":60.172635789662365},{"$f":"'Population 2016'!Q209*'Prevalence Rates'!Q209","v":79.270098813006527},{"$f":"'Population 2016'!R209*'Prevalence Rates'!R209","v":34.628099849202258},{"$f":"'Population 2016'!S209*'Prevalence Rates'!S209","v":658.24100653018593},{"$f":"'Population 2016'!T209*'Prevalence Rates'!T209","v":201.60601949803416},{"$f":"'Population 2016'!U209*'Prevalence Rates'!U209","v":5.9974475240664393},{"$f":"'Population 2016'!V209*'Prevalence Rates'!V209","v":68.20485696069359},{"$f":"'Population 2016'!W209*'Prevalence Rates'!W209","v":144.01025516627385},{"$f":"'Population 2016'!X209*'Prevalence Rates'!X209","v":144.62128653275505},{"$f":"'Population 2016'!Y209*'Prevalence Rates'!Y209","v":193.08542705558344},{"$f":"'Population 2016'!Z209*'Prevalence Rates'!Z209","v":106.93224142901225},{"$f":"'Population 2016'!AA209*'Prevalence Rates'!AA209","v":458.08105542916127},{"$f":"'Population 2016'!AB209*'Prevalence Rates'!AB209","v":323.56988923604945},{"$f":"'Population 2016'!AC209*'Prevalence Rates'!AC209","v":308.39719989667225},{"$f":"'Population 2016'!AD209*'Prevalence Rates'!AD209","v":261.15405170280633},{"$f":"'Population 2016'!AE209*'Prevalence Rates'!AE209","v":181.48957669448319},{"$f":"'Population 2016'!AF209*'Prevalence Rates'!AF209","v":27.455449909137545},{"$f":"'Population 2016'!AG209*'Prevalence Rates'!AG209","v":197.00291185424797},{"$f":"'Population 2016'!AH209*'Prevalence Rates'!AH209","v":150.93100556715927},{"$f":"'Population 2016'!AI209*'Prevalence Rates'!AI209","v":364.4247058803391},{"$f":"'Population 2016'!AJ209*'Prevalence Rates'!AJ209","v":38.301760282737099},{"$f":"'Population 2016'!AK209*'Prevalence Rates'!AK209","v":71.311770478167446},{"$f":"'Population 2016'!AL209*'Prevalence Rates'!AL209","v":85.073653198863269},{"$f":"'Population 2016'!AM209*'Prevalence Rates'!AM209","v":51.904643459105912},{"$f":"'Population 2016'!AN209*'Prevalence Rates'!AN209","v":29.905146707364157},{"$f":"'Population 2016'!AO209*'Prevalence Rates'!AO209","v":29.905146707364157},{"$f":"'Population 2016'!AP209*'Prevalence Rates'!AP209","v":159.48379094730294},{"$f":"'Population 2016'!AQ209*'Prevalence Rates'!AQ209","v":58.936811591733722},{"$f":"'Population 2016'!AR209*'Prevalence Rates'!AR209","v":2496.5011291490728},{"$f":"'Population 2016'!AS209*'Prevalence Rates'!AS209","v":143.34559667318393},{"$f":"'Population 2016'!AT209*'Prevalence Rates'!AT209","v":31.177642187942165},{"$f":"'Population 2016'!AU209*'Prevalence Rates'!AU209","v":31.177642187942165},{"$f":"'Population 2016'!AV209*'Prevalence Rates'!AV209","v":50.971033430289346},{"$f":"'Population 2016'!AW209*'Prevalence Rates'!AW209","v":98.374314459054403},{"$f":"'Population 2016'!AX209*'Prevalence Rates'!AX209","v":58.272913550957604},{"$f":"'Population 2016'!AY209*'Prevalence Rates'!AY209","v":412.50828823763732},{"$f":"'Population 2016'!AZ209*'Prevalence Rates'!AZ209","v":255.40355552376312},{"$f":"'Population 2016'!BA209*'Prevalence Rates'!BA209","v":31.365997097352757},{"$f":"'Population 2016'!BB209*'Prevalence Rates'!BB209","v":52.1442636198218},{"$f":"'Population 2016'!BC209*'Prevalence Rates'!BC209","v":4.1395254596968778},207]
[null,"Male 85-89",{"$f":"'Population 2016'!C210*'Prevalence Rates'!C210","v":32.905198368619757},{"$f":"'Population 2016'!D210*'Prevalence Rates'!D210","v":136.37371762369369},{"$f":"'Population 2016'!E210*'Prevalence Rates'!E210","v":93.332618792160247},{"$f":"'Population 2016'!F210*'Prevalence Rates'!F210","v":52.381794568324942},{"$f":"'Population 2016'!G210*'Prevalence Rates'!G210","v":29.724851413327539},{"$f":"'Population 2016'!H210*'Prevalence Rates'!H210","v":78.203217231230525},{"$f":"'Population 2016'!I210*'Prevalence Rates'!I210","v":83.014958342719311},{"$f":"'Population 2016'!J210*'Prevalence Rates'!J210","v":51.64271671399775},{"$f":"'Population 2016'!K210*'Prevalence Rates'!K210","v":11.355654409325478},{"$f":"'Population 2016'!L210*'Prevalence Rates'!L210","v":47.96206480175011},{"$f":"'Population 2016'!M210*'Prevalence Rates'!M210","v":50.983669383200251},{"$f":"'Population 2016'!N210*'Prevalence Rates'!N210","v":26.977470274864299},{"$f":"'Population 2016'!O210*'Prevalence Rates'!O210","v":14.228804115763324},{"$f":"'Population 2016'!P210*'Prevalence Rates'!P210","v":32.092072421153262},{"$f":"'Population 2016'!Q210*'Prevalence Rates'!Q210","v":47.755992251260814},{"$f":"'Population 2016'!R210*'Prevalence Rates'!R210","v":16.76264706076033},{"$f":"'Population 2016'!S210*'Prevalence Rates'!S210","v":365.42055877227233},{"$f":"'Population 2016'!T210*'Prevalence Rates'!T210","v":124.26577925956416},{"$f":"'Population 2016'!U210*'Prevalence Rates'!U210","v":3.4271128708951082},{"$f":"'Population 2016'!V210*'Prevalence Rates'!V210","v":34.20243560199004},{"$f":"'Population 2016'!W210*'Prevalence Rates'!W210","v":72.005127583136925},{"$f":"'Population 2016'!X210*'Prevalence Rates'!X210","v":72.310643266377525},{"$f":"'Population 2016'!Y210*'Prevalence Rates'!Y210","v":101.89856819007319},{"$f":"'Population 2016'!Z210*'Prevalence Rates'!Z210","v":54.640027556541192},{"$f":"'Population 2016'!AA210*'Prevalence Rates'!AA210","v":233.59999607653967},{"$f":"'Population 2016'!AB210*'Prevalence Rates'!AB210","v":169.03185604070529},{"$f":"'Population 2016'!AC210*'Prevalence Rates'!AC210","v":160.37464367574816},{"$f":"'Population 2016'!AD210*'Prevalence Rates'!AD210","v":135.67271466511647},{"$f":"'Population 2016'!AE210*'Prevalence Rates'!AE210","v":98.118416869498489},{"$f":"'Population 2016'!AF210*'Prevalence Rates'!AF210","v":15.895260473711211},{"$f":"'Population 2016'!AG210*'Prevalence Rates'!AG210","v":106.50536621372669},{"$f":"'Population 2016'!AH210*'Prevalence Rates'!AH210","v":74.204742593877825},{"$f":"'Population 2016'!AI210*'Prevalence Rates'!AI210","v":208.90918416753439},{"$f":"'Population 2016'!AJ210*'Prevalence Rates'!AJ210","v":16.969134302478462},{"$f":"'Population 2016'!AK210*'Prevalence Rates'!AK210","v":34.140310698719986},{"$f":"'Population 2016'!AL210*'Prevalence Rates'!AL210","v":42.123847700408028},{"$f":"'Population 2016'!AM210*'Prevalence Rates'!AM210","v":22.171188762333319},{"$f":"'Population 2016'!AN210*'Prevalence Rates'!AN210","v":16.139285524609228},{"$f":"'Population 2016'!AO210*'Prevalence Rates'!AO210","v":16.139285524609228},{"$f":"'Population 2016'!AP210*'Prevalence Rates'!AP210","v":86.923329335021251},{"$f":"'Population 2016'!AQ210*'Prevalence Rates'!AQ210","v":34.55578529808492},{"$f":"'Population 2016'!AR210*'Prevalence Rates'!AR210","v":1318.0536995353766},{"$f":"'Population 2016'!AS210*'Prevalence Rates'!AS210","v":83.014958342719311},{"$f":"'Population 2016'!AT210*'Prevalence Rates'!AT210","v":14.299520101236633},{"$f":"'Population 2016'!AU210*'Prevalence Rates'!AU210","v":14.299520101236633},{"$f":"'Population 2016'!AV210*'Prevalence Rates'!AV210","v":23.227306373296411},{"$f":"'Population 2016'!AW210*'Prevalence Rates'!AW210","v":51.940169761030589},{"$f":"'Population 2016'!AX210*'Prevalence Rates'!AX210","v":34.100445707597409},{"$f":"'Population 2016'!AY210*'Prevalence Rates'!AY210","v":223.94349158082167},{"$f":"'Population 2016'!AZ210*'Prevalence Rates'!AZ210","v":143.76801958146976},{"$f":"'Population 2016'!BA210*'Prevalence Rates'!BA210","v":11.939315024153629},{"$f":"'Population 2016'!BB210*'Prevalence Rates'!BB210","v":25.492751103023991},{"$f":"'Population 2016'!BC210*'Prevalence Rates'!BC210","v":2.3654431198267876},208]
[null,"Male 90+",{"$f":"'Population 2016'!C211*'Prevalence Rates'!C211","v":9.568178249031277},{"$f":"'Population 2016'!D211*'Prevalence Rates'!D211","v":53.831730640931724},{"$f":"'Population 2016'!E211*'Prevalence Rates'!E211","v":39.361270172016013},{"$f":"'Population 2016'!F211*'Prevalence Rates'!F211","v":19.90508193596348},{"$f":"'Population 2016'!G211*'Prevalence Rates'!G211","v":14.862425706663769},{"$f":"'Population 2016'!H211*'Prevalence Rates'!H211","v":33.791513618432944},{"$f":"'Population 2016'!I211*'Prevalence Rates'!I211","v":29.682674058588592},{"$f":"'Population 2016'!J211*'Prevalence Rates'!J211","v":19.624232351319144},{"$f":"'Population 2016'!K211*'Prevalence Rates'!K211","v":4.3259635845049438},{"$f":"'Population 2016'!L211*'Prevalence Rates'!L211","v":18.01195446703279},{"$f":"'Population 2016'!M211*'Prevalence Rates'!M211","v":19.146705532555554},{"$f":"'Population 2016'!N211*'Prevalence Rates'!N211","v":14.731118636932479},{"$f":"'Population 2016'!O211*'Prevalence Rates'!O211","v":7.4531831082569795},{"$f":"'Population 2016'!P211*'Prevalence Rates'!P211","v":13.817420070218764},{"$f":"'Population 2016'!Q211*'Prevalence Rates'!Q211","v":15.029804667909495},{"$f":"'Population 2016'!R211*'Prevalence Rates'!R211","v":10.807496131279686},{"$f":"'Population 2016'!S211*'Prevalence Rates'!S211","v":144.23222054852604},{"$f":"'Population 2016'!T211*'Prevalence Rates'!T211","v":61.119066255869548},{"$f":"'Population 2016'!U211*'Prevalence Rates'!U211","v":0.57118547848251799},{"$f":"'Population 2016'!V211*'Prevalence Rates'!V211","v":14.000997030054403},{"$f":"'Population 2016'!W211*'Prevalence Rates'!W211","v":31.802264682552146},{"$f":"'Population 2016'!X211*'Prevalence Rates'!X211","v":31.937200775983406},{"$f":"'Population 2016'!Y211*'Prevalence Rates'!Y211","v":40.100245163748482},{"$f":"'Population 2016'!Z211*'Prevalence Rates'!Z211","v":22.197511194844861},{"$f":"'Population 2016'!AA211*'Prevalence Rates'!AA211","v":96.621925287472394},{"$f":"'Population 2016'!AB211*'Prevalence Rates'!AB211","v":69.269179312894821},{"$f":"'Population 2016'!AC211*'Prevalence Rates'!AC211","v":69.860166752693317},{"$f":"'Population 2016'!AD211*'Prevalence Rates'!AD211","v":59.025062092178999},{"$f":"'Population 2016'!AE211*'Prevalence Rates'!AE211","v":40.899059536784939},{"$f":"'Population 2016'!AF211*'Prevalence Rates'!AF211","v":5.9865266719172094},{"$f":"'Population 2016'!AG211*'Prevalence Rates'!AG211","v":44.395022389689686},{"$f":"'Population 2016'!AH211*'Prevalence Rates'!AH211","v":27.556615574910943},{"$f":"'Population 2016'!AI211*'Prevalence Rates'!AI211","v":81.386456363034483},{"$f":"'Population 2016'!AJ211*'Prevalence Rates'!AJ211","v":4.3634916777801758},{"$f":"'Population 2016'!AK211*'Prevalence Rates'!AK211","v":15.634347890068032},{"$f":"'Population 2016'!AL211*'Prevalence Rates'!AL211","v":13.765963300786938},{"$f":"'Population 2016'!AM211*'Prevalence Rates'!AM211","v":9.2809627377209249},{"$f":"'Population 2016'!AN211*'Prevalence Rates'!AN211","v":7.8323003281191843},{"$f":"'Population 2016'!AO211*'Prevalence Rates'!AO211","v":7.8323003281191843},{"$f":"'Population 2016'!AP211*'Prevalence Rates'!AP211","v":36.186965431317859},{"$f":"'Population 2016'!AQ211*'Prevalence Rates'!AQ211","v":14.590220459191411},{"$f":"'Population 2016'!AR211*'Prevalence Rates'!AR211","v":542.22648958893888},{"$f":"'Population 2016'!AS211*'Prevalence Rates'!AS211","v":29.682674058588592},{"$f":"'Population 2016'!AT211*'Prevalence Rates'!AT211","v":5.8604590578838653},{"$f":"'Population 2016'!AU211*'Prevalence Rates'!AU211","v":5.8604590578838653},{"$f":"'Population 2016'!AV211*'Prevalence Rates'!AV211","v":12.258856141461994},{"$f":"'Population 2016'!AW211*'Prevalence Rates'!AW211","v":18.169882707922362},{"$f":"'Population 2016'!AX211*'Prevalence Rates'!AX211","v":12.949536344657245},{"$f":"'Population 2016'!AY211*'Prevalence Rates'!AY211","v":96.835500023954637},{"$f":"'Population 2016'!AZ211*'Prevalence Rates'!AZ211","v":61.614865534915616},{"$f":"'Population 2016'!BA211*'Prevalence Rates'!BA211","v":5.0590317898956059},{"$f":"'Population 2016'!BB211*'Prevalence Rates'!BB211","v":5.3303025033595617},{"$f":"'Population 2016'!BC211*'Prevalence Rates'!BC211","v":0.39424051997113124},209]
["SIMD Q5 (least deprived)","Female 0-4",{"$f":"'Population 2016'!C212*'Prevalence Rates'!C212","v":0},{"$f":"'Population 2016'!D212*'Prevalence Rates'!D212","v":0},{"$f":"'Population 2016'!E212*'Prevalence Rates'!E212","v":0},{"$f":"'Population 2016'!F212*'Prevalence Rates'!F212","v":0},{"$f":"'Population 2016'!G212*'Prevalence Rates'!G212","v":0},{"$f":"'Population 2016'!H212*'Prevalence Rates'!H212","v":0},{"$f":"'Population 2016'!I212*'Prevalence Rates'!I212","v":0},{"$f":"'Population 2016'!J212*'Prevalence Rates'!J212","v":0},{"$f":"'Population 2016'!K212*'Prevalence Rates'!K212","v":0},{"$f":"'Population 2016'!L212*'Prevalence Rates'!L212","v":0},{"$f":"'Population 2016'!M212*'Prevalence Rates'!M212","v":0},{"$f":"'Population 2016'!N212*'Prevalence Rates'!N212","v":0},{"$f":"'Population 2016'!O212*'Prevalence Rates'!O212","v":0},{"$f":"'Population 2016'!P212*'Prevalence Rates'!P212","v":0},{"$f":"'Population 2016'!Q212*'Prevalence Rates'!Q212","v":0},{"$f":"'Population 2016'!R212*'Prevalence Rates'!R212","v":0},{"$f":"'Population 2016'!S212*'Prevalence Rates'!S212","v":0},{"$f":"'Population 2016'!T212*'Prevalence Rates'!T212","v":0},{"$f":"'Population 2016'!U212*'Prevalence Rates'!U212","v":0},{"$f":"'Population 2016'!V212*'Prevalence Rates'!V212","v":0},{"$f":"'Population 2016'!W212*'Prevalence Rates'!W212","v":0},{"$f":"'Population 2016'!X212*'Prevalence Rates'!X212","v":0},{"$f":"'Population 2016'!Y212*'Prevalence Rates'!Y212","v":0},{"$f":"'Population 2016'!Z212*'Prevalence Rates'!Z212","v":0},{"$f":"'Population 2016'!AA212*'Prevalence Rates'!AA212","v":0},{"$f":"'Population 2016'!AB212*'Prevalence Rates'!AB212","v":0},{"$f":"'Population 2016'!AC212*'Prevalence Rates'!AC212","v":0},{"$f":"'Population 2016'!AD212*'Prevalence Rates'!AD212","v":0},{"$f":"'Population 2016'!AE212*'Prevalence Rates'!AE212","v":0},{"$f":"'Population 2016'!AF212*'Prevalence Rates'!AF212","v":0},{"$f":"'Population 2016'!AG212*'Prevalence Rates'!AG212","v":0},{"$f":"'Population 2016'!AH212*'Prevalence Rates'!AH212","v":0},{"$f":"'Population 2016'!AI212*'Prevalence Rates'!AI212","v":0},{"$f":"'Population 2016'!AJ212*'Prevalence Rates'!AJ212","v":0},{"$f":"'Population 2016'!AK212*'Prevalence Rates'!AK212","v":0},{"$f":"'Population 2016'!AL212*'Prevalence Rates'!AL212","v":0},{"$f":"'Population 2016'!AM212*'Prevalence Rates'!AM212","v":0},{"$f":"'Population 2016'!AN212*'Prevalence Rates'!AN212","v":0},{"$f":"'Population 2016'!AO212*'Prevalence Rates'!AO212","v":0},{"$f":"'Population 2016'!AP212*'Prevalence Rates'!AP212","v":0},{"$f":"'Population 2016'!AQ212*'Prevalence Rates'!AQ212","v":0},{"$f":"'Population 2016'!AR212*'Prevalence Rates'!AR212","v":0},{"$f":"'Population 2016'!AS212*'Prevalence Rates'!AS212","v":0},{"$f":"'Population 2016'!AT212*'Prevalence Rates'!AT212","v":0},{"$f":"'Population 2016'!AU212*'Prevalence Rates'!AU212","v":0},{"$f":"'Population 2016'!AV212*'Prevalence Rates'!AV212","v":0},{"$f":"'Population 2016'!AW212*'Prevalence Rates'!AW212","v":0},{"$f":"'Population 2016'!AX212*'Prevalence Rates'!AX212","v":0},{"$f":"'Population 2016'!AY212*'Prevalence Rates'!AY212","v":0},{"$f":"'Population 2016'!AZ212*'Prevalence Rates'!AZ212","v":0},{"$f":"'Population 2016'!BA212*'Prevalence Rates'!BA212","v":0},{"$f":"'Population 2016'!BB212*'Prevalence Rates'!BB212","v":0},{"$f":"'Population 2016'!BC212*'Prevalence Rates'!BC212","v":0},210]
[null,"Female 5-9",{"$f":"'Population 2016'!C213*'Prevalence Rates'!C213","v":0},{"$f":"'Population 2016'!D213*'Prevalence Rates'!D213","v":0},{"$f":"'Population 2016'!E213*'Prevalence Rates'!E213","v":0},{"$f":"'Population 2016'!F213*'Prevalence Rates'!F213","v":0},{"$f":"'Population 2016'!G213*'Prevalence Rates'!G213","v":0},{"$f":"'Population 2016'!H213*'Prevalence Rates'!H213","v":0},{"$f":"'Population 2016'!I213*'Prevalence Rates'!I213","v":0},{"$f":"'Population 2016'!J213*'Prevalence Rates'!J213","v":0},{"$f":"'Population 2016'!K213*'Prevalence Rates'!K213","v":0},{"$f":"'Population 2016'!L213*'Prevalence Rates'!L213","v":0},{"$f":"'Population 2016'!M213*'Prevalence Rates'!M213","v":0},{"$f":"'Population 2016'!N213*'Prevalence Rates'!N213","v":0},{"$f":"'Population 2016'!O213*'Prevalence Rates'!O213","v":0},{"$f":"'Population 2016'!P213*'Prevalence Rates'!P213","v":0},{"$f":"'Population 2016'!Q213*'Prevalence Rates'!Q213","v":0},{"$f":"'Population 2016'!R213*'Prevalence Rates'!R213","v":0},{"$f":"'Population 2016'!S213*'Prevalence Rates'!S213","v":0},{"$f":"'Population 2016'!T213*'Prevalence Rates'!T213","v":0},{"$f":"'Population 2016'!U213*'Prevalence Rates'!U213","v":0},{"$f":"'Population 2016'!V213*'Prevalence Rates'!V213","v":0},{"$f":"'Population 2016'!W213*'Prevalence Rates'!W213","v":0},{"$f":"'Population 2016'!X213*'Prevalence Rates'!X213","v":0},{"$f":"'Population 2016'!Y213*'Prevalence Rates'!Y213","v":0},{"$f":"'Population 2016'!Z213*'Prevalence Rates'!Z213","v":0},{"$f":"'Population 2016'!AA213*'Prevalence Rates'!AA213","v":0},{"$f":"'Population 2016'!AB213*'Prevalence Rates'!AB213","v":0},{"$f":"'Population 2016'!AC213*'Prevalence Rates'!AC213","v":0},{"$f":"'Population 2016'!AD213*'Prevalence Rates'!AD213","v":0},{"$f":"'Population 2016'!AE213*'Prevalence Rates'!AE213","v":0},{"$f":"'Population 2016'!AF213*'Prevalence Rates'!AF213","v":0},{"$f":"'Population 2016'!AG213*'Prevalence Rates'!AG213","v":0},{"$f":"'Population 2016'!AH213*'Prevalence Rates'!AH213","v":0},{"$f":"'Population 2016'!AI213*'Prevalence Rates'!AI213","v":0},{"$f":"'Population 2016'!AJ213*'Prevalence Rates'!AJ213","v":0},{"$f":"'Population 2016'!AK213*'Prevalence Rates'!AK213","v":0},{"$f":"'Population 2016'!AL213*'Prevalence Rates'!AL213","v":0},{"$f":"'Population 2016'!AM213*'Prevalence Rates'!AM213","v":0},{"$f":"'Population 2016'!AN213*'Prevalence Rates'!AN213","v":0},{"$f":"'Population 2016'!AO213*'Prevalence Rates'!AO213","v":0},{"$f":"'Population 2016'!AP213*'Prevalence Rates'!AP213","v":0},{"$f":"'Population 2016'!AQ213*'Prevalence Rates'!AQ213","v":0},{"$f":"'Population 2016'!AR213*'Prevalence Rates'!AR213","v":0},{"$f":"'Population 2016'!AS213*'Prevalence Rates'!AS213","v":0},{"$f":"'Population 2016'!AT213*'Prevalence Rates'!AT213","v":0},{"$f":"'Population 2016'!AU213*'Prevalence Rates'!AU213","v":0},{"$f":"'Population 2016'!AV213*'Prevalence Rates'!AV213","v":0},{"$f":"'Population 2016'!AW213*'Prevalence Rates'!AW213","v":0},{"$f":"'Population 2016'!AX213*'Prevalence Rates'!AX213","v":0},{"$f":"'Population 2016'!AY213*'Prevalence Rates'!AY213","v":0},{"$f":"'Population 2016'!AZ213*'Prevalence Rates'!AZ213","v":0},{"$f":"'Population 2016'!BA213*'Prevalence Rates'!BA213","v":0},{"$f":"'Population 2016'!BB213*'Prevalence Rates'!BB213","v":0},{"$f":"'Population 2016'!BC213*'Prevalence Rates'!BC213","v":0},211]
[null,"Female 10-15",{"$f":"'Population 2016'!C214*'Prevalence Rates'!C214","v":0},{"$f":"'Population 2016'!D214*'Prevalence Rates'!D214","v":0},{"$f":"'Population 2016'!E214*'Prevalence Rates'!E214","v":0},{"$f":"'Population 2016'!F214*'Prevalence Rates'!F214","v":0},{"$f":"'Population 2016'!G214*'Prevalence Rates'!G214","v":0},{"$f":"'Population 2016'!H214*'Prevalence Rates'!H214","v":0},{"$f":"'Population 2016'!I214*'Prevalence Rates'!I214","v":0},{"$f":"'Population 2016'!J214*'Prevalence Rates'!J214","v":0},{"$f":"'Population 2016'!K214*'Prevalence Rates'!K214","v":0},{"$f":"'Population 2016'!L214*'Prevalence Rates'!L214","v":0},{"$f":"'Population 2016'!M214*'Prevalence Rates'!M214","v":0},{"$f":"'Population 2016'!N214*'Prevalence Rates'!N214","v":0},{"$f":"'Population 2016'!O214*'Prevalence Rates'!O214","v":0},{"$f":"'Population 2016'!P214*'Prevalence Rates'!P214","v":0},{"$f":"'Population 2016'!Q214*'Prevalence Rates'!Q214","v":0},{"$f":"'Population 2016'!R214*'Prevalence Rates'!R214","v":0},{"$f":"'Population 2016'!S214*'Prevalence Rates'!S214","v":0},{"$f":"'Population 2016'!T214*'Prevalence Rates'!T214","v":0},{"$f":"'Population 2016'!U214*'Prevalence Rates'!U214","v":0},{"$f":"'Population 2016'!V214*'Prevalence Rates'!V214","v":0},{"$f":"'Population 2016'!W214*'Prevalence Rates'!W214","v":0},{"$f":"'Population 2016'!X214*'Prevalence Rates'!X214","v":0},{"$f":"'Population 2016'!Y214*'Prevalence Rates'!Y214","v":0},{"$f":"'Population 2016'!Z214*'Prevalence Rates'!Z214","v":0},{"$f":"'Population 2016'!AA214*'Prevalence Rates'!AA214","v":0},{"$f":"'Population 2016'!AB214*'Prevalence Rates'!AB214","v":0},{"$f":"'Population 2016'!AC214*'Prevalence Rates'!AC214","v":0},{"$f":"'Population 2016'!AD214*'Prevalence Rates'!AD214","v":0},{"$f":"'Population 2016'!AE214*'Prevalence Rates'!AE214","v":0},{"$f":"'Population 2016'!AF214*'Prevalence Rates'!AF214","v":0},{"$f":"'Population 2016'!AG214*'Prevalence Rates'!AG214","v":0},{"$f":"'Population 2016'!AH214*'Prevalence Rates'!AH214","v":0},{"$f":"'Population 2016'!AI214*'Prevalence Rates'!AI214","v":0},{"$f":"'Population 2016'!AJ214*'Prevalence Rates'!AJ214","v":0},{"$f":"'Population 2016'!AK214*'Prevalence Rates'!AK214","v":0},{"$f":"'Population 2016'!AL214*'Prevalence Rates'!AL214","v":0},{"$f":"'Population 2016'!AM214*'Prevalence Rates'!AM214","v":0},{"$f":"'Population 2016'!AN214*'Prevalence Rates'!AN214","v":0},{"$f":"'Population 2016'!AO214*'Prevalence Rates'!AO214","v":0},{"$f":"'Population 2016'!AP214*'Prevalence Rates'!AP214","v":0},{"$f":"'Population 2016'!AQ214*'Prevalence Rates'!AQ214","v":0},{"$f":"'Population 2016'!AR214*'Prevalence Rates'!AR214","v":0},{"$f":"'Population 2016'!AS214*'Prevalence Rates'!AS214","v":0},{"$f":"'Population 2016'!AT214*'Prevalence Rates'!AT214","v":0},{"$f":"'Population 2016'!AU214*'Prevalence Rates'!AU214","v":0},{"$f":"'Population 2016'!AV214*'Prevalence Rates'!AV214","v":0},{"$f":"'Population 2016'!AW214*'Prevalence Rates'!AW214","v":0},{"$f":"'Population 2016'!AX214*'Prevalence Rates'!AX214","v":0},{"$f":"'Population 2016'!AY214*'Prevalence Rates'!AY214","v":0},{"$f":"'Population 2016'!AZ214*'Prevalence Rates'!AZ214","v":0},{"$f":"'Population 2016'!BA214*'Prevalence Rates'!BA214","v":0},{"$f":"'Population 2016'!BB214*'Prevalence Rates'!BB214","v":0},{"$f":"'Population 2016'!BC214*'Prevalence Rates'!BC214","v":0},212]
[null,"Female 16-19",{"$f":"'Population 2016'!C215*'Prevalence Rates'!C215","v":416.51700428610053},{"$f":"'Population 2016'!D215*'Prevalence Rates'!D215","v":678.78762217500764},{"$f":"'Population 2016'!E215*'Prevalence Rates'!E215","v":275.59991547149235},{"$f":"'Population 2016'!F215*'Prevalence Rates'!F215","v":65.88406981245204},{"$f":"'Population 2016'!G215*'Prevalence Rates'!G215","v":24.829421026253769},{"$f":"'Population 2016'!H215*'Prevalence Rates'!H215","v":180.92426683896883},{"$f":"'Population 2016'!I215*'Prevalence Rates'!I215","v":35.094273320958997},{"$f":"'Population 2016'!J215*'Prevalence Rates'!J215","v":257.65030572075182},{"$f":"'Population 2016'!K215*'Prevalence Rates'!K215","v":27.835845061389929},{"$f":"'Population 2016'!L215*'Prevalence Rates'!L215","v":40.590837657222629},{"$f":"'Population 2016'!M215*'Prevalence Rates'!M215","v":41.800488598717692},{"$f":"'Population 2016'!N215*'Prevalence Rates'!N215","v":105.4357310536306},{"$f":"'Population 2016'!O215*'Prevalence Rates'!O215","v":40.204950496557821},{"$f":"'Population 2016'!P215*'Prevalence Rates'!P215","v":213.89391923604171},{"$f":"'Population 2016'!Q215*'Prevalence Rates'!Q215","v":72.08379762410803},{"$f":"'Population 2016'!R215*'Prevalence Rates'!R215","v":211.95090104464694},{"$f":"'Population 2016'!S215*'Prevalence Rates'!S215","v":1619.8334968702452},{"$f":"'Population 2016'!T215*'Prevalence Rates'!T215","v":1041.3755868479877},{"$f":"'Population 2016'!U215*'Prevalence Rates'!U215","v":0},{"$f":"'Population 2016'!V215*'Prevalence Rates'!V215","v":122.26091784624523},{"$f":"'Population 2016'!W215*'Prevalence Rates'!W215","v":353.22888681833274},{"$f":"'Population 2016'!X215*'Prevalence Rates'!X215","v":366.087974911559},{"$f":"'Population 2016'!Y215*'Prevalence Rates'!Y215","v":362.40701554559018},{"$f":"'Population 2016'!Z215*'Prevalence Rates'!Z215","v":260.01224291480821},{"$f":"'Population 2016'!AA215*'Prevalence Rates'!AA215","v":1143.644650885908},{"$f":"'Population 2016'!AB215*'Prevalence Rates'!AB215","v":726.06561506847333},{"$f":"'Population 2016'!AC215*'Prevalence Rates'!AC215","v":830.97462331211602},{"$f":"'Population 2016'!AD215*'Prevalence Rates'!AD215","v":106.54415738877549},{"$f":"'Population 2016'!AE215*'Prevalence Rates'!AE215","v":59.557322907869413},{"$f":"'Population 2016'!AF215*'Prevalence Rates'!AF215","v":34.990894516393858},{"$f":"'Population 2016'!AG215*'Prevalence Rates'!AG215","v":76.956643708342483},{"$f":"'Population 2016'!AH215*'Prevalence Rates'!AH215","v":303.62866660857338},{"$f":"'Population 2016'!AI215*'Prevalence Rates'!AI215","v":1259.7355881911628},{"$f":"'Population 2016'!AJ215*'Prevalence Rates'!AJ215","v":57.142058060567436},{"$f":"'Population 2016'!AK215*'Prevalence Rates'!AK215","v":54.415949529776448},{"$f":"'Population 2016'!AL215*'Prevalence Rates'!AL215","v":51.14765143118855},{"$f":"'Population 2016'!AM215*'Prevalence Rates'!AM215","v":127.62131194308849},{"$f":"'Population 2016'!AN215*'Prevalence Rates'!AN215","v":4.8748678574477191},{"$f":"'Population 2016'!AO215*'Prevalence Rates'!AO215","v":4.8748678574477191},{"$f":"'Population 2016'!AP215*'Prevalence Rates'!AP215","v":77.509173000390902},{"$f":"'Population 2016'!AQ215*'Prevalence Rates'!AQ215","v":142.67074513834987},{"$f":"'Population 2016'!AR215*'Prevalence Rates'!AR215","v":4352.9678766149118},{"$f":"'Population 2016'!AS215*'Prevalence Rates'!AS215","v":35.094273320958997},{"$f":"'Population 2016'!AT215*'Prevalence Rates'!AT215","v":0},{"$f":"'Population 2016'!AU215*'Prevalence Rates'!AU215","v":0},{"$f":"'Population 2016'!AV215*'Prevalence Rates'!AV215","v":90.627873819760637},{"$f":"'Population 2016'!AW215*'Prevalence Rates'!AW215","v":182.83055868197823},{"$f":"'Population 2016'!AX215*'Prevalence Rates'!AX215","v":182.17817701391658},{"$f":"'Population 2016'!AY215*'Prevalence Rates'!AY215","v":586.09657149980751},{"$f":"'Population 2016'!AZ215*'Prevalence Rates'!AZ215","v":235.79266581691439},{"$f":"'Population 2016'!BA215*'Prevalence Rates'!BA215","v":16.892079075938543},{"$f":"'Population 2016'!BB215*'Prevalence Rates'!BB215","v":136.05588284028514},{"$f":"'Population 2016'!BC215*'Prevalence Rates'!BC215","v":0},213]
[null,"Female 20-24",{"$f":"'Population 2016'!C216*'Prevalence Rates'!C216","v":734.11632943850498},{"$f":"'Population 2016'!D216*'Prevalence Rates'!D216","v":979.58438600109071},{"$f":"'Population 2016'!E216*'Prevalence Rates'!E216","v":302.05750735675559},{"$f":"'Population 2016'!F216*'Prevalence Rates'!F216","v":60.860230066404498},{"$f":"'Population 2016'!G216*'Prevalence Rates'!G216","v":34.094130364408159},{"$f":"'Population 2016'!H216*'Prevalence Rates'!H216","v":176.32449734306283},{"$f":"'Population 2016'!I216*'Prevalence Rates'!I216","v":33.924464210260368},{"$f":"'Population 2016'!J216*'Prevalence Rates'!J216","v":268.48119973649887},{"$f":"'Population 2016'!K216*'Prevalence Rates'!K216","v":24.932720116336991},{"$f":"'Population 2016'!L216*'Prevalence Rates'!L216","v":48.270185322102584},{"$f":"'Population 2016'!M216*'Prevalence Rates'!M216","v":49.708689144421037},{"$f":"'Population 2016'!N216*'Prevalence Rates'!N216","v":129.45906217977429},{"$f":"'Population 2016'!O216*'Prevalence Rates'!O216","v":40.204950496557821},{"$f":"'Population 2016'!P216*'Prevalence Rates'!P216","v":225.06627383656166},{"$f":"'Population 2016'!Q216*'Prevalence Rates'!Q216","v":72.285713023615344},{"$f":"'Population 2016'!R216*'Prevalence Rates'!R216","v":222.47558291470196},{"$f":"'Population 2016'!S216*'Prevalence Rates'!S216","v":3046.2850743451982},{"$f":"'Population 2016'!T216*'Prevalence Rates'!T216","v":2323.2598831394871},{"$f":"'Population 2016'!U216*'Prevalence Rates'!U216","v":0},{"$f":"'Population 2016'!V216*'Prevalence Rates'!V216","v":144.65435036165795},{"$f":"'Population 2016'!W216*'Prevalence Rates'!W216","v":640.51556630635002},{"$f":"'Population 2016'!X216*'Prevalence Rates'!X216","v":663.83315555111687},{"$f":"'Population 2016'!Y216*'Prevalence Rates'!Y216","v":395.73179858426516},{"$f":"'Population 2016'!Z216*'Prevalence Rates'!Z216","v":674.28678296833482},{"$f":"'Population 2016'!AA216*'Prevalence Rates'!AA216","v":1629.6812664591234},{"$f":"'Population 2016'!AB216*'Prevalence Rates'!AB216","v":1020.0810974466285},{"$f":"'Population 2016'!AC216*'Prevalence Rates'!AC216","v":1266.8139755972124},{"$f":"'Population 2016'!AD216*'Prevalence Rates'!AD216","v":125.25887025184737},{"$f":"'Population 2016'!AE216*'Prevalence Rates'!AE216","v":66.444904468643429},{"$f":"'Population 2016'!AF216*'Prevalence Rates'!AF216","v":43.962918751366644},{"$f":"'Population 2016'!AG216*'Prevalence Rates'!AG216","v":85.856391620191616},{"$f":"'Population 2016'!AH216*'Prevalence Rates'!AH216","v":344.70582556351002},{"$f":"'Population 2016'!AI216*'Prevalence Rates'!AI216","v":2441.1144173082344},{"$f":"'Population 2016'!AJ216*'Prevalence Rates'!AJ216","v":70.468474428049589},{"$f":"'Population 2016'!AK216*'Prevalence Rates'!AK216","v":56.901293378492198},{"$f":"'Population 2016'!AL216*'Prevalence Rates'!AL216","v":49.749082837366984},{"$f":"'Population 2016'!AM216*'Prevalence Rates'!AM216","v":139.29695928731005},{"$f":"'Population 2016'!AN216*'Prevalence Rates'!AN216","v":8.2497763741422947},{"$f":"'Population 2016'!AO216*'Prevalence Rates'!AO216","v":8.2497763741422947},{"$f":"'Population 2016'!AP216*'Prevalence Rates'!AP216","v":88.428123958779295},{"$f":"'Population 2016'!AQ216*'Prevalence Rates'!AQ216","v":168.42014432775795},{"$f":"'Population 2016'!AR216*'Prevalence Rates'!AR216","v":6548.574002444303},{"$f":"'Population 2016'!AS216*'Prevalence Rates'!AS216","v":33.924464210260368},{"$f":"'Population 2016'!AT216*'Prevalence Rates'!AT216","v":0},{"$f":"'Population 2016'!AU216*'Prevalence Rates'!AU216","v":0},{"$f":"'Population 2016'!AV216*'Prevalence Rates'!AV216","v":86.913616695999963},{"$f":"'Population 2016'!AW216*'Prevalence Rates'!AW216","v":213.95065377678304},{"$f":"'Population 2016'!AX216*'Prevalence Rates'!AX216","v":193.88236157067661},{"$f":"'Population 2016'!AY216*'Prevalence Rates'!AY216","v":894.57637499405507},{"$f":"'Population 2016'!AZ216*'Prevalence Rates'!AZ216","v":262.40249644202072},{"$f":"'Population 2016'!BA216*'Prevalence Rates'!BA216","v":19.54181697020341},{"$f":"'Population 2016'!BB216*'Prevalence Rates'!BB216","v":127.03006260272322},{"$f":"'Population 2016'!BC216*'Prevalence Rates'!BC216","v":0},214]
[null,"Female 25-29",{"$f":"'Population 2016'!C217*'Prevalence Rates'!C217","v":698.53110700607692},{"$f":"'Population 2016'!D217*'Prevalence Rates'!D217","v":900.03979615330695},{"$f":"'Population 2016'!E217*'Prevalence Rates'!E217","v":260.24967703092886},{"$f":"'Population 2016'!F217*'Prevalence Rates'!F217","v":49.047503580586771},{"$f":"'Population 2016'!G217*'Prevalence Rates'!G217","v":22.995230726433459},{"$f":"'Population 2016'!H217*'Prevalence Rates'!H217","v":125.83898376745843},{"$f":"'Population 2016'!I217*'Prevalence Rates'!I217","v":22.443840189026556},{"$f":"'Population 2016'!J217*'Prevalence Rates'!J217","v":141.10500068622358},{"$f":"'Population 2016'!K217*'Prevalence Rates'!K217","v":15.386710854581782},{"$f":"'Population 2016'!L217*'Prevalence Rates'!L217","v":47.157919094280878},{"$f":"'Population 2016'!M217*'Prevalence Rates'!M217","v":48.563276177893421},{"$f":"'Population 2016'!N217*'Prevalence Rates'!N217","v":90.613877481397481},{"$f":"'Population 2016'!O217*'Prevalence Rates'!O217","v":36.646281390289218},{"$f":"'Population 2016'!P217*'Prevalence Rates'!P217","v":145.47679657360356},{"$f":"'Population 2016'!Q217*'Prevalence Rates'!Q217","v":62.473228140254129},{"$f":"'Population 2016'!R217*'Prevalence Rates'!R217","v":154.97338972741497},{"$f":"'Population 2016'!S217*'Prevalence Rates'!S217","v":1988.100648572416},{"$f":"'Population 2016'!T217*'Prevalence Rates'!T217","v":1695.6140844310346},{"$f":"'Population 2016'!U217*'Prevalence Rates'!U217","v":0},{"$f":"'Population 2016'!V217*'Prevalence Rates'!V217","v":118.19873527582493},{"$f":"'Population 2016'!W217*'Prevalence Rates'!W217","v":252.42736373842888},{"$f":"'Population 2016'!X217*'Prevalence Rates'!X217","v":261.61683217825879},{"$f":"'Population 2016'!Y217*'Prevalence Rates'!Y217","v":252.2009862485383},{"$f":"'Population 2016'!Z217*'Prevalence Rates'!Z217","v":508.32884569122837},{"$f":"'Population 2016'!AA217*'Prevalence Rates'!AA217","v":1157.3106748125551},{"$f":"'Population 2016'!AB217*'Prevalence Rates'!AB217","v":936.64878700419797},{"$f":"'Population 2016'!AC217*'Prevalence Rates'!AC217","v":899.97914872368767},{"$f":"'Population 2016'!AD217*'Prevalence Rates'!AD217","v":118.12618523852804},{"$f":"'Population 2016'!AE217*'Prevalence Rates'!AE217","v":69.335657540091304},{"$f":"'Population 2016'!AF217*'Prevalence Rates'!AF217","v":26.081926419721597},{"$f":"'Population 2016'!AG217*'Prevalence Rates'!AG217","v":89.591661160636619},{"$f":"'Population 2016'!AH217*'Prevalence Rates'!AH217","v":244.41145695816266},{"$f":"'Population 2016'!AI217*'Prevalence Rates'!AI217","v":1816.678480090053},{"$f":"'Population 2016'!AJ217*'Prevalence Rates'!AJ217","v":59.898781925683217},{"$f":"'Population 2016'!AK217*'Prevalence Rates'!AK217","v":51.813379418680583},{"$f":"'Population 2016'!AL217*'Prevalence Rates'!AL217","v":30.908664521593945},{"$f":"'Population 2016'!AM217*'Prevalence Rates'!AM217","v":101.31154371292635},{"$f":"'Population 2016'!AN217*'Prevalence Rates'!AN217","v":8.6060998581865213},{"$f":"'Population 2016'!AO217*'Prevalence Rates'!AO217","v":8.6060998581865213},{"$f":"'Population 2016'!AP217*'Prevalence Rates'!AP217","v":69.543624279413166},{"$f":"'Population 2016'!AQ217*'Prevalence Rates'!AQ217","v":118.67726632049458},{"$f":"'Population 2016'!AR217*'Prevalence Rates'!AR217","v":4740.1690583177415},{"$f":"'Population 2016'!AS217*'Prevalence Rates'!AS217","v":22.443840189026556},{"$f":"'Population 2016'!AT217*'Prevalence Rates'!AT217","v":0},{"$f":"'Population 2016'!AU217*'Prevalence Rates'!AU217","v":0},{"$f":"'Population 2016'!AV217*'Prevalence Rates'!AV217","v":54.618678657452882},{"$f":"'Population 2016'!AW217*'Prevalence Rates'!AW217","v":148.79439212425268},{"$f":"'Population 2016'!AX217*'Prevalence Rates'!AX217","v":99.630713214700066},{"$f":"'Population 2016'!AY217*'Prevalence Rates'!AY217","v":448.53456962673943},{"$f":"'Population 2016'!AZ217*'Prevalence Rates'!AZ217","v":197.66120974520166},{"$f":"'Population 2016'!BA217*'Prevalence Rates'!BA217","v":9.5722706174956045},{"$f":"'Population 2016'!BB217*'Prevalence Rates'!BB217","v":105.84547930465452},{"$f":"'Population 2016'!BC217*'Prevalence Rates'!BC217","v":0},215]
[null,"Female 30-34",{"$f":"'Population 2016'!C218*'Prevalence Rates'!C218","v":597.59935540932713},{"$f":"'Population 2016'!D218*'Prevalence Rates'!D218","v":943.98014006773769},{"$f":"'Population 2016'!E218*'Prevalence Rates'!E218","v":370.07179230226177},{"$f":"'Population 2016'!F218*'Prevalence Rates'!F218","v":60.028287964300226},{"$f":"'Population 2016'!G218*'Prevalence Rates'!G218","v":17.640176995620187},{"$f":"'Population 2016'!H218*'Prevalence Rates'!H218","v":147.84994525497706},{"$f":"'Population 2016'!I218*'Prevalence Rates'!I218","v":39.631844384420312},{"$f":"'Population 2016'!J218*'Prevalence Rates'!J218","v":120.21367059717166},{"$f":"'Population 2016'!K218*'Prevalence Rates'!K218","v":20.467228589585201},{"$f":"'Population 2016'!L218*'Prevalence Rates'!L218","v":47.157919094280878},{"$f":"'Population 2016'!M218*'Prevalence Rates'!M218","v":48.563276177893421},{"$f":"'Population 2016'!N218*'Prevalence Rates'!N218","v":87.777762380258267},{"$f":"'Population 2016'!O218*'Prevalence Rates'!O218","v":42.342037735407487},{"$f":"'Population 2016'!P218*'Prevalence Rates'!P218","v":155.24865329709067},{"$f":"'Population 2016'!Q218*'Prevalence Rates'!Q218","v":72.427753503261656},{"$f":"'Population 2016'!R218*'Prevalence Rates'!R218","v":153.32180830936082},{"$f":"'Population 2016'!S218*'Prevalence Rates'!S218","v":1807.4956918929208},{"$f":"'Population 2016'!T218*'Prevalence Rates'!T218","v":1384.5433532475961},{"$f":"'Population 2016'!U218*'Prevalence Rates'!U218","v":0},{"$f":"'Population 2016'!V218*'Prevalence Rates'!V218","v":158.87752079282961},{"$f":"'Population 2016'!W218*'Prevalence Rates'!W218","v":266.2768981878458},{"$f":"'Population 2016'!X218*'Prevalence Rates'!X218","v":275.97055071391895},{"$f":"'Population 2016'!Y218*'Prevalence Rates'!Y218","v":275.85991731333417},{"$f":"'Population 2016'!Z218*'Prevalence Rates'!Z218","v":380.17123767336398},{"$f":"'Population 2016'!AA218*'Prevalence Rates'!AA218","v":1092.1672946179251},{"$f":"'Population 2016'!AB218*'Prevalence Rates'!AB218","v":985.40584714962199},{"$f":"'Population 2016'!AC218*'Prevalence Rates'!AC218","v":795.36221379379538},{"$f":"'Population 2016'!AD218*'Prevalence Rates'!AD218","v":121.27621684488878},{"$f":"'Population 2016'!AE218*'Prevalence Rates'!AE218","v":75.534540830099459},{"$f":"'Population 2016'!AF218*'Prevalence Rates'!AF218","v":27.30213350368518},{"$f":"'Population 2016'!AG218*'Prevalence Rates'!AG218","v":97.601511661753136},{"$f":"'Population 2016'!AH218*'Prevalence Rates'!AH218","v":288.05635998640599},{"$f":"'Population 2016'!AI218*'Prevalence Rates'!AI218","v":1577.9998234138241},{"$f":"'Population 2016'!AJ218*'Prevalence Rates'!AJ218","v":73.1142724938139},{"$f":"'Population 2016'!AK218*'Prevalence Rates'!AK218","v":56.70562983589506},{"$f":"'Population 2016'!AL218*'Prevalence Rates'!AL218","v":44.664718511973668},{"$f":"'Population 2016'!AM218*'Prevalence Rates'!AM218","v":119.0927534258073},{"$f":"'Population 2016'!AN218*'Prevalence Rates'!AN218","v":6.2155165642458208},{"$f":"'Population 2016'!AO218*'Prevalence Rates'!AO218","v":6.2155165642458208},{"$f":"'Population 2016'!AP218*'Prevalence Rates'!AP218","v":87.190972545805607},{"$f":"'Population 2016'!AQ218*'Prevalence Rates'!AQ218","v":121.59555975460511},{"$f":"'Population 2016'!AR218*'Prevalence Rates'!AR218","v":4632.1018140238211},{"$f":"'Population 2016'!AS218*'Prevalence Rates'!AS218","v":39.631844384420312},{"$f":"'Population 2016'!AT218*'Prevalence Rates'!AT218","v":0},{"$f":"'Population 2016'!AU218*'Prevalence Rates'!AU218","v":0},{"$f":"'Population 2016'!AV218*'Prevalence Rates'!AV218","v":57.460112807262568},{"$f":"'Population 2016'!AW218*'Prevalence Rates'!AW218","v":175.71909165149842},{"$f":"'Population 2016'!AX218*'Prevalence Rates'!AX218","v":77.570656598420598},{"$f":"'Population 2016'!AY218*'Prevalence Rates'!AY218","v":488.33321474911202},{"$f":"'Population 2016'!AZ218*'Prevalence Rates'!AZ218","v":223.42125297327945},{"$f":"'Population 2016'!BA218*'Prevalence Rates'!BA218","v":11.543032215215288},{"$f":"'Population 2016'!BB218*'Prevalence Rates'!BB218","v":124.74138366374049},{"$f":"'Population 2016'!BC218*'Prevalence Rates'!BC218","v":0},216]
[null,"Female 35-39",{"$f":"'Population 2016'!C219*'Prevalence Rates'!C219","v":667.07706529625796},{"$f":"'Population 2016'!D219*'Prevalence Rates'!D219","v":1160.4377754382222},{"$f":"'Population 2016'!E219*'Prevalence Rates'!E219","v":503.51500997780846},{"$f":"'Population 2016'!F219*'Prevalence Rates'!F219","v":87.749500981541871},{"$f":"'Population 2016'!G219*'Prevalence Rates'!G219","v":33.096354038372262},{"$f":"'Population 2016'!H219*'Prevalence Rates'!H219","v":223.32865931110931},{"$f":"'Population 2016'!I219*'Prevalence Rates'!I219","v":55.256888458047058},{"$f":"'Population 2016'!J219*'Prevalence Rates'!J219","v":183.358216840018},{"$f":"'Population 2016'!K219*'Prevalence Rates'!K219","v":35.223103063015913},{"$f":"'Population 2016'!L219*'Prevalence Rates'!L219","v":57.985121453463776},{"$f":"'Population 2016'!M219*'Prevalence Rates'!M219","v":59.713140898423596},{"$f":"'Population 2016'!N219*'Prevalence Rates'!N219","v":101.45555749694256},{"$f":"'Population 2016'!O219*'Prevalence Rates'!O219","v":54.305379669242249},{"$f":"'Population 2016'!P219*'Prevalence Rates'!P219","v":278.53720634492072},{"$f":"'Population 2016'!Q219*'Prevalence Rates'!Q219","v":118.07044759304662},{"$f":"'Population 2016'!R219*'Prevalence Rates'!R219","v":295.92426310687193},{"$f":"'Population 2016'!S219*'Prevalence Rates'!S219","v":2340.9960033012972},{"$f":"'Population 2016'!T219*'Prevalence Rates'!T219","v":1674.8222505536139},{"$f":"'Population 2016'!U219*'Prevalence Rates'!U219","v":0},{"$f":"'Population 2016'!V219*'Prevalence Rates'!V219","v":207.17125902095614},{"$f":"'Population 2016'!W219*'Prevalence Rates'!W219","v":374.73073987661871},{"$f":"'Population 2016'!X219*'Prevalence Rates'!X219","v":388.37259017577497},{"$f":"'Population 2016'!Y219*'Prevalence Rates'!Y219","v":383.89674813431787},{"$f":"'Population 2016'!Z219*'Prevalence Rates'!Z219","v":374.95825573391602},{"$f":"'Population 2016'!AA219*'Prevalence Rates'!AA219","v":1591.4199226602123},{"$f":"'Population 2016'!AB219*'Prevalence Rates'!AB219","v":1194.5582705046581},{"$f":"'Population 2016'!AC219*'Prevalence Rates'!AC219","v":1137.32044399653},{"$f":"'Population 2016'!AD219*'Prevalence Rates'!AD219","v":170.60382498351416},{"$f":"'Population 2016'!AE219*'Prevalence Rates'!AE219","v":100.22154159553057},{"$f":"'Population 2016'!AF219*'Prevalence Rates'!AF219","v":44.260620293830719},{"$f":"'Population 2016'!AG219*'Prevalence Rates'!AG219","v":129.50067417232717},{"$f":"'Population 2016'!AH219*'Prevalence Rates'!AH219","v":442.73141898516496},{"$f":"'Population 2016'!AI219*'Prevalence Rates'!AI219","v":1998.5027295598727},{"$f":"'Population 2016'!AJ219*'Prevalence Rates'!AJ219","v":102.39927909433317},{"$f":"'Population 2016'!AK219*'Prevalence Rates'!AK219","v":56.602598337780535},{"$f":"'Population 2016'!AL219*'Prevalence Rates'!AL219","v":67.124627962351695},{"$f":"'Population 2016'!AM219*'Prevalence Rates'!AM219","v":178.61474397561406},{"$f":"'Population 2016'!AN219*'Prevalence Rates'!AN219","v":11.761171666684669},{"$f":"'Population 2016'!AO219*'Prevalence Rates'!AO219","v":11.761171666684669},{"$f":"'Population 2016'!AP219*'Prevalence Rates'!AP219","v":112.32809179621556},{"$f":"'Population 2016'!AQ219*'Prevalence Rates'!AQ219","v":189.40406052423356},{"$f":"'Population 2016'!AR219*'Prevalence Rates'!AR219","v":6167.9972635693393},{"$f":"'Population 2016'!AS219*'Prevalence Rates'!AS219","v":55.256888458047058},{"$f":"'Population 2016'!AT219*'Prevalence Rates'!AT219","v":0},{"$f":"'Population 2016'!AU219*'Prevalence Rates'!AU219","v":0},{"$f":"'Population 2016'!AV219*'Prevalence Rates'!AV219","v":101.29042933193156},{"$f":"'Population 2016'!AW219*'Prevalence Rates'!AW219","v":275.12947364715865},{"$f":"'Population 2016'!AX219*'Prevalence Rates'!AX219","v":114.33795121877876},{"$f":"'Population 2016'!AY219*'Prevalence Rates'!AY219","v":660.58441543568483},{"$f":"'Population 2016'!AZ219*'Prevalence Rates'!AZ219","v":288.25577309662873},{"$f":"'Population 2016'!BA219*'Prevalence Rates'!BA219","v":22.009086868772997},{"$f":"'Population 2016'!BB219*'Prevalence Rates'!BB219","v":186.23584766485763},{"$f":"'Population 2016'!BC219*'Prevalence Rates'!BC219","v":0},217]
[null,"Female 40-44",{"$f":"'Population 2016'!C220*'Prevalence Rates'!C220","v":614.71042922576987},{"$f":"'Population 2016'!D220*'Prevalence Rates'!D220","v":1153.9827019893446},{"$f":"'Population 2016'!E220*'Prevalence Rates'!E220","v":535.70746561264036},{"$f":"'Population 2016'!F220*'Prevalence Rates'!F220","v":108.19894990593596},{"$f":"'Population 2016'!G220*'Prevalence Rates'!G220","v":38.218408830025112},{"$f":"'Population 2016'!H220*'Prevalence Rates'!H220","v":284.73045615333643},{"$f":"'Population 2016'!I220*'Prevalence Rates'!I220","v":85.461618483346086},{"$f":"'Population 2016'!J220*'Prevalence Rates'!J220","v":233.18381924219679},{"$f":"'Population 2016'!K220*'Prevalence Rates'!K220","v":45.390596730690611},{"$f":"'Population 2016'!L220*'Prevalence Rates'!L220","v":62.650590995696497},{"$f":"'Population 2016'!M220*'Prevalence Rates'!M220","v":64.517646487951936},{"$f":"'Population 2016'!N220*'Prevalence Rates'!N220","v":119.19254307333111},{"$f":"'Population 2016'!O220*'Prevalence Rates'!O220","v":70.973367488514626},{"$f":"'Population 2016'!P220*'Prevalence Rates'!P220","v":323.46811540303219},{"$f":"'Population 2016'!Q220*'Prevalence Rates'!Q220","v":137.17639274901234},{"$f":"'Population 2016'!R220*'Prevalence Rates'!R220","v":334.14135816779429},{"$f":"'Population 2016'!S220*'Prevalence Rates'!S220","v":2452.5389962470581},{"$f":"'Population 2016'!T220*'Prevalence Rates'!T220","v":1596.2361010442105},{"$f":"'Population 2016'!U220*'Prevalence Rates'!U220","v":0},{"$f":"'Population 2016'!V220*'Prevalence Rates'!V220","v":252.29196881699386},{"$f":"'Population 2016'!W220*'Prevalence Rates'!W220","v":430.45825069124021},{"$f":"'Population 2016'!X220*'Prevalence Rates'!X220","v":446.12882796467125},{"$f":"'Population 2016'!Y220*'Prevalence Rates'!Y220","v":476.49900515675427},{"$f":"'Population 2016'!Z220*'Prevalence Rates'!Z220","v":349.16943953054425},{"$f":"'Population 2016'!AA220*'Prevalence Rates'!AA220","v":1736.5086361553297},{"$f":"'Population 2016'!AB220*'Prevalence Rates'!AB220","v":1211.4985654289667},{"$f":"'Population 2016'!AC220*'Prevalence Rates'!AC220","v":1230.3723798566764},{"$f":"'Population 2016'!AD220*'Prevalence Rates'!AD220","v":197.00210737126343},{"$f":"'Population 2016'!AE220*'Prevalence Rates'!AE220","v":115.72859960744647},{"$f":"'Population 2016'!AF220*'Prevalence Rates'!AF220","v":57.805896332028915},{"$f":"'Population 2016'!AG220*'Prevalence Rates'!AG220","v":149.53802776919153},{"$f":"'Population 2016'!AH220*'Prevalence Rates'!AH220","v":494.41071326867785},{"$f":"'Population 2016'!AI220*'Prevalence Rates'!AI220","v":2008.2256530561833},{"$f":"'Population 2016'!AJ220*'Prevalence Rates'!AJ220","v":106.04872929266369},{"$f":"'Population 2016'!AK220*'Prevalence Rates'!AK220","v":74.682052352305035},{"$f":"'Population 2016'!AL220*'Prevalence Rates'!AL220","v":86.029982040355819},{"$f":"'Population 2016'!AM220*'Prevalence Rates'!AM220","v":192.2349802440248},{"$f":"'Population 2016'!AN220*'Prevalence Rates'!AN220","v":8.5717013841939114},{"$f":"'Population 2016'!AO220*'Prevalence Rates'!AO220","v":8.5717013841939114},{"$f":"'Population 2016'!AP220*'Prevalence Rates'!AP220","v":140.9415067370274},{"$f":"'Population 2016'!AQ220*'Prevalence Rates'!AQ220","v":215.9692981352342},{"$f":"'Population 2016'!AR220*'Prevalence Rates'!AR220","v":6686.6980668247252},{"$f":"'Population 2016'!AS220*'Prevalence Rates'!AS220","v":85.461618483346086},{"$f":"'Population 2016'!AT220*'Prevalence Rates'!AT220","v":0},{"$f":"'Population 2016'!AU220*'Prevalence Rates'!AU220","v":0},{"$f":"'Population 2016'!AV220*'Prevalence Rates'!AV220","v":126.16878039591477},{"$f":"'Population 2016'!AW220*'Prevalence Rates'!AW220","v":315.50280370991277},{"$f":"'Population 2016'!AX220*'Prevalence Rates'!AX220","v":144.81604862567721},{"$f":"'Population 2016'!AY220*'Prevalence Rates'!AY220","v":780.63246767139208},{"$f":"'Population 2016'!AZ220*'Prevalence Rates'!AZ220","v":352.53963961599686},{"$f":"'Population 2016'!BA220*'Prevalence Rates'!BA220","v":21.656941478872628},{"$f":"'Population 2016'!BB220*'Prevalence Rates'!BB220","v":233.32792746560884},{"$f":"'Population 2016'!BC220*'Prevalence Rates'!BC220","v":0},218]
[null,"Female 45-49",{"$f":"'Population 2016'!C221*'Prevalence Rates'!C221","v":1009.7418689821189},{"$f":"'Population 2016'!D221*'Prevalence Rates'!D221","v":1904.1749137636896},{"$f":"'Population 2016'!E221*'Prevalence Rates'!E221","v":887.26319620406309},{"$f":"'Population 2016'!F221*'Prevalence Rates'!F221","v":191.88992917774513},{"$f":"'Population 2016'!G221*'Prevalence Rates'!G221","v":80.240303360592989},{"$f":"'Population 2016'!H221*'Prevalence Rates'!H221","v":557.77581861389797},{"$f":"'Population 2016'!I221*'Prevalence Rates'!I221","v":135.14211745636496},{"$f":"'Population 2016'!J221*'Prevalence Rates'!J221","v":467.7257190103843},{"$f":"'Population 2016'!K221*'Prevalence Rates'!K221","v":82.635310390967788},{"$f":"'Population 2016'!L221*'Prevalence Rates'!L221","v":129.05023730729252},{"$f":"'Population 2016'!M221*'Prevalence Rates'!M221","v":132.89607420223896},{"$f":"'Population 2016'!N221*'Prevalence Rates'!N221","v":233.69824268457481},{"$f":"'Population 2016'!O221*'Prevalence Rates'!O221","v":125.46847720242069},{"$f":"'Population 2016'!P221*'Prevalence Rates'!P221","v":601.04503676204195},{"$f":"'Population 2016'!Q221*'Prevalence Rates'!Q221","v":258.67074692583344},{"$f":"'Population 2016'!R221*'Prevalence Rates'!R221","v":604.49779216544732},{"$f":"'Population 2016'!S221*'Prevalence Rates'!S221","v":4150.9770934981416},{"$f":"'Population 2016'!T221*'Prevalence Rates'!T221","v":2625.8622701147165},{"$f":"'Population 2016'!U221*'Prevalence Rates'!U221","v":0},{"$f":"'Population 2016'!V221*'Prevalence Rates'!V221","v":419.16234723492295},{"$f":"'Population 2016'!W221*'Prevalence Rates'!W221","v":728.92210495008521},{"$f":"'Population 2016'!X221*'Prevalence Rates'!X221","v":755.45808179241476},{"$f":"'Population 2016'!Y221*'Prevalence Rates'!Y221","v":864.67068319215593},{"$f":"'Population 2016'!Z221*'Prevalence Rates'!Z221","v":608.26566761076094},{"$f":"'Population 2016'!AA221*'Prevalence Rates'!AA221","v":3215.2331807213104},{"$f":"'Population 2016'!AB221*'Prevalence Rates'!AB221","v":2010.5443776910954},{"$f":"'Population 2016'!AC221*'Prevalence Rates'!AC221","v":2273.7879803232754},{"$f":"'Population 2016'!AD221*'Prevalence Rates'!AD221","v":348.31586231530139},{"$f":"'Population 2016'!AE221*'Prevalence Rates'!AE221","v":195.38535323104651},{"$f":"'Population 2016'!AF221*'Prevalence Rates'!AF221","v":115.96942294760532},{"$f":"'Population 2016'!AG221*'Prevalence Rates'!AG221","v":252.46603239185444},{"$f":"'Population 2016'!AH221*'Prevalence Rates'!AH221","v":920.00976909191309},{"$f":"'Population 2016'!AI221*'Prevalence Rates'!AI221","v":3410.2971651741336},{"$f":"'Population 2016'!AJ221*'Prevalence Rates'!AJ221","v":186.13695233331421},{"$f":"'Population 2016'!AK221*'Prevalence Rates'!AK221","v":132.17229589948008},{"$f":"'Population 2016'!AL221*'Prevalence Rates'!AL221","v":175.98954069910477},{"$f":"'Population 2016'!AM221*'Prevalence Rates'!AM221","v":381.7044421985687},{"$f":"'Population 2016'!AN221*'Prevalence Rates'!AN221","v":23.066282352776675},{"$f":"'Population 2016'!AO221*'Prevalence Rates'!AO221","v":23.066282352776675},{"$f":"'Population 2016'!AP221*'Prevalence Rates'!AP221","v":258.56710486001515},{"$f":"'Population 2016'!AQ221*'Prevalence Rates'!AQ221","v":430.81827008663748},{"$f":"'Population 2016'!AR221*'Prevalence Rates'!AR221","v":11807.605677032654},{"$f":"'Population 2016'!AS221*'Prevalence Rates'!AS221","v":135.14211745636496},{"$f":"'Population 2016'!AT221*'Prevalence Rates'!AT221","v":0},{"$f":"'Population 2016'!AU221*'Prevalence Rates'!AU221","v":0},{"$f":"'Population 2016'!AV221*'Prevalence Rates'!AV221","v":260.15170746448752},{"$f":"'Population 2016'!AW221*'Prevalence Rates'!AW221","v":559.6907123834095},{"$f":"'Population 2016'!AX221*'Prevalence Rates'!AX221","v":298.82931039323961},{"$f":"'Population 2016'!AY221*'Prevalence Rates'!AY221","v":1379.2239667614413},{"$f":"'Population 2016'!AZ221*'Prevalence Rates'!AZ221","v":653.27198938021411},{"$f":"'Population 2016'!BA221*'Prevalence Rates'!BA221","v":49.168657395157872},{"$f":"'Population 2016'!BB221*'Prevalence Rates'!BB221","v":432.64008909866851},{"$f":"'Population 2016'!BC221*'Prevalence Rates'!BC221","v":0},219]
[null,"Female 50-54",{"$f":"'Population 2016'!C222*'Prevalence Rates'!C222","v":1075.7840828564474},{"$f":"'Population 2016'!D222*'Prevalence Rates'!D222","v":1924.0930613972009},{"$f":"'Population 2016'!E222*'Prevalence Rates'!E222","v":856.64297176984678},{"$f":"'Population 2016'!F222*'Prevalence Rates'!F222","v":196.83433226085268},{"$f":"'Population 2016'!G222*'Prevalence Rates'!G222","v":83.887589876983583},{"$f":"'Population 2016'!H222*'Prevalence Rates'!H222","v":574.26317998575166},{"$f":"'Population 2016'!I222*'Prevalence Rates'!I222","v":121.71014229335911},{"$f":"'Population 2016'!J222*'Prevalence Rates'!J222","v":458.84268855437989},{"$f":"'Population 2016'!K222*'Prevalence Rates'!K222","v":87.957584619538594},{"$f":"'Population 2016'!L222*'Prevalence Rates'!L222","v":155.27160026614479},{"$f":"'Population 2016'!M222*'Prevalence Rates'!M222","v":159.89886218755447},{"$f":"'Population 2016'!N222*'Prevalence Rates'!N222","v":248.74906627667269},{"$f":"'Population 2016'!O222*'Prevalence Rates'!O222","v":119.86905755867629},{"$f":"'Population 2016'!P222*'Prevalence Rates'!P222","v":656.02352664703642},{"$f":"'Population 2016'!Q222*'Prevalence Rates'!Q222","v":243.1041334744709},{"$f":"'Population 2016'!R222*'Prevalence Rates'!R222","v":605.29458187392549},{"$f":"'Population 2016'!S222*'Prevalence Rates'!S222","v":4093.9232513226234},{"$f":"'Population 2016'!T222*'Prevalence Rates'!T222","v":2673.6928593331295},{"$f":"'Population 2016'!U222*'Prevalence Rates'!U222","v":0},{"$f":"'Population 2016'!V222*'Prevalence Rates'!V222","v":385.68860501757575},{"$f":"'Population 2016'!W222*'Prevalence Rates'!W222","v":706.7342304306776},{"$f":"'Population 2016'!X222*'Prevalence Rates'!X222","v":732.46247086272513},{"$f":"'Population 2016'!Y222*'Prevalence Rates'!Y222","v":821.4992661793292},{"$f":"'Population 2016'!Z222*'Prevalence Rates'!Z222","v":617.99791829253309},{"$f":"'Population 2016'!AA222*'Prevalence Rates'!AA222","v":3361.4907398544328},{"$f":"'Population 2016'!AB222*'Prevalence Rates'!AB222","v":2019.3480750208867},{"$f":"'Population 2016'!AC222*'Prevalence Rates'!AC222","v":2375.3906233623261},{"$f":"'Population 2016'!AD222*'Prevalence Rates'!AD222","v":366.24835435422176},{"$f":"'Population 2016'!AE222*'Prevalence Rates'!AE222","v":205.79704438961701},{"$f":"'Population 2016'!AF222*'Prevalence Rates'!AF222","v":117.44111613221961},{"$f":"'Population 2016'!AG222*'Prevalence Rates'!AG222","v":265.91943774606892},{"$f":"'Population 2016'!AH222*'Prevalence Rates'!AH222","v":963.80638916464375},{"$f":"'Population 2016'!AI222*'Prevalence Rates'!AI222","v":3394.2735755746949},{"$f":"'Population 2016'!AJ222*'Prevalence Rates'!AJ222","v":175.53840700472693},{"$f":"'Population 2016'!AK222*'Prevalence Rates'!AK222","v":124.01881011347319},{"$f":"'Population 2016'!AL222*'Prevalence Rates'!AL222","v":170.09044994941411},{"$f":"'Population 2016'!AM222*'Prevalence Rates'!AM222","v":375.58653127831286},{"$f":"'Population 2016'!AN222*'Prevalence Rates'!AN222","v":20.605878901813828},{"$f":"'Population 2016'!AO222*'Prevalence Rates'!AO222","v":20.605878901813828},{"$f":"'Population 2016'!AP222*'Prevalence Rates'!AP222","v":285.05446682128502},{"$f":"'Population 2016'!AQ222*'Prevalence Rates'!AQ222","v":465.85940752287814},{"$f":"'Population 2016'!AR222*'Prevalence Rates'!AR222","v":11989.304622834545},{"$f":"'Population 2016'!AS222*'Prevalence Rates'!AS222","v":121.71014229335911},{"$f":"'Population 2016'!AT222*'Prevalence Rates'!AT222","v":0},{"$f":"'Population 2016'!AU222*'Prevalence Rates'!AU222","v":0},{"$f":"'Population 2016'!AV222*'Prevalence Rates'!AV222","v":291.83294584423777},{"$f":"'Population 2016'!AW222*'Prevalence Rates'!AW222","v":614.0797664098103},{"$f":"'Population 2016'!AX222*'Prevalence Rates'!AX222","v":286.30852923151173},{"$f":"'Population 2016'!AY222*'Prevalence Rates'!AY222","v":1402.1904535848637},{"$f":"'Population 2016'!AZ222*'Prevalence Rates'!AZ222","v":697.16294338088926},{"$f":"'Population 2016'!BA222*'Prevalence Rates'!BA222","v":55.688258375731294},{"$f":"'Population 2016'!BB222*'Prevalence Rates'!BB222","v":406.04560960401017},{"$f":"'Population 2016'!BC222*'Prevalence Rates'!BC222","v":0},220]
[null,"Female 55-59",{"$f":"'Population 2016'!C223*'Prevalence Rates'!C223","v":879.72196859558198},{"$f":"'Population 2016'!D223*'Prevalence Rates'!D223","v":1501.186360834432},{"$f":"'Population 2016'!E223*'Prevalence Rates'!E223","v":639.30821508280678},{"$f":"'Population 2016'!F223*'Prevalence Rates'!F223","v":162.06642955002206},{"$f":"'Population 2016'!G223*'Prevalence Rates'!G223","v":80.135286268029233},{"$f":"'Population 2016'!H223*'Prevalence Rates'!H223","v":528.10379361161301},{"$f":"'Population 2016'!I223*'Prevalence Rates'!I223","v":95.071152928613159},{"$f":"'Population 2016'!J223*'Prevalence Rates'!J223","v":353.96766566053452},{"$f":"'Population 2016'!K223*'Prevalence Rates'!K223","v":65.924095056818729},{"$f":"'Population 2016'!L223*'Prevalence Rates'!L223","v":121.68239972179397},{"$f":"'Population 2016'!M223*'Prevalence Rates'!M223","v":125.30866707379712},{"$f":"'Population 2016'!N223*'Prevalence Rates'!N223","v":218.14298949622702},{"$f":"'Population 2016'!O223*'Prevalence Rates'!O223","v":102.7510273781055},{"$f":"'Population 2016'!P223*'Prevalence Rates'!P223","v":523.31305829786027},{"$f":"'Population 2016'!Q223*'Prevalence Rates'!Q223","v":181.09382919640308},{"$f":"'Population 2016'!R223*'Prevalence Rates'!R223","v":478.43079779723547},{"$f":"'Population 2016'!S223*'Prevalence Rates'!S223","v":3284.9232028517458},{"$f":"'Population 2016'!T223*'Prevalence Rates'!T223","v":2211.3589393347111},{"$f":"'Population 2016'!U223*'Prevalence Rates'!U223","v":0},{"$f":"'Population 2016'!V223*'Prevalence Rates'!V223","v":280.43259776481477},{"$f":"'Population 2016'!W223*'Prevalence Rates'!W223","v":578.43483469568559},{"$f":"'Population 2016'!X223*'Prevalence Rates'!X223","v":599.49241173175642},{"$f":"'Population 2016'!Y223*'Prevalence Rates'!Y223","v":615.80364266237598},{"$f":"'Population 2016'!Z223*'Prevalence Rates'!Z223","v":492.06906612653353},{"$f":"'Population 2016'!AA223*'Prevalence Rates'!AA223","v":2649.4889065254561},{"$f":"'Population 2016'!AB223*'Prevalence Rates'!AB223","v":1573.1428991524183},{"$f":"'Population 2016'!AC223*'Prevalence Rates'!AC223","v":1882.1407203504148},{"$f":"'Population 2016'!AD223*'Prevalence Rates'!AD223","v":297.68376476076628},{"$f":"'Population 2016'!AE223*'Prevalence Rates'!AE223","v":158.55897673372584},{"$f":"'Population 2016'!AF223*'Prevalence Rates'!AF223","v":90.624455841252185},{"$f":"'Population 2016'!AG223*'Prevalence Rates'!AG223","v":204.8810470902549},{"$f":"'Population 2016'!AH223*'Prevalence Rates'!AH223","v":749.14559171092458},{"$f":"'Population 2016'!AI223*'Prevalence Rates'!AI223","v":2711.3914936089363},{"$f":"'Population 2016'!AJ223*'Prevalence Rates'!AJ223","v":145.92997886700442},{"$f":"'Population 2016'!AK223*'Prevalence Rates'!AK223","v":94.918008963445857},{"$f":"'Population 2016'!AL223*'Prevalence Rates'!AL223","v":154.83627788597693},{"$f":"'Population 2016'!AM223*'Prevalence Rates'!AM223","v":290.17318943592664},{"$f":"'Population 2016'!AN223*'Prevalence Rates'!AN223","v":14.421522227552892},{"$f":"'Population 2016'!AO223*'Prevalence Rates'!AO223","v":14.421522227552892},{"$f":"'Population 2016'!AP223*'Prevalence Rates'!AP223","v":234.12284294107039},{"$f":"'Population 2016'!AQ223*'Prevalence Rates'!AQ223","v":370.09266103647201},{"$f":"'Population 2016'!AR223*'Prevalence Rates'!AR223","v":9578.9481645236683},{"$f":"'Population 2016'!AS223*'Prevalence Rates'!AS223","v":95.071152928613159},{"$f":"'Population 2016'!AT223*'Prevalence Rates'!AT223","v":0},{"$f":"'Population 2016'!AU223*'Prevalence Rates'!AU223","v":0},{"$f":"'Population 2016'!AV223*'Prevalence Rates'!AV223","v":280.83770963702966},{"$f":"'Population 2016'!AW223*'Prevalence Rates'!AW223","v":479.32348810302278},{"$f":"'Population 2016'!AX223*'Prevalence Rates'!AX223","v":222.78522434974423},{"$f":"'Population 2016'!AY223*'Prevalence Rates'!AY223","v":1162.5824704106226},{"$f":"'Population 2016'!AZ223*'Prevalence Rates'!AZ223","v":585.27463840505061},{"$f":"'Population 2016'!BA223*'Prevalence Rates'!BA223","v":40.858045679036621},{"$f":"'Population 2016'!BB223*'Prevalence Rates'!BB223","v":274.59023003486078},{"$f":"'Population 2016'!BC223*'Prevalence Rates'!BC223","v":0},221]
[null,"Female 60-64",{"$f":"'Population 2016'!C224*'Prevalence Rates'!C224","v":693.45582015390107},{"$f":"'Population 2016'!D224*'Prevalence Rates'!D224","v":1286.4434519308986},{"$f":"'Population 2016'!E224*'Prevalence Rates'!E224","v":591.31210283935286},{"$f":"'Population 2016'!F224*'Prevalence Rates'!F224","v":151.23422603253988},{"$f":"'Population 2016'!G224*'Prevalence Rates'!G224","v":58.89136809630336},{"$f":"'Population 2016'!H224*'Prevalence Rates'!H224","v":492.74853027525506},{"$f":"'Population 2016'!I224*'Prevalence Rates'!I224","v":88.037827839506576},{"$f":"'Population 2016'!J224*'Prevalence Rates'!J224","v":334.31958857433921},{"$f":"'Population 2016'!K224*'Prevalence Rates'!K224","v":76.580997641191672},{"$f":"'Population 2016'!L224*'Prevalence Rates'!L224","v":117.13352496583906},{"$f":"'Population 2016'!M224*'Prevalence Rates'!M224","v":120.62423092150564},{"$f":"'Population 2016'!N224*'Prevalence Rates'!N224","v":162.69932179962768},{"$f":"'Population 2016'!O224*'Prevalence Rates'!O224","v":92.108956685373158},{"$f":"'Population 2016'!P224*'Prevalence Rates'!P224","v":468.79638585731078},{"$f":"'Population 2016'!Q224*'Prevalence Rates'!Q224","v":158.23732648229395},{"$f":"'Population 2016'!R224*'Prevalence Rates'!R224","v":415.21965604504669},{"$f":"'Population 2016'!S224*'Prevalence Rates'!S224","v":2861.8940080298489},{"$f":"'Population 2016'!T224*'Prevalence Rates'!T224","v":1882.3286743662024},{"$f":"'Population 2016'!U224*'Prevalence Rates'!U224","v":0},{"$f":"'Population 2016'!V224*'Prevalence Rates'!V224","v":233.78119365066803},{"$f":"'Population 2016'!W224*'Prevalence Rates'!W224","v":536.27356058944395},{"$f":"'Population 2016'!X224*'Prevalence Rates'!X224","v":555.79628145126981},{"$f":"'Population 2016'!Y224*'Prevalence Rates'!Y224","v":549.02975369898581},{"$f":"'Population 2016'!Z224*'Prevalence Rates'!Z224","v":432.30154188265192},{"$f":"'Population 2016'!AA224*'Prevalence Rates'!AA224","v":2308.8847535154127},{"$f":"'Population 2016'!AB224*'Prevalence Rates'!AB224","v":1366.7333094137132},{"$f":"'Population 2016'!AC224*'Prevalence Rates'!AC224","v":1662.6627055719268},{"$f":"'Population 2016'!AD224*'Prevalence Rates'!AD224","v":268.10362553431258},{"$f":"'Population 2016'!AE224*'Prevalence Rates'!AE224","v":152.48316921982536},{"$f":"'Population 2016'!AF224*'Prevalence Rates'!AF224","v":104.16604119684159},{"$f":"'Population 2016'!AG224*'Prevalence Rates'!AG224","v":197.03022822771112},{"$f":"'Population 2016'!AH224*'Prevalence Rates'!AH224","v":628.92461479179735},{"$f":"'Population 2016'!AI224*'Prevalence Rates'!AI224","v":2312.0275668608851},{"$f":"'Population 2016'!AJ224*'Prevalence Rates'!AJ224","v":126.00379701367852},{"$f":"'Population 2016'!AK224*'Prevalence Rates'!AK224","v":95.867189053080324},{"$f":"'Population 2016'!AL224*'Prevalence Rates'!AL224","v":136.85903213891592},{"$f":"'Population 2016'!AM224*'Prevalence Rates'!AM224","v":227.80831092779965},{"$f":"'Population 2016'!AN224*'Prevalence Rates'!AN224","v":15.237834806470978},{"$f":"'Population 2016'!AO224*'Prevalence Rates'!AO224","v":15.237834806470978},{"$f":"'Population 2016'!AP224*'Prevalence Rates'!AP224","v":220.28526785780409},{"$f":"'Population 2016'!AQ224*'Prevalence Rates'!AQ224","v":309.47164924366172},{"$f":"'Population 2016'!AR224*'Prevalence Rates'!AR224","v":8411.3935388430946},{"$f":"'Population 2016'!AS224*'Prevalence Rates'!AS224","v":88.037827839506576},{"$f":"'Population 2016'!AT224*'Prevalence Rates'!AT224","v":0},{"$f":"'Population 2016'!AU224*'Prevalence Rates'!AU224","v":0},{"$f":"'Population 2016'!AV224*'Prevalence Rates'!AV224","v":274.63879666039657},{"$f":"'Population 2016'!AW224*'Prevalence Rates'!AW224","v":420.44976746670085},{"$f":"'Population 2016'!AX224*'Prevalence Rates'!AX224","v":196.198700338946},{"$f":"'Population 2016'!AY224*'Prevalence Rates'!AY224","v":1046.3460723165706},{"$f":"'Population 2016'!AZ224*'Prevalence Rates'!AZ224","v":511.68622162611643},{"$f":"'Population 2016'!BA224*'Prevalence Rates'!BA224","v":32.205753652887687},{"$f":"'Population 2016'!BB224*'Prevalence Rates'!BB224","v":232.14032698176837},{"$f":"'Population 2016'!BC224*'Prevalence Rates'!BC224","v":0},222]
[null,"Female 65-69",{"$f":"'Population 2016'!C225*'Prevalence Rates'!C225","v":621.05186989251979},{"$f":"'Population 2016'!D225*'Prevalence Rates'!D225","v":1115.231943628062},{"$f":"'Population 2016'!E225*'Prevalence Rates'!E225","v":498.31193829547027},{"$f":"'Population 2016'!F225*'Prevalence Rates'!F225","v":171.61231786281093},{"$f":"'Population 2016'!G225*'Prevalence Rates'!G225","v":63.117541422572103},{"$f":"'Population 2016'!H225*'Prevalence Rates'!H225","v":494.52564644000847},{"$f":"'Population 2016'!I225*'Prevalence Rates'!I225","v":90.000455796141324},{"$f":"'Population 2016'!J225*'Prevalence Rates'!J225","v":330.91063725049924},{"$f":"'Population 2016'!K225*'Prevalence Rates'!K225","v":69.896937511833613},{"$f":"'Population 2016'!L225*'Prevalence Rates'!L225","v":102.76020667422246},{"$f":"'Population 2016'!M225*'Prevalence Rates'!M225","v":105.82257217161403},{"$f":"'Population 2016'!N225*'Prevalence Rates'!N225","v":172.72883080018769},{"$f":"'Population 2016'!O225*'Prevalence Rates'!O225","v":86.814115731423954},{"$f":"'Population 2016'!P225*'Prevalence Rates'!P225","v":441.89300558478112},{"$f":"'Population 2016'!Q225*'Prevalence Rates'!Q225","v":159.85069425899206},{"$f":"'Population 2016'!R225*'Prevalence Rates'!R225","v":371.47788925331378},{"$f":"'Population 2016'!S225*'Prevalence Rates'!S225","v":2758.3993231955378},{"$f":"'Population 2016'!T225*'Prevalence Rates'!T225","v":1806.5535121533826},{"$f":"'Population 2016'!U225*'Prevalence Rates'!U225","v":0},{"$f":"'Population 2016'!V225*'Prevalence Rates'!V225","v":210.321102062373},{"$f":"'Population 2016'!W225*'Prevalence Rates'!W225","v":555.2577374923203},{"$f":"'Population 2016'!X225*'Prevalence Rates'!X225","v":575.47156605309544},{"$f":"'Population 2016'!Y225*'Prevalence Rates'!Y225","v":521.33362058519253},{"$f":"'Population 2016'!Z225*'Prevalence Rates'!Z225","v":333.15897571543735},{"$f":"'Population 2016'!AA225*'Prevalence Rates'!AA225","v":2007.9946986641926},{"$f":"'Population 2016'!AB225*'Prevalence Rates'!AB225","v":1195.6993874522609},{"$f":"'Population 2016'!AC225*'Prevalence Rates'!AC225","v":1463.2230939251663},{"$f":"'Population 2016'!AD225*'Prevalence Rates'!AD225","v":254.96493017339404},{"$f":"'Population 2016'!AE225*'Prevalence Rates'!AE225","v":139.82688300154297},{"$f":"'Population 2016'!AF225*'Prevalence Rates'!AF225","v":97.846031292870535},{"$f":"'Population 2016'!AG225*'Prevalence Rates'!AG225","v":180.67648259885127},{"$f":"'Population 2016'!AH225*'Prevalence Rates'!AH225","v":528.62820178672553},{"$f":"'Population 2016'!AI225*'Prevalence Rates'!AI225","v":2170.1246241251652},{"$f":"'Population 2016'!AJ225*'Prevalence Rates'!AJ225","v":112.81979271680562},{"$f":"'Population 2016'!AK225*'Prevalence Rates'!AK225","v":91.580705102561254},{"$f":"'Population 2016'!AL225*'Prevalence Rates'!AL225","v":142.03239560754946},{"$f":"'Population 2016'!AM225*'Prevalence Rates'!AM225","v":189.5116687457228},{"$f":"'Population 2016'!AN225*'Prevalence Rates'!AN225","v":12.874412919662644},{"$f":"'Population 2016'!AO225*'Prevalence Rates'!AO225","v":12.874412919662644},{"$f":"'Population 2016'!AP225*'Prevalence Rates'!AP225","v":241.42868853218457},{"$f":"'Population 2016'!AQ225*'Prevalence Rates'!AQ225","v":284.02476993754198},{"$f":"'Population 2016'!AR225*'Prevalence Rates'!AR225","v":7831.8068507965472},{"$f":"'Population 2016'!AS225*'Prevalence Rates'!AS225","v":90.000455796141324},{"$f":"'Population 2016'!AT225*'Prevalence Rates'!AT225","v":0},{"$f":"'Population 2016'!AU225*'Prevalence Rates'!AU225","v":0},{"$f":"'Population 2016'!AV225*'Prevalence Rates'!AV225","v":279.54487270656659},{"$f":"'Population 2016'!AW225*'Prevalence Rates'!AW225","v":355.64680978376282},{"$f":"'Population 2016'!AX225*'Prevalence Rates'!AX225","v":200.06169081089206},{"$f":"'Population 2016'!AY225*'Prevalence Rates'!AY225","v":1116.0630818392394},{"$f":"'Population 2016'!AZ225*'Prevalence Rates'!AZ225","v":561.88603895138806},{"$f":"'Population 2016'!BA225*'Prevalence Rates'!BA225","v":21.182357695781633},{"$f":"'Population 2016'!BB225*'Prevalence Rates'!BB225","v":183.6330454228401},{"$f":"'Population 2016'!BC225*'Prevalence Rates'!BC225","v":0},223]
[null,"Female 70-74",{"$f":"'Population 2016'!C226*'Prevalence Rates'!C226","v":477.96504120660478},{"$f":"'Population 2016'!D226*'Prevalence Rates'!D226","v":829.35887577450228},{"$f":"'Population 2016'!E226*'Prevalence Rates'!E226","v":358.99041146464776},{"$f":"'Population 2016'!F226*'Prevalence Rates'!F226","v":123.49129629992812},{"$f":"'Population 2016'!G226*'Prevalence Rates'!G226","v":51.891101248596826},{"$f":"'Population 2016'!H226*'Prevalence Rates'!H226","v":380.98659496143506},{"$f":"'Population 2016'!I226*'Prevalence Rates'!I226","v":68.17534526557705},{"$f":"'Population 2016'!J226*'Prevalence Rates'!J226","v":254.91336378025747},{"$f":"'Population 2016'!K226*'Prevalence Rates'!K226","v":47.824220402833525},{"$f":"'Population 2016'!L226*'Prevalence Rates'!L226","v":98.962088152382606},{"$f":"'Population 2016'!M226*'Prevalence Rates'!M226","v":101.91126560264266},{"$f":"'Population 2016'!N226*'Prevalence Rates'!N226","v":138.81198626074902},{"$f":"'Population 2016'!O226*'Prevalence Rates'!O226","v":59.578314717643892},{"$f":"'Population 2016'!P226*'Prevalence Rates'!P226","v":369.73386160423718},{"$f":"'Population 2016'!Q226*'Prevalence Rates'!Q226","v":134.8400414157484},{"$f":"'Population 2016'!R226*'Prevalence Rates'!R226","v":319.81107014941978},{"$f":"'Population 2016'!S226*'Prevalence Rates'!S226","v":2065.1090707149465},{"$f":"'Population 2016'!T226*'Prevalence Rates'!T226","v":1344.8719626357476},{"$f":"'Population 2016'!U226*'Prevalence Rates'!U226","v":0},{"$f":"'Population 2016'!V226*'Prevalence Rates'!V226","v":148.80521903141303},{"$f":"'Population 2016'!W226*'Prevalence Rates'!W226","v":418.04719706838875},{"$f":"'Population 2016'!X226*'Prevalence Rates'!X226","v":433.26595729677706},{"$f":"'Population 2016'!Y226*'Prevalence Rates'!Y226","v":387.74984689979362},{"$f":"'Population 2016'!Z226*'Prevalence Rates'!Z226","v":199.47247558702844},{"$f":"'Population 2016'!AA226*'Prevalence Rates'!AA226","v":1528.0198358936491},{"$f":"'Population 2016'!AB226*'Prevalence Rates'!AB226","v":903.94422058005682},{"$f":"'Population 2016'!AC226*'Prevalence Rates'!AC226","v":1128.9887143653541},{"$f":"'Population 2016'!AD226*'Prevalence Rates'!AD226","v":204.82016406297114},{"$f":"'Population 2016'!AE226*'Prevalence Rates'!AE226","v":111.46148150838211},{"$f":"'Population 2016'!AF226*'Prevalence Rates'!AF226","v":77.793634756306943},{"$f":"'Population 2016'!AG226*'Prevalence Rates'!AG226","v":144.02429627190614},{"$f":"'Population 2016'!AH226*'Prevalence Rates'!AH226","v":385.75571481734028},{"$f":"'Population 2016'!AI226*'Prevalence Rates'!AI226","v":1620.5276206716742},{"$f":"'Population 2016'!AJ226*'Prevalence Rates'!AJ226","v":81.012766818332707},{"$f":"'Population 2016'!AK226*'Prevalence Rates'!AK226","v":79.604766742995551},{"$f":"'Population 2016'!AL226*'Prevalence Rates'!AL226","v":110.55930794451294},{"$f":"'Population 2016'!AM226*'Prevalence Rates'!AM226","v":125.97722680447241},{"$f":"'Population 2016'!AN226*'Prevalence Rates'!AN226","v":11.359776105584686},{"$f":"'Population 2016'!AO226*'Prevalence Rates'!AO226","v":11.359776105584686},{"$f":"'Population 2016'!AP226*'Prevalence Rates'!AP226","v":195.66904859598148},{"$f":"'Population 2016'!AQ226*'Prevalence Rates'!AQ226","v":213.40378283733941},{"$f":"'Population 2016'!AR226*'Prevalence Rates'!AR226","v":5966.052710305893},{"$f":"'Population 2016'!AS226*'Prevalence Rates'!AS226","v":68.17534526557705},{"$f":"'Population 2016'!AT226*'Prevalence Rates'!AT226","v":0},{"$f":"'Population 2016'!AU226*'Prevalence Rates'!AU226","v":0},{"$f":"'Population 2016'!AV226*'Prevalence Rates'!AV226","v":225.036122930152},{"$f":"'Population 2016'!AW226*'Prevalence Rates'!AW226","v":273.59365380980915},{"$f":"'Population 2016'!AX226*'Prevalence Rates'!AX226","v":160.09502883383027},{"$f":"'Population 2016'!AY226*'Prevalence Rates'!AY226","v":855.79700899478189},{"$f":"'Population 2016'!AZ226*'Prevalence Rates'!AZ226","v":438.28305269959492},{"$f":"'Population 2016'!BA226*'Prevalence Rates'!BA226","v":10.479692754755124},{"$f":"'Population 2016'!BB226*'Prevalence Rates'!BB226","v":130.07340717451174},{"$f":"'Population 2016'!BC226*'Prevalence Rates'!BC226","v":0},224]
[null,"Female 75-79",{"$f":"'Population 2016'!C227*'Prevalence Rates'!C227","v":199.7334899554578},{"$f":"'Population 2016'!D227*'Prevalence Rates'!D227","v":322.59189592939777},{"$f":"'Population 2016'!E227*'Prevalence Rates'!E227","v":129.69433571870945},{"$f":"'Population 2016'!F227*'Prevalence Rates'!F227","v":46.386058926307363},{"$f":"'Population 2016'!G227*'Prevalence Rates'!G227","v":17.590492686562779},{"$f":"'Population 2016'!H227*'Prevalence Rates'!H227","v":138.24525803804696},{"$f":"'Population 2016'!I227*'Prevalence Rates'!I227","v":28.795603623000545},{"$f":"'Population 2016'!J227*'Prevalence Rates'!J227","v":101.30384136927547},{"$f":"'Population 2016'!K227*'Prevalence Rates'!K227","v":18.210589621143892},{"$f":"'Population 2016'!L227*'Prevalence Rates'!L227","v":36.583567302914062},{"$f":"'Population 2016'!M227*'Prevalence Rates'!M227","v":37.673797246058477},{"$f":"'Population 2016'!N227*'Prevalence Rates'!N227","v":54.563481568828479},{"$f":"'Population 2016'!O227*'Prevalence Rates'!O227","v":19.89441307732686},{"$f":"'Population 2016'!P227*'Prevalence Rates'!P227","v":161.29382435931126},{"$f":"'Population 2016'!Q227*'Prevalence Rates'!Q227","v":51.071944969558324},{"$f":"'Population 2016'!R227*'Prevalence Rates'!R227","v":118.12772253991334},{"$f":"'Population 2016'!S227*'Prevalence Rates'!S227","v":790.70982943399167},{"$f":"'Population 2016'!T227*'Prevalence Rates'!T227","v":550.13890733231005},{"$f":"'Population 2016'!U227*'Prevalence Rates'!U227","v":0},{"$f":"'Population 2016'!V227*'Prevalence Rates'!V227","v":53.193741518806419},{"$f":"'Population 2016'!W227*'Prevalence Rates'!W227","v":142.82419027519231},{"$f":"'Population 2016'!X227*'Prevalence Rates'!X227","v":148.0236202004605},{"$f":"'Population 2016'!Y227*'Prevalence Rates'!Y227","v":147.86351420357931},{"$f":"'Population 2016'!Z227*'Prevalence Rates'!Z227","v":84.192767981073587},{"$f":"'Population 2016'!AA227*'Prevalence Rates'!AA227","v":584.8056000793282},{"$f":"'Population 2016'!AB227*'Prevalence Rates'!AB227","v":347.01784856419874},{"$f":"'Population 2016'!AC227*'Prevalence Rates'!AC227","v":441.56652377347592},{"$f":"'Population 2016'!AD227*'Prevalence Rates'!AD227","v":73.012592931897558},{"$f":"'Population 2016'!AE227*'Prevalence Rates'!AE227","v":40.394083949558109},{"$f":"'Population 2016'!AF227*'Prevalence Rates'!AF227","v":29.752534507511193},{"$f":"'Population 2016'!AG227*'Prevalence Rates'!AG227","v":52.194977454573873},{"$f":"'Population 2016'!AH227*'Prevalence Rates'!AH227","v":137.55328961161942},{"$f":"'Population 2016'!AI227*'Prevalence Rates'!AI227","v":640.44992144924208},{"$f":"'Population 2016'!AJ227*'Prevalence Rates'!AJ227","v":30.065489455087032},{"$f":"'Population 2016'!AK227*'Prevalence Rates'!AK227","v":27.387482073981911},{"$f":"'Population 2016'!AL227*'Prevalence Rates'!AL227","v":38.713759612042082},{"$f":"'Population 2016'!AM227*'Prevalence Rates'!AM227","v":45.550754264691065},{"$f":"'Population 2016'!AN227*'Prevalence Rates'!AN227","v":2.8040173034892608},{"$f":"'Population 2016'!AO227*'Prevalence Rates'!AO227","v":2.8040173034892608},{"$f":"'Population 2016'!AP227*'Prevalence Rates'!AP227","v":78.097468031456103},{"$f":"'Population 2016'!AQ227*'Prevalence Rates'!AQ227","v":66.599500318132357},{"$f":"'Population 2016'!AR227*'Prevalence Rates'!AR227","v":2272.7935828018053},{"$f":"'Population 2016'!AS227*'Prevalence Rates'!AS227","v":28.795603623000545},{"$f":"'Population 2016'!AT227*'Prevalence Rates'!AT227","v":0},{"$f":"'Population 2016'!AU227*'Prevalence Rates'!AU227","v":0},{"$f":"'Population 2016'!AV227*'Prevalence Rates'!AV227","v":85.494579473043203},{"$f":"'Population 2016'!AW227*'Prevalence Rates'!AW227","v":96.839164960674111},{"$f":"'Population 2016'!AX227*'Prevalence Rates'!AX227","v":64.412220527059986},{"$f":"'Population 2016'!AY227*'Prevalence Rates'!AY227","v":314.23399224671221},{"$f":"'Population 2016'!AZ227*'Prevalence Rates'!AZ227","v":171.19728699908657},{"$f":"'Population 2016'!BA227*'Prevalence Rates'!BA227","v":3.5535319729498038},{"$f":"'Population 2016'!BB227*'Prevalence Rates'!BB227","v":41.081668434906021},{"$f":"'Population 2016'!BC227*'Prevalence Rates'!BC227","v":0},225]
[null,"Female 80-84",{"$f":"'Population 2016'!C228*'Prevalence Rates'!C228","v":155.8798294861956},{"$f":"'Population 2016'!D228*'Prevalence Rates'!D228","v":247.13246293052813},{"$f":"'Population 2016'!E228*'Prevalence Rates'!E228","v":97.294645365988373},{"$f":"'Population 2016'!F228*'Prevalence Rates'!F228","v":36.586187322157919},{"$f":"'Population 2016'!G228*'Prevalence Rates'!G228","v":14.698904847675745},{"$f":"'Population 2016'!H228*'Prevalence Rates'!H228","v":103.24084975277223},{"$f":"'Population 2016'!I228*'Prevalence Rates'!I228","v":17.277362173800327},{"$f":"'Population 2016'!J228*'Prevalence Rates'!J228","v":69.612532705625128},{"$f":"'Population 2016'!K228*'Prevalence Rates'!K228","v":11.437138603523298},{"$f":"'Population 2016'!L228*'Prevalence Rates'!L228","v":29.55218528647654},{"$f":"'Population 2016'!M228*'Prevalence Rates'!M228","v":30.432872427178157},{"$f":"'Population 2016'!N228*'Prevalence Rates'!N228","v":43.824347025460646},{"$f":"'Population 2016'!O228*'Prevalence Rates'!O228","v":15.948413789262027},{"$f":"'Population 2016'!P228*'Prevalence Rates'!P228","v":118.96998794126743},{"$f":"'Population 2016'!Q228*'Prevalence Rates'!Q228","v":36.367426109428422},{"$f":"'Population 2016'!R228*'Prevalence Rates'!R228","v":98.229202432922591},{"$f":"'Population 2016'!S228*'Prevalence Rates'!S228","v":619.36683204070948},{"$f":"'Population 2016'!T228*'Prevalence Rates'!T228","v":464.00975967087976},{"$f":"'Population 2016'!U228*'Prevalence Rates'!U228","v":0},{"$f":"'Population 2016'!V228*'Prevalence Rates'!V228","v":34.992792434005111},{"$f":"'Population 2016'!W228*'Prevalence Rates'!W228","v":105.24413741062105},{"$f":"'Population 2016'!X228*'Prevalence Rates'!X228","v":109.0754878034184},{"$f":"'Population 2016'!Y228*'Prevalence Rates'!Y228","v":99.971002109330897},{"$f":"'Population 2016'!Z228*'Prevalence Rates'!Z228","v":71.597892986600314},{"$f":"'Population 2016'!AA228*'Prevalence Rates'!AA228","v":446.77561787258924},{"$f":"'Population 2016'!AB228*'Prevalence Rates'!AB228","v":267.84281460517667},{"$f":"'Population 2016'!AC228*'Prevalence Rates'!AC228","v":343.44062960159238},{"$f":"'Population 2016'!AD228*'Prevalence Rates'!AD228","v":62.289621362691477},{"$f":"'Population 2016'!AE228*'Prevalence Rates'!AE228","v":34.686224261033594},{"$f":"'Population 2016'!AF228*'Prevalence Rates'!AF228","v":21.7018486995964},{"$f":"'Population 2016'!AG228*'Prevalence Rates'!AG228","v":44.819600205557997},{"$f":"'Population 2016'!AH228*'Prevalence Rates'!AH228","v":98.602115368846924},{"$f":"'Population 2016'!AI228*'Prevalence Rates'!AI228","v":517.19811128639992},{"$f":"'Population 2016'!AJ228*'Prevalence Rates'!AJ228","v":20.218713432678616},{"$f":"'Population 2016'!AK228*'Prevalence Rates'!AK228","v":22.53938742113418},{"$f":"'Population 2016'!AL228*'Prevalence Rates'!AL228","v":30.399395131603516},{"$f":"'Population 2016'!AM228*'Prevalence Rates'!AM228","v":28.996429219421398},{"$f":"'Population 2016'!AN228*'Prevalence Rates'!AN228","v":3.2916724867047842},{"$f":"'Population 2016'!AO228*'Prevalence Rates'!AO228","v":3.2916724867047842},{"$f":"'Population 2016'!AP228*'Prevalence Rates'!AP228","v":60.198048341788187},{"$f":"'Population 2016'!AQ228*'Prevalence Rates'!AQ228","v":47.252159443591118},{"$f":"'Population 2016'!AR228*'Prevalence Rates'!AR228","v":1751.921716856591},{"$f":"'Population 2016'!AS228*'Prevalence Rates'!AS228","v":17.277362173800327},{"$f":"'Population 2016'!AT228*'Prevalence Rates'!AT228","v":0},{"$f":"'Population 2016'!AU228*'Prevalence Rates'!AU228","v":0},{"$f":"'Population 2016'!AV228*'Prevalence Rates'!AV228","v":60.860548099454483},{"$f":"'Population 2016'!AW228*'Prevalence Rates'!AW228","v":73.592947501208812},{"$f":"'Population 2016'!AX228*'Prevalence Rates'!AX228","v":45.331203144900094},{"$f":"'Population 2016'!AY228*'Prevalence Rates'!AY228","v":239.93380529491949},{"$f":"'Population 2016'!AZ228*'Prevalence Rates'!AZ228","v":134.38169973314038},{"$f":"'Population 2016'!BA228*'Prevalence Rates'!BA228","v":2.3690213152998689},{"$f":"'Population 2016'!BB228*'Prevalence Rates'!BB228","v":25.97491734376333},{"$f":"'Population 2016'!BC228*'Prevalence Rates'!BC228","v":0},226]
[null,"Female 85-89",{"$f":"'Population 2016'!C229*'Prevalence Rates'!C229","v":114.28529698050147},{"$f":"'Population 2016'!D229*'Prevalence Rates'!D229","v":169.8683200243612},{"$f":"'Population 2016'!E229*'Prevalence Rates'!E229","v":61.741002855037813},{"$f":"'Population 2016'!F229*'Prevalence Rates'!F229","v":23.613023960474372},{"$f":"'Population 2016'!G229*'Prevalence Rates'!G229","v":8.4337978634205104},{"$f":"'Population 2016'!H229*'Prevalence Rates'!H229","v":61.257714499230737},{"$f":"'Population 2016'!I229*'Prevalence Rates'!I229","v":9.1276630352152672},{"$f":"'Population 2016'!J229*'Prevalence Rates'!J229","v":39.004687586031196},{"$f":"'Population 2016'!K229*'Prevalence Rates'!K229","v":4.9968081277528977},{"$f":"'Population 2016'!L229*'Prevalence Rates'!L229","v":15.897037602380484},{"$f":"'Population 2016'!M229*'Prevalence Rates'!M229","v":16.370786547033767},{"$f":"'Population 2016'!N229*'Prevalence Rates'!N229","v":28.52921600914889},{"$f":"'Population 2016'!O229*'Prevalence Rates'!O229","v":9.7005815831593782},{"$f":"'Population 2016'!P229*'Prevalence Rates'!P229","v":69.381612436544458},{"$f":"'Population 2016'!Q229*'Prevalence Rates'!Q229","v":23.894843147711093},{"$f":"'Population 2016'!R229*'Prevalence Rates'!R229","v":68.223497509682574},{"$f":"'Population 2016'!S229*'Prevalence Rates'!S229","v":412.62442055182805},{"$f":"'Population 2016'!T229*'Prevalence Rates'!T229","v":323.9396611702943},{"$f":"'Population 2016'!U229*'Prevalence Rates'!U229","v":0},{"$f":"'Population 2016'!V229*'Prevalence Rates'!V229","v":18.905501952600076},{"$f":"'Population 2016'!W229*'Prevalence Rates'!W229","v":65.165410818352257},{"$f":"'Population 2016'!X229*'Prevalence Rates'!X229","v":67.537718943807022},{"$f":"'Population 2016'!Y229*'Prevalence Rates'!Y229","v":55.279531954543806},{"$f":"'Population 2016'!Z229*'Prevalence Rates'!Z229","v":47.996685789749492},{"$f":"'Population 2016'!AA229*'Prevalence Rates'!AA229","v":273.80947557315073},{"$f":"'Population 2016'!AB229*'Prevalence Rates'!AB229","v":181.68816332745288},{"$f":"'Population 2016'!AC229*'Prevalence Rates'!AC229","v":218.84794307844388},{"$f":"'Population 2016'!AD229*'Prevalence Rates'!AD229","v":37.349676252290827},{"$f":"'Population 2016'!AE229*'Prevalence Rates'!AE229","v":21.075174234552058},{"$f":"'Population 2016'!AF229*'Prevalence Rates'!AF229","v":15.401311980358736},{"$f":"'Population 2016'!AG229*'Prevalence Rates'!AG229","v":27.232162150212456},{"$f":"'Population 2016'!AH229*'Prevalence Rates'!AH229","v":51.526839069724751},{"$f":"'Population 2016'!AI229*'Prevalence Rates'!AI229","v":354.21380968948375},{"$f":"'Population 2016'!AJ229*'Prevalence Rates'!AJ229","v":8.2712918588230711},{"$f":"'Population 2016'!AK229*'Prevalence Rates'!AK229","v":13.608686744835731},{"$f":"'Population 2016'!AL229*'Prevalence Rates'!AL229","v":17.278288685911399},{"$f":"'Population 2016'!AM229*'Prevalence Rates'!AM229","v":12.969311978141207},{"$f":"'Population 2016'!AN229*'Prevalence Rates'!AN229","v":1.7067931412543325},{"$f":"'Population 2016'!AO229*'Prevalence Rates'!AO229","v":1.7067931412543325},{"$f":"'Population 2016'!AP229*'Prevalence Rates'!AP229","v":38.798742120620958},{"$f":"'Population 2016'!AQ229*'Prevalence Rates'!AQ229","v":27.284711489737653},{"$f":"'Population 2016'!AR229*'Prevalence Rates'!AR229","v":1116.1219940383039},{"$f":"'Population 2016'!AS229*'Prevalence Rates'!AS229","v":9.1276630352152672},{"$f":"'Population 2016'!AT229*'Prevalence Rates'!AT229","v":0},{"$f":"'Population 2016'!AU229*'Prevalence Rates'!AU229","v":0},{"$f":"'Population 2016'!AV229*'Prevalence Rates'!AV229","v":36.468026837371532},{"$f":"'Population 2016'!AW229*'Prevalence Rates'!AW229","v":40.951885679887063},{"$f":"'Population 2016'!AX229*'Prevalence Rates'!AX229","v":26.801660253554068},{"$f":"'Population 2016'!AY229*'Prevalence Rates'!AY229","v":152.32027786164616},{"$f":"'Population 2016'!AZ229*'Prevalence Rates'!AZ229","v":86.896320857481342},{"$f":"'Population 2016'!BA229*'Prevalence Rates'!BA229","v":1.0768278705908496},{"$f":"'Population 2016'!BB229*'Prevalence Rates'!BB229","v":18.6932459545075},{"$f":"'Population 2016'!BC229*'Prevalence Rates'!BC229","v":0},227]
[null,"Female 90+",{"$f":"'Population 2016'!C230*'Prevalence Rates'!C230","v":69.634297229979964},{"$f":"'Population 2016'!D230*'Prevalence Rates'!D230","v":105.91391268451206},{"$f":"'Population 2016'!E230*'Prevalence Rates'!E230","v":39.663337747431413},{"$f":"'Population 2016'!F230*'Prevalence Rates'!F230","v":12.039842256526459},{"$f":"'Population 2016'!G230*'Prevalence Rates'!G230","v":5.3012443712928921},{"$f":"'Population 2016'!H230*'Prevalence Rates'!H230","v":39.878439818667388},{"$f":"'Population 2016'!I230*'Prevalence Rates'!I230","v":7.4977232074982547},{"$f":"'Population 2016'!J230*'Prevalence Rates'!J230","v":21.940136767142551},{"$f":"'Population 2016'!K230*'Prevalence Rates'!K230","v":1.998723251101159},{"$f":"'Population 2016'!L230*'Prevalence Rates'!L230","v":9.273271934721949},{"$f":"'Population 2016'!M230*'Prevalence Rates'!M230","v":9.5496254857696972},{"$f":"'Population 2016'!N230*'Prevalence Rates'!N230","v":12.691704460343802},{"$f":"'Population 2016'!O230*'Prevalence Rates'!O230","v":4.357040880571585},{"$f":"'Population 2016'!P230*'Prevalence Rates'!P230","v":41.060438316012657},{"$f":"'Population 2016'!Q230*'Prevalence Rates'!Q230","v":14.967099554060793},{"$f":"'Population 2016'!R230*'Prevalence Rates'!R230","v":37.480810360257706},{"$f":"'Population 2016'!S230*'Prevalence Rates'!S230","v":262.54565454236064},{"$f":"'Population 2016'!T230*'Prevalence Rates'!T230","v":201.06599658845852},{"$f":"'Population 2016'!U230*'Prevalence Rates'!U230","v":0},{"$f":"'Population 2016'!V230*'Prevalence Rates'!V230","v":14.443333789874591},{"$f":"'Population 2016'!W230*'Prevalence Rates'!W230","v":43.177082014613767},{"$f":"'Population 2016'!X230*'Prevalence Rates'!X230","v":44.748918073197295},{"$f":"'Population 2016'!Y230*'Prevalence Rates'!Y230","v":35.08834433640309},{"$f":"'Population 2016'!Z230*'Prevalence Rates'!Z230","v":31.31698647274435},{"$f":"'Population 2016'!AA230*'Prevalence Rates'!AA230","v":155.60522838834243},{"$f":"'Population 2016'!AB230*'Prevalence Rates'!AB230","v":113.63689447011159},{"$f":"'Population 2016'!AC230*'Prevalence Rates'!AC230","v":127.41720586498309},{"$f":"'Population 2016'!AD230*'Prevalence Rates'!AD230","v":20.964011831930982},{"$f":"'Population 2016'!AE230*'Prevalence Rates'!AE230","v":11.415719377049031},{"$f":"'Population 2016'!AF230*'Prevalence Rates'!AF230","v":10.500894532062775},{"$f":"'Population 2016'!AG230*'Prevalence Rates'!AG230","v":14.750754498031746},{"$f":"'Population 2016'!AH230*'Prevalence Rates'!AH230","v":26.041642208025035},{"$f":"'Population 2016'!AI230*'Prevalence Rates'!AI230","v":220.96130440377945},{"$f":"'Population 2016'!AJ230*'Prevalence Rates'!AJ230","v":6.0393559604104956},{"$f":"'Population 2016'!AK230*'Prevalence Rates'!AK230","v":8.760592091988002},{"$f":"'Population 2016'!AL230*'Prevalence Rates'!AL230","v":9.4835719855002427},{"$f":"'Population 2016'!AM230*'Prevalence Rates'!AM230","v":6.9591430126611353},{"$f":"'Population 2016'!AN230*'Prevalence Rates'!AN230","v":0.85339657062716623},{"$f":"'Population 2016'!AO230*'Prevalence Rates'!AO230","v":0.85339657062716623},{"$f":"'Population 2016'!AP230*'Prevalence Rates'!AP230","v":26.399144123309103},{"$f":"'Population 2016'!AQ230*'Prevalence Rates'!AQ230","v":12.278120170381944},{"$f":"'Population 2016'!AR230*'Prevalence Rates'!AR230","v":678.47761118928213},{"$f":"'Population 2016'!AS230*'Prevalence Rates'!AS230","v":7.4977232074982547},{"$f":"'Population 2016'!AT230*'Prevalence Rates'!AT230","v":0},{"$f":"'Population 2016'!AU230*'Prevalence Rates'!AU230","v":0},{"$f":"'Population 2016'!AV230*'Prevalence Rates'!AV230","v":28.256683046175297},{"$f":"'Population 2016'!AW230*'Prevalence Rates'!AW230","v":20.235049394767724},{"$f":"'Population 2016'!AX230*'Prevalence Rates'!AX230","v":15.882465335439448},{"$f":"'Population 2016'!AY230*'Prevalence Rates'!AY230","v":92.214461276137968},{"$f":"'Population 2016'!AZ230*'Prevalence Rates'!AZ230","v":49.02336685543748},{"$f":"'Population 2016'!BA230*'Prevalence Rates'!BA230","v":0.75377950941359473},{"$f":"'Population 2016'!BB230*'Prevalence Rates'!BB230","v":11.628937890304085},{"$f":"'Population 2016'!BC230*'Prevalence Rates'!BC230","v":0},228]
[null,"Male 0-4",{"$f":"'Population 2016'!C231*'Prevalence Rates'!C231","v":0},{"$f":"'Population 2016'!D231*'Prevalence Rates'!D231","v":0},{"$f":"'Population 2016'!E231*'Prevalence Rates'!E231","v":0},{"$f":"'Population 2016'!F231*'Prevalence Rates'!F231","v":0},{"$f":"'Population 2016'!G231*'Prevalence Rates'!G231","v":0},{"$f":"'Population 2016'!H231*'Prevalence Rates'!H231","v":0},{"$f":"'Population 2016'!I231*'Prevalence Rates'!I231","v":0},{"$f":"'Population 2016'!J231*'Prevalence Rates'!J231","v":0},{"$f":"'Population 2016'!K231*'Prevalence Rates'!K231","v":0},{"$f":"'Population 2016'!L231*'Prevalence Rates'!L231","v":0},{"$f":"'Population 2016'!M231*'Prevalence Rates'!M231","v":0},{"$f":"'Population 2016'!N231*'Prevalence Rates'!N231","v":0},{"$f":"'Population 2016'!O231*'Prevalence Rates'!O231","v":0},{"$f":"'Population 2016'!P231*'Prevalence Rates'!P231","v":0},{"$f":"'Population 2016'!Q231*'Prevalence Rates'!Q231","v":0},{"$f":"'Population 2016'!R231*'Prevalence Rates'!R231","v":0},{"$f":"'Population 2016'!S231*'Prevalence Rates'!S231","v":0},{"$f":"'Population 2016'!T231*'Prevalence Rates'!T231","v":0},{"$f":"'Population 2016'!U231*'Prevalence Rates'!U231","v":0},{"$f":"'Population 2016'!V231*'Prevalence Rates'!V231","v":0},{"$f":"'Population 2016'!W231*'Prevalence Rates'!W231","v":0},{"$f":"'Population 2016'!X231*'Prevalence Rates'!X231","v":0},{"$f":"'Population 2016'!Y231*'Prevalence Rates'!Y231","v":0},{"$f":"'Population 2016'!Z231*'Prevalence Rates'!Z231","v":0},{"$f":"'Population 2016'!AA231*'Prevalence Rates'!AA231","v":0},{"$f":"'Population 2016'!AB231*'Prevalence Rates'!AB231","v":0},{"$f":"'Population 2016'!AC231*'Prevalence Rates'!AC231","v":0},{"$f":"'Population 2016'!AD231*'Prevalence Rates'!AD231","v":0},{"$f":"'Population 2016'!AE231*'Prevalence Rates'!AE231","v":0},{"$f":"'Population 2016'!AF231*'Prevalence Rates'!AF231","v":0},{"$f":"'Population 2016'!AG231*'Prevalence Rates'!AG231","v":0},{"$f":"'Population 2016'!AH231*'Prevalence Rates'!AH231","v":0},{"$f":"'Population 2016'!AI231*'Prevalence Rates'!AI231","v":0},{"$f":"'Population 2016'!AJ231*'Prevalence Rates'!AJ231","v":0},{"$f":"'Population 2016'!AK231*'Prevalence Rates'!AK231","v":0},{"$f":"'Population 2016'!AL231*'Prevalence Rates'!AL231","v":0},{"$f":"'Population 2016'!AM231*'Prevalence Rates'!AM231","v":0},{"$f":"'Population 2016'!AN231*'Prevalence Rates'!AN231","v":0},{"$f":"'Population 2016'!AO231*'Prevalence Rates'!AO231","v":0},{"$f":"'Population 2016'!AP231*'Prevalence Rates'!AP231","v":0},{"$f":"'Population 2016'!AQ231*'Prevalence Rates'!AQ231","v":0},{"$f":"'Population 2016'!AR231*'Prevalence Rates'!AR231","v":0},{"$f":"'Population 2016'!AS231*'Prevalence Rates'!AS231","v":0},{"$f":"'Population 2016'!AT231*'Prevalence Rates'!AT231","v":0},{"$f":"'Population 2016'!AU231*'Prevalence Rates'!AU231","v":0},{"$f":"'Population 2016'!AV231*'Prevalence Rates'!AV231","v":0},{"$f":"'Population 2016'!AW231*'Prevalence Rates'!AW231","v":0},{"$f":"'Population 2016'!AX231*'Prevalence Rates'!AX231","v":0},{"$f":"'Population 2016'!AY231*'Prevalence Rates'!AY231","v":0},{"$f":"'Population 2016'!AZ231*'Prevalence Rates'!AZ231","v":0},{"$f":"'Population 2016'!BA231*'Prevalence Rates'!BA231","v":0},{"$f":"'Population 2016'!BB231*'Prevalence Rates'!BB231","v":0},{"$f":"'Population 2016'!BC231*'Prevalence Rates'!BC231","v":0},229]
[null,"Male 5-9",{"$f":"'Population 2016'!C232*'Prevalence Rates'!C232","v":0},{"$f":"'Population 2016'!D232*'Prevalence Rates'!D232","v":0},{"$f":"'Population 2016'!E232*'Prevalence Rates'!E232","v":0},{"$f":"'Population 2016'!F232*'Prevalence Rates'!F232","v":0},{"$f":"'Population 2016'!G232*'Prevalence Rates'!G232","v":0},{"$f":"'Population 2016'!H232*'Prevalence Rates'!H232","v":0},{"$f":"'Population 2016'!I232*'Prevalence Rates'!I232","v":0},{"$f":"'Population 2016'!J232*'Prevalence Rates'!J232","v":0},{"$f":"'Population 2016'!K232*'Prevalence Rates'!K232","v":0},{"$f":"'Population 2016'!L232*'Prevalence Rates'!L232","v":0},{"$f":"'Population 2016'!M232*'Prevalence Rates'!M232","v":0},{"$f":"'Population 2016'!N232*'Prevalence Rates'!N232","v":0},{"$f":"'Population 2016'!O232*'Prevalence Rates'!O232","v":0},{"$f":"'Population 2016'!P232*'Prevalence Rates'!P232","v":0},{"$f":"'Population 2016'!Q232*'Prevalence Rates'!Q232","v":0},{"$f":"'Population 2016'!R232*'Prevalence Rates'!R232","v":0},{"$f":"'Population 2016'!S232*'Prevalence Rates'!S232","v":0},{"$f":"'Population 2016'!T232*'Prevalence Rates'!T232","v":0},{"$f":"'Population 2016'!U232*'Prevalence Rates'!U232","v":0},{"$f":"'Population 2016'!V232*'Prevalence Rates'!V232","v":0},{"$f":"'Population 2016'!W232*'Prevalence Rates'!W232","v":0},{"$f":"'Population 2016'!X232*'Prevalence Rates'!X232","v":0},{"$f":"'Population 2016'!Y232*'Prevalence Rates'!Y232","v":0},{"$f":"'Population 2016'!Z232*'Prevalence Rates'!Z232","v":0},{"$f":"'Population 2016'!AA232*'Prevalence Rates'!AA232","v":0},{"$f":"'Population 2016'!AB232*'Prevalence Rates'!AB232","v":0},{"$f":"'Population 2016'!AC232*'Prevalence Rates'!AC232","v":0},{"$f":"'Population 2016'!AD232*'Prevalence Rates'!AD232","v":0},{"$f":"'Population 2016'!AE232*'Prevalence Rates'!AE232","v":0},{"$f":"'Population 2016'!AF232*'Prevalence Rates'!AF232","v":0},{"$f":"'Population 2016'!AG232*'Prevalence Rates'!AG232","v":0},{"$f":"'Population 2016'!AH232*'Prevalence Rates'!AH232","v":0},{"$f":"'Population 2016'!AI232*'Prevalence Rates'!AI232","v":0},{"$f":"'Population 2016'!AJ232*'Prevalence Rates'!AJ232","v":0},{"$f":"'Population 2016'!AK232*'Prevalence Rates'!AK232","v":0},{"$f":"'Population 2016'!AL232*'Prevalence Rates'!AL232","v":0},{"$f":"'Population 2016'!AM232*'Prevalence Rates'!AM232","v":0},{"$f":"'Population 2016'!AN232*'Prevalence Rates'!AN232","v":0},{"$f":"'Population 2016'!AO232*'Prevalence Rates'!AO232","v":0},{"$f":"'Population 2016'!AP232*'Prevalence Rates'!AP232","v":0},{"$f":"'Population 2016'!AQ232*'Prevalence Rates'!AQ232","v":0},{"$f":"'Population 2016'!AR232*'Prevalence Rates'!AR232","v":0},{"$f":"'Population 2016'!AS232*'Prevalence Rates'!AS232","v":0},{"$f":"'Population 2016'!AT232*'Prevalence Rates'!AT232","v":0},{"$f":"'Population 2016'!AU232*'Prevalence Rates'!AU232","v":0},{"$f":"'Population 2016'!AV232*'Prevalence Rates'!AV232","v":0},{"$f":"'Population 2016'!AW232*'Prevalence Rates'!AW232","v":0},{"$f":"'Population 2016'!AX232*'Prevalence Rates'!AX232","v":0},{"$f":"'Population 2016'!AY232*'Prevalence Rates'!AY232","v":0},{"$f":"'Population 2016'!AZ232*'Prevalence Rates'!AZ232","v":0},{"$f":"'Population 2016'!BA232*'Prevalence Rates'!BA232","v":0},{"$f":"'Population 2016'!BB232*'Prevalence Rates'!BB232","v":0},{"$f":"'Population 2016'!BC232*'Prevalence Rates'!BC232","v":0},230]
[null,"Male 10-15",{"$f":"'Population 2016'!C233*'Prevalence Rates'!C233","v":0},{"$f":"'Population 2016'!D233*'Prevalence Rates'!D233","v":0},{"$f":"'Population 2016'!E233*'Prevalence Rates'!E233","v":0},{"$f":"'Population 2016'!F233*'Prevalence Rates'!F233","v":0},{"$f":"'Population 2016'!G233*'Prevalence Rates'!G233","v":0},{"$f":"'Population 2016'!H233*'Prevalence Rates'!H233","v":0},{"$f":"'Population 2016'!I233*'Prevalence Rates'!I233","v":0},{"$f":"'Population 2016'!J233*'Prevalence Rates'!J233","v":0},{"$f":"'Population 2016'!K233*'Prevalence Rates'!K233","v":0},{"$f":"'Population 2016'!L233*'Prevalence Rates'!L233","v":0},{"$f":"'Population 2016'!M233*'Prevalence Rates'!M233","v":0},{"$f":"'Population 2016'!N233*'Prevalence Rates'!N233","v":0},{"$f":"'Population 2016'!O233*'Prevalence Rates'!O233","v":0},{"$f":"'Population 2016'!P233*'Prevalence Rates'!P233","v":0},{"$f":"'Population 2016'!Q233*'Prevalence Rates'!Q233","v":0},{"$f":"'Population 2016'!R233*'Prevalence Rates'!R233","v":0},{"$f":"'Population 2016'!S233*'Prevalence Rates'!S233","v":0},{"$f":"'Population 2016'!T233*'Prevalence Rates'!T233","v":0},{"$f":"'Population 2016'!U233*'Prevalence Rates'!U233","v":0},{"$f":"'Population 2016'!V233*'Prevalence Rates'!V233","v":0},{"$f":"'Population 2016'!W233*'Prevalence Rates'!W233","v":0},{"$f":"'Population 2016'!X233*'Prevalence Rates'!X233","v":0},{"$f":"'Population 2016'!Y233*'Prevalence Rates'!Y233","v":0},{"$f":"'Population 2016'!Z233*'Prevalence Rates'!Z233","v":0},{"$f":"'Population 2016'!AA233*'Prevalence Rates'!AA233","v":0},{"$f":"'Population 2016'!AB233*'Prevalence Rates'!AB233","v":0},{"$f":"'Population 2016'!AC233*'Prevalence Rates'!AC233","v":0},{"$f":"'Population 2016'!AD233*'Prevalence Rates'!AD233","v":0},{"$f":"'Population 2016'!AE233*'Prevalence Rates'!AE233","v":0},{"$f":"'Population 2016'!AF233*'Prevalence Rates'!AF233","v":0},{"$f":"'Population 2016'!AG233*'Prevalence Rates'!AG233","v":0},{"$f":"'Population 2016'!AH233*'Prevalence Rates'!AH233","v":0},{"$f":"'Population 2016'!AI233*'Prevalence Rates'!AI233","v":0},{"$f":"'Population 2016'!AJ233*'Prevalence Rates'!AJ233","v":0},{"$f":"'Population 2016'!AK233*'Prevalence Rates'!AK233","v":0},{"$f":"'Population 2016'!AL233*'Prevalence Rates'!AL233","v":0},{"$f":"'Population 2016'!AM233*'Prevalence Rates'!AM233","v":0},{"$f":"'Population 2016'!AN233*'Prevalence Rates'!AN233","v":0},{"$f":"'Population 2016'!AO233*'Prevalence Rates'!AO233","v":0},{"$f":"'Population 2016'!AP233*'Prevalence Rates'!AP233","v":0},{"$f":"'Population 2016'!AQ233*'Prevalence Rates'!AQ233","v":0},{"$f":"'Population 2016'!AR233*'Prevalence Rates'!AR233","v":0},{"$f":"'Population 2016'!AS233*'Prevalence Rates'!AS233","v":0},{"$f":"'Population 2016'!AT233*'Prevalence Rates'!AT233","v":0},{"$f":"'Population 2016'!AU233*'Prevalence Rates'!AU233","v":0},{"$f":"'Population 2016'!AV233*'Prevalence Rates'!AV233","v":0},{"$f":"'Population 2016'!AW233*'Prevalence Rates'!AW233","v":0},{"$f":"'Population 2016'!AX233*'Prevalence Rates'!AX233","v":0},{"$f":"'Population 2016'!AY233*'Prevalence Rates'!AY233","v":0},{"$f":"'Population 2016'!AZ233*'Prevalence Rates'!AZ233","v":0},{"$f":"'Population 2016'!BA233*'Prevalence Rates'!BA233","v":0},{"$f":"'Population 2016'!BB233*'Prevalence Rates'!BB233","v":0},{"$f":"'Population 2016'!BC233*'Prevalence Rates'!BC233","v":0},231]
[null,"Male 16-19",{"$f":"'Population 2016'!C234*'Prevalence Rates'!C234","v":411.80040552873112},{"$f":"'Population 2016'!D234*'Prevalence Rates'!D234","v":775.03229041550617},{"$f":"'Population 2016'!E234*'Prevalence Rates'!E234","v":364.85568728841167},{"$f":"'Population 2016'!F234*'Prevalence Rates'!F234","v":101.45822351619137},{"$f":"'Population 2016'!G234*'Prevalence Rates'!G234","v":68.676766392751333},{"$f":"'Population 2016'!H234*'Prevalence Rates'!H234","v":268.37403659496192},{"$f":"'Population 2016'!I234*'Prevalence Rates'!I234","v":67.835911912079951},{"$f":"'Population 2016'!J234*'Prevalence Rates'!J234","v":297.29607053902049},{"$f":"'Population 2016'!K234*'Prevalence Rates'!K234","v":40.864052486580995},{"$f":"'Population 2016'!L234*'Prevalence Rates'!L234","v":57.46271656982546},{"$f":"'Population 2016'!M234*'Prevalence Rates'!M234","v":61.082861122976972},{"$f":"'Population 2016'!N234*'Prevalence Rates'!N234","v":108.66599344494908},{"$f":"'Population 2016'!O234*'Prevalence Rates'!O234","v":73.05434191288326},{"$f":"'Population 2016'!P234*'Prevalence Rates'!P234","v":312.8035691844463},{"$f":"'Population 2016'!Q234*'Prevalence Rates'!Q234","v":83.078863956899795},{"$f":"'Population 2016'!R234*'Prevalence Rates'!R234","v":317.85548741218605},{"$f":"'Population 2016'!S234*'Prevalence Rates'!S234","v":2096.0066438288763},{"$f":"'Population 2016'!T234*'Prevalence Rates'!T234","v":1379.7577772845452},{"$f":"'Population 2016'!U234*'Prevalence Rates'!U234","v":0},{"$f":"'Population 2016'!V234*'Prevalence Rates'!V234","v":136.32424010364872},{"$f":"'Population 2016'!W234*'Prevalence Rates'!W234","v":419.75542856773194},{"$f":"'Population 2016'!X234*'Prevalence Rates'!X234","v":421.53643876599523},{"$f":"'Population 2016'!Y234*'Prevalence Rates'!Y234","v":503.4310761092122},{"$f":"'Population 2016'!Z234*'Prevalence Rates'!Z234","v":270.39940899171387},{"$f":"'Population 2016'!AA234*'Prevalence Rates'!AA234","v":1371.8829186524599},{"$f":"'Population 2016'!AB234*'Prevalence Rates'!AB234","v":841.15545176037199},{"$f":"'Population 2016'!AC234*'Prevalence Rates'!AC234","v":1055.5720645419785},{"$f":"'Population 2016'!AD234*'Prevalence Rates'!AD234","v":170.46554515343644},{"$f":"'Population 2016'!AE234*'Prevalence Rates'!AE234","v":94.266684768740873},{"$f":"'Population 2016'!AF234*'Prevalence Rates'!AF234","v":40.73893667339037},{"$f":"'Population 2016'!AG234*'Prevalence Rates'!AG234","v":102.32439641175792},{"$f":"'Population 2016'!AH234*'Prevalence Rates'!AH234","v":334.63445887378737},{"$f":"'Population 2016'!AI234*'Prevalence Rates'!AI234","v":1628.1031315744756},{"$f":"'Population 2016'!AJ234*'Prevalence Rates'!AJ234","v":81.678658384592495},{"$f":"'Population 2016'!AK234*'Prevalence Rates'!AK234","v":92.761879342415696},{"$f":"'Population 2016'!AL234*'Prevalence Rates'!AL234","v":82.958300226707351},{"$f":"'Population 2016'!AM234*'Prevalence Rates'!AM234","v":136.16892496524895},{"$f":"'Population 2016'!AN234*'Prevalence Rates'!AN234","v":6.8544963778740016},{"$f":"'Population 2016'!AO234*'Prevalence Rates'!AO234","v":6.8544963778740016},{"$f":"'Population 2016'!AP234*'Prevalence Rates'!AP234","v":103.43126193262464},{"$f":"'Population 2016'!AQ234*'Prevalence Rates'!AQ234","v":153.57771088705385},{"$f":"'Population 2016'!AR234*'Prevalence Rates'!AR234","v":5520.8736321235319},{"$f":"'Population 2016'!AS234*'Prevalence Rates'!AS234","v":67.835911912079951},{"$f":"'Population 2016'!AT234*'Prevalence Rates'!AT234","v":0},{"$f":"'Population 2016'!AU234*'Prevalence Rates'!AU234","v":0},{"$f":"'Population 2016'!AV234*'Prevalence Rates'!AV234","v":104.76217687387715},{"$f":"'Population 2016'!AW234*'Prevalence Rates'!AW234","v":195.58856234824853},{"$f":"'Population 2016'!AX234*'Prevalence Rates'!AX234","v":215.87254937958051},{"$f":"'Population 2016'!AY234*'Prevalence Rates'!AY234","v":683.79582485402955},{"$f":"'Population 2016'!AZ234*'Prevalence Rates'!AZ234","v":273.45482700010064},{"$f":"'Population 2016'!BA234*'Prevalence Rates'!BA234","v":21.039240574783577},{"$f":"'Population 2016'!BB234*'Prevalence Rates'!BB234","v":194.32160103552064},{"$f":"'Population 2016'!BC234*'Prevalence Rates'!BC234","v":0},232]
[null,"Male 20-24",{"$f":"'Population 2016'!C235*'Prevalence Rates'!C235","v":685.43537221394365},{"$f":"'Population 2016'!D235*'Prevalence Rates'!D235","v":1042.5892524856438},{"$f":"'Population 2016'!E235*'Prevalence Rates'!E235","v":393.97795529873389},{"$f":"'Population 2016'!F235*'Prevalence Rates'!F235","v":105.89576013121365},{"$f":"'Population 2016'!G235*'Prevalence Rates'!G235","v":181.91167288556159},{"$f":"'Population 2016'!H235*'Prevalence Rates'!H235","v":293.23639323189775},{"$f":"'Population 2016'!I235*'Prevalence Rates'!I235","v":55.755544037325983},{"$f":"'Population 2016'!J235*'Prevalence Rates'!J235","v":336.81954479964276},{"$f":"'Population 2016'!K235*'Prevalence Rates'!K235","v":42.686016610186513},{"$f":"'Population 2016'!L235*'Prevalence Rates'!L235","v":63.108176443352171},{"$f":"'Population 2016'!M235*'Prevalence Rates'!M235","v":67.083984321023834},{"$f":"'Population 2016'!N235*'Prevalence Rates'!N235","v":137.8827935692986},{"$f":"'Population 2016'!O235*'Prevalence Rates'!O235","v":82.838405561930131},{"$f":"'Population 2016'!P235*'Prevalence Rates'!P235","v":371.58832772802538},{"$f":"'Population 2016'!Q235*'Prevalence Rates'!Q235","v":105.48215311381659},{"$f":"'Population 2016'!R235*'Prevalence Rates'!R235","v":348.43076475844845},{"$f":"'Population 2016'!S235*'Prevalence Rates'!S235","v":3408.3113481400983},{"$f":"'Population 2016'!T235*'Prevalence Rates'!T235","v":2519.1454648319686},{"$f":"'Population 2016'!U235*'Prevalence Rates'!U235","v":0},{"$f":"'Population 2016'!V235*'Prevalence Rates'!V235","v":160.20023695796007},{"$f":"'Population 2016'!W235*'Prevalence Rates'!W235","v":688.55294154046305},{"$f":"'Population 2016'!X235*'Prevalence Rates'!X235","v":691.47445184733897},{"$f":"'Population 2016'!Y235*'Prevalence Rates'!Y235","v":578.2582791233441},{"$f":"'Population 2016'!Z235*'Prevalence Rates'!Z235","v":645.58886250149305},{"$f":"'Population 2016'!AA235*'Prevalence Rates'!AA235","v":1875.6226370466986},{"$f":"'Population 2016'!AB235*'Prevalence Rates'!AB235","v":1126.9163624510454},{"$f":"'Population 2016'!AC235*'Prevalence Rates'!AC235","v":1520.8814861600217},{"$f":"'Population 2016'!AD235*'Prevalence Rates'!AD235","v":280.4301294370681},{"$f":"'Population 2016'!AE235*'Prevalence Rates'!AE235","v":91.238036262114662},{"$f":"'Population 2016'!AF235*'Prevalence Rates'!AF235","v":37.16185930694634},{"$f":"'Population 2016'!AG235*'Prevalence Rates'!AG235","v":99.036865603348033},{"$f":"'Population 2016'!AH235*'Prevalence Rates'!AH235","v":388.38403516957703},{"$f":"'Population 2016'!AI235*'Prevalence Rates'!AI235","v":2698.2846382906328},{"$f":"'Population 2016'!AJ235*'Prevalence Rates'!AJ235","v":91.713464986128145},{"$f":"'Population 2016'!AK235*'Prevalence Rates'!AK235","v":120.86688583192243},{"$f":"'Population 2016'!AL235*'Prevalence Rates'!AL235","v":87.46402260323778},{"$f":"'Population 2016'!AM235*'Prevalence Rates'!AM235","v":153.0452680350611},{"$f":"'Population 2016'!AN235*'Prevalence Rates'!AN235","v":10.738710992002604},{"$f":"'Population 2016'!AO235*'Prevalence Rates'!AO235","v":10.738710992002604},{"$f":"'Population 2016'!AP235*'Prevalence Rates'!AP235","v":119.41282844651977},{"$f":"'Population 2016'!AQ235*'Prevalence Rates'!AQ235","v":177.97272633481691},{"$f":"'Population 2016'!AR235*'Prevalence Rates'!AR235","v":7811.1323559412331},{"$f":"'Population 2016'!AS235*'Prevalence Rates'!AS235","v":55.755544037325983},{"$f":"'Population 2016'!AT235*'Prevalence Rates'!AT235","v":0},{"$f":"'Population 2016'!AU235*'Prevalence Rates'!AU235","v":0},{"$f":"'Population 2016'!AV235*'Prevalence Rates'!AV235","v":114.0789712598939},{"$f":"'Population 2016'!AW235*'Prevalence Rates'!AW235","v":232.33871679127986},{"$f":"'Population 2016'!AX235*'Prevalence Rates'!AX235","v":247.45351906744983},{"$f":"'Population 2016'!AY235*'Prevalence Rates'!AY235","v":978.38103515057946},{"$f":"'Population 2016'!AZ235*'Prevalence Rates'!AZ235","v":318.41941079836795},{"$f":"'Population 2016'!BA235*'Prevalence Rates'!BA235","v":26.688666284679165},{"$f":"'Population 2016'!BB235*'Prevalence Rates'!BB235","v":208.60011132974947},{"$f":"'Population 2016'!BC235*'Prevalence Rates'!BC235","v":0},233]
[null,"Male 25-29",{"$f":"'Population 2016'!C236*'Prevalence Rates'!C236","v":996.63247279718337},{"$f":"'Population 2016'!D236*'Prevalence Rates'!D236","v":1288.360640729793},{"$f":"'Population 2016'!E236*'Prevalence Rates'!E236","v":376.65332252003776},{"$f":"'Population 2016'!F236*'Prevalence Rates'!F236","v":82.477283171288306},{"$f":"'Population 2016'!G236*'Prevalence Rates'!G236","v":141.53148282700298},{"$f":"'Population 2016'!H236*'Prevalence Rates'!H236","v":203.66090942603103},{"$f":"'Population 2016'!I236*'Prevalence Rates'!I236","v":38.367028109695909},{"$f":"'Population 2016'!J236*'Prevalence Rates'!J236","v":175.09127417828827},{"$f":"'Population 2016'!K236*'Prevalence Rates'!K236","v":29.77918977986706},{"$f":"'Population 2016'!L236*'Prevalence Rates'!L236","v":52.354625457614901},{"$f":"'Population 2016'!M236*'Prevalence Rates'!M236","v":55.652960856575106},{"$f":"'Population 2016'!N236*'Prevalence Rates'!N236","v":127.48851387985185},{"$f":"'Population 2016'!O236*'Prevalence Rates'!O236","v":66.191380379210045},{"$f":"'Population 2016'!P236*'Prevalence Rates'!P236","v":299.03744078153346},{"$f":"'Population 2016'!Q236*'Prevalence Rates'!Q236","v":79.63572302409483},{"$f":"'Population 2016'!R236*'Prevalence Rates'!R236","v":242.92880261931657},{"$f":"'Population 2016'!S236*'Prevalence Rates'!S236","v":2909.7140752425908},{"$f":"'Population 2016'!T236*'Prevalence Rates'!T236","v":2456.3255945811466},{"$f":"'Population 2016'!U236*'Prevalence Rates'!U236","v":0},{"$f":"'Population 2016'!V236*'Prevalence Rates'!V236","v":156.50749505459081},{"$f":"'Population 2016'!W236*'Prevalence Rates'!W236","v":381.59477374387376},{"$f":"'Population 2016'!X236*'Prevalence Rates'!X236","v":383.21386938240022},{"$f":"'Population 2016'!Y236*'Prevalence Rates'!Y236","v":401.15866391865137},{"$f":"'Population 2016'!Z236*'Prevalence Rates'!Z236","v":681.33142219441584},{"$f":"'Population 2016'!AA236*'Prevalence Rates'!AA236","v":1611.2676620503773},{"$f":"'Population 2016'!AB236*'Prevalence Rates'!AB236","v":1345.0592765440342},{"$f":"'Population 2016'!AC236*'Prevalence Rates'!AC236","v":1343.6017547928959},{"$f":"'Population 2016'!AD236*'Prevalence Rates'!AD236","v":241.37625016616755},{"$f":"'Population 2016'!AE236*'Prevalence Rates'!AE236","v":92.466333943330525},{"$f":"'Population 2016'!AF236*'Prevalence Rates'!AF236","v":39.146620405211941},{"$f":"'Population 2016'!AG236*'Prevalence Rates'!AG236","v":100.37015550478786},{"$f":"'Population 2016'!AH236*'Prevalence Rates'!AH236","v":300.66577474025144},{"$f":"'Population 2016'!AI236*'Prevalence Rates'!AI236","v":2580.720208405784},{"$f":"'Population 2016'!AJ236*'Prevalence Rates'!AJ236","v":87.297468971019399},{"$f":"'Population 2016'!AK236*'Prevalence Rates'!AK236","v":109.09480442835618},{"$f":"'Population 2016'!AL236*'Prevalence Rates'!AL236","v":55.901649709221125},{"$f":"'Population 2016'!AM236*'Prevalence Rates'!AM236","v":128.22977710759676},{"$f":"'Population 2016'!AN236*'Prevalence Rates'!AN236","v":10.22916223161411},{"$f":"'Population 2016'!AO236*'Prevalence Rates'!AO236","v":10.22916223161411},{"$f":"'Population 2016'!AP236*'Prevalence Rates'!AP236","v":95.399006767974583},{"$f":"'Population 2016'!AQ236*'Prevalence Rates'!AQ236","v":138.63464295164184},{"$f":"'Population 2016'!AR236*'Prevalence Rates'!AR236","v":6997.7205837036136},{"$f":"'Population 2016'!AS236*'Prevalence Rates'!AS236","v":38.367028109695909},{"$f":"'Population 2016'!AT236*'Prevalence Rates'!AT236","v":0},{"$f":"'Population 2016'!AU236*'Prevalence Rates'!AU236","v":0},{"$f":"'Population 2016'!AV236*'Prevalence Rates'!AV236","v":74.771118699418992},{"$f":"'Population 2016'!AW236*'Prevalence Rates'!AW236","v":169.45177546970226},{"$f":"'Population 2016'!AX236*'Prevalence Rates'!AX236","v":122.57723547888446},{"$f":"'Population 2016'!AY236*'Prevalence Rates'!AY236","v":643.96961548135926},{"$f":"'Population 2016'!AZ236*'Prevalence Rates'!AZ236","v":268.88367061413123},{"$f":"'Population 2016'!BA236*'Prevalence Rates'!BA236","v":17.830658717611986},{"$f":"'Population 2016'!BB236*'Prevalence Rates'!BB236","v":182.67369620258907},{"$f":"'Population 2016'!BC236*'Prevalence Rates'!BC236","v":0},234]
[null,"Male 30-34",{"$f":"'Population 2016'!C237*'Prevalence Rates'!C237","v":862.52628672893718},{"$f":"'Population 2016'!D237*'Prevalence Rates'!D237","v":1247.3057218388924},{"$f":"'Population 2016'!E237*'Prevalence Rates'!E237","v":440.03248736715949},{"$f":"'Population 2016'!F237*'Prevalence Rates'!F237","v":92.912365227023074},{"$f":"'Population 2016'!G237*'Prevalence Rates'!G237","v":66.698744780541631},{"$f":"'Population 2016'!H237*'Prevalence Rates'!H237","v":184.01144597403032},{"$f":"'Population 2016'!I237*'Prevalence Rates'!I237","v":42.758434941528577},{"$f":"'Population 2016'!J237*'Prevalence Rates'!J237","v":144.67287485070429},{"$f":"'Population 2016'!K237*'Prevalence Rates'!K237","v":30.556038208907072},{"$f":"'Population 2016'!L237*'Prevalence Rates'!L237","v":60.578915280458624},{"$f":"'Population 2016'!M237*'Prevalence Rates'!M237","v":64.395379994964301},{"$f":"'Population 2016'!N237*'Prevalence Rates'!N237","v":87.882082234511216},{"$f":"'Population 2016'!O237*'Prevalence Rates'!O237","v":70.950237792094427},{"$f":"'Population 2016'!P237*'Prevalence Rates'!P237","v":252.50627583479948},{"$f":"'Population 2016'!Q237*'Prevalence Rates'!Q237","v":86.600946612208077},{"$f":"'Population 2016'!R237*'Prevalence Rates'!R237","v":197.93416352547794},{"$f":"'Population 2016'!S237*'Prevalence Rates'!S237","v":2473.5119173959638},{"$f":"'Population 2016'!T237*'Prevalence Rates'!T237","v":1951.41113985586},{"$f":"'Population 2016'!U237*'Prevalence Rates'!U237","v":0},{"$f":"'Population 2016'!V237*'Prevalence Rates'!V237","v":186.1998594774324},{"$f":"'Population 2016'!W237*'Prevalence Rates'!W237","v":372.59128259630245},{"$f":"'Population 2016'!X237*'Prevalence Rates'!X237","v":374.17217668110868},{"$f":"'Population 2016'!Y237*'Prevalence Rates'!Y237","v":409.57641948940341},{"$f":"'Population 2016'!Z237*'Prevalence Rates'!Z237","v":531.90049821478249},{"$f":"'Population 2016'!AA237*'Prevalence Rates'!AA237","v":1355.9474259003118},{"$f":"'Population 2016'!AB237*'Prevalence Rates'!AB237","v":1277.9956053371745},{"$f":"'Population 2016'!AC237*'Prevalence Rates'!AC237","v":1099.0460658792351},{"$f":"'Population 2016'!AD237*'Prevalence Rates'!AD237","v":175.28755488056987},{"$f":"'Population 2016'!AE237*'Prevalence Rates'!AE237","v":100.56420025608655},{"$f":"'Population 2016'!AF237*'Prevalence Rates'!AF237","v":37.367228568611395},{"$f":"'Population 2016'!AG237*'Prevalence Rates'!AG237","v":109.160209856531},{"$f":"'Population 2016'!AH237*'Prevalence Rates'!AH237","v":281.17338659013762},{"$f":"'Population 2016'!AI237*'Prevalence Rates'!AI237","v":2120.4801866296852},{"$f":"'Population 2016'!AJ237*'Prevalence Rates'!AJ237","v":88.690513688642056},{"$f":"'Population 2016'!AK237*'Prevalence Rates'!AK237","v":85.106170961616797},{"$f":"'Population 2016'!AL237*'Prevalence Rates'!AL237","v":51.946344305266805},{"$f":"'Population 2016'!AM237*'Prevalence Rates'!AM237","v":113.57964852919353},{"$f":"'Population 2016'!AN237*'Prevalence Rates'!AN237","v":9.3199033665817446},{"$f":"'Population 2016'!AO237*'Prevalence Rates'!AO237","v":9.3199033665817446},{"$f":"'Population 2016'!AP237*'Prevalence Rates'!AP237","v":101.47310083185312},{"$f":"'Population 2016'!AQ237*'Prevalence Rates'!AQ237","v":123.55766586671528},{"$f":"'Population 2016'!AR237*'Prevalence Rates'!AR237","v":6157.5041915646379},{"$f":"'Population 2016'!AS237*'Prevalence Rates'!AS237","v":42.758434941528577},{"$f":"'Population 2016'!AT237*'Prevalence Rates'!AT237","v":0},{"$f":"'Population 2016'!AU237*'Prevalence Rates'!AU237","v":0},{"$f":"'Population 2016'!AV237*'Prevalence Rates'!AV237","v":55.82086272050288},{"$f":"'Population 2016'!AW237*'Prevalence Rates'!AW237","v":165.23305906796691},{"$f":"'Population 2016'!AX237*'Prevalence Rates'!AX237","v":96.532156776794338},{"$f":"'Population 2016'!AY237*'Prevalence Rates'!AY237","v":610.08567043026517},{"$f":"'Population 2016'!AZ237*'Prevalence Rates'!AZ237","v":245.56455581750745},{"$f":"'Population 2016'!BA237*'Prevalence Rates'!BA237","v":16.280166655210941},{"$f":"'Population 2016'!BB237*'Prevalence Rates'!BB237","v":167.13644379167627},{"$f":"'Population 2016'!BC237*'Prevalence Rates'!BC237","v":0},235]
[null,"Male 35-39",{"$f":"'Population 2016'!C238*'Prevalence Rates'!C238","v":798.77144053899451},{"$f":"'Population 2016'!D238*'Prevalence Rates'!D238","v":1329.275376091495},{"$f":"'Population 2016'!E238*'Prevalence Rates'!E238","v":557.65587082252523},{"$f":"'Population 2016'!F238*'Prevalence Rates'!F238","v":110.58634914546614},{"$f":"'Population 2016'!G238*'Prevalence Rates'!G238","v":65.944190135723062},{"$f":"'Population 2016'!H238*'Prevalence Rates'!H238","v":275.55080014121626},{"$f":"'Population 2016'!I238*'Prevalence Rates'!I238","v":68.368310391947304},{"$f":"'Population 2016'!J238*'Prevalence Rates'!J238","v":195.88922750013609},{"$f":"'Population 2016'!K238*'Prevalence Rates'!K238","v":42.55467783138473},{"$f":"'Population 2016'!L238*'Prevalence Rates'!L238","v":70.983610063046129},{"$f":"'Population 2016'!M238*'Prevalence Rates'!M238","v":75.455569355477266},{"$f":"'Population 2016'!N238*'Prevalence Rates'!N238","v":104.84777071143422},{"$f":"'Population 2016'!O238*'Prevalence Rates'!O238","v":91.002274421210842},{"$f":"'Population 2016'!P238*'Prevalence Rates'!P238","v":328.78633828331135},{"$f":"'Population 2016'!Q238*'Prevalence Rates'!Q238","v":114.46358185289783},{"$f":"'Population 2016'!R238*'Prevalence Rates'!R238","v":327.24392232957427},{"$f":"'Population 2016'!S238*'Prevalence Rates'!S238","v":2753.0785599124188},{"$f":"'Population 2016'!T238*'Prevalence Rates'!T238","v":2014.8162537334019},{"$f":"'Population 2016'!U238*'Prevalence Rates'!U238","v":0},{"$f":"'Population 2016'!V238*'Prevalence Rates'!V238","v":223.51347081384802},{"$f":"'Population 2016'!W238*'Prevalence Rates'!W238","v":444.08873637756096},{"$f":"'Population 2016'!X238*'Prevalence Rates'!X238","v":445.9729921002828},{"$f":"'Population 2016'!Y238*'Prevalence Rates'!Y238","v":515.29372962192292},{"$f":"'Population 2016'!Z238*'Prevalence Rates'!Z238","v":494.2725007723468},{"$f":"'Population 2016'!AA238*'Prevalence Rates'!AA238","v":1681.791439966466},{"$f":"'Population 2016'!AB238*'Prevalence Rates'!AB238","v":1347.9942837502567},{"$f":"'Population 2016'!AC238*'Prevalence Rates'!AC238","v":1296.7225524263129},{"$f":"'Population 2016'!AD238*'Prevalence Rates'!AD238","v":223.45277941260227},{"$f":"'Population 2016'!AE238*'Prevalence Rates'!AE238","v":145.86885425397668},{"$f":"'Population 2016'!AF238*'Prevalence Rates'!AF238","v":40.50528587815085},{"$f":"'Population 2016'!AG238*'Prevalence Rates'!AG238","v":158.33740736114589},{"$f":"'Population 2016'!AH238*'Prevalence Rates'!AH238","v":407.82989591364884},{"$f":"'Population 2016'!AI238*'Prevalence Rates'!AI238","v":2299.7500492887184},{"$f":"'Population 2016'!AJ238*'Prevalence Rates'!AJ238","v":109.63067506355326},{"$f":"'Population 2016'!AK238*'Prevalence Rates'!AK238","v":78.843841138000855},{"$f":"'Population 2016'!AL238*'Prevalence Rates'!AL238","v":81.177578864112817},{"$f":"'Population 2016'!AM238*'Prevalence Rates'!AM238","v":165.19158268930804},{"$f":"'Population 2016'!AN238*'Prevalence Rates'!AN238","v":15.191420963484957},{"$f":"'Population 2016'!AO238*'Prevalence Rates'!AO238","v":15.191420963484957},{"$f":"'Population 2016'!AP238*'Prevalence Rates'!AP238","v":128.78625086419726},{"$f":"'Population 2016'!AQ238*'Prevalence Rates'!AQ238","v":161.55328802075883},{"$f":"'Population 2016'!AR238*'Prevalence Rates'!AR238","v":7137.5907583033031},{"$f":"'Population 2016'!AS238*'Prevalence Rates'!AS238","v":68.368310391947304},{"$f":"'Population 2016'!AT238*'Prevalence Rates'!AT238","v":0},{"$f":"'Population 2016'!AU238*'Prevalence Rates'!AU238","v":0},{"$f":"'Population 2016'!AV238*'Prevalence Rates'!AV238","v":95.457186880538487},{"$f":"'Population 2016'!AW238*'Prevalence Rates'!AW238","v":239.18376416653538},{"$f":"'Population 2016'!AX238*'Prevalence Rates'!AX238","v":129.76296542070256},{"$f":"'Population 2016'!AY238*'Prevalence Rates'!AY238","v":734.79209253929707},{"$f":"'Population 2016'!AZ238*'Prevalence Rates'!AZ238","v":299.62151657079829},{"$f":"'Population 2016'!BA238*'Prevalence Rates'!BA238","v":18.473101806070506},{"$f":"'Population 2016'!BB238*'Prevalence Rates'!BB238","v":230.0426322305313},{"$f":"'Population 2016'!BC238*'Prevalence Rates'!BC238","v":0},236]
[null,"Male 40-44",{"$f":"'Population 2016'!C239*'Prevalence Rates'!C239","v":724.57531960603455},{"$f":"'Population 2016'!D239*'Prevalence Rates'!D239","v":1338.2711018031623},{"$f":"'Population 2016'!E239*'Prevalence Rates'!E239","v":620.05850061055685},{"$f":"'Population 2016'!F239*'Prevalence Rates'!F239","v":143.78423924678899},{"$f":"'Population 2016'!G239*'Prevalence Rates'!G239","v":76.415058164030441},{"$f":"'Population 2016'!H239*'Prevalence Rates'!H239","v":359.6343163607786},{"$f":"'Population 2016'!I239*'Prevalence Rates'!I239","v":94.955986655482363},{"$f":"'Population 2016'!J239*'Prevalence Rates'!J239","v":274.19073060876588},{"$f":"'Population 2016'!K239*'Prevalence Rates'!K239","v":60.143944668357086},{"$f":"'Population 2016'!L239*'Prevalence Rates'!L239","v":77.136988025167767},{"$f":"'Population 2016'!M239*'Prevalence Rates'!M239","v":81.996609423444326},{"$f":"'Population 2016'!N239*'Prevalence Rates'!N239","v":105.40646220723228},{"$f":"'Population 2016'!O239*'Prevalence Rates'!O239","v":114.22681320579069},{"$f":"'Population 2016'!P239*'Prevalence Rates'!P239","v":405.72140606084292},{"$f":"'Population 2016'!Q239*'Prevalence Rates'!Q239","v":155.4161078047124},{"$f":"'Population 2016'!R239*'Prevalence Rates'!R239","v":399.45050207980569},{"$f":"'Population 2016'!S239*'Prevalence Rates'!S239","v":3001.673275846219},{"$f":"'Population 2016'!T239*'Prevalence Rates'!T239","v":1991.716836734799},{"$f":"'Population 2016'!U239*'Prevalence Rates'!U239","v":0},{"$f":"'Population 2016'!V239*'Prevalence Rates'!V239","v":254.99424135100972},{"$f":"'Population 2016'!W239*'Prevalence Rates'!W239","v":541.46925323918117},{"$f":"'Population 2016'!X239*'Prevalence Rates'!X239","v":543.76669169127103},{"$f":"'Population 2016'!Y239*'Prevalence Rates'!Y239","v":641.81159724162319},{"$f":"'Population 2016'!Z239*'Prevalence Rates'!Z239","v":446.56971750795628},{"$f":"'Population 2016'!AA239*'Prevalence Rates'!AA239","v":1893.5167876925432},{"$f":"'Population 2016'!AB239*'Prevalence Rates'!AB239","v":1377.4230234248043},{"$f":"'Population 2016'!AC239*'Prevalence Rates'!AC239","v":1430.7929982039639},{"$f":"'Population 2016'!AD239*'Prevalence Rates'!AD239","v":231.02744990116506},{"$f":"'Population 2016'!AE239*'Prevalence Rates'!AE239","v":143.1866829593491},{"$f":"'Population 2016'!AF239*'Prevalence Rates'!AF239","v":53.068422674582663},{"$f":"'Population 2016'!AG239*'Prevalence Rates'!AG239","v":155.42596988491547},{"$f":"'Population 2016'!AH239*'Prevalence Rates'!AH239","v":485.12481131155545},{"$f":"'Population 2016'!AI239*'Prevalence Rates'!AI239","v":2411.2563785470411},{"$f":"'Population 2016'!AJ239*'Prevalence Rates'!AJ239","v":120.56830621838571},{"$f":"'Population 2016'!AK239*'Prevalence Rates'!AK239","v":96.587890311308911},{"$f":"'Population 2016'!AL239*'Prevalence Rates'!AL239","v":101.68863971589934},{"$f":"'Population 2016'!AM239*'Prevalence Rates'!AM239","v":193.86566745743028},{"$f":"'Population 2016'!AN239*'Prevalence Rates'!AN239","v":11.455825644595212},{"$f":"'Population 2016'!AO239*'Prevalence Rates'!AO239","v":11.455825644595212},{"$f":"'Population 2016'!AP239*'Prevalence Rates'!AP239","v":140.13823042365539},{"$f":"'Population 2016'!AQ239*'Prevalence Rates'!AQ239","v":189.35173408916867},{"$f":"'Population 2016'!AR239*'Prevalence Rates'!AR239","v":7852.8035186057932},{"$f":"'Population 2016'!AS239*'Prevalence Rates'!AS239","v":94.955986655482363},{"$f":"'Population 2016'!AT239*'Prevalence Rates'!AT239","v":0},{"$f":"'Population 2016'!AU239*'Prevalence Rates'!AU239","v":0},{"$f":"'Population 2016'!AV239*'Prevalence Rates'!AV239","v":132.24092556027315},{"$f":"'Population 2016'!AW239*'Prevalence Rates'!AW239","v":287.32864423226312},{"$f":"'Population 2016'!AX239*'Prevalence Rates'!AX239","v":181.16993426974179},{"$f":"'Population 2016'!AY239*'Prevalence Rates'!AY239","v":864.14611716340255},{"$f":"'Population 2016'!AZ239*'Prevalence Rates'!AZ239","v":336.46592580108205},{"$f":"'Population 2016'!BA239*'Prevalence Rates'!BA239","v":19.959443330696871},{"$f":"'Population 2016'!BB239*'Prevalence Rates'!BB239","v":298.61770864597509},{"$f":"'Population 2016'!BC239*'Prevalence Rates'!BC239","v":0},237]
[null,"Male 45-49",{"$f":"'Population 2016'!C240*'Prevalence Rates'!C240","v":719.22495295882641},{"$f":"'Population 2016'!D240*'Prevalence Rates'!D240","v":1352.2246556213017},{"$f":"'Population 2016'!E240*'Prevalence Rates'!E240","v":636.02858351516147},{"$f":"'Population 2016'!F240*'Prevalence Rates'!F240","v":156.18976530080431},{"$f":"'Population 2016'!G240*'Prevalence Rates'!G240","v":63.57182292171813},{"$f":"'Population 2016'!H240*'Prevalence Rates'!H240","v":436.85422098908015},{"$f":"'Population 2016'!I240*'Prevalence Rates'!I240","v":124.82760787237177},{"$f":"'Population 2016'!J240*'Prevalence Rates'!J240","v":345.77538335961202},{"$f":"'Population 2016'!K240*'Prevalence Rates'!K240","v":84.024199304528182},{"$f":"'Population 2016'!L240*'Prevalence Rates'!L240","v":102.4980826021889},{"$f":"'Population 2016'!M240*'Prevalence Rates'!M240","v":108.95545005000004},{"$f":"'Population 2016'!N240*'Prevalence Rates'!N240","v":143.48100407886719},{"$f":"'Population 2016'!O240*'Prevalence Rates'!O240","v":135.48118729224748},{"$f":"'Population 2016'!P240*'Prevalence Rates'!P240","v":471.46802078655065},{"$f":"'Population 2016'!Q240*'Prevalence Rates'!Q240","v":169.44366090548328},{"$f":"'Population 2016'!R240*'Prevalence Rates'!R240","v":452.93804606036235},{"$f":"'Population 2016'!S240*'Prevalence Rates'!S240","v":3231.147147766867},{"$f":"'Population 2016'!T240*'Prevalence Rates'!T240","v":2053.0986025195371},{"$f":"'Population 2016'!U240*'Prevalence Rates'!U240","v":0},{"$f":"'Population 2016'!V240*'Prevalence Rates'!V240","v":272.1769506545935},{"$f":"'Population 2016'!W240*'Prevalence Rates'!W240","v":585.44890372213399},{"$f":"'Population 2016'!X240*'Prevalence Rates'!X240","v":587.93294656500814},{"$f":"'Population 2016'!Y240*'Prevalence Rates'!Y240","v":741.55074513609179},{"$f":"'Population 2016'!Z240*'Prevalence Rates'!Z240","v":455.05722152487681},{"$f":"'Population 2016'!AA240*'Prevalence Rates'!AA240","v":2155.428524692883},{"$f":"'Population 2016'!AB240*'Prevalence Rates'!AB240","v":1406.2605452719342},{"$f":"'Population 2016'!AC240*'Prevalence Rates'!AC240","v":1623.1963595020209},{"$f":"'Population 2016'!AD240*'Prevalence Rates'!AD240","v":250.99909394954244},{"$f":"'Population 2016'!AE240*'Prevalence Rates'!AE240","v":173.5765738636548},{"$f":"'Population 2016'!AF240*'Prevalence Rates'!AF240","v":61.595612340534757},{"$f":"'Population 2016'!AG240*'Prevalence Rates'!AG240","v":188.41352271368976},{"$f":"'Population 2016'!AH240*'Prevalence Rates'!AH240","v":557.12322870236153},{"$f":"'Population 2016'!AI240*'Prevalence Rates'!AI240","v":2567.9569627089859},{"$f":"'Population 2016'!AJ240*'Prevalence Rates'!AJ240","v":145.16591333113783},{"$f":"'Population 2016'!AK240*'Prevalence Rates'!AK240","v":109.8637806945854},{"$f":"'Population 2016'!AL240*'Prevalence Rates'!AL240","v":134.45369884025556},{"$f":"'Population 2016'!AM240*'Prevalence Rates'!AM240","v":220.92437296408795},{"$f":"'Population 2016'!AN240*'Prevalence Rates'!AN240","v":16.663234851022931},{"$f":"'Population 2016'!AO240*'Prevalence Rates'!AO240","v":16.663234851022931},{"$f":"'Population 2016'!AP240*'Prevalence Rates'!AP240","v":167.74268912777742},{"$f":"'Population 2016'!AQ240*'Prevalence Rates'!AQ240","v":239.23820893147061},{"$f":"'Population 2016'!AR240*'Prevalence Rates'!AR240","v":8661.2921863752163},{"$f":"'Population 2016'!AS240*'Prevalence Rates'!AS240","v":124.82760787237177},{"$f":"'Population 2016'!AT240*'Prevalence Rates'!AT240","v":0},{"$f":"'Population 2016'!AU240*'Prevalence Rates'!AU240","v":0},{"$f":"'Population 2016'!AV240*'Prevalence Rates'!AV240","v":155.21270905546268},{"$f":"'Population 2016'!AW240*'Prevalence Rates'!AW240","v":331.80130187017824},{"$f":"'Population 2016'!AX240*'Prevalence Rates'!AX240","v":221.9408869678912},{"$f":"'Population 2016'!AY240*'Prevalence Rates'!AY240","v":981.1517028439124},{"$f":"'Population 2016'!AZ240*'Prevalence Rates'!AZ240","v":406.31608183062747},{"$f":"'Population 2016'!BA240*'Prevalence Rates'!BA240","v":34.473577473727261},{"$f":"'Population 2016'!BB240*'Prevalence Rates'!BB240","v":352.69273555762823},{"$f":"'Population 2016'!BC240*'Prevalence Rates'!BC240","v":0},238]
[null,"Male 50-54",{"$f":"'Population 2016'!C241*'Prevalence Rates'!C241","v":734.64552146447636},{"$f":"'Population 2016'!D241*'Prevalence Rates'!D241","v":1345.6374750793802},{"$f":"'Population 2016'!E241*'Prevalence Rates'!E241","v":618.99210359957681},{"$f":"'Population 2016'!F241*'Prevalence Rates'!F241","v":184.09624691272089},{"$f":"'Population 2016'!G241*'Prevalence Rates'!G241","v":69.709792031401264},{"$f":"'Population 2016'!H241*'Prevalence Rates'!H241","v":475.97921396984776},{"$f":"'Population 2016'!I241*'Prevalence Rates'!I241","v":103.1509574035168},{"$f":"'Population 2016'!J241*'Prevalence Rates'!J241","v":333.24535790247882},{"$f":"'Population 2016'!K241*'Prevalence Rates'!K241","v":80.674397338899141},{"$f":"'Population 2016'!L241*'Prevalence Rates'!L241","v":119.36485568862506},{"$f":"'Population 2016'!M241*'Prevalence Rates'!M241","v":126.88482790632915},{"$f":"'Population 2016'!N241*'Prevalence Rates'!N241","v":141.64855191949468},{"$f":"'Population 2016'!O241*'Prevalence Rates'!O241","v":123.82187685401621},{"$f":"'Population 2016'!P241*'Prevalence Rates'!P241","v":526.23102173686743},{"$f":"'Population 2016'!Q241*'Prevalence Rates'!Q241","v":195.47341088210109},{"$f":"'Population 2016'!R241*'Prevalence Rates'!R241","v":442.46285746369233},{"$f":"'Population 2016'!S241*'Prevalence Rates'!S241","v":3150.1935693662745},{"$f":"'Population 2016'!T241*'Prevalence Rates'!T241","v":2034.8554831089482},{"$f":"'Population 2016'!U241*'Prevalence Rates'!U241","v":0},{"$f":"'Population 2016'!V241*'Prevalence Rates'!V241","v":264.32966376166894},{"$f":"'Population 2016'!W241*'Prevalence Rates'!W241","v":548.48405230546302},{"$f":"'Population 2016'!X241*'Prevalence Rates'!X241","v":550.8112543480288},{"$f":"'Population 2016'!Y241*'Prevalence Rates'!Y241","v":717.44680122153432},{"$f":"'Population 2016'!Z241*'Prevalence Rates'!Z241","v":447.56475395497569},{"$f":"'Population 2016'!AA241*'Prevalence Rates'!AA241","v":2277.2222554561986},{"$f":"'Population 2016'!AB241*'Prevalence Rates'!AB241","v":1385.4659241630209},{"$f":"'Population 2016'!AC241*'Prevalence Rates'!AC241","v":1721.8759939282127},{"$f":"'Population 2016'!AD241*'Prevalence Rates'!AD241","v":256.47942351175953},{"$f":"'Population 2016'!AE241*'Prevalence Rates'!AE241","v":172.96753325360689},{"$f":"'Population 2016'!AF241*'Prevalence Rates'!AF241","v":91.22118367387155},{"$f":"'Population 2016'!AG241*'Prevalence Rates'!AG241","v":187.75242263399261},{"$f":"'Population 2016'!AH241*'Prevalence Rates'!AH241","v":582.41320170086658},{"$f":"'Population 2016'!AI241*'Prevalence Rates'!AI241","v":2552.4357555563051},{"$f":"'Population 2016'!AJ241*'Prevalence Rates'!AJ241","v":133.90304074510126},{"$f":"'Population 2016'!AK241*'Prevalence Rates'!AK241","v":97.510282115733972},{"$f":"'Population 2016'!AL241*'Prevalence Rates'!AL241","v":149.23507799394116},{"$f":"'Population 2016'!AM241*'Prevalence Rates'!AM241","v":238.66930251943637},{"$f":"'Population 2016'!AN241*'Prevalence Rates'!AN241","v":15.437996994330069},{"$f":"'Population 2016'!AO241*'Prevalence Rates'!AO241","v":15.437996994330069},{"$f":"'Population 2016'!AP241*'Prevalence Rates'!AP241","v":209.91909431604753},{"$f":"'Population 2016'!AQ241*'Prevalence Rates'!AQ241","v":271.74447758495961},{"$f":"'Population 2016'!AR241*'Prevalence Rates'!AR241","v":8812.0324274297909},{"$f":"'Population 2016'!AS241*'Prevalence Rates'!AS241","v":103.1509574035168},{"$f":"'Population 2016'!AT241*'Prevalence Rates'!AT241","v":0},{"$f":"'Population 2016'!AU241*'Prevalence Rates'!AU241","v":0},{"$f":"'Population 2016'!AV241*'Prevalence Rates'!AV241","v":189.63040562713181},{"$f":"'Population 2016'!AW241*'Prevalence Rates'!AW241","v":338.62303052085008},{"$f":"'Population 2016'!AX241*'Prevalence Rates'!AX241","v":214.14175941379864},{"$f":"'Population 2016'!AY241*'Prevalence Rates'!AY241","v":1011.0889741454249},{"$f":"'Population 2016'!AZ241*'Prevalence Rates'!AZ241","v":464.1169385893615},{"$f":"'Population 2016'!BA241*'Prevalence Rates'!BA241","v":36.771815971975741},{"$f":"'Population 2016'!BB241*'Prevalence Rates'!BB241","v":339.29328291771833},{"$f":"'Population 2016'!BC241*'Prevalence Rates'!BC241","v":0},239]
[null,"Male 55-59",{"$f":"'Population 2016'!C242*'Prevalence Rates'!C242","v":940.89890544732771},{"$f":"'Population 2016'!D242*'Prevalence Rates'!D242","v":1645.566853750885},{"$f":"'Population 2016'!E242*'Prevalence Rates'!E242","v":725.65102534118159},{"$f":"'Population 2016'!F242*'Prevalence Rates'!F242","v":217.01568053187981},{"$f":"'Population 2016'!G242*'Prevalence Rates'!G242","v":82.166972788912759},{"$f":"'Population 2016'!H242*'Prevalence Rates'!H242","v":658.95275208858129},{"$f":"'Population 2016'!I242*'Prevalence Rates'!I242","v":118.52126416493334},{"$f":"'Population 2016'!J242*'Prevalence Rates'!J242","v":386.99168090400724},{"$f":"'Population 2016'!K242*'Prevalence Rates'!K242","v":91.696520343081346},{"$f":"'Population 2016'!L242*'Prevalence Rates'!L242","v":145.89503902052175},{"$f":"'Population 2016'!M242*'Prevalence Rates'!M242","v":155.08640974522774},{"$f":"'Population 2016'!N242*'Prevalence Rates'!N242","v":203.55800219101283},{"$f":"'Population 2016'!O242*'Prevalence Rates'!O242","v":171.94836579807517},{"$f":"'Population 2016'!P242*'Prevalence Rates'!P242","v":653.90441133807371},{"$f":"'Population 2016'!Q242*'Prevalence Rates'!Q242","v":202.63806432709563},{"$f":"'Population 2016'!R242*'Prevalence Rates'!R242","v":607.73553748413974},{"$f":"'Population 2016'!S242*'Prevalence Rates'!S242","v":3898.0078377971899},{"$f":"'Population 2016'!T242*'Prevalence Rates'!T242","v":2557.8844511548468},{"$f":"'Population 2016'!U242*'Prevalence Rates'!U242","v":0},{"$f":"'Population 2016'!V242*'Prevalence Rates'!V242","v":298.35939999987329},{"$f":"'Population 2016'!W242*'Prevalence Rates'!W242","v":717.46991566007273},{"$f":"'Population 2016'!X242*'Prevalence Rates'!X242","v":720.51411985559173},{"$f":"'Population 2016'!Y242*'Prevalence Rates'!Y242","v":821.3458039704293},{"$f":"'Population 2016'!Z242*'Prevalence Rates'!Z242","v":535.24372005311295},{"$f":"'Population 2016'!AA242*'Prevalence Rates'!AA242","v":2864.9625771019405},{"$f":"'Population 2016'!AB242*'Prevalence Rates'!AB242","v":1684.1690556979177},{"$f":"'Population 2016'!AC242*'Prevalence Rates'!AC242","v":2179.0868979030952},{"$f":"'Population 2016'!AD242*'Prevalence Rates'!AD242","v":312.83207458178805},{"$f":"'Population 2016'!AE242*'Prevalence Rates'!AE242","v":213.61917003622526},{"$f":"'Population 2016'!AF242*'Prevalence Rates'!AF242","v":110.97195144002288},{"$f":"'Population 2016'!AG242*'Prevalence Rates'!AG242","v":231.87887310942924},{"$f":"'Population 2016'!AH242*'Prevalence Rates'!AH242","v":721.34375957129066},{"$f":"'Population 2016'!AI242*'Prevalence Rates'!AI242","v":3117.8839123302764},{"$f":"'Population 2016'!AJ242*'Prevalence Rates'!AJ242","v":159.65423250013595},{"$f":"'Population 2016'!AK242*'Prevalence Rates'!AK242","v":110.68112160066137},{"$f":"'Population 2016'!AL242*'Prevalence Rates'!AL242","v":179.77426424949618},{"$f":"'Population 2016'!AM242*'Prevalence Rates'!AM242","v":282.01405681981828},{"$f":"'Population 2016'!AN242*'Prevalence Rates'!AN242","v":24.38210452198798},{"$f":"'Population 2016'!AO242*'Prevalence Rates'!AO242","v":24.38210452198798},{"$f":"'Population 2016'!AP242*'Prevalence Rates'!AP242","v":234.67179258775874},{"$f":"'Population 2016'!AQ242*'Prevalence Rates'!AQ242","v":350.93796172475771},{"$f":"'Population 2016'!AR242*'Prevalence Rates'!AR242","v":10924.469335141925},{"$f":"'Population 2016'!AS242*'Prevalence Rates'!AS242","v":118.52126416493334},{"$f":"'Population 2016'!AT242*'Prevalence Rates'!AT242","v":0},{"$f":"'Population 2016'!AU242*'Prevalence Rates'!AU242","v":0},{"$f":"'Population 2016'!AV242*'Prevalence Rates'!AV242","v":282.98253984750198},{"$f":"'Population 2016'!AW242*'Prevalence Rates'!AW242","v":433.90948867574542},{"$f":"'Population 2016'!AX242*'Prevalence Rates'!AX242","v":250.26672852476773},{"$f":"'Population 2016'!AY242*'Prevalence Rates'!AY242","v":1281.6267186166576},{"$f":"'Population 2016'!AZ242*'Prevalence Rates'!AZ242","v":569.89436791222317},{"$f":"'Population 2016'!BA242*'Prevalence Rates'!BA242","v":40.153134061060733},{"$f":"'Population 2016'!BB242*'Prevalence Rates'!BB242","v":394.94907422045588},{"$f":"'Population 2016'!BC242*'Prevalence Rates'!BC242","v":0},240]
[null,"Male 60-64",{"$f":"'Population 2016'!C243*'Prevalence Rates'!C243","v":833.83676123237865},{"$f":"'Population 2016'!D243*'Prevalence Rates'!D243","v":1483.1144738153755},{"$f":"'Population 2016'!E243*'Prevalence Rates'!E243","v":664.45445553740853},{"$f":"'Population 2016'!F243*'Prevalence Rates'!F243","v":201.38819266749172},{"$f":"'Population 2016'!G243*'Prevalence Rates'!G243","v":67.825101174847987},{"$f":"'Population 2016'!H243*'Prevalence Rates'!H243","v":618.5324544089209},{"$f":"'Population 2016'!I243*'Prevalence Rates'!I243","v":124.9737112111618},{"$f":"'Population 2016'!J243*'Prevalence Rates'!J243","v":367.73293997638996},{"$f":"'Population 2016'!K243*'Prevalence Rates'!K243","v":102.35005797630241},{"$f":"'Population 2016'!L243*'Prevalence Rates'!L243","v":138.82134015892072},{"$f":"'Population 2016'!M243*'Prevalence Rates'!M243","v":147.56706866667125},{"$f":"'Population 2016'!N243*'Prevalence Rates'!N243","v":165.59381037133929},{"$f":"'Population 2016'!O243*'Prevalence Rates'!O243","v":149.06429493400603},{"$f":"'Population 2016'!P243*'Prevalence Rates'!P243","v":578.00759237221575},{"$f":"'Population 2016'!Q243*'Prevalence Rates'!Q243","v":171.25304426296634},{"$f":"'Population 2016'!R243*'Prevalence Rates'!R243","v":514.30938999551563},{"$f":"'Population 2016'!S243*'Prevalence Rates'!S243","v":3322.1270712660835},{"$f":"'Population 2016'!T243*'Prevalence Rates'!T243","v":2200.392074475516},{"$f":"'Population 2016'!U243*'Prevalence Rates'!U243","v":0},{"$f":"'Population 2016'!V243*'Prevalence Rates'!V243","v":242.90958698102892},{"$f":"'Population 2016'!W243*'Prevalence Rates'!W243","v":617.54766377332271},{"$f":"'Population 2016'!X243*'Prevalence Rates'!X243","v":620.1679007309408},{"$f":"'Population 2016'!Y243*'Prevalence Rates'!Y243","v":724.71688585626111},{"$f":"'Population 2016'!Z243*'Prevalence Rates'!Z243","v":476.37291807196249},{"$f":"'Population 2016'!AA243*'Prevalence Rates'!AA243","v":2481.3475555801424},{"$f":"'Population 2016'!AB243*'Prevalence Rates'!AB243","v":1524.1756443041552},{"$f":"'Population 2016'!AC243*'Prevalence Rates'!AC243","v":1881.3040015635195},{"$f":"'Population 2016'!AD243*'Prevalence Rates'!AD243","v":280.86165244210196},{"$f":"'Population 2016'!AE243*'Prevalence Rates'!AE243","v":197.29335263708367},{"$f":"'Population 2016'!AF243*'Prevalence Rates'!AF243","v":92.089289545778158},{"$f":"'Population 2016'!AG243*'Prevalence Rates'!AG243","v":214.15756026816456},{"$f":"'Population 2016'!AH243*'Prevalence Rates'!AH243","v":630.09858970282096},{"$f":"'Population 2016'!AI243*'Prevalence Rates'!AI243","v":2623.6475177107718},{"$f":"'Population 2016'!AJ243*'Prevalence Rates'!AJ243","v":134.40975983985805},{"$f":"'Population 2016'!AK243*'Prevalence Rates'!AK243","v":105.06848865945136},{"$f":"'Population 2016'!AL243*'Prevalence Rates'!AL243","v":183.64870959970082},{"$f":"'Population 2016'!AM243*'Prevalence Rates'!AM243","v":233.88301281712202},{"$f":"'Population 2016'!AN243*'Prevalence Rates'!AN243","v":18.036077317634945},{"$f":"'Population 2016'!AO243*'Prevalence Rates'!AO243","v":18.036077317634945},{"$f":"'Population 2016'!AP243*'Prevalence Rates'!AP243","v":235.45928182463041},{"$f":"'Population 2016'!AQ243*'Prevalence Rates'!AQ243","v":286.36969932890162},{"$f":"'Population 2016'!AR243*'Prevalence Rates'!AR243","v":9598.4279609542773},{"$f":"'Population 2016'!AS243*'Prevalence Rates'!AS243","v":124.9737112111618},{"$f":"'Population 2016'!AT243*'Prevalence Rates'!AT243","v":0},{"$f":"'Population 2016'!AU243*'Prevalence Rates'!AU243","v":0},{"$f":"'Population 2016'!AV243*'Prevalence Rates'!AV243","v":265.7311978461035},{"$f":"'Population 2016'!AW243*'Prevalence Rates'!AW243","v":392.32649601098649},{"$f":"'Population 2016'!AX243*'Prevalence Rates'!AX243","v":225.66526613337672},{"$f":"'Population 2016'!AY243*'Prevalence Rates'!AY243","v":1138.6819684625771},{"$f":"'Population 2016'!AZ243*'Prevalence Rates'!AZ243","v":522.81107044053851},{"$f":"'Population 2016'!BA243*'Prevalence Rates'!BA243","v":39.583586060194619},{"$f":"'Population 2016'!BB243*'Prevalence Rates'!BB243","v":293.19506005300565},{"$f":"'Population 2016'!BC243*'Prevalence Rates'!BC243","v":0},241]
[null,"Male 65-69",{"$f":"'Population 2016'!C244*'Prevalence Rates'!C244","v":681.90072111500763},{"$f":"'Population 2016'!D244*'Prevalence Rates'!D244","v":1246.6282966745825},{"$f":"'Population 2016'!E244*'Prevalence Rates'!E244","v":572.48394520243971},{"$f":"'Population 2016'!F244*'Prevalence Rates'!F244","v":222.2579871111412},{"$f":"'Population 2016'!G244*'Prevalence Rates'!G244","v":66.875405197268563},{"$f":"'Population 2016'!H244*'Prevalence Rates'!H244","v":635.84245424677056},{"$f":"'Population 2016'!I244*'Prevalence Rates'!I244","v":126.5792043969154},{"$f":"'Population 2016'!J244*'Prevalence Rates'!J244","v":376.40597733965268},{"$f":"'Population 2016'!K244*'Prevalence Rates'!K244","v":107.33024475234411},{"$f":"'Population 2016'!L244*'Prevalence Rates'!L244","v":139.56989568525682},{"$f":"'Population 2016'!M244*'Prevalence Rates'!M244","v":148.36278310531014},{"$f":"'Population 2016'!N244*'Prevalence Rates'!N244","v":151.76876776822675},{"$f":"'Population 2016'!O244*'Prevalence Rates'!O244","v":144.62799236952958},{"$f":"'Population 2016'!P244*'Prevalence Rates'!P244","v":534.29892587574807},{"$f":"'Population 2016'!Q244*'Prevalence Rates'!Q244","v":160.28200369204728},{"$f":"'Population 2016'!R244*'Prevalence Rates'!R244","v":428.02196444796755},{"$f":"'Population 2016'!S244*'Prevalence Rates'!S244","v":3137.7762480496758},{"$f":"'Population 2016'!T244*'Prevalence Rates'!T244","v":2028.6944972431563},{"$f":"'Population 2016'!U244*'Prevalence Rates'!U244","v":0},{"$f":"'Population 2016'!V244*'Prevalence Rates'!V244","v":218.15458538586432},{"$f":"'Population 2016'!W244*'Prevalence Rates'!W244","v":630.2532830777775},{"$f":"'Population 2016'!X244*'Prevalence Rates'!X244","v":632.92742961229771},{"$f":"'Population 2016'!Y244*'Prevalence Rates'!Y244","v":699.9487837578306},{"$f":"'Population 2016'!Z244*'Prevalence Rates'!Z244","v":391.14069485561242},{"$f":"'Population 2016'!AA244*'Prevalence Rates'!AA244","v":2116.6712183035397},{"$f":"'Population 2016'!AB244*'Prevalence Rates'!AB244","v":1291.8419956707503},{"$f":"'Population 2016'!AC244*'Prevalence Rates'!AC244","v":1640.8883928746936},{"$f":"'Population 2016'!AD244*'Prevalence Rates'!AD244","v":273.3048584301597},{"$f":"'Population 2016'!AE244*'Prevalence Rates'!AE244","v":191.17451286687896},{"$f":"'Population 2016'!AF244*'Prevalence Rates'!AF244","v":94.306894541070577},{"$f":"'Population 2016'!AG244*'Prevalence Rates'!AG244","v":207.515695353084},{"$f":"'Population 2016'!AH244*'Prevalence Rates'!AH244","v":505.40857622397959},{"$f":"'Population 2016'!AI244*'Prevalence Rates'!AI244","v":2408.0108455434224},{"$f":"'Population 2016'!AJ244*'Prevalence Rates'!AJ244","v":134.40971175750423},{"$f":"'Population 2016'!AK244*'Prevalence Rates'!AK244","v":97.383626259169688},{"$f":"'Population 2016'!AL244*'Prevalence Rates'!AL244","v":180.96199895704783},{"$f":"'Population 2016'!AM244*'Prevalence Rates'!AM244","v":188.35222914811598},{"$f":"'Population 2016'!AN244*'Prevalence Rates'!AN244","v":19.461456747774967},{"$f":"'Population 2016'!AO244*'Prevalence Rates'!AO244","v":19.461456747774967},{"$f":"'Population 2016'!AP244*'Prevalence Rates'!AP244","v":255.64553419101568},{"$f":"'Population 2016'!AQ244*'Prevalence Rates'!AQ244","v":259.11134103215022},{"$f":"'Population 2016'!AR244*'Prevalence Rates'!AR244","v":8790.5865991906776},{"$f":"'Population 2016'!AS244*'Prevalence Rates'!AS244","v":126.5792043969154},{"$f":"'Population 2016'!AT244*'Prevalence Rates'!AT244","v":0},{"$f":"'Population 2016'!AU244*'Prevalence Rates'!AU244","v":0},{"$f":"'Population 2016'!AV244*'Prevalence Rates'!AV244","v":287.47821545230391},{"$f":"'Population 2016'!AW244*'Prevalence Rates'!AW244","v":313.88582114659295},{"$f":"'Population 2016'!AX244*'Prevalence Rates'!AX244","v":228.93910515608175},{"$f":"'Population 2016'!AY244*'Prevalence Rates'!AY244","v":1173.9607962261889},{"$f":"'Population 2016'!AZ244*'Prevalence Rates'!AZ244","v":544.3313546850369},{"$f":"'Population 2016'!BA244*'Prevalence Rates'!BA244","v":25.548095904231559},{"$f":"'Population 2016'!BB244*'Prevalence Rates'!BB244","v":248.2465717067746},{"$f":"'Population 2016'!BC244*'Prevalence Rates'!BC244","v":0},242]
[null,"Male 70-74",{"$f":"'Population 2016'!C245*'Prevalence Rates'!C245","v":445.58946898695598},{"$f":"'Population 2016'!D245*'Prevalence Rates'!D245","v":823.38709103839517},{"$f":"'Population 2016'!E245*'Prevalence Rates'!E245","v":381.65596346829312},{"$f":"'Population 2016'!F245*'Prevalence Rates'!F245","v":164.71634873021998},{"$f":"'Population 2016'!G245*'Prevalence Rates'!G245","v":55.821619214248969},{"$f":"'Population 2016'!H245*'Prevalence Rates'!H245","v":480.96580901769056},{"$f":"'Population 2016'!I245*'Prevalence Rates'!I245","v":81.664002836719618},{"$f":"'Population 2016'!J245*'Prevalence Rates'!J245","v":256.09049529715656},{"$f":"'Population 2016'!K245*'Prevalence Rates'!K245","v":69.324781036759973},{"$f":"'Population 2016'!L245*'Prevalence Rates'!L245","v":99.498070166247544},{"$f":"'Population 2016'!M245*'Prevalence Rates'!M245","v":105.76643717468399},{"$f":"'Population 2016'!N245*'Prevalence Rates'!N245","v":118.50438031217705},{"$f":"'Population 2016'!O245*'Prevalence Rates'!O245","v":94.066986907011113},{"$f":"'Population 2016'!P245*'Prevalence Rates'!P245","v":424.36445632802355},{"$f":"'Population 2016'!Q245*'Prevalence Rates'!Q245","v":134.09419600220491},{"$f":"'Population 2016'!R245*'Prevalence Rates'!R245","v":327.83439530488192},{"$f":"'Population 2016'!S245*'Prevalence Rates'!S245","v":2251.1229516975541},{"$f":"'Population 2016'!T245*'Prevalence Rates'!T245","v":1414.9211016825061},{"$f":"'Population 2016'!U245*'Prevalence Rates'!U245","v":0},{"$f":"'Population 2016'!V245*'Prevalence Rates'!V245","v":143.18021713869376},{"$f":"'Population 2016'!W245*'Prevalence Rates'!W245","v":494.3622406297809},{"$f":"'Population 2016'!X245*'Prevalence Rates'!X245","v":496.45980538362392},{"$f":"'Population 2016'!Y245*'Prevalence Rates'!Y245","v":469.01573252822965},{"$f":"'Population 2016'!Z245*'Prevalence Rates'!Z245","v":233.9065803042796},{"$f":"'Population 2016'!AA245*'Prevalence Rates'!AA245","v":1531.8214758087893},{"$f":"'Population 2016'!AB245*'Prevalence Rates'!AB245","v":868.98607218739824},{"$f":"'Population 2016'!AC245*'Prevalence Rates'!AC245","v":1199.6986772190178},{"$f":"'Population 2016'!AD245*'Prevalence Rates'!AD245","v":202.00793883968325},{"$f":"'Population 2016'!AE245*'Prevalence Rates'!AE245","v":135.38328956704012},{"$f":"'Population 2016'!AF245*'Prevalence Rates'!AF245","v":79.798141534752034},{"$f":"'Population 2016'!AG245*'Prevalence Rates'!AG245","v":146.95555935981452},{"$f":"'Population 2016'!AH245*'Prevalence Rates'!AH245","v":354.91121725561464},{"$f":"'Population 2016'!AI245*'Prevalence Rates'!AI245","v":1682.7063739941987},{"$f":"'Population 2016'!AJ245*'Prevalence Rates'!AJ245","v":89.606474505002822},{"$f":"'Population 2016'!AK245*'Prevalence Rates'!AK245","v":77.657731814348537},{"$f":"'Population 2016'!AL245*'Prevalence Rates'!AL245","v":138.3194685097435},{"$f":"'Population 2016'!AM245*'Prevalence Rates'!AM245","v":112.96659824204106},{"$f":"'Population 2016'!AN245*'Prevalence Rates'!AN245","v":12.665392486647201},{"$f":"'Population 2016'!AO245*'Prevalence Rates'!AO245","v":12.665392486647201},{"$f":"'Population 2016'!AP245*'Prevalence Rates'!AP245","v":195.67929777583916},{"$f":"'Population 2016'!AQ245*'Prevalence Rates'!AQ245","v":189.6485128673115},{"$f":"'Population 2016'!AR245*'Prevalence Rates'!AR245","v":6286.9560747746254},{"$f":"'Population 2016'!AS245*'Prevalence Rates'!AS245","v":81.664002836719618},{"$f":"'Population 2016'!AT245*'Prevalence Rates'!AT245","v":0},{"$f":"'Population 2016'!AU245*'Prevalence Rates'!AU245","v":0},{"$f":"'Population 2016'!AV245*'Prevalence Rates'!AV245","v":230.9343016048206},{"$f":"'Population 2016'!AW245*'Prevalence Rates'!AW245","v":241.02800116964403},{"$f":"'Population 2016'!AX245*'Prevalence Rates'!AX245","v":158.71238578305054},{"$f":"'Population 2016'!AY245*'Prevalence Rates'!AY245","v":907.17310213839346},{"$f":"'Population 2016'!AZ245*'Prevalence Rates'!AZ245","v":414.55413665715884},{"$f":"'Population 2016'!BA245*'Prevalence Rates'!BA245","v":12.905739168116973},{"$f":"'Population 2016'!BB245*'Prevalence Rates'!BB245","v":158.66062784661415},{"$f":"'Population 2016'!BC245*'Prevalence Rates'!BC245","v":0},243]
[null,"Male 75-79",{"$f":"'Population 2016'!C246*'Prevalence Rates'!C246","v":211.92338171980137},{"$f":"'Population 2016'!D246*'Prevalence Rates'!D246","v":379.04104582484956},{"$f":"'Population 2016'!E246*'Prevalence Rates'!E246","v":170.68520760564633},{"$f":"'Population 2016'!F246*'Prevalence Rates'!F246","v":67.929678433548972},{"$f":"'Population 2016'!G246*'Prevalence Rates'!G246","v":21.846953758060938},{"$f":"'Population 2016'!H246*'Prevalence Rates'!H246","v":209.92197575200501},{"$f":"'Population 2016'!I246*'Prevalence Rates'!I246","v":34.881878556038075},{"$f":"'Population 2016'!J246*'Prevalence Rates'!J246","v":129.0503523879909},{"$f":"'Population 2016'!K246*'Prevalence Rates'!K246","v":26.716338325203331},{"$f":"'Population 2016'!L246*'Prevalence Rates'!L246","v":53.192630268134742},{"$f":"'Population 2016'!M246*'Prevalence Rates'!M246","v":56.543759874041847},{"$f":"'Population 2016'!N246*'Prevalence Rates'!N246","v":61.164407535200048},{"$f":"'Population 2016'!O246*'Prevalence Rates'!O246","v":39.839170739610189},{"$f":"'Population 2016'!P246*'Prevalence Rates'!P246","v":222.58219256784167},{"$f":"'Population 2016'!Q246*'Prevalence Rates'!Q246","v":64.536875355434844},{"$f":"'Population 2016'!R246*'Prevalence Rates'!R246","v":169.49126449459217},{"$f":"'Population 2016'!S246*'Prevalence Rates'!S246","v":999.79140088568897},{"$f":"'Population 2016'!T246*'Prevalence Rates'!T246","v":662.81308572466617},{"$f":"'Population 2016'!U246*'Prevalence Rates'!U246","v":0},{"$f":"'Population 2016'!V246*'Prevalence Rates'!V246","v":60.435390853066785},{"$f":"'Population 2016'!W246*'Prevalence Rates'!W246","v":196.66002861376327},{"$f":"'Population 2016'!X246*'Prevalence Rates'!X246","v":197.49445145314616},{"$f":"'Population 2016'!Y246*'Prevalence Rates'!Y246","v":220.25934704716784},{"$f":"'Population 2016'!Z246*'Prevalence Rates'!Z246","v":101.79172616896733},{"$f":"'Population 2016'!AA246*'Prevalence Rates'!AA246","v":712.52141125797129},{"$f":"'Population 2016'!AB246*'Prevalence Rates'!AB246","v":402.27647307099011},{"$f":"'Population 2016'!AC246*'Prevalence Rates'!AC246","v":572.81857669491444},{"$f":"'Population 2016'!AD246*'Prevalence Rates'!AD246","v":84.440210160124465},{"$f":"'Population 2016'!AE246*'Prevalence Rates'!AE246","v":57.967674253905948},{"$f":"'Population 2016'!AF246*'Prevalence Rates'!AF246","v":33.71596599589747},{"$f":"'Population 2016'!AG246*'Prevalence Rates'!AG246","v":62.922625251707501},{"$f":"'Population 2016'!AH246*'Prevalence Rates'!AH246","v":151.93696817461162},{"$f":"'Population 2016'!AI246*'Prevalence Rates'!AI246","v":778.50768454909064},{"$f":"'Population 2016'!AJ246*'Prevalence Rates'!AJ246","v":36.029789308862398},{"$f":"'Population 2016'!AK246*'Prevalence Rates'!AK246","v":37.651321704345428},{"$f":"'Population 2016'!AL246*'Prevalence Rates'!AL246","v":56.433763288859772},{"$f":"'Population 2016'!AM246*'Prevalence Rates'!AM246","v":50.527807945355967},{"$f":"'Population 2016'!AN246*'Prevalence Rates'!AN246","v":4.2640939085026073},{"$f":"'Population 2016'!AO246*'Prevalence Rates'!AO246","v":4.2640939085026073},{"$f":"'Population 2016'!AP246*'Prevalence Rates'!AP246","v":93.833914736825989},{"$f":"'Population 2016'!AQ246*'Prevalence Rates'!AQ246","v":75.879124471065268},{"$f":"'Population 2016'!AR246*'Prevalence Rates'!AR246","v":2867.5944714870443},{"$f":"'Population 2016'!AS246*'Prevalence Rates'!AS246","v":34.881878556038075},{"$f":"'Population 2016'!AT246*'Prevalence Rates'!AT246","v":0},{"$f":"'Population 2016'!AU246*'Prevalence Rates'!AU246","v":0},{"$f":"'Population 2016'!AV246*'Prevalence Rates'!AV246","v":105.02796833110934},{"$f":"'Population 2016'!AW246*'Prevalence Rates'!AW246","v":100.86968882558193},{"$f":"'Population 2016'!AX246*'Prevalence Rates'!AX246","v":86.539254227298429},{"$f":"'Population 2016'!AY246*'Prevalence Rates'!AY246","v":393.01412221648604},{"$f":"'Population 2016'!AZ246*'Prevalence Rates'!AZ246","v":194.09893561854832},{"$f":"'Population 2016'!BA246*'Prevalence Rates'!BA246","v":5.2881780077652714},{"$f":"'Population 2016'!BB246*'Prevalence Rates'!BB246","v":69.646697341626776},{"$f":"'Population 2016'!BC246*'Prevalence Rates'!BC246","v":0},244]
[null,"Male 80-84",{"$f":"'Population 2016'!C247*'Prevalence Rates'!C247","v":156.84617190233499},{"$f":"'Population 2016'!D247*'Prevalence Rates'!D247","v":262.46312966909687},{"$f":"'Population 2016'!E247*'Prevalence Rates'!E247","v":110.74887236912413},{"$f":"'Population 2016'!F247*'Prevalence Rates'!F247","v":56.465475775997881},{"$f":"'Population 2016'!G247*'Prevalence Rates'!G247","v":13.177527663592311},{"$f":"'Population 2016'!H247*'Prevalence Rates'!H247","v":150.5919149995604},{"$f":"'Population 2016'!I247*'Prevalence Rates'!I247","v":25.619458826468644},{"$f":"'Population 2016'!J247*'Prevalence Rates'!J247","v":89.829166858307389},{"$f":"'Population 2016'!K247*'Prevalence Rates'!K247","v":17.884490944970825},{"$f":"'Population 2016'!L247*'Prevalence Rates'!L247","v":34.720591461194061},{"$f":"'Population 2016'!M247*'Prevalence Rates'!M247","v":36.907984740934069},{"$f":"'Population 2016'!N247*'Prevalence Rates'!N247","v":47.395168872062598},{"$f":"'Population 2016'!O247*'Prevalence Rates'!O247","v":24.899481712256367},{"$f":"'Population 2016'!P247*'Prevalence Rates'!P247","v":165.79916388332279},{"$f":"'Population 2016'!Q247*'Prevalence Rates'!Q247","v":44.344356072446033},{"$f":"'Population 2016'!R247*'Prevalence Rates'!R247","v":123.56111311720535},{"$f":"'Population 2016'!S247*'Prevalence Rates'!S247","v":737.93656669443817},{"$f":"'Population 2016'!T247*'Prevalence Rates'!T247","v":522.06583875600938},{"$f":"'Population 2016'!U247*'Prevalence Rates'!U247","v":0},{"$f":"'Population 2016'!V247*'Prevalence Rates'!V247","v":44.264840327516481},{"$f":"'Population 2016'!W247*'Prevalence Rates'!W247","v":142.43151574020064},{"$f":"'Population 2016'!X247*'Prevalence Rates'!X247","v":143.03584856075037},{"$f":"'Population 2016'!Y247*'Prevalence Rates'!Y247","v":156.33479113225661},{"$f":"'Population 2016'!Z247*'Prevalence Rates'!Z247","v":67.628749578012545},{"$f":"'Population 2016'!AA247*'Prevalence Rates'!AA247","v":494.66129551865384},{"$f":"'Population 2016'!AB247*'Prevalence Rates'!AB247","v":277.61226991448535},{"$f":"'Population 2016'!AC247*'Prevalence Rates'!AC247","v":403.15579964844153},{"$f":"'Population 2016'!AD247*'Prevalence Rates'!AD247","v":59.819040051833554},{"$f":"'Population 2016'!AE247*'Prevalence Rates'!AE247","v":43.194748959281718},{"$f":"'Population 2016'!AF247*'Prevalence Rates'!AF247","v":23.769756027107714},{"$f":"'Population 2016'!AG247*'Prevalence Rates'!AG247","v":46.886942362075672},{"$f":"'Population 2016'!AH247*'Prevalence Rates'!AH247","v":100.60492374775833},{"$f":"'Population 2016'!AI247*'Prevalence Rates'!AI247","v":578.27161342798138},{"$f":"'Population 2016'!AJ247*'Prevalence Rates'!AJ247","v":22.370143911546435},{"$f":"'Population 2016'!AK247*'Prevalence Rates'!AK247","v":25.274589656204199},{"$f":"'Population 2016'!AL247*'Prevalence Rates'!AL247","v":42.718784959694652},{"$f":"'Population 2016'!AM247*'Prevalence Rates'!AM247","v":27.509584325804916},{"$f":"'Population 2016'!AN247*'Prevalence Rates'!AN247","v":3.1011592061837141},{"$f":"'Population 2016'!AO247*'Prevalence Rates'!AO247","v":3.1011592061837141},{"$f":"'Population 2016'!AP247*'Prevalence Rates'!AP247","v":72.965008374902027},{"$f":"'Population 2016'!AQ247*'Prevalence Rates'!AQ247","v":45.621539712975192},{"$f":"'Population 2016'!AR247*'Prevalence Rates'!AR247","v":2057.8797836959834},{"$f":"'Population 2016'!AS247*'Prevalence Rates'!AS247","v":25.619458826468644},{"$f":"'Population 2016'!AT247*'Prevalence Rates'!AT247","v":0},{"$f":"'Population 2016'!AU247*'Prevalence Rates'!AU247","v":0},{"$f":"'Population 2016'!AV247*'Prevalence Rates'!AV247","v":77.102471734710704},{"$f":"'Population 2016'!AW247*'Prevalence Rates'!AW247","v":73.141765448564612},{"$f":"'Population 2016'!AX247*'Prevalence Rates'!AX247","v":60.80660429413026},{"$f":"'Population 2016'!AY247*'Prevalence Rates'!AY247","v":299.04219682103218},{"$f":"'Population 2016'!AZ247*'Prevalence Rates'!AZ247","v":153.65602150708773},{"$f":"'Population 2016'!BA247*'Prevalence Rates'!BA247","v":3.4703668175959592},{"$f":"'Population 2016'!BB247*'Prevalence Rates'!BB247","v":35.580377989744115},{"$f":"'Population 2016'!BC247*'Prevalence Rates'!BC247","v":0},245]
[null,"Male 85-89",{"$f":"'Population 2016'!C248*'Prevalence Rates'!C248","v":86.522675630206663},{"$f":"'Population 2016'!D248*'Prevalence Rates'!D248","v":142.62884714027842},{"$f":"'Population 2016'!E248*'Prevalence Rates'!E248","v":59.234504613143706},{"$f":"'Population 2016'!F248*'Prevalence Rates'!F248","v":24.639480338617258},{"$f":"'Population 2016'!G248*'Prevalence Rates'!G248","v":9.01620313824737},{"$f":"'Population 2016'!H248*'Prevalence Rates'!H248","v":77.46416570003565},{"$f":"'Population 2016'!I248*'Prevalence Rates'!I248","v":15.765820816288397},{"$f":"'Population 2016'!J248*'Prevalence Rates'!J248","v":37.323386229860112},{"$f":"'Population 2016'!K248*'Prevalence Rates'!K248","v":7.5070702731976304},{"$f":"'Population 2016'!L248*'Prevalence Rates'!L248","v":17.958926617858996},{"$f":"'Population 2016'!M248*'Prevalence Rates'!M248","v":19.090336934965897},{"$f":"'Population 2016'!N248*'Prevalence Rates'!N248","v":27.103659263228458},{"$f":"'Population 2016'!O248*'Prevalence Rates'!O248","v":13.833045395697981},{"$f":"'Population 2016'!P248*'Prevalence Rates'!P248","v":81.352608403781872},{"$f":"'Population 2016'!Q248*'Prevalence Rates'!Q248","v":19.994553407665396},{"$f":"'Population 2016'!R248*'Prevalence Rates'!R248","v":64.482330169037198},{"$f":"'Population 2016'!S248*'Prevalence Rates'!S248","v":390.50954895238613},{"$f":"'Population 2016'!T248*'Prevalence Rates'!T248","v":290.48339374371523},{"$f":"'Population 2016'!U248*'Prevalence Rates'!U248","v":0},{"$f":"'Population 2016'!V248*'Prevalence Rates'!V248","v":17.967278361722556},{"$f":"'Population 2016'!W248*'Prevalence Rates'!W248","v":69.582368928125547},{"$f":"'Population 2016'!X248*'Prevalence Rates'!X248","v":69.877604916146396},{"$f":"'Population 2016'!Y248*'Prevalence Rates'!Y248","v":64.373149289752718},{"$f":"'Population 2016'!Z248*'Prevalence Rates'!Z248","v":33.117171185109235},{"$f":"'Population 2016'!AA248*'Prevalence Rates'!AA248","v":239.56690545298034},{"$f":"'Population 2016'!AB248*'Prevalence Rates'!AB248","v":152.94806675798057},{"$f":"'Population 2016'!AC248*'Prevalence Rates'!AC248","v":200.08962985012892},{"$f":"'Population 2016'!AD248*'Prevalence Rates'!AD248","v":33.463984724648917},{"$f":"'Population 2016'!AE248*'Prevalence Rates'!AE248","v":22.641113766761048},{"$f":"'Population 2016'!AF248*'Prevalence Rates'!AF248","v":11.294848608625651},{"$f":"'Population 2016'!AG248*'Prevalence Rates'!AG248","v":24.576427037370522},{"$f":"'Population 2016'!AH248*'Prevalence Rates'!AH248","v":44.419132999741251},{"$f":"'Population 2016'!AI248*'Prevalence Rates'!AI248","v":311.14907457508519},{"$f":"'Population 2016'!AJ248*'Prevalence Rates'!AJ248","v":11.086089018111508},{"$f":"'Population 2016'!AK248*'Prevalence Rates'!AK248","v":15.503485407671647},{"$f":"'Population 2016'!AL248*'Prevalence Rates'!AL248","v":20.460049638590597},{"$f":"'Population 2016'!AM248*'Prevalence Rates'!AM248","v":12.210886920127692},{"$f":"'Population 2016'!AN248*'Prevalence Rates'!AN248","v":1.9382245038648214},{"$f":"'Population 2016'!AO248*'Prevalence Rates'!AO248","v":1.9382245038648214},{"$f":"'Population 2016'!AP248*'Prevalence Rates'!AP248","v":40.366862670874816},{"$f":"'Population 2016'!AQ248*'Prevalence Rates'!AQ248","v":22.262057179527414},{"$f":"'Population 2016'!AR248*'Prevalence Rates'!AR248","v":1056.005806282968},{"$f":"'Population 2016'!AS248*'Prevalence Rates'!AS248","v":15.765820816288397},{"$f":"'Population 2016'!AT248*'Prevalence Rates'!AT248","v":0},{"$f":"'Population 2016'!AU248*'Prevalence Rates'!AU248","v":0},{"$f":"'Population 2016'!AV248*'Prevalence Rates'!AV248","v":39.868476272845854},{"$f":"'Population 2016'!AW248*'Prevalence Rates'!AW248","v":32.224343384101211},{"$f":"'Population 2016'!AX248*'Prevalence Rates'!AX248","v":25.203896852349644},{"$f":"'Population 2016'!AY248*'Prevalence Rates'!AY248","v":152.20175555333412},{"$f":"'Population 2016'!AZ248*'Prevalence Rates'!AZ248","v":80.615307058296025},{"$f":"'Population 2016'!BA248*'Prevalence Rates'!BA248","v":0.99153337645598838},{"$f":"'Population 2016'!BB248*'Prevalence Rates'!BB248","v":16.086873027277925},{"$f":"'Population 2016'!BC248*'Prevalence Rates'!BC248","v":0},246]
[null,"Male 90+",{"$f":"'Population 2016'!C249*'Prevalence Rates'!C249","v":42.308444911686962},{"$f":"'Population 2016'!D249*'Prevalence Rates'!D249","v":67.243965603807069},{"$f":"'Population 2016'!E249*'Prevalence Rates'!E249","v":26.809929813057931},{"$f":"'Population 2016'!F249*'Prevalence Rates'!F249","v":8.897590122278455},{"$f":"'Population 2016'!G249*'Prevalence Rates'!G249","v":2.4274393064512152},{"$f":"'Population 2016'!H249*'Prevalence Rates'!H249","v":37.6479787498901},{"$f":"'Population 2016'!I249*'Prevalence Rates'!I249","v":4.5326734846829142},{"$f":"'Population 2016'!J249*'Prevalence Rates'!J249","v":15.182394398587165},{"$f":"'Population 2016'!K249*'Prevalence Rates'!K249","v":1.9871656605523138},{"$f":"'Population 2016'!L249*'Prevalence Rates'!L249","v":7.5256454398647223},{"$f":"'Population 2016'!M249*'Prevalence Rates'!M249","v":7.9997602394142806},{"$f":"'Population 2016'!N249*'Prevalence Rates'!N249","v":8.8413006152777314},{"$f":"'Population 2016'!O249*'Prevalence Rates'!O249","v":5.5332181582791922},{"$f":"'Population 2016'!P249*'Prevalence Rates'!P249","v":34.579408493777528},{"$f":"'Population 2016'!Q249*'Prevalence Rates'!Q249","v":12.471850145375447},{"$f":"'Population 2016'!R249*'Prevalence Rates'!R249","v":26.837617863649559},{"$f":"'Population 2016'!S249*'Prevalence Rates'!S249","v":184.18770223867605},{"$f":"'Population 2016'!T249*'Prevalence Rates'!T249","v":140.51069697375149},{"$f":"'Population 2016'!U249*'Prevalence Rates'!U249","v":0},{"$f":"'Population 2016'!V249*'Prevalence Rates'!V249","v":8.1669447098738903},{"$f":"'Population 2016'!W249*'Prevalence Rates'!W249","v":29.72767874394096},{"$f":"'Population 2016'!X249*'Prevalence Rates'!X249","v":29.853812428963952},{"$f":"'Population 2016'!Y249*'Prevalence Rates'!Y249","v":27.364195865330426},{"$f":"'Population 2016'!Z249*'Prevalence Rates'!Z249","v":17.430090097425914},{"$f":"'Population 2016'!AA249*'Prevalence Rates'!AA249","v":100.45331882089255},{"$f":"'Population 2016'!AB249*'Prevalence Rates'!AB249","v":70.709659003689509},{"$f":"'Population 2016'!AC249*'Prevalence Rates'!AC249","v":86.154295166873681},{"$f":"'Population 2016'!AD249*'Prevalence Rates'!AD249","v":12.137196532256084},{"$f":"'Population 2016'!AE249*'Prevalence Rates'!AE249","v":8.9922153967277936},{"$f":"'Population 2016'!AF249*'Prevalence Rates'!AF249","v":7.0803528591384683},{"$f":"'Population 2016'!AG249*'Prevalence Rates'!AG249","v":9.7608504545585042},{"$f":"'Population 2016'!AH249*'Prevalence Rates'!AH249","v":16.620404069439608},{"$f":"'Population 2016'!AI249*'Prevalence Rates'!AI249","v":153.88120899053533},{"$f":"'Population 2016'!AJ249*'Prevalence Rates'!AJ249","v":4.7511810077620744},{"$f":"'Population 2016'!AK249*'Prevalence Rates'!AK249","v":6.1232253290803982},{"$f":"'Population 2016'!AL249*'Prevalence Rates'!AL249","v":9.4430998331956602},{"$f":"'Population 2016'!AM249*'Prevalence Rates'!AM249","v":5.6142008828173298},{"$f":"'Population 2016'!AN249*'Prevalence Rates'!AN249","v":0.77528980154592853},{"$f":"'Population 2016'!AO249*'Prevalence Rates'!AO249","v":0.77528980154592853},{"$f":"'Population 2016'!AP249*'Prevalence Rates'!AP249","v":16.451400635677285},{"$f":"'Population 2016'!AQ249*'Prevalence Rates'!AQ249","v":5.9574519212819839},{"$f":"'Population 2016'!AR249*'Prevalence Rates'!AR249","v":466.12552319528407},{"$f":"'Population 2016'!AS249*'Prevalence Rates'!AS249","v":4.5326734846829142},{"$f":"'Population 2016'!AT249*'Prevalence Rates'!AT249","v":0},{"$f":"'Population 2016'!AU249*'Prevalence Rates'!AU249","v":0},{"$f":"'Population 2016'!AV249*'Prevalence Rates'!AV249","v":20.900214433782626},{"$f":"'Population 2016'!AW249*'Prevalence Rates'!AW249","v":10.941288683904132},{"$f":"'Population 2016'!AX249*'Prevalence Rates'!AX249","v":11.103814697189005},{"$f":"'Population 2016'!AY249*'Prevalence Rates'!AY249","v":60.016934919758953},{"$f":"'Population 2016'!AZ249*'Prevalence Rates'!AZ249","v":29.892588691079567},{"$f":"'Population 2016'!BA249*'Prevalence Rates'!BA249","v":0.33051112548532946},{"$f":"'Population 2016'!BB249*'Prevalence Rates'!BB249","v":8.705837167703347},{"$f":"'Population 2016'!BC249*'Prevalence Rates'!BC249","v":0},247]
["Estimated number of people drinking at harmful/hazardous levels",null,null,null,null,null,null,null,null,null,null,null,null,null,null,null,null,null,null,null,null,null,null,null,null,null,null,null,null,null,null,null,null,null,null,null,null,null,null,null,null,null,null,null,null,null,null,null,null,null,null,null,null,null,null,248]
[null,"Total at risk",{"$f":"C5","v":44296.324364425614},80906.981382326048,36924.975185687581,17861.132609590324,15026.598043299202,61655.833769562567,20400.730590494757,28785.154517953295,9329.6896219595728,23207.33548605843,24347.973511016306,20538.201480815194,17287.348987037461,18306.439561812724,19603.206344890124,15424.314114488016,249311.16502935765,114082.5770730389,5228.066611743885,25116.555637803067,54404.562785502487,55385.507555529177,59314.494901598038,93867.639736269339,262748.7213400568,92202.27817001479,170521.37210030941,55089.308640582633,33489.289898776027,12247.697874835474,39110.678350706985,92385.251750494645,{"$f":"AI5","v":175023.77163784817},16014.687891296402,12213.406644352342,25463.825414734842,44394.701719889912,4131.108621528263,4131.108621528263,22734.175908474295,27661.338199194226,870217.246871504,20400.730590494757,4173.5582274224762,4173.5582274224762,18940.710931573376,47961.836541182056,15661.255440011519,110140.45339010682,55482.60137540962,12817.052811887374,29271.1842004928,3361.2772215042769,249]
[null,"Q1 only",{"$f":"C7","v":2864.3299577311154},3120.1909166494888,581.80740724095131,993.69733034182627,871.3284778537178,15785.448257245342,892.84599468562715,3843.0003880287409,1870.5585999733867,1529.6374305656223,1607.6207076613923,6047.8487050421099,4657.0270059230315,671.92548190419484,530.92679566179038,774.77487822584226,27373.214163691766,11957.131272885143,0,2956.4416202434695,8682.1517553652775,8819.0586560473148,7544.7632838349145,37718.64526193554,70820.390328968148,3067.8323538719101,51233.520503414169,3043.319652391061,1842.970549256557,4339.5814327756443,2129.1818954192013,19858.70843736548,{"$f":"AI7","v":17169.097470608242},1294.6666254872353,77.700865772961464,8821.4233328848641,11739.770993043207,0,0,937.82509553455384,6356.1677197911886,138476.6168652614,892.84599468562715,0,0,2657.1352125519988,7859.5078991126593,1572.1204137742432,15864.37987041469,7248.8289667272184,4264.8216705103187,3816.1125081146324,0,250]
[null,"Q1 & Q2",{"$f":"SUM(C7:C8)","v":11215.052213135821},13031.957198575623,2975.9874155062812,3667.5928472269411,3075.0332712671693,29925.730495850636,3775.2410538055046,8820.756081135567,4153.3513795187282,7288.1832263144188,7651.6048132549004,10068.160277309225,9024.045912206202,3267.3769941987507,5236.0665881537925,1987.7074911874943,73143.345233084634,27663.646247524292,1134.5084482368325,9535.2019594002122,18666.209118585692,18979.781718292434,20563.421413331569,54820.171887252887,124014.50050727249,14518.328776206994,80479.109071487808,11885.974232151411,7405.5120015067896,5856.131834318413,8614.5184526514204,43654.537314870693,{"$f":"SUM(AI7:AI8)","v":50290.882471857542},6543.8358145183565,1705.1732155032821,13738.395638441663,23736.90995997646,506.8271322970337,506.8271322970337,3224.2955476608422,11067.577571937793,299149.91952204495,3775.2410538055046,124.66120388044899,124.66120388044899,7306.3865399481983,19584.457673358836,3696.5325737393787,33893.654557325033,15372.330393647431,8015.0892619211827,11033.712139392326,732.53464696303001,251]
["Estimated no. of harmful/hazardous drinkers who would like to reduce their drinking (estimated at 39%)",null,null,null,null,null,null,null,null,null,null,null,null,null,null,null,null,null,null,null,null,null,null,null,null,null,null,null,null,null,null,null,null,null,null,null,null,null,null,null,null,null,null,null,null,null,null,null,null,null,null,null,null,null,null,252]
[null,"Eligible at risk",{"$f":"0.39*C251","v":17275.566502125992},31553.722739107161,14400.740322418156,6965.8417177402271,5860.3732368866886,24045.775170129404,7956.2849302929553,11226.210262001785,3638.5789525642335,9050.8608395627871,9495.7096692963587,8009.8985775179262,6742.0661049446098,7139.5114291069622,7645.2504745071492,6015.4825046503265,97231.354361449485,44492.205058485175,2038.9459785801153,9795.4566987431972,21217.779486345971,21600.34794665638,23132.653011623235,36608.379497145041,102472.00132262215,35958.888486305768,66503.335119120675,21484.830369827228,13060.823060522651,4776.6021711858348,15253.164556775724,36030.248182692914,{"$f":"0.39*AI251","v":68259.27093876079},6245.7282776055972,4763.2285912974139,9930.8919117465884,17313.933670757066,1611.1323623960227,1611.1323623960227,8866.3286043049757,10787.921897685748,339384.72627988656,7956.2849302929553,1627.6877086947657,1627.6877086947657,7386.8772633136168,18705.116251061001,6107.8896216044923,42954.776822141663,21638.214536409752,4998.6505966360755,11415.761838192193,1310.8981163866681,253]
[null,"Q1",{"$f":"0.39*C252","v":1117.088683515135},1216.8744574933007,226.90488882397102,387.54195883331226,339.81810636294995,6156.3248203256835,348.20993792739461,1498.770151331209,729.51785398962079,596.55859792059266,626.97207598794307,2358.660994966423,1816.2405323099824,262.05093794263598,207.06145030809824,302.16220250807851,10675.55352383979,4663.281196425206,0,1153.0122318949532,3386.0391845924582,3439.4328758584529,2942.457680695617,14710.271652154861,27619.952228297578,1196.4546180100449,19981.072996331528,1186.8946644325138,718.75851421005723,1692.4367587825013,830.38093921348855,7744.8962905725375,{"$f":"0.39*AI252","v":6695.9480135372141},504.91998394002178,30.303337651454971,3440.3550998250971,4578.510687286851,0,0,365.75178725847599,2478.9054107185634,54005.88057745195,348.20993792739461,0,0,1036.2827328952797,3065.208080653937,613.12696137195485,6187.1081494617292,2827.0432970236152,1663.2804514990244,1488.2838781647067,0,254]
[null,"Q1 & Q2",{"$f":"0.39*C253","v":4373.87036312297},5082.4633074444928,1160.6350920474497,1430.361210418507,1199.2629757941961,11671.034893381748,1472.344010984147,3440.0948716428711,1619.807038012304,2842.3914582626235,2984.1258771694111,3926.5825081505982,3519.3779057604188,1274.2770277375128,2042.0659693799792,775.20592156312284,28525.904640903009,10788.822036534473,442.45829481236467,3718.7287641660828,7279.8215562484202,7402.1148701340489,8019.7343511993122,21379.867036028627,48365.65519783627,5662.148222720728,31386.852537880248,4635.5299505390503,2888.1496805876482,2283.8914153841811,3359.6621965340541,17025.269552799571,{"$f":"0.39*AI253","v":19613.44416402444},2552.0959676621592,665.01755404628,5357.9742989922488,9257.3948843908202,197.66258159584314,197.66258159584314,1257.4752635877285,4316.355253055739,116668.46861359754,1472.344010984147,48.617869513375112,48.617869513375112,2849.4907505797973,7637.9384926099465,1441.6477037583577,13218.525277356763,5995.2088535224984,3125.8848121492615,4303.1477343630077,285.6885123155817,255]

{"sheet":"Pop2016fraction","index":14,"n_rows":249,"n_cols":56,"rows_kept":249,"cut":false,"hidden":true,"merged":[]}
["Subgroup's fraction of area's 2016 population (16+ only)"]
[]
["SIMD","group","Aberdeen City Local Authority","Aberdeen City Region Deal","Aberdeenshire Local Authority","Angus Local Authority","Argyll & Bute Local Authority","Ayrshire & Arran Health Board","Borders Health Board","Clackmannanshire & Stirling IJB","Clackmannanshire Local Authority","Dumfries & Galloway Health Board","Dumfries & Galloway Local Authority","Dundee City Local Authority","East Ayrshire Local Authority","East Dunbartonshire Local Authority","East Lothian Local Authority","East Renfrewshire Local Authority","Edinburgh & SE Scotland City Region Deal","Edinburgh, City of Local Authority","Eilean Siar Local Authority","Falkirk Local Authority","Fife Health Board","Fife Local Authority","Forth Valley Health Board","Glasgow City Local Authority","Glasgow City Region Deal","Grampian Health Board","Greater Glasgow & Clyde Health Board","Highland Health Board","Highland Local Authority","Inverclyde Local Authority","Inverness & Highland City Region Deal","Lanarkshire Health Board","Lothian Health Board","Midlothian Local Authority","Moray Local Authority","North Ayrshire Local Authority","North Lanarkshire Local Authority","Orkney Health Board","Orkney Islands Local Authority","Perth & Kinross Local Authority","Renfrewshire Local Authority","Scotland","Scottish Borders Local Authority","Shetland Health Board","Shetland Islands Local Authority","South Ayrshire Local Authority","South Lanarkshire Local Authority","Stirling Local Authority","Tay Cities Region Deal ","Tayside Health Board","West Dunbartonshire Local Authority","West Lothian Local Authority","Western Isles Health Board",1]
[null,null,"popS12000033","Aber_deal","popS12000034","popS12000041","popS12000035","popS08000015","popS08000016","ClacksStirIJB","popS12000005","popS08000017","popS12000006","popS12000042","popS12000008","popS12000045","popS12000010","popS12000011","EdinSE_deal","popS12000036","popS12000013","popS12000014","popS08000018","popS12000015","popS08000019","popS12000046","GClyde_deal","popS08000020","popS08000021","popS08000022","popS12000017","popS12000018","Inver_deal","popS08000023","popS08000024","popS12000019","popS12000020","popS12000021","popS12000044","popS08000025","popS12000023","popS12000024","popS12000038","popS00000001","popS12000026","popS08000026","popS12000027","popS12000028","popS12000029","popS12000030","Tay_deal","popS08000027","popS12000039","popS12000040","popS08000028",2]
["All quintiles","16+ Males and Females",{"$f":"'Population 2016'!C5/'Population 2016'!C$5","v":1},{"$f":"'Population 2016'!D5/'Population 2016'!D$5","v":1},{"$f":"'Population 2016'!E5/'Population 2016'!E$5","v":1},{"$f":"'Population 2016'!F5/'Population 2016'!F$5","v":1},{"$f":"'Population 2016'!G5/'Population 2016'!G$5","v":1},{"$f":"'Population 2016'!H5/'Population 2016'!H$5","v":1},{"$f":"'Population 2016'!I5/'Population 2016'!I$5","v":1},{"$f":"'Population 2016'!J5/'Population 2016'!J$5","v":1},{"$f":"'Population 2016'!K5/'Population 2016'!K$5","v":1},{"$f":"'Population 2016'!L5/'Population 2016'!L$5","v":1},{"$f":"'Population 2016'!M5/'Population 2016'!M$5","v":1},{"$f":"'Population 2016'!N5/'Population 2016'!N$5","v":1},{"$f":"'Population 2016'!O5/'Population 2016'!O$5","v":1},{"$f":"'Population 2016'!P5/'Population 2016'!P$5","v":1},{"$f":"'Population 2016'!Q5/'Population 2016'!Q$5","v":1},{"$f":"'Population 2016'!R5/'Population 2016'!R$5","v":1},{"$f":"'Population 2016'!S5/'Population 2016'!S$5","v":1},{"$f":"'Population 2016'!T5/'Population 2016'!T$5","v":1},{"$f":"'Population 2016'!U5/'Population 2016'!U$5","v":1},{"$f":"'Population 2016'!V5/'Population 2016'!V$5","v":1},{"$f":"'Population 2016'!W5/'Population 2016'!W$5","v":1},{"$f":"'Population 2016'!X5/'Population 2016'!X$5","v":1},{"$f":"'Population 2016'!Y5/'Population 2016'!Y$5","v":1},{"$f":"'Population 2016'!Z5/'Population 2016'!Z$5","v":1},{"$f":"'Population 2016'!AA5/'Population 2016'!AA$5","v":1},{"$f":"'Population 2016'!AB5/'Population 2016'!AB$5","v":1},{"$f":"'Population 2016'!AC5/'Population 2016'!AC$5","v":1},{"$f":"'Population 2016'!AD5/'Population 2016'!AD$5","v":1},{"$f":"'Population 2016'!AE5/'Population 2016'!AE$5","v":1},{"$f":"'Population 2016'!AF5/'Population 2016'!AF$5","v":1},{"$f":"'Population 2016'!AG5/'Population 2016'!AG$5","v":1},{"$f":"'Population 2016'!AH5/'Population 2016'!AH$5","v":1},{"$f":"'Population 2016'!AI5/'Population 2016'!AI$5","v":1},{"$f":"'Population 2016'!AJ5/'Population 2016'!AJ$5","v":1},{"$f":"'Population 2016'!AK5/'Population 2016'!AK$5","v":1},{"$f":"'Population 2016'!AL5/'Population 2016'!AL$5","v":1},{"$f":"'Population 2016'!AM5/'Population 2016'!AM$5","v":1},{"$f":"'Population 2016'!AN5/'Population 2016'!AN$5","v":1},{"$f":"'Population 2016'!AO5/'Population 2016'!AO$5","v":1},{"$f":"'Population 2016'!AP5/'Population 2016'!AP$5","v":1},{"$f":"'Population 2016'!AQ5/'Population 2016'!AQ$5","v":1},{"$f":"'Population 2016'!AR5/'Population 2016'!AR$5","v":1},{"$f":"'Population 2016'!AS5/'Population 2016'!AS$5","v":1},{"$f":"'Population 2016'!AT5/'Population 2016'!AT$5","v":1},{"$f":"'Population 2016'!AU5/'Population 2016'!AU$5","v":1},{"$f":"'Population 2016'!AV5/'Population 2016'!AV$5","v":1},{"$f":"'Population 2016'!AW5/'Population 2016'!AW$5","v":1},{"$f":"'Population 2016'!AX5/'Population 2016'!AX$5","v":1},{"$f":"'Population 2016'!AY5/'Population 2016'!AY$5","v":1},{"$f":"'Population 2016'!AZ5/'Population 2016'!AZ$5","v":1},{"$f":"'Population 2016'!BA5/'Population 2016'!BA$5","v":1},{"$f":"'Population 2016'!BB5/'Population 2016'!BB$5","v":1},{"$f":"'Population 2016'!BC5/'Population 2016'!BC$5","v":1},3]
["Q1 and Q2","16+ Males and Females",{"$f":"'Population 2016'!C6/'Population 2016'!C$5","v":0.28505568532043973},{"$f":"'Population 2016'!D6/'Population 2016'!D$5","v":0.18697123519458544},{"$f":"'Population 2016'!E6/'Population 2016'!E$5","v":9.7009642835377996E-2},{"$f":"'Population 2016'!F6/'Population 2016'!F$5","v":0.23802214782384754},{"$f":"'Population 2016'!G6/'Population 2016'!G$5","v":0.24178530828777134},{"$f":"'Population 2016'!H6/'Population 2016'!H$5","v":0.54380651918044964},{"$f":"'Population 2016'!I6/'Population 2016'!I$5","v":0.21558077212963739},{"$f":"'Population 2016'!J6/'Population 2016'!J$5","v":0.35335826774918522},{"$f":"'Population 2016'!K6/'Population 2016'!K$5","v":0.49690497566507585},{"$f":"'Population 2016'!L6/'Population 2016'!L$5","v":0.35540800279573648},{"$f":"'Population 2016'!M6/'Population 2016'!M$5","v":0.35540800279573648},{"$f":"'Population 2016'!N6/'Population 2016'!N$5","v":0.54660386912177206},{"$f":"'Population 2016'!O6/'Population 2016'!O$5","v":0.57661406167959506},{"$f":"'Population 2016'!P6/'Population 2016'!P$5","v":0.21319734024568918},{"$f":"'Population 2016'!Q6/'Population 2016'!Q$5","v":0.30533131220549697},{"$f":"'Population 2016'!R6/'Population 2016'!R$5","v":0.15587906531111939},{"$f":"'Population 2016'!S6/'Population 2016'!S$5","v":0.33554762732778909},{"$f":"'Population 2016'!T6/'Population 2016'!T$5","v":0.27603849178466566},{"$f":"'Population 2016'!U6/'Population 2016'!U$5","v":0.24042845129022264},{"$f":"'Population 2016'!V6/'Population 2016'!V$5","v":0.43180864136283498},{"$f":"'Population 2016'!W6/'Population 2016'!W$5","v":0.39425345962517733},{"$f":"'Population 2016'!X6/'Population 2016'!X$5","v":0.39425345962517733},{"$f":"'Population 2016'!Y6/'Population 2016'!Y$5","v":0.39421074386734711},{"$f":"'Population 2016'!Z6/'Population 2016'!Z$5","v":0.63716963198556664},{"$f":"'Population 2016'!AA6/'Population 2016'!AA$5","v":0.53156248816568641},{"$f":"'Population 2016'!AB6/'Population 2016'!AB$5","v":0.1825286838684585},{"$f":"'Population 2016'!AC6/'Population 2016'!AC$5","v":0.53169597514381872},{"$f":"'Population 2016'!AD6/'Population 2016'!AD$5","v":0.2515650005582642},{"$f":"'Population 2016'!AE6/'Population 2016'!AE$5","v":0.25527469481206172},{"$f":"'Population 2016'!AF6/'Population 2016'!AF$5","v":0.54526534859521336},{"$f":"'Population 2016'!AG6/'Population 2016'!AG$5","v":0.25527469481206172},{"$f":"'Population 2016'!AH6/'Population 2016'!AH$5","v":0.53132273854527556},{"$f":"'Population 2016'!AI6/'Population 2016'!AI$5","v":0.32665942995887653},{"$f":"'Population 2016'!AJ6/'Population 2016'!AJ$5","v":0.45442377938265066},{"$f":"'Population 2016'!AK6/'Population 2016'!AK$5","v":0.15968721320543605},{"$f":"'Population 2016'!AL6/'Population 2016'!AL$5","v":0.59903158865575279},{"$f":"'Population 2016'!AM6/'Population 2016'!AM$5","v":0.59371728886490327},{"$f":"'Population 2016'!AN6/'Population 2016'!AN$5","v":0.14186756845205628},{"$f":"'Population 2016'!AO6/'Population 2016'!AO$5","v":0.14186756845205628},{"$f":"'Population 2016'!AP6/'Population 2016'!AP$5","v":0.16515543014758335},{"$f":"'Population 2016'!AQ6/'Population 2016'!AQ$5","v":0.465384720776018},{"$f":"'Population 2016'!AR6/'Population 2016'!AR$5","v":0.39415271355287168},{"$f":"'Population 2016'!AS6/'Population 2016'!AS$5","v":0.21558077212963739},{"$f":"'Population 2016'!AT6/'Population 2016'!AT$5","v":3.3162861812621923E-2},{"$f":"'Population 2016'!AU6/'Population 2016'!AU$5","v":3.3162861812621923E-2},{"$f":"'Population 2016'!AV6/'Population 2016'!AV$5","v":0.44308943089430897},{"$f":"'Population 2016'!AW6/'Population 2016'!AW$5","v":0.46562862285679418},{"$f":"'Population 2016'!AX6/'Population 2016'!AX$5","v":0.27571974392067161},{"$f":"'Population 2016'!AY6/'Population 2016'!AY$5","v":0.35582907499770511},{"$f":"'Population 2016'!AZ6/'Population 2016'!AZ$5","v":0.32201391006207181},{"$f":"'Population 2016'!BA6/'Population 2016'!BA$5","v":0.67740498812351546},{"$f":"'Population 2016'!BB6/'Population 2016'!BB$5","v":0.4261477803939982},{"$f":"'Population 2016'!BC6/'Population 2016'!BC$5","v":0.24042845129022264},4]
["SIMD Q1 (most deprived)","16+ Males and Females",{"$f":"'Population 2016'!C7/'Population 2016'!C$5","v":8.0274772173184156E-2},{"$f":"'Population 2016'!D7/'Population 2016'!D$5","v":4.9091380338996314E-2},{"$f":"'Population 2016'!E7/'Population 2016'!E$5","v":2.0490439201383843E-2},{"$f":"'Population 2016'!F7/'Population 2016'!F$5","v":6.9245428792171007E-2},{"$f":"'Population 2016'!G7/'Population 2016'!G$5","v":7.3052563200346449E-2},{"$f":"'Population 2016'!H7/'Population 2016'!H$5","v":0.30013974767600587},{"$f":"'Population 2016'!I7/'Population 2016'!I$5","v":5.3816682019931332E-2},{"$f":"'Population 2016'!J7/'Population 2016'!J$5","v":0.16491545242695901},{"$f":"'Population 2016'!K7/'Population 2016'!K$5","v":0.23571799839342247},{"$f":"'Population 2016'!L7/'Population 2016'!L$5","v":7.9297253506584273E-2},{"$f":"'Population 2016'!M7/'Population 2016'!M$5","v":7.9297253506584273E-2},{"$f":"'Population 2016'!N7/'Population 2016'!N$5","v":0.34639650862796473},{"$f":"'Population 2016'!O7/'Population 2016'!O$5","v":0.31131056755926728},{"$f":"'Population 2016'!P7/'Population 2016'!P$5","v":4.6647131747999553E-2},{"$f":"'Population 2016'!Q7/'Population 2016'!Q$5","v":3.4300419501533473E-2},{"$f":"'Population 2016'!R7/'Population 2016'!R$5","v":6.5577260871879497E-2},{"$f":"'Population 2016'!S7/'Population 2016'!S$5","v":0.13517902946487992},{"$f":"'Population 2016'!T7/'Population 2016'!T$5","v":0.13021223528754833},{"$f":"'Population 2016'!U7/'Population 2016'!U$5","v":0},{"$f":"'Population 2016'!V7/'Population 2016'!V$5","v":0.14533548057181672},{"$f":"'Population 2016'!W7/'Population 2016'!W$5","v":0.19312781492884645},{"$f":"'Population 2016'!X7/'Population 2016'!X$5","v":0.19312781492884645},{"$f":"'Population 2016'!Y7/'Population 2016'!Y$5","v":0.15471932083750656},{"$f":"'Population 2016'!Z7/'Population 2016'!Z$5","v":0.45964152904760708},{"$f":"'Population 2016'!AA7/'Population 2016'!AA$5","v":0.32015729920533209},{"$f":"'Population 2016'!AB7/'Population 2016'!AB$5","v":4.2397879287227616E-2},{"$f":"'Population 2016'!AC7/'Population 2016'!AC$5","v":0.35500319597204094},{"$f":"'Population 2016'!AD7/'Population 2016'!AD$5","v":6.9094495515277826E-2},{"$f":"'Population 2016'!AE7/'Population 2016'!AE$5","v":6.7593096438361797E-2},{"$f":"'Population 2016'!AF7/'Population 2016'!AF$5","v":0.41722843052979236},{"$f":"'Population 2016'!AG7/'Population 2016'!AG$5","v":6.7593096438361797E-2},{"$f":"'Population 2016'!AH7/'Population 2016'!AH$5","v":0.25757223930226725},{"$f":"'Population 2016'!AI7/'Population 2016'!AI$5","v":0.12156575378423309},{"$f":"'Population 2016'!AJ7/'Population 2016'!AJ$5","v":9.858349831302457E-2},{"$f":"'Population 2016'!AK7/'Population 2016'!AK$5","v":7.9831034786216268E-3},{"$f":"'Population 2016'!AL7/'Population 2016'!AL$5","v":0.39894645359252229},{"$f":"'Population 2016'!AM7/'Population 2016'!AM$5","v":0.31183196844518657},{"$f":"'Population 2016'!AN7/'Population 2016'!AN$5","v":0},{"$f":"'Population 2016'!AO7/'Population 2016'!AO$5","v":0},{"$f":"'Population 2016'!AP7/'Population 2016'!AP$5","v":5.2470554666074851E-2},{"$f":"'Population 2016'!AQ7/'Population 2016'!AQ$5","v":0.28025154819970405},{"$f":"'Population 2016'!AR7/'Population 2016'!AR$5","v":0.19431413815281337},{"$f":"'Population 2016'!AS7/'Population 2016'!AS$5","v":5.3816682019931332E-2},{"$f":"'Population 2016'!AT7/'Population 2016'!AT$5","v":0},{"$f":"'Population 2016'!AU7/'Population 2016'!AU$5","v":0},{"$f":"'Population 2016'!AV7/'Population 2016'!AV$5","v":0.1705944462042023},{"$f":"'Population 2016'!AW7/'Population 2016'!AW$5","v":0.20044313258893159},{"$f":"'Population 2016'!AX7/'Population 2016'!AX$5","v":0.12662126071789104},{"$f":"'Population 2016'!AY7/'Population 2016'!AY$5","v":0.1767540772926165},{"$f":"'Population 2016'!AZ7/'Population 2016'!AZ$5","v":0.1623444609994765},{"$f":"'Population 2016'!BA7/'Population 2016'!BA$5","v":0.37985856186568778},{"$f":"'Population 2016'!BB7/'Population 2016'!BB$5","v":0.15856597363678421},{"$f":"'Population 2016'!BC7/'Population 2016'!BC$5","v":0},5]
["SIMD Q2",null,{"$f":"'Population 2016'!C8/'Population 2016'!C$5","v":0.20478091314725561},{"$f":"'Population 2016'!D8/'Population 2016'!D$5","v":0.13787985485558912},{"$f":"'Population 2016'!E8/'Population 2016'!E$5","v":7.6519203633994157E-2},{"$f":"'Population 2016'!F8/'Population 2016'!F$5","v":0.16877671903167654},{"$f":"'Population 2016'!G8/'Population 2016'!G$5","v":0.16873274508742489},{"$f":"'Population 2016'!H8/'Population 2016'!H$5","v":0.24366677150444371},{"$f":"'Population 2016'!I8/'Population 2016'!I$5","v":0.16176409010970605},{"$f":"'Population 2016'!J8/'Population 2016'!J$5","v":0.18844281532222618},{"$f":"'Population 2016'!K8/'Population 2016'!K$5","v":0.26118697727165335},{"$f":"'Population 2016'!L8/'Population 2016'!L$5","v":0.27611074928915225},{"$f":"'Population 2016'!M8/'Population 2016'!M$5","v":0.27611074928915225},{"$f":"'Population 2016'!N8/'Population 2016'!N$5","v":0.20020736049380733},{"$f":"'Population 2016'!O8/'Population 2016'!O$5","v":0.26530349412032772},{"$f":"'Population 2016'!P8/'Population 2016'!P$5","v":0.16655020849768962},{"$f":"'Population 2016'!Q8/'Population 2016'!Q$5","v":0.27103089270396352},{"$f":"'Population 2016'!R8/'Population 2016'!R$5","v":9.0301804439239894E-2},{"$f":"'Population 2016'!S8/'Population 2016'!S$5","v":0.20036859786290914},{"$f":"'Population 2016'!T8/'Population 2016'!T$5","v":0.14582625649711731},{"$f":"'Population 2016'!U8/'Population 2016'!U$5","v":0.24042845129022264},{"$f":"'Population 2016'!V8/'Population 2016'!V$5","v":0.28647316079101826},{"$f":"'Population 2016'!W8/'Population 2016'!W$5","v":0.20112564469633087},{"$f":"'Population 2016'!X8/'Population 2016'!X$5","v":0.20112564469633087},{"$f":"'Population 2016'!Y8/'Population 2016'!Y$5","v":0.23949142302984056},{"$f":"'Population 2016'!Z8/'Population 2016'!Z$5","v":0.17752810293795962},{"$f":"'Population 2016'!AA8/'Population 2016'!AA$5","v":0.21140518896035429},{"$f":"'Population 2016'!AB8/'Population 2016'!AB$5","v":0.14013080458123087},{"$f":"'Population 2016'!AC8/'Population 2016'!AC$5","v":0.17669277917177781},{"$f":"'Population 2016'!AD8/'Population 2016'!AD$5","v":0.18247050504298634},{"$f":"'Population 2016'!AE8/'Population 2016'!AE$5","v":0.18768159837369994},{"$f":"'Population 2016'!AF8/'Population 2016'!AF$5","v":0.12803691806542097},{"$f":"'Population 2016'!AG8/'Population 2016'!AG$5","v":0.18768159837369994},{"$f":"'Population 2016'!AH8/'Population 2016'!AH$5","v":0.27375049924300826},{"$f":"'Population 2016'!AI8/'Population 2016'!AI$5","v":0.20509367617464344},{"$f":"'Population 2016'!AJ8/'Population 2016'!AJ$5","v":0.35584028106962606},{"$f":"'Population 2016'!AK8/'Population 2016'!AK$5","v":0.15170410972681442},{"$f":"'Population 2016'!AL8/'Population 2016'!AL$5","v":0.20008513506323053},{"$f":"'Population 2016'!AM8/'Population 2016'!AM$5","v":0.2818853204197167},{"$f":"'Population 2016'!AN8/'Population 2016'!AN$5","v":0.14186756845205628},{"$f":"'Population 2016'!AO8/'Population 2016'!AO$5","v":0.14186756845205628},{"$f":"'Population 2016'!AP8/'Population 2016'!AP$5","v":0.11268487548150849},{"$f":"'Population 2016'!AQ8/'Population 2016'!AQ$5","v":0.18513317257631393},{"$f":"'Population 2016'!AR8/'Population 2016'!AR$5","v":0.19983857540005831},{"$f":"'Population 2016'!AS8/'Population 2016'!AS$5","v":0.16176409010970605},{"$f":"'Population 2016'!AT8/'Population 2016'!AT$5","v":3.3162861812621923E-2},{"$f":"'Population 2016'!AU8/'Population 2016'!AU$5","v":3.3162861812621923E-2},{"$f":"'Population 2016'!AV8/'Population 2016'!AV$5","v":0.27249498469010663},{"$f":"'Population 2016'!AW8/'Population 2016'!AW$5","v":0.26518549026786259},{"$f":"'Population 2016'!AX8/'Population 2016'!AX$5","v":0.14909848320278057},{"$f":"'Population 2016'!AY8/'Population 2016'!AY$5","v":0.17907499770508858},{"$f":"'Population 2016'!AZ8/'Population 2016'!AZ$5","v":0.15966944906259528},{"$f":"'Population 2016'!BA8/'Population 2016'!BA$5","v":0.29754642625782768},{"$f":"'Population 2016'!BB8/'Population 2016'!BB$5","v":0.26758180675721399},{"$f":"'Population 2016'!BC8/'Population 2016'!BC$5","v":0.24042845129022264},6]
["SIMD Q3",null,{"$f":"'Population 2016'!C9/'Population 2016'!C$5","v":0.15567356493383694},{"$f":"'Population 2016'!D9/'Population 2016'!D$5","v":0.17959909235840107},{"$f":"'Population 2016'!E9/'Population 2016'!E$5","v":0.20154322868567731},{"$f":"'Population 2016'!F9/'Population 2016'!F$5","v":0.32874581509142414},{"$f":"'Population 2016'!G9/'Population 2016'!G$5","v":0.41176311373355706},{"$f":"'Population 2016'!H9/'Population 2016'!H$5","v":0.17415284050931706},{"$f":"'Population 2016'!I9/'Population 2016'!I$5","v":0.33486517042123776},{"$f":"'Population 2016'!J9/'Population 2016'!J$5","v":0.17295970410422695},{"$f":"'Population 2016'!K9/'Population 2016'!K$5","v":0.18900911969002504},{"$f":"'Population 2016'!L9/'Population 2016'!L$5","v":0.37253983130271789},{"$f":"'Population 2016'!M9/'Population 2016'!M$5","v":0.37253983130271789},{"$f":"'Population 2016'!N9/'Population 2016'!N$5","v":0.12765529934657333},{"$f":"'Population 2016'!O9/'Population 2016'!O$5","v":0.17299214392565954},{"$f":"'Population 2016'!P9/'Population 2016'!P$5","v":6.1444832638341038E-2},{"$f":"'Population 2016'!Q9/'Population 2016'!Q$5","v":0.21600216213675516},{"$f":"'Population 2016'!R9/'Population 2016'!R$5","v":0.1108745409059456},{"$f":"'Population 2016'!S9/'Population 2016'!S$5","v":0.2041278370825691},{"$f":"'Population 2016'!T9/'Population 2016'!T$5","v":0.15277125028501232},{"$f":"'Population 2016'!U9/'Population 2016'!U$5","v":0.70207586420572743},{"$f":"'Population 2016'!V9/'Population 2016'!V$5","v":0.18445134749391318},{"$f":"'Population 2016'!W9/'Population 2016'!W$5","v":0.2169774936429183},{"$f":"'Population 2016'!X9/'Population 2016'!X$5","v":0.2169774936429183},{"$f":"'Population 2016'!Y9/'Population 2016'!Y$5","v":0.17894389596349819},{"$f":"'Population 2016'!Z9/'Population 2016'!Z$5","v":0.14271859507571871},{"$f":"'Population 2016'!AA9/'Population 2016'!AA$5","v":0.15730917106986181},{"$f":"'Population 2016'!AB9/'Population 2016'!AB$5","v":0.19575038637503453},{"$f":"'Population 2016'!AC9/'Population 2016'!AC$5","v":0.13991014043659666},{"$f":"'Population 2016'!AD9/'Population 2016'!AD$5","v":0.34543898172615284},{"$f":"'Population 2016'!AE9/'Population 2016'!AE$5","v":0.32028049569297429},{"$f":"'Population 2016'!AF9/'Population 2016'!AF$5","v":0.15791219894735253},{"$f":"'Population 2016'!AG9/'Population 2016'!AG$5","v":0.32028049569297429},{"$f":"'Population 2016'!AH9/'Population 2016'!AH$5","v":0.1885587434866203},{"$f":"'Population 2016'!AI9/'Population 2016'!AI$5","v":0.18167873392247791},{"$f":"'Population 2016'!AJ9/'Population 2016'!AJ$5","v":0.23635780609541868},{"$f":"'Population 2016'!AK9/'Population 2016'!AK$5","v":0.27879260274317036},{"$f":"'Population 2016'!AL9/'Population 2016'!AL$5","v":0.14443695571203066},{"$f":"'Population 2016'!AM9/'Population 2016'!AM$5","v":0.18133513950110652},{"$f":"'Population 2016'!AN9/'Population 2016'!AN$5","v":0.31329769826551762},{"$f":"'Population 2016'!AO9/'Population 2016'!AO$5","v":0.31329769826551762},{"$f":"'Population 2016'!AP9/'Population 2016'!AP$5","v":0.23947022177131716},{"$f":"'Population 2016'!AQ9/'Population 2016'!AQ$5","v":0.17783745273195595},{"$f":"'Population 2016'!AR9/'Population 2016'!AR$5","v":0.2022770982691745},{"$f":"'Population 2016'!AS9/'Population 2016'!AS$5","v":0.33486517042123776},{"$f":"'Population 2016'!AT9/'Population 2016'!AT$5","v":0.32904518374018032},{"$f":"'Population 2016'!AU9/'Population 2016'!AU$5","v":0.32904518374018032},{"$f":"'Population 2016'!AV9/'Population 2016'!AV$5","v":0.21076971808679126},{"$f":"'Population 2016'!AW9/'Population 2016'!AW$5","v":0.19616434803831839},{"$f":"'Population 2016'!AX9/'Population 2016'!AX$5","v":0.16427923380656043},{"$f":"'Population 2016'!AY9/'Population 2016'!AY$5","v":0.22091582264924575},{"$f":"'Population 2016'!AZ9/'Population 2016'!AZ$5","v":0.22438172707974988},{"$f":"'Population 2016'!BA9/'Population 2016'!BA$5","v":0.15290973871733968},{"$f":"'Population 2016'!BB9/'Population 2016'!BB$5","v":0.22022054507916561},{"$f":"'Population 2016'!BC9/'Population 2016'!BC$5","v":0.70207586420572743},7]
["SIMD Q4",null,{"$f":"'Population 2016'!C10/'Population 2016'!C$5","v":0.17209038450726541},{"$f":"'Population 2016'!D10/'Population 2016'!D$5","v":0.27172520368142561},{"$f":"'Population 2016'!E10/'Population 2016'!E$5","v":0.36310877137057646},{"$f":"'Population 2016'!F10/'Population 2016'!F$5","v":0.25391707442698946},{"$f":"'Population 2016'!G10/'Population 2016'!G$5","v":0.24428896226925784},{"$f":"'Population 2016'!H10/'Population 2016'!H$5","v":0.14626166860670595},{"$f":"'Population 2016'!I10/'Population 2016'!I$5","v":0.35694246713005612},{"$f":"'Population 2016'!J10/'Population 2016'!J$5","v":0.2411036381579493},{"$f":"'Population 2016'!K10/'Population 2016'!K$5","v":0.17731418040920474},{"$f":"'Population 2016'!L10/'Population 2016'!L$5","v":0.18171493018601179},{"$f":"'Population 2016'!M10/'Population 2016'!M$5","v":0.18171493018601179},{"$f":"'Population 2016'!N10/'Population 2016'!N$5","v":0.17335498026860419},{"$f":"'Population 2016'!O10/'Population 2016'!O$5","v":0.13525722947068089},{"$f":"'Population 2016'!P10/'Population 2016'!P$5","v":0.1839738532627071},{"$f":"'Population 2016'!Q10/'Population 2016'!Q$5","v":0.31186472544388433},{"$f":"'Population 2016'!R10/'Population 2016'!R$5","v":0.14973119710438068},{"$f":"'Population 2016'!S10/'Population 2016'!S$5","v":0.19364098073864328},{"$f":"'Population 2016'!T10/'Population 2016'!T$5","v":0.16057477094316971},{"$f":"'Population 2016'!U10/'Population 2016'!U$5","v":5.7495684504049925E-2},{"$f":"'Population 2016'!V10/'Population 2016'!V$5","v":0.19151128445058427},{"$f":"'Population 2016'!W10/'Population 2016'!W$5","v":0.17321985370541054},{"$f":"'Population 2016'!X10/'Population 2016'!X$5","v":0.17321985370541054},{"$f":"'Population 2016'!Y10/'Population 2016'!Y$5","v":0.2152787714026804},{"$f":"'Population 2016'!Z10/'Population 2016'!Z$5","v":0.11734029187952372},{"$f":"'Population 2016'!AA10/'Population 2016'!AA$5","v":0.1494574984536497},{"$f":"'Population 2016'!AB10/'Population 2016'!AB$5","v":0.28981505173843175},{"$f":"'Population 2016'!AC10/'Population 2016'!AC$5","v":0.13997943821224151},{"$f":"'Population 2016'!AD10/'Population 2016'!AD$5","v":0.30640142915627677},{"$f":"'Population 2016'!AE10/'Population 2016'!AE$5","v":0.32996231994168318},{"$f":"'Population 2016'!AF10/'Population 2016'!AF$5","v":0.17646171711230754},{"$f":"'Population 2016'!AG10/'Population 2016'!AG$5","v":0.32996231994168318},{"$f":"'Population 2016'!AH10/'Population 2016'!AH$5","v":0.16648059221831085},{"$f":"'Population 2016'!AI10/'Population 2016'!AI$5","v":0.18085571791057836},{"$f":"'Population 2016'!AJ10/'Population 2016'!AJ$5","v":0.15486713325711737},{"$f":"'Population 2016'!AK10/'Population 2016'!AK$5","v":0.38282438429528681},{"$f":"'Population 2016'!AL10/'Population 2016'!AL$5","v":0.16345045316684698},{"$f":"'Population 2016'!AM10/'Population 2016'!AM$5","v":0.13531770322103945},{"$f":"'Population 2016'!AN10/'Population 2016'!AN$5","v":0.47027380822515547},{"$f":"'Population 2016'!AO10/'Population 2016'!AO$5","v":0.47027380822515547},{"$f":"'Population 2016'!AP10/'Population 2016'!AP$5","v":0.41339188053833836},{"$f":"'Population 2016'!AQ10/'Population 2016'!AQ$5","v":0.17690579273305201},{"$f":"'Population 2016'!AR10/'Population 2016'!AR$5","v":0.20290399424521077},{"$f":"'Population 2016'!AS10/'Population 2016'!AS$5","v":0.35694246713005612},{"$f":"'Population 2016'!AT10/'Population 2016'!AT$5","v":0.63779195444719772},{"$f":"'Population 2016'!AU10/'Population 2016'!AU$5","v":0.63779195444719772},{"$f":"'Population 2016'!AV10/'Population 2016'!AV$5","v":0.1375250765494668},{"$f":"'Population 2016'!AW10/'Population 2016'!AW$5","v":0.19929144548172556},{"$f":"'Population 2016'!AX10/'Population 2016'!AX$5","v":0.27560473823427933},{"$f":"'Population 2016'!AY10/'Population 2016'!AY$5","v":0.23159022061748416},{"$f":"'Population 2016'!AZ10/'Population 2016'!AZ$5","v":0.28295873578360592},{"$f":"'Population 2016'!BA10/'Population 2016'!BA$5","v":0.12984506586050529},{"$f":"'Population 2016'!BB10/'Population 2016'!BB$5","v":0.17693322193298025},{"$f":"'Population 2016'!BC10/'Population 2016'!BC$5","v":5.7495684504049925E-2},8]
["SIMD Q5 (least deprived)",null,{"$f":"'Population 2016'!C11/'Population 2016'!C$5","v":0.38718036523845789},{"$f":"'Population 2016'!D11/'Population 2016'!D$5","v":0.36170446876558787},{"$f":"'Population 2016'!E11/'Population 2016'!E$5","v":0.33833835710836824},{"$f":"'Population 2016'!F11/'Population 2016'!F$5","v":0.17931496265773886},{"$f":"'Population 2016'!G11/'Population 2016'!G$5","v":0.10216261570941373},{"$f":"'Population 2016'!H11/'Population 2016'!H$5","v":0.1357789717035274},{"$f":"'Population 2016'!I11/'Population 2016'!I$5","v":9.2611590319068751E-2},{"$f":"'Population 2016'!J11/'Population 2016'!J$5","v":0.23257838998863853},{"$f":"'Population 2016'!K11/'Population 2016'!K$5","v":0.13677172423569436},{"$f":"'Population 2016'!L11/'Population 2016'!L$5","v":9.0337235715533815E-2},{"$f":"'Population 2016'!M11/'Population 2016'!M$5","v":9.0337235715533815E-2},{"$f":"'Population 2016'!N11/'Population 2016'!N$5","v":0.15238585126305046},{"$f":"'Population 2016'!O11/'Population 2016'!O$5","v":0.11513656492406456},{"$f":"'Population 2016'!P11/'Population 2016'!P$5","v":0.54138397385326276},{"$f":"'Population 2016'!Q11/'Population 2016'!Q$5","v":0.16680180021386354},{"$f":"'Population 2016'!R11/'Population 2016'!R$5","v":0.58351519667855434},{"$f":"'Population 2016'!S11/'Population 2016'!S$5","v":0.26668355485099854},{"$f":"'Population 2016'!T11/'Population 2016'!T$5","v":0.41061548698715233},{"$f":"'Population 2016'!U11/'Population 2016'!U$5","v":0},{"$f":"'Population 2016'!V11/'Population 2016'!V$5","v":0.19222872669266758},{"$f":"'Population 2016'!W11/'Population 2016'!W$5","v":0.21554919302649383},{"$f":"'Population 2016'!X11/'Population 2016'!X$5","v":0.21554919302649383},{"$f":"'Population 2016'!Y11/'Population 2016'!Y$5","v":0.2115665887664743},{"$f":"'Population 2016'!Z11/'Population 2016'!Z$5","v":0.10277148105919087},{"$f":"'Population 2016'!AA11/'Population 2016'!AA$5","v":0.16167084231080212},{"$f":"'Population 2016'!AB11/'Population 2016'!AB$5","v":0.3319058780180752},{"$f":"'Population 2016'!AC11/'Population 2016'!AC$5","v":0.18841444620734307},{"$f":"'Population 2016'!AD11/'Population 2016'!AD$5","v":9.6594588559306263E-2},{"$f":"'Population 2016'!AE11/'Population 2016'!AE$5","v":9.4482489553280841E-2},{"$f":"'Population 2016'!AF11/'Population 2016'!AF$5","v":0.1203607353451266},{"$f":"'Population 2016'!AG11/'Population 2016'!AG$5","v":9.4482489553280841E-2},{"$f":"'Population 2016'!AH11/'Population 2016'!AH$5","v":0.11363792574979334},{"$f":"'Population 2016'!AI11/'Population 2016'!AI$5","v":0.31080611820806719},{"$f":"'Population 2016'!AJ11/'Population 2016'!AJ$5","v":0.15435128126481332},{"$f":"'Population 2016'!AK11/'Population 2016'!AK$5","v":0.17869579975610675},{"$f":"'Population 2016'!AL11/'Population 2016'!AL$5","v":9.3081002465369544E-2},{"$f":"'Population 2016'!AM11/'Population 2016'!AM$5","v":8.96298684129508E-2},{"$f":"'Population 2016'!AN11/'Population 2016'!AN$5","v":7.4560925057270647E-2},{"$f":"'Population 2016'!AO11/'Population 2016'!AO$5","v":7.4560925057270647E-2},{"$f":"'Population 2016'!AP11/'Population 2016'!AP$5","v":0.18198246754276112},{"$f":"'Population 2016'!AQ11/'Population 2016'!AQ$5","v":0.17987203375897406},{"$f":"'Population 2016'!AR11/'Population 2016'!AR$5","v":0.20066619393274301},{"$f":"'Population 2016'!AS11/'Population 2016'!AS$5","v":9.2611590319068751E-2},{"$f":"'Population 2016'!AT11/'Population 2016'!AT$5","v":0},{"$f":"'Population 2016'!AU11/'Population 2016'!AU$5","v":0},{"$f":"'Population 2016'!AV11/'Population 2016'!AV$5","v":0.208615774469433},{"$f":"'Population 2016'!AW11/'Population 2016'!AW$5","v":0.13891558362316186},{"$f":"'Population 2016'!AX11/'Population 2016'!AX$5","v":0.28439628403848854},{"$f":"'Population 2016'!AY11/'Population 2016'!AY$5","v":0.19166488173556501},{"$f":"'Population 2016'!AZ11/'Population 2016'!AZ$5","v":0.17064562707457243},{"$f":"'Population 2016'!BA11/'Population 2016'!BA$5","v":3.9840207298639602E-2},{"$f":"'Population 2016'!BB11/'Population 2016'!BB$5","v":0.17669845259385594},{"$f":"'Population 2016'!BC11/'Population 2016'!BC$5","v":0},9]
["SIMD Q1 (most deprived)","16+ Females",{"$f":"'Population 2016'!C12/'Population 2016'!C$5","v":4.0582050875785189E-2},{"$f":"'Population 2016'!D12/'Population 2016'!D$5","v":2.4656944729712547E-2},{"$f":"'Population 2016'!E12/'Population 2016'!E$5","v":1.0050675279745357E-2},{"$f":"'Population 2016'!F12/'Population 2016'!F$5","v":3.5910378573268092E-2},{"$f":"'Population 2016'!G12/'Population 2016'!G$5","v":3.7893141341417205E-2},{"$f":"'Population 2016'!H12/'Population 2016'!H$5","v":0.1596884696818876},{"$f":"'Population 2016'!I12/'Population 2016'!I$5","v":2.7855707227200401E-2},{"$f":"'Population 2016'!J12/'Population 2016'!J$5","v":8.7582826766625474E-2},{"$f":"'Population 2016'!K12/'Population 2016'!K$5","v":0.12323394603789632},{"$f":"'Population 2016'!L12/'Population 2016'!L$5","v":4.1515098565596556E-2},{"$f":"'Population 2016'!M12/'Population 2016'!M$5","v":4.1515098565596556E-2},{"$f":"'Population 2016'!N12/'Population 2016'!N$5","v":0.18184229350350825},{"$f":"'Population 2016'!O12/'Population 2016'!O$5","v":0.16437324773877809},{"$f":"'Population 2016'!P12/'Population 2016'!P$5","v":2.48055899921109E-2},{"$f":"'Population 2016'!Q12/'Population 2016'!Q$5","v":1.8331159445834948E-2},{"$f":"'Population 2016'!R12/'Population 2016'!R$5","v":3.5756107946984618E-2},{"$f":"'Population 2016'!S12/'Population 2016'!S$5","v":7.060379083836596E-2},{"$f":"'Population 2016'!T12/'Population 2016'!T$5","v":6.7702637934323864E-2},{"$f":"'Population 2016'!U12/'Population 2016'!U$5","v":0},{"$f":"'Population 2016'!V12/'Population 2016'!V$5","v":7.526274414025233E-2},{"$f":"'Population 2016'!W12/'Population 2016'!W$5","v":0.1009321540865086},{"$f":"'Population 2016'!X12/'Population 2016'!X$5","v":0.1009321540865086},{"$f":"'Population 2016'!Y12/'Population 2016'!Y$5","v":8.1167231045611354E-2},{"$f":"'Population 2016'!Z12/'Population 2016'!Z$5","v":0.24039505752221813},{"$f":"'Population 2016'!AA12/'Population 2016'!AA$5","v":0.16821102383339412},{"$f":"'Population 2016'!AB12/'Population 2016'!AB$5","v":2.1358607207557598E-2},{"$f":"'Population 2016'!AC12/'Population 2016'!AC$5","v":0.18656616075842797},{"$f":"'Population 2016'!AD12/'Population 2016'!AD$5","v":3.5903829692210357E-2},{"$f":"'Population 2016'!AE12/'Population 2016'!AE$5","v":3.5149231511617161E-2},{"$f":"'Population 2016'!AF12/'Population 2016'!AF$5","v":0.2227299461611546},{"$f":"'Population 2016'!AG12/'Population 2016'!AG$5","v":3.5149231511617161E-2},{"$f":"'Population 2016'!AH12/'Population 2016'!AH$5","v":0.13524423432376953},{"$f":"'Population 2016'!AI12/'Population 2016'!AI$5","v":6.3500743722110425E-2},{"$f":"'Population 2016'!AJ12/'Population 2016'!AJ$5","v":5.2059225385494796E-2},{"$f":"'Population 2016'!AK12/'Population 2016'!AK$5","v":4.4001357756182193E-3},{"$f":"'Population 2016'!AL12/'Population 2016'!AL$5","v":0.21438959933310867},{"$f":"'Population 2016'!AM12/'Population 2016'!AM$5","v":0.16305131279179691},{"$f":"'Population 2016'!AN12/'Population 2016'!AN$5","v":0},{"$f":"'Population 2016'!AO12/'Population 2016'!AO$5","v":0},{"$f":"'Population 2016'!AP12/'Population 2016'!AP$5","v":2.6694989141290048E-2},{"$f":"'Population 2016'!AQ12/'Population 2016'!AQ$5","v":0.14605140571052777},{"$f":"'Population 2016'!AR12/'Population 2016'!AR$5","v":0.10195035046247501},{"$f":"'Population 2016'!AS12/'Population 2016'!AS$5","v":2.7855707227200401E-2},{"$f":"'Population 2016'!AT12/'Population 2016'!AT$5","v":0},{"$f":"'Population 2016'!AU12/'Population 2016'!AU$5","v":0},{"$f":"'Population 2016'!AV12/'Population 2016'!AV$5","v":8.9568155421813955E-2},{"$f":"'Population 2016'!AW12/'Population 2016'!AW$5","v":0.10596665446335957},{"$f":"'Population 2016'!AX12/'Population 2016'!AX$5","v":6.8300599307410198E-2},{"$f":"'Population 2016'!AY12/'Population 2016'!AY$5","v":9.2347235396713689E-2},{"$f":"'Population 2016'!AZ12/'Population 2016'!AZ$5","v":8.4792125685292041E-2},{"$f":"'Population 2016'!BA12/'Population 2016'!BA$5","v":0.20539570287194991},{"$f":"'Population 2016'!BB12/'Population 2016'!BB$5","v":8.3239540680692989E-2},{"$f":"'Population 2016'!BC12/'Population 2016'!BC$5","v":0},10]
["SIMD Q2",null,{"$f":"'Population 2016'!C13/'Population 2016'!C$5","v":0.10523222235283895},{"$f":"'Population 2016'!D13/'Population 2016'!D$5","v":7.0951067554747019E-2},{"$f":"'Population 2016'!E13/'Population 2016'!E$5","v":3.9508904504521394E-2},{"$f":"'Population 2016'!F13/'Population 2016'!F$5","v":8.8405871748647946E-2},{"$f":"'Population 2016'!G13/'Population 2016'!G$5","v":8.8913549504682513E-2},{"$f":"'Population 2016'!H13/'Population 2016'!H$5","v":0.12879158790323364},{"$f":"'Population 2016'!I13/'Population 2016'!I$5","v":8.3535717276609994E-2},{"$f":"'Population 2016'!J13/'Population 2016'!J$5","v":9.8521350439116626E-2},{"$f":"'Population 2016'!K13/'Population 2016'!K$5","v":0.13662996739592687},{"$f":"'Population 2016'!L13/'Population 2016'!L$5","v":0.1440201420107064},{"$f":"'Population 2016'!M13/'Population 2016'!M$5","v":0.1440201420107064},{"$f":"'Population 2016'!N13/'Population 2016'!N$5","v":0.10406603386888065},{"$f":"'Population 2016'!O13/'Population 2016'!O$5","v":0.13875432183156497},{"$f":"'Population 2016'!P13/'Population 2016'!P$5","v":8.887636650512791E-2},{"$f":"'Population 2016'!Q13/'Population 2016'!Q$5","v":0.14501592225708276},{"$f":"'Population 2016'!R13/'Population 2016'!R$5","v":4.8091765582583698E-2},{"$f":"'Population 2016'!S13/'Population 2016'!S$5","v":0.10494535466069754},{"$f":"'Population 2016'!T13/'Population 2016'!T$5","v":7.509434489048547E-2},{"$f":"'Population 2016'!U13/'Population 2016'!U$5","v":0.12180763953436906},{"$f":"'Population 2016'!V13/'Population 2016'!V$5","v":0.14931957472466245},{"$f":"'Population 2016'!W13/'Population 2016'!W$5","v":0.10578249302191804},{"$f":"'Population 2016'!X13/'Population 2016'!X$5","v":0.10578249302191804},{"$f":"'Population 2016'!Y13/'Population 2016'!Y$5","v":0.12497416575253176},{"$f":"'Population 2016'!Z13/'Population 2016'!Z$5","v":9.0876006372644855E-2},{"$f":"'Population 2016'!AA13/'Population 2016'!AA$5","v":0.11083229191373392},{"$f":"'Population 2016'!AB13/'Population 2016'!AB$5","v":7.2358064747244197E-2},{"$f":"'Population 2016'!AC13/'Population 2016'!AC$5","v":9.2128806981906036E-2},{"$f":"'Population 2016'!AD13/'Population 2016'!AD$5","v":9.5995385016189663E-2},{"$f":"'Population 2016'!AE13/'Population 2016'!AE$5","v":9.8681711311204429E-2},{"$f":"'Population 2016'!AF13/'Population 2016'!AF$5","v":6.8301437210635058E-2},{"$f":"'Population 2016'!AG13/'Population 2016'!AG$5","v":9.8681711311204429E-2},{"$f":"'Population 2016'!AH13/'Population 2016'!AH$5","v":0.14442473273083603},{"$f":"'Population 2016'!AI13/'Population 2016'!AI$5","v":0.10739128532680024},{"$f":"'Population 2016'!AJ13/'Population 2016'!AJ$5","v":0.19047486267183447},{"$f":"'Population 2016'!AK13/'Population 2016'!AK$5","v":7.95921702726827E-2},{"$f":"'Population 2016'!AL13/'Population 2016'!AL$5","v":0.10674695376101878},{"$f":"'Population 2016'!AM13/'Population 2016'!AM$5","v":0.1493167107946293},{"$f":"'Population 2016'!AN13/'Population 2016'!AN$5","v":7.0415621250136354E-2},{"$f":"'Population 2016'!AO13/'Population 2016'!AO$5","v":7.0415621250136354E-2},{"$f":"'Population 2016'!AP13/'Population 2016'!AP$5","v":5.5965949621926671E-2},{"$f":"'Population 2016'!AQ13/'Population 2016'!AQ$5","v":9.9180687236258017E-2},{"$f":"'Population 2016'!AR13/'Population 2016'!AR$5","v":0.10450026209776681},{"$f":"'Population 2016'!AS13/'Population 2016'!AS$5","v":8.3535717276609994E-2},{"$f":"'Population 2016'!AT13/'Population 2016'!AT$5","v":1.5236990562556018E-2},{"$f":"'Population 2016'!AU13/'Population 2016'!AU$5","v":1.5236990562556018E-2},{"$f":"'Population 2016'!AV13/'Population 2016'!AV$5","v":0.14441980783444197},{"$f":"'Population 2016'!AW13/'Population 2016'!AW$5","v":0.13927405576911342},{"$f":"'Population 2016'!AX13/'Population 2016'!AX$5","v":7.7909963325964449E-2},{"$f":"'Population 2016'!AY13/'Population 2016'!AY$5","v":9.3259080199504296E-2},{"$f":"'Population 2016'!AZ13/'Population 2016'!AZ$5","v":8.2237920739108669E-2},{"$f":"'Population 2016'!BA13/'Population 2016'!BA$5","v":0.15685057223061974},{"$f":"'Population 2016'!BB13/'Population 2016'!BB$5","v":0.13998467094315128},{"$f":"'Population 2016'!BC13/'Population 2016'!BC$5","v":0.12180763953436906},11]
["SIMD Q3",null,{"$f":"'Population 2016'!C14/'Population 2016'!C$5","v":7.5516347819864757E-2},{"$f":"'Population 2016'!D14/'Population 2016'!D$5","v":8.9693181929325239E-2},{"$f":"'Population 2016'!E14/'Population 2016'!E$5","v":0.10269596238497274},{"$f":"'Population 2016'!F14/'Population 2016'!F$5","v":0.16861189801699716},{"$f":"'Population 2016'!G14/'Population 2016'!G$5","v":0.21348725166459157},{"$f":"'Population 2016'!H14/'Population 2016'!H$5","v":9.0813292565488479E-2},{"$f":"'Population 2016'!I14/'Population 2016'!I$5","v":0.17332091114647014},{"$f":"'Population 2016'!J14/'Population 2016'!J$5","v":9.0319530945489834E-2},{"$f":"'Population 2016'!K14/'Population 2016'!K$5","v":9.8426499078580545E-2},{"$f":"'Population 2016'!L14/'Population 2016'!L$5","v":0.19272314266198592},{"$f":"'Population 2016'!M14/'Population 2016'!M$5","v":0.19272314266198592},{"$f":"'Population 2016'!N14/'Population 2016'!N$5","v":6.6564325957836706E-2},{"$f":"'Population 2016'!O14/'Population 2016'!O$5","v":8.7615537789401732E-2},{"$f":"'Population 2016'!P14/'Population 2016'!P$5","v":3.2807393215372481E-2},{"$f":"'Population 2016'!Q14/'Population 2016'!Q$5","v":0.11315965734832728},{"$f":"'Population 2016'!R14/'Population 2016'!R$5","v":5.9509235109384148E-2},{"$f":"'Population 2016'!S14/'Population 2016'!S$5","v":0.10545464816380715},{"$f":"'Population 2016'!T14/'Population 2016'!T$5","v":7.817015118448789E-2},{"$f":"'Population 2016'!U14/'Population 2016'!U$5","v":0.3586951710706856},{"$f":"'Population 2016'!V14/'Population 2016'!V$5","v":9.5221376725868376E-2},{"$f":"'Population 2016'!W14/'Population 2016'!W$5","v":0.11313317514168611},{"$f":"'Population 2016'!X14/'Population 2016'!X$5","v":0.11313317514168611},{"$f":"'Population 2016'!Y14/'Population 2016'!Y$5","v":9.2872132398531024E-2},{"$f":"'Population 2016'!Z14/'Population 2016'!Z$5","v":7.3318324451249847E-2},{"$f":"'Population 2016'!AA14/'Population 2016'!AA$5","v":8.2239925801760219E-2},{"$f":"'Population 2016'!AB14/'Population 2016'!AB$5","v":9.8649990276654762E-2},{"$f":"'Population 2016'!AC14/'Population 2016'!AC$5","v":7.2824722136605569E-2},{"$f":"'Population 2016'!AD14/'Population 2016'!AD$5","v":0.17748706688004764},{"$f":"'Population 2016'!AE14/'Population 2016'!AE$5","v":0.16383125083419747},{"$f":"'Population 2016'!AF14/'Population 2016'!AF$5","v":8.3337103560602629E-2},{"$f":"'Population 2016'!AG14/'Population 2016'!AG$5","v":0.16383125083419747},{"$f":"'Population 2016'!AH14/'Population 2016'!AH$5","v":9.9150125855679297E-2},{"$f":"'Population 2016'!AI14/'Population 2016'!AI$5","v":9.3379506081021968E-2},{"$f":"'Population 2016'!AJ14/'Population 2016'!AJ$5","v":0.12381842009870897},{"$f":"'Population 2016'!AK14/'Population 2016'!AK$5","v":0.14470160793533057},{"$f":"'Population 2016'!AL14/'Population 2016'!AL$5","v":7.6435323956652063E-2},{"$f":"'Population 2016'!AM14/'Population 2016'!AM$5","v":9.529828933214049E-2},{"$f":"'Population 2016'!AN14/'Population 2016'!AN$5","v":0.15899421839205846},{"$f":"'Population 2016'!AO14/'Population 2016'!AO$5","v":0.15899421839205846},{"$f":"'Population 2016'!AP14/'Population 2016'!AP$5","v":0.123472250844126},{"$f":"'Population 2016'!AQ14/'Population 2016'!AQ$5","v":9.367293253685538E-2},{"$f":"'Population 2016'!AR14/'Population 2016'!AR$5","v":0.10450338098321973},{"$f":"'Population 2016'!AS14/'Population 2016'!AS$5","v":0.17332091114647014},{"$f":"'Population 2016'!AT14/'Population 2016'!AT$5","v":0.16170190330574155},{"$f":"'Population 2016'!AU14/'Population 2016'!AU$5","v":0.16170190330574155},{"$f":"'Population 2016'!AV14/'Population 2016'!AV$5","v":0.11133987963256256},{"$f":"'Population 2016'!AW14/'Population 2016'!AW$5","v":0.1032056562328391},{"$f":"'Population 2016'!AX14/'Population 2016'!AX$5","v":8.5934804554225183E-2},{"$f":"'Population 2016'!AY14/'Population 2016'!AY$5","v":0.11450384015177015},{"$f":"'Population 2016'!AZ14/'Population 2016'!AZ$5","v":0.11571008623318051},{"$f":"'Population 2016'!BA14/'Population 2016'!BA$5","v":8.0328222846037578E-2},{"$f":"'Population 2016'!BB14/'Population 2016'!BB$5","v":0.11181925522879653},{"$f":"'Population 2016'!BC14/'Population 2016'!BC$5","v":0.3586951710706856},12]
["SIMD Q4",null,{"$f":"'Population 2016'!C15/'Population 2016'!C$5","v":8.7133854323726195E-2},{"$f":"'Population 2016'!D15/'Population 2016'!D$5","v":0.13744950754574886},{"$f":"'Population 2016'!E15/'Population 2016'!E$5","v":0.18359827300896778},{"$f":"'Population 2016'!F15/'Population 2016'!F$5","v":0.13129023950553695},{"$f":"'Population 2016'!G15/'Population 2016'!G$5","v":0.12589996210685866},{"$f":"'Population 2016'!H15/'Population 2016'!H$5","v":7.6780161666337027E-2},{"$f":"'Population 2016'!I15/'Population 2016'!I$5","v":0.18659450632275354},{"$f":"'Population 2016'!J15/'Population 2016'!J$5","v":0.12317656717779454},{"$f":"'Population 2016'!K15/'Population 2016'!K$5","v":8.4794216320937491E-2},{"$f":"'Population 2016'!L15/'Population 2016'!L$5","v":9.3712769844169458E-2},{"$f":"'Population 2016'!M15/'Population 2016'!M$5","v":9.3712769844169458E-2},{"$f":"'Population 2016'!N15/'Population 2016'!N$5","v":9.2146824089181081E-2},{"$f":"'Population 2016'!O15/'Population 2016'!O$5","v":6.9991381103813116E-2},{"$f":"'Population 2016'!P15/'Population 2016'!P$5","v":9.6900710019159245E-2},{"$f":"'Population 2016'!Q15/'Population 2016'!Q$5","v":0.16494518278281101},{"$f":"'Population 2016'!R15/'Population 2016'!R$5","v":8.0707404055996163E-2},{"$f":"'Population 2016'!S15/'Population 2016'!S$5","v":0.10040937664946661},{"$f":"'Population 2016'!T15/'Population 2016'!T$5","v":8.2849006295863711E-2},{"$f":"'Population 2016'!U15/'Population 2016'!U$5","v":3.0451909883592265E-2},{"$f":"'Population 2016'!V15/'Population 2016'!V$5","v":9.7701895116050097E-2},{"$f":"'Population 2016'!W15/'Population 2016'!W$5","v":8.914295426169605E-2},{"$f":"'Population 2016'!X15/'Population 2016'!X$5","v":8.914295426169605E-2},{"$f":"'Population 2016'!Y15/'Population 2016'!Y$5","v":0.1099108122287404},{"$f":"'Population 2016'!Z15/'Population 2016'!Z$5","v":6.05130250124375E-2},{"$f":"'Population 2016'!AA15/'Population 2016'!AA$5","v":7.7215200806294626E-2},{"$f":"'Population 2016'!AB15/'Population 2016'!AB$5","v":0.1466403283420161},{"$f":"'Population 2016'!AC15/'Population 2016'!AC$5","v":7.2800933347951374E-2},{"$f":"'Population 2016'!AD15/'Population 2016'!AD$5","v":0.15654843872120286},{"$f":"'Population 2016'!AE15/'Population 2016'!AE$5","v":0.16817421123420159},{"$f":"'Population 2016'!AF15/'Population 2016'!AF$5","v":9.1133933553514609E-2},{"$f":"'Population 2016'!AG15/'Population 2016'!AG$5","v":0.16817421123420159},{"$f":"'Population 2016'!AH15/'Population 2016'!AH$5","v":8.5143456897912931E-2},{"$f":"'Population 2016'!AI15/'Population 2016'!AI$5","v":9.3866206579753253E-2},{"$f":"'Population 2016'!AJ15/'Population 2016'!AJ$5","v":8.1490672838301317E-2},{"$f":"'Population 2016'!AK15/'Population 2016'!AK$5","v":0.19389512590674227},{"$f":"'Population 2016'!AL15/'Population 2016'!AL$5","v":8.5826785619268903E-2},{"$f":"'Population 2016'!AM15/'Population 2016'!AM$5","v":6.8386872444230348E-2},{"$f":"'Population 2016'!AN15/'Population 2016'!AN$5","v":0.23900949056397949},{"$f":"'Population 2016'!AO15/'Population 2016'!AO$5","v":0.23900949056397949},{"$f":"'Population 2016'!AP15/'Population 2016'!AP$5","v":0.21140402327092878},{"$f":"'Population 2016'!AQ15/'Population 2016'!AQ$5","v":9.1652052392174055E-2},{"$f":"'Population 2016'!AR15/'Population 2016'!AR$5","v":0.10443632494598201},{"$f":"'Population 2016'!AS15/'Population 2016'!AS$5","v":0.18659450632275354},{"$f":"'Population 2016'!AT15/'Population 2016'!AT$5","v":0.31786787578425685},{"$f":"'Population 2016'!AU15/'Population 2016'!AU$5","v":0.31786787578425685},{"$f":"'Population 2016'!AV15/'Population 2016'!AV$5","v":7.3244641537324462E-2},{"$f":"'Population 2016'!AW15/'Population 2016'!AW$5","v":0.10278616755140643},{"$f":"'Population 2016'!AX15/'Population 2016'!AX$5","v":0.14393600572472751},{"$f":"'Population 2016'!AY15/'Population 2016'!AY$5","v":0.11957406444111257},{"$f":"'Population 2016'!AZ15/'Population 2016'!AZ$5","v":0.14635479287353809},{"$f":"'Population 2016'!BA15/'Population 2016'!BA$5","v":6.8046858129993518E-2},{"$f":"'Population 2016'!BB15/'Population 2016'!BB$5","v":9.0924784046732904E-2},{"$f":"'Population 2016'!BC15/'Population 2016'!BC$5","v":3.0451909883592265E-2},13]
["SIMD Q5 (least deprived)",null,{"$f":"'Population 2016'!C16/'Population 2016'!C$5","v":0.19712961211941549},{"$f":"'Population 2016'!D16/'Population 2016'!D$5","v":0.18329861212992576},{"$f":"'Population 2016'!E16/'Population 2016'!E$5","v":0.17061302556265498},{"$f":"'Population 2016'!F16/'Population 2016'!F$5","v":9.2856039144990993E-2},{"$f":"'Population 2016'!G16/'Population 2016'!G$5","v":3.8407405402479292E-2},{"$f":"'Population 2016'!H16/'Population 2016'!H$5","v":7.095031662089471E-2},{"$f":"'Population 2016'!I16/'Population 2016'!I$5","v":4.8299974876476005E-2},{"$f":"'Population 2016'!J16/'Population 2016'!J$5","v":0.12168381944386854},{"$f":"'Population 2016'!K16/'Population 2016'!K$5","v":7.1492699522751973E-2},{"$f":"'Population 2016'!L16/'Population 2016'!L$5","v":4.7710196495798454E-2},{"$f":"'Population 2016'!M16/'Population 2016'!M$5","v":4.7710196495798454E-2},{"$f":"'Population 2016'!N16/'Population 2016'!N$5","v":7.9729306146068588E-2},{"$f":"'Population 2016'!O16/'Population 2016'!O$5","v":5.958926501619758E-2},{"$f":"'Population 2016'!P16/'Population 2016'!P$5","v":0.27929674292798379},{"$f":"'Population 2016'!Q16/'Population 2016'!Q$5","v":8.7061256624481498E-2},{"$f":"'Population 2016'!R16/'Population 2016'!R$5","v":0.30833821259381489},{"$f":"'Population 2016'!S16/'Population 2016'!S$5","v":0.13863904771824154},{"$f":"'Population 2016'!T16/'Population 2016'!T$5","v":0.21434321531109385},{"$f":"'Population 2016'!U16/'Population 2016'!U$5","v":0},{"$f":"'Population 2016'!V16/'Population 2016'!V$5","v":9.8205631158363921E-2},{"$f":"'Population 2016'!W16/'Population 2016'!W$5","v":0.11217879578242765},{"$f":"'Population 2016'!X16/'Population 2016'!X$5","v":0.11217879578242765},{"$f":"'Population 2016'!Y16/'Population 2016'!Y$5","v":0.10945771927314352},{"$f":"'Population 2016'!Z16/'Population 2016'!Z$5","v":5.3273142941211771E-2},{"$f":"'Population 2016'!AA16/'Population 2016'!AA$5","v":8.4045053107416695E-2},{"$f":"'Population 2016'!AB16/'Population 2016'!AB$5","v":0.16735617125369742},{"$f":"'Population 2016'!AC16/'Population 2016'!AC$5","v":9.8111170180856855E-2},{"$f":"'Population 2016'!AD16/'Population 2016'!AD$5","v":4.6678328184897096E-2},{"$f":"'Population 2016'!AE16/'Population 2016'!AE$5","v":4.9815706526761053E-2},{"$f":"'Population 2016'!AF16/'Population 2016'!AF$5","v":6.4184349032559679E-2},{"$f":"'Population 2016'!AG16/'Population 2016'!AG$5","v":4.9815706526761053E-2},{"$f":"'Population 2016'!AH16/'Population 2016'!AH$5","v":5.8781568412546559E-2},{"$f":"'Population 2016'!AI16/'Population 2016'!AI$5","v":0.1615052716773121},{"$f":"'Population 2016'!AJ16/'Population 2016'!AJ$5","v":7.8116721969718098E-2},{"$f":"'Population 2016'!AK16/'Population 2016'!AK$5","v":8.5387777679996987E-2},{"$f":"'Population 2016'!AL16/'Population 2016'!AL$5","v":4.7977155424699811E-2},{"$f":"'Population 2016'!AM16/'Population 2016'!AM$5","v":4.6307195815872303E-2},{"$f":"'Population 2016'!AN16/'Population 2016'!AN$5","v":3.7253190793062073E-2},{"$f":"'Population 2016'!AO16/'Population 2016'!AO$5","v":3.7253190793062073E-2},{"$f":"'Population 2016'!AP16/'Population 2016'!AP$5","v":9.6412662682497666E-2},{"$f":"'Population 2016'!AQ16/'Population 2016'!AQ$5","v":9.3213952978571823E-2},{"$f":"'Population 2016'!AR16/'Population 2016'!AR$5","v":0.10360915196836203},{"$f":"'Population 2016'!AS16/'Population 2016'!AS$5","v":4.8299974876476005E-2},{"$f":"'Population 2016'!AT16/'Population 2016'!AT$5","v":0},{"$f":"'Population 2016'!AU16/'Population 2016'!AU$5","v":0},{"$f":"'Population 2016'!AV16/'Population 2016'!AV$5","v":0.11041072748389821},{"$f":"'Population 2016'!AW16/'Population 2016'!AW$5","v":7.191561413142962E-2},{"$f":"'Population 2016'!AX16/'Population 2016'!AX$5","v":0.14883013660119862},{"$f":"'Population 2016'!AY16/'Population 2016'!AY$5","v":0.10008873657476822},{"$f":"'Population 2016'!AZ16/'Population 2016'!AZ$5","v":8.9448947541002466E-2},{"$f":"'Population 2016'!BA16/'Population 2016'!BA$5","v":2.0540919887713237E-2},{"$f":"'Population 2016'!BB16/'Population 2016'!BB$5","v":8.973712738998639E-2},{"$f":"'Population 2016'!BC16/'Population 2016'!BC$5","v":0},14]
["SIMD Q1 (most deprived)","16+ Males",{"$f":"'Population 2016'!C17/'Population 2016'!C$5","v":3.9692721297398967E-2},{"$f":"'Population 2016'!D17/'Population 2016'!D$5","v":2.4434435609283767E-2},{"$f":"'Population 2016'!E17/'Population 2016'!E$5","v":1.0439763921638485E-2},{"$f":"'Population 2016'!F17/'Population 2016'!F$5","v":3.3335050218902908E-2},{"$f":"'Population 2016'!G17/'Population 2016'!G$5","v":3.515942185892925E-2},{"$f":"'Population 2016'!H17/'Population 2016'!H$5","v":0.14045127799411827},{"$f":"'Population 2016'!I17/'Population 2016'!I$5","v":2.5960974792730927E-2},{"$f":"'Population 2016'!J17/'Population 2016'!J$5","v":7.733262566033354E-2},{"$f":"'Population 2016'!K17/'Population 2016'!K$5","v":0.11248405235552615},{"$f":"'Population 2016'!L17/'Population 2016'!L$5","v":3.7782154940987724E-2},{"$f":"'Population 2016'!M17/'Population 2016'!M$5","v":3.7782154940987724E-2},{"$f":"'Population 2016'!N17/'Population 2016'!N$5","v":0.16455421512445648},{"$f":"'Population 2016'!O17/'Population 2016'!O$5","v":0.14693731982048919},{"$f":"'Population 2016'!P17/'Population 2016'!P$5","v":2.1841541755888649E-2},{"$f":"'Population 2016'!Q17/'Population 2016'!Q$5","v":1.5969260055698525E-2},{"$f":"'Population 2016'!R17/'Population 2016'!R$5","v":2.9821152924894873E-2},{"$f":"'Population 2016'!S17/'Population 2016'!S$5","v":6.4575238626513973E-2},{"$f":"'Population 2016'!T17/'Population 2016'!T$5","v":6.2509597353224478E-2},{"$f":"'Population 2016'!U17/'Population 2016'!U$5","v":0},{"$f":"'Population 2016'!V17/'Population 2016'!V$5","v":7.0072736431564406E-2},{"$f":"'Population 2016'!W17/'Population 2016'!W$5","v":9.2195660842337837E-2},{"$f":"'Population 2016'!X17/'Population 2016'!X$5","v":9.2195660842337837E-2},{"$f":"'Population 2016'!Y17/'Population 2016'!Y$5","v":7.3552089791895203E-2},{"$f":"'Population 2016'!Z17/'Population 2016'!Z$5","v":0.21924647152538895},{"$f":"'Population 2016'!AA17/'Population 2016'!AA$5","v":0.15194627537193794},{"$f":"'Population 2016'!AB17/'Population 2016'!AB$5","v":2.1039272079670022E-2},{"$f":"'Population 2016'!AC17/'Population 2016'!AC$5","v":0.16843703521361297},{"$f":"'Population 2016'!AD17/'Population 2016'!AD$5","v":3.3190665823067476E-2},{"$f":"'Population 2016'!AE17/'Population 2016'!AE$5","v":3.2443864926744628E-2},{"$f":"'Population 2016'!AF17/'Population 2016'!AF$5","v":0.19449848436863773},{"$f":"'Population 2016'!AG17/'Population 2016'!AG$5","v":3.2443864926744628E-2},{"$f":"'Population 2016'!AH17/'Population 2016'!AH$5","v":0.12232800497849772},{"$f":"'Population 2016'!AI17/'Population 2016'!AI$5","v":5.8065010062122668E-2},{"$f":"'Population 2016'!AJ17/'Population 2016'!AJ$5","v":4.6524272927529767E-2},{"$f":"'Population 2016'!AK17/'Population 2016'!AK$5","v":3.5829677030034071E-3},{"$f":"'Population 2016'!AL17/'Population 2016'!AL$5","v":0.18455685425941362},{"$f":"'Population 2016'!AM17/'Population 2016'!AM$5","v":0.14878065565338963},{"$f":"'Population 2016'!AN17/'Population 2016'!AN$5","v":0},{"$f":"'Population 2016'!AO17/'Population 2016'!AO$5","v":0},{"$f":"'Population 2016'!AP17/'Population 2016'!AP$5","v":2.5775565524784806E-2},{"$f":"'Population 2016'!AQ17/'Population 2016'!AQ$5","v":0.13420014248917631},{"$f":"'Population 2016'!AR17/'Population 2016'!AR$5","v":9.2363787690338345E-2},{"$f":"'Population 2016'!AS17/'Population 2016'!AS$5","v":2.5960974792730927E-2},{"$f":"'Population 2016'!AT17/'Population 2016'!AT$5","v":0},{"$f":"'Population 2016'!AU17/'Population 2016'!AU$5","v":0},{"$f":"'Population 2016'!AV17/'Population 2016'!AV$5","v":8.1026290782388349E-2},{"$f":"'Population 2016'!AW17/'Population 2016'!AW$5","v":9.4476478125572028E-2},{"$f":"'Population 2016'!AX17/'Population 2016'!AX$5","v":5.8320661410480854E-2},{"$f":"'Population 2016'!AY17/'Population 2016'!AY$5","v":8.440684189590282E-2},{"$f":"'Population 2016'!AZ17/'Population 2016'!AZ$5","v":7.755233531418447E-2},{"$f":"'Population 2016'!BA17/'Population 2016'!BA$5","v":0.17446285899373784},{"$f":"'Population 2016'!BB17/'Population 2016'!BB$5","v":7.5326432956091233E-2},{"$f":"'Population 2016'!BC17/'Population 2016'!BC$5","v":0},15]
["SIMD Q2",null,{"$f":"'Population 2016'!C18/'Population 2016'!C$5","v":9.9548690794416653E-2},{"$f":"'Population 2016'!D18/'Population 2016'!D$5","v":6.6928787300842105E-2},{"$f":"'Population 2016'!E18/'Population 2016'!E$5","v":3.7010299129472762E-2},{"$f":"'Population 2016'!F18/'Population 2016'!F$5","v":8.0370847283028582E-2},{"$f":"'Population 2016'!G18/'Population 2016'!G$5","v":7.9819195582742378E-2},{"$f":"'Population 2016'!H18/'Population 2016'!H$5","v":0.11487518360121006},{"$f":"'Population 2016'!I18/'Population 2016'!I$5","v":7.8228372833096055E-2},{"$f":"'Population 2016'!J18/'Population 2016'!J$5","v":8.9921464883109564E-2},{"$f":"'Population 2016'!K18/'Population 2016'!K$5","v":0.1245570098757265},{"$f":"'Population 2016'!L18/'Population 2016'!L$5","v":0.13209060727844582},{"$f":"'Population 2016'!M18/'Population 2016'!M$5","v":0.13209060727844582},{"$f":"'Population 2016'!N18/'Population 2016'!N$5","v":9.6141326624926665E-2},{"$f":"'Population 2016'!O18/'Population 2016'!O$5","v":0.12654917228876275},{"$f":"'Population 2016'!P18/'Population 2016'!P$5","v":7.7673841992561707E-2},{"$f":"'Population 2016'!Q18/'Population 2016'!Q$5","v":0.12601497044688076},{"$f":"'Population 2016'!R18/'Population 2016'!R$5","v":4.2210038856656196E-2},{"$f":"'Population 2016'!S18/'Population 2016'!S$5","v":9.5423243202211586E-2},{"$f":"'Population 2016'!T18/'Population 2016'!T$5","v":7.0731911606631823E-2},{"$f":"'Population 2016'!U18/'Population 2016'!U$5","v":0.11862081175585358},{"$f":"'Population 2016'!V18/'Population 2016'!V$5","v":0.13715358606635578},{"$f":"'Population 2016'!W18/'Population 2016'!W$5","v":9.5343151674412832E-2},{"$f":"'Population 2016'!X18/'Population 2016'!X$5","v":9.5343151674412832E-2},{"$f":"'Population 2016'!Y18/'Population 2016'!Y$5","v":0.11451725727730878},{"$f":"'Population 2016'!Z18/'Population 2016'!Z$5","v":8.6652096565314765E-2},{"$f":"'Population 2016'!AA18/'Population 2016'!AA$5","v":0.10057289704662038},{"$f":"'Population 2016'!AB18/'Population 2016'!AB$5","v":6.777273983398667E-2},{"$f":"'Population 2016'!AC18/'Population 2016'!AC$5","v":8.4563972189871772E-2},{"$f":"'Population 2016'!AD18/'Population 2016'!AD$5","v":8.6475120026796679E-2},{"$f":"'Population 2016'!AE18/'Population 2016'!AE$5","v":8.8999887062495509E-2},{"$f":"'Population 2016'!AF18/'Population 2016'!AF$5","v":5.9735480854785923E-2},{"$f":"'Population 2016'!AG18/'Population 2016'!AG$5","v":8.8999887062495509E-2},{"$f":"'Population 2016'!AH18/'Population 2016'!AH$5","v":0.12932576651217223},{"$f":"'Population 2016'!AI18/'Population 2016'!AI$5","v":9.7702390847843212E-2},{"$f":"'Population 2016'!AJ18/'Population 2016'!AJ$5","v":0.16536541839779159},{"$f":"'Population 2016'!AK18/'Population 2016'!AK$5","v":7.2111939454131732E-2},{"$f":"'Population 2016'!AL18/'Population 2016'!AL$5","v":9.3338181302211734E-2},{"$f":"'Population 2016'!AM18/'Population 2016'!AM$5","v":0.13256860962508737},{"$f":"'Population 2016'!AN18/'Population 2016'!AN$5","v":7.1451947201919927E-2},{"$f":"'Population 2016'!AO18/'Population 2016'!AO$5","v":7.1451947201919927E-2},{"$f":"'Population 2016'!AP18/'Population 2016'!AP$5","v":5.6718925859581819E-2},{"$f":"'Population 2016'!AQ18/'Population 2016'!AQ$5","v":8.5952485340055895E-2},{"$f":"'Population 2016'!AR18/'Population 2016'!AR$5","v":9.5338313302291505E-2},{"$f":"'Population 2016'!AS18/'Population 2016'!AS$5","v":7.8228372833096055E-2},{"$f":"'Population 2016'!AT18/'Population 2016'!AT$5","v":1.7925871250065905E-2},{"$f":"'Population 2016'!AU18/'Population 2016'!AU$5","v":1.7925871250065905E-2},{"$f":"'Population 2016'!AV18/'Population 2016'!AV$5","v":0.12807517685566466},{"$f":"'Population 2016'!AW18/'Population 2016'!AW$5","v":0.12591143449874917},{"$f":"'Population 2016'!AX18/'Population 2016'!AX$5","v":7.1188519876816125E-2},{"$f":"'Population 2016'!AY18/'Population 2016'!AY$5","v":8.5815917505584288E-2},{"$f":"'Population 2016'!AZ18/'Population 2016'!AZ$5","v":7.7431528323486598E-2},{"$f":"'Population 2016'!BA18/'Population 2016'!BA$5","v":0.14069585402720794},{"$f":"'Population 2016'!BB18/'Population 2016'!BB$5","v":0.12759713581406268},{"$f":"'Population 2016'!BC18/'Population 2016'!BC$5","v":0.11862081175585358},16]
["SIMD Q3",null,{"$f":"'Population 2016'!C19/'Population 2016'!C$5","v":8.0157217113972182E-2},{"$f":"'Population 2016'!D19/'Population 2016'!D$5","v":8.9905910429075836E-2},{"$f":"'Population 2016'!E19/'Population 2016'!E$5","v":9.8847266300704575E-2},{"$f":"'Population 2016'!F19/'Population 2016'!F$5","v":0.16013391707442698},{"$f":"'Population 2016'!G19/'Population 2016'!G$5","v":0.19827586206896552},{"$f":"'Population 2016'!H19/'Population 2016'!H$5","v":8.3339547943828571E-2},{"$f":"'Population 2016'!I19/'Population 2016'!I$5","v":0.16154425927476762},{"$f":"'Population 2016'!J19/'Population 2016'!J$5","v":8.2640173158737132E-2},{"$f":"'Population 2016'!K19/'Population 2016'!K$5","v":9.0582620611444509E-2},{"$f":"'Population 2016'!L19/'Population 2016'!L$5","v":0.17981668864073197},{"$f":"'Population 2016'!M19/'Population 2016'!M$5","v":0.17981668864073197},{"$f":"'Population 2016'!N19/'Population 2016'!N$5","v":6.1090973388736626E-2},{"$f":"'Population 2016'!O19/'Population 2016'!O$5","v":8.5376606136257818E-2},{"$f":"'Population 2016'!P19/'Population 2016'!P$5","v":2.8637439422968557E-2},{"$f":"'Population 2016'!Q19/'Population 2016'!Q$5","v":0.10284250478842787},{"$f":"'Population 2016'!R19/'Population 2016'!R$5","v":5.1365305796561449E-2},{"$f":"'Population 2016'!S19/'Population 2016'!S$5","v":9.867318891876195E-2},{"$f":"'Population 2016'!T19/'Population 2016'!T$5","v":7.4601099100524426E-2},{"$f":"'Population 2016'!U19/'Population 2016'!U$5","v":0.34338069313504183},{"$f":"'Population 2016'!V19/'Population 2016'!V$5","v":8.9229970768044814E-2},{"$f":"'Population 2016'!W19/'Population 2016'!W$5","v":0.1038443185012322},{"$f":"'Population 2016'!X19/'Population 2016'!X$5","v":0.1038443185012322},{"$f":"'Population 2016'!Y19/'Population 2016'!Y$5","v":8.6071763564967166E-2},{"$f":"'Population 2016'!Z19/'Population 2016'!Z$5","v":6.9400270624468866E-2},{"$f":"'Population 2016'!AA19/'Population 2016'!AA$5","v":7.5069245268101603E-2},{"$f":"'Population 2016'!AB19/'Population 2016'!AB$5","v":9.7100396098379782E-2},{"$f":"'Population 2016'!AC19/'Population 2016'!AC$5","v":6.7085418299991109E-2},{"$f":"'Population 2016'!AD19/'Population 2016'!AD$5","v":0.16795191484610517},{"$f":"'Population 2016'!AE19/'Population 2016'!AE$5","v":0.15644924485877679},{"$f":"'Population 2016'!AF19/'Population 2016'!AF$5","v":7.4575095386749918E-2},{"$f":"'Population 2016'!AG19/'Population 2016'!AG$5","v":0.15644924485877679},{"$f":"'Population 2016'!AH19/'Population 2016'!AH$5","v":8.940861763094099E-2},{"$f":"'Population 2016'!AI19/'Population 2016'!AI$5","v":8.8299227841455941E-2},{"$f":"'Population 2016'!AJ19/'Population 2016'!AJ$5","v":0.11253938599670971},{"$f":"'Population 2016'!AK19/'Population 2016'!AK$5","v":0.13409099480783979},{"$f":"'Population 2016'!AL19/'Population 2016'!AL$5","v":6.8001631755378586E-2},{"$f":"'Population 2016'!AM19/'Population 2016'!AM$5","v":8.6036850168966034E-2},{"$f":"'Population 2016'!AN19/'Population 2016'!AN$5","v":0.15430347987345916},{"$f":"'Population 2016'!AO19/'Population 2016'!AO$5","v":0.15430347987345916},{"$f":"'Population 2016'!AP19/'Population 2016'!AP$5","v":0.11599797092719116},{"$f":"'Population 2016'!AQ19/'Population 2016'!AQ$5","v":8.4164520195100567E-2},{"$f":"'Population 2016'!AR19/'Population 2016'!AR$5","v":9.7773717285954784E-2},{"$f":"'Population 2016'!AS19/'Population 2016'!AS$5","v":0.16154425927476762},{"$f":"'Population 2016'!AT19/'Population 2016'!AT$5","v":0.16734328043443877},{"$f":"'Population 2016'!AU19/'Population 2016'!AU$5","v":0.16734328043443877},{"$f":"'Population 2016'!AV19/'Population 2016'!AV$5","v":9.9429838454228703E-2},{"$f":"'Population 2016'!AW19/'Population 2016'!AW$5","v":9.295869180547929E-2},{"$f":"'Population 2016'!AX19/'Population 2016'!AX$5","v":7.8344429252335257E-2},{"$f":"'Population 2016'!AY19/'Population 2016'!AY$5","v":0.10641198249747559},{"$f":"'Population 2016'!AZ19/'Population 2016'!AZ$5","v":0.10867164084656937},{"$f":"'Population 2016'!BA19/'Population 2016'!BA$5","v":7.2581515871302099E-2},{"$f":"'Population 2016'!BB19/'Population 2016'!BB$5","v":0.10840128985036906},{"$f":"'Population 2016'!BC19/'Population 2016'!BC$5","v":0.34338069313504183},17]
["SIMD Q4",null,{"$f":"'Population 2016'!C20/'Population 2016'!C$5","v":8.4956530183539228E-2},{"$f":"'Population 2016'!D20/'Population 2016'!D$5","v":0.13427569613567678},{"$f":"'Population 2016'!E20/'Population 2016'!E$5","v":0.17951049836160868},{"$f":"'Population 2016'!F20/'Population 2016'!F$5","v":0.12262683492145249},{"$f":"'Population 2016'!G20/'Population 2016'!G$5","v":0.11838900016239917},{"$f":"'Population 2016'!H20/'Population 2016'!H$5","v":6.948150694036892E-2},{"$f":"'Population 2016'!I20/'Population 2016'!I$5","v":0.17034796080730258},{"$f":"'Population 2016'!J20/'Population 2016'!J$5","v":0.11792707098015474},{"$f":"'Population 2016'!K20/'Population 2016'!K$5","v":9.2519964088267265E-2},{"$f":"'Population 2016'!L20/'Population 2016'!L$5","v":8.8002160341842328E-2},{"$f":"'Population 2016'!M20/'Population 2016'!M$5","v":8.8002160341842328E-2},{"$f":"'Population 2016'!N20/'Population 2016'!N$5","v":8.1208156179423091E-2},{"$f":"'Population 2016'!O20/'Population 2016'!O$5","v":6.5265848366867774E-2},{"$f":"'Population 2016'!P20/'Population 2016'!P$5","v":8.707314324354784E-2},{"$f":"'Population 2016'!Q20/'Population 2016'!Q$5","v":0.14691954266107332},{"$f":"'Population 2016'!R20/'Population 2016'!R$5","v":6.9023793048384519E-2},{"$f":"'Population 2016'!S20/'Population 2016'!S$5","v":9.3231604089176676E-2},{"$f":"'Population 2016'!T20/'Population 2016'!T$5","v":7.7725764647305989E-2},{"$f":"'Population 2016'!U20/'Population 2016'!U$5","v":2.7043774620457664E-2},{"$f":"'Population 2016'!V20/'Population 2016'!V$5","v":9.3809389334534157E-2},{"$f":"'Population 2016'!W20/'Population 2016'!W$5","v":8.4076899443714492E-2},{"$f":"'Population 2016'!X20/'Population 2016'!X$5","v":8.4076899443714492E-2},{"$f":"'Population 2016'!Y20/'Population 2016'!Y$5","v":0.10536795917394},{"$f":"'Population 2016'!Z20/'Population 2016'!Z$5","v":5.6827266867086217E-2},{"$f":"'Population 2016'!AA20/'Population 2016'!AA$5","v":7.2242297647355055E-2},{"$f":"'Population 2016'!AB20/'Population 2016'!AB$5","v":0.14317472339641565},{"$f":"'Population 2016'!AC20/'Population 2016'!AC$5","v":6.7178504864290126E-2},{"$f":"'Population 2016'!AD20/'Population 2016'!AD$5","v":0.14985299043507389},{"$f":"'Population 2016'!AE20/'Population 2016'!AE$5","v":0.16178810870748159},{"$f":"'Population 2016'!AF20/'Population 2016'!AF$5","v":8.5327783558792919E-2},{"$f":"'Population 2016'!AG20/'Population 2016'!AG$5","v":0.16178810870748159},{"$f":"'Population 2016'!AH20/'Population 2016'!AH$5","v":8.1337135320397908E-2},{"$f":"'Population 2016'!AI20/'Population 2016'!AI$5","v":8.6989511330825095E-2},{"$f":"'Population 2016'!AJ20/'Population 2016'!AJ$5","v":7.3376460418816056E-2},{"$f":"'Population 2016'!AK20/'Population 2016'!AK$5","v":0.18892925838854457},{"$f":"'Population 2016'!AL20/'Population 2016'!AL$5","v":7.7623667547578087E-2},{"$f":"'Population 2016'!AM20/'Population 2016'!AM$5","v":6.69308307768091E-2},{"$f":"'Population 2016'!AN20/'Population 2016'!AN$5","v":0.23126431766117594},{"$f":"'Population 2016'!AO20/'Population 2016'!AO$5","v":0.23126431766117594},{"$f":"'Population 2016'!AP20/'Population 2016'!AP$5","v":0.20198785726740962},{"$f":"'Population 2016'!AQ20/'Population 2016'!AQ$5","v":8.5253740340877959E-2},{"$f":"'Population 2016'!AR20/'Population 2016'!AR$5","v":9.8467669299228761E-2},{"$f":"'Population 2016'!AS20/'Population 2016'!AS$5","v":0.17034796080730258},{"$f":"'Population 2016'!AT20/'Population 2016'!AT$5","v":0.31992407866294092},{"$f":"'Population 2016'!AU20/'Population 2016'!AU$5","v":0.31992407866294092},{"$f":"'Population 2016'!AV20/'Population 2016'!AV$5","v":6.4280435012142326E-2},{"$f":"'Population 2016'!AW20/'Population 2016'!AW$5","v":9.6505277930319114E-2},{"$f":"'Population 2016'!AX20/'Population 2016'!AX$5","v":0.13166873250955186},{"$f":"'Population 2016'!AY20/'Population 2016'!AY$5","v":0.11201615617637159},{"$f":"'Population 2016'!AZ20/'Population 2016'!AZ$5","v":0.13660394291006783},{"$f":"'Population 2016'!BA20/'Population 2016'!BA$5","v":6.179820773051177E-2},{"$f":"'Population 2016'!BB20/'Population 2016'!BB$5","v":8.6008437886247346E-2},{"$f":"'Population 2016'!BC20/'Population 2016'!BC$5","v":2.7043774620457664E-2},18]
["SIMD Q5 (least deprived)",null,{"$f":"'Population 2016'!C21/'Population 2016'!C$5","v":0.19005075311904238},{"$f":"'Population 2016'!D21/'Population 2016'!D$5","v":0.17840585663566211},{"$f":"'Population 2016'!E21/'Population 2016'!E$5","v":0.16772533154571323},{"$f":"'Population 2016'!F21/'Population 2016'!F$5","v":8.6458923512747879E-2},{"$f":"'Population 2016'!G21/'Population 2016'!G$5","v":6.3755210306934443E-2},{"$f":"'Population 2016'!H21/'Population 2016'!H$5","v":6.4828655082632705E-2},{"$f":"'Population 2016'!I21/'Population 2016'!I$5","v":4.4311615442592746E-2},{"$f":"'Population 2016'!J21/'Population 2016'!J$5","v":0.11089457054476999},{"$f":"'Population 2016'!K21/'Population 2016'!K$5","v":6.5279024712942404E-2},{"$f":"'Population 2016'!L21/'Population 2016'!L$5","v":4.262703921973536E-2},{"$f":"'Population 2016'!M21/'Population 2016'!M$5","v":4.262703921973536E-2},{"$f":"'Population 2016'!N21/'Population 2016'!N$5","v":7.2656545116981858E-2},{"$f":"'Population 2016'!O21/'Population 2016'!O$5","v":5.554729990786697E-2},{"$f":"'Population 2016'!P21/'Population 2016'!P$5","v":0.26208723092527891},{"$f":"'Population 2016'!Q21/'Population 2016'!Q$5","v":7.9740543589382026E-2},{"$f":"'Population 2016'!R21/'Population 2016'!R$5","v":0.27517698408473945},{"$f":"'Population 2016'!S21/'Population 2016'!S$5","v":0.12804450713275703},{"$f":"'Population 2016'!T21/'Population 2016'!T$5","v":0.19627227167605851},{"$f":"'Population 2016'!U21/'Population 2016'!U$5","v":0},{"$f":"'Population 2016'!V21/'Population 2016'!V$5","v":9.4023095534303658E-2},{"$f":"'Population 2016'!W21/'Population 2016'!W$5","v":0.10337039724406617},{"$f":"'Population 2016'!X21/'Population 2016'!X$5","v":0.10337039724406617},{"$f":"'Population 2016'!Y21/'Population 2016'!Y$5","v":0.10210886949333078},{"$f":"'Population 2016'!Z21/'Population 2016'!Z$5","v":4.9498338117979102E-2},{"$f":"'Population 2016'!AA21/'Population 2016'!AA$5","v":7.7625789203385434E-2},{"$f":"'Population 2016'!AB21/'Population 2016'!AB$5","v":0.16454970676437775},{"$f":"'Population 2016'!AC21/'Population 2016'!AC$5","v":9.0303276026486232E-2},{"$f":"'Population 2016'!AD21/'Population 2016'!AD$5","v":4.9916260374409167E-2},{"$f":"'Population 2016'!AE21/'Population 2016'!AE$5","v":4.4666783026519781E-2},{"$f":"'Population 2016'!AF21/'Population 2016'!AF$5","v":5.6176386312566919E-2},{"$f":"'Population 2016'!AG21/'Population 2016'!AG$5","v":4.4666783026519781E-2},{"$f":"'Population 2016'!AH21/'Population 2016'!AH$5","v":5.4856357337246781E-2},{"$f":"'Population 2016'!AI21/'Population 2016'!AI$5","v":0.14930084653075509},{"$f":"'Population 2016'!AJ21/'Population 2016'!AJ$5","v":7.6234559295095219E-2},{"$f":"'Population 2016'!AK21/'Population 2016'!AK$5","v":9.3308022076109776E-2},{"$f":"'Population 2016'!AL21/'Population 2016'!AL$5","v":4.5103847040669727E-2},{"$f":"'Population 2016'!AM21/'Population 2016'!AM$5","v":4.3322672597078497E-2},{"$f":"'Population 2016'!AN21/'Population 2016'!AN$5","v":3.7307734264208574E-2},{"$f":"'Population 2016'!AO21/'Population 2016'!AO$5","v":3.7307734264208574E-2},{"$f":"'Population 2016'!AP21/'Population 2016'!AP$5","v":8.5569804860263457E-2},{"$f":"'Population 2016'!AQ21/'Population 2016'!AQ$5","v":8.6658080780402255E-2},{"$f":"'Population 2016'!AR21/'Population 2016'!AR$5","v":9.7057041964380988E-2},{"$f":"'Population 2016'!AS21/'Population 2016'!AS$5","v":4.4311615442592746E-2},{"$f":"'Population 2016'!AT21/'Population 2016'!AT$5","v":0},{"$f":"'Population 2016'!AU21/'Population 2016'!AU$5","v":0},{"$f":"'Population 2016'!AV21/'Population 2016'!AV$5","v":9.8205046985534797E-2},{"$f":"'Population 2016'!AW21/'Population 2016'!AW$5","v":6.6999969491732259E-2},{"$f":"'Population 2016'!AX21/'Population 2016'!AX$5","v":0.13556614743728995},{"$f":"'Population 2016'!AY21/'Population 2016'!AY$5","v":9.157614516079679E-2},{"$f":"'Population 2016'!AZ21/'Population 2016'!AZ$5","v":8.119667953356996E-2},{"$f":"'Population 2016'!BA21/'Population 2016'!BA$5","v":1.9299287410926364E-2},{"$f":"'Population 2016'!BB21/'Population 2016'!BB$5","v":8.6961325203869552E-2},{"$f":"'Population 2016'!BC21/'Population 2016'!BC$5","v":0},19]
["All quintiles","Female 0-4",{"$f":"'Population 2016'!C22/'Population 2016'!C$5","v":0},{"$f":"'Population 2016'!D22/'Population 2016'!D$5","v":0},{"$f":"'Population 2016'!E22/'Population 2016'!E$5","v":0},{"$f":"'Population 2016'!F22/'Population 2016'!F$5","v":0},{"$f":"'Population 2016'!G22/'Population 2016'!G$5","v":0},{"$f":"'Population 2016'!H22/'Population 2016'!H$5","v":0},{"$f":"'Population 2016'!I22/'Population 2016'!I$5","v":0},{"$f":"'Population 2016'!J22/'Population 2016'!J$5","v":0},{"$f":"'Population 2016'!K22/'Population 2016'!K$5","v":0},{"$f":"'Population 2016'!L22/'Population 2016'!L$5","v":0},{"$f":"'Population 2016'!M22/'Population 2016'!M$5","v":0},{"$f":"'Population 2016'!N22/'Population 2016'!N$5","v":0},{"$f":"'Population 2016'!O22/'Population 2016'!O$5","v":0},{"$f":"'Population 2016'!P22/'Population 2016'!P$5","v":0},{"$f":"'Population 2016'!Q22/'Population 2016'!Q$5","v":0},{"$f":"'Population 2016'!R22/'Population 2016'!R$5","v":0},{"$f":"'Population 2016'!S22/'Population 2016'!S$5","v":0},{"$f":"'Population 2016'!T22/'Population 2016'!T$5","v":0},{"$f":"'Population 2016'!U22/'Population 2016'!U$5","v":0},{"$f":"'Population 2016'!V22/'Population 2016'!V$5","v":0},{"$f":"'Population 2016'!W22/'Population 2016'!W$5","v":0},{"$f":"'Population 2016'!X22/'Population 2016'!X$5","v":0},{"$f":"'Population 2016'!Y22/'Population 2016'!Y$5","v":0},{"$f":"'Population 2016'!Z22/'Population 2016'!Z$5","v":0},{"$f":"'Population 2016'!AA22/'Population 2016'!AA$5","v":0},{"$f":"'Population 2016'!AB22/'Population 2016'!AB$5","v":0},{"$f":"'Population 2016'!AC22/'Population 2016'!AC$5","v":0},{"$f":"'Population 2016'!AD22/'Population 2016'!AD$5","v":0},{"$f":"'Population 2016'!AE22/'Population 2016'!AE$5","v":0},{"$f":"'Population 2016'!AF22/'Population 2016'!AF$5","v":0},{"$f":"'Population 2016'!AG22/'Population 2016'!AG$5","v":0},{"$f":"'Population 2016'!AH22/'Population 2016'!AH$5","v":0},{"$f":"'Population 2016'!AI22/'Population 2016'!AI$5","v":0},{"$f":"'Population 2016'!AJ22/'Population 2016'!AJ$5","v":0},{"$f":"'Population 2016'!AK22/'Population 2016'!AK$5","v":0},{"$f":"'Population 2016'!AL22/'Population 2016'!AL$5","v":0},{"$f":"'Population 2016'!AM22/'Population 2016'!AM$5","v":0},{"$f":"'Population 2016'!AN22/'Population 2016'!AN$5","v":0},{"$f":"'Population 2016'!AO22/'Population 2016'!AO$5","v":0},{"$f":"'Population 2016'!AP22/'Population 2016'!AP$5","v":0},{"$f":"'Population 2016'!AQ22/'Population 2016'!AQ$5","v":0},{"$f":"'Population 2016'!AR22/'Population 2016'!AR$5","v":0},{"$f":"'Population 2016'!AS22/'Population 2016'!AS$5","v":0},{"$f":"'Population 2016'!AT22/'Population 2016'!AT$5","v":0},{"$f":"'Population 2016'!AU22/'Population 2016'!AU$5","v":0},{"$f":"'Population 2016'!AV22/'Population 2016'!AV$5","v":0},{"$f":"'Population 2016'!AW22/'Population 2016'!AW$5","v":0},{"$f":"'Population 2016'!AX22/'Population 2016'!AX$5","v":0},{"$f":"'Population 2016'!AY22/'Population 2016'!AY$5","v":0},{"$f":"'Population 2016'!AZ22/'Population 2016'!AZ$5","v":0},{"$f":"'Population 2016'!BA22/'Population 2016'!BA$5","v":0},{"$f":"'Population 2016'!BB22/'Population 2016'!BB$5","v":0},{"$f":"'Population 2016'!BC22/'Population 2016'!BC$5","v":0},20]
[null,"Female 5-9",{"$f":"'Population 2016'!C23/'Population 2016'!C$5","v":0},{"$f":"'Population 2016'!D23/'Population 2016'!D$5","v":0},{"$f":"'Population 2016'!E23/'Population 2016'!E$5","v":0},{"$f":"'Population 2016'!F23/'Population 2016'!F$5","v":0},{"$f":"'Population 2016'!G23/'Population 2016'!G$5","v":0},{"$f":"'Population 2016'!H23/'Population 2016'!H$5","v":0},{"$f":"'Population 2016'!I23/'Population 2016'!I$5","v":0},{"$f":"'Population 2016'!J23/'Population 2016'!J$5","v":0},{"$f":"'Population 2016'!K23/'Population 2016'!K$5","v":0},{"$f":"'Population 2016'!L23/'Population 2016'!L$5","v":0},{"$f":"'Population 2016'!M23/'Population 2016'!M$5","v":0},{"$f":"'Population 2016'!N23/'Population 2016'!N$5","v":0},{"$f":"'Population 2016'!O23/'Population 2016'!O$5","v":0},{"$f":"'Population 2016'!P23/'Population 2016'!P$5","v":0},{"$f":"'Population 2016'!Q23/'Population 2016'!Q$5","v":0},{"$f":"'Population 2016'!R23/'Population 2016'!R$5","v":0},{"$f":"'Population 2016'!S23/'Population 2016'!S$5","v":0},{"$f":"'Population 2016'!T23/'Population 2016'!T$5","v":0},{"$f":"'Population 2016'!U23/'Population 2016'!U$5","v":0},{"$f":"'Population 2016'!V23/'Population 2016'!V$5","v":0},{"$f":"'Population 2016'!W23/'Population 2016'!W$5","v":0},{"$f":"'Population 2016'!X23/'Population 2016'!X$5","v":0},{"$f":"'Population 2016'!Y23/'Population 2016'!Y$5","v":0},{"$f":"'Population 2016'!Z23/'Population 2016'!Z$5","v":0},{"$f":"'Population 2016'!AA23/'Population 2016'!AA$5","v":0},{"$f":"'Population 2016'!AB23/'Population 2016'!AB$5","v":0},{"$f":"'Population 2016'!AC23/'Population 2016'!AC$5","v":0},{"$f":"'Population 2016'!AD23/'Population 2016'!AD$5","v":0},{"$f":"'Population 2016'!AE23/'Population 2016'!AE$5","v":0},{"$f":"'Population 2016'!AF23/'Population 2016'!AF$5","v":0},{"$f":"'Population 2016'!AG23/'Population 2016'!AG$5","v":0},{"$f":"'Population 2016'!AH23/'Population 2016'!AH$5","v":0},{"$f":"'Population 2016'!AI23/'Population 2016'!AI$5","v":0},{"$f":"'Population 2016'!AJ23/'Population 2016'!AJ$5","v":0},{"$f":"'Population 2016'!AK23/'Population 2016'!AK$5","v":0},{"$f":"'Population 2016'!AL23/'Population 2016'!AL$5","v":0},{"$f":"'Population 2016'!AM23/'Population 2016'!AM$5","v":0},{"$f":"'Population 2016'!AN23/'Population 2016'!AN$5","v":0},{"$f":"'Population 2016'!AO23/'Population 2016'!AO$5","v":0},{"$f":"'Population 2016'!AP23/'Population 2016'!AP$5","v":0},{"$f":"'Population 2016'!AQ23/'Population 2016'!AQ$5","v":0},{"$f":"'Population 2016'!AR23/'Population 2016'!AR$5","v":0},{"$f":"'Population 2016'!AS23/'Population 2016'!AS$5","v":0},{"$f":"'Population 2016'!AT23/'Population 2016'!AT$5","v":0},{"$f":"'Population 2016'!AU23/'Population 2016'!AU$5","v":0},{"$f":"'Population 2016'!AV23/'Population 2016'!AV$5","v":0},{"$f":"'Population 2016'!AW23/'Population 2016'!AW$5","v":0},{"$f":"'Population 2016'!AX23/'Population 2016'!AX$5","v":0},{"$f":"'Population 2016'!AY23/'Population 2016'!AY$5","v":0},{"$f":"'Population 2016'!AZ23/'Population 2016'!AZ$5","v":0},{"$f":"'Population 2016'!BA23/'Population 2016'!BA$5","v":0},{"$f":"'Population 2016'!BB23/'Population 2016'!BB$5","v":0},{"$f":"'Population 2016'!BC23/'Population 2016'!BC$5","v":0},21]
[null,"Female 10-15",{"$f":"'Population 2016'!C24/'Population 2016'!C$5","v":0},{"$f":"'Population 2016'!D24/'Population 2016'!D$5","v":0},{"$f":"'Population 2016'!E24/'Population 2016'!E$5","v":0},{"$f":"'Population 2016'!F24/'Population 2016'!F$5","v":0},{"$f":"'Population 2016'!G24/'Population 2016'!G$5","v":0},{"$f":"'Population 2016'!H24/'Population 2016'!H$5","v":0},{"$f":"'Population 2016'!I24/'Population 2016'!I$5","v":0},{"$f":"'Population 2016'!J24/'Population 2016'!J$5","v":0},{"$f":"'Population 2016'!K24/'Population 2016'!K$5","v":0},{"$f":"'Population 2016'!L24/'Population 2016'!L$5","v":0},{"$f":"'Population 2016'!M24/'Population 2016'!M$5","v":0},{"$f":"'Population 2016'!N24/'Population 2016'!N$5","v":0},{"$f":"'Population 2016'!O24/'Population 2016'!O$5","v":0},{"$f":"'Population 2016'!P24/'Population 2016'!P$5","v":0},{"$f":"'Population 2016'!Q24/'Population 2016'!Q$5","v":0},{"$f":"'Population 2016'!R24/'Population 2016'!R$5","v":0},{"$f":"'Population 2016'!S24/'Population 2016'!S$5","v":0},{"$f":"'Population 2016'!T24/'Population 2016'!T$5","v":0},{"$f":"'Population 2016'!U24/'Population 2016'!U$5","v":0},{"$f":"'Population 2016'!V24/'Population 2016'!V$5","v":0},{"$f":"'Population 2016'!W24/'Population 2016'!W$5","v":0},{"$f":"'Population 2016'!X24/'Population 2016'!X$5","v":0},{"$f":"'Population 2016'!Y24/'Population 2016'!Y$5","v":0},{"$f":"'Population 2016'!Z24/'Population 2016'!Z$5","v":0},{"$f":"'Population 2016'!AA24/'Population 2016'!AA$5","v":0},{"$f":"'Population 2016'!AB24/'Population 2016'!AB$5","v":0},{"$f":"'Population 2016'!AC24/'Population 2016'!AC$5","v":0},{"$f":"'Population 2016'!AD24/'Population 2016'!AD$5","v":0},{"$f":"'Population 2016'!AE24/'Population 2016'!AE$5","v":0},{"$f":"'Population 2016'!AF24/'Population 2016'!AF$5","v":0},{"$f":"'Population 2016'!AG24/'Population 2016'!AG$5","v":0},{"$f":"'Population 2016'!AH24/'Population 2016'!AH$5","v":0},{"$f":"'Population 2016'!AI24/'Population 2016'!AI$5","v":0},{"$f":"'Population 2016'!AJ24/'Population 2016'!AJ$5","v":0},{"$f":"'Population 2016'!AK24/'Population 2016'!AK$5","v":0},{"$f":"'Population 2016'!AL24/'Population 2016'!AL$5","v":0},{"$f":"'Population 2016'!AM24/'Population 2016'!AM$5","v":0},{"$f":"'Population 2016'!AN24/'Population 2016'!AN$5","v":0},{"$f":"'Population 2016'!AO24/'Population 2016'!AO$5","v":0},{"$f":"'Population 2016'!AP24/'Population 2016'!AP$5","v":0},{"$f":"'Population 2016'!AQ24/'Population 2016'!AQ$5","v":0},{"$f":"'Population 2016'!AR24/'Population 2016'!AR$5","v":0},{"$f":"'Population 2016'!AS24/'Population 2016'!AS$5","v":0},{"$f":"'Population 2016'!AT24/'Population 2016'!AT$5","v":0},{"$f":"'Population 2016'!AU24/'Population 2016'!AU$5","v":0},{"$f":"'Population 2016'!AV24/'Population 2016'!AV$5","v":0},{"$f":"'Population 2016'!AW24/'Population 2016'!AW$5","v":0},{"$f":"'Population 2016'!AX24/'Population 2016'!AX$5","v":0},{"$f":"'Population 2016'!AY24/'Population 2016'!AY$5","v":0},{"$f":"'Population 2016'!AZ24/'Population 2016'!AZ$5","v":0},{"$f":"'Population 2016'!BA24/'Population 2016'!BA$5","v":0},{"$f":"'Population 2016'!BB24/'Population 2016'!BB$5","v":0},{"$f":"'Population 2016'!BC24/'Population 2016'!BC$5","v":0},22]
[null,"Female 16-19",{"$f":"'Population 2016'!C25/'Population 2016'!C$5","v":2.623011147286267E-2},{"$f":"'Population 2016'!D25/'Population 2016'!D$5","v":2.5549426366597225E-2},{"$f":"'Population 2016'!E25/'Population 2016'!E$5","v":2.492511215597298E-2},{"$f":"'Population 2016'!F25/'Population 2016'!F$5","v":2.4929178470254956E-2},{"$f":"'Population 2016'!G25/'Population 2016'!G$5","v":2.3750879662209713E-2},{"$f":"'Population 2016'!H25/'Population 2016'!H$5","v":2.6117576107362529E-2},{"$f":"'Population 2016'!I25/'Population 2016'!I$5","v":2.5060715182983001E-2},{"$f":"'Population 2016'!J25/'Population 2016'!J$5","v":3.2160420623139251E-2},{"$f":"'Population 2016'!K25/'Population 2016'!K$5","v":2.6461276756603504E-2},{"$f":"'Population 2016'!L25/'Population 2016'!L$5","v":2.3882896764252697E-2},{"$f":"'Population 2016'!M25/'Population 2016'!M$5","v":2.3882896764252697E-2},{"$f":"'Population 2016'!N25/'Population 2016'!N$5","v":3.1714903432700267E-2},{"$f":"'Population 2016'!O25/'Population 2016'!O$5","v":2.6074637659622948E-2},{"$f":"'Population 2016'!P25/'Population 2016'!P$5","v":2.6135467147526202E-2},{"$f":"'Population 2016'!Q25/'Population 2016'!Q$5","v":2.7261724304062231E-2},{"$f":"'Population 2016'!R25/'Population 2016'!R$5","v":3.0193750998030552E-2},{"$f":"'Population 2016'!S25/'Population 2016'!S$5","v":2.6372929946987578E-2},{"$f":"'Population 2016'!T25/'Population 2016'!T$5","v":2.4385420398970698E-2},{"$f":"'Population 2016'!U25/'Population 2016'!U$5","v":2.2396317443455938E-2},{"$f":"'Population 2016'!V25/'Population 2016'!V$5","v":2.505705192297418E-2},{"$f":"'Population 2016'!W25/'Population 2016'!W$5","v":2.7889448878604253E-2},{"$f":"'Population 2016'!X25/'Population 2016'!X$5","v":2.7889448878604253E-2},{"$f":"'Population 2016'!Y25/'Population 2016'!Y$5","v":2.8461391710783612E-2},{"$f":"'Population 2016'!Z25/'Population 2016'!Z$5","v":2.644686333077163E-2},{"$f":"'Population 2016'!AA25/'Population 2016'!AA$5","v":2.7062957551936443E-2},{"$f":"'Population 2016'!AB25/'Population 2016'!AB$5","v":2.5587750632017441E-2},{"$f":"'Population 2016'!AC25/'Population 2016'!AC$5","v":2.6653786244288106E-2},{"$f":"'Population 2016'!AD25/'Population 2016'!AD$5","v":2.4236108526554764E-2},{"$f":"'Population 2016'!AE25/'Population 2016'!AE$5","v":2.4420168584893067E-2},{"$f":"'Population 2016'!AF25/'Population 2016'!AF$5","v":2.5863759067396581E-2},{"$f":"'Population 2016'!AG25/'Population 2016'!AG$5","v":2.4420168584893067E-2},{"$f":"'Population 2016'!AH25/'Population 2016'!AH$5","v":2.779785070079786E-2},{"$f":"'Population 2016'!AI25/'Population 2016'!AI$5","v":2.5909965876279639E-2},{"$f":"'Population 2016'!AJ25/'Population 2016'!AJ$5","v":2.8065136770487688E-2},{"$f":"'Population 2016'!AK25/'Population 2016'!AK$5","v":2.5784795645122763E-2},{"$f":"'Population 2016'!AL25/'Population 2016'!AL$5","v":2.6923963746652242E-2},{"$f":"'Population 2016'!AM25/'Population 2016'!AM$5","v":2.9175163261388457E-2},{"$f":"'Population 2016'!AN25/'Population 2016'!AN$5","v":2.1544671102868986E-2},{"$f":"'Population 2016'!AO25/'Population 2016'!AO$5","v":2.1544671102868986E-2},{"$f":"'Population 2016'!AP25/'Population 2016'!AP$5","v":2.5062219615427293E-2},{"$f":"'Population 2016'!AQ25/'Population 2016'!AQ$5","v":2.6429002027730585E-2},{"$f":"'Population 2016'!AR25/'Population 2016'!AR$5","v":2.6466639175919175E-2},{"$f":"'Population 2016'!AS25/'Population 2016'!AS$5","v":2.5060715182983001E-2},{"$f":"'Population 2016'!AT25/'Population 2016'!AT$5","v":2.7732377286866665E-2},{"$f":"'Population 2016'!AU25/'Population 2016'!AU$5","v":2.7732377286866665E-2},{"$f":"'Population 2016'!AV25/'Population 2016'!AV$5","v":2.5203252032520326E-2},{"$f":"'Population 2016'!AW25/'Population 2016'!AW$5","v":2.6347702727439137E-2},{"$f":"'Population 2016'!AX25/'Population 2016'!AX$5","v":3.5242853674431682E-2},{"$f":"'Population 2016'!AY25/'Population 2016'!AY$5","v":2.7632263394632966E-2},{"$f":"'Population 2016'!AZ25/'Population 2016'!AZ$5","v":2.7405928746886344E-2},{"$f":"'Population 2016'!BA25/'Population 2016'!BA$5","v":2.6276722090261283E-2},{"$f":"'Population 2016'!BB25/'Population 2016'!BB$5","v":2.8572809567541067E-2},{"$f":"'Population 2016'!BC25/'Population 2016'!BC$5","v":2.2396317443455938E-2},23]
[null,"Female 20-24",{"$f":"'Population 2016'!C26/'Population 2016'!C$5","v":5.7172647493266136E-2},{"$f":"'Population 2016'!D26/'Population 2016'!D$5","v":4.2885576518685874E-2},{"$f":"'Population 2016'!E26/'Population 2016'!E$5","v":2.9781688457193218E-2},{"$f":"'Population 2016'!F26/'Population 2016'!F$5","v":3.1140870460983777E-2},{"$f":"'Population 2016'!G26/'Population 2016'!G$5","v":2.5672603258810156E-2},{"$f":"'Population 2016'!H26/'Population 2016'!H$5","v":3.3879894816366364E-2},{"$f":"'Population 2016'!I26/'Population 2016'!I$5","v":2.8860648186919018E-2},{"$f":"'Population 2016'!J26/'Population 2016'!J$5","v":4.5114153736430511E-2},{"$f":"'Population 2016'!K26/'Population 2016'!K$5","v":3.3336483485328167E-2},{"$f":"'Population 2016'!L26/'Population 2016'!L$5","v":3.0157419026893079E-2},{"$f":"'Population 2016'!M26/'Population 2016'!M$5","v":3.0157419026893079E-2},{"$f":"'Population 2016'!N26/'Population 2016'!N$5","v":5.937100650211781E-2},{"$f":"'Population 2016'!O26/'Population 2016'!O$5","v":3.4832228727672603E-2},{"$f":"'Population 2016'!P26/'Population 2016'!P$5","v":3.2086103910740446E-2},{"$f":"'Population 2016'!Q26/'Population 2016'!Q$5","v":3.694433672929813E-2},{"$f":"'Population 2016'!R26/'Population 2016'!R$5","v":3.3147921435034866E-2},{"$f":"'Population 2016'!S26/'Population 2016'!S$5","v":4.4659832542177799E-2},{"$f":"'Population 2016'!T26/'Population 2016'!T$5","v":5.7679511221341719E-2},{"$f":"'Population 2016'!U26/'Population 2016'!U$5","v":2.4742176780418713E-2},{"$f":"'Population 2016'!V26/'Population 2016'!V$5","v":3.4078506498958182E-2},{"$f":"'Population 2016'!W26/'Population 2016'!W$5","v":4.042384902502958E-2},{"$f":"'Population 2016'!X26/'Population 2016'!X$5","v":4.042384902502958E-2},{"$f":"'Population 2016'!Y26/'Population 2016'!Y$5","v":3.9367418641992974E-2},{"$f":"'Population 2016'!Z26/'Population 2016'!Z$5","v":5.5940671682962857E-2},{"$f":"'Population 2016'!AA26/'Population 2016'!AA$5","v":4.2530446989915337E-2},{"$f":"'Population 2016'!AB26/'Population 2016'!AB$5","v":4.1061175194211028E-2},{"$f":"'Population 2016'!AC26/'Population 2016'!AC$5","v":4.643985263362576E-2},{"$f":"'Population 2016'!AD26/'Population 2016'!AD$5","v":2.8054635453496596E-2},{"$f":"'Population 2016'!AE26/'Population 2016'!AE$5","v":2.8958202856292158E-2},{"$f":"'Population 2016'!AF26/'Population 2016'!AF$5","v":3.5937806330965633E-2},{"$f":"'Population 2016'!AG26/'Population 2016'!AG$5","v":2.8958202856292158E-2},{"$f":"'Population 2016'!AH26/'Population 2016'!AH$5","v":3.5508949221180905E-2},{"$f":"'Population 2016'!AI26/'Population 2016'!AI$5","v":4.8495056435383675E-2},{"$f":"'Population 2016'!AJ26/'Population 2016'!AJ$5","v":3.4520257647157236E-2},{"$f":"'Population 2016'!AK26/'Population 2016'!AK$5","v":3.1680977584451174E-2},{"$f":"'Population 2016'!AL26/'Population 2016'!AL$5","v":3.5180291232862135E-2},{"$f":"'Population 2016'!AM26/'Population 2016'!AM$5","v":3.6462615586889832E-2},{"$f":"'Population 2016'!AN26/'Population 2016'!AN$5","v":2.9126213592233011E-2},{"$f":"'Population 2016'!AO26/'Population 2016'!AO$5","v":2.9126213592233011E-2},{"$f":"'Population 2016'!AP26/'Population 2016'!AP$5","v":3.0547057051820616E-2},{"$f":"'Population 2016'!AQ26/'Population 2016'!AQ$5","v":3.7362306132514934E-2},{"$f":"'Population 2016'!AR26/'Population 2016'!AR$5","v":4.0607665819443708E-2},{"$f":"'Population 2016'!AS26/'Population 2016'!AS$5","v":2.8860648186919018E-2},{"$f":"'Population 2016'!AT26/'Population 2016'!AT$5","v":2.963041071334423E-2},{"$f":"'Population 2016'!AU26/'Population 2016'!AU$5","v":2.963041071334423E-2},{"$f":"'Population 2016'!AV26/'Population 2016'!AV$5","v":3.1316650828845952E-2},{"$f":"'Population 2016'!AW26/'Population 2016'!AW$5","v":3.4504850814570748E-2},{"$f":"'Population 2016'!AX26/'Population 2016'!AX$5","v":5.1484212274940259E-2},{"$f":"'Population 2016'!AY26/'Population 2016'!AY$5","v":4.0745387228052994E-2},{"$f":"'Population 2016'!AZ26/'Population 2016'!AZ$5","v":4.1028355126530941E-2},{"$f":"'Population 2016'!BA26/'Population 2016'!BA$5","v":3.8153206650831356E-2},{"$f":"'Population 2016'!BB26/'Population 2016'!BB$5","v":3.4946106626709848E-2},{"$f":"'Population 2016'!BC26/'Population 2016'!BC$5","v":2.4742176780418713E-2},24]
[null,"Female 25-29",{"$f":"'Population 2016'!C27/'Population 2016'!C$5","v":5.9523748677505581E-2},{"$f":"'Population 2016'!D27/'Population 2016'!D$5","v":4.5020196981700455E-2},{"$f":"'Population 2016'!E27/'Population 2016'!E$5","v":3.171775603673372E-2},{"$f":"'Population 2016'!F27/'Population 2016'!F$5","v":3.0069533865567859E-2},{"$f":"'Population 2016'!G27/'Population 2016'!G$5","v":2.5442537757808695E-2},{"$f":"'Population 2016'!H27/'Population 2016'!H$5","v":3.3698320109722998E-2},{"$f":"'Population 2016'!I27/'Population 2016'!I$5","v":2.5992379197722133E-2},{"$f":"'Population 2016'!J27/'Population 2016'!J$5","v":3.8645580222751136E-2},{"$f":"'Population 2016'!K27/'Population 2016'!K$5","v":3.326560506544441E-2},{"$f":"'Population 2016'!L27/'Population 2016'!L$5","v":3.0546598255841658E-2},{"$f":"'Population 2016'!M27/'Population 2016'!M$5","v":3.0546598255841658E-2},{"$f":"'Population 2016'!N27/'Population 2016'!N$5","v":5.532828059571937E-2},{"$f":"'Population 2016'!O27/'Population 2016'!O$5","v":3.6714516400669701E-2},{"$f":"'Population 2016'!P27/'Population 2016'!P$5","v":2.7825988955257522E-2},{"$f":"'Population 2016'!Q27/'Population 2016'!Q$5","v":3.2855078083688795E-2},{"$f":"'Population 2016'!R27/'Population 2016'!R$5","v":2.9914302443178793E-2},{"$f":"'Population 2016'!S27/'Population 2016'!S$5","v":4.5971461910671509E-2},{"$f":"'Population 2016'!T27/'Population 2016'!T$5","v":6.394978199466736E-2},{"$f":"'Population 2016'!U27/'Population 2016'!U$5","v":2.7043774620457664E-2},{"$f":"'Population 2016'!V27/'Population 2016'!V$5","v":3.5421802611795054E-2},{"$f":"'Population 2016'!W27/'Population 2016'!W$5","v":3.642983677498219E-2},{"$f":"'Population 2016'!X27/'Population 2016'!X$5","v":3.642983677498219E-2},{"$f":"'Population 2016'!Y27/'Population 2016'!Y$5","v":3.6966820877251554E-2},{"$f":"'Population 2016'!Z27/'Population 2016'!Z$5","v":6.3112800847104925E-2},{"$f":"'Population 2016'!AA27/'Population 2016'!AA$5","v":4.4985340399705809E-2},{"$f":"'Population 2016'!AB27/'Population 2016'!AB$5","v":4.3026314442749965E-2},{"$f":"'Population 2016'!AC27/'Population 2016'!AC$5","v":4.9786831767755231E-2},{"$f":"'Population 2016'!AD27/'Population 2016'!AD$5","v":2.9885741933082736E-2},{"$f":"'Population 2016'!AE27/'Population 2016'!AE$5","v":3.1571166028398649E-2},{"$f":"'Population 2016'!AF27/'Population 2016'!AF$5","v":3.4640848150326503E-2},{"$f":"'Population 2016'!AG27/'Population 2016'!AG$5","v":3.1571166028398649E-2},{"$f":"'Population 2016'!AH27/'Population 2016'!AH$5","v":3.6361609838105942E-2},{"$f":"'Population 2016'!AI27/'Population 2016'!AI$5","v":5.2571856680374486E-2},{"$f":"'Population 2016'!AJ27/'Population 2016'!AJ$5","v":3.6987982042773891E-2},{"$f":"'Population 2016'!AK27/'Population 2016'!AK$5","v":3.2774725620104847E-2},{"$f":"'Population 2016'!AL27/'Population 2016'!AL$5","v":3.3903265284404321E-2},{"$f":"'Population 2016'!AM27/'Population 2016'!AM$5","v":3.8418492453575093E-2},{"$f":"'Population 2016'!AN27/'Population 2016'!AN$5","v":3.2453365332169741E-2},{"$f":"'Population 2016'!AO27/'Population 2016'!AO$5","v":3.2453365332169741E-2},{"$f":"'Population 2016'!AP27/'Population 2016'!AP$5","v":3.0832395415563624E-2},{"$f":"'Population 2016'!AQ27/'Population 2016'!AQ$5","v":3.8526881131144844E-2},{"$f":"'Population 2016'!AR27/'Population 2016'!AR$5","v":4.1876606643716126E-2},{"$f":"'Population 2016'!AS27/'Population 2016'!AS$5","v":2.5992379197722133E-2},{"$f":"'Population 2016'!AT27/'Population 2016'!AT$5","v":3.6589866610428637E-2},{"$f":"'Population 2016'!AU27/'Population 2016'!AU$5","v":3.6589866610428637E-2},{"$f":"'Population 2016'!AV27/'Population 2016'!AV$5","v":3.0239679020166825E-2},{"$f":"'Population 2016'!AW27/'Population 2016'!AW$5","v":3.4195954603697599E-2},{"$f":"'Population 2016'!AX27/'Population 2016'!AX$5","v":4.1555388016407478E-2},{"$f":"'Population 2016'!AY27/'Population 2016'!AY$5","v":3.8002203114959762E-2},{"$f":"'Population 2016'!AZ27/'Population 2016'!AZ$5","v":3.93859553244243E-2},{"$f":"'Population 2016'!BA27/'Population 2016'!BA$5","v":3.9070935003239042E-2},{"$f":"'Population 2016'!BB27/'Population 2016'!BB$5","v":3.8108587724325557E-2},{"$f":"'Population 2016'!BC27/'Population 2016'!BC$5","v":2.7043774620457664E-2},25]
[null,"Female 30-34",{"$f":"'Population 2016'!C28/'Population 2016'!C$5","v":4.9638901524638006E-2},{"$f":"'Population 2016'!D28/'Population 2016'!D$5","v":4.3873419207182886E-2},{"$f":"'Population 2016'!E28/'Population 2016'!E$5","v":3.8585404956895539E-2},{"$f":"'Population 2016'!F28/'Population 2016'!F$5","v":3.3355652845737833E-2},{"$f":"'Population 2016'!G28/'Population 2016'!G$5","v":2.5983868348400368E-2},{"$f":"'Population 2016'!H28/'Population 2016'!H$5","v":3.2988233310528414E-2},{"$f":"'Population 2016'!I28/'Population 2016'!I$5","v":2.960388577171091E-2},{"$f":"'Population 2016'!J28/'Population 2016'!J$5","v":3.3138999693157409E-2},{"$f":"'Population 2016'!K28/'Population 2016'!K$5","v":3.4541416623352077E-2},{"$f":"'Population 2016'!L28/'Population 2016'!L$5","v":2.9807951964163741E-2},{"$f":"'Population 2016'!M28/'Population 2016'!M$5","v":2.9807951964163741E-2},{"$f":"'Population 2016'!N28/'Population 2016'!N$5","v":4.3087581678334042E-2},{"$f":"'Population 2016'!O28/'Population 2016'!O$5","v":3.5882347113660458E-2},{"$f":"'Population 2016'!P28/'Population 2016'!P$5","v":2.7465344302941508E-2},{"$f":"'Population 2016'!Q28/'Population 2016'!Q$5","v":3.4887956663258952E-2},{"$f":"'Population 2016'!R28/'Population 2016'!R$5","v":2.9222334593069676E-2},{"$f":"'Population 2016'!S28/'Population 2016'!S$5","v":4.2950124543003967E-2},{"$f":"'Population 2016'!T28/'Population 2016'!T$5","v":5.3503208424265834E-2},{"$f":"'Population 2016'!U28/'Population 2016'!U$5","v":2.938963395742044E-2},{"$f":"'Population 2016'!V28/'Population 2016'!V$5","v":3.9795147342792374E-2},{"$f":"'Population 2016'!W28/'Population 2016'!W$5","v":3.556043639976729E-2},{"$f":"'Population 2016'!X28/'Population 2016'!X$5","v":3.556043639976729E-2},{"$f":"'Population 2016'!Y28/'Population 2016'!Y$5","v":3.6605141412696142E-2},{"$f":"'Population 2016'!Z28/'Population 2016'!Z$5","v":5.1701275496870785E-2},{"$f":"'Population 2016'!AA28/'Population 2016'!AA$5","v":4.205275595834853E-2},{"$f":"'Population 2016'!AB28/'Population 2016'!AB$5","v":4.2735637595570246E-2},{"$f":"'Population 2016'!AC28/'Population 2016'!AC$5","v":4.3462116871215775E-2},{"$f":"'Population 2016'!AD28/'Population 2016'!AD$5","v":3.2584018757676129E-2},{"$f":"'Population 2016'!AE28/'Population 2016'!AE$5","v":3.50876292364398E-2},{"$f":"'Population 2016'!AF28/'Population 2016'!AF$5","v":3.3630427242154155E-2},{"$f":"'Population 2016'!AG28/'Population 2016'!AG$5","v":3.50876292364398E-2},{"$f":"'Population 2016'!AH28/'Population 2016'!AH$5","v":3.9521469771416365E-2},{"$f":"'Population 2016'!AI28/'Population 2016'!AI$5","v":4.7784145594540202E-2},{"$f":"'Population 2016'!AJ28/'Population 2016'!AJ$5","v":4.0124919833812007E-2},{"$f":"'Population 2016'!AK28/'Population 2016'!AK$5","v":3.6885709616182441E-2},{"$f":"'Population 2016'!AL28/'Population 2016'!AL$5","v":3.2599634628686966E-2},{"$f":"'Population 2016'!AM28/'Population 2016'!AM$5","v":4.108790217718071E-2},{"$f":"'Population 2016'!AN28/'Population 2016'!AN$5","v":3.2398821861023233E-2},{"$f":"'Population 2016'!AO28/'Population 2016'!AO$5","v":3.2398821861023233E-2},{"$f":"'Population 2016'!AP28/'Population 2016'!AP$5","v":3.4755797917029943E-2},{"$f":"'Population 2016'!AQ28/'Population 2016'!AQ$5","v":3.7519866279388393E-2},{"$f":"'Population 2016'!AR28/'Population 2016'!AR$5","v":4.0012627030533668E-2},{"$f":"'Population 2016'!AS28/'Population 2016'!AS$5","v":2.960388577171091E-2},{"$f":"'Population 2016'!AT28/'Population 2016'!AT$5","v":3.3795539621447775E-2},{"$f":"'Population 2016'!AU28/'Population 2016'!AU$5","v":3.3795539621447775E-2},{"$f":"'Population 2016'!AV28/'Population 2016'!AV$5","v":3.0366381585893783E-2},{"$f":"'Population 2016'!AW28/'Population 2016'!AW$5","v":3.7872200866434801E-2},{"$f":"'Population 2016'!AX28/'Population 2016'!AX$5","v":3.2380489924224029E-2},{"$f":"'Population 2016'!AY28/'Population 2016'!AY$5","v":3.65105106942872E-2},{"$f":"'Population 2016'!AZ28/'Population 2016'!AZ$5","v":3.7346618267167536E-2},{"$f":"'Population 2016'!BA28/'Population 2016'!BA$5","v":4.0123623407471387E-2},{"$f":"'Population 2016'!BB28/'Population 2016'!BB$5","v":4.2182526256188589E-2},{"$f":"'Population 2016'!BC28/'Population 2016'!BC$5","v":2.938963395742044E-2},26]
[null,"Female 35-39",{"$f":"'Population 2016'!C29/'Population 2016'!C$5","v":3.8757391913234143E-2},{"$f":"'Population 2016'!D29/'Population 2016'!D$5","v":3.9330320902164449E-2},{"$f":"'Population 2016'!E29/'Population 2016'!E$5","v":3.9855802811751412E-2},{"$f":"'Population 2016'!F29/'Population 2016'!F$5","v":3.3747102755601339E-2},{"$f":"'Population 2016'!G29/'Population 2016'!G$5","v":2.818979050506144E-2},{"$f":"'Population 2016'!H29/'Population 2016'!H$5","v":3.3049839014568129E-2},{"$f":"'Population 2016'!I29/'Population 2016'!I$5","v":2.9363118666778328E-2},{"$f":"'Population 2016'!J29/'Population 2016'!J$5","v":3.4250267450635662E-2},{"$f":"'Population 2016'!K29/'Population 2016'!K$5","v":3.5533714501724711E-2},{"$f":"'Population 2016'!L29/'Population 2016'!L$5","v":2.8688068876781089E-2},{"$f":"'Population 2016'!M29/'Population 2016'!M$5","v":2.8688068876781089E-2},{"$f":"'Population 2016'!N29/'Population 2016'!N$5","v":3.4785124697599278E-2},{"$f":"'Population 2016'!O29/'Population 2016'!O$5","v":3.5139338821687918E-2},{"$f":"'Population 2016'!P29/'Population 2016'!P$5","v":3.4306322551560915E-2},{"$f":"'Population 2016'!Q29/'Population 2016'!Q$5","v":3.726160679662989E-2},{"$f":"'Population 2016'!R29/'Population 2016'!R$5","v":3.8617128865705008E-2},{"$f":"'Population 2016'!S29/'Population 2016'!S$5","v":3.89128481422703E-2},{"$f":"'Population 2016'!T29/'Population 2016'!T$5","v":4.2807685327799057E-2},{"$f":"'Population 2016'!U29/'Population 2016'!U$5","v":3.301907670517417E-2},{"$f":"'Population 2016'!V29/'Population 2016'!V$5","v":3.9009013822211704E-2},{"$f":"'Population 2016'!W29/'Population 2016'!W$5","v":3.586439968884618E-2},{"$f":"'Population 2016'!X29/'Population 2016'!X$5","v":3.586439968884618E-2},{"$f":"'Population 2016'!Y29/'Population 2016'!Y$5","v":3.6728350900621612E-2},{"$f":"'Population 2016'!Z29/'Population 2016'!Z$5","v":4.073498353604358E-2},{"$f":"'Population 2016'!AA29/'Population 2016'!AA$5","v":3.8732836508085206E-2},{"$f":"'Population 2016'!AB29/'Population 2016'!AB$5","v":3.8181017983071143E-2},{"$f":"'Population 2016'!AC29/'Population 2016'!AC$5","v":3.8513014535984165E-2},{"$f":"'Population 2016'!AD29/'Population 2016'!AD$5","v":3.259890580222561E-2},{"$f":"'Population 2016'!AE29/'Population 2016'!AE$5","v":3.4271399090339737E-2},{"$f":"'Population 2016'!AF29/'Population 2016'!AF$5","v":3.3916964514620944E-2},{"$f":"'Population 2016'!AG29/'Population 2016'!AG$5","v":3.4271399090339737E-2},{"$f":"'Population 2016'!AH29/'Population 2016'!AH$5","v":3.9127648310004363E-2},{"$f":"'Population 2016'!AI29/'Population 2016'!AI$5","v":4.1435164931315077E-2},{"$f":"'Population 2016'!AJ29/'Population 2016'!AJ$5","v":4.0334049019881212E-2},{"$f":"'Population 2016'!AK29/'Population 2016'!AK$5","v":3.2271852960034195E-2},{"$f":"'Population 2016'!AL29/'Population 2016'!AL$5","v":3.2626239335946508E-2},{"$f":"'Population 2016'!AM29/'Population 2016'!AM$5","v":4.0160671662603994E-2},{"$f":"'Population 2016'!AN29/'Population 2016'!AN$5","v":3.2017017562997706E-2},{"$f":"'Population 2016'!AO29/'Population 2016'!AO$5","v":3.2017017562997706E-2},{"$f":"'Population 2016'!AP29/'Population 2016'!AP$5","v":3.1751819032068862E-2},{"$f":"'Population 2016'!AQ29/'Population 2016'!AQ$5","v":3.6430646133611001E-2},{"$f":"'Population 2016'!AR29/'Population 2016'!AR$5","v":3.708911747348892E-2},{"$f":"'Population 2016'!AS29/'Population 2016'!AS$5","v":2.9363118666778328E-2},{"$f":"'Population 2016'!AT29/'Population 2016'!AT$5","v":3.690620551484157E-2},{"$f":"'Population 2016'!AU29/'Population 2016'!AU$5","v":3.690620551484157E-2},{"$f":"'Population 2016'!AV29/'Population 2016'!AV$5","v":3.1327209375989866E-2},{"$f":"'Population 2016'!AW29/'Population 2016'!AW$5","v":3.803999633900787E-2},{"$f":"'Population 2016'!AX29/'Population 2016'!AX$5","v":3.3556103607345032E-2},{"$f":"'Population 2016'!AY29/'Population 2016'!AY$5","v":3.4550656344665094E-2},{"$f":"'Population 2016'!AZ29/'Population 2016'!AZ$5","v":3.3394503857194634E-2},{"$f":"'Population 2016'!BA29/'Population 2016'!BA$5","v":3.6169293889008851E-2},{"$f":"'Population 2016'!BB29/'Population 2016'!BB$5","v":4.0359611387693943E-2},{"$f":"'Population 2016'!BC29/'Population 2016'!BC$5","v":3.301907670517417E-2},27]
[null,"Female 40-44",{"$f":"'Population 2016'!C30/'Population 2016'!C$5","v":3.4878074959239058E-2},{"$f":"'Population 2016'!D30/'Population 2016'!D$5","v":3.887307688545915E-2},{"$f":"'Population 2016'!E30/'Population 2016'!E$5","v":4.2537232970340191E-2},{"$f":"'Population 2016'!F30/'Population 2016'!F$5","v":3.7723409734741177E-2},{"$f":"'Population 2016'!G30/'Population 2016'!G$5","v":3.4252693119688191E-2},{"$f":"'Population 2016'!H30/'Population 2016'!H$5","v":3.8328475129128799E-2},{"$f":"'Population 2016'!I30/'Population 2016'!I$5","v":3.8281969684281048E-2},{"$f":"'Population 2016'!J30/'Population 2016'!J$5","v":3.8977301941401359E-2},{"$f":"'Population 2016'!K30/'Population 2016'!K$5","v":4.1014978972735434E-2},{"$f":"'Population 2016'!L30/'Population 2016'!L$5","v":3.3795053452575732E-2},{"$f":"'Population 2016'!M30/'Population 2016'!M$5","v":3.3795053452575732E-2},{"$f":"'Population 2016'!N30/'Population 2016'!N$5","v":3.180331294556385E-2},{"$f":"'Population 2016'!O30/'Population 2016'!O$5","v":3.9646922459654649E-2},{"$f":"'Population 2016'!P30/'Population 2016'!P$5","v":3.8487546489349711E-2},{"$f":"'Population 2016'!Q30/'Population 2016'!Q$5","v":4.0622319361699626E-2},{"$f":"'Population 2016'!R30/'Population 2016'!R$5","v":4.23431095970618E-2},{"$f":"'Population 2016'!S30/'Population 2016'!S$5","v":3.9161757618660087E-2},{"$f":"'Population 2016'!T30/'Population 2016'!T$5","v":3.7405247949074696E-2},{"$f":"'Population 2016'!U30/'Population 2016'!U$5","v":3.6559996459080243E-2},{"$f":"'Population 2016'!V30/'Population 2016'!V$5","v":4.4252448080842E-2},{"$f":"'Population 2016'!W30/'Population 2016'!W$5","v":3.8551042953608013E-2},{"$f":"'Population 2016'!X30/'Population 2016'!X$5","v":3.8551042953608013E-2},{"$f":"'Population 2016'!Y30/'Population 2016'!Y$5","v":4.17242969110189E-2},{"$f":"'Population 2016'!Z30/'Population 2016'!Z$5","v":3.5899361767615275E-2},{"$f":"'Population 2016'!AA30/'Population 2016'!AA$5","v":3.8743466628398233E-2},{"$f":"'Population 2016'!AB30/'Population 2016'!AB$5","v":3.8946603481981104E-2},{"$f":"'Population 2016'!AC30/'Population 2016'!AC$5","v":3.7361844024152858E-2},{"$f":"'Population 2016'!AD30/'Population 2016'!AD$5","v":3.7154341434366744E-2},{"$f":"'Population 2016'!AE30/'Population 2016'!AE$5","v":3.8255012885142561E-2},{"$f":"'Population 2016'!AF30/'Population 2016'!AF$5","v":3.7310169056990757E-2},{"$f":"'Population 2016'!AG30/'Population 2016'!AG$5","v":3.8255012885142561E-2},{"$f":"'Population 2016'!AH30/'Population 2016'!AH$5","v":4.1224933356863544E-2},{"$f":"'Population 2016'!AI30/'Population 2016'!AI$5","v":3.9532111295826407E-2},{"$f":"'Population 2016'!AJ30/'Population 2016'!AJ$5","v":4.01528037252879E-2},{"$f":"'Population 2016'!AK30/'Population 2016'!AK$5","v":3.9324642017525113E-2},{"$f":"'Population 2016'!AL30/'Population 2016'!AL$5","v":3.9064578492754652E-2},{"$f":"'Population 2016'!AM30/'Population 2016'!AM$5","v":4.2214342372623517E-2},{"$f":"'Population 2016'!AN30/'Population 2016'!AN$5","v":3.7035016908476055E-2},{"$f":"'Population 2016'!AO30/'Population 2016'!AO$5","v":3.7035016908476055E-2},{"$f":"'Population 2016'!AP30/'Population 2016'!AP$5","v":3.6444049902509393E-2},{"$f":"'Population 2016'!AQ30/'Population 2016'!AQ$5","v":3.9095467748122982E-2},{"$f":"'Population 2016'!AR30/'Population 2016'!AR$5","v":3.847568483484276E-2},{"$f":"'Population 2016'!AS30/'Population 2016'!AS$5","v":3.8281969684281048E-2},{"$f":"'Population 2016'!AT30/'Population 2016'!AT$5","v":3.8013391680286814E-2},{"$f":"'Population 2016'!AU30/'Population 2016'!AU$5","v":3.8013391680286814E-2},{"$f":"'Population 2016'!AV30/'Population 2016'!AV$5","v":3.6046879949318975E-2},{"$f":"'Population 2016'!AW30/'Population 2016'!AW$5","v":4.0183202147782052E-2},{"$f":"'Population 2016'!AX30/'Population 2016'!AX$5","v":3.7875206051854786E-2},{"$f":"'Population 2016'!AY30/'Population 2016'!AY$5","v":3.6736941954040571E-2},{"$f":"'Population 2016'!AZ30/'Population 2016'!AZ$5","v":3.5140452508470872E-2},{"$f":"'Population 2016'!BA30/'Population 2016'!BA$5","v":3.7788814510904774E-2},{"$f":"'Population 2016'!BB30/'Population 2016'!BB$5","v":4.4896183617243117E-2},{"$f":"'Population 2016'!BC30/'Population 2016'!BC$5","v":3.6559996459080243E-2},28]
[null,"Female 45-49",{"$f":"'Population 2016'!C31/'Population 2016'!C$5","v":3.6079180999013562E-2},{"$f":"'Population 2016'!D31/'Population 2016'!D$5","v":4.2936924777246366E-2},{"$f":"'Population 2016'!E31/'Population 2016'!E$5","v":4.9226744921924442E-2},{"$f":"'Population 2016'!F31/'Population 2016'!F$5","v":4.4172031934071591E-2},{"$f":"'Population 2016'!G31/'Population 2016'!G$5","v":4.2873382774860608E-2},{"$f":"'Population 2016'!H31/'Population 2016'!H$5","v":4.745908894890942E-2},{"$f":"'Population 2016'!I31/'Population 2016'!I$5","v":4.8059207771543419E-2},{"$f":"'Population 2016'!J31/'Population 2016'!J$5","v":4.7568894454442172E-2},{"$f":"'Population 2016'!K31/'Population 2016'!K$5","v":4.9756650758399093E-2},{"$f":"'Population 2016'!L31/'Population 2016'!L$5","v":4.5375121122106968E-2},{"$f":"'Population 2016'!M31/'Population 2016'!M$5","v":4.5375121122106968E-2},{"$f":"'Population 2016'!N31/'Population 2016'!N$5","v":3.6850692407230289E-2},{"$f":"'Population 2016'!O31/'Population 2016'!O$5","v":4.9523979354276264E-2},{"$f":"'Population 2016'!P31/'Population 2016'!P$5","v":4.8461625154964501E-2},{"$f":"'Population 2016'!Q31/'Population 2016'!Q$5","v":5.1244991245696293E-2},{"$f":"'Population 2016'!R31/'Population 2016'!R$5","v":5.0939479427263533E-2},{"$f":"'Population 2016'!S31/'Population 2016'!S$5","v":4.4161130931680524E-2},{"$f":"'Population 2016'!T31/'Population 2016'!T$5","v":3.7493659930294132E-2},{"$f":"'Population 2016'!U31/'Population 2016'!U$5","v":4.3995927942283006E-2},{"$f":"'Population 2016'!V31/'Population 2016'!V$5","v":4.8808969554498899E-2},{"$f":"'Population 2016'!W31/'Population 2016'!W$5","v":4.5666398656024683E-2},{"$f":"'Population 2016'!X31/'Population 2016'!X$5","v":4.5666398656024683E-2},{"$f":"'Population 2016'!Y31/'Population 2016'!Y$5","v":4.8214654774963832E-2},{"$f":"'Population 2016'!Z31/'Population 2016'!Z$5","v":4.1046646908628429E-2},{"$f":"'Population 2016'!AA31/'Population 2016'!AA$5","v":4.6316098586393316E-2},{"$f":"'Population 2016'!AB31/'Population 2016'!AB$5","v":4.3331320430283614E-2},{"$f":"'Population 2016'!AC31/'Population 2016'!AC$5","v":4.492771311134601E-2},{"$f":"'Population 2016'!AD31/'Population 2016'!AD$5","v":4.5148684357437942E-2},{"$f":"'Population 2016'!AE31/'Population 2016'!AE$5","v":4.6011766034558879E-2},{"$f":"'Population 2016'!AF31/'Population 2016'!AF$5","v":4.893754995551132E-2},{"$f":"'Population 2016'!AG31/'Population 2016'!AG$5","v":4.6011766034558879E-2},{"$f":"'Population 2016'!AH31/'Population 2016'!AH$5","v":4.8809711785850293E-2},{"$f":"'Population 2016'!AI31/'Population 2016'!AI$5","v":4.3022410097121357E-2},{"$f":"'Population 2016'!AJ31/'Population 2016'!AJ$5","v":4.895017148593258E-2},{"$f":"'Population 2016'!AK31/'Population 2016'!AK$5","v":4.5359113938372955E-2},{"$f":"'Population 2016'!AL31/'Population 2016'!AL$5","v":4.7808658945389403E-2},{"$f":"'Population 2016'!AM31/'Population 2016'!AM$5","v":4.9277231057875848E-2},{"$f":"'Population 2016'!AN31/'Population 2016'!AN$5","v":4.4998363695865608E-2},{"$f":"'Population 2016'!AO31/'Population 2016'!AO$5","v":4.4998363695865608E-2},{"$f":"'Population 2016'!AP31/'Population 2016'!AP$5","v":4.5677916395859421E-2},{"$f":"'Population 2016'!AQ31/'Population 2016'!AQ$5","v":4.9398531265413492E-2},{"$f":"'Population 2016'!AR31/'Population 2016'!AR$5","v":4.5185744109260795E-2},{"$f":"'Population 2016'!AS31/'Population 2016'!AS$5","v":4.8059207771543419E-2},{"$f":"'Population 2016'!AT31/'Population 2016'!AT$5","v":4.4761954974429273E-2},{"$f":"'Population 2016'!AU31/'Population 2016'!AU$5","v":4.4761954974429273E-2},{"$f":"'Population 2016'!AV31/'Population 2016'!AV$5","v":4.4842149720198503E-2},{"$f":"'Population 2016'!AW31/'Population 2016'!AW$5","v":4.8317469034108246E-2},{"$f":"'Population 2016'!AX31/'Population 2016'!AX$5","v":4.6385626844882885E-2},{"$f":"'Population 2016'!AY31/'Population 2016'!AY$5","v":4.3768550533949388E-2},{"$f":"'Population 2016'!AZ31/'Population 2016'!AZ$5","v":4.2098359901283432E-2},{"$f":"'Population 2016'!BA31/'Population 2016'!BA$5","v":4.9260418916000866E-2},{"$f":"'Population 2016'!BB31/'Population 2016'!BB$5","v":5.1663064568473242E-2},{"$f":"'Population 2016'!BC31/'Population 2016'!BC$5","v":4.3995927942283006E-2},29]
[null,"Female 50-54",{"$f":"'Population 2016'!C32/'Population 2016'!C$5","v":3.8404726735598228E-2},{"$f":"'Population 2016'!D32/'Population 2016'!D$5","v":4.4017683362186165E-2},{"$f":"'Population 2016'!E32/'Population 2016'!E$5","v":4.9165803327411058E-2},{"$f":"'Population 2016'!F32/'Population 2016'!F$5","v":4.6984290497038374E-2},{"$f":"'Population 2016'!G32/'Population 2016'!G$5","v":4.8800952741839439E-2},{"$f":"'Population 2016'!H32/'Population 2016'!H$5","v":4.9748227214806123E-2},{"$f":"'Population 2016'!I32/'Population 2016'!I$5","v":4.9964408341009965E-2},{"$f":"'Population 2016'!J32/'Population 2016'!J$5","v":4.8232337891742617E-2},{"$f":"'Population 2016'!K32/'Population 2016'!K$5","v":4.9591267778670324E-2},{"$f":"'Population 2016'!L32/'Population 2016'!L$5","v":4.9616380474322111E-2},{"$f":"'Population 2016'!M32/'Population 2016'!M$5","v":4.9616380474322111E-2},{"$f":"'Population 2016'!N32/'Population 2016'!N$5","v":4.1970406924876025E-2},{"$f":"'Population 2016'!O32/'Population 2016'!O$5","v":4.969239456712337E-2},{"$f":"'Population 2016'!P32/'Population 2016'!P$5","v":5.1177730192719484E-2},{"$f":"'Population 2016'!Q32/'Population 2016'!Q$5","v":4.9071103747312016E-2},{"$f":"'Population 2016'!R32/'Population 2016'!R$5","v":5.1498376536967053E-2},{"$f":"'Population 2016'!S32/'Population 2016'!S$5","v":4.4275876434980786E-2},{"$f":"'Population 2016'!T32/'Population 2016'!T$5","v":3.7426187628837197E-2},{"$f":"'Population 2016'!U32/'Population 2016'!U$5","v":4.6695879254636391E-2},{"$f":"'Population 2016'!V32/'Population 2016'!V$5","v":4.8144953862357939E-2},{"$f":"'Population 2016'!W32/'Population 2016'!W$5","v":4.726465724053628E-2},{"$f":"'Population 2016'!X32/'Population 2016'!X$5","v":4.726465724053628E-2},{"$f":"'Population 2016'!Y32/'Population 2016'!Y$5","v":4.8186833277690341E-2},{"$f":"'Population 2016'!Z32/'Population 2016'!Z$5","v":4.2765634951208227E-2},{"$f":"'Population 2016'!AA32/'Population 2016'!AA$5","v":4.7740534708339395E-2},{"$f":"'Population 2016'!AB32/'Population 2016'!AB$5","v":4.4430570197435085E-2},{"$f":"'Population 2016'!AC32/'Population 2016'!AC$5","v":4.664671166540138E-2},{"$f":"'Population 2016'!AD32/'Population 2016'!AD$5","v":4.912724701328669E-2},{"$f":"'Population 2016'!AE32/'Population 2016'!AE$5","v":4.9251019004301892E-2},{"$f":"'Population 2016'!AF32/'Population 2016'!AF$5","v":5.184816540741076E-2},{"$f":"'Population 2016'!AG32/'Population 2016'!AG$5","v":4.9251019004301892E-2},{"$f":"'Population 2016'!AH32/'Population 2016'!AH$5","v":4.9705098316041724E-2},{"$f":"'Population 2016'!AI32/'Population 2016'!AI$5","v":4.2282789395397674E-2},{"$f":"'Population 2016'!AJ32/'Population 2016'!AJ$5","v":4.8350667819200846E-2},{"$f":"'Population 2016'!AK32/'Population 2016'!AK$5","v":4.6553436506040755E-2},{"$f":"'Population 2016'!AL32/'Population 2016'!AL$5","v":5.0495734378602719E-2},{"$f":"'Population 2016'!AM32/'Population 2016'!AM$5","v":4.950541669232246E-2},{"$f":"'Population 2016'!AN32/'Population 2016'!AN$5","v":4.8216428493509329E-2},{"$f":"'Population 2016'!AO32/'Population 2016'!AO$5","v":4.8216428493509329E-2},{"$f":"'Population 2016'!AP32/'Population 2016'!AP$5","v":4.7810028058272433E-2},{"$f":"'Population 2016'!AQ32/'Population 2016'!AQ$5","v":5.0227434646791254E-2},{"$f":"'Population 2016'!AR32/'Population 2016'!AR$5","v":4.661887197487604E-2},{"$f":"'Population 2016'!AS32/'Population 2016'!AS$5","v":4.9964408341009965E-2},{"$f":"'Population 2016'!AT32/'Population 2016'!AT$5","v":4.5869141139874517E-2},{"$f":"'Population 2016'!AU32/'Population 2016'!AU$5","v":4.5869141139874517E-2},{"$f":"'Population 2016'!AV32/'Population 2016'!AV$5","v":4.8917748917748916E-2},{"$f":"'Population 2016'!AW32/'Population 2016'!AW$5","v":4.9915339557019954E-2},{"$f":"'Population 2016'!AX32/'Population 2016'!AX$5","v":4.7497348480008181E-2},{"$f":"'Population 2016'!AY32/'Population 2016'!AY$5","v":4.6320492029007683E-2},{"$f":"'Population 2016'!AZ32/'Population 2016'!AZ$5","v":4.5489584711587691E-2},{"$f":"'Population 2016'!BA32/'Population 2016'!BA$5","v":5.1649211833297341E-2},{"$f":"'Population 2016'!BB32/'Population 2016'!BB$5","v":4.9702050088729001E-2},{"$f":"'Population 2016'!BC32/'Population 2016'!BC$5","v":4.6695879254636391E-2},30]
[null,"Female 55-59",{"$f":"'Population 2016'!C33/'Population 2016'!C$5","v":3.4959852391734346E-2},{"$f":"'Population 2016'!D33/'Population 2016'!D$5","v":3.887307688545915E-2},{"$f":"'Population 2016'!E33/'Population 2016'!E$5","v":4.2462227930939109E-2},{"$f":"'Population 2016'!F33/'Population 2016'!F$5","v":4.4790110739119239E-2},{"$f":"'Population 2016'!G33/'Population 2016'!G$5","v":4.6595030585178367E-2},{"$f":"'Population 2016'!H33/'Population 2016'!H$5","v":4.6132945109317702E-2},{"$f":"'Population 2016'!I33/'Population 2016'!I$5","v":4.7535801021689979E-2},{"$f":"'Population 2016'!J33/'Population 2016'!J$5","v":4.2029141752983425E-2},{"$f":"'Population 2016'!K33/'Population 2016'!K$5","v":4.4039124887775838E-2},{"$f":"'Population 2016'!L33/'Population 2016'!L$5","v":4.6169364446491827E-2},{"$f":"'Population 2016'!M33/'Population 2016'!M$5","v":4.6169364446491827E-2},{"$f":"'Population 2016'!N33/'Population 2016'!N$5","v":3.9776243560170711E-2},{"$f":"'Population 2016'!O33/'Population 2016'!O$5","v":4.4421989082731497E-2},{"$f":"'Population 2016'!P33/'Population 2016'!P$5","v":4.8822269807280515E-2},{"$f":"'Population 2016'!Q33/'Population 2016'!Q$5","v":4.6004159763105019E-2},{"$f":"'Population 2016'!R33/'Population 2016'!R$5","v":4.5723106403364029E-2},{"$f":"'Population 2016'!S33/'Population 2016'!S$5","v":4.0423075497245227E-2},{"$f":"'Population 2016'!T33/'Population 2016'!T$5","v":3.4608637385238922E-2},{"$f":"'Population 2016'!U33/'Population 2016'!U$5","v":4.3022175009958835E-2},{"$f":"'Population 2016'!V33/'Population 2016'!V$5","v":4.2000900618984746E-2},{"$f":"'Population 2016'!W33/'Population 2016'!W$5","v":4.2996097503578926E-2},{"$f":"'Population 2016'!X33/'Population 2016'!X$5","v":4.2996097503578926E-2},{"$f":"'Population 2016'!Y33/'Population 2016'!Y$5","v":4.2014435382585334E-2},{"$f":"'Population 2016'!Z33/'Population 2016'!Z$5","v":3.7595120242052103E-2},{"$f":"'Population 2016'!AA33/'Population 2016'!AA$5","v":4.3007473638962582E-2},{"$f":"'Population 2016'!AB33/'Population 2016'!AB$5","v":3.9380571732700119E-2},{"$f":"'Population 2016'!AC33/'Population 2016'!AC$5","v":4.1938600102188361E-2},{"$f":"'Population 2016'!AD33/'Population 2016'!AD$5","v":4.6049350552681528E-2},{"$f":"'Population 2016'!AE33/'Population 2016'!AE$5","v":4.5842359777821126E-2},{"$f":"'Population 2016'!AF33/'Population 2016'!AF$5","v":4.8424799046886548E-2},{"$f":"'Population 2016'!AG33/'Population 2016'!AG$5","v":4.5842359777821126E-2},{"$f":"'Population 2016'!AH33/'Population 2016'!AH$5","v":4.4927226623816909E-2},{"$f":"'Population 2016'!AI33/'Population 2016'!AI$5","v":3.8417895266427506E-2},{"$f":"'Population 2016'!AJ33/'Population 2016'!AJ$5","v":4.4851239438976107E-2},{"$f":"'Population 2016'!AK33/'Population 2016'!AK$5","v":4.1989867115899575E-2},{"$f":"'Population 2016'!AL33/'Population 2016'!AL$5","v":4.6185771802557597E-2},{"$f":"'Population 2016'!AM33/'Population 2016'!AM$5","v":4.3503772306956762E-2},{"$f":"'Population 2016'!AN33/'Population 2016'!AN$5","v":4.3907494272935527E-2},{"$f":"'Population 2016'!AO33/'Population 2016'!AO$5","v":4.3907494272935527E-2},{"$f":"'Population 2016'!AP33/'Population 2016'!AP$5","v":4.3442765879872551E-2},{"$f":"'Population 2016'!AQ33/'Population 2016'!AQ$5","v":4.541842494656656E-2},{"$f":"'Population 2016'!AR33/'Population 2016'!AR$5","v":4.2346444459444799E-2},{"$f":"'Population 2016'!AS33/'Population 2016'!AS$5","v":4.7535801021689979E-2},{"$f":"'Population 2016'!AT33/'Population 2016'!AT$5","v":4.0913164970738651E-2},{"$f":"'Population 2016'!AU33/'Population 2016'!AU$5","v":4.0913164970738651E-2},{"$f":"'Population 2016'!AV33/'Population 2016'!AV$5","v":4.789356984478936E-2},{"$f":"'Population 2016'!AW33/'Population 2016'!AW$5","v":4.6425956434193665E-2},{"$f":"'Population 2016'!AX33/'Population 2016'!AX$5","v":4.0942024355648698E-2},{"$f":"'Population 2016'!AY33/'Population 2016'!AY$5","v":4.2735840396560691E-2},{"$f":"'Population 2016'!AZ33/'Population 2016'!AZ$5","v":4.2506802584119055E-2},{"$f":"'Population 2016'!BA33/'Population 2016'!BA$5","v":4.7478946231915356E-2},{"$f":"'Population 2016'!BB33/'Population 2016'!BB$5","v":4.2078951547751396E-2},{"$f":"'Population 2016'!BC33/'Population 2016'!BC$5","v":4.3022175009958835E-2},31]
[null,"Female 60-64",{"$f":"'Population 2016'!C34/'Population 2016'!C$5","v":2.9746541070159924E-2},{"$f":"'Population 2016'!D34/'Population 2016'!D$5","v":3.463317782146455E-2},{"$f":"'Population 2016'!E34/'Population 2016'!E$5","v":3.9115128047665704E-2},{"$f":"'Population 2016'!F34/'Population 2016'!F$5","v":4.0855009013649239E-2},{"$f":"'Population 2016'!G34/'Population 2016'!G$5","v":4.3590645807394579E-2},{"$f":"'Population 2016'!H34/'Population 2016'!H$5","v":4.1959969261996091E-2},{"$f":"'Population 2016'!I34/'Population 2016'!I$5","v":4.3097311782932753E-2},{"$f":"'Population 2016'!J34/'Population 2016'!J$5","v":3.6464509922625912E-2},{"$f":"'Population 2016'!K34/'Population 2016'!K$5","v":3.9101261635873928E-2},{"$f":"'Population 2016'!L34/'Population 2016'!L$5","v":4.4827093228281413E-2},{"$f":"'Population 2016'!M34/'Population 2016'!M$5","v":4.4827093228281413E-2},{"$f":"'Population 2016'!N34/'Population 2016'!N$5","v":3.1377339838130222E-2},{"$f":"'Population 2016'!O34/'Population 2016'!O$5","v":3.911195648943442E-2},{"$f":"'Population 2016'!P34/'Population 2016'!P$5","v":4.1203651527104701E-2},{"$f":"'Population 2016'!Q34/'Population 2016'!Q$5","v":3.8894960106226721E-2},{"$f":"'Population 2016'!R34/'Population 2016'!R$5","v":3.9907915047639325E-2},{"$f":"'Population 2016'!S34/'Population 2016'!S$5","v":3.4682269701361589E-2},{"$f":"'Population 2016'!T34/'Population 2016'!T$5","v":2.8615235710995193E-2},{"$f":"'Population 2016'!U34/'Population 2016'!U$5","v":4.3332005488425619E-2},{"$f":"'Population 2016'!V34/'Population 2016'!V$5","v":3.6826157638851789E-2},{"$f":"'Population 2016'!W34/'Population 2016'!W$5","v":3.839089025291053E-2},{"$f":"'Population 2016'!X34/'Population 2016'!X$5","v":3.839089025291053E-2},{"$f":"'Population 2016'!Y34/'Population 2016'!Y$5","v":3.6652835408022132E-2},{"$f":"'Population 2016'!Z34/'Population 2016'!Z$5","v":2.9338944564571423E-2},{"$f":"'Population 2016'!AA34/'Population 2016'!AA$5","v":3.5731156284693227E-2},{"$f":"'Population 2016'!AB34/'Population 2016'!AB$5","v":3.5335660112790802E-2},{"$f":"'Population 2016'!AC34/'Population 2016'!AC$5","v":3.39910761013692E-2},{"$f":"'Population 2016'!AD34/'Population 2016'!AD$5","v":4.2949123525252146E-2},{"$f":"'Population 2016'!AE34/'Population 2016'!AE$5","v":4.2705777266707053E-2},{"$f":"'Population 2016'!AF34/'Population 2016'!AF$5","v":3.9527062691339036E-2},{"$f":"'Population 2016'!AG34/'Population 2016'!AG$5","v":4.2705777266707053E-2},{"$f":"'Population 2016'!AH34/'Population 2016'!AH$5","v":3.8856431643182893E-2},{"$f":"'Population 2016'!AI34/'Population 2016'!AI$5","v":3.2032001924927812E-2},{"$f":"'Population 2016'!AJ34/'Population 2016'!AJ$5","v":3.7671137383933302E-2},{"$f":"'Population 2016'!AK34/'Population 2016'!AK$5","v":3.8947487522472124E-2},{"$f":"'Population 2016'!AL34/'Population 2016'!AL$5","v":4.2656213972792255E-2},{"$f":"'Population 2016'!AM34/'Population 2016'!AM$5","v":3.7480395956405677E-2},{"$f":"'Population 2016'!AN34/'Population 2016'!AN$5","v":4.0907603359877823E-2},{"$f":"'Population 2016'!AO34/'Population 2016'!AO$5","v":4.0907603359877823E-2},{"$f":"'Population 2016'!AP34/'Population 2016'!AP$5","v":4.0597308308102022E-2},{"$f":"'Population 2016'!AQ34/'Population 2016'!AQ$5","v":3.7471913191209516E-2},{"$f":"'Population 2016'!AR34/'Population 2016'!AR$5","v":3.6790818357670667E-2},{"$f":"'Population 2016'!AS34/'Population 2016'!AS$5","v":4.3097311782932753E-2},{"$f":"'Population 2016'!AT34/'Population 2016'!AT$5","v":3.9120577845732064E-2},{"$f":"'Population 2016'!AU34/'Population 2016'!AU$5","v":3.9120577845732064E-2},{"$f":"'Population 2016'!AV34/'Population 2016'!AV$5","v":4.4166402702988071E-2},{"$f":"'Population 2016'!AW34/'Population 2016'!AW$5","v":4.0305235218744281E-2},{"$f":"'Population 2016'!AX34/'Population 2016'!AX$5","v":3.5038399120845422E-2},{"$f":"'Population 2016'!AY34/'Population 2016'!AY$5","v":3.7847679079587526E-2},{"$f":"'Population 2016'!AZ34/'Population 2016'!AZ$5","v":3.7369629122538557E-2},{"$f":"'Population 2016'!BA34/'Population 2016'!BA$5","v":3.9975167350464261E-2},{"$f":"'Population 2016'!BB34/'Population 2016'!BB$5","v":3.5346595499333666E-2},{"$f":"'Population 2016'!BC34/'Population 2016'!BC$5","v":4.3332005488425619E-2},32]
[null,"Female 65-69",{"$f":"'Population 2016'!C35/'Population 2016'!C$5","v":2.8734545343030774E-2},{"$f":"'Population 2016'!D35/'Population 2016'!D$5","v":3.3535303150337918E-2},{"$f":"'Population 2016'!E35/'Population 2016'!E$5","v":3.7938486492061184E-2},{"$f":"'Population 2016'!F35/'Population 2016'!F$5","v":4.4357455575585888E-2},{"$f":"'Population 2016'!G35/'Population 2016'!G$5","v":4.7799491149244845E-2},{"$f":"'Population 2016'!H35/'Population 2016'!H$5","v":4.2981326986865014E-2},{"$f":"'Population 2016'!I35/'Population 2016'!I$5","v":4.6551796331965496E-2},{"$f":"'Population 2016'!J35/'Population 2016'!J$5","v":3.7924085484686898E-2},{"$f":"'Population 2016'!K35/'Population 2016'!K$5","v":4.2219912110759344E-2},{"$f":"'Population 2016'!L35/'Population 2016'!L$5","v":4.4993884326402236E-2},{"$f":"'Population 2016'!M35/'Population 2016'!M$5","v":4.4993884326402236E-2},{"$f":"'Population 2016'!N35/'Population 2016'!N$5","v":3.3008897211885456E-2},{"$f":"'Population 2016'!O35/'Population 2016'!O$5","v":3.9934218999217362E-2},{"$f":"'Population 2016'!P35/'Population 2016'!P$5","v":4.0820466584018937E-2},{"$f":"'Population 2016'!Q35/'Population 2016'!Q$5","v":3.93649898356071E-2},{"$f":"'Population 2016'!R35/'Population 2016'!R$5","v":3.8271144940650446E-2},{"$f":"'Population 2016'!S35/'Population 2016'!S$5","v":3.5695560761274628E-2},{"$f":"'Population 2016'!T35/'Population 2016'!T$5","v":2.8564049827131309E-2},{"$f":"'Population 2016'!U35/'Population 2016'!U$5","v":4.4350019917673615E-2},{"$f":"'Population 2016'!V35/'Population 2016'!V$5","v":3.7726776623594693E-2},{"$f":"'Population 2016'!W35/'Population 2016'!W$5","v":4.0587270148190274E-2},{"$f":"'Population 2016'!X35/'Population 2016'!X$5","v":4.0587270148190274E-2},{"$f":"'Population 2016'!Y35/'Population 2016'!Y$5","v":3.7821338293508845E-2},{"$f":"'Population 2016'!Z35/'Population 2016'!Z$5","v":2.5722875123649055E-2},{"$f":"'Population 2016'!AA35/'Population 2016'!AA$5","v":3.341046814385476E-2},{"$f":"'Population 2016'!AB35/'Population 2016'!AB$5","v":3.4670378596358353E-2},{"$f":"'Population 2016'!AC35/'Population 2016'!AC$5","v":3.1776650166211229E-2},{"$f":"'Population 2016'!AD35/'Population 2016'!AD$5","v":4.3756745692061484E-2},{"$f":"'Population 2016'!AE35/'Population 2016'!AE$5","v":4.2223226111151035E-2},{"$f":"'Population 2016'!AF35/'Population 2016'!AF$5","v":3.9798519054728622E-2},{"$f":"'Population 2016'!AG35/'Population 2016'!AG$5","v":4.2223226111151035E-2},{"$f":"'Population 2016'!AH35/'Population 2016'!AH$5","v":3.6344891002479958E-2},{"$f":"'Population 2016'!AI35/'Population 2016'!AI$5","v":3.2231603814856943E-2},{"$f":"'Population 2016'!AJ35/'Population 2016'!AJ$5","v":4.0375874857095054E-2},{"$f":"'Population 2016'!AK35/'Population 2016'!AK$5","v":4.0506392768691148E-2},{"$f":"'Population 2016'!AL35/'Population 2016'!AL$5","v":4.3702665791667407E-2},{"$f":"'Population 2016'!AM35/'Population 2016'!AM$5","v":3.5155075681568761E-2},{"$f":"'Population 2016'!AN35/'Population 2016'!AN$5","v":4.2489364023126433E-2},{"$f":"'Population 2016'!AO35/'Population 2016'!AO$5","v":4.2489364023126433E-2},{"$f":"'Population 2016'!AP35/'Population 2016'!AP$5","v":4.2166669308688551E-2},{"$f":"'Population 2016'!AQ35/'Population 2016'!AQ$5","v":3.7499314955883156E-2},{"$f":"'Population 2016'!AR35/'Population 2016'!AR$5","v":3.6548213624940214E-2},{"$f":"'Population 2016'!AS35/'Population 2016'!AS$5","v":4.6551796331965496E-2},{"$f":"'Population 2016'!AT35/'Population 2016'!AT$5","v":3.6009911952338269E-2},{"$f":"'Population 2016'!AU35/'Population 2016'!AU$5","v":3.6009911952338269E-2},{"$f":"'Population 2016'!AV35/'Population 2016'!AV$5","v":4.5370077077394148E-2},{"$f":"'Population 2016'!AW35/'Population 2016'!AW$5","v":3.7597626456769784E-2},{"$f":"'Population 2016'!AX35/'Population 2016'!AX$5","v":3.5600649143207638E-2},{"$f":"'Population 2016'!AY35/'Population 2016'!AY$5","v":4.0009485633854536E-2},{"$f":"'Population 2016'!AZ35/'Population 2016'!AZ$5","v":3.9501009601279405E-2},{"$f":"'Population 2016'!BA35/'Population 2016'!BA$5","v":3.8112718635283954E-2},{"$f":"'Population 2016'!BB35/'Population 2016'!BB$5","v":3.4890866782210005E-2},{"$f":"'Population 2016'!BC35/'Population 2016'!BC$5","v":4.4350019917673615E-2},33]
[null,"Female 70-74",{"$f":"'Population 2016'!C36/'Population 2016'!C$5","v":2.110368867331449E-2},{"$f":"'Population 2016'!D36/'Population 2016'!D$5","v":2.4590925540134777E-2},{"$f":"'Population 2016'!E36/'Population 2016'!E$5","v":2.7789367098101904E-2},{"$f":"'Population 2016'!F36/'Population 2016'!F$5","v":3.4128251352047383E-2},{"$f":"'Population 2016'!G36/'Population 2016'!G$5","v":3.7067612190764897E-2},{"$f":"'Population 2016'!H36/'Population 2016'!H$5","v":3.4382467665111389E-2},{"$f":"'Population 2016'!I36/'Population 2016'!I$5","v":3.6282555899840883E-2},{"$f":"'Population 2016'!J36/'Population 2016'!J$5","v":2.9937885108182745E-2},{"$f":"'Population 2016'!K36/'Population 2016'!K$5","v":3.1800784387846712E-2},{"$f":"'Population 2016'!L36/'Population 2016'!L$5","v":3.8131622003717058E-2},{"$f":"'Population 2016'!M36/'Population 2016'!M$5","v":3.8131622003717058E-2},{"$f":"'Population 2016'!N36/'Population 2016'!N$5","v":2.4907370942204292E-2},{"$f":"'Population 2016'!O36/'Population 2016'!O$5","v":3.0810077173794592E-2},{"$f":"'Population 2016'!P36/'Population 2016'!P$5","v":3.3077876704609488E-2},{"$f":"'Population 2016'!Q36/'Population 2016'!Q$5","v":3.0869202477056674E-2},{"$f":"'Population 2016'!R36/'Population 2016'!R$5","v":3.1005482514504711E-2},{"$f":"'Population 2016'!S36/'Population 2016'!S$5","v":2.7222929329127177E-2},{"$f":"'Population 2016'!T36/'Population 2016'!T$5","v":2.1293327687375234E-2},{"$f":"'Population 2016'!U36/'Population 2016'!U$5","v":3.5143628557517813E-2},{"$f":"'Population 2016'!V36/'Population 2016'!V$5","v":2.8338968562291542E-2},{"$f":"'Population 2016'!W36/'Population 2016'!W$5","v":3.1203629256303152E-2},{"$f":"'Population 2016'!X36/'Population 2016'!X$5","v":3.1203629256303152E-2},{"$f":"'Population 2016'!Y36/'Population 2016'!Y$5","v":2.9105260647684456E-2},{"$f":"'Population 2016'!Z36/'Population 2016'!Z$5","v":1.9861280762239562E-2},{"$f":"'Population 2016'!AA36/'Population 2016'!AA$5","v":2.6001938668192087E-2},{"$f":"'Population 2016'!AB36/'Population 2016'!AB$5","v":2.585181621853986E-2},{"$f":"'Population 2016'!AC36/'Population 2016'!AC$5","v":2.4674145310195461E-2},{"$f":"'Population 2016'!AD36/'Population 2016'!AD$5","v":3.3841974022107264E-2},{"$f":"'Population 2016'!AE36/'Population 2016'!AE$5","v":3.2618404706413827E-2},{"$f":"'Population 2016'!AF36/'Population 2016'!AF$5","v":3.1307967244265482E-2},{"$f":"'Population 2016'!AG36/'Population 2016'!AG$5","v":3.2618404706413827E-2},{"$f":"'Population 2016'!AH36/'Population 2016'!AH$5","v":2.838672524451297E-2},{"$f":"'Population 2016'!AI36/'Population 2016'!AI$5","v":2.4374671887304227E-2},{"$f":"'Population 2016'!AJ36/'Population 2016'!AJ$5","v":2.9989125282324402E-2},{"$f":"'Population 2016'!AK36/'Population 2016'!AK$5","v":3.2334712042543026E-2},{"$f":"'Population 2016'!AL36/'Population 2016'!AL$5","v":3.4594987673152305E-2},{"$f":"'Population 2016'!AM36/'Population 2016'!AM$5","v":2.7664791681003727E-2},{"$f":"'Population 2016'!AN36/'Population 2016'!AN$5","v":3.6325951783571508E-2},{"$f":"'Population 2016'!AO36/'Population 2016'!AO$5","v":3.6325951783571508E-2},{"$f":"'Population 2016'!AP36/'Population 2016'!AP$5","v":3.3860152497503286E-2},{"$f":"'Population 2016'!AQ36/'Population 2016'!AQ$5","v":2.8778703348495645E-2},{"$f":"'Population 2016'!AR36/'Population 2016'!AR$5","v":2.8326163238454612E-2},{"$f":"'Population 2016'!AS36/'Population 2016'!AS$5","v":3.6282555899840883E-2},{"$f":"'Population 2016'!AT36/'Population 2016'!AT$5","v":3.0421257974376548E-2},{"$f":"'Population 2016'!AU36/'Population 2016'!AU$5","v":3.0421257974376548E-2},{"$f":"'Population 2016'!AV36/'Population 2016'!AV$5","v":3.7936859888079398E-2},{"$f":"'Population 2016'!AW36/'Population 2016'!AW$5","v":2.9146836292635304E-2},{"$f":"'Population 2016'!AX36/'Population 2016'!AX$5","v":2.8930319332455882E-2},{"$f":"'Population 2016'!AY36/'Population 2016'!AY$5","v":3.0952235243719591E-2},{"$f":"'Population 2016'!AZ36/'Population 2016'!AZ$5","v":3.0730997347998917E-2},{"$f":"'Population 2016'!BA36/'Population 2016'!BA$5","v":2.7720794644785142E-2},{"$f":"'Population 2016'!BB36/'Population 2016'!BB$5","v":2.6922519213108415E-2},{"$f":"'Population 2016'!BC36/'Population 2016'!BC$5","v":3.5143628557517813E-2},34]
[null,"Female 75-79",{"$f":"'Population 2016'!C37/'Population 2016'!C$5","v":1.8885475816879885E-2},{"$f":"'Population 2016'!D37/'Population 2016'!D$5","v":2.02483299590192E-2},{"$f":"'Population 2016'!E37/'Population 2016'!E$5","v":2.149831941833592E-2},{"$f":"'Population 2016'!F37/'Population 2016'!F$5","v":2.7216070048931239E-2},{"$f":"'Population 2016'!G37/'Population 2016'!G$5","v":3.0382179396957722E-2},{"$f":"'Population 2016'!H37/'Population 2016'!H$5","v":2.6963843936539639E-2},{"$f":"'Population 2016'!I37/'Population 2016'!I$5","v":2.9310777991792981E-2},{"$f":"'Population 2016'!J37/'Population 2016'!J$5","v":2.3635172453828485E-2},{"$f":"'Population 2016'!K37/'Population 2016'!K$5","v":2.3224495581911826E-2},{"$f":"'Population 2016'!L37/'Population 2016'!L$5","v":2.9069305672485824E-2},{"$f":"'Population 2016'!M37/'Population 2016'!M$5","v":2.9069305672485824E-2},{"$f":"'Population 2016'!N37/'Population 2016'!N$5","v":2.2230973870970335E-2},{"$f":"'Population 2016'!O37/'Population 2016'!O$5","v":2.4261697427209954E-2},{"$f":"'Population 2016'!P37/'Population 2016'!P$5","v":2.9268567564521581E-2},{"$f":"'Population 2016'!Q37/'Population 2016'!Q$5","v":2.5240596467726584E-2},{"$f":"'Population 2016'!R37/'Population 2016'!R$5","v":2.5922180231010804E-2},{"$f":"'Population 2016'!S37/'Population 2016'!S$5","v":2.1867844955875942E-2},{"$f":"'Population 2016'!T37/'Population 2016'!T$5","v":1.8303606743507537E-2},{"$f":"'Population 2016'!U37/'Population 2016'!U$5","v":3.1558447306687915E-2},{"$f":"'Population 2016'!V37/'Population 2016'!V$5","v":2.3729020538692271E-2},{"$f":"'Population 2016'!W37/'Population 2016'!W$5","v":2.4088273553886482E-2},{"$f":"'Population 2016'!X37/'Population 2016'!X$5","v":2.4088273553886482E-2},{"$f":"'Population 2016'!Y37/'Population 2016'!Y$5","v":2.3684043178963769E-2},{"$f":"'Population 2016'!Z37/'Population 2016'!Z$5","v":1.8448148700208871E-2},{"$f":"'Population 2016'!AA37/'Population 2016'!AA$5","v":2.2388362144281294E-2},{"$f":"'Population 2016'!AB37/'Population 2016'!AB$5","v":2.0990143598456548E-2},{"$f":"'Population 2016'!AC37/'Population 2016'!AC$5","v":2.1844313755505038E-2},{"$f":"'Population 2016'!AD37/'Population 2016'!AD$5","v":2.6919498306598684E-2},{"$f":"'Population 2016'!AE37/'Population 2016'!AE$5","v":2.560601238205731E-2},{"$f":"'Population 2016'!AF37/'Population 2016'!AF$5","v":2.6331267248789758E-2},{"$f":"'Population 2016'!AG37/'Population 2016'!AG$5","v":2.560601238205731E-2},{"$f":"'Population 2016'!AH37/'Population 2016'!AH$5","v":2.3365501611509989E-2},{"$f":"'Population 2016'!AI37/'Population 2016'!AI$5","v":1.9967024674074723E-2},{"$f":"'Population 2016'!AJ37/'Population 2016'!AJ$5","v":2.3046036304826701E-2},{"$f":"'Population 2016'!AK37/'Population 2016'!AK$5","v":2.4804193957984989E-2},{"$f":"'Population 2016'!AL37/'Population 2016'!AL$5","v":2.7154537876234904E-2},{"$f":"'Population 2016'!AM37/'Population 2016'!AM$5","v":2.2575889833424487E-2},{"$f":"'Population 2016'!AN37/'Population 2016'!AN$5","v":2.7162648630958873E-2},{"$f":"'Population 2016'!AO37/'Population 2016'!AO$5","v":2.7162648630958873E-2},{"$f":"'Population 2016'!AP37/'Population 2016'!AP$5","v":2.6932771111075886E-2},{"$f":"'Population 2016'!AQ37/'Population 2016'!AQ$5","v":2.4038198059955062E-2},{"$f":"'Population 2016'!AR37/'Population 2016'!AR$5","v":2.324260272773266E-2},{"$f":"'Population 2016'!AS37/'Population 2016'!AS$5","v":2.9310777991792981E-2},{"$f":"'Population 2016'!AT37/'Population 2016'!AT$5","v":2.2091000158169453E-2},{"$f":"'Population 2016'!AU37/'Population 2016'!AU$5","v":2.2091000158169453E-2},{"$f":"'Population 2016'!AV37/'Population 2016'!AV$5","v":2.9616724738675958E-2},{"$f":"'Population 2016'!AW37/'Population 2016'!AW$5","v":2.4196869851729818E-2},{"$f":"'Population 2016'!AX37/'Population 2016'!AX$5","v":2.3857290721596789E-2},{"$f":"'Population 2016'!AY37/'Population 2016'!AY$5","v":2.4748324714666012E-2},{"$f":"'Population 2016'!AZ37/'Population 2016'!AZ$5","v":2.5329199049651672E-2},{"$f":"'Population 2016'!BA37/'Population 2016'!BA$5","v":2.4157849276614123E-2},{"$f":"'Population 2016'!BB37/'Population 2016'!BB$5","v":2.0279927912002928E-2},{"$f":"'Population 2016'!BC37/'Population 2016'!BC$5","v":3.1558447306687915E-2},35]
[null,"Female 80-84",{"$f":"'Population 2016'!C38/'Population 2016'!C$5","v":1.5501934547387467E-2},{"$f":"'Population 2016'!D38/'Population 2016'!D$5","v":1.5619651223066616E-2},{"$f":"'Population 2016'!E38/'Population 2016'!E$5","v":1.5727619199414962E-2},{"$f":"'Population 2016'!F38/'Population 2016'!F$5","v":2.0952871491115119E-2},{"$f":"'Population 2016'!G38/'Population 2016'!G$5","v":2.2086288096140314E-2},{"$f":"'Population 2016'!H38/'Population 2016'!H$5","v":2.0252064601686701E-2},{"$f":"'Population 2016'!I38/'Population 2016'!I$5","v":2.0936269994137845E-2},{"$f":"'Population 2016'!J38/'Population 2016'!J$5","v":1.7033910252689018E-2},{"$f":"'Population 2016'!K38/'Population 2016'!K$5","v":1.5640504654349574E-2},{"$f":"'Population 2016'!L38/'Population 2016'!L$5","v":2.2794783409845441E-2},{"$f":"'Population 2016'!M38/'Population 2016'!M$5","v":2.2794783409845441E-2},{"$f":"'Population 2016'!N38/'Population 2016'!N$5","v":1.9120566463860601E-2},{"$f":"'Population 2016'!O38/'Population 2016'!O$5","v":1.7871826116246124E-2},{"$f":"'Population 2016'!P38/'Population 2016'!P$5","v":2.1988053645892031E-2},{"$f":"'Population 2016'!Q38/'Population 2016'!Q$5","v":1.9212465188423167E-2},{"$f":"'Population 2016'!R38/'Population 2016'!R$5","v":2.2422419758343536E-2},{"$f":"'Population 2016'!S38/'Population 2016'!S$5","v":1.6628388743642659E-2},{"$f":"'Population 2016'!T38/'Population 2016'!T$5","v":1.5016077020795429E-2},{"$f":"'Population 2016'!U38/'Population 2016'!U$5","v":2.4476607798875758E-2},{"$f":"'Population 2016'!V38/'Population 2016'!V$5","v":1.676067195335099E-2},{"$f":"'Population 2016'!W38/'Population 2016'!W$5","v":1.7959981435360407E-2},{"$f":"'Population 2016'!X38/'Population 2016'!X$5","v":1.7959981435360407E-2},{"$f":"'Population 2016'!Y38/'Population 2016'!Y$5","v":1.6891623344620913E-2},{"$f":"'Population 2016'!Z38/'Population 2016'!Z$5","v":1.520181655222878E-2},{"$f":"'Population 2016'!AA38/'Population 2016'!AA$5","v":1.751843827587421E-2},{"$f":"'Population 2016'!AB38/'Population 2016'!AB$5","v":1.6337267023530496E-2},{"$f":"'Population 2016'!AC38/'Population 2016'!AC$5","v":1.7505445564011492E-2},{"$f":"'Population 2016'!AD38/'Population 2016'!AD$5","v":2.0194275931370725E-2},{"$f":"'Population 2016'!AE38/'Population 2016'!AE$5","v":1.9476586001909671E-2},{"$f":"'Population 2016'!AF38/'Population 2016'!AF$5","v":2.0841816344689259E-2},{"$f":"'Population 2016'!AG38/'Population 2016'!AG$5","v":1.9476586001909671E-2},{"$f":"'Population 2016'!AH38/'Population 2016'!AH$5","v":1.7541773868459915E-2},{"$f":"'Population 2016'!AI38/'Population 2016'!AI$5","v":1.550879342024674E-2},{"$f":"'Population 2016'!AJ38/'Population 2016'!AJ$5","v":1.7260128823578618E-2},{"$f":"'Population 2016'!AK38/'Population 2016'!AK$5","v":2.0026903687313781E-2},{"$f":"'Population 2016'!AL38/'Population 2016'!AL$5","v":2.0157499866976465E-2},{"$f":"'Population 2016'!AM38/'Population 2016'!AM$5","v":1.6472829610526964E-2},{"$f":"'Population 2016'!AN38/'Population 2016'!AN$5","v":1.7835715064906731E-2},{"$f":"'Population 2016'!AO38/'Population 2016'!AO$5","v":1.7835715064906731E-2},{"$f":"'Population 2016'!AP38/'Population 2016'!AP$5","v":2.0869330881537022E-2},{"$f":"'Population 2016'!AQ38/'Population 2016'!AQ$5","v":1.8715405272099524E-2},{"$f":"'Population 2016'!AR38/'Population 2016'!AR$5","v":1.7870545312615914E-2},{"$f":"'Population 2016'!AS38/'Population 2016'!AS$5","v":2.0936269994137845E-2},{"$f":"'Population 2016'!AT38/'Population 2016'!AT$5","v":1.6396899878736753E-2},{"$f":"'Population 2016'!AU38/'Population 2016'!AU$5","v":1.6396899878736753E-2},{"$f":"'Population 2016'!AV38/'Population 2016'!AV$5","v":2.2901488755147293E-2},{"$f":"'Population 2016'!AW38/'Population 2016'!AW$5","v":1.8667246323753738E-2},{"$f":"'Population 2016'!AX38/'Population 2016'!AX$5","v":1.7787546162004678E-2},{"$f":"'Population 2016'!AY38/'Population 2016'!AY$5","v":1.9186989382209845E-2},{"$f":"'Population 2016'!AZ38/'Population 2016'!AZ$5","v":2.026681086802699E-2},{"$f":"'Population 2016'!BA38/'Population 2016'!BA$5","v":1.7841718851220038E-2},{"$f":"'Population 2016'!BB38/'Population 2016'!BB$5","v":1.3927345794521588E-2},{"$f":"'Population 2016'!BC38/'Population 2016'!BC$5","v":2.4476607798875758E-2},36]
[null,"Female 85-89",{"$f":"'Population 2016'!C39/'Population 2016'!C$5","v":1.0309067583936867E-2},{"$f":"'Population 2016'!D39/'Population 2016'!D$5","v":1.0220748608706708E-2},{"$f":"'Population 2016'!E39/'Population 2016'!E$5","v":1.0139743764034146E-2},{"$f":"'Population 2016'!F39/'Population 2016'!F$5","v":1.3546227143960855E-2},{"$f":"'Population 2016'!G39/'Population 2016'!G$5","v":1.3533264764791858E-2},{"$f":"'Population 2016'!H39/'Population 2016'!H$5","v":1.1776416688012502E-2},{"$f":"'Population 2016'!I39/'Population 2016'!I$5","v":1.2844401641403567E-2},{"$f":"'Population 2016'!J39/'Population 2016'!J$5","v":9.9765306884054966E-3},{"$f":"'Population 2016'!K39/'Population 2016'!K$5","v":9.7339696640362898E-3},{"$f":"'Population 2016'!L39/'Population 2016'!L$5","v":1.3954855209441964E-2},{"$f":"'Population 2016'!M39/'Population 2016'!M$5","v":1.3954855209441964E-2},{"$f":"'Population 2016'!N39/'Population 2016'!N$5","v":1.2264810602711762E-2},{"$f":"'Population 2016'!O39/'Population 2016'!O$5","v":1.0382302533162937E-2},{"$f":"'Population 2016'!P39/'Population 2016'!P$5","v":1.3557984898005184E-2},{"$f":"'Population 2016'!Q39/'Population 2016'!Q$5","v":1.2103265531544871E-2},{"$f":"'Population 2016'!R39/'Population 2016'!R$5","v":1.4398254111885878E-2},{"$f":"'Population 2016'!S39/'Population 2016'!S$5","v":1.0682806357253946E-2},{"$f":"'Population 2016'!T39/'Population 2016'!T$5","v":1.0690869834297335E-2},{"$f":"'Population 2016'!U39/'Population 2016'!U$5","v":1.4606293984862568E-2},{"$f":"'Population 2016'!V39/'Population 2016'!V$5","v":9.8075880965646737E-3},{"$f":"'Population 2016'!W39/'Population 2016'!W$5","v":1.1351231214741892E-2},{"$f":"'Population 2016'!X39/'Population 2016'!X$5","v":1.1351231214741892E-2},{"$f":"'Population 2016'!Y39/'Population 2016'!Y$5","v":9.8885550309216075E-3},{"$f":"'Population 2016'!Z39/'Population 2016'!Z$5","v":9.2008447819614658E-3},{"$f":"'Population 2016'!AA39/'Population 2016'!AA$5","v":1.0487278071324121E-2},{"$f":"'Population 2016'!AB39/'Population 2016'!AB$5","v":1.0509400939582204E-2},{"$f":"'Population 2016'!AC39/'Population 2016'!AC$5","v":1.0701852008911487E-2},{"$f":"'Population 2016'!AD39/'Population 2016'!AD$5","v":1.2709814284119245E-2},{"$f":"'Population 2016'!AE39/'Population 2016'!AE$5","v":1.2397457879444348E-2},{"$f":"'Population 2016'!AF39/'Population 2016'!AF$5","v":1.3452170896861662E-2},{"$f":"'Population 2016'!AG39/'Population 2016'!AG$5","v":1.2397457879444348E-2},{"$f":"'Population 2016'!AH39/'Population 2016'!AH$5","v":1.0101892014898341E-2},{"$f":"'Population 2016'!AI39/'Population 2016'!AI$5","v":1.0120909528392685E-2},{"$f":"'Population 2016'!AJ39/'Population 2016'!AJ$5","v":9.6617683963974004E-3},{"$f":"'Population 2016'!AK39/'Population 2016'!AK$5","v":1.1993512942685089E-2},{"$f":"'Population 2016'!AL39/'Population 2016'!AL$5","v":1.1377946471328993E-2},{"$f":"'Population 2016'!AM39/'Population 2016'!AM$5","v":8.975301621566803E-3},{"$f":"'Population 2016'!AN39/'Population 2016'!AN$5","v":1.1945020181084324E-2},{"$f":"'Population 2016'!AO39/'Population 2016'!AO$5","v":1.1945020181084324E-2},{"$f":"'Population 2016'!AP39/'Population 2016'!AP$5","v":1.4251066055831206E-2},{"$f":"'Population 2016'!AQ39/'Population 2016'!AQ$5","v":1.0816846604921358E-2},{"$f":"'Population 2016'!AR39/'Population 2016'!AR$5","v":1.1070038360063296E-2},{"$f":"'Population 2016'!AS39/'Population 2016'!AS$5","v":1.2844401641403567E-2},{"$f":"'Population 2016'!AT39/'Population 2016'!AT$5","v":9.9646754890072228E-3},{"$f":"'Population 2016'!AU39/'Population 2016'!AU$5","v":9.9646754890072228E-3},{"$f":"'Population 2016'!AV39/'Population 2016'!AV$5","v":1.3736669834230809E-2},{"$f":"'Population 2016'!AW39/'Population 2016'!AW$5","v":1.1288059064006345E-2},{"$f":"'Population 2016'!AX39/'Population 2016'!AX$5","v":1.0107721992920761E-2},{"$f":"'Population 2016'!AY39/'Population 2016'!AY$5","v":1.2410880939995716E-2},{"$f":"'Population 2016'!AZ39/'Population 2016'!AZ$5","v":1.3343419758270964E-2},{"$f":"'Population 2016'!BA39/'Population 2016'!BA$5","v":1.13096523429065E-2},{"$f":"'Population 2016'!BB39/'Population 2016'!BB$5","v":7.4919039102904926E-3},{"$f":"'Population 2016'!BC39/'Population 2016'!BC$5","v":1.4606293984862568E-2},37]
[null,"Female 90+",{"$f":"'Population 2016'!C40/'Population 2016'!C$5","v":5.6681982898294427E-3},{"$f":"'Population 2016'!D40/'Population 2016'!D$5","v":5.8414757000479246E-3},{"$f":"'Population 2016'!E40/'Population 2016'!E$5","v":6.0004031520867812E-3},{"$f":"'Population 2016'!F40/'Population 2016'!F$5","v":9.1063610610352813E-3},{"$f":"'Population 2016'!G40/'Population 2016'!G$5","v":8.5800898608780381E-3},{"$f":"'Population 2016'!H40/'Population 2016'!H$5","v":7.3051395369196498E-3},{"$f":"'Population 2016'!I40/'Population 2016'!I$5","v":7.8615693827987602E-3},{"$f":"'Population 2016'!J40/'Population 2016'!J$5","v":6.1949030957929394E-3},{"$f":"'Population 2016'!K40/'Population 2016'!K$5","v":5.3158814912819541E-3},{"$f":"'Population 2016'!L40/'Population 2016'!L$5","v":7.8709513446539488E-3},{"$f":"'Population 2016'!M40/'Population 2016'!M$5","v":7.8709513446539488E-3},{"$f":"'Population 2016'!N40/'Population 2016'!N$5","v":6.7512718914009692E-3},{"$f":"'Population 2016'!O40/'Population 2016'!O$5","v":6.023320553590711E-3},{"$f":"'Population 2016'!P40/'Population 2016'!P$5","v":8.0018032232615794E-3},{"$f":"'Population 2016'!Q40/'Population 2016'!Q$5","v":6.674422157201443E-3},{"$f":"'Population 2016'!R40/'Population 2016'!R$5","v":8.8758183850534949E-3},{"$f":"'Population 2016'!S40/'Population 2016'!S$5","v":6.383380614365078E-3},{"$f":"'Population 2016'!T40/'Population 2016'!T$5","v":6.4168485316631226E-3},{"$f":"'Population 2016'!U40/'Population 2016'!U$5","v":1.0622759261718231E-2},{"$f":"'Population 2016'!V40/'Population 2016'!V$5","v":5.9532441364361435E-3},{"$f":"'Population 2016'!W40/'Population 2016'!W$5","v":6.9421293118663348E-3},{"$f":"'Population 2016'!X40/'Population 2016'!X$5","v":6.9421293118663348E-3},{"$f":"'Population 2016'!Y40/'Population 2016'!Y$5","v":6.0690609052320311E-3},{"$f":"'Population 2016'!Z40/'Population 2016'!Z$5","v":5.3582870516451376E-3},{"$f":"'Population 2016'!AA40/'Population 2016'!AA$5","v":5.8339429042950338E-3},{"$f":"'Population 2016'!AB40/'Population 2016'!AB$5","v":5.9875336478920809E-3},{"$f":"'Population 2016'!AC40/'Population 2016'!AC$5","v":6.2078395435862322E-3},{"$f":"'Population 2016'!AD40/'Population 2016'!AD$5","v":7.4025829022293351E-3},{"$f":"'Population 2016'!AE40/'Population 2016'!AE$5","v":6.9559235721105969E-3},{"$f":"'Population 2016'!AF40/'Population 2016'!AF$5","v":7.9174772655295662E-3},{"$f":"'Population 2016'!AG40/'Population 2016'!AG$5","v":6.9559235721105969E-3},{"$f":"'Population 2016'!AH40/'Population 2016'!AH$5","v":5.1624049116223772E-3},{"$f":"'Population 2016'!AI40/'Population 2016'!AI$5","v":5.95661256452883E-3},{"$f":"'Population 2016'!AJ40/'Population 2016'!AJ$5","v":5.6186041323927167E-3},{"$f":"'Population 2016'!AK40/'Population 2016'!AK$5","v":6.7384936449467582E-3},{"$f":"'Population 2016'!AL40/'Population 2016'!AL$5","v":6.9438285947393628E-3},{"$f":"'Population 2016'!AM40/'Population 2016'!AM$5","v":4.2304892227562653E-3},{"$f":"'Population 2016'!AN40/'Population 2016'!AN$5","v":7.308825133631504E-3},{"$f":"'Population 2016'!AO40/'Population 2016'!AO$5","v":7.308825133631504E-3},{"$f":"'Population 2016'!AP40/'Population 2016'!AP$5","v":8.9485281296070255E-3},{"$f":"'Population 2016'!AQ40/'Population 2016'!AQ$5","v":6.0420891105387184E-3},{"$f":"'Population 2016'!AR40/'Population 2016'!AR$5","v":6.4716873148022522E-3},{"$f":"'Population 2016'!AS40/'Population 2016'!AS$5","v":7.8615693827987602E-3},{"$f":"'Population 2016'!AT40/'Population 2016'!AT$5","v":6.590393841935994E-3},{"$f":"'Population 2016'!AU40/'Population 2016'!AU$5","v":6.590393841935994E-3},{"$f":"'Population 2016'!AV40/'Population 2016'!AV$5","v":9.1014676380530048E-3},{"$f":"'Population 2016'!AW40/'Population 2016'!AW$5","v":6.1436024162548047E-3},{"$f":"'Population 2016'!AX40/'Population 2016'!AX$5","v":6.6703298107517539E-3},{"$f":"'Population 2016'!AY40/'Population 2016'!AY$5","v":7.6145160796793248E-3},{"$f":"'Population 2016'!AZ40/'Population 2016'!AZ$5","v":8.2062462966904642E-3},{"$f":"'Population 2016'!BA40/'Population 2016'!BA$5","v":6.0732023321096954E-3},{"$f":"'Population 2016'!BB40/'Population 2016'!BB$5","v":4.3363277932372624E-3},{"$f":"'Population 2016'!BC40/'Population 2016'!BC$5","v":1.0622759261718231E-2},38]
[null,"Male 0-4",{"$f":"'Population 2016'!C41/'Population 2016'!C$5","v":0},{"$f":"'Population 2016'!D41/'Population 2016'!D$5","v":0},{"$f":"'Population 2016'!E41/'Population 2016'!E$5","v":0},{"$f":"'Population 2016'!F41/'Population 2016'!F$5","v":0},{"$f":"'Population 2016'!G41/'Population 2016'!G$5","v":0},{"$f":"'Population 2016'!H41/'Population 2016'!H$5","v":0},{"$f":"'Population 2016'!I41/'Population 2016'!I$5","v":0},{"$f":"'Population 2016'!J41/'Population 2016'!J$5","v":0},{"$f":"'Population 2016'!K41/'Population 2016'!K$5","v":0},{"$f":"'Population 2016'!L41/'Population 2016'!L$5","v":0},{"$f":"'Population 2016'!M41/'Population 2016'!M$5","v":0},{"$f":"'Population 2016'!N41/'Population 2016'!N$5","v":0},{"$f":"'Population 2016'!O41/'Population 2016'!O$5","v":0},{"$f":"'Population 2016'!P41/'Population 2016'!P$5","v":0},{"$f":"'Population 2016'!Q41/'Population 2016'!Q$5","v":0},{"$f":"'Population 2016'!R41/'Population 2016'!R$5","v":0},{"$f":"'Population 2016'!S41/'Population 2016'!S$5","v":0},{"$f":"'Population 2016'!T41/'Population 2016'!T$5","v":0},{"$f":"'Population 2016'!U41/'Population 2016'!U$5","v":0},{"$f":"'Population 2016'!V41/'Population 2016'!V$5","v":0},{"$f":"'Population 2016'!W41/'Population 2016'!W$5","v":0},{"$f":"'Population 2016'!X41/'Population 2016'!X$5","v":0},{"$f":"'Population 2016'!Y41/'Population 2016'!Y$5","v":0},{"$f":"'Population 2016'!Z41/'Population 2016'!Z$5","v":0},{"$f":"'Population 2016'!AA41/'Population 2016'!AA$5","v":0},{"$f":"'Population 2016'!AB41/'Population 2016'!AB$5","v":0},{"$f":"'Population 2016'!AC41/'Population 2016'!AC$5","v":0},{"$f":"'Population 2016'!AD41/'Population 2016'!AD$5","v":0},{"$f":"'Population 2016'!AE41/'Population 2016'!AE$5","v":0},{"$f":"'Population 2016'!AF41/'Population 2016'!AF$5","v":0},{"$f":"'Population 2016'!AG41/'Population 2016'!AG$5","v":0},{"$f":"'Population 2016'!AH41/'Population 2016'!AH$5","v":0},{"$f":"'Population 2016'!AI41/'Population 2016'!AI$5","v":0},{"$f":"'Population 2016'!AJ41/'Population 2016'!AJ$5","v":0},{"$f":"'Population 2016'!AK41/'Population 2016'!AK$5","v":0},{"$f":"'Population 2016'!AL41/'Population 2016'!AL$5","v":0},{"$f":"'Population 2016'!AM41/'Population 2016'!AM$5","v":0},{"$f":"'Population 2016'!AN41/'Population 2016'!AN$5","v":0},{"$f":"'Population 2016'!AO41/'Population 2016'!AO$5","v":0},{"$f":"'Population 2016'!AP41/'Population 2016'!AP$5","v":0},{"$f":"'Population 2016'!AQ41/'Population 2016'!AQ$5","v":0},{"$f":"'Population 2016'!AR41/'Population 2016'!AR$5","v":0},{"$f":"'Population 2016'!AS41/'Population 2016'!AS$5","v":0},{"$f":"'Population 2016'!AT41/'Population 2016'!AT$5","v":0},{"$f":"'Population 2016'!AU41/'Population 2016'!AU$5","v":0},{"$f":"'Population 2016'!AV41/'Population 2016'!AV$5","v":0},{"$f":"'Population 2016'!AW41/'Population 2016'!AW$5","v":0},{"$f":"'Population 2016'!AX41/'Population 2016'!AX$5","v":0},{"$f":"'Population 2016'!AY41/'Population 2016'!AY$5","v":0},{"$f":"'Population 2016'!AZ41/'Population 2016'!AZ$5","v":0},{"$f":"'Population 2016'!BA41/'Population 2016'!BA$5","v":0},{"$f":"'Population 2016'!BB41/'Population 2016'!BB$5","v":0},{"$f":"'Population 2016'!BC41/'Population 2016'!BC$5","v":0},39]
[null,"Male 5-9",{"$f":"'Population 2016'!C42/'Population 2016'!C$5","v":0},{"$f":"'Population 2016'!D42/'Population 2016'!D$5","v":0},{"$f":"'Population 2016'!E42/'Population 2016'!E$5","v":0},{"$f":"'Population 2016'!F42/'Population 2016'!F$5","v":0},{"$f":"'Population 2016'!G42/'Population 2016'!G$5","v":0},{"$f":"'Population 2016'!H42/'Population 2016'!H$5","v":0},{"$f":"'Population 2016'!I42/'Population 2016'!I$5","v":0},{"$f":"'Population 2016'!J42/'Population 2016'!J$5","v":0},{"$f":"'Population 2016'!K42/'Population 2016'!K$5","v":0},{"$f":"'Population 2016'!L42/'Population 2016'!L$5","v":0},{"$f":"'Population 2016'!M42/'Population 2016'!M$5","v":0},{"$f":"'Population 2016'!N42/'Population 2016'!N$5","v":0},{"$f":"'Population 2016'!O42/'Population 2016'!O$5","v":0},{"$f":"'Population 2016'!P42/'Population 2016'!P$5","v":0},{"$f":"'Population 2016'!Q42/'Population 2016'!Q$5","v":0},{"$f":"'Population 2016'!R42/'Population 2016'!R$5","v":0},{"$f":"'Population 2016'!S42/'Population 2016'!S$5","v":0},{"$f":"'Population 2016'!T42/'Population 2016'!T$5","v":0},{"$f":"'Population 2016'!U42/'Population 2016'!U$5","v":0},{"$f":"'Population 2016'!V42/'Population 2016'!V$5","v":0},{"$f":"'Population 2016'!W42/'Population 2016'!W$5","v":0},{"$f":"'Population 2016'!X42/'Population 2016'!X$5","v":0},{"$f":"'Population 2016'!Y42/'Population 2016'!Y$5","v":0},{"$f":"'Population 2016'!Z42/'Population 2016'!Z$5","v":0},{"$f":"'Population 2016'!AA42/'Population 2016'!AA$5","v":0},{"$f":"'Population 2016'!AB42/'Population 2016'!AB$5","v":0},{"$f":"'Population 2016'!AC42/'Population 2016'!AC$5","v":0},{"$f":"'Population 2016'!AD42/'Population 2016'!AD$5","v":0},{"$f":"'Population 2016'!AE42/'Population 2016'!AE$5","v":0},{"$f":"'Population 2016'!AF42/'Population 2016'!AF$5","v":0},{"$f":"'Population 2016'!AG42/'Population 2016'!AG$5","v":0},{"$f":"'Population 2016'!AH42/'Population 2016'!AH$5","v":0},{"$f":"'Population 2016'!AI42/'Population 2016'!AI$5","v":0},{"$f":"'Population 2016'!AJ42/'Population 2016'!AJ$5","v":0},{"$f":"'Population 2016'!AK42/'Population 2016'!AK$5","v":0},{"$f":"'Population 2016'!AL42/'Population 2016'!AL$5","v":0},{"$f":"'Population 2016'!AM42/'Population 2016'!AM$5","v":0},{"$f":"'Population 2016'!AN42/'Population 2016'!AN$5","v":0},{"$f":"'Population 2016'!AO42/'Population 2016'!AO$5","v":0},{"$f":"'Population 2016'!AP42/'Population 2016'!AP$5","v":0},{"$f":"'Population 2016'!AQ42/'Population 2016'!AQ$5","v":0},{"$f":"'Population 2016'!AR42/'Population 2016'!AR$5","v":0},{"$f":"'Population 2016'!AS42/'Population 2016'!AS$5","v":0},{"$f":"'Population 2016'!AT42/'Population 2016'!AT$5","v":0},{"$f":"'Population 2016'!AU42/'Population 2016'!AU$5","v":0},{"$f":"'Population 2016'!AV42/'Population 2016'!AV$5","v":0},{"$f":"'Population 2016'!AW42/'Population 2016'!AW$5","v":0},{"$f":"'Population 2016'!AX42/'Population 2016'!AX$5","v":0},{"$f":"'Population 2016'!AY42/'Population 2016'!AY$5","v":0},{"$f":"'Population 2016'!AZ42/'Population 2016'!AZ$5","v":0},{"$f":"'Population 2016'!BA42/'Population 2016'!BA$5","v":0},{"$f":"'Population 2016'!BB42/'Population 2016'!BB$5","v":0},{"$f":"'Population 2016'!BC42/'Population 2016'!BC$5","v":0},40]
[null,"Male 10-15",{"$f":"'Population 2016'!C43/'Population 2016'!C$5","v":0},{"$f":"'Population 2016'!D43/'Population 2016'!D$5","v":0},{"$f":"'Population 2016'!E43/'Population 2016'!E$5","v":0},{"$f":"'Population 2016'!F43/'Population 2016'!F$5","v":0},{"$f":"'Population 2016'!G43/'Population 2016'!G$5","v":0},{"$f":"'Population 2016'!H43/'Population 2016'!H$5","v":0},{"$f":"'Population 2016'!I43/'Population 2016'!I$5","v":0},{"$f":"'Population 2016'!J43/'Population 2016'!J$5","v":0},{"$f":"'Population 2016'!K43/'Population 2016'!K$5","v":0},{"$f":"'Population 2016'!L43/'Population 2016'!L$5","v":0},{"$f":"'Population 2016'!M43/'Population 2016'!M$5","v":0},{"$f":"'Population 2016'!N43/'Population 2016'!N$5","v":0},{"$f":"'Population 2016'!O43/'Population 2016'!O$5","v":0},{"$f":"'Population 2016'!P43/'Population 2016'!P$5","v":0},{"$f":"'Population 2016'!Q43/'Population 2016'!Q$5","v":0},{"$f":"'Population 2016'!R43/'Population 2016'!R$5","v":0},{"$f":"'Population 2016'!S43/'Population 2016'!S$5","v":0},{"$f":"'Population 2016'!T43/'Population 2016'!T$5","v":0},{"$f":"'Population 2016'!U43/'Population 2016'!U$5","v":0},{"$f":"'Population 2016'!V43/'Population 2016'!V$5","v":0},{"$f":"'Population 2016'!W43/'Population 2016'!W$5","v":0},{"$f":"'Population 2016'!X43/'Population 2016'!X$5","v":0},{"$f":"'Population 2016'!Y43/'Population 2016'!Y$5","v":0},{"$f":"'Population 2016'!Z43/'Population 2016'!Z$5","v":0},{"$f":"'Population 2016'!AA43/'Population 2016'!AA$5","v":0},{"$f":"'Population 2016'!AB43/'Population 2016'!AB$5","v":0},{"$f":"'Population 2016'!AC43/'Population 2016'!AC$5","v":0},{"$f":"'Population 2016'!AD43/'Population 2016'!AD$5","v":0},{"$f":"'Population 2016'!AE43/'Population 2016'!AE$5","v":0},{"$f":"'Population 2016'!AF43/'Population 2016'!AF$5","v":0},{"$f":"'Population 2016'!AG43/'Population 2016'!AG$5","v":0},{"$f":"'Population 2016'!AH43/'Population 2016'!AH$5","v":0},{"$f":"'Population 2016'!AI43/'Population 2016'!AI$5","v":0},{"$f":"'Population 2016'!AJ43/'Population 2016'!AJ$5","v":0},{"$f":"'Population 2016'!AK43/'Population 2016'!AK$5","v":0},{"$f":"'Population 2016'!AL43/'Population 2016'!AL$5","v":0},{"$f":"'Population 2016'!AM43/'Population 2016'!AM$5","v":0},{"$f":"'Population 2016'!AN43/'Population 2016'!AN$5","v":0},{"$f":"'Population 2016'!AO43/'Population 2016'!AO$5","v":0},{"$f":"'Population 2016'!AP43/'Population 2016'!AP$5","v":0},{"$f":"'Population 2016'!AQ43/'Population 2016'!AQ$5","v":0},{"$f":"'Population 2016'!AR43/'Population 2016'!AR$5","v":0},{"$f":"'Population 2016'!AS43/'Population 2016'!AS$5","v":0},{"$f":"'Population 2016'!AT43/'Population 2016'!AT$5","v":0},{"$f":"'Population 2016'!AU43/'Population 2016'!AU$5","v":0},{"$f":"'Population 2016'!AV43/'Population 2016'!AV$5","v":0},{"$f":"'Population 2016'!AW43/'Population 2016'!AW$5","v":0},{"$f":"'Population 2016'!AX43/'Population 2016'!AX$5","v":0},{"$f":"'Population 2016'!AY43/'Population 2016'!AY$5","v":0},{"$f":"'Population 2016'!AZ43/'Population 2016'!AZ$5","v":0},{"$f":"'Population 2016'!BA43/'Population 2016'!BA$5","v":0},{"$f":"'Population 2016'!BB43/'Population 2016'!BB$5","v":0},{"$f":"'Population 2016'!BC43/'Population 2016'!BC$5","v":0},41]
[null,"Male 16-19",{"$f":"'Population 2016'!C44/'Population 2016'!C$5","v":2.360301145395164E-2},{"$f":"'Population 2016'!D44/'Population 2016'!D$5","v":2.6263411676104964E-2},{"$f":"'Population 2016'!E44/'Population 2016'!E$5","v":2.8703491015802624E-2},{"$f":"'Population 2016'!F44/'Population 2016'!F$5","v":2.8452227659026524E-2},{"$f":"'Population 2016'!G44/'Population 2016'!G$5","v":2.8947653331889787E-2},{"$f":"'Population 2016'!H44/'Population 2016'!H$5","v":2.7871717469756464E-2},{"$f":"'Population 2016'!I44/'Population 2016'!I$5","v":2.594003852273679E-2},{"$f":"'Population 2016'!J44/'Population 2016'!J$5","v":3.2425797998059426E-2},{"$f":"'Population 2016'!K44/'Population 2016'!K$5","v":2.9579927231488921E-2},{"$f":"'Population 2016'!L44/'Population 2016'!L$5","v":2.5582577478436293E-2},{"$f":"'Population 2016'!M44/'Population 2016'!M$5","v":2.5582577478436293E-2},{"$f":"'Population 2016'!N44/'Population 2016'!N$5","v":2.8323193030115493E-2},{"$f":"'Population 2016'!O44/'Population 2016'!O$5","v":2.8016365995977847E-2},{"$f":"'Population 2016'!P44/'Population 2016'!P$5","v":2.9561591344528345E-2},{"$f":"'Population 2016'!Q44/'Population 2016'!Q$5","v":2.7132466128482628E-2},{"$f":"'Population 2016'!R44/'Population 2016'!R$5","v":3.2935008250385908E-2},{"$f":"'Population 2016'!S44/'Population 2016'!S$5","v":2.6619191450224282E-2},{"$f":"'Population 2016'!T44/'Population 2016'!T$5","v":2.4504078584291517E-2},{"$f":"'Population 2016'!U44/'Population 2016'!U$5","v":2.4609392289647238E-2},{"$f":"'Population 2016'!V44/'Population 2016'!V$5","v":2.8598468947725938E-2},{"$f":"'Population 2016'!W44/'Population 2016'!W$5","v":2.8265317461873853E-2},{"$f":"'Population 2016'!X44/'Population 2016'!X$5","v":2.8265317461873853E-2},{"$f":"'Population 2016'!Y44/'Population 2016'!Y$5","v":3.0432743517591135E-2},{"$f":"'Population 2016'!Z44/'Population 2016'!Z$5","v":2.6696581188308557E-2},{"$f":"'Population 2016'!AA44/'Population 2016'!AA$5","v":2.8328606251706634E-2},{"$f":"'Population 2016'!AB44/'Population 2016'!AB$5","v":2.6824150742556525E-2},{"$f":"'Population 2016'!AC44/'Population 2016'!AC$5","v":2.7792545214212871E-2},{"$f":"'Population 2016'!AD44/'Population 2016'!AD$5","v":2.8270497599464067E-2},{"$f":"'Population 2016'!AE44/'Population 2016'!AE$5","v":2.8013634636905923E-2},{"$f":"'Population 2016'!AF44/'Population 2016'!AF$5","v":2.7869519974664074E-2},{"$f":"'Population 2016'!AG44/'Population 2016'!AG$5","v":2.8013634636905923E-2},{"$f":"'Population 2016'!AH44/'Population 2016'!AH$5","v":2.9291400016718837E-2},{"$f":"'Population 2016'!AI44/'Population 2016'!AI$5","v":2.6019336774870942E-2},{"$f":"'Population 2016'!AJ44/'Population 2016'!AJ$5","v":2.7340155592114435E-2},{"$f":"'Population 2016'!AK44/'Population 2016'!AK$5","v":2.9707202393673863E-2},{"$f":"'Population 2016'!AL44/'Population 2016'!AL$5","v":2.8777425019066705E-2},{"$f":"'Population 2016'!AM44/'Population 2016'!AM$5","v":3.0428373253746047E-2},{"$f":"'Population 2016'!AN44/'Population 2016'!AN$5","v":2.6944474746372859E-2},{"$f":"'Population 2016'!AO44/'Population 2016'!AO$5","v":2.6944474746372859E-2},{"$f":"'Population 2016'!AP44/'Population 2016'!AP$5","v":2.8232645879238464E-2},{"$f":"'Population 2016'!AQ44/'Population 2016'!AQ$5","v":2.821011673151751E-2},{"$f":"'Population 2016'!AR44/'Population 2016'!AR$5","v":2.7717535020071141E-2},{"$f":"'Population 2016'!AS44/'Population 2016'!AS$5","v":2.594003852273679E-2},{"$f":"'Population 2016'!AT44/'Population 2016'!AT$5","v":2.8945009753782888E-2},{"$f":"'Population 2016'!AU44/'Population 2016'!AU$5","v":2.8945009753782888E-2},{"$f":"'Population 2016'!AV44/'Population 2016'!AV$5","v":2.6639214444092493E-2},{"$f":"'Population 2016'!AW44/'Population 2016'!AW$5","v":2.8094301055586062E-2},{"$f":"'Population 2016'!AX44/'Population 2016'!AX$5","v":3.3965012714517552E-2},{"$f":"'Population 2016'!AY44/'Population 2016'!AY$5","v":2.829778770539457E-2},{"$f":"'Population 2016'!AZ44/'Population 2016'!AZ$5","v":2.8326362961727195E-2},{"$f":"'Population 2016'!BA44/'Population 2016'!BA$5","v":2.7207946447851437E-2},{"$f":"'Population 2016'!BB44/'Population 2016'!BB$5","v":2.92080677792892E-2},{"$f":"'Population 2016'!BC44/'Population 2016'!BC$5","v":2.4609392289647238E-2},42]
[null,"Male 20-24",{"$f":"'Population 2016'!C45/'Population 2016'!C$5","v":5.1392005233755679E-2},{"$f":"'Population 2016'!D45/'Population 2016'!D$5","v":4.2156920278160849E-2},{"$f":"'Population 2016'!E45/'Population 2016'!E$5","v":3.3686638321012194E-2},{"$f":"'Population 2016'!F45/'Population 2016'!F$5","v":3.3963430337368011E-2},{"$f":"'Population 2016'!G45/'Population 2016'!G$5","v":3.999079737995994E-2},{"$f":"'Population 2016'!H45/'Population 2016'!H$5","v":3.5170372195724567E-2},{"$f":"'Population 2016'!I45/'Population 2016'!I$5","v":2.9404991206766602E-2},{"$f":"'Population 2016'!J45/'Population 2016'!J$5","v":4.5561978056608311E-2},{"$f":"'Population 2016'!K45/'Population 2016'!K$5","v":3.758918867835373E-2},{"$f":"'Population 2016'!L45/'Population 2016'!L$5","v":3.1737963242418947E-2},{"$f":"'Population 2016'!M45/'Population 2016'!M$5","v":3.1737963242418947E-2},{"$f":"'Population 2016'!N45/'Population 2016'!N$5","v":5.5055014828686473E-2},{"$f":"'Population 2016'!O45/'Population 2016'!O$5","v":3.6546101187822588E-2},{"$f":"'Population 2016'!P45/'Population 2016'!P$5","v":3.7585934858559676E-2},{"$f":"'Population 2016'!Q45/'Population 2016'!Q$5","v":3.5134722271183652E-2},{"$f":"'Population 2016'!R45/'Population 2016'!R$5","v":3.7459413424176295E-2},{"$f":"'Population 2016'!S45/'Population 2016'!S$5","v":4.1147737483472231E-2},{"$f":"'Population 2016'!T45/'Population 2016'!T$5","v":4.8391599931131721E-2},{"$f":"'Population 2016'!U45/'Population 2016'!U$5","v":2.8769973000486875E-2},{"$f":"'Population 2016'!V45/'Population 2016'!V$5","v":3.5643141175842039E-2},{"$f":"'Population 2016'!W45/'Population 2016'!W$5","v":3.9286438007831138E-2},{"$f":"'Population 2016'!X45/'Population 2016'!X$5","v":3.9286438007831138E-2},{"$f":"'Population 2016'!Y45/'Population 2016'!Y$5","v":4.0396814041112221E-2},{"$f":"'Population 2016'!Z45/'Population 2016'!Z$5","v":5.2463979650898308E-2},{"$f":"'Population 2016'!AA45/'Population 2016'!AA$5","v":4.2618145482497836E-2},{"$f":"'Population 2016'!AB45/'Population 2016'!AB$5","v":4.1470579204323309E-2},{"$f":"'Population 2016'!AC45/'Population 2016'!AC$5","v":4.5513124171271006E-2},{"$f":"'Population 2016'!AD45/'Population 2016'!AD$5","v":3.3990844467602067E-2},{"$f":"'Population 2016'!AE45/'Population 2016'!AE$5","v":3.171490467047916E-2},{"$f":"'Population 2016'!AF45/'Population 2016'!AF$5","v":3.637515269420441E-2},{"$f":"'Population 2016'!AG45/'Population 2016'!AG$5","v":3.171490467047916E-2},{"$f":"'Population 2016'!AH45/'Population 2016'!AH$5","v":3.7418611779348521E-2},{"$f":"'Population 2016'!AI45/'Population 2016'!AI$5","v":4.3459893691486569E-2},{"$f":"'Population 2016'!AJ45/'Population 2016'!AJ$5","v":3.4966399910771551E-2},{"$f":"'Population 2016'!AK45/'Population 2016'!AK$5","v":3.7941742202330812E-2},{"$f":"'Population 2016'!AL45/'Population 2016'!AL$5","v":3.6785441904187581E-2},{"$f":"'Population 2016'!AM45/'Population 2016'!AM$5","v":3.8976279560000146E-2},{"$f":"'Population 2016'!AN45/'Population 2016'!AN$5","v":3.1471582851532669E-2},{"$f":"'Population 2016'!AO45/'Population 2016'!AO$5","v":3.1471582851532669E-2},{"$f":"'Population 2016'!AP45/'Population 2016'!AP$5","v":3.5112470871708698E-2},{"$f":"'Population 2016'!AQ45/'Population 2016'!AQ$5","v":3.7430810544199049E-2},{"$f":"'Population 2016'!AR45/'Population 2016'!AR$5","v":4.0476004297824157E-2},{"$f":"'Population 2016'!AS45/'Population 2016'!AS$5","v":2.9404991206766602E-2},{"$f":"'Population 2016'!AT45/'Population 2016'!AT$5","v":3.7960668529551329E-2},{"$f":"'Population 2016'!AU45/'Population 2016'!AU$5","v":3.7960668529551329E-2},{"$f":"'Population 2016'!AV45/'Population 2016'!AV$5","v":3.1781226903178125E-2},{"$f":"'Population 2016'!AW45/'Population 2016'!AW$5","v":3.5778570992739032E-2},{"$f":"'Population 2016'!AX45/'Population 2016'!AX$5","v":4.9874132665448455E-2},{"$f":"'Population 2016'!AY45/'Population 2016'!AY$5","v":4.069183929500321E-2},{"$f":"'Population 2016'!AZ45/'Population 2016'!AZ$5","v":4.1928654842922151E-2},{"$f":"'Population 2016'!BA45/'Population 2016'!BA$5","v":3.8814510904772184E-2},{"$f":"'Population 2016'!BB45/'Population 2016'!BB$5","v":3.7922153249138606E-2},{"$f":"'Population 2016'!BC45/'Population 2016'!BC$5","v":2.8769973000486875E-2},43]
[null,"Male 25-29",{"$f":"'Population 2016'!C46/'Population 2016'!C$5","v":6.6873495423019319E-2},{"$f":"'Population 2016'!D46/'Population 2016'!D$5","v":4.9277212131881888E-2},{"$f":"'Population 2016'!E46/'Population 2016'!E$5","v":3.3138163970391758E-2},{"$f":"'Population 2016'!F46/'Population 2016'!F$5","v":3.0986350759721865E-2},{"$f":"'Population 2016'!G46/'Population 2016'!G$5","v":3.3643696205272557E-2},{"$f":"'Population 2016'!H46/'Population 2016'!H$5","v":3.2148450292302851E-2},{"$f":"'Population 2016'!I46/'Population 2016'!I$5","v":2.5803952767774894E-2},{"$f":"'Population 2016'!J46/'Population 2016'!J$5","v":3.5825945614224225E-2},{"$f":"'Population 2016'!K46/'Population 2016'!K$5","v":3.1328261588621648E-2},{"$f":"'Population 2016'!L46/'Population 2016'!L$5","v":2.9164614871412007E-2},{"$f":"'Population 2016'!M46/'Population 2016'!M$5","v":2.9164614871412007E-2},{"$f":"'Population 2016'!N46/'Population 2016'!N$5","v":5.6381157521640239E-2},{"$f":"'Population 2016'!O46/'Population 2016'!O$5","v":3.5188872707819417E-2},{"$f":"'Population 2016'!P46/'Population 2016'!P$5","v":3.1815620421503439E-2},{"$f":"'Population 2016'!Q46/'Population 2016'!Q$5","v":2.9976145991233945E-2},{"$f":"'Population 2016'!R46/'Population 2016'!R$5","v":2.9741310480651515E-2},{"$f":"'Population 2016'!S46/'Population 2016'!S$5","v":4.3514142824610615E-2},{"$f":"'Population 2016'!T46/'Population 2016'!T$5","v":6.0383056541788618E-2},{"$f":"'Population 2016'!U46/'Population 2016'!U$5","v":2.7132297614305315E-2},{"$f":"'Population 2016'!V46/'Population 2016'!V$5","v":3.4635669091214384E-2},{"$f":"'Population 2016'!W46/'Population 2016'!W$5","v":3.420730949999673E-2},{"$f":"'Population 2016'!X46/'Population 2016'!X$5","v":3.420730949999673E-2},{"$f":"'Population 2016'!Y46/'Population 2016'!Y$5","v":3.5206117549800478E-2},{"$f":"'Population 2016'!Z46/'Population 2016'!Z$5","v":6.1612557904538089E-2},{"$f":"'Population 2016'!AA46/'Population 2016'!AA$5","v":4.4322286645180536E-2},{"$f":"'Population 2016'!AB46/'Population 2016'!AB$5","v":4.7167436005035666E-2},{"$f":"'Population 2016'!AC46/'Population 2016'!AC$5","v":4.9434137118577803E-2},{"$f":"'Population 2016'!AD46/'Population 2016'!AD$5","v":3.2237894971900702E-2},{"$f":"'Population 2016'!AE46/'Population 2016'!AE$5","v":3.1704637624616269E-2},{"$f":"'Population 2016'!AF46/'Population 2016'!AF$5","v":3.5017870877256482E-2},{"$f":"'Population 2016'!AG46/'Population 2016'!AG$5","v":3.1704637624616269E-2},{"$f":"'Population 2016'!AH46/'Population 2016'!AH$5","v":3.5141134837409327E-2},{"$f":"'Population 2016'!AI46/'Population 2016'!AI$5","v":4.9720010499606268E-2},{"$f":"'Population 2016'!AJ46/'Population 2016'!AJ$5","v":3.4297186515350082E-2},{"$f":"'Population 2016'!AK46/'Population 2016'!AK$5","v":3.6319977873602957E-2},{"$f":"'Population 2016'!AL46/'Population 2016'!AL$5","v":3.1606392224330891E-2},{"$f":"'Population 2016'!AM46/'Population 2016'!AM$5","v":3.6933474832573317E-2},{"$f":"'Population 2016'!AN46/'Population 2016'!AN$5","v":3.2998800043634778E-2},{"$f":"'Population 2016'!AO46/'Population 2016'!AO$5","v":3.2998800043634778E-2},{"$f":"'Population 2016'!AP46/'Population 2016'!AP$5","v":3.2029231330152341E-2},{"$f":"'Population 2016'!AQ46/'Population 2016'!AQ$5","v":3.9177673042143916E-2},{"$f":"'Population 2016'!AR46/'Population 2016'!AR$5","v":4.1469814869642838E-2},{"$f":"'Population 2016'!AS46/'Population 2016'!AS$5","v":2.5803952767774894E-2},{"$f":"'Population 2016'!AT46/'Population 2016'!AT$5","v":3.727526756998998E-2},{"$f":"'Population 2016'!AU46/'Population 2016'!AU$5","v":3.727526756998998E-2},{"$f":"'Population 2016'!AV46/'Population 2016'!AV$5","v":2.9553373455812479E-2},{"$f":"'Population 2016'!AW46/'Population 2016'!AW$5","v":3.3254011837207886E-2},{"$f":"'Population 2016'!AX46/'Population 2016'!AX$5","v":3.8258558339829024E-2},{"$f":"'Population 2016'!AY46/'Population 2016'!AY$5","v":3.7529451363177382E-2},{"$f":"'Population 2016'!AZ46/'Population 2016'!AZ$5","v":4.0453083742255411E-2},{"$f":"'Population 2016'!BA46/'Population 2016'!BA$5","v":3.870654286331246E-2},{"$f":"'Population 2016'!BB46/'Population 2016'!BB$5","v":3.7314514959640388E-2},{"$f":"'Population 2016'!BC46/'Population 2016'!BC$5","v":2.7132297614305315E-2},44]
[null,"Male 30-34",{"$f":"'Population 2016'!C47/'Population 2016'!C$5","v":5.383510602955232E-2},{"$f":"'Population 2016'!D47/'Population 2016'!D$5","v":4.4492043465078297E-2},{"$f":"'Population 2016'!E47/'Population 2016'!E$5","v":3.592272605815703E-2},{"$f":"'Population 2016'!F47/'Population 2016'!F$5","v":3.1913468967293329E-2},{"$f":"'Population 2016'!G47/'Population 2016'!G$5","v":2.6971796676230175E-2},{"$f":"'Population 2016'!H47/'Population 2016'!H$5","v":2.9496162613119423E-2},{"$f":"'Population 2016'!I47/'Population 2016'!I$5","v":2.5521313122854033E-2},{"$f":"'Population 2016'!J47/'Population 2016'!J$5","v":3.056815637361817E-2},{"$f":"'Population 2016'!K47/'Population 2016'!K$5","v":3.2580447006568064E-2},{"$f":"'Population 2016'!L47/'Population 2016'!L$5","v":2.7949422585103172E-2},{"$f":"'Population 2016'!M47/'Population 2016'!M$5","v":2.7949422585103172E-2},{"$f":"'Population 2016'!N47/'Population 2016'!N$5","v":4.2396380032309659E-2},{"$f":"'Population 2016'!O47/'Population 2016'!O$5","v":3.3266957925917121E-2},{"$f":"'Population 2016'!P47/'Population 2016'!P$5","v":2.7386453285247379E-2},{"$f":"'Population 2016'!Q47/'Population 2016'!Q$5","v":2.9729380383309245E-2},{"$f":"'Population 2016'!R47/'Population 2016'!R$5","v":2.5176984084739448E-2},{"$f":"'Population 2016'!S47/'Population 2016'!S$5","v":4.0374529322772038E-2},{"$f":"'Population 2016'!T47/'Population 2016'!T$5","v":5.2230541220922931E-2},{"$f":"'Population 2016'!U47/'Population 2016'!U$5","v":2.7353605098924445E-2},{"$f":"'Population 2016'!V47/'Population 2016'!V$5","v":3.5543920440234772E-2},{"$f":"'Population 2016'!W47/'Population 2016'!W$5","v":3.332810385739219E-2},{"$f":"'Population 2016'!X47/'Population 2016'!X$5","v":3.332810385739219E-2},{"$f":"'Population 2016'!Y47/'Population 2016'!Y$5","v":3.3159250250393478E-2},{"$f":"'Population 2016'!Z47/'Population 2016'!Z$5","v":5.4016489121786818E-2},{"$f":"'Population 2016'!AA47/'Population 2016'!AA$5","v":4.1035586320895427E-2},{"$f":"'Population 2016'!AB47/'Population 2016'!AB$5","v":4.3007891262294914E-2},{"$f":"'Population 2016'!AC47/'Population 2016'!AC$5","v":4.4010293305421153E-2},{"$f":"'Population 2016'!AD47/'Population 2016'!AD$5","v":3.1474933938739812E-2},{"$f":"'Population 2016'!AE47/'Population 2016'!AE$5","v":3.3183092228872987E-2},{"$f":"'Population 2016'!AF47/'Population 2016'!AF$5","v":3.358518451492256E-2},{"$f":"'Population 2016'!AG47/'Population 2016'!AG$5","v":3.3183092228872987E-2},{"$f":"'Population 2016'!AH47/'Population 2016'!AH$5","v":3.5692856413066701E-2},{"$f":"'Population 2016'!AI47/'Population 2016'!AI$5","v":4.5261779245778282E-2},{"$f":"'Population 2016'!AJ47/'Population 2016'!AJ$5","v":3.510581936815102E-2},{"$f":"'Population 2016'!AK47/'Population 2016'!AK$5","v":3.5377091635970484E-2},{"$f":"'Population 2016'!AL47/'Population 2016'!AL$5","v":2.8591192068249942E-2},{"$f":"'Population 2016'!AM47/'Population 2016'!AM$5","v":3.7512993904183764E-2},{"$f":"'Population 2016'!AN47/'Population 2016'!AN$5","v":2.9453474419112034E-2},{"$f":"'Population 2016'!AO47/'Population 2016'!AO$5","v":2.9453474419112034E-2},{"$f":"'Population 2016'!AP47/'Population 2016'!AP$5","v":3.3178510850783889E-2},{"$f":"'Population 2016'!AQ47/'Population 2016'!AQ$5","v":3.7115690250452131E-2},{"$f":"'Population 2016'!AR47/'Population 2016'!AR$5","v":3.8385682711772881E-2},{"$f":"'Population 2016'!AS47/'Population 2016'!AS$5","v":2.5521313122854033E-2},{"$f":"'Population 2016'!AT47/'Population 2016'!AT$5","v":3.4533663731744609E-2},{"$f":"'Population 2016'!AU47/'Population 2016'!AU$5","v":3.4533663731744609E-2},{"$f":"'Population 2016'!AV47/'Population 2016'!AV$5","v":2.6554746066941189E-2},{"$f":"'Population 2016'!AW47/'Population 2016'!AW$5","v":3.3776465922264937E-2},{"$f":"'Population 2016'!AX47/'Population 2016'!AX$5","v":2.9479790945218957E-2},{"$f":"'Population 2016'!AY47/'Population 2016'!AY$5","v":3.4815336128025461E-2},{"$f":"'Population 2016'!AZ47/'Population 2016'!AZ$5","v":3.6124166575582033E-2},{"$f":"'Population 2016'!BA47/'Population 2016'!BA$5","v":3.6169293889008851E-2},{"$f":"'Population 2016'!BB47/'Population 2016'!BB$5","v":3.8736940955511209E-2},{"$f":"'Population 2016'!BC47/'Population 2016'!BC$5","v":2.7353605098924445E-2},45]
[null,"Male 35-39",{"$f":"'Population 2016'!C48/'Population 2016'!C$5","v":4.3536260624677366E-2},{"$f":"'Population 2016'!D48/'Population 2016'!D$5","v":4.1254658020597988E-2},{"$f":"'Population 2016'!E48/'Population 2016'!E$5","v":3.9162006197291384E-2},{"$f":"'Population 2016'!F48/'Population 2016'!F$5","v":3.0800927118207571E-2},{"$f":"'Population 2016'!G48/'Population 2016'!G$5","v":2.8568721918475613E-2},{"$f":"'Population 2016'!H48/'Population 2016'!H$5","v":2.9376193610515768E-2},{"$f":"'Population 2016'!I48/'Population 2016'!I$5","v":2.7290427937358679E-2},{"$f":"'Population 2016'!J48/'Population 2016'!J$5","v":3.1239892853884874E-2},{"$f":"'Population 2016'!K48/'Population 2016'!K$5","v":3.3856258564475737E-2},{"$f":"'Population 2016'!L48/'Population 2016'!L$5","v":2.5828792908995601E-2},{"$f":"'Population 2016'!M48/'Population 2016'!M$5","v":2.5828792908995601E-2},{"$f":"'Population 2016'!N48/'Population 2016'!N$5","v":3.2213211596113199E-2},{"$f":"'Population 2016'!O48/'Population 2016'!O$5","v":3.2157398876571465E-2},{"$f":"'Population 2016'!P48/'Population 2016'!P$5","v":2.8919193057590442E-2},{"$f":"'Population 2016'!Q48/'Population 2016'!Q$5","v":3.1879766395224496E-2},{"$f":"'Population 2016'!R48/'Population 2016'!R$5","v":3.1883749401181667E-2},{"$f":"'Population 2016'!S48/'Population 2016'!S$5","v":3.7737148062301509E-2},{"$f":"'Population 2016'!T48/'Population 2016'!T$5","v":4.4031493278362796E-2},{"$f":"'Population 2016'!U48/'Population 2016'!U$5","v":3.0407648386668436E-2},{"$f":"'Population 2016'!V48/'Population 2016'!V$5","v":3.8116027201746283E-2},{"$f":"'Population 2016'!W48/'Population 2016'!W$5","v":3.3599382921838943E-2},{"$f":"'Population 2016'!X48/'Population 2016'!X$5","v":3.3599382921838943E-2},{"$f":"'Population 2016'!Y48/'Population 2016'!Y$5","v":3.4820591087582071E-2},{"$f":"'Population 2016'!Z48/'Population 2016'!Z$5","v":4.2939856712280504E-2},{"$f":"'Population 2016'!AA48/'Population 2016'!AA$5","v":3.7348927719832552E-2},{"$f":"'Population 2016'!AB48/'Population 2016'!AB$5","v":3.9947596286705626E-2},{"$f":"'Population 2016'!AC48/'Population 2016'!AC$5","v":3.7750739003891018E-2},{"$f":"'Population 2016'!AD48/'Population 2016'!AD$5","v":3.1977371692284789E-2},{"$f":"'Population 2016'!AE48/'Population 2016'!AE$5","v":3.3270362118707583E-2},{"$f":"'Population 2016'!AF48/'Population 2016'!AF$5","v":3.0312627245170341E-2},{"$f":"'Population 2016'!AG48/'Population 2016'!AG$5","v":3.3270362118707583E-2},{"$f":"'Population 2016'!AH48/'Population 2016'!AH$5","v":3.6627253559718749E-2},{"$f":"'Population 2016'!AI48/'Population 2016'!AI$5","v":4.0832257852830518E-2},{"$f":"'Population 2016'!AJ48/'Population 2016'!AJ$5","v":3.644424615899395E-2},{"$f":"'Population 2016'!AK48/'Population 2016'!AK$5","v":3.322731101416844E-2},{"$f":"'Population 2016'!AL48/'Population 2016'!AL$5","v":2.7997020272786933E-2},{"$f":"'Population 2016'!AM48/'Population 2016'!AM$5","v":3.7596299770727766E-2},{"$f":"'Population 2016'!AN48/'Population 2016'!AN$5","v":2.9235300534526016E-2},{"$f":"'Population 2016'!AO48/'Population 2016'!AO$5","v":2.9235300534526016E-2},{"$f":"'Population 2016'!AP48/'Population 2016'!AP$5","v":3.3170584785124357E-2},{"$f":"'Population 2016'!AQ48/'Population 2016'!AQ$5","v":3.3854880254288379E-2},{"$f":"'Population 2016'!AR48/'Population 2016'!AR$5","v":3.5926887087212728E-2},{"$f":"'Population 2016'!AS48/'Population 2016'!AS$5","v":2.7290427937358679E-2},{"$f":"'Population 2016'!AT48/'Population 2016'!AT$5","v":3.7538883323667421E-2},{"$f":"'Population 2016'!AU48/'Population 2016'!AU$5","v":3.7538883323667421E-2},{"$f":"'Population 2016'!AV48/'Population 2016'!AV$5","v":2.8054059761376836E-2},{"$f":"'Population 2016'!AW48/'Population 2016'!AW$5","v":3.5606961986698396E-2},{"$f":"'Population 2016'!AX48/'Population 2016'!AX$5","v":2.9824808004395773E-2},{"$f":"'Population 2016'!AY48/'Population 2016'!AY$5","v":3.2837122487071997E-2},{"$f":"'Population 2016'!AZ48/'Population 2016'!AZ$5","v":3.216629945176637E-2},{"$f":"'Population 2016'!BA48/'Population 2016'!BA$5","v":3.2430900453465777E-2},{"$f":"'Population 2016'!BB48/'Population 2016'!BB$5","v":3.8771465858323612E-2},{"$f":"'Population 2016'!BC48/'Population 2016'!BC$5","v":3.0407648386668436E-2},46]
[null,"Male 40-44",{"$f":"'Population 2016'!C49/'Population 2016'!C$5","v":3.7351842292221431E-2},{"$f":"'Population 2016'!D49/'Population 2016'!D$5","v":4.0176344590827737E-2},{"$f":"'Population 2016'!E49/'Population 2016'!E$5","v":4.2766935903506019E-2},{"$f":"'Population 2016'!F49/'Population 2016'!F$5","v":3.4911151171774402E-2},{"$f":"'Population 2016'!G49/'Population 2016'!G$5","v":3.3007632761327343E-2},{"$f":"'Population 2016'!H49/'Population 2016'!H$5","v":3.3909076465648336E-2},{"$f":"'Population 2016'!I49/'Population 2016'!I$5","v":3.4262205845406582E-2},{"$f":"'Population 2016'!J49/'Population 2016'!J$5","v":3.5461051723708982E-2},{"$f":"'Population 2016'!K49/'Population 2016'!K$5","v":3.81089637575013E-2},{"$f":"'Population 2016'!L49/'Population 2016'!L$5","v":3.0927835051546393E-2},{"$f":"'Population 2016'!M49/'Population 2016'!M$5","v":3.0927835051546393E-2},{"$f":"'Population 2016'!N49/'Population 2016'!N$5","v":2.9617186809300682E-2},{"$f":"'Population 2016'!O49/'Population 2016'!O$5","v":3.6793770618480104E-2},{"$f":"'Population 2016'!P49/'Population 2016'!P$5","v":3.4497915023103801E-2},{"$f":"'Population 2016'!Q49/'Population 2016'!Q$5","v":3.9741013619111407E-2},{"$f":"'Population 2016'!R49/'Population 2016'!R$5","v":3.8005003459839252E-2},{"$f":"'Population 2016'!S49/'Population 2016'!S$5","v":3.8435330316997696E-2},{"$f":"'Population 2016'!T49/'Population 2016'!T$5","v":3.9008296766448118E-2},{"$f":"'Population 2016'!U49/'Population 2016'!U$5","v":3.6117381489841983E-2},{"$f":"'Population 2016'!V49/'Population 2016'!V$5","v":4.1199502369849109E-2},{"$f":"'Population 2016'!W49/'Population 2016'!W$5","v":3.6573647363363597E-2},{"$f":"'Population 2016'!X49/'Population 2016'!X$5","v":3.6573647363363597E-2},{"$f":"'Population 2016'!Y49/'Population 2016'!Y$5","v":3.8449309231967696E-2},{"$f":"'Population 2016'!Z49/'Population 2016'!Z$5","v":3.6232318910997846E-2},{"$f":"'Population 2016'!AA49/'Population 2016'!AA$5","v":3.6737031419313733E-2},{"$f":"'Population 2016'!AB49/'Population 2016'!AB$5","v":3.9734706201447242E-2},{"$f":"'Population 2016'!AC49/'Population 2016'!AC$5","v":3.5389443156172366E-2},{"$f":"'Population 2016'!AD49/'Population 2016'!AD$5","v":3.4065279690349476E-2},{"$f":"'Population 2016'!AE49/'Population 2016'!AE$5","v":3.4466472961734718E-2},{"$f":"'Population 2016'!AF49/'Population 2016'!AF$5","v":3.1941365425507851E-2},{"$f":"'Population 2016'!AG49/'Population 2016'!AG$5","v":3.4466472961734718E-2},{"$f":"'Population 2016'!AH49/'Population 2016'!AH$5","v":3.9157370684450556E-2},{"$f":"'Population 2016'!AI49/'Population 2016'!AI$5","v":3.9759055910403358E-2},{"$f":"'Population 2016'!AJ49/'Population 2016'!AJ$5","v":3.7880266570002506E-2},{"$f":"'Population 2016'!AK49/'Population 2016'!AK$5","v":3.7464013175263697E-2},{"$f":"'Population 2016'!AL49/'Population 2016'!AL$5","v":3.2812472286763268E-2},{"$f":"'Population 2016'!AM49/'Population 2016'!AM$5","v":3.9921620045564689E-2},{"$f":"'Population 2016'!AN49/'Population 2016'!AN$5","v":3.3926039053125343E-2},{"$f":"'Population 2016'!AO49/'Population 2016'!AO$5","v":3.3926039053125343E-2},{"$f":"'Population 2016'!AP49/'Population 2016'!AP$5","v":3.3186436916443414E-2},{"$f":"'Population 2016'!AQ49/'Population 2016'!AQ$5","v":3.4457719077108567E-2},{"$f":"'Population 2016'!AR49/'Population 2016'!AR$5","v":3.6742475633150452E-2},{"$f":"'Population 2016'!AS49/'Population 2016'!AS$5","v":3.4262205845406582E-2},{"$f":"'Population 2016'!AT49/'Population 2016'!AT$5","v":4.2178520588390361E-2},{"$f":"'Population 2016'!AU49/'Population 2016'!AU$5","v":4.2178520588390361E-2},{"$f":"'Population 2016'!AV49/'Population 2016'!AV$5","v":3.2140217506071163E-2},{"$f":"'Population 2016'!AW49/'Population 2016'!AW$5","v":3.8352706083348585E-2},{"$f":"'Population 2016'!AX49/'Population 2016'!AX$5","v":3.402890476251326E-2},{"$f":"'Population 2016'!AY49/'Population 2016'!AY$5","v":3.4348704140020198E-2},{"$f":"'Population 2016'!AZ49/'Population 2016'!AZ$5","v":3.2390655291633826E-2},{"$f":"'Population 2016'!BA49/'Population 2016'!BA$5","v":3.2849276614122222E-2},{"$f":"'Population 2016'!BB49/'Population 2016'!BB$5","v":4.2928264156936395E-2},{"$f":"'Population 2016'!BC49/'Population 2016'!BC$5","v":3.6117381489841983E-2},47]
[null,"Male 45-49",{"$f":"'Population 2016'!C50/'Population 2016'!C$5","v":3.721384287488564E-2},{"$f":"'Population 2016'!D50/'Population 2016'!D$5","v":4.2125133260956737E-2},{"$f":"'Population 2016'!E50/'Population 2016'!E$5","v":4.6629695432661884E-2},{"$f":"'Population 2016'!F50/'Population 2016'!F$5","v":4.1390677311357198E-2},{"$f":"'Population 2016'!G50/'Population 2016'!G$5","v":4.0721593677258701E-2},{"$f":"'Population 2016'!H50/'Population 2016'!H$5","v":4.1716788851313011E-2},{"$f":"'Population 2016'!I50/'Population 2016'!I$5","v":4.4290679172598608E-2},{"$f":"'Population 2016'!J50/'Population 2016'!J$5","v":4.4259970310906178E-2},{"$f":"'Population 2016'!K50/'Population 2016'!K$5","v":4.857534376033644E-2},{"$f":"'Population 2016'!L50/'Population 2016'!L$5","v":4.0196654647117691E-2},{"$f":"'Population 2016'!M50/'Population 2016'!M$5","v":4.0196654647117691E-2},{"$f":"'Population 2016'!N50/'Population 2016'!N$5","v":3.6280049187838066E-2},{"$f":"'Population 2016'!O50/'Population 2016'!O$5","v":4.424366709265809E-2},{"$f":"'Population 2016'!P50/'Population 2016'!P$5","v":4.1744618505578722E-2},{"$f":"'Population 2016'!Q50/'Population 2016'!Q$5","v":4.3959530440300348E-2},{"$f":"'Population 2016'!R50/'Population 2016'!R$5","v":4.2689093522116354E-2},{"$f":"'Population 2016'!S50/'Population 2016'!S$5","v":4.219015624806919E-2},{"$f":"'Population 2016'!T50/'Population 2016'!T$5","v":3.7931066574221857E-2},{"$f":"'Population 2016'!U50/'Population 2016'!U$5","v":4.7005709733103175E-2},{"$f":"'Population 2016'!V50/'Population 2016'!V$5","v":4.7923615298310955E-2},{"$f":"'Population 2016'!W50/'Population 2016'!W$5","v":4.3823008386772042E-2},{"$f":"'Population 2016'!X50/'Population 2016'!X$5","v":4.3823008386772042E-2},{"$f":"'Population 2016'!Y50/'Population 2016'!Y$5","v":4.6167787475556825E-2},{"$f":"'Population 2016'!Z50/'Population 2016'!Z$5","v":3.8615285442997541E-2},{"$f":"'Population 2016'!AA50/'Population 2016'!AA$5","v":4.2248084419100468E-2},{"$f":"'Population 2016'!AB50/'Population 2016'!AB$5","v":4.2803189257238777E-2},{"$f":"'Population 2016'!AC50/'Population 2016'!AC$5","v":4.0271316306076894E-2},{"$f":"'Population 2016'!AD50/'Population 2016'!AD$5","v":4.1657672410584691E-2},{"$f":"'Population 2016'!AE50/'Population 2016'!AE$5","v":4.2012751670961711E-2},{"$f":"'Population 2016'!AF50/'Population 2016'!AF$5","v":4.0627969053974575E-2},{"$f":"'Population 2016'!AG50/'Population 2016'!AG$5","v":4.2012751670961711E-2},{"$f":"'Population 2016'!AH50/'Population 2016'!AH$5","v":4.579846372477081E-2},{"$f":"'Population 2016'!AI50/'Population 2016'!AI$5","v":4.1232828768921162E-2},{"$f":"'Population 2016'!AJ50/'Population 2016'!AJ$5","v":4.3610406268298804E-2},{"$f":"'Population 2016'!AK50/'Population 2016'!AK$5","v":4.6289428359503663E-2},{"$f":"'Population 2016'!AL50/'Population 2016'!AL$5","v":4.1192955073517674E-2},{"$f":"'Population 2016'!AM50/'Population 2016'!AM$5","v":4.5963106367103601E-2},{"$f":"'Population 2016'!AN50/'Population 2016'!AN$5","v":4.336205956147049E-2},{"$f":"'Population 2016'!AO50/'Population 2016'!AO$5","v":4.336205956147049E-2},{"$f":"'Population 2016'!AP50/'Population 2016'!AP$5","v":4.1088724378992754E-2},{"$f":"'Population 2016'!AQ50/'Population 2016'!AQ$5","v":4.3239984655011783E-2},{"$f":"'Population 2016'!AR50/'Population 2016'!AR$5","v":4.219896573302831E-2},{"$f":"'Population 2016'!AS50/'Population 2016'!AS$5","v":4.4290679172598608E-2},{"$f":"'Population 2016'!AT50/'Population 2016'!AT$5","v":4.2916644698687195E-2},{"$f":"'Population 2016'!AU50/'Population 2016'!AU$5","v":4.2916644698687195E-2},{"$f":"'Population 2016'!AV50/'Population 2016'!AV$5","v":3.9647344525393306E-2},{"$f":"'Population 2016'!AW50/'Population 2016'!AW$5","v":4.562511440600403E-2},{"$f":"'Population 2016'!AX50/'Population 2016'!AX$5","v":4.1925961894782572E-2},{"$f":"'Population 2016'!AY50/'Population 2016'!AY$5","v":4.1498118172638536E-2},{"$f":"'Population 2016'!AZ50/'Population 2016'!AZ$5","v":3.9452111533615983E-2},{"$f":"'Population 2016'!BA50/'Population 2016'!BA$5","v":4.143273591017059E-2},{"$f":"'Population 2016'!BB50/'Population 2016'!BB$5","v":4.8252004170608258E-2},{"$f":"'Population 2016'!BC50/'Population 2016'!BC$5","v":4.7005709733103175E-2},48]
[null,"Male 50-54",{"$f":"'Population 2016'!C51/'Population 2016'!C$5","v":3.7229176143478503E-2},{"$f":"'Population 2016'!D51/'Population 2016'!D$5","v":4.2570151501814306E-2},{"$f":"'Population 2016'!E51/'Population 2016'!E$5","v":4.7468814310961518E-2},{"$f":"'Population 2016'!F51/'Population 2016'!F$5","v":4.7077002317795519E-2},{"$f":"'Population 2016'!G51/'Population 2016'!G$5","v":4.5431169815406271E-2},{"$f":"'Population 2016'!H51/'Population 2016'!H$5","v":4.509861776254568E-2},{"$f":"'Population 2016'!I51/'Population 2016'!I$5","v":4.8750104681349972E-2},{"$f":"'Population 2016'!J51/'Population 2016'!J$5","v":4.5537098927709546E-2},{"$f":"'Population 2016'!K51/'Population 2016'!K$5","v":4.7748428861692574E-2},{"$f":"'Population 2016'!L51/'Population 2016'!L$5","v":4.6733277206805077E-2},{"$f":"'Population 2016'!M51/'Population 2016'!M$5","v":4.6733277206805077E-2},{"$f":"'Population 2016'!N51/'Population 2016'!N$5","v":3.7718713078981843E-2},{"$f":"'Population 2016'!O51/'Population 2016'!O$5","v":4.6413251305217902E-2},{"$f":"'Population 2016'!P51/'Population 2016'!P$5","v":4.6883804801081931E-2},{"$f":"'Population 2016'!Q51/'Population 2016'!Q$5","v":4.806053982914419E-2},{"$f":"'Population 2016'!R51/'Population 2016'!R$5","v":4.6215468142864743E-2},{"$f":"'Population 2016'!S51/'Population 2016'!S$5","v":4.2654434207576378E-2},{"$f":"'Population 2016'!T51/'Population 2016'!T$5","v":3.7637911057546894E-2},{"$f":"'Population 2016'!U51/'Population 2016'!U$5","v":4.5810649316159871E-2},{"$f":"'Population 2016'!V51/'Population 2016'!V$5","v":4.7213805420505107E-2},{"$f":"'Population 2016'!W51/'Population 2016'!W$5","v":4.3558266167251718E-2},{"$f":"'Population 2016'!X51/'Population 2016'!X$5","v":4.3558266167251718E-2},{"$f":"'Population 2016'!Y51/'Population 2016'!Y$5","v":4.6410231951797269E-2},{"$f":"'Population 2016'!Z51/'Population 2016'!Z$5","v":3.8669487768664475E-2},{"$f":"'Population 2016'!AA51/'Population 2016'!AA$5","v":4.3929636576117974E-2},{"$f":"'Population 2016'!AB51/'Population 2016'!AB$5","v":4.3042690603154458E-2},{"$f":"'Population 2016'!AC51/'Population 2016'!AC$5","v":4.2603651889346963E-2},{"$f":"'Population 2016'!AD51/'Population 2016'!AD$5","v":4.6194499237038965E-2},{"$f":"'Population 2016'!AE51/'Population 2016'!AE$5","v":4.6484050144251991E-2},{"$f":"'Population 2016'!AF51/'Population 2016'!AF$5","v":4.9103439955360512E-2},{"$f":"'Population 2016'!AG51/'Population 2016'!AG$5","v":4.6484050144251991E-2},{"$f":"'Population 2016'!AH51/'Population 2016'!AH$5","v":4.6311174683967567E-2},{"$f":"'Population 2016'!AI51/'Population 2016'!AI$5","v":4.1480280426983991E-2},{"$f":"'Population 2016'!AJ51/'Population 2016'!AJ$5","v":4.4419039121099742E-2},{"$f":"'Population 2016'!AK51/'Population 2016'!AK$5","v":4.5472260286888853E-2},{"$f":"'Population 2016'!AL51/'Population 2016'!AL$5","v":4.4953087032865685E-2},{"$f":"'Population 2016'!AM51/'Population 2016'!AM$5","v":4.6571601392294569E-2},{"$f":"'Population 2016'!AN51/'Population 2016'!AN$5","v":4.9525471801025414E-2},{"$f":"'Population 2016'!AO51/'Population 2016'!AO$5","v":4.9525471801025414E-2},{"$f":"'Population 2016'!AP51/'Population 2016'!AP$5","v":4.7080830017595866E-2},{"$f":"'Population 2016'!AQ51/'Population 2016'!AQ$5","v":4.6678906121554231E-2},{"$f":"'Population 2016'!AR51/'Population 2016'!AR$5","v":4.3982745434564333E-2},{"$f":"'Population 2016'!AS51/'Population 2016'!AS$5","v":4.8750104681349972E-2},{"$f":"'Population 2016'!AT51/'Population 2016'!AT$5","v":4.8927083882532821E-2},{"$f":"'Population 2016'!AU51/'Population 2016'!AU$5","v":4.8927083882532821E-2},{"$f":"'Population 2016'!AV51/'Population 2016'!AV$5","v":4.3870763382958505E-2},{"$f":"'Population 2016'!AW51/'Population 2016'!AW$5","v":4.6036976020501559E-2},{"$f":"'Population 2016'!AX51/'Population 2016'!AX$5","v":4.4341081309020279E-2},{"$f":"'Population 2016'!AY51/'Population 2016'!AY$5","v":4.3649215140295586E-2},{"$f":"'Population 2016'!AZ51/'Population 2016'!AZ$5","v":4.3729254275704565E-2},{"$f":"'Population 2016'!BA51/'Population 2016'!BA$5","v":4.7397970200820559E-2},{"$f":"'Population 2016'!BB51/'Population 2016'!BB$5","v":4.7561506114360289E-2},{"$f":"'Population 2016'!BC51/'Population 2016'!BC$5","v":4.5810649316159871E-2},49]
[null,"Male 55-59",{"$f":"'Population 2016'!C52/'Population 2016'!C$5","v":3.4740075541903268E-2},{"$f":"'Population 2016'!D52/'Population 2016'!D$5","v":3.8965992781901937E-2},{"$f":"'Population 2016'!E52/'Population 2016'!E$5","v":4.2841940942907102E-2},{"$f":"'Population 2016'!F52/'Population 2016'!F$5","v":4.153489569920165E-2},{"$f":"'Population 2016'!G52/'Population 2016'!G$5","v":4.3928977426514373E-2},{"$f":"'Population 2016'!H52/'Population 2016'!H$5","v":4.271220733237574E-2},{"$f":"'Population 2016'!I52/'Population 2016'!I$5","v":4.544217402227619E-2},{"$f":"'Population 2016'!J52/'Population 2016'!J$5","v":4.1166665284492837E-2},{"$f":"'Population 2016'!K52/'Population 2016'!K$5","v":4.3188583849170722E-2},{"$f":"'Population 2016'!L52/'Population 2016'!L$5","v":4.4096389369847347E-2},{"$f":"'Population 2016'!M52/'Population 2016'!M$5","v":4.4096389369847347E-2},{"$f":"'Population 2016'!N52/'Population 2016'!N$5","v":3.722844214401106E-2},{"$f":"'Population 2016'!O52/'Population 2016'!O$5","v":4.2430726860245092E-2},{"$f":"'Population 2016'!P52/'Population 2016'!P$5","v":4.3683083511777299E-2},{"$f":"'Population 2016'!Q52/'Population 2016'!Q$5","v":4.3994782670003875E-2},{"$f":"'Population 2016'!R52/'Population 2016'!R$5","v":4.3021770373130354E-2},{"$f":"'Population 2016'!S52/'Population 2016'!S$5","v":3.889607764563411E-2},{"$f":"'Population 2016'!T52/'Population 2016'!T$5","v":3.3214985365490474E-2},{"$f":"'Population 2016'!U52/'Population 2016'!U$5","v":4.5058203868454834E-2},{"$f":"'Population 2016'!V52/'Population 2016'!V$5","v":4.1375046748231198E-2},{"$f":"'Population 2016'!W52/'Population 2016'!W$5","v":4.1767170657410493E-2},{"$f":"'Population 2016'!X52/'Population 2016'!X$5","v":4.1767170657410493E-2},{"$f":"'Population 2016'!Y52/'Population 2016'!Y$5","v":4.1275178455032514E-2},{"$f":"'Population 2016'!Z52/'Population 2016'!Z$5","v":3.4031317329451416E-2},{"$f":"'Population 2016'!AA52/'Population 2016'!AA$5","v":3.9682903511062302E-2},{"$f":"'Population 2016'!AB52/'Population 2016'!AB$5","v":3.9296643910627108E-2},{"$f":"'Population 2016'!AC52/'Population 2016'!AC$5","v":3.848819145217109E-2},{"$f":"'Population 2016'!AD52/'Population 2016'!AD$5","v":4.4519706725222374E-2},{"$f":"'Population 2016'!AE52/'Population 2016'!AE$5","v":4.4743785870491486E-2},{"$f":"'Population 2016'!AF52/'Population 2016'!AF$5","v":4.4714895413895547E-2},{"$f":"'Population 2016'!AG52/'Population 2016'!AG$5","v":4.4743785870491486E-2},{"$f":"'Population 2016'!AH52/'Population 2016'!AH$5","v":4.1828669087801751E-2},{"$f":"'Population 2016'!AI52/'Population 2016'!AI$5","v":3.6840220054247967E-2},{"$f":"'Population 2016'!AJ52/'Population 2016'!AJ$5","v":4.101720436104063E-2},{"$f":"'Population 2016'!AK52/'Population 2016'!AK$5","v":4.0996693612260035E-2},{"$f":"'Population 2016'!AL52/'Population 2016'!AL$5","v":4.2478849257728671E-2},{"$f":"'Population 2016'!AM52/'Population 2016'!AM$5","v":4.0215001575567476E-2},{"$f":"'Population 2016'!AN52/'Population 2016'!AN$5","v":4.7780080724337294E-2},{"$f":"'Population 2016'!AO52/'Population 2016'!AO$5","v":4.7780080724337294E-2},{"$f":"'Population 2016'!AP52/'Population 2016'!AP$5","v":4.191303520758366E-2},{"$f":"'Population 2016'!AQ52/'Population 2016'!AQ$5","v":4.3500301419411413E-2},{"$f":"'Population 2016'!AR52/'Population 2016'!AR$5","v":4.0264142864558164E-2},{"$f":"'Population 2016'!AS52/'Population 2016'!AS$5","v":4.544217402227619E-2},{"$f":"'Population 2016'!AT52/'Population 2016'!AT$5","v":4.3549322507513047E-2},{"$f":"'Population 2016'!AU52/'Population 2016'!AU$5","v":4.3549322507513047E-2},{"$f":"'Population 2016'!AV52/'Population 2016'!AV$5","v":4.3290043290043288E-2},{"$f":"'Population 2016'!AW52/'Population 2016'!AW$5","v":4.3527670998840688E-2},{"$f":"'Population 2016'!AX52/'Population 2016'!AX$5","v":4.0073092502907089E-2},{"$f":"'Population 2016'!AY52/'Population 2016'!AY$5","v":4.0896851381536675E-2},{"$f":"'Population 2016'!AZ52/'Population 2016'!AZ$5","v":4.0130931767061111E-2},{"$f":"'Population 2016'!BA52/'Population 2016'!BA$5","v":4.3295184625350897E-2},{"$f":"'Population 2016'!BB52/'Population 2016'!BB$5","v":4.1326308666441103E-2},{"$f":"'Population 2016'!BC52/'Population 2016'!BC$5","v":4.5058203868454834E-2},50]
[null,"Male 60-64",{"$f":"'Population 2016'!C53/'Population 2016'!C$5","v":3.0804536603067676E-2},{"$f":"'Population 2016'!D53/'Population 2016'!D$5","v":3.4748100114433259E-2},{"$f":"'Population 2016'!E53/'Population 2016'!E$5","v":3.8365077653654857E-2},{"$f":"'Population 2016'!F53/'Population 2016'!F$5","v":3.8351789853206281E-2},{"$f":"'Population 2016'!G53/'Population 2016'!G$5","v":4.1912520976560383E-2},{"$f":"'Population 2016'!H53/'Population 2016'!H$5","v":3.8445201726256678E-2},{"$f":"'Population 2016'!I53/'Population 2016'!I$5","v":4.2291265388158444E-2},{"$f":"'Population 2016'!J53/'Population 2016'!J$5","v":3.4905417844969852E-2},{"$f":"'Population 2016'!K53/'Population 2016'!K$5","v":3.7305674998818691E-2},{"$f":"'Population 2016'!L53/'Population 2016'!L$5","v":4.178514129588741E-2},{"$f":"'Population 2016'!M53/'Population 2016'!M$5","v":4.178514129588741E-2},{"$f":"'Population 2016'!N53/'Population 2016'!N$5","v":3.0019048231407882E-2},{"$f":"'Population 2016'!O53/'Population 2016'!O$5","v":3.696218583132721E-2},{"$f":"'Population 2016'!P53/'Population 2016'!P$5","v":3.8171982418573197E-2},{"$f":"'Population 2016'!Q53/'Population 2016'!Q$5","v":3.5651754973502071E-2},{"$f":"'Population 2016'!R53/'Population 2016'!R$5","v":3.7140043647202851E-2},{"$f":"'Population 2016'!S53/'Population 2016'!S$5","v":3.3021990534378633E-2},{"$f":"'Population 2016'!T53/'Population 2016'!T$5","v":2.8124316552118864E-2},{"$f":"'Population 2016'!U53/'Population 2016'!U$5","v":4.3686097463816229E-2},{"$f":"'Population 2016'!V53/'Population 2016'!V$5","v":3.3819006113523786E-2},{"$f":"'Population 2016'!W53/'Population 2016'!W$5","v":3.5808836506971545E-2},{"$f":"'Population 2016'!X53/'Population 2016'!X$5","v":3.5808836506971545E-2},{"$f":"'Population 2016'!Y53/'Population 2016'!Y$5","v":3.4339676634711692E-2},{"$f":"'Population 2016'!Z53/'Population 2016'!Z$5","v":2.7939363083957468E-2},{"$f":"'Population 2016'!AA53/'Population 2016'!AA$5","v":3.3249023191600613E-2},{"$f":"'Population 2016'!AB53/'Population 2016'!AB$5","v":3.5161663408493089E-2},{"$f":"'Population 2016'!AC53/'Population 2016'!AC$5","v":3.1916280012659774E-2},{"$f":"'Population 2016'!AD53/'Population 2016'!AD$5","v":4.1225948118649748E-2},{"$f":"'Population 2016'!AE53/'Population 2016'!AE$5","v":4.096551299294654E-2},{"$f":"'Population 2016'!AF53/'Population 2016'!AF$5","v":3.6571204512207994E-2},{"$f":"'Population 2016'!AG53/'Population 2016'!AG$5","v":4.096551299294654E-2},{"$f":"'Population 2016'!AH53/'Population 2016'!AH$5","v":3.5642699906188756E-2},{"$f":"'Population 2016'!AI53/'Population 2016'!AI$5","v":3.0645725785283053E-2},{"$f":"'Population 2016'!AJ53/'Population 2016'!AJ$5","v":3.6374536430304215E-2},{"$f":"'Population 2016'!AK53/'Population 2016'!AK$5","v":3.7288007744238967E-2},{"$f":"'Population 2016'!AL53/'Population 2016'!AL$5","v":3.8168886681683549E-2},{"$f":"'Population 2016'!AM53/'Population 2016'!AM$5","v":3.3963439590569779E-2},{"$f":"'Population 2016'!AN53/'Population 2016'!AN$5","v":4.1780298898221886E-2},{"$f":"'Population 2016'!AO53/'Population 2016'!AO$5","v":4.1780298898221886E-2},{"$f":"'Population 2016'!AP53/'Population 2016'!AP$5","v":3.9265729277301334E-2},{"$f":"'Population 2016'!AQ53/'Population 2016'!AQ$5","v":3.4683783635666134E-2},{"$f":"'Population 2016'!AR53/'Population 2016'!AR$5","v":3.484374272492121E-2},{"$f":"'Population 2016'!AS53/'Population 2016'!AS$5","v":4.2291265388158444E-2},{"$f":"'Population 2016'!AT53/'Population 2016'!AT$5","v":4.07022723677967E-2},{"$f":"'Population 2016'!AU53/'Population 2016'!AU$5","v":4.07022723677967E-2},{"$f":"'Population 2016'!AV53/'Population 2016'!AV$5","v":4.0354767184035474E-2},{"$f":"'Population 2016'!AW53/'Population 2016'!AW$5","v":3.7410763316858872E-2},{"$f":"'Population 2016'!AX53/'Population 2016'!AX$5","v":3.3607217245741595E-2},{"$f":"'Population 2016'!AY53/'Population 2016'!AY$5","v":3.5751659985924542E-2},{"$f":"'Population 2016'!AZ53/'Population 2016'!AZ$5","v":3.5701342108139515E-2},{"$f":"'Population 2016'!BA53/'Population 2016'!BA$5","v":3.7235478298423663E-2},{"$f":"'Population 2016'!BB53/'Population 2016'!BB$5","v":3.2349833935217474E-2},{"$f":"'Population 2016'!BC53/'Population 2016'!BC$5","v":4.3686097463816229E-2},51]
[null,"Male 65-69",{"$f":"'Population 2016'!C54/'Population 2016'!C$5","v":2.7783882690273085E-2},{"$f":"'Population 2016'!D54/'Population 2016'!D$5","v":3.3417935702199662E-2},{"$f":"'Population 2016'!E54/'Population 2016'!E$5","v":3.8585404956895539E-2},{"$f":"'Population 2016'!F54/'Population 2016'!F$5","v":4.2637136234869949E-2},{"$f":"'Population 2016'!G54/'Population 2016'!G$5","v":4.5349970226817519E-2},{"$f":"'Population 2016'!H54/'Population 2016'!H$5","v":3.9816739242509232E-2},{"$f":"'Population 2016'!I54/'Population 2016'!I$5","v":4.5473578427267396E-2},{"$f":"'Population 2016'!J54/'Population 2016'!J$5","v":3.575130822752793E-2},{"$f":"'Population 2016'!K54/'Population 2016'!K$5","v":3.8675991116571377E-2},{"$f":"'Population 2016'!L54/'Population 2016'!L$5","v":4.4977999459914542E-2},{"$f":"'Population 2016'!M54/'Population 2016'!M$5","v":4.4977999459914542E-2},{"$f":"'Population 2016'!N54/'Population 2016'!N$5","v":2.9761856921259273E-2},{"$f":"'Population 2016'!O54/'Population 2016'!O$5","v":3.7516965356000041E-2},{"$f":"'Population 2016'!P54/'Population 2016'!P$5","v":3.7428152823171419E-2},{"$f":"'Population 2016'!Q54/'Population 2016'!Q$5","v":3.5263980446763259E-2},{"$f":"'Population 2016'!R54/'Population 2016'!R$5","v":3.2974929472507582E-2},{"$f":"'Population 2016'!S54/'Population 2016'!S$5","v":3.2942551339786151E-2},{"$f":"'Population 2016'!T54/'Population 2016'!T$5","v":2.603732846912328E-2},{"$f":"'Population 2016'!U54/'Population 2016'!U$5","v":4.6474571770017264E-2},{"$f":"'Population 2016'!V54/'Population 2016'!V$5","v":3.5734729547171828E-2},{"$f":"'Population 2016'!W54/'Population 2016'!W$5","v":3.7642421508834546E-2},{"$f":"'Population 2016'!X54/'Population 2016'!X$5","v":3.7642421508834546E-2},{"$f":"'Population 2016'!Y54/'Population 2016'!Y$5","v":3.5742674997217852E-2},{"$f":"'Population 2016'!Z54/'Population 2016'!Z$5","v":2.4145200287272326E-2},{"$f":"'Population 2016'!AA54/'Population 2016'!AA$5","v":3.0418753658256248E-2},{"$f":"'Population 2016'!AB54/'Population 2016'!AB$5","v":3.4001003039824777E-2},{"$f":"'Population 2016'!AC54/'Population 2016'!AC$5","v":2.8843389095632999E-2},{"$f":"'Population 2016'!AD54/'Population 2016'!AD$5","v":4.2279206520525511E-2},{"$f":"'Population 2016'!AE54/'Population 2016'!AE$5","v":4.1114385157958504E-2},{"$f":"'Population 2016'!AF54/'Population 2016'!AF$5","v":3.5606026331267249E-2},{"$f":"'Population 2016'!AG54/'Population 2016'!AG$5","v":4.1114385157958504E-2},{"$f":"'Population 2016'!AH54/'Population 2016'!AH$5","v":3.3248191114867688E-2},{"$f":"'Population 2016'!AI54/'Population 2016'!AI$5","v":2.9340110683349373E-2},{"$f":"'Population 2016'!AJ54/'Population 2016'!AJ$5","v":3.6276942810138581E-2},{"$f":"'Population 2016'!AK54/'Population 2016'!AK$5","v":3.6998855964698339E-2},{"$f":"'Population 2016'!AL54/'Population 2016'!AL$5","v":3.9711959702736735E-2},{"$f":"'Population 2016'!AM54/'Population 2016'!AM$5","v":3.2156064485984695E-2},{"$f":"'Population 2016'!AN54/'Population 2016'!AN$5","v":4.1998472782807897E-2},{"$f":"'Population 2016'!AO54/'Population 2016'!AO$5","v":4.1998472782807897E-2},{"$f":"'Population 2016'!AP54/'Population 2016'!AP$5","v":3.9772997479511123E-2},{"$f":"'Population 2016'!AQ54/'Population 2016'!AQ$5","v":3.299172466706856E-2},{"$f":"'Population 2016'!AR54/'Population 2016'!AR$5","v":3.4188999557341046E-2},{"$f":"'Population 2016'!AS54/'Population 2016'!AS$5","v":4.5473578427267396E-2},{"$f":"'Population 2016'!AT54/'Population 2016'!AT$5","v":4.0807718669267676E-2},{"$f":"'Population 2016'!AU54/'Population 2016'!AU$5","v":4.0807718669267676E-2},{"$f":"'Population 2016'!AV54/'Population 2016'!AV$5","v":4.2392566782810684E-2},{"$f":"'Population 2016'!AW54/'Population 2016'!AW$5","v":3.4398071877478793E-2},{"$f":"'Population 2016'!AX54/'Population 2016'!AX$5","v":3.4169467268103812E-2},{"$f":"'Population 2016'!AY54/'Population 2016'!AY$5","v":3.7295370398702607E-2},{"$f":"'Population 2016'!AZ54/'Population 2016'!AZ$5","v":3.6989950008916708E-2},{"$f":"'Population 2016'!BA54/'Population 2016'!BA$5","v":3.2903260634852084E-2},{"$f":"'Population 2016'!BB54/'Population 2016'!BB$5","v":3.222554428509284E-2},{"$f":"'Population 2016'!BC54/'Population 2016'!BC$5","v":4.6474571770017264E-2},52]
[null,"Male 70-74",{"$f":"'Population 2016'!C55/'Population 2016'!C$5","v":1.814947892442232E-2},{"$f":"'Population 2016'!D55/'Population 2016'!D$5","v":2.2202008939487299E-2},{"$f":"'Population 2016'!E55/'Population 2016'!E$5","v":2.5918928928037353E-2},{"$f":"'Population 2016'!F55/'Population 2016'!F$5","v":3.0574298223023436E-2},{"$f":"'Population 2016'!G55/'Population 2016'!G$5","v":3.517295512369404E-2},{"$f":"'Population 2016'!H55/'Population 2016'!H$5","v":3.02451582780233E-2},{"$f":"'Population 2016'!I55/'Population 2016'!I$5","v":3.3435223180638136E-2},{"$f":"'Population 2016'!J55/'Population 2016'!J$5","v":2.5807949710987453E-2},{"$f":"'Population 2016'!K55/'Population 2016'!K$5","v":2.7996975854084959E-2},{"$f":"'Population 2016'!L55/'Population 2016'!L$5","v":3.4414563245595921E-2},{"$f":"'Population 2016'!M55/'Population 2016'!M$5","v":3.4414563245595921E-2},{"$f":"'Population 2016'!N55/'Population 2016'!N$5","v":2.129865537168163E-2},{"$f":"'Population 2016'!O55/'Population 2016'!O$5","v":2.747149324853132E-2},{"$f":"'Population 2016'!P55/'Population 2016'!P$5","v":2.785979939141215E-2},{"$f":"'Population 2016'!Q55/'Population 2016'!Q$5","v":2.7085463155544588E-2},{"$f":"'Population 2016'!R55/'Population 2016'!R$5","v":2.453824453079257E-2},{"$f":"'Population 2016'!S55/'Population 2016'!S$5","v":2.3998580686389947E-2},{"$f":"'Population 2016'!T55/'Population 2016'!T$5","v":1.7896446303681195E-2},{"$f":"'Population 2016'!U55/'Population 2016'!U$5","v":3.2797769220555037E-2},{"$f":"'Population 2016'!V55/'Population 2016'!V$5","v":2.4927301730256982E-2},{"$f":"'Population 2016'!W55/'Population 2016'!W$5","v":2.8216291124925644E-2},{"$f":"'Population 2016'!X55/'Population 2016'!X$5","v":2.8216291124925644E-2},{"$f":"'Population 2016'!Y55/'Population 2016'!Y$5","v":2.5349358515762865E-2},{"$f":"'Population 2016'!Z55/'Population 2016'!Z$5","v":1.695758474436828E-2},{"$f":"'Population 2016'!AA55/'Population 2016'!AA$5","v":2.2214293924155422E-2},{"$f":"'Population 2016'!AB55/'Population 2016'!AB$5","v":2.32091133332651E-2},{"$f":"'Population 2016'!AC55/'Population 2016'!AC$5","v":2.1024117694514718E-2},{"$f":"'Population 2016'!AD55/'Population 2016'!AD$5","v":3.1981093453422156E-2},{"$f":"'Population 2016'!AE55/'Population 2016'!AE$5","v":3.0770336451092926E-2},{"$f":"'Population 2016'!AF55/'Population 2016'!AF$5","v":2.7070231793572517E-2},{"$f":"'Population 2016'!AG55/'Population 2016'!AG$5","v":3.0770336451092926E-2},{"$f":"'Population 2016'!AH55/'Population 2016'!AH$5","v":2.4351912913442873E-2},{"$f":"'Population 2016'!AI55/'Population 2016'!AI$5","v":2.1001946801994926E-2},{"$f":"'Population 2016'!AJ55/'Population 2016'!AJ$5","v":2.7033432785879597E-2},{"$f":"'Population 2016'!AK55/'Population 2016'!AK$5","v":2.8387161660988397E-2},{"$f":"'Population 2016'!AL55/'Population 2016'!AL$5","v":3.0072187439030878E-2},{"$f":"'Population 2016'!AM55/'Population 2016'!AM$5","v":2.2970687200959104E-2},{"$f":"'Population 2016'!AN55/'Population 2016'!AN$5","v":3.3326060870513798E-2},{"$f":"'Population 2016'!AO55/'Population 2016'!AO$5","v":3.3326060870513798E-2},{"$f":"'Population 2016'!AP55/'Population 2016'!AP$5","v":2.9849563273782159E-2},{"$f":"'Population 2016'!AQ55/'Population 2016'!AQ$5","v":2.4880802323669644E-2},{"$f":"'Population 2016'!AR55/'Population 2016'!AR$5","v":2.4921899766595978E-2},{"$f":"'Population 2016'!AS55/'Population 2016'!AS$5","v":3.3435223180638136E-2},{"$f":"'Population 2016'!AT55/'Population 2016'!AT$5","v":2.836505509569252E-2},{"$f":"'Population 2016'!AU55/'Population 2016'!AU$5","v":2.836505509569252E-2},{"$f":"'Population 2016'!AV55/'Population 2016'!AV$5","v":3.3407243163340726E-2},{"$f":"'Population 2016'!AW55/'Population 2016'!AW$5","v":2.5806180975044238E-2},{"$f":"'Population 2016'!AX55/'Population 2016'!AX$5","v":2.4623995297545269E-2},{"$f":"'Population 2016'!AY55/'Population 2016'!AY$5","v":2.7564945993084667E-2},{"$f":"'Population 2016'!AZ55/'Population 2016'!AZ$5","v":2.699173335020796E-2},{"$f":"'Population 2016'!BA55/'Population 2016'!BA$5","v":2.4616713452817966E-2},{"$f":"'Population 2016'!BB55/'Population 2016'!BB$5","v":2.365646340705551E-2},{"$f":"'Population 2016'!BC55/'Population 2016'!BC$5","v":3.2797769220555037E-2},53]
[null,"Male 75-79",{"$f":"'Population 2016'!C56/'Population 2016'!C$5","v":1.3973718777631828E-2},{"$f":"'Population 2016'!D56/'Population 2016'!D$5","v":1.6414326653169411E-2},{"$f":"'Population 2016'!E56/'Population 2016'!E$5","v":1.8652815736057267E-2},{"$f":"'Population 2016'!F56/'Population 2016'!F$5","v":2.2848313159927892E-2},{"$f":"'Population 2016'!G56/'Population 2016'!G$5","v":2.4914740431981813E-2},{"$f":"'Population 2016'!H56/'Population 2016'!H$5","v":2.2239659158336388E-2},{"$f":"'Population 2016'!I56/'Population 2016'!I$5","v":2.4181391843229209E-2},{"$f":"'Population 2016'!J56/'Population 2016'!J$5","v":1.92232735957805E-2},{"$f":"'Population 2016'!K56/'Population 2016'!K$5","v":1.9137173368615035E-2},{"$f":"'Population 2016'!L56/'Population 2016'!L$5","v":2.6519784601210426E-2},{"$f":"'Population 2016'!M56/'Population 2016'!M$5","v":2.6519784601210426E-2},{"$f":"'Population 2016'!N56/'Population 2016'!N$5","v":1.7336301749704634E-2},{"$f":"'Population 2016'!O56/'Population 2016'!O$5","v":2.0665537294062869E-2},{"$f":"'Population 2016'!P56/'Population 2016'!P$5","v":2.2686802659754309E-2},{"$f":"'Population 2016'!Q56/'Population 2016'!Q$5","v":1.9858756066321193E-2},{"$f":"'Population 2016'!R56/'Population 2016'!R$5","v":2.0213445467610582E-2},{"$f":"'Population 2016'!S56/'Population 2016'!S$5","v":1.7412188796955184E-2},{"$f":"'Population 2016'!T56/'Population 2016'!T$5","v":1.3682917409249755E-2},{"$f":"'Population 2016'!U56/'Population 2016'!U$5","v":2.5671668215819059E-2},{"$f":"'Population 2016'!V56/'Population 2016'!V$5","v":1.8378733180177225E-2},{"$f":"'Population 2016'!W56/'Population 2016'!W$5","v":1.9806640127076267E-2},{"$f":"'Population 2016'!X56/'Population 2016'!X$5","v":1.9806640127076267E-2},{"$f":"'Population 2016'!Y56/'Population 2016'!Y$5","v":1.8783485159218453E-2},{"$f":"'Population 2016'!Z56/'Population 2016'!Z$5","v":1.2588490136144628E-2},{"$f":"'Population 2016'!AA56/'Population 2016'!AA$5","v":1.6474028955118968E-2},{"$f":"'Population 2016'!AB56/'Population 2016'!AB$5","v":1.7311648567597721E-2},{"$f":"'Population 2016'!AC56/'Population 2016'!AC$5","v":1.5814372979245834E-2},{"$f":"'Population 2016'!AD56/'Population 2016'!AD$5","v":2.194722542707209E-2},{"$f":"'Population 2016'!AE56/'Population 2016'!AE$5","v":2.0821569009948769E-2},{"$f":"'Population 2016'!AF56/'Population 2016'!AF$5","v":1.9499615436818531E-2},{"$f":"'Population 2016'!AG56/'Population 2016'!AG$5","v":2.0821569009948769E-2},{"$f":"'Population 2016'!AH56/'Population 2016'!AH$5","v":1.7658805717841786E-2},{"$f":"'Population 2016'!AI56/'Population 2016'!AI$5","v":1.5526566191267828E-2},{"$f":"'Population 2016'!AJ56/'Population 2016'!AJ$5","v":1.8417310319828236E-2},{"$f":"'Population 2016'!AK56/'Population 2016'!AK$5","v":2.1925247979080496E-2},{"$f":"'Population 2016'!AL56/'Population 2016'!AL$5","v":2.1824728188574165E-2},{"$f":"'Population 2016'!AM56/'Population 2016'!AM$5","v":1.6947310850408018E-2},{"$f":"'Population 2016'!AN56/'Population 2016'!AN$5","v":2.5471801025417257E-2},{"$f":"'Population 2016'!AO56/'Population 2016'!AO$5","v":2.5471801025417257E-2},{"$f":"'Population 2016'!AP56/'Population 2016'!AP$5","v":2.2993516478290506E-2},{"$f":"'Population 2016'!AQ56/'Population 2016'!AQ$5","v":1.8667452183920644E-2},{"$f":"'Population 2016'!AR56/'Population 2016'!AR$5","v":1.8382488081958963E-2},{"$f":"'Population 2016'!AS56/'Population 2016'!AS$5","v":2.4181391843229209E-2},{"$f":"'Population 2016'!AT56/'Population 2016'!AT$5","v":2.0614751937575788E-2},{"$f":"'Population 2016'!AU56/'Population 2016'!AU$5","v":2.0614751937575788E-2},{"$f":"'Population 2016'!AV56/'Population 2016'!AV$5","v":2.441136099672685E-2},{"$f":"'Population 2016'!AW56/'Population 2016'!AW$5","v":1.8407926047958996E-2},{"$f":"'Population 2016'!AX56/'Population 2016'!AX$5","v":1.9269841675505068E-2},{"$f":"'Population 2016'!AY56/'Population 2016'!AY$5","v":2.0403292432912088E-2},{"$f":"'Population 2016'!AZ56/'Population 2016'!AZ$5","v":2.0928372959943854E-2},{"$f":"'Population 2016'!BA56/'Population 2016'!BA$5","v":1.6694558410710429E-2},{"$f":"'Population 2016'!BB56/'Population 2016'!BB$5","v":1.7020777086512503E-2},{"$f":"'Population 2016'!BC56/'Population 2016'!BC$5","v":2.5671668215819059E-2},54]
[null,"Male 80-84",{"$f":"'Population 2016'!C57/'Population 2016'!C$5","v":1.0303956494405913E-2},{"$f":"'Population 2016'!D57/'Population 2016'!D$5","v":1.1445771348649785E-2},{"$f":"'Population 2016'!E57/'Population 2016'!E$5","v":1.2493026875243181E-2},{"$f":"'Population 2016'!F57/'Population 2016'!F$5","v":1.5503476693278393E-2},{"$f":"'Population 2016'!G57/'Population 2016'!G$5","v":1.5847453039571267E-2},{"$f":"'Population 2016'!H57/'Population 2016'!H$5","v":1.4629733506693946E-2},{"$f":"'Population 2016'!I57/'Population 2016'!I$5","v":1.5942969600535969E-2},{"$f":"'Population 2016'!J57/'Population 2016'!J$5","v":1.253908096497848E-2},{"$f":"'Population 2016'!K57/'Population 2016'!K$5","v":1.1482304021169022E-2},{"$f":"'Population 2016'!L57/'Population 2016'!L$5","v":1.7870474798659317E-2},{"$f":"'Population 2016'!M57/'Population 2016'!M$5","v":1.7870474798659317E-2},{"$f":"'Population 2016'!N57/'Population 2016'!N$5","v":1.2329108430248913E-2},{"$f":"'Population 2016'!O57/'Population 2016'!O$5","v":1.3166106933753381E-2},{"$f":"'Population 2016'!P57/'Population 2016'!P$5","v":1.6848867350388819E-2},{"$f":"'Population 2016'!Q57/'Population 2016'!Q$5","v":1.3959882962597384E-2},{"$f":"'Population 2016'!R57/'Population 2016'!R$5","v":1.4664395592697077E-2},{"$f":"'Population 2016'!S57/'Population 2016'!S$5","v":1.2065048343163198E-2},{"$f":"'Population 2016'!T57/'Population 2016'!T$5","v":1.044657357040153E-2},{"$f":"'Population 2016'!U57/'Population 2016'!U$5","v":1.5712831407958216E-2},{"$f":"'Population 2016'!V57/'Population 2016'!V$5","v":1.2845269079002603E-2},{"$f":"'Population 2016'!W57/'Population 2016'!W$5","v":1.3416874211493081E-2},{"$f":"'Population 2016'!X57/'Population 2016'!X$5","v":1.3416874211493081E-2},{"$f":"'Population 2016'!Y57/'Population 2016'!Y$5","v":1.2698526255544428E-2},{"$f":"'Population 2016'!Z57/'Population 2016'!Z$5","v":8.6878584854708733E-3},{"$f":"'Population 2016'!AA57/'Population 2016'!AA$5","v":1.1169598918916765E-2},{"$f":"'Population 2016'!AB57/'Population 2016'!AB$5","v":1.1850199072699918E-2},{"$f":"'Population 2016'!AC57/'Population 2016'!AC$5","v":1.0936637009976812E-2},{"$f":"'Population 2016'!AD57/'Population 2016'!AD$5","v":1.4846105176969743E-2},{"$f":"'Population 2016'!AE57/'Population 2016'!AE$5","v":1.4466267620817461E-2},{"$f":"'Population 2016'!AF57/'Population 2016'!AF$5","v":1.27735299883877E-2},{"$f":"'Population 2016'!AG57/'Population 2016'!AG$5","v":1.4466267620817461E-2},{"$f":"'Population 2016'!AH57/'Population 2016'!AH$5","v":1.1588010737207768E-2},{"$f":"'Population 2016'!AI57/'Population 2016'!AI$5","v":1.0993142444658325E-2},{"$f":"'Population 2016'!AJ57/'Population 2016'!AJ$5","v":1.2017957226110477E-2},{"$f":"'Population 2016'!AK57/'Population 2016'!AK$5","v":1.3929572683957106E-2},{"$f":"'Population 2016'!AL57/'Population 2016'!AL$5","v":1.4366541920150406E-2},{"$f":"'Population 2016'!AM57/'Population 2016'!AM$5","v":1.0797164702942145E-2},{"$f":"'Population 2016'!AN57/'Population 2016'!AN$5","v":1.5381258863314061E-2},{"$f":"'Population 2016'!AO57/'Population 2016'!AO$5","v":1.5381258863314061E-2},{"$f":"'Population 2016'!AP57/'Population 2016'!AP$5","v":1.6462438374839496E-2},{"$f":"'Population 2016'!AQ57/'Population 2016'!AQ$5","v":1.2132131309256316E-2},{"$f":"'Population 2016'!AR57/'Population 2016'!AR$5","v":1.2520320095669583E-2},{"$f":"'Population 2016'!AS57/'Population 2016'!AS$5","v":1.5942969600535969E-2},{"$f":"'Population 2016'!AT57/'Population 2016'!AT$5","v":1.2231770970633205E-2},{"$f":"'Population 2016'!AU57/'Population 2016'!AU$5","v":1.2231770970633205E-2},{"$f":"'Population 2016'!AV57/'Population 2016'!AV$5","v":1.6503009185936016E-2},{"$f":"'Population 2016'!AW57/'Population 2016'!AW$5","v":1.2420678503874551E-2},{"$f":"'Population 2016'!AX57/'Population 2016'!AX$5","v":1.3110648248718965E-2},{"$f":"'Population 2016'!AY57/'Population 2016'!AY$5","v":1.4107585447201738E-2},{"$f":"'Population 2016'!AZ57/'Population 2016'!AZ$5","v":1.4715442009768109E-2},{"$f":"'Population 2016'!BA57/'Population 2016'!BA$5","v":1.1755020513927877E-2},{"$f":"'Population 2016'!BB57/'Population 2016'!BB$5","v":1.0364375824282054E-2},{"$f":"'Population 2016'!BC57/'Population 2016'!BC$5","v":1.5712831407958216E-2},55]
[null,"Male 85-89",{"$f":"'Population 2016'!C58/'Population 2016'!C$5","v":5.3461996493792581E-3},{"$f":"'Population 2016'!D58/'Population 2016'!D$5","v":5.8537014758956608E-3},{"$f":"'Population 2016'!E58/'Population 2016'!E$5","v":6.3191745695413909E-3},{"$f":"'Population 2016'!F58/'Population 2016'!F$5","v":8.447077002317796E-3},{"$f":"'Population 2016'!G58/'Population 2016'!G$5","v":7.8492935635792772E-3},{"$f":"'Population 2016'!H58/'Population 2016'!H$5","v":7.1527464795582548E-3},{"$f":"'Population 2016'!I58/'Population 2016'!I$5","v":9.1282137174441003E-3},{"$f":"'Population 2016'!J58/'Population 2016'!J$5","v":6.070507451299105E-3},{"$f":"'Population 2016'!K58/'Population 2016'!K$5","v":5.8829088503520293E-3},{"$f":"'Population 2016'!L58/'Population 2016'!L$5","v":8.7207917017457469E-3},{"$f":"'Population 2016'!M58/'Population 2016'!M$5","v":8.7207917017457469E-3},{"$f":"'Population 2016'!N58/'Population 2016'!N$5","v":6.8477186327066978E-3},{"$f":"'Population 2016'!O58/'Population 2016'!O$5","v":6.3700577565112297E-3},{"$f":"'Population 2016'!P58/'Population 2016'!P$5","v":8.4413388932717236E-3},{"$f":"'Population 2016'!Q58/'Population 2016'!Q$5","v":7.0269444542367301E-3},{"$f":"'Population 2016'!R58/'Population 2016'!R$5","v":7.4652685367541383E-3},{"$f":"'Population 2016'!S58/'Population 2016'!S$5","v":6.2289155137685778E-3},{"$f":"'Population 2016'!T58/'Population 2016'!T$5","v":5.6095075452646075E-3},{"$f":"'Population 2016'!U58/'Population 2016'!U$5","v":9.2949143540034529E-3},{"$f":"'Population 2016'!V58/'Population 2016'!V$5","v":5.8234939437189458E-3},{"$f":"'Population 2016'!W58/'Population 2016'!W$5","v":6.6348976003242277E-3},{"$f":"'Population 2016'!X58/'Population 2016'!X$5","v":6.6348976003242277E-3},{"$f":"'Population 2016'!Y58/'Population 2016'!Y$5","v":5.941876917696062E-3},{"$f":"'Population 2016'!Z58/'Population 2016'!Z$5","v":4.1851938604251402E-3},{"$f":"'Population 2016'!AA58/'Population 2016'!AA$5","v":5.3947860588629626E-3},{"$f":"'Population 2016'!AB58/'Population 2016'!AB$5","v":6.126731011330256E-3},{"$f":"'Population 2016'!AC58/'Population 2016'!AC$5","v":5.3855748922781591E-3},{"$f":"'Population 2016'!AD58/'Population 2016'!AD$5","v":7.5923927202352151E-3},{"$f":"'Population 2016'!AE58/'Population 2016'!AE$5","v":7.4949434799125251E-3},{"$f":"'Population 2016'!AF58/'Population 2016'!AF$5","v":6.3792245396552504E-3},{"$f":"'Population 2016'!AG58/'Population 2016'!AG$5","v":7.4949434799125251E-3},{"$f":"'Population 2016'!AH58/'Population 2016'!AH$5","v":5.4113297976092064E-3},{"$f":"'Population 2016'!AI58/'Population 2016'!AI$5","v":5.6804510455857908E-3},{"$f":"'Population 2016'!AJ58/'Population 2016'!AJ$5","v":6.4132950394557063E-3},{"$f":"'Population 2016'!AK58/'Population 2016'!AK$5","v":7.5305180845580376E-3},{"$f":"'Population 2016'!AL58/'Population 2016'!AL$5","v":6.6334403433780881E-3},{"$f":"'Population 2016'!AM58/'Population 2016'!AM$5","v":4.8027643059715816E-3},{"$f":"'Population 2016'!AN58/'Population 2016'!AN$5","v":8.0178902585360534E-3},{"$f":"'Population 2016'!AO58/'Population 2016'!AO$5","v":8.0178902585360534E-3},{"$f":"'Population 2016'!AP58/'Population 2016'!AP$5","v":8.9564541952665538E-3},{"$f":"'Population 2016'!AQ58/'Population 2016'!AQ$5","v":6.3709102866224589E-3},{"$f":"'Population 2016'!AR58/'Population 2016'!AR$5","v":6.30170805761829E-3},{"$f":"'Population 2016'!AS58/'Population 2016'!AS$5","v":9.1282137174441003E-3},{"$f":"'Population 2016'!AT58/'Population 2016'!AT$5","v":6.2740549375230664E-3},{"$f":"'Population 2016'!AU58/'Population 2016'!AU$5","v":6.2740549375230664E-3},{"$f":"'Population 2016'!AV58/'Population 2016'!AV$5","v":8.6052159222890934E-3},{"$f":"'Population 2016'!AW58/'Population 2016'!AW$5","v":6.0520776130331324E-3},{"$f":"'Population 2016'!AX58/'Population 2016'!AX$5","v":6.1719718363852432E-3},{"$f":"'Population 2016'!AY58/'Population 2016'!AY$5","v":7.3926746427587899E-3},{"$f":"'Population 2016'!AZ58/'Population 2016'!AZ$5","v":8.0595520937002032E-3},{"$f":"'Population 2016'!BA58/'Population 2016'!BA$5","v":5.1554739797020086E-3},{"$f":"'Population 2016'!BB58/'Population 2016'!BB$5","v":4.7368166658610855E-3},{"$f":"'Population 2016'!BC58/'Population 2016'!BC$5","v":9.2949143540034529E-3},56]
[null,"Male 90+",{"$f":"'Population 2016'!C59/'Population 2016'!C$5","v":2.2693237517441593E-3},{"$f":"'Population 2016'!D59/'Population 2016'!D$5","v":2.586974169380789E-3},{"$f":"'Population 2016'!E59/'Population 2016'!E$5","v":2.8783183870166279E-3},{"$f":"'Population 2016'!F59/'Population 2016'!F$5","v":3.5333505021890293E-3},{"$f":"'Population 2016'!G59/'Population 2016'!G$5","v":3.1397174254317113E-3},{"$f":"'Population 2016'!H59/'Population 2016'!H$5","v":2.9473465774789002E-3},{"$f":"'Population 2016'!I59/'Population 2016'!I$5","v":3.2346537140942968E-3},{"$f":"'Population 2016'!J59/'Population 2016'!J$5","v":2.3718102883491039E-3},{"$f":"'Population 2016'!K59/'Population 2016'!K$5","v":2.386240136086566E-3},{"$f":"'Population 2016'!L59/'Population 2016'!L$5","v":3.8123679570473208E-3},{"$f":"'Population 2016'!M59/'Population 2016'!M$5","v":3.8123679570473208E-3},{"$f":"'Population 2016'!N59/'Population 2016'!N$5","v":2.8451788685189801E-3},{"$f":"'Population 2016'!O59/'Population 2016'!O$5","v":2.4667875293488276E-3},{"$f":"'Population 2016'!P59/'Population 2016'!P$5","v":3.7980389947030319E-3},{"$f":"'Population 2016'!Q59/'Population 2016'!Q$5","v":3.0316917545034723E-3},{"$f":"'Population 2016'!R59/'Population 2016'!R$5","v":3.4731463245861499E-3},{"$f":"'Population 2016'!S59/'Population 2016'!S$5","v":2.7097591933214586E-3},{"$f":"'Population 2016'!T59/'Population 2016'!T$5","v":2.7105252137010652E-3},{"$f":"'Population 2016'!U59/'Population 2016'!U$5","v":3.1425662815916435E-3},{"$f":"'Population 2016'!V59/'Population 2016'!V$5","v":2.5110478472916554E-3},{"$f":"'Population 2016'!W59/'Population 2016'!W$5","v":2.8958223024075202E-3},{"$f":"'Population 2016'!X59/'Population 2016'!X$5","v":2.8958223024075202E-3},{"$f":"'Population 2016'!Y59/'Population 2016'!Y$5","v":2.4443172604569083E-3},{"$f":"'Population 2016'!Z59/'Population 2016'!Z$5","v":1.8428790726756398E-3},{"$f":"'Population 2016'!AA59/'Population 2016'!AA$5","v":2.2848114847819861E-3},{"$f":"'Population 2016'!AB59/'Population 2016'!AB$5","v":2.6815962662354279E-3},{"$f":"'Population 2016'!AC59/'Population 2016'!AC$5","v":2.3943932928027537E-3},{"$f":"'Population 2016'!AD59/'Population 2016'!AD$5","v":3.126279355390971E-3},{"$f":"'Population 2016'!AE59/'Population 2016'!AE$5","v":3.1211819423197363E-3},{"$f":"'Population 2016'!AF59/'Population 2016'!AF$5","v":2.8653727246678428E-3},{"$f":"'Population 2016'!AG59/'Population 2016'!AG$5","v":3.1211819423197363E-3},{"$f":"'Population 2016'!AH59/'Population 2016'!AH$5","v":2.0879968048447472E-3},{"$f":"'Population 2016'!AI59/'Population 2016'!AI$5","v":2.5633804357336602E-3},{"$f":"'Population 2016'!AJ59/'Population 2016'!AJ$5","v":2.4258985584028107E-3},{"$f":"'Population 2016'!AK59/'Population 2016'!AK$5","v":3.1680977584451178E-3},{"$f":"'Population 2016'!AL59/'Population 2016'!AL$5","v":2.6516024902005996E-3},{"$f":"'Population 2016'!AM59/'Population 2016'!AM$5","v":1.8834369827339537E-3},{"$f":"'Population 2016'!AN59/'Population 2016'!AN$5","v":3.654412566815752E-3},{"$f":"'Population 2016'!AO59/'Population 2016'!AO$5","v":3.654412566815752E-3},{"$f":"'Population 2016'!AP59/'Population 2016'!AP$5","v":3.7569551226162359E-3},{"$f":"'Population 2016'!AQ59/'Population 2016'!AQ$5","v":2.8360826437222558E-3},{"$f":"'Population 2016'!AR59/'Population 2016'!AR$5","v":2.6771176062643262E-3},{"$f":"'Population 2016'!AS59/'Population 2016'!AS$5","v":3.2346537140942968E-3},{"$f":"'Population 2016'!AT59/'Population 2016'!AT$5","v":2.3725417830969581E-3},{"$f":"'Population 2016'!AU59/'Population 2016'!AU$5","v":2.3725417830969581E-3},{"$f":"'Population 2016'!AV59/'Population 2016'!AV$5","v":3.8116355189525921E-3},{"$f":"'Population 2016'!AW59/'Population 2016'!AW$5","v":2.3033742144121057E-3},{"$f":"'Population 2016'!AX59/'Population 2016'!AX$5","v":2.3640057758411389E-3},{"$f":"'Population 2016'!AY59/'Population 2016'!AY$5","v":3.1470885223830358E-3},{"$f":"'Population 2016'!AZ59/'Population 2016'!AZ$5","v":3.3682139549332398E-3},{"$f":"'Population 2016'!BA59/'Population 2016'!BA$5","v":2.1728568343770244E-3},{"$f":"'Population 2016'!BB59/'Population 2016'!BB$5","v":1.9195845963693612E-3},{"$f":"'Population 2016'!BC59/'Population 2016'!BC$5","v":3.1425662815916435E-3},57]
["SIMD Q1 (most deprived)","Female 0-4",{"$f":"'Population 2016'!C60/'Population 2016'!C$5","v":0},{"$f":"'Population 2016'!D60/'Population 2016'!D$5","v":0},{"$f":"'Population 2016'!E60/'Population 2016'!E$5","v":0},{"$f":"'Population 2016'!F60/'Population 2016'!F$5","v":0},{"$f":"'Population 2016'!G60/'Population 2016'!G$5","v":0},{"$f":"'Population 2016'!H60/'Population 2016'!H$5","v":0},{"$f":"'Population 2016'!I60/'Population 2016'!I$5","v":0},{"$f":"'Population 2016'!J60/'Population 2016'!J$5","v":0},{"$f":"'Population 2016'!K60/'Population 2016'!K$5","v":0},{"$f":"'Population 2016'!L60/'Population 2016'!L$5","v":0},{"$f":"'Population 2016'!M60/'Population 2016'!M$5","v":0},{"$f":"'Population 2016'!N60/'Population 2016'!N$5","v":0},{"$f":"'Population 2016'!O60/'Population 2016'!O$5","v":0},{"$f":"'Population 2016'!P60/'Population 2016'!P$5","v":0},{"$f":"'Population 2016'!Q60/'Population 2016'!Q$5","v":0},{"$f":"'Population 2016'!R60/'Population 2016'!R$5","v":0},{"$f":"'Population 2016'!S60/'Population 2016'!S$5","v":0},{"$f":"'Population 2016'!T60/'Population 2016'!T$5","v":0},{"$f":"'Population 2016'!U60/'Population 2016'!U$5","v":0},{"$f":"'Population 2016'!V60/'Population 2016'!V$5","v":0},{"$f":"'Population 2016'!W60/'Population 2016'!W$5","v":0},{"$f":"'Population 2016'!X60/'Population 2016'!X$5","v":0},{"$f":"'Population 2016'!Y60/'Population 2016'!Y$5","v":0},{"$f":"'Population 2016'!Z60/'Population 2016'!Z$5","v":0},{"$f":"'Population 2016'!AA60/'Population 2016'!AA$5","v":0},{"$f":"'Population 2016'!AB60/'Population 2016'!AB$5","v":0},{"$f":"'Population 2016'!AC60/'Population 2016'!AC$5","v":0},{"$f":"'Population 2016'!AD60/'Population 2016'!AD$5","v":0},{"$f":"'Population 2016'!AE60/'Population 2016'!AE$5","v":0},{"$f":"'Population 2016'!AF60/'Population 2016'!AF$5","v":0},{"$f":"'Population 2016'!AG60/'Population 2016'!AG$5","v":0},{"$f":"'Population 2016'!AH60/'Population 2016'!AH$5","v":0},{"$f":"'Population 2016'!AI60/'Population 2016'!AI$5","v":0},{"$f":"'Population 2016'!AJ60/'Population 2016'!AJ$5","v":0},{"$f":"'Population 2016'!AK60/'Population 2016'!AK$5","v":0},{"$f":"'Population 2016'!AL60/'Population 2016'!AL$5","v":0},{"$f":"'Population 2016'!AM60/'Population 2016'!AM$5","v":0},{"$f":"'Population 2016'!AN60/'Population 2016'!AN$5","v":0},{"$f":"'Population 2016'!AO60/'Population 2016'!AO$5","v":0},{"$f":"'Population 2016'!AP60/'Population 2016'!AP$5","v":0},{"$f":"'Population 2016'!AQ60/'Population 2016'!AQ$5","v":0},{"$f":"'Population 2016'!AR60/'Population 2016'!AR$5","v":0},{"$f":"'Population 2016'!AS60/'Population 2016'!AS$5","v":0},{"$f":"'Population 2016'!AT60/'Population 2016'!AT$5","v":0},{"$f":"'Population 2016'!AU60/'Population 2016'!AU$5","v":0},{"$f":"'Population 2016'!AV60/'Population 2016'!AV$5","v":0},{"$f":"'Population 2016'!AW60/'Population 2016'!AW$5","v":0},{"$f":"'Population 2016'!AX60/'Population 2016'!AX$5","v":0},{"$f":"'Population 2016'!AY60/'Population 2016'!AY$5","v":0},{"$f":"'Population 2016'!AZ60/'Population 2016'!AZ$5","v":0},{"$f":"'Population 2016'!BA60/'Population 2016'!BA$5","v":0},{"$f":"'Population 2016'!BB60/'Population 2016'!BB$5","v":0},{"$f":"'Population 2016'!BC60/'Population 2016'!BC$5","v":0},58]
[null,"Female 5-9",{"$f":"'Population 2016'!C61/'Population 2016'!C$5","v":0},{"$f":"'Population 2016'!D61/'Population 2016'!D$5","v":0},{"$f":"'Population 2016'!E61/'Population 2016'!E$5","v":0},{"$f":"'Population 2016'!F61/'Population 2016'!F$5","v":0},{"$f":"'Population 2016'!G61/'Population 2016'!G$5","v":0},{"$f":"'Population 2016'!H61/'Population 2016'!H$5","v":0},{"$f":"'Population 2016'!I61/'Population 2016'!I$5","v":0},{"$f":"'Population 2016'!J61/'Population 2016'!J$5","v":0},{"$f":"'Population 2016'!K61/'Population 2016'!K$5","v":0},{"$f":"'Population 2016'!L61/'Population 2016'!L$5","v":0},{"$f":"'Population 2016'!M61/'Population 2016'!M$5","v":0},{"$f":"'Population 2016'!N61/'Population 2016'!N$5","v":0},{"$f":"'Population 2016'!O61/'Population 2016'!O$5","v":0},{"$f":"'Population 2016'!P61/'Population 2016'!P$5","v":0},{"$f":"'Population 2016'!Q61/'Population 2016'!Q$5","v":0},{"$f":"'Population 2016'!R61/'Population 2016'!R$5","v":0},{"$f":"'Population 2016'!S61/'Population 2016'!S$5","v":0},{"$f":"'Population 2016'!T61/'Population 2016'!T$5","v":0},{"$f":"'Population 2016'!U61/'Population 2016'!U$5","v":0},{"$f":"'Population 2016'!V61/'Population 2016'!V$5","v":0},{"$f":"'Population 2016'!W61/'Population 2016'!W$5","v":0},{"$f":"'Population 2016'!X61/'Population 2016'!X$5","v":0},{"$f":"'Population 2016'!Y61/'Population 2016'!Y$5","v":0},{"$f":"'Population 2016'!Z61/'Population 2016'!Z$5","v":0},{"$f":"'Population 2016'!AA61/'Population 2016'!AA$5","v":0},{"$f":"'Population 2016'!AB61/'Population 2016'!AB$5","v":0},{"$f":"'Population 2016'!AC61/'Population 2016'!AC$5","v":0},{"$f":"'Population 2016'!AD61/'Population 2016'!AD$5","v":0},{"$f":"'Population 2016'!AE61/'Population 2016'!AE$5","v":0},{"$f":"'Population 2016'!AF61/'Population 2016'!AF$5","v":0},{"$f":"'Population 2016'!AG61/'Population 2016'!AG$5","v":0},{"$f":"'Population 2016'!AH61/'Population 2016'!AH$5","v":0},{"$f":"'Population 2016'!AI61/'Population 2016'!AI$5","v":0},{"$f":"'Population 2016'!AJ61/'Population 2016'!AJ$5","v":0},{"$f":"'Population 2016'!AK61/'Population 2016'!AK$5","v":0},{"$f":"'Population 2016'!AL61/'Population 2016'!AL$5","v":0},{"$f":"'Population 2016'!AM61/'Population 2016'!AM$5","v":0},{"$f":"'Population 2016'!AN61/'Population 2016'!AN$5","v":0},{"$f":"'Population 2016'!AO61/'Population 2016'!AO$5","v":0},{"$f":"'Population 2016'!AP61/'Population 2016'!AP$5","v":0},{"$f":"'Population 2016'!AQ61/'Population 2016'!AQ$5","v":0},{"$f":"'Population 2016'!AR61/'Population 2016'!AR$5","v":0},{"$f":"'Population 2016'!AS61/'Population 2016'!AS$5","v":0},{"$f":"'Population 2016'!AT61/'Population 2016'!AT$5","v":0},{"$f":"'Population 2016'!AU61/'Population 2016'!AU$5","v":0},{"$f":"'Population 2016'!AV61/'Population 2016'!AV$5","v":0},{"$f":"'Population 2016'!AW61/'Population 2016'!AW$5","v":0},{"$f":"'Population 2016'!AX61/'Population 2016'!AX$5","v":0},{"$f":"'Population 2016'!AY61/'Population 2016'!AY$5","v":0},{"$f":"'Population 2016'!AZ61/'Population 2016'!AZ$5","v":0},{"$f":"'Population 2016'!BA61/'Population 2016'!BA$5","v":0},{"$f":"'Population 2016'!BB61/'Population 2016'!BB$5","v":0},{"$f":"'Population 2016'!BC61/'Population 2016'!BC$5","v":0},59]
[null,"Female 10-15",{"$f":"'Population 2016'!C62/'Population 2016'!C$5","v":0},{"$f":"'Population 2016'!D62/'Population 2016'!D$5","v":0},{"$f":"'Population 2016'!E62/'Population 2016'!E$5","v":0},{"$f":"'Population 2016'!F62/'Population 2016'!F$5","v":0},{"$f":"'Population 2016'!G62/'Population 2016'!G$5","v":0},{"$f":"'Population 2016'!H62/'Population 2016'!H$5","v":0},{"$f":"'Population 2016'!I62/'Population 2016'!I$5","v":0},{"$f":"'Population 2016'!J62/'Population 2016'!J$5","v":0},{"$f":"'Population 2016'!K62/'Population 2016'!K$5","v":0},{"$f":"'Population 2016'!L62/'Population 2016'!L$5","v":0},{"$f":"'Population 2016'!M62/'Population 2016'!M$5","v":0},{"$f":"'Population 2016'!N62/'Population 2016'!N$5","v":0},{"$f":"'Population 2016'!O62/'Population 2016'!O$5","v":0},{"$f":"'Population 2016'!P62/'Population 2016'!P$5","v":0},{"$f":"'Population 2016'!Q62/'Population 2016'!Q$5","v":0},{"$f":"'Population 2016'!R62/'Population 2016'!R$5","v":0},{"$f":"'Population 2016'!S62/'Population 2016'!S$5","v":0},{"$f":"'Population 2016'!T62/'Population 2016'!T$5","v":0},{"$f":"'Population 2016'!U62/'Population 2016'!U$5","v":0},{"$f":"'Population 2016'!V62/'Population 2016'!V$5","v":0},{"$f":"'Population 2016'!W62/'Population 2016'!W$5","v":0},{"$f":"'Population 2016'!X62/'Population 2016'!X$5","v":0},{"$f":"'Population 2016'!Y62/'Population 2016'!Y$5","v":0},{"$f":"'Population 2016'!Z62/'Population 2016'!Z$5","v":0},{"$f":"'Population 2016'!AA62/'Population 2016'!AA$5","v":0},{"$f":"'Population 2016'!AB62/'Population 2016'!AB$5","v":0},{"$f":"'Population 2016'!AC62/'Population 2016'!AC$5","v":0},{"$f":"'Population 2016'!AD62/'Population 2016'!AD$5","v":0},{"$f":"'Population 2016'!AE62/'Population 2016'!AE$5","v":0},{"$f":"'Population 2016'!AF62/'Population 2016'!AF$5","v":0},{"$f":"'Population 2016'!AG62/'Population 2016'!AG$5","v":0},{"$f":"'Population 2016'!AH62/'Population 2016'!AH$5","v":0},{"$f":"'Population 2016'!AI62/'Population 2016'!AI$5","v":0},{"$f":"'Population 2016'!AJ62/'Population 2016'!AJ$5","v":0},{"$f":"'Population 2016'!AK62/'Population 2016'!AK$5","v":0},{"$f":"'Population 2016'!AL62/'Population 2016'!AL$5","v":0},{"$f":"'Population 2016'!AM62/'Population 2016'!AM$5","v":0},{"$f":"'Population 2016'!AN62/'Population 2016'!AN$5","v":0},{"$f":"'Population 2016'!AO62/'Population 2016'!AO$5","v":0},{"$f":"'Population 2016'!AP62/'Population 2016'!AP$5","v":0},{"$f":"'Population 2016'!AQ62/'Population 2016'!AQ$5","v":0},{"$f":"'Population 2016'!AR62/'Population 2016'!AR$5","v":0},{"$f":"'Population 2016'!AS62/'Population 2016'!AS$5","v":0},{"$f":"'Population 2016'!AT62/'Population 2016'!AT$5","v":0},{"$f":"'Population 2016'!AU62/'Population 2016'!AU$5","v":0},{"$f":"'Population 2016'!AV62/'Population 2016'!AV$5","v":0},{"$f":"'Population 2016'!AW62/'Population 2016'!AW$5","v":0},{"$f":"'Population 2016'!AX62/'Population 2016'!AX$5","v":0},{"$f":"'Population 2016'!AY62/'Population 2016'!AY$5","v":0},{"$f":"'Population 2016'!AZ62/'Population 2016'!AZ$5","v":0},{"$f":"'Population 2016'!BA62/'Population 2016'!BA$5","v":0},{"$f":"'Population 2016'!BB62/'Population 2016'!BB$5","v":0},{"$f":"'Population 2016'!BC62/'Population 2016'!BC$5","v":0},60]
[null,"Female 16-19",{"$f":"'Population 2016'!C63/'Population 2016'!C$5","v":1.8757698578606001E-3},{"$f":"'Population 2016'!D63/'Population 2016'!D$5","v":1.1712293262130416E-3},{"$f":"'Population 2016'!E63/'Population 2016'!E$5","v":5.2503527580759332E-4},{"$f":"'Population 2016'!F63/'Population 2016'!F$5","v":2.286891578676281E-3},{"$f":"'Population 2016'!G63/'Population 2016'!G$5","v":1.9758566556596115E-3},{"$f":"'Population 2016'!H63/'Population 2016'!H$5","v":8.7869188393485363E-3},{"$f":"'Population 2016'!I63/'Population 2016'!I$5","v":1.7691148145046478E-3},{"$f":"'Population 2016'!J63/'Population 2016'!J$5","v":4.9260675219558311E-3},{"$f":"'Population 2016'!K63/'Population 2016'!K$5","v":6.4735623493833577E-3},{"$f":"'Population 2016'!L63/'Population 2016'!L$5","v":2.5018664718123042E-3},{"$f":"'Population 2016'!M63/'Population 2016'!M$5","v":2.5018664718123042E-3},{"$f":"'Population 2016'!N63/'Population 2016'!N$5","v":1.0118870608659311E-2},{"$f":"'Population 2016'!O63/'Population 2016'!O$5","v":8.6188961868814452E-3},{"$f":"'Population 2016'!P63/'Population 2016'!P$5","v":1.2735264284909275E-3},{"$f":"'Population 2016'!Q63/'Population 2016'!Q$5","v":9.7531168846429542E-4},{"$f":"'Population 2016'!R63/'Population 2016'!R$5","v":2.2222813647735135E-3},{"$f":"'Population 2016'!S63/'Population 2016'!S$5","v":3.9799036490835368E-3},{"$f":"'Population 2016'!T63/'Population 2016'!T$5","v":3.4992531514218043E-3},{"$f":"'Population 2016'!U63/'Population 2016'!U$5","v":0},{"$f":"'Population 2016'!V63/'Population 2016'!V$5","v":3.6177406675265795E-3},{"$f":"'Population 2016'!W63/'Population 2016'!W$5","v":5.9779446852182326E-3},{"$f":"'Population 2016'!X63/'Population 2016'!X$5","v":5.9779446852182326E-3},{"$f":"'Population 2016'!Y63/'Population 2016'!Y$5","v":4.2447655840129727E-3},{"$f":"'Population 2016'!Z63/'Population 2016'!Z$5","v":1.1651564221044828E-2},{"$f":"'Population 2016'!AA63/'Population 2016'!AA$5","v":8.525356491050436E-3},{"$f":"'Population 2016'!AB63/'Population 2016'!AB$5","v":1.0132749250278906E-3},{"$f":"'Population 2016'!AC63/'Population 2016'!AC$5","v":9.141100614164465E-3},{"$f":"'Population 2016'!AD63/'Population 2016'!AD$5","v":2.0432468644162416E-3},{"$f":"'Population 2016'!AE63/'Population 2016'!AE$5","v":2.0688097413731148E-3},{"$f":"'Population 2016'!AF63/'Population 2016'!AF$5","v":1.0375665445113031E-2},{"$f":"'Population 2016'!AG63/'Population 2016'!AG$5","v":2.0688097413731148E-3},{"$f":"'Population 2016'!AH63/'Population 2016'!AH$5","v":7.4194477211298217E-3},{"$f":"'Population 2016'!AI63/'Population 2016'!AI$5","v":3.4328790795345177E-3},{"$f":"'Population 2016'!AJ63/'Population 2016'!AJ$5","v":2.8580988762791737E-3},{"$f":"'Population 2016'!AK63/'Population 2016'!AK$5","v":2.0114906402826145E-4},{"$f":"'Population 2016'!AL63/'Population 2016'!AL$5","v":1.1980986502545183E-2},{"$f":"'Population 2016'!AM63/'Population 2016'!AM$5","v":9.196243267618285E-3},{"$f":"'Population 2016'!AN63/'Population 2016'!AN$5","v":0},{"$f":"'Population 2016'!AO63/'Population 2016'!AO$5","v":0},{"$f":"'Population 2016'!AP63/'Population 2016'!AP$5","v":1.45047001569361E-3},{"$f":"'Population 2016'!AQ63/'Population 2016'!AQ$5","v":7.1655614621581633E-3},{"$f":"'Population 2016'!AR63/'Population 2016'!AR$5","v":5.378295186022581E-3},{"$f":"'Population 2016'!AS63/'Population 2016'!AS$5","v":1.7691148145046478E-3},{"$f":"'Population 2016'!AT63/'Population 2016'!AT$5","v":0},{"$f":"'Population 2016'!AU63/'Population 2016'!AU$5","v":0},{"$f":"'Population 2016'!AV63/'Population 2016'!AV$5","v":5.1631295533734562E-3},{"$f":"'Population 2016'!AW63/'Population 2016'!AW$5","v":5.5486911953139297E-3},{"$f":"'Population 2016'!AX63/'Population 2016'!AX$5","v":4.089091071725213E-3},{"$f":"'Population 2016'!AY63/'Population 2016'!AY$5","v":5.344083718368471E-3},{"$f":"'Population 2016'!AZ63/'Population 2016'!AZ$5","v":4.786257917172426E-3},{"$f":"'Population 2016'!BA63/'Population 2016'!BA$5","v":1.0864284171885123E-2},{"$f":"'Population 2016'!BB63/'Population 2016'!BB$5","v":4.9646810244229162E-3},{"$f":"'Population 2016'!BC63/'Population 2016'!BC$5","v":0},61]
[null,"Female 20-24",{"$f":"'Population 2016'!C64/'Population 2016'!C$5","v":3.9968720132070555E-3},{"$f":"'Population 2016'!D64/'Population 2016'!D$5","v":2.4011423764952124E-3},{"$f":"'Population 2016'!E64/'Population 2016'!E$5","v":9.3756299251355948E-4},{"$f":"'Population 2016'!F64/'Population 2016'!F$5","v":3.2964202935874326E-3},{"$f":"'Population 2016'!G64/'Population 2016'!G$5","v":2.8149190710767065E-3},{"$f":"'Population 2016'!H64/'Population 2016'!H$5","v":1.315443901521661E-2},{"$f":"'Population 2016'!I64/'Population 2016'!I$5","v":2.271585294363956E-3},{"$f":"'Population 2016'!J64/'Population 2016'!J$5","v":7.9364421187066176E-3},{"$f":"'Population 2016'!K64/'Population 2016'!K$5","v":1.0442753862873884E-2},{"$f":"'Population 2016'!L64/'Population 2016'!L$5","v":3.9871014884119895E-3},{"$f":"'Population 2016'!M64/'Population 2016'!M$5","v":3.9871014884119895E-3},{"$f":"'Population 2016'!N64/'Population 2016'!N$5","v":1.7231817779956759E-2},{"$f":"'Population 2016'!O64/'Population 2016'!O$5","v":1.3502937359447598E-2},{"$f":"'Population 2016'!P64/'Population 2016'!P$5","v":1.9948157331229573E-3},{"$f":"'Population 2016'!Q64/'Population 2016'!Q$5","v":1.41008918814115E-3},{"$f":"'Population 2016'!R64/'Population 2016'!R$5","v":3.0473199552882311E-3},{"$f":"'Population 2016'!S64/'Population 2016'!S$5","v":5.5272026282016202E-3},{"$f":"'Population 2016'!T64/'Population 2016'!T$5","v":5.5280754572993394E-3},{"$f":"'Population 2016'!U64/'Population 2016'!U$5","v":0},{"$f":"'Population 2016'!V64/'Population 2016'!V$5","v":5.922714679326215E-3},{"$f":"'Population 2016'!W64/'Population 2016'!W$5","v":7.3474136973048585E-3},{"$f":"'Population 2016'!X64/'Population 2016'!X$5","v":7.3474136973048585E-3},{"$f":"'Population 2016'!Y64/'Population 2016'!Y$5","v":6.887807824994833E-3},{"$f":"'Population 2016'!Z64/'Population 2016'!Z$5","v":1.9838051194096592E-2},{"$f":"'Population 2016'!AA64/'Population 2016'!AA$5","v":1.3587951290131196E-2},{"$f":"'Population 2016'!AB64/'Population 2016'!AB$5","v":2.081819391420939E-3},{"$f":"'Population 2016'!AC64/'Population 2016'!AC$5","v":1.548236423324597E-2},{"$f":"'Population 2016'!AD64/'Population 2016'!AD$5","v":3.0183482824072353E-3},{"$f":"'Population 2016'!AE64/'Population 2016'!AE$5","v":3.0955143276625015E-3},{"$f":"'Population 2016'!AF64/'Population 2016'!AF$5","v":1.7086669984466663E-2},{"$f":"'Population 2016'!AG64/'Population 2016'!AG$5","v":3.0955143276625015E-3},{"$f":"'Population 2016'!AH64/'Population 2016'!AH$5","v":1.0185486193028245E-2},{"$f":"'Population 2016'!AI64/'Population 2016'!AI$5","v":5.1910162743897103E-3},{"$f":"'Population 2016'!AJ64/'Population 2016'!AJ$5","v":4.5450743105707831E-3},{"$f":"'Population 2016'!AK64/'Population 2016'!AK$5","v":4.4001357756182189E-4},{"$f":"'Population 2016'!AL64/'Population 2016'!AL$5","v":1.7257586775686846E-2},{"$f":"'Population 2016'!AM64/'Population 2016'!AM$5","v":1.2401708132463572E-2},{"$f":"'Population 2016'!AN64/'Population 2016'!AN$5","v":0},{"$f":"'Population 2016'!AO64/'Population 2016'!AO$5","v":0},{"$f":"'Population 2016'!AP64/'Population 2016'!AP$5","v":2.5838974050061032E-3},{"$f":"'Population 2016'!AQ64/'Population 2016'!AQ$5","v":1.3187099249191647E-2},{"$f":"'Population 2016'!AR64/'Population 2016'!AR$5","v":8.3817818771814104E-3},{"$f":"'Population 2016'!AS64/'Population 2016'!AS$5","v":2.271585294363956E-3},{"$f":"'Population 2016'!AT64/'Population 2016'!AT$5","v":0},{"$f":"'Population 2016'!AU64/'Population 2016'!AU$5","v":0},{"$f":"'Population 2016'!AV64/'Population 2016'!AV$5","v":7.8977932636469222E-3},{"$f":"'Population 2016'!AW64/'Population 2016'!AW$5","v":7.8520654097260362E-3},{"$f":"'Population 2016'!AX64/'Population 2016'!AX$5","v":6.5808809435577648E-3},{"$f":"'Population 2016'!AY64/'Population 2016'!AY$5","v":7.707842477280377E-3},{"$f":"'Population 2016'!AZ64/'Population 2016'!AZ$5","v":8.0250358106436718E-3},{"$f":"'Population 2016'!BA64/'Population 2016'!BA$5","v":1.6964478514359751E-2},{"$f":"'Population 2016'!BB64/'Population 2016'!BB$5","v":6.7323560484177239E-3},{"$f":"'Population 2016'!BC64/'Population 2016'!BC$5","v":0},62]
[null,"Female 25-29",{"$f":"'Population 2016'!C65/'Population 2016'!C$5","v":5.2695333064149289E-3},{"$f":"'Population 2016'!D65/'Population 2016'!D$5","v":3.1029019101552185E-3},{"$f":"'Population 2016'!E65/'Population 2016'!E$5","v":1.1156999610911359E-3},{"$f":"'Population 2016'!F65/'Population 2016'!F$5","v":3.0800927118207573E-3},{"$f":"'Population 2016'!G65/'Population 2016'!G$5","v":2.3277215395441997E-3},{"$f":"'Population 2016'!H65/'Population 2016'!H$5","v":1.3173893448071254E-2},{"$f":"'Population 2016'!I65/'Population 2016'!I$5","v":2.1354995394020602E-3},{"$f":"'Population 2016'!J65/'Population 2016'!J$5","v":8.4091455677831866E-3},{"$f":"'Population 2016'!K65/'Population 2016'!K$5","v":1.0111987903416339E-2},{"$f":"'Population 2016'!L65/'Population 2016'!L$5","v":4.0029863548996869E-3},{"$f":"'Population 2016'!M65/'Population 2016'!M$5","v":4.0029863548996869E-3},{"$f":"'Population 2016'!N65/'Population 2016'!N$5","v":2.2447979038908224E-2},{"$f":"'Population 2016'!O65/'Population 2016'!O$5","v":1.3889301671273318E-2},{"$f":"'Population 2016'!P65/'Population 2016'!P$5","v":2.1638679138960893E-3},{"$f":"'Population 2016'!Q65/'Population 2016'!Q$5","v":1.6098518231278129E-3},{"$f":"'Population 2016'!R65/'Population 2016'!R$5","v":2.9275562889231914E-3},{"$f":"'Population 2016'!S65/'Population 2016'!S$5","v":7.1009813388505328E-3},{"$f":"'Population 2016'!T65/'Population 2016'!T$5","v":8.3246860211351175E-3},{"$f":"'Population 2016'!U65/'Population 2016'!U$5","v":0},{"$f":"'Population 2016'!V65/'Population 2016'!V$5","v":6.8080689355141544E-3},{"$f":"'Population 2016'!W65/'Population 2016'!W$5","v":9.01430915354395E-3},{"$f":"'Population 2016'!X65/'Population 2016'!X$5","v":9.01430915354395E-3},{"$f":"'Population 2016'!Y65/'Population 2016'!Y$5","v":7.5753962576111666E-3},{"$f":"'Population 2016'!Z65/'Population 2016'!Z$5","v":2.7408954611359646E-2},{"$f":"'Population 2016'!AA65/'Population 2016'!AA$5","v":1.6648761557764406E-2},{"$f":"'Population 2016'!AB65/'Population 2016'!AB$5","v":2.6447499053253226E-3},{"$f":"'Population 2016'!AC65/'Population 2016'!AC$5","v":1.9863638526253512E-2},{"$f":"'Population 2016'!AD65/'Population 2016'!AD$5","v":2.8545907923629463E-3},{"$f":"'Population 2016'!AE65/'Population 2016'!AE$5","v":3.0544461442109263E-3},{"$f":"'Population 2016'!AF65/'Population 2016'!AF$5","v":1.7237479075238656E-2},{"$f":"'Population 2016'!AG65/'Population 2016'!AG$5","v":3.0544461442109263E-3},{"$f":"'Population 2016'!AH65/'Population 2016'!AH$5","v":1.0874673750499242E-2},{"$f":"'Population 2016'!AI65/'Population 2016'!AI$5","v":6.9491534692449029E-3},{"$f":"'Population 2016'!AJ65/'Population 2016'!AJ$5","v":4.6984357136882022E-3},{"$f":"'Population 2016'!AK65/'Population 2016'!AK$5","v":2.8915177954062581E-4},{"$f":"'Population 2016'!AL65/'Population 2016'!AL$5","v":1.7293059718699561E-2},{"$f":"'Population 2016'!AM65/'Population 2016'!AM$5","v":1.3470196420745335E-2},{"$f":"'Population 2016'!AN65/'Population 2016'!AN$5","v":0},{"$f":"'Population 2016'!AO65/'Population 2016'!AO$5","v":0},{"$f":"'Population 2016'!AP65/'Population 2016'!AP$5","v":3.1783523294706974E-3},{"$f":"'Population 2016'!AQ65/'Population 2016'!AQ$5","v":1.4968213952978572E-2},{"$f":"'Population 2016'!AR65/'Population 2016'!AR$5","v":1.0053727257477139E-2},{"$f":"'Population 2016'!AS65/'Population 2016'!AS$5","v":2.1354995394020602E-3},{"$f":"'Population 2016'!AT65/'Population 2016'!AT$5","v":0},{"$f":"'Population 2016'!AU65/'Population 2016'!AU$5","v":0},{"$f":"'Population 2016'!AV65/'Population 2016'!AV$5","v":7.5071270193221417E-3},{"$f":"'Population 2016'!AW65/'Population 2016'!AW$5","v":8.1418939532613335E-3},{"$f":"'Population 2016'!AX65/'Population 2016'!AX$5","v":7.4881480250967962E-3},{"$f":"'Population 2016'!AY65/'Population 2016'!AY$5","v":9.563660842691472E-3},{"$f":"'Population 2016'!AZ65/'Population 2016'!AZ$5","v":1.0047114726372167E-2},{"$f":"'Population 2016'!BA65/'Population 2016'!BA$5","v":1.7625782768300582E-2},{"$f":"'Population 2016'!BB65/'Population 2016'!BB$5","v":7.1190349599165878E-3},{"$f":"'Population 2016'!BC65/'Population 2016'!BC$5","v":0},63]
[null,"Female 30-34",{"$f":"'Population 2016'!C66/'Population 2016'!C$5","v":4.6306471150455147E-3},{"$f":"'Population 2016'!D66/'Population 2016'!D$5","v":2.7899220484531948E-3},{"$f":"'Population 2016'!E66/'Population 2016'!E$5","v":1.1016365162034325E-3},{"$f":"'Population 2016'!F66/'Population 2016'!F$5","v":3.4200360545969611E-3},{"$f":"'Population 2016'!G66/'Population 2016'!G$5","v":2.7201862177231636E-3},{"$f":"'Population 2016'!H66/'Population 2016'!H$5","v":1.169211414564237E-2},{"$f":"'Population 2016'!I66/'Population 2016'!I$5","v":2.1669039443932667E-3},{"$f":"'Population 2016'!J66/'Population 2016'!J$5","v":7.3559291110687243E-3},{"$f":"'Population 2016'!K66/'Population 2016'!K$5","v":9.6630912441525302E-3},{"$f":"'Population 2016'!L66/'Population 2016'!L$5","v":3.4152462948548916E-3},{"$f":"'Population 2016'!M66/'Population 2016'!M$5","v":3.4152462948548916E-3},{"$f":"'Population 2016'!N66/'Population 2016'!N$5","v":1.7995354481960442E-2},{"$f":"'Population 2016'!O66/'Population 2016'!O$5","v":1.2343844423970438E-2},{"$f":"'Population 2016'!P66/'Population 2016'!P$5","v":1.8595739885044517E-3},{"$f":"'Population 2016'!Q66/'Population 2016'!Q$5","v":1.4570921610791883E-3},{"$f":"'Population 2016'!R66/'Population 2016'!R$5","v":2.8477138446798317E-3},{"$f":"'Population 2016'!S66/'Population 2016'!S$5","v":6.7858725336336721E-3},{"$f":"'Population 2016'!T66/'Population 2016'!T$5","v":8.1967213114754103E-3},{"$f":"'Population 2016'!U66/'Population 2016'!U$5","v":0},{"$f":"'Population 2016'!V66/'Population 2016'!V$5","v":6.6706863785194739E-3},{"$f":"'Population 2016'!W66/'Population 2016'!W$5","v":7.9520718529994313E-3},{"$f":"'Population 2016'!X66/'Population 2016'!X$5","v":7.9520718529994313E-3},{"$f":"'Population 2016'!Y66/'Population 2016'!Y$5","v":6.9990938140888064E-3},{"$f":"'Population 2016'!Z66/'Population 2016'!Z$5","v":2.3208274372172526E-2},{"$f":"'Population 2016'!AA66/'Population 2016'!AA$5","v":1.514393515095103E-2},{"$f":"'Population 2016'!AB66/'Population 2016'!AB$5","v":2.403201539359078E-3},{"$f":"'Population 2016'!AC66/'Population 2016'!AC$5","v":1.7261351906516266E-2},{"$f":"'Population 2016'!AD66/'Population 2016'!AD$5","v":3.1858275335888944E-3},{"$f":"'Population 2016'!AE66/'Population 2016'!AE$5","v":3.3624575200977423E-3},{"$f":"'Population 2016'!AF66/'Population 2016'!AF$5","v":1.6860456348308676E-2},{"$f":"'Population 2016'!AG66/'Population 2016'!AG$5","v":3.3624575200977423E-3},{"$f":"'Population 2016'!AH66/'Population 2016'!AH$5","v":1.1340943499623826E-2},{"$f":"'Population 2016'!AI66/'Population 2016'!AI$5","v":6.9013037011112083E-3},{"$f":"'Population 2016'!AJ66/'Population 2016'!AJ$5","v":4.1268159384323672E-3},{"$f":"'Population 2016'!AK66/'Population 2016'!AK$5","v":4.1486994455828922E-4},{"$f":"'Population 2016'!AL66/'Population 2016'!AL$5","v":1.5013923130132492E-2},{"$f":"'Population 2016'!AM66/'Population 2016'!AM$5","v":1.3618698182845512E-2},{"$f":"'Population 2016'!AN66/'Population 2016'!AN$5","v":0},{"$f":"'Population 2016'!AO66/'Population 2016'!AO$5","v":0},{"$f":"'Population 2016'!AP66/'Population 2016'!AP$5","v":2.8533836374300525E-3},{"$f":"'Population 2016'!AQ66/'Population 2016'!AQ$5","v":1.2769222337918561E-2},{"$f":"'Population 2016'!AR66/'Population 2016'!AR$5","v":9.187345434163335E-3},{"$f":"'Population 2016'!AS66/'Population 2016'!AS$5","v":2.1669039443932667E-3},{"$f":"'Population 2016'!AT66/'Population 2016'!AT$5","v":0},{"$f":"'Population 2016'!AU66/'Population 2016'!AU$5","v":0},{"$f":"'Population 2016'!AV66/'Population 2016'!AV$5","v":7.0425509449899698E-3},{"$f":"'Population 2016'!AW66/'Population 2016'!AW$5","v":8.9427359814509728E-3},{"$f":"'Population 2016'!AX66/'Population 2016'!AX$5","v":6.1080797883895374E-3},{"$f":"'Population 2016'!AY66/'Population 2016'!AY$5","v":8.2066032251155111E-3},{"$f":"'Population 2016'!AZ66/'Population 2016'!AZ$5","v":8.4306021365579218E-3},{"$f":"'Population 2016'!BA66/'Population 2016'!BA$5","v":1.8071150939321962E-2},{"$f":"'Population 2016'!BB66/'Population 2016'!BB$5","v":7.6300035215400869E-3},{"$f":"'Population 2016'!BC66/'Population 2016'!BC$5","v":0},64]
[null,"Female 35-39",{"$f":"'Population 2016'!C67/'Population 2016'!C$5","v":3.3119860160590433E-3},{"$f":"'Population 2016'!D67/'Population 2016'!D$5","v":2.005027239028589E-3},{"$f":"'Population 2016'!E67/'Population 2016'!E$5","v":8.0630417356166112E-4},{"$f":"'Population 2016'!F67/'Population 2016'!F$5","v":3.0697913984032966E-3},{"$f":"'Population 2016'!G67/'Population 2016'!G$5","v":2.3953878633681588E-3},{"$f":"'Population 2016'!H67/'Population 2016'!H$5","v":1.0502151336033176E-2},{"$f":"'Population 2016'!I67/'Population 2016'!I$5","v":2.0098819194372332E-3},{"$f":"'Population 2016'!J67/'Population 2016'!J$5","v":6.4188152558818405E-3},{"$f":"'Population 2016'!K67/'Population 2016'!K$5","v":9.9702310636488219E-3},{"$f":"'Population 2016'!L67/'Population 2016'!L$5","v":2.8672184010293394E-3},{"$f":"'Population 2016'!M67/'Population 2016'!M$5","v":2.8672184010293394E-3},{"$f":"'Population 2016'!N67/'Population 2016'!N$5","v":1.4089261459078451E-2},{"$f":"'Population 2016'!O67/'Population 2016'!O$5","v":1.0847921062799061E-2},{"$f":"'Population 2016'!P67/'Population 2016'!P$5","v":1.7017919531161952E-3},{"$f":"'Population 2016'!Q67/'Population 2016'!Q$5","v":1.7038577690038895E-3},{"$f":"'Population 2016'!R67/'Population 2016'!R$5","v":2.8610209187203916E-3},{"$f":"'Population 2016'!S67/'Population 2016'!S$5","v":5.8228929636292065E-3},{"$f":"'Population 2016'!T67/'Population 2016'!T$5","v":6.5657529210853272E-3},{"$f":"'Population 2016'!U67/'Population 2016'!U$5","v":0},{"$f":"'Population 2016'!V67/'Population 2016'!V$5","v":5.2663313514627426E-3},{"$f":"'Population 2016'!W67/'Population 2016'!W$5","v":7.2264820661659445E-3},{"$f":"'Population 2016'!X67/'Population 2016'!X$5","v":7.2264820661659445E-3},{"$f":"'Population 2016'!Y67/'Population 2016'!Y$5","v":5.818667429770592E-3},{"$f":"'Population 2016'!Z67/'Population 2016'!Z$5","v":1.9237954017069861E-2},{"$f":"'Population 2016'!AA67/'Population 2016'!AA$5","v":1.2946822158751545E-2},{"$f":"'Population 2016'!AB67/'Population 2016'!AB$5","v":1.7276849226738175E-3},{"$f":"'Population 2016'!AC67/'Population 2016'!AC$5","v":1.4532881277395894E-2},{"$f":"'Population 2016'!AD67/'Population 2016'!AD$5","v":2.6015110350217723E-3},{"$f":"'Population 2016'!AE67/'Population 2016'!AE$5","v":2.6796989702152999E-3},{"$f":"'Population 2016'!AF67/'Population 2016'!AF$5","v":1.4975342713658779E-2},{"$f":"'Population 2016'!AG67/'Population 2016'!AG$5","v":2.6796989702152999E-3},{"$f":"'Population 2016'!AH67/'Population 2016'!AH$5","v":1.0098176718092567E-2},{"$f":"'Population 2016'!AI67/'Population 2016'!AI$5","v":5.7337693586490502E-3},{"$f":"'Population 2016'!AJ67/'Population 2016'!AJ$5","v":3.9037448066252126E-3},{"$f":"'Population 2016'!AK67/'Population 2016'!AK$5","v":3.0172359604239214E-4},{"$f":"'Population 2016'!AL67/'Population 2016'!AL$5","v":1.4029548961529593E-2},{"$f":"'Population 2016'!AM67/'Population 2016'!AM$5","v":1.2188010474807219E-2},{"$f":"'Population 2016'!AN67/'Population 2016'!AN$5","v":0},{"$f":"'Population 2016'!AO67/'Population 2016'!AO$5","v":0},{"$f":"'Population 2016'!AP67/'Population 2016'!AP$5","v":2.3461154352202654E-3},{"$f":"'Population 2016'!AQ67/'Population 2016'!AQ$5","v":1.1268975722036499E-2},{"$f":"'Population 2016'!AR67/'Population 2016'!AR$5","v":7.8056791785212163E-3},{"$f":"'Population 2016'!AS67/'Population 2016'!AS$5","v":2.0098819194372332E-3},{"$f":"'Population 2016'!AT67/'Population 2016'!AT$5","v":0},{"$f":"'Population 2016'!AU67/'Population 2016'!AU$5","v":0},{"$f":"'Population 2016'!AV67/'Population 2016'!AV$5","v":5.9339034948791046E-3},{"$f":"'Population 2016'!AW67/'Population 2016'!AW$5","v":7.8978278113368723E-3},{"$f":"'Population 2016'!AX67/'Population 2016'!AX$5","v":4.4980001788977346E-3},{"$f":"'Population 2016'!AY67/'Population 2016'!AY$5","v":6.9734708240261926E-3},{"$f":"'Population 2016'!AZ67/'Population 2016'!AZ$5","v":6.7508096944733677E-3},{"$f":"'Population 2016'!BA67/'Population 2016'!BA$5","v":1.4967069747354783E-2},{"$f":"'Population 2016'!BB67/'Population 2016'!BB$5","v":6.539016592668292E-3},{"$f":"'Population 2016'!BC67/'Population 2016'!BC$5","v":0},65]
[null,"Female 40-44",{"$f":"'Population 2016'!C68/'Population 2016'!C$5","v":3.3784301799614624E-3},{"$f":"'Population 2016'!D68/'Population 2016'!D$5","v":2.0270336355545124E-3},{"$f":"'Population 2016'!E68/'Population 2016'!E$5","v":7.8755291371139003E-4},{"$f":"'Population 2016'!F68/'Population 2016'!F$5","v":2.6268349214524853E-3},{"$f":"'Population 2016'!G68/'Population 2016'!G$5","v":2.8149190710767065E-3},{"$f":"'Population 2016'!H68/'Population 2016'!H$5","v":1.192232493442235E-2},{"$f":"'Population 2016'!I68/'Population 2016'!I$5","v":2.439075454317059E-3},{"$f":"'Population 2016'!J68/'Population 2016'!J$5","v":6.4188152558818405E-3},{"$f":"'Population 2016'!K68/'Population 2016'!K$5","v":9.6158389642300238E-3},{"$f":"'Population 2016'!L68/'Population 2016'!L$5","v":2.8989881340047339E-3},{"$f":"'Population 2016'!M68/'Population 2016'!M$5","v":2.8989881340047339E-3},{"$f":"'Population 2016'!N68/'Population 2016'!N$5","v":1.1645944012666672E-2},{"$f":"'Population 2016'!O68/'Population 2016'!O$5","v":1.220514954280223E-2},{"$f":"'Population 2016'!P68/'Population 2016'!P$5","v":1.9835455877380819E-3},{"$f":"'Population 2016'!Q68/'Population 2016'!Q$5","v":1.2455787828580158E-3},{"$f":"'Population 2016'!R68/'Population 2016'!R$5","v":2.6747218821525521E-3},{"$f":"'Population 2016'!S68/'Population 2016'!S$5","v":5.3745028430405087E-3},{"$f":"'Population 2016'!T68/'Population 2016'!T$5","v":5.0836889201174486E-3},{"$f":"'Population 2016'!U68/'Population 2016'!U$5","v":0},{"$f":"'Population 2016'!V68/'Population 2016'!V$5","v":6.0448325077659308E-3},{"$f":"'Population 2016'!W68/'Population 2016'!W$5","v":7.4356611038116343E-3},{"$f":"'Population 2016'!X68/'Population 2016'!X$5","v":7.4356611038116343E-3},{"$f":"'Population 2016'!Y68/'Population 2016'!Y$5","v":6.2240663900414933E-3},{"$f":"'Population 2016'!Z68/'Population 2016'!Z$5","v":1.7224724778012439E-2},{"$f":"'Population 2016'!AA68/'Population 2016'!AA$5","v":1.2243241070532842E-2},{"$f":"'Population 2016'!AB68/'Population 2016'!AB$5","v":1.7542961833311157E-3},{"$f":"'Population 2016'!AC68/'Population 2016'!AC$5","v":1.3306207218966491E-2},{"$f":"'Population 2016'!AD68/'Population 2016'!AD$5","v":2.7317726748297294E-3},{"$f":"'Population 2016'!AE68/'Population 2016'!AE$5","v":2.7002330619410875E-3},{"$f":"'Population 2016'!AF68/'Population 2016'!AF$5","v":1.5065828168121975E-2},{"$f":"'Population 2016'!AG68/'Population 2016'!AG$5","v":2.7002330619410875E-3},{"$f":"'Population 2016'!AH68/'Population 2016'!AH$5","v":1.0334098065259189E-2},{"$f":"'Population 2016'!AI68/'Population 2016'!AI$5","v":4.8957148481931926E-3},{"$f":"'Population 2016'!AJ68/'Population 2016'!AJ$5","v":3.959512589577001E-3},{"$f":"'Population 2016'!AK68/'Population 2016'!AK$5","v":3.5201086204945752E-4},{"$f":"'Population 2016'!AL68/'Population 2016'!AL$5","v":1.6290949078590307E-2},{"$f":"'Population 2016'!AM68/'Population 2016'!AM$5","v":1.2550209894563749E-2},{"$f":"'Population 2016'!AN68/'Population 2016'!AN$5","v":0},{"$f":"'Population 2016'!AO68/'Population 2016'!AO$5","v":0},{"$f":"'Population 2016'!AP68/'Population 2016'!AP$5","v":1.9260339552652854E-3},{"$f":"'Population 2016'!AQ68/'Population 2016'!AQ$5","v":1.017975557625911E-2},{"$f":"'Population 2016'!AR68/'Population 2016'!AR$5","v":7.4993600715383213E-3},{"$f":"'Population 2016'!AS68/'Population 2016'!AS$5","v":2.439075454317059E-3},{"$f":"'Population 2016'!AT68/'Population 2016'!AT$5","v":0},{"$f":"'Population 2016'!AU68/'Population 2016'!AU$5","v":0},{"$f":"'Population 2016'!AV68/'Population 2016'!AV$5","v":6.4195966634991025E-3},{"$f":"'Population 2016'!AW68/'Population 2016'!AW$5","v":8.0007932149612545E-3},{"$f":"'Population 2016'!AX68/'Population 2016'!AX$5","v":4.6896763228848537E-3},{"$f":"'Population 2016'!AY68/'Population 2016'!AY$5","v":6.4594106667482639E-3},{"$f":"'Population 2016'!AZ68/'Population 2016'!AZ$5","v":5.6002669259223037E-3},{"$f":"'Population 2016'!BA68/'Population 2016'!BA$5","v":1.4913085726624919E-2},{"$f":"'Population 2016'!BB68/'Population 2016'!BB$5","v":6.9464104458545946E-3},{"$f":"'Population 2016'!BC68/'Population 2016'!BC$5","v":0},66]
[null,"Female 45-49",{"$f":"'Population 2016'!C69/'Population 2016'!C$5","v":3.0359871813874562E-3},{"$f":"'Population 2016'!D69/'Population 2016'!D$5","v":1.9316725839421769E-3},{"$f":"'Population 2016'!E69/'Population 2016'!E$5","v":9.1881173266328828E-4},{"$f":"'Population 2016'!F69/'Population 2016'!F$5","v":3.1315992789080608E-3},{"$f":"'Population 2016'!G69/'Population 2016'!G$5","v":3.2344502787852543E-3},{"$f":"'Population 2016'!H69/'Population 2016'!H$5","v":1.4211463200319052E-2},{"$f":"'Population 2016'!I69/'Population 2016'!I$5","v":2.3762666443346452E-3},{"$f":"'Population 2016'!J69/'Population 2016'!J$5","v":8.1437681928630077E-3},{"$f":"'Population 2016'!K69/'Population 2016'!K$5","v":1.1151538061711477E-2},{"$f":"'Population 2016'!L69/'Population 2016'!L$5","v":3.6376344256826522E-3},{"$f":"'Population 2016'!M69/'Population 2016'!M$5","v":3.6376344256826522E-3},{"$f":"'Population 2016'!N69/'Population 2016'!N$5","v":1.3237315244211185E-2},{"$f":"'Population 2016'!O69/'Population 2016'!O$5","v":1.5127648824560882E-2},{"$f":"'Population 2016'!P69/'Population 2016'!P$5","v":2.378000676208723E-3},{"$f":"'Population 2016'!Q69/'Population 2016'!Q$5","v":1.7978637148799662E-3},{"$f":"'Population 2016'!R69/'Population 2016'!R$5","v":3.2735402139777506E-3},{"$f":"'Population 2016'!S69/'Population 2016'!S$5","v":6.0197256346750322E-3},{"$f":"'Population 2016'!T69/'Population 2016'!T$5","v":5.4187237963174081E-3},{"$f":"'Population 2016'!U69/'Population 2016'!U$5","v":0},{"$f":"'Population 2016'!V69/'Population 2016'!V$5","v":6.0219354149334842E-3},{"$f":"'Population 2016'!W69/'Population 2016'!W$5","v":9.0208459984703789E-3},{"$f":"'Population 2016'!X69/'Population 2016'!X$5","v":9.0208459984703789E-3},{"$f":"'Population 2016'!Y69/'Population 2016'!Y$5","v":7.038838810193797E-3},{"$f":"'Population 2016'!Z69/'Population 2016'!Z$5","v":2.0217467473765106E-2},{"$f":"'Population 2016'!AA69/'Population 2016'!AA$5","v":1.4555292238616967E-2},{"$f":"'Population 2016'!AB69/'Population 2016'!AB$5","v":1.6744624013592213E-3},{"$f":"'Population 2016'!AC69/'Population 2016'!AC$5","v":1.6027437781974716E-2},{"$f":"'Population 2016'!AD69/'Population 2016'!AD$5","v":3.159775205627303E-3},{"$f":"'Population 2016'!AE69/'Population 2016'!AE$5","v":3.1314489881826301E-3},{"$f":"'Population 2016'!AF69/'Population 2016'!AF$5","v":2.0253660890678489E-2},{"$f":"'Population 2016'!AG69/'Population 2016'!AG$5","v":3.1314489881826301E-3},{"$f":"'Population 2016'!AH69/'Population 2016'!AH$5","v":1.191124155931007E-2},{"$f":"'Population 2016'!AI69/'Population 2016'!AI$5","v":5.240233178755797E-3},{"$f":"'Population 2016'!AJ69/'Population 2016'!AJ$5","v":4.3498870702395227E-3},{"$f":"'Population 2016'!AK69/'Population 2016'!AK$5","v":3.5201086204945752E-4},{"$f":"'Population 2016'!AL69/'Population 2016'!AL$5","v":1.8818396268246395E-2},{"$f":"'Population 2016'!AM69/'Population 2016'!AM$5","v":1.4430024883100138E-2},{"$f":"'Population 2016'!AN69/'Population 2016'!AN$5","v":0},{"$f":"'Population 2016'!AO69/'Population 2016'!AO$5","v":0},{"$f":"'Population 2016'!AP69/'Population 2016'!AP$5","v":1.8943296926271736E-3},{"$f":"'Population 2016'!AQ69/'Population 2016'!AQ$5","v":1.2858278073107908E-2},{"$f":"'Population 2016'!AR69/'Population 2016'!AR$5","v":8.732210935569841E-3},{"$f":"'Population 2016'!AS69/'Population 2016'!AS$5","v":2.3762666443346452E-3},{"$f":"'Population 2016'!AT69/'Population 2016'!AT$5","v":0},{"$f":"'Population 2016'!AU69/'Population 2016'!AU$5","v":0},{"$f":"'Population 2016'!AV69/'Population 2016'!AV$5","v":7.7499736036321402E-3},{"$f":"'Population 2016'!AW69/'Population 2016'!AW$5","v":9.2592592592592587E-3},{"$f":"'Population 2016'!AX69/'Population 2016'!AX$5","v":6.5169888955620581E-3},{"$f":"'Population 2016'!AY69/'Population 2016'!AY$5","v":7.5732076741837767E-3},{"$f":"'Population 2016'!AZ69/'Population 2016'!AZ$5","v":6.2992216578170749E-3},{"$f":"'Population 2016'!BA69/'Population 2016'!BA$5","v":1.8557007125890736E-2},{"$f":"'Population 2016'!BB69/'Population 2016'!BB$5","v":7.1742748044164254E-3},{"$f":"'Population 2016'!BC69/'Population 2016'!BC$5","v":0},67]
[null,"Female 50-54",{"$f":"'Population 2016'!C70/'Population 2016'!C$5","v":3.2046531359089816E-3},{"$f":"'Population 2016'!D70/'Population 2016'!D$5","v":1.9854659976722123E-3},{"$f":"'Population 2016'!E70/'Population 2016'!E$5","v":8.6724576807504258E-4},{"$f":"'Population 2016'!F70/'Population 2016'!F$5","v":2.8740664434715427E-3},{"$f":"'Population 2016'!G70/'Population 2016'!G$5","v":3.1532506901965031E-3},{"$f":"'Population 2016'!H70/'Population 2016'!H$5","v":1.4474098043856777E-2},{"$f":"'Population 2016'!I70/'Population 2016'!I$5","v":2.3029896993551628E-3},{"$f":"'Population 2016'!J70/'Population 2016'!J$5","v":7.5052038844613256E-3},{"$f":"'Population 2016'!K70/'Population 2016'!K$5","v":1.0797145962292681E-2},{"$f":"'Population 2016'!L70/'Population 2016'!L$5","v":3.7567709243403811E-3},{"$f":"'Population 2016'!M70/'Population 2016'!M$5","v":3.7567709243403811E-3},{"$f":"'Population 2016'!N70/'Population 2016'!N$5","v":1.4997468273040725E-2},{"$f":"'Population 2016'!O70/'Population 2016'!O$5","v":1.5514013136386602E-2},{"$f":"'Population 2016'!P70/'Population 2016'!P$5","v":2.3892708215935985E-3},{"$f":"'Population 2016'!Q70/'Population 2016'!Q$5","v":1.4688429043136979E-3},{"$f":"'Population 2016'!R70/'Population 2016'!R$5","v":3.4332251024644703E-3},{"$f":"'Population 2016'!S70/'Population 2016'!S$5","v":5.7893519703568234E-3},{"$f":"'Population 2016'!T70/'Population 2016'!T$5","v":4.8696388603230297E-3},{"$f":"'Population 2016'!U70/'Population 2016'!U$5","v":0},{"$f":"'Population 2016'!V70/'Population 2016'!V$5","v":6.4111859930850784E-3},{"$f":"'Population 2016'!W70/'Population 2016'!W$5","v":9.040456533249662E-3},{"$f":"'Population 2016'!X70/'Population 2016'!X$5","v":9.040456533249662E-3},{"$f":"'Population 2016'!Y70/'Population 2016'!Y$5","v":6.9355018203208219E-3},{"$f":"'Population 2016'!Z70/'Population 2016'!Z$5","v":2.1208595714531837E-2},{"$f":"'Population 2016'!AA70/'Population 2016'!AA$5","v":1.4898778001231764E-2},{"$f":"'Population 2016'!AB70/'Population 2016'!AB$5","v":1.7174498224210106E-3},{"$f":"'Population 2016'!AC70/'Population 2016'!AC$5","v":1.6512522211488537E-2},{"$f":"'Population 2016'!AD70/'Population 2016'!AD$5","v":2.9588001042093119E-3},{"$f":"'Population 2016'!AE70/'Population 2016'!AE$5","v":2.8850398874731772E-3},{"$f":"'Population 2016'!AF70/'Population 2016'!AF$5","v":1.9952042709134508E-2},{"$f":"'Population 2016'!AG70/'Population 2016'!AG$5","v":2.8850398874731772E-3},{"$f":"'Population 2016'!AH70/'Population 2016'!AH$5","v":1.2000408682648634E-2},{"$f":"'Population 2016'!AI70/'Population 2016'!AI$5","v":4.8847777583340621E-3},{"$f":"'Population 2016'!AJ70/'Population 2016'!AJ$5","v":4.4195967989292583E-3},{"$f":"'Population 2016'!AK70/'Population 2016'!AK$5","v":3.3943904554769119E-4},{"$f":"'Population 2016'!AL70/'Population 2016'!AL$5","v":1.9527855128500735E-2},{"$f":"'Population 2016'!AM70/'Population 2016'!AM$5","v":1.4640100546558924E-2},{"$f":"'Population 2016'!AN70/'Population 2016'!AN$5","v":0},{"$f":"'Population 2016'!AO70/'Population 2016'!AO$5","v":0},{"$f":"'Population 2016'!AP70/'Population 2016'!AP$5","v":2.0528510058177322E-3},{"$f":"'Population 2016'!AQ70/'Population 2016'!AQ$5","v":1.231709322080342E-2},{"$f":"'Population 2016'!AR70/'Population 2016'!AR$5","v":8.845159144471898E-3},{"$f":"'Population 2016'!AS70/'Population 2016'!AS$5","v":2.3029896993551628E-3},{"$f":"'Population 2016'!AT70/'Population 2016'!AT$5","v":0},{"$f":"'Population 2016'!AU70/'Population 2016'!AU$5","v":0},{"$f":"'Population 2016'!AV70/'Population 2016'!AV$5","v":7.3487488121634463E-3},{"$f":"'Population 2016'!AW70/'Population 2016'!AW$5","v":9.221123924583562E-3},{"$f":"'Population 2016'!AX70/'Population 2016'!AX$5","v":5.7247275004152984E-3},{"$f":"'Population 2016'!AY70/'Population 2016'!AY$5","v":7.9097946819252779E-3},{"$f":"'Population 2016'!AZ70/'Population 2016'!AZ$5","v":6.9147620389918944E-3},{"$f":"'Population 2016'!BA70/'Population 2016'!BA$5","v":1.9137335348736774E-2},{"$f":"'Population 2016'!BB70/'Population 2016'!BB$5","v":7.1673698238539458E-3},{"$f":"'Population 2016'!BC70/'Population 2016'!BC$5","v":0},68]
[null,"Female 55-59",{"$f":"'Population 2016'!C71/'Population 2016'!C$5","v":2.7650994362468247E-3},{"$f":"'Population 2016'!D71/'Population 2016'!D$5","v":1.7116086186829416E-3},{"$f":"'Population 2016'!E71/'Population 2016'!E$5","v":7.4536257904827977E-4},{"$f":"'Population 2016'!F71/'Population 2016'!F$5","v":2.6783414885397888E-3},{"$f":"'Population 2016'!G71/'Population 2016'!G$5","v":3.0179180425485845E-3},{"$f":"'Population 2016'!H71/'Population 2016'!H$5","v":1.2687532626705101E-2},{"$f":"'Population 2016'!I71/'Population 2016'!I$5","v":2.0412863244284396E-3},{"$f":"'Population 2016'!J71/'Population 2016'!J$5","v":6.9246908768234331E-3},{"$f":"'Population 2016'!K71/'Population 2016'!K$5","v":9.8993526437650622E-3},{"$f":"'Population 2016'!L71/'Population 2016'!L$5","v":3.0498943656378568E-3},{"$f":"'Population 2016'!M71/'Population 2016'!M$5","v":3.0498943656378568E-3},{"$f":"'Population 2016'!N71/'Population 2016'!N$5","v":1.3414134269938354E-2},{"$f":"'Population 2016'!O71/'Population 2016'!O$5","v":1.256179352294905E-2},{"$f":"'Population 2016'!P71/'Population 2016'!P$5","v":2.3892708215935985E-3},{"$f":"'Population 2016'!Q71/'Population 2016'!Q$5","v":1.6098518231278129E-3},{"$f":"'Population 2016'!R71/'Population 2016'!R$5","v":2.5948794379091924E-3},{"$f":"'Population 2016'!S71/'Population 2016'!S$5","v":5.3683242390166483E-3},{"$f":"'Population 2016'!T71/'Population 2016'!T$5","v":4.799839927781371E-3},{"$f":"'Population 2016'!U71/'Population 2016'!U$5","v":0},{"$f":"'Population 2016'!V71/'Population 2016'!V$5","v":5.8463910365513924E-3},{"$f":"'Population 2016'!W71/'Population 2016'!W$5","v":7.994561345021212E-3},{"$f":"'Population 2016'!X71/'Population 2016'!X$5","v":7.994561345021212E-3},{"$f":"'Population 2016'!Y71/'Population 2016'!Y$5","v":6.3631738764089599E-3},{"$f":"'Population 2016'!Z71/'Population 2016'!Z$5","v":1.836490941436323E-2},{"$f":"'Population 2016'!AA71/'Population 2016'!AA$5","v":1.323715731980119E-2},{"$f":"'Population 2016'!AB71/'Population 2016'!AB$5","v":1.4799954965558889E-3},{"$f":"'Population 2016'!AC71/'Population 2016'!AC$5","v":1.4524606916124868E-2},{"$f":"'Population 2016'!AD71/'Population 2016'!AD$5","v":2.7503814805165806E-3},{"$f":"'Population 2016'!AE71/'Population 2016'!AE$5","v":2.6488978326266181E-3},{"$f":"'Population 2016'!AF71/'Population 2016'!AF$5","v":1.9047188164502557E-2},{"$f":"'Population 2016'!AG71/'Population 2016'!AG$5","v":2.6488978326266181E-3},{"$f":"'Population 2016'!AH71/'Population 2016'!AH$5","v":1.0924830257377185E-2},{"$f":"'Population 2016'!AI71/'Population 2016'!AI$5","v":4.7043157756584131E-3},{"$f":"'Population 2016'!AJ71/'Population 2016'!AJ$5","v":4.3220031787636285E-3},{"$f":"'Population 2016'!AK71/'Population 2016'!AK$5","v":2.8915177954062581E-4},{"$f":"'Population 2016'!AL71/'Population 2016'!AL$5","v":1.7390610311984533E-2},{"$f":"'Population 2016'!AM71/'Population 2016'!AM$5","v":1.293414127950567E-2},{"$f":"'Population 2016'!AN71/'Population 2016'!AN$5","v":0},{"$f":"'Population 2016'!AO71/'Population 2016'!AO$5","v":0},{"$f":"'Population 2016'!AP71/'Population 2016'!AP$5","v":1.8467732986700062E-3},{"$f":"'Population 2016'!AQ71/'Population 2016'!AQ$5","v":1.132377925138379E-2},{"$f":"'Population 2016'!AR71/'Population 2016'!AR$5","v":7.914840169373303E-3},{"$f":"'Population 2016'!AS71/'Population 2016'!AS$5","v":2.0412863244284396E-3},{"$f":"'Population 2016'!AT71/'Population 2016'!AT$5","v":0},{"$f":"'Population 2016'!AU71/'Population 2016'!AU$5","v":0},{"$f":"'Population 2016'!AV71/'Population 2016'!AV$5","v":7.2220462464364903E-3},{"$f":"'Population 2016'!AW71/'Population 2016'!AW$5","v":8.8092623100860332E-3},{"$f":"'Population 2016'!AX71/'Population 2016'!AX$5","v":5.3158183932427768E-3},{"$f":"'Population 2016'!AY71/'Population 2016'!AY$5","v":7.0499678712401702E-3},{"$f":"'Population 2016'!AZ71/'Population 2016'!AZ$5","v":6.2186836640185008E-3},{"$f":"'Population 2016'!BA71/'Population 2016'!BA$5","v":1.6640574389980567E-2},{"$f":"'Population 2016'!BB71/'Population 2016'!BB$5","v":6.428536903668616E-3},{"$f":"'Population 2016'!BC71/'Population 2016'!BC$5","v":0},69]
[null,"Female 60-64",{"$f":"'Population 2016'!C72/'Population 2016'!C$5","v":2.2488793936203382E-3},{"$f":"'Population 2016'!D72/'Population 2016'!D$5","v":1.3815126707940886E-3},{"$f":"'Population 2016'!E72/'Population 2016'!E$5","v":5.8597687032097467E-4},{"$f":"'Population 2016'!F72/'Population 2016'!F$5","v":2.1529745042492918E-3},{"$f":"'Population 2016'!G72/'Population 2016'!G$5","v":2.7066529529583719E-3},{"$f":"'Population 2016'!H72/'Population 2016'!H$5","v":1.1487842600668584E-2},{"$f":"'Population 2016'!I72/'Population 2016'!I$5","v":1.9470731094548195E-3},{"$f":"'Population 2016'!J72/'Population 2016'!J$5","v":5.2992544554373334E-3},{"$f":"'Population 2016'!K72/'Population 2016'!K$5","v":7.9856353069035577E-3},{"$f":"'Population 2016'!L72/'Population 2016'!L$5","v":2.7401394691277622E-3},{"$f":"'Population 2016'!M72/'Population 2016'!M$5","v":2.7401394691277622E-3},{"$f":"'Population 2016'!N72/'Population 2016'!N$5","v":1.0689513828051535E-2},{"$f":"'Population 2016'!O72/'Population 2016'!O$5","v":1.1402700587471889E-2},{"$f":"'Population 2016'!P72/'Population 2016'!P$5","v":1.8370336977347008E-3},{"$f":"'Population 2016'!Q72/'Population 2016'!Q$5","v":1.1398220937474295E-3},{"$f":"'Population 2016'!R72/'Population 2016'!R$5","v":2.2888167349763133E-3},{"$f":"'Population 2016'!S72/'Population 2016'!S$5","v":4.3470892596443591E-3},{"$f":"'Population 2016'!T72/'Population 2016'!T$5","v":3.5899917637259599E-3},{"$f":"'Population 2016'!U72/'Population 2016'!U$5","v":0},{"$f":"'Population 2016'!V72/'Population 2016'!V$5","v":4.953404416085971E-3},{"$f":"'Population 2016'!W72/'Population 2016'!W$5","v":6.8179292582642064E-3},{"$f":"'Population 2016'!X72/'Population 2016'!X$5","v":6.8179292582642064E-3},{"$f":"'Population 2016'!Y72/'Population 2016'!Y$5","v":5.1191554983227609E-3},{"$f":"'Population 2016'!Z72/'Population 2016'!Z$5","v":1.4135192214997396E-2},{"$f":"'Population 2016'!AA72/'Population 2016'!AA$5","v":1.0681277767036926E-2},{"$f":"'Population 2016'!AB72/'Population 2016'!AB$5","v":1.23230607043796E-3},{"$f":"'Population 2016'!AC72/'Population 2016'!AC$5","v":1.136793809122897E-2},{"$f":"'Population 2016'!AD72/'Population 2016'!AD$5","v":2.5345193345491087E-3},{"$f":"'Population 2016'!AE72/'Population 2016'!AE$5","v":2.4692245300259757E-3},{"$f":"'Population 2016'!AF72/'Population 2016'!AF$5","v":1.5714307258441539E-2},{"$f":"'Population 2016'!AG72/'Population 2016'!AG$5","v":2.4692245300259757E-3},{"$f":"'Population 2016'!AH72/'Population 2016'!AH$5","v":9.4479997770821923E-3},{"$f":"'Population 2016'!AI72/'Population 2016'!AI$5","v":3.62701242453408E-3},{"$f":"'Population 2016'!AJ72/'Population 2016'!AJ$5","v":3.2345314112037474E-3},{"$f":"'Population 2016'!AK72/'Population 2016'!AK$5","v":4.651572105653546E-4},{"$f":"'Population 2016'!AL72/'Population 2016'!AL$5","v":1.5625831397101862E-2},{"$f":"'Population 2016'!AM72/'Population 2016'!AM$5","v":1.1086924238747369E-2},{"$f":"'Population 2016'!AN72/'Population 2016'!AN$5","v":0},{"$f":"'Population 2016'!AO72/'Population 2016'!AO$5","v":0},{"$f":"'Population 2016'!AP72/'Population 2016'!AP$5","v":1.6803259198199198E-3},{"$f":"'Population 2016'!AQ72/'Population 2016'!AQ$5","v":8.6247054310297586E-3},{"$f":"'Population 2016'!AR72/'Population 2016'!AR$5","v":6.5077772750431464E-3},{"$f":"'Population 2016'!AS72/'Population 2016'!AS$5","v":1.9470731094548195E-3},{"$f":"'Population 2016'!AT72/'Population 2016'!AT$5","v":0},{"$f":"'Population 2016'!AU72/'Population 2016'!AU$5","v":0},{"$f":"'Population 2016'!AV72/'Population 2016'!AV$5","v":6.6518847006651885E-3},{"$f":"'Population 2016'!AW72/'Population 2016'!AW$5","v":7.7224052718286654E-3},{"$f":"'Population 2016'!AX72/'Population 2016'!AX$5","v":3.8463012893415285E-3},{"$f":"'Population 2016'!AY72/'Population 2016'!AY$5","v":5.8703834032006368E-3},{"$f":"'Population 2016'!AZ72/'Population 2016'!AZ$5","v":5.0365009693322822E-3},{"$f":"'Population 2016'!BA72/'Population 2016'!BA$5","v":1.4211293457136688E-2},{"$f":"'Population 2016'!BB72/'Population 2016'!BB$5","v":5.3927898192966586E-3},{"$f":"'Population 2016'!BC72/'Population 2016'!BC$5","v":0},70]
[null,"Female 65-69",{"$f":"'Population 2016'!C73/'Population 2016'!C$5","v":2.0853245286297679E-3},{"$f":"'Population 2016'!D73/'Population 2016'!D$5","v":1.2837064640122062E-3},{"$f":"'Population 2016'!E73/'Population 2016'!E$5","v":5.4847435062043229E-4},{"$f":"'Population 2016'!F73/'Population 2016'!F$5","v":1.9263456090651558E-3},{"$f":"'Population 2016'!G73/'Population 2016'!G$5","v":3.044984572078168E-3},{"$f":"'Population 2016'!H73/'Population 2016'!H$5","v":1.0985269751923557E-2},{"$f":"'Population 2016'!I73/'Population 2016'!I$5","v":2.0203500544343019E-3},{"$f":"'Population 2016'!J73/'Population 2016'!J$5","v":5.6724413889188358E-3},{"$f":"'Population 2016'!K73/'Population 2016'!K$5","v":8.788924065586165E-3},{"$f":"'Population 2016'!L73/'Population 2016'!L$5","v":2.3668451066668783E-3},{"$f":"'Population 2016'!M73/'Population 2016'!M$5","v":2.3668451066668783E-3},{"$f":"'Population 2016'!N73/'Population 2016'!N$5","v":1.0665402142725103E-2},{"$f":"'Population 2016'!O73/'Population 2016'!O$5","v":1.1115404047909175E-2},{"$f":"'Population 2016'!P73/'Population 2016'!P$5","v":1.6567113715766934E-3},{"$f":"'Population 2016'!Q73/'Population 2016'!Q$5","v":1.1985758099199773E-3},{"$f":"'Population 2016'!R73/'Population 2016'!R$5","v":2.3021238090168736E-3},{"$f":"'Population 2016'!S73/'Population 2016'!S$5","v":4.3347320515966393E-3},{"$f":"'Population 2016'!T73/'Population 2016'!T$5","v":3.4736602094898629E-3},{"$f":"'Population 2016'!U73/'Population 2016'!U$5","v":0},{"$f":"'Population 2016'!V73/'Population 2016'!V$5","v":4.9915662374733823E-3},{"$f":"'Population 2016'!W73/'Population 2016'!W$5","v":6.8571503278227735E-3},{"$f":"'Population 2016'!X73/'Population 2016'!X$5","v":6.8571503278227735E-3},{"$f":"'Population 2016'!Y73/'Population 2016'!Y$5","v":5.3178804788477129E-3},{"$f":"'Population 2016'!Z73/'Population 2016'!Z$5","v":1.2683344206061755E-2},{"$f":"'Population 2016'!AA73/'Population 2016'!AA$5","v":9.9285323723704577E-3},{"$f":"'Population 2016'!AB73/'Population 2016'!AB$5","v":1.1401901681626972E-3},{"$f":"'Population 2016'!AC73/'Population 2016'!AC$5","v":1.0435003857920943E-2},{"$f":"'Population 2016'!AD73/'Population 2016'!AD$5","v":2.3447095165432283E-3},{"$f":"'Population 2016'!AE73/'Population 2016'!AE$5","v":2.0790767872360086E-3},{"$f":"'Population 2016'!AF73/'Population 2016'!AF$5","v":1.5759549985673138E-2},{"$f":"'Population 2016'!AG73/'Population 2016'!AG$5","v":2.0790767872360086E-3},{"$f":"'Population 2016'!AH73/'Population 2016'!AH$5","v":9.0188829960153438E-3},{"$f":"'Population 2016'!AI73/'Population 2016'!AI$5","v":3.5818969288651677E-3},{"$f":"'Population 2016'!AJ73/'Population 2016'!AJ$5","v":3.6388478376042162E-3},{"$f":"'Population 2016'!AK73/'Population 2016'!AK$5","v":4.0229812805652289E-4},{"$f":"'Population 2016'!AL73/'Population 2016'!AL$5","v":1.5306574909987406E-2},{"$f":"'Population 2016'!AM73/'Population 2016'!AM$5","v":1.0511027161334488E-2},{"$f":"'Population 2016'!AN73/'Population 2016'!AN$5","v":0},{"$f":"'Population 2016'!AO73/'Population 2016'!AO$5","v":0},{"$f":"'Population 2016'!AP73/'Population 2016'!AP$5","v":1.4425439500340821E-3},{"$f":"'Population 2016'!AQ73/'Population 2016'!AQ$5","v":8.3095851372828409E-3},{"$f":"'Population 2016'!AR73/'Population 2016'!AR$5","v":6.1847498531339114E-3},{"$f":"'Population 2016'!AS73/'Population 2016'!AS$5","v":2.0203500544343019E-3},{"$f":"'Population 2016'!AT73/'Population 2016'!AT$5","v":0},{"$f":"'Population 2016'!AU73/'Population 2016'!AU$5","v":0},{"$f":"'Population 2016'!AV73/'Population 2016'!AV$5","v":5.7016154577130187E-3},{"$f":"'Population 2016'!AW73/'Population 2016'!AW$5","v":7.4478308621636459E-3},{"$f":"'Population 2016'!AX73/'Population 2016'!AX$5","v":3.986863794932083E-3},{"$f":"'Population 2016'!AY73/'Population 2016'!AY$5","v":5.8045959425966154E-3},{"$f":"'Population 2016'!AZ73/'Population 2016'!AZ$5","v":4.8783013386565115E-3},{"$f":"'Population 2016'!BA73/'Population 2016'!BA$5","v":1.2942668969984885E-2},{"$f":"'Population 2016'!BB73/'Population 2016'!BB$5","v":5.2754051497345038E-3},{"$f":"'Population 2016'!BC73/'Population 2016'!BC$5","v":0},71]
[null,"Female 70-74",{"$f":"'Population 2016'!C74/'Population 2016'!C$5","v":1.466882695384175E-3},{"$f":"'Population 2016'!D74/'Population 2016'!D$5","v":8.9737194722377077E-4},{"$f":"'Population 2016'!E74/'Population 2016'!E$5","v":3.7502519700542382E-4},{"$f":"'Population 2016'!F74/'Population 2016'!F$5","v":1.658511460211177E-3},{"$f":"'Population 2016'!G74/'Population 2016'!G$5","v":2.2465219509554485E-3},{"$f":"'Population 2016'!H74/'Population 2016'!H$5","v":8.5988593217536224E-3},{"$f":"'Population 2016'!I74/'Population 2016'!I$5","v":1.5597521145632694E-3},{"$f":"'Population 2016'!J74/'Population 2016'!J$5","v":4.3787266861829615E-3},{"$f":"'Population 2016'!K74/'Population 2016'!K$5","v":6.5916930491896238E-3},{"$f":"'Population 2016'!L74/'Population 2016'!L$5","v":2.4700967388369102E-3},{"$f":"'Population 2016'!M74/'Population 2016'!M$5","v":2.4700967388369102E-3},{"$f":"'Population 2016'!N74/'Population 2016'!N$5","v":7.6996648475739626E-3},{"$f":"'Population 2016'!O74/'Population 2016'!O$5","v":8.5891758552025434E-3},{"$f":"'Population 2016'!P74/'Population 2016'!P$5","v":1.1495548292572975E-3},{"$f":"'Population 2016'!Q74/'Population 2016'!Q$5","v":1.0223146614023338E-3},{"$f":"'Population 2016'!R74/'Population 2016'!R$5","v":1.6500771810294352E-3},{"$f":"'Population 2016'!S74/'Population 2016'!S$5","v":3.3417421191905675E-3},{"$f":"'Population 2016'!T74/'Population 2016'!T$5","v":2.5267213580080316E-3},{"$f":"'Population 2016'!U74/'Population 2016'!U$5","v":0},{"$f":"'Population 2016'!V74/'Population 2016'!V$5","v":3.6101083032490976E-3},{"$f":"'Population 2016'!W74/'Population 2016'!W$5","v":5.4353865563247245E-3},{"$f":"'Population 2016'!X74/'Population 2016'!X$5","v":5.4353865563247245E-3},{"$f":"'Population 2016'!Y74/'Population 2016'!Y$5","v":3.978474110109537E-3},{"$f":"'Population 2016'!Z74/'Population 2016'!Z$5","v":1.0445562474955622E-2},{"$f":"'Population 2016'!AA74/'Population 2016'!AA$5","v":7.9074807478555394E-3},{"$f":"'Population 2016'!AB74/'Population 2016'!AB$5","v":7.7991463926389154E-4},{"$f":"'Population 2016'!AC74/'Population 2016'!AC$5","v":8.3291789144451737E-3},{"$f":"'Population 2016'!AD74/'Population 2016'!AD$5","v":1.7976106293498084E-3},{"$f":"'Population 2016'!AE74/'Population 2016'!AE$5","v":1.6273267692686784E-3},{"$f":"'Population 2016'!AF74/'Population 2016'!AF$5","v":1.1883756352832949E-2},{"$f":"'Population 2016'!AG74/'Population 2016'!AG$5","v":1.6273267692686784E-3},{"$f":"'Population 2016'!AH74/'Population 2016'!AH$5","v":7.1500887027112379E-3},{"$f":"'Population 2016'!AI74/'Population 2016'!AI$5","v":2.6987269227403974E-3},{"$f":"'Population 2016'!AJ74/'Population 2016'!AJ$5","v":2.760505256113543E-3},{"$f":"'Population 2016'!AK74/'Population 2016'!AK$5","v":1.7600543102472876E-4},{"$f":"'Population 2016'!AL74/'Population 2016'!AL$5","v":1.1927777088026108E-2},{"$f":"'Population 2016'!AM74/'Population 2016'!AM$5","v":8.6167241960078376E-3},{"$f":"'Population 2016'!AN74/'Population 2016'!AN$5","v":0},{"$f":"'Population 2016'!AO74/'Population 2016'!AO$5","v":0},{"$f":"'Population 2016'!AP74/'Population 2016'!AP$5","v":1.1968359145887164E-3},{"$f":"'Population 2016'!AQ74/'Population 2016'!AQ$5","v":6.5764235216747959E-3},{"$f":"'Population 2016'!AR74/'Population 2016'!AR$5","v":4.8534313198031623E-3},{"$f":"'Population 2016'!AS74/'Population 2016'!AS$5","v":1.5597521145632694E-3},{"$f":"'Population 2016'!AT74/'Population 2016'!AT$5","v":0},{"$f":"'Population 2016'!AU74/'Population 2016'!AU$5","v":0},{"$f":"'Population 2016'!AV74/'Population 2016'!AV$5","v":4.6457607433217189E-3},{"$f":"'Population 2016'!AW74/'Population 2016'!AW$5","v":5.6058941973274757E-3},{"$f":"'Population 2016'!AX74/'Population 2016'!AX$5","v":3.1818239901861816E-3},{"$f":"'Population 2016'!AY74/'Population 2016'!AY$5","v":4.4873167895719225E-3},{"$f":"'Population 2016'!AZ74/'Population 2016'!AZ$5","v":3.6529732901496282E-3},{"$f":"'Population 2016'!BA74/'Population 2016'!BA$5","v":9.217771539624272E-3},{"$f":"'Population 2016'!BB74/'Population 2016'!BB$5","v":4.1637032791752692E-3},{"$f":"'Population 2016'!BC74/'Population 2016'!BC$5","v":0},72]
[null,"Female 75-79",{"$f":"'Population 2016'!C75/'Population 2016'!C$5","v":1.2419947560221413E-3},{"$f":"'Population 2016'!D75/'Population 2016'!D$5","v":7.2621108535547664E-4},{"$f":"'Population 2016'!E75/'Population 2016'!E$5","v":2.5314200797866106E-4},{"$f":"'Population 2016'!F75/'Population 2016'!F$5","v":1.7100180272984805E-3},{"$f":"'Population 2016'!G75/'Population 2016'!G$5","v":1.9487901261300276E-3},{"$f":"'Population 2016'!H75/'Population 2016'!H$5","v":7.4186237285717525E-3},{"$f":"'Population 2016'!I75/'Population 2016'!I$5","v":1.0886860396951679E-3},{"$f":"'Population 2016'!J75/'Population 2016'!J$5","v":3.4167337020973108E-3},{"$f":"'Population 2016'!K75/'Population 2016'!K$5","v":5.0323678117469165E-3},{"$f":"'Population 2016'!L75/'Population 2016'!L$5","v":1.5011198830873827E-3},{"$f":"'Population 2016'!M75/'Population 2016'!M$5","v":1.5011198830873827E-3},{"$f":"'Population 2016'!N75/'Population 2016'!N$5","v":6.7432346629588249E-3},{"$f":"'Population 2016'!O75/'Population 2016'!O$5","v":7.3211083702360786E-3},{"$f":"'Population 2016'!P75/'Population 2016'!P$5","v":9.6923250309928998E-4},{"$f":"'Population 2016'!Q75/'Population 2016'!Q$5","v":8.8130574258821865E-4},{"$f":"'Population 2016'!R75/'Population 2016'!R$5","v":1.4504710704210358E-3},{"$f":"'Population 2016'!S75/'Population 2016'!S$5","v":2.7494787906177016E-3},{"$f":"'Population 2016'!T75/'Population 2016'!T$5","v":2.2382191035025104E-3},{"$f":"'Population 2016'!U75/'Population 2016'!U$5","v":0},{"$f":"'Population 2016'!V75/'Population 2016'!V$5","v":3.8772410529609759E-3},{"$f":"'Population 2016'!W75/'Population 2016'!W$5","v":4.4613966622869808E-3},{"$f":"'Population 2016'!X75/'Population 2016'!X$5","v":4.4613966622869808E-3},{"$f":"'Population 2016'!Y75/'Population 2016'!Y$5","v":3.656539641659115E-3},{"$f":"'Population 2016'!Z75/'Population 2016'!Z$5","v":9.9016034209410686E-3},{"$f":"'Population 2016'!AA75/'Population 2016'!AA$5","v":7.1819750364912095E-3},{"$f":"'Population 2016'!AB75/'Population 2016'!AB$5","v":6.2843515552234836E-4},{"$f":"'Population 2016'!AC75/'Population 2016'!AC$5","v":7.8699518639033066E-3},{"$f":"'Population 2016'!AD75/'Population 2016'!AD$5","v":1.5222003051844134E-3},{"$f":"'Population 2016'!AE75/'Population 2016'!AE$5","v":1.3603835768334377E-3},{"$f":"'Population 2016'!AF75/'Population 2016'!AF$5","v":1.132576271697658E-2},{"$f":"'Population 2016'!AG75/'Population 2016'!AG$5","v":1.3603835768334377E-3},{"$f":"'Population 2016'!AH75/'Population 2016'!AH$5","v":5.9463325376406008E-3},{"$f":"'Population 2016'!AI75/'Population 2016'!AI$5","v":2.2503062385160555E-3},{"$f":"'Population 2016'!AJ75/'Population 2016'!AJ$5","v":1.8124529459331343E-3},{"$f":"'Population 2016'!AK75/'Population 2016'!AK$5","v":1.2571816501766341E-4},{"$f":"'Population 2016'!AL75/'Population 2016'!AL$5","v":1.03492311239602E-2},{"$f":"'Population 2016'!AM75/'Population 2016'!AM$5","v":7.1244625866109359E-3},{"$f":"'Population 2016'!AN75/'Population 2016'!AN$5","v":0},{"$f":"'Population 2016'!AO75/'Population 2016'!AO$5","v":0},{"$f":"'Population 2016'!AP75/'Population 2016'!AP$5","v":7.5297623765515275E-4},{"$f":"'Population 2016'!AQ75/'Population 2016'!AQ$5","v":6.5627226393379732E-3},{"$f":"'Population 2016'!AR75/'Population 2016'!AR$5","v":4.2635164141371952E-3},{"$f":"'Population 2016'!AS75/'Population 2016'!AS$5","v":1.0886860396951679E-3},{"$f":"'Population 2016'!AT75/'Population 2016'!AT$5","v":0},{"$f":"'Population 2016'!AU75/'Population 2016'!AU$5","v":0},{"$f":"'Population 2016'!AV75/'Population 2016'!AV$5","v":4.0333650089747651E-3},{"$f":"'Population 2016'!AW75/'Population 2016'!AW$5","v":4.7059002989810238E-3},{"$f":"'Population 2016'!AX75/'Population 2016'!AX$5","v":2.5429035102291168E-3},{"$f":"'Population 2016'!AY75/'Population 2016'!AY$5","v":3.7713044276490928E-3},{"$f":"'Population 2016'!AZ75/'Population 2016'!AZ$5","v":3.163992613515426E-3},{"$f":"'Population 2016'!BA75/'Population 2016'!BA$5","v":7.9626430576549348E-3},{"$f":"'Population 2016'!BB75/'Population 2016'!BB$5","v":3.3074856894277842E-3},{"$f":"'Population 2016'!BC75/'Population 2016'!BC$5","v":0},73]
[null,"Female 80-84",{"$f":"'Population 2016'!C76/'Population 2016'!C$5","v":9.6599592135055432E-4},{"$f":"'Population 2016'!D76/'Population 2016'!D$5","v":5.8439208552174722E-4},{"$f":"'Population 2016'!E76/'Population 2016'!E$5","v":2.3439074812838987E-4},{"$f":"'Population 2016'!F76/'Population 2016'!F$5","v":9.9922740149369039E-4},{"$f":"'Population 2016'!G76/'Population 2016'!G$5","v":1.5833919774806474E-3},{"$f":"'Population 2016'!H76/'Population 2016'!H$5","v":5.4213019554947423E-3},{"$f":"'Population 2016'!I76/'Population 2016'!I$5","v":8.5838706975965157E-4},{"$f":"'Population 2016'!J76/'Population 2016'!J$5","v":2.579136362505494E-3},{"$f":"'Population 2016'!K76/'Population 2016'!K$5","v":3.307659594575438E-3},{"$f":"'Population 2016'!L76/'Population 2016'!L$5","v":1.1993074198211363E-3},{"$f":"'Population 2016'!M76/'Population 2016'!M$5","v":1.1993074198211363E-3},{"$f":"'Population 2016'!N76/'Population 2016'!N$5","v":5.3929802846786317E-3},{"$f":"'Population 2016'!O76/'Population 2016'!O$5","v":5.5477952467282866E-3},{"$f":"'Population 2016'!P76/'Population 2016'!P$5","v":6.3112814155302603E-4},{"$f":"'Population 2016'!Q76/'Population 2016'!Q$5","v":4.9353121584940244E-4},{"$f":"'Population 2016'!R76/'Population 2016'!R$5","v":1.2508649598126365E-3},{"$f":"'Population 2016'!S76/'Population 2016'!S$5","v":2.0866028446292926E-3},{"$f":"'Population 2016'!T76/'Population 2016'!T$5","v":1.7728928865581215E-3},{"$f":"'Population 2016'!U76/'Population 2016'!U$5","v":0},{"$f":"'Population 2016'!V76/'Population 2016'!V$5","v":2.7705482327260514E-3},{"$f":"'Population 2016'!W76/'Population 2016'!W$5","v":3.2226645487289105E-3},{"$f":"'Population 2016'!X76/'Population 2016'!X$5","v":3.2226645487289105E-3},{"$f":"'Population 2016'!Y76/'Population 2016'!Y$5","v":2.6788127374763517E-3},{"$f":"'Population 2016'!Z76/'Population 2016'!Z$5","v":7.838043450907212E-3},{"$f":"'Population 2016'!AA76/'Population 2016'!AA$5","v":5.629313088269197E-3},{"$f":"'Population 2016'!AB76/'Population 2016'!AB$5","v":5.0970799258978747E-4},{"$f":"'Population 2016'!AC76/'Population 2016'!AC$5","v":6.2388683983525747E-3},{"$f":"'Population 2016'!AD76/'Population 2016'!AD$5","v":1.1760765194089844E-3},{"$f":"'Population 2016'!AE76/'Population 2016'!AE$5","v":1.02157106335794E-3},{"$f":"'Population 2016'!AF76/'Population 2016'!AF$5","v":9.0183836281651063E-3},{"$f":"'Population 2016'!AG76/'Population 2016'!AG$5","v":1.02157106335794E-3},{"$f":"'Population 2016'!AH76/'Population 2016'!AH$5","v":4.5345197514466435E-3},{"$f":"'Population 2016'!AI76/'Population 2016'!AI$5","v":1.7718085571791057E-3},{"$f":"'Population 2016'!AJ76/'Population 2016'!AJ$5","v":1.8961046203608176E-3},{"$f":"'Population 2016'!AK76/'Population 2016'!AK$5","v":1.2571816501766341E-4},{"$f":"'Population 2016'!AL76/'Population 2016'!AL$5","v":7.2808215533601743E-3},{"$f":"'Population 2016'!AM76/'Population 2016'!AM$5","v":5.3641734065942026E-3},{"$f":"'Population 2016'!AN76/'Population 2016'!AN$5","v":0},{"$f":"'Population 2016'!AO76/'Population 2016'!AO$5","v":0},{"$f":"'Population 2016'!AP76/'Population 2016'!AP$5","v":8.6394115688854362E-4},{"$f":"'Population 2016'!AQ76/'Population 2016'!AQ$5","v":5.3912971995396502E-3},{"$f":"'Population 2016'!AR76/'Population 2016'!AR$5","v":3.2917608180212765E-3},{"$f":"'Population 2016'!AS76/'Population 2016'!AS$5","v":8.5838706975965157E-4},{"$f":"'Population 2016'!AT76/'Population 2016'!AT$5","v":0},{"$f":"'Population 2016'!AU76/'Population 2016'!AU$5","v":0},{"$f":"'Population 2016'!AV76/'Population 2016'!AV$5","v":3.0725372188786823E-3},{"$f":"'Population 2016'!AW76/'Population 2016'!AW$5","v":3.6609921288669228E-3},{"$f":"'Population 2016'!AX76/'Population 2016'!AX$5","v":2.1851080414531606E-3},{"$f":"'Population 2016'!AY76/'Population 2016'!AY$5","v":2.8502799791928031E-3},{"$f":"'Population 2016'!AZ76/'Population 2016'!AZ$5","v":2.5225650200482079E-3},{"$f":"'Population 2016'!BA76/'Population 2016'!BA$5","v":6.0462103217447634E-3},{"$f":"'Population 2016'!BB76/'Population 2016'!BB$5","v":2.4581730802427791E-3},{"$f":"'Population 2016'!BC76/'Population 2016'!BC$5","v":0},74]
[null,"Female 85-89",{"$f":"'Population 2016'!C77/'Population 2016'!C$5","v":7.4110798198852052E-4},{"$f":"'Population 2016'!D77/'Population 2016'!D$5","v":4.4012793051847072E-4},{"$f":"'Population 2016'!E77/'Population 2016'!E$5","v":1.6407352368987292E-4},{"$f":"'Population 2016'!F77/'Population 2016'!F$5","v":6.1807880504764355E-4},{"$f":"'Population 2016'!G77/'Population 2016'!G$5","v":1.1638607697720999E-3},{"$f":"'Population 2016'!H77/'Population 2016'!H$5","v":3.3299504236202755E-3},{"$f":"'Population 2016'!I77/'Population 2016'!I$5","v":6.1761996482706646E-4},{"$f":"'Population 2016'!J77/'Population 2016'!J$5","v":1.3683520894321754E-3},{"$f":"'Population 2016'!K77/'Population 2016'!K$5","v":2.0791003165902757E-3},{"$f":"'Population 2016'!L77/'Population 2016'!L$5","v":8.0218575762870713E-4},{"$f":"'Population 2016'!M77/'Population 2016'!M$5","v":8.0218575762870713E-4},{"$f":"'Population 2016'!N77/'Population 2016'!N$5","v":3.5524549714276528E-3},{"$f":"'Population 2016'!O77/'Population 2016'!O$5","v":3.774482123220495E-3},{"$f":"'Population 2016'!P77/'Population 2016'!P$5","v":3.7191479770089036E-4},{"$f":"'Population 2016'!Q77/'Population 2016'!Q$5","v":2.4676560792470122E-4},{"$f":"'Population 2016'!R77/'Population 2016'!R$5","v":5.8551125778463829E-4},{"$f":"'Population 2016'!S77/'Population 2016'!S$5","v":1.2569045899966636E-3},{"$f":"'Population 2016'!T77/'Population 2016'!T$5","v":1.1842552221234697E-3},{"$f":"'Population 2016'!U77/'Population 2016'!U$5","v":0},{"$f":"'Population 2016'!V77/'Population 2016'!V$5","v":1.6562230482136452E-3},{"$f":"'Population 2016'!W77/'Population 2016'!W$5","v":1.9773955902444127E-3},{"$f":"'Population 2016'!X77/'Population 2016'!X$5","v":1.9773955902444127E-3},{"$f":"'Population 2016'!Y77/'Population 2016'!Y$5","v":1.5182588512106326E-3},{"$f":"'Population 2016'!Z77/'Population 2016'!Z$5","v":4.5684817347841486E-3},{"$f":"'Population 2016'!AA77/'Population 2016'!AA$5","v":3.311946860028555E-3},{"$f":"'Population 2016'!AB77/'Population 2016'!AB$5","v":3.8483976950554229E-4},{"$f":"'Population 2016'!AC77/'Population 2016'!AC$5","v":3.6996737833068899E-3},{"$f":"'Population 2016'!AD77/'Population 2016'!AD$5","v":7.7412631657300239E-4},{"$f":"'Population 2016'!AE77/'Population 2016'!AE$5","v":6.2628979763652609E-4},{"$f":"'Population 2016'!AF77/'Population 2016'!AF$5","v":5.4442081768689013E-3},{"$f":"'Population 2016'!AG77/'Population 2016'!AG$5","v":6.2628979763652609E-4},{"$f":"'Population 2016'!AH77/'Population 2016'!AH$5","v":2.615568951264594E-3},{"$f":"'Population 2016'!AI77/'Population 2016'!AI$5","v":1.0390235366173769E-3},{"$f":"'Population 2016'!AJ77/'Population 2016'!AJ$5","v":1.0038200931321976E-3},{"$f":"'Population 2016'!AK77/'Population 2016'!AK$5","v":1.0057453201413072E-4},{"$f":"'Population 2016'!AL77/'Population 2016'!AL$5","v":4.0173107961902063E-3},{"$f":"'Population 2016'!AM77/'Population 2016'!AM$5","v":3.2380628126233743E-3},{"$f":"'Population 2016'!AN77/'Population 2016'!AN$5","v":0},{"$f":"'Population 2016'!AO77/'Population 2016'!AO$5","v":0},{"$f":"'Population 2016'!AP77/'Population 2016'!AP$5","v":4.1215541429545204E-4},{"$f":"'Population 2016'!AQ77/'Population 2016'!AQ$5","v":3.1032498492902941E-3},{"$f":"'Population 2016'!AR77/'Population 2016'!AR$5","v":1.97581393442276E-3},{"$f":"'Population 2016'!AS77/'Population 2016'!AS$5","v":6.1761996482706646E-4},{"$f":"'Population 2016'!AT77/'Population 2016'!AT$5","v":0},{"$f":"'Population 2016'!AU77/'Population 2016'!AU$5","v":0},{"$f":"'Population 2016'!AV77/'Population 2016'!AV$5","v":2.0377995987752085E-3},{"$f":"'Population 2016'!AW77/'Population 2016'!AW$5","v":1.9601562023308316E-3},{"$f":"'Population 2016'!AX77/'Population 2016'!AX$5","v":9.839375391338793E-4},{"$f":"'Population 2016'!AY77/'Population 2016'!AY$5","v":1.7732015544199994E-3},{"$f":"'Population 2016'!AZ77/'Population 2016'!AZ$5","v":1.5935017344432237E-3},{"$f":"'Population 2016'!BA77/'Population 2016'!BA$5","v":4.3996976894839128E-3},{"$f":"'Population 2016'!BB77/'Population 2016'!BB$5","v":1.0909869288717952E-3},{"$f":"'Population 2016'!BC77/'Population 2016'!BC$5","v":0},75]
[null,"Female 90+",{"$f":"'Population 2016'!C78/'Population 2016'!C$5","v":3.6288735669782725E-4},{"$f":"'Population 2016'!D78/'Population 2016'!D$5","v":2.176188100896883E-4},{"$f":"'Population 2016'!E78/'Population 2016'!E$5","v":8.4380669326220359E-5},{"$f":"'Population 2016'!F78/'Population 2016'!F$5","v":3.8114859644604689E-4},{"$f":"'Population 2016'!G78/'Population 2016'!G$5","v":7.4432956206355223E-4},{"$f":"'Population 2016'!H78/'Population 2016'!H$5","v":1.8416863102398407E-3},{"$f":"'Population 2016'!I78/'Population 2016'!I$5","v":2.5123523992965415E-4},{"$f":"'Population 2016'!J78/'Population 2016'!J$5","v":8.2930429662556081E-4},{"$f":"'Population 2016'!K78/'Population 2016'!K$5","v":1.3230638378301752E-3},{"$f":"'Population 2016'!L78/'Population 2016'!L$5","v":3.1769732975394342E-4},{"$f":"'Population 2016'!M78/'Population 2016'!M$5","v":3.1769732975394342E-4},{"$f":"'Population 2016'!N78/'Population 2016'!N$5","v":1.9208975976724187E-3},{"$f":"'Population 2016'!O78/'Population 2016'!O$5","v":2.0110757769390038E-3},{"$f":"'Population 2016'!P78/'Population 2016'!P$5","v":5.6350726924377322E-5},{"$f":"'Population 2016'!Q78/'Population 2016'!Q$5","v":7.0504459407057495E-5},{"$f":"'Population 2016'!R78/'Population 2016'!R$5","v":3.4598392505455901E-4},{"$f":"'Population 2016'!S78/'Population 2016'!S$5","v":7.1848338220314892E-4},{"$f":"'Population 2016'!T78/'Population 2016'!T$5","v":6.3051702395964691E-4},{"$f":"'Population 2016'!U78/'Population 2016'!U$5","v":0},{"$f":"'Population 2016'!V78/'Population 2016'!V$5","v":7.9376588485815256E-4},{"$f":"'Population 2016'!W78/'Population 2016'!W$5","v":1.1504847070512947E-3},{"$f":"'Population 2016'!X78/'Population 2016'!X$5","v":1.1504847070512947E-3},{"$f":"'Population 2016'!Y78/'Population 2016'!Y$5","v":8.1079792054180374E-4},{"$f":"'Population 2016'!Z78/'Population 2016'!Z$5","v":2.4623342231548462E-3},{"$f":"'Population 2016'!AA78/'Population 2016'!AA$5","v":1.783202682510861E-3},{"$f":"'Population 2016'!AB78/'Population 2016'!AB$5","v":1.8627882460108696E-4},{"$f":"'Population 2016'!AC78/'Population 2016'!AC$5","v":1.9734351631393752E-3},{"$f":"'Population 2016'!AD78/'Population 2016'!AD$5","v":4.5033309762179463E-4},{"$f":"'Population 2016'!AE78/'Population 2016'!AE$5","v":3.3881251347549771E-4},{"$f":"'Population 2016'!AF78/'Population 2016'!AF$5","v":2.7296445429730505E-3},{"$f":"'Population 2016'!AG78/'Population 2016'!AG$5","v":3.3881251347549771E-4},{"$f":"'Population 2016'!AH78/'Population 2016'!AH$5","v":1.4415351606401456E-3},{"$f":"'Population 2016'!AI78/'Population 2016'!AI$5","v":5.98805669787383E-4},{"$f":"'Population 2016'!AJ78/'Population 2016'!AJ$5","v":5.2979393804199312E-4},{"$f":"'Population 2016'!AK78/'Population 2016'!AK$5","v":2.5143633003532681E-5},{"$f":"'Population 2016'!AL78/'Population 2016'!AL$5","v":2.2791365885670703E-3},{"$f":"'Population 2016'!AM78/'Population 2016'!AM$5","v":1.6806053076702972E-3},{"$f":"'Population 2016'!AN78/'Population 2016'!AN$5","v":0},{"$f":"'Population 2016'!AO78/'Population 2016'!AO$5","v":0},{"$f":"'Population 2016'!AP78/'Population 2016'!AP$5","v":2.1400377280725394E-4},{"$f":"'Population 2016'!AQ78/'Population 2016'!AQ$5","v":1.4454430865347729E-3},{"$f":"'Population 2016'!AR78/'Population 2016'!AR$5","v":1.0749015935945221E-3},{"$f":"'Population 2016'!AS78/'Population 2016'!AS$5","v":2.5123523992965415E-4},{"$f":"'Population 2016'!AT78/'Population 2016'!AT$5","v":0},{"$f":"'Population 2016'!AU78/'Population 2016'!AU$5","v":0},{"$f":"'Population 2016'!AV78/'Population 2016'!AV$5","v":1.1403230915426037E-3},{"$f":"'Population 2016'!AW78/'Population 2016'!AW$5","v":1.18982244188175E-3},{"$f":"'Population 2016'!AX78/'Population 2016'!AX$5","v":5.6225002236221682E-4},{"$f":"'Population 2016'!AY78/'Population 2016'!AY$5","v":1.0021113185031058E-3},{"$f":"'Population 2016'!AZ78/'Population 2016'!AZ$5","v":8.7153614717743095E-4},{"$f":"'Population 2016'!BA78/'Population 2016'!BA$5","v":2.8746491038652558E-3},{"$f":"'Population 2016'!BB78/'Population 2016'!BB$5","v":8.4931260918500514E-4},{"$f":"'Population 2016'!BC78/'Population 2016'!BC$5","v":0},76]
[null,"Male 0-4",{"$f":"'Population 2016'!C79/'Population 2016'!C$5","v":0},{"$f":"'Population 2016'!D79/'Population 2016'!D$5","v":0},{"$f":"'Population 2016'!E79/'Population 2016'!E$5","v":0},{"$f":"'Population 2016'!F79/'Population 2016'!F$5","v":0},{"$f":"'Population 2016'!G79/'Population 2016'!G$5","v":0},{"$f":"'Population 2016'!H79/'Population 2016'!H$5","v":0},{"$f":"'Population 2016'!I79/'Population 2016'!I$5","v":0},{"$f":"'Population 2016'!J79/'Population 2016'!J$5","v":0},{"$f":"'Population 2016'!K79/'Population 2016'!K$5","v":0},{"$f":"'Population 2016'!L79/'Population 2016'!L$5","v":0},{"$f":"'Population 2016'!M79/'Population 2016'!M$5","v":0},{"$f":"'Population 2016'!N79/'Population 2016'!N$5","v":0},{"$f":"'Population 2016'!O79/'Population 2016'!O$5","v":0},{"$f":"'Population 2016'!P79/'Population 2016'!P$5","v":0},{"$f":"'Population 2016'!Q79/'Population 2016'!Q$5","v":0},{"$f":"'Population 2016'!R79/'Population 2016'!R$5","v":0},{"$f":"'Population 2016'!S79/'Population 2016'!S$5","v":0},{"$f":"'Population 2016'!T79/'Population 2016'!T$5","v":0},{"$f":"'Population 2016'!U79/'Population 2016'!U$5","v":0},{"$f":"'Population 2016'!V79/'Population 2016'!V$5","v":0},{"$f":"'Population 2016'!W79/'Population 2016'!W$5","v":0},{"$f":"'Population 2016'!X79/'Population 2016'!X$5","v":0},{"$f":"'Population 2016'!Y79/'Population 2016'!Y$5","v":0},{"$f":"'Population 2016'!Z79/'Population 2016'!Z$5","v":0},{"$f":"'Population 2016'!AA79/'Population 2016'!AA$5","v":0},{"$f":"'Population 2016'!AB79/'Population 2016'!AB$5","v":0},{"$f":"'Population 2016'!AC79/'Population 2016'!AC$5","v":0},{"$f":"'Population 2016'!AD79/'Population 2016'!AD$5","v":0},{"$f":"'Population 2016'!AE79/'Population 2016'!AE$5","v":0},{"$f":"'Population 2016'!AF79/'Population 2016'!AF$5","v":0},{"$f":"'Population 2016'!AG79/'Population 2016'!AG$5","v":0},{"$f":"'Population 2016'!AH79/'Population 2016'!AH$5","v":0},{"$f":"'Population 2016'!AI79/'Population 2016'!AI$5","v":0},{"$f":"'Population 2016'!AJ79/'Population 2016'!AJ$5","v":0},{"$f":"'Population 2016'!AK79/'Population 2016'!AK$5","v":0},{"$f":"'Population 2016'!AL79/'Population 2016'!AL$5","v":0},{"$f":"'Population 2016'!AM79/'Population 2016'!AM$5","v":0},{"$f":"'Population 2016'!AN79/'Population 2016'!AN$5","v":0},{"$f":"'Population 2016'!AO79/'Population 2016'!AO$5","v":0},{"$f":"'Population 2016'!AP79/'Population 2016'!AP$5","v":0},{"$f":"'Population 2016'!AQ79/'Population 2016'!AQ$5","v":0},{"$f":"'Population 2016'!AR79/'Population 2016'!AR$5","v":0},{"$f":"'Population 2016'!AS79/'Population 2016'!AS$5","v":0},{"$f":"'Population 2016'!AT79/'Population 2016'!AT$5","v":0},{"$f":"'Population 2016'!AU79/'Population 2016'!AU$5","v":0},{"$f":"'Population 2016'!AV79/'Population 2016'!AV$5","v":0},{"$f":"'Population 2016'!AW79/'Population 2016'!AW$5","v":0},{"$f":"'Population 2016'!AX79/'Population 2016'!AX$5","v":0},{"$f":"'Population 2016'!AY79/'Population 2016'!AY$5","v":0},{"$f":"'Population 2016'!AZ79/'Population 2016'!AZ$5","v":0},{"$f":"'Population 2016'!BA79/'Population 2016'!BA$5","v":0},{"$f":"'Population 2016'!BB79/'Population 2016'!BB$5","v":0},{"$f":"'Population 2016'!BC79/'Population 2016'!BC$5","v":0},77]
[null,"Male 5-9",{"$f":"'Population 2016'!C80/'Population 2016'!C$5","v":0},{"$f":"'Population 2016'!D80/'Population 2016'!D$5","v":0},{"$f":"'Population 2016'!E80/'Population 2016'!E$5","v":0},{"$f":"'Population 2016'!F80/'Population 2016'!F$5","v":0},{"$f":"'Population 2016'!G80/'Population 2016'!G$5","v":0},{"$f":"'Population 2016'!H80/'Population 2016'!H$5","v":0},{"$f":"'Population 2016'!I80/'Population 2016'!I$5","v":0},{"$f":"'Population 2016'!J80/'Population 2016'!J$5","v":0},{"$f":"'Population 2016'!K80/'Population 2016'!K$5","v":0},{"$f":"'Population 2016'!L80/'Population 2016'!L$5","v":0},{"$f":"'Population 2016'!M80/'Population 2016'!M$5","v":0},{"$f":"'Population 2016'!N80/'Population 2016'!N$5","v":0},{"$f":"'Population 2016'!O80/'Population 2016'!O$5","v":0},{"$f":"'Population 2016'!P80/'Population 2016'!P$5","v":0},{"$f":"'Population 2016'!Q80/'Population 2016'!Q$5","v":0},{"$f":"'Population 2016'!R80/'Population 2016'!R$5","v":0},{"$f":"'Population 2016'!S80/'Population 2016'!S$5","v":0},{"$f":"'Population 2016'!T80/'Population 2016'!T$5","v":0},{"$f":"'Population 2016'!U80/'Population 2016'!U$5","v":0},{"$f":"'Population 2016'!V80/'Population 2016'!V$5","v":0},{"$f":"'Population 2016'!W80/'Population 2016'!W$5","v":0},{"$f":"'Population 2016'!X80/'Population 2016'!X$5","v":0},{"$f":"'Population 2016'!Y80/'Population 2016'!Y$5","v":0},{"$f":"'Population 2016'!Z80/'Population 2016'!Z$5","v":0},{"$f":"'Population 2016'!AA80/'Population 2016'!AA$5","v":0},{"$f":"'Population 2016'!AB80/'Population 2016'!AB$5","v":0},{"$f":"'Population 2016'!AC80/'Population 2016'!AC$5","v":0},{"$f":"'Population 2016'!AD80/'Population 2016'!AD$5","v":0},{"$f":"'Population 2016'!AE80/'Population 2016'!AE$5","v":0},{"$f":"'Population 2016'!AF80/'Population 2016'!AF$5","v":0},{"$f":"'Population 2016'!AG80/'Population 2016'!AG$5","v":0},{"$f":"'Population 2016'!AH80/'Population 2016'!AH$5","v":0},{"$f":"'Population 2016'!AI80/'Population 2016'!AI$5","v":0},{"$f":"'Population 2016'!AJ80/'Population 2016'!AJ$5","v":0},{"$f":"'Population 2016'!AK80/'Population 2016'!AK$5","v":0},{"$f":"'Population 2016'!AL80/'Population 2016'!AL$5","v":0},{"$f":"'Population 2016'!AM80/'Population 2016'!AM$5","v":0},{"$f":"'Population 2016'!AN80/'Population 2016'!AN$5","v":0},{"$f":"'Population 2016'!AO80/'Population 2016'!AO$5","v":0},{"$f":"'Population 2016'!AP80/'Population 2016'!AP$5","v":0},{"$f":"'Population 2016'!AQ80/'Population 2016'!AQ$5","v":0},{"$f":"'Population 2016'!AR80/'Population 2016'!AR$5","v":0},{"$f":"'Population 2016'!AS80/'Population 2016'!AS$5","v":0},{"$f":"'Population 2016'!AT80/'Population 2016'!AT$5","v":0},{"$f":"'Population 2016'!AU80/'Population 2016'!AU$5","v":0},{"$f":"'Population 2016'!AV80/'Population 2016'!AV$5","v":0},{"$f":"'Population 2016'!AW80/'Population 2016'!AW$5","v":0},{"$f":"'Population 2016'!AX80/'Population 2016'!AX$5","v":0},{"$f":"'Population 2016'!AY80/'Population 2016'!AY$5","v":0},{"$f":"'Population 2016'!AZ80/'Population 2016'!AZ$5","v":0},{"$f":"'Population 2016'!BA80/'Population 2016'!BA$5","v":0},{"$f":"'Population 2016'!BB80/'Population 2016'!BB$5","v":0},{"$f":"'Population 2016'!BC80/'Population 2016'!BC$5","v":0},78]
[null,"Male 10-15",{"$f":"'Population 2016'!C81/'Population 2016'!C$5","v":0},{"$f":"'Population 2016'!D81/'Population 2016'!D$5","v":0},{"$f":"'Population 2016'!E81/'Population 2016'!E$5","v":0},{"$f":"'Population 2016'!F81/'Population 2016'!F$5","v":0},{"$f":"'Population 2016'!G81/'Population 2016'!G$5","v":0},{"$f":"'Population 2016'!H81/'Population 2016'!H$5","v":0},{"$f":"'Population 2016'!I81/'Population 2016'!I$5","v":0},{"$f":"'Population 2016'!J81/'Population 2016'!J$5","v":0},{"$f":"'Population 2016'!K81/'Population 2016'!K$5","v":0},{"$f":"'Population 2016'!L81/'Population 2016'!L$5","v":0},{"$f":"'Population 2016'!M81/'Population 2016'!M$5","v":0},{"$f":"'Population 2016'!N81/'Population 2016'!N$5","v":0},{"$f":"'Population 2016'!O81/'Population 2016'!O$5","v":0},{"$f":"'Population 2016'!P81/'Population 2016'!P$5","v":0},{"$f":"'Population 2016'!Q81/'Population 2016'!Q$5","v":0},{"$f":"'Population 2016'!R81/'Population 2016'!R$5","v":0},{"$f":"'Population 2016'!S81/'Population 2016'!S$5","v":0},{"$f":"'Population 2016'!T81/'Population 2016'!T$5","v":0},{"$f":"'Population 2016'!U81/'Population 2016'!U$5","v":0},{"$f":"'Population 2016'!V81/'Population 2016'!V$5","v":0},{"$f":"'Population 2016'!W81/'Population 2016'!W$5","v":0},{"$f":"'Population 2016'!X81/'Population 2016'!X$5","v":0},{"$f":"'Population 2016'!Y81/'Population 2016'!Y$5","v":0},{"$f":"'Population 2016'!Z81/'Population 2016'!Z$5","v":0},{"$f":"'Population 2016'!AA81/'Population 2016'!AA$5","v":0},{"$f":"'Population 2016'!AB81/'Population 2016'!AB$5","v":0},{"$f":"'Population 2016'!AC81/'Population 2016'!AC$5","v":0},{"$f":"'Population 2016'!AD81/'Population 2016'!AD$5","v":0},{"$f":"'Population 2016'!AE81/'Population 2016'!AE$5","v":0},{"$f":"'Population 2016'!AF81/'Population 2016'!AF$5","v":0},{"$f":"'Population 2016'!AG81/'Population 2016'!AG$5","v":0},{"$f":"'Population 2016'!AH81/'Population 2016'!AH$5","v":0},{"$f":"'Population 2016'!AI81/'Population 2016'!AI$5","v":0},{"$f":"'Population 2016'!AJ81/'Population 2016'!AJ$5","v":0},{"$f":"'Population 2016'!AK81/'Population 2016'!AK$5","v":0},{"$f":"'Population 2016'!AL81/'Population 2016'!AL$5","v":0},{"$f":"'Population 2016'!AM81/'Population 2016'!AM$5","v":0},{"$f":"'Population 2016'!AN81/'Population 2016'!AN$5","v":0},{"$f":"'Population 2016'!AO81/'Population 2016'!AO$5","v":0},{"$f":"'Population 2016'!AP81/'Population 2016'!AP$5","v":0},{"$f":"'Population 2016'!AQ81/'Population 2016'!AQ$5","v":0},{"$f":"'Population 2016'!AR81/'Population 2016'!AR$5","v":0},{"$f":"'Population 2016'!AS81/'Population 2016'!AS$5","v":0},{"$f":"'Population 2016'!AT81/'Population 2016'!AT$5","v":0},{"$f":"'Population 2016'!AU81/'Population 2016'!AU$5","v":0},{"$f":"'Population 2016'!AV81/'Population 2016'!AV$5","v":0},{"$f":"'Population 2016'!AW81/'Population 2016'!AW$5","v":0},{"$f":"'Population 2016'!AX81/'Population 2016'!AX$5","v":0},{"$f":"'Population 2016'!AY81/'Population 2016'!AY$5","v":0},{"$f":"'Population 2016'!AZ81/'Population 2016'!AZ$5","v":0},{"$f":"'Population 2016'!BA81/'Population 2016'!BA$5","v":0},{"$f":"'Population 2016'!BB81/'Population 2016'!BB$5","v":0},{"$f":"'Population 2016'!BC81/'Population 2016'!BC$5","v":0},79]
[null,"Male 16-19",{"$f":"'Population 2016'!C82/'Population 2016'!C$5","v":1.9268807531701534E-3},{"$f":"'Population 2016'!D82/'Population 2016'!D$5","v":1.1394423090089296E-3},{"$f":"'Population 2016'!E82/'Population 2016'!E$5","v":4.1721553166853398E-4},{"$f":"'Population 2016'!F82/'Population 2016'!F$5","v":2.4826165336080349E-3},{"$f":"'Population 2016'!G82/'Population 2016'!G$5","v":2.4089211281329509E-3},{"$f":"'Population 2016'!H82/'Population 2016'!H$5","v":8.8874334090975407E-3},{"$f":"'Population 2016'!I82/'Population 2016'!I$5","v":1.8528598944811993E-3},{"$f":"'Population 2016'!J82/'Population 2016'!J$5","v":5.7553718185813924E-3},{"$f":"'Population 2016'!K82/'Population 2016'!K$5","v":8.0801398667485706E-3},{"$f":"'Population 2016'!L82/'Population 2016'!L$5","v":2.3350753736914843E-3},{"$f":"'Population 2016'!M82/'Population 2016'!M$5","v":2.3350753736914843E-3},{"$f":"'Population 2016'!N82/'Population 2016'!N$5","v":9.4115945057506364E-3},{"$f":"'Population 2016'!O82/'Population 2016'!O$5","v":9.3123705927224808E-3},{"$f":"'Population 2016'!P82/'Population 2016'!P$5","v":1.5327397723430632E-3},{"$f":"'Population 2016'!Q82/'Population 2016'!Q$5","v":1.0340654046368434E-3},{"$f":"'Population 2016'!R82/'Population 2016'!R$5","v":2.1690530686112736E-3},{"$f":"'Population 2016'!S82/'Population 2016'!S$5","v":3.9657811256004283E-3},{"$f":"'Population 2016'!T82/'Population 2016'!T$5","v":3.4922732581676385E-3},{"$f":"'Population 2016'!U82/'Population 2016'!U$5","v":0},{"$f":"'Population 2016'!V82/'Population 2016'!V$5","v":3.8314468672960822E-3},{"$f":"'Population 2016'!W82/'Population 2016'!W$5","v":5.8308656743736066E-3},{"$f":"'Population 2016'!X82/'Population 2016'!X$5","v":5.8308656743736066E-3},{"$f":"'Population 2016'!Y82/'Population 2016'!Y$5","v":4.7535015341568501E-3},{"$f":"'Population 2016'!Z82/'Population 2016'!Z$5","v":1.3157614555647398E-2},{"$f":"'Population 2016'!AA82/'Population 2016'!AA$5","v":9.2847457109125498E-3},{"$f":"'Population 2016'!AB82/'Population 2016'!AB$5","v":1.0009928047245223E-3},{"$f":"'Population 2016'!AC82/'Population 2016'!AC$5","v":1.0112303768350981E-2},{"$f":"'Population 2016'!AD82/'Population 2016'!AD$5","v":2.1883955487736798E-3},{"$f":"'Population 2016'!AE82/'Population 2016'!AE$5","v":2.104744401893243E-3},{"$f":"'Population 2016'!AF82/'Population 2016'!AF$5","v":1.167262362575216E-2},{"$f":"'Population 2016'!AG82/'Population 2016'!AG$5","v":2.104744401893243E-3},{"$f":"'Population 2016'!AH82/'Population 2016'!AH$5","v":7.7984079953187261E-3},{"$f":"'Population 2016'!AI82/'Population 2016'!AI$5","v":3.4615889404147346E-3},{"$f":"'Population 2016'!AJ82/'Population 2016'!AJ$5","v":2.8859827677550679E-3},{"$f":"'Population 2016'!AK82/'Population 2016'!AK$5","v":2.8915177954062581E-4},{"$f":"'Population 2016'!AL82/'Population 2016'!AL$5","v":1.214948298185559E-2},{"$f":"'Population 2016'!AM82/'Population 2016'!AM$5","v":9.8880441593532566E-3},{"$f":"'Population 2016'!AN82/'Population 2016'!AN$5","v":0},{"$f":"'Population 2016'!AO82/'Population 2016'!AO$5","v":0},{"$f":"'Population 2016'!AP82/'Population 2016'!AP$5","v":1.355357227779275E-3},{"$f":"'Population 2016'!AQ82/'Population 2016'!AQ$5","v":7.3162711678632104E-3},{"$f":"'Population 2016'!AR82/'Population 2016'!AR$5","v":5.6494154428939868E-3},{"$f":"'Population 2016'!AS82/'Population 2016'!AS$5","v":1.8528598944811993E-3},{"$f":"'Population 2016'!AT82/'Population 2016'!AT$5","v":0},{"$f":"'Population 2016'!AU82/'Population 2016'!AU$5","v":0},{"$f":"'Population 2016'!AV82/'Population 2016'!AV$5","v":4.5507338190265024E-3},{"$f":"'Population 2016'!AW82/'Population 2016'!AW$5","v":5.5982671303923363E-3},{"$f":"'Population 2016'!AX82/'Population 2016'!AX$5","v":4.4980001788977346E-3},{"$f":"'Population 2016'!AY82/'Population 2016'!AY$5","v":5.1513111593892479E-3},{"$f":"'Population 2016'!AZ82/'Population 2016'!AZ$5","v":4.5532730065408356E-3},{"$f":"'Population 2016'!BA82/'Population 2016'!BA$5","v":1.1323148348088966E-2},{"$f":"'Population 2016'!BB82/'Population 2016'!BB$5","v":5.0820656939850719E-3},{"$f":"'Population 2016'!BC82/'Population 2016'!BC$5","v":0},80]
[null,"Male 20-24",{"$f":"'Population 2016'!C83/'Population 2016'!C$5","v":3.1484311510684734E-3},{"$f":"'Population 2016'!D83/'Population 2016'!D$5","v":2.0734915837759063E-3},{"$f":"'Population 2016'!E83/'Population 2016'!E$5","v":1.087573071315729E-3},{"$f":"'Population 2016'!F83/'Population 2016'!F$5","v":3.5024465619366467E-3},{"$f":"'Population 2016'!G83/'Population 2016'!G$5","v":3.7757808693769284E-3},{"$f":"'Population 2016'!H83/'Population 2016'!H$5","v":1.245732183792512E-2},{"$f":"'Population 2016'!I83/'Population 2016'!I$5","v":2.2087764843815427E-3},{"$f":"'Population 2016'!J83/'Population 2016'!J$5","v":7.3559291110687243E-3},{"$f":"'Population 2016'!K83/'Population 2016'!K$5","v":1.0088361763455086E-2},{"$f":"'Population 2016'!L83/'Population 2016'!L$5","v":3.4867281940495292E-3},{"$f":"'Population 2016'!M83/'Population 2016'!M$5","v":3.4867281940495292E-3},{"$f":"'Population 2016'!N83/'Population 2016'!N$5","v":1.5535962578664374E-2},{"$f":"'Population 2016'!O83/'Population 2016'!O$5","v":1.2868903616964366E-2},{"$f":"'Population 2016'!P83/'Population 2016'!P$5","v":1.9046545700439536E-3},{"$f":"'Population 2016'!Q83/'Population 2016'!Q$5","v":1.3983384449066404E-3},{"$f":"'Population 2016'!R83/'Population 2016'!R$5","v":2.5815723638686326E-3},{"$f":"'Population 2016'!S83/'Population 2016'!S$5","v":5.4256969906667776E-3},{"$f":"'Population 2016'!T83/'Population 2016'!T$5","v":5.113935124218834E-3},{"$f":"'Population 2016'!U83/'Population 2016'!U$5","v":0},{"$f":"'Population 2016'!V83/'Population 2016'!V$5","v":5.6250524725044073E-3},{"$f":"'Population 2016'!W83/'Population 2016'!W$5","v":7.5141032429287677E-3},{"$f":"'Population 2016'!X83/'Population 2016'!X$5","v":7.5141032429287677E-3},{"$f":"'Population 2016'!Y83/'Population 2016'!Y$5","v":6.4545873674504376E-3},{"$f":"'Population 2016'!Z83/'Population 2016'!Z$5","v":2.0534938238385699E-2},{"$f":"'Population 2016'!AA83/'Population 2016'!AA$5","v":1.3838423500006976E-2},{"$f":"'Population 2016'!AB83/'Population 2016'!AB$5","v":1.7850014840895367E-3},{"$f":"'Population 2016'!AC83/'Population 2016'!AC$5","v":1.5518564563806703E-2},{"$f":"'Population 2016'!AD83/'Population 2016'!AD$5","v":3.1448881610778219E-3},{"$f":"'Population 2016'!AE83/'Population 2016'!AE$5","v":2.9055739791989652E-3},{"$f":"'Population 2016'!AF83/'Population 2016'!AF$5","v":1.661916180307349E-2},{"$f":"'Population 2016'!AG83/'Population 2016'!AG$5","v":2.9055739791989652E-3},{"$f":"'Population 2016'!AH83/'Population 2016'!AH$5","v":1.0820801946815527E-2},{"$f":"'Population 2016'!AI83/'Population 2016'!AI$5","v":4.972274477207105E-3},{"$f":"'Population 2016'!AJ83/'Population 2016'!AJ$5","v":4.6147840392605196E-3},{"$f":"'Population 2016'!AK83/'Population 2016'!AK$5","v":3.0172359604239214E-4},{"$f":"'Population 2016'!AL83/'Population 2016'!AL$5","v":1.6601337329951581E-2},{"$f":"'Population 2016'!AM83/'Population 2016'!AM$5","v":1.3571612258277162E-2},{"$f":"'Population 2016'!AN83/'Population 2016'!AN$5","v":0},{"$f":"'Population 2016'!AO83/'Population 2016'!AO$5","v":0},{"$f":"'Population 2016'!AP83/'Population 2016'!AP$5","v":2.4491542887941282E-3},{"$f":"'Population 2016'!AQ83/'Population 2016'!AQ$5","v":1.1960870280046035E-2},{"$f":"'Population 2016'!AR83/'Population 2016'!AR$5","v":8.2828686528174794E-3},{"$f":"'Population 2016'!AS83/'Population 2016'!AS$5","v":2.2087764843815427E-3},{"$f":"'Population 2016'!AT83/'Population 2016'!AT$5","v":0},{"$f":"'Population 2016'!AU83/'Population 2016'!AU$5","v":0},{"$f":"'Population 2016'!AV83/'Population 2016'!AV$5","v":7.0847851335656218E-3},{"$f":"'Population 2016'!AW83/'Population 2016'!AW$5","v":7.9245225456098609E-3},{"$f":"'Population 2016'!AX83/'Population 2016'!AX$5","v":5.8780684156049942E-3},{"$f":"'Population 2016'!AY83/'Population 2016'!AY$5","v":7.4676417490284874E-3},{"$f":"'Population 2016'!AZ83/'Population 2016'!AZ$5","v":7.426753570997118E-3},{"$f":"'Population 2016'!BA83/'Population 2016'!BA$5","v":1.5992766141222199E-2},{"$f":"'Population 2016'!BB83/'Population 2016'!BB$5","v":6.8290257762924399E-3},{"$f":"'Population 2016'!BC83/'Population 2016'!BC$5","v":0},81]
[null,"Male 25-29",{"$f":"'Population 2016'!C84/'Population 2016'!C$5","v":5.284866575007794E-3},{"$f":"'Population 2016'!D84/'Population 2016'!D$5","v":3.1713662549025363E-3},{"$f":"'Population 2016'!E84/'Population 2016'!E$5","v":1.2328953351553307E-3},{"$f":"'Population 2016'!F84/'Population 2016'!F$5","v":3.2346124130826679E-3},{"$f":"'Population 2016'!G84/'Population 2016'!G$5","v":3.044984572078168E-3},{"$f":"'Population 2016'!H84/'Population 2016'!H$5","v":1.1993657854889385E-2},{"$f":"'Population 2016'!I84/'Population 2016'!I$5","v":1.6539653295368896E-3},{"$f":"'Population 2016'!J84/'Population 2016'!J$5","v":7.1734821658111011E-3},{"$f":"'Population 2016'!K84/'Population 2016'!K$5","v":8.1746444265935834E-3},{"$f":"'Population 2016'!L84/'Population 2016'!L$5","v":3.9394468889488981E-3},{"$f":"'Population 2016'!M84/'Population 2016'!M$5","v":3.9394468889488981E-3},{"$f":"'Population 2016'!N84/'Population 2016'!N$5","v":2.1821075220420989E-2},{"$f":"'Population 2016'!O84/'Population 2016'!O$5","v":1.2700488404117256E-2},{"$f":"'Population 2016'!P84/'Population 2016'!P$5","v":1.8370336977347008E-3},{"$f":"'Population 2016'!Q84/'Population 2016'!Q$5","v":1.2338280396235063E-3},{"$f":"'Population 2016'!R84/'Population 2016'!R$5","v":2.6081865119497523E-3},{"$f":"'Population 2016'!S84/'Population 2016'!S$5","v":6.4513452586275376E-3},{"$f":"'Population 2016'!T84/'Population 2016'!T$5","v":7.7593146675476845E-3},{"$f":"'Population 2016'!U84/'Population 2016'!U$5","v":0},{"$f":"'Population 2016'!V84/'Population 2016'!V$5","v":6.3501270788652205E-3},{"$f":"'Population 2016'!W84/'Population 2016'!W$5","v":7.9782192327051433E-3},{"$f":"'Population 2016'!X84/'Population 2016'!X$5","v":7.9782192327051433E-3},{"$f":"'Population 2016'!Y84/'Population 2016'!Y$5","v":6.7447258390168682E-3},{"$f":"'Population 2016'!Z84/'Population 2016'!Z$5","v":2.6181659094472717E-2},{"$f":"'Population 2016'!AA84/'Population 2016'!AA$5","v":1.5809646435554565E-2},{"$f":"'Population 2016'!AB84/'Population 2016'!AB$5","v":2.6795492461848666E-3},{"$f":"'Population 2016'!AC84/'Population 2016'!AC$5","v":1.8854166451188509E-2},{"$f":"'Population 2016'!AD84/'Population 2016'!AD$5","v":3.0592876549183075E-3},{"$f":"'Population 2016'!AE84/'Population 2016'!AE$5","v":3.0647131900738201E-3},{"$f":"'Population 2016'!AF84/'Population 2016'!AF$5","v":1.6754889984768283E-2},{"$f":"'Population 2016'!AG84/'Population 2016'!AG$5","v":3.0647131900738201E-3},{"$f":"'Population 2016'!AH84/'Population 2016'!AH$5","v":1.0341528658870735E-2},{"$f":"'Population 2016'!AI84/'Population 2016'!AI$5","v":6.4392116545629536E-3},{"$f":"'Population 2016'!AJ84/'Population 2016'!AJ$5","v":3.5551961631765331E-3},{"$f":"'Population 2016'!AK84/'Population 2016'!AK$5","v":1.5086179802119607E-4},{"$f":"'Population 2016'!AL84/'Population 2016'!AL$5","v":1.5138078430677E-2},{"$f":"'Population 2016'!AM84/'Population 2016'!AM$5","v":1.2945007262098365E-2},{"$f":"'Population 2016'!AN84/'Population 2016'!AN$5","v":0},{"$f":"'Population 2016'!AO84/'Population 2016'!AO$5","v":0},{"$f":"'Population 2016'!AP84/'Population 2016'!AP$5","v":3.5112470871708702E-3},{"$f":"'Population 2016'!AQ84/'Population 2016'!AQ$5","v":1.4139310571600811E-2},{"$f":"'Population 2016'!AR84/'Population 2016'!AR$5","v":9.490322878160963E-3},{"$f":"'Population 2016'!AS84/'Population 2016'!AS$5","v":1.6539653295368896E-3},{"$f":"'Population 2016'!AT84/'Population 2016'!AT$5","v":0},{"$f":"'Population 2016'!AU84/'Population 2016'!AU$5","v":0},{"$f":"'Population 2016'!AV84/'Population 2016'!AV$5","v":7.4965684721782283E-3},{"$f":"'Population 2016'!AW84/'Population 2016'!AW$5","v":7.6003722008664348E-3},{"$f":"'Population 2016'!AX84/'Population 2016'!AX$5","v":6.6319945819543298E-3},{"$f":"'Population 2016'!AY84/'Population 2016'!AY$5","v":9.0465408035249831E-3},{"$f":"'Population 2016'!AZ84/'Population 2016'!AZ$5","v":9.9867112310232358E-3},{"$f":"'Population 2016'!BA84/'Population 2016'!BA$5","v":1.5790326063485207E-2},{"$f":"'Population 2016'!BB84/'Population 2016'!BB$5","v":7.0085552709169127E-3},{"$f":"'Population 2016'!BC84/'Population 2016'!BC$5","v":0},82]
[null,"Male 30-34",{"$f":"'Population 2016'!C85/'Population 2016'!C$5","v":4.4313146233382573E-3},{"$f":"'Population 2016'!D85/'Population 2016'!D$5","v":2.7874768932836477E-3},{"$f":"'Population 2016'!E85/'Population 2016'!E$5","v":1.2797734847810086E-3},{"$f":"'Population 2016'!F85/'Population 2016'!F$5","v":2.6577388617048674E-3},{"$f":"'Population 2016'!G85/'Population 2016'!G$5","v":2.3818545986033671E-3},{"$f":"'Population 2016'!H85/'Population 2016'!H$5","v":1.0573484256500213E-2},{"$f":"'Population 2016'!I85/'Population 2016'!I$5","v":1.8214554894899924E-3},{"$f":"'Population 2016'!J85/'Population 2016'!J$5","v":6.2944196113880069E-3},{"$f":"'Population 2016'!K85/'Population 2016'!K$5","v":8.5762888059348862E-3},{"$f":"'Population 2016'!L85/'Population 2016'!L$5","v":2.7480819023716105E-3},{"$f":"'Population 2016'!M85/'Population 2016'!M$5","v":2.7480819023716105E-3},{"$f":"'Population 2016'!N85/'Population 2016'!N$5","v":1.7119296581766745E-2},{"$f":"'Population 2016'!O85/'Population 2016'!O$5","v":1.1055963384551372E-2},{"$f":"'Population 2016'!P85/'Population 2016'!P$5","v":1.5101994815733123E-3},{"$f":"'Population 2016'!Q85/'Population 2016'!Q$5","v":1.2925817557960541E-3},{"$f":"'Population 2016'!R85/'Population 2016'!R$5","v":2.448501623463033E-3},{"$f":"'Population 2016'!S85/'Population 2016'!S$5","v":5.8423114334184801E-3},{"$f":"'Population 2016'!T85/'Population 2016'!T$5","v":6.7030241550839215E-3},{"$f":"'Population 2016'!U85/'Population 2016'!U$5","v":0},{"$f":"'Population 2016'!V85/'Population 2016'!V$5","v":5.8311263079964277E-3},{"$f":"'Population 2016'!W85/'Population 2016'!W$5","v":7.4748821733702014E-3},{"$f":"'Population 2016'!X85/'Population 2016'!X$5","v":7.4748821733702014E-3},{"$f":"'Population 2016'!Y85/'Population 2016'!Y$5","v":6.0531629067900354E-3},{"$f":"'Population 2016'!Z85/'Population 2016'!Z$5","v":2.2925647959766388E-2},{"$f":"'Population 2016'!AA85/'Population 2016'!AA$5","v":1.4359963777865033E-2},{"$f":"'Population 2016'!AB85/'Population 2016'!AB$5","v":2.3520260380950433E-3},{"$f":"'Population 2016'!AC85/'Population 2016'!AC$5","v":1.685073672844167E-2},{"$f":"'Population 2016'!AD85/'Population 2016'!AD$5","v":2.962521865346682E-3},{"$f":"'Population 2016'!AE85/'Population 2016'!AE$5","v":3.1827842174970995E-3},{"$f":"'Population 2016'!AF85/'Population 2016'!AF$5","v":1.5774630894750334E-2},{"$f":"'Population 2016'!AG85/'Population 2016'!AG$5","v":3.1827842174970995E-3},{"$f":"'Population 2016'!AH85/'Population 2016'!AH$5","v":9.8864048001634734E-3},{"$f":"'Population 2016'!AI85/'Population 2016'!AI$5","v":5.6845524542829644E-3},{"$f":"'Population 2016'!AJ85/'Population 2016'!AJ$5","v":3.9176867523631597E-3},{"$f":"'Population 2016'!AK85/'Population 2016'!AK$5","v":1.1314634851589707E-4},{"$f":"'Population 2016'!AL85/'Population 2016'!AL$5","v":1.3745765417427856E-2},{"$f":"'Population 2016'!AM85/'Population 2016'!AM$5","v":1.2206120445795046E-2},{"$f":"'Population 2016'!AN85/'Population 2016'!AN$5","v":0},{"$f":"'Population 2016'!AO85/'Population 2016'!AO$5","v":0},{"$f":"'Population 2016'!AP85/'Population 2016'!AP$5","v":2.4570803544536565E-3},{"$f":"'Population 2016'!AQ85/'Population 2016'!AQ$5","v":1.3296706307886227E-2},{"$f":"'Population 2016'!AR85/'Population 2016'!AR$5","v":8.4668828945395659E-3},{"$f":"'Population 2016'!AS85/'Population 2016'!AS$5","v":1.8214554894899924E-3},{"$f":"'Population 2016'!AT85/'Population 2016'!AT$5","v":0},{"$f":"'Population 2016'!AU85/'Population 2016'!AU$5","v":0},{"$f":"'Population 2016'!AV85/'Population 2016'!AV$5","v":6.282335550628234E-3},{"$f":"'Population 2016'!AW85/'Population 2016'!AW$5","v":7.4440173286960763E-3},{"$f":"'Population 2016'!AX85/'Population 2016'!AX$5","v":5.0602502012599511E-3},{"$f":"'Population 2016'!AY85/'Population 2016'!AY$5","v":7.626755607233561E-3},{"$f":"'Population 2016'!AZ85/'Population 2016'!AZ$5","v":7.7604109738769267E-3},{"$f":"'Population 2016'!BA85/'Population 2016'!BA$5","v":1.5439429928741092E-2},{"$f":"'Population 2016'!BB85/'Population 2016'!BB$5","v":6.1178127783570293E-3},{"$f":"'Population 2016'!BC85/'Population 2016'!BC$5","v":0},83]
[null,"Male 35-39",{"$f":"'Population 2016'!C86/'Population 2016'!C$5","v":4.221759952569089E-3},{"$f":"'Population 2016'!D86/'Population 2016'!D$5","v":2.5258452901421122E-3},{"$f":"'Population 2016'!E86/'Population 2016'!E$5","v":9.7037769725153409E-4},{"$f":"'Population 2016'!F86/'Population 2016'!F$5","v":2.637136234869946E-3},{"$f":"'Population 2016'!G86/'Population 2016'!G$5","v":2.0299897147187788E-3},{"$f":"'Population 2016'!H86/'Population 2016'!H$5","v":9.4483695564065075E-3},{"$f":"'Population 2016'!I86/'Population 2016'!I$5","v":1.9575412444518886E-3},{"$f":"'Population 2016'!J86/'Population 2016'!J$5","v":5.4485292288299347E-3},{"$f":"'Population 2016'!K86/'Population 2016'!K$5","v":8.5526626659736329E-3},{"$f":"'Population 2016'!L86/'Population 2016'!L$5","v":2.3668451066668783E-3},{"$f":"'Population 2016'!M86/'Population 2016'!M$5","v":2.3668451066668783E-3},{"$f":"'Population 2016'!N86/'Population 2016'!N$5","v":1.2321071201806769E-2},{"$f":"'Population 2016'!O86/'Population 2016'!O$5","v":9.3916248105328851E-3},{"$f":"'Population 2016'!P86/'Population 2016'!P$5","v":1.5327397723430632E-3},{"$f":"'Population 2016'!Q86/'Population 2016'!Q$5","v":1.010563918167824E-3},{"$f":"'Population 2016'!R86/'Population 2016'!R$5","v":2.1956672166923937E-3},{"$f":"'Population 2016'!S86/'Population 2016'!S$5","v":5.4000999168536427E-3},{"$f":"'Population 2016'!T86/'Population 2016'!T$5","v":6.0957734419714938E-3},{"$f":"'Population 2016'!U86/'Population 2016'!U$5","v":0},{"$f":"'Population 2016'!V86/'Population 2016'!V$5","v":5.5029346440646923E-3},{"$f":"'Population 2016'!W86/'Population 2016'!W$5","v":6.9388608894031204E-3},{"$f":"'Population 2016'!X86/'Population 2016'!X$5","v":6.9388608894031204E-3},{"$f":"'Population 2016'!Y86/'Population 2016'!Y$5","v":5.4768604632676743E-3},{"$f":"'Population 2016'!Z86/'Population 2016'!Z$5","v":1.8699802355091052E-2},{"$f":"'Population 2016'!AA86/'Population 2016'!AA$5","v":1.2298384819656687E-2},{"$f":"'Population 2016'!AB86/'Population 2016'!AB$5","v":2.1677942335445177E-3},{"$f":"'Population 2016'!AC86/'Population 2016'!AC$5","v":1.3816114732293385E-2},{"$f":"'Population 2016'!AD86/'Population 2016'!AD$5","v":2.2777178160705647E-3},{"$f":"'Population 2016'!AE86/'Population 2016'!AE$5","v":2.3716875943284839E-3},{"$f":"'Population 2016'!AF86/'Population 2016'!AF$5","v":1.2532235443152514E-2},{"$f":"'Population 2016'!AG86/'Population 2016'!AG$5","v":2.3716875943284839E-3},{"$f":"'Population 2016'!AH86/'Population 2016'!AH$5","v":9.5724622200756056E-3},{"$f":"'Population 2016'!AI86/'Population 2016'!AI$5","v":5.2060547729460144E-3},{"$f":"'Population 2016'!AJ86/'Population 2016'!AJ$5","v":3.3181830856314309E-3},{"$f":"'Population 2016'!AK86/'Population 2016'!AK$5","v":3.2686722904592486E-4},{"$f":"'Population 2016'!AL86/'Population 2016'!AL$5","v":1.22736382824001E-2},{"$f":"'Population 2016'!AM86/'Population 2016'!AM$5","v":1.1496209583072249E-2},{"$f":"'Population 2016'!AN86/'Population 2016'!AN$5","v":0},{"$f":"'Population 2016'!AO86/'Population 2016'!AO$5","v":0},{"$f":"'Population 2016'!AP86/'Population 2016'!AP$5","v":2.4174500261560168E-3},{"$f":"'Population 2016'!AQ86/'Population 2016'!AQ$5","v":1.1029210281142105E-2},{"$f":"'Population 2016'!AR86/'Population 2016'!AR$5","v":7.3480941270718586E-3},{"$f":"'Population 2016'!AS86/'Population 2016'!AS$5","v":1.9575412444518886E-3},{"$f":"'Population 2016'!AT86/'Population 2016'!AT$5","v":0},{"$f":"'Population 2016'!AU86/'Population 2016'!AU$5","v":0},{"$f":"'Population 2016'!AV86/'Population 2016'!AV$5","v":6.1450744377573646E-3},{"$f":"'Population 2016'!AW86/'Population 2016'!AW$5","v":7.5469827323204584E-3},{"$f":"'Population 2016'!AX86/'Population 2016'!AX$5","v":3.769630831746681E-3},{"$f":"'Population 2016'!AY86/'Population 2016'!AY$5","v":6.4517609620268661E-3},{"$f":"'Population 2016'!AZ86/'Population 2016'!AZ$5","v":6.0230913933648203E-3},{"$f":"'Population 2016'!BA86/'Population 2016'!BA$5","v":1.2902180954437487E-2},{"$f":"'Population 2016'!BB86/'Population 2016'!BB$5","v":5.9659032059824748E-3},{"$f":"'Population 2016'!BC86/'Population 2016'!BC$5","v":0},84]
[null,"Male 40-44",{"$f":"'Population 2016'!C87/'Population 2016'!C$5","v":3.449985433394837E-3},{"$f":"'Population 2016'!D87/'Population 2016'!D$5","v":2.1688526353882418E-3},{"$f":"'Population 2016'!E87/'Population 2016'!E$5","v":9.9381677206437317E-4},{"$f":"'Population 2016'!F87/'Population 2016'!F$5","v":2.5856296677826424E-3},{"$f":"'Population 2016'!G87/'Population 2016'!G$5","v":2.2600552157202402E-3},{"$f":"'Population 2016'!H87/'Population 2016'!H$5","v":1.0317334223914038E-2},{"$f":"'Population 2016'!I87/'Population 2016'!I$5","v":1.9889456494430954E-3},{"$f":"'Population 2016'!J87/'Population 2016'!J$5","v":5.2494961976397997E-3},{"$f":"'Population 2016'!K87/'Population 2016'!K$5","v":8.3164012663611026E-3},{"$f":"'Population 2016'!L87/'Population 2016'!L$5","v":2.7083697361523678E-3},{"$f":"'Population 2016'!M87/'Population 2016'!M$5","v":2.7083697361523678E-3},{"$f":"'Population 2016'!N87/'Population 2016'!N$5","v":1.0416248061018638E-2},{"$f":"'Population 2016'!O87/'Population 2016'!O$5","v":1.1125310825135475E-2},{"$f":"'Population 2016'!P87/'Population 2016'!P$5","v":1.5327397723430632E-3},{"$f":"'Population 2016'!Q87/'Population 2016'!Q$5","v":1.5628488501897744E-3},{"$f":"'Population 2016'!R87/'Population 2016'!R$5","v":2.2488955128546336E-3},{"$f":"'Population 2016'!S87/'Population 2016'!S$5","v":5.2509307625633085E-3},{"$f":"'Population 2016'!T87/'Population 2016'!T$5","v":5.5141156707910078E-3},{"$f":"'Population 2016'!U87/'Population 2016'!U$5","v":0},{"$f":"'Population 2016'!V87/'Population 2016'!V$5","v":5.7548026652216059E-3},{"$f":"'Population 2016'!W87/'Population 2016'!W$5","v":6.8702240176756286E-3},{"$f":"'Population 2016'!X87/'Population 2016'!X$5","v":6.8702240176756286E-3},{"$f":"'Population 2016'!Y87/'Population 2016'!Y$5","v":5.5126309597621657E-3},{"$f":"'Population 2016'!Z87/'Population 2016'!Z$5","v":1.6802720956748479E-2},{"$f":"'Population 2016'!AA87/'Population 2016'!AA$5","v":1.1525707949403285E-2},{"$f":"'Population 2016'!AB87/'Population 2016'!AB$5","v":1.8771173863647995E-3},{"$f":"'Population 2016'!AC87/'Population 2016'!AC$5","v":1.2540828801396712E-2},{"$f":"'Population 2016'!AD87/'Population 2016'!AD$5","v":2.6052327961591424E-3},{"$f":"'Population 2016'!AE87/'Population 2016'!AE$5","v":2.7361677224612161E-3},{"$f":"'Population 2016'!AF87/'Population 2016'!AF$5","v":1.2879096351928094E-2},{"$f":"'Population 2016'!AG87/'Population 2016'!AG$5","v":2.7361677224612161E-3},{"$f":"'Population 2016'!AH87/'Population 2016'!AH$5","v":9.7024976082776809E-3},{"$f":"'Population 2016'!AI87/'Population 2016'!AI$5","v":4.9996172018549308E-3},{"$f":"'Population 2016'!AJ87/'Population 2016'!AJ$5","v":3.7224995120318993E-3},{"$f":"'Population 2016'!AK87/'Population 2016'!AK$5","v":3.7715449505299018E-4},{"$f":"'Population 2016'!AL87/'Population 2016'!AL$5","v":1.322253950799028E-2},{"$f":"'Population 2016'!AM87/'Population 2016'!AM$5","v":1.1590381432208946E-2},{"$f":"'Population 2016'!AN87/'Population 2016'!AN$5","v":0},{"$f":"'Population 2016'!AO87/'Population 2016'!AO$5","v":0},{"$f":"'Population 2016'!AP87/'Population 2016'!AP$5","v":1.9973685462010369E-3},{"$f":"'Population 2016'!AQ87/'Population 2016'!AQ$5","v":9.6454211651230345E-3},{"$f":"'Population 2016'!AR87/'Population 2016'!AR$5","v":7.0448939055418811E-3},{"$f":"'Population 2016'!AS87/'Population 2016'!AS$5","v":1.9889456494430954E-3},{"$f":"'Population 2016'!AT87/'Population 2016'!AT$5","v":0},{"$f":"'Population 2016'!AU87/'Population 2016'!AU$5","v":0},{"$f":"'Population 2016'!AV87/'Population 2016'!AV$5","v":5.9972547777425826E-3},{"$f":"'Population 2016'!AW87/'Population 2016'!AW$5","v":7.714778204893526E-3},{"$f":"'Population 2016'!AX87/'Population 2016'!AX$5","v":3.5907330973587027E-3},{"$f":"'Population 2016'!AY87/'Population 2016'!AY$5","v":5.9682996236345275E-3},{"$f":"'Population 2016'!AZ87/'Population 2016'!AZ$5","v":5.1745661015584104E-3},{"$f":"'Population 2016'!BA87/'Population 2016'!BA$5","v":1.184949255020514E-2},{"$f":"'Population 2016'!BB87/'Population 2016'!BB$5","v":6.1247177589195088E-3},{"$f":"'Population 2016'!BC87/'Population 2016'!BC$5","v":0},85]
[null,"Male 45-49",{"$f":"'Population 2016'!C88/'Population 2016'!C$5","v":3.1995420463780265E-3},{"$f":"'Population 2016'!D88/'Population 2016'!D$5","v":1.9928014631808533E-3},{"$f":"'Population 2016'!E88/'Population 2016'!E$5","v":8.8599702792531378E-4},{"$f":"'Population 2016'!F88/'Population 2016'!F$5","v":2.8534638166366213E-3},{"$f":"'Population 2016'!G88/'Population 2016'!G$5","v":2.7472527472527475E-3},{"$f":"'Population 2016'!H88/'Population 2016'!H$5","v":1.168562933469082E-2},{"$f":"'Population 2016'!I88/'Population 2016'!I$5","v":2.6379700192613684E-3},{"$f":"'Population 2016'!J88/'Population 2016'!J$5","v":6.4685735136793742E-3},{"$f":"'Population 2016'!K88/'Population 2016'!K$5","v":1.004110948353258E-2},{"$f":"'Population 2016'!L88/'Population 2016'!L$5","v":3.2246278970025255E-3},{"$f":"'Population 2016'!M88/'Population 2016'!M$5","v":3.2246278970025255E-3},{"$f":"'Population 2016'!N88/'Population 2016'!N$5","v":1.3068533446926161E-2},{"$f":"'Population 2016'!O88/'Population 2016'!O$5","v":1.2680674849664656E-2},{"$f":"'Population 2016'!P88/'Population 2016'!P$5","v":2.0849768962019608E-3},{"$f":"'Population 2016'!Q88/'Population 2016'!Q$5","v":1.1045698640439008E-3},{"$f":"'Population 2016'!R88/'Population 2016'!R$5","v":2.4351945494224731E-3},{"$f":"'Population 2016'!S88/'Population 2016'!S$5","v":5.8440767488538688E-3},{"$f":"'Population 2016'!T88/'Population 2016'!T$5","v":5.3628846502840818E-3},{"$f":"'Population 2016'!U88/'Population 2016'!U$5","v":0},{"$f":"'Population 2016'!V88/'Population 2016'!V$5","v":6.4951420001373829E-3},{"$f":"'Population 2016'!W88/'Population 2016'!W$5","v":8.6122931905686408E-3},{"$f":"'Population 2016'!X88/'Population 2016'!X$5","v":8.6122931905686408E-3},{"$f":"'Population 2016'!Y88/'Population 2016'!Y$5","v":6.4824088647239316E-3},{"$f":"'Population 2016'!Z88/'Population 2016'!Z$5","v":1.833974404887501E-2},{"$f":"'Population 2016'!AA88/'Population 2016'!AA$5","v":1.3197294368627327E-2},{"$f":"'Population 2016'!AB88/'Population 2016'!AB$5","v":1.7481551231794317E-3},{"$f":"'Population 2016'!AC88/'Population 2016'!AC$5","v":1.4300164866648325E-2},{"$f":"'Population 2016'!AD88/'Population 2016'!AD$5","v":2.7466597193792101E-3},{"$f":"'Population 2016'!AE88/'Population 2016'!AE$5","v":2.7464347683241099E-3},{"$f":"'Population 2016'!AF88/'Population 2016'!AF$5","v":1.6860456348308676E-2},{"$f":"'Population 2016'!AG88/'Population 2016'!AG$5","v":2.7464347683241099E-3},{"$f":"'Population 2016'!AH88/'Population 2016'!AH$5","v":1.1216481056630411E-2},{"$f":"'Population 2016'!AI88/'Population 2016'!AI$5","v":5.1048866917490594E-3},{"$f":"'Population 2016'!AJ88/'Population 2016'!AJ$5","v":4.3080612330256814E-3},{"$f":"'Population 2016'!AK88/'Population 2016'!AK$5","v":4.9030084356888731E-4},{"$f":"'Population 2016'!AL88/'Population 2016'!AL$5","v":1.5288838438481049E-2},{"$f":"'Population 2016'!AM88/'Population 2016'!AM$5","v":1.3716492026179774E-2},{"$f":"'Population 2016'!AN88/'Population 2016'!AN$5","v":0},{"$f":"'Population 2016'!AO88/'Population 2016'!AO$5","v":0},{"$f":"'Population 2016'!AP88/'Population 2016'!AP$5","v":2.0369988744986765E-3},{"$f":"'Population 2016'!AQ88/'Population 2016'!AQ$5","v":1.2419849838329588E-2},{"$f":"'Population 2016'!AR88/'Population 2016'!AR$5","v":7.9928123056962203E-3},{"$f":"'Population 2016'!AS88/'Population 2016'!AS$5","v":2.6379700192613684E-3},{"$f":"'Population 2016'!AT88/'Population 2016'!AT$5","v":0},{"$f":"'Population 2016'!AU88/'Population 2016'!AU$5","v":0},{"$f":"'Population 2016'!AV88/'Population 2016'!AV$5","v":6.3351282863477985E-3},{"$f":"'Population 2016'!AW88/'Population 2016'!AW$5","v":8.5842638354994196E-3},{"$f":"'Population 2016'!AX88/'Population 2016'!AX$5","v":4.5363354076951579E-3},{"$f":"'Population 2016'!AY88/'Population 2016'!AY$5","v":7.3360668278204463E-3},{"$f":"'Population 2016'!AZ88/'Population 2016'!AZ$5","v":6.2129309501757456E-3},{"$f":"'Population 2016'!BA88/'Population 2016'!BA$5","v":1.4211293457136688E-2},{"$f":"'Population 2016'!BB88/'Population 2016'!BB$5","v":7.084510057104189E-3},{"$f":"'Population 2016'!BC88/'Population 2016'!BC$5","v":0},86]
[null,"Male 50-54",{"$f":"'Population 2016'!C89/'Population 2016'!C$5","v":3.1433200615375179E-3},{"$f":"'Population 2016'!D89/'Population 2016'!D$5","v":1.8876597908903299E-3},{"$f":"'Population 2016'!E89/'Population 2016'!E$5","v":7.3598694912314422E-4},{"$f":"'Population 2016'!F89/'Population 2016'!F$5","v":3.0079835178985319E-3},{"$f":"'Population 2016'!G89/'Population 2016'!G$5","v":3.5592486331402586E-3},{"$f":"'Population 2016'!H89/'Population 2016'!H$5","v":1.2580533246004546E-2},{"$f":"'Population 2016'!I89/'Population 2016'!I$5","v":2.7217150992379199E-3},{"$f":"'Population 2016'!J89/'Population 2016'!J$5","v":7.1403099939460783E-3},{"$f":"'Population 2016'!K89/'Population 2016'!K$5","v":1.0726267542408921E-2},{"$f":"'Population 2016'!L89/'Population 2016'!L$5","v":3.4708433275618318E-3},{"$f":"'Population 2016'!M89/'Population 2016'!M$5","v":3.4708433275618318E-3},{"$f":"'Population 2016'!N89/'Population 2016'!N$5","v":1.3381985356169778E-2},{"$f":"'Population 2016'!O89/'Population 2016'!O$5","v":1.3403869587184593E-2},{"$f":"'Population 2016'!P89/'Population 2016'!P$5","v":2.130057477741463E-3},{"$f":"'Population 2016'!Q89/'Population 2016'!Q$5","v":1.6803562825348703E-3},{"$f":"'Population 2016'!R89/'Population 2016'!R$5","v":3.2070048437749508E-3},{"$f":"'Population 2016'!S89/'Population 2016'!S$5","v":5.7637548965436885E-3},{"$f":"'Population 2016'!T89/'Population 2016'!T$5","v":5.560648292485447E-3},{"$f":"'Population 2016'!U89/'Population 2016'!U$5","v":0},{"$f":"'Population 2016'!V89/'Population 2016'!V$5","v":6.5485685500797581E-3},{"$f":"'Population 2016'!W89/'Population 2016'!W$5","v":7.9716823877787144E-3},{"$f":"'Population 2016'!X89/'Population 2016'!X$5","v":7.9716823877787144E-3},{"$f":"'Population 2016'!Y89/'Population 2016'!Y$5","v":6.8321648304478467E-3},{"$f":"'Population 2016'!Z89/'Population 2016'!Z$5","v":1.8783041640936693E-2},{"$f":"'Population 2016'!AA89/'Population 2016'!AA$5","v":1.3613197825874643E-2},{"$f":"'Population 2016'!AB89/'Population 2016'!AB$5","v":1.6314749802974319E-3},{"$f":"'Population 2016'!AC89/'Population 2016'!AC$5","v":1.5060371808423713E-2},{"$f":"'Population 2016'!AD89/'Population 2016'!AD$5","v":3.0332353269567161E-3},{"$f":"'Population 2016'!AE89/'Population 2016'!AE$5","v":2.8337046581587079E-3},{"$f":"'Population 2016'!AF89/'Population 2016'!AF$5","v":1.9378968164200937E-2},{"$f":"'Population 2016'!AG89/'Population 2016'!AG$5","v":2.8337046581587079E-3},{"$f":"'Population 2016'!AH89/'Population 2016'!AH$5","v":1.1013997380715752E-2},{"$f":"'Population 2016'!AI89/'Population 2016'!AI$5","v":5.2374989062910137E-3},{"$f":"'Population 2016'!AJ89/'Population 2016'!AJ$5","v":4.2522934500738921E-3},{"$f":"'Population 2016'!AK89/'Population 2016'!AK$5","v":3.1429541254415853E-4},{"$f":"'Population 2016'!AL89/'Population 2016'!AL$5","v":1.6805306752274703E-2},{"$f":"'Population 2016'!AM89/'Population 2016'!AM$5","v":1.3709248037784644E-2},{"$f":"'Population 2016'!AN89/'Population 2016'!AN$5","v":0},{"$f":"'Population 2016'!AO89/'Population 2016'!AO$5","v":0},{"$f":"'Population 2016'!AP89/'Population 2016'!AP$5","v":2.3540415008797932E-3},{"$f":"'Population 2016'!AQ89/'Population 2016'!AQ$5","v":1.2330794103140242E-2},{"$f":"'Population 2016'!AR89/'Population 2016'!AR$5","v":8.2253920494708699E-3},{"$f":"'Population 2016'!AS89/'Population 2016'!AS$5","v":2.7217150992379199E-3},{"$f":"'Population 2016'!AT89/'Population 2016'!AT$5","v":0},{"$f":"'Population 2016'!AU89/'Population 2016'!AU$5","v":0},{"$f":"'Population 2016'!AV89/'Population 2016'!AV$5","v":6.6730017949530145E-3},{"$f":"'Population 2016'!AW89/'Population 2016'!AW$5","v":8.1762157544694614E-3},{"$f":"'Population 2016'!AX89/'Population 2016'!AX$5","v":5.2008127068505052E-3},{"$f":"'Population 2016'!AY89/'Population 2016'!AY$5","v":7.180012851503932E-3},{"$f":"'Population 2016'!AZ89/'Population 2016'!AZ$5","v":6.4833085007852459E-3},{"$f":"'Population 2016'!BA89/'Population 2016'!BA$5","v":1.8125134960051824E-2},{"$f":"'Population 2016'!BB89/'Population 2016'!BB$5","v":6.8566456985423583E-3},{"$f":"'Population 2016'!BC89/'Population 2016'!BC$5","v":0},87]
[null,"Male 55-59",{"$f":"'Population 2016'!C90/'Population 2016'!C$5","v":2.8724323163968864E-3},{"$f":"'Population 2016'!D90/'Population 2016'!D$5","v":1.8191954461430123E-3},{"$f":"'Population 2016'!E90/'Population 2016'!E$5","v":8.5318232318733916E-4},{"$f":"'Population 2016'!F90/'Population 2016'!F$5","v":2.3899047128508885E-3},{"$f":"'Population 2016'!G90/'Population 2016'!G$5","v":2.882585394900666E-3},{"$f":"'Population 2016'!H90/'Population 2016'!H$5","v":1.2253050292951335E-2},{"$f":"'Population 2016'!I90/'Population 2016'!I$5","v":2.0622225944225778E-3},{"$f":"'Population 2016'!J90/'Population 2016'!J$5","v":6.750536974532065E-3},{"$f":"'Population 2016'!K90/'Population 2016'!K$5","v":1.0111987903416339E-2},{"$f":"'Population 2016'!L90/'Population 2016'!L$5","v":3.0896065318570995E-3},{"$f":"'Population 2016'!M90/'Population 2016'!M$5","v":3.0896065318570995E-3},{"$f":"'Population 2016'!N90/'Population 2016'!N$5","v":1.2899751649641137E-2},{"$f":"'Population 2016'!O90/'Population 2016'!O$5","v":1.2522166414043847E-2},{"$f":"'Population 2016'!P90/'Population 2016'!P$5","v":1.9497351515834554E-3},{"$f":"'Population 2016'!Q90/'Population 2016'!Q$5","v":1.3160832422650732E-3},{"$f":"'Population 2016'!R90/'Population 2016'!R$5","v":2.5682652898280727E-3},{"$f":"'Population 2016'!S90/'Population 2016'!S$5","v":5.0223224136804884E-3},{"$f":"'Population 2016'!T90/'Population 2016'!T$5","v":4.3833729636161434E-3},{"$f":"'Population 2016'!U90/'Population 2016'!U$5","v":0},{"$f":"'Population 2016'!V90/'Population 2016'!V$5","v":5.5487288297295856E-3},{"$f":"'Population 2016'!W90/'Population 2016'!W$5","v":7.8867034037351531E-3},{"$f":"'Population 2016'!X90/'Population 2016'!X$5","v":7.8867034037351531E-3},{"$f":"'Population 2016'!Y90/'Population 2016'!Y$5","v":6.1247038997790182E-3},{"$f":"'Population 2016'!Z90/'Population 2016'!Z$5","v":1.643491946115145E-2},{"$f":"'Population 2016'!AA90/'Population 2016'!AA$5","v":1.2134282337324279E-2},{"$f":"'Population 2016'!AB90/'Population 2016'!AB$5","v":1.5782524589828357E-3},{"$f":"'Population 2016'!AC90/'Population 2016'!AC$5","v":1.3196571932125414E-2},{"$f":"'Population 2016'!AD90/'Population 2016'!AD$5","v":2.7801555696155421E-3},{"$f":"'Population 2016'!AE90/'Population 2016'!AE$5","v":2.741301245392663E-3},{"$f":"'Population 2016'!AF90/'Population 2016'!AF$5","v":1.696602271184907E-2},{"$f":"'Population 2016'!AG90/'Population 2016'!AG$5","v":2.741301245392663E-3},{"$f":"'Population 2016'!AH90/'Population 2016'!AH$5","v":1.0226354457891754E-2},{"$f":"'Population 2016'!AI90/'Population 2016'!AI$5","v":4.210779595765159E-3},{"$f":"'Population 2016'!AJ90/'Population 2016'!AJ$5","v":3.7503834035077935E-3},{"$f":"'Population 2016'!AK90/'Population 2016'!AK$5","v":3.3943904554769119E-4},{"$f":"'Population 2016'!AL90/'Population 2016'!AL$5","v":1.649491850091343E-2},{"$f":"'Population 2016'!AM90/'Population 2016'!AM$5","v":1.2267694347153656E-2},{"$f":"'Population 2016'!AN90/'Population 2016'!AN$5","v":0},{"$f":"'Population 2016'!AO90/'Population 2016'!AO$5","v":0},{"$f":"'Population 2016'!AP90/'Population 2016'!AP$5","v":1.8467732986700062E-3},{"$f":"'Population 2016'!AQ90/'Population 2016'!AQ$5","v":1.1474488957088837E-2},{"$f":"'Population 2016'!AR90/'Population 2016'!AR$5","v":7.4075757282096285E-3},{"$f":"'Population 2016'!AS90/'Population 2016'!AS$5","v":2.0622225944225778E-3},{"$f":"'Population 2016'!AT90/'Population 2016'!AT$5","v":0},{"$f":"'Population 2016'!AU90/'Population 2016'!AU$5","v":0},{"$f":"'Population 2016'!AV90/'Population 2016'!AV$5","v":6.9158483792630138E-3},{"$f":"'Population 2016'!AW90/'Population 2016'!AW$5","v":8.0770638843126481E-3},{"$f":"'Population 2016'!AX90/'Population 2016'!AX$5","v":4.9324661052685386E-3},{"$f":"'Population 2016'!AY90/'Population 2016'!AY$5","v":6.8587252532052263E-3},{"$f":"'Population 2016'!AZ90/'Population 2016'!AZ$5","v":5.9540588272517557E-3},{"$f":"'Population 2016'!BA90/'Population 2016'!BA$5","v":1.4886093716259987E-2},{"$f":"'Population 2016'!BB90/'Population 2016'!BB$5","v":5.6275591584209689E-3},{"$f":"'Population 2016'!BC90/'Population 2016'!BC$5","v":0},88]
[null,"Male 60-64",{"$f":"'Population 2016'!C91/'Population 2016'!C$5","v":2.5862113026633889E-3},{"$f":"'Population 2016'!D91/'Population 2016'!D$5","v":1.484209187915065E-3},{"$f":"'Population 2016'!E91/'Population 2016'!E$5","v":4.7346931121934756E-4},{"$f":"'Population 2016'!F91/'Population 2016'!F$5","v":2.0190574298223022E-3},{"$f":"'Population 2016'!G91/'Population 2016'!G$5","v":2.8013858063119148E-3},{"$f":"'Population 2016'!H91/'Population 2016'!H$5","v":1.0472969686751207E-2},{"$f":"'Population 2016'!I91/'Population 2016'!I$5","v":1.6120927895486141E-3},{"$f":"'Population 2016'!J91/'Population 2016'!J$5","v":5.2660822835723115E-3},{"$f":"'Population 2016'!K91/'Population 2016'!K$5","v":7.8675046070972917E-3},{"$f":"'Population 2016'!L91/'Population 2016'!L$5","v":2.5574635045192444E-3},{"$f":"'Population 2016'!M91/'Population 2016'!M$5","v":2.5574635045192444E-3},{"$f":"'Population 2016'!N91/'Population 2016'!N$5","v":1.0400173604134351E-2},{"$f":"'Population 2016'!O91/'Population 2016'!O$5","v":1.0352582201484035E-2},{"$f":"'Population 2016'!P91/'Population 2016'!P$5","v":1.8032232615800743E-3},{"$f":"'Population 2016'!Q91/'Population 2016'!Q$5","v":1.0223146614023338E-3},{"$f":"'Population 2016'!R91/'Population 2016'!R$5","v":1.9428328099217545E-3},{"$f":"'Population 2016'!S91/'Population 2016'!S$5","v":4.203216051660191E-3},{"$f":"'Population 2016'!T91/'Population 2016'!T$5","v":3.7458760464023303E-3},{"$f":"'Population 2016'!U91/'Population 2016'!U$5","v":0},{"$f":"'Population 2016'!V91/'Population 2016'!V$5","v":4.7549629448714326E-3},{"$f":"'Population 2016'!W91/'Population 2016'!W$5","v":6.5956765307656606E-3},{"$f":"'Population 2016'!X91/'Population 2016'!X$5","v":6.5956765307656606E-3},{"$f":"'Population 2016'!Y91/'Population 2016'!Y$5","v":4.9999205100077901E-3},{"$f":"'Population 2016'!Z91/'Population 2016'!Z$5","v":1.3244725436183536E-2},{"$f":"'Population 2016'!AA91/'Population 2016'!AA$5","v":9.8527927651401153E-3},{"$f":"'Population 2016'!AB91/'Population 2016'!AB$5","v":1.2834815717019947E-3},{"$f":"'Population 2016'!AC91/'Population 2016'!AC$5","v":1.0643931480014315E-2},{"$f":"'Population 2016'!AD91/'Population 2016'!AD$5","v":2.4005359336037812E-3},{"$f":"'Population 2016'!AE91/'Population 2016'!AE$5","v":2.2484830439737573E-3},{"$f":"'Population 2016'!AF91/'Population 2016'!AF$5","v":1.4537996350420003E-2},{"$f":"'Population 2016'!AG91/'Population 2016'!AG$5","v":2.2484830439737573E-3},{"$f":"'Population 2016'!AH91/'Population 2016'!AH$5","v":8.4318661007031191E-3},{"$f":"'Population 2016'!AI91/'Population 2016'!AI$5","v":3.5408828418934291E-3},{"$f":"'Population 2016'!AJ91/'Population 2016'!AJ$5","v":3.401834760059114E-3},{"$f":"'Population 2016'!AK91/'Population 2016'!AK$5","v":2.5143633003532682E-4},{"$f":"'Population 2016'!AL91/'Population 2016'!AL$5","v":1.3967471311257338E-2},{"$f":"'Population 2016'!AM91/'Population 2016'!AM$5","v":9.8590682057727343E-3},{"$f":"'Population 2016'!AN91/'Population 2016'!AN$5","v":0},{"$f":"'Population 2016'!AO91/'Population 2016'!AO$5","v":0},{"$f":"'Population 2016'!AP91/'Population 2016'!AP$5","v":1.5376567379484171E-3},{"$f":"'Population 2016'!AQ91/'Population 2016'!AQ$5","v":8.1931276374198492E-3},{"$f":"'Population 2016'!AR91/'Population 2016'!AR$5","v":6.0947477300640285E-3},{"$f":"'Population 2016'!AS91/'Population 2016'!AS$5","v":1.6120927895486141E-3},{"$f":"'Population 2016'!AT91/'Population 2016'!AT$5","v":0},{"$f":"'Population 2016'!AU91/'Population 2016'!AU$5","v":0},{"$f":"'Population 2016'!AV91/'Population 2016'!AV$5","v":6.4407137577869285E-3},{"$f":"'Population 2016'!AW91/'Population 2016'!AW$5","v":6.9291903105741653E-3},{"$f":"'Population 2016'!AX91/'Population 2016'!AX$5","v":3.8590796989406697E-3},{"$f":"'Population 2016'!AY91/'Population 2016'!AY$5","v":5.6638413757228974E-3},{"$f":"'Population 2016'!AZ91/'Population 2016'!AZ$5","v":4.8437850555999792E-3},{"$f":"'Population 2016'!BA91/'Population 2016'!BA$5","v":1.3266573094364069E-2},{"$f":"'Population 2016'!BB91/'Population 2016'!BB$5","v":4.4813323850493364E-3},{"$f":"'Population 2016'!BC91/'Population 2016'!BC$5","v":0},89]
[null,"Male 65-69",{"$f":"'Population 2016'!C92/'Population 2016'!C$5","v":2.2233239459655617E-3},{"$f":"'Population 2016'!D92/'Population 2016'!D$5","v":1.3546159639290709E-3},{"$f":"'Population 2016'!E92/'Population 2016'!E$5","v":5.5784998054556794E-4},{"$f":"'Population 2016'!F92/'Population 2016'!F$5","v":2.111769250579449E-3},{"$f":"'Population 2016'!G92/'Population 2016'!G$5","v":2.3141882747794076E-3},{"$f":"'Population 2016'!H92/'Population 2016'!H$5","v":1.0064426596803637E-2},{"$f":"'Population 2016'!I92/'Population 2016'!I$5","v":2.0936269994137843E-3},{"$f":"'Population 2016'!J92/'Population 2016'!J$5","v":5.1416866390784771E-3},{"$f":"'Population 2016'!K92/'Population 2016'!K$5","v":7.9620091669423045E-3},{"$f":"'Population 2016'!L92/'Population 2016'!L$5","v":2.9466427334678253E-3},{"$f":"'Population 2016'!M92/'Population 2016'!M$5","v":2.9466427334678253E-3},{"$f":"'Population 2016'!N92/'Population 2016'!N$5","v":9.8857909838371335E-3},{"$f":"'Population 2016'!O92/'Population 2016'!O$5","v":1.0788480399441257E-2},{"$f":"'Population 2016'!P92/'Population 2016'!P$5","v":1.431308463879184E-3},{"$f":"'Population 2016'!Q92/'Population 2016'!Q$5","v":1.1868250666854678E-3},{"$f":"'Population 2016'!R92/'Population 2016'!R$5","v":1.8097620695161547E-3},{"$f":"'Population 2016'!S92/'Population 2016'!S$5","v":3.9331227900457396E-3},{"$f":"'Population 2016'!T92/'Population 2016'!T$5","v":3.0571932453246349E-3},{"$f":"'Population 2016'!U92/'Population 2016'!U$5","v":0},{"$f":"'Population 2016'!V92/'Population 2016'!V$5","v":4.9152425946985597E-3},{"$f":"'Population 2016'!W92/'Population 2016'!W$5","v":6.3701553808039012E-3},{"$f":"'Population 2016'!X92/'Population 2016'!X$5","v":6.3701553808039012E-3},{"$f":"'Population 2016'!Y92/'Population 2016'!Y$5","v":5.023767507670784E-3},{"$f":"'Population 2016'!Z92/'Population 2016'!Z$5","v":1.1800620616628886E-2},{"$f":"'Population 2016'!AA92/'Population 2016'!AA$5","v":9.0528762115845724E-3},{"$f":"'Population 2016'!AB92/'Population 2016'!AB$5","v":1.1729424889716795E-3},{"$f":"'Population 2016'!AC92/'Population 2016'!AC$5","v":9.5455100212857944E-3},{"$f":"'Population 2016'!AD92/'Population 2016'!AD$5","v":2.1474561762626077E-3},{"$f":"'Population 2016'!AE92/'Population 2016'!AE$5","v":2.0842103101674555E-3},{"$f":"'Population 2016'!AF92/'Population 2016'!AF$5","v":1.4749129077500792E-2},{"$f":"'Population 2016'!AG92/'Population 2016'!AG$5","v":2.0842103101674555E-3},{"$f":"'Population 2016'!AH92/'Population 2016'!AH$5","v":8.1680800274931964E-3},{"$f":"'Population 2016'!AI92/'Population 2016'!AI$5","v":3.1539832881266952E-3},{"$f":"'Population 2016'!AJ92/'Population 2016'!AJ$5","v":2.830214984803279E-3},{"$f":"'Population 2016'!AK92/'Population 2016'!AK$5","v":2.3886451353356047E-4},{"$f":"'Population 2016'!AL92/'Population 2016'!AL$5","v":1.3213671272237101E-2},{"$f":"'Population 2016'!AM92/'Population 2016'!AM$5","v":9.6598585249066428E-3},{"$f":"'Population 2016'!AN92/'Population 2016'!AN$5","v":0},{"$f":"'Population 2016'!AO92/'Population 2016'!AO$5","v":0},{"$f":"'Population 2016'!AP92/'Population 2016'!AP$5","v":1.2760965711839957E-3},{"$f":"'Population 2016'!AQ92/'Population 2016'!AQ$5","v":7.3642242560420894E-3},{"$f":"'Population 2016'!AR92/'Population 2016'!AR$5","v":5.6957531696230357E-3},{"$f":"'Population 2016'!AS92/'Population 2016'!AS$5","v":2.0936269994137843E-3},{"$f":"'Population 2016'!AT92/'Population 2016'!AT$5","v":0},{"$f":"'Population 2016'!AU92/'Population 2016'!AU$5","v":0},{"$f":"'Population 2016'!AV92/'Population 2016'!AV$5","v":5.5432372505543242E-3},{"$f":"'Population 2016'!AW92/'Population 2016'!AW$5","v":6.5974128988956007E-3},{"$f":"'Population 2016'!AX92/'Population 2016'!AX$5","v":3.6162899165569852E-3},{"$f":"'Population 2016'!AY92/'Population 2016'!AY$5","v":5.4236406474710078E-3},{"$f":"'Population 2016'!AZ92/'Population 2016'!AZ$5","v":4.5906656465187455E-3},{"$f":"'Population 2016'!BA92/'Population 2016'!BA$5","v":1.1026236234074714E-2},{"$f":"'Population 2016'!BB92/'Population 2016'!BB$5","v":4.7575316075485251E-3},{"$f":"'Population 2016'!BC92/'Population 2016'!BC$5","v":0},90]
[null,"Male 70-74",{"$f":"'Population 2016'!C93/'Population 2016'!C$5","v":1.2931056513316944E-3},{"$f":"'Population 2016'!D93/'Population 2016'!D$5","v":7.8244965425505904E-4},{"$f":"'Population 2016'!E93/'Population 2016'!E$5","v":3.1408360249204242E-4},{"$f":"'Population 2016'!F93/'Population 2016'!F$5","v":1.3906773113571979E-3},{"$f":"'Population 2016'!G93/'Population 2016'!G$5","v":2.11118930330753E-3},{"$f":"'Population 2016'!H93/'Population 2016'!H$5","v":7.4640174052325939E-3},{"$f":"'Population 2016'!I93/'Population 2016'!I$5","v":1.4550707645925802E-3},{"$f":"'Population 2016'!J93/'Population 2016'!J$5","v":3.6904041199837456E-3},{"$f":"'Population 2016'!K93/'Population 2016'!K$5","v":5.7884042905070173E-3},{"$f":"'Population 2016'!L93/'Population 2016'!L$5","v":1.7949899131097804E-3},{"$f":"'Population 2016'!M93/'Population 2016'!M$5","v":1.7949899131097804E-3},{"$f":"'Population 2016'!N93/'Population 2016'!N$5","v":7.0325748868760099E-3},{"$f":"'Population 2016'!O93/'Population 2016'!O$5","v":7.4003625880464828E-3},{"$f":"'Population 2016'!P93/'Population 2016'!P$5","v":9.9177279386904096E-4},{"$f":"'Population 2016'!Q93/'Population 2016'!Q$5","v":7.5204756700861328E-4},{"$f":"'Population 2016'!R93/'Population 2016'!R$5","v":1.1577154415287167E-3},{"$f":"'Population 2016'!S93/'Population 2016'!S$5","v":2.8924693408841759E-3},{"$f":"'Population 2016'!T93/'Population 2016'!T$5","v":2.0800081897414183E-3},{"$f":"'Population 2016'!U93/'Population 2016'!U$5","v":0},{"$f":"'Population 2016'!V93/'Population 2016'!V$5","v":3.0987398966577876E-3},{"$f":"'Population 2016'!W93/'Population 2016'!W$5","v":4.8699494701887188E-3},{"$f":"'Population 2016'!X93/'Population 2016'!X$5","v":4.8699494701887188E-3},{"$f":"'Population 2016'!Y93/'Population 2016'!Y$5","v":3.3822991685346815E-3},{"$f":"'Population 2016'!Z93/'Population 2016'!Z$5","v":8.5504168739582997E-3},{"$f":"'Population 2016'!AA93/'Population 2016'!AA$5","v":6.5235719596028856E-3},{"$f":"'Population 2016'!AB93/'Population 2016'!AB$5","v":6.8575171693806736E-4},{"$f":"'Population 2016'!AC93/'Population 2016'!AC$5","v":6.8615140839971781E-3},{"$f":"'Population 2016'!AD93/'Population 2016'!AD$5","v":1.5594179165581152E-3},{"$f":"'Population 2016'!AE93/'Population 2016'!AE$5","v":1.3501165309705437E-3},{"$f":"'Population 2016'!AF93/'Population 2016'!AF$5","v":1.0164532718032243E-2},{"$f":"'Population 2016'!AG93/'Population 2016'!AG$5","v":1.3501165309705437E-3},{"$f":"'Population 2016'!AH93/'Population 2016'!AH$5","v":5.9166101631944121E-3},{"$f":"'Population 2016'!AI93/'Population 2016'!AI$5","v":2.2530405109808384E-3},{"$f":"'Population 2016'!AJ93/'Population 2016'!AJ$5","v":2.1191757521679725E-3},{"$f":"'Population 2016'!AK93/'Population 2016'!AK$5","v":1.8857724752649509E-4},{"$f":"'Population 2016'!AL93/'Population 2016'!AL$5","v":1.0136393465883898E-2},{"$f":"'Population 2016'!AM93/'Population 2016'!AM$5","v":6.8057270972251898E-3},{"$f":"'Population 2016'!AN93/'Population 2016'!AN$5","v":0},{"$f":"'Population 2016'!AO93/'Population 2016'!AO$5","v":0},{"$f":"'Population 2016'!AP93/'Population 2016'!AP$5","v":9.432018134838229E-4},{"$f":"'Population 2016'!AQ93/'Population 2016'!AQ$5","v":5.2748396996766594E-3},{"$f":"'Population 2016'!AR93/'Population 2016'!AR$5","v":4.0897499389032617E-3},{"$f":"'Population 2016'!AS93/'Population 2016'!AS$5","v":1.4550707645925802E-3},{"$f":"'Population 2016'!AT93/'Population 2016'!AT$5","v":0},{"$f":"'Population 2016'!AU93/'Population 2016'!AU$5","v":0},{"$f":"'Population 2016'!AV93/'Population 2016'!AV$5","v":4.350121423292155E-3},{"$f":"'Population 2016'!AW93/'Population 2016'!AW$5","v":4.9804747086460432E-3},{"$f":"'Population 2016'!AX93/'Population 2016'!AX$5","v":2.555681919828258E-3},{"$f":"'Population 2016'!AY93/'Population 2016'!AY$5","v":4.0069153330681432E-3},{"$f":"'Population 2016'!AZ93/'Population 2016'!AZ$5","v":3.2474069642353782E-3},{"$f":"'Population 2016'!BA93/'Population 2016'!BA$5","v":8.0706110991146628E-3},{"$f":"'Population 2016'!BB93/'Population 2016'!BB$5","v":3.7148795426140877E-3},{"$f":"'Population 2016'!BC93/'Population 2016'!BC$5","v":0},91]
[null,"Male 75-79",{"$f":"'Population 2016'!C94/'Population 2016'!C$5","v":8.5355195166953736E-4},{"$f":"'Population 2016'!D94/'Population 2016'!D$5","v":5.5015991314808833E-4},{"$f":"'Population 2016'!E94/'Population 2016'!E$5","v":2.7189326782893226E-4},{"$f":"'Population 2016'!F94/'Population 2016'!F$5","v":1.2567602369302085E-3},{"$f":"'Population 2016'!G94/'Population 2016'!G$5","v":1.2179938288312672E-3},{"$f":"'Population 2016'!H94/'Population 2016'!H$5","v":5.82011782901499E-3},{"$f":"'Population 2016'!I94/'Population 2016'!I$5","v":7.6417385478603128E-4},{"$f":"'Population 2016'!J94/'Population 2016'!J$5","v":2.9523232959869964E-3},{"$f":"'Population 2016'!K94/'Population 2016'!K$5","v":4.2999574729480697E-3},{"$f":"'Population 2016'!L94/'Population 2016'!L$5","v":1.4534652836242911E-3},{"$f":"'Population 2016'!M94/'Population 2016'!M$5","v":1.4534652836242911E-3},{"$f":"'Population 2016'!N94/'Population 2016'!N$5","v":5.336719685583623E-3},{"$f":"'Population 2016'!O94/'Population 2016'!O$5","v":6.2908035387008255E-3},{"$f":"'Population 2016'!P94/'Population 2016'!P$5","v":7.5509974078665615E-4},{"$f":"'Population 2016'!Q94/'Population 2016'!Q$5","v":7.1679533730508458E-4},{"$f":"'Population 2016'!R94/'Population 2016'!R$5","v":1.3440144780965562E-3},{"$f":"'Population 2016'!S94/'Population 2016'!S$5","v":2.1033733412654841E-3},{"$f":"'Population 2016'!T94/'Population 2016'!T$5","v":1.6868075364234096E-3},{"$f":"'Population 2016'!U94/'Population 2016'!U$5","v":0},{"$f":"'Population 2016'!V94/'Population 2016'!V$5","v":2.6713274971187826E-3},{"$f":"'Population 2016'!W94/'Population 2016'!W$5","v":3.2684224632139052E-3},{"$f":"'Population 2016'!X94/'Population 2016'!X$5","v":3.2684224632139052E-3},{"$f":"'Population 2016'!Y94/'Population 2016'!Y$5","v":2.8059967250123208E-3},{"$f":"'Population 2016'!Z94/'Population 2016'!Z$5","v":6.4132966048050365E-3},{"$f":"'Population 2016'!AA94/'Population 2016'!AA$5","v":4.9509785357939404E-3},{"$f":"'Population 2016'!AB94/'Population 2016'!AB$5","v":4.7490865173024368E-4},{"$f":"'Population 2016'!AC94/'Population 2016'!AC$5","v":5.2397392748763502E-3},{"$f":"'Population 2016'!AD94/'Population 2016'!AD$5","v":1.0458148796010272E-3},{"$f":"'Population 2016'!AE94/'Population 2016'!AE$5","v":9.8050287990636463E-4},{"$f":"'Population 2016'!AF94/'Population 2016'!AF$5","v":7.630939993062782E-3},{"$f":"'Population 2016'!AG94/'Population 2016'!AG$5","v":9.8050287990636463E-4},{"$f":"'Population 2016'!AH94/'Population 2016'!AH$5","v":4.4323490892878709E-3},{"$f":"'Population 2016'!AI94/'Population 2016'!AI$5","v":1.7909484644325839E-3},{"$f":"'Population 2016'!AJ94/'Population 2016'!AJ$5","v":1.6172657056018737E-3},{"$f":"'Population 2016'!AK94/'Population 2016'!AK$5","v":8.800271551236438E-5},{"$f":"'Population 2016'!AL94/'Population 2016'!AL$5","v":7.5557368617087317E-3},{"$f":"'Population 2016'!AM94/'Population 2016'!AM$5","v":5.3533074240015065E-3},{"$f":"'Population 2016'!AN94/'Population 2016'!AN$5","v":0},{"$f":"'Population 2016'!AO94/'Population 2016'!AO$5","v":0},{"$f":"'Population 2016'!AP94/'Population 2016'!AP$5","v":7.609023033146807E-4},{"$f":"'Population 2016'!AQ94/'Population 2016'!AQ$5","v":4.6514495533512357E-3},{"$f":"'Population 2016'!AR94/'Population 2016'!AR$5","v":3.0997265851345455E-3},{"$f":"'Population 2016'!AS94/'Population 2016'!AS$5","v":7.6417385478603128E-4},{"$f":"'Population 2016'!AT94/'Population 2016'!AT$5","v":0},{"$f":"'Population 2016'!AU94/'Population 2016'!AU$5","v":0},{"$f":"'Population 2016'!AV94/'Population 2016'!AV$5","v":3.2520325203252032E-3},{"$f":"'Population 2016'!AW94/'Population 2016'!AW$5","v":3.4626883885532978E-3},{"$f":"'Population 2016'!AX94/'Population 2016'!AX$5","v":2.2234432702505848E-3},{"$f":"'Population 2016'!AY94/'Population 2016'!AY$5","v":2.8793488571341144E-3},{"$f":"'Population 2016'!AZ94/'Population 2016'!AZ$5","v":2.536946804655096E-3},{"$f":"'Population 2016'!BA94/'Population 2016'!BA$5","v":5.3984020729863956E-3},{"$f":"'Population 2016'!BB94/'Population 2016'!BB$5","v":2.8172320694917243E-3},{"$f":"'Population 2016'!BC94/'Population 2016'!BC$5","v":0},92]
[null,"Male 80-84",{"$f":"'Population 2016'!C95/'Population 2016'!C$5","v":6.1333074371463766E-4},{"$f":"'Population 2016'!D95/'Population 2016'!D$5","v":3.9611513746662364E-4},{"$f":"'Population 2016'!E95/'Population 2016'!E$5","v":1.9688822842784751E-4},{"$f":"'Population 2016'!F95/'Population 2016'!F$5","v":7.1079062580479014E-4},{"$f":"'Population 2016'!G95/'Population 2016'!G$5","v":9.3379526877063819E-4},{"$f":"'Population 2016'!H95/'Population 2016'!H$5","v":3.9038561928323385E-3},{"$f":"'Population 2016'!I95/'Population 2016'!I$5","v":5.8621555983585959E-4},{"$f":"'Population 2016'!J95/'Population 2016'!J$5","v":1.4098173042634535E-3},{"$f":"'Population 2016'!K95/'Population 2016'!K$5","v":1.9137173368615036E-3},{"$f":"'Population 2016'!L95/'Population 2016'!L$5","v":9.2132225628643589E-4},{"$f":"'Population 2016'!M95/'Population 2016'!M$5","v":9.2132225628643589E-4},{"$f":"'Population 2016'!N95/'Population 2016'!N$5","v":3.3917104025847728E-3},{"$f":"'Population 2016'!O95/'Population 2016'!O$5","v":4.180659989498816E-3},{"$f":"'Population 2016'!P95/'Population 2016'!P$5","v":4.8461625154964499E-4},{"$f":"'Population 2016'!Q95/'Population 2016'!Q$5","v":4.5827898614587373E-4},{"$f":"'Population 2016'!R95/'Population 2016'!R$5","v":6.3873955394687821E-4},{"$f":"'Population 2016'!S95/'Population 2016'!S$5","v":1.452854603324795E-3},{"$f":"'Population 2016'!T95/'Population 2016'!T$5","v":1.1540090180220844E-3},{"$f":"'Population 2016'!U95/'Population 2016'!U$5","v":0},{"$f":"'Population 2016'!V95/'Population 2016'!V$5","v":1.9538852550354522E-3},{"$f":"'Population 2016'!W95/'Population 2016'!W$5","v":2.3696062858300812E-3},{"$f":"'Population 2016'!X95/'Population 2016'!X$5","v":2.3696062858300812E-3},{"$f":"'Population 2016'!Y95/'Population 2016'!Y$5","v":1.6931368340725903E-3},{"$f":"'Population 2016'!Z95/'Population 2016'!Z$5","v":4.3826451896403868E-3},{"$f":"'Population 2016'!AA95/'Population 2016'!AA$5","v":3.2740770564133842E-3},{"$f":"'Population 2016'!AB95/'Population 2016'!AB$5","v":3.377583083426302E-4},{"$f":"'Population 2016'!AC95/'Population 2016'!AC$5","v":3.4866089805780055E-3},{"$f":"'Population 2016'!AD95/'Population 2016'!AD$5","v":7.2946518292455994E-4},{"$f":"'Population 2016'!AE95/'Population 2016'!AE$5","v":6.5195741229376076E-4},{"$f":"'Population 2016'!AF95/'Population 2016'!AF$5","v":4.9012954500897311E-3},{"$f":"'Population 2016'!AG95/'Population 2016'!AG$5","v":6.5195741229376076E-4},{"$f":"'Population 2016'!AH95/'Population 2016'!AH$5","v":2.8923585632947254E-3},{"$f":"'Population 2016'!AI95/'Population 2016'!AI$5","v":1.1825728410184619E-3},{"$f":"'Population 2016'!AJ95/'Population 2016'!AJ$5","v":1.0317039846080918E-3},{"$f":"'Population 2016'!AK95/'Population 2016'!AK$5","v":3.7715449505299018E-5},{"$f":"'Population 2016'!AL95/'Population 2016'!AL$5","v":4.9218708430144907E-3},{"$f":"'Population 2016'!AM95/'Population 2016'!AM$5","v":3.5133343716383368E-3},{"$f":"'Population 2016'!AN95/'Population 2016'!AN$5","v":0},{"$f":"'Population 2016'!AO95/'Population 2016'!AO$5","v":0},{"$f":"'Population 2016'!AP95/'Population 2016'!AP$5","v":5.0726820220978706E-4},{"$f":"'Population 2016'!AQ95/'Population 2016'!AQ$5","v":2.9114374965747794E-3},{"$f":"'Population 2016'!AR95/'Population 2016'!AR$5","v":2.0575732887956489E-3},{"$f":"'Population 2016'!AS95/'Population 2016'!AS$5","v":5.8621555983585959E-4},{"$f":"'Population 2016'!AT95/'Population 2016'!AT$5","v":0},{"$f":"'Population 2016'!AU95/'Population 2016'!AU$5","v":0},{"$f":"'Population 2016'!AV95/'Population 2016'!AV$5","v":2.3967902016682504E-3},{"$f":"'Population 2016'!AW95/'Population 2016'!AW$5","v":2.2385441454634207E-3},{"$f":"'Population 2016'!AX95/'Population 2016'!AX$5","v":1.1372784543235749E-3},{"$f":"'Population 2016'!AY95/'Population 2016'!AY$5","v":1.9583244086778251E-3},{"$f":"'Population 2016'!AZ95/'Population 2016'!AZ$5","v":1.5963780913646013E-3},{"$f":"'Population 2016'!BA95/'Population 2016'!BA$5","v":3.5899373785359535E-3},{"$f":"'Population 2016'!BB95/'Population 2016'!BB$5","v":1.7676750239948075E-3},{"$f":"'Population 2016'!BC95/'Population 2016'!BC$5","v":0},93]
[null,"Male 85-89",{"$f":"'Population 2016'!C96/'Population 2016'!C$5","v":3.1688755091922947E-4},{"$f":"'Population 2016'!D96/'Population 2016'!D$5","v":2.0294787907240594E-4},{"$f":"'Population 2016'!E96/'Population 2016'!E$5","v":9.8444114213923754E-5},{"$f":"'Population 2016'!F96/'Population 2016'!F$5","v":3.8114859644604689E-4},{"$f":"'Population 2016'!G96/'Population 2016'!G$5","v":5.277973258268825E-4},{"$f":"'Population 2016'!H96/'Population 2016'!H$5","v":1.8319590938125176E-3},{"$f":"'Population 2016'!I96/'Population 2016'!I$5","v":3.9778912988861902E-4},{"$f":"'Population 2016'!J96/'Population 2016'!J$5","v":8.6247646849058328E-4},{"$f":"'Population 2016'!K96/'Population 2016'!K$5","v":1.2994376978689222E-3},{"$f":"'Population 2016'!L96/'Population 2016'!L$5","v":5.3214302733785518E-4},{"$f":"'Population 2016'!M96/'Population 2016'!M$5","v":5.3214302733785518E-4},{"$f":"'Population 2016'!N96/'Population 2016'!N$5","v":1.8003391710402585E-3},{"$f":"'Population 2016'!O96/'Population 2016'!O$5","v":2.0606096630705066E-3},{"$f":"'Population 2016'!P96/'Population 2016'!P$5","v":2.5921334385213568E-4},{"$f":"'Population 2016'!Q96/'Population 2016'!Q$5","v":1.1750743234509583E-4},{"$f":"'Population 2016'!R96/'Population 2016'!R$5","v":3.193697769734391E-4},{"$f":"'Population 2016'!S96/'Population 2016'!S$5","v":6.9641693926079181E-4},{"$f":"'Population 2016'!T96/'Population 2016'!T$5","v":5.4443167382493493E-4},{"$f":"'Population 2016'!U96/'Population 2016'!U$5","v":0},{"$f":"'Population 2016'!V96/'Population 2016'!V$5","v":7.9376588485815256E-4},{"$f":"'Population 2016'!W96/'Population 2016'!W$5","v":1.1341425947352251E-3},{"$f":"'Population 2016'!X96/'Population 2016'!X$5","v":1.1341425947352251E-3},{"$f":"'Population 2016'!Y96/'Population 2016'!Y$5","v":8.2669591898379999E-4},{"$f":"'Population 2016'!Z96/'Population 2016'!Z$5","v":2.0964685249030648E-3},{"$f":"'Population 2016'!AA96/'Population 2016'!AA$5","v":1.5519975657024483E-3},{"$f":"'Population 2016'!AB96/'Population 2016'!AB$5","v":1.7809074439884139E-4},{"$f":"'Population 2016'!AC96/'Population 2016'!AC$5","v":1.6724552719058544E-3},{"$f":"'Population 2016'!AD96/'Population 2016'!AD$5","v":3.8706315828650119E-4},{"$f":"'Population 2016'!AE96/'Population 2016'!AE$5","v":3.3367899054405077E-4},{"$f":"'Population 2016'!AF96/'Population 2016'!AF$5","v":2.1264081798850836E-3},{"$f":"'Population 2016'!AG96/'Population 2016'!AG$5","v":3.3367899054405077E-4},{"$f":"'Population 2016'!AH96/'Population 2016'!AH$5","v":1.3356492016755989E-3},{"$f":"'Population 2016'!AI96/'Population 2016'!AI$5","v":5.5232303788607922E-4},{"$f":"'Population 2016'!AJ96/'Population 2016'!AJ$5","v":7.8074896132504252E-4},{"$f":"'Population 2016'!AK96/'Population 2016'!AK$5","v":5.0287266007065362E-5},{"$f":"'Population 2016'!AL96/'Population 2016'!AL$5","v":2.2259271740479947E-3},{"$f":"'Population 2016'!AM96/'Population 2016'!AM$5","v":1.5176155687798589E-3},{"$f":"'Population 2016'!AN96/'Population 2016'!AN$5","v":0},{"$f":"'Population 2016'!AO96/'Population 2016'!AO$5","v":0},{"$f":"'Population 2016'!AP96/'Population 2016'!AP$5","v":2.5363410110489353E-4},{"$f":"'Population 2016'!AQ96/'Population 2016'!AQ$5","v":1.5481997040609416E-3},{"$f":"'Population 2016'!AR96/'Population 2016'!AR$5","v":9.9113724143047241E-4},{"$f":"'Population 2016'!AS96/'Population 2016'!AS$5","v":3.9778912988861902E-4},{"$f":"'Population 2016'!AT96/'Population 2016'!AT$5","v":0},{"$f":"'Population 2016'!AU96/'Population 2016'!AU$5","v":0},{"$f":"'Population 2016'!AV96/'Population 2016'!AV$5","v":1.1192059972547777E-3},{"$f":"'Population 2016'!AW96/'Population 2016'!AW$5","v":1.1440600402709135E-3},{"$f":"'Population 2016'!AX96/'Population 2016'!AX$5","v":6.2614207035792326E-4},{"$f":"'Population 2016'!AY96/'Population 2016'!AY$5","v":9.7916220433891255E-4},{"$f":"'Population 2016'!AZ96/'Population 2016'!AZ$5","v":8.4277257796365435E-4},{"$f":"'Population 2016'!BA96/'Population 2016'!BA$5","v":1.6195206218959188E-3},{"$f":"'Population 2016'!BB96/'Population 2016'!BB$5","v":7.1811797849789057E-4},{"$f":"'Population 2016'!BC96/'Population 2016'!BC$5","v":0},94]
[null,"Male 90+",{"$f":"'Population 2016'!C97/'Population 2016'!C$5","v":1.2777723827388284E-4},{"$f":"'Population 2016'!D97/'Population 2016'!D$5","v":9.780620678188238E-5},{"$f":"'Population 2016'!E97/'Population 2016'!E$5","v":7.0317224438516964E-5},{"$f":"'Population 2016'!F97/'Population 2016'!F$5","v":1.1331444759206799E-4},{"$f":"'Population 2016'!G97/'Population 2016'!G$5","v":1.623991771775023E-4},{"$f":"'Population 2016'!H97/'Population 2016'!H$5","v":6.9711717729148903E-4},{"$f":"'Population 2016'!I97/'Population 2016'!I$5","v":1.465538899589649E-4},{"$f":"'Population 2016'!J97/'Population 2016'!J$5","v":3.7318693348150234E-4},{"$f":"'Population 2016'!K97/'Population 2016'!K$5","v":6.8515805887634082E-4},{"$f":"'Population 2016'!L97/'Population 2016'!L$5","v":2.0650326434006321E-4},{"$f":"'Population 2016'!M97/'Population 2016'!M$5","v":2.0650326434006321E-4},{"$f":"'Population 2016'!N97/'Population 2016'!N$5","v":7.3138778823510502E-4},{"$f":"'Population 2016'!O97/'Population 2016'!O$5","v":8.0244895533034151E-4},{"$f":"'Population 2016'!P97/'Population 2016'!P$5","v":1.0143130846387918E-4},{"$f":"'Population 2016'!Q97/'Population 2016'!Q$5","v":8.2255202641567078E-5},{"$f":"'Population 2016'!R97/'Population 2016'!R$5","v":1.4637781444615957E-4},{"$f":"'Population 2016'!S97/'Population 2016'!S$5","v":3.2746601326458019E-4},{"$f":"'Population 2016'!T97/'Population 2016'!T$5","v":2.5592941931941389E-4},{"$f":"'Population 2016'!U97/'Population 2016'!U$5","v":0},{"$f":"'Population 2016'!V97/'Population 2016'!V$5","v":3.9688294242907628E-4},{"$f":"'Population 2016'!W97/'Population 2016'!W$5","v":5.0987390426136922E-4},{"$f":"'Population 2016'!X97/'Population 2016'!X$5","v":5.0987390426136922E-4},{"$f":"'Population 2016'!Y97/'Population 2016'!Y$5","v":3.8552646221840669E-4},{"$f":"'Population 2016'!Z97/'Population 2016'!Z$5","v":8.9820996819484967E-4},{"$f":"'Population 2016'!AA97/'Population 2016'!AA$5","v":6.7833455247525679E-4},{"$f":"'Population 2016'!AB97/'Population 2016'!AB$5","v":8.5974842123578594E-5},{"$f":"'Population 2016'!AC97/'Population 2016'!AC$5","v":7.374524482800706E-4},{"$f":"'Population 2016'!AD97/'Population 2016'!AD$5","v":1.2281811753321671E-4},{"$f":"'Population 2016'!AE97/'Population 2016'!AE$5","v":1.0780398156038564E-4},{"$f":"'Population 2016'!AF97/'Population 2016'!AF$5","v":9.5009727186354796E-4},{"$f":"'Population 2016'!AG97/'Population 2016'!AG$5","v":1.0780398156038564E-4},{"$f":"'Population 2016'!AH97/'Population 2016'!AH$5","v":5.7215570808912995E-4},{"$f":"'Population 2016'!AI97/'Population 2016'!AI$5","v":2.7479438271064835E-4},{"$f":"'Population 2016'!AJ97/'Population 2016'!AJ$5","v":4.1825837213841564E-4},{"$f":"'Population 2016'!AK97/'Population 2016'!AK$5","v":2.5143633003532681E-5},{"$f":"'Population 2016'!AL97/'Population 2016'!AL$5","v":8.1587768929249212E-4},{"$f":"'Population 2016'!AM97/'Population 2016'!AM$5","v":6.8093490914227558E-4},{"$f":"'Population 2016'!AN97/'Population 2016'!AN$5","v":0},{"$f":"'Population 2016'!AO97/'Population 2016'!AO$5","v":0},{"$f":"'Population 2016'!AP97/'Population 2016'!AP$5","v":7.1334590935751306E-5},{"$f":"'Population 2016'!AQ97/'Population 2016'!AQ$5","v":6.4394146983065711E-4},{"$f":"'Population 2016'!AR97/'Population 2016'!AR$5","v":4.2684175198489212E-4},{"$f":"'Population 2016'!AS97/'Population 2016'!AS$5","v":1.465538899589649E-4},{"$f":"'Population 2016'!AT97/'Population 2016'!AT$5","v":0},{"$f":"'Population 2016'!AU97/'Population 2016'!AU$5","v":0},{"$f":"'Population 2016'!AV97/'Population 2016'!AV$5","v":4.434589800443459E-4},{"$f":"'Population 2016'!AW97/'Population 2016'!AW$5","v":4.5762401610836536E-4},{"$f":"'Population 2016'!AX97/'Population 2016'!AX$5","v":2.0445455358626064E-4},{"$f":"'Population 2016'!AY97/'Population 2016'!AY$5","v":4.0849423212264009E-4},{"$f":"'Population 2016'!AZ97/'Population 2016'!AZ$5","v":3.1927561827292027E-4},{"$f":"'Population 2016'!BA97/'Population 2016'!BA$5","v":9.7171237313755125E-4},{"$f":"'Population 2016'!BB97/'Population 2016'!BB$5","v":3.7286895037390468E-4},{"$f":"'Population 2016'!BC97/'Population 2016'!BC$5","v":0},95]
["SIMD Q2","Female 0-4",{"$f":"'Population 2016'!C98/'Population 2016'!C$5","v":0},{"$f":"'Population 2016'!D98/'Population 2016'!D$5","v":0},{"$f":"'Population 2016'!E98/'Population 2016'!E$5","v":0},{"$f":"'Population 2016'!F98/'Population 2016'!F$5","v":0},{"$f":"'Population 2016'!G98/'Population 2016'!G$5","v":0},{"$f":"'Population 2016'!H98/'Population 2016'!H$5","v":0},{"$f":"'Population 2016'!I98/'Population 2016'!I$5","v":0},{"$f":"'Population 2016'!J98/'Population 2016'!J$5","v":0},{"$f":"'Population 2016'!K98/'Population 2016'!K$5","v":0},{"$f":"'Population 2016'!L98/'Population 2016'!L$5","v":0},{"$f":"'Population 2016'!M98/'Population 2016'!M$5","v":0},{"$f":"'Population 2016'!N98/'Population 2016'!N$5","v":0},{"$f":"'Population 2016'!O98/'Population 2016'!O$5","v":0},{"$f":"'Population 2016'!P98/'Population 2016'!P$5","v":0},{"$f":"'Population 2016'!Q98/'Population 2016'!Q$5","v":0},{"$f":"'Population 2016'!R98/'Population 2016'!R$5","v":0},{"$f":"'Population 2016'!S98/'Population 2016'!S$5","v":0},{"$f":"'Population 2016'!T98/'Population 2016'!T$5","v":0},{"$f":"'Population 2016'!U98/'Population 2016'!U$5","v":0},{"$f":"'Population 2016'!V98/'Population 2016'!V$5","v":0},{"$f":"'Population 2016'!W98/'Population 2016'!W$5","v":0},{"$f":"'Population 2016'!X98/'Population 2016'!X$5","v":0},{"$f":"'Population 2016'!Y98/'Population 2016'!Y$5","v":0},{"$f":"'Population 2016'!Z98/'Population 2016'!Z$5","v":0},{"$f":"'Population 2016'!AA98/'Population 2016'!AA$5","v":0},{"$f":"'Population 2016'!AB98/'Population 2016'!AB$5","v":0},{"$f":"'Population 2016'!AC98/'Population 2016'!AC$5","v":0},{"$f":"'Population 2016'!AD98/'Population 2016'!AD$5","v":0},{"$f":"'Population 2016'!AE98/'Population 2016'!AE$5","v":0},{"$f":"'Population 2016'!AF98/'Population 2016'!AF$5","v":0},{"$f":"'Population 2016'!AG98/'Population 2016'!AG$5","v":0},{"$f":"'Population 2016'!AH98/'Population 2016'!AH$5","v":0},{"$f":"'Population 2016'!AI98/'Population 2016'!AI$5","v":0},{"$f":"'Population 2016'!AJ98/'Population 2016'!AJ$5","v":0},{"$f":"'Population 2016'!AK98/'Population 2016'!AK$5","v":0},{"$f":"'Population 2016'!AL98/'Population 2016'!AL$5","v":0},{"$f":"'Population 2016'!AM98/'Population 2016'!AM$5","v":0},{"$f":"'Population 2016'!AN98/'Population 2016'!AN$5","v":0},{"$f":"'Population 2016'!AO98/'Population 2016'!AO$5","v":0},{"$f":"'Population 2016'!AP98/'Population 2016'!AP$5","v":0},{"$f":"'Population 2016'!AQ98/'Population 2016'!AQ$5","v":0},{"$f":"'Population 2016'!AR98/'Population 2016'!AR$5","v":0},{"$f":"'Population 2016'!AS98/'Population 2016'!AS$5","v":0},{"$f":"'Population 2016'!AT98/'Population 2016'!AT$5","v":0},{"$f":"'Population 2016'!AU98/'Population 2016'!AU$5","v":0},{"$f":"'Population 2016'!AV98/'Population 2016'!AV$5","v":0},{"$f":"'Population 2016'!AW98/'Population 2016'!AW$5","v":0},{"$f":"'Population 2016'!AX98/'Population 2016'!AX$5","v":0},{"$f":"'Population 2016'!AY98/'Population 2016'!AY$5","v":0},{"$f":"'Population 2016'!AZ98/'Population 2016'!AZ$5","v":0},{"$f":"'Population 2016'!BA98/'Population 2016'!BA$5","v":0},{"$f":"'Population 2016'!BB98/'Population 2016'!BB$5","v":0},{"$f":"'Population 2016'!BC98/'Population 2016'!BC$5","v":0},96]
[null,"Female 5-9",{"$f":"'Population 2016'!C99/'Population 2016'!C$5","v":0},{"$f":"'Population 2016'!D99/'Population 2016'!D$5","v":0},{"$f":"'Population 2016'!E99/'Population 2016'!E$5","v":0},{"$f":"'Population 2016'!F99/'Population 2016'!F$5","v":0},{"$f":"'Population 2016'!G99/'Population 2016'!G$5","v":0},{"$f":"'Population 2016'!H99/'Population 2016'!H$5","v":0},{"$f":"'Population 2016'!I99/'Population 2016'!I$5","v":0},{"$f":"'Population 2016'!J99/'Population 2016'!J$5","v":0},{"$f":"'Population 2016'!K99/'Population 2016'!K$5","v":0},{"$f":"'Population 2016'!L99/'Population 2016'!L$5","v":0},{"$f":"'Population 2016'!M99/'Population 2016'!M$5","v":0},{"$f":"'Population 2016'!N99/'Population 2016'!N$5","v":0},{"$f":"'Population 2016'!O99/'Population 2016'!O$5","v":0},{"$f":"'Population 2016'!P99/'Population 2016'!P$5","v":0},{"$f":"'Population 2016'!Q99/'Population 2016'!Q$5","v":0},{"$f":"'Population 2016'!R99/'Population 2016'!R$5","v":0},{"$f":"'Population 2016'!S99/'Population 2016'!S$5","v":0},{"$f":"'Population 2016'!T99/'Population 2016'!T$5","v":0},{"$f":"'Population 2016'!U99/'Population 2016'!U$5","v":0},{"$f":"'Population 2016'!V99/'Population 2016'!V$5","v":0},{"$f":"'Population 2016'!W99/'Population 2016'!W$5","v":0},{"$f":"'Population 2016'!X99/'Population 2016'!X$5","v":0},{"$f":"'Population 2016'!Y99/'Population 2016'!Y$5","v":0},{"$f":"'Population 2016'!Z99/'Population 2016'!Z$5","v":0},{"$f":"'Population 2016'!AA99/'Population 2016'!AA$5","v":0},{"$f":"'Population 2016'!AB99/'Population 2016'!AB$5","v":0},{"$f":"'Population 2016'!AC99/'Population 2016'!AC$5","v":0},{"$f":"'Population 2016'!AD99/'Population 2016'!AD$5","v":0},{"$f":"'Population 2016'!AE99/'Population 2016'!AE$5","v":0},{"$f":"'Population 2016'!AF99/'Population 2016'!AF$5","v":0},{"$f":"'Population 2016'!AG99/'Population 2016'!AG$5","v":0},{"$f":"'Population 2016'!AH99/'Population 2016'!AH$5","v":0},{"$f":"'Population 2016'!AI99/'Population 2016'!AI$5","v":0},{"$f":"'Population 2016'!AJ99/'Population 2016'!AJ$5","v":0},{"$f":"'Population 2016'!AK99/'Population 2016'!AK$5","v":0},{"$f":"'Population 2016'!AL99/'Population 2016'!AL$5","v":0},{"$f":"'Population 2016'!AM99/'Population 2016'!AM$5","v":0},{"$f":"'Population 2016'!AN99/'Population 2016'!AN$5","v":0},{"$f":"'Population 2016'!AO99/'Population 2016'!AO$5","v":0},{"$f":"'Population 2016'!AP99/'Population 2016'!AP$5","v":0},{"$f":"'Population 2016'!AQ99/'Population 2016'!AQ$5","v":0},{"$f":"'Population 2016'!AR99/'Population 2016'!AR$5","v":0},{"$f":"'Population 2016'!AS99/'Population 2016'!AS$5","v":0},{"$f":"'Population 2016'!AT99/'Population 2016'!AT$5","v":0},{"$f":"'Population 2016'!AU99/'Population 2016'!AU$5","v":0},{"$f":"'Population 2016'!AV99/'Population 2016'!AV$5","v":0},{"$f":"'Population 2016'!AW99/'Population 2016'!AW$5","v":0},{"$f":"'Population 2016'!AX99/'Population 2016'!AX$5","v":0},{"$f":"'Population 2016'!AY99/'Population 2016'!AY$5","v":0},{"$f":"'Population 2016'!AZ99/'Population 2016'!AZ$5","v":0},{"$f":"'Population 2016'!BA99/'Population 2016'!BA$5","v":0},{"$f":"'Population 2016'!BB99/'Population 2016'!BB$5","v":0},{"$f":"'Population 2016'!BC99/'Population 2016'!BC$5","v":0},97]
[null,"Female 10-15",{"$f":"'Population 2016'!C100/'Population 2016'!C$5","v":0},{"$f":"'Population 2016'!D100/'Population 2016'!D$5","v":0},{"$f":"'Population 2016'!E100/'Population 2016'!E$5","v":0},{"$f":"'Population 2016'!F100/'Population 2016'!F$5","v":0},{"$f":"'Population 2016'!G100/'Population 2016'!G$5","v":0},{"$f":"'Population 2016'!H100/'Population 2016'!H$5","v":0},{"$f":"'Population 2016'!I100/'Population 2016'!I$5","v":0},{"$f":"'Population 2016'!J100/'Population 2016'!J$5","v":0},{"$f":"'Population 2016'!K100/'Population 2016'!K$5","v":0},{"$f":"'Population 2016'!L100/'Population 2016'!L$5","v":0},{"$f":"'Population 2016'!M100/'Population 2016'!M$5","v":0},{"$f":"'Population 2016'!N100/'Population 2016'!N$5","v":0},{"$f":"'Population 2016'!O100/'Population 2016'!O$5","v":0},{"$f":"'Population 2016'!P100/'Population 2016'!P$5","v":0},{"$f":"'Population 2016'!Q100/'Population 2016'!Q$5","v":0},{"$f":"'Population 2016'!R100/'Population 2016'!R$5","v":0},{"$f":"'Population 2016'!S100/'Population 2016'!S$5","v":0},{"$f":"'Population 2016'!T100/'Population 2016'!T$5","v":0},{"$f":"'Population 2016'!U100/'Population 2016'!U$5","v":0},{"$f":"'Population 2016'!V100/'Population 2016'!V$5","v":0},{"$f":"'Population 2016'!W100/'Population 2016'!W$5","v":0},{"$f":"'Population 2016'!X100/'Population 2016'!X$5","v":0},{"$f":"'Population 2016'!Y100/'Population 2016'!Y$5","v":0},{"$f":"'Population 2016'!Z100/'Population 2016'!Z$5","v":0},{"$f":"'Population 2016'!AA100/'Population 2016'!AA$5","v":0},{"$f":"'Population 2016'!AB100/'Population 2016'!AB$5","v":0},{"$f":"'Population 2016'!AC100/'Population 2016'!AC$5","v":0},{"$f":"'Population 2016'!AD100/'Population 2016'!AD$5","v":0},{"$f":"'Population 2016'!AE100/'Population 2016'!AE$5","v":0},{"$f":"'Population 2016'!AF100/'Population 2016'!AF$5","v":0},{"$f":"'Population 2016'!AG100/'Population 2016'!AG$5","v":0},{"$f":"'Population 2016'!AH100/'Population 2016'!AH$5","v":0},{"$f":"'Population 2016'!AI100/'Population 2016'!AI$5","v":0},{"$f":"'Population 2016'!AJ100/'Population 2016'!AJ$5","v":0},{"$f":"'Population 2016'!AK100/'Population 2016'!AK$5","v":0},{"$f":"'Population 2016'!AL100/'Population 2016'!AL$5","v":0},{"$f":"'Population 2016'!AM100/'Population 2016'!AM$5","v":0},{"$f":"'Population 2016'!AN100/'Population 2016'!AN$5","v":0},{"$f":"'Population 2016'!AO100/'Population 2016'!AO$5","v":0},{"$f":"'Population 2016'!AP100/'Population 2016'!AP$5","v":0},{"$f":"'Population 2016'!AQ100/'Population 2016'!AQ$5","v":0},{"$f":"'Population 2016'!AR100/'Population 2016'!AR$5","v":0},{"$f":"'Population 2016'!AS100/'Population 2016'!AS$5","v":0},{"$f":"'Population 2016'!AT100/'Population 2016'!AT$5","v":0},{"$f":"'Population 2016'!AU100/'Population 2016'!AU$5","v":0},{"$f":"'Population 2016'!AV100/'Population 2016'!AV$5","v":0},{"$f":"'Population 2016'!AW100/'Population 2016'!AW$5","v":0},{"$f":"'Population 2016'!AX100/'Population 2016'!AX$5","v":0},{"$f":"'Population 2016'!AY100/'Population 2016'!AY$5","v":0},{"$f":"'Population 2016'!AZ100/'Population 2016'!AZ$5","v":0},{"$f":"'Population 2016'!BA100/'Population 2016'!BA$5","v":0},{"$f":"'Population 2016'!BB100/'Population 2016'!BB$5","v":0},{"$f":"'Population 2016'!BC100/'Population 2016'!BC$5","v":0},98]
[null,"Female 16-19",{"$f":"'Population 2016'!C101/'Population 2016'!C$5","v":4.9015348601861462E-3},{"$f":"'Population 2016'!D101/'Population 2016'!D$5","v":3.2813982375321537E-3},{"$f":"'Population 2016'!E101/'Population 2016'!E$5","v":1.7954331306634665E-3},{"$f":"'Population 2016'!F101/'Population 2016'!F$5","v":3.9866082925573013E-3},{"$f":"'Population 2016'!G101/'Population 2016'!G$5","v":3.8028473989065122E-3},{"$f":"'Population 2016'!H101/'Population 2016'!H$5","v":5.9887229137552565E-3},{"$f":"'Population 2016'!I101/'Population 2016'!I$5","v":3.7894648689389496E-3},{"$f":"'Population 2016'!J101/'Population 2016'!J$5","v":5.3573057562011231E-3},{"$f":"'Population 2016'!K101/'Population 2016'!K$5","v":7.7730000472522797E-3},{"$f":"'Population 2016'!L101/'Population 2016'!L$5","v":7.0211109875621498E-3},{"$f":"'Population 2016'!M101/'Population 2016'!M$5","v":7.0211109875621498E-3},{"$f":"'Population 2016'!N101/'Population 2016'!N$5","v":5.3688685993521995E-3},{"$f":"'Population 2016'!O101/'Population 2016'!O$5","v":6.8356762861473538E-3},{"$f":"'Population 2016'!P101/'Population 2016'!P$5","v":4.0459821931702923E-3},{"$f":"'Population 2016'!Q101/'Population 2016'!Q$5","v":6.4864102654492899E-3},{"$f":"'Population 2016'!R101/'Population 2016'!R$5","v":2.8610209187203916E-3},{"$f":"'Population 2016'!S101/'Population 2016'!S$5","v":5.2191550847263141E-3},{"$f":"'Population 2016'!T101/'Population 2016'!T$5","v":3.7365695220634427E-3},{"$f":"'Population 2016'!U101/'Population 2016'!U$5","v":5.2228566370114641E-3},{"$f":"'Population 2016'!V101/'Population 2016'!V$5","v":7.0904664137809966E-3},{"$f":"'Population 2016'!W101/'Population 2016'!W$5","v":5.0889337752240502E-3},{"$f":"'Population 2016'!X101/'Population 2016'!X$5","v":5.0889337752240502E-3},{"$f":"'Population 2016'!Y101/'Population 2016'!Y$5","v":6.2598368865359848E-3},{"$f":"'Population 2016'!Z101/'Population 2016'!Z$5","v":4.6478494259392976E-3},{"$f":"'Population 2016'!AA101/'Population 2016'!AA$5","v":5.6140322903192163E-3},{"$f":"'Population 2016'!AB101/'Population 2016'!AB$5","v":3.3079844017072147E-3},{"$f":"'Population 2016'!AC101/'Population 2016'!AC$5","v":4.6936314309887241E-3},{"$f":"'Population 2016'!AD101/'Population 2016'!AD$5","v":4.6075402880643122E-3},{"$f":"'Population 2016'!AE101/'Population 2016'!AE$5","v":4.9127814453947165E-3},{"$f":"'Population 2016'!AF101/'Population 2016'!AF$5","v":3.4836899968330092E-3},{"$f":"'Population 2016'!AG101/'Population 2016'!AG$5","v":4.9127814453947165E-3},{"$f":"'Population 2016'!AH101/'Population 2016'!AH$5","v":7.2671205520931049E-3},{"$f":"'Population 2016'!AI101/'Population 2016'!AI$5","v":5.4603421121707935E-3},{"$f":"'Population 2016'!AJ101/'Population 2016'!AJ$5","v":1.0595878760839863E-2},{"$f":"'Population 2016'!AK101/'Population 2016'!AK$5","v":3.4446777214839773E-3},{"$f":"'Population 2016'!AL101/'Population 2016'!AL$5","v":4.9750802575335663E-3},{"$f":"'Population 2016'!AM101/'Population 2016'!AM$5","v":7.9538992578533883E-3},{"$f":"'Population 2016'!AN101/'Population 2016'!AN$5","v":2.6726300861786845E-3},{"$f":"'Population 2016'!AO101/'Population 2016'!AO$5","v":2.6726300861786845E-3},{"$f":"'Population 2016'!AP101/'Population 2016'!AP$5","v":2.8692357687491081E-3},{"$f":"'Population 2016'!AQ101/'Population 2016'!AQ$5","v":5.1720830821504905E-3},{"$f":"'Population 2016'!AR101/'Population 2016'!AR$5","v":5.15083932549201E-3},{"$f":"'Population 2016'!AS101/'Population 2016'!AS$5","v":3.7894648689389496E-3},{"$f":"'Population 2016'!AT101/'Population 2016'!AT$5","v":7.3812411029683129E-4},{"$f":"'Population 2016'!AU101/'Population 2016'!AU$5","v":7.3812411029683129E-4},{"$f":"'Population 2016'!AV101/'Population 2016'!AV$5","v":6.2928940977721465E-3},{"$f":"'Population 2016'!AW101/'Population 2016'!AW$5","v":6.5440234303496244E-3},{"$f":"'Population 2016'!AX101/'Population 2016'!AX$5","v":4.0507558429277888E-3},{"$f":"'Population 2016'!AY101/'Population 2016'!AY$5","v":4.5500443682873837E-3},{"$f":"'Population 2016'!AZ101/'Population 2016'!AZ$5","v":4.0757977575921443E-3},{"$f":"'Population 2016'!BA101/'Population 2016'!BA$5","v":7.7871949902828764E-3},{"$f":"'Population 2016'!BB101/'Population 2016'!BB$5","v":7.4297590852281754E-3},{"$f":"'Population 2016'!BC101/'Population 2016'!BC$5","v":5.2228566370114641E-3},99]
[null,"Female 20-24",{"$f":"'Population 2016'!C102/'Population 2016'!C$5","v":1.1208619341385003E-2},{"$f":"'Population 2016'!D102/'Population 2016'!D$5","v":6.8170926126972014E-3},{"$f":"'Population 2016'!E102/'Population 2016'!E$5","v":2.7892499027278397E-3},{"$f":"'Population 2016'!F102/'Population 2016'!F$5","v":7.7568890033479273E-3},{"$f":"'Population 2016'!G102/'Population 2016'!G$5","v":4.9396416391490287E-3},{"$f":"'Population 2016'!H102/'Population 2016'!H$5","v":8.1124985003874668E-3},{"$f":"'Population 2016'!I102/'Population 2016'!I$5","v":5.7888786533791137E-3},{"$f":"'Population 2016'!J102/'Population 2016'!J$5","v":8.5584203411757879E-3},{"$f":"'Population 2016'!K102/'Population 2016'!K$5","v":8.8834286254311778E-3},{"$f":"'Population 2016'!L102/'Population 2016'!L$5","v":8.7763887344526875E-3},{"$f":"'Population 2016'!M102/'Population 2016'!M$5","v":8.7763887344526875E-3},{"$f":"'Population 2016'!N102/'Population 2016'!N$5","v":1.3028347304715441E-2},{"$f":"'Population 2016'!O102/'Population 2016'!O$5","v":8.8566588403126579E-3},{"$f":"'Population 2016'!P102/'Population 2016'!P$5","v":5.7928547278259888E-3},{"$f":"'Population 2016'!Q102/'Population 2016'!Q$5","v":1.0916440464859402E-2},{"$f":"'Population 2016'!R102/'Population 2016'!R$5","v":3.6328312130728697E-3},{"$f":"'Population 2016'!S102/'Population 2016'!S$5","v":8.8971897943584052E-3},{"$f":"'Population 2016'!T102/'Population 2016'!T$5","v":9.5484939716988602E-3},{"$f":"'Population 2016'!U102/'Population 2016'!U$5","v":6.3736555570309385E-3},{"$f":"'Population 2016'!V102/'Population 2016'!V$5","v":9.9449706535593534E-3},{"$f":"'Population 2016'!W102/'Population 2016'!W$5","v":6.8832977075284846E-3},{"$f":"'Population 2016'!X102/'Population 2016'!X$5","v":6.8832977075284846E-3},{"$f":"'Population 2016'!Y102/'Population 2016'!Y$5","v":9.2804565905152542E-3},{"$f":"'Population 2016'!Z102/'Population 2016'!Z$5","v":8.8427222730906741E-3},{"$f":"'Population 2016'!AA102/'Population 2016'!AA$5","v":8.4589182390939956E-3},{"$f":"'Population 2016'!AB102/'Population 2016'!AB$5","v":6.8452350490773054E-3},{"$f":"'Population 2016'!AC102/'Population 2016'!AC$5","v":7.6393040434734943E-3},{"$f":"'Population 2016'!AD102/'Population 2016'!AD$5","v":5.928765491830734E-3},{"$f":"'Population 2016'!AE102/'Population 2016'!AE$5","v":6.3039661598168362E-3},{"$f":"'Population 2016'!AF102/'Population 2016'!AF$5","v":4.3583827233105608E-3},{"$f":"'Population 2016'!AG102/'Population 2016'!AG$5","v":6.3039661598168362E-3},{"$f":"'Population 2016'!AH102/'Population 2016'!AH$5","v":9.9309883618327564E-3},{"$f":"'Population 2016'!AI102/'Population 2016'!AI$5","v":1.0145517980575728E-2},{"$f":"'Population 2016'!AJ102/'Population 2016'!AJ$5","v":1.328667428826367E-2},{"$f":"'Population 2016'!AK102/'Population 2016'!AK$5","v":6.9899299749820853E-3},{"$f":"'Population 2016'!AL102/'Population 2016'!AL$5","v":6.7575956439225983E-3},{"$f":"'Population 2016'!AM102/'Population 2016'!AM$5","v":1.0145205747380393E-2},{"$f":"'Population 2016'!AN102/'Population 2016'!AN$5","v":4.799825460892331E-3},{"$f":"'Population 2016'!AO102/'Population 2016'!AO$5","v":4.799825460892331E-3},{"$f":"'Population 2016'!AP102/'Population 2016'!AP$5","v":4.5654138198880836E-3},{"$f":"'Population 2016'!AQ102/'Population 2016'!AQ$5","v":6.5764235216747959E-3},{"$f":"'Population 2016'!AR102/'Population 2016'!AR$5","v":8.2202681662267921E-3},{"$f":"'Population 2016'!AS102/'Population 2016'!AS$5","v":5.7888786533791137E-3},{"$f":"'Population 2016'!AT102/'Population 2016'!AT$5","v":1.3708019191226869E-3},{"$f":"'Population 2016'!AU102/'Population 2016'!AU$5","v":1.3708019191226869E-3},{"$f":"'Population 2016'!AV102/'Population 2016'!AV$5","v":8.9325308837503968E-3},{"$f":"'Population 2016'!AW102/'Population 2016'!AW$5","v":9.7054426749649154E-3},{"$f":"'Population 2016'!AX102/'Population 2016'!AX$5","v":8.3826366970366877E-3},{"$f":"'Population 2016'!AY102/'Population 2016'!AY$5","v":7.7353814142774088E-3},{"$f":"'Population 2016'!AZ102/'Population 2016'!AZ$5","v":8.4852529180640974E-3},{"$f":"'Population 2016'!BA102/'Population 2016'!BA$5","v":1.0553876052688404E-2},{"$f":"'Population 2016'!BB102/'Population 2016'!BB$5","v":9.9086471071583929E-3},{"$f":"'Population 2016'!BC102/'Population 2016'!BC$5","v":6.3736555570309385E-3},100]
[null,"Female 25-29",{"$f":"'Population 2016'!C103/'Population 2016'!C$5","v":1.2762390558795418E-2},{"$f":"'Population 2016'!D103/'Population 2016'!D$5","v":7.7315806461078019E-3},{"$f":"'Population 2016'!E103/'Population 2016'!E$5","v":3.1173969501075852E-3},{"$f":"'Population 2016'!F103/'Population 2016'!F$5","v":7.9938192119495231E-3},{"$f":"'Population 2016'!G103/'Population 2016'!G$5","v":5.7922373193309154E-3},{"$f":"'Population 2016'!H103/'Population 2016'!H$5","v":8.7188283243572733E-3},{"$f":"'Population 2016'!I103/'Population 2016'!I$5","v":5.8621555983585961E-3},{"$f":"'Population 2016'!J103/'Population 2016'!J$5","v":8.4506107826144653E-3},{"$f":"'Population 2016'!K103/'Population 2016'!K$5","v":1.0253744743183859E-2},{"$f":"'Population 2016'!L103/'Population 2016'!L$5","v":8.5142884374056829E-3},{"$f":"'Population 2016'!M103/'Population 2016'!M$5","v":8.5142884374056829E-3},{"$f":"'Population 2016'!N103/'Population 2016'!N$5","v":1.2031730977889584E-2},{"$f":"'Population 2016'!O103/'Population 2016'!O$5","v":1.006528566192132E-2},{"$f":"'Population 2016'!P103/'Population 2016'!P$5","v":6.5817649047672719E-3},{"$f":"'Population 2016'!Q103/'Population 2016'!Q$5","v":1.0892938978390384E-2},{"$f":"'Population 2016'!R103/'Population 2016'!R$5","v":3.3799968063022304E-3},{"$f":"'Population 2016'!S103/'Population 2016'!S$5","v":9.8486948140328462E-3},{"$f":"'Population 2016'!T103/'Population 2016'!T$5","v":1.0802548126363987E-2},{"$f":"'Population 2016'!U103/'Population 2016'!U$5","v":6.9490550170406762E-3},{"$f":"'Population 2016'!V103/'Population 2016'!V$5","v":1.0792163088359881E-2},{"$f":"'Population 2016'!W103/'Population 2016'!W$5","v":7.8213349544708748E-3},{"$f":"'Population 2016'!X103/'Population 2016'!X$5","v":7.8213349544708748E-3},{"$f":"'Population 2016'!Y103/'Population 2016'!Y$5","v":9.6699575523441599E-3},{"$f":"'Population 2016'!Z103/'Population 2016'!Z$5","v":1.1506379420151263E-2},{"$f":"'Population 2016'!AA103/'Population 2016'!AA$5","v":9.7524710046858892E-3},{"$f":"'Population 2016'!AB103/'Population 2016'!AB$5","v":7.4859523249030226E-3},{"$f":"'Population 2016'!AC103/'Population 2016'!AC$5","v":9.3769199103886682E-3},{"$f":"'Population 2016'!AD103/'Population 2016'!AD$5","v":6.4274814842383418E-3},{"$f":"'Population 2016'!AE103/'Population 2016'!AE$5","v":6.6684462879495685E-3},{"$f":"'Population 2016'!AF103/'Population 2016'!AF$5","v":5.3838845405601047E-3},{"$f":"'Population 2016'!AG103/'Population 2016'!AG$5","v":6.6684462879495685E-3},{"$f":"'Population 2016'!AH103/'Population 2016'!AH$5","v":1.0426980485403527E-2},{"$f":"'Population 2016'!AI103/'Population 2016'!AI$5","v":1.1217352786770496E-2},{"$f":"'Population 2016'!AJ103/'Population 2016'!AJ$5","v":1.3955887683685135E-2},{"$f":"'Population 2016'!AK103/'Population 2016'!AK$5","v":6.2230491683743384E-3},{"$f":"'Population 2016'!AL103/'Population 2016'!AL$5","v":6.766463879675777E-3},{"$f":"'Population 2016'!AM103/'Population 2016'!AM$5","v":1.0985508401215541E-2},{"$f":"'Population 2016'!AN103/'Population 2016'!AN$5","v":5.454347114650376E-3},{"$f":"'Population 2016'!AO103/'Population 2016'!AO$5","v":5.454347114650376E-3},{"$f":"'Population 2016'!AP103/'Population 2016'!AP$5","v":5.0885341534169272E-3},{"$f":"'Population 2016'!AQ103/'Population 2016'!AQ$5","v":7.3573738148736776E-3},{"$f":"'Population 2016'!AR103/'Population 2016'!AR$5","v":9.0469955887820825E-3},{"$f":"'Population 2016'!AS103/'Population 2016'!AS$5","v":5.8621555983585961E-3},{"$f":"'Population 2016'!AT103/'Population 2016'!AT$5","v":1.2126324669162229E-3},{"$f":"'Population 2016'!AU103/'Population 2016'!AU$5","v":1.2126324669162229E-3},{"$f":"'Population 2016'!AV103/'Population 2016'!AV$5","v":9.6082779009608286E-3},{"$f":"'Population 2016'!AW103/'Population 2016'!AW$5","v":9.8389163463298551E-3},{"$f":"'Population 2016'!AX103/'Population 2016'!AX$5","v":7.4753696154976554E-3},{"$f":"'Population 2016'!AY103/'Population 2016'!AY$5","v":8.1209265322358549E-3},{"$f":"'Population 2016'!AZ103/'Population 2016'!AZ$5","v":8.3845804258158782E-3},{"$f":"'Population 2016'!BA103/'Population 2016'!BA$5","v":1.151209242064349E-2},{"$f":"'Population 2016'!BB103/'Population 2016'!BB$5","v":1.1282738239091856E-2},{"$f":"'Population 2016'!BC103/'Population 2016'!BC$5","v":6.9490550170406762E-3},101]
[null,"Female 30-34",{"$f":"'Population 2016'!C104/'Population 2016'!C$5","v":1.0871287432341952E-2},{"$f":"'Population 2016'!D104/'Population 2016'!D$5","v":6.7119509404066783E-3},{"$f":"'Population 2016'!E104/'Population 2016'!E$5","v":2.897069646866899E-3},{"$f":"'Population 2016'!F104/'Population 2016'!F$5","v":7.2727272727272727E-3},{"$f":"'Population 2016'!G104/'Population 2016'!G$5","v":4.8178422562659019E-3},{"$f":"'Population 2016'!H104/'Population 2016'!H$5","v":8.2875883960792825E-3},{"$f":"'Population 2016'!I104/'Population 2016'!I$5","v":4.961895988610669E-3},{"$f":"'Population 2016'!J104/'Population 2016'!J$5","v":7.0159143494522447E-3},{"$f":"'Population 2016'!K104/'Population 2016'!K$5","v":9.5213344043850109E-3},{"$f":"'Population 2016'!L104/'Population 2016'!L$5","v":8.6651946690388063E-3},{"$f":"'Population 2016'!M104/'Population 2016'!M$5","v":8.6651946690388063E-3},{"$f":"'Population 2016'!N104/'Population 2016'!N$5","v":8.8891746570112767E-3},{"$f":"'Population 2016'!O104/'Population 2016'!O$5","v":9.5699468006062941E-3},{"$f":"'Population 2016'!P104/'Population 2016'!P$5","v":5.8153950185957396E-3},{"$f":"'Population 2016'!Q104/'Population 2016'!Q$5","v":1.1198458302487632E-2},{"$f":"'Population 2016'!R104/'Population 2016'!R$5","v":3.2735402139777506E-3},{"$f":"'Population 2016'!S104/'Population 2016'!S$5","v":9.2246558076229859E-3},{"$f":"'Population 2016'!T104/'Population 2016'!T$5","v":9.0645547060766943E-3},{"$f":"'Population 2016'!U104/'Population 2016'!U$5","v":6.6392245385738947E-3},{"$f":"'Population 2016'!V104/'Population 2016'!V$5","v":1.1486708237610764E-2},{"$f":"'Population 2016'!W104/'Population 2016'!W$5","v":7.7494296602801695E-3},{"$f":"'Population 2016'!X104/'Population 2016'!X$5","v":7.7494296602801695E-3},{"$f":"'Population 2016'!Y104/'Population 2016'!Y$5","v":9.3440485842832387E-3},{"$f":"'Population 2016'!Z104/'Population 2016'!Z$5","v":9.5589672908322574E-3},{"$f":"'Population 2016'!AA104/'Population 2016'!AA$5","v":9.2515265849343296E-3},{"$f":"'Population 2016'!AB104/'Population 2016'!AB$5","v":6.7060376856391312E-3},{"$f":"'Population 2016'!AC104/'Population 2016'!AC$5","v":8.2681555000713655E-3},{"$f":"'Population 2016'!AD104/'Population 2016'!AD$5","v":6.3939856340020093E-3},{"$f":"'Population 2016'!AE104/'Population 2016'!AE$5","v":6.9918582326307255E-3},{"$f":"'Population 2016'!AF104/'Population 2016'!AF$5","v":5.7156645402584869E-3},{"$f":"'Population 2016'!AG104/'Population 2016'!AG$5","v":6.9918582326307255E-3},{"$f":"'Population 2016'!AH104/'Population 2016'!AH$5","v":1.1017712677521526E-2},{"$f":"'Population 2016'!AI104/'Population 2016'!AI$5","v":1.0398438183568117E-2},{"$f":"'Population 2016'!AJ104/'Population 2016'!AJ$5","v":1.4778462482224019E-2},{"$f":"'Population 2016'!AK104/'Population 2016'!AK$5","v":6.6756345624379267E-3},{"$f":"'Population 2016'!AL104/'Population 2016'!AL$5","v":6.9704333019989006E-3},{"$f":"'Population 2016'!AM104/'Population 2016'!AM$5","v":1.1597625420604076E-2},{"$f":"'Population 2016'!AN104/'Population 2016'!AN$5","v":3.3816952110832335E-3},{"$f":"'Population 2016'!AO104/'Population 2016'!AO$5","v":3.3816952110832335E-3},{"$f":"'Population 2016'!AP104/'Population 2016'!AP$5","v":5.5006895677123793E-3},{"$f":"'Population 2016'!AQ104/'Population 2016'!AQ$5","v":7.0628048446319943E-3},{"$f":"'Population 2016'!AR104/'Population 2016'!AR$5","v":8.4882695376452821E-3},{"$f":"'Population 2016'!AS104/'Population 2016'!AS$5","v":4.961895988610669E-3},{"$f":"'Population 2016'!AT104/'Population 2016'!AT$5","v":8.4357041176780722E-4},{"$f":"'Population 2016'!AU104/'Population 2016'!AU$5","v":8.4357041176780722E-4},{"$f":"'Population 2016'!AV104/'Population 2016'!AV$5","v":8.48907190370605E-3},{"$f":"'Population 2016'!AW104/'Population 2016'!AW$5","v":1.0407132832997743E-2},{"$f":"'Population 2016'!AX104/'Population 2016'!AX$5","v":5.6608354524195917E-3},{"$f":"'Population 2016'!AY104/'Population 2016'!AY$5","v":7.4615219852513697E-3},{"$f":"'Population 2016'!AZ104/'Population 2016'!AZ$5","v":7.2081504449724157E-3},{"$f":"'Population 2016'!BA104/'Population 2016'!BA$5","v":1.1930468581299935E-2},{"$f":"'Population 2016'!BB104/'Population 2016'!BB$5","v":1.171775201452808E-2},{"$f":"'Population 2016'!BC104/'Population 2016'!BC$5","v":6.6392245385738947E-3},102]
[null,"Female 35-39",{"$f":"'Population 2016'!C105/'Population 2016'!C$5","v":8.1266323542189493E-3},{"$f":"'Population 2016'!D105/'Population 2016'!D$5","v":5.3964574591903606E-3},{"$f":"'Population 2016'!E105/'Population 2016'!E$5","v":2.8923818319043309E-3},{"$f":"'Population 2016'!F105/'Population 2016'!F$5","v":5.830543394282771E-3},{"$f":"'Population 2016'!G105/'Population 2016'!G$5","v":5.0479077572673633E-3},{"$f":"'Population 2016'!H105/'Population 2016'!H$5","v":8.3459516946432222E-3},{"$f":"'Population 2016'!I105/'Population 2016'!I$5","v":4.76300142366636E-3},{"$f":"'Population 2016'!J105/'Population 2016'!J$5","v":7.0325004353847557E-3},{"$f":"'Population 2016'!K105/'Population 2016'!K$5","v":9.6158389642300238E-3},{"$f":"'Population 2016'!L105/'Population 2016'!L$5","v":8.4586914046987441E-3},{"$f":"'Population 2016'!M105/'Population 2016'!M$5","v":8.4586914046987441E-3},{"$f":"'Population 2016'!N105/'Population 2016'!N$5","v":6.9280909171281378E-3},{"$f":"'Population 2016'!O105/'Population 2016'!O$5","v":9.5105061372484923E-3},{"$f":"'Population 2016'!P105/'Population 2016'!P$5","v":6.5141440324580184E-3},{"$f":"'Population 2016'!Q105/'Population 2016'!Q$5","v":1.0563918167824114E-2},{"$f":"'Population 2016'!R105/'Population 2016'!R$5","v":3.5796029169106298E-3},{"$f":"'Population 2016'!S105/'Population 2016'!S$5","v":7.6826527748110668E-3},{"$f":"'Population 2016'!T105/'Population 2016'!T$5","v":6.1236930149881578E-3},{"$f":"'Population 2016'!U105/'Population 2016'!U$5","v":6.7720090293453723E-3},{"$f":"'Population 2016'!V105/'Population 2016'!V$5","v":1.1196678395066439E-2},{"$f":"'Population 2016'!W105/'Population 2016'!W$5","v":7.3049242052830778E-3},{"$f":"'Population 2016'!X105/'Population 2016'!X$5","v":7.3049242052830778E-3},{"$f":"'Population 2016'!Y105/'Population 2016'!Y$5","v":9.200966598305273E-3},{"$f":"'Population 2016'!Z105/'Population 2016'!Z$5","v":7.1372848119276092E-3},{"$f":"'Population 2016'!AA105/'Population 2016'!AA$5","v":7.8868848897490421E-3},{"$f":"'Population 2016'!AB105/'Population 2016'!AB$5","v":5.4164150537854517E-3},{"$f":"'Population 2016'!AC105/'Population 2016'!AC$5","v":6.7694618148570291E-3},{"$f":"'Population 2016'!AD105/'Population 2016'!AD$5","v":6.0478618482265808E-3},{"$f":"'Population 2016'!AE105/'Population 2016'!AE$5","v":6.4271707101715625E-3},{"$f":"'Population 2016'!AF105/'Population 2016'!AF$5","v":3.7400654511453952E-3},{"$f":"'Population 2016'!AG105/'Population 2016'!AG$5","v":6.4271707101715625E-3},{"$f":"'Population 2016'!AH105/'Population 2016'!AH$5","v":9.8938353937750197E-3},{"$f":"'Population 2016'!AI105/'Population 2016'!AI$5","v":8.2219573016011904E-3},{"$f":"'Population 2016'!AJ105/'Population 2016'!AJ$5","v":1.4290494381395867E-2},{"$f":"'Population 2016'!AK105/'Population 2016'!AK$5","v":5.519027444275423E-3},{"$f":"'Population 2016'!AL105/'Population 2016'!AL$5","v":6.8285415299480321E-3},{"$f":"'Population 2016'!AM105/'Population 2016'!AM$5","v":1.0666772911829795E-2},{"$f":"'Population 2016'!AN105/'Population 2016'!AN$5","v":3.872586451401767E-3},{"$f":"'Population 2016'!AO105/'Population 2016'!AO$5","v":3.872586451401767E-3},{"$f":"'Population 2016'!AP105/'Population 2016'!AP$5","v":4.1849626682307437E-3},{"$f":"'Population 2016'!AQ105/'Population 2016'!AQ$5","v":6.5490217570011505E-3},{"$f":"'Population 2016'!AR105/'Population 2016'!AR$5","v":7.3547774530423951E-3},{"$f":"'Population 2016'!AS105/'Population 2016'!AS$5","v":4.76300142366636E-3},{"$f":"'Population 2016'!AT105/'Population 2016'!AT$5","v":1.7925871250065904E-3},{"$f":"'Population 2016'!AU105/'Population 2016'!AU$5","v":1.7925871250065904E-3},{"$f":"'Population 2016'!AV105/'Population 2016'!AV$5","v":8.9114137894625699E-3},{"$f":"'Population 2016'!AW105/'Population 2016'!AW$5","v":9.080023186283483E-3},{"$f":"'Population 2016'!AX105/'Population 2016'!AX$5","v":5.6352786332213092E-3},{"$f":"'Population 2016'!AY105/'Population 2016'!AY$5","v":6.4119824974755973E-3},{"$f":"'Population 2016'!AZ105/'Population 2016'!AZ$5","v":5.6261541382147031E-3},{"$f":"'Population 2016'!BA105/'Population 2016'!BA$5","v":1.0891276182250054E-2},{"$f":"'Population 2016'!BB105/'Population 2016'!BB$5","v":1.0067461660095426E-2},{"$f":"'Population 2016'!BC105/'Population 2016'!BC$5","v":6.7720090293453723E-3},103]
[null,"Female 40-44",{"$f":"'Population 2016'!C106/'Population 2016'!C$5","v":7.3241912978589648E-3},{"$f":"'Population 2016'!D106/'Population 2016'!D$5","v":4.9978971665541891E-3},{"$f":"'Population 2016'!E106/'Population 2016'!E$5","v":2.8642549421289245E-3},{"$f":"'Population 2016'!F106/'Population 2016'!F$5","v":6.4486221993304144E-3},{"$f":"'Population 2016'!G106/'Population 2016'!G$5","v":5.9411032317436257E-3},{"$f":"'Population 2016'!H106/'Population 2016'!H$5","v":9.1306138197806194E-3},{"$f":"'Population 2016'!I106/'Population 2016'!I$5","v":5.1712586885520476E-3},{"$f":"'Population 2016'!J106/'Population 2016'!J$5","v":7.5052038844613256E-3},{"$f":"'Population 2016'!K106/'Population 2016'!K$5","v":1.0915276662098947E-2},{"$f":"'Population 2016'!L106/'Population 2016'!L$5","v":9.507092592886757E-3},{"$f":"'Population 2016'!M106/'Population 2016'!M$5","v":9.507092592886757E-3},{"$f":"'Population 2016'!N106/'Population 2016'!N$5","v":6.1645542151244565E-3},{"$f":"'Population 2016'!O106/'Population 2016'!O$5","v":1.0154446656958025E-2},{"$f":"'Population 2016'!P106/'Population 2016'!P$5","v":6.1985799616815053E-3},{"$f":"'Population 2016'!Q106/'Population 2016'!Q$5","v":1.0258398843726866E-2},{"$f":"'Population 2016'!R106/'Population 2016'!R$5","v":3.5396816947889497E-3},{"$f":"'Population 2016'!S106/'Population 2016'!S$5","v":7.6411678620794355E-3},{"$f":"'Population 2016'!T106/'Population 2016'!T$5","v":5.3977841165549108E-3},{"$f":"'Population 2016'!U106/'Population 2016'!U$5","v":8.8522993847651929E-3},{"$f":"'Population 2016'!V106/'Population 2016'!V$5","v":1.1715679165935232E-2},{"$f":"'Population 2016'!W106/'Population 2016'!W$5","v":7.8115296870812333E-3},{"$f":"'Population 2016'!X106/'Population 2016'!X$5","v":7.8115296870812333E-3},{"$f":"'Population 2016'!Y106/'Population 2016'!Y$5","v":9.6977790496176539E-3},{"$f":"'Population 2016'!Z106/'Population 2016'!Z$5","v":6.2603686145304817E-3},{"$f":"'Population 2016'!AA106/'Population 2016'!AA$5","v":7.874926004396883E-3},{"$f":"'Population 2016'!AB106/'Population 2016'!AB$5","v":5.1195971464540494E-3},{"$f":"'Population 2016'!AC106/'Population 2016'!AC$5","v":6.5046822541842408E-3},{"$f":"'Population 2016'!AD106/'Population 2016'!AD$5","v":6.7215006140905875E-3},{"$f":"'Population 2016'!AE106/'Population 2016'!AE$5","v":7.0175258472879596E-3},{"$f":"'Population 2016'!AF106/'Population 2016'!AF$5","v":4.3885445414649591E-3},{"$f":"'Population 2016'!AG106/'Population 2016'!AG$5","v":7.0175258472879596E-3},{"$f":"'Population 2016'!AH106/'Population 2016'!AH$5","v":1.0335955713662075E-2},{"$f":"'Population 2016'!AI106/'Population 2016'!AI$5","v":7.8924774695948909E-3},{"$f":"'Population 2016'!AJ106/'Population 2016'!AJ$5","v":1.353762931154672E-2},{"$f":"'Population 2016'!AK106/'Population 2016'!AK$5","v":5.7453201413072176E-3},{"$f":"'Population 2016'!AL106/'Population 2016'!AL$5","v":8.1233039499122046E-3},{"$f":"'Population 2016'!AM106/'Population 2016'!AM$5","v":1.1105034209735196E-2},{"$f":"'Population 2016'!AN106/'Population 2016'!AN$5","v":5.7270644703828954E-3},{"$f":"'Population 2016'!AO106/'Population 2016'!AO$5","v":5.7270644703828954E-3},{"$f":"'Population 2016'!AP106/'Population 2016'!AP$5","v":3.6459902033828448E-3},{"$f":"'Population 2016'!AQ106/'Population 2016'!AQ$5","v":7.6176905792733054E-3},{"$f":"'Population 2016'!AR106/'Population 2016'!AR$5","v":7.4501262368887071E-3},{"$f":"'Population 2016'!AS106/'Population 2016'!AS$5","v":5.1712586885520476E-3},{"$f":"'Population 2016'!AT106/'Population 2016'!AT$5","v":7.3812411029683129E-4},{"$f":"'Population 2016'!AU106/'Population 2016'!AU$5","v":7.3812411029683129E-4},{"$f":"'Population 2016'!AV106/'Population 2016'!AV$5","v":9.2387287509238733E-3},{"$f":"'Population 2016'!AW106/'Population 2016'!AW$5","v":9.5262066019891397E-3},{"$f":"'Population 2016'!AX106/'Population 2016'!AX$5","v":5.6608354524195917E-3},{"$f":"'Population 2016'!AY106/'Population 2016'!AY$5","v":6.4915394265781341E-3},{"$f":"'Population 2016'!AZ106/'Population 2016'!AZ$5","v":5.3298893753128034E-3},{"$f":"'Population 2016'!BA106/'Population 2016'!BA$5","v":1.1282660332541567E-2},{"$f":"'Population 2016'!BB106/'Population 2016'!BB$5","v":1.1110113725029864E-2},{"$f":"'Population 2016'!BC106/'Population 2016'!BC$5","v":8.8522993847651929E-3},104]
[null,"Female 45-49",{"$f":"'Population 2016'!C107/'Population 2016'!C$5","v":7.6564121173710604E-3},{"$f":"'Population 2016'!D107/'Population 2016'!D$5","v":5.3402188902907776E-3},{"$f":"'Population 2016'!E107/'Population 2016'!E$5","v":3.2158410643215092E-3},{"$f":"'Population 2016'!F107/'Population 2016'!F$5","v":6.8503734226113833E-3},{"$f":"'Population 2016'!G107/'Population 2016'!G$5","v":7.0372976776917661E-3},{"$f":"'Population 2016'!H107/'Population 2016'!H$5","v":1.1630508441602657E-2},{"$f":"'Population 2016'!I107/'Population 2016'!I$5","v":6.9508416380537645E-3},{"$f":"'Population 2016'!J107/'Population 2016'!J$5","v":8.6247646849058317E-3},{"$f":"'Population 2016'!K107/'Population 2016'!K$5","v":1.2876246278882956E-2},{"$f":"'Population 2016'!L107/'Population 2016'!L$5","v":1.2437850459866884E-2},{"$f":"'Population 2016'!M107/'Population 2016'!M$5","v":1.2437850459866884E-2},{"$f":"'Population 2016'!N107/'Population 2016'!N$5","v":6.421745525273065E-3},{"$f":"'Population 2016'!O107/'Population 2016'!O$5","v":1.3156200156527079E-2},{"$f":"'Population 2016'!P107/'Population 2016'!P$5","v":8.4976896201961003E-3},{"$f":"'Population 2016'!Q107/'Population 2016'!Q$5","v":1.2855313098553483E-2},{"$f":"'Population 2016'!R107/'Population 2016'!R$5","v":5.1232235056155855E-3},{"$f":"'Population 2016'!S107/'Population 2016'!S$5","v":8.5776677005530728E-3},{"$f":"'Population 2016'!T107/'Population 2016'!T$5","v":5.0487894538466188E-3},{"$f":"'Population 2016'!U107/'Population 2016'!U$5","v":1.0312928783251449E-2},{"$f":"'Population 2016'!V107/'Population 2016'!V$5","v":1.341769639981377E-2},{"$f":"'Population 2016'!W107/'Population 2016'!W$5","v":8.9391354368900302E-3},{"$f":"'Population 2016'!X107/'Population 2016'!X$5","v":8.9391354368900302E-3},{"$f":"'Population 2016'!Y107/'Population 2016'!Y$5","v":1.1120649910176309E-2},{"$f":"'Population 2016'!Z107/'Population 2016'!Z$5","v":7.0559813234272132E-3},{"$f":"'Population 2016'!AA107/'Population 2016'!AA$5","v":9.4721015814297118E-3},{"$f":"'Population 2016'!AB107/'Population 2016'!AB$5","v":5.5515183771225043E-3},{"$f":"'Population 2016'!AC107/'Population 2016'!AC$5","v":7.7396306738846676E-3},{"$f":"'Population 2016'!AD107/'Population 2016'!AD$5","v":7.9422382671480145E-3},{"$f":"'Population 2016'!AE107/'Population 2016'!AE$5","v":8.2855060113553522E-3},{"$f":"'Population 2016'!AF107/'Population 2016'!AF$5","v":6.0323636308796695E-3},{"$f":"'Population 2016'!AG107/'Population 2016'!AG$5","v":8.2855060113553522E-3},{"$f":"'Population 2016'!AH107/'Population 2016'!AH$5","v":1.2583710281155085E-2},{"$f":"'Population 2016'!AI107/'Population 2016'!AI$5","v":8.638933852480532E-3},{"$f":"'Population 2016'!AJ107/'Population 2016'!AJ$5","v":1.695340601734378E-2},{"$f":"'Population 2016'!AK107/'Population 2016'!AK$5","v":6.6379191129326276E-3},{"$f":"'Population 2016'!AL107/'Population 2016'!AL$5","v":1.0109788758624359E-2},{"$f":"'Population 2016'!AM107/'Population 2016'!AM$5","v":1.3068155064815587E-2},{"$f":"'Population 2016'!AN107/'Population 2016'!AN$5","v":5.1816297589178575E-3},{"$f":"'Population 2016'!AO107/'Population 2016'!AO$5","v":5.1816297589178575E-3},{"$f":"'Population 2016'!AP107/'Population 2016'!AP$5","v":4.6208962795047798E-3},{"$f":"'Population 2016'!AQ107/'Population 2016'!AQ$5","v":8.6795089603770477E-3},{"$f":"'Population 2016'!AR107/'Population 2016'!AR$5","v":8.72619594219636E-3},{"$f":"'Population 2016'!AS107/'Population 2016'!AS$5","v":6.9508416380537645E-3},{"$f":"'Population 2016'!AT107/'Population 2016'!AT$5","v":1.2126324669162229E-3},{"$f":"'Population 2016'!AU107/'Population 2016'!AU$5","v":1.2126324669162229E-3},{"$f":"'Population 2016'!AV107/'Population 2016'!AV$5","v":1.1815014254038645E-2},{"$f":"'Population 2016'!AW107/'Population 2016'!AW$5","v":1.2073646958325706E-2},{"$f":"'Population 2016'!AX107/'Population 2016'!AX$5","v":6.325312751574939E-3},{"$f":"'Population 2016'!AY107/'Population 2016'!AY$5","v":7.3161775955448123E-3},{"$f":"'Population 2016'!AZ107/'Population 2016'!AZ$5","v":5.8879026180600697E-3},{"$f":"'Population 2016'!BA107/'Population 2016'!BA$5","v":1.3927877348304902E-2},{"$f":"'Population 2016'!BB107/'Population 2016'!BB$5","v":1.2698259254400199E-2},{"$f":"'Population 2016'!BC107/'Population 2016'!BC$5","v":1.0312928783251449E-2},105]
[null,"Female 50-54",{"$f":"'Population 2016'!C108/'Population 2016'!C$5","v":7.9835218473522009E-3},{"$f":"'Population 2016'!D108/'Population 2016'!D$5","v":5.6116311141105012E-3},{"$f":"'Population 2016'!E108/'Population 2016'!E$5","v":3.4361683675621954E-3},{"$f":"'Population 2016'!F108/'Population 2016'!F$5","v":6.3868143188256501E-3},{"$f":"'Population 2016'!G108/'Population 2016'!G$5","v":7.8086937692849025E-3},{"$f":"'Population 2016'!H108/'Population 2016'!H$5","v":1.2016354693219806E-2},{"$f":"'Population 2016'!I108/'Population 2016'!I$5","v":7.4637802529101413E-3},{"$f":"'Population 2016'!J108/'Population 2016'!J$5","v":9.0394168332186137E-3},{"$f":"'Population 2016'!K108/'Population 2016'!K$5","v":1.3277890658224259E-2},{"$f":"'Population 2016'!L108/'Population 2016'!L$5","v":1.3462424348323352E-2},{"$f":"'Population 2016'!M108/'Population 2016'!M$5","v":1.3462424348323352E-2},{"$f":"'Population 2016'!N108/'Population 2016'!N$5","v":7.6594787053632426E-3},{"$f":"'Population 2016'!O108/'Population 2016'!O$5","v":1.2423098641780842E-2},{"$f":"'Population 2016'!P108/'Population 2016'!P$5","v":8.3399075848078433E-3},{"$f":"'Population 2016'!Q108/'Population 2016'!Q$5","v":1.3066826476774656E-2},{"$f":"'Population 2016'!R108/'Population 2016'!R$5","v":4.8304678767232658E-3},{"$f":"'Population 2016'!S108/'Population 2016'!S$5","v":8.6509282911216984E-3},{"$f":"'Population 2016'!T108/'Population 2016'!T$5","v":4.7928600345272052E-3},{"$f":"'Population 2016'!U108/'Population 2016'!U$5","v":1.1950604169433009E-2},{"$f":"'Population 2016'!V108/'Population 2016'!V$5","v":1.3371902214148877E-2},{"$f":"'Population 2016'!W108/'Population 2016'!W$5","v":9.6320409990913788E-3},{"$f":"'Population 2016'!X108/'Population 2016'!X$5","v":9.6320409990913788E-3},{"$f":"'Population 2016'!Y108/'Population 2016'!Y$5","v":1.1295527893038266E-2},{"$f":"'Population 2016'!Z108/'Population 2016'!Z$5","v":7.23020308449949E-3},{"$f":"'Population 2016'!AA108/'Population 2016'!AA$5","v":9.8248886993184091E-3},{"$f":"'Population 2016'!AB108/'Population 2016'!AB$5","v":5.748032301976398E-3},{"$f":"'Population 2016'!AC108/'Population 2016'!AC$5","v":7.9909643974920407E-3},{"$f":"'Population 2016'!AD108/'Population 2016'!AD$5","v":8.6754252112099441E-3},{"$f":"'Population 2016'!AE108/'Population 2016'!AE$5","v":9.0041992217579237E-3},{"$f":"'Population 2016'!AF108/'Population 2016'!AF$5","v":7.2388363570556032E-3},{"$f":"'Population 2016'!AG108/'Population 2016'!AG$5","v":9.0041992217579237E-3},{"$f":"'Population 2016'!AH108/'Population 2016'!AH$5","v":1.311871302118648E-2},{"$f":"'Population 2016'!AI108/'Population 2016'!AI$5","v":8.3955836031148826E-3},{"$f":"'Population 2016'!AJ108/'Population 2016'!AJ$5","v":1.6827928505702257E-2},{"$f":"'Population 2016'!AK108/'Population 2016'!AK$5","v":6.4493418654061321E-3},{"$f":"'Population 2016'!AL108/'Population 2016'!AL$5","v":1.0544332310530143E-2},{"$f":"'Population 2016'!AM108/'Population 2016'!AM$5","v":1.3484684397535595E-2},{"$f":"'Population 2016'!AN108/'Population 2016'!AN$5","v":6.654303479873459E-3},{"$f":"'Population 2016'!AO108/'Population 2016'!AO$5","v":6.654303479873459E-3},{"$f":"'Population 2016'!AP108/'Population 2016'!AP$5","v":4.4544489006546929E-3},{"$f":"'Population 2016'!AQ108/'Population 2016'!AQ$5","v":9.0083301364607873E-3},{"$f":"'Population 2016'!AR108/'Population 2016'!AR$5","v":9.0265000558057713E-3},{"$f":"'Population 2016'!AS108/'Population 2016'!AS$5","v":7.4637802529101413E-3},{"$f":"'Population 2016'!AT108/'Population 2016'!AT$5","v":1.0544630147097591E-3},{"$f":"'Population 2016'!AU108/'Population 2016'!AU$5","v":1.0544630147097591E-3},{"$f":"'Population 2016'!AV108/'Population 2016'!AV$5","v":1.3335445042762116E-2},{"$f":"'Population 2016'!AW108/'Population 2016'!AW$5","v":1.2733388248215266E-2},{"$f":"'Population 2016'!AX108/'Population 2016'!AX$5","v":6.7470002683466014E-3},{"$f":"'Population 2016'!AY108/'Population 2016'!AY$5","v":7.7751598788286776E-3},{"$f":"'Population 2016'!AZ108/'Population 2016'!AZ$5","v":6.1410220271413043E-3},{"$f":"'Population 2016'!BA108/'Population 2016'!BA$5","v":1.4751133664435328E-2},{"$f":"'Population 2016'!BB108/'Population 2016'!BB$5","v":1.2166575751089261E-2},{"$f":"'Population 2016'!BC108/'Population 2016'!BC$5","v":1.1950604169433009E-2},106]
[null,"Female 55-59",{"$f":"'Population 2016'!C109/'Population 2016'!C$5","v":7.1044144480278864E-3},{"$f":"'Population 2016'!D109/'Population 2016'!D$5","v":4.9978971665541891E-3},{"$f":"'Population 2016'!E109/'Population 2016'!E$5","v":3.0658309855193396E-3},{"$f":"'Population 2016'!F109/'Population 2016'!F$5","v":6.9121813031161475E-3},{"$f":"'Population 2016'!G109/'Population 2016'!G$5","v":7.9440264169328215E-3},{"$f":"'Population 2016'!H109/'Population 2016'!H$5","v":1.1296540677597897E-2},{"$f":"'Population 2016'!I109/'Population 2016'!I$5","v":7.2544175529687628E-3},{"$f":"'Population 2016'!J109/'Population 2016'!J$5","v":7.7622882164152494E-3},{"$f":"'Population 2016'!K109/'Population 2016'!K$5","v":1.1127911921750224E-2},{"$f":"'Population 2016'!L109/'Population 2016'!L$5","v":1.2564929391768462E-2},{"$f":"'Population 2016'!M109/'Population 2016'!M$5","v":1.2564929391768462E-2},{"$f":"'Population 2016'!N109/'Population 2016'!N$5","v":7.2335055979296098E-3},{"$f":"'Population 2016'!O109/'Population 2016'!O$5","v":1.1769251344845008E-2},{"$f":"'Population 2016'!P109/'Population 2016'!P$5","v":7.8891017694128259E-3},{"$f":"'Population 2016'!Q109/'Population 2016'!Q$5","v":1.237353262593859E-2},{"$f":"'Population 2016'!R109/'Population 2016'!R$5","v":3.832437323681269E-3},{"$f":"'Population 2016'!S109/'Population 2016'!S$5","v":8.0127667612287304E-3},{"$f":"'Population 2016'!T109/'Population 2016'!T$5","v":4.3531267595147581E-3},{"$f":"'Population 2016'!U109/'Population 2016'!U$5","v":1.0224405789403798E-2},{"$f":"'Population 2016'!V109/'Population 2016'!V$5","v":1.1677517344547821E-2},{"$f":"'Population 2016'!W109/'Population 2016'!W$5","v":8.6940037521489877E-3},{"$f":"'Population 2016'!X109/'Population 2016'!X$5","v":8.6940037521489877E-3},{"$f":"'Population 2016'!Y109/'Population 2016'!Y$5","v":9.8011160394906281E-3},{"$f":"'Population 2016'!Z109/'Population 2016'!Z$5","v":6.4713705251624619E-3},{"$f":"'Population 2016'!AA109/'Population 2016'!AA$5","v":8.9153490300347398E-3},{"$f":"'Population 2016'!AB109/'Population 2016'!AB$5","v":5.2260421890832423E-3},{"$f":"'Population 2016'!AC109/'Population 2016'!AC$5","v":7.1759398122961142E-3},{"$f":"'Population 2016'!AD109/'Population 2016'!AD$5","v":8.4074584093192899E-3},{"$f":"'Population 2016'!AE109/'Population 2016'!AE$5","v":8.5832503413792744E-3},{"$f":"'Population 2016'!AF109/'Population 2016'!AF$5","v":6.605438175813238E-3},{"$f":"'Population 2016'!AG109/'Population 2016'!AG$5","v":8.5832503413792744E-3},{"$f":"'Population 2016'!AH109/'Population 2016'!AH$5","v":1.2039419299109257E-2},{"$f":"'Population 2016'!AI109/'Population 2016'!AI$5","v":7.826854930440108E-3},{"$f":"'Population 2016'!AJ109/'Population 2016'!AJ$5","v":1.6493321807991523E-2},{"$f":"'Population 2016'!AK109/'Population 2016'!AK$5","v":6.3990545993990672E-3},{"$f":"'Population 2016'!AL109/'Population 2016'!AL$5","v":9.4003298983700179E-3},{"$f":"'Population 2016'!AM109/'Population 2016'!AM$5","v":1.2202498451597481E-2},{"$f":"'Population 2016'!AN109/'Population 2016'!AN$5","v":5.9452383549689104E-3},{"$f":"'Population 2016'!AO109/'Population 2016'!AO$5","v":5.9452383549689104E-3},{"$f":"'Population 2016'!AP109/'Population 2016'!AP$5","v":4.0343674206997134E-3},{"$f":"'Population 2016'!AQ109/'Population 2016'!AQ$5","v":7.9396613141886341E-3},{"$f":"'Population 2016'!AR109/'Population 2016'!AR$5","v":8.3040325183908418E-3},{"$f":"'Population 2016'!AS109/'Population 2016'!AS$5","v":7.2544175529687628E-3},{"$f":"'Population 2016'!AT109/'Population 2016'!AT$5","v":7.3812411029683129E-4},{"$f":"'Population 2016'!AU109/'Population 2016'!AU$5","v":7.3812411029683129E-4},{"$f":"'Population 2016'!AV109/'Population 2016'!AV$5","v":1.3050364269876465E-2},{"$f":"'Population 2016'!AW109/'Population 2016'!AW$5","v":1.1867716151076941E-2},{"$f":"'Population 2016'!AX109/'Population 2016'!AX$5","v":5.9419604636007E-3},{"$f":"'Population 2016'!AY109/'Population 2016'!AY$5","v":7.251920075885071E-3},{"$f":"'Population 2016'!AZ109/'Population 2016'!AZ$5","v":5.9828223964655328E-3},{"$f":"'Population 2016'!BA109/'Population 2016'!BA$5","v":1.3630965234290649E-2},{"$f":"'Population 2016'!BB109/'Population 2016'!BB$5","v":1.1172258550092181E-2},{"$f":"'Population 2016'!BC109/'Population 2016'!BC$5","v":1.0224405789403798E-2},107]
[null,"Female 60-64",{"$f":"'Population 2016'!C110/'Population 2016'!C$5","v":6.3479731974464999E-3},{"$f":"'Population 2016'!D110/'Population 2016'!D$5","v":4.5284273740011545E-3},{"$f":"'Population 2016'!E110/'Population 2016'!E$5","v":2.8595671271663564E-3},{"$f":"'Population 2016'!F110/'Population 2016'!F$5","v":5.7996394540303885E-3},{"$f":"'Population 2016'!G110/'Population 2016'!G$5","v":7.1184972662805173E-3},{"$f":"'Population 2016'!H110/'Population 2016'!H$5","v":9.9412151887242114E-3},{"$f":"'Population 2016'!I110/'Population 2016'!I$5","v":6.5844569131563524E-3},{"$f":"'Population 2016'!J110/'Population 2016'!J$5","v":6.6012622011394637E-3},{"$f":"'Population 2016'!K110/'Population 2016'!K$5","v":9.875726503803809E-3},{"$f":"'Population 2016'!L110/'Population 2016'!L$5","v":1.2358426127428398E-2},{"$f":"'Population 2016'!M110/'Population 2016'!M$5","v":1.2358426127428398E-2},{"$f":"'Population 2016'!N110/'Population 2016'!N$5","v":6.2288520426616086E-3},{"$f":"'Population 2016'!O110/'Population 2016'!O$5","v":1.0303048315352533E-2},{"$f":"'Population 2016'!P110/'Population 2016'!P$5","v":5.9506367632142457E-3},{"$f":"'Population 2016'!Q110/'Population 2016'!Q$5","v":1.0364155532837451E-2},{"$f":"'Population 2016'!R110/'Population 2016'!R$5","v":3.3400755841805504E-3},{"$f":"'Population 2016'!S110/'Population 2016'!S$5","v":6.8864955134508212E-3},{"$f":"'Population 2016'!T110/'Population 2016'!T$5","v":3.5737053461329066E-3},{"$f":"'Population 2016'!U110/'Population 2016'!U$5","v":1.0976851237108839E-2},{"$f":"'Population 2016'!V110/'Population 2016'!V$5","v":1.0883751459689669E-2},{"$f":"'Population 2016'!W110/'Population 2016'!W$5","v":7.9259244732937193E-3},{"$f":"'Population 2016'!X110/'Population 2016'!X$5","v":7.9259244732937193E-3},{"$f":"'Population 2016'!Y110/'Population 2016'!Y$5","v":8.8313381345288631E-3},{"$f":"'Population 2016'!Z110/'Population 2016'!Z$5","v":5.0911470180009799E-3},{"$f":"'Population 2016'!AA110/'Population 2016'!AA$5","v":7.5732963405146436E-3},{"$f":"'Population 2016'!AB110/'Population 2016'!AB$5","v":4.7900269183136649E-3},{"$f":"'Population 2016'!AC110/'Population 2016'!AC$5","v":5.7227551140724134E-3},{"$f":"'Population 2016'!AD110/'Population 2016'!AD$5","v":7.5961144813725852E-3},{"$f":"'Population 2016'!AE110/'Population 2016'!AE$5","v":7.7772872411421062E-3},{"$f":"'Population 2016'!AF110/'Population 2016'!AF$5","v":4.7957290865493375E-3},{"$f":"'Population 2016'!AG110/'Population 2016'!AG$5","v":7.7772872411421062E-3},{"$f":"'Population 2016'!AH110/'Population 2016'!AH$5","v":1.0896965531333885E-2},{"$f":"'Population 2016'!AI110/'Population 2016'!AI$5","v":6.4911628313938227E-3},{"$f":"'Population 2016'!AJ110/'Population 2016'!AJ$5","v":1.3509745420070825E-2},{"$f":"'Population 2016'!AK110/'Population 2016'!AK$5","v":6.1350464528619744E-3},{"$f":"'Population 2016'!AL110/'Population 2016'!AL$5","v":8.1853816001844597E-3},{"$f":"'Population 2016'!AM110/'Population 2016'!AM$5","v":1.1079680250352239E-2},{"$f":"'Population 2016'!AN110/'Population 2016'!AN$5","v":5.672520999236391E-3},{"$f":"'Population 2016'!AO110/'Population 2016'!AO$5","v":5.672520999236391E-3},{"$f":"'Population 2016'!AP110/'Population 2016'!AP$5","v":3.9471806984449059E-3},{"$f":"'Population 2016'!AQ110/'Population 2016'!AQ$5","v":6.4462651394749824E-3},{"$f":"'Population 2016'!AR110/'Population 2016'!AR$5","v":7.272349766072452E-3},{"$f":"'Population 2016'!AS110/'Population 2016'!AS$5","v":6.5844569131563524E-3},{"$f":"'Population 2016'!AT110/'Population 2016'!AT$5","v":1.5816945220646385E-3},{"$f":"'Population 2016'!AU110/'Population 2016'!AU$5","v":1.5816945220646385E-3},{"$f":"'Population 2016'!AV110/'Population 2016'!AV$5","v":1.1646077499736037E-2},{"$f":"'Population 2016'!AW110/'Population 2016'!AW$5","v":1.070458844346818E-2},{"$f":"'Population 2016'!AX110/'Population 2016'!AX$5","v":4.8302388284754078E-3},{"$f":"'Population 2016'!AY110/'Population 2016'!AY$5","v":6.5190783635751658E-3},{"$f":"'Population 2016'!AZ110/'Population 2016'!AZ$5","v":5.2809913076493839E-3},{"$f":"'Population 2016'!BA110/'Population 2016'!BA$5","v":1.1674044482833081E-2},{"$f":"'Population 2016'!BB110/'Population 2016'!BB$5","v":9.3976785455348946E-3},{"$f":"'Population 2016'!BC110/'Population 2016'!BC$5","v":1.0976851237108839E-2},108]
[null,"Female 65-69",{"$f":"'Population 2016'!C111/'Population 2016'!C$5","v":6.0055301988724934E-3},{"$f":"'Population 2016'!D111/'Population 2016'!D$5","v":4.5137564429838717E-3},{"$f":"'Population 2016'!E111/'Population 2016'!E$5","v":3.145523839882992E-3},{"$f":"'Population 2016'!F111/'Population 2016'!F$5","v":6.1910893638938962E-3},{"$f":"'Population 2016'!G111/'Population 2016'!G$5","v":7.8086937692849025E-3},{"$f":"'Population 2016'!H111/'Population 2016'!H$5","v":1.0233031681543903E-2},{"$f":"'Population 2016'!I111/'Population 2016'!I$5","v":7.160204337995143E-3},{"$f":"'Population 2016'!J111/'Population 2016'!J$5","v":6.8417604471608766E-3},{"$f":"'Population 2016'!K111/'Population 2016'!K$5","v":1.0844398242215187E-2},{"$f":"'Population 2016'!L111/'Population 2016'!L$5","v":1.2223404762282973E-2},{"$f":"'Population 2016'!M111/'Population 2016'!M$5","v":1.2223404762282973E-2},{"$f":"'Population 2016'!N111/'Population 2016'!N$5","v":6.421745525273065E-3},{"$f":"'Population 2016'!O111/'Population 2016'!O$5","v":1.0372395755936636E-2},{"$f":"'Population 2016'!P111/'Population 2016'!P$5","v":5.8942860362898681E-3},{"$f":"'Population 2016'!Q111/'Population 2016'!Q$5","v":1.0082137695209221E-2},{"$f":"'Population 2016'!R111/'Population 2016'!R$5","v":3.2868472880183104E-3},{"$f":"'Population 2016'!S111/'Population 2016'!S$5","v":7.0850934999320356E-3},{"$f":"'Population 2016'!T111/'Population 2016'!T$5","v":3.50623304467597E-3},{"$f":"'Population 2016'!U111/'Population 2016'!U$5","v":1.0445713274022928E-2},{"$f":"'Population 2016'!V111/'Population 2016'!V$5","v":1.0845589638302258E-2},{"$f":"'Population 2016'!W111/'Population 2016'!W$5","v":8.1645193131083347E-3},{"$f":"'Population 2016'!X111/'Population 2016'!X$5","v":8.1645193131083347E-3},{"$f":"'Population 2016'!Y111/'Population 2016'!Y$5","v":8.9267261251808391E-3},{"$f":"'Population 2016'!Z111/'Population 2016'!Z$5","v":4.431040123271575E-3},{"$f":"'Population 2016'!AA111/'Population 2016'!AA$5","v":7.2789748843476131E-3},{"$f":"'Population 2016'!AB111/'Population 2016'!AB$5","v":4.7060990962406474E-3},{"$f":"'Population 2016'!AC111/'Population 2016'!AC$5","v":5.5055531307080163E-3},{"$f":"'Population 2016'!AD111/'Population 2016'!AD$5","v":7.8789683278127215E-3},{"$f":"'Population 2016'!AE111/'Population 2016'!AE$5","v":7.9056253144282797E-3},{"$f":"'Population 2016'!AF111/'Population 2016'!AF$5","v":5.4291272677917026E-3},{"$f":"'Population 2016'!AG111/'Population 2016'!AG$5","v":7.9056253144282797E-3},{"$f":"'Population 2016'!AH111/'Population 2016'!AH$5","v":1.0464133453461264E-2},{"$f":"'Population 2016'!AI111/'Population 2016'!AI$5","v":6.623775045935777E-3},{"$f":"'Population 2016'!AJ111/'Population 2016'!AJ$5","v":1.4513565513203023E-2},{"$f":"'Population 2016'!AK111/'Population 2016'!AK$5","v":5.6950328753001518E-3},{"$f":"'Population 2016'!AL111/'Population 2016'!AL$5","v":8.6553980951029601E-3},{"$f":"'Population 2016'!AM111/'Population 2016'!AM$5","v":1.0634174964051708E-2},{"$f":"'Population 2016'!AN111/'Population 2016'!AN$5","v":6.4906730664339475E-3},{"$f":"'Population 2016'!AO111/'Population 2016'!AO$5","v":6.4906730664339475E-3},{"$f":"'Population 2016'!AP111/'Population 2016'!AP$5","v":3.6459902033828448E-3},{"$f":"'Population 2016'!AQ111/'Population 2016'!AQ$5","v":7.234065873842275E-3},{"$f":"'Population 2016'!AR111/'Population 2016'!AR$5","v":7.2580920040019757E-3},{"$f":"'Population 2016'!AS111/'Population 2016'!AS$5","v":7.160204337995143E-3},{"$f":"'Population 2016'!AT111/'Population 2016'!AT$5","v":1.3180787683871988E-3},{"$f":"'Population 2016'!AU111/'Population 2016'!AU$5","v":1.3180787683871988E-3},{"$f":"'Population 2016'!AV111/'Population 2016'!AV$5","v":1.1962833914053426E-2},{"$f":"'Population 2016'!AW111/'Population 2016'!AW$5","v":1.0285099762035512E-2},{"$f":"'Population 2016'!AX111/'Population 2016'!AX$5","v":4.6768979132857129E-3},{"$f":"'Population 2016'!AY111/'Population 2016'!AY$5","v":6.6674826351702824E-3},{"$f":"'Population 2016'!AZ111/'Population 2016'!AZ$5","v":5.3500238737624476E-3},{"$f":"'Population 2016'!BA111/'Population 2016'!BA$5","v":1.1444612394731159E-2},{"$f":"'Population 2016'!BB111/'Population 2016'!BB$5","v":9.936267029408313E-3},{"$f":"'Population 2016'!BC111/'Population 2016'!BC$5","v":1.0445713274022928E-2},109]
[null,"Female 70-74",{"$f":"'Population 2016'!C112/'Population 2016'!C$5","v":4.1399825200738039E-3},{"$f":"'Population 2016'!D112/'Population 2016'!D$5","v":3.2593918410062303E-3},{"$f":"'Population 2016'!E112/'Population 2016'!E$5","v":2.451727225422958E-3},{"$f":"'Population 2016'!F112/'Population 2016'!F$5","v":4.9961370074684524E-3},{"$f":"'Population 2016'!G112/'Population 2016'!G$5","v":6.4418340280409242E-3},{"$f":"'Population 2016'!H112/'Population 2016'!H$5","v":8.2421947194184428E-3},{"$f":"'Population 2016'!I112/'Population 2016'!I$5","v":5.7260698433967009E-3},{"$f":"'Population 2016'!J112/'Population 2016'!J$5","v":5.5729248733237683E-3},{"$f":"'Population 2016'!K112/'Population 2016'!K$5","v":8.3400274063223558E-3},{"$f":"'Population 2016'!L112/'Population 2016'!L$5","v":9.9439264212984289E-3},{"$f":"'Population 2016'!M112/'Population 2016'!M$5","v":9.9439264212984289E-3},{"$f":"'Population 2016'!N112/'Population 2016'!N$5","v":5.1599006598564553E-3},{"$f":"'Population 2016'!O112/'Population 2016'!O$5","v":8.4603877512606368E-3},{"$f":"'Population 2016'!P112/'Population 2016'!P$5","v":5.2744280401217179E-3},{"$f":"'Population 2016'!Q112/'Population 2016'!Q$5","v":8.1550158047496504E-3},{"$f":"'Population 2016'!R112/'Population 2016'!R$5","v":1.9428328099217545E-3},{"$f":"'Population 2016'!S112/'Population 2016'!S$5","v":5.5201413664600655E-3},{"$f":"'Population 2016'!T112/'Population 2016'!T$5","v":2.6430529122441287E-3},{"$f":"'Population 2016'!U112/'Population 2016'!U$5","v":7.6572389678218914E-3},{"$f":"'Population 2016'!V112/'Population 2016'!V$5","v":8.8535425618793927E-3},{"$f":"'Population 2016'!W112/'Population 2016'!W$5","v":6.2819079742971254E-3},{"$f":"'Population 2016'!X112/'Population 2016'!X$5","v":6.2819079742971254E-3},{"$f":"'Population 2016'!Y112/'Population 2016'!Y$5","v":7.2812832864342378E-3},{"$f":"'Population 2016'!Z112/'Population 2016'!Z$5","v":3.3837737594926663E-3},{"$f":"'Population 2016'!AA112/'Population 2016'!AA$5","v":5.8492237022450154E-3},{"$f":"'Population 2016'!AB112/'Population 2016'!AB$5","v":3.4533228252970737E-3},{"$f":"'Population 2016'!AC112/'Population 2016'!AC$5","v":4.2685361206898339E-3},{"$f":"'Population 2016'!AD112/'Population 2016'!AD$5","v":5.9622613420670665E-3},{"$f":"'Population 2016'!AE112/'Population 2016'!AE$5","v":5.7803468208092483E-3},{"$f":"'Population 2016'!AF112/'Population 2016'!AF$5","v":4.1321690871525731E-3},{"$f":"'Population 2016'!AG112/'Population 2016'!AG$5","v":5.7803468208092483E-3},{"$f":"'Population 2016'!AH112/'Population 2016'!AH$5","v":8.6882215803014955E-3},{"$f":"'Population 2016'!AI112/'Population 2016'!AI$5","v":5.174610639601015E-3},{"$f":"'Population 2016'!AJ112/'Population 2016'!AJ$5","v":1.0540110977888074E-2},{"$f":"'Population 2016'!AK112/'Population 2016'!AK$5","v":4.4504230416252842E-3},{"$f":"'Population 2016'!AL112/'Population 2016'!AL$5","v":6.6245721076249094E-3},{"$f":"'Population 2016'!AM112/'Population 2016'!AM$5","v":9.0042775751473254E-3},{"$f":"'Population 2016'!AN112/'Population 2016'!AN$5","v":5.6179775280898875E-3},{"$f":"'Population 2016'!AO112/'Population 2016'!AO$5","v":5.6179775280898875E-3},{"$f":"'Population 2016'!AP112/'Population 2016'!AP$5","v":2.9247182283658039E-3},{"$f":"'Population 2016'!AQ112/'Population 2016'!AQ$5","v":5.857127198991615E-3},{"$f":"'Population 2016'!AR112/'Population 2016'!AR$5","v":5.7396403434962218E-3},{"$f":"'Population 2016'!AS112/'Population 2016'!AS$5","v":5.7260698433967009E-3},{"$f":"'Population 2016'!AT112/'Population 2016'!AT$5","v":1.001739863974271E-3},{"$f":"'Population 2016'!AU112/'Population 2016'!AU$5","v":1.001739863974271E-3},{"$f":"'Population 2016'!AV112/'Population 2016'!AV$5","v":9.9355928624221303E-3},{"$f":"'Population 2016'!AW112/'Population 2016'!AW$5","v":8.3554518274452372E-3},{"$f":"'Population 2016'!AX112/'Population 2016'!AX$5","v":4.0763126621260722E-3},{"$f":"'Population 2016'!AY112/'Population 2016'!AY$5","v":5.2293381475475046E-3},{"$f":"'Population 2016'!AZ112/'Population 2016'!AZ$5","v":4.3030299543809795E-3},{"$f":"'Population 2016'!BA112/'Population 2016'!BA$5","v":8.5834592960483697E-3},{"$f":"'Population 2016'!BB112/'Population 2016'!BB$5","v":8.2790716944131804E-3},{"$f":"'Population 2016'!BC112/'Population 2016'!BC$5","v":7.6572389678218914E-3},110]
[null,"Female 75-79",{"$f":"'Population 2016'!C113/'Population 2016'!C$5","v":4.1093159828880718E-3},{"$f":"'Population 2016'!D113/'Population 2016'!D$5","v":3.0026505482037892E-3},{"$f":"'Population 2016'!E113/'Population 2016'!E$5","v":1.9876335441287463E-3},{"$f":"'Population 2016'!F113/'Population 2016'!F$5","v":4.3986608292557305E-3},{"$f":"'Population 2016'!G113/'Population 2016'!G$5","v":5.9546364965084178E-3},{"$f":"'Population 2016'!H113/'Population 2016'!H$5","v":6.6988097129498433E-3},{"$f":"'Population 2016'!I113/'Population 2016'!I$5","v":4.6269156687044639E-3},{"$f":"'Population 2016'!J113/'Population 2016'!J$5","v":4.4284849439804944E-3},{"$f":"'Population 2016'!K113/'Population 2016'!K$5","v":5.6702735907007513E-3},{"$f":"'Population 2016'!L113/'Population 2016'!L$5","v":7.7915270122154625E-3},{"$f":"'Population 2016'!M113/'Population 2016'!M$5","v":7.7915270122154625E-3},{"$f":"'Population 2016'!N113/'Population 2016'!N$5","v":4.9589699488028546E-3},{"$f":"'Population 2016'!O113/'Population 2016'!O$5","v":7.231947375199374E-3},{"$f":"'Population 2016'!P113/'Population 2016'!P$5","v":4.2826552462526769E-3},{"$f":"'Population 2016'!Q113/'Population 2016'!Q$5","v":7.203205602754374E-3},{"$f":"'Population 2016'!R113/'Population 2016'!R$5","v":2.1025176984084738E-3},{"$f":"'Population 2016'!S113/'Population 2016'!S$5","v":4.6251264407180595E-3},{"$f":"'Population 2016'!T113/'Population 2016'!T$5","v":2.5313746201774752E-3},{"$f":"'Population 2016'!U113/'Population 2016'!U$5","v":7.34740848935511E-3},{"$f":"'Population 2016'!V113/'Population 2016'!V$5","v":7.342334434937911E-3},{"$f":"'Population 2016'!W113/'Population 2016'!W$5","v":5.157570646951542E-3},{"$f":"'Population 2016'!X113/'Population 2016'!X$5","v":5.157570646951542E-3},{"$f":"'Population 2016'!Y113/'Population 2016'!Y$5","v":5.9458514173065611E-3},{"$f":"'Population 2016'!Z113/'Population 2016'!Z$5","v":3.3198924470994981E-3},{"$f":"'Population 2016'!AA113/'Population 2016'!AA$5","v":5.1894918603175612E-3},{"$f":"'Population 2016'!AB113/'Population 2016'!AB$5","v":3.1442227976623033E-3},{"$f":"'Population 2016'!AC113/'Population 2016'!AC$5","v":4.0006536745404112E-3},{"$f":"'Population 2016'!AD113/'Population 2016'!AD$5","v":5.4784323942089399E-3},{"$f":"'Population 2016'!AE113/'Population 2016'!AE$5","v":5.2977956652532363E-3},{"$f":"'Population 2016'!AF113/'Population 2016'!AF$5","v":3.046343633594233E-3},{"$f":"'Population 2016'!AG113/'Population 2016'!AG$5","v":5.2977956652532363E-3},{"$f":"'Population 2016'!AH113/'Population 2016'!AH$5","v":7.3247076525825953E-3},{"$f":"'Population 2016'!AI113/'Population 2016'!AI$5","v":4.4021786682999385E-3},{"$f":"'Population 2016'!AJ113/'Population 2016'!AJ$5","v":8.3791093885062593E-3},{"$f":"'Population 2016'!AK113/'Population 2016'!AK$5","v":3.8721194825440328E-3},{"$f":"'Population 2016'!AL113/'Population 2016'!AL$5","v":5.0371579078058214E-3},{"$f":"'Population 2016'!AM113/'Population 2016'!AM$5","v":7.4975279889601615E-3},{"$f":"'Population 2016'!AN113/'Population 2016'!AN$5","v":3.436238682229737E-3},{"$f":"'Population 2016'!AO113/'Population 2016'!AO$5","v":3.436238682229737E-3},{"$f":"'Population 2016'!AP113/'Population 2016'!AP$5","v":2.2351505159868743E-3},{"$f":"'Population 2016'!AQ113/'Population 2016'!AQ$5","v":5.5146051405710527E-3},{"$f":"'Population 2016'!AR113/'Population 2016'!AR$5","v":4.9383095596289683E-3},{"$f":"'Population 2016'!AS113/'Population 2016'!AS$5","v":4.6269156687044639E-3},{"$f":"'Population 2016'!AT113/'Population 2016'!AT$5","v":5.2723150735487954E-4},{"$f":"'Population 2016'!AU113/'Population 2016'!AU$5","v":5.2723150735487954E-4},{"$f":"'Population 2016'!AV113/'Population 2016'!AV$5","v":8.1089642065251821E-3},{"$f":"'Population 2016'!AW113/'Population 2016'!AW$5","v":7.1427481847580691E-3},{"$f":"'Population 2016'!AX113/'Population 2016'!AX$5","v":3.7568524221475393E-3},{"$f":"'Population 2016'!AY113/'Population 2016'!AY$5","v":4.4429485021878152E-3},{"$f":"'Population 2016'!AZ113/'Population 2016'!AZ$5","v":3.8140492777467769E-3},{"$f":"'Population 2016'!BA113/'Population 2016'!BA$5","v":8.2055711509393219E-3},{"$f":"'Population 2016'!BB113/'Population 2016'!BB$5","v":6.3387721563563796E-3},{"$f":"'Population 2016'!BC113/'Population 2016'!BC$5","v":7.34740848935511E-3},111]
[null,"Female 80-84",{"$f":"'Population 2016'!C114/'Population 2016'!C$5","v":3.6442068355711388E-3},{"$f":"'Population 2016'!D114/'Population 2016'!D$5","v":2.5698580831939595E-3},{"$f":"'Population 2016'!E114/'Population 2016'!E$5","v":1.5844814573479156E-3},{"$f":"'Population 2016'!F114/'Population 2016'!F$5","v":3.3994334277620396E-3},{"$f":"'Population 2016'!G114/'Population 2016'!G$5","v":4.5201104314404805E-3},{"$f":"'Population 2016'!H114/'Population 2016'!H$5","v":5.2526968707544757E-3},{"$f":"'Population 2016'!I114/'Population 2016'!I$5","v":3.6638472489741226E-3},{"$f":"'Population 2016'!J114/'Population 2016'!J$5","v":2.9606163389532523E-3},{"$f":"'Population 2016'!K114/'Population 2016'!K$5","v":3.8038085337617541E-3},{"$f":"'Population 2016'!L114/'Population 2016'!L$5","v":6.4889679602242942E-3},{"$f":"'Population 2016'!M114/'Population 2016'!M$5","v":6.4889679602242942E-3},{"$f":"'Population 2016'!N114/'Population 2016'!N$5","v":4.0346886779562934E-3},{"$f":"'Population 2016'!O114/'Population 2016'!O$5","v":5.3595664794285772E-3},{"$f":"'Population 2016'!P114/'Population 2016'!P$5","v":3.944550884706413E-3},{"$f":"'Population 2016'!Q114/'Population 2016'!Q$5","v":5.6756089822681283E-3},{"$f":"'Population 2016'!R114/'Population 2016'!R$5","v":2.0093681801245543E-3},{"$f":"'Population 2016'!S114/'Population 2016'!S$5","v":3.5579932600256678E-3},{"$f":"'Population 2016'!T114/'Population 2016'!T$5","v":1.8962043340483845E-3},{"$f":"'Population 2016'!U114/'Population 2016'!U$5","v":6.7720090293453723E-3},{"$f":"'Population 2016'!V114/'Population 2016'!V$5","v":5.2892284442951892E-3},{"$f":"'Population 2016'!W114/'Population 2016'!W$5","v":4.1084070362598785E-3},{"$f":"'Population 2016'!X114/'Population 2016'!X$5","v":4.1084070362598785E-3},{"$f":"'Population 2016'!Y114/'Population 2016'!Y$5","v":4.1732245910239898E-3},{"$f":"'Population 2016'!Z114/'Population 2016'!Z$5","v":2.9908068984074196E-3},{"$f":"'Population 2016'!AA114/'Population 2016'!AA$5","v":4.1895961683731334E-3},{"$f":"'Population 2016'!AB114/'Population 2016'!AB$5","v":2.6038095043140947E-3},{"$f":"'Population 2016'!AC114/'Population 2016'!AC$5","v":3.4183455000920521E-3},{"$f":"'Population 2016'!AD114/'Population 2016'!AD$5","v":4.0120585060850799E-3},{"$f":"'Population 2016'!AE114/'Population 2016'!AE$5","v":3.8193410609965194E-3},{"$f":"'Population 2016'!AF114/'Population 2016'!AF$5","v":2.3526218160430713E-3},{"$f":"'Population 2016'!AG114/'Population 2016'!AG$5","v":3.8193410609965194E-3},{"$f":"'Population 2016'!AH114/'Population 2016'!AH$5","v":5.5748028570632435E-3},{"$f":"'Population 2016'!AI114/'Population 2016'!AI$5","v":3.3139382273164758E-3},{"$f":"'Population 2016'!AJ114/'Population 2016'!AJ$5","v":6.5945403340490196E-3},{"$f":"'Population 2016'!AK114/'Population 2016'!AK$5","v":2.7783714468903611E-3},{"$f":"'Population 2016'!AL114/'Population 2016'!AL$5","v":4.2390166900196872E-3},{"$f":"'Population 2016'!AM114/'Population 2016'!AM$5","v":5.5380291280773368E-3},{"$f":"'Population 2016'!AN114/'Population 2016'!AN$5","v":3.272608268790226E-3},{"$f":"'Population 2016'!AO114/'Population 2016'!AO$5","v":3.272608268790226E-3},{"$f":"'Population 2016'!AP114/'Population 2016'!AP$5","v":1.8705514956485899E-3},{"$f":"'Population 2016'!AQ114/'Population 2016'!AQ$5","v":4.5966460240039458E-3},{"$f":"'Population 2016'!AR114/'Population 2016'!AR$5","v":3.8919234901753992E-3},{"$f":"'Population 2016'!AS114/'Population 2016'!AS$5","v":3.6638472489741226E-3},{"$f":"'Population 2016'!AT114/'Population 2016'!AT$5","v":7.9084726103231925E-4},{"$f":"'Population 2016'!AU114/'Population 2016'!AU$5","v":7.9084726103231925E-4},{"$f":"'Population 2016'!AV114/'Population 2016'!AV$5","v":6.345686833491712E-3},{"$f":"'Population 2016'!AW114/'Population 2016'!AW$5","v":5.6135212642626151E-3},{"$f":"'Population 2016'!AX114/'Population 2016'!AX$5","v":2.504568281431693E-3},{"$f":"'Population 2016'!AY114/'Population 2016'!AY$5","v":3.5571126954499557E-3},{"$f":"'Population 2016'!AZ114/'Population 2016'!AZ$5","v":3.0719491920313409E-3},{"$f":"'Population 2016'!BA114/'Population 2016'!BA$5","v":5.8302742388253075E-3},{"$f":"'Population 2016'!BB114/'Population 2016'!BB$5","v":4.5089523072992547E-3},{"$f":"'Population 2016'!BC114/'Population 2016'!BC$5","v":6.7720090293453723E-3},112]
[null,"Female 85-89",{"$f":"'Population 2016'!C115/'Population 2016'!C$5","v":2.0495469019130809E-3},{"$f":"'Population 2016'!D115/'Population 2016'!D$5","v":1.4353060845241239E-3},{"$f":"'Population 2016'!E115/'Population 2016'!E$5","v":8.7193358303761035E-4},{"$f":"'Population 2016'!F115/'Population 2016'!F$5","v":2.5238217872778777E-3},{"$f":"'Population 2016'!G115/'Population 2016'!G$5","v":2.5307205110160777E-3},{"$f":"'Population 2016'!H115/'Population 2016'!H$5","v":2.8857408734391872E-3},{"$f":"'Population 2016'!I115/'Population 2016'!I$5","v":2.2297127543756804E-3},{"$f":"'Population 2016'!J115/'Population 2016'!J$5","v":1.7249529369811666E-3},{"$f":"'Population 2016'!K115/'Population 2016'!K$5","v":2.4098662760478192E-3},{"$f":"'Population 2016'!L115/'Population 2016'!L$5","v":3.6138071259511064E-3},{"$f":"'Population 2016'!M115/'Population 2016'!M$5","v":3.6138071259511064E-3},{"$f":"'Population 2016'!N115/'Population 2016'!N$5","v":2.2102378215896031E-3},{"$f":"'Population 2016'!O115/'Population 2016'!O$5","v":2.8630586184008478E-3},{"$f":"'Population 2016'!P115/'Population 2016'!P$5","v":2.2878395131297195E-3},{"$f":"'Population 2016'!Q115/'Population 2016'!Q$5","v":3.1962021597866067E-3},{"$f":"'Population 2016'!R115/'Population 2016'!R$5","v":8.9157396071751747E-4},{"$f":"'Population 2016'!S115/'Population 2016'!S$5","v":2.2304760526134612E-3},{"$f":"'Population 2016'!T115/'Population 2016'!T$5","v":1.293606883105401E-3},{"$f":"'Population 2016'!U115/'Population 2016'!U$5","v":2.7884743062010359E-3},{"$f":"'Population 2016'!V115/'Population 2016'!V$5","v":3.304813732149808E-3},{"$f":"'Population 2016'!W115/'Population 2016'!W$5","v":2.6441537727400492E-3},{"$f":"'Population 2016'!X115/'Population 2016'!X$5","v":2.6441537727400492E-3},{"$f":"'Population 2016'!Y115/'Population 2016'!Y$5","v":2.5476542503298834E-3},{"$f":"'Population 2016'!Z115/'Population 2016'!Z$5","v":1.85836545143762E-3},{"$f":"'Population 2016'!AA115/'Population 2016'!AA$5","v":2.4402769943600569E-3},{"$f":"'Population 2016'!AB115/'Population 2016'!AB$5","v":1.4902305968086957E-3},{"$f":"'Population 2016'!AC115/'Population 2016'!AC$5","v":1.9858467050459122E-3},{"$f":"'Population 2016'!AD115/'Population 2016'!AD$5","v":2.5159105288622575E-3},{"$f":"'Population 2016'!AE115/'Population 2016'!AE$5","v":2.5102927134775513E-3},{"$f":"'Population 2016'!AF115/'Population 2016'!AF$5","v":1.2064727261759339E-3},{"$f":"'Population 2016'!AG115/'Population 2016'!AG$5","v":2.5102927134775513E-3},{"$f":"'Population 2016'!AH115/'Population 2016'!AH$5","v":3.256457650260535E-3},{"$f":"'Population 2016'!AI115/'Population 2016'!AI$5","v":2.0575400297488844E-3},{"$f":"'Population 2016'!AJ115/'Population 2016'!AJ$5","v":4.2801773415497863E-3},{"$f":"'Population 2016'!AK115/'Population 2016'!AK$5","v":1.772626126749054E-3},{"$f":"'Population 2016'!AL115/'Population 2016'!AL$5","v":2.16384952377574E-3},{"$f":"'Population 2016'!AM115/'Population 2016'!AM$5","v":3.0497191143499789E-3},{"$f":"'Population 2016'!AN115/'Population 2016'!AN$5","v":1.5817606632486092E-3},{"$f":"'Population 2016'!AO115/'Population 2016'!AO$5","v":1.5817606632486092E-3},{"$f":"'Population 2016'!AP115/'Population 2016'!AP$5","v":1.6169173945436964E-3},{"$f":"'Population 2016'!AQ115/'Population 2016'!AQ$5","v":2.4182057324491696E-3},{"$f":"'Population 2016'!AR115/'Population 2016'!AR$5","v":2.3193368893083049E-3},{"$f":"'Population 2016'!AS115/'Population 2016'!AS$5","v":2.2297127543756804E-3},{"$f":"'Population 2016'!AT115/'Population 2016'!AT$5","v":2.6361575367743977E-4},{"$f":"'Population 2016'!AU115/'Population 2016'!AU$5","v":2.6361575367743977E-4},{"$f":"'Population 2016'!AV115/'Population 2016'!AV$5","v":3.7694013303769401E-3},{"$f":"'Population 2016'!AW115/'Population 2016'!AW$5","v":3.4741289889560069E-3},{"$f":"'Population 2016'!AX115/'Population 2016'!AX$5","v":1.3545114175089769E-3},{"$f":"'Population 2016'!AY115/'Population 2016'!AY$5","v":2.3453994675805513E-3},{"$f":"'Population 2016'!AZ115/'Population 2016'!AZ$5","v":2.0824824110774257E-3},{"$f":"'Population 2016'!BA115/'Population 2016'!BA$5","v":3.4684733318937596E-3},{"$f":"'Population 2016'!BB115/'Population 2016'!BB$5","v":2.5548428081174951E-3},{"$f":"'Population 2016'!BC115/'Population 2016'!BC$5","v":2.7884743062010359E-3},113]
[null,"Female 90+",{"$f":"'Population 2016'!C116/'Population 2016'!C$5","v":9.9666245853628614E-4},{"$f":"'Population 2016'!D116/'Population 2016'!D$5","v":7.5555294739004136E-4},{"$f":"'Population 2016'!E116/'Population 2016'!E$5","v":5.3441090573272897E-4},{"$f":"'Population 2016'!F116/'Population 2016'!F$5","v":1.658511460211177E-3},{"$f":"'Population 2016'!G116/'Population 2016'!G$5","v":1.4074595355383533E-3},{"$f":"'Population 2016'!H116/'Population 2016'!H$5","v":2.0102913949801076E-3},{"$f":"'Population 2016'!I116/'Population 2016'!I$5","v":1.5388158445691317E-3},{"$f":"'Population 2016'!J116/'Population 2016'!J$5","v":1.0449234137482066E-3},{"$f":"'Population 2016'!K116/'Population 2016'!K$5","v":1.441194537636441E-3},{"$f":"'Population 2016'!L116/'Population 2016'!L$5","v":2.1921115753022096E-3},{"$f":"'Population 2016'!M116/'Population 2016'!M$5","v":2.1921115753022096E-3},{"$f":"'Population 2016'!N116/'Population 2016'!N$5","v":1.3261426929537619E-3},{"$f":"'Population 2016'!O116/'Population 2016'!O$5","v":1.8228470096392942E-3},{"$f":"'Population 2016'!P116/'Population 2016'!P$5","v":1.5665502084976897E-3},{"$f":"'Population 2016'!Q116/'Population 2016'!Q$5","v":1.7273592554729086E-3},{"$f":"'Population 2016'!R116/'Population 2016'!R$5","v":4.6574759141959865E-4},{"$f":"'Population 2016'!S116/'Population 2016'!S$5","v":1.2851496369628806E-3},{"$f":"'Population 2016'!T116/'Population 2016'!T$5","v":7.817480444665733E-4},{"$f":"'Population 2016'!U116/'Population 2016'!U$5","v":2.5229053246580801E-3},{"$f":"'Population 2016'!V116/'Population 2016'!V$5","v":2.106532540585097E-3},{"$f":"'Population 2016'!W116/'Population 2016'!W$5","v":1.5753796272691023E-3},{"$f":"'Population 2016'!X116/'Population 2016'!X$5","v":1.5753796272691023E-3},{"$f":"'Population 2016'!Y116/'Population 2016'!Y$5","v":1.5977488434206133E-3},{"$f":"'Population 2016'!Z116/'Population 2016'!Z$5","v":1.0898539053743543E-3},{"$f":"'Population 2016'!AA116/'Population 2016'!AA$5","v":1.2603336396136749E-3},{"$f":"'Population 2016'!AB116/'Population 2016'!AB$5","v":7.635384788594004E-4},{"$f":"'Population 2016'!AC116/'Population 2016'!AC$5","v":1.068426899121056E-3},{"$f":"'Population 2016'!AD116/'Population 2016'!AD$5","v":1.3993821876511965E-3},{"$f":"'Population 2016'!AE116/'Population 2016'!AE$5","v":1.3963182373535662E-3},{"$f":"'Population 2016'!AF116/'Population 2016'!AF$5","v":3.9210363600717849E-4},{"$f":"'Population 2016'!AG116/'Population 2016'!AG$5","v":1.3963182373535662E-3},{"$f":"'Population 2016'!AH116/'Population 2016'!AH$5","v":1.6050082200941827E-3},{"$f":"'Population 2016'!AI116/'Population 2016'!AI$5","v":1.130621664187593E-3},{"$f":"'Population 2016'!AJ116/'Population 2016'!AJ$5","v":1.9379304575746592E-3},{"$f":"'Population 2016'!AK116/'Population 2016'!AK$5","v":8.0459625611304579E-4},{"$f":"'Population 2016'!AL116/'Population 2016'!AL$5","v":1.3657083059896065E-3},{"$f":"'Population 2016'!AM116/'Population 2016'!AM$5","v":1.3039179111235064E-3},{"$f":"'Population 2016'!AN116/'Population 2016'!AN$5","v":6.5452165375804513E-4},{"$f":"'Population 2016'!AO116/'Population 2016'!AO$5","v":6.5452165375804513E-4},{"$f":"'Population 2016'!AP116/'Population 2016'!AP$5","v":7.609023033146807E-4},{"$f":"'Population 2016'!AQ116/'Population 2016'!AQ$5","v":1.1508741162930892E-3},{"$f":"'Population 2016'!AR116/'Population 2016'!AR$5","v":1.3126052206132487E-3},{"$f":"'Population 2016'!AS116/'Population 2016'!AS$5","v":1.5388158445691317E-3},{"$f":"'Population 2016'!AT116/'Population 2016'!AT$5","v":5.2723150735487951E-5},{"$f":"'Population 2016'!AU116/'Population 2016'!AU$5","v":5.2723150735487951E-5},{"$f":"'Population 2016'!AV116/'Population 2016'!AV$5","v":2.9775102945834653E-3},{"$f":"'Population 2016'!AW116/'Population 2016'!AW$5","v":1.9220208676551346E-3},{"$f":"'Population 2016'!AX116/'Population 2016'!AX$5","v":8.3059662394418393E-4},{"$f":"'Population 2016'!AY116/'Population 2016'!AY$5","v":1.3830666136287139E-3},{"$f":"'Population 2016'!AZ116/'Population 2016'!AZ$5","v":1.2138226208213724E-3},{"$f":"'Population 2016'!BA116/'Population 2016'!BA$5","v":1.3765925286115309E-3},{"$f":"'Population 2016'!BB116/'Population 2016'!BB$5","v":1.4155210153083419E-3},{"$f":"'Population 2016'!BC116/'Population 2016'!BC$5","v":2.5229053246580801E-3},114]
[null,"Male 0-4",{"$f":"'Population 2016'!C117/'Population 2016'!C$5","v":0},{"$f":"'Population 2016'!D117/'Population 2016'!D$5","v":0},{"$f":"'Population 2016'!E117/'Population 2016'!E$5","v":0},{"$f":"'Population 2016'!F117/'Population 2016'!F$5","v":0},{"$f":"'Population 2016'!G117/'Population 2016'!G$5","v":0},{"$f":"'Population 2016'!H117/'Population 2016'!H$5","v":0},{"$f":"'Population 2016'!I117/'Population 2016'!I$5","v":0},{"$f":"'Population 2016'!J117/'Population 2016'!J$5","v":0},{"$f":"'Population 2016'!K117/'Population 2016'!K$5","v":0},{"$f":"'Population 2016'!L117/'Population 2016'!L$5","v":0},{"$f":"'Population 2016'!M117/'Population 2016'!M$5","v":0},{"$f":"'Population 2016'!N117/'Population 2016'!N$5","v":0},{"$f":"'Population 2016'!O117/'Population 2016'!O$5","v":0},{"$f":"'Population 2016'!P117/'Population 2016'!P$5","v":0},{"$f":"'Population 2016'!Q117/'Population 2016'!Q$5","v":0},{"$f":"'Population 2016'!R117/'Population 2016'!R$5","v":0},{"$f":"'Population 2016'!S117/'Population 2016'!S$5","v":0},{"$f":"'Population 2016'!T117/'Population 2016'!T$5","v":0},{"$f":"'Population 2016'!U117/'Population 2016'!U$5","v":0},{"$f":"'Population 2016'!V117/'Population 2016'!V$5","v":0},{"$f":"'Population 2016'!W117/'Population 2016'!W$5","v":0},{"$f":"'Population 2016'!X117/'Population 2016'!X$5","v":0},{"$f":"'Population 2016'!Y117/'Population 2016'!Y$5","v":0},{"$f":"'Population 2016'!Z117/'Population 2016'!Z$5","v":0},{"$f":"'Population 2016'!AA117/'Population 2016'!AA$5","v":0},{"$f":"'Population 2016'!AB117/'Population 2016'!AB$5","v":0},{"$f":"'Population 2016'!AC117/'Population 2016'!AC$5","v":0},{"$f":"'Population 2016'!AD117/'Population 2016'!AD$5","v":0},{"$f":"'Population 2016'!AE117/'Population 2016'!AE$5","v":0},{"$f":"'Population 2016'!AF117/'Population 2016'!AF$5","v":0},{"$f":"'Population 2016'!AG117/'Population 2016'!AG$5","v":0},{"$f":"'Population 2016'!AH117/'Population 2016'!AH$5","v":0},{"$f":"'Population 2016'!AI117/'Population 2016'!AI$5","v":0},{"$f":"'Population 2016'!AJ117/'Population 2016'!AJ$5","v":0},{"$f":"'Population 2016'!AK117/'Population 2016'!AK$5","v":0},{"$f":"'Population 2016'!AL117/'Population 2016'!AL$5","v":0},{"$f":"'Population 2016'!AM117/'Population 2016'!AM$5","v":0},{"$f":"'Population 2016'!AN117/'Population 2016'!AN$5","v":0},{"$f":"'Population 2016'!AO117/'Population 2016'!AO$5","v":0},{"$f":"'Population 2016'!AP117/'Population 2016'!AP$5","v":0},{"$f":"'Population 2016'!AQ117/'Population 2016'!AQ$5","v":0},{"$f":"'Population 2016'!AR117/'Population 2016'!AR$5","v":0},{"$f":"'Population 2016'!AS117/'Population 2016'!AS$5","v":0},{"$f":"'Population 2016'!AT117/'Population 2016'!AT$5","v":0},{"$f":"'Population 2016'!AU117/'Population 2016'!AU$5","v":0},{"$f":"'Population 2016'!AV117/'Population 2016'!AV$5","v":0},{"$f":"'Population 2016'!AW117/'Population 2016'!AW$5","v":0},{"$f":"'Population 2016'!AX117/'Population 2016'!AX$5","v":0},{"$f":"'Population 2016'!AY117/'Population 2016'!AY$5","v":0},{"$f":"'Population 2016'!AZ117/'Population 2016'!AZ$5","v":0},{"$f":"'Population 2016'!BA117/'Population 2016'!BA$5","v":0},{"$f":"'Population 2016'!BB117/'Population 2016'!BB$5","v":0},{"$f":"'Population 2016'!BC117/'Population 2016'!BC$5","v":0},115]
[null,"Male 5-9",{"$f":"'Population 2016'!C118/'Population 2016'!C$5","v":0},{"$f":"'Population 2016'!D118/'Population 2016'!D$5","v":0},{"$f":"'Population 2016'!E118/'Population 2016'!E$5","v":0},{"$f":"'Population 2016'!F118/'Population 2016'!F$5","v":0},{"$f":"'Population 2016'!G118/'Population 2016'!G$5","v":0},{"$f":"'Population 2016'!H118/'Population 2016'!H$5","v":0},{"$f":"'Population 2016'!I118/'Population 2016'!I$5","v":0},{"$f":"'Population 2016'!J118/'Population 2016'!J$5","v":0},{"$f":"'Population 2016'!K118/'Population 2016'!K$5","v":0},{"$f":"'Population 2016'!L118/'Population 2016'!L$5","v":0},{"$f":"'Population 2016'!M118/'Population 2016'!M$5","v":0},{"$f":"'Population 2016'!N118/'Population 2016'!N$5","v":0},{"$f":"'Population 2016'!O118/'Population 2016'!O$5","v":0},{"$f":"'Population 2016'!P118/'Population 2016'!P$5","v":0},{"$f":"'Population 2016'!Q118/'Population 2016'!Q$5","v":0},{"$f":"'Population 2016'!R118/'Population 2016'!R$5","v":0},{"$f":"'Population 2016'!S118/'Population 2016'!S$5","v":0},{"$f":"'Population 2016'!T118/'Population 2016'!T$5","v":0},{"$f":"'Population 2016'!U118/'Population 2016'!U$5","v":0},{"$f":"'Population 2016'!V118/'Population 2016'!V$5","v":0},{"$f":"'Population 2016'!W118/'Population 2016'!W$5","v":0},{"$f":"'Population 2016'!X118/'Population 2016'!X$5","v":0},{"$f":"'Population 2016'!Y118/'Population 2016'!Y$5","v":0},{"$f":"'Population 2016'!Z118/'Population 2016'!Z$5","v":0},{"$f":"'Population 2016'!AA118/'Population 2016'!AA$5","v":0},{"$f":"'Population 2016'!AB118/'Population 2016'!AB$5","v":0},{"$f":"'Population 2016'!AC118/'Population 2016'!AC$5","v":0},{"$f":"'Population 2016'!AD118/'Population 2016'!AD$5","v":0},{"$f":"'Population 2016'!AE118/'Population 2016'!AE$5","v":0},{"$f":"'Population 2016'!AF118/'Population 2016'!AF$5","v":0},{"$f":"'Population 2016'!AG118/'Population 2016'!AG$5","v":0},{"$f":"'Population 2016'!AH118/'Population 2016'!AH$5","v":0},{"$f":"'Population 2016'!AI118/'Population 2016'!AI$5","v":0},{"$f":"'Population 2016'!AJ118/'Population 2016'!AJ$5","v":0},{"$f":"'Population 2016'!AK118/'Population 2016'!AK$5","v":0},{"$f":"'Population 2016'!AL118/'Population 2016'!AL$5","v":0},{"$f":"'Population 2016'!AM118/'Population 2016'!AM$5","v":0},{"$f":"'Population 2016'!AN118/'Population 2016'!AN$5","v":0},{"$f":"'Population 2016'!AO118/'Population 2016'!AO$5","v":0},{"$f":"'Population 2016'!AP118/'Population 2016'!AP$5","v":0},{"$f":"'Population 2016'!AQ118/'Population 2016'!AQ$5","v":0},{"$f":"'Population 2016'!AR118/'Population 2016'!AR$5","v":0},{"$f":"'Population 2016'!AS118/'Population 2016'!AS$5","v":0},{"$f":"'Population 2016'!AT118/'Population 2016'!AT$5","v":0},{"$f":"'Population 2016'!AU118/'Population 2016'!AU$5","v":0},{"$f":"'Population 2016'!AV118/'Population 2016'!AV$5","v":0},{"$f":"'Population 2016'!AW118/'Population 2016'!AW$5","v":0},{"$f":"'Population 2016'!AX118/'Population 2016'!AX$5","v":0},{"$f":"'Population 2016'!AY118/'Population 2016'!AY$5","v":0},{"$f":"'Population 2016'!AZ118/'Population 2016'!AZ$5","v":0},{"$f":"'Population 2016'!BA118/'Population 2016'!BA$5","v":0},{"$f":"'Population 2016'!BB118/'Population 2016'!BB$5","v":0},{"$f":"'Population 2016'!BC118/'Population 2016'!BC$5","v":0},116]
[null,"Male 10-15",{"$f":"'Population 2016'!C119/'Population 2016'!C$5","v":0},{"$f":"'Population 2016'!D119/'Population 2016'!D$5","v":0},{"$f":"'Population 2016'!E119/'Population 2016'!E$5","v":0},{"$f":"'Population 2016'!F119/'Population 2016'!F$5","v":0},{"$f":"'Population 2016'!G119/'Population 2016'!G$5","v":0},{"$f":"'Population 2016'!H119/'Population 2016'!H$5","v":0},{"$f":"'Population 2016'!I119/'Population 2016'!I$5","v":0},{"$f":"'Population 2016'!J119/'Population 2016'!J$5","v":0},{"$f":"'Population 2016'!K119/'Population 2016'!K$5","v":0},{"$f":"'Population 2016'!L119/'Population 2016'!L$5","v":0},{"$f":"'Population 2016'!M119/'Population 2016'!M$5","v":0},{"$f":"'Population 2016'!N119/'Population 2016'!N$5","v":0},{"$f":"'Population 2016'!O119/'Population 2016'!O$5","v":0},{"$f":"'Population 2016'!P119/'Population 2016'!P$5","v":0},{"$f":"'Population 2016'!Q119/'Population 2016'!Q$5","v":0},{"$f":"'Population 2016'!R119/'Population 2016'!R$5","v":0},{"$f":"'Population 2016'!S119/'Population 2016'!S$5","v":0},{"$f":"'Population 2016'!T119/'Population 2016'!T$5","v":0},{"$f":"'Population 2016'!U119/'Population 2016'!U$5","v":0},{"$f":"'Population 2016'!V119/'Population 2016'!V$5","v":0},{"$f":"'Population 2016'!W119/'Population 2016'!W$5","v":0},{"$f":"'Population 2016'!X119/'Population 2016'!X$5","v":0},{"$f":"'Population 2016'!Y119/'Population 2016'!Y$5","v":0},{"$f":"'Population 2016'!Z119/'Population 2016'!Z$5","v":0},{"$f":"'Population 2016'!AA119/'Population 2016'!AA$5","v":0},{"$f":"'Population 2016'!AB119/'Population 2016'!AB$5","v":0},{"$f":"'Population 2016'!AC119/'Population 2016'!AC$5","v":0},{"$f":"'Population 2016'!AD119/'Population 2016'!AD$5","v":0},{"$f":"'Population 2016'!AE119/'Population 2016'!AE$5","v":0},{"$f":"'Population 2016'!AF119/'Population 2016'!AF$5","v":0},{"$f":"'Population 2016'!AG119/'Population 2016'!AG$5","v":0},{"$f":"'Population 2016'!AH119/'Population 2016'!AH$5","v":0},{"$f":"'Population 2016'!AI119/'Population 2016'!AI$5","v":0},{"$f":"'Population 2016'!AJ119/'Population 2016'!AJ$5","v":0},{"$f":"'Population 2016'!AK119/'Population 2016'!AK$5","v":0},{"$f":"'Population 2016'!AL119/'Population 2016'!AL$5","v":0},{"$f":"'Population 2016'!AM119/'Population 2016'!AM$5","v":0},{"$f":"'Population 2016'!AN119/'Population 2016'!AN$5","v":0},{"$f":"'Population 2016'!AO119/'Population 2016'!AO$5","v":0},{"$f":"'Population 2016'!AP119/'Population 2016'!AP$5","v":0},{"$f":"'Population 2016'!AQ119/'Population 2016'!AQ$5","v":0},{"$f":"'Population 2016'!AR119/'Population 2016'!AR$5","v":0},{"$f":"'Population 2016'!AS119/'Population 2016'!AS$5","v":0},{"$f":"'Population 2016'!AT119/'Population 2016'!AT$5","v":0},{"$f":"'Population 2016'!AU119/'Population 2016'!AU$5","v":0},{"$f":"'Population 2016'!AV119/'Population 2016'!AV$5","v":0},{"$f":"'Population 2016'!AW119/'Population 2016'!AW$5","v":0},{"$f":"'Population 2016'!AX119/'Population 2016'!AX$5","v":0},{"$f":"'Population 2016'!AY119/'Population 2016'!AY$5","v":0},{"$f":"'Population 2016'!AZ119/'Population 2016'!AZ$5","v":0},{"$f":"'Population 2016'!BA119/'Population 2016'!BA$5","v":0},{"$f":"'Population 2016'!BB119/'Population 2016'!BB$5","v":0},{"$f":"'Population 2016'!BC119/'Population 2016'!BC$5","v":0},117]
[null,"Male 16-19",{"$f":"'Population 2016'!C120/'Population 2016'!C$5","v":4.727757816133665E-3},{"$f":"'Population 2016'!D120/'Population 2016'!D$5","v":3.3009594788885304E-3},{"$f":"'Population 2016'!E120/'Population 2016'!E$5","v":1.992321359091314E-3},{"$f":"'Population 2016'!F120/'Population 2016'!F$5","v":4.017512232809683E-3},{"$f":"'Population 2016'!G120/'Population 2016'!G$5","v":4.1141124884967253E-3},{"$f":"'Population 2016'!H120/'Population 2016'!H$5","v":6.5885679267735147E-3},{"$f":"'Population 2016'!I120/'Population 2016'!I$5","v":3.8208692739301565E-3},{"$f":"'Population 2016'!J120/'Population 2016'!J$5","v":5.149979682044733E-3},{"$f":"'Population 2016'!K120/'Population 2016'!K$5","v":7.2295988281434577E-3},{"$f":"'Population 2016'!L120/'Population 2016'!L$5","v":7.1799596524391215E-3},{"$f":"'Population 2016'!M120/'Population 2016'!M$5","v":7.1799596524391215E-3},{"$f":"'Population 2016'!N120/'Population 2016'!N$5","v":4.5329968413692226E-3},{"$f":"'Population 2016'!O120/'Population 2016'!O$5","v":7.2022270435204722E-3},{"$f":"'Population 2016'!P120/'Population 2016'!P$5","v":4.7221909162628202E-3},{"$f":"'Population 2016'!Q120/'Population 2016'!Q$5","v":7.1444518865818266E-3},{"$f":"'Population 2016'!R120/'Population 2016'!R$5","v":2.9009421408420716E-3},{"$f":"'Population 2016'!S120/'Population 2016'!S$5","v":5.2359255813625057E-3},{"$f":"'Population 2016'!T120/'Population 2016'!T$5","v":3.5294993555231896E-3},{"$f":"'Population 2016'!U120/'Population 2016'!U$5","v":6.1966095693356347E-3},{"$f":"'Population 2016'!V120/'Population 2016'!V$5","v":8.3498065195655655E-3},{"$f":"'Population 2016'!W120/'Population 2016'!W$5","v":5.3438707273547352E-3},{"$f":"'Population 2016'!X120/'Population 2016'!X$5","v":5.3438707273547352E-3},{"$f":"'Population 2016'!Y120/'Population 2016'!Y$5","v":6.8162668320058501E-3},{"$f":"'Population 2016'!Z120/'Population 2016'!Z$5","v":4.5084720170814755E-3},{"$f":"'Population 2016'!AA120/'Population 2016'!AA$5","v":5.6784773947169635E-3},{"$f":"'Population 2016'!AB120/'Population 2016'!AB$5","v":3.4717460057521262E-3},{"$f":"'Population 2016'!AC120/'Population 2016'!AC$5","v":4.640882377885942E-3},{"$f":"'Population 2016'!AD120/'Population 2016'!AD$5","v":4.905281179053928E-3},{"$f":"'Population 2016'!AE120/'Population 2016'!AE$5","v":5.2053922524871923E-3},{"$f":"'Population 2016'!AF120/'Population 2016'!AF$5","v":3.2122336334434241E-3},{"$f":"'Population 2016'!AG120/'Population 2016'!AG$5","v":5.2053922524871923E-3},{"$f":"'Population 2016'!AH120/'Population 2016'!AH$5","v":7.5420525157203497E-3},{"$f":"'Population 2016'!AI120/'Population 2016'!AI$5","v":5.3755796657625338E-3},{"$f":"'Population 2016'!AJ120/'Population 2016'!AJ$5","v":9.9963750941081345E-3},{"$f":"'Population 2016'!AK120/'Population 2016'!AK$5","v":4.3498485096111535E-3},{"$f":"'Population 2016'!AL120/'Population 2016'!AL$5","v":5.8796403043578508E-3},{"$f":"'Population 2016'!AM120/'Population 2016'!AM$5","v":8.008229170816868E-3},{"$f":"'Population 2016'!AN120/'Population 2016'!AN$5","v":3.654412566815752E-3},{"$f":"'Population 2016'!AO120/'Population 2016'!AO$5","v":3.654412566815752E-3},{"$f":"'Population 2016'!AP120/'Population 2016'!AP$5","v":3.011904950620611E-3},{"$f":"'Population 2016'!AQ120/'Population 2016'!AQ$5","v":4.9665698470981534E-3},{"$f":"'Population 2016'!AR120/'Population 2016'!AR$5","v":5.2782680739968937E-3},{"$f":"'Population 2016'!AS120/'Population 2016'!AS$5","v":3.8208692739301565E-3},{"$f":"'Population 2016'!AT120/'Population 2016'!AT$5","v":4.2178520588390361E-4},{"$f":"'Population 2016'!AU120/'Population 2016'!AU$5","v":4.2178520588390361E-4},{"$f":"'Population 2016'!AV120/'Population 2016'!AV$5","v":6.7785872663921444E-3},{"$f":"'Population 2016'!AW120/'Population 2016'!AW$5","v":7.0512233815363968E-3},{"$f":"'Population 2016'!AX120/'Population 2016'!AX$5","v":4.0251990237295063E-3},{"$f":"'Population 2016'!AY120/'Population 2016'!AY$5","v":4.542394663565986E-3},{"$f":"'Population 2016'!AZ120/'Population 2016'!AZ$5","v":3.8370601331177982E-3},{"$f":"'Population 2016'!BA120/'Population 2016'!BA$5","v":7.8681710213776724E-3},{"$f":"'Population 2016'!BB120/'Population 2016'!BB$5","v":7.5264288131028914E-3},{"$f":"'Population 2016'!BC120/'Population 2016'!BC$5","v":6.1966095693356347E-3},118]
[null,"Male 20-24",{"$f":"'Population 2016'!C121/'Population 2016'!C$5","v":1.1382396385437483E-2},{"$f":"'Population 2016'!D121/'Population 2016'!D$5","v":6.9417955263441017E-3},{"$f":"'Population 2016'!E121/'Population 2016'!E$5","v":2.8689427570914921E-3},{"$f":"'Population 2016'!F121/'Population 2016'!F$5","v":6.2631985578161216E-3},{"$f":"'Population 2016'!G121/'Population 2016'!G$5","v":5.3862393763871594E-3},{"$f":"'Population 2016'!H121/'Population 2016'!H$5","v":8.4594358862953248E-3},{"$f":"'Population 2016'!I121/'Population 2016'!I$5","v":5.6527928984172176E-3},{"$f":"'Population 2016'!J121/'Population 2016'!J$5","v":8.5584203411757879E-3},{"$f":"'Population 2016'!K121/'Population 2016'!K$5","v":9.5922128242687706E-3},{"$f":"'Population 2016'!L121/'Population 2016'!L$5","v":9.6897685574952735E-3},{"$f":"'Population 2016'!M121/'Population 2016'!M$5","v":9.6897685574952735E-3},{"$f":"'Population 2016'!N121/'Population 2016'!N$5","v":1.3494506554359794E-2},{"$f":"'Population 2016'!O121/'Population 2016'!O$5","v":9.6888281273219013E-3},{"$f":"'Population 2016'!P121/'Population 2016'!P$5","v":6.9424095570832867E-3},{"$f":"'Population 2016'!Q121/'Population 2016'!Q$5","v":1.0023383979036673E-2},{"$f":"'Population 2016'!R121/'Population 2016'!R$5","v":3.9255868419651885E-3},{"$f":"'Population 2016'!S121/'Population 2016'!S$5","v":7.7417908418965847E-3},{"$f":"'Population 2016'!T121/'Population 2016'!T$5","v":6.814702447150575E-3},{"$f":"'Population 2016'!U121/'Population 2016'!U$5","v":6.90479352011685E-3},{"$f":"'Population 2016'!V121/'Population 2016'!V$5","v":1.003655902488914E-2},{"$f":"'Population 2016'!W121/'Population 2016'!W$5","v":6.6348976003242277E-3},{"$f":"'Population 2016'!X121/'Population 2016'!X$5","v":6.6348976003242277E-3},{"$f":"'Population 2016'!Y121/'Population 2016'!Y$5","v":9.3281505858412422E-3},{"$f":"'Population 2016'!Z121/'Population 2016'!Z$5","v":8.5000861429818629E-3},{"$f":"'Population 2016'!AA121/'Population 2016'!AA$5","v":8.4648976817700752E-3},{"$f":"'Population 2016'!AB121/'Population 2016'!AB$5","v":6.8063416681166389E-3},{"$f":"'Population 2016'!AC121/'Population 2016'!AC$5","v":7.6899845062585199E-3},{"$f":"'Population 2016'!AD121/'Population 2016'!AD$5","v":6.3493245003535675E-3},{"$f":"'Population 2016'!AE121/'Population 2016'!AE$5","v":6.7146479943325909E-3},{"$f":"'Population 2016'!AF121/'Population 2016'!AF$5","v":4.8560527228581341E-3},{"$f":"'Population 2016'!AG121/'Population 2016'!AG$5","v":6.7146479943325909E-3},{"$f":"'Population 2016'!AH121/'Population 2016'!AH$5","v":9.8566824257172846E-3},{"$f":"'Population 2016'!AI121/'Population 2016'!AI$5","v":8.4776117770583598E-3},{"$f":"'Population 2016'!AJ121/'Population 2016'!AJ$5","v":1.2352563923821209E-2},{"$f":"'Population 2016'!AK121/'Population 2016'!AK$5","v":6.1099028198584411E-3},{"$f":"'Population 2016'!AL121/'Population 2016'!AL$5","v":7.3783721466451468E-3},{"$f":"'Population 2016'!AM121/'Population 2016'!AM$5","v":1.0257487567504917E-2},{"$f":"'Population 2016'!AN121/'Population 2016'!AN$5","v":4.9634558743318425E-3},{"$f":"'Population 2016'!AO121/'Population 2016'!AO$5","v":4.9634558743318425E-3},{"$f":"'Population 2016'!AP121/'Population 2016'!AP$5","v":5.3025379262241811E-3},{"$f":"'Population 2016'!AQ121/'Population 2016'!AQ$5","v":6.6860305803693757E-3},{"$f":"'Population 2016'!AR121/'Population 2016'!AR$5","v":8.011971173478424E-3},{"$f":"'Population 2016'!AS121/'Population 2016'!AS$5","v":5.6527928984172176E-3},{"$f":"'Population 2016'!AT121/'Population 2016'!AT$5","v":2.2143723308904939E-3},{"$f":"'Population 2016'!AU121/'Population 2016'!AU$5","v":2.2143723308904939E-3},{"$f":"'Population 2016'!AV121/'Population 2016'!AV$5","v":8.4362791679864855E-3},{"$f":"'Population 2016'!AW121/'Population 2016'!AW$5","v":9.4346817987674657E-3},{"$f":"'Population 2016'!AX121/'Population 2016'!AX$5","v":7.9992844090624477E-3},{"$f":"'Population 2016'!AY121/'Population 2016'!AY$5","v":7.6282855481778402E-3},{"$f":"'Population 2016'!AZ121/'Population 2016'!AZ$5","v":8.5025110595923631E-3},{"$f":"'Population 2016'!BA121/'Population 2016'!BA$5","v":1.1269164327359102E-2},{"$f":"'Population 2016'!BB121/'Population 2016'!BB$5","v":1.0585335202281406E-2},{"$f":"'Population 2016'!BC121/'Population 2016'!BC$5","v":6.90479352011685E-3},119]
[null,"Male 25-29",{"$f":"'Population 2016'!C122/'Population 2016'!C$5","v":1.359038706281018E-2},{"$f":"'Population 2016'!D122/'Population 2016'!D$5","v":8.2597341627299661E-3},{"$f":"'Population 2016'!E122/'Population 2016'!E$5","v":3.3705389580862464E-3},{"$f":"'Population 2016'!F122/'Population 2016'!F$5","v":7.3242338398145767E-3},{"$f":"'Population 2016'!G122/'Population 2016'!G$5","v":4.9261083743842365E-3},{"$f":"'Population 2016'!H122/'Population 2016'!H$5","v":8.2713763687004109E-3},{"$f":"'Population 2016'!I122/'Population 2016'!I$5","v":5.9459006783351481E-3},{"$f":"'Population 2016'!J122/'Population 2016'!J$5","v":8.6330577278720885E-3},{"$f":"'Population 2016'!K122/'Population 2016'!K$5","v":9.1433161650049614E-3},{"$f":"'Population 2016'!L122/'Population 2016'!L$5","v":7.8868362111416453E-3},{"$f":"'Population 2016'!M122/'Population 2016'!M$5","v":7.8868362111416453E-3},{"$f":"'Population 2016'!N122/'Population 2016'!N$5","v":1.2497890227533937E-2},{"$f":"'Population 2016'!O122/'Population 2016'!O$5","v":9.3123705927224808E-3},{"$f":"'Population 2016'!P122/'Population 2016'!P$5","v":6.5366843232277693E-3},{"$f":"'Population 2016'!Q122/'Population 2016'!Q$5","v":9.9881317493331449E-3},{"$f":"'Population 2016'!R122/'Population 2016'!R$5","v":3.4332251024644703E-3},{"$f":"'Population 2016'!S122/'Population 2016'!S$5","v":9.104614358016563E-3},{"$f":"'Population 2016'!T122/'Population 2016'!T$5","v":1.001614681972797E-2},{"$f":"'Population 2016'!U122/'Population 2016'!U$5","v":7.8342849555171953E-3},{"$f":"'Population 2016'!V122/'Population 2016'!V$5","v":1.0173941581883819E-2},{"$f":"'Population 2016'!W122/'Population 2016'!W$5","v":7.0499872531523938E-3},{"$f":"'Population 2016'!X122/'Population 2016'!X$5","v":7.0499872531523938E-3},{"$f":"'Population 2016'!Y122/'Population 2016'!Y$5","v":9.4354620753247173E-3},{"$f":"'Population 2016'!Z122/'Population 2016'!Z$5","v":1.1690280167949778E-2},{"$f":"'Population 2016'!AA122/'Population 2016'!AA$5","v":9.6102931454991082E-3},{"$f":"'Population 2016'!AB122/'Population 2016'!AB$5","v":8.0038483976950549E-3},{"$f":"'Population 2016'!AC122/'Population 2016'!AC$5","v":9.3676112539587651E-3},{"$f":"'Population 2016'!AD122/'Population 2016'!AD$5","v":6.1595146823476866E-3},{"$f":"'Population 2016'!AE122/'Population 2016'!AE$5","v":6.6273781044979925E-3},{"$f":"'Population 2016'!AF122/'Population 2016'!AF$5","v":4.8258909047037358E-3},{"$f":"'Population 2016'!AG122/'Population 2016'!AG$5","v":6.6273781044979925E-3},{"$f":"'Population 2016'!AH122/'Population 2016'!AH$5","v":1.0046162562811737E-2},{"$f":"'Population 2016'!AI122/'Population 2016'!AI$5","v":1.0376564003849856E-2},{"$f":"'Population 2016'!AJ122/'Population 2016'!AJ$5","v":1.299389342776678E-2},{"$f":"'Population 2016'!AK122/'Population 2016'!AK$5","v":6.6882063789396934E-3},{"$f":"'Population 2016'!AL122/'Population 2016'!AL$5","v":6.8817509444671077E-3},{"$f":"'Population 2016'!AM122/'Population 2016'!AM$5","v":1.0489295196149096E-2},{"$f":"'Population 2016'!AN122/'Population 2016'!AN$5","v":5.672520999236391E-3},{"$f":"'Population 2016'!AO122/'Population 2016'!AO$5","v":5.672520999236391E-3},{"$f":"'Population 2016'!AP122/'Population 2016'!AP$5","v":5.9841795729435824E-3},{"$f":"'Population 2016'!AQ122/'Population 2016'!AQ$5","v":6.9600482271058254E-3},{"$f":"'Population 2016'!AR122/'Population 2016'!AR$5","v":8.8244408339632364E-3},{"$f":"'Population 2016'!AS122/'Population 2016'!AS$5","v":5.9459006783351481E-3},{"$f":"'Population 2016'!AT122/'Population 2016'!AT$5","v":2.4252649338324457E-3},{"$f":"'Population 2016'!AU122/'Population 2016'!AU$5","v":2.4252649338324457E-3},{"$f":"'Population 2016'!AV122/'Population 2016'!AV$5","v":8.8163868651673534E-3},{"$f":"'Population 2016'!AW122/'Population 2016'!AW$5","v":9.5795960705351152E-3},{"$f":"'Population 2016'!AX122/'Population 2016'!AX$5","v":8.3570798778384043E-3},{"$f":"'Population 2016'!AY122/'Population 2016'!AY$5","v":7.9220342094795133E-3},{"$f":"'Population 2016'!AZ122/'Population 2016'!AZ$5","v":8.6894742594819108E-3},{"$f":"'Population 2016'!BA122/'Population 2016'!BA$5","v":1.1390628374001295E-2},{"$f":"'Population 2016'!BB122/'Population 2016'!BB$5","v":1.0378185785407014E-2},{"$f":"'Population 2016'!BC122/'Population 2016'!BC$5","v":7.8342849555171953E-3},120]
[null,"Male 30-34",{"$f":"'Population 2016'!C123/'Population 2016'!C$5","v":1.0799732178908578E-2},{"$f":"'Population 2016'!D123/'Population 2016'!D$5","v":6.7315121817630545E-3},{"$f":"'Population 2016'!E123/'Population 2016'!E$5","v":3.0002015760433906E-3},{"$f":"'Population 2016'!F123/'Population 2016'!F$5","v":7.4066443471542624E-3},{"$f":"'Population 2016'!G123/'Population 2016'!G$5","v":5.2373734639744492E-3},{"$f":"'Population 2016'!H123/'Population 2016'!H$5","v":7.8758029006559382E-3},{"$f":"'Population 2016'!I123/'Population 2016'!I$5","v":5.0561092035842897E-3},{"$f":"'Population 2016'!J123/'Population 2016'!J$5","v":6.8417604471608766E-3},{"$f":"'Population 2016'!K123/'Population 2016'!K$5","v":8.670793365779899E-3},{"$f":"'Population 2016'!L123/'Population 2016'!L$5","v":7.9186059441170402E-3},{"$f":"'Population 2016'!M123/'Population 2016'!M$5","v":7.9186059441170402E-3},{"$f":"'Population 2016'!N123/'Population 2016'!N$5","v":9.612525216804238E-3},{"$f":"'Population 2016'!O123/'Population 2016'!O$5","v":9.5204129144747917E-3},{"$f":"'Population 2016'!P123/'Population 2016'!P$5","v":5.7252338555167362E-3},{"$f":"'Population 2016'!Q123/'Population 2016'!Q$5","v":9.7648676278774636E-3},{"$f":"'Population 2016'!R123/'Population 2016'!R$5","v":2.9275562889231914E-3},{"$f":"'Population 2016'!S123/'Population 2016'!S$5","v":8.6738773917817511E-3},{"$f":"'Population 2016'!T123/'Population 2016'!T$5","v":9.0482682884836414E-3},{"$f":"'Population 2016'!U123/'Population 2016'!U$5","v":6.4621785508785909E-3},{"$f":"'Population 2016'!V123/'Population 2016'!V$5","v":1.0189206310438785E-2},{"$f":"'Population 2016'!W123/'Population 2016'!W$5","v":6.8865661299916982E-3},{"$f":"'Population 2016'!X123/'Population 2016'!X$5","v":6.8865661299916982E-3},{"$f":"'Population 2016'!Y123/'Population 2016'!Y$5","v":8.5849191586779231E-3},{"$f":"'Population 2016'!Z123/'Population 2016'!Z$5","v":1.0846272525421859E-2},{"$f":"'Population 2016'!AA123/'Population 2016'!AA$5","v":9.2614923227277955E-3},{"$f":"'Population 2016'!AB123/'Population 2016'!AB$5","v":6.6487211242234117E-3},{"$f":"'Population 2016'!AC123/'Population 2016'!AC$5","v":8.8546008551552372E-3},{"$f":"'Population 2016'!AD123/'Population 2016'!AD$5","v":6.0925229818750235E-3},{"$f":"'Population 2016'!AE123/'Population 2016'!AE$5","v":6.4169036643086687E-3},{"$f":"'Population 2016'!AF123/'Population 2016'!AF$5","v":4.8108099956265362E-3},{"$f":"'Population 2016'!AG123/'Population 2016'!AG$5","v":6.4169036643086687E-3},{"$f":"'Population 2016'!AH123/'Population 2016'!AH$5","v":9.99229075912802E-3},{"$f":"'Population 2016'!AI123/'Population 2016'!AI$5","v":9.8939649138157313E-3},{"$f":"'Population 2016'!AJ123/'Population 2016'!AJ$5","v":1.2575635055628363E-2},{"$f":"'Population 2016'!AK123/'Population 2016'!AK$5","v":6.2230491683743384E-3},{"$f":"'Population 2016'!AL123/'Population 2016'!AL$5","v":6.243237970238201E-3},{"$f":"'Population 2016'!AM123/'Population 2016'!AM$5","v":1.073196880738597E-2},{"$f":"'Population 2016'!AN123/'Population 2016'!AN$5","v":3.872586451401767E-3},{"$f":"'Population 2016'!AO123/'Population 2016'!AO$5","v":3.872586451401767E-3},{"$f":"'Population 2016'!AP123/'Population 2016'!AP$5","v":5.9604013759649984E-3},{"$f":"'Population 2016'!AQ123/'Population 2016'!AQ$5","v":7.4806817559050802E-3},{"$f":"'Population 2016'!AR123/'Population 2016'!AR$5","v":8.2752942167175388E-3},{"$f":"'Population 2016'!AS123/'Population 2016'!AS$5","v":5.0561092035842897E-3},{"$f":"'Population 2016'!AT123/'Population 2016'!AT$5","v":1.2653556176517109E-3},{"$f":"'Population 2016'!AU123/'Population 2016'!AU$5","v":1.2653556176517109E-3},{"$f":"'Population 2016'!AV123/'Population 2016'!AV$5","v":8.0667300179495301E-3},{"$f":"'Population 2016'!AW123/'Population 2016'!AW$5","v":9.2134968576484226E-3},{"$f":"'Population 2016'!AX123/'Population 2016'!AX$5","v":5.8525115964067108E-3},{"$f":"'Population 2016'!AY123/'Population 2016'!AY$5","v":7.3039380679905752E-3},{"$f":"'Population 2016'!AZ123/'Population 2016'!AZ$5","v":7.6712439093142189E-3},{"$f":"'Population 2016'!BA123/'Population 2016'!BA$5","v":1.1053228244439646E-2},{"$f":"'Population 2016'!BB123/'Population 2016'!BB$5","v":1.1151543608404743E-2},{"$f":"'Population 2016'!BC123/'Population 2016'!BC$5","v":6.4621785508785909E-3},121]
[null,"Male 35-39",{"$f":"'Population 2016'!C124/'Population 2016'!C$5","v":8.3924090098286257E-3},{"$f":"'Population 2016'!D124/'Population 2016'!D$5","v":5.5382764590240895E-3},{"$f":"'Population 2016'!E124/'Population 2016'!E$5","v":2.9205087216797377E-3},{"$f":"'Population 2016'!F124/'Population 2016'!F$5","v":6.3250064383208859E-3},{"$f":"'Population 2016'!G124/'Population 2016'!G$5","v":5.1020408163265302E-3},{"$f":"'Population 2016'!H124/'Population 2016'!H$5","v":6.9744141783906642E-3},{"$f":"'Population 2016'!I124/'Population 2016'!I$5","v":4.9409597186165317E-3},{"$f":"'Population 2016'!J124/'Population 2016'!J$5","v":6.0456283224003381E-3},{"$f":"'Population 2016'!K124/'Population 2016'!K$5","v":9.0724377451212018E-3},{"$f":"'Population 2016'!L124/'Population 2016'!L$5","v":7.46588724921767E-3},{"$f":"'Population 2016'!M124/'Population 2016'!M$5","v":7.46588724921767E-3},{"$f":"'Population 2016'!N124/'Population 2016'!N$5","v":6.5664156372316571E-3},{"$f":"'Population 2016'!O124/'Population 2016'!O$5","v":8.4009470879028349E-3},{"$f":"'Population 2016'!P124/'Population 2016'!P$5","v":4.9814042601149557E-3},{"$f":"'Population 2016'!Q124/'Population 2016'!Q$5","v":9.3770931011386473E-3},{"$f":"'Population 2016'!R124/'Population 2016'!R$5","v":2.6481077340714324E-3},{"$f":"'Population 2016'!S124/'Population 2016'!S$5","v":7.604096237936276E-3},{"$f":"'Population 2016'!T124/'Population 2016'!T$5","v":6.9356872635561164E-3},{"$f":"'Population 2016'!U124/'Population 2016'!U$5","v":6.285132563183287E-3},{"$f":"'Population 2016'!V124/'Population 2016'!V$5","v":1.0189206310438785E-2},{"$f":"'Population 2016'!W124/'Population 2016'!W$5","v":6.7492923865367146E-3},{"$f":"'Population 2016'!X124/'Population 2016'!X$5","v":6.7492923865367146E-3},{"$f":"'Population 2016'!Y124/'Population 2016'!Y$5","v":8.203367196070014E-3},{"$f":"'Population 2016'!Z124/'Population 2016'!Z$5","v":8.47879237218414E-3},{"$f":"'Population 2016'!AA124/'Population 2016'!AA$5","v":7.9240903108446486E-3},{"$f":"'Population 2016'!AB124/'Population 2016'!AB$5","v":5.59041175808317E-3},{"$f":"'Population 2016'!AC124/'Population 2016'!AC$5","v":7.2390318169876771E-3},{"$f":"'Population 2016'!AD124/'Population 2016'!AD$5","v":5.7947820908854069E-3},{"$f":"'Population 2016'!AE124/'Population 2016'!AE$5","v":6.0575570591073829E-3},{"$f":"'Population 2016'!AF124/'Population 2016'!AF$5","v":4.6298390867001464E-3},{"$f":"'Population 2016'!AG124/'Population 2016'!AG$5","v":6.0575570591073829E-3},{"$f":"'Population 2016'!AH124/'Population 2016'!AH$5","v":9.1544913294260791E-3},{"$f":"'Population 2016'!AI124/'Population 2016'!AI$5","v":8.3094540204742325E-3},{"$f":"'Population 2016'!AJ124/'Population 2016'!AJ$5","v":1.2352563923821209E-2},{"$f":"'Population 2016'!AK124/'Population 2016'!AK$5","v":5.8584664898231149E-3},{"$f":"'Population 2016'!AL124/'Population 2016'!AL$5","v":5.3475461591670952E-3},{"$f":"'Population 2016'!AM124/'Population 2016'!AM$5","v":9.6019066177455981E-3},{"$f":"'Population 2016'!AN124/'Population 2016'!AN$5","v":3.927129922548271E-3},{"$f":"'Population 2016'!AO124/'Population 2016'!AO$5","v":3.927129922548271E-3},{"$f":"'Population 2016'!AP124/'Population 2016'!AP$5","v":5.3738725171599321E-3},{"$f":"'Population 2016'!AQ124/'Population 2016'!AQ$5","v":5.9324820518441386E-3},{"$f":"'Population 2016'!AR124/'Population 2016'!AR$5","v":7.2048481737700398E-3},{"$f":"'Population 2016'!AS124/'Population 2016'!AS$5","v":4.9409597186165317E-3},{"$f":"'Population 2016'!AT124/'Population 2016'!AT$5","v":1.7398639742711025E-3},{"$f":"'Population 2016'!AU124/'Population 2016'!AU$5","v":1.7398639742711025E-3},{"$f":"'Population 2016'!AV124/'Population 2016'!AV$5","v":7.3909830007390983E-3},{"$f":"'Population 2016'!AW124/'Population 2016'!AW$5","v":8.683415705656233E-3},{"$f":"'Population 2016'!AX124/'Population 2016'!AX$5","v":4.4085513117037454E-3},{"$f":"'Population 2016'!AY124/'Population 2016'!AY$5","v":6.3859735014228447E-3},{"$f":"'Population 2016'!AZ124/'Population 2016'!AZ$5","v":6.0662367471854845E-3},{"$f":"'Population 2016'!BA124/'Population 2016'!BA$5","v":1.0864284171885123E-2},{"$f":"'Population 2016'!BB124/'Population 2016'!BB$5","v":9.7567375347838402E-3},{"$f":"'Population 2016'!BC124/'Population 2016'!BC$5","v":6.285132563183287E-3},122]
[null,"Male 40-44",{"$f":"'Population 2016'!C125/'Population 2016'!C$5","v":7.3037469397351437E-3},{"$f":"'Population 2016'!D125/'Population 2016'!D$5","v":4.9245425114677775E-3},{"$f":"'Population 2016'!E125/'Population 2016'!E$5","v":2.7423717531021618E-3},{"$f":"'Population 2016'!F125/'Population 2016'!F$5","v":5.9747617821272209E-3},{"$f":"'Population 2016'!G125/'Population 2016'!G$5","v":4.8719753153250688E-3},{"$f":"'Population 2016'!H125/'Population 2016'!H$5","v":8.1351953387178884E-3},{"$f":"'Population 2016'!I125/'Population 2016'!I$5","v":5.3806213884934262E-3},{"$f":"'Population 2016'!J125/'Population 2016'!J$5","v":6.5100387285106521E-3},{"$f":"'Population 2016'!K125/'Population 2016'!K$5","v":9.8521003638425558E-3},{"$f":"'Population 2016'!L125/'Population 2016'!L$5","v":8.9114100995981126E-3},{"$f":"'Population 2016'!M125/'Population 2016'!M$5","v":8.9114100995981126E-3},{"$f":"'Population 2016'!N125/'Population 2016'!N$5","v":6.1645542151244565E-3},{"$f":"'Population 2016'!O125/'Population 2016'!O$5","v":9.3519977016276838E-3},{"$f":"'Population 2016'!P125/'Population 2016'!P$5","v":5.5899921108982309E-3},{"$f":"'Population 2016'!Q125/'Population 2016'!Q$5","v":9.659110938766877E-3},{"$f":"'Population 2016'!R125/'Population 2016'!R$5","v":3.5263746207483898E-3},{"$f":"'Population 2016'!S125/'Population 2016'!S$5","v":7.5581980366161731E-3},{"$f":"'Population 2016'!T125/'Population 2016'!T$5","v":5.937562528210402E-3},{"$f":"'Population 2016'!U125/'Population 2016'!U$5","v":8.8080378878413676E-3},{"$f":"'Population 2016'!V125/'Population 2016'!V$5","v":1.1036398745239312E-2},{"$f":"'Population 2016'!W125/'Population 2016'!W$5","v":7.4029768791794952E-3},{"$f":"'Population 2016'!X125/'Population 2016'!X$5","v":7.4029768791794952E-3},{"$f":"'Population 2016'!Y125/'Population 2016'!Y$5","v":8.8671086310233536E-3},{"$f":"'Population 2016'!Z125/'Population 2016'!Z$5","v":6.5410592295913729E-3},{"$f":"'Population 2016'!AA125/'Population 2016'!AA$5","v":7.6138236742080726E-3},{"$f":"'Population 2016'!AB125/'Population 2016'!AB$5","v":4.947647462206892E-3},{"$f":"'Population 2016'!AC125/'Population 2016'!AC$5","v":6.2802402047076981E-3},{"$f":"'Population 2016'!AD125/'Population 2016'!AD$5","v":5.6942945401764113E-3},{"$f":"'Population 2016'!AE125/'Population 2016'!AE$5","v":6.006221829792914E-3},{"$f":"'Population 2016'!AF125/'Population 2016'!AF$5","v":3.9361172691489846E-3},{"$f":"'Population 2016'!AG125/'Population 2016'!AG$5","v":6.006221829792914E-3},{"$f":"'Population 2016'!AH125/'Population 2016'!AH$5","v":1.0009009594754001E-2},{"$f":"'Population 2016'!AI125/'Population 2016'!AI$5","v":7.907515968151195E-3},{"$f":"'Population 2016'!AJ125/'Population 2016'!AJ$5","v":1.2310738086607367E-2},{"$f":"'Population 2016'!AK125/'Population 2016'!AK$5","v":5.0664420502118347E-3},{"$f":"'Population 2016'!AL125/'Population 2016'!AL$5","v":6.5890991646121921E-3},{"$f":"'Population 2016'!AM125/'Population 2016'!AM$5","v":1.0619686987261446E-2},{"$f":"'Population 2016'!AN125/'Population 2016'!AN$5","v":5.5634340569433839E-3},{"$f":"'Population 2016'!AO125/'Population 2016'!AO$5","v":5.5634340569433839E-3},{"$f":"'Population 2016'!AP125/'Population 2016'!AP$5","v":4.0026631580616012E-3},{"$f":"'Population 2016'!AQ125/'Population 2016'!AQ$5","v":6.2887049926015235E-3},{"$f":"'Population 2016'!AR125/'Population 2016'!AR$5","v":7.1319999206911986E-3},{"$f":"'Population 2016'!AS125/'Population 2016'!AS$5","v":5.3806213884934262E-3},{"$f":"'Population 2016'!AT125/'Population 2016'!AT$5","v":1.5289713713291507E-3},{"$f":"'Population 2016'!AU125/'Population 2016'!AU$5","v":1.5289713713291507E-3},{"$f":"'Population 2016'!AV125/'Population 2016'!AV$5","v":8.6791257522964849E-3},{"$f":"'Population 2016'!AW125/'Population 2016'!AW$5","v":9.3660381963512115E-3},{"$f":"'Population 2016'!AX125/'Population 2016'!AX$5","v":4.7024547324839953E-3},{"$f":"'Population 2016'!AY125/'Population 2016'!AY$5","v":6.298766867598911E-3},{"$f":"'Population 2016'!AZ125/'Population 2016'!AZ$5","v":5.3270130183914258E-3},{"$f":"'Population 2016'!BA125/'Population 2016'!BA$5","v":1.0162491902396891E-2},{"$f":"'Population 2016'!BB125/'Population 2016'!BB$5","v":1.0543905318906527E-2},{"$f":"'Population 2016'!BC125/'Population 2016'!BC$5","v":8.8080378878413676E-3},123]
[null,"Male 45-49",{"$f":"'Population 2016'!C126/'Population 2016'!C$5","v":7.7535228184592107E-3},{"$f":"'Population 2016'!D126/'Population 2016'!D$5","v":5.2326320628307069E-3},{"$f":"'Population 2016'!E126/'Population 2016'!E$5","v":2.9205087216797377E-3},{"$f":"'Population 2016'!F126/'Population 2016'!F$5","v":6.8606747360288435E-3},{"$f":"'Population 2016'!G126/'Population 2016'!G$5","v":6.7395658528663456E-3},{"$f":"'Population 2016'!H126/'Population 2016'!H$5","v":1.0443788037469239E-2},{"$f":"'Population 2016'!I126/'Population 2016'!I$5","v":6.4064986182061807E-3},{"$f":"'Population 2016'!J126/'Population 2016'!J$5","v":8.0193725483691733E-3},{"$f":"'Population 2016'!K126/'Population 2016'!K$5","v":1.2592732599347919E-2},{"$f":"'Population 2016'!L126/'Population 2016'!L$5","v":1.0730227312439439E-2},{"$f":"'Population 2016'!M126/'Population 2016'!M$5","v":1.0730227312439439E-2},{"$f":"'Population 2016'!N126/'Population 2016'!N$5","v":7.3299523392353384E-3},{"$f":"'Population 2016'!O126/'Population 2016'!O$5","v":1.1680090349808304E-2},{"$f":"'Population 2016'!P126/'Population 2016'!P$5","v":6.3789022878395132E-3},{"$f":"'Population 2016'!Q126/'Population 2016'!Q$5","v":1.0998695667500969E-2},{"$f":"'Population 2016'!R126/'Population 2016'!R$5","v":3.7792090275190291E-3},{"$f":"'Population 2016'!S126/'Population 2016'!S$5","v":8.1054458215866296E-3},{"$f":"'Population 2016'!T126/'Population 2016'!T$5","v":5.4466433693340713E-3},{"$f":"'Population 2016'!U126/'Population 2016'!U$5","v":1.0401451777099101E-2},{"$f":"'Population 2016'!V126/'Population 2016'!V$5","v":1.3051342914494623E-2},{"$f":"'Population 2016'!W126/'Population 2016'!W$5","v":8.4815562920400843E-3},{"$f":"'Population 2016'!X126/'Population 2016'!X$5","v":8.4815562920400843E-3},{"$f":"'Population 2016'!Y126/'Population 2016'!Y$5","v":1.0639735457305925E-2},{"$f":"'Population 2016'!Z126/'Population 2016'!Z$5","v":6.9107965225336486E-3},{"$f":"'Population 2016'!AA126/'Population 2016'!AA$5","v":8.7193561867632413E-3},{"$f":"'Population 2016'!AB126/'Population 2016'!AB$5","v":5.449167374594434E-3},{"$f":"'Population 2016'!AC126/'Population 2016'!AC$5","v":6.9577035337728401E-3},{"$f":"'Population 2016'!AD126/'Population 2016'!AD$5","v":7.1755554728497525E-3},{"$f":"'Population 2016'!AE126/'Population 2016'!AE$5","v":7.3409377919691167E-3},{"$f":"'Population 2016'!AF126/'Population 2016'!AF$5","v":4.8108099956265362E-3},{"$f":"'Population 2016'!AG126/'Population 2016'!AG$5","v":7.3409377919691167E-3},{"$f":"'Population 2016'!AH126/'Population 2016'!AH$5","v":1.1883376833266767E-2},{"$f":"'Population 2016'!AI126/'Population 2016'!AI$5","v":8.1700061247703213E-3},{"$f":"'Population 2016'!AJ126/'Population 2016'!AJ$5","v":1.4290494381395867E-2},{"$f":"'Population 2016'!AK126/'Population 2016'!AK$5","v":6.5624882139220294E-3},{"$f":"'Population 2016'!AL126/'Population 2016'!AL$5","v":8.7972898671538277E-3},{"$f":"'Population 2016'!AM126/'Population 2016'!AM$5","v":1.2010532759126519E-2},{"$f":"'Population 2016'!AN126/'Population 2016'!AN$5","v":5.7270644703828954E-3},{"$f":"'Population 2016'!AO126/'Population 2016'!AO$5","v":5.7270644703828954E-3},{"$f":"'Population 2016'!AP126/'Population 2016'!AP$5","v":4.8428261179715611E-3},{"$f":"'Population 2016'!AQ126/'Population 2016'!AQ$5","v":7.2683180796843314E-3},{"$f":"'Population 2016'!AR126/'Population 2016'!AR$5","v":8.1732621069006903E-3},{"$f":"'Population 2016'!AS126/'Population 2016'!AS$5","v":6.4064986182061807E-3},{"$f":"'Population 2016'!AT126/'Population 2016'!AT$5","v":6.8540095956134343E-4},{"$f":"'Population 2016'!AU126/'Population 2016'!AU$5","v":6.8540095956134343E-4},{"$f":"'Population 2016'!AV126/'Population 2016'!AV$5","v":1.1086474501108648E-2},{"$f":"'Population 2016'!AW126/'Population 2016'!AW$5","v":1.174949661358228E-2},{"$f":"'Population 2016'!AX126/'Population 2016'!AX$5","v":5.5458297660273201E-3},{"$f":"'Population 2016'!AY126/'Population 2016'!AY$5","v":7.3192374774333708E-3},{"$f":"'Population 2016'!AZ126/'Population 2016'!AZ$5","v":6.2963453008956973E-3},{"$f":"'Population 2016'!BA126/'Population 2016'!BA$5","v":1.2510796804145973E-2},{"$f":"'Population 2016'!BB126/'Population 2016'!BB$5","v":1.1558937461591045E-2},{"$f":"'Population 2016'!BC126/'Population 2016'!BC$5","v":1.0401451777099101E-2},124]
[null,"Male 50-54",{"$f":"'Population 2016'!C127/'Population 2016'!C$5","v":7.1964140595850816E-3},{"$f":"'Population 2016'!D127/'Population 2016'!D$5","v":5.0492454251146778E-3},{"$f":"'Population 2016'!E127/'Population 2016'!E$5","v":3.079894430407043E-3},{"$f":"'Population 2016'!F127/'Population 2016'!F$5","v":6.8709760494463047E-3},{"$f":"'Population 2016'!G127/'Population 2016'!G$5","v":6.9290315595734314E-3},{"$f":"'Population 2016'!H127/'Population 2016'!H$5","v":1.1043633050487495E-2},{"$f":"'Population 2016'!I127/'Population 2016'!I$5","v":7.2544175529687628E-3},{"$f":"'Population 2016'!J127/'Population 2016'!J$5","v":8.102302978031729E-3},{"$f":"'Population 2016'!K127/'Population 2016'!K$5","v":1.1765817700704059E-2},{"$f":"'Population 2016'!L127/'Population 2016'!L$5","v":1.2564929391768462E-2},{"$f":"'Population 2016'!M127/'Population 2016'!M$5","v":1.2564929391768462E-2},{"$f":"'Population 2016'!N127/'Population 2016'!N$5","v":6.8155697189381213E-3},{"$f":"'Population 2016'!O127/'Population 2016'!O$5","v":1.2224963097254833E-2},{"$f":"'Population 2016'!P127/'Population 2016'!P$5","v":8.1821255494195881E-3},{"$f":"'Population 2016'!Q127/'Population 2016'!Q$5","v":1.1891752153323698E-2},{"$f":"'Population 2016'!R127/'Population 2016'!R$5","v":4.5510193218715068E-3},{"$f":"'Population 2016'!S127/'Population 2016'!S$5","v":8.3305235395986724E-3},{"$f":"'Population 2016'!T127/'Population 2016'!T$5","v":5.2442264649632626E-3},{"$f":"'Population 2016'!U127/'Population 2016'!U$5","v":1.1463727703270924E-2},{"$f":"'Population 2016'!V127/'Population 2016'!V$5","v":1.2684989429175475E-2},{"$f":"'Population 2016'!W127/'Population 2016'!W$5","v":8.8443511854568273E-3},{"$f":"'Population 2016'!X127/'Population 2016'!X$5","v":8.8443511854568273E-3},{"$f":"'Population 2016'!Y127/'Population 2016'!Y$5","v":1.0488704472106961E-2},{"$f":"'Population 2016'!Z127/'Population 2016'!Z$5","v":6.6804366384491942E-3},{"$f":"'Population 2016'!AA127/'Population 2016'!AA$5","v":8.9877667246672614E-3},{"$f":"'Population 2016'!AB127/'Population 2016'!AB$5","v":5.2608415299427854E-3},{"$f":"'Population 2016'!AC127/'Population 2016'!AC$5","v":7.2752321475484105E-3},{"$f":"'Population 2016'!AD127/'Population 2016'!AD$5","v":7.9087424169116821E-3},{"$f":"'Population 2016'!AE127/'Population 2016'!AE$5","v":8.2803724884239066E-3},{"$f":"'Population 2016'!AF127/'Population 2016'!AF$5","v":6.3189009033464538E-3},{"$f":"'Population 2016'!AG127/'Population 2016'!AG$5","v":8.2803724884239066E-3},{"$f":"'Population 2016'!AH127/'Population 2016'!AH$5","v":1.2063568728346786E-2},{"$f":"'Population 2016'!AI127/'Population 2016'!AI$5","v":8.2561357074109713E-3},{"$f":"'Population 2016'!AJ127/'Population 2016'!AJ$5","v":1.5503443660597273E-2},{"$f":"'Population 2016'!AK127/'Population 2016'!AK$5","v":6.3487673333920015E-3},{"$f":"'Population 2016'!AL127/'Population 2016'!AL$5","v":8.9214451676983379E-3},{"$f":"'Population 2016'!AM127/'Population 2016'!AM$5","v":1.2235096399375568E-2},{"$f":"'Population 2016'!AN127/'Population 2016'!AN$5","v":6.4906730664339475E-3},{"$f":"'Population 2016'!AO127/'Population 2016'!AO$5","v":6.4906730664339475E-3},{"$f":"'Population 2016'!AP127/'Population 2016'!AP$5","v":4.7714915270358101E-3},{"$f":"'Population 2016'!AQ127/'Population 2016'!AQ$5","v":7.6724941086205953E-3},{"$f":"'Population 2016'!AR127/'Population 2016'!AR$5","v":8.4252234959898923E-3},{"$f":"'Population 2016'!AS127/'Population 2016'!AS$5","v":7.2544175529687628E-3},{"$f":"'Population 2016'!AT127/'Population 2016'!AT$5","v":1.8980334264775663E-3},{"$f":"'Population 2016'!AU127/'Population 2016'!AU$5","v":1.8980334264775663E-3},{"$f":"'Population 2016'!AV127/'Population 2016'!AV$5","v":1.2311265969802556E-2},{"$f":"'Population 2016'!AW127/'Population 2016'!AW$5","v":1.188297028494722E-2},{"$f":"'Population 2016'!AX127/'Population 2016'!AX$5","v":6.1208581979886783E-3},{"$f":"'Population 2016'!AY127/'Population 2016'!AY$5","v":7.3789051742602736E-3},{"$f":"'Population 2016'!AZ127/'Population 2016'!AZ$5","v":6.0892476025565063E-3},{"$f":"'Population 2016'!BA127/'Population 2016'!BA$5","v":1.3172101058086806E-2},{"$f":"'Population 2016'!BB127/'Population 2016'!BB$5","v":1.1469172714278809E-2},{"$f":"'Population 2016'!BC127/'Population 2016'!BC$5","v":1.1463727703270924E-2},125]
[null,"Male 55-59",{"$f":"'Population 2016'!C128/'Population 2016'!C$5","v":7.0788590003731094E-3},{"$f":"'Population 2016'!D128/'Population 2016'!D$5","v":4.9685553045196252E-3},{"$f":"'Population 2016'!E128/'Population 2016'!E$5","v":3.0330162807813651E-3},{"$f":"'Population 2016'!F128/'Population 2016'!F$5","v":5.7996394540303885E-3},{"$f":"'Population 2016'!G128/'Population 2016'!G$5","v":7.3350295025171874E-3},{"$f":"'Population 2016'!H128/'Population 2016'!H$5","v":1.0213577248689258E-2},{"$f":"'Population 2016'!I128/'Population 2016'!I$5","v":7.0241185830332469E-3},{"$f":"'Population 2016'!J128/'Population 2016'!J$5","v":7.5549621422588593E-3},{"$f":"'Population 2016'!K128/'Population 2016'!K$5","v":1.0584510702641402E-2},{"$f":"'Population 2016'!L128/'Population 2016'!L$5","v":1.2151922863088336E-2},{"$f":"'Population 2016'!M128/'Population 2016'!M$5","v":1.2151922863088336E-2},{"$f":"'Population 2016'!N128/'Population 2016'!N$5","v":6.3333360124094807E-3},{"$f":"'Population 2016'!O128/'Population 2016'!O$5","v":1.1254098929077382E-2},{"$f":"'Population 2016'!P128/'Population 2016'!P$5","v":7.0100304293925393E-3},{"$f":"'Population 2016'!Q128/'Population 2016'!Q$5","v":1.1163206072784104E-2},{"$f":"'Population 2016'!R128/'Population 2016'!R$5","v":3.7525948794379094E-3},{"$f":"'Population 2016'!S128/'Population 2016'!S$5","v":7.6067442110893582E-3},{"$f":"'Population 2016'!T128/'Population 2016'!T$5","v":4.5066844111064062E-3},{"$f":"'Population 2016'!U128/'Population 2016'!U$5","v":1.1375204709423273E-2},{"$f":"'Population 2016'!V128/'Population 2016'!V$5","v":1.1578296608940551E-2},{"$f":"'Population 2016'!W128/'Population 2016'!W$5","v":8.2429614522254689E-3},{"$f":"'Population 2016'!X128/'Population 2016'!X$5","v":8.2429614522254689E-3},{"$f":"'Population 2016'!Y128/'Population 2016'!Y$5","v":9.6500850542916641E-3},{"$f":"'Population 2016'!Z128/'Population 2016'!Z$5","v":5.9990359729220665E-3},{"$f":"'Population 2016'!AA128/'Population 2016'!AA$5","v":8.2788705762920408E-3},{"$f":"'Population 2016'!AB128/'Population 2016'!AB$5","v":5.1155031063529269E-3},{"$f":"'Population 2016'!AC128/'Population 2016'!AC$5","v":6.610180360389805E-3},{"$f":"'Population 2016'!AD128/'Population 2016'!AD$5","v":7.782202538241096E-3},{"$f":"'Population 2016'!AE128/'Population 2016'!AE$5","v":7.9518270208113022E-3},{"$f":"'Population 2016'!AF128/'Population 2016'!AF$5","v":5.7458263584128852E-3},{"$f":"'Population 2016'!AG128/'Population 2016'!AG$5","v":7.9518270208113022E-3},{"$f":"'Population 2016'!AH128/'Population 2016'!AH$5","v":1.1275925805522788E-2},{"$f":"'Population 2016'!AI128/'Population 2016'!AI$5","v":7.4167140607227233E-3},{"$f":"'Population 2016'!AJ128/'Population 2016'!AJ$5","v":1.4625101079106599E-2},{"$f":"'Population 2016'!AK128/'Population 2016'!AK$5","v":5.8710383063248807E-3},{"$f":"'Population 2016'!AL128/'Population 2016'!AL$5","v":8.1055674784058455E-3},{"$f":"'Population 2016'!AM128/'Population 2016'!AM$5","v":1.1018106348993629E-2},{"$f":"'Population 2016'!AN128/'Population 2016'!AN$5","v":5.999781826115414E-3},{"$f":"'Population 2016'!AO128/'Population 2016'!AO$5","v":5.999781826115414E-3},{"$f":"'Population 2016'!AP128/'Population 2016'!AP$5","v":4.0819238146568805E-3},{"$f":"'Population 2016'!AQ128/'Population 2016'!AQ$5","v":7.2272154326738641E-3},{"$f":"'Population 2016'!AR128/'Population 2016'!AR$5","v":7.8052336234565138E-3},{"$f":"'Population 2016'!AS128/'Population 2016'!AS$5","v":7.0241185830332469E-3},{"$f":"'Population 2016'!AT128/'Population 2016'!AT$5","v":1.3708019191226869E-3},{"$f":"'Population 2016'!AU128/'Population 2016'!AU$5","v":1.3708019191226869E-3},{"$f":"'Population 2016'!AV128/'Population 2016'!AV$5","v":1.1614401858304297E-2},{"$f":"'Population 2016'!AW128/'Population 2016'!AW$5","v":1.1547379339801087E-2},{"$f":"'Population 2016'!AX128/'Population 2016'!AX$5","v":5.9164036444024175E-3},{"$f":"'Population 2016'!AY128/'Population 2016'!AY$5","v":6.713380863498669E-3},{"$f":"'Population 2016'!AZ128/'Population 2016'!AZ$5","v":5.3672820152907133E-3},{"$f":"'Population 2016'!BA128/'Population 2016'!BA$5","v":1.2848196933707623E-2},{"$f":"'Population 2016'!BB128/'Population 2016'!BB$5","v":1.0281516057532298E-2},{"$f":"'Population 2016'!BC128/'Population 2016'!BC$5","v":1.1375204709423273E-2},126]
[null,"Male 60-64",{"$f":"'Population 2016'!C129/'Population 2016'!C$5","v":5.7908644385723709E-3},{"$f":"'Population 2016'!D129/'Population 2016'!D$5","v":4.1005252193304191E-3},{"$f":"'Population 2016'!E129/'Population 2016'!E$5","v":2.5501713396368819E-3},{"$f":"'Population 2016'!F129/'Population 2016'!F$5","v":5.7687355137780068E-3},{"$f":"'Population 2016'!G129/'Population 2016'!G$5","v":6.8342987062198881E-3},{"$f":"'Population 2016'!H129/'Population 2016'!H$5","v":8.9684935459919003E-3},{"$f":"'Population 2016'!I129/'Population 2016'!I$5","v":6.7205426681182477E-3},{"$f":"'Population 2016'!J129/'Population 2016'!J$5","v":6.3524709121517958E-3},{"$f":"'Population 2016'!K129/'Population 2016'!K$5","v":9.7339696640362898E-3},{"$f":"'Population 2016'!L129/'Population 2016'!L$5","v":1.0992327609486442E-2},{"$f":"'Population 2016'!M129/'Population 2016'!M$5","v":1.0992327609486442E-2},{"$f":"'Population 2016'!N129/'Population 2016'!N$5","v":5.2643846296043274E-3},{"$f":"'Population 2016'!O129/'Population 2016'!O$5","v":9.4411586966643875E-3},{"$f":"'Population 2016'!P129/'Population 2016'!P$5","v":5.5449115293587283E-3},{"$f":"'Population 2016'!Q129/'Population 2016'!Q$5","v":8.801306682647678E-3},{"$f":"'Population 2016'!R129/'Population 2016'!R$5","v":3.41991802842391E-3},{"$f":"'Population 2016'!S129/'Population 2016'!S$5","v":6.4751770170052838E-3},{"$f":"'Population 2016'!T129/'Population 2016'!T$5","v":3.5690520839634626E-3},{"$f":"'Population 2016'!U129/'Population 2016'!U$5","v":1.1463727703270924E-2},{"$f":"'Population 2016'!V129/'Population 2016'!V$5","v":9.5328229825753126E-3},{"$f":"'Population 2016'!W129/'Population 2016'!W$5","v":7.4193189914955647E-3},{"$f":"'Population 2016'!X129/'Population 2016'!X$5","v":7.4193189914955647E-3},{"$f":"'Population 2016'!Y129/'Population 2016'!Y$5","v":8.0086167151555612E-3},{"$f":"'Population 2016'!Z129/'Population 2016'!Z$5","v":4.775612050725634E-3},{"$f":"'Population 2016'!AA129/'Population 2016'!AA$5","v":6.9580781273980057E-3},{"$f":"'Population 2016'!AB129/'Population 2016'!AB$5","v":4.198438123701422E-3},{"$f":"'Population 2016'!AC129/'Population 2016'!AC$5","v":5.3824720068015247E-3},{"$f":"'Population 2016'!AD129/'Population 2016'!AD$5","v":6.9931891771186127E-3},{"$f":"'Population 2016'!AE129/'Population 2016'!AE$5","v":7.0534605078080882E-3},{"$f":"'Population 2016'!AF129/'Population 2016'!AF$5","v":4.3282209051561625E-3},{"$f":"'Population 2016'!AG129/'Population 2016'!AG$5","v":7.0534605078080882E-3},{"$f":"'Population 2016'!AH129/'Population 2016'!AH$5","v":9.787949434810473E-3},{"$f":"'Population 2016'!AI129/'Population 2016'!AI$5","v":6.0482106920990465E-3},{"$f":"'Population 2016'!AJ129/'Population 2016'!AJ$5","v":1.2840532024649361E-2},{"$f":"'Population 2016'!AK129/'Population 2016'!AK$5","v":4.7018593716606112E-3},{"$f":"'Population 2016'!AL129/'Population 2016'!AL$5","v":7.5113956829428357E-3},{"$f":"'Population 2016'!AM129/'Population 2016'!AM$5","v":9.8808001709581265E-3},{"$f":"'Population 2016'!AN129/'Population 2016'!AN$5","v":5.9452383549689104E-3},{"$f":"'Population 2016'!AO129/'Population 2016'!AO$5","v":5.9452383549689104E-3},{"$f":"'Population 2016'!AP129/'Population 2016'!AP$5","v":3.7411029912971798E-3},{"$f":"'Population 2016'!AQ129/'Population 2016'!AQ$5","v":6.3229571984435799E-3},{"$f":"'Population 2016'!AR129/'Population 2016'!AR$5","v":6.6788704198888649E-3},{"$f":"'Population 2016'!AS129/'Population 2016'!AS$5","v":6.7205426681182477E-3},{"$f":"'Population 2016'!AT129/'Population 2016'!AT$5","v":1.1071861654452469E-3},{"$f":"'Population 2016'!AU129/'Population 2016'!AU$5","v":1.1071861654452469E-3},{"$f":"'Population 2016'!AV129/'Population 2016'!AV$5","v":1.0199556541019957E-2},{"$f":"'Population 2016'!AW129/'Population 2016'!AW$5","v":9.6901885410946367E-3},{"$f":"'Population 2016'!AX129/'Population 2016'!AX$5","v":4.5235569980960171E-3},{"$f":"'Population 2016'!AY129/'Population 2016'!AY$5","v":6.0539763165141829E-3},{"$f":"'Population 2016'!AZ129/'Population 2016'!AZ$5","v":4.8524141263641121E-3},{"$f":"'Population 2016'!BA129/'Population 2016'!BA$5","v":1.049989203195854E-2},{"$f":"'Population 2016'!BB129/'Population 2016'!BB$5","v":8.4240762862252544E-3},{"$f":"'Population 2016'!BC129/'Population 2016'!BC$5","v":1.1463727703270924E-2},127]
[null,"Male 65-69",{"$f":"'Population 2016'!C130/'Population 2016'!C$5","v":5.284866575007794E-3},{"$f":"'Population 2016'!D130/'Population 2016'!D$5","v":4.0834091331435896E-3},{"$f":"'Population 2016'!E130/'Population 2016'!E$5","v":2.9814503161931191E-3},{"$f":"'Population 2016'!F130/'Population 2016'!F$5","v":6.1601854236415145E-3},{"$f":"'Population 2016'!G130/'Population 2016'!G$5","v":7.4026958263411465E-3},{"$f":"'Population 2016'!H130/'Population 2016'!H$5","v":9.5650961535343835E-3},{"$f":"'Population 2016'!I130/'Population 2016'!I$5","v":6.9194372330625576E-3},{"$f":"'Population 2016'!J130/'Population 2016'!J$5","v":6.6344343730044865E-3},{"$f":"'Population 2016'!K130/'Population 2016'!K$5","v":9.5449605443462641E-3},{"$f":"'Population 2016'!L130/'Population 2016'!L$5","v":1.2207519895795277E-2},{"$f":"'Population 2016'!M130/'Population 2016'!M$5","v":1.2207519895795277E-2},{"$f":"'Population 2016'!N130/'Population 2016'!N$5","v":5.8511023058808401E-3},{"$f":"'Population 2016'!O130/'Population 2016'!O$5","v":9.5005993600221911E-3},{"$f":"'Population 2016'!P130/'Population 2016'!P$5","v":4.9926744054998307E-3},{"$f":"'Population 2016'!Q130/'Population 2016'!Q$5","v":8.9893185743998311E-3},{"$f":"'Population 2016'!R130/'Population 2016'!R$5","v":2.6880289561931124E-3},{"$f":"'Population 2016'!S130/'Population 2016'!S$5","v":6.4919475136414754E-3},{"$f":"'Population 2016'!T130/'Population 2016'!T$5","v":3.2991628781357169E-3},{"$f":"'Population 2016'!U130/'Population 2016'!U$5","v":1.1286681715575621E-2},{"$f":"'Population 2016'!V130/'Population 2016'!V$5","v":1.0670045259920165E-2},{"$f":"'Population 2016'!W130/'Population 2016'!W$5","v":7.6840612110158912E-3},{"$f":"'Population 2016'!X130/'Population 2016'!X$5","v":7.6840612110158912E-3},{"$f":"'Population 2016'!Y130/'Population 2016'!Y$5","v":8.7359501438768854E-3},{"$f":"'Population 2016'!Z130/'Population 2016'!Z$5","v":3.9645129630669221E-3},{"$f":"'Population 2016'!AA130/'Population 2016'!AA$5","v":6.2923668427944729E-3},{"$f":"'Population 2016'!AB130/'Population 2016'!AB$5","v":4.2045791838531054E-3},{"$f":"'Population 2016'!AC130/'Population 2016'!AC$5","v":4.6636368713812602E-3},{"$f":"'Population 2016'!AD130/'Population 2016'!AD$5","v":7.4546875581525179E-3},{"$f":"'Population 2016'!AE130/'Population 2016'!AE$5","v":7.4744093881867367E-3},{"$f":"'Population 2016'!AF130/'Population 2016'!AF$5","v":4.0869263599209761E-3},{"$f":"'Population 2016'!AG130/'Population 2016'!AG$5","v":7.4744093881867367E-3},{"$f":"'Population 2016'!AH130/'Population 2016'!AH$5","v":9.2176513751242306E-3},{"$f":"'Population 2016'!AI130/'Population 2016'!AI$5","v":5.9374726572753523E-3},{"$f":"'Population 2016'!AJ130/'Population 2016'!AJ$5","v":1.2282854195131473E-2},{"$f":"'Population 2016'!AK130/'Population 2016'!AK$5","v":4.8275775366782743E-3},{"$f":"'Population 2016'!AL130/'Population 2016'!AL$5","v":7.8306521700572881E-3},{"$f":"'Population 2016'!AM130/'Population 2016'!AM$5","v":9.2759271399647219E-3},{"$f":"'Population 2016'!AN130/'Population 2016'!AN$5","v":6.5997600087269554E-3},{"$f":"'Population 2016'!AO130/'Population 2016'!AO$5","v":6.5997600087269554E-3},{"$f":"'Population 2016'!AP130/'Population 2016'!AP$5","v":3.4399124962351188E-3},{"$f":"'Population 2016'!AQ130/'Population 2016'!AQ$5","v":5.7680714638022688E-3},{"$f":"'Population 2016'!AR130/'Population 2016'!AR$5","v":6.6225077042040125E-3},{"$f":"'Population 2016'!AS130/'Population 2016'!AS$5","v":6.9194372330625576E-3},{"$f":"'Population 2016'!AT130/'Population 2016'!AT$5","v":1.2126324669162229E-3},{"$f":"'Population 2016'!AU130/'Population 2016'!AU$5","v":1.2126324669162229E-3},{"$f":"'Population 2016'!AV130/'Population 2016'!AV$5","v":1.1698870235455601E-2},{"$f":"'Population 2016'!AW130/'Population 2016'!AW$5","v":9.1562938556348766E-3},{"$f":"'Population 2016'!AX130/'Population 2016'!AX$5","v":5.0602502012599511E-3},{"$f":"'Population 2016'!AY130/'Population 2016'!AY$5","v":6.2895872219332332E-3},{"$f":"'Population 2016'!AZ130/'Population 2016'!AZ$5","v":5.0623881816246816E-3},{"$f":"'Population 2016'!BA130/'Population 2016'!BA$5","v":9.4876916432735919E-3},{"$f":"'Population 2016'!BB130/'Population 2016'!BB$5","v":8.8314701394115579E-3},{"$f":"'Population 2016'!BC130/'Population 2016'!BC$5","v":1.1286681715575621E-2},128]
[null,"Male 70-74",{"$f":"'Population 2016'!C131/'Population 2016'!C$5","v":3.434652164801971E-3},{"$f":"'Population 2016'!D131/'Population 2016'!D$5","v":2.6970061520104065E-3},{"$f":"'Population 2016'!E131/'Population 2016'!E$5","v":2.0204482488667208E-3},{"$f":"'Population 2016'!F131/'Population 2016'!F$5","v":4.1823332474890552E-3},{"$f":"'Population 2016'!G131/'Population 2016'!G$5","v":5.8599036431548745E-3},{"$f":"'Population 2016'!H131/'Population 2016'!H$5","v":7.065201531712347E-3},{"$f":"'Population 2016'!I131/'Population 2016'!I$5","v":4.961895988610669E-3},{"$f":"'Population 2016'!J131/'Population 2016'!J$5","v":4.4036058150817283E-3},{"$f":"'Population 2016'!K131/'Population 2016'!K$5","v":6.7807021688796485E-3},{"$f":"'Population 2016'!L131/'Population 2016'!L$5","v":9.2211649961082085E-3},{"$f":"'Population 2016'!M131/'Population 2016'!M$5","v":9.2211649961082085E-3},{"$f":"'Population 2016'!N131/'Population 2016'!N$5","v":4.0025397641877177E-3},{"$f":"'Population 2016'!O131/'Population 2016'!O$5","v":7.1526931573889698E-3},{"$f":"'Population 2016'!P131/'Population 2016'!P$5","v":3.5951763777752731E-3},{"$f":"'Population 2016'!Q131/'Population 2016'!Q$5","v":6.4159058060422325E-3},{"$f":"'Population 2016'!R131/'Population 2016'!R$5","v":1.6101559589077553E-3},{"$f":"'Population 2016'!S131/'Population 2016'!S$5","v":4.7831221721853371E-3},{"$f":"'Population 2016'!T131/'Population 2016'!T$5","v":2.3987566483483244E-3},{"$f":"'Population 2016'!U131/'Population 2016'!U$5","v":7.2146239985836323E-3},{"$f":"'Population 2016'!V131/'Population 2016'!V$5","v":7.4797169919325907E-3},{"$f":"'Population 2016'!W131/'Population 2016'!W$5","v":5.5301708077579274E-3},{"$f":"'Population 2016'!X131/'Population 2016'!X$5","v":5.5301708077579274E-3},{"$f":"'Population 2016'!Y131/'Population 2016'!Y$5","v":6.0054689114640465E-3},{"$f":"'Population 2016'!Z131/'Population 2016'!Z$5","v":2.9346687753952416E-3},{"$f":"'Population 2016'!AA131/'Population 2016'!AA$5","v":4.9117799671396407E-3},{"$f":"'Population 2016'!AB131/'Population 2016'!AB$5","v":2.8678750908365147E-3},{"$f":"'Population 2016'!AC131/'Population 2016'!AC$5","v":3.5848670206714232E-3},{"$f":"'Population 2016'!AD131/'Population 2016'!AD$5","v":5.612415795154267E-3},{"$f":"'Population 2016'!AE131/'Population 2016'!AE$5","v":5.5185371513054547E-3},{"$f":"'Population 2016'!AF131/'Population 2016'!AF$5","v":3.2574763606750216E-3},{"$f":"'Population 2016'!AG131/'Population 2016'!AG$5","v":5.5185371513054547E-3},{"$f":"'Population 2016'!AH131/'Population 2016'!AH$5","v":7.2949852781364075E-3},{"$f":"'Population 2016'!AI131/'Population 2016'!AI$5","v":4.4472941639688516E-3},{"$f":"'Population 2016'!AJ131/'Population 2016'!AJ$5","v":9.4805231018040871E-3},{"$f":"'Population 2016'!AK131/'Population 2016'!AK$5","v":3.7464013175263692E-3},{"$f":"'Population 2016'!AL131/'Population 2016'!AL$5","v":5.4096238094393503E-3},{"$f":"'Population 2016'!AM131/'Population 2016'!AM$5","v":7.2620983661184175E-3},{"$f":"'Population 2016'!AN131/'Population 2016'!AN$5","v":5.3452601723573689E-3},{"$f":"'Population 2016'!AO131/'Population 2016'!AO$5","v":5.3452601723573689E-3},{"$f":"'Population 2016'!AP131/'Population 2016'!AP$5","v":2.3064851069226257E-3},{"$f":"'Population 2016'!AQ131/'Population 2016'!AQ$5","v":4.8227105825615173E-3},{"$f":"'Population 2016'!AR131/'Population 2016'!AR$5","v":4.912690143408581E-3},{"$f":"'Population 2016'!AS131/'Population 2016'!AS$5","v":4.961895988610669E-3},{"$f":"'Population 2016'!AT131/'Population 2016'!AT$5","v":1.2653556176517109E-3},{"$f":"'Population 2016'!AU131/'Population 2016'!AU$5","v":1.2653556176517109E-3},{"$f":"'Population 2016'!AV131/'Population 2016'!AV$5","v":8.9430894308943094E-3},{"$f":"'Population 2016'!AW131/'Population 2016'!AW$5","v":7.329611324668985E-3},{"$f":"'Population 2016'!AX131/'Population 2016'!AX$5","v":3.1179319421904749E-3},{"$f":"'Population 2016'!AY131/'Population 2016'!AY$5","v":4.4169395061350635E-3},{"$f":"'Population 2016'!AZ131/'Population 2016'!AZ$5","v":3.4372465210463035E-3},{"$f":"'Population 2016'!BA131/'Population 2016'!BA$5","v":7.9626430576549348E-3},{"$f":"'Population 2016'!BB131/'Population 2016'!BB$5","v":6.8773606402297979E-3},{"$f":"'Population 2016'!BC131/'Population 2016'!BC$5","v":7.2146239985836323E-3},129]
[null,"Male 75-79",{"$f":"'Population 2016'!C132/'Population 2016'!C$5","v":2.8519879582730649E-3},{"$f":"'Population 2016'!D132/'Population 2016'!D$5","v":2.1615171698796004E-3},{"$f":"'Population 2016'!E132/'Population 2016'!E$5","v":1.5282276777971019E-3},{"$f":"'Population 2016'!F132/'Population 2016'!F$5","v":3.1212979654906001E-3},{"$f":"'Population 2016'!G132/'Population 2016'!G$5","v":4.3441779894981868E-3},{"$f":"'Population 2016'!H132/'Population 2016'!H$5","v":5.4245443609705164E-3},{"$f":"'Population 2016'!I132/'Population 2016'!I$5","v":3.6638472489741226E-3},{"$f":"'Population 2016'!J132/'Population 2016'!J$5","v":3.5079571747261224E-3},{"$f":"'Population 2016'!K132/'Population 2016'!K$5","v":5.0559939517081697E-3},{"$f":"'Population 2016'!L132/'Population 2016'!L$5","v":7.29909615109685E-3},{"$f":"'Population 2016'!M132/'Population 2016'!M$5","v":7.29909615109685E-3},{"$f":"'Population 2016'!N132/'Population 2016'!N$5","v":3.5846038851962288E-3},{"$f":"'Population 2016'!O132/'Population 2016'!O$5","v":5.6963969051227947E-3},{"$f":"'Population 2016'!P132/'Population 2016'!P$5","v":3.1781809985348811E-3},{"$f":"'Population 2016'!Q132/'Population 2016'!Q$5","v":5.440594117577937E-3},{"$f":"'Population 2016'!R132/'Population 2016'!R$5","v":1.3040932559748762E-3},{"$f":"'Population 2016'!S132/'Population 2016'!S$5","v":3.5571106023079735E-3},{"$f":"'Population 2016'!T132/'Population 2016'!T$5","v":1.7449733135414583E-3},{"$f":"'Population 2016'!U132/'Population 2016'!U$5","v":6.4179170539547647E-3},{"$f":"'Population 2016'!V132/'Population 2016'!V$5","v":5.5334641011746209E-3},{"$f":"'Population 2016'!W132/'Population 2016'!W$5","v":4.1705070630609431E-3},{"$f":"'Population 2016'!X132/'Population 2016'!X$5","v":4.1705070630609431E-3},{"$f":"'Population 2016'!Y132/'Population 2016'!Y$5","v":4.5627255528528955E-3},{"$f":"'Population 2016'!Z132/'Population 2016'!Z$5","v":2.1893867974749461E-3},{"$f":"'Population 2016'!AA132/'Population 2016'!AA$5","v":3.689980513660701E-3},{"$f":"'Population 2016'!AB132/'Population 2016'!AB$5","v":2.2332988751624823E-3},{"$f":"'Population 2016'!AC132/'Population 2016'!AC$5","v":2.7729453209521309E-3},{"$f":"'Population 2016'!AD132/'Population 2016'!AD$5","v":3.9673973724366372E-3},{"$f":"'Population 2016'!AE132/'Population 2016'!AE$5","v":3.8244745839279663E-3},{"$f":"'Population 2016'!AF132/'Population 2016'!AF$5","v":2.2922981797342742E-3},{"$f":"'Population 2016'!AG132/'Population 2016'!AG$5","v":3.8244745839279663E-3},{"$f":"'Population 2016'!AH132/'Population 2016'!AH$5","v":5.3370238614937355E-3},{"$f":"'Population 2016'!AI132/'Population 2016'!AI$5","v":3.28659550266865E-3},{"$f":"'Population 2016'!AJ132/'Population 2016'!AJ$5","v":6.5805983883110725E-3},{"$f":"'Population 2016'!AK132/'Population 2016'!AK$5","v":2.6023660158656322E-3},{"$f":"'Population 2016'!AL132/'Population 2016'!AL$5","v":4.1503343324878952E-3},{"$f":"'Population 2016'!AM132/'Population 2016'!AM$5","v":5.393149360174725E-3},{"$f":"'Population 2016'!AN132/'Population 2016'!AN$5","v":4.4180211628668045E-3},{"$f":"'Population 2016'!AO132/'Population 2016'!AO$5","v":4.4180211628668045E-3},{"$f":"'Population 2016'!AP132/'Population 2016'!AP$5","v":1.8309211673509503E-3},{"$f":"'Population 2016'!AQ132/'Population 2016'!AQ$5","v":4.0349098481942238E-3},{"$f":"'Population 2016'!AR132/'Population 2016'!AR$5","v":3.7192709026032224E-3},{"$f":"'Population 2016'!AS132/'Population 2016'!AS$5","v":3.6638472489741226E-3},{"$f":"'Population 2016'!AT132/'Population 2016'!AT$5","v":4.2178520588390361E-4},{"$f":"'Population 2016'!AU132/'Population 2016'!AU$5","v":4.2178520588390361E-4},{"$f":"'Population 2016'!AV132/'Population 2016'!AV$5","v":6.6518847006651885E-3},{"$f":"'Population 2016'!AW132/'Population 2016'!AW$5","v":5.2779303191164808E-3},{"$f":"'Population 2016'!AX132/'Population 2016'!AX$5","v":2.6706876062205297E-3},{"$f":"'Population 2016'!AY132/'Population 2016'!AY$5","v":3.4515467702946668E-3},{"$f":"'Population 2016'!AZ132/'Population 2016'!AZ$5","v":2.8188297829501068E-3},{"$f":"'Population 2016'!BA132/'Population 2016'!BA$5","v":5.7897862232779099E-3},{"$f":"'Population 2016'!BB132/'Population 2016'!BB$5","v":4.9646810244229162E-3},{"$f":"'Population 2016'!BC132/'Population 2016'!BC$5","v":6.4179170539547647E-3},130]
[null,"Male 80-84",{"$f":"'Population 2016'!C133/'Population 2016'!C$5","v":2.3051013784608464E-3},{"$f":"'Population 2016'!D133/'Population 2016'!D$5","v":1.7580665669043357E-3},{"$f":"'Population 2016'!E133/'Population 2016'!E$5","v":1.2563344099681697E-3},{"$f":"'Population 2016'!F133/'Population 2016'!F$5","v":2.338398145763585E-3},{"$f":"'Population 2016'!G133/'Population 2016'!G$5","v":2.8555188653710821E-3},{"$f":"'Population 2016'!H133/'Population 2016'!H$5","v":3.3688592893295678E-3},{"$f":"'Population 2016'!I133/'Population 2016'!I$5","v":2.3134578343522319E-3},{"$f":"'Population 2016'!J133/'Population 2016'!J$5","v":2.24741464385527E-3},{"$f":"'Population 2016'!K133/'Population 2016'!K$5","v":3.0005197750791477E-3},{"$f":"'Population 2016'!L133/'Population 2016'!L$5","v":4.6304385811637254E-3},{"$f":"'Population 2016'!M133/'Population 2016'!M$5","v":4.6304385811637254E-3},{"$f":"'Population 2016'!N133/'Population 2016'!N$5","v":2.3870568473167712E-3},{"$f":"'Population 2016'!O133/'Population 2016'!O$5","v":3.5367194697892828E-3},{"$f":"'Population 2016'!P133/'Population 2016'!P$5","v":2.2765693677448441E-3},{"$f":"'Population 2016'!Q133/'Population 2016'!Q$5","v":3.8072408079811047E-3},{"$f":"'Population 2016'!R133/'Population 2016'!R$5","v":1.0911800713259169E-3},{"$f":"'Population 2016'!S133/'Population 2016'!S$5","v":2.4184821464823441E-3},{"$f":"'Population 2016'!T133/'Population 2016'!T$5","v":1.2703405722581816E-3},{"$f":"'Population 2016'!U133/'Population 2016'!U$5","v":3.9392732262205112E-3},{"$f":"'Population 2016'!V133/'Population 2016'!V$5","v":4.0069912456781737E-3},{"$f":"'Population 2016'!W133/'Population 2016'!W$5","v":2.8696749227018086E-3},{"$f":"'Population 2016'!X133/'Population 2016'!X$5","v":2.8696749227018086E-3},{"$f":"'Population 2016'!Y133/'Population 2016'!Y$5","v":3.1637016899572342E-3},{"$f":"'Population 2016'!Z133/'Population 2016'!Z$5","v":1.5486378761980165E-3},{"$f":"'Population 2016'!AA133/'Population 2016'!AA$5","v":2.5293042519816868E-3},{"$f":"'Population 2016'!AB133/'Population 2016'!AB$5","v":1.7747663838367296E-3},{"$f":"'Population 2016'!AC133/'Population 2016'!AC$5","v":1.9330976519431303E-3},{"$f":"'Population 2016'!AD133/'Population 2016'!AD$5","v":2.5940675127470317E-3},{"$f":"'Population 2016'!AE133/'Population 2016'!AE$5","v":2.4948921446832101E-3},{"$f":"'Population 2016'!AF133/'Population 2016'!AF$5","v":1.6136572712603116E-3},{"$f":"'Population 2016'!AG133/'Population 2016'!AG$5","v":2.4948921446832101E-3},{"$f":"'Population 2016'!AH133/'Population 2016'!AH$5","v":3.6001226047945906E-3},{"$f":"'Population 2016'!AI133/'Population 2016'!AI$5","v":2.2434705573540991E-3},{"$f":"'Population 2016'!AJ133/'Population 2016'!AJ$5","v":4.098932046956473E-3},{"$f":"'Population 2016'!AK133/'Population 2016'!AK$5","v":1.8606288422614184E-3},{"$f":"'Population 2016'!AL133/'Population 2016'!AL$5","v":2.5895248399283445E-3},{"$f":"'Population 2016'!AM133/'Population 2016'!AM$5","v":3.6292381859604262E-3},{"$f":"'Population 2016'!AN133/'Population 2016'!AN$5","v":1.9090214901276317E-3},{"$f":"'Population 2016'!AO133/'Population 2016'!AO$5","v":1.9090214901276317E-3},{"$f":"'Population 2016'!AP133/'Population 2016'!AP$5","v":1.1889098489291886E-3},{"$f":"'Population 2016'!AQ133/'Population 2016'!AQ$5","v":2.8292322025538445E-3},{"$f":"'Population 2016'!AR133/'Population 2016'!AR$5","v":2.5247377741361076E-3},{"$f":"'Population 2016'!AS133/'Population 2016'!AS$5","v":2.3134578343522319E-3},{"$f":"'Population 2016'!AT133/'Population 2016'!AT$5","v":3.1633890441292773E-4},{"$f":"'Population 2016'!AU133/'Population 2016'!AU$5","v":3.1633890441292773E-4},{"$f":"'Population 2016'!AV133/'Population 2016'!AV$5","v":4.117833386126069E-3},{"$f":"'Population 2016'!AW133/'Population 2016'!AW$5","v":3.5694673256452497E-3},{"$f":"'Population 2016'!AX133/'Population 2016'!AX$5","v":1.8400909822763459E-3},{"$f":"'Population 2016'!AY133/'Population 2016'!AY$5","v":2.3744683455218627E-3},{"$f":"'Population 2016'!AZ133/'Population 2016'!AZ$5","v":1.9386645650085429E-3},{"$f":"'Population 2016'!BA133/'Population 2016'!BA$5","v":3.5764413733534875E-3},{"$f":"'Population 2016'!BB133/'Population 2016'!BB$5","v":3.293675728302825E-3},{"$f":"'Population 2016'!BC133/'Population 2016'!BC$5","v":3.9392732262205112E-3},131]
[null,"Male 85-89",{"$f":"'Population 2016'!C134/'Population 2016'!C$5","v":1.1806616816506775E-3},{"$f":"'Population 2016'!D134/'Population 2016'!D$5","v":8.1668182662871782E-4},{"$f":"'Population 2016'!E134/'Population 2016'!E$5","v":4.8284494114448316E-4},{"$f":"'Population 2016'!F134/'Population 2016'!F$5","v":1.2567602369302085E-3},{"$f":"'Population 2016'!G134/'Population 2016'!G$5","v":1.4074595355383533E-3},{"$f":"'Population 2016'!H134/'Population 2016'!H$5","v":1.7833230116759021E-3},{"$f":"'Population 2016'!I134/'Population 2016'!I$5","v":1.5806883845574072E-3},{"$f":"'Population 2016'!J134/'Population 2016'!J$5","v":1.0532164567144623E-3},{"$f":"'Population 2016'!K134/'Population 2016'!K$5","v":1.464820677597694E-3},{"$f":"'Population 2016'!L134/'Population 2016'!L$5","v":2.2556510412529984E-3},{"$f":"'Population 2016'!M134/'Population 2016'!M$5","v":2.2556510412529984E-3},{"$f":"'Population 2016'!N134/'Population 2016'!N$5","v":1.1653981241108815E-3},{"$f":"'Population 2016'!O134/'Population 2016'!O$5","v":1.8921944502233979E-3},{"$f":"'Population 2016'!P134/'Population 2016'!P$5","v":1.2960667192606784E-3},{"$f":"'Population 2016'!Q134/'Population 2016'!Q$5","v":1.7626114851764373E-3},{"$f":"'Population 2016'!R134/'Population 2016'!R$5","v":4.2582636929791877E-4},{"$f":"'Population 2016'!S134/'Population 2016'!S$5","v":1.2083584155234779E-3},{"$f":"'Population 2016'!T134/'Population 2016'!T$5","v":6.328436550443688E-4},{"$f":"'Population 2016'!U134/'Population 2016'!U$5","v":2.1688133492674721E-3},{"$f":"'Population 2016'!V134/'Population 2016'!V$5","v":1.9309881622030056E-3},{"$f":"'Population 2016'!W134/'Population 2016'!W$5","v":1.4054216591819792E-3},{"$f":"'Population 2016'!X134/'Population 2016'!X$5","v":1.4054216591819792E-3},{"$f":"'Population 2016'!Y134/'Population 2016'!Y$5","v":1.5103098519896345E-3},{"$f":"'Population 2016'!Z134/'Population 2016'!Z$5","v":7.6657574871801817E-4},{"$f":"'Population 2016'!AA134/'Population 2016'!AA$5","v":1.196552917735492E-3},{"$f":"'Population 2016'!AB134/'Population 2016'!AB$5","v":8.3109014052792647E-4},{"$f":"'Population 2016'!AC134/'Population 2016'!AC$5","v":9.2465987203700292E-4},{"$f":"'Population 2016'!AD134/'Population 2016'!AD$5","v":1.354721054002754E-3},{"$f":"'Population 2016'!AE134/'Population 2016'!AE$5","v":1.3347159621762031E-3},{"$f":"'Population 2016'!AF134/'Population 2016'!AF$5","v":7.3896454478275953E-4},{"$f":"'Population 2016'!AG134/'Population 2016'!AG$5","v":1.3347159621762031E-3},{"$f":"'Population 2016'!AH134/'Population 2016'!AH$5","v":1.6848871014183146E-3},{"$f":"'Population 2016'!AI134/'Population 2016'!AI$5","v":1.0773033511243329E-3},{"$f":"'Population 2016'!AJ134/'Population 2016'!AJ$5","v":2.1888854808577085E-3},{"$f":"'Population 2016'!AK134/'Population 2016'!AK$5","v":9.0517078812717654E-4},{"$f":"'Population 2016'!AL134/'Population 2016'!AL$5","v":1.2060800624323798E-3},{"$f":"'Population 2016'!AM134/'Population 2016'!AM$5","v":1.6190314063116871E-3},{"$f":"'Population 2016'!AN134/'Population 2016'!AN$5","v":8.7269553834406024E-4},{"$f":"'Population 2016'!AO134/'Population 2016'!AO$5","v":8.7269553834406024E-4},{"$f":"'Population 2016'!AP134/'Population 2016'!AP$5","v":6.4201131842176178E-4},{"$f":"'Population 2016'!AQ134/'Population 2016'!AQ$5","v":1.1919767633035568E-3},{"$f":"'Population 2016'!AR134/'Population 2016'!AR$5","v":1.240425300131461E-3},{"$f":"'Population 2016'!AS134/'Population 2016'!AS$5","v":1.5806883845574072E-3},{"$f":"'Population 2016'!AT134/'Population 2016'!AT$5","v":5.2723150735487951E-5},{"$f":"'Population 2016'!AU134/'Population 2016'!AU$5","v":5.2723150735487951E-5},{"$f":"'Population 2016'!AV134/'Population 2016'!AV$5","v":2.3545560130925985E-3},{"$f":"'Population 2016'!AW134/'Population 2016'!AW$5","v":1.7542253950820672E-3},{"$f":"'Population 2016'!AX134/'Population 2016'!AX$5","v":8.3059662394418393E-4},{"$f":"'Population 2016'!AY134/'Population 2016'!AY$5","v":1.1902940546494906E-3},{"$f":"'Population 2016'!AZ134/'Population 2016'!AZ$5","v":1.0009722086394255E-3},{"$f":"'Population 2016'!BA134/'Population 2016'!BA$5","v":1.7274886633556468E-3},{"$f":"'Population 2016'!BB134/'Population 2016'!BB$5","v":1.4431409375582607E-3},{"$f":"'Population 2016'!BC134/'Population 2016'!BC$5","v":2.1688133492674721E-3},132]
[null,"Male 90+",{"$f":"'Population 2016'!C135/'Population 2016'!C$5","v":4.753313263788442E-4},{"$f":"'Population 2016'!D135/'Population 2016'!D$5","v":3.6432812026251183E-4},{"$f":"'Population 2016'!E135/'Population 2016'!E$5","v":2.6251763790379666E-4},{"$f":"'Population 2016'!F135/'Population 2016'!F$5","v":7.0048931238732943E-4},{"$f":"'Population 2016'!G135/'Population 2016'!G$5","v":4.7366426676771507E-4},{"$f":"'Population 2016'!H135/'Population 2016'!H$5","v":6.9387477181571467E-4},{"$f":"'Population 2016'!I135/'Population 2016'!I$5","v":5.8621555983585959E-4},{"$f":"'Population 2016'!J135/'Population 2016'!J$5","v":3.0684258975145751E-4},{"$f":"'Population 2016'!K135/'Population 2016'!K$5","v":4.7252279922506261E-4},{"$f":"'Population 2016'!L135/'Population 2016'!L$5","v":9.8486172223722452E-4},{"$f":"'Population 2016'!M135/'Population 2016'!M$5","v":9.8486172223722452E-4},{"$f":"'Population 2016'!N135/'Population 2016'!N$5","v":5.3849430562364871E-4},{"$f":"'Population 2016'!O135/'Population 2016'!O$5","v":6.9347440584103582E-4},{"$f":"'Population 2016'!P135/'Population 2016'!P$5","v":7.2128930463202974E-4},{"$f":"'Population 2016'!Q135/'Population 2016'!Q$5","v":7.8729979671214199E-4},{"$f":"'Population 2016'!R135/'Population 2016'!R$5","v":2.2622025868951934E-4},{"$f":"'Population 2016'!S135/'Population 2016'!S$5","v":5.2782931518118319E-4},{"$f":"'Population 2016'!T135/'Population 2016'!T$5","v":3.3736150728468192E-4},{"$f":"'Population 2016'!U135/'Population 2016'!U$5","v":3.9835347231443366E-4},{"$f":"'Population 2016'!V135/'Population 2016'!V$5","v":7.0980987780584791E-4},{"$f":"'Population 2016'!W135/'Population 2016'!W$5","v":6.275371129370698E-4},{"$f":"'Population 2016'!X135/'Population 2016'!X$5","v":6.275371129370698E-4},{"$f":"'Population 2016'!Y135/'Population 2016'!Y$5","v":5.1668494936487491E-4},{"$f":"'Population 2016'!Z135/'Population 2016'!Z$5","v":3.1747076462059338E-4},{"$f":"'Population 2016'!AA135/'Population 2016'!AA$5","v":4.5576640842118129E-4},{"$f":"'Population 2016'!AB135/'Population 2016'!AB$5","v":3.6846360910105114E-4},{"$f":"'Population 2016'!AC135/'Population 2016'!AC$5","v":3.8682638942040169E-4},{"$f":"'Population 2016'!AD135/'Population 2016'!AD$5","v":6.3642115449030485E-4},{"$f":"'Population 2016'!AE135/'Population 2016'!AE$5","v":6.9815911867678309E-4},{"$f":"'Population 2016'!AF135/'Population 2016'!AF$5","v":2.7145636338958513E-4},{"$f":"'Population 2016'!AG135/'Population 2016'!AG$5","v":6.9815911867678309E-4},{"$f":"'Population 2016'!AH135/'Population 2016'!AH$5","v":5.7958630170067713E-4},{"$f":"'Population 2016'!AI135/'Population 2016'!AI$5","v":4.7849768133694984E-4},{"$f":"'Population 2016'!AJ135/'Population 2016'!AJ$5","v":8.9228452722862005E-4},{"$f":"'Population 2016'!AK135/'Population 2016'!AK$5","v":3.8972631155475656E-4},{"$f":"'Population 2016'!AL135/'Population 2016'!AL$5","v":4.9662120217803868E-4},{"$f":"'Population 2016'!AM135/'Population 2016'!AM$5","v":5.3605514123966375E-4},{"$f":"'Population 2016'!AN135/'Population 2016'!AN$5","v":4.9089124031853387E-4},{"$f":"'Population 2016'!AO135/'Population 2016'!AO$5","v":4.9089124031853387E-4},{"$f":"'Population 2016'!AP135/'Population 2016'!AP$5","v":2.3778196978583771E-4},{"$f":"'Population 2016'!AQ135/'Population 2016'!AQ$5","v":5.0008220529402093E-4},{"$f":"'Population 2016'!AR135/'Population 2016'!AR$5","v":5.0926943895483474E-4},{"$f":"'Population 2016'!AS135/'Population 2016'!AS$5","v":5.8621555983585959E-4},{"$f":"'Population 2016'!AT135/'Population 2016'!AT$5","v":0},{"$f":"'Population 2016'!AU135/'Population 2016'!AU$5","v":0},{"$f":"'Population 2016'!AV135/'Population 2016'!AV$5","v":9.2915214866434379E-4},{"$f":"'Population 2016'!AW135/'Population 2016'!AW$5","v":6.2541948868143266E-4},{"$f":"'Population 2016'!AX135/'Population 2016'!AX$5","v":2.1723296318540194E-4},{"$f":"'Population 2016'!AY135/'Population 2016'!AY$5","v":5.4618891710779961E-4},{"$f":"'Population 2016'!AZ135/'Population 2016'!AZ$5","v":4.745988920273139E-4},{"$f":"'Population 2016'!BA135/'Population 2016'!BA$5","v":5.1284819693370762E-4},{"$f":"'Population 2016'!BB135/'Population 2016'!BB$5","v":5.10968561623499E-4},{"$f":"'Population 2016'!BC135/'Population 2016'!BC$5","v":3.9835347231443366E-4},133]
["SIMD Q3","Female 0-4",{"$f":"'Population 2016'!C136/'Population 2016'!C$5","v":0},{"$f":"'Population 2016'!D136/'Population 2016'!D$5","v":0},{"$f":"'Population 2016'!E136/'Population 2016'!E$5","v":0},{"$f":"'Population 2016'!F136/'Population 2016'!F$5","v":0},{"$f":"'Population 2016'!G136/'Population 2016'!G$5","v":0},{"$f":"'Population 2016'!H136/'Population 2016'!H$5","v":0},{"$f":"'Population 2016'!I136/'Population 2016'!I$5","v":0},{"$f":"'Population 2016'!J136/'Population 2016'!J$5","v":0},{"$f":"'Population 2016'!K136/'Population 2016'!K$5","v":0},{"$f":"'Population 2016'!L136/'Population 2016'!L$5","v":0},{"$f":"'Population 2016'!M136/'Population 2016'!M$5","v":0},{"$f":"'Population 2016'!N136/'Population 2016'!N$5","v":0},{"$f":"'Population 2016'!O136/'Population 2016'!O$5","v":0},{"$f":"'Population 2016'!P136/'Population 2016'!P$5","v":0},{"$f":"'Population 2016'!Q136/'Population 2016'!Q$5","v":0},{"$f":"'Population 2016'!R136/'Population 2016'!R$5","v":0},{"$f":"'Population 2016'!S136/'Population 2016'!S$5","v":0},{"$f":"'Population 2016'!T136/'Population 2016'!T$5","v":0},{"$f":"'Population 2016'!U136/'Population 2016'!U$5","v":0},{"$f":"'Population 2016'!V136/'Population 2016'!V$5","v":0},{"$f":"'Population 2016'!W136/'Population 2016'!W$5","v":0},{"$f":"'Population 2016'!X136/'Population 2016'!X$5","v":0},{"$f":"'Population 2016'!Y136/'Population 2016'!Y$5","v":0},{"$f":"'Population 2016'!Z136/'Population 2016'!Z$5","v":0},{"$f":"'Population 2016'!AA136/'Population 2016'!AA$5","v":0},{"$f":"'Population 2016'!AB136/'Population 2016'!AB$5","v":0},{"$f":"'Population 2016'!AC136/'Population 2016'!AC$5","v":0},{"$f":"'Population 2016'!AD136/'Population 2016'!AD$5","v":0},{"$f":"'Population 2016'!AE136/'Population 2016'!AE$5","v":0},{"$f":"'Population 2016'!AF136/'Population 2016'!AF$5","v":0},{"$f":"'Population 2016'!AG136/'Population 2016'!AG$5","v":0},{"$f":"'Population 2016'!AH136/'Population 2016'!AH$5","v":0},{"$f":"'Population 2016'!AI136/'Population 2016'!AI$5","v":0},{"$f":"'Population 2016'!AJ136/'Population 2016'!AJ$5","v":0},{"$f":"'Population 2016'!AK136/'Population 2016'!AK$5","v":0},{"$f":"'Population 2016'!AL136/'Population 2016'!AL$5","v":0},{"$f":"'Population 2016'!AM136/'Population 2016'!AM$5","v":0},{"$f":"'Population 2016'!AN136/'Population 2016'!AN$5","v":0},{"$f":"'Population 2016'!AO136/'Population 2016'!AO$5","v":0},{"$f":"'Population 2016'!AP136/'Population 2016'!AP$5","v":0},{"$f":"'Population 2016'!AQ136/'Population 2016'!AQ$5","v":0},{"$f":"'Population 2016'!AR136/'Population 2016'!AR$5","v":0},{"$f":"'Population 2016'!AS136/'Population 2016'!AS$5","v":0},{"$f":"'Population 2016'!AT136/'Population 2016'!AT$5","v":0},{"$f":"'Population 2016'!AU136/'Population 2016'!AU$5","v":0},{"$f":"'Population 2016'!AV136/'Population 2016'!AV$5","v":0},{"$f":"'Population 2016'!AW136/'Population 2016'!AW$5","v":0},{"$f":"'Population 2016'!AX136/'Population 2016'!AX$5","v":0},{"$f":"'Population 2016'!AY136/'Population 2016'!AY$5","v":0},{"$f":"'Population 2016'!AZ136/'Population 2016'!AZ$5","v":0},{"$f":"'Population 2016'!BA136/'Population 2016'!BA$5","v":0},{"$f":"'Population 2016'!BB136/'Population 2016'!BB$5","v":0},{"$f":"'Population 2016'!BC136/'Population 2016'!BC$5","v":0},134]
[null,"Female 5-9",{"$f":"'Population 2016'!C137/'Population 2016'!C$5","v":0},{"$f":"'Population 2016'!D137/'Population 2016'!D$5","v":0},{"$f":"'Population 2016'!E137/'Population 2016'!E$5","v":0},{"$f":"'Population 2016'!F137/'Population 2016'!F$5","v":0},{"$f":"'Population 2016'!G137/'Population 2016'!G$5","v":0},{"$f":"'Population 2016'!H137/'Population 2016'!H$5","v":0},{"$f":"'Population 2016'!I137/'Population 2016'!I$5","v":0},{"$f":"'Population 2016'!J137/'Population 2016'!J$5","v":0},{"$f":"'Population 2016'!K137/'Population 2016'!K$5","v":0},{"$f":"'Population 2016'!L137/'Population 2016'!L$5","v":0},{"$f":"'Population 2016'!M137/'Population 2016'!M$5","v":0},{"$f":"'Population 2016'!N137/'Population 2016'!N$5","v":0},{"$f":"'Population 2016'!O137/'Population 2016'!O$5","v":0},{"$f":"'Population 2016'!P137/'Population 2016'!P$5","v":0},{"$f":"'Population 2016'!Q137/'Population 2016'!Q$5","v":0},{"$f":"'Population 2016'!R137/'Population 2016'!R$5","v":0},{"$f":"'Population 2016'!S137/'Population 2016'!S$5","v":0},{"$f":"'Population 2016'!T137/'Population 2016'!T$5","v":0},{"$f":"'Population 2016'!U137/'Population 2016'!U$5","v":0},{"$f":"'Population 2016'!V137/'Population 2016'!V$5","v":0},{"$f":"'Population 2016'!W137/'Population 2016'!W$5","v":0},{"$f":"'Population 2016'!X137/'Population 2016'!X$5","v":0},{"$f":"'Population 2016'!Y137/'Population 2016'!Y$5","v":0},{"$f":"'Population 2016'!Z137/'Population 2016'!Z$5","v":0},{"$f":"'Population 2016'!AA137/'Population 2016'!AA$5","v":0},{"$f":"'Population 2016'!AB137/'Population 2016'!AB$5","v":0},{"$f":"'Population 2016'!AC137/'Population 2016'!AC$5","v":0},{"$f":"'Population 2016'!AD137/'Population 2016'!AD$5","v":0},{"$f":"'Population 2016'!AE137/'Population 2016'!AE$5","v":0},{"$f":"'Population 2016'!AF137/'Population 2016'!AF$5","v":0},{"$f":"'Population 2016'!AG137/'Population 2016'!AG$5","v":0},{"$f":"'Population 2016'!AH137/'Population 2016'!AH$5","v":0},{"$f":"'Population 2016'!AI137/'Population 2016'!AI$5","v":0},{"$f":"'Population 2016'!AJ137/'Population 2016'!AJ$5","v":0},{"$f":"'Population 2016'!AK137/'Population 2016'!AK$5","v":0},{"$f":"'Population 2016'!AL137/'Population 2016'!AL$5","v":0},{"$f":"'Population 2016'!AM137/'Population 2016'!AM$5","v":0},{"$f":"'Population 2016'!AN137/'Population 2016'!AN$5","v":0},{"$f":"'Population 2016'!AO137/'Population 2016'!AO$5","v":0},{"$f":"'Population 2016'!AP137/'Population 2016'!AP$5","v":0},{"$f":"'Population 2016'!AQ137/'Population 2016'!AQ$5","v":0},{"$f":"'Population 2016'!AR137/'Population 2016'!AR$5","v":0},{"$f":"'Population 2016'!AS137/'Population 2016'!AS$5","v":0},{"$f":"'Population 2016'!AT137/'Population 2016'!AT$5","v":0},{"$f":"'Population 2016'!AU137/'Population 2016'!AU$5","v":0},{"$f":"'Population 2016'!AV137/'Population 2016'!AV$5","v":0},{"$f":"'Population 2016'!AW137/'Population 2016'!AW$5","v":0},{"$f":"'Population 2016'!AX137/'Population 2016'!AX$5","v":0},{"$f":"'Population 2016'!AY137/'Population 2016'!AY$5","v":0},{"$f":"'Population 2016'!AZ137/'Population 2016'!AZ$5","v":0},{"$f":"'Population 2016'!BA137/'Population 2016'!BA$5","v":0},{"$f":"'Population 2016'!BB137/'Population 2016'!BB$5","v":0},{"$f":"'Population 2016'!BC137/'Population 2016'!BC$5","v":0},135]
[null,"Female 10-15",{"$f":"'Population 2016'!C138/'Population 2016'!C$5","v":0},{"$f":"'Population 2016'!D138/'Population 2016'!D$5","v":0},{"$f":"'Population 2016'!E138/'Population 2016'!E$5","v":0},{"$f":"'Population 2016'!F138/'Population 2016'!F$5","v":0},{"$f":"'Population 2016'!G138/'Population 2016'!G$5","v":0},{"$f":"'Population 2016'!H138/'Population 2016'!H$5","v":0},{"$f":"'Population 2016'!I138/'Population 2016'!I$5","v":0},{"$f":"'Population 2016'!J138/'Population 2016'!J$5","v":0},{"$f":"'Population 2016'!K138/'Population 2016'!K$5","v":0},{"$f":"'Population 2016'!L138/'Population 2016'!L$5","v":0},{"$f":"'Population 2016'!M138/'Population 2016'!M$5","v":0},{"$f":"'Population 2016'!N138/'Population 2016'!N$5","v":0},{"$f":"'Population 2016'!O138/'Population 2016'!O$5","v":0},{"$f":"'Population 2016'!P138/'Population 2016'!P$5","v":0},{"$f":"'Population 2016'!Q138/'Population 2016'!Q$5","v":0},{"$f":"'Population 2016'!R138/'Population 2016'!R$5","v":0},{"$f":"'Population 2016'!S138/'Population 2016'!S$5","v":0},{"$f":"'Population 2016'!T138/'Population 2016'!T$5","v":0},{"$f":"'Population 2016'!U138/'Population 2016'!U$5","v":0},{"$f":"'Population 2016'!V138/'Population 2016'!V$5","v":0},{"$f":"'Population 2016'!W138/'Population 2016'!W$5","v":0},{"$f":"'Population 2016'!X138/'Population 2016'!X$5","v":0},{"$f":"'Population 2016'!Y138/'Population 2016'!Y$5","v":0},{"$f":"'Population 2016'!Z138/'Population 2016'!Z$5","v":0},{"$f":"'Population 2016'!AA138/'Population 2016'!AA$5","v":0},{"$f":"'Population 2016'!AB138/'Population 2016'!AB$5","v":0},{"$f":"'Population 2016'!AC138/'Population 2016'!AC$5","v":0},{"$f":"'Population 2016'!AD138/'Population 2016'!AD$5","v":0},{"$f":"'Population 2016'!AE138/'Population 2016'!AE$5","v":0},{"$f":"'Population 2016'!AF138/'Population 2016'!AF$5","v":0},{"$f":"'Population 2016'!AG138/'Population 2016'!AG$5","v":0},{"$f":"'Population 2016'!AH138/'Population 2016'!AH$5","v":0},{"$f":"'Population 2016'!AI138/'Population 2016'!AI$5","v":0},{"$f":"'Population 2016'!AJ138/'Population 2016'!AJ$5","v":0},{"$f":"'Population 2016'!AK138/'Population 2016'!AK$5","v":0},{"$f":"'Population 2016'!AL138/'Population 2016'!AL$5","v":0},{"$f":"'Population 2016'!AM138/'Population 2016'!AM$5","v":0},{"$f":"'Population 2016'!AN138/'Population 2016'!AN$5","v":0},{"$f":"'Population 2016'!AO138/'Population 2016'!AO$5","v":0},{"$f":"'Population 2016'!AP138/'Population 2016'!AP$5","v":0},{"$f":"'Population 2016'!AQ138/'Population 2016'!AQ$5","v":0},{"$f":"'Population 2016'!AR138/'Population 2016'!AR$5","v":0},{"$f":"'Population 2016'!AS138/'Population 2016'!AS$5","v":0},{"$f":"'Population 2016'!AT138/'Population 2016'!AT$5","v":0},{"$f":"'Population 2016'!AU138/'Population 2016'!AU$5","v":0},{"$f":"'Population 2016'!AV138/'Population 2016'!AV$5","v":0},{"$f":"'Population 2016'!AW138/'Population 2016'!AW$5","v":0},{"$f":"'Population 2016'!AX138/'Population 2016'!AX$5","v":0},{"$f":"'Population 2016'!AY138/'Population 2016'!AY$5","v":0},{"$f":"'Population 2016'!AZ138/'Population 2016'!AZ$5","v":0},{"$f":"'Population 2016'!BA138/'Population 2016'!BA$5","v":0},{"$f":"'Population 2016'!BB138/'Population 2016'!BB$5","v":0},{"$f":"'Population 2016'!BC138/'Population 2016'!BC$5","v":0},136]
[null,"Female 16-19",{"$f":"'Population 2016'!C139/'Population 2016'!C$5","v":3.5062074182353451E-3},{"$f":"'Population 2016'!D139/'Population 2016'!D$5","v":4.2521248398423367E-3},{"$f":"'Population 2016'!E139/'Population 2016'!E$5","v":4.9362691555838905E-3},{"$f":"'Population 2016'!F139/'Population 2016'!F$5","v":8.0659284058717494E-3},{"$f":"'Population 2016'!G139/'Population 2016'!G$5","v":1.0298814486006605E-2},{"$f":"'Population 2016'!H139/'Population 2016'!H$5","v":4.3545505539649759E-3},{"$f":"'Population 2016'!I139/'Population 2016'!I$5","v":8.1442090277196212E-3},{"$f":"'Population 2016'!J139/'Population 2016'!J$5","v":4.3206753854191718E-3},{"$f":"'Population 2016'!K139/'Population 2016'!K$5","v":4.1345744932192981E-3},{"$f":"'Population 2016'!L139/'Population 2016'!L$5","v":8.4825187044302898E-3},{"$f":"'Population 2016'!M139/'Population 2016'!M$5","v":8.4825187044302898E-3},{"$f":"'Population 2016'!N139/'Population 2016'!N$5","v":3.8257207384605491E-3},{"$f":"'Population 2016'!O139/'Population 2016'!O$5","v":4.1311261033673136E-3},{"$f":"'Population 2016'!P139/'Population 2016'!P$5","v":1.8483038431195763E-3},{"$f":"'Population 2016'!Q139/'Population 2016'!Q$5","v":5.3348374284673504E-3},{"$f":"'Population 2016'!R139/'Population 2016'!R$5","v":3.0739341033693512E-3},{"$f":"'Population 2016'!S139/'Population 2016'!S$5","v":4.9534751117003345E-3},{"$f":"'Population 2016'!T139/'Population 2016'!T$5","v":3.3410422376607121E-3},{"$f":"'Population 2016'!U139/'Population 2016'!U$5","v":1.5889877395653521E-2},{"$f":"'Population 2016'!V139/'Population 2016'!V$5","v":4.5641538379343769E-3},{"$f":"'Population 2016'!W139/'Population 2016'!W$5","v":5.2719654331640289E-3},{"$f":"'Population 2016'!X139/'Population 2016'!X$5","v":5.2719654331640289E-3},{"$f":"'Population 2016'!Y139/'Population 2016'!Y$5","v":4.4474650641484238E-3},{"$f":"'Population 2016'!Z139/'Population 2016'!Z$5","v":4.5800965188556343E-3},{"$f":"'Population 2016'!AA139/'Population 2016'!AA$5","v":4.4234588152598031E-3},{"$f":"'Population 2016'!AB139/'Population 2016'!AB$5","v":4.726569296746262E-3},{"$f":"'Population 2016'!AC139/'Population 2016'!AC$5","v":4.0823629920917794E-3},{"$f":"'Population 2016'!AD139/'Population 2016'!AD$5","v":8.2027615467639287E-3},{"$f":"'Population 2016'!AE139/'Population 2016'!AE$5","v":7.4076735900779267E-3},{"$f":"'Population 2016'!AF139/'Population 2016'!AF$5","v":4.1623309053069723E-3},{"$f":"'Population 2016'!AG139/'Population 2016'!AG$5","v":7.4076735900779267E-3},{"$f":"'Population 2016'!AH139/'Population 2016'!AH$5","v":5.036084820226076E-3},{"$f":"'Population 2016'!AI139/'Population 2016'!AI$5","v":4.4035458045323297E-3},{"$f":"'Population 2016'!AJ139/'Population 2016'!AJ$5","v":6.6642500627387561E-3},{"$f":"'Population 2016'!AK139/'Population 2016'!AK$5","v":7.1659354060068141E-3},{"$f":"'Population 2016'!AL139/'Population 2016'!AL$5","v":3.6093719515439601E-3},{"$f":"'Population 2016'!AM139/'Population 2016'!AM$5","v":5.074413870788979E-3},{"$f":"'Population 2016'!AN139/'Population 2016'!AN$5","v":6.7088469510199625E-3},{"$f":"'Population 2016'!AO139/'Population 2016'!AO$5","v":6.7088469510199625E-3},{"$f":"'Population 2016'!AP139/'Population 2016'!AP$5","v":5.2391294009479575E-3},{"$f":"'Population 2016'!AQ139/'Population 2016'!AQ$5","v":4.5349920534882449E-3},{"$f":"'Population 2016'!AR139/'Population 2016'!AR$5","v":5.0935854996777526E-3},{"$f":"'Population 2016'!AS139/'Population 2016'!AS$5","v":8.1442090277196212E-3},{"$f":"'Population 2016'!AT139/'Population 2016'!AT$5","v":7.8557494595877051E-3},{"$f":"'Population 2016'!AU139/'Population 2016'!AU$5","v":7.8557494595877051E-3},{"$f":"'Population 2016'!AV139/'Population 2016'!AV$5","v":5.4798859676908462E-3},{"$f":"'Population 2016'!AW139/'Population 2016'!AW$5","v":4.995728842516322E-3},{"$f":"'Population 2016'!AX139/'Population 2016'!AX$5","v":4.4213297213028862E-3},{"$f":"'Population 2016'!AY139/'Population 2016'!AY$5","v":5.405281356139653E-3},{"$f":"'Population 2016'!AZ139/'Population 2016'!AZ$5","v":5.5226052890451072E-3},{"$f":"'Population 2016'!BA139/'Population 2016'!BA$5","v":3.3470092852515656E-3},{"$f":"'Population 2016'!BB139/'Population 2016'!BB$5","v":5.8899484197951985E-3},{"$f":"'Population 2016'!BC139/'Population 2016'!BC$5","v":1.5889877395653521E-2},137]
[null,"Female 20-24",{"$f":"'Population 2016'!C140/'Population 2016'!C$5","v":1.0462400269865528E-2},{"$f":"'Population 2016'!D140/'Population 2016'!D$5","v":8.2303923006954022E-3},{"$f":"'Population 2016'!E140/'Population 2016'!E$5","v":6.1832279356269252E-3},{"$f":"'Population 2016'!F140/'Population 2016'!F$5","v":9.188771568374967E-3},{"$f":"'Population 2016'!G140/'Population 2016'!G$5","v":9.1890867752936721E-3},{"$f":"'Population 2016'!H140/'Population 2016'!H$5","v":4.9803348107894281E-3},{"$f":"'Population 2016'!I140/'Population 2016'!I$5","v":9.8819194372330634E-3},{"$f":"'Population 2016'!J140/'Population 2016'!J$5","v":7.5300830133600925E-3},{"$f":"'Population 2016'!K140/'Population 2016'!K$5","v":6.0482918300808017E-3},{"$f":"'Population 2016'!L140/'Population 2016'!L$5","v":9.9915810207615204E-3},{"$f":"'Population 2016'!M140/'Population 2016'!M$5","v":9.9915810207615204E-3},{"$f":"'Population 2016'!N140/'Population 2016'!N$5","v":6.8798675464752735E-3},{"$f":"'Population 2016'!O140/'Population 2016'!O$5","v":4.9137615042450537E-3},{"$f":"'Population 2016'!P140/'Population 2016'!P$5","v":2.4343514031331002E-3},{"$f":"'Population 2016'!Q140/'Population 2016'!Q$5","v":7.367716008037508E-3},{"$f":"'Population 2016'!R140/'Population 2016'!R$5","v":3.4332251024644703E-3},{"$f":"'Population 2016'!S140/'Population 2016'!S$5","v":8.8080413648712816E-3},{"$f":"'Population 2016'!T140/'Population 2016'!T$5","v":1.0648990474772338E-2},{"$f":"'Population 2016'!U140/'Population 2016'!U$5","v":1.6155446377196476E-2},{"$f":"'Population 2016'!V140/'Population 2016'!V$5","v":5.9532441364361435E-3},{"$f":"'Population 2016'!W140/'Population 2016'!W$5","v":7.3506821197680729E-3},{"$f":"'Population 2016'!X140/'Population 2016'!X$5","v":7.3506821197680729E-3},{"$f":"'Population 2016'!Y140/'Population 2016'!Y$5","v":6.7089553425223767E-3},{"$f":"'Population 2016'!Z140/'Population 2016'!Z$5","v":1.0222945780252157E-2},{"$f":"'Population 2016'!AA140/'Population 2016'!AA$5","v":7.1188586971325917E-3},{"$f":"'Population 2016'!AB140/'Population 2016'!AB$5","v":8.3027133250770189E-3},{"$f":"'Population 2016'!AC140/'Population 2016'!AC$5","v":7.5917264661651022E-3},{"$f":"'Population 2016'!AD140/'Population 2016'!AD$5","v":8.667981688935204E-3},{"$f":"'Population 2016'!AE140/'Population 2016'!AE$5","v":8.470312836887442E-3},{"$f":"'Population 2016'!AF140/'Population 2016'!AF$5","v":4.8108099956265362E-3},{"$f":"'Population 2016'!AG140/'Population 2016'!AG$5","v":8.470312836887442E-3},{"$f":"'Population 2016'!AH140/'Population 2016'!AH$5","v":6.2695633597429018E-3},{"$f":"'Population 2016'!AI140/'Population 2016'!AI$5","v":9.2773864730072621E-3},{"$f":"'Population 2016'!AJ140/'Population 2016'!AJ$5","v":7.1940440007807489E-3},{"$f":"'Population 2016'!AK140/'Population 2016'!AK$5","v":8.6745533862187755E-3},{"$f":"'Population 2016'!AL140/'Population 2016'!AL$5","v":4.2124119827601494E-3},{"$f":"'Population 2016'!AM140/'Population 2016'!AM$5","v":6.1972320720342202E-3},{"$f":"'Population 2016'!AN140/'Population 2016'!AN$5","v":9.2178466237591364E-3},{"$f":"'Population 2016'!AO140/'Population 2016'!AO$5","v":9.2178466237591364E-3},{"$f":"'Population 2016'!AP140/'Population 2016'!AP$5","v":7.0859026996179632E-3},{"$f":"'Population 2016'!AQ140/'Population 2016'!AQ$5","v":5.9735846988546067E-3},{"$f":"'Population 2016'!AR140/'Population 2016'!AR$5","v":7.7771636543802628E-3},{"$f":"'Population 2016'!AS140/'Population 2016'!AS$5","v":9.8819194372330634E-3},{"$f":"'Population 2016'!AT140/'Population 2016'!AT$5","v":9.1211050772394154E-3},{"$f":"'Population 2016'!AU140/'Population 2016'!AU$5","v":9.1211050772394154E-3},{"$f":"'Population 2016'!AV140/'Population 2016'!AV$5","v":5.9655791363108441E-3},{"$f":"'Population 2016'!AW140/'Population 2016'!AW$5","v":6.3457196900359994E-3},{"$f":"'Population 2016'!AX140/'Population 2016'!AX$5","v":8.3315230586401209E-3},{"$f":"'Population 2016'!AY140/'Population 2016'!AY$5","v":7.4829411584712829E-3},{"$f":"'Population 2016'!AZ140/'Population 2016'!AZ$5","v":7.5993349862797776E-3},{"$f":"'Population 2016'!BA140/'Population 2016'!BA$5","v":5.3174260418915997E-3},{"$f":"'Population 2016'!BB140/'Population 2016'!BB$5","v":7.3607092796033778E-3},{"$f":"'Population 2016'!BC140/'Population 2016'!BC$5","v":1.6155446377196476E-2},138]
[null,"Female 25-29",{"$f":"'Population 2016'!C141/'Population 2016'!C$5","v":1.0227290151441583E-2},{"$f":"'Population 2016'!D141/'Population 2016'!D$5","v":8.3599855246813959E-3},{"$f":"'Population 2016'!E141/'Population 2016'!E$5","v":6.6473216169211369E-3},{"$f":"'Population 2016'!F141/'Population 2016'!F$5","v":8.3543651815606492E-3},{"$f":"'Population 2016'!G141/'Population 2016'!G$5","v":9.852216748768473E-3},{"$f":"'Population 2016'!H141/'Population 2016'!H$5","v":5.0873341914899825E-3},{"$f":"'Population 2016'!I141/'Population 2016'!I$5","v":8.0499958127460015E-3},{"$f":"'Population 2016'!J141/'Population 2016'!J$5","v":6.9910352205534779E-3},{"$f":"'Population 2016'!K141/'Population 2016'!K$5","v":6.2609270897320797E-3},{"$f":"'Population 2016'!L141/'Population 2016'!L$5","v":1.0396645116197799E-2},{"$f":"'Population 2016'!M141/'Population 2016'!M$5","v":1.0396645116197799E-2},{"$f":"'Population 2016'!N141/'Population 2016'!N$5","v":7.6916276191318182E-3},{"$f":"'Population 2016'!O141/'Population 2016'!O$5","v":5.3001258160707736E-3},{"$f":"'Population 2016'!P141/'Population 2016'!P$5","v":2.2540290769750928E-3},{"$f":"'Population 2016'!Q141/'Population 2016'!Q$5","v":6.9446892515951635E-3},{"$f":"'Population 2016'!R141/'Population 2016'!R$5","v":3.5396816947889497E-3},{"$f":"'Population 2016'!S141/'Population 2016'!S$5","v":9.8548734180567057E-3},{"$f":"'Population 2016'!T141/'Population 2016'!T$5","v":1.3108239531323434E-2},{"$f":"'Population 2016'!U141/'Population 2016'!U$5","v":1.8279998229540122E-2},{"$f":"'Population 2016'!V141/'Population 2016'!V$5","v":6.0219354149334842E-3},{"$f":"'Population 2016'!W141/'Population 2016'!W$5","v":8.1154929761601269E-3},{"$f":"'Population 2016'!X141/'Population 2016'!X$5","v":8.1154929761601269E-3},{"$f":"'Population 2016'!Y141/'Population 2016'!Y$5","v":6.4863833643344299E-3},{"$f":"'Population 2016'!Z141/'Population 2016'!Z$5","v":9.6344633872969109E-3},{"$f":"'Population 2016'!AA141/'Population 2016'!AA$5","v":7.0397971773044276E-3},{"$f":"'Population 2016'!AB141/'Population 2016'!AB$5","v":8.4930861897792292E-3},{"$f":"'Population 2016'!AC141/'Population 2016'!AC$5","v":7.2566148346886045E-3},{"$f":"'Population 2016'!AD141/'Population 2016'!AD$5","v":9.3378986936618405E-3},{"$f":"'Population 2016'!AE141/'Population 2016'!AE$5","v":9.142804340906991E-3},{"$f":"'Population 2016'!AF141/'Population 2016'!AF$5","v":4.6298390867001464E-3},{"$f":"'Population 2016'!AG141/'Population 2016'!AG$5","v":9.142804340906991E-3},{"$f":"'Population 2016'!AH141/'Population 2016'!AH$5","v":6.6503812823346924E-3},{"$f":"'Population 2016'!AI141/'Population 2016'!AI$5","v":1.0818149006912241E-2},{"$f":"'Population 2016'!AJ141/'Population 2016'!AJ$5","v":8.1002704737473154E-3},{"$f":"'Population 2016'!AK141/'Population 2016'!AK$5","v":9.1774260462894278E-3},{"$f":"'Population 2016'!AL141/'Population 2016'!AL$5","v":3.8133413738670827E-3},{"$f":"'Population 2016'!AM141/'Population 2016'!AM$5","v":6.8310810566081471E-3},{"$f":"'Population 2016'!AN141/'Population 2016'!AN$5","v":1.0035998690956692E-2},{"$f":"'Population 2016'!AO141/'Population 2016'!AO$5","v":1.0035998690956692E-2},{"$f":"'Population 2016'!AP141/'Population 2016'!AP$5","v":7.3553889320419133E-3},{"$f":"'Population 2016'!AQ141/'Population 2016'!AQ$5","v":6.0489395517071302E-3},{"$f":"'Population 2016'!AR141/'Population 2016'!AR$5","v":8.1162310586187832E-3},{"$f":"'Population 2016'!AS141/'Population 2016'!AS$5","v":8.0499958127460015E-3},{"$f":"'Population 2016'!AT141/'Population 2016'!AT$5","v":1.107186165445247E-2},{"$f":"'Population 2016'!AU141/'Population 2016'!AU$5","v":1.107186165445247E-2},{"$f":"'Population 2016'!AV141/'Population 2016'!AV$5","v":6.3773624749234505E-3},{"$f":"'Population 2016'!AW141/'Population 2016'!AW$5","v":6.4601256940630914E-3},{"$f":"'Population 2016'!AX141/'Population 2016'!AX$5","v":7.3859207483036662E-3},{"$f":"'Population 2016'!AY141/'Population 2016'!AY$5","v":7.9235641504237942E-3},{"$f":"'Population 2016'!AZ141/'Population 2016'!AZ$5","v":7.7546582600341715E-3},{"$f":"'Population 2016'!BA141/'Population 2016'!BA$5","v":5.1689699848844741E-3},{"$f":"'Population 2016'!BB141/'Population 2016'!BB$5","v":7.6438134826650461E-3},{"$f":"'Population 2016'!BC141/'Population 2016'!BC$5","v":1.8279998229540122E-2},139]
[null,"Female 30-34",{"$f":"'Population 2016'!C142/'Population 2016'!C$5","v":8.0755214589093953E-3},{"$f":"'Population 2016'!D142/'Population 2016'!D$5","v":7.6337744393259197E-3},{"$f":"'Population 2016'!E142/'Population 2016'!E$5","v":7.2286106722795436E-3},{"$f":"'Population 2016'!F142/'Population 2016'!F$5","v":1.0311614730878186E-2},{"$f":"'Population 2016'!G142/'Population 2016'!G$5","v":1.1164943430953284E-2},{"$f":"'Population 2016'!H142/'Population 2016'!H$5","v":5.4602108212040345E-3},{"$f":"'Population 2016'!I142/'Population 2016'!I$5","v":9.9237919772213381E-3},{"$f":"'Population 2016'!J142/'Population 2016'!J$5","v":5.7221996467163696E-3},{"$f":"'Population 2016'!K142/'Population 2016'!K$5","v":6.4735623493833577E-3},{"$f":"'Population 2016'!L142/'Population 2016'!L$5","v":9.9598112877861255E-3},{"$f":"'Population 2016'!M142/'Population 2016'!M$5","v":9.9598112877861255E-3},{"$f":"'Population 2016'!N142/'Population 2016'!N$5","v":4.9509327203607111E-3},{"$f":"'Population 2016'!O142/'Population 2016'!O$5","v":5.4982613605967842E-3},{"$f":"'Population 2016'!P142/'Population 2016'!P$5","v":1.8144934069649499E-3},{"$f":"'Population 2016'!Q142/'Population 2016'!Q$5","v":7.1327011433473166E-3},{"$f":"'Population 2016'!R142/'Population 2016'!R$5","v":3.7392878053973491E-3},{"$f":"'Population 2016'!S142/'Population 2016'!S$5","v":8.9060163715353486E-3},{"$f":"'Population 2016'!T142/'Population 2016'!T$5","v":1.0044066392744634E-2},{"$f":"'Population 2016'!U142/'Population 2016'!U$5","v":2.0050458106493162E-2},{"$f":"'Population 2016'!V142/'Population 2016'!V$5","v":7.006510406728692E-3},{"$f":"'Population 2016'!W142/'Population 2016'!W$5","v":7.752698082743383E-3},{"$f":"'Population 2016'!X142/'Population 2016'!X$5","v":7.752698082743383E-3},{"$f":"'Population 2016'!Y142/'Population 2016'!Y$5","v":6.390995373682453E-3},{"$f":"'Population 2016'!Z142/'Population 2016'!Z$5","v":7.6502711084182017E-3},{"$f":"'Population 2016'!AA142/'Population 2016'!AA$5","v":6.6391745180070915E-3},{"$f":"'Population 2016'!AB142/'Population 2016'!AB$5","v":8.1225755606276172E-3},{"$f":"'Population 2016'!AC142/'Population 2016'!AC$5","v":6.2264568564460374E-3},{"$f":"'Population 2016'!AD142/'Population 2016'!AD$5","v":1.0212512560943838E-2},{"$f":"'Population 2016'!AE142/'Population 2016'!AE$5","v":9.8512305054466679E-3},{"$f":"'Population 2016'!AF142/'Population 2016'!AF$5","v":4.0567645417665778E-3},{"$f":"'Population 2016'!AG142/'Population 2016'!AG$5","v":9.8512305054466679E-3},{"$f":"'Population 2016'!AH142/'Population 2016'!AH$5","v":7.3804371046691996E-3},{"$f":"'Population 2016'!AI142/'Population 2016'!AI$5","v":9.2555122932890012E-3},{"$f":"'Population 2016'!AJ142/'Population 2016'!AJ$5","v":8.5742966288375206E-3},{"$f":"'Population 2016'!AK142/'Population 2016'!AK$5","v":1.0635756760494323E-2},{"$f":"'Population 2016'!AL142/'Population 2016'!AL$5","v":4.1237296252283574E-3},{"$f":"'Population 2016'!AM142/'Population 2016'!AM$5","v":7.7981535073580813E-3},{"$f":"'Population 2016'!AN142/'Population 2016'!AN$5","v":1.1072324642740263E-2},{"$f":"'Population 2016'!AO142/'Population 2016'!AO$5","v":1.1072324642740263E-2},{"$f":"'Population 2016'!AP142/'Population 2016'!AP$5","v":7.8705831999112286E-3},{"$f":"'Population 2016'!AQ142/'Population 2016'!AQ$5","v":6.6654792568641421E-3},{"$f":"'Population 2016'!AR142/'Population 2016'!AR$5","v":7.7515442381598755E-3},{"$f":"'Population 2016'!AS142/'Population 2016'!AS$5","v":9.9237919772213381E-3},{"$f":"'Population 2016'!AT142/'Population 2016'!AT$5","v":9.9119523382717352E-3},{"$f":"'Population 2016'!AU142/'Population 2016'!AU$5","v":9.9119523382717352E-3},{"$f":"'Population 2016'!AV142/'Population 2016'!AV$5","v":7.0108753035582304E-3},{"$f":"'Population 2016'!AW142/'Population 2016'!AW$5","v":6.9406309109768744E-3},{"$f":"'Population 2016'!AX142/'Population 2016'!AX$5","v":5.3158183932427768E-3},{"$f":"'Population 2016'!AY142/'Population 2016'!AY$5","v":7.6221657844007225E-3},{"$f":"'Population 2016'!AZ142/'Population 2016'!AZ$5","v":7.5072915647956921E-3},{"$f":"'Population 2016'!BA142/'Population 2016'!BA$5","v":5.1824659900669406E-3},{"$f":"'Population 2016'!BB142/'Population 2016'!BB$5","v":8.5000310724125307E-3},{"$f":"'Population 2016'!BC142/'Population 2016'!BC$5","v":2.0050458106493162E-2},140]
[null,"Female 35-39",{"$f":"'Population 2016'!C143/'Population 2016'!C$5","v":5.0395342775219395E-3},{"$f":"'Population 2016'!D143/'Population 2016'!D$5","v":6.0811009066635367E-3},{"$f":"'Population 2016'!E143/'Population 2016'!E$5","v":7.0364102588142642E-3},{"$f":"'Population 2016'!F143/'Population 2016'!F$5","v":1.106361061035282E-2},{"$f":"'Population 2016'!G143/'Population 2016'!G$5","v":1.1422075461484328E-2},{"$f":"'Population 2016'!H143/'Population 2016'!H$5","v":5.5509981745257174E-3},{"$f":"'Population 2016'!I143/'Population 2016'!I$5","v":9.4317896323590986E-3},{"$f":"'Population 2016'!J143/'Population 2016'!J$5","v":5.8051300763789261E-3},{"$f":"'Population 2016'!K143/'Population 2016'!K$5","v":5.5993951708169917E-3},{"$f":"'Population 2016'!L143/'Population 2016'!L$5","v":9.7930201896653055E-3},{"$f":"'Population 2016'!M143/'Population 2016'!M$5","v":9.7930201896653055E-3},{"$f":"'Population 2016'!N143/'Population 2016'!N$5","v":3.8659068806712695E-3},{"$f":"'Population 2016'!O143/'Population 2016'!O$5","v":5.3991935883337793E-3},{"$f":"'Population 2016'!P143/'Population 2016'!P$5","v":2.1976783500507156E-3},{"$f":"'Population 2016'!Q143/'Population 2016'!Q$5","v":7.2737100621614315E-3},{"$f":"'Population 2016'!R143/'Population 2016'!R$5","v":3.9255868419651885E-3},{"$f":"'Population 2016'!S143/'Population 2016'!S$5","v":7.6994232714472583E-3},{"$f":"'Population 2016'!T143/'Population 2016'!T$5","v":6.8589084377602919E-3},{"$f":"'Population 2016'!U143/'Population 2016'!U$5","v":2.4211038817332803E-2},{"$f":"'Population 2016'!V143/'Population 2016'!V$5","v":7.1286282351684079E-3},{"$f":"'Population 2016'!W143/'Population 2016'!W$5","v":7.994561345021212E-3},{"$f":"'Population 2016'!X143/'Population 2016'!X$5","v":7.994561345021212E-3},{"$f":"'Population 2016'!Y143/'Population 2016'!Y$5","v":6.4943323635554282E-3},{"$f":"'Population 2016'!Z143/'Population 2016'!Z$5","v":5.7996488463615721E-3},{"$f":"'Population 2016'!AA143/'Population 2016'!AA$5","v":6.1196273877077278E-3},{"$f":"'Population 2016'!AB143/'Population 2016'!AB$5","v":6.5422760815942189E-3},{"$f":"'Population 2016'!AC143/'Population 2016'!AC$5","v":5.3411002004464022E-3},{"$f":"'Population 2016'!AD143/'Population 2016'!AD$5","v":1.0789385537236219E-2},{"$f":"'Population 2016'!AE143/'Population 2016'!AE$5","v":1.054938962412345E-2},{"$f":"'Population 2016'!AF143/'Population 2016'!AF$5","v":5.625179085795292E-3},{"$f":"'Population 2016'!AG143/'Population 2016'!AG$5","v":1.054938962412345E-2},{"$f":"'Population 2016'!AH143/'Population 2016'!AH$5","v":7.5179030864828212E-3},{"$f":"'Population 2016'!AI143/'Population 2016'!AI$5","v":7.3497243853355501E-3},{"$f":"'Population 2016'!AJ143/'Population 2016'!AJ$5","v":8.630064411789309E-3},{"$f":"'Population 2016'!AK143/'Population 2016'!AK$5","v":8.913417899752335E-3},{"$f":"'Population 2016'!AL143/'Population 2016'!AL$5","v":4.4252496408364516E-3},{"$f":"'Population 2016'!AM143/'Population 2016'!AM$5","v":8.0335831301998253E-3},{"$f":"'Population 2016'!AN143/'Population 2016'!AN$5","v":7.745172902803534E-3},{"$f":"'Population 2016'!AO143/'Population 2016'!AO$5","v":7.745172902803534E-3},{"$f":"'Population 2016'!AP143/'Population 2016'!AP$5","v":7.2523500784680501E-3},{"$f":"'Population 2016'!AQ143/'Population 2016'!AQ$5","v":6.3709102866224589E-3},{"$f":"'Population 2016'!AR143/'Population 2016'!AR$5","v":7.1193016013471801E-3},{"$f":"'Population 2016'!AS143/'Population 2016'!AS$5","v":9.4317896323590986E-3},{"$f":"'Population 2016'!AT143/'Population 2016'!AT$5","v":1.001739863974271E-2},{"$f":"'Population 2016'!AU143/'Population 2016'!AU$5","v":1.001739863974271E-2},{"$f":"'Population 2016'!AV143/'Population 2016'!AV$5","v":7.0531094921338824E-3},{"$f":"'Population 2016'!AW143/'Population 2016'!AW$5","v":6.9749527121850024E-3},{"$f":"'Population 2016'!AX143/'Population 2016'!AX$5","v":5.9164036444024175E-3},{"$f":"'Population 2016'!AY143/'Population 2016'!AY$5","v":7.5211896820782716E-3},{"$f":"'Population 2016'!AZ143/'Population 2016'!AZ$5","v":7.1046015958028197E-3},{"$f":"'Population 2016'!BA143/'Population 2016'!BA$5","v":5.0610019434247462E-3},{"$f":"'Population 2016'!BB143/'Population 2016'!BB$5","v":8.2169268693508633E-3},{"$f":"'Population 2016'!BC143/'Population 2016'!BC$5","v":2.4211038817332803E-2},141]
[null,"Female 40-44",{"$f":"'Population 2016'!C144/'Population 2016'!C$5","v":4.4415368024001674E-3},{"$f":"'Population 2016'!D144/'Population 2016'!D$5","v":6.0884363721721776E-3},{"$f":"'Population 2016'!E144/'Population 2016'!E$5","v":7.5989480543224002E-3},{"$f":"'Population 2016'!F144/'Population 2016'!F$5","v":1.2856039144990986E-2},{"$f":"'Population 2016'!G144/'Population 2016'!G$5","v":1.4182861473501868E-2},{"$f":"'Population 2016'!H144/'Population 2016'!H$5","v":6.4556293022667655E-3},{"$f":"'Population 2016'!I144/'Population 2016'!I$5","v":1.2572230131479775E-2},{"$f":"'Population 2016'!J144/'Population 2016'!J$5","v":6.4105222129155854E-3},{"$f":"'Population 2016'!K144/'Population 2016'!K$5","v":6.9224590086471669E-3},{"$f":"'Population 2016'!L144/'Population 2016'!L$5","v":1.2453735326354583E-2},{"$f":"'Population 2016'!M144/'Population 2016'!M$5","v":1.2453735326354583E-2},{"$f":"'Population 2016'!N144/'Population 2016'!N$5","v":3.3917104025847728E-3},{"$f":"'Population 2016'!O144/'Population 2016'!O$5","v":6.5186594149057369E-3},{"$f":"'Population 2016'!P144/'Population 2016'!P$5","v":2.4005409669784739E-3},{"$f":"'Population 2016'!Q144/'Population 2016'!Q$5","v":8.0257576291700456E-3},{"$f":"'Population 2016'!R144/'Population 2016'!R$5","v":4.1385000266141482E-3},{"$f":"'Population 2016'!S144/'Population 2016'!S$5","v":7.6146881305486072E-3},{"$f":"'Population 2016'!T144/'Population 2016'!T$5","v":5.4606031558424037E-3},{"$f":"'Population 2016'!U144/'Population 2016'!U$5","v":2.5406099234276103E-2},{"$f":"'Population 2016'!V144/'Population 2016'!V$5","v":7.632364277482236E-3},{"$f":"'Population 2016'!W144/'Population 2016'!W$5","v":7.9553402754626457E-3},{"$f":"'Population 2016'!X144/'Population 2016'!X$5","v":7.9553402754626457E-3},{"$f":"'Population 2016'!Y144/'Population 2016'!Y$5","v":7.0467878094147944E-3},{"$f":"'Population 2016'!Z144/'Population 2016'!Z$5","v":4.8549797418807822E-3},{"$f":"'Population 2016'!AA144/'Population 2016'!AA$5","v":6.0286069825274038E-3},{"$f":"'Population 2016'!AB144/'Population 2016'!AB$5","v":6.8349999488244986E-3},{"$f":"'Population 2016'!AC144/'Population 2016'!AC$5","v":5.0452917850072714E-3},{"$f":"'Population 2016'!AD144/'Population 2016'!AD$5","v":1.2095723696453162E-2},{"$f":"'Population 2016'!AE144/'Population 2016'!AE$5","v":1.1304017495046151E-2},{"$f":"'Population 2016'!AF144/'Population 2016'!AF$5","v":6.2585772670376572E-3},{"$f":"'Population 2016'!AG144/'Population 2016'!AG$5","v":1.1304017495046151E-2},{"$f":"'Population 2016'!AH144/'Population 2016'!AH$5","v":7.7946926985129521E-3},{"$f":"'Population 2016'!AI144/'Population 2016'!AI$5","v":6.8247440720972967E-3},{"$f":"'Population 2016'!AJ144/'Population 2016'!AJ$5","v":9.1877422413071969E-3},{"$f":"'Population 2016'!AK144/'Population 2016'!AK$5","v":1.0673472209999623E-2},{"$f":"'Population 2016'!AL144/'Population 2016'!AL$5","v":5.1967861513630481E-3},{"$f":"'Population 2016'!AM144/'Population 2016'!AM$5","v":8.3016107008196567E-3},{"$f":"'Population 2016'!AN144/'Population 2016'!AN$5","v":1.0526889931275226E-2},{"$f":"'Population 2016'!AO144/'Population 2016'!AO$5","v":1.0526889931275226E-2},{"$f":"'Population 2016'!AP144/'Population 2016'!AP$5","v":8.1955518919518723E-3},{"$f":"'Population 2016'!AQ144/'Population 2016'!AQ$5","v":7.0354030799583489E-3},{"$f":"'Population 2016'!AR144/'Population 2016'!AR$5","v":7.4164868295036766E-3},{"$f":"'Population 2016'!AS144/'Population 2016'!AS$5","v":1.2572230131479775E-2},{"$f":"'Population 2016'!AT144/'Population 2016'!AT$5","v":1.0439183845626615E-2},{"$f":"'Population 2016'!AU144/'Population 2016'!AU$5","v":1.0439183845626615E-2},{"$f":"'Population 2016'!AV144/'Population 2016'!AV$5","v":7.8872347165030096E-3},{"$f":"'Population 2016'!AW144/'Population 2016'!AW$5","v":7.2609677222527308E-3},{"$f":"'Population 2016'!AX144/'Population 2016'!AX$5","v":6.1336366075878199E-3},{"$f":"'Population 2016'!AY144/'Population 2016'!AY$5","v":7.8608365717083312E-3},{"$f":"'Population 2016'!AZ144/'Population 2016'!AZ$5","v":7.7776691154051924E-3},{"$f":"'Population 2016'!BA144/'Population 2016'!BA$5","v":5.4523860937162596E-3},{"$f":"'Population 2016'!BB144/'Population 2016'!BB$5","v":8.9971896729110715E-3},{"$f":"'Population 2016'!BC144/'Population 2016'!BC$5","v":2.5406099234276103E-2},142]
[null,"Female 45-49",{"$f":"'Population 2016'!C145/'Population 2016'!C$5","v":4.5744251302050057E-3},{"$f":"'Population 2016'!D145/'Population 2016'!D$5","v":7.2816720949111426E-3},{"$f":"'Population 2016'!E145/'Population 2016'!E$5","v":9.7647185670287229E-3},{"$f":"'Population 2016'!F145/'Population 2016'!F$5","v":1.4576358485706927E-2},{"$f":"'Population 2016'!G145/'Population 2016'!G$5","v":1.7512044605640664E-2},{"$f":"'Population 2016'!H145/'Population 2016'!H$5","v":8.2486795303699911E-3},{"$f":"'Population 2016'!I145/'Population 2016'!I$5","v":1.622560924545683E-2},{"$f":"'Population 2016'!J145/'Population 2016'!J$5","v":7.7954603882802714E-3},{"$f":"'Population 2016'!K145/'Population 2016'!K$5","v":9.2850730047724806E-3},{"$f":"'Population 2016'!L145/'Population 2016'!L$5","v":1.717154067320064E-2},{"$f":"'Population 2016'!M145/'Population 2016'!M$5","v":1.717154067320064E-2},{"$f":"'Population 2016'!N145/'Population 2016'!N$5","v":4.3079544449891897E-3},{"$f":"'Population 2016'!O145/'Population 2016'!O$5","v":8.5990826324288446E-3},{"$f":"'Population 2016'!P145/'Population 2016'!P$5","v":3.4937450693113942E-3},{"$f":"'Population 2016'!Q145/'Population 2016'!Q$5","v":1.1069200126908027E-2},{"$f":"'Population 2016'!R145/'Population 2016'!R$5","v":4.7506254324799066E-3},{"$f":"'Population 2016'!S145/'Population 2016'!S$5","v":8.9227868681715384E-3},{"$f":"'Population 2016'!T145/'Population 2016'!T$5","v":4.8719654914077511E-3},{"$f":"'Population 2016'!U145/'Population 2016'!U$5","v":3.1381401318992606E-2},{"$f":"'Population 2016'!V145/'Population 2016'!V$5","v":8.6169392692774446E-3},{"$f":"'Population 2016'!W145/'Population 2016'!W$5","v":9.8967832186117044E-3},{"$f":"'Population 2016'!X145/'Population 2016'!X$5","v":9.8967832186117044E-3},{"$f":"'Population 2016'!Y145/'Population 2016'!Y$5","v":8.2232396941225097E-3},{"$f":"'Population 2016'!Z145/'Population 2016'!Z$5","v":5.2924699419067221E-3},{"$f":"'Population 2016'!AA145/'Population 2016'!AA$5","v":7.2258242827824603E-3},{"$f":"'Population 2016'!AB145/'Population 2016'!AB$5","v":8.1430457611332309E-3},{"$f":"'Population 2016'!AC145/'Population 2016'!AC$5","v":6.0475237939601302E-3},{"$f":"'Population 2016'!AD145/'Population 2016'!AD$5","v":1.5560683315344822E-2},{"$f":"'Population 2016'!AE145/'Population 2016'!AE$5","v":1.4820480703087301E-2},{"$f":"'Population 2016'!AF145/'Population 2016'!AF$5","v":7.374564538750396E-3},{"$f":"'Population 2016'!AG145/'Population 2016'!AG$5","v":1.4820480703087301E-2},{"$f":"'Population 2016'!AH145/'Population 2016'!AH$5","v":9.3421138181176457E-3},{"$f":"'Population 2016'!AI145/'Population 2016'!AI$5","v":7.5616305013561994E-3},{"$f":"'Population 2016'!AJ145/'Population 2016'!AJ$5","v":1.2115550846276106E-2},{"$f":"'Population 2016'!AK145/'Population 2016'!AK$5","v":1.257181650176634E-2},{"$f":"'Population 2016'!AL145/'Population 2016'!AL$5","v":6.5979674003653717E-3},{"$f":"'Population 2016'!AM145/'Population 2016'!AM$5","v":9.0622294823083701E-3},{"$f":"'Population 2016'!AN145/'Population 2016'!AN$5","v":1.4181302498090978E-2},{"$f":"'Population 2016'!AO145/'Population 2016'!AO$5","v":1.4181302498090978E-2},{"$f":"'Population 2016'!AP145/'Population 2016'!AP$5","v":1.0850783887893727E-2},{"$f":"'Population 2016'!AQ145/'Population 2016'!AQ$5","v":9.4330574889022849E-3},{"$f":"'Population 2016'!AR145/'Population 2016'!AR$5","v":9.0198167298352356E-3},{"$f":"'Population 2016'!AS145/'Population 2016'!AS$5","v":1.622560924545683E-2},{"$f":"'Population 2016'!AT145/'Population 2016'!AT$5","v":1.4762482205936628E-2},{"$f":"'Population 2016'!AU145/'Population 2016'!AU$5","v":1.4762482205936628E-2},{"$f":"'Population 2016'!AV145/'Population 2016'!AV$5","v":9.8405659381269137E-3},{"$f":"'Population 2016'!AW145/'Population 2016'!AW$5","v":9.6367990725486612E-3},{"$f":"'Population 2016'!AX145/'Population 2016'!AX$5","v":6.9897900507302864E-3},{"$f":"'Population 2016'!AY145/'Population 2016'!AY$5","v":9.7120651142865878E-3},{"$f":"'Population 2016'!AZ145/'Population 2016'!AZ$5","v":9.5495049789738311E-3},{"$f":"'Population 2016'!BA145/'Population 2016'!BA$5","v":7.827683005830274E-3},{"$f":"'Population 2016'!BB145/'Population 2016'!BB$5","v":1.1227498394592019E-2},{"$f":"'Population 2016'!BC145/'Population 2016'!BC$5","v":3.1381401318992606E-2},143]
[null,"Female 50-54",{"$f":"'Population 2016'!C146/'Population 2016'!C$5","v":5.0906451728314926E-3},{"$f":"'Population 2016'!D146/'Population 2016'!D$5","v":7.5164069911876604E-3},{"$f":"'Population 2016'!E146/'Population 2016'!E$5","v":9.7412794922158829E-3},{"$f":"'Population 2016'!F146/'Population 2016'!F$5","v":1.6358485706927633E-2},{"$f":"'Population 2016'!G146/'Population 2016'!G$5","v":2.1815622800844477E-2},{"$f":"'Population 2016'!H146/'Population 2016'!H$5","v":9.1597954690625875E-3},{"$f":"'Population 2016'!I146/'Population 2016'!I$5","v":1.6675739050330794E-2},{"$f":"'Population 2016'!J146/'Population 2016'!J$5","v":8.2681638373568421E-3},{"$f":"'Population 2016'!K146/'Population 2016'!K$5","v":9.5685866843075174E-3},{"$f":"'Population 2016'!L146/'Population 2016'!L$5","v":1.8585293790605691E-2},{"$f":"'Population 2016'!M146/'Population 2016'!M$5","v":1.8585293790605691E-2},{"$f":"'Population 2016'!N146/'Population 2016'!N$5","v":5.3045707718150474E-3},{"$f":"'Population 2016'!O146/'Population 2016'!O$5","v":9.1736757115542748E-3},{"$f":"'Population 2016'!P146/'Population 2016'!P$5","v":2.9978586723768737E-3},{"$f":"'Population 2016'!Q146/'Population 2016'!Q$5","v":9.9763810060986349E-3},{"$f":"'Population 2016'!R146/'Population 2016'!R$5","v":5.3760579123862248E-3},{"$f":"'Population 2016'!S146/'Population 2016'!S$5","v":9.0675427338734026E-3},{"$f":"'Population 2016'!T146/'Population 2016'!T$5","v":4.8161263453744248E-3},{"$f":"'Population 2016'!U146/'Population 2016'!U$5","v":3.1824016288230866E-2},{"$f":"'Population 2016'!V146/'Population 2016'!V$5","v":9.1283076758687538E-3},{"$f":"'Population 2016'!W146/'Population 2016'!W$5","v":1.0691009877172683E-2},{"$f":"'Population 2016'!X146/'Population 2016'!X$5","v":1.0691009877172683E-2},{"$f":"'Population 2016'!Y146/'Population 2016'!Y$5","v":8.7160776458243914E-3},{"$f":"'Population 2016'!Z146/'Population 2016'!Z$5","v":5.5383162047531569E-3},{"$f":"'Population 2016'!AA146/'Population 2016'!AA$5","v":7.2876118571019504E-3},{"$f":"'Population 2016'!AB146/'Population 2016'!AB$5","v":8.5319795707398949E-3},{"$f":"'Population 2016'!AC146/'Population 2016'!AC$5","v":6.1819821646142805E-3},{"$f":"'Population 2016'!AD146/'Population 2016'!AD$5","v":1.7637426029997395E-2},{"$f":"'Population 2016'!AE146/'Population 2016'!AE$5","v":1.6052526206634565E-2},{"$f":"'Population 2016'!AF146/'Population 2016'!AF$5","v":8.2341763561507488E-3},{"$f":"'Population 2016'!AG146/'Population 2016'!AG$5","v":1.6052526206634565E-2},{"$f":"'Population 2016'!AH146/'Population 2016'!AH$5","v":9.273380827210834E-3},{"$f":"'Population 2016'!AI146/'Population 2016'!AI$5","v":7.3948398810044624E-3},{"$f":"'Population 2016'!AJ146/'Population 2016'!AJ$5","v":1.219920252070379E-2},{"$f":"'Population 2016'!AK146/'Population 2016'!AK$5","v":1.3753567252932376E-2},{"$f":"'Population 2016'!AL146/'Population 2016'!AL$5","v":7.0768521310370517E-3},{"$f":"'Population 2016'!AM146/'Population 2016'!AM$5","v":8.7942019116885369E-3},{"$f":"'Population 2016'!AN146/'Population 2016'!AN$5","v":1.5490345805607068E-2},{"$f":"'Population 2016'!AO146/'Population 2016'!AO$5","v":1.5490345805607068E-2},{"$f":"'Population 2016'!AP146/'Population 2016'!AP$5","v":1.1865320292313301E-2},{"$f":"'Population 2016'!AQ146/'Population 2016'!AQ$5","v":9.1042363128185453E-3},{"$f":"'Population 2016'!AR146/'Population 2016'!AR$5","v":9.4762878936228371E-3},{"$f":"'Population 2016'!AS146/'Population 2016'!AS$5","v":1.6675739050330794E-2},{"$f":"'Population 2016'!AT146/'Population 2016'!AT$5","v":1.4867928507407603E-2},{"$f":"'Population 2016'!AU146/'Population 2016'!AU$5","v":1.4867928507407603E-2},{"$f":"'Population 2016'!AV146/'Population 2016'!AV$5","v":1.162496040544821E-2},{"$f":"'Population 2016'!AW146/'Population 2016'!AW$5","v":9.7778998108487402E-3},{"$f":"'Population 2016'!AX146/'Population 2016'!AX$5","v":7.5648184826916445E-3},{"$f":"'Population 2016'!AY146/'Population 2016'!AY$5","v":1.0734065665065328E-2},{"$f":"'Population 2016'!AZ146/'Population 2016'!AZ$5","v":1.0771956670559336E-2},{"$f":"'Population 2016'!BA146/'Population 2016'!BA$5","v":7.7062189591880804E-3},{"$f":"'Population 2016'!BB146/'Population 2016'!BB$5","v":1.1151543608404743E-2},{"$f":"'Population 2016'!BC146/'Population 2016'!BC$5","v":3.1824016288230866E-2},144]
[null,"Female 55-59",{"$f":"'Population 2016'!C147/'Population 2016'!C$5","v":4.6306471150455147E-3},{"$f":"'Population 2016'!D147/'Population 2016'!D$5","v":6.7681895093062603E-3},{"$f":"'Population 2016'!E147/'Population 2016'!E$5","v":8.7287114603012382E-3},{"$f":"'Population 2016'!F147/'Population 2016'!F$5","v":1.5884625289724438E-2},{"$f":"'Population 2016'!G147/'Population 2016'!G$5","v":2.0123964705245495E-2},{"$f":"'Population 2016'!H147/'Population 2016'!H$5","v":8.1060136894359185E-3},{"$f":"'Population 2016'!I147/'Population 2016'!I$5","v":1.6434971945398207E-2},{"$f":"'Population 2016'!J147/'Population 2016'!J$5","v":7.4471525836975359E-3},{"$f":"'Population 2016'!K147/'Population 2016'!K$5","v":9.1196900250437082E-3},{"$f":"'Population 2016'!L147/'Population 2016'!L$5","v":1.7258907438882976E-2},{"$f":"'Population 2016'!M147/'Population 2016'!M$5","v":1.7258907438882976E-2},{"$f":"'Population 2016'!N147/'Population 2016'!N$5","v":5.1277517460878788E-3},{"$f":"'Population 2016'!O147/'Population 2016'!O$5","v":8.0046759988508139E-3},{"$f":"'Population 2016'!P147/'Population 2016'!P$5","v":3.1443705623802548E-3},{"$f":"'Population 2016'!Q147/'Population 2016'!Q$5","v":9.8236213440500118E-3},{"$f":"'Population 2016'!R147/'Population 2016'!R$5","v":5.2562942460211851E-3},{"$f":"'Population 2016'!S147/'Population 2016'!S$5","v":8.2554976335946582E-3},{"$f":"'Population 2016'!T147/'Population 2016'!T$5","v":4.2367952052786602E-3},{"$f":"'Population 2016'!U147/'Population 2016'!U$5","v":3.0230602398973135E-2},{"$f":"'Population 2016'!V147/'Population 2016'!V$5","v":8.1666297769059926E-3},{"$f":"'Population 2016'!W147/'Population 2016'!W$5","v":9.7627778976199352E-3},{"$f":"'Population 2016'!X147/'Population 2016'!X$5","v":9.7627778976199352E-3},{"$f":"'Population 2016'!Y147/'Population 2016'!Y$5","v":7.8218152334621066E-3},{"$f":"'Population 2016'!Z147/'Population 2016'!Z$5","v":4.9459622171074153E-3},{"$f":"'Population 2016'!AA147/'Population 2016'!AA$5","v":6.7680647268025858E-3},{"$f":"'Population 2016'!AB147/'Population 2016'!AB$5","v":7.623102668290636E-3},{"$f":"'Population 2016'!AC147/'Population 2016'!AC$5","v":5.7072406866892416E-3},{"$f":"'Population 2016'!AD147/'Population 2016'!AD$5","v":1.6773977446127509E-2},{"$f":"'Population 2016'!AE147/'Population 2016'!AE$5","v":1.5503239252969743E-2},{"$f":"'Population 2016'!AF147/'Population 2016'!AF$5","v":8.611199083080728E-3},{"$f":"'Population 2016'!AG147/'Population 2016'!AG$5","v":1.5503239252969743E-2},{"$f":"'Population 2016'!AH147/'Population 2016'!AH$5","v":8.6733603930784029E-3},{"$f":"'Population 2016'!AI147/'Population 2016'!AI$5","v":6.5567853705486047E-3},{"$f":"'Population 2016'!AJ147/'Population 2016'!AJ$5","v":1.0651646543791651E-2},{"$f":"'Population 2016'!AK147/'Population 2016'!AK$5","v":1.2018656575688621E-2},{"$f":"'Population 2016'!AL147/'Population 2016'!AL$5","v":6.7753321154289566E-3},{"$f":"'Population 2016'!AM147/'Population 2016'!AM$5","v":7.7655555595799938E-3},{"$f":"'Population 2016'!AN147/'Population 2016'!AN$5","v":1.3308606959746918E-2},{"$f":"'Population 2016'!AO147/'Population 2016'!AO$5","v":1.3308606959746918E-2},{"$f":"'Population 2016'!AP147/'Population 2016'!AP$5","v":1.0874562084872311E-2},{"$f":"'Population 2016'!AQ147/'Population 2016'!AQ$5","v":8.0287170493779803E-3},{"$f":"'Population 2016'!AR147/'Population 2016'!AR$5","v":8.7224087241463896E-3},{"$f":"'Population 2016'!AS147/'Population 2016'!AS$5","v":1.6434971945398207E-2},{"$f":"'Population 2016'!AT147/'Population 2016'!AT$5","v":1.3813465492697843E-2},{"$f":"'Population 2016'!AU147/'Population 2016'!AU$5","v":1.3813465492697843E-2},{"$f":"'Population 2016'!AV147/'Population 2016'!AV$5","v":9.7983317495512617E-3},{"$f":"'Population 2016'!AW147/'Population 2016'!AW$5","v":9.6291720056135219E-3},{"$f":"'Population 2016'!AX147/'Population 2016'!AX$5","v":6.5425457147603406E-3},{"$f":"'Population 2016'!AY147/'Population 2016'!AY$5","v":1.0004283834643983E-2},{"$f":"'Population 2016'!AZ147/'Population 2016'!AZ$5","v":1.0216819784733449E-2},{"$f":"'Population 2016'!BA147/'Population 2016'!BA$5","v":7.368818829626431E-3},{"$f":"'Population 2016'!BB147/'Population 2016'!BB$5","v":9.4943482734096106E-3},{"$f":"'Population 2016'!BC147/'Population 2016'!BC$5","v":3.0230602398973135E-2},145]
[null,"Female 60-64",{"$f":"'Population 2016'!C148/'Population 2016'!C$5","v":4.2984262955334191E-3},{"$f":"'Population 2016'!D148/'Population 2016'!D$5","v":6.460099957943331E-3},{"$f":"'Population 2016'!E148/'Population 2016'!E$5","v":8.4427547475846038E-3},{"$f":"'Population 2016'!F148/'Population 2016'!F$5","v":1.4030388874581509E-2},{"$f":"'Population 2016'!G148/'Population 2016'!G$5","v":1.9934498998538407E-2},{"$f":"'Population 2016'!H148/'Population 2016'!H$5","v":7.4510477833294965E-3},{"$f":"'Population 2016'!I148/'Population 2016'!I$5","v":1.4812411020852526E-2},{"$f":"'Population 2016'!J148/'Population 2016'!J$5","v":6.9081047908909213E-3},{"$f":"'Population 2016'!K148/'Population 2016'!K$5","v":7.7021216273685201E-3},{"$f":"'Population 2016'!L148/'Population 2016'!L$5","v":1.6925325242641336E-2},{"$f":"'Population 2016'!M148/'Population 2016'!M$5","v":1.6925325242641336E-2},{"$f":"'Population 2016'!N148/'Population 2016'!N$5","v":4.2275821605677498E-3},{"$f":"'Population 2016'!O148/'Population 2016'!O$5","v":6.5979136327161412E-3},{"$f":"'Population 2016'!P148/'Population 2016'!P$5","v":2.7048348923701115E-3},{"$f":"'Population 2016'!Q148/'Population 2016'!Q$5","v":8.5662918179574866E-3},{"$f":"'Population 2016'!R148/'Population 2016'!R$5","v":4.5643263959120666E-3},{"$f":"'Population 2016'!S148/'Population 2016'!S$5","v":7.0745016073197036E-3},{"$f":"'Population 2016'!T148/'Population 2016'!T$5","v":3.4573737918968091E-3},{"$f":"'Population 2016'!U148/'Population 2016'!U$5","v":3.0673217368211395E-2},{"$f":"'Population 2016'!V148/'Population 2016'!V$5","v":7.403393349157769E-3},{"$f":"'Population 2016'!W148/'Population 2016'!W$5","v":8.4357983775550892E-3},{"$f":"'Population 2016'!X148/'Population 2016'!X$5","v":8.4357983775550892E-3},{"$f":"'Population 2016'!Y148/'Population 2016'!Y$5","v":7.1660227977297661E-3},{"$f":"'Population 2016'!Z148/'Population 2016'!Z$5","v":3.6431706037558342E-3},{"$f":"'Population 2016'!AA148/'Population 2016'!AA$5","v":5.5117173823062979E-3},{"$f":"'Population 2016'!AB148/'Population 2016'!AB$5","v":7.1768522972682517E-3},{"$f":"'Population 2016'!AC148/'Population 2016'!AC$5","v":4.5209041394560848E-3},{"$f":"'Population 2016'!AD148/'Population 2016'!AD$5","v":1.5772823700174923E-2},{"$f":"'Population 2016'!AE148/'Population 2016'!AE$5","v":1.4194190905450774E-2},{"$f":"'Population 2016'!AF148/'Population 2016'!AF$5","v":5.9871209036480716E-3},{"$f":"'Population 2016'!AG148/'Population 2016'!AG$5","v":1.4194190905450774E-2},{"$f":"'Population 2016'!AH148/'Population 2016'!AH$5","v":7.2912699813306335E-3},{"$f":"'Population 2016'!AI148/'Population 2016'!AI$5","v":5.4945205179805761E-3},{"$f":"'Population 2016'!AJ148/'Population 2016'!AJ$5","v":9.0483227839277258E-3},{"$f":"'Population 2016'!AK148/'Population 2016'!AK$5","v":1.0862049457526118E-2},{"$f":"'Population 2016'!AL148/'Population 2016'!AL$5","v":6.7575956439225983E-3},{"$f":"'Population 2016'!AM148/'Population 2016'!AM$5","v":6.5739194685810109E-3},{"$f":"'Population 2016'!AN148/'Population 2016'!AN$5","v":1.2054107123377332E-2},{"$f":"'Population 2016'!AO148/'Population 2016'!AO$5","v":1.2054107123377332E-2},{"$f":"'Population 2016'!AP148/'Population 2016'!AP$5","v":9.7886910895169862E-3},{"$f":"'Population 2016'!AQ148/'Population 2016'!AQ$5","v":6.9668986682742372E-3},{"$f":"'Population 2016'!AR148/'Population 2016'!AR$5","v":7.704760956366124E-3},{"$f":"'Population 2016'!AS148/'Population 2016'!AS$5","v":1.4812411020852526E-2},{"$f":"'Population 2016'!AT148/'Population 2016'!AT$5","v":1.3760742341962355E-2},{"$f":"'Population 2016'!AU148/'Population 2016'!AU$5","v":1.3760742341962355E-2},{"$f":"'Population 2016'!AV148/'Population 2016'!AV$5","v":9.1859360152043087E-3},{"$f":"'Population 2016'!AW148/'Population 2016'!AW$5","v":8.0465556165720906E-3},{"$f":"'Population 2016'!AX148/'Population 2016'!AX$5","v":6.4786536667646348E-3},{"$f":"'Population 2016'!AY148/'Population 2016'!AY$5","v":8.7267831461705584E-3},{"$f":"'Population 2016'!AZ148/'Population 2016'!AZ$5","v":8.9828626654624311E-3},{"$f":"'Population 2016'!BA148/'Population 2016'!BA$5","v":6.6400345497732672E-3},{"$f":"'Population 2016'!BB148/'Population 2016'!BB$5","v":7.9752525496640733E-3},{"$f":"'Population 2016'!BC148/'Population 2016'!BC$5","v":3.0673217368211395E-2},146]
[null,"Female 65-69",{"$f":"'Population 2016'!C149/'Population 2016'!C$5","v":4.0582050875785187E-3},{"$f":"'Population 2016'!D149/'Population 2016'!D$5","v":6.3671840615005431E-3},{"$f":"'Population 2016'!E149/'Population 2016'!E$5","v":8.4849450822477128E-3},{"$f":"'Population 2016'!F149/'Population 2016'!F$5","v":1.4864795261395829E-2},{"$f":"'Population 2016'!G149/'Population 2016'!G$5","v":2.105775997401613E-2},{"$f":"'Population 2016'!H149/'Population 2016'!H$5","v":8.028195958017334E-3},{"$f":"'Population 2016'!I149/'Population 2016'!I$5","v":1.5859224520559417E-2},{"$f":"'Population 2016'!J149/'Population 2016'!J$5","v":6.8251743612283656E-3},{"$f":"'Population 2016'!K149/'Population 2016'!K$5","v":8.4817842460898733E-3},{"$f":"'Population 2016'!L149/'Population 2016'!L$5","v":1.82437691611202E-2},{"$f":"'Population 2016'!M149/'Population 2016'!M$5","v":1.82437691611202E-2},{"$f":"'Population 2016'!N149/'Population 2016'!N$5","v":4.4044011862949184E-3},{"$f":"'Population 2016'!O149/'Population 2016'!O$5","v":7.6282184642513942E-3},{"$f":"'Population 2016'!P149/'Population 2016'!P$5","v":2.378000676208723E-3},{"$f":"'Population 2016'!Q149/'Population 2016'!Q$5","v":8.6837992503025815E-3},{"$f":"'Population 2016'!R149/'Population 2016'!R$5","v":4.3514132112631079E-3},{"$f":"'Population 2016'!S149/'Population 2016'!S$5","v":7.4107941977612267E-3},{"$f":"'Population 2016'!T149/'Population 2016'!T$5","v":3.3084694024746049E-3},{"$f":"'Population 2016'!U149/'Population 2016'!U$5","v":3.1292878325144956E-2},{"$f":"'Population 2016'!V149/'Population 2016'!V$5","v":7.7544821059219518E-3},{"$f":"'Population 2016'!W149/'Population 2016'!W$5","v":9.2267566136528551E-3},{"$f":"'Population 2016'!X149/'Population 2016'!X$5","v":9.2267566136528551E-3},{"$f":"'Population 2016'!Y149/'Population 2016'!Y$5","v":7.309104783707731E-3},{"$f":"'Population 2016'!Z149/'Population 2016'!Z$5","v":3.093404157705538E-3},{"$f":"'Population 2016'!AA149/'Population 2016'!AA$5","v":5.1576014993784704E-3},{"$f":"'Population 2016'!AB149/'Population 2016'!AB$5","v":7.156382096762638E-3},{"$f":"'Population 2016'!AC149/'Population 2016'!AC$5","v":4.1971697547272457E-3},{"$f":"'Population 2016'!AD149/'Population 2016'!AD$5","v":1.6159886858461425E-2},{"$f":"'Population 2016'!AE149/'Population 2016'!AE$5","v":1.4301994887011161E-2},{"$f":"'Population 2016'!AF149/'Population 2016'!AF$5","v":5.9569590854936733E-3},{"$f":"'Population 2016'!AG149/'Population 2016'!AG$5","v":1.4301994887011161E-2},{"$f":"'Population 2016'!AH149/'Population 2016'!AH$5","v":6.8825873326955403E-3},{"$f":"'Population 2016'!AI149/'Population 2016'!AI$5","v":5.5478388310438356E-3},{"$f":"'Population 2016'!AJ149/'Population 2016'!AJ$5","v":1.0038200931321975E-2},{"$f":"'Population 2016'!AK149/'Population 2016'!AK$5","v":1.1214060319575576E-2},{"$f":"'Population 2016'!AL149/'Population 2016'!AL$5","v":6.9526968304925415E-3},{"$f":"'Population 2016'!AM149/'Population 2016'!AM$5","v":6.4978575904321399E-3},{"$f":"'Population 2016'!AN149/'Population 2016'!AN$5","v":1.2381367950256354E-2},{"$f":"'Population 2016'!AO149/'Population 2016'!AO$5","v":1.2381367950256354E-2},{"$f":"'Population 2016'!AP149/'Population 2016'!AP$5","v":1.0248402897769605E-2},{"$f":"'Population 2016'!AQ149/'Population 2016'!AQ$5","v":7.1381596974845179E-3},{"$f":"'Population 2016'!AR149/'Population 2016'!AR$5","v":7.8108030617652932E-3},{"$f":"'Population 2016'!AS149/'Population 2016'!AS$5","v":1.5859224520559417E-2},{"$f":"'Population 2016'!AT149/'Population 2016'!AT$5","v":1.233721727210418E-2},{"$f":"'Population 2016'!AU149/'Population 2016'!AU$5","v":1.233721727210418E-2},{"$f":"'Population 2016'!AV149/'Population 2016'!AV$5","v":9.7349804666877846E-3},{"$f":"'Population 2016'!AW149/'Population 2016'!AW$5","v":7.2876624565257186E-3},{"$f":"'Population 2016'!AX149/'Population 2016'!AX$5","v":5.9291820540015592E-3},{"$f":"'Population 2016'!AY149/'Population 2016'!AY$5","v":9.3433493467152164E-3},{"$f":"'Population 2016'!AZ149/'Population 2016'!AZ$5","v":9.4459561298042352E-3},{"$f":"'Population 2016'!BA149/'Population 2016'!BA$5","v":6.5455625134960048E-3},{"$f":"'Population 2016'!BB149/'Population 2016'!BB$5","v":8.127162122038626E-3},{"$f":"'Population 2016'!BC149/'Population 2016'!BC$5","v":3.1292878325144956E-2},147]
[null,"Female 70-74",{"$f":"'Population 2016'!C150/'Population 2016'!C$5","v":3.0615426290422328E-3},{"$f":"'Population 2016'!D150/'Population 2016'!D$5","v":4.7362655634126541E-3},{"$f":"'Population 2016'!E150/'Population 2016'!E$5","v":6.2722964199157134E-3},{"$f":"'Population 2016'!F150/'Population 2016'!F$5","v":1.1176925057944887E-2},{"$f":"'Population 2016'!G150/'Population 2016'!G$5","v":1.5698587127158554E-2},{"$f":"'Population 2016'!H150/'Population 2016'!H$5","v":6.4750837351214121E-3},{"$f":"'Population 2016'!I150/'Population 2016'!I$5","v":1.1965078301649779E-2},{"$f":"'Population 2016'!J150/'Population 2016'!J$5","v":5.4485292288299347E-3},{"$f":"'Population 2016'!K150/'Population 2016'!K$5","v":6.5916930491896238E-3},{"$f":"'Population 2016'!L150/'Population 2016'!L$5","v":1.4844407732753006E-2},{"$f":"'Population 2016'!M150/'Population 2016'!M$5","v":1.4844407732753006E-2},{"$f":"'Population 2016'!N150/'Population 2016'!N$5","v":3.3354498034897646E-3},{"$f":"'Population 2016'!O150/'Population 2016'!O$5","v":6.023320553590711E-3},{"$f":"'Population 2016'!P150/'Population 2016'!P$5","v":1.8257635523498254E-3},{"$f":"'Population 2016'!Q150/'Population 2016'!Q$5","v":6.9211877651261444E-3},{"$f":"'Population 2016'!R150/'Population 2016'!R$5","v":3.4731463245861499E-3},{"$f":"'Population 2016'!S150/'Population 2016'!S$5","v":5.6675452053150119E-3},{"$f":"'Population 2016'!T150/'Population 2016'!T$5","v":2.4801887363135925E-3},{"$f":"'Population 2016'!U150/'Population 2016'!U$5","v":2.5450360731199929E-2},{"$f":"'Population 2016'!V150/'Population 2016'!V$5","v":5.5639935582845494E-3},{"$f":"'Population 2016'!W150/'Population 2016'!W$5","v":7.0238398734466826E-3},{"$f":"'Population 2016'!X150/'Population 2016'!X$5","v":7.0238398734466826E-3},{"$f":"'Population 2016'!Y150/'Population 2016'!Y$5","v":5.5086564601516666E-3},{"$f":"'Population 2016'!Z150/'Population 2016'!Z$5","v":2.4042603027974209E-3},{"$f":"'Population 2016'!AA150/'Population 2016'!AA$5","v":4.0925963205167299E-3},{"$f":"'Population 2016'!AB150/'Population 2016'!AB$5","v":5.510577976111276E-3},{"$f":"'Population 2016'!AC150/'Population 2016'!AC$5","v":3.2487210940360472E-3},{"$f":"'Population 2016'!AD150/'Population 2016'!AD$5","v":1.263165730023447E-2},{"$f":"'Population 2016'!AE150/'Population 2016'!AE$5","v":1.1468290228852452E-2},{"$f":"'Population 2016'!AF150/'Population 2016'!AF$5","v":4.9616190863985285E-3},{"$f":"'Population 2016'!AG150/'Population 2016'!AG$5","v":1.1468290228852452E-2},{"$f":"'Population 2016'!AH150/'Population 2016'!AH$5","v":5.6082405283152054E-3},{"$f":"'Population 2016'!AI150/'Population 2016'!AI$5","v":4.2777692711523322E-3},{"$f":"'Population 2016'!AJ150/'Population 2016'!AJ$5","v":7.5983604271812177E-3},{"$f":"'Population 2016'!AK150/'Population 2016'!AK$5","v":9.4917214588335873E-3},{"$f":"'Population 2016'!AL150/'Population 2016'!AL$5","v":5.7909579468260588E-3},{"$f":"'Population 2016'!AM150/'Population 2016'!AM$5","v":5.0925238417768052E-3},{"$f":"'Population 2016'!AN150/'Population 2016'!AN$5","v":1.2490454892549362E-2},{"$f":"'Population 2016'!AO150/'Population 2016'!AO$5","v":1.2490454892549362E-2},{"$f":"'Population 2016'!AP150/'Population 2016'!AP$5","v":8.8692674730117462E-3},{"$f":"'Population 2016'!AQ150/'Population 2016'!AQ$5","v":5.4461007288869401E-3},{"$f":"'Population 2016'!AR150/'Population 2016'!AR$5","v":6.1393032365342675E-3},{"$f":"'Population 2016'!AS150/'Population 2016'!AS$5","v":1.1965078301649779E-2},{"$f":"'Population 2016'!AT150/'Population 2016'!AT$5","v":1.1388200558865398E-2},{"$f":"'Population 2016'!AU150/'Population 2016'!AU$5","v":1.1388200558865398E-2},{"$f":"'Population 2016'!AV150/'Population 2016'!AV$5","v":7.7710906979199662E-3},{"$f":"'Population 2016'!AW150/'Population 2016'!AW$5","v":6.1512294831899449E-3},{"$f":"'Population 2016'!AX150/'Population 2016'!AX$5","v":4.8302388284754078E-3},{"$f":"'Population 2016'!AY150/'Population 2016'!AY$5","v":7.2947584223248983E-3},{"$f":"'Population 2016'!AZ150/'Population 2016'!AZ$5","v":7.5331787770880915E-3},{"$f":"'Population 2016'!BA150/'Population 2016'!BA$5","v":4.7505938242280287E-3},{"$f":"'Population 2016'!BB150/'Population 2016'!BB$5","v":6.4147269425436568E-3},{"$f":"'Population 2016'!BC150/'Population 2016'!BC$5","v":2.5450360731199929E-2},148]
[null,"Female 75-79",{"$f":"'Population 2016'!C151/'Population 2016'!C$5","v":2.8264325106182884E-3},{"$f":"'Population 2016'!D151/'Population 2016'!D$5","v":3.9073579609362006E-3},{"$f":"'Population 2016'!E151/'Population 2016'!E$5","v":4.8987666358833483E-3},{"$f":"'Population 2016'!F151/'Population 2016'!F$5","v":8.4264743754828737E-3},{"$f":"'Population 2016'!G151/'Population 2016'!G$5","v":1.2910734585611433E-2},{"$f":"'Population 2016'!H151/'Population 2016'!H$5","v":4.7955176986702892E-3},{"$f":"'Population 2016'!I151/'Population 2016'!I$5","v":9.6411523323004771E-3},{"$f":"'Population 2016'!J151/'Population 2016'!J$5","v":4.4533640728792612E-3},{"$f":"'Population 2016'!K151/'Population 2016'!K$5","v":5.1268723715919293E-3},{"$f":"'Population 2016'!L151/'Population 2016'!L$5","v":1.1294140072752689E-2},{"$f":"'Population 2016'!M151/'Population 2016'!M$5","v":1.1294140072752689E-2},{"$f":"'Population 2016'!N151/'Population 2016'!N$5","v":3.2148913768576043E-3},{"$f":"'Population 2016'!O151/'Population 2016'!O$5","v":4.289634538988122E-3},{"$f":"'Population 2016'!P151/'Population 2016'!P$5","v":1.3411473008001803E-3},{"$f":"'Population 2016'!Q151/'Population 2016'!Q$5","v":5.8871223604893006E-3},{"$f":"'Population 2016'!R151/'Population 2016'!R$5","v":3.41991802842391E-3},{"$f":"'Population 2016'!S151/'Population 2016'!S$5","v":4.5236208031832169E-3},{"$f":"'Population 2016'!T151/'Population 2016'!T$5","v":2.0753549275719743E-3},{"$f":"'Population 2016'!U151/'Population 2016'!U$5","v":2.2529101934227417E-2},{"$f":"'Population 2016'!V151/'Population 2016'!V$5","v":4.6099480235992701E-3},{"$f":"'Population 2016'!W151/'Population 2016'!W$5","v":5.5203655403682859E-3},{"$f":"'Population 2016'!X151/'Population 2016'!X$5","v":5.5203655403682859E-3},{"$f":"'Population 2016'!Y151/'Population 2016'!Y$5","v":4.5349040555794024E-3},{"$f":"'Population 2016'!Z151/'Population 2016'!Z$5","v":2.0093576443669264E-3},{"$f":"'Population 2016'!AA151/'Population 2016'!AA$5","v":3.4109398554436512E-3},{"$f":"'Population 2016'!AB151/'Population 2016'!AB$5","v":4.5177732515889997E-3},{"$f":"'Population 2016'!AC151/'Population 2016'!AC$5","v":2.7274363339614954E-3},{"$f":"'Population 2016'!AD151/'Population 2016'!AD$5","v":9.6356395846514571E-3},{"$f":"'Population 2016'!AE151/'Population 2016'!AE$5","v":8.3933099929157391E-3},{"$f":"'Population 2016'!AF151/'Population 2016'!AF$5","v":4.4639490868509553E-3},{"$f":"'Population 2016'!AG151/'Population 2016'!AG$5","v":8.3933099929157391E-3},{"$f":"'Population 2016'!AH151/'Population 2016'!AH$5","v":4.638548062008304E-3},{"$f":"'Population 2016'!AI151/'Population 2016'!AI$5","v":3.4383476244640825E-3},{"$f":"'Population 2016'!AJ151/'Population 2016'!AJ$5","v":5.9950366673172904E-3},{"$f":"'Population 2016'!AK151/'Population 2016'!AK$5","v":7.6562362495757015E-3},{"$f":"'Population 2016'!AL151/'Population 2016'!AL$5","v":4.5848778843936783E-3},{"$f":"'Population 2016'!AM151/'Population 2016'!AM$5","v":3.9371076927534766E-3},{"$f":"'Population 2016'!AN151/'Population 2016'!AN$5","v":1.0090542162103196E-2},{"$f":"'Population 2016'!AO151/'Population 2016'!AO$5","v":1.0090542162103196E-2},{"$f":"'Population 2016'!AP151/'Population 2016'!AP$5","v":6.745081876258263E-3},{"$f":"'Population 2016'!AQ151/'Population 2016'!AQ$5","v":4.3774319066147861E-3},{"$f":"'Population 2016'!AR151/'Population 2016'!AR$5","v":4.9073434826321519E-3},{"$f":"'Population 2016'!AS151/'Population 2016'!AS$5","v":9.6411523323004771E-3},{"$f":"'Population 2016'!AT151/'Population 2016'!AT$5","v":8.8574893235619755E-3},{"$f":"'Population 2016'!AU151/'Population 2016'!AU$5","v":8.8574893235619755E-3},{"$f":"'Population 2016'!AV151/'Population 2016'!AV$5","v":5.5854714391299761E-3},{"$f":"'Population 2016'!AW151/'Population 2016'!AW$5","v":5.3770821892732933E-3},{"$f":"'Population 2016'!AX151/'Population 2016'!AX$5","v":4.089091071725213E-3},{"$f":"'Population 2016'!AY151/'Population 2016'!AY$5","v":5.7495180686025519E-3},{"$f":"'Population 2016'!AZ151/'Population 2016'!AZ$5","v":5.9511824703303781E-3},{"$f":"'Population 2016'!BA151/'Population 2016'!BA$5","v":3.886849492550205E-3},{"$f":"'Population 2016'!BB151/'Population 2016'!BB$5","v":4.7782465492359639E-3},{"$f":"'Population 2016'!BC151/'Population 2016'!BC$5","v":2.2529101934227417E-2},149]
[null,"Female 80-84",{"$f":"'Population 2016'!C152/'Population 2016'!C$5","v":2.5606558550086123E-3},{"$f":"'Population 2016'!D152/'Population 2016'!D$5","v":2.8828379448959831E-3},{"$f":"'Population 2016'!E152/'Population 2016'!E$5","v":3.1783385446209666E-3},{"$f":"'Population 2016'!F152/'Population 2016'!F$5","v":6.4280195724954929E-3},{"$f":"'Population 2016'!G152/'Population 2016'!G$5","v":9.1484869809992965E-3},{"$f":"'Population 2016'!H152/'Population 2016'!H$5","v":3.5050403193120912E-3},{"$f":"'Population 2016'!I152/'Population 2016'!I$5","v":7.1183317980068675E-3},{"$f":"'Population 2016'!J152/'Population 2016'!J$5","v":3.2011145849746648E-3},{"$f":"'Population 2016'!K152/'Population 2016'!K$5","v":3.4966687142654633E-3},{"$f":"'Population 2016'!L152/'Population 2016'!L$5","v":8.347497339284863E-3},{"$f":"'Population 2016'!M152/'Population 2016'!M$5","v":8.347497339284863E-3},{"$f":"'Population 2016'!N152/'Population 2016'!N$5","v":3.1907796915311725E-3},{"$f":"'Population 2016'!O152/'Population 2016'!O$5","v":3.1503551579635629E-3},{"$f":"'Population 2016'!P152/'Population 2016'!P$5","v":8.7907134002028627E-4},{"$f":"'Population 2016'!Q152/'Population 2016'!Q$5","v":4.5827898614587371E-3},{"$f":"'Population 2016'!R152/'Population 2016'!R$5","v":3.3267685101399905E-3},{"$f":"'Population 2016'!S152/'Population 2016'!S$5","v":3.3311502265782359E-3},{"$f":"'Population 2016'!T152/'Population 2016'!T$5","v":1.6449281768984147E-3},{"$f":"'Population 2016'!U152/'Population 2016'!U$5","v":1.6863630327977691E-2},{"$f":"'Population 2016'!V152/'Population 2016'!V$5","v":3.1979606322650568E-3},{"$f":"'Population 2016'!W152/'Population 2016'!W$5","v":3.997280672510606E-3},{"$f":"'Population 2016'!X152/'Population 2016'!X$5","v":3.997280672510606E-3},{"$f":"'Population 2016'!Y152/'Population 2016'!Y$5","v":3.1994721864517257E-3},{"$f":"'Population 2016'!Z152/'Population 2016'!Z$5","v":1.8138421124969269E-3},{"$f":"'Population 2016'!AA152/'Population 2016'!AA$5","v":2.7352628330466521E-3},{"$f":"'Population 2016'!AB152/'Population 2016'!AB$5","v":3.4533228252970737E-3},{"$f":"'Population 2016'!AC152/'Population 2016'!AC$5","v":2.252694856036457E-3},{"$f":"'Population 2016'!AD152/'Population 2016'!AD$5","v":6.9931891771186127E-3},{"$f":"'Population 2016'!AE152/'Population 2016'!AE$5","v":6.1756280865306627E-3},{"$f":"'Population 2016'!AF152/'Population 2016'!AF$5","v":3.2574763606750216E-3},{"$f":"'Population 2016'!AG152/'Population 2016'!AG$5","v":6.1756280865306627E-3},{"$f":"'Population 2016'!AH152/'Population 2016'!AH$5","v":3.6019802531974772E-3},{"$f":"'Population 2016'!AI152/'Population 2016'!AI$5","v":2.5579118908040949E-3},{"$f":"'Population 2016'!AJ152/'Population 2016'!AJ$5","v":4.1407578841703152E-3},{"$f":"'Population 2016'!AK152/'Population 2016'!AK$5","v":6.3864827828973006E-3},{"$f":"'Population 2016'!AL152/'Population 2016'!AL$5","v":3.1836966353913552E-3},{"$f":"'Population 2016'!AM152/'Population 2016'!AM$5","v":3.0207431607694566E-3},{"$f":"'Population 2016'!AN152/'Population 2016'!AN$5","v":5.781607941529399E-3},{"$f":"'Population 2016'!AO152/'Population 2016'!AO$5","v":5.781607941529399E-3},{"$f":"'Population 2016'!AP152/'Population 2016'!AP$5","v":5.3183900575432368E-3},{"$f":"'Population 2016'!AQ152/'Population 2016'!AQ$5","v":3.1101002904587055E-3},{"$f":"'Population 2016'!AR152/'Population 2016'!AR$5","v":3.7197164576679249E-3},{"$f":"'Population 2016'!AS152/'Population 2016'!AS$5","v":7.1183317980068675E-3},{"$f":"'Population 2016'!AT152/'Population 2016'!AT$5","v":6.5376706912005063E-3},{"$f":"'Population 2016'!AU152/'Population 2016'!AU$5","v":6.5376706912005063E-3},{"$f":"'Population 2016'!AV152/'Population 2016'!AV$5","v":4.265653046140851E-3},{"$f":"'Population 2016'!AW152/'Population 2016'!AW$5","v":4.213954481664531E-3},{"$f":"'Population 2016'!AX152/'Population 2016'!AX$5","v":3.041261484595627E-3},{"$f":"'Population 2016'!AY152/'Population 2016'!AY$5","v":4.4597778525748907E-3},{"$f":"'Population 2016'!AZ152/'Population 2016'!AZ$5","v":4.8667959109710002E-3},{"$f":"'Population 2016'!BA152/'Population 2016'!BA$5","v":3.2795292593392356E-3},{"$f":"'Population 2016'!BB152/'Population 2016'!BB$5","v":3.293675728302825E-3},{"$f":"'Population 2016'!BC152/'Population 2016'!BC$5","v":1.6863630327977691E-2},150]
[null,"Female 85-89",{"$f":"'Population 2016'!C153/'Population 2016'!C$5","v":1.6917706347462089E-3},{"$f":"'Population 2016'!D153/'Population 2016'!D$5","v":2.005027239028589E-3},{"$f":"'Population 2016'!E153/'Population 2016'!E$5","v":2.2923415166956531E-3},{"$f":"'Population 2016'!F153/'Population 2016'!F$5","v":4.2029358743239766E-3},{"$f":"'Population 2016'!G153/'Population 2016'!G$5","v":5.5080387592702862E-3},{"$f":"'Population 2016'!H153/'Population 2016'!H$5","v":1.9778673402223641E-3},{"$f":"'Population 2016'!I153/'Population 2016'!I$5","v":4.1558495938363617E-3},{"$f":"'Population 2016'!J153/'Population 2016'!J$5","v":2.015209440800113E-3},{"$f":"'Population 2016'!K153/'Population 2016'!K$5","v":2.551623115815338E-3},{"$f":"'Population 2016'!L153/'Population 2016'!L$5","v":5.6947246358394358E-3},{"$f":"'Population 2016'!M153/'Population 2016'!M$5","v":5.6947246358394358E-3},{"$f":"'Population 2016'!N153/'Population 2016'!N$5","v":1.7842647141559705E-3},{"$f":"'Population 2016'!O153/'Population 2016'!O$5","v":1.4265759205872738E-3},{"$f":"'Population 2016'!P153/'Population 2016'!P$5","v":5.635072692437732E-4},{"$f":"'Population 2016'!Q153/'Population 2016'!Q$5","v":3.5487244568218942E-3},{"$f":"'Population 2016'!R153/'Population 2016'!R$5","v":2.0492894022462343E-3},{"$f":"'Population 2016'!S153/'Population 2016'!S$5","v":2.1236744687724526E-3},{"$f":"'Population 2016'!T153/'Population 2016'!T$5","v":1.1423758625984746E-3},{"$f":"'Population 2016'!U153/'Population 2016'!U$5","v":1.0844066746337361E-2},{"$f":"'Population 2016'!V153/'Population 2016'!V$5","v":1.6791201410460918E-3},{"$f":"'Population 2016'!W153/'Population 2016'!W$5","v":2.6637643075193328E-3},{"$f":"'Population 2016'!X153/'Population 2016'!X$5","v":2.6637643075193328E-3},{"$f":"'Population 2016'!Y153/'Population 2016'!Y$5","v":1.8401933196610547E-3},{"$f":"'Population 2016'!Z153/'Population 2016'!Z$5","v":1.0937255000648492E-3},{"$f":"'Population 2016'!AA153/'Population 2016'!AA$5","v":1.6423535883632074E-3},{"$f":"'Population 2016'!AB153/'Population 2016'!AB$5","v":2.227157815010798E-3},{"$f":"'Population 2016'!AC153/'Population 2016'!AC$5","v":1.382852627419992E-3},{"$f":"'Population 2016'!AD153/'Population 2016'!AD$5","v":4.5368268264542782E-3},{"$f":"'Population 2016'!AE153/'Population 2016'!AE$5","v":4.168420620334911E-3},{"$f":"'Population 2016'!AF153/'Population 2016'!AF$5","v":2.6391590885098556E-3},{"$f":"'Population 2016'!AG153/'Population 2016'!AG$5","v":4.168420620334911E-3},{"$f":"'Population 2016'!AH153/'Population 2016'!AH$5","v":2.1084309372765018E-3},{"$f":"'Population 2016'!AI153/'Population 2016'!AI$5","v":1.6323606614751947E-3},{"$f":"'Population 2016'!AJ153/'Population 2016'!AJ$5","v":2.1610015893818143E-3},{"$f":"'Population 2016'!AK153/'Population 2016'!AK$5","v":3.3692468224733791E-3},{"$f":"'Population 2016'!AL153/'Population 2016'!AL$5","v":2.0130895159716925E-3},{"$f":"'Population 2016'!AM153/'Population 2016'!AM$5","v":1.5972994411262954E-3},{"$f":"'Population 2016'!AN153/'Population 2016'!AN$5","v":4.2543907494272939E-3},{"$f":"'Population 2016'!AO153/'Population 2016'!AO$5","v":4.2543907494272939E-3},{"$f":"'Population 2016'!AP153/'Population 2016'!AP$5","v":3.6301380720637892E-3},{"$f":"'Population 2016'!AQ153/'Population 2016'!AQ$5","v":1.7742642626185127E-3},{"$f":"'Population 2016'!AR153/'Population 2016'!AR$5","v":2.3300302108611622E-3},{"$f":"'Population 2016'!AS153/'Population 2016'!AS$5","v":4.1558495938363617E-3},{"$f":"'Population 2016'!AT153/'Population 2016'!AT$5","v":3.8487900036906207E-3},{"$f":"'Population 2016'!AU153/'Population 2016'!AU$5","v":3.8487900036906207E-3},{"$f":"'Population 2016'!AV153/'Population 2016'!AV$5","v":2.5234927673952064E-3},{"$f":"'Population 2016'!AW153/'Population 2016'!AW$5","v":2.6465922264933797E-3},{"$f":"'Population 2016'!AX153/'Population 2016'!AX$5","v":1.7250852958840743E-3},{"$f":"'Population 2016'!AY153/'Population 2016'!AY$5","v":2.9114776169639851E-3},{"$f":"'Population 2016'!AZ153/'Population 2016'!AZ$5","v":3.1294763304588941E-3},{"$f":"'Population 2016'!BA153/'Population 2016'!BA$5","v":1.8084646944504428E-3},{"$f":"'Population 2016'!BB153/'Population 2016'!BB$5","v":1.6986252183700103E-3},{"$f":"'Population 2016'!BC153/'Population 2016'!BC$5","v":1.0844066746337361E-2},151]
[null,"Female 90+",{"$f":"'Population 2016'!C154/'Population 2016'!C$5","v":9.7110701088150959E-4},{"$f":"'Population 2016'!D154/'Population 2016'!D$5","v":1.1223262228221003E-3},{"$f":"'Population 2016'!E154/'Population 2016'!E$5","v":1.2610222249307375E-3},{"$f":"'Population 2016'!F154/'Population 2016'!F$5","v":2.8225598763842391E-3},{"$f":"'Population 2016'!G154/'Population 2016'!G$5","v":3.6675147512585937E-3},{"$f":"'Population 2016'!H154/'Population 2016'!H$5","v":1.1769931877060953E-3},{"$f":"'Population 2016'!I154/'Population 2016'!I$5","v":2.4286073193199899E-3},{"$f":"'Population 2016'!J154/'Population 2016'!J$5","v":1.1776121012082963E-3},{"$f":"'Population 2016'!K154/'Population 2016'!K$5","v":1.0631762982563908E-3},{"$f":"'Population 2016'!L154/'Population 2016'!L$5","v":3.2802249297094657E-3},{"$f":"'Population 2016'!M154/'Population 2016'!M$5","v":3.2802249297094657E-3},{"$f":"'Population 2016'!N154/'Population 2016'!N$5","v":1.0609141543630094E-3},{"$f":"'Population 2016'!O154/'Population 2016'!O$5","v":9.6095739095114973E-4},{"$f":"'Population 2016'!P154/'Population 2016'!P$5","v":5.2969683308914689E-4},{"$f":"'Population 2016'!Q154/'Population 2016'!Q$5","v":2.021127836335648E-3},{"$f":"'Population 2016'!R154/'Population 2016'!R$5","v":1.0911800713259169E-3},{"$f":"'Population 2016'!S154/'Population 2016'!S$5","v":1.2410167510781664E-3},{"$f":"'Population 2016'!T154/'Population 2016'!T$5","v":6.7472301456936385E-4},{"$f":"'Population 2016'!U154/'Population 2016'!U$5","v":7.6129774708980661E-3},{"$f":"'Population 2016'!V154/'Population 2016'!V$5","v":7.9376588485815256E-4},{"$f":"'Population 2016'!W154/'Population 2016'!W$5","v":1.4740585309094712E-3},{"$f":"'Population 2016'!X154/'Population 2016'!X$5","v":1.4740585309094712E-3},{"$f":"'Population 2016'!Y154/'Population 2016'!Y$5","v":9.7772690418276333E-4},{"$f":"'Population 2016'!Z154/'Population 2016'!Z$5","v":7.414103832298004E-4},{"$f":"'Population 2016'!AA154/'Population 2016'!AA$5","v":1.0384298780791639E-3},{"$f":"'Population 2016'!AB154/'Population 2016'!AB$5","v":1.2875756118031177E-3},{"$f":"'Population 2016'!AC154/'Population 2016'!AC$5","v":1.0146435508593958E-3},{"$f":"'Population 2016'!AD154/'Population 2016'!AD$5","v":2.4786929174885554E-3},{"$f":"'Population 2016'!AE154/'Population 2016'!AE$5","v":2.0277415579215393E-3},{"$f":"'Population 2016'!AF154/'Population 2016'!AF$5","v":2.3073790888114734E-3},{"$f":"'Population 2016'!AG154/'Population 2016'!AG$5","v":2.0277415579215393E-3},{"$f":"'Population 2016'!AH154/'Population 2016'!AH$5","v":1.0811513704801093E-3},{"$f":"'Population 2016'!AI154/'Population 2016'!AI$5","v":9.8843949601889938E-4},{"$f":"'Population 2016'!AJ154/'Population 2016'!AJ$5","v":1.5196720854362435E-3},{"$f":"'Population 2016'!AK154/'Population 2016'!AK$5","v":2.1372088053002777E-3},{"$f":"'Population 2016'!AL154/'Population 2016'!AL$5","v":1.32136712722371E-3},{"$f":"'Population 2016'!AM154/'Population 2016'!AM$5","v":7.2077684531549383E-4},{"$f":"'Population 2016'!AN154/'Population 2016'!AN$5","v":3.654412566815752E-3},{"$f":"'Population 2016'!AO154/'Population 2016'!AO$5","v":3.654412566815752E-3},{"$f":"'Population 2016'!AP154/'Population 2016'!AP$5","v":2.2827069099440418E-3},{"$f":"'Population 2016'!AQ154/'Population 2016'!AQ$5","v":1.6646572039239328E-3},{"$f":"'Population 2016'!AR154/'Population 2016'!AR$5","v":1.3985973481008105E-3},{"$f":"'Population 2016'!AS154/'Population 2016'!AS$5","v":2.4286073193199899E-3},{"$f":"'Population 2016'!AT154/'Population 2016'!AT$5","v":3.1106658933937894E-3},{"$f":"'Population 2016'!AU154/'Population 2016'!AU$5","v":3.1106658933937894E-3},{"$f":"'Population 2016'!AV154/'Population 2016'!AV$5","v":1.2353500158378207E-3},{"$f":"'Population 2016'!AW154/'Population 2016'!AW$5","v":1.4605833180791994E-3},{"$f":"'Population 2016'!AX154/'Population 2016'!AX$5","v":1.2395057311167053E-3},{"$f":"'Population 2016'!AY154/'Population 2016'!AY$5","v":1.7517823812000857E-3},{"$f":"'Population 2016'!AZ154/'Population 2016'!AZ$5","v":1.9961917034360959E-3},{"$f":"'Population 2016'!BA154/'Population 2016'!BA$5","v":9.8520837832001724E-4},{"$f":"'Population 2016'!BB154/'Population 2016'!BB$5","v":1.049557045496917E-3},{"$f":"'Population 2016'!BC154/'Population 2016'!BC$5","v":7.6129774708980661E-3},152]
[null,"Male 0-4",{"$f":"'Population 2016'!C155/'Population 2016'!C$5","v":0},{"$f":"'Population 2016'!D155/'Population 2016'!D$5","v":0},{"$f":"'Population 2016'!E155/'Population 2016'!E$5","v":0},{"$f":"'Population 2016'!F155/'Population 2016'!F$5","v":0},{"$f":"'Population 2016'!G155/'Population 2016'!G$5","v":0},{"$f":"'Population 2016'!H155/'Population 2016'!H$5","v":0},{"$f":"'Population 2016'!I155/'Population 2016'!I$5","v":0},{"$f":"'Population 2016'!J155/'Population 2016'!J$5","v":0},{"$f":"'Population 2016'!K155/'Population 2016'!K$5","v":0},{"$f":"'Population 2016'!L155/'Population 2016'!L$5","v":0},{"$f":"'Population 2016'!M155/'Population 2016'!M$5","v":0},{"$f":"'Population 2016'!N155/'Population 2016'!N$5","v":0},{"$f":"'Population 2016'!O155/'Population 2016'!O$5","v":0},{"$f":"'Population 2016'!P155/'Population 2016'!P$5","v":0},{"$f":"'Population 2016'!Q155/'Population 2016'!Q$5","v":0},{"$f":"'Population 2016'!R155/'Population 2016'!R$5","v":0},{"$f":"'Population 2016'!S155/'Population 2016'!S$5","v":0},{"$f":"'Population 2016'!T155/'Population 2016'!T$5","v":0},{"$f":"'Population 2016'!U155/'Population 2016'!U$5","v":0},{"$f":"'Population 2016'!V155/'Population 2016'!V$5","v":0},{"$f":"'Population 2016'!W155/'Population 2016'!W$5","v":0},{"$f":"'Population 2016'!X155/'Population 2016'!X$5","v":0},{"$f":"'Population 2016'!Y155/'Population 2016'!Y$5","v":0},{"$f":"'Population 2016'!Z155/'Population 2016'!Z$5","v":0},{"$f":"'Population 2016'!AA155/'Population 2016'!AA$5","v":0},{"$f":"'Population 2016'!AB155/'Population 2016'!AB$5","v":0},{"$f":"'Population 2016'!AC155/'Population 2016'!AC$5","v":0},{"$f":"'Population 2016'!AD155/'Population 2016'!AD$5","v":0},{"$f":"'Population 2016'!AE155/'Population 2016'!AE$5","v":0},{"$f":"'Population 2016'!AF155/'Population 2016'!AF$5","v":0},{"$f":"'Population 2016'!AG155/'Population 2016'!AG$5","v":0},{"$f":"'Population 2016'!AH155/'Population 2016'!AH$5","v":0},{"$f":"'Population 2016'!AI155/'Population 2016'!AI$5","v":0},{"$f":"'Population 2016'!AJ155/'Population 2016'!AJ$5","v":0},{"$f":"'Population 2016'!AK155/'Population 2016'!AK$5","v":0},{"$f":"'Population 2016'!AL155/'Population 2016'!AL$5","v":0},{"$f":"'Population 2016'!AM155/'Population 2016'!AM$5","v":0},{"$f":"'Population 2016'!AN155/'Population 2016'!AN$5","v":0},{"$f":"'Population 2016'!AO155/'Population 2016'!AO$5","v":0},{"$f":"'Population 2016'!AP155/'Population 2016'!AP$5","v":0},{"$f":"'Population 2016'!AQ155/'Population 2016'!AQ$5","v":0},{"$f":"'Population 2016'!AR155/'Population 2016'!AR$5","v":0},{"$f":"'Population 2016'!AS155/'Population 2016'!AS$5","v":0},{"$f":"'Population 2016'!AT155/'Population 2016'!AT$5","v":0},{"$f":"'Population 2016'!AU155/'Population 2016'!AU$5","v":0},{"$f":"'Population 2016'!AV155/'Population 2016'!AV$5","v":0},{"$f":"'Population 2016'!AW155/'Population 2016'!AW$5","v":0},{"$f":"'Population 2016'!AX155/'Population 2016'!AX$5","v":0},{"$f":"'Population 2016'!AY155/'Population 2016'!AY$5","v":0},{"$f":"'Population 2016'!AZ155/'Population 2016'!AZ$5","v":0},{"$f":"'Population 2016'!BA155/'Population 2016'!BA$5","v":0},{"$f":"'Population 2016'!BB155/'Population 2016'!BB$5","v":0},{"$f":"'Population 2016'!BC155/'Population 2016'!BC$5","v":0},153]
[null,"Male 5-9",{"$f":"'Population 2016'!C156/'Population 2016'!C$5","v":0},{"$f":"'Population 2016'!D156/'Population 2016'!D$5","v":0},{"$f":"'Population 2016'!E156/'Population 2016'!E$5","v":0},{"$f":"'Population 2016'!F156/'Population 2016'!F$5","v":0},{"$f":"'Population 2016'!G156/'Population 2016'!G$5","v":0},{"$f":"'Population 2016'!H156/'Population 2016'!H$5","v":0},{"$f":"'Population 2016'!I156/'Population 2016'!I$5","v":0},{"$f":"'Population 2016'!J156/'Population 2016'!J$5","v":0},{"$f":"'Population 2016'!K156/'Population 2016'!K$5","v":0},{"$f":"'Population 2016'!L156/'Population 2016'!L$5","v":0},{"$f":"'Population 2016'!M156/'Population 2016'!M$5","v":0},{"$f":"'Population 2016'!N156/'Population 2016'!N$5","v":0},{"$f":"'Population 2016'!O156/'Population 2016'!O$5","v":0},{"$f":"'Population 2016'!P156/'Population 2016'!P$5","v":0},{"$f":"'Population 2016'!Q156/'Population 2016'!Q$5","v":0},{"$f":"'Population 2016'!R156/'Population 2016'!R$5","v":0},{"$f":"'Population 2016'!S156/'Population 2016'!S$5","v":0},{"$f":"'Population 2016'!T156/'Population 2016'!T$5","v":0},{"$f":"'Population 2016'!U156/'Population 2016'!U$5","v":0},{"$f":"'Population 2016'!V156/'Population 2016'!V$5","v":0},{"$f":"'Population 2016'!W156/'Population 2016'!W$5","v":0},{"$f":"'Population 2016'!X156/'Population 2016'!X$5","v":0},{"$f":"'Population 2016'!Y156/'Population 2016'!Y$5","v":0},{"$f":"'Population 2016'!Z156/'Population 2016'!Z$5","v":0},{"$f":"'Population 2016'!AA156/'Population 2016'!AA$5","v":0},{"$f":"'Population 2016'!AB156/'Population 2016'!AB$5","v":0},{"$f":"'Population 2016'!AC156/'Population 2016'!AC$5","v":0},{"$f":"'Population 2016'!AD156/'Population 2016'!AD$5","v":0},{"$f":"'Population 2016'!AE156/'Population 2016'!AE$5","v":0},{"$f":"'Population 2016'!AF156/'Population 2016'!AF$5","v":0},{"$f":"'Population 2016'!AG156/'Population 2016'!AG$5","v":0},{"$f":"'Population 2016'!AH156/'Population 2016'!AH$5","v":0},{"$f":"'Population 2016'!AI156/'Population 2016'!AI$5","v":0},{"$f":"'Population 2016'!AJ156/'Population 2016'!AJ$5","v":0},{"$f":"'Population 2016'!AK156/'Population 2016'!AK$5","v":0},{"$f":"'Population 2016'!AL156/'Population 2016'!AL$5","v":0},{"$f":"'Population 2016'!AM156/'Population 2016'!AM$5","v":0},{"$f":"'Population 2016'!AN156/'Population 2016'!AN$5","v":0},{"$f":"'Population 2016'!AO156/'Population 2016'!AO$5","v":0},{"$f":"'Population 2016'!AP156/'Population 2016'!AP$5","v":0},{"$f":"'Population 2016'!AQ156/'Population 2016'!AQ$5","v":0},{"$f":"'Population 2016'!AR156/'Population 2016'!AR$5","v":0},{"$f":"'Population 2016'!AS156/'Population 2016'!AS$5","v":0},{"$f":"'Population 2016'!AT156/'Population 2016'!AT$5","v":0},{"$f":"'Population 2016'!AU156/'Population 2016'!AU$5","v":0},{"$f":"'Population 2016'!AV156/'Population 2016'!AV$5","v":0},{"$f":"'Population 2016'!AW156/'Population 2016'!AW$5","v":0},{"$f":"'Population 2016'!AX156/'Population 2016'!AX$5","v":0},{"$f":"'Population 2016'!AY156/'Population 2016'!AY$5","v":0},{"$f":"'Population 2016'!AZ156/'Population 2016'!AZ$5","v":0},{"$f":"'Population 2016'!BA156/'Population 2016'!BA$5","v":0},{"$f":"'Population 2016'!BB156/'Population 2016'!BB$5","v":0},{"$f":"'Population 2016'!BC156/'Population 2016'!BC$5","v":0},154]
[null,"Male 10-15",{"$f":"'Population 2016'!C157/'Population 2016'!C$5","v":0},{"$f":"'Population 2016'!D157/'Population 2016'!D$5","v":0},{"$f":"'Population 2016'!E157/'Population 2016'!E$5","v":0},{"$f":"'Population 2016'!F157/'Population 2016'!F$5","v":0},{"$f":"'Population 2016'!G157/'Population 2016'!G$5","v":0},{"$f":"'Population 2016'!H157/'Population 2016'!H$5","v":0},{"$f":"'Population 2016'!I157/'Population 2016'!I$5","v":0},{"$f":"'Population 2016'!J157/'Population 2016'!J$5","v":0},{"$f":"'Population 2016'!K157/'Population 2016'!K$5","v":0},{"$f":"'Population 2016'!L157/'Population 2016'!L$5","v":0},{"$f":"'Population 2016'!M157/'Population 2016'!M$5","v":0},{"$f":"'Population 2016'!N157/'Population 2016'!N$5","v":0},{"$f":"'Population 2016'!O157/'Population 2016'!O$5","v":0},{"$f":"'Population 2016'!P157/'Population 2016'!P$5","v":0},{"$f":"'Population 2016'!Q157/'Population 2016'!Q$5","v":0},{"$f":"'Population 2016'!R157/'Population 2016'!R$5","v":0},{"$f":"'Population 2016'!S157/'Population 2016'!S$5","v":0},{"$f":"'Population 2016'!T157/'Population 2016'!T$5","v":0},{"$f":"'Population 2016'!U157/'Population 2016'!U$5","v":0},{"$f":"'Population 2016'!V157/'Population 2016'!V$5","v":0},{"$f":"'Population 2016'!W157/'Population 2016'!W$5","v":0},{"$f":"'Population 2016'!X157/'Population 2016'!X$5","v":0},{"$f":"'Population 2016'!Y157/'Population 2016'!Y$5","v":0},{"$f":"'Population 2016'!Z157/'Population 2016'!Z$5","v":0},{"$f":"'Population 2016'!AA157/'Population 2016'!AA$5","v":0},{"$f":"'Population 2016'!AB157/'Population 2016'!AB$5","v":0},{"$f":"'Population 2016'!AC157/'Population 2016'!AC$5","v":0},{"$f":"'Population 2016'!AD157/'Population 2016'!AD$5","v":0},{"$f":"'Population 2016'!AE157/'Population 2016'!AE$5","v":0},{"$f":"'Population 2016'!AF157/'Population 2016'!AF$5","v":0},{"$f":"'Population 2016'!AG157/'Population 2016'!AG$5","v":0},{"$f":"'Population 2016'!AH157/'Population 2016'!AH$5","v":0},{"$f":"'Population 2016'!AI157/'Population 2016'!AI$5","v":0},{"$f":"'Population 2016'!AJ157/'Population 2016'!AJ$5","v":0},{"$f":"'Population 2016'!AK157/'Population 2016'!AK$5","v":0},{"$f":"'Population 2016'!AL157/'Population 2016'!AL$5","v":0},{"$f":"'Population 2016'!AM157/'Population 2016'!AM$5","v":0},{"$f":"'Population 2016'!AN157/'Population 2016'!AN$5","v":0},{"$f":"'Population 2016'!AO157/'Population 2016'!AO$5","v":0},{"$f":"'Population 2016'!AP157/'Population 2016'!AP$5","v":0},{"$f":"'Population 2016'!AQ157/'Population 2016'!AQ$5","v":0},{"$f":"'Population 2016'!AR157/'Population 2016'!AR$5","v":0},{"$f":"'Population 2016'!AS157/'Population 2016'!AS$5","v":0},{"$f":"'Population 2016'!AT157/'Population 2016'!AT$5","v":0},{"$f":"'Population 2016'!AU157/'Population 2016'!AU$5","v":0},{"$f":"'Population 2016'!AV157/'Population 2016'!AV$5","v":0},{"$f":"'Population 2016'!AW157/'Population 2016'!AW$5","v":0},{"$f":"'Population 2016'!AX157/'Population 2016'!AX$5","v":0},{"$f":"'Population 2016'!AY157/'Population 2016'!AY$5","v":0},{"$f":"'Population 2016'!AZ157/'Population 2016'!AZ$5","v":0},{"$f":"'Population 2016'!BA157/'Population 2016'!BA$5","v":0},{"$f":"'Population 2016'!BB157/'Population 2016'!BB$5","v":0},{"$f":"'Population 2016'!BC157/'Population 2016'!BC$5","v":0},155]
[null,"Male 16-19",{"$f":"'Population 2016'!C158/'Population 2016'!C$5","v":3.163764419661339E-3},{"$f":"'Population 2016'!D158/'Population 2016'!D$5","v":4.5259822188316069E-3},{"$f":"'Population 2016'!E158/'Population 2016'!E$5","v":5.7753880338835264E-3},{"$f":"'Population 2016'!F158/'Population 2016'!F$5","v":9.5287149111511725E-3},{"$f":"'Population 2016'!G158/'Population 2016'!G$5","v":1.1029610783305364E-2},{"$f":"'Population 2016'!H158/'Population 2016'!H$5","v":4.6820335070181865E-3},{"$f":"'Population 2016'!I158/'Population 2016'!I$5","v":8.3116991876727234E-3},{"$f":"'Population 2016'!J158/'Population 2016'!J$5","v":4.2460379987228711E-3},{"$f":"'Population 2016'!K158/'Population 2016'!K$5","v":5.1268723715919293E-3},{"$f":"'Population 2016'!L158/'Population 2016'!L$5","v":9.5944593585690907E-3},{"$f":"'Population 2016'!M158/'Population 2016'!M$5","v":9.5944593585690907E-3},{"$f":"'Population 2016'!N158/'Population 2016'!N$5","v":3.1264818639940204E-3},{"$f":"'Population 2016'!O158/'Population 2016'!O$5","v":4.606651410229738E-3},{"$f":"'Population 2016'!P158/'Population 2016'!P$5","v":1.8032232615800743E-3},{"$f":"'Population 2016'!Q158/'Population 2016'!Q$5","v":6.0633835090069445E-3},{"$f":"'Population 2016'!R158/'Population 2016'!R$5","v":3.2735402139777506E-3},{"$f":"'Population 2016'!S158/'Population 2016'!S$5","v":4.9172861452748684E-3},{"$f":"'Population 2016'!T158/'Population 2016'!T$5","v":3.0502133520704691E-3},{"$f":"'Population 2016'!U158/'Population 2016'!U$5","v":1.6863630327977691E-2},{"$f":"'Population 2016'!V158/'Population 2016'!V$5","v":4.7778600377038792E-3},{"$f":"'Population 2016'!W158/'Population 2016'!W$5","v":5.412507599082227E-3},{"$f":"'Population 2016'!X158/'Population 2016'!X$5","v":5.412507599082227E-3},{"$f":"'Population 2016'!Y158/'Population 2016'!Y$5","v":4.5229805567479058E-3},{"$f":"'Population 2016'!Z158/'Population 2016'!Z$5","v":3.9761277471384079E-3},{"$f":"'Population 2016'!AA158/'Population 2016'!AA$5","v":4.4075136347902577E-3},{"$f":"'Population 2016'!AB158/'Population 2016'!AB$5","v":4.92922428175184E-3},{"$f":"'Population 2016'!AC158/'Population 2016'!AC$5","v":3.8972241586526031E-3},{"$f":"'Population 2016'!AD158/'Population 2016'!AD$5","v":9.3230116491123602E-3},{"$f":"'Population 2016'!AE158/'Population 2016'!AE$5","v":8.6756537541453193E-3},{"$f":"'Population 2016'!AF158/'Population 2016'!AF$5","v":3.921036360071785E-3},{"$f":"'Population 2016'!AG158/'Population 2016'!AG$5","v":8.6756537541453193E-3},{"$f":"'Population 2016'!AH158/'Population 2016'!AH$5","v":5.3240203226735273E-3},{"$f":"'Population 2016'!AI158/'Population 2016'!AI$5","v":4.2668321812932017E-3},{"$f":"'Population 2016'!AJ158/'Population 2016'!AJ$5","v":5.7440816440342416E-3},{"$f":"'Population 2016'!AK158/'Population 2016'!AK$5","v":7.0025017914838519E-3},{"$f":"'Population 2016'!AL158/'Population 2016'!AL$5","v":3.3965342934676574E-3},{"$f":"'Population 2016'!AM158/'Population 2016'!AM$5","v":5.3859053717795948E-3},{"$f":"'Population 2016'!AN158/'Population 2016'!AN$5","v":8.1815206719755649E-3},{"$f":"'Population 2016'!AO158/'Population 2016'!AO$5","v":8.1815206719755649E-3},{"$f":"'Population 2016'!AP158/'Population 2016'!AP$5","v":6.3963349872390345E-3},{"$f":"'Population 2016'!AQ158/'Population 2016'!AQ$5","v":5.3775963172028275E-3},{"$f":"'Population 2016'!AR158/'Population 2016'!AR$5","v":5.2858425100968344E-3},{"$f":"'Population 2016'!AS158/'Population 2016'!AS$5","v":8.3116991876727234E-3},{"$f":"'Population 2016'!AT158/'Population 2016'!AT$5","v":8.8047661728264878E-3},{"$f":"'Population 2016'!AU158/'Population 2016'!AU$5","v":8.8047661728264878E-3},{"$f":"'Population 2016'!AV158/'Population 2016'!AV$5","v":6.2928940977721465E-3},{"$f":"'Population 2016'!AW158/'Population 2016'!AW$5","v":5.2588626517786324E-3},{"$f":"'Population 2016'!AX158/'Population 2016'!AX$5","v":3.769630831746681E-3},{"$f":"'Population 2016'!AY158/'Population 2016'!AY$5","v":5.7785869465438637E-3},{"$f":"'Population 2016'!AZ158/'Population 2016'!AZ$5","v":6.1007530302420168E-3},{"$f":"'Population 2016'!BA158/'Population 2016'!BA$5","v":3.5494493629885555E-3},{"$f":"'Population 2016'!BB158/'Population 2016'!BB$5","v":6.09019285610711E-3},{"$f":"'Population 2016'!BC158/'Population 2016'!BC$5","v":1.6863630327977691E-2},156]
[null,"Male 20-24",{"$f":"'Population 2016'!C159/'Population 2016'!C$5","v":1.0324400852529734E-2},{"$f":"'Population 2016'!D159/'Population 2016'!D$5","v":8.6436235243488556E-3},{"$f":"'Population 2016'!E159/'Population 2016'!E$5","v":7.1020396682902132E-3},{"$f":"'Population 2016'!F159/'Population 2016'!F$5","v":1.0126191089363894E-2},{"$f":"'Population 2016'!G159/'Population 2016'!G$5","v":1.1124343636658908E-2},{"$f":"'Population 2016'!H159/'Population 2016'!H$5","v":5.849299478296959E-3},{"$f":"'Population 2016'!I159/'Population 2016'!I$5","v":9.8191106272506497E-3},{"$f":"'Population 2016'!J159/'Population 2016'!J$5","v":7.7208230015839716E-3},{"$f":"'Population 2016'!K159/'Population 2016'!K$5","v":6.9224590086471669E-3},{"$f":"'Population 2016'!L159/'Population 2016'!L$5","v":1.0976442742998745E-2},{"$f":"'Population 2016'!M159/'Population 2016'!M$5","v":1.0976442742998745E-2},{"$f":"'Population 2016'!N159/'Population 2016'!N$5","v":6.1243680729137365E-3},{"$f":"'Population 2016'!O159/'Population 2016'!O$5","v":6.2313628753430219E-3},{"$f":"'Population 2016'!P159/'Population 2016'!P$5","v":2.4907021300574778E-3},{"$f":"'Population 2016'!Q159/'Population 2016'!Q$5","v":7.4617219539135854E-3},{"$f":"'Population 2016'!R159/'Population 2016'!R$5","v":4.3381061372225471E-3},{"$f":"'Population 2016'!S159/'Population 2016'!S$5","v":8.2678548416423789E-3},{"$f":"'Population 2016'!T159/'Population 2016'!T$5","v":8.5503692363531458E-3},{"$f":"'Population 2016'!U159/'Population 2016'!U$5","v":1.9784889124950206E-2},{"$f":"'Population 2016'!V159/'Population 2016'!V$5","v":6.3348623503102558E-3},{"$f":"'Population 2016'!W159/'Population 2016'!W$5","v":7.4944927081494845E-3},{"$f":"'Population 2016'!X159/'Population 2016'!X$5","v":7.4944927081494845E-3},{"$f":"'Population 2016'!Y159/'Population 2016'!Y$5","v":6.9990938140888064E-3},{"$f":"'Population 2016'!Z159/'Population 2016'!Z$5","v":9.1640646324017624E-3},{"$f":"'Population 2016'!AA159/'Population 2016'!AA$5","v":6.945454859526282E-3},{"$f":"'Population 2016'!AB159/'Population 2016'!AB$5","v":8.6179544128634732E-3},{"$f":"'Population 2016'!AC159/'Population 2016'!AC$5","v":7.1593910897540655E-3},{"$f":"'Population 2016'!AD159/'Population 2016'!AD$5","v":9.6691354348877896E-3},{"$f":"'Population 2016'!AE159/'Population 2016'!AE$5","v":9.1171367262497562E-3},{"$f":"'Population 2016'!AF159/'Population 2016'!AF$5","v":5.8212309037988814E-3},{"$f":"'Population 2016'!AG159/'Population 2016'!AG$5","v":9.1171367262497562E-3},{"$f":"'Population 2016'!AH159/'Population 2016'!AH$5","v":6.5612141589961271E-3},{"$f":"'Population 2016'!AI159/'Population 2016'!AI$5","v":8.3887479219529274E-3},{"$f":"'Population 2016'!AJ159/'Population 2016'!AJ$5","v":8.3512254970303651E-3},{"$f":"'Population 2016'!AK159/'Population 2016'!AK$5","v":8.4859761386922791E-3},{"$f":"'Population 2016'!AL159/'Population 2016'!AL$5","v":4.6824284776786507E-3},{"$f":"'Population 2016'!AM159/'Population 2016'!AM$5","v":6.3240018689490057E-3},{"$f":"'Population 2016'!AN159/'Population 2016'!AN$5","v":9.8178248063706779E-3},{"$f":"'Population 2016'!AO159/'Population 2016'!AO$5","v":9.8178248063706779E-3},{"$f":"'Population 2016'!AP159/'Population 2016'!AP$5","v":8.4808902556948781E-3},{"$f":"'Population 2016'!AQ159/'Population 2016'!AQ$5","v":5.9187811695073159E-3},{"$f":"'Population 2016'!AR159/'Population 2016'!AR$5","v":7.8522396827826156E-3},{"$f":"'Population 2016'!AS159/'Population 2016'!AS$5","v":9.8191106272506497E-3},{"$f":"'Population 2016'!AT159/'Population 2016'!AT$5","v":1.2073601518426741E-2},{"$f":"'Population 2016'!AU159/'Population 2016'!AU$5","v":1.2073601518426741E-2},{"$f":"'Population 2016'!AV159/'Population 2016'!AV$5","v":6.8313800021117099E-3},{"$f":"'Population 2016'!AW159/'Population 2016'!AW$5","v":6.8109707730795045E-3},{"$f":"'Population 2016'!AX159/'Population 2016'!AX$5","v":8.1526253242521444E-3},{"$f":"'Population 2016'!AY159/'Population 2016'!AY$5","v":7.8149383433799447E-3},{"$f":"'Population 2016'!AZ159/'Population 2016'!AZ$5","v":8.0969447336781131E-3},{"$f":"'Population 2016'!BA159/'Population 2016'!BA$5","v":5.2769380263442021E-3},{"$f":"'Population 2016'!BB159/'Population 2016'!BB$5","v":8.4724111501626124E-3},{"$f":"'Population 2016'!BC159/'Population 2016'!BC$5","v":1.9784889124950206E-2},157]
[null,"Male 25-29",{"$f":"'Population 2016'!C160/'Population 2016'!C$5","v":1.2813501454104972E-2},{"$f":"'Population 2016'!D160/'Population 2016'!D$5","v":9.4407441096211967E-3},{"$f":"'Population 2016'!E160/'Population 2016'!E$5","v":6.3473014593167978E-3},{"$f":"'Population 2016'!F160/'Population 2016'!F$5","v":9.0033479268606751E-3},{"$f":"'Population 2016'!G160/'Population 2016'!G$5","v":1.0028149190710767E-2},{"$f":"'Population 2016'!H160/'Population 2016'!H$5","v":5.1910911667147628E-3},{"$f":"'Population 2016'!I160/'Population 2016'!I$5","v":9.0863411774558239E-3},{"$f":"'Population 2016'!J160/'Population 2016'!J$5","v":6.4934526425781411E-3},{"$f":"'Population 2016'!K160/'Population 2016'!K$5","v":5.3867599111657137E-3},{"$f":"'Population 2016'!L160/'Population 2016'!L$5","v":1.0444299715660891E-2},{"$f":"'Population 2016'!M160/'Population 2016'!M$5","v":1.0444299715660891E-2},{"$f":"'Population 2016'!N160/'Population 2016'!N$5","v":7.217431141045322E-3},{"$f":"'Population 2016'!O160/'Population 2016'!O$5","v":6.2214560981167216E-3},{"$f":"'Population 2016'!P160/'Population 2016'!P$5","v":2.3441902400540967E-3},{"$f":"'Population 2016'!Q160/'Population 2016'!Q$5","v":7.0151937110022209E-3},{"$f":"'Population 2016'!R160/'Population 2016'!R$5","v":3.3533826582211102E-3},{"$f":"'Population 2016'!S160/'Population 2016'!S$5","v":9.3438145995117135E-3},{"$f":"'Population 2016'!T160/'Population 2016'!T$5","v":1.1784386444116649E-2},{"$f":"'Population 2016'!U160/'Population 2016'!U$5","v":1.8191475235692471E-2},{"$f":"'Population 2016'!V160/'Population 2016'!V$5","v":5.8998175864937684E-3},{"$f":"'Population 2016'!W160/'Population 2016'!W$5","v":7.4650769059805598E-3},{"$f":"'Population 2016'!X160/'Population 2016'!X$5","v":7.4650769059805598E-3},{"$f":"'Population 2016'!Y160/'Population 2016'!Y$5","v":6.1843213939365036E-3},{"$f":"'Population 2016'!Z160/'Population 2016'!Z$5","v":9.4292688687006732E-3},{"$f":"'Population 2016'!AA160/'Population 2016'!AA$5","v":6.8836672852067926E-3},{"$f":"'Population 2016'!AB160/'Population 2016'!AB$5","v":9.3098471899532263E-3},{"$f":"'Population 2016'!AC160/'Population 2016'!AC$5","v":7.287643689454947E-3},{"$f":"'Population 2016'!AD160/'Population 2016'!AD$5","v":9.3862815884476532E-3},{"$f":"'Population 2016'!AE160/'Population 2016'!AE$5","v":9.142804340906991E-3},{"$f":"'Population 2016'!AF160/'Population 2016'!AF$5","v":5.4894509041004992E-3},{"$f":"'Population 2016'!AG160/'Population 2016'!AG$5","v":9.142804340906991E-3},{"$f":"'Population 2016'!AH160/'Population 2016'!AH$5","v":6.1581044555696941E-3},{"$f":"'Population 2016'!AI160/'Population 2016'!AI$5","v":1.0163290751596814E-2},{"$f":"'Population 2016'!AJ160/'Population 2016'!AJ$5","v":7.9190251791540021E-3},{"$f":"'Population 2016'!AK160/'Population 2016'!AK$5","v":8.6368379367134755E-3},{"$f":"'Population 2016'!AL160/'Population 2016'!AL$5","v":3.7423954878416489E-3},{"$f":"'Population 2016'!AM160/'Population 2016'!AM$5","v":5.9907784027729985E-3},{"$f":"'Population 2016'!AN160/'Population 2016'!AN$5","v":1.1072324642740263E-2},{"$f":"'Population 2016'!AO160/'Population 2016'!AO$5","v":1.1072324642740263E-2},{"$f":"'Population 2016'!AP160/'Population 2016'!AP$5","v":6.840194664172598E-3},{"$f":"'Population 2016'!AQ160/'Population 2016'!AQ$5","v":6.2750041102647008E-3},{"$f":"'Population 2016'!AR160/'Population 2016'!AR$5","v":8.0066245127019958E-3},{"$f":"'Population 2016'!AS160/'Population 2016'!AS$5","v":9.0863411774558239E-3},{"$f":"'Population 2016'!AT160/'Population 2016'!AT$5","v":1.0650076448568566E-2},{"$f":"'Population 2016'!AU160/'Population 2016'!AU$5","v":1.0650076448568566E-2},{"$f":"'Population 2016'!AV160/'Population 2016'!AV$5","v":5.8177594762960621E-3},{"$f":"'Population 2016'!AW160/'Population 2016'!AW$5","v":6.3342790896332903E-3},{"$f":"'Population 2016'!AX160/'Population 2016'!AX$5","v":7.0920173275234163E-3},{"$f":"'Population 2016'!AY160/'Population 2016'!AY$5","v":7.5257795049111101E-3},{"$f":"'Population 2016'!AZ160/'Population 2016'!AZ$5","v":7.5792004878301343E-3},{"$f":"'Population 2016'!BA160/'Population 2016'!BA$5","v":5.8707622543727059E-3},{"$f":"'Population 2016'!BB160/'Population 2016'!BB$5","v":8.3135965972255792E-3},{"$f":"'Population 2016'!BC160/'Population 2016'!BC$5","v":1.8191475235692471E-2},158]
[null,"Male 30-34",{"$f":"'Population 2016'!C161/'Population 2016'!C$5","v":9.7161811983460522E-3},{"$f":"'Population 2016'!D161/'Population 2016'!D$5","v":8.1570376456089905E-3},{"$f":"'Population 2016'!E161/'Population 2016'!E$5","v":6.7270144712847897E-3},{"$f":"'Population 2016'!F161/'Population 2016'!F$5","v":1.0064383208859129E-2},{"$f":"'Population 2016'!G161/'Population 2016'!G$5","v":9.5003518648838839E-3},{"$f":"'Population 2016'!H161/'Population 2016'!H$5","v":4.8344265643795823E-3},{"$f":"'Population 2016'!I161/'Population 2016'!I$5","v":9.2642994724059964E-3},{"$f":"'Population 2016'!J161/'Population 2016'!J$5","v":5.4319431428974238E-3},{"$f":"'Population 2016'!K161/'Population 2016'!K$5","v":5.1977507914756889E-3},{"$f":"'Population 2016'!L161/'Population 2016'!L$5","v":9.7930201896653055E-3},{"$f":"'Population 2016'!M161/'Population 2016'!M$5","v":9.7930201896653055E-3},{"$f":"'Population 2016'!N161/'Population 2016'!N$5","v":5.9154001334179923E-3},{"$f":"'Population 2016'!O161/'Population 2016'!O$5","v":5.2704054843918727E-3},{"$f":"'Population 2016'!P161/'Population 2016'!P$5","v":2.0173560238927082E-3},{"$f":"'Population 2016'!Q161/'Population 2016'!Q$5","v":6.1691401981175311E-3},{"$f":"'Population 2016'!R161/'Population 2016'!R$5","v":3.3799968063022304E-3},{"$f":"'Population 2016'!S161/'Population 2016'!S$5","v":8.79921478769434E-3},{"$f":"'Population 2016'!T161/'Population 2016'!T$5","v":1.0430287152808476E-2},{"$f":"'Population 2016'!U161/'Population 2016'!U$5","v":1.9873412118797857E-2},{"$f":"'Population 2016'!V161/'Population 2016'!V$5","v":5.9150823150487322E-3},{"$f":"'Population 2016'!W161/'Population 2016'!W$5","v":7.4029768791794952E-3},{"$f":"'Population 2016'!X161/'Population 2016'!X$5","v":7.4029768791794952E-3},{"$f":"'Population 2016'!Y161/'Population 2016'!Y$5","v":5.6835344430136246E-3},{"$f":"'Population 2016'!Z161/'Population 2016'!Z$5","v":8.6956016748518626E-3},{"$f":"'Population 2016'!AA161/'Population 2016'!AA$5","v":6.7879962023895185E-3},{"$f":"'Population 2016'!AB161/'Population 2016'!AB$5","v":8.45009876871744E-3},{"$f":"'Population 2016'!AC161/'Population 2016'!AC$5","v":6.8015249647822495E-3},{"$f":"'Population 2016'!AD161/'Population 2016'!AD$5","v":9.8738322974431508E-3},{"$f":"'Population 2016'!AE161/'Population 2016'!AE$5","v":1.001550323925297E-2},{"$f":"'Population 2016'!AF161/'Population 2016'!AF$5","v":4.8711336319353328E-3},{"$f":"'Population 2016'!AG161/'Population 2016'!AG$5","v":1.001550323925297E-2},{"$f":"'Population 2016'!AH161/'Population 2016'!AH$5","v":6.7636978349107863E-3},{"$f":"'Population 2016'!AI161/'Population 2016'!AI$5","v":9.3225019686761744E-3},{"$f":"'Population 2016'!AJ161/'Population 2016'!AJ$5","v":7.9050832334160558E-3},{"$f":"'Population 2016'!AK161/'Population 2016'!AK$5","v":9.9568786693989414E-3},{"$f":"'Population 2016'!AL161/'Population 2016'!AL$5","v":3.4940848867526294E-3},{"$f":"'Population 2016'!AM161/'Population 2016'!AM$5","v":6.979582818708324E-3},{"$f":"'Population 2016'!AN161/'Population 2016'!AN$5","v":9.5451074506381593E-3},{"$f":"'Population 2016'!AO161/'Population 2016'!AO$5","v":9.5451074506381593E-3},{"$f":"'Population 2016'!AP161/'Population 2016'!AP$5","v":7.6328012301253908E-3},{"$f":"'Population 2016'!AQ161/'Population 2016'!AQ$5","v":6.5079191099906833E-3},{"$f":"'Population 2016'!AR161/'Population 2016'!AR$5","v":7.7176820532424938E-3},{"$f":"'Population 2016'!AS161/'Population 2016'!AS$5","v":9.2642994724059964E-3},{"$f":"'Population 2016'!AT161/'Population 2016'!AT$5","v":1.1704539463278325E-2},{"$f":"'Population 2016'!AU161/'Population 2016'!AU$5","v":1.1704539463278325E-2},{"$f":"'Population 2016'!AV161/'Population 2016'!AV$5","v":5.9655791363108441E-3},{"$f":"'Population 2016'!AW161/'Population 2016'!AW$5","v":6.536396363414485E-3},{"$f":"'Population 2016'!AX161/'Population 2016'!AX$5","v":5.5586081756264618E-3},{"$f":"'Population 2016'!AY161/'Population 2016'!AY$5","v":7.5594382056852604E-3},{"$f":"'Population 2016'!AZ161/'Population 2016'!AZ$5","v":7.6971311216066183E-3},{"$f":"'Population 2016'!BA161/'Population 2016'!BA$5","v":5.1014899589721446E-3},{"$f":"'Population 2016'!BB161/'Population 2016'!BB$5","v":8.589795819724768E-3},{"$f":"'Population 2016'!BC161/'Population 2016'!BC$5","v":1.9873412118797857E-2},159]
[null,"Male 35-39",{"$f":"'Population 2016'!C162/'Population 2016'!C$5","v":7.0430813736564223E-3},{"$f":"'Population 2016'!D162/'Population 2016'!D$5","v":6.9148988194790845E-3},{"$f":"'Population 2016'!E162/'Population 2016'!E$5","v":6.7973316957233064E-3},{"$f":"'Population 2016'!F162/'Population 2016'!F$5","v":9.9613700746845231E-3},{"$f":"'Population 2016'!G162/'Population 2016'!G$5","v":1.0664212634655985E-2},{"$f":"'Population 2016'!H162/'Population 2016'!H$5","v":5.1683943283843421E-3},{"$f":"'Population 2016'!I162/'Population 2016'!I$5","v":8.7408927225525509E-3},{"$f":"'Population 2016'!J162/'Population 2016'!J$5","v":5.3241335843361003E-3},{"$f":"'Population 2016'!K162/'Population 2016'!K$5","v":5.2450030713981953E-3},{"$f":"'Population 2016'!L162/'Population 2016'!L$5","v":9.0861436309627817E-3},{"$f":"'Population 2016'!M162/'Population 2016'!M$5","v":9.0861436309627817E-3},{"$f":"'Population 2016'!N162/'Population 2016'!N$5","v":4.2436566174520376E-3},{"$f":"'Population 2016'!O162/'Population 2016'!O$5","v":5.9242527813277062E-3},{"$f":"'Population 2016'!P162/'Population 2016'!P$5","v":1.7806829708103234E-3},{"$f":"'Population 2016'!Q162/'Population 2016'!Q$5","v":6.3454013466351751E-3},{"$f":"'Population 2016'!R162/'Population 2016'!R$5","v":3.4997604726672701E-3},{"$f":"'Population 2016'!S162/'Population 2016'!S$5","v":7.8132861170298207E-3},{"$f":"'Population 2016'!T162/'Population 2016'!T$5","v":7.952425047579606E-3},{"$f":"'Population 2016'!U162/'Population 2016'!U$5","v":2.1909440977293852E-2},{"$f":"'Population 2016'!V162/'Population 2016'!V$5","v":7.1438929637233726E-3},{"$f":"'Population 2016'!W162/'Population 2016'!W$5","v":7.2951189378934363E-3},{"$f":"'Population 2016'!X162/'Population 2016'!X$5","v":7.2951189378934363E-3},{"$f":"'Population 2016'!Y162/'Population 2016'!Y$5","v":6.2717603853674822E-3},{"$f":"'Population 2016'!Z162/'Population 2016'!Z$5","v":6.6668860570324616E-3},{"$f":"'Population 2016'!AA162/'Population 2016'!AA$5","v":6.1116547974729551E-3},{"$f":"'Population 2016'!AB162/'Population 2016'!AB$5","v":7.2689681995435143E-3},{"$f":"'Population 2016'!AC162/'Population 2016'!AC$5","v":5.5593364789696762E-3},{"$f":"'Population 2016'!AD162/'Population 2016'!AD$5","v":1.0309278350515464E-2},{"$f":"'Population 2016'!AE162/'Population 2016'!AE$5","v":1.0174642450127825E-2},{"$f":"'Population 2016'!AF162/'Population 2016'!AF$5","v":5.2330754497881132E-3},{"$f":"'Population 2016'!AG162/'Population 2016'!AG$5","v":1.0174642450127825E-2},{"$f":"'Population 2016'!AH162/'Population 2016'!AH$5","v":7.1036474926390678E-3},{"$f":"'Population 2016'!AI162/'Population 2016'!AI$5","v":7.9088831043835853E-3},{"$f":"'Population 2016'!AJ162/'Population 2016'!AJ$5","v":8.1699802024370518E-3},{"$f":"'Population 2016'!AK162/'Population 2016'!AK$5","v":9.0894233307770647E-3},{"$f":"'Population 2016'!AL162/'Population 2016'!AL$5","v":3.6980543090757525E-3},{"$f":"'Population 2016'!AM162/'Population 2016'!AM$5","v":7.6496517452579044E-3},{"$f":"'Population 2016'!AN162/'Population 2016'!AN$5","v":8.836042325733609E-3},{"$f":"'Population 2016'!AO162/'Population 2016'!AO$5","v":8.836042325733609E-3},{"$f":"'Population 2016'!AP162/'Population 2016'!AP$5","v":7.4663538512753039E-3},{"$f":"'Population 2016'!AQ162/'Population 2016'!AQ$5","v":5.6927166109497452E-3},{"$f":"'Population 2016'!AR162/'Population 2016'!AR$5","v":7.1304404779647399E-3},{"$f":"'Population 2016'!AS162/'Population 2016'!AS$5","v":8.7408927225525509E-3},{"$f":"'Population 2016'!AT162/'Population 2016'!AT$5","v":1.186270891548479E-2},{"$f":"'Population 2016'!AU162/'Population 2016'!AU$5","v":1.186270891548479E-2},{"$f":"'Population 2016'!AV162/'Population 2016'!AV$5","v":6.113398796325626E-3},{"$f":"'Population 2016'!AW162/'Population 2016'!AW$5","v":6.5287692964793457E-3},{"$f":"'Population 2016'!AX162/'Population 2016'!AX$5","v":5.3669320316393418E-3},{"$f":"'Population 2016'!AY162/'Population 2016'!AY$5","v":7.1432942688412224E-3},{"$f":"'Population 2016'!AZ162/'Population 2016'!AZ$5","v":7.0096818173973575E-3},{"$f":"'Population 2016'!BA162/'Population 2016'!BA$5","v":4.4806737205787088E-3},{"$f":"'Population 2016'!BB162/'Population 2016'!BB$5","v":8.5690808780373284E-3},{"$f":"'Population 2016'!BC162/'Population 2016'!BC$5","v":2.1909440977293852E-2},160]
[null,"Male 40-44",{"$f":"'Population 2016'!C163/'Population 2016'!C$5","v":5.4330881714054983E-3},{"$f":"'Population 2016'!D163/'Population 2016'!D$5","v":6.5065579061647253E-3},{"$f":"'Population 2016'!E163/'Population 2016'!E$5","v":7.4911283101833405E-3},{"$f":"'Population 2016'!F163/'Population 2016'!F$5","v":1.1702292042235385E-2},{"$f":"'Population 2016'!G163/'Population 2016'!G$5","v":1.2761868673198723E-2},{"$f":"'Population 2016'!H163/'Population 2016'!H$5","v":5.7714817468783744E-3},{"$f":"'Population 2016'!I163/'Population 2016'!I$5","v":1.1494012226781676E-2},{"$f":"'Population 2016'!J163/'Population 2016'!J$5","v":5.9461118068052715E-3},{"$f":"'Population 2016'!K163/'Population 2016'!K$5","v":6.8988328686859137E-3},{"$f":"'Population 2016'!L163/'Population 2016'!L$5","v":1.0857306244341017E-2},{"$f":"'Population 2016'!M163/'Population 2016'!M$5","v":1.0857306244341017E-2},{"$f":"'Population 2016'!N163/'Population 2016'!N$5","v":3.8417951953448374E-3},{"$f":"'Population 2016'!O163/'Population 2016'!O$5","v":6.0332273308170122E-3},{"$f":"'Population 2016'!P163/'Population 2016'!P$5","v":2.1187873323565876E-3},{"$f":"'Population 2016'!Q163/'Population 2016'!Q$5","v":8.237271007391217E-3},{"$f":"'Population 2016'!R163/'Population 2016'!R$5","v":3.5263746207483898E-3},{"$f":"'Population 2016'!S163/'Population 2016'!S$5","v":7.6694129090456526E-3},{"$f":"'Population 2016'!T163/'Population 2016'!T$5","v":5.9445424214645678E-3},{"$f":"'Population 2016'!U163/'Population 2016'!U$5","v":2.4874961271190193E-2},{"$f":"'Population 2016'!V163/'Population 2016'!V$5","v":7.2812755207180531E-3},{"$f":"'Population 2016'!W163/'Population 2016'!W$5","v":7.7951875747651637E-3},{"$f":"'Population 2016'!X163/'Population 2016'!X$5","v":7.7951875747651637E-3},{"$f":"'Population 2016'!Y163/'Population 2016'!Y$5","v":6.641388849143893E-3},{"$f":"'Population 2016'!Z163/'Population 2016'!Z$5","v":4.837557565773554E-3},{"$f":"'Population 2016'!AA163/'Population 2016'!AA$5","v":5.6359569134648412E-3},{"$f":"'Population 2016'!AB163/'Population 2016'!AB$5","v":7.094971495245796E-3},{"$f":"'Population 2016'!AC163/'Population 2016'!AC$5","v":4.7081115632130171E-3},{"$f":"'Population 2016'!AD163/'Population 2016'!AD$5","v":1.0755889686999889E-2},{"$f":"'Population 2016'!AE163/'Population 2016'!AE$5","v":9.9949691475271826E-3},{"$f":"'Population 2016'!AF163/'Population 2016'!AF$5","v":5.2632372679425115E-3},{"$f":"'Population 2016'!AG163/'Population 2016'!AG$5","v":9.9949691475271826E-3},{"$f":"'Population 2016'!AH163/'Population 2016'!AH$5","v":7.3024158717479547E-3},{"$f":"'Population 2016'!AI163/'Population 2016'!AI$5","v":7.1173112258290311E-3},{"$f":"'Population 2016'!AJ163/'Population 2016'!AJ$5","v":8.922845272286201E-3},{"$f":"'Population 2016'!AK163/'Population 2016'!AK$5","v":1.0120312283921904E-2},{"$f":"'Population 2016'!AL163/'Population 2016'!AL$5","v":4.5671414128873201E-3},{"$f":"'Population 2016'!AM163/'Population 2016'!AM$5","v":7.6098098090846859E-3},{"$f":"'Population 2016'!AN163/'Population 2016'!AN$5","v":9.0542162103196249E-3},{"$f":"'Population 2016'!AO163/'Population 2016'!AO$5","v":9.0542162103196249E-3},{"$f":"'Population 2016'!AP163/'Population 2016'!AP$5","v":7.3157586037442737E-3},{"$f":"'Population 2016'!AQ163/'Population 2016'!AQ$5","v":5.8023236696443251E-3},{"$f":"'Population 2016'!AR163/'Population 2016'!AR$5","v":7.09123163227093E-3},{"$f":"'Population 2016'!AS163/'Population 2016'!AS$5","v":1.1494012226781676E-2},{"$f":"'Population 2016'!AT163/'Population 2016'!AT$5","v":1.159909316180735E-2},{"$f":"'Population 2016'!AU163/'Population 2016'!AU$5","v":1.159909316180735E-2},{"$f":"'Population 2016'!AV163/'Population 2016'!AV$5","v":6.9264069264069264E-3},{"$f":"'Population 2016'!AW163/'Population 2016'!AW$5","v":6.978766245652572E-3},{"$f":"'Population 2016'!AX163/'Population 2016'!AX$5","v":5.4308240796350484E-3},{"$f":"'Population 2016'!AY163/'Population 2016'!AY$5","v":7.5303693277439495E-3},{"$f":"'Population 2016'!AZ163/'Population 2016'!AZ$5","v":7.2973175095351235E-3},{"$f":"'Population 2016'!BA163/'Population 2016'!BA$5","v":5.4523860937162596E-3},{"$f":"'Population 2016'!BB163/'Population 2016'!BB$5","v":9.0455245368484295E-3},{"$f":"'Population 2016'!BC163/'Population 2016'!BC$5","v":2.4874961271190193E-2},161]
[null,"Male 45-49",{"$f":"'Population 2016'!C164/'Population 2016'!C$5","v":5.341088559848303E-3},{"$f":"'Population 2016'!D164/'Population 2016'!D$5","v":7.4699490429662669E-3},{"$f":"'Population 2016'!E164/'Population 2016'!E$5","v":9.4225080747612731E-3},{"$f":"'Population 2016'!F164/'Population 2016'!F$5","v":1.4092196755086274E-2},{"$f":"'Population 2016'!G164/'Population 2016'!G$5","v":1.6930114220754616E-2},{"$f":"'Population 2016'!H164/'Population 2016'!H$5","v":7.4445629723779482E-3},{"$f":"'Population 2016'!I164/'Population 2016'!I$5","v":1.4226195461016665E-2},{"$f":"'Population 2016'!J164/'Population 2016'!J$5","v":7.3144638962374465E-3},{"$f":"'Population 2016'!K164/'Population 2016'!K$5","v":8.7416717856636586E-3},{"$f":"'Population 2016'!L164/'Population 2016'!L$5","v":1.4979429097898431E-2},{"$f":"'Population 2016'!M164/'Population 2016'!M$5","v":1.4979429097898431E-2},{"$f":"'Population 2016'!N164/'Population 2016'!N$5","v":4.0266514495141499E-3},{"$f":"'Population 2016'!O164/'Population 2016'!O$5","v":7.905608226587809E-3},{"$f":"'Population 2016'!P164/'Population 2016'!P$5","v":2.6597543108306098E-3},{"$f":"'Population 2016'!Q164/'Population 2016'!Q$5","v":9.4240960740766856E-3},{"$f":"'Population 2016'!R164/'Population 2016'!R$5","v":4.0586575823707881E-3},{"$f":"'Population 2016'!S164/'Population 2016'!S$5","v":8.3781870563541649E-3},{"$f":"'Population 2016'!T164/'Population 2016'!T$5","v":5.211653629777155E-3},{"$f":"'Population 2016'!U164/'Population 2016'!U$5","v":3.3417430177488605E-2},{"$f":"'Population 2016'!V164/'Population 2016'!V$5","v":8.8535425618793927E-3},{"$f":"'Population 2016'!W164/'Population 2016'!W$5","v":9.3051987527699876E-3},{"$f":"'Population 2016'!X164/'Population 2016'!X$5","v":9.3051987527699876E-3},{"$f":"'Population 2016'!Y164/'Population 2016'!Y$5","v":8.1159282046390363E-3},{"$f":"'Population 2016'!Z164/'Population 2016'!Z$5","v":5.0369446923340493E-3},{"$f":"'Population 2016'!AA164/'Population 2016'!AA$5","v":6.5069623966137755E-3},{"$f":"'Population 2016'!AB164/'Population 2016'!AB$5","v":8.2535848438635463E-3},{"$f":"'Population 2016'!AC164/'Population 2016'!AC$5","v":5.3111056408389375E-3},{"$f":"'Population 2016'!AD164/'Population 2016'!AD$5","v":1.4138970560869404E-2},{"$f":"'Population 2016'!AE164/'Population 2016'!AE$5","v":1.308021642932679E-2},{"$f":"'Population 2016'!AF164/'Population 2016'!AF$5","v":6.0625254490340678E-3},{"$f":"'Population 2016'!AG164/'Population 2016'!AG$5","v":1.308021642932679E-2},{"$f":"'Population 2016'!AH164/'Population 2016'!AH$5","v":8.6547839090495345E-3},{"$f":"'Population 2016'!AI164/'Population 2016'!AI$5","v":7.2266821244203342E-3},{"$f":"'Population 2016'!AJ164/'Population 2016'!AJ$5","v":1.0358865683294761E-2},{"$f":"'Population 2016'!AK164/'Population 2016'!AK$5","v":1.2282664722225714E-2},{"$f":"'Population 2016'!AL164/'Population 2016'!AL$5","v":5.9771908976428232E-3},{"$f":"'Population 2016'!AM164/'Population 2016'!AM$5","v":8.5153083584760102E-3},{"$f":"'Population 2016'!AN164/'Population 2016'!AN$5","v":1.1781389767644812E-2},{"$f":"'Population 2016'!AO164/'Population 2016'!AO$5","v":1.1781389767644812E-2},{"$f":"'Population 2016'!AP164/'Population 2016'!AP$5","v":9.5667612510502032E-3},{"$f":"'Population 2016'!AQ164/'Population 2016'!AQ$5","v":7.5080835205787256E-3},{"$f":"'Population 2016'!AR164/'Population 2016'!AR$5","v":8.3877968705548915E-3},{"$f":"'Population 2016'!AS164/'Population 2016'!AS$5","v":1.4226195461016665E-2},{"$f":"'Population 2016'!AT164/'Population 2016'!AT$5","v":1.3866188643433332E-2},{"$f":"'Population 2016'!AU164/'Population 2016'!AU$5","v":1.3866188643433332E-2},{"$f":"'Population 2016'!AV164/'Population 2016'!AV$5","v":8.70024284658431E-3},{"$f":"'Population 2016'!AW164/'Population 2016'!AW$5","v":8.8016352431508939E-3},{"$f":"'Population 2016'!AX164/'Population 2016'!AX$5","v":6.5425457147603406E-3},{"$f":"'Population 2016'!AY164/'Population 2016'!AY$5","v":9.0618402129677787E-3},{"$f":"'Population 2016'!AZ164/'Population 2016'!AZ$5","v":8.8476738901576823E-3},{"$f":"'Population 2016'!BA164/'Population 2016'!BA$5","v":6.6670265601381992E-3},{"$f":"'Population 2016'!BB164/'Population 2016'!BB$5","v":1.0364375824282054E-2},{"$f":"'Population 2016'!BC164/'Population 2016'!BC$5","v":3.3417430177488605E-2},162]
[null,"Male 50-54",{"$f":"'Population 2016'!C165/'Population 2016'!C$5","v":5.4586436190602753E-3},{"$f":"'Population 2016'!D165/'Population 2016'!D$5","v":7.4797296636444546E-3},{"$f":"'Population 2016'!E165/'Population 2016'!E$5","v":9.3334395904724841E-3},{"$f":"'Population 2016'!F165/'Population 2016'!F$5","v":1.6399690960597475E-2},{"$f":"'Population 2016'!G165/'Population 2016'!G$5","v":1.893303740594381E-2},{"$f":"'Population 2016'!H165/'Population 2016'!H$5","v":8.3264972617885756E-3},{"$f":"'Population 2016'!I165/'Population 2016'!I$5","v":1.6340758730424589E-2},{"$f":"'Population 2016'!J165/'Population 2016'!J$5","v":7.8452186460778051E-3},{"$f":"'Population 2016'!K165/'Population 2016'!K$5","v":8.9779331852761889E-3},{"$f":"'Population 2016'!L165/'Population 2016'!L$5","v":1.7425698537003795E-2},{"$f":"'Population 2016'!M165/'Population 2016'!M$5","v":1.7425698537003795E-2},{"$f":"'Population 2016'!N165/'Population 2016'!N$5","v":5.1599006598564553E-3},{"$f":"'Population 2016'!O165/'Population 2016'!O$5","v":8.9656333898019639E-3},{"$f":"'Population 2016'!P165/'Population 2016'!P$5","v":2.7273751831398624E-3},{"$f":"'Population 2016'!Q165/'Population 2016'!Q$5","v":9.6238587090633487E-3},{"$f":"'Population 2016'!R165/'Population 2016'!R$5","v":5.1631447277372651E-3},{"$f":"'Population 2016'!S165/'Population 2016'!S$5","v":8.6694641031932786E-3},{"$f":"'Population 2016'!T165/'Population 2016'!T$5","v":5.1209150174729998E-3},{"$f":"'Population 2016'!U165/'Population 2016'!U$5","v":3.1868277785154692E-2},{"$f":"'Population 2016'!V165/'Population 2016'!V$5","v":9.1817342258111289E-3},{"$f":"'Population 2016'!W165/'Population 2016'!W$5","v":9.697409448355657E-3},{"$f":"'Population 2016'!X165/'Population 2016'!X$5","v":9.697409448355657E-3},{"$f":"'Population 2016'!Y165/'Population 2016'!Y$5","v":8.5411996629624325E-3},{"$f":"'Population 2016'!Z165/'Population 2016'!Z$5","v":5.0543668684412766E-3},{"$f":"'Population 2016'!AA165/'Population 2016'!AA$5","v":6.7992907052221128E-3},{"$f":"'Population 2016'!AB165/'Population 2016'!AB$5","v":8.310901405279264E-3},{"$f":"'Population 2016'!AC165/'Population 2016'!AC$5","v":5.7227551140724134E-3},{"$f":"'Population 2016'!AD165/'Population 2016'!AD$5","v":1.6383192526703637E-2},{"$f":"'Population 2016'!AE165/'Population 2016'!AE$5","v":1.5415969363135145E-2},{"$f":"'Population 2016'!AF165/'Population 2016'!AF$5","v":7.2237554479784045E-3},{"$f":"'Population 2016'!AG165/'Population 2016'!AG$5","v":1.5415969363135145E-2},{"$f":"'Population 2016'!AH165/'Population 2016'!AH$5","v":8.7328051419707786E-3},{"$f":"'Population 2016'!AI165/'Population 2016'!AI$5","v":7.2376192142794647E-3},{"$f":"'Population 2016'!AJ165/'Population 2016'!AJ$5","v":1.0442517357722444E-2},{"$f":"'Population 2016'!AK165/'Population 2016'!AK$5","v":1.2584388318268106E-2},{"$f":"'Population 2016'!AL165/'Population 2016'!AL$5","v":6.7043862294035228E-3},{"$f":"'Population 2016'!AM165/'Population 2016'!AM$5","v":8.4030265383514859E-3},{"$f":"'Population 2016'!AN165/'Population 2016'!AN$5","v":1.5490345805607068E-2},{"$f":"'Population 2016'!AO165/'Population 2016'!AO$5","v":1.5490345805607068E-2},{"$f":"'Population 2016'!AP165/'Population 2016'!AP$5","v":1.1247087170870123E-2},{"$f":"'Population 2016'!AQ165/'Population 2016'!AQ$5","v":8.6795089603770477E-3},{"$f":"'Population 2016'!AR165/'Population 2016'!AR$5","v":8.9970934215354136E-3},{"$f":"'Population 2016'!AS165/'Population 2016'!AS$5","v":1.6340758730424589E-2},{"$f":"'Population 2016'!AT165/'Population 2016'!AT$5","v":1.5816945220646386E-2},{"$f":"'Population 2016'!AU165/'Population 2016'!AU$5","v":1.5816945220646386E-2},{"$f":"'Population 2016'!AV165/'Population 2016'!AV$5","v":9.5766022595290892E-3},{"$f":"'Population 2016'!AW165/'Population 2016'!AW$5","v":9.080023186283483E-3},{"$f":"'Population 2016'!AX165/'Population 2016'!AX$5","v":7.2325798331139704E-3},{"$f":"'Population 2016'!AY165/'Population 2016'!AY$5","v":1.0128209051130627E-2},{"$f":"'Population 2016'!AZ165/'Population 2016'!AZ$5","v":1.0507331833792592E-2},{"$f":"'Population 2016'!BA165/'Population 2016'!BA$5","v":7.368818829626431E-3},{"$f":"'Population 2016'!BB165/'Population 2016'!BB$5","v":1.0530095357781568E-2},{"$f":"'Population 2016'!BC165/'Population 2016'!BC$5","v":3.1868277785154692E-2},163]
[null,"Male 55-59",{"$f":"'Population 2016'!C166/'Population 2016'!C$5","v":4.8402017858146821E-3},{"$f":"'Population 2016'!D166/'Population 2016'!D$5","v":6.8244280782058433E-3},{"$f":"'Population 2016'!E166/'Population 2016'!E$5","v":8.6443307909750185E-3},{"$f":"'Population 2016'!F166/'Population 2016'!F$5","v":1.5204738604172032E-2},{"$f":"'Population 2016'!G166/'Population 2016'!G$5","v":1.9122503112650895E-2},{"$f":"'Population 2016'!H166/'Population 2016'!H$5","v":7.2921699150165524E-3},{"$f":"'Population 2016'!I166/'Population 2016'!I$5","v":1.601624654551545E-2},{"$f":"'Population 2016'!J166/'Population 2016'!J$5","v":7.3642221540349802E-3},{"$f":"'Population 2016'!K166/'Population 2016'!K$5","v":8.8834286254311778E-3},{"$f":"'Population 2016'!L166/'Population 2016'!L$5","v":1.6726764411545123E-2},{"$f":"'Population 2016'!M166/'Population 2016'!M$5","v":1.6726764411545123E-2},{"$f":"'Population 2016'!N166/'Population 2016'!N$5","v":4.7901881515178303E-3},{"$f":"'Population 2016'!O166/'Population 2016'!O$5","v":7.0635321623522653E-3},{"$f":"'Population 2016'!P166/'Population 2016'!P$5","v":2.6034035839062322E-3},{"$f":"'Population 2016'!Q166/'Population 2016'!Q$5","v":9.8588735737535401E-3},{"$f":"'Population 2016'!R166/'Population 2016'!R$5","v":5.0566881354127853E-3},{"$f":"'Population 2016'!S166/'Population 2016'!S$5","v":8.114272398763573E-3},{"$f":"'Population 2016'!T166/'Population 2016'!T$5","v":4.3135740310744847E-3},{"$f":"'Population 2016'!U166/'Population 2016'!U$5","v":3.1381401318992606E-2},{"$f":"'Population 2016'!V166/'Population 2016'!V$5","v":7.800276291586845E-3},{"$f":"'Population 2016'!W166/'Population 2016'!W$5","v":9.4980356780996079E-3},{"$f":"'Population 2016'!X166/'Population 2016'!X$5","v":9.4980356780996079E-3},{"$f":"'Population 2016'!Y166/'Population 2016'!Y$5","v":7.5912942560531632E-3},{"$f":"'Population 2016'!Z166/'Population 2016'!Z$5","v":4.4852424489385057E-3},{"$f":"'Population 2016'!AA166/'Population 2016'!AA$5","v":6.1628122514794138E-3},{"$f":"'Population 2016'!AB166/'Population 2016'!AB$5","v":7.6824662497569163E-3},{"$f":"'Population 2016'!AC166/'Population 2016'!AC$5","v":5.2345677990819593E-3},{"$f":"'Population 2016'!AD166/'Population 2016'!AD$5","v":1.6301313781681492E-2},{"$f":"'Population 2016'!AE166/'Population 2016'!AE$5","v":1.5231162537603055E-2},{"$f":"'Population 2016'!AF166/'Population 2016'!AF$5","v":7.7063445384487773E-3},{"$f":"'Population 2016'!AG166/'Population 2016'!AG$5","v":1.5231162537603055E-2},{"$f":"'Population 2016'!AH166/'Population 2016'!AH$5","v":7.8299880181678019E-3},{"$f":"'Population 2016'!AI166/'Population 2016'!AI$5","v":6.5034670574853444E-3},{"$f":"'Population 2016'!AJ166/'Population 2016'!AJ$5","v":9.6478264506594542E-3},{"$f":"'Population 2016'!AK166/'Population 2016'!AK$5","v":1.2094087474699219E-2},{"$f":"'Population 2016'!AL166/'Population 2016'!AL$5","v":6.4028662137954277E-3},{"$f":"'Population 2016'!AM166/'Population 2016'!AM$5","v":6.9506068651278017E-3},{"$f":"'Population 2016'!AN166/'Population 2016'!AN$5","v":1.652667175739064E-2},{"$f":"'Population 2016'!AO166/'Population 2016'!AO$5","v":1.652667175739064E-2},{"$f":"'Population 2016'!AP166/'Population 2016'!AP$5","v":1.0494110933214972E-2},{"$f":"'Population 2016'!AQ166/'Population 2016'!AQ$5","v":7.5080835205787256E-3},{"$f":"'Population 2016'!AR166/'Population 2016'!AR$5","v":8.3641824521256646E-3},{"$f":"'Population 2016'!AS166/'Population 2016'!AS$5","v":1.601624654551545E-2},{"$f":"'Population 2016'!AT166/'Population 2016'!AT$5","v":1.4235250698581748E-2},{"$f":"'Population 2016'!AU166/'Population 2016'!AU$5","v":1.4235250698581748E-2},{"$f":"'Population 2016'!AV166/'Population 2016'!AV$5","v":8.5946573751451809E-3},{"$f":"'Population 2016'!AW166/'Population 2016'!AW$5","v":8.7558728415400577E-3},{"$f":"'Population 2016'!AX166/'Population 2016'!AX$5","v":6.5425457147603406E-3},{"$f":"'Population 2016'!AY166/'Population 2016'!AY$5","v":9.6416878308497288E-3},{"$f":"'Population 2016'!AZ166/'Population 2016'!AZ$5","v":9.7681081049985335E-3},{"$f":"'Population 2016'!BA166/'Population 2016'!BA$5","v":7.0988987259771111E-3},{"$f":"'Population 2016'!BB166/'Population 2016'!BB$5","v":9.473633331722171E-3},{"$f":"'Population 2016'!BC166/'Population 2016'!BC$5","v":3.1381401318992606E-2},164]
[null,"Male 60-64",{"$f":"'Population 2016'!C167/'Population 2016'!C$5","v":4.3444261013120163E-3},{"$f":"'Population 2016'!D167/'Population 2016'!D$5","v":6.2938294064141314E-3},{"$f":"'Population 2016'!E167/'Population 2016'!E$5","v":8.0817929954668834E-3},{"$f":"'Population 2016'!F167/'Population 2016'!F$5","v":1.2938449652330672E-2},{"$f":"'Population 2016'!G167/'Population 2016'!G$5","v":1.8540572727764847E-2},{"$f":"'Population 2016'!H167/'Population 2016'!H$5","v":7.0262926660030547E-3},{"$f":"'Population 2016'!I167/'Population 2016'!I$5","v":1.4131982246043045E-2},{"$f":"'Population 2016'!J167/'Population 2016'!J$5","v":6.4519874277468633E-3},{"$f":"'Population 2016'!K167/'Population 2016'!K$5","v":7.2768511080659641E-3},{"$f":"'Population 2016'!L167/'Population 2016'!L$5","v":1.6186678950963419E-2},{"$f":"'Population 2016'!M167/'Population 2016'!M$5","v":1.6186678950963419E-2},{"$f":"'Population 2016'!N167/'Population 2016'!N$5","v":4.0186142210720055E-3},{"$f":"'Population 2016'!O167/'Population 2016'!O$5","v":6.7366085138843481E-3},{"$f":"'Population 2016'!P167/'Population 2016'!P$5","v":2.299109658514595E-3},{"$f":"'Population 2016'!Q167/'Population 2016'!Q$5","v":8.6837992503025815E-3},{"$f":"'Population 2016'!R167/'Population 2016'!R$5","v":3.9388939160057484E-3},{"$f":"'Population 2016'!S167/'Population 2016'!S$5","v":6.9050313255224005E-3},{"$f":"'Population 2016'!T167/'Population 2016'!T$5","v":3.545785773116243E-3},{"$f":"'Population 2016'!U167/'Population 2016'!U$5","v":3.0230602398973135E-2},{"$f":"'Population 2016'!V167/'Population 2016'!V$5","v":6.4646125430274535E-3},{"$f":"'Population 2016'!W167/'Population 2016'!W$5","v":7.9455350080730042E-3},{"$f":"'Population 2016'!X167/'Population 2016'!X$5","v":7.9455350080730042E-3},{"$f":"'Population 2016'!Y167/'Population 2016'!Y$5","v":6.4585618670609368E-3},{"$f":"'Population 2016'!Z167/'Population 2016'!Z$5","v":3.7457678630539526E-3},{"$f":"'Population 2016'!AA167/'Population 2016'!AA$5","v":5.1888274777979974E-3},{"$f":"'Population 2016'!AB167/'Population 2016'!AB$5","v":6.980338372414358E-3},{"$f":"'Population 2016'!AC167/'Population 2016'!AC$5","v":4.3057707464094442E-3},{"$f":"'Population 2016'!AD167/'Population 2016'!AD$5","v":1.554951803193271E-2},{"$f":"'Population 2016'!AE167/'Population 2016'!AE$5","v":1.4414932391502993E-2},{"$f":"'Population 2016'!AF167/'Population 2016'!AF$5","v":5.7759881765672835E-3},{"$f":"'Population 2016'!AG167/'Population 2016'!AG$5","v":1.4414932391502993E-2},{"$f":"'Population 2016'!AH167/'Population 2016'!AH$5","v":6.7748437253281075E-3},{"$f":"'Population 2016'!AI167/'Population 2016'!AI$5","v":5.5259646513255755E-3},{"$f":"'Population 2016'!AJ167/'Population 2016'!AJ$5","v":9.1738002955692489E-3},{"$f":"'Population 2016'!AK167/'Population 2016'!AK$5","v":1.051003859547666E-2},{"$f":"'Population 2016'!AL167/'Population 2016'!AL$5","v":5.6845391177879076E-3},{"$f":"'Population 2016'!AM167/'Population 2016'!AM$5","v":5.9292045014143887E-3},{"$f":"'Population 2016'!AN167/'Population 2016'!AN$5","v":1.3199520017453911E-2},{"$f":"'Population 2016'!AO167/'Population 2016'!AO$5","v":1.3199520017453911E-2},{"$f":"'Population 2016'!AP167/'Population 2016'!AP$5","v":9.8996560087503769E-3},{"$f":"'Population 2016'!AQ167/'Population 2016'!AQ$5","v":6.0420891105387184E-3},{"$f":"'Population 2016'!AR167/'Population 2016'!AR$5","v":7.4066846180802235E-3},{"$f":"'Population 2016'!AS167/'Population 2016'!AS$5","v":1.4131982246043045E-2},{"$f":"'Population 2016'!AT167/'Population 2016'!AT$5","v":1.4024358095639795E-2},{"$f":"'Population 2016'!AU167/'Population 2016'!AU$5","v":1.4024358095639795E-2},{"$f":"'Population 2016'!AV167/'Population 2016'!AV$5","v":8.9325308837503968E-3},{"$f":"'Population 2016'!AW167/'Population 2016'!AW$5","v":7.6652022698151202E-3},{"$f":"'Population 2016'!AX167/'Population 2016'!AX$5","v":6.0058525115964066E-3},{"$f":"'Population 2016'!AY167/'Population 2016'!AY$5","v":8.3167589731036381E-3},{"$f":"'Population 2016'!AZ167/'Population 2016'!AZ$5","v":8.6434525487398672E-3},{"$f":"'Population 2016'!BA167/'Population 2016'!BA$5","v":6.2486503994817538E-3},{"$f":"'Population 2016'!BB167/'Population 2016'!BB$5","v":7.7404832105397621E-3},{"$f":"'Population 2016'!BC167/'Population 2016'!BC$5","v":3.0230602398973135E-2},165]
[null,"Male 65-69",{"$f":"'Population 2016'!C168/'Population 2016'!C$5","v":4.0990938038261617E-3},{"$f":"'Population 2016'!D168/'Population 2016'!D$5","v":6.3574034408223545E-3},{"$f":"'Population 2016'!E168/'Population 2016'!E$5","v":8.4286913026968991E-3},{"$f":"'Population 2016'!F168/'Population 2016'!F$5","v":1.5091424156579963E-2},{"$f":"'Population 2016'!G168/'Population 2016'!G$5","v":2.1233692415958426E-2},{"$f":"'Population 2016'!H168/'Population 2016'!H$5","v":7.5223807037965327E-3},{"$f":"'Population 2016'!I168/'Population 2016'!I$5","v":1.5304413365714765E-2},{"$f":"'Population 2016'!J168/'Population 2016'!J$5","v":6.6095552441057196E-3},{"$f":"'Population 2016'!K168/'Population 2016'!K$5","v":7.7021216273685201E-3},{"$f":"'Population 2016'!L168/'Population 2016'!L$5","v":1.7393928804028402E-2},{"$f":"'Population 2016'!M168/'Population 2016'!M$5","v":1.7393928804028402E-2},{"$f":"'Population 2016'!N168/'Population 2016'!N$5","v":4.0427259063984377E-3},{"$f":"'Population 2016'!O168/'Population 2016'!O$5","v":7.0239050534470632E-3},{"$f":"'Population 2016'!P168/'Population 2016'!P$5","v":2.5019722754423533E-3},{"$f":"'Population 2016'!Q168/'Population 2016'!Q$5","v":8.1197635750461222E-3},{"$f":"'Population 2016'!R168/'Population 2016'!R$5","v":3.4731463245861499E-3},{"$f":"'Population 2016'!S168/'Population 2016'!S$5","v":6.9350416879240071E-3},{"$f":"'Population 2016'!T168/'Population 2016'!T$5","v":3.1967911104079515E-3},{"$f":"'Population 2016'!U168/'Population 2016'!U$5","v":3.2886292214402695E-2},{"$f":"'Population 2016'!V168/'Population 2016'!V$5","v":6.9530838567863169E-3},{"$f":"'Population 2016'!W168/'Population 2016'!W$5","v":8.4782878695768699E-3},{"$f":"'Population 2016'!X168/'Population 2016'!X$5","v":8.4782878695768699E-3},{"$f":"'Population 2016'!Y168/'Population 2016'!Y$5","v":6.788445334732357E-3},{"$f":"'Population 2016'!Z168/'Population 2016'!Z$5","v":2.9714489249549445E-3},{"$f":"'Population 2016'!AA168/'Population 2016'!AA$5","v":4.6931981182029518E-3},{"$f":"'Population 2016'!AB168/'Population 2016'!AB$5","v":7.1011125553974803E-3},{"$f":"'Population 2016'!AC168/'Population 2016'!AC$5","v":3.8186177265778689E-3},{"$f":"'Population 2016'!AD168/'Population 2016'!AD$5","v":1.6126391008225091E-2},{"$f":"'Population 2016'!AE168/'Population 2016'!AE$5","v":1.4189057382519328E-2},{"$f":"'Population 2016'!AF168/'Population 2016'!AF$5","v":5.3989654496373043E-3},{"$f":"'Population 2016'!AG168/'Population 2016'!AG$5","v":1.4189057382519328E-2},{"$f":"'Population 2016'!AH168/'Population 2016'!AH$5","v":6.2639904145342408E-3},{"$f":"'Population 2016'!AI168/'Population 2016'!AI$5","v":5.1964848193192751E-3},{"$f":"'Population 2016'!AJ168/'Population 2016'!AJ$5","v":9.2295680785210391E-3},{"$f":"'Population 2016'!AK168/'Population 2016'!AK$5","v":1.092490854003495E-2},{"$f":"'Population 2016'!AL168/'Population 2016'!AL$5","v":6.766463879675777E-3},{"$f":"'Population 2016'!AM168/'Population 2016'!AM$5","v":5.9726684317851723E-3},{"$f":"'Population 2016'!AN168/'Population 2016'!AN$5","v":1.2763172248281881E-2},{"$f":"'Population 2016'!AO168/'Population 2016'!AO$5","v":1.2763172248281881E-2},{"$f":"'Population 2016'!AP168/'Population 2016'!AP$5","v":9.5746873167097315E-3},{"$f":"'Population 2016'!AQ168/'Population 2016'!AQ$5","v":6.2887049926015235E-3},{"$f":"'Population 2016'!AR168/'Population 2016'!AR$5","v":7.434309032091772E-3},{"$f":"'Population 2016'!AS168/'Population 2016'!AS$5","v":1.5304413365714765E-2},{"$f":"'Population 2016'!AT168/'Population 2016'!AT$5","v":1.4604312753730163E-2},{"$f":"'Population 2016'!AU168/'Population 2016'!AU$5","v":1.4604312753730163E-2},{"$f":"'Population 2016'!AV168/'Population 2016'!AV$5","v":8.9536479780382219E-3},{"$f":"'Population 2016'!AW168/'Population 2016'!AW$5","v":6.570718164622613E-3},{"$f":"'Population 2016'!AX168/'Population 2016'!AX$5","v":6.0186309211955483E-3},{"$f":"'Population 2016'!AY168/'Population 2016'!AY$5","v":8.8277592484930084E-3},{"$f":"'Population 2016'!AZ168/'Population 2016'!AZ$5","v":9.1353095822954474E-3},{"$f":"'Population 2016'!BA168/'Population 2016'!BA$5","v":5.3714100626214636E-3},{"$f":"'Population 2016'!BB168/'Population 2016'!BB$5","v":7.4159491241032154E-3},{"$f":"'Population 2016'!BC168/'Population 2016'!BC$5","v":3.2886292214402695E-2},166]
[null,"Male 70-74",{"$f":"'Population 2016'!C169/'Population 2016'!C$5","v":2.5351004073538358E-3},{"$f":"'Population 2016'!D169/'Population 2016'!D$5","v":4.327924650098295E-3},{"$f":"'Population 2016'!E169/'Population 2016'!E$5","v":5.9722762623113743E-3},{"$f":"'Population 2016'!F169/'Population 2016'!F$5","v":9.8583569405099152E-3},{"$f":"'Population 2016'!G169/'Population 2016'!G$5","v":1.5333188978509176E-2},{"$f":"'Population 2016'!H169/'Population 2016'!H$5","v":5.7098760428386615E-3},{"$f":"'Population 2016'!I169/'Population 2016'!I$5","v":1.1295117661837367E-2},{"$f":"'Population 2016'!J169/'Population 2016'!J$5","v":4.735327533731952E-3},{"$f":"'Population 2016'!K169/'Population 2016'!K$5","v":5.8829088503520293E-3},{"$f":"'Population 2016'!L169/'Population 2016'!L$5","v":1.3938970342954268E-2},{"$f":"'Population 2016'!M169/'Population 2016'!M$5","v":1.3938970342954268E-2},{"$f":"'Population 2016'!N169/'Population 2016'!N$5","v":2.8451788685189801E-3},{"$f":"'Population 2016'!O169/'Population 2016'!O$5","v":5.3991935883337793E-3},{"$f":"'Population 2016'!P169/'Population 2016'!P$5","v":1.3862278823396821E-3},{"$f":"'Population 2016'!Q169/'Population 2016'!Q$5","v":6.1808909413520402E-3},{"$f":"'Population 2016'!R169/'Population 2016'!R$5","v":2.8876350668015117E-3},{"$f":"'Population 2016'!S169/'Population 2016'!S$5","v":4.9393525882172259E-3},{"$f":"'Population 2016'!T169/'Population 2016'!T$5","v":1.8962043340483845E-3},{"$f":"'Population 2016'!U169/'Population 2016'!U$5","v":2.3724162351170718E-2},{"$f":"'Population 2016'!V169/'Population 2016'!V$5","v":5.2434342586302959E-3},{"$f":"'Population 2016'!W169/'Population 2016'!W$5","v":6.21000268010642E-3},{"$f":"'Population 2016'!X169/'Population 2016'!X$5","v":6.21000268010642E-3},{"$f":"'Population 2016'!Y169/'Population 2016'!Y$5","v":4.9999205100077901E-3},{"$f":"'Population 2016'!Z169/'Population 2016'!Z$5","v":2.1080833089745501E-3},{"$f":"'Population 2016'!AA169/'Population 2016'!AA$5","v":3.4441589814218714E-3},{"$f":"'Population 2016'!AB169/'Population 2016'!AB$5","v":4.92922428175184E-3},{"$f":"'Population 2016'!AC169/'Population 2016'!AC$5","v":2.8060427660362292E-3},{"$f":"'Population 2016'!AD169/'Population 2016'!AD$5","v":1.2114332502140012E-2},{"$f":"'Population 2016'!AE169/'Population 2016'!AE$5","v":1.0893335660530395E-2},{"$f":"'Population 2016'!AF169/'Population 2016'!AF$5","v":4.5393536322369515E-3},{"$f":"'Population 2016'!AG169/'Population 2016'!AG$5","v":1.0893335660530395E-2},{"$f":"'Population 2016'!AH169/'Population 2016'!AH$5","v":4.5902492035332469E-3},{"$f":"'Population 2016'!AI169/'Population 2016'!AI$5","v":3.5777955201679937E-3},{"$f":"'Population 2016'!AJ169/'Population 2016'!AJ$5","v":6.5527144968351783E-3},{"$f":"'Population 2016'!AK169/'Population 2016'!AK$5","v":8.020818928126925E-3},{"$f":"'Population 2016'!AL169/'Population 2016'!AL$5","v":5.090367322324897E-3},{"$f":"'Population 2016'!AM169/'Population 2016'!AM$5","v":4.2015132691757429E-3},{"$f":"'Population 2016'!AN169/'Population 2016'!AN$5","v":1.0635976873568233E-2},{"$f":"'Population 2016'!AO169/'Population 2016'!AO$5","v":1.0635976873568233E-2},{"$f":"'Population 2016'!AP169/'Population 2016'!AP$5","v":7.6882836897420861E-3},{"$f":"'Population 2016'!AQ169/'Population 2016'!AQ$5","v":4.6514495533512357E-3},{"$f":"'Population 2016'!AR169/'Population 2016'!AR$5","v":5.4437917805338328E-3},{"$f":"'Population 2016'!AS169/'Population 2016'!AS$5","v":1.1295117661837367E-2},{"$f":"'Population 2016'!AT169/'Population 2016'!AT$5","v":1.0913692202246006E-2},{"$f":"'Population 2016'!AU169/'Population 2016'!AU$5","v":1.0913692202246006E-2},{"$f":"'Population 2016'!AV169/'Population 2016'!AV$5","v":6.7785872663921444E-3},{"$f":"'Population 2016'!AW169/'Population 2016'!AW$5","v":4.9995423759838916E-3},{"$f":"'Population 2016'!AX169/'Population 2016'!AX$5","v":4.1146478909234955E-3},{"$f":"'Population 2016'!AY169/'Population 2016'!AY$5","v":6.3966830880328018E-3},{"$f":"'Population 2016'!AZ169/'Population 2016'!AZ$5","v":6.5609701376624424E-3},{"$f":"'Population 2016'!BA169/'Population 2016'!BA$5","v":4.1027855754696609E-3},{"$f":"'Population 2016'!BB169/'Population 2016'!BB$5","v":5.5654143333586517E-3},{"$f":"'Population 2016'!BC169/'Population 2016'!BC$5","v":2.3724162351170718E-2},167]
[null,"Male 75-79",{"$f":"'Population 2016'!C170/'Population 2016'!C$5","v":2.2948791993989358E-3},{"$f":"'Population 2016'!D170/'Population 2016'!D$5","v":3.2496112203280422E-3},{"$f":"'Population 2016'!E170/'Population 2016'!E$5","v":4.1252771670596622E-3},{"$f":"'Population 2016'!F170/'Population 2016'!F$5","v":7.3654390934844195E-3},{"$f":"'Population 2016'!G170/'Population 2016'!G$5","v":1.1516808314837871E-2},{"$f":"'Population 2016'!H170/'Population 2016'!H$5","v":4.2216119294582266E-3},{"$f":"'Population 2016'!I170/'Population 2016'!I$5","v":8.3640398626580684E-3},{"$f":"'Population 2016'!J170/'Population 2016'!J$5","v":3.3172171865022432E-3},{"$f":"'Population 2016'!K170/'Population 2016'!K$5","v":3.8983130936067665E-3},{"$f":"'Population 2016'!L170/'Population 2016'!L$5","v":1.0460184582148587E-2},{"$f":"'Population 2016'!M170/'Population 2016'!M$5","v":1.0460184582148587E-2},{"$f":"'Population 2016'!N170/'Population 2016'!N$5","v":2.4754663601803555E-3},{"$f":"'Population 2016'!O170/'Population 2016'!O$5","v":4.0320583311043087E-3},{"$f":"'Population 2016'!P170/'Population 2016'!P$5","v":7.6636988617153159E-4},{"$f":"'Population 2016'!Q170/'Population 2016'!Q$5","v":4.1010093888438444E-3},{"$f":"'Population 2016'!R170/'Population 2016'!R$5","v":2.2888167349763133E-3},{"$f":"'Population 2016'!S170/'Population 2016'!S$5","v":3.6709734478905364E-3},{"$f":"'Population 2016'!T170/'Population 2016'!T$5","v":1.5146368361539857E-3},{"$f":"'Population 2016'!U170/'Population 2016'!U$5","v":1.8279998229540122E-2},{"$f":"'Population 2016'!V170/'Population 2016'!V$5","v":3.7245937674113311E-3},{"$f":"'Population 2016'!W170/'Population 2016'!W$5","v":4.6999915021015953E-3},{"$f":"'Population 2016'!X170/'Population 2016'!X$5","v":4.6999915021015953E-3},{"$f":"'Population 2016'!Y170/'Population 2016'!Y$5","v":3.5293556541231459E-3},{"$f":"'Population 2016'!Z170/'Population 2016'!Z$5","v":1.5021787399120761E-3},{"$f":"'Population 2016'!AA170/'Population 2016'!AA$5","v":2.5379412247360242E-3},{"$f":"'Population 2016'!AB170/'Population 2016'!AB$5","v":3.8750089557127213E-3},{"$f":"'Population 2016'!AC170/'Population 2016'!AC$5","v":1.9610236212328383E-3},{"$f":"'Population 2016'!AD170/'Population 2016'!AD$5","v":8.533998287989876E-3},{"$f":"'Population 2016'!AE170/'Population 2016'!AE$5","v":7.4025400671464802E-3},{"$f":"'Population 2016'!AF170/'Population 2016'!AF$5","v":3.2273145425206233E-3},{"$f":"'Population 2016'!AG170/'Population 2016'!AG$5","v":7.4025400671464802E-3},{"$f":"'Population 2016'!AH170/'Population 2016'!AH$5","v":3.5741155271541755E-3},{"$f":"'Population 2016'!AI170/'Population 2016'!AI$5","v":2.6276358386560505E-3},{"$f":"'Population 2016'!AJ170/'Population 2016'!AJ$5","v":4.7960293338538329E-3},{"$f":"'Population 2016'!AK170/'Population 2016'!AK$5","v":7.0905045069962159E-3},{"$f":"'Population 2016'!AL170/'Population 2016'!AL$5","v":3.8044731381139036E-3},{"$f":"'Population 2016'!AM170/'Population 2016'!AM$5","v":3.0642070911402401E-3},{"$f":"'Population 2016'!AN170/'Population 2016'!AN$5","v":7.6360859605105269E-3},{"$f":"'Population 2016'!AO170/'Population 2016'!AO$5","v":7.6360859605105269E-3},{"$f":"'Population 2016'!AP170/'Population 2016'!AP$5","v":5.8811407193697192E-3},{"$f":"'Population 2016'!AQ170/'Population 2016'!AQ$5","v":3.2813613196689866E-3},{"$f":"'Population 2016'!AR170/'Population 2016'!AR$5","v":4.0425211020448078E-3},{"$f":"'Population 2016'!AS170/'Population 2016'!AS$5","v":8.3640398626580684E-3},{"$f":"'Population 2016'!AT170/'Population 2016'!AT$5","v":8.2248115147361203E-3},{"$f":"'Population 2016'!AU170/'Population 2016'!AU$5","v":8.2248115147361203E-3},{"$f":"'Population 2016'!AV170/'Population 2016'!AV$5","v":4.9202829690634569E-3},{"$f":"'Population 2016'!AW170/'Population 2016'!AW$5","v":4.1109890780401488E-3},{"$f":"'Population 2016'!AX170/'Population 2016'!AX$5","v":3.0029262557982033E-3},{"$f":"'Population 2016'!AY170/'Population 2016'!AY$5","v":4.9004008445274012E-3},{"$f":"'Population 2016'!AZ170/'Population 2016'!AZ$5","v":5.0767699662315697E-3},{"$f":"'Population 2016'!BA170/'Population 2016'!BA$5","v":2.5237529691211403E-3},{"$f":"'Population 2016'!BB170/'Population 2016'!BB$5","v":3.991078765113276E-3},{"$f":"'Population 2016'!BC170/'Population 2016'!BC$5","v":1.8279998229540122E-2},168]
[null,"Male 80-84",{"$f":"'Population 2016'!C171/'Population 2016'!C$5","v":1.6202153813128345E-3},{"$f":"'Population 2016'!D171/'Population 2016'!D$5","v":2.2397621353051063E-3},{"$f":"'Population 2016'!E171/'Population 2016'!E$5","v":2.8080011625781108E-3},{"$f":"'Population 2016'!F171/'Population 2016'!F$5","v":4.8416173062065413E-3},{"$f":"'Population 2016'!G171/'Population 2016'!G$5","v":6.8748985005142637E-3},{"$f":"'Population 2016'!H171/'Population 2016'!H$5","v":2.6036515970468172E-3},{"$f":"'Population 2016'!I171/'Population 2016'!I$5","v":5.4643664684699772E-3},{"$f":"'Population 2016'!J171/'Population 2016'!J$5","v":2.3469311594503371E-3},{"$f":"'Population 2016'!K171/'Population 2016'!K$5","v":2.4807446959315789E-3},{"$f":"'Population 2016'!L171/'Population 2016'!L$5","v":7.0846504535129386E-3},{"$f":"'Population 2016'!M171/'Population 2016'!M$5","v":7.0846504535129386E-3},{"$f":"'Population 2016'!N171/'Population 2016'!N$5","v":1.6878179728502423E-3},{"$f":"'Population 2016'!O171/'Population 2016'!O$5","v":2.5658553016118329E-3},{"$f":"'Population 2016'!P171/'Population 2016'!P$5","v":7.7764003155640703E-4},{"$f":"'Population 2016'!Q171/'Population 2016'!Q$5","v":3.2197036462556258E-3},{"$f":"'Population 2016'!R171/'Population 2016'!R$5","v":1.7166125512322352E-3},{"$f":"'Population 2016'!S171/'Population 2016'!S$5","v":2.4970386833571357E-3},{"$f":"'Population 2016'!T171/'Population 2016'!T$5","v":1.2680139411734596E-3},{"$f":"'Population 2016'!U171/'Population 2016'!U$5","v":1.0844066746337361E-2},{"$f":"'Population 2016'!V171/'Population 2016'!V$5","v":2.2133856404698482E-3},{"$f":"'Population 2016'!W171/'Population 2016'!W$5","v":2.9742644415246535E-3},{"$f":"'Population 2016'!X171/'Population 2016'!X$5","v":2.9742644415246535E-3},{"$f":"'Population 2016'!Y171/'Population 2016'!Y$5","v":2.2773882768159491E-3},{"$f":"'Population 2016'!Z171/'Population 2016'!Z$5","v":1.0356515797074236E-3},{"$f":"'Population 2016'!AA171/'Population 2016'!AA$5","v":1.7234082557500646E-3},{"$f":"'Population 2016'!AB171/'Population 2016'!AB$5","v":2.521928702291639E-3},{"$f":"'Population 2016'!AC171/'Population 2016'!AC$5","v":1.420087253139603E-3},{"$f":"'Population 2016'!AD171/'Population 2016'!AD$5","v":5.6607986899400798E-3},{"$f":"'Population 2016'!AE171/'Population 2016'!AE$5","v":5.2002587295557449E-3},{"$f":"'Population 2016'!AF171/'Population 2016'!AF$5","v":2.1264081798850836E-3},{"$f":"'Population 2016'!AG171/'Population 2016'!AG$5","v":5.2002587295557449E-3},{"$f":"'Population 2016'!AH171/'Population 2016'!AH$5","v":2.2681886999247653E-3},{"$f":"'Population 2016'!AI171/'Population 2016'!AI$5","v":1.9098893166506255E-3},{"$f":"'Population 2016'!AJ171/'Population 2016'!AJ$5","v":3.109053899562223E-3},{"$f":"'Population 2016'!AK171/'Population 2016'!AK$5","v":3.9726940145581634E-3},{"$f":"'Population 2016'!AL171/'Population 2016'!AL$5","v":2.4298965963711178E-3},{"$f":"'Population 2016'!AM171/'Population 2016'!AM$5","v":1.8508390349558661E-3},{"$f":"'Population 2016'!AN171/'Population 2016'!AN$5","v":5.7270644703828954E-3},{"$f":"'Population 2016'!AO171/'Population 2016'!AO$5","v":5.7270644703828954E-3},{"$f":"'Population 2016'!AP171/'Population 2016'!AP$5","v":4.1928887338902711E-3},{"$f":"'Population 2016'!AQ171/'Population 2016'!AQ$5","v":2.2948977914177674E-3},{"$f":"'Population 2016'!AR171/'Population 2016'!AR$5","v":2.6947170313200704E-3},{"$f":"'Population 2016'!AS171/'Population 2016'!AS$5","v":5.4643664684699772E-3},{"$f":"'Population 2016'!AT171/'Population 2016'!AT$5","v":4.90325301840038E-3},{"$f":"'Population 2016'!AU171/'Population 2016'!AU$5","v":4.90325301840038E-3},{"$f":"'Population 2016'!AV171/'Population 2016'!AV$5","v":2.8508077288565093E-3},{"$f":"'Population 2016'!AW171/'Population 2016'!AW$5","v":2.707608761974495E-3},{"$f":"'Population 2016'!AX171/'Population 2016'!AX$5","v":2.2745569086471498E-3},{"$f":"'Population 2016'!AY171/'Population 2016'!AY$5","v":3.2419448609283682E-3},{"$f":"'Population 2016'!AZ171/'Population 2016'!AZ$5","v":3.477515517945591E-3},{"$f":"'Population 2016'!BA171/'Population 2016'!BA$5","v":2.2133448499244224E-3},{"$f":"'Population 2016'!BB171/'Population 2016'!BB$5","v":2.4512680996802995E-3},{"$f":"'Population 2016'!BC171/'Population 2016'!BC$5","v":1.0844066746337361E-2},169]
[null,"Male 85-89",{"$f":"'Population 2016'!C172/'Population 2016'!C$5","v":8.0755214589093953E-4},{"$f":"'Population 2016'!D172/'Population 2016'!D$5","v":1.0196297057011238E-3},{"$f":"'Population 2016'!E172/'Population 2016'!E$5","v":1.2141440753050596E-3},{"$f":"'Population 2016'!F172/'Population 2016'!F$5","v":2.7504506824620138E-3},{"$f":"'Population 2016'!G172/'Population 2016'!G$5","v":3.3156498673740055E-3},{"$f":"'Population 2016'!H172/'Population 2016'!H$5","v":1.2126596479396135E-3},{"$f":"'Population 2016'!I172/'Population 2016'!I$5","v":2.7112469642408508E-3},{"$f":"'Population 2016'!J172/'Population 2016'!J$5","v":1.0283373278156954E-3},{"$f":"'Population 2016'!K172/'Population 2016'!K$5","v":1.3230638378301752E-3},{"$f":"'Population 2016'!L172/'Population 2016'!L$5","v":3.2802249297094657E-3},{"$f":"'Population 2016'!M172/'Population 2016'!M$5","v":3.2802249297094657E-3},{"$f":"'Population 2016'!N172/'Population 2016'!N$5","v":1.1573608956687376E-3},{"$f":"'Population 2016'!O172/'Population 2016'!O$5","v":1.0501183859878544E-3},{"$f":"'Population 2016'!P172/'Population 2016'!P$5","v":2.2540290769750929E-4},{"$f":"'Population 2016'!Q172/'Population 2016'!Q$5","v":1.6451040528313416E-3},{"$f":"'Population 2016'!R172/'Population 2016'!R$5","v":9.4480225687975728E-4},{"$f":"'Population 2016'!S172/'Population 2016'!S$5","v":1.2471953551020263E-3},{"$f":"'Population 2016'!T172/'Population 2016'!T$5","v":5.7700450901104219E-4},{"$f":"'Population 2016'!U172/'Population 2016'!U$5","v":6.5949630416500685E-3},{"$f":"'Population 2016'!V172/'Population 2016'!V$5","v":9.540455346852795E-4},{"$f":"'Population 2016'!W172/'Population 2016'!W$5","v":1.5263532903208937E-3},{"$f":"'Population 2016'!X172/'Population 2016'!X$5","v":1.5263532903208937E-3},{"$f":"'Population 2016'!Y172/'Population 2016'!Y$5","v":9.8965040301426054E-4},{"$f":"'Population 2016'!Z172/'Population 2016'!Z$5","v":4.5878397082366239E-4},{"$f":"'Population 2016'!AA172/'Population 2016'!AA$5","v":8.4177265228810012E-4},{"$f":"'Population 2016'!AB172/'Population 2016'!AB$5","v":1.2425411706907669E-3},{"$f":"'Population 2016'!AC172/'Population 2016'!AC$5","v":7.1780084026138705E-4},{"$f":"'Population 2016'!AD172/'Population 2016'!AD$5","v":2.7541032416539507E-3},{"$f":"'Population 2016'!AE172/'Population 2016'!AE$5","v":2.5410938510662326E-3},{"$f":"'Population 2016'!AF172/'Population 2016'!AF$5","v":1.3422009078707265E-3},{"$f":"'Population 2016'!AG172/'Population 2016'!AG$5","v":2.5410938510662326E-3},{"$f":"'Population 2016'!AH172/'Population 2016'!AH$5","v":1.0644325348541281E-3},{"$f":"'Population 2016'!AI172/'Population 2016'!AI$5","v":9.3922259165281298E-4},{"$f":"'Population 2016'!AJ172/'Population 2016'!AJ$5","v":1.6869754342916097E-3},{"$f":"'Population 2016'!AK172/'Population 2016'!AK$5","v":2.3886451353356047E-3},{"$f":"'Population 2016'!AL172/'Population 2016'!AL$5","v":1.0375835831219738E-3},{"$f":"'Population 2016'!AM172/'Population 2016'!AM$5","v":8.8376658420593213E-4},{"$f":"'Population 2016'!AN172/'Population 2016'!AN$5","v":2.8908039707646995E-3},{"$f":"'Population 2016'!AO172/'Population 2016'!AO$5","v":2.8908039707646995E-3},{"$f":"'Population 2016'!AP172/'Population 2016'!AP$5","v":2.2668547786249861E-3},{"$f":"'Population 2016'!AQ172/'Population 2016'!AQ$5","v":1.424891763029539E-3},{"$f":"'Population 2016'!AR172/'Population 2016'!AR$5","v":1.3408979672218505E-3},{"$f":"'Population 2016'!AS172/'Population 2016'!AS$5","v":2.7112469642408508E-3},{"$f":"'Population 2016'!AT172/'Population 2016'!AT$5","v":3.0052195919228132E-3},{"$f":"'Population 2016'!AU172/'Population 2016'!AU$5","v":3.0052195919228132E-3},{"$f":"'Population 2016'!AV172/'Population 2016'!AV$5","v":1.5943406187308626E-3},{"$f":"'Population 2016'!AW172/'Population 2016'!AW$5","v":1.254652510830435E-3},{"$f":"'Population 2016'!AX172/'Population 2016'!AX$5","v":8.6893185274160777E-4},{"$f":"'Population 2016'!AY172/'Population 2016'!AY$5","v":1.7808512591413971E-3},{"$f":"'Population 2016'!AZ172/'Population 2016'!AZ$5","v":2.0048207742002291E-3},{"$f":"'Population 2016'!BA172/'Population 2016'!BA$5","v":9.3122435759015326E-4},{"$f":"'Population 2016'!BB172/'Population 2016'!BB$5","v":1.2290865401213896E-3},{"$f":"'Population 2016'!BC172/'Population 2016'!BC$5","v":6.5949630416500685E-3},170]
[null,"Male 90+",{"$f":"'Population 2016'!C173/'Population 2016'!C$5","v":3.2199864045018479E-4},{"$f":"'Population 2016'!D173/'Population 2016'!D$5","v":4.5479886153575308E-4},{"$f":"'Population 2016'!E173/'Population 2016'!E$5","v":5.7660124039583913E-4},{"$f":"'Population 2016'!F173/'Population 2016'!F$5","v":1.205253669842905E-3},{"$f":"'Population 2016'!G173/'Population 2016'!G$5","v":1.3668597412439777E-3},{"$f":"'Population 2016'!H173/'Population 2016'!H$5","v":4.8311841589038077E-4},{"$f":"'Population 2016'!I173/'Population 2016'!I$5","v":9.7353655472740973E-4},{"$f":"'Population 2016'!J173/'Population 2016'!J$5","v":4.6441040611031406E-4},{"$f":"'Population 2016'!K173/'Population 2016'!K$5","v":6.3790577895383451E-4},{"$f":"'Population 2016'!L173/'Population 2016'!L$5","v":1.588486648769717E-3},{"$f":"'Population 2016'!M173/'Population 2016'!M$5","v":1.588486648769717E-3},{"$f":"'Population 2016'!N173/'Population 2016'!N$5","v":4.1793587899148857E-4},{"$f":"'Population 2016'!O173/'Population 2016'!O$5","v":3.4673720292051791E-4},{"$f":"'Population 2016'!P173/'Population 2016'!P$5","v":1.3524174461850558E-4},{"$f":"'Population 2016'!Q173/'Population 2016'!Q$5","v":6.9329385083606533E-4},{"$f":"'Population 2016'!R173/'Population 2016'!R$5","v":4.6574759141959865E-4},{"$f":"'Population 2016'!S173/'Population 2016'!S$5","v":5.0576287223882597E-4},{"$f":"'Population 2016'!T173/'Population 2016'!T$5","v":2.4429626389580416E-4},{"$f":"'Population 2016'!U173/'Population 2016'!U$5","v":2.6556898154295578E-3},{"$f":"'Population 2016'!V173/'Population 2016'!V$5","v":4.8847131375886305E-4},{"$f":"'Population 2016'!W173/'Population 2016'!W$5","v":6.4387922525313936E-4},{"$f":"'Population 2016'!X173/'Population 2016'!X$5","v":6.4387922525313936E-4},{"$f":"'Population 2016'!Y173/'Population 2016'!Y$5","v":4.7693995325988456E-4},{"$f":"'Population 2016'!Z173/'Population 2016'!Z$5","v":2.322956814297025E-4},{"$f":"'Population 2016'!AA173/'Population 2016'!AA$5","v":3.9862951173864257E-4},{"$f":"'Population 2016'!AB173/'Population 2016'!AB$5","v":5.3222521314596279E-4},{"$f":"'Population 2016'!AC173/'Population 2016'!AC$5","v":3.7441484751386475E-4},{"$f":"'Population 2016'!AD173/'Population 2016'!AD$5","v":1.0718672075626186E-3},{"$f":"'Population 2016'!AE173/'Population 2016'!AE$5","v":9.5996878818057675E-4},{"$f":"'Population 2016'!AF173/'Population 2016'!AF$5","v":5.7307454493356856E-4},{"$f":"'Population 2016'!AG173/'Population 2016'!AG$5","v":9.5996878818057675E-4},{"$f":"'Population 2016'!AH173/'Population 2016'!AH$5","v":4.42120319887055E-4},{"$f":"'Population 2016'!AI173/'Population 2016'!AI$5","v":3.8689955376673376E-4},{"$f":"'Population 2016'!AJ173/'Population 2016'!AJ$5","v":5.2979393804199312E-4},{"$f":"'Population 2016'!AK173/'Population 2016'!AK$5","v":9.303144211307092E-4},{"$f":"'Population 2016'!AL173/'Population 2016'!AL$5","v":5.2322590943757645E-4},{"$f":"'Population 2016'!AM173/'Population 2016'!AM$5","v":3.2597947778087661E-4},{"$f":"'Population 2016'!AN173/'Population 2016'!AN$5","v":1.145412894076579E-3},{"$f":"'Population 2016'!AO173/'Population 2016'!AO$5","v":1.145412894076579E-3},{"$f":"'Population 2016'!AP173/'Population 2016'!AP$5","v":1.0541667327172138E-3},{"$f":"'Population 2016'!AQ173/'Population 2016'!AQ$5","v":9.1110867539869573E-4},{"$f":"'Population 2016'!AR173/'Population 2016'!AR$5","v":5.7766214138665201E-4},{"$f":"'Population 2016'!AS173/'Population 2016'!AS$5","v":9.7353655472740973E-4},{"$f":"'Population 2016'!AT173/'Population 2016'!AT$5","v":1.0544630147097591E-3},{"$f":"'Population 2016'!AU173/'Population 2016'!AU$5","v":1.0544630147097591E-3},{"$f":"'Population 2016'!AV173/'Population 2016'!AV$5","v":5.8072009291521487E-4},{"$f":"'Population 2016'!AW173/'Population 2016'!AW$5","v":5.6440295320031727E-4},{"$f":"'Population 2016'!AX173/'Population 2016'!AX$5","v":3.7057387837509745E-4},{"$f":"'Population 2016'!AY173/'Population 2016'!AY$5","v":7.634405311954959E-4},{"$f":"'Population 2016'!AZ173/'Population 2016'!AZ$5","v":8.6865979025605334E-4},{"$f":"'Population 2016'!BA173/'Population 2016'!BA$5","v":3.2390412437918379E-4},{"$f":"'Population 2016'!BB173/'Population 2016'!BB$5","v":5.593034255608571E-4},{"$f":"'Population 2016'!BC173/'Population 2016'!BC$5","v":2.6556898154295578E-3},171]
["SIMD Q4","Female 0-4",{"$f":"'Population 2016'!C174/'Population 2016'!C$5","v":0},{"$f":"'Population 2016'!D174/'Population 2016'!D$5","v":0},{"$f":"'Population 2016'!E174/'Population 2016'!E$5","v":0},{"$f":"'Population 2016'!F174/'Population 2016'!F$5","v":0},{"$f":"'Population 2016'!G174/'Population 2016'!G$5","v":0},{"$f":"'Population 2016'!H174/'Population 2016'!H$5","v":0},{"$f":"'Population 2016'!I174/'Population 2016'!I$5","v":0},{"$f":"'Population 2016'!J174/'Population 2016'!J$5","v":0},{"$f":"'Population 2016'!K174/'Population 2016'!K$5","v":0},{"$f":"'Population 2016'!L174/'Population 2016'!L$5","v":0},{"$f":"'Population 2016'!M174/'Population 2016'!M$5","v":0},{"$f":"'Population 2016'!N174/'Population 2016'!N$5","v":0},{"$f":"'Population 2016'!O174/'Population 2016'!O$5","v":0},{"$f":"'Population 2016'!P174/'Population 2016'!P$5","v":0},{"$f":"'Population 2016'!Q174/'Population 2016'!Q$5","v":0},{"$f":"'Population 2016'!R174/'Population 2016'!R$5","v":0},{"$f":"'Population 2016'!S174/'Population 2016'!S$5","v":0},{"$f":"'Population 2016'!T174/'Population 2016'!T$5","v":0},{"$f":"'Population 2016'!U174/'Population 2016'!U$5","v":0},{"$f":"'Population 2016'!V174/'Population 2016'!V$5","v":0},{"$f":"'Population 2016'!W174/'Population 2016'!W$5","v":0},{"$f":"'Population 2016'!X174/'Population 2016'!X$5","v":0},{"$f":"'Population 2016'!Y174/'Population 2016'!Y$5","v":0},{"$f":"'Population 2016'!Z174/'Population 2016'!Z$5","v":0},{"$f":"'Population 2016'!AA174/'Population 2016'!AA$5","v":0},{"$f":"'Population 2016'!AB174/'Population 2016'!AB$5","v":0},{"$f":"'Population 2016'!AC174/'Population 2016'!AC$5","v":0},{"$f":"'Population 2016'!AD174/'Population 2016'!AD$5","v":0},{"$f":"'Population 2016'!AE174/'Population 2016'!AE$5","v":0},{"$f":"'Population 2016'!AF174/'Population 2016'!AF$5","v":0},{"$f":"'Population 2016'!AG174/'Population 2016'!AG$5","v":0},{"$f":"'Population 2016'!AH174/'Population 2016'!AH$5","v":0},{"$f":"'Population 2016'!AI174/'Population 2016'!AI$5","v":0},{"$f":"'Population 2016'!AJ174/'Population 2016'!AJ$5","v":0},{"$f":"'Population 2016'!AK174/'Population 2016'!AK$5","v":0},{"$f":"'Population 2016'!AL174/'Population 2016'!AL$5","v":0},{"$f":"'Population 2016'!AM174/'Population 2016'!AM$5","v":0},{"$f":"'Population 2016'!AN174/'Population 2016'!AN$5","v":0},{"$f":"'Population 2016'!AO174/'Population 2016'!AO$5","v":0},{"$f":"'Population 2016'!AP174/'Population 2016'!AP$5","v":0},{"$f":"'Population 2016'!AQ174/'Population 2016'!AQ$5","v":0},{"$f":"'Population 2016'!AR174/'Population 2016'!AR$5","v":0},{"$f":"'Population 2016'!AS174/'Population 2016'!AS$5","v":0},{"$f":"'Population 2016'!AT174/'Population 2016'!AT$5","v":0},{"$f":"'Population 2016'!AU174/'Population 2016'!AU$5","v":0},{"$f":"'Population 2016'!AV174/'Population 2016'!AV$5","v":0},{"$f":"'Population 2016'!AW174/'Population 2016'!AW$5","v":0},{"$f":"'Population 2016'!AX174/'Population 2016'!AX$5","v":0},{"$f":"'Population 2016'!AY174/'Population 2016'!AY$5","v":0},{"$f":"'Population 2016'!AZ174/'Population 2016'!AZ$5","v":0},{"$f":"'Population 2016'!BA174/'Population 2016'!BA$5","v":0},{"$f":"'Population 2016'!BB174/'Population 2016'!BB$5","v":0},{"$f":"'Population 2016'!BC174/'Population 2016'!BC$5","v":0},172]
[null,"Female 5-9",{"$f":"'Population 2016'!C175/'Population 2016'!C$5","v":0},{"$f":"'Population 2016'!D175/'Population 2016'!D$5","v":0},{"$f":"'Population 2016'!E175/'Population 2016'!E$5","v":0},{"$f":"'Population 2016'!F175/'Population 2016'!F$5","v":0},{"$f":"'Population 2016'!G175/'Population 2016'!G$5","v":0},{"$f":"'Population 2016'!H175/'Population 2016'!H$5","v":0},{"$f":"'Population 2016'!I175/'Population 2016'!I$5","v":0},{"$f":"'Population 2016'!J175/'Population 2016'!J$5","v":0},{"$f":"'Population 2016'!K175/'Population 2016'!K$5","v":0},{"$f":"'Population 2016'!L175/'Population 2016'!L$5","v":0},{"$f":"'Population 2016'!M175/'Population 2016'!M$5","v":0},{"$f":"'Population 2016'!N175/'Population 2016'!N$5","v":0},{"$f":"'Population 2016'!O175/'Population 2016'!O$5","v":0},{"$f":"'Population 2016'!P175/'Population 2016'!P$5","v":0},{"$f":"'Population 2016'!Q175/'Population 2016'!Q$5","v":0},{"$f":"'Population 2016'!R175/'Population 2016'!R$5","v":0},{"$f":"'Population 2016'!S175/'Population 2016'!S$5","v":0},{"$f":"'Population 2016'!T175/'Population 2016'!T$5","v":0},{"$f":"'Population 2016'!U175/'Population 2016'!U$5","v":0},{"$f":"'Population 2016'!V175/'Population 2016'!V$5","v":0},{"$f":"'Population 2016'!W175/'Population 2016'!W$5","v":0},{"$f":"'Population 2016'!X175/'Population 2016'!X$5","v":0},{"$f":"'Population 2016'!Y175/'Population 2016'!Y$5","v":0},{"$f":"'Population 2016'!Z175/'Population 2016'!Z$5","v":0},{"$f":"'Population 2016'!AA175/'Population 2016'!AA$5","v":0},{"$f":"'Population 2016'!AB175/'Population 2016'!AB$5","v":0},{"$f":"'Population 2016'!AC175/'Population 2016'!AC$5","v":0},{"$f":"'Population 2016'!AD175/'Population 2016'!AD$5","v":0},{"$f":"'Population 2016'!AE175/'Population 2016'!AE$5","v":0},{"$f":"'Population 2016'!AF175/'Population 2016'!AF$5","v":0},{"$f":"'Population 2016'!AG175/'Population 2016'!AG$5","v":0},{"$f":"'Population 2016'!AH175/'Population 2016'!AH$5","v":0},{"$f":"'Population 2016'!AI175/'Population 2016'!AI$5","v":0},{"$f":"'Population 2016'!AJ175/'Population 2016'!AJ$5","v":0},{"$f":"'Population 2016'!AK175/'Population 2016'!AK$5","v":0},{"$f":"'Population 2016'!AL175/'Population 2016'!AL$5","v":0},{"$f":"'Population 2016'!AM175/'Population 2016'!AM$5","v":0},{"$f":"'Population 2016'!AN175/'Population 2016'!AN$5","v":0},{"$f":"'Population 2016'!AO175/'Population 2016'!AO$5","v":0},{"$f":"'Population 2016'!AP175/'Population 2016'!AP$5","v":0},{"$f":"'Population 2016'!AQ175/'Population 2016'!AQ$5","v":0},{"$f":"'Population 2016'!AR175/'Population 2016'!AR$5","v":0},{"$f":"'Population 2016'!AS175/'Population 2016'!AS$5","v":0},{"$f":"'Population 2016'!AT175/'Population 2016'!AT$5","v":0},{"$f":"'Population 2016'!AU175/'Population 2016'!AU$5","v":0},{"$f":"'Population 2016'!AV175/'Population 2016'!AV$5","v":0},{"$f":"'Population 2016'!AW175/'Population 2016'!AW$5","v":0},{"$f":"'Population 2016'!AX175/'Population 2016'!AX$5","v":0},{"$f":"'Population 2016'!AY175/'Population 2016'!AY$5","v":0},{"$f":"'Population 2016'!AZ175/'Population 2016'!AZ$5","v":0},{"$f":"'Population 2016'!BA175/'Population 2016'!BA$5","v":0},{"$f":"'Population 2016'!BB175/'Population 2016'!BB$5","v":0},{"$f":"'Population 2016'!BC175/'Population 2016'!BC$5","v":0},173]
[null,"Female 10-15",{"$f":"'Population 2016'!C176/'Population 2016'!C$5","v":0},{"$f":"'Population 2016'!D176/'Population 2016'!D$5","v":0},{"$f":"'Population 2016'!E176/'Population 2016'!E$5","v":0},{"$f":"'Population 2016'!F176/'Population 2016'!F$5","v":0},{"$f":"'Population 2016'!G176/'Population 2016'!G$5","v":0},{"$f":"'Population 2016'!H176/'Population 2016'!H$5","v":0},{"$f":"'Population 2016'!I176/'Population 2016'!I$5","v":0},{"$f":"'Population 2016'!J176/'Population 2016'!J$5","v":0},{"$f":"'Population 2016'!K176/'Population 2016'!K$5","v":0},{"$f":"'Population 2016'!L176/'Population 2016'!L$5","v":0},{"$f":"'Population 2016'!M176/'Population 2016'!M$5","v":0},{"$f":"'Population 2016'!N176/'Population 2016'!N$5","v":0},{"$f":"'Population 2016'!O176/'Population 2016'!O$5","v":0},{"$f":"'Population 2016'!P176/'Population 2016'!P$5","v":0},{"$f":"'Population 2016'!Q176/'Population 2016'!Q$5","v":0},{"$f":"'Population 2016'!R176/'Population 2016'!R$5","v":0},{"$f":"'Population 2016'!S176/'Population 2016'!S$5","v":0},{"$f":"'Population 2016'!T176/'Population 2016'!T$5","v":0},{"$f":"'Population 2016'!U176/'Population 2016'!U$5","v":0},{"$f":"'Population 2016'!V176/'Population 2016'!V$5","v":0},{"$f":"'Population 2016'!W176/'Population 2016'!W$5","v":0},{"$f":"'Population 2016'!X176/'Population 2016'!X$5","v":0},{"$f":"'Population 2016'!Y176/'Population 2016'!Y$5","v":0},{"$f":"'Population 2016'!Z176/'Population 2016'!Z$5","v":0},{"$f":"'Population 2016'!AA176/'Population 2016'!AA$5","v":0},{"$f":"'Population 2016'!AB176/'Population 2016'!AB$5","v":0},{"$f":"'Population 2016'!AC176/'Population 2016'!AC$5","v":0},{"$f":"'Population 2016'!AD176/'Population 2016'!AD$5","v":0},{"$f":"'Population 2016'!AE176/'Population 2016'!AE$5","v":0},{"$f":"'Population 2016'!AF176/'Population 2016'!AF$5","v":0},{"$f":"'Population 2016'!AG176/'Population 2016'!AG$5","v":0},{"$f":"'Population 2016'!AH176/'Population 2016'!AH$5","v":0},{"$f":"'Population 2016'!AI176/'Population 2016'!AI$5","v":0},{"$f":"'Population 2016'!AJ176/'Population 2016'!AJ$5","v":0},{"$f":"'Population 2016'!AK176/'Population 2016'!AK$5","v":0},{"$f":"'Population 2016'!AL176/'Population 2016'!AL$5","v":0},{"$f":"'Population 2016'!AM176/'Population 2016'!AM$5","v":0},{"$f":"'Population 2016'!AN176/'Population 2016'!AN$5","v":0},{"$f":"'Population 2016'!AO176/'Population 2016'!AO$5","v":0},{"$f":"'Population 2016'!AP176/'Population 2016'!AP$5","v":0},{"$f":"'Population 2016'!AQ176/'Population 2016'!AQ$5","v":0},{"$f":"'Population 2016'!AR176/'Population 2016'!AR$5","v":0},{"$f":"'Population 2016'!AS176/'Population 2016'!AS$5","v":0},{"$f":"'Population 2016'!AT176/'Population 2016'!AT$5","v":0},{"$f":"'Population 2016'!AU176/'Population 2016'!AU$5","v":0},{"$f":"'Population 2016'!AV176/'Population 2016'!AV$5","v":0},{"$f":"'Population 2016'!AW176/'Population 2016'!AW$5","v":0},{"$f":"'Population 2016'!AX176/'Population 2016'!AX$5","v":0},{"$f":"'Population 2016'!AY176/'Population 2016'!AY$5","v":0},{"$f":"'Population 2016'!AZ176/'Population 2016'!AZ$5","v":0},{"$f":"'Population 2016'!BA176/'Population 2016'!BA$5","v":0},{"$f":"'Population 2016'!BB176/'Population 2016'!BB$5","v":0},{"$f":"'Population 2016'!BC176/'Population 2016'!BC$5","v":0},174]
[null,"Female 16-19",{"$f":"'Population 2016'!C177/'Population 2016'!C$5","v":5.5301988724936494E-3},{"$f":"'Population 2016'!D177/'Population 2016'!D$5","v":7.2767817845720492E-3},{"$f":"'Population 2016'!E177/'Population 2016'!E$5","v":8.8787215391034086E-3},{"$f":"'Population 2016'!F177/'Population 2016'!F$5","v":5.8614473345351536E-3},{"$f":"'Population 2016'!G177/'Population 2016'!G$5","v":5.8599036431548745E-3},{"$f":"'Population 2016'!H177/'Population 2016'!H$5","v":3.5439491850213839E-3},{"$f":"'Population 2016'!I177/'Population 2016'!I$5","v":9.1596181224353063E-3},{"$f":"'Population 2016'!J177/'Population 2016'!J$5","v":7.2978778103049355E-3},{"$f":"'Population 2016'!K177/'Population 2016'!K$5","v":4.2290790530643101E-3},{"$f":"'Population 2016'!L177/'Population 2016'!L$5","v":3.8203103902911695E-3},{"$f":"'Population 2016'!M177/'Population 2016'!M$5","v":3.8203103902911695E-3},{"$f":"'Population 2016'!N177/'Population 2016'!N$5","v":7.3219151107931941E-3},{"$f":"'Population 2016'!O177/'Population 2016'!O$5","v":3.3385839252632727E-3},{"$f":"'Population 2016'!P177/'Population 2016'!P$5","v":4.0797926293249182E-3},{"$f":"'Population 2016'!Q177/'Population 2016'!Q$5","v":1.0270149586961375E-2},{"$f":"'Population 2016'!R177/'Population 2016'!R$5","v":4.617554692074307E-3},{"$f":"'Population 2016'!S177/'Population 2016'!S$5","v":4.6569021185550539E-3},{"$f":"'Population 2016'!T177/'Population 2016'!T$5","v":3.089766080510742E-3},{"$f":"'Population 2016'!U177/'Population 2016'!U$5","v":1.2835834107909529E-3},{"$f":"'Population 2016'!V177/'Population 2016'!V$5","v":4.6175803878767529E-3},{"$f":"'Population 2016'!W177/'Population 2016'!W$5","v":4.0397701645323867E-3},{"$f":"'Population 2016'!X177/'Population 2016'!X$5","v":4.0397701645323867E-3},{"$f":"'Population 2016'!Y177/'Population 2016'!Y$5","v":5.9021319215910714E-3},{"$f":"'Population 2016'!Z177/'Population 2016'!Z$5","v":2.6830151205130639E-3},{"$f":"'Population 2016'!AA177/'Population 2016'!AA$5","v":3.8899596520495868E-3},{"$f":"'Population 2016'!AB177/'Population 2016'!AB$5","v":7.6783722096557937E-3},{"$f":"'Population 2016'!AC177/'Population 2016'!AC$5","v":3.3945567114378565E-3},{"$f":"'Population 2016'!AD177/'Population 2016'!AD$5","v":7.2425471733224165E-3},{"$f":"'Population 2016'!AE177/'Population 2016'!AE$5","v":7.7670201952792124E-3},{"$f":"'Population 2016'!AF177/'Population 2016'!AF$5","v":4.9012954500897311E-3},{"$f":"'Population 2016'!AG177/'Population 2016'!AG$5","v":7.7670201952792124E-3},{"$f":"'Population 2016'!AH177/'Population 2016'!AH$5","v":4.7797293406276996E-3},{"$f":"'Population 2016'!AI177/'Population 2016'!AI$5","v":4.3269861755184181E-3},{"$f":"'Population 2016'!AJ177/'Population 2016'!AJ$5","v":4.0013384267908432E-3},{"$f":"'Population 2016'!AK177/'Population 2016'!AK$5","v":9.7431577888689135E-3},{"$f":"'Population 2016'!AL177/'Population 2016'!AL$5","v":4.0882566822156401E-3},{"$f":"'Population 2016'!AM177/'Population 2016'!AM$5","v":4.1000974316439147E-3},{"$f":"'Population 2016'!AN177/'Population 2016'!AN$5","v":1.0745063815861241E-2},{"$f":"'Population 2016'!AO177/'Population 2016'!AO$5","v":1.0745063815861241E-2},{"$f":"'Population 2016'!AP177/'Population 2016'!AP$5","v":1.1508647337634546E-2},{"$f":"'Population 2016'!AQ177/'Population 2016'!AQ$5","v":4.432235435962076E-3},{"$f":"'Population 2016'!AR177/'Population 2016'!AR$5","v":5.2147764772768031E-3},{"$f":"'Population 2016'!AS177/'Population 2016'!AS$5","v":9.1596181224353063E-3},{"$f":"'Population 2016'!AT177/'Population 2016'!AT$5","v":1.9138503716982128E-2},{"$f":"'Population 2016'!AU177/'Population 2016'!AU$5","v":1.9138503716982128E-2},{"$f":"'Population 2016'!AV177/'Population 2016'!AV$5","v":3.1147714074543343E-3},{"$f":"'Population 2016'!AW177/'Population 2016'!AW$5","v":5.4953017267679542E-3},{"$f":"'Population 2016'!AX177/'Population 2016'!AX$5","v":8.957665128998045E-3},{"$f":"'Population 2016'!AY177/'Population 2016'!AY$5","v":6.3767938557571678E-3},{"$f":"'Population 2016'!AZ177/'Population 2016'!AZ$5","v":8.4334784934792986E-3},{"$f":"'Population 2016'!BA177/'Population 2016'!BA$5","v":2.9016411142301878E-3},{"$f":"'Population 2016'!BB177/'Population 2016'!BB$5","v":4.6677668602362887E-3},{"$f":"'Population 2016'!BC177/'Population 2016'!BC$5","v":1.2835834107909529E-3},175]
[null,"Female 20-24",{"$f":"'Population 2016'!C178/'Population 2016'!C$5","v":1.3145722273617067E-2},{"$f":"'Population 2016'!D178/'Population 2016'!D$5","v":1.1629157986365815E-2},{"$f":"'Population 2016'!E178/'Population 2016'!E$5","v":1.0238187878248069E-2},{"$f":"'Population 2016'!F178/'Population 2016'!F$5","v":6.5310327066701E-3},{"$f":"'Population 2016'!G178/'Population 2016'!G$5","v":6.2388350565690471E-3},{"$f":"'Population 2016'!H178/'Population 2016'!H$5","v":4.2767328225463905E-3},{"$f":"'Population 2016'!I178/'Population 2016'!I$5","v":8.7932333975378942E-3},{"$f":"'Population 2016'!J178/'Population 2016'!J$5","v":1.0399475879684532E-2},{"$f":"'Population 2016'!K178/'Population 2016'!K$5","v":4.5125927325993477E-3},{"$f":"'Population 2016'!L178/'Population 2016'!L$5","v":4.956078344161517E-3},{"$f":"'Population 2016'!M178/'Population 2016'!M$5","v":4.956078344161517E-3},{"$f":"'Population 2016'!N178/'Population 2016'!N$5","v":1.5994084599866582E-2},{"$f":"'Population 2016'!O178/'Population 2016'!O$5","v":4.4085158657037283E-3},{"$f":"'Population 2016'!P178/'Population 2016'!P$5","v":6.1985799616815053E-3},{"$f":"'Population 2016'!Q178/'Population 2016'!Q$5","v":1.3043324990305636E-2},{"$f":"'Population 2016'!R178/'Population 2016'!R$5","v":4.7506254324799066E-3},{"$f":"'Population 2016'!S178/'Population 2016'!S$5","v":7.2033696341030698E-3},{"$f":"'Population 2016'!T178/'Population 2016'!T$5","v":8.0408370287990399E-3},{"$f":"'Population 2016'!U178/'Population 2016'!U$5","v":2.2130748461912982E-3},{"$f":"'Population 2016'!V178/'Population 2016'!V$5","v":6.1440532433732001E-3},{"$f":"'Population 2016'!W178/'Population 2016'!W$5","v":5.2229390962158203E-3},{"$f":"'Population 2016'!X178/'Population 2016'!X$5","v":5.2229390962158203E-3},{"$f":"'Population 2016'!Y178/'Population 2016'!Y$5","v":8.18349469801752E-3},{"$f":"'Population 2016'!Z178/'Population 2016'!Z$5","v":9.5570314934870105E-3},{"$f":"'Population 2016'!AA178/'Population 2016'!AA$5","v":6.7953044101047265E-3},{"$f":"'Population 2016'!AB178/'Population 2016'!AB$5","v":1.1381431481121357E-2},{"$f":"'Population 2016'!AC178/'Population 2016'!AC$5","v":7.5824178097352E-3},{"$f":"'Population 2016'!AD178/'Population 2016'!AD$5","v":7.9236294614611642E-3},{"$f":"'Population 2016'!AE178/'Population 2016'!AE$5","v":8.5627162496534868E-3},{"$f":"'Population 2016'!AF178/'Population 2016'!AF$5","v":5.9871209036480716E-3},{"$f":"'Population 2016'!AG178/'Population 2016'!AG$5","v":8.5627162496534868E-3},{"$f":"'Population 2016'!AH178/'Population 2016'!AH$5","v":5.3816074231630177E-3},{"$f":"'Population 2016'!AI178/'Population 2016'!AI$5","v":7.8241206579753256E-3},{"$f":"'Population 2016'!AJ178/'Population 2016'!AJ$5","v":4.6287259849984667E-3},{"$f":"'Population 2016'!AK178/'Population 2016'!AK$5","v":1.0107740467420138E-2},{"$f":"'Population 2016'!AL178/'Population 2016'!AL$5","v":4.7445061279509058E-3},{"$f":"'Population 2016'!AM178/'Population 2016'!AM$5","v":4.607176619303056E-3},{"$f":"'Population 2016'!AN178/'Population 2016'!AN$5","v":1.2708628777135376E-2},{"$f":"'Population 2016'!AO178/'Population 2016'!AO$5","v":1.2708628777135376E-2},{"$f":"'Population 2016'!AP178/'Population 2016'!AP$5","v":1.175435537307991E-2},{"$f":"'Population 2016'!AQ178/'Population 2016'!AQ$5","v":5.5762591110867536E-3},{"$f":"'Population 2016'!AR178/'Population 2016'!AR$5","v":7.7600097843892211E-3},{"$f":"'Population 2016'!AS178/'Population 2016'!AS$5","v":8.7932333975378942E-3},{"$f":"'Population 2016'!AT178/'Population 2016'!AT$5","v":1.9138503716982128E-2},{"$f":"'Population 2016'!AU178/'Population 2016'!AU$5","v":1.9138503716982128E-2},{"$f":"'Population 2016'!AV178/'Population 2016'!AV$5","v":3.5793474817865062E-3},{"$f":"'Population 2016'!AW178/'Population 2016'!AW$5","v":6.196991884800781E-3},{"$f":"'Population 2016'!AX178/'Population 2016'!AX$5","v":1.3583449403887192E-2},{"$f":"'Population 2016'!AY178/'Population 2016'!AY$5","v":8.7283130871148376E-3},{"$f":"'Population 2016'!AZ178/'Population 2016'!AZ$5","v":1.1813197876098049E-2},{"$f":"'Population 2016'!BA178/'Population 2016'!BA$5","v":3.724897430360613E-3},{"$f":"'Population 2016'!BB178/'Population 2016'!BB$5","v":5.6966089640457665E-3},{"$f":"'Population 2016'!BC178/'Population 2016'!BC$5","v":2.2130748461912982E-3},176]
[null,"Female 25-29",{"$f":"'Population 2016'!C179/'Population 2016'!C$5","v":1.0712843656882338E-2},{"$f":"'Population 2016'!D179/'Population 2016'!D$5","v":1.0900501745840792E-2},{"$f":"'Population 2016'!E179/'Population 2016'!E$5","v":1.1072618941585137E-2},{"$f":"'Population 2016'!F179/'Population 2016'!F$5","v":6.5001287664177183E-3},{"$f":"'Population 2016'!G179/'Population 2016'!G$5","v":5.4945054945054949E-3},{"$f":"'Population 2016'!H179/'Population 2016'!H$5","v":3.9006137873565639E-3},{"$f":"'Population 2016'!I179/'Population 2016'!I$5","v":8.290762917678586E-3},{"$f":"'Population 2016'!J179/'Population 2016'!J$5","v":8.1852334076942847E-3},{"$f":"'Population 2016'!K179/'Population 2016'!K$5","v":4.1345744932192981E-3},{"$f":"'Population 2016'!L179/'Population 2016'!L$5","v":4.8210569790160911E-3},{"$f":"'Population 2016'!M179/'Population 2016'!M$5","v":4.8210569790160911E-3},{"$f":"'Population 2016'!N179/'Population 2016'!N$5","v":8.0211539852597224E-3},{"$f":"'Population 2016'!O179/'Population 2016'!O$5","v":4.0815922172358111E-3},{"$f":"'Population 2016'!P179/'Population 2016'!P$5","v":4.913783387805703E-3},{"$f":"'Population 2016'!Q179/'Population 2016'!Q$5","v":9.130327493213946E-3},{"$f":"'Population 2016'!R179/'Population 2016'!R$5","v":5.083302283493905E-3},{"$f":"'Population 2016'!S179/'Population 2016'!S$5","v":8.2457883987000213E-3},{"$f":"'Population 2016'!T179/'Population 2016'!T$5","v":1.1181788993173665E-2},{"$f":"'Population 2016'!U179/'Population 2016'!U$5","v":1.8147213738768646E-3},{"$f":"'Population 2016'!V179/'Population 2016'!V$5","v":5.922714679326215E-3},{"$f":"'Population 2016'!W179/'Population 2016'!W$5","v":5.16410749187797E-3},{"$f":"'Population 2016'!X179/'Population 2016'!X$5","v":5.16410749187797E-3},{"$f":"'Population 2016'!Y179/'Population 2016'!Y$5","v":7.0070428133098047E-3},{"$f":"'Population 2016'!Z179/'Population 2016'!Z$5","v":7.9290259261338442E-3},{"$f":"'Population 2016'!AA179/'Population 2016'!AA$5","v":6.0558466658295444E-3},{"$f":"'Population 2016'!AB179/'Population 2016'!AB$5","v":1.0953604290554026E-2},{"$f":"'Population 2016'!AC179/'Population 2016'!AC$5","v":6.4829620558478013E-3},{"$f":"'Population 2016'!AD179/'Population 2016'!AD$5","v":8.474450109791953E-3},{"$f":"'Population 2016'!AE179/'Population 2016'!AE$5","v":9.6048214047372155E-3},{"$f":"'Population 2016'!AF179/'Population 2016'!AF$5","v":4.8108099956265362E-3},{"$f":"'Population 2016'!AG179/'Population 2016'!AG$5","v":9.6048214047372155E-3},{"$f":"'Population 2016'!AH179/'Population 2016'!AH$5","v":5.2887250030186784E-3},{"$f":"'Population 2016'!AI179/'Population 2016'!AI$5","v":9.5289395397672588E-3},{"$f":"'Population 2016'!AJ179/'Population 2016'!AJ$5","v":5.367649109109667E-3},{"$f":"'Population 2016'!AK179/'Population 2016'!AK$5","v":1.1226632136077342E-2},{"$f":"'Population 2016'!AL179/'Population 2016'!AL$5","v":4.416381405083273E-3},{"$f":"'Population 2016'!AM179/'Population 2016'!AM$5","v":4.4695408397955744E-3},{"$f":"'Population 2016'!AN179/'Population 2016'!AN$5","v":1.4017672084651467E-2},{"$f":"'Population 2016'!AO179/'Population 2016'!AO$5","v":1.4017672084651467E-2},{"$f":"'Population 2016'!AP179/'Population 2016'!AP$5","v":1.099345306976523E-2},{"$f":"'Population 2016'!AQ179/'Population 2016'!AQ$5","v":5.1378308763084342E-3},{"$f":"'Population 2016'!AR179/'Population 2016'!AR$5","v":7.4481212390975458E-3},{"$f":"'Population 2016'!AS179/'Population 2016'!AS$5","v":8.290762917678586E-3},{"$f":"'Population 2016'!AT179/'Population 2016'!AT$5","v":2.4305372489059947E-2},{"$f":"'Population 2016'!AU179/'Population 2016'!AU$5","v":2.4305372489059947E-2},{"$f":"'Population 2016'!AV179/'Population 2016'!AV$5","v":3.0936543131665083E-3},{"$f":"'Population 2016'!AW179/'Population 2016'!AW$5","v":6.1512294831899449E-3},{"$f":"'Population 2016'!AX179/'Population 2016'!AX$5","v":1.0376068594502729E-2},{"$f":"'Population 2016'!AY179/'Population 2016'!AY$5","v":7.0316085799088154E-3},{"$f":"'Population 2016'!AZ179/'Population 2016'!AZ$5","v":8.6750924748750218E-3},{"$f":"'Population 2016'!BA179/'Population 2016'!BA$5","v":3.846361477002807E-3},{"$f":"'Population 2016'!BB179/'Population 2016'!BB$5","v":6.9187905236046763E-3},{"$f":"'Population 2016'!BC179/'Population 2016'!BC$5","v":1.8147213738768646E-3},177]
[null,"Female 30-34",{"$f":"'Population 2016'!C180/'Population 2016'!C$5","v":8.4792975318548659E-3},{"$f":"'Population 2016'!D180/'Population 2016'!D$5","v":1.108388838355682E-2},{"$f":"'Population 2016'!E180/'Population 2016'!E$5","v":1.347278020241985E-2},{"$f":"'Population 2016'!F180/'Population 2016'!F$5","v":7.2830285861447339E-3},{"$f":"'Population 2016'!G180/'Population 2016'!G$5","v":5.765170789801332E-3},{"$f":"'Population 2016'!H180/'Population 2016'!H$5","v":4.2378239568370982E-3},{"$f":"'Population 2016'!I180/'Population 2016'!I$5","v":9.6306841973034085E-3},{"$f":"'Population 2016'!J180/'Population 2016'!J$5","v":7.413980411832514E-3},{"$f":"'Population 2016'!K180/'Population 2016'!K$5","v":5.5521428908944853E-3},{"$f":"'Population 2016'!L180/'Population 2016'!L$5","v":4.956078344161517E-3},{"$f":"'Population 2016'!M180/'Population 2016'!M$5","v":4.956078344161517E-3},{"$f":"'Population 2016'!N180/'Population 2016'!N$5","v":6.2770754133144729E-3},{"$f":"'Population 2016'!O180/'Population 2016'!O$5","v":4.5670243013245359E-3},{"$f":"'Population 2016'!P180/'Population 2016'!P$5","v":5.263157894736842E-3},{"$f":"'Population 2016'!Q180/'Population 2016'!Q$5","v":1.014089141138177E-2},{"$f":"'Population 2016'!R180/'Population 2016'!R$5","v":4.5377122478309469E-3},{"$f":"'Population 2016'!S180/'Population 2016'!S$5","v":8.1045631638689362E-3},{"$f":"'Population 2016'!T180/'Population 2016'!T$5","v":9.4321624174627614E-3},{"$f":"'Population 2016'!U180/'Population 2016'!U$5","v":2.699951312353384E-3},{"$f":"'Population 2016'!V180/'Population 2016'!V$5","v":6.7317452927393318E-3},{"$f":"'Population 2016'!W180/'Population 2016'!W$5","v":5.4451918237143661E-3},{"$f":"'Population 2016'!X180/'Population 2016'!X$5","v":5.4451918237143661E-3},{"$f":"'Population 2016'!Y180/'Population 2016'!Y$5","v":7.0587113082462918E-3},{"$f":"'Population 2016'!Z180/'Population 2016'!Z$5","v":6.3223141295784026E-3},{"$f":"'Population 2016'!AA180/'Population 2016'!AA$5","v":5.8385935819319848E-3},{"$f":"'Population 2016'!AB180/'Population 2016'!AB$5","v":1.135482022046406E-2},{"$f":"'Population 2016'!AC180/'Population 2016'!AC$5","v":5.690691964147193E-3},{"$f":"'Population 2016'!AD180/'Population 2016'!AD$5","v":9.9259369533663336E-3},{"$f":"'Population 2016'!AE180/'Population 2016'!AE$5","v":1.1504224889372581E-2},{"$f":"'Population 2016'!AF180/'Population 2016'!AF$5","v":4.2980590870017642E-3},{"$f":"'Population 2016'!AG180/'Population 2016'!AG$5","v":1.1504224889372581E-2},{"$f":"'Population 2016'!AH180/'Population 2016'!AH$5","v":6.1042326518859777E-3},{"$f":"'Population 2016'!AI180/'Population 2016'!AI$5","v":9.0176305888529183E-3},{"$f":"'Population 2016'!AJ180/'Population 2016'!AJ$5","v":6.7060758999525974E-3},{"$f":"'Population 2016'!AK180/'Population 2016'!AK$5","v":1.274782193279107E-2},{"$f":"'Population 2016'!AL180/'Population 2016'!AL$5","v":4.1592025682410739E-3},{"$f":"'Population 2016'!AM180/'Population 2016'!AM$5","v":4.9440220796766283E-3},{"$f":"'Population 2016'!AN180/'Population 2016'!AN$5","v":1.5817606632486093E-2},{"$f":"'Population 2016'!AO180/'Population 2016'!AO$5","v":1.5817606632486093E-2},{"$f":"'Population 2016'!AP180/'Population 2016'!AP$5","v":1.324445571707116E-2},{"$f":"'Population 2016'!AQ180/'Population 2016'!AQ$5","v":5.8845289636652604E-3},{"$f":"'Population 2016'!AR180/'Population 2016'!AR$5","v":7.5383461396997808E-3},{"$f":"'Population 2016'!AS180/'Population 2016'!AS$5","v":9.6306841973034085E-3},{"$f":"'Population 2016'!AT180/'Population 2016'!AT$5","v":2.3040016871408234E-2},{"$f":"'Population 2016'!AU180/'Population 2016'!AU$5","v":2.3040016871408234E-2},{"$f":"'Population 2016'!AV180/'Population 2016'!AV$5","v":3.9805722732552005E-3},{"$f":"'Population 2016'!AW180/'Population 2016'!AW$5","v":7.3257977912014154E-3},{"$f":"'Population 2016'!AX180/'Population 2016'!AX$5","v":8.4209719258341101E-3},{"$f":"'Population 2016'!AY180/'Population 2016'!AY$5","v":7.3819650561488329E-3},{"$f":"'Population 2016'!AZ180/'Population 2016'!AZ$5","v":9.0864115146320271E-3},{"$f":"'Population 2016'!BA180/'Population 2016'!BA$5","v":3.832865471820341E-3},{"$f":"'Population 2016'!BB180/'Population 2016'!BB$5","v":8.2721667138507E-3},{"$f":"'Population 2016'!BC180/'Population 2016'!BC$5","v":2.699951312353384E-3},178]
[null,"Female 35-39",{"$f":"'Population 2016'!C181/'Population 2016'!C$5","v":6.5881944054013994E-3},{"$f":"'Population 2016'!D181/'Population 2016'!D$5","v":1.0462818970491868E-2},{"$f":"'Population 2016'!E181/'Population 2016'!E$5","v":1.4016566738077715E-2},{"$f":"'Population 2016'!F181/'Population 2016'!F$5","v":7.8599021375225335E-3},{"$f":"'Population 2016'!G181/'Population 2016'!G$5","v":7.0508309424565582E-3},{"$f":"'Population 2016'!H181/'Population 2016'!H$5","v":4.6528518577362175E-3},{"$f":"'Population 2016'!I181/'Population 2016'!I$5","v":9.9028557072272008E-3},{"$f":"'Population 2016'!J181/'Population 2016'!J$5","v":8.1271821069304959E-3},{"$f":"'Population 2016'!K181/'Population 2016'!K$5","v":5.7647781505457641E-3},{"$f":"'Population 2016'!L181/'Population 2016'!L$5","v":4.8051721125283945E-3},{"$f":"'Population 2016'!M181/'Population 2016'!M$5","v":4.8051721125283945E-3},{"$f":"'Population 2016'!N181/'Population 2016'!N$5","v":5.3045707718150474E-3},{"$f":"'Population 2016'!O181/'Population 2016'!O$5","v":5.3793800338811778E-3},{"$f":"'Population 2016'!P181/'Population 2016'!P$5","v":5.6576129832074835E-3},{"$f":"'Population 2016'!Q181/'Population 2016'!Q$5","v":1.125721201866018E-2},{"$f":"'Population 2016'!R181/'Population 2016'!R$5","v":5.3760579123862248E-3},{"$f":"'Population 2016'!S181/'Population 2016'!S$5","v":7.4266820366797239E-3},{"$f":"'Population 2016'!T181/'Population 2016'!T$5","v":7.0450389245380477E-3},{"$f":"'Population 2016'!U181/'Population 2016'!U$5","v":2.0360288584959944E-3},{"$f":"'Population 2016'!V181/'Population 2016'!V$5","v":7.1820547851107839E-3},{"$f":"'Population 2016'!W181/'Population 2016'!W$5","v":5.8439393642264626E-3},{"$f":"'Population 2016'!X181/'Population 2016'!X$5","v":5.8439393642264626E-3},{"$f":"'Population 2016'!Y181/'Population 2016'!Y$5","v":7.6350137517686521E-3},{"$f":"'Population 2016'!Z181/'Population 2016'!Z$5","v":4.6478494259392976E-3},{"$f":"'Population 2016'!AA181/'Population 2016'!AA$5","v":5.7455800291929676E-3},{"$f":"'Population 2016'!AB181/'Population 2016'!AB$5","v":1.0781654606306869E-2},{"$f":"'Population 2016'!AC181/'Population 2016'!AC$5","v":4.9925427319044893E-3},{"$f":"'Population 2016'!AD181/'Population 2016'!AD$5","v":9.9371022367784438E-3},{"$f":"'Population 2016'!AE181/'Population 2016'!AE$5","v":1.1031940779679462E-2},{"$f":"'Population 2016'!AF181/'Population 2016'!AF$5","v":6.0776063581112674E-3},{"$f":"'Population 2016'!AG181/'Population 2016'!AG$5","v":1.1031940779679462E-2},{"$f":"'Population 2016'!AH181/'Population 2016'!AH$5","v":7.0980745474304077E-3},{"$f":"'Population 2016'!AI181/'Population 2016'!AI$5","v":7.7653337999825005E-3},{"$f":"'Population 2016'!AJ181/'Population 2016'!AJ$5","v":6.8594373030700165E-3},{"$f":"'Population 2016'!AK181/'Population 2016'!AK$5","v":1.2420954703745143E-2},{"$f":"'Population 2016'!AL181/'Population 2016'!AL$5","v":4.5405367056277823E-3},{"$f":"'Population 2016'!AM181/'Population 2016'!AM$5","v":5.5199191570895105E-3},{"$f":"'Population 2016'!AN181/'Population 2016'!AN$5","v":1.7181193411148685E-2},{"$f":"'Population 2016'!AO181/'Population 2016'!AO$5","v":1.7181193411148685E-2},{"$f":"'Population 2016'!AP181/'Population 2016'!AP$5","v":1.252318374205412E-2},{"$f":"'Population 2016'!AQ181/'Population 2016'!AQ$5","v":5.8434263166547923E-3},{"$f":"'Population 2016'!AR181/'Population 2016'!AR$5","v":7.3071030611192387E-3},{"$f":"'Population 2016'!AS181/'Population 2016'!AS$5","v":9.9028557072272008E-3},{"$f":"'Population 2016'!AT181/'Population 2016'!AT$5","v":2.5096219750092266E-2},{"$f":"'Population 2016'!AU181/'Population 2016'!AU$5","v":2.5096219750092266E-2},{"$f":"'Population 2016'!AV181/'Population 2016'!AV$5","v":4.0122479146869391E-3},{"$f":"'Population 2016'!AW181/'Population 2016'!AW$5","v":8.7596863750076265E-3},{"$f":"'Population 2016'!AX181/'Population 2016'!AX$5","v":9.4049094649679907E-3},{"$f":"'Population 2016'!AY181/'Population 2016'!AY$5","v":7.3299470640433278E-3},{"$f":"'Population 2016'!AZ181/'Population 2016'!AZ$5","v":8.6376998348971119E-3},{"$f":"'Population 2016'!BA181/'Population 2016'!BA$5","v":3.5629453681710215E-3},{"$f":"'Population 2016'!BB181/'Population 2016'!BB$5","v":8.2997866361006201E-3},{"$f":"'Population 2016'!BC181/'Population 2016'!BC$5","v":2.0360288584959944E-3},179]
[null,"Female 40-44",{"$f":"'Population 2016'!C182/'Population 2016'!C$5","v":5.2746443959458839E-3},{"$f":"'Population 2016'!D182/'Population 2016'!D$5","v":1.046037381532232E-2},{"$f":"'Population 2016'!E182/'Population 2016'!E$5","v":1.5216647368495071E-2},{"$f":"'Population 2016'!F182/'Population 2016'!F$5","v":8.4882822559876388E-3},{"$f":"'Population 2016'!G182/'Population 2016'!G$5","v":8.6883559789963736E-3},{"$f":"'Population 2016'!H182/'Population 2016'!H$5","v":5.7228456647417589E-3},{"$f":"'Population 2016'!I182/'Population 2016'!I$5","v":1.3064232476342015E-2},{"$f":"'Population 2016'!J182/'Population 2016'!J$5","v":9.910186344675451E-3},{"$f":"'Population 2016'!K182/'Population 2016'!K$5","v":7.6548693474460146E-3},{"$f":"'Population 2016'!L182/'Population 2016'!L$5","v":5.9488824996425903E-3},{"$f":"'Population 2016'!M182/'Population 2016'!M$5","v":5.9488824996425903E-3},{"$f":"'Population 2016'!N182/'Population 2016'!N$5","v":5.2000868020671753E-3},{"$f":"'Population 2016'!O182/'Population 2016'!O$5","v":5.5378884695019863E-3},{"$f":"'Population 2016'!P182/'Population 2016'!P$5","v":6.7282767947706521E-3},{"$f":"'Population 2016'!Q182/'Population 2016'!Q$5","v":1.3583859179093077E-2},{"$f":"'Population 2016'!R182/'Population 2016'!R$5","v":6.1611752807792623E-3},{"$f":"'Population 2016'!S182/'Population 2016'!S$5","v":7.760326653968164E-3},{"$f":"'Population 2016'!T182/'Population 2016'!T$5","v":6.0096880918367821E-3},{"$f":"'Population 2016'!U182/'Population 2016'!U$5","v":2.3015978400389501E-3},{"$f":"'Population 2016'!V182/'Population 2016'!V$5","v":8.8306454690469469E-3},{"$f":"'Population 2016'!W182/'Population 2016'!W$5","v":6.7394871191470722E-3},{"$f":"'Population 2016'!X182/'Population 2016'!X$5","v":6.7394871191470722E-3},{"$f":"'Population 2016'!Y182/'Population 2016'!Y$5","v":9.3480230838937379E-3},{"$f":"'Population 2016'!Z182/'Population 2016'!Z$5","v":3.9161180294357348E-3},{"$f":"'Population 2016'!AA182/'Population 2016'!AA$5","v":6.0126618020578584E-3},{"$f":"'Population 2016'!AB182/'Population 2016'!AB$5","v":1.1330255979857323E-2},{"$f":"'Population 2016'!AC182/'Population 2016'!AC$5","v":5.0659776881848331E-3},{"$f":"'Population 2016'!AD182/'Population 2016'!AD$5","v":1.188358331162306E-2},{"$f":"'Population 2016'!AE182/'Population 2016'!AE$5","v":1.309561699812113E-2},{"$f":"'Population 2016'!AF182/'Population 2016'!AF$5","v":7.0277036299748151E-3},{"$f":"'Population 2016'!AG182/'Population 2016'!AG$5","v":1.309561699812113E-2},{"$f":"'Population 2016'!AH182/'Population 2016'!AH$5","v":7.712956168785934E-3},{"$f":"'Population 2016'!AI182/'Population 2016'!AI$5","v":7.4946408259690261E-3},{"$f":"'Population 2016'!AJ182/'Population 2016'!AJ$5","v":6.5805983883110725E-3},{"$f":"'Population 2016'!AK182/'Population 2016'!AK$5","v":1.5802773342720289E-2},{"$f":"'Population 2016'!AL182/'Population 2016'!AL$5","v":5.8619038328514925E-3},{"$f":"'Population 2016'!AM182/'Population 2016'!AM$5","v":6.2189640372196124E-3},{"$f":"'Population 2016'!AN182/'Population 2016'!AN$5","v":1.8435693247518273E-2},{"$f":"'Population 2016'!AO182/'Population 2016'!AO$5","v":1.8435693247518273E-2},{"$f":"'Population 2016'!AP182/'Population 2016'!AP$5","v":1.5844205253396318E-2},{"$f":"'Population 2016'!AQ182/'Population 2016'!AQ$5","v":6.9668986682742372E-3},{"$f":"'Population 2016'!AR182/'Population 2016'!AR$5","v":7.9765495458345836E-3},{"$f":"'Population 2016'!AS182/'Population 2016'!AS$5","v":1.3064232476342015E-2},{"$f":"'Population 2016'!AT182/'Population 2016'!AT$5","v":2.6836083724363368E-2},{"$f":"'Population 2016'!AU182/'Population 2016'!AU$5","v":2.6836083724363368E-2},{"$f":"'Population 2016'!AV182/'Population 2016'!AV$5","v":5.7544081934325841E-3},{"$f":"'Population 2016'!AW182/'Population 2016'!AW$5","v":9.2859539935322474E-3},{"$f":"'Population 2016'!AX182/'Population 2016'!AX$5","v":1.1129994760852064E-2},{"$f":"'Population 2016'!AY182/'Population 2016'!AY$5","v":8.4636333037544746E-3},{"$f":"'Population 2016'!AZ182/'Population 2016'!AZ$5","v":9.9809585171804806E-3},{"$f":"'Population 2016'!BA182/'Population 2016'!BA$5","v":4.4806737205787088E-3},{"$f":"'Population 2016'!BB182/'Population 2016'!BB$5","v":8.7762302949117195E-3},{"$f":"'Population 2016'!BC182/'Population 2016'!BC$5","v":2.3015978400389501E-3},180]
[null,"Female 45-49",{"$f":"'Population 2016'!C183/'Population 2016'!C$5","v":5.4177549028126323E-3},{"$f":"'Population 2016'!D183/'Population 2016'!D$5","v":1.2020382813493343E-2},{"$f":"'Population 2016'!E183/'Population 2016'!E$5","v":1.8076214495661429E-2},{"$f":"'Population 2016'!F183/'Population 2016'!F$5","v":1.121813031161473E-2},{"$f":"'Population 2016'!G183/'Population 2016'!G$5","v":1.1516808314837871E-2},{"$f":"'Population 2016'!H183/'Population 2016'!H$5","v":6.8965964469720796E-3},{"$f":"'Population 2016'!I183/'Population 2016'!I$5","v":1.7345699690143206E-2},{"$f":"'Population 2016'!J183/'Population 2016'!J$5","v":1.1651725367589129E-2},{"$f":"'Population 2016'!K183/'Population 2016'!K$5","v":9.4740821244625045E-3},{"$f":"'Population 2016'!L183/'Population 2016'!L$5","v":8.1409940749448007E-3},{"$f":"'Population 2016'!M183/'Population 2016'!M$5","v":8.1409940749448007E-3},{"$f":"'Population 2016'!N183/'Population 2016'!N$5","v":6.0198841031658644E-3},{"$f":"'Population 2016'!O183/'Population 2016'!O$5","v":6.6474475188476436E-3},{"$f":"'Population 2016'!P183/'Population 2016'!P$5","v":8.5878507832751038E-3},{"$f":"'Population 2016'!Q183/'Population 2016'!Q$5","v":1.6345283839202831E-2},{"$f":"'Population 2016'!R183/'Population 2016'!R$5","v":7.5051897588758187E-3},{"$f":"'Population 2016'!S183/'Population 2016'!S$5","v":8.8248118615074731E-3},{"$f":"'Population 2016'!T183/'Population 2016'!T$5","v":5.676979846721544E-3},{"$f":"'Population 2016'!U183/'Population 2016'!U$5","v":2.3015978400389501E-3},{"$f":"'Population 2016'!V183/'Population 2016'!V$5","v":9.9526030178368353E-3},{"$f":"'Population 2016'!W183/'Population 2016'!W$5","v":8.3606246609011694E-3},{"$f":"'Population 2016'!X183/'Population 2016'!X$5","v":8.3606246609011694E-3},{"$f":"'Population 2016'!Y183/'Population 2016'!Y$5","v":1.0766919444841894E-2},{"$f":"'Population 2016'!Z183/'Population 2016'!Z$5","v":4.3671588108784064E-3},{"$f":"'Population 2016'!AA183/'Population 2016'!AA$5","v":7.1613791783847131E-3},{"$f":"'Population 2016'!AB183/'Population 2016'!AB$5","v":1.3002671361165983E-2},{"$f":"'Population 2016'!AC183/'Population 2016'!AC$5","v":6.2016337726329635E-3},{"$f":"'Population 2016'!AD183/'Population 2016'!AD$5","v":1.4220849305891547E-2},{"$f":"'Population 2016'!AE183/'Population 2016'!AE$5","v":1.5246563106397396E-2},{"$f":"'Population 2016'!AF183/'Population 2016'!AF$5","v":9.3350827187862889E-3},{"$f":"'Population 2016'!AG183/'Population 2016'!AG$5","v":1.5246563106397396E-2},{"$f":"'Population 2016'!AH183/'Population 2016'!AH$5","v":8.8851323110074962E-3},{"$f":"'Population 2016'!AI183/'Population 2016'!AI$5","v":7.9061488319188029E-3},{"$f":"'Population 2016'!AJ183/'Population 2016'!AJ$5","v":7.6959540473468474E-3},{"$f":"'Population 2016'!AK183/'Population 2016'!AK$5","v":1.8053128496536463E-2},{"$f":"'Population 2016'!AL183/'Population 2016'!AL$5","v":7.5202639186960143E-3},{"$f":"'Population 2016'!AM183/'Population 2016'!AM$5","v":7.5192599541455537E-3},{"$f":"'Population 2016'!AN183/'Population 2016'!AN$5","v":2.1544671102868986E-2},{"$f":"'Population 2016'!AO183/'Population 2016'!AO$5","v":2.1544671102868986E-2},{"$f":"'Population 2016'!AP183/'Population 2016'!AP$5","v":2.0187689234817622E-2},{"$f":"'Population 2016'!AQ183/'Population 2016'!AQ$5","v":8.9946292541239654E-3},{"$f":"'Population 2016'!AR183/'Population 2016'!AR$5","v":9.3987613123646205E-3},{"$f":"'Population 2016'!AS183/'Population 2016'!AS$5","v":1.7345699690143206E-2},{"$f":"'Population 2016'!AT183/'Population 2016'!AT$5","v":2.8786840301576421E-2},{"$f":"'Population 2016'!AU183/'Population 2016'!AU$5","v":2.8786840301576421E-2},{"$f":"'Population 2016'!AV183/'Population 2016'!AV$5","v":6.4195966634991025E-3},{"$f":"'Population 2016'!AW183/'Population 2016'!AW$5","v":1.0323235096711209E-2},{"$f":"'Population 2016'!AX183/'Population 2016'!AX$5","v":1.2829523237537856E-2},{"$f":"'Population 2016'!AY183/'Population 2016'!AY$5","v":1.0622379976132921E-2},{"$f":"'Population 2016'!AZ183/'Population 2016'!AZ$5","v":1.2612825100241039E-2},{"$f":"'Population 2016'!BA183/'Population 2016'!BA$5","v":6.5050744979486073E-3},{"$f":"'Population 2016'!BB183/'Population 2016'!BB$5","v":9.6669727874716029E-3},{"$f":"'Population 2016'!BC183/'Population 2016'!BC$5","v":2.3015978400389501E-3},181]
[null,"Female 50-54",{"$f":"'Population 2016'!C184/'Population 2016'!C$5","v":5.7244202746699517E-3},{"$f":"'Population 2016'!D184/'Population 2016'!D$5","v":1.2370040002738574E-2},{"$f":"'Population 2016'!E184/'Population 2016'!E$5","v":1.8465303137554553E-2},{"$f":"'Population 2016'!F184/'Population 2016'!F$5","v":1.275302601081638E-2},{"$f":"'Population 2016'!G184/'Population 2016'!G$5","v":1.2288204406431007E-2},{"$f":"'Population 2016'!H184/'Population 2016'!H$5","v":7.4348357559506249E-3},{"$f":"'Population 2016'!I184/'Population 2016'!I$5","v":1.8874047399715266E-2},{"$f":"'Population 2016'!J184/'Population 2016'!J$5","v":1.2281996633024556E-2},{"$f":"'Population 2016'!K184/'Population 2016'!K$5","v":8.5290365260123797E-3},{"$f":"'Population 2016'!L184/'Population 2016'!L$5","v":9.0146617317681445E-3},{"$f":"'Population 2016'!M184/'Population 2016'!M$5","v":9.0146617317681445E-3},{"$f":"'Population 2016'!N184/'Population 2016'!N$5","v":6.7030485207481049E-3},{"$f":"'Population 2016'!O184/'Population 2016'!O$5","v":6.8554898405999544E-3},{"$f":"'Population 2016'!P184/'Population 2016'!P$5","v":9.6134340132987724E-3},{"$f":"'Population 2016'!Q184/'Population 2016'!Q$5","v":1.5934007825994995E-2},{"$f":"'Population 2016'!R184/'Population 2016'!R$5","v":7.5318039069569385E-3},{"$f":"'Population 2016'!S184/'Population 2016'!S$5","v":9.1143235929111999E-3},{"$f":"'Population 2016'!T184/'Population 2016'!T$5","v":6.1702256366825961E-3},{"$f":"'Population 2016'!U184/'Population 2016'!U$5","v":2.9212587969725135E-3},{"$f":"'Population 2016'!V184/'Population 2016'!V$5","v":9.2962196899733628E-3},{"$f":"'Population 2016'!W184/'Population 2016'!W$5","v":8.7397616666339828E-3},{"$f":"'Population 2016'!X184/'Population 2016'!X$5","v":8.7397616666339828E-3},{"$f":"'Population 2016'!Y184/'Population 2016'!Y$5","v":1.0727174448736904E-2},{"$f":"'Population 2016'!Z184/'Population 2016'!Z$5","v":4.6091334790343465E-3},{"$f":"'Population 2016'!AA184/'Population 2016'!AA$5","v":7.4683239024234682E-3},{"$f":"'Population 2016'!AB184/'Population 2016'!AB$5","v":1.3407981331177139E-2},{"$f":"'Population 2016'!AC184/'Population 2016'!AC$5","v":6.6515521667449284E-3},{"$f":"'Population 2016'!AD184/'Population 2016'!AD$5","v":1.5370873497338941E-2},{"$f":"'Population 2016'!AE184/'Population 2016'!AE$5","v":1.6540210885122024E-2},{"$f":"'Population 2016'!AF184/'Population 2016'!AF$5","v":1.040582726326743E-2},{"$f":"'Population 2016'!AG184/'Population 2016'!AG$5","v":1.6540210885122024E-2},{"$f":"'Population 2016'!AH184/'Population 2016'!AH$5","v":8.9352888178854395E-3},{"$f":"'Population 2016'!AI184/'Population 2016'!AI$5","v":7.9963798232566274E-3},{"$f":"'Population 2016'!AJ184/'Population 2016'!AJ$5","v":7.5147087527535341E-3},{"$f":"'Population 2016'!AK184/'Population 2016'!AK$5","v":1.8744578404133613E-2},{"$f":"'Population 2016'!AL184/'Population 2016'!AL$5","v":8.7440804526347522E-3},{"$f":"'Population 2016'!AM184/'Population 2016'!AM$5","v":7.4721740295772042E-3},{"$f":"'Population 2016'!AN184/'Population 2016'!AN$5","v":2.2417366641213046E-2},{"$f":"'Population 2016'!AO184/'Population 2016'!AO$5","v":2.2417366641213046E-2},{"$f":"'Population 2016'!AP184/'Population 2016'!AP$5","v":2.0480953664220154E-2},{"$f":"'Population 2016'!AQ184/'Population 2016'!AQ$5","v":9.5974680769441555E-3},{"$f":"'Population 2016'!AR184/'Population 2016'!AR$5","v":9.8189197383789766E-3},{"$f":"'Population 2016'!AS184/'Population 2016'!AS$5","v":1.8874047399715266E-2},{"$f":"'Population 2016'!AT184/'Population 2016'!AT$5","v":2.9946749617757156E-2},{"$f":"'Population 2016'!AU184/'Population 2016'!AU$5","v":2.9946749617757156E-2},{"$f":"'Population 2016'!AV184/'Population 2016'!AV$5","v":6.4935064935064939E-3},{"$f":"'Population 2016'!AW184/'Population 2016'!AW$5","v":1.0475776435413997E-2},{"$f":"'Population 2016'!AX184/'Population 2016'!AX$5","v":1.4311818751038246E-2},{"$f":"'Population 2016'!AY184/'Population 2016'!AY$5","v":1.1214467121569108E-2},{"$f":"'Population 2016'!AZ184/'Population 2016'!AZ$5","v":1.3392317825934384E-2},{"$f":"'Population 2016'!BA184/'Population 2016'!BA$5","v":7.287842798531635E-3},{"$f":"'Population 2016'!BB184/'Population 2016'!BB$5","v":8.9902846923485911E-3},{"$f":"'Population 2016'!BC184/'Population 2016'!BC$5","v":2.9212587969725135E-3},182]
[null,"Female 55-59",{"$f":"'Population 2016'!C185/'Population 2016'!C$5","v":5.30019984360066E-3},{"$f":"'Population 2016'!D185/'Population 2016'!D$5","v":1.0814921314906644E-2},{"$f":"'Population 2016'!E185/'Population 2016'!E$5","v":1.5872941463254561E-2},{"$f":"'Population 2016'!F185/'Population 2016'!F$5","v":1.1300540818954416E-2},{"$f":"'Population 2016'!G185/'Population 2016'!G$5","v":1.1476208520543495E-2},{"$f":"'Population 2016'!H185/'Population 2016'!H$5","v":7.1170800193247367E-3},{"$f":"'Population 2016'!I185/'Population 2016'!I$5","v":1.7701616280043547E-2},{"$f":"'Population 2016'!J185/'Population 2016'!J$5","v":1.0183856762561887E-2},{"$f":"'Population 2016'!K185/'Population 2016'!K$5","v":7.6076170675235082E-3},{"$f":"'Population 2016'!L185/'Population 2016'!L$5","v":9.0464314647435394E-3},{"$f":"'Population 2016'!M185/'Population 2016'!M$5","v":9.0464314647435394E-3},{"$f":"'Population 2016'!N185/'Population 2016'!N$5","v":6.7593091198431135E-3},{"$f":"'Population 2016'!O185/'Population 2016'!O$5","v":6.5384729693583384E-3},{"$f":"'Population 2016'!P185/'Population 2016'!P$5","v":1.0300912881776175E-2},{"$f":"'Population 2016'!Q185/'Population 2016'!Q$5","v":1.4935194651061679E-2},{"$f":"'Population 2016'!R185/'Population 2016'!R$5","v":6.9462926491722999E-3},{"$f":"'Population 2016'!S185/'Population 2016'!S$5","v":8.2175433517338043E-3},{"$f":"'Population 2016'!T185/'Population 2016'!T$5","v":5.5350553505535052E-3},{"$f":"'Population 2016'!U185/'Population 2016'!U$5","v":2.5671668215819059E-3},{"$f":"'Population 2016'!V185/'Population 2016'!V$5","v":8.1437326840735451E-3},{"$f":"'Population 2016'!W185/'Population 2016'!W$5","v":8.0697350616751318E-3},{"$f":"'Population 2016'!X185/'Population 2016'!X$5","v":8.0697350616751318E-3},{"$f":"'Population 2016'!Y185/'Population 2016'!Y$5","v":9.1214766060952919E-3},{"$f":"'Population 2016'!Z185/'Population 2016'!Z$5","v":4.0516238436030605E-3},{"$f":"'Population 2016'!AA185/'Population 2016'!AA$5","v":6.7275373931091577E-3},{"$f":"'Population 2016'!AB185/'Population 2016'!AB$5","v":1.1821540791992057E-2},{"$f":"'Population 2016'!AC185/'Population 2016'!AC$5","v":6.1933594113619391E-3},{"$f":"'Population 2016'!AD185/'Population 2016'!AD$5","v":1.3997543637649336E-2},{"$f":"'Population 2016'!AE185/'Population 2016'!AE$5","v":1.4953952299304921E-2},{"$f":"'Population 2016'!AF185/'Population 2016'!AF$5","v":8.912817264624711E-3},{"$f":"'Population 2016'!AG185/'Population 2016'!AG$5","v":1.4953952299304921E-2},{"$f":"'Population 2016'!AH185/'Population 2016'!AH$5","v":7.6869490911455193E-3},{"$f":"'Population 2016'!AI185/'Population 2016'!AI$5","v":7.0407515968151195E-3},{"$f":"'Population 2016'!AJ185/'Population 2016'!AJ$5","v":6.4411789309316006E-3},{"$f":"'Population 2016'!AK185/'Population 2016'!AK$5","v":1.6997095910388092E-2},{"$f":"'Population 2016'!AL185/'Population 2016'!AL$5","v":7.8838615845763637E-3},{"$f":"'Population 2016'!AM185/'Population 2016'!AM$5","v":6.1356581706756104E-3},{"$f":"'Population 2016'!AN185/'Population 2016'!AN$5","v":2.1762844987455003E-2},{"$f":"'Population 2016'!AO185/'Population 2016'!AO$5","v":2.1762844987455003E-2},{"$f":"'Population 2016'!AP185/'Population 2016'!AP$5","v":1.8372620198785727E-2},{"$f":"'Population 2016'!AQ185/'Population 2016'!AQ$5","v":8.96722748945032E-3},{"$f":"'Population 2016'!AR185/'Population 2016'!AR$5","v":8.8696646730305299E-3},{"$f":"'Population 2016'!AS185/'Population 2016'!AS$5","v":1.7701616280043547E-2},{"$f":"'Population 2016'!AT185/'Population 2016'!AT$5","v":2.6361575367743976E-2},{"$f":"'Population 2016'!AU185/'Population 2016'!AU$5","v":2.6361575367743976E-2},{"$f":"'Population 2016'!AV185/'Population 2016'!AV$5","v":6.8208214549677964E-3},{"$f":"'Population 2016'!AW185/'Population 2016'!AW$5","v":9.3202757947403753E-3},{"$f":"'Population 2016'!AX185/'Population 2016'!AX$5","v":1.157723909682201E-2},{"$f":"'Population 2016'!AY185/'Population 2016'!AY$5","v":1.0288852850279979E-2},{"$f":"'Population 2016'!AZ185/'Population 2016'!AZ$5","v":1.224177505738332E-2},{"$f":"'Population 2016'!BA185/'Population 2016'!BA$5","v":7.5442668969984885E-3},{"$f":"'Population 2016'!BB185/'Population 2016'!BB$5","v":7.1673698238539458E-3},{"$f":"'Population 2016'!BC185/'Population 2016'!BC$5","v":2.5671668215819059E-3},183]
[null,"Female 60-64",{"$f":"'Population 2016'!C186/'Population 2016'!C$5","v":4.9015348601861462E-3},{"$f":"'Population 2016'!D186/'Population 2016'!D$5","v":9.7683949023405024E-3},{"$f":"'Population 2016'!E186/'Population 2016'!E$5","v":1.4232206226355834E-2},{"$f":"'Population 2016'!F186/'Population 2016'!F$5","v":1.1393252639711563E-2},{"$f":"'Population 2016'!G186/'Population 2016'!G$5","v":1.0867211606127863E-2},{"$f":"'Population 2016'!H186/'Population 2016'!H$5","v":6.6177495760554837E-3},{"$f":"'Population 2016'!I186/'Population 2016'!I$5","v":1.5953437735533038E-2},{"$f":"'Population 2016'!J186/'Population 2016'!J$5","v":8.4837829544794872E-3},{"$f":"'Population 2016'!K186/'Population 2016'!K$5","v":6.2373009497708265E-3},{"$f":"'Population 2016'!L186/'Population 2016'!L$5","v":8.7128492685018977E-3},{"$f":"'Population 2016'!M186/'Population 2016'!M$5","v":8.7128492685018977E-3},{"$f":"'Population 2016'!N186/'Population 2016'!N$5","v":4.8303742937285503E-3},{"$f":"'Population 2016'!O186/'Population 2016'!O$5","v":5.8350917862910016E-3},{"$f":"'Population 2016'!P186/'Population 2016'!P$5","v":8.2272061309590899E-3},{"$f":"'Population 2016'!Q186/'Population 2016'!Q$5","v":1.2479289315049177E-2},{"$f":"'Population 2016'!R186/'Population 2016'!R$5","v":6.2010965029009419E-3},{"$f":"'Population 2016'!S186/'Population 2016'!S$5","v":7.1662980099599094E-3},{"$f":"'Population 2016'!T186/'Population 2016'!T$5","v":4.6439556451050006E-3},{"$f":"'Population 2016'!U186/'Population 2016'!U$5","v":1.6819368831053865E-3},{"$f":"'Population 2016'!V186/'Population 2016'!V$5","v":6.777539478404225E-3},{"$f":"'Population 2016'!W186/'Population 2016'!W$5","v":7.3539505422312865E-3},{"$f":"'Population 2016'!X186/'Population 2016'!X$5","v":7.3539505422312865E-3},{"$f":"'Population 2016'!Y186/'Population 2016'!Y$5","v":7.5952687556636624E-3},{"$f":"'Population 2016'!Z186/'Population 2016'!Z$5","v":3.1650286594796964E-3},{"$f":"'Population 2016'!AA186/'Population 2016'!AA$5","v":5.5515803334801623E-3},{"$f":"'Population 2016'!AB186/'Population 2016'!AB$5","v":1.0642457242868693E-2},{"$f":"'Population 2016'!AC186/'Population 2016'!AC$5","v":5.0142629302409288E-3},{"$f":"'Population 2016'!AD186/'Population 2016'!AD$5","v":1.3335070155197439E-2},{"$f":"'Population 2016'!AE186/'Population 2016'!AE$5","v":1.4271193749422479E-2},{"$f":"'Population 2016'!AF186/'Population 2016'!AF$5","v":6.9975418118204168E-3},{"$f":"'Population 2016'!AG186/'Population 2016'!AG$5","v":1.4271193749422479E-2},{"$f":"'Population 2016'!AH186/'Population 2016'!AH$5","v":6.5166305973268441E-3},{"$f":"'Population 2016'!AI186/'Population 2016'!AI$5","v":5.9402069297401347E-3},{"$f":"'Population 2016'!AJ186/'Population 2016'!AJ$5","v":5.8835011014137135E-3},{"$f":"'Population 2016'!AK186/'Population 2016'!AK$5","v":1.5136467068126673E-2},{"$f":"'Population 2016'!AL186/'Population 2016'!AL$5","v":7.9015980560827228E-3},{"$f":"'Population 2016'!AM186/'Population 2016'!AM$5","v":5.233781615481852E-3},{"$f":"'Population 2016'!AN186/'Population 2016'!AN$5","v":2.0126540853059888E-2},{"$f":"'Population 2016'!AO186/'Population 2016'!AO$5","v":2.0126540853059888E-2},{"$f":"'Population 2016'!AP186/'Population 2016'!AP$5","v":1.7358083794366153E-2},{"$f":"'Population 2016'!AQ186/'Population 2016'!AQ$5","v":7.7752507261467634E-3},{"$f":"'Population 2016'!AR186/'Population 2016'!AR$5","v":7.8108030617652932E-3},{"$f":"'Population 2016'!AS186/'Population 2016'!AS$5","v":1.5953437735533038E-2},{"$f":"'Population 2016'!AT186/'Population 2016'!AT$5","v":2.3778140981705068E-2},{"$f":"'Population 2016'!AU186/'Population 2016'!AU$5","v":2.3778140981705068E-2},{"$f":"'Population 2016'!AV186/'Population 2016'!AV$5","v":5.9233449477351921E-3},{"$f":"'Population 2016'!AW186/'Population 2016'!AW$5","v":7.8673195435963149E-3},{"$f":"'Population 2016'!AX186/'Population 2016'!AX$5","v":9.6988128857482397E-3},{"$f":"'Population 2016'!AY186/'Population 2016'!AY$5","v":9.4045469844863984E-3},{"$f":"'Population 2016'!AZ186/'Population 2016'!AZ$5","v":1.1209162922608741E-2},{"$f":"'Population 2016'!BA186/'Population 2016'!BA$5","v":5.6413301662707836E-3},{"$f":"'Population 2016'!BB186/'Population 2016'!BB$5","v":5.9728081865449553E-3},{"$f":"'Population 2016'!BC186/'Population 2016'!BC$5","v":1.6819368831053865E-3},184]
[null,"Female 65-69",{"$f":"'Population 2016'!C187/'Population 2016'!C$5","v":5.0497564565838496E-3},{"$f":"'Population 2016'!D187/'Population 2016'!D$5","v":9.6950402472540907E-3},{"$f":"'Population 2016'!E187/'Population 2016'!E$5","v":1.3955625143564333E-2},{"$f":"'Population 2016'!F187/'Population 2016'!F$5","v":1.2227659026525882E-2},{"$f":"'Population 2016'!G187/'Population 2016'!G$5","v":1.2464136848373301E-2},{"$f":"'Population 2016'!H187/'Population 2016'!H$5","v":6.7442033896106847E-3},{"$f":"'Population 2016'!I187/'Population 2016'!I$5","v":1.7324763420149065E-2},{"$f":"'Population 2016'!J187/'Population 2016'!J$5","v":8.7989185871971999E-3},{"$f":"'Population 2016'!K187/'Population 2016'!K$5","v":6.9224590086471669E-3},{"$f":"'Population 2016'!L187/'Population 2016'!L$5","v":8.2919003065779224E-3},{"$f":"'Population 2016'!M187/'Population 2016'!M$5","v":8.2919003065779224E-3},{"$f":"'Population 2016'!N187/'Population 2016'!N$5","v":5.336719685583623E-3},{"$f":"'Population 2016'!O187/'Population 2016'!O$5","v":5.7657443457068977E-3},{"$f":"'Population 2016'!P187/'Population 2016'!P$5","v":8.0468838048010811E-3},{"$f":"'Population 2016'!Q187/'Population 2016'!Q$5","v":1.2491040058283687E-2},{"$f":"'Population 2016'!R187/'Population 2016'!R$5","v":5.6555064672379838E-3},{"$f":"'Population 2016'!S187/'Population 2016'!S$5","v":7.2986966676140529E-3},{"$f":"'Population 2016'!T187/'Population 2016'!T$5","v":4.4648050515814115E-3},{"$f":"'Population 2016'!U187/'Population 2016'!U$5","v":2.611428318505732E-3},{"$f":"'Population 2016'!V187/'Population 2016'!V$5","v":7.5331435418749667E-3},{"$f":"'Population 2016'!W187/'Population 2016'!W$5","v":7.5696664248034043E-3},{"$f":"'Population 2016'!X187/'Population 2016'!X$5","v":7.5696664248034043E-3},{"$f":"'Population 2016'!Y187/'Population 2016'!Y$5","v":8.1397752023020294E-3},{"$f":"'Population 2016'!Z187/'Population 2016'!Z$5","v":2.7701260010492023E-3},{"$f":"'Population 2016'!AA187/'Population 2016'!AA$5","v":5.0333619682199262E-3},{"$f":"'Population 2016'!AB187/'Population 2016'!AB$5","v":1.082873606746978E-2},{"$f":"'Population 2016'!AC187/'Population 2016'!AC$5","v":4.6522596246336007E-3},{"$f":"'Population 2016'!AD187/'Population 2016'!AD$5","v":1.3569541106851763E-2},{"$f":"'Population 2016'!AE187/'Population 2016'!AE$5","v":1.3988849988192897E-2},{"$f":"'Population 2016'!AF187/'Population 2016'!AF$5","v":6.5451145395044414E-3},{"$f":"'Population 2016'!AG187/'Population 2016'!AG$5","v":1.3988849988192897E-2},{"$f":"'Population 2016'!AH187/'Population 2016'!AH$5","v":5.7178417840855261E-3},{"$f":"'Population 2016'!AI187/'Population 2016'!AI$5","v":5.8759515268177447E-3},{"$f":"'Population 2016'!AJ187/'Population 2016'!AJ$5","v":6.3993530937177592E-3},{"$f":"'Population 2016'!AK187/'Population 2016'!AK$5","v":1.6657656864840401E-2},{"$f":"'Population 2016'!AL187/'Population 2016'!AL$5","v":8.1055674784058455E-3},{"$f":"'Population 2016'!AM187/'Population 2016'!AM$5","v":4.3681250022637461E-3},{"$f":"'Population 2016'!AN187/'Population 2016'!AN$5","v":2.0835605977964439E-2},{"$f":"'Population 2016'!AO187/'Population 2016'!AO$5","v":2.0835605977964439E-2},{"$f":"'Population 2016'!AP187/'Population 2016'!AP$5","v":1.7587939698492462E-2},{"$f":"'Population 2016'!AQ187/'Population 2016'!AQ$5","v":7.2409163150106868E-3},{"$f":"'Population 2016'!AR187/'Population 2016'!AR$5","v":7.7722625486685371E-3},{"$f":"'Population 2016'!AS187/'Population 2016'!AS$5","v":1.7324763420149065E-2},{"$f":"'Population 2016'!AT187/'Population 2016'!AT$5","v":2.2354615911846891E-2},{"$f":"'Population 2016'!AU187/'Population 2016'!AU$5","v":2.2354615911846891E-2},{"$f":"'Population 2016'!AV187/'Population 2016'!AV$5","v":6.1661915320451906E-3},{"$f":"'Population 2016'!AW187/'Population 2016'!AW$5","v":7.1389346512904994E-3},{"$f":"'Population 2016'!AX187/'Population 2016'!AX$5","v":9.8138185721405122E-3},{"$f":"'Population 2016'!AY187/'Population 2016'!AY$5","v":9.7702028701692114E-3},{"$f":"'Population 2016'!AZ187/'Population 2016'!AZ$5","v":1.1706772670007077E-2},{"$f":"'Population 2016'!BA187/'Population 2016'!BA$5","v":5.8977542647376379E-3},{"$f":"'Population 2016'!BB187/'Population 2016'!BB$5","v":5.9175683420451168E-3},{"$f":"'Population 2016'!BC187/'Population 2016'!BC$5","v":2.611428318505732E-3},185]
[null,"Female 70-74",{"$f":"'Population 2016'!C188/'Population 2016'!C$5","v":3.5573183135448982E-3},{"$f":"'Population 2016'!D188/'Population 2016'!D$5","v":7.0151501814305134E-3},{"$f":"'Population 2016'!E188/'Population 2016'!E$5","v":1.0186621913659825E-2},{"$f":"'Population 2016'!F188/'Population 2016'!F$5","v":9.7141385526654644E-3},{"$f":"'Population 2016'!G188/'Population 2016'!G$5","v":9.8657500135332643E-3},{"$f":"'Population 2016'!H188/'Population 2016'!H$5","v":5.6806943935566916E-3},{"$f":"'Population 2016'!I188/'Population 2016'!I$5","v":1.3859810736119253E-2},{"$f":"'Population 2016'!J188/'Population 2016'!J$5","v":6.9993282635197329E-3},{"$f":"'Population 2016'!K188/'Population 2016'!K$5","v":5.3631337712044605E-3},{"$f":"'Population 2016'!L188/'Population 2016'!L$5","v":7.1481899194637266E-3},{"$f":"'Population 2016'!M188/'Population 2016'!M$5","v":7.1481899194637266E-3},{"$f":"'Population 2016'!N188/'Population 2016'!N$5","v":3.7453484540391092E-3},{"$f":"'Population 2016'!O188/'Population 2016'!O$5","v":4.2698209845355205E-3},{"$f":"'Population 2016'!P188/'Population 2016'!P$5","v":5.7139637101318603E-3},{"$f":"'Population 2016'!Q188/'Population 2016'!Q$5","v":8.9423156014617929E-3},{"$f":"'Population 2016'!R188/'Population 2016'!R$5","v":4.4179485814659072E-3},{"$f":"'Population 2016'!S188/'Population 2016'!S$5","v":5.5316159167900919E-3},{"$f":"'Population 2016'!T188/'Population 2016'!T$5","v":3.3619819174232094E-3},{"$f":"'Population 2016'!U188/'Population 2016'!U$5","v":2.0360288584959944E-3},{"$f":"'Population 2016'!V188/'Population 2016'!V$5","v":5.640317201059372E-3},{"$f":"'Population 2016'!W188/'Population 2016'!W$5","v":5.8602814765425322E-3},{"$f":"'Population 2016'!X188/'Population 2016'!X$5","v":5.8602814765425322E-3},{"$f":"'Population 2016'!Y188/'Population 2016'!Y$5","v":6.2916328834199771E-3},{"$f":"'Population 2016'!Z188/'Population 2016'!Z$5","v":1.9841922788787088E-3},{"$f":"'Population 2016'!AA188/'Population 2016'!AA$5","v":3.5776998678543168E-3},{"$f":"'Population 2016'!AB188/'Population 2016'!AB$5","v":7.9137795154703549E-3},{"$f":"'Population 2016'!AC188/'Population 2016'!AC$5","v":3.4369628129518577E-3},{"$f":"'Population 2016'!AD188/'Population 2016'!AD$5","v":1.0394878856674979E-2},{"$f":"'Population 2016'!AE188/'Population 2016'!AE$5","v":1.0595591330506473E-2},{"$f":"'Population 2016'!AF188/'Population 2016'!AF$5","v":5.4743699950232996E-3},{"$f":"'Population 2016'!AG188/'Population 2016'!AG$5","v":1.0595591330506473E-2},{"$f":"'Population 2016'!AH188/'Population 2016'!AH$5","v":3.8304710067525519E-3},{"$f":"'Population 2016'!AI188/'Population 2016'!AI$5","v":4.3064791320325492E-3},{"$f":"'Population 2016'!AJ188/'Population 2016'!AJ$5","v":4.9354487912333048E-3},{"$f":"'Population 2016'!AK188/'Population 2016'!AK$5","v":1.2534101052261042E-2},{"$f":"'Population 2016'!AL188/'Population 2016'!AL$5","v":6.6068356361185503E-3},{"$f":"'Population 2016'!AM188/'Population 2016'!AM$5","v":2.8613754160765835E-3},{"$f":"'Population 2016'!AN188/'Population 2016'!AN$5","v":1.5763063161339588E-2},{"$f":"'Population 2016'!AO188/'Population 2016'!AO$5","v":1.5763063161339588E-2},{"$f":"'Population 2016'!AP188/'Population 2016'!AP$5","v":1.3379198833283135E-2},{"$f":"'Population 2016'!AQ188/'Population 2016'!AQ$5","v":5.2063352879925468E-3},{"$f":"'Population 2016'!AR188/'Population 2016'!AR$5","v":5.8635046514834864E-3},{"$f":"'Population 2016'!AS188/'Population 2016'!AS$5","v":1.3859810736119253E-2},{"$f":"'Population 2016'!AT188/'Population 2016'!AT$5","v":1.803131755153688E-2},{"$f":"'Population 2016'!AU188/'Population 2016'!AU$5","v":1.803131755153688E-2},{"$f":"'Population 2016'!AV188/'Population 2016'!AV$5","v":6.0817231548938866E-3},{"$f":"'Population 2016'!AW188/'Population 2016'!AW$5","v":4.8508145707486733E-3},{"$f":"'Population 2016'!AX188/'Population 2016'!AX$5","v":7.8842787226701769E-3},{"$f":"'Population 2016'!AY188/'Population 2016'!AY$5","v":7.4814112175270037E-3},{"$f":"'Population 2016'!AZ188/'Population 2016'!AZ$5","v":8.9080773855066131E-3},{"$f":"'Population 2016'!BA188/'Population 2016'!BA$5","v":4.5346577413085728E-3},{"$f":"'Population 2016'!BB188/'Population 2016'!BB$5","v":4.0739385318630328E-3},{"$f":"'Population 2016'!BC188/'Population 2016'!BC$5","v":2.0360288584959944E-3},186]
[null,"Female 75-79",{"$f":"'Population 2016'!C189/'Population 2016'!C$5","v":3.0257650023255457E-3},{"$f":"'Population 2016'!D189/'Population 2016'!D$5","v":5.618966579619143E-3},{"$f":"'Population 2016'!E189/'Population 2016'!E$5","v":7.997412326140662E-3},{"$f":"'Population 2016'!F189/'Population 2016'!F$5","v":7.5611640484161734E-3},{"$f":"'Population 2016'!G189/'Population 2016'!G$5","v":7.5921615330482323E-3},{"$f":"'Population 2016'!H189/'Population 2016'!H$5","v":4.0043707625813437E-3},{"$f":"'Population 2016'!I189/'Population 2016'!I$5","v":1.1179968176869609E-2},{"$f":"'Population 2016'!J189/'Population 2016'!J$5","v":5.1333935961122212E-3},{"$f":"'Population 2016'!K189/'Population 2016'!K$5","v":3.5202948542267165E-3},{"$f":"'Population 2016'!L189/'Population 2016'!L$5","v":5.6311851698886469E-3},{"$f":"'Population 2016'!M189/'Population 2016'!M$5","v":5.6311851698886469E-3},{"$f":"'Population 2016'!N189/'Population 2016'!N$5","v":3.2711519759526125E-3},{"$f":"'Population 2016'!O189/'Population 2016'!O$5","v":3.0215670540216562E-3},{"$f":"'Population 2016'!P189/'Population 2016'!P$5","v":5.4096697847402231E-3},{"$f":"'Population 2016'!Q189/'Population 2016'!Q$5","v":6.6979236436704621E-3},{"$f":"'Population 2016'!R189/'Population 2016'!R$5","v":4.0187363602491085E-3},{"$f":"'Population 2016'!S189/'Population 2016'!S$5","v":4.2914818234296194E-3},{"$f":"'Population 2016'!T189/'Population 2016'!T$5","v":2.7500779421413381E-3},{"$f":"'Population 2016'!U189/'Population 2016'!U$5","v":1.6819368831053865E-3},{"$f":"'Population 2016'!V189/'Population 2016'!V$5","v":4.442036009494661E-3},{"$f":"'Population 2016'!W189/'Population 2016'!W$5","v":4.278365004347002E-3},{"$f":"'Population 2016'!X189/'Population 2016'!X$5","v":4.278365004347002E-3},{"$f":"'Population 2016'!Y189/'Population 2016'!Y$5","v":4.7733740322093449E-3},{"$f":"'Population 2016'!Z189/'Population 2016'!Z$5","v":1.7809335576277191E-3},{"$f":"'Population 2016'!AA189/'Population 2016'!AA$5","v":2.9804199827659175E-3},{"$f":"'Population 2016'!AB189/'Population 2016'!AB$5","v":6.1860945927965363E-3},{"$f":"'Population 2016'!AC189/'Population 2016'!AC$5","v":2.8805120174754512E-3},{"$f":"'Population 2016'!AD189/'Population 2016'!AD$5","v":8.0278387733075298E-3},{"$f":"'Population 2016'!AE189/'Population 2016'!AE$5","v":8.1931025985893073E-3},{"$f":"'Population 2016'!AF189/'Population 2016'!AF$5","v":3.6495799966821999E-3},{"$f":"'Population 2016'!AG189/'Population 2016'!AG$5","v":8.1931025985893073E-3},{"$f":"'Population 2016'!AH189/'Population 2016'!AH$5","v":3.1598599333104225E-3},{"$f":"'Population 2016'!AI189/'Population 2016'!AI$5","v":3.3973335374923442E-3},{"$f":"'Population 2016'!AJ189/'Population 2016'!AJ$5","v":3.6667317290801104E-3},{"$f":"'Population 2016'!AK189/'Population 2016'!AK$5","v":9.1019951472788296E-3},{"$f":"'Population 2016'!AL189/'Population 2016'!AL$5","v":4.5405367056277823E-3},{"$f":"'Population 2016'!AM189/'Population 2016'!AM$5","v":2.4520900717517049E-3},{"$f":"'Population 2016'!AN189/'Population 2016'!AN$5","v":1.2381367950256354E-2},{"$f":"'Population 2016'!AO189/'Population 2016'!AO$5","v":1.2381367950256354E-2},{"$f":"'Population 2016'!AP189/'Population 2016'!AP$5","v":1.1009305201084285E-2},{"$f":"'Population 2016'!AQ189/'Population 2016'!AQ$5","v":3.9047514659944099E-3},{"$f":"'Population 2016'!AR189/'Population 2016'!AR$5","v":4.6132771399285729E-3},{"$f":"'Population 2016'!AS189/'Population 2016'!AS$5","v":1.1179968176869609E-2},{"$f":"'Population 2016'!AT189/'Population 2016'!AT$5","v":1.2706279327252597E-2},{"$f":"'Population 2016'!AU189/'Population 2016'!AU$5","v":1.2706279327252597E-2},{"$f":"'Population 2016'!AV189/'Population 2016'!AV$5","v":4.413472706155633E-3},{"$f":"'Population 2016'!AW189/'Population 2016'!AW$5","v":3.9050582707913844E-3},{"$f":"'Population 2016'!AX189/'Population 2016'!AX$5","v":6.0058525115964066E-3},{"$f":"'Population 2016'!AY189/'Population 2016'!AY$5","v":5.8734432850891952E-3},{"$f":"'Population 2016'!AZ189/'Population 2016'!AZ$5","v":7.2771830110854793E-3},{"$f":"'Population 2016'!BA189/'Population 2016'!BA$5","v":3.6574174044482835E-3},{"$f":"'Population 2016'!BB189/'Population 2016'!BB$5","v":3.245340864365467E-3},{"$f":"'Population 2016'!BC189/'Population 2016'!BC$5","v":1.6819368831053865E-3},187]
[null,"Female 80-84",{"$f":"'Population 2016'!C190/'Population 2016'!C$5","v":2.3357679156465784E-3},{"$f":"'Population 2016'!D190/'Population 2016'!D$5","v":4.2252281329773185E-3},{"$f":"'Population 2016'!E190/'Population 2016'!E$5","v":5.9582128174236705E-3},{"$f":"'Population 2016'!F190/'Population 2016'!F$5","v":6.0880762297192892E-3},{"$f":"'Population 2016'!G190/'Population 2016'!G$5","v":5.1832404049152814E-3},{"$f":"'Population 2016'!H190/'Population 2016'!H$5","v":3.05110355270368E-3},{"$f":"'Population 2016'!I190/'Population 2016'!I$5","v":7.6312704128632444E-3},{"$f":"'Population 2016'!J190/'Population 2016'!J$5","v":4.030418881600226E-3},{"$f":"'Population 2016'!K190/'Population 2016'!K$5","v":2.5988753957378445E-3},{"$f":"'Population 2016'!L190/'Population 2016'!L$5","v":4.4557050497990563E-3},{"$f":"'Population 2016'!M190/'Population 2016'!M$5","v":4.4557050497990563E-3},{"$f":"'Population 2016'!N190/'Population 2016'!N$5","v":3.2550775190683247E-3},{"$f":"'Population 2016'!O190/'Population 2016'!O$5","v":1.8921944502233979E-3},{"$f":"'Population 2016'!P190/'Population 2016'!P$5","v":3.7980389947030319E-3},{"$f":"'Population 2016'!Q190/'Population 2016'!Q$5","v":5.2055792528877456E-3},{"$f":"'Population 2016'!R190/'Population 2016'!R$5","v":3.41991802842391E-3},{"$f":"'Population 2016'!S190/'Population 2016'!S$5","v":3.2049301729479532E-3},{"$f":"'Population 2016'!T190/'Population 2016'!T$5","v":2.3568772888233297E-3},{"$f":"'Population 2016'!U190/'Population 2016'!U$5","v":8.4096844155269327E-4},{"$f":"'Population 2016'!V190/'Population 2016'!V$5","v":3.2284900893749858E-3},{"$f":"'Population 2016'!W190/'Population 2016'!W$5","v":3.1899803240967714E-3},{"$f":"'Population 2016'!X190/'Population 2016'!X$5","v":3.1899803240967714E-3},{"$f":"'Population 2016'!Y190/'Population 2016'!Y$5","v":3.6128201459436258E-3},{"$f":"'Population 2016'!Z190/'Population 2016'!Z$5","v":1.3376359655660368E-3},{"$f":"'Population 2016'!AA190/'Population 2016'!AA$5","v":2.1944554621212272E-3},{"$f":"'Population 2016'!AB190/'Population 2016'!AB$5","v":4.7429454571507532E-3},{"$f":"'Population 2016'!AC190/'Population 2016'!AC$5","v":2.1999458029336749E-3},{"$f":"'Population 2016'!AD190/'Population 2016'!AD$5","v":6.0888012207376534E-3},{"$f":"'Population 2016'!AE190/'Population 2016'!AE$5","v":6.4323042331030089E-3},{"$f":"'Population 2016'!AF190/'Population 2016'!AF$5","v":3.4082854514470131E-3},{"$f":"'Population 2016'!AG190/'Population 2016'!AG$5","v":6.4323042331030089E-3},{"$f":"'Population 2016'!AH190/'Population 2016'!AH$5","v":2.1845945217948597E-3},{"$f":"'Population 2016'!AI190/'Population 2016'!AI$5","v":2.6331043835856154E-3},{"$f":"'Population 2016'!AJ190/'Population 2016'!AJ$5","v":2.4816663413545995E-3},{"$f":"'Population 2016'!AK190/'Population 2016'!AK$5","v":7.4047999195403745E-3},{"$f":"'Population 2016'!AL190/'Population 2016'!AL$5","v":3.3787978219612992E-3},{"$f":"'Population 2016'!AM190/'Population 2016'!AM$5","v":1.5538355107555118E-3},{"$f":"'Population 2016'!AN190/'Population 2016'!AN$5","v":7.308825133631504E-3},{"$f":"'Population 2016'!AO190/'Population 2016'!AO$5","v":7.308825133631504E-3},{"$f":"'Population 2016'!AP190/'Population 2016'!AP$5","v":8.044956644420842E-3},{"$f":"'Population 2016'!AQ190/'Population 2016'!AQ$5","v":3.0073436729325369E-3},{"$f":"'Population 2016'!AR190/'Population 2016'!AR$5","v":3.4829039407786029E-3},{"$f":"'Population 2016'!AS190/'Population 2016'!AS$5","v":7.6312704128632444E-3},{"$f":"'Population 2016'!AT190/'Population 2016'!AT$5","v":9.0683819265039278E-3},{"$f":"'Population 2016'!AU190/'Population 2016'!AU$5","v":9.0683819265039278E-3},{"$f":"'Population 2016'!AV190/'Population 2016'!AV$5","v":3.8961038961038961E-3},{"$f":"'Population 2016'!AW190/'Population 2016'!AW$5","v":2.8487095002745744E-3},{"$f":"'Population 2016'!AX190/'Population 2016'!AX$5","v":4.8046820092771253E-3},{"$f":"'Population 2016'!AY190/'Population 2016'!AY$5","v":4.5699336005630186E-3},{"$f":"'Population 2016'!AZ190/'Population 2016'!AZ$5","v":5.7843537688904738E-3},{"$f":"'Population 2016'!BA190/'Population 2016'!BA$5","v":2.3887929172964804E-3},{"$f":"'Population 2016'!BB190/'Population 2016'!BB$5","v":2.0162543242440772E-3},{"$f":"'Population 2016'!BC190/'Population 2016'!BC$5","v":8.4096844155269327E-4},188]
[null,"Female 85-89",{"$f":"'Population 2016'!C191/'Population 2016'!C$5","v":1.4311050686674879E-3},{"$f":"'Population 2016'!D191/'Population 2016'!D$5","v":2.6578836692976535E-3},{"$f":"'Population 2016'!E191/'Population 2016'!E$5","v":3.7830666747922124E-3},{"$f":"'Population 2016'!F191/'Population 2016'!F$5","v":3.5951583826937935E-3},{"$f":"'Population 2016'!G191/'Population 2016'!G$5","v":3.3833161911979645E-3},{"$f":"'Population 2016'!H191/'Population 2016'!H$5","v":1.7898078226274508E-3},{"$f":"'Population 2016'!I191/'Population 2016'!I$5","v":4.961895988610669E-3},{"$f":"'Population 2016'!J191/'Population 2016'!J$5","v":2.479619846910427E-3},{"$f":"'Population 2016'!K191/'Population 2016'!K$5","v":1.630203657326466E-3},{"$f":"'Population 2016'!L191/'Population 2016'!L$5","v":2.6051181039823362E-3},{"$f":"'Population 2016'!M191/'Population 2016'!M$5","v":2.6051181039823362E-3},{"$f":"'Population 2016'!N191/'Population 2016'!N$5","v":2.6040620152546594E-3},{"$f":"'Population 2016'!O191/'Population 2016'!O$5","v":1.1491861582508594E-3},{"$f":"'Population 2016'!P191/'Population 2016'!P$5","v":2.9076975092978698E-3},{"$f":"'Population 2016'!Q191/'Population 2016'!Q$5","v":2.9729380383309244E-3},{"$f":"'Population 2016'!R191/'Population 2016'!R$5","v":2.2488955128546336E-3},{"$f":"'Population 2016'!S191/'Population 2016'!S$5","v":2.1086692875716497E-3},{"$f":"'Population 2016'!T191/'Population 2016'!T$5","v":1.9427369557428235E-3},{"$f":"'Population 2016'!U191/'Population 2016'!U$5","v":9.7375293232417125E-4},{"$f":"'Population 2016'!V191/'Population 2016'!V$5","v":1.938620526480488E-3},{"$f":"'Population 2016'!W191/'Population 2016'!W$5","v":1.9349060982226318E-3},{"$f":"'Population 2016'!X191/'Population 2016'!X$5","v":1.9349060982226318E-3},{"$f":"'Population 2016'!Y191/'Population 2016'!Y$5","v":2.1978982846059679E-3},{"$f":"'Population 2016'!Z191/'Population 2016'!Z$5","v":8.6142981863514669E-4},{"$f":"'Population 2016'!AA191/'Population 2016'!AA$5","v":1.3952032910852488E-3},{"$f":"'Population 2016'!AB191/'Population 2016'!AB$5","v":2.9968373540218826E-3},{"$f":"'Population 2016'!AC191/'Population 2016'!AC$5","v":1.4697334207657508E-3},{"$f":"'Population 2016'!AD191/'Population 2016'!AD$5","v":3.729204659644944E-3},{"$f":"'Population 2016'!AE191/'Population 2016'!AE$5","v":3.860409244448095E-3},{"$f":"'Population 2016'!AF191/'Population 2016'!AF$5","v":2.171650907116681E-3},{"$f":"'Population 2016'!AG191/'Population 2016'!AG$5","v":3.860409244448095E-3},{"$f":"'Population 2016'!AH191/'Population 2016'!AH$5","v":1.2613432655601273E-3},{"$f":"'Population 2016'!AI191/'Population 2016'!AI$5","v":1.8087212354536706E-3},{"$f":"'Population 2016'!AJ191/'Population 2016'!AJ$5","v":1.33842679084293E-3},{"$f":"'Population 2016'!AK191/'Population 2016'!AK$5","v":4.7395748211659103E-3},{"$f":"'Population 2016'!AL191/'Population 2016'!AL$5","v":2.0042212802185134E-3},{"$f":"'Population 2016'!AM191/'Population 2016'!AM$5","v":6.4471496716662262E-4},{"$f":"'Population 2016'!AN191/'Population 2016'!AN$5","v":5.3452601723573689E-3},{"$f":"'Population 2016'!AO191/'Population 2016'!AO$5","v":5.3452601723573689E-3},{"$f":"'Population 2016'!AP191/'Population 2016'!AP$5","v":5.516541699031435E-3},{"$f":"'Population 2016'!AQ191/'Population 2016'!AQ$5","v":2.0140297035129064E-3},{"$f":"'Population 2016'!AR191/'Population 2016'!AR$5","v":2.2251019931237488E-3},{"$f":"'Population 2016'!AS191/'Population 2016'!AS$5","v":4.961895988610669E-3},{"$f":"'Population 2016'!AT191/'Population 2016'!AT$5","v":5.8522697316391627E-3},{"$f":"'Population 2016'!AU191/'Population 2016'!AU$5","v":5.8522697316391627E-3},{"$f":"'Population 2016'!AV191/'Population 2016'!AV$5","v":2.2172949002217295E-3},{"$f":"'Population 2016'!AW191/'Population 2016'!AW$5","v":1.9105802672524253E-3},{"$f":"'Population 2016'!AX191/'Population 2016'!AX$5","v":2.9390342078024971E-3},{"$f":"'Population 2016'!AY191/'Population 2016'!AY$5","v":3.0002141917321993E-3},{"$f":"'Population 2016'!AZ191/'Population 2016'!AZ$5","v":3.9377326253660161E-3},{"$f":"'Population 2016'!BA191/'Population 2016'!BA$5","v":1.4980565752537249E-3},{"$f":"'Population 2016'!BB191/'Population 2016'!BB$5","v":9.5979229818468062E-4},{"$f":"'Population 2016'!BC191/'Population 2016'!BC$5","v":9.7375293232417125E-4},189]
[null,"Female 90+",{"$f":"'Population 2016'!C192/'Population 2016'!C$5","v":6.5933054949323549E-4},{"$f":"'Population 2016'!D192/'Population 2016'!D$5","v":1.4499770155414063E-3},{"$f":"'Population 2016'!E192/'Population 2016'!E$5","v":2.1751461426314581E-3},{"$f":"'Population 2016'!F192/'Population 2016'!F$5","v":2.9152716971413855E-3},{"$f":"'Population 2016'!G192/'Population 2016'!G$5","v":2.1653223623666973E-3},{"$f":"'Population 2016'!H192/'Population 2016'!H$5","v":1.1089026727148336E-3},{"$f":"'Population 2016'!I192/'Population 2016'!I$5","v":2.9206096641822294E-3},{"$f":"'Population 2016'!J192/'Population 2016'!J$5","v":1.799590323677467E-3},{"$f":"'Population 2016'!K192/'Population 2016'!K$5","v":1.0631762982563908E-3},{"$f":"'Population 2016'!L192/'Population 2016'!L$5","v":1.358156084698108E-3},{"$f":"'Population 2016'!M192/'Population 2016'!M$5","v":1.358156084698108E-3},{"$f":"'Population 2016'!N192/'Population 2016'!N$5","v":1.50296171868093E-3},{"$f":"'Population 2016'!O192/'Population 2016'!O$5","v":7.0338118306733635E-4},{"$f":"'Population 2016'!P192/'Population 2016'!P$5","v":1.4538487546489349E-3},{"$f":"'Population 2016'!Q192/'Population 2016'!Q$5","v":1.5158458772517361E-3},{"$f":"'Population 2016'!R192/'Population 2016'!R$5","v":2.2355884388140738E-3},{"$f":"'Population 2016'!S192/'Population 2016'!S$5","v":1.2533739591258865E-3},{"$f":"'Population 2016'!T192/'Population 2016'!T$5","v":1.1470291247679186E-3},{"$f":"'Population 2016'!U192/'Population 2016'!U$5","v":4.8687646616208562E-4},{"$f":"'Population 2016'!V192/'Population 2016'!V$5","v":1.3203990200044268E-3},{"$f":"'Population 2016'!W192/'Population 2016'!W$5","v":1.3302479425280594E-3},{"$f":"'Population 2016'!X192/'Population 2016'!X$5","v":1.3302479425280594E-3},{"$f":"'Population 2016'!Y192/'Population 2016'!Y$5","v":1.5500548480946248E-3},{"$f":"'Population 2016'!Z192/'Population 2016'!Z$5","v":5.3040847259782069E-4},{"$f":"'Population 2016'!AA192/'Population 2016'!AA$5","v":7.8729328568381905E-4},{"$f":"'Population 2016'!AB192/'Population 2016'!AB$5","v":1.6171458399435023E-3},{"$f":"'Population 2016'!AC192/'Population 2016'!AC$5","v":8.9156242695290439E-4},{"$f":"'Population 2016'!AD192/'Population 2016'!AD$5","v":2.4265882615653726E-3},{"$f":"'Population 2016'!AE192/'Population 2016'!AE$5","v":2.5256932822718919E-3},{"$f":"'Population 2016'!AF192/'Population 2016'!AF$5","v":1.131068180789938E-3},{"$f":"'Population 2016'!AG192/'Population 2016'!AG$5","v":2.5256932822718919E-3},{"$f":"'Population 2016'!AH192/'Population 2016'!AH$5","v":6.0002043413243176E-4},{"$f":"'Population 2016'!AI192/'Population 2016'!AI$5","v":1.0034779945752035E-3},{"$f":"'Population 2016'!AJ192/'Population 2016'!AJ$5","v":9.8987814739425026E-4},{"$f":"'Population 2016'!AK192/'Population 2016'!AK$5","v":2.4766478508479691E-3},{"$f":"'Population 2016'!AL192/'Population 2016'!AL$5","v":1.3302353629768894E-3},{"$f":"'Population 2016'!AM192/'Population 2016'!AM$5","v":2.8613754160765835E-4},{"$f":"'Population 2016'!AN192/'Population 2016'!AN$5","v":2.6180866150321805E-3},{"$f":"'Population 2016'!AO192/'Population 2016'!AO$5","v":2.6180866150321805E-3},{"$f":"'Population 2016'!AP192/'Population 2016'!AP$5","v":3.5984338094256774E-3},{"$f":"'Population 2016'!AQ192/'Population 2016'!AQ$5","v":1.1029210281142106E-3},{"$f":"'Population 2016'!AR192/'Population 2016'!AR$5","v":1.3362196390424754E-3},{"$f":"'Population 2016'!AS192/'Population 2016'!AS$5","v":2.9206096641822294E-3},{"$f":"'Population 2016'!AT192/'Population 2016'!AT$5","v":3.4270047978067169E-3},{"$f":"'Population 2016'!AU192/'Population 2016'!AU$5","v":3.4270047978067169E-3},{"$f":"'Population 2016'!AV192/'Population 2016'!AV$5","v":1.2775842044134727E-3},{"$f":"'Population 2016'!AW192/'Population 2016'!AW$5","v":9.3050216608700953E-4},{"$f":"'Population 2016'!AX192/'Population 2016'!AX$5","v":2.1978864510523019E-3},{"$f":"'Population 2016'!AY192/'Population 2016'!AY$5","v":2.0363513968360823E-3},{"$f":"'Population 2016'!AZ192/'Population 2016'!AZ$5","v":2.6577537953529577E-3},{"$f":"'Population 2016'!BA192/'Population 2016'!BA$5","v":7.4228028503562943E-4},{"$f":"'Population 2016'!BB192/'Population 2016'!BB$5","v":2.831042030616684E-4},{"$f":"'Population 2016'!BC192/'Population 2016'!BC$5","v":4.8687646616208562E-4},190]
[null,"Male 0-4",{"$f":"'Population 2016'!C193/'Population 2016'!C$5","v":0},{"$f":"'Population 2016'!D193/'Population 2016'!D$5","v":0},{"$f":"'Population 2016'!E193/'Population 2016'!E$5","v":0},{"$f":"'Population 2016'!F193/'Population 2016'!F$5","v":0},{"$f":"'Population 2016'!G193/'Population 2016'!G$5","v":0},{"$f":"'Population 2016'!H193/'Population 2016'!H$5","v":0},{"$f":"'Population 2016'!I193/'Population 2016'!I$5","v":0},{"$f":"'Population 2016'!J193/'Population 2016'!J$5","v":0},{"$f":"'Population 2016'!K193/'Population 2016'!K$5","v":0},{"$f":"'Population 2016'!L193/'Population 2016'!L$5","v":0},{"$f":"'Population 2016'!M193/'Population 2016'!M$5","v":0},{"$f":"'Population 2016'!N193/'Population 2016'!N$5","v":0},{"$f":"'Population 2016'!O193/'Population 2016'!O$5","v":0},{"$f":"'Population 2016'!P193/'Population 2016'!P$5","v":0},{"$f":"'Population 2016'!Q193/'Population 2016'!Q$5","v":0},{"$f":"'Population 2016'!R193/'Population 2016'!R$5","v":0},{"$f":"'Population 2016'!S193/'Population 2016'!S$5","v":0},{"$f":"'Population 2016'!T193/'Population 2016'!T$5","v":0},{"$f":"'Population 2016'!U193/'Population 2016'!U$5","v":0},{"$f":"'Population 2016'!V193/'Population 2016'!V$5","v":0},{"$f":"'Population 2016'!W193/'Population 2016'!W$5","v":0},{"$f":"'Population 2016'!X193/'Population 2016'!X$5","v":0},{"$f":"'Population 2016'!Y193/'Population 2016'!Y$5","v":0},{"$f":"'Population 2016'!Z193/'Population 2016'!Z$5","v":0},{"$f":"'Population 2016'!AA193/'Population 2016'!AA$5","v":0},{"$f":"'Population 2016'!AB193/'Population 2016'!AB$5","v":0},{"$f":"'Population 2016'!AC193/'Population 2016'!AC$5","v":0},{"$f":"'Population 2016'!AD193/'Population 2016'!AD$5","v":0},{"$f":"'Population 2016'!AE193/'Population 2016'!AE$5","v":0},{"$f":"'Population 2016'!AF193/'Population 2016'!AF$5","v":0},{"$f":"'Population 2016'!AG193/'Population 2016'!AG$5","v":0},{"$f":"'Population 2016'!AH193/'Population 2016'!AH$5","v":0},{"$f":"'Population 2016'!AI193/'Population 2016'!AI$5","v":0},{"$f":"'Population 2016'!AJ193/'Population 2016'!AJ$5","v":0},{"$f":"'Population 2016'!AK193/'Population 2016'!AK$5","v":0},{"$f":"'Population 2016'!AL193/'Population 2016'!AL$5","v":0},{"$f":"'Population 2016'!AM193/'Population 2016'!AM$5","v":0},{"$f":"'Population 2016'!AN193/'Population 2016'!AN$5","v":0},{"$f":"'Population 2016'!AO193/'Population 2016'!AO$5","v":0},{"$f":"'Population 2016'!AP193/'Population 2016'!AP$5","v":0},{"$f":"'Population 2016'!AQ193/'Population 2016'!AQ$5","v":0},{"$f":"'Population 2016'!AR193/'Population 2016'!AR$5","v":0},{"$f":"'Population 2016'!AS193/'Population 2016'!AS$5","v":0},{"$f":"'Population 2016'!AT193/'Population 2016'!AT$5","v":0},{"$f":"'Population 2016'!AU193/'Population 2016'!AU$5","v":0},{"$f":"'Population 2016'!AV193/'Population 2016'!AV$5","v":0},{"$f":"'Population 2016'!AW193/'Population 2016'!AW$5","v":0},{"$f":"'Population 2016'!AX193/'Population 2016'!AX$5","v":0},{"$f":"'Population 2016'!AY193/'Population 2016'!AY$5","v":0},{"$f":"'Population 2016'!AZ193/'Population 2016'!AZ$5","v":0},{"$f":"'Population 2016'!BA193/'Population 2016'!BA$5","v":0},{"$f":"'Population 2016'!BB193/'Population 2016'!BB$5","v":0},{"$f":"'Population 2016'!BC193/'Population 2016'!BC$5","v":0},191]
[null,"Male 5-9",{"$f":"'Population 2016'!C194/'Population 2016'!C$5","v":0},{"$f":"'Population 2016'!D194/'Population 2016'!D$5","v":0},{"$f":"'Population 2016'!E194/'Population 2016'!E$5","v":0},{"$f":"'Population 2016'!F194/'Population 2016'!F$5","v":0},{"$f":"'Population 2016'!G194/'Population 2016'!G$5","v":0},{"$f":"'Population 2016'!H194/'Population 2016'!H$5","v":0},{"$f":"'Population 2016'!I194/'Population 2016'!I$5","v":0},{"$f":"'Population 2016'!J194/'Population 2016'!J$5","v":0},{"$f":"'Population 2016'!K194/'Population 2016'!K$5","v":0},{"$f":"'Population 2016'!L194/'Population 2016'!L$5","v":0},{"$f":"'Population 2016'!M194/'Population 2016'!M$5","v":0},{"$f":"'Population 2016'!N194/'Population 2016'!N$5","v":0},{"$f":"'Population 2016'!O194/'Population 2016'!O$5","v":0},{"$f":"'Population 2016'!P194/'Population 2016'!P$5","v":0},{"$f":"'Population 2016'!Q194/'Population 2016'!Q$5","v":0},{"$f":"'Population 2016'!R194/'Population 2016'!R$5","v":0},{"$f":"'Population 2016'!S194/'Population 2016'!S$5","v":0},{"$f":"'Population 2016'!T194/'Population 2016'!T$5","v":0},{"$f":"'Population 2016'!U194/'Population 2016'!U$5","v":0},{"$f":"'Population 2016'!V194/'Population 2016'!V$5","v":0},{"$f":"'Population 2016'!W194/'Population 2016'!W$5","v":0},{"$f":"'Population 2016'!X194/'Population 2016'!X$5","v":0},{"$f":"'Population 2016'!Y194/'Population 2016'!Y$5","v":0},{"$f":"'Population 2016'!Z194/'Population 2016'!Z$5","v":0},{"$f":"'Population 2016'!AA194/'Population 2016'!AA$5","v":0},{"$f":"'Population 2016'!AB194/'Population 2016'!AB$5","v":0},{"$f":"'Population 2016'!AC194/'Population 2016'!AC$5","v":0},{"$f":"'Population 2016'!AD194/'Population 2016'!AD$5","v":0},{"$f":"'Population 2016'!AE194/'Population 2016'!AE$5","v":0},{"$f":"'Population 2016'!AF194/'Population 2016'!AF$5","v":0},{"$f":"'Population 2016'!AG194/'Population 2016'!AG$5","v":0},{"$f":"'Population 2016'!AH194/'Population 2016'!AH$5","v":0},{"$f":"'Population 2016'!AI194/'Population 2016'!AI$5","v":0},{"$f":"'Population 2016'!AJ194/'Population 2016'!AJ$5","v":0},{"$f":"'Population 2016'!AK194/'Population 2016'!AK$5","v":0},{"$f":"'Population 2016'!AL194/'Population 2016'!AL$5","v":0},{"$f":"'Population 2016'!AM194/'Population 2016'!AM$5","v":0},{"$f":"'Population 2016'!AN194/'Population 2016'!AN$5","v":0},{"$f":"'Population 2016'!AO194/'Population 2016'!AO$5","v":0},{"$f":"'Population 2016'!AP194/'Population 2016'!AP$5","v":0},{"$f":"'Population 2016'!AQ194/'Population 2016'!AQ$5","v":0},{"$f":"'Population 2016'!AR194/'Population 2016'!AR$5","v":0},{"$f":"'Population 2016'!AS194/'Population 2016'!AS$5","v":0},{"$f":"'Population 2016'!AT194/'Population 2016'!AT$5","v":0},{"$f":"'Population 2016'!AU194/'Population 2016'!AU$5","v":0},{"$f":"'Population 2016'!AV194/'Population 2016'!AV$5","v":0},{"$f":"'Population 2016'!AW194/'Population 2016'!AW$5","v":0},{"$f":"'Population 2016'!AX194/'Population 2016'!AX$5","v":0},{"$f":"'Population 2016'!AY194/'Population 2016'!AY$5","v":0},{"$f":"'Population 2016'!AZ194/'Population 2016'!AZ$5","v":0},{"$f":"'Population 2016'!BA194/'Population 2016'!BA$5","v":0},{"$f":"'Population 2016'!BB194/'Population 2016'!BB$5","v":0},{"$f":"'Population 2016'!BC194/'Population 2016'!BC$5","v":0},192]
[null,"Male 10-15",{"$f":"'Population 2016'!C195/'Population 2016'!C$5","v":0},{"$f":"'Population 2016'!D195/'Population 2016'!D$5","v":0},{"$f":"'Population 2016'!E195/'Population 2016'!E$5","v":0},{"$f":"'Population 2016'!F195/'Population 2016'!F$5","v":0},{"$f":"'Population 2016'!G195/'Population 2016'!G$5","v":0},{"$f":"'Population 2016'!H195/'Population 2016'!H$5","v":0},{"$f":"'Population 2016'!I195/'Population 2016'!I$5","v":0},{"$f":"'Population 2016'!J195/'Population 2016'!J$5","v":0},{"$f":"'Population 2016'!K195/'Population 2016'!K$5","v":0},{"$f":"'Population 2016'!L195/'Population 2016'!L$5","v":0},{"$f":"'Population 2016'!M195/'Population 2016'!M$5","v":0},{"$f":"'Population 2016'!N195/'Population 2016'!N$5","v":0},{"$f":"'Population 2016'!O195/'Population 2016'!O$5","v":0},{"$f":"'Population 2016'!P195/'Population 2016'!P$5","v":0},{"$f":"'Population 2016'!Q195/'Population 2016'!Q$5","v":0},{"$f":"'Population 2016'!R195/'Population 2016'!R$5","v":0},{"$f":"'Population 2016'!S195/'Population 2016'!S$5","v":0},{"$f":"'Population 2016'!T195/'Population 2016'!T$5","v":0},{"$f":"'Population 2016'!U195/'Population 2016'!U$5","v":0},{"$f":"'Population 2016'!V195/'Population 2016'!V$5","v":0},{"$f":"'Population 2016'!W195/'Population 2016'!W$5","v":0},{"$f":"'Population 2016'!X195/'Population 2016'!X$5","v":0},{"$f":"'Population 2016'!Y195/'Population 2016'!Y$5","v":0},{"$f":"'Population 2016'!Z195/'Population 2016'!Z$5","v":0},{"$f":"'Population 2016'!AA195/'Population 2016'!AA$5","v":0},{"$f":"'Population 2016'!AB195/'Population 2016'!AB$5","v":0},{"$f":"'Population 2016'!AC195/'Population 2016'!AC$5","v":0},{"$f":"'Population 2016'!AD195/'Population 2016'!AD$5","v":0},{"$f":"'Population 2016'!AE195/'Population 2016'!AE$5","v":0},{"$f":"'Population 2016'!AF195/'Population 2016'!AF$5","v":0},{"$f":"'Population 2016'!AG195/'Population 2016'!AG$5","v":0},{"$f":"'Population 2016'!AH195/'Population 2016'!AH$5","v":0},{"$f":"'Population 2016'!AI195/'Population 2016'!AI$5","v":0},{"$f":"'Population 2016'!AJ195/'Population 2016'!AJ$5","v":0},{"$f":"'Population 2016'!AK195/'Population 2016'!AK$5","v":0},{"$f":"'Population 2016'!AL195/'Population 2016'!AL$5","v":0},{"$f":"'Population 2016'!AM195/'Population 2016'!AM$5","v":0},{"$f":"'Population 2016'!AN195/'Population 2016'!AN$5","v":0},{"$f":"'Population 2016'!AO195/'Population 2016'!AO$5","v":0},{"$f":"'Population 2016'!AP195/'Population 2016'!AP$5","v":0},{"$f":"'Population 2016'!AQ195/'Population 2016'!AQ$5","v":0},{"$f":"'Population 2016'!AR195/'Population 2016'!AR$5","v":0},{"$f":"'Population 2016'!AS195/'Population 2016'!AS$5","v":0},{"$f":"'Population 2016'!AT195/'Population 2016'!AT$5","v":0},{"$f":"'Population 2016'!AU195/'Population 2016'!AU$5","v":0},{"$f":"'Population 2016'!AV195/'Population 2016'!AV$5","v":0},{"$f":"'Population 2016'!AW195/'Population 2016'!AW$5","v":0},{"$f":"'Population 2016'!AX195/'Population 2016'!AX$5","v":0},{"$f":"'Population 2016'!AY195/'Population 2016'!AY$5","v":0},{"$f":"'Population 2016'!AZ195/'Population 2016'!AZ$5","v":0},{"$f":"'Population 2016'!BA195/'Population 2016'!BA$5","v":0},{"$f":"'Population 2016'!BB195/'Population 2016'!BB$5","v":0},{"$f":"'Population 2016'!BC195/'Population 2016'!BC$5","v":0},193]
[null,"Male 16-19",{"$f":"'Population 2016'!C196/'Population 2016'!C$5","v":4.4159813547453913E-3},{"$f":"'Population 2016'!D196/'Population 2016'!D$5","v":7.4234910947448725E-3},{"$f":"'Population 2016'!E196/'Population 2016'!E$5","v":1.0181934098697257E-2},{"$f":"'Population 2016'!F196/'Population 2016'!F$5","v":7.2418233324748902E-3},{"$f":"'Population 2016'!G196/'Population 2016'!G$5","v":6.8478319709846802E-3},{"$f":"'Population 2016'!H196/'Population 2016'!H$5","v":3.9687043023478256E-3},{"$f":"'Population 2016'!I196/'Population 2016'!I$5","v":8.8979147475085844E-3},{"$f":"'Population 2016'!J196/'Population 2016'!J$5","v":7.3559291110687243E-3},{"$f":"'Population 2016'!K196/'Population 2016'!K$5","v":5.4340121910882201E-3},{"$f":"'Population 2016'!L196/'Population 2016'!L$5","v":4.20948961923975E-3},{"$f":"'Population 2016'!M196/'Population 2016'!M$5","v":4.20948961923975E-3},{"$f":"'Population 2016'!N196/'Population 2016'!N$5","v":6.1404425297980243E-3},{"$f":"'Population 2016'!O196/'Population 2016'!O$5","v":3.5664398014681846E-3},{"$f":"'Population 2016'!P196/'Population 2016'!P$5","v":5.0715654231939591E-3},{"$f":"'Population 2016'!Q196/'Population 2016'!Q$5","v":8.7073007367716015E-3},{"$f":"'Population 2016'!R196/'Population 2016'!R$5","v":4.6707829882365465E-3},{"$f":"'Population 2016'!S196/'Population 2016'!S$5","v":4.5589271118909886E-3},{"$f":"'Population 2016'!T196/'Population 2016'!T$5","v":2.9199220113260401E-3},{"$f":"'Population 2016'!U196/'Population 2016'!U$5","v":1.5491523923339087E-3},{"$f":"'Population 2016'!V196/'Population 2016'!V$5","v":6.2356416147029865E-3},{"$f":"'Population 2016'!W196/'Population 2016'!W$5","v":4.5529124912569701E-3},{"$f":"'Population 2016'!X196/'Population 2016'!X$5","v":4.5529124912569701E-3},{"$f":"'Population 2016'!Y196/'Population 2016'!Y$5","v":6.7725473362903613E-3},{"$f":"'Population 2016'!Z196/'Population 2016'!Z$5","v":2.5068575620955393E-3},{"$f":"'Population 2016'!AA196/'Population 2016'!AA$5","v":4.077979905086313E-3},{"$f":"'Population 2016'!AB196/'Population 2016'!AB$5","v":7.9199205756220383E-3},{"$f":"'Population 2016'!AC196/'Population 2016'!AC$5","v":3.5414266239985437E-3},{"$f":"'Population 2016'!AD196/'Population 2016'!AD$5","v":8.7498604339573492E-3},{"$f":"'Population 2016'!AE196/'Population 2016'!AE$5","v":9.4713498085195955E-3},{"$f":"'Population 2016'!AF196/'Population 2016'!AF$5","v":5.9720399945708729E-3},{"$f":"'Population 2016'!AG196/'Population 2016'!AG$5","v":9.4713498085195955E-3},{"$f":"'Population 2016'!AH196/'Population 2016'!AH$5","v":5.0416577654347362E-3},{"$f":"'Population 2016'!AI196/'Population 2016'!AI$5","v":3.9947720710473361E-3},{"$f":"'Population 2016'!AJ196/'Population 2016'!AJ$5","v":3.8340350779354766E-3},{"$f":"'Population 2016'!AK196/'Population 2016'!AK$5","v":1.0472323145971362E-2},{"$f":"'Population 2016'!AL196/'Population 2016'!AL$5","v":4.5760096486404996E-3},{"$f":"'Population 2016'!AM196/'Population 2016'!AM$5","v":4.1652933272000895E-3},{"$f":"'Population 2016'!AN196/'Population 2016'!AN$5","v":1.3472237373186429E-2},{"$f":"'Population 2016'!AO196/'Population 2016'!AO$5","v":1.3472237373186429E-2},{"$f":"'Population 2016'!AP196/'Population 2016'!AP$5","v":1.290363489371146E-2},{"$f":"'Population 2016'!AQ196/'Population 2016'!AQ$5","v":4.8569627884035736E-3},{"$f":"'Population 2016'!AR196/'Population 2016'!AR$5","v":5.5097339301097871E-3},{"$f":"'Population 2016'!AS196/'Population 2016'!AS$5","v":8.8979147475085844E-3},{"$f":"'Population 2016'!AT196/'Population 2016'!AT$5","v":1.9718458375072495E-2},{"$f":"'Population 2016'!AU196/'Population 2016'!AU$5","v":1.9718458375072495E-2},{"$f":"'Population 2016'!AV196/'Population 2016'!AV$5","v":3.6743744060817232E-3},{"$f":"'Population 2016'!AW196/'Population 2016'!AW$5","v":5.9643663432790289E-3},{"$f":"'Population 2016'!AX196/'Population 2016'!AX$5","v":8.3954151066358285E-3},{"$f":"'Population 2016'!AY196/'Population 2016'!AY$5","v":6.866374957926624E-3},{"$f":"'Population 2016'!AZ196/'Population 2016'!AZ$5","v":8.9023246716638579E-3},{"$f":"'Population 2016'!BA196/'Population 2016'!BA$5","v":3.0096091556899157E-3},{"$f":"'Population 2016'!BB196/'Population 2016'!BB$5","v":4.4951423461742955E-3},{"$f":"'Population 2016'!BC196/'Population 2016'!BC$5","v":1.5491523923339087E-3},194]
[null,"Male 20-24",{"$f":"'Population 2016'!C197/'Population 2016'!C$5","v":1.0942842685775327E-2},{"$f":"'Population 2016'!D197/'Population 2016'!D$5","v":1.1215926762712361E-2},{"$f":"'Population 2016'!E197/'Population 2016'!E$5","v":1.1466395398440833E-2},{"$f":"'Population 2016'!F197/'Population 2016'!F$5","v":8.6634045840844713E-3},{"$f":"'Population 2016'!G197/'Population 2016'!G$5","v":7.6598278568721923E-3},{"$f":"'Population 2016'!H197/'Population 2016'!H$5","v":4.3123992827799086E-3},{"$f":"'Population 2016'!I197/'Population 2016'!I$5","v":9.2119587974206513E-3},{"$f":"'Population 2016'!J197/'Population 2016'!J$5","v":1.0689732383503479E-2},{"$f":"'Population 2016'!K197/'Population 2016'!K$5","v":7.1114681283371926E-3},{"$f":"'Population 2016'!L197/'Population 2016'!L$5","v":5.0990421425507922E-3},{"$f":"'Population 2016'!M197/'Population 2016'!M$5","v":5.0990421425507922E-3},{"$f":"'Population 2016'!N197/'Population 2016'!N$5","v":1.3414134269938354E-2},{"$f":"'Population 2016'!O197/'Population 2016'!O$5","v":3.9825244449728063E-3},{"$f":"'Population 2016'!P197/'Population 2016'!P$5","v":6.7282767947706521E-3},{"$f":"'Population 2016'!Q197/'Population 2016'!Q$5","v":1.0939941951328422E-2},{"$f":"'Population 2016'!R197/'Population 2016'!R$5","v":4.7772395805610263E-3},{"$f":"'Population 2016'!S197/'Population 2016'!S$5","v":6.7991123993990862E-3},{"$f":"'Population 2016'!T197/'Population 2016'!T$5","v":6.8938079040311209E-3},{"$f":"'Population 2016'!U197/'Population 2016'!U$5","v":2.0802903554198201E-3},{"$f":"'Population 2016'!V197/'Population 2016'!V$5","v":7.296540249273017E-3},{"$f":"'Population 2016'!W197/'Population 2016'!W$5","v":5.9550657279757351E-3},{"$f":"'Population 2016'!X197/'Population 2016'!X$5","v":5.9550657279757351E-3},{"$f":"'Population 2016'!Y197/'Population 2016'!Y$5","v":8.9227516255703399E-3},{"$f":"'Population 2016'!Z197/'Population 2016'!Z$5","v":8.1826153783612701E-3},{"$f":"'Population 2016'!AA197/'Population 2016'!AA$5","v":6.6976401797287591E-3},{"$f":"'Population 2016'!AB197/'Population 2016'!AB$5","v":1.153086394481234E-2},{"$f":"'Population 2016'!AC197/'Population 2016'!AC$5","v":7.0756131818849408E-3},{"$f":"'Population 2016'!AD197/'Population 2016'!AD$5","v":9.7212400908109724E-3},{"$f":"'Population 2016'!AE197/'Population 2016'!AE$5","v":1.0503187917740428E-2},{"$f":"'Population 2016'!AF197/'Population 2016'!AF$5","v":6.2585772670376572E-3},{"$f":"'Population 2016'!AG197/'Population 2016'!AG$5","v":1.0503187917740428E-2},{"$f":"'Population 2016'!AH197/'Population 2016'!AH$5","v":6.0187808253531856E-3},{"$f":"'Population 2016'!AI197/'Population 2016'!AI$5","v":6.8370482981888183E-3},{"$f":"'Population 2016'!AJ197/'Population 2016'!AJ$5","v":4.1686417756462094E-3},{"$f":"'Population 2016'!AK197/'Population 2016'!AK$5","v":1.3150120060847592E-2},{"$f":"'Population 2016'!AL197/'Population 2016'!AL$5","v":5.1967861513630481E-3},{"$f":"'Population 2016'!AM197/'Population 2016'!AM$5","v":5.4728332325211619E-3},{"$f":"'Population 2016'!AN197/'Population 2016'!AN$5","v":1.4126759026944475E-2},{"$f":"'Population 2016'!AO197/'Population 2016'!AO$5","v":1.4126759026944475E-2},{"$f":"'Population 2016'!AP197/'Population 2016'!AP$5","v":1.3609054737409445E-2},{"$f":"'Population 2016'!AQ197/'Population 2016'!AQ$5","v":6.2681536690962899E-3},{"$f":"'Population 2016'!AR197/'Population 2016'!AR$5","v":7.8480069096679428E-3},{"$f":"'Population 2016'!AS197/'Population 2016'!AS$5","v":9.2119587974206513E-3},{"$f":"'Population 2016'!AT197/'Population 2016'!AT$5","v":2.3672694680234092E-2},{"$f":"'Population 2016'!AU197/'Population 2016'!AU$5","v":2.3672694680234092E-2},{"$f":"'Population 2016'!AV197/'Population 2016'!AV$5","v":3.6110231232182452E-3},{"$f":"'Population 2016'!AW197/'Population 2016'!AW$5","v":6.5935993654280311E-3},{"$f":"'Population 2016'!AX197/'Population 2016'!AX$5","v":1.2625068683951595E-2},{"$f":"'Population 2016'!AY197/'Population 2016'!AY$5","v":9.2546127719470034E-3},{"$f":"'Population 2016'!AZ197/'Population 2016'!AZ$5","v":1.2158360706663368E-2},{"$f":"'Population 2016'!BA197/'Population 2016'!BA$5","v":4.4266896998488448E-3},{"$f":"'Population 2016'!BB197/'Population 2016'!BB$5","v":5.5792242944836109E-3},{"$f":"'Population 2016'!BC197/'Population 2016'!BC$5","v":2.0802903554198201E-3},195]
[null,"Male 25-29",{"$f":"'Population 2016'!C198/'Population 2016'!C$5","v":1.2394392112566635E-2},{"$f":"'Population 2016'!D198/'Population 2016'!D$5","v":1.1907905675694179E-2},{"$f":"'Population 2016'!E198/'Population 2016'!E$5","v":1.1461707583478266E-2},{"$f":"'Population 2016'!F198/'Population 2016'!F$5","v":7.1903167653875871E-3},{"$f":"'Population 2016'!G198/'Population 2016'!G$5","v":6.2253017918042549E-3},{"$f":"'Population 2016'!H198/'Population 2016'!H$5","v":3.8357656778410768E-3},{"$f":"'Population 2016'!I198/'Population 2016'!I$5","v":7.3800351729335903E-3},{"$f":"'Population 2016'!J198/'Population 2016'!J$5","v":7.654478657853926E-3},{"$f":"'Population 2016'!K198/'Population 2016'!K$5","v":5.9065349903132825E-3},{"$f":"'Population 2016'!L198/'Population 2016'!L$5","v":4.8210569790160911E-3},{"$f":"'Population 2016'!M198/'Population 2016'!M$5","v":4.8210569790160911E-3},{"$f":"'Population 2016'!N198/'Population 2016'!N$5","v":8.8168396010319793E-3},{"$f":"'Population 2016'!O198/'Population 2016'!O$5","v":3.9230837816150027E-3},{"$f":"'Population 2016'!P198/'Population 2016'!P$5","v":5.3082384762763437E-3},{"$f":"'Population 2016'!Q198/'Population 2016'!Q$5","v":7.7084875618382859E-3},{"$f":"'Population 2016'!R198/'Population 2016'!R$5","v":5.0433810613722254E-3},{"$f":"'Population 2016'!S198/'Population 2016'!S$5","v":7.5334836205207326E-3},{"$f":"'Population 2016'!T198/'Population 2016'!T$5","v":1.0223216986268224E-2},{"$f":"'Population 2016'!U198/'Population 2016'!U$5","v":1.1065374230956491E-3},{"$f":"'Population 2016'!V198/'Population 2016'!V$5","v":5.9761412292685901E-3},{"$f":"'Population 2016'!W198/'Population 2016'!W$5","v":5.2033285614365371E-3},{"$f":"'Population 2016'!X198/'Population 2016'!X$5","v":5.2033285614365371E-3},{"$f":"'Population 2016'!Y198/'Population 2016'!Y$5","v":6.7804963355113587E-3},{"$f":"'Population 2016'!Z198/'Population 2016'!Z$5","v":7.8593372217049349E-3},{"$f":"'Population 2016'!AA198/'Population 2016'!AA$5","v":6.2578189517771233E-3},{"$f":"'Population 2016'!AB198/'Population 2016'!AB$5","v":1.1901374573963952E-2},{"$f":"'Population 2016'!AC198/'Population 2016'!AC$5","v":6.7591188632682483E-3},{"$f":"'Population 2016'!AD198/'Population 2016'!AD$5","v":9.2150805761286245E-3},{"$f":"'Population 2016'!AE198/'Population 2016'!AE$5","v":1.034918222979702E-2},{"$f":"'Population 2016'!AF198/'Population 2016'!AF$5","v":4.9616190863985285E-3},{"$f":"'Population 2016'!AG198/'Population 2016'!AG$5","v":1.034918222979702E-2},{"$f":"'Population 2016'!AH198/'Population 2016'!AH$5","v":5.35745799392549E-3},{"$f":"'Population 2016'!AI198/'Population 2016'!AI$5","v":8.5281958176568386E-3},{"$f":"'Population 2016'!AJ198/'Population 2016'!AJ$5","v":4.5869001477846245E-3},{"$f":"'Population 2016'!AK198/'Population 2016'!AK$5","v":1.1867794777667424E-2},{"$f":"'Population 2016'!AL198/'Population 2016'!AL$5","v":3.9641013816711307E-3},{"$f":"'Population 2016'!AM198/'Population 2016'!AM$5","v":4.6868604916494921E-3},{"$f":"'Population 2016'!AN198/'Population 2016'!AN$5","v":1.3799498200065452E-2},{"$f":"'Population 2016'!AO198/'Population 2016'!AO$5","v":1.3799498200065452E-2},{"$f":"'Population 2016'!AP198/'Population 2016'!AP$5","v":1.1461090943677378E-2},{"$f":"'Population 2016'!AQ198/'Population 2016'!AQ$5","v":6.6380774921904967E-3},{"$f":"'Population 2016'!AR198/'Population 2016'!AR$5","v":7.5116128358176373E-3},{"$f":"'Population 2016'!AS198/'Population 2016'!AS$5","v":7.3800351729335903E-3},{"$f":"'Population 2016'!AT198/'Population 2016'!AT$5","v":2.4199926187588969E-2},{"$f":"'Population 2016'!AU198/'Population 2016'!AU$5","v":2.4199926187588969E-2},{"$f":"'Population 2016'!AV198/'Population 2016'!AV$5","v":3.5899060289304192E-3},{"$f":"'Population 2016'!AW198/'Population 2016'!AW$5","v":6.0635182134358414E-3},{"$f":"'Population 2016'!AX198/'Population 2016'!AX$5","v":8.5998696602220884E-3},{"$f":"'Population 2016'!AY198/'Population 2016'!AY$5","v":7.3942045837030691E-3},{"$f":"'Population 2016'!AZ198/'Population 2016'!AZ$5","v":9.3222727821849951E-3},{"$f":"'Population 2016'!BA198/'Population 2016'!BA$5","v":4.4131936946663784E-3},{"$f":"'Population 2016'!BB198/'Population 2016'!BB$5","v":5.9313783031700769E-3},{"$f":"'Population 2016'!BC198/'Population 2016'!BC$5","v":1.1065374230956491E-3},196]
[null,"Male 30-34",{"$f":"'Population 2016'!C199/'Population 2016'!C$5","v":9.1641835290028773E-3},{"$f":"'Population 2016'!D199/'Population 2016'!D$5","v":1.0844263176941208E-2},{"$f":"'Population 2016'!E199/'Population 2016'!E$5","v":1.2385207131104121E-2},{"$f":"'Population 2016'!F199/'Population 2016'!F$5","v":7.0151944372907546E-3},{"$f":"'Population 2016'!G199/'Population 2016'!G$5","v":5.4133059059167437E-3},{"$f":"'Population 2016'!H199/'Population 2016'!H$5","v":3.6314941328672917E-3},{"$f":"'Population 2016'!I199/'Population 2016'!I$5","v":7.442843982916004E-3},{"$f":"'Population 2016'!J199/'Population 2016'!J$5","v":7.1486030369123342E-3},{"$f":"'Population 2016'!K199/'Population 2016'!K$5","v":7.3477295279497238E-3},{"$f":"'Population 2016'!L199/'Population 2016'!L$5","v":5.091099709306943E-3},{"$f":"'Population 2016'!M199/'Population 2016'!M$5","v":5.091099709306943E-3},{"$f":"'Population 2016'!N199/'Population 2016'!N$5","v":5.5939109957322316E-3},{"$f":"'Population 2016'!O199/'Population 2016'!O$5","v":4.1707532122725157E-3},{"$f":"'Population 2016'!P199/'Population 2016'!P$5","v":4.8010819339569478E-3},{"$f":"'Population 2016'!Q199/'Population 2016'!Q$5","v":8.1197635750461222E-3},{"$f":"'Population 2016'!R199/'Population 2016'!R$5","v":3.9522009900463083E-3},{"$f":"'Population 2016'!S199/'Population 2016'!S$5","v":7.6394025466440469E-3},{"$f":"'Population 2016'!T199/'Population 2016'!T$5","v":9.6834385746127315E-3},{"$f":"'Population 2016'!U199/'Population 2016'!U$5","v":1.0180144292479972E-3},{"$f":"'Population 2016'!V199/'Population 2016'!V$5","v":6.1898474290380933E-3},{"$f":"'Population 2016'!W199/'Population 2016'!W$5","v":5.2065969838997507E-3},{"$f":"'Population 2016'!X199/'Population 2016'!X$5","v":5.2065969838997507E-3},{"$f":"'Population 2016'!Y199/'Population 2016'!Y$5","v":6.6493378483648904E-3},{"$f":"'Population 2016'!Z199/'Population 2016'!Z$5","v":6.5120222694126598E-3},{"$f":"'Population 2016'!AA199/'Population 2016'!AA$5","v":5.778134772651624E-3},{"$f":"'Population 2016'!AB199/'Population 2016'!AB$5","v":1.1045720192829289E-2},{"$f":"'Population 2016'!AC199/'Population 2016'!AC$5","v":5.642080091679923E-3},{"$f":"'Population 2016'!AD199/'Population 2016'!AD$5","v":9.3378986936618405E-3},{"$f":"'Population 2016'!AE199/'Population 2016'!AE$5","v":1.0826599862421585E-2},{"$f":"'Population 2016'!AF199/'Population 2016'!AF$5","v":5.2783181770197111E-3},{"$f":"'Population 2016'!AG199/'Population 2016'!AG$5","v":1.0826599862421585E-2},{"$f":"'Population 2016'!AH199/'Population 2016'!AH$5","v":6.0224961221589587E-3},{"$f":"'Population 2016'!AI199/'Population 2016'!AI$5","v":8.6826822119170539E-3},{"$f":"'Population 2016'!AJ199/'Population 2016'!AJ$5","v":5.3815910548476141E-3},{"$f":"'Population 2016'!AK199/'Population 2016'!AK$5","v":1.2081515658197452E-2},{"$f":"'Population 2016'!AL199/'Population 2016'!AL$5","v":3.3610613504549405E-3},{"$f":"'Population 2016'!AM199/'Population 2016'!AM$5","v":5.0961458359743712E-3},{"$f":"'Population 2016'!AN199/'Population 2016'!AN$5","v":1.3799498200065452E-2},{"$f":"'Population 2016'!AO199/'Population 2016'!AO$5","v":1.3799498200065452E-2},{"$f":"'Population 2016'!AP199/'Population 2016'!AP$5","v":1.2626222595627982E-2},{"$f":"'Population 2016'!AQ199/'Population 2016'!AQ$5","v":5.2268866114977804E-3},{"$f":"'Population 2016'!AR199/'Population 2016'!AR$5","v":7.2059620614317961E-3},{"$f":"'Population 2016'!AS199/'Population 2016'!AS$5","v":7.442843982916004E-3},{"$f":"'Population 2016'!AT199/'Population 2016'!AT$5","v":2.1563768650814573E-2},{"$f":"'Population 2016'!AU199/'Population 2016'!AU$5","v":2.1563768650814573E-2},{"$f":"'Population 2016'!AV199/'Population 2016'!AV$5","v":3.3787350860521592E-3},{"$f":"'Population 2016'!AW199/'Population 2016'!AW$5","v":6.9978339129904204E-3},{"$f":"'Population 2016'!AX199/'Population 2016'!AX$5","v":7.0409036891268513E-3},{"$f":"'Population 2016'!AY199/'Population 2016'!AY$5","v":6.9811205287475904E-3},{"$f":"'Population 2016'!AZ199/'Population 2016'!AZ$5","v":8.5427800564916497E-3},{"$f":"'Population 2016'!BA199/'Population 2016'!BA$5","v":3.4414813215288276E-3},{"$f":"'Population 2016'!BB199/'Population 2016'!BB$5","v":7.6783383854774449E-3},{"$f":"'Population 2016'!BC199/'Population 2016'!BC$5","v":1.0180144292479972E-3},197]
[null,"Male 35-39",{"$f":"'Population 2016'!C200/'Population 2016'!C$5","v":7.2066362386469926E-3},{"$f":"'Population 2016'!D200/'Population 2016'!D$5","v":1.0739121504650685E-2},{"$f":"'Population 2016'!E200/'Population 2016'!E$5","v":1.3979064218377172E-2},{"$f":"'Population 2016'!F200/'Population 2016'!F$5","v":6.6958537213494722E-3},{"$f":"'Population 2016'!G200/'Population 2016'!G$5","v":6.766632382395929E-3},{"$f":"'Population 2016'!H200/'Population 2016'!H$5","v":4.2572783896917448E-3},{"$f":"'Population 2016'!I200/'Population 2016'!I$5","v":8.824637802529102E-3},{"$f":"'Population 2016'!J200/'Population 2016'!J$5","v":8.4257316537156984E-3},{"$f":"'Population 2016'!K200/'Population 2016'!K$5","v":7.4422340877947357E-3},{"$f":"'Population 2016'!L200/'Population 2016'!L$5","v":4.344510984385176E-3},{"$f":"'Population 2016'!M200/'Population 2016'!M$5","v":4.344510984385176E-3},{"$f":"'Population 2016'!N200/'Population 2016'!N$5","v":4.5571085266956539E-3},{"$f":"'Population 2016'!O200/'Population 2016'!O$5","v":4.6363717419086398E-3},{"$f":"'Population 2016'!P200/'Population 2016'!P$5","v":4.7785416431871969E-3},{"$f":"'Population 2016'!Q200/'Population 2016'!Q$5","v":9.8588735737535401E-3},{"$f":"'Population 2016'!R200/'Population 2016'!R$5","v":4.7240112843987868E-3},{"$f":"'Population 2016'!S200/'Population 2016'!S$5","v":7.349890815240321E-3},{"$f":"'Population 2016'!T200/'Population 2016'!T$5","v":7.6243700646338114E-3},{"$f":"'Population 2016'!U200/'Population 2016'!U$5","v":2.2130748461912982E-3},{"$f":"'Population 2016'!V200/'Population 2016'!V$5","v":7.1515253280008545E-3},{"$f":"'Population 2016'!W200/'Population 2016'!W$5","v":5.700128775845051E-3},{"$f":"'Population 2016'!X200/'Population 2016'!X$5","v":5.700128775845051E-3},{"$f":"'Population 2016'!Y200/'Population 2016'!Y$5","v":7.7621977393046212E-3},{"$f":"'Population 2016'!Z200/'Population 2016'!Z$5","v":4.8220711870115745E-3},{"$f":"'Population 2016'!AA200/'Population 2016'!AA$5","v":5.5263337977367148E-3},{"$f":"'Population 2016'!AB200/'Population 2016'!AB$5","v":1.0949510250452904E-2},{"$f":"'Population 2016'!AC200/'Population 2016'!AC$5","v":4.8239526210073621E-3},{"$f":"'Population 2016'!AD200/'Population 2016'!AD$5","v":9.8626670140310388E-3},{"$f":"'Population 2016'!AE200/'Population 2016'!AE$5","v":1.1037074302610909E-2},{"$f":"'Population 2016'!AF200/'Population 2016'!AF$5","v":5.0973472680933204E-3},{"$f":"'Population 2016'!AG200/'Population 2016'!AG$5","v":1.1037074302610909E-2},{"$f":"'Population 2016'!AH200/'Population 2016'!AH$5","v":6.7878472641483148E-3},{"$f":"'Population 2016'!AI200/'Population 2016'!AI$5","v":7.8473619739259769E-3},{"$f":"'Population 2016'!AJ200/'Population 2016'!AJ$5","v":6.5945403340490196E-3},{"$f":"'Population 2016'!AK200/'Population 2016'!AK$5","v":1.2031228392190388E-2},{"$f":"'Population 2016'!AL200/'Population 2016'!AL$5","v":4.1858072755006116E-3},{"$f":"'Population 2016'!AM200/'Population 2016'!AM$5","v":5.5307851396822066E-3},{"$f":"'Population 2016'!AN200/'Population 2016'!AN$5","v":1.3144976546307406E-2},{"$f":"'Population 2016'!AO200/'Population 2016'!AO$5","v":1.3144976546307406E-2},{"$f":"'Population 2016'!AP200/'Population 2016'!AP$5","v":1.2697557186563733E-2},{"$f":"'Population 2016'!AQ200/'Population 2016'!AQ$5","v":5.7064174932865679E-3},{"$f":"'Population 2016'!AR200/'Population 2016'!AR$5","v":7.1335593634176565E-3},{"$f":"'Population 2016'!AS200/'Population 2016'!AS$5","v":8.824637802529102E-3},{"$f":"'Population 2016'!AT200/'Population 2016'!AT$5","v":2.3936310433911531E-2},{"$f":"'Population 2016'!AU200/'Population 2016'!AU$5","v":2.3936310433911531E-2},{"$f":"'Population 2016'!AV200/'Population 2016'!AV$5","v":3.9383380846795485E-3},{"$f":"'Population 2016'!AW200/'Population 2016'!AW$5","v":8.111385685520776E-3},{"$f":"'Population 2016'!AX200/'Population 2016'!AX$5","v":8.957665128998045E-3},{"$f":"'Population 2016'!AY200/'Population 2016'!AY$5","v":6.9811205287475904E-3},{"$f":"'Population 2016'!AZ200/'Population 2016'!AZ$5","v":8.1084501613636235E-3},{"$f":"'Population 2016'!BA200/'Population 2016'!BA$5","v":3.0096091556899157E-3},{"$f":"'Population 2016'!BB200/'Population 2016'!BB$5","v":7.9476326274141532E-3},{"$f":"'Population 2016'!BC200/'Population 2016'!BC$5","v":2.2130748461912982E-3},198]
[null,"Male 40-44",{"$f":"'Population 2016'!C201/'Population 2016'!C$5","v":6.0413078255891805E-3},{"$f":"'Population 2016'!D201/'Population 2016'!D$5","v":1.0934733918214449E-2},{"$f":"'Population 2016'!E201/'Population 2016'!E$5","v":1.5422911226848053E-2},{"$f":"'Population 2016'!F201/'Population 2016'!F$5","v":7.9114087046098375E-3},{"$f":"'Population 2016'!G201/'Population 2016'!G$5","v":8.4718237427597026E-3},{"$f":"'Population 2016'!H201/'Population 2016'!H$5","v":5.0808493805384342E-3},{"$f":"'Population 2016'!I201/'Population 2016'!I$5","v":1.1473075956787539E-2},{"$f":"'Population 2016'!J201/'Population 2016'!J$5","v":9.3628455089025814E-3},{"$f":"'Population 2016'!K201/'Population 2016'!K$5","v":8.0328875868260641E-3},{"$f":"'Population 2016'!L201/'Population 2016'!L$5","v":5.6629549028640418E-3},{"$f":"'Population 2016'!M201/'Population 2016'!M$5","v":5.6629549028640418E-3},{"$f":"'Population 2016'!N201/'Population 2016'!N$5","v":4.6455180395592382E-3},{"$f":"'Population 2016'!O201/'Population 2016'!O$5","v":5.5081681378230845E-3},{"$f":"'Population 2016'!P201/'Population 2016'!P$5","v":5.7026935647469853E-3},{"$f":"'Population 2016'!Q201/'Population 2016'!Q$5","v":1.3102078706478185E-2},{"$f":"'Population 2016'!R201/'Population 2016'!R$5","v":5.7353489114813439E-3},{"$f":"'Population 2016'!S201/'Population 2016'!S$5","v":7.5228917279084014E-3},{"$f":"'Population 2016'!T201/'Population 2016'!T$5","v":6.3656626477992398E-3},{"$f":"'Population 2016'!U201/'Population 2016'!U$5","v":2.4343823308104282E-3},{"$f":"'Population 2016'!V201/'Population 2016'!V$5","v":7.8537028415292202E-3},{"$f":"'Population 2016'!W201/'Population 2016'!W$5","v":6.0727289366514356E-3},{"$f":"'Population 2016'!X201/'Population 2016'!X$5","v":6.0727289366514356E-3},{"$f":"'Population 2016'!Y201/'Population 2016'!Y$5","v":8.5769701594569248E-3},{"$f":"'Population 2016'!Z201/'Population 2016'!Z$5","v":4.1910012524608827E-3},{"$f":"'Population 2016'!AA201/'Population 2016'!AA$5","v":5.7821210677690103E-3},{"$f":"'Population 2016'!AB201/'Population 2016'!AB$5","v":1.1539052025014585E-2},{"$f":"'Population 2016'!AC201/'Population 2016'!AC$5","v":4.8953189869699494E-3},{"$f":"'Population 2016'!AD201/'Population 2016'!AD$5","v":1.1150396367561131E-2},{"$f":"'Population 2016'!AE201/'Population 2016'!AE$5","v":1.2166449347529236E-2},{"$f":"'Population 2016'!AF201/'Population 2016'!AF$5","v":6.1680918125744623E-3},{"$f":"'Population 2016'!AG201/'Population 2016'!AG$5","v":1.2166449347529236E-2},{"$f":"'Population 2016'!AH201/'Population 2016'!AH$5","v":7.3748641594605386E-3},{"$f":"'Population 2016'!AI201/'Population 2016'!AI$5","v":7.6135816781870676E-3},{"$f":"'Population 2016'!AJ201/'Population 2016'!AJ$5","v":6.3157014192900757E-3},{"$f":"'Population 2016'!AK201/'Population 2016'!AK$5","v":1.4646166224557786E-2},{"$f":"'Population 2016'!AL201/'Population 2016'!AL$5","v":5.3120732161543779E-3},{"$f":"'Population 2016'!AM201/'Population 2016'!AM$5","v":6.2080980546269163E-3},{"$f":"'Population 2016'!AN201/'Population 2016'!AN$5","v":1.6799389113123158E-2},{"$f":"'Population 2016'!AO201/'Population 2016'!AO$5","v":1.6799389113123158E-2},{"$f":"'Population 2016'!AP201/'Population 2016'!AP$5","v":1.4195583596214511E-2},{"$f":"'Population 2016'!AQ201/'Population 2016'!AQ$5","v":6.2818545514331126E-3},{"$f":"'Population 2016'!AR201/'Population 2016'!AR$5","v":7.6519626811988907E-3},{"$f":"'Population 2016'!AS201/'Population 2016'!AS$5","v":1.1473075956787539E-2},{"$f":"'Population 2016'!AT201/'Population 2016'!AT$5","v":2.9050456055253863E-2},{"$f":"'Population 2016'!AU201/'Population 2016'!AU$5","v":2.9050456055253863E-2},{"$f":"'Population 2016'!AV201/'Population 2016'!AV$5","v":4.350121423292155E-3},{"$f":"'Population 2016'!AW201/'Population 2016'!AW$5","v":8.6033315028372689E-3},{"$f":"'Population 2016'!AX201/'Population 2016'!AX$5","v":1.0082165173722478E-2},{"$f":"'Population 2016'!AY201/'Population 2016'!AY$5","v":7.6420550166763565E-3},{"$f":"'Population 2016'!AZ201/'Population 2016'!AZ$5","v":9.0231316623617195E-3},{"$f":"'Population 2016'!BA201/'Population 2016'!BA$5","v":4.1162815806521274E-3},{"$f":"'Population 2016'!BB201/'Population 2016'!BB$5","v":8.734800411536842E-3},{"$f":"'Population 2016'!BC201/'Population 2016'!BC$5","v":2.4343823308104282E-3},199]
[null,"Male 45-49",{"$f":"'Population 2016'!C202/'Population 2016'!C$5","v":5.6630872002984877E-3},{"$f":"'Population 2016'!D202/'Population 2016'!D$5","v":1.136752638322428E-2},{"$f":"'Population 2016'!E202/'Population 2016'!E$5","v":1.6599552782452572E-2},{"$f":"'Population 2016'!F202/'Population 2016'!F$5","v":1.0146793716198815E-2},{"$f":"'Population 2016'!G202/'Population 2016'!G$5","v":1.0380014074595356E-2},{"$f":"'Population 2016'!H202/'Population 2016'!H$5","v":6.4588717077425396E-3},{"$f":"'Population 2016'!I202/'Population 2016'!I$5","v":1.5775479440582867E-2},{"$f":"'Population 2016'!J202/'Population 2016'!J$5","v":1.1701483625386663E-2},{"$f":"'Population 2016'!K202/'Population 2016'!K$5","v":1.0088361763455086E-2},{"$f":"'Population 2016'!L202/'Population 2016'!L$5","v":7.4976569821930648E-3},{"$f":"'Population 2016'!M202/'Population 2016'!M$5","v":7.4976569821930648E-3},{"$f":"'Population 2016'!N202/'Population 2016'!N$5","v":5.561762081963656E-3},{"$f":"'Population 2016'!O202/'Population 2016'!O$5","v":6.2214560981167216E-3},{"$f":"'Population 2016'!P202/'Population 2016'!P$5","v":7.5284571170968102E-3},{"$f":"'Population 2016'!Q202/'Population 2016'!Q$5","v":1.4476915664915806E-2},{"$f":"'Population 2016'!R202/'Population 2016'!R$5","v":5.9482620961303027E-3},{"$f":"'Population 2016'!S202/'Population 2016'!S$5","v":8.4479170160520131E-3},{"$f":"'Population 2016'!T202/'Population 2016'!T$5","v":5.937562528210402E-3},{"$f":"'Population 2016'!U202/'Population 2016'!U$5","v":3.1868277785154693E-3},{"$f":"'Population 2016'!V202/'Population 2016'!V$5","v":9.4641317040779719E-3},{"$f":"'Population 2016'!W202/'Population 2016'!W$5","v":8.1579824681819076E-3},{"$f":"'Population 2016'!X202/'Population 2016'!X$5","v":8.1579824681819076E-3},{"$f":"'Population 2016'!Y202/'Population 2016'!Y$5","v":1.0536398467432951E-2},{"$f":"'Population 2016'!Z202/'Population 2016'!Z$5","v":4.330378661318704E-3},{"$f":"'Population 2016'!AA202/'Population 2016'!AA$5","v":6.6757155565831342E-3},{"$f":"'Population 2016'!AB202/'Population 2016'!AB$5","v":1.2540044829739107E-2},{"$f":"'Population 2016'!AC202/'Population 2016'!AC$5","v":5.6720746512873869E-3},{"$f":"'Population 2016'!AD202/'Population 2016'!AD$5","v":1.3335070155197439E-2},{"$f":"'Population 2016'!AE202/'Population 2016'!AE$5","v":1.4456000574954568E-2},{"$f":"'Population 2016'!AF202/'Population 2016'!AF$5","v":8.5357945376947318E-3},{"$f":"'Population 2016'!AG202/'Population 2016'!AG$5","v":1.4456000574954568E-2},{"$f":"'Population 2016'!AH202/'Population 2016'!AH$5","v":8.4783073107752901E-3},{"$f":"'Population 2016'!AI202/'Population 2016'!AI$5","v":7.6122145419546764E-3},{"$f":"'Population 2016'!AJ202/'Population 2016'!AJ$5","v":6.5666564425731254E-3},{"$f":"'Population 2016'!AK202/'Population 2016'!AK$5","v":1.8568572973108884E-2},{"$f":"'Population 2016'!AL202/'Population 2016'!AL$5","v":6.9349603589861832E-3},{"$f":"'Population 2016'!AM202/'Population 2016'!AM$5","v":7.2113904473525029E-3},{"$f":"'Population 2016'!AN202/'Population 2016'!AN$5","v":2.2144649285480527E-2},{"$f":"'Population 2016'!AO202/'Population 2016'!AO$5","v":2.2144649285480527E-2},{"$f":"'Population 2016'!AP202/'Population 2016'!AP$5","v":1.7738534946023492E-2},{"$f":"'Population 2016'!AQ202/'Population 2016'!AQ$5","v":7.7752507261467634E-3},{"$f":"'Population 2016'!AR202/'Population 2016'!AR$5","v":8.8767935540657681E-3},{"$f":"'Population 2016'!AS202/'Population 2016'!AS$5","v":1.5775479440582867E-2},{"$f":"'Population 2016'!AT202/'Population 2016'!AT$5","v":2.836505509569252E-2},{"$f":"'Population 2016'!AU202/'Population 2016'!AU$5","v":2.836505509569252E-2},{"$f":"'Population 2016'!AV202/'Population 2016'!AV$5","v":6.1450744377573646E-3},{"$f":"'Population 2016'!AW202/'Population 2016'!AW$5","v":9.8122216120568682E-3},{"$f":"'Population 2016'!AX202/'Population 2016'!AX$5","v":1.257395504555503E-2},{"$f":"'Population 2016'!AY202/'Population 2016'!AY$5","v":9.8084513937762002E-3},{"$f":"'Population 2016'!AZ202/'Population 2016'!AZ$5","v":1.1260937347193538E-2},{"$f":"'Population 2016'!BA202/'Population 2016'!BA$5","v":5.8167782336428419E-3},{"$f":"'Population 2016'!BB202/'Population 2016'!BB$5","v":9.0662394785358674E-3},{"$f":"'Population 2016'!BC202/'Population 2016'!BC$5","v":3.1868277785154693E-3},200]
[null,"Male 50-54",{"$f":"'Population 2016'!C203/'Population 2016'!C$5","v":5.847086423412879E-3},{"$f":"'Population 2016'!D203/'Population 2016'!D$5","v":1.2169537278835714E-2},{"$f":"'Population 2016'!E203/'Population 2016'!E$5","v":1.7968394751522367E-2},{"$f":"'Population 2016'!F203/'Population 2016'!F$5","v":1.2031934071594128E-2},{"$f":"'Population 2016'!G203/'Population 2016'!G$5","v":1.1706274021544958E-2},{"$f":"'Population 2016'!H203/'Population 2016'!H$5","v":6.9549597455360185E-3},{"$f":"'Population 2016'!I203/'Population 2016'!I$5","v":1.8099405409932167E-2},{"$f":"'Population 2016'!J203/'Population 2016'!J$5","v":1.2082963601834421E-2},{"$f":"'Population 2016'!K203/'Population 2016'!K$5","v":9.4504559845012513E-3},{"$f":"'Population 2016'!L203/'Population 2016'!L$5","v":8.8875827998665669E-3},{"$f":"'Population 2016'!M203/'Population 2016'!M$5","v":8.8875827998665669E-3},{"$f":"'Population 2016'!N203/'Population 2016'!N$5","v":6.1484797582401687E-3},{"$f":"'Population 2016'!O203/'Population 2016'!O$5","v":6.558286523810939E-3},{"$f":"'Population 2016'!P203/'Population 2016'!P$5","v":8.0694240955708329E-3},{"$f":"'Population 2016'!Q203/'Population 2016'!Q$5","v":1.5687242218070292E-2},{"$f":"'Population 2016'!R203/'Population 2016'!R$5","v":7.4386543886730185E-3},{"$f":"'Population 2016'!S203/'Population 2016'!S$5","v":8.7621431635511796E-3},{"$f":"'Population 2016'!T203/'Population 2016'!T$5","v":5.8817233821770749E-3},{"$f":"'Population 2016'!U203/'Population 2016'!U$5","v":2.478643827734254E-3},{"$f":"'Population 2016'!V203/'Population 2016'!V$5","v":9.0290869402614854E-3},{"$f":"'Population 2016'!W203/'Population 2016'!W$5","v":8.3638930833643838E-3},{"$f":"'Population 2016'!X203/'Population 2016'!X$5","v":8.3638930833643838E-3},{"$f":"'Population 2016'!Y203/'Population 2016'!Y$5","v":1.049267897171746E-2},{"$f":"'Population 2016'!Z203/'Population 2016'!Z$5","v":4.2200382126395949E-3},{"$f":"'Population 2016'!AA203/'Population 2016'!AA$5","v":6.976680837945809E-3},{"$f":"'Population 2016'!AB203/'Population 2016'!AB$5","v":1.3246266747182789E-2},{"$f":"'Population 2016'!AC203/'Population 2016'!AC$5","v":6.0268378907825685E-3},{"$f":"'Population 2016'!AD203/'Population 2016'!AD$5","v":1.4514868435743794E-2},{"$f":"'Population 2016'!AE203/'Population 2016'!AE$5","v":1.5580242096941447E-2},{"$f":"'Population 2016'!AF203/'Population 2016'!AF$5","v":9.7271863547934677E-3},{"$f":"'Population 2016'!AG203/'Population 2016'!AG$5","v":1.5580242096941447E-2},{"$f":"'Population 2016'!AH203/'Population 2016'!AH$5","v":8.6826486350928354E-3},{"$f":"'Population 2016'!AI203/'Population 2016'!AI$5","v":7.7092812144544578E-3},{"$f":"'Population 2016'!AJ203/'Population 2016'!AJ$5","v":6.7618436829043858E-3},{"$f":"'Population 2016'!AK203/'Population 2016'!AK$5","v":1.8782293853638912E-2},{"$f":"'Population 2016'!AL203/'Population 2016'!AL$5","v":7.8661251130700063E-3},{"$f":"'Population 2016'!AM203/'Population 2016'!AM$5","v":7.3526482210575497E-3},{"$f":"'Population 2016'!AN203/'Population 2016'!AN$5","v":2.4108214246754665E-2},{"$f":"'Population 2016'!AO203/'Population 2016'!AO$5","v":2.4108214246754665E-2},{"$f":"'Population 2016'!AP203/'Population 2016'!AP$5","v":2.0068798249924701E-2},{"$f":"'Population 2016'!AQ203/'Population 2016'!AQ$5","v":8.604154107524525E-3},{"$f":"'Population 2016'!AR203/'Population 2016'!AR$5","v":9.414132962096854E-3},{"$f":"'Population 2016'!AS203/'Population 2016'!AS$5","v":1.8099405409932167E-2},{"$f":"'Population 2016'!AT203/'Population 2016'!AT$5","v":3.1212105235408866E-2},{"$f":"'Population 2016'!AU203/'Population 2016'!AU$5","v":3.1212105235408866E-2},{"$f":"'Population 2016'!AV203/'Population 2016'!AV$5","v":6.2928940977721465E-3},{"$f":"'Population 2016'!AW203/'Population 2016'!AW$5","v":1.0082982488254316E-2},{"$f":"'Population 2016'!AX203/'Population 2016'!AX$5","v":1.3506778946292344E-2},{"$f":"'Population 2016'!AY203/'Population 2016'!AY$5","v":1.0746305192619566E-2},{"$f":"'Population 2016'!AZ203/'Population 2016'!AZ$5","v":1.2842933653951252E-2},{"$f":"'Population 2016'!BA203/'Population 2016'!BA$5","v":6.3566184409414809E-3},{"$f":"'Population 2016'!BB203/'Population 2016'!BB$5","v":8.9143299061613147E-3},{"$f":"'Population 2016'!BC203/'Population 2016'!BC$5","v":2.478643827734254E-3},201]
[null,"Male 55-59",{"$f":"'Population 2016'!C204/'Population 2016'!C$5","v":5.305310933131616E-3},{"$f":"'Population 2016'!D204/'Population 2016'!D$5","v":1.1012978883639956E-2},{"$f":"'Population 2016'!E204/'Population 2016'!E$5","v":1.6247966660259985E-2},{"$f":"'Population 2016'!F204/'Population 2016'!F$5","v":1.0558846252897245E-2},{"$f":"'Population 2016'!G204/'Population 2016'!G$5","v":1.0867211606127863E-2},{"$f":"'Population 2016'!H204/'Population 2016'!H$5","v":6.6631432527163251E-3},{"$f":"'Population 2016'!I204/'Population 2016'!I$5","v":1.6686207185327862E-2},{"$f":"'Population 2016'!J204/'Population 2016'!J$5","v":1.0664853254604712E-2},{"$f":"'Population 2016'!K204/'Population 2016'!K$5","v":7.9147568870197981E-3},{"$f":"'Population 2016'!L204/'Population 2016'!L$5","v":8.1965911076517396E-3},{"$f":"'Population 2016'!M204/'Population 2016'!M$5","v":8.1965911076517396E-3},{"$f":"'Population 2016'!N204/'Population 2016'!N$5","v":6.6548251500952414E-3},{"$f":"'Population 2016'!O204/'Population 2016'!O$5","v":6.2313628753430219E-3},{"$f":"'Population 2016'!P204/'Population 2016'!P$5","v":8.6216612194297305E-3},{"$f":"'Population 2016'!Q204/'Population 2016'!Q$5","v":1.4676678299902469E-2},{"$f":"'Population 2016'!R204/'Population 2016'!R$5","v":5.5889710970351836E-3},{"$f":"'Population 2016'!S204/'Population 2016'!S$5","v":8.0498383853718908E-3},{"$f":"'Population 2016'!T204/'Population 2016'!T$5","v":5.4117439030632424E-3},{"$f":"'Population 2016'!U204/'Population 2016'!U$5","v":2.3015978400389501E-3},{"$f":"'Population 2016'!V204/'Population 2016'!V$5","v":8.3574388838430474E-3},{"$f":"'Population 2016'!W204/'Population 2016'!W$5","v":7.8082612646180197E-3},{"$f":"'Population 2016'!X204/'Population 2016'!X$5","v":7.8082612646180197E-3},{"$f":"'Population 2016'!Y204/'Population 2016'!Y$5","v":9.4632835725982096E-3},{"$f":"'Population 2016'!Z204/'Population 2016'!Z$5","v":3.6625285772083093E-3},{"$f":"'Population 2016'!AA204/'Population 2016'!AA$5","v":6.1355725681772732E-3},{"$f":"'Population 2016'!AB204/'Population 2016'!AB$5","v":1.1905468614065075E-2},{"$f":"'Population 2016'!AC204/'Population 2016'!AC$5","v":5.5376162806332367E-3},{"$f":"'Population 2016'!AD204/'Population 2016'!AD$5","v":1.3759350924857642E-2},{"$f":"'Population 2016'!AE204/'Population 2016'!AE$5","v":1.4856415363607428E-2},{"$f":"'Population 2016'!AF204/'Population 2016'!AF$5","v":8.5357945376947318E-3},{"$f":"'Population 2016'!AG204/'Population 2016'!AG$5","v":1.4856415363607428E-2},{"$f":"'Population 2016'!AH204/'Population 2016'!AH$5","v":7.2095334516036154E-3},{"$f":"'Population 2016'!AI204/'Population 2016'!AI$5","v":7.022978825794033E-3},{"$f":"'Population 2016'!AJ204/'Population 2016'!AJ$5","v":6.4690628224074948E-3},{"$f":"'Population 2016'!AK204/'Population 2016'!AK$5","v":1.6494223250317439E-2},{"$f":"'Population 2016'!AL204/'Population 2016'!AL$5","v":7.3606356751387877E-3},{"$f":"'Population 2016'!AM204/'Population 2016'!AM$5","v":5.7553487799312545E-3},{"$f":"'Population 2016'!AN204/'Population 2016'!AN$5","v":2.1271953747136467E-2},{"$f":"'Population 2016'!AO204/'Population 2016'!AO$5","v":2.1271953747136467E-2},{"$f":"'Population 2016'!AP204/'Population 2016'!AP$5","v":1.840432446142384E-2},{"$f":"'Population 2016'!AQ204/'Population 2016'!AQ$5","v":8.3917904313037753E-3},{"$f":"'Population 2016'!AR204/'Population 2016'!AR$5","v":8.5731477774710872E-3},{"$f":"'Population 2016'!AS204/'Population 2016'!AS$5","v":1.6686207185327862E-2},{"$f":"'Population 2016'!AT204/'Population 2016'!AT$5","v":2.7943269889808615E-2},{"$f":"'Population 2016'!AU204/'Population 2016'!AU$5","v":2.7943269889808615E-2},{"$f":"'Population 2016'!AV204/'Population 2016'!AV$5","v":6.2928940977721465E-3},{"$f":"'Population 2016'!AW204/'Population 2016'!AW$5","v":8.740618707669779E-3},{"$f":"'Population 2016'!AX204/'Population 2016'!AX$5","v":1.2152267528783367E-2},{"$f":"'Population 2016'!AY204/'Population 2016'!AY$5","v":1.0042532358250972E-2},{"$f":"'Population 2016'!AZ204/'Population 2016'!AZ$5","v":1.2008790146751731E-2},{"$f":"'Population 2016'!BA204/'Population 2016'!BA$5","v":6.5590585186784713E-3},{"$f":"'Population 2016'!BB204/'Population 2016'!BB$5","v":7.581668657602729E-3},{"$f":"'Population 2016'!BC204/'Population 2016'!BC$5","v":2.3015978400389501E-3},202]
[null,"Male 60-64",{"$f":"'Population 2016'!C205/'Population 2016'!C$5","v":5.1059784414243586E-3},{"$f":"'Population 2016'!D205/'Population 2016'!D$5","v":9.9444460745478913E-3},{"$f":"'Population 2016'!E205/'Population 2016'!E$5","v":1.4382216305158003E-2},{"$f":"'Population 2016'!F205/'Population 2016'!F$5","v":1.0589750193149627E-2},{"$f":"'Population 2016'!G205/'Population 2016'!G$5","v":1.0664212634655985E-2},{"$f":"'Population 2016'!H205/'Population 2016'!H$5","v":6.0730254561253902E-3},{"$f":"'Population 2016'!I205/'Population 2016'!I$5","v":1.5974374005527175E-2},{"$f":"'Population 2016'!J205/'Population 2016'!J$5","v":8.4423177396482085E-3},{"$f":"'Population 2016'!K205/'Population 2016'!K$5","v":6.071917970042055E-3},{"$f":"'Population 2016'!L205/'Population 2016'!L$5","v":8.3077851730656207E-3},{"$f":"'Population 2016'!M205/'Population 2016'!M$5","v":8.3077851730656207E-3},{"$f":"'Population 2016'!N205/'Population 2016'!N$5","v":5.0071933194557189E-3},{"$f":"'Population 2016'!O205/'Population 2016'!O$5","v":5.7855579001594992E-3},{"$f":"'Population 2016'!P205/'Population 2016'!P$5","v":7.7538600247943198E-3},{"$f":"'Population 2016'!Q205/'Population 2016'!Q$5","v":1.124546127542567E-2},{"$f":"'Population 2016'!R205/'Population 2016'!R$5","v":5.7885772076435834E-3},{"$f":"'Population 2016'!S205/'Population 2016'!S$5","v":6.8282401040829985E-3},{"$f":"'Population 2016'!T205/'Population 2016'!T$5","v":4.7044480533077714E-3},{"$f":"'Population 2016'!U205/'Population 2016'!U$5","v":1.9917673615721682E-3},{"$f":"'Population 2016'!V205/'Population 2016'!V$5","v":6.4798772715824182E-3},{"$f":"'Population 2016'!W205/'Population 2016'!W$5","v":6.6773870923460084E-3},{"$f":"'Population 2016'!X205/'Population 2016'!X$5","v":6.6773870923460084E-3},{"$f":"'Population 2016'!Y205/'Population 2016'!Y$5","v":7.4203907728017044E-3},{"$f":"'Population 2016'!Z205/'Population 2016'!Z$5","v":3.1030831444317755E-3},{"$f":"'Population 2016'!AA205/'Population 2016'!AA$5","v":5.211416483463187E-3},{"$f":"'Population 2016'!AB205/'Population 2016'!AB$5","v":1.0920851969745043E-2},{"$f":"'Population 2016'!AC205/'Population 2016'!AC$5","v":4.7556891405214092E-3},{"$f":"'Population 2016'!AD205/'Population 2016'!AD$5","v":1.2784249506866649E-2},{"$f":"'Population 2016'!AE205/'Population 2016'!AE$5","v":1.3588435199540037E-2},{"$f":"'Population 2016'!AF205/'Population 2016'!AF$5","v":7.1483509025924083E-3},{"$f":"'Population 2016'!AG205/'Population 2016'!AG$5","v":1.3588435199540037E-2},{"$f":"'Population 2016'!AH205/'Population 2016'!AH$5","v":6.0299267157705059E-3},{"$f":"'Population 2016'!AI205/'Population 2016'!AI$5","v":5.6968566803744861E-3},{"$f":"'Population 2016'!AJ205/'Population 2016'!AJ$5","v":5.4652427292752976E-3},{"$f":"'Population 2016'!AK205/'Population 2016'!AK$5","v":1.594106332423972E-2},{"$f":"'Population 2016'!AL205/'Population 2016'!AL$5","v":6.8019368226884943E-3},{"$f":"'Population 2016'!AM205/'Population 2016'!AM$5","v":4.7918983233788863E-3},{"$f":"'Population 2016'!AN205/'Population 2016'!AN$5","v":1.969019308388786E-2},{"$f":"'Population 2016'!AO205/'Population 2016'!AO$5","v":1.969019308388786E-2},{"$f":"'Population 2016'!AP205/'Population 2016'!AP$5","v":1.6977632642708813E-2},{"$f":"'Population 2016'!AQ205/'Population 2016'!AQ$5","v":6.8641420507480682E-3},{"$f":"'Population 2016'!AR205/'Population 2016'!AR$5","v":7.5343361441174593E-3},{"$f":"'Population 2016'!AS205/'Population 2016'!AS$5","v":1.5974374005527175E-2},{"$f":"'Population 2016'!AT205/'Population 2016'!AT$5","v":2.5570728106711658E-2},{"$f":"'Population 2016'!AU205/'Population 2016'!AU$5","v":2.5570728106711658E-2},{"$f":"'Population 2016'!AV205/'Population 2016'!AV$5","v":5.5115616091225847E-3},{"$f":"'Population 2016'!AW205/'Population 2016'!AW$5","v":7.3334248581365547E-3},{"$f":"'Population 2016'!AX205/'Population 2016'!AX$5","v":9.7243697049465231E-3},{"$f":"'Population 2016'!AY205/'Population 2016'!AY$5","v":8.9287353508154584E-3},{"$f":"'Population 2016'!AZ205/'Population 2016'!AZ$5","v":1.0910021802785464E-2},{"$f":"'Population 2016'!BA205/'Population 2016'!BA$5","v":5.3444180522565317E-3},{"$f":"'Population 2016'!BB205/'Population 2016'!BB$5","v":5.4963645277338541E-3},{"$f":"'Population 2016'!BC205/'Population 2016'!BC$5","v":1.9917673615721682E-3},203]
[null,"Male 65-69",{"$f":"'Population 2016'!C206/'Population 2016'!C$5","v":4.7022023684788888E-3},{"$f":"'Population 2016'!D206/'Population 2016'!D$5","v":9.8759817298005731E-3},{"$f":"'Population 2016'!E206/'Population 2016'!E$5","v":1.4621294868248961E-2},{"$f":"'Population 2016'!F206/'Population 2016'!F$5","v":1.0878186968838527E-2},{"$f":"'Population 2016'!G206/'Population 2016'!G$5","v":1.1124343636658908E-2},{"$f":"'Population 2016'!H206/'Population 2016'!H$5","v":6.10220710540736E-3},{"$f":"'Population 2016'!I206/'Population 2016'!I$5","v":1.6937442425257517E-2},{"$f":"'Population 2016'!J206/'Population 2016'!J$5","v":8.0774238491329621E-3},{"$f":"'Population 2016'!K206/'Population 2016'!K$5","v":6.2609270897320797E-3},{"$f":"'Population 2016'!L206/'Population 2016'!L$5","v":8.3633822057725613E-3},{"$f":"'Population 2016'!M206/'Population 2016'!M$5","v":8.3633822057725613E-3},{"$f":"'Population 2016'!N206/'Population 2016'!N$5","v":4.7017786386542469E-3},{"$f":"'Population 2016'!O206/'Population 2016'!O$5","v":5.3298461477496754E-3},{"$f":"'Population 2016'!P206/'Population 2016'!P$5","v":7.7425898794094448E-3},{"$f":"'Population 2016'!Q206/'Population 2016'!Q$5","v":1.0998695667500969E-2},{"$f":"'Population 2016'!R206/'Population 2016'!R$5","v":5.1631447277372651E-3},{"$f":"'Population 2016'!S206/'Population 2016'!S$5","v":6.7894031645044494E-3},{"$f":"'Population 2016'!T206/'Population 2016'!T$5","v":3.9645793683661928E-3},{"$f":"'Population 2016'!U206/'Population 2016'!U$5","v":2.3015978400389501E-3},{"$f":"'Population 2016'!V206/'Population 2016'!V$5","v":6.8004365712366717E-3},{"$f":"'Population 2016'!W206/'Population 2016'!W$5","v":7.1970662639970189E-3},{"$f":"'Population 2016'!X206/'Population 2016'!X$5","v":7.1970662639970189E-3},{"$f":"'Population 2016'!Y206/'Population 2016'!Y$5","v":7.4124417735807061E-3},{"$f":"'Population 2016'!Z206/'Population 2016'!Z$5","v":2.6830151205130639E-3},{"$f":"'Population 2016'!AA206/'Population 2016'!AA$5","v":4.8114582066854155E-3},{"$f":"'Population 2016'!AB206/'Population 2016'!AB$5","v":1.0728432084992273E-2},{"$f":"'Population 2016'!AC206/'Population 2016'!AC$5","v":4.3761028172131537E-3},{"$f":"'Population 2016'!AD206/'Population 2016'!AD$5","v":1.2869850013026164E-2},{"$f":"'Population 2016'!AE206/'Population 2016'!AE$5","v":1.353196644729412E-2},{"$f":"'Population 2016'!AF206/'Population 2016'!AF$5","v":6.0776063581112674E-3},{"$f":"'Population 2016'!AG206/'Population 2016'!AG$5","v":1.353196644729412E-2},{"$f":"'Population 2016'!AH206/'Population 2016'!AH$5","v":5.5933793410921119E-3},{"$f":"'Population 2016'!AI206/'Population 2016'!AI$5","v":5.2935514918190565E-3},{"$f":"'Population 2016'!AJ206/'Population 2016'!AJ$5","v":5.9950366673172904E-3},{"$f":"'Population 2016'!AK206/'Population 2016'!AK$5","v":1.5111323435123142E-2},{"$f":"'Population 2016'!AL206/'Population 2016'!AL$5","v":7.4227133254110428E-3},{"$f":"'Population 2016'!AM206/'Population 2016'!AM$5","v":4.1978912749781779E-3},{"$f":"'Population 2016'!AN206/'Population 2016'!AN$5","v":1.9199301843569324E-2},{"$f":"'Population 2016'!AO206/'Population 2016'!AO$5","v":1.9199301843569324E-2},{"$f":"'Population 2016'!AP206/'Population 2016'!AP$5","v":1.7136153955899371E-2},{"$f":"'Population 2016'!AQ206/'Population 2016'!AQ$5","v":6.466816462980216E-3},{"$f":"'Population 2016'!AR206/'Population 2016'!AR$5","v":7.3770552062775146E-3},{"$f":"'Population 2016'!AS206/'Population 2016'!AS$5","v":1.6937442425257517E-2},{"$f":"'Population 2016'!AT206/'Population 2016'!AT$5","v":2.499077344862129E-2},{"$f":"'Population 2016'!AU206/'Population 2016'!AU$5","v":2.499077344862129E-2},{"$f":"'Population 2016'!AV206/'Population 2016'!AV$5","v":5.3531834019638902E-3},{"$f":"'Population 2016'!AW206/'Population 2016'!AW$5","v":7.0626639819391058E-3},{"$f":"'Population 2016'!AX206/'Population 2016'!AX$5","v":9.0598924057911749E-3},{"$f":"'Population 2016'!AY206/'Population 2016'!AY$5","v":9.1872953703987029E-3},{"$f":"'Population 2016'!AZ206/'Population 2016'!AZ$5","v":1.093878537199924E-2},{"$f":"'Population 2016'!BA206/'Population 2016'!BA$5","v":5.708810192183114E-3},{"$f":"'Population 2016'!BB206/'Population 2016'!BB$5","v":5.5377944111087325E-3},{"$f":"'Population 2016'!BC206/'Population 2016'!BC$5","v":2.3015978400389501E-3},204]
[null,"Male 70-74",{"$f":"'Population 2016'!C207/'Population 2016'!C$5","v":3.3886523590233729E-3},{"$f":"'Population 2016'!D207/'Population 2016'!D$5","v":6.6361511301507191E-3},{"$f":"'Population 2016'!E207/'Population 2016'!E$5","v":9.6147084882265525E-3},{"$f":"'Population 2016'!F207/'Population 2016'!F$5","v":8.9209374195209894E-3},{"$f":"'Population 2016'!G207/'Population 2016'!G$5","v":9.1349537162345052E-3},{"$f":"'Population 2016'!H207/'Population 2016'!H$5","v":5.0419405148291411E-3},{"$f":"'Population 2016'!I207/'Population 2016'!I$5","v":1.3001423666359601E-2},{"$f":"'Population 2016'!J207/'Population 2016'!J$5","v":6.6593135019032534E-3},{"$f":"'Population 2016'!K207/'Population 2016'!K$5","v":4.8906109719793981E-3},{"$f":"'Population 2016'!L207/'Population 2016'!L$5","v":6.5604498594189313E-3},{"$f":"'Population 2016'!M207/'Population 2016'!M$5","v":6.5604498594189313E-3},{"$f":"'Population 2016'!N207/'Population 2016'!N$5","v":3.2952636612790446E-3},{"$f":"'Population 2016'!O207/'Population 2016'!O$5","v":4.3490752023459247E-3},{"$f":"'Population 2016'!P207/'Population 2016'!P$5","v":5.3983996393553481E-3},{"$f":"'Population 2016'!Q207/'Population 2016'!Q$5","v":8.7425529664751297E-3},{"$f":"'Population 2016'!R207/'Population 2016'!R$5","v":3.6860595092351096E-3},{"$f":"'Population 2016'!S207/'Population 2016'!S$5","v":5.075281876742146E-3},{"$f":"'Population 2016'!T207/'Population 2016'!T$5","v":2.789630670581611E-3},{"$f":"'Population 2016'!U207/'Population 2016'!U$5","v":1.8589828708006906E-3},{"$f":"'Population 2016'!V207/'Population 2016'!V$5","v":4.9076102304210778E-3},{"$f":"'Population 2016'!W207/'Population 2016'!W$5","v":5.399433909229371E-3},{"$f":"'Population 2016'!X207/'Population 2016'!X$5","v":5.399433909229371E-3},{"$f":"'Population 2016'!Y207/'Population 2016'!Y$5","v":5.7471264367816091E-3},{"$f":"'Population 2016'!Z207/'Population 2016'!Z$5","v":1.7344744213417785E-3},{"$f":"'Population 2016'!AA207/'Population 2016'!AA$5","v":3.3046386523133465E-3},{"$f":"'Population 2016'!AB207/'Population 2016'!AB$5","v":7.4654821243974089E-3},{"$f":"'Population 2016'!AC207/'Population 2016'!AC$5","v":3.0635822605968709E-3},{"$f":"'Population 2016'!AD207/'Population 2016'!AD$5","v":9.9743198481521463E-3},{"$f":"'Population 2016'!AE207/'Population 2016'!AE$5","v":1.0292713477551105E-2},{"$f":"'Population 2016'!AF207/'Population 2016'!AF$5","v":4.6298390867001464E-3},{"$f":"'Population 2016'!AG207/'Population 2016'!AG$5","v":1.0292713477551105E-2},{"$f":"'Population 2016'!AH207/'Population 2016'!AH$5","v":3.7375885866082125E-3},{"$f":"'Population 2016'!AI207/'Population 2016'!AI$5","v":3.9045410797095108E-3},{"$f":"'Population 2016'!AJ207/'Population 2016'!AJ$5","v":4.9215068454953577E-3},{"$f":"'Population 2016'!AK207/'Population 2016'!AK$5","v":1.1729504796147995E-2},{"$f":"'Population 2016'!AL207/'Population 2016'!AL$5","v":6.0126638406555397E-3},{"$f":"'Population 2016'!AM207/'Population 2016'!AM$5","v":2.8722413986692792E-3},{"$f":"'Population 2016'!AN207/'Population 2016'!AN$5","v":1.5108541507581542E-2},{"$f":"'Population 2016'!AO207/'Population 2016'!AO$5","v":1.5108541507581542E-2},{"$f":"'Population 2016'!AP207/'Population 2016'!AP$5","v":1.252318374205412E-2},{"$f":"'Population 2016'!AQ207/'Population 2016'!AQ$5","v":4.9323176412560971E-3},{"$f":"'Population 2016'!AR207/'Population 2016'!AR$5","v":5.4268606880751424E-3},{"$f":"'Population 2016'!AS207/'Population 2016'!AS$5","v":1.3001423666359601E-2},{"$f":"'Population 2016'!AT207/'Population 2016'!AT$5","v":1.6186007275794802E-2},{"$f":"'Population 2016'!AU207/'Population 2016'!AU$5","v":1.6186007275794802E-2},{"$f":"'Population 2016'!AV207/'Population 2016'!AV$5","v":4.6246436490338929E-3},{"$f":"'Population 2016'!AW207/'Population 2016'!AW$5","v":4.6486972969674778E-3},{"$f":"'Population 2016'!AX207/'Population 2016'!AX$5","v":7.6159321210882095E-3},{"$f":"'Population 2016'!AY207/'Population 2016'!AY$5","v":6.8969737768122151E-3},{"$f":"'Population 2016'!AZ207/'Population 2016'!AZ$5","v":8.2148753674545962E-3},{"$f":"'Population 2016'!BA207/'Population 2016'!BA$5","v":3.819369466637875E-3},{"$f":"'Population 2016'!BB207/'Population 2016'!BB$5","v":3.8667891149886413E-3},{"$f":"'Population 2016'!BC207/'Population 2016'!BC$5","v":1.8589828708006906E-3},205]
[null,"Male 75-79",{"$f":"'Population 2016'!C208/'Population 2016'!C$5","v":2.2897681098679804E-3},{"$f":"'Population 2016'!D208/'Population 2016'!D$5","v":4.7607171151081247E-3},{"$f":"'Population 2016'!E208/'Population 2016'!E$5","v":7.0270346288891289E-3},{"$f":"'Population 2016'!F208/'Population 2016'!F$5","v":7.0151944372907546E-3},{"$f":"'Population 2016'!G208/'Population 2016'!G$5","v":6.1305689384507115E-3},{"$f":"'Population 2016'!H208/'Population 2016'!H$5","v":3.3202232071929522E-3},{"$f":"'Population 2016'!I208/'Population 2016'!I$5","v":9.5364709823297887E-3},{"$f":"'Population 2016'!J208/'Population 2016'!J$5","v":4.3704336432167055E-3},{"$f":"'Population 2016'!K208/'Population 2016'!K$5","v":3.0241459150404009E-3},{"$f":"'Population 2016'!L208/'Population 2016'!L$5","v":4.8369418455037885E-3},{"$f":"'Population 2016'!M208/'Population 2016'!M$5","v":4.8369418455037885E-3},{"$f":"'Population 2016'!N208/'Population 2016'!N$5","v":2.5478014161596516E-3},{"$f":"'Population 2016'!O208/'Population 2016'!O$5","v":2.5064146382540297E-3},{"$f":"'Population 2016'!P208/'Population 2016'!P$5","v":4.2037642285585484E-3},{"$f":"'Population 2016'!Q208/'Population 2016'!Q$5","v":5.7696149281442049E-3},{"$f":"'Population 2016'!R208/'Population 2016'!R$5","v":2.7545643263959122E-3},{"$f":"'Population 2016'!S208/'Population 2016'!S$5","v":3.6153660116757962E-3},{"$f":"'Population 2016'!T208/'Population 2016'!T$5","v":2.2172794237400131E-3},{"$f":"'Population 2016'!U208/'Population 2016'!U$5","v":9.7375293232417125E-4},{"$f":"'Population 2016'!V208/'Population 2016'!V$5","v":3.6253730318040619E-3},{"$f":"'Population 2016'!W208/'Population 2016'!W$5","v":3.7325384529902799E-3},{"$f":"'Population 2016'!X208/'Population 2016'!X$5","v":3.7325384529902799E-3},{"$f":"'Population 2016'!Y208/'Population 2016'!Y$5","v":3.9824486097200362E-3},{"$f":"'Population 2016'!Z208/'Population 2016'!Z$5","v":1.3531223443280171E-3},{"$f":"'Population 2016'!AA208/'Population 2016'!AA$5","v":2.3074004904471757E-3},{"$f":"'Population 2016'!AB208/'Population 2016'!AB$5","v":5.3713806126731009E-3},{"$f":"'Population 2016'!AC208/'Population 2016'!AC$5","v":2.2578663318308474E-3},{"$f":"'Population 2016'!AD208/'Population 2016'!AD$5","v":6.5875172131452603E-3},{"$f":"'Population 2016'!AE208/'Population 2016'!AE$5","v":6.7608497007156133E-3},{"$f":"'Population 2016'!AF208/'Population 2016'!AF$5","v":3.3328809060610173E-3},{"$f":"'Population 2016'!AG208/'Population 2016'!AG$5","v":6.7608497007156133E-3},{"$f":"'Population 2016'!AH208/'Population 2016'!AH$5","v":2.3963664397239535E-3},{"$f":"'Population 2016'!AI208/'Population 2016'!AI$5","v":2.7930593227753959E-3},{"$f":"'Population 2016'!AJ208/'Population 2016'!AJ$5","v":2.8859827677550679E-3},{"$f":"'Population 2016'!AK208/'Population 2016'!AK$5","v":8.5111197716958124E-3},{"$f":"'Population 2016'!AL208/'Population 2016'!AL$5","v":4.0882566822156401E-3},{"$f":"'Population 2016'!AM208/'Population 2016'!AM$5","v":1.8327290639680396E-3},{"$f":"'Population 2016'!AN208/'Population 2016'!AN$5","v":1.2217737536816844E-2},{"$f":"'Population 2016'!AO208/'Population 2016'!AO$5","v":1.2217737536816844E-2},{"$f":"'Population 2016'!AP208/'Population 2016'!AP$5","v":9.6380958419859542E-3},{"$f":"'Population 2016'!AQ208/'Population 2016'!AQ$5","v":3.3841179371951555E-3},{"$f":"'Population 2016'!AR208/'Population 2016'!AR$5","v":3.8507096466904281E-3},{"$f":"'Population 2016'!AS208/'Population 2016'!AS$5","v":9.5364709823297887E-3},{"$f":"'Population 2016'!AT208/'Population 2016'!AT$5","v":1.1968155216955765E-2},{"$f":"'Population 2016'!AU208/'Population 2016'!AU$5","v":1.1968155216955765E-2},{"$f":"'Population 2016'!AV208/'Population 2016'!AV$5","v":3.2731496146130292E-3},{"$f":"'Population 2016'!AW208/'Population 2016'!AW$5","v":2.9898102385746538E-3},{"$f":"'Population 2016'!AX208/'Population 2016'!AX$5","v":5.0985854300573752E-3},{"$f":"'Population 2016'!AY208/'Population 2016'!AY$5","v":5.1344818090021723E-3},{"$f":"'Population 2016'!AZ208/'Population 2016'!AZ$5","v":6.3682542239301395E-3},{"$f":"'Population 2016'!BA208/'Population 2016'!BA$5","v":2.5507449794860723E-3},{"$f":"'Population 2016'!BB208/'Population 2016'!BB$5","v":2.7067523804920491E-3},{"$f":"'Population 2016'!BC208/'Population 2016'!BC$5","v":9.7375293232417125E-4},206]
[null,"Male 80-84",{"$f":"'Population 2016'!C209/'Population 2016'!C$5","v":1.5588823069413707E-3},{"$f":"'Population 2016'!D209/'Population 2016'!D$5","v":3.1102373756638595E-3},{"$f":"'Population 2016'!E209/'Population 2016'!E$5","v":4.5331170688030602E-3},{"$f":"'Population 2016'!F209/'Population 2016'!F$5","v":4.2132371877414369E-3},{"$f":"'Population 2016'!G209/'Population 2016'!G$5","v":4.1547122827911009E-3},{"$f":"'Population 2016'!H209/'Population 2016'!H$5","v":2.2761686439936061E-3},{"$f":"'Population 2016'!I209/'Population 2016'!I$5","v":6.2180721882589395E-3},{"$f":"'Population 2016'!J209/'Population 2016'!J$5","v":3.0020815537845301E-3},{"$f":"'Population 2016'!K209/'Population 2016'!K$5","v":2.173604876435288E-3},{"$f":"'Population 2016'!L209/'Population 2016'!L$5","v":3.6217495591949552E-3},{"$f":"'Population 2016'!M209/'Population 2016'!M$5","v":3.6217495591949552E-3},{"$f":"'Population 2016'!N209/'Population 2016'!N$5","v":2.2343495069160352E-3},{"$f":"'Population 2016'!O209/'Population 2016'!O$5","v":1.5454572473028799E-3},{"$f":"'Population 2016'!P209/'Population 2016'!P$5","v":3.0429392539163755E-3},{"$f":"'Population 2016'!Q209/'Population 2016'!Q$5","v":3.8424930376846334E-3},{"$f":"'Population 2016'!R209/'Population 2016'!R$5","v":2.0892106243679139E-3},{"$f":"'Population 2016'!S209/'Population 2016'!S$5","v":2.4008289921284586E-3},{"$f":"'Population 2016'!T209/'Population 2016'!T$5","v":1.6193352349664733E-3},{"$f":"'Population 2016'!U209/'Population 2016'!U$5","v":9.2949143540034529E-4},{"$f":"'Population 2016'!V209/'Population 2016'!V$5","v":2.6026362186214423E-3},{"$f":"'Population 2016'!W209/'Population 2016'!W$5","v":2.3532641735140116E-3},{"$f":"'Population 2016'!X209/'Population 2016'!X$5","v":2.3532641735140116E-3},{"$f":"'Population 2016'!Y209/'Population 2016'!Y$5","v":2.7940732261808239E-3},{"$f":"'Population 2016'!Z209/'Population 2016'!Z$5","v":9.6983446996900787E-4},{"$f":"'Population 2016'!AA209/'Population 2016'!AA$5","v":1.5686071286915584E-3},{"$f":"'Population 2016'!AB209/'Population 2016'!AB$5","v":3.5188274669150383E-3},{"$f":"'Population 2016'!AC209/'Population 2016'!AC$5","v":1.575231526971315E-3},{"$f":"'Population 2016'!AD209/'Population 2016'!AD$5","v":4.5777661989653507E-3},{"$f":"'Population 2016'!AE209/'Population 2016'!AE$5","v":4.7382416657255205E-3},{"$f":"'Population 2016'!AF209/'Population 2016'!AF$5","v":2.00576090726749E-3},{"$f":"'Population 2016'!AG209/'Population 2016'!AG$5","v":4.7382416657255205E-3},{"$f":"'Population 2016'!AH209/'Population 2016'!AH$5","v":1.5567093616191264E-3},{"$f":"'Population 2016'!AI209/'Population 2016'!AI$5","v":1.9221935427421472E-3},{"$f":"'Population 2016'!AJ209/'Population 2016'!AJ$5","v":2.2028274265956556E-3},{"$f":"'Population 2016'!AK209/'Population 2016'!AK$5","v":5.6196019762895537E-3},{"$f":"'Population 2016'!AL209/'Population 2016'!AL$5","v":2.740284847732392E-3},{"$f":"'Population 2016'!AM209/'Population 2016'!AM$5","v":1.0938422476647193E-3},{"$f":"'Population 2016'!AN209/'Population 2016'!AN$5","v":6.872477364459474E-3},{"$f":"'Population 2016'!AO209/'Population 2016'!AO$5","v":6.872477364459474E-3},{"$f":"'Population 2016'!AP209/'Population 2016'!AP$5","v":6.7767861388963744E-3},{"$f":"'Population 2016'!AQ209/'Population 2016'!AQ$5","v":2.1030854387022522E-3},{"$f":"'Population 2016'!AR209/'Population 2016'!AR$5","v":2.6093932364295623E-3},{"$f":"'Population 2016'!AS209/'Population 2016'!AS$5","v":6.2180721882589395E-3},{"$f":"'Population 2016'!AT209/'Population 2016'!AT$5","v":7.0121790478198977E-3},{"$f":"'Population 2016'!AU209/'Population 2016'!AU$5","v":7.0121790478198977E-3},{"$f":"'Population 2016'!AV209/'Population 2016'!AV$5","v":2.5023756731073804E-3},{"$f":"'Population 2016'!AW209/'Population 2016'!AW$5","v":2.0440539386173654E-3},{"$f":"'Population 2016'!AX209/'Population 2016'!AX$5","v":3.4501705917681486E-3},{"$f":"'Population 2016'!AY209/'Population 2016'!AY$5","v":3.4607264159603438E-3},{"$f":"'Population 2016'!AZ209/'Population 2016'!AZ$5","v":4.4353423727643516E-3},{"$f":"'Population 2016'!BA209/'Population 2016'!BA$5","v":2.0918808032822284E-3},{"$f":"'Population 2016'!BB209/'Population 2016'!BB$5","v":1.5536206265579363E-3},{"$f":"'Population 2016'!BC209/'Population 2016'!BC$5","v":9.2949143540034529E-4},207]
[null,"Male 85-89",{"$f":"'Population 2016'!C210/'Population 2016'!C$5","v":7.2066362386469923E-4},{"$f":"'Population 2016'!D210/'Population 2016'!D$5","v":1.6724861359701886E-3},{"$f":"'Population 2016'!E210/'Population 2016'!E$5","v":2.5454835246743143E-3},{"$f":"'Population 2016'!F210/'Population 2016'!F$5","v":2.5753283543651817E-3},{"$f":"'Population 2016'!G210/'Population 2016'!G$5","v":1.8946570670708603E-3},{"$f":"'Population 2016'!H210/'Population 2016'!H$5","v":1.050539374150895E-3},{"$f":"'Population 2016'!I210/'Population 2016'!I$5","v":3.6010384389917093E-3},{"$f":"'Population 2016'!J210/'Population 2016'!J$5","v":1.6586085932511216E-3},{"$f":"'Population 2016'!K210/'Population 2016'!K$5","v":9.9229787837263141E-4},{"$f":"'Population 2016'!L210/'Population 2016'!L$5","v":1.8188172128413261E-3},{"$f":"'Population 2016'!M210/'Population 2016'!M$5","v":1.8188172128413261E-3},{"$f":"'Population 2016'!N210/'Population 2016'!N$5","v":1.2216587232058897E-3},{"$f":"'Population 2016'!O210/'Population 2016'!O$5","v":6.2412696525693224E-4},{"$f":"'Population 2016'!P210/'Population 2016'!P$5","v":1.6229009354220669E-3},{"$f":"'Population 2016'!Q210/'Population 2016'!Q$5","v":2.3148964171983877E-3},{"$f":"'Population 2016'!R210/'Population 2016'!R$5","v":1.0113376270825571E-3},{"$f":"'Population 2016'!S210/'Population 2016'!S$5","v":1.3328131537183722E-3},{"$f":"'Population 2016'!T210/'Population 2016'!T$5","v":9.981247353457142E-4},{"$f":"'Population 2016'!U210/'Population 2016'!U$5","v":5.3113796308591158E-4},{"$f":"'Population 2016'!V210/'Population 2016'!V$5","v":1.3051342914494623E-3},{"$f":"'Population 2016'!W210/'Population 2016'!W$5","v":1.1766320867570058E-3},{"$f":"'Population 2016'!X210/'Population 2016'!X$5","v":1.1766320867570058E-3},{"$f":"'Population 2016'!Y210/'Population 2016'!Y$5","v":1.4745393554951431E-3},{"$f":"'Population 2016'!Z210/'Population 2016'!Z$5","v":4.9556412038336526E-4},{"$f":"'Population 2016'!AA210/'Population 2016'!AA$5","v":7.9991655355554268E-4},{"$f":"'Population 2016'!AB210/'Population 2016'!AB$5","v":1.8382240054041329E-3},{"$f":"'Population 2016'!AC210/'Population 2016'!AC$5","v":8.1916176583143885E-4},{"$f":"'Population 2016'!AD210/'Population 2016'!AD$5","v":2.3782053667795603E-3},{"$f":"'Population 2016'!AE210/'Population 2016'!AE$5","v":2.5616279427920206E-3},{"$f":"'Population 2016'!AF210/'Population 2016'!AF$5","v":1.1612299989443363E-3},{"$f":"'Population 2016'!AG210/'Population 2016'!AG$5","v":2.5616279427920206E-3},{"$f":"'Population 2016'!AH210/'Population 2016'!AH$5","v":7.6535114198935566E-4},{"$f":"'Population 2016'!AI210/'Population 2016'!AI$5","v":1.101911803307376E-3},{"$f":"'Population 2016'!AJ210/'Population 2016'!AJ$5","v":9.7593620165630315E-4},{"$f":"'Population 2016'!AK210/'Population 2016'!AK$5","v":2.6903687313779966E-3},{"$f":"'Population 2016'!AL210/'Population 2016'!AL$5","v":1.3568400702364271E-3},{"$f":"'Population 2016'!AM210/'Population 2016'!AM$5","v":4.6723725148592314E-4},{"$f":"'Population 2016'!AN210/'Population 2016'!AN$5","v":3.708956037962256E-3},{"$f":"'Population 2016'!AO210/'Population 2016'!AO$5","v":3.708956037962256E-3},{"$f":"'Population 2016'!AP210/'Population 2016'!AP$5","v":3.6935465973400123E-3},{"$f":"'Population 2016'!AQ210/'Population 2016'!AQ$5","v":1.2330794103140243E-3},{"$f":"'Population 2016'!AR210/'Population 2016'!AR$5","v":1.377656260059798E-3},{"$f":"'Population 2016'!AS210/'Population 2016'!AS$5","v":3.6010384389917093E-3},{"$f":"'Population 2016'!AT210/'Population 2016'!AT$5","v":3.2161121948647651E-3},{"$f":"'Population 2016'!AU210/'Population 2016'!AU$5","v":3.2161121948647651E-3},{"$f":"'Population 2016'!AV210/'Population 2016'!AV$5","v":1.1403230915426037E-3},{"$f":"'Population 2016'!AW210/'Population 2016'!AW$5","v":1.0792299713222283E-3},{"$f":"'Population 2016'!AX210/'Population 2016'!AX$5","v":2.018988716664324E-3},{"$f":"'Population 2016'!AY210/'Population 2016'!AY$5","v":1.8787674795752885E-3},{"$f":"'Population 2016'!AZ210/'Population 2016'!AZ$5","v":2.496677807755809E-3},{"$f":"'Population 2016'!BA210/'Population 2016'!BA$5","v":7.9626430576549341E-4},{"$f":"'Population 2016'!BB210/'Population 2016'!BB$5","v":7.5954786187276886E-4},{"$f":"'Population 2016'!BC210/'Population 2016'!BC$5","v":5.3113796308591158E-4},208]
[null,"Male 90+",{"$f":"'Population 2016'!C211/'Population 2016'!C$5","v":2.0955467076916786E-4},{"$f":"'Population 2016'!D211/'Population 2016'!D$5","v":6.601918957777061E-4},{"$f":"'Population 2016'!E211/'Population 2016'!E$5","v":1.0735096264280256E-3},{"$f":"'Population 2016'!F211/'Population 2016'!F$5","v":9.7862477465876898E-4},{"$f":"'Population 2016'!G211/'Population 2016'!G$5","v":9.4732853353543013E-4},{"$f":"'Population 2016'!H211/'Population 2016'!H$5","v":4.5393676660841146E-4},{"$f":"'Population 2016'!I211/'Population 2016'!I$5","v":1.2875806046394773E-3},{"$f":"'Population 2016'!J211/'Population 2016'!J$5","v":6.302712654354262E-4},{"$f":"'Population 2016'!K211/'Population 2016'!K$5","v":3.7801823938005011E-4},{"$f":"'Population 2016'!L211/'Population 2016'!L$5","v":6.8304925897097837E-4},{"$f":"'Population 2016'!M211/'Population 2016'!M$5","v":6.8304925897097837E-4},{"$f":"'Population 2016'!N211/'Population 2016'!N$5","v":6.6708996069795288E-4},{"$f":"'Population 2016'!O211/'Population 2016'!O$5","v":3.2692364846791691E-4},{"$f":"'Population 2016'!P211/'Population 2016'!P$5","v":6.9874901386227887E-4},{"$f":"'Population 2016'!Q211/'Population 2016'!Q$5","v":7.2854608053959415E-4},{"$f":"'Population 2016'!R211/'Population 2016'!R$5","v":6.5204662798743808E-4},{"$f":"'Population 2016'!S211/'Population 2016'!S$5","v":5.2606399974579462E-4},{"$f":"'Population 2016'!T211/'Population 2016'!T$5","v":4.909191588763302E-4},{"$f":"'Population 2016'!U211/'Population 2016'!U$5","v":8.8522993847651925E-5},{"$f":"'Population 2016'!V211/'Population 2016'!V$5","v":5.342654994237565E-4},{"$f":"'Population 2016'!W211/'Population 2016'!W$5","v":5.1967917165101089E-4},{"$f":"'Population 2016'!X211/'Population 2016'!X$5","v":5.1967917165101089E-4},{"$f":"'Population 2016'!Y211/'Population 2016'!Y$5","v":5.8027694313285958E-4},{"$f":"'Population 2016'!Z211/'Population 2016'!Z$5","v":2.0132292390574215E-4},{"$f":"'Population 2016'!AA211/'Population 2016'!AA$5","v":3.308624947430733E-4},{"$f":"'Population 2016'!AB211/'Population 2016'!AB$5","v":7.5330337860659343E-4},{"$f":"'Population 2016'!AC211/'Population 2016'!AC$5","v":3.5683182981293738E-4},{"$f":"'Population 2016'!AD211/'Population 2016'!AD$5","v":1.0346495961889165E-3},{"$f":"'Population 2016'!AE211/'Population 2016'!AE$5","v":1.0677727697409624E-3},{"$f":"'Population 2016'!AF211/'Population 2016'!AF$5","v":4.3734636323877605E-4},{"$f":"'Population 2016'!AG211/'Population 2016'!AG$5","v":1.0677727697409624E-3},{"$f":"'Population 2016'!AH211/'Population 2016'!AH$5","v":2.8422020564167818E-4},{"$f":"'Population 2016'!AI211/'Population 2016'!AI$5","v":4.2928077697086361E-4},{"$f":"'Population 2016'!AJ211/'Population 2016'!AJ$5","v":2.509550232830494E-4},{"$f":"'Population 2016'!AK211/'Population 2016'!AK$5","v":1.2320380171731012E-3},{"$f":"'Population 2016'!AL211/'Population 2016'!AL$5","v":4.4341178765896312E-4},{"$f":"'Population 2016'!AM211/'Population 2016'!AM$5","v":1.9558768666852596E-4},{"$f":"'Population 2016'!AN211/'Population 2016'!AN$5","v":1.7999345478346242E-3},{"$f":"'Population 2016'!AO211/'Population 2016'!AO$5","v":1.7999345478346242E-3},{"$f":"'Population 2016'!AP211/'Population 2016'!AP$5","v":1.5376567379484171E-3},{"$f":"'Population 2016'!AQ211/'Population 2016'!AQ$5","v":5.2063352879925466E-4},{"$f":"'Population 2016'!AR211/'Population 2016'!AR$5","v":5.6674604230144341E-4},{"$f":"'Population 2016'!AS211/'Population 2016'!AS$5","v":1.2875806046394773E-3},{"$f":"'Population 2016'!AT211/'Population 2016'!AT$5","v":1.3180787683871988E-3},{"$f":"'Population 2016'!AU211/'Population 2016'!AU$5","v":1.3180787683871988E-3},{"$f":"'Population 2016'!AV211/'Population 2016'!AV$5","v":6.0183718720304086E-4},{"$f":"'Population 2016'!AW211/'Population 2016'!AW$5","v":3.7753981328940141E-4},{"$f":"'Population 2016'!AX211/'Population 2016'!AX$5","v":7.6670457594847749E-4},{"$f":"'Population 2016'!AY211/'Population 2016'!AY$5","v":8.1239864141244148E-4},{"$f":"'Population 2016'!AZ211/'Population 2016'!AZ$5","v":1.0700047747524894E-3},{"$f":"'Population 2016'!BA211/'Population 2016'!BA$5","v":3.3740012956164973E-4},{"$f":"'Population 2016'!BB211/'Population 2016'!BB$5","v":1.588145529370335E-4},{"$f":"'Population 2016'!BC211/'Population 2016'!BC$5","v":8.8522993847651925E-5},209]
["SIMD Q5 (least deprived)","Female 0-4",{"$f":"'Population 2016'!C212/'Population 2016'!C$5","v":0},{"$f":"'Population 2016'!D212/'Population 2016'!D$5","v":0},{"$f":"'Population 2016'!E212/'Population 2016'!E$5","v":0},{"$f":"'Population 2016'!F212/'Population 2016'!F$5","v":0},{"$f":"'Population 2016'!G212/'Population 2016'!G$5","v":0},{"$f":"'Population 2016'!H212/'Population 2016'!H$5","v":0},{"$f":"'Population 2016'!I212/'Population 2016'!I$5","v":0},{"$f":"'Population 2016'!J212/'Population 2016'!J$5","v":0},{"$f":"'Population 2016'!K212/'Population 2016'!K$5","v":0},{"$f":"'Population 2016'!L212/'Population 2016'!L$5","v":0},{"$f":"'Population 2016'!M212/'Population 2016'!M$5","v":0},{"$f":"'Population 2016'!N212/'Population 2016'!N$5","v":0},{"$f":"'Population 2016'!O212/'Population 2016'!O$5","v":0},{"$f":"'Population 2016'!P212/'Population 2016'!P$5","v":0},{"$f":"'Population 2016'!Q212/'Population 2016'!Q$5","v":0},{"$f":"'Population 2016'!R212/'Population 2016'!R$5","v":0},{"$f":"'Population 2016'!S212/'Population 2016'!S$5","v":0},{"$f":"'Population 2016'!T212/'Population 2016'!T$5","v":0},{"$f":"'Population 2016'!U212/'Population 2016'!U$5","v":0},{"$f":"'Population 2016'!V212/'Population 2016'!V$5","v":0},{"$f":"'Population 2016'!W212/'Population 2016'!W$5","v":0},{"$f":"'Population 2016'!X212/'Population 2016'!X$5","v":0},{"$f":"'Population 2016'!Y212/'Population 2016'!Y$5","v":0},{"$f":"'Population 2016'!Z212/'Population 2016'!Z$5","v":0},{"$f":"'Population 2016'!AA212/'Population 2016'!AA$5","v":0},{"$f":"'Population 2016'!AB212/'Population 2016'!AB$5","v":0},{"$f":"'Population 2016'!AC212/'Population 2016'!AC$5","v":0},{"$f":"'Population 2016'!AD212/'Population 2016'!AD$5","v":0},{"$f":"'Population 2016'!AE212/'Population 2016'!AE$5","v":0},{"$f":"'Population 2016'!AF212/'Population 2016'!AF$5","v":0},{"$f":"'Population 2016'!AG212/'Population 2016'!AG$5","v":0},{"$f":"'Population 2016'!AH212/'Population 2016'!AH$5","v":0},{"$f":"'Population 2016'!AI212/'Population 2016'!AI$5","v":0},{"$f":"'Population 2016'!AJ212/'Population 2016'!AJ$5","v":0},{"$f":"'Population 2016'!AK212/'Population 2016'!AK$5","v":0},{"$f":"'Population 2016'!AL212/'Population 2016'!AL$5","v":0},{"$f":"'Population 2016'!AM212/'Population 2016'!AM$5","v":0},{"$f":"'Population 2016'!AN212/'Population 2016'!AN$5","v":0},{"$f":"'Population 2016'!AO212/'Population 2016'!AO$5","v":0},{"$f":"'Population 2016'!AP212/'Population 2016'!AP$5","v":0},{"$f":"'Population 2016'!AQ212/'Population 2016'!AQ$5","v":0},{"$f":"'Population 2016'!AR212/'Population 2016'!AR$5","v":0},{"$f":"'Population 2016'!AS212/'Population 2016'!AS$5","v":0},{"$f":"'Population 2016'!AT212/'Population 2016'!AT$5","v":0},{"$f":"'Population 2016'!AU212/'Population 2016'!AU$5","v":0},{"$f":"'Population 2016'!AV212/'Population 2016'!AV$5","v":0},{"$f":"'Population 2016'!AW212/'Population 2016'!AW$5","v":0},{"$f":"'Population 2016'!AX212/'Population 2016'!AX$5","v":0},{"$f":"'Population 2016'!AY212/'Population 2016'!AY$5","v":0},{"$f":"'Population 2016'!AZ212/'Population 2016'!AZ$5","v":0},{"$f":"'Population 2016'!BA212/'Population 2016'!BA$5","v":0},{"$f":"'Population 2016'!BB212/'Population 2016'!BB$5","v":0},{"$f":"'Population 2016'!BC212/'Population 2016'!BC$5","v":0},210]
[null,"Female 5-9",{"$f":"'Population 2016'!C213/'Population 2016'!C$5","v":0},{"$f":"'Population 2016'!D213/'Population 2016'!D$5","v":0},{"$f":"'Population 2016'!E213/'Population 2016'!E$5","v":0},{"$f":"'Population 2016'!F213/'Population 2016'!F$5","v":0},{"$f":"'Population 2016'!G213/'Population 2016'!G$5","v":0},{"$f":"'Population 2016'!H213/'Population 2016'!H$5","v":0},{"$f":"'Population 2016'!I213/'Population 2016'!I$5","v":0},{"$f":"'Population 2016'!J213/'Population 2016'!J$5","v":0},{"$f":"'Population 2016'!K213/'Population 2016'!K$5","v":0},{"$f":"'Population 2016'!L213/'Population 2016'!L$5","v":0},{"$f":"'Population 2016'!M213/'Population 2016'!M$5","v":0},{"$f":"'Population 2016'!N213/'Population 2016'!N$5","v":0},{"$f":"'Population 2016'!O213/'Population 2016'!O$5","v":0},{"$f":"'Population 2016'!P213/'Population 2016'!P$5","v":0},{"$f":"'Population 2016'!Q213/'Population 2016'!Q$5","v":0},{"$f":"'Population 2016'!R213/'Population 2016'!R$5","v":0},{"$f":"'Population 2016'!S213/'Population 2016'!S$5","v":0},{"$f":"'Population 2016'!T213/'Population 2016'!T$5","v":0},{"$f":"'Population 2016'!U213/'Population 2016'!U$5","v":0},{"$f":"'Population 2016'!V213/'Population 2016'!V$5","v":0},{"$f":"'Population 2016'!W213/'Population 2016'!W$5","v":0},{"$f":"'Population 2016'!X213/'Population 2016'!X$5","v":0},{"$f":"'Population 2016'!Y213/'Population 2016'!Y$5","v":0},{"$f":"'Population 2016'!Z213/'Population 2016'!Z$5","v":0},{"$f":"'Population 2016'!AA213/'Population 2016'!AA$5","v":0},{"$f":"'Population 2016'!AB213/'Population 2016'!AB$5","v":0},{"$f":"'Population 2016'!AC213/'Population 2016'!AC$5","v":0},{"$f":"'Population 2016'!AD213/'Population 2016'!AD$5","v":0},{"$f":"'Population 2016'!AE213/'Population 2016'!AE$5","v":0},{"$f":"'Population 2016'!AF213/'Population 2016'!AF$5","v":0},{"$f":"'Population 2016'!AG213/'Population 2016'!AG$5","v":0},{"$f":"'Population 2016'!AH213/'Population 2016'!AH$5","v":0},{"$f":"'Population 2016'!AI213/'Population 2016'!AI$5","v":0},{"$f":"'Population 2016'!AJ213/'Population 2016'!AJ$5","v":0},{"$f":"'Population 2016'!AK213/'Population 2016'!AK$5","v":0},{"$f":"'Population 2016'!AL213/'Population 2016'!AL$5","v":0},{"$f":"'Population 2016'!AM213/'Population 2016'!AM$5","v":0},{"$f":"'Population 2016'!AN213/'Population 2016'!AN$5","v":0},{"$f":"'Population 2016'!AO213/'Population 2016'!AO$5","v":0},{"$f":"'Population 2016'!AP213/'Population 2016'!AP$5","v":0},{"$f":"'Population 2016'!AQ213/'Population 2016'!AQ$5","v":0},{"$f":"'Population 2016'!AR213/'Population 2016'!AR$5","v":0},{"$f":"'Population 2016'!AS213/'Population 2016'!AS$5","v":0},{"$f":"'Population 2016'!AT213/'Population 2016'!AT$5","v":0},{"$f":"'Population 2016'!AU213/'Population 2016'!AU$5","v":0},{"$f":"'Population 2016'!AV213/'Population 2016'!AV$5","v":0},{"$f":"'Population 2016'!AW213/'Population 2016'!AW$5","v":0},{"$f":"'Population 2016'!AX213/'Population 2016'!AX$5","v":0},{"$f":"'Population 2016'!AY213/'Population 2016'!AY$5","v":0},{"$f":"'Population 2016'!AZ213/'Population 2016'!AZ$5","v":0},{"$f":"'Population 2016'!BA213/'Population 2016'!BA$5","v":0},{"$f":"'Population 2016'!BB213/'Population 2016'!BB$5","v":0},{"$f":"'Population 2016'!BC213/'Population 2016'!BC$5","v":0},211]
[null,"Female 10-15",{"$f":"'Population 2016'!C214/'Population 2016'!C$5","v":0},{"$f":"'Population 2016'!D214/'Population 2016'!D$5","v":0},{"$f":"'Population 2016'!E214/'Population 2016'!E$5","v":0},{"$f":"'Population 2016'!F214/'Population 2016'!F$5","v":0},{"$f":"'Population 2016'!G214/'Population 2016'!G$5","v":0},{"$f":"'Population 2016'!H214/'Population 2016'!H$5","v":0},{"$f":"'Population 2016'!I214/'Population 2016'!I$5","v":0},{"$f":"'Population 2016'!J214/'Population 2016'!J$5","v":0},{"$f":"'Population 2016'!K214/'Population 2016'!K$5","v":0},{"$f":"'Population 2016'!L214/'Population 2016'!L$5","v":0},{"$f":"'Population 2016'!M214/'Population 2016'!M$5","v":0},{"$f":"'Population 2016'!N214/'Population 2016'!N$5","v":0},{"$f":"'Population 2016'!O214/'Population 2016'!O$5","v":0},{"$f":"'Population 2016'!P214/'Population 2016'!P$5","v":0},{"$f":"'Population 2016'!Q214/'Population 2016'!Q$5","v":0},{"$f":"'Population 2016'!R214/'Population 2016'!R$5","v":0},{"$f":"'Population 2016'!S214/'Population 2016'!S$5","v":0},{"$f":"'Population 2016'!T214/'Population 2016'!T$5","v":0},{"$f":"'Population 2016'!U214/'Population 2016'!U$5","v":0},{"$f":"'Population 2016'!V214/'Population 2016'!V$5","v":0},{"$f":"'Population 2016'!W214/'Population 2016'!W$5","v":0},{"$f":"'Population 2016'!X214/'Population 2016'!X$5","v":0},{"$f":"'Population 2016'!Y214/'Population 2016'!Y$5","v":0},{"$f":"'Population 2016'!Z214/'Population 2016'!Z$5","v":0},{"$f":"'Population 2016'!AA214/'Population 2016'!AA$5","v":0},{"$f":"'Population 2016'!AB214/'Population 2016'!AB$5","v":0},{"$f":"'Population 2016'!AC214/'Population 2016'!AC$5","v":0},{"$f":"'Population 2016'!AD214/'Population 2016'!AD$5","v":0},{"$f":"'Population 2016'!AE214/'Population 2016'!AE$5","v":0},{"$f":"'Population 2016'!AF214/'Population 2016'!AF$5","v":0},{"$f":"'Population 2016'!AG214/'Population 2016'!AG$5","v":0},{"$f":"'Population 2016'!AH214/'Population 2016'!AH$5","v":0},{"$f":"'Population 2016'!AI214/'Population 2016'!AI$5","v":0},{"$f":"'Population 2016'!AJ214/'Population 2016'!AJ$5","v":0},{"$f":"'Population 2016'!AK214/'Population 2016'!AK$5","v":0},{"$f":"'Population 2016'!AL214/'Population 2016'!AL$5","v":0},{"$f":"'Population 2016'!AM214/'Population 2016'!AM$5","v":0},{"$f":"'Population 2016'!AN214/'Population 2016'!AN$5","v":0},{"$f":"'Population 2016'!AO214/'Population 2016'!AO$5","v":0},{"$f":"'Population 2016'!AP214/'Population 2016'!AP$5","v":0},{"$f":"'Population 2016'!AQ214/'Population 2016'!AQ$5","v":0},{"$f":"'Population 2016'!AR214/'Population 2016'!AR$5","v":0},{"$f":"'Population 2016'!AS214/'Population 2016'!AS$5","v":0},{"$f":"'Population 2016'!AT214/'Population 2016'!AT$5","v":0},{"$f":"'Population 2016'!AU214/'Population 2016'!AU$5","v":0},{"$f":"'Population 2016'!AV214/'Population 2016'!AV$5","v":0},{"$f":"'Population 2016'!AW214/'Population 2016'!AW$5","v":0},{"$f":"'Population 2016'!AX214/'Population 2016'!AX$5","v":0},{"$f":"'Population 2016'!AY214/'Population 2016'!AY$5","v":0},{"$f":"'Population 2016'!AZ214/'Population 2016'!AZ$5","v":0},{"$f":"'Population 2016'!BA214/'Population 2016'!BA$5","v":0},{"$f":"'Population 2016'!BB214/'Population 2016'!BB$5","v":0},{"$f":"'Population 2016'!BC214/'Population 2016'!BC$5","v":0},212]
[null,"Female 16-19",{"$f":"'Population 2016'!C215/'Population 2016'!C$5","v":1.041640046408693E-2},{"$f":"'Population 2016'!D215/'Population 2016'!D$5","v":9.5678921784376428E-3},{"$f":"'Population 2016'!E215/'Population 2016'!E$5","v":8.7896530548146196E-3},{"$f":"'Population 2016'!F215/'Population 2016'!F$5","v":4.7283028586144731E-3},{"$f":"'Population 2016'!G215/'Population 2016'!G$5","v":1.8134574784821091E-3},{"$f":"'Population 2016'!H215/'Population 2016'!H$5","v":3.4434346152723782E-3},{"$f":"'Population 2016'!I215/'Population 2016'!I$5","v":2.1983083493844736E-3},{"$f":"'Population 2016'!J215/'Population 2016'!J$5","v":1.0258494149258187E-2},{"$f":"'Population 2016'!K215/'Population 2016'!K$5","v":3.8510608136842601E-3},{"$f":"'Population 2016'!L215/'Population 2016'!L$5","v":2.0570902101567836E-3},{"$f":"'Population 2016'!M215/'Population 2016'!M$5","v":2.0570902101567836E-3},{"$f":"'Population 2016'!N215/'Population 2016'!N$5","v":5.0795283754350154E-3},{"$f":"'Population 2016'!O215/'Population 2016'!O$5","v":3.1503551579635629E-3},{"$f":"'Population 2016'!P215/'Population 2016'!P$5","v":1.4887862053420488E-2},{"$f":"'Population 2016'!Q215/'Population 2016'!Q$5","v":4.1950153347199209E-3},{"$f":"'Population 2016'!R215/'Population 2016'!R$5","v":1.741895991909299E-2},{"$f":"'Population 2016'!S215/'Population 2016'!S$5","v":7.5634939829223383E-3},{"$f":"'Population 2016'!T215/'Population 2016'!T$5","v":1.0718789407313998E-2},{"$f":"'Population 2016'!U215/'Population 2016'!U$5","v":0},{"$f":"'Population 2016'!V215/'Population 2016'!V$5","v":5.1671106158554733E-3},{"$f":"'Population 2016'!W215/'Population 2016'!W$5","v":7.5108348204655541E-3},{"$f":"'Population 2016'!X215/'Population 2016'!X$5","v":7.5108348204655541E-3},{"$f":"'Population 2016'!Y215/'Population 2016'!Y$5","v":7.6071922544951589E-3},{"$f":"'Population 2016'!Z215/'Population 2016'!Z$5","v":2.8843380444188061E-3},{"$f":"'Population 2016'!AA215/'Population 2016'!AA$5","v":4.6101503032574013E-3},{"$f":"'Population 2016'!AB215/'Population 2016'!AB$5","v":8.8615497988802795E-3},{"$f":"'Population 2016'!AC215/'Population 2016'!AC$5","v":5.34213449560528E-3},{"$f":"'Population 2016'!AD215/'Population 2016'!AD$5","v":2.1400126539878671E-3},{"$f":"'Population 2016'!AE215/'Population 2016'!AE$5","v":2.2638836127680984E-3},{"$f":"'Population 2016'!AF215/'Population 2016'!AF$5","v":2.940777270053839E-3},{"$f":"'Population 2016'!AG215/'Population 2016'!AG$5","v":2.2638836127680984E-3},{"$f":"'Population 2016'!AH215/'Population 2016'!AH$5","v":3.2954682667211575E-3},{"$f":"'Population 2016'!AI215/'Population 2016'!AI$5","v":8.2862127045235812E-3},{"$f":"'Population 2016'!AJ215/'Population 2016'!AJ$5","v":3.9455706438390539E-3},{"$f":"'Population 2016'!AK215/'Population 2016'!AK$5","v":5.2298756647347977E-3},{"$f":"'Population 2016'!AL215/'Population 2016'!AL$5","v":2.2702683528138911E-3},{"$f":"'Population 2016'!AM215/'Population 2016'!AM$5","v":2.8505094334838874E-3},{"$f":"'Population 2016'!AN215/'Population 2016'!AN$5","v":1.4181302498090978E-3},{"$f":"'Population 2016'!AO215/'Population 2016'!AO$5","v":1.4181302498090978E-3},{"$f":"'Population 2016'!AP215/'Population 2016'!AP$5","v":3.9947370924020738E-3},{"$f":"'Population 2016'!AQ215/'Population 2016'!AQ$5","v":5.1241299939716115E-3},{"$f":"'Population 2016'!AR215/'Population 2016'!AR$5","v":5.6291426874500285E-3},{"$f":"'Population 2016'!AS215/'Population 2016'!AS$5","v":2.1983083493844736E-3},{"$f":"'Population 2016'!AT215/'Population 2016'!AT$5","v":0},{"$f":"'Population 2016'!AU215/'Population 2016'!AU$5","v":0},{"$f":"'Population 2016'!AV215/'Population 2016'!AV$5","v":5.1525710062295428E-3},{"$f":"'Population 2016'!AW215/'Population 2016'!AW$5","v":3.763957532491305E-3},{"$f":"'Population 2016'!AX215/'Population 2016'!AX$5","v":1.3724011909477746E-2},{"$f":"'Population 2016'!AY215/'Population 2016'!AY$5","v":5.9560600960802913E-3},{"$f":"'Population 2016'!AZ215/'Population 2016'!AZ$5","v":4.5877892895973679E-3},{"$f":"'Population 2016'!BA215/'Population 2016'!BA$5","v":1.3765925286115309E-3},{"$f":"'Population 2016'!BB215/'Population 2016'!BB$5","v":5.6206541778584893E-3},{"$f":"'Population 2016'!BC215/'Population 2016'!BC$5","v":0},213]
[null,"Female 20-24",{"$f":"'Population 2016'!C216/'Population 2016'!C$5","v":1.8359033595191487E-2},{"$f":"'Population 2016'!D216/'Population 2016'!D$5","v":1.3807791242432244E-2},{"$f":"'Population 2016'!E216/'Population 2016'!E$5","v":9.6334597480768232E-3},{"$f":"'Population 2016'!F216/'Population 2016'!F$5","v":4.3677568890033479E-3},{"$f":"'Population 2016'!G216/'Population 2016'!G$5","v":2.4901207167217021E-3},{"$f":"'Population 2016'!H216/'Population 2016'!H$5","v":3.3558896674264703E-3},{"$f":"'Population 2016'!I216/'Population 2016'!I$5","v":2.1250314044049911E-3},{"$f":"'Population 2016'!J216/'Population 2016'!J$5","v":1.0689732383503479E-2},{"$f":"'Population 2016'!K216/'Population 2016'!K$5","v":3.4494164343429569E-3},{"$f":"'Population 2016'!L216/'Population 2016'!L$5","v":2.4462694391053645E-3},{"$f":"'Population 2016'!M216/'Population 2016'!M$5","v":2.4462694391053645E-3},{"$f":"'Population 2016'!N216/'Population 2016'!N$5","v":6.236889271103753E-3},{"$f":"'Population 2016'!O216/'Population 2016'!O$5","v":3.1503551579635629E-3},{"$f":"'Population 2016'!P216/'Population 2016'!P$5","v":1.5665502084976895E-2},{"$f":"'Population 2016'!Q216/'Population 2016'!Q$5","v":4.2067660779544309E-3},{"$f":"'Population 2016'!R216/'Population 2016'!R$5","v":1.8283919731729388E-2},{"$f":"'Population 2016'!S216/'Population 2016'!S$5","v":1.4224029120643421E-2},{"$f":"'Population 2016'!T216/'Population 2016'!T$5","v":2.3913114288772144E-2},{"$f":"'Population 2016'!U216/'Population 2016'!U$5","v":0},{"$f":"'Population 2016'!V216/'Population 2016'!V$5","v":6.1135237862632707E-3},{"$f":"'Population 2016'!W216/'Population 2016'!W$5","v":1.3619516404212342E-2},{"$f":"'Population 2016'!X216/'Population 2016'!X$5","v":1.3619516404212342E-2},{"$f":"'Population 2016'!Y216/'Population 2016'!Y$5","v":8.30670418594299E-3},{"$f":"'Population 2016'!Z216/'Population 2016'!Z$5","v":7.4799209420364204E-3},{"$f":"'Population 2016'!AA216/'Population 2016'!AA$5","v":6.5694143534528295E-3},{"$f":"'Population 2016'!AB216/'Population 2016'!AB$5","v":1.2449975947514406E-2},{"$f":"'Population 2016'!AC216/'Population 2016'!AC$5","v":8.144040081005997E-3},{"$f":"'Population 2016'!AD216/'Population 2016'!AD$5","v":2.5159105288622575E-3},{"$f":"'Population 2016'!AE216/'Population 2016'!AE$5","v":2.5256932822718919E-3},{"$f":"'Population 2016'!AF216/'Population 2016'!AF$5","v":3.6948227239137973E-3},{"$f":"'Population 2016'!AG216/'Population 2016'!AG$5","v":2.5256932822718919E-3},{"$f":"'Population 2016'!AH216/'Population 2016'!AH$5","v":3.7413038834139861E-3},{"$f":"'Population 2016'!AI216/'Population 2016'!AI$5","v":1.6057015049435647E-2},{"$f":"'Population 2016'!AJ216/'Population 2016'!AJ$5","v":4.8657390625435684E-3},{"$f":"'Population 2016'!AK216/'Population 2016'!AK$5","v":5.4687401782683581E-3},{"$f":"'Population 2016'!AL216/'Population 2016'!AL$5","v":2.2081907025416365E-3},{"$f":"'Population 2016'!AM216/'Population 2016'!AM$5","v":3.1112930157085887E-3},{"$f":"'Population 2016'!AN216/'Population 2016'!AN$5","v":2.3999127304461655E-3},{"$f":"'Population 2016'!AO216/'Population 2016'!AO$5","v":2.3999127304461655E-3},{"$f":"'Population 2016'!AP216/'Population 2016'!AP$5","v":4.5574877542285562E-3},{"$f":"'Population 2016'!AQ216/'Population 2016'!AQ$5","v":6.0489395517071302E-3},{"$f":"'Population 2016'!AR216/'Population 2016'!AR$5","v":8.4684423372660255E-3},{"$f":"'Population 2016'!AS216/'Population 2016'!AS$5","v":2.1250314044049911E-3},{"$f":"'Population 2016'!AT216/'Population 2016'!AT$5","v":0},{"$f":"'Population 2016'!AU216/'Population 2016'!AU$5","v":0},{"$f":"'Population 2016'!AV216/'Population 2016'!AV$5","v":4.9414000633512829E-3},{"$f":"'Population 2016'!AW216/'Population 2016'!AW$5","v":4.4046311550430166E-3},{"$f":"'Population 2016'!AX216/'Population 2016'!AX$5","v":1.4605722171818495E-2},{"$f":"'Population 2016'!AY216/'Population 2016'!AY$5","v":9.0909090909090905E-3},{"$f":"'Population 2016'!AZ216/'Population 2016'!AZ$5","v":5.1055335354453467E-3},{"$f":"'Population 2016'!BA216/'Population 2016'!BA$5","v":1.5925286115309868E-3},{"$f":"'Population 2016'!BB216/'Population 2016'!BB$5","v":5.2477852274845846E-3},{"$f":"'Population 2016'!BC216/'Population 2016'!BC$5","v":0},214]
[null,"Female 25-29",{"$f":"'Population 2016'!C217/'Population 2016'!C$5","v":2.0551691003971317E-2},{"$f":"'Population 2016'!D217/'Population 2016'!D$5","v":1.4925227154915252E-2},{"$f":"'Population 2016'!E217/'Population 2016'!E$5","v":9.7647185670287229E-3},{"$f":"'Population 2016'!F217/'Population 2016'!F$5","v":4.1411279938192123E-3},{"$f":"'Population 2016'!G217/'Population 2016'!G$5","v":1.9758566556596115E-3},{"$f":"'Population 2016'!H217/'Population 2016'!H$5","v":2.8176503584479255E-3},{"$f":"'Population 2016'!I217/'Population 2016'!I$5","v":1.6539653295368896E-3},{"$f":"'Population 2016'!J217/'Population 2016'!J$5","v":6.6095552441057196E-3},{"$f":"'Population 2016'!K217/'Population 2016'!K$5","v":2.5043708358928316E-3},{"$f":"'Population 2016'!L217/'Population 2016'!L$5","v":2.8116213683223993E-3},{"$f":"'Population 2016'!M217/'Population 2016'!M$5","v":2.8116213683223993E-3},{"$f":"'Population 2016'!N217/'Population 2016'!N$5","v":5.1357889745300232E-3},{"$f":"'Population 2016'!O217/'Population 2016'!O$5","v":3.3782110341684748E-3},{"$f":"'Population 2016'!P217/'Population 2016'!P$5","v":1.1912543671813366E-2},{"$f":"'Population 2016'!Q217/'Population 2016'!Q$5","v":4.2772705373614883E-3},{"$f":"'Population 2016'!R217/'Population 2016'!R$5","v":1.4983765369670516E-2},{"$f":"'Population 2016'!S217/'Population 2016'!S$5","v":1.0921123941031403E-2},{"$f":"'Population 2016'!T217/'Population 2016'!T$5","v":2.053251932267116E-2},{"$f":"'Population 2016'!U217/'Population 2016'!U$5","v":0},{"$f":"'Population 2016'!V217/'Population 2016'!V$5","v":5.8769204936613218E-3},{"$f":"'Population 2016'!W217/'Population 2016'!W$5","v":6.3145921989292645E-3},{"$f":"'Population 2016'!X217/'Population 2016'!X$5","v":6.3145921989292645E-3},{"$f":"'Population 2016'!Y217/'Population 2016'!Y$5","v":6.2280408896519925E-3},{"$f":"'Population 2016'!Z217/'Population 2016'!Z$5","v":6.6339775021632538E-3},{"$f":"'Population 2016'!AA217/'Population 2016'!AA$5","v":5.4884639941215436E-3},{"$f":"'Population 2016'!AB217/'Population 2016'!AB$5","v":1.3448921732188366E-2},{"$f":"'Population 2016'!AC217/'Population 2016'!AC$5","v":6.8066964405766404E-3},{"$f":"'Population 2016'!AD217/'Population 2016'!AD$5","v":2.7913208530276528E-3},{"$f":"'Population 2016'!AE217/'Population 2016'!AE$5","v":3.1006478505939488E-3},{"$f":"'Population 2016'!AF217/'Population 2016'!AF$5","v":2.5788354522010585E-3},{"$f":"'Population 2016'!AG217/'Population 2016'!AG$5","v":3.1006478505939488E-3},{"$f":"'Population 2016'!AH217/'Population 2016'!AH$5","v":3.1208493168497996E-3},{"$f":"'Population 2016'!AI217/'Population 2016'!AI$5","v":1.4058261877679588E-2},{"$f":"'Population 2016'!AJ217/'Population 2016'!AJ$5","v":4.8657390625435684E-3},{"$f":"'Population 2016'!AK217/'Population 2016'!AK$5","v":5.8584664898231149E-3},{"$f":"'Population 2016'!AL217/'Population 2016'!AL$5","v":1.6140189070786258E-3},{"$f":"'Population 2016'!AM217/'Population 2016'!AM$5","v":2.6621657352104921E-3},{"$f":"'Population 2016'!AN217/'Population 2016'!AN$5","v":2.945347441911203E-3},{"$f":"'Population 2016'!AO217/'Population 2016'!AO$5","v":2.945347441911203E-3},{"$f":"'Population 2016'!AP217/'Population 2016'!AP$5","v":4.2166669308688551E-3},{"$f":"'Population 2016'!AQ217/'Population 2016'!AQ$5","v":5.0145229352770316E-3},{"$f":"'Population 2016'!AR217/'Population 2016'!AR$5","v":7.2115314997405755E-3},{"$f":"'Population 2016'!AS217/'Population 2016'!AS$5","v":1.6539653295368896E-3},{"$f":"'Population 2016'!AT217/'Population 2016'!AT$5","v":0},{"$f":"'Population 2016'!AU217/'Population 2016'!AU$5","v":0},{"$f":"'Population 2016'!AV217/'Population 2016'!AV$5","v":3.6532573117938972E-3},{"$f":"'Population 2016'!AW217/'Population 2016'!AW$5","v":3.6037891268533772E-3},{"$f":"'Population 2016'!AX217/'Population 2016'!AX$5","v":8.8298810330066316E-3},{"$f":"'Population 2016'!AY217/'Population 2016'!AY$5","v":5.3624430096998257E-3},{"$f":"'Population 2016'!AZ217/'Population 2016'!AZ$5","v":4.5245094373270595E-3},{"$f":"'Population 2016'!BA217/'Population 2016'!BA$5","v":9.1772835240768738E-4},{"$f":"'Population 2016'!BB217/'Population 2016'!BB$5","v":5.144210519047389E-3},{"$f":"'Population 2016'!BC217/'Population 2016'!BC$5","v":0},215]
[null,"Female 30-34",{"$f":"'Population 2016'!C218/'Population 2016'!C$5","v":1.7582147986486281E-2},{"$f":"'Population 2016'!D218/'Population 2016'!D$5","v":1.5653883395440275E-2},{"$f":"'Population 2016'!E218/'Population 2016'!E$5","v":1.3885307919125817E-2},{"$f":"'Population 2016'!F218/'Population 2016'!F$5","v":5.0682462013906769E-3},{"$f":"'Population 2016'!G218/'Population 2016'!G$5","v":1.5157256536566881E-3},{"$f":"'Population 2016'!H218/'Population 2016'!H$5","v":3.3104959907656294E-3},{"$f":"'Population 2016'!I218/'Population 2016'!I$5","v":2.9206096641822294E-3},{"$f":"'Population 2016'!J218/'Population 2016'!J$5","v":5.6309761740875579E-3},{"$f":"'Population 2016'!K218/'Population 2016'!K$5","v":3.3312857345366913E-3},{"$f":"'Population 2016'!L218/'Population 2016'!L$5","v":2.8116213683223993E-3},{"$f":"'Population 2016'!M218/'Population 2016'!M$5","v":2.8116213683223993E-3},{"$f":"'Population 2016'!N218/'Population 2016'!N$5","v":4.9750444056871432E-3},{"$f":"'Population 2016'!O218/'Population 2016'!O$5","v":3.9032702271624017E-3},{"$f":"'Population 2016'!P218/'Population 2016'!P$5","v":1.2712723994139525E-2},{"$f":"'Population 2016'!Q218/'Population 2016'!Q$5","v":4.9588136449630442E-3},{"$f":"'Population 2016'!R218/'Population 2016'!R$5","v":1.4824080481183798E-2},{"$f":"'Population 2016'!S218/'Population 2016'!S$5","v":9.9290166663430247E-3},{"$f":"'Population 2016'!T218/'Population 2016'!T$5","v":1.676570359650633E-2},{"$f":"'Population 2016'!U218/'Population 2016'!U$5","v":0},{"$f":"'Population 2016'!V218/'Population 2016'!V$5","v":7.8994970271941134E-3},{"$f":"'Population 2016'!W218/'Population 2016'!W$5","v":6.6610449800299388E-3},{"$f":"'Population 2016'!X218/'Population 2016'!X$5","v":6.6610449800299388E-3},{"$f":"'Population 2016'!Y218/'Population 2016'!Y$5","v":6.812292332395351E-3},{"$f":"'Population 2016'!Z218/'Population 2016'!Z$5","v":4.9614485958693957E-3},{"$f":"'Population 2016'!AA218/'Population 2016'!AA$5","v":5.1795261225240953E-3},{"$f":"'Population 2016'!AB218/'Population 2016'!AB$5","v":1.4149002589480365E-2},{"$f":"'Population 2016'!AC218/'Population 2016'!AC$5","v":6.0154606440349099E-3},{"$f":"'Population 2016'!AD218/'Population 2016'!AD$5","v":2.8657560757750569E-3},{"$f":"'Population 2016'!AE218/'Population 2016'!AE$5","v":3.377858088892083E-3},{"$f":"'Population 2016'!AF218/'Population 2016'!AF$5","v":2.6994827248186522E-3},{"$f":"'Population 2016'!AG218/'Population 2016'!AG$5","v":3.377858088892083E-3},{"$f":"'Population 2016'!AH218/'Population 2016'!AH$5","v":3.6781438377158355E-3},{"$f":"'Population 2016'!AI218/'Population 2016'!AI$5","v":1.2211260827718961E-2},{"$f":"'Population 2016'!AJ218/'Population 2016'!AJ$5","v":5.939268884365502E-3},{"$f":"'Population 2016'!AK218/'Population 2016'!AK$5","v":6.4116264159008339E-3},{"$f":"'Population 2016'!AL218/'Population 2016'!AL$5","v":2.3323460030861463E-3},{"$f":"'Population 2016'!AM218/'Population 2016'!AM$5","v":3.1294029866964154E-3},{"$f":"'Population 2016'!AN218/'Population 2016'!AN$5","v":2.127195374713647E-3},{"$f":"'Population 2016'!AO218/'Population 2016'!AO$5","v":2.127195374713647E-3},{"$f":"'Population 2016'!AP218/'Population 2016'!AP$5","v":5.2866857949051254E-3},{"$f":"'Population 2016'!AQ218/'Population 2016'!AQ$5","v":5.1378308763084342E-3},{"$f":"'Population 2016'!AR218/'Population 2016'!AR$5","v":7.0471216808653927E-3},{"$f":"'Population 2016'!AS218/'Population 2016'!AS$5","v":2.9206096641822294E-3},{"$f":"'Population 2016'!AT218/'Population 2016'!AT$5","v":0},{"$f":"'Population 2016'!AU218/'Population 2016'!AU$5","v":0},{"$f":"'Population 2016'!AV218/'Population 2016'!AV$5","v":3.8433111603843311E-3},{"$f":"'Population 2016'!AW218/'Population 2016'!AW$5","v":4.2559033498077983E-3},{"$f":"'Population 2016'!AX218/'Population 2016'!AX$5","v":6.8747843643380147E-3},{"$f":"'Population 2016'!AY218/'Population 2016'!AY$5","v":5.8382546433707657E-3},{"$f":"'Population 2016'!AZ218/'Population 2016'!AZ$5","v":5.1141626062094795E-3},{"$f":"'Population 2016'!BA218/'Population 2016'!BA$5","v":1.1066724249622112E-3},{"$f":"'Population 2016'!BB218/'Population 2016'!BB$5","v":6.0625729338571908E-3},{"$f":"'Population 2016'!BC218/'Population 2016'!BC$5","v":0},216]
[null,"Female 35-39",{"$f":"'Population 2016'!C219/'Population 2016'!C$5","v":1.5691044860032814E-2},{"$f":"'Population 2016'!D219/'Population 2016'!D$5","v":1.5384916326790099E-2},{"$f":"'Population 2016'!E219/'Population 2016'!E$5","v":1.5104139809393444E-2},{"$f":"'Population 2016'!F219/'Population 2016'!F$5","v":5.9232552150399178E-3},{"$f":"'Population 2016'!G219/'Population 2016'!G$5","v":2.2735884804850324E-3},{"$f":"'Population 2016'!H219/'Population 2016'!H$5","v":3.9978859516297954E-3},{"$f":"'Population 2016'!I219/'Population 2016'!I$5","v":3.255589984088435E-3},{"$f":"'Population 2016'!J219/'Population 2016'!J$5","v":6.8666395760596435E-3},{"$f":"'Population 2016'!K219/'Population 2016'!K$5","v":4.5834711524831073E-3},{"$f":"'Population 2016'!L219/'Population 2016'!L$5","v":2.7639667688593079E-3},{"$f":"'Population 2016'!M219/'Population 2016'!M$5","v":2.7639667688593079E-3},{"$f":"'Population 2016'!N219/'Population 2016'!N$5","v":4.5972946689063739E-3},{"$f":"'Population 2016'!O219/'Population 2016'!O$5","v":4.0023379994254069E-3},{"$f":"'Population 2016'!P219/'Population 2016'!P$5","v":1.8235095232728503E-2},{"$f":"'Population 2016'!Q219/'Population 2016'!Q$5","v":6.4629087789802708E-3},{"$f":"'Population 2016'!R219/'Population 2016'!R$5","v":2.2874860275722574E-2},{"$f":"'Population 2016'!S219/'Population 2016'!S$5","v":1.0281197095703045E-2},{"$f":"'Population 2016'!T219/'Population 2016'!T$5","v":1.621429202942723E-2},{"$f":"'Population 2016'!U219/'Population 2016'!U$5","v":0},{"$f":"'Population 2016'!V219/'Population 2016'!V$5","v":8.2353210554033315E-3},{"$f":"'Population 2016'!W219/'Population 2016'!W$5","v":7.4944927081494845E-3},{"$f":"'Population 2016'!X219/'Population 2016'!X$5","v":7.4944927081494845E-3},{"$f":"'Population 2016'!Y219/'Population 2016'!Y$5","v":7.5793707572216658E-3},{"$f":"'Population 2016'!Z219/'Population 2016'!Z$5","v":3.9122464347452392E-3},{"$f":"'Population 2016'!AA219/'Population 2016'!AA$5","v":6.0339220426839195E-3},{"$f":"'Population 2016'!AB219/'Population 2016'!AB$5","v":1.3712987318710786E-2},{"$f":"'Population 2016'!AC219/'Population 2016'!AC$5","v":6.8770285113803498E-3},{"$f":"'Population 2016'!AD219/'Population 2016'!AD$5","v":3.2230451449625965E-3},{"$f":"'Population 2016'!AE219/'Population 2016'!AE$5","v":3.5831990061499603E-3},{"$f":"'Population 2016'!AF219/'Population 2016'!AF$5","v":3.4987709059102084E-3},{"$f":"'Population 2016'!AG219/'Population 2016'!AG$5","v":3.5831990061499603E-3},{"$f":"'Population 2016'!AH219/'Population 2016'!AH$5","v":4.5196585642235491E-3},{"$f":"'Population 2016'!AI219/'Population 2016'!AI$5","v":1.2364380085746784E-2},{"$f":"'Population 2016'!AJ219/'Population 2016'!AJ$5","v":6.650308117000809E-3},{"$f":"'Population 2016'!AK219/'Population 2016'!AK$5","v":5.1167293162189004E-3},{"$f":"'Population 2016'!AL219/'Population 2016'!AL$5","v":2.8023624980046472E-3},{"$f":"'Population 2016'!AM219/'Population 2016'!AM$5","v":3.7523859886776463E-3},{"$f":"'Population 2016'!AN219/'Population 2016'!AN$5","v":3.218064797643722E-3},{"$f":"'Population 2016'!AO219/'Population 2016'!AO$5","v":3.218064797643722E-3},{"$f":"'Population 2016'!AP219/'Population 2016'!AP$5","v":5.4452071080956831E-3},{"$f":"'Population 2016'!AQ219/'Population 2016'!AQ$5","v":6.3983120512961034E-3},{"$f":"'Population 2016'!AR219/'Population 2016'!AR$5","v":7.5022561794588867E-3},{"$f":"'Population 2016'!AS219/'Population 2016'!AS$5","v":3.255589984088435E-3},{"$f":"'Population 2016'!AT219/'Population 2016'!AT$5","v":0},{"$f":"'Population 2016'!AU219/'Population 2016'!AU$5","v":0},{"$f":"'Population 2016'!AV219/'Population 2016'!AV$5","v":5.4165346848273682E-3},{"$f":"'Population 2016'!AW219/'Population 2016'!AW$5","v":5.3275062541948866E-3},{"$f":"'Population 2016'!AX219/'Population 2016'!AX$5","v":8.1015116858555777E-3},{"$f":"'Population 2016'!AY219/'Population 2016'!AY$5","v":6.3140662770417065E-3},{"$f":"'Population 2016'!AZ219/'Population 2016'!AZ$5","v":5.2752385938066287E-3},{"$f":"'Population 2016'!BA219/'Population 2016'!BA$5","v":1.6870006478082488E-3},{"$f":"'Population 2016'!BB219/'Population 2016'!BB$5","v":7.2364196294787434E-3},{"$f":"'Population 2016'!BC219/'Population 2016'!BC$5","v":0},217]
[null,"Female 40-44",{"$f":"'Population 2016'!C220/'Population 2016'!C$5","v":1.4459272283072583E-2},{"$f":"'Population 2016'!D220/'Population 2016'!D$5","v":1.5299335895855951E-2},{"$f":"'Population 2016'!E220/'Population 2016'!E$5","v":1.606982969168241E-2},{"$f":"'Population 2016'!F220/'Population 2016'!F$5","v":7.3036312129796553E-3},{"$f":"'Population 2016'!G220/'Population 2016'!G$5","v":2.6254533643696207E-3},{"$f":"'Population 2016'!H220/'Population 2016'!H$5","v":5.0970614079173058E-3},{"$f":"'Population 2016'!I220/'Population 2016'!I$5","v":5.0351729335901515E-3},{"$f":"'Population 2016'!J220/'Population 2016'!J$5","v":8.732574243467156E-3},{"$f":"'Population 2016'!K220/'Population 2016'!K$5","v":5.9065349903132825E-3},{"$f":"'Population 2016'!L220/'Population 2016'!L$5","v":2.986354899687068E-3},{"$f":"'Population 2016'!M220/'Population 2016'!M$5","v":2.986354899687068E-3},{"$f":"'Population 2016'!N220/'Population 2016'!N$5","v":5.4010175131207752E-3},{"$f":"'Population 2016'!O220/'Population 2016'!O$5","v":5.2307783754866706E-3},{"$f":"'Population 2016'!P220/'Population 2016'!P$5","v":2.1176603178181E-2},{"$f":"'Population 2016'!Q220/'Population 2016'!Q$5","v":7.5087249268516237E-3},{"$f":"'Population 2016'!R220/'Population 2016'!R$5","v":2.5829030712726887E-2},{"$f":"'Population 2016'!S220/'Population 2016'!S$5","v":1.0771072129023375E-2},{"$f":"'Population 2016'!T220/'Population 2016'!T$5","v":1.5453483664723154E-2},{"$f":"'Population 2016'!U220/'Population 2016'!U$5","v":0},{"$f":"'Population 2016'!V220/'Population 2016'!V$5","v":1.0028926660611658E-2},{"$f":"'Population 2016'!W220/'Population 2016'!W$5","v":8.6090247681054263E-3},{"$f":"'Population 2016'!X220/'Population 2016'!X$5","v":8.6090247681054263E-3},{"$f":"'Population 2016'!Y220/'Population 2016'!Y$5","v":9.4076405780512233E-3},{"$f":"'Population 2016'!Z220/'Population 2016'!Z$5","v":3.6431706037558342E-3},{"$f":"'Population 2016'!AA220/'Population 2016'!AA$5","v":6.5840307688832464E-3},{"$f":"'Population 2016'!AB220/'Population 2016'!AB$5","v":1.390745422351412E-2},{"$f":"'Population 2016'!AC220/'Population 2016'!AC$5","v":7.4396850778100246E-3},{"$f":"'Population 2016'!AD220/'Population 2016'!AD$5","v":3.7217611373702034E-3},{"$f":"'Population 2016'!AE220/'Population 2016'!AE$5","v":4.1376194827462296E-3},{"$f":"'Population 2016'!AF220/'Population 2016'!AF$5","v":4.5695154503913498E-3},{"$f":"'Population 2016'!AG220/'Population 2016'!AG$5","v":4.1376194827462296E-3},{"$f":"'Population 2016'!AH220/'Population 2016'!AH$5","v":5.0472307106433963E-3},{"$f":"'Population 2016'!AI220/'Population 2016'!AI$5","v":1.2424534079972E-2},{"$f":"'Population 2016'!AJ220/'Population 2016'!AJ$5","v":6.8873211945459107E-3},{"$f":"'Population 2016'!AK220/'Population 2016'!AK$5","v":6.7510654614485249E-3},{"$f":"'Population 2016'!AL220/'Population 2016'!AL$5","v":3.5916354800376014E-3},{"$f":"'Population 2016'!AM220/'Population 2016'!AM$5","v":4.0385235302853048E-3},{"$f":"'Population 2016'!AN220/'Population 2016'!AN$5","v":2.345369259299662E-3},{"$f":"'Population 2016'!AO220/'Population 2016'!AO$5","v":2.345369259299662E-3},{"$f":"'Population 2016'!AP220/'Population 2016'!AP$5","v":6.8322685985130697E-3},{"$f":"'Population 2016'!AQ220/'Population 2016'!AQ$5","v":7.2957198443579768E-3},{"$f":"'Population 2016'!AR220/'Population 2016'!AR$5","v":8.1331621510774745E-3},{"$f":"'Population 2016'!AS220/'Population 2016'!AS$5","v":5.0351729335901515E-3},{"$f":"'Population 2016'!AT220/'Population 2016'!AT$5","v":0},{"$f":"'Population 2016'!AU220/'Population 2016'!AU$5","v":0},{"$f":"'Population 2016'!AV220/'Population 2016'!AV$5","v":6.7469116249604059E-3},{"$f":"'Population 2016'!AW220/'Population 2016'!AW$5","v":6.1092806150466776E-3},{"$f":"'Population 2016'!AX220/'Population 2016'!AX$5","v":1.0261062908110456E-2},{"$f":"'Population 2016'!AY220/'Population 2016'!AY$5","v":7.4615219852513697E-3},{"$f":"'Population 2016'!AZ220/'Population 2016'!AZ$5","v":6.4516685746500912E-3},{"$f":"'Population 2016'!BA220/'Population 2016'!BA$5","v":1.6600086374433168E-3},{"$f":"'Population 2016'!BB220/'Population 2016'!BB$5","v":9.0662394785358674E-3},{"$f":"'Population 2016'!BC220/'Population 2016'!BC$5","v":0},218]
[null,"Female 45-49",{"$f":"'Population 2016'!C221/'Population 2016'!C$5","v":1.5394601667237405E-2},{"$f":"'Population 2016'!D221/'Population 2016'!D$5","v":1.6362978394608922E-2},{"$f":"'Population 2016'!E221/'Population 2016'!E$5","v":1.7251159062249496E-2},{"$f":"'Population 2016'!F221/'Population 2016'!F$5","v":8.395570435230492E-3},{"$f":"'Population 2016'!G221/'Population 2016'!G$5","v":3.5727818979050508E-3},{"$f":"'Population 2016'!H221/'Population 2016'!H$5","v":6.4718413296456379E-3},{"$f":"'Population 2016'!I221/'Population 2016'!I$5","v":5.1607905535549789E-3},{"$f":"'Population 2016'!J221/'Population 2016'!J$5","v":1.1353175820803928E-2},{"$f":"'Population 2016'!K221/'Population 2016'!K$5","v":6.9697112885696733E-3},{"$f":"'Population 2016'!L221/'Population 2016'!L$5","v":3.9871014884119895E-3},{"$f":"'Population 2016'!M221/'Population 2016'!M$5","v":3.9871014884119895E-3},{"$f":"'Population 2016'!N221/'Population 2016'!N$5","v":6.8637930895909856E-3},{"$f":"'Population 2016'!O221/'Population 2016'!O$5","v":5.9936002219118101E-3},{"$f":"'Population 2016'!P221/'Population 2016'!P$5","v":2.5504339005973178E-2},{"$f":"'Population 2016'!Q221/'Population 2016'!Q$5","v":9.1773304661519842E-3},{"$f":"'Population 2016'!R221/'Population 2016'!R$5","v":3.0286900516314472E-2},{"$f":"'Population 2016'!S221/'Population 2016'!S$5","v":1.1816138866773409E-2},{"$f":"'Population 2016'!T221/'Population 2016'!T$5","v":1.647720134200081E-2},{"$f":"'Population 2016'!U221/'Population 2016'!U$5","v":0},{"$f":"'Population 2016'!V221/'Population 2016'!V$5","v":1.0799795452637364E-2},{"$f":"'Population 2016'!W221/'Population 2016'!W$5","v":9.4490093411514001E-3},{"$f":"'Population 2016'!X221/'Population 2016'!X$5","v":9.4490093411514001E-3},{"$f":"'Population 2016'!Y221/'Population 2016'!Y$5","v":1.1065006915629323E-2},{"$f":"'Population 2016'!Z221/'Population 2016'!Z$5","v":4.1135693586509814E-3},{"$f":"'Population 2016'!AA221/'Population 2016'!AA$5","v":7.9015013051794598E-3},{"$f":"'Population 2016'!AB221/'Population 2016'!AB$5","v":1.4959622529502677E-2},{"$f":"'Population 2016'!AC221/'Population 2016'!AC$5","v":8.9114870888935323E-3},{"$f":"'Population 2016'!AD221/'Population 2016'!AD$5","v":4.2651382634262529E-3},{"$f":"'Population 2016'!AE221/'Population 2016'!AE$5","v":4.5277672255361967E-3},{"$f":"'Population 2016'!AF221/'Population 2016'!AF$5","v":5.9418781764164746E-3},{"$f":"'Population 2016'!AG221/'Population 2016'!AG$5","v":4.5277672255361967E-3},{"$f":"'Population 2016'!AH221/'Population 2016'!AH$5","v":6.0875138162599964E-3},{"$f":"'Population 2016'!AI221/'Population 2016'!AI$5","v":1.3675463732610027E-2},{"$f":"'Population 2016'!AJ221/'Population 2016'!AJ$5","v":7.8353735047263194E-3},{"$f":"'Population 2016'!AK221/'Population 2016'!AK$5","v":7.7442389650880655E-3},{"$f":"'Population 2016'!AL221/'Population 2016'!AL$5","v":4.7622425994572641E-3},{"$f":"'Population 2016'!AM221/'Population 2016'!AM$5","v":5.1975616735061994E-3},{"$f":"'Population 2016'!AN221/'Population 2016'!AN$5","v":4.0907603359877824E-3},{"$f":"'Population 2016'!AO221/'Population 2016'!AO$5","v":4.0907603359877824E-3},{"$f":"'Population 2016'!AP221/'Population 2016'!AP$5","v":8.1242173010161213E-3},{"$f":"'Population 2016'!AQ221/'Population 2016'!AQ$5","v":9.4330574889022849E-3},{"$f":"'Population 2016'!AR221/'Population 2016'!AR$5","v":9.3087591892947377E-3},{"$f":"'Population 2016'!AS221/'Population 2016'!AS$5","v":5.1607905535549789E-3},{"$f":"'Population 2016'!AT221/'Population 2016'!AT$5","v":0},{"$f":"'Population 2016'!AU221/'Population 2016'!AU$5","v":0},{"$f":"'Population 2016'!AV221/'Population 2016'!AV$5","v":9.0169992609017008E-3},{"$f":"'Population 2016'!AW221/'Population 2016'!AW$5","v":7.0245286472634082E-3},{"$f":"'Population 2016'!AX221/'Population 2016'!AX$5","v":1.3724011909477746E-2},{"$f":"'Population 2016'!AY221/'Population 2016'!AY$5","v":8.5447201738012915E-3},{"$f":"'Population 2016'!AZ221/'Population 2016'!AZ$5","v":7.7489055461914154E-3},{"$f":"'Population 2016'!BA221/'Population 2016'!BA$5","v":2.4427769380263443E-3},{"$f":"'Population 2016'!BB221/'Population 2016'!BB$5","v":1.0896059327592992E-2},{"$f":"'Population 2016'!BC221/'Population 2016'!BC$5","v":0},219]
[null,"Female 50-54",{"$f":"'Population 2016'!C222/'Population 2016'!C$5","v":1.6401486304835601E-2},{"$f":"'Population 2016'!D222/'Population 2016'!D$5","v":1.6534139256477218E-2},{"$f":"'Population 2016'!E222/'Population 2016'!E$5","v":1.6655806562003383E-2},{"$f":"'Population 2016'!F222/'Population 2016'!F$5","v":8.6118980169971673E-3},{"$f":"'Population 2016'!G222/'Population 2016'!G$5","v":3.7351810750825528E-3},{"$f":"'Population 2016'!H222/'Population 2016'!H$5","v":6.6631432527163251E-3},{"$f":"'Population 2016'!I222/'Population 2016'!I$5","v":4.6478519386986012E-3},{"$f":"'Population 2016'!J222/'Population 2016'!J$5","v":1.1137556703681281E-2},{"$f":"'Population 2016'!K222/'Population 2016'!K$5","v":7.4186079478334834E-3},{"$f":"'Population 2016'!L222/'Population 2016'!L$5","v":4.7972296792845454E-3},{"$f":"'Population 2016'!M222/'Population 2016'!M$5","v":4.7972296792845454E-3},{"$f":"'Population 2016'!N222/'Population 2016'!N$5","v":7.3058406539089063E-3},{"$f":"'Population 2016'!O222/'Population 2016'!O$5","v":5.7261172368016956E-3},{"$f":"'Population 2016'!P222/'Population 2016'!P$5","v":2.7837259100642397E-2},{"$f":"'Population 2016'!Q222/'Population 2016'!Q$5","v":8.6250455341300332E-3},{"$f":"'Population 2016'!R222/'Population 2016'!R$5","v":3.0326821738436153E-2},{"$f":"'Population 2016'!S222/'Population 2016'!S$5","v":1.1653729846717661E-2},{"$f":"'Population 2016'!T222/'Population 2016'!T$5","v":1.6777336751929939E-2},{"$f":"'Population 2016'!U222/'Population 2016'!U$5","v":0},{"$f":"'Population 2016'!V222/'Population 2016'!V$5","v":9.9373382892818714E-3},{"$f":"'Population 2016'!W222/'Population 2016'!W$5","v":9.1613881643885769E-3},{"$f":"'Population 2016'!X222/'Population 2016'!X$5","v":9.1613881643885769E-3},{"$f":"'Population 2016'!Y222/'Population 2016'!Y$5","v":1.0512551469769956E-2},{"$f":"'Population 2016'!Z222/'Population 2016'!Z$5","v":4.1793864683893969E-3},{"$f":"'Population 2016'!AA222/'Population 2016'!AA$5","v":8.2609322482638022E-3},{"$f":"'Population 2016'!AB222/'Population 2016'!AB$5","v":1.5025127171120641E-2},{"$f":"'Population 2016'!AC222/'Population 2016'!AC$5","v":9.309690725061593E-3},{"$f":"'Population 2016'!AD222/'Population 2016'!AD$5","v":4.4847221705310953E-3},{"$f":"'Population 2016'!AE222/'Population 2016'!AE$5","v":4.7690428033142027E-3},{"$f":"'Population 2016'!AF222/'Population 2016'!AF$5","v":6.0172827218024699E-3},{"$f":"'Population 2016'!AG222/'Population 2016'!AG$5","v":4.7690428033142027E-3},{"$f":"'Population 2016'!AH222/'Population 2016'!AH$5","v":6.3773069671103346E-3},{"$f":"'Population 2016'!AI222/'Population 2016'!AI$5","v":1.3611208329687636E-2},{"$f":"'Population 2016'!AJ222/'Population 2016'!AJ$5","v":7.3892312411120093E-3},{"$f":"'Population 2016'!AK222/'Population 2016'!AK$5","v":7.2665099380209448E-3},{"$f":"'Population 2016'!AL222/'Population 2016'!AL$5","v":4.6026143559000374E-3},{"$f":"'Population 2016'!AM222/'Population 2016'!AM$5","v":5.1142558069621974E-3},{"$f":"'Population 2016'!AN222/'Population 2016'!AN$5","v":3.654412566815752E-3},{"$f":"'Population 2016'!AO222/'Population 2016'!AO$5","v":3.654412566815752E-3},{"$f":"'Population 2016'!AP222/'Population 2016'!AP$5","v":8.9564541952665538E-3},{"$f":"'Population 2016'!AQ222/'Population 2016'!AQ$5","v":1.0200306899764346E-2},{"$f":"'Population 2016'!AR222/'Population 2016'!AR$5","v":9.4520051425965573E-3},{"$f":"'Population 2016'!AS222/'Population 2016'!AS$5","v":4.6478519386986012E-3},{"$f":"'Population 2016'!AT222/'Population 2016'!AT$5","v":0},{"$f":"'Population 2016'!AU222/'Population 2016'!AU$5","v":0},{"$f":"'Population 2016'!AV222/'Population 2016'!AV$5","v":1.0115088163868653E-2},{"$f":"'Population 2016'!AW222/'Population 2016'!AW$5","v":7.7071511379583867E-3},{"$f":"'Population 2016'!AX222/'Population 2016'!AX$5","v":1.3148983477516389E-2},{"$f":"'Population 2016'!AY222/'Population 2016'!AY$5","v":8.6870046816192887E-3},{"$f":"'Population 2016'!AZ222/'Population 2016'!AZ$5","v":8.2695261489607718E-3},{"$f":"'Population 2016'!BA222/'Population 2016'!BA$5","v":2.7666810624055278E-3},{"$f":"'Population 2016'!BB222/'Population 2016'!BB$5","v":1.0226276213032461E-2},{"$f":"'Population 2016'!BC222/'Population 2016'!BC$5","v":0},220]
[null,"Female 55-59",{"$f":"'Population 2016'!C223/'Population 2016'!C$5","v":1.5159491548813461E-2},{"$f":"'Population 2016'!D223/'Population 2016'!D$5","v":1.4580460276009115E-2},{"$f":"'Population 2016'!E223/'Population 2016'!E$5","v":1.404938144281569E-2},{"$f":"'Population 2016'!F223/'Population 2016'!F$5","v":8.0144218387844454E-3},{"$f":"'Population 2016'!G223/'Population 2016'!G$5","v":4.0329128999079741E-3},{"$f":"'Population 2016'!H223/'Population 2016'!H$5","v":6.9257780962540486E-3},{"$f":"'Population 2016'!I223/'Population 2016'!I$5","v":4.1035089188510175E-3},{"$f":"'Population 2016'!J223/'Population 2016'!J$5","v":9.7111533134853177E-3},{"$f":"'Population 2016'!K223/'Population 2016'!K$5","v":6.2845532296933329E-3},{"$f":"'Population 2016'!L223/'Population 2016'!L$5","v":4.2492017854589932E-3},{"$f":"'Population 2016'!M223/'Population 2016'!M$5","v":4.2492017854589932E-3},{"$f":"'Population 2016'!N223/'Population 2016'!N$5","v":7.2415428263717541E-3},{"$f":"'Population 2016'!O223/'Population 2016'!O$5","v":5.5477952467282866E-3},{"$f":"'Population 2016'!P223/'Population 2016'!P$5","v":2.509861377211766E-2},{"$f":"'Population 2016'!Q223/'Population 2016'!Q$5","v":7.2619593189269223E-3},{"$f":"'Population 2016'!R223/'Population 2016'!R$5","v":2.7093202746580083E-2},{"$f":"'Population 2016'!S223/'Population 2016'!S$5","v":1.0568943511671383E-2},{"$f":"'Population 2016'!T223/'Population 2016'!T$5","v":1.5683820142110626E-2},{"$f":"'Population 2016'!U223/'Population 2016'!U$5","v":0},{"$f":"'Population 2016'!V223/'Population 2016'!V$5","v":8.1666297769059926E-3},{"$f":"'Population 2016'!W223/'Population 2016'!W$5","v":8.4750194471136554E-3},{"$f":"'Population 2016'!X223/'Population 2016'!X$5","v":8.4750194471136554E-3},{"$f":"'Population 2016'!Y223/'Population 2016'!Y$5","v":8.9068536271283451E-3},{"$f":"'Population 2016'!Z223/'Population 2016'!Z$5","v":3.7612542418159326E-3},{"$f":"'Population 2016'!AA223/'Population 2016'!AA$5","v":7.3593651692149056E-3},{"$f":"'Population 2016'!AB223/'Population 2016'!AB$5","v":1.3229890586778297E-2},{"$f":"'Population 2016'!AC223/'Population 2016'!AC$5","v":8.337453275716198E-3},{"$f":"'Population 2016'!AD223/'Population 2016'!AD$5","v":4.1199895790688156E-3},{"$f":"'Population 2016'!AE223/'Population 2016'!AE$5","v":4.1530200515405699E-3},{"$f":"'Population 2016'!AF223/'Population 2016'!AF$5","v":5.2481563588653128E-3},{"$f":"'Population 2016'!AG223/'Population 2016'!AG$5","v":4.1530200515405699E-3},{"$f":"'Population 2016'!AH223/'Population 2016'!AH$5","v":5.6026675831065452E-3},{"$f":"'Population 2016'!AI223/'Population 2016'!AI$5","v":1.2289187592965264E-2},{"$f":"'Population 2016'!AJ223/'Population 2016'!AJ$5","v":6.9430889774977E-3},{"$f":"'Population 2016'!AK223/'Population 2016'!AK$5","v":6.2859082508831699E-3},{"$f":"'Population 2016'!AL223/'Population 2016'!AL$5","v":4.7356378921977263E-3},{"$f":"'Population 2016'!AM223/'Population 2016'!AM$5","v":4.4659188455980093E-3},{"$f":"'Population 2016'!AN223/'Population 2016'!AN$5","v":2.8908039707646995E-3},{"$f":"'Population 2016'!AO223/'Population 2016'!AO$5","v":2.8908039707646995E-3},{"$f":"'Population 2016'!AP223/'Population 2016'!AP$5","v":8.3144428768447912E-3},{"$f":"'Population 2016'!AQ223/'Population 2016'!AQ$5","v":9.1590398421658361E-3},{"$f":"'Population 2016'!AR223/'Population 2016'!AR$5","v":8.5354983745037361E-3},{"$f":"'Population 2016'!AS223/'Population 2016'!AS$5","v":4.1035089188510175E-3},{"$f":"'Population 2016'!AT223/'Population 2016'!AT$5","v":0},{"$f":"'Population 2016'!AU223/'Population 2016'!AU$5","v":0},{"$f":"'Population 2016'!AV223/'Population 2016'!AV$5","v":1.1002006123957344E-2},{"$f":"'Population 2016'!AW223/'Population 2016'!AW$5","v":6.7995301726767954E-3},{"$f":"'Population 2016'!AX223/'Population 2016'!AX$5","v":1.1564460687222868E-2},{"$f":"'Population 2016'!AY223/'Population 2016'!AY$5","v":8.1408157645114897E-3},{"$f":"'Population 2016'!AZ223/'Population 2016'!AZ$5","v":7.8467016815182561E-3},{"$f":"'Population 2016'!BA223/'Population 2016'!BA$5","v":2.2943208810192184E-3},{"$f":"'Population 2016'!BB223/'Population 2016'!BB$5","v":7.8164379967270384E-3},{"$f":"'Population 2016'!BC223/'Population 2016'!BC$5","v":0},221]
[null,"Female 60-64",{"$f":"'Population 2016'!C224/'Population 2016'!C$5","v":1.1949727323373523E-2},{"$f":"'Population 2016'!D224/'Population 2016'!D$5","v":1.2494742916385474E-2},{"$f":"'Population 2016'!E224/'Population 2016'!E$5","v":1.2994623076237935E-2},{"$f":"'Population 2016'!F224/'Population 2016'!F$5","v":7.4787535410764869E-3},{"$f":"'Population 2016'!G224/'Population 2016'!G$5","v":2.9637849834894172E-3},{"$f":"'Population 2016'!H224/'Population 2016'!H$5","v":6.4621141132183146E-3},{"$f":"'Population 2016'!I224/'Population 2016'!I$5","v":3.7999330039360187E-3},{"$f":"'Population 2016'!J224/'Population 2016'!J$5","v":9.1721055206787031E-3},{"$f":"'Population 2016'!K224/'Population 2016'!K$5","v":7.3004772480272173E-3},{"$f":"'Population 2016'!L224/'Population 2016'!L$5","v":4.0903531205820215E-3},{"$f":"'Population 2016'!M224/'Population 2016'!M$5","v":4.0903531205820215E-3},{"$f":"'Population 2016'!N224/'Population 2016'!N$5","v":5.4010175131207752E-3},{"$f":"'Population 2016'!O224/'Population 2016'!O$5","v":4.9732021676028573E-3},{"$f":"'Population 2016'!P224/'Population 2016'!P$5","v":2.2483940042826552E-2},{"$f":"'Population 2016'!Q224/'Population 2016'!Q$5","v":6.3454013466351751E-3},{"$f":"'Population 2016'!R224/'Population 2016'!R$5","v":2.3513599829669451E-2},{"$f":"'Population 2016'!S224/'Population 2016'!S$5","v":9.2078853109867943E-3},{"$f":"'Population 2016'!T224/'Population 2016'!T$5","v":1.3350209164134517E-2},{"$f":"'Population 2016'!U224/'Population 2016'!U$5","v":0},{"$f":"'Population 2016'!V224/'Population 2016'!V$5","v":6.8080689355141544E-3},{"$f":"'Population 2016'!W224/'Population 2016'!W$5","v":7.8572876015662284E-3},{"$f":"'Population 2016'!X224/'Population 2016'!X$5","v":7.8572876015662284E-3},{"$f":"'Population 2016'!Y224/'Population 2016'!Y$5","v":7.9410502217770775E-3},{"$f":"'Population 2016'!Z224/'Population 2016'!Z$5","v":3.3044060683375177E-3},{"$f":"'Population 2016'!AA224/'Population 2016'!AA$5","v":6.4132844613551945E-3},{"$f":"'Population 2016'!AB224/'Population 2016'!AB$5","v":1.1494017583902234E-2},{"$f":"'Population 2016'!AC224/'Population 2016'!AC$5","v":7.365215826370803E-3},{"$f":"'Population 2016'!AD224/'Population 2016'!AD$5","v":3.7105958539580932E-3},{"$f":"'Population 2016'!AE224/'Population 2016'!AE$5","v":3.993880840665715E-3},{"$f":"'Population 2016'!AF224/'Population 2016'!AF$5","v":6.0323636308796695E-3},{"$f":"'Population 2016'!AG224/'Population 2016'!AG$5","v":3.993880840665715E-3},{"$f":"'Population 2016'!AH224/'Population 2016'!AH$5","v":4.7035657561093408E-3},{"$f":"'Population 2016'!AI224/'Population 2016'!AI$5","v":1.0479099221279202E-2},{"$f":"'Population 2016'!AJ224/'Population 2016'!AJ$5","v":5.9950366673172904E-3},{"$f":"'Population 2016'!AK224/'Population 2016'!AK$5","v":6.3487673333920015E-3},{"$f":"'Population 2016'!AL224/'Population 2016'!AL$5","v":4.1858072755006116E-3},{"$f":"'Population 2016'!AM224/'Population 2016'!AM$5","v":3.5060903832432062E-3},{"$f":"'Population 2016'!AN224/'Population 2016'!AN$5","v":3.0544343842042109E-3},{"$f":"'Population 2016'!AO224/'Population 2016'!AO$5","v":3.0544343842042109E-3},{"$f":"'Population 2016'!AP224/'Population 2016'!AP$5","v":7.8230268059540607E-3},{"$f":"'Population 2016'!AQ224/'Population 2016'!AQ$5","v":7.6587932262837726E-3},{"$f":"'Population 2016'!AR224/'Population 2016'!AR$5","v":7.4951272984236485E-3},{"$f":"'Population 2016'!AS224/'Population 2016'!AS$5","v":3.7999330039360187E-3},{"$f":"'Population 2016'!AT224/'Population 2016'!AT$5","v":0},{"$f":"'Population 2016'!AU224/'Population 2016'!AU$5","v":0},{"$f":"'Population 2016'!AV224/'Population 2016'!AV$5","v":1.0759159539647345E-2},{"$f":"'Population 2016'!AW224/'Population 2016'!AW$5","v":5.9643663432790289E-3},{"$f":"'Population 2016'!AX224/'Population 2016'!AX$5","v":1.018439245051561E-2},{"$f":"'Population 2016'!AY224/'Population 2016'!AY$5","v":7.3268871821547685E-3},{"$f":"'Population 2016'!AZ224/'Population 2016'!AZ$5","v":6.8601112574857188E-3},{"$f":"'Population 2016'!BA224/'Population 2016'!BA$5","v":1.8084646944504428E-3},{"$f":"'Population 2016'!BB224/'Population 2016'!BB$5","v":6.6080663982930887E-3},{"$f":"'Population 2016'!BC224/'Population 2016'!BC$5","v":0},222]
[null,"Female 65-69",{"$f":"'Population 2016'!C225/'Population 2016'!C$5","v":1.1535729071366144E-2},{"$f":"'Population 2016'!D225/'Population 2016'!D$5","v":1.1675615934587208E-2},{"$f":"'Population 2016'!E225/'Population 2016'!E$5","v":1.1803918075745714E-2},{"$f":"'Population 2016'!F225/'Population 2016'!F$5","v":9.1475663147051241E-3},{"$f":"'Population 2016'!G225/'Population 2016'!G$5","v":3.4239159854923401E-3},{"$f":"'Population 2016'!H225/'Population 2016'!H$5","v":6.9906262057695366E-3},{"$f":"'Population 2016'!I225/'Population 2016'!I$5","v":4.1872539988275686E-3},{"$f":"'Population 2016'!J225/'Population 2016'!J$5","v":9.7857907001816184E-3},{"$f":"'Population 2016'!K225/'Population 2016'!K$5","v":7.1823465482209513E-3},{"$f":"'Population 2016'!L225/'Population 2016'!L$5","v":3.867964989754261E-3},{"$f":"'Population 2016'!M225/'Population 2016'!M$5","v":3.867964989754261E-3},{"$f":"'Population 2016'!N225/'Population 2016'!N$5","v":6.1806286720087443E-3},{"$f":"'Population 2016'!O225/'Population 2016'!O$5","v":5.0524563854132615E-3},{"$f":"'Population 2016'!P225/'Population 2016'!P$5","v":2.2844584695142566E-2},{"$f":"'Population 2016'!Q225/'Population 2016'!Q$5","v":6.9094370218916344E-3},{"$f":"'Population 2016'!R225/'Population 2016'!R$5","v":2.2675254165114175E-2},{"$f":"'Population 2016'!S225/'Population 2016'!S$5","v":9.5662443443706741E-3},{"$f":"'Population 2016'!T225/'Population 2016'!T$5","v":1.3810882118909462E-2},{"$f":"'Population 2016'!U225/'Population 2016'!U$5","v":0},{"$f":"'Population 2016'!V225/'Population 2016'!V$5","v":6.6019951000221341E-3},{"$f":"'Population 2016'!W225/'Population 2016'!W$5","v":8.7691774688029075E-3},{"$f":"'Population 2016'!X225/'Population 2016'!X$5","v":8.7691774688029075E-3},{"$f":"'Population 2016'!Y225/'Population 2016'!Y$5","v":8.1278517034705337E-3},{"$f":"'Population 2016'!Z225/'Population 2016'!Z$5","v":2.7449606355609843E-3},{"$f":"'Population 2016'!AA225/'Population 2016'!AA$5","v":6.0119974195382937E-3},{"$f":"'Population 2016'!AB225/'Population 2016'!AB$5","v":1.0838971167722589E-2},{"$f":"'Population 2016'!AC225/'Population 2016'!AC$5","v":6.9866637982214262E-3},{"$f":"'Population 2016'!AD225/'Population 2016'!AD$5","v":3.8036398823923481E-3},{"$f":"'Population 2016'!AE225/'Population 2016'!AE$5","v":3.9476791342826925E-3},{"$f":"'Population 2016'!AF225/'Population 2016'!AF$5","v":6.1077681762656657E-3},{"$f":"'Population 2016'!AG225/'Population 2016'!AG$5","v":3.9476791342826925E-3},{"$f":"'Population 2016'!AH225/'Population 2016'!AH$5","v":4.2614454362222866E-3},{"$f":"'Population 2016'!AI225/'Population 2016'!AI$5","v":1.0602141482194417E-2},{"$f":"'Population 2016'!AJ225/'Population 2016'!AJ$5","v":5.7859074812480829E-3},{"$f":"'Population 2016'!AK225/'Population 2016'!AK$5","v":6.537344580918497E-3},{"$f":"'Population 2016'!AL225/'Population 2016'!AL$5","v":4.6824284776786507E-3},{"$f":"'Population 2016'!AM225/'Population 2016'!AM$5","v":3.1438909634866766E-3},{"$f":"'Population 2016'!AN225/'Population 2016'!AN$5","v":2.781717028471692E-3},{"$f":"'Population 2016'!AO225/'Population 2016'!AO$5","v":2.781717028471692E-3},{"$f":"'Population 2016'!AP225/'Population 2016'!AP$5","v":9.2417925590095595E-3},{"$f":"'Population 2016'!AQ225/'Population 2016'!AQ$5","v":7.5765879322628373E-3},{"$f":"'Population 2016'!AR225/'Population 2016'!AR$5","v":7.5223061573704945E-3},{"$f":"'Population 2016'!AS225/'Population 2016'!AS$5","v":4.1872539988275686E-3},{"$f":"'Population 2016'!AT225/'Population 2016'!AT$5","v":0},{"$f":"'Population 2016'!AU225/'Population 2016'!AU$5","v":0},{"$f":"'Population 2016'!AV225/'Population 2016'!AV$5","v":1.1804455706894732E-2},{"$f":"'Population 2016'!AW225/'Population 2016'!AW$5","v":5.4380987247544081E-3},{"$f":"'Population 2016'!AX225/'Population 2016'!AX$5","v":1.119388680884777E-2},{"$f":"'Population 2016'!AY225/'Population 2016'!AY$5","v":8.4238548392032066E-3},{"$f":"'Population 2016'!AZ225/'Population 2016'!AZ$5","v":8.119955589049134E-3},{"$f":"'Population 2016'!BA225/'Population 2016'!BA$5","v":1.2821204923342691E-3},{"$f":"'Population 2016'!BB225/'Population 2016'!BB$5","v":5.6344641389834485E-3},{"$f":"'Population 2016'!BC225/'Population 2016'!BC$5","v":0},223]
[null,"Female 70-74",{"$f":"'Population 2016'!C226/'Population 2016'!C$5","v":8.8779625152693806E-3},{"$f":"'Population 2016'!D226/'Population 2016'!D$5","v":8.6827460070616081E-3},{"$f":"'Population 2016'!E226/'Population 2016'!E$5","v":8.5036963420979852E-3},{"$f":"'Population 2016'!F226/'Population 2016'!F$5","v":6.582539273757404E-3},{"$f":"'Population 2016'!G226/'Population 2016'!G$5","v":2.8149190710767065E-3},{"$f":"'Population 2016'!H226/'Population 2016'!H$5","v":5.3856354952612241E-3},{"$f":"'Population 2016'!I226/'Population 2016'!I$5","v":3.1718449041118835E-3},{"$f":"'Population 2016'!J226/'Population 2016'!J$5","v":7.5383760563263475E-3},{"$f":"'Population 2016'!K226/'Population 2016'!K$5","v":4.9142371119406513E-3},{"$f":"'Population 2016'!L226/'Population 2016'!L$5","v":3.7250011913649867E-3},{"$f":"'Population 2016'!M226/'Population 2016'!M$5","v":3.7250011913649867E-3},{"$f":"'Population 2016'!N226/'Population 2016'!N$5","v":4.9670071772449989E-3},{"$f":"'Population 2016'!O226/'Population 2016'!O$5","v":3.4673720292051793E-3},{"$f":"'Population 2016'!P226/'Population 2016'!P$5","v":1.9114166572748788E-2},{"$f":"'Population 2016'!Q226/'Population 2016'!Q$5","v":5.8283686443167532E-3},{"$f":"'Population 2016'!R226/'Population 2016'!R$5","v":1.9521477617501462E-2},{"$f":"'Population 2016'!S226/'Population 2016'!S$5","v":7.1618847213714386E-3},{"$f":"'Population 2016'!T226/'Population 2016'!T$5","v":1.0281382763386271E-2},{"$f":"'Population 2016'!U226/'Population 2016'!U$5","v":0},{"$f":"'Population 2016'!V226/'Population 2016'!V$5","v":4.671006937819128E-3},{"$f":"'Population 2016'!W226/'Population 2016'!W$5","v":6.6022133756920886E-3},{"$f":"'Population 2016'!X226/'Population 2016'!X$5","v":6.6022133756920886E-3},{"$f":"'Population 2016'!Y226/'Population 2016'!Y$5","v":6.0452139075690371E-3},{"$f":"'Population 2016'!Z226/'Population 2016'!Z$5","v":1.6434919461151452E-3},{"$f":"'Population 2016'!AA226/'Population 2016'!AA$5","v":4.574938029720488E-3},{"$f":"'Population 2016'!AB226/'Population 2016'!AB$5","v":8.1942212623972652E-3},{"$f":"'Population 2016'!AC226/'Population 2016'!AC$5","v":5.3907463680725499E-3},{"$f":"'Population 2016'!AD226/'Population 2016'!AD$5","v":3.055565893780937E-3},{"$f":"'Population 2016'!AE226/'Population 2016'!AE$5","v":3.1468495569769712E-3},{"$f":"'Population 2016'!AF226/'Population 2016'!AF$5","v":4.8560527228581341E-3},{"$f":"'Population 2016'!AG226/'Population 2016'!AG$5","v":3.1468495569769712E-3},{"$f":"'Population 2016'!AH226/'Population 2016'!AH$5","v":3.1097034264324793E-3},{"$f":"'Population 2016'!AI226/'Population 2016'!AI$5","v":7.9170859217779326E-3},{"$f":"'Population 2016'!AJ226/'Population 2016'!AJ$5","v":4.1546998299082623E-3},{"$f":"'Population 2016'!AK226/'Population 2016'!AK$5","v":5.6824610587983861E-3},{"$f":"'Population 2016'!AL226/'Population 2016'!AL$5","v":3.6448448945566769E-3},{"$f":"'Population 2016'!AM226/'Population 2016'!AM$5","v":2.0898906519951754E-3},{"$f":"'Population 2016'!AN226/'Population 2016'!AN$5","v":2.4544562015926695E-3},{"$f":"'Population 2016'!AO226/'Population 2016'!AO$5","v":2.4544562015926695E-3},{"$f":"'Population 2016'!AP226/'Population 2016'!AP$5","v":7.4901320482538879E-3},{"$f":"'Population 2016'!AQ226/'Population 2016'!AQ$5","v":5.6927166109497452E-3},{"$f":"'Population 2016'!AR226/'Population 2016'!AR$5","v":5.7302836871374711E-3},{"$f":"'Population 2016'!AS226/'Population 2016'!AS$5","v":3.1718449041118835E-3},{"$f":"'Population 2016'!AT226/'Population 2016'!AT$5","v":0},{"$f":"'Population 2016'!AU226/'Population 2016'!AU$5","v":0},{"$f":"'Population 2016'!AV226/'Population 2016'!AV$5","v":9.5026924295216978E-3},{"$f":"'Population 2016'!AW226/'Population 2016'!AW$5","v":4.1834462139239735E-3},{"$f":"'Population 2016'!AX226/'Population 2016'!AX$5","v":8.957665128998045E-3},{"$f":"'Population 2016'!AY226/'Population 2016'!AY$5","v":6.4594106667482639E-3},{"$f":"'Population 2016'!AZ226/'Population 2016'!AZ$5","v":6.3337379408736072E-3},{"$f":"'Population 2016'!BA226/'Population 2016'!BA$5","v":6.3431224357590158E-4},{"$f":"'Population 2016'!BB226/'Population 2016'!BB$5","v":3.991078765113276E-3},{"$f":"'Population 2016'!BC226/'Population 2016'!BC$5","v":0},224]
[null,"Female 75-79",{"$f":"'Population 2016'!C227/'Population 2016'!C$5","v":7.6819675650258365E-3},{"$f":"'Population 2016'!D227/'Population 2016'!D$5","v":6.9931437849045904E-3},{"$f":"'Population 2016'!E227/'Population 2016'!E$5","v":6.3613649042045016E-3},{"$f":"'Population 2016'!F227/'Population 2016'!F$5","v":5.1197527684779809E-3},{"$f":"'Population 2016'!G227/'Population 2016'!G$5","v":1.9758566556596115E-3},{"$f":"'Population 2016'!H227/'Population 2016'!H$5","v":4.046522033766411E-3},{"$f":"'Population 2016'!I227/'Population 2016'!I$5","v":2.7740557742232646E-3},{"$f":"'Population 2016'!J227/'Population 2016'!J$5","v":6.2031961387591953E-3},{"$f":"'Population 2016'!K227/'Population 2016'!K$5","v":3.8746869536455133E-3},{"$f":"'Population 2016'!L227/'Population 2016'!L$5","v":2.851333534541642E-3},{"$f":"'Population 2016'!M227/'Population 2016'!M$5","v":2.851333534541642E-3},{"$f":"'Population 2016'!N227/'Population 2016'!N$5","v":4.0427259063984377E-3},{"$f":"'Population 2016'!O227/'Population 2016'!O$5","v":2.3974400887647241E-3},{"$f":"'Population 2016'!P227/'Population 2016'!P$5","v":1.7265862729629211E-2},{"$f":"'Population 2016'!Q227/'Population 2016'!Q$5","v":4.571039118224228E-3},{"$f":"'Population 2016'!R227/'Population 2016'!R$5","v":1.4930537073508277E-2},{"$f":"'Population 2016'!S227/'Population 2016'!S$5","v":5.6781370979273431E-3},{"$f":"'Population 2016'!T227/'Population 2016'!T$5","v":8.7085801501142375E-3},{"$f":"'Population 2016'!U227/'Population 2016'!U$5","v":0},{"$f":"'Population 2016'!V227/'Population 2016'!V$5","v":3.4574610176994528E-3},{"$f":"'Population 2016'!W227/'Population 2016'!W$5","v":4.6705756999326706E-3},{"$f":"'Population 2016'!X227/'Population 2016'!X$5","v":4.6705756999326706E-3},{"$f":"'Population 2016'!Y227/'Population 2016'!Y$5","v":4.7733740322093449E-3},{"$f":"'Population 2016'!Z227/'Population 2016'!Z$5","v":1.4363616301736604E-3},{"$f":"'Population 2016'!AA227/'Population 2016'!AA$5","v":3.6255354092629539E-3},{"$f":"'Population 2016'!AB227/'Population 2016'!AB$5","v":6.51361780088636E-3},{"$f":"'Population 2016'!AC227/'Population 2016'!AC$5","v":4.3657598656243728E-3},{"$f":"'Population 2016'!AD227/'Population 2016'!AD$5","v":2.2553872492463434E-3},{"$f":"'Population 2016'!AE227/'Population 2016'!AE$5","v":2.3614205484655901E-3},{"$f":"'Population 2016'!AF227/'Population 2016'!AF$5","v":3.8456318146857893E-3},{"$f":"'Population 2016'!AG227/'Population 2016'!AG$5","v":2.3614205484655901E-3},{"$f":"'Population 2016'!AH227/'Population 2016'!AH$5","v":2.296053425968067E-3},{"$f":"'Population 2016'!AI227/'Population 2016'!AI$5","v":6.478858605302301E-3},{"$f":"'Population 2016'!AJ227/'Population 2016'!AJ$5","v":3.1927055739899061E-3},{"$f":"'Population 2016'!AK227/'Population 2016'!AK$5","v":4.0481249135687616E-3},{"$f":"'Population 2016'!AL227/'Population 2016'!AL$5","v":2.64273425444742E-3},{"$f":"'Population 2016'!AM227/'Population 2016'!AM$5","v":1.5647014933482077E-3},{"$f":"'Population 2016'!AN227/'Population 2016'!AN$5","v":1.2544998363695865E-3},{"$f":"'Population 2016'!AO227/'Population 2016'!AO$5","v":1.2544998363695865E-3},{"$f":"'Population 2016'!AP227/'Population 2016'!AP$5","v":6.190257280091308E-3},{"$f":"'Population 2016'!AQ227/'Population 2016'!AQ$5","v":3.6786869074368388E-3},{"$f":"'Population 2016'!AR227/'Population 2016'!AR$5","v":4.5201561314057734E-3},{"$f":"'Population 2016'!AS227/'Population 2016'!AS$5","v":2.7740557742232646E-3},{"$f":"'Population 2016'!AT227/'Population 2016'!AT$5","v":0},{"$f":"'Population 2016'!AU227/'Population 2016'!AU$5","v":0},{"$f":"'Population 2016'!AV227/'Population 2016'!AV$5","v":7.4754513778904023E-3},{"$f":"'Population 2016'!AW227/'Population 2016'!AW$5","v":3.0660809079260478E-3},{"$f":"'Population 2016'!AX227/'Population 2016'!AX$5","v":7.4625912058985137E-3},{"$f":"'Population 2016'!AY227/'Population 2016'!AY$5","v":4.9111104311373582E-3},{"$f":"'Population 2016'!AZ227/'Population 2016'!AZ$5","v":5.1227916769736124E-3},{"$f":"'Population 2016'!BA227/'Population 2016'!BA$5","v":4.4536817102137769E-4},{"$f":"'Population 2016'!BB227/'Population 2016'!BB$5","v":2.6100826526173327E-3},{"$f":"'Population 2016'!BC227/'Population 2016'!BC$5","v":0},225]
[null,"Female 80-84",{"$f":"'Population 2016'!C228/'Population 2016'!C$5","v":5.9953080198105833E-3},{"$f":"'Population 2016'!D228/'Population 2016'!D$5","v":5.3573349764776072E-3},{"$f":"'Population 2016'!E228/'Population 2016'!E$5","v":4.7721956318940179E-3},{"$f":"'Population 2016'!F228/'Population 2016'!F$5","v":4.0381148596446044E-3},{"$f":"'Population 2016'!G228/'Population 2016'!G$5","v":1.6510583013046067E-3},{"$f":"'Population 2016'!H228/'Population 2016'!H$5","v":3.0219219034217106E-3},{"$f":"'Population 2016'!I228/'Population 2016'!I$5","v":1.6644334645339587E-3},{"$f":"'Population 2016'!J228/'Population 2016'!J$5","v":4.262624084655383E-3},{"$f":"'Population 2016'!K228/'Population 2016'!K$5","v":2.4334924160090724E-3},{"$f":"'Population 2016'!L228/'Population 2016'!L$5","v":2.3033056407160898E-3},{"$f":"'Population 2016'!M228/'Population 2016'!M$5","v":2.3033056407160898E-3},{"$f":"'Population 2016'!N228/'Population 2016'!N$5","v":3.2470402906261803E-3},{"$f":"'Population 2016'!O228/'Population 2016'!O$5","v":1.9219147819022995E-3},{"$f":"'Population 2016'!P228/'Population 2016'!P$5","v":1.2735264284909275E-2},{"$f":"'Population 2016'!Q228/'Population 2016'!Q$5","v":3.2549558759591545E-3},{"$f":"'Population 2016'!R228/'Population 2016'!R$5","v":1.2415500079842445E-2},{"$f":"'Population 2016'!S228/'Population 2016'!S$5","v":4.4477122394615083E-3},{"$f":"'Population 2016'!T228/'Population 2016'!T$5","v":7.3451743344671782E-3},{"$f":"'Population 2016'!U228/'Population 2016'!U$5","v":0},{"$f":"'Population 2016'!V228/'Population 2016'!V$5","v":2.2744445546897061E-3},{"$f":"'Population 2016'!W228/'Population 2016'!W$5","v":3.4416488537642423E-3},{"$f":"'Population 2016'!X228/'Population 2016'!X$5","v":3.4416488537642423E-3},{"$f":"'Population 2016'!Y228/'Population 2016'!Y$5","v":3.2272936837252188E-3},{"$f":"'Population 2016'!Z228/'Population 2016'!Z$5","v":1.2214881248511856E-3},{"$f":"'Population 2016'!AA228/'Population 2016'!AA$5","v":2.7698107240640012E-3},{"$f":"'Population 2016'!AB228/'Population 2016'!AB$5","v":5.0274812441787869E-3},{"$f":"'Population 2016'!AC228/'Population 2016'!AC$5","v":3.3955910065967343E-3},{"$f":"'Population 2016'!AD228/'Population 2016'!AD$5","v":1.9241505080203952E-3},{"$f":"'Population 2016'!AE228/'Population 2016'!AE$5","v":2.0277415579215393E-3},{"$f":"'Population 2016'!AF228/'Population 2016'!AF$5","v":2.8050490883590462E-3},{"$f":"'Population 2016'!AG228/'Population 2016'!AG$5","v":2.0277415579215393E-3},{"$f":"'Population 2016'!AH228/'Population 2016'!AH$5","v":1.645876484957692E-3},{"$f":"'Population 2016'!AI228/'Population 2016'!AI$5","v":5.2320303613614489E-3},{"$f":"'Population 2016'!AJ228/'Population 2016'!AJ$5","v":2.1470596436438671E-3},{"$f":"'Population 2016'!AK228/'Population 2016'!AK$5","v":3.33153137296808E-3},{"$f":"'Population 2016'!AL228/'Population 2016'!AL$5","v":2.0751671662439476E-3},{"$f":"'Population 2016'!AM228/'Population 2016'!AM$5","v":9.960484043304563E-4},{"$f":"'Population 2016'!AN228/'Population 2016'!AN$5","v":1.4726737209556015E-3},{"$f":"'Population 2016'!AO228/'Population 2016'!AO$5","v":1.4726737209556015E-3},{"$f":"'Population 2016'!AP228/'Population 2016'!AP$5","v":4.7714915270358101E-3},{"$f":"'Population 2016'!AQ228/'Population 2016'!AQ$5","v":2.6100180851646847E-3},{"$f":"'Population 2016'!AR228/'Population 2016'!AR$5","v":3.4842406059727104E-3},{"$f":"'Population 2016'!AS228/'Population 2016'!AS$5","v":1.6644334645339587E-3},{"$f":"'Population 2016'!AT228/'Population 2016'!AT$5","v":0},{"$f":"'Population 2016'!AU228/'Population 2016'!AU$5","v":0},{"$f":"'Population 2016'!AV228/'Population 2016'!AV$5","v":5.3215077605321508E-3},{"$f":"'Population 2016'!AW228/'Population 2016'!AW$5","v":2.3300689486850938E-3},{"$f":"'Population 2016'!AX228/'Population 2016'!AX$5","v":5.2519263452470702E-3},{"$f":"'Population 2016'!AY228/'Population 2016'!AY$5","v":3.7498852544291792E-3},{"$f":"'Population 2016'!AZ228/'Population 2016'!AZ$5","v":4.0211469760859687E-3},{"$f":"'Population 2016'!BA228/'Population 2016'!BA$5","v":2.9691211401425179E-4},{"$f":"'Population 2016'!BB228/'Population 2016'!BB$5","v":1.6502903544326523E-3},{"$f":"'Population 2016'!BC228/'Population 2016'!BC$5","v":0},226]
[null,"Female 85-89",{"$f":"'Population 2016'!C229/'Population 2016'!C$5","v":4.3955369966215702E-3},{"$f":"'Population 2016'!D229/'Population 2016'!D$5","v":3.6824036853378714E-3},{"$f":"'Population 2016'!E229/'Population 2016'!E$5","v":3.028328465818797E-3},{"$f":"'Population 2016'!F229/'Population 2016'!F$5","v":2.6062322946175638E-3},{"$f":"'Population 2016'!G229/'Population 2016'!G$5","v":9.4732853353543013E-4},{"$f":"'Population 2016'!H229/'Population 2016'!H$5","v":1.7930502281032251E-3},{"$f":"'Population 2016'!I229/'Population 2016'!I$5","v":8.7932333975378944E-4},{"$f":"'Population 2016'!J229/'Population 2016'!J$5","v":2.3883963742816153E-3},{"$f":"'Population 2016'!K229/'Population 2016'!K$5","v":1.0631762982563908E-3},{"$f":"'Population 2016'!L229/'Population 2016'!L$5","v":1.2390195860403793E-3},{"$f":"'Population 2016'!M229/'Population 2016'!M$5","v":1.2390195860403793E-3},{"$f":"'Population 2016'!N229/'Population 2016'!N$5","v":2.1137910802838749E-3},{"$f":"'Population 2016'!O229/'Population 2016'!O$5","v":1.1689997127034605E-3},{"$f":"'Population 2016'!P229/'Population 2016'!P$5","v":7.4270258086329317E-3},{"$f":"'Population 2016'!Q229/'Population 2016'!Q$5","v":2.1386352686807442E-3},{"$f":"'Population 2016'!R229/'Population 2016'!R$5","v":8.6229839782828548E-3},{"$f":"'Population 2016'!S229/'Population 2016'!S$5","v":2.9630819582997189E-3},{"$f":"'Population 2016'!T229/'Population 2016'!T$5","v":5.1278949107271656E-3},{"$f":"'Population 2016'!U229/'Population 2016'!U$5","v":0},{"$f":"'Population 2016'!V229/'Population 2016'!V$5","v":1.2288106486746399E-3},{"$f":"'Population 2016'!W229/'Population 2016'!W$5","v":2.1310114460154662E-3},{"$f":"'Population 2016'!X229/'Population 2016'!X$5","v":2.1310114460154662E-3},{"$f":"'Population 2016'!Y229/'Population 2016'!Y$5","v":1.7845503251140682E-3},{"$f":"'Population 2016'!Z229/'Population 2016'!Z$5","v":8.1884227703970126E-4},{"$f":"'Population 2016'!AA229/'Population 2016'!AA$5","v":1.6974973374870529E-3},{"$f":"'Population 2016'!AB229/'Population 2016'!AB$5","v":3.4103354042352846E-3},{"$f":"'Population 2016'!AC229/'Population 2016'!AC$5","v":2.1637454723729419E-3},{"$f":"'Population 2016'!AD229/'Population 2016'!AD$5","v":1.1537459525847631E-3},{"$f":"'Population 2016'!AE229/'Population 2016'!AE$5","v":1.2320455035472644E-3},{"$f":"'Population 2016'!AF229/'Population 2016'!AF$5","v":1.9906799981902908E-3},{"$f":"'Population 2016'!AG229/'Population 2016'!AG$5","v":1.2320455035472644E-3},{"$f":"'Population 2016'!AH229/'Population 2016'!AH$5","v":8.6009121053658177E-4},{"$f":"'Population 2016'!AI229/'Population 2016'!AI$5","v":3.5832640650975589E-3},{"$f":"'Population 2016'!AJ229/'Population 2016'!AJ$5","v":8.7834258149067283E-4},{"$f":"'Population 2016'!AK229/'Population 2016'!AK$5","v":2.0114906402826146E-3},{"$f":"'Population 2016'!AL229/'Population 2016'!AL$5","v":1.179475355172842E-3},{"$f":"'Population 2016'!AM229/'Population 2016'!AM$5","v":4.4550528630053136E-4},{"$f":"'Population 2016'!AN229/'Population 2016'!AN$5","v":7.6360859605105274E-4},{"$f":"'Population 2016'!AO229/'Population 2016'!AO$5","v":7.6360859605105274E-4},{"$f":"'Population 2016'!AP229/'Population 2016'!AP$5","v":3.0753134758968342E-3},{"$f":"'Population 2016'!AQ229/'Population 2016'!AQ$5","v":1.5070970570504741E-3},{"$f":"'Population 2016'!AR229/'Population 2016'!AR$5","v":2.2197553323473201E-3},{"$f":"'Population 2016'!AS229/'Population 2016'!AS$5","v":8.7932333975378944E-4},{"$f":"'Population 2016'!AT229/'Population 2016'!AT$5","v":0},{"$f":"'Population 2016'!AU229/'Population 2016'!AU$5","v":0},{"$f":"'Population 2016'!AV229/'Population 2016'!AV$5","v":3.1886812374617253E-3},{"$f":"'Population 2016'!AW229/'Population 2016'!AW$5","v":1.2966013789737019E-3},{"$f":"'Population 2016'!AX229/'Population 2016'!AX$5","v":3.1051535325913337E-3},{"$f":"'Population 2016'!AY229/'Population 2016'!AY$5","v":2.3805881092989812E-3},{"$f":"'Population 2016'!AZ229/'Population 2016'!AZ$5","v":2.6002266569254045E-3},{"$f":"'Population 2016'!BA229/'Population 2016'!BA$5","v":1.349600518246599E-4},{"$f":"'Population 2016'!BB229/'Population 2016'!BB$5","v":1.1876566567465112E-3},{"$f":"'Population 2016'!BC229/'Population 2016'!BC$5","v":0},227]
[null,"Female 90+",{"$f":"'Population 2016'!C230/'Population 2016'!C$5","v":2.6782109142205845E-3},{"$f":"'Population 2016'!D230/'Population 2016'!D$5","v":2.2960007042046888E-3},{"$f":"'Population 2016'!E230/'Population 2016'!E$5","v":1.9454432094656361E-3},{"$f":"'Population 2016'!F230/'Population 2016'!F$5","v":1.3288694308524337E-3},{"$f":"'Population 2016'!G230/'Population 2016'!G$5","v":5.9546364965084176E-4},{"$f":"'Population 2016'!H230/'Population 2016'!H$5","v":1.1672659712787723E-3},{"$f":"'Population 2016'!I230/'Population 2016'!I$5","v":7.2230131479775563E-4},{"$f":"'Population 2016'!J230/'Population 2016'!J$5","v":1.3434729605334085E-3},{"$f":"'Population 2016'!K230/'Population 2016'!K$5","v":4.2527051930255636E-4},{"$f":"'Population 2016'!L230/'Population 2016'!L$5","v":7.2276142519022129E-4},{"$f":"'Population 2016'!M230/'Population 2016'!M$5","v":7.2276142519022129E-4},{"$f":"'Population 2016'!N230/'Population 2016'!N$5","v":9.4035572773084925E-4},{"$f":"'Population 2016'!O230/'Population 2016'!O$5","v":5.2505919299392718E-4},{"$f":"'Population 2016'!P230/'Population 2016'!P$5","v":4.3953567001014313E-3},{"$f":"'Population 2016'!Q230/'Population 2016'!Q$5","v":1.3395847287340924E-3},{"$f":"'Population 2016'!R230/'Population 2016'!R$5","v":4.7373183584393467E-3},{"$f":"'Population 2016'!S230/'Population 2016'!S$5","v":1.8853568849949954E-3},{"$f":"'Population 2016'!T230/'Population 2016'!T$5","v":3.1828313238996199E-3},{"$f":"'Population 2016'!U230/'Population 2016'!U$5","v":0},{"$f":"'Population 2016'!V230/'Population 2016'!V$5","v":9.3878080613031501E-4},{"$f":"'Population 2016'!W230/'Population 2016'!W$5","v":1.411958504108407E-3},{"$f":"'Population 2016'!X230/'Population 2016'!X$5","v":1.411958504108407E-3},{"$f":"'Population 2016'!Y230/'Population 2016'!Y$5","v":1.1327323889922258E-3},{"$f":"'Population 2016'!Z230/'Population 2016'!Z$5","v":5.3428006728831569E-4},{"$f":"'Population 2016'!AA230/'Population 2016'!AA$5","v":9.6468341840751494E-4},{"$f":"'Population 2016'!AB230/'Population 2016'!AB$5","v":2.1329948926849737E-3},{"$f":"'Population 2016'!AC230/'Population 2016'!AC$5","v":1.2597715035135007E-3},{"$f":"'Population 2016'!AD230/'Population 2016'!AD$5","v":6.4758643790241541E-4},{"$f":"'Population 2016'!AE230/'Population 2016'!AE$5","v":6.6735798108810153E-4},{"$f":"'Population 2016'!AF230/'Population 2016'!AF$5","v":1.3572818169479257E-3},{"$f":"'Population 2016'!AG230/'Population 2016'!AG$5","v":6.6735798108810153E-4},{"$f":"'Population 2016'!AH230/'Population 2016'!AH$5","v":4.3468972627550782E-4},{"$f":"'Population 2016'!AI230/'Population 2016'!AI$5","v":2.2352677399597514E-3},{"$f":"'Population 2016'!AJ230/'Population 2016'!AJ$5","v":6.4132950394557066E-4},{"$f":"'Population 2016'!AK230/'Population 2016'!AK$5","v":1.294897099681933E-3},{"$f":"'Population 2016'!AL230/'Population 2016'!AL$5","v":6.4738120998208612E-4},{"$f":"'Population 2016'!AM230/'Population 2016'!AM$5","v":2.3905161703930951E-4},{"$f":"'Population 2016'!AN230/'Population 2016'!AN$5","v":3.8180429802552637E-4},{"$f":"'Population 2016'!AO230/'Population 2016'!AO$5","v":3.8180429802552637E-4},{"$f":"'Population 2016'!AP230/'Population 2016'!AP$5","v":2.0924813341153719E-3},{"$f":"'Population 2016'!AQ230/'Population 2016'!AQ$5","v":6.7819367567271331E-4},{"$f":"'Population 2016'!AR230/'Population 2016'!AR$5","v":1.349363513451196E-3},{"$f":"'Population 2016'!AS230/'Population 2016'!AS$5","v":7.2230131479775563E-4},{"$f":"'Population 2016'!AT230/'Population 2016'!AT$5","v":0},{"$f":"'Population 2016'!AU230/'Population 2016'!AU$5","v":0},{"$f":"'Population 2016'!AV230/'Population 2016'!AV$5","v":2.4707000316756414E-3},{"$f":"'Population 2016'!AW230/'Population 2016'!AW$5","v":6.4067362255171149E-4},{"$f":"'Population 2016'!AX230/'Population 2016'!AX$5","v":1.8400909822763459E-3},{"$f":"'Population 2016'!AY230/'Population 2016'!AY$5","v":1.4412043695113369E-3},{"$f":"'Population 2016'!AZ230/'Population 2016'!AZ$5","v":1.4669420299026066E-3},{"$f":"'Population 2016'!BA230/'Population 2016'!BA$5","v":9.4472036277261928E-5},{"$f":"'Population 2016'!BB230/'Population 2016'!BB$5","v":7.3883292018532966E-4},{"$f":"'Population 2016'!BC230/'Population 2016'!BC$5","v":0},228]
[null,"Male 0-4",{"$f":"'Population 2016'!C231/'Population 2016'!C$5","v":0},{"$f":"'Population 2016'!D231/'Population 2016'!D$5","v":0},{"$f":"'Population 2016'!E231/'Population 2016'!E$5","v":0},{"$f":"'Population 2016'!F231/'Population 2016'!F$5","v":0},{"$f":"'Population 2016'!G231/'Population 2016'!G$5","v":0},{"$f":"'Population 2016'!H231/'Population 2016'!H$5","v":0},{"$f":"'Population 2016'!I231/'Population 2016'!I$5","v":0},{"$f":"'Population 2016'!J231/'Population 2016'!J$5","v":0},{"$f":"'Population 2016'!K231/'Population 2016'!K$5","v":0},{"$f":"'Population 2016'!L231/'Population 2016'!L$5","v":0},{"$f":"'Population 2016'!M231/'Population 2016'!M$5","v":0},{"$f":"'Population 2016'!N231/'Population 2016'!N$5","v":0},{"$f":"'Population 2016'!O231/'Population 2016'!O$5","v":0},{"$f":"'Population 2016'!P231/'Population 2016'!P$5","v":0},{"$f":"'Population 2016'!Q231/'Population 2016'!Q$5","v":0},{"$f":"'Population 2016'!R231/'Population 2016'!R$5","v":0},{"$f":"'Population 2016'!S231/'Population 2016'!S$5","v":0},{"$f":"'Population 2016'!T231/'Population 2016'!T$5","v":0},{"$f":"'Population 2016'!U231/'Population 2016'!U$5","v":0},{"$f":"'Population 2016'!V231/'Population 2016'!V$5","v":0},{"$f":"'Population 2016'!W231/'Population 2016'!W$5","v":0},{"$f":"'Population 2016'!X231/'Population 2016'!X$5","v":0},{"$f":"'Population 2016'!Y231/'Population 2016'!Y$5","v":0},{"$f":"'Population 2016'!Z231/'Population 2016'!Z$5","v":0},{"$f":"'Population 2016'!AA231/'Population 2016'!AA$5","v":0},{"$f":"'Population 2016'!AB231/'Population 2016'!AB$5","v":0},{"$f":"'Population 2016'!AC231/'Population 2016'!AC$5","v":0},{"$f":"'Population 2016'!AD231/'Population 2016'!AD$5","v":0},{"$f":"'Population 2016'!AE231/'Population 2016'!AE$5","v":0},{"$f":"'Population 2016'!AF231/'Population 2016'!AF$5","v":0},{"$f":"'Population 2016'!AG231/'Population 2016'!AG$5","v":0},{"$f":"'Population 2016'!AH231/'Population 2016'!AH$5","v":0},{"$f":"'Population 2016'!AI231/'Population 2016'!AI$5","v":0},{"$f":"'Population 2016'!AJ231/'Population 2016'!AJ$5","v":0},{"$f":"'Population 2016'!AK231/'Population 2016'!AK$5","v":0},{"$f":"'Population 2016'!AL231/'Population 2016'!AL$5","v":0},{"$f":"'Population 2016'!AM231/'Population 2016'!AM$5","v":0},{"$f":"'Population 2016'!AN231/'Population 2016'!AN$5","v":0},{"$f":"'Population 2016'!AO231/'Population 2016'!AO$5","v":0},{"$f":"'Population 2016'!AP231/'Population 2016'!AP$5","v":0},{"$f":"'Population 2016'!AQ231/'Population 2016'!AQ$5","v":0},{"$f":"'Population 2016'!AR231/'Population 2016'!AR$5","v":0},{"$f":"'Population 2016'!AS231/'Population 2016'!AS$5","v":0},{"$f":"'Population 2016'!AT231/'Population 2016'!AT$5","v":0},{"$f":"'Population 2016'!AU231/'Population 2016'!AU$5","v":0},{"$f":"'Population 2016'!AV231/'Population 2016'!AV$5","v":0},{"$f":"'Population 2016'!AW231/'Population 2016'!AW$5","v":0},{"$f":"'Population 2016'!AX231/'Population 2016'!AX$5","v":0},{"$f":"'Population 2016'!AY231/'Population 2016'!AY$5","v":0},{"$f":"'Population 2016'!AZ231/'Population 2016'!AZ$5","v":0},{"$f":"'Population 2016'!BA231/'Population 2016'!BA$5","v":0},{"$f":"'Population 2016'!BB231/'Population 2016'!BB$5","v":0},{"$f":"'Population 2016'!BC231/'Population 2016'!BC$5","v":0},229]
[null,"Male 5-9",{"$f":"'Population 2016'!C232/'Population 2016'!C$5","v":0},{"$f":"'Population 2016'!D232/'Population 2016'!D$5","v":0},{"$f":"'Population 2016'!E232/'Population 2016'!E$5","v":0},{"$f":"'Population 2016'!F232/'Population 2016'!F$5","v":0},{"$f":"'Population 2016'!G232/'Population 2016'!G$5","v":0},{"$f":"'Population 2016'!H232/'Population 2016'!H$5","v":0},{"$f":"'Population 2016'!I232/'Population 2016'!I$5","v":0},{"$f":"'Population 2016'!J232/'Population 2016'!J$5","v":0},{"$f":"'Population 2016'!K232/'Population 2016'!K$5","v":0},{"$f":"'Population 2016'!L232/'Population 2016'!L$5","v":0},{"$f":"'Population 2016'!M232/'Population 2016'!M$5","v":0},{"$f":"'Population 2016'!N232/'Population 2016'!N$5","v":0},{"$f":"'Population 2016'!O232/'Population 2016'!O$5","v":0},{"$f":"'Population 2016'!P232/'Population 2016'!P$5","v":0},{"$f":"'Population 2016'!Q232/'Population 2016'!Q$5","v":0},{"$f":"'Population 2016'!R232/'Population 2016'!R$5","v":0},{"$f":"'Population 2016'!S232/'Population 2016'!S$5","v":0},{"$f":"'Population 2016'!T232/'Population 2016'!T$5","v":0},{"$f":"'Population 2016'!U232/'Population 2016'!U$5","v":0},{"$f":"'Population 2016'!V232/'Population 2016'!V$5","v":0},{"$f":"'Population 2016'!W232/'Population 2016'!W$5","v":0},{"$f":"'Population 2016'!X232/'Population 2016'!X$5","v":0},{"$f":"'Population 2016'!Y232/'Population 2016'!Y$5","v":0},{"$f":"'Population 2016'!Z232/'Population 2016'!Z$5","v":0},{"$f":"'Population 2016'!AA232/'Population 2016'!AA$5","v":0},{"$f":"'Population 2016'!AB232/'Population 2016'!AB$5","v":0},{"$f":"'Population 2016'!AC232/'Population 2016'!AC$5","v":0},{"$f":"'Population 2016'!AD232/'Population 2016'!AD$5","v":0},{"$f":"'Population 2016'!AE232/'Population 2016'!AE$5","v":0},{"$f":"'Population 2016'!AF232/'Population 2016'!AF$5","v":0},{"$f":"'Population 2016'!AG232/'Population 2016'!AG$5","v":0},{"$f":"'Population 2016'!AH232/'Population 2016'!AH$5","v":0},{"$f":"'Population 2016'!AI232/'Population 2016'!AI$5","v":0},{"$f":"'Population 2016'!AJ232/'Population 2016'!AJ$5","v":0},{"$f":"'Population 2016'!AK232/'Population 2016'!AK$5","v":0},{"$f":"'Population 2016'!AL232/'Population 2016'!AL$5","v":0},{"$f":"'Population 2016'!AM232/'Population 2016'!AM$5","v":0},{"$f":"'Population 2016'!AN232/'Population 2016'!AN$5","v":0},{"$f":"'Population 2016'!AO232/'Population 2016'!AO$5","v":0},{"$f":"'Population 2016'!AP232/'Population 2016'!AP$5","v":0},{"$f":"'Population 2016'!AQ232/'Population 2016'!AQ$5","v":0},{"$f":"'Population 2016'!AR232/'Population 2016'!AR$5","v":0},{"$f":"'Population 2016'!AS232/'Population 2016'!AS$5","v":0},{"$f":"'Population 2016'!AT232/'Population 2016'!AT$5","v":0},{"$f":"'Population 2016'!AU232/'Population 2016'!AU$5","v":0},{"$f":"'Population 2016'!AV232/'Population 2016'!AV$5","v":0},{"$f":"'Population 2016'!AW232/'Population 2016'!AW$5","v":0},{"$f":"'Population 2016'!AX232/'Population 2016'!AX$5","v":0},{"$f":"'Population 2016'!AY232/'Population 2016'!AY$5","v":0},{"$f":"'Population 2016'!AZ232/'Population 2016'!AZ$5","v":0},{"$f":"'Population 2016'!BA232/'Population 2016'!BA$5","v":0},{"$f":"'Population 2016'!BB232/'Population 2016'!BB$5","v":0},{"$f":"'Population 2016'!BC232/'Population 2016'!BC$5","v":0},230]
[null,"Male 10-15",{"$f":"'Population 2016'!C233/'Population 2016'!C$5","v":0},{"$f":"'Population 2016'!D233/'Population 2016'!D$5","v":0},{"$f":"'Population 2016'!E233/'Population 2016'!E$5","v":0},{"$f":"'Population 2016'!F233/'Population 2016'!F$5","v":0},{"$f":"'Population 2016'!G233/'Population 2016'!G$5","v":0},{"$f":"'Population 2016'!H233/'Population 2016'!H$5","v":0},{"$f":"'Population 2016'!I233/'Population 2016'!I$5","v":0},{"$f":"'Population 2016'!J233/'Population 2016'!J$5","v":0},{"$f":"'Population 2016'!K233/'Population 2016'!K$5","v":0},{"$f":"'Population 2016'!L233/'Population 2016'!L$5","v":0},{"$f":"'Population 2016'!M233/'Population 2016'!M$5","v":0},{"$f":"'Population 2016'!N233/'Population 2016'!N$5","v":0},{"$f":"'Population 2016'!O233/'Population 2016'!O$5","v":0},{"$f":"'Population 2016'!P233/'Population 2016'!P$5","v":0},{"$f":"'Population 2016'!Q233/'Population 2016'!Q$5","v":0},{"$f":"'Population 2016'!R233/'Population 2016'!R$5","v":0},{"$f":"'Population 2016'!S233/'Population 2016'!S$5","v":0},{"$f":"'Population 2016'!T233/'Population 2016'!T$5","v":0},{"$f":"'Population 2016'!U233/'Population 2016'!U$5","v":0},{"$f":"'Population 2016'!V233/'Population 2016'!V$5","v":0},{"$f":"'Population 2016'!W233/'Population 2016'!W$5","v":0},{"$f":"'Population 2016'!X233/'Population 2016'!X$5","v":0},{"$f":"'Population 2016'!Y233/'Population 2016'!Y$5","v":0},{"$f":"'Population 2016'!Z233/'Population 2016'!Z$5","v":0},{"$f":"'Population 2016'!AA233/'Population 2016'!AA$5","v":0},{"$f":"'Population 2016'!AB233/'Population 2016'!AB$5","v":0},{"$f":"'Population 2016'!AC233/'Population 2016'!AC$5","v":0},{"$f":"'Population 2016'!AD233/'Population 2016'!AD$5","v":0},{"$f":"'Population 2016'!AE233/'Population 2016'!AE$5","v":0},{"$f":"'Population 2016'!AF233/'Population 2016'!AF$5","v":0},{"$f":"'Population 2016'!AG233/'Population 2016'!AG$5","v":0},{"$f":"'Population 2016'!AH233/'Population 2016'!AH$5","v":0},{"$f":"'Population 2016'!AI233/'Population 2016'!AI$5","v":0},{"$f":"'Population 2016'!AJ233/'Population 2016'!AJ$5","v":0},{"$f":"'Population 2016'!AK233/'Population 2016'!AK$5","v":0},{"$f":"'Population 2016'!AL233/'Population 2016'!AL$5","v":0},{"$f":"'Population 2016'!AM233/'Population 2016'!AM$5","v":0},{"$f":"'Population 2016'!AN233/'Population 2016'!AN$5","v":0},{"$f":"'Population 2016'!AO233/'Population 2016'!AO$5","v":0},{"$f":"'Population 2016'!AP233/'Population 2016'!AP$5","v":0},{"$f":"'Population 2016'!AQ233/'Population 2016'!AQ$5","v":0},{"$f":"'Population 2016'!AR233/'Population 2016'!AR$5","v":0},{"$f":"'Population 2016'!AS233/'Population 2016'!AS$5","v":0},{"$f":"'Population 2016'!AT233/'Population 2016'!AT$5","v":0},{"$f":"'Population 2016'!AU233/'Population 2016'!AU$5","v":0},{"$f":"'Population 2016'!AV233/'Population 2016'!AV$5","v":0},{"$f":"'Population 2016'!AW233/'Population 2016'!AW$5","v":0},{"$f":"'Population 2016'!AX233/'Population 2016'!AX$5","v":0},{"$f":"'Population 2016'!AY233/'Population 2016'!AY$5","v":0},{"$f":"'Population 2016'!AZ233/'Population 2016'!AZ$5","v":0},{"$f":"'Population 2016'!BA233/'Population 2016'!BA$5","v":0},{"$f":"'Population 2016'!BB233/'Population 2016'!BB$5","v":0},{"$f":"'Population 2016'!BC233/'Population 2016'!BC$5","v":0},231]
[null,"Male 16-19",{"$f":"'Population 2016'!C234/'Population 2016'!C$5","v":9.3686271102410897E-3},{"$f":"'Population 2016'!D234/'Population 2016'!D$5","v":9.8735365746310255E-3},{"$f":"'Population 2016'!E234/'Population 2016'!E$5","v":1.0336631992461993E-2},{"$f":"'Population 2016'!F234/'Population 2016'!F$5","v":5.1815606489827451E-3},{"$f":"'Population 2016'!G234/'Population 2016'!G$5","v":4.5471769609700648E-3},{"$f":"'Population 2016'!H234/'Population 2016'!H$5","v":3.7449783245193944E-3},{"$f":"'Population 2016'!I234/'Population 2016'!I$5","v":3.0566954191441251E-3},{"$f":"'Population 2016'!J234/'Population 2016'!J$5","v":9.9184793876417078E-3},{"$f":"'Population 2016'!K234/'Population 2016'!K$5","v":3.7093039739167417E-3},{"$f":"'Population 2016'!L234/'Population 2016'!L$5","v":2.2635934744968467E-3},{"$f":"'Population 2016'!M234/'Population 2016'!M$5","v":2.2635934744968467E-3},{"$f":"'Population 2016'!N234/'Population 2016'!N$5","v":5.111677289203591E-3},{"$f":"'Population 2016'!O234/'Population 2016'!O$5","v":3.3286771480369719E-3},{"$f":"'Population 2016'!P234/'Population 2016'!P$5","v":1.6431871971148426E-2},{"$f":"'Population 2016'!Q234/'Population 2016'!Q$5","v":4.1832645914854118E-3},{"$f":"'Population 2016'!R234/'Population 2016'!R$5","v":1.9920689838718263E-2},{"$f":"'Population 2016'!S234/'Population 2016'!S$5","v":7.9412714860954935E-3},{"$f":"'Population 2016'!T234/'Population 2016'!T$5","v":1.151217060720418E-2},{"$f":"'Population 2016'!U234/'Population 2016'!U$5","v":0},{"$f":"'Population 2016'!V234/'Population 2016'!V$5","v":5.4037139084574231E-3},{"$f":"'Population 2016'!W234/'Population 2016'!W$5","v":7.1251609698063136E-3},{"$f":"'Population 2016'!X234/'Population 2016'!X$5","v":7.1251609698063136E-3},{"$f":"'Population 2016'!Y234/'Population 2016'!Y$5","v":7.5674472583901684E-3},{"$f":"'Population 2016'!Z234/'Population 2016'!Z$5","v":2.5475093063457373E-3},{"$f":"'Population 2016'!AA234/'Population 2016'!AA$5","v":4.8798896062005491E-3},{"$f":"'Population 2016'!AB234/'Population 2016'!AB$5","v":9.5022670747059966E-3},{"$f":"'Population 2016'!AC234/'Population 2016'!AC$5","v":5.6007082853247996E-3},{"$f":"'Population 2016'!AD234/'Population 2016'!AD$5","v":3.1039487885667497E-3},{"$f":"'Population 2016'!AE234/'Population 2016'!AE$5","v":2.5564944198605737E-3},{"$f":"'Population 2016'!AF234/'Population 2016'!AF$5","v":3.0915863608258305E-3},{"$f":"'Population 2016'!AG234/'Population 2016'!AG$5","v":2.5564944198605737E-3},{"$f":"'Population 2016'!AH234/'Population 2016'!AH$5","v":3.5852614175714962E-3},{"$f":"'Population 2016'!AI234/'Population 2016'!AI$5","v":8.9205639163531369E-3},{"$f":"'Population 2016'!AJ234/'Population 2016'!AJ$5","v":4.8796810082815155E-3},{"$f":"'Population 2016'!AK234/'Population 2016'!AK$5","v":7.5933771670668691E-3},{"$f":"'Population 2016'!AL234/'Population 2016'!AL$5","v":2.7757577907451094E-3},{"$f":"'Population 2016'!AM234/'Population 2016'!AM$5","v":2.9809012245962381E-3},{"$f":"'Population 2016'!AN234/'Population 2016'!AN$5","v":1.636304134395113E-3},{"$f":"'Population 2016'!AO234/'Population 2016'!AO$5","v":1.636304134395113E-3},{"$f":"'Population 2016'!AP234/'Population 2016'!AP$5","v":4.5654138198880836E-3},{"$f":"'Population 2016'!AQ234/'Population 2016'!AQ$5","v":5.6927166109497452E-3},{"$f":"'Population 2016'!AR234/'Population 2016'!AR$5","v":5.9942750629736388E-3},{"$f":"'Population 2016'!AS234/'Population 2016'!AS$5","v":3.0566954191441251E-3},{"$f":"'Population 2016'!AT234/'Population 2016'!AT$5","v":0},{"$f":"'Population 2016'!AU234/'Population 2016'!AU$5","v":0},{"$f":"'Population 2016'!AV234/'Population 2016'!AV$5","v":5.3426248548199768E-3},{"$f":"'Population 2016'!AW234/'Population 2016'!AW$5","v":4.2215815485996703E-3},{"$f":"'Population 2016'!AX234/'Population 2016'!AX$5","v":1.32767675735078E-2},{"$f":"'Population 2016'!AY234/'Population 2016'!AY$5","v":5.9591199779688506E-3},{"$f":"'Population 2016'!AZ234/'Population 2016'!AZ$5","v":4.9329521201626871E-3},{"$f":"'Population 2016'!BA234/'Population 2016'!BA$5","v":1.4575685597063269E-3},{"$f":"'Population 2016'!BB234/'Population 2016'!BB$5","v":6.0142380699198328E-3},{"$f":"'Population 2016'!BC234/'Population 2016'!BC$5","v":0},232]
[null,"Male 20-24",{"$f":"'Population 2016'!C235/'Population 2016'!C$5","v":1.5593934158944662E-2},{"$f":"'Population 2016'!D235/'Population 2016'!D$5","v":1.3282082880979627E-2},{"$f":"'Population 2016'!E235/'Population 2016'!E$5","v":1.1161687425873926E-2},{"$f":"'Population 2016'!F235/'Population 2016'!F$5","v":5.4081895441668816E-3},{"$f":"'Population 2016'!G235/'Population 2016'!G$5","v":1.2044605640664754E-2},{"$f":"'Population 2016'!H235/'Population 2016'!H$5","v":4.0919157104272515E-3},{"$f":"'Population 2016'!I235/'Population 2016'!I$5","v":2.5123523992965414E-3},{"$f":"'Population 2016'!J235/'Population 2016'!J$5","v":1.1237073219276349E-2},{"$f":"'Population 2016'!K235/'Population 2016'!K$5","v":3.8746869536455133E-3},{"$f":"'Population 2016'!L235/'Population 2016'!L$5","v":2.4859816053246072E-3},{"$f":"'Population 2016'!M235/'Population 2016'!M$5","v":2.4859816053246072E-3},{"$f":"'Population 2016'!N235/'Population 2016'!N$5","v":6.4860433528102172E-3},{"$f":"'Population 2016'!O235/'Population 2016'!O$5","v":3.774482123220495E-3},{"$f":"'Population 2016'!P235/'Population 2016'!P$5","v":1.9519891806604305E-2},{"$f":"'Population 2016'!Q235/'Population 2016'!Q$5","v":5.3113359419983313E-3},{"$f":"'Population 2016'!R235/'Population 2016'!R$5","v":2.1836908500558899E-2},{"$f":"'Population 2016'!S235/'Population 2016'!S$5","v":1.2913282409867407E-2},{"$f":"'Population 2016'!T235/'Population 2016'!T$5","v":2.1018785219378045E-2},{"$f":"'Population 2016'!U235/'Population 2016'!U$5","v":0},{"$f":"'Population 2016'!V235/'Population 2016'!V$5","v":6.3501270788652205E-3},{"$f":"'Population 2016'!W235/'Population 2016'!W$5","v":1.1687878728452925E-2},{"$f":"'Population 2016'!X235/'Population 2016'!X$5","v":1.1687878728452925E-2},{"$f":"'Population 2016'!Y235/'Population 2016'!Y$5","v":8.6922306481613965E-3},{"$f":"'Population 2016'!Z235/'Population 2016'!Z$5","v":6.0822752587677102E-3},{"$f":"'Population 2016'!AA235/'Population 2016'!AA$5","v":6.671729261465747E-3},{"$f":"'Population 2016'!AB235/'Population 2016'!AB$5","v":1.2730417694441318E-2},{"$f":"'Population 2016'!AC235/'Population 2016'!AC$5","v":8.0695708295667745E-3},{"$f":"'Population 2016'!AD235/'Population 2016'!AD$5","v":5.1062562804719191E-3},{"$f":"'Population 2016'!AE235/'Population 2016'!AE$5","v":2.4743580529574226E-3},{"$f":"'Population 2016'!AF235/'Population 2016'!AF$5","v":2.8201299974362454E-3},{"$f":"'Population 2016'!AG235/'Population 2016'!AG$5","v":2.4743580529574226E-3},{"$f":"'Population 2016'!AH235/'Population 2016'!AH$5","v":4.1611324224664001E-3},{"$f":"'Population 2016'!AI235/'Population 2016'!AI$5","v":1.478421121707936E-2},{"$f":"'Population 2016'!AJ235/'Population 2016'!AJ$5","v":5.4791846750132447E-3},{"$f":"'Population 2016'!AK235/'Population 2016'!AK$5","v":9.8940195868901099E-3},{"$f":"'Population 2016'!AL235/'Population 2016'!AL$5","v":2.9265177985491565E-3},{"$f":"'Population 2016'!AM235/'Population 2016'!AM$5","v":3.3503446327478982E-3},{"$f":"'Population 2016'!AN235/'Population 2016'!AN$5","v":2.563543143885677E-3},{"$f":"'Population 2016'!AO235/'Population 2016'!AO$5","v":2.563543143885677E-3},{"$f":"'Population 2016'!AP235/'Population 2016'!AP$5","v":5.2708336635860688E-3},{"$f":"'Population 2016'!AQ235/'Population 2016'!AQ$5","v":6.5969748451800295E-3},{"$f":"'Population 2016'!AR235/'Population 2016'!AR$5","v":8.4809178790776919E-3},{"$f":"'Population 2016'!AS235/'Population 2016'!AS$5","v":2.5123523992965414E-3},{"$f":"'Population 2016'!AT235/'Population 2016'!AT$5","v":0},{"$f":"'Population 2016'!AU235/'Population 2016'!AU$5","v":0},{"$f":"'Population 2016'!AV235/'Population 2016'!AV$5","v":5.8177594762960621E-3},{"$f":"'Population 2016'!AW235/'Population 2016'!AW$5","v":5.0147965098541704E-3},{"$f":"'Population 2016'!AX235/'Population 2016'!AX$5","v":1.5219085832577278E-2},{"$f":"'Population 2016'!AY235/'Population 2016'!AY$5","v":8.5263608824699359E-3},{"$f":"'Population 2016'!AZ235/'Population 2016'!AZ$5","v":5.7440847719911871E-3},{"$f":"'Population 2016'!BA235/'Population 2016'!BA$5","v":1.8489527099978407E-3},{"$f":"'Population 2016'!BB235/'Population 2016'!BB$5","v":6.4561568259185352E-3},{"$f":"'Population 2016'!BC235/'Population 2016'!BC$5","v":0},233]
[null,"Male 25-29",{"$f":"'Population 2016'!C236/'Population 2016'!C$5","v":2.2790348218529745E-2},{"$f":"'Population 2016'!D236/'Population 2016'!D$5","v":1.6497461928934011E-2},{"$f":"'Population 2016'!E236/'Population 2016'!E$5","v":1.0725720634355122E-2},{"$f":"'Population 2016'!F236/'Population 2016'!F$5","v":4.2338398145763583E-3},{"$f":"'Population 2016'!G236/'Population 2016'!G$5","v":9.4191522762951327E-3},{"$f":"'Population 2016'!H236/'Population 2016'!H$5","v":2.8565592241572178E-3},{"$f":"'Population 2016'!I236/'Population 2016'!I$5","v":1.7377104095134411E-3},{"$f":"'Population 2016'!J236/'Population 2016'!J$5","v":5.8714744201089708E-3},{"$f":"'Population 2016'!K236/'Population 2016'!K$5","v":2.7170060955441101E-3},{"$f":"'Population 2016'!L236/'Population 2016'!L$5","v":2.0729750766444806E-3},{"$f":"'Population 2016'!M236/'Population 2016'!M$5","v":2.0729750766444806E-3},{"$f":"'Population 2016'!N236/'Population 2016'!N$5","v":6.0279213316080079E-3},{"$f":"'Population 2016'!O236/'Population 2016'!O$5","v":3.0314738312479566E-3},{"$f":"'Population 2016'!P236/'Population 2016'!P$5","v":1.5789473684210527E-2},{"$f":"'Population 2016'!Q236/'Population 2016'!Q$5","v":4.0305049294367869E-3},{"$f":"'Population 2016'!R236/'Population 2016'!R$5","v":1.5303135146643956E-2},{"$f":"'Population 2016'!S236/'Population 2016'!S$5","v":1.1080884987934069E-2},{"$f":"'Population 2016'!T236/'Population 2016'!T$5","v":2.0599991624128094E-2},{"$f":"'Population 2016'!U236/'Population 2016'!U$5","v":0},{"$f":"'Population 2016'!V236/'Population 2016'!V$5","v":6.2356416147029865E-3},{"$f":"'Population 2016'!W236/'Population 2016'!W$5","v":6.5106975467220992E-3},{"$f":"'Population 2016'!X236/'Population 2016'!X$5","v":6.5106975467220992E-3},{"$f":"'Population 2016'!Y236/'Population 2016'!Y$5","v":6.0611119060110328E-3},{"$f":"'Population 2016'!Z236/'Population 2016'!Z$5","v":6.4520125517099867E-3},{"$f":"'Population 2016'!AA236/'Population 2016'!AA$5","v":5.7608608271429492E-3},{"$f":"'Population 2016'!AB236/'Population 2016'!AB$5","v":1.5272816597238569E-2},{"$f":"'Population 2016'!AC236/'Population 2016'!AC$5","v":7.1655968607073342E-3},{"$f":"'Population 2016'!AD236/'Population 2016'!AD$5","v":4.4177304700584313E-3},{"$f":"'Population 2016'!AE236/'Population 2016'!AE$5","v":2.520559759340445E-3},{"$f":"'Population 2016'!AF236/'Population 2016'!AF$5","v":2.9860199972854364E-3},{"$f":"'Population 2016'!AG236/'Population 2016'!AG$5","v":2.520559759340445E-3},{"$f":"'Population 2016'!AH236/'Population 2016'!AH$5","v":3.2378811662316675E-3},{"$f":"'Population 2016'!AI236/'Population 2016'!AI$5","v":1.4212748271939803E-2},{"$f":"'Population 2016'!AJ236/'Population 2016'!AJ$5","v":5.242171597468143E-3},{"$f":"'Population 2016'!AK236/'Population 2016'!AK$5","v":8.9762769822611665E-3},{"$f":"'Population 2016'!AL236/'Population 2016'!AL$5","v":1.8800659796740036E-3},{"$f":"'Population 2016'!AM236/'Population 2016'!AM$5","v":2.8215334799033651E-3},{"$f":"'Population 2016'!AN236/'Population 2016'!AN$5","v":2.4544562015926695E-3},{"$f":"'Population 2016'!AO236/'Population 2016'!AO$5","v":2.4544562015926695E-3},{"$f":"'Population 2016'!AP236/'Population 2016'!AP$5","v":4.2325190621879108E-3},{"$f":"'Population 2016'!AQ236/'Population 2016'!AQ$5","v":5.1652326409820795E-3},{"$f":"'Population 2016'!AR236/'Population 2016'!AR$5","v":7.6368138089990094E-3},{"$f":"'Population 2016'!AS236/'Population 2016'!AS$5","v":1.7377104095134411E-3},{"$f":"'Population 2016'!AT236/'Population 2016'!AT$5","v":0},{"$f":"'Population 2016'!AU236/'Population 2016'!AU$5","v":0},{"$f":"'Population 2016'!AV236/'Population 2016'!AV$5","v":3.8327526132404181E-3},{"$f":"'Population 2016'!AW236/'Population 2016'!AW$5","v":3.676246262737202E-3},{"$f":"'Population 2016'!AX236/'Population 2016'!AX$5","v":7.5775968922907853E-3},{"$f":"'Population 2016'!AY236/'Population 2016'!AY$5","v":5.6408922615587042E-3},{"$f":"'Population 2016'!AZ236/'Population 2016'!AZ$5","v":4.8754249817351339E-3},{"$f":"'Population 2016'!BA236/'Population 2016'!BA$5","v":1.2416324767868712E-3},{"$f":"'Population 2016'!BB236/'Population 2016'!BB$5","v":5.6827990029208065E-3},{"$f":"'Population 2016'!BC236/'Population 2016'!BC$5","v":0},234]
[null,"Male 30-34",{"$f":"'Population 2016'!C237/'Population 2016'!C$5","v":1.9723694499956555E-2},{"$f":"'Population 2016'!D237/'Population 2016'!D$5","v":1.5971753567481393E-2},{"$f":"'Population 2016'!E237/'Population 2016'!E$5","v":1.2530529394943722E-2},{"$f":"'Population 2016'!F237/'Population 2016'!F$5","v":4.769508112284316E-3},{"$f":"'Population 2016'!G237/'Population 2016'!G$5","v":4.4389108428517293E-3},{"$f":"'Population 2016'!H237/'Population 2016'!H$5","v":2.5809547587163965E-3},{"$f":"'Population 2016'!I237/'Population 2016'!I$5","v":1.9366049744577506E-3},{"$f":"'Population 2016'!J237/'Population 2016'!J$5","v":4.8514301352595305E-3},{"$f":"'Population 2016'!K237/'Population 2016'!K$5","v":2.7878845154278692E-3},{"$f":"'Population 2016'!L237/'Population 2016'!L$5","v":2.3986148396422727E-3},{"$f":"'Population 2016'!M237/'Population 2016'!M$5","v":2.3986148396422727E-3},{"$f":"'Population 2016'!N237/'Population 2016'!N$5","v":4.1552471045884542E-3},{"$f":"'Population 2016'!O237/'Population 2016'!O$5","v":3.2494229302265682E-3},{"$f":"'Population 2016'!P237/'Population 2016'!P$5","v":1.3332581990307676E-2},{"$f":"'Population 2016'!Q237/'Population 2016'!Q$5","v":4.383027226472074E-3},{"$f":"'Population 2016'!R237/'Population 2016'!R$5","v":1.2468728376004684E-2},{"$f":"'Population 2016'!S237/'Population 2016'!S$5","v":9.4197231632334229E-3},{"$f":"'Population 2016'!T237/'Population 2016'!T$5","v":1.6365523049934157E-2},{"$f":"'Population 2016'!U237/'Population 2016'!U$5","v":0},{"$f":"'Population 2016'!V237/'Population 2016'!V$5","v":7.4186580777127328E-3},{"$f":"'Population 2016'!W237/'Population 2016'!W$5","v":6.3570816909510452E-3},{"$f":"'Population 2016'!X237/'Population 2016'!X$5","v":6.3570816909510452E-3},{"$f":"'Population 2016'!Y237/'Population 2016'!Y$5","v":6.1882958935470028E-3},{"$f":"'Population 2016'!Z237/'Population 2016'!Z$5","v":5.0369446923340493E-3},{"$f":"'Population 2016'!AA237/'Population 2016'!AA$5","v":4.8479992452614574E-3},{"$f":"'Population 2016'!AB237/'Population 2016'!AB$5","v":1.4511325138429731E-2},{"$f":"'Population 2016'!AC237/'Population 2016'!AC$5","v":5.8613506653620757E-3},{"$f":"'Population 2016'!AD237/'Population 2016'!AD$5","v":3.2081581004131153E-3},{"$f":"'Population 2016'!AE237/'Population 2016'!AE$5","v":2.741301245392663E-3},{"$f":"'Population 2016'!AF237/'Population 2016'!AF$5","v":2.8502918155906437E-3},{"$f":"'Population 2016'!AG237/'Population 2016'!AG$5","v":2.741301245392663E-3},{"$f":"'Population 2016'!AH237/'Population 2016'!AH$5","v":3.0279668967054607E-3},{"$f":"'Population 2016'!AI237/'Population 2016'!AI$5","v":1.1678077697086359E-2},{"$f":"'Population 2016'!AJ237/'Population 2016'!AJ$5","v":5.3258232718958257E-3},{"$f":"'Population 2016'!AK237/'Population 2016'!AK$5","v":7.0025017914838519E-3},{"$f":"'Population 2016'!AL237/'Population 2016'!AL$5","v":1.7470424433763147E-3},{"$f":"'Population 2016'!AM237/'Population 2016'!AM$5","v":2.499175996320054E-3},{"$f":"'Population 2016'!AN237/'Population 2016'!AN$5","v":2.2362823170066545E-3},{"$f":"'Population 2016'!AO237/'Population 2016'!AO$5","v":2.2362823170066545E-3},{"$f":"'Population 2016'!AP237/'Population 2016'!AP$5","v":4.5020052946118608E-3},{"$f":"'Population 2016'!AQ237/'Population 2016'!AQ$5","v":4.6034964651723567E-3},{"$f":"'Population 2016'!AR237/'Population 2016'!AR$5","v":6.7198614858414857E-3},{"$f":"'Population 2016'!AS237/'Population 2016'!AS$5","v":1.9366049744577506E-3},{"$f":"'Population 2016'!AT237/'Population 2016'!AT$5","v":0},{"$f":"'Population 2016'!AU237/'Population 2016'!AU$5","v":0},{"$f":"'Population 2016'!AV237/'Population 2016'!AV$5","v":2.8613662760004223E-3},{"$f":"'Population 2016'!AW237/'Population 2016'!AW$5","v":3.5847214595155288E-3},{"$f":"'Population 2016'!AX237/'Population 2016'!AX$5","v":5.9675172827989825E-3},{"$f":"'Population 2016'!AY237/'Population 2016'!AY$5","v":5.344083718368471E-3},{"$f":"'Population 2016'!AZ237/'Population 2016'!AZ$5","v":4.4526005142926173E-3},{"$f":"'Population 2016'!BA237/'Population 2016'!BA$5","v":1.1336644353271432E-3},{"$f":"'Population 2016'!BB237/'Population 2016'!BB$5","v":5.1994503635472266E-3},{"$f":"'Population 2016'!BC237/'Population 2016'!BC$5","v":0},235]
[null,"Male 35-39",{"$f":"'Population 2016'!C238/'Population 2016'!C$5","v":1.6672374049976232E-2},{"$f":"'Population 2016'!D238/'Population 2016'!D$5","v":1.5536515947302015E-2},{"$f":"'Population 2016'!E238/'Population 2016'!E$5","v":1.449472386425963E-2},{"$f":"'Population 2016'!F238/'Population 2016'!F$5","v":5.1815606489827451E-3},{"$f":"'Population 2016'!G238/'Population 2016'!G$5","v":4.0058463703783898E-3},{"$f":"'Population 2016'!H238/'Population 2016'!H$5","v":3.5277371576425119E-3},{"$f":"'Population 2016'!I238/'Population 2016'!I$5","v":2.8263964492086088E-3},{"$f":"'Population 2016'!J238/'Population 2016'!J$5","v":5.9958700646028044E-3},{"$f":"'Population 2016'!K238/'Population 2016'!K$5","v":3.5439209941879697E-3},{"$f":"'Population 2016'!L238/'Population 2016'!L$5","v":2.5654059377630931E-3},{"$f":"'Population 2016'!M238/'Population 2016'!M$5","v":2.5654059377630931E-3},{"$f":"'Population 2016'!N238/'Population 2016'!N$5","v":4.5249596129270783E-3},{"$f":"'Population 2016'!O238/'Population 2016'!O$5","v":3.8042024548993968E-3},{"$f":"'Population 2016'!P238/'Population 2016'!P$5","v":1.5845824411134905E-2},{"$f":"'Population 2016'!Q238/'Population 2016'!Q$5","v":5.2878344555293121E-3},{"$f":"'Population 2016'!R238/'Population 2016'!R$5","v":1.8816202693351786E-2},{"$f":"'Population 2016'!S238/'Population 2016'!S$5","v":9.5697749752414515E-3},{"$f":"'Population 2016'!T238/'Population 2016'!T$5","v":1.5423237460621769E-2},{"$f":"'Population 2016'!U238/'Population 2016'!U$5","v":0},{"$f":"'Population 2016'!V238/'Population 2016'!V$5","v":8.1284679555185813E-3},{"$f":"'Population 2016'!W238/'Population 2016'!W$5","v":6.9159819321606237E-3},{"$f":"'Population 2016'!X238/'Population 2016'!X$5","v":6.9159819321606237E-3},{"$f":"'Population 2016'!Y238/'Population 2016'!Y$5","v":7.1064053035722798E-3},{"$f":"'Population 2016'!Z238/'Population 2016'!Z$5","v":4.2723047409612787E-3},{"$f":"'Population 2016'!AA238/'Population 2016'!AA$5","v":5.4884639941215436E-3},{"$f":"'Population 2016'!AB238/'Population 2016'!AB$5","v":1.3970911845081523E-2},{"$f":"'Population 2016'!AC238/'Population 2016'!AC$5","v":6.3123033546329185E-3},{"$f":"'Population 2016'!AD238/'Population 2016'!AD$5","v":3.7329264207823141E-3},{"$f":"'Population 2016'!AE238/'Population 2016'!AE$5","v":3.6294007125329828E-3},{"$f":"'Population 2016'!AF238/'Population 2016'!AF$5","v":2.8201299974362454E-3},{"$f":"'Population 2016'!AG238/'Population 2016'!AG$5","v":3.6294007125329828E-3},{"$f":"'Population 2016'!AH238/'Population 2016'!AH$5","v":4.0088052534296833E-3},{"$f":"'Population 2016'!AI238/'Population 2016'!AI$5","v":1.1560503981100709E-2},{"$f":"'Population 2016'!AJ238/'Population 2016'!AJ$5","v":6.0089786130552384E-3},{"$f":"'Population 2016'!AK238/'Population 2016'!AK$5","v":5.9213255723319464E-3},{"$f":"'Population 2016'!AL238/'Population 2016'!AL$5","v":2.4919742466433729E-3},{"$f":"'Population 2016'!AM238/'Population 2016'!AM$5","v":3.3177466849698108E-3},{"$f":"'Population 2016'!AN238/'Population 2016'!AN$5","v":3.3271517399367295E-3},{"$f":"'Population 2016'!AO238/'Population 2016'!AO$5","v":3.3271517399367295E-3},{"$f":"'Population 2016'!AP238/'Population 2016'!AP$5","v":5.2153512039693735E-3},{"$f":"'Population 2016'!AQ238/'Population 2016'!AQ$5","v":5.4940538170658191E-3},{"$f":"'Population 2016'!AR238/'Population 2016'!AR$5","v":7.1099449449884304E-3},{"$f":"'Population 2016'!AS238/'Population 2016'!AS$5","v":2.8263964492086088E-3},{"$f":"'Population 2016'!AT238/'Population 2016'!AT$5","v":0},{"$f":"'Population 2016'!AU238/'Population 2016'!AU$5","v":0},{"$f":"'Population 2016'!AV238/'Population 2016'!AV$5","v":4.4662654418751984E-3},{"$f":"'Population 2016'!AW238/'Population 2016'!AW$5","v":4.7364085667215812E-3},{"$f":"'Population 2016'!AX238/'Population 2016'!AX$5","v":7.3220287003079596E-3},{"$f":"'Population 2016'!AY238/'Population 2016'!AY$5","v":5.8749732260334753E-3},{"$f":"'Population 2016'!AZ238/'Population 2016'!AZ$5","v":4.9588393324550856E-3},{"$f":"'Population 2016'!BA238/'Population 2016'!BA$5","v":1.1741524508745412E-3},{"$f":"'Population 2016'!BB238/'Population 2016'!BB$5","v":6.5321116121058115E-3},{"$f":"'Population 2016'!BC238/'Population 2016'!BC$5","v":0},236]
[null,"Male 40-44",{"$f":"'Population 2016'!C239/'Population 2016'!C$5","v":1.5123713922096773E-2},{"$f":"'Population 2016'!D239/'Population 2016'!D$5","v":1.564165761959254E-2},{"$f":"'Population 2016'!E239/'Population 2016'!E$5","v":1.6116707841308087E-2},{"$f":"'Population 2016'!F239/'Population 2016'!F$5","v":6.737058975019315E-3},{"$f":"'Population 2016'!G239/'Population 2016'!G$5","v":4.6419098143236073E-3},{"$f":"'Population 2016'!H239/'Population 2016'!H$5","v":4.6042157755996019E-3},{"$f":"'Population 2016'!I239/'Population 2016'!I$5","v":3.9255506239008458E-3},{"$f":"'Population 2016'!J239/'Population 2016'!J$5","v":8.3925594818506748E-3},{"$f":"'Population 2016'!K239/'Population 2016'!K$5","v":5.0087416717856633E-3},{"$f":"'Population 2016'!L239/'Population 2016'!L$5","v":2.7877940685908536E-3},{"$f":"'Population 2016'!M239/'Population 2016'!M$5","v":2.7877940685908536E-3},{"$f":"'Population 2016'!N239/'Population 2016'!N$5","v":4.5490712982535104E-3},{"$f":"'Population 2016'!O239/'Population 2016'!O$5","v":4.7750666230768467E-3},{"$f":"'Population 2016'!P239/'Population 2016'!P$5","v":1.955370224275893E-2},{"$f":"'Population 2016'!Q239/'Population 2016'!Q$5","v":7.1797041162853549E-3},{"$f":"'Population 2016'!R239/'Population 2016'!R$5","v":2.2968009794006494E-2},{"$f":"'Population 2016'!S239/'Population 2016'!S$5","v":1.0433896880864157E-2},{"$f":"'Population 2016'!T239/'Population 2016'!T$5","v":1.5246413498182902E-2},{"$f":"'Population 2016'!U239/'Population 2016'!U$5","v":0},{"$f":"'Population 2016'!V239/'Population 2016'!V$5","v":9.2733225971409171E-3},{"$f":"'Population 2016'!W239/'Population 2016'!W$5","v":8.4325299550918748E-3},{"$f":"'Population 2016'!X239/'Population 2016'!X$5","v":8.4325299550918748E-3},{"$f":"'Population 2016'!Y239/'Population 2016'!Y$5","v":8.8512106325813588E-3},{"$f":"'Population 2016'!Z239/'Population 2016'!Z$5","v":3.8599799064235564E-3},{"$f":"'Population 2016'!AA239/'Population 2016'!AA$5","v":6.1794218144685239E-3},{"$f":"'Population 2016'!AB239/'Population 2016'!AB$5","v":1.427591783261517E-2},{"$f":"'Population 2016'!AC239/'Population 2016'!AC$5","v":6.9649435998849867E-3},{"$f":"'Population 2016'!AD239/'Population 2016'!AD$5","v":3.859466299452901E-3},{"$f":"'Population 2016'!AE239/'Population 2016'!AE$5","v":3.5626649144241728E-3},{"$f":"'Population 2016'!AF239/'Population 2016'!AF$5","v":3.6948227239137973E-3},{"$f":"'Population 2016'!AG239/'Population 2016'!AG$5","v":3.5626649144241728E-3},{"$f":"'Population 2016'!AH239/'Population 2016'!AH$5","v":4.7685834502103784E-3},{"$f":"'Population 2016'!AI239/'Population 2016'!AI$5","v":1.2121029836381136E-2},{"$f":"'Population 2016'!AJ239/'Population 2016'!AJ$5","v":6.6084822797869668E-3},{"$f":"'Population 2016'!AK239/'Population 2016'!AK$5","v":7.2539381215191781E-3},{"$f":"'Population 2016'!AL239/'Population 2016'!AL$5","v":3.1216189851191005E-3},{"$f":"'Population 2016'!AM239/'Population 2016'!AM$5","v":3.8936437623826926E-3},{"$f":"'Population 2016'!AN239/'Population 2016'!AN$5","v":2.508999672739173E-3},{"$f":"'Population 2016'!AO239/'Population 2016'!AO$5","v":2.508999672739173E-3},{"$f":"'Population 2016'!AP239/'Population 2016'!AP$5","v":5.6750630122219935E-3},{"$f":"'Population 2016'!AQ239/'Population 2016'!AQ$5","v":6.4394146983065706E-3},{"$f":"'Population 2016'!AR239/'Population 2016'!AR$5","v":7.8223874934475555E-3},{"$f":"'Population 2016'!AS239/'Population 2016'!AS$5","v":3.9255506239008458E-3},{"$f":"'Population 2016'!AT239/'Population 2016'!AT$5","v":0},{"$f":"'Population 2016'!AU239/'Population 2016'!AU$5","v":0},{"$f":"'Population 2016'!AV239/'Population 2016'!AV$5","v":6.1873086263330166E-3},{"$f":"'Population 2016'!AW239/'Population 2016'!AW$5","v":5.6897919336140095E-3},{"$f":"'Population 2016'!AX239/'Population 2016'!AX$5","v":1.0222727679313032E-2},{"$f":"'Population 2016'!AY239/'Population 2016'!AY$5","v":6.9092133043664513E-3},{"$f":"'Population 2016'!AZ239/'Population 2016'!AZ$5","v":5.5686269997871499E-3},{"$f":"'Population 2016'!BA239/'Population 2016'!BA$5","v":1.2686244871518032E-3},{"$f":"'Population 2016'!BB239/'Population 2016'!BB$5","v":8.4793161307250928E-3},{"$f":"'Population 2016'!BC239/'Population 2016'!BC$5","v":0},237]
[null,"Male 45-49",{"$f":"'Population 2016'!C240/'Population 2016'!C$5","v":1.5256602249901611E-2},{"$f":"'Population 2016'!D240/'Population 2016'!D$5","v":1.6062224308754633E-2},{"$f":"'Population 2016'!E240/'Population 2016'!E$5","v":1.6801128825842986E-2},{"$f":"'Population 2016'!F240/'Population 2016'!F$5","v":7.437548287406644E-3},{"$f":"'Population 2016'!G240/'Population 2016'!G$5","v":3.9246467817896386E-3},{"$f":"'Population 2016'!H240/'Population 2016'!H$5","v":5.6839367990324666E-3},{"$f":"'Population 2016'!I240/'Population 2016'!I$5","v":5.24453563353153E-3},{"$f":"'Population 2016'!J240/'Population 2016'!J$5","v":1.0756076727233523E-2},{"$f":"'Population 2016'!K240/'Population 2016'!K$5","v":7.1114681283371926E-3},{"$f":"'Population 2016'!L240/'Population 2016'!L$5","v":3.7647133575842294E-3},{"$f":"'Population 2016'!M240/'Population 2016'!M$5","v":3.7647133575842294E-3},{"$f":"'Population 2016'!N240/'Population 2016'!N$5","v":6.2931498701987608E-3},{"$f":"'Population 2016'!O240/'Population 2016'!O$5","v":5.7558375684805974E-3},{"$f":"'Population 2016'!P240/'Population 2016'!P$5","v":2.3092527893609827E-2},{"$f":"'Population 2016'!Q240/'Population 2016'!Q$5","v":7.9552531697629873E-3},{"$f":"'Population 2016'!R240/'Population 2016'!R$5","v":2.6467770266673765E-2},{"$f":"'Population 2016'!S240/'Population 2016'!S$5","v":1.1414529605222509E-2},{"$f":"'Population 2016'!T240/'Population 2016'!T$5","v":1.5972322396616147E-2},{"$f":"'Population 2016'!U240/'Population 2016'!U$5","v":0},{"$f":"'Population 2016'!V240/'Population 2016'!V$5","v":1.0059456117721587E-2},{"$f":"'Population 2016'!W240/'Population 2016'!W$5","v":9.2659776832114214E-3},{"$f":"'Population 2016'!X240/'Population 2016'!X$5","v":9.2659776832114214E-3},{"$f":"'Population 2016'!Y240/'Population 2016'!Y$5","v":1.0393316481454985E-2},{"$f":"'Population 2016'!Z240/'Population 2016'!Z$5","v":3.9974215179361299E-3},{"$f":"'Population 2016'!AA240/'Population 2016'!AA$5","v":7.1487559105129894E-3},{"$f":"'Population 2016'!AB240/'Population 2016'!AB$5","v":1.4812237085862255E-2},{"$f":"'Population 2016'!AC240/'Population 2016'!AC$5","v":8.0302676135294085E-3},{"$f":"'Population 2016'!AD240/'Population 2016'!AD$5","v":4.2614165022888829E-3},{"$f":"'Population 2016'!AE240/'Population 2016'!AE$5","v":4.3891621063871294E-3},{"$f":"'Population 2016'!AF240/'Population 2016'!AF$5","v":4.3583827233105608E-3},{"$f":"'Population 2016'!AG240/'Population 2016'!AG$5","v":4.3891621063871294E-3},{"$f":"'Population 2016'!AH240/'Population 2016'!AH$5","v":5.5655146150488093E-3},{"$f":"'Population 2016'!AI240/'Population 2016'!AI$5","v":1.3119039286026774E-2},{"$f":"'Population 2016'!AJ240/'Population 2016'!AJ$5","v":8.0863285280093691E-3},{"$f":"'Population 2016'!AK240/'Population 2016'!AK$5","v":8.3854016066781493E-3},{"$f":"'Population 2016'!AL240/'Population 2016'!AL$5","v":4.1946755112537912E-3},{"$f":"'Population 2016'!AM240/'Population 2016'!AM$5","v":4.5093827759687928E-3},{"$f":"'Population 2016'!AN240/'Population 2016'!AN$5","v":3.708956037962256E-3},{"$f":"'Population 2016'!AO240/'Population 2016'!AO$5","v":3.708956037962256E-3},{"$f":"'Population 2016'!AP240/'Population 2016'!AP$5","v":6.9036031894488216E-3},{"$f":"'Population 2016'!AQ240/'Population 2016'!AQ$5","v":8.2684824902723737E-3},{"$f":"'Population 2016'!AR240/'Population 2016'!AR$5","v":8.7683008958107361E-3},{"$f":"'Population 2016'!AS240/'Population 2016'!AS$5","v":5.24453563353153E-3},{"$f":"'Population 2016'!AT240/'Population 2016'!AT$5","v":0},{"$f":"'Population 2016'!AU240/'Population 2016'!AU$5","v":0},{"$f":"'Population 2016'!AV240/'Population 2016'!AV$5","v":7.3804244535951857E-3},{"$f":"'Population 2016'!AW240/'Population 2016'!AW$5","v":6.6774971017145648E-3},{"$f":"'Population 2016'!AX240/'Population 2016'!AX$5","v":1.2727295960744726E-2},{"$f":"'Population 2016'!AY240/'Population 2016'!AY$5","v":7.9725222606407391E-3},{"$f":"'Population 2016'!AZ240/'Population 2016'!AZ$5","v":6.8342240451933203E-3},{"$f":"'Population 2016'!BA240/'Population 2016'!BA$5","v":2.2268408551068884E-3},{"$f":"'Population 2016'!BB240/'Population 2016'!BB$5","v":1.0177941349095103E-2},{"$f":"'Population 2016'!BC240/'Population 2016'!BC$5","v":0},238]
[null,"Male 50-54",{"$f":"'Population 2016'!C241/'Population 2016'!C$5","v":1.5583711979882751E-2},{"$f":"'Population 2016'!D241/'Population 2016'!D$5","v":1.5983979343329128E-2},{"$f":"'Population 2016'!E241/'Population 2016'!E$5","v":1.6351098589436477E-2},{"$f":"'Population 2016'!F241/'Population 2016'!F$5","v":8.7664177182590775E-3},{"$f":"'Population 2016'!G241/'Population 2016'!G$5","v":4.3035781952038112E-3},{"$f":"'Population 2016'!H241/'Population 2016'!H$5","v":6.192994458729042E-3},{"$f":"'Population 2016'!I241/'Population 2016'!I$5","v":4.3338078887865334E-3},{"$f":"'Population 2016'!J241/'Population 2016'!J$5","v":1.036630370781951E-2},{"$f":"'Population 2016'!K241/'Population 2016'!K$5","v":6.827954448802155E-3},{"$f":"'Population 2016'!L241/'Population 2016'!L$5","v":4.3842231506044192E-3},{"$f":"'Population 2016'!M241/'Population 2016'!M$5","v":4.3842231506044192E-3},{"$f":"'Population 2016'!N241/'Population 2016'!N$5","v":6.2127775857773208E-3},{"$f":"'Population 2016'!O241/'Population 2016'!O$5","v":5.2604987071655724E-3},{"$f":"'Population 2016'!P241/'Population 2016'!P$5","v":2.5774822495210188E-2},{"$f":"'Population 2016'!Q241/'Population 2016'!Q$5","v":9.1773304661519842E-3},{"$f":"'Population 2016'!R241/'Population 2016'!R$5","v":2.5855644860808005E-2},{"$f":"'Population 2016'!S241/'Population 2016'!S$5","v":1.1128548504689561E-2},{"$f":"'Population 2016'!T241/'Population 2016'!T$5","v":1.5830397900448108E-2},{"$f":"'Population 2016'!U241/'Population 2016'!U$5","v":0},{"$f":"'Population 2016'!V241/'Population 2016'!V$5","v":9.7694262751772624E-3},{"$f":"'Population 2016'!W241/'Population 2016'!W$5","v":8.6809300622961317E-3},{"$f":"'Population 2016'!X241/'Population 2016'!X$5","v":8.6809300622961317E-3},{"$f":"'Population 2016'!Y241/'Population 2016'!Y$5","v":1.0055484014562566E-2},{"$f":"'Population 2016'!Z241/'Population 2016'!Z$5","v":3.9316044081977143E-3},{"$f":"'Population 2016'!AA241/'Population 2016'!AA$5","v":7.5527004824081471E-3},{"$f":"'Population 2016'!AB241/'Population 2016'!AB$5","v":1.4593205940452186E-2},{"$f":"'Population 2016'!AC241/'Population 2016'!AC$5","v":8.5184549285198616E-3},{"$f":"'Population 2016'!AD241/'Population 2016'!AD$5","v":4.3544605307231383E-3},{"$f":"'Population 2016'!AE241/'Population 2016'!AE$5","v":4.3737615375927883E-3},{"$f":"'Population 2016'!AF241/'Population 2016'!AF$5","v":6.4546290850412465E-3},{"$f":"'Population 2016'!AG241/'Population 2016'!AG$5","v":4.3737615375927883E-3},{"$f":"'Population 2016'!AH241/'Population 2016'!AH$5","v":5.8181547978414126E-3},{"$f":"'Population 2016'!AI241/'Population 2016'!AI$5","v":1.3039745384548079E-2},{"$f":"'Population 2016'!AJ241/'Population 2016'!AJ$5","v":7.4589409698017457E-3},{"$f":"'Population 2016'!AK241/'Population 2016'!AK$5","v":7.4425153690456736E-3},{"$f":"'Population 2016'!AL241/'Population 2016'!AL$5","v":4.655823770419113E-3},{"$f":"'Population 2016'!AM241/'Population 2016'!AM$5","v":4.8715821957253224E-3},{"$f":"'Population 2016'!AN241/'Population 2016'!AN$5","v":3.436238682229737E-3},{"$f":"'Population 2016'!AO241/'Population 2016'!AO$5","v":3.436238682229737E-3},{"$f":"'Population 2016'!AP241/'Population 2016'!AP$5","v":8.6394115688854366E-3},{"$f":"'Population 2016'!AQ241/'Population 2016'!AQ$5","v":9.3919548418918176E-3},{"$f":"'Population 2016'!AR241/'Population 2016'!AR$5","v":8.9209035054713046E-3},{"$f":"'Population 2016'!AS241/'Population 2016'!AS$5","v":4.3338078887865334E-3},{"$f":"'Population 2016'!AT241/'Population 2016'!AT$5","v":0},{"$f":"'Population 2016'!AU241/'Population 2016'!AU$5","v":0},{"$f":"'Population 2016'!AV241/'Population 2016'!AV$5","v":9.0169992609017008E-3},{"$f":"'Population 2016'!AW241/'Population 2016'!AW$5","v":6.8147843065470741E-3},{"$f":"'Population 2016'!AX241/'Population 2016'!AX$5","v":1.2280051624774781E-2},{"$f":"'Population 2016'!AY241/'Population 2016'!AY$5","v":8.2157828707811881E-3},{"$f":"'Population 2016'!AZ241/'Population 2016'!AZ$5","v":7.8064326846189686E-3},{"$f":"'Population 2016'!BA241/'Population 2016'!BA$5","v":2.3752969121140144E-3},{"$f":"'Population 2016'!BB241/'Population 2016'!BB$5","v":9.791262437596239E-3},{"$f":"'Population 2016'!BC241/'Population 2016'!BC$5","v":0},239]
[null,"Male 55-59",{"$f":"'Population 2016'!C242/'Population 2016'!C$5","v":1.4643271506186974E-2},{"$f":"'Population 2016'!D242/'Population 2016'!D$5","v":1.4340835069393505E-2},{"$f":"'Population 2016'!E242/'Population 2016'!E$5","v":1.4063444887703393E-2},{"$f":"'Population 2016'!F242/'Population 2016'!F$5","v":7.5817666752510948E-3},{"$f":"'Population 2016'!G242/'Population 2016'!G$5","v":3.721647810317761E-3},{"$f":"'Population 2016'!H242/'Population 2016'!H$5","v":6.2902666230022731E-3},{"$f":"'Population 2016'!I242/'Population 2016'!I$5","v":3.6533791139770539E-3},{"$f":"'Population 2016'!J242/'Population 2016'!J$5","v":8.8320907590622218E-3},{"$f":"'Population 2016'!K242/'Population 2016'!K$5","v":5.6938997306620045E-3},{"$f":"'Population 2016'!L242/'Population 2016'!L$5","v":3.9315044557050498E-3},{"$f":"'Population 2016'!M242/'Population 2016'!M$5","v":3.9315044557050498E-3},{"$f":"'Population 2016'!N242/'Population 2016'!N$5","v":6.5503411803473693E-3},{"$f":"'Population 2016'!O242/'Population 2016'!O$5","v":5.3595664794285772E-3},{"$f":"'Population 2016'!P242/'Population 2016'!P$5","v":2.3498253127465344E-2},{"$f":"'Population 2016'!Q242/'Population 2016'!Q$5","v":6.9799414812986918E-3},{"$f":"'Population 2016'!R242/'Population 2016'!R$5","v":2.6055250971416404E-2},{"$f":"'Population 2016'!S242/'Population 2016'!S$5","v":1.0102900236728799E-2},{"$f":"'Population 2016'!T242/'Population 2016'!T$5","v":1.4599610056630201E-2},{"$f":"'Population 2016'!U242/'Population 2016'!U$5","v":0},{"$f":"'Population 2016'!V242/'Population 2016'!V$5","v":8.0903061341311699E-3},{"$f":"'Population 2016'!W242/'Population 2016'!W$5","v":8.3312088587322447E-3},{"$f":"'Population 2016'!X242/'Population 2016'!X$5","v":8.3312088587322447E-3},{"$f":"'Population 2016'!Y242/'Population 2016'!Y$5","v":8.4458116723104566E-3},{"$f":"'Population 2016'!Z242/'Population 2016'!Z$5","v":3.4495908692310819E-3},{"$f":"'Population 2016'!AA242/'Population 2016'!AA$5","v":6.9713657777892941E-3},{"$f":"'Population 2016'!AB242/'Population 2016'!AB$5","v":1.3014953481469351E-2},{"$f":"'Population 2016'!AC242/'Population 2016'!AC$5","v":7.9092550799406726E-3},{"$f":"'Population 2016'!AD242/'Population 2016'!AD$5","v":3.8966839108266031E-3},{"$f":"'Population 2016'!AE242/'Population 2016'!AE$5","v":3.9630797030770337E-3},{"$f":"'Population 2016'!AF242/'Population 2016'!AF$5","v":5.7609072674900839E-3},{"$f":"'Population 2016'!AG242/'Population 2016'!AG$5","v":3.9630797030770337E-3},{"$f":"'Population 2016'!AH242/'Population 2016'!AH$5","v":5.2868673546157922E-3},{"$f":"'Population 2016'!AI242/'Population 2016'!AI$5","v":1.1686280514480707E-2},{"$f":"'Population 2016'!AJ242/'Population 2016'!AJ$5","v":6.5248306053592841E-3},{"$f":"'Population 2016'!AK242/'Population 2016'!AK$5","v":6.1979055353708059E-3},{"$f":"'Population 2016'!AL242/'Population 2016'!AL$5","v":4.1148613894751778E-3},{"$f":"'Population 2016'!AM242/'Population 2016'!AM$5","v":4.2232452343611343E-3},{"$f":"'Population 2016'!AN242/'Population 2016'!AN$5","v":3.9816733936947745E-3},{"$f":"'Population 2016'!AO242/'Population 2016'!AO$5","v":3.9816733936947745E-3},{"$f":"'Population 2016'!AP242/'Population 2016'!AP$5","v":7.0859026996179632E-3},{"$f":"'Population 2016'!AQ242/'Population 2016'!AQ$5","v":8.8987230777662074E-3},{"$f":"'Population 2016'!AR242/'Population 2016'!AR$5","v":8.1140032832952725E-3},{"$f":"'Population 2016'!AS242/'Population 2016'!AS$5","v":3.6533791139770539E-3},{"$f":"'Population 2016'!AT242/'Population 2016'!AT$5","v":0},{"$f":"'Population 2016'!AU242/'Population 2016'!AU$5","v":0},{"$f":"'Population 2016'!AV242/'Population 2016'!AV$5","v":9.8722415795586532E-3},{"$f":"'Population 2016'!AW242/'Population 2016'!AW$5","v":6.4067362255171151E-3},{"$f":"'Population 2016'!AX242/'Population 2016'!AX$5","v":1.0529409509692424E-2},{"$f":"'Population 2016'!AY242/'Population 2016'!AY$5","v":7.6405250757320764E-3},{"$f":"'Population 2016'!AZ242/'Population 2016'!AZ$5","v":7.0326926727683784E-3},{"$f":"'Population 2016'!BA242/'Population 2016'!BA$5","v":1.9029367307277045E-3},{"$f":"'Population 2016'!BB242/'Population 2016'!BB$5","v":8.3619314611629372E-3},{"$f":"'Population 2016'!BC242/'Population 2016'!BC$5","v":0},240]
[null,"Male 60-64",{"$f":"'Population 2016'!C243/'Population 2016'!C$5","v":1.2977056319095542E-2},{"$f":"'Population 2016'!D243/'Population 2016'!D$5","v":1.2925090226225757E-2},{"$f":"'Population 2016'!E243/'Population 2016'!E$5","v":1.287742770217374E-2},{"$f":"'Population 2016'!F243/'Population 2016'!F$5","v":7.035797064125676E-3},{"$f":"'Population 2016'!G243/'Population 2016'!G$5","v":3.0720511016077518E-3},{"$f":"'Population 2016'!H243/'Population 2016'!H$5","v":5.9044203713851228E-3},{"$f":"'Population 2016'!I243/'Population 2016'!I$5","v":3.8522736789213634E-3},{"$f":"'Population 2016'!J243/'Population 2016'!J$5","v":8.3925594818506748E-3},{"$f":"'Population 2016'!K243/'Population 2016'!K$5","v":6.3554316495770917E-3},{"$f":"'Population 2016'!L243/'Population 2016'!L$5","v":3.7408860578526837E-3},{"$f":"'Population 2016'!M243/'Population 2016'!M$5","v":3.7408860578526837E-3},{"$f":"'Population 2016'!N243/'Population 2016'!N$5","v":5.3286824571414796E-3},{"$f":"'Population 2016'!O243/'Population 2016'!O$5","v":4.6462785191349401E-3},{"$f":"'Population 2016'!P243/'Population 2016'!P$5","v":2.0770877944325482E-2},{"$f":"'Population 2016'!Q243/'Population 2016'!Q$5","v":5.8988731037238106E-3},{"$f":"'Population 2016'!R243/'Population 2016'!R$5","v":2.2049821685207856E-2},{"$f":"'Population 2016'!S243/'Population 2016'!S$5","v":8.6103260361077624E-3},{"$f":"'Population 2016'!T243/'Population 2016'!T$5","v":1.2559154595329055E-2},{"$f":"'Population 2016'!U243/'Population 2016'!U$5","v":0},{"$f":"'Population 2016'!V243/'Population 2016'!V$5","v":6.5867303714671694E-3},{"$f":"'Population 2016'!W243/'Population 2016'!W$5","v":7.1709188842913078E-3},{"$f":"'Population 2016'!X243/'Population 2016'!X$5","v":7.1709188842913078E-3},{"$f":"'Population 2016'!Y243/'Population 2016'!Y$5","v":7.4521867696856967E-3},{"$f":"'Population 2016'!Z243/'Population 2016'!Z$5","v":3.0701745895625678E-3},{"$f":"'Population 2016'!AA243/'Population 2016'!AA$5","v":6.0379083378013058E-3},{"$f":"'Population 2016'!AB243/'Population 2016'!AB$5","v":1.1778553370930268E-2},{"$f":"'Population 2016'!AC243/'Population 2016'!AC$5","v":6.8284166389130799E-3},{"$f":"'Population 2016'!AD243/'Population 2016'!AD$5","v":3.4984554691279914E-3},{"$f":"'Population 2016'!AE243/'Population 2016'!AE$5","v":3.6602018501216645E-3},{"$f":"'Population 2016'!AF243/'Population 2016'!AF$5","v":4.7806481774721379E-3},{"$f":"'Population 2016'!AG243/'Population 2016'!AG$5","v":3.6602018501216645E-3},{"$f":"'Population 2016'!AH243/'Population 2016'!AH$5","v":4.6181139295765486E-3},{"$f":"'Population 2016'!AI243/'Population 2016'!AI$5","v":9.833810919590515E-3},{"$f":"'Population 2016'!AJ243/'Population 2016'!AJ$5","v":5.4931266207511919E-3},{"$f":"'Population 2016'!AK243/'Population 2016'!AK$5","v":5.8836101228266473E-3},{"$f":"'Population 2016'!AL243/'Population 2016'!AL$5","v":4.2035437470069707E-3},{"$f":"'Population 2016'!AM243/'Population 2016'!AM$5","v":3.5024683890456407E-3},{"$f":"'Population 2016'!AN243/'Population 2016'!AN$5","v":2.945347441911203E-3},{"$f":"'Population 2016'!AO243/'Population 2016'!AO$5","v":2.945347441911203E-3},{"$f":"'Population 2016'!AP243/'Population 2016'!AP$5","v":7.1096808965965472E-3},{"$f":"'Population 2016'!AQ243/'Population 2016'!AQ$5","v":7.2614676385159204E-3},{"$f":"'Population 2016'!AR243/'Population 2016'!AR$5","v":7.1291038127706333E-3},{"$f":"'Population 2016'!AS243/'Population 2016'!AS$5","v":3.8522736789213634E-3},{"$f":"'Population 2016'!AT243/'Population 2016'!AT$5","v":0},{"$f":"'Population 2016'!AU243/'Population 2016'!AU$5","v":0},{"$f":"'Population 2016'!AV243/'Population 2016'!AV$5","v":9.2704043923556127E-3},{"$f":"'Population 2016'!AW243/'Population 2016'!AW$5","v":5.7927573372383917E-3},{"$f":"'Population 2016'!AX243/'Population 2016'!AX$5","v":9.4943583321619798E-3},{"$f":"'Population 2016'!AY243/'Population 2016'!AY$5","v":6.7883479697683673E-3},{"$f":"'Population 2016'!AZ243/'Population 2016'!AZ$5","v":6.4516685746500912E-3},{"$f":"'Population 2016'!BA243/'Population 2016'!BA$5","v":1.8759447203627725E-3},{"$f":"'Population 2016'!BB243/'Population 2016'!BB$5","v":6.2075775256692656E-3},{"$f":"'Population 2016'!BC243/'Population 2016'!BC$5","v":0},241]
[null,"Male 65-69",{"$f":"'Population 2016'!C244/'Population 2016'!C$5","v":1.147439599699468E-2},{"$f":"'Population 2016'!D244/'Population 2016'!D$5","v":1.1746525434504074E-2},{"$f":"'Population 2016'!E244/'Population 2016'!E$5","v":1.1996118489210995E-2},{"$f":"'Population 2016'!F244/'Population 2016'!F$5","v":8.395570435230492E-3},{"$f":"'Population 2016'!G244/'Population 2016'!G$5","v":3.2750500730796299E-3},{"$f":"'Population 2016'!H244/'Population 2016'!H$5","v":6.5626286829673199E-3},{"$f":"'Population 2016'!I244/'Population 2016'!I$5","v":4.2186584038187754E-3},{"$f":"'Population 2016'!J244/'Population 2016'!J$5","v":9.2882081222062807E-3},{"$f":"'Population 2016'!K244/'Population 2016'!K$5","v":7.2059726881822045E-3},{"$f":"'Population 2016'!L244/'Population 2016'!L$5","v":4.0665258208504758E-3},{"$f":"'Population 2016'!M244/'Population 2016'!M$5","v":4.0665258208504758E-3},{"$f":"'Population 2016'!N244/'Population 2016'!N$5","v":5.2804590864886152E-3},{"$f":"'Population 2016'!O244/'Population 2016'!O$5","v":4.8741343953398516E-3},{"$f":"'Population 2016'!P244/'Population 2016'!P$5","v":2.0759607798940607E-2},{"$f":"'Population 2016'!Q244/'Population 2016'!Q$5","v":5.969377563130868E-3},{"$f":"'Population 2016'!R244/'Population 2016'!R$5","v":1.9840847394474902E-2},{"$f":"'Population 2016'!S244/'Population 2016'!S$5","v":8.7930361836704787E-3},{"$f":"'Population 2016'!T244/'Population 2016'!T$5","v":1.2519601866888783E-2},{"$f":"'Population 2016'!U244/'Population 2016'!U$5","v":0},{"$f":"'Population 2016'!V244/'Population 2016'!V$5","v":6.3959212645301137E-3},{"$f":"'Population 2016'!W244/'Population 2016'!W$5","v":7.9128507834408651E-3},{"$f":"'Population 2016'!X244/'Population 2016'!X$5","v":7.9128507834408651E-3},{"$f":"'Population 2016'!Y244/'Population 2016'!Y$5","v":7.7820702373571169E-3},{"$f":"'Population 2016'!Z244/'Population 2016'!Z$5","v":2.7256026621085092E-3},{"$f":"'Population 2016'!AA244/'Population 2016'!AA$5","v":5.5688542789888362E-3},{"$f":"'Population 2016'!AB244/'Population 2016'!AB$5","v":1.0793936726610238E-2},{"$f":"'Population 2016'!AC244/'Population 2016'!AC$5","v":6.4395216591749222E-3},{"$f":"'Population 2016'!AD244/'Population 2016'!AD$5","v":3.6808217648591312E-3},{"$f":"'Population 2016'!AE244/'Population 2016'!AE$5","v":3.8347416297908601E-3},{"$f":"'Population 2016'!AF244/'Population 2016'!AF$5","v":5.2933990860969098E-3},{"$f":"'Population 2016'!AG244/'Population 2016'!AG$5","v":3.8347416297908601E-3},{"$f":"'Population 2016'!AH244/'Population 2016'!AH$5","v":4.0050899566239102E-3},{"$f":"'Population 2016'!AI244/'Population 2016'!AI$5","v":9.7586184268089946E-3},{"$f":"'Population 2016'!AJ244/'Population 2016'!AJ$5","v":5.939268884365502E-3},{"$f":"'Population 2016'!AK244/'Population 2016'!AK$5","v":5.8961819393284131E-3},{"$f":"'Population 2016'!AL244/'Population 2016'!AL$5","v":4.4784590553555272E-3},{"$f":"'Population 2016'!AM244/'Population 2016'!AM$5","v":3.0497191143499789E-3},{"$f":"'Population 2016'!AN244/'Population 2016'!AN$5","v":3.436238682229737E-3},{"$f":"'Population 2016'!AO244/'Population 2016'!AO$5","v":3.436238682229737E-3},{"$f":"'Population 2016'!AP244/'Population 2016'!AP$5","v":8.3461471394829043E-3},{"$f":"'Population 2016'!AQ244/'Population 2016'!AQ$5","v":7.1039074916424616E-3},{"$f":"'Population 2016'!AR244/'Population 2016'!AR$5","v":7.0593744451447086E-3},{"$f":"'Population 2016'!AS244/'Population 2016'!AS$5","v":4.2186584038187754E-3},{"$f":"'Population 2016'!AT244/'Population 2016'!AT$5","v":0},{"$f":"'Population 2016'!AU244/'Population 2016'!AU$5","v":0},{"$f":"'Population 2016'!AV244/'Population 2016'!AV$5","v":1.0843627916798649E-2},{"$f":"'Population 2016'!AW244/'Population 2016'!AW$5","v":5.0109829763866007E-3},{"$f":"'Population 2016'!AX244/'Population 2016'!AX$5","v":1.0414403823300153E-2},{"$f":"'Population 2016'!AY244/'Population 2016'!AY$5","v":7.5670879104066582E-3},{"$f":"'Population 2016'!AZ244/'Population 2016'!AZ$5","v":7.2628012264785912E-3},{"$f":"'Population 2016'!BA244/'Population 2016'!BA$5","v":1.3091125026992011E-3},{"$f":"'Population 2016'!BB244/'Population 2016'!BB$5","v":5.6827990029208065E-3},{"$f":"'Population 2016'!BC244/'Population 2016'!BC$5","v":0},242]
[null,"Male 70-74",{"$f":"'Population 2016'!C245/'Population 2016'!C$5","v":7.4979683419114452E-3},{"$f":"'Population 2016'!D245/'Population 2016'!D$5","v":7.75847735297282E-3},{"$f":"'Population 2016'!E245/'Population 2016'!E$5","v":7.997412326140662E-3},{"$f":"'Population 2016'!F245/'Population 2016'!F$5","v":6.2219933041462788E-3},{"$f":"'Population 2016'!G245/'Population 2016'!G$5","v":2.7337194824879553E-3},{"$f":"'Population 2016'!H245/'Population 2016'!H$5","v":4.9641227834105565E-3},{"$f":"'Population 2016'!I245/'Population 2016'!I$5","v":2.7217150992379199E-3},{"$f":"'Population 2016'!J245/'Population 2016'!J$5","v":6.3192987402867738E-3},{"$f":"'Population 2016'!K245/'Population 2016'!K$5","v":4.6543495723668669E-3},{"$f":"'Population 2016'!L245/'Population 2016'!L$5","v":2.8989881340047339E-3},{"$f":"'Population 2016'!M245/'Population 2016'!M$5","v":2.8989881340047339E-3},{"$f":"'Population 2016'!N245/'Population 2016'!N$5","v":4.1230981908198776E-3},{"$f":"'Population 2016'!O245/'Population 2016'!O$5","v":3.1701687124161639E-3},{"$f":"'Population 2016'!P245/'Population 2016'!P$5","v":1.6488222698072805E-2},{"$f":"'Population 2016'!Q245/'Population 2016'!Q$5","v":4.9940658746665725E-3},{"$f":"'Population 2016'!R245/'Population 2016'!R$5","v":1.5196678554319476E-2},{"$f":"'Population 2016'!S245/'Population 2016'!S$5","v":6.3083547083610638E-3},{"$f":"'Population 2016'!T245/'Population 2016'!T$5","v":8.7318464609614562E-3},{"$f":"'Population 2016'!U245/'Population 2016'!U$5","v":0},{"$f":"'Population 2016'!V245/'Population 2016'!V$5","v":4.1978003526152293E-3},{"$f":"'Population 2016'!W245/'Population 2016'!W$5","v":6.2067342576432056E-3},{"$f":"'Population 2016'!X245/'Population 2016'!X$5","v":6.2067342576432056E-3},{"$f":"'Population 2016'!Y245/'Population 2016'!Y$5","v":5.2145434889747377E-3},{"$f":"'Population 2016'!Z245/'Population 2016'!Z$5","v":1.6299413646984125E-3},{"$f":"'Population 2016'!AA245/'Population 2016'!AA$5","v":4.0301443636776759E-3},{"$f":"'Population 2016'!AB245/'Population 2016'!AB$5","v":7.2607801193412692E-3},{"$f":"'Population 2016'!AC245/'Population 2016'!AC$5","v":4.7081115632130171E-3},{"$f":"'Population 2016'!AD245/'Population 2016'!AD$5","v":2.7206073914176187E-3},{"$f":"'Population 2016'!AE245/'Population 2016'!AE$5","v":2.7156336307354286E-3},{"$f":"'Population 2016'!AF245/'Population 2016'!AF$5","v":4.4790299959281549E-3},{"$f":"'Population 2016'!AG245/'Population 2016'!AG$5","v":2.7156336307354286E-3},{"$f":"'Population 2016'!AH245/'Population 2016'!AH$5","v":2.8124796819705934E-3},{"$f":"'Population 2016'!AI245/'Population 2016'!AI$5","v":6.819275527167731E-3},{"$f":"'Population 2016'!AJ245/'Population 2016'!AJ$5","v":3.959512589577001E-3},{"$f":"'Population 2016'!AK245/'Population 2016'!AK$5","v":4.7018593716606112E-3},{"$f":"'Population 2016'!AL245/'Population 2016'!AL$5","v":3.4231390007271952E-3},{"$f":"'Population 2016'!AM245/'Population 2016'!AM$5","v":1.8291070697704743E-3},{"$f":"'Population 2016'!AN245/'Population 2016'!AN$5","v":2.2362823170066545E-3},{"$f":"'Population 2016'!AO245/'Population 2016'!AO$5","v":2.2362823170066545E-3},{"$f":"'Population 2016'!AP245/'Population 2016'!AP$5","v":6.3884089215795062E-3},{"$f":"'Population 2016'!AQ245/'Population 2016'!AQ$5","v":5.1994848468241359E-3},{"$f":"'Population 2016'!AR245/'Population 2016'!AR$5","v":5.0488072156751615E-3},{"$f":"'Population 2016'!AS245/'Population 2016'!AS$5","v":2.7217150992379199E-3},{"$f":"'Population 2016'!AT245/'Population 2016'!AT$5","v":0},{"$f":"'Population 2016'!AU245/'Population 2016'!AU$5","v":0},{"$f":"'Population 2016'!AV245/'Population 2016'!AV$5","v":8.7108013937282226E-3},{"$f":"'Population 2016'!AW245/'Population 2016'!AW$5","v":3.8478552687778388E-3},{"$f":"'Population 2016'!AX245/'Population 2016'!AX$5","v":7.2198014235148296E-3},{"$f":"'Population 2016'!AY245/'Population 2016'!AY$5","v":5.8474342890364435E-3},{"$f":"'Population 2016'!AZ245/'Population 2016'!AZ$5","v":5.53123435980924E-3},{"$f":"'Population 2016'!BA245/'Population 2016'!BA$5","v":6.6130425394083357E-4},{"$f":"'Population 2016'!BB245/'Population 2016'!BB$5","v":3.6320197758643309E-3},{"$f":"'Population 2016'!BC245/'Population 2016'!BC$5","v":0},243]
[null,"Male 75-79",{"$f":"'Population 2016'!C246/'Population 2016'!C$5","v":5.6835315584223087E-3},{"$f":"'Population 2016'!D246/'Population 2016'!D$5","v":5.6923212347055547E-3},{"$f":"'Population 2016'!E246/'Population 2016'!E$5","v":5.7003829944824421E-3},{"$f":"'Population 2016'!F246/'Population 2016'!F$5","v":4.0896214267319084E-3},{"$f":"'Population 2016'!G246/'Population 2016'!G$5","v":1.7051913603637742E-3},{"$f":"'Population 2016'!H246/'Population 2016'!H$5","v":3.4531618316997015E-3},{"$f":"'Population 2016'!I246/'Population 2016'!I$5","v":1.8528598944811993E-3},{"$f":"'Population 2016'!J246/'Population 2016'!J$5","v":5.0753422953484324E-3},{"$f":"'Population 2016'!K246/'Population 2016'!K$5","v":2.8587629353116289E-3},{"$f":"'Population 2016'!L246/'Population 2016'!L$5","v":2.4700967388369102E-3},{"$f":"'Population 2016'!M246/'Population 2016'!M$5","v":2.4700967388369102E-3},{"$f":"'Population 2016'!N246/'Population 2016'!N$5","v":3.3917104025847728E-3},{"$f":"'Population 2016'!O246/'Population 2016'!O$5","v":2.1398638808809108E-3},{"$f":"'Population 2016'!P246/'Population 2016'!P$5","v":1.3783387805702693E-2},{"$f":"'Population 2016'!Q246/'Population 2016'!Q$5","v":3.8307422944501238E-3},{"$f":"'Population 2016'!R246/'Population 2016'!R$5","v":1.2521956672166924E-2},{"$f":"'Population 2016'!S246/'Population 2016'!S$5","v":4.4653653938153941E-3},{"$f":"'Population 2016'!T246/'Population 2016'!T$5","v":6.519220299390888E-3},{"$f":"'Population 2016'!U246/'Population 2016'!U$5","v":0},{"$f":"'Population 2016'!V246/'Population 2016'!V$5","v":2.8239747826684274E-3},{"$f":"'Population 2016'!W246/'Population 2016'!W$5","v":3.9351806457095422E-3},{"$f":"'Population 2016'!X246/'Population 2016'!X$5","v":3.9351806457095422E-3},{"$f":"'Population 2016'!Y246/'Population 2016'!Y$5","v":3.9029586175100555E-3},{"$f":"'Population 2016'!Z246/'Population 2016'!Z$5","v":1.130505649624552E-3},{"$f":"'Population 2016'!AA246/'Population 2016'!AA$5","v":2.9877281904811259E-3},{"$f":"'Population 2016'!AB246/'Population 2016'!AB$5","v":5.3570514723191714E-3},{"$f":"'Population 2016'!AC246/'Population 2016'!AC$5","v":3.5827984303536671E-3},{"$f":"'Population 2016'!AD246/'Population 2016'!AD$5","v":1.8124976738992892E-3},{"$f":"'Population 2016'!AE246/'Population 2016'!AE$5","v":1.8532017782523435E-3},{"$f":"'Population 2016'!AF246/'Population 2016'!AF$5","v":3.0161818154398347E-3},{"$f":"'Population 2016'!AG246/'Population 2016'!AG$5","v":1.8532017782523435E-3},{"$f":"'Population 2016'!AH246/'Population 2016'!AH$5","v":1.9189508001820495E-3},{"$f":"'Population 2016'!AI246/'Population 2016'!AI$5","v":5.0283270627351478E-3},{"$f":"'Population 2016'!AJ246/'Population 2016'!AJ$5","v":2.5374341243063884E-3},{"$f":"'Population 2016'!AK246/'Population 2016'!AK$5","v":3.6332549690104724E-3},{"$f":"'Population 2016'!AL246/'Population 2016'!AL$5","v":2.2259271740479947E-3},{"$f":"'Population 2016'!AM246/'Population 2016'!AM$5","v":1.3039179111235064E-3},{"$f":"'Population 2016'!AN246/'Population 2016'!AN$5","v":1.1999563652230827E-3},{"$f":"'Population 2016'!AO246/'Population 2016'!AO$5","v":1.1999563652230827E-3},{"$f":"'Population 2016'!AP246/'Population 2016'!AP$5","v":4.8824564462692007E-3},{"$f":"'Population 2016'!AQ246/'Population 2016'!AQ$5","v":3.3156135255110429E-3},{"$f":"'Population 2016'!AR246/'Population 2016'!AR$5","v":3.670259845485959E-3},{"$f":"'Population 2016'!AS246/'Population 2016'!AS$5","v":1.8528598944811993E-3},{"$f":"'Population 2016'!AT246/'Population 2016'!AT$5","v":0},{"$f":"'Population 2016'!AU246/'Population 2016'!AU$5","v":0},{"$f":"'Population 2016'!AV246/'Population 2016'!AV$5","v":6.3140111920599725E-3},{"$f":"'Population 2016'!AW246/'Population 2016'!AW$5","v":2.5665080236744156E-3},{"$f":"'Population 2016'!AX246/'Population 2016'!AX$5","v":6.2741991131783741E-3},{"$f":"'Population 2016'!AY246/'Population 2016'!AY$5","v":4.0375141519537342E-3},{"$f":"'Population 2016'!AZ246/'Population 2016'!AZ$5","v":4.1275721821769423E-3},{"$f":"'Population 2016'!BA246/'Population 2016'!BA$5","v":4.318721658389117E-4},{"$f":"'Population 2016'!BB246/'Population 2016'!BB$5","v":2.5410328469925359E-3},{"$f":"'Population 2016'!BC246/'Population 2016'!BC$5","v":0},244]
[null,"Male 80-84",{"$f":"'Population 2016'!C247/'Population 2016'!C$5","v":4.206426683976223E-3},{"$f":"'Population 2016'!D247/'Population 2016'!D$5","v":3.9415901333098597E-3},{"$f":"'Population 2016'!E247/'Population 2016'!E$5","v":3.6986860054659923E-3},{"$f":"'Population 2016'!F247/'Population 2016'!F$5","v":3.3994334277620396E-3},{"$f":"'Population 2016'!G247/'Population 2016'!G$5","v":1.0285281221241813E-3},{"$f":"'Population 2016'!H247/'Population 2016'!H$5","v":2.4771977834916166E-3},{"$f":"'Population 2016'!I247/'Population 2016'!I$5","v":1.36085754961896E-3},{"$f":"'Population 2016'!J247/'Population 2016'!J$5","v":3.5328363036248893E-3},{"$f":"'Population 2016'!K247/'Population 2016'!K$5","v":1.9137173368615036E-3},{"$f":"'Population 2016'!L247/'Population 2016'!L$5","v":1.6123139485012628E-3},{"$f":"'Population 2016'!M247/'Population 2016'!M$5","v":1.6123139485012628E-3},{"$f":"'Population 2016'!N247/'Population 2016'!N$5","v":2.6281737005810915E-3},{"$f":"'Population 2016'!O247/'Population 2016'!O$5","v":1.3374149255505692E-3},{"$f":"'Population 2016'!P247/'Population 2016'!P$5","v":1.0267102445621549E-2},{"$f":"'Population 2016'!Q247/'Population 2016'!Q$5","v":2.6321664845301465E-3},{"$f":"'Population 2016'!R247/'Population 2016'!R$5","v":9.1286527918241333E-3},{"$f":"'Population 2016'!S247/'Population 2016'!S$5","v":3.2958439178704647E-3},{"$f":"'Population 2016'!T247/'Population 2016'!T$5","v":5.1348748039813314E-3},{"$f":"'Population 2016'!U247/'Population 2016'!U$5","v":0},{"$f":"'Population 2016'!V247/'Population 2016'!V$5","v":2.0683707191976857E-3},{"$f":"'Population 2016'!W247/'Population 2016'!W$5","v":2.8500643879225255E-3},{"$f":"'Population 2016'!X247/'Population 2016'!X$5","v":2.8500643879225255E-3},{"$f":"'Population 2016'!Y247/'Population 2016'!Y$5","v":2.7702262285178294E-3},{"$f":"'Population 2016'!Z247/'Population 2016'!Z$5","v":7.5108936995603806E-4},{"$f":"'Population 2016'!AA247/'Population 2016'!AA$5","v":2.0742022260800698E-3},{"$f":"'Population 2016'!AB247/'Population 2016'!AB$5","v":3.69691821131388E-3},{"$f":"'Population 2016'!AC247/'Population 2016'!AC$5","v":2.5216115973447574E-3},{"$f":"'Population 2016'!AD247/'Population 2016'!AD$5","v":1.2840075923927202E-3},{"$f":"'Population 2016'!AE247/'Population 2016'!AE$5","v":1.3809176685592255E-3},{"$f":"'Population 2016'!AF247/'Population 2016'!AF$5","v":2.1264081798850836E-3},{"$f":"'Population 2016'!AG247/'Population 2016'!AG$5","v":1.3809176685592255E-3},{"$f":"'Population 2016'!AH247/'Population 2016'!AH$5","v":1.2706315075745613E-3},{"$f":"'Population 2016'!AI247/'Population 2016'!AI$5","v":3.7350161868929914E-3},{"$f":"'Population 2016'!AJ247/'Population 2016'!AJ$5","v":1.5754398683880321E-3},{"$f":"'Population 2016'!AK247/'Population 2016'!AK$5","v":2.43893240134267E-3},{"$f":"'Population 2016'!AL247/'Population 2016'!AL$5","v":1.6849647931040598E-3},{"$f":"'Population 2016'!AM247/'Population 2016'!AM$5","v":7.0991086272279794E-4},{"$f":"'Population 2016'!AN247/'Population 2016'!AN$5","v":8.7269553834406024E-4},{"$f":"'Population 2016'!AO247/'Population 2016'!AO$5","v":8.7269553834406024E-4},{"$f":"'Population 2016'!AP247/'Population 2016'!AP$5","v":3.7965854509138756E-3},{"$f":"'Population 2016'!AQ247/'Population 2016'!AQ$5","v":1.9934783800076724E-3},{"$f":"'Population 2016'!AR247/'Population 2016'!AR$5","v":2.6338987649881939E-3},{"$f":"'Population 2016'!AS247/'Population 2016'!AS$5","v":1.36085754961896E-3},{"$f":"'Population 2016'!AT247/'Population 2016'!AT$5","v":0},{"$f":"'Population 2016'!AU247/'Population 2016'!AU$5","v":0},{"$f":"'Population 2016'!AV247/'Population 2016'!AV$5","v":4.6352021961778064E-3},{"$f":"'Population 2016'!AW247/'Population 2016'!AW$5","v":1.8610043321740191E-3},{"$f":"'Population 2016'!AX247/'Population 2016'!AX$5","v":4.4085513117037454E-3},{"$f":"'Population 2016'!AY247/'Population 2016'!AY$5","v":3.0721214161133379E-3},{"$f":"'Population 2016'!AZ247/'Population 2016'!AZ$5","v":3.2675414626850215E-3},{"$f":"'Population 2016'!BA247/'Population 2016'!BA$5","v":2.834161088317858E-4},{"$f":"'Population 2016'!BB247/'Population 2016'!BB$5","v":1.2981363457461868E-3},{"$f":"'Population 2016'!BC247/'Population 2016'!BC$5","v":0},245]
[null,"Male 85-89",{"$f":"'Population 2016'!C248/'Population 2016'!C$5","v":2.3204346470537124E-3},{"$f":"'Population 2016'!D248/'Population 2016'!D$5","v":2.1419559285232241E-3},{"$f":"'Population 2016'!E248/'Population 2016'!E$5","v":1.9782579142036106E-3},{"$f":"'Population 2016'!F248/'Population 2016'!F$5","v":1.4833891321143445E-3},{"$f":"'Population 2016'!G248/'Population 2016'!G$5","v":7.0372976776917663E-4},{"$f":"'Population 2016'!H248/'Population 2016'!H$5","v":1.2742653519793264E-3},{"$f":"'Population 2016'!I248/'Population 2016'!I$5","v":8.374507997655138E-4},{"$f":"'Population 2016'!J248/'Population 2016'!J$5","v":1.4678686050272427E-3},{"$f":"'Population 2016'!K248/'Population 2016'!K$5","v":8.0328875868260641E-4},{"$f":"'Population 2016'!L248/'Population 2016'!L$5","v":8.3395549060410145E-4},{"$f":"'Population 2016'!M248/'Population 2016'!M$5","v":8.3395549060410145E-4},{"$f":"'Population 2016'!N248/'Population 2016'!N$5","v":1.50296171868093E-3},{"$f":"'Population 2016'!O248/'Population 2016'!O$5","v":7.4300829197253846E-4},{"$f":"'Population 2016'!P248/'Population 2016'!P$5","v":5.0377549870393324E-3},{"$f":"'Population 2016'!Q248/'Population 2016'!Q$5","v":1.1868250666854678E-3},{"$f":"'Population 2016'!R248/'Population 2016'!R$5","v":4.7639325065204664E-3},{"$f":"'Population 2016'!S248/'Population 2016'!S$5","v":1.7441316501639096E-3},{"$f":"'Population 2016'!T248/'Population 2016'!T$5","v":2.8571029720385476E-3},{"$f":"'Population 2016'!U248/'Population 2016'!U$5","v":0},{"$f":"'Population 2016'!V248/'Population 2016'!V$5","v":8.3956007052304589E-4},{"$f":"'Population 2016'!W248/'Population 2016'!W$5","v":1.3923479693291236E-3},{"$f":"'Population 2016'!X248/'Population 2016'!X$5","v":1.3923479693291236E-3},{"$f":"'Population 2016'!Y248/'Population 2016'!Y$5","v":1.1406813882132239E-3},{"$f":"'Population 2016'!Z248/'Population 2016'!Z$5","v":3.6780149559702892E-4},{"$f":"'Population 2016'!AA248/'Population 2016'!AA$5","v":1.0045463695813792E-3},{"$f":"'Population 2016'!AB248/'Population 2016'!AB$5","v":2.0367849503085881E-3},{"$f":"'Population 2016'!AC248/'Population 2016'!AC$5","v":1.2514971422424761E-3},{"$f":"'Population 2016'!AD248/'Population 2016'!AD$5","v":7.1829989951244927E-4},{"$f":"'Population 2016'!AE248/'Population 2016'!AE$5","v":7.2382673333401776E-4},{"$f":"'Population 2016'!AF248/'Population 2016'!AF$5","v":1.0104209081723446E-3},{"$f":"'Population 2016'!AG248/'Population 2016'!AG$5","v":7.2382673333401776E-4},{"$f":"'Population 2016'!AH248/'Population 2016'!AH$5","v":5.6100981767180928E-4},{"$f":"'Population 2016'!AI248/'Population 2016'!AI$5","v":2.0096902616151893E-3},{"$f":"'Population 2016'!AJ248/'Population 2016'!AJ$5","v":7.8074896132504252E-4},{"$f":"'Population 2016'!AK248/'Population 2016'!AK$5","v":1.4960461637101945E-3},{"$f":"'Population 2016'!AL248/'Population 2016'!AL$5","v":8.070094535393129E-4},{"$f":"'Population 2016'!AM248/'Population 2016'!AM$5","v":3.1511349518818072E-4},{"$f":"'Population 2016'!AN248/'Population 2016'!AN$5","v":5.4543471146503762E-4},{"$f":"'Population 2016'!AO248/'Population 2016'!AO$5","v":5.4543471146503762E-4},{"$f":"'Population 2016'!AP248/'Population 2016'!AP$5","v":2.1004073997748997E-3},{"$f":"'Population 2016'!AQ248/'Population 2016'!AQ$5","v":9.727626459143969E-4},{"$f":"'Population 2016'!AR248/'Population 2016'!AR$5","v":1.351591288774708E-3},{"$f":"'Population 2016'!AS248/'Population 2016'!AS$5","v":8.374507997655138E-4},{"$f":"'Population 2016'!AT248/'Population 2016'!AT$5","v":0},{"$f":"'Population 2016'!AU248/'Population 2016'!AU$5","v":0},{"$f":"'Population 2016'!AV248/'Population 2016'!AV$5","v":2.3967902016682504E-3},{"$f":"'Population 2016'!AW248/'Population 2016'!AW$5","v":8.1990969552748799E-4},{"$f":"'Population 2016'!AX248/'Population 2016'!AX$5","v":1.8273125726772047E-3},{"$f":"'Population 2016'!AY248/'Population 2016'!AY$5","v":1.5635996450537009E-3},{"$f":"'Population 2016'!AZ248/'Population 2016'!AZ$5","v":1.7143087251410853E-3},{"$f":"'Population 2016'!BA248/'Population 2016'!BA$5","v":8.0976031094795946E-5},{"$f":"'Population 2016'!BB248/'Population 2016'!BB$5","v":5.8692334781077589E-4},{"$f":"'Population 2016'!BC248/'Population 2016'!BC$5","v":0},246]
[null,"Male 90+",{"$f":"'Population 2016'!C249/'Population 2016'!C$5","v":1.1346618758720796E-3},{"$f":"'Population 2016'!D249/'Population 2016'!D$5","v":1.0098490850229355E-3},{"$f":"'Population 2016'!E249/'Population 2016'!E$5","v":8.9537265785044932E-4},{"$f":"'Population 2016'!F249/'Population 2016'!F$5","v":5.3566829770795778E-4},{"$f":"'Population 2016'!G249/'Population 2016'!G$5","v":1.8946570670708602E-4},{"$f":"'Population 2016'!H249/'Population 2016'!H$5","v":6.1929944587290416E-4},{"$f":"'Population 2016'!I249/'Population 2016'!I$5","v":2.4076710493258521E-4},{"$f":"'Population 2016'!J249/'Population 2016'!J$5","v":5.9709909357040384E-4},{"$f":"'Population 2016'!K249/'Population 2016'!K$5","v":2.1263525965127818E-4},{"$f":"'Population 2016'!L249/'Population 2016'!L$5","v":3.4946706272933774E-4},{"$f":"'Population 2016'!M249/'Population 2016'!M$5","v":3.4946706272933774E-4},{"$f":"'Population 2016'!N249/'Population 2016'!N$5","v":4.9027093497078472E-4},{"$f":"'Population 2016'!O249/'Population 2016'!O$5","v":2.9720331678901538E-4},{"$f":"'Population 2016'!P249/'Population 2016'!P$5","v":2.1413276231263384E-3},{"$f":"'Population 2016'!Q249/'Population 2016'!Q$5","v":7.4029682377410371E-4},{"$f":"'Population 2016'!R249/'Population 2016'!R$5","v":1.9827540320434341E-3},{"$f":"'Population 2016'!S249/'Population 2016'!S$5","v":8.2263699289107477E-4},{"$f":"'Population 2016'!T249/'Population 2016'!T$5","v":1.3820188643248348E-3},{"$f":"'Population 2016'!U249/'Population 2016'!U$5","v":0},{"$f":"'Population 2016'!V249/'Population 2016'!V$5","v":3.816182138741118E-4},{"$f":"'Population 2016'!W249/'Population 2016'!W$5","v":5.948528883049308E-4},{"$f":"'Population 2016'!X249/'Population 2016'!X$5","v":5.948528883049308E-4},{"$f":"'Population 2016'!Y249/'Population 2016'!Y$5","v":4.8488895248088268E-4},{"$f":"'Population 2016'!Z249/'Population 2016'!Z$5","v":1.9357973452475207E-4},{"$f":"'Population 2016'!AA249/'Population 2016'!AA$5","v":4.2121851740383229E-4},{"$f":"'Population 2016'!AB249/'Population 2016'!AB$5","v":9.4162922325824179E-4},{"$f":"'Population 2016'!AC249/'Population 2016'!AC$5","v":5.3886777777547939E-4},{"$f":"'Population 2016'!AD249/'Population 2016'!AD$5","v":2.6052327961591427E-4},{"$f":"'Population 2016'!AE249/'Population 2016'!AE$5","v":2.8747728416102832E-4},{"$f":"'Population 2016'!AF249/'Population 2016'!AF$5","v":6.3339818124236527E-4},{"$f":"'Population 2016'!AG249/'Population 2016'!AG$5","v":2.8747728416102832E-4},{"$f":"'Population 2016'!AH249/'Population 2016'!AH$5","v":2.0991426952620678E-4},{"$f":"'Population 2016'!AI249/'Population 2016'!AI$5","v":9.939080409484644E-4},{"$f":"'Population 2016'!AJ249/'Population 2016'!AJ$5","v":3.3460669771073249E-4},{"$f":"'Population 2016'!AK249/'Population 2016'!AK$5","v":5.9087537558301796E-4},{"$f":"'Population 2016'!AL249/'Population 2016'!AL$5","v":3.7246590163352901E-4},{"$f":"'Population 2016'!AM249/'Population 2016'!AM$5","v":1.4487976790261183E-4},{"$f":"'Population 2016'!AN249/'Population 2016'!AN$5","v":2.1817388458601506E-4},{"$f":"'Population 2016'!AO249/'Population 2016'!AO$5","v":2.1817388458601506E-4},{"$f":"'Population 2016'!AP249/'Population 2016'!AP$5","v":8.5601509122901578E-4},{"$f":"'Population 2016'!AQ249/'Population 2016'!AQ$5","v":2.6031676439962733E-4},{"$f":"'Population 2016'!AR249/'Population 2016'!AR$5","v":5.9659823163650376E-4},{"$f":"'Population 2016'!AS249/'Population 2016'!AS$5","v":2.4076710493258521E-4},{"$f":"'Population 2016'!AT249/'Population 2016'!AT$5","v":0},{"$f":"'Population 2016'!AU249/'Population 2016'!AU$5","v":0},{"$f":"'Population 2016'!AV249/'Population 2016'!AV$5","v":1.2564671101256467E-3},{"$f":"'Population 2016'!AW249/'Population 2016'!AW$5","v":2.7838794313258896E-4},{"$f":"'Population 2016'!AX249/'Population 2016'!AX$5","v":8.0503980474590133E-4},{"$f":"'Population 2016'!AY249/'Population 2016'!AY$5","v":6.1656620054465893E-4},{"$f":"'Population 2016'!AZ249/'Population 2016'!AZ$5","v":6.3567487962446281E-4},{"$f":"'Population 2016'!BA249/'Population 2016'!BA$5","v":2.6992010364931981E-5},{"$f":"'Population 2016'!BB249/'Population 2016'!BB$5","v":3.1762910587406699E-4},{"$f":"'Population 2016'!BC249/'Population 2016'!BC$5","v":0},247]

{"sheet":"Pop2016fractionQ1","index":15,"n_rows":249,"n_cols":56,"rows_kept":249,"cut":false,"hidden":true,"merged":[]}
["Q1 subgroup's fraction of area's 2016 Q1 population (16+ only)"]
[]
["SIMD","group","Aberdeen City Local Authority","Aberdeen City Region Deal","Aberdeenshire Local Authority","Angus Local Authority","Argyll & Bute Local Authority","Ayrshire & Arran Health Board","Borders Health Board","Clackmannanshire & Stirling IJB","Clackmannanshire Local Authority","Dumfries & Galloway Health Board","Dumfries & Galloway Local Authority","Dundee City Local Authority","East Ayrshire Local Authority","East Dunbartonshire Local Authority","East Lothian Local Authority","East Renfrewshire Local Authority","Edinburgh & SE Scotland City Region Deal","Edinburgh, City of Local Authority","Eilean Siar Local Authority","Falkirk Local Authority","Fife Health Board","Fife Local Authority","Forth Valley Health Board","Glasgow City Local Authority","Glasgow City Region Deal","Grampian Health Board","Greater Glasgow & Clyde Health Board","Highland Health Board","Highland Local Authority","Inverclyde Local Authority","Inverness & Highland City Region Deal","Lanarkshire Health Board","Lothian Health Board","Midlothian Local Authority","Moray Local Authority","North Ayrshire Local Authority","North Lanarkshire Local Authority","Orkney Health Board","Orkney Islands Local Authority","Perth & Kinross Local Authority","Renfrewshire Local Authority","Scotland","Scottish Borders Local Authority","Shetland Health Board","Shetland Islands Local Authority","South Ayrshire Local Authority","South Lanarkshire Local Authority","Stirling Local Authority","Tay Cities Region Deal ","Tayside Health Board","West Dunbartonshire Local Authority","West Lothian Local Authority","Western Isles Health Board",1]
[null,null,"popS12000033","Aber_deal","popS12000034","popS12000041","popS12000035","popS08000015","popS08000016","ClacksStirIJB","popS12000005","popS08000017","popS12000006","popS12000042","popS12000008","popS12000045","popS12000010","popS12000011","EdinSE_deal","popS12000036","popS12000013","popS12000014","popS08000018","popS12000015","popS08000019","popS12000046","GClyde_deal","popS08000020","popS08000021","popS08000022","popS12000017","popS12000018","Inver_deal","popS08000023","popS08000024","popS12000019","popS12000020","popS12000021","popS12000044","popS08000025","popS12000023","popS12000024","popS12000038","popS00000001","popS12000026","popS08000026","popS12000027","popS12000028","popS12000029","popS12000030","Tay_deal","popS08000027","popS12000039","popS12000040","popS08000028",2]
["All quintiles","16+ Males and Females",null,null,null,null,null,null,null,null,null,null,null,null,null,null,null,null,null,null,null,null,null,null,null,null,null,null,null,null,null,null,null,null,null,null,null,null,null,null,null,null,null,null,null,null,null,null,null,null,null,null,null,null,null,3]
["Q1 and Q2","16+ Males and Females",null,null,null,null,null,null,null,null,null,null,null,null,null,null,null,null,null,null,null,null,null,null,null,null,null,null,null,null,null,null,null,null,null,null,null,null,null,null,null,null,null,null,null,null,null,null,null,null,null,null,null,null,null,4]
["SIMD Q1 (most deprived)","16+ Males and Females",{"$f":"'Population 2016'!R7/'Population 2016'!R$7","v":1},{"$f":"'Population 2016'!AX7/'Population 2016'!AX$7","v":1},{"$f":"'Population 2016'!S7/'Population 2016'!S$7","v":1},{"$f":"'Population 2016'!T7/'Population 2016'!T$7","v":1},{"$f":"'Population 2016'!U7/'Population 2016'!U$7","v":{"$error":"#DIV/0!"}},{"$f":"'Population 2016'!D7/'Population 2016'!D$7","v":1},{"$f":"'Population 2016'!E7/'Population 2016'!E$7","v":1},{"$f":"'Population 2016'!BC7/'Population 2016'!BC$7","v":{"$error":"#DIV/0!"}},{"$f":"'Population 2016'!V7/'Population 2016'!V$7","v":1},{"$f":"'Population 2016'!F7/'Population 2016'!F$7","v":1},{"$f":"'Population 2016'!W7/'Population 2016'!W$7","v":1},{"$f":"'Population 2016'!X7/'Population 2016'!X$7","v":1},{"$f":"'Population 2016'!Y7/'Population 2016'!Y$7","v":1},{"$f":"'Population 2016'!Z7/'Population 2016'!Z$7","v":1},{"$f":"'Population 2016'!AA7/'Population 2016'!AA$7","v":1},{"$f":"'Population 2016'!AB7/'Population 2016'!AB$7","v":1},{"$f":"'Population 2016'!AY7/'Population 2016'!AY$7","v":1},{"$f":"'Population 2016'!AC7/'Population 2016'!AC$7","v":1},{"$f":"'Population 2016'!AD7/'Population 2016'!AD$7","v":1},{"$f":"'Population 2016'!AE7/'Population 2016'!AE$7","v":1},{"$f":"'Population 2016'!G7/'Population 2016'!G$7","v":1},{"$f":"'Population 2016'!AF7/'Population 2016'!AF$7","v":1},{"$f":"'Population 2016'!H7/'Population 2016'!H$7","v":1},{"$f":"'Population 2016'!AG7/'Population 2016'!AG$7","v":1},{"$f":"'Population 2016'!AZ7/'Population 2016'!AZ$7","v":1},{"$f":"'Population 2016'!I7/'Population 2016'!I$7","v":1},{"$f":"'Population 2016'!J7/'Population 2016'!J$7","v":1},{"$f":"'Population 2016'!K7/'Population 2016'!K$7","v":1},{"$f":"'Population 2016'!AH7/'Population 2016'!AH$7","v":1},{"$f":"'Population 2016'!AI7/'Population 2016'!AI$7","v":1},{"$f":"'Population 2016'!BA7/'Population 2016'!BA$7","v":1},{"$f":"'Population 2016'!L7/'Population 2016'!L$7","v":1},{"$f":"'Population 2016'!M7/'Population 2016'!M$7","v":1},{"$f":"'Population 2016'!AJ7/'Population 2016'!AJ$7","v":1},{"$f":"'Population 2016'!AK7/'Population 2016'!AK$7","v":1},{"$f":"'Population 2016'!AL7/'Population 2016'!AL$7","v":1},{"$f":"'Population 2016'!AM7/'Population 2016'!AM$7","v":1},{"$f":"'Population 2016'!N7/'Population 2016'!N$7","v":1},{"$f":"'Population 2016'!AN7/'Population 2016'!AN$7","v":{"$error":"#DIV/0!"}},{"$f":"'Population 2016'!AO7/'Population 2016'!AO$7","v":{"$error":"#DIV/0!"}},{"$f":"'Population 2016'!AP7/'Population 2016'!AP$7","v":1},{"$f":"'Population 2016'!C7/'Population 2016'!C$7","v":1},{"$f":"'Population 2016'!AQ7/'Population 2016'!AQ$7","v":1},{"$f":"'Population 2016'!O7/'Population 2016'!O$7","v":1},{"$f":"'Population 2016'!AR7/'Population 2016'!AR$7","v":1},{"$f":"'Population 2016'!AS7/'Population 2016'!AS$7","v":1},{"$f":"'Population 2016'!AT7/'Population 2016'!AT$7","v":{"$error":"#DIV/0!"}},{"$f":"'Population 2016'!AU7/'Population 2016'!AU$7","v":{"$error":"#DIV/0!"}},{"$f":"'Population 2016'!BB7/'Population 2016'!BB$7","v":1},{"$f":"'Population 2016'!P7/'Population 2016'!P$7","v":1},{"$f":"'Population 2016'!AV7/'Population 2016'!AV$7","v":1},{"$f":"'Population 2016'!AW7/'Population 2016'!AW$7","v":1},{"$f":"'Population 2016'!Q7/'Population 2016'!Q$7","v":1},5]
["SIMD Q2",null,null,null,null,null,null,null,null,null,null,null,null,null,null,null,null,null,null,null,null,null,null,null,null,null,null,null,null,null,null,null,null,null,null,null,null,null,null,null,null,null,null,null,null,null,null,null,null,null,null,null,null,null,null,6]
["SIMD Q3",null,null,null,null,null,null,null,null,null,null,null,null,null,null,null,null,null,null,null,null,null,null,null,null,null,null,null,null,null,null,null,null,null,null,null,null,null,null,null,null,null,null,null,null,null,null,null,null,null,null,null,null,null,null,7]
["SIMD Q4",null,null,null,null,null,null,null,null,null,null,null,null,null,null,null,null,null,null,null,null,null,null,null,null,null,null,null,null,null,null,null,null,null,null,null,null,null,null,null,null,null,null,null,null,null,null,null,null,null,null,null,null,null,null,8]
["SIMD Q5 (least deprived)",null,null,null,null,null,null,null,null,null,null,null,null,null,null,null,null,null,null,null,null,null,null,null,null,null,null,null,null,null,null,null,null,null,null,null,null,null,null,null,null,null,null,null,null,null,null,null,null,null,null,null,null,null,null,9]
["SIMD Q1 (most deprived)","16+ Females",null,null,null,null,null,null,null,null,null,null,null,null,null,null,null,null,null,null,null,null,null,null,null,null,null,null,null,null,null,null,null,null,null,null,null,null,null,null,null,null,null,null,null,null,null,null,null,null,null,null,null,null,null,10]
["SIMD Q2",null,null,null,null,null,null,null,null,null,null,null,null,null,null,null,null,null,null,null,null,null,null,null,null,null,null,null,null,null,null,null,null,null,null,null,null,null,null,null,null,null,null,null,null,null,null,null,null,null,null,null,null,null,null,11]
["SIMD Q3",null,null,null,null,null,null,null,null,null,null,null,null,null,null,null,null,null,null,null,null,null,null,null,null,null,null,null,null,null,null,null,null,null,null,null,null,null,null,null,null,null,null,null,null,null,null,null,null,null,null,null,null,null,null,12]
["SIMD Q4",null,null,null,null,null,null,null,null,null,null,null,null,null,null,null,null,null,null,null,null,null,null,null,null,null,null,null,null,null,null,null,null,null,null,null,null,null,null,null,null,null,null,null,null,null,null,null,null,null,null,null,null,null,null,13]
["SIMD Q5 (least deprived)",null,null,null,null,null,null,null,null,null,null,null,null,null,null,null,null,null,null,null,null,null,null,null,null,null,null,null,null,null,null,null,null,null,null,null,null,null,null,null,null,null,null,null,null,null,null,null,null,null,null,null,null,null,null,14]
["SIMD Q1 (most deprived)","16+ Males",null,null,null,null,null,null,null,null,null,null,null,null,null,null,null,null,null,null,null,null,null,null,null,null,null,null,null,null,null,null,null,null,null,null,null,null,null,null,null,null,null,null,null,null,null,null,null,null,null,null,null,null,null,15]
["SIMD Q2",null,null,null,null,null,null,null,null,null,null,null,null,null,null,null,null,null,null,null,null,null,null,null,null,null,null,null,null,null,null,null,null,null,null,null,null,null,null,null,null,null,null,null,null,null,null,null,null,null,null,null,null,null,null,16]
["SIMD Q3",null,null,null,null,null,null,null,null,null,null,null,null,null,null,null,null,null,null,null,null,null,null,null,null,null,null,null,null,null,null,null,null,null,null,null,null,null,null,null,null,null,null,null,null,null,null,null,null,null,null,null,null,null,null,17]
["SIMD Q4",null,null,null,null,null,null,null,null,null,null,null,null,null,null,null,null,null,null,null,null,null,null,null,null,null,null,null,null,null,null,null,null,null,null,null,null,null,null,null,null,null,null,null,null,null,null,null,null,null,null,null,null,null,null,18]
["SIMD Q5 (least deprived)",null,null,null,null,null,null,null,null,null,null,null,null,null,null,null,null,null,null,null,null,null,null,null,null,null,null,null,null,null,null,null,null,null,null,null,null,null,null,null,null,null,null,null,null,null,null,null,null,null,null,null,null,null,null,19]
["All quintiles","Female 0-4",null,null,null,null,null,null,null,null,null,null,null,null,null,null,null,null,null,null,null,null,null,null,null,null,null,null,null,null,null,null,null,null,null,null,null,null,null,null,null,null,null,null,null,null,null,null,null,null,null,null,null,null,null,20]
[null,"Female 5-9",null,null,null,null,null,null,null,null,null,null,null,null,null,null,null,null,null,null,null,null,null,null,null,null,null,null,null,null,null,null,null,null,null,null,null,null,null,null,null,null,null,null,null,null,null,null,null,null,null,null,null,null,null,21]
[null,"Female 10-15",null,null,null,null,null,null,null,null,null,null,null,null,null,null,null,null,null,null,null,null,null,null,null,null,null,null,null,null,null,null,null,null,null,null,null,null,null,null,null,null,null,null,null,null,null,null,null,null,null,null,null,null,null,22]
[null,"Female 16-19",null,null,null,null,null,null,null,null,null,null,null,null,null,null,null,null,null,null,null,null,null,null,null,null,null,null,null,null,null,null,null,null,null,null,null,null,null,null,null,null,null,null,null,null,null,null,null,null,null,null,null,null,null,23]
[null,"Female 20-24",null,null,null,null,null,null,null,null,null,null,null,null,null,null,null,null,null,null,null,null,null,null,null,null,null,null,null,null,null,null,null,null,null,null,null,null,null,null,null,null,null,null,null,null,null,null,null,null,null,null,null,null,null,24]
[null,"Female 25-29",null,null,null,null,null,null,null,null,null,null,null,null,null,null,null,null,null,null,null,null,null,null,null,null,null,null,null,null,null,null,null,null,null,null,null,null,null,null,null,null,null,null,null,null,null,null,null,null,null,null,null,null,null,25]
[null,"Female 30-34",null,null,null,null,null,null,null,null,null,null,null,null,null,null,null,null,null,null,null,null,null,null,null,null,null,null,null,null,null,null,null,null,null,null,null,null,null,null,null,null,null,null,null,null,null,null,null,null,null,null,null,null,null,26]
[null,"Female 35-39",null,null,null,null,null,null,null,null,null,null,null,null,null,null,null,null,null,null,null,null,null,null,null,null,null,null,null,null,null,null,null,null,null,null,null,null,null,null,null,null,null,null,null,null,null,null,null,null,null,null,null,null,null,27]
[null,"Female 40-44",null,null,null,null,null,null,null,null,null,null,null,null,null,null,null,null,null,null,null,null,null,null,null,null,null,null,null,null,null,null,null,null,null,null,null,null,null,null,null,null,null,null,null,null,null,null,null,null,null,null,null,null,null,28]
[null,"Female 45-49",null,null,null,null,null,null,null,null,null,null,null,null,null,null,null,null,null,null,null,null,null,null,null,null,null,null,null,null,null,null,null,null,null,null,null,null,null,null,null,null,null,null,null,null,null,null,null,null,null,null,null,null,null,29]
[null,"Female 50-54",null,null,null,null,null,null,null,null,null,null,null,null,null,null,null,null,null,null,null,null,null,null,null,null,null,null,null,null,null,null,null,null,null,null,null,null,null,null,null,null,null,null,null,null,null,null,null,null,null,null,null,null,null,30]
[null,"Female 55-59",null,null,null,null,null,null,null,null,null,null,null,null,null,null,null,null,null,null,null,null,null,null,null,null,null,null,null,null,null,null,null,null,null,null,null,null,null,null,null,null,null,null,null,null,null,null,null,null,null,null,null,null,null,31]
[null,"Female 60-64",null,null,null,null,null,null,null,null,null,null,null,null,null,null,null,null,null,null,null,null,null,null,null,null,null,null,null,null,null,null,null,null,null,null,null,null,null,null,null,null,null,null,null,null,null,null,null,null,null,null,null,null,null,32]
[null,"Female 65-69",null,null,null,null,null,null,null,null,null,null,null,null,null,null,null,null,null,null,null,null,null,null,null,null,null,null,null,null,null,null,null,null,null,null,null,null,null,null,null,null,null,null,null,null,null,null,null,null,null,null,null,null,null,33]
[null,"Female 70-74",null,null,null,null,null,null,null,null,null,null,null,null,null,null,null,null,null,null,null,null,null,null,null,null,null,null,null,null,null,null,null,null,null,null,null,null,null,null,null,null,null,null,null,null,null,null,null,null,null,null,null,null,null,34]
[null,"Female 75-79",null,null,null,null,null,null,null,null,null,null,null,null,null,null,null,null,null,null,null,null,null,null,null,null,null,null,null,null,null,null,null,null,null,null,null,null,null,null,null,null,null,null,null,null,null,null,null,null,null,null,null,null,null,35]
[null,"Female 80-84",null,null,null,null,null,null,null,null,null,null,null,null,null,null,null,null,null,null,null,null,null,null,null,null,null,null,null,null,null,null,null,null,null,null,null,null,null,null,null,null,null,null,null,null,null,null,null,null,null,null,null,null,null,36]
[null,"Female 85-89",null,null,null,null,null,null,null,null,null,null,null,null,null,null,null,null,null,null,null,null,null,null,null,null,null,null,null,null,null,null,null,null,null,null,null,null,null,null,null,null,null,null,null,null,null,null,null,null,null,null,null,null,null,37]
[null,"Female 90+",null,null,null,null,null,null,null,null,null,null,null,null,null,null,null,null,null,null,null,null,null,null,null,null,null,null,null,null,null,null,null,null,null,null,null,null,null,null,null,null,null,null,null,null,null,null,null,null,null,null,null,null,null,38]
[null,"Male 0-4",null,null,null,null,null,null,null,null,null,null,null,null,null,null,null,null,null,null,null,null,null,null,null,null,null,null,null,null,null,null,null,null,null,null,null,null,null,null,null,null,null,null,null,null,null,null,null,null,null,null,null,null,null,39]
[null,"Male 5-9",null,null,null,null,null,null,null,null,null,null,null,null,null,null,null,null,null,null,null,null,null,null,null,null,null,null,null,null,null,null,null,null,null,null,null,null,null,null,null,null,null,null,null,null,null,null,null,null,null,null,null,null,null,40]
[null,"Male 10-15",null,null,null,null,null,null,null,null,null,null,null,null,null,null,null,null,null,null,null,null,null,null,null,null,null,null,null,null,null,null,null,null,null,null,null,null,null,null,null,null,null,null,null,null,null,null,null,null,null,null,null,null,null,41]
[null,"Male 16-19",null,null,null,null,null,null,null,null,null,null,null,null,null,null,null,null,null,null,null,null,null,null,null,null,null,null,null,null,null,null,null,null,null,null,null,null,null,null,null,null,null,null,null,null,null,null,null,null,null,null,null,null,null,42]
[null,"Male 20-24",null,null,null,null,null,null,null,null,null,null,null,null,null,null,null,null,null,null,null,null,null,null,null,null,null,null,null,null,null,null,null,null,null,null,null,null,null,null,null,null,null,null,null,null,null,null,null,null,null,null,null,null,null,43]
[null,"Male 25-29",null,null,null,null,null,null,null,null,null,null,null,null,null,null,null,null,null,null,null,null,null,null,null,null,null,null,null,null,null,null,null,null,null,null,null,null,null,null,null,null,null,null,null,null,null,null,null,null,null,null,null,null,null,44]
[null,"Male 30-34",null,null,null,null,null,null,null,null,null,null,null,null,null,null,null,null,null,null,null,null,null,null,null,null,null,null,null,null,null,null,null,null,null,null,null,null,null,null,null,null,null,null,null,null,null,null,null,null,null,null,null,null,null,45]
[null,"Male 35-39",null,null,null,null,null,null,null,null,null,null,null,null,null,null,null,null,null,null,null,null,null,null,null,null,null,null,null,null,null,null,null,null,null,null,null,null,null,null,null,null,null,null,null,null,null,null,null,null,null,null,null,null,null,46]
[null,"Male 40-44",null,null,null,null,null,null,null,null,null,null,null,null,null,null,null,null,null,null,null,null,null,null,null,null,null,null,null,null,null,null,null,null,null,null,null,null,null,null,null,null,null,null,null,null,null,null,null,null,null,null,null,null,null,47]
[null,"Male 45-49",null,null,null,null,null,null,null,null,null,null,null,null,null,null,null,null,null,null,null,null,null,null,null,null,null,null,null,null,null,null,null,null,null,null,null,null,null,null,null,null,null,null,null,null,null,null,null,null,null,null,null,null,null,48]
[null,"Male 50-54",null,null,null,null,null,null,null,null,null,null,null,null,null,null,null,null,null,null,null,null,null,null,null,null,null,null,null,null,null,null,null,null,null,null,null,null,null,null,null,null,null,null,null,null,null,null,null,null,null,null,null,null,null,49]
[null,"Male 55-59",null,null,null,null,null,null,null,null,null,null,null,null,null,null,null,null,null,null,null,null,null,null,null,null,null,null,null,null,null,null,null,null,null,null,null,null,null,null,null,null,null,null,null,null,null,null,null,null,null,null,null,null,null,50]
[null,"Male 60-64",null,null,null,null,null,null,null,null,null,null,null,null,null,null,null,null,null,null,null,null,null,null,null,null,null,null,null,null,null,null,null,null,null,null,null,null,null,null,null,null,null,null,null,null,null,null,null,null,null,null,null,null,null,51]
[null,"Male 65-69",null,null,null,null,null,null,null,null,null,null,null,null,null,null,null,null,null,null,null,null,null,null,null,null,null,null,null,null,null,null,null,null,null,null,null,null,null,null,null,null,null,null,null,null,null,null,null,null,null,null,null,null,null,52]
[null,"Male 70-74",null,null,null,null,null,null,null,null,null,null,null,null,null,null,null,null,null,null,null,null,null,null,null,null,null,null,null,null,null,null,null,null,null,null,null,null,null,null,null,null,null,null,null,null,null,null,null,null,null,null,null,null,null,53]
[null,"Male 75-79",null,null,null,null,null,null,null,null,null,null,null,null,null,null,null,null,null,null,null,null,null,null,null,null,null,null,null,null,null,null,null,null,null,null,null,null,null,null,null,null,null,null,null,null,null,null,null,null,null,null,null,null,null,54]
[null,"Male 80-84",null,null,null,null,null,null,null,null,null,null,null,null,null,null,null,null,null,null,null,null,null,null,null,null,null,null,null,null,null,null,null,null,null,null,null,null,null,null,null,null,null,null,null,null,null,null,null,null,null,null,null,null,null,55]
[null,"Male 85-89",null,null,null,null,null,null,null,null,null,null,null,null,null,null,null,null,null,null,null,null,null,null,null,null,null,null,null,null,null,null,null,null,null,null,null,null,null,null,null,null,null,null,null,null,null,null,null,null,null,null,null,null,null,56]
[null,"Male 90+",null,null,null,null,null,null,null,null,null,null,null,null,null,null,null,null,null,null,null,null,null,null,null,null,null,null,null,null,null,null,null,null,null,null,null,null,null,null,null,null,null,null,null,null,null,null,null,null,null,null,null,null,null,57]
["SIMD Q1 (most deprived)","Female 0-4",{"$f":"'Population 2016'!C60/'Population 2016'!C$7","v":0},{"$f":"'Population 2016'!D60/'Population 2016'!D$7","v":0},{"$f":"'Population 2016'!E60/'Population 2016'!E$7","v":0},{"$f":"'Population 2016'!F60/'Population 2016'!F$7","v":0},{"$f":"'Population 2016'!G60/'Population 2016'!G$7","v":0},{"$f":"'Population 2016'!H60/'Population 2016'!H$7","v":0},{"$f":"'Population 2016'!I60/'Population 2016'!I$7","v":0},{"$f":"'Population 2016'!J60/'Population 2016'!J$7","v":0},{"$f":"'Population 2016'!K60/'Population 2016'!K$7","v":0},{"$f":"'Population 2016'!L60/'Population 2016'!L$7","v":0},{"$f":"'Population 2016'!M60/'Population 2016'!M$7","v":0},{"$f":"'Population 2016'!N60/'Population 2016'!N$7","v":0},{"$f":"'Population 2016'!O60/'Population 2016'!O$7","v":0},{"$f":"'Population 2016'!P60/'Population 2016'!P$7","v":0},{"$f":"'Population 2016'!Q60/'Population 2016'!Q$7","v":0},{"$f":"'Population 2016'!R60/'Population 2016'!R$7","v":0},{"$f":"'Population 2016'!S60/'Population 2016'!S$7","v":0},{"$f":"'Population 2016'!T60/'Population 2016'!T$7","v":0},{"$f":"'Population 2016'!U60/'Population 2016'!U$7","v":{"$error":"#DIV/0!"}},{"$f":"'Population 2016'!V60/'Population 2016'!V$7","v":0},{"$f":"'Population 2016'!W60/'Population 2016'!W$7","v":0},{"$f":"'Population 2016'!X60/'Population 2016'!X$7","v":0},{"$f":"'Population 2016'!Y60/'Population 2016'!Y$7","v":0},{"$f":"'Population 2016'!Z60/'Population 2016'!Z$7","v":0},{"$f":"'Population 2016'!AA60/'Population 2016'!AA$7","v":0},{"$f":"'Population 2016'!AB60/'Population 2016'!AB$7","v":0},{"$f":"'Population 2016'!AC60/'Population 2016'!AC$7","v":0},{"$f":"'Population 2016'!AD60/'Population 2016'!AD$7","v":0},{"$f":"'Population 2016'!AE60/'Population 2016'!AE$7","v":0},{"$f":"'Population 2016'!AF60/'Population 2016'!AF$7","v":0},{"$f":"'Population 2016'!AG60/'Population 2016'!AG$7","v":0},{"$f":"'Population 2016'!AH60/'Population 2016'!AH$7","v":0},{"$f":"'Population 2016'!AI60/'Population 2016'!AI$7","v":0},{"$f":"'Population 2016'!AJ60/'Population 2016'!AJ$7","v":0},{"$f":"'Population 2016'!AK60/'Population 2016'!AK$7","v":0},{"$f":"'Population 2016'!AL60/'Population 2016'!AL$7","v":0},{"$f":"'Population 2016'!AM60/'Population 2016'!AM$7","v":0},{"$f":"'Population 2016'!AN60/'Population 2016'!AN$7","v":{"$error":"#DIV/0!"}},{"$f":"'Population 2016'!AO60/'Population 2016'!AO$7","v":{"$error":"#DIV/0!"}},{"$f":"'Population 2016'!AP60/'Population 2016'!AP$7","v":0},{"$f":"'Population 2016'!AQ60/'Population 2016'!AQ$7","v":0},{"$f":"'Population 2016'!AR60/'Population 2016'!AR$7","v":0},{"$f":"'Population 2016'!AS60/'Population 2016'!AS$7","v":0},{"$f":"'Population 2016'!AT60/'Population 2016'!AT$7","v":{"$error":"#DIV/0!"}},{"$f":"'Population 2016'!AU60/'Population 2016'!AU$7","v":{"$error":"#DIV/0!"}},{"$f":"'Population 2016'!AV60/'Population 2016'!AV$7","v":0},{"$f":"'Population 2016'!AW60/'Population 2016'!AW$7","v":0},{"$f":"'Population 2016'!AX60/'Population 2016'!AX$7","v":0},{"$f":"'Population 2016'!AY60/'Population 2016'!AY$7","v":0},{"$f":"'Population 2016'!AZ60/'Population 2016'!AZ$7","v":0},{"$f":"'Population 2016'!BA60/'Population 2016'!BA$7","v":0},{"$f":"'Population 2016'!BB60/'Population 2016'!BB$7","v":0},{"$f":"'Population 2016'!BC60/'Population 2016'!BC$7","v":{"$error":"#DIV/0!"}},58]
[null,"Female 5-9",{"$f":"'Population 2016'!C61/'Population 2016'!C$7","v":0},{"$f":"'Population 2016'!D61/'Population 2016'!D$7","v":0},{"$f":"'Population 2016'!E61/'Population 2016'!E$7","v":0},{"$f":"'Population 2016'!F61/'Population 2016'!F$7","v":0},{"$f":"'Population 2016'!G61/'Population 2016'!G$7","v":0},{"$f":"'Population 2016'!H61/'Population 2016'!H$7","v":0},{"$f":"'Population 2016'!I61/'Population 2016'!I$7","v":0},{"$f":"'Population 2016'!J61/'Population 2016'!J$7","v":0},{"$f":"'Population 2016'!K61/'Population 2016'!K$7","v":0},{"$f":"'Population 2016'!L61/'Population 2016'!L$7","v":0},{"$f":"'Population 2016'!M61/'Population 2016'!M$7","v":0},{"$f":"'Population 2016'!N61/'Population 2016'!N$7","v":0},{"$f":"'Population 2016'!O61/'Population 2016'!O$7","v":0},{"$f":"'Population 2016'!P61/'Population 2016'!P$7","v":0},{"$f":"'Population 2016'!Q61/'Population 2016'!Q$7","v":0},{"$f":"'Population 2016'!R61/'Population 2016'!R$7","v":0},{"$f":"'Population 2016'!S61/'Population 2016'!S$7","v":0},{"$f":"'Population 2016'!T61/'Population 2016'!T$7","v":0},{"$f":"'Population 2016'!U61/'Population 2016'!U$7","v":{"$error":"#DIV/0!"}},{"$f":"'Population 2016'!V61/'Population 2016'!V$7","v":0},{"$f":"'Population 2016'!W61/'Population 2016'!W$7","v":0},{"$f":"'Population 2016'!X61/'Population 2016'!X$7","v":0},{"$f":"'Population 2016'!Y61/'Population 2016'!Y$7","v":0},{"$f":"'Population 2016'!Z61/'Population 2016'!Z$7","v":0},{"$f":"'Population 2016'!AA61/'Population 2016'!AA$7","v":0},{"$f":"'Population 2016'!AB61/'Population 2016'!AB$7","v":0},{"$f":"'Population 2016'!AC61/'Population 2016'!AC$7","v":0},{"$f":"'Population 2016'!AD61/'Population 2016'!AD$7","v":0},{"$f":"'Population 2016'!AE61/'Population 2016'!AE$7","v":0},{"$f":"'Population 2016'!AF61/'Population 2016'!AF$7","v":0},{"$f":"'Population 2016'!AG61/'Population 2016'!AG$7","v":0},{"$f":"'Population 2016'!AH61/'Population 2016'!AH$7","v":0},{"$f":"'Population 2016'!AI61/'Population 2016'!AI$7","v":0},{"$f":"'Population 2016'!AJ61/'Population 2016'!AJ$7","v":0},{"$f":"'Population 2016'!AK61/'Population 2016'!AK$7","v":0},{"$f":"'Population 2016'!AL61/'Population 2016'!AL$7","v":0},{"$f":"'Population 2016'!AM61/'Population 2016'!AM$7","v":0},{"$f":"'Population 2016'!AN61/'Population 2016'!AN$7","v":{"$error":"#DIV/0!"}},{"$f":"'Population 2016'!AO61/'Population 2016'!AO$7","v":{"$error":"#DIV/0!"}},{"$f":"'Population 2016'!AP61/'Population 2016'!AP$7","v":0},{"$f":"'Population 2016'!AQ61/'Population 2016'!AQ$7","v":0},{"$f":"'Population 2016'!AR61/'Population 2016'!AR$7","v":0},{"$f":"'Population 2016'!AS61/'Population 2016'!AS$7","v":0},{"$f":"'Population 2016'!AT61/'Population 2016'!AT$7","v":{"$error":"#DIV/0!"}},{"$f":"'Population 2016'!AU61/'Population 2016'!AU$7","v":{"$error":"#DIV/0!"}},{"$f":"'Population 2016'!AV61/'Population 2016'!AV$7","v":0},{"$f":"'Population 2016'!AW61/'Population 2016'!AW$7","v":0},{"$f":"'Population 2016'!AX61/'Population 2016'!AX$7","v":0},{"$f":"'Population 2016'!AY61/'Population 2016'!AY$7","v":0},{"$f":"'Population 2016'!AZ61/'Population 2016'!AZ$7","v":0},{"$f":"'Population 2016'!BA61/'Population 2016'!BA$7","v":0},{"$f":"'Population 2016'!BB61/'Population 2016'!BB$7","v":0},{"$f":"'Population 2016'!BC61/'Population 2016'!BC$7","v":{"$error":"#DIV/0!"}},59]
[null,"Female 10-15",{"$f":"'Population 2016'!C62/'Population 2016'!C$7","v":0},{"$f":"'Population 2016'!D62/'Population 2016'!D$7","v":0},{"$f":"'Population 2016'!E62/'Population 2016'!E$7","v":0},{"$f":"'Population 2016'!F62/'Population 2016'!F$7","v":0},{"$f":"'Population 2016'!G62/'Population 2016'!G$7","v":0},{"$f":"'Population 2016'!H62/'Population 2016'!H$7","v":0},{"$f":"'Population 2016'!I62/'Population 2016'!I$7","v":0},{"$f":"'Population 2016'!J62/'Population 2016'!J$7","v":0},{"$f":"'Population 2016'!K62/'Population 2016'!K$7","v":0},{"$f":"'Population 2016'!L62/'Population 2016'!L$7","v":0},{"$f":"'Population 2016'!M62/'Population 2016'!M$7","v":0},{"$f":"'Population 2016'!N62/'Population 2016'!N$7","v":0},{"$f":"'Population 2016'!O62/'Population 2016'!O$7","v":0},{"$f":"'Population 2016'!P62/'Population 2016'!P$7","v":0},{"$f":"'Population 2016'!Q62/'Population 2016'!Q$7","v":0},{"$f":"'Population 2016'!R62/'Population 2016'!R$7","v":0},{"$f":"'Population 2016'!S62/'Population 2016'!S$7","v":0},{"$f":"'Population 2016'!T62/'Population 2016'!T$7","v":0},{"$f":"'Population 2016'!U62/'Population 2016'!U$7","v":{"$error":"#DIV/0!"}},{"$f":"'Population 2016'!V62/'Population 2016'!V$7","v":0},{"$f":"'Population 2016'!W62/'Population 2016'!W$7","v":0},{"$f":"'Population 2016'!X62/'Population 2016'!X$7","v":0},{"$f":"'Population 2016'!Y62/'Population 2016'!Y$7","v":0},{"$f":"'Population 2016'!Z62/'Population 2016'!Z$7","v":0},{"$f":"'Population 2016'!AA62/'Population 2016'!AA$7","v":0},{"$f":"'Population 2016'!AB62/'Population 2016'!AB$7","v":0},{"$f":"'Population 2016'!AC62/'Population 2016'!AC$7","v":0},{"$f":"'Population 2016'!AD62/'Population 2016'!AD$7","v":0},{"$f":"'Population 2016'!AE62/'Population 2016'!AE$7","v":0},{"$f":"'Population 2016'!AF62/'Population 2016'!AF$7","v":0},{"$f":"'Population 2016'!AG62/'Population 2016'!AG$7","v":0},{"$f":"'Population 2016'!AH62/'Population 2016'!AH$7","v":0},{"$f":"'Population 2016'!AI62/'Population 2016'!AI$7","v":0},{"$f":"'Population 2016'!AJ62/'Population 2016'!AJ$7","v":0},{"$f":"'Population 2016'!AK62/'Population 2016'!AK$7","v":0},{"$f":"'Population 2016'!AL62/'Population 2016'!AL$7","v":0},{"$f":"'Population 2016'!AM62/'Population 2016'!AM$7","v":0},{"$f":"'Population 2016'!AN62/'Population 2016'!AN$7","v":{"$error":"#DIV/0!"}},{"$f":"'Population 2016'!AO62/'Population 2016'!AO$7","v":{"$error":"#DIV/0!"}},{"$f":"'Population 2016'!AP62/'Population 2016'!AP$7","v":0},{"$f":"'Population 2016'!AQ62/'Population 2016'!AQ$7","v":0},{"$f":"'Population 2016'!AR62/'Population 2016'!AR$7","v":0},{"$f":"'Population 2016'!AS62/'Population 2016'!AS$7","v":0},{"$f":"'Population 2016'!AT62/'Population 2016'!AT$7","v":{"$error":"#DIV/0!"}},{"$f":"'Population 2016'!AU62/'Population 2016'!AU$7","v":{"$error":"#DIV/0!"}},{"$f":"'Population 2016'!AV62/'Population 2016'!AV$7","v":0},{"$f":"'Population 2016'!AW62/'Population 2016'!AW$7","v":0},{"$f":"'Population 2016'!AX62/'Population 2016'!AX$7","v":0},{"$f":"'Population 2016'!AY62/'Population 2016'!AY$7","v":0},{"$f":"'Population 2016'!AZ62/'Population 2016'!AZ$7","v":0},{"$f":"'Population 2016'!BA62/'Population 2016'!BA$7","v":0},{"$f":"'Population 2016'!BB62/'Population 2016'!BB$7","v":0},{"$f":"'Population 2016'!BC62/'Population 2016'!BC$7","v":{"$error":"#DIV/0!"}},60]
[null,"Female 16-19",{"$f":"'Population 2016'!C63/'Population 2016'!C$7","v":2.3366866165796512E-2},{"$f":"'Population 2016'!D63/'Population 2016'!D$7","v":2.3858146137371122E-2},{"$f":"'Population 2016'!E63/'Population 2016'!E$7","v":2.562342713337909E-2},{"$f":"'Population 2016'!F63/'Population 2016'!F$7","v":3.3025885153228206E-2},{"$f":"'Population 2016'!G63/'Population 2016'!G$7","v":2.7047054464616523E-2},{"$f":"'Population 2016'!H63/'Population 2016'!H$7","v":2.9276091911804424E-2},{"$f":"'Population 2016'!I63/'Population 2016'!I$7","v":3.2872981910134214E-2},{"$f":"'Population 2016'!J63/'Population 2016'!J$7","v":2.9870260484763149E-2},{"$f":"'Population 2016'!K63/'Population 2016'!K$7","v":2.7463165280144333E-2},{"$f":"'Population 2016'!L63/'Population 2016'!L$7","v":3.1550480769230768E-2},{"$f":"'Population 2016'!M63/'Population 2016'!M$7","v":3.1550480769230768E-2},{"$f":"'Population 2016'!N63/'Population 2016'!N$7","v":2.9211814659272837E-2},{"$f":"'Population 2016'!O63/'Population 2016'!O$7","v":2.7685845213849286E-2},{"$f":"'Population 2016'!P63/'Population 2016'!P$7","v":2.7301280502536846E-2},{"$f":"'Population 2016'!Q63/'Population 2016'!Q$7","v":2.843439534087016E-2},{"$f":"'Population 2016'!R63/'Population 2016'!R$7","v":3.3887987012987016E-2},{"$f":"'Population 2016'!S63/'Population 2016'!S$7","v":2.9441723800195885E-2},{"$f":"'Population 2016'!T63/'Population 2016'!T$7","v":2.6873458885752065E-2},{"$f":"'Population 2016'!U63/'Population 2016'!U$7","v":{"$error":"#DIV/0!"}},{"$f":"'Population 2016'!V63/'Population 2016'!V$7","v":2.4892343241256172E-2},{"$f":"'Population 2016'!W63/'Population 2016'!W$7","v":3.0953307722249489E-2},{"$f":"'Population 2016'!X63/'Population 2016'!X$7","v":3.0953307722249489E-2},{"$f":"'Population 2016'!Y63/'Population 2016'!Y$7","v":2.7435265104808877E-2},{"$f":"'Population 2016'!Z63/'Population 2016'!Z$7","v":2.53492417127479E-2},{"$f":"'Population 2016'!AA63/'Population 2016'!AA$7","v":2.6628649455162724E-2},{"$f":"'Population 2016'!AB63/'Population 2016'!AB$7","v":2.3899188876013906E-2},{"$f":"'Population 2016'!AC63/'Population 2016'!AC$7","v":2.574934738019765E-2},{"$f":"'Population 2016'!AD63/'Population 2016'!AD$7","v":2.9571774845138701E-2},{"$f":"'Population 2016'!AE63/'Population 2016'!AE$7","v":3.0606820080504291E-2},{"$f":"'Population 2016'!AF63/'Population 2016'!AF$7","v":2.4868069110099037E-2},{"$f":"'Population 2016'!AG63/'Population 2016'!AG$7","v":3.0606820080504291E-2},{"$f":"'Population 2016'!AH63/'Population 2016'!AH$7","v":2.8805308138905916E-2},{"$f":"'Population 2016'!AI63/'Population 2016'!AI$7","v":2.8238866396761132E-2},{"$f":"'Population 2016'!AJ63/'Population 2016'!AJ$7","v":2.899165605996323E-2},{"$f":"'Population 2016'!AK63/'Population 2016'!AK$7","v":2.5196850393700787E-2},{"$f":"'Population 2016'!AL63/'Population 2016'!AL$7","v":3.0031565375894721E-2},{"$f":"'Population 2016'!AM63/'Population 2016'!AM$7","v":2.9491021441680025E-2},{"$f":"'Population 2016'!AN63/'Population 2016'!AN$7","v":{"$error":"#DIV/0!"}},{"$f":"'Population 2016'!AO63/'Population 2016'!AO$7","v":{"$error":"#DIV/0!"}},{"$f":"'Population 2016'!AP63/'Population 2016'!AP$7","v":2.7643504531722055E-2},{"$f":"'Population 2016'!AQ63/'Population 2016'!AQ$7","v":2.5568320703984355E-2},{"$f":"'Population 2016'!AR63/'Population 2016'!AR$7","v":2.7678352368745083E-2},{"$f":"'Population 2016'!AS63/'Population 2016'!AS$7","v":3.2872981910134214E-2},{"$f":"'Population 2016'!AT63/'Population 2016'!AT$7","v":{"$error":"#DIV/0!"}},{"$f":"'Population 2016'!AU63/'Population 2016'!AU$7","v":{"$error":"#DIV/0!"}},{"$f":"'Population 2016'!AV63/'Population 2016'!AV$7","v":3.0265519589032619E-2},{"$f":"'Population 2016'!AW63/'Population 2016'!AW$7","v":2.7682121725233537E-2},{"$f":"'Population 2016'!AX63/'Population 2016'!AX$7","v":3.229387425572712E-2},{"$f":"'Population 2016'!AY63/'Population 2016'!AY$7","v":3.0234571107071756E-2},{"$f":"'Population 2016'!AZ63/'Population 2016'!AZ$7","v":2.9482114066015839E-2},{"$f":"'Population 2016'!BA63/'Population 2016'!BA$7","v":2.8600866908264053E-2},{"$f":"'Population 2016'!BB63/'Population 2016'!BB$7","v":3.1309876328165828E-2},{"$f":"'Population 2016'!BC63/'Population 2016'!BC$7","v":{"$error":"#DIV/0!"}},61]
[null,"Female 20-24",{"$f":"'Population 2016'!C64/'Population 2016'!C$7","v":4.9789889214313002E-2},{"$f":"'Population 2016'!D64/'Population 2016'!D$7","v":4.891168999352493E-2},{"$f":"'Population 2016'!E64/'Population 2016'!E$7","v":4.5756119881034091E-2},{"$f":"'Population 2016'!F64/'Population 2016'!F$7","v":4.7604879500148765E-2},{"$f":"'Population 2016'!G64/'Population 2016'!G$7","v":3.8532789922193403E-2},{"$f":"'Population 2016'!H64/'Population 2016'!H$7","v":4.3827713980144109E-2},{"$f":"'Population 2016'!I64/'Population 2016'!I$7","v":4.2209686831355765E-2},{"$f":"'Population 2016'!J64/'Population 2016'!J$7","v":4.8124308558785078E-2},{"$f":"'Population 2016'!K64/'Population 2016'!K$7","v":4.430189435702115E-2},{"$f":"'Population 2016'!L64/'Population 2016'!L$7","v":5.028044871794872E-2},{"$f":"'Population 2016'!M64/'Population 2016'!M$7","v":5.028044871794872E-2},{"$f":"'Population 2016'!N64/'Population 2016'!N$7","v":4.9745933780366132E-2},{"$f":"'Population 2016'!O64/'Population 2016'!O$7","v":4.3374490835030553E-2},{"$f":"'Population 2016'!P64/'Population 2016'!P$7","v":4.2763952645566559E-2},{"$f":"'Population 2016'!Q64/'Population 2016'!Q$7","v":4.1109969167523124E-2},{"$f":"'Population 2016'!R64/'Population 2016'!R$7","v":4.6469155844155847E-2},{"$f":"'Population 2016'!S64/'Population 2016'!S$7","v":4.0888018282729352E-2},{"$f":"'Population 2016'!T64/'Population 2016'!T$7","v":4.2454347282278523E-2},{"$f":"'Population 2016'!U64/'Population 2016'!U$7","v":{"$error":"#DIV/0!"}},{"$f":"'Population 2016'!V64/'Population 2016'!V$7","v":4.0752021846444698E-2},{"$f":"'Population 2016'!W64/'Population 2016'!W$7","v":3.8044306046810743E-2},{"$f":"'Population 2016'!X64/'Population 2016'!X$7","v":3.8044306046810743E-2},{"$f":"'Population 2016'!Y64/'Population 2016'!Y$7","v":4.4518084669132756E-2},{"$f":"'Population 2016'!Z64/'Population 2016'!Z$7","v":4.3159832043901065E-2},{"$f":"'Population 2016'!AA64/'Population 2016'!AA$7","v":4.2441485244466025E-2},{"$f":"'Population 2016'!AB64/'Population 2016'!AB$7","v":4.9101969872537662E-2},{"$f":"'Population 2016'!AC64/'Population 2016'!AC$7","v":4.3611900988252843E-2},{"$f":"'Population 2016'!AD64/'Population 2016'!AD$7","v":4.368435227578777E-2},{"$f":"'Population 2016'!AE64/'Population 2016'!AE$7","v":4.5796308954203689E-2},{"$f":"'Population 2016'!AF64/'Population 2016'!AF$7","v":4.0952794043229955E-2},{"$f":"'Population 2016'!AG64/'Population 2016'!AG$7","v":4.5796308954203689E-2},{"$f":"'Population 2016'!AH64/'Population 2016'!AH$7","v":3.9544192420035339E-2},{"$f":"'Population 2016'!AI64/'Population 2016'!AI$7","v":4.2701304543409806E-2},{"$f":"'Population 2016'!AJ64/'Population 2016'!AJ$7","v":4.6103804270965915E-2},{"$f":"'Population 2016'!AK64/'Population 2016'!AK$7","v":5.5118110236220472E-2},{"$f":"'Population 2016'!AL64/'Population 2016'!AL$7","v":4.3257902458542656E-2},{"$f":"'Population 2016'!AM64/'Population 2016'!AM$7","v":3.9770483425093504E-2},{"$f":"'Population 2016'!AN64/'Population 2016'!AN$7","v":{"$error":"#DIV/0!"}},{"$f":"'Population 2016'!AO64/'Population 2016'!AO$7","v":{"$error":"#DIV/0!"}},{"$f":"'Population 2016'!AP64/'Population 2016'!AP$7","v":4.9244712990936558E-2},{"$f":"'Population 2016'!AQ64/'Population 2016'!AQ$7","v":4.7054509899780002E-2},{"$f":"'Population 2016'!AR64/'Population 2016'!AR$7","v":4.3135213715585499E-2},{"$f":"'Population 2016'!AS64/'Population 2016'!AS$7","v":4.2209686831355765E-2},{"$f":"'Population 2016'!AT64/'Population 2016'!AT$7","v":{"$error":"#DIV/0!"}},{"$f":"'Population 2016'!AU64/'Population 2016'!AU$7","v":{"$error":"#DIV/0!"}},{"$f":"'Population 2016'!AV64/'Population 2016'!AV$7","v":4.6295723215943552E-2},{"$f":"'Population 2016'!AW64/'Population 2016'!AW$7","v":3.917353170601777E-2},{"$f":"'Population 2016'!AX64/'Population 2016'!AX$7","v":5.1972953880310827E-2},{"$f":"'Population 2016'!AY64/'Population 2016'!AY$7","v":4.3607720938284425E-2},{"$f":"'Population 2016'!AZ64/'Population 2016'!AZ$7","v":4.9432150387129926E-2},{"$f":"'Population 2016'!BA64/'Population 2016'!BA$7","v":4.4659987209550202E-2},{"$f":"'Population 2016'!BB64/'Population 2016'!BB$7","v":4.2457759972130291E-2},{"$f":"'Population 2016'!BC64/'Population 2016'!BC$7","v":{"$error":"#DIV/0!"}},62]
[null,"Female 25-29",{"$f":"'Population 2016'!C65/'Population 2016'!C$7","v":6.5643703043422902E-2},{"$f":"'Population 2016'!D65/'Population 2016'!D$7","v":6.3206654380634553E-2},{"$f":"'Population 2016'!E65/'Population 2016'!E$7","v":5.4449782658430562E-2},{"$f":"'Population 2016'!F65/'Population 2016'!F$7","v":4.4480809282951506E-2},{"$f":"'Population 2016'!G65/'Population 2016'!G$7","v":3.18636532048907E-2},{"$f":"'Population 2016'!H65/'Population 2016'!H$7","v":4.3892531895816003E-2},{"$f":"'Population 2016'!I65/'Population 2016'!I$7","v":3.96809959151916E-2},{"$f":"'Population 2016'!J65/'Population 2016'!J$7","v":5.0990646686110828E-2},{"$f":"'Population 2016'!K65/'Population 2016'!K$7","v":4.2898666933948081E-2},{"$f":"'Population 2016'!L65/'Population 2016'!L$7","v":5.0480769230769232E-2},{"$f":"'Population 2016'!M65/'Population 2016'!M$7","v":5.0480769230769232E-2},{"$f":"'Population 2016'!N65/'Population 2016'!N$7","v":6.480428780250122E-2},{"$f":"'Population 2016'!O65/'Population 2016'!O$7","v":4.461558044806517E-2},{"$f":"'Population 2016'!P65/'Population 2016'!P$7","v":4.638801642908915E-2},{"$f":"'Population 2016'!Q65/'Population 2016'!Q$7","v":4.6933881466255566E-2},{"$f":"'Population 2016'!R65/'Population 2016'!R$7","v":4.4642857142857144E-2},{"$f":"'Population 2016'!S65/'Population 2016'!S$7","v":5.2530199151158995E-2},{"$f":"'Population 2016'!T65/'Population 2016'!T$7","v":6.3931672801343667E-2},{"$f":"'Population 2016'!U65/'Population 2016'!U$7","v":{"$error":"#DIV/0!"}},{"$f":"'Population 2016'!V65/'Population 2016'!V$7","v":4.684381892658334E-2},{"$f":"'Population 2016'!W65/'Population 2016'!W$7","v":4.6675354126825636E-2},{"$f":"'Population 2016'!X65/'Population 2016'!X$7","v":4.6675354126825636E-2},{"$f":"'Population 2016'!Y65/'Population 2016'!Y$7","v":4.8962186600904234E-2},{"$f":"'Population 2016'!Z65/'Population 2016'!Z$7","v":5.963115358212287E-2},{"$f":"'Population 2016'!AA65/'Population 2016'!AA$7","v":5.2001817853563177E-2},{"$f":"'Population 2016'!AB65/'Population 2016'!AB$7","v":6.2379297025878716E-2},{"$f":"'Population 2016'!AC65/'Population 2016'!AC$7","v":5.5953407607682269E-2},{"$f":"'Population 2016'!AD65/'Population 2016'!AD$7","v":4.1314301104228388E-2},{"$f":"'Population 2016'!AE65/'Population 2016'!AE$7","v":4.5188729399255716E-2},{"$f":"'Population 2016'!AF65/'Population 2016'!AF$7","v":4.1314248536109301E-2},{"$f":"'Population 2016'!AG65/'Population 2016'!AG$7","v":4.5188729399255716E-2},{"$f":"'Population 2016'!AH65/'Population 2016'!AH$7","v":4.2219898308751939E-2},{"$f":"'Population 2016'!AI65/'Population 2016'!AI$7","v":5.7163742690058479E-2},{"$f":"'Population 2016'!AJ65/'Population 2016'!AJ$7","v":4.76594541083298E-2},{"$f":"'Population 2016'!AK65/'Population 2016'!AK$7","v":3.6220472440944881E-2},{"$f":"'Population 2016'!AL65/'Population 2016'!AL$7","v":4.3346819010358778E-2},{"$f":"'Population 2016'!AM65/'Population 2016'!AM$7","v":4.3196970752897995E-2},{"$f":"'Population 2016'!AN65/'Population 2016'!AN$7","v":{"$error":"#DIV/0!"}},{"$f":"'Population 2016'!AO65/'Population 2016'!AO$7","v":{"$error":"#DIV/0!"}},{"$f":"'Population 2016'!AP65/'Population 2016'!AP$7","v":6.0574018126888216E-2},{"$f":"'Population 2016'!AQ65/'Population 2016'!AQ$7","v":5.3409924223906134E-2},{"$f":"'Population 2016'!AR65/'Population 2016'!AR$7","v":5.1739556128286672E-2},{"$f":"'Population 2016'!AS65/'Population 2016'!AS$7","v":3.96809959151916E-2},{"$f":"'Population 2016'!AT65/'Population 2016'!AT$7","v":{"$error":"#DIV/0!"}},{"$f":"'Population 2016'!AU65/'Population 2016'!AU$7","v":{"$error":"#DIV/0!"}},{"$f":"'Population 2016'!AV65/'Population 2016'!AV$7","v":4.4005694126384852E-2},{"$f":"'Population 2016'!AW65/'Population 2016'!AW$7","v":4.0619470710222406E-2},{"$f":"'Population 2016'!AX65/'Population 2016'!AX$7","v":5.9138157230800285E-2},{"$f":"'Population 2016'!AY65/'Population 2016'!AY$7","v":5.4107158313857873E-2},{"$f":"'Population 2016'!AZ65/'Population 2016'!AZ$7","v":6.1887634875356569E-2},{"$f":"'Population 2016'!BA65/'Population 2016'!BA$7","v":4.6400909543096711E-2},{"$f":"'Population 2016'!BB65/'Population 2016'!BB$7","v":4.4896359519247517E-2},{"$f":"'Population 2016'!BC65/'Population 2016'!BC$7","v":{"$error":"#DIV/0!"}},63]
[null,"Female 30-34",{"$f":"'Population 2016'!C66/'Population 2016'!C$7","v":5.7684961161339615E-2},{"$f":"'Population 2016'!D66/'Population 2016'!D$7","v":5.6831199880460231E-2},{"$f":"'Population 2016'!E66/'Population 2016'!E$7","v":5.3763440860215055E-2},{"$f":"'Population 2016'!F66/'Population 2016'!F$7","v":4.9390062481404345E-2},{"$f":"'Population 2016'!G66/'Population 2016'!G$7","v":3.7236013338273435E-2},{"$f":"'Population 2016'!H66/'Population 2016'!H$7","v":3.8955567318806915E-2},{"$f":"'Population 2016'!I66/'Population 2016'!I$7","v":4.0264539972767945E-2},{"$f":"'Population 2016'!J66/'Population 2016'!J$7","v":4.4604244191893794E-2},{"$f":"'Population 2016'!K66/'Population 2016'!K$7","v":4.099428685977749E-2},{"$f":"'Population 2016'!L66/'Population 2016'!L$7","v":4.3068910256410256E-2},{"$f":"'Population 2016'!M66/'Population 2016'!M$7","v":4.3068910256410256E-2},{"$f":"'Population 2016'!N66/'Population 2016'!N$7","v":5.1950161256641689E-2},{"$f":"'Population 2016'!O66/'Population 2016'!O$7","v":3.9651221995926682E-2},{"$f":"'Population 2016'!P66/'Population 2016'!P$7","v":3.9864701618748492E-2},{"$f":"'Population 2016'!Q66/'Population 2016'!Q$7","v":4.2480301473107225E-2},{"$f":"'Population 2016'!R66/'Population 2016'!R$7","v":4.3425324675324672E-2},{"$f":"'Population 2016'!S66/'Population 2016'!S$7","v":5.0199151158994447E-2},{"$f":"'Population 2016'!T66/'Population 2016'!T$7","v":6.2948933280920563E-2},{"$f":"'Population 2016'!U66/'Population 2016'!U$7","v":{"$error":"#DIV/0!"}},{"$f":"'Population 2016'!V66/'Population 2016'!V$7","v":4.5898540069320447E-2},{"$f":"'Population 2016'!W66/'Population 2016'!W$7","v":4.1175176428776931E-2},{"$f":"'Population 2016'!X66/'Population 2016'!X$7","v":4.1175176428776931E-2},{"$f":"'Population 2016'!Y66/'Population 2016'!Y$7","v":4.5237361282367446E-2},{"$f":"'Population 2016'!Z66/'Population 2016'!Z$7","v":5.0492118108346001E-2},{"$f":"'Population 2016'!AA66/'Population 2016'!AA$7","v":4.7301545798081296E-2},{"$f":"'Population 2016'!AB66/'Population 2016'!AB$7","v":5.6682116647354189E-2},{"$f":"'Population 2016'!AC66/'Population 2016'!AC$7","v":4.862308875629312E-2},{"$f":"'Population 2016'!AD66/'Population 2016'!AD$7","v":4.6108268246700779E-2},{"$f":"'Population 2016'!AE66/'Population 2016'!AE$7","v":4.9745576061365537E-2},{"$f":"'Population 2016'!AF66/'Population 2016'!AF$7","v":4.0410612303910937E-2},{"$f":"'Population 2016'!AG66/'Population 2016'!AG$7","v":4.9745576061365537E-2},{"$f":"'Population 2016'!AH66/'Population 2016'!AH$7","v":4.4030146767155894E-2},{"$f":"'Population 2016'!AI66/'Population 2016'!AI$7","v":5.6770130454340983E-2},{"$f":"'Population 2016'!AJ66/'Population 2016'!AJ$7","v":4.1861122896337151E-2},{"$f":"'Population 2016'!AK66/'Population 2016'!AK$7","v":5.1968503937007873E-2},{"$f":"'Population 2016'!AL66/'Population 2016'!AL$7","v":3.7633930556173034E-2},{"$f":"'Population 2016'!AM66/'Population 2016'!AM$7","v":4.3673194415406416E-2},{"$f":"'Population 2016'!AN66/'Population 2016'!AN$7","v":{"$error":"#DIV/0!"}},{"$f":"'Population 2016'!AO66/'Population 2016'!AO$7","v":{"$error":"#DIV/0!"}},{"$f":"'Population 2016'!AP66/'Population 2016'!AP$7","v":5.4380664652567974E-2},{"$f":"'Population 2016'!AQ66/'Population 2016'!AQ$7","v":4.5563431923735027E-2},{"$f":"'Population 2016'!AR66/'Population 2016'!AR$7","v":4.728089021982633E-2},{"$f":"'Population 2016'!AS66/'Population 2016'!AS$7","v":4.0264539972767945E-2},{"$f":"'Population 2016'!AT66/'Population 2016'!AT$7","v":{"$error":"#DIV/0!"}},{"$f":"'Population 2016'!AU66/'Population 2016'!AU$7","v":{"$error":"#DIV/0!"}},{"$f":"'Population 2016'!AV66/'Population 2016'!AV$7","v":4.1282416290152876E-2},{"$f":"'Population 2016'!AW66/'Population 2016'!AW$7","v":4.4614828484998384E-2},{"$f":"'Population 2016'!AX66/'Population 2016'!AX$7","v":4.8238974669492382E-2},{"$f":"'Population 2016'!AY66/'Population 2016'!AY$7","v":4.6429498831472342E-2},{"$f":"'Population 2016'!AZ66/'Population 2016'!AZ$7","v":5.1930334331425736E-2},{"$f":"'Population 2016'!BA66/'Population 2016'!BA$7","v":4.7573367441199457E-2},{"$f":"'Population 2016'!BB66/'Population 2016'!BB$7","v":4.8118794635080994E-2},{"$f":"'Population 2016'!BC66/'Population 2016'!BC$7","v":{"$error":"#DIV/0!"}},64]
[null,"Female 35-39",{"$f":"'Population 2016'!C67/'Population 2016'!C$7","v":4.1258117916719725E-2},{"$f":"'Population 2016'!D67/'Population 2016'!D$7","v":4.0842755391741793E-2},{"$f":"'Population 2016'!E67/'Population 2016'!E$7","v":3.9350263097689318E-2},{"$f":"'Population 2016'!F67/'Population 2016'!F$7","v":4.4332044034513539E-2},{"$f":"'Population 2016'!G67/'Population 2016'!G$7","v":3.2789922193404965E-2},{"$f":"'Population 2016'!H67/'Population 2016'!H$7","v":3.4990871476876212E-2},{"$f":"'Population 2016'!I67/'Population 2016'!I$7","v":3.7346819684886207E-2},{"$f":"'Population 2016'!J67/'Population 2016'!J$7","v":3.8921854571055015E-2},{"$f":"'Population 2016'!K67/'Population 2016'!K$7","v":4.2297283752631053E-2},{"$f":"'Population 2016'!L67/'Population 2016'!L$7","v":3.6157852564102567E-2},{"$f":"'Population 2016'!M67/'Population 2016'!M$7","v":3.6157852564102567E-2},{"$f":"'Population 2016'!N67/'Population 2016'!N$7","v":4.0673797535905706E-2},{"$f":"'Population 2016'!O67/'Population 2016'!O$7","v":3.4845977596741344E-2},{"$f":"'Population 2016'!P67/'Population 2016'!P$7","v":3.6482242087460738E-2},{"$f":"'Population 2016'!Q67/'Population 2016'!Q$7","v":4.9674546077423776E-2},{"$f":"'Population 2016'!R67/'Population 2016'!R$7","v":4.3628246753246752E-2},{"$f":"'Population 2016'!S67/'Population 2016'!S$7","v":4.3075416258570032E-2},{"$f":"'Population 2016'!T67/'Population 2016'!T$7","v":5.0423471393345957E-2},{"$f":"'Population 2016'!U67/'Population 2016'!U$7","v":{"$error":"#DIV/0!"}},{"$f":"'Population 2016'!V67/'Population 2016'!V$7","v":3.6235689528410879E-2},{"$f":"'Population 2016'!W67/'Population 2016'!W$7","v":3.7418131970417504E-2},{"$f":"'Population 2016'!X67/'Population 2016'!X$7","v":3.7418131970417504E-2},{"$f":"'Population 2016'!Y67/'Population 2016'!Y$7","v":3.76078914919852E-2},{"$f":"'Population 2016'!Z67/'Population 2016'!Z$7","v":4.1854255547647226E-2},{"$f":"'Population 2016'!AA67/'Population 2016'!AA$7","v":4.0438941079547694E-2},{"$f":"'Population 2016'!AB67/'Population 2016'!AB$7","v":4.0749324063344923E-2},{"$f":"'Population 2016'!AC67/'Population 2016'!AC$7","v":4.093732519112437E-2},{"$f":"'Population 2016'!AD67/'Population 2016'!AD$7","v":3.7651494748182066E-2},{"$f":"'Population 2016'!AE67/'Population 2016'!AE$7","v":3.9644565960355434E-2},{"$f":"'Population 2016'!AF67/'Population 2016'!AF$7","v":3.589243114291911E-2},{"$f":"'Population 2016'!AG67/'Population 2016'!AG$7","v":3.9644565960355434E-2},{"$f":"'Population 2016'!AH67/'Population 2016'!AH$7","v":3.9205221593162885E-2},{"$f":"'Population 2016'!AI67/'Population 2016'!AI$7","v":4.7165991902834006E-2},{"$f":"'Population 2016'!AJ67/'Population 2016'!AJ$7","v":3.9598359496535146E-2},{"$f":"'Population 2016'!AK67/'Population 2016'!AK$7","v":3.7795275590551181E-2},{"$f":"'Population 2016'!AL67/'Population 2016'!AL$7","v":3.5166496243275683E-2},{"$f":"'Population 2016'!AM67/'Population 2016'!AM$7","v":3.9085185959532601E-2},{"$f":"'Population 2016'!AN67/'Population 2016'!AN$7","v":{"$error":"#DIV/0!"}},{"$f":"'Population 2016'!AO67/'Population 2016'!AO$7","v":{"$error":"#DIV/0!"}},{"$f":"'Population 2016'!AP67/'Population 2016'!AP$7","v":4.4712990936555889E-2},{"$f":"'Population 2016'!AQ67/'Population 2016'!AQ$7","v":4.0210217550721093E-2},{"$f":"'Population 2016'!AR67/'Population 2016'!AR$7","v":4.0170412985506186E-2},{"$f":"'Population 2016'!AS67/'Population 2016'!AS$7","v":3.7346819684886207E-2},{"$f":"'Population 2016'!AT67/'Population 2016'!AT$7","v":{"$error":"#DIV/0!"}},{"$f":"'Population 2016'!AU67/'Population 2016'!AU$7","v":{"$error":"#DIV/0!"}},{"$f":"'Population 2016'!AV67/'Population 2016'!AV$7","v":3.4783685090053848E-2},{"$f":"'Population 2016'!AW67/'Population 2016'!AW$7","v":3.9401837864576399E-2},{"$f":"'Population 2016'!AX67/'Population 2016'!AX$7","v":3.5523261681299829E-2},{"$f":"'Population 2016'!AY67/'Population 2016'!AY$7","v":3.945295594217952E-2},{"$f":"'Population 2016'!AZ67/'Population 2016'!AZ$7","v":4.1583246221718252E-2},{"$f":"'Population 2016'!BA67/'Population 2016'!BA$7","v":3.9401691181695446E-2},{"$f":"'Population 2016'!BB67/'Population 2016'!BB$7","v":4.1238460198571678E-2},{"$f":"'Population 2016'!BC67/'Population 2016'!BC$7","v":{"$error":"#DIV/0!"}},65]
[null,"Female 40-44",{"$f":"'Population 2016'!C68/'Population 2016'!C$7","v":4.2085827072456387E-2},{"$f":"'Population 2016'!D68/'Population 2016'!D$7","v":4.1291029536285301E-2},{"$f":"'Population 2016'!E68/'Population 2016'!E$7","v":3.8435140700068635E-2},{"$f":"'Population 2016'!F68/'Population 2016'!F$7","v":3.7935138351681046E-2},{"$f":"'Population 2016'!G68/'Population 2016'!G$7","v":3.8532789922193403E-2},{"$f":"'Population 2016'!H68/'Population 2016'!H$7","v":3.9722579320924302E-2},{"$f":"'Population 2016'!I68/'Population 2016'!I$7","v":4.5321921805096282E-2},{"$f":"'Population 2016'!J68/'Population 2016'!J$7","v":3.8921854571055015E-2},{"$f":"'Population 2016'!K68/'Population 2016'!K$7","v":4.0793825799338476E-2},{"$f":"'Population 2016'!L68/'Population 2016'!L$7","v":3.6558493589743592E-2},{"$f":"'Population 2016'!M68/'Population 2016'!M$7","v":3.6558493589743592E-2},{"$f":"'Population 2016'!N68/'Population 2016'!N$7","v":3.362026961182394E-2},{"$f":"'Population 2016'!O68/'Population 2016'!O$7","v":3.9205702647657839E-2},{"$f":"'Population 2016'!P68/'Population 2016'!P$7","v":4.2522348393331723E-2},{"$f":"'Population 2016'!Q68/'Population 2016'!Q$7","v":3.6313806097978761E-2},{"$f":"'Population 2016'!R68/'Population 2016'!R$7","v":4.0787337662337664E-2},{"$f":"'Population 2016'!S68/'Population 2016'!S$7","v":3.9758406790728042E-2},{"$f":"'Population 2016'!T68/'Population 2016'!T$7","v":3.9041560947718261E-2},{"$f":"'Population 2016'!U68/'Population 2016'!U$7","v":{"$error":"#DIV/0!"}},{"$f":"'Population 2016'!V68/'Population 2016'!V$7","v":4.1592269719567275E-2},{"$f":"'Population 2016'!W68/'Population 2016'!W$7","v":3.8501243886340943E-2},{"$f":"'Population 2016'!X68/'Population 2016'!X$7","v":3.8501243886340943E-2},{"$f":"'Population 2016'!Y68/'Population 2016'!Y$7","v":4.0228113440197284E-2},{"$f":"'Population 2016'!Z68/'Population 2016'!Z$7","v":3.7474256979569832E-2},{"$f":"'Population 2016'!AA68/'Population 2016'!AA$7","v":3.8241330436388617E-2},{"$f":"'Population 2016'!AB68/'Population 2016'!AB$7","v":4.1376979528775587E-2},{"$f":"'Population 2016'!AC68/'Population 2016'!AC$7","v":3.7481936416184969E-2},{"$f":"'Population 2016'!AD68/'Population 2016'!AD$7","v":3.9536762725558845E-2},{"$f":"'Population 2016'!AE68/'Population 2016'!AE$7","v":3.994835573782942E-2},{"$f":"'Population 2016'!AF68/'Population 2016'!AF$7","v":3.6109303838646717E-2},{"$f":"'Population 2016'!AG68/'Population 2016'!AG$7","v":3.994835573782942E-2},{"$f":"'Population 2016'!AH68/'Population 2016'!AH$7","v":4.0121164040243767E-2},{"$f":"'Population 2016'!AI68/'Population 2016'!AI$7","v":4.0272154745838958E-2},{"$f":"'Population 2016'!AJ68/'Population 2016'!AJ$7","v":4.0164050346485645E-2},{"$f":"'Population 2016'!AK68/'Population 2016'!AK$7","v":4.4094488188976377E-2},{"$f":"'Population 2016'!AL68/'Population 2016'!AL$7","v":4.0834926421553369E-2},{"$f":"'Population 2016'!AM68/'Population 2016'!AM$7","v":4.0246707087601925E-2},{"$f":"'Population 2016'!AN68/'Population 2016'!AN$7","v":{"$error":"#DIV/0!"}},{"$f":"'Population 2016'!AO68/'Population 2016'!AO$7","v":{"$error":"#DIV/0!"}},{"$f":"'Population 2016'!AP68/'Population 2016'!AP$7","v":3.6706948640483385E-2},{"$f":"'Population 2016'!AQ68/'Population 2016'!AQ$7","v":3.6323637252505502E-2},{"$f":"'Population 2016'!AR68/'Population 2016'!AR$7","v":3.8594001151067259E-2},{"$f":"'Population 2016'!AS68/'Population 2016'!AS$7","v":4.5321921805096282E-2},{"$f":"'Population 2016'!AT68/'Population 2016'!AT$7","v":{"$error":"#DIV/0!"}},{"$f":"'Population 2016'!AU68/'Population 2016'!AU$7","v":{"$error":"#DIV/0!"}},{"$f":"'Population 2016'!AV68/'Population 2016'!AV$7","v":3.7630748282478185E-2},{"$f":"'Population 2016'!AW68/'Population 2016'!AW$7","v":3.9915526721333305E-2},{"$f":"'Population 2016'!AX68/'Population 2016'!AX$7","v":3.7037037037037035E-2},{"$f":"'Population 2016'!AY68/'Population 2016'!AY$7","v":3.6544620444906084E-2},{"$f":"'Population 2016'!AZ68/'Population 2016'!AZ$7","v":3.4496199571233677E-2},{"$f":"'Population 2016'!BA68/'Population 2016'!BA$7","v":3.9259575072834507E-2},{"$f":"'Population 2016'!BB68/'Population 2016'!BB$7","v":4.3807699007141612E-2},{"$f":"'Population 2016'!BC68/'Population 2016'!BC$7","v":{"$error":"#DIV/0!"}},66]
[null,"Female 45-49",{"$f":"'Population 2016'!C69/'Population 2016'!C$7","v":3.7819941423659749E-2},{"$f":"'Population 2016'!D69/'Population 2016'!D$7","v":3.9348508243263434E-2},{"$f":"'Population 2016'!E69/'Population 2016'!E$7","v":4.4840997483413407E-2},{"$f":"'Population 2016'!F69/'Population 2016'!F$7","v":4.5224635525141325E-2},{"$f":"'Population 2016'!G69/'Population 2016'!G$7","v":4.4275657650981848E-2},{"$f":"'Population 2016'!H69/'Population 2016'!H$7","v":4.7349487398316896E-2},{"$f":"'Population 2016'!I69/'Population 2016'!I$7","v":4.4154833689943593E-2},{"$f":"'Population 2016'!J69/'Population 2016'!J$7","v":4.9381474404103391E-2},{"$f":"'Population 2016'!K69/'Population 2016'!K$7","v":4.7308810263606296E-2},{"$f":"'Population 2016'!L69/'Population 2016'!L$7","v":4.5873397435897433E-2},{"$f":"'Population 2016'!M69/'Population 2016'!M$7","v":4.5873397435897433E-2},{"$f":"'Population 2016'!N69/'Population 2016'!N$7","v":3.821434372027193E-2},{"$f":"'Population 2016'!O69/'Population 2016'!O$7","v":4.8593431771894097E-2},{"$f":"'Population 2016'!P69/'Population 2016'!P$7","v":5.0978497221551101E-2},{"$f":"'Population 2016'!Q69/'Population 2016'!Q$7","v":5.2415210688591986E-2},{"$f":"'Population 2016'!R69/'Population 2016'!R$7","v":4.9918831168831168E-2},{"$f":"'Population 2016'!S69/'Population 2016'!S$7","v":4.4531505060398303E-2},{"$f":"'Population 2016'!T69/'Population 2016'!T$7","v":4.1614551692098774E-2},{"$f":"'Population 2016'!U69/'Population 2016'!U$7","v":{"$error":"#DIV/0!"}},{"$f":"'Population 2016'!V69/'Population 2016'!V$7","v":4.1434723243356793E-2},{"$f":"'Population 2016'!W69/'Population 2016'!W$7","v":4.6709201374198241E-2},{"$f":"'Population 2016'!X69/'Population 2016'!X$7","v":4.6709201374198241E-2},{"$f":"'Population 2016'!Y69/'Population 2016'!Y$7","v":4.5494245787094122E-2},{"$f":"'Population 2016'!Z69/'Population 2016'!Z$7","v":4.3985293312500263E-2},{"$f":"'Population 2016'!AA69/'Population 2016'!AA$7","v":4.546294048189721E-2},{"$f":"'Population 2016'!AB69/'Population 2016'!AB$7","v":3.9494013132483581E-2},{"$f":"'Population 2016'!AC69/'Population 2016'!AC$7","v":4.5147305612530303E-2},{"$f":"'Population 2016'!AD69/'Population 2016'!AD$7","v":4.5731214651225427E-2},{"$f":"'Population 2016'!AE69/'Population 2016'!AE$7","v":4.6327941064783169E-2},{"$f":"'Population 2016'!AF69/'Population 2016'!AF$7","v":4.8543338393696234E-2},{"$f":"'Population 2016'!AG69/'Population 2016'!AG$7","v":4.6327941064783169E-2},{"$f":"'Population 2016'!AH69/'Population 2016'!AH$7","v":4.6244275359705746E-2},{"$f":"'Population 2016'!AI69/'Population 2016'!AI$7","v":4.3106162843004947E-2},{"$f":"'Population 2016'!AJ69/'Population 2016'!AJ$7","v":4.4123886296139163E-2},{"$f":"'Population 2016'!AK69/'Population 2016'!AK$7","v":4.4094488188976377E-2},{"$f":"'Population 2016'!AL69/'Population 2016'!AL$7","v":4.717023073845196E-2},{"$f":"'Population 2016'!AM69/'Population 2016'!AM$7","v":4.6275001742281691E-2},{"$f":"'Population 2016'!AN69/'Population 2016'!AN$7","v":{"$error":"#DIV/0!"}},{"$f":"'Population 2016'!AO69/'Population 2016'!AO$7","v":{"$error":"#DIV/0!"}},{"$f":"'Population 2016'!AP69/'Population 2016'!AP$7","v":3.610271903323263E-2},{"$f":"'Population 2016'!AQ69/'Population 2016'!AQ$7","v":4.5881202639941332E-2},{"$f":"'Population 2016'!AR69/'Population 2016'!AR$7","v":4.4938628854183628E-2},{"$f":"'Population 2016'!AS69/'Population 2016'!AS$7","v":4.4154833689943593E-2},{"$f":"'Population 2016'!AT69/'Population 2016'!AT$7","v":{"$error":"#DIV/0!"}},{"$f":"'Population 2016'!AU69/'Population 2016'!AU$7","v":{"$error":"#DIV/0!"}},{"$f":"'Population 2016'!AV69/'Population 2016'!AV$7","v":4.5429225722597014E-2},{"$f":"'Population 2016'!AW69/'Population 2016'!AW$7","v":4.6193946081695553E-2},{"$f":"'Population 2016'!AX69/'Population 2016'!AX$7","v":5.1468362095065091E-2},{"$f":"'Population 2016'!AY69/'Population 2016'!AY$7","v":4.284601402233186E-2},{"$f":"'Population 2016'!AZ69/'Population 2016'!AZ$7","v":3.880158041140306E-2},{"$f":"'Population 2016'!BA69/'Population 2016'!BA$7","v":4.8852412420947913E-2},{"$f":"'Population 2016'!BB69/'Population 2016'!BB$7","v":4.5244730883121406E-2},{"$f":"'Population 2016'!BC69/'Population 2016'!BC$7","v":{"$error":"#DIV/0!"}},67]
[null,"Female 50-54",{"$f":"'Population 2016'!C70/'Population 2016'!C$7","v":3.9921049280529732E-2},{"$f":"'Population 2016'!D70/'Population 2016'!D$7","v":4.04442894854809E-2},{"$f":"'Population 2016'!E70/'Population 2016'!E$7","v":4.2324410889956532E-2},{"$f":"'Population 2016'!F70/'Population 2016'!F$7","v":4.1505504314192206E-2},{"$f":"'Population 2016'!G70/'Population 2016'!G$7","v":4.3164134864764725E-2},{"$f":"'Population 2016'!H70/'Population 2016'!H$7","v":4.8224529259887433E-2},{"$f":"'Population 2016'!I70/'Population 2016'!I$7","v":4.2793230888932117E-2},{"$f":"'Population 2016'!J70/'Population 2016'!J$7","v":4.5509403600522982E-2},{"$f":"'Population 2016'!K70/'Population 2016'!K$7","v":4.580535231031372E-2},{"$f":"'Population 2016'!L70/'Population 2016'!L$7","v":4.737580128205128E-2},{"$f":"'Population 2016'!M70/'Population 2016'!M$7","v":4.737580128205128E-2},{"$f":"'Population 2016'!N70/'Population 2016'!N$7","v":4.3295668112949257E-2},{"$f":"'Population 2016'!O70/'Population 2016'!O$7","v":4.9834521384928714E-2},{"$f":"'Population 2016'!P70/'Population 2016'!P$7","v":5.1220101473785938E-2},{"$f":"'Population 2016'!Q70/'Population 2016'!Q$7","v":4.2822884549503254E-2},{"$f":"'Population 2016'!R70/'Population 2016'!R$7","v":5.2353896103896104E-2},{"$f":"'Population 2016'!S70/'Population 2016'!S$7","v":4.2827293503101535E-2},{"$f":"'Population 2016'!T70/'Population 2016'!T$7","v":3.7397705749919595E-2},{"$f":"'Population 2016'!U70/'Population 2016'!U$7","v":{"$error":"#DIV/0!"}},{"$f":"'Population 2016'!V70/'Population 2016'!V$7","v":4.4113013338934984E-2},{"$f":"'Population 2016'!W70/'Population 2016'!W$7","v":4.6810743116316063E-2},{"$f":"'Population 2016'!X70/'Population 2016'!X$7","v":4.6810743116316063E-2},{"$f":"'Population 2016'!Y70/'Population 2016'!Y$7","v":4.482634607480477E-2},{"$f":"'Population 2016'!Z70/'Population 2016'!Z$7","v":4.6141600299861439E-2},{"$f":"'Population 2016'!AA70/'Population 2016'!AA$7","v":4.6535806112221328E-2},{"$f":"'Population 2016'!AB70/'Population 2016'!AB$7","v":4.0507918115102355E-2},{"$f":"'Population 2016'!AC70/'Population 2016'!AC$7","v":4.6513728323699419E-2},{"$f":"'Population 2016'!AD70/'Population 2016'!AD$7","v":4.2822515486129815E-2},{"$f":"'Population 2016'!AE70/'Population 2016'!AE$7","v":4.2682463735095315E-2},{"$f":"'Population 2016'!AF70/'Population 2016'!AF$7","v":4.7820429407937542E-2},{"$f":"'Population 2016'!AG70/'Population 2016'!AG$7","v":4.2682463735095315E-2},{"$f":"'Population 2016'!AH70/'Population 2016'!AH$7","v":4.65904583318308E-2},{"$f":"'Population 2016'!AI70/'Population 2016'!AI$7","v":4.0182186234817813E-2},{"$f":"'Population 2016'!AJ70/'Population 2016'!AJ$7","v":4.4830999858577289E-2},{"$f":"'Population 2016'!AK70/'Population 2016'!AK$7","v":4.2519685039370078E-2},{"$f":"'Population 2016'!AL70/'Population 2016'!AL$7","v":4.8948561774774371E-2},{"$f":"'Population 2016'!AM70/'Population 2016'!AM$7","v":4.69486839965619E-2},{"$f":"'Population 2016'!AN70/'Population 2016'!AN$7","v":{"$error":"#DIV/0!"}},{"$f":"'Population 2016'!AO70/'Population 2016'!AO$7","v":{"$error":"#DIV/0!"}},{"$f":"'Population 2016'!AP70/'Population 2016'!AP$7","v":3.9123867069486402E-2},{"$f":"'Population 2016'!AQ70/'Population 2016'!AQ$7","v":4.3950134441456859E-2},{"$f":"'Population 2016'!AR70/'Population 2016'!AR$7","v":4.5519894890591286E-2},{"$f":"'Population 2016'!AS70/'Population 2016'!AS$7","v":4.2793230888932117E-2},{"$f":"'Population 2016'!AT70/'Population 2016'!AT$7","v":{"$error":"#DIV/0!"}},{"$f":"'Population 2016'!AU70/'Population 2016'!AU$7","v":{"$error":"#DIV/0!"}},{"$f":"'Population 2016'!AV70/'Population 2016'!AV$7","v":4.307730395494213E-2},{"$f":"'Population 2016'!AW70/'Population 2016'!AW$7","v":4.6003690949563365E-2},{"$f":"'Population 2016'!AX70/'Population 2016'!AX$7","v":4.5211423958017964E-2},{"$f":"'Population 2016'!AY70/'Population 2016'!AY$7","v":4.4750281312213279E-2},{"$f":"'Population 2016'!AZ70/'Population 2016'!AZ$7","v":4.259315036941231E-2},{"$f":"'Population 2016'!BA70/'Population 2016'!BA$7","v":5.038016059120301E-2},{"$f":"'Population 2016'!BB70/'Population 2016'!BB$7","v":4.520118446263717E-2},{"$f":"'Population 2016'!BC70/'Population 2016'!BC$7","v":{"$error":"#DIV/0!"}},68]
[null,"Female 55-59",{"$f":"'Population 2016'!C71/'Population 2016'!C$7","v":3.4445434865656439E-2},{"$f":"'Population 2016'!D71/'Population 2016'!D$7","v":3.4865766797828358E-2},{"$f":"'Population 2016'!E71/'Population 2016'!E$7","v":3.6376115305422098E-2},{"$f":"'Population 2016'!F71/'Population 2016'!F$7","v":3.8678964593870872E-2},{"$f":"'Population 2016'!G71/'Population 2016'!G$7","v":4.1311596887736196E-2},{"$f":"'Population 2016'!H71/'Population 2016'!H$7","v":4.227208400401871E-2},{"$f":"'Population 2016'!I71/'Population 2016'!I$7","v":3.7930363742462558E-2},{"$f":"'Population 2016'!J71/'Population 2016'!J$7","v":4.1989339233631698E-2},{"$f":"'Population 2016'!K71/'Population 2016'!K$7","v":4.1996592161972539E-2},{"$f":"'Population 2016'!L71/'Population 2016'!L$7","v":3.8461538461538464E-2},{"$f":"'Population 2016'!M71/'Population 2016'!M$7","v":3.8461538461538464E-2},{"$f":"'Population 2016'!N71/'Population 2016'!N$7","v":3.8724796398988376E-2},{"$f":"'Population 2016'!O71/'Population 2016'!O$7","v":4.0351323828920573E-2},{"$f":"'Population 2016'!P71/'Population 2016'!P$7","v":5.1220101473785938E-2},{"$f":"'Population 2016'!Q71/'Population 2016'!Q$7","v":4.6933881466255566E-2},{"$f":"'Population 2016'!R71/'Population 2016'!R$7","v":3.9569805194805192E-2},{"$f":"'Population 2016'!S71/'Population 2016'!S$7","v":3.9712699967352272E-2},{"$f":"'Population 2016'!T71/'Population 2016'!T$7","v":3.6861666011506984E-2},{"$f":"'Population 2016'!U71/'Population 2016'!U$7","v":{"$error":"#DIV/0!"}},{"$f":"'Population 2016'!V71/'Population 2016'!V$7","v":4.0226866925743093E-2},{"$f":"'Population 2016'!W71/'Population 2016'!W$7","v":4.1395183536698875E-2},{"$f":"'Population 2016'!X71/'Population 2016'!X$7","v":4.1395183536698875E-2},{"$f":"'Population 2016'!Y71/'Population 2016'!Y$7","v":4.112720920674065E-2},{"$f":"'Population 2016'!Z71/'Population 2016'!Z$7","v":3.9954852322452127E-2},{"$f":"'Population 2016'!AA71/'Population 2016'!AA$7","v":4.1345792685837136E-2},{"$f":"'Population 2016'!AB71/'Population 2016'!AB$7","v":3.4907300115874854E-2},{"$f":"'Population 2016'!AC71/'Population 2016'!AC$7","v":4.0914017341040464E-2},{"$f":"'Population 2016'!AD71/'Population 2016'!AD$7","v":3.980608672232696E-2},{"$f":"'Population 2016'!AE71/'Population 2016'!AE$7","v":3.9188881294144454E-2},{"$f":"'Population 2016'!AF71/'Population 2016'!AF$7","v":4.5651702450661462E-2},{"$f":"'Population 2016'!AG71/'Population 2016'!AG$7","v":3.9188881294144454E-2},{"$f":"'Population 2016'!AH71/'Population 2016'!AH$7","v":4.241462623057228E-2},{"$f":"'Population 2016'!AI71/'Population 2016'!AI$7","v":3.8697705802968961E-2},{"$f":"'Population 2016'!AJ71/'Population 2016'!AJ$7","v":4.384104087116391E-2},{"$f":"'Population 2016'!AK71/'Population 2016'!AK$7","v":3.6220472440944881E-2},{"$f":"'Population 2016'!AL71/'Population 2016'!AL$7","v":4.3591339527853108E-2},{"$f":"'Population 2016'!AM71/'Population 2016'!AM$7","v":4.1477919483355399E-2},{"$f":"'Population 2016'!AN71/'Population 2016'!AN$7","v":{"$error":"#DIV/0!"}},{"$f":"'Population 2016'!AO71/'Population 2016'!AO$7","v":{"$error":"#DIV/0!"}},{"$f":"'Population 2016'!AP71/'Population 2016'!AP$7","v":3.5196374622356495E-2},{"$f":"'Population 2016'!AQ71/'Population 2016'!AQ$7","v":4.0405768760694204E-2},{"$f":"'Population 2016'!AR71/'Population 2016'!AR$7","v":4.0732188839233512E-2},{"$f":"'Population 2016'!AS71/'Population 2016'!AS$7","v":3.7930363742462558E-2},{"$f":"'Population 2016'!AT71/'Population 2016'!AT$7","v":{"$error":"#DIV/0!"}},{"$f":"'Population 2016'!AU71/'Population 2016'!AU$7","v":{"$error":"#DIV/0!"}},{"$f":"'Population 2016'!AV71/'Population 2016'!AV$7","v":4.2334591817787953E-2},{"$f":"'Population 2016'!AW71/'Population 2016'!AW$7","v":4.3948935522535718E-2},{"$f":"'Population 2016'!AX71/'Population 2016'!AX$7","v":4.1982036532445255E-2},{"$f":"'Population 2016'!AY71/'Population 2016'!AY$7","v":3.9885743962607113E-2},{"$f":"'Population 2016'!AZ71/'Population 2016'!AZ$7","v":3.8305487145869135E-2},{"$f":"'Population 2016'!BA71/'Population 2016'!BA$7","v":4.3807290556384569E-2},{"$f":"'Population 2016'!BB71/'Population 2016'!BB$7","v":4.0541717470823899E-2},{"$f":"'Population 2016'!BC71/'Population 2016'!BC$7","v":{"$error":"#DIV/0!"}},69]
[null,"Female 60-64",{"$f":"'Population 2016'!C72/'Population 2016'!C$7","v":2.8014771424933145E-2},{"$f":"'Population 2016'!D72/'Population 2016'!D$7","v":2.8141654629675748E-2},{"$f":"'Population 2016'!E72/'Population 2016'!E$7","v":2.8597574925646307E-2},{"$f":"'Population 2016'!F72/'Population 2016'!F$7","v":3.1091936923534663E-2},{"$f":"'Population 2016'!G72/'Population 2016'!G$7","v":3.7050759540570584E-2},{"$f":"'Population 2016'!H72/'Population 2016'!H$7","v":3.8274979204252053E-2},{"$f":"'Population 2016'!I72/'Population 2016'!I$7","v":3.6179731569733517E-2},{"$f":"'Population 2016'!J72/'Population 2016'!J$7","v":3.2133159006336114E-2},{"$f":"'Population 2016'!K72/'Population 2016'!K$7","v":3.3877919214192642E-2},{"$f":"'Population 2016'!L72/'Population 2016'!L$7","v":3.4555288461538464E-2},{"$f":"'Population 2016'!M72/'Population 2016'!M$7","v":3.4555288461538464E-2},{"$f":"'Population 2016'!N72/'Population 2016'!N$7","v":3.0859184667857722E-2},{"$f":"'Population 2016'!O72/'Population 2016'!O$7","v":3.6628054989816701E-2},{"$f":"'Population 2016'!P72/'Population 2016'!P$7","v":3.9381493114278812E-2},{"$f":"'Population 2016'!Q72/'Population 2016'!Q$7","v":3.3230558410414522E-2},{"$f":"'Population 2016'!R72/'Population 2016'!R$7","v":3.49025974025974E-2},{"$f":"'Population 2016'!S72/'Population 2016'!S$7","v":3.2158015017956253E-2},{"$f":"'Population 2016'!T72/'Population 2016'!T$7","v":2.7570310545688453E-2},{"$f":"'Population 2016'!U72/'Population 2016'!U$7","v":{"$error":"#DIV/0!"}},{"$f":"'Population 2016'!V72/'Population 2016'!V$7","v":3.4082554353534293E-2},{"$f":"'Population 2016'!W72/'Population 2016'!W$7","v":3.5302679009629544E-2},{"$f":"'Population 2016'!X72/'Population 2016'!X$7","v":3.5302679009629544E-2},{"$f":"'Population 2016'!Y72/'Population 2016'!Y$7","v":3.3086724208795729E-2},{"$f":"'Population 2016'!Z72/'Population 2016'!Z$7","v":3.0752643792404916E-2},{"$f":"'Population 2016'!AA72/'Population 2016'!AA$7","v":3.3362593305069445E-2},{"$f":"'Population 2016'!AB72/'Population 2016'!AB$7","v":2.9065276168404791E-2},{"$f":"'Population 2016'!AC72/'Population 2016'!AC$7","v":3.2022072534029458E-2},{"$f":"'Population 2016'!AD72/'Population 2016'!AD$7","v":3.6681928359816859E-2},{"$f":"'Population 2016'!AE72/'Population 2016'!AE$7","v":3.6530720741247059E-2},{"$f":"'Population 2016'!AF72/'Population 2016'!AF$7","v":3.7663558158027903E-2},{"$f":"'Population 2016'!AG72/'Population 2016'!AG$7","v":3.6530720741247059E-2},{"$f":"'Population 2016'!AH72/'Population 2016'!AH$7","v":3.6680970754750998E-2},{"$f":"'Population 2016'!AI72/'Population 2016'!AI$7","v":2.9835807467386413E-2},{"$f":"'Population 2016'!AJ72/'Population 2016'!AJ$7","v":3.2810069297129117E-2},{"$f":"'Population 2016'!AK72/'Population 2016'!AK$7","v":5.826771653543307E-2},{"$f":"'Population 2016'!AL72/'Population 2016'!AL$7","v":3.9167741075001108E-2},{"$f":"'Population 2016'!AM72/'Population 2016'!AM$7","v":3.5554161730201872E-2},{"$f":"'Population 2016'!AN72/'Population 2016'!AN$7","v":{"$error":"#DIV/0!"}},{"$f":"'Population 2016'!AO72/'Population 2016'!AO$7","v":{"$error":"#DIV/0!"}},{"$f":"'Population 2016'!AP72/'Population 2016'!AP$7","v":3.2024169184290033E-2},{"$f":"'Population 2016'!AQ72/'Population 2016'!AQ$7","v":3.0774871669518457E-2},{"$f":"'Population 2016'!AR72/'Population 2016'!AR$7","v":3.34910127328217E-2},{"$f":"'Population 2016'!AS72/'Population 2016'!AS$7","v":3.6179731569733517E-2},{"$f":"'Population 2016'!AT72/'Population 2016'!AT$7","v":{"$error":"#DIV/0!"}},{"$f":"'Population 2016'!AU72/'Population 2016'!AU$7","v":{"$error":"#DIV/0!"}},{"$f":"'Population 2016'!AV72/'Population 2016'!AV$7","v":3.899238720059417E-2},{"$f":"'Population 2016'!AW72/'Population 2016'!AW$7","v":3.8526664256768324E-2},{"$f":"'Population 2016'!AX72/'Population 2016'!AX$7","v":3.0376425471793318E-2},{"$f":"'Population 2016'!AY72/'Population 2016'!AY$7","v":3.3212152687613607E-2},{"$f":"'Population 2016'!AZ72/'Population 2016'!AZ$7","v":3.1023546712496235E-2},{"$f":"'Population 2016'!BA72/'Population 2016'!BA$7","v":3.7412065657642296E-2},{"$f":"'Population 2016'!BB72/'Population 2016'!BB$7","v":3.4009754398188471E-2},{"$f":"'Population 2016'!BC72/'Population 2016'!BC$7","v":{"$error":"#DIV/0!"}},70]
[null,"Female 65-69",{"$f":"'Population 2016'!C73/'Population 2016'!C$7","v":2.5977333503119825E-2},{"$f":"'Population 2016'!D73/'Population 2016'!D$7","v":2.6149325098371271E-2},{"$f":"'Population 2016'!E73/'Population 2016'!E$7","v":2.6767330130404943E-2},{"$f":"'Population 2016'!F73/'Population 2016'!F$7","v":2.7819101457899436E-2},{"$f":"'Population 2016'!G73/'Population 2016'!G$7","v":4.1682104483141906E-2},{"$f":"'Population 2016'!H73/'Population 2016'!H$7","v":3.6600516382728189E-2},{"$f":"'Population 2016'!I73/'Population 2016'!I$7","v":3.7541334370744993E-2},{"$f":"'Population 2016'!J73/'Population 2016'!J$7","v":3.4396057527909085E-2},{"$f":"'Population 2016'!K73/'Population 2016'!K$7","v":3.7285757241655809E-2},{"$f":"'Population 2016'!L73/'Population 2016'!L$7","v":2.9847756410256412E-2},{"$f":"'Population 2016'!M73/'Population 2016'!M$7","v":2.9847756410256412E-2},{"$f":"'Population 2016'!N73/'Population 2016'!N$7","v":3.078957748439639E-2},{"$f":"'Population 2016'!O73/'Population 2016'!O$7","v":3.5705193482688392E-2},{"$f":"'Population 2016'!P73/'Population 2016'!P$7","v":3.5515825078521385E-2},{"$f":"'Population 2016'!Q73/'Population 2016'!Q$7","v":3.4943473792394653E-2},{"$f":"'Population 2016'!R73/'Population 2016'!R$7","v":3.510551948051948E-2},{"$f":"'Population 2016'!S73/'Population 2016'!S$7","v":3.2066601371204699E-2},{"$f":"'Population 2016'!T73/'Population 2016'!T$7","v":2.667691098166744E-2},{"$f":"'Population 2016'!U73/'Population 2016'!U$7","v":{"$error":"#DIV/0!"}},{"$f":"'Population 2016'!V73/'Population 2016'!V$7","v":3.4345131813885099E-2},{"$f":"'Population 2016'!W73/'Population 2016'!W$7","v":3.5505762493865188E-2},{"$f":"'Population 2016'!X73/'Population 2016'!X$7","v":3.5505762493865188E-2},{"$f":"'Population 2016'!Y73/'Population 2016'!Y$7","v":3.4371146732429102E-2},{"$f":"'Population 2016'!Z73/'Population 2016'!Z$7","v":2.7593990978887564E-2},{"$f":"'Population 2016'!AA73/'Population 2016'!AA$7","v":3.1011419689678285E-2},{"$f":"'Population 2016'!AB73/'Population 2016'!AB$7","v":2.6892622634221708E-2},{"$f":"'Population 2016'!AC73/'Population 2016'!AC$7","v":2.9394112437068805E-2},{"$f":"'Population 2016'!AD73/'Population 2016'!AD$7","v":3.3934823592782118E-2},{"$f":"'Population 2016'!AE73/'Population 2016'!AE$7","v":3.0758714969241284E-2},{"$f":"'Population 2016'!AF73/'Population 2016'!AF$7","v":3.7771994505891707E-2},{"$f":"'Population 2016'!AG73/'Population 2016'!AG$7","v":3.0758714969241284E-2},{"$f":"'Population 2016'!AH73/'Population 2016'!AH$7","v":3.5014965201399156E-2},{"$f":"'Population 2016'!AI73/'Population 2016'!AI$7","v":2.9464687359424202E-2},{"$f":"'Population 2016'!AJ73/'Population 2016'!AJ$7","v":3.6911327959270261E-2},{"$f":"'Population 2016'!AK73/'Population 2016'!AK$7","v":5.0393700787401574E-2},{"$f":"'Population 2016'!AL73/'Population 2016'!AL$7","v":3.8367492108656025E-2},{"$f":"'Population 2016'!AM73/'Population 2016'!AM$7","v":3.3707343136571657E-2},{"$f":"'Population 2016'!AN73/'Population 2016'!AN$7","v":{"$error":"#DIV/0!"}},{"$f":"'Population 2016'!AO73/'Population 2016'!AO$7","v":{"$error":"#DIV/0!"}},{"$f":"'Population 2016'!AP73/'Population 2016'!AP$7","v":2.7492447129909364E-2},{"$f":"'Population 2016'!AQ73/'Population 2016'!AQ$7","v":2.9650452212173061E-2},{"$f":"'Population 2016'!AR73/'Population 2016'!AR$7","v":3.1828614798322469E-2},{"$f":"'Population 2016'!AS73/'Population 2016'!AS$7","v":3.7541334370744993E-2},{"$f":"'Population 2016'!AT73/'Population 2016'!AT$7","v":{"$error":"#DIV/0!"}},{"$f":"'Population 2016'!AU73/'Population 2016'!AU$7","v":{"$error":"#DIV/0!"}},{"$f":"'Population 2016'!AV73/'Population 2016'!AV$7","v":3.3422046171937857E-2},{"$f":"'Population 2016'!AW73/'Population 2016'!AW$7","v":3.7156827305416563E-2},{"$f":"'Population 2016'!AX73/'Population 2016'!AX$7","v":3.1486527399333941E-2},{"$f":"'Population 2016'!AY73/'Population 2016'!AY$7","v":3.2839954990045876E-2},{"$f":"'Population 2016'!AZ73/'Population 2016'!AZ$7","v":3.0049077798054605E-2},{"$f":"'Population 2016'!BA73/'Population 2016'!BA$7","v":3.4072337099410217E-2},{"$f":"'Population 2016'!BB73/'Population 2016'!BB$7","v":3.3269465249956456E-2},{"$f":"'Population 2016'!BC73/'Population 2016'!BC$7","v":{"$error":"#DIV/0!"}},71]
[null,"Female 70-74",{"$f":"'Population 2016'!C74/'Population 2016'!C$7","v":1.8273271361263211E-2},{"$f":"'Population 2016'!D74/'Population 2016'!D$7","v":1.8279623449718584E-2},{"$f":"'Population 2016'!E74/'Population 2016'!E$7","v":1.8302447952413637E-2},{"$f":"'Population 2016'!F74/'Population 2016'!F$7","v":2.3951204998512346E-2},{"$f":"'Population 2016'!G74/'Population 2016'!G$7","v":3.0752130418673584E-2},{"$f":"'Population 2016'!H74/'Population 2016'!H$7","v":2.8649518726976138E-2},{"$f":"'Population 2016'!I74/'Population 2016'!I$7","v":2.8982688192958569E-2},{"$f":"'Population 2016'!J74/'Population 2016'!J$7","v":2.6551342653122801E-2},{"$f":"'Population 2016'!K74/'Population 2016'!K$7","v":2.7964317931241857E-2},{"$f":"'Population 2016'!L74/'Population 2016'!L$7","v":3.1149839743589744E-2},{"$f":"'Population 2016'!M74/'Population 2016'!M$7","v":3.1149839743589744E-2},{"$f":"'Population 2016'!N74/'Population 2016'!N$7","v":2.2227893918652406E-2},{"$f":"'Population 2016'!O74/'Population 2016'!O$7","v":2.7590376782077392E-2},{"$f":"'Population 2016'!P74/'Population 2016'!P$7","v":2.4643633727953612E-2},{"$f":"'Population 2016'!Q74/'Population 2016'!Q$7","v":2.9804727646454265E-2},{"$f":"'Population 2016'!R74/'Population 2016'!R$7","v":2.5162337662337664E-2},{"$f":"'Population 2016'!S74/'Population 2016'!S$7","v":2.4720861900097944E-2},{"$f":"'Population 2016'!T74/'Population 2016'!T$7","v":1.9404638530536398E-2},{"$f":"'Population 2016'!U74/'Population 2016'!U$7","v":{"$error":"#DIV/0!"}},{"$f":"'Population 2016'!V74/'Population 2016'!V$7","v":2.483982774918601E-2},{"$f":"'Population 2016'!W74/'Population 2016'!W$7","v":2.8143986190323073E-2},{"$f":"'Population 2016'!X74/'Population 2016'!X$7","v":2.8143986190323073E-2},{"$f":"'Population 2016'!Y74/'Population 2016'!Y$7","v":2.5714138923140156E-2},{"$f":"'Population 2016'!Z74/'Population 2016'!Z$7","v":2.2725454108986156E-2},{"$f":"'Population 2016'!AA74/'Population 2016'!AA$7","v":2.4698736425759565E-2},{"$f":"'Population 2016'!AB74/'Population 2016'!AB$7","v":1.839513325608343E-2},{"$f":"'Population 2016'!AC74/'Population 2016'!AC$7","v":2.3462264590714151E-2},{"$f":"'Population 2016'!AD74/'Population 2016'!AD$7","v":2.6016698087799623E-2},{"$f":"'Population 2016'!AE74/'Population 2016'!AE$7","v":2.4075339864813548E-2},{"$f":"'Population 2016'!AF74/'Population 2016'!AF$7","v":2.8482614038892504E-2},{"$f":"'Population 2016'!AG74/'Population 2016'!AG$7","v":2.4075339864813548E-2},{"$f":"'Population 2016'!AH74/'Population 2016'!AH$7","v":2.7759547077278138E-2},{"$f":"'Population 2016'!AI74/'Population 2016'!AI$7","v":2.2199730094466935E-2},{"$f":"'Population 2016'!AJ74/'Population 2016'!AJ$7","v":2.8001697072549851E-2},{"$f":"'Population 2016'!AK74/'Population 2016'!AK$7","v":2.2047244094488189E-2},{"$f":"'Population 2016'!AL74/'Population 2016'!AL$7","v":2.9898190548170542E-2},{"$f":"'Population 2016'!AM74/'Population 2016'!AM$7","v":2.7632587636769113E-2},{"$f":"'Population 2016'!AN74/'Population 2016'!AN$7","v":{"$error":"#DIV/0!"}},{"$f":"'Population 2016'!AO74/'Population 2016'!AO$7","v":{"$error":"#DIV/0!"}},{"$f":"'Population 2016'!AP74/'Population 2016'!AP$7","v":2.2809667673716012E-2},{"$f":"'Population 2016'!AQ74/'Population 2016'!AQ$7","v":2.3466145196773404E-2},{"$f":"'Population 2016'!AR74/'Population 2016'!AR$7","v":2.4977242345517372E-2},{"$f":"'Population 2016'!AS74/'Population 2016'!AS$7","v":2.8982688192958569E-2},{"$f":"'Population 2016'!AT74/'Population 2016'!AT$7","v":{"$error":"#DIV/0!"}},{"$f":"'Population 2016'!AU74/'Population 2016'!AU$7","v":{"$error":"#DIV/0!"}},{"$f":"'Population 2016'!AV74/'Population 2016'!AV$7","v":2.7232778362319736E-2},{"$f":"'Population 2016'!AW74/'Population 2016'!AW$7","v":2.7967504423431822E-2},{"$f":"'Population 2016'!AX74/'Population 2016'!AX$7","v":2.5128670905237661E-2},{"$f":"'Population 2016'!AY74/'Population 2016'!AY$7","v":2.5387345278282698E-2},{"$f":"'Population 2016'!AZ74/'Population 2016'!AZ$7","v":2.250137311528853E-2},{"$f":"'Population 2016'!BA74/'Population 2016'!BA$7","v":2.42663255880054E-2},{"$f":"'Population 2016'!BB74/'Population 2016'!BB$7","v":2.6258491551994428E-2},{"$f":"'Population 2016'!BC74/'Population 2016'!BC$7","v":{"$error":"#DIV/0!"}},72]
[null,"Female 75-79",{"$f":"'Population 2016'!C75/'Population 2016'!C$7","v":1.5471794218769897E-2},{"$f":"'Population 2016'!D75/'Population 2016'!D$7","v":1.4793046769935748E-2},{"$f":"'Population 2016'!E75/'Population 2016'!E$7","v":1.2354152367879203E-2},{"$f":"'Population 2016'!F75/'Population 2016'!F$7","v":2.4695031240702173E-2},{"$f":"'Population 2016'!G75/'Population 2016'!G$7","v":2.667654686921082E-2},{"$f":"'Population 2016'!H75/'Population 2016'!H$7","v":2.4717231842881372E-2},{"$f":"'Population 2016'!I75/'Population 2016'!I$7","v":2.0229527329313362E-2},{"$f":"'Population 2016'!J75/'Population 2016'!J$7","v":2.071809313084582E-2},{"$f":"'Population 2016'!K75/'Population 2016'!K$7","v":2.1349102936754537E-2},{"$f":"'Population 2016'!L75/'Population 2016'!L$7","v":1.893028846153846E-2},{"$f":"'Population 2016'!M75/'Population 2016'!M$7","v":1.893028846153846E-2},{"$f":"'Population 2016'!N75/'Population 2016'!N$7","v":1.9466808974686188E-2},{"$f":"'Population 2016'!O75/'Population 2016'!O$7","v":2.3517057026476579E-2},{"$f":"'Population 2016'!P75/'Population 2016'!P$7","v":2.0777965692196181E-2},{"$f":"'Population 2016'!Q75/'Population 2016'!Q$7","v":2.5693730729701953E-2},{"$f":"'Population 2016'!R75/'Population 2016'!R$7","v":2.2118506493506492E-2},{"$f":"'Population 2016'!S75/'Population 2016'!S$7","v":2.0339536402220047E-2},{"$f":"'Population 2016'!T75/'Population 2016'!T$7","v":1.7189007611764284E-2},{"$f":"'Population 2016'!U75/'Population 2016'!U$7","v":{"$error":"#DIV/0!"}},{"$f":"'Population 2016'!V75/'Population 2016'!V$7","v":2.6677869971641635E-2},{"$f":"'Population 2016'!W75/'Population 2016'!W$7","v":2.3100746331804565E-2},{"$f":"'Population 2016'!X75/'Population 2016'!X$7","v":2.3100746331804565E-2},{"$f":"'Population 2016'!Y75/'Population 2016'!Y$7","v":2.3633374434854089E-2},{"$f":"'Population 2016'!Z75/'Population 2016'!Z$7","v":2.1542012188188322E-2},{"$f":"'Population 2016'!AA75/'Population 2016'!AA$7","v":2.2432644997686178E-2},{"$f":"'Population 2016'!AB75/'Population 2016'!AB$7","v":1.4822325222093473E-2},{"$f":"'Population 2016'!AC75/'Population 2016'!AC$7","v":2.2168678911057244E-2},{"$f":"'Population 2016'!AD75/'Population 2016'!AD$7","v":2.2030702935631565E-2},{"$f":"'Population 2016'!AE75/'Population 2016'!AE$7","v":2.0126072757651704E-2},{"$f":"'Population 2016'!AF75/'Population 2016'!AF$7","v":2.7145232415238921E-2},{"$f":"'Population 2016'!AG75/'Population 2016'!AG$7","v":2.0126072757651704E-2},{"$f":"'Population 2016'!AH75/'Population 2016'!AH$7","v":2.3086076953589846E-2},{"$f":"'Population 2016'!AI75/'Population 2016'!AI$7","v":1.851102114260009E-2},{"$f":"'Population 2016'!AJ75/'Population 2016'!AJ$7","v":1.8384952623391317E-2},{"$f":"'Population 2016'!AK75/'Population 2016'!AK$7","v":1.5748031496062992E-2},{"$f":"'Population 2016'!AL75/'Population 2016'!AL$7","v":2.5941403992353177E-2},{"$f":"'Population 2016'!AM75/'Population 2016'!AM$7","v":2.2847120589123516E-2},{"$f":"'Population 2016'!AN75/'Population 2016'!AN$7","v":{"$error":"#DIV/0!"}},{"$f":"'Population 2016'!AO75/'Population 2016'!AO$7","v":{"$error":"#DIV/0!"}},{"$f":"'Population 2016'!AP75/'Population 2016'!AP$7","v":1.4350453172205438E-2},{"$f":"'Population 2016'!AQ75/'Population 2016'!AQ$7","v":2.3417257394280126E-2},{"$f":"'Population 2016'!AR75/'Population 2016'!AR$7","v":2.194135977272154E-2},{"$f":"'Population 2016'!AS75/'Population 2016'!AS$7","v":2.0229527329313362E-2},{"$f":"'Population 2016'!AT75/'Population 2016'!AT$7","v":{"$error":"#DIV/0!"}},{"$f":"'Population 2016'!AU75/'Population 2016'!AU$7","v":{"$error":"#DIV/0!"}},{"$f":"'Population 2016'!AV75/'Population 2016'!AV$7","v":2.3643003032741226E-2},{"$f":"'Population 2016'!AW75/'Population 2016'!AW$7","v":2.3477483305112155E-2},{"$f":"'Population 2016'!AX75/'Population 2016'!AX$7","v":2.0082753052780299E-2},{"$f":"'Population 2016'!AY75/'Population 2016'!AY$7","v":2.1336449407080411E-2},{"$f":"'Population 2016'!AZ75/'Population 2016'!AZ$7","v":1.9489378288832588E-2},{"$f":"'Population 2016'!BA75/'Population 2016'!BA$7","v":2.0962126056988561E-2},{"$f":"'Population 2016'!BB75/'Population 2016'!BB$7","v":2.0858735411949138E-2},{"$f":"'Population 2016'!BC75/'Population 2016'!BC$7","v":{"$error":"#DIV/0!"}},73]
[null,"Female 80-84",{"$f":"'Population 2016'!C76/'Population 2016'!C$7","v":1.2033617725709919E-2},{"$f":"'Population 2016'!D76/'Population 2016'!D$7","v":1.1904168949544255E-2},{"$f":"'Population 2016'!E76/'Population 2016'!E$7","v":1.1439029970258523E-2},{"$f":"'Population 2016'!F76/'Population 2016'!F$7","v":1.4430229098482595E-2},{"$f":"'Population 2016'!G76/'Population 2016'!G$7","v":2.1674694331233792E-2},{"$f":"'Population 2016'!H76/'Population 2016'!H$7","v":1.8062592500567156E-2},{"$f":"'Population 2016'!I76/'Population 2016'!I$7","v":1.5950204240420152E-2},{"$f":"'Population 2016'!J76/'Population 2016'!J$7","v":1.563914311575983E-2},{"$f":"'Population 2016'!K76/'Population 2016'!K$7","v":1.403227423073068E-2},{"$f":"'Population 2016'!L76/'Population 2016'!L$7","v":1.5124198717948718E-2},{"$f":"'Population 2016'!M76/'Population 2016'!M$7","v":1.5124198717948718E-2},{"$f":"'Population 2016'!N76/'Population 2016'!N$7","v":1.5568806700851527E-2},{"$f":"'Population 2016'!O76/'Population 2016'!O$7","v":1.7820773930753563E-2},{"$f":"'Population 2016'!P76/'Population 2016'!P$7","v":1.3529838125151003E-2},{"$f":"'Population 2016'!Q76/'Population 2016'!Q$7","v":1.4388489208633094E-2},{"$f":"'Population 2016'!R76/'Population 2016'!R$7","v":1.9074675324675324E-2},{"$f":"'Population 2016'!S76/'Population 2016'!S$7","v":1.5435847208619001E-2},{"$f":"'Population 2016'!T76/'Population 2016'!T$7","v":1.3615409355680234E-2},{"$f":"'Population 2016'!U76/'Population 2016'!U$7","v":{"$error":"#DIV/0!"}},{"$f":"'Population 2016'!V76/'Population 2016'!V$7","v":1.9063123621468333E-2},{"$f":"'Population 2016'!W76/'Population 2016'!W$7","v":1.6686692954695461E-2},{"$f":"'Population 2016'!X76/'Population 2016'!X$7","v":1.6686692954695461E-2},{"$f":"'Population 2016'!Y76/'Population 2016'!Y$7","v":1.7314015618577889E-2},{"$f":"'Population 2016'!Z76/'Population 2016'!Z$7","v":1.7052513655908996E-2},{"$f":"'Population 2016'!AA76/'Population 2016'!AA$7","v":1.758296032057308E-2},{"$f":"'Population 2016'!AB76/'Population 2016'!AB$7","v":1.2022016222479722E-2},{"$f":"'Population 2016'!AC76/'Population 2016'!AC$7","v":1.7574118963266827E-2},{"$f":"'Population 2016'!AD76/'Population 2016'!AD$7","v":1.7021276595744681E-2},{"$f":"'Population 2016'!AE76/'Population 2016'!AE$7","v":1.5113541429330904E-2},{"$f":"'Population 2016'!AF76/'Population 2016'!AF$7","v":2.161497867418492E-2},{"$f":"'Population 2016'!AG76/'Population 2016'!AG$7","v":1.5113541429330904E-2},{"$f":"'Population 2016'!AH76/'Population 2016'!AH$7","v":1.7604846561609752E-2},{"$f":"'Population 2016'!AI76/'Population 2016'!AI$7","v":1.4574898785425101E-2},{"$f":"'Population 2016'!AJ76/'Population 2016'!AJ$7","v":1.923348889831707E-2},{"$f":"'Population 2016'!AK76/'Population 2016'!AK$7","v":1.5748031496062992E-2},{"$f":"'Population 2016'!AL76/'Population 2016'!AL$7","v":1.8250122260258746E-2},{"$f":"'Population 2016'!AM76/'Population 2016'!AM$7","v":1.7202127906706624E-2},{"$f":"'Population 2016'!AN76/'Population 2016'!AN$7","v":{"$error":"#DIV/0!"}},{"$f":"'Population 2016'!AO76/'Population 2016'!AO$7","v":{"$error":"#DIV/0!"}},{"$f":"'Population 2016'!AP76/'Population 2016'!AP$7","v":1.646525679758308E-2},{"$f":"'Population 2016'!AQ76/'Population 2016'!AQ$7","v":1.9237350281104865E-2},{"$f":"'Population 2016'!AR76/'Population 2016'!AR$7","v":1.6940408193214206E-2},{"$f":"'Population 2016'!AS76/'Population 2016'!AS$7","v":1.5950204240420152E-2},{"$f":"'Population 2016'!AT76/'Population 2016'!AT$7","v":{"$error":"#DIV/0!"}},{"$f":"'Population 2016'!AU76/'Population 2016'!AU$7","v":{"$error":"#DIV/0!"}},{"$f":"'Population 2016'!AV76/'Population 2016'!AV$7","v":1.8010769325988735E-2},{"$f":"'Population 2016'!AW76/'Population 2016'!AW$7","v":1.8264492684690169E-2},{"$f":"'Population 2016'!AX76/'Population 2016'!AX$7","v":1.725703905540418E-2},{"$f":"'Population 2016'!AY76/'Population 2016'!AY$7","v":1.6125681641132174E-2},{"$f":"'Population 2016'!AZ76/'Population 2016'!AZ$7","v":1.5538349781187434E-2},{"$f":"'Population 2016'!BA76/'Population 2016'!BA$7","v":1.591700419242521E-2},{"$f":"'Population 2016'!BB76/'Population 2016'!BB$7","v":1.5502525692388086E-2},{"$f":"'Population 2016'!BC76/'Population 2016'!BC$7","v":{"$error":"#DIV/0!"}},74]
[null,"Female 85-89",{"$f":"'Population 2016'!C77/'Population 2016'!C$7","v":9.232140583216605E-3},{"$f":"'Population 2016'!D77/'Population 2016'!D$7","v":8.9654828908701505E-3},{"$f":"'Population 2016'!E77/'Population 2016'!E$7","v":8.0073209791809655E-3},{"$f":"'Population 2016'!F77/'Population 2016'!F$7","v":8.9259149062778931E-3},{"$f":"'Population 2016'!G77/'Population 2016'!G$7","v":1.593182660244535E-2},{"$f":"'Population 2016'!H77/'Population 2016'!H$7","v":1.1094666565838797E-2},{"$f":"'Population 2016'!I77/'Population 2016'!I$7","v":1.1476366465668159E-2},{"$f":"'Population 2016'!J77/'Population 2016'!J$7","v":8.2972945791008751E-3},{"$f":"'Population 2016'!K77/'Population 2016'!K$7","v":8.8202866593164279E-3},{"$f":"'Population 2016'!L77/'Population 2016'!L$7","v":1.0116185897435898E-2},{"$f":"'Population 2016'!M77/'Population 2016'!M$7","v":1.0116185897435898E-2},{"$f":"'Population 2016'!N77/'Population 2016'!N$7","v":1.0255458363303093E-2},{"$f":"'Population 2016'!O77/'Population 2016'!O$7","v":1.212449083503055E-2},{"$f":"'Population 2016'!P77/'Population 2016'!P$7","v":7.9729403237496985E-3},{"$f":"'Population 2016'!Q77/'Population 2016'!Q$7","v":7.1942446043165471E-3},{"$f":"'Population 2016'!R77/'Population 2016'!R$7","v":8.9285714285714281E-3},{"$f":"'Population 2016'!S77/'Population 2016'!S$7","v":9.2980737838720216E-3},{"$f":"'Population 2016'!T77/'Population 2016'!T$7","v":9.0948075617339093E-3},{"$f":"'Population 2016'!U77/'Population 2016'!U$7","v":{"$error":"#DIV/0!"}},{"$f":"'Population 2016'!V77/'Population 2016'!V$7","v":1.1395861779224871E-2},{"$f":"'Population 2016'!W77/'Population 2016'!W$7","v":1.0238792330213745E-2},{"$f":"'Population 2016'!X77/'Population 2016'!X$7","v":1.0238792330213745E-2},{"$f":"'Population 2016'!Y77/'Population 2016'!Y$7","v":9.8129880805589813E-3},{"$f":"'Population 2016'!Z77/'Population 2016'!Z$7","v":9.9392275198679266E-3},{"$f":"'Population 2016'!AA77/'Population 2016'!AA$7","v":1.0344748872661017E-2},{"$f":"'Population 2016'!AB77/'Population 2016'!AB$7","v":9.0768636539204327E-3},{"$f":"'Population 2016'!AC77/'Population 2016'!AC$7","v":1.042152246876748E-2},{"$f":"'Population 2016'!AD77/'Population 2016'!AD$7","v":1.1203878265553462E-2},{"$f":"'Population 2016'!AE77/'Population 2016'!AE$7","v":9.2655882129566332E-3},{"$f":"'Population 2016'!AF77/'Population 2016'!AF$7","v":1.3048507192944408E-2},{"$f":"'Population 2016'!AG77/'Population 2016'!AG$7","v":9.2655882129566332E-3},{"$f":"'Population 2016'!AH77/'Population 2016'!AH$7","v":1.0154700515668386E-2},{"$f":"'Population 2016'!AI77/'Population 2016'!AI$7","v":8.5470085470085479E-3},{"$f":"'Population 2016'!AJ77/'Population 2016'!AJ$7","v":1.0182435299109036E-2},{"$f":"'Population 2016'!AK77/'Population 2016'!AK$7","v":1.2598425196850394E-2},{"$f":"'Population 2016'!AL77/'Population 2016'!AL$7","v":1.0069799493175654E-2},{"$f":"'Population 2016'!AM77/'Population 2016'!AM$7","v":1.0383998884939717E-2},{"$f":"'Population 2016'!AN77/'Population 2016'!AN$7","v":{"$error":"#DIV/0!"}},{"$f":"'Population 2016'!AO77/'Population 2016'!AO$7","v":{"$error":"#DIV/0!"}},{"$f":"'Population 2016'!AP77/'Population 2016'!AP$7","v":7.8549848942598196E-3},{"$f":"'Population 2016'!AQ77/'Population 2016'!AQ$7","v":1.1073087264727451E-2},{"$f":"'Population 2016'!AR77/'Population 2016'!AR$7","v":1.0168142952464591E-2},{"$f":"'Population 2016'!AS77/'Population 2016'!AS$7","v":1.1476366465668159E-2},{"$f":"'Population 2016'!AT77/'Population 2016'!AT$7","v":{"$error":"#DIV/0!"}},{"$f":"'Population 2016'!AU77/'Population 2016'!AU$7","v":{"$error":"#DIV/0!"}},{"$f":"'Population 2016'!AV77/'Population 2016'!AV$7","v":1.1945286872562976E-2},{"$f":"'Population 2016'!AW77/'Population 2016'!AW$7","v":9.7791137915945285E-3},{"$f":"'Population 2016'!AX77/'Population 2016'!AX$7","v":7.770713492784337E-3},{"$f":"'Population 2016'!AY77/'Population 2016'!AY$7","v":1.0032026313511641E-2},{"$f":"'Population 2016'!AZ77/'Population 2016'!AZ$7","v":9.8155596109211381E-3},{"$f":"'Population 2016'!BA77/'Population 2016'!BA$7","v":1.1582462872166559E-2},{"$f":"'Population 2016'!BB77/'Population 2016'!BB$7","v":6.8803344365093192E-3},{"$f":"'Population 2016'!BC77/'Population 2016'!BC$7","v":{"$error":"#DIV/0!"}},75]
[null,"Female 90+",{"$f":"'Population 2016'!C78/'Population 2016'!C$7","v":4.520565389023303E-3},{"$f":"'Population 2016'!D78/'Population 2016'!D$7","v":4.4329332071524627E-3},{"$f":"'Population 2016'!E78/'Population 2016'!E$7","v":4.1180507892930682E-3},{"$f":"'Population 2016'!F78/'Population 2016'!F$7","v":5.5043141922047007E-3},{"$f":"'Population 2016'!G78/'Population 2016'!G$7","v":1.018895887365691E-2},{"$f":"'Population 2016'!H78/'Population 2016'!H$7","v":6.1360960169390818E-3},{"$f":"'Population 2016'!I78/'Population 2016'!I$7","v":4.6683524606107758E-3},{"$f":"'Population 2016'!J78/'Population 2016'!J$7","v":5.0286633812732578E-3},{"$f":"'Population 2016'!K78/'Population 2016'!K$7","v":5.6129096922922722E-3},{"$f":"'Population 2016'!L78/'Population 2016'!L$7","v":4.0064102564102561E-3},{"$f":"'Population 2016'!M78/'Population 2016'!M$7","v":4.0064102564102561E-3},{"$f":"'Population 2016'!N78/'Population 2016'!N$7","v":5.5453722824195459E-3},{"$f":"'Population 2016'!O78/'Population 2016'!O$7","v":6.4600305498981672E-3},{"$f":"'Population 2016'!P78/'Population 2016'!P$7","v":1.2080212611741967E-3},{"$f":"'Population 2016'!Q78/'Population 2016'!Q$7","v":2.0554984583761563E-3},{"$f":"'Population 2016'!R78/'Population 2016'!R$7","v":5.275974025974026E-3},{"$f":"'Population 2016'!S78/'Population 2016'!S$7","v":5.3150506039830233E-3},{"$f":"'Population 2016'!T78/'Population 2016'!T$7","v":4.8422256369938894E-3},{"$f":"'Population 2016'!U78/'Population 2016'!U$7","v":{"$error":"#DIV/0!"}},{"$f":"'Population 2016'!V78/'Population 2016'!V$7","v":5.4616111752967128E-3},{"$f":"'Population 2016'!W78/'Population 2016'!W$7","v":5.9571155375789065E-3},{"$f":"'Population 2016'!X78/'Population 2016'!X$7","v":5.9571155375789065E-3},{"$f":"'Population 2016'!Y78/'Population 2016'!Y$7","v":5.2404438964241675E-3},{"$f":"'Population 2016'!Z78/'Population 2016'!Z$7","v":5.3570751717254249E-3},{"$f":"'Population 2016'!AA78/'Population 2016'!AA$7","v":5.5697705063635248E-3},{"$f":"'Population 2016'!AB78/'Population 2016'!AB$7","v":4.3935882580146777E-3},{"$f":"'Population 2016'!AC78/'Population 2016'!AC$7","v":5.55892224501212E-3},{"$f":"'Population 2016'!AD78/'Population 2016'!AD$7","v":6.5176407217883113E-3},{"$f":"'Population 2016'!AE78/'Population 2016'!AE$7","v":5.0125313283208017E-3},{"$f":"'Population 2016'!AF78/'Population 2016'!AF$7","v":6.5423263211161712E-3},{"$f":"'Population 2016'!AG78/'Population 2016'!AG$7","v":5.0125313283208017E-3},{"$f":"'Population 2016'!AH78/'Population 2016'!AH$7","v":5.5966247160217806E-3},{"$f":"'Population 2016'!AI78/'Population 2016'!AI$7","v":4.9257759784075575E-3},{"$f":"'Population 2016'!AJ78/'Population 2016'!AJ$7","v":5.3740630745297696E-3},{"$f":"'Population 2016'!AK78/'Population 2016'!AK$7","v":3.1496062992125984E-3},{"$f":"'Population 2016'!AL78/'Population 2016'!AL$7","v":5.7128884541857465E-3},{"$f":"'Population 2016'!AM78/'Population 2016'!AM$7","v":5.3894580342416431E-3},{"$f":"'Population 2016'!AN78/'Population 2016'!AN$7","v":{"$error":"#DIV/0!"}},{"$f":"'Population 2016'!AO78/'Population 2016'!AO$7","v":{"$error":"#DIV/0!"}},{"$f":"'Population 2016'!AP78/'Population 2016'!AP$7","v":4.0785498489425984E-3},{"$f":"'Population 2016'!AQ78/'Population 2016'!AQ$7","v":5.1576631630408211E-3},{"$f":"'Population 2016'!AR78/'Population 2016'!AR$7","v":5.5317724372129498E-3},{"$f":"'Population 2016'!AS78/'Population 2016'!AS$7","v":4.6683524606107758E-3},{"$f":"'Population 2016'!AT78/'Population 2016'!AT$7","v":{"$error":"#DIV/0!"}},{"$f":"'Population 2016'!AU78/'Population 2016'!AU$7","v":{"$error":"#DIV/0!"}},{"$f":"'Population 2016'!AV78/'Population 2016'!AV$7","v":6.6844092343875724E-3},{"$f":"'Population 2016'!AW78/'Population 2016'!AW$7","v":5.9359601225243055E-3},{"$f":"'Population 2016'!AX78/'Population 2016'!AX$7","v":4.4404077101624787E-3},{"$f":"'Population 2016'!AY78/'Population 2016'!AY$7","v":5.6695230676014887E-3},{"$f":"'Population 2016'!AZ78/'Population 2016'!AZ$7","v":5.3684378377420669E-3},{"$f":"'Population 2016'!BA78/'Population 2016'!BA$7","v":7.5676827968450223E-3},{"$f":"'Population 2016'!BB78/'Population 2016'!BB$7","v":5.356209719561052E-3},{"$f":"'Population 2016'!BC78/'Population 2016'!BC$7","v":{"$error":"#DIV/0!"}},76]
[null,"Male 0-4",{"$f":"'Population 2016'!C79/'Population 2016'!C$7","v":0},{"$f":"'Population 2016'!D79/'Population 2016'!D$7","v":0},{"$f":"'Population 2016'!E79/'Population 2016'!E$7","v":0},{"$f":"'Population 2016'!F79/'Population 2016'!F$7","v":0},{"$f":"'Population 2016'!G79/'Population 2016'!G$7","v":0},{"$f":"'Population 2016'!H79/'Population 2016'!H$7","v":0},{"$f":"'Population 2016'!I79/'Population 2016'!I$7","v":0},{"$f":"'Population 2016'!J79/'Population 2016'!J$7","v":0},{"$f":"'Population 2016'!K79/'Population 2016'!K$7","v":0},{"$f":"'Population 2016'!L79/'Population 2016'!L$7","v":0},{"$f":"'Population 2016'!M79/'Population 2016'!M$7","v":0},{"$f":"'Population 2016'!N79/'Population 2016'!N$7","v":0},{"$f":"'Population 2016'!O79/'Population 2016'!O$7","v":0},{"$f":"'Population 2016'!P79/'Population 2016'!P$7","v":0},{"$f":"'Population 2016'!Q79/'Population 2016'!Q$7","v":0},{"$f":"'Population 2016'!R79/'Population 2016'!R$7","v":0},{"$f":"'Population 2016'!S79/'Population 2016'!S$7","v":0},{"$f":"'Population 2016'!T79/'Population 2016'!T$7","v":0},{"$f":"'Population 2016'!U79/'Population 2016'!U$7","v":{"$error":"#DIV/0!"}},{"$f":"'Population 2016'!V79/'Population 2016'!V$7","v":0},{"$f":"'Population 2016'!W79/'Population 2016'!W$7","v":0},{"$f":"'Population 2016'!X79/'Population 2016'!X$7","v":0},{"$f":"'Population 2016'!Y79/'Population 2016'!Y$7","v":0},{"$f":"'Population 2016'!Z79/'Population 2016'!Z$7","v":0},{"$f":"'Population 2016'!AA79/'Population 2016'!AA$7","v":0},{"$f":"'Population 2016'!AB79/'Population 2016'!AB$7","v":0},{"$f":"'Population 2016'!AC79/'Population 2016'!AC$7","v":0},{"$f":"'Population 2016'!AD79/'Population 2016'!AD$7","v":0},{"$f":"'Population 2016'!AE79/'Population 2016'!AE$7","v":0},{"$f":"'Population 2016'!AF79/'Population 2016'!AF$7","v":0},{"$f":"'Population 2016'!AG79/'Population 2016'!AG$7","v":0},{"$f":"'Population 2016'!AH79/'Population 2016'!AH$7","v":0},{"$f":"'Population 2016'!AI79/'Population 2016'!AI$7","v":0},{"$f":"'Population 2016'!AJ79/'Population 2016'!AJ$7","v":0},{"$f":"'Population 2016'!AK79/'Population 2016'!AK$7","v":0},{"$f":"'Population 2016'!AL79/'Population 2016'!AL$7","v":0},{"$f":"'Population 2016'!AM79/'Population 2016'!AM$7","v":0},{"$f":"'Population 2016'!AN79/'Population 2016'!AN$7","v":{"$error":"#DIV/0!"}},{"$f":"'Population 2016'!AO79/'Population 2016'!AO$7","v":{"$error":"#DIV/0!"}},{"$f":"'Population 2016'!AP79/'Population 2016'!AP$7","v":0},{"$f":"'Population 2016'!AQ79/'Population 2016'!AQ$7","v":0},{"$f":"'Population 2016'!AR79/'Population 2016'!AR$7","v":0},{"$f":"'Population 2016'!AS79/'Population 2016'!AS$7","v":0},{"$f":"'Population 2016'!AT79/'Population 2016'!AT$7","v":{"$error":"#DIV/0!"}},{"$f":"'Population 2016'!AU79/'Population 2016'!AU$7","v":{"$error":"#DIV/0!"}},{"$f":"'Population 2016'!AV79/'Population 2016'!AV$7","v":0},{"$f":"'Population 2016'!AW79/'Population 2016'!AW$7","v":0},{"$f":"'Population 2016'!AX79/'Population 2016'!AX$7","v":0},{"$f":"'Population 2016'!AY79/'Population 2016'!AY$7","v":0},{"$f":"'Population 2016'!AZ79/'Population 2016'!AZ$7","v":0},{"$f":"'Population 2016'!BA79/'Population 2016'!BA$7","v":0},{"$f":"'Population 2016'!BB79/'Population 2016'!BB$7","v":0},{"$f":"'Population 2016'!BC79/'Population 2016'!BC$7","v":{"$error":"#DIV/0!"}},77]
[null,"Male 5-9",{"$f":"'Population 2016'!C80/'Population 2016'!C$7","v":0},{"$f":"'Population 2016'!D80/'Population 2016'!D$7","v":0},{"$f":"'Population 2016'!E80/'Population 2016'!E$7","v":0},{"$f":"'Population 2016'!F80/'Population 2016'!F$7","v":0},{"$f":"'Population 2016'!G80/'Population 2016'!G$7","v":0},{"$f":"'Population 2016'!H80/'Population 2016'!H$7","v":0},{"$f":"'Population 2016'!I80/'Population 2016'!I$7","v":0},{"$f":"'Population 2016'!J80/'Population 2016'!J$7","v":0},{"$f":"'Population 2016'!K80/'Population 2016'!K$7","v":0},{"$f":"'Population 2016'!L80/'Population 2016'!L$7","v":0},{"$f":"'Population 2016'!M80/'Population 2016'!M$7","v":0},{"$f":"'Population 2016'!N80/'Population 2016'!N$7","v":0},{"$f":"'Population 2016'!O80/'Population 2016'!O$7","v":0},{"$f":"'Population 2016'!P80/'Population 2016'!P$7","v":0},{"$f":"'Population 2016'!Q80/'Population 2016'!Q$7","v":0},{"$f":"'Population 2016'!R80/'Population 2016'!R$7","v":0},{"$f":"'Population 2016'!S80/'Population 2016'!S$7","v":0},{"$f":"'Population 2016'!T80/'Population 2016'!T$7","v":0},{"$f":"'Population 2016'!U80/'Population 2016'!U$7","v":{"$error":"#DIV/0!"}},{"$f":"'Population 2016'!V80/'Population 2016'!V$7","v":0},{"$f":"'Population 2016'!W80/'Population 2016'!W$7","v":0},{"$f":"'Population 2016'!X80/'Population 2016'!X$7","v":0},{"$f":"'Population 2016'!Y80/'Population 2016'!Y$7","v":0},{"$f":"'Population 2016'!Z80/'Population 2016'!Z$7","v":0},{"$f":"'Population 2016'!AA80/'Population 2016'!AA$7","v":0},{"$f":"'Population 2016'!AB80/'Population 2016'!AB$7","v":0},{"$f":"'Population 2016'!AC80/'Population 2016'!AC$7","v":0},{"$f":"'Population 2016'!AD80/'Population 2016'!AD$7","v":0},{"$f":"'Population 2016'!AE80/'Population 2016'!AE$7","v":0},{"$f":"'Population 2016'!AF80/'Population 2016'!AF$7","v":0},{"$f":"'Population 2016'!AG80/'Population 2016'!AG$7","v":0},{"$f":"'Population 2016'!AH80/'Population 2016'!AH$7","v":0},{"$f":"'Population 2016'!AI80/'Population 2016'!AI$7","v":0},{"$f":"'Population 2016'!AJ80/'Population 2016'!AJ$7","v":0},{"$f":"'Population 2016'!AK80/'Population 2016'!AK$7","v":0},{"$f":"'Population 2016'!AL80/'Population 2016'!AL$7","v":0},{"$f":"'Population 2016'!AM80/'Population 2016'!AM$7","v":0},{"$f":"'Population 2016'!AN80/'Population 2016'!AN$7","v":{"$error":"#DIV/0!"}},{"$f":"'Population 2016'!AO80/'Population 2016'!AO$7","v":{"$error":"#DIV/0!"}},{"$f":"'Population 2016'!AP80/'Population 2016'!AP$7","v":0},{"$f":"'Population 2016'!AQ80/'Population 2016'!AQ$7","v":0},{"$f":"'Population 2016'!AR80/'Population 2016'!AR$7","v":0},{"$f":"'Population 2016'!AS80/'Population 2016'!AS$7","v":0},{"$f":"'Population 2016'!AT80/'Population 2016'!AT$7","v":{"$error":"#DIV/0!"}},{"$f":"'Population 2016'!AU80/'Population 2016'!AU$7","v":{"$error":"#DIV/0!"}},{"$f":"'Population 2016'!AV80/'Population 2016'!AV$7","v":0},{"$f":"'Population 2016'!AW80/'Population 2016'!AW$7","v":0},{"$f":"'Population 2016'!AX80/'Population 2016'!AX$7","v":0},{"$f":"'Population 2016'!AY80/'Population 2016'!AY$7","v":0},{"$f":"'Population 2016'!AZ80/'Population 2016'!AZ$7","v":0},{"$f":"'Population 2016'!BA80/'Population 2016'!BA$7","v":0},{"$f":"'Population 2016'!BB80/'Population 2016'!BB$7","v":0},{"$f":"'Population 2016'!BC80/'Population 2016'!BC$7","v":{"$error":"#DIV/0!"}},78]
[null,"Male 10-15",{"$f":"'Population 2016'!C81/'Population 2016'!C$7","v":0},{"$f":"'Population 2016'!D81/'Population 2016'!D$7","v":0},{"$f":"'Population 2016'!E81/'Population 2016'!E$7","v":0},{"$f":"'Population 2016'!F81/'Population 2016'!F$7","v":0},{"$f":"'Population 2016'!G81/'Population 2016'!G$7","v":0},{"$f":"'Population 2016'!H81/'Population 2016'!H$7","v":0},{"$f":"'Population 2016'!I81/'Population 2016'!I$7","v":0},{"$f":"'Population 2016'!J81/'Population 2016'!J$7","v":0},{"$f":"'Population 2016'!K81/'Population 2016'!K$7","v":0},{"$f":"'Population 2016'!L81/'Population 2016'!L$7","v":0},{"$f":"'Population 2016'!M81/'Population 2016'!M$7","v":0},{"$f":"'Population 2016'!N81/'Population 2016'!N$7","v":0},{"$f":"'Population 2016'!O81/'Population 2016'!O$7","v":0},{"$f":"'Population 2016'!P81/'Population 2016'!P$7","v":0},{"$f":"'Population 2016'!Q81/'Population 2016'!Q$7","v":0},{"$f":"'Population 2016'!R81/'Population 2016'!R$7","v":0},{"$f":"'Population 2016'!S81/'Population 2016'!S$7","v":0},{"$f":"'Population 2016'!T81/'Population 2016'!T$7","v":0},{"$f":"'Population 2016'!U81/'Population 2016'!U$7","v":{"$error":"#DIV/0!"}},{"$f":"'Population 2016'!V81/'Population 2016'!V$7","v":0},{"$f":"'Population 2016'!W81/'Population 2016'!W$7","v":0},{"$f":"'Population 2016'!X81/'Population 2016'!X$7","v":0},{"$f":"'Population 2016'!Y81/'Population 2016'!Y$7","v":0},{"$f":"'Population 2016'!Z81/'Population 2016'!Z$7","v":0},{"$f":"'Population 2016'!AA81/'Population 2016'!AA$7","v":0},{"$f":"'Population 2016'!AB81/'Population 2016'!AB$7","v":0},{"$f":"'Population 2016'!AC81/'Population 2016'!AC$7","v":0},{"$f":"'Population 2016'!AD81/'Population 2016'!AD$7","v":0},{"$f":"'Population 2016'!AE81/'Population 2016'!AE$7","v":0},{"$f":"'Population 2016'!AF81/'Population 2016'!AF$7","v":0},{"$f":"'Population 2016'!AG81/'Population 2016'!AG$7","v":0},{"$f":"'Population 2016'!AH81/'Population 2016'!AH$7","v":0},{"$f":"'Population 2016'!AI81/'Population 2016'!AI$7","v":0},{"$f":"'Population 2016'!AJ81/'Population 2016'!AJ$7","v":0},{"$f":"'Population 2016'!AK81/'Population 2016'!AK$7","v":0},{"$f":"'Population 2016'!AL81/'Population 2016'!AL$7","v":0},{"$f":"'Population 2016'!AM81/'Population 2016'!AM$7","v":0},{"$f":"'Population 2016'!AN81/'Population 2016'!AN$7","v":{"$error":"#DIV/0!"}},{"$f":"'Population 2016'!AO81/'Population 2016'!AO$7","v":{"$error":"#DIV/0!"}},{"$f":"'Population 2016'!AP81/'Population 2016'!AP$7","v":0},{"$f":"'Population 2016'!AQ81/'Population 2016'!AQ$7","v":0},{"$f":"'Population 2016'!AR81/'Population 2016'!AR$7","v":0},{"$f":"'Population 2016'!AS81/'Population 2016'!AS$7","v":0},{"$f":"'Population 2016'!AT81/'Population 2016'!AT$7","v":{"$error":"#DIV/0!"}},{"$f":"'Population 2016'!AU81/'Population 2016'!AU$7","v":{"$error":"#DIV/0!"}},{"$f":"'Population 2016'!AV81/'Population 2016'!AV$7","v":0},{"$f":"'Population 2016'!AW81/'Population 2016'!AW$7","v":0},{"$f":"'Population 2016'!AX81/'Population 2016'!AX$7","v":0},{"$f":"'Population 2016'!AY81/'Population 2016'!AY$7","v":0},{"$f":"'Population 2016'!AZ81/'Population 2016'!AZ$7","v":0},{"$f":"'Population 2016'!BA81/'Population 2016'!BA$7","v":0},{"$f":"'Population 2016'!BB81/'Population 2016'!BB$7","v":0},{"$f":"'Population 2016'!BC81/'Population 2016'!BC$7","v":{"$error":"#DIV/0!"}},79]
[null,"Male 16-19",{"$f":"'Population 2016'!C82/'Population 2016'!C$7","v":2.4003565516363172E-2},{"$f":"'Population 2016'!D82/'Population 2016'!D$7","v":2.3210639039697167E-2},{"$f":"'Population 2016'!E82/'Population 2016'!E$7","v":2.036147334706017E-2},{"$f":"'Population 2016'!F82/'Population 2016'!F$7","v":3.5852424873549539E-2},{"$f":"'Population 2016'!G82/'Population 2016'!G$7","v":3.2975175991107816E-2},{"$f":"'Population 2016'!H82/'Population 2016'!H$7","v":2.9610984476109197E-2},{"$f":"'Population 2016'!I82/'Population 2016'!I$7","v":3.4429099397004476E-2},{"$f":"'Population 2016'!J82/'Population 2016'!J$7","v":3.4898923866036408E-2},{"$f":"'Population 2016'!K82/'Population 2016'!K$7","v":3.4278841335070663E-2},{"$f":"'Population 2016'!L82/'Population 2016'!L$7","v":2.9447115384615384E-2},{"$f":"'Population 2016'!M82/'Population 2016'!M$7","v":2.9447115384615384E-2},{"$f":"'Population 2016'!N82/'Population 2016'!N$7","v":2.7170003944407061E-2},{"$f":"'Population 2016'!O82/'Population 2016'!O$7","v":2.9913441955193482E-2},{"$f":"'Population 2016'!P82/'Population 2016'!P$7","v":3.2858178303938147E-2},{"$f":"'Population 2016'!Q82/'Population 2016'!Q$7","v":3.014731072285029E-2},{"$f":"'Population 2016'!R82/'Population 2016'!R$7","v":3.3076298701298704E-2},{"$f":"'Population 2016'!S82/'Population 2016'!S$7","v":2.9337251061051256E-2},{"$f":"'Population 2016'!T82/'Population 2016'!T$7","v":2.6819854911910804E-2},{"$f":"'Population 2016'!U82/'Population 2016'!U$7","v":{"$error":"#DIV/0!"}},{"$f":"'Population 2016'!V82/'Population 2016'!V$7","v":2.6362777019220671E-2},{"$f":"'Population 2016'!W82/'Population 2016'!W$7","v":3.0191744656365822E-2},{"$f":"'Population 2016'!X82/'Population 2016'!X$7","v":3.0191744656365822E-2},{"$f":"'Population 2016'!Y82/'Population 2016'!Y$7","v":3.0723386765310317E-2},{"$f":"'Population 2016'!Z82/'Population 2016'!Z$7","v":2.8625817564636565E-2},{"$f":"'Population 2016'!AA82/'Population 2016'!AA$7","v":2.9000574823558219E-2},{"$f":"'Population 2016'!AB82/'Population 2016'!AB$7","v":2.3609501738122828E-2},{"$f":"'Population 2016'!AC82/'Population 2016'!AC$7","v":2.8485106283796382E-2},{"$f":"'Population 2016'!AD82/'Population 2016'!AD$7","v":3.1672502019929973E-2},{"$f":"'Population 2016'!AE82/'Population 2016'!AE$7","v":3.1138452191083771E-2},{"$f":"'Population 2016'!AF82/'Population 2016'!AF$7","v":2.797657774886142E-2},{"$f":"'Population 2016'!AG82/'Population 2016'!AG$7","v":3.1138452191083771E-2},{"$f":"'Population 2016'!AH82/'Population 2016'!AH$7","v":3.0276585770437417E-2},{"$f":"'Population 2016'!AI82/'Population 2016'!AI$7","v":2.8475033738191633E-2},{"$f":"'Population 2016'!AJ82/'Population 2016'!AJ$7","v":2.927450148493848E-2},{"$f":"'Population 2016'!AK82/'Population 2016'!AK$7","v":3.6220472440944881E-2},{"$f":"'Population 2016'!AL82/'Population 2016'!AL$7","v":3.0453918997021295E-2},{"$f":"'Population 2016'!AM82/'Population 2016'!AM$7","v":3.1709526796292423E-2},{"$f":"'Population 2016'!AN82/'Population 2016'!AN$7","v":{"$error":"#DIV/0!"}},{"$f":"'Population 2016'!AO82/'Population 2016'!AO$7","v":{"$error":"#DIV/0!"}},{"$f":"'Population 2016'!AP82/'Population 2016'!AP$7","v":2.5830815709969788E-2},{"$f":"'Population 2016'!AQ82/'Population 2016'!AQ$7","v":2.6106086531410413E-2},{"$f":"'Population 2016'!AR82/'Population 2016'!AR$7","v":2.90736201523903E-2},{"$f":"'Population 2016'!AS82/'Population 2016'!AS$7","v":3.4429099397004476E-2},{"$f":"'Population 2016'!AT82/'Population 2016'!AT$7","v":{"$error":"#DIV/0!"}},{"$f":"'Population 2016'!AU82/'Population 2016'!AU$7","v":{"$error":"#DIV/0!"}},{"$f":"'Population 2016'!AV82/'Population 2016'!AV$7","v":2.6675744259454105E-2},{"$f":"'Population 2016'!AW82/'Population 2016'!AW$7","v":2.7929453397005383E-2},{"$f":"'Population 2016'!AX82/'Population 2016'!AX$7","v":3.5523261681299829E-2},{"$f":"'Population 2016'!AY82/'Population 2016'!AY$7","v":2.9143945295594217E-2},{"$f":"'Population 2016'!AZ82/'Population 2016'!AZ$7","v":2.8046987119292714E-2},{"$f":"'Population 2016'!BA82/'Population 2016'!BA$7","v":2.9808853833582036E-2},{"$f":"'Population 2016'!BB82/'Population 2016'!BB$7","v":3.2050165476397843E-2},{"$f":"'Population 2016'!BC82/'Population 2016'!BC$7","v":{"$error":"#DIV/0!"}},80]
[null,"Male 20-24",{"$f":"'Population 2016'!C83/'Population 2016'!C$7","v":3.9220679994906409E-2},{"$f":"'Population 2016'!D83/'Population 2016'!D$7","v":4.223738606365493E-2},{"$f":"'Population 2016'!E83/'Population 2016'!E$7","v":5.307709906199954E-2},{"$f":"'Population 2016'!F83/'Population 2016'!F$7","v":5.0580184468908065E-2},{"$f":"'Population 2016'!G83/'Population 2016'!G$7","v":5.1685809559095963E-2},{"$f":"'Population 2016'!H83/'Population 2016'!H$7","v":4.1505072001901323E-2},{"$f":"'Population 2016'!I83/'Population 2016'!I$7","v":4.1042598716203076E-2},{"$f":"'Population 2016'!J83/'Population 2016'!J$7","v":4.4604244191893794E-2},{"$f":"'Population 2016'!K83/'Population 2016'!K$7","v":4.2798436403728574E-2},{"$f":"'Population 2016'!L83/'Population 2016'!L$7","v":4.3970352564102567E-2},{"$f":"'Population 2016'!M83/'Population 2016'!M$7","v":4.3970352564102567E-2},{"$f":"'Population 2016'!N83/'Population 2016'!N$7","v":4.4850228543585696E-2},{"$f":"'Population 2016'!O83/'Population 2016'!O$7","v":4.1337830957230141E-2},{"$f":"'Population 2016'!P83/'Population 2016'!P$7","v":4.0831118627687846E-2},{"$f":"'Population 2016'!Q83/'Population 2016'!Q$7","v":4.0767386091127102E-2},{"$f":"'Population 2016'!R83/'Population 2016'!R$7","v":3.936688311688312E-2},{"$f":"'Population 2016'!S83/'Population 2016'!S$7","v":4.0137120470127324E-2},{"$f":"'Population 2016'!T83/'Population 2016'!T$7","v":3.9273844834363719E-2},{"$f":"'Population 2016'!U83/'Population 2016'!U$7","v":{"$error":"#DIV/0!"}},{"$f":"'Population 2016'!V83/'Population 2016'!V$7","v":3.8703917655708436E-2},{"$f":"'Population 2016'!W83/'Population 2016'!W$7","v":3.8907410854812231E-2},{"$f":"'Population 2016'!X83/'Population 2016'!X$7","v":3.8907410854812231E-2},{"$f":"'Population 2016'!Y83/'Population 2016'!Y$7","v":4.1718043567612002E-2},{"$f":"'Population 2016'!Z83/'Population 2016'!Z$7","v":4.4675985394389391E-2},{"$f":"'Population 2016'!AA83/'Population 2016'!AA$7","v":4.3223826332729455E-2},{"$f":"'Population 2016'!AB83/'Population 2016'!AB$7","v":4.2101197373503284E-2},{"$f":"'Population 2016'!AC83/'Population 2016'!AC$7","v":4.3713872832369945E-2},{"$f":"'Population 2016'!AD83/'Population 2016'!AD$7","v":4.5515755453810931E-2},{"$f":"'Population 2016'!AE83/'Population 2016'!AE$7","v":4.2986253512569302E-2},{"$f":"'Population 2016'!AF83/'Population 2016'!AF$7","v":3.9832285115303984E-2},{"$f":"'Population 2016'!AG83/'Population 2016'!AG$7","v":4.2986253512569302E-2},{"$f":"'Population 2016'!AH83/'Population 2016'!AH$7","v":4.2010746096426382E-2},{"$f":"'Population 2016'!AI83/'Population 2016'!AI$7","v":4.0901934322986958E-2},{"$f":"'Population 2016'!AJ83/'Population 2016'!AJ$7","v":4.6810917833404048E-2},{"$f":"'Population 2016'!AK83/'Population 2016'!AK$7","v":3.7795275590551181E-2},{"$f":"'Population 2016'!AL83/'Population 2016'!AL$7","v":4.1612946249944424E-2},{"$f":"'Population 2016'!AM83/'Population 2016'!AM$7","v":4.3522196668757403E-2},{"$f":"'Population 2016'!AN83/'Population 2016'!AN$7","v":{"$error":"#DIV/0!"}},{"$f":"'Population 2016'!AO83/'Population 2016'!AO$7","v":{"$error":"#DIV/0!"}},{"$f":"'Population 2016'!AP83/'Population 2016'!AP$7","v":4.6676737160120843E-2},{"$f":"'Population 2016'!AQ83/'Population 2016'!AQ$7","v":4.2679051576631627E-2},{"$f":"'Population 2016'!AR83/'Population 2016'!AR$7","v":4.2626176003228489E-2},{"$f":"'Population 2016'!AS83/'Population 2016'!AS$7","v":4.1042598716203076E-2},{"$f":"'Population 2016'!AT83/'Population 2016'!AT$7","v":{"$error":"#DIV/0!"}},{"$f":"'Population 2016'!AU83/'Population 2016'!AU$7","v":{"$error":"#DIV/0!"}},{"$f":"'Population 2016'!AV83/'Population 2016'!AV$7","v":4.1529987002537599E-2},{"$f":"'Population 2016'!AW83/'Population 2016'!AW$7","v":3.9535016457068931E-2},{"$f":"'Population 2016'!AX83/'Population 2016'!AX$7","v":4.6422444242607733E-2},{"$f":"'Population 2016'!AY83/'Population 2016'!AY$7","v":4.2248766554141781E-2},{"$f":"'Population 2016'!AZ83/'Population 2016'!AZ$7","v":4.5746886128877944E-2},{"$f":"'Population 2016'!BA83/'Population 2016'!BA$7","v":4.2101897250053297E-2},{"$f":"'Population 2016'!BB83/'Population 2016'!BB$7","v":4.3067409858909597E-2},{"$f":"'Population 2016'!BC83/'Population 2016'!BC$7","v":{"$error":"#DIV/0!"}},81]
[null,"Male 25-29",{"$f":"'Population 2016'!C84/'Population 2016'!C$7","v":6.5834712848592894E-2},{"$f":"'Population 2016'!D84/'Population 2016'!D$7","v":6.4601285052547697E-2},{"$f":"'Population 2016'!E84/'Population 2016'!E$7","v":6.0169297643559827E-2},{"$f":"'Population 2016'!F84/'Population 2016'!F$7","v":4.6712288009520979E-2},{"$f":"'Population 2016'!G84/'Population 2016'!G$7","v":4.1682104483141906E-2},{"$f":"'Population 2016'!H84/'Population 2016'!H$7","v":3.996024501172124E-2},{"$f":"'Population 2016'!I84/'Population 2016'!I$7","v":3.073332036568761E-2},{"$f":"'Population 2016'!J84/'Population 2016'!J$7","v":4.3497938248013679E-2},{"$f":"'Population 2016'!K84/'Population 2016'!K$7","v":3.4679763455948684E-2},{"$f":"'Population 2016'!L84/'Population 2016'!L$7","v":4.9679487179487176E-2},{"$f":"'Population 2016'!M84/'Population 2016'!M$7","v":4.9679487179487176E-2},{"$f":"'Population 2016'!N84/'Population 2016'!N$7","v":6.2994501032506561E-2},{"$f":"'Population 2016'!O84/'Population 2016'!O$7","v":4.0796843177189408E-2},{"$f":"'Population 2016'!P84/'Population 2016'!P$7","v":3.9381493114278812E-2},{"$f":"'Population 2016'!Q84/'Population 2016'!Q$7","v":3.5971223021582732E-2},{"$f":"'Population 2016'!R84/'Population 2016'!R$7","v":3.9772727272727272E-2},{"$f":"'Population 2016'!S84/'Population 2016'!S$7","v":4.7724453150506038E-2},{"$f":"'Population 2016'!T84/'Population 2016'!T$7","v":5.9589750920201551E-2},{"$f":"'Population 2016'!U84/'Population 2016'!U$7","v":{"$error":"#DIV/0!"}},{"$f":"'Population 2016'!V84/'Population 2016'!V$7","v":4.3692889402373702E-2},{"$f":"'Population 2016'!W84/'Population 2016'!W$7","v":4.1310565418267359E-2},{"$f":"'Population 2016'!X84/'Population 2016'!X$7","v":4.1310565418267359E-2},{"$f":"'Population 2016'!Y84/'Population 2016'!Y$7","v":4.3593300452116727E-2},{"$f":"'Population 2016'!Z84/'Population 2016'!Z$7","v":5.6961039070429535E-2},{"$f":"'Population 2016'!AA84/'Population 2016'!AA$7","v":4.9380871449115661E-2},{"$f":"'Population 2016'!AB84/'Population 2016'!AB$7","v":6.3200077249903439E-2},{"$f":"'Population 2016'!AC84/'Population 2016'!AC$7","v":5.3109849897445459E-2},{"$f":"'Population 2016'!AD84/'Population 2016'!AD$7","v":4.4276865068677618E-2},{"$f":"'Population 2016'!AE84/'Population 2016'!AE$7","v":4.5340624287992709E-2},{"$f":"'Population 2016'!AF84/'Population 2016'!AF$7","v":4.0157594158895395E-2},{"$f":"'Population 2016'!AG84/'Population 2016'!AG$7","v":4.5340624287992709E-2},{"$f":"'Population 2016'!AH84/'Population 2016'!AH$7","v":4.0150012621254193E-2},{"$f":"'Population 2016'!AI84/'Population 2016'!AI$7","v":5.2968960863697706E-2},{"$f":"'Population 2016'!AJ84/'Population 2016'!AJ$7","v":3.6062791684344508E-2},{"$f":"'Population 2016'!AK84/'Population 2016'!AK$7","v":1.889763779527559E-2},{"$f":"'Population 2016'!AL84/'Population 2016'!AL$7","v":3.7945138487529451E-2},{"$f":"'Population 2016'!AM84/'Population 2016'!AM$7","v":4.1512765117197481E-2},{"$f":"'Population 2016'!AN84/'Population 2016'!AN$7","v":{"$error":"#DIV/0!"}},{"$f":"'Population 2016'!AO84/'Population 2016'!AO$7","v":{"$error":"#DIV/0!"}},{"$f":"'Population 2016'!AP84/'Population 2016'!AP$7","v":6.6918429003021154E-2},{"$f":"'Population 2016'!AQ84/'Population 2016'!AQ$7","v":5.0452212173062824E-2},{"$f":"'Population 2016'!AR84/'Population 2016'!AR$7","v":4.8840104834253197E-2},{"$f":"'Population 2016'!AS84/'Population 2016'!AS$7","v":3.073332036568761E-2},{"$f":"'Population 2016'!AT84/'Population 2016'!AT$7","v":{"$error":"#DIV/0!"}},{"$f":"'Population 2016'!AU84/'Population 2016'!AU$7","v":{"$error":"#DIV/0!"}},{"$f":"'Population 2016'!AV84/'Population 2016'!AV$7","v":4.3943801448288668E-2},{"$f":"'Population 2016'!AW84/'Population 2016'!AW$7","v":3.791784783394532E-2},{"$f":"'Population 2016'!AX84/'Population 2016'!AX$7","v":5.2376627308507416E-2},{"$f":"'Population 2016'!AY84/'Population 2016'!AY$7","v":5.1181511295767333E-2},{"$f":"'Population 2016'!AZ84/'Population 2016'!AZ$7","v":6.1515564926206127E-2},{"$f":"'Population 2016'!BA84/'Population 2016'!BA$7","v":4.1568961841824771E-2},{"$f":"'Population 2016'!BB84/'Population 2016'!BB$7","v":4.4199616791499738E-2},{"$f":"'Population 2016'!BC84/'Population 2016'!BC$7","v":{"$error":"#DIV/0!"}},82]
[null,"Male 30-34",{"$f":"'Population 2016'!C85/'Population 2016'!C$7","v":5.5201833694129634E-2},{"$f":"'Population 2016'!D85/'Population 2016'!D$7","v":5.6781391642177617E-2},{"$f":"'Population 2016'!E85/'Population 2016'!E$7","v":6.2457103637611533E-2},{"$f":"'Population 2016'!F85/'Population 2016'!F$7","v":3.8381434096994939E-2},{"$f":"'Population 2016'!G85/'Population 2016'!G$7","v":3.2604668395702113E-2},{"$f":"'Population 2016'!H85/'Population 2016'!H$7","v":3.5228537167673143E-2},{"$f":"'Population 2016'!I85/'Population 2016'!I$7","v":3.3845555339428124E-2},{"$f":"'Population 2016'!J85/'Population 2016'!J$7","v":3.8167555063864024E-2},{"$f":"'Population 2016'!K85/'Population 2016'!K$7","v":3.6383682469680267E-2},{"$f":"'Population 2016'!L85/'Population 2016'!L$7","v":3.465544871794872E-2},{"$f":"'Population 2016'!M85/'Population 2016'!M$7","v":3.465544871794872E-2},{"$f":"'Population 2016'!N85/'Population 2016'!N$7","v":4.9421100257546577E-2},{"$f":"'Population 2016'!O85/'Population 2016'!O$7","v":3.5514256619144605E-2},{"$f":"'Population 2016'!P85/'Population 2016'!P$7","v":3.2374969799468474E-2},{"$f":"'Population 2016'!Q85/'Population 2016'!Q$7","v":3.7684138403562863E-2},{"$f":"'Population 2016'!R85/'Population 2016'!R$7","v":3.7337662337662336E-2},{"$f":"'Population 2016'!S85/'Population 2016'!S$7","v":4.3219066274893893E-2},{"$f":"'Population 2016'!T85/'Population 2016'!T$7","v":5.1477682878890756E-2},{"$f":"'Population 2016'!U85/'Population 2016'!U$7","v":{"$error":"#DIV/0!"}},{"$f":"'Population 2016'!V85/'Population 2016'!V$7","v":4.012183594160277E-2},{"$f":"'Population 2016'!W85/'Population 2016'!W$7","v":3.8704327370576587E-2},{"$f":"'Population 2016'!X85/'Population 2016'!X$7","v":3.8704327370576587E-2},{"$f":"'Population 2016'!Y85/'Population 2016'!Y$7","v":3.9123510069872587E-2},{"$f":"'Population 2016'!Z85/'Population 2016'!Z$7","v":4.9877233693981289E-2},{"$f":"'Population 2016'!AA85/'Population 2016'!AA$7","v":4.4852838943569756E-2},{"$f":"'Population 2016'!AB85/'Population 2016'!AB$7","v":5.547508690614137E-2},{"$f":"'Population 2016'!AC85/'Population 2016'!AC$7","v":4.7466436695879174E-2},{"$f":"'Population 2016'!AD85/'Population 2016'!AD$7","v":4.2876380285483434E-2},{"$f":"'Population 2016'!AE85/'Population 2016'!AE$7","v":4.7087415508468143E-2},{"$f":"'Population 2016'!AF85/'Population 2016'!AF$7","v":3.7808139955179641E-2},{"$f":"'Population 2016'!AG85/'Population 2016'!AG$7","v":4.7087415508468143E-2},{"$f":"'Population 2016'!AH85/'Population 2016'!AH$7","v":3.8383037034365873E-2},{"$f":"'Population 2016'!AI85/'Population 2016'!AI$7","v":4.6761133603238865E-2},{"$f":"'Population 2016'!AJ85/'Population 2016'!AJ$7","v":3.9739782209022766E-2},{"$f":"'Population 2016'!AK85/'Population 2016'!AK$7","v":1.4173228346456693E-2},{"$f":"'Population 2016'!AL85/'Population 2016'!AL$7","v":3.4455163828746721E-2},{"$f":"'Population 2016'!AM85/'Population 2016'!AM$7","v":3.914326201593607E-2},{"$f":"'Population 2016'!AN85/'Population 2016'!AN$7","v":{"$error":"#DIV/0!"}},{"$f":"'Population 2016'!AO85/'Population 2016'!AO$7","v":{"$error":"#DIV/0!"}},{"$f":"'Population 2016'!AP85/'Population 2016'!AP$7","v":4.6827794561933533E-2},{"$f":"'Population 2016'!AQ85/'Population 2016'!AQ$7","v":4.744561231972623E-2},{"$f":"'Population 2016'!AR85/'Population 2016'!AR$7","v":4.3573169585225981E-2},{"$f":"'Population 2016'!AS85/'Population 2016'!AS$7","v":3.3845555339428124E-2},{"$f":"'Population 2016'!AT85/'Population 2016'!AT$7","v":{"$error":"#DIV/0!"}},{"$f":"'Population 2016'!AU85/'Population 2016'!AU$7","v":{"$error":"#DIV/0!"}},{"$f":"'Population 2016'!AV85/'Population 2016'!AV$7","v":3.6826143467227825E-2},{"$f":"'Population 2016'!AW85/'Population 2016'!AW$7","v":3.7137801792203343E-2},{"$f":"'Population 2016'!AX85/'Population 2016'!AX$7","v":3.9963669391462307E-2},{"$f":"'Population 2016'!AY85/'Population 2016'!AY$7","v":4.3148965636631176E-2},{"$f":"'Population 2016'!AZ85/'Population 2016'!AZ$7","v":4.7802129657518469E-2},{"$f":"'Population 2016'!BA85/'Population 2016'!BA$7","v":4.0645207134228666E-2},{"$f":"'Population 2016'!BB85/'Population 2016'!BB$7","v":3.858212854903327E-2},{"$f":"'Population 2016'!BC85/'Population 2016'!BC$7","v":{"$error":"#DIV/0!"}},83]
[null,"Male 35-39",{"$f":"'Population 2016'!C86/'Population 2016'!C$7","v":5.2591366356806314E-2},{"$f":"'Population 2016'!D86/'Population 2016'!D$7","v":5.145191014593814E-2},{"$f":"'Population 2016'!E86/'Population 2016'!E$7","v":4.7357584076870282E-2},{"$f":"'Population 2016'!F86/'Population 2016'!F$7","v":3.8083903600119012E-2},{"$f":"'Population 2016'!G86/'Population 2016'!G$7","v":2.7788069655427936E-2},{"$f":"'Population 2016'!H86/'Population 2016'!H$7","v":3.1479901044648741E-2},{"$f":"'Population 2016'!I86/'Population 2016'!I$7","v":3.6374246255592296E-2},{"$f":"'Population 2016'!J86/'Population 2016'!J$7","v":3.3038318414965302E-2},{"$f":"'Population 2016'!K86/'Population 2016'!K$7","v":3.628345193946076E-2},{"$f":"'Population 2016'!L86/'Population 2016'!L$7","v":2.9847756410256412E-2},{"$f":"'Population 2016'!M86/'Population 2016'!M$7","v":2.9847756410256412E-2},{"$f":"'Population 2016'!N86/'Population 2016'!N$7","v":3.556927074874127E-2},{"$f":"'Population 2016'!O86/'Population 2016'!O$7","v":3.0168024439918534E-2},{"$f":"'Population 2016'!P86/'Population 2016'!P$7","v":3.2858178303938147E-2},{"$f":"'Population 2016'!Q86/'Population 2016'!Q$7","v":2.9462144570058239E-2},{"$f":"'Population 2016'!R86/'Population 2016'!R$7","v":3.3482142857142856E-2},{"$f":"'Population 2016'!S86/'Population 2016'!S$7","v":3.9947763630427686E-2},{"$f":"'Population 2016'!T86/'Population 2016'!T$7","v":4.681413715470107E-2},{"$f":"'Population 2016'!U86/'Population 2016'!U$7","v":{"$error":"#DIV/0!"}},{"$f":"'Population 2016'!V86/'Population 2016'!V$7","v":3.786366978258586E-2},{"$f":"'Population 2016'!W86/'Population 2016'!W$7","v":3.5928853086022776E-2},{"$f":"'Population 2016'!X86/'Population 2016'!X$7","v":3.5928853086022776E-2},{"$f":"'Population 2016'!Y86/'Population 2016'!Y$7","v":3.5398684751335799E-2},{"$f":"'Population 2016'!Z86/'Population 2016'!Z$7","v":4.0683448238103458E-2},{"$f":"'Population 2016'!AA86/'Population 2016'!AA$7","v":3.8413569986324593E-2},{"$f":"'Population 2016'!AB86/'Population 2016'!AB$7","v":5.1129779837775204E-2},{"$f":"'Population 2016'!AC86/'Population 2016'!AC$7","v":3.8918282677605817E-2},{"$f":"'Population 2016'!AD86/'Population 2016'!AD$7","v":3.2965257204416912E-2},{"$f":"'Population 2016'!AE86/'Population 2016'!AE$7","v":3.5087719298245612E-2},{"$f":"'Population 2016'!AF86/'Population 2016'!AF$7","v":3.0036868358273693E-2},{"$f":"'Population 2016'!AG86/'Population 2016'!AG$7","v":3.5087719298245612E-2},{"$f":"'Population 2016'!AH86/'Population 2016'!AH$7","v":3.7164184486675564E-2},{"$f":"'Population 2016'!AI86/'Population 2016'!AI$7","v":4.2825011246063881E-2},{"$f":"'Population 2016'!AJ86/'Population 2016'!AJ$7","v":3.365860557205487E-2},{"$f":"'Population 2016'!AK86/'Population 2016'!AK$7","v":4.0944881889763779E-2},{"$f":"'Population 2016'!AL86/'Population 2016'!AL$7","v":3.0765126928377719E-2},{"$f":"'Population 2016'!AM86/'Population 2016'!AM$7","v":3.6866680604920203E-2},{"$f":"'Population 2016'!AN86/'Population 2016'!AN$7","v":{"$error":"#DIV/0!"}},{"$f":"'Population 2016'!AO86/'Population 2016'!AO$7","v":{"$error":"#DIV/0!"}},{"$f":"'Population 2016'!AP86/'Population 2016'!AP$7","v":4.6072507552870089E-2},{"$f":"'Population 2016'!AQ86/'Population 2016'!AQ$7","v":3.9354681007088728E-2},{"$f":"'Population 2016'!AR86/'Population 2016'!AR$7","v":3.7815540325187968E-2},{"$f":"'Population 2016'!AS86/'Population 2016'!AS$7","v":3.6374246255592296E-2},{"$f":"'Population 2016'!AT86/'Population 2016'!AT$7","v":{"$error":"#DIV/0!"}},{"$f":"'Population 2016'!AU86/'Population 2016'!AU$7","v":{"$error":"#DIV/0!"}},{"$f":"'Population 2016'!AV86/'Population 2016'!AV$7","v":3.6021538651977471E-2},{"$f":"'Population 2016'!AW86/'Population 2016'!AW$7","v":3.7651490648960256E-2},{"$f":"'Population 2016'!AX86/'Population 2016'!AX$7","v":2.9770915329498437E-2},{"$f":"'Population 2016'!AY86/'Population 2016'!AY$7","v":3.6501341642863325E-2},{"$f":"'Population 2016'!AZ86/'Population 2016'!AZ$7","v":3.710068921528676E-2},{"$f":"'Population 2016'!BA86/'Population 2016'!BA$7","v":3.3965750017764515E-2},{"$f":"'Population 2016'!BB86/'Population 2016'!BB$7","v":3.7624107298380075E-2},{"$f":"'Population 2016'!BC86/'Population 2016'!BC$7","v":{"$error":"#DIV/0!"}},84]
[null,"Male 40-44",{"$f":"'Population 2016'!C87/'Population 2016'!C$7","v":4.2977206163249716E-2},{"$f":"'Population 2016'!D87/'Population 2016'!D$7","v":4.4179907356676797E-2},{"$f":"'Population 2016'!E87/'Population 2016'!E$7","v":4.8501487073896135E-2},{"$f":"'Population 2016'!F87/'Population 2016'!F$7","v":3.7340077357929186E-2},{"$f":"'Population 2016'!G87/'Population 2016'!G$7","v":3.0937384216376436E-2},{"$f":"'Population 2016'!H87/'Population 2016'!H$7","v":3.4375101277993238E-2},{"$f":"'Population 2016'!I87/'Population 2016'!I$7","v":3.6957790313168641E-2},{"$f":"'Population 2016'!J87/'Population 2016'!J$7","v":3.1831439203459717E-2},{"$f":"'Population 2016'!K87/'Population 2016'!K$7","v":3.5281146637265712E-2},{"$f":"'Population 2016'!L87/'Population 2016'!L$7","v":3.4154647435897433E-2},{"$f":"'Population 2016'!M87/'Population 2016'!M$7","v":3.4154647435897433E-2},{"$f":"'Population 2016'!N87/'Population 2016'!N$7","v":3.0070303255295947E-2},{"$f":"'Population 2016'!O87/'Population 2016'!O$7","v":3.5737016293279023E-2},{"$f":"'Population 2016'!P87/'Population 2016'!P$7","v":3.2858178303938147E-2},{"$f":"'Population 2016'!Q87/'Population 2016'!Q$7","v":4.5563549160671464E-2},{"$f":"'Population 2016'!R87/'Population 2016'!R$7","v":3.4293831168831168E-2},{"$f":"'Population 2016'!S87/'Population 2016'!S$7","v":3.8844270323212533E-2},{"$f":"'Population 2016'!T87/'Population 2016'!T$7","v":4.2347139334596003E-2},{"$f":"'Population 2016'!U87/'Population 2016'!U$7","v":{"$error":"#DIV/0!"}},{"$f":"'Population 2016'!V87/'Population 2016'!V$7","v":3.9596681020901164E-2},{"$f":"'Population 2016'!W87/'Population 2016'!W$7","v":3.5573456988610398E-2},{"$f":"'Population 2016'!X87/'Population 2016'!X$7","v":3.5573456988610398E-2},{"$f":"'Population 2016'!Y87/'Population 2016'!Y$7","v":3.5629880805589806E-2},{"$f":"'Population 2016'!Z87/'Population 2016'!Z$7","v":3.6556141895107461E-2},{"$f":"'Population 2016'!AA87/'Population 2016'!AA$7","v":3.6000141111920431E-2},{"$f":"'Population 2016'!AB87/'Population 2016'!AB$7","v":4.4273850907686367E-2},{"$f":"'Population 2016'!AC87/'Population 2016'!AC$7","v":3.5325960283423455E-2},{"$f":"'Population 2016'!AD87/'Population 2016'!AD$7","v":3.7705359547535684E-2},{"$f":"'Population 2016'!AE87/'Population 2016'!AE$7","v":4.0479987848408901E-2},{"$f":"'Population 2016'!AF87/'Population 2016'!AF$7","v":3.0868213691896192E-2},{"$f":"'Population 2016'!AG87/'Population 2016'!AG$7","v":4.0479987848408901E-2},{"$f":"'Population 2016'!AH87/'Population 2016'!AH$7","v":3.766903465435794E-2},{"$f":"'Population 2016'!AI87/'Population 2016'!AI$7","v":4.1126855600539809E-2},{"$f":"'Population 2016'!AJ87/'Population 2016'!AJ$7","v":3.7759864234196014E-2},{"$f":"'Population 2016'!AK87/'Population 2016'!AK$7","v":4.7244094488188976E-2},{"$f":"'Population 2016'!AL87/'Population 2016'!AL$7","v":3.3143644689458941E-2},{"$f":"'Population 2016'!AM87/'Population 2016'!AM$7","v":3.716867609821823E-2},{"$f":"'Population 2016'!AN87/'Population 2016'!AN$7","v":{"$error":"#DIV/0!"}},{"$f":"'Population 2016'!AO87/'Population 2016'!AO$7","v":{"$error":"#DIV/0!"}},{"$f":"'Population 2016'!AP87/'Population 2016'!AP$7","v":3.8066465256797584E-2},{"$f":"'Population 2016'!AQ87/'Population 2016'!AQ$7","v":3.441701295526766E-2},{"$f":"'Population 2016'!AR87/'Population 2016'!AR$7","v":3.6255179229426969E-2},{"$f":"'Population 2016'!AS87/'Population 2016'!AS$7","v":3.6957790313168641E-2},{"$f":"'Population 2016'!AT87/'Population 2016'!AT$7","v":{"$error":"#DIV/0!"}},{"$f":"'Population 2016'!AU87/'Population 2016'!AU$7","v":{"$error":"#DIV/0!"}},{"$f":"'Population 2016'!AV87/'Population 2016'!AV$7","v":3.5155041158630933E-2},{"$f":"'Population 2016'!AW87/'Population 2016'!AW$7","v":3.8488613230341889E-2},{"$f":"'Population 2016'!AX87/'Population 2016'!AX$7","v":2.8358058330810374E-2},{"$f":"'Population 2016'!AY87/'Population 2016'!AY$7","v":3.3766121353760926E-2},{"$f":"'Population 2016'!AZ87/'Population 2016'!AZ$7","v":3.1873992310554385E-2},{"$f":"'Population 2016'!BA87/'Population 2016'!BA$7","v":3.1194485894976195E-2},{"$f":"'Population 2016'!BB87/'Population 2016'!BB$7","v":3.8625674969517507E-2},{"$f":"'Population 2016'!BC87/'Population 2016'!BC$7","v":{"$error":"#DIV/0!"}},85]
[null,"Male 45-49",{"$f":"'Population 2016'!C88/'Population 2016'!C$7","v":3.9857379345473065E-2},{"$f":"'Population 2016'!D88/'Population 2016'!D$7","v":4.0593714200328736E-2},{"$f":"'Population 2016'!E88/'Population 2016'!E$7","v":4.3239533287577216E-2},{"$f":"'Population 2016'!F88/'Population 2016'!F$7","v":4.1207973817316272E-2},{"$f":"'Population 2016'!G88/'Population 2016'!G$7","v":3.7606520933679138E-2},{"$f":"'Population 2016'!H88/'Population 2016'!H$7","v":3.893396134691629E-2},{"$f":"'Population 2016'!I88/'Population 2016'!I$7","v":4.9017700836413151E-2},{"$f":"'Population 2016'!J88/'Population 2016'!J$7","v":3.9223574373931411E-2},{"$f":"'Population 2016'!K88/'Population 2016'!K$7","v":4.2597975343289567E-2},{"$f":"'Population 2016'!L88/'Population 2016'!L$7","v":4.0665064102564104E-2},{"$f":"'Population 2016'!M88/'Population 2016'!M$7","v":4.0665064102564104E-2},{"$f":"'Population 2016'!N88/'Population 2016'!N$7","v":3.7727093436042601E-2},{"$f":"'Population 2016'!O88/'Population 2016'!O$7","v":4.0733197556008148E-2},{"$f":"'Population 2016'!P88/'Population 2016'!P$7","v":4.4696786663445273E-2},{"$f":"'Population 2016'!Q88/'Population 2016'!Q$7","v":3.2202809181226449E-2},{"$f":"'Population 2016'!R88/'Population 2016'!R$7","v":3.7134740259740256E-2},{"$f":"'Population 2016'!S88/'Population 2016'!S$7","v":4.3232125367286975E-2},{"$f":"'Population 2016'!T88/'Population 2016'!T$7","v":4.1185719901368691E-2},{"$f":"'Population 2016'!U88/'Population 2016'!U$7","v":{"$error":"#DIV/0!"}},{"$f":"'Population 2016'!V88/'Population 2016'!V$7","v":4.4690683751706754E-2},{"$f":"'Population 2016'!W88/'Population 2016'!W$7","v":4.4593748413410281E-2},{"$f":"'Population 2016'!X88/'Population 2016'!X$7","v":4.4593748413410281E-2},{"$f":"'Population 2016'!Y88/'Population 2016'!Y$7","v":4.1897862720920671E-2},{"$f":"'Population 2016'!Z88/'Population 2016'!Z$7","v":3.9900102340351157E-2},{"$f":"'Population 2016'!AA88/'Population 2016'!AA$7","v":4.1221282167811124E-2},{"$f":"'Population 2016'!AB88/'Population 2016'!AB$7","v":4.1232135959830052E-2},{"$f":"'Population 2016'!AC88/'Population 2016'!AC$7","v":4.028179190751445E-2},{"$f":"'Population 2016'!AD88/'Population 2016'!AD$7","v":3.9752221922973334E-2},{"$f":"'Population 2016'!AE88/'Population 2016'!AE$7","v":4.0631882737145894E-2},{"$f":"'Population 2016'!AF88/'Population 2016'!AF$7","v":4.0410612303910937E-2},{"$f":"'Population 2016'!AG88/'Population 2016'!AG$7","v":4.0631882737145894E-2},{"$f":"'Population 2016'!AH88/'Population 2016'!AH$7","v":4.3546933035231328E-2},{"$f":"'Population 2016'!AI88/'Population 2016'!AI$7","v":4.1992802519118307E-2},{"$f":"'Population 2016'!AJ88/'Population 2016'!AJ$7","v":4.3699618158676283E-2},{"$f":"'Population 2016'!AK88/'Population 2016'!AK$7","v":6.1417322834645668E-2},{"$f":"'Population 2016'!AL88/'Population 2016'!AL$7","v":3.8323033832747967E-2},{"$f":"'Population 2016'!AM88/'Population 2016'!AM$7","v":4.398680511998513E-2},{"$f":"'Population 2016'!AN88/'Population 2016'!AN$7","v":{"$error":"#DIV/0!"}},{"$f":"'Population 2016'!AO88/'Population 2016'!AO$7","v":{"$error":"#DIV/0!"}},{"$f":"'Population 2016'!AP88/'Population 2016'!AP$7","v":3.8821752265861029E-2},{"$f":"'Population 2016'!AQ88/'Population 2016'!AQ$7","v":4.4316792960156441E-2},{"$f":"'Population 2016'!AR88/'Population 2016'!AR$7","v":4.1133457306181599E-2},{"$f":"'Population 2016'!AS88/'Population 2016'!AS$7","v":4.9017700836413151E-2},{"$f":"'Population 2016'!AT88/'Population 2016'!AT$7","v":{"$error":"#DIV/0!"}},{"$f":"'Population 2016'!AU88/'Population 2016'!AU$7","v":{"$error":"#DIV/0!"}},{"$f":"'Population 2016'!AV88/'Population 2016'!AV$7","v":3.7135606857708732E-2},{"$f":"'Population 2016'!AW88/'Population 2016'!AW$7","v":4.2826430242955807E-2},{"$f":"'Population 2016'!AX88/'Population 2016'!AX$7","v":3.5826016752447273E-2},{"$f":"'Population 2016'!AY88/'Population 2016'!AY$7","v":4.150437115900632E-2},{"$f":"'Population 2016'!AZ88/'Population 2016'!AZ$7","v":3.8270051912616718E-2},{"$f":"'Population 2016'!BA88/'Population 2016'!BA$7","v":3.7412065657642296E-2},{"$f":"'Population 2016'!BB88/'Population 2016'!BB$7","v":4.4678627416826336E-2},{"$f":"'Population 2016'!BC88/'Population 2016'!BC$7","v":{"$error":"#DIV/0!"}},86]
[null,"Male 50-54",{"$f":"'Population 2016'!C89/'Population 2016'!C$7","v":3.9157010059849742E-2},{"$f":"'Population 2016'!D89/'Population 2016'!D$7","v":3.8451959954176419E-2},{"$f":"'Population 2016'!E89/'Population 2016'!E$7","v":3.5918554106611759E-2},{"$f":"'Population 2016'!F89/'Population 2016'!F$7","v":4.3439452543885745E-2},{"$f":"'Population 2016'!G89/'Population 2016'!G$7","v":4.8721748795850311E-2},{"$f":"'Population 2016'!H89/'Population 2016'!H$7","v":4.1915585467823306E-2},{"$f":"'Population 2016'!I89/'Population 2016'!I$7","v":5.0573818323283407E-2},{"$f":"'Population 2016'!J89/'Population 2016'!J$7","v":4.3296791712762746E-2},{"$f":"'Population 2016'!K89/'Population 2016'!K$7","v":4.5504660719655206E-2},{"$f":"'Population 2016'!L89/'Population 2016'!L$7","v":4.3770032051282048E-2},{"$f":"'Population 2016'!M89/'Population 2016'!M$7","v":4.3770032051282048E-2},{"$f":"'Population 2016'!N89/'Population 2016'!N$7","v":3.8631986821039931E-2},{"$f":"'Population 2016'!O89/'Population 2016'!O$7","v":4.3056262729124238E-2},{"$f":"'Population 2016'!P89/'Population 2016'!P$7","v":4.5663203672384634E-2},{"$f":"'Population 2016'!Q89/'Population 2016'!Q$7","v":4.8989379924631725E-2},{"$f":"'Population 2016'!R89/'Population 2016'!R$7","v":4.8904220779220776E-2},{"$f":"'Population 2016'!S89/'Population 2016'!S$7","v":4.263793666340189E-2},{"$f":"'Population 2016'!T89/'Population 2016'!T$7","v":4.2704499160204412E-2},{"$f":"'Population 2016'!U89/'Population 2016'!U$7","v":{"$error":"#DIV/0!"}},{"$f":"'Population 2016'!V89/'Population 2016'!V$7","v":4.5058292196197877E-2},{"$f":"'Population 2016'!W89/'Population 2016'!W$7","v":4.1276718170894754E-2},{"$f":"'Population 2016'!X89/'Population 2016'!X$7","v":4.1276718170894754E-2},{"$f":"'Population 2016'!Y89/'Population 2016'!Y$7","v":4.4158446362515411E-2},{"$f":"'Population 2016'!Z89/'Population 2016'!Z$7","v":4.0864544332745119E-2},{"$f":"'Population 2016'!AA89/'Population 2016'!AA$7","v":4.2520341905882497E-2},{"$f":"'Population 2016'!AB89/'Population 2016'!AB$7","v":3.8480108149864814E-2},{"$f":"'Population 2016'!AC89/'Population 2016'!AC$7","v":4.2423200633973521E-2},{"$f":"'Population 2016'!AD89/'Population 2016'!AD$7","v":4.3899811473202259E-2},{"$f":"'Population 2016'!AE89/'Population 2016'!AE$7","v":4.1922989291410341E-2},{"$f":"'Population 2016'!AF89/'Population 2016'!AF$7","v":4.6446902334996022E-2},{"$f":"'Population 2016'!AG89/'Population 2016'!AG$7","v":4.1922989291410341E-2},{"$f":"'Population 2016'!AH89/'Population 2016'!AH$7","v":4.2760809202697342E-2},{"$f":"'Population 2016'!AI89/'Population 2016'!AI$7","v":4.3083670715249663E-2},{"$f":"'Population 2016'!AJ89/'Population 2016'!AJ$7","v":4.3133927308725784E-2},{"$f":"'Population 2016'!AK89/'Population 2016'!AK$7","v":3.937007874015748E-2},{"$f":"'Population 2016'!AL89/'Population 2016'!AL$7","v":4.212421642288712E-2},{"$f":"'Population 2016'!AM89/'Population 2016'!AM$7","v":4.3963574697423749E-2},{"$f":"'Population 2016'!AN89/'Population 2016'!AN$7","v":{"$error":"#DIV/0!"}},{"$f":"'Population 2016'!AO89/'Population 2016'!AO$7","v":{"$error":"#DIV/0!"}},{"$f":"'Population 2016'!AP89/'Population 2016'!AP$7","v":4.486404833836858E-2},{"$f":"'Population 2016'!AQ89/'Population 2016'!AQ$7","v":4.3999022243950137E-2},{"$f":"'Population 2016'!AR89/'Population 2016'!AR$7","v":4.2330383819021045E-2},{"$f":"'Population 2016'!AS89/'Population 2016'!AS$7","v":5.0573818323283407E-2},{"$f":"'Population 2016'!AT89/'Population 2016'!AT$7","v":{"$error":"#DIV/0!"}},{"$f":"'Population 2016'!AU89/'Population 2016'!AU$7","v":{"$error":"#DIV/0!"}},{"$f":"'Population 2016'!AV89/'Population 2016'!AV$7","v":3.9116172556786531E-2},{"$f":"'Population 2016'!AW89/'Population 2016'!AW$7","v":4.079070032914138E-2},{"$f":"'Population 2016'!AX89/'Population 2016'!AX$7","v":4.1073771319002923E-2},{"$f":"'Population 2016'!AY89/'Population 2016'!AY$7","v":4.0621483597334022E-2},{"$f":"'Population 2016'!AZ89/'Population 2016'!AZ$7","v":3.9935507875480593E-2},{"$f":"'Population 2016'!BA89/'Population 2016'!BA$7","v":4.7715483550060396E-2},{"$f":"'Population 2016'!BB89/'Population 2016'!BB$7","v":4.3241595540846542E-2},{"$f":"'Population 2016'!BC89/'Population 2016'!BC$7","v":{"$error":"#DIV/0!"}},87]
[null,"Male 55-59",{"$f":"'Population 2016'!C90/'Population 2016'!C$7","v":3.5782503501846426E-2},{"$f":"'Population 2016'!D90/'Population 2016'!D$7","v":3.7057329282263289E-2},{"$f":"'Population 2016'!E90/'Population 2016'!E$7","v":4.1638069091741017E-2},{"$f":"'Population 2016'!F90/'Population 2016'!F$7","v":3.4513537637607852E-2},{"$f":"'Population 2016'!G90/'Population 2016'!G$7","v":3.9459058910707667E-2},{"$f":"'Population 2016'!H90/'Population 2016'!H$7","v":4.0824483887346462E-2},{"$f":"'Population 2016'!I90/'Population 2016'!I$7","v":3.8319393114180124E-2},{"$f":"'Population 2016'!J90/'Population 2016'!J$7","v":4.0933319923564318E-2},{"$f":"'Population 2016'!K90/'Population 2016'!K$7","v":4.2898666933948081E-2},{"$f":"'Population 2016'!L90/'Population 2016'!L$7","v":3.8962339743589744E-2},{"$f":"'Population 2016'!M90/'Population 2016'!M$7","v":3.8962339743589744E-2},{"$f":"'Population 2016'!N90/'Population 2016'!N$7","v":3.7239843151813265E-2},{"$f":"'Population 2016'!O90/'Population 2016'!O$7","v":4.0224032586558045E-2},{"$f":"'Population 2016'!P90/'Population 2016'!P$7","v":4.1797535636627206E-2},{"$f":"'Population 2016'!Q90/'Population 2016'!Q$7","v":3.8369304556354913E-2},{"$f":"'Population 2016'!R90/'Population 2016'!R$7","v":3.916396103896104E-2},{"$f":"'Population 2016'!S90/'Population 2016'!S$7","v":3.7153117858308847E-2},{"$f":"'Population 2016'!T90/'Population 2016'!T$7","v":3.3663295572311763E-2},{"$f":"'Population 2016'!U90/'Population 2016'!U$7","v":{"$error":"#DIV/0!"}},{"$f":"'Population 2016'!V90/'Population 2016'!V$7","v":3.8178762735006824E-2},{"$f":"'Population 2016'!W90/'Population 2016'!W$7","v":4.0836703955050853E-2},{"$f":"'Population 2016'!X90/'Population 2016'!X$7","v":4.0836703955050853E-2},{"$f":"'Population 2016'!Y90/'Population 2016'!Y$7","v":3.9585902178380601E-2},{"$f":"'Population 2016'!Z90/'Population 2016'!Z$7","v":3.5755949849016394E-2},{"$f":"'Population 2016'!AA90/'Population 2016'!AA$7","v":3.7901001687117519E-2},{"$f":"'Population 2016'!AB90/'Population 2016'!AB$7","v":3.7224797219003479E-2},{"$f":"'Population 2016'!AC90/'Population 2016'!AC$7","v":3.7173107402573187E-2},{"$f":"'Population 2016'!AD90/'Population 2016'!AD$7","v":4.0237005117155937E-2},{"$f":"'Population 2016'!AE90/'Population 2016'!AE$7","v":4.0555935292777401E-2},{"$f":"'Population 2016'!AF90/'Population 2016'!AF$7","v":4.0663630448926479E-2},{"$f":"'Population 2016'!AG90/'Population 2016'!AG$7","v":4.0555935292777401E-2},{"$f":"'Population 2016'!AH90/'Population 2016'!AH$7","v":3.970285961559266E-2},{"$f":"'Population 2016'!AI90/'Population 2016'!AI$7","v":3.4637876743139902E-2},{"$f":"'Population 2016'!AJ90/'Population 2016'!AJ$7","v":3.804270965917126E-2},{"$f":"'Population 2016'!AK90/'Population 2016'!AK$7","v":4.2519685039370078E-2},{"$f":"'Population 2016'!AL90/'Population 2016'!AL$7","v":4.1346196594496065E-2},{"$f":"'Population 2016'!AM90/'Population 2016'!AM$7","v":3.9340720607707852E-2},{"$f":"'Population 2016'!AN90/'Population 2016'!AN$7","v":{"$error":"#DIV/0!"}},{"$f":"'Population 2016'!AO90/'Population 2016'!AO$7","v":{"$error":"#DIV/0!"}},{"$f":"'Population 2016'!AP90/'Population 2016'!AP$7","v":3.5196374622356495E-2},{"$f":"'Population 2016'!AQ90/'Population 2016'!AQ$7","v":4.0943534588120264E-2},{"$f":"'Population 2016'!AR90/'Population 2016'!AR$7","v":3.8121650841402649E-2},{"$f":"'Population 2016'!AS90/'Population 2016'!AS$7","v":3.8319393114180124E-2},{"$f":"'Population 2016'!AT90/'Population 2016'!AT$7","v":{"$error":"#DIV/0!"}},{"$f":"'Population 2016'!AU90/'Population 2016'!AU$7","v":{"$error":"#DIV/0!"}},{"$f":"'Population 2016'!AV90/'Population 2016'!AV$7","v":4.05397041529987E-2},{"$f":"'Population 2016'!AW90/'Population 2016'!AW$7","v":4.0296036985597687E-2},{"$f":"'Population 2016'!AX90/'Population 2016'!AX$7","v":3.8954485820970837E-2},{"$f":"'Population 2016'!AY90/'Population 2016'!AY$7","v":3.8803773911538129E-2},{"$f":"'Population 2016'!AZ90/'Population 2016'!AZ$7","v":3.6675466416257685E-2},{"$f":"'Population 2016'!BA90/'Population 2016'!BA$7","v":3.9188517018404034E-2},{"$f":"'Population 2016'!BB90/'Population 2016'!BB$7","v":3.5490332694652502E-2},{"$f":"'Population 2016'!BC90/'Population 2016'!BC$7","v":{"$error":"#DIV/0!"}},88]
[null,"Male 60-64",{"$f":"'Population 2016'!C91/'Population 2016'!C$7","v":3.2216987138673117E-2},{"$f":"'Population 2016'!D91/'Population 2016'!D$7","v":3.023360063754545E-2},{"$f":"'Population 2016'!E91/'Population 2016'!E$7","v":2.3106840539922215E-2},{"$f":"'Population 2016'!F91/'Population 2016'!F$7","v":2.9157988693841119E-2},{"$f":"'Population 2016'!G91/'Population 2016'!G$7","v":3.8347536124490551E-2},{"$f":"'Population 2016'!H91/'Population 2016'!H$7","v":3.4893644603368371E-2},{"$f":"'Population 2016'!I91/'Population 2016'!I$7","v":2.9955261622252479E-2},{"$f":"'Population 2016'!J91/'Population 2016'!J$7","v":3.1932012471085187E-2},{"$f":"'Population 2016'!K91/'Population 2016'!K$7","v":3.3376766563095121E-2},{"$f":"'Population 2016'!L91/'Population 2016'!L$7","v":3.2251602564102567E-2},{"$f":"'Population 2016'!M91/'Population 2016'!M$7","v":3.2251602564102567E-2},{"$f":"'Population 2016'!N91/'Population 2016'!N$7","v":3.0023898466321725E-2},{"$f":"'Population 2016'!O91/'Population 2016'!O$7","v":3.3254837067209775E-2},{"$f":"'Population 2016'!P91/'Population 2016'!P$7","v":3.8656680357574295E-2},{"$f":"'Population 2016'!Q91/'Population 2016'!Q$7","v":2.9804727646454265E-2},{"$f":"'Population 2016'!R91/'Population 2016'!R$7","v":2.9626623376623376E-2},{"$f":"'Population 2016'!S91/'Population 2016'!S$7","v":3.1093698987920339E-2},{"$f":"'Population 2016'!T91/'Population 2016'!T$7","v":2.8767465961476609E-2},{"$f":"'Population 2016'!U91/'Population 2016'!U$7","v":{"$error":"#DIV/0!"}},{"$f":"'Population 2016'!V91/'Population 2016'!V$7","v":3.2717151559710111E-2},{"$f":"'Population 2016'!W91/'Population 2016'!W$7","v":3.4151872598960888E-2},{"$f":"'Population 2016'!X91/'Population 2016'!X$7","v":3.4151872598960888E-2},{"$f":"'Population 2016'!Y91/'Population 2016'!Y$7","v":3.2316070694615701E-2},{"$f":"'Population 2016'!Z91/'Population 2016'!Z$7","v":2.8815336733447605E-2},{"$f":"'Population 2016'!AA91/'Population 2016'!AA$7","v":3.0774849705428865E-2},{"$f":"'Population 2016'!AB91/'Population 2016'!AB$7","v":3.0272305909617613E-2},{"$f":"'Population 2016'!AC91/'Population 2016'!AC$7","v":2.9982635651687489E-2},{"$f":"'Population 2016'!AD91/'Population 2016'!AD$7","v":3.4742795583086454E-2},{"$f":"'Population 2016'!AE91/'Population 2016'!AE$7","v":3.3264980633401685E-2},{"$f":"'Population 2016'!AF91/'Population 2016'!AF$7","v":3.4844213113569E-2},{"$f":"'Population 2016'!AG91/'Population 2016'!AG$7","v":3.3264980633401685E-2},{"$f":"'Population 2016'!AH91/'Population 2016'!AH$7","v":3.2735927301575853E-2},{"$f":"'Population 2016'!AI91/'Population 2016'!AI$7","v":2.9127305443094918E-2},{"$f":"'Population 2016'!AJ91/'Population 2016'!AJ$7","v":3.4507141846980623E-2},{"$f":"'Population 2016'!AK91/'Population 2016'!AK$7","v":3.1496062992125984E-2},{"$f":"'Population 2016'!AL91/'Population 2016'!AL$7","v":3.5010892277597475E-2},{"$f":"'Population 2016'!AM91/'Population 2016'!AM$7","v":3.1616605106046879E-2},{"$f":"'Population 2016'!AN91/'Population 2016'!AN$7","v":{"$error":"#DIV/0!"}},{"$f":"'Population 2016'!AO91/'Population 2016'!AO$7","v":{"$error":"#DIV/0!"}},{"$f":"'Population 2016'!AP91/'Population 2016'!AP$7","v":2.9305135951661631E-2},{"$f":"'Population 2016'!AQ91/'Population 2016'!AQ$7","v":2.9234905890980201E-2},{"$f":"'Population 2016'!AR91/'Population 2016'!AR$7","v":3.1365436339330963E-2},{"$f":"'Population 2016'!AS91/'Population 2016'!AS$7","v":2.9955261622252479E-2},{"$f":"'Population 2016'!AT91/'Population 2016'!AT$7","v":{"$error":"#DIV/0!"}},{"$f":"'Population 2016'!AU91/'Population 2016'!AU$7","v":{"$error":"#DIV/0!"}},{"$f":"'Population 2016'!AV91/'Population 2016'!AV$7","v":3.7754533638670547E-2},{"$f":"'Population 2016'!AW91/'Population 2016'!AW$7","v":3.4569357508418788E-2},{"$f":"'Population 2016'!AX91/'Population 2016'!AX$7","v":3.0477343828842467E-2},{"$f":"'Population 2016'!AY91/'Population 2016'!AY$7","v":3.2043625032459104E-2},{"$f":"'Population 2016'!AZ91/'Population 2016'!AZ$7","v":2.9836466398540068E-2},{"$f":"'Population 2016'!BA91/'Population 2016'!BA$7","v":3.4925033752575857E-2},{"$f":"'Population 2016'!BB91/'Population 2016'!BB$7","v":2.8261626894269292E-2},{"$f":"'Population 2016'!BC91/'Population 2016'!BC$7","v":{"$error":"#DIV/0!"}},89]
[null,"Male 65-69",{"$f":"'Population 2016'!C92/'Population 2016'!C$7","v":2.7696421749649817E-2},{"$f":"'Population 2016'!D92/'Population 2016'!D$7","v":2.7593764008567018E-2},{"$f":"'Population 2016'!E92/'Population 2016'!E$7","v":2.7224891329215281E-2},{"$f":"'Population 2016'!F92/'Population 2016'!F$7","v":3.0496875929782803E-2},{"$f":"'Population 2016'!G92/'Population 2016'!G$7","v":3.1678399407187849E-2},{"$f":"'Population 2016'!H92/'Population 2016'!H$7","v":3.3532468374258648E-2},{"$f":"'Population 2016'!I92/'Population 2016'!I$7","v":3.8902937171756469E-2},{"$f":"'Population 2016'!J92/'Population 2016'!J$7","v":3.1177712963894197E-2},{"$f":"'Population 2016'!K92/'Population 2016'!K$7","v":3.3777688683973135E-2},{"$f":"'Population 2016'!L92/'Population 2016'!L$7","v":3.7159455128205128E-2},{"$f":"'Population 2016'!M92/'Population 2016'!M$7","v":3.7159455128205128E-2},{"$f":"'Population 2016'!N92/'Population 2016'!N$7","v":2.8538945219146617E-2},{"$f":"'Population 2016'!O92/'Population 2016'!O$7","v":3.4655040733197556E-2},{"$f":"'Population 2016'!P92/'Population 2016'!P$7","v":3.0683740033824597E-2},{"$f":"'Population 2016'!Q92/'Population 2016'!Q$7","v":3.4600890715998631E-2},{"$f":"'Population 2016'!R92/'Population 2016'!R$7","v":2.7597402597402596E-2},{"$f":"'Population 2016'!S92/'Population 2016'!S$7","v":2.90956578517793E-2},{"$f":"'Population 2016'!T92/'Population 2016'!T$7","v":2.3478540542472216E-2},{"$f":"'Population 2016'!U92/'Population 2016'!U$7","v":{"$error":"#DIV/0!"}},{"$f":"'Population 2016'!V92/'Population 2016'!V$7","v":3.3819976893183487E-2},{"$f":"'Population 2016'!W92/'Population 2016'!W$7","v":3.2984142564605932E-2},{"$f":"'Population 2016'!X92/'Population 2016'!X$7","v":3.2984142564605932E-2},{"$f":"'Population 2016'!Y92/'Population 2016'!Y$7","v":3.2470201397451708E-2},{"$f":"'Population 2016'!Z92/'Population 2016'!Z$7","v":2.5673530068269015E-2},{"$f":"'Population 2016'!AA92/'Population 2016'!AA$7","v":2.8276338643706926E-2},{"$f":"'Population 2016'!AB92/'Population 2016'!AB$7","v":2.7665121668597914E-2},{"$f":"'Population 2016'!AC92/'Population 2016'!AC$7","v":2.6888518553048666E-2},{"$f":"'Population 2016'!AD92/'Population 2016'!AD$7","v":3.1079989227040129E-2},{"$f":"'Population 2016'!AE92/'Population 2016'!AE$7","v":3.0834662413609781E-2},{"$f":"'Population 2016'!AF92/'Population 2016'!AF$7","v":3.5350249403600084E-2},{"$f":"'Population 2016'!AG92/'Population 2016'!AG$7","v":3.0834662413609781E-2},{"$f":"'Population 2016'!AH92/'Population 2016'!AH$7","v":3.1711802675705891E-2},{"$f":"'Population 2016'!AI92/'Population 2016'!AI$7","v":2.5944669365721998E-2},{"$f":"'Population 2016'!AJ92/'Population 2016'!AJ$7","v":2.870881063498798E-2},{"$f":"'Population 2016'!AK92/'Population 2016'!AK$7","v":2.9921259842519685E-2},{"$f":"'Population 2016'!AL92/'Population 2016'!AL$7","v":3.3121415551504912E-2},{"$f":"'Population 2016'!AM92/'Population 2016'!AM$7","v":3.0977768485608754E-2},{"$f":"'Population 2016'!AN92/'Population 2016'!AN$7","v":{"$error":"#DIV/0!"}},{"$f":"'Population 2016'!AO92/'Population 2016'!AO$7","v":{"$error":"#DIV/0!"}},{"$f":"'Population 2016'!AP92/'Population 2016'!AP$7","v":2.4320241691842902E-2},{"$f":"'Population 2016'!AQ92/'Population 2016'!AQ$7","v":2.6277193840136884E-2},{"$f":"'Population 2016'!AR92/'Population 2016'!AR$7","v":2.9312088269890877E-2},{"$f":"'Population 2016'!AS92/'Population 2016'!AS$7","v":3.8902937171756469E-2},{"$f":"'Population 2016'!AT92/'Population 2016'!AT$7","v":{"$error":"#DIV/0!"}},{"$f":"'Population 2016'!AU92/'Population 2016'!AU$7","v":{"$error":"#DIV/0!"}},{"$f":"'Population 2016'!AV92/'Population 2016'!AV$7","v":3.2493656000495141E-2},{"$f":"'Population 2016'!AW92/'Population 2016'!AW$7","v":3.2914137858868743E-2},{"$f":"'Population 2016'!AX92/'Population 2016'!AX$7","v":2.8559895044908669E-2},{"$f":"'Population 2016'!AY92/'Population 2016'!AY$7","v":3.0684670648316453E-2},{"$f":"'Population 2016'!AZ92/'Population 2016'!AZ$7","v":2.827731613543346E-2},{"$f":"'Population 2016'!BA92/'Population 2016'!BA$7","v":2.902721523484687E-2},{"$f":"'Population 2016'!BB92/'Population 2016'!BB$7","v":3.0003483713638739E-2},{"$f":"'Population 2016'!BC92/'Population 2016'!BC$7","v":{"$error":"#DIV/0!"}},90]
[null,"Male 70-74",{"$f":"'Population 2016'!C93/'Population 2016'!C$7","v":1.6108493569336559E-2},{"$f":"'Population 2016'!D93/'Population 2016'!D$7","v":1.593863625043582E-2},{"$f":"'Population 2016'!E93/'Population 2016'!E$7","v":1.532830016014642E-2},{"$f":"'Population 2016'!F93/'Population 2016'!F$7","v":2.0083308539125259E-2},{"$f":"'Population 2016'!G93/'Population 2016'!G$7","v":2.8899592441645052E-2},{"$f":"'Population 2016'!H93/'Population 2016'!H$7","v":2.4868473646115788E-2},{"$f":"'Population 2016'!I93/'Population 2016'!I$7","v":2.7037541334370745E-2},{"$f":"'Population 2016'!J93/'Population 2016'!J$7","v":2.2377552046665996E-2},{"$f":"'Population 2016'!K93/'Population 2016'!K$7","v":2.455647990377869E-2},{"$f":"'Population 2016'!L93/'Population 2016'!L$7","v":2.2636217948717948E-2},{"$f":"'Population 2016'!M93/'Population 2016'!M$7","v":2.2636217948717948E-2},{"$f":"'Population 2016'!N93/'Population 2016'!N$7","v":2.0302095176222185E-2},{"$f":"'Population 2016'!O93/'Population 2016'!O$7","v":2.377163951120163E-2},{"$f":"'Population 2016'!P93/'Population 2016'!P$7","v":2.1261174196665861E-2},{"$f":"'Population 2016'!Q93/'Population 2016'!Q$7","v":2.1925316889345667E-2},{"$f":"'Population 2016'!R93/'Population 2016'!R$7","v":1.765422077922078E-2},{"$f":"'Population 2016'!S93/'Population 2016'!S$7","v":2.139732288605942E-2},{"$f":"'Population 2016'!T93/'Population 2016'!T$7","v":1.5973984204695708E-2},{"$f":"'Population 2016'!U93/'Population 2016'!U$7","v":{"$error":"#DIV/0!"}},{"$f":"'Population 2016'!V93/'Population 2016'!V$7","v":2.1321289780485243E-2},{"$f":"'Population 2016'!W93/'Population 2016'!W$7","v":2.5216199292592528E-2},{"$f":"'Population 2016'!X93/'Population 2016'!X$7","v":2.5216199292592528E-2},{"$f":"'Population 2016'!Y93/'Population 2016'!Y$7","v":2.1860871352240033E-2},{"$f":"'Population 2016'!Z93/'Population 2016'!Z$7","v":1.8602359303074842E-2},{"$f":"'Population 2016'!AA93/'Population 2016'!AA$7","v":2.0376146274956576E-2},{"$f":"'Population 2016'!AB93/'Population 2016'!AB$7","v":1.6174198532251834E-2},{"$f":"'Population 2016'!AC93/'Population 2016'!AC$7","v":1.9328034682080924E-2},{"$f":"'Population 2016'!AD93/'Population 2016'!AD$7","v":2.256935092916779E-2},{"$f":"'Population 2016'!AE93/'Population 2016'!AE$7","v":1.997417786891471E-2},{"$f":"'Population 2016'!AF93/'Population 2016'!AF$7","v":2.4362032820067953E-2},{"$f":"'Population 2016'!AG93/'Population 2016'!AG$7","v":1.997417786891471E-2},{"$f":"'Population 2016'!AH93/'Population 2016'!AH$7","v":2.2970682629548159E-2},{"$f":"'Population 2016'!AI93/'Population 2016'!AI$7","v":1.8533513270355375E-2},{"$f":"'Population 2016'!AJ93/'Population 2016'!AJ$7","v":2.1496252298119078E-2},{"$f":"'Population 2016'!AK93/'Population 2016'!AK$7","v":2.3622047244094488E-2},{"$f":"'Population 2016'!AL93/'Population 2016'!AL$7","v":2.5407904681456452E-2},{"$f":"'Population 2016'!AM93/'Population 2016'!AM$7","v":2.1824981996422514E-2},{"$f":"'Population 2016'!AN93/'Population 2016'!AN$7","v":{"$error":"#DIV/0!"}},{"$f":"'Population 2016'!AO93/'Population 2016'!AO$7","v":{"$error":"#DIV/0!"}},{"$f":"'Population 2016'!AP93/'Population 2016'!AP$7","v":1.797583081570997E-2},{"$f":"'Population 2016'!AQ93/'Population 2016'!AQ$7","v":1.8821803959912002E-2},{"$f":"'Population 2016'!AR93/'Population 2016'!AR$7","v":2.104710433209437E-2},{"$f":"'Population 2016'!AS93/'Population 2016'!AS$7","v":2.7037541334370745E-2},{"$f":"'Population 2016'!AT93/'Population 2016'!AT$7","v":{"$error":"#DIV/0!"}},{"$f":"'Population 2016'!AU93/'Population 2016'!AU$7","v":{"$error":"#DIV/0!"}},{"$f":"'Population 2016'!AV93/'Population 2016'!AV$7","v":2.5499783375626663E-2},{"$f":"'Population 2016'!AW93/'Population 2016'!AW$7","v":2.4847320256463919E-2},{"$f":"'Population 2016'!AX93/'Population 2016'!AX$7","v":2.0183671409829448E-2},{"$f":"'Population 2016'!AY93/'Population 2016'!AY$7","v":2.2669436509997403E-2},{"$f":"'Population 2016'!AZ93/'Population 2016'!AZ$7","v":2.0003189170992718E-2},{"$f":"'Population 2016'!BA93/'Population 2016'!BA$7","v":2.1246358274710438E-2},{"$f":"'Population 2016'!BB93/'Population 2016'!BB$7","v":2.3427974220519072E-2},{"$f":"'Population 2016'!BC93/'Population 2016'!BC$7","v":{"$error":"#DIV/0!"}},91]
[null,"Male 75-79",{"$f":"'Population 2016'!C94/'Population 2016'!C$7","v":1.0632879154463263E-2},{"$f":"'Population 2016'!D94/'Population 2016'!D$7","v":1.1206853613587687E-2},{"$f":"'Population 2016'!E94/'Population 2016'!E$7","v":1.3269274765499885E-2},{"$f":"'Population 2016'!F94/'Population 2016'!F$7","v":1.8149360309431716E-2},{"$f":"'Population 2016'!G94/'Population 2016'!G$7","v":1.6672841793256763E-2},{"$f":"'Population 2016'!H94/'Population 2016'!H$7","v":1.9391359771840935E-2},{"$f":"'Population 2016'!I94/'Population 2016'!I$7","v":1.419957206769111E-2},{"$f":"'Population 2016'!J94/'Population 2016'!J$7","v":1.7902041637332798E-2},{"$f":"'Population 2016'!K94/'Population 2016'!K$7","v":1.8241956499949884E-2},{"$f":"'Population 2016'!L94/'Population 2016'!L$7","v":1.8329326923076924E-2},{"$f":"'Population 2016'!M94/'Population 2016'!M$7","v":1.8329326923076924E-2},{"$f":"'Population 2016'!N94/'Population 2016'!N$7","v":1.540638993944175E-2},{"$f":"'Population 2016'!O94/'Population 2016'!O$7","v":2.0207484725050916E-2},{"$f":"'Population 2016'!P94/'Population 2016'!P$7","v":1.6187484899734237E-2},{"$f":"'Population 2016'!Q94/'Population 2016'!Q$7","v":2.0897567660157587E-2},{"$f":"'Population 2016'!R94/'Population 2016'!R$7","v":2.0495129870129872E-2},{"$f":"'Population 2016'!S94/'Population 2016'!S$7","v":1.5559908586353248E-2},{"$f":"'Population 2016'!T94/'Population 2016'!T$7","v":1.2954293678304685E-2},{"$f":"'Population 2016'!U94/'Population 2016'!U$7","v":{"$error":"#DIV/0!"}},{"$f":"'Population 2016'!V94/'Population 2016'!V$7","v":1.8380422224556246E-2},{"$f":"'Population 2016'!W94/'Population 2016'!W$7","v":1.6923623686303711E-2},{"$f":"'Population 2016'!X94/'Population 2016'!X$7","v":1.6923623686303711E-2},{"$f":"'Population 2016'!Y94/'Population 2016'!Y$7","v":1.8136046033703248E-2},{"$f":"'Population 2016'!Z94/'Population 2016'!Z$7","v":1.3952822361577305E-2},{"$f":"'Population 2016'!AA94/'Population 2016'!AA$7","v":1.5464206338830474E-2},{"$f":"'Population 2016'!AB94/'Population 2016'!AB$7","v":1.1201235998455001E-2},{"$f":"'Population 2016'!AC94/'Population 2016'!AC$7","v":1.4759696065634906E-2},{"$f":"'Population 2016'!AD94/'Population 2016'!AD$7","v":1.5136008618367896E-2},{"$f":"'Population 2016'!AE94/'Population 2016'!AE$7","v":1.4505961874382927E-2},{"$f":"'Population 2016'!AF94/'Population 2016'!AF$7","v":1.8289597339694933E-2},{"$f":"'Population 2016'!AG94/'Population 2016'!AG$7","v":1.4505961874382927E-2},{"$f":"'Population 2016'!AH94/'Population 2016'!AH$7","v":1.7208178572716455E-2},{"$f":"'Population 2016'!AI94/'Population 2016'!AI$7","v":1.4732343679712101E-2},{"$f":"'Population 2016'!AJ94/'Population 2016'!AJ$7","v":1.6405034648564559E-2},{"$f":"'Population 2016'!AK94/'Population 2016'!AK$7","v":1.1023622047244094E-2},{"$f":"'Population 2016'!AL94/'Population 2016'!AL$7","v":1.8939225536833682E-2},{"$f":"'Population 2016'!AM94/'Population 2016'!AM$7","v":1.7167282272864542E-2},{"$f":"'Population 2016'!AN94/'Population 2016'!AN$7","v":{"$error":"#DIV/0!"}},{"$f":"'Population 2016'!AO94/'Population 2016'!AO$7","v":{"$error":"#DIV/0!"}},{"$f":"'Population 2016'!AP94/'Population 2016'!AP$7","v":1.4501510574018127E-2},{"$f":"'Population 2016'!AQ94/'Population 2016'!AQ$7","v":1.6597408946467856E-2},{"$f":"'Population 2016'!AR94/'Population 2016'!AR$7","v":1.5952141283187768E-2},{"$f":"'Population 2016'!AS94/'Population 2016'!AS$7","v":1.419957206769111E-2},{"$f":"'Population 2016'!AT94/'Population 2016'!AT$7","v":{"$error":"#DIV/0!"}},{"$f":"'Population 2016'!AU94/'Population 2016'!AU$7","v":{"$error":"#DIV/0!"}},{"$f":"'Population 2016'!AV94/'Population 2016'!AV$7","v":1.9062944853623816E-2},{"$f":"'Population 2016'!AW94/'Population 2016'!AW$7","v":1.7275165997602784E-2},{"$f":"'Population 2016'!AX94/'Population 2016'!AX$7","v":1.755979412655162E-2},{"$f":"'Population 2016'!AY94/'Population 2016'!AY$7","v":1.629014108889466E-2},{"$f":"'Population 2016'!AZ94/'Population 2016'!AZ$7","v":1.5626937864318492E-2},{"$f":"'Population 2016'!BA94/'Population 2016'!BA$7","v":1.4211610886093939E-2},{"$f":"'Population 2016'!BB94/'Population 2016'!BB$7","v":1.7766939557568369E-2},{"$f":"'Population 2016'!BC94/'Population 2016'!BC$7","v":{"$error":"#DIV/0!"}},92]
[null,"Male 80-84",{"$f":"'Population 2016'!C95/'Population 2016'!C$7","v":7.6403922067999489E-3},{"$f":"'Population 2016'!D95/'Population 2016'!D$7","v":8.0689346017831353E-3},{"$f":"'Population 2016'!E95/'Population 2016'!E$7","v":9.6087851750171586E-3},{"$f":"'Population 2016'!F95/'Population 2016'!F$7","v":1.0264802142219578E-2},{"$f":"'Population 2016'!G95/'Population 2016'!G$7","v":1.278251204149685E-2},{"$f":"'Population 2016'!H95/'Population 2016'!H$7","v":1.3006795078159604E-2},{"$f":"'Population 2016'!I95/'Population 2016'!I$7","v":1.089282240809181E-2},{"$f":"'Population 2016'!J95/'Population 2016'!J$7","v":8.548727748164538E-3},{"$f":"'Population 2016'!K95/'Population 2016'!K$7","v":8.1186729477798932E-3},{"$f":"'Population 2016'!L95/'Population 2016'!L$7","v":1.1618589743589744E-2},{"$f":"'Population 2016'!M95/'Population 2016'!M$7","v":1.1618589743589744E-2},{"$f":"'Population 2016'!N95/'Population 2016'!N$7","v":9.7914104735608715E-3},{"$f":"'Population 2016'!O95/'Population 2016'!O$7","v":1.3429226069246436E-2},{"$f":"'Population 2016'!P95/'Population 2016'!P$7","v":1.0388982846098091E-2},{"$f":"'Population 2016'!Q95/'Population 2016'!Q$7","v":1.3360739979445015E-2},{"$f":"'Population 2016'!R95/'Population 2016'!R$7","v":9.74025974025974E-3},{"$f":"'Population 2016'!S95/'Population 2016'!S$7","v":1.0747633039503754E-2},{"$f":"'Population 2016'!T95/'Population 2016'!T$7","v":8.8625236750884458E-3},{"$f":"'Population 2016'!U95/'Population 2016'!U$7","v":{"$error":"#DIV/0!"}},{"$f":"'Population 2016'!V95/'Population 2016'!V$7","v":1.3443965969961138E-2},{"$f":"'Population 2016'!W95/'Population 2016'!W$7","v":1.2269627172570191E-2},{"$f":"'Population 2016'!X95/'Population 2016'!X$7","v":1.2269627172570191E-2},{"$f":"'Population 2016'!Y95/'Population 2016'!Y$7","v":1.0943279901356351E-2},{"$f":"'Population 2016'!Z95/'Population 2016'!Z$7","v":9.5349199597377053E-3},{"$f":"'Population 2016'!AA95/'Population 2016'!AA$7","v":1.0226463880536309E-2},{"$f":"'Population 2016'!AB95/'Population 2016'!AB$7","v":7.9663962920046346E-3},{"$f":"'Population 2016'!AC95/'Population 2016'!AC$7","v":9.8213453291068429E-3},{"$f":"'Population 2016'!AD95/'Population 2016'!AD$7","v":1.0557500673309992E-2},{"$f":"'Population 2016'!AE95/'Population 2016'!AE$7","v":9.6453254347991183E-3},{"$f":"'Population 2016'!AF95/'Population 2016'!AF$7","v":1.174727101857876E-2},{"$f":"'Population 2016'!AG95/'Population 2016'!AG$7","v":9.6453254347991183E-3},{"$f":"'Population 2016'!AH95/'Population 2016'!AH$7","v":1.1229310158306588E-2},{"$f":"'Population 2016'!AI95/'Population 2016'!AI$7","v":9.7278452541610435E-3},{"$f":"'Population 2016'!AJ95/'Population 2016'!AJ$7","v":1.0465280724084288E-2},{"$f":"'Population 2016'!AK95/'Population 2016'!AK$7","v":4.7244094488188976E-3},{"$f":"'Population 2016'!AL95/'Population 2016'!AL$7","v":1.2337171564486729E-2},{"$f":"'Population 2016'!AM95/'Population 2016'!AM$7","v":1.1266754942272399E-2},{"$f":"'Population 2016'!AN95/'Population 2016'!AN$7","v":{"$error":"#DIV/0!"}},{"$f":"'Population 2016'!AO95/'Population 2016'!AO$7","v":{"$error":"#DIV/0!"}},{"$f":"'Population 2016'!AP95/'Population 2016'!AP$7","v":9.6676737160120846E-3},{"$f":"'Population 2016'!AQ95/'Population 2016'!AQ$7","v":1.0388658029821559E-2},{"$f":"'Population 2016'!AR95/'Population 2016'!AR$7","v":1.0588901602093016E-2},{"$f":"'Population 2016'!AS95/'Population 2016'!AS$7","v":1.089282240809181E-2},{"$f":"'Population 2016'!AT95/'Population 2016'!AT$7","v":{"$error":"#DIV/0!"}},{"$f":"'Population 2016'!AU95/'Population 2016'!AU$7","v":{"$error":"#DIV/0!"}},{"$f":"'Population 2016'!AV95/'Population 2016'!AV$7","v":1.4049637927833137E-2},{"$f":"'Population 2016'!AW95/'Population 2016'!AW$7","v":1.116797625615951E-2},{"$f":"'Population 2016'!AX95/'Population 2016'!AX$7","v":8.9817337773741047E-3},{"$f":"'Population 2016'!AY95/'Population 2016'!AY$7","v":1.1079373322946421E-2},{"$f":"'Population 2016'!AZ95/'Population 2016'!AZ$7","v":9.8332772275473504E-3},{"$f":"'Population 2016'!BA95/'Population 2016'!BA$7","v":9.450721239252469E-3},{"$f":"'Population 2016'!BB95/'Population 2016'!BB$7","v":1.1147883643964466E-2},{"$f":"'Population 2016'!BC95/'Population 2016'!BC$7","v":{"$error":"#DIV/0!"}},93]
[null,"Male 85-89",{"$f":"'Population 2016'!C96/'Population 2016'!C$7","v":3.9475359735133067E-3},{"$f":"'Population 2016'!D96/'Population 2016'!D$7","v":4.134083777456791E-3},{"$f":"'Population 2016'!E96/'Population 2016'!E$7","v":4.8043925875085793E-3},{"$f":"'Population 2016'!F96/'Population 2016'!F$7","v":5.5043141922047007E-3},{"$f":"'Population 2016'!G96/'Population 2016'!G$7","v":7.224898110411263E-3},{"$f":"'Population 2016'!H96/'Population 2016'!H$7","v":6.1036870591031364E-3},{"$f":"'Population 2016'!I96/'Population 2016'!I$7","v":7.3915580626337293E-3},{"$f":"'Population 2016'!J96/'Population 2016'!J$7","v":5.2298099165241875E-3},{"$f":"'Population 2016'!K96/'Population 2016'!K$7","v":5.512679162072767E-3},{"$f":"'Population 2016'!L96/'Population 2016'!L$7","v":6.7107371794871791E-3},{"$f":"'Population 2016'!M96/'Population 2016'!M$7","v":6.7107371794871791E-3},{"$f":"'Population 2016'!N96/'Population 2016'!N$7","v":5.1973363651128795E-3},{"$f":"'Population 2016'!O96/'Population 2016'!O$7","v":6.619144602851324E-3},{"$f":"'Population 2016'!P96/'Population 2016'!P$7","v":5.5568978014013046E-3},{"$f":"'Population 2016'!Q96/'Population 2016'!Q$7","v":3.4258307639602604E-3},{"$f":"'Population 2016'!R96/'Population 2016'!R$7","v":4.87012987012987E-3},{"$f":"'Population 2016'!S96/'Population 2016'!S$7","v":5.15181194906954E-3},{"$f":"'Population 2016'!T96/'Population 2016'!T$7","v":4.1811099596183393E-3},{"$f":"'Population 2016'!U96/'Population 2016'!U$7","v":{"$error":"#DIV/0!"}},{"$f":"'Population 2016'!V96/'Population 2016'!V$7","v":5.4616111752967128E-3},{"$f":"'Population 2016'!W96/'Population 2016'!W$7","v":5.8724974191473878E-3},{"$f":"'Population 2016'!X96/'Population 2016'!X$7","v":5.8724974191473878E-3},{"$f":"'Population 2016'!Y96/'Population 2016'!Y$7","v":5.3431976983148374E-3},{"$f":"'Population 2016'!Z96/'Population 2016'!Z$7","v":4.5610946627190523E-3},{"$f":"'Population 2016'!AA96/'Population 2016'!AA$7","v":4.8476095018126653E-3},{"$f":"'Population 2016'!AB96/'Population 2016'!AB$7","v":4.2004634994206261E-3},{"$f":"'Population 2016'!AC96/'Population 2016'!AC$7","v":4.711099198209957E-3},{"$f":"'Population 2016'!AD96/'Population 2016'!AD$7","v":5.6019391327767308E-3},{"$f":"'Population 2016'!AE96/'Population 2016'!AE$7","v":4.936583883952305E-3},{"$f":"'Population 2016'!AF96/'Population 2016'!AF$7","v":5.0965083495987853E-3},{"$f":"'Population 2016'!AG96/'Population 2016'!AG$7","v":4.936583883952305E-3},{"$f":"'Population 2016'!AH96/'Population 2016'!AH$7","v":5.1855324366232736E-3},{"$f":"'Population 2016'!AI96/'Population 2016'!AI$7","v":4.5434098065677015E-3},{"$f":"'Population 2016'!AJ96/'Population 2016'!AJ$7","v":7.9196718993070295E-3},{"$f":"'Population 2016'!AK96/'Population 2016'!AK$7","v":6.2992125984251968E-3},{"$f":"'Population 2016'!AL96/'Population 2016'!AL$7","v":5.5795136264615661E-3},{"$f":"'Population 2016'!AM96/'Population 2016'!AM$7","v":4.8667735266104493E-3},{"$f":"'Population 2016'!AN96/'Population 2016'!AN$7","v":{"$error":"#DIV/0!"}},{"$f":"'Population 2016'!AO96/'Population 2016'!AO$7","v":{"$error":"#DIV/0!"}},{"$f":"'Population 2016'!AP96/'Population 2016'!AP$7","v":4.8338368580060423E-3},{"$f":"'Population 2016'!AQ96/'Population 2016'!AQ$7","v":5.5243216817404059E-3},{"$f":"'Population 2016'!AR96/'Population 2016'!AR$7","v":5.1006954555772874E-3},{"$f":"'Population 2016'!AS96/'Population 2016'!AS$7","v":7.3915580626337293E-3},{"$f":"'Population 2016'!AT96/'Population 2016'!AT$7","v":{"$error":"#DIV/0!"}},{"$f":"'Population 2016'!AU96/'Population 2016'!AU$7","v":{"$error":"#DIV/0!"}},{"$f":"'Population 2016'!AV96/'Population 2016'!AV$7","v":6.5606238781952099E-3},{"$f":"'Population 2016'!AW96/'Population 2016'!AW$7","v":5.7076539639656781E-3},{"$f":"'Population 2016'!AX96/'Population 2016'!AX$7","v":4.9449994954082147E-3},{"$f":"'Population 2016'!AY96/'Population 2016'!AY$7","v":5.5396866614732107E-3},{"$f":"'Population 2016'!AZ96/'Population 2016'!AZ$7","v":5.1912616714799523E-3},{"$f":"'Population 2016'!BA96/'Population 2016'!BA$7","v":4.2634832658281817E-3},{"$f":"'Population 2016'!BB96/'Population 2016'!BB$7","v":4.5288277303605646E-3},{"$f":"'Population 2016'!BC96/'Population 2016'!BC$7","v":{"$error":"#DIV/0!"}},94]
[null,"Male 90+",{"$f":"'Population 2016'!C97/'Population 2016'!C$7","v":1.5917483764166561E-3},{"$f":"'Population 2016'!D97/'Population 2016'!D$7","v":1.9923295313044776E-3},{"$f":"'Population 2016'!E97/'Population 2016'!E$7","v":3.4317089910775567E-3},{"$f":"'Population 2016'!F97/'Population 2016'!F$7","v":1.6364177328176137E-3},{"$f":"'Population 2016'!G97/'Population 2016'!G$7","v":2.2230455724342349E-3},{"$f":"'Population 2016'!H97/'Population 2016'!H$7","v":2.3226419782427861E-3},{"$f":"'Population 2016'!I97/'Population 2016'!I$7","v":2.7232056020229526E-3},{"$f":"'Population 2016'!J97/'Population 2016'!J$7","v":2.262898521572966E-3},{"$f":"'Population 2016'!K97/'Population 2016'!K$7","v":2.9066853763656409E-3},{"$f":"'Population 2016'!L97/'Population 2016'!L$7","v":2.6041666666666665E-3},{"$f":"'Population 2016'!M97/'Population 2016'!M$7","v":2.6041666666666665E-3},{"$f":"'Population 2016'!N97/'Population 2016'!N$7","v":2.1114178983271076E-3},{"$f":"'Population 2016'!O97/'Population 2016'!O$7","v":2.5776476578411407E-3},{"$f":"'Population 2016'!P97/'Population 2016'!P$7","v":2.1744382701135538E-3},{"$f":"'Population 2016'!Q97/'Population 2016'!Q$7","v":2.3980815347721821E-3},{"$f":"'Population 2016'!R97/'Population 2016'!R$7","v":2.232142857142857E-3},{"$f":"'Population 2016'!S97/'Population 2016'!S$7","v":2.4224616389160953E-3},{"$f":"'Population 2016'!T97/'Population 2016'!T$7","v":1.9654790408462279E-3},{"$f":"'Population 2016'!U97/'Population 2016'!U$7","v":{"$error":"#DIV/0!"}},{"$f":"'Population 2016'!V97/'Population 2016'!V$7","v":2.7308055876483564E-3},{"$f":"'Population 2016'!W97/'Population 2016'!W$7","v":2.640085295063379E-3},{"$f":"'Population 2016'!X97/'Population 2016'!X$7","v":2.640085295063379E-3},{"$f":"'Population 2016'!Y97/'Population 2016'!Y$7","v":2.4917796958487462E-3},{"$f":"'Population 2016'!Z97/'Population 2016'!Z$7","v":1.9541532072960667E-3},{"$f":"'Population 2016'!AA97/'Population 2016'!AA$7","v":2.1187539817426079E-3},{"$f":"'Population 2016'!AB97/'Population 2016'!AB$7","v":2.0278099652375433E-3},{"$f":"'Population 2016'!AC97/'Population 2016'!AC$7","v":2.0773121387283235E-3},{"$f":"'Population 2016'!AD97/'Population 2016'!AD$7","v":1.7775383786695395E-3},{"$f":"'Population 2016'!AE97/'Population 2016'!AE$7","v":1.594896331738437E-3},{"$f":"'Population 2016'!AF97/'Population 2016'!AF$7","v":2.277163305139883E-3},{"$f":"'Population 2016'!AG97/'Population 2016'!AG$7","v":1.594896331738437E-3},{"$f":"'Population 2016'!AH97/'Population 2016'!AH$7","v":2.2213407378024594E-3},{"$f":"'Population 2016'!AI97/'Population 2016'!AI$7","v":2.2604588394062076E-3},{"$f":"'Population 2016'!AJ97/'Population 2016'!AJ$7","v":4.2426813746287654E-3},{"$f":"'Population 2016'!AK97/'Population 2016'!AK$7","v":3.1496062992125984E-3},{"$f":"'Population 2016'!AL97/'Population 2016'!AL$7","v":2.0450806917707729E-3},{"$f":"'Population 2016'!AM97/'Population 2016'!AM$7","v":2.1836597207703207E-3},{"$f":"'Population 2016'!AN97/'Population 2016'!AN$7","v":{"$error":"#DIV/0!"}},{"$f":"'Population 2016'!AO97/'Population 2016'!AO$7","v":{"$error":"#DIV/0!"}},{"$f":"'Population 2016'!AP97/'Population 2016'!AP$7","v":1.3595166163141994E-3},{"$f":"'Population 2016'!AQ97/'Population 2016'!AQ$7","v":2.2977267171840625E-3},{"$f":"'Population 2016'!AR97/'Population 2016'!AR$7","v":2.1966582362072562E-3},{"$f":"'Population 2016'!AS97/'Population 2016'!AS$7","v":2.7232056020229526E-3},{"$f":"'Population 2016'!AT97/'Population 2016'!AT$7","v":{"$error":"#DIV/0!"}},{"$f":"'Population 2016'!AU97/'Population 2016'!AU$7","v":{"$error":"#DIV/0!"}},{"$f":"'Population 2016'!AV97/'Population 2016'!AV$7","v":2.5994924800396115E-3},{"$f":"'Population 2016'!AW97/'Population 2016'!AW$7","v":2.2830615855862712E-3},{"$f":"'Population 2016'!AX97/'Population 2016'!AX$7","v":1.6146937127863559E-3},{"$f":"'Population 2016'!AY97/'Population 2016'!AY$7","v":2.3110880290833549E-3},{"$f":"'Population 2016'!AZ97/'Population 2016'!AZ$7","v":1.9666554455094699E-3},{"$f":"'Population 2016'!BA97/'Population 2016'!BA$7","v":2.5580899594969089E-3},{"$f":"'Population 2016'!BB97/'Population 2016'!BB$7","v":2.3515067061487547E-3},{"$f":"'Population 2016'!BC97/'Population 2016'!BC$7","v":{"$error":"#DIV/0!"}},95]
["SIMD Q2","Female 0-4",0,0,0,0,0,0,0,0,0,0,0,0,0,0,0,0,0,0,0,0,0,0,0,0,0,0,0,0,0,0,0,0,0,0,0,0,0,0,0,0,0,0,0,0,0,0,0,0,0,0,0,0,0,96]
[null,"Female 5-9",0,0,0,0,0,0,0,0,0,0,0,0,0,0,0,0,0,0,0,0,0,0,0,0,0,0,0,0,0,0,0,0,0,0,0,0,0,0,0,0,0,0,0,0,0,0,0,0,0,0,0,0,0,97]
[null,"Female 10-15",0,0,0,0,0,0,0,0,0,0,0,0,0,0,0,0,0,0,0,0,0,0,0,0,0,0,0,0,0,0,0,0,0,0,0,0,0,0,0,0,0,0,0,0,0,0,0,0,0,0,0,0,0,98]
[null,"Female 16-19",0,0,0,0,0,0,0,0,0,0,0,0,0,0,0,0,0,0,0,0,0,0,0,0,0,0,0,0,0,0,0,0,0,0,0,0,0,0,0,0,0,0,0,0,0,0,0,0,0,0,0,0,0,99]
[null,"Female 20-24",0,0,0,0,0,0,0,0,0,0,0,0,0,0,0,0,0,0,0,0,0,0,0,0,0,0,0,0,0,0,0,0,0,0,0,0,0,0,0,0,0,0,0,0,0,0,0,0,0,0,0,0,0,100]
[null,"Female 25-29",0,0,0,0,0,0,0,0,0,0,0,0,0,0,0,0,0,0,0,0,0,0,0,0,0,0,0,0,0,0,0,0,0,0,0,0,0,0,0,0,0,0,0,0,0,0,0,0,0,0,0,0,0,101]
[null,"Female 30-34",0,0,0,0,0,0,0,0,0,0,0,0,0,0,0,0,0,0,0,0,0,0,0,0,0,0,0,0,0,0,0,0,0,0,0,0,0,0,0,0,0,0,0,0,0,0,0,0,0,0,0,0,0,102]
[null,"Female 35-39",0,0,0,0,0,0,0,0,0,0,0,0,0,0,0,0,0,0,0,0,0,0,0,0,0,0,0,0,0,0,0,0,0,0,0,0,0,0,0,0,0,0,0,0,0,0,0,0,0,0,0,0,0,103]
[null,"Female 40-44",0,0,0,0,0,0,0,0,0,0,0,0,0,0,0,0,0,0,0,0,0,0,0,0,0,0,0,0,0,0,0,0,0,0,0,0,0,0,0,0,0,0,0,0,0,0,0,0,0,0,0,0,0,104]
[null,"Female 45-49",0,0,0,0,0,0,0,0,0,0,0,0,0,0,0,0,0,0,0,0,0,0,0,0,0,0,0,0,0,0,0,0,0,0,0,0,0,0,0,0,0,0,0,0,0,0,0,0,0,0,0,0,0,105]
[null,"Female 50-54",0,0,0,0,0,0,0,0,0,0,0,0,0,0,0,0,0,0,0,0,0,0,0,0,0,0,0,0,0,0,0,0,0,0,0,0,0,0,0,0,0,0,0,0,0,0,0,0,0,0,0,0,0,106]
[null,"Female 55-59",0,0,0,0,0,0,0,0,0,0,0,0,0,0,0,0,0,0,0,0,0,0,0,0,0,0,0,0,0,0,0,0,0,0,0,0,0,0,0,0,0,0,0,0,0,0,0,0,0,0,0,0,0,107]
[null,"Female 60-64",0,0,0,0,0,0,0,0,0,0,0,0,0,0,0,0,0,0,0,0,0,0,0,0,0,0,0,0,0,0,0,0,0,0,0,0,0,0,0,0,0,0,0,0,0,0,0,0,0,0,0,0,0,108]
[null,"Female 65-69",0,0,0,0,0,0,0,0,0,0,0,0,0,0,0,0,0,0,0,0,0,0,0,0,0,0,0,0,0,0,0,0,0,0,0,0,0,0,0,0,0,0,0,0,0,0,0,0,0,0,0,0,0,109]
[null,"Female 70-74",0,0,0,0,0,0,0,0,0,0,0,0,0,0,0,0,0,0,0,0,0,0,0,0,0,0,0,0,0,0,0,0,0,0,0,0,0,0,0,0,0,0,0,0,0,0,0,0,0,0,0,0,0,110]
[null,"Female 75-79",0,0,0,0,0,0,0,0,0,0,0,0,0,0,0,0,0,0,0,0,0,0,0,0,0,0,0,0,0,0,0,0,0,0,0,0,0,0,0,0,0,0,0,0,0,0,0,0,0,0,0,0,0,111]
[null,"Female 80-84",0,0,0,0,0,0,0,0,0,0,0,0,0,0,0,0,0,0,0,0,0,0,0,0,0,0,0,0,0,0,0,0,0,0,0,0,0,0,0,0,0,0,0,0,0,0,0,0,0,0,0,0,0,112]
[null,"Female 85-89",0,0,0,0,0,0,0,0,0,0,0,0,0,0,0,0,0,0,0,0,0,0,0,0,0,0,0,0,0,0,0,0,0,0,0,0,0,0,0,0,0,0,0,0,0,0,0,0,0,0,0,0,0,113]
[null,"Female 90+",0,0,0,0,0,0,0,0,0,0,0,0,0,0,0,0,0,0,0,0,0,0,0,0,0,0,0,0,0,0,0,0,0,0,0,0,0,0,0,0,0,0,0,0,0,0,0,0,0,0,0,0,0,114]
[null,"Male 0-4",0,0,0,0,0,0,0,0,0,0,0,0,0,0,0,0,0,0,0,0,0,0,0,0,0,0,0,0,0,0,0,0,0,0,0,0,0,0,0,0,0,0,0,0,0,0,0,0,0,0,0,0,0,115]
[null,"Male 5-9",0,0,0,0,0,0,0,0,0,0,0,0,0,0,0,0,0,0,0,0,0,0,0,0,0,0,0,0,0,0,0,0,0,0,0,0,0,0,0,0,0,0,0,0,0,0,0,0,0,0,0,0,0,116]
[null,"Male 10-15",0,0,0,0,0,0,0,0,0,0,0,0,0,0,0,0,0,0,0,0,0,0,0,0,0,0,0,0,0,0,0,0,0,0,0,0,0,0,0,0,0,0,0,0,0,0,0,0,0,0,0,0,0,117]
[null,"Male 16-19",0,0,0,0,0,0,0,0,0,0,0,0,0,0,0,0,0,0,0,0,0,0,0,0,0,0,0,0,0,0,0,0,0,0,0,0,0,0,0,0,0,0,0,0,0,0,0,0,0,0,0,0,0,118]
[null,"Male 20-24",0,0,0,0,0,0,0,0,0,0,0,0,0,0,0,0,0,0,0,0,0,0,0,0,0,0,0,0,0,0,0,0,0,0,0,0,0,0,0,0,0,0,0,0,0,0,0,0,0,0,0,0,0,119]
[null,"Male 25-29",0,0,0,0,0,0,0,0,0,0,0,0,0,0,0,0,0,0,0,0,0,0,0,0,0,0,0,0,0,0,0,0,0,0,0,0,0,0,0,0,0,0,0,0,0,0,0,0,0,0,0,0,0,120]
[null,"Male 30-34",0,0,0,0,0,0,0,0,0,0,0,0,0,0,0,0,0,0,0,0,0,0,0,0,0,0,0,0,0,0,0,0,0,0,0,0,0,0,0,0,0,0,0,0,0,0,0,0,0,0,0,0,0,121]
[null,"Male 35-39",0,0,0,0,0,0,0,0,0,0,0,0,0,0,0,0,0,0,0,0,0,0,0,0,0,0,0,0,0,0,0,0,0,0,0,0,0,0,0,0,0,0,0,0,0,0,0,0,0,0,0,0,0,122]
[null,"Male 40-44",0,0,0,0,0,0,0,0,0,0,0,0,0,0,0,0,0,0,0,0,0,0,0,0,0,0,0,0,0,0,0,0,0,0,0,0,0,0,0,0,0,0,0,0,0,0,0,0,0,0,0,0,0,123]
[null,"Male 45-49",0,0,0,0,0,0,0,0,0,0,0,0,0,0,0,0,0,0,0,0,0,0,0,0,0,0,0,0,0,0,0,0,0,0,0,0,0,0,0,0,0,0,0,0,0,0,0,0,0,0,0,0,0,124]
[null,"Male 50-54",0,0,0,0,0,0,0,0,0,0,0,0,0,0,0,0,0,0,0,0,0,0,0,0,0,0,0,0,0,0,0,0,0,0,0,0,0,0,0,0,0,0,0,0,0,0,0,0,0,0,0,0,0,125]
[null,"Male 55-59",0,0,0,0,0,0,0,0,0,0,0,0,0,0,0,0,0,0,0,0,0,0,0,0,0,0,0,0,0,0,0,0,0,0,0,0,0,0,0,0,0,0,0,0,0,0,0,0,0,0,0,0,0,126]
[null,"Male 60-64",0,0,0,0,0,0,0,0,0,0,0,0,0,0,0,0,0,0,0,0,0,0,0,0,0,0,0,0,0,0,0,0,0,0,0,0,0,0,0,0,0,0,0,0,0,0,0,0,0,0,0,0,0,127]
[null,"Male 65-69",0,0,0,0,0,0,0,0,0,0,0,0,0,0,0,0,0,0,0,0,0,0,0,0,0,0,0,0,0,0,0,0,0,0,0,0,0,0,0,0,0,0,0,0,0,0,0,0,0,0,0,0,0,128]
[null,"Male 70-74",0,0,0,0,0,0,0,0,0,0,0,0,0,0,0,0,0,0,0,0,0,0,0,0,0,0,0,0,0,0,0,0,0,0,0,0,0,0,0,0,0,0,0,0,0,0,0,0,0,0,0,0,0,129]
[null,"Male 75-79",0,0,0,0,0,0,0,0,0,0,0,0,0,0,0,0,0,0,0,0,0,0,0,0,0,0,0,0,0,0,0,0,0,0,0,0,0,0,0,0,0,0,0,0,0,0,0,0,0,0,0,0,0,130]
[null,"Male 80-84",0,0,0,0,0,0,0,0,0,0,0,0,0,0,0,0,0,0,0,0,0,0,0,0,0,0,0,0,0,0,0,0,0,0,0,0,0,0,0,0,0,0,0,0,0,0,0,0,0,0,0,0,0,131]
[null,"Male 85-89",0,0,0,0,0,0,0,0,0,0,0,0,0,0,0,0,0,0,0,0,0,0,0,0,0,0,0,0,0,0,0,0,0,0,0,0,0,0,0,0,0,0,0,0,0,0,0,0,0,0,0,0,0,132]
[null,"Male 90+",0,0,0,0,0,0,0,0,0,0,0,0,0,0,0,0,0,0,0,0,0,0,0,0,0,0,0,0,0,0,0,0,0,0,0,0,0,0,0,0,0,0,0,0,0,0,0,0,0,0,0,0,0,133]
["SIMD Q3","Female 0-4",0,0,0,0,0,0,0,0,0,0,0,0,0,0,0,0,0,0,0,0,0,0,0,0,0,0,0,0,0,0,0,0,0,0,0,0,0,0,0,0,0,0,0,0,0,0,0,0,0,0,0,0,0,134]
[null,"Female 5-9",0,0,0,0,0,0,0,0,0,0,0,0,0,0,0,0,0,0,0,0,0,0,0,0,0,0,0,0,0,0,0,0,0,0,0,0,0,0,0,0,0,0,0,0,0,0,0,0,0,0,0,0,0,135]
[null,"Female 10-15",0,0,0,0,0,0,0,0,0,0,0,0,0,0,0,0,0,0,0,0,0,0,0,0,0,0,0,0,0,0,0,0,0,0,0,0,0,0,0,0,0,0,0,0,0,0,0,0,0,0,0,0,0,136]
[null,"Female 16-19",0,0,0,0,0,0,0,0,0,0,0,0,0,0,0,0,0,0,0,0,0,0,0,0,0,0,0,0,0,0,0,0,0,0,0,0,0,0,0,0,0,0,0,0,0,0,0,0,0,0,0,0,0,137]
[null,"Female 20-24",0,0,0,0,0,0,0,0,0,0,0,0,0,0,0,0,0,0,0,0,0,0,0,0,0,0,0,0,0,0,0,0,0,0,0,0,0,0,0,0,0,0,0,0,0,0,0,0,0,0,0,0,0,138]
[null,"Female 25-29",0,0,0,0,0,0,0,0,0,0,0,0,0,0,0,0,0,0,0,0,0,0,0,0,0,0,0,0,0,0,0,0,0,0,0,0,0,0,0,0,0,0,0,0,0,0,0,0,0,0,0,0,0,139]
[null,"Female 30-34",0,0,0,0,0,0,0,0,0,0,0,0,0,0,0,0,0,0,0,0,0,0,0,0,0,0,0,0,0,0,0,0,0,0,0,0,0,0,0,0,0,0,0,0,0,0,0,0,0,0,0,0,0,140]
[null,"Female 35-39",0,0,0,0,0,0,0,0,0,0,0,0,0,0,0,0,0,0,0,0,0,0,0,0,0,0,0,0,0,0,0,0,0,0,0,0,0,0,0,0,0,0,0,0,0,0,0,0,0,0,0,0,0,141]
[null,"Female 40-44",0,0,0,0,0,0,0,0,0,0,0,0,0,0,0,0,0,0,0,0,0,0,0,0,0,0,0,0,0,0,0,0,0,0,0,0,0,0,0,0,0,0,0,0,0,0,0,0,0,0,0,0,0,142]
[null,"Female 45-49",0,0,0,0,0,0,0,0,0,0,0,0,0,0,0,0,0,0,0,0,0,0,0,0,0,0,0,0,0,0,0,0,0,0,0,0,0,0,0,0,0,0,0,0,0,0,0,0,0,0,0,0,0,143]
[null,"Female 50-54",0,0,0,0,0,0,0,0,0,0,0,0,0,0,0,0,0,0,0,0,0,0,0,0,0,0,0,0,0,0,0,0,0,0,0,0,0,0,0,0,0,0,0,0,0,0,0,0,0,0,0,0,0,144]
[null,"Female 55-59",0,0,0,0,0,0,0,0,0,0,0,0,0,0,0,0,0,0,0,0,0,0,0,0,0,0,0,0,0,0,0,0,0,0,0,0,0,0,0,0,0,0,0,0,0,0,0,0,0,0,0,0,0,145]
[null,"Female 60-64",0,0,0,0,0,0,0,0,0,0,0,0,0,0,0,0,0,0,0,0,0,0,0,0,0,0,0,0,0,0,0,0,0,0,0,0,0,0,0,0,0,0,0,0,0,0,0,0,0,0,0,0,0,146]
[null,"Female 65-69",0,0,0,0,0,0,0,0,0,0,0,0,0,0,0,0,0,0,0,0,0,0,0,0,0,0,0,0,0,0,0,0,0,0,0,0,0,0,0,0,0,0,0,0,0,0,0,0,0,0,0,0,0,147]
[null,"Female 70-74",0,0,0,0,0,0,0,0,0,0,0,0,0,0,0,0,0,0,0,0,0,0,0,0,0,0,0,0,0,0,0,0,0,0,0,0,0,0,0,0,0,0,0,0,0,0,0,0,0,0,0,0,0,148]
[null,"Female 75-79",0,0,0,0,0,0,0,0,0,0,0,0,0,0,0,0,0,0,0,0,0,0,0,0,0,0,0,0,0,0,0,0,0,0,0,0,0,0,0,0,0,0,0,0,0,0,0,0,0,0,0,0,0,149]
[null,"Female 80-84",0,0,0,0,0,0,0,0,0,0,0,0,0,0,0,0,0,0,0,0,0,0,0,0,0,0,0,0,0,0,0,0,0,0,0,0,0,0,0,0,0,0,0,0,0,0,0,0,0,0,0,0,0,150]
[null,"Female 85-89",0,0,0,0,0,0,0,0,0,0,0,0,0,0,0,0,0,0,0,0,0,0,0,0,0,0,0,0,0,0,0,0,0,0,0,0,0,0,0,0,0,0,0,0,0,0,0,0,0,0,0,0,0,151]
[null,"Female 90+",0,0,0,0,0,0,0,0,0,0,0,0,0,0,0,0,0,0,0,0,0,0,0,0,0,0,0,0,0,0,0,0,0,0,0,0,0,0,0,0,0,0,0,0,0,0,0,0,0,0,0,0,0,152]
[null,"Male 0-4",0,0,0,0,0,0,0,0,0,0,0,0,0,0,0,0,0,0,0,0,0,0,0,0,0,0,0,0,0,0,0,0,0,0,0,0,0,0,0,0,0,0,0,0,0,0,0,0,0,0,0,0,0,153]
[null,"Male 5-9",0,0,0,0,0,0,0,0,0,0,0,0,0,0,0,0,0,0,0,0,0,0,0,0,0,0,0,0,0,0,0,0,0,0,0,0,0,0,0,0,0,0,0,0,0,0,0,0,0,0,0,0,0,154]
[null,"Male 10-15",0,0,0,0,0,0,0,0,0,0,0,0,0,0,0,0,0,0,0,0,0,0,0,0,0,0,0,0,0,0,0,0,0,0,0,0,0,0,0,0,0,0,0,0,0,0,0,0,0,0,0,0,0,155]
[null,"Male 16-19",0,0,0,0,0,0,0,0,0,0,0,0,0,0,0,0,0,0,0,0,0,0,0,0,0,0,0,0,0,0,0,0,0,0,0,0,0,0,0,0,0,0,0,0,0,0,0,0,0,0,0,0,0,156]
[null,"Male 20-24",0,0,0,0,0,0,0,0,0,0,0,0,0,0,0,0,0,0,0,0,0,0,0,0,0,0,0,0,0,0,0,0,0,0,0,0,0,0,0,0,0,0,0,0,0,0,0,0,0,0,0,0,0,157]
[null,"Male 25-29",0,0,0,0,0,0,0,0,0,0,0,0,0,0,0,0,0,0,0,0,0,0,0,0,0,0,0,0,0,0,0,0,0,0,0,0,0,0,0,0,0,0,0,0,0,0,0,0,0,0,0,0,0,158]
[null,"Male 30-34",0,0,0,0,0,0,0,0,0,0,0,0,0,0,0,0,0,0,0,0,0,0,0,0,0,0,0,0,0,0,0,0,0,0,0,0,0,0,0,0,0,0,0,0,0,0,0,0,0,0,0,0,0,159]
[null,"Male 35-39",0,0,0,0,0,0,0,0,0,0,0,0,0,0,0,0,0,0,0,0,0,0,0,0,0,0,0,0,0,0,0,0,0,0,0,0,0,0,0,0,0,0,0,0,0,0,0,0,0,0,0,0,0,160]
[null,"Male 40-44",0,0,0,0,0,0,0,0,0,0,0,0,0,0,0,0,0,0,0,0,0,0,0,0,0,0,0,0,0,0,0,0,0,0,0,0,0,0,0,0,0,0,0,0,0,0,0,0,0,0,0,0,0,161]
[null,"Male 45-49",0,0,0,0,0,0,0,0,0,0,0,0,0,0,0,0,0,0,0,0,0,0,0,0,0,0,0,0,0,0,0,0,0,0,0,0,0,0,0,0,0,0,0,0,0,0,0,0,0,0,0,0,0,162]
[null,"Male 50-54",0,0,0,0,0,0,0,0,0,0,0,0,0,0,0,0,0,0,0,0,0,0,0,0,0,0,0,0,0,0,0,0,0,0,0,0,0,0,0,0,0,0,0,0,0,0,0,0,0,0,0,0,0,163]
[null,"Male 55-59",0,0,0,0,0,0,0,0,0,0,0,0,0,0,0,0,0,0,0,0,0,0,0,0,0,0,0,0,0,0,0,0,0,0,0,0,0,0,0,0,0,0,0,0,0,0,0,0,0,0,0,0,0,164]
[null,"Male 60-64",0,0,0,0,0,0,0,0,0,0,0,0,0,0,0,0,0,0,0,0,0,0,0,0,0,0,0,0,0,0,0,0,0,0,0,0,0,0,0,0,0,0,0,0,0,0,0,0,0,0,0,0,0,165]
[null,"Male 65-69",0,0,0,0,0,0,0,0,0,0,0,0,0,0,0,0,0,0,0,0,0,0,0,0,0,0,0,0,0,0,0,0,0,0,0,0,0,0,0,0,0,0,0,0,0,0,0,0,0,0,0,0,0,166]
[null,"Male 70-74",0,0,0,0,0,0,0,0,0,0,0,0,0,0,0,0,0,0,0,0,0,0,0,0,0,0,0,0,0,0,0,0,0,0,0,0,0,0,0,0,0,0,0,0,0,0,0,0,0,0,0,0,0,167]
[null,"Male 75-79",0,0,0,0,0,0,0,0,0,0,0,0,0,0,0,0,0,0,0,0,0,0,0,0,0,0,0,0,0,0,0,0,0,0,0,0,0,0,0,0,0,0,0,0,0,0,0,0,0,0,0,0,0,168]
[null,"Male 80-84",0,0,0,0,0,0,0,0,0,0,0,0,0,0,0,0,0,0,0,0,0,0,0,0,0,0,0,0,0,0,0,0,0,0,0,0,0,0,0,0,0,0,0,0,0,0,0,0,0,0,0,0,0,169]
[null,"Male 85-89",0,0,0,0,0,0,0,0,0,0,0,0,0,0,0,0,0,0,0,0,0,0,0,0,0,0,0,0,0,0,0,0,0,0,0,0,0,0,0,0,0,0,0,0,0,0,0,0,0,0,0,0,0,170]
[null,"Male 90+",0,0,0,0,0,0,0,0,0,0,0,0,0,0,0,0,0,0,0,0,0,0,0,0,0,0,0,0,0,0,0,0,0,0,0,0,0,0,0,0,0,0,0,0,0,0,0,0,0,0,0,0,0,171]
["SIMD Q4","Female 0-4",0,0,0,0,0,0,0,0,0,0,0,0,0,0,0,0,0,0,0,0,0,0,0,0,0,0,0,0,0,0,0,0,0,0,0,0,0,0,0,0,0,0,0,0,0,0,0,0,0,0,0,0,0,172]
[null,"Female 5-9",0,0,0,0,0,0,0,0,0,0,0,0,0,0,0,0,0,0,0,0,0,0,0,0,0,0,0,0,0,0,0,0,0,0,0,0,0,0,0,0,0,0,0,0,0,0,0,0,0,0,0,0,0,173]
[null,"Female 10-15",0,0,0,0,0,0,0,0,0,0,0,0,0,0,0,0,0,0,0,0,0,0,0,0,0,0,0,0,0,0,0,0,0,0,0,0,0,0,0,0,0,0,0,0,0,0,0,0,0,0,0,0,0,174]
[null,"Female 16-19",0,0,0,0,0,0,0,0,0,0,0,0,0,0,0,0,0,0,0,0,0,0,0,0,0,0,0,0,0,0,0,0,0,0,0,0,0,0,0,0,0,0,0,0,0,0,0,0,0,0,0,0,0,175]
[null,"Female 20-24",0,0,0,0,0,0,0,0,0,0,0,0,0,0,0,0,0,0,0,0,0,0,0,0,0,0,0,0,0,0,0,0,0,0,0,0,0,0,0,0,0,0,0,0,0,0,0,0,0,0,0,0,0,176]
[null,"Female 25-29",0,0,0,0,0,0,0,0,0,0,0,0,0,0,0,0,0,0,0,0,0,0,0,0,0,0,0,0,0,0,0,0,0,0,0,0,0,0,0,0,0,0,0,0,0,0,0,0,0,0,0,0,0,177]
[null,"Female 30-34",0,0,0,0,0,0,0,0,0,0,0,0,0,0,0,0,0,0,0,0,0,0,0,0,0,0,0,0,0,0,0,0,0,0,0,0,0,0,0,0,0,0,0,0,0,0,0,0,0,0,0,0,0,178]
[null,"Female 35-39",0,0,0,0,0,0,0,0,0,0,0,0,0,0,0,0,0,0,0,0,0,0,0,0,0,0,0,0,0,0,0,0,0,0,0,0,0,0,0,0,0,0,0,0,0,0,0,0,0,0,0,0,0,179]
[null,"Female 40-44",0,0,0,0,0,0,0,0,0,0,0,0,0,0,0,0,0,0,0,0,0,0,0,0,0,0,0,0,0,0,0,0,0,0,0,0,0,0,0,0,0,0,0,0,0,0,0,0,0,0,0,0,0,180]
[null,"Female 45-49",0,0,0,0,0,0,0,0,0,0,0,0,0,0,0,0,0,0,0,0,0,0,0,0,0,0,0,0,0,0,0,0,0,0,0,0,0,0,0,0,0,0,0,0,0,0,0,0,0,0,0,0,0,181]
[null,"Female 50-54",0,0,0,0,0,0,0,0,0,0,0,0,0,0,0,0,0,0,0,0,0,0,0,0,0,0,0,0,0,0,0,0,0,0,0,0,0,0,0,0,0,0,0,0,0,0,0,0,0,0,0,0,0,182]
[null,"Female 55-59",0,0,0,0,0,0,0,0,0,0,0,0,0,0,0,0,0,0,0,0,0,0,0,0,0,0,0,0,0,0,0,0,0,0,0,0,0,0,0,0,0,0,0,0,0,0,0,0,0,0,0,0,0,183]
[null,"Female 60-64",0,0,0,0,0,0,0,0,0,0,0,0,0,0,0,0,0,0,0,0,0,0,0,0,0,0,0,0,0,0,0,0,0,0,0,0,0,0,0,0,0,0,0,0,0,0,0,0,0,0,0,0,0,184]
[null,"Female 65-69",0,0,0,0,0,0,0,0,0,0,0,0,0,0,0,0,0,0,0,0,0,0,0,0,0,0,0,0,0,0,0,0,0,0,0,0,0,0,0,0,0,0,0,0,0,0,0,0,0,0,0,0,0,185]
[null,"Female 70-74",0,0,0,0,0,0,0,0,0,0,0,0,0,0,0,0,0,0,0,0,0,0,0,0,0,0,0,0,0,0,0,0,0,0,0,0,0,0,0,0,0,0,0,0,0,0,0,0,0,0,0,0,0,186]
[null,"Female 75-79",0,0,0,0,0,0,0,0,0,0,0,0,0,0,0,0,0,0,0,0,0,0,0,0,0,0,0,0,0,0,0,0,0,0,0,0,0,0,0,0,0,0,0,0,0,0,0,0,0,0,0,0,0,187]
[null,"Female 80-84",0,0,0,0,0,0,0,0,0,0,0,0,0,0,0,0,0,0,0,0,0,0,0,0,0,0,0,0,0,0,0,0,0,0,0,0,0,0,0,0,0,0,0,0,0,0,0,0,0,0,0,0,0,188]
[null,"Female 85-89",0,0,0,0,0,0,0,0,0,0,0,0,0,0,0,0,0,0,0,0,0,0,0,0,0,0,0,0,0,0,0,0,0,0,0,0,0,0,0,0,0,0,0,0,0,0,0,0,0,0,0,0,0,189]
[null,"Female 90+",0,0,0,0,0,0,0,0,0,0,0,0,0,0,0,0,0,0,0,0,0,0,0,0,0,0,0,0,0,0,0,0,0,0,0,0,0,0,0,0,0,0,0,0,0,0,0,0,0,0,0,0,0,190]
[null,"Male 0-4",0,0,0,0,0,0,0,0,0,0,0,0,0,0,0,0,0,0,0,0,0,0,0,0,0,0,0,0,0,0,0,0,0,0,0,0,0,0,0,0,0,0,0,0,0,0,0,0,0,0,0,0,0,191]
[null,"Male 5-9",0,0,0,0,0,0,0,0,0,0,0,0,0,0,0,0,0,0,0,0,0,0,0,0,0,0,0,0,0,0,0,0,0,0,0,0,0,0,0,0,0,0,0,0,0,0,0,0,0,0,0,0,0,192]
[null,"Male 10-15",0,0,0,0,0,0,0,0,0,0,0,0,0,0,0,0,0,0,0,0,0,0,0,0,0,0,0,0,0,0,0,0,0,0,0,0,0,0,0,0,0,0,0,0,0,0,0,0,0,0,0,0,0,193]
[null,"Male 16-19",0,0,0,0,0,0,0,0,0,0,0,0,0,0,0,0,0,0,0,0,0,0,0,0,0,0,0,0,0,0,0,0,0,0,0,0,0,0,0,0,0,0,0,0,0,0,0,0,0,0,0,0,0,194]
[null,"Male 20-24",0,0,0,0,0,0,0,0,0,0,0,0,0,0,0,0,0,0,0,0,0,0,0,0,0,0,0,0,0,0,0,0,0,0,0,0,0,0,0,0,0,0,0,0,0,0,0,0,0,0,0,0,0,195]
[null,"Male 25-29",0,0,0,0,0,0,0,0,0,0,0,0,0,0,0,0,0,0,0,0,0,0,0,0,0,0,0,0,0,0,0,0,0,0,0,0,0,0,0,0,0,0,0,0,0,0,0,0,0,0,0,0,0,196]
[null,"Male 30-34",0,0,0,0,0,0,0,0,0,0,0,0,0,0,0,0,0,0,0,0,0,0,0,0,0,0,0,0,0,0,0,0,0,0,0,0,0,0,0,0,0,0,0,0,0,0,0,0,0,0,0,0,0,197]
[null,"Male 35-39",0,0,0,0,0,0,0,0,0,0,0,0,0,0,0,0,0,0,0,0,0,0,0,0,0,0,0,0,0,0,0,0,0,0,0,0,0,0,0,0,0,0,0,0,0,0,0,0,0,0,0,0,0,198]
[null,"Male 40-44",0,0,0,0,0,0,0,0,0,0,0,0,0,0,0,0,0,0,0,0,0,0,0,0,0,0,0,0,0,0,0,0,0,0,0,0,0,0,0,0,0,0,0,0,0,0,0,0,0,0,0,0,0,199]
[null,"Male 45-49",0,0,0,0,0,0,0,0,0,0,0,0,0,0,0,0,0,0,0,0,0,0,0,0,0,0,0,0,0,0,0,0,0,0,0,0,0,0,0,0,0,0,0,0,0,0,0,0,0,0,0,0,0,200]
[null,"Male 50-54",0,0,0,0,0,0,0,0,0,0,0,0,0,0,0,0,0,0,0,0,0,0,0,0,0,0,0,0,0,0,0,0,0,0,0,0,0,0,0,0,0,0,0,0,0,0,0,0,0,0,0,0,0,201]
[null,"Male 55-59",0,0,0,0,0,0,0,0,0,0,0,0,0,0,0,0,0,0,0,0,0,0,0,0,0,0,0,0,0,0,0,0,0,0,0,0,0,0,0,0,0,0,0,0,0,0,0,0,0,0,0,0,0,202]
[null,"Male 60-64",0,0,0,0,0,0,0,0,0,0,0,0,0,0,0,0,0,0,0,0,0,0,0,0,0,0,0,0,0,0,0,0,0,0,0,0,0,0,0,0,0,0,0,0,0,0,0,0,0,0,0,0,0,203]
[null,"Male 65-69",0,0,0,0,0,0,0,0,0,0,0,0,0,0,0,0,0,0,0,0,0,0,0,0,0,0,0,0,0,0,0,0,0,0,0,0,0,0,0,0,0,0,0,0,0,0,0,0,0,0,0,0,0,204]
[null,"Male 70-74",0,0,0,0,0,0,0,0,0,0,0,0,0,0,0,0,0,0,0,0,0,0,0,0,0,0,0,0,0,0,0,0,0,0,0,0,0,0,0,0,0,0,0,0,0,0,0,0,0,0,0,0,0,205]
[null,"Male 75-79",0,0,0,0,0,0,0,0,0,0,0,0,0,0,0,0,0,0,0,0,0,0,0,0,0,0,0,0,0,0,0,0,0,0,0,0,0,0,0,0,0,0,0,0,0,0,0,0,0,0,0,0,0,206]
[null,"Male 80-84",0,0,0,0,0,0,0,0,0,0,0,0,0,0,0,0,0,0,0,0,0,0,0,0,0,0,0,0,0,0,0,0,0,0,0,0,0,0,0,0,0,0,0,0,0,0,0,0,0,0,0,0,0,207]
[null,"Male 85-89",0,0,0,0,0,0,0,0,0,0,0,0,0,0,0,0,0,0,0,0,0,0,0,0,0,0,0,0,0,0,0,0,0,0,0,0,0,0,0,0,0,0,0,0,0,0,0,0,0,0,0,0,0,208]
[null,"Male 90+",0,0,0,0,0,0,0,0,0,0,0,0,0,0,0,0,0,0,0,0,0,0,0,0,0,0,0,0,0,0,0,0,0,0,0,0,0,0,0,0,0,0,0,0,0,0,0,0,0,0,0,0,0,209]
["SIMD Q5 (least deprived)","Female 0-4",0,0,0,0,0,0,0,0,0,0,0,0,0,0,0,0,0,0,0,0,0,0,0,0,0,0,0,0,0,0,0,0,0,0,0,0,0,0,0,0,0,0,0,0,0,0,0,0,0,0,0,0,0,210]
[null,"Female 5-9",0,0,0,0,0,0,0,0,0,0,0,0,0,0,0,0,0,0,0,0,0,0,0,0,0,0,0,0,0,0,0,0,0,0,0,0,0,0,0,0,0,0,0,0,0,0,0,0,0,0,0,0,0,211]
[null,"Female 10-15",0,0,0,0,0,0,0,0,0,0,0,0,0,0,0,0,0,0,0,0,0,0,0,0,0,0,0,0,0,0,0,0,0,0,0,0,0,0,0,0,0,0,0,0,0,0,0,0,0,0,0,0,0,212]
[null,"Female 16-19",0,0,0,0,0,0,0,0,0,0,0,0,0,0,0,0,0,0,0,0,0,0,0,0,0,0,0,0,0,0,0,0,0,0,0,0,0,0,0,0,0,0,0,0,0,0,0,0,0,0,0,0,0,213]
[null,"Female 20-24",0,0,0,0,0,0,0,0,0,0,0,0,0,0,0,0,0,0,0,0,0,0,0,0,0,0,0,0,0,0,0,0,0,0,0,0,0,0,0,0,0,0,0,0,0,0,0,0,0,0,0,0,0,214]
[null,"Female 25-29",0,0,0,0,0,0,0,0,0,0,0,0,0,0,0,0,0,0,0,0,0,0,0,0,0,0,0,0,0,0,0,0,0,0,0,0,0,0,0,0,0,0,0,0,0,0,0,0,0,0,0,0,0,215]
[null,"Female 30-34",0,0,0,0,0,0,0,0,0,0,0,0,0,0,0,0,0,0,0,0,0,0,0,0,0,0,0,0,0,0,0,0,0,0,0,0,0,0,0,0,0,0,0,0,0,0,0,0,0,0,0,0,0,216]
[null,"Female 35-39",0,0,0,0,0,0,0,0,0,0,0,0,0,0,0,0,0,0,0,0,0,0,0,0,0,0,0,0,0,0,0,0,0,0,0,0,0,0,0,0,0,0,0,0,0,0,0,0,0,0,0,0,0,217]
[null,"Female 40-44",0,0,0,0,0,0,0,0,0,0,0,0,0,0,0,0,0,0,0,0,0,0,0,0,0,0,0,0,0,0,0,0,0,0,0,0,0,0,0,0,0,0,0,0,0,0,0,0,0,0,0,0,0,218]
[null,"Female 45-49",0,0,0,0,0,0,0,0,0,0,0,0,0,0,0,0,0,0,0,0,0,0,0,0,0,0,0,0,0,0,0,0,0,0,0,0,0,0,0,0,0,0,0,0,0,0,0,0,0,0,0,0,0,219]
[null,"Female 50-54",0,0,0,0,0,0,0,0,0,0,0,0,0,0,0,0,0,0,0,0,0,0,0,0,0,0,0,0,0,0,0,0,0,0,0,0,0,0,0,0,0,0,0,0,0,0,0,0,0,0,0,0,0,220]
[null,"Female 55-59",0,0,0,0,0,0,0,0,0,0,0,0,0,0,0,0,0,0,0,0,0,0,0,0,0,0,0,0,0,0,0,0,0,0,0,0,0,0,0,0,0,0,0,0,0,0,0,0,0,0,0,0,0,221]
[null,"Female 60-64",0,0,0,0,0,0,0,0,0,0,0,0,0,0,0,0,0,0,0,0,0,0,0,0,0,0,0,0,0,0,0,0,0,0,0,0,0,0,0,0,0,0,0,0,0,0,0,0,0,0,0,0,0,222]
[null,"Female 65-69",0,0,0,0,0,0,0,0,0,0,0,0,0,0,0,0,0,0,0,0,0,0,0,0,0,0,0,0,0,0,0,0,0,0,0,0,0,0,0,0,0,0,0,0,0,0,0,0,0,0,0,0,0,223]
[null,"Female 70-74",0,0,0,0,0,0,0,0,0,0,0,0,0,0,0,0,0,0,0,0,0,0,0,0,0,0,0,0,0,0,0,0,0,0,0,0,0,0,0,0,0,0,0,0,0,0,0,0,0,0,0,0,0,224]
[null,"Female 75-79",0,0,0,0,0,0,0,0,0,0,0,0,0,0,0,0,0,0,0,0,0,0,0,0,0,0,0,0,0,0,0,0,0,0,0,0,0,0,0,0,0,0,0,0,0,0,0,0,0,0,0,0,0,225]
[null,"Female 80-84",0,0,0,0,0,0,0,0,0,0,0,0,0,0,0,0,0,0,0,0,0,0,0,0,0,0,0,0,0,0,0,0,0,0,0,0,0,0,0,0,0,0,0,0,0,0,0,0,0,0,0,0,0,226]
[null,"Female 85-89",0,0,0,0,0,0,0,0,0,0,0,0,0,0,0,0,0,0,0,0,0,0,0,0,0,0,0,0,0,0,0,0,0,0,0,0,0,0,0,0,0,0,0,0,0,0,0,0,0,0,0,0,0,227]
[null,"Female 90+",0,0,0,0,0,0,0,0,0,0,0,0,0,0,0,0,0,0,0,0,0,0,0,0,0,0,0,0,0,0,0,0,0,0,0,0,0,0,0,0,0,0,0,0,0,0,0,0,0,0,0,0,0,228]
[null,"Male 0-4",0,0,0,0,0,0,0,0,0,0,0,0,0,0,0,0,0,0,0,0,0,0,0,0,0,0,0,0,0,0,0,0,0,0,0,0,0,0,0,0,0,0,0,0,0,0,0,0,0,0,0,0,0,229]
[null,"Male 5-9",0,0,0,0,0,0,0,0,0,0,0,0,0,0,0,0,0,0,0,0,0,0,0,0,0,0,0,0,0,0,0,0,0,0,0,0,0,0,0,0,0,0,0,0,0,0,0,0,0,0,0,0,0,230]
[null,"Male 10-15",0,0,0,0,0,0,0,0,0,0,0,0,0,0,0,0,0,0,0,0,0,0,0,0,0,0,0,0,0,0,0,0,0,0,0,0,0,0,0,0,0,0,0,0,0,0,0,0,0,0,0,0,0,231]
[null,"Male 16-19",0,0,0,0,0,0,0,0,0,0,0,0,0,0,0,0,0,0,0,0,0,0,0,0,0,0,0,0,0,0,0,0,0,0,0,0,0,0,0,0,0,0,0,0,0,0,0,0,0,0,0,0,0,232]
[null,"Male 20-24",0,0,0,0,0,0,0,0,0,0,0,0,0,0,0,0,0,0,0,0,0,0,0,0,0,0,0,0,0,0,0,0,0,0,0,0,0,0,0,0,0,0,0,0,0,0,0,0,0,0,0,0,0,233]
[null,"Male 25-29",0,0,0,0,0,0,0,0,0,0,0,0,0,0,0,0,0,0,0,0,0,0,0,0,0,0,0,0,0,0,0,0,0,0,0,0,0,0,0,0,0,0,0,0,0,0,0,0,0,0,0,0,0,234]
[null,"Male 30-34",0,0,0,0,0,0,0,0,0,0,0,0,0,0,0,0,0,0,0,0,0,0,0,0,0,0,0,0,0,0,0,0,0,0,0,0,0,0,0,0,0,0,0,0,0,0,0,0,0,0,0,0,0,235]
[null,"Male 35-39",0,0,0,0,0,0,0,0,0,0,0,0,0,0,0,0,0,0,0,0,0,0,0,0,0,0,0,0,0,0,0,0,0,0,0,0,0,0,0,0,0,0,0,0,0,0,0,0,0,0,0,0,0,236]
[null,"Male 40-44",0,0,0,0,0,0,0,0,0,0,0,0,0,0,0,0,0,0,0,0,0,0,0,0,0,0,0,0,0,0,0,0,0,0,0,0,0,0,0,0,0,0,0,0,0,0,0,0,0,0,0,0,0,237]
[null,"Male 45-49",0,0,0,0,0,0,0,0,0,0,0,0,0,0,0,0,0,0,0,0,0,0,0,0,0,0,0,0,0,0,0,0,0,0,0,0,0,0,0,0,0,0,0,0,0,0,0,0,0,0,0,0,0,238]
[null,"Male 50-54",0,0,0,0,0,0,0,0,0,0,0,0,0,0,0,0,0,0,0,0,0,0,0,0,0,0,0,0,0,0,0,0,0,0,0,0,0,0,0,0,0,0,0,0,0,0,0,0,0,0,0,0,0,239]
[null,"Male 55-59",0,0,0,0,0,0,0,0,0,0,0,0,0,0,0,0,0,0,0,0,0,0,0,0,0,0,0,0,0,0,0,0,0,0,0,0,0,0,0,0,0,0,0,0,0,0,0,0,0,0,0,0,0,240]
[null,"Male 60-64",0,0,0,0,0,0,0,0,0,0,0,0,0,0,0,0,0,0,0,0,0,0,0,0,0,0,0,0,0,0,0,0,0,0,0,0,0,0,0,0,0,0,0,0,0,0,0,0,0,0,0,0,0,241]
[null,"Male 65-69",0,0,0,0,0,0,0,0,0,0,0,0,0,0,0,0,0,0,0,0,0,0,0,0,0,0,0,0,0,0,0,0,0,0,0,0,0,0,0,0,0,0,0,0,0,0,0,0,0,0,0,0,0,242]
[null,"Male 70-74",0,0,0,0,0,0,0,0,0,0,0,0,0,0,0,0,0,0,0,0,0,0,0,0,0,0,0,0,0,0,0,0,0,0,0,0,0,0,0,0,0,0,0,0,0,0,0,0,0,0,0,0,0,243]
[null,"Male 75-79",0,0,0,0,0,0,0,0,0,0,0,0,0,0,0,0,0,0,0,0,0,0,0,0,0,0,0,0,0,0,0,0,0,0,0,0,0,0,0,0,0,0,0,0,0,0,0,0,0,0,0,0,0,244]
[null,"Male 80-84",0,0,0,0,0,0,0,0,0,0,0,0,0,0,0,0,0,0,0,0,0,0,0,0,0,0,0,0,0,0,0,0,0,0,0,0,0,0,0,0,0,0,0,0,0,0,0,0,0,0,0,0,0,245]
[null,"Male 85-89",0,0,0,0,0,0,0,0,0,0,0,0,0,0,0,0,0,0,0,0,0,0,0,0,0,0,0,0,0,0,0,0,0,0,0,0,0,0,0,0,0,0,0,0,0,0,0,0,0,0,0,0,0,246]
[null,"Male 90+",0,0,0,0,0,0,0,0,0,0,0,0,0,0,0,0,0,0,0,0,0,0,0,0,0,0,0,0,0,0,0,0,0,0,0,0,0,0,0,0,0,0,0,0,0,0,0,0,0,0,0,0,0,247]

{"sheet":"Pop2016fractionQ1&2","index":16,"n_rows":249,"n_cols":56,"rows_kept":249,"cut":false,"hidden":true,"merged":[]}
["Q1 & Q2 subgroup's fraction of area's 2016 Q1 + Q2 population (16+ only)"]
[]
["SIMD","group","Aberdeen City Local Authority","Aberdeen City Region Deal","Aberdeenshire Local Authority","Angus Local Authority","Argyll & Bute Local Authority","Ayrshire & Arran Health Board","Borders Health Board","Clackmannanshire & Stirling IJB","Clackmannanshire Local Authority","Dumfries & Galloway Health Board","Dumfries & Galloway Local Authority","Dundee City Local Authority","East Ayrshire Local Authority","East Dunbartonshire Local Authority","East Lothian Local Authority","East Renfrewshire Local Authority","Edinburgh & SE Scotland City Region Deal","Edinburgh, City of Local Authority","Eilean Siar Local Authority","Falkirk Local Authority","Fife Health Board","Fife Local Authority","Forth Valley Health Board","Glasgow City Local Authority","Glasgow City Region Deal","Grampian Health Board","Greater Glasgow & Clyde Health Board","Highland Health Board","Highland Local Authority","Inverclyde Local Authority","Inverness & Highland City Region Deal","Lanarkshire Health Board","Lothian Health Board","Midlothian Local Authority","Moray Local Authority","North Ayrshire Local Authority","North Lanarkshire Local Authority","Orkney Health Board","Orkney Islands Local Authority","Perth & Kinross Local Authority","Renfrewshire Local Authority","Scotland","Scottish Borders Local Authority","Shetland Health Board","Shetland Islands Local Authority","South Ayrshire Local Authority","South Lanarkshire Local Authority","Stirling Local Authority","Tay Cities Region Deal ","Tayside Health Board","West Dunbartonshire Local Authority","West Lothian Local Authority","Western Isles Health Board",1]
[null,null,"popS12000033","Aber_deal","popS12000034","popS12000041","popS12000035","popS08000015","popS08000016","ClacksStirIJB","popS12000005","popS08000017","popS12000006","popS12000042","popS12000008","popS12000045","popS12000010","popS12000011","EdinSE_deal","popS12000036","popS12000013","popS12000014","popS08000018","popS12000015","popS08000019","popS12000046","GClyde_deal","popS08000020","popS08000021","popS08000022","popS12000017","popS12000018","Inver_deal","popS08000023","popS08000024","popS12000019","popS12000020","popS12000021","popS12000044","popS08000025","popS12000023","popS12000024","popS12000038","popS00000001","popS12000026","popS08000026","popS12000027","popS12000028","popS12000029","popS12000030","Tay_deal","popS08000027","popS12000039","popS12000040","popS08000028",2]
["All quintiles","16+ Males and Females",null,null,null,null,null,null,null,null,null,null,null,null,null,null,null,null,null,null,null,null,null,null,null,null,null,null,null,null,null,null,null,null,null,null,null,null,null,null,null,null,null,null,null,null,null,null,null,null,null,null,null,null,null,3]
["Q1 and Q2","16+ Males and Females",{"$f":"'Population 2016'!R6/'Population 2016'!R$6","v":1},{"$f":"'Population 2016'!AX6/'Population 2016'!AX$6","v":1},{"$f":"'Population 2016'!S6/'Population 2016'!S$6","v":1},{"$f":"'Population 2016'!T6/'Population 2016'!T$6","v":1},{"$f":"'Population 2016'!U6/'Population 2016'!U$6","v":1},{"$f":"'Population 2016'!D6/'Population 2016'!D$6","v":1},{"$f":"'Population 2016'!E6/'Population 2016'!E$6","v":1},{"$f":"'Population 2016'!BC6/'Population 2016'!BC$6","v":1},{"$f":"'Population 2016'!V6/'Population 2016'!V$6","v":1},{"$f":"'Population 2016'!F6/'Population 2016'!F$6","v":1},{"$f":"'Population 2016'!W6/'Population 2016'!W$6","v":1},{"$f":"'Population 2016'!X6/'Population 2016'!X$6","v":1},{"$f":"'Population 2016'!Y6/'Population 2016'!Y$6","v":1},{"$f":"'Population 2016'!Z6/'Population 2016'!Z$6","v":1},{"$f":"'Population 2016'!AA6/'Population 2016'!AA$6","v":1},{"$f":"'Population 2016'!AB6/'Population 2016'!AB$6","v":1},{"$f":"'Population 2016'!AY6/'Population 2016'!AY$6","v":1},{"$f":"'Population 2016'!AC6/'Population 2016'!AC$6","v":1},{"$f":"'Population 2016'!AD6/'Population 2016'!AD$6","v":1},{"$f":"'Population 2016'!AE6/'Population 2016'!AE$6","v":1},{"$f":"'Population 2016'!G6/'Population 2016'!G$6","v":1},{"$f":"'Population 2016'!AF6/'Population 2016'!AF$6","v":1},{"$f":"'Population 2016'!H6/'Population 2016'!H$6","v":1},{"$f":"'Population 2016'!AG6/'Population 2016'!AG$6","v":1},{"$f":"'Population 2016'!AZ6/'Population 2016'!AZ$6","v":1},{"$f":"'Population 2016'!I6/'Population 2016'!I$6","v":1},{"$f":"'Population 2016'!J6/'Population 2016'!J$6","v":1},{"$f":"'Population 2016'!K6/'Population 2016'!K$6","v":1},{"$f":"'Population 2016'!AH6/'Population 2016'!AH$6","v":1},{"$f":"'Population 2016'!AI6/'Population 2016'!AI$6","v":1},{"$f":"'Population 2016'!BA6/'Population 2016'!BA$6","v":1},{"$f":"'Population 2016'!L6/'Population 2016'!L$6","v":1},{"$f":"'Population 2016'!M6/'Population 2016'!M$6","v":1},{"$f":"'Population 2016'!AJ6/'Population 2016'!AJ$6","v":1},{"$f":"'Population 2016'!AK6/'Population 2016'!AK$6","v":1},{"$f":"'Population 2016'!AL6/'Population 2016'!AL$6","v":1},{"$f":"'Population 2016'!AM6/'Population 2016'!AM$6","v":1},{"$f":"'Population 2016'!N6/'Population 2016'!N$6","v":1},{"$f":"'Population 2016'!AN6/'Population 2016'!AN$6","v":1},{"$f":"'Population 2016'!AO6/'Population 2016'!AO$6","v":1},{"$f":"'Population 2016'!AP6/'Population 2016'!AP$6","v":1},{"$f":"'Population 2016'!C6/'Population 2016'!C$6","v":1},{"$f":"'Population 2016'!AQ6/'Population 2016'!AQ$6","v":1},{"$f":"'Population 2016'!O6/'Population 2016'!O$6","v":1},{"$f":"'Population 2016'!AR6/'Population 2016'!AR$6","v":1},{"$f":"'Population 2016'!AS6/'Population 2016'!AS$6","v":1},{"$f":"'Population 2016'!AT6/'Population 2016'!AT$6","v":1},{"$f":"'Population 2016'!AU6/'Population 2016'!AU$6","v":1},{"$f":"'Population 2016'!BB6/'Population 2016'!BB$6","v":1},{"$f":"'Population 2016'!P6/'Population 2016'!P$6","v":1},{"$f":"'Population 2016'!AV6/'Population 2016'!AV$6","v":1},{"$f":"'Population 2016'!AW6/'Population 2016'!AW$6","v":1},{"$f":"'Population 2016'!Q6/'Population 2016'!Q$6","v":1},4]
["SIMD Q1 (most deprived)","16+ Males and Females",null,null,null,null,null,null,null,null,null,null,null,null,null,null,null,null,null,null,null,null,null,null,null,null,null,null,null,null,null,null,null,null,null,null,null,null,null,null,null,null,null,null,null,null,null,null,null,null,null,null,null,null,null,5]
["SIMD Q2",null,null,null,null,null,null,null,null,null,null,null,null,null,null,null,null,null,null,null,null,null,null,null,null,null,null,null,null,null,null,null,null,null,null,null,null,null,null,null,null,null,null,null,null,null,null,null,null,null,null,null,null,null,null,6]
["SIMD Q3",null,null,null,null,null,null,null,null,null,null,null,null,null,null,null,null,null,null,null,null,null,null,null,null,null,null,null,null,null,null,null,null,null,null,null,null,null,null,null,null,null,null,null,null,null,null,null,null,null,null,null,null,null,null,7]
["SIMD Q4",null,null,null,null,null,null,null,null,null,null,null,null,null,null,null,null,null,null,null,null,null,null,null,null,null,null,null,null,null,null,null,null,null,null,null,null,null,null,null,null,null,null,null,null,null,null,null,null,null,null,null,null,null,null,8]
["SIMD Q5 (least deprived)",null,null,null,null,null,null,null,null,null,null,null,null,null,null,null,null,null,null,null,null,null,null,null,null,null,null,null,null,null,null,null,null,null,null,null,null,null,null,null,null,null,null,null,null,null,null,null,null,null,null,null,null,null,null,9]
["SIMD Q1 (most deprived)","16+ Females",null,null,null,null,null,null,null,null,null,null,null,null,null,null,null,null,null,null,null,null,null,null,null,null,null,null,null,null,null,null,null,null,null,null,null,null,null,null,null,null,null,null,null,null,null,null,null,null,null,null,null,null,null,10]
["SIMD Q2",null,null,null,null,null,null,null,null,null,null,null,null,null,null,null,null,null,null,null,null,null,null,null,null,null,null,null,null,null,null,null,null,null,null,null,null,null,null,null,null,null,null,null,null,null,null,null,null,null,null,null,null,null,null,11]
["SIMD Q3",null,null,null,null,null,null,null,null,null,null,null,null,null,null,null,null,null,null,null,null,null,null,null,null,null,null,null,null,null,null,null,null,null,null,null,null,null,null,null,null,null,null,null,null,null,null,null,null,null,null,null,null,null,null,12]
["SIMD Q4",null,null,null,null,null,null,null,null,null,null,null,null,null,null,null,null,null,null,null,null,null,null,null,null,null,null,null,null,null,null,null,null,null,null,null,null,null,null,null,null,null,null,null,null,null,null,null,null,null,null,null,null,null,null,13]
["SIMD Q5 (least deprived)",null,null,null,null,null,null,null,null,null,null,null,null,null,null,null,null,null,null,null,null,null,null,null,null,null,null,null,null,null,null,null,null,null,null,null,null,null,null,null,null,null,null,null,null,null,null,null,null,null,null,null,null,null,null,14]
["SIMD Q1 (most deprived)","16+ Males",null,null,null,null,null,null,null,null,null,null,null,null,null,null,null,null,null,null,null,null,null,null,null,null,null,null,null,null,null,null,null,null,null,null,null,null,null,null,null,null,null,null,null,null,null,null,null,null,null,null,null,null,null,15]
["SIMD Q2",null,null,null,null,null,null,null,null,null,null,null,null,null,null,null,null,null,null,null,null,null,null,null,null,null,null,null,null,null,null,null,null,null,null,null,null,null,null,null,null,null,null,null,null,null,null,null,null,null,null,null,null,null,null,16]
["SIMD Q3",null,null,null,null,null,null,null,null,null,null,null,null,null,null,null,null,null,null,null,null,null,null,null,null,null,null,null,null,null,null,null,null,null,null,null,null,null,null,null,null,null,null,null,null,null,null,null,null,null,null,null,null,null,null,17]
["SIMD Q4",null,null,null,null,null,null,null,null,null,null,null,null,null,null,null,null,null,null,null,null,null,null,null,null,null,null,null,null,null,null,null,null,null,null,null,null,null,null,null,null,null,null,null,null,null,null,null,null,null,null,null,null,null,null,18]
["SIMD Q5 (least deprived)",null,null,null,null,null,null,null,null,null,null,null,null,null,null,null,null,null,null,null,null,null,null,null,null,null,null,null,null,null,null,null,null,null,null,null,null,null,null,null,null,null,null,null,null,null,null,null,null,null,null,null,null,null,null,19]
["All quintiles","Female 0-4",null,null,null,null,null,null,null,null,null,null,null,null,null,null,null,null,null,null,null,null,null,null,null,null,null,null,null,null,null,null,null,null,null,null,null,null,null,null,null,null,null,null,null,null,null,null,null,null,null,null,null,null,null,20]
[null,"Female 5-9",null,null,null,null,null,null,null,null,null,null,null,null,null,null,null,null,null,null,null,null,null,null,null,null,null,null,null,null,null,null,null,null,null,null,null,null,null,null,null,null,null,null,null,null,null,null,null,null,null,null,null,null,null,21]
[null,"Female 10-15",null,null,null,null,null,null,null,null,null,null,null,null,null,null,null,null,null,null,null,null,null,null,null,null,null,null,null,null,null,null,null,null,null,null,null,null,null,null,null,null,null,null,null,null,null,null,null,null,null,null,null,null,null,22]
[null,"Female 16-19",null,null,null,null,null,null,null,null,null,null,null,null,null,null,null,null,null,null,null,null,null,null,null,null,null,null,null,null,null,null,null,null,null,null,null,null,null,null,null,null,null,null,null,null,null,null,null,null,null,null,null,null,null,23]
[null,"Female 20-24",null,null,null,null,null,null,null,null,null,null,null,null,null,null,null,null,null,null,null,null,null,null,null,null,null,null,null,null,null,null,null,null,null,null,null,null,null,null,null,null,null,null,null,null,null,null,null,null,null,null,null,null,null,24]
[null,"Female 25-29",null,null,null,null,null,null,null,null,null,null,null,null,null,null,null,null,null,null,null,null,null,null,null,null,null,null,null,null,null,null,null,null,null,null,null,null,null,null,null,null,null,null,null,null,null,null,null,null,null,null,null,null,null,25]
[null,"Female 30-34",null,null,null,null,null,null,null,null,null,null,null,null,null,null,null,null,null,null,null,null,null,null,null,null,null,null,null,null,null,null,null,null,null,null,null,null,null,null,null,null,null,null,null,null,null,null,null,null,null,null,null,null,null,26]
[null,"Female 35-39",null,null,null,null,null,null,null,null,null,null,null,null,null,null,null,null,null,null,null,null,null,null,null,null,null,null,null,null,null,null,null,null,null,null,null,null,null,null,null,null,null,null,null,null,null,null,null,null,null,null,null,null,null,27]
[null,"Female 40-44",null,null,null,null,null,null,null,null,null,null,null,null,null,null,null,null,null,null,null,null,null,null,null,null,null,null,null,null,null,null,null,null,null,null,null,null,null,null,null,null,null,null,null,null,null,null,null,null,null,null,null,null,null,28]
[null,"Female 45-49",null,null,null,null,null,null,null,null,null,null,null,null,null,null,null,null,null,null,null,null,null,null,null,null,null,null,null,null,null,null,null,null,null,null,null,null,null,null,null,null,null,null,null,null,null,null,null,null,null,null,null,null,null,29]
[null,"Female 50-54",null,null,null,null,null,null,null,null,null,null,null,null,null,null,null,null,null,null,null,null,null,null,null,null,null,null,null,null,null,null,null,null,null,null,null,null,null,null,null,null,null,null,null,null,null,null,null,null,null,null,null,null,null,30]
[null,"Female 55-59",null,null,null,null,null,null,null,null,null,null,null,null,null,null,null,null,null,null,null,null,null,null,null,null,null,null,null,null,null,null,null,null,null,null,null,null,null,null,null,null,null,null,null,null,null,null,null,null,null,null,null,null,null,31]
[null,"Female 60-64",null,null,null,null,null,null,null,null,null,null,null,null,null,null,null,null,null,null,null,null,null,null,null,null,null,null,null,null,null,null,null,null,null,null,null,null,null,null,null,null,null,null,null,null,null,null,null,null,null,null,null,null,null,32]
[null,"Female 65-69",null,null,null,null,null,null,null,null,null,null,null,null,null,null,null,null,null,null,null,null,null,null,null,null,null,null,null,null,null,null,null,null,null,null,null,null,null,null,null,null,null,null,null,null,null,null,null,null,null,null,null,null,null,33]
[null,"Female 70-74",null,null,null,null,null,null,null,null,null,null,null,null,null,null,null,null,null,null,null,null,null,null,null,null,null,null,null,null,null,null,null,null,null,null,null,null,null,null,null,null,null,null,null,null,null,null,null,null,null,null,null,null,null,34]
[null,"Female 75-79",null,null,null,null,null,null,null,null,null,null,null,null,null,null,null,null,null,null,null,null,null,null,null,null,null,null,null,null,null,null,null,null,null,null,null,null,null,null,null,null,null,null,null,null,null,null,null,null,null,null,null,null,null,35]
[null,"Female 80-84",null,null,null,null,null,null,null,null,null,null,null,null,null,null,null,null,null,null,null,null,null,null,null,null,null,null,null,null,null,null,null,null,null,null,null,null,null,null,null,null,null,null,null,null,null,null,null,null,null,null,null,null,null,36]
[null,"Female 85-89",null,null,null,null,null,null,null,null,null,null,null,null,null,null,null,null,null,null,null,null,null,null,null,null,null,null,null,null,null,null,null,null,null,null,null,null,null,null,null,null,null,null,null,null,null,null,null,null,null,null,null,null,null,37]
[null,"Female 90+",null,null,null,null,null,null,null,null,null,null,null,null,null,null,null,null,null,null,null,null,null,null,null,null,null,null,null,null,null,null,null,null,null,null,null,null,null,null,null,null,null,null,null,null,null,null,null,null,null,null,null,null,null,38]
[null,"Male 0-4",null,null,null,null,null,null,null,null,null,null,null,null,null,null,null,null,null,null,null,null,null,null,null,null,null,null,null,null,null,null,null,null,null,null,null,null,null,null,null,null,null,null,null,null,null,null,null,null,null,null,null,null,null,39]
[null,"Male 5-9",null,null,null,null,null,null,null,null,null,null,null,null,null,null,null,null,null,null,null,null,null,null,null,null,null,null,null,null,null,null,null,null,null,null,null,null,null,null,null,null,null,null,null,null,null,null,null,null,null,null,null,null,null,40]
[null,"Male 10-15",null,null,null,null,null,null,null,null,null,null,null,null,null,null,null,null,null,null,null,null,null,null,null,null,null,null,null,null,null,null,null,null,null,null,null,null,null,null,null,null,null,null,null,null,null,null,null,null,null,null,null,null,null,41]
[null,"Male 16-19",null,null,null,null,null,null,null,null,null,null,null,null,null,null,null,null,null,null,null,null,null,null,null,null,null,null,null,null,null,null,null,null,null,null,null,null,null,null,null,null,null,null,null,null,null,null,null,null,null,null,null,null,null,42]
[null,"Male 20-24",null,null,null,null,null,null,null,null,null,null,null,null,null,null,null,null,null,null,null,null,null,null,null,null,null,null,null,null,null,null,null,null,null,null,null,null,null,null,null,null,null,null,null,null,null,null,null,null,null,null,null,null,null,43]
[null,"Male 25-29",null,null,null,null,null,null,null,null,null,null,null,null,null,null,null,null,null,null,null,null,null,null,null,null,null,null,null,null,null,null,null,null,null,null,null,null,null,null,null,null,null,null,null,null,null,null,null,null,null,null,null,null,null,44]
[null,"Male 30-34",null,null,null,null,null,null,null,null,null,null,null,null,null,null,null,null,null,null,null,null,null,null,null,null,null,null,null,null,null,null,null,null,null,null,null,null,null,null,null,null,null,null,null,null,null,null,null,null,null,null,null,null,null,45]
[null,"Male 35-39",null,null,null,null,null,null,null,null,null,null,null,null,null,null,null,null,null,null,null,null,null,null,null,null,null,null,null,null,null,null,null,null,null,null,null,null,null,null,null,null,null,null,null,null,null,null,null,null,null,null,null,null,null,46]
[null,"Male 40-44",null,null,null,null,null,null,null,null,null,null,null,null,null,null,null,null,null,null,null,null,null,null,null,null,null,null,null,null,null,null,null,null,null,null,null,null,null,null,null,null,null,null,null,null,null,null,null,null,null,null,null,null,null,47]
[null,"Male 45-49",null,null,null,null,null,null,null,null,null,null,null,null,null,null,null,null,null,null,null,null,null,null,null,null,null,null,null,null,null,null,null,null,null,null,null,null,null,null,null,null,null,null,null,null,null,null,null,null,null,null,null,null,null,48]
[null,"Male 50-54",null,null,null,null,null,null,null,null,null,null,null,null,null,null,null,null,null,null,null,null,null,null,null,null,null,null,null,null,null,null,null,null,null,null,null,null,null,null,null,null,null,null,null,null,null,null,null,null,null,null,null,null,null,49]
[null,"Male 55-59",null,null,null,null,null,null,null,null,null,null,null,null,null,null,null,null,null,null,null,null,null,null,null,null,null,null,null,null,null,null,null,null,null,null,null,null,null,null,null,null,null,null,null,null,null,null,null,null,null,null,null,null,null,50]
[null,"Male 60-64",null,null,null,null,null,null,null,null,null,null,null,null,null,null,null,null,null,null,null,null,null,null,null,null,null,null,null,null,null,null,null,null,null,null,null,null,null,null,null,null,null,null,null,null,null,null,null,null,null,null,null,null,null,51]
[null,"Male 65-69",null,null,null,null,null,null,null,null,null,null,null,null,null,null,null,null,null,null,null,null,null,null,null,null,null,null,null,null,null,null,null,null,null,null,null,null,null,null,null,null,null,null,null,null,null,null,null,null,null,null,null,null,null,52]
[null,"Male 70-74",null,null,null,null,null,null,null,null,null,null,null,null,null,null,null,null,null,null,null,null,null,null,null,null,null,null,null,null,null,null,null,null,null,null,null,null,null,null,null,null,null,null,null,null,null,null,null,null,null,null,null,null,null,53]
[null,"Male 75-79",null,null,null,null,null,null,null,null,null,null,null,null,null,null,null,null,null,null,null,null,null,null,null,null,null,null,null,null,null,null,null,null,null,null,null,null,null,null,null,null,null,null,null,null,null,null,null,null,null,null,null,null,null,54]
[null,"Male 80-84",null,null,null,null,null,null,null,null,null,null,null,null,null,null,null,null,null,null,null,null,null,null,null,null,null,null,null,null,null,null,null,null,null,null,null,null,null,null,null,null,null,null,null,null,null,null,null,null,null,null,null,null,null,55]
[null,"Male 85-89",null,null,null,null,null,null,null,null,null,null,null,null,null,null,null,null,null,null,null,null,null,null,null,null,null,null,null,null,null,null,null,null,null,null,null,null,null,null,null,null,null,null,null,null,null,null,null,null,null,null,null,null,null,56]
[null,"Male 90+",null,null,null,null,null,null,null,null,null,null,null,null,null,null,null,null,null,null,null,null,null,null,null,null,null,null,null,null,null,null,null,null,null,null,null,null,null,null,null,null,null,null,null,null,null,null,null,null,null,null,null,null,null,57]
["SIMD Q1 (most deprived)","Female 0-4",{"$f":"'Population 2016'!C60/'Population 2016'!C$6","v":0},{"$f":"'Population 2016'!D60/'Population 2016'!D$6","v":0},{"$f":"'Population 2016'!E60/'Population 2016'!E$6","v":0},{"$f":"'Population 2016'!F60/'Population 2016'!F$6","v":0},{"$f":"'Population 2016'!G60/'Population 2016'!G$6","v":0},{"$f":"'Population 2016'!H60/'Population 2016'!H$6","v":0},{"$f":"'Population 2016'!I60/'Population 2016'!I$6","v":0},{"$f":"'Population 2016'!J60/'Population 2016'!J$6","v":0},{"$f":"'Population 2016'!K60/'Population 2016'!K$6","v":0},{"$f":"'Population 2016'!L60/'Population 2016'!L$6","v":0},{"$f":"'Population 2016'!M60/'Population 2016'!M$6","v":0},{"$f":"'Population 2016'!N60/'Population 2016'!N$6","v":0},{"$f":"'Population 2016'!O60/'Population 2016'!O$6","v":0},{"$f":"'Population 2016'!P60/'Population 2016'!P$6","v":0},{"$f":"'Population 2016'!Q60/'Population 2016'!Q$6","v":0},{"$f":"'Population 2016'!R60/'Population 2016'!R$6","v":0},{"$f":"'Population 2016'!S60/'Population 2016'!S$6","v":0},{"$f":"'Population 2016'!T60/'Population 2016'!T$6","v":0},{"$f":"'Population 2016'!U60/'Population 2016'!U$6","v":0},{"$f":"'Population 2016'!V60/'Population 2016'!V$6","v":0},{"$f":"'Population 2016'!W60/'Population 2016'!W$6","v":0},{"$f":"'Population 2016'!X60/'Population 2016'!X$6","v":0},{"$f":"'Population 2016'!Y60/'Population 2016'!Y$6","v":0},{"$f":"'Population 2016'!Z60/'Population 2016'!Z$6","v":0},{"$f":"'Population 2016'!AA60/'Population 2016'!AA$6","v":0},{"$f":"'Population 2016'!AB60/'Population 2016'!AB$6","v":0},{"$f":"'Population 2016'!AC60/'Population 2016'!AC$6","v":0},{"$f":"'Population 2016'!AD60/'Population 2016'!AD$6","v":0},{"$f":"'Population 2016'!AE60/'Population 2016'!AE$6","v":0},{"$f":"'Population 2016'!AF60/'Population 2016'!AF$6","v":0},{"$f":"'Population 2016'!AG60/'Population 2016'!AG$6","v":0},{"$f":"'Population 2016'!AH60/'Population 2016'!AH$6","v":0},{"$f":"'Population 2016'!AI60/'Population 2016'!AI$6","v":0},{"$f":"'Population 2016'!AJ60/'Population 2016'!AJ$6","v":0},{"$f":"'Population 2016'!AK60/'Population 2016'!AK$6","v":0},{"$f":"'Population 2016'!AL60/'Population 2016'!AL$6","v":0},{"$f":"'Population 2016'!AM60/'Population 2016'!AM$6","v":0},{"$f":"'Population 2016'!AN60/'Population 2016'!AN$6","v":0},{"$f":"'Population 2016'!AO60/'Population 2016'!AO$6","v":0},{"$f":"'Population 2016'!AP60/'Population 2016'!AP$6","v":0},{"$f":"'Population 2016'!AQ60/'Population 2016'!AQ$6","v":0},{"$f":"'Population 2016'!AR60/'Population 2016'!AR$6","v":0},{"$f":"'Population 2016'!AS60/'Population 2016'!AS$6","v":0},{"$f":"'Population 2016'!AT60/'Population 2016'!AT$6","v":0},{"$f":"'Population 2016'!AU60/'Population 2016'!AU$6","v":0},{"$f":"'Population 2016'!AV60/'Population 2016'!AV$6","v":0},{"$f":"'Population 2016'!AW60/'Population 2016'!AW$6","v":0},{"$f":"'Population 2016'!AX60/'Population 2016'!AX$6","v":0},{"$f":"'Population 2016'!AY60/'Population 2016'!AY$6","v":0},{"$f":"'Population 2016'!AZ60/'Population 2016'!AZ$6","v":0},{"$f":"'Population 2016'!BA60/'Population 2016'!BA$6","v":0},{"$f":"'Population 2016'!BB60/'Population 2016'!BB$6","v":0},{"$f":"'Population 2016'!BC60/'Population 2016'!BC$6","v":0},58]
[null,"Female 5-9",{"$f":"'Population 2016'!C61/'Population 2016'!C$6","v":0},{"$f":"'Population 2016'!D61/'Population 2016'!D$6","v":0},{"$f":"'Population 2016'!E61/'Population 2016'!E$6","v":0},{"$f":"'Population 2016'!F61/'Population 2016'!F$6","v":0},{"$f":"'Population 2016'!G61/'Population 2016'!G$6","v":0},{"$f":"'Population 2016'!H61/'Population 2016'!H$6","v":0},{"$f":"'Population 2016'!I61/'Population 2016'!I$6","v":0},{"$f":"'Population 2016'!J61/'Population 2016'!J$6","v":0},{"$f":"'Population 2016'!K61/'Population 2016'!K$6","v":0},{"$f":"'Population 2016'!L61/'Population 2016'!L$6","v":0},{"$f":"'Population 2016'!M61/'Population 2016'!M$6","v":0},{"$f":"'Population 2016'!N61/'Population 2016'!N$6","v":0},{"$f":"'Population 2016'!O61/'Population 2016'!O$6","v":0},{"$f":"'Population 2016'!P61/'Population 2016'!P$6","v":0},{"$f":"'Population 2016'!Q61/'Population 2016'!Q$6","v":0},{"$f":"'Population 2016'!R61/'Population 2016'!R$6","v":0},{"$f":"'Population 2016'!S61/'Population 2016'!S$6","v":0},{"$f":"'Population 2016'!T61/'Population 2016'!T$6","v":0},{"$f":"'Population 2016'!U61/'Population 2016'!U$6","v":0},{"$f":"'Population 2016'!V61/'Population 2016'!V$6","v":0},{"$f":"'Population 2016'!W61/'Population 2016'!W$6","v":0},{"$f":"'Population 2016'!X61/'Population 2016'!X$6","v":0},{"$f":"'Population 2016'!Y61/'Population 2016'!Y$6","v":0},{"$f":"'Population 2016'!Z61/'Population 2016'!Z$6","v":0},{"$f":"'Population 2016'!AA61/'Population 2016'!AA$6","v":0},{"$f":"'Population 2016'!AB61/'Population 2016'!AB$6","v":0},{"$f":"'Population 2016'!AC61/'Population 2016'!AC$6","v":0},{"$f":"'Population 2016'!AD61/'Population 2016'!AD$6","v":0},{"$f":"'Population 2016'!AE61/'Population 2016'!AE$6","v":0},{"$f":"'Population 2016'!AF61/'Population 2016'!AF$6","v":0},{"$f":"'Population 2016'!AG61/'Population 2016'!AG$6","v":0},{"$f":"'Population 2016'!AH61/'Population 2016'!AH$6","v":0},{"$f":"'Population 2016'!AI61/'Population 2016'!AI$6","v":0},{"$f":"'Population 2016'!AJ61/'Population 2016'!AJ$6","v":0},{"$f":"'Population 2016'!AK61/'Population 2016'!AK$6","v":0},{"$f":"'Population 2016'!AL61/'Population 2016'!AL$6","v":0},{"$f":"'Population 2016'!AM61/'Population 2016'!AM$6","v":0},{"$f":"'Population 2016'!AN61/'Population 2016'!AN$6","v":0},{"$f":"'Population 2016'!AO61/'Population 2016'!AO$6","v":0},{"$f":"'Population 2016'!AP61/'Population 2016'!AP$6","v":0},{"$f":"'Population 2016'!AQ61/'Population 2016'!AQ$6","v":0},{"$f":"'Population 2016'!AR61/'Population 2016'!AR$6","v":0},{"$f":"'Population 2016'!AS61/'Population 2016'!AS$6","v":0},{"$f":"'Population 2016'!AT61/'Population 2016'!AT$6","v":0},{"$f":"'Population 2016'!AU61/'Population 2016'!AU$6","v":0},{"$f":"'Population 2016'!AV61/'Population 2016'!AV$6","v":0},{"$f":"'Population 2016'!AW61/'Population 2016'!AW$6","v":0},{"$f":"'Population 2016'!AX61/'Population 2016'!AX$6","v":0},{"$f":"'Population 2016'!AY61/'Population 2016'!AY$6","v":0},{"$f":"'Population 2016'!AZ61/'Population 2016'!AZ$6","v":0},{"$f":"'Population 2016'!BA61/'Population 2016'!BA$6","v":0},{"$f":"'Population 2016'!BB61/'Population 2016'!BB$6","v":0},{"$f":"'Population 2016'!BC61/'Population 2016'!BC$6","v":0},59]
[null,"Female 10-15",{"$f":"'Population 2016'!C62/'Population 2016'!C$6","v":0},{"$f":"'Population 2016'!D62/'Population 2016'!D$6","v":0},{"$f":"'Population 2016'!E62/'Population 2016'!E$6","v":0},{"$f":"'Population 2016'!F62/'Population 2016'!F$6","v":0},{"$f":"'Population 2016'!G62/'Population 2016'!G$6","v":0},{"$f":"'Population 2016'!H62/'Population 2016'!H$6","v":0},{"$f":"'Population 2016'!I62/'Population 2016'!I$6","v":0},{"$f":"'Population 2016'!J62/'Population 2016'!J$6","v":0},{"$f":"'Population 2016'!K62/'Population 2016'!K$6","v":0},{"$f":"'Population 2016'!L62/'Population 2016'!L$6","v":0},{"$f":"'Population 2016'!M62/'Population 2016'!M$6","v":0},{"$f":"'Population 2016'!N62/'Population 2016'!N$6","v":0},{"$f":"'Population 2016'!O62/'Population 2016'!O$6","v":0},{"$f":"'Population 2016'!P62/'Population 2016'!P$6","v":0},{"$f":"'Population 2016'!Q62/'Population 2016'!Q$6","v":0},{"$f":"'Population 2016'!R62/'Population 2016'!R$6","v":0},{"$f":"'Population 2016'!S62/'Population 2016'!S$6","v":0},{"$f":"'Population 2016'!T62/'Population 2016'!T$6","v":0},{"$f":"'Population 2016'!U62/'Population 2016'!U$6","v":0},{"$f":"'Population 2016'!V62/'Population 2016'!V$6","v":0},{"$f":"'Population 2016'!W62/'Population 2016'!W$6","v":0},{"$f":"'Population 2016'!X62/'Population 2016'!X$6","v":0},{"$f":"'Population 2016'!Y62/'Population 2016'!Y$6","v":0},{"$f":"'Population 2016'!Z62/'Population 2016'!Z$6","v":0},{"$f":"'Population 2016'!AA62/'Population 2016'!AA$6","v":0},{"$f":"'Population 2016'!AB62/'Population 2016'!AB$6","v":0},{"$f":"'Population 2016'!AC62/'Population 2016'!AC$6","v":0},{"$f":"'Population 2016'!AD62/'Population 2016'!AD$6","v":0},{"$f":"'Population 2016'!AE62/'Population 2016'!AE$6","v":0},{"$f":"'Population 2016'!AF62/'Population 2016'!AF$6","v":0},{"$f":"'Population 2016'!AG62/'Population 2016'!AG$6","v":0},{"$f":"'Population 2016'!AH62/'Population 2016'!AH$6","v":0},{"$f":"'Population 2016'!AI62/'Population 2016'!AI$6","v":0},{"$f":"'Population 2016'!AJ62/'Population 2016'!AJ$6","v":0},{"$f":"'Population 2016'!AK62/'Population 2016'!AK$6","v":0},{"$f":"'Population 2016'!AL62/'Population 2016'!AL$6","v":0},{"$f":"'Population 2016'!AM62/'Population 2016'!AM$6","v":0},{"$f":"'Population 2016'!AN62/'Population 2016'!AN$6","v":0},{"$f":"'Population 2016'!AO62/'Population 2016'!AO$6","v":0},{"$f":"'Population 2016'!AP62/'Population 2016'!AP$6","v":0},{"$f":"'Population 2016'!AQ62/'Population 2016'!AQ$6","v":0},{"$f":"'Population 2016'!AR62/'Population 2016'!AR$6","v":0},{"$f":"'Population 2016'!AS62/'Population 2016'!AS$6","v":0},{"$f":"'Population 2016'!AT62/'Population 2016'!AT$6","v":0},{"$f":"'Population 2016'!AU62/'Population 2016'!AU$6","v":0},{"$f":"'Population 2016'!AV62/'Population 2016'!AV$6","v":0},{"$f":"'Population 2016'!AW62/'Population 2016'!AW$6","v":0},{"$f":"'Population 2016'!AX62/'Population 2016'!AX$6","v":0},{"$f":"'Population 2016'!AY62/'Population 2016'!AY$6","v":0},{"$f":"'Population 2016'!AZ62/'Population 2016'!AZ$6","v":0},{"$f":"'Population 2016'!BA62/'Population 2016'!BA$6","v":0},{"$f":"'Population 2016'!BB62/'Population 2016'!BB$6","v":0},{"$f":"'Population 2016'!BC62/'Population 2016'!BC$6","v":0},60]
[null,"Female 16-19",{"$f":"'Population 2016'!C63/'Population 2016'!C$6","v":6.5803629061177652E-3},{"$f":"'Population 2016'!D63/'Population 2016'!D$6","v":6.264222007166584E-3},{"$f":"'Population 2016'!E63/'Population 2016'!E$6","v":5.4121967720112112E-3},{"$f":"'Population 2016'!F63/'Population 2016'!F$6","v":9.6078940534925997E-3},{"$f":"'Population 2016'!G63/'Population 2016'!G$6","v":8.1719467144296433E-3},{"$f":"'Population 2016'!H63/'Population 2016'!H$6","v":1.6158171205065675E-2},{"$f":"'Population 2016'!I63/'Population 2016'!I$6","v":8.206273671943284E-3},{"$f":"'Population 2016'!J63/'Population 2016'!J$6","v":1.3940716749982398E-2},{"$f":"'Population 2016'!K63/'Population 2016'!K$6","v":1.302776721186763E-2},{"$f":"'Population 2016'!L63/'Population 2016'!L$6","v":7.0394207562349152E-3},{"$f":"'Population 2016'!M63/'Population 2016'!M$6","v":7.0394207562349152E-3},{"$f":"'Population 2016'!N63/'Population 2016'!N$6","v":1.8512255730859149E-2},{"$f":"'Population 2016'!O63/'Population 2016'!O$6","v":1.4947426293725518E-2},{"$f":"'Population 2016'!P63/'Population 2016'!P$6","v":5.9734630226780149E-3},{"$f":"'Population 2016'!Q63/'Population 2016'!Q$6","v":3.1942733990147783E-3},{"$f":"'Population 2016'!R63/'Population 2016'!R$6","v":1.425644527915315E-2},{"$f":"'Population 2016'!S63/'Population 2016'!S$6","v":1.186092025379055E-2},{"$f":"'Population 2016'!T63/'Population 2016'!T$6","v":1.2676685518741097E-2},{"$f":"'Population 2016'!U63/'Population 2016'!U$6","v":0},{"$f":"'Population 2016'!V63/'Population 2016'!V$6","v":8.3781108597285065E-3},{"$f":"'Population 2016'!W63/'Population 2016'!W$6","v":1.5162694300518136E-2},{"$f":"'Population 2016'!X63/'Population 2016'!X$6","v":1.5162694300518136E-2},{"$f":"'Population 2016'!Y63/'Population 2016'!Y$6","v":1.0767757221354035E-2},{"$f":"'Population 2016'!Z63/'Population 2016'!Z$6","v":1.8286439962205796E-2},{"$f":"'Population 2016'!AA63/'Population 2016'!AA$6","v":1.6038295931057326E-2},{"$f":"'Population 2016'!AB63/'Population 2016'!AB$6","v":5.5513188587834198E-3},{"$f":"'Population 2016'!AC63/'Population 2016'!AC$6","v":1.7192344951815524E-2},{"$f":"'Population 2016'!AD63/'Population 2016'!AD$6","v":8.1221428254405047E-3},{"$f":"'Population 2016'!AE63/'Population 2016'!AE$6","v":8.1042492006354692E-3},{"$f":"'Population 2016'!AF63/'Population 2016'!AF$6","v":1.9028653612125235E-2},{"$f":"'Population 2016'!AG63/'Population 2016'!AG$6","v":8.1042492006354692E-3},{"$f":"'Population 2016'!AH63/'Population 2016'!AH$6","v":1.3964107279586321E-2},{"$f":"'Population 2016'!AI63/'Population 2016'!AI$6","v":1.0509046317648586E-2},{"$f":"'Population 2016'!AJ63/'Population 2016'!AJ$6","v":6.2895011351782534E-3},{"$f":"'Population 2016'!AK63/'Population 2016'!AK$6","v":1.259644150527476E-3},{"$f":"'Population 2016'!AL63/'Population 2016'!AL$6","v":2.0000592171492863E-2},{"$f":"'Population 2016'!AM63/'Population 2016'!AM$6","v":1.5489263055148854E-2},{"$f":"'Population 2016'!AN63/'Population 2016'!AN$6","v":0},{"$f":"'Population 2016'!AO63/'Population 2016'!AO$6","v":0},{"$f":"'Population 2016'!AP63/'Population 2016'!AP$6","v":8.7824542880453032E-3},{"$f":"'Population 2016'!AQ63/'Population 2016'!AQ$6","v":1.5397070729373666E-2},{"$f":"'Population 2016'!AR63/'Population 2016'!AR$6","v":1.36452065432784E-2},{"$f":"'Population 2016'!AS63/'Population 2016'!AS$6","v":8.206273671943284E-3},{"$f":"'Population 2016'!AT63/'Population 2016'!AT$6","v":0},{"$f":"'Population 2016'!AU63/'Population 2016'!AU$6","v":0},{"$f":"'Population 2016'!AV63/'Population 2016'!AV$6","v":1.1652567615870368E-2},{"$f":"'Population 2016'!AW63/'Population 2016'!AW$6","v":1.1916559513181926E-2},{"$f":"'Population 2016'!AX63/'Population 2016'!AX$6","v":1.483060666450387E-2},{"$f":"'Population 2016'!AY63/'Population 2016'!AY$6","v":1.5018681984891025E-2},{"$f":"'Population 2016'!AZ63/'Population 2016'!AZ$6","v":1.4863512934114621E-2},{"$f":"'Population 2016'!BA63/'Population 2016'!BA$6","v":1.6038092961169884E-2},{"$f":"'Population 2016'!BB63/'Population 2016'!BB$6","v":1.1650139347981075E-2},{"$f":"'Population 2016'!BC63/'Population 2016'!BC$6","v":0},61]
[null,"Female 20-24",{"$f":"'Population 2016'!C64/'Population 2016'!C$6","v":1.4021372731836764E-2},{"$f":"'Population 2016'!D64/'Population 2016'!D$6","v":1.2842309000078466E-2},{"$f":"'Population 2016'!E64/'Population 2016'!E$6","v":9.6646370928771628E-3},{"$f":"'Population 2016'!F64/'Population 2016'!F$6","v":1.3849216653683025E-2},{"$f":"'Population 2016'!G64/'Population 2016'!G$6","v":1.1642225456173739E-2},{"$f":"'Population 2016'!H64/'Population 2016'!H$6","v":2.4189557409207176E-2},{"$f":"'Population 2016'!I64/'Population 2016'!I$6","v":1.053704962610469E-2},{"$f":"'Population 2016'!J64/'Population 2016'!J$6","v":2.2460043652749419E-2},{"$f":"'Population 2016'!K64/'Population 2016'!K$6","v":2.1015595283377712E-2},{"$f":"'Population 2016'!L64/'Population 2016'!L$6","v":1.1218378475015642E-2},{"$f":"'Population 2016'!M64/'Population 2016'!M$6","v":1.1218378475015642E-2},{"$f":"'Population 2016'!N64/'Population 2016'!N$6","v":3.1525239306562369E-2},{"$f":"'Population 2016'!O64/'Population 2016'!O$6","v":2.3417634526836643E-2},{"$f":"'Population 2016'!P64/'Population 2016'!P$6","v":9.3566633187080403E-3},{"$f":"'Population 2016'!Q64/'Population 2016'!Q$6","v":4.6182266009852221E-3},{"$f":"'Population 2016'!R64/'Population 2016'!R$6","v":1.9549257298958511E-2},{"$f":"'Population 2016'!S64/'Population 2016'!S$6","v":1.6472185102957733E-2},{"$f":"'Population 2016'!T64/'Population 2016'!T$6","v":2.0026465952479287E-2},{"$f":"'Population 2016'!U64/'Population 2016'!U$6","v":0},{"$f":"'Population 2016'!V64/'Population 2016'!V$6","v":1.3716063348416289E-2},{"$f":"'Population 2016'!W64/'Population 2016'!W$6","v":1.8636269430051814E-2},{"$f":"'Population 2016'!X64/'Population 2016'!X$6","v":1.8636269430051814E-2},{"$f":"'Population 2016'!Y64/'Population 2016'!Y$6","v":1.7472400060493019E-2},{"$f":"'Population 2016'!Z64/'Population 2016'!Z$6","v":3.1134646408487291E-2},{"$f":"'Population 2016'!AA64/'Population 2016'!AA$6","v":2.5562284007324222E-2},{"$f":"'Population 2016'!AB64/'Population 2016'!AB$6","v":1.1405436928045935E-2},{"$f":"'Population 2016'!AC64/'Population 2016'!AC$6","v":2.91188290997654E-2},{"$f":"'Population 2016'!AD64/'Population 2016'!AD$6","v":1.199828384596038E-2},{"$f":"'Population 2016'!AE64/'Population 2016'!AE$6","v":1.2126209101695255E-2},{"$f":"'Population 2016'!AF64/'Population 2016'!AF$6","v":3.1336431021130658E-2},{"$f":"'Population 2016'!AG64/'Population 2016'!AG$6","v":1.2126209101695255E-2},{"$f":"'Population 2016'!AH64/'Population 2016'!AH$6","v":1.9170055136197246E-2},{"$f":"'Population 2016'!AI64/'Population 2016'!AI$6","v":1.5891218187220901E-2},{"$f":"'Population 2016'!AJ64/'Population 2016'!AJ$6","v":1.0001840829600541E-2},{"$f":"'Population 2016'!AK64/'Population 2016'!AK$6","v":2.7554715792788538E-3},{"$f":"'Population 2016'!AL64/'Population 2016'!AL$6","v":2.8809143127849827E-2},{"$f":"'Population 2016'!AM64/'Population 2016'!AM$6","v":2.0888238164958516E-2},{"$f":"'Population 2016'!AN64/'Population 2016'!AN$6","v":0},{"$f":"'Population 2016'!AO64/'Population 2016'!AO$6","v":0},{"$f":"'Population 2016'!AP64/'Population 2016'!AP$6","v":1.5645246436627153E-2},{"$f":"'Population 2016'!AQ64/'Population 2016'!AQ$6","v":2.8335909325090159E-2},{"$f":"'Population 2016'!AR64/'Population 2016'!AR$6","v":2.1265315673279203E-2},{"$f":"'Population 2016'!AS64/'Population 2016'!AS$6","v":1.053704962610469E-2},{"$f":"'Population 2016'!AT64/'Population 2016'!AT$6","v":0},{"$f":"'Population 2016'!AU64/'Population 2016'!AU$6","v":0},{"$f":"'Population 2016'!AV64/'Population 2016'!AV$6","v":1.7824377457404981E-2},{"$f":"'Population 2016'!AW64/'Population 2016'!AW$6","v":1.6863364974324113E-2},{"$f":"'Population 2016'!AX64/'Population 2016'!AX$6","v":2.3868007600685914E-2},{"$f":"'Population 2016'!AY64/'Population 2016'!AY$6","v":2.1661643240733178E-2},{"$f":"'Population 2016'!AZ64/'Population 2016'!AZ$6","v":2.4921394883521509E-2},{"$f":"'Population 2016'!BA64/'Population 2016'!BA$6","v":2.5043332735640429E-2},{"$f":"'Population 2016'!BB64/'Population 2016'!BB$6","v":1.5798172272992416E-2},{"$f":"'Population 2016'!BC64/'Population 2016'!BC$6","v":0},62]
[null,"Female 25-29",{"$f":"'Population 2016'!C65/'Population 2016'!C$6","v":1.8485978627268165E-2},{"$f":"'Population 2016'!D65/'Population 2016'!D$6","v":1.6595611121282661E-2},{"$f":"'Population 2016'!E65/'Population 2016'!E$6","v":1.1500918140523824E-2},{"$f":"'Population 2016'!F65/'Population 2016'!F$6","v":1.2940361810785077E-2},{"$f":"'Population 2016'!G65/'Population 2016'!G$6","v":9.6272248964513595E-3},{"$f":"'Population 2016'!H65/'Population 2016'!H$6","v":2.4225331958000678E-2},{"$f":"'Population 2016'!I65/'Population 2016'!I$6","v":9.9057978051859761E-3},{"$f":"'Population 2016'!J65/'Population 2016'!J$6","v":2.3797789199464903E-2},{"$f":"'Population 2016'!K65/'Population 2016'!K$6","v":2.0349942944085205E-2},{"$f":"'Population 2016'!L65/'Population 2016'!L$6","v":1.1263073209975865E-2},{"$f":"'Population 2016'!M65/'Population 2016'!M$6","v":1.1263073209975865E-2},{"$f":"'Population 2016'!N65/'Population 2016'!N$6","v":4.1068093928744727E-2},{"$f":"'Population 2016'!O65/'Population 2016'!O$6","v":2.4087691567589855E-2},{"$f":"'Population 2016'!P65/'Population 2016'!P$6","v":1.0149600888090077E-2},{"$f":"'Population 2016'!Q65/'Population 2016'!Q$6","v":5.2724753694581277E-3},{"$f":"'Population 2016'!R65/'Population 2016'!R$6","v":1.87809458767287E-2},{"$f":"'Population 2016'!S65/'Population 2016'!S$6","v":2.1162364923873356E-2},{"$f":"'Population 2016'!T65/'Population 2016'!T$6","v":3.0157699990728488E-2},{"$f":"'Population 2016'!U65/'Population 2016'!U$6","v":0},{"$f":"'Population 2016'!V65/'Population 2016'!V$6","v":1.5766402714932126E-2},{"$f":"'Population 2016'!W65/'Population 2016'!W$6","v":2.2864248704663213E-2},{"$f":"'Population 2016'!X65/'Population 2016'!X$6","v":2.2864248704663213E-2},{"$f":"'Population 2016'!Y65/'Population 2016'!Y$6","v":1.9216615415637444E-2},{"$f":"'Population 2016'!Z65/'Population 2016'!Z$6","v":4.3016730922889497E-2},{"$f":"'Population 2016'!AA65/'Population 2016'!AA$6","v":3.1320422205140704E-2},{"$f":"'Population 2016'!AB65/'Population 2016'!AB$6","v":1.4489502960703391E-2},{"$f":"'Population 2016'!AC65/'Population 2016'!AC$6","v":3.7359016157458382E-2},{"$f":"'Population 2016'!AD65/'Population 2016'!AD$6","v":1.1347328865415058E-2},{"$f":"'Population 2016'!AE65/'Population 2016'!AE$6","v":1.1965330705652864E-2},{"$f":"'Population 2016'!AF65/'Population 2016'!AF$6","v":3.1613010288748758E-2},{"$f":"'Population 2016'!AG65/'Population 2016'!AG$6","v":1.1965330705652864E-2},{"$f":"'Population 2016'!AH65/'Population 2016'!AH$6","v":2.0467171761316554E-2},{"$f":"'Population 2016'!AI65/'Population 2016'!AI$6","v":2.1273390056793212E-2},{"$f":"'Population 2016'!AJ65/'Population 2016'!AJ$6","v":1.0339326256366202E-2},{"$f":"'Population 2016'!AK65/'Population 2016'!AK$6","v":1.8107384663832468E-3},{"$f":"'Population 2016'!AL65/'Population 2016'!AL$6","v":2.8868360277136258E-2},{"$f":"'Population 2016'!AM65/'Population 2016'!AM$6","v":2.2687896534895072E-2},{"$f":"'Population 2016'!AN65/'Population 2016'!AN$6","v":0},{"$f":"'Population 2016'!AO65/'Population 2016'!AO$6","v":0},{"$f":"'Population 2016'!AP65/'Population 2016'!AP$6","v":1.9244612948121131E-2},{"$f":"'Population 2016'!AQ65/'Population 2016'!AQ$6","v":3.2163097078089349E-2},{"$f":"'Population 2016'!AR65/'Population 2016'!AR$6","v":2.5507187726435707E-2},{"$f":"'Population 2016'!AS65/'Population 2016'!AS$6","v":9.9057978051859761E-3},{"$f":"'Population 2016'!AT65/'Population 2016'!AT$6","v":0},{"$f":"'Population 2016'!AU65/'Population 2016'!AU$6","v":0},{"$f":"'Population 2016'!AV65/'Population 2016'!AV$6","v":1.6942690337185751E-2},{"$f":"'Population 2016'!AW65/'Population 2016'!AW$6","v":1.7485810694600284E-2},{"$f":"'Population 2016'!AX65/'Population 2016'!AX$6","v":2.7158548454372711E-2},{"$f":"'Population 2016'!AY65/'Population 2016'!AY$6","v":2.6877120265546464E-2},{"$f":"'Population 2016'!AZ65/'Population 2016'!AZ$6","v":3.1200871802200943E-2},{"$f":"'Population 2016'!BA65/'Population 2016'!BA$6","v":2.6019564481102944E-2},{"$f":"'Population 2016'!BB65/'Population 2016'!BB$6","v":1.6705554475338648E-2},{"$f":"'Population 2016'!BC65/'Population 2016'!BC$6","v":0},63]
[null,"Female 30-34",{"$f":"'Population 2016'!C66/'Population 2016'!C$6","v":1.6244710607473282E-2},{"$f":"'Population 2016'!D66/'Population 2016'!D$6","v":1.4921664530641069E-2},{"$f":"'Population 2016'!E66/'Population 2016'!E$6","v":1.1355948584130665E-2},{"$f":"'Population 2016'!F66/'Population 2016'!F$6","v":1.4368562278196139E-2},{"$f":"'Population 2016'!G66/'Population 2016'!G$6","v":1.1250419791783275E-2},{"$f":"'Population 2016'!H66/'Population 2016'!H$6","v":2.150050382489551E-2},{"$f":"'Population 2016'!I66/'Population 2016'!I$6","v":1.0051471302321065E-2},{"$f":"'Population 2016'!J66/'Population 2016'!J$6","v":2.0817198244502334E-2},{"$f":"'Population 2016'!K66/'Population 2016'!K$6","v":1.9446557626473945E-2},{"$f":"'Population 2016'!L66/'Population 2016'!L$6","v":9.6093680164476628E-3},{"$f":"'Population 2016'!M66/'Population 2016'!M$6","v":9.6093680164476628E-3},{"$f":"'Population 2016'!N66/'Population 2016'!N$6","v":3.2922113249716951E-2},{"$f":"'Population 2016'!O66/'Population 2016'!O$6","v":2.1407463404577005E-2},{"$f":"'Population 2016'!P66/'Population 2016'!P$6","v":8.7223132632024102E-3},{"$f":"'Population 2016'!Q66/'Population 2016'!Q$6","v":4.7721674876847293E-3},{"$f":"'Population 2016'!R66/'Population 2016'!R$6","v":1.8268738261908828E-2},{"$f":"'Population 2016'!S66/'Population 2016'!S$6","v":2.0223276760066921E-2},{"$f":"'Population 2016'!T66/'Population 2016'!T$6","v":2.9694124389976654E-2},{"$f":"'Population 2016'!U66/'Population 2016'!U$6","v":0},{"$f":"'Population 2016'!V66/'Population 2016'!V$6","v":1.5448246606334842E-2},{"$f":"'Population 2016'!W66/'Population 2016'!W$6","v":2.0169948186528498E-2},{"$f":"'Population 2016'!X66/'Population 2016'!X$6","v":2.0169948186528498E-2},{"$f":"'Population 2016'!Y66/'Population 2016'!Y$6","v":1.7754700811614659E-2},{"$f":"'Population 2016'!Z66/'Population 2016'!Z$6","v":3.6424012079562265E-2},{"$f":"'Population 2016'!AA66/'Population 2016'!AA$6","v":2.8489472993494441E-2},{"$f":"'Population 2016'!AB66/'Population 2016'!AB$6","v":1.316615826305401E-2},{"$f":"'Population 2016'!AC66/'Population 2016'!AC$6","v":3.2464702975882477E-2},{"$f":"'Population 2016'!AD66/'Population 2016'!AD$6","v":1.2664033257881733E-2},{"$f":"'Population 2016'!AE66/'Population 2016'!AE$6","v":1.3171918675970801E-2},{"$f":"'Population 2016'!AF66/'Population 2016'!AF$6","v":3.0921562119703507E-2},{"$f":"'Population 2016'!AG66/'Population 2016'!AG$6","v":1.3171918675970801E-2},{"$f":"'Population 2016'!AH66/'Population 2016'!AH$6","v":2.1344735839227465E-2},{"$f":"'Population 2016'!AI66/'Population 2016'!AI$6","v":2.112690792970532E-2},{"$f":"'Population 2016'!AJ66/'Population 2016'!AJ$6","v":9.081426029330552E-3},{"$f":"'Population 2016'!AK66/'Population 2016'!AK$6","v":2.5980160604629193E-3},{"$f":"'Population 2016'!AL66/'Population 2016'!AL$6","v":2.5063658435482916E-2},{"$f":"'Population 2016'!AM66/'Population 2016'!AM$6","v":2.2938018545632016E-2},{"$f":"'Population 2016'!AN66/'Population 2016'!AN$6","v":0},{"$f":"'Population 2016'!AO66/'Population 2016'!AO$6","v":0},{"$f":"'Population 2016'!AP66/'Population 2016'!AP$6","v":1.7276959255171091E-2},{"$f":"'Population 2016'!AQ66/'Population 2016'!AQ$6","v":2.7437992198424965E-2},{"$f":"'Population 2016'!AR66/'Population 2016'!AR$6","v":2.3309101062248413E-2},{"$f":"'Population 2016'!AS66/'Population 2016'!AS$6","v":1.0051471302321065E-2},{"$f":"'Population 2016'!AT66/'Population 2016'!AT$6","v":0},{"$f":"'Population 2016'!AU66/'Population 2016'!AU$6","v":0},{"$f":"'Population 2016'!AV66/'Population 2016'!AV$6","v":1.5894197545573693E-2},{"$f":"'Population 2016'!AW66/'Population 2016'!AW$6","v":1.920572650062654E-2},{"$f":"'Population 2016'!AX66/'Population 2016'!AX$6","v":2.2153218705102656E-2},{"$f":"'Population 2016'!AY66/'Population 2016'!AY$6","v":2.3063329563972362E-2},{"$f":"'Population 2016'!AZ66/'Population 2016'!AZ$6","v":2.6180863227097326E-2},{"$f":"'Population 2016'!BA66/'Population 2016'!BA$6","v":2.6677026677026677E-2},{"$f":"'Population 2016'!BB66/'Population 2016'!BB$6","v":1.7904595242724738E-2},{"$f":"'Population 2016'!BC66/'Population 2016'!BC$6","v":0},64]
[null,"Female 35-39",{"$f":"'Population 2016'!C67/'Population 2016'!C$6","v":1.1618733414616653E-2},{"$f":"'Population 2016'!D67/'Population 2016'!D$6","v":1.0723720346297701E-2},{"$f":"'Population 2016'!E67/'Population 2016'!E$6","v":8.3115878998743595E-3},{"$f":"'Population 2016'!F67/'Population 2016'!F$6","v":1.2897083008742318E-2},{"$f":"'Population 2016'!G67/'Population 2016'!G$6","v":9.90708608530169E-3},{"$f":"'Population 2016'!H67/'Population 2016'!H$6","v":1.9312293923692887E-2},{"$f":"'Population 2016'!I67/'Population 2016'!I$6","v":9.3231038166456254E-3},{"$f":"'Population 2016'!J67/'Population 2016'!J$6","v":1.8165176371189185E-2},{"$f":"'Population 2016'!K67/'Population 2016'!K$6","v":2.0064663370102702E-2},{"$f":"'Population 2016'!L67/'Population 2016'!L$6","v":8.0673996603200151E-3},{"$f":"'Population 2016'!M67/'Population 2016'!M$6","v":8.0673996603200151E-3},{"$f":"'Population 2016'!N67/'Population 2016'!N$6","v":2.577600023526298E-2},{"$f":"'Population 2016'!O67/'Population 2016'!O$6","v":1.8813139990378668E-2},{"$f":"'Population 2016'!P67/'Population 2016'!P$6","v":7.9822381984458422E-3},{"$f":"'Population 2016'!Q67/'Population 2016'!Q$6","v":5.580357142857143E-3},{"$f":"'Population 2016'!R67/'Population 2016'!R$6","v":1.835410619771214E-2},{"$f":"'Population 2016'!S67/'Population 2016'!S$6","v":1.735340228748198E-2},{"$f":"'Population 2016'!T67/'Population 2016'!T$6","v":2.3785642642212352E-2},{"$f":"'Population 2016'!U67/'Population 2016'!U$6","v":0},{"$f":"'Population 2016'!V67/'Population 2016'!V$6","v":1.2195984162895928E-2},{"$f":"'Population 2016'!W67/'Population 2016'!W$6","v":1.8329533678756477E-2},{"$f":"'Population 2016'!X67/'Population 2016'!X$6","v":1.8329533678756477E-2},{"$f":"'Population 2016'!Y67/'Population 2016'!Y$6","v":1.4760296415788677E-2},{"$f":"'Population 2016'!Z67/'Population 2016'!Z$6","v":3.0192829430869116E-2},{"$f":"'Population 2016'!AA67/'Population 2016'!AA$6","v":2.4356162157770738E-2},{"$f":"'Population 2016'!AB67/'Population 2016'!AB$6","v":9.4652790238650645E-3},{"$f":"'Population 2016'!AC67/'Population 2016'!AC$6","v":2.7333066182163381E-2},{"$f":"'Population 2016'!AD67/'Population 2016'!AD$6","v":1.0341307531845013E-2},{"$f":"'Population 2016'!AE67/'Population 2016'!AE$6","v":1.0497315341766043E-2},{"$f":"'Population 2016'!AF67/'Population 2016'!AF$6","v":2.7464321274477264E-2},{"$f":"'Population 2016'!AG67/'Population 2016'!AG$6","v":1.0497315341766043E-2},{"$f":"'Population 2016'!AH67/'Population 2016'!AH$6","v":1.9005730388540622E-2},{"$f":"'Population 2016'!AI67/'Population 2016'!AI$6","v":1.7552744028760718E-2},{"$f":"'Population 2016'!AJ67/'Population 2016'!AJ$6","v":8.5905381358532245E-3},{"$f":"'Population 2016'!AK67/'Population 2016'!AK$6","v":1.8894662257912141E-3},{"$f":"'Population 2016'!AL67/'Population 2016'!AL$6","v":2.342038254278439E-2},{"$f":"'Population 2016'!AM67/'Population 2016'!AM$6","v":2.0528306490971204E-2},{"$f":"'Population 2016'!AN67/'Population 2016'!AN$6","v":0},{"$f":"'Population 2016'!AO67/'Population 2016'!AO$6","v":0},{"$f":"'Population 2016'!AP67/'Population 2016'!AP$6","v":1.4205499832029563E-2},{"$f":"'Population 2016'!AQ67/'Population 2016'!AQ$6","v":2.4214322514167955E-2},{"$f":"'Population 2016'!AR67/'Population 2016'!AR$6","v":1.9803692604729872E-2},{"$f":"'Population 2016'!AS67/'Population 2016'!AS$6","v":9.3231038166456254E-3},{"$f":"'Population 2016'!AT67/'Population 2016'!AT$6","v":0},{"$f":"'Population 2016'!AU67/'Population 2016'!AU$6","v":0},{"$f":"'Population 2016'!AV67/'Population 2016'!AV$6","v":1.3392112474681282E-2},{"$f":"'Population 2016'!AW67/'Population 2016'!AW$6","v":1.6961645877525616E-2},{"$f":"'Population 2016'!AX67/'Population 2016'!AX$6","v":1.6313667330954258E-2},{"$f":"'Population 2016'!AY67/'Population 2016'!AY$6","v":1.9597810617558917E-2},{"$f":"'Population 2016'!AZ67/'Population 2016'!AZ$6","v":2.0964341860797486E-2},{"$f":"'Population 2016'!BA67/'Population 2016'!BA$6","v":2.209471440240671E-2},{"$f":"'Population 2016'!BB67/'Population 2016'!BB$6","v":1.5344481171819302E-2},{"$f":"'Population 2016'!BC67/'Population 2016'!BC$6","v":0},65]
[null,"Female 40-44",{"$f":"'Population 2016'!C68/'Population 2016'!C$6","v":1.1851825288675321E-2},{"$f":"'Population 2016'!D68/'Population 2016'!D$6","v":1.0841419715952188E-2},{"$f":"'Population 2016'!E68/'Population 2016'!E$6","v":8.118295158016816E-3},{"$f":"'Population 2016'!F68/'Population 2016'!F$6","v":1.1036094520903662E-2},{"$f":"'Population 2016'!G68/'Population 2016'!G$6","v":1.1642225456173739E-2},{"$f":"'Population 2016'!H68/'Population 2016'!H$6","v":2.1923835985618631E-2},{"$f":"'Population 2016'!I68/'Population 2016'!I$6","v":1.1313974944158492E-2},{"$f":"'Population 2016'!J68/'Population 2016'!J$6","v":1.8165176371189185E-2},{"$f":"'Population 2016'!K68/'Population 2016'!K$6","v":1.9351464435146442E-2},{"$f":"'Population 2016'!L68/'Population 2016'!L$6","v":8.1567891302404584E-3},{"$f":"'Population 2016'!M68/'Population 2016'!M$6","v":8.1567891302404584E-3},{"$f":"'Population 2016'!N68/'Population 2016'!N$6","v":2.1306003617168317E-2},{"$f":"'Population 2016'!O68/'Population 2016'!O$6","v":2.1166930107896366E-2},{"$f":"'Population 2016'!P68/'Population 2016'!P$6","v":9.3038008140825714E-3},{"$f":"'Population 2016'!Q68/'Population 2016'!Q$6","v":4.079433497536946E-3},{"$f":"'Population 2016'!R68/'Population 2016'!R$6","v":1.7158955096465766E-2},{"$f":"'Population 2016'!S68/'Population 2016'!S$6","v":1.6017108765875063E-2},{"$f":"'Population 2016'!T68/'Population 2016'!T$6","v":1.8416594320777458E-2},{"$f":"'Population 2016'!U68/'Population 2016'!U$6","v":0},{"$f":"'Population 2016'!V68/'Population 2016'!V$6","v":1.3998868778280544E-2},{"$f":"'Population 2016'!W68/'Population 2016'!W$6","v":1.8860103626943004E-2},{"$f":"'Population 2016'!X68/'Population 2016'!X$6","v":1.8860103626943004E-2},{"$f":"'Population 2016'!Y68/'Population 2016'!Y$6","v":1.5788677723446085E-2},{"$f":"'Population 2016'!Z68/'Population 2016'!Z$6","v":2.7033185376924267E-2},{"$f":"'Population 2016'!AA68/'Population 2016'!AA$6","v":2.3032552791265929E-2},{"$f":"'Population 2016'!AB68/'Population 2016'!AB$6","v":9.6110712363179623E-3},{"$f":"'Population 2016'!AC68/'Population 2016'!AC$6","v":2.5025969428050094E-2},{"$f":"'Population 2016'!AD68/'Population 2016'!AD$6","v":1.0859112630006065E-2},{"$f":"'Population 2016'!AE68/'Population 2016'!AE$6","v":1.0577754539787239E-2},{"$f":"'Population 2016'!AF68/'Population 2016'!AF$6","v":2.7630268835048124E-2},{"$f":"'Population 2016'!AG68/'Population 2016'!AG$6","v":1.0577754539787239E-2},{"$f":"'Population 2016'!AH68/'Population 2016'!AH$6","v":1.9449756834336182E-2},{"$f":"'Population 2016'!AI68/'Population 2016'!AI$6","v":1.4987214202907042E-2},{"$f":"'Population 2016'!AJ68/'Population 2016'!AJ$6","v":8.7132601092225568E-3},{"$f":"'Population 2016'!AK68/'Population 2016'!AK$6","v":2.2043772634230828E-3},{"$f":"'Population 2016'!AL68/'Population 2016'!AL$6","v":2.7195475809794516E-2},{"$f":"'Population 2016'!AM68/'Population 2016'!AM$6","v":2.113836017569546E-2},{"$f":"'Population 2016'!AN68/'Population 2016'!AN$6","v":0},{"$f":"'Population 2016'!AO68/'Population 2016'!AO$6","v":0},{"$f":"'Population 2016'!AP68/'Population 2016'!AP$6","v":1.1661947497240486E-2},{"$f":"'Population 2016'!AQ68/'Population 2016'!AQ$6","v":2.1873850003679987E-2},{"$f":"'Population 2016'!AR68/'Population 2016'!AR$6","v":1.9026534167276149E-2},{"$f":"'Population 2016'!AS68/'Population 2016'!AS$6","v":1.1313974944158492E-2},{"$f":"'Population 2016'!AT68/'Population 2016'!AT$6","v":0},{"$f":"'Population 2016'!AU68/'Population 2016'!AU$6","v":0},{"$f":"'Population 2016'!AV68/'Population 2016'!AV$6","v":1.4488264029548434E-2},{"$f":"'Population 2016'!AW68/'Population 2016'!AW$6","v":1.718277790972899E-2},{"$f":"'Population 2016'!AX68/'Population 2016'!AX$6","v":1.7008852018352876E-2},{"$f":"'Population 2016'!AY68/'Population 2016'!AY$6","v":1.8153127781336934E-2},{"$f":"'Population 2016'!AZ68/'Population 2016'!AZ$6","v":1.7391382020866087E-2},{"$f":"'Population 2016'!BA68/'Population 2016'!BA$6","v":2.2015022015022014E-2},{"$f":"'Population 2016'!BB68/'Population 2016'!BB$6","v":1.630047313500551E-2},{"$f":"'Population 2016'!BC68/'Population 2016'!BC$6","v":0},66]
[null,"Female 45-49",{"$f":"'Population 2016'!C69/'Population 2016'!C$6","v":1.0650505630065265E-2},{"$f":"'Population 2016'!D69/'Population 2016'!D$6","v":1.0331389114116078E-2},{"$f":"'Population 2016'!E69/'Population 2016'!E$6","v":9.4713443510196192E-3},{"$f":"'Population 2016'!F69/'Population 2016'!F$6","v":1.3156755820998874E-2},{"$f":"'Population 2016'!G69/'Population 2016'!G$6","v":1.3377364827045785E-2},{"$f":"'Population 2016'!H69/'Population 2016'!H$6","v":2.613330789365419E-2},{"$f":"'Population 2016'!I69/'Population 2016'!I$6","v":1.1022627949888317E-2},{"$f":"'Population 2016'!J69/'Population 2016'!J$6","v":2.3046774155694807E-2},{"$f":"'Population 2016'!K69/'Population 2016'!K$6","v":2.2441993153290225E-2},{"$f":"'Population 2016'!L69/'Population 2016'!L$6","v":1.0235094305890766E-2},{"$f":"'Population 2016'!M69/'Population 2016'!M$6","v":1.0235094305890766E-2},{"$f":"'Population 2016'!N69/'Population 2016'!N$6","v":2.4217382993427339E-2},{"$f":"'Population 2016'!O69/'Population 2016'!O$6","v":2.6235310287952718E-2},{"$f":"'Population 2016'!P69/'Population 2016'!P$6","v":1.1153988475973991E-2},{"$f":"'Population 2016'!Q69/'Population 2016'!Q$6","v":5.8882389162561574E-3},{"$f":"'Population 2016'!R69/'Population 2016'!R$6","v":2.100051220761482E-2},{"$f":"'Population 2016'!S69/'Population 2016'!S$6","v":1.7940003577478721E-2},{"$f":"'Population 2016'!T69/'Population 2016'!T$6","v":1.9630319530018626E-2},{"$f":"'Population 2016'!U69/'Population 2016'!U$6","v":0},{"$f":"'Population 2016'!V69/'Population 2016'!V$6","v":1.3945842760180996E-2},{"$f":"'Population 2016'!W69/'Population 2016'!W$6","v":2.288082901554404E-2},{"$f":"'Population 2016'!X69/'Population 2016'!X$6","v":2.288082901554404E-2},{"$f":"'Population 2016'!Y69/'Population 2016'!Y$6","v":1.7855522508443817E-2},{"$f":"'Population 2016'!Z69/'Population 2016'!Z$6","v":3.1730117787884586E-2},{"$f":"'Population 2016'!AA69/'Population 2016'!AA$6","v":2.7382090652868132E-2},{"$f":"'Population 2016'!AB69/'Population 2016'!AB$6","v":9.1736945989592672E-3},{"$f":"'Population 2016'!AC69/'Population 2016'!AC$6","v":3.0143989293203596E-2},{"$f":"'Population 2016'!AD69/'Population 2016'!AD$6","v":1.2560472238249522E-2},{"$f":"'Population 2016'!AE69/'Population 2016'!AE$6","v":1.2266977698232349E-2},{"$f":"'Population 2016'!AF69/'Population 2016'!AF$6","v":3.7144595641110743E-2},{"$f":"'Population 2016'!AG69/'Population 2016'!AG$6","v":1.2266977698232349E-2},{"$f":"'Population 2016'!AH69/'Population 2016'!AH$6","v":2.2418091105835626E-2},{"$f":"'Population 2016'!AI69/'Population 2016'!AI$6","v":1.6041885517939874E-2},{"$f":"'Population 2016'!AJ69/'Population 2016'!AJ$6","v":9.5723139228078794E-3},{"$f":"'Population 2016'!AK69/'Population 2016'!AK$6","v":2.2043772634230828E-3},{"$f":"'Population 2016'!AL69/'Population 2016'!AL$6","v":3.1414697696452894E-2},{"$f":"'Population 2016'!AM69/'Population 2016'!AM$6","v":2.4304538799414348E-2},{"$f":"'Population 2016'!AN69/'Population 2016'!AN$6","v":0},{"$f":"'Population 2016'!AO69/'Population 2016'!AO$6","v":0},{"$f":"'Population 2016'!AP69/'Population 2016'!AP$6","v":1.1469981283294141E-2},{"$f":"'Population 2016'!AQ69/'Population 2016'!AQ$6","v":2.7629351586074925E-2},{"$f":"'Population 2016'!AR69/'Population 2016'!AR$6","v":2.2154384925726262E-2},{"$f":"'Population 2016'!AS69/'Population 2016'!AS$6","v":1.1022627949888317E-2},{"$f":"'Population 2016'!AT69/'Population 2016'!AT$6","v":0},{"$f":"'Population 2016'!AU69/'Population 2016'!AU$6","v":0},{"$f":"'Population 2016'!AV69/'Population 2016'!AV$6","v":1.7490766114619326E-2},{"$f":"'Population 2016'!AW69/'Population 2016'!AW$6","v":1.9885502747770251E-2},{"$f":"'Population 2016'!AX69/'Population 2016'!AX$6","v":2.3636279371553041E-2},{"$f":"'Population 2016'!AY69/'Population 2016'!AY$6","v":2.1283273926484561E-2},{"$f":"'Population 2016'!AZ69/'Population 2016'!AZ$6","v":1.9561955123624412E-2},{"$f":"'Population 2016'!BA69/'Population 2016'!BA$6","v":2.7394258163488932E-2},{"$f":"'Population 2016'!BB69/'Population 2016'!BB$6","v":1.6835180504245251E-2},{"$f":"'Population 2016'!BC69/'Population 2016'!BC$6","v":0},67]
[null,"Female 50-54",{"$f":"'Population 2016'!C70/'Population 2016'!C$6","v":1.1242200387291113E-2},{"$f":"'Population 2016'!D70/'Population 2016'!D$6","v":1.0619098684382601E-2},{"$f":"'Population 2016'!E70/'Population 2016'!E$6","v":8.9397893109113748E-3},{"$f":"'Population 2016'!F70/'Population 2016'!F$6","v":1.2074785769929888E-2},{"$f":"'Population 2016'!G70/'Population 2016'!G$6","v":1.3041531400425389E-2},{"$f":"'Population 2016'!H70/'Population 2016'!H$6","v":2.6616264302366487E-2},{"$f":"'Population 2016'!I70/'Population 2016'!I$6","v":1.0682723123239779E-2},{"$f":"'Population 2016'!J70/'Population 2016'!J$6","v":2.1239644206623012E-2},{"$f":"'Population 2016'!K70/'Population 2016'!K$6","v":2.1728794218333968E-2},{"$f":"'Population 2016'!L70/'Population 2016'!L$6","v":1.0570304818092428E-2},{"$f":"'Population 2016'!M70/'Population 2016'!M$6","v":1.0570304818092428E-2},{"$f":"'Population 2016'!N70/'Population 2016'!N$6","v":2.7437545030804745E-2},{"$f":"'Population 2016'!O70/'Population 2016'!O$6","v":2.690536732870593E-2},{"$f":"'Population 2016'!P70/'Population 2016'!P$6","v":1.120685098059946E-2},{"$f":"'Population 2016'!Q70/'Population 2016'!Q$6","v":4.8106527093596061E-3},{"$f":"'Population 2016'!R70/'Population 2016'!R$6","v":2.2024927437254566E-2},{"$f":"'Population 2016'!S70/'Population 2016'!S$6","v":1.7253443323267292E-2},{"$f":"'Population 2016'!T70/'Population 2016'!T$6","v":1.7641158770428933E-2},{"$f":"'Population 2016'!U70/'Population 2016'!U$6","v":0},{"$f":"'Population 2016'!V70/'Population 2016'!V$6","v":1.4847285067873302E-2},{"$f":"'Population 2016'!W70/'Population 2016'!W$6","v":2.2930569948186527E-2},{"$f":"'Population 2016'!X70/'Population 2016'!X$6","v":2.2930569948186527E-2},{"$f":"'Population 2016'!Y70/'Population 2016'!Y$6","v":1.7593386096688007E-2},{"$f":"'Population 2016'!Z70/'Population 2016'!Z$6","v":3.3285634860595895E-2},{"$f":"'Population 2016'!AA70/'Population 2016'!AA$6","v":2.8028271996100414E-2},{"$f":"'Population 2016'!AB70/'Population 2016'!AB$6","v":9.4092050959985653E-3},{"$f":"'Population 2016'!AC70/'Population 2016'!AC$6","v":3.1056323507098312E-2},{"$f":"'Population 2016'!AD70/'Population 2016'!AD$6","v":1.17615729439439E-2},{"$f":"'Population 2016'!AE70/'Population 2016'!AE$6","v":1.1301707321977999E-2},{"$f":"'Population 2016'!AF70/'Population 2016'!AF$6","v":3.6591437105874543E-2},{"$f":"'Population 2016'!AG70/'Population 2016'!AG$6","v":1.1301707321977999E-2},{"$f":"'Population 2016'!AH70/'Population 2016'!AH$6","v":2.2585912124718988E-2},{"$f":"'Population 2016'!AI70/'Population 2016'!AI$6","v":1.4953732573858382E-2},{"$f":"'Population 2016'!AJ70/'Population 2016'!AJ$6","v":9.7257163895195439E-3},{"$f":"'Population 2016'!AK70/'Population 2016'!AK$6","v":2.1256495040151155E-3},{"$f":"'Population 2016'!AL70/'Population 2016'!AL$6","v":3.2599040682181557E-2},{"$f":"'Population 2016'!AM70/'Population 2016'!AM$6","v":2.4658369936554417E-2},{"$f":"'Population 2016'!AN70/'Population 2016'!AN$6","v":0},{"$f":"'Population 2016'!AO70/'Population 2016'!AO$6","v":0},{"$f":"'Population 2016'!AP70/'Population 2016'!AP$6","v":1.2429812353025867E-2},{"$f":"'Population 2016'!AQ70/'Population 2016'!AQ$6","v":2.6466475307279018E-2},{"$f":"'Population 2016'!AR70/'Population 2016'!AR$6","v":2.2440944436845561E-2},{"$f":"'Population 2016'!AS70/'Population 2016'!AS$6","v":1.0682723123239779E-2},{"$f":"'Population 2016'!AT70/'Population 2016'!AT$6","v":0},{"$f":"'Population 2016'!AU70/'Population 2016'!AU$6","v":0},{"$f":"'Population 2016'!AV70/'Population 2016'!AV$6","v":1.6585249612772548E-2},{"$f":"'Population 2016'!AW70/'Population 2016'!AW$6","v":1.9803601995102334E-2},{"$f":"'Population 2016'!AX70/'Population 2016'!AX$6","v":2.0762849330305418E-2},{"$f":"'Population 2016'!AY70/'Population 2016'!AY$6","v":2.2229197212106099E-2},{"$f":"'Population 2016'!AZ70/'Population 2016'!AZ$6","v":2.147348863798771E-2},{"$f":"'Population 2016'!BA70/'Population 2016'!BA$6","v":2.8250951327874405E-2},{"$f":"'Population 2016'!BB70/'Population 2016'!BB$6","v":1.6818977250631927E-2},{"$f":"'Population 2016'!BC70/'Population 2016'!BC$6","v":0},68]
[null,"Female 55-59",{"$f":"'Population 2016'!C71/'Population 2016'!C$6","v":9.7002079896722371E-3},{"$f":"'Population 2016'!D71/'Population 2016'!D$6","v":9.1543954175712077E-3},{"$f":"'Population 2016'!E71/'Population 2016'!E$6","v":7.6833864888373442E-3},{"$f":"'Population 2016'!F71/'Population 2016'!F$6","v":1.1252488531117459E-2},{"$f":"'Population 2016'!G71/'Population 2016'!G$6","v":1.2481809022724728E-2},{"$f":"'Population 2016'!H71/'Population 2016'!H$6","v":2.3330968238163097E-2},{"$f":"'Population 2016'!I71/'Population 2016'!I$6","v":9.4687773137807126E-3},{"$f":"'Population 2016'!J71/'Population 2016'!J$6","v":1.959679879837593E-2},{"$f":"'Population 2016'!K71/'Population 2016'!K$6","v":1.9922023583111449E-2},{"$f":"'Population 2016'!L71/'Population 2016'!L$6","v":8.5813891123625637E-3},{"$f":"'Population 2016'!M71/'Population 2016'!M$6","v":8.5813891123625637E-3},{"$f":"'Population 2016'!N71/'Population 2016'!N$6","v":2.4540869590789455E-2},{"$f":"'Population 2016'!O71/'Population 2016'!O$6","v":2.1785444299360867E-2},{"$f":"'Population 2016'!P71/'Population 2016'!P$6","v":1.120685098059946E-2},{"$f":"'Population 2016'!Q71/'Population 2016'!Q$6","v":5.2724753694581277E-3},{"$f":"'Population 2016'!R71/'Population 2016'!R$6","v":1.6646747481645893E-2},{"$f":"'Population 2016'!S71/'Population 2016'!S$6","v":1.5998695272467091E-2},{"$f":"'Population 2016'!T71/'Population 2016'!T$6","v":1.7388299351837024E-2},{"$f":"'Population 2016'!U71/'Population 2016'!U$6","v":0},{"$f":"'Population 2016'!V71/'Population 2016'!V$6","v":1.3539309954751132E-2},{"$f":"'Population 2016'!W71/'Population 2016'!W$6","v":2.0277720207253887E-2},{"$f":"'Population 2016'!X71/'Population 2016'!X$6","v":2.0277720207253887E-2},{"$f":"'Population 2016'!Y71/'Population 2016'!Y$6","v":1.6141553662348138E-2},{"$f":"'Population 2016'!Z71/'Population 2016'!Z$6","v":2.8822637634398802E-2},{"$f":"'Population 2016'!AA71/'Population 2016'!AA$6","v":2.4902354124874231E-2},{"$f":"'Population 2016'!AB71/'Population 2016'!AB$6","v":8.1082899694957834E-3},{"$f":"'Population 2016'!AC71/'Population 2016'!AC$6","v":2.7317503978088416E-2},{"$f":"'Population 2016'!AD71/'Population 2016'!AD$6","v":1.0933084786886217E-2},{"$f":"'Population 2016'!AE71/'Population 2016'!AE$6","v":1.0376656544734249E-2},{"$f":"'Population 2016'!AF71/'Population 2016'!AF$6","v":3.4931961500165948E-2},{"$f":"'Population 2016'!AG71/'Population 2016'!AG$6","v":1.0376656544734249E-2},{"$f":"'Population 2016'!AH71/'Population 2016'!AH$6","v":2.0561571084438447E-2},{"$f":"'Population 2016'!AI71/'Population 2016'!AI$6","v":1.4401285694555468E-2},{"$f":"'Population 2016'!AJ71/'Population 2016'!AJ$6","v":9.5109529361232133E-3},{"$f":"'Population 2016'!AK71/'Population 2016'!AK$6","v":1.8107384663832468E-3},{"$f":"'Population 2016'!AL71/'Population 2016'!AL$6","v":2.9031207437673949E-2},{"$f":"'Population 2016'!AM71/'Population 2016'!AM$6","v":2.1785017081503173E-2},{"$f":"'Population 2016'!AN71/'Population 2016'!AN$6","v":0},{"$f":"'Population 2016'!AO71/'Population 2016'!AO$6","v":0},{"$f":"'Population 2016'!AP71/'Population 2016'!AP$6","v":1.1182031962374621E-2},{"$f":"'Population 2016'!AQ71/'Population 2016'!AQ$6","v":2.433208213733716E-2},{"$f":"'Population 2016'!AR71/'Population 2016'!AR$6","v":2.008064361153156E-2},{"$f":"'Population 2016'!AS71/'Population 2016'!AS$6","v":9.4687773137807126E-3},{"$f":"'Population 2016'!AT71/'Population 2016'!AT$6","v":0},{"$f":"'Population 2016'!AU71/'Population 2016'!AU$6","v":0},{"$f":"'Population 2016'!AV71/'Population 2016'!AV$6","v":1.6299297033241986E-2},{"$f":"'Population 2016'!AW71/'Population 2016'!AW$6","v":1.891907386628883E-2},{"$f":"'Population 2016'!AX71/'Population 2016'!AX$6","v":1.9279788663855033E-2},{"$f":"'Population 2016'!AY71/'Population 2016'!AY$6","v":1.98127931824729E-2},{"$f":"'Population 2016'!AZ71/'Population 2016'!AZ$6","v":1.9311847934829214E-2},{"$f":"'Population 2016'!BA71/'Population 2016'!BA$6","v":2.4565178411332256E-2},{"$f":"'Population 2016'!BB71/'Population 2016'!BB$6","v":1.5085229114006093E-2},{"$f":"'Population 2016'!BC71/'Population 2016'!BC$6","v":0},69]
[null,"Female 60-64",{"$f":"'Population 2016'!C72/'Population 2016'!C$6","v":7.8892634296779743E-3},{"$f":"'Population 2016'!D72/'Population 2016'!D$6","v":7.3889048727539038E-3},{"$f":"'Population 2016'!E72/'Population 2016'!E$6","v":6.0403981830482265E-3},{"$f":"'Population 2016'!F72/'Population 2016'!F$6","v":9.0452696269367264E-3},{"$f":"'Population 2016'!G72/'Population 2016'!G$6","v":1.119444755401321E-2},{"$f":"'Population 2016'!H72/'Population 2016'!H$6","v":2.1124871062563725E-2},{"$f":"'Population 2016'!I72/'Population 2016'!I$6","v":9.0317568223754491E-3},{"$f":"'Population 2016'!J72/'Population 2016'!J$6","v":1.4996831655284095E-2},{"$f":"'Population 2016'!K72/'Population 2016'!K$6","v":1.6070749334347659E-2},{"$f":"'Population 2016'!L72/'Population 2016'!L$6","v":7.7098417806382409E-3},{"$f":"'Population 2016'!M72/'Population 2016'!M$6","v":7.7098417806382409E-3},{"$f":"'Population 2016'!N72/'Population 2016'!N$6","v":1.9556235204164156E-2},{"$f":"'Population 2016'!O72/'Population 2016'!O$6","v":1.9775273177101229E-2},{"$f":"'Population 2016'!P72/'Population 2016'!P$6","v":8.6165882539514724E-3},{"$f":"'Population 2016'!Q72/'Population 2016'!Q$6","v":3.7330665024630544E-3},{"$f":"'Population 2016'!R72/'Population 2016'!R$6","v":1.4683284958169712E-2},{"$f":"'Population 2016'!S72/'Population 2016'!S$6","v":1.2955207862035585E-2},{"$f":"'Population 2016'!T72/'Population 2016'!T$6","v":1.3005402762910581E-2},{"$f":"'Population 2016'!U72/'Population 2016'!U$6","v":0},{"$f":"'Population 2016'!V72/'Population 2016'!V$6","v":1.1471295248868777E-2},{"$f":"'Population 2016'!W72/'Population 2016'!W$6","v":1.7293264248704664E-2},{"$f":"'Population 2016'!X72/'Population 2016'!X$6","v":1.7293264248704664E-2},{"$f":"'Population 2016'!Y72/'Population 2016'!Y$6","v":1.2985834551595504E-2},{"$f":"'Population 2016'!Z72/'Population 2016'!Z$6","v":2.2184347001831986E-2},{"$f":"'Population 2016'!AA72/'Population 2016'!AA$6","v":2.0094115000281219E-2},{"$f":"'Population 2016'!AB72/'Population 2016'!AB$6","v":6.7513009151265024E-3},{"$f":"'Population 2016'!AC72/'Population 2016'!AC$6","v":2.1380523123489981E-2},{"$f":"'Population 2016'!AD72/'Population 2016'!AD$6","v":1.0075007767076472E-2},{"$f":"'Population 2016'!AE72/'Population 2016'!AE$6","v":9.6728135620487866E-3},{"$f":"'Population 2016'!AF72/'Population 2016'!AF$6","v":2.8819559685805952E-2},{"$f":"'Population 2016'!AG72/'Population 2016'!AG$6","v":9.6728135620487866E-3},{"$f":"'Population 2016'!AH72/'Population 2016'!AH$6","v":1.778203545918278E-2},{"$f":"'Population 2016'!AI72/'Population 2016'!AI$6","v":1.1103345233262325E-2},{"$f":"'Population 2016'!AJ72/'Population 2016'!AJ$6","v":7.117874455421243E-3},{"$f":"'Population 2016'!AK72/'Population 2016'!AK$6","v":2.9129270980947884E-3},{"$f":"'Population 2016'!AL72/'Population 2016'!AL$6","v":2.6085154260673891E-2},{"$f":"'Population 2016'!AM72/'Population 2016'!AM$6","v":1.8673743289409468E-2},{"$f":"'Population 2016'!AN72/'Population 2016'!AN$6","v":0},{"$f":"'Population 2016'!AO72/'Population 2016'!AO$6","v":0},{"$f":"'Population 2016'!AP72/'Population 2016'!AP$6","v":1.0174209339156309E-2},{"$f":"'Population 2016'!AQ72/'Population 2016'!AQ$6","v":1.8532420696253771E-2},{"$f":"'Population 2016'!AR72/'Population 2016'!AR$6","v":1.6510801654471403E-2},{"$f":"'Population 2016'!AS72/'Population 2016'!AS$6","v":9.0317568223754491E-3},{"$f":"'Population 2016'!AT72/'Population 2016'!AT$6","v":0},{"$f":"'Population 2016'!AU72/'Population 2016'!AU$6","v":0},{"$f":"'Population 2016'!AV72/'Population 2016'!AV$6","v":1.5012510425354461E-2},{"$f":"'Population 2016'!AW72/'Population 2016'!AW$6","v":1.6584902415253195E-2},{"$f":"'Population 2016'!AX72/'Population 2016'!AX$6","v":1.3950039393798953E-2},{"$f":"'Population 2016'!AY72/'Population 2016'!AY$6","v":1.6497762031499247E-2},{"$f":"'Population 2016'!AZ72/'Population 2016'!AZ$6","v":1.56406316992997E-2},{"$f":"'Population 2016'!BA72/'Population 2016'!BA$6","v":2.097902097902098E-2},{"$f":"'Population 2016'!BB72/'Population 2016'!BB$6","v":1.2654741072007258E-2},{"$f":"'Population 2016'!BC72/'Population 2016'!BC$6","v":0},70]
[null,"Female 65-69",{"$f":"'Population 2016'!C73/'Population 2016'!C$6","v":7.315498816610486E-3},{"$f":"'Population 2016'!D73/'Population 2016'!D$6","v":6.8657965631784062E-3},{"$f":"'Population 2016'!E73/'Population 2016'!E$6","v":5.6538126993331403E-3},{"$f":"'Population 2016'!F73/'Population 2016'!F$6","v":8.0931359819960188E-3},{"$f":"'Population 2016'!G73/'Population 2016'!G$6","v":1.2593753498264861E-2},{"$f":"'Population 2016'!H73/'Population 2016'!H$6","v":2.0200695218731555E-2},{"$f":"'Population 2016'!I73/'Population 2016'!I$6","v":9.3716616490239872E-3},{"$f":"'Population 2016'!J73/'Population 2016'!J$6","v":1.6052946560585792E-2},{"$f":"'Population 2016'!K73/'Population 2016'!K$6","v":1.7687333586915176E-2},{"$f":"'Population 2016'!L73/'Population 2016'!L$6","v":6.6595155090730315E-3},{"$f":"'Population 2016'!M73/'Population 2016'!M$6","v":6.6595155090730315E-3},{"$f":"'Population 2016'!N73/'Population 2016'!N$6","v":1.9512123395432956E-2},{"$f":"'Population 2016'!O73/'Population 2016'!O$6","v":1.9277025633977048E-2},{"$f":"'Population 2016'!P73/'Population 2016'!P$6","v":7.7707881799439658E-3},{"$f":"'Population 2016'!Q73/'Population 2016'!Q$6","v":3.9254926108374388E-3},{"$f":"'Population 2016'!R73/'Population 2016'!R$6","v":1.4768652893973024E-2},{"$f":"'Population 2016'!S73/'Population 2016'!S$6","v":1.2918380875219647E-2},{"$f":"'Population 2016'!T73/'Population 2016'!T$6","v":1.258397039859073E-2},{"$f":"'Population 2016'!U73/'Population 2016'!U$6","v":0},{"$f":"'Population 2016'!V73/'Population 2016'!V$6","v":1.1559671945701358E-2},{"$f":"'Population 2016'!W73/'Population 2016'!W$6","v":1.7392746113989638E-2},{"$f":"'Population 2016'!X73/'Population 2016'!X$6","v":1.7392746113989638E-2},{"$f":"'Population 2016'!Y73/'Population 2016'!Y$6","v":1.3489943035741291E-2},{"$f":"'Population 2016'!Z73/'Population 2016'!Z$6","v":1.990575753985253E-2},{"$f":"'Population 2016'!AA73/'Population 2016'!AA$6","v":1.8678015460857286E-2},{"$f":"'Population 2016'!AB73/'Population 2016'!AB$6","v":6.2466355643280101E-3},{"$f":"'Population 2016'!AC73/'Population 2016'!AC$6","v":1.9625884614037886E-2},{"$f":"'Population 2016'!AD73/'Population 2016'!AD$6","v":9.3204917668989386E-3},{"$f":"'Population 2016'!AE73/'Population 2016'!AE$6","v":8.1444687996460683E-3},{"$f":"'Population 2016'!AF73/'Population 2016'!AF$6","v":2.8902533466091382E-2},{"$f":"'Population 2016'!AG73/'Population 2016'!AG$6","v":8.1444687996460683E-3},{"$f":"'Population 2016'!AH73/'Population 2016'!AH$6","v":1.6974396805806608E-2},{"$f":"'Population 2016'!AI73/'Population 2016'!AI$6","v":1.0965233513436597E-2},{"$f":"'Population 2016'!AJ73/'Population 2016'!AJ$6","v":8.0076087623488987E-3},{"$f":"'Population 2016'!AK73/'Population 2016'!AK$6","v":2.519288301054952E-3},{"$f":"'Population 2016'!AL73/'Population 2016'!AL$6","v":2.5552199917095991E-2},{"$f":"'Population 2016'!AM73/'Population 2016'!AM$6","v":1.7703757930697901E-2},{"$f":"'Population 2016'!AN73/'Population 2016'!AN$6","v":0},{"$f":"'Population 2016'!AO73/'Population 2016'!AO$6","v":0},{"$f":"'Population 2016'!AP73/'Population 2016'!AP$6","v":8.7344627345587178E-3},{"$f":"'Population 2016'!AQ73/'Population 2016'!AQ$6","v":1.7855302863030838E-2},{"$f":"'Population 2016'!AR73/'Population 2016'!AR$6","v":1.569125275679293E-2},{"$f":"'Population 2016'!AS73/'Population 2016'!AS$6","v":9.3716616490239872E-3},{"$f":"'Population 2016'!AT73/'Population 2016'!AT$6","v":0},{"$f":"'Population 2016'!AU73/'Population 2016'!AU$6","v":0},{"$f":"'Population 2016'!AV73/'Population 2016'!AV$6","v":1.2867866078875254E-2},{"$f":"'Population 2016'!AW73/'Population 2016'!AW$6","v":1.5995216996044195E-2},{"$f":"'Population 2016'!AX73/'Population 2016'!AX$6","v":1.4459841497891273E-2},{"$f":"'Population 2016'!AY73/'Population 2016'!AY$6","v":1.6312877025673217E-2},{"$f":"'Population 2016'!AZ73/'Population 2016'!AZ$6","v":1.5149349721309132E-2},{"$f":"'Population 2016'!BA73/'Population 2016'!BA$6","v":1.9106249875480645E-2},{"$f":"'Population 2016'!BB73/'Population 2016'!BB$6","v":1.2379285760580725E-2},{"$f":"'Population 2016'!BC73/'Population 2016'!BC$6","v":0},71]
[null,"Female 70-74",{"$f":"'Population 2016'!C74/'Population 2016'!C$6","v":5.1459513734490427E-3},{"$f":"'Population 2016'!D74/'Population 2016'!D$6","v":4.7995187403551904E-3},{"$f":"'Population 2016'!E74/'Population 2016'!E$6","v":3.8658548371508649E-3},{"$f":"'Population 2016'!F74/'Population 2016'!F$6","v":6.9678871288842729E-3},{"$f":"'Population 2016'!G74/'Population 2016'!G$6","v":9.2913914698309636E-3},{"$f":"'Population 2016'!H74/'Population 2016'!H$6","v":1.5812350566728476E-2},{"$f":"'Population 2016'!I74/'Population 2016'!I$6","v":7.2351170243760317E-3},{"$f":"'Population 2016'!J74/'Population 2016'!J$6","v":1.2391748222206575E-2},{"$f":"'Population 2016'!K74/'Population 2016'!K$6","v":1.3265500190186384E-2},{"$f":"'Population 2016'!L74/'Population 2016'!L$6","v":6.9500312863144719E-3},{"$f":"'Population 2016'!M74/'Population 2016'!M$6","v":6.9500312863144719E-3},{"$f":"'Population 2016'!N74/'Population 2016'!N$6","v":1.4086370921495684E-2},{"$f":"'Population 2016'!O74/'Population 2016'!O$6","v":1.4895883444436809E-2},{"$f":"'Population 2016'!P74/'Population 2016'!P$6","v":5.3919754717978536E-3},{"$f":"'Population 2016'!Q74/'Population 2016'!Q$6","v":3.3482142857142855E-3},{"$f":"'Population 2016'!R74/'Population 2016'!R$6","v":1.0585624039610723E-2},{"$f":"'Population 2016'!S74/'Population 2016'!S$6","v":9.9590694346531426E-3},{"$f":"'Population 2016'!T74/'Population 2016'!T$6","v":9.1535109530271486E-3},{"$f":"'Population 2016'!U74/'Population 2016'!U$6","v":0},{"$f":"'Population 2016'!V74/'Population 2016'!V$6","v":8.3604355203619907E-3},{"$f":"'Population 2016'!W74/'Population 2016'!W$6","v":1.3786528497409327E-2},{"$f":"'Population 2016'!X74/'Population 2016'!X$6","v":1.3786528497409327E-2},{"$f":"'Population 2016'!Y74/'Population 2016'!Y$6","v":1.0092251852598679E-2},{"$f":"'Population 2016'!Z74/'Population 2016'!Z$6","v":1.6393691649121529E-2},{"$f":"'Population 2016'!AA74/'Population 2016'!AA$6","v":1.4875919433560184E-2},{"$f":"'Population 2016'!AB74/'Population 2016'!AB$6","v":4.2728333034272384E-3},{"$f":"'Population 2016'!AC74/'Population 2016'!AC$6","v":1.5665303676959768E-2},{"$f":"'Population 2016'!AD74/'Population 2016'!AD$6","v":7.1457103546225201E-3},{"$f":"'Population 2016'!AE74/'Population 2016'!AE$6","v":6.3748064431797613E-3},{"$f":"'Population 2016'!AF74/'Population 2016'!AF$6","v":2.1794446288306228E-2},{"$f":"'Population 2016'!AG74/'Population 2016'!AG$6","v":6.3748064431797613E-3},{"$f":"'Population 2016'!AH74/'Population 2016'!AH$6","v":1.3457147951709502E-2},{"$f":"'Population 2016'!AI74/'Population 2016'!AI$6","v":8.2615919677571908E-3},{"$f":"'Population 2016'!AJ74/'Population 2016'!AJ$6","v":6.0747376817819228E-3},{"$f":"'Population 2016'!AK74/'Population 2016'!AK$6","v":1.1021886317115414E-3},{"$f":"'Population 2016'!AL74/'Population 2016'!AL$6","v":1.9911766447563213E-2},{"$f":"'Population 2016'!AM74/'Population 2016'!AM$6","v":1.4513177159590045E-2},{"$f":"'Population 2016'!AN74/'Population 2016'!AN$6","v":0},{"$f":"'Population 2016'!AO74/'Population 2016'!AO$6","v":0},{"$f":"'Population 2016'!AP74/'Population 2016'!AP$6","v":7.2467245764745404E-3},{"$f":"'Population 2016'!AQ74/'Population 2016'!AQ$6","v":1.4131154780304703E-2},{"$f":"'Population 2016'!AR74/'Population 2016'!AR$6","v":1.2313580886084963E-2},{"$f":"'Population 2016'!AS74/'Population 2016'!AS$6","v":7.2351170243760317E-3},{"$f":"'Population 2016'!AT74/'Population 2016'!AT$6","v":0},{"$f":"'Population 2016'!AU74/'Population 2016'!AU$6","v":0},{"$f":"'Population 2016'!AV74/'Population 2016'!AV$6","v":1.0484927916120577E-2},{"$f":"'Population 2016'!AW74/'Population 2016'!AW$6","v":1.2039410642183801E-2},{"$f":"'Population 2016'!AX74/'Population 2016'!AX$6","v":1.1540065810817074E-2},{"$f":"'Population 2016'!AY74/'Population 2016'!AY$6","v":1.2610877257854388E-2},{"$f":"'Population 2016'!AZ74/'Population 2016'!AZ$6","v":1.1344147491782192E-2},{"$f":"'Population 2016'!BA74/'Population 2016'!BA$6","v":1.3607475145936684E-2},{"$f":"'Population 2016'!BB74/'Population 2016'!BB$6","v":9.7705619288353095E-3},{"$f":"'Population 2016'!BC74/'Population 2016'!BC$6","v":0},72]
[null,"Female 75-79",{"$f":"'Population 2016'!C75/'Population 2016'!C$6","v":4.3570250304812447E-3},{"$f":"'Population 2016'!D75/'Population 2016'!D$6","v":3.8840791985980698E-3},{"$f":"'Population 2016'!E75/'Population 2016'!E$6","v":2.6094520150768338E-3},{"$f":"'Population 2016'!F75/'Population 2016'!F$6","v":7.1842811390980697E-3},{"$f":"'Population 2016'!G75/'Population 2016'!G$6","v":8.0600022388895107E-3},{"$f":"'Population 2016'!H75/'Population 2016'!H$6","v":1.3642027939922608E-2},{"$f":"'Population 2016'!I75/'Population 2016'!I$6","v":5.0500145673497135E-3},{"$f":"'Population 2016'!J75/'Population 2016'!J$6","v":9.6693186885399799E-3},{"$f":"'Population 2016'!K75/'Population 2016'!K$6","v":1.0127424876378851E-2},{"$f":"'Population 2016'!L75/'Population 2016'!L$6","v":4.2236524537409489E-3},{"$f":"'Population 2016'!M75/'Population 2016'!M$6","v":4.2236524537409489E-3},{"$f":"'Population 2016'!N75/'Population 2016'!N$6","v":1.2336602508491524E-2},{"$f":"'Population 2016'!O75/'Population 2016'!O$6","v":1.2696721874785238E-2},{"$f":"'Population 2016'!P75/'Population 2016'!P$6","v":4.5461753977903471E-3},{"$f":"'Population 2016'!Q75/'Population 2016'!Q$6","v":2.8863916256157635E-3},{"$f":"'Population 2016'!R75/'Population 2016'!R$6","v":9.3051050025610375E-3},{"$f":"'Population 2016'!S75/'Population 2016'!S$6","v":8.1940045665463649E-3},{"$f":"'Population 2016'!T75/'Population 2016'!T$6","v":8.1083586895139195E-3},{"$f":"'Population 2016'!U75/'Population 2016'!U$6","v":0},{"$f":"'Population 2016'!V75/'Population 2016'!V$6","v":8.9790723981900446E-3},{"$f":"'Population 2016'!W75/'Population 2016'!W$6","v":1.1316062176165802E-2},{"$f":"'Population 2016'!X75/'Population 2016'!X$6","v":1.1316062176165802E-2},{"$f":"'Population 2016'!Y75/'Population 2016'!Y$6","v":9.2755961082825016E-3},{"$f":"'Population 2016'!Z75/'Population 2016'!Z$6","v":1.5539980130699892E-2},{"$f":"'Population 2016'!AA75/'Population 2016'!AA$6","v":1.3511064449402251E-2},{"$f":"'Population 2016'!AB75/'Population 2016'!AB$6","v":3.4429391710030506E-3},{"$f":"'Population 2016'!AC75/'Population 2016'!AC$6","v":1.4801601350799314E-2},{"$f":"'Population 2016'!AD75/'Population 2016'!AD$6","v":6.0509224327962956E-3},{"$f":"'Population 2016'!AE75/'Population 2016'!AE$6","v":5.329096868904217E-3},{"$f":"'Population 2016'!AF75/'Population 2016'!AF$6","v":2.077110299811926E-2},{"$f":"'Population 2016'!AG75/'Population 2016'!AG$6","v":5.329096868904217E-3},{"$f":"'Population 2016'!AH75/'Population 2016'!AH$6","v":1.119156419678413E-2},{"$f":"'Population 2016'!AI75/'Population 2016'!AI$6","v":6.8888451767620757E-3},{"$f":"'Population 2016'!AJ75/'Population 2016'!AJ$6","v":3.9884641345032832E-3},{"$f":"'Population 2016'!AK75/'Population 2016'!AK$6","v":7.8727759407967246E-4},{"$f":"'Population 2016'!AL75/'Population 2016'!AL$6","v":1.7276603304316931E-2},{"$f":"'Population 2016'!AM75/'Population 2016'!AM$6","v":1.199975597852611E-2},{"$f":"'Population 2016'!AN75/'Population 2016'!AN$6","v":0},{"$f":"'Population 2016'!AO75/'Population 2016'!AO$6","v":0},{"$f":"'Population 2016'!AP75/'Population 2016'!AP$6","v":4.5591975812257039E-3},{"$f":"'Population 2016'!AQ75/'Population 2016'!AQ$6","v":1.4101714874512401E-2},{"$f":"'Population 2016'!AR75/'Population 2016'!AR$6","v":1.0816915037083175E-2},{"$f":"'Population 2016'!AS75/'Population 2016'!AS$6","v":5.0500145673497135E-3},{"$f":"'Population 2016'!AT75/'Population 2016'!AT$6","v":0},{"$f":"'Population 2016'!AU75/'Population 2016'!AU$6","v":0},{"$f":"'Population 2016'!AV75/'Population 2016'!AV$6","v":9.1028237817228647E-3},{"$f":"'Population 2016'!AW75/'Population 2016'!AW$6","v":1.0106552879220959E-2},{"$f":"'Population 2016'!AX75/'Population 2016'!AX$6","v":9.2227835194883447E-3},{"$f":"'Population 2016'!AY75/'Population 2016'!AY$6","v":1.0598640450259484E-2},{"$f":"'Population 2016'!AZ75/'Population 2016'!AZ$6","v":9.8256395598113472E-3},{"$f":"'Population 2016'!BA75/'Population 2016'!BA$6","v":1.1754627139242524E-2},{"$f":"'Population 2016'!BB75/'Population 2016'!BB$6","v":7.7613584807829416E-3},{"$f":"'Population 2016'!BC75/'Population 2016'!BC$6","v":0},73]
[null,"Female 80-84",{"$f":"'Population 2016'!C76/'Population 2016'!C$6","v":3.3887972459298575E-3},{"$f":"'Population 2016'!D76/'Population 2016'!D$6","v":3.1255721497135984E-3},{"$f":"'Population 2016'!E76/'Population 2016'!E$6","v":2.4161592732192907E-3},{"$f":"'Population 2016'!F76/'Population 2016'!F$6","v":4.1980437981476671E-3},{"$f":"'Population 2016'!G76/'Population 2016'!G$6","v":6.5487518190977274E-3},{"$f":"'Population 2016'!H76/'Population 2016'!H$6","v":9.9691742637895986E-3},{"$f":"'Population 2016'!I76/'Population 2016'!I$6","v":3.9817422550257357E-3},{"$f":"'Population 2016'!J76/'Population 2016'!J$6","v":7.2989274566406161E-3},{"$f":"'Population 2016'!K76/'Population 2016'!K$6","v":6.6565233929250667E-3},{"$f":"'Population 2016'!L76/'Population 2016'!L$6","v":3.3744524894967374E-3},{"$f":"'Population 2016'!M76/'Population 2016'!M$6","v":3.3744524894967374E-3},{"$f":"'Population 2016'!N76/'Population 2016'!N$6","v":9.8663412195444718E-3},{"$f":"'Population 2016'!O76/'Population 2016'!O$6","v":9.6213318672256198E-3},{"$f":"'Population 2016'!P76/'Population 2016'!P$6","v":2.9603002590262726E-3},{"$f":"'Population 2016'!Q76/'Population 2016'!Q$6","v":1.6163793103448276E-3},{"$f":"'Population 2016'!R76/'Population 2016'!R$6","v":8.0245859655113539E-3},{"$f":"'Population 2016'!S76/'Population 2016'!S$6","v":6.2184997737770812E-3},{"$f":"'Population 2016'!T76/'Population 2016'!T$6","v":6.422629232234519E-3},{"$f":"'Population 2016'!U76/'Population 2016'!U$6","v":0},{"$f":"'Population 2016'!V76/'Population 2016'!V$6","v":6.4161481900452486E-3},{"$f":"'Population 2016'!W76/'Population 2016'!W$6","v":8.1740932642487048E-3},{"$f":"'Population 2016'!X76/'Population 2016'!X$6","v":8.1740932642487048E-3},{"$f":"'Population 2016'!Y76/'Population 2016'!Y$6","v":6.7953823662852244E-3},{"$f":"'Population 2016'!Z76/'Population 2016'!Z$6","v":1.2301344975406425E-2},{"$f":"'Population 2016'!AA76/'Population 2016'!AA$6","v":1.0590124799240081E-2},{"$f":"'Population 2016'!AB76/'Population 2016'!AB$6","v":2.7924816077516596E-3},{"$f":"'Population 2016'!AC76/'Population 2016'!AC$6","v":1.1733901872522205E-2},{"$f":"'Population 2016'!AD76/'Population 2016'!AD$6","v":4.6750403148255E-3},{"$f":"'Population 2016'!AE76/'Population 2016'!AE$6","v":4.0018501015544874E-3},{"$f":"'Population 2016'!AF76/'Population 2016'!AF$6","v":1.653944020356234E-2},{"$f":"'Population 2016'!AG76/'Population 2016'!AG$6","v":4.0018501015544874E-3},{"$f":"'Population 2016'!AH76/'Population 2016'!AH$6","v":8.5343980644642485E-3},{"$f":"'Population 2016'!AI76/'Population 2016'!AI$6","v":5.4240239058831411E-3},{"$f":"'Population 2016'!AJ76/'Population 2016'!AJ$6","v":4.1725470945572808E-3},{"$f":"'Population 2016'!AK76/'Population 2016'!AK$6","v":7.8727759407967246E-4},{"$f":"'Population 2016'!AL76/'Population 2016'!AL$6","v":1.2154319891040445E-2},{"$f":"'Population 2016'!AM76/'Population 2016'!AM$6","v":9.0348950707662273E-3},{"$f":"'Population 2016'!AN76/'Population 2016'!AN$6","v":0},{"$f":"'Population 2016'!AO76/'Population 2016'!AO$6","v":0},{"$f":"'Population 2016'!AP76/'Population 2016'!AP$6","v":5.2310793300379133E-3},{"$f":"'Population 2016'!AQ76/'Population 2016'!AQ$6","v":1.1584602929270627E-2},{"$f":"'Population 2016'!AR76/'Population 2016'!AR$6","v":8.3514858704117987E-3},{"$f":"'Population 2016'!AS76/'Population 2016'!AS$6","v":3.9817422550257357E-3},{"$f":"'Population 2016'!AT76/'Population 2016'!AT$6","v":0},{"$f":"'Population 2016'!AU76/'Population 2016'!AU$6","v":0},{"$f":"'Population 2016'!AV76/'Population 2016'!AV$6","v":6.9343500536161087E-3},{"$f":"'Population 2016'!AW76/'Population 2016'!AW$6","v":7.8624722561200337E-3},{"$f":"'Population 2016'!AX76/'Population 2016'!AX$6","v":7.9251054363442559E-3},{"$f":"'Population 2016'!AY76/'Population 2016'!AY$6","v":8.0102503686950988E-3},{"$f":"'Population 2016'!AZ76/'Population 2016'!AZ$6","v":7.833714449049593E-3},{"$f":"'Population 2016'!BA76/'Population 2016'!BA$6","v":8.9255473870858484E-3},{"$f":"'Population 2016'!BB76/'Population 2016'!BB$6","v":5.7683582863438977E-3},{"$f":"'Population 2016'!BC76/'Population 2016'!BC$6","v":0},74]
[null,"Female 85-89",{"$f":"'Population 2016'!C77/'Population 2016'!C$6","v":2.5998709029620599E-3},{"$f":"'Population 2016'!D77/'Population 2016'!D$6","v":2.3539873930897392E-3},{"$f":"'Population 2016'!E77/'Population 2016'!E$6","v":1.6913114912535034E-3},{"$f":"'Population 2016'!F77/'Population 2016'!F$6","v":2.5967281225655675E-3},{"$f":"'Population 2016'!G77/'Population 2016'!G$6","v":4.8136124482256798E-3},{"$f":"'Population 2016'!H77/'Population 2016'!H$6","v":6.1234102684879889E-3},{"$f":"'Population 2016'!I77/'Population 2016'!I$6","v":2.8649121103233952E-3},{"$f":"'Population 2016'!J77/'Population 2016'!J$6","v":3.8724213194395551E-3},{"$f":"'Population 2016'!K77/'Population 2016'!K$6","v":4.1841004184100415E-3},{"$f":"'Population 2016'!L77/'Population 2016'!L$6","v":2.2570841154911951E-3},{"$f":"'Population 2016'!M77/'Population 2016'!M$6","v":2.2570841154911951E-3},{"$f":"'Population 2016'!N77/'Population 2016'!N$6","v":6.4991398197297417E-3},{"$f":"'Population 2016'!O77/'Population 2016'!O$6","v":6.545941859666002E-3},{"$f":"'Population 2016'!P77/'Population 2016'!P$6","v":1.744462652640482E-3},{"$f":"'Population 2016'!Q77/'Population 2016'!Q$6","v":8.0818965517241378E-4},{"$f":"'Population 2016'!R77/'Population 2016'!R$6","v":3.7561891753457402E-3},{"$f":"'Population 2016'!S77/'Population 2016'!S$6","v":3.7458306589926243E-3},{"$f":"'Population 2016'!T77/'Population 2016'!T$6","v":4.2901814687760758E-3},{"$f":"'Population 2016'!U77/'Population 2016'!U$6","v":0},{"$f":"'Population 2016'!V77/'Population 2016'!V$6","v":3.8355486425339365E-3},{"$f":"'Population 2016'!W77/'Population 2016'!W$6","v":5.0155440414507771E-3},{"$f":"'Population 2016'!X77/'Population 2016'!X$6","v":5.0155440414507771E-3},{"$f":"'Population 2016'!Y77/'Population 2016'!Y$6","v":3.8513888188738215E-3},{"$f":"'Population 2016'!Z77/'Population 2016'!Z$6","v":7.1699615070286889E-3},{"$f":"'Population 2016'!AA77/'Population 2016'!AA$6","v":6.2305880000249969E-3},{"$f":"'Population 2016'!AB77/'Population 2016'!AB$6","v":2.1083796877803696E-3},{"$f":"'Population 2016'!AC77/'Population 2016'!AC$6","v":6.958250497017893E-3},{"$f":"'Population 2016'!AD77/'Population 2016'!AD$6","v":3.0772417262142529E-3},{"$f":"'Population 2016'!AE77/'Population 2016'!AE$6","v":2.4533955396464696E-3},{"$f":"'Population 2016'!AF77/'Population 2016'!AF$6","v":9.9845115610133865E-3},{"$f":"'Population 2016'!AG77/'Population 2016'!AG$6","v":2.4533955396464696E-3},{"$f":"'Population 2016'!AH77/'Population 2016'!AH$6","v":4.9227498872452527E-3},{"$f":"'Population 2016'!AI77/'Population 2016'!AI$6","v":3.1807547596228295E-3},{"$f":"'Population 2016'!AJ77/'Population 2016'!AJ$6","v":2.2089955206479718E-3},{"$f":"'Population 2016'!AK77/'Population 2016'!AK$6","v":6.2982207526373799E-4},{"$f":"'Population 2016'!AL77/'Population 2016'!AL$6","v":6.7063421566885767E-3},{"$f":"'Population 2016'!AM77/'Population 2016'!AM$6","v":5.4538799414348459E-3},{"$f":"'Population 2016'!AN77/'Population 2016'!AN$6","v":0},{"$f":"'Population 2016'!AO77/'Population 2016'!AO$6","v":0},{"$f":"'Population 2016'!AP77/'Population 2016'!AP$6","v":2.4955607813024906E-3},{"$f":"'Population 2016'!AQ77/'Population 2016'!AQ$6","v":6.668138661956282E-3},{"$f":"'Population 2016'!AR77/'Population 2016'!AR$6","v":5.0128132231106008E-3},{"$f":"'Population 2016'!AS77/'Population 2016'!AS$6","v":2.8649121103233952E-3},{"$f":"'Population 2016'!AT77/'Population 2016'!AT$6","v":0},{"$f":"'Population 2016'!AU77/'Population 2016'!AU$6","v":0},{"$f":"'Population 2016'!AV77/'Population 2016'!AV$6","v":4.5990706541165259E-3},{"$f":"'Population 2016'!AW77/'Population 2016'!AW$6","v":4.209698687130935E-3},{"$f":"'Population 2016'!AX77/'Population 2016'!AX$6","v":3.5686147286462435E-3},{"$f":"'Population 2016'!AY77/'Population 2016'!AY$6","v":4.983295854706183E-3},{"$f":"'Population 2016'!AZ77/'Population 2016'!AZ$6","v":4.948549378304988E-3},{"$f":"'Population 2016'!BA77/'Population 2016'!BA$6","v":6.4949295718526485E-3},{"$f":"'Population 2016'!BB77/'Population 2016'!BB$6","v":2.5601140709054378E-3},{"$f":"'Population 2016'!BC77/'Population 2016'!BC$6","v":0},75]
[null,"Female 90+",{"$f":"'Population 2016'!C78/'Population 2016'!C$6","v":1.2730402352434914E-3},{"$f":"'Population 2016'!D78/'Population 2016'!D$6","v":1.1639159888054821E-3},{"$f":"'Population 2016'!E78/'Population 2016'!E$6","v":8.6981733835894465E-4},{"$f":"'Population 2016'!F78/'Population 2016'!F$6","v":1.6013156755820999E-3},{"$f":"'Population 2016'!G78/'Population 2016'!G$6","v":3.0784730773536326E-3},{"$f":"'Population 2016'!H78/'Population 2016'!H$6","v":3.3866572857849829E-3},{"$f":"'Population 2016'!I78/'Population 2016'!I$6","v":1.1653879770807032E-3},{"$f":"'Population 2016'!J78/'Population 2016'!J$6","v":2.3469220117815484E-3},{"$f":"'Population 2016'!K78/'Population 2016'!K$6","v":2.6626093571700264E-3},{"$f":"'Population 2016'!L78/'Population 2016'!L$6","v":8.9389469920443372E-4},{"$f":"'Population 2016'!M78/'Population 2016'!M$6","v":8.9389469920443372E-4},{"$f":"'Population 2016'!N78/'Population 2016'!N$6","v":3.514240762252055E-3},{"$f":"'Population 2016'!O78/'Population 2016'!O$6","v":3.4877328018692874E-3},{"$f":"'Population 2016'!P78/'Population 2016'!P$6","v":2.6431252312734575E-4},{"$f":"'Population 2016'!Q78/'Population 2016'!Q$6","v":2.3091133004926107E-4},{"$f":"'Population 2016'!R78/'Population 2016'!R$6","v":2.2195663308861194E-3},{"$f":"'Population 2016'!S78/'Population 2016'!S$6","v":2.1412262334410083E-3},{"$f":"'Population 2016'!T78/'Population 2016'!T$6","v":2.2841634146135888E-3},{"$f":"'Population 2016'!U78/'Population 2016'!U$6","v":0},{"$f":"'Population 2016'!V78/'Population 2016'!V$6","v":1.838235294117647E-3},{"$f":"'Population 2016'!W78/'Population 2016'!W$6","v":2.9181347150259067E-3},{"$f":"'Population 2016'!X78/'Population 2016'!X$6","v":2.9181347150259067E-3},{"$f":"'Population 2016'!Y78/'Population 2016'!Y$6","v":2.0567626153148158E-3},{"$f":"'Population 2016'!Z78/'Population 2016'!Z$6","v":3.8644877275171578E-3},{"$f":"'Population 2016'!AA78/'Population 2016'!AA$6","v":3.3546435691207809E-3},{"$f":"'Population 2016'!AB78/'Population 2016'!AB$6","v":1.0205454871702853E-3},{"$f":"'Population 2016'!AC78/'Population 2016'!AC$6","v":3.7115856718787084E-3},{"$f":"'Population 2016'!AD78/'Population 2016'!AD$6","v":1.7901261964996375E-3},{"$f":"'Population 2016'!AE78/'Population 2016'!AE$6","v":1.3272467673497296E-3},{"$f":"'Population 2016'!AF78/'Population 2016'!AF$6","v":5.0060847438875983E-3},{"$f":"'Population 2016'!AG78/'Population 2016'!AG$6","v":1.3272467673497296E-3},{"$f":"'Population 2016'!AH78/'Population 2016'!AH$6","v":2.7131064719476679E-3},{"$f":"'Population 2016'!AI78/'Population 2016'!AI$6","v":1.8331191904142096E-3},{"$f":"'Population 2016'!AJ78/'Population 2016'!AJ$6","v":1.1658587470086519E-3},{"$f":"'Population 2016'!AK78/'Population 2016'!AK$6","v":1.574555188159345E-4},{"$f":"'Population 2016'!AL78/'Population 2016'!AL$6","v":3.8047018416533427E-3},{"$f":"'Population 2016'!AM78/'Population 2016'!AM$6","v":2.8306490971205466E-3},{"$f":"'Population 2016'!AN78/'Population 2016'!AN$6","v":0},{"$f":"'Population 2016'!AO78/'Population 2016'!AO$6","v":0},{"$f":"'Population 2016'!AP78/'Population 2016'!AP$6","v":1.2957719441378317E-3},{"$f":"'Population 2016'!AQ78/'Population 2016'!AQ$6","v":3.1059100610878044E-3},{"$f":"'Population 2016'!AR78/'Population 2016'!AR$6","v":2.7271196077921578E-3},{"$f":"'Population 2016'!AS78/'Population 2016'!AS$6","v":1.1653879770807032E-3},{"$f":"'Population 2016'!AT78/'Population 2016'!AT$6","v":0},{"$f":"'Population 2016'!AU78/'Population 2016'!AU$6","v":0},{"$f":"'Population 2016'!AV78/'Population 2016'!AV$6","v":2.5735732157750506E-3},{"$f":"'Population 2016'!AW78/'Population 2016'!AW$6","v":2.555303483239011E-3},{"$f":"'Population 2016'!AX78/'Population 2016'!AX$6","v":2.0392084163692822E-3},{"$f":"'Population 2016'!AY78/'Population 2016'!AY$6","v":2.8162716003732099E-3},{"$f":"'Population 2016'!AZ78/'Population 2016'!AZ$6","v":2.7065170787480349E-3},{"$f":"'Population 2016'!BA78/'Population 2016'!BA$6","v":4.2436196282350132E-3},{"$f":"'Population 2016'!BB78/'Population 2016'!BB$6","v":1.9930001944390434E-3},{"$f":"'Population 2016'!BC78/'Population 2016'!BC$6","v":0},76]
[null,"Male 0-4",{"$f":"'Population 2016'!C79/'Population 2016'!C$6","v":0},{"$f":"'Population 2016'!D79/'Population 2016'!D$6","v":0},{"$f":"'Population 2016'!E79/'Population 2016'!E$6","v":0},{"$f":"'Population 2016'!F79/'Population 2016'!F$6","v":0},{"$f":"'Population 2016'!G79/'Population 2016'!G$6","v":0},{"$f":"'Population 2016'!H79/'Population 2016'!H$6","v":0},{"$f":"'Population 2016'!I79/'Population 2016'!I$6","v":0},{"$f":"'Population 2016'!J79/'Population 2016'!J$6","v":0},{"$f":"'Population 2016'!K79/'Population 2016'!K$6","v":0},{"$f":"'Population 2016'!L79/'Population 2016'!L$6","v":0},{"$f":"'Population 2016'!M79/'Population 2016'!M$6","v":0},{"$f":"'Population 2016'!N79/'Population 2016'!N$6","v":0},{"$f":"'Population 2016'!O79/'Population 2016'!O$6","v":0},{"$f":"'Population 2016'!P79/'Population 2016'!P$6","v":0},{"$f":"'Population 2016'!Q79/'Population 2016'!Q$6","v":0},{"$f":"'Population 2016'!R79/'Population 2016'!R$6","v":0},{"$f":"'Population 2016'!S79/'Population 2016'!S$6","v":0},{"$f":"'Population 2016'!T79/'Population 2016'!T$6","v":0},{"$f":"'Population 2016'!U79/'Population 2016'!U$6","v":0},{"$f":"'Population 2016'!V79/'Population 2016'!V$6","v":0},{"$f":"'Population 2016'!W79/'Population 2016'!W$6","v":0},{"$f":"'Population 2016'!X79/'Population 2016'!X$6","v":0},{"$f":"'Population 2016'!Y79/'Population 2016'!Y$6","v":0},{"$f":"'Population 2016'!Z79/'Population 2016'!Z$6","v":0},{"$f":"'Population 2016'!AA79/'Population 2016'!AA$6","v":0},{"$f":"'Population 2016'!AB79/'Population 2016'!AB$6","v":0},{"$f":"'Population 2016'!AC79/'Population 2016'!AC$6","v":0},{"$f":"'Population 2016'!AD79/'Population 2016'!AD$6","v":0},{"$f":"'Population 2016'!AE79/'Population 2016'!AE$6","v":0},{"$f":"'Population 2016'!AF79/'Population 2016'!AF$6","v":0},{"$f":"'Population 2016'!AG79/'Population 2016'!AG$6","v":0},{"$f":"'Population 2016'!AH79/'Population 2016'!AH$6","v":0},{"$f":"'Population 2016'!AI79/'Population 2016'!AI$6","v":0},{"$f":"'Population 2016'!AJ79/'Population 2016'!AJ$6","v":0},{"$f":"'Population 2016'!AK79/'Population 2016'!AK$6","v":0},{"$f":"'Population 2016'!AL79/'Population 2016'!AL$6","v":0},{"$f":"'Population 2016'!AM79/'Population 2016'!AM$6","v":0},{"$f":"'Population 2016'!AN79/'Population 2016'!AN$6","v":0},{"$f":"'Population 2016'!AO79/'Population 2016'!AO$6","v":0},{"$f":"'Population 2016'!AP79/'Population 2016'!AP$6","v":0},{"$f":"'Population 2016'!AQ79/'Population 2016'!AQ$6","v":0},{"$f":"'Population 2016'!AR79/'Population 2016'!AR$6","v":0},{"$f":"'Population 2016'!AS79/'Population 2016'!AS$6","v":0},{"$f":"'Population 2016'!AT79/'Population 2016'!AT$6","v":0},{"$f":"'Population 2016'!AU79/'Population 2016'!AU$6","v":0},{"$f":"'Population 2016'!AV79/'Population 2016'!AV$6","v":0},{"$f":"'Population 2016'!AW79/'Population 2016'!AW$6","v":0},{"$f":"'Population 2016'!AX79/'Population 2016'!AX$6","v":0},{"$f":"'Population 2016'!AY79/'Population 2016'!AY$6","v":0},{"$f":"'Population 2016'!AZ79/'Population 2016'!AZ$6","v":0},{"$f":"'Population 2016'!BA79/'Population 2016'!BA$6","v":0},{"$f":"'Population 2016'!BB79/'Population 2016'!BB$6","v":0},{"$f":"'Population 2016'!BC79/'Population 2016'!BC$6","v":0},77]
[null,"Male 5-9",{"$f":"'Population 2016'!C80/'Population 2016'!C$6","v":0},{"$f":"'Population 2016'!D80/'Population 2016'!D$6","v":0},{"$f":"'Population 2016'!E80/'Population 2016'!E$6","v":0},{"$f":"'Population 2016'!F80/'Population 2016'!F$6","v":0},{"$f":"'Population 2016'!G80/'Population 2016'!G$6","v":0},{"$f":"'Population 2016'!H80/'Population 2016'!H$6","v":0},{"$f":"'Population 2016'!I80/'Population 2016'!I$6","v":0},{"$f":"'Population 2016'!J80/'Population 2016'!J$6","v":0},{"$f":"'Population 2016'!K80/'Population 2016'!K$6","v":0},{"$f":"'Population 2016'!L80/'Population 2016'!L$6","v":0},{"$f":"'Population 2016'!M80/'Population 2016'!M$6","v":0},{"$f":"'Population 2016'!N80/'Population 2016'!N$6","v":0},{"$f":"'Population 2016'!O80/'Population 2016'!O$6","v":0},{"$f":"'Population 2016'!P80/'Population 2016'!P$6","v":0},{"$f":"'Population 2016'!Q80/'Population 2016'!Q$6","v":0},{"$f":"'Population 2016'!R80/'Population 2016'!R$6","v":0},{"$f":"'Population 2016'!S80/'Population 2016'!S$6","v":0},{"$f":"'Population 2016'!T80/'Population 2016'!T$6","v":0},{"$f":"'Population 2016'!U80/'Population 2016'!U$6","v":0},{"$f":"'Population 2016'!V80/'Population 2016'!V$6","v":0},{"$f":"'Population 2016'!W80/'Population 2016'!W$6","v":0},{"$f":"'Population 2016'!X80/'Population 2016'!X$6","v":0},{"$f":"'Population 2016'!Y80/'Population 2016'!Y$6","v":0},{"$f":"'Population 2016'!Z80/'Population 2016'!Z$6","v":0},{"$f":"'Population 2016'!AA80/'Population 2016'!AA$6","v":0},{"$f":"'Population 2016'!AB80/'Population 2016'!AB$6","v":0},{"$f":"'Population 2016'!AC80/'Population 2016'!AC$6","v":0},{"$f":"'Population 2016'!AD80/'Population 2016'!AD$6","v":0},{"$f":"'Population 2016'!AE80/'Population 2016'!AE$6","v":0},{"$f":"'Population 2016'!AF80/'Population 2016'!AF$6","v":0},{"$f":"'Population 2016'!AG80/'Population 2016'!AG$6","v":0},{"$f":"'Population 2016'!AH80/'Population 2016'!AH$6","v":0},{"$f":"'Population 2016'!AI80/'Population 2016'!AI$6","v":0},{"$f":"'Population 2016'!AJ80/'Population 2016'!AJ$6","v":0},{"$f":"'Population 2016'!AK80/'Population 2016'!AK$6","v":0},{"$f":"'Population 2016'!AL80/'Population 2016'!AL$6","v":0},{"$f":"'Population 2016'!AM80/'Population 2016'!AM$6","v":0},{"$f":"'Population 2016'!AN80/'Population 2016'!AN$6","v":0},{"$f":"'Population 2016'!AO80/'Population 2016'!AO$6","v":0},{"$f":"'Population 2016'!AP80/'Population 2016'!AP$6","v":0},{"$f":"'Population 2016'!AQ80/'Population 2016'!AQ$6","v":0},{"$f":"'Population 2016'!AR80/'Population 2016'!AR$6","v":0},{"$f":"'Population 2016'!AS80/'Population 2016'!AS$6","v":0},{"$f":"'Population 2016'!AT80/'Population 2016'!AT$6","v":0},{"$f":"'Population 2016'!AU80/'Population 2016'!AU$6","v":0},{"$f":"'Population 2016'!AV80/'Population 2016'!AV$6","v":0},{"$f":"'Population 2016'!AW80/'Population 2016'!AW$6","v":0},{"$f":"'Population 2016'!AX80/'Population 2016'!AX$6","v":0},{"$f":"'Population 2016'!AY80/'Population 2016'!AY$6","v":0},{"$f":"'Population 2016'!AZ80/'Population 2016'!AZ$6","v":0},{"$f":"'Population 2016'!BA80/'Population 2016'!BA$6","v":0},{"$f":"'Population 2016'!BB80/'Population 2016'!BB$6","v":0},{"$f":"'Population 2016'!BC80/'Population 2016'!BC$6","v":0},78]
[null,"Male 10-15",{"$f":"'Population 2016'!C81/'Population 2016'!C$6","v":0},{"$f":"'Population 2016'!D81/'Population 2016'!D$6","v":0},{"$f":"'Population 2016'!E81/'Population 2016'!E$6","v":0},{"$f":"'Population 2016'!F81/'Population 2016'!F$6","v":0},{"$f":"'Population 2016'!G81/'Population 2016'!G$6","v":0},{"$f":"'Population 2016'!H81/'Population 2016'!H$6","v":0},{"$f":"'Population 2016'!I81/'Population 2016'!I$6","v":0},{"$f":"'Population 2016'!J81/'Population 2016'!J$6","v":0},{"$f":"'Population 2016'!K81/'Population 2016'!K$6","v":0},{"$f":"'Population 2016'!L81/'Population 2016'!L$6","v":0},{"$f":"'Population 2016'!M81/'Population 2016'!M$6","v":0},{"$f":"'Population 2016'!N81/'Population 2016'!N$6","v":0},{"$f":"'Population 2016'!O81/'Population 2016'!O$6","v":0},{"$f":"'Population 2016'!P81/'Population 2016'!P$6","v":0},{"$f":"'Population 2016'!Q81/'Population 2016'!Q$6","v":0},{"$f":"'Population 2016'!R81/'Population 2016'!R$6","v":0},{"$f":"'Population 2016'!S81/'Population 2016'!S$6","v":0},{"$f":"'Population 2016'!T81/'Population 2016'!T$6","v":0},{"$f":"'Population 2016'!U81/'Population 2016'!U$6","v":0},{"$f":"'Population 2016'!V81/'Population 2016'!V$6","v":0},{"$f":"'Population 2016'!W81/'Population 2016'!W$6","v":0},{"$f":"'Population 2016'!X81/'Population 2016'!X$6","v":0},{"$f":"'Population 2016'!Y81/'Population 2016'!Y$6","v":0},{"$f":"'Population 2016'!Z81/'Population 2016'!Z$6","v":0},{"$f":"'Population 2016'!AA81/'Population 2016'!AA$6","v":0},{"$f":"'Population 2016'!AB81/'Population 2016'!AB$6","v":0},{"$f":"'Population 2016'!AC81/'Population 2016'!AC$6","v":0},{"$f":"'Population 2016'!AD81/'Population 2016'!AD$6","v":0},{"$f":"'Population 2016'!AE81/'Population 2016'!AE$6","v":0},{"$f":"'Population 2016'!AF81/'Population 2016'!AF$6","v":0},{"$f":"'Population 2016'!AG81/'Population 2016'!AG$6","v":0},{"$f":"'Population 2016'!AH81/'Population 2016'!AH$6","v":0},{"$f":"'Population 2016'!AI81/'Population 2016'!AI$6","v":0},{"$f":"'Population 2016'!AJ81/'Population 2016'!AJ$6","v":0},{"$f":"'Population 2016'!AK81/'Population 2016'!AK$6","v":0},{"$f":"'Population 2016'!AL81/'Population 2016'!AL$6","v":0},{"$f":"'Population 2016'!AM81/'Population 2016'!AM$6","v":0},{"$f":"'Population 2016'!AN81/'Population 2016'!AN$6","v":0},{"$f":"'Population 2016'!AO81/'Population 2016'!AO$6","v":0},{"$f":"'Population 2016'!AP81/'Population 2016'!AP$6","v":0},{"$f":"'Population 2016'!AQ81/'Population 2016'!AQ$6","v":0},{"$f":"'Population 2016'!AR81/'Population 2016'!AR$6","v":0},{"$f":"'Population 2016'!AS81/'Population 2016'!AS$6","v":0},{"$f":"'Population 2016'!AT81/'Population 2016'!AT$6","v":0},{"$f":"'Population 2016'!AU81/'Population 2016'!AU$6","v":0},{"$f":"'Population 2016'!AV81/'Population 2016'!AV$6","v":0},{"$f":"'Population 2016'!AW81/'Population 2016'!AW$6","v":0},{"$f":"'Population 2016'!AX81/'Population 2016'!AX$6","v":0},{"$f":"'Population 2016'!AY81/'Population 2016'!AY$6","v":0},{"$f":"'Population 2016'!AZ81/'Population 2016'!AZ$6","v":0},{"$f":"'Population 2016'!BA81/'Population 2016'!BA$6","v":0},{"$f":"'Population 2016'!BB81/'Population 2016'!BB$6","v":0},{"$f":"'Population 2016'!BC81/'Population 2016'!BC$6","v":0},79]
[null,"Male 16-19",{"$f":"'Population 2016'!C82/'Population 2016'!C$6","v":6.7596643477013559E-3},{"$f":"'Population 2016'!D82/'Population 2016'!D$6","v":6.0942118065545475E-3},{"$f":"'Population 2016'!E82/'Population 2016'!E$6","v":4.300763506330337E-3},{"$f":"'Population 2016'!F82/'Population 2016'!F$6","v":1.0430191292305029E-2},{"$f":"'Population 2016'!G82/'Population 2016'!G$6","v":9.9630583230717572E-3},{"$f":"'Population 2016'!H82/'Population 2016'!H$6","v":1.6343006373832111E-2},{"$f":"'Population 2016'!I82/'Population 2016'!I$6","v":8.5947363309701857E-3},{"$f":"'Population 2016'!J82/'Population 2016'!J$6","v":1.6287638761763947E-2},{"$f":"'Population 2016'!K82/'Population 2016'!K$6","v":1.6260935717002663E-2},{"$f":"'Population 2016'!L82/'Population 2016'!L$6","v":6.5701260391525882E-3},{"$f":"'Population 2016'!M82/'Population 2016'!M$6","v":6.5701260391525882E-3},{"$f":"'Population 2016'!N82/'Population 2016'!N$6","v":1.7218309341410696E-2},{"$f":"'Population 2016'!O82/'Population 2016'!O$6","v":1.615009277712872E-2},{"$f":"'Population 2016'!P82/'Population 2016'!P$6","v":7.1893006290638054E-3},{"$f":"'Population 2016'!Q82/'Population 2016'!Q$6","v":3.3866995073891628E-3},{"$f":"'Population 2016'!R82/'Population 2016'!R$6","v":1.3914973535939901E-2},{"$f":"'Population 2016'!S82/'Population 2016'!S$6","v":1.1818832268858048E-2},{"$f":"'Population 2016'!T82/'Population 2016'!T$6","v":1.2651399576881906E-2},{"$f":"'Population 2016'!U82/'Population 2016'!U$6","v":0},{"$f":"'Population 2016'!V82/'Population 2016'!V$6","v":8.8730203619909499E-3},{"$f":"'Population 2016'!W82/'Population 2016'!W$6","v":1.4789637305699483E-2},{"$f":"'Population 2016'!X82/'Population 2016'!X$6","v":1.4789637305699483E-2},{"$f":"'Population 2016'!Y82/'Population 2016'!Y$6","v":1.2058274940767253E-2},{"$f":"'Population 2016'!Z82/'Population 2016'!Z$6","v":2.0650096764099152E-2},{"$f":"'Population 2016'!AA82/'Population 2016'!AA$6","v":1.7466894142497361E-2},{"$f":"'Population 2016'!AB82/'Population 2016'!AB$6","v":5.4840301453436208E-3},{"$f":"'Population 2016'!AC82/'Population 2016'!AC$6","v":1.9018958655114323E-2},{"$f":"'Population 2016'!AD82/'Population 2016'!AD$6","v":8.6991256491056775E-3},{"$f":"'Population 2016'!AE82/'Population 2016'!AE$6","v":8.2450177971725627E-3},{"$f":"'Population 2016'!AF82/'Population 2016'!AF$6","v":2.1407235313640891E-2},{"$f":"'Population 2016'!AG82/'Population 2016'!AG$6","v":8.2450177971725627E-3},{"$f":"'Population 2016'!AH82/'Population 2016'!AH$6","v":1.4677346609840604E-2},{"$f":"'Population 2016'!AI82/'Population 2016'!AI$6","v":1.0596935593901321E-2},{"$f":"'Population 2016'!AJ82/'Population 2016'!AJ$6","v":6.3508621218629196E-3},{"$f":"'Population 2016'!AK82/'Population 2016'!AK$6","v":1.8107384663832468E-3},{"$f":"'Population 2016'!AL82/'Population 2016'!AL$6","v":2.0281873630603423E-2},{"$f":"'Population 2016'!AM82/'Population 2016'!AM$6","v":1.6654465592972182E-2},{"$f":"'Population 2016'!AN82/'Population 2016'!AN$6","v":0},{"$f":"'Population 2016'!AO82/'Population 2016'!AO$6","v":0},{"$f":"'Population 2016'!AP82/'Population 2016'!AP$6","v":8.2065556462062681E-3},{"$f":"'Population 2016'!AQ82/'Population 2016'!AQ$6","v":1.5720909693088984E-2},{"$f":"'Population 2016'!AR82/'Population 2016'!AR$6","v":1.4333062411191986E-2},{"$f":"'Population 2016'!AS82/'Population 2016'!AS$6","v":8.5947363309701857E-3},{"$f":"'Population 2016'!AT82/'Population 2016'!AT$6","v":0},{"$f":"'Population 2016'!AU82/'Population 2016'!AU$6","v":0},{"$f":"'Population 2016'!AV82/'Population 2016'!AV$6","v":1.0270463481472656E-2},{"$f":"'Population 2016'!AW82/'Population 2016'!AW$6","v":1.2023030491650218E-2},{"$f":"'Population 2016'!AX82/'Population 2016'!AX$6","v":1.6313667330954258E-2},{"$f":"'Population 2016'!AY82/'Population 2016'!AY$6","v":1.4476925921307782E-2},{"$f":"'Population 2016'!AZ82/'Population 2016'!AZ$6","v":1.4139988566528513E-2},{"$f":"'Population 2016'!BA82/'Population 2016'!BA$6","v":1.6715478253939792E-2},{"$f":"'Population 2016'!BB82/'Population 2016'!BB$6","v":1.192559465940761E-2},{"$f":"'Population 2016'!BC82/'Population 2016'!BC$6","v":0},80]
[null,"Male 20-24",{"$f":"'Population 2016'!C83/'Population 2016'!C$6","v":1.1044968801549164E-2},{"$f":"'Population 2016'!D83/'Population 2016'!D$6","v":1.1089896163000549E-2},{"$f":"'Population 2016'!E83/'Population 2016'!E$6","v":1.1210979027737508E-2},{"$f":"'Population 2016'!F83/'Population 2016'!F$6","v":1.4714792694538216E-2},{"$f":"'Population 2016'!G83/'Population 2016'!G$6","v":1.5616254337848428E-2},{"$f":"'Population 2016'!H83/'Population 2016'!H$6","v":2.2907636077439973E-2},{"$f":"'Population 2016'!I83/'Population 2016'!I$6","v":1.0245702631834514E-2},{"$f":"'Population 2016'!J83/'Population 2016'!J$6","v":2.0817198244502334E-2},{"$f":"'Population 2016'!K83/'Population 2016'!K$6","v":2.0302396348421452E-2},{"$f":"'Population 2016'!L83/'Population 2016'!L$6","v":9.8104943237686607E-3},{"$f":"'Population 2016'!M83/'Population 2016'!M$6","v":9.8104943237686607E-3},{"$f":"'Population 2016'!N83/'Population 2016'!N$6","v":2.8422708759134819E-2},{"$f":"'Population 2016'!O83/'Population 2016'!O$6","v":2.231805374201086E-2},{"$f":"'Population 2016'!P83/'Population 2016'!P$6","v":8.9337632817042874E-3},{"$f":"'Population 2016'!Q83/'Population 2016'!Q$6","v":4.5797413793103444E-3},{"$f":"'Population 2016'!R83/'Population 2016'!R$6","v":1.6561379545842581E-2},{"$f":"'Population 2016'!S83/'Population 2016'!S$6","v":1.6169677711255378E-2},{"$f":"'Population 2016'!T83/'Population 2016'!T$6","v":1.8526166735500619E-2},{"$f":"'Population 2016'!U83/'Population 2016'!U$6","v":0},{"$f":"'Population 2016'!V83/'Population 2016'!V$6","v":1.3026725113122173E-2},{"$f":"'Population 2016'!W83/'Population 2016'!W$6","v":1.9059067357512952E-2},{"$f":"'Population 2016'!X83/'Population 2016'!X$6","v":1.9059067357512952E-2},{"$f":"'Population 2016'!Y83/'Population 2016'!Y$6","v":1.6373443565055198E-2},{"$f":"'Population 2016'!Z83/'Population 2016'!Z$6","v":3.2228369350237429E-2},{"$f":"'Population 2016'!AA83/'Population 2016'!AA$6","v":2.6033483942331126E-2},{"$f":"'Population 2016'!AB83/'Population 2016'!AB$6","v":9.7792930199174597E-3},{"$f":"'Population 2016'!AC83/'Population 2016'!AC$6","v":2.9186913742593364E-2},{"$f":"'Population 2016'!AD83/'Population 2016'!AD$6","v":1.2501294512745403E-2},{"$f":"'Population 2016'!AE83/'Population 2016'!AE$6","v":1.1382146519999196E-2},{"$f":"'Population 2016'!AF83/'Population 2016'!AF$6","v":3.0479035291514547E-2},{"$f":"'Population 2016'!AG83/'Population 2016'!AG$6","v":1.1382146519999196E-2},{"$f":"'Population 2016'!AH83/'Population 2016'!AH$6","v":2.0365779895741194E-2},{"$f":"'Population 2016'!AI83/'Population 2016'!AI$6","v":1.5221585606247671E-2},{"$f":"'Population 2016'!AJ83/'Population 2016'!AJ$6","v":1.0155243296312205E-2},{"$f":"'Population 2016'!AK83/'Population 2016'!AK$6","v":1.8894662257912141E-3},{"$f":"'Population 2016'!AL83/'Population 2016'!AL$6","v":2.771362586605081E-2},{"$f":"'Population 2016'!AM83/'Population 2016'!AM$6","v":2.2858711566617864E-2},{"$f":"'Population 2016'!AN83/'Population 2016'!AN$6","v":0},{"$f":"'Population 2016'!AO83/'Population 2016'!AO$6","v":0},{"$f":"'Population 2016'!AP83/'Population 2016'!AP$6","v":1.4829390027355185E-2},{"$f":"'Population 2016'!AQ83/'Population 2016'!AQ$6","v":2.5701037756679177E-2},{"$f":"'Population 2016'!AR83/'Population 2016'!AR$6","v":2.1014364148748691E-2},{"$f":"'Population 2016'!AS83/'Population 2016'!AS$6","v":1.0245702631834514E-2},{"$f":"'Population 2016'!AT83/'Population 2016'!AT$6","v":0},{"$f":"'Population 2016'!AU83/'Population 2016'!AU$6","v":0},{"$f":"'Population 2016'!AV83/'Population 2016'!AV$6","v":1.598951507208388E-2},{"$f":"'Population 2016'!AW83/'Population 2016'!AW$6","v":1.7018976404393156E-2},{"$f":"'Population 2016'!AX83/'Population 2016'!AX$6","v":2.1318997080224313E-2},{"$f":"'Population 2016'!AY83/'Population 2016'!AY$6","v":2.0986597986903263E-2},{"$f":"'Population 2016'!AZ83/'Population 2016'!AZ$6","v":2.3063455766757182E-2},{"$f":"'Population 2016'!BA83/'Population 2016'!BA$6","v":2.3608869762715916E-2},{"$f":"'Population 2016'!BB83/'Population 2016'!BB$6","v":1.6025017823578975E-2},{"$f":"'Population 2016'!BC83/'Population 2016'!BC$6","v":0},81]
[null,"Male 25-29",{"$f":"'Population 2016'!C84/'Population 2016'!C$6","v":1.8539769059743239E-2},{"$f":"'Population 2016'!D84/'Population 2016'!D$6","v":1.6961786937985508E-2},{"$f":"'Population 2016'!E84/'Population 2016'!E$6","v":1.2708997777133468E-2},{"$f":"'Population 2016'!F84/'Population 2016'!F$6","v":1.3589543841426469E-2},{"$f":"'Population 2016'!G84/'Population 2016'!G$6","v":1.2593753498264861E-2},{"$f":"'Population 2016'!H84/'Population 2016'!H$6","v":2.2055009331194812E-2},{"$f":"'Population 2016'!I84/'Population 2016'!I$6","v":7.6721375157812952E-3},{"$f":"'Population 2016'!J84/'Population 2016'!J$6","v":2.0300875401910393E-2},{"$f":"'Population 2016'!K84/'Population 2016'!K$6","v":1.6451122099657666E-2},{"$f":"'Population 2016'!L84/'Population 2016'!L$6","v":1.1084294270134978E-2},{"$f":"'Population 2016'!M84/'Population 2016'!M$6","v":1.1084294270134978E-2},{"$f":"'Population 2016'!N84/'Population 2016'!N$6","v":3.9921186901733595E-2},{"$f":"'Population 2016'!O84/'Population 2016'!O$6","v":2.202597759604151E-2},{"$f":"'Population 2016'!P84/'Population 2016'!P$6","v":8.6165882539514724E-3},{"$f":"'Population 2016'!Q84/'Population 2016'!Q$6","v":4.0409482758620692E-3},{"$f":"'Population 2016'!R84/'Population 2016'!R$6","v":1.6732115417449206E-2},{"$f":"'Population 2016'!S84/'Population 2016'!S$6","v":1.9226317616978295E-2},{"$f":"'Population 2016'!T84/'Population 2016'!T$6","v":2.8109538700134017E-2},{"$f":"'Population 2016'!U84/'Population 2016'!U$6","v":0},{"$f":"'Population 2016'!V84/'Population 2016'!V$6","v":1.4705882352941176E-2},{"$f":"'Population 2016'!W84/'Population 2016'!W$6","v":2.0236269430051815E-2},{"$f":"'Population 2016'!X84/'Population 2016'!X$6","v":2.0236269430051815E-2},{"$f":"'Population 2016'!Y84/'Population 2016'!Y$6","v":1.7109441951908052E-2},{"$f":"'Population 2016'!Z84/'Population 2016'!Z$6","v":4.1090563297696191E-2},{"$f":"'Population 2016'!AA84/'Population 2016'!AA$6","v":2.9741839929507491E-2},{"$f":"'Population 2016'!AB84/'Population 2016'!AB$6","v":1.4680154315449489E-2},{"$f":"'Population 2016'!AC84/'Population 2016'!AC$6","v":3.5460427260312878E-2},{"$f":"'Population 2016'!AD84/'Population 2016'!AD$6","v":1.2161022591096712E-2},{"$f":"'Population 2016'!AE84/'Population 2016'!AE$6","v":1.2005550304663463E-2},{"$f":"'Population 2016'!AF84/'Population 2016'!AF$6","v":3.0727956632370837E-2},{"$f":"'Population 2016'!AG84/'Population 2016'!AG$6","v":1.2005550304663463E-2},{"$f":"'Population 2016'!AH84/'Population 2016'!AH$6","v":1.9463741919243126E-2},{"$f":"'Population 2016'!AI84/'Population 2016'!AI$6","v":1.9712309102399378E-2},{"$f":"'Population 2016'!AJ84/'Population 2016'!AJ$6","v":7.8235258022949002E-3},{"$f":"'Population 2016'!AK84/'Population 2016'!AK$6","v":9.4473311289560704E-4},{"$f":"'Population 2016'!AL84/'Population 2016'!AL$6","v":2.5270918457985434E-2},{"$f":"'Population 2016'!AM84/'Population 2016'!AM$6","v":2.1803318692044899E-2},{"$f":"'Population 2016'!AN84/'Population 2016'!AN$6","v":0},{"$f":"'Population 2016'!AO84/'Population 2016'!AO$6","v":0},{"$f":"'Population 2016'!AP84/'Population 2016'!AP$6","v":2.1260258194557759E-2},{"$f":"'Population 2016'!AQ84/'Population 2016'!AQ$6","v":3.0381982777655112E-2},{"$f":"'Population 2016'!AR84/'Population 2016'!AR$6","v":2.4077781407657185E-2},{"$f":"'Population 2016'!AS84/'Population 2016'!AS$6","v":7.6721375157812952E-3},{"$f":"'Population 2016'!AT84/'Population 2016'!AT$6","v":0},{"$f":"'Population 2016'!AU84/'Population 2016'!AU$6","v":0},{"$f":"'Population 2016'!AV84/'Population 2016'!AV$6","v":1.6918860955558203E-2},{"$f":"'Population 2016'!AW84/'Population 2016'!AW$6","v":1.6322820006715862E-2},{"$f":"'Population 2016'!AX84/'Population 2016'!AX$6","v":2.4053390183992215E-2},{"$f":"'Population 2016'!AY84/'Population 2016'!AY$6","v":2.5423838126727924E-2},{"$f":"'Population 2016'!AZ84/'Population 2016'!AZ$6","v":3.1013291410604545E-2},{"$f":"'Population 2016'!BA84/'Population 2016'!BA$6","v":2.3310023310023312E-2},{"$f":"'Population 2016'!BB84/'Population 2016'!BB$6","v":1.6446302417525441E-2},{"$f":"'Population 2016'!BC84/'Population 2016'!BC$6","v":0},82]
[null,"Male 30-34",{"$f":"'Population 2016'!C85/'Population 2016'!C$6","v":1.5545434985297282E-2},{"$f":"'Population 2016'!D85/'Population 2016'!D$6","v":1.4908586822901682E-2},{"$f":"'Population 2016'!E85/'Population 2016'!E$6","v":1.3192229631777326E-2},{"$f":"'Population 2016'!F85/'Population 2016'!F$6","v":1.116593092703194E-2},{"$f":"'Population 2016'!G85/'Population 2016'!G$6","v":9.8511138475316246E-3},{"$f":"'Population 2016'!H85/'Population 2016'!H$6","v":1.9443467269269068E-2},{"$f":"'Population 2016'!I85/'Population 2016'!I$6","v":8.4490628338350984E-3},{"$f":"'Population 2016'!J85/'Population 2016'!J$6","v":1.7813138069421953E-2},{"$f":"'Population 2016'!K85/'Population 2016'!K$6","v":1.7259414225941423E-2},{"$f":"'Population 2016'!L85/'Population 2016'!L$6","v":7.7321891481183513E-3},{"$f":"'Population 2016'!M85/'Population 2016'!M$6","v":7.7321891481183513E-3},{"$f":"'Population 2016'!N85/'Population 2016'!N$6","v":3.1319384199150112E-2},{"$f":"'Population 2016'!O85/'Population 2016'!O$6","v":1.917393993539963E-2},{"$f":"'Population 2016'!P85/'Population 2016'!P$6","v":7.0835756198128668E-3},{"$f":"'Population 2016'!Q85/'Population 2016'!Q$6","v":4.2333743842364532E-3},{"$f":"'Population 2016'!R85/'Population 2016'!R$6","v":1.570770018780946E-2},{"$f":"'Population 2016'!S85/'Population 2016'!S$6","v":1.7411273266764171E-2},{"$f":"'Population 2016'!T85/'Population 2016'!T$6","v":2.4282932832109774E-2},{"$f":"'Population 2016'!U85/'Population 2016'!U$6","v":0},{"$f":"'Population 2016'!V85/'Population 2016'!V$6","v":1.35039592760181E-2},{"$f":"'Population 2016'!W85/'Population 2016'!W$6","v":1.8959585492227978E-2},{"$f":"'Population 2016'!X85/'Population 2016'!X$6","v":1.8959585492227978E-2},{"$f":"'Population 2016'!Y85/'Population 2016'!Y$6","v":1.5355144427080707E-2},{"$f":"'Population 2016'!Z85/'Population 2016'!Z$6","v":3.5980446664296936E-2},{"$f":"'Population 2016'!AA85/'Population 2016'!AA$6","v":2.7014629695594844E-2},{"$f":"'Population 2016'!AB85/'Population 2016'!AB$6","v":1.2885788623721514E-2},{"$f":"'Population 2016'!AC85/'Population 2016'!AC$6","v":3.1692428598662427E-2},{"$f":"'Population 2016'!AD85/'Population 2016'!AD$6","v":1.1776367375319929E-2},{"$f":"'Population 2016'!AE85/'Population 2016'!AE$6","v":1.2468075693285337E-2},{"$f":"'Population 2016'!AF85/'Population 2016'!AF$6","v":2.8930191392853192E-2},{"$f":"'Population 2016'!AG85/'Population 2016'!AG$6","v":1.2468075693285337E-2},{"$f":"'Population 2016'!AH85/'Population 2016'!AH$6","v":1.860715546869264E-2},{"$f":"'Population 2016'!AI85/'Population 2016'!AI$6","v":1.7402076698041745E-2},{"$f":"'Population 2016'!AJ85/'Population 2016'!AJ$6","v":8.6212186291955567E-3},{"$f":"'Population 2016'!AK85/'Population 2016'!AK$6","v":7.0854983467170528E-4},{"$f":"'Population 2016'!AL85/'Population 2016'!AL$6","v":2.2946645348492924E-2},{"$f":"'Population 2016'!AM85/'Population 2016'!AM$6","v":2.0558809175207419E-2},{"$f":"'Population 2016'!AN85/'Population 2016'!AN$6","v":0},{"$f":"'Population 2016'!AO85/'Population 2016'!AO$6","v":0},{"$f":"'Population 2016'!AP85/'Population 2016'!AP$6","v":1.4877381580841773E-2},{"$f":"'Population 2016'!AQ85/'Population 2016'!AQ$6","v":2.8571428571428571E-2},{"$f":"'Population 2016'!AR85/'Population 2016'!AR$6","v":2.1481224417357253E-2},{"$f":"'Population 2016'!AS85/'Population 2016'!AS$6","v":8.4490628338350984E-3},{"$f":"'Population 2016'!AT85/'Population 2016'!AT$6","v":0},{"$f":"'Population 2016'!AU85/'Population 2016'!AU$6","v":0},{"$f":"'Population 2016'!AV85/'Population 2016'!AV$6","v":1.4178482068390326E-2},{"$f":"'Population 2016'!AW85/'Population 2016'!AW$6","v":1.5987026920777404E-2},{"$f":"'Population 2016'!AX85/'Population 2016'!AX$6","v":1.8352875747323538E-2},{"$f":"'Population 2016'!AY85/'Population 2016'!AY$6","v":2.1433761721924353E-2},{"$f":"'Population 2016'!AZ85/'Population 2016'!AZ$6","v":2.4099614120337287E-2},{"$f":"'Population 2016'!BA85/'Population 2016'!BA$6","v":2.2792022792022793E-2},{"$f":"'Population 2016'!BB85/'Population 2016'!BB$6","v":1.4356082701406443E-2},{"$f":"'Population 2016'!BC85/'Population 2016'!BC$6","v":0},83]
[null,"Male 35-39",{"$f":"'Population 2016'!C86/'Population 2016'!C$6","v":1.4810299074804561E-2},{"$f":"'Population 2016'!D86/'Population 2016'!D$6","v":1.3509272094787226E-2},{"$f":"'Population 2016'!E86/'Population 2016'!E$6","v":1.0002899391127864E-2},{"$f":"'Population 2016'!F86/'Population 2016'!F$6","v":1.1079373322946421E-2},{"$f":"'Population 2016'!G86/'Population 2016'!G$6","v":8.3958356655099067E-3},{"$f":"'Population 2016'!H86/'Population 2016'!H$6","v":1.7374505864044789E-2},{"$f":"'Population 2016'!I86/'Population 2016'!I$6","v":9.080314654753811E-3},{"$f":"'Population 2016'!J86/'Population 2016'!J$6","v":1.5419277617404773E-2},{"$f":"'Population 2016'!K86/'Population 2016'!K$6","v":1.7211867630277673E-2},{"$f":"'Population 2016'!L86/'Population 2016'!L$6","v":6.6595155090730315E-3},{"$f":"'Population 2016'!M86/'Population 2016'!M$6","v":6.6595155090730315E-3},{"$f":"'Population 2016'!N86/'Population 2016'!N$6","v":2.2541134261641841E-2},{"$f":"'Population 2016'!O86/'Population 2016'!O$6","v":1.6287540375231942E-2},{"$f":"'Population 2016'!P86/'Population 2016'!P$6","v":7.1893006290638054E-3},{"$f":"'Population 2016'!Q86/'Population 2016'!Q$6","v":3.3097290640394087E-3},{"$f":"'Population 2016'!R86/'Population 2016'!R$6","v":1.4085709407546526E-2},{"$f":"'Population 2016'!S86/'Population 2016'!S$6","v":1.6093393238565221E-2},{"$f":"'Population 2016'!T86/'Population 2016'!T$6","v":2.2083055890360154E-2},{"$f":"'Population 2016'!U86/'Population 2016'!U$6","v":0},{"$f":"'Population 2016'!V86/'Population 2016'!V$6","v":1.2743919683257918E-2},{"$f":"'Population 2016'!W86/'Population 2016'!W$6","v":1.7600000000000001E-2},{"$f":"'Population 2016'!X86/'Population 2016'!X$6","v":1.7600000000000001E-2},{"$f":"'Population 2016'!Y86/'Population 2016'!Y$6","v":1.3893229823057922E-2},{"$f":"'Population 2016'!Z86/'Population 2016'!Z$6","v":2.9348232270295396E-2},{"$f":"'Population 2016'!AA86/'Population 2016'!AA$6","v":2.3136291768999544E-2},{"$f":"'Population 2016'!AB86/'Population 2016'!AB$6","v":1.1876457922124529E-2},{"$f":"'Population 2016'!AC86/'Population 2016'!AC$6","v":2.5984990254169699E-2},{"$f":"'Population 2016'!AD86/'Population 2016'!AD$6","v":9.0541920021303974E-3},{"$f":"'Population 2016'!AE86/'Population 2016'!AE$6","v":9.290727371448107E-3},{"$f":"'Population 2016'!AF86/'Population 2016'!AF$6","v":2.2983737139064056E-2},{"$f":"'Population 2016'!AG86/'Population 2016'!AG$6","v":9.290727371448107E-3},{"$f":"'Population 2016'!AH86/'Population 2016'!AH$6","v":1.801628563137414E-2},{"$f":"'Population 2016'!AI86/'Population 2016'!AI$6","v":1.5937255427162809E-2},{"$f":"'Population 2016'!AJ86/'Population 2016'!AJ$6","v":7.3019574154752406E-3},{"$f":"'Population 2016'!AK86/'Population 2016'!AK$6","v":2.0469217446071487E-3},{"$f":"'Population 2016'!AL86/'Population 2016'!AL$6","v":2.0489133653105941E-2},{"$f":"'Population 2016'!AM86/'Population 2016'!AM$6","v":1.9363103953147876E-2},{"$f":"'Population 2016'!AN86/'Population 2016'!AN$6","v":0},{"$f":"'Population 2016'!AO86/'Population 2016'!AO$6","v":0},{"$f":"'Population 2016'!AP86/'Population 2016'!AP$6","v":1.463742381340884E-2},{"$f":"'Population 2016'!AQ86/'Population 2016'!AQ$6","v":2.369912416280268E-2},{"$f":"'Population 2016'!AR86/'Population 2016'!AR$6","v":1.8642759200708091E-2},{"$f":"'Population 2016'!AS86/'Population 2016'!AS$6","v":9.080314654753811E-3},{"$f":"'Population 2016'!AT86/'Population 2016'!AT$6","v":0},{"$f":"'Population 2016'!AU86/'Population 2016'!AU$6","v":0},{"$f":"'Population 2016'!AV86/'Population 2016'!AV$6","v":1.3868700107232217E-2},{"$f":"'Population 2016'!AW86/'Population 2016'!AW$6","v":1.6208158952980778E-2},{"$f":"'Population 2016'!AX86/'Population 2016'!AX$6","v":1.3671965518839506E-2},{"$f":"'Population 2016'!AY86/'Population 2016'!AY$6","v":1.8131629524845535E-2},{"$f":"'Population 2016'!AZ86/'Population 2016'!AZ$6","v":1.8704444762040875E-2},{"$f":"'Population 2016'!BA86/'Population 2016'!BA$6","v":1.9046480584942124E-2},{"$f":"'Population 2016'!BB86/'Population 2016'!BB$6","v":1.399961112191328E-2},{"$f":"'Population 2016'!BC86/'Population 2016'!BC$6","v":0},84]
[null,"Male 40-44",{"$f":"'Population 2016'!C87/'Population 2016'!C$6","v":1.2102847306892348E-2},{"$f":"'Population 2016'!D87/'Population 2016'!D$6","v":1.1599926764836659E-2},{"$f":"'Population 2016'!E87/'Population 2016'!E$6","v":1.0244515318449792E-2},{"$f":"'Population 2016'!F87/'Population 2016'!F$6","v":1.0862979312732623E-2},{"$f":"'Population 2016'!G87/'Population 2016'!G$6","v":9.3473637076010307E-3},{"$f":"'Population 2016'!H87/'Population 2016'!H$6","v":1.8972435710154605E-2},{"$f":"'Population 2016'!I87/'Population 2016'!I$6","v":9.2259881518889E-3},{"$f":"'Population 2016'!J87/'Population 2016'!J$6","v":1.4856016334577202E-2},{"$f":"'Population 2016'!K87/'Population 2016'!K$6","v":1.6736401673640166E-2},{"$f":"'Population 2016'!L87/'Population 2016'!L$6","v":7.6204523107177976E-3},{"$f":"'Population 2016'!M87/'Population 2016'!M$6","v":7.6204523107177976E-3},{"$f":"'Population 2016'!N87/'Population 2016'!N$6","v":1.9056301371877252E-2},{"$f":"'Population 2016'!O87/'Population 2016'!O$6","v":1.929420658373995E-2},{"$f":"'Population 2016'!P87/'Population 2016'!P$6","v":7.1893006290638054E-3},{"$f":"'Population 2016'!Q87/'Population 2016'!Q$6","v":5.1185344827586205E-3},{"$f":"'Population 2016'!R87/'Population 2016'!R$6","v":1.4427181150759775E-2},{"$f":"'Population 2016'!S87/'Population 2016'!S$6","v":1.5648838897715674E-2},{"$f":"'Population 2016'!T87/'Population 2016'!T$6","v":1.9975894068760904E-2},{"$f":"'Population 2016'!U87/'Population 2016'!U$6","v":0},{"$f":"'Population 2016'!V87/'Population 2016'!V$6","v":1.3327205882352941E-2},{"$f":"'Population 2016'!W87/'Population 2016'!W$6","v":1.7425906735751295E-2},{"$f":"'Population 2016'!X87/'Population 2016'!X$6","v":1.7425906735751295E-2},{"$f":"'Population 2016'!Y87/'Population 2016'!Y$6","v":1.3983969350204163E-2},{"$f":"'Population 2016'!Z87/'Population 2016'!Z$6","v":2.6370875373308907E-2},{"$f":"'Population 2016'!AA87/'Population 2016'!AA$6","v":2.1682696213527312E-2},{"$f":"'Population 2016'!AB87/'Population 2016'!AB$6","v":1.0283958370715952E-2},{"$f":"'Population 2016'!AC87/'Population 2016'!AC$6","v":2.3586465551116004E-2},{"$f":"'Population 2016'!AD87/'Population 2016'!AD$6","v":1.0356101963221044E-2},{"$f":"'Population 2016'!AE87/'Population 2016'!AE$6","v":1.0718523136324331E-2},{"$f":"'Population 2016'!AF87/'Population 2016'!AF$6","v":2.3619869454585683E-2},{"$f":"'Population 2016'!AG87/'Population 2016'!AG$6","v":1.0718523136324331E-2},{"$f":"'Population 2016'!AH87/'Population 2016'!AH$6","v":1.8261024617245707E-2},{"$f":"'Population 2016'!AI87/'Population 2016'!AI$6","v":1.5305289678869325E-2},{"$f":"'Population 2016'!AJ87/'Population 2016'!AJ$6","v":8.1916917224028954E-3},{"$f":"'Population 2016'!AK87/'Population 2016'!AK$6","v":2.3618327822390174E-3},{"$f":"'Population 2016'!AL87/'Population 2016'!AL$6","v":2.2073192396518032E-2},{"$f":"'Population 2016'!AM87/'Population 2016'!AM$6","v":1.9521717911176184E-2},{"$f":"'Population 2016'!AN87/'Population 2016'!AN$6","v":0},{"$f":"'Population 2016'!AO87/'Population 2016'!AO$6","v":0},{"$f":"'Population 2016'!AP87/'Population 2016'!AP$6","v":1.2093871478619763E-2},{"$f":"'Population 2016'!AQ87/'Population 2016'!AQ$6","v":2.0725693677780231E-2},{"$f":"'Population 2016'!AR87/'Population 2016'!AR$6","v":1.7873513649162988E-2},{"$f":"'Population 2016'!AS87/'Population 2016'!AS$6","v":9.2259881518889E-3},{"$f":"'Population 2016'!AT87/'Population 2016'!AT$6","v":0},{"$f":"'Population 2016'!AU87/'Population 2016'!AU$6","v":0},{"$f":"'Population 2016'!AV87/'Population 2016'!AV$6","v":1.3535088764446562E-2},{"$f":"'Population 2016'!AW87/'Population 2016'!AW$6","v":1.6568522264719613E-2},{"$f":"'Population 2016'!AX87/'Population 2016'!AX$6","v":1.3023126477267461E-2},{"$f":"'Population 2016'!AY87/'Population 2016'!AY$6","v":1.6772939714589145E-2},{"$f":"'Population 2016'!AZ87/'Population 2016'!AZ$6","v":1.6069386880091466E-2},{"$f":"'Population 2016'!BA87/'Population 2016'!BA$6","v":1.7492479030940568E-2},{"$f":"'Population 2016'!BB87/'Population 2016'!BB$6","v":1.4372285955019768E-2},{"$f":"'Population 2016'!BC87/'Population 2016'!BC$6","v":0},85]
[null,"Male 45-49",{"$f":"'Population 2016'!C88/'Population 2016'!C$6","v":1.1224270243132755E-2},{"$f":"'Population 2016'!D88/'Population 2016'!D$6","v":1.0658331807600764E-2},{"$f":"'Population 2016'!E88/'Population 2016'!E$6","v":9.1330820527689184E-3},{"$f":"'Population 2016'!F88/'Population 2016'!F$6","v":1.198822816584437E-2},{"$f":"'Population 2016'!G88/'Population 2016'!G$6","v":1.1362364267323408E-2},{"$f":"'Population 2016'!H88/'Population 2016'!H$6","v":2.1488578975297674E-2},{"$f":"'Population 2016'!I88/'Population 2016'!I$6","v":1.2236573759347382E-2},{"$f":"'Population 2016'!J88/'Population 2016'!J$6","v":1.8305991691896079E-2},{"$f":"'Population 2016'!K88/'Population 2016'!K$6","v":2.0207303157093952E-2},{"$f":"'Population 2016'!L88/'Population 2016'!L$6","v":9.0730311969250028E-3},{"$f":"'Population 2016'!M88/'Population 2016'!M$6","v":9.0730311969250028E-3},{"$f":"'Population 2016'!N88/'Population 2016'!N$6","v":2.390860033230896E-2},{"$f":"'Population 2016'!O88/'Population 2016'!O$6","v":2.1991615696515702E-2},{"$f":"'Population 2016'!P88/'Population 2016'!P$6","v":9.7795633557117932E-3},{"$f":"'Population 2016'!Q88/'Population 2016'!Q$6","v":3.6176108374384236E-3},{"$f":"'Population 2016'!R88/'Population 2016'!R$6","v":1.5622332252006146E-2},{"$f":"'Population 2016'!S88/'Population 2016'!S$6","v":1.7416534264880733E-2},{"$f":"'Population 2016'!T88/'Population 2016'!T$6","v":1.94280319951451E-2},{"$f":"'Population 2016'!U88/'Population 2016'!U$6","v":0},{"$f":"'Population 2016'!V88/'Population 2016'!V$6","v":1.5041713800904978E-2},{"$f":"'Population 2016'!W88/'Population 2016'!W$6","v":2.1844559585492227E-2},{"$f":"'Population 2016'!X88/'Population 2016'!X$6","v":2.1844559585492227E-2},{"$f":"'Population 2016'!Y88/'Population 2016'!Y$6","v":1.6444018752835611E-2},{"$f":"'Population 2016'!Z88/'Population 2016'!Z$6","v":2.878314208372449E-2},{"$f":"'Population 2016'!AA88/'Population 2016'!AA$6","v":2.4827362092777642E-2},{"$f":"'Population 2016'!AB88/'Population 2016'!AB$6","v":9.5774268795980628E-3},{"$f":"'Population 2016'!AC88/'Population 2016'!AC$6","v":2.6895379192555042E-2},{"$f":"'Population 2016'!AD88/'Population 2016'!AD$6","v":1.0918290355510186E-2},{"$f":"'Population 2016'!AE88/'Population 2016'!AE$6","v":1.0758742735334928E-2},{"$f":"'Population 2016'!AF88/'Population 2016'!AF$6","v":3.0921562119703507E-2},{"$f":"'Population 2016'!AG88/'Population 2016'!AG$6","v":1.0758742735334928E-2},{"$f":"'Population 2016'!AH88/'Population 2016'!AH$6","v":2.1110485667036105E-2},{"$f":"'Population 2016'!AI88/'Population 2016'!AI$6","v":1.5627550358462691E-2},{"$f":"'Population 2016'!AJ88/'Population 2016'!AJ$6","v":9.4802724427808793E-3},{"$f":"'Population 2016'!AK88/'Population 2016'!AK$6","v":3.0703826169107226E-3},{"$f":"'Population 2016'!AL88/'Population 2016'!AL$6","v":2.5522591342452775E-2},{"$f":"'Population 2016'!AM88/'Population 2016'!AM$6","v":2.3102733040507566E-2},{"$f":"'Population 2016'!AN88/'Population 2016'!AN$6","v":0},{"$f":"'Population 2016'!AO88/'Population 2016'!AO$6","v":0},{"$f":"'Population 2016'!AP88/'Population 2016'!AP$6","v":1.2333829246052695E-2},{"$f":"'Population 2016'!AQ88/'Population 2016'!AQ$6","v":2.6687274600721279E-2},{"$f":"'Population 2016'!AR88/'Population 2016'!AR$6","v":2.0278465759247057E-2},{"$f":"'Population 2016'!AS88/'Population 2016'!AS$6","v":1.2236573759347382E-2},{"$f":"'Population 2016'!AT88/'Population 2016'!AT$6","v":0},{"$f":"'Population 2016'!AU88/'Population 2016'!AU$6","v":0},{"$f":"'Population 2016'!AV88/'Population 2016'!AV$6","v":1.429762897652806E-2},{"$f":"'Population 2016'!AW88/'Population 2016'!AW$6","v":1.843585942554812E-2},{"$f":"'Population 2016'!AX88/'Population 2016'!AX$6","v":1.6452704268433982E-2},{"$f":"'Population 2016'!AY88/'Population 2016'!AY$6","v":2.0616827975251207E-2},{"$f":"'Population 2016'!AZ88/'Population 2016'!AZ$6","v":1.9293983135629557E-2},{"$f":"'Population 2016'!BA88/'Population 2016'!BA$6","v":2.097902097902098E-2},{"$f":"'Population 2016'!BB88/'Population 2016'!BB$6","v":1.662453820727202E-2},{"$f":"'Population 2016'!BC88/'Population 2016'!BC$6","v":0},86]
[null,"Male 50-54",{"$f":"'Population 2016'!C89/'Population 2016'!C$6","v":1.1027038657390806E-2},{"$f":"'Population 2016'!D89/'Population 2016'!D$6","v":1.0095990374807105E-2},{"$f":"'Population 2016'!E89/'Population 2016'!E$6","v":7.5867401179085725E-3},{"$f":"'Population 2016'!F89/'Population 2016'!F$6","v":1.2637410196485762E-2},{"$f":"'Population 2016'!G89/'Population 2016'!G$6","v":1.4720698533527371E-2},{"$f":"'Population 2016'!H89/'Population 2016'!H$6","v":2.3134208219798828E-2},{"$f":"'Population 2016'!I89/'Population 2016'!I$6","v":1.2625036418374284E-2},{"$f":"'Population 2016'!J89/'Population 2016'!J$6","v":2.0206998521439132E-2},{"$f":"'Population 2016'!K89/'Population 2016'!K$6","v":2.1586154431342715E-2},{"$f":"'Population 2016'!L89/'Population 2016'!L$6","v":9.7657995888084381E-3},{"$f":"'Population 2016'!M89/'Population 2016'!M$6","v":9.7657995888084381E-3},{"$f":"'Population 2016'!N89/'Population 2016'!N$6","v":2.4482053845814526E-2},{"$f":"'Population 2016'!O89/'Population 2016'!O$6","v":2.3245825029207613E-2},{"$f":"'Population 2016'!P89/'Population 2016'!P$6","v":9.9910133742136704E-3},{"$f":"'Population 2016'!Q89/'Population 2016'!Q$6","v":5.5033866995073894E-3},{"$f":"'Population 2016'!R89/'Population 2016'!R$6","v":2.057367252859826E-2},{"$f":"'Population 2016'!S89/'Population 2016'!S$6","v":1.7177158850577131E-2},{"$f":"'Population 2016'!T89/'Population 2016'!T$6","v":2.0144467014488843E-2},{"$f":"'Population 2016'!U89/'Population 2016'!U$6","v":0},{"$f":"'Population 2016'!V89/'Population 2016'!V$6","v":1.5165441176470588E-2},{"$f":"'Population 2016'!W89/'Population 2016'!W$6","v":2.0219689119170985E-2},{"$f":"'Population 2016'!X89/'Population 2016'!X$6","v":2.0219689119170985E-2},{"$f":"'Population 2016'!Y89/'Population 2016'!Y$6","v":1.7331249684932198E-2},{"$f":"'Population 2016'!Z89/'Population 2016'!Z$6","v":2.9478871399448884E-2},{"$f":"'Population 2016'!AA89/'Population 2016'!AA$6","v":2.5609778960985395E-2},{"$f":"'Population 2016'!AB89/'Population 2016'!AB$6","v":8.9381841019199708E-3},{"$f":"'Population 2016'!AC89/'Population 2016'!AC$6","v":2.8325156691942278E-2},{"$f":"'Population 2016'!AD89/'Population 2016'!AD$6","v":1.2057461571464501E-2},{"$f":"'Population 2016'!AE89/'Population 2016'!AE$6","v":1.110060932692501E-2},{"$f":"'Population 2016'!AF89/'Population 2016'!AF$6","v":3.5540435888925768E-2},{"$f":"'Population 2016'!AG89/'Population 2016'!AG$6","v":1.110060932692501E-2},{"$f":"'Population 2016'!AH89/'Population 2016'!AH$6","v":2.0729392103321809E-2},{"$f":"'Population 2016'!AI89/'Population 2016'!AI$6","v":1.6033515110677712E-2},{"$f":"'Population 2016'!AJ89/'Population 2016'!AJ$6","v":9.3575504694115488E-3},{"$f":"'Population 2016'!AK89/'Population 2016'!AK$6","v":1.9681939851991814E-3},{"$f":"'Population 2016'!AL89/'Population 2016'!AL$6","v":2.80541244744478E-2},{"$f":"'Population 2016'!AM89/'Population 2016'!AM$6","v":2.3090531966813078E-2},{"$f":"'Population 2016'!AN89/'Population 2016'!AN$6","v":0},{"$f":"'Population 2016'!AO89/'Population 2016'!AO$6","v":0},{"$f":"'Population 2016'!AP89/'Population 2016'!AP$6","v":1.4253491385516149E-2},{"$f":"'Population 2016'!AQ89/'Population 2016'!AQ$6","v":2.6495915213071319E-2},{"$f":"'Population 2016'!AR89/'Population 2016'!AR$6","v":2.0868540965575555E-2},{"$f":"'Population 2016'!AS89/'Population 2016'!AS$6","v":1.2625036418374284E-2},{"$f":"'Population 2016'!AT89/'Population 2016'!AT$6","v":0},{"$f":"'Population 2016'!AU89/'Population 2016'!AU$6","v":0},{"$f":"'Population 2016'!AV89/'Population 2016'!AV$6","v":1.5060169188609555E-2},{"$f":"'Population 2016'!AW89/'Population 2016'!AW$6","v":1.755952137200141E-2},{"$f":"'Population 2016'!AX89/'Population 2016'!AX$6","v":1.8862677851415859E-2},{"$f":"'Population 2016'!AY89/'Population 2016'!AY$6","v":2.0178263542826678E-2},{"$f":"'Population 2016'!AZ89/'Population 2016'!AZ$6","v":2.0133628698013436E-2},{"$f":"'Population 2016'!BA89/'Population 2016'!BA$6","v":2.6756719064411374E-2},{"$f":"'Population 2016'!BB89/'Population 2016'!BB$6","v":1.6089830838032278E-2},{"$f":"'Population 2016'!BC89/'Population 2016'!BC$6","v":0},87]
[null,"Male 55-59",{"$f":"'Population 2016'!C90/'Population 2016'!C$6","v":1.0076741016997777E-2},{"$f":"'Population 2016'!D90/'Population 2016'!D$6","v":9.7298145581042553E-3},{"$f":"'Population 2016'!E90/'Population 2016'!E$6","v":8.7948197545182176E-3},{"$f":"'Population 2016'!F90/'Population 2016'!F$6","v":1.0040682073920193E-2},{"$f":"'Population 2016'!G90/'Population 2016'!G$6","v":1.1922086645024067E-2},{"$f":"'Population 2016'!H90/'Population 2016'!H$6","v":2.2532003315108188E-2},{"$f":"'Population 2016'!I90/'Population 2016'!I$6","v":9.565892978537438E-3},{"$f":"'Population 2016'!J90/'Population 2016'!J$6","v":1.9103945175901804E-2},{"$f":"'Population 2016'!K90/'Population 2016'!K$6","v":2.0349942944085205E-2},{"$f":"'Population 2016'!L90/'Population 2016'!L$6","v":8.6931259497631183E-3},{"$f":"'Population 2016'!M90/'Population 2016'!M$6","v":8.6931259497631183E-3},{"$f":"'Population 2016'!N90/'Population 2016'!N$6","v":2.3599817671190577E-2},{"$f":"'Population 2016'!O90/'Population 2016'!O$6","v":2.1716720500309258E-2},{"$f":"'Population 2016'!P90/'Population 2016'!P$6","v":9.145213300206163E-3},{"$f":"'Population 2016'!Q90/'Population 2016'!Q$6","v":4.3103448275862068E-3},{"$f":"'Population 2016'!R90/'Population 2016'!R$6","v":1.6476011610039268E-2},{"$f":"'Population 2016'!S90/'Population 2016'!S$6","v":1.4967539641620809E-2},{"$f":"'Population 2016'!T90/'Population 2016'!T$6","v":1.5879571487571961E-2},{"$f":"'Population 2016'!U90/'Population 2016'!U$6","v":0},{"$f":"'Population 2016'!V90/'Population 2016'!V$6","v":1.2849971719457013E-2},{"$f":"'Population 2016'!W90/'Population 2016'!W$6","v":2.0004145077720206E-2},{"$f":"'Population 2016'!X90/'Population 2016'!X$6","v":2.0004145077720206E-2},{"$f":"'Population 2016'!Y90/'Population 2016'!Y$6","v":1.5536623481373191E-2},{"$f":"'Population 2016'!Z90/'Population 2016'!Z$6","v":2.5793632709607446E-2},{"$f":"'Population 2016'!AA90/'Population 2016'!AA$6","v":2.2827574570201917E-2},{"$f":"'Population 2016'!AB90/'Population 2016'!AB$6","v":8.6465996770141752E-3},{"$f":"'Population 2016'!AC90/'Population 2016'!AC$6","v":2.4819770224056834E-2},{"$f":"'Population 2016'!AD90/'Population 2016'!AD$6","v":1.1051440237894457E-2},{"$f":"'Population 2016'!AE90/'Population 2016'!AE$6","v":1.073863293582963E-2},{"$f":"'Population 2016'!AF90/'Population 2016'!AF$6","v":3.1115167607036177E-2},{"$f":"'Population 2016'!AG90/'Population 2016'!AG$6","v":1.073863293582963E-2},{"$f":"'Population 2016'!AH90/'Population 2016'!AH$6","v":1.9246973103185454E-2},{"$f":"'Population 2016'!AI90/'Population 2016'!AI$6","v":1.2890427183734624E-2},{"$f":"'Population 2016'!AJ90/'Population 2016'!AJ$6","v":8.2530527090875615E-3},{"$f":"'Population 2016'!AK90/'Population 2016'!AK$6","v":2.1256495040151155E-3},{"$f":"'Population 2016'!AL90/'Population 2016'!AL$6","v":2.7535974418191507E-2},{"$f":"'Population 2016'!AM90/'Population 2016'!AM$6","v":2.0662518301610543E-2},{"$f":"'Population 2016'!AN90/'Population 2016'!AN$6","v":0},{"$f":"'Population 2016'!AO90/'Population 2016'!AO$6","v":0},{"$f":"'Population 2016'!AP90/'Population 2016'!AP$6","v":1.1182031962374621E-2},{"$f":"'Population 2016'!AQ90/'Population 2016'!AQ$6","v":2.4655921101052476E-2},{"$f":"'Population 2016'!AR90/'Population 2016'!AR$6","v":1.8793669239108194E-2},{"$f":"'Population 2016'!AS90/'Population 2016'!AS$6","v":9.565892978537438E-3},{"$f":"'Population 2016'!AT90/'Population 2016'!AT$6","v":0},{"$f":"'Population 2016'!AU90/'Population 2016'!AU$6","v":0},{"$f":"'Population 2016'!AV90/'Population 2016'!AV$6","v":1.5608244966043131E-2},{"$f":"'Population 2016'!AW90/'Population 2016'!AW$6","v":1.7346579415064824E-2},{"$f":"'Population 2016'!AX90/'Population 2016'!AX$6","v":1.7889419289057792E-2},{"$f":"'Population 2016'!AY90/'Population 2016'!AY$6","v":1.9275336770187938E-2},{"$f":"'Population 2016'!AZ90/'Population 2016'!AZ$6","v":1.8490067171644992E-2},{"$f":"'Population 2016'!BA90/'Population 2016'!BA$6","v":2.1975175821329667E-2},{"$f":"'Population 2016'!BB90/'Population 2016'!BB$6","v":1.3205651694860328E-2},{"$f":"'Population 2016'!BC90/'Population 2016'!BC$6","v":0},88]
[null,"Male 60-64",{"$f":"'Population 2016'!C91/'Population 2016'!C$6","v":9.0726529441296708E-3},{"$f":"'Population 2016'!D91/'Population 2016'!D$6","v":7.9381685978081769E-3},{"$f":"'Population 2016'!E91/'Population 2016'!E$6","v":4.8806417319029669E-3},{"$f":"'Population 2016'!F91/'Population 2016'!F$6","v":8.482645200380853E-3},{"$f":"'Population 2016'!G91/'Population 2016'!G$6","v":1.1586253218403671E-2},{"$f":"'Population 2016'!H91/'Population 2016'!H$6","v":1.9258632100502632E-2},{"$f":"'Population 2016'!I91/'Population 2016'!I$6","v":7.4779061862678452E-3},{"$f":"'Population 2016'!J91/'Population 2016'!J$6","v":1.4902954774812833E-2},{"$f":"'Population 2016'!K91/'Population 2016'!K$6","v":1.583301635602891E-2},{"$f":"'Population 2016'!L91/'Population 2016'!L$6","v":7.1958523285956914E-3},{"$f":"'Population 2016'!M91/'Population 2016'!M$6","v":7.1958523285956914E-3},{"$f":"'Population 2016'!N91/'Population 2016'!N$6","v":1.9026893499389786E-2},{"$f":"'Population 2016'!O91/'Population 2016'!O$6","v":1.7954092502233523E-2},{"$f":"'Population 2016'!P91/'Population 2016'!P$6","v":8.458000740075064E-3},{"$f":"'Population 2016'!Q91/'Population 2016'!Q$6","v":3.3482142857142855E-3},{"$f":"'Population 2016'!R91/'Population 2016'!R$6","v":1.2463718627283592E-2},{"$f":"'Population 2016'!S91/'Population 2016'!S$6","v":1.2526436515535727E-2},{"$f":"'Population 2016'!T91/'Population 2016'!T$6","v":1.3570122131099181E-2},{"$f":"'Population 2016'!U91/'Population 2016'!U$6","v":0},{"$f":"'Population 2016'!V91/'Population 2016'!V$6","v":1.1011736425339367E-2},{"$f":"'Population 2016'!W91/'Population 2016'!W$6","v":1.6729533678756476E-2},{"$f":"'Population 2016'!X91/'Population 2016'!X$6","v":1.6729533678756476E-2},{"$f":"'Population 2016'!Y91/'Population 2016'!Y$6","v":1.268336946110803E-2},{"$f":"'Population 2016'!Z91/'Population 2016'!Z$6","v":2.0786812131817919E-2},{"$f":"'Population 2016'!AA91/'Population 2016'!AA$6","v":1.8535530599873763E-2},{"$f":"'Population 2016'!AB91/'Population 2016'!AB$6","v":7.031670554458999E-3},{"$f":"'Population 2016'!AC91/'Population 2016'!AC$6","v":2.0018830266930705E-2},{"$f":"'Population 2016'!AD91/'Population 2016'!AD$6","v":9.5424082375393897E-3},{"$f":"'Population 2016'!AE91/'Population 2016'!AE$6","v":8.8080921833209331E-3},{"$f":"'Population 2016'!AF91/'Population 2016'!AF$6","v":2.6662241398384776E-2},{"$f":"'Population 2016'!AG91/'Population 2016'!AG$6","v":8.8080921833209331E-3},{"$f":"'Population 2016'!AH91/'Population 2016'!AH$6","v":1.5869575098157816E-2},{"$f":"'Population 2016'!AI91/'Population 2016'!AI$6","v":1.0839677404504117E-2},{"$f":"'Population 2016'!AJ91/'Population 2016'!AJ$6","v":7.4860403755292381E-3},{"$f":"'Population 2016'!AK91/'Population 2016'!AK$6","v":1.5745551881593449E-3},{"$f":"'Population 2016'!AL91/'Population 2016'!AL$6","v":2.3316752531533133E-2},{"$f":"'Population 2016'!AM91/'Population 2016'!AM$6","v":1.6605661298194241E-2},{"$f":"'Population 2016'!AN91/'Population 2016'!AN$6","v":0},{"$f":"'Population 2016'!AO91/'Population 2016'!AO$6","v":0},{"$f":"'Population 2016'!AP91/'Population 2016'!AP$6","v":9.3103613763977546E-3},{"$f":"'Population 2016'!AQ91/'Population 2016'!AQ$6","v":1.7605063663796276E-2},{"$f":"'Population 2016'!AR91/'Population 2016'!AR$6","v":1.5462909477715617E-2},{"$f":"'Population 2016'!AS91/'Population 2016'!AS$6","v":7.4779061862678452E-3},{"$f":"'Population 2016'!AT91/'Population 2016'!AT$6","v":0},{"$f":"'Population 2016'!AU91/'Population 2016'!AU$6","v":0},{"$f":"'Population 2016'!AV91/'Population 2016'!AV$6","v":1.4535922792803527E-2},{"$f":"'Population 2016'!AW91/'Population 2016'!AW$6","v":1.4881366759760522E-2},{"$f":"'Population 2016'!AX91/'Population 2016'!AX$6","v":1.3996385039625527E-2},{"$f":"'Population 2016'!AY91/'Population 2016'!AY$6","v":1.5917309106231483E-2},{"$f":"'Population 2016'!AZ91/'Population 2016'!AZ$6","v":1.504216092611119E-2},{"$f":"'Population 2016'!BA91/'Population 2016'!BA$6","v":1.9584404199788814E-2},{"$f":"'Population 2016'!BB91/'Population 2016'!BB$6","v":1.0515911595048286E-2},{"$f":"'Population 2016'!BC91/'Population 2016'!BC$6","v":0},89]
[null,"Male 65-69",{"$f":"'Population 2016'!C92/'Population 2016'!C$6","v":7.7996127088861798E-3},{"$f":"'Population 2016'!D92/'Population 2016'!D$6","v":7.2450500876206419E-3},{"$f":"'Population 2016'!E92/'Population 2016'!E$6","v":5.750459070261912E-3},{"$f":"'Population 2016'!F92/'Population 2016'!F$6","v":8.8721544187656889E-3},{"$f":"'Population 2016'!G92/'Population 2016'!G$6","v":9.5712526586812941E-3},{"$f":"'Population 2016'!H92/'Population 2016'!H$6","v":1.8507366575839061E-2},{"$f":"'Population 2016'!I92/'Population 2016'!I$6","v":9.7115664756725253E-3},{"$f":"'Population 2016'!J92/'Population 2016'!J$6","v":1.4550916473045601E-2},{"$f":"'Population 2016'!K92/'Population 2016'!K$6","v":1.6023202738683909E-2},{"$f":"'Population 2016'!L92/'Population 2016'!L$6","v":8.2908733351211225E-3},{"$f":"'Population 2016'!M92/'Population 2016'!M$6","v":8.2908733351211225E-3},{"$f":"'Population 2016'!N92/'Population 2016'!N$6","v":1.8085841579790912E-2},{"$f":"'Population 2016'!O92/'Population 2016'!O$6","v":1.871005429180125E-2},{"$f":"'Population 2016'!P92/'Population 2016'!P$6","v":6.7135380874345828E-3},{"$f":"'Population 2016'!Q92/'Population 2016'!Q$6","v":3.8870073891625616E-3},{"$f":"'Population 2016'!R92/'Population 2016'!R$6","v":1.161003926925047E-2},{"$f":"'Population 2016'!S92/'Population 2016'!S$6","v":1.1721503803701638E-2},{"$f":"'Population 2016'!T92/'Population 2016'!T$6","v":1.1075242534325666E-2},{"$f":"'Population 2016'!U92/'Population 2016'!U$6","v":0},{"$f":"'Population 2016'!V92/'Population 2016'!V$6","v":1.1382918552036199E-2},{"$f":"'Population 2016'!W92/'Population 2016'!W$6","v":1.6157512953367877E-2},{"$f":"'Population 2016'!X92/'Population 2016'!X$6","v":1.6157512953367877E-2},{"$f":"'Population 2016'!Y92/'Population 2016'!Y$6","v":1.2743862479205526E-2},{"$f":"'Population 2016'!Z92/'Population 2016'!Z$6","v":1.8520375146969019E-2},{"$f":"'Population 2016'!AA92/'Population 2016'!AA$6","v":1.7030690489135528E-2},{"$f":"'Population 2016'!AB92/'Population 2016'!AB$6","v":6.4260721335008073E-3},{"$f":"'Population 2016'!AC92/'Population 2016'!AC$6","v":1.7952947675979349E-2},{"$f":"'Population 2016'!AD92/'Population 2016'!AD$6","v":8.5363869039693455E-3},{"$f":"'Population 2016'!AE92/'Population 2016'!AE$6","v":8.1645785991513661E-3},{"$f":"'Population 2016'!AF92/'Population 2016'!AF$6","v":2.7049452373050117E-2},{"$f":"'Population 2016'!AG92/'Population 2016'!AG$6","v":8.1645785991513661E-3},{"$f":"'Population 2016'!AH92/'Population 2016'!AH$6","v":1.5373104583961206E-2},{"$f":"'Population 2016'!AI92/'Population 2016'!AI$6","v":9.6552647769077207E-3},{"$f":"'Population 2016'!AJ92/'Population 2016'!AJ$6","v":6.2281401484935882E-3},{"$f":"'Population 2016'!AK92/'Population 2016'!AK$6","v":1.4958274287513776E-3},{"$f":"'Population 2016'!AL92/'Population 2016'!AL$6","v":2.2058388109196424E-2},{"$f":"'Population 2016'!AM92/'Population 2016'!AM$6","v":1.6270131771595902E-2},{"$f":"'Population 2016'!AN92/'Population 2016'!AN$6","v":0},{"$f":"'Population 2016'!AO92/'Population 2016'!AO$6","v":0},{"$f":"'Population 2016'!AP92/'Population 2016'!AP$6","v":7.7266401113404038E-3},{"$f":"'Population 2016'!AQ92/'Population 2016'!AQ$6","v":1.5823949363362039E-2},{"$f":"'Population 2016'!AR92/'Population 2016'!AR$6","v":1.4450625287548622E-2},{"$f":"'Population 2016'!AS92/'Population 2016'!AS$6","v":9.7115664756725253E-3},{"$f":"'Population 2016'!AT92/'Population 2016'!AT$6","v":0},{"$f":"'Population 2016'!AU92/'Population 2016'!AU$6","v":0},{"$f":"'Population 2016'!AV92/'Population 2016'!AV$6","v":1.2510425354462052E-2},{"$f":"'Population 2016'!AW92/'Population 2016'!AW$6","v":1.4168830211549644E-2},{"$f":"'Population 2016'!AX92/'Population 2016'!AX$6","v":1.311581776892061E-2},{"$f":"'Population 2016'!AY92/'Population 2016'!AY$6","v":1.524226385240157E-2},{"$f":"'Population 2016'!AZ92/'Population 2016'!AZ$6","v":1.4256109761326283E-2},{"$f":"'Population 2016'!BA92/'Population 2016'!BA$6","v":1.627717012332397E-2},{"$f":"'Population 2016'!BB92/'Population 2016'!BB$6","v":1.1164041739581307E-2},{"$f":"'Population 2016'!BC92/'Population 2016'!BC$6","v":0},90]
[null,"Male 70-74",{"$f":"'Population 2016'!C93/'Population 2016'!C$6","v":4.5363264720648354E-3},{"$f":"'Population 2016'!D93/'Population 2016'!D$6","v":4.1848664766039809E-3},{"$f":"'Population 2016'!E93/'Population 2016'!E$6","v":3.2376534261138496E-3},{"$f":"'Population 2016'!F93/'Population 2016'!F$6","v":5.842638275772527E-3},{"$f":"'Population 2016'!G93/'Population 2016'!G$6","v":8.7316690921303026E-3},{"$f":"'Population 2016'!H93/'Population 2016'!H$6","v":1.3725501887107449E-2},{"$f":"'Population 2016'!I93/'Population 2016'!I$6","v":6.7495387005924055E-3},{"$f":"'Population 2016'!J93/'Population 2016'!J$6","v":1.044380295242789E-2},{"$f":"'Population 2016'!K93/'Population 2016'!K$6","v":1.1648915937618867E-2},{"$f":"'Population 2016'!L93/'Population 2016'!L$6","v":5.0505050505050509E-3},{"$f":"'Population 2016'!M93/'Population 2016'!M$6","v":5.0505050505050509E-3},{"$f":"'Population 2016'!N93/'Population 2016'!N$6","v":1.2865944213265892E-2},{"$f":"'Population 2016'!O93/'Population 2016'!O$6","v":1.283416947288846E-2},{"$f":"'Population 2016'!P93/'Population 2016'!P$6","v":4.6519004070412857E-3},{"$f":"'Population 2016'!Q93/'Population 2016'!Q$6","v":2.4630541871921183E-3},{"$f":"'Population 2016'!R93/'Population 2016'!R$6","v":7.4270104148881676E-3},{"$f":"'Population 2016'!S93/'Population 2016'!S$6","v":8.6201454139879421E-3},{"$f":"'Population 2016'!T93/'Population 2016'!T$6","v":7.5352106740389233E-3},{"$f":"'Population 2016'!U93/'Population 2016'!U$6","v":0},{"$f":"'Population 2016'!V93/'Population 2016'!V$6","v":7.1761877828054295E-3},{"$f":"'Population 2016'!W93/'Population 2016'!W$6","v":1.2352331606217617E-2},{"$f":"'Population 2016'!X93/'Population 2016'!X$6","v":1.2352331606217617E-2},{"$f":"'Population 2016'!Y93/'Population 2016'!Y$6","v":8.5799264001613154E-3},{"$f":"'Population 2016'!Z93/'Population 2016'!Z$6","v":1.3419372871417678E-2},{"$f":"'Population 2016'!AA93/'Population 2016'!AA$6","v":1.2272446052606911E-2},{"$f":"'Population 2016'!AB93/'Population 2016'!AB$6","v":3.7569531670554458E-3},{"$f":"'Population 2016'!AC93/'Population 2016'!AC$6","v":1.2904957729163181E-2},{"$f":"'Population 2016'!AD93/'Population 2016'!AD$6","v":6.198866746556596E-3},{"$f":"'Population 2016'!AE93/'Population 2016'!AE$6","v":5.2888772698936196E-3},{"$f":"'Population 2016'!AF93/'Population 2016'!AF$6","v":1.8641442637459895E-2},{"$f":"'Population 2016'!AG93/'Population 2016'!AG$6","v":5.2888772698936196E-3},{"$f":"'Population 2016'!AH93/'Population 2016'!AH$6","v":1.1135623857156343E-2},{"$f":"'Population 2016'!AI93/'Population 2016'!AI$6","v":6.8972155840242404E-3},{"$f":"'Population 2016'!AJ93/'Population 2016'!AJ$6","v":4.6634349880346074E-3},{"$f":"'Population 2016'!AK93/'Population 2016'!AK$6","v":1.1809163911195087E-3},{"$f":"'Population 2016'!AL93/'Population 2016'!AL$6","v":1.6921300408598329E-2},{"$f":"'Population 2016'!AM93/'Population 2016'!AM$6","v":1.1462908735968766E-2},{"$f":"'Population 2016'!AN93/'Population 2016'!AN$6","v":0},{"$f":"'Population 2016'!AO93/'Population 2016'!AO$6","v":0},{"$f":"'Population 2016'!AP93/'Population 2016'!AP$6","v":5.7109948649037767E-3},{"$f":"'Population 2016'!AQ93/'Population 2016'!AQ$6","v":1.1334363730036065E-2},{"$f":"'Population 2016'!AR93/'Population 2016'!AR$6","v":1.037605425074579E-2},{"$f":"'Population 2016'!AS93/'Population 2016'!AS$6","v":6.7495387005924055E-3},{"$f":"'Population 2016'!AT93/'Population 2016'!AT$6","v":0},{"$f":"'Population 2016'!AU93/'Population 2016'!AU$6","v":0},{"$f":"'Population 2016'!AV93/'Population 2016'!AV$6","v":9.8177052305492667E-3},{"$f":"'Population 2016'!AW93/'Population 2016'!AW$6","v":1.0696238298429963E-2},{"$f":"'Population 2016'!AX93/'Population 2016'!AX$6","v":9.269129165314919E-3},{"$f":"'Population 2016'!AY93/'Population 2016'!AY$6","v":1.1260786750194559E-2},{"$f":"'Population 2016'!AZ93/'Population 2016'!AZ$6","v":1.0084679148206373E-2},{"$f":"'Population 2016'!BA93/'Population 2016'!BA$6","v":1.1914011914011913E-2},{"$f":"'Population 2016'!BB93/'Population 2016'!BB$6","v":8.7173504439691483E-3},{"$f":"'Population 2016'!BC93/'Population 2016'!BC$6","v":0},91]
[null,"Male 75-79",{"$f":"'Population 2016'!C94/'Population 2016'!C$6","v":2.9943340744459585E-3},{"$f":"'Population 2016'!D94/'Population 2016'!D$6","v":2.9424842413621742E-3},{"$f":"'Population 2016'!E94/'Population 2016'!E$6","v":2.802744756934377E-3},{"$f":"'Population 2016'!F94/'Population 2016'!F$6","v":5.2800138492166537E-3},{"$f":"'Population 2016'!G94/'Population 2016'!G$6","v":5.037501399305944E-3},{"$f":"'Population 2016'!H94/'Population 2016'!H$6","v":1.0702552514056416E-2},{"$f":"'Population 2016'!I94/'Population 2016'!I$6","v":3.5447217636204718E-3},{"$f":"'Population 2016'!J94/'Population 2016'!J$6","v":8.355042361942313E-3},{"$f":"'Population 2016'!K94/'Population 2016'!K$6","v":8.6534804108025862E-3},{"$f":"'Population 2016'!L94/'Population 2016'!L$6","v":4.089568248860284E-3},{"$f":"'Population 2016'!M94/'Population 2016'!M$6","v":4.089568248860284E-3},{"$f":"'Population 2016'!N94/'Population 2016'!N$6","v":9.7634136658383448E-3},{"$f":"'Population 2016'!O94/'Population 2016'!O$6","v":1.0909903099443338E-2},{"$f":"'Population 2016'!P94/'Population 2016'!P$6","v":3.5417878099064334E-3},{"$f":"'Population 2016'!Q94/'Population 2016'!Q$6","v":2.3475985221674879E-3},{"$f":"'Population 2016'!R94/'Population 2016'!R$6","v":8.6221615161345393E-3},{"$f":"'Population 2016'!S94/'Population 2016'!S$6","v":6.268479255884426E-3},{"$f":"'Population 2016'!T94/'Population 2016'!T$6","v":6.1107692826378292E-3},{"$f":"'Population 2016'!U94/'Population 2016'!U$6","v":0},{"$f":"'Population 2016'!V94/'Population 2016'!V$6","v":6.1863687782805427E-3},{"$f":"'Population 2016'!W94/'Population 2016'!W$6","v":8.2901554404145074E-3},{"$f":"'Population 2016'!X94/'Population 2016'!X$6","v":8.2901554404145074E-3},{"$f":"'Population 2016'!Y94/'Population 2016'!Y$6","v":7.1180117961385288E-3},{"$f":"'Population 2016'!Z94/'Population 2016'!Z$6","v":1.0065289183383917E-2},{"$f":"'Population 2016'!AA94/'Population 2016'!AA$6","v":9.3140103863964454E-3},{"$f":"'Population 2016'!AB94/'Population 2016'!AB$6","v":2.6018302530055625E-3},{"$f":"'Population 2016'!AC94/'Population 2016'!AC$6","v":9.8547657304704061E-3},{"$f":"'Population 2016'!AD94/'Population 2016'!AD$6","v":4.1572352166644472E-3},{"$f":"'Population 2016'!AE94/'Population 2016'!AE$6","v":3.8409717055120961E-3},{"$f":"'Population 2016'!AF94/'Population 2016'!AF$6","v":1.3994910941475827E-2},{"$f":"'Population 2016'!AG94/'Population 2016'!AG$6","v":3.8409717055120961E-3},{"$f":"'Population 2016'!AH94/'Population 2016'!AH$6","v":8.3421031469937314E-3},{"$f":"'Population 2016'!AI94/'Population 2016'!AI$6","v":5.4826167567182983E-3},{"$f":"'Population 2016'!AJ94/'Population 2016'!AJ$6","v":3.5589372277106215E-3},{"$f":"'Population 2016'!AK94/'Population 2016'!AK$6","v":5.510943158557707E-4},{"$f":"'Population 2016'!AL94/'Population 2016'!AL$6","v":1.2613252798010304E-2},{"$f":"'Population 2016'!AM94/'Population 2016'!AM$6","v":9.016593460224499E-3},{"$f":"'Population 2016'!AN94/'Population 2016'!AN$6","v":0},{"$f":"'Population 2016'!AO94/'Population 2016'!AO$6","v":0},{"$f":"'Population 2016'!AP94/'Population 2016'!AP$6","v":4.6071891347122911E-3},{"$f":"'Population 2016'!AQ94/'Population 2016'!AQ$6","v":9.9948480164863476E-3},{"$f":"'Population 2016'!AR94/'Population 2016'!AR$6","v":7.8642781808953548E-3},{"$f":"'Population 2016'!AS94/'Population 2016'!AS$6","v":3.5447217636204718E-3},{"$f":"'Population 2016'!AT94/'Population 2016'!AT$6","v":0},{"$f":"'Population 2016'!AU94/'Population 2016'!AU$6","v":0},{"$f":"'Population 2016'!AV94/'Population 2016'!AV$6","v":7.3394495412844041E-3},{"$f":"'Population 2016'!AW94/'Population 2016'!AW$6","v":7.4365883422468654E-3},{"$f":"'Population 2016'!AX94/'Population 2016'!AX$6","v":8.0641423738239786E-3},{"$f":"'Population 2016'!AY94/'Population 2016'!AY$6","v":8.091943743362414E-3},{"$f":"'Population 2016'!AZ94/'Population 2016'!AZ$6","v":7.878376447048736E-3},{"$f":"'Population 2016'!BA94/'Population 2016'!BA$6","v":7.9692387384695078E-3},{"$f":"'Population 2016'!BB94/'Population 2016'!BB$6","v":6.6109274742368268E-3},{"$f":"'Population 2016'!BC94/'Population 2016'!BC$6","v":0},92]
[null,"Male 80-84",{"$f":"'Population 2016'!C95/'Population 2016'!C$6","v":2.1516172990030838E-3},{"$f":"'Population 2016'!D95/'Population 2016'!D$6","v":2.1185886537807654E-3},{"$f":"'Population 2016'!E95/'Population 2016'!E$6","v":2.029573789504204E-3},{"$f":"'Population 2016'!F95/'Population 2016'!F$6","v":2.9862373409504026E-3},{"$f":"'Population 2016'!G95/'Population 2016'!G$6","v":3.8620844061345574E-3},{"$f":"'Population 2016'!H95/'Population 2016'!H$6","v":7.178759457896337E-3},{"$f":"'Population 2016'!I95/'Population 2016'!I$6","v":2.7192386131883071E-3},{"$f":"'Population 2016'!J95/'Population 2016'!J$6","v":3.9897674200286325E-3},{"$f":"'Population 2016'!K95/'Population 2016'!K$6","v":3.8512742487637887E-3},{"$f":"'Population 2016'!L95/'Population 2016'!L$6","v":2.592294627692858E-3},{"$f":"'Population 2016'!M95/'Population 2016'!M$6","v":2.592294627692858E-3},{"$f":"'Population 2016'!N95/'Population 2016'!N$6","v":6.205061094855093E-3},{"$f":"'Population 2016'!O95/'Population 2016'!O$6","v":7.2503607999450208E-3},{"$f":"'Population 2016'!P95/'Population 2016'!P$6","v":2.2730876988951735E-3},{"$f":"'Population 2016'!Q95/'Population 2016'!Q$6","v":1.5009236453201969E-3},{"$f":"'Population 2016'!R95/'Population 2016'!R$6","v":4.0976609185589897E-3},{"$f":"'Population 2016'!S95/'Population 2016'!S$6","v":4.3298014499310805E-3},{"$f":"'Population 2016'!T95/'Population 2016'!T$6","v":4.180609054052915E-3},{"$f":"'Population 2016'!U95/'Population 2016'!U$6","v":0},{"$f":"'Population 2016'!V95/'Population 2016'!V$6","v":4.5248868778280547E-3},{"$f":"'Population 2016'!W95/'Population 2016'!W$6","v":6.0103626943005181E-3},{"$f":"'Population 2016'!X95/'Population 2016'!X$6","v":6.0103626943005181E-3},{"$f":"'Population 2016'!Y95/'Population 2016'!Y$6","v":4.2950042849221153E-3},{"$f":"'Population 2016'!Z95/'Population 2016'!Z$6","v":6.878302055895319E-3},{"$f":"'Population 2016'!AA95/'Population 2016'!AA$6","v":6.1593455695332375E-3},{"$f":"'Population 2016'!AB95/'Population 2016'!AB$6","v":1.8504396195944733E-3},{"$f":"'Population 2016'!AC95/'Population 2016'!AC$6","v":6.5575237420875919E-3},{"$f":"'Population 2016'!AD95/'Population 2016'!AD$6","v":2.8997085497018921E-3},{"$f":"'Population 2016'!AE95/'Population 2016'!AE$6","v":2.5539445371729644E-3},{"$f":"'Population 2016'!AF95/'Population 2016'!AF$6","v":8.9888261975882289E-3},{"$f":"'Population 2016'!AG95/'Population 2016'!AG$6","v":2.5539445371729644E-3},{"$f":"'Population 2016'!AH95/'Population 2016'!AH$6","v":5.4436943000290188E-3},{"$f":"'Population 2016'!AI95/'Population 2016'!AI$6","v":3.6202011408865099E-3},{"$f":"'Population 2016'!AJ95/'Population 2016'!AJ$6","v":2.270356507332638E-3},{"$f":"'Population 2016'!AK95/'Population 2016'!AK$6","v":2.3618327822390176E-4},{"$f":"'Population 2016'!AL95/'Population 2016'!AL$6","v":8.2163794634926273E-3},{"$f":"'Population 2016'!AM95/'Population 2016'!AM$6","v":5.9175207418252808E-3},{"$f":"'Population 2016'!AN95/'Population 2016'!AN$6","v":0},{"$f":"'Population 2016'!AO95/'Population 2016'!AO$6","v":0},{"$f":"'Population 2016'!AP95/'Population 2016'!AP$6","v":3.0714594231415269E-3},{"$f":"'Population 2016'!AQ95/'Population 2016'!AQ$6","v":6.255979980864061E-3},{"$f":"'Population 2016'!AR95/'Population 2016'!AR$6","v":5.2202438751437034E-3},{"$f":"'Population 2016'!AS95/'Population 2016'!AS$6","v":2.7192386131883071E-3},{"$f":"'Population 2016'!AT95/'Population 2016'!AT$6","v":0},{"$f":"'Population 2016'!AU95/'Population 2016'!AU$6","v":0},{"$f":"'Population 2016'!AV95/'Population 2016'!AV$6","v":5.4092696294531159E-3},{"$f":"'Population 2016'!AW95/'Population 2016'!AW$6","v":4.807574181606729E-3},{"$f":"'Population 2016'!AX95/'Population 2016'!AX$6","v":4.1247624785651386E-3},{"$f":"'Population 2016'!AY95/'Population 2016'!AY$6","v":5.5035536617980283E-3},{"$f":"'Population 2016'!AZ95/'Population 2016'!AZ$6","v":4.9574817779048166E-3},{"$f":"'Population 2016'!BA95/'Population 2016'!BA$6","v":5.2995437610822227E-3},{"$f":"'Population 2016'!BB95/'Population 2016'!BB$6","v":4.1480329250113421E-3},{"$f":"'Population 2016'!BC95/'Population 2016'!BC$6","v":0},93]
[null,"Male 85-89",{"$f":"'Population 2016'!C96/'Population 2016'!C$6","v":1.11166893781826E-3},{"$f":"'Population 2016'!D96/'Population 2016'!D$6","v":1.0854497423691575E-3},{"$f":"'Population 2016'!E96/'Population 2016'!E$6","v":1.014786894752102E-3},{"$f":"'Population 2016'!F96/'Population 2016'!F$6","v":1.6013156755820999E-3},{"$f":"'Population 2016'!G96/'Population 2016'!G$6","v":2.1829172730325756E-3},{"$f":"'Population 2016'!H96/'Population 2016'!H$6","v":3.3687700113882312E-3},{"$f":"'Population 2016'!I96/'Population 2016'!I$6","v":1.8451976303777799E-3},{"$f":"'Population 2016'!J96/'Population 2016'!J$6","v":2.4407988922528104E-3},{"$f":"'Population 2016'!K96/'Population 2016'!K$6","v":2.615062761506276E-3},{"$f":"'Population 2016'!L96/'Population 2016'!L$6","v":1.4972736211674264E-3},{"$f":"'Population 2016'!M96/'Population 2016'!M$6","v":1.4972736211674264E-3},{"$f":"'Population 2016'!N96/'Population 2016'!N$6","v":3.2936817185960682E-3},{"$f":"'Population 2016'!O96/'Population 2016'!O$6","v":3.5736375506838017E-3},{"$f":"'Population 2016'!P96/'Population 2016'!P$6","v":1.2158376063857905E-3},{"$f":"'Population 2016'!Q96/'Population 2016'!Q$6","v":3.8485221674876849E-4},{"$f":"'Population 2016'!R96/'Population 2016'!R$6","v":2.0488304592794948E-3},{"$f":"'Population 2016'!S96/'Population 2016'!S$6","v":2.0754637569839751E-3},{"$f":"'Population 2016'!T96/'Population 2016'!T$6","v":1.9723034650168995E-3},{"$f":"'Population 2016'!U96/'Population 2016'!U$6","v":0},{"$f":"'Population 2016'!V96/'Population 2016'!V$6","v":1.838235294117647E-3},{"$f":"'Population 2016'!W96/'Population 2016'!W$6","v":2.8766839378238343E-3},{"$f":"'Population 2016'!X96/'Population 2016'!X$6","v":2.8766839378238343E-3},{"$f":"'Population 2016'!Y96/'Population 2016'!Y$6","v":2.0970912940464787E-3},{"$f":"'Population 2016'!Z96/'Population 2016'!Z$6","v":3.2902831830983349E-3},{"$f":"'Population 2016'!AA96/'Population 2016'!AA$6","v":2.9196897829605606E-3},{"$f":"'Population 2016'!AB96/'Population 2016'!AB$6","v":9.756863448770859E-4},{"$f":"'Population 2016'!AC96/'Population 2016'!AC$6","v":3.1455104986519242E-3},{"$f":"'Population 2016'!AD96/'Population 2016'!AD$6","v":1.5386208631071264E-3},{"$f":"'Population 2016'!AE96/'Population 2016'!AE$6","v":1.3071369678444307E-3},{"$f":"'Population 2016'!AF96/'Population 2016'!AF$6","v":3.8997676734152009E-3},{"$f":"'Population 2016'!AG96/'Population 2016'!AG$6","v":1.3071369678444307E-3},{"$f":"'Population 2016'!AH96/'Population 2016'!AH$6","v":2.5138190120236768E-3},{"$f":"'Population 2016'!AI96/'Population 2016'!AI$6","v":1.6908222669573987E-3},{"$f":"'Population 2016'!AJ96/'Population 2016'!AJ$6","v":1.7181076271706448E-3},{"$f":"'Population 2016'!AK96/'Population 2016'!AK$6","v":3.14911037631869E-4},{"$f":"'Population 2016'!AL96/'Population 2016'!AL$6","v":3.7158761177236927E-3},{"$f":"'Population 2016'!AM96/'Population 2016'!AM$6","v":2.5561249389946315E-3},{"$f":"'Population 2016'!AN96/'Population 2016'!AN$6","v":0},{"$f":"'Population 2016'!AO96/'Population 2016'!AO$6","v":0},{"$f":"'Population 2016'!AP96/'Population 2016'!AP$6","v":1.5357297115707635E-3},{"$f":"'Population 2016'!AQ96/'Population 2016'!AQ$6","v":3.3267093545300656E-3},{"$f":"'Population 2016'!AR96/'Population 2016'!AR$6","v":2.5146021005320852E-3},{"$f":"'Population 2016'!AS96/'Population 2016'!AS$6","v":1.8451976303777799E-3},{"$f":"'Population 2016'!AT96/'Population 2016'!AT$6","v":0},{"$f":"'Population 2016'!AU96/'Population 2016'!AU$6","v":0},{"$f":"'Population 2016'!AV96/'Population 2016'!AV$6","v":2.525914452519957E-3},{"$f":"'Population 2016'!AW96/'Population 2016'!AW$6","v":2.4570225800375108E-3},{"$f":"'Population 2016'!AX96/'Population 2016'!AX$6","v":2.2709366455021551E-3},{"$f":"'Population 2016'!AY96/'Population 2016'!AY$6","v":2.7517768308990141E-3},{"$f":"'Population 2016'!AZ96/'Population 2016'!AZ$6","v":2.6171930827497501E-3},{"$f":"'Population 2016'!BA96/'Population 2016'!BA$6","v":2.3907716215408525E-3},{"$f":"'Population 2016'!BB96/'Population 2016'!BB$6","v":1.6851383757858578E-3},{"$f":"'Population 2016'!BC96/'Population 2016'!BC$6","v":0},94]
[null,"Male 90+",{"$f":"'Population 2016'!C97/'Population 2016'!C$6","v":4.4825360395897584E-4},{"$f":"'Population 2016'!D97/'Population 2016'!D$6","v":5.2310830957549761E-4},{"$f":"'Population 2016'!E97/'Population 2016'!E$6","v":7.2484778196578719E-4},{"$f":"'Population 2016'!F97/'Population 2016'!F$6","v":4.7606682247035401E-4},{"$f":"'Population 2016'!G97/'Population 2016'!G$6","v":6.716668532407926E-4},{"$f":"'Population 2016'!H97/'Population 2016'!H$6","v":1.281921331767203E-3},{"$f":"'Population 2016'!I97/'Population 2016'!I$6","v":6.7980965329707678E-4},{"$f":"'Population 2016'!J97/'Population 2016'!J$6","v":1.0561149053016968E-3},{"$f":"'Population 2016'!K97/'Population 2016'!K$6","v":1.3788512742487638E-3},{"$f":"'Population 2016'!L97/'Population 2016'!L$6","v":5.8103155448288189E-4},{"$f":"'Population 2016'!M97/'Population 2016'!M$6","v":5.8103155448288189E-4},{"$f":"'Population 2016'!N97/'Population 2016'!N$6","v":1.3380581981796526E-3},{"$f":"'Population 2016'!O97/'Population 2016'!O$6","v":1.3916569307951343E-3},{"$f":"'Population 2016'!P97/'Population 2016'!P$6","v":4.7576254162922239E-4},{"$f":"'Population 2016'!Q97/'Population 2016'!Q$6","v":2.6939655172413793E-4},{"$f":"'Population 2016'!R97/'Population 2016'!R$6","v":9.3904729383643504E-4},{"$f":"'Population 2016'!S97/'Population 2016'!S$6","v":9.7591515062237606E-4},{"$f":"'Population 2016'!T97/'Population 2016'!T$6","v":9.2715120150367071E-4},{"$f":"'Population 2016'!U97/'Population 2016'!U$6","v":0},{"$f":"'Population 2016'!V97/'Population 2016'!V$6","v":9.1911764705882352E-4},{"$f":"'Population 2016'!W97/'Population 2016'!W$6","v":1.2932642487046631E-3},{"$f":"'Population 2016'!X97/'Population 2016'!X$6","v":1.2932642487046631E-3},{"$f":"'Population 2016'!Y97/'Population 2016'!Y$6","v":9.7797045924282898E-4},{"$f":"'Population 2016'!Z97/'Population 2016'!Z$6","v":1.4096873471446236E-3},{"$f":"'Population 2016'!AA97/'Population 2016'!AA$6","v":1.2761144128436354E-3},{"$f":"'Population 2016'!AB97/'Population 2016'!AB$6","v":4.710209940785932E-4},{"$f":"'Population 2016'!AC97/'Population 2016'!AC$6","v":1.3869814381810895E-3},{"$f":"'Population 2016'!AD97/'Population 2016'!AD$6","v":4.8821623540899208E-4},{"$f":"'Population 2016'!AE97/'Population 2016'!AE$6","v":4.2230578961127756E-4},{"$f":"'Population 2016'!AF97/'Population 2016'!AF$6","v":1.7424493859940259E-3},{"$f":"'Population 2016'!AG97/'Population 2016'!AG$6","v":4.2230578961127756E-4},{"$f":"'Population 2016'!AH97/'Population 2016'!AH$6","v":1.076851537834899E-3},{"$f":"'Population 2016'!AI97/'Population 2016'!AI$6","v":8.4122592984761679E-4},{"$f":"'Population 2016'!AJ97/'Population 2016'!AJ$6","v":9.2041480026998834E-4},{"$f":"'Population 2016'!AK97/'Population 2016'!AK$6","v":1.574555188159345E-4},{"$f":"'Population 2016'!AL97/'Population 2016'!AL$6","v":1.361994433587967E-3},{"$f":"'Population 2016'!AM97/'Population 2016'!AM$6","v":1.1469009272816009E-3},{"$f":"'Population 2016'!AN97/'Population 2016'!AN$6","v":0},{"$f":"'Population 2016'!AO97/'Population 2016'!AO$6","v":0},{"$f":"'Population 2016'!AP97/'Population 2016'!AP$6","v":4.3192398137927723E-4},{"$f":"'Population 2016'!AQ97/'Population 2016'!AQ$6","v":1.3836755722381688E-3},{"$f":"'Population 2016'!AR97/'Population 2016'!AR$6","v":1.0829349572082435E-3},{"$f":"'Population 2016'!AS97/'Population 2016'!AS$6","v":6.7980965329707678E-4},{"$f":"'Population 2016'!AT97/'Population 2016'!AT$6","v":0},{"$f":"'Population 2016'!AU97/'Population 2016'!AU$6","v":0},{"$f":"'Population 2016'!AV97/'Population 2016'!AV$6","v":1.0008340283569641E-3},{"$f":"'Population 2016'!AW97/'Population 2016'!AW$6","v":9.8280903201500422E-4},{"$f":"'Population 2016'!AX97/'Population 2016'!AX$6","v":7.4153033322519354E-4},{"$f":"'Population 2016'!AY97/'Population 2016'!AY$6","v":1.1480068966406825E-3},{"$f":"'Population 2016'!AZ97/'Population 2016'!AZ$6","v":9.9149635558096324E-4},{"$f":"'Population 2016'!BA97/'Population 2016'!BA$6","v":1.4344629729245114E-3},{"$f":"'Population 2016'!BB97/'Population 2016'!BB$6","v":8.7497569511958001E-4},{"$f":"'Population 2016'!BC97/'Population 2016'!BC$6","v":0},95]
["SIMD Q2","Female 0-4",{"$f":"'Population 2016'!C98/'Population 2016'!C$6","v":0},{"$f":"'Population 2016'!D98/'Population 2016'!D$6","v":0},{"$f":"'Population 2016'!E98/'Population 2016'!E$6","v":0},{"$f":"'Population 2016'!F98/'Population 2016'!F$6","v":0},{"$f":"'Population 2016'!G98/'Population 2016'!G$6","v":0},{"$f":"'Population 2016'!H98/'Population 2016'!H$6","v":0},{"$f":"'Population 2016'!I98/'Population 2016'!I$6","v":0},{"$f":"'Population 2016'!J98/'Population 2016'!J$6","v":0},{"$f":"'Population 2016'!K98/'Population 2016'!K$6","v":0},{"$f":"'Population 2016'!L98/'Population 2016'!L$6","v":0},{"$f":"'Population 2016'!M98/'Population 2016'!M$6","v":0},{"$f":"'Population 2016'!N98/'Population 2016'!N$6","v":0},{"$f":"'Population 2016'!O98/'Population 2016'!O$6","v":0},{"$f":"'Population 2016'!P98/'Population 2016'!P$6","v":0},{"$f":"'Population 2016'!Q98/'Population 2016'!Q$6","v":0},{"$f":"'Population 2016'!R98/'Population 2016'!R$6","v":0},{"$f":"'Population 2016'!S98/'Population 2016'!S$6","v":0},{"$f":"'Population 2016'!T98/'Population 2016'!T$6","v":0},{"$f":"'Population 2016'!U98/'Population 2016'!U$6","v":0},{"$f":"'Population 2016'!V98/'Population 2016'!V$6","v":0},{"$f":"'Population 2016'!W98/'Population 2016'!W$6","v":0},{"$f":"'Population 2016'!X98/'Population 2016'!X$6","v":0},{"$f":"'Population 2016'!Y98/'Population 2016'!Y$6","v":0},{"$f":"'Population 2016'!Z98/'Population 2016'!Z$6","v":0},{"$f":"'Population 2016'!AA98/'Population 2016'!AA$6","v":0},{"$f":"'Population 2016'!AB98/'Population 2016'!AB$6","v":0},{"$f":"'Population 2016'!AC98/'Population 2016'!AC$6","v":0},{"$f":"'Population 2016'!AD98/'Population 2016'!AD$6","v":0},{"$f":"'Population 2016'!AE98/'Population 2016'!AE$6","v":0},{"$f":"'Population 2016'!AF98/'Population 2016'!AF$6","v":0},{"$f":"'Population 2016'!AG98/'Population 2016'!AG$6","v":0},{"$f":"'Population 2016'!AH98/'Population 2016'!AH$6","v":0},{"$f":"'Population 2016'!AI98/'Population 2016'!AI$6","v":0},{"$f":"'Population 2016'!AJ98/'Population 2016'!AJ$6","v":0},{"$f":"'Population 2016'!AK98/'Population 2016'!AK$6","v":0},{"$f":"'Population 2016'!AL98/'Population 2016'!AL$6","v":0},{"$f":"'Population 2016'!AM98/'Population 2016'!AM$6","v":0},{"$f":"'Population 2016'!AN98/'Population 2016'!AN$6","v":0},{"$f":"'Population 2016'!AO98/'Population 2016'!AO$6","v":0},{"$f":"'Population 2016'!AP98/'Population 2016'!AP$6","v":0},{"$f":"'Population 2016'!AQ98/'Population 2016'!AQ$6","v":0},{"$f":"'Population 2016'!AR98/'Population 2016'!AR$6","v":0},{"$f":"'Population 2016'!AS98/'Population 2016'!AS$6","v":0},{"$f":"'Population 2016'!AT98/'Population 2016'!AT$6","v":0},{"$f":"'Population 2016'!AU98/'Population 2016'!AU$6","v":0},{"$f":"'Population 2016'!AV98/'Population 2016'!AV$6","v":0},{"$f":"'Population 2016'!AW98/'Population 2016'!AW$6","v":0},{"$f":"'Population 2016'!AX98/'Population 2016'!AX$6","v":0},{"$f":"'Population 2016'!AY98/'Population 2016'!AY$6","v":0},{"$f":"'Population 2016'!AZ98/'Population 2016'!AZ$6","v":0},{"$f":"'Population 2016'!BA98/'Population 2016'!BA$6","v":0},{"$f":"'Population 2016'!BB98/'Population 2016'!BB$6","v":0},{"$f":"'Population 2016'!BC98/'Population 2016'!BC$6","v":0},96]
[null,"Female 5-9",{"$f":"'Population 2016'!C99/'Population 2016'!C$6","v":0},{"$f":"'Population 2016'!D99/'Population 2016'!D$6","v":0},{"$f":"'Population 2016'!E99/'Population 2016'!E$6","v":0},{"$f":"'Population 2016'!F99/'Population 2016'!F$6","v":0},{"$f":"'Population 2016'!G99/'Population 2016'!G$6","v":0},{"$f":"'Population 2016'!H99/'Population 2016'!H$6","v":0},{"$f":"'Population 2016'!I99/'Population 2016'!I$6","v":0},{"$f":"'Population 2016'!J99/'Population 2016'!J$6","v":0},{"$f":"'Population 2016'!K99/'Population 2016'!K$6","v":0},{"$f":"'Population 2016'!L99/'Population 2016'!L$6","v":0},{"$f":"'Population 2016'!M99/'Population 2016'!M$6","v":0},{"$f":"'Population 2016'!N99/'Population 2016'!N$6","v":0},{"$f":"'Population 2016'!O99/'Population 2016'!O$6","v":0},{"$f":"'Population 2016'!P99/'Population 2016'!P$6","v":0},{"$f":"'Population 2016'!Q99/'Population 2016'!Q$6","v":0},{"$f":"'Population 2016'!R99/'Population 2016'!R$6","v":0},{"$f":"'Population 2016'!S99/'Population 2016'!S$6","v":0},{"$f":"'Population 2016'!T99/'Population 2016'!T$6","v":0},{"$f":"'Population 2016'!U99/'Population 2016'!U$6","v":0},{"$f":"'Population 2016'!V99/'Population 2016'!V$6","v":0},{"$f":"'Population 2016'!W99/'Population 2016'!W$6","v":0},{"$f":"'Population 2016'!X99/'Population 2016'!X$6","v":0},{"$f":"'Population 2016'!Y99/'Population 2016'!Y$6","v":0},{"$f":"'Population 2016'!Z99/'Population 2016'!Z$6","v":0},{"$f":"'Population 2016'!AA99/'Population 2016'!AA$6","v":0},{"$f":"'Population 2016'!AB99/'Population 2016'!AB$6","v":0},{"$f":"'Population 2016'!AC99/'Population 2016'!AC$6","v":0},{"$f":"'Population 2016'!AD99/'Population 2016'!AD$6","v":0},{"$f":"'Population 2016'!AE99/'Population 2016'!AE$6","v":0},{"$f":"'Population 2016'!AF99/'Population 2016'!AF$6","v":0},{"$f":"'Population 2016'!AG99/'Population 2016'!AG$6","v":0},{"$f":"'Population 2016'!AH99/'Population 2016'!AH$6","v":0},{"$f":"'Population 2016'!AI99/'Population 2016'!AI$6","v":0},{"$f":"'Population 2016'!AJ99/'Population 2016'!AJ$6","v":0},{"$f":"'Population 2016'!AK99/'Population 2016'!AK$6","v":0},{"$f":"'Population 2016'!AL99/'Population 2016'!AL$6","v":0},{"$f":"'Population 2016'!AM99/'Population 2016'!AM$6","v":0},{"$f":"'Population 2016'!AN99/'Population 2016'!AN$6","v":0},{"$f":"'Population 2016'!AO99/'Population 2016'!AO$6","v":0},{"$f":"'Population 2016'!AP99/'Population 2016'!AP$6","v":0},{"$f":"'Population 2016'!AQ99/'Population 2016'!AQ$6","v":0},{"$f":"'Population 2016'!AR99/'Population 2016'!AR$6","v":0},{"$f":"'Population 2016'!AS99/'Population 2016'!AS$6","v":0},{"$f":"'Population 2016'!AT99/'Population 2016'!AT$6","v":0},{"$f":"'Population 2016'!AU99/'Population 2016'!AU$6","v":0},{"$f":"'Population 2016'!AV99/'Population 2016'!AV$6","v":0},{"$f":"'Population 2016'!AW99/'Population 2016'!AW$6","v":0},{"$f":"'Population 2016'!AX99/'Population 2016'!AX$6","v":0},{"$f":"'Population 2016'!AY99/'Population 2016'!AY$6","v":0},{"$f":"'Population 2016'!AZ99/'Population 2016'!AZ$6","v":0},{"$f":"'Population 2016'!BA99/'Population 2016'!BA$6","v":0},{"$f":"'Population 2016'!BB99/'Population 2016'!BB$6","v":0},{"$f":"'Population 2016'!BC99/'Population 2016'!BC$6","v":0},97]
[null,"Female 10-15",{"$f":"'Population 2016'!C100/'Population 2016'!C$6","v":0},{"$f":"'Population 2016'!D100/'Population 2016'!D$6","v":0},{"$f":"'Population 2016'!E100/'Population 2016'!E$6","v":0},{"$f":"'Population 2016'!F100/'Population 2016'!F$6","v":0},{"$f":"'Population 2016'!G100/'Population 2016'!G$6","v":0},{"$f":"'Population 2016'!H100/'Population 2016'!H$6","v":0},{"$f":"'Population 2016'!I100/'Population 2016'!I$6","v":0},{"$f":"'Population 2016'!J100/'Population 2016'!J$6","v":0},{"$f":"'Population 2016'!K100/'Population 2016'!K$6","v":0},{"$f":"'Population 2016'!L100/'Population 2016'!L$6","v":0},{"$f":"'Population 2016'!M100/'Population 2016'!M$6","v":0},{"$f":"'Population 2016'!N100/'Population 2016'!N$6","v":0},{"$f":"'Population 2016'!O100/'Population 2016'!O$6","v":0},{"$f":"'Population 2016'!P100/'Population 2016'!P$6","v":0},{"$f":"'Population 2016'!Q100/'Population 2016'!Q$6","v":0},{"$f":"'Population 2016'!R100/'Population 2016'!R$6","v":0},{"$f":"'Population 2016'!S100/'Population 2016'!S$6","v":0},{"$f":"'Population 2016'!T100/'Population 2016'!T$6","v":0},{"$f":"'Population 2016'!U100/'Population 2016'!U$6","v":0},{"$f":"'Population 2016'!V100/'Population 2016'!V$6","v":0},{"$f":"'Population 2016'!W100/'Population 2016'!W$6","v":0},{"$f":"'Population 2016'!X100/'Population 2016'!X$6","v":0},{"$f":"'Population 2016'!Y100/'Population 2016'!Y$6","v":0},{"$f":"'Population 2016'!Z100/'Population 2016'!Z$6","v":0},{"$f":"'Population 2016'!AA100/'Population 2016'!AA$6","v":0},{"$f":"'Population 2016'!AB100/'Population 2016'!AB$6","v":0},{"$f":"'Population 2016'!AC100/'Population 2016'!AC$6","v":0},{"$f":"'Population 2016'!AD100/'Population 2016'!AD$6","v":0},{"$f":"'Population 2016'!AE100/'Population 2016'!AE$6","v":0},{"$f":"'Population 2016'!AF100/'Population 2016'!AF$6","v":0},{"$f":"'Population 2016'!AG100/'Population 2016'!AG$6","v":0},{"$f":"'Population 2016'!AH100/'Population 2016'!AH$6","v":0},{"$f":"'Population 2016'!AI100/'Population 2016'!AI$6","v":0},{"$f":"'Population 2016'!AJ100/'Population 2016'!AJ$6","v":0},{"$f":"'Population 2016'!AK100/'Population 2016'!AK$6","v":0},{"$f":"'Population 2016'!AL100/'Population 2016'!AL$6","v":0},{"$f":"'Population 2016'!AM100/'Population 2016'!AM$6","v":0},{"$f":"'Population 2016'!AN100/'Population 2016'!AN$6","v":0},{"$f":"'Population 2016'!AO100/'Population 2016'!AO$6","v":0},{"$f":"'Population 2016'!AP100/'Population 2016'!AP$6","v":0},{"$f":"'Population 2016'!AQ100/'Population 2016'!AQ$6","v":0},{"$f":"'Population 2016'!AR100/'Population 2016'!AR$6","v":0},{"$f":"'Population 2016'!AS100/'Population 2016'!AS$6","v":0},{"$f":"'Population 2016'!AT100/'Population 2016'!AT$6","v":0},{"$f":"'Population 2016'!AU100/'Population 2016'!AU$6","v":0},{"$f":"'Population 2016'!AV100/'Population 2016'!AV$6","v":0},{"$f":"'Population 2016'!AW100/'Population 2016'!AW$6","v":0},{"$f":"'Population 2016'!AX100/'Population 2016'!AX$6","v":0},{"$f":"'Population 2016'!AY100/'Population 2016'!AY$6","v":0},{"$f":"'Population 2016'!AZ100/'Population 2016'!AZ$6","v":0},{"$f":"'Population 2016'!BA100/'Population 2016'!BA$6","v":0},{"$f":"'Population 2016'!BB100/'Population 2016'!BB$6","v":0},{"$f":"'Population 2016'!BC100/'Population 2016'!BC$6","v":0},98]
[null,"Female 16-19",{"$f":"'Population 2016'!C101/'Population 2016'!C$6","v":1.7195008247866312E-2},{"$f":"'Population 2016'!D101/'Population 2016'!D$6","v":1.7550283786257944E-2},{"$f":"'Population 2016'!E101/'Population 2016'!E$6","v":1.8507780032859765E-2},{"$f":"'Population 2016'!F101/'Population 2016'!F$6","v":1.6748896390547909E-2},{"$f":"'Population 2016'!G101/'Population 2016'!G$6","v":1.572819881338856E-2},{"$f":"'Population 2016'!H101/'Population 2016'!H$6","v":1.1012598603600113E-2},{"$f":"'Population 2016'!I101/'Population 2016'!I$6","v":1.7577935320967273E-2},{"$f":"'Population 2016'!J101/'Population 2016'!J$6","v":1.5161116196108803E-2},{"$f":"'Population 2016'!K101/'Population 2016'!K$6","v":1.5642829973373906E-2},{"$f":"'Population 2016'!L101/'Population 2016'!L$6","v":1.9755072852417985E-2},{"$f":"'Population 2016'!M101/'Population 2016'!M$6","v":1.9755072852417985E-2},{"$f":"'Population 2016'!N101/'Population 2016'!N$6","v":9.8222294108132741E-3},{"$f":"'Population 2016'!O101/'Population 2016'!O$6","v":1.1854855336402997E-2},{"$f":"'Population 2016'!P101/'Population 2016'!P$6","v":1.8977639160543427E-2},{"$f":"'Population 2016'!Q101/'Population 2016'!Q$6","v":2.1243842364532018E-2},{"$f":"'Population 2016'!R101/'Population 2016'!R$6","v":1.835410619771214E-2},{"$f":"'Population 2016'!S101/'Population 2016'!S$6","v":1.5554140931617546E-2},{"$f":"'Population 2016'!T101/'Population 2016'!T$6","v":1.3536407541953592E-2},{"$f":"'Population 2016'!U101/'Population 2016'!U$6","v":2.1723122238586155E-2},{"$f":"'Population 2016'!V101/'Population 2016'!V$6","v":1.6420390271493213E-2},{"$f":"'Population 2016'!W101/'Population 2016'!W$6","v":1.2907772020725388E-2},{"$f":"'Population 2016'!X101/'Population 2016'!X$6","v":1.2907772020725388E-2},{"$f":"'Population 2016'!Y101/'Population 2016'!Y$6","v":1.5879417250592328E-2},{"$f":"'Population 2016'!Z101/'Population 2016'!Z$6","v":7.2945243976168996E-3},{"$f":"'Population 2016'!AA101/'Population 2016'!AA$6","v":1.0561377853603055E-2},{"$f":"'Population 2016'!AB101/'Population 2016'!AB$6","v":1.8123093486452538E-2},{"$f":"'Population 2016'!AC101/'Population 2016'!AC$6","v":8.8276602615228392E-3},{"$f":"'Population 2016'!AD101/'Population 2016'!AD$6","v":1.8315506043525217E-2},{"$f":"'Population 2016'!AE101/'Population 2016'!AE$6","v":1.9245078126571079E-2},{"$f":"'Population 2016'!AF101/'Population 2016'!AF$6","v":6.3889810819780946E-3},{"$f":"'Population 2016'!AG101/'Population 2016'!AG$6","v":1.9245078126571079E-2},{"$f":"'Population 2016'!AH101/'Population 2016'!AH$6","v":1.3677413038993913E-2},{"$f":"'Population 2016'!AI101/'Population 2016'!AI$6","v":1.6715703302544186E-2},{"$f":"'Population 2016'!AJ101/'Population 2016'!AJ$6","v":2.331717494017304E-2},{"$f":"'Population 2016'!AK101/'Population 2016'!AK$6","v":2.1571406077783028E-2},{"$f":"'Population 2016'!AL101/'Population 2016'!AL$6","v":8.3052051874222769E-3},{"$f":"'Population 2016'!AM101/'Population 2016'!AM$6","v":1.3396778916544656E-2},{"$f":"'Population 2016'!AN101/'Population 2016'!AN$6","v":1.8838908112264515E-2},{"$f":"'Population 2016'!AO101/'Population 2016'!AO$6","v":1.8838908112264515E-2},{"$f":"'Population 2016'!AP101/'Population 2016'!AP$6","v":1.7372942362144261E-2},{"$f":"'Population 2016'!AQ101/'Population 2016'!AQ$6","v":1.1113564436593802E-2},{"$f":"'Population 2016'!AR101/'Population 2016'!AR$6","v":1.3068131078085488E-2},{"$f":"'Population 2016'!AS101/'Population 2016'!AS$6","v":1.7577935320967273E-2},{"$f":"'Population 2016'!AT101/'Population 2016'!AT$6","v":2.2257551669316374E-2},{"$f":"'Population 2016'!AU101/'Population 2016'!AU$6","v":2.2257551669316374E-2},{"$f":"'Population 2016'!AV101/'Population 2016'!AV$6","v":1.4202311450017872E-2},{"$f":"'Population 2016'!AW101/'Population 2016'!AW$6","v":1.405416915781456E-2},{"$f":"'Population 2016'!AX101/'Population 2016'!AX$6","v":1.4691569727024146E-2},{"$f":"'Population 2016'!AY101/'Population 2016'!AY$6","v":1.2787162961083856E-2},{"$f":"'Population 2016'!AZ101/'Population 2016'!AZ$6","v":1.2657210232956982E-2},{"$f":"'Population 2016'!BA101/'Population 2016'!BA$6","v":1.1495626880242265E-2},{"$f":"'Population 2016'!BB101/'Population 2016'!BB$6","v":1.7434700887938297E-2},{"$f":"'Population 2016'!BC101/'Population 2016'!BC$6","v":2.1723122238586155E-2},99]
[null,"Female 20-24",{"$f":"'Population 2016'!C102/'Population 2016'!C$6","v":3.9320806139281357E-2},{"$f":"'Population 2016'!D102/'Population 2016'!D$6","v":3.646064917741218E-2},{"$f":"'Population 2016'!E102/'Population 2016'!E$6","v":2.8752295351309558E-2},{"$f":"'Population 2016'!F102/'Population 2016'!F$6","v":3.2588937938197872E-2},{"$f":"'Population 2016'!G102/'Population 2016'!G$6","v":2.0429866786074106E-2},{"$f":"'Population 2016'!H102/'Population 2016'!H$6","v":1.4917986846890894E-2},{"$f":"'Population 2016'!I102/'Population 2016'!I$6","v":2.6852481305234533E-2},{"$f":"'Population 2016'!J102/'Population 2016'!J$6","v":2.4220235161585581E-2},{"$f":"'Population 2016'!K102/'Population 2016'!K$6","v":1.7877519969570179E-2},{"$f":"'Population 2016'!L102/'Population 2016'!L$6","v":2.4693841065522481E-2},{"$f":"'Population 2016'!M102/'Population 2016'!M$6","v":2.4693841065522481E-2},{"$f":"'Population 2016'!N102/'Population 2016'!N$6","v":2.3835080651090298E-2},{"$f":"'Population 2016'!O102/'Population 2016'!O$6","v":1.5359769088035187E-2},{"$f":"'Population 2016'!P102/'Population 2016'!P$6","v":2.7171327377491145E-2},{"$f":"'Population 2016'!Q102/'Population 2016'!Q$6","v":3.575277093596059E-2},{"$f":"'Population 2016'!R102/'Population 2016'!R$6","v":2.3305446474304253E-2},{"$f":"'Population 2016'!S102/'Population 2016'!S$6","v":2.6515430507475877E-2},{"$f":"'Population 2016'!T102/'Population 2016'!T$6","v":3.459116846337331E-2},{"$f":"'Population 2016'!U102/'Population 2016'!U$6","v":2.6509572901325478E-2},{"$f":"'Population 2016'!V102/'Population 2016'!V$6","v":2.3030967194570137E-2},{"$f":"'Population 2016'!W102/'Population 2016'!W$6","v":1.7459067357512955E-2},{"$f":"'Population 2016'!X102/'Population 2016'!X$6","v":1.7459067357512955E-2},{"$f":"'Population 2016'!Y102/'Population 2016'!Y$6","v":2.3541866209608308E-2},{"$f":"'Population 2016'!Z102/'Population 2016'!Z$6","v":1.3878128883096207E-2},{"$f":"'Population 2016'!AA102/'Population 2016'!AA$6","v":1.5913309210896343E-2},{"$f":"'Population 2016'!AB102/'Population 2016'!AB$6","v":3.7502242957114663E-2},{"$f":"'Population 2016'!AC102/'Population 2016'!AC$6","v":1.4367804912209715E-2},{"$f":"'Population 2016'!AD102/'Population 2016'!AD$6","v":2.3567529182015889E-2},{"$f":"'Population 2016'!AE102/'Population 2016'!AE$6","v":2.4694833792507087E-2},{"$f":"'Population 2016'!AF102/'Population 2016'!AF$6","v":7.9931408341630712E-3},{"$f":"'Population 2016'!AG102/'Population 2016'!AG$6","v":2.4694833792507087E-2},{"$f":"'Population 2016'!AH102/'Population 2016'!AH$6","v":1.869106597813432E-2},{"$f":"'Population 2016'!AI102/'Population 2016'!AI$6","v":3.1058396146264496E-2},{"$f":"'Population 2016'!AJ102/'Population 2016'!AJ$6","v":2.9238510155243296E-2},{"$f":"'Population 2016'!AK102/'Population 2016'!AK$6","v":4.3772634230829791E-2},{"$f":"'Population 2016'!AL102/'Population 2016'!AL$6","v":1.1280866939065553E-2},{"$f":"'Population 2016'!AM102/'Population 2016'!AM$6","v":1.7087603709126403E-2},{"$f":"'Population 2016'!AN102/'Population 2016'!AN$6","v":3.3833141099577087E-2},{"$f":"'Population 2016'!AO102/'Population 2016'!AO$6","v":3.3833141099577087E-2},{"$f":"'Population 2016'!AP102/'Population 2016'!AP$6","v":2.7643134808273743E-2},{"$f":"'Population 2016'!AQ102/'Population 2016'!AQ$6","v":1.4131154780304703E-2},{"$f":"'Population 2016'!AR102/'Population 2016'!AR$6","v":2.0855541224439965E-2},{"$f":"'Population 2016'!AS102/'Population 2016'!AS$6","v":2.6852481305234533E-2},{"$f":"'Population 2016'!AT102/'Population 2016'!AT$6","v":4.133545310015898E-2},{"$f":"'Population 2016'!AU102/'Population 2016'!AU$6","v":4.133545310015898E-2},{"$f":"'Population 2016'!AV102/'Population 2016'!AV$6","v":2.0159656856904563E-2},{"$f":"'Population 2016'!AW102/'Population 2016'!AW$6","v":2.0843741553984881E-2},{"$f":"'Population 2016'!AX102/'Population 2016'!AX$6","v":3.0402743662232935E-2},{"$f":"'Population 2016'!AY102/'Population 2016'!AY$6","v":2.1739036964102211E-2},{"$f":"'Population 2016'!AZ102/'Population 2016'!AZ$6","v":2.6350578819494069E-2},{"$f":"'Population 2016'!BA102/'Population 2016'!BA$6","v":1.5579861733707888E-2},{"$f":"'Population 2016'!BB102/'Population 2016'!BB$6","v":2.3251668935122174E-2},{"$f":"'Population 2016'!BC102/'Population 2016'!BC$6","v":2.6509572901325478E-2},100]
[null,"Female 25-29",{"$f":"'Population 2016'!C103/'Population 2016'!C$6","v":4.4771569963422506E-2},{"$f":"'Population 2016'!D103/'Population 2016'!D$6","v":4.1351711871943087E-2},{"$f":"'Population 2016'!E103/'Population 2016'!E$6","v":3.2134918333816563E-2},{"$f":"'Population 2016'!F103/'Population 2016'!F$6","v":3.3584350385181337E-2},{"$f":"'Population 2016'!G103/'Population 2016'!G$6","v":2.3956117765588269E-2},{"$f":"'Population 2016'!H103/'Population 2016'!H$6","v":1.6032960284288415E-2},{"$f":"'Population 2016'!I103/'Population 2016'!I$6","v":2.7192386131883073E-2},{"$f":"'Population 2016'!J103/'Population 2016'!J$6","v":2.3915135300053979E-2},{"$f":"'Population 2016'!K103/'Population 2016'!K$6","v":2.0635222518067705E-2},{"$f":"'Population 2016'!L103/'Population 2016'!L$6","v":2.3956377938678823E-2},{"$f":"'Population 2016'!M103/'Population 2016'!M$6","v":2.3956377938678823E-2},{"$f":"'Population 2016'!N103/'Population 2016'!N$6","v":2.2011792556867475E-2},{"$f":"'Population 2016'!O103/'Population 2016'!O$6","v":1.7455844959109339E-2},{"$f":"'Population 2016'!P103/'Population 2016'!P$6","v":3.0871702701273988E-2},{"$f":"'Population 2016'!Q103/'Population 2016'!Q$6","v":3.5675800492610835E-2},{"$f":"'Population 2016'!R103/'Population 2016'!R$6","v":2.1683455694041318E-2},{"$f":"'Population 2016'!S103/'Population 2016'!S$6","v":2.9351108492303161E-2},{"$f":"'Population 2016'!T103/'Population 2016'!T$6","v":3.91342093507413E-2},{"$f":"'Population 2016'!U103/'Population 2016'!U$6","v":2.8902798232695141E-2},{"$f":"'Population 2016'!V103/'Population 2016'!V$6","v":2.4992929864253395E-2},{"$f":"'Population 2016'!W103/'Population 2016'!W$6","v":1.9838341968911918E-2},{"$f":"'Population 2016'!X103/'Population 2016'!X$6","v":1.9838341968911918E-2},{"$f":"'Population 2016'!Y103/'Population 2016'!Y$6","v":2.4529918838534052E-2},{"$f":"'Population 2016'!Z103/'Population 2016'!Z$6","v":1.8058581016007852E-2},{"$f":"'Population 2016'!AA103/'Population 2016'!AA$6","v":1.8346800652430679E-2},{"$f":"'Population 2016'!AB103/'Population 2016'!AB$6","v":4.1012470841557506E-2},{"$f":"'Population 2016'!AC103/'Population 2016'!AC$6","v":1.7635867767951976E-2},{"$f":"'Population 2016'!AD103/'Population 2016'!AD$6","v":2.5549982986403919E-2},{"$f":"'Population 2016'!AE103/'Population 2016'!AE$6","v":2.6122629557383314E-2},{"$f":"'Population 2016'!AF103/'Population 2016'!AF$6","v":9.8738798539661464E-3},{"$f":"'Population 2016'!AG103/'Population 2016'!AG$6","v":2.6122629557383314E-2},{"$f":"'Population 2016'!AH103/'Population 2016'!AH$6","v":1.9624570395673016E-2},{"$f":"'Population 2016'!AI103/'Population 2016'!AI$6","v":3.4339595793033313E-2},{"$f":"'Population 2016'!AJ103/'Population 2016'!AJ$6","v":3.0711173835675277E-2},{"$f":"'Population 2016'!AK103/'Population 2016'!AK$6","v":3.8970240906943787E-2},{"$f":"'Population 2016'!AL103/'Population 2016'!AL$6","v":1.1295671226387161E-2},{"$f":"'Population 2016'!AM103/'Population 2016'!AM$6","v":1.8502928257686676E-2},{"$f":"'Population 2016'!AN103/'Population 2016'!AN$6","v":3.8446751249519413E-2},{"$f":"'Population 2016'!AO103/'Population 2016'!AO$6","v":3.8446751249519413E-2},{"$f":"'Population 2016'!AP103/'Population 2016'!AP$6","v":3.0810577338388444E-2},{"$f":"'Population 2016'!AQ103/'Population 2016'!AQ$6","v":1.5809229410465888E-2},{"$f":"'Population 2016'!AR103/'Population 2016'!AR$6","v":2.2953021196360526E-2},{"$f":"'Population 2016'!AS103/'Population 2016'!AS$6","v":2.7192386131883073E-2},{"$f":"'Population 2016'!AT103/'Population 2016'!AT$6","v":3.6565977742448331E-2},{"$f":"'Population 2016'!AU103/'Population 2016'!AU$6","v":3.6565977742448331E-2},{"$f":"'Population 2016'!AV103/'Population 2016'!AV$6","v":2.1684737281067557E-2},{"$f":"'Population 2016'!AW103/'Population 2016'!AW$6","v":2.113039418832259E-2},{"$f":"'Population 2016'!AX103/'Population 2016'!AX$6","v":2.7112202808546138E-2},{"$f":"'Population 2016'!AY103/'Population 2016'!AY$6","v":2.2822549091268698E-2},{"$f":"'Population 2016'!AZ103/'Population 2016'!AZ$6","v":2.6037944833500071E-2},{"$f":"'Population 2016'!BA103/'Population 2016'!BA$6","v":1.6994401609786224E-2},{"$f":"'Population 2016'!BB103/'Population 2016'!BB$6","v":2.6476116404173959E-2},{"$f":"'Population 2016'!BC103/'Population 2016'!BC$6","v":2.8902798232695141E-2},101]
[null,"Female 30-34",{"$f":"'Population 2016'!C104/'Population 2016'!C$6","v":3.8137416624829661E-2},{"$f":"'Population 2016'!D104/'Population 2016'!D$6","v":3.5898307744618524E-2},{"$f":"'Population 2016'!E104/'Population 2016'!E$6","v":2.9863728616990434E-2},{"$f":"'Population 2016'!F104/'Population 2016'!F$6","v":3.0554834242188175E-2},{"$f":"'Population 2016'!G104/'Population 2016'!G$6","v":1.9926116646143514E-2},{"$f":"'Population 2016'!H104/'Population 2016'!H$6","v":1.5239957786032423E-2},{"$f":"'Population 2016'!I104/'Population 2016'!I$6","v":2.3016412547343885E-2},{"$f":"'Population 2016'!J104/'Population 2016'!J$6","v":1.98549602196719E-2},{"$f":"'Population 2016'!K104/'Population 2016'!K$6","v":1.9161278052491442E-2},{"$f":"'Population 2016'!L104/'Population 2016'!L$6","v":2.438097792080093E-2},{"$f":"'Population 2016'!M104/'Population 2016'!M$6","v":2.438097792080093E-2},{"$f":"'Population 2016'!N104/'Population 2016'!N$6","v":1.6262553485568088E-2},{"$f":"'Population 2016'!O104/'Population 2016'!O$6","v":1.6596797470964195E-2},{"$f":"'Population 2016'!P104/'Population 2016'!P$6","v":2.7277052386742082E-2},{"$f":"'Population 2016'!Q104/'Population 2016'!Q$6","v":3.6676416256157633E-2},{"$f":"'Population 2016'!R104/'Population 2016'!R$6","v":2.100051220761482E-2},{"$f":"'Population 2016'!S104/'Population 2016'!S$6","v":2.7491345658098253E-2},{"$f":"'Population 2016'!T104/'Population 2016'!T$6","v":3.2838009827802737E-2},{"$f":"'Population 2016'!U104/'Population 2016'!U$6","v":2.7614138438880706E-2},{"$f":"'Population 2016'!V104/'Population 2016'!V$6","v":2.6601385746606334E-2},{"$f":"'Population 2016'!W104/'Population 2016'!W$6","v":1.9655958549222797E-2},{"$f":"'Population 2016'!X104/'Population 2016'!X$6","v":1.9655958549222797E-2},{"$f":"'Population 2016'!Y104/'Population 2016'!Y$6","v":2.370318092453496E-2},{"$f":"'Population 2016'!Z104/'Population 2016'!Z$6","v":1.500223301767274E-2},{"$f":"'Population 2016'!AA104/'Population 2016'!AA$6","v":1.7404400782416868E-2},{"$f":"'Population 2016'!AB104/'Population 2016'!AB$6","v":3.6739637538130268E-2},{"$f":"'Population 2016'!AC104/'Population 2016'!AC$6","v":1.5550532421906915E-2},{"$f":"'Population 2016'!AD104/'Population 2016'!AD$6","v":2.5416833104019647E-2},{"$f":"'Population 2016'!AE104/'Population 2016'!AE$6","v":2.7389546926217145E-2},{"$f":"'Population 2016'!AF104/'Population 2016'!AF$6","v":1.0482354242725965E-2},{"$f":"'Population 2016'!AG104/'Population 2016'!AG$6","v":2.7389546926217145E-2},{"$f":"'Population 2016'!AH104/'Population 2016'!AH$6","v":2.0736384645775281E-2},{"$f":"'Population 2016'!AI104/'Population 2016'!AI$6","v":3.1832658818014788E-2},{"$f":"'Population 2016'!AJ104/'Population 2016'!AJ$6","v":3.2521322942872924E-2},{"$f":"'Population 2016'!AK104/'Population 2016'!AK$6","v":4.1804440245630611E-2},{"$f":"'Population 2016'!AL104/'Population 2016'!AL$6","v":1.1636169834784153E-2},{"$f":"'Population 2016'!AM104/'Population 2016'!AM$6","v":1.9533918984870668E-2},{"$f":"'Population 2016'!AN104/'Population 2016'!AN$6","v":2.3836985774702037E-2},{"$f":"'Population 2016'!AO104/'Population 2016'!AO$6","v":2.3836985774702037E-2},{"$f":"'Population 2016'!AP104/'Population 2016'!AP$6","v":3.3306138119690937E-2},{"$f":"'Population 2016'!AQ104/'Population 2016'!AQ$6","v":1.5176271435931405E-2},{"$f":"'Population 2016'!AR104/'Population 2016'!AR$6","v":2.1535484206444931E-2},{"$f":"'Population 2016'!AS104/'Population 2016'!AS$6","v":2.3016412547343885E-2},{"$f":"'Population 2016'!AT104/'Population 2016'!AT$6","v":2.5437201907790145E-2},{"$f":"'Population 2016'!AU104/'Population 2016'!AU$6","v":2.5437201907790145E-2},{"$f":"'Population 2016'!AV104/'Population 2016'!AV$6","v":1.9158822828547598E-2},{"$f":"'Population 2016'!AW104/'Population 2016'!AW$6","v":2.2350715403074553E-2},{"$f":"'Population 2016'!AX104/'Population 2016'!AX$6","v":2.0531121101172545E-2},{"$f":"'Population 2016'!AY104/'Population 2016'!AY$6","v":2.0969399381710142E-2},{"$f":"'Population 2016'!AZ104/'Population 2016'!AZ$6","v":2.2384593397170215E-2},{"$f":"'Population 2016'!BA104/'Population 2016'!BA$6","v":1.7612017612017611E-2},{"$f":"'Population 2016'!BB104/'Population 2016'!BB$6","v":2.7496921381813467E-2},{"$f":"'Population 2016'!BC104/'Population 2016'!BC$6","v":2.7614138438880706E-2},102]
[null,"Female 35-39",{"$f":"'Population 2016'!C105/'Population 2016'!C$6","v":2.8508929211790861E-2},{"$f":"'Population 2016'!D105/'Population 2016'!D$6","v":2.8862500980828081E-2},{"$f":"'Population 2016'!E105/'Population 2016'!E$6","v":2.9815405431526047E-2},{"$f":"'Population 2016'!F105/'Population 2016'!F$6","v":2.4495801956201851E-2},{"$f":"'Population 2016'!G105/'Population 2016'!G$6","v":2.0877644688234637E-2},{"$f":"'Population 2016'!H105/'Population 2016'!H$6","v":1.5347281432412934E-2},{"$f":"'Population 2016'!I105/'Population 2016'!I$6","v":2.2093813732154997E-2},{"$f":"'Population 2016'!J105/'Population 2016'!J$6","v":1.9901898659907533E-2},{"$f":"'Population 2016'!K105/'Population 2016'!K$6","v":1.9351464435146442E-2},{"$f":"'Population 2016'!L105/'Population 2016'!L$6","v":2.3799946366318048E-2},{"$f":"'Population 2016'!M105/'Population 2016'!M$6","v":2.3799946366318048E-2},{"$f":"'Population 2016'!N105/'Population 2016'!N$6","v":1.2674793042097369E-2},{"$f":"'Population 2016'!O105/'Population 2016'!O$6","v":1.6493711772386777E-2},{"$f":"'Population 2016'!P105/'Population 2016'!P$6","v":3.0554527673521171E-2},{"$f":"'Population 2016'!Q105/'Population 2016'!Q$6","v":3.4598214285714288E-2},{"$f":"'Population 2016'!R105/'Population 2016'!R$6","v":2.2963974731091002E-2},{"$f":"'Population 2016'!S105/'Population 2016'!S$6","v":2.2895863803280757E-2},{"$f":"'Population 2016'!T105/'Population 2016'!T$6","v":2.2184199657796919E-2},{"$f":"'Population 2016'!U105/'Population 2016'!U$6","v":2.8166421207658322E-2},{"$f":"'Population 2016'!V105/'Population 2016'!V$6","v":2.5929722850678735E-2},{"$f":"'Population 2016'!W105/'Population 2016'!W$6","v":1.8528497409326425E-2},{"$f":"'Population 2016'!X105/'Population 2016'!X$6","v":1.8528497409326425E-2},{"$f":"'Population 2016'!Y105/'Population 2016'!Y$6","v":2.3340222815949992E-2},{"$f":"'Population 2016'!Z105/'Population 2016'!Z$6","v":1.1201545795091007E-2},{"$f":"'Population 2016'!AA105/'Population 2016'!AA$6","v":1.483717355031028E-2},{"$f":"'Population 2016'!AB105/'Population 2016'!AB$6","v":2.9674322626951372E-2},{"$f":"'Population 2016'!AC105/'Population 2016'!AC$6","v":1.2731828208829217E-2},{"$f":"'Population 2016'!AD105/'Population 2016'!AD$6","v":2.4040950986048852E-2},{"$f":"'Population 2016'!AE105/'Population 2016'!AE$6","v":2.5177468980634263E-2},{"$f":"'Population 2016'!AF105/'Population 2016'!AF$6","v":6.8591658369288634E-3},{"$f":"'Population 2016'!AG105/'Population 2016'!AG$6","v":2.5177468980634263E-2},{"$f":"'Population 2016'!AH105/'Population 2016'!AH$6","v":1.8621140553599588E-2},{"$f":"'Population 2016'!AI105/'Population 2016'!AI$6","v":2.516981463733118E-2},{"$f":"'Population 2016'!AJ105/'Population 2016'!AJ$6","v":3.1447505675891267E-2},{"$f":"'Population 2016'!AK105/'Population 2016'!AK$6","v":3.4561486380097622E-2},{"$f":"'Population 2016'!AL105/'Population 2016'!AL$6","v":1.139930123763842E-2},{"$f":"'Population 2016'!AM105/'Population 2016'!AM$6","v":1.796608101512933E-2},{"$f":"'Population 2016'!AN105/'Population 2016'!AN$6","v":2.7297193387158785E-2},{"$f":"'Population 2016'!AO105/'Population 2016'!AO$6","v":2.7297193387158785E-2},{"$f":"'Population 2016'!AP105/'Population 2016'!AP$6","v":2.5339540240917599E-2},{"$f":"'Population 2016'!AQ105/'Population 2016'!AQ$6","v":1.40722749687201E-2},{"$f":"'Population 2016'!AR105/'Population 2016'!AR$6","v":1.8659715384797989E-2},{"$f":"'Population 2016'!AS105/'Population 2016'!AS$6","v":2.2093813732154997E-2},{"$f":"'Population 2016'!AT105/'Population 2016'!AT$6","v":5.4054054054054057E-2},{"$f":"'Population 2016'!AU105/'Population 2016'!AU$6","v":5.4054054054054057E-2},{"$f":"'Population 2016'!AV105/'Population 2016'!AV$6","v":2.0111998093649469E-2},{"$f":"'Population 2016'!AW105/'Population 2016'!AW$6","v":1.9500569210231043E-2},{"$f":"'Population 2016'!AX105/'Population 2016'!AX$6","v":2.0438429809519397E-2},{"$f":"'Population 2016'!AY105/'Population 2016'!AY$6","v":1.8019838591090263E-2},{"$f":"'Population 2016'!AZ105/'Population 2016'!AZ$6","v":1.7471773617264541E-2},{"$f":"'Population 2016'!BA105/'Population 2016'!BA$6","v":1.607793915486223E-2},{"$f":"'Population 2016'!BB105/'Population 2016'!BB$6","v":2.362434376822866E-2},{"$f":"'Population 2016'!BC105/'Population 2016'!BC$6","v":2.8166421207658322E-2},103]
[null,"Female 40-44",{"$f":"'Population 2016'!C106/'Population 2016'!C$6","v":2.5693896578928496E-2},{"$f":"'Population 2016'!D106/'Population 2016'!D$6","v":2.6730834619307926E-2},{"$f":"'Population 2016'!E106/'Population 2016'!E$6","v":2.9525466318739733E-2},{"$f":"'Population 2016'!F106/'Population 2016'!F$6","v":2.709253007876742E-2},{"$f":"'Population 2016'!G106/'Population 2016'!G$6","v":2.4571812381058995E-2},{"$f":"'Population 2016'!H106/'Population 2016'!H$6","v":1.6790188233750902E-2},{"$f":"'Population 2016'!I106/'Population 2016'!I$6","v":2.398756919491114E-2},{"$f":"'Population 2016'!J106/'Population 2016'!J$6","v":2.1239644206623012E-2},{"$f":"'Population 2016'!K106/'Population 2016'!K$6","v":2.1966527196652718E-2},{"$f":"'Population 2016'!L106/'Population 2016'!L$6","v":2.6749798873692679E-2},{"$f":"'Population 2016'!M106/'Population 2016'!M$6","v":2.6749798873692679E-2},{"$f":"'Population 2016'!N106/'Population 2016'!N$6","v":1.1277919098942787E-2},{"$f":"'Population 2016'!O106/'Population 2016'!O$6","v":1.7610473506975467E-2},{"$f":"'Population 2016'!P106/'Population 2016'!P$6","v":2.9074377544008035E-2},{"$f":"'Population 2016'!Q106/'Population 2016'!Q$6","v":3.3597598522167489E-2},{"$f":"'Population 2016'!R106/'Population 2016'!R$6","v":2.2707870923681064E-2},{"$f":"'Population 2016'!S106/'Population 2016'!S$6","v":2.2772230347541535E-2},{"$f":"'Population 2016'!T106/'Population 2016'!T$6","v":1.9554461704441053E-2},{"$f":"'Population 2016'!U106/'Population 2016'!U$6","v":3.6818851251840944E-2},{"$f":"'Population 2016'!V106/'Population 2016'!V$6","v":2.7131645927601811E-2},{"$f":"'Population 2016'!W106/'Population 2016'!W$6","v":1.9813471502590673E-2},{"$f":"'Population 2016'!X106/'Population 2016'!X$6","v":1.9813471502590673E-2},{"$f":"'Population 2016'!Y106/'Population 2016'!Y$6","v":2.4600494026314462E-2},{"$f":"'Population 2016'!Z106/'Population 2016'!Z$6","v":9.8252777600554148E-3},{"$f":"'Population 2016'!AA106/'Population 2016'!AA$6","v":1.4814675940681303E-2},{"$f":"'Population 2016'!AB106/'Population 2016'!AB$6","v":2.8048178718822897E-2},{"$f":"'Population 2016'!AC106/'Population 2016'!AC$6","v":1.2233837678430396E-2},{"$f":"'Population 2016'!AD106/'Population 2016'!AD$6","v":2.6718743065110292E-2},{"$f":"'Population 2016'!AE106/'Population 2016'!AE$6","v":2.749009592374364E-2},{"$f":"'Population 2016'!AF106/'Population 2016'!AF$6","v":8.0484566876866913E-3},{"$f":"'Population 2016'!AG106/'Population 2016'!AG$6","v":2.749009592374364E-2},{"$f":"'Population 2016'!AH106/'Population 2016'!AH$6","v":1.9453253105562916E-2},{"$f":"'Population 2016'!AI106/'Population 2016'!AI$6","v":2.4161180562240255E-2},{"$f":"'Population 2016'!AJ106/'Population 2016'!AJ$6","v":2.979075903540529E-2},{"$f":"'Population 2016'!AK106/'Population 2016'!AK$6","v":3.5978586049441035E-2},{"$f":"'Population 2016'!AL106/'Population 2016'!AL$6","v":1.3560727186593237E-2},{"$f":"'Population 2016'!AM106/'Population 2016'!AM$6","v":1.8704245973645679E-2},{"$f":"'Population 2016'!AN106/'Population 2016'!AN$6","v":4.0369088811995385E-2},{"$f":"'Population 2016'!AO106/'Population 2016'!AO$6","v":4.0369088811995385E-2},{"$f":"'Population 2016'!AP106/'Population 2016'!AP$6","v":2.2076114603829727E-2},{"$f":"'Population 2016'!AQ106/'Population 2016'!AQ$6","v":1.6368587620519615E-2},{"$f":"'Population 2016'!AR106/'Population 2016'!AR$6","v":1.8901623611147222E-2},{"$f":"'Population 2016'!AS106/'Population 2016'!AS$6","v":2.398756919491114E-2},{"$f":"'Population 2016'!AT106/'Population 2016'!AT$6","v":2.2257551669316374E-2},{"$f":"'Population 2016'!AU106/'Population 2016'!AU$6","v":2.2257551669316374E-2},{"$f":"'Population 2016'!AV106/'Population 2016'!AV$6","v":2.0850708924103418E-2},{"$f":"'Population 2016'!AW106/'Population 2016'!AW$6","v":2.045880801644567E-2},{"$f":"'Population 2016'!AX106/'Population 2016'!AX$6","v":2.0531121101172545E-2},{"$f":"'Population 2016'!AY106/'Population 2016'!AY$6","v":1.8243420458600806E-2},{"$f":"'Population 2016'!AZ106/'Population 2016'!AZ$6","v":1.6551736458482208E-2},{"$f":"'Population 2016'!BA106/'Population 2016'!BA$6","v":1.665570896340127E-2},{"$f":"'Population 2016'!BB106/'Population 2016'!BB$6","v":2.6071035063840821E-2},{"$f":"'Population 2016'!BC106/'Population 2016'!BC$6","v":3.6818851251840944E-2},104]
[null,"Female 45-49",{"$f":"'Population 2016'!C107/'Population 2016'!C$6","v":2.6859355949221831E-2},{"$f":"'Population 2016'!D107/'Population 2016'!D$6","v":2.8561713702822171E-2},{"$f":"'Population 2016'!E107/'Population 2016'!E$6","v":3.3149705228568666E-2},{"$f":"'Population 2016'!F107/'Population 2016'!F$6","v":2.8780403358435038E-2},{"$f":"'Population 2016'!G107/'Population 2016'!G$6","v":2.9105563640434345E-2},{"$f":"'Population 2016'!H107/'Population 2016'!H$6","v":2.1387217753716083E-2},{"$f":"'Population 2016'!I107/'Population 2016'!I$6","v":3.2242400699232787E-2},{"$f":"'Population 2016'!J107/'Population 2016'!J$6","v":2.4407988922528105E-2},{"$f":"'Population 2016'!K107/'Population 2016'!K$6","v":2.5912894636744011E-2},{"$f":"'Population 2016'!L107/'Population 2016'!L$6","v":3.4995977473853579E-2},{"$f":"'Population 2016'!M107/'Population 2016'!M$6","v":3.4995977473853579E-2},{"$f":"'Population 2016'!N107/'Population 2016'!N$6","v":1.1748445058742226E-2},{"$f":"'Population 2016'!O107/'Population 2016'!O$6","v":2.2816301285135041E-2},{"$f":"'Population 2016'!P107/'Population 2016'!P$6","v":3.9858328487603741E-2},{"$f":"'Population 2016'!Q107/'Population 2016'!Q$6","v":4.2102832512315273E-2},{"$f":"'Population 2016'!R107/'Population 2016'!R$6","v":3.2866655284275223E-2},{"$f":"'Population 2016'!S107/'Population 2016'!S$6","v":2.5563189848378035E-2},{"$f":"'Population 2016'!T107/'Population 2016'!T$6","v":1.8290164611481502E-2},{"$f":"'Population 2016'!U107/'Population 2016'!U$6","v":4.2893961708394698E-2},{"$f":"'Population 2016'!V107/'Population 2016'!V$6","v":3.1073246606334842E-2},{"$f":"'Population 2016'!W107/'Population 2016'!W$6","v":2.267357512953368E-2},{"$f":"'Population 2016'!X107/'Population 2016'!X$6","v":2.267357512953368E-2},{"$f":"'Population 2016'!Y107/'Population 2016'!Y$6","v":2.8209910772798306E-2},{"$f":"'Population 2016'!Z107/'Population 2016'!Z$6","v":1.1073944785220157E-2},{"$f":"'Population 2016'!AA107/'Population 2016'!AA$6","v":1.7819356693351333E-2},{"$f":"'Population 2016'!AB107/'Population 2016'!AB$6","v":3.0414498474789161E-2},{"$f":"'Population 2016'!AC107/'Population 2016'!AC$6","v":1.4556496636618644E-2},{"$f":"'Population 2016'!AD107/'Population 2016'!AD$6","v":3.1571316556448153E-2},{"$f":"'Population 2016'!AE107/'Population 2016'!AE$6","v":3.2457216401552476E-2},{"$f":"'Population 2016'!AF107/'Population 2016'!AF$6","v":1.1063170704723974E-2},{"$f":"'Population 2016'!AG107/'Population 2016'!AG$6","v":3.2457216401552476E-2},{"$f":"'Population 2016'!AH107/'Population 2016'!AH$6","v":2.3683741289914306E-2},{"$f":"'Population 2016'!AI107/'Population 2016'!AI$6","v":2.6446301744811395E-2},{"$f":"'Population 2016'!AJ107/'Population 2016'!AJ$6","v":3.7307479904276859E-2},{"$f":"'Population 2016'!AK107/'Population 2016'!AK$6","v":4.1568256967406708E-2},{"$f":"'Population 2016'!AL107/'Population 2016'!AL$6","v":1.6876887546633506E-2},{"$f":"'Population 2016'!AM107/'Population 2016'!AM$6","v":2.2010736944851148E-2},{"$f":"'Population 2016'!AN107/'Population 2016'!AN$6","v":3.6524413687043442E-2},{"$f":"'Population 2016'!AO107/'Population 2016'!AO$6","v":3.6524413687043442E-2},{"$f":"'Population 2016'!AP107/'Population 2016'!AP$6","v":2.7979075682679849E-2},{"$f":"'Population 2016'!AQ107/'Population 2016'!AQ$6","v":1.8650180319422976E-2},{"$f":"'Population 2016'!AR107/'Population 2016'!AR$6","v":2.2139124360045351E-2},{"$f":"'Population 2016'!AS107/'Population 2016'!AS$6","v":3.2242400699232787E-2},{"$f":"'Population 2016'!AT107/'Population 2016'!AT$6","v":3.6565977742448331E-2},{"$f":"'Population 2016'!AU107/'Population 2016'!AU$6","v":3.6565977742448331E-2},{"$f":"'Population 2016'!AV107/'Population 2016'!AV$6","v":2.6665078041224831E-2},{"$f":"'Population 2016'!AW107/'Population 2016'!AW$6","v":2.5929778294662528E-2},{"$f":"'Population 2016'!AX107/'Population 2016'!AX$6","v":2.2941094684154423E-2},{"$f":"'Population 2016'!AY107/'Population 2016'!AY$6","v":2.0560932508373569E-2},{"$f":"'Population 2016'!AZ107/'Population 2016'!AZ$6","v":1.8284621980848934E-2},{"$f":"'Population 2016'!BA107/'Population 2016'!BA$6","v":2.0560635945251329E-2},{"$f":"'Population 2016'!BB107/'Population 2016'!BB$6","v":2.9797783394905696E-2},{"$f":"'Population 2016'!BC107/'Population 2016'!BC$6","v":4.2893961708394698E-2},105]
[null,"Female 50-54",{"$f":"'Population 2016'!C108/'Population 2016'!C$6","v":2.8006885175356811E-2},{"$f":"'Population 2016'!D108/'Population 2016'!D$6","v":3.0013339261894176E-2},{"$f":"'Population 2016'!E108/'Population 2016'!E$6","v":3.5420894945394799E-2},{"$f":"'Population 2016'!F108/'Population 2016'!F$6","v":2.6832857266510864E-2},{"$f":"'Population 2016'!G108/'Population 2016'!G$6","v":3.2295981193328112E-2},{"$f":"'Population 2016'!H108/'Population 2016'!H$6","v":2.2096746304787231E-2},{"$f":"'Population 2016'!I108/'Population 2016'!I$6","v":3.4621734485772555E-2},{"$f":"'Population 2016'!J108/'Population 2016'!J$6","v":2.5581449928418879E-2},{"$f":"'Population 2016'!K108/'Population 2016'!K$6","v":2.6721186763027767E-2},{"$f":"'Population 2016'!L108/'Population 2016'!L$6","v":3.787878787878788E-2},{"$f":"'Population 2016'!M108/'Population 2016'!M$6","v":3.787878787878788E-2},{"$f":"'Population 2016'!N108/'Population 2016'!N$6","v":1.4012851240277022E-2},{"$f":"'Population 2016'!O108/'Population 2016'!O$6","v":2.1544911002680227E-2},{"$f":"'Population 2016'!P108/'Population 2016'!P$6","v":3.9118253422847173E-2},{"$f":"'Population 2016'!Q108/'Population 2016'!Q$6","v":4.2795566502463057E-2},{"$f":"'Population 2016'!R108/'Population 2016'!R$6","v":3.0988560696602357E-2},{"$f":"'Population 2016'!S108/'Population 2016'!S$6","v":2.5781521270215386E-2},{"$f":"'Population 2016'!T108/'Population 2016'!T$6","v":1.7363013409977833E-2},{"$f":"'Population 2016'!U108/'Population 2016'!U$6","v":4.9705449189985269E-2},{"$f":"'Population 2016'!V108/'Population 2016'!V$6","v":3.0967194570135748E-2},{"$f":"'Population 2016'!W108/'Population 2016'!W$6","v":2.4431088082901554E-2},{"$f":"'Population 2016'!X108/'Population 2016'!X$6","v":2.4431088082901554E-2},{"$f":"'Population 2016'!Y108/'Population 2016'!Y$6","v":2.8653526238846601E-2},{"$f":"'Population 2016'!Z108/'Population 2016'!Z$6","v":1.1347375520657692E-2},{"$f":"'Population 2016'!AA108/'Population 2016'!AA$6","v":1.848303617740615E-2},{"$f":"'Population 2016'!AB108/'Population 2016'!AB$6","v":3.1491117889825948E-2},{"$f":"'Population 2016'!AC108/'Population 2016'!AC$6","v":1.5029198585395649E-2},{"$f":"'Population 2016'!AD108/'Population 2016'!AD$6","v":3.4485819537526073E-2},{"$f":"'Population 2016'!AE108/'Population 2016'!AE$6","v":3.5272588332294325E-2},{"$f":"'Population 2016'!AF108/'Population 2016'!AF$6","v":1.3275804845668768E-2},{"$f":"'Population 2016'!AG108/'Population 2016'!AG$6","v":3.5272588332294325E-2},{"$f":"'Population 2016'!AH108/'Population 2016'!AH$6","v":2.4690667403214472E-2},{"$f":"'Population 2016'!AI108/'Population 2016'!AI$6","v":2.5701335498478677E-2},{"$f":"'Population 2016'!AJ108/'Population 2016'!AJ$6","v":3.7031355464195864E-2},{"$f":"'Population 2016'!AK108/'Population 2016'!AK$6","v":4.0387340576287199E-2},{"$f":"'Population 2016'!AL108/'Population 2016'!AL$6","v":1.7602297625392314E-2},{"$f":"'Population 2016'!AM108/'Population 2016'!AM$6","v":2.2712298682284041E-2},{"$f":"'Population 2016'!AN108/'Population 2016'!AN$6","v":4.690503652441369E-2},{"$f":"'Population 2016'!AO108/'Population 2016'!AO$6","v":4.690503652441369E-2},{"$f":"'Population 2016'!AP108/'Population 2016'!AP$6","v":2.6971253059461534E-2},{"$f":"'Population 2016'!AQ108/'Population 2016'!AQ$6","v":1.9356738058438214E-2},{"$f":"'Population 2016'!AR108/'Population 2016'!AR$6","v":2.2901022231818165E-2},{"$f":"'Population 2016'!AS108/'Population 2016'!AS$6","v":3.4621734485772555E-2},{"$f":"'Population 2016'!AT108/'Population 2016'!AT$6","v":3.1796502384737677E-2},{"$f":"'Population 2016'!AU108/'Population 2016'!AU$6","v":3.1796502384737677E-2},{"$f":"'Population 2016'!AV108/'Population 2016'!AV$6","v":3.0096508995591565E-2},{"$f":"'Population 2016'!AW108/'Population 2016'!AW$6","v":2.7346661315817491E-2},{"$f":"'Population 2016'!AX108/'Population 2016'!AX$6","v":2.4470500996431385E-2},{"$f":"'Population 2016'!AY108/'Population 2016'!AY$6","v":2.1850827897857483E-2},{"$f":"'Population 2016'!AZ108/'Population 2016'!AZ$6","v":1.9070673145633842E-2},{"$f":"'Population 2016'!BA108/'Population 2016'!BA$6","v":2.1775944852867931E-2},{"$f":"'Population 2016'!BB108/'Population 2016'!BB$6","v":2.855013286667963E-2},{"$f":"'Population 2016'!BC108/'Population 2016'!BC$6","v":4.9705449189985269E-2},106]
[null,"Female 55-59",{"$f":"'Population 2016'!C109/'Population 2016'!C$6","v":2.4922900380119056E-2},{"$f":"'Population 2016'!D109/'Population 2016'!D$6","v":2.6730834619307926E-2},{"$f":"'Population 2016'!E109/'Population 2016'!E$6","v":3.1603363293708324E-2},{"$f":"'Population 2016'!F109/'Population 2016'!F$6","v":2.9040076170691594E-2},{"$f":"'Population 2016'!G109/'Population 2016'!G$6","v":3.2855703571028773E-2},{"$f":"'Population 2016'!H109/'Population 2016'!H$6","v":2.0773087999427606E-2},{"$f":"'Population 2016'!I109/'Population 2016'!I$6","v":3.3650577838205305E-2},{"$f":"'Population 2016'!J109/'Population 2016'!J$6","v":2.1967190030275294E-2},{"$f":"'Population 2016'!K109/'Population 2016'!K$6","v":2.2394446557626475E-2},{"$f":"'Population 2016'!L109/'Population 2016'!L$6","v":3.5353535353535352E-2},{"$f":"'Population 2016'!M109/'Population 2016'!M$6","v":3.5353535353535352E-2},{"$f":"'Population 2016'!N109/'Population 2016'!N$6","v":1.3233542619359202E-2},{"$f":"'Population 2016'!O109/'Population 2016'!O$6","v":2.0410968318328636E-2},{"$f":"'Population 2016'!P109/'Population 2016'!P$6","v":3.700375323782841E-2},{"$f":"'Population 2016'!Q109/'Population 2016'!Q$6","v":4.0524938423645324E-2},{"$f":"'Population 2016'!R109/'Population 2016'!R$6","v":2.4585965511353936E-2},{"$f":"'Population 2016'!S109/'Population 2016'!S$6","v":2.3879670451077979E-2},{"$f":"'Population 2016'!T109/'Population 2016'!T$6","v":1.57699990728488E-2},{"$f":"'Population 2016'!U109/'Population 2016'!U$6","v":4.252577319587629E-2},{"$f":"'Population 2016'!V109/'Population 2016'!V$6","v":2.7043269230769232E-2},{"$f":"'Population 2016'!W109/'Population 2016'!W$6","v":2.205181347150259E-2},{"$f":"'Population 2016'!X109/'Population 2016'!X$6","v":2.205181347150259E-2},{"$f":"'Population 2016'!Y109/'Population 2016'!Y$6","v":2.4862630438070271E-2},{"$f":"'Population 2016'!Z109/'Population 2016'!Z$6","v":1.0156432761863097E-2},{"$f":"'Population 2016'!AA109/'Population 2016'!AA$6","v":1.6771967978402295E-2},{"$f":"'Population 2016'!AB109/'Population 2016'!AB$6","v":2.8631347568634488E-2},{"$f":"'Population 2016'!AC109/'Population 2016'!AC$6","v":1.3496321484011781E-2},{"$f":"'Population 2016'!AD109/'Population 2016'!AD$6","v":3.3420620478451908E-2},{"$f":"'Population 2016'!AE109/'Population 2016'!AE$6","v":3.3623584772859816E-2},{"$f":"'Population 2016'!AF109/'Population 2016'!AF$6","v":1.2114171921672752E-2},{"$f":"'Population 2016'!AG109/'Population 2016'!AG$6","v":3.3623584772859816E-2},{"$f":"'Population 2016'!AH109/'Population 2016'!AH$6","v":2.2659333820480458E-2},{"$f":"'Population 2016'!AI109/'Population 2016'!AI$6","v":2.3960290787948289E-2},{"$f":"'Population 2016'!AJ109/'Population 2016'!AJ$6","v":3.629502362397987E-2},{"$f":"'Population 2016'!AK109/'Population 2016'!AK$6","v":4.0072429538655328E-2},{"$f":"'Population 2016'!AL109/'Population 2016'!AL$6","v":1.5692544560904839E-2},{"$f":"'Population 2016'!AM109/'Population 2016'!AM$6","v":2.0552708638360177E-2},{"$f":"'Population 2016'!AN109/'Population 2016'!AN$6","v":4.1906958861976165E-2},{"$f":"'Population 2016'!AO109/'Population 2016'!AO$6","v":4.1906958861976165E-2},{"$f":"'Population 2016'!AP109/'Population 2016'!AP$6","v":2.4427700724672458E-2},{"$f":"'Population 2016'!AQ109/'Population 2016'!AQ$6","v":1.7060425406638699E-2},{"$f":"'Population 2016'!AR109/'Population 2016'!AR$6","v":2.1068058731700038E-2},{"$f":"'Population 2016'!AS109/'Population 2016'!AS$6","v":3.3650577838205305E-2},{"$f":"'Population 2016'!AT109/'Population 2016'!AT$6","v":2.2257551669316374E-2},{"$f":"'Population 2016'!AU109/'Population 2016'!AU$6","v":2.2257551669316374E-2},{"$f":"'Population 2016'!AV109/'Population 2016'!AV$6","v":2.9453115691647803E-2},{"$f":"'Population 2016'!AW109/'Population 2016'!AW$6","v":2.5487514230255776E-2},{"$f":"'Population 2016'!AX109/'Population 2016'!AX$6","v":2.1550725309357185E-2},{"$f":"'Population 2016'!AY109/'Population 2016'!AY$6","v":2.0380347153845822E-2},{"$f":"'Population 2016'!AZ109/'Population 2016'!AZ$6","v":1.8579391167643275E-2},{"$f":"'Population 2016'!BA109/'Population 2016'!BA$6","v":2.0122327814635507E-2},{"$f":"'Population 2016'!BB109/'Population 2016'!BB$6","v":2.6216864346360749E-2},{"$f":"'Population 2016'!BC109/'Population 2016'!BC$6","v":4.252577319587629E-2},107]
[null,"Female 60-64",{"$f":"'Population 2016'!C110/'Population 2016'!C$6","v":2.2269239044681918E-2},{"$f":"'Population 2016'!D110/'Population 2016'!D$6","v":2.4219914733345539E-2},{"$f":"'Population 2016'!E110/'Population 2016'!E$6","v":2.9477143133275346E-2},{"$f":"'Population 2016'!F110/'Population 2016'!F$6","v":2.4365965550073573E-2},{"$f":"'Population 2016'!G110/'Population 2016'!G$6","v":2.9441397067054741E-2},{"$f":"'Population 2016'!H110/'Population 2016'!H$6","v":1.8280794433480206E-2},{"$f":"'Population 2016'!I110/'Population 2016'!I$6","v":3.0542876565990095E-2},{"$f":"'Population 2016'!J110/'Population 2016'!J$6","v":1.8681499213781125E-2},{"$f":"'Population 2016'!K110/'Population 2016'!K$6","v":1.9874476987447699E-2},{"$f":"'Population 2016'!L110/'Population 2016'!L$6","v":3.4772503799052473E-2},{"$f":"'Population 2016'!M110/'Population 2016'!M$6","v":3.4772503799052473E-2},{"$f":"'Population 2016'!N110/'Population 2016'!N$6","v":1.1395550588892647E-2},{"$f":"'Population 2016'!O110/'Population 2016'!O$6","v":1.7868187753419008E-2},{"$f":"'Population 2016'!P110/'Population 2016'!P$6","v":2.7911402442247712E-2},{"$f":"'Population 2016'!Q110/'Population 2016'!Q$6","v":3.3943965517241381E-2},{"$f":"'Population 2016'!R110/'Population 2016'!R$6","v":2.142735188663138E-2},{"$f":"'Population 2016'!S110/'Population 2016'!S$6","v":2.0523153652710992E-2},{"$f":"'Population 2016'!T110/'Population 2016'!T$6","v":1.2946402231905801E-2},{"$f":"'Population 2016'!U110/'Population 2016'!U$6","v":4.5655375552282766E-2},{"$f":"'Population 2016'!V110/'Population 2016'!V$6","v":2.5205033936651584E-2},{"$f":"'Population 2016'!W110/'Population 2016'!W$6","v":2.010362694300518E-2},{"$f":"'Population 2016'!X110/'Population 2016'!X$6","v":2.010362694300518E-2},{"$f":"'Population 2016'!Y110/'Population 2016'!Y$6","v":2.2402581035438827E-2},{"$f":"'Population 2016'!Z110/'Population 2016'!Z$6","v":7.9902537133412933E-3},{"$f":"'Population 2016'!AA110/'Population 2016'!AA$6","v":1.4247236231150441E-2},{"$f":"'Population 2016'!AB110/'Population 2016'!AB$6","v":2.6242598241521621E-2},{"$f":"'Population 2016'!AC110/'Population 2016'!AC$6","v":1.0763209393346379E-2},{"$f":"'Population 2016'!AD110/'Population 2016'!AD$6","v":3.0195434438477359E-2},{"$f":"'Population 2016'!AE110/'Population 2016'!AE$6","v":3.0466346250527881E-2},{"$f":"'Population 2016'!AF110/'Population 2016'!AF$6","v":8.7952207102555587E-3},{"$f":"'Population 2016'!AG110/'Population 2016'!AG$6","v":3.0466346250527881E-2},{"$f":"'Population 2016'!AH110/'Population 2016'!AH$6","v":2.0509127016037396E-2},{"$f":"'Population 2016'!AI110/'Population 2016'!AI$6","v":1.987134684038052E-2},{"$f":"'Population 2016'!AJ110/'Population 2016'!AJ$6","v":2.9729398048720622E-2},{"$f":"'Population 2016'!AK110/'Population 2016'!AK$6","v":3.841914659108802E-2},{"$f":"'Population 2016'!AL110/'Population 2016'!AL$6","v":1.3664357197844496E-2},{"$f":"'Population 2016'!AM110/'Population 2016'!AM$6","v":1.8661542215714984E-2},{"$f":"'Population 2016'!AN110/'Population 2016'!AN$6","v":3.9984621299500193E-2},{"$f":"'Population 2016'!AO110/'Population 2016'!AO$6","v":3.9984621299500193E-2},{"$f":"'Population 2016'!AP110/'Population 2016'!AP$6","v":2.3899793636320006E-2},{"$f":"'Population 2016'!AQ110/'Population 2016'!AQ$6","v":1.3851475675277839E-2},{"$f":"'Population 2016'!AR110/'Population 2016'!AR$6","v":1.8450589114355896E-2},{"$f":"'Population 2016'!AS110/'Population 2016'!AS$6","v":3.0542876565990095E-2},{"$f":"'Population 2016'!AT110/'Population 2016'!AT$6","v":4.7694753577106522E-2},{"$f":"'Population 2016'!AU110/'Population 2016'!AU$6","v":4.7694753577106522E-2},{"$f":"'Population 2016'!AV110/'Population 2016'!AV$6","v":2.6283807935184082E-2},{"$f":"'Population 2016'!AW110/'Population 2016'!AW$6","v":2.2989541273884306E-2},{"$f":"'Population 2016'!AX110/'Population 2016'!AX$6","v":1.7518654122445198E-2},{"$f":"'Population 2016'!AY110/'Population 2016'!AY$6","v":1.8320814181969843E-2},{"$f":"'Population 2016'!AZ110/'Population 2016'!AZ$6","v":1.6399885665285122E-2},{"$f":"'Population 2016'!BA110/'Population 2016'!BA$6","v":1.723347877194031E-2},{"$f":"'Population 2016'!BB110/'Population 2016'!BB$6","v":2.205262816773608E-2},{"$f":"'Population 2016'!BC110/'Population 2016'!BC$6","v":4.5655375552282766E-2},108]
[null,"Female 65-69",{"$f":"'Population 2016'!C111/'Population 2016'!C$6","v":2.1067919386071863E-2},{"$f":"'Population 2016'!D111/'Population 2016'!D$6","v":2.4141448486909214E-2},{"$f":"'Population 2016'!E111/'Population 2016'!E$6","v":3.2424857446602881E-2},{"$f":"'Population 2016'!F111/'Population 2016'!F$6","v":2.6010560027698432E-2},{"$f":"'Population 2016'!G111/'Population 2016'!G$6","v":3.2295981193328112E-2},{"$f":"'Population 2016'!H111/'Population 2016'!H$6","v":1.8817412665382758E-2},{"$f":"'Population 2016'!I111/'Population 2016'!I$6","v":3.3213557346800038E-2},{"$f":"'Population 2016'!J111/'Population 2016'!J$6","v":1.9362106597197774E-2},{"$f":"'Population 2016'!K111/'Population 2016'!K$6","v":2.1823887409661468E-2},{"$f":"'Population 2016'!L111/'Population 2016'!L$6","v":3.4392598551890585E-2},{"$f":"'Population 2016'!M111/'Population 2016'!M$6","v":3.4392598551890585E-2},{"$f":"'Population 2016'!N111/'Population 2016'!N$6","v":1.1748445058742226E-2},{"$f":"'Population 2016'!O111/'Population 2016'!O$6","v":1.7988454401759328E-2},{"$f":"'Population 2016'!P111/'Population 2016'!P$6","v":2.7647089919120366E-2},{"$f":"'Population 2016'!Q111/'Population 2016'!Q$6","v":3.3020320197044338E-2},{"$f":"'Population 2016'!R111/'Population 2016'!R$6","v":2.1085880143418133E-2},{"$f":"'Population 2016'!S111/'Population 2016'!S$6","v":2.1115015940824294E-2},{"$f":"'Population 2016'!T111/'Population 2016'!T$6","v":1.2701971460600288E-2},{"$f":"'Population 2016'!U111/'Population 2016'!U$6","v":4.3446244477172311E-2},{"$f":"'Population 2016'!V111/'Population 2016'!V$6","v":2.5116657239819005E-2},{"$f":"'Population 2016'!W111/'Population 2016'!W$6","v":2.070880829015544E-2},{"$f":"'Population 2016'!X111/'Population 2016'!X$6","v":2.070880829015544E-2},{"$f":"'Population 2016'!Y111/'Population 2016'!Y$6","v":2.2644553107828806E-2},{"$f":"'Population 2016'!Z111/'Population 2016'!Z$6","v":6.9542550379613002E-3},{"$f":"'Population 2016'!AA111/'Population 2016'!AA$6","v":1.3693545060837286E-2},{"$f":"'Population 2016'!AB111/'Population 2016'!AB$6","v":2.5782792033016328E-2},{"$f":"'Population 2016'!AC111/'Population 2016'!AC$6","v":1.0354701536378597E-2},{"$f":"'Population 2016'!AD111/'Population 2016'!AD$6","v":3.1319811223055639E-2},{"$f":"'Population 2016'!AE111/'Population 2016'!AE$6","v":3.0969091238160357E-2},{"$f":"'Population 2016'!AF111/'Population 2016'!AF$6","v":9.9568536342515765E-3},{"$f":"'Population 2016'!AG111/'Population 2016'!AG$6","v":3.0969091238160357E-2},{"$f":"'Population 2016'!AH111/'Population 2016'!AH$6","v":1.9694495820207748E-2},{"$f":"'Population 2016'!AI111/'Population 2016'!AI$6","v":2.0277311592595538E-2},{"$f":"'Population 2016'!AJ111/'Population 2016'!AJ$6","v":3.1938393569368596E-2},{"$f":"'Population 2016'!AK111/'Population 2016'!AK$6","v":3.5663675011809164E-2},{"$f":"'Population 2016'!AL111/'Population 2016'!AL$6","v":1.4448984425889738E-2},{"$f":"'Population 2016'!AM111/'Population 2016'!AM$6","v":1.7911176183504147E-2},{"$f":"'Population 2016'!AN111/'Population 2016'!AN$6","v":4.5751633986928102E-2},{"$f":"'Population 2016'!AO111/'Population 2016'!AO$6","v":4.5751633986928102E-2},{"$f":"'Population 2016'!AP111/'Population 2016'!AP$6","v":2.2076114603829727E-2},{"$f":"'Population 2016'!AQ111/'Population 2016'!AQ$6","v":1.5544270258335173E-2},{"$f":"'Population 2016'!AR111/'Population 2016'!AR$6","v":1.8414415921630779E-2},{"$f":"'Population 2016'!AS111/'Population 2016'!AS$6","v":3.3213557346800038E-2},{"$f":"'Population 2016'!AT111/'Population 2016'!AT$6","v":3.9745627980922099E-2},{"$f":"'Population 2016'!AU111/'Population 2016'!AU$6","v":3.9745627980922099E-2},{"$f":"'Population 2016'!AV111/'Population 2016'!AV$6","v":2.6998689384010486E-2},{"$f":"'Population 2016'!AW111/'Population 2016'!AW$6","v":2.208863299453722E-2},{"$f":"'Population 2016'!AX111/'Population 2016'!AX$6","v":1.69625063725263E-2},{"$f":"'Population 2016'!AY111/'Population 2016'!AY$6","v":1.8737880357902973E-2},{"$f":"'Population 2016'!AZ111/'Population 2016'!AZ$6","v":1.6614263255681005E-2},{"$f":"'Population 2016'!BA111/'Population 2016'!BA$6","v":1.6894786125555356E-2},{"$f":"'Population 2016'!BB111/'Population 2016'!BB$6","v":2.3316481949575474E-2},{"$f":"'Population 2016'!BC111/'Population 2016'!BC$6","v":4.3446244477172311E-2},109]
[null,"Female 70-74",{"$f":"'Population 2016'!C112/'Population 2016'!C$6","v":1.4523416768270818E-2},{"$f":"'Population 2016'!D112/'Population 2016'!D$6","v":1.7432584416603458E-2},{"$f":"'Population 2016'!E112/'Population 2016'!E$6","v":2.5273025997873781E-2},{"$f":"'Population 2016'!F112/'Population 2016'!F$6","v":2.0990218990738337E-2},{"$f":"'Population 2016'!G112/'Population 2016'!G$6","v":2.664278517855144E-2},{"$f":"'Population 2016'!H112/'Population 2016'!H$6","v":1.5156483838847582E-2},{"$f":"'Population 2016'!I112/'Population 2016'!I$6","v":2.6561134310964359E-2},{"$f":"'Population 2016'!J112/'Population 2016'!J$6","v":1.5771315919172007E-2},{"$f":"'Population 2016'!K112/'Population 2016'!K$6","v":1.6783948269303919E-2},{"$f":"'Population 2016'!L112/'Population 2016'!L$6","v":2.7978904085098774E-2},{"$f":"'Population 2016'!M112/'Population 2016'!M$6","v":2.7978904085098774E-2},{"$f":"'Population 2016'!N112/'Population 2016'!N$6","v":9.4399270684762306E-3},{"$f":"'Population 2016'!O112/'Population 2016'!O$6","v":1.467253109751907E-2},{"$f":"'Population 2016'!P112/'Population 2016'!P$6","v":2.4739652164719565E-2},{"$f":"'Population 2016'!Q112/'Population 2016'!Q$6","v":2.6708743842364532E-2},{"$f":"'Population 2016'!R112/'Population 2016'!R$6","v":1.2463718627283592E-2},{"$f":"'Population 2016'!S112/'Population 2016'!S$6","v":1.6451141110491483E-2},{"$f":"'Population 2016'!T112/'Population 2016'!T$6","v":9.5749433173469983E-3},{"$f":"'Population 2016'!U112/'Population 2016'!U$6","v":3.1848306332842413E-2},{"$f":"'Population 2016'!V112/'Population 2016'!V$6","v":2.0503393665158371E-2},{"$f":"'Population 2016'!W112/'Population 2016'!W$6","v":1.5933678756476683E-2},{"$f":"'Population 2016'!X112/'Population 2016'!X$6","v":1.5933678756476683E-2},{"$f":"'Population 2016'!Y112/'Population 2016'!Y$6","v":1.8470534859101679E-2},{"$f":"'Population 2016'!Z112/'Population 2016'!Z$6","v":5.3106325060534526E-3},{"$f":"'Population 2016'!AA112/'Population 2016'!AA$6","v":1.1003830842972934E-2},{"$f":"'Population 2016'!AB112/'Population 2016'!AB$6","v":1.8919343262156829E-2},{"$f":"'Population 2016'!AC112/'Population 2016'!AC$6","v":8.0281520271716089E-3},{"$f":"'Population 2016'!AD112/'Population 2016'!AD$6","v":2.3700679064400161E-2},{"$f":"'Population 2016'!AE112/'Population 2016'!AE$6","v":2.2643634242966598E-2},{"$f":"'Population 2016'!AF112/'Population 2016'!AF$6","v":7.5782719327359225E-3},{"$f":"'Population 2016'!AG112/'Population 2016'!AG$6","v":2.2643634242966598E-2},{"$f":"'Population 2016'!AH112/'Population 2016'!AH$6","v":1.6352060527447476E-2},{"$f":"'Population 2016'!AI112/'Population 2016'!AI$6","v":1.5840995743647907E-2},{"$f":"'Population 2016'!AJ112/'Population 2016'!AJ$6","v":2.3194452966803707E-2},{"$f":"'Population 2016'!AK112/'Population 2016'!AK$6","v":2.7869626830420408E-2},{"$f":"'Population 2016'!AL112/'Population 2016'!AL$6","v":1.1058802629241428E-2},{"$f":"'Population 2016'!AM112/'Population 2016'!AM$6","v":1.5165934602244998E-2},{"$f":"'Population 2016'!AN112/'Population 2016'!AN$6","v":3.9600153787004995E-2},{"$f":"'Population 2016'!AO112/'Population 2016'!AO$6","v":3.9600153787004995E-2},{"$f":"'Population 2016'!AP112/'Population 2016'!AP$6","v":1.7708883236550368E-2},{"$f":"'Population 2016'!AQ112/'Population 2016'!AQ$6","v":1.2585559726208876E-2},{"$f":"'Population 2016'!AR112/'Population 2016'!AR$6","v":1.4561970896405627E-2},{"$f":"'Population 2016'!AS112/'Population 2016'!AS$6","v":2.6561134310964359E-2},{"$f":"'Population 2016'!AT112/'Population 2016'!AT$6","v":3.0206677265500796E-2},{"$f":"'Population 2016'!AU112/'Population 2016'!AU$6","v":3.0206677265500796E-2},{"$f":"'Population 2016'!AV112/'Population 2016'!AV$6","v":2.2423448111521506E-2},{"$f":"'Population 2016'!AW112/'Population 2016'!AW$6","v":1.7944454909540618E-2},{"$f":"'Population 2016'!AX112/'Population 2016'!AX$6","v":1.4784261018677296E-2},{"$f":"'Population 2016'!AY112/'Population 2016'!AY$6","v":1.4696208137520048E-2},{"$f":"'Population 2016'!AZ112/'Population 2016'!AZ$6","v":1.3362869801343434E-2},{"$f":"'Population 2016'!BA112/'Population 2016'!BA$6","v":1.2671089594166518E-2},{"$f":"'Population 2016'!BB112/'Population 2016'!BB$6","v":1.942770108237734E-2},{"$f":"'Population 2016'!BC112/'Population 2016'!BC$6","v":3.1848306332842413E-2},110]
[null,"Female 75-79",{"$f":"'Population 2016'!C113/'Population 2016'!C$6","v":1.4415835903320663E-2},{"$f":"'Population 2016'!D113/'Population 2016'!D$6","v":1.6059425103967778E-2},{"$f":"'Population 2016'!E113/'Population 2016'!E$6","v":2.0489030636899584E-2},{"$f":"'Population 2016'!F113/'Population 2016'!F$6","v":1.8480048472258287E-2},{"$f":"'Population 2016'!G113/'Population 2016'!G$6","v":2.4627784618829061E-2},{"$f":"'Population 2016'!H113/'Population 2016'!H$6","v":1.2318369634562985E-2},{"$f":"'Population 2016'!I113/'Population 2016'!I$6","v":2.1462561911236282E-2},{"$f":"'Population 2016'!J113/'Population 2016'!J$6","v":1.2532563542913469E-2},{"$f":"'Population 2016'!K113/'Population 2016'!K$6","v":1.1411182959300114E-2},{"$f":"'Population 2016'!L113/'Population 2016'!L$6","v":2.1922767497988736E-2},{"$f":"'Population 2016'!M113/'Population 2016'!M$6","v":2.1922767497988736E-2},{"$f":"'Population 2016'!N113/'Population 2016'!N$6","v":9.0723286623829204E-3},{"$f":"'Population 2016'!O113/'Population 2016'!O$6","v":1.2542093326919112E-2},{"$f":"'Population 2016'!P113/'Population 2016'!P$6","v":2.0087751757678279E-2},{"$f":"'Population 2016'!Q113/'Population 2016'!Q$6","v":2.3591440886699507E-2},{"$f":"'Population 2016'!R113/'Population 2016'!R$6","v":1.3488133856923339E-2},{"$f":"'Population 2016'!S113/'Population 2016'!S$6","v":1.3783815065394207E-2},{"$f":"'Population 2016'!T113/'Population 2016'!T$6","v":9.1703682475999422E-3},{"$f":"'Population 2016'!U113/'Population 2016'!U$6","v":3.0559646539027981E-2},{"$f":"'Population 2016'!V113/'Population 2016'!V$6","v":1.7003676470588234E-2},{"$f":"'Population 2016'!W113/'Population 2016'!W$6","v":1.3081865284974093E-2},{"$f":"'Population 2016'!X113/'Population 2016'!X$6","v":1.3081865284974093E-2},{"$f":"'Population 2016'!Y113/'Population 2016'!Y$6","v":1.5082925845641982E-2},{"$f":"'Population 2016'!Z113/'Population 2016'!Z$6","v":5.2103745697263566E-3},{"$f":"'Population 2016'!AA113/'Population 2016'!AA$6","v":9.7627127117743736E-3},{"$f":"'Population 2016'!AB113/'Population 2016'!AB$6","v":1.7225910640588551E-2},{"$f":"'Population 2016'!AC113/'Population 2016'!AC$6","v":7.5243256702446767E-3},{"$f":"'Population 2016'!AD113/'Population 2016'!AD$6","v":2.1777402985516253E-2},{"$f":"'Population 2016'!AE113/'Population 2016'!AE$6","v":2.0753313089468498E-2},{"$f":"'Population 2016'!AF113/'Population 2016'!AF$6","v":5.5869012058856072E-3},{"$f":"'Population 2016'!AG113/'Population 2016'!AG$6","v":2.0753313089468498E-2},{"$f":"'Population 2016'!AH113/'Population 2016'!AH$6","v":1.3785797447022751E-2},{"$f":"'Population 2016'!AI113/'Population 2016'!AI$6","v":1.3476355692086198E-2},{"$f":"'Population 2016'!AJ113/'Population 2016'!AJ$6","v":1.8438976498742099E-2},{"$f":"'Population 2016'!AK113/'Population 2016'!AK$6","v":2.4248149897653913E-2},{"$f":"'Population 2016'!AL113/'Population 2016'!AL$6","v":8.4088351986735359E-3},{"$f":"'Population 2016'!AM113/'Population 2016'!AM$6","v":1.2628111273792094E-2},{"$f":"'Population 2016'!AN113/'Population 2016'!AN$6","v":2.4221453287197232E-2},{"$f":"'Population 2016'!AO113/'Population 2016'!AO$6","v":2.4221453287197232E-2},{"$f":"'Population 2016'!AP113/'Population 2016'!AP$6","v":1.3533618083217354E-2},{"$f":"'Population 2016'!AQ113/'Population 2016'!AQ$6","v":1.184956208140134E-2},{"$f":"'Population 2016'!AR113/'Population 2016'!AR$6","v":1.2528924424026687E-2},{"$f":"'Population 2016'!AS113/'Population 2016'!AS$6","v":2.1462561911236282E-2},{"$f":"'Population 2016'!AT113/'Population 2016'!AT$6","v":1.5898251192368838E-2},{"$f":"'Population 2016'!AU113/'Population 2016'!AU$6","v":1.5898251192368838E-2},{"$f":"'Population 2016'!AV113/'Population 2016'!AV$6","v":1.8300965089955917E-2},{"$f":"'Population 2016'!AW113/'Population 2016'!AW$6","v":1.5340010974700858E-2},{"$f":"'Population 2016'!AX113/'Population 2016'!AX$6","v":1.362561987301293E-2},{"$f":"'Population 2016'!AY113/'Population 2016'!AY$6","v":1.2486187370204276E-2},{"$f":"'Population 2016'!AZ113/'Population 2016'!AZ$6","v":1.1844361869372589E-2},{"$f":"'Population 2016'!BA113/'Population 2016'!BA$6","v":1.2113242882473651E-2},{"$f":"'Population 2016'!BB113/'Population 2016'!BB$6","v":1.487458681703286E-2},{"$f":"'Population 2016'!BC113/'Population 2016'!BC$6","v":3.0559646539027981E-2},111]
[null,"Female 80-84",{"$f":"'Population 2016'!C114/'Population 2016'!C$6","v":1.2784192784909991E-2},{"$f":"'Population 2016'!D114/'Population 2016'!D$6","v":1.3744670834096199E-2},{"$f":"'Population 2016'!E114/'Population 2016'!E$6","v":1.6333236686962405E-2},{"$f":"'Population 2016'!F114/'Population 2016'!F$6","v":1.4282004674110621E-2},{"$f":"'Population 2016'!G114/'Population 2016'!G$6","v":1.8694727415202061E-2},{"$f":"'Population 2016'!H114/'Population 2016'!H$6","v":9.6591281742459019E-3},{"$f":"'Population 2016'!I114/'Population 2016'!I$6","v":1.6995241332426921E-2},{"$f":"'Population 2016'!J114/'Population 2016'!J$6","v":8.3785115820601275E-3},{"$f":"'Population 2016'!K114/'Population 2016'!K$6","v":7.6550019018638265E-3},{"$f":"'Population 2016'!L114/'Population 2016'!L$6","v":1.8257799231250559E-2},{"$f":"'Population 2016'!M114/'Population 2016'!M$6","v":1.8257799231250559E-2},{"$f":"'Population 2016'!N114/'Population 2016'!N$6","v":7.3813759943536887E-3},{"$f":"'Population 2016'!O114/'Population 2016'!O$6","v":9.2948938217304652E-3},{"$f":"'Population 2016'!P114/'Population 2016'!P$6","v":1.8501876618914205E-2},{"$f":"'Population 2016'!Q114/'Population 2016'!Q$6","v":1.8588362068965518E-2},{"$f":"'Population 2016'!R114/'Population 2016'!R$6","v":1.2890558306300154E-2},{"$f":"'Population 2016'!S114/'Population 2016'!S$6","v":1.060354170393207E-2},{"$f":"'Population 2016'!T114/'Population 2016'!T$6","v":6.8693475384135599E-3},{"$f":"'Population 2016'!U114/'Population 2016'!U$6","v":2.8166421207658322E-2},{"$f":"'Population 2016'!V114/'Population 2016'!V$6","v":1.2249010180995475E-2},{"$f":"'Population 2016'!W114/'Population 2016'!W$6","v":1.0420725388601036E-2},{"$f":"'Population 2016'!X114/'Population 2016'!X$6","v":1.0420725388601036E-2},{"$f":"'Population 2016'!Y114/'Population 2016'!Y$6","v":1.0586278167061551E-2},{"$f":"'Population 2016'!Z114/'Population 2016'!Z$6","v":4.6938942916776799E-3},{"$f":"'Population 2016'!AA114/'Population 2016'!AA$6","v":7.8816625733515808E-3},{"$f":"'Population 2016'!AB114/'Population 2016'!AB$6","v":1.4265207249237395E-2},{"$f":"'Population 2016'!AC114/'Population 2016'!AC$6","v":6.4291355584691458E-3},{"$f":"'Population 2016'!AD114/'Population 2016'!AD$6","v":1.5948397023360407E-2},{"$f":"'Population 2016'!AE114/'Population 2016'!AE$6","v":1.4961690831942405E-2},{"$f":"'Population 2016'!AF114/'Population 2016'!AF$6","v":4.3146365748423501E-3},{"$f":"'Population 2016'!AG114/'Population 2016'!AG$6","v":1.4961690831942405E-2},{"$f":"'Population 2016'!AH114/'Population 2016'!AH$6","v":1.0492309951436792E-2},{"$f":"'Population 2016'!AI114/'Population 2016'!AI$6","v":1.0144933601744392E-2},{"$f":"'Population 2016'!AJ114/'Population 2016'!AJ$6","v":1.4511873350923483E-2},{"$f":"'Population 2016'!AK114/'Population 2016'!AK$6","v":1.7398834829160763E-2},{"$f":"'Population 2016'!AL114/'Population 2016'!AL$6","v":7.0764493397287853E-3},{"$f":"'Population 2016'!AM114/'Population 2016'!AM$6","v":9.3277208394338708E-3},{"$f":"'Population 2016'!AN114/'Population 2016'!AN$6","v":2.306805074971165E-2},{"$f":"'Population 2016'!AO114/'Population 2016'!AO$6","v":2.306805074971165E-2},{"$f":"'Population 2016'!AP114/'Population 2016'!AP$6","v":1.1326006622834381E-2},{"$f":"'Population 2016'!AQ114/'Population 2016'!AQ$6","v":9.8770883933171419E-3},{"$f":"'Population 2016'!AR114/'Population 2016'!AR$6","v":9.8741512016847673E-3},{"$f":"'Population 2016'!AS114/'Population 2016'!AS$6","v":1.6995241332426921E-2},{"$f":"'Population 2016'!AT114/'Population 2016'!AT$6","v":2.3847376788553261E-2},{"$f":"'Population 2016'!AU114/'Population 2016'!AU$6","v":2.3847376788553261E-2},{"$f":"'Population 2016'!AV114/'Population 2016'!AV$6","v":1.4321458358155606E-2},{"$f":"'Population 2016'!AW114/'Population 2016'!AW$6","v":1.2055790792717385E-2},{"$f":"'Population 2016'!AX114/'Population 2016'!AX$6","v":9.0837465820086203E-3},{"$f":"'Population 2016'!AY114/'Population 2016'!AY$6","v":9.996689268500324E-3},{"$f":"'Population 2016'!AZ114/'Population 2016'!AZ$6","v":9.5398027726168351E-3},{"$f":"'Population 2016'!BA114/'Population 2016'!BA$6","v":8.6067778375470676E-3},{"$f":"'Population 2016'!BB114/'Population 2016'!BB$6","v":1.0580724609501588E-2},{"$f":"'Population 2016'!BC114/'Population 2016'!BC$6","v":2.8166421207658322E-2},112]
[null,"Female 85-89",{"$f":"'Population 2016'!C115/'Population 2016'!C$6","v":7.1899878075019725E-3},{"$f":"'Population 2016'!D115/'Population 2016'!D$6","v":7.6766144430204276E-3},{"$f":"'Population 2016'!E115/'Population 2016'!E$6","v":8.9881124963757612E-3},{"$f":"'Population 2016'!F115/'Population 2016'!F$6","v":1.0603306500476067E-2},{"$f":"'Population 2016'!G115/'Population 2016'!G$6","v":1.0466808463002351E-2},{"$f":"'Population 2016'!H115/'Population 2016'!H$6","v":5.306558071036329E-3},{"$f":"'Population 2016'!I115/'Population 2016'!I$6","v":1.034281829659124E-2},{"$f":"'Population 2016'!J115/'Population 2016'!J$6","v":4.8815977845056207E-3},{"$f":"'Population 2016'!K115/'Population 2016'!K$6","v":4.8497527577025488E-3},{"$f":"'Population 2016'!L115/'Population 2016'!L$6","v":1.0168052203450434E-2},{"$f":"'Population 2016'!M115/'Population 2016'!M$6","v":1.0168052203450434E-2},{"$f":"'Population 2016'!N115/'Population 2016'!N$6","v":4.0435824670264232E-3},{"$f":"'Population 2016'!O115/'Population 2016'!O$6","v":4.965294481478936E-3},{"$f":"'Population 2016'!P115/'Population 2016'!P$6","v":1.0731088438970238E-2},{"$f":"'Population 2016'!Q115/'Population 2016'!Q$6","v":1.0467980295566502E-2},{"$f":"'Population 2016'!R115/'Population 2016'!R$6","v":5.7196516988219223E-3},{"$f":"'Population 2016'!S115/'Population 2016'!S$6","v":6.6472711202769392E-3},{"$f":"'Population 2016'!T115/'Population 2016'!T$6","v":4.6863278912367351E-3},{"$f":"'Population 2016'!U115/'Population 2016'!U$6","v":1.1597938144329897E-2},{"$f":"'Population 2016'!V115/'Population 2016'!V$6","v":7.6534219457013572E-3},{"$f":"'Population 2016'!W115/'Population 2016'!W$6","v":6.7067357512953368E-3},{"$f":"'Population 2016'!X115/'Population 2016'!X$6","v":6.7067357512953368E-3},{"$f":"'Population 2016'!Y115/'Population 2016'!Y$6","v":6.4626707667490048E-3},{"$f":"'Population 2016'!Z115/'Population 2016'!Z$6","v":2.9165945113337039E-3},{"$f":"'Population 2016'!AA115/'Population 2016'!AA$6","v":4.5907622315129017E-3},{"$f":"'Population 2016'!AB115/'Population 2016'!AB$6","v":8.1643638973622826E-3},{"$f":"'Population 2016'!AC115/'Population 2016'!AC$6","v":3.7349289779911527E-3},{"$f":"'Population 2016'!AD115/'Population 2016'!AD$6","v":1.0001035610196322E-2},{"$f":"'Population 2016'!AE115/'Population 2016'!AE$6","v":9.8336919580911779E-3},{"$f":"'Population 2016'!AF115/'Population 2016'!AF$6","v":2.2126341409447947E-3},{"$f":"'Population 2016'!AG115/'Population 2016'!AG$6","v":9.8336919580911779E-3},{"$f":"'Population 2016'!AH115/'Population 2016'!AH$6","v":6.1289634604694094E-3},{"$f":"'Population 2016'!AI115/'Population 2016'!AI$6","v":6.2987314647794191E-3},{"$f":"'Population 2016'!AJ115/'Population 2016'!AJ$6","v":9.4189114560962132E-3},{"$f":"'Population 2016'!AK115/'Population 2016'!AK$6","v":1.1100614076523381E-2},{"$f":"'Population 2016'!AL115/'Population 2016'!AL$6","v":3.6122461064724345E-3},{"$f":"'Population 2016'!AM115/'Population 2016'!AM$6","v":5.1366520253782336E-3},{"$f":"'Population 2016'!AN115/'Population 2016'!AN$6","v":1.114955786236063E-2},{"$f":"'Population 2016'!AO115/'Population 2016'!AO$6","v":1.114955786236063E-2},{"$f":"'Population 2016'!AP115/'Population 2016'!AP$6","v":9.7902769112636172E-3},{"$f":"'Population 2016'!AQ115/'Population 2016'!AQ$6","v":5.1961433723412085E-3},{"$f":"'Population 2016'!AR115/'Population 2016'!AR$6","v":5.8843610853314314E-3},{"$f":"'Population 2016'!AS115/'Population 2016'!AS$6","v":1.034281829659124E-2},{"$f":"'Population 2016'!AT115/'Population 2016'!AT$6","v":7.9491255961844191E-3},{"$f":"'Population 2016'!AU115/'Population 2016'!AU$6","v":7.9491255961844191E-3},{"$f":"'Population 2016'!AV115/'Population 2016'!AV$6","v":8.507089241034195E-3},{"$f":"'Population 2016'!AW115/'Population 2016'!AW$6","v":7.4611585680472402E-3},{"$f":"'Population 2016'!AX115/'Population 2016'!AX$6","v":4.9126384576169066E-3},{"$f":"'Population 2016'!AY115/'Population 2016'!AY$6","v":6.591365440262795E-3},{"$f":"'Population 2016'!AZ115/'Population 2016'!AZ$6","v":6.4670573102758328E-3},{"$f":"'Population 2016'!BA115/'Population 2016'!BA$6","v":5.1202358894666591E-3},{"$f":"'Population 2016'!BB115/'Population 2016'!BB$6","v":5.9952038369304557E-3},{"$f":"'Population 2016'!BC115/'Population 2016'!BC$6","v":1.1597938144329897E-2},113]
[null,"Female 90+",{"$f":"'Population 2016'!C116/'Population 2016'!C$6","v":3.4963781108800114E-3},{"$f":"'Population 2016'!D116/'Population 2016'!D$6","v":4.041011691470719E-3},{"$f":"'Population 2016'!E116/'Population 2016'!E$6","v":5.508843142939983E-3},{"$f":"'Population 2016'!F116/'Population 2016'!F$6","v":6.9678871288842729E-3},{"$f":"'Population 2016'!G116/'Population 2016'!G$6","v":5.8211127280868693E-3},{"$f":"'Population 2016'!H116/'Population 2016'!H$6","v":3.6967033753286787E-3},{"$f":"'Population 2016'!I116/'Population 2016'!I$6","v":7.1380013596193063E-3},{"$f":"'Population 2016'!J116/'Population 2016'!J$6","v":2.9571217348447511E-3},{"$f":"'Population 2016'!K116/'Population 2016'!K$6","v":2.9003423354887789E-3},{"$f":"'Population 2016'!L116/'Population 2016'!L$6","v":6.1678734245105924E-3},{"$f":"'Population 2016'!M116/'Population 2016'!M$6","v":6.1678734245105924E-3},{"$f":"'Population 2016'!N116/'Population 2016'!N$6","v":2.4261494802158539E-3},{"$f":"'Population 2016'!O116/'Population 2016'!O$6","v":3.1612947563741324E-3},{"$f":"'Population 2016'!P116/'Population 2016'!P$6","v":7.3478881429402121E-3},{"$f":"'Population 2016'!Q116/'Population 2016'!Q$6","v":5.6573275862068966E-3},{"$f":"'Population 2016'!R116/'Population 2016'!R$6","v":2.9878777531159298E-3},{"$f":"'Population 2016'!S116/'Population 2016'!S$6","v":3.8300066288576269E-3},{"$f":"'Population 2016'!T116/'Population 2016'!T$6","v":2.8320254882293941E-3},{"$f":"'Population 2016'!U116/'Population 2016'!U$6","v":1.0493372606774668E-2},{"$f":"'Population 2016'!V116/'Population 2016'!V$6","v":4.8783936651583711E-3},{"$f":"'Population 2016'!W116/'Population 2016'!W$6","v":3.9958549222797925E-3},{"$f":"'Population 2016'!X116/'Population 2016'!X$6","v":3.9958549222797925E-3},{"$f":"'Population 2016'!Y116/'Population 2016'!Y$6","v":4.0530322125321367E-3},{"$f":"'Population 2016'!Z116/'Population 2016'!Z$6","v":1.7104611561259118E-3},{"$f":"'Population 2016'!AA116/'Population 2016'!AA$6","v":2.3709980814538454E-3},{"$f":"'Population 2016'!AB116/'Population 2016'!AB$6","v":4.1831150188408397E-3},{"$f":"'Population 2016'!AC116/'Population 2016'!AC$6","v":2.009469601179615E-3},{"$f":"'Population 2016'!AD116/'Population 2016'!AD$6","v":5.5627061973873033E-3},{"$f":"'Population 2016'!AE116/'Population 2016'!AE$6","v":5.4698654654413096E-3},{"$f":"'Population 2016'!AF116/'Population 2016'!AF$6","v":7.1910609580705831E-4},{"$f":"'Population 2016'!AG116/'Population 2016'!AG$6","v":5.4698654654413096E-3},{"$f":"'Population 2016'!AH116/'Population 2016'!AH$6","v":3.0207783399004962E-3},{"$f":"'Population 2016'!AI116/'Population 2016'!AI$6","v":3.4611634029053685E-3},{"$f":"'Population 2016'!AJ116/'Population 2016'!AJ$6","v":4.2645885745842792E-3},{"$f":"'Population 2016'!AK116/'Population 2016'!AK$6","v":5.0385766021099039E-3},{"$f":"'Population 2016'!AL116/'Population 2016'!AL$6","v":2.279860247527684E-3},{"$f":"'Population 2016'!AM116/'Population 2016'!AM$6","v":2.1961932650073207E-3},{"$f":"'Population 2016'!AN116/'Population 2016'!AN$6","v":4.61361014994233E-3},{"$f":"'Population 2016'!AO116/'Population 2016'!AO$6","v":4.61361014994233E-3},{"$f":"'Population 2016'!AP116/'Population 2016'!AP$6","v":4.6071891347122911E-3},{"$f":"'Population 2016'!AQ116/'Population 2016'!AQ$6","v":2.4729520865533232E-3},{"$f":"'Population 2016'!AR116/'Population 2016'!AR$6","v":3.3301945552562475E-3},{"$f":"'Population 2016'!AS116/'Population 2016'!AS$6","v":7.1380013596193063E-3},{"$f":"'Population 2016'!AT116/'Population 2016'!AT$6","v":1.589825119236884E-3},{"$f":"'Population 2016'!AU116/'Population 2016'!AU$6","v":1.589825119236884E-3},{"$f":"'Population 2016'!AV116/'Population 2016'!AV$6","v":6.7198856189681876E-3},{"$f":"'Population 2016'!AW116/'Population 2016'!AW$6","v":4.1277979344630181E-3},{"$f":"'Population 2016'!AX116/'Population 2016'!AX$6","v":3.0124669787273484E-3},{"$f":"'Population 2016'!AY116/'Population 2016'!AY$6","v":3.8868847736448576E-3},{"$f":"'Population 2016'!AZ116/'Population 2016'!AZ$6","v":3.7694726311276261E-3},{"$f":"'Population 2016'!BA116/'Population 2016'!BA$6","v":2.0321558783097243E-3},{"$f":"'Population 2016'!BB116/'Population 2016'!BB$6","v":3.3216669907317389E-3},{"$f":"'Population 2016'!BC116/'Population 2016'!BC$6","v":1.0493372606774668E-2},114]
[null,"Male 0-4",{"$f":"'Population 2016'!C117/'Population 2016'!C$6","v":0},{"$f":"'Population 2016'!D117/'Population 2016'!D$6","v":0},{"$f":"'Population 2016'!E117/'Population 2016'!E$6","v":0},{"$f":"'Population 2016'!F117/'Population 2016'!F$6","v":0},{"$f":"'Population 2016'!G117/'Population 2016'!G$6","v":0},{"$f":"'Population 2016'!H117/'Population 2016'!H$6","v":0},{"$f":"'Population 2016'!I117/'Population 2016'!I$6","v":0},{"$f":"'Population 2016'!J117/'Population 2016'!J$6","v":0},{"$f":"'Population 2016'!K117/'Population 2016'!K$6","v":0},{"$f":"'Population 2016'!L117/'Population 2016'!L$6","v":0},{"$f":"'Population 2016'!M117/'Population 2016'!M$6","v":0},{"$f":"'Population 2016'!N117/'Population 2016'!N$6","v":0},{"$f":"'Population 2016'!O117/'Population 2016'!O$6","v":0},{"$f":"'Population 2016'!P117/'Population 2016'!P$6","v":0},{"$f":"'Population 2016'!Q117/'Population 2016'!Q$6","v":0},{"$f":"'Population 2016'!R117/'Population 2016'!R$6","v":0},{"$f":"'Population 2016'!S117/'Population 2016'!S$6","v":0},{"$f":"'Population 2016'!T117/'Population 2016'!T$6","v":0},{"$f":"'Population 2016'!U117/'Population 2016'!U$6","v":0},{"$f":"'Population 2016'!V117/'Population 2016'!V$6","v":0},{"$f":"'Population 2016'!W117/'Population 2016'!W$6","v":0},{"$f":"'Population 2016'!X117/'Population 2016'!X$6","v":0},{"$f":"'Population 2016'!Y117/'Population 2016'!Y$6","v":0},{"$f":"'Population 2016'!Z117/'Population 2016'!Z$6","v":0},{"$f":"'Population 2016'!AA117/'Population 2016'!AA$6","v":0},{"$f":"'Population 2016'!AB117/'Population 2016'!AB$6","v":0},{"$f":"'Population 2016'!AC117/'Population 2016'!AC$6","v":0},{"$f":"'Population 2016'!AD117/'Population 2016'!AD$6","v":0},{"$f":"'Population 2016'!AE117/'Population 2016'!AE$6","v":0},{"$f":"'Population 2016'!AF117/'Population 2016'!AF$6","v":0},{"$f":"'Population 2016'!AG117/'Population 2016'!AG$6","v":0},{"$f":"'Population 2016'!AH117/'Population 2016'!AH$6","v":0},{"$f":"'Population 2016'!AI117/'Population 2016'!AI$6","v":0},{"$f":"'Population 2016'!AJ117/'Population 2016'!AJ$6","v":0},{"$f":"'Population 2016'!AK117/'Population 2016'!AK$6","v":0},{"$f":"'Population 2016'!AL117/'Population 2016'!AL$6","v":0},{"$f":"'Population 2016'!AM117/'Population 2016'!AM$6","v":0},{"$f":"'Population 2016'!AN117/'Population 2016'!AN$6","v":0},{"$f":"'Population 2016'!AO117/'Population 2016'!AO$6","v":0},{"$f":"'Population 2016'!AP117/'Population 2016'!AP$6","v":0},{"$f":"'Population 2016'!AQ117/'Population 2016'!AQ$6","v":0},{"$f":"'Population 2016'!AR117/'Population 2016'!AR$6","v":0},{"$f":"'Population 2016'!AS117/'Population 2016'!AS$6","v":0},{"$f":"'Population 2016'!AT117/'Population 2016'!AT$6","v":0},{"$f":"'Population 2016'!AU117/'Population 2016'!AU$6","v":0},{"$f":"'Population 2016'!AV117/'Population 2016'!AV$6","v":0},{"$f":"'Population 2016'!AW117/'Population 2016'!AW$6","v":0},{"$f":"'Population 2016'!AX117/'Population 2016'!AX$6","v":0},{"$f":"'Population 2016'!AY117/'Population 2016'!AY$6","v":0},{"$f":"'Population 2016'!AZ117/'Population 2016'!AZ$6","v":0},{"$f":"'Population 2016'!BA117/'Population 2016'!BA$6","v":0},{"$f":"'Population 2016'!BB117/'Population 2016'!BB$6","v":0},{"$f":"'Population 2016'!BC117/'Population 2016'!BC$6","v":0},115]
[null,"Male 5-9",{"$f":"'Population 2016'!C118/'Population 2016'!C$6","v":0},{"$f":"'Population 2016'!D118/'Population 2016'!D$6","v":0},{"$f":"'Population 2016'!E118/'Population 2016'!E$6","v":0},{"$f":"'Population 2016'!F118/'Population 2016'!F$6","v":0},{"$f":"'Population 2016'!G118/'Population 2016'!G$6","v":0},{"$f":"'Population 2016'!H118/'Population 2016'!H$6","v":0},{"$f":"'Population 2016'!I118/'Population 2016'!I$6","v":0},{"$f":"'Population 2016'!J118/'Population 2016'!J$6","v":0},{"$f":"'Population 2016'!K118/'Population 2016'!K$6","v":0},{"$f":"'Population 2016'!L118/'Population 2016'!L$6","v":0},{"$f":"'Population 2016'!M118/'Population 2016'!M$6","v":0},{"$f":"'Population 2016'!N118/'Population 2016'!N$6","v":0},{"$f":"'Population 2016'!O118/'Population 2016'!O$6","v":0},{"$f":"'Population 2016'!P118/'Population 2016'!P$6","v":0},{"$f":"'Population 2016'!Q118/'Population 2016'!Q$6","v":0},{"$f":"'Population 2016'!R118/'Population 2016'!R$6","v":0},{"$f":"'Population 2016'!S118/'Population 2016'!S$6","v":0},{"$f":"'Population 2016'!T118/'Population 2016'!T$6","v":0},{"$f":"'Population 2016'!U118/'Population 2016'!U$6","v":0},{"$f":"'Population 2016'!V118/'Population 2016'!V$6","v":0},{"$f":"'Population 2016'!W118/'Population 2016'!W$6","v":0},{"$f":"'Population 2016'!X118/'Population 2016'!X$6","v":0},{"$f":"'Population 2016'!Y118/'Population 2016'!Y$6","v":0},{"$f":"'Population 2016'!Z118/'Population 2016'!Z$6","v":0},{"$f":"'Population 2016'!AA118/'Population 2016'!AA$6","v":0},{"$f":"'Population 2016'!AB118/'Population 2016'!AB$6","v":0},{"$f":"'Population 2016'!AC118/'Population 2016'!AC$6","v":0},{"$f":"'Population 2016'!AD118/'Population 2016'!AD$6","v":0},{"$f":"'Population 2016'!AE118/'Population 2016'!AE$6","v":0},{"$f":"'Population 2016'!AF118/'Population 2016'!AF$6","v":0},{"$f":"'Population 2016'!AG118/'Population 2016'!AG$6","v":0},{"$f":"'Population 2016'!AH118/'Population 2016'!AH$6","v":0},{"$f":"'Population 2016'!AI118/'Population 2016'!AI$6","v":0},{"$f":"'Population 2016'!AJ118/'Population 2016'!AJ$6","v":0},{"$f":"'Population 2016'!AK118/'Population 2016'!AK$6","v":0},{"$f":"'Population 2016'!AL118/'Population 2016'!AL$6","v":0},{"$f":"'Population 2016'!AM118/'Population 2016'!AM$6","v":0},{"$f":"'Population 2016'!AN118/'Population 2016'!AN$6","v":0},{"$f":"'Population 2016'!AO118/'Population 2016'!AO$6","v":0},{"$f":"'Population 2016'!AP118/'Population 2016'!AP$6","v":0},{"$f":"'Population 2016'!AQ118/'Population 2016'!AQ$6","v":0},{"$f":"'Population 2016'!AR118/'Population 2016'!AR$6","v":0},{"$f":"'Population 2016'!AS118/'Population 2016'!AS$6","v":0},{"$f":"'Population 2016'!AT118/'Population 2016'!AT$6","v":0},{"$f":"'Population 2016'!AU118/'Population 2016'!AU$6","v":0},{"$f":"'Population 2016'!AV118/'Population 2016'!AV$6","v":0},{"$f":"'Population 2016'!AW118/'Population 2016'!AW$6","v":0},{"$f":"'Population 2016'!AX118/'Population 2016'!AX$6","v":0},{"$f":"'Population 2016'!AY118/'Population 2016'!AY$6","v":0},{"$f":"'Population 2016'!AZ118/'Population 2016'!AZ$6","v":0},{"$f":"'Population 2016'!BA118/'Population 2016'!BA$6","v":0},{"$f":"'Population 2016'!BB118/'Population 2016'!BB$6","v":0},{"$f":"'Population 2016'!BC118/'Population 2016'!BC$6","v":0},116]
[null,"Male 10-15",{"$f":"'Population 2016'!C119/'Population 2016'!C$6","v":0},{"$f":"'Population 2016'!D119/'Population 2016'!D$6","v":0},{"$f":"'Population 2016'!E119/'Population 2016'!E$6","v":0},{"$f":"'Population 2016'!F119/'Population 2016'!F$6","v":0},{"$f":"'Population 2016'!G119/'Population 2016'!G$6","v":0},{"$f":"'Population 2016'!H119/'Population 2016'!H$6","v":0},{"$f":"'Population 2016'!I119/'Population 2016'!I$6","v":0},{"$f":"'Population 2016'!J119/'Population 2016'!J$6","v":0},{"$f":"'Population 2016'!K119/'Population 2016'!K$6","v":0},{"$f":"'Population 2016'!L119/'Population 2016'!L$6","v":0},{"$f":"'Population 2016'!M119/'Population 2016'!M$6","v":0},{"$f":"'Population 2016'!N119/'Population 2016'!N$6","v":0},{"$f":"'Population 2016'!O119/'Population 2016'!O$6","v":0},{"$f":"'Population 2016'!P119/'Population 2016'!P$6","v":0},{"$f":"'Population 2016'!Q119/'Population 2016'!Q$6","v":0},{"$f":"'Population 2016'!R119/'Population 2016'!R$6","v":0},{"$f":"'Population 2016'!S119/'Population 2016'!S$6","v":0},{"$f":"'Population 2016'!T119/'Population 2016'!T$6","v":0},{"$f":"'Population 2016'!U119/'Population 2016'!U$6","v":0},{"$f":"'Population 2016'!V119/'Population 2016'!V$6","v":0},{"$f":"'Population 2016'!W119/'Population 2016'!W$6","v":0},{"$f":"'Population 2016'!X119/'Population 2016'!X$6","v":0},{"$f":"'Population 2016'!Y119/'Population 2016'!Y$6","v":0},{"$f":"'Population 2016'!Z119/'Population 2016'!Z$6","v":0},{"$f":"'Population 2016'!AA119/'Population 2016'!AA$6","v":0},{"$f":"'Population 2016'!AB119/'Population 2016'!AB$6","v":0},{"$f":"'Population 2016'!AC119/'Population 2016'!AC$6","v":0},{"$f":"'Population 2016'!AD119/'Population 2016'!AD$6","v":0},{"$f":"'Population 2016'!AE119/'Population 2016'!AE$6","v":0},{"$f":"'Population 2016'!AF119/'Population 2016'!AF$6","v":0},{"$f":"'Population 2016'!AG119/'Population 2016'!AG$6","v":0},{"$f":"'Population 2016'!AH119/'Population 2016'!AH$6","v":0},{"$f":"'Population 2016'!AI119/'Population 2016'!AI$6","v":0},{"$f":"'Population 2016'!AJ119/'Population 2016'!AJ$6","v":0},{"$f":"'Population 2016'!AK119/'Population 2016'!AK$6","v":0},{"$f":"'Population 2016'!AL119/'Population 2016'!AL$6","v":0},{"$f":"'Population 2016'!AM119/'Population 2016'!AM$6","v":0},{"$f":"'Population 2016'!AN119/'Population 2016'!AN$6","v":0},{"$f":"'Population 2016'!AO119/'Population 2016'!AO$6","v":0},{"$f":"'Population 2016'!AP119/'Population 2016'!AP$6","v":0},{"$f":"'Population 2016'!AQ119/'Population 2016'!AQ$6","v":0},{"$f":"'Population 2016'!AR119/'Population 2016'!AR$6","v":0},{"$f":"'Population 2016'!AS119/'Population 2016'!AS$6","v":0},{"$f":"'Population 2016'!AT119/'Population 2016'!AT$6","v":0},{"$f":"'Population 2016'!AU119/'Population 2016'!AU$6","v":0},{"$f":"'Population 2016'!AV119/'Population 2016'!AV$6","v":0},{"$f":"'Population 2016'!AW119/'Population 2016'!AW$6","v":0},{"$f":"'Population 2016'!AX119/'Population 2016'!AX$6","v":0},{"$f":"'Population 2016'!AY119/'Population 2016'!AY$6","v":0},{"$f":"'Population 2016'!AZ119/'Population 2016'!AZ$6","v":0},{"$f":"'Population 2016'!BA119/'Population 2016'!BA$6","v":0},{"$f":"'Population 2016'!BB119/'Population 2016'!BB$6","v":0},{"$f":"'Population 2016'!BC119/'Population 2016'!BC$6","v":0},117]
[null,"Male 16-19",{"$f":"'Population 2016'!C120/'Population 2016'!C$6","v":1.6585383346482106E-2},{"$f":"'Population 2016'!D120/'Population 2016'!D$6","v":1.7654905448173046E-2},{"$f":"'Population 2016'!E120/'Population 2016'!E$6","v":2.053735382236397E-2},{"$f":"'Population 2016'!F120/'Population 2016'!F$6","v":1.6878732796676187E-2},{"$f":"'Population 2016'!G120/'Population 2016'!G$6","v":1.7015560282100078E-2},{"$f":"'Population 2016'!H120/'Population 2016'!H$6","v":1.2115647191399799E-2},{"$f":"'Population 2016'!I120/'Population 2016'!I$6","v":1.7723608818102358E-2},{"$f":"'Population 2016'!J120/'Population 2016'!J$6","v":1.4574385693163416E-2},{"$f":"'Population 2016'!K120/'Population 2016'!K$6","v":1.4549258273107645E-2},{"$f":"'Population 2016'!L120/'Population 2016'!L$6","v":2.0202020202020204E-2},{"$f":"'Population 2016'!M120/'Population 2016'!M$6","v":2.0202020202020204E-2},{"$f":"'Population 2016'!N120/'Population 2016'!N$6","v":8.2930200414651004E-3},{"$f":"'Population 2016'!O120/'Population 2016'!O$6","v":1.2490550477630404E-2},{"$f":"'Population 2016'!P120/'Population 2016'!P$6","v":2.2149389438071578E-2},{"$f":"'Population 2016'!Q120/'Population 2016'!Q$6","v":2.3399014778325122E-2},{"$f":"'Population 2016'!R120/'Population 2016'!R$6","v":1.8610210005122075E-2},{"$f":"'Population 2016'!S120/'Population 2016'!S$6","v":1.5604120413724892E-2},{"$f":"'Population 2016'!T120/'Population 2016'!T$6","v":1.2786257933464258E-2},{"$f":"'Population 2016'!U120/'Population 2016'!U$6","v":2.5773195876288658E-2},{"$f":"'Population 2016'!V120/'Population 2016'!V$6","v":1.9336821266968326E-2},{"$f":"'Population 2016'!W120/'Population 2016'!W$6","v":1.355440414507772E-2},{"$f":"'Population 2016'!X120/'Population 2016'!X$6","v":1.355440414507772E-2},{"$f":"'Population 2016'!Y120/'Population 2016'!Y$6","v":1.7290921006200534E-2},{"$f":"'Population 2016'!Z120/'Population 2016'!Z$6","v":7.0757798092668713E-3},{"$f":"'Population 2016'!AA120/'Population 2016'!AA$6","v":1.0682614972159207E-2},{"$f":"'Population 2016'!AB120/'Population 2016'!AB$6","v":1.9020276332316528E-2},{"$f":"'Population 2016'!AC120/'Population 2016'!AC$6","v":8.7284512105449494E-3},{"$f":"'Population 2016'!AD120/'Population 2016'!AD$6","v":1.9499060553607624E-2},{"$f":"'Population 2016'!AE120/'Population 2016'!AE$6","v":2.0391336698373116E-2},{"$f":"'Population 2016'!AF120/'Population 2016'!AF$6","v":5.8911384002655158E-3},{"$f":"'Population 2016'!AG120/'Population 2016'!AG$6","v":2.0391336698373116E-2},{"$f":"'Population 2016'!AH120/'Population 2016'!AH$6","v":1.4194861180550942E-2},{"$f":"'Population 2016'!AI120/'Population 2016'!AI$6","v":1.6456220677417061E-2},{"$f":"'Population 2016'!AJ120/'Population 2016'!AJ$6","v":2.1997913726452722E-2},{"$f":"'Population 2016'!AK120/'Population 2016'!AK$6","v":2.7239804755156669E-2},{"$f":"'Population 2016'!AL120/'Population 2016'!AL$6","v":9.8152424942263283E-3},{"$f":"'Population 2016'!AM120/'Population 2016'!AM$6","v":1.3488286969253294E-2},{"$f":"'Population 2016'!AN120/'Population 2016'!AN$6","v":2.5759323337178008E-2},{"$f":"'Population 2016'!AO120/'Population 2016'!AO$6","v":2.5759323337178008E-2},{"$f":"'Population 2016'!AP120/'Population 2016'!AP$6","v":1.8236790324902816E-2},{"$f":"'Population 2016'!AQ120/'Population 2016'!AQ$6","v":1.0671965849709281E-2},{"$f":"'Population 2016'!AR120/'Population 2016'!AR$6","v":1.3391428988066237E-2},{"$f":"'Population 2016'!AS120/'Population 2016'!AS$6","v":1.7723608818102358E-2},{"$f":"'Population 2016'!AT120/'Population 2016'!AT$6","v":1.2718600953895072E-2},{"$f":"'Population 2016'!AU120/'Population 2016'!AU$6","v":1.2718600953895072E-2},{"$f":"'Population 2016'!AV120/'Population 2016'!AV$6","v":1.5298463004885023E-2},{"$f":"'Population 2016'!AW120/'Population 2016'!AW$6","v":1.5143449168297856E-2},{"$f":"'Population 2016'!AX120/'Population 2016'!AX$6","v":1.4598878435370997E-2},{"$f":"'Population 2016'!AY120/'Population 2016'!AY$6","v":1.2765664704592457E-2},{"$f":"'Population 2016'!AZ120/'Population 2016'!AZ$6","v":1.1915821066171216E-2},{"$f":"'Population 2016'!BA120/'Population 2016'!BA$6","v":1.1615165461319308E-2},{"$f":"'Population 2016'!BB120/'Population 2016'!BB$6","v":1.7661546438524856E-2},{"$f":"'Population 2016'!BC120/'Population 2016'!BC$6","v":2.5773195876288658E-2},118]
[null,"Male 20-24",{"$f":"'Population 2016'!C121/'Population 2016'!C$6","v":3.9930431040665564E-2},{"$f":"'Population 2016'!D121/'Population 2016'!D$6","v":3.7127612272120941E-2},{"$f":"'Population 2016'!E121/'Population 2016'!E$6","v":2.9573789504204116E-2},{"$f":"'Population 2016'!F121/'Population 2016'!F$6","v":2.6313511641997748E-2},{"$f":"'Population 2016'!G121/'Population 2016'!G$6","v":2.2276950632486286E-2},{"$f":"'Population 2016'!H121/'Population 2016'!H$6","v":1.5555966300375037E-2},{"$f":"'Population 2016'!I121/'Population 2016'!I$6","v":2.6221229484315819E-2},{"$f":"'Population 2016'!J121/'Population 2016'!J$6","v":2.4220235161585581E-2},{"$f":"'Population 2016'!K121/'Population 2016'!K$6","v":1.9303917839482692E-2},{"$f":"'Population 2016'!L121/'Population 2016'!L$6","v":2.7263788325735228E-2},{"$f":"'Population 2016'!M121/'Population 2016'!M$6","v":2.7263788325735228E-2},{"$f":"'Population 2016'!N121/'Population 2016'!N$6","v":2.468790895322678E-2},{"$f":"'Population 2016'!O121/'Population 2016'!O$6","v":1.680296886811903E-2},{"$f":"'Population 2016'!P121/'Population 2016'!P$6","v":3.2563302849289003E-2},{"$f":"'Population 2016'!Q121/'Population 2016'!Q$6","v":3.282789408866995E-2},{"$f":"'Population 2016'!R121/'Population 2016'!R$6","v":2.5183541061977122E-2},{"$f":"'Population 2016'!S121/'Population 2016'!S$6","v":2.3072107240185609E-2},{"$f":"'Population 2016'!T121/'Population 2016'!T$6","v":2.468750790185683E-2},{"$f":"'Population 2016'!U121/'Population 2016'!U$6","v":2.8718703976435934E-2},{"$f":"'Population 2016'!V121/'Population 2016'!V$6","v":2.3243071266968326E-2},{"$f":"'Population 2016'!W121/'Population 2016'!W$6","v":1.682901554404145E-2},{"$f":"'Population 2016'!X121/'Population 2016'!X$6","v":1.682901554404145E-2},{"$f":"'Population 2016'!Y121/'Population 2016'!Y$6","v":2.3662852245803296E-2},{"$f":"'Population 2016'!Z121/'Population 2016'!Z$6","v":1.3340381770069057E-2},{"$f":"'Population 2016'!AA121/'Population 2016'!AA$6","v":1.592455801571083E-2},{"$f":"'Population 2016'!AB121/'Population 2016'!AB$6","v":3.7289162031221963E-2},{"$f":"'Population 2016'!AC121/'Population 2016'!AC$6","v":1.4463123412168865E-2},{"$f":"'Population 2016'!AD121/'Population 2016'!AD$6","v":2.5239299927507286E-2},{"$f":"'Population 2016'!AE121/'Population 2016'!AE$6","v":2.6303617752931004E-2},{"$f":"'Population 2016'!AF121/'Population 2016'!AF$6","v":8.9058524173027988E-3},{"$f":"'Population 2016'!AG121/'Population 2016'!AG$6","v":2.6303617752931004E-2},{"$f":"'Population 2016'!AH121/'Population 2016'!AH$6","v":1.8551215129064852E-2},{"$f":"'Population 2016'!AI121/'Population 2016'!AI$6","v":2.5952447716343637E-2},{"$f":"'Population 2016'!AJ121/'Population 2016'!AJ$6","v":2.7182917101306988E-2},{"$f":"'Population 2016'!AK121/'Population 2016'!AK$6","v":3.8261691072272085E-2},{"$f":"'Population 2016'!AL121/'Population 2016'!AL$6","v":1.2317167051578136E-2},{"$f":"'Population 2016'!AM121/'Population 2016'!AM$6","v":1.7276720351390922E-2},{"$f":"'Population 2016'!AN121/'Population 2016'!AN$6","v":3.4986543637062668E-2},{"$f":"'Population 2016'!AO121/'Population 2016'!AO$6","v":3.4986543637062668E-2},{"$f":"'Population 2016'!AP121/'Population 2016'!AP$6","v":3.2106349282526273E-2},{"$f":"'Population 2016'!AQ121/'Population 2016'!AQ$6","v":1.4366674026643114E-2},{"$f":"'Population 2016'!AR121/'Population 2016'!AR$6","v":2.0327073486971433E-2},{"$f":"'Population 2016'!AS121/'Population 2016'!AS$6","v":2.6221229484315819E-2},{"$f":"'Population 2016'!AT121/'Population 2016'!AT$6","v":6.6772655007949128E-2},{"$f":"'Population 2016'!AU121/'Population 2016'!AU$6","v":6.6772655007949128E-2},{"$f":"'Population 2016'!AV121/'Population 2016'!AV$6","v":1.9039675920409865E-2},{"$f":"'Population 2016'!AW121/'Population 2016'!AW$6","v":2.0262246210042672E-2},{"$f":"'Population 2016'!AX121/'Population 2016'!AX$6","v":2.9012374287435694E-2},{"$f":"'Population 2016'!AY121/'Population 2016'!AY$6","v":2.1438061373222631E-2},{"$f":"'Population 2016'!AZ121/'Population 2016'!AZ$6","v":2.6404173217093041E-2},{"$f":"'Population 2016'!BA121/'Population 2016'!BA$6","v":1.6635785866555099E-2},{"$f":"'Population 2016'!BB121/'Population 2016'!BB$6","v":2.4839587789228079E-2},{"$f":"'Population 2016'!BC121/'Population 2016'!BC$6","v":2.8718703976435934E-2},119]
[null,"Male 25-29",{"$f":"'Population 2016'!C122/'Population 2016'!C$6","v":4.7676253317076672E-2},{"$f":"'Population 2016'!D122/'Population 2016'!D$6","v":4.4176496743650776E-2},{"$f":"'Population 2016'!E122/'Population 2016'!E$6","v":3.4744370348893397E-2},{"$f":"'Population 2016'!F122/'Population 2016'!F$6","v":3.0771228252401972E-2},{"$f":"'Population 2016'!G122/'Population 2016'!G$6","v":2.0373894548304041E-2},{"$f":"'Population 2016'!H122/'Population 2016'!H$6","v":1.5210145662037837E-2},{"$f":"'Population 2016'!I122/'Population 2016'!I$6","v":2.7580848790909974E-2},{"$f":"'Population 2016'!J122/'Population 2016'!J$6","v":2.4431458142645919E-2},{"$f":"'Population 2016'!K122/'Population 2016'!K$6","v":1.8400532521871436E-2},{"$f":"'Population 2016'!L122/'Population 2016'!L$6","v":2.2190935907750068E-2},{"$f":"'Population 2016'!M122/'Population 2016'!M$6","v":2.2190935907750068E-2},{"$f":"'Population 2016'!N122/'Population 2016'!N$6","v":2.2864620859003957E-2},{"$f":"'Population 2016'!O122/'Population 2016'!O$6","v":1.615009277712872E-2},{"$f":"'Population 2016'!P122/'Population 2016'!P$6","v":3.0660252682772109E-2},{"$f":"'Population 2016'!Q122/'Population 2016'!Q$6","v":3.2712438423645324E-2},{"$f":"'Population 2016'!R122/'Population 2016'!R$6","v":2.2024927437254566E-2},{"$f":"'Population 2016'!S122/'Population 2016'!S$6","v":2.7133597786171991E-2},{"$f":"'Population 2016'!T122/'Population 2016'!T$6","v":3.6285326567939112E-2},{"$f":"'Population 2016'!U122/'Population 2016'!U$6","v":3.2584683357879236E-2},{"$f":"'Population 2016'!V122/'Population 2016'!V$6","v":2.356122737556561E-2},{"$f":"'Population 2016'!W122/'Population 2016'!W$6","v":1.7881865284974093E-2},{"$f":"'Population 2016'!X122/'Population 2016'!X$6","v":1.7881865284974093E-2},{"$f":"'Population 2016'!Y122/'Population 2016'!Y$6","v":2.3935070827242024E-2},{"$f":"'Population 2016'!Z122/'Population 2016'!Z$6","v":1.8347202347858582E-2},{"$f":"'Population 2016'!AA122/'Population 2016'!AA$6","v":1.8079329071286177E-2},{"$f":"'Population 2016'!AB122/'Population 2016'!AB$6","v":4.3849811591602367E-2},{"$f":"'Population 2016'!AC122/'Population 2016'!AC$6","v":1.7618360288367642E-2},{"$f":"'Population 2016'!AD122/'Population 2016'!AD$6","v":2.4484783927329754E-2},{"$f":"'Population 2016'!AE122/'Population 2016'!AE$6","v":2.5961751161340921E-2},{"$f":"'Population 2016'!AF122/'Population 2016'!AF$6","v":8.8505365637791787E-3},{"$f":"'Population 2016'!AG122/'Population 2016'!AG$6","v":2.5961751161340921E-2},{"$f":"'Population 2016'!AH122/'Population 2016'!AH$6","v":1.8907834794191995E-2},{"$f":"'Population 2016'!AI122/'Population 2016'!AI$6","v":3.176569555991747E-2},{"$f":"'Population 2016'!AJ122/'Population 2016'!AJ$6","v":2.8594219795054304E-2},{"$f":"'Population 2016'!AK122/'Population 2016'!AK$6","v":4.1883168005038579E-2},{"$f":"'Population 2016'!AL122/'Population 2016'!AL$6","v":1.148812696156807E-2},{"$f":"'Population 2016'!AM122/'Population 2016'!AM$6","v":1.7667154709614444E-2},{"$f":"'Population 2016'!AN122/'Population 2016'!AN$6","v":3.9984621299500193E-2},{"$f":"'Population 2016'!AO122/'Population 2016'!AO$6","v":3.9984621299500193E-2},{"$f":"'Population 2016'!AP122/'Population 2016'!AP$6","v":3.6233622882372703E-2},{"$f":"'Population 2016'!AQ122/'Population 2016'!AQ$6","v":1.4955472142489145E-2},{"$f":"'Population 2016'!AR122/'Population 2016'!AR$6","v":2.2388380266166873E-2},{"$f":"'Population 2016'!AS122/'Population 2016'!AS$6","v":2.7580848790909974E-2},{"$f":"'Population 2016'!AT122/'Population 2016'!AT$6","v":7.3131955484896663E-2},{"$f":"'Population 2016'!AU122/'Population 2016'!AU$6","v":7.3131955484896663E-2},{"$f":"'Population 2016'!AV122/'Population 2016'!AV$6","v":1.989753365900155E-2},{"$f":"'Population 2016'!AW122/'Population 2016'!AW$6","v":2.0573469070180754E-2},{"$f":"'Population 2016'!AX122/'Population 2016'!AX$6","v":3.0310052370579783E-2},{"$f":"'Population 2016'!AY122/'Population 2016'!AY$6","v":2.2263594422492337E-2},{"$f":"'Population 2016'!AZ122/'Population 2016'!AZ$6","v":2.6984779191081894E-2},{"$f":"'Population 2016'!BA122/'Population 2016'!BA$6","v":1.681509373817066E-2},{"$f":"'Population 2016'!BB122/'Population 2016'!BB$6","v":2.4353490180828309E-2},{"$f":"'Population 2016'!BC122/'Population 2016'!BC$6","v":3.2584683357879236E-2},120]
[null,"Male 30-34",{"$f":"'Population 2016'!C123/'Population 2016'!C$6","v":3.7886394606612639E-2},{"$f":"'Population 2016'!D123/'Population 2016'!D$6","v":3.6002929406533622E-2},{"$f":"'Population 2016'!E123/'Population 2016'!E$6","v":3.0926838697206919E-2},{"$f":"'Population 2016'!F123/'Population 2016'!F$6","v":3.111745866874405E-2},{"$f":"'Population 2016'!G123/'Population 2016'!G$6","v":2.1661256017015559E-2},{"$f":"'Population 2016'!H123/'Population 2016'!H$6","v":1.4482729836569936E-2},{"$f":"'Population 2016'!I123/'Population 2016'!I$6","v":2.3453433038749149E-2},{"$f":"'Population 2016'!J123/'Population 2016'!J$6","v":1.9362106597197774E-2},{"$f":"'Population 2016'!K123/'Population 2016'!K$6","v":1.7449600608596426E-2},{"$f":"'Population 2016'!L123/'Population 2016'!L$6","v":2.228032537767051E-2},{"$f":"'Population 2016'!M123/'Population 2016'!M$6","v":2.228032537767051E-2},{"$f":"'Population 2016'!N123/'Population 2016'!N$6","v":1.7585907747504008E-2},{"$f":"'Population 2016'!O123/'Population 2016'!O$6","v":1.651089272214968E-2},{"$f":"'Population 2016'!P123/'Population 2016'!P$6","v":2.6854152349738331E-2},{"$f":"'Population 2016'!Q123/'Population 2016'!Q$6","v":3.1981219211822662E-2},{"$f":"'Population 2016'!R123/'Population 2016'!R$6","v":1.87809458767287E-2},{"$f":"'Population 2016'!S123/'Population 2016'!S$6","v":2.5849914245730701E-2},{"$f":"'Population 2016'!T123/'Population 2016'!T$6","v":3.2779009296797959E-2},{"$f":"'Population 2016'!U123/'Population 2016'!U$6","v":2.687776141384389E-2},{"$f":"'Population 2016'!V123/'Population 2016'!V$6","v":2.3596578054298642E-2},{"$f":"'Population 2016'!W123/'Population 2016'!W$6","v":1.7467357512953367E-2},{"$f":"'Population 2016'!X123/'Population 2016'!X$6","v":1.7467357512953367E-2},{"$f":"'Population 2016'!Y123/'Population 2016'!Y$6","v":2.177748651509805E-2},{"$f":"'Population 2016'!Z123/'Population 2016'!Z$6","v":1.7022582340627857E-2},{"$f":"'Population 2016'!AA123/'Population 2016'!AA$6","v":1.7423148790441014E-2},{"$f":"'Population 2016'!AB123/'Population 2016'!AB$6","v":3.6425623542077873E-2},{"$f":"'Population 2016'!AC123/'Population 2016'!AC$6","v":1.6653503635719928E-2},{"$f":"'Population 2016'!AD123/'Population 2016'!AD$6","v":2.4218484162561213E-2},{"$f":"'Population 2016'!AE123/'Population 2016'!AE$6","v":2.5137249381623664E-2},{"$f":"'Population 2016'!AF123/'Population 2016'!AF$6","v":8.8228786370173687E-3},{"$f":"'Population 2016'!AG123/'Population 2016'!AG$6","v":2.5137249381623664E-2},{"$f":"'Population 2016'!AH123/'Population 2016'!AH$6","v":1.8806442928616631E-2},{"$f":"'Population 2016'!AI123/'Population 2016'!AI$6","v":3.0288318678145285E-2},{"$f":"'Population 2016'!AJ123/'Population 2016'!AJ$6","v":2.7673804994784317E-2},{"$f":"'Population 2016'!AK123/'Population 2016'!AK$6","v":3.8970240906943787E-2},{"$f":"'Population 2016'!AL123/'Population 2016'!AL$6","v":1.0422218274412269E-2},{"$f":"'Population 2016'!AM123/'Population 2016'!AM$6","v":1.8075890678379697E-2},{"$f":"'Population 2016'!AN123/'Population 2016'!AN$6","v":2.7297193387158785E-2},{"$f":"'Population 2016'!AO123/'Population 2016'!AO$6","v":2.7297193387158785E-2},{"$f":"'Population 2016'!AP123/'Population 2016'!AP$6","v":3.6089648221912941E-2},{"$f":"'Population 2016'!AQ123/'Population 2016'!AQ$6","v":1.6074188562596601E-2},{"$f":"'Population 2016'!AR123/'Population 2016'!AR$6","v":2.0995147140113472E-2},{"$f":"'Population 2016'!AS123/'Population 2016'!AS$6","v":2.3453433038749149E-2},{"$f":"'Population 2016'!AT123/'Population 2016'!AT$6","v":3.8155802861685212E-2},{"$f":"'Population 2016'!AU123/'Population 2016'!AU$6","v":3.8155802861685212E-2},{"$f":"'Population 2016'!AV123/'Population 2016'!AV$6","v":1.8205647563445729E-2},{"$f":"'Population 2016'!AW123/'Population 2016'!AW$6","v":1.9787221844568752E-2},{"$f":"'Population 2016'!AX123/'Population 2016'!AX$6","v":2.1226305788571164E-2},{"$f":"'Population 2016'!AY123/'Population 2016'!AY$6","v":2.0526535297987335E-2},{"$f":"'Population 2016'!AZ123/'Population 2016'!AZ$6","v":2.3822709732742604E-2},{"$f":"'Population 2016'!BA123/'Population 2016'!BA$6","v":1.6317016317016316E-2},{"$f":"'Population 2016'!BB123/'Population 2016'!BB$6","v":2.6168254585520773E-2},{"$f":"'Population 2016'!BC123/'Population 2016'!BC$6","v":2.687776141384389E-2},121]
[null,"Male 35-39",{"$f":"'Population 2016'!C124/'Population 2016'!C$6","v":2.9441296708025533E-2},{"$f":"'Population 2016'!D124/'Population 2016'!D$6","v":2.9621008029712553E-2},{"$f":"'Population 2016'!E124/'Population 2016'!E$6","v":3.0105344544312362E-2},{"$f":"'Population 2016'!F124/'Population 2016'!F$6","v":2.6573184454254307E-2},{"$f":"'Population 2016'!G124/'Population 2016'!G$6","v":2.1101533639314898E-2},{"$f":"'Population 2016'!H124/'Population 2016'!H$6","v":1.2825175742470949E-2},{"$f":"'Population 2016'!I124/'Population 2016'!I$6","v":2.2919296882587162E-2},{"$f":"'Population 2016'!J124/'Population 2016'!J$6","v":1.710906146588749E-2},{"$f":"'Population 2016'!K124/'Population 2016'!K$6","v":1.8257892734880182E-2},{"$f":"'Population 2016'!L124/'Population 2016'!L$6","v":2.1006525431304192E-2},{"$f":"'Population 2016'!M124/'Population 2016'!M$6","v":2.1006525431304192E-2},{"$f":"'Population 2016'!N124/'Population 2016'!N$6","v":1.2013115911129409E-2},{"$f":"'Population 2016'!O124/'Population 2016'!O$6","v":1.4569445398941654E-2},{"$f":"'Population 2016'!P124/'Population 2016'!P$6","v":2.3365227044457367E-2},{"$f":"'Population 2016'!Q124/'Population 2016'!Q$6","v":3.0711206896551723E-2},{"$f":"'Population 2016'!R124/'Population 2016'!R$6","v":1.6988219224859144E-2},{"$f":"'Population 2016'!S124/'Population 2016'!S$6","v":2.266174938709372E-2},{"$f":"'Population 2016'!T124/'Population 2016'!T$6","v":2.5125797560749476E-2},{"$f":"'Population 2016'!U124/'Population 2016'!U$6","v":2.614138438880707E-2},{"$f":"'Population 2016'!V124/'Population 2016'!V$6","v":2.3596578054298642E-2},{"$f":"'Population 2016'!W124/'Population 2016'!W$6","v":1.7119170984455957E-2},{"$f":"'Population 2016'!X124/'Population 2016'!X$6","v":1.7119170984455957E-2},{"$f":"'Population 2016'!Y124/'Population 2016'!Y$6","v":2.0809598225538135E-2},{"$f":"'Population 2016'!Z124/'Population 2016'!Z$6","v":1.3306962457960024E-2},{"$f":"'Population 2016'!AA124/'Population 2016'!AA$6","v":1.4907166113600431E-2},{"$f":"'Population 2016'!AB124/'Population 2016'!AB$6","v":3.0627579400681858E-2},{"$f":"'Population 2016'!AC124/'Population 2016'!AC$6","v":1.3614983290083375E-2},{"$f":"'Population 2016'!AD124/'Population 2016'!AD$6","v":2.3034929652478806E-2},{"$f":"'Population 2016'!AE124/'Population 2016'!AE$6","v":2.3729563416252739E-2},{"$f":"'Population 2016'!AF124/'Population 2016'!AF$6","v":8.49098351587565E-3},{"$f":"'Population 2016'!AG124/'Population 2016'!AG$6","v":2.3729563416252739E-2},{"$f":"'Population 2016'!AH124/'Population 2016'!AH$6","v":1.7229624605358384E-2},{"$f":"'Population 2016'!AI124/'Population 2016'!AI$6","v":2.5437667669720471E-2},{"$f":"'Population 2016'!AJ124/'Population 2016'!AJ$6","v":2.7182917101306988E-2},{"$f":"'Population 2016'!AK124/'Population 2016'!AK$6","v":3.6687135884112737E-2},{"$f":"'Population 2016'!AL124/'Population 2016'!AL$6","v":8.9269852549298274E-3},{"$f":"'Population 2016'!AM124/'Population 2016'!AM$6","v":1.617252318204002E-2},{"$f":"'Population 2016'!AN124/'Population 2016'!AN$6","v":2.768166089965398E-2},{"$f":"'Population 2016'!AO124/'Population 2016'!AO$6","v":2.768166089965398E-2},{"$f":"'Population 2016'!AP124/'Population 2016'!AP$6","v":3.253827326390555E-2},{"$f":"'Population 2016'!AQ124/'Population 2016'!AQ$6","v":1.2747479208066534E-2},{"$f":"'Population 2016'!AR124/'Population 2016'!AR$6","v":1.8279331655047911E-2},{"$f":"'Population 2016'!AS124/'Population 2016'!AS$6","v":2.2919296882587162E-2},{"$f":"'Population 2016'!AT124/'Population 2016'!AT$6","v":5.246422893481717E-2},{"$f":"'Population 2016'!AU124/'Population 2016'!AU$6","v":5.246422893481717E-2},{"$f":"'Population 2016'!AV124/'Population 2016'!AV$6","v":1.6680567139282735E-2},{"$f":"'Population 2016'!AW124/'Population 2016'!AW$6","v":1.8648801382484707E-2},{"$f":"'Population 2016'!AX124/'Population 2016'!AX$6","v":1.5989247810168236E-2},{"$f":"'Population 2016'!AY124/'Population 2016'!AY$6","v":1.7946744519019509E-2},{"$f":"'Population 2016'!AZ124/'Population 2016'!AZ$6","v":1.8838430756038301E-2},{"$f":"'Population 2016'!BA124/'Population 2016'!BA$6","v":1.6038092961169884E-2},{"$f":"'Population 2016'!BB124/'Population 2016'!BB$6","v":2.2895197355629011E-2},{"$f":"'Population 2016'!BC124/'Population 2016'!BC$6","v":2.614138438880707E-2},122]
[null,"Male 40-44",{"$f":"'Population 2016'!C125/'Population 2016'!C$6","v":2.562217600229506E-2},{"$f":"'Population 2016'!D125/'Population 2016'!D$6","v":2.6338503387126306E-2},{"$f":"'Population 2016'!E125/'Population 2016'!E$6","v":2.8269063496665699E-2},{"$f":"'Population 2016'!F125/'Population 2016'!F$6","v":2.5101705184800486E-2},{"$f":"'Population 2016'!G125/'Population 2016'!G$6","v":2.0150005597223776E-2},{"$f":"'Population 2016'!H125/'Population 2016'!H$6","v":1.4959723820483314E-2},{"$f":"'Population 2016'!I125/'Population 2016'!I$6","v":2.495872584247839E-2},{"$f":"'Population 2016'!J125/'Population 2016'!J$6","v":1.8423337792485155E-2},{"$f":"'Population 2016'!K125/'Population 2016'!K$6","v":1.9826930391783949E-2},{"$f":"'Population 2016'!L125/'Population 2016'!L$6","v":2.5073746312684365E-2},{"$f":"'Population 2016'!M125/'Population 2016'!M$6","v":2.5073746312684365E-2},{"$f":"'Population 2016'!N125/'Population 2016'!N$6","v":1.1277919098942787E-2},{"$f":"'Population 2016'!O125/'Population 2016'!O$6","v":1.621881657618033E-2},{"$f":"'Population 2016'!P125/'Population 2016'!P$6","v":2.6219802294232701E-2},{"$f":"'Population 2016'!Q125/'Population 2016'!Q$6","v":3.163485221674877E-2},{"$f":"'Population 2016'!R125/'Population 2016'!R$6","v":2.2622502987877754E-2},{"$f":"'Population 2016'!S125/'Population 2016'!S$6","v":2.252496343606309E-2},{"$f":"'Population 2016'!T125/'Population 2016'!T$6","v":2.1509907874885159E-2},{"$f":"'Population 2016'!U125/'Population 2016'!U$6","v":3.663475699558174E-2},{"$f":"'Population 2016'!V125/'Population 2016'!V$6","v":2.55585407239819E-2},{"$f":"'Population 2016'!W125/'Population 2016'!W$6","v":1.877720207253886E-2},{"$f":"'Population 2016'!X125/'Population 2016'!X$6","v":1.877720207253886E-2},{"$f":"'Population 2016'!Y125/'Population 2016'!Y$6","v":2.2493320562585069E-2},{"$f":"'Population 2016'!Z125/'Population 2016'!Z$6","v":1.0265805056038111E-2},{"$f":"'Population 2016'!AA125/'Population 2016'!AA$6","v":1.432347813044864E-2},{"$f":"'Population 2016'!AB125/'Population 2016'!AB$6","v":2.7106136730665711E-2},{"$f":"'Population 2016'!AC125/'Population 2016'!AC$6","v":1.181171289289702E-2},{"$f":"'Population 2016'!AD125/'Population 2016'!AD$6","v":2.2635480005325996E-2},{"$f":"'Population 2016'!AE125/'Population 2016'!AE$6","v":2.3528465421199751E-2},{"$f":"'Population 2016'!AF125/'Population 2016'!AF$6","v":7.218718884832393E-3},{"$f":"'Population 2016'!AG125/'Population 2016'!AG$6","v":2.3528465421199751E-2},{"$f":"'Population 2016'!AH125/'Population 2016'!AH$6","v":1.883790936965726E-2},{"$f":"'Population 2016'!AI125/'Population 2016'!AI$6","v":2.4207217802182164E-2},{"$f":"'Population 2016'!AJ125/'Population 2016'!AJ$6","v":2.709087562127999E-2},{"$f":"'Population 2016'!AK125/'Population 2016'!AK$6","v":3.1727287041410798E-2},{"$f":"'Population 2016'!AL125/'Population 2016'!AL$6","v":1.0999585479954995E-2},{"$f":"'Population 2016'!AM125/'Population 2016'!AM$6","v":1.7886774036115178E-2},{"$f":"'Population 2016'!AN125/'Population 2016'!AN$6","v":3.9215686274509803E-2},{"$f":"'Population 2016'!AO125/'Population 2016'!AO$6","v":3.9215686274509803E-2},{"$f":"'Population 2016'!AP125/'Population 2016'!AP$6","v":2.4235734510726113E-2},{"$f":"'Population 2016'!AQ125/'Population 2016'!AQ$6","v":1.3512916758666373E-2},{"$f":"'Population 2016'!AR125/'Population 2016'!AR$6","v":1.8094509248468008E-2},{"$f":"'Population 2016'!AS125/'Population 2016'!AS$6","v":2.495872584247839E-2},{"$f":"'Population 2016'!AT125/'Population 2016'!AT$6","v":4.6104928457869634E-2},{"$f":"'Population 2016'!AU125/'Population 2016'!AU$6","v":4.6104928457869634E-2},{"$f":"'Population 2016'!AV125/'Population 2016'!AV$6","v":1.958775169784344E-2},{"$f":"'Population 2016'!AW125/'Population 2016'!AW$6","v":2.011482485524042E-2},{"$f":"'Population 2016'!AX125/'Population 2016'!AX$6","v":1.7055197664179449E-2},{"$f":"'Population 2016'!AY125/'Population 2016'!AY$6","v":1.7701664395017563E-2},{"$f":"'Population 2016'!AZ125/'Population 2016'!AZ$6","v":1.6542804058882379E-2},{"$f":"'Population 2016'!BA125/'Population 2016'!BA$6","v":1.5002091925168848E-2},{"$f":"'Population 2016'!BB125/'Population 2016'!BB$6","v":2.4742368267548123E-2},{"$f":"'Population 2016'!BC125/'Population 2016'!BC$6","v":3.663475699558174E-2},123]
[null,"Male 45-49",{"$f":"'Population 2016'!C126/'Population 2016'!C$6","v":2.7200028688230654E-2},{"$f":"'Population 2016'!D126/'Population 2016'!D$6","v":2.7986294562289123E-2},{"$f":"'Population 2016'!E126/'Population 2016'!E$6","v":3.0105344544312362E-2},{"$f":"'Population 2016'!F126/'Population 2016'!F$6","v":2.8823682160477797E-2},{"$f":"'Population 2016'!G126/'Population 2016'!G$6","v":2.7874174409492893E-2},{"$f":"'Population 2016'!H126/'Population 2016'!H$6","v":1.9204970277312376E-2},{"$f":"'Population 2016'!I126/'Population 2016'!I$6","v":2.971739341555793E-2},{"$f":"'Population 2016'!J126/'Population 2016'!J$6","v":2.2694735853927575E-2},{"$f":"'Population 2016'!K126/'Population 2016'!K$6","v":2.5342335488779004E-2},{"$f":"'Population 2016'!L126/'Population 2016'!L$6","v":3.0191293465629748E-2},{"$f":"'Population 2016'!M126/'Population 2016'!M$6","v":3.0191293465629748E-2},{"$f":"'Population 2016'!N126/'Population 2016'!N$6","v":1.3409989854283991E-2},{"$f":"'Population 2016'!O126/'Population 2016'!O$6","v":2.0256339770462511E-2},{"$f":"'Population 2016'!P126/'Population 2016'!P$6","v":2.9920177618015541E-2},{"$f":"'Population 2016'!Q126/'Population 2016'!Q$6","v":3.6022167487684727E-2},{"$f":"'Population 2016'!R126/'Population 2016'!R$6","v":2.4244493768140685E-2},{"$f":"'Population 2016'!S126/'Population 2016'!S$6","v":2.4155872852197519E-2},{"$f":"'Population 2016'!T126/'Population 2016'!T$6","v":1.9731463297455391E-2},{"$f":"'Population 2016'!U126/'Population 2016'!U$6","v":4.3262150220913106E-2},{"$f":"'Population 2016'!V126/'Population 2016'!V$6","v":3.0224830316742082E-2},{"$f":"'Population 2016'!W126/'Population 2016'!W$6","v":2.1512953367875648E-2},{"$f":"'Population 2016'!X126/'Population 2016'!X$6","v":2.1512953367875648E-2},{"$f":"'Population 2016'!Y126/'Population 2016'!Y$6","v":2.69899682411655E-2},{"$f":"'Population 2016'!Z126/'Population 2016'!Z$6","v":1.0846085839022211E-2},{"$f":"'Population 2016'!AA126/'Population 2016'!AA$6","v":1.6403257153927396E-2},{"$f":"'Population 2016'!AB126/'Population 2016'!AB$6","v":2.985375919612417E-2},{"$f":"'Population 2016'!AC126/'Population 2016'!AC$6","v":1.3085868351534628E-2},{"$f":"'Population 2016'!AD126/'Population 2016'!AD$6","v":2.8523663692985961E-2},{"$f":"'Population 2016'!AE126/'Population 2016'!AE$6","v":2.8757013292577474E-2},{"$f":"'Population 2016'!AF126/'Population 2016'!AF$6","v":8.8228786370173687E-3},{"$f":"'Population 2016'!AG126/'Population 2016'!AG$6","v":2.8757013292577474E-2},{"$f":"'Population 2016'!AH126/'Population 2016'!AH$6","v":2.2365647037434575E-2},{"$f":"'Population 2016'!AI126/'Population 2016'!AI$6","v":2.5010776899350037E-2},{"$f":"'Population 2016'!AJ126/'Population 2016'!AJ$6","v":3.1447505675891267E-2},{"$f":"'Population 2016'!AK126/'Population 2016'!AK$6","v":4.1095890410958902E-2},{"$f":"'Population 2016'!AL126/'Population 2016'!AL$6","v":1.4685853023035472E-2},{"$f":"'Population 2016'!AM126/'Population 2016'!AM$6","v":2.0229380185456319E-2},{"$f":"'Population 2016'!AN126/'Population 2016'!AN$6","v":4.0369088811995385E-2},{"$f":"'Population 2016'!AO126/'Population 2016'!AO$6","v":4.0369088811995385E-2},{"$f":"'Population 2016'!AP126/'Population 2016'!AP$6","v":2.9322839180304268E-2},{"$f":"'Population 2016'!AQ126/'Population 2016'!AQ$6","v":1.5617870022815927E-2},{"$f":"'Population 2016'!AR126/'Population 2016'!AR$6","v":2.073628272967434E-2},{"$f":"'Population 2016'!AS126/'Population 2016'!AS$6","v":2.971739341555793E-2},{"$f":"'Population 2016'!AT126/'Population 2016'!AT$6","v":2.066772655007949E-2},{"$f":"'Population 2016'!AU126/'Population 2016'!AU$6","v":2.066772655007949E-2},{"$f":"'Population 2016'!AV126/'Population 2016'!AV$6","v":2.5020850708924104E-2},{"$f":"'Population 2016'!AW126/'Population 2016'!AW$6","v":2.5233621896985234E-2},{"$f":"'Population 2016'!AX126/'Population 2016'!AX$6","v":2.0114010288733372E-2},{"$f":"'Population 2016'!AY126/'Population 2016'!AY$6","v":2.056953181097013E-2},{"$f":"'Population 2016'!AZ126/'Population 2016'!AZ$6","v":1.9553022724024583E-2},{"$f":"'Population 2016'!BA126/'Population 2016'!BA$6","v":1.8468710776403083E-2},{"$f":"'Population 2016'!BB126/'Population 2016'!BB$6","v":2.712424654870698E-2},{"$f":"'Population 2016'!BC126/'Population 2016'!BC$6","v":4.3262150220913106E-2},124]
[null,"Male 50-54",{"$f":"'Population 2016'!C127/'Population 2016'!C$6","v":2.524564297496952E-2},{"$f":"'Population 2016'!D127/'Population 2016'!D$6","v":2.7005466481835064E-2},{"$f":"'Population 2016'!E127/'Population 2016'!E$6","v":3.1748332850101479E-2},{"$f":"'Population 2016'!F127/'Population 2016'!F$6","v":2.8866960962520557E-2},{"$f":"'Population 2016'!G127/'Population 2016'!G$6","v":2.8657785738273815E-2},{"$f":"'Population 2016'!H127/'Population 2016'!H$6","v":2.0308018865112062E-2},{"$f":"'Population 2016'!I127/'Population 2016'!I$6","v":3.3650577838205305E-2},{"$f":"'Population 2016'!J127/'Population 2016'!J$6","v":2.2929428055105727E-2},{"$f":"'Population 2016'!K127/'Population 2016'!K$6","v":2.3678204640547738E-2},{"$f":"'Population 2016'!L127/'Population 2016'!L$6","v":3.5353535353535352E-2},{"$f":"'Population 2016'!M127/'Population 2016'!M$6","v":3.5353535353535352E-2},{"$f":"'Population 2016'!N127/'Population 2016'!N$6","v":1.2468937934685115E-2},{"$f":"'Population 2016'!O127/'Population 2016'!O$6","v":2.1201292007422171E-2},{"$f":"'Population 2016'!P127/'Population 2016'!P$6","v":3.8378178358090605E-2},{"$f":"'Population 2016'!Q127/'Population 2016'!Q$6","v":3.8947044334975367E-2},{"$f":"'Population 2016'!R127/'Population 2016'!R$6","v":2.9195834044732798E-2},{"$f":"'Population 2016'!S127/'Population 2016'!S$6","v":2.482665011205926E-2},{"$f":"'Population 2016'!T127/'Population 2016'!T$6","v":1.8998170983538853E-2},{"$f":"'Population 2016'!U127/'Population 2016'!U$6","v":4.7680412371134018E-2},{"$f":"'Population 2016'!V127/'Population 2016'!V$6","v":2.9376414027149321E-2},{"$f":"'Population 2016'!W127/'Population 2016'!W$6","v":2.2433160621761657E-2},{"$f":"'Population 2016'!X127/'Population 2016'!X$6","v":2.2433160621761657E-2},{"$f":"'Population 2016'!Y127/'Population 2016'!Y$6","v":2.6606845793214699E-2},{"$f":"'Population 2016'!Z127/'Population 2016'!Z$6","v":1.0484549644388138E-2},{"$f":"'Population 2016'!AA127/'Population 2016'!AA$6","v":1.6908203503377767E-2},{"$f":"'Population 2016'!AB127/'Population 2016'!AB$6","v":2.8821998923380585E-2},{"$f":"'Population 2016'!AC127/'Population 2016'!AC$6","v":1.3683067932911339E-2},{"$f":"'Population 2016'!AD127/'Population 2016'!AD$6","v":3.1438166674063885E-2},{"$f":"'Population 2016'!AE127/'Population 2016'!AE$6","v":3.2437106602047176E-2},{"$f":"'Population 2016'!AF127/'Population 2016'!AF$6","v":1.1588671313198363E-2},{"$f":"'Population 2016'!AG127/'Population 2016'!AG$6","v":3.2437106602047176E-2},{"$f":"'Population 2016'!AH127/'Population 2016'!AH$6","v":2.2704785346428034E-2},{"$f":"'Population 2016'!AI127/'Population 2016'!AI$6","v":2.5274444728108247E-2},{"$f":"'Population 2016'!AJ127/'Population 2016'!AJ$6","v":3.4116708596674233E-2},{"$f":"'Population 2016'!AK127/'Population 2016'!AK$6","v":3.9757518501023457E-2},{"$f":"'Population 2016'!AL127/'Population 2016'!AL$6","v":1.4893113045537988E-2},{"$f":"'Population 2016'!AM127/'Population 2016'!AM$6","v":2.060761346998536E-2},{"$f":"'Population 2016'!AN127/'Population 2016'!AN$6","v":4.5751633986928102E-2},{"$f":"'Population 2016'!AO127/'Population 2016'!AO$6","v":4.5751633986928102E-2},{"$f":"'Population 2016'!AP127/'Population 2016'!AP$6","v":2.8890915198924991E-2},{"$f":"'Population 2016'!AQ127/'Population 2016'!AQ$6","v":1.6486347243688821E-2},{"$f":"'Population 2016'!AR127/'Population 2016'!AR$6","v":2.1375530869863549E-2},{"$f":"'Population 2016'!AS127/'Population 2016'!AS$6","v":3.3650577838205305E-2},{"$f":"'Population 2016'!AT127/'Population 2016'!AT$6","v":5.7233704292527825E-2},{"$f":"'Population 2016'!AU127/'Population 2016'!AU$6","v":5.7233704292527825E-2},{"$f":"'Population 2016'!AV127/'Population 2016'!AV$6","v":2.7785058977719528E-2},{"$f":"'Population 2016'!AW127/'Population 2016'!AW$6","v":2.5520274531322943E-2},{"$f":"'Population 2016'!AX127/'Population 2016'!AX$6","v":2.2199564350929232E-2},{"$f":"'Population 2016'!AY127/'Population 2016'!AY$6","v":2.0737218211603039E-2},{"$f":"'Population 2016'!AZ127/'Population 2016'!AZ$6","v":1.890988995283693E-2},{"$f":"'Population 2016'!BA127/'Population 2016'!BA$6","v":1.9444942521865599E-2},{"$f":"'Population 2016'!BB127/'Population 2016'!BB$6","v":2.6913604251733749E-2},{"$f":"'Population 2016'!BC127/'Population 2016'!BC$6","v":4.7680412371134018E-2},125]
[null,"Male 55-59",{"$f":"'Population 2016'!C128/'Population 2016'!C$6","v":2.4833249659327261E-2},{"$f":"'Population 2016'!D128/'Population 2016'!D$6","v":2.6573902126435279E-2},{"$f":"'Population 2016'!E128/'Population 2016'!E$6","v":3.1265100995457623E-2},{"$f":"'Population 2016'!F128/'Population 2016'!F$6","v":2.4365965550073573E-2},{"$f":"'Population 2016'!G128/'Population 2016'!G$6","v":3.0336952871375798E-2},{"$f":"'Population 2016'!H128/'Population 2016'!H$6","v":1.8781638116589255E-2},{"$f":"'Population 2016'!I128/'Population 2016'!I$6","v":3.2582305525881324E-2},{"$f":"'Population 2016'!J128/'Population 2016'!J$6","v":2.1380459527329906E-2},{"$f":"'Population 2016'!K128/'Population 2016'!K$6","v":2.1300874857360211E-2},{"$f":"'Population 2016'!L128/'Population 2016'!L$6","v":3.4191472244569587E-2},{"$f":"'Population 2016'!M128/'Population 2016'!M$6","v":3.4191472244569587E-2},{"$f":"'Population 2016'!N128/'Population 2016'!N$6","v":1.1586701760061168E-2},{"$f":"'Population 2016'!O128/'Population 2016'!O$6","v":1.9517558930657687E-2},{"$f":"'Population 2016'!P128/'Population 2016'!P$6","v":3.2880477877041812E-2},{"$f":"'Population 2016'!Q128/'Population 2016'!Q$6","v":3.6560960591133007E-2},{"$f":"'Population 2016'!R128/'Population 2016'!R$6","v":2.4073757896534063E-2},{"$f":"'Population 2016'!S128/'Population 2016'!S$6","v":2.2669640884268562E-2},{"$f":"'Population 2016'!T128/'Population 2016'!T$6","v":1.6326289793751E-2},{"$f":"'Population 2016'!U128/'Population 2016'!U$6","v":4.731222385861561E-2},{"$f":"'Population 2016'!V128/'Population 2016'!V$6","v":2.6813489819004523E-2},{"$f":"'Population 2016'!W128/'Population 2016'!W$6","v":2.0907772020725388E-2},{"$f":"'Population 2016'!X128/'Population 2016'!X$6","v":2.0907772020725388E-2},{"$f":"'Population 2016'!Y128/'Population 2016'!Y$6","v":2.4479507990119474E-2},{"$f":"'Population 2016'!Z128/'Population 2016'!Z$6","v":9.4151316568991134E-3},{"$f":"'Population 2016'!AA128/'Population 2016'!AA$6","v":1.5574595199260079E-2},{"$f":"'Population 2016'!AB128/'Population 2016'!AB$6","v":2.8025749147676297E-2},{"$f":"'Population 2016'!AC128/'Population 2016'!AC$6","v":1.2432255780386176E-2},{"$f":"'Population 2016'!AD128/'Population 2016'!AD$6","v":3.093515600727886E-2},{"$f":"'Population 2016'!AE128/'Population 2016'!AE$6","v":3.1150079433708046E-2},{"$f":"'Population 2016'!AF128/'Population 2016'!AF$6","v":1.0537670096249585E-2},{"$f":"'Population 2016'!AG128/'Population 2016'!AG$6","v":3.1150079433708046E-2},{"$f":"'Population 2016'!AH128/'Population 2016'!AH$6","v":2.1222366346291679E-2},{"$f":"'Population 2016'!AI128/'Population 2016'!AI$6","v":2.2704729698623485E-2},{"$f":"'Population 2016'!AJ128/'Population 2016'!AJ$6","v":3.2183837516107261E-2},{"$f":"'Population 2016'!AK128/'Population 2016'!AK$6","v":3.6765863643520705E-2},{"$f":"'Population 2016'!AL128/'Population 2016'!AL$6","v":1.353111861195002E-2},{"$f":"'Population 2016'!AM128/'Population 2016'!AM$6","v":1.8557833089311859E-2},{"$f":"'Population 2016'!AN128/'Population 2016'!AN$6","v":4.2291426374471357E-2},{"$f":"'Population 2016'!AO128/'Population 2016'!AO$6","v":4.2291426374471357E-2},{"$f":"'Population 2016'!AP128/'Population 2016'!AP$6","v":2.4715650045591977E-2},{"$f":"'Population 2016'!AQ128/'Population 2016'!AQ$6","v":1.5529550305439023E-2},{"$f":"'Population 2016'!AR128/'Population 2016'!AR$6","v":1.9802562192457213E-2},{"$f":"'Population 2016'!AS128/'Population 2016'!AS$6","v":3.2582305525881324E-2},{"$f":"'Population 2016'!AT128/'Population 2016'!AT$6","v":4.133545310015898E-2},{"$f":"'Population 2016'!AU128/'Population 2016'!AU$6","v":4.133545310015898E-2},{"$f":"'Population 2016'!AV128/'Population 2016'!AV$6","v":2.621231979030144E-2},{"$f":"'Population 2016'!AW128/'Population 2016'!AW$6","v":2.4799547907845273E-2},{"$f":"'Population 2016'!AX128/'Population 2016'!AX$6","v":2.1458034017704037E-2},{"$f":"'Population 2016'!AY128/'Population 2016'!AY$6","v":1.8866869896851365E-2},{"$f":"'Population 2016'!AZ128/'Population 2016'!AZ$6","v":1.6667857653279976E-2},{"$f":"'Population 2016'!BA128/'Population 2016'!BA$6","v":1.8966788197557427E-2},{"$f":"'Population 2016'!BB128/'Population 2016'!BB$6","v":2.4126644630241754E-2},{"$f":"'Population 2016'!BC128/'Population 2016'!BC$6","v":4.731222385861561E-2},126]
[null,"Male 60-64",{"$f":"'Population 2016'!C129/'Population 2016'!C$6","v":2.0314853331420784E-2},{"$f":"'Population 2016'!D129/'Population 2016'!D$6","v":2.1931315878952737E-2},{"$f":"'Population 2016'!E129/'Population 2016'!E$6","v":2.6287812892625884E-2},{"$f":"'Population 2016'!F129/'Population 2016'!F$6","v":2.4236129143945295E-2},{"$f":"'Population 2016'!G129/'Population 2016'!G$6","v":2.8265980073883354E-2},{"$f":"'Population 2016'!H129/'Population 2016'!H$6","v":1.6492066993805041E-2},{"$f":"'Population 2016'!I129/'Population 2016'!I$6","v":3.1174128386908809E-2},{"$f":"'Population 2016'!J129/'Population 2016'!J$6","v":1.7977422610246662E-2},{"$f":"'Population 2016'!K129/'Population 2016'!K$6","v":1.9589197413465195E-2},{"$f":"'Population 2016'!L129/'Population 2016'!L$6","v":3.0928756592473405E-2},{"$f":"'Population 2016'!M129/'Population 2016'!M$6","v":3.0928756592473405E-2},{"$f":"'Population 2016'!N129/'Population 2016'!N$6","v":9.6310782396447532E-3},{"$f":"'Population 2016'!O129/'Population 2016'!O$6","v":1.6373445124046457E-2},{"$f":"'Population 2016'!P129/'Population 2016'!P$6","v":2.6008352275730826E-2},{"$f":"'Population 2016'!Q129/'Population 2016'!Q$6","v":2.8825431034482759E-2},{"$f":"'Population 2016'!R129/'Population 2016'!R$6","v":2.1939559501451256E-2},{"$f":"'Population 2016'!S129/'Population 2016'!S$6","v":1.929734109155189E-2},{"$f":"'Population 2016'!T129/'Population 2016'!T$6","v":1.2929544937333007E-2},{"$f":"'Population 2016'!U129/'Population 2016'!U$6","v":4.7680412371134018E-2},{"$f":"'Population 2016'!V129/'Population 2016'!V$6","v":2.2076498868778282E-2},{"$f":"'Population 2016'!W129/'Population 2016'!W$6","v":1.8818652849740932E-2},{"$f":"'Population 2016'!X129/'Population 2016'!X$6","v":1.8818652849740932E-2},{"$f":"'Population 2016'!Y129/'Population 2016'!Y$6","v":2.0315571911075265E-2},{"$f":"'Population 2016'!Z129/'Population 2016'!Z$6","v":7.4950402702710917E-3},{"$f":"'Population 2016'!AA129/'Population 2016'!AA$6","v":1.3089859202459739E-2},{"$f":"'Population 2016'!AB129/'Population 2016'!AB$6","v":2.300152521083797E-2},{"$f":"'Population 2016'!AC129/'Population 2016'!AC$6","v":1.0123213750763521E-2},{"$f":"'Population 2016'!AD129/'Population 2016'!AD$6","v":2.7798736555560487E-2},{"$f":"'Population 2016'!AE129/'Population 2016'!AE$6","v":2.7630864520280733E-2},{"$f":"'Population 2016'!AF129/'Population 2016'!AF$6","v":7.9378249806394512E-3},{"$f":"'Population 2016'!AG129/'Population 2016'!AG$6","v":2.7630864520280733E-2},{"$f":"'Population 2016'!AH129/'Population 2016'!AH$6","v":1.8421853093675594E-2},{"$f":"'Population 2016'!AI129/'Population 2016'!AI$6","v":1.8515340863909734E-2},{"$f":"'Population 2016'!AJ129/'Population 2016'!AJ$6","v":2.8256734368288641E-2},{"$f":"'Population 2016'!AK129/'Population 2016'!AK$6","v":2.9444182018579752E-2},{"$f":"'Population 2016'!AL129/'Population 2016'!AL$6","v":1.2539231361402262E-2},{"$f":"'Population 2016'!AM129/'Population 2016'!AM$6","v":1.6642264519277698E-2},{"$f":"'Population 2016'!AN129/'Population 2016'!AN$6","v":4.1906958861976165E-2},{"$f":"'Population 2016'!AO129/'Population 2016'!AO$6","v":4.1906958861976165E-2},{"$f":"'Population 2016'!AP129/'Population 2016'!AP$6","v":2.2652013245668762E-2},{"$f":"'Population 2016'!AQ129/'Population 2016'!AQ$6","v":1.3586516523147126E-2},{"$f":"'Population 2016'!AR129/'Population 2016'!AR$6","v":1.6944879967172827E-2},{"$f":"'Population 2016'!AS129/'Population 2016'!AS$6","v":3.1174128386908809E-2},{"$f":"'Population 2016'!AT129/'Population 2016'!AT$6","v":3.3386327503974564E-2},{"$f":"'Population 2016'!AU129/'Population 2016'!AU$6","v":3.3386327503974564E-2},{"$f":"'Population 2016'!AV129/'Population 2016'!AV$6","v":2.3019182652210174E-2},{"$f":"'Population 2016'!AW129/'Population 2016'!AW$6","v":2.0810981252917714E-2},{"$f":"'Population 2016'!AX129/'Population 2016'!AX$6","v":1.6406358622607406E-2},{"$f":"'Population 2016'!AY129/'Population 2016'!AY$6","v":1.7013720187292809E-2},{"$f":"'Population 2016'!AZ129/'Population 2016'!AZ$6","v":1.5068958124910676E-2},{"$f":"'Population 2016'!BA129/'Population 2016'!BA$6","v":1.5500169346323192E-2},{"$f":"'Population 2016'!BB129/'Population 2016'!BB$6","v":1.9767969408257178E-2},{"$f":"'Population 2016'!BC129/'Population 2016'!BC$6","v":4.7680412371134018E-2},127]
[null,"Male 65-69",{"$f":"'Population 2016'!C130/'Population 2016'!C$6","v":1.8539769059743239E-2},{"$f":"'Population 2016'!D130/'Population 2016'!D$6","v":2.1839771924777027E-2},{"$f":"'Population 2016'!E130/'Population 2016'!E$6","v":3.0733545955349377E-2},{"$f":"'Population 2016'!F130/'Population 2016'!F$6","v":2.5880723621570154E-2},{"$f":"'Population 2016'!G130/'Population 2016'!G$6","v":3.0616814060226129E-2},{"$f":"'Population 2016'!H130/'Population 2016'!H$6","v":1.7589153156805811E-2},{"$f":"'Population 2016'!I130/'Population 2016'!I$6","v":3.2096727202097698E-2},{"$f":"'Population 2016'!J130/'Population 2016'!J$6","v":1.8775376094252387E-2},{"$f":"'Population 2016'!K130/'Population 2016'!K$6","v":1.9208824648155192E-2},{"$f":"'Population 2016'!L130/'Population 2016'!L$6","v":3.4347903816930363E-2},{"$f":"'Population 2016'!M130/'Population 2016'!M$6","v":3.4347903816930363E-2},{"$f":"'Population 2016'!N130/'Population 2016'!N$6","v":1.0704465585437221E-2},{"$f":"'Population 2016'!O130/'Population 2016'!O$6","v":1.6476530822623875E-2},{"$f":"'Population 2016'!P130/'Population 2016'!P$6","v":2.3418089549082834E-2},{"$f":"'Population 2016'!Q130/'Population 2016'!Q$6","v":2.9441194581280788E-2},{"$f":"'Population 2016'!R130/'Population 2016'!R$6","v":1.7244323032269079E-2},{"$f":"'Population 2016'!S130/'Population 2016'!S$6","v":1.9347320573659236E-2},{"$f":"'Population 2016'!T130/'Population 2016'!T$6","v":1.1951821852110954E-2},{"$f":"'Population 2016'!U130/'Population 2016'!U$6","v":4.6944035346097202E-2},{"$f":"'Population 2016'!V130/'Population 2016'!V$6","v":2.4710124434389139E-2},{"$f":"'Population 2016'!W130/'Population 2016'!W$6","v":1.9490155440414509E-2},{"$f":"'Population 2016'!X130/'Population 2016'!X$6","v":1.9490155440414509E-2},{"$f":"'Population 2016'!Y130/'Population 2016'!Y$6","v":2.2160608963048847E-2},{"$f":"'Population 2016'!Z130/'Population 2016'!Z$6","v":6.2220682908452349E-3},{"$f":"'Population 2016'!AA130/'Population 2016'!AA$6","v":1.1837492266446691E-2},{"$f":"'Population 2016'!AB130/'Population 2016'!AB$6","v":2.303516956755787E-2},{"$f":"'Population 2016'!AC130/'Population 2016'!AC$6","v":8.7712472717510984E-3},{"$f":"'Population 2016'!AD130/'Population 2016'!AD$6","v":2.9633246046188215E-2},{"$f":"'Population 2016'!AE130/'Population 2016'!AE$6","v":2.9279868079715245E-2},{"$f":"'Population 2016'!AF130/'Population 2016'!AF$6","v":7.4952981524504924E-3},{"$f":"'Population 2016'!AG130/'Population 2016'!AG$6","v":2.9279868079715245E-2},{"$f":"'Population 2016'!AH130/'Population 2016'!AH$6","v":1.7348497827067433E-2},{"$f":"'Population 2016'!AI130/'Population 2016'!AI$6","v":1.8176339369792037E-2},{"$f":"'Population 2016'!AJ130/'Population 2016'!AJ$6","v":2.7029514634595325E-2},{"$f":"'Population 2016'!AK130/'Population 2016'!AK$6","v":3.0231459612659425E-2},{"$f":"'Population 2016'!AL130/'Population 2016'!AL$6","v":1.3072185704980163E-2},{"$f":"'Population 2016'!AM130/'Population 2016'!AM$6","v":1.5623474865788189E-2},{"$f":"'Population 2016'!AN130/'Population 2016'!AN$6","v":4.6520569011918492E-2},{"$f":"'Population 2016'!AO130/'Population 2016'!AO$6","v":4.6520569011918492E-2},{"$f":"'Population 2016'!AP130/'Population 2016'!AP$6","v":2.0828334213178482E-2},{"$f":"'Population 2016'!AQ130/'Population 2016'!AQ$6","v":1.2394200338558916E-2},{"$f":"'Population 2016'!AR130/'Population 2016'!AR$6","v":1.6801882814681344E-2},{"$f":"'Population 2016'!AS130/'Population 2016'!AS$6","v":3.2096727202097698E-2},{"$f":"'Population 2016'!AT130/'Population 2016'!AT$6","v":3.6565977742448331E-2},{"$f":"'Population 2016'!AU130/'Population 2016'!AU$6","v":3.6565977742448331E-2},{"$f":"'Population 2016'!AV130/'Population 2016'!AV$6","v":2.6402954843321814E-2},{"$f":"'Population 2016'!AW130/'Population 2016'!AW$6","v":1.9664370715566877E-2},{"$f":"'Population 2016'!AX130/'Population 2016'!AX$6","v":1.8352875747323538E-2},{"$f":"'Population 2016'!AY130/'Population 2016'!AY$6","v":1.7675866487227885E-2},{"$f":"'Population 2016'!AZ130/'Population 2016'!AZ$6","v":1.5721023295698158E-2},{"$f":"'Population 2016'!BA130/'Population 2016'!BA$6","v":1.4005937082860159E-2},{"$f":"'Population 2016'!BB130/'Population 2016'!BB$6","v":2.0723961371443386E-2},{"$f":"'Population 2016'!BC130/'Population 2016'!BC$6","v":4.6944035346097202E-2},128]
[null,"Male 70-74",{"$f":"'Population 2016'!C131/'Population 2016'!C$6","v":1.204905687441727E-2},{"$f":"'Population 2016'!D131/'Population 2016'!D$6","v":1.4424711636544347E-2},{"$f":"'Population 2016'!E131/'Population 2016'!E$6","v":2.0827292935150284E-2},{"$f":"'Population 2016'!F131/'Population 2016'!F$6","v":1.757119362936034E-2},{"$f":"'Population 2016'!G131/'Population 2016'!G$6","v":2.4235978954438599E-2},{"$f":"'Population 2016'!H131/'Population 2016'!H$6","v":1.299212363684063E-2},{"$f":"'Population 2016'!I131/'Population 2016'!I$6","v":2.3016412547343885E-2},{"$f":"'Population 2016'!J131/'Population 2016'!J$6","v":1.2462155882560022E-2},{"$f":"'Population 2016'!K131/'Population 2016'!K$6","v":1.3645872955496387E-2},{"$f":"'Population 2016'!L131/'Population 2016'!L$6","v":2.5945293644408687E-2},{"$f":"'Population 2016'!M131/'Population 2016'!M$6","v":2.5945293644408687E-2},{"$f":"'Population 2016'!N131/'Population 2016'!N$6","v":7.3225602493787586E-3},{"$f":"'Population 2016'!O131/'Population 2016'!O$6","v":1.2404645728815888E-2},{"$f":"'Population 2016'!P131/'Population 2016'!P$6","v":1.6863138975524661E-2},{"$f":"'Population 2016'!Q131/'Population 2016'!Q$6","v":2.1012931034482759E-2},{"$f":"'Population 2016'!R131/'Population 2016'!R$6","v":1.0329520232200785E-2},{"$f":"'Population 2016'!S131/'Population 2016'!S$6","v":1.4254674396826567E-2},{"$f":"'Population 2016'!T131/'Population 2016'!T$6","v":8.6899353522753141E-3},{"$f":"'Population 2016'!U131/'Population 2016'!U$6","v":3.0007363770250369E-2},{"$f":"'Population 2016'!V131/'Population 2016'!V$6","v":1.7321832579185521E-2},{"$f":"'Population 2016'!W131/'Population 2016'!W$6","v":1.4026943005181347E-2},{"$f":"'Population 2016'!X131/'Population 2016'!X$6","v":1.4026943005181347E-2},{"$f":"'Population 2016'!Y131/'Population 2016'!Y$6","v":1.5234158390885719E-2},{"$f":"'Population 2016'!Z131/'Population 2016'!Z$6","v":4.6057888324811409E-3},{"$f":"'Population 2016'!AA131/'Population 2016'!AA$6","v":9.2402682215014659E-3},{"$f":"'Population 2016'!AB131/'Population 2016'!AB$6","v":1.5711914588193075E-2},{"$f":"'Population 2016'!AC131/'Population 2016'!AC$6","v":6.7423249154777787E-3},{"$f":"'Population 2016'!AD131/'Population 2016'!AD$6","v":2.2310002515053332E-2},{"$f":"'Population 2016'!AE131/'Population 2016'!AE$6","v":2.1618034468196351E-2},{"$f":"'Population 2016'!AF131/'Population 2016'!AF$6","v":5.9741121805509459E-3},{"$f":"'Population 2016'!AG131/'Population 2016'!AG$6","v":2.1618034468196351E-2},{"$f":"'Population 2016'!AH131/'Population 2016'!AH$6","v":1.3729857107394963E-2},{"$f":"'Population 2016'!AI131/'Population 2016'!AI$6","v":1.3614467411911926E-2},{"$f":"'Population 2016'!AJ131/'Population 2016'!AJ$6","v":2.0862735472786404E-2},{"$f":"'Population 2016'!AK131/'Population 2016'!AK$6","v":2.3460872303574239E-2},{"$f":"'Population 2016'!AL131/'Population 2016'!AL$6","v":9.0306152661810864E-3},{"$f":"'Population 2016'!AM131/'Population 2016'!AM$6","v":1.2231576378721328E-2},{"$f":"'Population 2016'!AN131/'Population 2016'!AN$6","v":3.767781622452903E-2},{"$f":"'Population 2016'!AO131/'Population 2016'!AO$6","v":3.767781622452903E-2},{"$f":"'Population 2016'!AP131/'Population 2016'!AP$6","v":1.3965542064596631E-2},{"$f":"'Population 2016'!AQ131/'Population 2016'!AQ$6","v":1.0362846838890116E-2},{"$f":"'Population 2016'!AR131/'Population 2016'!AR$6","v":1.2463925718348739E-2},{"$f":"'Population 2016'!AS131/'Population 2016'!AS$6","v":2.3016412547343885E-2},{"$f":"'Population 2016'!AT131/'Population 2016'!AT$6","v":3.8155802861685212E-2},{"$f":"'Population 2016'!AU131/'Population 2016'!AU$6","v":3.8155802861685212E-2},{"$f":"'Population 2016'!AV131/'Population 2016'!AV$6","v":2.0183486238532111E-2},{"$f":"'Population 2016'!AW131/'Population 2016'!AW$6","v":1.5741324662773649E-2},{"$f":"'Population 2016'!AX131/'Population 2016'!AX$6","v":1.1308337581684201E-2},{"$f":"'Population 2016'!AY131/'Population 2016'!AY$6","v":1.2413093298133521E-2},{"$f":"'Population 2016'!AZ131/'Population 2016'!AZ$6","v":1.0674217521795055E-2},{"$f":"'Population 2016'!BA131/'Population 2016'!BA$6","v":1.1754627139242524E-2},{"$f":"'Population 2016'!BB131/'Population 2016'!BB$6","v":1.6138440598872254E-2},{"$f":"'Population 2016'!BC131/'Population 2016'!BC$6","v":3.0007363770250369E-2},129]
[null,"Male 75-79",{"$f":"'Population 2016'!C132/'Population 2016'!C$6","v":1.000502044036434E-2},{"$f":"'Population 2016'!D132/'Population 2016'!D$6","v":1.1560693641618497E-2},{"$f":"'Population 2016'!E132/'Population 2016'!E$6","v":1.5753358461389776E-2},{"$f":"'Population 2016'!F132/'Population 2016'!F$6","v":1.3113477018956115E-2},{"$f":"'Population 2016'!G132/'Population 2016'!G$6","v":1.7967088324191201E-2},{"$f":"'Population 2016'!H132/'Population 2016'!H$6","v":9.9751366885885151E-3},{"$f":"'Population 2016'!I132/'Population 2016'!I$6","v":1.6995241332426921E-2},{"$f":"'Population 2016'!J132/'Population 2016'!J$6","v":9.92748010983595E-3},{"$f":"'Population 2016'!K132/'Population 2016'!K$6","v":1.0174971472042603E-2},{"$f":"'Population 2016'!L132/'Population 2016'!L$6","v":2.0537230714221866E-2},{"$f":"'Population 2016'!M132/'Population 2016'!M$6","v":2.0537230714221866E-2},{"$f":"'Population 2016'!N132/'Population 2016'!N$6","v":6.5579555647046718E-3},{"$f":"'Population 2016'!O132/'Population 2016'!O$6","v":9.8790461136691633E-3},{"$f":"'Population 2016'!P132/'Population 2016'!P$6","v":1.4907226304382301E-2},{"$f":"'Population 2016'!Q132/'Population 2016'!Q$6","v":1.7818657635467982E-2},{"$f":"'Population 2016'!R132/'Population 2016'!R$6","v":8.366057708724603E-3},{"$f":"'Population 2016'!S132/'Population 2016'!S$6","v":1.0600911204873789E-2},{"$f":"'Population 2016'!T132/'Population 2016'!T$6","v":6.3214854647977549E-3},{"$f":"'Population 2016'!U132/'Population 2016'!U$6","v":2.6693667157584682E-2},{"$f":"'Population 2016'!V132/'Population 2016'!V$6","v":1.2814621040723981E-2},{"$f":"'Population 2016'!W132/'Population 2016'!W$6","v":1.0578238341968912E-2},{"$f":"'Population 2016'!X132/'Population 2016'!X$6","v":1.0578238341968912E-2},{"$f":"'Population 2016'!Y132/'Population 2016'!Y$6","v":1.1574330795987296E-2},{"$f":"'Population 2016'!Z132/'Population 2016'!Z$6","v":3.4361129086650198E-3},{"$f":"'Population 2016'!AA132/'Population 2016'!AA$6","v":6.9417624377409899E-3},{"$f":"'Population 2016'!AB132/'Population 2016'!AB$6","v":1.2235331060470124E-2},{"$f":"'Population 2016'!AC132/'Population 2016'!AC$6","v":5.215283640622021E-3},{"$f":"'Population 2016'!AD132/'Population 2016'!AD$6","v":1.5770863846848046E-2},{"$f":"'Population 2016'!AE132/'Population 2016'!AE$6","v":1.4981800631447705E-2},{"$f":"'Population 2016'!AF132/'Population 2016'!AF$6","v":4.20400486779511E-3},{"$f":"'Population 2016'!AG132/'Population 2016'!AG$6","v":1.4981800631447705E-2},{"$f":"'Population 2016'!AH132/'Population 2016'!AH$6","v":1.0044787234414498E-2},{"$f":"'Population 2016'!AI132/'Population 2016'!AI$6","v":1.006122952912274E-2},{"$f":"'Population 2016'!AJ132/'Population 2016'!AJ$6","v":1.4481192857581151E-2},{"$f":"'Population 2016'!AK132/'Population 2016'!AK$6","v":1.6296646197449222E-2},{"$f":"'Population 2016'!AL132/'Population 2016'!AL$6","v":6.9284064665127024E-3},{"$f":"'Population 2016'!AM132/'Population 2016'!AM$6","v":9.0836993655441685E-3},{"$f":"'Population 2016'!AN132/'Population 2016'!AN$6","v":3.1141868512110725E-2},{"$f":"'Population 2016'!AO132/'Population 2016'!AO$6","v":3.1141868512110725E-2},{"$f":"'Population 2016'!AP132/'Population 2016'!AP$6","v":1.1086048855401449E-2},{"$f":"'Population 2016'!AQ132/'Population 2016'!AQ$6","v":8.6700522558327813E-3},{"$f":"'Population 2016'!AR132/'Population 2016'!AR$6","v":9.436116446029031E-3},{"$f":"'Population 2016'!AS132/'Population 2016'!AS$6","v":1.6995241332426921E-2},{"$f":"'Population 2016'!AT132/'Population 2016'!AT$6","v":1.2718600953895072E-2},{"$f":"'Population 2016'!AU132/'Population 2016'!AU$6","v":1.2718600953895072E-2},{"$f":"'Population 2016'!AV132/'Population 2016'!AV$6","v":1.5012510425354461E-2},{"$f":"'Population 2016'!AW132/'Population 2016'!AW$6","v":1.1335064169239715E-2},{"$f":"'Population 2016'!AX132/'Population 2016'!AX$6","v":9.6862399777540905E-3},{"$f":"'Population 2016'!AY132/'Population 2016'!AY$6","v":9.7000133289190243E-3},{"$f":"'Population 2016'!AZ132/'Population 2016'!AZ$6","v":8.7537516078319277E-3},{"$f":"'Population 2016'!BA132/'Population 2016'!BA$6","v":8.5470085470085479E-3},{"$f":"'Population 2016'!BB132/'Population 2016'!BB$6","v":1.1650139347981075E-2},{"$f":"'Population 2016'!BC132/'Population 2016'!BC$6","v":2.6693667157584682E-2},130]
[null,"Male 80-84",{"$f":"'Population 2016'!C133/'Population 2016'!C$6","v":8.0864950154199231E-3},{"$f":"'Population 2016'!D133/'Population 2016'!D$6","v":9.4028718646195688E-3},{"$f":"'Population 2016'!E133/'Population 2016'!E$6","v":1.2950613704455398E-2},{"$f":"'Population 2016'!F133/'Population 2016'!F$6","v":9.8242880637063965E-3},{"$f":"'Population 2016'!G133/'Population 2016'!G$6","v":1.1810142169483936E-2},{"$f":"'Population 2016'!H133/'Population 2016'!H$6","v":6.1949593660749957E-3},{"$f":"'Population 2016'!I133/'Population 2016'!I$6","v":1.0731280955618141E-2},{"$f":"'Population 2016'!J133/'Population 2016'!J$6","v":6.3601586519279963E-3},{"$f":"'Population 2016'!K133/'Population 2016'!K$6","v":6.0384176492963102E-3},{"$f":"'Population 2016'!L133/'Population 2016'!L$6","v":1.3028515240904622E-2},{"$f":"'Population 2016'!M133/'Population 2016'!M$6","v":1.3028515240904622E-2},{"$f":"'Population 2016'!N133/'Population 2016'!N$6","v":4.3670690643885365E-3},{"$f":"'Population 2016'!O133/'Population 2016'!O$6","v":6.1335990653563332E-3},{"$f":"'Population 2016'!P133/'Population 2016'!P$6","v":1.0678225934344769E-2},{"$f":"'Population 2016'!Q133/'Population 2016'!Q$6","v":1.2469211822660099E-2},{"$f":"'Population 2016'!R133/'Population 2016'!R$6","v":7.0001707358716067E-3},{"$f":"'Population 2016'!S133/'Population 2016'!S$6","v":7.2075674196908635E-3},{"$f":"'Population 2016'!T133/'Population 2016'!T$6","v":4.6020414183727655E-3},{"$f":"'Population 2016'!U133/'Population 2016'!U$6","v":1.638438880706922E-2},{"$f":"'Population 2016'!V133/'Population 2016'!V$6","v":9.2795531674208145E-3},{"$f":"'Population 2016'!W133/'Population 2016'!W$6","v":7.2787564766839379E-3},{"$f":"'Population 2016'!X133/'Population 2016'!X$6","v":7.2787564766839379E-3},{"$f":"'Population 2016'!Y133/'Population 2016'!Y$6","v":8.0254070676009474E-3},{"$f":"'Population 2016'!Z133/'Population 2016'!Z$6","v":2.43049542611142E-3},{"$f":"'Population 2016'!AA133/'Population 2016'!AA$6","v":4.7582444365286188E-3},{"$f":"'Population 2016'!AB133/'Population 2016'!AB$6","v":9.7232190920509606E-3},{"$f":"'Population 2016'!AC133/'Population 2016'!AC$6","v":3.635719927013263E-3},{"$f":"'Population 2016'!AD133/'Population 2016'!AD$6","v":1.0311718669092954E-2},{"$f":"'Population 2016'!AE133/'Population 2016'!AE$6","v":9.7733625595752809E-3},{"$f":"'Population 2016'!AF133/'Population 2016'!AF$6","v":2.9593981635136629E-3},{"$f":"'Population 2016'!AG133/'Population 2016'!AG$6","v":9.7733625595752809E-3},{"$f":"'Population 2016'!AH133/'Population 2016'!AH$6","v":6.7757736374156963E-3},{"$f":"'Population 2016'!AI133/'Population 2016'!AI$6","v":6.8679191586066618E-3},{"$f":"'Population 2016'!AJ133/'Population 2016'!AJ$6","v":9.0200650426458858E-3},{"$f":"'Population 2016'!AK133/'Population 2016'!AK$6","v":1.1651708392379154E-2},{"$f":"'Population 2016'!AL133/'Population 2016'!AL$6","v":4.3228518979096346E-3},{"$f":"'Population 2016'!AM133/'Population 2016'!AM$6","v":6.1127379209370428E-3},{"$f":"'Population 2016'!AN133/'Population 2016'!AN$6","v":1.3456362937331795E-2},{"$f":"'Population 2016'!AO133/'Population 2016'!AO$6","v":1.3456362937331795E-2},{"$f":"'Population 2016'!AP133/'Population 2016'!AP$6","v":7.1987330229879541E-3},{"$f":"'Population 2016'!AQ133/'Population 2016'!AQ$6","v":6.0793405461102524E-3},{"$f":"'Population 2016'!AR133/'Population 2016'!AR$6","v":6.4054811430276732E-3},{"$f":"'Population 2016'!AS133/'Population 2016'!AS$6","v":1.0731280955618141E-2},{"$f":"'Population 2016'!AT133/'Population 2016'!AT$6","v":9.538950715421303E-3},{"$f":"'Population 2016'!AU133/'Population 2016'!AU$6","v":9.538950715421303E-3},{"$f":"'Population 2016'!AV133/'Population 2016'!AV$6","v":9.293458834743239E-3},{"$f":"'Population 2016'!AW133/'Population 2016'!AW$6","v":7.6659104497170333E-3},{"$f":"'Population 2016'!AX133/'Population 2016'!AX$6","v":6.6737729990267412E-3},{"$f":"'Population 2016'!AY133/'Population 2016'!AY$6","v":6.6730588149301094E-3},{"$f":"'Population 2016'!AZ133/'Population 2016'!AZ$6","v":6.0204373302844075E-3},{"$f":"'Population 2016'!BA133/'Population 2016'!BA$6","v":5.2796206642360486E-3},{"$f":"'Population 2016'!BB133/'Population 2016'!BB$6","v":7.7289519735562898E-3},{"$f":"'Population 2016'!BC133/'Population 2016'!BC$6","v":1.638438880706922E-2},131]
[null,"Male 85-89",{"$f":"'Population 2016'!C134/'Population 2016'!C$6","v":4.1418633005809368E-3},{"$f":"'Population 2016'!D134/'Population 2016'!D$6","v":4.3679543849554046E-3},{"$f":"'Population 2016'!E134/'Population 2016'!E$6","v":4.9772881028317386E-3},{"$f":"'Population 2016'!F134/'Population 2016'!F$6","v":5.2800138492166537E-3},{"$f":"'Population 2016'!G134/'Population 2016'!G$6","v":5.8211127280868693E-3},{"$f":"'Population 2016'!H134/'Population 2016'!H$6","v":3.2793336394044731E-3},{"$f":"'Population 2016'!I134/'Population 2016'!I$6","v":7.3322326891327571E-3},{"$f":"'Population 2016'!J134/'Population 2016'!J$6","v":2.9805909549625665E-3},{"$f":"'Population 2016'!K134/'Population 2016'!K$6","v":2.9478889311525293E-3},{"$f":"'Population 2016'!L134/'Population 2016'!L$6","v":6.346652364351479E-3},{"$f":"'Population 2016'!M134/'Population 2016'!M$6","v":6.346652364351479E-3},{"$f":"'Population 2016'!N134/'Population 2016'!N$6","v":2.1320707553412047E-3},{"$f":"'Population 2016'!O134/'Population 2016'!O$6","v":3.2815614047144526E-3},{"$f":"'Population 2016'!P134/'Population 2016'!P$6","v":6.0791880319289527E-3},{"$f":"'Population 2016'!Q134/'Population 2016'!Q$6","v":5.772783251231527E-3},{"$f":"'Population 2016'!R134/'Population 2016'!R$6","v":2.731773945705993E-3},{"$f":"'Population 2016'!S134/'Population 2016'!S$6","v":3.6011532107871505E-3},{"$f":"'Population 2016'!T134/'Population 2016'!T$6","v":2.2925920618999856E-3},{"$f":"'Population 2016'!U134/'Population 2016'!U$6","v":9.0206185567010301E-3},{"$f":"'Population 2016'!V134/'Population 2016'!V$6","v":4.4718608597285065E-3},{"$f":"'Population 2016'!W134/'Population 2016'!W$6","v":3.5647668393782384E-3},{"$f":"'Population 2016'!X134/'Population 2016'!X$6","v":3.5647668393782384E-3},{"$f":"'Population 2016'!Y134/'Population 2016'!Y$6","v":3.83122447950799E-3},{"$f":"'Population 2016'!Z134/'Population 2016'!Z$6","v":1.2030952359251528E-3},{"$f":"'Population 2016'!AA134/'Population 2016'!AA$6","v":2.2510108300993021E-3},{"$f":"'Population 2016'!AB134/'Population 2016'!AB$6","v":4.5532029427597341E-3},{"$f":"'Population 2016'!AC134/'Population 2016'!AC$6","v":1.7390763053771305E-3},{"$f":"'Population 2016'!AD134/'Population 2016'!AD$6","v":5.3851730208749424E-3},{"$f":"'Population 2016'!AE134/'Population 2016'!AE$6","v":5.2285478713777226E-3},{"$f":"'Population 2016'!AF134/'Population 2016'!AF$6","v":1.3552384113286868E-3},{"$f":"'Population 2016'!AG134/'Population 2016'!AG$6","v":5.2285478713777226E-3},{"$f":"'Population 2016'!AH134/'Population 2016'!AH$6","v":3.1711180026501736E-3},{"$f":"'Population 2016'!AI134/'Population 2016'!AI$6","v":3.2979404612931444E-3},{"$f":"'Population 2016'!AJ134/'Population 2016'!AJ$6","v":4.8168374547462719E-3},{"$f":"'Population 2016'!AK134/'Population 2016'!AK$6","v":5.6683986773736423E-3},{"$f":"'Population 2016'!AL134/'Population 2016'!AL$6","v":2.013383075738734E-3},{"$f":"'Population 2016'!AM134/'Population 2016'!AM$6","v":2.7269399707174229E-3},{"$f":"'Population 2016'!AN134/'Population 2016'!AN$6","v":6.1514801999231067E-3},{"$f":"'Population 2016'!AO134/'Population 2016'!AO$6","v":6.1514801999231067E-3},{"$f":"'Population 2016'!AP134/'Population 2016'!AP$6","v":3.887315832413495E-3},{"$f":"'Population 2016'!AQ134/'Population 2016'!AQ$6","v":2.5612718039302275E-3},{"$f":"'Population 2016'!AR134/'Population 2016'!AR$6","v":3.1470677670853335E-3},{"$f":"'Population 2016'!AS134/'Population 2016'!AS$6","v":7.3322326891327571E-3},{"$f":"'Population 2016'!AT134/'Population 2016'!AT$6","v":1.589825119236884E-3},{"$f":"'Population 2016'!AU134/'Population 2016'!AU$6","v":1.589825119236884E-3},{"$f":"'Population 2016'!AV134/'Population 2016'!AV$6","v":5.3139521029429287E-3},{"$f":"'Population 2016'!AW134/'Population 2016'!AW$6","v":3.767434622724183E-3},{"$f":"'Population 2016'!AX134/'Population 2016'!AX$6","v":3.0124669787273484E-3},{"$f":"'Population 2016'!AY134/'Population 2016'!AY$6","v":3.3451287100616138E-3},{"$f":"'Population 2016'!AZ134/'Population 2016'!AZ$6","v":3.1084750607403172E-3},{"$f":"'Population 2016'!BA134/'Population 2016'!BA$6","v":2.5501563963102425E-3},{"$f":"'Population 2016'!BB134/'Population 2016'!BB$6","v":3.3864800051850411E-3},{"$f":"'Population 2016'!BC134/'Population 2016'!BC$6","v":9.0206185567010301E-3},132]
[null,"Male 90+",{"$f":"'Population 2016'!C135/'Population 2016'!C$6","v":1.6675034067273901E-3},{"$f":"'Population 2016'!D135/'Population 2016'!D$6","v":1.9485784531687285E-3},{"$f":"'Population 2016'!E135/'Population 2016'!E$6","v":2.7060983860056056E-3},{"$f":"'Population 2016'!F135/'Population 2016'!F$6","v":2.9429585389076432E-3},{"$f":"'Population 2016'!G135/'Population 2016'!G$6","v":1.9590283219523118E-3},{"$f":"'Population 2016'!H135/'Population 2016'!H$6","v":1.2759589069682858E-3},{"$f":"'Population 2016'!I135/'Population 2016'!I$6","v":2.7192386131883071E-3},{"$f":"'Population 2016'!J135/'Population 2016'!J$6","v":8.6836114435917295E-4},{"$f":"'Population 2016'!K135/'Population 2016'!K$6","v":9.5093191327500946E-4},{"$f":"'Population 2016'!L135/'Population 2016'!L$6","v":2.7710735675337446E-3},{"$f":"'Population 2016'!M135/'Population 2016'!M$6","v":2.7710735675337446E-3},{"$f":"'Population 2016'!N135/'Population 2016'!N$6","v":9.8516372833007404E-4},{"$f":"'Population 2016'!O135/'Population 2016'!O$6","v":1.2026664834032025E-3},{"$f":"'Population 2016'!P135/'Population 2016'!P$6","v":3.3832002960300258E-3},{"$f":"'Population 2016'!Q135/'Population 2016'!Q$6","v":2.5785098522167487E-3},{"$f":"'Population 2016'!R135/'Population 2016'!R$6","v":1.4512549086563087E-3},{"$f":"'Population 2016'!S135/'Population 2016'!S$6","v":1.5730384368522396E-3},{"$f":"'Population 2016'!T135/'Population 2016'!T$6","v":1.2221538565275658E-3},{"$f":"'Population 2016'!U135/'Population 2016'!U$6","v":1.6568483063328424E-3},{"$f":"'Population 2016'!V135/'Population 2016'!V$6","v":1.6438065610859729E-3},{"$f":"'Population 2016'!W135/'Population 2016'!W$6","v":1.5917098445595854E-3},{"$f":"'Population 2016'!X135/'Population 2016'!X$6","v":1.5917098445595854E-3},{"$f":"'Population 2016'!Y135/'Population 2016'!Y$6","v":1.3106820587790492E-3},{"$f":"'Population 2016'!Z135/'Population 2016'!Z$6","v":4.9825156235284106E-4},{"$f":"'Population 2016'!AA135/'Population 2016'!AA$6","v":8.5740890030434262E-4},{"$f":"'Population 2016'!AB135/'Population 2016'!AB$6","v":2.018661403193971E-3},{"$f":"'Population 2016'!AC135/'Population 2016'!AC$6","v":7.2753304050452664E-4},{"$f":"'Population 2016'!AD135/'Population 2016'!AD$6","v":2.5298477653011406E-3},{"$f":"'Population 2016'!AE135/'Population 2016'!AE$6","v":2.7349327327206548E-3},{"$f":"'Population 2016'!AF135/'Population 2016'!AF$6","v":4.9784268171257882E-4},{"$f":"'Population 2016'!AG135/'Population 2016'!AG$6","v":2.7349327327206548E-3},{"$f":"'Population 2016'!AH135/'Population 2016'!AH$6","v":1.0908366227418459E-3},{"$f":"'Population 2016'!AI135/'Population 2016'!AI$6","v":1.4648212708789346E-3},{"$f":"'Population 2016'!AJ135/'Population 2016'!AJ$6","v":1.9635515739093085E-3},{"$f":"'Population 2016'!AK135/'Population 2016'!AK$6","v":2.4405605416469847E-3},{"$f":"'Population 2016'!AL135/'Population 2016'!AL$6","v":8.2904009001006696E-4},{"$f":"'Population 2016'!AM135/'Population 2016'!AM$6","v":9.0287945339189845E-4},{"$f":"'Population 2016'!AN135/'Population 2016'!AN$6","v":3.4602076124567475E-3},{"$f":"'Population 2016'!AO135/'Population 2016'!AO$6","v":3.4602076124567475E-3},{"$f":"'Population 2016'!AP135/'Population 2016'!AP$6","v":1.4397466045975907E-3},{"$f":"'Population 2016'!AQ135/'Population 2016'!AQ$6","v":1.0745565614190035E-3},{"$f":"'Population 2016'!AR135/'Population 2016'!AR$6","v":1.2920612276503362E-3},{"$f":"'Population 2016'!AS135/'Population 2016'!AS$6","v":2.7192386131883071E-3},{"$f":"'Population 2016'!AT135/'Population 2016'!AT$6","v":0},{"$f":"'Population 2016'!AU135/'Population 2016'!AU$6","v":0},{"$f":"'Population 2016'!AV135/'Population 2016'!AV$6","v":2.0969855832241153E-3},{"$f":"'Population 2016'!AW135/'Population 2016'!AW$6","v":1.3431723437538391E-3},{"$f":"'Population 2016'!AX135/'Population 2016'!AX$6","v":7.878759790517681E-4},{"$f":"'Population 2016'!AY135/'Population 2016'!AY$6","v":1.5349755134858563E-3},{"$f":"'Population 2016'!AZ135/'Population 2016'!AZ$6","v":1.4738459339717022E-3},{"$f":"'Population 2016'!BA135/'Population 2016'!BA$6","v":7.570776801546032E-4},{"$f":"'Population 2016'!BB135/'Population 2016'!BB$6","v":1.199040767386091E-3},{"$f":"'Population 2016'!BC135/'Population 2016'!BC$6","v":1.6568483063328424E-3},133]
["SIMD Q3","Female 0-4",0,0,0,0,0,0,0,0,0,0,0,0,0,0,0,0,0,0,0,0,0,0,0,0,0,0,0,0,0,0,0,0,0,0,0,0,0,0,0,0,0,0,0,0,0,0,0,0,0,0,0,0,0,134]
[null,"Female 5-9",0,0,0,0,0,0,0,0,0,0,0,0,0,0,0,0,0,0,0,0,0,0,0,0,0,0,0,0,0,0,0,0,0,0,0,0,0,0,0,0,0,0,0,0,0,0,0,0,0,0,0,0,0,135]
[null,"Female 10-15",0,0,0,0,0,0,0,0,0,0,0,0,0,0,0,0,0,0,0,0,0,0,0,0,0,0,0,0,0,0,0,0,0,0,0,0,0,0,0,0,0,0,0,0,0,0,0,0,0,0,0,0,0,136]
[null,"Female 16-19",0,0,0,0,0,0,0,0,0,0,0,0,0,0,0,0,0,0,0,0,0,0,0,0,0,0,0,0,0,0,0,0,0,0,0,0,0,0,0,0,0,0,0,0,0,0,0,0,0,0,0,0,0,137]
[null,"Female 20-24",0,0,0,0,0,0,0,0,0,0,0,0,0,0,0,0,0,0,0,0,0,0,0,0,0,0,0,0,0,0,0,0,0,0,0,0,0,0,0,0,0,0,0,0,0,0,0,0,0,0,0,0,0,138]
[null,"Female 25-29",0,0,0,0,0,0,0,0,0,0,0,0,0,0,0,0,0,0,0,0,0,0,0,0,0,0,0,0,0,0,0,0,0,0,0,0,0,0,0,0,0,0,0,0,0,0,0,0,0,0,0,0,0,139]
[null,"Female 30-34",0,0,0,0,0,0,0,0,0,0,0,0,0,0,0,0,0,0,0,0,0,0,0,0,0,0,0,0,0,0,0,0,0,0,0,0,0,0,0,0,0,0,0,0,0,0,0,0,0,0,0,0,0,140]
[null,"Female 35-39",0,0,0,0,0,0,0,0,0,0,0,0,0,0,0,0,0,0,0,0,0,0,0,0,0,0,0,0,0,0,0,0,0,0,0,0,0,0,0,0,0,0,0,0,0,0,0,0,0,0,0,0,0,141]
[null,"Female 40-44",0,0,0,0,0,0,0,0,0,0,0,0,0,0,0,0,0,0,0,0,0,0,0,0,0,0,0,0,0,0,0,0,0,0,0,0,0,0,0,0,0,0,0,0,0,0,0,0,0,0,0,0,0,142]
[null,"Female 45-49",0,0,0,0,0,0,0,0,0,0,0,0,0,0,0,0,0,0,0,0,0,0,0,0,0,0,0,0,0,0,0,0,0,0,0,0,0,0,0,0,0,0,0,0,0,0,0,0,0,0,0,0,0,143]
[null,"Female 50-54",0,0,0,0,0,0,0,0,0,0,0,0,0,0,0,0,0,0,0,0,0,0,0,0,0,0,0,0,0,0,0,0,0,0,0,0,0,0,0,0,0,0,0,0,0,0,0,0,0,0,0,0,0,144]
[null,"Female 55-59",0,0,0,0,0,0,0,0,0,0,0,0,0,0,0,0,0,0,0,0,0,0,0,0,0,0,0,0,0,0,0,0,0,0,0,0,0,0,0,0,0,0,0,0,0,0,0,0,0,0,0,0,0,145]
[null,"Female 60-64",0,0,0,0,0,0,0,0,0,0,0,0,0,0,0,0,0,0,0,0,0,0,0,0,0,0,0,0,0,0,0,0,0,0,0,0,0,0,0,0,0,0,0,0,0,0,0,0,0,0,0,0,0,146]
[null,"Female 65-69",0,0,0,0,0,0,0,0,0,0,0,0,0,0,0,0,0,0,0,0,0,0,0,0,0,0,0,0,0,0,0,0,0,0,0,0,0,0,0,0,0,0,0,0,0,0,0,0,0,0,0,0,0,147]
[null,"Female 70-74",0,0,0,0,0,0,0,0,0,0,0,0,0,0,0,0,0,0,0,0,0,0,0,0,0,0,0,0,0,0,0,0,0,0,0,0,0,0,0,0,0,0,0,0,0,0,0,0,0,0,0,0,0,148]
[null,"Female 75-79",0,0,0,0,0,0,0,0,0,0,0,0,0,0,0,0,0,0,0,0,0,0,0,0,0,0,0,0,0,0,0,0,0,0,0,0,0,0,0,0,0,0,0,0,0,0,0,0,0,0,0,0,0,149]
[null,"Female 80-84",0,0,0,0,0,0,0,0,0,0,0,0,0,0,0,0,0,0,0,0,0,0,0,0,0,0,0,0,0,0,0,0,0,0,0,0,0,0,0,0,0,0,0,0,0,0,0,0,0,0,0,0,0,150]
[null,"Female 85-89",0,0,0,0,0,0,0,0,0,0,0,0,0,0,0,0,0,0,0,0,0,0,0,0,0,0,0,0,0,0,0,0,0,0,0,0,0,0,0,0,0,0,0,0,0,0,0,0,0,0,0,0,0,151]
[null,"Female 90+",0,0,0,0,0,0,0,0,0,0,0,0,0,0,0,0,0,0,0,0,0,0,0,0,0,0,0,0,0,0,0,0,0,0,0,0,0,0,0,0,0,0,0,0,0,0,0,0,0,0,0,0,0,152]
[null,"Male 0-4",0,0,0,0,0,0,0,0,0,0,0,0,0,0,0,0,0,0,0,0,0,0,0,0,0,0,0,0,0,0,0,0,0,0,0,0,0,0,0,0,0,0,0,0,0,0,0,0,0,0,0,0,0,153]
[null,"Male 5-9",0,0,0,0,0,0,0,0,0,0,0,0,0,0,0,0,0,0,0,0,0,0,0,0,0,0,0,0,0,0,0,0,0,0,0,0,0,0,0,0,0,0,0,0,0,0,0,0,0,0,0,0,0,154]
[null,"Male 10-15",0,0,0,0,0,0,0,0,0,0,0,0,0,0,0,0,0,0,0,0,0,0,0,0,0,0,0,0,0,0,0,0,0,0,0,0,0,0,0,0,0,0,0,0,0,0,0,0,0,0,0,0,0,155]
[null,"Male 16-19",0,0,0,0,0,0,0,0,0,0,0,0,0,0,0,0,0,0,0,0,0,0,0,0,0,0,0,0,0,0,0,0,0,0,0,0,0,0,0,0,0,0,0,0,0,0,0,0,0,0,0,0,0,156]
[null,"Male 20-24",0,0,0,0,0,0,0,0,0,0,0,0,0,0,0,0,0,0,0,0,0,0,0,0,0,0,0,0,0,0,0,0,0,0,0,0,0,0,0,0,0,0,0,0,0,0,0,0,0,0,0,0,0,157]
[null,"Male 25-29",0,0,0,0,0,0,0,0,0,0,0,0,0,0,0,0,0,0,0,0,0,0,0,0,0,0,0,0,0,0,0,0,0,0,0,0,0,0,0,0,0,0,0,0,0,0,0,0,0,0,0,0,0,158]
[null,"Male 30-34",0,0,0,0,0,0,0,0,0,0,0,0,0,0,0,0,0,0,0,0,0,0,0,0,0,0,0,0,0,0,0,0,0,0,0,0,0,0,0,0,0,0,0,0,0,0,0,0,0,0,0,0,0,159]
[null,"Male 35-39",0,0,0,0,0,0,0,0,0,0,0,0,0,0,0,0,0,0,0,0,0,0,0,0,0,0,0,0,0,0,0,0,0,0,0,0,0,0,0,0,0,0,0,0,0,0,0,0,0,0,0,0,0,160]
[null,"Male 40-44",0,0,0,0,0,0,0,0,0,0,0,0,0,0,0,0,0,0,0,0,0,0,0,0,0,0,0,0,0,0,0,0,0,0,0,0,0,0,0,0,0,0,0,0,0,0,0,0,0,0,0,0,0,161]
[null,"Male 45-49",0,0,0,0,0,0,0,0,0,0,0,0,0,0,0,0,0,0,0,0,0,0,0,0,0,0,0,0,0,0,0,0,0,0,0,0,0,0,0,0,0,0,0,0,0,0,0,0,0,0,0,0,0,162]
[null,"Male 50-54",0,0,0,0,0,0,0,0,0,0,0,0,0,0,0,0,0,0,0,0,0,0,0,0,0,0,0,0,0,0,0,0,0,0,0,0,0,0,0,0,0,0,0,0,0,0,0,0,0,0,0,0,0,163]
[null,"Male 55-59",0,0,0,0,0,0,0,0,0,0,0,0,0,0,0,0,0,0,0,0,0,0,0,0,0,0,0,0,0,0,0,0,0,0,0,0,0,0,0,0,0,0,0,0,0,0,0,0,0,0,0,0,0,164]
[null,"Male 60-64",0,0,0,0,0,0,0,0,0,0,0,0,0,0,0,0,0,0,0,0,0,0,0,0,0,0,0,0,0,0,0,0,0,0,0,0,0,0,0,0,0,0,0,0,0,0,0,0,0,0,0,0,0,165]
[null,"Male 65-69",0,0,0,0,0,0,0,0,0,0,0,0,0,0,0,0,0,0,0,0,0,0,0,0,0,0,0,0,0,0,0,0,0,0,0,0,0,0,0,0,0,0,0,0,0,0,0,0,0,0,0,0,0,166]
[null,"Male 70-74",0,0,0,0,0,0,0,0,0,0,0,0,0,0,0,0,0,0,0,0,0,0,0,0,0,0,0,0,0,0,0,0,0,0,0,0,0,0,0,0,0,0,0,0,0,0,0,0,0,0,0,0,0,167]
[null,"Male 75-79",0,0,0,0,0,0,0,0,0,0,0,0,0,0,0,0,0,0,0,0,0,0,0,0,0,0,0,0,0,0,0,0,0,0,0,0,0,0,0,0,0,0,0,0,0,0,0,0,0,0,0,0,0,168]
[null,"Male 80-84",0,0,0,0,0,0,0,0,0,0,0,0,0,0,0,0,0,0,0,0,0,0,0,0,0,0,0,0,0,0,0,0,0,0,0,0,0,0,0,0,0,0,0,0,0,0,0,0,0,0,0,0,0,169]
[null,"Male 85-89",0,0,0,0,0,0,0,0,0,0,0,0,0,0,0,0,0,0,0,0,0,0,0,0,0,0,0,0,0,0,0,0,0,0,0,0,0,0,0,0,0,0,0,0,0,0,0,0,0,0,0,0,0,170]
[null,"Male 90+",0,0,0,0,0,0,0,0,0,0,0,0,0,0,0,0,0,0,0,0,0,0,0,0,0,0,0,0,0,0,0,0,0,0,0,0,0,0,0,0,0,0,0,0,0,0,0,0,0,0,0,0,0,171]
["SIMD Q4","Female 0-4",0,0,0,0,0,0,0,0,0,0,0,0,0,0,0,0,0,0,0,0,0,0,0,0,0,0,0,0,0,0,0,0,0,0,0,0,0,0,0,0,0,0,0,0,0,0,0,0,0,0,0,0,0,172]
[null,"Female 5-9",0,0,0,0,0,0,0,0,0,0,0,0,0,0,0,0,0,0,0,0,0,0,0,0,0,0,0,0,0,0,0,0,0,0,0,0,0,0,0,0,0,0,0,0,0,0,0,0,0,0,0,0,0,173]
[null,"Female 10-15",0,0,0,0,0,0,0,0,0,0,0,0,0,0,0,0,0,0,0,0,0,0,0,0,0,0,0,0,0,0,0,0,0,0,0,0,0,0,0,0,0,0,0,0,0,0,0,0,0,0,0,0,0,174]
[null,"Female 16-19",0,0,0,0,0,0,0,0,0,0,0,0,0,0,0,0,0,0,0,0,0,0,0,0,0,0,0,0,0,0,0,0,0,0,0,0,0,0,0,0,0,0,0,0,0,0,0,0,0,0,0,0,0,175]
[null,"Female 20-24",0,0,0,0,0,0,0,0,0,0,0,0,0,0,0,0,0,0,0,0,0,0,0,0,0,0,0,0,0,0,0,0,0,0,0,0,0,0,0,0,0,0,0,0,0,0,0,0,0,0,0,0,0,176]
[null,"Female 25-29",0,0,0,0,0,0,0,0,0,0,0,0,0,0,0,0,0,0,0,0,0,0,0,0,0,0,0,0,0,0,0,0,0,0,0,0,0,0,0,0,0,0,0,0,0,0,0,0,0,0,0,0,0,177]
[null,"Female 30-34",0,0,0,0,0,0,0,0,0,0,0,0,0,0,0,0,0,0,0,0,0,0,0,0,0,0,0,0,0,0,0,0,0,0,0,0,0,0,0,0,0,0,0,0,0,0,0,0,0,0,0,0,0,178]
[null,"Female 35-39",0,0,0,0,0,0,0,0,0,0,0,0,0,0,0,0,0,0,0,0,0,0,0,0,0,0,0,0,0,0,0,0,0,0,0,0,0,0,0,0,0,0,0,0,0,0,0,0,0,0,0,0,0,179]
[null,"Female 40-44",0,0,0,0,0,0,0,0,0,0,0,0,0,0,0,0,0,0,0,0,0,0,0,0,0,0,0,0,0,0,0,0,0,0,0,0,0,0,0,0,0,0,0,0,0,0,0,0,0,0,0,0,0,180]
[null,"Female 45-49",0,0,0,0,0,0,0,0,0,0,0,0,0,0,0,0,0,0,0,0,0,0,0,0,0,0,0,0,0,0,0,0,0,0,0,0,0,0,0,0,0,0,0,0,0,0,0,0,0,0,0,0,0,181]
[null,"Female 50-54",0,0,0,0,0,0,0,0,0,0,0,0,0,0,0,0,0,0,0,0,0,0,0,0,0,0,0,0,0,0,0,0,0,0,0,0,0,0,0,0,0,0,0,0,0,0,0,0,0,0,0,0,0,182]
[null,"Female 55-59",0,0,0,0,0,0,0,0,0,0,0,0,0,0,0,0,0,0,0,0,0,0,0,0,0,0,0,0,0,0,0,0,0,0,0,0,0,0,0,0,0,0,0,0,0,0,0,0,0,0,0,0,0,183]
[null,"Female 60-64",0,0,0,0,0,0,0,0,0,0,0,0,0,0,0,0,0,0,0,0,0,0,0,0,0,0,0,0,0,0,0,0,0,0,0,0,0,0,0,0,0,0,0,0,0,0,0,0,0,0,0,0,0,184]
[null,"Female 65-69",0,0,0,0,0,0,0,0,0,0,0,0,0,0,0,0,0,0,0,0,0,0,0,0,0,0,0,0,0,0,0,0,0,0,0,0,0,0,0,0,0,0,0,0,0,0,0,0,0,0,0,0,0,185]
[null,"Female 70-74",0,0,0,0,0,0,0,0,0,0,0,0,0,0,0,0,0,0,0,0,0,0,0,0,0,0,0,0,0,0,0,0,0,0,0,0,0,0,0,0,0,0,0,0,0,0,0,0,0,0,0,0,0,186]
[null,"Female 75-79",0,0,0,0,0,0,0,0,0,0,0,0,0,0,0,0,0,0,0,0,0,0,0,0,0,0,0,0,0,0,0,0,0,0,0,0,0,0,0,0,0,0,0,0,0,0,0,0,0,0,0,0,0,187]
[null,"Female 80-84",0,0,0,0,0,0,0,0,0,0,0,0,0,0,0,0,0,0,0,0,0,0,0,0,0,0,0,0,0,0,0,0,0,0,0,0,0,0,0,0,0,0,0,0,0,0,0,0,0,0,0,0,0,188]
[null,"Female 85-89",0,0,0,0,0,0,0,0,0,0,0,0,0,0,0,0,0,0,0,0,0,0,0,0,0,0,0,0,0,0,0,0,0,0,0,0,0,0,0,0,0,0,0,0,0,0,0,0,0,0,0,0,0,189]
[null,"Female 90+",0,0,0,0,0,0,0,0,0,0,0,0,0,0,0,0,0,0,0,0,0,0,0,0,0,0,0,0,0,0,0,0,0,0,0,0,0,0,0,0,0,0,0,0,0,0,0,0,0,0,0,0,0,190]
[null,"Male 0-4",0,0,0,0,0,0,0,0,0,0,0,0,0,0,0,0,0,0,0,0,0,0,0,0,0,0,0,0,0,0,0,0,0,0,0,0,0,0,0,0,0,0,0,0,0,0,0,0,0,0,0,0,0,191]
[null,"Male 5-9",0,0,0,0,0,0,0,0,0,0,0,0,0,0,0,0,0,0,0,0,0,0,0,0,0,0,0,0,0,0,0,0,0,0,0,0,0,0,0,0,0,0,0,0,0,0,0,0,0,0,0,0,0,192]
[null,"Male 10-15",0,0,0,0,0,0,0,0,0,0,0,0,0,0,0,0,0,0,0,0,0,0,0,0,0,0,0,0,0,0,0,0,0,0,0,0,0,0,0,0,0,0,0,0,0,0,0,0,0,0,0,0,0,193]
[null,"Male 16-19",0,0,0,0,0,0,0,0,0,0,0,0,0,0,0,0,0,0,0,0,0,0,0,0,0,0,0,0,0,0,0,0,0,0,0,0,0,0,0,0,0,0,0,0,0,0,0,0,0,0,0,0,0,194]
[null,"Male 20-24",0,0,0,0,0,0,0,0,0,0,0,0,0,0,0,0,0,0,0,0,0,0,0,0,0,0,0,0,0,0,0,0,0,0,0,0,0,0,0,0,0,0,0,0,0,0,0,0,0,0,0,0,0,195]
[null,"Male 25-29",0,0,0,0,0,0,0,0,0,0,0,0,0,0,0,0,0,0,0,0,0,0,0,0,0,0,0,0,0,0,0,0,0,0,0,0,0,0,0,0,0,0,0,0,0,0,0,0,0,0,0,0,0,196]
[null,"Male 30-34",0,0,0,0,0,0,0,0,0,0,0,0,0,0,0,0,0,0,0,0,0,0,0,0,0,0,0,0,0,0,0,0,0,0,0,0,0,0,0,0,0,0,0,0,0,0,0,0,0,0,0,0,0,197]
[null,"Male 35-39",0,0,0,0,0,0,0,0,0,0,0,0,0,0,0,0,0,0,0,0,0,0,0,0,0,0,0,0,0,0,0,0,0,0,0,0,0,0,0,0,0,0,0,0,0,0,0,0,0,0,0,0,0,198]
[null,"Male 40-44",0,0,0,0,0,0,0,0,0,0,0,0,0,0,0,0,0,0,0,0,0,0,0,0,0,0,0,0,0,0,0,0,0,0,0,0,0,0,0,0,0,0,0,0,0,0,0,0,0,0,0,0,0,199]
[null,"Male 45-49",0,0,0,0,0,0,0,0,0,0,0,0,0,0,0,0,0,0,0,0,0,0,0,0,0,0,0,0,0,0,0,0,0,0,0,0,0,0,0,0,0,0,0,0,0,0,0,0,0,0,0,0,0,200]
[null,"Male 50-54",0,0,0,0,0,0,0,0,0,0,0,0,0,0,0,0,0,0,0,0,0,0,0,0,0,0,0,0,0,0,0,0,0,0,0,0,0,0,0,0,0,0,0,0,0,0,0,0,0,0,0,0,0,201]
[null,"Male 55-59",0,0,0,0,0,0,0,0,0,0,0,0,0,0,0,0,0,0,0,0,0,0,0,0,0,0,0,0,0,0,0,0,0,0,0,0,0,0,0,0,0,0,0,0,0,0,0,0,0,0,0,0,0,202]
[null,"Male 60-64",0,0,0,0,0,0,0,0,0,0,0,0,0,0,0,0,0,0,0,0,0,0,0,0,0,0,0,0,0,0,0,0,0,0,0,0,0,0,0,0,0,0,0,0,0,0,0,0,0,0,0,0,0,203]
[null,"Male 65-69",0,0,0,0,0,0,0,0,0,0,0,0,0,0,0,0,0,0,0,0,0,0,0,0,0,0,0,0,0,0,0,0,0,0,0,0,0,0,0,0,0,0,0,0,0,0,0,0,0,0,0,0,0,204]
[null,"Male 70-74",0,0,0,0,0,0,0,0,0,0,0,0,0,0,0,0,0,0,0,0,0,0,0,0,0,0,0,0,0,0,0,0,0,0,0,0,0,0,0,0,0,0,0,0,0,0,0,0,0,0,0,0,0,205]
[null,"Male 75-79",0,0,0,0,0,0,0,0,0,0,0,0,0,0,0,0,0,0,0,0,0,0,0,0,0,0,0,0,0,0,0,0,0,0,0,0,0,0,0,0,0,0,0,0,0,0,0,0,0,0,0,0,0,206]
[null,"Male 80-84",0,0,0,0,0,0,0,0,0,0,0,0,0,0,0,0,0,0,0,0,0,0,0,0,0,0,0,0,0,0,0,0,0,0,0,0,0,0,0,0,0,0,0,0,0,0,0,0,0,0,0,0,0,207]
[null,"Male 85-89",0,0,0,0,0,0,0,0,0,0,0,0,0,0,0,0,0,0,0,0,0,0,0,0,0,0,0,0,0,0,0,0,0,0,0,0,0,0,0,0,0,0,0,0,0,0,0,0,0,0,0,0,0,208]
[null,"Male 90+",0,0,0,0,0,0,0,0,0,0,0,0,0,0,0,0,0,0,0,0,0,0,0,0,0,0,0,0,0,0,0,0,0,0,0,0,0,0,0,0,0,0,0,0,0,0,0,0,0,0,0,0,0,209]
["SIMD Q5 (least deprived)","Female 0-4",0,0,0,0,0,0,0,0,0,0,0,0,0,0,0,0,0,0,0,0,0,0,0,0,0,0,0,0,0,0,0,0,0,0,0,0,0,0,0,0,0,0,0,0,0,0,0,0,0,0,0,0,0,210]
[null,"Female 5-9",0,0,0,0,0,0,0,0,0,0,0,0,0,0,0,0,0,0,0,0,0,0,0,0,0,0,0,0,0,0,0,0,0,0,0,0,0,0,0,0,0,0,0,0,0,0,0,0,0,0,0,0,0,211]
[null,"Female 10-15",0,0,0,0,0,0,0,0,0,0,0,0,0,0,0,0,0,0,0,0,0,0,0,0,0,0,0,0,0,0,0,0,0,0,0,0,0,0,0,0,0,0,0,0,0,0,0,0,0,0,0,0,0,212]
[null,"Female 16-19",0,0,0,0,0,0,0,0,0,0,0,0,0,0,0,0,0,0,0,0,0,0,0,0,0,0,0,0,0,0,0,0,0,0,0,0,0,0,0,0,0,0,0,0,0,0,0,0,0,0,0,0,0,213]
[null,"Female 20-24",0,0,0,0,0,0,0,0,0,0,0,0,0,0,0,0,0,0,0,0,0,0,0,0,0,0,0,0,0,0,0,0,0,0,0,0,0,0,0,0,0,0,0,0,0,0,0,0,0,0,0,0,0,214]
[null,"Female 25-29",0,0,0,0,0,0,0,0,0,0,0,0,0,0,0,0,0,0,0,0,0,0,0,0,0,0,0,0,0,0,0,0,0,0,0,0,0,0,0,0,0,0,0,0,0,0,0,0,0,0,0,0,0,215]
[null,"Female 30-34",0,0,0,0,0,0,0,0,0,0,0,0,0,0,0,0,0,0,0,0,0,0,0,0,0,0,0,0,0,0,0,0,0,0,0,0,0,0,0,0,0,0,0,0,0,0,0,0,0,0,0,0,0,216]
[null,"Female 35-39",0,0,0,0,0,0,0,0,0,0,0,0,0,0,0,0,0,0,0,0,0,0,0,0,0,0,0,0,0,0,0,0,0,0,0,0,0,0,0,0,0,0,0,0,0,0,0,0,0,0,0,0,0,217]
[null,"Female 40-44",0,0,0,0,0,0,0,0,0,0,0,0,0,0,0,0,0,0,0,0,0,0,0,0,0,0,0,0,0,0,0,0,0,0,0,0,0,0,0,0,0,0,0,0,0,0,0,0,0,0,0,0,0,218]
[null,"Female 45-49",0,0,0,0,0,0,0,0,0,0,0,0,0,0,0,0,0,0,0,0,0,0,0,0,0,0,0,0,0,0,0,0,0,0,0,0,0,0,0,0,0,0,0,0,0,0,0,0,0,0,0,0,0,219]
[null,"Female 50-54",0,0,0,0,0,0,0,0,0,0,0,0,0,0,0,0,0,0,0,0,0,0,0,0,0,0,0,0,0,0,0,0,0,0,0,0,0,0,0,0,0,0,0,0,0,0,0,0,0,0,0,0,0,220]
[null,"Female 55-59",0,0,0,0,0,0,0,0,0,0,0,0,0,0,0,0,0,0,0,0,0,0,0,0,0,0,0,0,0,0,0,0,0,0,0,0,0,0,0,0,0,0,0,0,0,0,0,0,0,0,0,0,0,221]
[null,"Female 60-64",0,0,0,0,0,0,0,0,0,0,0,0,0,0,0,0,0,0,0,0,0,0,0,0,0,0,0,0,0,0,0,0,0,0,0,0,0,0,0,0,0,0,0,0,0,0,0,0,0,0,0,0,0,222]
[null,"Female 65-69",0,0,0,0,0,0,0,0,0,0,0,0,0,0,0,0,0,0,0,0,0,0,0,0,0,0,0,0,0,0,0,0,0,0,0,0,0,0,0,0,0,0,0,0,0,0,0,0,0,0,0,0,0,223]
[null,"Female 70-74",0,0,0,0,0,0,0,0,0,0,0,0,0,0,0,0,0,0,0,0,0,0,0,0,0,0,0,0,0,0,0,0,0,0,0,0,0,0,0,0,0,0,0,0,0,0,0,0,0,0,0,0,0,224]
[null,"Female 75-79",0,0,0,0,0,0,0,0,0,0,0,0,0,0,0,0,0,0,0,0,0,0,0,0,0,0,0,0,0,0,0,0,0,0,0,0,0,0,0,0,0,0,0,0,0,0,0,0,0,0,0,0,0,225]
[null,"Female 80-84",0,0,0,0,0,0,0,0,0,0,0,0,0,0,0,0,0,0,0,0,0,0,0,0,0,0,0,0,0,0,0,0,0,0,0,0,0,0,0,0,0,0,0,0,0,0,0,0,0,0,0,0,0,226]
[null,"Female 85-89",0,0,0,0,0,0,0,0,0,0,0,0,0,0,0,0,0,0,0,0,0,0,0,0,0,0,0,0,0,0,0,0,0,0,0,0,0,0,0,0,0,0,0,0,0,0,0,0,0,0,0,0,0,227]
[null,"Female 90+",0,0,0,0,0,0,0,0,0,0,0,0,0,0,0,0,0,0,0,0,0,0,0,0,0,0,0,0,0,0,0,0,0,0,0,0,0,0,0,0,0,0,0,0,0,0,0,0,0,0,0,0,0,228]
[null,"Male 0-4",0,0,0,0,0,0,0,0,0,0,0,0,0,0,0,0,0,0,0,0,0,0,0,0,0,0,0,0,0,0,0,0,0,0,0,0,0,0,0,0,0,0,0,0,0,0,0,0,0,0,0,0,0,229]
[null,"Male 5-9",0,0,0,0,0,0,0,0,0,0,0,0,0,0,0,0,0,0,0,0,0,0,0,0,0,0,0,0,0,0,0,0,0,0,0,0,0,0,0,0,0,0,0,0,0,0,0,0,0,0,0,0,0,230]
[null,"Male 10-15",0,0,0,0,0,0,0,0,0,0,0,0,0,0,0,0,0,0,0,0,0,0,0,0,0,0,0,0,0,0,0,0,0,0,0,0,0,0,0,0,0,0,0,0,0,0,0,0,0,0,0,0,0,231]
[null,"Male 16-19",0,0,0,0,0,0,0,0,0,0,0,0,0,0,0,0,0,0,0,0,0,0,0,0,0,0,0,0,0,0,0,0,0,0,0,0,0,0,0,0,0,0,0,0,0,0,0,0,0,0,0,0,0,232]
[null,"Male 20-24",0,0,0,0,0,0,0,0,0,0,0,0,0,0,0,0,0,0,0,0,0,0,0,0,0,0,0,0,0,0,0,0,0,0,0,0,0,0,0,0,0,0,0,0,0,0,0,0,0,0,0,0,0,233]
[null,"Male 25-29",0,0,0,0,0,0,0,0,0,0,0,0,0,0,0,0,0,0,0,0,0,0,0,0,0,0,0,0,0,0,0,0,0,0,0,0,0,0,0,0,0,0,0,0,0,0,0,0,0,0,0,0,0,234]
[null,"Male 30-34",0,0,0,0,0,0,0,0,0,0,0,0,0,0,0,0,0,0,0,0,0,0,0,0,0,0,0,0,0,0,0,0,0,0,0,0,0,0,0,0,0,0,0,0,0,0,0,0,0,0,0,0,0,235]
[null,"Male 35-39",0,0,0,0,0,0,0,0,0,0,0,0,0,0,0,0,0,0,0,0,0,0,0,0,0,0,0,0,0,0,0,0,0,0,0,0,0,0,0,0,0,0,0,0,0,0,0,0,0,0,0,0,0,236]
[null,"Male 40-44",0,0,0,0,0,0,0,0,0,0,0,0,0,0,0,0,0,0,0,0,0,0,0,0,0,0,0,0,0,0,0,0,0,0,0,0,0,0,0,0,0,0,0,0,0,0,0,0,0,0,0,0,0,237]
[null,"Male 45-49",0,0,0,0,0,0,0,0,0,0,0,0,0,0,0,0,0,0,0,0,0,0,0,0,0,0,0,0,0,0,0,0,0,0,0,0,0,0,0,0,0,0,0,0,0,0,0,0,0,0,0,0,0,238]
[null,"Male 50-54",0,0,0,0,0,0,0,0,0,0,0,0,0,0,0,0,0,0,0,0,0,0,0,0,0,0,0,0,0,0,0,0,0,0,0,0,0,0,0,0,0,0,0,0,0,0,0,0,0,0,0,0,0,239]
[null,"Male 55-59",0,0,0,0,0,0,0,0,0,0,0,0,0,0,0,0,0,0,0,0,0,0,0,0,0,0,0,0,0,0,0,0,0,0,0,0,0,0,0,0,0,0,0,0,0,0,0,0,0,0,0,0,0,240]
[null,"Male 60-64",0,0,0,0,0,0,0,0,0,0,0,0,0,0,0,0,0,0,0,0,0,0,0,0,0,0,0,0,0,0,0,0,0,0,0,0,0,0,0,0,0,0,0,0,0,0,0,0,0,0,0,0,0,241]
[null,"Male 65-69",0,0,0,0,0,0,0,0,0,0,0,0,0,0,0,0,0,0,0,0,0,0,0,0,0,0,0,0,0,0,0,0,0,0,0,0,0,0,0,0,0,0,0,0,0,0,0,0,0,0,0,0,0,242]
[null,"Male 70-74",0,0,0,0,0,0,0,0,0,0,0,0,0,0,0,0,0,0,0,0,0,0,0,0,0,0,0,0,0,0,0,0,0,0,0,0,0,0,0,0,0,0,0,0,0,0,0,0,0,0,0,0,0,243]
[null,"Male 75-79",0,0,0,0,0,0,0,0,0,0,0,0,0,0,0,0,0,0,0,0,0,0,0,0,0,0,0,0,0,0,0,0,0,0,0,0,0,0,0,0,0,0,0,0,0,0,0,0,0,0,0,0,0,244]
[null,"Male 80-84",0,0,0,0,0,0,0,0,0,0,0,0,0,0,0,0,0,0,0,0,0,0,0,0,0,0,0,0,0,0,0,0,0,0,0,0,0,0,0,0,0,0,0,0,0,0,0,0,0,0,0,0,0,245]
[null,"Male 85-89",0,0,0,0,0,0,0,0,0,0,0,0,0,0,0,0,0,0,0,0,0,0,0,0,0,0,0,0,0,0,0,0,0,0,0,0,0,0,0,0,0,0,0,0,0,0,0,0,0,0,0,0,0,246]
[null,"Male 90+",0,0,0,0,0,0,0,0,0,0,0,0,0,0,0,0,0,0,0,0,0,0,0,0,0,0,0,0,0,0,0,0,0,0,0,0,0,0,0,0,0,0,0,0,0,0,0,0,0,0,0,0,0,247]

{"sheet":"PARfraction","index":17,"n_rows":249,"n_cols":56,"rows_kept":249,"cut":false,"hidden":true,"merged":[]}
["Subgroup's fraction of area's 2016 Population-At-Risk (PAR) (16+ only)"]
[]
["SIMD","group","Aberdeen City Local Authority","Aberdeen City Region Deal","Aberdeenshire Local Authority","Angus Local Authority","Argyll & Bute Local Authority","Ayrshire & Arran Health Board","Borders Health Board","Clackmannanshire & Stirling IJB","Clackmannanshire Local Authority","Dumfries & Galloway Health Board","Dumfries & Galloway Local Authority","Dundee City Local Authority","East Ayrshire Local Authority","East Dunbartonshire Local Authority","East Lothian Local Authority","East Renfrewshire Local Authority","Edinburgh & SE Scotland City Region Deal","Edinburgh, City of Local Authority","Eilean Siar Local Authority","Falkirk Local Authority","Fife Health Board","Fife Local Authority","Forth Valley Health Board","Glasgow City Local Authority","Glasgow City Region Deal","Grampian Health Board","Greater Glasgow & Clyde Health Board","Highland Health Board","Highland Local Authority","Inverclyde Local Authority","Inverness & Highland City Region Deal","Lanarkshire Health Board","Lothian Health Board","Midlothian Local Authority","Moray Local Authority","North Ayrshire Local Authority","North Lanarkshire Local Authority","Orkney Health Board","Orkney Islands Local Authority","Perth & Kinross Local Authority","Renfrewshire Local Authority","Scotland","Scottish Borders Local Authority","Shetland Health Board","Shetland Islands Local Authority","South Ayrshire Local Authority","South Lanarkshire Local Authority","Stirling Local Authority","Tay Cities Region Deal ","Tayside Health Board","West Dunbartonshire Local Authority","West Lothian Local Authority","Western Isles Health Board",1]
[null,null,"popS12000033","Aber_deal","popS12000034","popS12000041","popS12000035","popS08000015","popS08000016","ClacksStirIJB","popS12000005","popS08000017","popS12000006","popS12000042","popS12000008","popS12000045","popS12000010","popS12000011","EdinSE_deal","popS12000036","popS12000013","popS12000014","popS08000018","popS12000015","popS08000019","popS12000046","GClyde_deal","popS08000020","popS08000021","popS08000022","popS12000017","popS12000018","Inver_deal","popS08000023","popS08000024","popS12000019","popS12000020","popS12000021","popS12000044","popS08000025","popS12000023","popS12000024","popS12000038","popS00000001","popS12000026","popS08000026","popS12000027","popS12000028","popS12000029","popS12000030","Tay_deal","popS08000027","popS12000039","popS12000040","popS08000028",2]
["All quintiles","16+ Males and Females",{"$f":"'Population at Risk'!R5/'Population at Risk'!R$5","v":1},{"$f":"'Population at Risk'!AX5/'Population at Risk'!AX$5","v":1},{"$f":"'Population at Risk'!S5/'Population at Risk'!S$5","v":1},{"$f":"'Population at Risk'!T5/'Population at Risk'!T$5","v":1},{"$f":"'Population at Risk'!U5/'Population at Risk'!U$5","v":1},{"$f":"'Population at Risk'!D5/'Population at Risk'!D$5","v":1},{"$f":"'Population at Risk'!E5/'Population at Risk'!E$5","v":1},{"$f":"'Population at Risk'!BC5/'Population at Risk'!BC$5","v":1},{"$f":"'Population at Risk'!V5/'Population at Risk'!V$5","v":1},{"$f":"'Population at Risk'!F5/'Population at Risk'!F$5","v":1},{"$f":"'Population at Risk'!W5/'Population at Risk'!W$5","v":1},{"$f":"'Population at Risk'!X5/'Population at Risk'!X$5","v":1},{"$f":"'Population at Risk'!Y5/'Population at Risk'!Y$5","v":1},{"$f":"'Population at Risk'!Z5/'Population at Risk'!Z$5","v":1},{"$f":"'Population at Risk'!AA5/'Population at Risk'!AA$5","v":1},{"$f":"'Population at Risk'!AB5/'Population at Risk'!AB$5","v":1},{"$f":"'Population at Risk'!AY5/'Population at Risk'!AY$5","v":1},{"$f":"'Population at Risk'!AC5/'Population at Risk'!AC$5","v":1},{"$f":"'Population at Risk'!AD5/'Population at Risk'!AD$5","v":1},{"$f":"'Population at Risk'!AE5/'Population at Risk'!AE$5","v":1},{"$f":"'Population at Risk'!G5/'Population at Risk'!G$5","v":1},{"$f":"'Population at Risk'!AF5/'Population at Risk'!AF$5","v":1},{"$f":"'Population at Risk'!H5/'Population at Risk'!H$5","v":1},{"$f":"'Population at Risk'!AG5/'Population at Risk'!AG$5","v":1},{"$f":"'Population at Risk'!AZ5/'Population at Risk'!AZ$5","v":1},{"$f":"'Population at Risk'!I5/'Population at Risk'!I$5","v":1},{"$f":"'Population at Risk'!J5/'Population at Risk'!J$5","v":1},{"$f":"'Population at Risk'!K5/'Population at Risk'!K$5","v":1},{"$f":"'Population at Risk'!AH5/'Population at Risk'!AH$5","v":1},{"$f":"'Population at Risk'!AI5/'Population at Risk'!AI$5","v":1},{"$f":"'Population at Risk'!BA5/'Population at Risk'!BA$5","v":1},{"$f":"'Population at Risk'!L5/'Population at Risk'!L$5","v":1},{"$f":"'Population at Risk'!M5/'Population at Risk'!M$5","v":1},{"$f":"'Population at Risk'!AJ5/'Population at Risk'!AJ$5","v":1},{"$f":"'Population at Risk'!AK5/'Population at Risk'!AK$5","v":1},{"$f":"'Population at Risk'!AL5/'Population at Risk'!AL$5","v":1},{"$f":"'Population at Risk'!AM5/'Population at Risk'!AM$5","v":1},{"$f":"'Population at Risk'!N5/'Population at Risk'!N$5","v":1},{"$f":"'Population at Risk'!AN5/'Population at Risk'!AN$5","v":1},{"$f":"'Population at Risk'!AO5/'Population at Risk'!AO$5","v":1},{"$f":"'Population at Risk'!AP5/'Population at Risk'!AP$5","v":1},{"$f":"'Population at Risk'!C5/'Population at Risk'!C$5","v":1},{"$f":"'Population at Risk'!AQ5/'Population at Risk'!AQ$5","v":1},{"$f":"'Population at Risk'!O5/'Population at Risk'!O$5","v":1},{"$f":"'Population at Risk'!AR5/'Population at Risk'!AR$5","v":1},{"$f":"'Population at Risk'!AS5/'Population at Risk'!AS$5","v":1},{"$f":"'Population at Risk'!AT5/'Population at Risk'!AT$5","v":1},{"$f":"'Population at Risk'!AU5/'Population at Risk'!AU$5","v":1},{"$f":"'Population at Risk'!BB5/'Population at Risk'!BB$5","v":1},{"$f":"'Population at Risk'!P5/'Population at Risk'!P$5","v":1},{"$f":"'Population at Risk'!AV5/'Population at Risk'!AV$5","v":1},{"$f":"'Population at Risk'!AW5/'Population at Risk'!AW$5","v":1},{"$f":"'Population at Risk'!Q5/'Population at Risk'!Q$5","v":1},3]
["Q1 and Q2","16+ Males and Females",{"$f":"'Population at Risk'!R6/'Population at Risk'!R$5","v":0.12886845252460505},{"$f":"'Population at Risk'!AX6/'Population at Risk'!AX$5","v":0.23603041198698818},{"$f":"'Population at Risk'!S6/'Population at Risk'!S$5","v":0.293381747361662},{"$f":"'Population at Risk'!T6/'Population at Risk'!T$5","v":0.24248791495841859},{"$f":"'Population at Risk'!U6/'Population at Risk'!U$5","v":0.21700344170986058},{"$f":"'Population at Risk'!D6/'Population at Risk'!D$5","v":0.16107333354822734},{"$f":"'Population at Risk'!E6/'Population at Risk'!E$5","v":8.0595515651417357E-2},{"$f":"'Population at Risk'!BC6/'Population at Risk'!BC$5","v":0.21793342193750917},{"$f":"'Population at Risk'!V6/'Population at Risk'!V$5","v":0.37963811984827756},{"$f":"'Population at Risk'!F6/'Population at Risk'!F$5","v":0.20533932127337046},{"$f":"'Population at Risk'!W6/'Population at Risk'!W$5","v":0.34310006666499282},{"$f":"'Population at Risk'!X6/'Population at Risk'!X$5","v":0.34268498305740752},{"$f":"'Population at Risk'!Y6/'Population at Risk'!Y$5","v":0.34668459113486533},{"$f":"'Population at Risk'!Z6/'Population at Risk'!Z$5","v":0.58401566334549082},{"$f":"'Population at Risk'!AA6/'Population at Risk'!AA$5","v":0.47198897819475755},{"$f":"'Population at Risk'!AB6/'Population at Risk'!AB$5","v":0.15746171422615149},{"$f":"'Population at Risk'!AY6/'Population at Risk'!AY$5","v":0.30773120605629789},{"$f":"'Population at Risk'!AC6/'Population at Risk'!AC$5","v":0.47195907516006774},{"$f":"'Population at Risk'!AD6/'Population at Risk'!AD$5","v":0.21575827552490598},{"$f":"'Population at Risk'!AE6/'Population at Risk'!AE$5","v":0.2211307562474607},{"$f":"'Population at Risk'!G6/'Population at Risk'!G$5","v":0.20463935099657612},{"$f":"'Population at Risk'!AF6/'Population at Risk'!AF$5","v":0.47814143475490323},{"$f":"'Population at Risk'!H6/'Population at Risk'!H$5","v":0.48536737995787144},{"$f":"'Population at Risk'!AG6/'Population at Risk'!AG$5","v":0.22026001122774441},{"$f":"'Population at Risk'!AZ6/'Population at Risk'!AZ$5","v":0.2770657830124848},{"$f":"'Population at Risk'!I6/'Population at Risk'!I$5","v":0.18505420857645608},{"$f":"'Population at Risk'!J6/'Population at Risk'!J$5","v":0.30643420988530956},{"$f":"'Population at Risk'!K6/'Population at Risk'!K$5","v":0.44517572907708092},{"$f":"'Population at Risk'!AH6/'Population at Risk'!AH$5","v":0.47252712405621561},{"$f":"'Population at Risk'!AI6/'Population at Risk'!AI$5","v":0.28733743994454264},{"$f":"'Population at Risk'!BA6/'Population at Risk'!BA$5","v":0.62534573115649994},{"$f":"'Population at Risk'!L6/'Population at Risk'!L$5","v":0.31404653199815724},{"$f":"'Population at Risk'!M6/'Population at Risk'!M$5","v":0.31426043772361223},{"$f":"'Population at Risk'!AJ6/'Population at Risk'!AJ$5","v":0.40861463295046629},{"$f":"'Population at Risk'!AK6/'Population at Risk'!AK$5","v":0.13961487283253432},{"$f":"'Population at Risk'!AL6/'Population at Risk'!AL$5","v":0.53952599087848885},{"$f":"'Population at Risk'!AM6/'Population at Risk'!AM$5","v":0.53467889275944258},{"$f":"'Population at Risk'!N6/'Population at Risk'!N$5","v":0.49021625806494928},{"$f":"'Population at Risk'!AN6/'Population at Risk'!AN$5","v":0.12268550133391021},{"$f":"'Population at Risk'!AO6/'Population at Risk'!AO$5","v":0.12268550133391021},{"$f":"'Population at Risk'!AP6/'Population at Risk'!AP$5","v":0.14182592589419382},{"$f":"'Population at Risk'!C6/'Population at Risk'!C$5","v":0.25318245642391562},{"$f":"'Population at Risk'!AQ6/'Population at Risk'!AQ$5","v":0.40010998355315258},{"$f":"'Population at Risk'!O6/'Population at Risk'!O$5","v":0.52200287730482475},{"$f":"'Population at Risk'!AR6/'Population at Risk'!AR$5","v":0.34376464106809107},{"$f":"'Population at Risk'!AS6/'Population at Risk'!AS$5","v":0.18505420857645608},{"$f":"'Population at Risk'!AT6/'Population at Risk'!AT$5","v":2.9869285891678525E-2},{"$f":"'Population at Risk'!AU6/'Population at Risk'!AU$5","v":2.9869285891678525E-2},{"$f":"'Population at Risk'!BB6/'Population at Risk'!BB$5","v":0.37694792475142042},{"$f":"'Population at Risk'!P6/'Population at Risk'!P$5","v":0.17848238501901303},{"$f":"'Population at Risk'!AV6/'Population at Risk'!AV$5","v":0.38575038531255745},{"$f":"'Population at Risk'!AW6/'Population at Risk'!AW$5","v":0.40833418996669979},{"$f":"'Population at Risk'!Q6/'Population at Risk'!Q$5","v":0.26710255945036526},4]
["SIMD Q1 (most deprived)","16+ Males and Females",{"$f":"'Population at Risk'!R7/'Population at Risk'!R$5","v":5.0230750779258204E-2},{"$f":"'Population at Risk'!AX7/'Population at Risk'!AX$5","v":0.10038278347454672},{"$f":"'Population at Risk'!S7/'Population at Risk'!S$5","v":0.10979538024487764},{"$f":"'Population at Risk'!T7/'Population at Risk'!T$5","v":0.10481119536096951},{"$f":"'Population at Risk'!U7/'Population at Risk'!U$5","v":0},{"$f":"'Population at Risk'!D7/'Population at Risk'!D$5","v":3.8565162898675238E-2},{"$f":"'Population at Risk'!E7/'Population at Risk'!E$5","v":1.5756473885633497E-2},{"$f":"'Population at Risk'!BC7/'Population at Risk'!BC$5","v":0},{"$f":"'Population at Risk'!V7/'Population at Risk'!V$5","v":0.11770887946887562},{"$f":"'Population at Risk'!F7/'Population at Risk'!F$5","v":5.5634620270848457E-2},{"$f":"'Population at Risk'!W7/'Population at Risk'!W$5","v":0.15958499270724519},{"$f":"'Population at Risk'!X7/'Population at Risk'!X$5","v":0.15923043852591545},{"$f":"'Population at Risk'!Y7/'Population at Risk'!Y$5","v":0.12719931774436546},{"$f":"'Population at Risk'!Z7/'Population at Risk'!Z$5","v":0.40182799277695597},{"$f":"'Population at Risk'!AA7/'Population at Risk'!AA$5","v":0.26953657459406016},{"$f":"'Population at Risk'!AB7/'Population at Risk'!AB$5","v":3.3272847642821082E-2},{"$f":"'Population at Risk'!AY7/'Population at Risk'!AY$5","v":0.14403772076572621},{"$f":"'Population at Risk'!AC7/'Population at Risk'!AC$5","v":0.30045219477401336},{"$f":"'Population at Risk'!AD7/'Population at Risk'!AD$5","v":5.5243380748277157E-2},{"$f":"'Population at Risk'!AE7/'Population at Risk'!AE$5","v":5.5031640110228618E-2},{"$f":"'Population at Risk'!G7/'Population at Risk'!G$5","v":5.7985744700362739E-2},{"$f":"'Population at Risk'!AF7/'Population at Risk'!AF$5","v":0.35431813203784951},{"$f":"'Population at Risk'!H7/'Population at Risk'!H$5","v":0.25602521760135682},{"$f":"'Population at Risk'!AG7/'Population at Risk'!AG$5","v":5.443991219806376E-2},{"$f":"'Population at Risk'!AZ7/'Population at Risk'!AZ$5","v":0.13065048838787799},{"$f":"'Population at Risk'!I7/'Population at Risk'!I$5","v":4.376539314242147E-2},{"$f":"'Population at Risk'!J7/'Population at Risk'!J$5","v":0.13350633173193016},{"$f":"'Population at Risk'!K7/'Population at Risk'!K$5","v":0.20049526573430657},{"$f":"'Population at Risk'!AH7/'Population at Risk'!AH$5","v":0.21495539667952632},{"$f":"'Population at Risk'!AI7/'Population at Risk'!AI$5","v":9.8095803272562399E-2},{"$f":"'Population at Risk'!BA7/'Population at Risk'!BA$5","v":0.33274589198500015},{"$f":"'Population at Risk'!L7/'Population at Risk'!L$5","v":6.5911807561214272E-2},{"$f":"'Population at Risk'!M7/'Population at Risk'!M$5","v":6.6026879277407621E-2},{"$f":"'Population at Risk'!AJ7/'Population at Risk'!AJ$5","v":8.0842451271926158E-2},{"$f":"'Population at Risk'!AK7/'Population at Risk'!AK$5","v":6.3619322630915163E-3},{"$f":"'Population at Risk'!AL7/'Population at Risk'!AL$5","v":0.3464296188498166},{"$f":"'Population at Risk'!AM7/'Population at Risk'!AM$5","v":0.26444081248964674},{"$f":"'Population at Risk'!N7/'Population at Risk'!N$5","v":0.29446827224338151},{"$f":"'Population at Risk'!AN7/'Population at Risk'!AN$5","v":0},{"$f":"'Population at Risk'!AO7/'Population at Risk'!AO$5","v":0},{"$f":"'Population at Risk'!AP7/'Population at Risk'!AP$5","v":4.1251774390686141E-2},{"$f":"'Population at Risk'!C7/'Population at Risk'!C$5","v":6.4662926299850265E-2},{"$f":"'Population at Risk'!AQ7/'Population at Risk'!AQ$5","v":0.22978525746004377},{"$f":"'Population at Risk'!O7/'Population at Risk'!O$5","v":0.26938930945485051},{"$f":"'Population at Risk'!AR7/'Population at Risk'!AR$5","v":0.15912878923406215},{"$f":"'Population at Risk'!AS7/'Population at Risk'!AS$5","v":4.376539314242147E-2},{"$f":"'Population at Risk'!AT7/'Population at Risk'!AT$5","v":0},{"$f":"'Population at Risk'!AU7/'Population at Risk'!AU$5","v":0},{"$f":"'Population at Risk'!BB7/'Population at Risk'!BB$5","v":0.13037096422120106},{"$f":"'Population at Risk'!P7/'Population at Risk'!P$5","v":3.6704323614398127E-2},{"$f":"'Population at Risk'!AV7/'Population at Risk'!AV$5","v":0.14028698406049084},{"$f":"'Population at Risk'!AW7/'Population at Risk'!AW$5","v":0.16387003638536973},{"$f":"'Population at Risk'!Q7/'Population at Risk'!Q$5","v":2.7083671228109302E-2},5]
["SIMD Q2",null,{"$f":"'Population at Risk'!R8/'Population at Risk'!R$5","v":7.863770174534683E-2},{"$f":"'Population at Risk'!AX8/'Population at Risk'!AX$5","v":0.13564762851244144},{"$f":"'Population at Risk'!S8/'Population at Risk'!S$5","v":0.18358636711678436},{"$f":"'Population at Risk'!T8/'Population at Risk'!T$5","v":0.13767671959744907},{"$f":"'Population at Risk'!U8/'Population at Risk'!U$5","v":0.21700344170986058},{"$f":"'Population at Risk'!D8/'Population at Risk'!D$5","v":0.12250817064955211},{"$f":"'Population at Risk'!E8/'Population at Risk'!E$5","v":6.4839041765783867E-2},{"$f":"'Population at Risk'!BC8/'Population at Risk'!BC$5","v":0.21793342193750917},{"$f":"'Population at Risk'!V8/'Population at Risk'!V$5","v":0.26192924037940196},{"$f":"'Population at Risk'!F8/'Population at Risk'!F$5","v":0.14970470100252198},{"$f":"'Population at Risk'!W8/'Population at Risk'!W$5","v":0.18351507395774763},{"$f":"'Population at Risk'!X8/'Population at Risk'!X$5","v":0.18345454453149213},{"$f":"'Population at Risk'!Y8/'Population at Risk'!Y$5","v":0.21948527339049986},{"$f":"'Population at Risk'!Z8/'Population at Risk'!Z$5","v":0.18218767056853477},{"$f":"'Population at Risk'!AA8/'Population at Risk'!AA$5","v":0.20245240360069736},{"$f":"'Population at Risk'!AB8/'Population at Risk'!AB$5","v":0.12418886658333039},{"$f":"'Population at Risk'!AY8/'Population at Risk'!AY$5","v":0.16369348529057165},{"$f":"'Population at Risk'!AC8/'Population at Risk'!AC$5","v":0.17150688038605441},{"$f":"'Population at Risk'!AD8/'Population at Risk'!AD$5","v":0.16051489477662884},{"$f":"'Population at Risk'!AE8/'Population at Risk'!AE$5","v":0.16609911613723208},{"$f":"'Population at Risk'!G8/'Population at Risk'!G$5","v":0.14665360629621338},{"$f":"'Population at Risk'!AF8/'Population at Risk'!AF$5","v":0.12382330271705375},{"$f":"'Population at Risk'!H8/'Population at Risk'!H$5","v":0.22934216235651461},{"$f":"'Population at Risk'!AG8/'Population at Risk'!AG$5","v":0.16582009902968065},{"$f":"'Population at Risk'!AZ8/'Population at Risk'!AZ$5","v":0.14641529462460678},{"$f":"'Population at Risk'!I8/'Population at Risk'!I$5","v":0.1412888154340346},{"$f":"'Population at Risk'!J8/'Population at Risk'!J$5","v":0.17292787815337943},{"$f":"'Population at Risk'!K8/'Population at Risk'!K$5","v":0.24468046334277435},{"$f":"'Population at Risk'!AH8/'Population at Risk'!AH$5","v":0.25757172737668926},{"$f":"'Population at Risk'!AI8/'Population at Risk'!AI$5","v":0.18924163667198021},{"$f":"'Population at Risk'!BA8/'Population at Risk'!BA$5","v":0.29259983917149973},{"$f":"'Population at Risk'!L8/'Population at Risk'!L$5","v":0.24813472443694301},{"$f":"'Population at Risk'!M8/'Population at Risk'!M$5","v":0.24823355844620459},{"$f":"'Population at Risk'!AJ8/'Population at Risk'!AJ$5","v":0.32777218167854016},{"$f":"'Population at Risk'!AK8/'Population at Risk'!AK$5","v":0.13325294056944281},{"$f":"'Population at Risk'!AL8/'Population at Risk'!AL$5","v":0.19309637202867228},{"$f":"'Population at Risk'!AM8/'Population at Risk'!AM$5","v":0.27023808026979584},{"$f":"'Population at Risk'!N8/'Population at Risk'!N$5","v":0.1957479858215678},{"$f":"'Population at Risk'!AN8/'Population at Risk'!AN$5","v":0.12268550133391021},{"$f":"'Population at Risk'!AO8/'Population at Risk'!AO$5","v":0.12268550133391021},{"$f":"'Population at Risk'!AP8/'Population at Risk'!AP$5","v":0.10057415150350769},{"$f":"'Population at Risk'!C8/'Population at Risk'!C$5","v":0.18851953012406539},{"$f":"'Population at Risk'!AQ8/'Population at Risk'!AQ$5","v":0.17032472609310881},{"$f":"'Population at Risk'!O8/'Population at Risk'!O$5","v":0.25261356784997419},{"$f":"'Population at Risk'!AR8/'Population at Risk'!AR$5","v":0.18463585183402889},{"$f":"'Population at Risk'!AS8/'Population at Risk'!AS$5","v":0.1412888154340346},{"$f":"'Population at Risk'!AT8/'Population at Risk'!AT$5","v":2.9869285891678525E-2},{"$f":"'Population at Risk'!AU8/'Population at Risk'!AU$5","v":2.9869285891678525E-2},{"$f":"'Population at Risk'!BB8/'Population at Risk'!BB$5","v":0.24657696053021938},{"$f":"'Population at Risk'!P8/'Population at Risk'!P$5","v":0.14177806140461491},{"$f":"'Population at Risk'!AV8/'Population at Risk'!AV$5","v":0.24546340125206659},{"$f":"'Population at Risk'!AW8/'Population at Risk'!AW$5","v":0.24446415358133003},{"$f":"'Population at Risk'!Q8/'Population at Risk'!Q$5","v":0.24001888822225598},6]
["SIMD Q3",null,{"$f":"'Population at Risk'!R9/'Population at Risk'!R$5","v":0.10682093955615617},{"$f":"'Population at Risk'!AX9/'Population at Risk'!AX$5","v":0.16863045706919449},{"$f":"'Population at Risk'!S9/'Population at Risk'!S$5","v":0.21228199018794056},{"$f":"'Population at Risk'!T9/'Population at Risk'!T$5","v":0.15853183004678054},{"$f":"'Population at Risk'!U9/'Population at Risk'!U$5","v":0.72262499256368984},{"$f":"'Population at Risk'!D9/'Population at Risk'!D$5","v":0.18031051573731377},{"$f":"'Population at Risk'!E9/'Population at Risk'!E$5","v":0.19800203969069943},{"$f":"'Population at Risk'!BC9/'Population at Risk'!BC$5","v":0.72201832989352011},{"$f":"'Population at Risk'!V9/'Population at Risk'!V$5","v":0.19519723818210022},{"$f":"'Population at Risk'!F9/'Population at Risk'!F$5","v":0.33409619573663074},{"$f":"'Population at Risk'!W9/'Population at Risk'!W$5","v":0.22786487666048974},{"$f":"'Population at Risk'!X9/'Population at Risk'!X$5","v":0.22791688920384034},{"$f":"'Population at Risk'!Y9/'Population at Risk'!Y$5","v":0.18754080869343803},{"$f":"'Population at Risk'!Z9/'Population at Risk'!Z$5","v":0.16544906818960392},{"$f":"'Population at Risk'!AA9/'Population at Risk'!AA$5","v":0.17258817813800567},{"$f":"'Population at Risk'!AB9/'Population at Risk'!AB$5","v":0.19577931285626285},{"$f":"'Population at Risk'!AY9/'Population at Risk'!AY$5","v":0.22968793482951594},{"$f":"'Population at Risk'!AC9/'Population at Risk'!AC$5","v":0.15439958580876725},{"$f":"'Population at Risk'!AD9/'Population at Risk'!AD$5","v":0.35269005528499692},{"$f":"'Population at Risk'!AE9/'Population at Risk'!AE$5","v":0.32729698626332576},{"$f":"'Population at Risk'!G9/'Population at Risk'!G$5","v":0.42095962136054493},{"$f":"'Population at Risk'!AF9/'Population at Risk'!AF$5","v":0.17255341831130164},{"$f":"'Population at Risk'!H9/'Population at Risk'!H$5","v":0.18940039068314654},{"$f":"'Population at Risk'!AG9/'Population at Risk'!AG$5","v":0.32714249468738188},{"$f":"'Population at Risk'!AZ9/'Population at Risk'!AZ$5","v":0.23114632837525734},{"$f":"'Population at Risk'!I9/'Population at Risk'!I$5","v":0.337501705791875},{"$f":"'Population at Risk'!J9/'Population at Risk'!J$5","v":0.17975439018205844},{"$f":"'Population at Risk'!K9/'Population at Risk'!K$5","v":0.20060532505478312},{"$f":"'Population at Risk'!AH9/'Population at Risk'!AH$5","v":0.20505217173066789},{"$f":"'Population at Risk'!AI9/'Population at Risk'!AI$5","v":0.18918431015844669},{"$f":"'Population at Risk'!BA9/'Population at Risk'!BA$5","v":0.1717657829840317},{"$f":"'Population at Risk'!L9/'Population at Risk'!L$5","v":0.38585969130699693},{"$f":"'Population at Risk'!M9/'Population at Risk'!M$5","v":0.38585246629688097},{"$f":"'Population at Risk'!AJ9/'Population at Risk'!AJ$5","v":0.24984909670664313},{"$f":"'Population at Risk'!AK9/'Population at Risk'!AK$5","v":0.27585392005487108},{"$f":"'Population at Risk'!AL9/'Population at Risk'!AL$5","v":0.15853301843014611},{"$f":"'Population at Risk'!AM9/'Population at Risk'!AM$5","v":0.20198733277918904},{"$f":"'Population at Risk'!N9/'Population at Risk'!N$5","v":0.13893545996800627},{"$f":"'Population at Risk'!AN9/'Population at Risk'!AN$5","v":0.30876462395828846},{"$f":"'Population at Risk'!AO9/'Population at Risk'!AO$5","v":0.30876462395828846},{"$f":"'Population at Risk'!AP9/'Population at Risk'!AP$5","v":0.23626147353656718},{"$f":"'Population at Risk'!C9/'Population at Risk'!C$5","v":0.16008862052360698},{"$f":"'Population at Risk'!AQ9/'Population at Risk'!AQ$5","v":0.19036126044879739},{"$f":"'Population at Risk'!O9/'Population at Risk'!O$5","v":0.19036634853293211},{"$f":"'Population at Risk'!AR9/'Population at Risk'!AR$5","v":0.21305836178315907},{"$f":"'Population at Risk'!AS9/'Population at Risk'!AS$5","v":0.337501705791875},{"$f":"'Population at Risk'!AT9/'Population at Risk'!AT$5","v":0.3236900251111357},{"$f":"'Population at Risk'!AU9/'Population at Risk'!AU$5","v":0.3236900251111357},{"$f":"'Population at Risk'!BB9/'Population at Risk'!BB$5","v":0.2338211354045448},{"$f":"'Population at Risk'!P9/'Population at Risk'!P$5","v":6.155991362954099E-2},{"$f":"'Population at Risk'!AV9/'Population at Risk'!AV$5","v":0.22345071585826615},{"$f":"'Population at Risk'!AW9/'Population at Risk'!AW$5","v":0.20828988281092567},{"$f":"'Population at Risk'!Q9/'Population at Risk'!Q$5","v":0.21915893108693998},7]
["SIMD Q4",null,{"$f":"'Population at Risk'!R10/'Population at Risk'!R$5","v":0.14962535111302275},{"$f":"'Population at Risk'!AX10/'Population at Risk'!AX$5","v":0.28847931230970919},{"$f":"'Population at Risk'!S10/'Population at Risk'!S$5","v":0.20353172325555433},{"$f":"'Population at Risk'!T10/'Population at Risk'!T$5","v":0.16053849309153634},{"$f":"'Population at Risk'!U10/'Population at Risk'!U$5","v":6.0371565726449444E-2},{"$f":"'Population at Risk'!D10/'Population at Risk'!D$5","v":0.27556419019384581},{"$f":"'Population at Risk'!E10/'Population at Risk'!E$5","v":0.36588691962224312},{"$f":"'Population at Risk'!BC10/'Population at Risk'!BC$5","v":6.004824816897069E-2},{"$f":"'Population at Risk'!V10/'Population at Risk'!V$5","v":0.2065492526747772},{"$f":"'Population at Risk'!F10/'Population at Risk'!F$5","v":0.26526707780471448},{"$f":"'Population at Risk'!W10/'Population at Risk'!W$5","v":0.1886556180935168},{"$f":"'Population at Risk'!X10/'Population at Risk'!X$5","v":0.18867533167770711},{"$f":"'Population at Risk'!Y10/'Population at Risk'!Y$5","v":0.23081060526228275},{"$f":"'Population at Risk'!Z10/'Population at Risk'!Z$5","v":0.13021038493030562},{"$f":"'Population at Risk'!AA10/'Population at Risk'!AA$5","v":0.16646844785220802},{"$f":"'Population at Risk'!AB10/'Population at Risk'!AB$5","v":0.29497974873852301},{"$f":"'Population at Risk'!AY10/'Population at Risk'!AY$5","v":0.24891920158699629},{"$f":"'Population at Risk'!AC10/'Population at Risk'!AC$5","v":0.15470588236658323},{"$f":"'Population at Risk'!AD10/'Population at Risk'!AD$5","v":0.32516171272736666},{"$f":"'Population at Risk'!AE10/'Population at Risk'!AE$5","v":0.34878394324590128},{"$f":"'Population at Risk'!G10/'Population at Risk'!G$5","v":0.26202175859358567},{"$f":"'Population at Risk'!AF10/'Population at Risk'!AF$5","v":0.20483440232040259},{"$f":"'Population at Risk'!H10/'Population at Risk'!H$5","v":0.16503257147692507},{"$f":"'Population at Risk'!AG10/'Population at Risk'!AG$5","v":0.34882748591725843},{"$f":"'Population at Risk'!AZ10/'Population at Risk'!AZ$5","v":0.30124467246709852},{"$f":"'Population at Risk'!I10/'Population at Risk'!I$5","v":0.37640818845440505},{"$f":"'Population at Risk'!J10/'Population at Risk'!J$5","v":0.25679975434296792},{"$f":"'Population at Risk'!K10/'Population at Risk'!K$5","v":0.19635969707631057},{"$f":"'Population at Risk'!AH10/'Population at Risk'!AH$5","v":0.18743562014992632},{"$f":"'Population at Risk'!AI10/'Population at Risk'!AI$5","v":0.18657105794940329},{"$f":"'Population at Risk'!BA10/'Population at Risk'!BA$5","v":0.15308460518951206},{"$f":"'Population at Risk'!L10/'Population at Risk'!L$5","v":0.19837383546343515},{"$f":"'Population at Risk'!M10/'Population at Risk'!M$5","v":0.19835144030187166},{"$f":"'Population at Risk'!AJ10/'Population at Risk'!AJ$5","v":0.16594286614538448},{"$f":"'Population at Risk'!AK10/'Population at Risk'!AK$5","v":0.39559473594532796},{"$f":"'Population at Risk'!AL10/'Population at Risk'!AL$5","v":0.18913577971241424},{"$f":"'Population at Risk'!AM10/'Population at Risk'!AM$5","v":0.15507395886112577},{"$f":"'Population at Risk'!N10/'Population at Risk'!N$5","v":0.19120225052325943},{"$f":"'Population at Risk'!AN10/'Population at Risk'!AN$5","v":0.48745414445015667},{"$f":"'Population at Risk'!AO10/'Population at Risk'!AO$5","v":0.48745414445015667},{"$f":"'Population at Risk'!AP10/'Population at Risk'!AP$5","v":0.42723046703293915},{"$f":"'Population at Risk'!C10/'Population at Risk'!C$5","v":0.17226466620482617},{"$f":"'Population at Risk'!AQ10/'Population at Risk'!AQ$5","v":0.19712976767424034},{"$f":"'Population at Risk'!O10/'Population at Risk'!O$5","v":0.15328128882149525},{"$f":"'Population at Risk'!AR10/'Population at Risk'!AR$5","v":0.21848376053141205},{"$f":"'Population at Risk'!AS10/'Population at Risk'!AS$5","v":0.37640818845440505},{"$f":"'Population at Risk'!AT10/'Population at Risk'!AT$5","v":0.64644068899718565},{"$f":"'Population at Risk'!AU10/'Population at Risk'!AU$5","v":0.64644068899718565},{"$f":"'Population at Risk'!BB10/'Population at Risk'!BB$5","v":0.1887543430533998},{"$f":"'Population at Risk'!P10/'Population at Risk'!P$5","v":0.18877984741372322},{"$f":"'Population at Risk'!AV10/'Population at Risk'!AV$5","v":0.14940346002408683},{"$f":"'Population at Risk'!AW10/'Population at Risk'!AW$5","v":0.22065893117499075},{"$f":"'Population at Risk'!Q10/'Population at Risk'!Q$5","v":0.33030806720126582},8]
["SIMD Q5 (least deprived)",null,{"$f":"'Population at Risk'!R11/'Population at Risk'!R$5","v":0.614685256806216},{"$f":"'Population at Risk'!AX11/'Population at Risk'!AX$5","v":0.30685981863410822},{"$f":"'Population at Risk'!S11/'Population at Risk'!S$5","v":0.29080453919484323},{"$f":"'Population at Risk'!T11/'Population at Risk'!T$5","v":0.4384417619032645},{"$f":"'Population at Risk'!U11/'Population at Risk'!U$5","v":0},{"$f":"'Population at Risk'!D11/'Population at Risk'!D$5","v":0.38305196052061308},{"$f":"'Population at Risk'!E11/'Population at Risk'!E$5","v":0.3555155250356401},{"$f":"'Population at Risk'!BC11/'Population at Risk'!BC$5","v":0},{"$f":"'Population at Risk'!V11/'Population at Risk'!V$5","v":0.21861538929484509},{"$f":"'Population at Risk'!F11/'Population at Risk'!F$5","v":0.19529740518528443},{"$f":"'Population at Risk'!W11/'Population at Risk'!W$5","v":0.24037943858100069},{"$f":"'Population at Risk'!X11/'Population at Risk'!X$5","v":0.24072279606104499},{"$f":"'Population at Risk'!Y11/'Population at Risk'!Y$5","v":0.23496399490941378},{"$f":"'Population at Risk'!Z11/'Population at Risk'!Z$5","v":0.12032488353459948},{"$f":"'Population at Risk'!AA11/'Population at Risk'!AA$5","v":0.18895439581502868},{"$f":"'Population at Risk'!AB11/'Population at Risk'!AB$5","v":0.35177922417906266},{"$f":"'Population at Risk'!AY11/'Population at Risk'!AY$5","v":0.21366165752718991},{"$f":"'Population at Risk'!AC11/'Population at Risk'!AC$5","v":0.21893545666458167},{"$f":"'Population at Risk'!AD11/'Population at Risk'!AD$5","v":0.10638995646273036},{"$f":"'Population at Risk'!AE11/'Population at Risk'!AE$5","v":0.1027883142433124},{"$f":"'Population at Risk'!G11/'Population at Risk'!G$5","v":0.11237926904929318},{"$f":"'Population at Risk'!AF11/'Population at Risk'!AF$5","v":0.14447074461339243},{"$f":"'Population at Risk'!H11/'Population at Risk'!H$5","v":0.16019965788205687},{"$f":"'Population at Risk'!AG11/'Population at Risk'!AG$5","v":0.10377000816761529},{"$f":"'Population at Risk'!AZ11/'Population at Risk'!AZ$5","v":0.19054321614515926},{"$f":"'Population at Risk'!I11/'Population at Risk'!I$5","v":0.10103589717726401},{"$f":"'Population at Risk'!J11/'Population at Risk'!J$5","v":0.25701164558966411},{"$f":"'Population at Risk'!K11/'Population at Risk'!K$5","v":0.15785924879182545},{"$f":"'Population at Risk'!AH11/'Population at Risk'!AH$5","v":0.1349850840631901},{"$f":"'Population at Risk'!AI11/'Population at Risk'!AI$5","v":0.33690719194760738},{"$f":"'Population at Risk'!BA11/'Population at Risk'!BA$5","v":4.9803880669956203E-2},{"$f":"'Population at Risk'!L11/'Population at Risk'!L$5","v":0.10171994123141066},{"$f":"'Population at Risk'!M11/'Population at Risk'!M$5","v":0.1015356556776352},{"$f":"'Population at Risk'!AJ11/'Population at Risk'!AJ$5","v":0.17559340419750613},{"$f":"'Population at Risk'!AK11/'Population at Risk'!AK$5","v":0.18893647116726661},{"$f":"'Population at Risk'!AL11/'Population at Risk'!AL$5","v":0.1128052109789508},{"$f":"'Population at Risk'!AM11/'Population at Risk'!AM$5","v":0.10825981560024263},{"$f":"'Population at Risk'!N11/'Population at Risk'!N$5","v":0.17964603144378505},{"$f":"'Population at Risk'!AN11/'Population at Risk'!AN$5","v":8.1095730257644591E-2},{"$f":"'Population at Risk'!AO11/'Population at Risk'!AO$5","v":8.1095730257644591E-2},{"$f":"'Population at Risk'!AP11/'Population at Risk'!AP$5","v":0.19468213353629971},{"$f":"'Population at Risk'!C11/'Population at Risk'!C$5","v":0.41446425684765126},{"$f":"'Population at Risk'!AQ11/'Population at Risk'!AQ$5","v":0.21239898832380974},{"$f":"'Population at Risk'!O11/'Population at Risk'!O$5","v":0.13434948534074781},{"$f":"'Population at Risk'!AR11/'Population at Risk'!AR$5","v":0.22469323661733787},{"$f":"'Population at Risk'!AS11/'Population at Risk'!AS$5","v":0.10103589717726401},{"$f":"'Population at Risk'!AT11/'Population at Risk'!AT$5","v":0},{"$f":"'Population at Risk'!AU11/'Population at Risk'!AU$5","v":0},{"$f":"'Population at Risk'!BB11/'Population at Risk'!BB$5","v":0.20047659679063504},{"$f":"'Population at Risk'!P11/'Population at Risk'!P$5","v":0.57117785393772269},{"$f":"'Population at Risk'!AV11/'Population at Risk'!AV$5","v":0.24139543880508965},{"$f":"'Population at Risk'!AW11/'Population at Risk'!AW$5","v":0.16271699604738366},{"$f":"'Population at Risk'!Q11/'Population at Risk'!Q$5","v":0.18343044226142907},9]
["SIMD Q1 (most deprived)","16+ Females",{"$f":"'Population at Risk'!R12/'Population at Risk'!R$5","v":1.8810693857405081E-2},{"$f":"'Population at Risk'!AX12/'Population at Risk'!AX$5","v":3.9294730934803797E-2},{"$f":"'Population at Risk'!S12/'Population at Risk'!S$5","v":4.0351888506228832E-2},{"$f":"'Population at Risk'!T12/'Population at Risk'!T$5","v":3.8910102483163317E-2},{"$f":"'Population at Risk'!U12/'Population at Risk'!U$5","v":0},{"$f":"'Population at Risk'!D12/'Population at Risk'!D$5","v":1.478365675061342E-2},{"$f":"'Population at Risk'!E12/'Population at Risk'!E$5","v":5.86082513034911E-3},{"$f":"'Population at Risk'!BC12/'Population at Risk'!BC$5","v":0},{"$f":"'Population at Risk'!V12/'Population at Risk'!V$5","v":4.592386244949638E-2},{"$f":"'Population at Risk'!F12/'Population at Risk'!F$5","v":1.886144132626727E-2},{"$f":"'Population at Risk'!W12/'Population at Risk'!W$5","v":5.7191022015014949E-2},{"$f":"'Population at Risk'!X12/'Population at Risk'!X$5","v":5.8223229769639256E-2},{"$f":"'Population at Risk'!Y12/'Population at Risk'!Y$5","v":4.3009230926330425E-2},{"$f":"'Population at Risk'!Z12/'Population at Risk'!Z$5","v":0.15311146971595041},{"$f":"'Population at Risk'!AA12/'Population at Risk'!AA$5","v":0.10473533615795022},{"$f":"'Population at Risk'!AB12/'Population at Risk'!AB$5","v":1.2972011704274724E-2},{"$f":"'Population at Risk'!AY12/'Population at Risk'!AY$5","v":5.490212432633701E-2},{"$f":"'Population at Risk'!AC12/'Population at Risk'!AC$5","v":0.11252170946082592},{"$f":"'Population at Risk'!AD12/'Population at Risk'!AD$5","v":2.1432580774315646E-2},{"$f":"'Population at Risk'!AE12/'Population at Risk'!AE$5","v":1.8592145270909379E-2},{"$f":"'Population at Risk'!G12/'Population at Risk'!G$5","v":2.1723162513132346E-2},{"$f":"'Population at Risk'!AF12/'Population at Risk'!AF$5","v":0.13860051541144774},{"$f":"'Population at Risk'!H12/'Population at Risk'!H$5","v":8.91623329845634E-2},{"$f":"'Population at Risk'!AG12/'Population at Risk'!AG$5","v":2.0570793524804218E-2},{"$f":"'Population at Risk'!AZ12/'Population at Risk'!AZ$5","v":5.3084883723726259E-2},{"$f":"'Population at Risk'!I12/'Population at Risk'!I$5","v":1.4443548007471448E-2},{"$f":"'Population at Risk'!J12/'Population at Risk'!J$5","v":5.127408779043538E-2},{"$f":"'Population at Risk'!K12/'Population at Risk'!K$5","v":6.3296834351454223E-2},{"$f":"'Population at Risk'!AH12/'Population at Risk'!AH$5","v":8.8387898172521656E-2},{"$f":"'Population at Risk'!AI12/'Population at Risk'!AI$5","v":3.7066368661934933E-2},{"$f":"'Population at Risk'!BA12/'Population at Risk'!BA$5","v":0.13035945533360938},{"$f":"'Population at Risk'!L12/'Population at Risk'!L$5","v":2.386082007085424E-2},{"$f":"'Population at Risk'!M12/'Population at Risk'!M$5","v":2.3420770050957003E-2},{"$f":"'Population at Risk'!AJ12/'Population at Risk'!AJ$5","v":3.1238848661578788E-2},{"$f":"'Population at Risk'!AK12/'Population at Risk'!AK$5","v":2.527782489000885E-3},{"$f":"'Population at Risk'!AL12/'Population at Risk'!AL$5","v":0.1241377787206584},{"$f":"'Population at Risk'!AM12/'Population at Risk'!AM$5","v":0.10802748155790315},{"$f":"'Population at Risk'!N12/'Population at Risk'!N$5","v":0.12408813372087571},{"$f":"'Population at Risk'!AN12/'Population at Risk'!AN$5","v":0},{"$f":"'Population at Risk'!AO12/'Population at Risk'!AO$5","v":0},{"$f":"'Population at Risk'!AP12/'Population at Risk'!AP$5","v":1.5556629397199418E-2},{"$f":"'Population at Risk'!C12/'Population at Risk'!C$5","v":2.5019996560771033E-2},{"$f":"'Population at Risk'!AQ12/'Population at Risk'!AQ$5","v":9.7073059188323652E-2},{"$f":"'Population at Risk'!O12/'Population at Risk'!O$5","v":7.9287112295965981E-2},{"$f":"'Population at Risk'!AR12/'Population at Risk'!AR$5","v":5.9961595520720938E-2},{"$f":"'Population at Risk'!AS12/'Population at Risk'!AS$5","v":1.4443548007471448E-2},{"$f":"'Population at Risk'!AT12/'Population at Risk'!AT$5","v":0},{"$f":"'Population at Risk'!AU12/'Population at Risk'!AU$5","v":0},{"$f":"'Population at Risk'!BB12/'Population at Risk'!BB$5","v":4.6047990410969637E-2},{"$f":"'Population at Risk'!P12/'Population at Risk'!P$5","v":1.3106815173622223E-2},{"$f":"'Population at Risk'!AV12/'Population at Risk'!AV$5","v":5.4969677256280526E-2},{"$f":"'Population at Risk'!AW12/'Population at Risk'!AW$5","v":7.0041905517917377E-2},{"$f":"'Population at Risk'!Q12/'Population at Risk'!Q$5","v":1.0648931260673128E-2},10]
["SIMD Q2",null,{"$f":"'Population at Risk'!R13/'Population at Risk'!R$5","v":3.3345509462754108E-2},{"$f":"'Population at Risk'!AX13/'Population at Risk'!AX$5","v":5.837727888032359E-2},{"$f":"'Population at Risk'!S13/'Population at Risk'!S$5","v":7.8050800883860003E-2},{"$f":"'Population at Risk'!T13/'Population at Risk'!T$5","v":5.8405676066399112E-2},{"$f":"'Population at Risk'!U13/'Population at Risk'!U$5","v":7.1763636954187665E-2},{"$f":"'Population at Risk'!D13/'Population at Risk'!D$5","v":5.4309042133503647E-2},{"$f":"'Population at Risk'!E13/'Population at Risk'!E$5","v":2.8161330731701028E-2},{"$f":"'Population at Risk'!BC13/'Population at Risk'!BC$5","v":6.201173037778443E-2},{"$f":"'Population at Risk'!V13/'Population at Risk'!V$5","v":0.11949357717128134},{"$f":"'Population at Risk'!F13/'Population at Risk'!F$5","v":5.7983180330749159E-2},{"$f":"'Population at Risk'!W13/'Population at Risk'!W$5","v":7.6756825298487777E-2},{"$f":"'Population at Risk'!X13/'Population at Risk'!X$5","v":7.8142164946249967E-2},{"$f":"'Population at Risk'!Y13/'Population at Risk'!Y$5","v":8.6302782006960385E-2},{"$f":"'Population at Risk'!Z13/'Population at Risk'!Z$5","v":7.7740680686999575E-2},{"$f":"'Population at Risk'!AA13/'Population at Risk'!AA$5","v":8.9916477278278811E-2},{"$f":"'Population at Risk'!AB13/'Population at Risk'!AB$5","v":5.5939112250163701E-2},{"$f":"'Population at Risk'!AY13/'Population at Risk'!AY$5","v":7.0769853174453085E-2},{"$f":"'Population at Risk'!AC13/'Population at Risk'!AC$5","v":7.3130166120483439E-2},{"$f":"'Population at Risk'!AD13/'Population at Risk'!AD$5","v":7.1430374982244568E-2},{"$f":"'Population at Risk'!AE13/'Population at Risk'!AE$5","v":6.4631444923423431E-2},{"$f":"'Population at Risk'!G13/'Population at Risk'!G$5","v":6.4241638658832798E-2},{"$f":"'Population at Risk'!AF13/'Population at Risk'!AF$5","v":5.6828870281106392E-2},{"$f":"'Population at Risk'!H13/'Population at Risk'!H$5","v":9.1425177859679185E-2},{"$f":"'Population at Risk'!AG13/'Population at Risk'!AG$5","v":7.1509774120029207E-2},{"$f":"'Population at Risk'!AZ13/'Population at Risk'!AZ$5","v":6.5563739227461504E-2},{"$f":"'Population at Risk'!I13/'Population at Risk'!I$5","v":5.3374781823640062E-2},{"$f":"'Population at Risk'!J13/'Population at Risk'!J$5","v":7.5370962575483105E-2},{"$f":"'Population at Risk'!K13/'Population at Risk'!K$5","v":9.2003727575889205E-2},{"$f":"'Population at Risk'!AH13/'Population at Risk'!AH$5","v":0.1219691293871973},{"$f":"'Population at Risk'!AI13/'Population at Risk'!AI$5","v":8.2241996120208938E-2},{"$f":"'Population at Risk'!BA13/'Population at Risk'!BA$5","v":0.12771849520485173},{"$f":"'Population at Risk'!L13/'Population at Risk'!L$5","v":0.10039436611759056},{"$f":"'Population at Risk'!M13/'Population at Risk'!M$5","v":9.8542856292009165E-2},{"$f":"'Population at Risk'!AJ13/'Population at Risk'!AJ$5","v":0.14806271368689453},{"$f":"'Population at Risk'!AK13/'Population at Risk'!AK$5","v":5.8067839740020361E-2},{"$f":"'Population at Risk'!AL13/'Population at Risk'!AL$5","v":7.9737092562457437E-2},{"$f":"'Population at Risk'!AM13/'Population at Risk'!AM$5","v":0.12860636252924984},{"$f":"'Population at Risk'!N13/'Population at Risk'!N$5","v":9.1876047422343773E-2},{"$f":"'Population at Risk'!AN13/'Population at Risk'!AN$5","v":4.8074451954506561E-2},{"$f":"'Population at Risk'!AO13/'Population at Risk'!AO$5","v":4.8074451954506561E-2},{"$f":"'Population at Risk'!AP13/'Population at Risk'!AP$5","v":4.1133136186416813E-2},{"$f":"'Population at Risk'!C13/'Population at Risk'!C$5","v":8.4227346391658117E-2},{"$f":"'Population at Risk'!AQ13/'Population at Risk'!AQ$5","v":8.3652558609900049E-2},{"$f":"'Population at Risk'!O13/'Population at Risk'!O$5","v":8.6412202762355159E-2},{"$f":"'Population at Risk'!AR13/'Population at Risk'!AR$5","v":7.9459452654032953E-2},{"$f":"'Population at Risk'!AS13/'Population at Risk'!AS$5","v":5.3374781823640062E-2},{"$f":"'Population at Risk'!AT13/'Population at Risk'!AT$5","v":1.032353675230608E-2},{"$f":"'Population at Risk'!AU13/'Population at Risk'!AU$5","v":1.032353675230608E-2},{"$f":"'Population at Risk'!BB13/'Population at Risk'!BB$5","v":0.10013549298050625},{"$f":"'Population at Risk'!P13/'Population at Risk'!P$5","v":5.8562804059929939E-2},{"$f":"'Population at Risk'!AV13/'Population at Risk'!AV$5","v":0.10893174910228276},{"$f":"'Population at Risk'!AW13/'Population at Risk'!AW$5","v":0.1182905592682568},{"$f":"'Population at Risk'!Q13/'Population at Risk'!Q$5","v":0.10814051700888558},11]
["SIMD Q3",null,{"$f":"'Population at Risk'!R14/'Population at Risk'!R$5","v":4.5859182780931394E-2},{"$f":"'Population at Risk'!AX14/'Population at Risk'!AX$5","v":7.5016551825169378E-2},{"$f":"'Population at Risk'!S14/'Population at Risk'!S$5","v":9.3384080518957829E-2},{"$f":"'Population at Risk'!T14/'Population at Risk'!T$5","v":7.0718769825685576E-2},{"$f":"'Population at Risk'!U14/'Population at Risk'!U$5","v":0.25665735945067858},{"$f":"'Population at Risk'!D14/'Population at Risk'!D$5","v":8.0824806263973301E-2},{"$f":"'Population at Risk'!E14/'Population at Risk'!E$5","v":8.9265099848375898E-2},{"$f":"'Population at Risk'!BC14/'Population at Risk'!BC$5","v":0.22178038417826915},{"$f":"'Population at Risk'!V14/'Population at Risk'!V$5","v":9.2408011798267575E-2},{"$f":"'Population at Risk'!F14/'Population at Risk'!F$5","v":0.13249101928880319},{"$f":"'Population at Risk'!W14/'Population at Risk'!W$5","v":9.9331938105464868E-2},{"$f":"'Population at Risk'!X14/'Population at Risk'!X$5","v":0.10112472293745133},{"$f":"'Population at Risk'!Y14/'Population at Risk'!Y$5","v":7.6568314095055712E-2},{"$f":"'Population at Risk'!Z14/'Population at Risk'!Z$5","v":7.572849954945915E-2},{"$f":"'Population at Risk'!AA14/'Population at Risk'!AA$5","v":8.0620971997085372E-2},{"$f":"'Population at Risk'!AB14/'Population at Risk'!AB$5","v":8.956002565037155E-2},{"$f":"'Population at Risk'!AY14/'Population at Risk'!AY$5","v":0.10299862787985818},{"$f":"'Population at Risk'!AC14/'Population at Risk'!AC$5","v":6.9547167550347566E-2},{"$f":"'Population at Risk'!AD14/'Population at Risk'!AD$5","v":0.16036575210167597},{"$f":"'Population at Risk'!AE14/'Population at Risk'!AE$5","v":0.12958961293600996},{"$f":"'Population at Risk'!G14/'Population at Risk'!G$5","v":0.19165965518020722},{"$f":"'Population at Risk'!AF14/'Population at Risk'!AF$5","v":8.0598427197987904E-2},{"$f":"'Population at Risk'!H14/'Population at Risk'!H$5","v":7.8121768486776988E-2},{"$f":"'Population at Risk'!AG14/'Population at Risk'!AG$5","v":0.14338104246834829},{"$f":"'Population at Risk'!AZ14/'Population at Risk'!AZ$5","v":0.10709692517403939},{"$f":"'Population at Risk'!I14/'Population at Risk'!I$5","v":0.13602010486445559},{"$f":"'Population at Risk'!J14/'Population at Risk'!J$5","v":8.0563451906808331E-2},{"$f":"'Population at Risk'!K14/'Population at Risk'!K$5","v":7.7018607254964871E-2},{"$f":"'Population at Risk'!AH14/'Population at Risk'!AH$5","v":0.10155060466294097},{"$f":"'Population at Risk'!AI14/'Population at Risk'!AI$5","v":8.4787284257913625E-2},{"$f":"'Population at Risk'!BA14/'Population at Risk'!BA$5","v":7.8045771681861859E-2},{"$f":"'Population at Risk'!L14/'Population at Risk'!L$5","v":0.16120263668358509},{"$f":"'Population at Risk'!M14/'Population at Risk'!M$5","v":0.15822967836658461},{"$f":"'Population at Risk'!AJ14/'Population at Risk'!AJ$5","v":0.11511658306442966},{"$f":"'Population at Risk'!AK14/'Population at Risk'!AK$5","v":0.12356630004136522},{"$f":"'Population at Risk'!AL14/'Population at Risk'!AL$5","v":6.6925602890557295E-2},{"$f":"'Population at Risk'!AM14/'Population at Risk'!AM$5","v":0.10044462018289325},{"$f":"'Population at Risk'!N14/'Population at Risk'!N$5","v":6.742308959819851E-2},{"$f":"'Population at Risk'!AN14/'Population at Risk'!AN$5","v":0.13011921556261799},{"$f":"'Population at Risk'!AO14/'Population at Risk'!AO$5","v":0.13011921556261799},{"$f":"'Population at Risk'!AP14/'Population at Risk'!AP$5","v":0.1042250597326411},{"$f":"'Population at Risk'!C14/'Population at Risk'!C$5","v":7.0464210003048117E-2},{"$f":"'Population at Risk'!AQ14/'Population at Risk'!AQ$5","v":9.6670612253606431E-2},{"$f":"'Population at Risk'!O14/'Population at Risk'!O$5","v":6.6253196784836016E-2},{"$f":"'Population at Risk'!AR14/'Population at Risk'!AR$5","v":9.4773723929971271E-2},{"$f":"'Population at Risk'!AS14/'Population at Risk'!AS$5","v":0.13602010486445559},{"$f":"'Population at Risk'!AT14/'Population at Risk'!AT$5","v":0.12732415039221878},{"$f":"'Population at Risk'!AU14/'Population at Risk'!AU$5","v":0.12732415039221878},{"$f":"'Population at Risk'!BB14/'Population at Risk'!BB$5","v":9.6723429463694999E-2},{"$f":"'Population at Risk'!P14/'Population at Risk'!P$5","v":2.6957950683461025E-2},{"$f":"'Population at Risk'!AV14/'Population at Risk'!AV$5","v":0.10476056474215252},{"$f":"'Population at Risk'!AW14/'Population at Risk'!AW$5","v":0.10550029667543578},{"$f":"'Population at Risk'!Q14/'Population at Risk'!Q$5","v":9.9278564761328805E-2},12]
["SIMD Q4",null,{"$f":"'Population at Risk'!R15/'Population at Risk'!R$5","v":6.6309035065047608E-2},{"$f":"'Population at Risk'!AX15/'Population at Risk'!AX$5","v":0.12787266632666386},{"$f":"'Population at Risk'!S15/'Population at Risk'!S$5","v":8.9723835669622692E-2},{"$f":"'Population at Risk'!T15/'Population at Risk'!T$5","v":7.0270012844916796E-2},{"$f":"'Population at Risk'!U15/'Population at Risk'!U$5","v":2.2744144359067575E-2},{"$f":"'Population at Risk'!D15/'Population at Risk'!D$5","v":0.12567999553170001},{"$f":"'Population at Risk'!E15/'Population at Risk'!E$5","v":0.16575319279693376},{"$f":"'Population at Risk'!BC15/'Population at Risk'!BC$5","v":1.9653459712030426E-2},{"$f":"'Population at Risk'!V15/'Population at Risk'!V$5","v":9.7107768947575779E-2},{"$f":"'Population at Risk'!F15/'Population at Risk'!F$5","v":0.10614489351710121},{"$f":"'Population at Risk'!W15/'Population at Risk'!W$5","v":8.1500567180869038E-2},{"$f":"'Population at Risk'!X15/'Population at Risk'!X$5","v":8.2971523888519513E-2},{"$f":"'Population at Risk'!Y15/'Population at Risk'!Y$5","v":9.3094701057559556E-2},{"$f":"'Population at Risk'!Z15/'Population at Risk'!Z$5","v":5.8803783840289829E-2},{"$f":"'Population at Risk'!AA15/'Population at Risk'!AA$5","v":7.7266607969925932E-2},{"$f":"'Population at Risk'!AB15/'Population at Risk'!AB$5","v":0.13611217997658659},{"$f":"'Population at Risk'!AY15/'Population at Risk'!AY$5","v":0.11153926432480014},{"$f":"'Population at Risk'!AC15/'Population at Risk'!AC$5","v":6.9254290943320529E-2},{"$f":"'Population at Risk'!AD15/'Population at Risk'!AD$5","v":0.14895032099696004},{"$f":"'Population at Risk'!AE15/'Population at Risk'!AE$5","v":0.13927352623554135},{"$f":"'Population at Risk'!G15/'Population at Risk'!G$5","v":0.1201977509964705},{"$f":"'Population at Risk'!AF15/'Population at Risk'!AF$5","v":9.5733362356930696E-2},{"$f":"'Population at Risk'!H15/'Population at Risk'!H$5","v":6.9029942393959959E-2},{"$f":"'Population at Risk'!AG15/'Population at Risk'!AG$5","v":0.15409555540346706},{"$f":"'Population at Risk'!AZ15/'Population at Risk'!AZ$5","v":0.14056119512352816},{"$f":"'Population at Risk'!I15/'Population at Risk'!I$5","v":0.1537336678374335},{"$f":"'Population at Risk'!J15/'Population at Risk'!J$5","v":0.11329455465000905},{"$f":"'Population at Risk'!K15/'Population at Risk'!K$5","v":7.0489926262661609E-2},{"$f":"'Population at Risk'!AH15/'Population at Risk'!AH$5","v":9.2218669047677213E-2},{"$f":"'Population at Risk'!AI15/'Population at Risk'!AI$5","v":8.3981501516795384E-2},{"$f":"'Population at Risk'!BA15/'Population at Risk'!BA$5","v":6.9851953455642352E-2},{"$f":"'Population at Risk'!L15/'Population at Risk'!L$5","v":8.3466031555852832E-2},{"$f":"'Population at Risk'!M15/'Population at Risk'!M$5","v":8.1926720302600425E-2},{"$f":"'Population at Risk'!AJ15/'Population at Risk'!AJ$5","v":7.7222251043675694E-2},{"$f":"'Population at Risk'!AK15/'Population at Risk'!AK$5","v":0.17359051123086605},{"$f":"'Population at Risk'!AL15/'Population at Risk'!AL$5","v":8.0226601506313472E-2},{"$f":"'Population at Risk'!AM15/'Population at Risk'!AM$5","v":7.5572180185719318E-2},{"$f":"'Population at Risk'!N15/'Population at Risk'!N$5","v":9.3631949535872394E-2},{"$f":"'Population at Risk'!AN15/'Population at Risk'!AN$5","v":0.21018018808554731},{"$f":"'Population at Risk'!AO15/'Population at Risk'!AO$5","v":0.21018018808554731},{"$f":"'Population at Risk'!AP15/'Population at Risk'!AP$5","v":0.18953502824563934},{"$f":"'Population at Risk'!C15/'Population at Risk'!C$5","v":7.8334501615735783E-2},{"$f":"'Population at Risk'!AQ15/'Population at Risk'!AQ$5","v":9.9232454582066074E-2},{"$f":"'Population at Risk'!O15/'Population at Risk'!O$5","v":5.5472818483249989E-2},{"$f":"'Population at Risk'!AR15/'Population at Risk'!AR$5","v":9.731474866524796E-2},{"$f":"'Population at Risk'!AS15/'Population at Risk'!AS$5","v":0.1537336678374335},{"$f":"'Population at Risk'!AT15/'Population at Risk'!AT$5","v":0.264860022774276},{"$f":"'Population at Risk'!AU15/'Population at Risk'!AU$5","v":0.264860022774276},{"$f":"'Population at Risk'!BB15/'Population at Risk'!BB$5","v":8.0513814766679334E-2},{"$f":"'Population at Risk'!P15/'Population at Risk'!P$5","v":8.0691151074562026E-2},{"$f":"'Population at Risk'!AV15/'Population at Risk'!AV$5","v":7.0329528195301638E-2},{"$f":"'Population at Risk'!AW15/'Population at Risk'!AW$5","v":0.11234461085836368},{"$f":"'Population at Risk'!Q15/'Population at Risk'!Q$5","v":0.15481875609169196},13]
["SIMD Q5 (least deprived)",null,{"$f":"'Population at Risk'!R16/'Population at Risk'!R$5","v":0.29107163469790243},{"$f":"'Population at Risk'!AX16/'Population at Risk'!AX$5","v":0.1487187250334239},{"$f":"'Population at Risk'!S16/'Population at Risk'!S$5","v":0.13860479370565595},{"$f":"'Population at Risk'!T16/'Population at Risk'!T$5","v":0.20861795387674789},{"$f":"'Population at Risk'!U16/'Population at Risk'!U$5","v":0},{"$f":"'Population at Risk'!D16/'Population at Risk'!D$5","v":0.18815196612993004},{"$f":"'Population at Risk'!E16/'Population at Risk'!E$5","v":0.17352546597184473},{"$f":"'Population at Risk'!BC16/'Population at Risk'!BC$5","v":0},{"$f":"'Population at Risk'!V16/'Population at Risk'!V$5","v":0.11160691087564878},{"$f":"'Population at Risk'!F16/'Population at Risk'!F$5","v":8.6641884352264567E-2},{"$f":"'Population at Risk'!W16/'Population at Risk'!W$5","v":0.11391908829043546},{"$f":"'Population at Risk'!X16/'Population at Risk'!X$5","v":0.11597514817868589},{"$f":"'Population at Risk'!Y16/'Population at Risk'!Y$5","v":0.10528429327712679},{"$f":"'Population at Risk'!Z16/'Population at Risk'!Z$5","v":5.822343885829679E-2},{"$f":"'Population at Risk'!AA16/'Population at Risk'!AA$5","v":9.4702042147999071E-2},{"$f":"'Population at Risk'!AB16/'Population at Risk'!AB$5","v":0.17411561288407312},{"$f":"'Population at Risk'!AY16/'Population at Risk'!AY$5","v":0.10549859608265826},{"$f":"'Population at Risk'!AC16/'Population at Risk'!AC$5","v":0.10601773081477668},{"$f":"'Population at Risk'!AD16/'Population at Risk'!AD$5","v":5.032853078167205E-2},{"$f":"'Population at Risk'!AE16/'Population at Risk'!AE$5","v":4.6519549431024272E-2},{"$f":"'Population at Risk'!G16/'Population at Risk'!G$5","v":4.2262483510453343E-2},{"$f":"'Population at Risk'!AF16/'Population at Risk'!AF$5","v":7.4757043410164273E-2},{"$f":"'Population at Risk'!H16/'Population at Risk'!H$5","v":7.3148352052487209E-2},{"$f":"'Population at Risk'!AG16/'Population at Risk'!AG$5","v":5.147034041896327E-2},{"$f":"'Population at Risk'!AZ16/'Population at Risk'!AZ$5","v":9.8213430183422282E-2},{"$f":"'Population at Risk'!I16/'Population at Risk'!I$5","v":4.5716417778669236E-2},{"$f":"'Population at Risk'!J16/'Population at Risk'!J$5","v":0.12633363047654392},{"$f":"'Population at Risk'!K16/'Population at Risk'!K$5","v":6.8244350609873314E-2},{"$f":"'Population at Risk'!AH16/'Population at Risk'!AH$5","v":7.1525903580780967E-2},{"$f":"'Population at Risk'!AI16/'Population at Risk'!AI$5","v":0.16257061322697908},{"$f":"'Population at Risk'!BA16/'Population at Risk'!BA$5","v":2.4853697501554934E-2},{"$f":"'Population at Risk'!L16/'Population at Risk'!L$5","v":4.8259684680476644E-2},{"$f":"'Population at Risk'!M16/'Population at Risk'!M$5","v":4.736966182540224E-2},{"$f":"'Population at Risk'!AJ16/'Population at Risk'!AJ$5","v":8.4991237418726232E-2},{"$f":"'Population at Risk'!AK16/'Population at Risk'!AK$5","v":8.5281597296324133E-2},{"$f":"'Population at Risk'!AL16/'Population at Risk'!AL$5","v":5.16759255733793E-2},{"$f":"'Population at Risk'!AM16/'Population at Risk'!AM$5","v":5.7290829804471456E-2},{"$f":"'Population at Risk'!N16/'Population at Risk'!N$5","v":9.4865839244353392E-2},{"$f":"'Population at Risk'!AN16/'Population at Risk'!AN$5","v":3.7399336273971455E-2},{"$f":"'Population at Risk'!AO16/'Population at Risk'!AO$5","v":3.7399336273971455E-2},{"$f":"'Population at Risk'!AP16/'Population at Risk'!AP$5","v":9.741115417857113E-2},{"$f":"'Population at Risk'!C16/'Population at Risk'!C$5","v":0.20375967951078963},{"$f":"'Population at Risk'!AQ16/'Population at Risk'!AQ$5","v":0.11510007517929099},{"$f":"'Population at Risk'!O16/'Population at Risk'!O$5","v":5.3285634863462855E-2},{"$f":"'Population at Risk'!AR16/'Population at Risk'!AR$5","v":0.10863141921269685},{"$f":"'Population at Risk'!AS16/'Population at Risk'!AS$5","v":4.5716417778669236E-2},{"$f":"'Population at Risk'!AT16/'Population at Risk'!AT$5","v":0},{"$f":"'Population at Risk'!AU16/'Population at Risk'!AU$5","v":0},{"$f":"'Population at Risk'!BB16/'Population at Risk'!BB$5","v":9.1207039769749518E-2},{"$f":"'Population at Risk'!P16/'Population at Risk'!P$5","v":0.2618314547901649},{"$f":"'Population at Risk'!AV16/'Population at Risk'!AV$5","v":0.12355404677583763},{"$f":"'Population at Risk'!AW16/'Population at Risk'!AW$5","v":8.8535605083399124E-2},{"$f":"'Population at Risk'!Q16/'Population at Risk'!Q$5","v":9.1649059167104752E-2},14]
["SIMD Q1 (most deprived)","16+ Males",{"$f":"'Population at Risk'!R17/'Population at Risk'!R$5","v":3.142005692185313E-2},{"$f":"'Population at Risk'!AX17/'Population at Risk'!AX$5","v":6.1088052539742928E-2},{"$f":"'Population at Risk'!S17/'Population at Risk'!S$5","v":6.9443491738648805E-2},{"$f":"'Population at Risk'!T17/'Population at Risk'!T$5","v":6.5901092877806197E-2},{"$f":"'Population at Risk'!U17/'Population at Risk'!U$5","v":0},{"$f":"'Population at Risk'!D17/'Population at Risk'!D$5","v":2.3781506148061821E-2},{"$f":"'Population at Risk'!E17/'Population at Risk'!E$5","v":9.8956487552843905E-3},{"$f":"'Population at Risk'!BC17/'Population at Risk'!BC$5","v":0},{"$f":"'Population at Risk'!V17/'Population at Risk'!V$5","v":7.1785017019379241E-2},{"$f":"'Population at Risk'!F17/'Population at Risk'!F$5","v":3.6773178944581188E-2},{"$f":"'Population at Risk'!W17/'Population at Risk'!W$5","v":0.10239397069223023},{"$f":"'Population at Risk'!X17/'Population at Risk'!X$5","v":0.1010072087562762},{"$f":"'Population at Risk'!Y17/'Population at Risk'!Y$5","v":8.4190086818035054E-2},{"$f":"'Population at Risk'!Z17/'Population at Risk'!Z$5","v":0.24871652306100553},{"$f":"'Population at Risk'!AA17/'Population at Risk'!AA$5","v":0.16480123843610997},{"$f":"'Population at Risk'!AB17/'Population at Risk'!AB$5","v":2.0300835938546355E-2},{"$f":"'Population at Risk'!AY17/'Population at Risk'!AY$5","v":8.9135596439389217E-2},{"$f":"'Population at Risk'!AC17/'Population at Risk'!AC$5","v":0.18793048531318743},{"$f":"'Population at Risk'!AD17/'Population at Risk'!AD$5","v":3.3810799973961511E-2},{"$f":"'Population at Risk'!AE17/'Population at Risk'!AE$5","v":3.6439494839319242E-2},{"$f":"'Population at Risk'!G17/'Population at Risk'!G$5","v":3.6262582187230392E-2},{"$f":"'Population at Risk'!AF17/'Population at Risk'!AF$5","v":0.21571761662640179},{"$f":"'Population at Risk'!H17/'Population at Risk'!H$5","v":0.16686288461679344},{"$f":"'Population at Risk'!AG17/'Population at Risk'!AG$5","v":3.3869118673259535E-2},{"$f":"'Population at Risk'!AZ17/'Population at Risk'!AZ$5","v":7.756560466415173E-2},{"$f":"'Population at Risk'!I17/'Population at Risk'!I$5","v":2.9321845134950026E-2},{"$f":"'Population at Risk'!J17/'Population at Risk'!J$5","v":8.2232243941494781E-2},{"$f":"'Population at Risk'!K17/'Population at Risk'!K$5","v":0.13719843138285234},{"$f":"'Population at Risk'!AH17/'Population at Risk'!AH$5","v":0.12656749850700469},{"$f":"'Population at Risk'!AI17/'Population at Risk'!AI$5","v":6.1029434610627487E-2},{"$f":"'Population at Risk'!BA17/'Population at Risk'!BA$5","v":0.20238643665139081},{"$f":"'Population at Risk'!L17/'Population at Risk'!L$5","v":4.2050987490360028E-2},{"$f":"'Population at Risk'!M17/'Population at Risk'!M$5","v":4.2606109226450618E-2},{"$f":"'Population at Risk'!AJ17/'Population at Risk'!AJ$5","v":4.9603602610347367E-2},{"$f":"'Population at Risk'!AK17/'Population at Risk'!AK$5","v":3.8341497740906312E-3},{"$f":"'Population at Risk'!AL17/'Population at Risk'!AL$5","v":0.2222918401291582},{"$f":"'Population at Risk'!AM17/'Population at Risk'!AM$5","v":0.15641333093174362},{"$f":"'Population at Risk'!N17/'Population at Risk'!N$5","v":0.1703801385225058},{"$f":"'Population at Risk'!AN17/'Population at Risk'!AN$5","v":0},{"$f":"'Population at Risk'!AO17/'Population at Risk'!AO$5","v":0},{"$f":"'Population at Risk'!AP17/'Population at Risk'!AP$5","v":2.5695144993486727E-2},{"$f":"'Population at Risk'!C17/'Population at Risk'!C$5","v":3.9642929739079236E-2},{"$f":"'Population at Risk'!AQ17/'Population at Risk'!AQ$5","v":0.13271219827172009},{"$f":"'Population at Risk'!O17/'Population at Risk'!O$5","v":0.19010219715888452},{"$f":"'Population at Risk'!AR17/'Population at Risk'!AR$5","v":9.9167193713341234E-2},{"$f":"'Population at Risk'!AS17/'Population at Risk'!AS$5","v":2.9321845134950026E-2},{"$f":"'Population at Risk'!AT17/'Population at Risk'!AT$5","v":0},{"$f":"'Population at Risk'!AU17/'Population at Risk'!AU$5","v":0},{"$f":"'Population at Risk'!BB17/'Population at Risk'!BB$5","v":8.4322973810231419E-2},{"$f":"'Population at Risk'!P17/'Population at Risk'!P$5","v":2.3597508440775905E-2},{"$f":"'Population at Risk'!AV17/'Population at Risk'!AV$5","v":8.5317306804210319E-2},{"$f":"'Population at Risk'!AW17/'Population at Risk'!AW$5","v":9.382813086745237E-2},{"$f":"'Population at Risk'!Q17/'Population at Risk'!Q$5","v":1.6434739967436173E-2},15]
["SIMD Q2",null,{"$f":"'Population at Risk'!R18/'Population at Risk'!R$5","v":4.5292192282592715E-2},{"$f":"'Population at Risk'!AX18/'Population at Risk'!AX$5","v":7.7270349632117874E-2},{"$f":"'Population at Risk'!S18/'Population at Risk'!S$5","v":0.10553556623292437},{"$f":"'Population at Risk'!T18/'Population at Risk'!T$5","v":7.9271043531049953E-2},{"$f":"'Population at Risk'!U18/'Population at Risk'!U$5","v":0.14523980475567291},{"$f":"'Population at Risk'!D18/'Population at Risk'!D$5","v":6.8199128516048466E-2},{"$f":"'Population at Risk'!E18/'Population at Risk'!E$5","v":3.6677711034082836E-2},{"$f":"'Population at Risk'!BC18/'Population at Risk'!BC$5","v":0.15592169155972474},{"$f":"'Population at Risk'!V18/'Population at Risk'!V$5","v":0.14243566320812065},{"$f":"'Population at Risk'!F18/'Population at Risk'!F$5","v":9.1721520671772833E-2},{"$f":"'Population at Risk'!W18/'Population at Risk'!W$5","v":0.1067582486592599},{"$f":"'Population at Risk'!X18/'Population at Risk'!X$5","v":0.10531237958524213},{"$f":"'Population at Risk'!Y18/'Population at Risk'!Y$5","v":0.13318249138353949},{"$f":"'Population at Risk'!Z18/'Population at Risk'!Z$5","v":0.1044469898815352},{"$f":"'Population at Risk'!AA18/'Population at Risk'!AA$5","v":0.11253592632241854},{"$f":"'Population at Risk'!AB18/'Population at Risk'!AB$5","v":6.8249754333166684E-2},{"$f":"'Population at Risk'!AY18/'Population at Risk'!AY$5","v":9.2923632116118565E-2},{"$f":"'Population at Risk'!AC18/'Population at Risk'!AC$5","v":9.8376714265570972E-2},{"$f":"'Population at Risk'!AD18/'Population at Risk'!AD$5","v":8.9084519794384254E-2},{"$f":"'Population at Risk'!AE18/'Population at Risk'!AE$5","v":0.10146767121380863},{"$f":"'Population at Risk'!G18/'Population at Risk'!G$5","v":8.2411967637380582E-2},{"$f":"'Population at Risk'!AF18/'Population at Risk'!AF$5","v":6.699443243594734E-2},{"$f":"'Population at Risk'!H18/'Population at Risk'!H$5","v":0.13791698449683543},{"$f":"'Population at Risk'!AG18/'Population at Risk'!AG$5","v":9.4310324909651438E-2},{"$f":"'Population at Risk'!AZ18/'Population at Risk'!AZ$5","v":8.0851555397145267E-2},{"$f":"'Population at Risk'!I18/'Population at Risk'!I$5","v":8.7914033610394515E-2},{"$f":"'Population at Risk'!J18/'Population at Risk'!J$5","v":9.7556915577896336E-2},{"$f":"'Population at Risk'!K18/'Population at Risk'!K$5","v":0.15267673576688517},{"$f":"'Population at Risk'!AH18/'Population at Risk'!AH$5","v":0.13560259798949201},{"$f":"'Population at Risk'!AI18/'Population at Risk'!AI$5","v":0.10699964055177126},{"$f":"'Population at Risk'!BA18/'Population at Risk'!BA$5","v":0.164881343966648},{"$f":"'Population at Risk'!L18/'Population at Risk'!L$5","v":0.14774035831935242},{"$f":"'Population at Risk'!M18/'Population at Risk'!M$5","v":0.14969070215419544},{"$f":"'Population at Risk'!AJ18/'Population at Risk'!AJ$5","v":0.17970946799164561},{"$f":"'Population at Risk'!AK18/'Population at Risk'!AK$5","v":7.5185100829422466E-2},{"$f":"'Population at Risk'!AL18/'Population at Risk'!AL$5","v":0.11335927946621484},{"$f":"'Population at Risk'!AM18/'Population at Risk'!AM$5","v":0.14163171774054598},{"$f":"'Population at Risk'!N18/'Population at Risk'!N$5","v":0.10387193839922401},{"$f":"'Population at Risk'!AN18/'Population at Risk'!AN$5","v":7.461104937940366E-2},{"$f":"'Population at Risk'!AO18/'Population at Risk'!AO$5","v":7.461104937940366E-2},{"$f":"'Population at Risk'!AP18/'Population at Risk'!AP$5","v":5.9441015317090867E-2},{"$f":"'Population at Risk'!C18/'Population at Risk'!C$5","v":0.10429218373240726},{"$f":"'Population at Risk'!AQ18/'Population at Risk'!AQ$5","v":8.6672167483208745E-2},{"$f":"'Population at Risk'!O18/'Population at Risk'!O$5","v":0.16620136508761901},{"$f":"'Population at Risk'!AR18/'Population at Risk'!AR$5","v":0.10517639917999591},{"$f":"'Population at Risk'!AS18/'Population at Risk'!AS$5","v":8.7914033610394515E-2},{"$f":"'Population at Risk'!AT18/'Population at Risk'!AT$5","v":1.9545749139372445E-2},{"$f":"'Population at Risk'!AU18/'Population at Risk'!AU$5","v":1.9545749139372445E-2},{"$f":"'Population at Risk'!BB18/'Population at Risk'!BB$5","v":0.14644146754971313},{"$f":"'Population at Risk'!P18/'Population at Risk'!P$5","v":8.3215257344684962E-2},{"$f":"'Population at Risk'!AV18/'Population at Risk'!AV$5","v":0.1365316521497838},{"$f":"'Population at Risk'!AW18/'Population at Risk'!AW$5","v":0.12617359431307323},{"$f":"'Population at Risk'!Q18/'Population at Risk'!Q$5","v":0.1318783712133704},16]
["SIMD Q3",null,{"$f":"'Population at Risk'!R19/'Population at Risk'!R$5","v":6.0961756775224772E-2},{"$f":"'Population at Risk'!AX19/'Population at Risk'!AX$5","v":9.3613905244025103E-2},{"$f":"'Population at Risk'!S19/'Population at Risk'!S$5","v":0.11889790966898273},{"$f":"'Population at Risk'!T19/'Population at Risk'!T$5","v":8.7813060221094946E-2},{"$f":"'Population at Risk'!U19/'Population at Risk'!U$5","v":0.46596763311301131},{"$f":"'Population at Risk'!D19/'Population at Risk'!D$5","v":9.948570947334047E-2},{"$f":"'Population at Risk'!E19/'Population at Risk'!E$5","v":0.10873693984232352},{"$f":"'Population at Risk'!BC19/'Population at Risk'!BC$5","v":0.50023794571525104},{"$f":"'Population at Risk'!V19/'Population at Risk'!V$5","v":0.10278922638383263},{"$f":"'Population at Risk'!F19/'Population at Risk'!F$5","v":0.20160517644782752},{"$f":"'Population at Risk'!W19/'Population at Risk'!W$5","v":0.12853293855502487},{"$f":"'Population at Risk'!X19/'Population at Risk'!X$5","v":0.12679216626638903},{"$f":"'Population at Risk'!Y19/'Population at Risk'!Y$5","v":0.11097249459838232},{"$f":"'Population at Risk'!Z19/'Population at Risk'!Z$5","v":8.9720568640144799E-2},{"$f":"'Population at Risk'!AA19/'Population at Risk'!AA$5","v":9.1967206140920299E-2},{"$f":"'Population at Risk'!AB19/'Population at Risk'!AB$5","v":0.1062192872058913},{"$f":"'Population at Risk'!AY19/'Population at Risk'!AY$5","v":0.12668930694965777},{"$f":"'Population at Risk'!AC19/'Population at Risk'!AC$5","v":8.4852418258419687E-2},{"$f":"'Population at Risk'!AD19/'Population at Risk'!AD$5","v":0.19232430318332092},{"$f":"'Population at Risk'!AE19/'Population at Risk'!AE$5","v":0.19770737332731578},{"$f":"'Population at Risk'!G19/'Population at Risk'!G$5","v":0.22929996618033768},{"$f":"'Population at Risk'!AF19/'Population at Risk'!AF$5","v":9.1954991113313719E-2},{"$f":"'Population at Risk'!H19/'Population at Risk'!H$5","v":0.11127862219636958},{"$f":"'Population at Risk'!AG19/'Population at Risk'!AG$5","v":0.18376145221903359},{"$f":"'Population at Risk'!AZ19/'Population at Risk'!AZ$5","v":0.12404940320121795},{"$f":"'Population at Risk'!I19/'Population at Risk'!I$5","v":0.20148160092741937},{"$f":"'Population at Risk'!J19/'Population at Risk'!J$5","v":9.9190938275250121E-2},{"$f":"'Population at Risk'!K19/'Population at Risk'!K$5","v":0.12358671779981827},{"$f":"'Population at Risk'!AH19/'Population at Risk'!AH$5","v":0.10350156706772694},{"$f":"'Population at Risk'!AI19/'Population at Risk'!AI$5","v":0.10439702590053307},{"$f":"'Population at Risk'!BA19/'Population at Risk'!BA$5","v":9.3720011302169837E-2},{"$f":"'Population at Risk'!L19/'Population at Risk'!L$5","v":0.22465705462341184},{"$f":"'Population at Risk'!M19/'Population at Risk'!M$5","v":0.22762278793029636},{"$f":"'Population at Risk'!AJ19/'Population at Risk'!AJ$5","v":0.13473251364221348},{"$f":"'Population at Risk'!AK19/'Population at Risk'!AK$5","v":0.1522876200135059},{"$f":"'Population at Risk'!AL19/'Population at Risk'!AL$5","v":9.1607415539588816E-2},{"$f":"'Population at Risk'!AM19/'Population at Risk'!AM$5","v":0.10154271259629578},{"$f":"'Population at Risk'!N19/'Population at Risk'!N$5","v":7.151237036980776E-2},{"$f":"'Population at Risk'!AN19/'Population at Risk'!AN$5","v":0.17864540839567042},{"$f":"'Population at Risk'!AO19/'Population at Risk'!AO$5","v":0.17864540839567042},{"$f":"'Population at Risk'!AP19/'Population at Risk'!AP$5","v":0.13203641380392608},{"$f":"'Population at Risk'!C19/'Population at Risk'!C$5","v":8.9624410520558875E-2},{"$f":"'Population at Risk'!AQ19/'Population at Risk'!AQ$5","v":9.3690648195190948E-2},{"$f":"'Population at Risk'!O19/'Population at Risk'!O$5","v":0.1241131517480961},{"$f":"'Population at Risk'!AR19/'Population at Risk'!AR$5","v":0.11828463785318778},{"$f":"'Population at Risk'!AS19/'Population at Risk'!AS$5","v":0.20148160092741937},{"$f":"'Population at Risk'!AT19/'Population at Risk'!AT$5","v":0.19636587471891695},{"$f":"'Population at Risk'!AU19/'Population at Risk'!AU$5","v":0.19636587471891695},{"$f":"'Population at Risk'!BB19/'Population at Risk'!BB$5","v":0.1370977059408498},{"$f":"'Population at Risk'!P19/'Population at Risk'!P$5","v":3.4601962946079964E-2},{"$f":"'Population at Risk'!AV19/'Population at Risk'!AV$5","v":0.11869015111611361},{"$f":"'Population at Risk'!AW19/'Population at Risk'!AW$5","v":0.10278958613548991},{"$f":"'Population at Risk'!Q19/'Population at Risk'!Q$5","v":0.11988036632561118},17]
["SIMD Q4",null,{"$f":"'Population at Risk'!R20/'Population at Risk'!R$5","v":8.3316316047975139E-2},{"$f":"'Population at Risk'!AX20/'Population at Risk'!AX$5","v":0.1606066459830453},{"$f":"'Population at Risk'!S20/'Population at Risk'!S$5","v":0.11380788758593163},{"$f":"'Population at Risk'!T20/'Population at Risk'!T$5","v":9.0268480246619529E-2},{"$f":"'Population at Risk'!U20/'Population at Risk'!U$5","v":3.7627421367381862E-2},{"$f":"'Population at Risk'!D20/'Population at Risk'!D$5","v":0.14988419466214575},{"$f":"'Population at Risk'!E20/'Population at Risk'!E$5","v":0.20013372682530936},{"$f":"'Population at Risk'!BC20/'Population at Risk'!BC$5","v":4.0394788456940264E-2},{"$f":"'Population at Risk'!V20/'Population at Risk'!V$5","v":0.10944148372720142},{"$f":"'Population at Risk'!F20/'Population at Risk'!F$5","v":0.15912218428761329},{"$f":"'Population at Risk'!W20/'Population at Risk'!W$5","v":0.10715505091264775},{"$f":"'Population at Risk'!X20/'Population at Risk'!X$5","v":0.1057038077891876},{"$f":"'Population at Risk'!Y20/'Population at Risk'!Y$5","v":0.13771590420472318},{"$f":"'Population at Risk'!Z20/'Population at Risk'!Z$5","v":7.14066010900158E-2},{"$f":"'Population at Risk'!AA20/'Population at Risk'!AA$5","v":8.9201839882282086E-2},{"$f":"'Population at Risk'!AB20/'Population at Risk'!AB$5","v":0.15886756876193639},{"$f":"'Population at Risk'!AY20/'Population at Risk'!AY$5","v":0.13737993726219613},{"$f":"'Population at Risk'!AC20/'Population at Risk'!AC$5","v":8.545159142326271E-2},{"$f":"'Population at Risk'!AD20/'Population at Risk'!AD$5","v":0.17621139173040662},{"$f":"'Population at Risk'!AE20/'Population at Risk'!AE$5","v":0.20951041701035988},{"$f":"'Population at Risk'!G20/'Population at Risk'!G$5","v":0.14182400759711519},{"$f":"'Population at Risk'!AF20/'Population at Risk'!AF$5","v":0.10910103996347188},{"$f":"'Population at Risk'!H20/'Population at Risk'!H$5","v":9.6002629082965099E-2},{"$f":"'Population at Risk'!AG20/'Population at Risk'!AG$5","v":0.19473193051379134},{"$f":"'Population at Risk'!AZ20/'Population at Risk'!AZ$5","v":0.16068347734357039},{"$f":"'Population at Risk'!I20/'Population at Risk'!I$5","v":0.22267452061697157},{"$f":"'Population at Risk'!J20/'Population at Risk'!J$5","v":0.14350519969295888},{"$f":"'Population at Risk'!K20/'Population at Risk'!K$5","v":0.12586977081364897},{"$f":"'Population at Risk'!AH20/'Population at Risk'!AH$5","v":9.5216951102249134E-2},{"$f":"'Population at Risk'!AI20/'Population at Risk'!AI$5","v":0.10258955643260791},{"$f":"'Population at Risk'!BA20/'Population at Risk'!BA$5","v":8.3232651733869706E-2},{"$f":"'Population at Risk'!L20/'Population at Risk'!L$5","v":0.11490780390758235},{"$f":"'Population at Risk'!M20/'Population at Risk'!M$5","v":0.1164247199992712},{"$f":"'Population at Risk'!AJ20/'Population at Risk'!AJ$5","v":8.8720615101708769E-2},{"$f":"'Population at Risk'!AK20/'Population at Risk'!AK$5","v":0.22200422471446188},{"$f":"'Population at Risk'!AL20/'Population at Risk'!AL$5","v":0.10890917820610078},{"$f":"'Population at Risk'!AM20/'Population at Risk'!AM$5","v":7.9501778675406434E-2},{"$f":"'Population at Risk'!N20/'Population at Risk'!N$5","v":9.7570300987387046E-2},{"$f":"'Population at Risk'!AN20/'Population at Risk'!AN$5","v":0.27727395636460939},{"$f":"'Population at Risk'!AO20/'Population at Risk'!AO$5","v":0.27727395636460939},{"$f":"'Population at Risk'!AP20/'Population at Risk'!AP$5","v":0.23769543878729976},{"$f":"'Population at Risk'!C20/'Population at Risk'!C$5","v":9.3930164589090384E-2},{"$f":"'Population at Risk'!AQ20/'Population at Risk'!AQ$5","v":9.7897313092174268E-2},{"$f":"'Population at Risk'!O20/'Population at Risk'!O$5","v":9.7808470338245274E-2},{"$f":"'Population at Risk'!AR20/'Population at Risk'!AR$5","v":0.12116901186616412},{"$f":"'Population at Risk'!AS20/'Population at Risk'!AS$5","v":0.22267452061697157},{"$f":"'Population at Risk'!AT20/'Population at Risk'!AT$5","v":0.38158066622290965},{"$f":"'Population at Risk'!AU20/'Population at Risk'!AU$5","v":0.38158066622290965},{"$f":"'Population at Risk'!BB20/'Population at Risk'!BB$5","v":0.10824052828672047},{"$f":"'Population at Risk'!P20/'Population at Risk'!P$5","v":0.1080886963391612},{"$f":"'Population at Risk'!AV20/'Population at Risk'!AV$5","v":7.9073931828785179E-2},{"$f":"'Population at Risk'!AW20/'Population at Risk'!AW$5","v":0.10831432031662705},{"$f":"'Population at Risk'!Q20/'Population at Risk'!Q$5","v":0.17548931110957383},18]
["SIMD Q5 (least deprived)",null,{"$f":"'Population at Risk'!R21/'Population at Risk'!R$5","v":0.32361362210831368},{"$f":"'Population at Risk'!AX21/'Population at Risk'!AX$5","v":0.15814109360068432},{"$f":"'Population at Risk'!S21/'Population at Risk'!S$5","v":0.15219974548918727},{"$f":"'Population at Risk'!T21/'Population at Risk'!T$5","v":0.22982380802651656},{"$f":"'Population at Risk'!U21/'Population at Risk'!U$5","v":0},{"$f":"'Population at Risk'!D21/'Population at Risk'!D$5","v":0.19489999439068306},{"$f":"'Population at Risk'!E21/'Population at Risk'!E$5","v":0.18199005906379534},{"$f":"'Population at Risk'!BC21/'Population at Risk'!BC$5","v":0},{"$f":"'Population at Risk'!V21/'Population at Risk'!V$5","v":0.10700847841919628},{"$f":"'Population at Risk'!F21/'Population at Risk'!F$5","v":0.10865552083301987},{"$f":"'Population at Risk'!W21/'Population at Risk'!W$5","v":0.12646035029056524},{"$f":"'Population at Risk'!X21/'Population at Risk'!X$5","v":0.12474764788235912},{"$f":"'Population at Risk'!Y21/'Population at Risk'!Y$5","v":0.12967970163228698},{"$f":"'Population at Risk'!Z21/'Population at Risk'!Z$5","v":6.21014446763027E-2},{"$f":"'Population at Risk'!AA21/'Population at Risk'!AA$5","v":9.4252353667029595E-2},{"$f":"'Population at Risk'!AB21/'Population at Risk'!AB$5","v":0.17766361129498956},{"$f":"'Population at Risk'!AY21/'Population at Risk'!AY$5","v":0.10816306144453165},{"$f":"'Population at Risk'!AC21/'Population at Risk'!AC$5","v":0.11291772584980499},{"$f":"'Population at Risk'!AD21/'Population at Risk'!AD$5","v":5.6061425681058312E-2},{"$f":"'Population at Risk'!AE21/'Population at Risk'!AE$5","v":5.6268764812288125E-2},{"$f":"'Population at Risk'!G21/'Population at Risk'!G$5","v":7.0116785538839849E-2},{"$f":"'Population at Risk'!AF21/'Population at Risk'!AF$5","v":6.9713701203228173E-2},{"$f":"'Population at Risk'!H21/'Population at Risk'!H$5","v":8.7051305829569658E-2},{"$f":"'Population at Risk'!AG21/'Population at Risk'!AG$5","v":5.2299667748652023E-2},{"$f":"'Population at Risk'!AZ21/'Population at Risk'!AZ$5","v":9.2329785961736993E-2},{"$f":"'Population at Risk'!I21/'Population at Risk'!I$5","v":5.5319479398594773E-2},{"$f":"'Population at Risk'!J21/'Population at Risk'!J$5","v":0.13067801511312019},{"$f":"'Population at Risk'!K21/'Population at Risk'!K$5","v":8.961489818195216E-2},{"$f":"'Population at Risk'!AH21/'Population at Risk'!AH$5","v":6.3459180482409117E-2},{"$f":"'Population at Risk'!AI21/'Population at Risk'!AI$5","v":0.17433657872062833},{"$f":"'Population at Risk'!BA21/'Population at Risk'!BA$5","v":2.4950183168401269E-2},{"$f":"'Population at Risk'!L21/'Population at Risk'!L$5","v":5.3460256550934011E-2},{"$f":"'Population at Risk'!M21/'Population at Risk'!M$5","v":5.4165993852232967E-2},{"$f":"'Population at Risk'!AJ21/'Population at Risk'!AJ$5","v":9.06021667787799E-2},{"$f":"'Population at Risk'!AK21/'Population at Risk'!AK$5","v":0.10365487387094249},{"$f":"'Population at Risk'!AL21/'Population at Risk'!AL$5","v":6.1129285405571498E-2},{"$f":"'Population at Risk'!AM21/'Population at Risk'!AM$5","v":5.0968985795771166E-2},{"$f":"'Population at Risk'!N21/'Population at Risk'!N$5","v":8.478019219943167E-2},{"$f":"'Population at Risk'!AN21/'Population at Risk'!AN$5","v":4.3696393983673136E-2},{"$f":"'Population at Risk'!AO21/'Population at Risk'!AO$5","v":4.3696393983673136E-2},{"$f":"'Population at Risk'!AP21/'Population at Risk'!AP$5","v":9.727097935772859E-2},{"$f":"'Population at Risk'!C21/'Population at Risk'!C$5","v":0.21070457733686171},{"$f":"'Population at Risk'!AQ21/'Population at Risk'!AQ$5","v":9.7298913144518731E-2},{"$f":"'Population at Risk'!O21/'Population at Risk'!O$5","v":8.1063850477284968E-2},{"$f":"'Population at Risk'!AR21/'Population at Risk'!AR$5","v":0.116061817404641},{"$f":"'Population at Risk'!AS21/'Population at Risk'!AS$5","v":5.5319479398594773E-2},{"$f":"'Population at Risk'!AT21/'Population at Risk'!AT$5","v":0},{"$f":"'Population at Risk'!AU21/'Population at Risk'!AU$5","v":0},{"$f":"'Population at Risk'!BB21/'Population at Risk'!BB$5","v":0.10926955702088552},{"$f":"'Population at Risk'!P21/'Population at Risk'!P$5","v":0.30934639914755785},{"$f":"'Population at Risk'!AV21/'Population at Risk'!AV$5","v":0.11784139202925202},{"$f":"'Population at Risk'!AW21/'Population at Risk'!AW$5","v":7.4181390963984517E-2},{"$f":"'Population at Risk'!Q21/'Population at Risk'!Q$5","v":9.1781383094324306E-2},19]
["All quintiles","Female 0-4",{"$f":"'Population at Risk'!R22/'Population at Risk'!R$5","v":0},{"$f":"'Population at Risk'!AX22/'Population at Risk'!AX$5","v":0},{"$f":"'Population at Risk'!S22/'Population at Risk'!S$5","v":0},{"$f":"'Population at Risk'!T22/'Population at Risk'!T$5","v":0},{"$f":"'Population at Risk'!U22/'Population at Risk'!U$5","v":0},{"$f":"'Population at Risk'!D22/'Population at Risk'!D$5","v":0},{"$f":"'Population at Risk'!E22/'Population at Risk'!E$5","v":0},{"$f":"'Population at Risk'!BC22/'Population at Risk'!BC$5","v":0},{"$f":"'Population at Risk'!V22/'Population at Risk'!V$5","v":0},{"$f":"'Population at Risk'!F22/'Population at Risk'!F$5","v":0},{"$f":"'Population at Risk'!W22/'Population at Risk'!W$5","v":0},{"$f":"'Population at Risk'!X22/'Population at Risk'!X$5","v":0},{"$f":"'Population at Risk'!Y22/'Population at Risk'!Y$5","v":0},{"$f":"'Population at Risk'!Z22/'Population at Risk'!Z$5","v":0},{"$f":"'Population at Risk'!AA22/'Population at Risk'!AA$5","v":0},{"$f":"'Population at Risk'!AB22/'Population at Risk'!AB$5","v":0},{"$f":"'Population at Risk'!AY22/'Population at Risk'!AY$5","v":0},{"$f":"'Population at Risk'!AC22/'Population at Risk'!AC$5","v":0},{"$f":"'Population at Risk'!AD22/'Population at Risk'!AD$5","v":0},{"$f":"'Population at Risk'!AE22/'Population at Risk'!AE$5","v":0},{"$f":"'Population at Risk'!G22/'Population at Risk'!G$5","v":0},{"$f":"'Population at Risk'!AF22/'Population at Risk'!AF$5","v":0},{"$f":"'Population at Risk'!H22/'Population at Risk'!H$5","v":0},{"$f":"'Population at Risk'!AG22/'Population at Risk'!AG$5","v":0},{"$f":"'Population at Risk'!AZ22/'Population at Risk'!AZ$5","v":0},{"$f":"'Population at Risk'!I22/'Population at Risk'!I$5","v":0},{"$f":"'Population at Risk'!J22/'Population at Risk'!J$5","v":0},{"$f":"'Population at Risk'!K22/'Population at Risk'!K$5","v":0},{"$f":"'Population at Risk'!AH22/'Population at Risk'!AH$5","v":0},{"$f":"'Population at Risk'!AI22/'Population at Risk'!AI$5","v":0},{"$f":"'Population at Risk'!BA22/'Population at Risk'!BA$5","v":0},{"$f":"'Population at Risk'!L22/'Population at Risk'!L$5","v":0},{"$f":"'Population at Risk'!M22/'Population at Risk'!M$5","v":0},{"$f":"'Population at Risk'!AJ22/'Population at Risk'!AJ$5","v":0},{"$f":"'Population at Risk'!AK22/'Population at Risk'!AK$5","v":0},{"$f":"'Population at Risk'!AL22/'Population at Risk'!AL$5","v":0},{"$f":"'Population at Risk'!AM22/'Population at Risk'!AM$5","v":0},{"$f":"'Population at Risk'!N22/'Population at Risk'!N$5","v":0},{"$f":"'Population at Risk'!AN22/'Population at Risk'!AN$5","v":0},{"$f":"'Population at Risk'!AO22/'Population at Risk'!AO$5","v":0},{"$f":"'Population at Risk'!AP22/'Population at Risk'!AP$5","v":0},{"$f":"'Population at Risk'!C22/'Population at Risk'!C$5","v":0},{"$f":"'Population at Risk'!AQ22/'Population at Risk'!AQ$5","v":0},{"$f":"'Population at Risk'!O22/'Population at Risk'!O$5","v":0},{"$f":"'Population at Risk'!AR22/'Population at Risk'!AR$5","v":0},{"$f":"'Population at Risk'!AS22/'Population at Risk'!AS$5","v":0},{"$f":"'Population at Risk'!AT22/'Population at Risk'!AT$5","v":0},{"$f":"'Population at Risk'!AU22/'Population at Risk'!AU$5","v":0},{"$f":"'Population at Risk'!BB22/'Population at Risk'!BB$5","v":0},{"$f":"'Population at Risk'!P22/'Population at Risk'!P$5","v":0},{"$f":"'Population at Risk'!AV22/'Population at Risk'!AV$5","v":0},{"$f":"'Population at Risk'!AW22/'Population at Risk'!AW$5","v":0},{"$f":"'Population at Risk'!Q22/'Population at Risk'!Q$5","v":0},20]
[null,"Female 5-9",{"$f":"'Population at Risk'!R23/'Population at Risk'!R$5","v":0},{"$f":"'Population at Risk'!AX23/'Population at Risk'!AX$5","v":0},{"$f":"'Population at Risk'!S23/'Population at Risk'!S$5","v":0},{"$f":"'Population at Risk'!T23/'Population at Risk'!T$5","v":0},{"$f":"'Population at Risk'!U23/'Population at Risk'!U$5","v":0},{"$f":"'Population at Risk'!D23/'Population at Risk'!D$5","v":0},{"$f":"'Population at Risk'!E23/'Population at Risk'!E$5","v":0},{"$f":"'Population at Risk'!BC23/'Population at Risk'!BC$5","v":0},{"$f":"'Population at Risk'!V23/'Population at Risk'!V$5","v":0},{"$f":"'Population at Risk'!F23/'Population at Risk'!F$5","v":0},{"$f":"'Population at Risk'!W23/'Population at Risk'!W$5","v":0},{"$f":"'Population at Risk'!X23/'Population at Risk'!X$5","v":0},{"$f":"'Population at Risk'!Y23/'Population at Risk'!Y$5","v":0},{"$f":"'Population at Risk'!Z23/'Population at Risk'!Z$5","v":0},{"$f":"'Population at Risk'!AA23/'Population at Risk'!AA$5","v":0},{"$f":"'Population at Risk'!AB23/'Population at Risk'!AB$5","v":0},{"$f":"'Population at Risk'!AY23/'Population at Risk'!AY$5","v":0},{"$f":"'Population at Risk'!AC23/'Population at Risk'!AC$5","v":0},{"$f":"'Population at Risk'!AD23/'Population at Risk'!AD$5","v":0},{"$f":"'Population at Risk'!AE23/'Population at Risk'!AE$5","v":0},{"$f":"'Population at Risk'!G23/'Population at Risk'!G$5","v":0},{"$f":"'Population at Risk'!AF23/'Population at Risk'!AF$5","v":0},{"$f":"'Population at Risk'!H23/'Population at Risk'!H$5","v":0},{"$f":"'Population at Risk'!AG23/'Population at Risk'!AG$5","v":0},{"$f":"'Population at Risk'!AZ23/'Population at Risk'!AZ$5","v":0},{"$f":"'Population at Risk'!I23/'Population at Risk'!I$5","v":0},{"$f":"'Population at Risk'!J23/'Population at Risk'!J$5","v":0},{"$f":"'Population at Risk'!K23/'Population at Risk'!K$5","v":0},{"$f":"'Population at Risk'!AH23/'Population at Risk'!AH$5","v":0},{"$f":"'Population at Risk'!AI23/'Population at Risk'!AI$5","v":0},{"$f":"'Population at Risk'!BA23/'Population at Risk'!BA$5","v":0},{"$f":"'Population at Risk'!L23/'Population at Risk'!L$5","v":0},{"$f":"'Population at Risk'!M23/'Population at Risk'!M$5","v":0},{"$f":"'Population at Risk'!AJ23/'Population at Risk'!AJ$5","v":0},{"$f":"'Population at Risk'!AK23/'Population at Risk'!AK$5","v":0},{"$f":"'Population at Risk'!AL23/'Population at Risk'!AL$5","v":0},{"$f":"'Population at Risk'!AM23/'Population at Risk'!AM$5","v":0},{"$f":"'Population at Risk'!N23/'Population at Risk'!N$5","v":0},{"$f":"'Population at Risk'!AN23/'Population at Risk'!AN$5","v":0},{"$f":"'Population at Risk'!AO23/'Population at Risk'!AO$5","v":0},{"$f":"'Population at Risk'!AP23/'Population at Risk'!AP$5","v":0},{"$f":"'Population at Risk'!C23/'Population at Risk'!C$5","v":0},{"$f":"'Population at Risk'!AQ23/'Population at Risk'!AQ$5","v":0},{"$f":"'Population at Risk'!O23/'Population at Risk'!O$5","v":0},{"$f":"'Population at Risk'!AR23/'Population at Risk'!AR$5","v":0},{"$f":"'Population at Risk'!AS23/'Population at Risk'!AS$5","v":0},{"$f":"'Population at Risk'!AT23/'Population at Risk'!AT$5","v":0},{"$f":"'Population at Risk'!AU23/'Population at Risk'!AU$5","v":0},{"$f":"'Population at Risk'!BB23/'Population at Risk'!BB$5","v":0},{"$f":"'Population at Risk'!P23/'Population at Risk'!P$5","v":0},{"$f":"'Population at Risk'!AV23/'Population at Risk'!AV$5","v":0},{"$f":"'Population at Risk'!AW23/'Population at Risk'!AW$5","v":0},{"$f":"'Population at Risk'!Q23/'Population at Risk'!Q$5","v":0},21]
[null,"Female 10-15",{"$f":"'Population at Risk'!R24/'Population at Risk'!R$5","v":0},{"$f":"'Population at Risk'!AX24/'Population at Risk'!AX$5","v":0},{"$f":"'Population at Risk'!S24/'Population at Risk'!S$5","v":0},{"$f":"'Population at Risk'!T24/'Population at Risk'!T$5","v":0},{"$f":"'Population at Risk'!U24/'Population at Risk'!U$5","v":0},{"$f":"'Population at Risk'!D24/'Population at Risk'!D$5","v":0},{"$f":"'Population at Risk'!E24/'Population at Risk'!E$5","v":0},{"$f":"'Population at Risk'!BC24/'Population at Risk'!BC$5","v":0},{"$f":"'Population at Risk'!V24/'Population at Risk'!V$5","v":0},{"$f":"'Population at Risk'!F24/'Population at Risk'!F$5","v":0},{"$f":"'Population at Risk'!W24/'Population at Risk'!W$5","v":0},{"$f":"'Population at Risk'!X24/'Population at Risk'!X$5","v":0},{"$f":"'Population at Risk'!Y24/'Population at Risk'!Y$5","v":0},{"$f":"'Population at Risk'!Z24/'Population at Risk'!Z$5","v":0},{"$f":"'Population at Risk'!AA24/'Population at Risk'!AA$5","v":0},{"$f":"'Population at Risk'!AB24/'Population at Risk'!AB$5","v":0},{"$f":"'Population at Risk'!AY24/'Population at Risk'!AY$5","v":0},{"$f":"'Population at Risk'!AC24/'Population at Risk'!AC$5","v":0},{"$f":"'Population at Risk'!AD24/'Population at Risk'!AD$5","v":0},{"$f":"'Population at Risk'!AE24/'Population at Risk'!AE$5","v":0},{"$f":"'Population at Risk'!G24/'Population at Risk'!G$5","v":0},{"$f":"'Population at Risk'!AF24/'Population at Risk'!AF$5","v":0},{"$f":"'Population at Risk'!H24/'Population at Risk'!H$5","v":0},{"$f":"'Population at Risk'!AG24/'Population at Risk'!AG$5","v":0},{"$f":"'Population at Risk'!AZ24/'Population at Risk'!AZ$5","v":0},{"$f":"'Population at Risk'!I24/'Population at Risk'!I$5","v":0},{"$f":"'Population at Risk'!J24/'Population at Risk'!J$5","v":0},{"$f":"'Population at Risk'!K24/'Population at Risk'!K$5","v":0},{"$f":"'Population at Risk'!AH24/'Population at Risk'!AH$5","v":0},{"$f":"'Population at Risk'!AI24/'Population at Risk'!AI$5","v":0},{"$f":"'Population at Risk'!BA24/'Population at Risk'!BA$5","v":0},{"$f":"'Population at Risk'!L24/'Population at Risk'!L$5","v":0},{"$f":"'Population at Risk'!M24/'Population at Risk'!M$5","v":0},{"$f":"'Population at Risk'!AJ24/'Population at Risk'!AJ$5","v":0},{"$f":"'Population at Risk'!AK24/'Population at Risk'!AK$5","v":0},{"$f":"'Population at Risk'!AL24/'Population at Risk'!AL$5","v":0},{"$f":"'Population at Risk'!AM24/'Population at Risk'!AM$5","v":0},{"$f":"'Population at Risk'!N24/'Population at Risk'!N$5","v":0},{"$f":"'Population at Risk'!AN24/'Population at Risk'!AN$5","v":0},{"$f":"'Population at Risk'!AO24/'Population at Risk'!AO$5","v":0},{"$f":"'Population at Risk'!AP24/'Population at Risk'!AP$5","v":0},{"$f":"'Population at Risk'!C24/'Population at Risk'!C$5","v":0},{"$f":"'Population at Risk'!AQ24/'Population at Risk'!AQ$5","v":0},{"$f":"'Population at Risk'!O24/'Population at Risk'!O$5","v":0},{"$f":"'Population at Risk'!AR24/'Population at Risk'!AR$5","v":0},{"$f":"'Population at Risk'!AS24/'Population at Risk'!AS$5","v":0},{"$f":"'Population at Risk'!AT24/'Population at Risk'!AT$5","v":0},{"$f":"'Population at Risk'!AU24/'Population at Risk'!AU$5","v":0},{"$f":"'Population at Risk'!BB24/'Population at Risk'!BB$5","v":0},{"$f":"'Population at Risk'!P24/'Population at Risk'!P$5","v":0},{"$f":"'Population at Risk'!AV24/'Population at Risk'!AV$5","v":0},{"$f":"'Population at Risk'!AW24/'Population at Risk'!AW$5","v":0},{"$f":"'Population at Risk'!Q24/'Population at Risk'!Q$5","v":0},22]
[null,"Female 16-19",{"$f":"'Population at Risk'!R25/'Population at Risk'!R$5","v":2.5725220151338161E-2},{"$f":"'Population at Risk'!AX25/'Population at Risk'!AX$5","v":3.2845383505670005E-2},{"$f":"'Population at Risk'!S25/'Population at Risk'!S$5","v":2.6314221873427805E-2},{"$f":"'Population at Risk'!T25/'Population at Risk'!T$5","v":2.3382582611970806E-2},{"$f":"'Population at Risk'!U25/'Population at Risk'!U$5","v":2.2426470512101809E-2},{"$f":"'Population at Risk'!D25/'Population at Risk'!D$5","v":2.4852807600394523E-2},{"$f":"'Population at Risk'!E25/'Population at Risk'!E$5","v":2.3192085190941826E-2},{"$f":"'Population at Risk'!BC25/'Population at Risk'!BC$5","v":1.9378954324870488E-2},{"$f":"'Population at Risk'!V25/'Population at Risk'!V$5","v":2.8054425608417331E-2},{"$f":"'Population at Risk'!F25/'Population at Risk'!F$5","v":2.3165207749004765E-2},{"$f":"'Population at Risk'!W25/'Population at Risk'!W$5","v":2.8129755928988288E-2},{"$f":"'Population at Risk'!X25/'Population at Risk'!X$5","v":2.8637453661649326E-2},{"$f":"'Population at Risk'!Y25/'Population at Risk'!Y$5","v":2.641754069159034E-2},{"$f":"'Population at Risk'!Z25/'Population at Risk'!Z$5","v":3.029091406877683E-2},{"$f":"'Population at Risk'!AA25/'Population at Risk'!AA$5","v":3.015969741580813E-2},{"$f":"'Population at Risk'!AB25/'Population at Risk'!AB$5","v":2.5363923071037017E-2},{"$f":"'Population at Risk'!AY25/'Population at Risk'!AY$5","v":2.8568388296526224E-2},{"$f":"'Population at Risk'!AC25/'Population at Risk'!AC$5","v":2.8439957085151159E-2},{"$f":"'Population at Risk'!AD25/'Population at Risk'!AD$5","v":2.6386568948762068E-2},{"$f":"'Population at Risk'!AE25/'Population at Risk'!AE$5","v":2.2908301211089548E-2},{"$f":"'Population at Risk'!G25/'Population at Risk'!G$5","v":2.6687092201678697E-2},{"$f":"'Population at Risk'!AF25/'Population at Risk'!AF$5","v":2.9259571161381205E-2},{"$f":"'Population at Risk'!H25/'Population at Risk'!H$5","v":2.6549558111515142E-2},{"$f":"'Population at Risk'!AG25/'Population at Risk'!AG$5","v":2.5346291530686609E-2},{"$f":"'Population at Risk'!AZ25/'Population at Risk'!AZ$5","v":2.9159664200290723E-2},{"$f":"'Population at Risk'!I25/'Population at Risk'!I$5","v":2.3165946700896715E-2},{"$f":"'Population at Risk'!J25/'Population at Risk'!J$5","v":3.1648403396928954E-2},{"$f":"'Population at Risk'!K25/'Population at Risk'!K$5","v":2.4550422485871554E-2},{"$f":"'Population at Risk'!AH25/'Population at Risk'!AH$5","v":3.3231791620894825E-2},{"$f":"'Population at Risk'!AI25/'Population at Risk'!AI$5","v":2.6031179259290022E-2},{"$f":"'Population at Risk'!BA25/'Population at Risk'!BA$5","v":3.0524365653211101E-2},{"$f":"'Population at Risk'!L25/'Population at Risk'!L$5","v":2.5503370183518757E-2},{"$f":"'Population at Risk'!M25/'Population at Risk'!M$5","v":2.5033027650304126E-2},{"$f":"'Population at Risk'!AJ25/'Population at Risk'!AJ$5","v":3.1453863979251338E-2},{"$f":"'Population at Risk'!AK25/'Population at Risk'!AK$5","v":2.5190255865640169E-2},{"$f":"'Population at Risk'!AL25/'Population at Risk'!AL$5","v":2.8094525007828431E-2},{"$f":"'Population at Risk'!AM25/'Population at Risk'!AM$5","v":3.554109652980747E-2},{"$f":"'Population at Risk'!N25/'Population at Risk'!N$5","v":3.6781932560788384E-2},{"$f":"'Population at Risk'!AN25/'Population at Risk'!AN$5","v":2.0644555173051592E-2},{"$f":"'Population at Risk'!AO25/'Population at Risk'!AO$5","v":2.0644555173051592E-2},{"$f":"'Population at Risk'!AP25/'Population at Risk'!AP$5","v":2.3899936112469836E-2},{"$f":"'Population at Risk'!C25/'Population at Risk'!C$5","v":2.659999000391999E-2},{"$f":"'Population at Risk'!AQ25/'Population at Risk'!AQ$5","v":3.118316791333493E-2},{"$f":"'Population at Risk'!O25/'Population at Risk'!O$5","v":2.3112717736938095E-2},{"$f":"'Population at Risk'!AR25/'Population at Risk'!AR$5","v":2.7497531385051902E-2},{"$f":"'Population at Risk'!AS25/'Population at Risk'!AS$5","v":2.3165946700896715E-2},{"$f":"'Population at Risk'!AT25/'Population at Risk'!AT$5","v":2.4063276173599244E-2},{"$f":"'Population at Risk'!AU25/'Population at Risk'!AU$5","v":2.4063276173599244E-2},{"$f":"'Population at Risk'!BB25/'Population at Risk'!BB$5","v":2.8230672383731874E-2},{"$f":"'Population at Risk'!P25/'Population at Risk'!P$5","v":2.2263760348274791E-2},{"$f":"'Population at Risk'!AV25/'Population at Risk'!AV$5","v":2.8117255676054307E-2},{"$f":"'Population at Risk'!AW25/'Population at Risk'!AW$5","v":3.1699878619118473E-2},{"$f":"'Population at Risk'!Q25/'Population at Risk'!Q$5","v":2.7615137248486313E-2},23]
[null,"Female 20-24",{"$f":"'Population at Risk'!R26/'Population at Risk'!R$5","v":2.8477484748711573E-2},{"$f":"'Population at Risk'!AX26/'Population at Risk'!AX$5","v":4.9419149851000169E-2},{"$f":"'Population at Risk'!S26/'Population at Risk'!S$5","v":4.4587851921847645E-2},{"$f":"'Population at Risk'!T26/'Population at Risk'!T$5","v":5.6087050322384084E-2},{"$f":"'Population at Risk'!U26/'Population at Risk'!U$5","v":2.4508123513503711E-2},{"$f":"'Population at Risk'!D26/'Population at Risk'!D$5","v":4.2578653679350612E-2},{"$f":"'Population at Risk'!E26/'Population at Risk'!E$5","v":2.8051087739966372E-2},{"$f":"'Population at Risk'!BC26/'Population at Risk'!BC$5","v":2.1177733067723872E-2},{"$f":"'Population at Risk'!V26/'Population at Risk'!V$5","v":3.8304214049014934E-2},{"$f":"'Population at Risk'!F26/'Population at Risk'!F$5","v":2.9507917340603082E-2},{"$f":"'Population at Risk'!W26/'Population at Risk'!W$5","v":4.0371330141751795E-2},{"$f":"'Population at Risk'!X26/'Population at Risk'!X$5","v":4.1099968983454492E-2},{"$f":"'Population at Risk'!Y26/'Population at Risk'!Y$5","v":3.7015233600916207E-2},{"$f":"'Population at Risk'!Z26/'Population at Risk'!Z$5","v":6.3139487961909643E-2},{"$f":"'Population at Risk'!AA26/'Population at Risk'!AA$5","v":4.7342319524464459E-2},{"$f":"'Population at Risk'!AB26/'Population at Risk'!AB$5","v":4.152912375633859E-2},{"$f":"'Population at Risk'!AY26/'Population at Risk'!AY$5","v":4.2277925240849654E-2},{"$f":"'Population at Risk'!AC26/'Population at Risk'!AC$5","v":4.9440830379616094E-2},{"$f":"'Population at Risk'!AD26/'Population at Risk'!AD$5","v":3.0540037890335776E-2},{"$f":"'Population at Risk'!AE26/'Population at Risk'!AE$5","v":2.7292311255913203E-2},{"$f":"'Population at Risk'!G26/'Population at Risk'!G$5","v":2.8508737524469526E-2},{"$f":"'Population at Risk'!AF26/'Population at Risk'!AF$5","v":4.0520112398922468E-2},{"$f":"'Population at Risk'!H26/'Population at Risk'!H$5","v":3.4547351692661821E-2},{"$f":"'Population at Risk'!AG26/'Population at Risk'!AG$5","v":3.0196864938363301E-2},{"$f":"'Population at Risk'!AZ26/'Population at Risk'!AZ$5","v":4.4338821976267893E-2},{"$f":"'Population at Risk'!I26/'Population at Risk'!I$5","v":2.7304165293324537E-2},{"$f":"'Population at Risk'!J26/'Population at Risk'!J$5","v":4.5355464103425606E-2},{"$f":"'Population at Risk'!K26/'Population at Risk'!K$5","v":3.1214733239287792E-2},{"$f":"'Population at Risk'!AH26/'Population at Risk'!AH$5","v":4.2743362825658215E-2},{"$f":"'Population at Risk'!AI26/'Population at Risk'!AI$5","v":4.8905706386535075E-2},{"$f":"'Population at Risk'!BA26/'Population at Risk'!BA$5","v":4.4418364091998432E-2},{"$f":"'Population at Risk'!L26/'Population at Risk'!L$5","v":3.2033658150071219E-2},{"$f":"'Population at Risk'!M26/'Population at Risk'!M$5","v":3.1442881644298946E-2},{"$f":"'Population at Risk'!AJ26/'Population at Risk'!AJ$5","v":3.8556083086035038E-2},{"$f":"'Population at Risk'!AK26/'Population at Risk'!AK$5","v":3.1821742629153812E-2},{"$f":"'Population at Risk'!AL26/'Population at Risk'!AL$5","v":3.6839199194519674E-2},{"$f":"'Population at Risk'!AM26/'Population at Risk'!AM$5","v":4.458557368240345E-2},{"$f":"'Population at Risk'!N26/'Population at Risk'!N$5","v":6.9491755076292933E-2},{"$f":"'Population at Risk'!AN26/'Population at Risk'!AN$5","v":2.8360012846089157E-2},{"$f":"'Population at Risk'!AO26/'Population at Risk'!AO$5","v":2.8360012846089157E-2},{"$f":"'Population at Risk'!AP26/'Population at Risk'!AP$5","v":2.9857588363578397E-2},{"$f":"'Population at Risk'!C26/'Population at Risk'!C$5","v":5.9112459559629675E-2},{"$f":"'Population at Risk'!AQ26/'Population at Risk'!AQ$5","v":4.4117191349986901E-2},{"$f":"'Population at Risk'!O26/'Population at Risk'!O$5","v":3.0842342855382881E-2},{"$f":"'Population at Risk'!AR26/'Population at Risk'!AR$5","v":4.2300646200111293E-2},{"$f":"'Population at Risk'!AS26/'Population at Risk'!AS$5","v":2.7304165293324537E-2},{"$f":"'Population at Risk'!AT26/'Population at Risk'!AT$5","v":2.613526903836226E-2},{"$f":"'Population at Risk'!AU26/'Population at Risk'!AU$5","v":2.613526903836226E-2},{"$f":"'Population at Risk'!BB26/'Population at Risk'!BB$5","v":3.4902235563512969E-2},{"$f":"'Population at Risk'!P26/'Population at Risk'!P$5","v":2.7635266477638313E-2},{"$f":"'Population at Risk'!AV26/'Population at Risk'!AV$5","v":3.5207072960217016E-2},{"$f":"'Population at Risk'!AW26/'Population at Risk'!AW$5","v":4.1965741793398806E-2},{"$f":"'Population at Risk'!Q26/'Population at Risk'!Q$5","v":3.8173559668922913E-2},24]
[null,"Female 25-29",{"$f":"'Population at Risk'!R27/'Population at Risk'!R$5","v":1.9417694986468774E-2},{"$f":"'Population at Risk'!AX27/'Population at Risk'!AX$5","v":2.8342838880761528E-2},{"$f":"'Population at Risk'!S27/'Population at Risk'!S$5","v":3.2478420406037309E-2},{"$f":"'Population at Risk'!T27/'Population at Risk'!T$5","v":4.4959182446894494E-2},{"$f":"'Population at Risk'!U27/'Population at Risk'!U$5","v":1.8002191352419986E-2},{"$f":"'Population at Risk'!D27/'Population at Risk'!D$5","v":3.2547818633072587E-2},{"$f":"'Population at Risk'!E27/'Population at Risk'!E$5","v":2.1986241317560502E-2},{"$f":"'Population at Risk'!BC27/'Population at Risk'!BC$5","v":1.5555887128020033E-2},{"$f":"'Population at Risk'!V27/'Population at Risk'!V$5","v":2.7202193733008088E-2},{"$f":"'Population at Risk'!F27/'Population at Risk'!F$5","v":1.9524171805306058E-2},{"$f":"'Population at Risk'!W27/'Population at Risk'!W$5","v":2.5610569072701747E-2},{"$f":"'Population at Risk'!X27/'Population at Risk'!X$5","v":2.6072799455474832E-2},{"$f":"'Population at Risk'!Y27/'Population at Risk'!Y$5","v":2.4047010059216722E-2},{"$f":"'Population at Risk'!Z27/'Population at Risk'!Z$5","v":4.7168073737355869E-2},{"$f":"'Population at Risk'!AA27/'Population at Risk'!AA$5","v":3.3479125962835123E-2},{"$f":"'Population at Risk'!AB27/'Population at Risk'!AB$5","v":3.1546363129718293E-2},{"$f":"'Population at Risk'!AY27/'Population at Risk'!AY$5","v":2.7340743520998551E-2},{"$f":"'Population at Risk'!AC27/'Population at Risk'!AC$5","v":3.5551173871750733E-2},{"$f":"'Population at Risk'!AD27/'Population at Risk'!AD$5","v":2.2324019727022078E-2},{"$f":"'Population at Risk'!AE27/'Population at Risk'!AE$5","v":2.0369900073025662E-2},{"$f":"'Population at Risk'!G27/'Population at Risk'!G$5","v":1.9555248238203773E-2},{"$f":"'Population at Risk'!AF27/'Population at Risk'!AF$5","v":2.5709660616419782E-2},{"$f":"'Population at Risk'!H27/'Population at Risk'!H$5","v":2.2616071903257953E-2},{"$f":"'Population at Risk'!AG27/'Population at Risk'!AG$5","v":2.2537743892241533E-2},{"$f":"'Population at Risk'!AZ27/'Population at Risk'!AZ$5","v":2.9142395821794117E-2},{"$f":"'Population at Risk'!I27/'Population at Risk'!I$5","v":1.6753998956414756E-2},{"$f":"'Population at Risk'!J27/'Population at Risk'!J$5","v":2.7132717935584572E-2},{"$f":"'Population at Risk'!K27/'Population at Risk'!K$5","v":2.0736658561533217E-2},{"$f":"'Population at Risk'!AH27/'Population at Risk'!AH$5","v":2.907221163514169E-2},{"$f":"'Population at Risk'!AI27/'Population at Risk'!AI$5","v":3.7673726170502235E-2},{"$f":"'Population at Risk'!BA27/'Population at Risk'!BA$5","v":2.9136976781163299E-2},{"$f":"'Population at Risk'!L27/'Population at Risk'!L$5","v":2.1857995681601138E-2},{"$f":"'Population at Risk'!M27/'Population at Risk'!M$5","v":2.1454882485741147E-2},{"$f":"'Population at Risk'!AJ27/'Population at Risk'!AJ$5","v":2.7907576419255807E-2},{"$f":"'Population at Risk'!AK27/'Population at Risk'!AK$5","v":2.3152351474278996E-2},{"$f":"'Population at Risk'!AL27/'Population at Risk'!AL$5","v":2.2851192017364252E-2},{"$f":"'Population at Risk'!AM27/'Population at Risk'!AM$5","v":3.0873834543887486E-2},{"$f":"'Population at Risk'!N27/'Population at Risk'!N$5","v":4.3584139470502541E-2},{"$f":"'Population at Risk'!AN27/'Population at Risk'!AN$5","v":2.2160257881228176E-2},{"$f":"'Population at Risk'!AO27/'Population at Risk'!AO$5","v":2.2160257881228176E-2},{"$f":"'Population at Risk'!AP27/'Population at Risk'!AP$5","v":2.1256143766417275E-2},{"$f":"'Population at Risk'!C27/'Population at Risk'!C$5","v":4.4556548267340887E-2},{"$f":"'Population at Risk'!AQ27/'Population at Risk'!AQ$5","v":3.0446766620179432E-2},{"$f":"'Population at Risk'!O27/'Population at Risk'!O$5","v":2.1408040196454103E-2},{"$f":"'Population at Risk'!AR27/'Population at Risk'!AR$5","v":3.0024469071301522E-2},{"$f":"'Population at Risk'!AS27/'Population at Risk'!AS$5","v":1.6753998956414756E-2},{"$f":"'Population at Risk'!AT27/'Population at Risk'!AT$5","v":2.2696660181206401E-2},{"$f":"'Population at Risk'!AU27/'Population at Risk'!AU$5","v":2.2696660181206401E-2},{"$f":"'Population at Risk'!BB27/'Population at Risk'!BB$5","v":2.5739072524718336E-2},{"$f":"'Population at Risk'!P27/'Population at Risk'!P$5","v":1.7983505066156792E-2},{"$f":"'Population at Risk'!AV27/'Population at Risk'!AV$5","v":2.2996859178572977E-2},{"$f":"'Population at Risk'!AW27/'Population at Risk'!AW$5","v":2.7963213750457967E-2},{"$f":"'Population at Risk'!Q27/'Population at Risk'!Q$5","v":2.3826022419588644E-2},25]
[null,"Female 30-34",{"$f":"'Population at Risk'!R28/'Population at Risk'!R$5","v":1.9036767202140516E-2},{"$f":"'Population at Risk'!AX28/'Population at Risk'!AX$5","v":2.1972119388091672E-2},{"$f":"'Population at Risk'!S28/'Population at Risk'!S$5","v":3.0251693179649392E-2},{"$f":"'Population at Risk'!T28/'Population at Risk'!T$5","v":3.7363567123886783E-2},{"$f":"'Population at Risk'!U28/'Population at Risk'!U$5","v":1.9492735383218267E-2},{"$f":"'Population at Risk'!D28/'Population at Risk'!D$5","v":3.1645266700264227E-2},{"$f":"'Population at Risk'!E28/'Population at Risk'!E$5","v":2.6705086997034968E-2},{"$f":"'Population at Risk'!BC28/'Population at Risk'!BC$5","v":1.6843882253087132E-2},{"$f":"'Population at Risk'!V28/'Population at Risk'!V$5","v":3.0713086290171721E-2},{"$f":"'Population at Risk'!F28/'Population at Risk'!F$5","v":2.170652169640919E-2},{"$f":"'Population at Risk'!W28/'Population at Risk'!W$5","v":2.5058370710058047E-2},{"$f":"'Population at Risk'!X28/'Population at Risk'!X$5","v":2.5510634783226415E-2},{"$f":"'Population at Risk'!Y28/'Population at Risk'!Y$5","v":2.3859204945480883E-2},{"$f":"'Population at Risk'!Z28/'Population at Risk'!Z$5","v":3.8524963358865294E-2},{"$f":"'Population at Risk'!AA28/'Population at Risk'!AA$5","v":3.1344725614909079E-2},{"$f":"'Population at Risk'!AB28/'Population at Risk'!AB$5","v":3.1272870213246311E-2},{"$f":"'Population at Risk'!AY28/'Population at Risk'!AY$5","v":2.6329539156854164E-2},{"$f":"'Population at Risk'!AC28/'Population at Risk'!AC$5","v":3.1034723255191635E-2},{"$f":"'Population at Risk'!AD28/'Population at Risk'!AD$5","v":2.4237732547338197E-2},{"$f":"'Population at Risk'!AE28/'Population at Risk'!AE$5","v":2.2525871162242302E-2},{"$f":"'Population at Risk'!G28/'Population at Risk'!G$5","v":1.9978598917110388E-2},{"$f":"'Population at Risk'!AF28/'Population at Risk'!AF$5","v":2.4957811905214924E-2},{"$f":"'Population at Risk'!H28/'Population at Risk'!H$5","v":2.2291554088992225E-2},{"$f":"'Population at Risk'!AG28/'Population at Risk'!AG$5","v":2.4923161791870159E-2},{"$f":"'Population at Risk'!AZ28/'Population at Risk'!AZ$5","v":2.7692031755643845E-2},{"$f":"'Population at Risk'!I28/'Population at Risk'!I$5","v":1.9130586156650389E-2},{"$f":"'Population at Risk'!J28/'Population at Risk'!J$5","v":2.3173792756527718E-2},{"$f":"'Population at Risk'!K28/'Population at Risk'!K$5","v":2.1488489513141612E-2},{"$f":"'Population at Risk'!AH28/'Population at Risk'!AH$5","v":3.1636716946548696E-2},{"$f":"'Population at Risk'!AI28/'Population at Risk'!AI$5","v":3.4073855674698901E-2},{"$f":"'Population at Risk'!BA28/'Population at Risk'!BA$5","v":2.993263657003431E-2},{"$f":"'Population at Risk'!L28/'Population at Risk'!L$5","v":2.1357690393605962E-2},{"$f":"'Population at Risk'!M28/'Population at Risk'!M$5","v":2.0963804011882418E-2},{"$f":"'Population at Risk'!AJ28/'Population at Risk'!AJ$5","v":3.028470792520532E-2},{"$f":"'Population at Risk'!AK28/'Population at Risk'!AK$5","v":2.6050573800549731E-2},{"$f":"'Population at Risk'!AL28/'Population at Risk'!AL$5","v":2.2258479457477102E-2},{"$f":"'Population at Risk'!AM28/'Population at Risk'!AM$5","v":3.3168626815691001E-2},{"$f":"'Population at Risk'!N28/'Population at Risk'!N$5","v":3.3750563542864917E-2},{"$f":"'Population at Risk'!AN28/'Population at Risk'!AN$5","v":2.1968784729284159E-2},{"$f":"'Population at Risk'!AO28/'Population at Risk'!AO$5","v":2.1968784729284159E-2},{"$f":"'Population at Risk'!AP28/'Population at Risk'!AP$5","v":2.3926237317285465E-2},{"$f":"'Population at Risk'!C28/'Population at Risk'!C$5","v":3.7144951658235038E-2},{"$f":"'Population at Risk'!AQ28/'Population at Risk'!AQ$5","v":2.9894176575017913E-2},{"$f":"'Population at Risk'!O28/'Population at Risk'!O$5","v":2.103042122586948E-2},{"$f":"'Population at Risk'!AR28/'Population at Risk'!AR$5","v":2.8694593482707264E-2},{"$f":"'Population at Risk'!AS28/'Population at Risk'!AS$5","v":1.9130586156650389E-2},{"$f":"'Population at Risk'!AT28/'Population at Risk'!AT$5","v":2.0873148799377475E-2},{"$f":"'Population at Risk'!AU28/'Population at Risk'!AU$5","v":2.0873148799377475E-2},{"$f":"'Population at Risk'!BB28/'Population at Risk'!BB$5","v":2.8448187796110594E-2},{"$f":"'Population at Risk'!P28/'Population at Risk'!P$5","v":1.7704176319254073E-2},{"$f":"'Population at Risk'!AV28/'Population at Risk'!AV$5","v":2.309223768383525E-2},{"$f":"'Population at Risk'!AW28/'Population at Risk'!AW$5","v":3.0883111689888915E-2},{"$f":"'Population at Risk'!Q28/'Population at Risk'!Q$5","v":2.5258439187002251E-2},26]
[null,"Female 35-39",{"$f":"'Population at Risk'!R29/'Population at Risk'!R$5","v":3.1940829599849632E-2},{"$f":"'Population at Risk'!AX29/'Population at Risk'!AX$5","v":2.9481567422019628E-2},{"$f":"'Population at Risk'!S29/'Population at Risk'!S$5","v":3.4400728609360262E-2},{"$f":"'Population at Risk'!T29/'Population at Risk'!T$5","v":3.7295609922607602E-2},{"$f":"'Population at Risk'!U29/'Population at Risk'!U$5","v":2.8071240143482064E-2},{"$f":"'Population at Risk'!D29/'Population at Risk'!D$5","v":3.6842857648469167E-2},{"$f":"'Population at Risk'!E29/'Population at Risk'!E$5","v":3.683673874793808E-2},{"$f":"'Population at Risk'!BC29/'Population at Risk'!BC$5","v":2.425666046244148E-2},{"$f":"'Population at Risk'!V29/'Population at Risk'!V$5","v":3.7880094229344172E-2},{"$f":"'Population at Risk'!F29/'Population at Risk'!F$5","v":2.8236750860143343E-2},{"$f":"'Population at Risk'!W29/'Population at Risk'!W$5","v":3.1308079884634771E-2},{"$f":"'Population at Risk'!X29/'Population at Risk'!X$5","v":3.1873141352339138E-2},{"$f":"'Population at Risk'!Y29/'Population at Risk'!Y$5","v":3.014908862219616E-2},{"$f":"'Population at Risk'!Z29/'Population at Risk'!Z$5","v":3.4671654388673499E-2},{"$f":"'Population at Risk'!AA29/'Population at Risk'!AA$5","v":3.4591186694204017E-2},{"$f":"'Population at Risk'!AB29/'Population at Risk'!AB$5","v":3.6416920313253144E-2},{"$f":"'Population at Risk'!AY29/'Population at Risk'!AY$5","v":3.1213649075211788E-2},{"$f":"'Population at Risk'!AC29/'Population at Risk'!AC$5","v":3.2517449867593584E-2},{"$f":"'Population at Risk'!AD29/'Population at Risk'!AD$5","v":3.1810388988092235E-2},{"$f":"'Population at Risk'!AE29/'Population at Risk'!AE$5","v":2.9019348699258714E-2},{"$f":"'Population at Risk'!G29/'Population at Risk'!G$5","v":2.7885044610492068E-2},{"$f":"'Population at Risk'!AF29/'Population at Risk'!AF$5","v":2.9849995579630924E-2},{"$f":"'Population at Risk'!H29/'Population at Risk'!H$5","v":2.682919985573631E-2},{"$f":"'Population at Risk'!AG29/'Population at Risk'!AG$5","v":3.2107700408880717E-2},{"$f":"'Population at Risk'!AZ29/'Population at Risk'!AZ$5","v":3.1318657653242848E-2},{"$f":"'Population at Risk'!I29/'Population at Risk'!I$5","v":2.4927024363732096E-2},{"$f":"'Population at Risk'!J29/'Population at Risk'!J$5","v":3.0218628417252685E-2},{"$f":"'Population at Risk'!K29/'Population at Risk'!K$5","v":2.6618434311299056E-2},{"$f":"'Population at Risk'!AH29/'Population at Risk'!AH$5","v":3.8313602318997657E-2},{"$f":"'Population at Risk'!AI29/'Population at Risk'!AI$5","v":3.7104872671913619E-2},{"$f":"'Population at Risk'!BA29/'Population at Risk'!BA$5","v":3.139207560192004E-2},{"$f":"'Population at Risk'!L29/'Population at Risk'!L$5","v":2.598679002326023E-2},{"$f":"'Population at Risk'!M29/'Population at Risk'!M$5","v":2.5507532083556418E-2},{"$f":"'Population at Risk'!AJ29/'Population at Risk'!AJ$5","v":3.824700255836181E-2},{"$f":"'Population at Risk'!AK29/'Population at Risk'!AK$5","v":3.0374147651620425E-2},{"$f":"'Population at Risk'!AL29/'Population at Risk'!AL$5","v":2.6063986405379238E-2},{"$f":"'Population at Risk'!AM29/'Population at Risk'!AM$5","v":3.8974002571132385E-2},{"$f":"'Population at Risk'!N29/'Population at Risk'!N$5","v":3.2017394870242806E-2},{"$f":"'Population at Risk'!AN29/'Population at Risk'!AN$5","v":2.95886650202376E-2},{"$f":"'Population at Risk'!AO29/'Population at Risk'!AO$5","v":2.95886650202376E-2},{"$f":"'Population at Risk'!AP29/'Population at Risk'!AP$5","v":2.90800837895729E-2},{"$f":"'Population at Risk'!C29/'Population at Risk'!C$5","v":3.6586545285659924E-2},{"$f":"'Population at Risk'!AQ29/'Population at Risk'!AQ$5","v":3.5182456345733394E-2},{"$f":"'Population at Risk'!O29/'Population at Risk'!O$5","v":2.4759095132657359E-2},{"$f":"'Population at Risk'!AR29/'Population at Risk'!AR$5","v":3.3069775160560547E-2},{"$f":"'Population at Risk'!AS29/'Population at Risk'!AS$5","v":2.4927024363732096E-2},{"$f":"'Population at Risk'!AT29/'Population at Risk'!AT$5","v":3.2658550253368293E-2},{"$f":"'Population at Risk'!AU29/'Population at Risk'!AU$5","v":3.2658550253368293E-2},{"$f":"'Population at Risk'!BB29/'Population at Risk'!BB$5","v":3.4177504794668814E-2},{"$f":"'Population at Risk'!P29/'Population at Risk'!P$5","v":2.8328838103583987E-2},{"$f":"'Population at Risk'!AV29/'Population at Risk'!AV$5","v":2.9439757599231529E-2},{"$f":"'Population at Risk'!AW29/'Population at Risk'!AW$5","v":3.8664288763783639E-2},{"$f":"'Population at Risk'!Q29/'Population at Risk'!Q$5","v":3.5062525197056521E-2},27]
[null,"Female 40-44",{"$f":"'Population at Risk'!R30/'Population at Risk'!R$5","v":3.5170928912348597E-2},{"$f":"'Population at Risk'!AX30/'Population at Risk'!AX$5","v":3.3380798080872486E-2},{"$f":"'Population at Risk'!S30/'Population at Risk'!S$5","v":3.4788555671290085E-2},{"$f":"'Population at Risk'!T30/'Population at Risk'!T$5","v":3.2754012391856283E-2},{"$f":"'Population at Risk'!U30/'Population at Risk'!U$5","v":3.0923153691786484E-2},{"$f":"'Population at Risk'!D30/'Population at Risk'!D$5","v":3.6417865039762999E-2},{"$f":"'Population at Risk'!E30/'Population at Risk'!E$5","v":3.9362783685218949E-2},{"$f":"'Population at Risk'!BC30/'Population at Risk'!BC$5","v":2.6721029626606101E-2},{"$f":"'Population at Risk'!V30/'Population at Risk'!V$5","v":4.2932791196997368E-2},{"$f":"'Population at Risk'!F30/'Population at Risk'!F$5","v":3.1866818701764596E-2},{"$f":"'Population at Risk'!W30/'Population at Risk'!W$5","v":3.3714149831219113E-2},{"$f":"'Population at Risk'!X30/'Population at Risk'!X$5","v":3.4322637066981632E-2},{"$f":"'Population at Risk'!Y30/'Population at Risk'!Y$5","v":3.4376841025606175E-2},{"$f":"'Population at Risk'!Z30/'Population at Risk'!Z$5","v":3.0410735874541833E-2},{"$f":"'Population at Risk'!AA30/'Population at Risk'!AA$5","v":3.487426500336667E-2},{"$f":"'Population at Risk'!AB30/'Population at Risk'!AB$5","v":3.7187929710465979E-2},{"$f":"'Population at Risk'!AY30/'Population at Risk'!AY$5","v":3.355351819442131E-2},{"$f":"'Population at Risk'!AC30/'Population at Risk'!AC$5","v":3.1836448549024225E-2},{"$f":"'Population at Risk'!AD30/'Population at Risk'!AD$5","v":3.6340088279998517E-2},{"$f":"'Population at Risk'!AE30/'Population at Risk'!AE$5","v":3.2462496631602326E-2},{"$f":"'Population at Risk'!G30/'Population at Risk'!G$5","v":3.3962972972807572E-2},{"$f":"'Population at Risk'!AF30/'Population at Risk'!AF$5","v":3.3415931989799558E-2},{"$f":"'Population at Risk'!H30/'Population at Risk'!H$5","v":3.1227940637543482E-2},{"$f":"'Population at Risk'!AG30/'Population at Risk'!AG$5","v":3.5917281506680131E-2},{"$f":"'Population at Risk'!AZ30/'Population at Risk'!AZ$5","v":3.3610642595329969E-2},{"$f":"'Population at Risk'!I30/'Population at Risk'!I$5","v":3.2609365925568977E-2},{"$f":"'Population at Risk'!J30/'Population at Risk'!J$5","v":3.471694102889307E-2},{"$f":"'Population at Risk'!K30/'Population at Risk'!K$5","v":3.1407845850015263E-2},{"$f":"'Population at Risk'!AH30/'Population at Risk'!AH$5","v":4.0486864664895823E-2},{"$f":"'Population at Risk'!AI30/'Population at Risk'!AI$5","v":3.5587307231144678E-2},{"$f":"'Population at Risk'!BA30/'Population at Risk'!BA$5","v":3.3132493163621844E-2},{"$f":"'Population at Risk'!L30/'Population at Risk'!L$5","v":3.0901702757790184E-2},{"$f":"'Population at Risk'!M30/'Population at Risk'!M$5","v":3.0331802189702241E-2},{"$f":"'Population at Risk'!AJ30/'Population at Risk'!AJ$5","v":3.8126023424539392E-2},{"$f":"'Population at Risk'!AK30/'Population at Risk'!AK$5","v":3.7036607047482052E-2},{"$f":"'Population at Risk'!AL30/'Population at Risk'!AL$5","v":3.1395227357479953E-2},{"$f":"'Population at Risk'!AM30/'Population at Risk'!AM$5","v":4.1074092033645357E-2},{"$f":"'Population at Risk'!N30/'Population at Risk'!N$5","v":2.9786680261612207E-2},{"$f":"'Population at Risk'!AN30/'Population at Risk'!AN$5","v":3.433102466444779E-2},{"$f":"'Population at Risk'!AO30/'Population at Risk'!AO$5","v":3.433102466444779E-2},{"$f":"'Population at Risk'!AP30/'Population at Risk'!AP$5","v":3.370109762295867E-2},{"$f":"'Population at Risk'!C30/'Population at Risk'!C$5","v":3.2744182400540452E-2},{"$f":"'Population at Risk'!AQ30/'Population at Risk'!AQ$5","v":3.8588596141160544E-2},{"$f":"'Population at Risk'!O30/'Population at Risk'!O$5","v":2.7983805045221487E-2},{"$f":"'Population at Risk'!AR30/'Population at Risk'!AR$5","v":3.4545569965710336E-2},{"$f":"'Population at Risk'!AS30/'Population at Risk'!AS$5","v":3.2609365925568977E-2},{"$f":"'Population at Risk'!AT30/'Population at Risk'!AT$5","v":3.3699078591202795E-2},{"$f":"'Population at Risk'!AU30/'Population at Risk'!AU$5","v":3.3699078591202795E-2},{"$f":"'Population at Risk'!BB30/'Population at Risk'!BB$5","v":3.8104371567380613E-2},{"$f":"'Population at Risk'!P30/'Population at Risk'!P$5","v":3.1782192668763982E-2},{"$f":"'Population at Risk'!AV30/'Population at Risk'!AV$5","v":3.4063406633565003E-2},{"$f":"'Population at Risk'!AW30/'Population at Risk'!AW$5","v":4.0974420576810819E-2},{"$f":"'Population at Risk'!Q30/'Population at Risk'!Q$5","v":3.8524343018968989E-2},28]
[null,"Female 45-49",{"$f":"'Population at Risk'!R31/'Population at Risk'!R$5","v":5.8480526632206667E-2},{"$f":"'Population at Risk'!AX31/'Population at Risk'!AX$5","v":5.1469867449476368E-2},{"$f":"'Population at Risk'!S31/'Population at Risk'!S$5","v":4.8670458395390706E-2},{"$f":"'Population at Risk'!T31/'Population at Risk'!T$5","v":4.2881828900018161E-2},{"$f":"'Population at Risk'!U31/'Population at Risk'!U$5","v":4.0464615457177222E-2},{"$f":"'Population at Risk'!D31/'Population at Risk'!D$5","v":5.2845775393694561E-2},{"$f":"'Population at Risk'!E31/'Population at Risk'!E$5","v":5.9772511298848828E-2},{"$f":"'Population at Risk'!BC31/'Population at Risk'!BC$5","v":3.4965909338918709E-2},{"$f":"'Population at Risk'!V31/'Population at Risk'!V$5","v":5.8026881986056246E-2},{"$f":"'Population at Risk'!F31/'Population at Risk'!F$5","v":4.5163279485715892E-2},{"$f":"'Population at Risk'!W31/'Population at Risk'!W$5","v":4.8141965203712993E-2},{"$f":"'Population at Risk'!X31/'Population at Risk'!X$5","v":4.9010851753652239E-2},{"$f":"'Population at Risk'!Y31/'Population at Risk'!Y$5","v":4.8790958989680319E-2},{"$f":"'Population at Risk'!Z31/'Population at Risk'!Z$5","v":3.8851758061683971E-2},{"$f":"'Population at Risk'!AA31/'Population at Risk'!AA$5","v":4.92514354011135E-2},{"$f":"'Population at Risk'!AB31/'Population at Risk'!AB$5","v":5.3782144572130625E-2},{"$f":"'Population at Risk'!AY31/'Population at Risk'!AY$5","v":4.8609904670164107E-2},{"$f":"'Population at Risk'!AC31/'Population at Risk'!AC$5","v":4.5576814865563815E-2},{"$f":"'Population at Risk'!AD31/'Population at Risk'!AD$5","v":5.2267832799432541E-2},{"$f":"'Population at Risk'!AE31/'Population at Risk'!AE$5","v":4.6442406557355168E-2},{"$f":"'Population at Risk'!G31/'Population at Risk'!G$5","v":4.9608085283945051E-2},{"$f":"'Population at Risk'!AF31/'Population at Risk'!AF$5","v":5.0497626038819049E-2},{"$f":"'Population at Risk'!H31/'Population at Risk'!H$5","v":4.5128730240483993E-2},{"$f":"'Population at Risk'!AG31/'Population at Risk'!AG$5","v":5.1384987701294897E-2},{"$f":"'Population at Risk'!AZ31/'Population at Risk'!AZ$5","v":4.9353422191153712E-2},{"$f":"'Population at Risk'!I31/'Population at Risk'!I$5","v":4.9249001463205544E-2},{"$f":"'Population at Risk'!J31/'Population at Risk'!J$5","v":5.2199668999943175E-2},{"$f":"'Population at Risk'!K31/'Population at Risk'!K$5","v":4.5062355569569272E-2},{"$f":"'Population at Risk'!AH31/'Population at Risk'!AH$5","v":5.5969174974356259E-2},{"$f":"'Population at Risk'!AI31/'Population at Risk'!AI$5","v":4.8852455186347239E-2},{"$f":"'Population at Risk'!BA31/'Population at Risk'!BA$5","v":4.8442136363408154E-2},{"$f":"'Population at Risk'!L31/'Population at Risk'!L$5","v":4.7823096191928822E-2},{"$f":"'Population at Risk'!M31/'Population at Risk'!M$5","v":4.6941125062340057E-2},{"$f":"'Population at Risk'!AJ31/'Population at Risk'!AJ$5","v":5.5115256994096903E-2},{"$f":"'Population at Risk'!AK31/'Population at Risk'!AK$5","v":5.2677547323066704E-2},{"$f":"'Population at Risk'!AL31/'Population at Risk'!AL$5","v":4.4366380066076065E-2},{"$f":"'Population at Risk'!AM31/'Population at Risk'!AM$5","v":5.4995232147646428E-2},{"$f":"'Population at Risk'!N31/'Population at Risk'!N$5","v":4.1297911640514391E-2},{"$f":"'Population at Risk'!AN31/'Population at Risk'!AN$5","v":5.0721603098026605E-2},{"$f":"'Population at Risk'!AO31/'Population at Risk'!AO$5","v":5.0721603098026605E-2},{"$f":"'Population at Risk'!AP31/'Population at Risk'!AP$5","v":5.2890295012447443E-2},{"$f":"'Population at Risk'!C31/'Population at Risk'!C$5","v":4.4439506008161649E-2},{"$f":"'Population at Risk'!AQ31/'Population at Risk'!AQ$5","v":5.8498079593732794E-2},{"$f":"'Population at Risk'!O31/'Population at Risk'!O$5","v":4.028014079544389E-2},{"$f":"'Population at Risk'!AR31/'Population at Risk'!AR$5","v":4.920346244368265E-2},{"$f":"'Population at Risk'!AS31/'Population at Risk'!AS$5","v":4.9249001463205544E-2},{"$f":"'Population at Risk'!AT31/'Population at Risk'!AT$5","v":4.7921107988841916E-2},{"$f":"'Population at Risk'!AU31/'Population at Risk'!AU$5","v":4.7921107988841916E-2},{"$f":"'Population at Risk'!BB31/'Population at Risk'!BB$5","v":5.3450909080379159E-2},{"$f":"'Population at Risk'!P31/'Population at Risk'!P$5","v":5.4462199214845103E-2},{"$f":"'Population at Risk'!AV31/'Population at Risk'!AV$5","v":5.0696128453523198E-2},{"$f":"'Population at Risk'!AW31/'Population at Risk'!AW$5","v":5.8531312062718603E-2},{"$f":"'Population at Risk'!Q31/'Population at Risk'!Q$5","v":5.9372049187889402E-2},29]
[null,"Female 50-54",{"$f":"'Population at Risk'!R32/'Population at Risk'!R$5","v":5.901718265622459E-2},{"$f":"'Population at Risk'!AX32/'Population at Risk'!AX$5","v":5.3031319294181749E-2},{"$f":"'Population at Risk'!S32/'Population at Risk'!S$5","v":4.8894566509723257E-2},{"$f":"'Population at Risk'!T32/'Population at Risk'!T$5","v":4.3287730986862526E-2},{"$f":"'Population at Risk'!U32/'Population at Risk'!U$5","v":4.2867672216544875E-2},{"$f":"'Population at Risk'!D32/'Population at Risk'!D$5","v":5.4082861218683678E-2},{"$f":"'Population at Risk'!E32/'Population at Risk'!E$5","v":5.956279494998671E-2},{"$f":"'Population at Risk'!BC32/'Population at Risk'!BC$5","v":3.7042416525135444E-2},{"$f":"'Population at Risk'!V32/'Population at Risk'!V$5","v":5.6630297172172411E-2},{"$f":"'Population at Risk'!F32/'Population at Risk'!F$5","v":4.837342312667095E-2},{"$f":"'Population at Risk'!W32/'Population at Risk'!W$5","v":4.9756415541376053E-2},{"$f":"'Population at Risk'!X32/'Population at Risk'!X$5","v":5.0654440373851223E-2},{"$f":"'Population at Risk'!Y32/'Population at Risk'!Y$5","v":4.8630730907080248E-2},{"$f":"'Population at Risk'!Z32/'Population at Risk'!Z$5","v":4.0378809053629748E-2},{"$f":"'Population at Risk'!AA32/'Population at Risk'!AA$5","v":5.0869063759738674E-2},{"$f":"'Population at Risk'!AB32/'Population at Risk'!AB$5","v":5.5046630019025843E-2},{"$f":"'Population at Risk'!AY32/'Population at Risk'!AY$5","v":5.1383726798512115E-2},{"$f":"'Population at Risk'!AC32/'Population at Risk'!AC$5","v":4.7444791801660328E-2},{"$f":"'Population at Risk'!AD32/'Population at Risk'!AD$5","v":5.7087338163369979E-2},{"$f":"'Population at Risk'!AE32/'Population at Risk'!AE$5","v":4.9930443283329143E-2},{"$f":"'Population at Risk'!G32/'Population at Risk'!G$5","v":5.6611216027104214E-2},{"$f":"'Population at Risk'!AF32/'Population at Risk'!AF$5","v":5.4274210639418161E-2},{"$f":"'Population at Risk'!H32/'Population at Risk'!H$5","v":4.7547354115236883E-2},{"$f":"'Population at Risk'!AG32/'Population at Risk'!AG$5","v":5.524423483235151E-2},{"$f":"'Population at Risk'!AZ32/'Population at Risk'!AZ$5","v":5.3237853572544264E-2},{"$f":"'Population at Risk'!I32/'Population at Risk'!I$5","v":5.1133985856541248E-2},{"$f":"'Population at Risk'!J32/'Population at Risk'!J$5","v":5.3241943733508851E-2},{"$f":"'Population at Risk'!K32/'Population at Risk'!K$5","v":4.5060088408027867E-2},{"$f":"'Population at Risk'!AH32/'Population at Risk'!AH$5","v":5.707887938176915E-2},{"$f":"'Population at Risk'!AI32/'Population at Risk'!AI$5","v":4.8251622358438495E-2},{"$f":"'Population at Risk'!BA32/'Population at Risk'!BA$5","v":5.1089195675801953E-2},{"$f":"'Population at Risk'!L32/'Population at Risk'!L$5","v":5.257799016637886E-2},{"$f":"'Population at Risk'!M32/'Population at Risk'!M$5","v":5.1608327533235195E-2},{"$f":"'Population at Risk'!AJ32/'Population at Risk'!AJ$5","v":5.4233803665839839E-2},{"$f":"'Population at Risk'!AK32/'Population at Risk'!AK$5","v":5.3942958839711695E-2},{"$f":"'Population at Risk'!AL32/'Population at Risk'!AL$5","v":4.7028828679263938E-2},{"$f":"'Population at Risk'!AM32/'Population at Risk'!AM$5","v":5.5048600350990552E-2},{"$f":"'Population at Risk'!N32/'Population at Risk'!N$5","v":4.6826473520836569E-2},{"$f":"'Population at Risk'!AN32/'Population at Risk'!AN$5","v":5.3914481244787565E-2},{"$f":"'Population at Risk'!AO32/'Population at Risk'!AO$5","v":5.3914481244787565E-2},{"$f":"'Population at Risk'!AP32/'Population at Risk'!AP$5","v":5.5445862773711524E-2},{"$f":"'Population at Risk'!C32/'Population at Risk'!C$5","v":4.7344667707987384E-2},{"$f":"'Population at Risk'!AQ32/'Population at Risk'!AQ$5","v":6.0214475932885966E-2},{"$f":"'Population at Risk'!O32/'Population at Risk'!O$5","v":4.029303891218132E-2},{"$f":"'Population at Risk'!AR32/'Population at Risk'!AR$5","v":5.0819609490780383E-2},{"$f":"'Population at Risk'!AS32/'Population at Risk'!AS$5","v":5.1133985856541248E-2},{"$f":"'Population at Risk'!AT32/'Population at Risk'!AT$5","v":4.9173325862032519E-2},{"$f":"'Population at Risk'!AU32/'Population at Risk'!AU$5","v":4.9173325862032519E-2},{"$f":"'Population at Risk'!BB32/'Population at Risk'!BB$5","v":5.1180814683884211E-2},{"$f":"'Population at Risk'!P32/'Population at Risk'!P$5","v":5.7962670215288205E-2},{"$f":"'Population at Risk'!AV32/'Population at Risk'!AV$5","v":5.5934285329007565E-2},{"$f":"'Population at Risk'!AW32/'Population at Risk'!AW$5","v":6.0788314648241949E-2},{"$f":"'Population at Risk'!Q32/'Population at Risk'!Q$5","v":5.6865457490354605E-2},30]
[null,"Female 55-59",{"$f":"'Population at Risk'!R33/'Population at Risk'!R$5","v":4.7985507846603222E-2},{"$f":"'Population at Risk'!AX33/'Population at Risk'!AX$5","v":4.2963580389249308E-2},{"$f":"'Population at Risk'!S33/'Population at Risk'!S$5","v":4.078056039185176E-2},{"$f":"'Population at Risk'!T33/'Population at Risk'!T$5","v":3.6711339567876852E-2},{"$f":"'Population at Risk'!U33/'Population at Risk'!U$5","v":3.257639519386777E-2},{"$f":"'Population at Risk'!D33/'Population at Risk'!D$5","v":4.4325184366411724E-2},{"$f":"'Population at Risk'!E33/'Population at Risk'!E$5","v":4.8851283358379294E-2},{"$f":"'Population at Risk'!BC33/'Population at Risk'!BC$5","v":2.8149613386120331E-2},{"$f":"'Population at Risk'!V33/'Population at Risk'!V$5","v":4.4275654598841009E-2},{"$f":"'Population at Risk'!F33/'Population at Risk'!F$5","v":4.1961263544636383E-2},{"$f":"'Population at Risk'!W33/'Population at Risk'!W$5","v":4.1846905791247946E-2},{"$f":"'Population at Risk'!X33/'Population at Risk'!X$5","v":4.2602176446376615E-2},{"$f":"'Population at Risk'!Y33/'Population at Risk'!Y$5","v":3.8698180315273188E-2},{"$f":"'Population at Risk'!Z33/'Population at Risk'!Z$5","v":3.5099163727320158E-2},{"$f":"'Population at Risk'!AA33/'Population at Risk'!AA$5","v":4.3218715412697575E-2},{"$f":"'Population at Risk'!AB33/'Population at Risk'!AB$5","v":4.5386930791535801E-2},{"$f":"'Population at Risk'!AY33/'Population at Risk'!AY$5","v":4.4485544681475378E-2},{"$f":"'Population at Risk'!AC33/'Population at Risk'!AC$5","v":4.0943864171596643E-2},{"$f":"'Population at Risk'!AD33/'Population at Risk'!AD$5","v":4.9276351558708624E-2},{"$f":"'Population at Risk'!AE33/'Population at Risk'!AE$5","v":4.3020587239879761E-2},{"$f":"'Population at Risk'!G33/'Population at Risk'!G$5","v":4.9104229728439877E-2},{"$f":"'Population at Risk'!AF33/'Population at Risk'!AF$5","v":4.9423532627117378E-2},{"$f":"'Population at Risk'!H33/'Population at Risk'!H$5","v":4.1421321629314799E-2},{"$f":"'Population at Risk'!AG33/'Population at Risk'!AG$5","v":4.7599005092332093E-2},{"$f":"'Population at Risk'!AZ33/'Population at Risk'!AZ$5","v":4.7250532089645532E-2},{"$f":"'Population at Risk'!I33/'Population at Risk'!I$5","v":4.576122270169574E-2},{"$f":"'Population at Risk'!J33/'Population at Risk'!J$5","v":4.3160818470820095E-2},{"$f":"'Population at Risk'!K33/'Population at Risk'!K$5","v":3.6572936405637087E-2},{"$f":"'Population at Risk'!AH33/'Population at Risk'!AH$5","v":4.724885795705832E-2},{"$f":"'Population at Risk'!AI33/'Population at Risk'!AI$5","v":3.9646985799661298E-2},{"$f":"'Population at Risk'!BA33/'Population at Risk'!BA$5","v":4.4694136998234567E-2},{"$f":"'Population at Risk'!L33/'Population at Risk'!L$5","v":4.3322457963040163E-2},{"$f":"'Population at Risk'!M33/'Population at Risk'!M$5","v":4.2523489259029879E-2},{"$f":"'Population at Risk'!AJ33/'Population at Risk'!AJ$5","v":4.3194483259474038E-2},{"$f":"'Population at Risk'!AK33/'Population at Risk'!AK$5","v":4.5811176867783958E-2},{"$f":"'Population at Risk'!AL33/'Population at Risk'!AL$5","v":4.1959444663163127E-2},{"$f":"'Population at Risk'!AM33/'Population at Risk'!AM$5","v":4.4408095459993212E-2},{"$f":"'Population at Risk'!N33/'Population at Risk'!N$5","v":4.318604930518348E-2},{"$f":"'Population at Risk'!AN33/'Population at Risk'!AN$5","v":4.7515479835990929E-2},{"$f":"'Population at Risk'!AO33/'Population at Risk'!AO$5","v":4.7515479835990929E-2},{"$f":"'Population at Risk'!AP33/'Population at Risk'!AP$5","v":4.8674337868894475E-2},{"$f":"'Population at Risk'!C33/'Population at Risk'!C$5","v":3.876229738593983E-2},{"$f":"'Population at Risk'!AQ33/'Population at Risk'!AQ$5","v":5.1313838874103408E-2},{"$f":"'Population at Risk'!O33/'Population at Risk'!O$5","v":3.3856310743617578E-2},{"$f":"'Population at Risk'!AR33/'Population at Risk'!AR$5","v":4.2892726197776877E-2},{"$f":"'Population at Risk'!AS33/'Population at Risk'!AS$5","v":4.576122270169574E-2},{"$f":"'Population at Risk'!AT33/'Population at Risk'!AT$5","v":4.4667356165164027E-2},{"$f":"'Population at Risk'!AU33/'Population at Risk'!AU$5","v":4.4667356165164027E-2},{"$f":"'Population at Risk'!BB33/'Population at Risk'!BB$5","v":3.8412551476031433E-2},{"$f":"'Population at Risk'!P33/'Population at Risk'!P$5","v":5.0156097044803893E-2},{"$f":"'Population at Risk'!AV33/'Population at Risk'!AV$5","v":4.9160331326006022E-2},{"$f":"'Population at Risk'!AW33/'Population at Risk'!AW$5","v":5.1546128384602256E-2},{"$f":"'Population at Risk'!Q33/'Population at Risk'!Q$5","v":4.8468328518282214E-2},31]
[null,"Female 60-64",{"$f":"'Population at Risk'!R34/'Population at Risk'!R$5","v":4.1891977529885369E-2},{"$f":"'Population at Risk'!AX34/'Population at Risk'!AX$5","v":3.7007037524912231E-2},{"$f":"'Population at Risk'!S34/'Population at Risk'!S$5","v":3.5144222847241439E-2},{"$f":"'Population at Risk'!T34/'Population at Risk'!T$5","v":3.0604378993767088E-2},{"$f":"'Population at Risk'!U34/'Population at Risk'!U$5","v":3.2336679491745429E-2},{"$f":"'Population at Risk'!D34/'Population at Risk'!D$5","v":3.9399201025158349E-2},{"$f":"'Population at Risk'!E34/'Population at Risk'!E$5","v":4.4869886381030344E-2},{"$f":"'Population at Risk'!BC34/'Population at Risk'!BC$5","v":2.7942472470215782E-2},{"$f":"'Population at Risk'!V34/'Population at Risk'!V$5","v":3.8393463820451688E-2},{"$f":"'Population at Risk'!F34/'Population at Risk'!F$5","v":3.8922880719227282E-2},{"$f":"'Population at Risk'!W34/'Population at Risk'!W$5","v":3.7561040223875283E-2},{"$f":"'Population at Risk'!X34/'Population at Risk'!X$5","v":3.8238957764510598E-2},{"$f":"'Population at Risk'!Y34/'Population at Risk'!Y$5","v":3.3701017469136403E-2},{"$f":"'Population at Risk'!Z34/'Population at Risk'!Z$5","v":2.7569809497086751E-2},{"$f":"'Population at Risk'!AA34/'Population at Risk'!AA$5","v":3.60354910885647E-2},{"$f":"'Population at Risk'!AB34/'Population at Risk'!AB$5","v":4.0610912878246905E-2},{"$f":"'Population at Risk'!AY34/'Population at Risk'!AY$5","v":3.9635724691556747E-2},{"$f":"'Population at Risk'!AC34/'Population at Risk'!AC$5","v":3.3523475114418222E-2},{"$f":"'Population at Risk'!AD34/'Population at Risk'!AD$5","v":4.6111327071886296E-2},{"$f":"'Population at Risk'!AE34/'Population at Risk'!AE$5","v":4.0296525018180596E-2},{"$f":"'Population at Risk'!G34/'Population at Risk'!G$5","v":4.5830535271813619E-2},{"$f":"'Population at Risk'!AF34/'Population at Risk'!AF$5","v":4.0979630845350591E-2},{"$f":"'Population at Risk'!H34/'Population at Risk'!H$5","v":3.7884221363521348E-2},{"$f":"'Population at Risk'!AG34/'Population at Risk'!AG$5","v":4.4585037597200082E-2},{"$f":"'Population at Risk'!AZ34/'Population at Risk'!AZ$5","v":4.1838713517517931E-2},{"$f":"'Population at Risk'!I34/'Population at Risk'!I$5","v":4.1452116604837788E-2},{"$f":"'Population at Risk'!J34/'Population at Risk'!J$5","v":3.7753234672480061E-2},{"$f":"'Population at Risk'!K34/'Population at Risk'!K$5","v":3.2960240961366308E-2},{"$f":"'Population at Risk'!AH34/'Population at Risk'!AH$5","v":4.0603907538754931E-2},{"$f":"'Population at Risk'!AI34/'Population at Risk'!AI$5","v":3.3245565990673215E-2},{"$f":"'Population at Risk'!BA34/'Population at Risk'!BA$5","v":3.7139600887950652E-2},{"$f":"'Population at Risk'!L34/'Population at Risk'!L$5","v":4.2035810839590536E-2},{"$f":"'Population at Risk'!M34/'Population at Risk'!M$5","v":4.1260570955067327E-2},{"$f":"'Population at Risk'!AJ34/'Population at Risk'!AJ$5","v":3.674027290492797E-2},{"$f":"'Population at Risk'!AK34/'Population at Risk'!AK$5","v":4.229773458101245E-2},{"$f":"'Population at Risk'!AL34/'Population at Risk'!AL$5","v":3.9199315574002573E-2},{"$f":"'Population at Risk'!AM34/'Population at Risk'!AM$5","v":3.795067095477403E-2},{"$f":"'Population at Risk'!N34/'Population at Risk'!N$5","v":3.3510889735514748E-2},{"$f":"'Population at Risk'!AN34/'Population at Risk'!AN$5","v":4.4289472586402014E-2},{"$f":"'Population at Risk'!AO34/'Population at Risk'!AO$5","v":4.4289472586402014E-2},{"$f":"'Population at Risk'!AP34/'Population at Risk'!AP$5","v":4.5549682154948451E-2},{"$f":"'Population at Risk'!C34/'Population at Risk'!C$5","v":3.2776706297445168E-2},{"$f":"'Population at Risk'!AQ34/'Population at Risk'!AQ$5","v":4.2798969898718515E-2},{"$f":"'Population at Risk'!O34/'Population at Risk'!O$5","v":2.9803456800982973E-2},{"$f":"'Population at Risk'!AR34/'Population at Risk'!AR$5","v":3.7416519956307834E-2},{"$f":"'Population at Risk'!AS34/'Population at Risk'!AS$5","v":4.1452116604837788E-2},{"$f":"'Population at Risk'!AT34/'Population at Risk'!AT$5","v":4.1950872968513991E-2},{"$f":"'Population at Risk'!AU34/'Population at Risk'!AU$5","v":4.1950872968513991E-2},{"$f":"'Population at Risk'!BB34/'Population at Risk'!BB$5","v":3.2259127930571931E-2},{"$f":"'Population at Risk'!P34/'Population at Risk'!P$5","v":4.27408799732866E-2},{"$f":"'Population at Risk'!AV34/'Population at Risk'!AV$5","v":4.5491545822681341E-2},{"$f":"'Population at Risk'!AW34/'Population at Risk'!AW$5","v":4.452097030732384E-2},{"$f":"'Population at Risk'!Q34/'Population at Risk'!Q$5","v":4.1063275190249916E-2},32]
[null,"Female 65-69",{"$f":"'Population at Risk'!R35/'Population at Risk'!R$5","v":3.2750504136455756E-2},{"$f":"'Population at Risk'!AX35/'Population at Risk'!AX$5","v":2.7240080953460009E-2},{"$f":"'Population at Risk'!S35/'Population at Risk'!S$5","v":2.6391784159472208E-2},{"$f":"'Population at Risk'!T35/'Population at Risk'!T$5","v":2.4114560422602176E-2},{"$f":"'Population at Risk'!U35/'Population at Risk'!U$5","v":2.6160682673966217E-2},{"$f":"'Population at Risk'!D35/'Population at Risk'!D$5","v":2.7958050474484662E-2},{"$f":"'Population at Risk'!E35/'Population at Risk'!E$5","v":3.0786930930980696E-2},{"$f":"'Population at Risk'!BC35/'Population at Risk'!BC$5","v":2.2605727208507998E-2},{"$f":"'Population at Risk'!V35/'Population at Risk'!V$5","v":2.7758345136000707E-2},{"$f":"'Population at Risk'!F35/'Population at Risk'!F$5","v":3.0600727909415142E-2},{"$f":"'Population at Risk'!W35/'Population at Risk'!W$5","v":2.8612241246196612E-2},{"$f":"'Population at Risk'!X35/'Population at Risk'!X$5","v":2.9128647077932782E-2},{"$f":"'Population at Risk'!Y35/'Population at Risk'!Y$5","v":2.4675185278270749E-2},{"$f":"'Population at Risk'!Z35/'Population at Risk'!Z$5","v":1.5554192150163232E-2},{"$f":"'Population at Risk'!AA35/'Population at Risk'!AA$5","v":2.3192373682018055E-2},{"$f":"'Population at Risk'!AB35/'Population at Risk'!AB$5","v":2.8783655785605232E-2},{"$f":"'Population at Risk'!AY35/'Population at Risk'!AY$5","v":2.9692143635187716E-2},{"$f":"'Population at Risk'!AC35/'Population at Risk'!AC$5","v":2.1891066418535807E-2},{"$f":"'Population at Risk'!AD35/'Population at Risk'!AD$5","v":3.1898311213025173E-2},{"$f":"'Population at Risk'!AE35/'Population at Risk'!AE$5","v":2.675036082096734E-2},{"$f":"'Population at Risk'!G35/'Population at Risk'!G$5","v":3.5145511665903975E-2},{"$f":"'Population at Risk'!AF35/'Population at Risk'!AF$5","v":2.7230820468375057E-2},{"$f":"'Population at Risk'!H35/'Population at Risk'!H$5","v":2.7079407587468754E-2},{"$f":"'Population at Risk'!AG35/'Population at Risk'!AG$5","v":2.9597238034877734E-2},{"$f":"'Population at Risk'!AZ35/'Population at Risk'!AZ$5","v":3.0895165934632027E-2},{"$f":"'Population at Risk'!I35/'Population at Risk'!I$5","v":2.9702659374117254E-2},{"$f":"'Population at Risk'!J35/'Population at Risk'!J$5","v":2.7996928851863351E-2},{"$f":"'Population at Risk'!K35/'Population at Risk'!K$5","v":2.47864432509677E-2},{"$f":"'Population at Risk'!AH35/'Population at Risk'!AH$5","v":2.5513243595907849E-2},{"$f":"'Population at Risk'!AI35/'Population at Risk'!AI$5","v":2.50022603641053E-2},{"$f":"'Population at Risk'!BA35/'Population at Risk'!BA$5","v":2.2541706553378751E-2},{"$f":"'Population at Risk'!L35/'Population at Risk'!L$5","v":3.0122046286488544E-2},{"$f":"'Population at Risk'!M35/'Population at Risk'!M$5","v":2.9566524429806604E-2},{"$f":"'Population at Risk'!AJ35/'Population at Risk'!AJ$5","v":2.7940488117551135E-2},{"$f":"'Population at Risk'!AK35/'Population at Risk'!AK$5","v":2.981329856095789E-2},{"$f":"'Population at Risk'!AL35/'Population at Risk'!AL$5","v":2.6298532244711351E-2},{"$f":"'Population at Risk'!AM35/'Population at Risk'!AM$5","v":2.3585443220246308E-2},{"$f":"'Population at Risk'!N35/'Population at Risk'!N$5","v":2.446520324486268E-2},{"$f":"'Population at Risk'!AN35/'Population at Risk'!AN$5","v":2.8701351881329523E-2},{"$f":"'Population at Risk'!AO35/'Population at Risk'!AO$5","v":2.8701351881329523E-2},{"$f":"'Population at Risk'!AP35/'Population at Risk'!AP$5","v":3.2304416156406369E-2},{"$f":"'Population at Risk'!C35/'Population at Risk'!C$5","v":2.4479344874770229E-2},{"$f":"'Population at Risk'!AQ35/'Population at Risk'!AQ$5","v":2.9669254623698429E-2},{"$f":"'Population at Risk'!O35/'Population at Risk'!O$5","v":2.0797934285245841E-2},{"$f":"'Population at Risk'!AR35/'Population at Risk'!AR$5","v":2.6262674933633028E-2},{"$f":"'Population at Risk'!AS35/'Population at Risk'!AS$5","v":2.9702659374117254E-2},{"$f":"'Population at Risk'!AT35/'Population at Risk'!AT$5","v":2.3029875918116661E-2},{"$f":"'Population at Risk'!AU35/'Population at Risk'!AU$5","v":2.3029875918116661E-2},{"$f":"'Population at Risk'!BB35/'Population at Risk'!BB$5","v":2.2228502244683816E-2},{"$f":"'Population at Risk'!P35/'Population at Risk'!P$5","v":3.369575422960247E-2},{"$f":"'Population at Risk'!AV35/'Population at Risk'!AV$5","v":3.5345135326535111E-2},{"$f":"'Population at Risk'!AW35/'Population at Risk'!AW$5","v":2.8250110569264023E-2},{"$f":"'Population at Risk'!Q35/'Population at Risk'!Q$5","v":2.8582441226277292E-2},33]
[null,"Female 70-74",{"$f":"'Population at Risk'!R36/'Population at Risk'!R$5","v":2.7250014541378771E-2},{"$f":"'Population at Risk'!AX36/'Population at Risk'!AX$5","v":2.202906320985374E-2},{"$f":"'Population at Risk'!S36/'Population at Risk'!S$5","v":2.0027065219292598E-2},{"$f":"'Population at Risk'!T36/'Population at Risk'!T$5","v":1.7984197523978122E-2},{"$f":"'Population at Risk'!U36/'Population at Risk'!U$5","v":2.0903206383203237E-2},{"$f":"'Population at Risk'!D36/'Population at Risk'!D$5","v":2.059386749771442E-2},{"$f":"'Population at Risk'!E36/'Population at Risk'!E$5","v":2.2464394666540724E-2},{"$f":"'Population at Risk'!BC36/'Population at Risk'!BC$5","v":1.8062685411190566E-2},{"$f":"'Population at Risk'!V36/'Population at Risk'!V$5","v":2.0546181218167696E-2},{"$f":"'Population at Risk'!F36/'Population at Risk'!F$5","v":2.3221704918395428E-2},{"$f":"'Population at Risk'!W36/'Population at Risk'!W$5","v":2.1868799652468532E-2},{"$f":"'Population at Risk'!X36/'Population at Risk'!X$5","v":2.2263496998140675E-2},{"$f":"'Population at Risk'!Y36/'Population at Risk'!Y$5","v":1.8831296655906108E-2},{"$f":"'Population at Risk'!Z36/'Population at Risk'!Z$5","v":1.1532355802380915E-2},{"$f":"'Population at Risk'!AA36/'Population at Risk'!AA$5","v":1.7896065005051275E-2},{"$f":"'Population at Risk'!AB36/'Population at Risk'!AB$5","v":2.1572792908892691E-2},{"$f":"'Population at Risk'!AY36/'Population at Risk'!AY$5","v":2.2933256226465984E-2},{"$f":"'Population at Risk'!AC36/'Population at Risk'!AC$5","v":1.6905191726101502E-2},{"$f":"'Population at Risk'!AD36/'Population at Risk'!AD$5","v":2.4778653831643245E-2},{"$f":"'Population at Risk'!AE36/'Population at Risk'!AE$5","v":2.0807016117336589E-2},{"$f":"'Population at Risk'!G36/'Population at Risk'!G$5","v":2.7217613158330441E-2},{"$f":"'Population at Risk'!AF36/'Population at Risk'!AF$5","v":2.1698254892992375E-2},{"$f":"'Population at Risk'!H36/'Population at Risk'!H$5","v":2.1613984705063191E-2},{"$f":"'Population at Risk'!AG36/'Population at Risk'!AG$5","v":2.3021379522389526E-2},{"$f":"'Population at Risk'!AZ36/'Population at Risk'!AZ$5","v":2.4079690421936525E-2},{"$f":"'Population at Risk'!I36/'Population at Risk'!I$5","v":2.3048180007404176E-2},{"$f":"'Population at Risk'!J36/'Population at Risk'!J$5","v":2.2008483901725415E-2},{"$f":"'Population at Risk'!K36/'Population at Risk'!K$5","v":1.8444453367803645E-2},{"$f":"'Population at Risk'!AH36/'Population at Risk'!AH$5","v":1.9660890385409743E-2},{"$f":"'Population at Risk'!AI36/'Population at Risk'!AI$5","v":1.8833007426614038E-2},{"$f":"'Population at Risk'!BA36/'Population at Risk'!BA$5","v":1.6237555422315548E-2},{"$f":"'Population at Risk'!L36/'Population at Risk'!L$5","v":2.5627115698820171E-2},{"$f":"'Population at Risk'!M36/'Population at Risk'!M$5","v":2.5154491005298023E-2},{"$f":"'Population at Risk'!AJ36/'Population at Risk'!AJ$5","v":2.0730975277243692E-2},{"$f":"'Population at Risk'!AK36/'Population at Risk'!AK$5","v":2.4143533754869741E-2},{"$f":"'Population at Risk'!AL36/'Population at Risk'!AL$5","v":2.0929319138298562E-2},{"$f":"'Population at Risk'!AM36/'Population at Risk'!AM$5","v":1.8047156332287102E-2},{"$f":"'Population at Risk'!N36/'Population at Risk'!N$5","v":1.8683590382400413E-2},{"$f":"'Population at Risk'!AN36/'Population at Risk'!AN$5","v":2.4747169178469548E-2},{"$f":"'Population at Risk'!AO36/'Population at Risk'!AO$5","v":2.4747169178469548E-2},{"$f":"'Population at Risk'!AP36/'Population at Risk'!AP$5","v":2.602738237256795E-2},{"$f":"'Population at Risk'!C36/'Population at Risk'!C$5","v":1.8278593609026398E-2},{"$f":"'Population at Risk'!AQ36/'Population at Risk'!AQ$5","v":2.2544408594698521E-2},{"$f":"'Population at Risk'!O36/'Population at Risk'!O$5","v":1.5787922183033147E-2},{"$f":"'Population at Risk'!AR36/'Population at Risk'!AR$5","v":2.0267808993560382E-2},{"$f":"'Population at Risk'!AS36/'Population at Risk'!AS$5","v":2.3048180007404176E-2},{"$f":"'Population at Risk'!AT36/'Population at Risk'!AT$5","v":1.9568467513771663E-2},{"$f":"'Population at Risk'!AU36/'Population at Risk'!AU$5","v":1.9568467513771663E-2},{"$f":"'Population at Risk'!BB36/'Population at Risk'!BB$5","v":1.6841553421012626E-2},{"$f":"'Population at Risk'!P36/'Population at Risk'!P$5","v":2.7519110130584609E-2},{"$f":"'Population at Risk'!AV36/'Population at Risk'!AV$5","v":2.9377292161217348E-2},{"$f":"'Population at Risk'!AW36/'Population at Risk'!AW$5","v":2.1905452222987905E-2},{"$f":"'Population at Risk'!Q36/'Population at Risk'!Q$5","v":2.254725567297463E-2},34]
[null,"Female 75-79",{"$f":"'Population at Risk'!R37/'Population at Risk'!R$5","v":1.0213719289829152E-2},{"$f":"'Population at Risk'!AX37/'Population at Risk'!AX$5","v":8.1639095589950902E-3},{"$f":"'Population at Risk'!S37/'Population at Risk'!S$5","v":6.7595954012267716E-3},{"$f":"'Population at Risk'!T37/'Population at Risk'!T$5","v":6.9547898842343067E-3},{"$f":"'Population at Risk'!U37/'Population at Risk'!U$5","v":4.8639433032023286E-3},{"$f":"'Population at Risk'!D37/'Population at Risk'!D$5","v":7.6552419104749395E-3},{"$f":"'Population at Risk'!E37/'Population at Risk'!E$5","v":8.055762688022973E-3},{"$f":"'Population at Risk'!BC37/'Population at Risk'!BC$5","v":4.2029857110441821E-3},{"$f":"'Population at Risk'!V37/'Population at Risk'!V$5","v":6.6895035797044176E-3},{"$f":"'Population at Risk'!F37/'Population at Risk'!F$5","v":7.6164368544222542E-3},{"$f":"'Population at Risk'!W37/'Population at Risk'!W$5","v":6.6801422479068192E-3},{"$f":"'Population at Risk'!X37/'Population at Risk'!X$5","v":6.8007082806046193E-3},{"$f":"'Population at Risk'!Y37/'Population at Risk'!Y$5","v":6.3096540106973662E-3},{"$f":"'Population at Risk'!Z37/'Population at Risk'!Z$5","v":3.9411712668105999E-3},{"$f":"'Population at Risk'!AA37/'Population at Risk'!AA$5","v":5.9869973721384242E-3},{"$f":"'Population at Risk'!AB37/'Population at Risk'!AB$5","v":7.8521455101766852E-3},{"$f":"'Population at Risk'!AY37/'Population at Risk'!AY$5","v":7.6137209005574351E-3},{"$f":"'Population at Risk'!AC37/'Population at Risk'!AC$5","v":5.9637598494400373E-3},{"$f":"'Population at Risk'!AD37/'Population at Risk'!AD$5","v":7.7062158700478929E-3},{"$f":"'Population at Risk'!AE37/'Population at Risk'!AE$5","v":6.5778743593026138E-3},{"$f":"'Population at Risk'!G37/'Population at Risk'!G$5","v":8.1380211213225775E-3},{"$f":"'Population at Risk'!AF37/'Population at Risk'!AF$5","v":7.0502826602804446E-3},{"$f":"'Population at Risk'!H37/'Population at Risk'!H$5","v":6.5459659978244281E-3},{"$f":"'Population at Risk'!AG37/'Population at Risk'!AG$5","v":7.2779172766596779E-3},{"$f":"'Population at Risk'!AZ37/'Population at Risk'!AZ$5","v":8.541483257506503E-3},{"$f":"'Population at Risk'!I37/'Population at Risk'!I$5","v":8.019126509629609E-3},{"$f":"'Population at Risk'!J37/'Population at Risk'!J$5","v":7.5701909747937007E-3},{"$f":"'Population at Risk'!K37/'Population at Risk'!K$5","v":5.3528666263909655E-3},{"$f":"'Population at Risk'!AH37/'Population at Risk'!AH$5","v":5.9721305454590989E-3},{"$f":"'Population at Risk'!AI37/'Population at Risk'!AI$5","v":6.6164750057646424E-3},{"$f":"'Population at Risk'!BA37/'Population at Risk'!BA$5","v":5.0670659113529037E-3},{"$f":"'Population at Risk'!L37/'Population at Risk'!L$5","v":7.1585098226960341E-3},{"$f":"'Population at Risk'!M37/'Population at Risk'!M$5","v":7.0264899516036825E-3},{"$f":"'Population at Risk'!AJ37/'Population at Risk'!AJ$5","v":6.0671465576027884E-3},{"$f":"'Population at Risk'!AK37/'Population at Risk'!AK$5","v":7.9915625382732669E-3},{"$f":"'Population at Risk'!AL37/'Population at Risk'!AL$5","v":6.3064912863390827E-3},{"$f":"'Population at Risk'!AM37/'Population at Risk'!AM$5","v":5.2465257147977038E-3},{"$f":"'Population at Risk'!N37/'Population at Risk'!N$5","v":6.6922593247119872E-3},{"$f":"'Population at Risk'!AN37/'Population at Risk'!AN$5","v":8.0017344252660411E-3},{"$f":"'Population at Risk'!AO37/'Population at Risk'!AO$5","v":8.0017344252660411E-3},{"$f":"'Population at Risk'!AP37/'Population at Risk'!AP$5","v":9.7008229051412133E-3},{"$f":"'Population at Risk'!C37/'Population at Risk'!C$5","v":7.1362867078875779E-3},{"$f":"'Population at Risk'!AQ37/'Population at Risk'!AQ$5","v":7.0493232854083321E-3},{"$f":"'Population at Risk'!O37/'Population at Risk'!O$5","v":4.4924104422617017E-3},{"$f":"'Population at Risk'!AR37/'Population at Risk'!AR$5","v":6.7626442558278797E-3},{"$f":"'Population at Risk'!AS37/'Population at Risk'!AS$5","v":8.019126509629609E-3},{"$f":"'Population at Risk'!AT37/'Population at Risk'!AT$5","v":6.5111811593947713E-3},{"$f":"'Population at Risk'!AU37/'Population at Risk'!AU$5","v":6.5111811593947713E-3},{"$f":"'Population at Risk'!BB37/'Population at Risk'!BB$5","v":4.7551035068480341E-3},{"$f":"'Population at Risk'!P37/'Population at Risk'!P$5","v":1.1783977552809008E-2},{"$f":"'Population at Risk'!AV37/'Population at Risk'!AV$5","v":9.3248506313648241E-3},{"$f":"'Population at Risk'!AW37/'Population at Risk'!AW$5","v":6.9028549480349474E-3},{"$f":"'Population at Risk'!Q37/'Population at Risk'!Q$5","v":7.7014990138209918E-3},35]
[null,"Female 80-84",{"$f":"'Population at Risk'!R38/'Population at Risk'!R$5","v":8.6394463385982782E-3},{"$f":"'Population at Risk'!AX38/'Population at Risk'!AX$5","v":6.0455344167334663E-3},{"$f":"'Population at Risk'!S38/'Population at Risk'!S$5","v":5.1735920882758626E-3},{"$f":"'Population at Risk'!T38/'Population at Risk'!T$5","v":5.8179873779261228E-3},{"$f":"'Population at Risk'!U38/'Population at Risk'!U$5","v":3.6352049326656604E-3},{"$f":"'Population at Risk'!D38/'Population at Risk'!D$5","v":5.850662777253976E-3},{"$f":"'Population at Risk'!E38/'Population at Risk'!E$5","v":5.9570633638260772E-3},{"$f":"'Population at Risk'!BC38/'Population at Risk'!BC$5","v":3.1412196722465664E-3},{"$f":"'Population at Risk'!V38/'Population at Risk'!V$5","v":4.6733562382309992E-3},{"$f":"'Population at Risk'!F38/'Population at Risk'!F$5","v":5.9753528602697285E-3},{"$f":"'Population at Risk'!W38/'Population at Risk'!W$5","v":4.9606297157092786E-3},{"$f":"'Population at Risk'!X38/'Population at Risk'!X$5","v":5.050161258947492E-3},{"$f":"'Population at Risk'!Y38/'Population at Risk'!Y$5","v":4.4847058326267222E-3},{"$f":"'Population at Risk'!Z38/'Population at Risk'!Z$5","v":3.2369788364223105E-3},{"$f":"'Population at Risk'!AA38/'Population at Risk'!AA$5","v":4.611840395758641E-3},{"$f":"'Population at Risk'!AB38/'Population at Risk'!AB$5","v":6.0682432397662894E-3},{"$f":"'Population at Risk'!AY38/'Population at Risk'!AY$5","v":5.8840475538455032E-3},{"$f":"'Population at Risk'!AC38/'Population at Risk'!AC$5","v":4.7034293033246409E-3},{"$f":"'Population at Risk'!AD38/'Population at Risk'!AD$5","v":5.8941885466739334E-3},{"$f":"'Population at Risk'!AE38/'Population at Risk'!AE$5","v":5.1391970385179543E-3},{"$f":"'Population at Risk'!G38/'Population at Risk'!G$5","v":5.8941136547107763E-3},{"$f":"'Population at Risk'!AF38/'Population at Risk'!AF$5","v":5.6251028295982476E-3},{"$f":"'Population at Risk'!H38/'Population at Risk'!H$5","v":4.9210244608845575E-3},{"$f":"'Population at Risk'!AG38/'Population at Risk'!AG$5","v":5.6861303320414136E-3},{"$f":"'Population at Risk'!AZ38/'Population at Risk'!AZ$5","v":6.7914737856611248E-3},{"$f":"'Population at Risk'!I38/'Population at Risk'!I$5","v":5.5181507757337085E-3},{"$f":"'Population at Risk'!J38/'Population at Risk'!J$5","v":5.4625084708284435E-3},{"$f":"'Population at Risk'!K38/'Population at Risk'!K$5","v":3.601239784638925E-3},{"$f":"'Population at Risk'!AH38/'Population at Risk'!AH$5","v":4.3853982983171301E-3},{"$f":"'Population at Risk'!AI38/'Population at Risk'!AI$5","v":5.2178015123132753E-3},{"$f":"'Population at Risk'!BA38/'Population at Risk'!BA$5","v":3.6396342939940618E-3},{"$f":"'Population at Risk'!L38/'Population at Risk'!L$5","v":5.632625684080351E-3},{"$f":"'Population at Risk'!M38/'Population at Risk'!M$5","v":5.5287467295015488E-3},{"$f":"'Population at Risk'!AJ38/'Population at Risk'!AJ$5","v":4.3278738124192719E-3},{"$f":"'Population at Risk'!AK38/'Population at Risk'!AK$5","v":6.5027300774860991E-3},{"$f":"'Population at Risk'!AL38/'Population at Risk'!AL$5","v":4.7323325847538544E-3},{"$f":"'Population at Risk'!AM38/'Population at Risk'!AM$5","v":3.6779951097942109E-3},{"$f":"'Population at Risk'!N38/'Population at Risk'!N$5","v":5.8233785120564638E-3},{"$f":"'Population at Risk'!AN38/'Population at Risk'!AN$5","v":5.2536693427995967E-3},{"$f":"'Population at Risk'!AO38/'Population at Risk'!AO$5","v":5.2536693427995967E-3},{"$f":"'Population at Risk'!AP38/'Population at Risk'!AP$5","v":7.3628593102606282E-3},{"$f":"'Population at Risk'!C38/'Population at Risk'!C$5","v":5.6855101105969478E-3},{"$f":"'Population at Risk'!AQ38/'Population at Risk'!AQ$5","v":5.3308983686509827E-3},{"$f":"'Population at Risk'!O38/'Population at Risk'!O$5","v":3.2787922209837231E-3},{"$f":"'Population at Risk'!AR38/'Population at Risk'!AR$5","v":5.181507773477782E-3},{"$f":"'Population at Risk'!AS38/'Population at Risk'!AS$5","v":5.5181507757337085E-3},{"$f":"'Population at Risk'!AT38/'Population at Risk'!AT$5","v":4.7337112514823287E-3},{"$f":"'Population at Risk'!AU38/'Population at Risk'!AU$5","v":4.7337112514823287E-3},{"$f":"'Population at Risk'!BB38/'Population at Risk'!BB$5","v":3.1446674586398395E-3},{"$f":"'Population at Risk'!P38/'Population at Risk'!P$5","v":8.6874320741697018E-3},{"$f":"'Population at Risk'!AV38/'Population at Risk'!AV$5","v":7.1528955268071537E-3},{"$f":"'Population at Risk'!AW38/'Population at Risk'!AW$5","v":5.2534352199078305E-3},{"$f":"'Population at Risk'!Q38/'Population at Risk'!Q$5","v":5.8052194899349497E-3},36]
[null,"Female 85-89",{"$f":"'Population at Risk'!R39/'Population at Risk'!R$5","v":5.8151132093288939E-3},{"$f":"'Population at Risk'!AX39/'Population at Risk'!AX$5","v":3.551008790212337E-3},{"$f":"'Population at Risk'!S39/'Population at Risk'!S$5","v":3.3839561730308939E-3},{"$f":"'Population at Risk'!T39/'Population at Risk'!T$5","v":4.1770176462303486E-3},{"$f":"'Population at Risk'!U39/'Population at Risk'!U$5","v":2.3144893740798637E-3},{"$f":"'Population at Risk'!D39/'Population at Risk'!D$5","v":3.8763330250433637E-3},{"$f":"'Population at Risk'!E39/'Population at Risk'!E$5","v":3.8128394527616231E-3},{"$f":"'Population at Risk'!BC39/'Population at Risk'!BC$5","v":1.9999751562105338E-3},{"$f":"'Population at Risk'!V39/'Population at Risk'!V$5","v":2.694066977596085E-3},{"$f":"'Population at Risk'!F39/'Population at Risk'!F$5","v":3.7727751965773723E-3},{"$f":"'Population at Risk'!W39/'Population at Risk'!W$5","v":3.0991553291878421E-3},{"$f":"'Population at Risk'!X39/'Population at Risk'!X$5","v":3.1550901953759838E-3},{"$f":"'Population at Risk'!Y39/'Population at Risk'!Y$5","v":2.6064483291199118E-3},{"$f":"'Population at Risk'!Z39/'Population at Risk'!Z$5","v":2.0173953456073595E-3},{"$f":"'Population at Risk'!AA39/'Population at Risk'!AA$5","v":2.8068802772767154E-3},{"$f":"'Population at Risk'!AB39/'Population at Risk'!AB$5","v":3.963257348501891E-3},{"$f":"'Population at Risk'!AY39/'Population at Risk'!AY$5","v":3.8022909274701444E-3},{"$f":"'Population at Risk'!AC39/'Population at Risk'!AC$5","v":2.9563547389673257E-3},{"$f":"'Population at Risk'!AD39/'Population at Risk'!AD$5","v":3.6574197180153059E-3},{"$f":"'Population at Risk'!AE39/'Population at Risk'!AE$5","v":3.1949013171189782E-3},{"$f":"'Population at Risk'!G39/'Population at Risk'!G$5","v":3.6391379067123881E-3},{"$f":"'Population at Risk'!AF39/'Population at Risk'!AF$5","v":3.7399931563028071E-3},{"$f":"'Population at Risk'!H39/'Population at Risk'!H$5","v":2.8752793551992985E-3},{"$f":"'Population at Risk'!AG39/'Population at Risk'!AG$5","v":3.5349151143635061E-3},{"$f":"'Population at Risk'!AZ39/'Population at Risk'!AZ$5","v":4.4890337463920306E-3},{"$f":"'Population at Risk'!I39/'Population at Risk'!I$5","v":3.3963767758104077E-3},{"$f":"'Population at Risk'!J39/'Population at Risk'!J$5","v":3.1968959501372991E-3},{"$f":"'Population at Risk'!K39/'Population at Risk'!K$5","v":2.0857987662877956E-3},{"$f":"'Population at Risk'!AH39/'Population at Risk'!AH$5","v":2.485013629417315E-3},{"$f":"'Population at Risk'!AI39/'Population at Risk'!AI$5","v":3.5049004507168263E-3},{"$f":"'Population at Risk'!BA39/'Population at Risk'!BA$5","v":2.2523850210621229E-3},{"$f":"'Population at Risk'!L39/'Population at Risk'!L$5","v":3.362903448292414E-3},{"$f":"'Population at Risk'!M39/'Population at Risk'!M$5","v":3.3008835460032557E-3},{"$f":"'Population at Risk'!AJ39/'Population at Risk'!AJ$5","v":2.2576008085133698E-3},{"$f":"'Population at Risk'!AK39/'Population at Risk'!AK$5","v":3.9713854980477576E-3},{"$f":"'Population at Risk'!AL39/'Population at Risk'!AL$5","v":2.7148065582591266E-3},{"$f":"'Population at Risk'!AM39/'Population at Risk'!AM$5","v":1.876690102729159E-3},{"$f":"'Population at Risk'!N39/'Population at Risk'!N$5","v":3.9145207446210769E-3},{"$f":"'Population at Risk'!AN39/'Population at Risk'!AN$5","v":3.5701983047734145E-3},{"$f":"'Population at Risk'!AO39/'Population at Risk'!AO$5","v":3.5701983047734145E-3},{"$f":"'Population at Risk'!AP39/'Population at Risk'!AP$5","v":4.9610986752127778E-3},{"$f":"'Population at Risk'!C39/'Population at Risk'!C$5","v":3.9222119633793955E-3},{"$f":"'Population at Risk'!AQ39/'Population at Risk'!AQ$5","v":3.1744577943258511E-3},{"$f":"'Population at Risk'!O39/'Population at Risk'!O$5","v":1.913313199940513E-3},{"$f":"'Population at Risk'!AR39/'Population at Risk'!AR$5","v":3.2594363932192576E-3},{"$f":"'Population at Risk'!AS39/'Population at Risk'!AS$5","v":3.3963767758104077E-3},{"$f":"'Population at Risk'!AT39/'Population at Risk'!AT$5","v":2.964213440903907E-3},{"$f":"'Population at Risk'!AU39/'Population at Risk'!AU$5","v":2.964213440903907E-3},{"$f":"'Population at Risk'!BB39/'Population at Risk'!BB$5","v":1.7798817947301045E-3},{"$f":"'Population at Risk'!P39/'Population at Risk'!P$5","v":5.3452063082177446E-3},{"$f":"'Population at Risk'!AV39/'Population at Risk'!AV$5","v":4.2453524835638556E-3},{"$f":"'Population at Risk'!AW39/'Population at Risk'!AW$5","v":3.1962594879538534E-3},{"$f":"'Population at Risk'!Q39/'Population at Risk'!Q$5","v":3.631607474060646E-3},37]
[null,"Female 90+",{"$f":"'Population at Risk'!R40/'Population at Risk'!R$5","v":3.5831380826726856E-3},{"$f":"'Population at Risk'!AX40/'Population at Risk'!AX$5","v":2.3366942848947257E-3},{"$f":"'Population at Risk'!S40/'Population at Risk'!S$5","v":2.0681264372073662E-3},{"$f":"'Population at Risk'!T40/'Population at Risk'!T$5","v":2.5466789738169027E-3},{"$f":"'Population at Risk'!U40/'Population at Risk'!U$5","v":1.618337140968825E-3},{"$f":"'Population at Risk'!D40/'Population at Risk'!D$5","v":2.2770198194866564E-3},{"$f":"'Population at Risk'!E40/'Population at Risk'!E$5","v":2.2984237101665835E-3},{"$f":"'Population at Risk'!BC40/'Population at Risk'!BC$5","v":1.3984225257448739E-3},{"$f":"'Population at Risk'!V40/'Population at Risk'!V$5","v":1.7655754080950152E-3},{"$f":"'Population at Risk'!F40/'Population at Risk'!F$5","v":2.5071860466239428E-3},{"$f":"'Population at Risk'!W40/'Population at Risk'!W$5","v":1.9798903692369368E-3},{"$f":"'Population at Risk'!X40/'Population at Risk'!X$5","v":2.015624268027831E-3},{"$f":"'Population at Risk'!Y40/'Population at Risk'!Y$5","v":1.6662246302353943E-3},{"$f":"'Population at Risk'!Z40/'Population at Risk'!Z$5","v":1.2204095197677336E-3},{"$f":"'Population at Risk'!AA40/'Population at Risk'!AA$5","v":1.5812529412943537E-3},{"$f":"'Population at Risk'!AB40/'Population at Risk'!AB$5","v":2.3150992175283163E-3},{"$f":"'Population at Risk'!AY40/'Population at Risk'!AY$5","v":2.3843422180098413E-3},{"$f":"'Population at Risk'!AC40/'Population at Risk'!AC$5","v":1.7417338918184291E-3},{"$f":"'Population at Risk'!AD40/'Population at Risk'!AD$5","v":2.1910844825164073E-3},{"$f":"'Population at Risk'!AE40/'Population at Risk'!AE$5","v":1.8687380117884706E-3},{"$f":"'Population at Risk'!G40/'Population at Risk'!G$5","v":2.318532576051279E-3},{"$f":"'Population at Risk'!AF40/'Population at Risk'!AF$5","v":2.2856808480140336E-3},{"$f":"'Population at Risk'!H40/'Population at Risk'!H$5","v":1.8086080327625478E-3},{"$f":"'Population at Risk'!AG40/'Population at Risk'!AG$5","v":2.0676163633791102E-3},{"$f":"'Population at Risk'!AZ40/'Population at Risk'!AZ$5","v":2.7805909126185141E-3},{"$f":"'Population at Risk'!I40/'Population at Risk'!I$5","v":2.1166128461069167E-3},{"$f":"'Population at Risk'!J40/'Population at Risk'!J$5","v":2.0000657345667886E-3},{"$f":"'Population at Risk'!K40/'Population at Risk'!K$5","v":1.1104389530051724E-3},{"$f":"'Population at Risk'!AH40/'Population at Risk'!AH$5","v":1.2501585325313592E-3},{"$f":"'Population at Risk'!AI40/'Population at Risk'!AI$5","v":2.1000422951130732E-3},{"$f":"'Population at Risk'!BA40/'Population at Risk'!BA$5","v":1.1890441880725859E-3},{"$f":"'Population at Risk'!L40/'Population at Risk'!L$5","v":1.8797758171959598E-3},{"$f":"'Population at Risk'!M40/'Population at Risk'!M$5","v":1.8451083001825843E-3},{"$f":"'Population at Risk'!AJ40/'Population at Risk'!AJ$5","v":1.448475084987163E-3},{"$f":"'Population at Risk'!AK40/'Population at Risk'!AK$5","v":2.2564242876419527E-3},{"$f":"'Population at Risk'!AL40/'Population at Risk'!AL$5","v":1.6649410184495963E-3},{"$f":"'Population at Risk'!AM40/'Population at Risk'!AM$5","v":8.8783869041116591E-4},{"$f":"'Population at Risk'!N40/'Population at Risk'!N$5","v":2.072317328638191E-3},{"$f":"'Population at Risk'!AN40/'Population at Risk'!AN$5","v":2.0047316644596158E-3},{"$f":"'Population at Risk'!AO40/'Population at Risk'!AO$5","v":2.0047316644596158E-3},{"$f":"'Population at Risk'!AP40/'Population at Risk'!AP$5","v":3.2231635385943937E-3},{"$f":"'Population at Risk'!C40/'Population at Risk'!C$5","v":2.2359322414821532E-3},{"$f":"'Population at Risk'!AQ40/'Population at Risk'!AQ$5","v":1.722697901551277E-3},{"$f":"'Population at Risk'!O40/'Population at Risk'!O$5","v":1.0712234136558934E-3},{"$f":"'Population at Risk'!AR40/'Population at Risk'!AR$5","v":1.9419642789610266E-3},{"$f":"'Population at Risk'!AS40/'Population at Risk'!AS$5","v":2.1166128461069167E-3},{"$f":"'Population at Risk'!AT40/'Population at Risk'!AT$5","v":1.8616146134625999E-3},{"$f":"'Population at Risk'!AU40/'Population at Risk'!AU$5","v":1.8616146134625999E-3},{"$f":"'Population at Risk'!BB40/'Population at Risk'!BB$5","v":9.7261116469533383E-4},{"$f":"'Population at Risk'!P40/'Population at Risk'!P$5","v":3.0991100544608204E-3},{"$f":"'Population at Risk'!AV40/'Population at Risk'!AV$5","v":2.901159279672637E-3},{"$f":"'Population at Risk'!AW40/'Population at Risk'!AW$5","v":1.6674843588789839E-3},{"$f":"'Population at Risk'!Q40/'Population at Risk'!Q$5","v":2.0386682858139992E-3},38]
[null,"Male 0-4",{"$f":"'Population at Risk'!R41/'Population at Risk'!R$5","v":0},{"$f":"'Population at Risk'!AX41/'Population at Risk'!AX$5","v":0},{"$f":"'Population at Risk'!S41/'Population at Risk'!S$5","v":0},{"$f":"'Population at Risk'!T41/'Population at Risk'!T$5","v":0},{"$f":"'Population at Risk'!U41/'Population at Risk'!U$5","v":0},{"$f":"'Population at Risk'!D41/'Population at Risk'!D$5","v":0},{"$f":"'Population at Risk'!E41/'Population at Risk'!E$5","v":0},{"$f":"'Population at Risk'!BC41/'Population at Risk'!BC$5","v":0},{"$f":"'Population at Risk'!V41/'Population at Risk'!V$5","v":0},{"$f":"'Population at Risk'!F41/'Population at Risk'!F$5","v":0},{"$f":"'Population at Risk'!W41/'Population at Risk'!W$5","v":0},{"$f":"'Population at Risk'!X41/'Population at Risk'!X$5","v":0},{"$f":"'Population at Risk'!Y41/'Population at Risk'!Y$5","v":0},{"$f":"'Population at Risk'!Z41/'Population at Risk'!Z$5","v":0},{"$f":"'Population at Risk'!AA41/'Population at Risk'!AA$5","v":0},{"$f":"'Population at Risk'!AB41/'Population at Risk'!AB$5","v":0},{"$f":"'Population at Risk'!AY41/'Population at Risk'!AY$5","v":0},{"$f":"'Population at Risk'!AC41/'Population at Risk'!AC$5","v":0},{"$f":"'Population at Risk'!AD41/'Population at Risk'!AD$5","v":0},{"$f":"'Population at Risk'!AE41/'Population at Risk'!AE$5","v":0},{"$f":"'Population at Risk'!G41/'Population at Risk'!G$5","v":0},{"$f":"'Population at Risk'!AF41/'Population at Risk'!AF$5","v":0},{"$f":"'Population at Risk'!H41/'Population at Risk'!H$5","v":0},{"$f":"'Population at Risk'!AG41/'Population at Risk'!AG$5","v":0},{"$f":"'Population at Risk'!AZ41/'Population at Risk'!AZ$5","v":0},{"$f":"'Population at Risk'!I41/'Population at Risk'!I$5","v":0},{"$f":"'Population at Risk'!J41/'Population at Risk'!J$5","v":0},{"$f":"'Population at Risk'!K41/'Population at Risk'!K$5","v":0},{"$f":"'Population at Risk'!AH41/'Population at Risk'!AH$5","v":0},{"$f":"'Population at Risk'!AI41/'Population at Risk'!AI$5","v":0},{"$f":"'Population at Risk'!BA41/'Population at Risk'!BA$5","v":0},{"$f":"'Population at Risk'!L41/'Population at Risk'!L$5","v":0},{"$f":"'Population at Risk'!M41/'Population at Risk'!M$5","v":0},{"$f":"'Population at Risk'!AJ41/'Population at Risk'!AJ$5","v":0},{"$f":"'Population at Risk'!AK41/'Population at Risk'!AK$5","v":0},{"$f":"'Population at Risk'!AL41/'Population at Risk'!AL$5","v":0},{"$f":"'Population at Risk'!AM41/'Population at Risk'!AM$5","v":0},{"$f":"'Population at Risk'!N41/'Population at Risk'!N$5","v":0},{"$f":"'Population at Risk'!AN41/'Population at Risk'!AN$5","v":0},{"$f":"'Population at Risk'!AO41/'Population at Risk'!AO$5","v":0},{"$f":"'Population at Risk'!AP41/'Population at Risk'!AP$5","v":0},{"$f":"'Population at Risk'!C41/'Population at Risk'!C$5","v":0},{"$f":"'Population at Risk'!AQ41/'Population at Risk'!AQ$5","v":0},{"$f":"'Population at Risk'!O41/'Population at Risk'!O$5","v":0},{"$f":"'Population at Risk'!AR41/'Population at Risk'!AR$5","v":0},{"$f":"'Population at Risk'!AS41/'Population at Risk'!AS$5","v":0},{"$f":"'Population at Risk'!AT41/'Population at Risk'!AT$5","v":0},{"$f":"'Population at Risk'!AU41/'Population at Risk'!AU$5","v":0},{"$f":"'Population at Risk'!BB41/'Population at Risk'!BB$5","v":0},{"$f":"'Population at Risk'!P41/'Population at Risk'!P$5","v":0},{"$f":"'Population at Risk'!AV41/'Population at Risk'!AV$5","v":0},{"$f":"'Population at Risk'!AW41/'Population at Risk'!AW$5","v":0},{"$f":"'Population at Risk'!Q41/'Population at Risk'!Q$5","v":0},39]
[null,"Male 5-9",{"$f":"'Population at Risk'!R42/'Population at Risk'!R$5","v":0},{"$f":"'Population at Risk'!AX42/'Population at Risk'!AX$5","v":0},{"$f":"'Population at Risk'!S42/'Population at Risk'!S$5","v":0},{"$f":"'Population at Risk'!T42/'Population at Risk'!T$5","v":0},{"$f":"'Population at Risk'!U42/'Population at Risk'!U$5","v":0},{"$f":"'Population at Risk'!D42/'Population at Risk'!D$5","v":0},{"$f":"'Population at Risk'!E42/'Population at Risk'!E$5","v":0},{"$f":"'Population at Risk'!BC42/'Population at Risk'!BC$5","v":0},{"$f":"'Population at Risk'!V42/'Population at Risk'!V$5","v":0},{"$f":"'Population at Risk'!F42/'Population at Risk'!F$5","v":0},{"$f":"'Population at Risk'!W42/'Population at Risk'!W$5","v":0},{"$f":"'Population at Risk'!X42/'Population at Risk'!X$5","v":0},{"$f":"'Population at Risk'!Y42/'Population at Risk'!Y$5","v":0},{"$f":"'Population at Risk'!Z42/'Population at Risk'!Z$5","v":0},{"$f":"'Population at Risk'!AA42/'Population at Risk'!AA$5","v":0},{"$f":"'Population at Risk'!AB42/'Population at Risk'!AB$5","v":0},{"$f":"'Population at Risk'!AY42/'Population at Risk'!AY$5","v":0},{"$f":"'Population at Risk'!AC42/'Population at Risk'!AC$5","v":0},{"$f":"'Population at Risk'!AD42/'Population at Risk'!AD$5","v":0},{"$f":"'Population at Risk'!AE42/'Population at Risk'!AE$5","v":0},{"$f":"'Population at Risk'!G42/'Population at Risk'!G$5","v":0},{"$f":"'Population at Risk'!AF42/'Population at Risk'!AF$5","v":0},{"$f":"'Population at Risk'!H42/'Population at Risk'!H$5","v":0},{"$f":"'Population at Risk'!AG42/'Population at Risk'!AG$5","v":0},{"$f":"'Population at Risk'!AZ42/'Population at Risk'!AZ$5","v":0},{"$f":"'Population at Risk'!I42/'Population at Risk'!I$5","v":0},{"$f":"'Population at Risk'!J42/'Population at Risk'!J$5","v":0},{"$f":"'Population at Risk'!K42/'Population at Risk'!K$5","v":0},{"$f":"'Population at Risk'!AH42/'Population at Risk'!AH$5","v":0},{"$f":"'Population at Risk'!AI42/'Population at Risk'!AI$5","v":0},{"$f":"'Population at Risk'!BA42/'Population at Risk'!BA$5","v":0},{"$f":"'Population at Risk'!L42/'Population at Risk'!L$5","v":0},{"$f":"'Population at Risk'!M42/'Population at Risk'!M$5","v":0},{"$f":"'Population at Risk'!AJ42/'Population at Risk'!AJ$5","v":0},{"$f":"'Population at Risk'!AK42/'Population at Risk'!AK$5","v":0},{"$f":"'Population at Risk'!AL42/'Population at Risk'!AL$5","v":0},{"$f":"'Population at Risk'!AM42/'Population at Risk'!AM$5","v":0},{"$f":"'Population at Risk'!N42/'Population at Risk'!N$5","v":0},{"$f":"'Population at Risk'!AN42/'Population at Risk'!AN$5","v":0},{"$f":"'Population at Risk'!AO42/'Population at Risk'!AO$5","v":0},{"$f":"'Population at Risk'!AP42/'Population at Risk'!AP$5","v":0},{"$f":"'Population at Risk'!C42/'Population at Risk'!C$5","v":0},{"$f":"'Population at Risk'!AQ42/'Population at Risk'!AQ$5","v":0},{"$f":"'Population at Risk'!O42/'Population at Risk'!O$5","v":0},{"$f":"'Population at Risk'!AR42/'Population at Risk'!AR$5","v":0},{"$f":"'Population at Risk'!AS42/'Population at Risk'!AS$5","v":0},{"$f":"'Population at Risk'!AT42/'Population at Risk'!AT$5","v":0},{"$f":"'Population at Risk'!AU42/'Population at Risk'!AU$5","v":0},{"$f":"'Population at Risk'!BB42/'Population at Risk'!BB$5","v":0},{"$f":"'Population at Risk'!P42/'Population at Risk'!P$5","v":0},{"$f":"'Population at Risk'!AV42/'Population at Risk'!AV$5","v":0},{"$f":"'Population at Risk'!AW42/'Population at Risk'!AW$5","v":0},{"$f":"'Population at Risk'!Q42/'Population at Risk'!Q$5","v":0},40]
[null,"Male 10-15",{"$f":"'Population at Risk'!R43/'Population at Risk'!R$5","v":0},{"$f":"'Population at Risk'!AX43/'Population at Risk'!AX$5","v":0},{"$f":"'Population at Risk'!S43/'Population at Risk'!S$5","v":0},{"$f":"'Population at Risk'!T43/'Population at Risk'!T$5","v":0},{"$f":"'Population at Risk'!U43/'Population at Risk'!U$5","v":0},{"$f":"'Population at Risk'!D43/'Population at Risk'!D$5","v":0},{"$f":"'Population at Risk'!E43/'Population at Risk'!E$5","v":0},{"$f":"'Population at Risk'!BC43/'Population at Risk'!BC$5","v":0},{"$f":"'Population at Risk'!V43/'Population at Risk'!V$5","v":0},{"$f":"'Population at Risk'!F43/'Population at Risk'!F$5","v":0},{"$f":"'Population at Risk'!W43/'Population at Risk'!W$5","v":0},{"$f":"'Population at Risk'!X43/'Population at Risk'!X$5","v":0},{"$f":"'Population at Risk'!Y43/'Population at Risk'!Y$5","v":0},{"$f":"'Population at Risk'!Z43/'Population at Risk'!Z$5","v":0},{"$f":"'Population at Risk'!AA43/'Population at Risk'!AA$5","v":0},{"$f":"'Population at Risk'!AB43/'Population at Risk'!AB$5","v":0},{"$f":"'Population at Risk'!AY43/'Population at Risk'!AY$5","v":0},{"$f":"'Population at Risk'!AC43/'Population at Risk'!AC$5","v":0},{"$f":"'Population at Risk'!AD43/'Population at Risk'!AD$5","v":0},{"$f":"'Population at Risk'!AE43/'Population at Risk'!AE$5","v":0},{"$f":"'Population at Risk'!G43/'Population at Risk'!G$5","v":0},{"$f":"'Population at Risk'!AF43/'Population at Risk'!AF$5","v":0},{"$f":"'Population at Risk'!H43/'Population at Risk'!H$5","v":0},{"$f":"'Population at Risk'!AG43/'Population at Risk'!AG$5","v":0},{"$f":"'Population at Risk'!AZ43/'Population at Risk'!AZ$5","v":0},{"$f":"'Population at Risk'!I43/'Population at Risk'!I$5","v":0},{"$f":"'Population at Risk'!J43/'Population at Risk'!J$5","v":0},{"$f":"'Population at Risk'!K43/'Population at Risk'!K$5","v":0},{"$f":"'Population at Risk'!AH43/'Population at Risk'!AH$5","v":0},{"$f":"'Population at Risk'!AI43/'Population at Risk'!AI$5","v":0},{"$f":"'Population at Risk'!BA43/'Population at Risk'!BA$5","v":0},{"$f":"'Population at Risk'!L43/'Population at Risk'!L$5","v":0},{"$f":"'Population at Risk'!M43/'Population at Risk'!M$5","v":0},{"$f":"'Population at Risk'!AJ43/'Population at Risk'!AJ$5","v":0},{"$f":"'Population at Risk'!AK43/'Population at Risk'!AK$5","v":0},{"$f":"'Population at Risk'!AL43/'Population at Risk'!AL$5","v":0},{"$f":"'Population at Risk'!AM43/'Population at Risk'!AM$5","v":0},{"$f":"'Population at Risk'!N43/'Population at Risk'!N$5","v":0},{"$f":"'Population at Risk'!AN43/'Population at Risk'!AN$5","v":0},{"$f":"'Population at Risk'!AO43/'Population at Risk'!AO$5","v":0},{"$f":"'Population at Risk'!AP43/'Population at Risk'!AP$5","v":0},{"$f":"'Population at Risk'!C43/'Population at Risk'!C$5","v":0},{"$f":"'Population at Risk'!AQ43/'Population at Risk'!AQ$5","v":0},{"$f":"'Population at Risk'!O43/'Population at Risk'!O$5","v":0},{"$f":"'Population at Risk'!AR43/'Population at Risk'!AR$5","v":0},{"$f":"'Population at Risk'!AS43/'Population at Risk'!AS$5","v":0},{"$f":"'Population at Risk'!AT43/'Population at Risk'!AT$5","v":0},{"$f":"'Population at Risk'!AU43/'Population at Risk'!AU$5","v":0},{"$f":"'Population at Risk'!BB43/'Population at Risk'!BB$5","v":0},{"$f":"'Population at Risk'!P43/'Population at Risk'!P$5","v":0},{"$f":"'Population at Risk'!AV43/'Population at Risk'!AV$5","v":0},{"$f":"'Population at Risk'!AW43/'Population at Risk'!AW$5","v":0},{"$f":"'Population at Risk'!Q43/'Population at Risk'!Q$5","v":0},41]
[null,"Male 16-19",{"$f":"'Population at Risk'!R44/'Population at Risk'!R$5","v":3.5786874027664943E-2},{"$f":"'Population at Risk'!AX44/'Population at Risk'!AX$5","v":3.7431823377527609E-2},{"$f":"'Population at Risk'!S44/'Population at Risk'!S$5","v":3.000145697986949E-2},{"$f":"'Population at Risk'!T44/'Population at Risk'!T$5","v":2.6653303419242925E-2},{"$f":"'Population at Risk'!U44/'Population at Risk'!U$5","v":3.7759523350663703E-2},{"$f":"'Population at Risk'!D44/'Population at Risk'!D$5","v":2.8317071479115344E-2},{"$f":"'Population at Risk'!E44/'Population at Risk'!E$5","v":3.1657188806604925E-2},{"$f":"'Population at Risk'!BC44/'Population at Risk'!BC$5","v":4.0536606085560381E-2},{"$f":"'Population at Risk'!V44/'Population at Risk'!V$5","v":3.0251465225796918E-2},{"$f":"'Population at Risk'!F44/'Population at Risk'!F$5","v":3.6534397170083673E-2},{"$f":"'Population at Risk'!W44/'Population at Risk'!W$5","v":3.2358411244226996E-2},{"$f":"'Population at Risk'!X44/'Population at Risk'!X$5","v":3.1920168516475778E-2},{"$f":"'Population at Risk'!Y44/'Population at Risk'!Y$5","v":3.5934496137252372E-2},{"$f":"'Population at Risk'!Z44/'Population at Risk'!Z$5","v":2.9537292645380433E-2},{"$f":"'Population at Risk'!AA44/'Population at Risk'!AA$5","v":3.0753796784090855E-2},{"$f":"'Population at Risk'!AB44/'Population at Risk'!AB$5","v":2.8835254528009169E-2},{"$f":"'Population at Risk'!AY44/'Population at Risk'!AY$5","v":3.2100431428056027E-2},{"$f":"'Population at Risk'!AC44/'Population at Risk'!AC$5","v":3.0822512004425998E-2},{"$f":"'Population at Risk'!AD44/'Population at Risk'!AD$5","v":3.3164328510823009E-2},{"$f":"'Population at Risk'!AE44/'Population at Risk'!AE$5","v":3.6140916520604693E-2},{"$f":"'Population at Risk'!G44/'Population at Risk'!G$5","v":3.4611070855161546E-2},{"$f":"'Population at Risk'!AF44/'Population at Risk'!AF$5","v":3.0609434746322373E-2},{"$f":"'Population at Risk'!H44/'Population at Risk'!H$5","v":3.2904888453786009E-2},{"$f":"'Population at Risk'!AG44/'Population at Risk'!AG$5","v":3.3591601529995144E-2},{"$f":"'Population at Risk'!AZ44/'Population at Risk'!AZ$5","v":3.1601372739523903E-2},{"$f":"'Population at Risk'!I44/'Population at Risk'!I$5","v":3.3428186727676792E-2},{"$f":"'Population at Risk'!J44/'Population at Risk'!J$5","v":3.5536155362605355E-2},{"$f":"'Population at Risk'!K44/'Population at Risk'!K$5","v":3.6088123022982935E-2},{"$f":"'Population at Risk'!AH44/'Population at Risk'!AH$5","v":3.0592110957135557E-2},{"$f":"'Population at Risk'!AI44/'Population at Risk'!AI$5","v":2.8552136776619493E-2},{"$f":"'Population at Risk'!BA44/'Population at Risk'!BA$5","v":2.9620125515245309E-2},{"$f":"'Population at Risk'!L44/'Population at Risk'!L$5","v":3.2123707512323137E-2},{"$f":"'Population at Risk'!M44/'Population at Risk'!M$5","v":3.2547777655455794E-2},{"$f":"'Population at Risk'!AJ44/'Population at Risk'!AJ$5","v":2.999930951658545E-2},{"$f":"'Population at Risk'!AK44/'Population at Risk'!AK$5","v":3.4398736552410936E-2},{"$f":"'Population at Risk'!AL44/'Population at Risk'!AL$5","v":3.3226304158962931E-2},{"$f":"'Population at Risk'!AM44/'Population at Risk'!AM$5","v":3.1729427842308727E-2},{"$f":"'Population at Risk'!N44/'Population at Risk'!N$5","v":2.9742010135010825E-2},{"$f":"'Population at Risk'!AN44/'Population at Risk'!AN$5","v":3.3425076683033343E-2},{"$f":"'Population at Risk'!AO44/'Population at Risk'!AO$5","v":3.3425076683033343E-2},{"$f":"'Population at Risk'!AP44/'Population at Risk'!AP$5","v":3.3062519731599148E-2},{"$f":"'Population at Risk'!C44/'Population at Risk'!C$5","v":2.471014839682904E-2},{"$f":"'Population at Risk'!AQ44/'Population at Risk'!AQ$5","v":2.8952298410748929E-2},{"$f":"'Population at Risk'!O44/'Population at Risk'!O$5","v":3.5756276929777682E-2},{"$f":"'Population at Risk'!AR44/'Population at Risk'!AR$5","v":3.1239401458975948E-2},{"$f":"'Population at Risk'!AS44/'Population at Risk'!AS$5","v":3.3428186727676792E-2},{"$f":"'Population at Risk'!AT44/'Population at Risk'!AT$5","v":3.802608021054843E-2},{"$f":"'Population at Risk'!AU44/'Population at Risk'!AU$5","v":3.802608021054843E-2},{"$f":"'Population at Risk'!BB44/'Population at Risk'!BB$5","v":3.4108690885348375E-2},{"$f":"'Population at Risk'!P44/'Population at Risk'!P$5","v":3.1643505161053083E-2},{"$f":"'Population at Risk'!AV44/'Population at Risk'!AV$5","v":2.9470502927472643E-2},{"$f":"'Population at Risk'!AW44/'Population at Risk'!AW$5","v":2.8685201227485857E-2},{"$f":"'Population at Risk'!Q44/'Population at Risk'!Q$5","v":3.0830234795567419E-2},42]
[null,"Male 20-24",{"$f":"'Population at Risk'!R45/'Population at Risk'!R$5","v":4.0759027600192232E-2},{"$f":"'Population at Risk'!AX45/'Population at Risk'!AX$5","v":5.606944642814924E-2},{"$f":"'Population at Risk'!S45/'Population at Risk'!S$5","v":4.6836495291674704E-2},{"$f":"'Population at Risk'!T45/'Population at Risk'!T$5","v":5.4460968720512301E-2},{"$f":"'Population at Risk'!U45/'Population at Risk'!U$5","v":4.4314278674184783E-2},{"$f":"'Population at Risk'!D45/'Population at Risk'!D$5","v":4.5636224372273215E-2},{"$f":"'Population at Risk'!E45/'Population at Risk'!E$5","v":3.7022643316482029E-2},{"$f":"'Population at Risk'!BC45/'Population at Risk'!BC$5","v":4.7573441060124046E-2},{"$f":"'Population at Risk'!V45/'Population at Risk'!V$5","v":3.7698670823524155E-2},{"$f":"'Population at Risk'!F45/'Population at Risk'!F$5","v":4.2616735666600909E-2},{"$f":"'Population at Risk'!W45/'Population at Risk'!W$5","v":4.512437040552443E-2},{"$f":"'Population at Risk'!X45/'Population at Risk'!X$5","v":4.4513233257123752E-2},{"$f":"'Population at Risk'!Y45/'Population at Risk'!Y$5","v":4.8125887579730867E-2},{"$f":"'Population at Risk'!Z45/'Population at Risk'!Z$5","v":6.0603056006383438E-2},{"$f":"'Population at Risk'!AA45/'Population at Risk'!AA$5","v":4.6585626876386031E-2},{"$f":"'Population at Risk'!AB45/'Population at Risk'!AB$5","v":4.4620444509571026E-2},{"$f":"'Population at Risk'!AY45/'Population at Risk'!AY$5","v":4.5589513921633004E-2},{"$f":"'Population at Risk'!AC45/'Population at Risk'!AC$5","v":5.1346167388417817E-2},{"$f":"'Population at Risk'!AD45/'Population at Risk'!AD$5","v":3.8834406745417792E-2},{"$f":"'Population at Risk'!AE45/'Population at Risk'!AE$5","v":4.0260170313796299E-2},{"$f":"'Population at Risk'!G45/'Population at Risk'!G$5","v":4.5485248189754253E-2},{"$f":"'Population at Risk'!AF45/'Population at Risk'!AF$5","v":3.9593489771080334E-2},{"$f":"'Population at Risk'!H45/'Population at Risk'!H$5","v":4.1050915248186839E-2},{"$f":"'Population at Risk'!AG45/'Population at Risk'!AG$5","v":3.7420290598877075E-2},{"$f":"'Population at Risk'!AZ45/'Population at Risk'!AZ$5","v":4.5555952317359358E-2},{"$f":"'Population at Risk'!I45/'Population at Risk'!I$5","v":3.7643267842533176E-2},{"$f":"'Population at Risk'!J45/'Population at Risk'!J$5","v":5.0764605535930929E-2},{"$f":"'Population at Risk'!K45/'Population at Risk'!K$5","v":4.609226008215668E-2},{"$f":"'Population at Risk'!AH45/'Population at Risk'!AH$5","v":3.8696099579762444E-2},{"$f":"'Population at Risk'!AI45/'Population at Risk'!AI$5","v":4.8566348669010433E-2},{"$f":"'Population at Risk'!BA45/'Population at Risk'!BA$5","v":4.2421150723380881E-2},{"$f":"'Population at Risk'!L45/'Population at Risk'!L$5","v":3.9104906215558385E-2},{"$f":"'Population at Risk'!M45/'Population at Risk'!M$5","v":3.9621136266826902E-2},{"$f":"'Population at Risk'!AJ45/'Population at Risk'!AJ$5","v":3.8607837499030059E-2},{"$f":"'Population at Risk'!AK45/'Population at Risk'!AK$5","v":4.3594922483214511E-2},{"$f":"'Population at Risk'!AL45/'Population at Risk'!AL$5","v":4.2313960323097678E-2},{"$f":"'Population at Risk'!AM45/'Population at Risk'!AM$5","v":4.0239707725357302E-2},{"$f":"'Population at Risk'!N45/'Population at Risk'!N$5","v":5.7846310499654711E-2},{"$f":"'Population at Risk'!AN45/'Population at Risk'!AN$5","v":3.8710851616885401E-2},{"$f":"'Population at Risk'!AO45/'Population at Risk'!AO$5","v":3.8710851616885401E-2},{"$f":"'Population at Risk'!AP45/'Population at Risk'!AP$5","v":4.0477780381407188E-2},{"$f":"'Population at Risk'!C45/'Population at Risk'!C$5","v":5.5664367890580713E-2},{"$f":"'Population at Risk'!AQ45/'Population at Risk'!AQ$5","v":3.7441702375588221E-2},{"$f":"'Population at Risk'!O45/'Population at Risk'!O$5","v":4.6382252789940986E-2},{"$f":"'Population at Risk'!AR45/'Population at Risk'!AR$5","v":4.558297430334058E-2},{"$f":"'Population at Risk'!AS45/'Population at Risk'!AS$5","v":3.7643267842533176E-2},{"$f":"'Population at Risk'!AT45/'Population at Risk'!AT$5","v":4.9378329293157767E-2},{"$f":"'Population at Risk'!AU45/'Population at Risk'!AU$5","v":4.9378329293157767E-2},{"$f":"'Population at Risk'!BB45/'Population at Risk'!BB$5","v":4.4327673228123421E-2},{"$f":"'Population at Risk'!P45/'Population at Risk'!P$5","v":4.0238503135159892E-2},{"$f":"'Population at Risk'!AV45/'Population at Risk'!AV$5","v":3.4319120125902582E-2},{"$f":"'Population at Risk'!AW45/'Population at Risk'!AW$5","v":3.6180243246533142E-2},{"$f":"'Population at Risk'!Q45/'Population at Risk'!Q$5","v":3.953110831565522E-2},43]
[null,"Male 25-29",{"$f":"'Population at Risk'!R46/'Population at Risk'!R$5","v":3.0390137188843824E-2},{"$f":"'Population at Risk'!AX46/'Population at Risk'!AX$5","v":3.9395593401768951E-2},{"$f":"'Population at Risk'!S46/'Population at Risk'!S$5","v":4.5973762036921398E-2},{"$f":"'Population at Risk'!T46/'Population at Risk'!T$5","v":6.2797517173757381E-2},{"$f":"'Population at Risk'!U46/'Population at Risk'!U$5","v":3.3559000592020612E-2},{"$f":"'Population at Risk'!D46/'Population at Risk'!D$5","v":4.7665614030168224E-2},{"$f":"'Population at Risk'!E46/'Population at Risk'!E$5","v":3.0742885528356079E-2},{"$f":"'Population at Risk'!BC46/'Population at Risk'!BC$5","v":3.6027149362835256E-2},{"$f":"'Population at Risk'!V46/'Population at Risk'!V$5","v":3.5504231345344389E-2},{"$f":"'Population at Risk'!F46/'Population at Risk'!F$5","v":3.4145860149611691E-2},{"$f":"'Population at Risk'!W46/'Population at Risk'!W$5","v":3.6315746885764798E-2},{"$f":"'Population at Risk'!X46/'Population at Risk'!X$5","v":3.5823908400388613E-2},{"$f":"'Population at Risk'!Y46/'Population at Risk'!Y$5","v":3.9800277403859607E-2},{"$f":"'Population at Risk'!Z46/'Population at Risk'!Z$5","v":6.5492057317214719E-2},{"$f":"'Population at Risk'!AA46/'Population at Risk'!AA$5","v":4.5626073096809432E-2},{"$f":"'Population at Risk'!AB46/'Population at Risk'!AB$5","v":4.5185623553798043E-2},{"$f":"'Population at Risk'!AY46/'Population at Risk'!AY$5","v":3.8186866477747342E-2},{"$f":"'Population at Risk'!AC46/'Population at Risk'!AC$5","v":5.184317487716459E-2},{"$f":"'Population at Risk'!AD46/'Population at Risk'!AD$5","v":3.1714971355686641E-2},{"$f":"'Population at Risk'!AE46/'Population at Risk'!AE$5","v":3.4493268486715099E-2},{"$f":"'Population at Risk'!G46/'Population at Risk'!G$5","v":3.3262628684369959E-2},{"$f":"'Population at Risk'!AF46/'Population at Risk'!AF$5","v":3.4277544077719602E-2},{"$f":"'Population at Risk'!H46/'Population at Risk'!H$5","v":3.637815318084231E-2},{"$f":"'Population at Risk'!AG46/'Population at Risk'!AG$5","v":3.206017561320787E-2},{"$f":"'Population at Risk'!AZ46/'Population at Risk'!AZ$5","v":3.9361747356345976E-2},{"$f":"'Population at Risk'!I46/'Population at Risk'!I$5","v":2.8136994984146894E-2},{"$f":"'Population at Risk'!J46/'Population at Risk'!J$5","v":3.7108045937766461E-2},{"$f":"'Population at Risk'!K46/'Population at Risk'!K$5","v":3.7036677473153513E-2},{"$f":"'Population at Risk'!AH46/'Population at Risk'!AH$5","v":3.5346799427927227E-2},{"$f":"'Population at Risk'!AI46/'Population at Risk'!AI$5","v":5.1988429763378211E-2},{"$f":"'Population at Risk'!BA46/'Population at Risk'!BA$5","v":4.2680172160466337E-2},{"$f":"'Population at Risk'!L46/'Population at Risk'!L$5","v":3.2294627948538199E-2},{"$f":"'Population at Risk'!M46/'Population at Risk'!M$5","v":3.2720954439379869E-2},{"$f":"'Population at Risk'!AJ46/'Population at Risk'!AJ$5","v":3.8204761207845189E-2},{"$f":"'Population at Risk'!AK46/'Population at Risk'!AK$5","v":3.6454058055030471E-2},{"$f":"'Population at Risk'!AL46/'Population at Risk'!AL$5","v":3.4860817831818158E-2},{"$f":"'Population at Risk'!AM46/'Population at Risk'!AM$5","v":3.7481776012572854E-2},{"$f":"'Population at Risk'!N46/'Population at Risk'!N$5","v":5.5859089111402381E-2},{"$f":"'Population at Risk'!AN46/'Population at Risk'!AN$5","v":3.2939298757843197E-2},{"$f":"'Population at Risk'!AO46/'Population at Risk'!AO$5","v":3.2939298757843197E-2},{"$f":"'Population at Risk'!AP46/'Population at Risk'!AP$5","v":3.126491932405636E-2},{"$f":"'Population at Risk'!C46/'Population at Risk'!C$5","v":6.7110359110375287E-2},{"$f":"'Population at Risk'!AQ46/'Population at Risk'!AQ$5","v":3.6115549173165729E-2},{"$f":"'Population at Risk'!O46/'Population at Risk'!O$5","v":4.3710842919865808E-2},{"$f":"'Population at Risk'!AR46/'Population at Risk'!AR$5","v":4.3103243050592321E-2},{"$f":"'Population at Risk'!AS46/'Population at Risk'!AS$5","v":2.8136994984146894E-2},{"$f":"'Population at Risk'!AT46/'Population at Risk'!AT$5","v":3.5489930571921881E-2},{"$f":"'Population at Risk'!AU46/'Population at Risk'!AU$5","v":3.5489930571921881E-2},{"$f":"'Population at Risk'!BB46/'Population at Risk'!BB$5","v":4.1708266523930643E-2},{"$f":"'Population at Risk'!P46/'Population at Risk'!P$5","v":3.3951809035968672E-2},{"$f":"'Population at Risk'!AV46/'Population at Risk'!AV$5","v":3.0914710846943024E-2},{"$f":"'Population at Risk'!AW46/'Population at Risk'!AW$5","v":3.2332102839520177E-2},{"$f":"'Population at Risk'!Q46/'Population at Risk'!Q$5","v":3.1925635978976075E-2},44]
[null,"Male 30-34",{"$f":"'Population at Risk'!R47/'Population at Risk'!R$5","v":2.5678143277882998E-2},{"$f":"'Population at Risk'!AX47/'Population at Risk'!AX$5","v":3.0117964789358641E-2},{"$f":"'Population at Risk'!S47/'Population at Risk'!S$5","v":4.268520012097806E-2},{"$f":"'Population at Risk'!T47/'Population at Risk'!T$5","v":5.4341518160942619E-2},{"$f":"'Population at Risk'!U47/'Population at Risk'!U$5","v":3.3176485128549774E-2},{"$f":"'Population at Risk'!D47/'Population at Risk'!D$5","v":4.283830354426308E-2},{"$f":"'Population at Risk'!E47/'Population at Risk'!E$5","v":3.3149339984492439E-2},{"$f":"'Population at Risk'!BC47/'Population at Risk'!BC$5","v":3.5616501206068206E-2},{"$f":"'Population at Risk'!V47/'Population at Risk'!V$5","v":3.6506791480454735E-2},{"$f":"'Population at Risk'!F47/'Population at Risk'!F$5","v":3.527043520467079E-2},{"$f":"'Population at Risk'!W47/'Population at Risk'!W$5","v":3.5434307570522253E-2},{"$f":"'Population at Risk'!X47/'Population at Risk'!X$5","v":3.4954406765489637E-2},{"$f":"'Population at Risk'!Y47/'Population at Risk'!Y$5","v":3.7428753957976922E-2},{"$f":"'Population at Risk'!Z47/'Population at Risk'!Z$5","v":5.765774973143465E-2},{"$f":"'Population at Risk'!AA47/'Population at Risk'!AA$5","v":4.2406832720684635E-2},{"$f":"'Population at Risk'!AB47/'Population at Risk'!AB$5","v":4.1000822125714369E-2},{"$f":"'Population at Risk'!AY47/'Population at Risk'!AY$5","v":3.553213568207559E-2},{"$f":"'Population at Risk'!AC47/'Population at Risk'!AC$5","v":4.6345445314116149E-2},{"$f":"'Population at Risk'!AD47/'Population at Risk'!AD$5","v":3.0913548391723139E-2},{"$f":"'Population at Risk'!AE47/'Population at Risk'!AE$5","v":3.5891826106963495E-2},{"$f":"'Population at Risk'!G47/'Population at Risk'!G$5","v":2.695887885326852E-2},{"$f":"'Population at Risk'!AF47/'Population at Risk'!AF$5","v":3.2975353331643462E-2},{"$f":"'Population at Risk'!H47/'Population at Risk'!H$5","v":3.3574871505187551E-2},{"$f":"'Population at Risk'!AG47/'Population at Risk'!AG$5","v":3.3360081504342047E-2},{"$f":"'Population at Risk'!AZ47/'Population at Risk'!AZ$5","v":3.5291038465147591E-2},{"$f":"'Population at Risk'!I47/'Population at Risk'!I$5","v":2.7458467834788385E-2},{"$f":"'Population at Risk'!J47/'Population at Risk'!J$5","v":3.138457386554188E-2},{"$f":"'Population at Risk'!K47/'Population at Risk'!K$5","v":3.8056299687621184E-2},{"$f":"'Population at Risk'!AH47/'Population at Risk'!AH$5","v":3.5873325060300311E-2},{"$f":"'Population at Risk'!AI47/'Population at Risk'!AI$5","v":4.7411276515074895E-2},{"$f":"'Population at Risk'!BA47/'Population at Risk'!BA$5","v":3.9972972513580833E-2},{"$f":"'Population at Risk'!L47/'Population at Risk'!L$5","v":3.128217183604317E-2},{"$f":"'Population at Risk'!M47/'Population at Risk'!M$5","v":3.169513273362707E-2},{"$f":"'Population at Risk'!AJ47/'Population at Risk'!AJ$5","v":3.8733728945434059E-2},{"$f":"'Population at Risk'!AK47/'Population at Risk'!AK$5","v":3.526617219899443E-2},{"$f":"'Population at Risk'!AL47/'Population at Risk'!AL$5","v":3.1548688925618816E-2},{"$f":"'Population at Risk'!AM47/'Population at Risk'!AM$5","v":3.821182620694942E-2},{"$f":"'Population at Risk'!N47/'Population at Risk'!N$5","v":4.1997053382147098E-2},{"$f":"'Population at Risk'!AN47/'Population at Risk'!AN$5","v":2.8871315341422874E-2},{"$f":"'Population at Risk'!AO47/'Population at Risk'!AO$5","v":2.8871315341422874E-2},{"$f":"'Population at Risk'!AP47/'Population at Risk'!AP$5","v":3.2451714890831547E-2},{"$f":"'Population at Risk'!C47/'Population at Risk'!C$5","v":5.4066419257512814E-2},{"$f":"'Population at Risk'!AQ47/'Population at Risk'!AQ$5","v":3.4590902635740398E-2},{"$f":"'Population at Risk'!O47/'Population at Risk'!O$5","v":4.1868623115436307E-2},{"$f":"'Population at Risk'!AR47/'Population at Risk'!AR$5","v":3.9958414399570326E-2},{"$f":"'Population at Risk'!AS47/'Population at Risk'!AS$5","v":2.7458467834788385E-2},{"$f":"'Population at Risk'!AT47/'Population at Risk'!AT$5","v":3.2527026472432261E-2},{"$f":"'Population at Risk'!AU47/'Population at Risk'!AU$5","v":3.2527026472432261E-2},{"$f":"'Population at Risk'!BB47/'Population at Risk'!BB$5","v":4.3536021371772336E-2},{"$f":"'Population at Risk'!P47/'Population at Risk'!P$5","v":2.9248867227078607E-2},{"$f":"'Population at Risk'!AV47/'Population at Risk'!AV$5","v":2.7863239937784941E-2},{"$f":"'Population at Risk'!AW47/'Population at Risk'!AW$5","v":3.2643983664249893E-2},{"$f":"'Population at Risk'!Q47/'Population at Risk'!Q$5","v":3.160114713453991E-2},45]
[null,"Male 35-39",{"$f":"'Population at Risk'!R48/'Population at Risk'!R$5","v":3.4017312412405687E-2},{"$f":"'Population at Risk'!AX48/'Population at Risk'!AX$5","v":3.0209005810479615E-2},{"$f":"'Population at Risk'!S48/'Population at Risk'!S$5","v":3.9628884704798306E-2},{"$f":"'Population at Risk'!T48/'Population at Risk'!T$5","v":4.6467160108703533E-2},{"$f":"'Population at Risk'!U48/'Population at Risk'!U$5","v":3.7946723580373348E-2},{"$f":"'Population at Risk'!D48/'Population at Risk'!D$5","v":3.9906342769639128E-2},{"$f":"'Population at Risk'!E48/'Population at Risk'!E$5","v":3.6958443152060524E-2},{"$f":"'Population at Risk'!BC48/'Population at Risk'!BC$5","v":4.0737574246635773E-2},{"$f":"'Population at Risk'!V48/'Population at Risk'!V$5","v":3.7633784223603375E-2},{"$f":"'Population at Risk'!F48/'Population at Risk'!F$5","v":3.3619440623289656E-2},{"$f":"'Population at Risk'!W48/'Population at Risk'!W$5","v":3.5997609620962996E-2},{"$f":"'Population at Risk'!X48/'Population at Risk'!X$5","v":3.5510079794058132E-2},{"$f":"'Population at Risk'!Y48/'Population at Risk'!Y$5","v":3.8157884302953256E-2},{"$f":"'Population at Risk'!Z48/'Population at Risk'!Z$5","v":4.7125860227026653E-2},{"$f":"'Population at Risk'!AA48/'Population at Risk'!AA$5","v":3.8949127204843045E-2},{"$f":"'Population at Risk'!AB48/'Population at Risk'!AB$5","v":3.8118095974544366E-2},{"$f":"'Population at Risk'!AY48/'Population at Risk'!AY$5","v":3.3560991787025624E-2},{"$f":"'Population at Risk'!AC48/'Population at Risk'!AC$5","v":4.0782116130251483E-2},{"$f":"'Population at Risk'!AD48/'Population at Risk'!AD$5","v":3.1192248278410488E-2},{"$f":"'Population at Risk'!AE48/'Population at Risk'!AE$5","v":3.5613619986644113E-2},{"$f":"'Population at Risk'!G48/'Population at Risk'!G$5","v":2.865013071024201E-2},{"$f":"'Population at Risk'!AF48/'Population at Risk'!AF$5","v":3.1532745318530751E-2},{"$f":"'Population at Risk'!H48/'Population at Risk'!H$5","v":3.3214418558320337E-2},{"$f":"'Population at Risk'!AG48/'Population at Risk'!AG$5","v":3.3101499541384721E-2},{"$f":"'Population at Risk'!AZ48/'Population at Risk'!AZ$5","v":3.1279686565122838E-2},{"$f":"'Population at Risk'!I48/'Population at Risk'!I$5","v":2.8934006438945229E-2},{"$f":"'Population at Risk'!J48/'Population at Risk'!J$5","v":3.1527559603804468E-2},{"$f":"'Population at Risk'!K48/'Population at Risk'!K$5","v":3.8326781054987165E-2},{"$f":"'Population at Risk'!AH48/'Population at Risk'!AH$5","v":3.58779670877446E-2},{"$f":"'Population at Risk'!AI48/'Population at Risk'!AI$5","v":4.2336821581276773E-2},{"$f":"'Population at Risk'!BA48/'Population at Risk'!BA$5","v":3.5033281684614573E-2},{"$f":"'Population at Risk'!L48/'Population at Risk'!L$5","v":2.8100531357666013E-2},{"$f":"'Population at Risk'!M48/'Population at Risk'!M$5","v":2.8471490916128498E-2},{"$f":"'Population at Risk'!AJ48/'Population at Risk'!AJ$5","v":3.7395866037748832E-2},{"$f":"'Population at Risk'!AK48/'Population at Risk'!AK$5","v":3.2362821106096194E-2},{"$f":"'Population at Risk'!AL48/'Population at Risk'!AL$5","v":3.1591516411391615E-2},{"$f":"'Population at Risk'!AM48/'Population at Risk'!AM$5","v":3.7606722168854162E-2},{"$f":"'Population at Risk'!N48/'Population at Risk'!N$5","v":3.2324589868474876E-2},{"$f":"'Population at Risk'!AN48/'Population at Risk'!AN$5","v":2.8460652875046167E-2},{"$f":"'Population at Risk'!AO48/'Population at Risk'!AO$5","v":2.8460652875046167E-2},{"$f":"'Population at Risk'!AP48/'Population at Risk'!AP$5","v":3.1765121240842367E-2},{"$f":"'Population at Risk'!C48/'Population at Risk'!C$5","v":4.3487065701706219E-2},{"$f":"'Population at Risk'!AQ48/'Population at Risk'!AQ$5","v":3.2219044889729077E-2},{"$f":"'Population at Risk'!O48/'Population at Risk'!O$5","v":3.9748587757263983E-2},{"$f":"'Population at Risk'!AR48/'Population at Risk'!AR$5","v":3.7346098003047334E-2},{"$f":"'Population at Risk'!AS48/'Population at Risk'!AS$5","v":2.8934006438945229E-2},{"$f":"'Population at Risk'!AT48/'Population at Risk'!AT$5","v":3.5667962272334867E-2},{"$f":"'Population at Risk'!AU48/'Population at Risk'!AU$5","v":3.5667962272334867E-2},{"$f":"'Population at Risk'!BB48/'Population at Risk'!BB$5","v":4.1949321206846378E-2},{"$f":"'Population at Risk'!P48/'Population at Risk'!P$5","v":3.0514009617091178E-2},{"$f":"'Population at Risk'!AV48/'Population at Risk'!AV$5","v":2.8615331666945677E-2},{"$f":"'Population at Risk'!AW48/'Population at Risk'!AW$5","v":3.3251208048458478E-2},{"$f":"'Population at Risk'!Q48/'Population at Risk'!Q$5","v":3.1149282178850084E-2},46]
[null,"Male 40-44",{"$f":"'Population at Risk'!R49/'Population at Risk'!R$5","v":4.0505847479904239E-2},{"$f":"'Population at Risk'!AX49/'Population at Risk'!AX$5","v":3.4651571095576143E-2},{"$f":"'Population at Risk'!S49/'Population at Risk'!S$5","v":4.0416220110731926E-2},{"$f":"'Population at Risk'!T49/'Population at Risk'!T$5","v":4.1268382237037257E-2},{"$f":"'Population at Risk'!U49/'Population at Risk'!U$5","v":4.4860853094118733E-2},{"$f":"'Population at Risk'!D49/'Population at Risk'!D$5","v":3.8854689421939689E-2},{"$f":"'Population at Risk'!E49/'Population at Risk'!E$5","v":4.0399269974487347E-2},{"$f":"'Population at Risk'!BC49/'Population at Risk'!BC$5","v":4.8160214143871588E-2},{"$f":"'Population at Risk'!V49/'Population at Risk'!V$5","v":4.0664453162166665E-2},{"$f":"'Population at Risk'!F49/'Population at Risk'!F$5","v":3.8291196687278949E-2},{"$f":"'Population at Risk'!W49/'Population at Risk'!W$5","v":3.9314695486225362E-2},{"$f":"'Population at Risk'!X49/'Population at Risk'!X$5","v":3.8782241056971964E-2},{"$f":"'Population at Risk'!Y49/'Population at Risk'!Y$5","v":4.2247569807452472E-2},{"$f":"'Population at Risk'!Z49/'Population at Risk'!Z$5","v":3.9657582401447906E-2},{"$f":"'Population at Risk'!AA49/'Population at Risk'!AA$5","v":3.8329247540240349E-2},{"$f":"'Population at Risk'!AB49/'Population at Risk'!AB$5","v":3.7886117880375429E-2},{"$f":"'Population at Risk'!AY49/'Population at Risk'!AY$5","v":3.5196272083773822E-2},{"$f":"'Population at Risk'!AC49/'Population at Risk'!AC$5","v":3.8271067482411998E-2},{"$f":"'Population at Risk'!AD49/'Population at Risk'!AD$5","v":3.3112116687528614E-2},{"$f":"'Population at Risk'!AE49/'Population at Risk'!AE$5","v":3.6683034479344089E-2},{"$f":"'Population at Risk'!G49/'Population at Risk'!G$5","v":3.3115045963075532E-2},{"$f":"'Population at Risk'!AF49/'Population at Risk'!AF$5","v":3.3214943016321226E-2},{"$f":"'Population at Risk'!H49/'Population at Risk'!H$5","v":3.8370273524839009E-2},{"$f":"'Population at Risk'!AG49/'Population at Risk'!AG$5","v":3.4095479466843971E-2},{"$f":"'Population at Risk'!AZ49/'Population at Risk'!AZ$5","v":3.1534575962328976E-2},{"$f":"'Population at Risk'!I49/'Population at Risk'!I$5","v":3.6438826324233863E-2},{"$f":"'Population at Risk'!J49/'Population at Risk'!J$5","v":3.6036268643872237E-2},{"$f":"'Population at Risk'!K49/'Population at Risk'!K$5","v":4.3550397791604037E-2},{"$f":"'Population at Risk'!AH49/'Population at Risk'!AH$5","v":3.8363849687823887E-2},{"$f":"'Population at Risk'!AI49/'Population at Risk'!AI$5","v":4.1262319040794367E-2},{"$f":"'Population at Risk'!BA49/'Population at Risk'!BA$5","v":3.5542364483234702E-2},{"$f":"'Population at Risk'!L49/'Population at Risk'!L$5","v":3.3544961272390518E-2},{"$f":"'Population at Risk'!M49/'Population at Risk'!M$5","v":3.3987793611176619E-2},{"$f":"'Population at Risk'!AJ49/'Population at Risk'!AJ$5","v":3.90635123945949E-2},{"$f":"'Population at Risk'!AK49/'Population at Risk'!AK$5","v":3.6452985490966067E-2},{"$f":"'Population at Risk'!AL49/'Population at Risk'!AL$5","v":3.7046152738765686E-2},{"$f":"'Population at Risk'!AM49/'Population at Risk'!AM$5","v":3.9860751488289846E-2},{"$f":"'Population at Risk'!N49/'Population at Risk'!N$5","v":2.9714659721468323E-2},{"$f":"'Population at Risk'!AN49/'Population at Risk'!AN$5","v":3.2453601224123996E-2},{"$f":"'Population at Risk'!AO49/'Population at Risk'!AO$5","v":3.2453601224123996E-2},{"$f":"'Population at Risk'!AP49/'Population at Risk'!AP$5","v":3.167615539446586E-2},{"$f":"'Population at Risk'!C49/'Population at Risk'!C$5","v":3.7344447519232271E-2},{"$f":"'Population at Risk'!AQ49/'Population at Risk'!AQ$5","v":3.2859621125648809E-2},{"$f":"'Population at Risk'!O49/'Population at Risk'!O$5","v":4.5381995112961981E-2},{"$f":"'Population at Risk'!AR49/'Population at Risk'!AR$5","v":3.8205884902764442E-2},{"$f":"'Population at Risk'!AS49/'Population at Risk'!AS$5","v":3.6438826324233863E-2},{"$f":"'Population at Risk'!AT49/'Population at Risk'!AT$5","v":3.9558886644664365E-2},{"$f":"'Population at Risk'!AU49/'Population at Risk'!AU$5","v":3.9558886644664365E-2},{"$f":"'Population at Risk'!BB49/'Population at Risk'!BB$5","v":4.6578347147586491E-2},{"$f":"'Population at Risk'!P49/'Population at Risk'!P$5","v":3.6501020675959402E-2},{"$f":"'Population at Risk'!AV49/'Population at Risk'!AV$5","v":3.2945425985611058E-2},{"$f":"'Population at Risk'!AW49/'Population at Risk'!AW$5","v":3.5902661043890505E-2},{"$f":"'Population at Risk'!Q49/'Population at Risk'!Q$5","v":3.8904147374728706E-2},47]
[null,"Male 45-49",{"$f":"'Population at Risk'!R50/'Population at Risk'!R$5","v":4.8389302580250773E-2},{"$f":"'Population at Risk'!AX50/'Population at Risk'!AX$5","v":4.8665166433881059E-2},{"$f":"'Population at Risk'!S50/'Population at Risk'!S$5","v":5.0053556476088959E-2},{"$f":"'Population at Risk'!T50/'Population at Risk'!T$5","v":4.454859364586973E-2},{"$f":"'Population at Risk'!U50/'Population at Risk'!U$5","v":6.0393335702202448E-2},{"$f":"'Population at Risk'!D50/'Population at Risk'!D$5","v":4.5023342851230018E-2},{"$f":"'Population at Risk'!E50/'Population at Risk'!E$5","v":4.8980969751567668E-2},{"$f":"'Population at Risk'!BC50/'Population at Risk'!BC$5","v":6.4835057286552311E-2},{"$f":"'Population at Risk'!V50/'Population at Risk'!V$5","v":5.395968620559792E-2},{"$f":"'Population at Risk'!F50/'Population at Risk'!F$5","v":5.0203643353769804E-2},{"$f":"'Population at Risk'!W50/'Population at Risk'!W$5","v":5.380248668604453E-2},{"$f":"'Population at Risk'!X50/'Population at Risk'!X$5","v":5.3073818385640972E-2},{"$f":"'Population at Risk'!Y50/'Population at Risk'!Y$5","v":5.816223855848672E-2},{"$f":"'Population at Risk'!Z50/'Population at Risk'!Z$5","v":5.2220608819799536E-2},{"$f":"'Population at Risk'!AA50/'Population at Risk'!AA$5","v":5.2438408653858751E-2},{"$f":"'Population at Risk'!AB50/'Population at Risk'!AB$5","v":4.5264920612188134E-2},{"$f":"'Population at Risk'!AY50/'Population at Risk'!AY$5","v":4.8926943301371678E-2},{"$f":"'Population at Risk'!AC50/'Population at Risk'!AC$5","v":5.2021102494407667E-2},{"$f":"'Population at Risk'!AD50/'Population at Risk'!AD$5","v":4.6100287615980749E-2},{"$f":"'Population at Risk'!AE50/'Population at Risk'!AE$5","v":5.1406497643258692E-2},{"$f":"'Population at Risk'!G50/'Population at Risk'!G$5","v":4.5299134898114712E-2},{"$f":"'Population at Risk'!AF50/'Population at Risk'!AF$5","v":5.1853676317500923E-2},{"$f":"'Population at Risk'!H50/'Population at Risk'!H$5","v":5.5899455957284246E-2},{"$f":"'Population at Risk'!AG50/'Population at Risk'!AG$5","v":4.7780376125781981E-2},{"$f":"'Population at Risk'!AZ50/'Population at Risk'!AZ$5","v":4.4526595920687882E-2},{"$f":"'Population at Risk'!I50/'Population at Risk'!I$5","v":5.3487655837539304E-2},{"$f":"'Population at Risk'!J50/'Population at Risk'!J$5","v":5.1890020332118578E-2},{"$f":"'Population at Risk'!K50/'Population at Risk'!K$5","v":6.5298525846165134E-2},{"$f":"'Population at Risk'!AH50/'Population at Risk'!AH$5","v":5.3040174173023084E-2},{"$f":"'Population at Risk'!AI50/'Population at Risk'!AI$5","v":4.7995211185402419E-2},{"$f":"'Population at Risk'!BA50/'Population at Risk'!BA$5","v":5.4495481375308706E-2},{"$f":"'Population at Risk'!L50/'Population at Risk'!L$5","v":4.8692344122433832E-2},{"$f":"'Population at Risk'!M50/'Population at Risk'!M$5","v":4.9335139457733913E-2},{"$f":"'Population at Risk'!AJ50/'Population at Risk'!AJ$5","v":5.0616561930636239E-2},{"$f":"'Population at Risk'!AK50/'Population at Risk'!AK$5","v":5.0967154370557134E-2},{"$f":"'Population at Risk'!AL50/'Population at Risk'!AL$5","v":5.6800727302941244E-2},{"$f":"'Population at Risk'!AM50/'Population at Risk'!AM$5","v":5.4746184158863544E-2},{"$f":"'Population at Risk'!N50/'Population at Risk'!N$5","v":4.3977145302813415E-2},{"$f":"'Population at Risk'!AN50/'Population at Risk'!AN$5","v":4.856034417609717E-2},{"$f":"'Population at Risk'!AO50/'Population at Risk'!AO$5","v":4.856034417609717E-2},{"$f":"'Population at Risk'!AP50/'Population at Risk'!AP$5","v":4.5510401255005065E-2},{"$f":"'Population at Risk'!C50/'Population at Risk'!C$5","v":4.081981733353162E-2},{"$f":"'Population at Risk'!AQ50/'Population at Risk'!AQ$5","v":4.869597760609487E-2},{"$f":"'Population at Risk'!O50/'Population at Risk'!O$5","v":6.4809306286207249E-2},{"$f":"'Population at Risk'!AR50/'Population at Risk'!AR$5","v":5.0622732935332225E-2},{"$f":"'Population at Risk'!AS50/'Population at Risk'!AS$5","v":5.3487655837539304E-2},{"$f":"'Population at Risk'!AT50/'Population at Risk'!AT$5","v":4.8912498387723727E-2},{"$f":"'Population at Risk'!AU50/'Population at Risk'!AU$5","v":4.8912498387723727E-2},{"$f":"'Population at Risk'!BB50/'Population at Risk'!BB$5","v":5.9796714967114542E-2},{"$f":"'Population at Risk'!P50/'Population at Risk'!P$5","v":4.7634484634786568E-2},{"$f":"'Population at Risk'!AV50/'Population at Risk'!AV$5","v":4.6158269329938245E-2},{"$f":"'Population at Risk'!AW50/'Population at Risk'!AW$5","v":4.9996783226922643E-2},{"$f":"'Population at Risk'!Q50/'Population at Risk'!Q$5","v":4.906713836285849E-2},48]
[null,"Male 50-54",{"$f":"'Population at Risk'!R51/'Population at Risk'!R$5","v":5.2596518675699096E-2},{"$f":"'Population at Risk'!AX51/'Population at Risk'!AX$5","v":5.1586159715311788E-2},{"$f":"'Population at Risk'!S51/'Population at Risk'!S$5","v":5.0583758034157114E-2},{"$f":"'Population at Risk'!T51/'Population at Risk'!T$5","v":4.4261231739347616E-2},{"$f":"'Population at Risk'!U51/'Population at Risk'!U$5","v":5.8838107774638819E-2},{"$f":"'Population at Risk'!D51/'Population at Risk'!D$5","v":4.5503729319660083E-2},{"$f":"'Population at Risk'!E51/'Population at Risk'!E$5","v":4.9883994488003763E-2},{"$f":"'Population at Risk'!BC51/'Population at Risk'!BC$5","v":6.3165447707865682E-2},{"$f":"'Population at Risk'!V51/'Population at Risk'!V$5","v":5.3177844332242763E-2},{"$f":"'Population at Risk'!F51/'Population at Risk'!F$5","v":5.7053974642660814E-2},{"$f":"'Population at Risk'!W51/'Population at Risk'!W$5","v":5.3348456540842325E-2},{"$f":"'Population at Risk'!X51/'Population at Risk'!X$5","v":5.2625937349794379E-2},{"$f":"'Population at Risk'!Y51/'Population at Risk'!Y$5","v":5.8543551607997173E-2},{"$f":"'Population at Risk'!Z51/'Population at Risk'!Z$5","v":5.2395413783680483E-2},{"$f":"'Population at Risk'!AA51/'Population at Risk'!AA$5","v":5.4498401960509056E-2},{"$f":"'Population at Risk'!AB51/'Population at Risk'!AB$5","v":4.5520779207469539E-2},{"$f":"'Population at Risk'!AY51/'Population at Risk'!AY$5","v":5.1350832131212831E-2},{"$f":"'Population at Risk'!AC51/'Population at Risk'!AC$5","v":5.5016338309999469E-2},{"$f":"'Population at Risk'!AD51/'Population at Risk'!AD$5","v":5.1103154549637167E-2},{"$f":"'Population at Risk'!AE51/'Population at Risk'!AE$5","v":5.6802243100441033E-2},{"$f":"'Population at Risk'!G51/'Population at Risk'!G$5","v":5.0655350886974031E-2},{"$f":"'Population at Risk'!AF51/'Population at Risk'!AF$5","v":6.2385116334272551E-2},{"$f":"'Population at Risk'!H51/'Population at Risk'!H$5","v":6.0410789346898988E-2},{"$f":"'Population at Risk'!AG51/'Population at Risk'!AG$5","v":5.2795515441676627E-2},{"$f":"'Population at Risk'!AZ51/'Population at Risk'!AZ$5","v":4.9265511303035442E-2},{"$f":"'Population at Risk'!I51/'Population at Risk'!I$5","v":5.8876513042650923E-2},{"$f":"'Population at Risk'!J51/'Population at Risk'!J$5","v":5.3509405839003661E-2},{"$f":"'Population at Risk'!K51/'Population at Risk'!K$5","v":6.4387570253168977E-2},{"$f":"'Population at Risk'!AH51/'Population at Risk'!AH$5","v":5.356148381420537E-2},{"$f":"'Population at Risk'!AI51/'Population at Risk'!AI$5","v":4.8312357243018363E-2},{"$f":"'Population at Risk'!BA51/'Population at Risk'!BA$5","v":6.2806107030581204E-2},{"$f":"'Population at Risk'!L51/'Population at Risk'!L$5","v":5.6549764826039066E-2},{"$f":"'Population at Risk'!M51/'Population at Risk'!M$5","v":5.729628721467362E-2},{"$f":"'Population at Risk'!AJ51/'Population at Risk'!AJ$5","v":5.1540750325927275E-2},{"$f":"'Population at Risk'!AK51/'Population at Risk'!AK$5","v":5.005786519200723E-2},{"$f":"'Population at Risk'!AL51/'Population at Risk'!AL$5","v":6.2027620426522823E-2},{"$f":"'Population at Risk'!AM51/'Population at Risk'!AM$5","v":5.5427596909666241E-2},{"$f":"'Population at Risk'!N51/'Population at Risk'!N$5","v":4.5681033175623706E-2},{"$f":"'Population at Risk'!AN51/'Population at Risk'!AN$5","v":5.5397535583762245E-2},{"$f":"'Population at Risk'!AO51/'Population at Risk'!AO$5","v":5.5397535583762245E-2},{"$f":"'Population at Risk'!AP51/'Population at Risk'!AP$5","v":5.2125952675383586E-2},{"$f":"'Population at Risk'!C51/'Population at Risk'!C$5","v":4.0824808972449049E-2},{"$f":"'Population at Risk'!AQ51/'Population at Risk'!AQ$5","v":5.2327196799734563E-2},{"$f":"'Population at Risk'!O51/'Population at Risk'!O$5","v":6.8021847010158426E-2},{"$f":"'Population at Risk'!AR51/'Population at Risk'!AR$5","v":5.2744721047994242E-2},{"$f":"'Population at Risk'!AS51/'Population at Risk'!AS$5","v":5.8876513042650923E-2},{"$f":"'Population at Risk'!AT51/'Population at Risk'!AT$5","v":5.5714490313096575E-2},{"$f":"'Population at Risk'!AU51/'Population at Risk'!AU$5","v":5.5714490313096575E-2},{"$f":"'Population at Risk'!BB51/'Population at Risk'!BB$5","v":5.8908172327313754E-2},{"$f":"'Population at Risk'!P51/'Population at Risk'!P$5","v":5.3438989026101461E-2},{"$f":"'Population at Risk'!AV51/'Population at Risk'!AV$5","v":5.0962120905715426E-2},{"$f":"'Population at Risk'!AW51/'Population at Risk'!AW$5","v":5.0346501283228706E-2},{"$f":"'Population at Risk'!Q51/'Population at Risk'!Q$5","v":5.3747795484451175E-2},49]
[null,"Male 55-59",{"$f":"'Population at Risk'!R52/'Population at Risk'!R$5","v":6.4633734924613037E-2},{"$f":"'Population at Risk'!AX52/'Population at Risk'!AX$5","v":6.133943498419319E-2},{"$f":"'Population at Risk'!S52/'Population at Risk'!S$5","v":5.8651449238328379E-2},{"$f":"'Population at Risk'!T52/'Population at Risk'!T$5","v":5.0306225698271367E-2},{"$f":"'Population at Risk'!U52/'Population at Risk'!U$5","v":6.9258184972833953E-2},{"$f":"'Population at Risk'!D52/'Population at Risk'!D$5","v":5.581721697111526E-2},{"$f":"'Population at Risk'!E52/'Population at Risk'!E$5","v":6.2225212644445083E-2},{"$f":"'Population at Risk'!BC52/'Population at Risk'!BC$5","v":7.4351885652054958E-2},{"$f":"'Population at Risk'!V52/'Population at Risk'!V$5","v":5.817245681465031E-2},{"$f":"'Population at Risk'!F52/'Population at Risk'!F$5","v":6.5340259033971074E-2},{"$f":"'Population at Risk'!W52/'Population at Risk'!W$5","v":6.3869357147683006E-2},{"$f":"'Population at Risk'!X52/'Population at Risk'!X$5","v":6.3004349249586311E-2},{"$f":"'Population at Risk'!Y52/'Population at Risk'!Y$5","v":6.582477728090172E-2},{"$f":"'Population at Risk'!Z52/'Population at Risk'!Z$5","v":5.3705884025717313E-2},{"$f":"'Population at Risk'!AA52/'Population at Risk'!AA$5","v":5.9633151715991775E-2},{"$f":"'Population at Risk'!AB52/'Population at Risk'!AB$5","v":5.5792752138096369E-2},{"$f":"'Population at Risk'!AY52/'Population at Risk'!AY$5","v":6.1324629163883079E-2},{"$f":"'Population at Risk'!AC52/'Population at Risk'!AC$5","v":6.0142574825560013E-2},{"$f":"'Population at Risk'!AD52/'Population at Risk'!AD$5","v":6.3908459233041254E-2},{"$f":"'Population at Risk'!AE52/'Population at Risk'!AE$5","v":7.1421596184012184E-2},{"$f":"'Population at Risk'!G52/'Population at Risk'!G$5","v":6.2419571787664607E-2},{"$f":"'Population at Risk'!AF52/'Population at Risk'!AF$5","v":6.896705860219253E-2},{"$f":"'Population at Risk'!H52/'Population at Risk'!H$5","v":6.9209154639214676E-2},{"$f":"'Population at Risk'!AG52/'Population at Risk'!AG$5","v":6.6383645757343887E-2},{"$f":"'Population at Risk'!AZ52/'Population at Risk'!AZ$5","v":5.8705082674668764E-2},{"$f":"'Population at Risk'!I52/'Population at Risk'!I$5","v":7.2473512754766725E-2},{"$f":"'Population at Risk'!J52/'Population at Risk'!J$5","v":6.1988532482077384E-2},{"$f":"'Population at Risk'!K52/'Population at Risk'!K$5","v":7.1270167234468482E-2},{"$f":"'Population at Risk'!AH52/'Population at Risk'!AH$5","v":5.8702049733886624E-2},{"$f":"'Population at Risk'!AI52/'Population at Risk'!AI$5","v":5.4680580936431612E-2},{"$f":"'Population at Risk'!BA52/'Population at Risk'!BA$5","v":6.6961294951924211E-2},{"$f":"'Population at Risk'!L52/'Population at Risk'!L$5","v":6.6111861617275156E-2},{"$f":"'Population at Risk'!M52/'Population at Risk'!M$5","v":6.6984614757866101E-2},{"$f":"'Population at Risk'!AJ52/'Population at Risk'!AJ$5","v":5.822995511625767E-2},{"$f":"'Population at Risk'!AK52/'Population at Risk'!AK$5","v":6.111320422712932E-2},{"$f":"'Population at Risk'!AL52/'Population at Risk'!AL$5","v":7.0402888702336755E-2},{"$f":"'Population at Risk'!AM52/'Population at Risk'!AM$5","v":5.7038437166081417E-2},{"$f":"'Population at Risk'!N52/'Population at Risk'!N$5","v":5.4927358107388816E-2},{"$f":"'Population at Risk'!AN52/'Population at Risk'!AN$5","v":7.2723397860866429E-2},{"$f":"'Population at Risk'!AO52/'Population at Risk'!AO$5","v":7.2723397860866429E-2},{"$f":"'Population at Risk'!AP52/'Population at Risk'!AP$5","v":6.3495381922558949E-2},{"$f":"'Population at Risk'!C52/'Population at Risk'!C$5","v":4.8906485331139608E-2},{"$f":"'Population at Risk'!AQ52/'Population at Risk'!AQ$5","v":6.0590933438803944E-2},{"$f":"'Population at Risk'!O52/'Population at Risk'!O$5","v":7.4533488930681624E-2},{"$f":"'Population at Risk'!AR52/'Population at Risk'!AR$5","v":6.0686593441032305E-2},{"$f":"'Population at Risk'!AS52/'Population at Risk'!AS$5","v":7.2473512754766725E-2},{"$f":"'Population at Risk'!AT52/'Population at Risk'!AT$5","v":7.1024089108916735E-2},{"$f":"'Population at Risk'!AU52/'Population at Risk'!AU$5","v":7.1024089108916735E-2},{"$f":"'Population at Risk'!BB52/'Population at Risk'!BB$5","v":6.3756069149724787E-2},{"$f":"'Population at Risk'!P52/'Population at Risk'!P$5","v":6.6274519250849789E-2},{"$f":"'Population at Risk'!AV52/'Population at Risk'!AV$5","v":6.2026834106400579E-2},{"$f":"'Population at Risk'!AW52/'Population at Risk'!AW$5","v":5.8844483701755497E-2},{"$f":"'Population at Risk'!Q52/'Population at Risk'!Q$5","v":6.4447451591186575E-2},50]
[null,"Male 60-64",{"$f":"'Population at Risk'!R53/'Population at Risk'!R$5","v":5.6112004538437385E-2},{"$f":"'Population at Risk'!AX53/'Population at Risk'!AX$5","v":5.1372755061472666E-2},{"$f":"'Population at Risk'!S53/'Population at Risk'!S$5","v":4.9787009794387729E-2},{"$f":"'Population at Risk'!T53/'Population at Risk'!T$5","v":4.2728543802145635E-2},{"$f":"'Population at Risk'!U53/'Population at Risk'!U$5","v":6.6942128303917645E-2},{"$f":"'Population at Risk'!D53/'Population at Risk'!D$5","v":4.9884744362634389E-2},{"$f":"'Population at Risk'!E53/'Population at Risk'!E$5","v":5.5688901332717949E-2},{"$f":"'Population at Risk'!BC53/'Population at Risk'!BC$5","v":7.1865491001682741E-2},{"$f":"'Population at Risk'!V53/'Population at Risk'!V$5","v":4.7400119089856592E-2},{"$f":"'Population at Risk'!F53/'Population at Risk'!F$5","v":6.0655382762635414E-2},{"$f":"'Population at Risk'!W53/'Population at Risk'!W$5","v":5.4676509790822579E-2},{"$f":"'Population at Risk'!X53/'Population at Risk'!X$5","v":5.393600425073921E-2},{"$f":"'Population at Risk'!Y53/'Population at Risk'!Y$5","v":5.4603586845036939E-2},{"$f":"'Population at Risk'!Z53/'Population at Risk'!Z$5","v":4.4178562193118602E-2},{"$f":"'Population at Risk'!AA53/'Population at Risk'!AA$5","v":4.9991997166626001E-2},{"$f":"'Population at Risk'!AB53/'Population at Risk'!AB$5","v":5.0099596174970833E-2},{"$f":"'Population at Risk'!AY53/'Population at Risk'!AY$5","v":5.3630193024111837E-2},{"$f":"'Population at Risk'!AC53/'Population at Risk'!AC$5","v":4.9981619212983802E-2},{"$f":"'Population at Risk'!AD53/'Population at Risk'!AD$5","v":5.919797789024174E-2},{"$f":"'Population at Risk'!AE53/'Population at Risk'!AE$5","v":6.5398732781389038E-2},{"$f":"'Population at Risk'!G53/'Population at Risk'!G$5","v":5.9644439469700591E-2},{"$f":"'Population at Risk'!AF53/'Population at Risk'!AF$5","v":5.6632904203867088E-2},{"$f":"'Population at Risk'!H53/'Population at Risk'!H$5","v":6.2351101039842954E-2},{"$f":"'Population at Risk'!AG53/'Population at Risk'!AG$5","v":6.078562426347385E-2},{"$f":"'Population at Risk'!AZ53/'Population at Risk'!AZ$5","v":5.2296779282384277E-2},{"$f":"'Population at Risk'!I53/'Population at Risk'!I$5","v":6.7672175596952849E-2},{"$f":"'Population at Risk'!J53/'Population at Risk'!J$5","v":5.2385143246186643E-2},{"$f":"'Population at Risk'!K53/'Population at Risk'!K$5","v":6.1204280361857065E-2},{"$f":"'Population at Risk'!AH53/'Population at Risk'!AH$5","v":4.992958683802097E-2},{"$f":"'Population at Risk'!AI53/'Population at Risk'!AI$5","v":4.5460717992292989E-2},{"$f":"'Population at Risk'!BA53/'Population at Risk'!BA$5","v":5.7632114390844098E-2},{"$f":"'Population at Risk'!L53/'Population at Risk'!L$5","v":6.2959371995935112E-2},{"$f":"'Population at Risk'!M53/'Population at Risk'!M$5","v":6.3790508622478495E-2},{"$f":"'Population at Risk'!AJ53/'Population at Risk'!AJ$5","v":5.1495879987006998E-2},{"$f":"'Population at Risk'!AK53/'Population at Risk'!AK$5","v":5.613244200508518E-2},{"$f":"'Population at Risk'!AL53/'Population at Risk'!AL$5","v":6.330291114337408E-2},{"$f":"'Population at Risk'!AM53/'Population at Risk'!AM$5","v":4.7984815023129582E-2},{"$f":"'Population at Risk'!N53/'Population at Risk'!N$5","v":4.4107421908613102E-2},{"$f":"'Population at Risk'!AN53/'Population at Risk'!AN$5","v":6.3888706718230409E-2},{"$f":"'Population at Risk'!AO53/'Population at Risk'!AO$5","v":6.3888706718230409E-2},{"$f":"'Population at Risk'!AP53/'Population at Risk'!AP$5","v":5.9432366965119547E-2},{"$f":"'Population at Risk'!C53/'Population at Risk'!C$5","v":4.3621106583716748E-2},{"$f":"'Population at Risk'!AQ53/'Population at Risk'!AQ$5","v":4.8229009274010561E-2},{"$f":"'Population at Risk'!O53/'Population at Risk'!O$5","v":6.5123792129068339E-2},{"$f":"'Population at Risk'!AR53/'Population at Risk'!AR$5","v":5.2566450413833163E-2},{"$f":"'Population at Risk'!AS53/'Population at Risk'!AS$5","v":6.7672175596952849E-2},{"$f":"'Population at Risk'!AT53/'Population at Risk'!AT$5","v":6.6160368347881762E-2},{"$f":"'Population at Risk'!AU53/'Population at Risk'!AU$5","v":6.6160368347881762E-2},{"$f":"'Population at Risk'!BB53/'Population at Risk'!BB$5","v":4.9580282641159067E-2},{"$f":"'Population at Risk'!P53/'Population at Risk'!P$5","v":5.8156915259732031E-2},{"$f":"'Population at Risk'!AV53/'Population at Risk'!AV$5","v":5.7769465533132468E-2},{"$f":"'Population at Risk'!AW53/'Population at Risk'!AW$5","v":5.0574384817087245E-2},{"$f":"'Population at Risk'!Q53/'Population at Risk'!Q$5","v":5.2005891420627538E-2},51]
[null,"Male 65-69",{"$f":"'Population at Risk'!R54/'Population at Risk'!R$5","v":4.4123969919442153E-2},{"$f":"'Population at Risk'!AX54/'Population at Risk'!AX$5","v":4.4278996427446995E-2},{"$f":"'Population at Risk'!S54/'Population at Risk'!S$5","v":4.3352450379289954E-2},{"$f":"'Population at Risk'!T54/'Population at Risk'!T$5","v":3.4758123230396315E-2},{"$f":"'Population at Risk'!U54/'Population at Risk'!U$5","v":6.9741058105523127E-2},{"$f":"'Population at Risk'!D54/'Population at Risk'!D$5","v":4.0917576974892227E-2},{"$f":"'Population at Risk'!E54/'Population at Risk'!E$5","v":4.6562642233809806E-2},{"$f":"'Population at Risk'!BC54/'Population at Risk'!BC$5","v":7.4870272438544369E-2},{"$f":"'Population at Risk'!V54/'Population at Risk'!V$5","v":4.3828370782378306E-2},{"$f":"'Population at Risk'!F54/'Population at Risk'!F$5","v":5.8661701591721599E-2},{"$f":"'Population at Risk'!W54/'Population at Risk'!W$5","v":5.0248743723554916E-2},{"$f":"'Population at Risk'!X54/'Population at Risk'!X$5","v":4.9568205165920663E-2},{"$f":"'Population at Risk'!Y54/'Population at Risk'!Y$5","v":4.9279602033075673E-2},{"$f":"'Population at Risk'!Z54/'Population at Risk'!Z$5","v":3.2502717799408894E-2},{"$f":"'Population at Risk'!AA54/'Population at Risk'!AA$5","v":3.9486433295982934E-2},{"$f":"'Population at Risk'!AB54/'Population at Risk'!AB$5","v":4.1098170748809185E-2},{"$f":"'Population at Risk'!AY54/'Population at Risk'!AY$5","v":4.802233732455212E-2},{"$f":"'Population at Risk'!AC54/'Population at Risk'!AC$5","v":3.8816533407889715E-2},{"$f":"'Population at Risk'!AD54/'Population at Risk'!AD$5","v":5.2219790828132412E-2},{"$f":"'Population at Risk'!AE54/'Population at Risk'!AE$5","v":5.5924017869007289E-2},{"$f":"'Population at Risk'!G54/'Population at Risk'!G$5","v":5.686252750308992E-2},{"$f":"'Population at Risk'!AF54/'Population at Risk'!AF$5","v":4.6195854556351071E-2},{"$f":"'Population at Risk'!H54/'Population at Risk'!H$5","v":5.6231813784876065E-2},{"$f":"'Population at Risk'!AG54/'Population at Risk'!AG$5","v":5.1979238632230161E-2},{"$f":"'Population at Risk'!AZ54/'Population at Risk'!AZ$5","v":4.5781270016073336E-2},{"$f":"'Population at Risk'!I54/'Population at Risk'!I$5","v":6.114042772462247E-2},{"$f":"'Population at Risk'!J54/'Population at Risk'!J$5","v":4.6094830300523811E-2},{"$f":"'Population at Risk'!K54/'Population at Risk'!K$5","v":5.5800190933942714E-2},{"$f":"'Population at Risk'!AH54/'Population at Risk'!AH$5","v":4.0523471434269362E-2},{"$f":"'Population at Risk'!AI54/'Population at Risk'!AI$5","v":3.8245180651037061E-2},{"$f":"'Population at Risk'!BA54/'Population at Risk'!BA$5","v":4.3920361464300034E-2},{"$f":"'Population at Risk'!L54/'Population at Risk'!L$5","v":6.0746258344717093E-2},{"$f":"'Population at Risk'!M54/'Population at Risk'!M$5","v":6.1548179307953851E-2},{"$f":"'Population at Risk'!AJ54/'Population at Risk'!AJ$5","v":4.6517269919216918E-2},{"$f":"'Population at Risk'!AK54/'Population at Risk'!AK$5","v":4.6070120171556803E-2},{"$f":"'Population at Risk'!AL54/'Population at Risk'!AL$5","v":5.6046910904844788E-2},{"$f":"'Population at Risk'!AM54/'Population at Risk'!AM$5","v":3.9658070417042633E-2},{"$f":"'Population at Risk'!N54/'Population at Risk'!N$5","v":3.7239007546566241E-2},{"$f":"'Population at Risk'!AN54/'Population at Risk'!AN$5","v":5.2486395917793208E-2},{"$f":"'Population at Risk'!AO54/'Population at Risk'!AO$5","v":5.2486395917793208E-2},{"$f":"'Population at Risk'!AP54/'Population at Risk'!AP$5","v":4.94406140748581E-2},{"$f":"'Population at Risk'!C54/'Population at Risk'!C$5","v":3.4779094361718464E-2},{"$f":"'Population at Risk'!AQ54/'Population at Risk'!AQ$5","v":3.9517366139317299E-2},{"$f":"'Population at Risk'!O54/'Population at Risk'!O$5","v":5.7479323852881778E-2},{"$f":"'Population at Risk'!AR54/'Population at Risk'!AR$5","v":4.4576061892325929E-2},{"$f":"'Population at Risk'!AS54/'Population at Risk'!AS$5","v":6.114042772462247E-2},{"$f":"'Population at Risk'!AT54/'Population at Risk'!AT$5","v":5.1557910463735271E-2},{"$f":"'Population at Risk'!AU54/'Population at Risk'!AU$5","v":5.1557910463735271E-2},{"$f":"'Population at Risk'!BB54/'Population at Risk'!BB$5","v":4.359508937815517E-2},{"$f":"'Population at Risk'!P54/'Population at Risk'!P$5","v":4.9805373768209461E-2},{"$f":"'Population at Risk'!AV54/'Population at Risk'!AV$5","v":5.4284549888804073E-2},{"$f":"'Population at Risk'!AW54/'Population at Risk'!AW$5","v":4.0342035496667636E-2},{"$f":"'Population at Risk'!Q54/'Population at Risk'!Q$5","v":4.3987163559351714E-2},52]
[null,"Male 70-74",{"$f":"'Population at Risk'!R55/'Population at Risk'!R$5","v":3.2973988973300061E-2},{"$f":"'Population at Risk'!AX55/'Population at Risk'!AX$5","v":3.1863834232849851E-2},{"$f":"'Population at Risk'!S55/'Population at Risk'!S$5","v":3.1547089329926586E-2},{"$f":"'Population at Risk'!T55/'Population at Risk'!T$5","v":2.3868811453564728E-2},{"$f":"'Population at Risk'!U55/'Population at Risk'!U$5","v":4.9333930147819428E-2},{"$f":"'Population at Risk'!D55/'Population at Risk'!D$5","v":2.7196090914171363E-2},{"$f":"'Population at Risk'!E55/'Population at Risk'!E$5","v":3.1305539559772909E-2},{"$f":"'Population at Risk'!BC55/'Population at Risk'!BC$5","v":5.2962270590196869E-2},{"$f":"'Population at Risk'!V55/'Population at Risk'!V$5","v":3.0592637793255165E-2},{"$f":"'Population at Risk'!F55/'Population at Risk'!F$5","v":4.1994960468962429E-2},{"$f":"'Population at Risk'!W55/'Population at Risk'!W$5","v":3.7702126358451243E-2},{"$f":"'Population at Risk'!X55/'Population at Risk'!X$5","v":3.7191511588997861E-2},{"$f":"'Population at Risk'!Y55/'Population at Risk'!Y$5","v":3.4940567797195246E-2},{"$f":"'Population at Risk'!Z55/'Population at Risk'!Z$5","v":2.2754614618315051E-2},{"$f":"'Population at Risk'!AA55/'Population at Risk'!AA$5","v":2.8820249147120291E-2},{"$f":"'Population at Risk'!AB55/'Population at Risk'!AB$5","v":2.8052202515538024E-2},{"$f":"'Population at Risk'!AY55/'Population at Risk'!AY$5","v":3.5532092543088825E-2},{"$f":"'Population at Risk'!AC55/'Population at Risk'!AC$5","v":2.829452065315816E-2},{"$f":"'Population at Risk'!AD55/'Population at Risk'!AD$5","v":3.9484852971147739E-2},{"$f":"'Population at Risk'!AE55/'Population at Risk'!AE$5","v":4.1878441093298198E-2},{"$f":"'Population at Risk'!G55/'Population at Risk'!G$5","v":4.3975483719807744E-2},{"$f":"'Population at Risk'!AF55/'Population at Risk'!AF$5","v":3.5305902908957527E-2},{"$f":"'Population at Risk'!H55/'Population at Risk'!H$5","v":4.2731988000944111E-2},{"$f":"'Population at Risk'!AG55/'Population at Risk'!AG$5","v":3.8924411479753743E-2},{"$f":"'Population at Risk'!AZ55/'Population at Risk'!AZ$5","v":3.3449474354090881E-2},{"$f":"'Population at Risk'!I55/'Population at Risk'!I$5","v":4.4904816850908705E-2},{"$f":"'Population at Risk'!J55/'Population at Risk'!J$5","v":3.3226393449655167E-2},{"$f":"'Population at Risk'!K55/'Population at Risk'!K$5","v":4.0335114585825158E-2},{"$f":"'Population at Risk'!AH55/'Population at Risk'!AH$5","v":2.9637548541744198E-2},{"$f":"'Population at Risk'!AI55/'Population at Risk'!AI$5","v":2.7320939080308516E-2},{"$f":"'Population at Risk'!BA55/'Population at Risk'!BA$5","v":3.2775247663062348E-2},{"$f":"'Population at Risk'!L55/'Population at Risk'!L$5","v":4.6556281865065448E-2},{"$f":"'Population at Risk'!M55/'Population at Risk'!M$5","v":4.7170878704694538E-2},{"$f":"'Population at Risk'!AJ55/'Population at Risk'!AJ$5","v":3.4528178794231264E-2},{"$f":"'Population at Risk'!AK55/'Population at Risk'!AK$5","v":3.533042943199121E-2},{"$f":"'Population at Risk'!AL55/'Population at Risk'!AL$5","v":4.2465424047984986E-2},{"$f":"'Population at Risk'!AM55/'Population at Risk'!AM$5","v":2.8236708181355156E-2},{"$f":"'Population at Risk'!N55/'Population at Risk'!N$5","v":2.6712725937010656E-2},{"$f":"'Population at Risk'!AN55/'Population at Risk'!AN$5","v":4.1624026065058176E-2},{"$f":"'Population at Risk'!AO55/'Population at Risk'!AO$5","v":4.1624026065058176E-2},{"$f":"'Population at Risk'!AP55/'Population at Risk'!AP$5","v":3.7198843527261799E-2},{"$f":"'Population at Risk'!C55/'Population at Risk'!C$5","v":2.2711586108859986E-2},{"$f":"'Population at Risk'!AQ55/'Population at Risk'!AQ$5","v":2.9758080397904653E-2},{"$f":"'Population at Risk'!O55/'Population at Risk'!O$5","v":4.2066198381234397E-2},{"$f":"'Population at Risk'!AR55/'Population at Risk'!AR$5","v":3.2478981818373782E-2},{"$f":"'Population at Risk'!AS55/'Population at Risk'!AS$5","v":4.4904816850908705E-2},{"$f":"'Population at Risk'!AT55/'Population at Risk'!AT$5","v":3.590903840441028E-2},{"$f":"'Population at Risk'!AU55/'Population at Risk'!AU$5","v":3.590903840441028E-2},{"$f":"'Population at Risk'!BB55/'Population at Risk'!BB$5","v":3.1888648829669512E-2},{"$f":"'Population at Risk'!P55/'Population at Risk'!P$5","v":3.7197678265277652E-2},{"$f":"'Population at Risk'!AV55/'Population at Risk'!AV$5","v":4.2787178382740328E-2},{"$f":"'Population at Risk'!AW55/'Population at Risk'!AW$5","v":3.026389401881727E-2},{"$f":"'Population at Risk'!Q55/'Population at Risk'!Q$5","v":3.387827118431197E-2},53]
[null,"Male 75-79",{"$f":"'Population at Risk'!R56/'Population at Risk'!R$5","v":1.6947315621479678E-2},{"$f":"'Population at Risk'!AX56/'Population at Risk'!AX$5","v":1.5736318031723113E-2},{"$f":"'Population at Risk'!S56/'Population at Risk'!S$5","v":1.372836626436255E-2},{"$f":"'Population at Risk'!T56/'Population at Risk'!T$5","v":1.1136710489536556E-2},{"$f":"'Population at Risk'!U56/'Population at Risk'!U$5","v":2.0233526276005966E-2},{"$f":"'Population at Risk'!D56/'Population at Risk'!D$5","v":1.3031660515689316E-2},{"$f":"'Population at Risk'!E56/'Population at Risk'!E$5","v":1.5217375082969662E-2},{"$f":"'Population at Risk'!BC56/'Population at Risk'!BC$5","v":2.172163236159793E-2},{"$f":"'Population at Risk'!V56/'Population at Risk'!V$5","v":1.3019172086767342E-2},{"$f":"'Population at Risk'!F56/'Population at Risk'!F$5","v":1.9823309354165913E-2},{"$f":"'Population at Risk'!W56/'Population at Risk'!W$5","v":1.5394123395950534E-2},{"$f":"'Population at Risk'!X56/'Population at Risk'!X$5","v":1.5185634710351554E-2},{"$f":"'Population at Risk'!Y56/'Population at Risk'!Y$5","v":1.5306446548126934E-2},{"$f":"'Population at Risk'!Z56/'Population at Risk'!Z$5","v":8.5337759276753571E-3},{"$f":"'Population at Risk'!AA56/'Population at Risk'!AA$5","v":1.1733245143991081E-2},{"$f":"'Population at Risk'!AB56/'Population at Risk'!AB$5","v":1.3647155036739739E-2},{"$f":"'Population at Risk'!AY56/'Population at Risk'!AY$5","v":1.5966339565616897E-2},{"$f":"'Population at Risk'!AC56/'Population at Risk'!AC$5","v":1.1779572609713186E-2},{"$f":"'Population at Risk'!AD56/'Population at Risk'!AD$5","v":1.6818574909617724E-2},{"$f":"'Population at Risk'!AE56/'Population at Risk'!AE$5","v":1.7839609143505849E-2},{"$f":"'Population at Risk'!G56/'Population at Risk'!G$5","v":1.8727784981242144E-2},{"$f":"'Population at Risk'!AF56/'Population at Risk'!AF$5","v":1.3989619649329588E-2},{"$f":"'Population at Risk'!H56/'Population at Risk'!H$5","v":1.7333113091623858E-2},{"$f":"'Population at Risk'!AG56/'Population at Risk'!AG$5","v":1.6581235328048616E-2},{"$f":"'Population at Risk'!AZ56/'Population at Risk'!AZ$5","v":1.628695160448862E-2},{"$f":"'Population at Risk'!I56/'Population at Risk'!I$5","v":2.1274107432088279E-2},{"$f":"'Population at Risk'!J56/'Population at Risk'!J$5","v":1.4986463506646059E-2},{"$f":"'Population at Risk'!K56/'Population at Risk'!K$5","v":1.5323535039908621E-2},{"$f":"'Population at Risk'!AH56/'Population at Risk'!AH$5","v":1.1638541584298322E-2},{"$f":"'Population at Risk'!AI56/'Population at Risk'!AI$5","v":1.2080271540483026E-2},{"$f":"'Population at Risk'!BA56/'Population at Risk'!BA$5","v":1.1703538647087645E-2},{"$f":"'Population at Risk'!L56/'Population at Risk'!L$5","v":2.0710791975806466E-2},{"$f":"'Population at Risk'!M56/'Population at Risk'!M$5","v":2.0984198416025168E-2},{"$f":"'Population at Risk'!AJ56/'Population at Risk'!AJ$5","v":1.3345842897352623E-2},{"$f":"'Population at Risk'!AK56/'Population at Risk'!AK$5","v":1.8242796176087733E-2},{"$f":"'Population at Risk'!AL56/'Population at Risk'!AL$5","v":1.700722688125083E-2},{"$f":"'Population at Risk'!AM56/'Population at Risk'!AM$5","v":1.082381723321495E-2},{"$f":"'Population at Risk'!N56/'Population at Risk'!N$5","v":1.2044346091869679E-2},{"$f":"'Population at Risk'!AN56/'Population at Risk'!AN$5","v":2.1646840000475075E-2},{"$f":"'Population at Risk'!AO56/'Population at Risk'!AO$5","v":2.1646840000475075E-2},{"$f":"'Population at Risk'!AP56/'Population at Risk'!AP$5","v":1.9463144180881922E-2},{"$f":"'Population at Risk'!C56/'Population at Risk'!C$5","v":1.0637687431892509E-2},{"$f":"'Population at Risk'!AQ56/'Population at Risk'!AQ$5","v":1.260239951879324E-2},{"$f":"'Population at Risk'!O56/'Population at Risk'!O$5","v":1.6743920515081584E-2},{"$f":"'Population at Risk'!AR56/'Population at Risk'!AR$5","v":1.4119120306214789E-2},{"$f":"'Population at Risk'!AS56/'Population at Risk'!AS$5","v":2.1274107432088279E-2},{"$f":"'Population at Risk'!AT56/'Population at Risk'!AT$5","v":1.8763013661921055E-2},{"$f":"'Population at Risk'!AU56/'Population at Risk'!AU$5","v":1.8763013661921055E-2},{"$f":"'Population at Risk'!BB56/'Population at Risk'!BB$5","v":1.2922783076248858E-2},{"$f":"'Population at Risk'!P56/'Population at Risk'!P$5","v":1.9409293396420627E-2},{"$f":"'Population at Risk'!AV56/'Population at Risk'!AV$5","v":1.7861553669805273E-2},{"$f":"'Population at Risk'!AW56/'Population at Risk'!AW$5","v":1.2146067636141723E-2},{"$f":"'Population at Risk'!Q56/'Population at Risk'!Q$5","v":1.5549145678945693E-2},54]
[null,"Male 80-84",{"$f":"'Population at Risk'!R57/'Population at Risk'!R$5","v":1.2392351847361305E-2},{"$f":"'Population at Risk'!AX57/'Population at Risk'!AX$5","v":1.0807087350333889E-2},{"$f":"'Population at Risk'!S57/'Population at Risk'!S$5","v":9.5162619330189414E-3},{"$f":"'Population at Risk'!T57/'Population at Risk'!T$5","v":8.5428315309298113E-3},{"$f":"'Population at Risk'!U57/'Population at Risk'!U$5","v":1.2522687303045904E-2},{"$f":"'Population at Risk'!D57/'Population at Risk'!D$5","v":8.9740062637346431E-3},{"$f":"'Population at Risk'!E57/'Population at Risk'!E$5","v":1.0080554044393931E-2},{"$f":"'Population at Risk'!BC57/'Population at Risk'!BC$5","v":1.3443687771744546E-2},{"$f":"'Population at Risk'!V57/'Population at Risk'!V$5","v":9.1002685929461834E-3},{"$f":"'Population at Risk'!F57/'Population at Risk'!F$5","v":1.3351582320984254E-2},{"$f":"'Population at Risk'!W57/'Population at Risk'!W$5","v":1.0348999906357492E-2},{"$f":"'Population at Risk'!X57/'Population at Risk'!X$5","v":1.020883931830426E-2},{"$f":"'Population at Risk'!Y57/'Population at Risk'!Y$5","v":1.0451060033302187E-2},{"$f":"'Population at Risk'!Z57/'Population at Risk'!Z$5","v":5.903566917650596E-3},{"$f":"'Population at Risk'!AA57/'Population at Risk'!AA$5","v":7.9810094037387914E-3},{"$f":"'Population at Risk'!AB57/'Population at Risk'!AB$5","v":9.2570454334145388E-3},{"$f":"'Population at Risk'!AY57/'Population at Risk'!AY$5","v":1.1063811473558014E-2},{"$f":"'Population at Risk'!AC57/'Population at Risk'!AC$5","v":8.1910677396950255E-3},{"$f":"'Population at Risk'!AD57/'Population at Risk'!AD$5","v":1.1436804788052053E-2},{"$f":"'Population at Risk'!AE57/'Population at Risk'!AE$5","v":1.2459421141365943E-2},{"$f":"'Population at Risk'!G57/'Population at Risk'!G$5","v":1.1945025404102222E-2},{"$f":"'Population at Risk'!AF57/'Population at Risk'!AF$5","v":9.1295898282112292E-3},{"$f":"'Population at Risk'!H57/'Population at Risk'!H$5","v":1.1491899303913629E-2},{"$f":"'Population at Risk'!AG57/'Population at Risk'!AG$5","v":1.1580556072410288E-2},{"$f":"'Population at Risk'!AZ57/'Population at Risk'!AZ$5","v":1.1544437642231958E-2},{"$f":"'Population at Risk'!I57/'Population at Risk'!I$5","v":1.4019729757262137E-2},{"$f":"'Population at Risk'!J57/'Population at Risk'!J$5","v":9.9949758179580343E-3},{"$f":"'Population at Risk'!K57/'Population at Risk'!K$5","v":9.5636567462869023E-3},{"$f":"'Population at Risk'!AH57/'Population at Risk'!AH$5","v":7.6234680880960994E-3},{"$f":"'Population at Risk'!AI57/'Population at Risk'!AI$5","v":8.5945377236087972E-3},{"$f":"'Population at Risk'!BA57/'Population at Risk'!BA$5","v":8.4867198803211009E-3},{"$f":"'Population at Risk'!L57/'Population at Risk'!L$5","v":1.414524893201872E-2},{"$f":"'Population at Risk'!M57/'Population at Risk'!M$5","v":1.433198260019657E-2},{"$f":"'Population at Risk'!AJ57/'Population at Risk'!AJ$5","v":8.8471695120642957E-3},{"$f":"'Population at Risk'!AK57/'Population at Risk'!AK$5","v":1.1661611338795268E-2},{"$f":"'Population at Risk'!AL57/'Population at Risk'!AL$5","v":1.1294836788482939E-2},{"$f":"'Population at Risk'!AM57/'Population at Risk'!AM$5","v":6.7972818074632764E-3},{"$f":"'Population at Risk'!N57/'Population at Risk'!N$5","v":8.8736710800672823E-3},{"$f":"'Population at Risk'!AN57/'Population at Risk'!AN$5","v":1.3022346660529814E-2},{"$f":"'Population at Risk'!AO57/'Population at Risk'!AO$5","v":1.3022346660529814E-2},{"$f":"'Population at Risk'!AP57/'Population at Risk'!AP$5","v":1.3965551351771065E-2},{"$f":"'Population at Risk'!C57/'Population at Risk'!C$5","v":7.776575498145458E-3},{"$f":"'Population at Risk'!AQ57/'Population at Risk'!AQ$5","v":8.1275531460093843E-3},{"$f":"'Population at Risk'!O57/'Population at Risk'!O$5","v":1.0606591408442629E-2},{"$f":"'Population at Risk'!AR57/'Population at Risk'!AR$5","v":9.6486704936750815E-3},{"$f":"'Population at Risk'!AS57/'Population at Risk'!AS$5","v":1.4019729757262137E-2},{"$f":"'Population at Risk'!AT57/'Population at Risk'!AT$5","v":1.1091221067193747E-2},{"$f":"'Population at Risk'!AU57/'Population at Risk'!AU$5","v":1.1091221067193747E-2},{"$f":"'Population at Risk'!BB57/'Population at Risk'!BB$5","v":7.7324981493992742E-3},{"$f":"'Population at Risk'!P57/'Population at Risk'!P$5","v":1.4420715163806315E-2},{"$f":"'Population at Risk'!AV57/'Population at Risk'!AV$5","v":1.2252231005168862E-2},{"$f":"'Population at Risk'!AW57/'Population at Risk'!AW$5","v":8.2450537727144172E-3},{"$f":"'Population at Risk'!Q57/'Population at Risk'!Q$5","v":1.0856652354560986E-2},55]
[null,"Male 85-89",{"$f":"'Population at Risk'!R58/'Population at Risk'!R$5","v":6.3293401198915768E-3},{"$f":"'Population at Risk'!AX58/'Population at Risk'!AX$5","v":5.1746337699234346E-3},{"$f":"'Population at Risk'!S58/'Population at Risk'!S$5","v":4.9740024763079644E-3},{"$f":"'Population at Risk'!T58/'Population at Risk'!T$5","v":4.6770891354012342E-3},{"$f":"'Population at Risk'!U58/'Population at Risk'!U$5","v":7.4267426407298122E-3},{"$f":"'Population at Risk'!D58/'Population at Risk'!D$5","v":4.6487558302377493E-3},{"$f":"'Population at Risk'!E58/'Population at Risk'!E$5","v":5.221758924151651E-3},{"$f":"'Population at Risk'!BC58/'Population at Risk'!BC$5","v":7.9729539520473642E-3},{"$f":"'Population at Risk'!V58/'Population at Risk'!V$5","v":4.1586543993066983E-3},{"$f":"'Population at Risk'!F58/'Population at Risk'!F$5","v":7.321232412325962E-3},{"$f":"'Population at Risk'!W58/'Population at Risk'!W$5","v":5.1308830459764346E-3},{"$f":"'Population at Risk'!X58/'Population at Risk'!X$5","v":5.061393472929417E-3},{"$f":"'Population at Risk'!Y58/'Population at Risk'!Y$5","v":4.9147483111213206E-3},{"$f":"'Population at Risk'!Z58/'Population at Risk'!Z$5","v":2.8568592620688811E-3},{"$f":"'Population at Risk'!AA58/'Population at Risk'!AA$5","v":3.8819899587183271E-3},{"$f":"'Population at Risk'!AB58/'Population at Risk'!AB$5","v":4.8230071731895996E-3},{"$f":"'Population at Risk'!AY58/'Population at Risk'!AY$5","v":5.8326711118131935E-3},{"$f":"'Population at Risk'!AC58/'Population at Risk'!AC$5","v":4.0675177327987103E-3},{"$f":"'Population at Risk'!AD58/'Population at Risk'!AD$5","v":5.8649518687461152E-3},{"$f":"'Population at Risk'!AE58/'Population at Risk'!AE$5","v":6.492827245705924E-3},{"$f":"'Population at Risk'!G58/'Population at Risk'!G$5","v":5.8765887895206705E-3},{"$f":"'Population at Risk'!AF58/'Population at Risk'!AF$5","v":4.6983753845311277E-3},{"$f":"'Population at Risk'!H58/'Population at Risk'!H$5","v":5.6027343890191301E-3},{"$f":"'Population at Risk'!AG58/'Population at Risk'!AG$5","v":6.0348349360897736E-3},{"$f":"'Population at Risk'!AZ58/'Population at Risk'!AZ$5","v":6.3499120672052874E-3},{"$f":"'Population at Risk'!I58/'Population at Risk'!I$5","v":7.9990921965942697E-3},{"$f":"'Population at Risk'!J58/'Population at Risk'!J$5","v":4.8364180677073106E-3},{"$f":"'Population at Risk'!K58/'Population at Risk'!K$5","v":4.7428491571738472E-3},{"$f":"'Population at Risk'!AH58/'Population at Risk'!AH$5","v":3.5712352761774358E-3},{"$f":"'Population at Risk'!AI58/'Population at Risk'!AI$5","v":4.520337287327719E-3},{"$f":"'Population at Risk'!BA58/'Population at Risk'!BA$5","v":3.6294469344273542E-3},{"$f":"'Population at Risk'!L58/'Population at Risk'!L$5","v":6.9116517872768995E-3},{"$f":"'Population at Risk'!M58/'Population at Risk'!M$5","v":7.002893595576559E-3},{"$f":"'Population at Risk'!AJ58/'Population at Risk'!AJ$5","v":4.5832035518778708E-3},{"$f":"'Population at Risk'!AK58/'Population at Risk'!AK$5","v":6.2177876590387132E-3},{"$f":"'Population at Risk'!AL58/'Population at Risk'!AL$5","v":5.2692614754901741E-3},{"$f":"'Population at Risk'!AM58/'Population at Risk'!AM$5","v":3.0261087943784853E-3},{"$f":"'Population at Risk'!N58/'Population at Risk'!N$5","v":4.9712725337821067E-3},{"$f":"'Population at Risk'!AN58/'Population at Risk'!AN$5","v":6.8659890210315934E-3},{"$f":"'Population at Risk'!AO58/'Population at Risk'!AO$5","v":6.8659890210315934E-3},{"$f":"'Population at Risk'!AP58/'Population at Risk'!AP$5","v":7.6116658596613023E-3},{"$f":"'Population at Risk'!C58/'Population at Risk'!C$5","v":4.0287015629657018E-3},{"$f":"'Population at Risk'!AQ58/'Population at Risk'!AQ$5","v":4.3364497653188621E-3},{"$f":"'Population at Risk'!O58/'Population at Risk'!O$5","v":5.0531958867041293E-3},{"$f":"'Population at Risk'!AR58/'Population at Risk'!AR$5","v":4.8999169224435909E-3},{"$f":"'Population at Risk'!AS58/'Population at Risk'!AS$5","v":7.9990921965942697E-3},{"$f":"'Population at Risk'!AT58/'Population at Risk'!AT$5","v":5.5665909019839586E-3},{"$f":"'Population at Risk'!AU58/'Population at Risk'!AU$5","v":5.5665909019839586E-3},{"$f":"'Population at Risk'!BB58/'Population at Risk'!BB$5","v":3.5838838795450197E-3},{"$f":"'Population at Risk'!P58/'Population at Risk'!P$5","v":7.2165811099182764E-3},{"$f":"'Population at Risk'!AV58/'Population at Risk'!AV$5","v":6.3252204764926859E-3},{"$f":"'Population at Risk'!AW58/'Population at Risk'!AW$5","v":4.0186893908047147E-3},{"$f":"'Population at Risk'!Q58/'Population at Risk'!Q$5","v":5.6259001846636642E-3},56]
[null,"Male 90+",{"$f":"'Population at Risk'!R59/'Population at Risk'!R$5","v":2.968074948590381E-3},{"$f":"'Population at Risk'!AX59/'Population at Risk'!AX$5","v":2.0202560896193005E-3},{"$f":"'Population at Risk'!S59/'Population at Risk'!S$5","v":2.148637544832696E-3},{"$f":"'Population at Risk'!T59/'Population at Risk'!T$5","v":2.2604743574281827E-3},{"$f":"'Population at Risk'!U59/'Population at Risk'!U$5","v":2.5282935894380049E-3},{"$f":"'Population at Risk'!D59/'Population at Risk'!D$5","v":2.0351635695158329E-3},{"$f":"'Population at Risk'!E59/'Population at Risk'!E$5","v":2.3373666964796027E-3},{"$f":"'Population at Risk'!BC59/'Population at Risk'!BC$5","v":2.7142408645339667E-3},{"$f":"'Population at Risk'!V59/'Population at Risk'!V$5","v":1.7912623998386991E-3},{"$f":"'Population at Risk'!F59/'Population at Risk'!F$5","v":2.9934697420817761E-3},{"$f":"'Population at Risk'!W59/'Population at Risk'!W$5","v":2.2337313008180667E-3},{"$f":"'Population at Risk'!X59/'Population at Risk'!X$5","v":2.2034789966815824E-3},{"$f":"'Population at Risk'!Y59/'Population at Risk'!Y$5","v":2.019230432497585E-3},{"$f":"'Population at Risk'!Z59/'Population at Risk'!Z$5","v":1.2665256726815421E-3},{"$f":"'Population at Risk'!AA59/'Population at Risk'!AA$5","v":1.6429737791691765E-3},{"$f":"'Population at Risk'!AB59/'Population at Risk'!AB$5","v":2.0990699221019064E-3},{"$f":"'Population at Risk'!AY59/'Population at Risk'!AY$5","v":2.4754731923734654E-3},{"$f":"'Population at Risk'!AC59/'Population at Risk'!AC$5","v":1.8076049272521227E-3},{"$f":"'Population at Risk'!AD59/'Population at Risk'!AD$5","v":2.4259657389448974E-3},{"$f":"'Population at Risk'!AE59/'Population at Risk'!AE$5","v":2.6874991070397584E-3},{"$f":"'Population at Risk'!G59/'Population at Risk'!G$5","v":2.4263984448151597E-3},{"$f":"'Population at Risk'!AF59/'Population at Risk'!AF$5","v":2.1201732955314985E-3},{"$f":"'Population at Risk'!H59/'Population at Risk'!H$5","v":2.3568561977534534E-3},{"$f":"'Population at Risk'!AG59/'Population at Risk'!AG$5","v":2.497927772928179E-3},{"$f":"'Population at Risk'!AZ59/'Population at Risk'!AZ$5","v":2.6494382971272872E-3},{"$f":"'Population at Risk'!I59/'Population at Risk'!I$5","v":2.8236983426201943E-3},{"$f":"'Population at Risk'!J59/'Population at Risk'!J$5","v":1.8939206093223772E-3},{"$f":"'Population at Risk'!K59/'Population at Risk'!K$5","v":1.8701246738544682E-3},{"$f":"'Population at Risk'!AH59/'Population at Risk'!AH$5","v":1.3700838644664043E-3},{"$f":"'Population at Risk'!AI59/'Population at Risk'!AI$5","v":2.0247702301033699E-3},{"$f":"'Population at Risk'!BA59/'Population at Risk'!BA$5","v":1.4902474041002657E-3},{"$f":"'Population at Risk'!L59/'Population at Risk'!L$5","v":2.9819792825534403E-3},{"$f":"'Population at Risk'!M59/'Population at Risk'!M$5","v":3.0213448626529972E-3},{"$f":"'Population at Risk'!AJ59/'Population at Risk'!AJ$5","v":1.658538488885505E-3},{"$f":"'Population at Risk'!AK59/'Population at Risk'!AK$5","v":2.6428627434621553E-3},{"$f":"'Population at Risk'!AL59/'Population at Risk'!AL$5","v":2.0917506837505803E-3},{"$f":"'Population at Risk'!AM59/'Population at Risk'!AM$5","v":1.1892946042353608E-3},{"$f":"'Population at Risk'!N59/'Population at Risk'!N$5","v":2.0972460764630708E-3},{"$f":"'Population at Risk'!AN59/'Population at Risk'!AN$5","v":3.1504296211575509E-3},{"$f":"'Population at Risk'!AO59/'Population at Risk'!AO$5","v":3.1504296211575509E-3},{"$f":"'Population at Risk'!AP59/'Population at Risk'!AP$5","v":3.1968594838282234E-3},{"$f":"'Population at Risk'!C59/'Population at Risk'!C$5","v":1.7055948573419303E-3},{"$f":"'Population at Risk'!AQ59/'Population at Risk'!AQ$5","v":1.9071554902042112E-3},{"$f":"'Population at Risk'!O59/'Population at Risk'!O$5","v":2.0027917844230533E-3},{"$f":"'Population at Risk'!AR59/'Population at Risk'!AR$5","v":2.0797946278140206E-3},{"$f":"'Population at Risk'!AS59/'Population at Risk'!AS$5","v":2.8236983426201943E-3},{"$f":"'Population at Risk'!AT59/'Population at Risk'!AT$5","v":2.144853959276338E-3},{"$f":"'Population at Risk'!AU59/'Population at Risk'!AU$5","v":2.144853959276338E-3},{"$f":"'Population at Risk'!BB59/'Population at Risk'!BB$5","v":1.3997698464627065E-3},{"$f":"'Population at Risk'!P59/'Population at Risk'!P$5","v":3.1975594908468219E-3},{"$f":"'Population at Risk'!AV59/'Population at Risk'!AV$5","v":2.8986791392870692E-3},{"$f":"'Population at Risk'!AW59/'Population at Risk'!AW$5","v":1.5137291823491739E-3},{"$f":"'Population at Risk'!Q59/'Population at Risk'!Q$5","v":2.3572061110406564E-3},57]
["SIMD Q1 (most deprived)","Female 0-4",{"$f":"'Population at Risk'!C60/'Population at Risk'!C$5","v":0},{"$f":"'Population at Risk'!D60/'Population at Risk'!D$5","v":0},{"$f":"'Population at Risk'!E60/'Population at Risk'!E$5","v":0},{"$f":"'Population at Risk'!F60/'Population at Risk'!F$5","v":0},{"$f":"'Population at Risk'!G60/'Population at Risk'!G$5","v":0},{"$f":"'Population at Risk'!H60/'Population at Risk'!H$5","v":0},{"$f":"'Population at Risk'!I60/'Population at Risk'!I$5","v":0},{"$f":"'Population at Risk'!J60/'Population at Risk'!J$5","v":0},{"$f":"'Population at Risk'!K60/'Population at Risk'!K$5","v":0},{"$f":"'Population at Risk'!L60/'Population at Risk'!L$5","v":0},{"$f":"'Population at Risk'!M60/'Population at Risk'!M$5","v":0},{"$f":"'Population at Risk'!N60/'Population at Risk'!N$5","v":0},{"$f":"'Population at Risk'!O60/'Population at Risk'!O$5","v":0},{"$f":"'Population at Risk'!P60/'Population at Risk'!P$5","v":0},{"$f":"'Population at Risk'!Q60/'Population at Risk'!Q$5","v":0},{"$f":"'Population at Risk'!R60/'Population at Risk'!R$5","v":0},{"$f":"'Population at Risk'!S60/'Population at Risk'!S$5","v":0},{"$f":"'Population at Risk'!T60/'Population at Risk'!T$5","v":0},{"$f":"'Population at Risk'!U60/'Population at Risk'!U$5","v":0},{"$f":"'Population at Risk'!V60/'Population at Risk'!V$5","v":0},{"$f":"'Population at Risk'!W60/'Population at Risk'!W$5","v":0},{"$f":"'Population at Risk'!X60/'Population at Risk'!X$5","v":0},{"$f":"'Population at Risk'!Y60/'Population at Risk'!Y$5","v":0},{"$f":"'Population at Risk'!Z60/'Population at Risk'!Z$5","v":0},{"$f":"'Population at Risk'!AA60/'Population at Risk'!AA$5","v":0},{"$f":"'Population at Risk'!AB60/'Population at Risk'!AB$5","v":0},{"$f":"'Population at Risk'!AC60/'Population at Risk'!AC$5","v":0},{"$f":"'Population at Risk'!AD60/'Population at Risk'!AD$5","v":0},{"$f":"'Population at Risk'!AE60/'Population at Risk'!AE$5","v":0},{"$f":"'Population at Risk'!AF60/'Population at Risk'!AF$5","v":0},{"$f":"'Population at Risk'!AG60/'Population at Risk'!AG$5","v":0},{"$f":"'Population at Risk'!AH60/'Population at Risk'!AH$5","v":0},{"$f":"'Population at Risk'!AI60/'Population at Risk'!AI$5","v":0},{"$f":"'Population at Risk'!AJ60/'Population at Risk'!AJ$5","v":0},{"$f":"'Population at Risk'!AK60/'Population at Risk'!AK$5","v":0},{"$f":"'Population at Risk'!AL60/'Population at Risk'!AL$5","v":0},{"$f":"'Population at Risk'!AM60/'Population at Risk'!AM$5","v":0},{"$f":"'Population at Risk'!AN60/'Population at Risk'!AN$5","v":0},{"$f":"'Population at Risk'!AO60/'Population at Risk'!AO$5","v":0},{"$f":"'Population at Risk'!AP60/'Population at Risk'!AP$5","v":0},{"$f":"'Population at Risk'!AQ60/'Population at Risk'!AQ$5","v":0},{"$f":"'Population at Risk'!AR60/'Population at Risk'!AR$5","v":0},{"$f":"'Population at Risk'!AS60/'Population at Risk'!AS$5","v":0},{"$f":"'Population at Risk'!AT60/'Population at Risk'!AT$5","v":0},{"$f":"'Population at Risk'!AU60/'Population at Risk'!AU$5","v":0},{"$f":"'Population at Risk'!AV60/'Population at Risk'!AV$5","v":0},{"$f":"'Population at Risk'!AW60/'Population at Risk'!AW$5","v":0},{"$f":"'Population at Risk'!AX60/'Population at Risk'!AX$5","v":0},{"$f":"'Population at Risk'!AY60/'Population at Risk'!AY$5","v":0},{"$f":"'Population at Risk'!AZ60/'Population at Risk'!AZ$5","v":0},{"$f":"'Population at Risk'!BA60/'Population at Risk'!BA$5","v":0},{"$f":"'Population at Risk'!BB60/'Population at Risk'!BB$5","v":0},{"$f":"'Population at Risk'!BC60/'Population at Risk'!BC$5","v":0},58]
[null,"Female 5-9",{"$f":"'Population at Risk'!C61/'Population at Risk'!C$5","v":0},{"$f":"'Population at Risk'!D61/'Population at Risk'!D$5","v":0},{"$f":"'Population at Risk'!E61/'Population at Risk'!E$5","v":0},{"$f":"'Population at Risk'!F61/'Population at Risk'!F$5","v":0},{"$f":"'Population at Risk'!G61/'Population at Risk'!G$5","v":0},{"$f":"'Population at Risk'!H61/'Population at Risk'!H$5","v":0},{"$f":"'Population at Risk'!I61/'Population at Risk'!I$5","v":0},{"$f":"'Population at Risk'!J61/'Population at Risk'!J$5","v":0},{"$f":"'Population at Risk'!K61/'Population at Risk'!K$5","v":0},{"$f":"'Population at Risk'!L61/'Population at Risk'!L$5","v":0},{"$f":"'Population at Risk'!M61/'Population at Risk'!M$5","v":0},{"$f":"'Population at Risk'!N61/'Population at Risk'!N$5","v":0},{"$f":"'Population at Risk'!O61/'Population at Risk'!O$5","v":0},{"$f":"'Population at Risk'!P61/'Population at Risk'!P$5","v":0},{"$f":"'Population at Risk'!Q61/'Population at Risk'!Q$5","v":0},{"$f":"'Population at Risk'!R61/'Population at Risk'!R$5","v":0},{"$f":"'Population at Risk'!S61/'Population at Risk'!S$5","v":0},{"$f":"'Population at Risk'!T61/'Population at Risk'!T$5","v":0},{"$f":"'Population at Risk'!U61/'Population at Risk'!U$5","v":0},{"$f":"'Population at Risk'!V61/'Population at Risk'!V$5","v":0},{"$f":"'Population at Risk'!W61/'Population at Risk'!W$5","v":0},{"$f":"'Population at Risk'!X61/'Population at Risk'!X$5","v":0},{"$f":"'Population at Risk'!Y61/'Population at Risk'!Y$5","v":0},{"$f":"'Population at Risk'!Z61/'Population at Risk'!Z$5","v":0},{"$f":"'Population at Risk'!AA61/'Population at Risk'!AA$5","v":0},{"$f":"'Population at Risk'!AB61/'Population at Risk'!AB$5","v":0},{"$f":"'Population at Risk'!AC61/'Population at Risk'!AC$5","v":0},{"$f":"'Population at Risk'!AD61/'Population at Risk'!AD$5","v":0},{"$f":"'Population at Risk'!AE61/'Population at Risk'!AE$5","v":0},{"$f":"'Population at Risk'!AF61/'Population at Risk'!AF$5","v":0},{"$f":"'Population at Risk'!AG61/'Population at Risk'!AG$5","v":0},{"$f":"'Population at Risk'!AH61/'Population at Risk'!AH$5","v":0},{"$f":"'Population at Risk'!AI61/'Population at Risk'!AI$5","v":0},{"$f":"'Population at Risk'!AJ61/'Population at Risk'!AJ$5","v":0},{"$f":"'Population at Risk'!AK61/'Population at Risk'!AK$5","v":0},{"$f":"'Population at Risk'!AL61/'Population at Risk'!AL$5","v":0},{"$f":"'Population at Risk'!AM61/'Population at Risk'!AM$5","v":0},{"$f":"'Population at Risk'!AN61/'Population at Risk'!AN$5","v":0},{"$f":"'Population at Risk'!AO61/'Population at Risk'!AO$5","v":0},{"$f":"'Population at Risk'!AP61/'Population at Risk'!AP$5","v":0},{"$f":"'Population at Risk'!AQ61/'Population at Risk'!AQ$5","v":0},{"$f":"'Population at Risk'!AR61/'Population at Risk'!AR$5","v":0},{"$f":"'Population at Risk'!AS61/'Population at Risk'!AS$5","v":0},{"$f":"'Population at Risk'!AT61/'Population at Risk'!AT$5","v":0},{"$f":"'Population at Risk'!AU61/'Population at Risk'!AU$5","v":0},{"$f":"'Population at Risk'!AV61/'Population at Risk'!AV$5","v":0},{"$f":"'Population at Risk'!AW61/'Population at Risk'!AW$5","v":0},{"$f":"'Population at Risk'!AX61/'Population at Risk'!AX$5","v":0},{"$f":"'Population at Risk'!AY61/'Population at Risk'!AY$5","v":0},{"$f":"'Population at Risk'!AZ61/'Population at Risk'!AZ$5","v":0},{"$f":"'Population at Risk'!BA61/'Population at Risk'!BA$5","v":0},{"$f":"'Population at Risk'!BB61/'Population at Risk'!BB$5","v":0},{"$f":"'Population at Risk'!BC61/'Population at Risk'!BC$5","v":0},59]
[null,"Female 10-15",{"$f":"'Population at Risk'!C62/'Population at Risk'!C$5","v":0},{"$f":"'Population at Risk'!D62/'Population at Risk'!D$5","v":0},{"$f":"'Population at Risk'!E62/'Population at Risk'!E$5","v":0},{"$f":"'Population at Risk'!F62/'Population at Risk'!F$5","v":0},{"$f":"'Population at Risk'!G62/'Population at Risk'!G$5","v":0},{"$f":"'Population at Risk'!H62/'Population at Risk'!H$5","v":0},{"$f":"'Population at Risk'!I62/'Population at Risk'!I$5","v":0},{"$f":"'Population at Risk'!J62/'Population at Risk'!J$5","v":0},{"$f":"'Population at Risk'!K62/'Population at Risk'!K$5","v":0},{"$f":"'Population at Risk'!L62/'Population at Risk'!L$5","v":0},{"$f":"'Population at Risk'!M62/'Population at Risk'!M$5","v":0},{"$f":"'Population at Risk'!N62/'Population at Risk'!N$5","v":0},{"$f":"'Population at Risk'!O62/'Population at Risk'!O$5","v":0},{"$f":"'Population at Risk'!P62/'Population at Risk'!P$5","v":0},{"$f":"'Population at Risk'!Q62/'Population at Risk'!Q$5","v":0},{"$f":"'Population at Risk'!R62/'Population at Risk'!R$5","v":0},{"$f":"'Population at Risk'!S62/'Population at Risk'!S$5","v":0},{"$f":"'Population at Risk'!T62/'Population at Risk'!T$5","v":0},{"$f":"'Population at Risk'!U62/'Population at Risk'!U$5","v":0},{"$f":"'Population at Risk'!V62/'Population at Risk'!V$5","v":0},{"$f":"'Population at Risk'!W62/'Population at Risk'!W$5","v":0},{"$f":"'Population at Risk'!X62/'Population at Risk'!X$5","v":0},{"$f":"'Population at Risk'!Y62/'Population at Risk'!Y$5","v":0},{"$f":"'Population at Risk'!Z62/'Population at Risk'!Z$5","v":0},{"$f":"'Population at Risk'!AA62/'Population at Risk'!AA$5","v":0},{"$f":"'Population at Risk'!AB62/'Population at Risk'!AB$5","v":0},{"$f":"'Population at Risk'!AC62/'Population at Risk'!AC$5","v":0},{"$f":"'Population at Risk'!AD62/'Population at Risk'!AD$5","v":0},{"$f":"'Population at Risk'!AE62/'Population at Risk'!AE$5","v":0},{"$f":"'Population at Risk'!AF62/'Population at Risk'!AF$5","v":0},{"$f":"'Population at Risk'!AG62/'Population at Risk'!AG$5","v":0},{"$f":"'Population at Risk'!AH62/'Population at Risk'!AH$5","v":0},{"$f":"'Population at Risk'!AI62/'Population at Risk'!AI$5","v":0},{"$f":"'Population at Risk'!AJ62/'Population at Risk'!AJ$5","v":0},{"$f":"'Population at Risk'!AK62/'Population at Risk'!AK$5","v":0},{"$f":"'Population at Risk'!AL62/'Population at Risk'!AL$5","v":0},{"$f":"'Population at Risk'!AM62/'Population at Risk'!AM$5","v":0},{"$f":"'Population at Risk'!AN62/'Population at Risk'!AN$5","v":0},{"$f":"'Population at Risk'!AO62/'Population at Risk'!AO$5","v":0},{"$f":"'Population at Risk'!AP62/'Population at Risk'!AP$5","v":0},{"$f":"'Population at Risk'!AQ62/'Population at Risk'!AQ$5","v":0},{"$f":"'Population at Risk'!AR62/'Population at Risk'!AR$5","v":0},{"$f":"'Population at Risk'!AS62/'Population at Risk'!AS$5","v":0},{"$f":"'Population at Risk'!AT62/'Population at Risk'!AT$5","v":0},{"$f":"'Population at Risk'!AU62/'Population at Risk'!AU$5","v":0},{"$f":"'Population at Risk'!AV62/'Population at Risk'!AV$5","v":0},{"$f":"'Population at Risk'!AW62/'Population at Risk'!AW$5","v":0},{"$f":"'Population at Risk'!AX62/'Population at Risk'!AX$5","v":0},{"$f":"'Population at Risk'!AY62/'Population at Risk'!AY$5","v":0},{"$f":"'Population at Risk'!AZ62/'Population at Risk'!AZ$5","v":0},{"$f":"'Population at Risk'!BA62/'Population at Risk'!BA$5","v":0},{"$f":"'Population at Risk'!BB62/'Population at Risk'!BB$5","v":0},{"$f":"'Population at Risk'!BC62/'Population at Risk'!BC$5","v":0},60]
[null,"Female 16-19",{"$f":"'Population at Risk'!C63/'Population at Risk'!C$5","v":1.9411749138608977E-3},{"$f":"'Population at Risk'!D63/'Population at Risk'!D$5","v":1.1773655439897368E-3},{"$f":"'Population at Risk'!E63/'Population at Risk'!E$5","v":5.1110880023681109E-4},{"$f":"'Population at Risk'!F63/'Population at Risk'!F$5","v":2.0452643709310734E-3},{"$f":"'Population at Risk'!G63/'Population at Risk'!G$5","v":2.0639145895354136E-3},{"$f":"'Population at Risk'!H63/'Population at Risk'!H$5","v":8.5843054135586894E-3},{"$f":"'Population at Risk'!I63/'Population at Risk'!I$5","v":1.5870685425066803E-3},{"$f":"'Population at Risk'!J63/'Population at Risk'!J$5","v":4.9273859696307726E-3},{"$f":"'Population at Risk'!K63/'Population at Risk'!K$5","v":5.7496037232464088E-3},{"$f":"'Population at Risk'!L63/'Population at Risk'!L$5","v":2.4386600467817413E-3},{"$f":"'Population at Risk'!M63/'Population at Risk'!M$5","v":2.3936853812454245E-3},{"$f":"'Population at Risk'!N63/'Population at Risk'!N$5","v":1.1723891636543745E-2},{"$f":"'Population at Risk'!O63/'Population at Risk'!O$5","v":7.2942560646345571E-3},{"$f":"'Population at Risk'!P63/'Population at Risk'!P$5","v":1.1457976261204004E-3},{"$f":"'Population at Risk'!Q63/'Population at Risk'!Q$5","v":9.8007241051533615E-4},{"$f":"'Population at Risk'!R63/'Population at Risk'!R$5","v":2.0097589479581364E-3},{"$f":"'Population at Risk'!S63/'Population at Risk'!S$5","v":3.9193719490643588E-3},{"$f":"'Population at Risk'!T63/'Population at Risk'!T$5","v":3.4162955342233342E-3},{"$f":"'Population at Risk'!U63/'Population at Risk'!U$5","v":0},{"$f":"'Population at Risk'!V63/'Population at Risk'!V$5","v":3.9071041021970345E-3},{"$f":"'Population at Risk'!W63/'Population at Risk'!W$5","v":5.9240990254684541E-3},{"$f":"'Population at Risk'!X63/'Population at Risk'!X$5","v":6.0310196703145169E-3},{"$f":"'Population at Risk'!Y63/'Population at Risk'!Y$5","v":3.9084343290617853E-3},{"$f":"'Population at Risk'!Z63/'Population at Risk'!Z$5","v":1.2827845329829756E-2},{"$f":"'Population at Risk'!AA63/'Population at Risk'!AA$5","v":9.2275348778993391E-3},{"$f":"'Population at Risk'!AB63/'Population at Risk'!AB$5","v":1.0322611232287697E-3},{"$f":"'Population at Risk'!AC63/'Population at Risk'!AC$5","v":9.559393833482718E-3},{"$f":"'Population at Risk'!AD63/'Population at Risk'!AD$5","v":2.1169205405793647E-3},{"$f":"'Population at Risk'!AE63/'Population at Risk'!AE$5","v":1.8630882460916433E-3},{"$f":"'Population at Risk'!AF63/'Population at Risk'!AF$5","v":1.1555590612108899E-2},{"$f":"'Population at Risk'!AG63/'Population at Risk'!AG$5","v":2.0613653276906787E-3},{"$f":"'Population at Risk'!AH63/'Population at Risk'!AH$5","v":8.4826649007073342E-3},{"$f":"'Population at Risk'!AI63/'Population at Risk'!AI$5","v":3.4183972395044871E-3},{"$f":"'Population at Risk'!AJ63/'Population at Risk'!AJ$5","v":2.9630744567364932E-3},{"$f":"'Population at Risk'!AK63/'Population at Risk'!AK$5","v":1.9645079327068059E-4},{"$f":"'Population at Risk'!AL63/'Population at Risk'!AL$5","v":1.2152207392161383E-2},{"$f":"'Population at Risk'!AM63/'Population at Risk'!AM$5","v":1.0632068625542923E-2},{"$f":"'Population at Risk'!AN63/'Population at Risk'!AN$5","v":0},{"$f":"'Population at Risk'!AO63/'Population at Risk'!AO$5","v":0},{"$f":"'Population at Risk'!AP63/'Population at Risk'!AP$5","v":1.4191626753579641E-3},{"$f":"'Population at Risk'!AQ63/'Population at Risk'!AQ$5","v":8.268554051723255E-3},{"$f":"'Population at Risk'!AR63/'Population at Risk'!AR$5","v":5.4789570176223571E-3},{"$f":"'Population at Risk'!AS63/'Population at Risk'!AS$5","v":1.5870685425066803E-3},{"$f":"'Population at Risk'!AT63/'Population at Risk'!AT$5","v":0},{"$f":"'Population at Risk'!AU63/'Population at Risk'!AU$5","v":0},{"$f":"'Population at Risk'!AV63/'Population at Risk'!AV$5","v":5.4965767002357127E-3},{"$f":"'Population at Risk'!AW63/'Population at Risk'!AW$5","v":6.4422349935046872E-3},{"$f":"'Population at Risk'!AX63/'Population at Risk'!AX$5","v":3.9733170050625212E-3},{"$f":"'Population at Risk'!AY63/'Population at Risk'!AY$5","v":5.4736149504402811E-3},{"$f":"'Population at Risk'!AZ63/'Population at Risk'!AZ$5","v":5.0828097213850773E-3},{"$f":"'Population at Risk'!BA63/'Population at Risk'!BA$5","v":1.1924176087745483E-2},{"$f":"'Population at Risk'!BB63/'Population at Risk'!BB$5","v":4.7067296947039218E-3},{"$f":"'Population at Risk'!BC63/'Population at Risk'!BC$5","v":0},61]
[null,"Female 20-24",{"$f":"'Population at Risk'!C64/'Population at Risk'!C$5","v":4.1362364649570084E-3},{"$f":"'Population at Risk'!D64/'Population at Risk'!D$5","v":2.4137222634612143E-3},{"$f":"'Population at Risk'!E64/'Population at Risk'!E$5","v":9.1269428613716282E-4},{"$f":"'Population at Risk'!F64/'Population at Risk'!F$5","v":2.9481288229637097E-3},{"$f":"'Population at Risk'!G64/'Population at Risk'!G$5","v":2.9403714700230545E-3},{"$f":"'Population at Risk'!H64/'Population at Risk'!H$5","v":1.2851116997345979E-2},{"$f":"'Population at Risk'!I64/'Population at Risk'!I$5","v":2.0378335723310625E-3},{"$f":"'Population at Risk'!J64/'Population at Risk'!J$5","v":7.9385662844051342E-3},{"$f":"'Population at Risk'!K64/'Population at Risk'!K$5","v":9.2749081958938429E-3},{"$f":"'Population at Risk'!L64/'Population at Risk'!L$5","v":3.8863725189982033E-3},{"$f":"'Population at Risk'!M64/'Population at Risk'!M$5","v":3.814698607572073E-3},{"$f":"'Population at Risk'!N64/'Population at Risk'!N$5","v":1.9965070427918816E-2},{"$f":"'Population at Risk'!O64/'Population at Risk'!O$5","v":1.1427667834594141E-2},{"$f":"'Population at Risk'!P64/'Population at Risk'!P$5","v":1.7947449541885917E-3},{"$f":"'Population at Risk'!Q64/'Population at Risk'!Q$5","v":1.4169721597812089E-3},{"$f":"'Population at Risk'!R64/'Population at Risk'!R$5","v":2.7558970004934926E-3},{"$f":"'Population at Risk'!S64/'Population at Risk'!S$5","v":5.4431375349392359E-3},{"$f":"'Population at Risk'!T64/'Population at Risk'!T$5","v":5.3970200726826071E-3},{"$f":"'Population at Risk'!U64/'Population at Risk'!U$5","v":0},{"$f":"'Population at Risk'!V64/'Population at Risk'!V$5","v":6.396440471107382E-3},{"$f":"'Population at Risk'!W64/'Population at Risk'!W$5","v":7.2812327005210963E-3},{"$f":"'Population at Risk'!X64/'Population at Risk'!X$5","v":7.4126474679426105E-3},{"$f":"'Population at Risk'!Y64/'Population at Risk'!Y$5","v":6.3420568279626164E-3},{"$f":"'Population at Risk'!Z64/'Population at Risk'!Z$5","v":2.1840797298570417E-2},{"$f":"'Population at Risk'!AA64/'Population at Risk'!AA$5","v":1.4707102815055897E-2},{"$f":"'Population at Risk'!AB64/'Population at Risk'!AB$5","v":2.1208273986336543E-3},{"$f":"'Population at Risk'!AC64/'Population at Risk'!AC$5","v":1.6190831216723559E-2},{"$f":"'Population at Risk'!AD64/'Population at Risk'!AD$5","v":3.1271813450088615E-3},{"$f":"'Population at Risk'!AE64/'Population at Risk'!AE$5","v":2.7876977975018879E-3},{"$f":"'Population at Risk'!AF64/'Population at Risk'!AF$5","v":1.9029773493487476E-2},{"$f":"'Population at Risk'!AG64/'Population at Risk'!AG$5","v":3.0843754158746384E-3},{"$f":"'Population at Risk'!AH64/'Population at Risk'!AH$5","v":1.1645080533444744E-2},{"$f":"'Population at Risk'!AI64/'Population at Risk'!AI$5","v":5.1691176098759605E-3},{"$f":"'Population at Risk'!AJ64/'Population at Risk'!AJ$5","v":4.7120110872980337E-3},{"$f":"'Population at Risk'!AK64/'Population at Risk'!AK$5","v":4.2973611027961379E-4},{"$f":"'Population at Risk'!AL64/'Population at Risk'!AL$5","v":1.7504215829123652E-2},{"$f":"'Population at Risk'!AM64/'Population at Risk'!AM$5","v":1.4338008260677024E-2},{"$f":"'Population at Risk'!AN64/'Population at Risk'!AN$5","v":0},{"$f":"'Population at Risk'!AO64/'Population at Risk'!AO$5","v":0},{"$f":"'Population at Risk'!AP64/'Population at Risk'!AP$5","v":2.5281258588344064E-3},{"$f":"'Population at Risk'!AQ64/'Population at Risk'!AQ$5","v":1.5216985229031801E-2},{"$f":"'Population at Risk'!AR64/'Population at Risk'!AR$5","v":8.5386578920977358E-3},{"$f":"'Population at Risk'!AS64/'Population at Risk'!AS$5","v":2.0378335723310625E-3},{"$f":"'Population at Risk'!AT64/'Population at Risk'!AT$5","v":0},{"$f":"'Population at Risk'!AU64/'Population at Risk'!AU$5","v":0},{"$f":"'Population at Risk'!AV64/'Population at Risk'!AV$5","v":8.4078514760251785E-3},{"$f":"'Population at Risk'!AW64/'Population at Risk'!AW$5","v":9.1165373550695199E-3},{"$f":"'Population at Risk'!AX64/'Population at Risk'!AX$5","v":6.3945570550224956E-3},{"$f":"'Population at Risk'!AY64/'Population at Risk'!AY$5","v":7.8946670828279799E-3},{"$f":"'Population at Risk'!AZ64/'Population at Risk'!AZ$5","v":8.5222590881396405E-3},{"$f":"'Population at Risk'!BA64/'Population at Risk'!BA$5","v":1.8619489866206301E-2},{"$f":"'Population at Risk'!BB64/'Population at Risk'!BB$5","v":6.3825611298140806E-3},{"$f":"'Population at Risk'!BC64/'Population at Risk'!BC$5","v":0},62]
[null,"Female 25-29",{"$f":"'Population at Risk'!C65/'Population at Risk'!C$5","v":3.2680002310568647E-3},{"$f":"'Population at Risk'!D65/'Population at Risk'!D$5","v":1.869227827795177E-3},{"$f":"'Population at Risk'!E65/'Population at Risk'!E$5","v":6.5087426518008879E-4},{"$f":"'Population at Risk'!F65/'Population at Risk'!F$5","v":1.6507924505440017E-3},{"$f":"'Population at Risk'!G65/'Population at Risk'!G$5","v":1.4571092643735431E-3},{"$f":"'Population at Risk'!H65/'Population at Risk'!H$5","v":7.7127188318365271E-3},{"$f":"'Population at Risk'!I65/'Population at Risk'!I$5","v":1.1480583289502715E-3},{"$f":"'Population at Risk'!J65/'Population at Risk'!J$5","v":5.0407237815177338E-3},{"$f":"'Population at Risk'!K65/'Population at Risk'!K$5","v":5.3821516018039677E-3},{"$f":"'Population at Risk'!L65/'Population at Risk'!L$5","v":2.3382775131753175E-3},{"$f":"'Population at Risk'!M65/'Population at Risk'!M$5","v":2.2951541392450593E-3},{"$f":"'Population at Risk'!N65/'Population at Risk'!N$5","v":1.5586256122010221E-2},{"$f":"'Population at Risk'!O65/'Population at Risk'!O$5","v":7.0442469638877419E-3},{"$f":"'Population at Risk'!P65/'Population at Risk'!P$5","v":1.1666900946737918E-3},{"$f":"'Population at Risk'!Q65/'Population at Risk'!Q$5","v":9.6945006897557944E-4},{"$f":"'Population at Risk'!R65/'Population at Risk'!R$5","v":1.5866275385676945E-3},{"$f":"'Population at Risk'!S65/'Population at Risk'!S$5","v":4.1907050990601701E-3},{"$f":"'Population at Risk'!T65/'Population at Risk'!T$5","v":4.8704909481609437E-3},{"$f":"'Population at Risk'!U65/'Population at Risk'!U$5","v":0},{"$f":"'Population at Risk'!V65/'Population at Risk'!V$5","v":4.4062212728847193E-3},{"$f":"'Population at Risk'!W65/'Population at Risk'!W$5","v":5.3533750821990831E-3},{"$f":"'Population at Risk'!X65/'Population at Risk'!X$5","v":5.4499950599257909E-3},{"$f":"'Population at Risk'!Y65/'Population at Risk'!Y$5","v":4.1800287622231411E-3},{"$f":"'Population at Risk'!Z65/'Population at Risk'!Z$5","v":1.8083677802229879E-2},{"$f":"'Population at Risk'!AA65/'Population at Risk'!AA$5","v":1.0798909159609191E-2},{"$f":"'Population at Risk'!AB65/'Population at Risk'!AB$5","v":1.614625077373766E-3},{"$f":"'Population at Risk'!AC65/'Population at Risk'!AC$5","v":1.2448455635580884E-2},{"$f":"'Population at Risk'!AD65/'Population at Risk'!AD$5","v":1.7723618109847627E-3},{"$f":"'Population at Risk'!AE65/'Population at Risk'!AE$5","v":1.6484286455316793E-3},{"$f":"'Population at Risk'!AF65/'Population at Risk'!AF$5","v":1.1504685390798849E-2},{"$f":"'Population at Risk'!AG65/'Population at Risk'!AG$5","v":1.8238608193677415E-3},{"$f":"'Population at Risk'!AH65/'Population at Risk'!AH$5","v":7.4507806128373908E-3},{"$f":"'Population at Risk'!AI65/'Population at Risk'!AI$5","v":4.1468729839420982E-3},{"$f":"'Population at Risk'!AJ65/'Population at Risk'!AJ$5","v":2.9190626211930163E-3},{"$f":"'Population at Risk'!AK65/'Population at Risk'!AK$5","v":1.6923354330253897E-4},{"$f":"'Population at Risk'!AL65/'Population at Risk'!AL$5","v":1.0511368035310449E-2},{"$f":"'Population at Risk'!AM65/'Population at Risk'!AM$5","v":9.3326731447234811E-3},{"$f":"'Population at Risk'!AN65/'Population at Risk'!AN$5","v":0},{"$f":"'Population at Risk'!AO65/'Population at Risk'!AO$5","v":0},{"$f":"'Population at Risk'!AP65/'Population at Risk'!AP$5","v":1.8635895680338304E-3},{"$f":"'Population at Risk'!AQ65/'Population at Risk'!AQ$5","v":1.0350805164275653E-2},{"$f":"'Population at Risk'!AR65/'Population at Risk'!AR$5","v":6.1376930510852988E-3},{"$f":"'Population at Risk'!AS65/'Population at Risk'!AS$5","v":1.1480583289502715E-3},{"$f":"'Population at Risk'!AT65/'Population at Risk'!AT$5","v":0},{"$f":"'Population at Risk'!AU65/'Population at Risk'!AU$5","v":0},{"$f":"'Population at Risk'!AV65/'Population at Risk'!AV$5","v":4.7893639565828759E-3},{"$f":"'Population at Risk'!AW65/'Population at Risk'!AW$5","v":5.6649522807648324E-3},{"$f":"'Population at Risk'!AX65/'Population at Risk'!AX$5","v":4.3603932731567938E-3},{"$f":"'Population at Risk'!AY65/'Population at Risk'!AY$5","v":5.8701603363888006E-3},{"$f":"'Population at Risk'!AZ65/'Population at Risk'!AZ$5","v":6.3940190063047162E-3},{"$f":"'Population at Risk'!BA65/'Population at Risk'!BA$5","v":1.1593124094702496E-2},{"$f":"'Population at Risk'!BB65/'Population at Risk'!BB$5","v":4.0445838175985956E-3},{"$f":"'Population at Risk'!BC65/'Population at Risk'!BC$5","v":0},63]
[null,"Female 30-34",{"$f":"'Population at Risk'!C66/'Population at Risk'!C$5","v":2.8717829382517161E-3},{"$f":"'Population at Risk'!D66/'Population at Risk'!D$5","v":1.6806847529663492E-3},{"$f":"'Population at Risk'!E66/'Population at Risk'!E$5","v":6.4266996771983559E-4},{"$f":"'Population at Risk'!F66/'Population at Risk'!F$5","v":1.8329869350522025E-3},{"$f":"'Population at Risk'!G66/'Population at Risk'!G$5","v":1.7027846635993148E-3},{"$f":"'Population at Risk'!H66/'Population at Risk'!H$5","v":6.8452040629097986E-3},{"$f":"'Population at Risk'!I66/'Population at Risk'!I$5","v":1.1649415396701283E-3},{"$f":"'Population at Risk'!J66/'Population at Risk'!J$5","v":4.4093905268306017E-3},{"$f":"'Population at Risk'!K66/'Population at Risk'!K$5","v":5.1432243110696796E-3},{"$f":"'Population at Risk'!L66/'Population at Risk'!L$5","v":1.9949589894154495E-3},{"$f":"'Population at Risk'!M66/'Population at Risk'!M$5","v":1.9581672219749512E-3},{"$f":"'Population at Risk'!N66/'Population at Risk'!N$5","v":1.2494675065227669E-2},{"$f":"'Population at Risk'!O66/'Population at Risk'!O$5","v":6.2604363174066516E-3},{"$f":"'Population at Risk'!P66/'Population at Risk'!P$5","v":1.0026243001102896E-3},{"$f":"'Population at Risk'!Q66/'Population at Risk'!Q$5","v":8.774584565910355E-4},{"$f":"'Population at Risk'!R66/'Population at Risk'!R$5","v":1.5433558784249393E-3},{"$f":"'Population at Risk'!S66/'Population at Risk'!S$5","v":4.0047409324517821E-3},{"$f":"'Population at Risk'!T66/'Population at Risk'!T$5","v":4.7956231443183357E-3},{"$f":"'Population at Risk'!U66/'Population at Risk'!U$5","v":0},{"$f":"'Population at Risk'!V66/'Population at Risk'!V$5","v":4.3173064938354759E-3},{"$f":"'Population at Risk'!W66/'Population at Risk'!W$5","v":4.7225386421284876E-3},{"$f":"'Population at Risk'!X66/'Population at Risk'!X$5","v":4.8077730169686179E-3},{"$f":"'Population at Risk'!Y66/'Population at Risk'!Y$5","v":3.8620307713929441E-3},{"$f":"'Population at Risk'!Z66/'Population at Risk'!Z$5","v":1.531218399399209E-2},{"$f":"'Population at Risk'!AA66/'Population at Risk'!AA$5","v":9.8228315329475201E-3},{"$f":"'Population at Risk'!AB66/'Population at Risk'!AB$5","v":1.467159319533128E-3},{"$f":"'Population at Risk'!AC66/'Population at Risk'!AC$5","v":1.0817613960021316E-2},{"$f":"'Population at Risk'!AD66/'Population at Risk'!AD$5","v":1.9780204826635684E-3},{"$f":"'Population at Risk'!AE66/'Population at Risk'!AE$5","v":1.814656744240756E-3},{"$f":"'Population at Risk'!AF66/'Population at Risk'!AF$5","v":1.1253051852067463E-2},{"$f":"'Population at Risk'!AG66/'Population at Risk'!AG$5","v":2.0077795574552446E-3},{"$f":"'Population at Risk'!AH66/'Population at Risk'!AH$5","v":7.7702452410953662E-3},{"$f":"'Population at Risk'!AI66/'Population at Risk'!AI$5","v":4.1183188713239654E-3},{"$f":"'Population at Risk'!AJ66/'Population at Risk'!AJ$5","v":2.5639244387926788E-3},{"$f":"'Population at Risk'!AK66/'Population at Risk'!AK$5","v":2.4281334473842548E-4},{"$f":"'Population at Risk'!AL66/'Population at Risk'!AL$5","v":9.1260236327079941E-3},{"$f":"'Population at Risk'!AM66/'Population at Risk'!AM$5","v":9.4355609099651232E-3},{"$f":"'Population at Risk'!AN66/'Population at Risk'!AN$5","v":0},{"$f":"'Population at Risk'!AO66/'Population at Risk'!AO$5","v":0},{"$f":"'Population at Risk'!AP66/'Population at Risk'!AP$5","v":1.6730479912523163E-3},{"$f":"'Population at Risk'!AQ66/'Population at Risk'!AQ$5","v":8.8301605611944244E-3},{"$f":"'Population at Risk'!AR66/'Population at Risk'!AR$5","v":5.6087762065801976E-3},{"$f":"'Population at Risk'!AS66/'Population at Risk'!AS$5","v":1.1649415396701283E-3},{"$f":"'Population at Risk'!AT66/'Population at Risk'!AT$5","v":0},{"$f":"'Population at Risk'!AU66/'Population at Risk'!AU$5","v":0},{"$f":"'Population at Risk'!AV66/'Population at Risk'!AV$5","v":4.4929757511122052E-3},{"$f":"'Population at Risk'!AW66/'Population at Risk'!AW$5","v":6.2221607018236678E-3},{"$f":"'Population at Risk'!AX66/'Population at Risk'!AX$5","v":3.5567713047251668E-3},{"$f":"'Population at Risk'!AY66/'Population at Risk'!AY$5","v":5.0372004550295205E-3},{"$f":"'Population at Risk'!AZ66/'Population at Risk'!AZ$5","v":5.3652647316000928E-3},{"$f":"'Population at Risk'!BA66/'Population at Risk'!BA$5","v":1.1886059083312897E-2},{"$f":"'Population at Risk'!BB66/'Population at Risk'!BB$5","v":4.3348837230324424E-3},{"$f":"'Population at Risk'!BC66/'Population at Risk'!BC$5","v":0},64]
[null,"Female 35-39",{"$f":"'Population at Risk'!C67/'Population at Risk'!C$5","v":1.9422428803188838E-3},{"$f":"'Population at Risk'!D67/'Population at Risk'!D$5","v":1.1421406456229312E-3},{"$f":"'Population at Risk'!E67/'Population at Risk'!E$5","v":4.4478866300829838E-4},{"$f":"'Population at Risk'!F67/'Population at Risk'!F$5","v":1.5557602422225005E-3},{"$f":"'Population at Risk'!G67/'Population at Risk'!G$5","v":1.4178884274669743E-3},{"$f":"'Population at Risk'!H67/'Population at Risk'!H$5","v":5.8140229807658256E-3},{"$f":"'Population at Risk'!I67/'Population at Risk'!I$5","v":1.0217393837013207E-3},{"$f":"'Population at Risk'!J67/'Population at Risk'!J$5","v":3.6383210956014629E-3},{"$f":"'Population at Risk'!K67/'Population at Risk'!K$5","v":5.0179892606833721E-3},{"$f":"'Population at Risk'!L67/'Population at Risk'!L$5","v":1.5837179445229727E-3},{"$f":"'Population at Risk'!M67/'Population at Risk'!M$5","v":1.5545104356892666E-3},{"$f":"'Population at Risk'!N67/'Population at Risk'!N$5","v":9.250344519720094E-3},{"$f":"'Population at Risk'!O67/'Population at Risk'!O$5","v":5.2024246406966344E-3},{"$f":"'Population at Risk'!P67/'Population at Risk'!P$5","v":8.6763357217962294E-4},{"$f":"'Population at Risk'!Q67/'Population at Risk'!Q$5","v":9.702373742073784E-4},{"$f":"'Population at Risk'!R67/'Population at Risk'!R$5","v":1.4662090168513016E-3},{"$f":"'Population at Risk'!S67/'Population at Risk'!S$5","v":3.2494709227512387E-3},{"$f":"'Population at Risk'!T67/'Population at Risk'!T$5","v":3.6324072406632262E-3},{"$f":"'Population at Risk'!U67/'Population at Risk'!U$5","v":0},{"$f":"'Population at Risk'!V67/'Population at Risk'!V$5","v":3.2229655115856588E-3},{"$f":"'Population at Risk'!W67/'Population at Risk'!W$5","v":4.0581423113062618E-3},{"$f":"'Population at Risk'!X67/'Population at Risk'!X$5","v":4.1313853801571657E-3},{"$f":"'Population at Risk'!Y67/'Population at Risk'!Y$5","v":3.036005608468206E-3},{"$f":"'Population at Risk'!Z67/'Population at Risk'!Z$5","v":1.200212899783798E-2},{"$f":"'Population at Risk'!AA67/'Population at Risk'!AA$5","v":7.9408365332958777E-3},{"$f":"'Population at Risk'!AB67/'Population at Risk'!AB$5","v":9.9737102069733657E-4},{"$f":"'Population at Risk'!AC67/'Population at Risk'!AC$5","v":8.6121883062315538E-3},{"$f":"'Population at Risk'!AD67/'Population at Risk'!AD$5","v":1.5273526209773729E-3},{"$f":"'Population at Risk'!AE67/'Population at Risk'!AE$5","v":1.36750464164818E-3},{"$f":"'Population at Risk'!AF67/'Population at Risk'!AF$5","v":9.4511114377462575E-3},{"$f":"'Population at Risk'!AG67/'Population at Risk'!AG$5","v":1.513039792754382E-3},{"$f":"'Population at Risk'!AH67/'Population at Risk'!AH$5","v":6.542347750367921E-3},{"$f":"'Population at Risk'!AI67/'Population at Risk'!AI$5","v":3.2354460969977144E-3},{"$f":"'Population at Risk'!AJ67/'Population at Risk'!AJ$5","v":2.2933833818914629E-3},{"$f":"'Population at Risk'!AK67/'Population at Risk'!AK$5","v":1.6698404309631803E-4},{"$f":"'Population at Risk'!AL67/'Population at Risk'!AL$5","v":8.0637346672174249E-3},{"$f":"'Population at Risk'!AM67/'Population at Risk'!AM$5","v":7.9849107291305038E-3},{"$f":"'Population at Risk'!AN67/'Population at Risk'!AN$5","v":0},{"$f":"'Population at Risk'!AO67/'Population at Risk'!AO$5","v":0},{"$f":"'Population at Risk'!AP67/'Population at Risk'!AP$5","v":1.3007766372171647E-3},{"$f":"'Population at Risk'!AQ67/'Population at Risk'!AQ$5","v":7.3687481564875413E-3},{"$f":"'Population at Risk'!AR67/'Population at Risk'!AR$5","v":4.5060279621428403E-3},{"$f":"'Population at Risk'!AS67/'Population at Risk'!AS$5","v":1.0217393837013207E-3},{"$f":"'Population at Risk'!AT67/'Population at Risk'!AT$5","v":0},{"$f":"'Population at Risk'!AU67/'Population at Risk'!AU$5","v":0},{"$f":"'Population at Risk'!AV67/'Population at Risk'!AV$5","v":3.5797250870346332E-3},{"$f":"'Population at Risk'!AW67/'Population at Risk'!AW$5","v":5.1961729100051899E-3},{"$f":"'Population at Risk'!AX67/'Population at Risk'!AX$5","v":2.4767138194718825E-3},{"$f":"'Population at Risk'!AY67/'Population at Risk'!AY$5","v":4.0474352018095017E-3},{"$f":"'Population at Risk'!AZ67/'Population at Risk'!AZ$5","v":4.0625016073768325E-3},{"$f":"'Population at Risk'!BA67/'Population at Risk'!BA$5","v":9.3088058573163584E-3},{"$f":"'Population at Risk'!BB67/'Population at Risk'!BB$5","v":3.5129362821769879E-3},{"$f":"'Population at Risk'!BC67/'Population at Risk'!BC$5","v":0},65]
[null,"Female 40-44",{"$f":"'Population at Risk'!C68/'Population at Risk'!C$5","v":1.9812076294610835E-3},{"$f":"'Population at Risk'!D68/'Population at Risk'!D$5","v":1.1546763356358658E-3},{"$f":"'Population at Risk'!E68/'Population at Risk'!E$5","v":4.3444474061275654E-4},{"$f":"'Population at Risk'!F68/'Population at Risk'!F$5","v":1.331271348210529E-3},{"$f":"'Population at Risk'!G68/'Population at Risk'!G$5","v":1.6662191690007384E-3},{"$f":"'Population at Risk'!H68/'Population at Risk'!H$5","v":6.6002354122494415E-3},{"$f":"'Population at Risk'!I68/'Population at Risk'!I$5","v":1.2399233145958736E-3},{"$f":"'Population at Risk'!J68/'Population at Risk'!J$5","v":3.6383210956014629E-3},{"$f":"'Population at Risk'!K68/'Population at Risk'!K$5","v":4.8396247135026839E-3},{"$f":"'Population at Risk'!L68/'Population at Risk'!L$5","v":1.6012660657919249E-3},{"$f":"'Population at Risk'!M68/'Population at Risk'!M$5","v":1.5717349280514746E-3},{"$f":"'Population at Risk'!N68/'Population at Risk'!N$5","v":7.6461775294206598E-3},{"$f":"'Population at Risk'!O68/'Population at Risk'!O$5","v":5.8533216048751177E-3},{"$f":"'Population at Risk'!P68/'Population at Risk'!P$5","v":1.0112815145934678E-3},{"$f":"'Population at Risk'!Q68/'Population at Risk'!Q$5","v":7.0927697700677323E-4},{"$f":"'Population at Risk'!R68/'Population at Risk'!R$5","v":1.3707349413354026E-3},{"$f":"'Population at Risk'!S68/'Population at Risk'!S$5","v":2.9992463920922073E-3},{"$f":"'Population at Risk'!T68/'Population at Risk'!T$5","v":2.812476903206644E-3},{"$f":"'Population at Risk'!U68/'Population at Risk'!U$5","v":0},{"$f":"'Population at Risk'!V68/'Population at Risk'!V$5","v":3.699403891559191E-3},{"$f":"'Population at Risk'!W68/'Population at Risk'!W$5","v":4.1756100218099251E-3},{"$f":"'Population at Risk'!X68/'Population at Risk'!X$5","v":4.2509731975836958E-3},{"$f":"'Population at Risk'!Y68/'Population at Risk'!Y$5","v":3.2475305893860727E-3},{"$f":"'Population at Risk'!Z68/'Population at Risk'!Z$5","v":1.0746120328311768E-2},{"$f":"'Population at Risk'!AA68/'Population at Risk'!AA$5","v":7.5093003353813538E-3},{"$f":"'Population at Risk'!AB68/'Population at Risk'!AB$5","v":1.0127333705422007E-3},{"$f":"'Population at Risk'!AC68/'Population at Risk'!AC$5","v":7.8852610176975962E-3},{"$f":"'Population at Risk'!AD68/'Population at Risk'!AD$5","v":1.6038295047172985E-3},{"$f":"'Population at Risk'!AE68/'Population at Risk'!AE$5","v":1.3779836044194302E-3},{"$f":"'Population at Risk'!AF68/'Population at Risk'!AF$5","v":9.5082178512673841E-3},{"$f":"'Population at Risk'!AG68/'Population at Risk'!AG$5","v":1.5246339674115038E-3},{"$f":"'Population at Risk'!AH68/'Population at Risk'!AH$5","v":6.6951950947933677E-3},{"$f":"'Population at Risk'!AI68/'Population at Risk'!AI$5","v":2.7625494690865083E-3},{"$f":"'Population at Risk'!AJ68/'Population at Risk'!AJ$5","v":2.3261460016327697E-3},{"$f":"'Population at Risk'!AK68/'Population at Risk'!AK$5","v":1.9481471694570435E-4},{"$f":"'Population at Risk'!AL68/'Population at Risk'!AL$5","v":9.3635149075084762E-3},{"$f":"'Population at Risk'!AM68/'Population at Risk'!AM$5","v":8.2222037671432976E-3},{"$f":"'Population at Risk'!AN68/'Population at Risk'!AN$5","v":0},{"$f":"'Population at Risk'!AO68/'Population at Risk'!AO$5","v":0},{"$f":"'Population at Risk'!AP68/'Population at Risk'!AP$5","v":1.0678673069046318E-3},{"$f":"'Population at Risk'!AQ68/'Population at Risk'!AQ$5","v":6.6565104927297789E-3},{"$f":"'Population at Risk'!AR68/'Population at Risk'!AR$5","v":4.3291974225016967E-3},{"$f":"'Population at Risk'!AS68/'Population at Risk'!AS$5","v":1.2399233145958736E-3},{"$f":"'Population at Risk'!AT68/'Population at Risk'!AT$5","v":0},{"$f":"'Population at Risk'!AU68/'Population at Risk'!AU$5","v":0},{"$f":"'Population at Risk'!AV68/'Population at Risk'!AV$5","v":3.8727274962936957E-3},{"$f":"'Population at Risk'!AW68/'Population at Risk'!AW$5","v":5.263916352096035E-3},{"$f":"'Population at Risk'!AX68/'Population at Risk'!AX$5","v":2.5822556015516504E-3},{"$f":"'Population at Risk'!AY68/'Population at Risk'!AY$5","v":3.7490722733742247E-3},{"$f":"'Population at Risk'!AZ68/'Population at Risk'!AZ$5","v":3.3701280909939038E-3},{"$f":"'Population at Risk'!BA68/'Population at Risk'!BA$5","v":9.2752303627904199E-3},{"$f":"'Population at Risk'!BB68/'Population at Risk'!BB$5","v":3.7317992606864304E-3},{"$f":"'Population at Risk'!BC68/'Population at Risk'!BC$5","v":0},66]
[null,"Female 45-49",{"$f":"'Population at Risk'!C69/'Population at Risk'!C$5","v":1.7474624763850382E-3},{"$f":"'Population at Risk'!D69/'Population at Risk'!D$5","v":1.0800048546052252E-3},{"$f":"'Population at Risk'!E69/'Population at Risk'!E$5","v":4.9747838438234809E-4},{"$f":"'Population at Risk'!F69/'Population at Risk'!F$5","v":1.5577324603892153E-3},{"$f":"'Population at Risk'!G69/'Population at Risk'!G$5","v":1.8791418903430107E-3},{"$f":"'Population at Risk'!H69/'Population at Risk'!H$5","v":7.722006240798527E-3},{"$f":"'Population at Risk'!I69/'Population at Risk'!I$5","v":1.1856531077491612E-3},{"$f":"'Population at Risk'!J69/'Population at Risk'!J$5","v":4.530690891420032E-3},{"$f":"'Population at Risk'!K69/'Population at Risk'!K$5","v":5.5087384985581427E-3},{"$f":"'Population at Risk'!L69/'Population at Risk'!L$5","v":1.9721002823006439E-3},{"$f":"'Population at Risk'!M69/'Population at Risk'!M$5","v":1.9357300835443245E-3},{"$f":"'Population at Risk'!N69/'Population at Risk'!N$5","v":8.5302640071435246E-3},{"$f":"'Population at Risk'!O69/'Population at Risk'!O$5","v":7.1207148946010315E-3},{"$f":"'Population at Risk'!P69/'Population at Risk'!P$5","v":1.1899665069781769E-3},{"$f":"'Population at Risk'!Q69/'Population at Risk'!Q$5","v":1.0048339733492004E-3},{"$f":"'Population at Risk'!R69/'Population at Risk'!R$5","v":1.6465897771326776E-3},{"$f":"'Population at Risk'!S69/'Population at Risk'!S$5","v":3.2971858492293767E-3},{"$f":"'Population at Risk'!T69/'Population at Risk'!T$5","v":2.9423876795491902E-3},{"$f":"'Population at Risk'!U69/'Population at Risk'!U$5","v":0},{"$f":"'Population at Risk'!V69/'Population at Risk'!V$5","v":3.6172327337023239E-3},{"$f":"'Population at Risk'!W69/'Population at Risk'!W$5","v":4.9721073183220587E-3},{"$f":"'Population at Risk'!X69/'Population at Risk'!X$5","v":5.0618460141867508E-3},{"$f":"'Population at Risk'!Y69/'Population at Risk'!Y$5","v":3.6047316154601823E-3},{"$f":"'Population at Risk'!Z69/'Population at Risk'!Z$5","v":1.2379954329370911E-2},{"$f":"'Population at Risk'!AA69/'Population at Risk'!AA$5","v":8.7622751090817765E-3},{"$f":"'Population at Risk'!AB69/'Population at Risk'!AB$5","v":9.4876899523827743E-4},{"$f":"'Population at Risk'!AC69/'Population at Risk'!AC$5","v":9.3222076530866966E-3},{"$f":"'Population at Risk'!AD69/'Population at Risk'!AD$5","v":1.8208019531987505E-3},{"$f":"'Population at Risk'!AE69/'Population at Risk'!AE$5","v":1.5684873582422704E-3},{"$f":"'Population at Risk'!AF69/'Population at Risk'!AF$5","v":1.2545920456639496E-2},{"$f":"'Population at Risk'!AG69/'Population at Risk'!AG$5","v":1.7354118700412466E-3},{"$f":"'Population at Risk'!AH69/'Population at Risk'!AH$5","v":7.5742663311759951E-3},{"$f":"'Population at Risk'!AI69/'Population at Risk'!AI$5","v":2.9022675330698361E-3},{"$f":"'Population at Risk'!AJ69/'Population at Risk'!AJ$5","v":2.5082227664330074E-3},{"$f":"'Population at Risk'!AK69/'Population at Risk'!AK$5","v":1.9121177956953148E-4},{"$f":"'Population at Risk'!AL69/'Population at Risk'!AL$5","v":1.0616173585999724E-2},{"$f":"'Population at Risk'!AM69/'Population at Risk'!AM$5","v":9.2789152462583839E-3},{"$f":"'Population at Risk'!AN69/'Population at Risk'!AN$5","v":0},{"$f":"'Population at Risk'!AO69/'Population at Risk'!AO$5","v":0},{"$f":"'Population at Risk'!AP69/'Population at Risk'!AP$5","v":1.0308650116497679E-3},{"$f":"'Population at Risk'!AQ69/'Population at Risk'!AQ$5","v":8.252489220220283E-3},{"$f":"'Population at Risk'!AR69/'Population at Risk'!AR$5","v":4.9476649794293042E-3},{"$f":"'Population at Risk'!AS69/'Population at Risk'!AS$5","v":1.1856531077491612E-3},{"$f":"'Population at Risk'!AT69/'Population at Risk'!AT$5","v":0},{"$f":"'Population at Risk'!AU69/'Population at Risk'!AU$5","v":0},{"$f":"'Population at Risk'!AV69/'Population at Risk'!AV$5","v":4.5888335114867597E-3},{"$f":"'Population at Risk'!AW69/'Population at Risk'!AW$5","v":5.9792272460868689E-3},{"$f":"'Population at Risk'!AX69/'Population at Risk'!AX$5","v":3.5220557140210446E-3},{"$f":"'Population at Risk'!AY69/'Population at Risk'!AY$5","v":4.3142336732132254E-3},{"$f":"'Population at Risk'!AZ69/'Population at Risk'!AZ$5","v":3.7206383025278375E-3},{"$f":"'Population at Risk'!BA69/'Population at Risk'!BA$5","v":1.1328124317898503E-2},{"$f":"'Population at Risk'!BB69/'Population at Risk'!BB$5","v":3.7829336378619521E-3},{"$f":"'Population at Risk'!BC69/'Population at Risk'!BC$5","v":0},67]
[null,"Female 50-54",{"$f":"'Population at Risk'!C70/'Population at Risk'!C$5","v":1.8445437250730957E-3},{"$f":"'Population at Risk'!D70/'Population at Risk'!D$5","v":1.1100809391638516E-3},{"$f":"'Population at Risk'!E70/'Population at Risk'!E$5","v":4.6955867913640002E-4},{"$f":"'Population at Risk'!F70/'Population at Risk'!F$5","v":1.4296294620019443E-3},{"$f":"'Population at Risk'!G70/'Population at Risk'!G$5","v":1.8319667801251942E-3},{"$f":"'Population at Risk'!H70/'Population at Risk'!H$5","v":7.8647127216346386E-3},{"$f":"'Population at Risk'!I70/'Population at Risk'!I$5","v":1.1490911176423591E-3},{"$f":"'Population at Risk'!J70/'Population at Risk'!J$5","v":4.1754330516651011E-3},{"$f":"'Population at Risk'!K70/'Population at Risk'!K$5","v":5.333672656442948E-3},{"$f":"'Population at Risk'!L70/'Population at Risk'!L$5","v":2.0366887194938964E-3},{"$f":"'Population at Risk'!M70/'Population at Risk'!M$5","v":1.9991273570228504E-3},{"$f":"'Population at Risk'!N70/'Population at Risk'!N$5","v":9.6645249771280008E-3},{"$f":"'Population at Risk'!O70/'Population at Risk'!O$5","v":7.3025799115554787E-3},{"$f":"'Population at Risk'!P70/'Population at Risk'!P$5","v":1.1956061586700165E-3},{"$f":"'Population at Risk'!Q70/'Population at Risk'!Q$5","v":8.2094278868398722E-4},{"$f":"'Population at Risk'!R70/'Population at Risk'!R$5","v":1.7269112296757353E-3},{"$f":"'Population at Risk'!S70/'Population at Risk'!S$5","v":3.1710032236210387E-3},{"$f":"'Population at Risk'!T70/'Population at Risk'!T$5","v":2.6442324659924667E-3},{"$f":"'Population at Risk'!U70/'Population at Risk'!U$5","v":0},{"$f":"'Population at Risk'!V70/'Population at Risk'!V$5","v":3.8510462564131198E-3},{"$f":"'Population at Risk'!W70/'Population at Risk'!W$5","v":4.9829162472749327E-3},{"$f":"'Population at Risk'!X70/'Population at Risk'!X$5","v":5.0728500272610695E-3},{"$f":"'Population at Risk'!Y70/'Population at Risk'!Y$5","v":3.5518106544201117E-3},{"$f":"'Population at Risk'!Z70/'Population at Risk'!Z$5","v":1.2986861320623105E-2},{"$f":"'Population at Risk'!AA70/'Population at Risk'!AA$5","v":8.9690532828719579E-3},{"$f":"'Population at Risk'!AB70/'Population at Risk'!AB$5","v":9.7312614548278082E-4},{"$f":"'Population at Risk'!AC70/'Population at Risk'!AC$5","v":9.60435242524065E-3},{"$f":"'Population at Risk'!AD70/'Population at Risk'!AD$5","v":1.7049912282603142E-3},{"$f":"'Population at Risk'!AE70/'Population at Risk'!AE$5","v":1.4450654021838621E-3},{"$f":"'Population at Risk'!AF70/'Population at Risk'!AF$5","v":1.2359086198163853E-2},{"$f":"'Population at Risk'!AG70/'Population at Risk'!AG$5","v":1.5988548704314435E-3},{"$f":"'Population at Risk'!AH70/'Population at Risk'!AH$5","v":7.6309670148778748E-3},{"$f":"'Population at Risk'!AI70/'Population at Risk'!AI$5","v":2.705400964168673E-3},{"$f":"'Population at Risk'!AJ70/'Population at Risk'!AJ$5","v":2.5484186441002026E-3},{"$f":"'Population at Risk'!AK70/'Population at Risk'!AK$5","v":1.8438278744204822E-4},{"$f":"'Population at Risk'!AL70/'Population at Risk'!AL$5","v":1.1016406331937508E-2},{"$f":"'Population at Risk'!AM70/'Population at Risk'!AM$5","v":9.4139998557671665E-3},{"$f":"'Population at Risk'!AN70/'Population at Risk'!AN$5","v":0},{"$f":"'Population at Risk'!AO70/'Population at Risk'!AO$5","v":0},{"$f":"'Population at Risk'!AP70/'Population at Risk'!AP$5","v":1.1171298661811293E-3},{"$f":"'Population at Risk'!AQ70/'Population at Risk'!AQ$5","v":7.9051548310900745E-3},{"$f":"'Population at Risk'!AR70/'Population at Risk'!AR$5","v":5.011661360391384E-3},{"$f":"'Population at Risk'!AS70/'Population at Risk'!AS$5","v":1.1490911176423591E-3},{"$f":"'Population at Risk'!AT70/'Population at Risk'!AT$5","v":0},{"$f":"'Population at Risk'!AU70/'Population at Risk'!AU$5","v":0},{"$f":"'Population at Risk'!AV70/'Population at Risk'!AV$5","v":4.3512644741073355E-3},{"$f":"'Population at Risk'!AW70/'Population at Risk'!AW$5","v":5.9546011042166599E-3},{"$f":"'Population at Risk'!AX70/'Population at Risk'!AX$5","v":3.0938842350616241E-3},{"$f":"'Population at Risk'!AY70/'Population at Risk'!AY$5","v":4.505977392022702E-3},{"$f":"'Population at Risk'!AZ70/'Population at Risk'!AZ$5","v":4.0842075247839822E-3},{"$f":"'Population at Risk'!BA70/'Population at Risk'!BA$5","v":1.1682385660203694E-2},{"$f":"'Population at Risk'!BB70/'Population at Risk'!BB$5","v":3.7792927007706508E-3},{"$f":"'Population at Risk'!BC70/'Population at Risk'!BC$5","v":0},68]
[null,"Female 55-59",{"$f":"'Population at Risk'!C71/'Population at Risk'!C$5","v":1.9612093851985946E-3},{"$f":"'Population at Risk'!D71/'Population at Risk'!D$5","v":1.1792392890543177E-3},{"$f":"'Population at Risk'!E71/'Population at Risk'!E$5","v":4.9730239650851843E-4},{"$f":"'Population at Risk'!F71/'Population at Risk'!F$5","v":1.6417155743431752E-3},{"$f":"'Population at Risk'!G71/'Population at Risk'!G$5","v":2.1605873055269361E-3},{"$f":"'Population at Risk'!H71/'Population at Risk'!H$5","v":8.4952039442561505E-3},{"$f":"'Population at Risk'!I71/'Population at Risk'!I$5","v":1.2550807889867169E-3},{"$f":"'Population at Risk'!J71/'Population at Risk'!J$5","v":4.7472784388812757E-3},{"$f":"'Population at Risk'!K71/'Population at Risk'!K$5","v":6.0260046854148435E-3},{"$f":"'Population at Risk'!L71/'Population at Risk'!L$5","v":2.0375112977730984E-3},{"$f":"'Population at Risk'!M71/'Population at Risk'!M$5","v":1.9999347650108781E-3},{"$f":"'Population at Risk'!N71/'Population at Risk'!N$5","v":1.0651983719138381E-2},{"$f":"'Population at Risk'!O71/'Population at Risk'!O$5","v":7.2863343819062343E-3},{"$f":"'Population at Risk'!P71/'Population at Risk'!P$5","v":1.4733075939643979E-3},{"$f":"'Population at Risk'!Q71/'Population at Risk'!Q$5","v":1.1087374840488941E-3},{"$f":"'Population at Risk'!R71/'Population at Risk'!R$5","v":1.6083856990797131E-3},{"$f":"'Population at Risk'!S71/'Population at Risk'!S$5","v":3.6233538820790875E-3},{"$f":"'Population at Risk'!T71/'Population at Risk'!T$5","v":3.2116995935442694E-3},{"$f":"'Population at Risk'!U71/'Population at Risk'!U$5","v":0},{"$f":"'Population at Risk'!V71/'Population at Risk'!V$5","v":4.327464387897063E-3},{"$f":"'Population at Risk'!W71/'Population at Risk'!W$5","v":5.4299164662045428E-3},{"$f":"'Population at Risk'!X71/'Population at Risk'!X$5","v":5.5279178952034342E-3},{"$f":"'Population at Risk'!Y71/'Population at Risk'!Y$5","v":4.0156050358269831E-3},{"$f":"'Population at Risk'!Z71/'Population at Risk'!Z$5","v":1.3857547115975061E-2},{"$f":"'Population at Risk'!AA71/'Population at Risk'!AA$5","v":9.8196491119603279E-3},{"$f":"'Population at Risk'!AB71/'Population at Risk'!AB$5","v":1.0333578940716795E-3},{"$f":"'Population at Risk'!AC71/'Population at Risk'!AC$5","v":1.0410326360000608E-2},{"$f":"'Population at Risk'!AD71/'Population at Risk'!AD$5","v":1.9530112395246711E-3},{"$f":"'Population at Risk'!AE71/'Population at Risk'!AE$5","v":1.6349563908607571E-3},{"$f":"'Population at Risk'!AF71/'Population at Risk'!AF$5","v":1.4539020586910843E-2},{"$f":"'Population at Risk'!AG71/'Population at Risk'!AG$5","v":1.8089547950703329E-3},{"$f":"'Population at Risk'!AH71/'Population at Risk'!AH$5","v":8.5605865332634805E-3},{"$f":"'Population at Risk'!AI71/'Population at Risk'!AI$5","v":3.2106175904526584E-3},{"$f":"'Population at Risk'!AJ71/'Population at Risk'!AJ$5","v":3.0709906149189192E-3},{"$f":"'Population at Risk'!AK71/'Population at Risk'!AK$5","v":1.9354846528219001E-4},{"$f":"'Population at Risk'!AL71/'Population at Risk'!AL$5","v":1.208942120789204E-2},{"$f":"'Population at Risk'!AM71/'Population at Risk'!AM$5","v":1.0248799859702352E-2},{"$f":"'Population at Risk'!AN71/'Population at Risk'!AN$5","v":0},{"$f":"'Population at Risk'!AO71/'Population at Risk'!AO$5","v":0},{"$f":"'Population at Risk'!AP71/'Population at Risk'!AP$5","v":1.2384118630510243E-3},{"$f":"'Population at Risk'!AQ71/'Population at Risk'!AQ$5","v":8.9556854312226805E-3},{"$f":"'Population at Risk'!AR71/'Population at Risk'!AR$5","v":5.5261605700597238E-3},{"$f":"'Population at Risk'!AS71/'Population at Risk'!AS$5","v":1.2550807889867169E-3},{"$f":"'Population at Risk'!AT71/'Population at Risk'!AT$5","v":0},{"$f":"'Population at Risk'!AU71/'Population at Risk'!AU$5","v":0},{"$f":"'Population at Risk'!AV71/'Population at Risk'!AV$5","v":5.2694783795048496E-3},{"$f":"'Population at Risk'!AW71/'Population at Risk'!AW$5","v":7.0099293495260173E-3},{"$f":"'Population at Risk'!AX71/'Population at Risk'!AX$5","v":3.5401744228835659E-3},{"$f":"'Population at Risk'!AY71/'Population at Risk'!AY$5","v":4.9489859358425627E-3},{"$f":"'Population at Risk'!AZ71/'Population at Risk'!AZ$5","v":4.5262059513822969E-3},{"$f":"'Population at Risk'!BA71/'Population at Risk'!BA$5","v":1.2517674917084338E-2},{"$f":"'Population at Risk'!BB71/'Population at Risk'!BB$5","v":4.1770352479436959E-3},{"$f":"'Population at Risk'!BC71/'Population at Risk'!BC$5","v":0},69]
[null,"Female 60-64",{"$f":"'Population at Risk'!C72/'Population at Risk'!C$5","v":1.595068631215123E-3},{"$f":"'Population at Risk'!D72/'Population at Risk'!D$5","v":9.5181456902241354E-4},{"$f":"'Population at Risk'!E72/'Population at Risk'!E$5","v":3.909610035444327E-4},{"$f":"'Population at Risk'!F72/'Population at Risk'!F$5","v":1.3196867501450908E-3},{"$f":"'Population at Risk'!G72/'Population at Risk'!G$5","v":1.9377464623559965E-3},{"$f":"'Population at Risk'!H72/'Population at Risk'!H$5","v":7.6919262904419977E-3},{"$f":"'Population at Risk'!I72/'Population at Risk'!I$5","v":1.1971539833411759E-3},{"$f":"'Population at Risk'!J72/'Population at Risk'!J$5","v":3.6329472125091436E-3},{"$f":"'Population at Risk'!K72/'Population at Risk'!K$5","v":4.8610729920530241E-3},{"$f":"'Population at Risk'!L72/'Population at Risk'!L$5","v":1.830576556593018E-3},{"$f":"'Population at Risk'!M72/'Population at Risk'!M$5","v":1.7968163904394606E-3},{"$f":"'Population at Risk'!N72/'Population at Risk'!N$5","v":8.4883992489239359E-3},{"$f":"'Population at Risk'!O72/'Population at Risk'!O$5","v":6.6140148845221418E-3},{"$f":"'Population at Risk'!P72/'Population at Risk'!P$5","v":1.1327789519631928E-3},{"$f":"'Population at Risk'!Q72/'Population at Risk'!Q$5","v":7.8501851060396163E-4},{"$f":"'Population at Risk'!R72/'Population at Risk'!R$5","v":1.4186786679062085E-3},{"$f":"'Population at Risk'!S72/'Population at Risk'!S$5","v":2.9340706789279026E-3},{"$f":"'Population at Risk'!T72/'Population at Risk'!T$5","v":2.4021582514972412E-3},{"$f":"'Population at Risk'!U72/'Population at Risk'!U$5","v":0},{"$f":"'Population at Risk'!V72/'Population at Risk'!V$5","v":3.6664809239493391E-3},{"$f":"'Population at Risk'!W72/'Population at Risk'!W$5","v":4.630746422118838E-3},{"$f":"'Population at Risk'!X72/'Population at Risk'!X$5","v":4.7143240921481457E-3},{"$f":"'Population at Risk'!Y72/'Population at Risk'!Y$5","v":3.2305429644879169E-3},{"$f":"'Population at Risk'!Z72/'Population at Risk'!Z$5","v":1.0665943822161895E-2},{"$f":"'Population at Risk'!AA72/'Population at Risk'!AA$5","v":7.9236347507019769E-3},{"$f":"'Population at Risk'!AB72/'Population at Risk'!AB$5","v":8.6041694637780232E-4},{"$f":"'Population at Risk'!AC72/'Population at Risk'!AC$5","v":8.1478243269078338E-3},{"$f":"'Population at Risk'!AD72/'Population at Risk'!AD$5","v":1.7997302491424912E-3},{"$f":"'Population at Risk'!AE72/'Population at Risk'!AE$5","v":1.5240581860543104E-3},{"$f":"'Population at Risk'!AF72/'Population at Risk'!AF$5","v":1.1994979771623986E-2},{"$f":"'Population at Risk'!AG72/'Population at Risk'!AG$5","v":1.6862543729240891E-3},{"$f":"'Population at Risk'!AH72/'Population at Risk'!AH$5","v":7.4033571005233901E-3},{"$f":"'Population at Risk'!AI72/'Population at Risk'!AI$5","v":2.475375898712846E-3},{"$f":"'Population at Risk'!AJ72/'Population at Risk'!AJ$5","v":2.2982897505199654E-3},{"$f":"'Population at Risk'!AK72/'Population at Risk'!AK$5","v":3.1136057458439265E-4},{"$f":"'Population at Risk'!AL72/'Population at Risk'!AL$5","v":1.0862600799747973E-2},{"$f":"'Population at Risk'!AM72/'Population at Risk'!AM$5","v":8.7850955952251189E-3},{"$f":"'Population at Risk'!AN72/'Population at Risk'!AN$5","v":0},{"$f":"'Population at Risk'!AO72/'Population at Risk'!AO$5","v":0},{"$f":"'Population at Risk'!AP72/'Population at Risk'!AP$5","v":1.1267953432052239E-3},{"$f":"'Population at Risk'!AQ72/'Population at Risk'!AQ$5","v":6.8210574458011817E-3},{"$f":"'Population at Risk'!AR72/'Population at Risk'!AR$5","v":4.5437458503879945E-3},{"$f":"'Population at Risk'!AS72/'Population at Risk'!AS$5","v":1.1971539833411759E-3},{"$f":"'Population at Risk'!AT72/'Population at Risk'!AT$5","v":0},{"$f":"'Population at Risk'!AU72/'Population at Risk'!AU$5","v":0},{"$f":"'Population at Risk'!AV72/'Population at Risk'!AV$5","v":4.8534669284913089E-3},{"$f":"'Population at Risk'!AW72/'Population at Risk'!AW$5","v":6.1450679362728073E-3},{"$f":"'Population at Risk'!AX72/'Population at Risk'!AX$5","v":2.5615204357883493E-3},{"$f":"'Population at Risk'!AY72/'Population at Risk'!AY$5","v":4.1209329504834878E-3},{"$f":"'Population at Risk'!AZ72/'Population at Risk'!AZ$5","v":3.6657662446209073E-3},{"$f":"'Population at Risk'!BA72/'Population at Risk'!BA$5","v":1.0690277118969835E-2},{"$f":"'Population at Risk'!BB72/'Population at Risk'!BB$5","v":3.5040435323781165E-3},{"$f":"'Population at Risk'!BC72/'Population at Risk'!BC$5","v":0},70]
[null,"Female 65-69",{"$f":"'Population at Risk'!C73/'Population at Risk'!C$5","v":7.7824885656783624E-4},{"$f":"'Population at Risk'!D73/'Population at Risk'!D$5","v":4.6536619703038988E-4},{"$f":"'Population at Risk'!E73/'Population at Risk'!E$5","v":1.9254884593405847E-4},{"$f":"'Population at Risk'!F73/'Population at Risk'!F$5","v":6.2129492652675093E-4},{"$f":"'Population at Risk'!G73/'Population at Risk'!G$5","v":1.1470467152415642E-3},{"$f":"'Population at Risk'!H73/'Population at Risk'!H$5","v":3.8702497710682818E-3},{"$f":"'Population at Risk'!I73/'Population at Risk'!I$5","v":6.5362101966264668E-4},{"$f":"'Population at Risk'!J73/'Population at Risk'!J$5","v":2.0461900171079069E-3},{"$f":"'Population at Risk'!K73/'Population at Risk'!K$5","v":2.8150752750237106E-3},{"$f":"'Population at Risk'!L73/'Population at Risk'!L$5","v":8.3198729748784129E-4},{"$f":"'Population at Risk'!M73/'Population at Risk'!M$5","v":8.1664348173772884E-4},{"$f":"'Population at Risk'!N73/'Population at Risk'!N$5","v":4.4563235034801967E-3},{"$f":"'Population at Risk'!O73/'Population at Risk'!O$5","v":3.3924568441917489E-3},{"$f":"'Population at Risk'!P73/'Population at Risk'!P$5","v":5.3753473304000315E-4},{"$f":"'Population at Risk'!Q73/'Population at Risk'!Q$5","v":4.3435013955324322E-4},{"$f":"'Population at Risk'!R73/'Population at Risk'!R$5","v":7.5081566495630709E-4},{"$f":"'Population at Risk'!S73/'Population at Risk'!S$5","v":1.5394511099833706E-3},{"$f":"'Population at Risk'!T73/'Population at Risk'!T$5","v":1.2230018864854066E-3},{"$f":"'Population at Risk'!U73/'Population at Risk'!U$5","v":0},{"$f":"'Population at Risk'!V73/'Population at Risk'!V$5","v":1.9440799073960177E-3},{"$f":"'Population at Risk'!W73/'Population at Risk'!W$5","v":2.4506077918737025E-3},{"$f":"'Population at Risk'!X73/'Population at Risk'!X$5","v":2.4948373978011971E-3},{"$f":"'Population at Risk'!Y73/'Population at Risk'!Y$5","v":1.765823946938964E-3},{"$f":"'Population at Risk'!Z73/'Population at Risk'!Z$5","v":5.0357363301200761E-3},{"$f":"'Population at Risk'!AA73/'Population at Risk'!AA$5","v":3.8754124093025848E-3},{"$f":"'Population at Risk'!AB73/'Population at Risk'!AB$5","v":4.1888932200654142E-4},{"$f":"'Population at Risk'!AC73/'Population at Risk'!AC$5","v":3.9353575922795184E-3},{"$f":"'Population at Risk'!AD73/'Population at Risk'!AD$5","v":8.7605724206798183E-4},{"$f":"'Population at Risk'!AE73/'Population at Risk'!AE$5","v":6.7521662254017422E-4},{"$f":"'Population at Risk'!AF73/'Population at Risk'!AF$5","v":6.3296503730212623E-3},{"$f":"'Population at Risk'!AG73/'Population at Risk'!AG$5","v":7.4707579595575154E-4},{"$f":"'Population at Risk'!AH73/'Population at Risk'!AH$5","v":3.7185464163807373E-3},{"$f":"'Population at Risk'!AI73/'Population at Risk'!AI$5","v":1.2862838886744186E-3},{"$f":"'Population at Risk'!AJ73/'Population at Risk'!AJ$5","v":1.3604698861387772E-3},{"$f":"'Population at Risk'!AK73/'Population at Risk'!AK$5","v":1.4169140433946935E-4},{"$f":"'Population at Risk'!AL73/'Population at Risk'!AL$5","v":5.5988694007218917E-3},{"$f":"'Population at Risk'!AM73/'Population at Risk'!AM$5","v":4.3824018735616112E-3},{"$f":"'Population at Risk'!AN73/'Population at Risk'!AN$5","v":0},{"$f":"'Population at Risk'!AO73/'Population at Risk'!AO$5","v":0},{"$f":"'Population at Risk'!AP73/'Population at Risk'!AP$5","v":5.0899345858412251E-4},{"$f":"'Population at Risk'!AQ73/'Population at Risk'!AQ$5","v":3.4579476030670835E-3},{"$f":"'Population at Risk'!AR73/'Population at Risk'!AR$5","v":2.2721401706012438E-3},{"$f":"'Population at Risk'!AS73/'Population at Risk'!AS$5","v":6.5362101966264668E-4},{"$f":"'Population at Risk'!AT73/'Population at Risk'!AT$5","v":0},{"$f":"'Population at Risk'!AU73/'Population at Risk'!AU$5","v":0},{"$f":"'Population at Risk'!AV73/'Population at Risk'!AV$5","v":2.1889554130501655E-3},{"$f":"'Population at Risk'!AW73/'Population at Risk'!AW$5","v":3.1184266605129018E-3},{"$f":"'Population at Risk'!AX73/'Population at Risk'!AX$5","v":1.3970680279171864E-3},{"$f":"'Population at Risk'!AY73/'Population at Risk'!AY$5","v":2.1440391248920281E-3},{"$f":"'Population at Risk'!AZ73/'Population at Risk'!AZ$5","v":1.8682547713064427E-3},{"$f":"'Population at Risk'!BA73/'Population at Risk'!BA$5","v":5.1228404467280773E-3},{"$f":"'Population at Risk'!BB73/'Population at Risk'!BB$5","v":1.8036133786285503E-3},{"$f":"'Population at Risk'!BC73/'Population at Risk'!BC$5","v":0},71]
[null,"Female 70-74",{"$f":"'Population at Risk'!C74/'Population at Risk'!C$5","v":5.4744466136021812E-4},{"$f":"'Population at Risk'!D74/'Population at Risk'!D$5","v":3.2531313201933923E-4},{"$f":"'Population at Risk'!E74/'Population at Risk'!E$5","v":1.3165733055320235E-4},{"$f":"'Population at Risk'!F74/'Population at Risk'!F$5","v":5.3491167471019733E-4},{"$f":"'Population at Risk'!G74/'Population at Risk'!G$5","v":8.4626557657822062E-4},{"$f":"'Population at Risk'!H74/'Population at Risk'!H$5","v":3.029487128947191E-3},{"$f":"'Population at Risk'!I74/'Population at Risk'!I$5","v":5.0460897372919366E-4},{"$f":"'Population at Risk'!J74/'Population at Risk'!J$5","v":1.5795151009254018E-3},{"$f":"'Population at Risk'!K74/'Population at Risk'!K$5","v":2.1113064562677834E-3},{"$f":"'Population at Risk'!L74/'Population at Risk'!L$5","v":8.6828204536482762E-4},{"$f":"'Population at Risk'!M74/'Population at Risk'!M$5","v":8.5226886852494521E-4},{"$f":"'Population at Risk'!N74/'Population at Risk'!N$5","v":3.2171498992720629E-3},{"$f":"'Population at Risk'!O74/'Population at Risk'!O$5","v":2.6214439250572606E-3},{"$f":"'Population at Risk'!P74/'Population at Risk'!P$5","v":3.7298328415020626E-4},{"$f":"'Population at Risk'!Q74/'Population at Risk'!Q$5","v":3.7047511903070748E-4},{"$f":"'Population at Risk'!R74/'Population at Risk'!R$5","v":5.3815689280105252E-4},{"$f":"'Population at Risk'!S74/'Population at Risk'!S$5","v":1.1867973737318348E-3},{"$f":"'Population at Risk'!T74/'Population at Risk'!T$5","v":8.8960485513941826E-4},{"$f":"'Population at Risk'!U74/'Population at Risk'!U$5","v":0},{"$f":"'Population at Risk'!V74/'Population at Risk'!V$5","v":1.4060394437283123E-3},{"$f":"'Population at Risk'!W74/'Population at Risk'!W$5","v":1.9424979780200036E-3},{"$f":"'Population at Risk'!X74/'Population at Risk'!X$5","v":1.9775570031188706E-3},{"$f":"'Population at Risk'!Y74/'Population at Risk'!Y$5","v":1.3210685881060559E-3},{"$f":"'Population at Risk'!Z74/'Population at Risk'!Z$5","v":4.1472578201049957E-3},{"$f":"'Population at Risk'!AA74/'Population at Risk'!AA$5","v":3.0865336252355038E-3},{"$f":"'Population at Risk'!AB74/'Population at Risk'!AB$5","v":2.865293207980113E-4},{"$f":"'Population at Risk'!AC74/'Population at Risk'!AC$5","v":3.1411869056028308E-3},{"$f":"'Population at Risk'!AD74/'Population at Risk'!AD$5","v":6.7164388558545271E-4},{"$f":"'Population at Risk'!AE74/'Population at Risk'!AE$5","v":5.2850288727218577E-4},{"$f":"'Population at Risk'!AF74/'Population at Risk'!AF$5","v":4.7729803769767992E-3},{"$f":"'Population at Risk'!AG74/'Population at Risk'!AG$5","v":5.8474821559993391E-4},{"$f":"'Population at Risk'!AH74/'Population at Risk'!AH$5","v":2.9480298983829991E-3},{"$f":"'Population at Risk'!AI74/'Population at Risk'!AI$5","v":9.6913144894782523E-4},{"$f":"'Population at Risk'!AJ74/'Population at Risk'!AJ$5","v":1.0320806032776929E-3},{"$f":"'Population at Risk'!AK74/'Population at Risk'!AK$5","v":6.1989989398517846E-5},{"$f":"'Population at Risk'!AL74/'Population at Risk'!AL$5","v":4.3629660162056456E-3},{"$f":"'Population at Risk'!AM74/'Population at Risk'!AM$5","v":3.5926030521030582E-3},{"$f":"'Population at Risk'!AN74/'Population at Risk'!AN$5","v":0},{"$f":"'Population at Risk'!AO74/'Population at Risk'!AO$5","v":0},{"$f":"'Population at Risk'!AP74/'Population at Risk'!AP$5","v":4.2229677058353021E-4},{"$f":"'Population at Risk'!AQ74/'Population at Risk'!AQ$5","v":2.7367103865988461E-3},{"$f":"'Population at Risk'!AR74/'Population at Risk'!AR$5","v":1.7830432157884409E-3},{"$f":"'Population at Risk'!AS74/'Population at Risk'!AS$5","v":5.0460897372919366E-4},{"$f":"'Population at Risk'!AT74/'Population at Risk'!AT$5","v":0},{"$f":"'Population at Risk'!AU74/'Population at Risk'!AU$5","v":0},{"$f":"'Population at Risk'!AV74/'Population at Risk'!AV$5","v":1.783593299522357E-3},{"$f":"'Population at Risk'!AW74/'Population at Risk'!AW$5","v":2.3472028627516462E-3},{"$f":"'Population at Risk'!AX74/'Population at Risk'!AX$5","v":1.114967753049293E-3},{"$f":"'Population at Risk'!AY74/'Population at Risk'!AY$5","v":1.6574767404608113E-3},{"$f":"'Population at Risk'!AZ74/'Population at Risk'!AZ$5","v":1.3989879478532915E-3},{"$f":"'Population at Risk'!BA74/'Population at Risk'!BA$5","v":3.6484880345310495E-3},{"$f":"'Population at Risk'!BB74/'Population at Risk'!BB$5","v":1.4235325488390258E-3},{"$f":"'Population at Risk'!BC74/'Population at Risk'!BC$5","v":0},72]
[null,"Female 75-79",{"$f":"'Population at Risk'!C75/'Population at Risk'!C$5","v":1.5201516264925141E-4},{"$f":"'Population at Risk'!D75/'Population at Risk'!D$5","v":8.6340445805269385E-5},{"$f":"'Population at Risk'!E75/'Population at Risk'!E$5","v":2.9145474135927253E-5},{"$f":"'Population at Risk'!F75/'Population at Risk'!F$5","v":1.8087835323795073E-4},{"$f":"'Population at Risk'!G75/'Population at Risk'!G$5","v":2.4075947425518054E-4},{"$f":"'Population at Risk'!H75/'Population at Risk'!H$5","v":8.5718372922786437E-4},{"$f":"'Population at Risk'!I75/'Population at Risk'!I$5","v":1.1551126691042746E-4},{"$f":"'Population at Risk'!J75/'Population at Risk'!J$5","v":4.0421216763948659E-4},{"$f":"'Population at Risk'!K75/'Population at Risk'!K$5","v":5.2862656349734788E-4},{"$f":"'Population at Risk'!L75/'Population at Risk'!L$5","v":1.7305515573046219E-4},{"$f":"'Population at Risk'!M75/'Population at Risk'!M$5","v":1.6986360889777269E-4},{"$f":"'Population at Risk'!N75/'Population at Risk'!N$5","v":9.2403847626275478E-4},{"$f":"'Population at Risk'!O75/'Population at Risk'!O$5","v":7.3280465571933949E-4},{"$f":"'Population at Risk'!P75/'Population at Risk'!P$5","v":1.0313592187303075E-4},{"$f":"'Population at Risk'!Q75/'Population at Risk'!Q$5","v":1.0474260329469992E-4},{"$f":"'Population at Risk'!R75/'Population at Risk'!R$5","v":1.5514437231591295E-4},{"$f":"'Population at Risk'!S75/'Population at Risk'!S$5","v":3.2024055126290545E-4},{"$f":"'Population at Risk'!T75/'Population at Risk'!T$5","v":2.5844295495512599E-4},{"$f":"'Population at Risk'!U75/'Population at Risk'!U$5","v":0},{"$f":"'Population at Risk'!V75/'Population at Risk'!V$5","v":4.9524760322676659E-4},{"$f":"'Population at Risk'!W75/'Population at Risk'!W$5","v":5.2290558966224757E-4},{"$f":"'Population at Risk'!X75/'Population at Risk'!X$5","v":5.3234321091063272E-4},{"$f":"'Population at Risk'!Y75/'Population at Risk'!Y$5","v":3.9820015320541865E-4},{"$f":"'Population at Risk'!Z75/'Population at Risk'!Z$5","v":1.2893090719910028E-3},{"$f":"'Population at Risk'!AA75/'Population at Risk'!AA$5","v":9.1938850044154426E-4},{"$f":"'Population at Risk'!AB75/'Population at Risk'!AB$5","v":7.5718983807506363E-5},{"$f":"'Population at Risk'!AC75/'Population at Risk'!AC$5","v":9.7338796008705395E-4},{"$f":"'Population at Risk'!AD75/'Population at Risk'!AD$5","v":1.8652521507243354E-4},{"$f":"'Population at Risk'!AE75/'Population at Risk'!AE$5","v":1.4489596203281214E-4},{"$f":"'Population at Risk'!AF75/'Population at Risk'!AF$5","v":1.4918517741866928E-3},{"$f":"'Population at Risk'!AG75/'Population at Risk'!AG$5","v":1.6031635263836667E-4},{"$f":"'Population at Risk'!AH75/'Population at Risk'!AH$5","v":8.0406647248812272E-4},{"$f":"'Population at Risk'!AI75/'Population at Risk'!AI$5","v":2.6502550835142265E-4},{"$f":"'Population at Risk'!AJ75/'Population at Risk'!AJ$5","v":2.2223583277646437E-4},{"$f":"'Population at Risk'!AK75/'Population at Risk'!AK$5","v":1.4521645583818111E-5},{"$f":"'Population at Risk'!AL75/'Population at Risk'!AL$5","v":1.2415171085185433E-3},{"$f":"'Population at Risk'!AM75/'Population at Risk'!AM$5","v":9.7418504684744045E-4},{"$f":"'Population at Risk'!AN75/'Population at Risk'!AN$5","v":0},{"$f":"'Population at Risk'!AO75/'Population at Risk'!AO$5","v":0},{"$f":"'Population at Risk'!AP75/'Population at Risk'!AP$5","v":8.7133814143847696E-5},{"$f":"'Population at Risk'!AQ75/'Population at Risk'!AQ$5","v":8.956646280847047E-4},{"$f":"'Population at Risk'!AR75/'Population at Risk'!AR$5","v":5.1369250239586596E-4},{"$f":"'Population at Risk'!AS75/'Population at Risk'!AS$5","v":1.1551126691042746E-4},{"$f":"'Population at Risk'!AT75/'Population at Risk'!AT$5","v":0},{"$f":"'Population at Risk'!AU75/'Population at Risk'!AU$5","v":0},{"$f":"'Population at Risk'!AV75/'Population at Risk'!AV$5","v":5.078422454233869E-4},{"$f":"'Population at Risk'!AW75/'Population at Risk'!AW$5","v":6.4620566038529653E-4},{"$f":"'Population at Risk'!AX75/'Population at Risk'!AX$5","v":2.9223911432046864E-4},{"$f":"'Population at Risk'!AY75/'Population at Risk'!AY$5","v":4.5685103167460286E-4},{"$f":"'Population at Risk'!AZ75/'Population at Risk'!AZ$5","v":3.9739760373901653E-4},{"$f":"'Population at Risk'!BA75/'Population at Risk'!BA$5","v":1.0336334158597151E-3},{"$f":"'Population at Risk'!BB75/'Population at Risk'!BB$5","v":3.7085822014368654E-4},{"$f":"'Population at Risk'!BC75/'Population at Risk'!BC$5","v":0},73]
[null,"Female 80-84",{"$f":"'Population at Risk'!C76/'Population at Risk'!C$5","v":1.1823401539386222E-4},{"$f":"'Population at Risk'!D76/'Population at Risk'!D$5","v":6.9479348644644394E-5},{"$f":"'Population at Risk'!E76/'Population at Risk'!E$5","v":2.6986550125858569E-5},{"$f":"'Population at Risk'!F76/'Population at Risk'!F$5","v":1.0569397749446518E-4},{"$f":"'Population at Risk'!G76/'Population at Risk'!G$5","v":1.9561707283233417E-4},{"$f":"'Population at Risk'!H76/'Population at Risk'!H$5","v":6.26403494435747E-4},{"$f":"'Population at Risk'!I76/'Population at Risk'!I$5","v":9.1076191217837036E-5},{"$f":"'Population at Risk'!J76/'Population at Risk'!J$5","v":3.0512132071815618E-4},{"$f":"'Population at Risk'!K76/'Population at Risk'!K$5","v":3.4745407929403143E-4},{"$f":"'Population at Risk'!L76/'Population at Risk'!L$5","v":1.3826099743544863E-4},{"$f":"'Population at Risk'!M76/'Population at Risk'!M$5","v":1.3571113726753268E-4},{"$f":"'Population at Risk'!N76/'Population at Risk'!N$5","v":7.3901050962134492E-4},{"$f":"'Population at Risk'!O76/'Population at Risk'!O$5","v":5.5530528714861985E-4},{"$f":"'Population at Risk'!P76/'Population at Risk'!P$5","v":6.7158274708020013E-5},{"$f":"'Population at Risk'!Q76/'Population at Risk'!Q$5","v":5.8655857845031955E-5},{"$f":"'Population at Risk'!R76/'Population at Risk'!R$5","v":1.3379422933665889E-4},{"$f":"'Population at Risk'!S76/'Population at Risk'!S$5","v":2.4303327871123871E-4},{"$f":"'Population at Risk'!T76/'Population at Risk'!T$5","v":2.0471261088961124E-4},{"$f":"'Population at Risk'!U76/'Population at Risk'!U$5","v":0},{"$f":"'Population at Risk'!V76/'Population at Risk'!V$5","v":3.5388755899865411E-4},{"$f":"'Population at Risk'!W76/'Population at Risk'!W$5","v":3.777178838146345E-4},{"$f":"'Population at Risk'!X76/'Population at Risk'!X$5","v":3.8453509593984166E-4},{"$f":"'Population at Risk'!Y76/'Population at Risk'!Y$5","v":2.9172489484831756E-4},{"$f":"'Population at Risk'!Z76/'Population at Risk'!Z$5","v":1.0206084912006981E-3},{"$f":"'Population at Risk'!AA76/'Population at Risk'!AA$5","v":7.206270827235157E-4},{"$f":"'Population at Risk'!AB76/'Population at Risk'!AB$5","v":6.1413768625632193E-5},{"$f":"'Population at Risk'!AC76/'Population at Risk'!AC$5","v":7.7164885993495972E-4},{"$f":"'Population at Risk'!AD76/'Population at Risk'!AD$5","v":1.4411239110730806E-4},{"$f":"'Population at Risk'!AE76/'Population at Risk'!AE$5","v":1.0880866582841364E-4},{"$f":"'Population at Risk'!AF76/'Population at Risk'!AF$5","v":1.1879192556107088E-3},{"$f":"'Population at Risk'!AG76/'Population at Risk'!AG$5","v":1.2038850632088668E-4},{"$f":"'Population at Risk'!AH76/'Population at Risk'!AH$5","v":6.1316034343752198E-4},{"$f":"'Population at Risk'!AI76/'Population at Risk'!AI$5","v":2.0867136016005085E-4},{"$f":"'Population at Risk'!AJ76/'Population at Risk'!AJ$5","v":2.3249287121230116E-4},{"$f":"'Population at Risk'!AK76/'Population at Risk'!AK$5","v":1.4521645583818111E-5},{"$f":"'Population at Risk'!AL76/'Population at Risk'!AL$5","v":8.7342377557302834E-4},{"$f":"'Population at Risk'!AM76/'Population at Risk'!AM$5","v":7.3348655535386846E-4},{"$f":"'Population at Risk'!AN76/'Population at Risk'!AN$5","v":0},{"$f":"'Population at Risk'!AO76/'Population at Risk'!AO$5","v":0},{"$f":"'Population at Risk'!AP76/'Population at Risk'!AP$5","v":9.9974586754519987E-5},{"$f":"'Population at Risk'!AQ76/'Population at Risk'!AQ$5","v":7.3579129676687113E-4},{"$f":"'Population at Risk'!AR76/'Population at Risk'!AR$5","v":3.9660990779607667E-4},{"$f":"'Population at Risk'!AS76/'Population at Risk'!AS$5","v":9.1076191217837036E-5},{"$f":"'Population at Risk'!AT76/'Population at Risk'!AT$5","v":0},{"$f":"'Population at Risk'!AU76/'Population at Risk'!AU$5","v":0},{"$f":"'Population at Risk'!AV76/'Population at Risk'!AV$5","v":3.8686411889582613E-4},{"$f":"'Population at Risk'!AW76/'Population at Risk'!AW$5","v":5.0272077307121936E-4},{"$f":"'Population at Risk'!AX76/'Population at Risk'!AX$5","v":2.5112004295879469E-4},{"$f":"'Population at Risk'!AY76/'Population at Risk'!AY$5","v":3.4527929898977081E-4},{"$f":"'Population at Risk'!AZ76/'Population at Risk'!AZ$5","v":3.1683427134465231E-4},{"$f":"'Population at Risk'!BA76/'Population at Risk'!BA$5","v":7.8486062763585157E-4},{"$f":"'Population at Risk'!BB76/'Population at Risk'!BB$5","v":2.7562740369760423E-4},{"$f":"'Population at Risk'!BC76/'Population at Risk'!BC$5","v":0},74]
[null,"Female 85-89",{"$f":"'Population at Risk'!C77/'Population at Risk'!C$5","v":9.0708636148730264E-5},{"$f":"'Population at Risk'!D77/'Population at Risk'!D$5","v":5.2327542912284488E-5},{"$f":"'Population at Risk'!E77/'Population at Risk'!E$5","v":1.8890585088100999E-5},{"$f":"'Population at Risk'!F77/'Population at Risk'!F$5","v":6.5377718037813514E-5},{"$f":"'Population at Risk'!G77/'Population at Risk'!G$5","v":1.4378690823573282E-4},{"$f":"'Population at Risk'!H77/'Population at Risk'!H$5","v":3.847586057329618E-4},{"$f":"'Population at Risk'!I77/'Population at Risk'!I$5","v":6.5530430266492497E-5},{"$f":"'Population at Risk'!J77/'Population at Risk'!J$5","v":1.6188108655464876E-4},{"$f":"'Population at Risk'!K77/'Population at Risk'!K$5","v":2.1839970698481973E-4},{"$f":"'Population at Risk'!L77/'Population at Risk'!L$5","v":9.2479210205167637E-5},{"$f":"'Population at Risk'!M77/'Population at Risk'!M$5","v":9.0773674596164242E-5},{"$f":"'Population at Risk'!N77/'Population at Risk'!N$5","v":4.8679976937799474E-4},{"$f":"'Population at Risk'!O77/'Population at Risk'!O$5","v":3.7780591857790037E-4},{"$f":"'Population at Risk'!P77/'Population at Risk'!P$5","v":3.95754118815118E-5},{"$f":"'Population at Risk'!Q77/'Population at Risk'!Q$5","v":2.9327928922515977E-5},{"$f":"'Population at Risk'!R77/'Population at Risk'!R$5","v":6.2627086072478621E-5},{"$f":"'Population at Risk'!S77/'Population at Risk'!S$5","v":1.4639568057732823E-4},{"$f":"'Population at Risk'!T77/'Population at Risk'!T$5","v":1.3674372564673507E-4},{"$f":"'Population at Risk'!U77/'Population at Risk'!U$5","v":0},{"$f":"'Population at Risk'!V77/'Population at Risk'!V$5","v":2.1155261791379597E-4},{"$f":"'Population at Risk'!W77/'Population at Risk'!W$5","v":2.3176401593088627E-4},{"$f":"'Population at Risk'!X77/'Population at Risk'!X$5","v":2.3594699091643428E-4},{"$f":"'Population at Risk'!Y77/'Population at Risk'!Y$5","v":1.6533962883094556E-4},{"$f":"'Population at Risk'!Z77/'Population at Risk'!Z$5","v":5.9487182989223205E-4},{"$f":"'Population at Risk'!AA77/'Population at Risk'!AA$5","v":4.2397332790944473E-4},{"$f":"'Population at Risk'!AB77/'Population at Risk'!AB$5","v":4.6368628520557635E-5},{"$f":"'Population at Risk'!AC77/'Population at Risk'!AC$5","v":4.5759084416235928E-4},{"$f":"'Population at Risk'!AD77/'Population at Risk'!AD$5","v":9.4858789083291376E-5},{"$f":"'Population at Risk'!AE77/'Population at Risk'!AE$5","v":6.6706820256615392E-5},{"$f":"'Population at Risk'!AF77/'Population at Risk'!AF$5","v":7.1712182487536098E-4},{"$f":"'Population at Risk'!AG77/'Population at Risk'!AG$5","v":7.3806018950493347E-5},{"$f":"'Population at Risk'!AH77/'Population at Risk'!AH$5","v":3.5367872329374473E-4},{"$f":"'Population at Risk'!AI77/'Population at Risk'!AI$5","v":1.2236900750126439E-4},{"$f":"'Population at Risk'!AJ77/'Population at Risk'!AJ$5","v":1.2308446123004179E-4},{"$f":"'Population at Risk'!AK77/'Population at Risk'!AK$5","v":1.1617316467054487E-5},{"$f":"'Population at Risk'!AL77/'Population at Risk'!AL$5","v":4.8192566423213378E-4},{"$f":"'Population at Risk'!AM77/'Population at Risk'!AM$5","v":4.4276636089558299E-4},{"$f":"'Population at Risk'!AN77/'Population at Risk'!AN$5","v":0},{"$f":"'Population at Risk'!AO77/'Population at Risk'!AO$5","v":0},{"$f":"'Population at Risk'!AP77/'Population at Risk'!AP$5","v":4.7694298268211366E-5},{"$f":"'Population at Risk'!AQ77/'Population at Risk'!AQ$5","v":4.2352408822794491E-4},{"$f":"'Population at Risk'!AR77/'Population at Risk'!AR$5","v":2.3805720575550916E-4},{"$f":"'Population at Risk'!AS77/'Population at Risk'!AS$5","v":6.5530430266492497E-5},{"$f":"'Population at Risk'!AT77/'Population at Risk'!AT$5","v":0},{"$f":"'Population at Risk'!AU77/'Population at Risk'!AU$5","v":0},{"$f":"'Population at Risk'!AV77/'Population at Risk'!AV$5","v":2.5657998263537611E-4},{"$f":"'Population at Risk'!AW77/'Population at Risk'!AW$5","v":2.6916508058188202E-4},{"$f":"'Population at Risk'!AX77/'Population at Risk'!AX$5","v":1.1307744624460346E-4},{"$f":"'Population at Risk'!AY77/'Population at Risk'!AY$5","v":2.1480338568392079E-4},{"$f":"'Population at Risk'!AZ77/'Population at Risk'!AZ$5","v":2.001438840649229E-4},{"$f":"'Population at Risk'!BA77/'Population at Risk'!BA$5","v":5.7112626028858846E-4},{"$f":"'Population at Risk'!BB77/'Population at Risk'!BB$5","v":1.2232901624781311E-4},{"$f":"'Population at Risk'!BC77/'Population at Risk'!BC$5","v":0},75]
[null,"Female 90+",{"$f":"'Population at Risk'!C78/'Population at Risk'!C$5","v":4.4415952872826542E-5},{"$f":"'Population at Risk'!D78/'Population at Risk'!D$5","v":2.5873062884407328E-5},{"$f":"'Population at Risk'!E78/'Population at Risk'!E$5","v":9.7151580453090848E-6},{"$f":"'Population at Risk'!F78/'Population at Risk'!F$5","v":4.0316259456651664E-5},{"$f":"'Population at Risk'!G78/'Population at Risk'!G$5","v":9.1956743639131446E-5},{"$f":"'Population at Risk'!H78/'Population at Risk'!H$5","v":2.1279735935377051E-4},{"$f":"'Population at Risk'!I78/'Population at Risk'!I$5","v":2.6656446210098649E-5},{"$f":"'Population at Risk'!J78/'Population at Risk'!J$5","v":9.8109749427059857E-5},{"$f":"'Population at Risk'!K78/'Population at Risk'!K$5","v":1.3898163171761256E-4},{"$f":"'Population at Risk'!L78/'Population at Risk'!L$5","v":3.6625429784224806E-5},{"$f":"'Population at Risk'!M78/'Population at Risk'!M$5","v":3.5949970137094747E-5},{"$f":"'Population at Risk'!N78/'Population at Risk'!N$5","v":2.6322430968629126E-4},{"$f":"'Population at Risk'!O78/'Population at Risk'!O$5","v":2.0129816659137471E-4},{"$f":"'Population at Risk'!P78/'Population at Risk'!P$5","v":5.9962745275017884E-6},{"$f":"'Population at Risk'!Q78/'Population at Risk'!Q$5","v":8.3794082635759923E-6},{"$f":"'Population at Risk'!R78/'Population at Risk'!R$5","v":3.7006914497373733E-5},{"$f":"'Population at Risk'!S78/'Population at Risk'!S$5","v":8.3684047745748009E-5},{"$f":"'Population at Risk'!T78/'Population at Risk'!T$5","v":7.2804616208772501E-5},{"$f":"'Population at Risk'!U78/'Population at Risk'!U$5","v":0},{"$f":"'Population at Risk'!V78/'Population at Risk'!V$5","v":1.0138927310154278E-4},{"$f":"'Population at Risk'!W78/'Population at Risk'!W$5","v":1.3484451835978837E-4},{"$f":"'Population at Risk'!X78/'Population at Risk'!X$5","v":1.3727824926047083E-4},{"$f":"'Population at Risk'!Y78/'Population at Risk'!Y$5","v":8.8296555710766747E-5},{"$f":"'Population at Risk'!Z78/'Population at Risk'!Z$5","v":3.2062583373852505E-4},{"$f":"'Population at Risk'!AA78/'Population at Risk'!AA$5","v":2.2827370353238711E-4},{"$f":"'Population at Risk'!AB78/'Population at Risk'!AB$5","v":2.244438933707843E-5},{"$f":"'Population at Risk'!AC78/'Population at Risk'!AC$5","v":2.4408256378579299E-4},{"$f":"'Population at Risk'!AD78/'Population at Risk'!AD$5","v":5.5182276341722394E-5},{"$f":"'Population at Risk'!AE78/'Population at Risk'!AE$5","v":3.6087296204398495E-5},{"$f":"'Population at Risk'!AF78/'Population at Risk'!AF$5","v":3.595541559624386E-4},{"$f":"'Population at Risk'!AG78/'Population at Risk'!AG$5","v":3.9927846317480004E-5},{"$f":"'Population at Risk'!AH78/'Population at Risk'!AH$5","v":1.9492520545166613E-4},{"$f":"'Population at Risk'!AI78/'Population at Risk'!AI$5","v":7.0523191165202363E-5},{"$f":"'Population at Risk'!AJ78/'Population at Risk'!AJ$5","v":6.4961243426966508E-5},{"$f":"'Population at Risk'!AK78/'Population at Risk'!AK$5","v":2.9043291167636218E-6},{"$f":"'Population at Risk'!AL78/'Population at Risk'!AL$5","v":2.7341036580057036E-4},{"$f":"'Population at Risk'!AM78/'Population at Risk'!AM$5","v":2.2980267500620862E-4},{"$f":"'Population at Risk'!AN78/'Population at Risk'!AN$5","v":0},{"$f":"'Population at Risk'!AO78/'Population at Risk'!AO$5","v":0},{"$f":"'Population at Risk'!AP78/'Population at Risk'!AP$5","v":2.4764347177725135E-5},{"$f":"'Population at Risk'!AQ78/'Population at Risk'!AQ$5","v":1.9727060180153727E-4},{"$f":"'Population at Risk'!AR78/'Population at Risk'!AR$5","v":1.2951020608527813E-4},{"$f":"'Population at Risk'!AS78/'Population at Risk'!AS$5","v":2.6656446210098649E-5},{"$f":"'Population at Risk'!AT78/'Population at Risk'!AT$5","v":0},{"$f":"'Population at Risk'!AU78/'Population at Risk'!AU$5","v":0},{"$f":"'Population at Risk'!AV78/'Population at Risk'!AV$5","v":1.435784358788633E-4},{"$f":"'Population at Risk'!AW78/'Population at Risk'!AW$5","v":1.6338425124814629E-4},{"$f":"'Population at Risk'!AX78/'Population at Risk'!AX$5","v":6.4615683568344836E-5},{"$f":"'Population at Risk'!AY78/'Population at Risk'!AY$5","v":1.213944932035963E-4},{"$f":"'Population at Risk'!AZ78/'Population at Risk'!AZ$5","v":1.0946497630265639E-4},{"$f":"'Population at Risk'!BA78/'Population at Risk'!BA$5","v":3.7315918233579547E-4},{"$f":"'Population at Risk'!BB78/'Population at Risk'!BB$5","v":9.5230816446082353E-5},{"$f":"'Population at Risk'!BC78/'Population at Risk'!BC$5","v":0},76]
[null,"Male 0-4",{"$f":"'Population at Risk'!C79/'Population at Risk'!C$5","v":0},{"$f":"'Population at Risk'!D79/'Population at Risk'!D$5","v":0},{"$f":"'Population at Risk'!E79/'Population at Risk'!E$5","v":0},{"$f":"'Population at Risk'!F79/'Population at Risk'!F$5","v":0},{"$f":"'Population at Risk'!G79/'Population at Risk'!G$5","v":0},{"$f":"'Population at Risk'!H79/'Population at Risk'!H$5","v":0},{"$f":"'Population at Risk'!I79/'Population at Risk'!I$5","v":0},{"$f":"'Population at Risk'!J79/'Population at Risk'!J$5","v":0},{"$f":"'Population at Risk'!K79/'Population at Risk'!K$5","v":0},{"$f":"'Population at Risk'!L79/'Population at Risk'!L$5","v":0},{"$f":"'Population at Risk'!M79/'Population at Risk'!M$5","v":0},{"$f":"'Population at Risk'!N79/'Population at Risk'!N$5","v":0},{"$f":"'Population at Risk'!O79/'Population at Risk'!O$5","v":0},{"$f":"'Population at Risk'!P79/'Population at Risk'!P$5","v":0},{"$f":"'Population at Risk'!Q79/'Population at Risk'!Q$5","v":0},{"$f":"'Population at Risk'!R79/'Population at Risk'!R$5","v":0},{"$f":"'Population at Risk'!S79/'Population at Risk'!S$5","v":0},{"$f":"'Population at Risk'!T79/'Population at Risk'!T$5","v":0},{"$f":"'Population at Risk'!U79/'Population at Risk'!U$5","v":0},{"$f":"'Population at Risk'!V79/'Population at Risk'!V$5","v":0},{"$f":"'Population at Risk'!W79/'Population at Risk'!W$5","v":0},{"$f":"'Population at Risk'!X79/'Population at Risk'!X$5","v":0},{"$f":"'Population at Risk'!Y79/'Population at Risk'!Y$5","v":0},{"$f":"'Population at Risk'!Z79/'Population at Risk'!Z$5","v":0},{"$f":"'Population at Risk'!AA79/'Population at Risk'!AA$5","v":0},{"$f":"'Population at Risk'!AB79/'Population at Risk'!AB$5","v":0},{"$f":"'Population at Risk'!AC79/'Population at Risk'!AC$5","v":0},{"$f":"'Population at Risk'!AD79/'Population at Risk'!AD$5","v":0},{"$f":"'Population at Risk'!AE79/'Population at Risk'!AE$5","v":0},{"$f":"'Population at Risk'!AF79/'Population at Risk'!AF$5","v":0},{"$f":"'Population at Risk'!AG79/'Population at Risk'!AG$5","v":0},{"$f":"'Population at Risk'!AH79/'Population at Risk'!AH$5","v":0},{"$f":"'Population at Risk'!AI79/'Population at Risk'!AI$5","v":0},{"$f":"'Population at Risk'!AJ79/'Population at Risk'!AJ$5","v":0},{"$f":"'Population at Risk'!AK79/'Population at Risk'!AK$5","v":0},{"$f":"'Population at Risk'!AL79/'Population at Risk'!AL$5","v":0},{"$f":"'Population at Risk'!AM79/'Population at Risk'!AM$5","v":0},{"$f":"'Population at Risk'!AN79/'Population at Risk'!AN$5","v":0},{"$f":"'Population at Risk'!AO79/'Population at Risk'!AO$5","v":0},{"$f":"'Population at Risk'!AP79/'Population at Risk'!AP$5","v":0},{"$f":"'Population at Risk'!AQ79/'Population at Risk'!AQ$5","v":0},{"$f":"'Population at Risk'!AR79/'Population at Risk'!AR$5","v":0},{"$f":"'Population at Risk'!AS79/'Population at Risk'!AS$5","v":0},{"$f":"'Population at Risk'!AT79/'Population at Risk'!AT$5","v":0},{"$f":"'Population at Risk'!AU79/'Population at Risk'!AU$5","v":0},{"$f":"'Population at Risk'!AV79/'Population at Risk'!AV$5","v":0},{"$f":"'Population at Risk'!AW79/'Population at Risk'!AW$5","v":0},{"$f":"'Population at Risk'!AX79/'Population at Risk'!AX$5","v":0},{"$f":"'Population at Risk'!AY79/'Population at Risk'!AY$5","v":0},{"$f":"'Population at Risk'!AZ79/'Population at Risk'!AZ$5","v":0},{"$f":"'Population at Risk'!BA79/'Population at Risk'!BA$5","v":0},{"$f":"'Population at Risk'!BB79/'Population at Risk'!BB$5","v":0},{"$f":"'Population at Risk'!BC79/'Population at Risk'!BC$5","v":0},77]
[null,"Male 5-9",{"$f":"'Population at Risk'!C80/'Population at Risk'!C$5","v":0},{"$f":"'Population at Risk'!D80/'Population at Risk'!D$5","v":0},{"$f":"'Population at Risk'!E80/'Population at Risk'!E$5","v":0},{"$f":"'Population at Risk'!F80/'Population at Risk'!F$5","v":0},{"$f":"'Population at Risk'!G80/'Population at Risk'!G$5","v":0},{"$f":"'Population at Risk'!H80/'Population at Risk'!H$5","v":0},{"$f":"'Population at Risk'!I80/'Population at Risk'!I$5","v":0},{"$f":"'Population at Risk'!J80/'Population at Risk'!J$5","v":0},{"$f":"'Population at Risk'!K80/'Population at Risk'!K$5","v":0},{"$f":"'Population at Risk'!L80/'Population at Risk'!L$5","v":0},{"$f":"'Population at Risk'!M80/'Population at Risk'!M$5","v":0},{"$f":"'Population at Risk'!N80/'Population at Risk'!N$5","v":0},{"$f":"'Population at Risk'!O80/'Population at Risk'!O$5","v":0},{"$f":"'Population at Risk'!P80/'Population at Risk'!P$5","v":0},{"$f":"'Population at Risk'!Q80/'Population at Risk'!Q$5","v":0},{"$f":"'Population at Risk'!R80/'Population at Risk'!R$5","v":0},{"$f":"'Population at Risk'!S80/'Population at Risk'!S$5","v":0},{"$f":"'Population at Risk'!T80/'Population at Risk'!T$5","v":0},{"$f":"'Population at Risk'!U80/'Population at Risk'!U$5","v":0},{"$f":"'Population at Risk'!V80/'Population at Risk'!V$5","v":0},{"$f":"'Population at Risk'!W80/'Population at Risk'!W$5","v":0},{"$f":"'Population at Risk'!X80/'Population at Risk'!X$5","v":0},{"$f":"'Population at Risk'!Y80/'Population at Risk'!Y$5","v":0},{"$f":"'Population at Risk'!Z80/'Population at Risk'!Z$5","v":0},{"$f":"'Population at Risk'!AA80/'Population at Risk'!AA$5","v":0},{"$f":"'Population at Risk'!AB80/'Population at Risk'!AB$5","v":0},{"$f":"'Population at Risk'!AC80/'Population at Risk'!AC$5","v":0},{"$f":"'Population at Risk'!AD80/'Population at Risk'!AD$5","v":0},{"$f":"'Population at Risk'!AE80/'Population at Risk'!AE$5","v":0},{"$f":"'Population at Risk'!AF80/'Population at Risk'!AF$5","v":0},{"$f":"'Population at Risk'!AG80/'Population at Risk'!AG$5","v":0},{"$f":"'Population at Risk'!AH80/'Population at Risk'!AH$5","v":0},{"$f":"'Population at Risk'!AI80/'Population at Risk'!AI$5","v":0},{"$f":"'Population at Risk'!AJ80/'Population at Risk'!AJ$5","v":0},{"$f":"'Population at Risk'!AK80/'Population at Risk'!AK$5","v":0},{"$f":"'Population at Risk'!AL80/'Population at Risk'!AL$5","v":0},{"$f":"'Population at Risk'!AM80/'Population at Risk'!AM$5","v":0},{"$f":"'Population at Risk'!AN80/'Population at Risk'!AN$5","v":0},{"$f":"'Population at Risk'!AO80/'Population at Risk'!AO$5","v":0},{"$f":"'Population at Risk'!AP80/'Population at Risk'!AP$5","v":0},{"$f":"'Population at Risk'!AQ80/'Population at Risk'!AQ$5","v":0},{"$f":"'Population at Risk'!AR80/'Population at Risk'!AR$5","v":0},{"$f":"'Population at Risk'!AS80/'Population at Risk'!AS$5","v":0},{"$f":"'Population at Risk'!AT80/'Population at Risk'!AT$5","v":0},{"$f":"'Population at Risk'!AU80/'Population at Risk'!AU$5","v":0},{"$f":"'Population at Risk'!AV80/'Population at Risk'!AV$5","v":0},{"$f":"'Population at Risk'!AW80/'Population at Risk'!AW$5","v":0},{"$f":"'Population at Risk'!AX80/'Population at Risk'!AX$5","v":0},{"$f":"'Population at Risk'!AY80/'Population at Risk'!AY$5","v":0},{"$f":"'Population at Risk'!AZ80/'Population at Risk'!AZ$5","v":0},{"$f":"'Population at Risk'!BA80/'Population at Risk'!BA$5","v":0},{"$f":"'Population at Risk'!BB80/'Population at Risk'!BB$5","v":0},{"$f":"'Population at Risk'!BC80/'Population at Risk'!BC$5","v":0},78]
[null,"Male 10-15",{"$f":"'Population at Risk'!C81/'Population at Risk'!C$5","v":0},{"$f":"'Population at Risk'!D81/'Population at Risk'!D$5","v":0},{"$f":"'Population at Risk'!E81/'Population at Risk'!E$5","v":0},{"$f":"'Population at Risk'!F81/'Population at Risk'!F$5","v":0},{"$f":"'Population at Risk'!G81/'Population at Risk'!G$5","v":0},{"$f":"'Population at Risk'!H81/'Population at Risk'!H$5","v":0},{"$f":"'Population at Risk'!I81/'Population at Risk'!I$5","v":0},{"$f":"'Population at Risk'!J81/'Population at Risk'!J$5","v":0},{"$f":"'Population at Risk'!K81/'Population at Risk'!K$5","v":0},{"$f":"'Population at Risk'!L81/'Population at Risk'!L$5","v":0},{"$f":"'Population at Risk'!M81/'Population at Risk'!M$5","v":0},{"$f":"'Population at Risk'!N81/'Population at Risk'!N$5","v":0},{"$f":"'Population at Risk'!O81/'Population at Risk'!O$5","v":0},{"$f":"'Population at Risk'!P81/'Population at Risk'!P$5","v":0},{"$f":"'Population at Risk'!Q81/'Population at Risk'!Q$5","v":0},{"$f":"'Population at Risk'!R81/'Population at Risk'!R$5","v":0},{"$f":"'Population at Risk'!S81/'Population at Risk'!S$5","v":0},{"$f":"'Population at Risk'!T81/'Population at Risk'!T$5","v":0},{"$f":"'Population at Risk'!U81/'Population at Risk'!U$5","v":0},{"$f":"'Population at Risk'!V81/'Population at Risk'!V$5","v":0},{"$f":"'Population at Risk'!W81/'Population at Risk'!W$5","v":0},{"$f":"'Population at Risk'!X81/'Population at Risk'!X$5","v":0},{"$f":"'Population at Risk'!Y81/'Population at Risk'!Y$5","v":0},{"$f":"'Population at Risk'!Z81/'Population at Risk'!Z$5","v":0},{"$f":"'Population at Risk'!AA81/'Population at Risk'!AA$5","v":0},{"$f":"'Population at Risk'!AB81/'Population at Risk'!AB$5","v":0},{"$f":"'Population at Risk'!AC81/'Population at Risk'!AC$5","v":0},{"$f":"'Population at Risk'!AD81/'Population at Risk'!AD$5","v":0},{"$f":"'Population at Risk'!AE81/'Population at Risk'!AE$5","v":0},{"$f":"'Population at Risk'!AF81/'Population at Risk'!AF$5","v":0},{"$f":"'Population at Risk'!AG81/'Population at Risk'!AG$5","v":0},{"$f":"'Population at Risk'!AH81/'Population at Risk'!AH$5","v":0},{"$f":"'Population at Risk'!AI81/'Population at Risk'!AI$5","v":0},{"$f":"'Population at Risk'!AJ81/'Population at Risk'!AJ$5","v":0},{"$f":"'Population at Risk'!AK81/'Population at Risk'!AK$5","v":0},{"$f":"'Population at Risk'!AL81/'Population at Risk'!AL$5","v":0},{"$f":"'Population at Risk'!AM81/'Population at Risk'!AM$5","v":0},{"$f":"'Population at Risk'!AN81/'Population at Risk'!AN$5","v":0},{"$f":"'Population at Risk'!AO81/'Population at Risk'!AO$5","v":0},{"$f":"'Population at Risk'!AP81/'Population at Risk'!AP$5","v":0},{"$f":"'Population at Risk'!AQ81/'Population at Risk'!AQ$5","v":0},{"$f":"'Population at Risk'!AR81/'Population at Risk'!AR$5","v":0},{"$f":"'Population at Risk'!AS81/'Population at Risk'!AS$5","v":0},{"$f":"'Population at Risk'!AT81/'Population at Risk'!AT$5","v":0},{"$f":"'Population at Risk'!AU81/'Population at Risk'!AU$5","v":0},{"$f":"'Population at Risk'!AV81/'Population at Risk'!AV$5","v":0},{"$f":"'Population at Risk'!AW81/'Population at Risk'!AW$5","v":0},{"$f":"'Population at Risk'!AX81/'Population at Risk'!AX$5","v":0},{"$f":"'Population at Risk'!AY81/'Population at Risk'!AY$5","v":0},{"$f":"'Population at Risk'!AZ81/'Population at Risk'!AZ$5","v":0},{"$f":"'Population at Risk'!BA81/'Population at Risk'!BA$5","v":0},{"$f":"'Population at Risk'!BB81/'Population at Risk'!BB$5","v":0},{"$f":"'Population at Risk'!BC81/'Population at Risk'!BC$5","v":0},79]
[null,"Male 16-19",{"$f":"'Population at Risk'!C82/'Population at Risk'!C$5","v":1.5900487077265613E-3},{"$f":"'Population at Risk'!D82/'Population at Risk'!D$5","v":9.1931821413296301E-4},{"$f":"'Population at Risk'!E82/'Population at Risk'!E$5","v":3.3166128932725852E-4},{"$f":"'Population at Risk'!F82/'Population at Risk'!F$5","v":2.263287787769764E-3},{"$f":"'Population at Risk'!G82/'Population at Risk'!G$5","v":2.0134569935611421E-3},{"$f":"'Population at Risk'!H82/'Population at Risk'!H$5","v":8.590250695301031E-3},{"$f":"'Population at Risk'!I82/'Population at Risk'!I$5","v":1.6761652222683874E-3},{"$f":"'Population at Risk'!J82/'Population at Risk'!J$5","v":4.9838086374412675E-3},{"$f":"'Population at Risk'!K82/'Population at Risk'!K$5","v":7.9343828960603564E-3},{"$f":"'Population at Risk'!L82/'Population at Risk'!L$5","v":2.1241041486384214E-3},{"$f":"'Population at Risk'!M82/'Population at Risk'!M$5","v":2.1521447834249334E-3},{"$f":"'Population at Risk'!N82/'Population at Risk'!N$5","v":8.101090574974202E-3},{"$f":"'Population at Risk'!O82/'Population at Risk'!O$5","v":9.8314748690020853E-3},{"$f":"'Population at Risk'!P82/'Population at Risk'!P$5","v":1.3254448492420359E-3},{"$f":"'Population at Risk'!Q82/'Population at Risk'!Q$5","v":8.7118136232769276E-4},{"$f":"'Population at Risk'!R82/'Population at Risk'!R$5","v":1.8659590998114383E-3},{"$f":"'Population at Risk'!S82/'Population at Risk'!S$5","v":3.4914199451483163E-3},{"$f":"'Population at Risk'!T82/'Population at Risk'!T$5","v":3.0510336151713616E-3},{"$f":"'Population at Risk'!U82/'Population at Risk'!U$5","v":0},{"$f":"'Population at Risk'!V82/'Population at Risk'!V$5","v":3.200338576946753E-3},{"$f":"'Population at Risk'!W82/'Population at Risk'!W$5","v":5.2506348533683279E-3},{"$f":"'Population at Risk'!X82/'Population at Risk'!X$5","v":5.1795234343558682E-3},{"$f":"'Population at Risk'!Y82/'Population at Risk'!Y$5","v":4.4335936176021148E-3},{"$f":"'Population at Risk'!Z82/'Population at Risk'!Z$5","v":1.2372677259151239E-2},{"$f":"'Population at Risk'!AA82/'Population at Risk'!AA$5","v":8.2613099722287659E-3},{"$f":"'Population at Risk'!AB82/'Population at Risk'!AB$5","v":7.9919139443836271E-4},{"$f":"'Population at Risk'!AC82/'Population at Risk'!AC$5","v":9.2945568381777709E-3},{"$f":"'Population at Risk'!AD82/'Population at Risk'!AD$5","v":1.8142328598016733E-3},{"$f":"'Population at Risk'!AE82/'Population at Risk'!AE$5","v":1.9271666544695574E-3},{"$f":"'Population at Risk'!AF82/'Population at Risk'!AF$5","v":1.0443709616445963E-2},{"$f":"'Population at Risk'!AG82/'Population at Risk'!AG$5","v":1.791227798606809E-3},{"$f":"'Population at Risk'!AH82/'Population at Risk'!AH$5","v":6.5518749914686199E-3},{"$f":"'Population at Risk'!AI82/'Population at Risk'!AI$5","v":3.0017914917849246E-3},{"$f":"'Population at Risk'!AJ82/'Population at Risk'!AJ$5","v":2.5084467217395337E-3},{"$f":"'Population at Risk'!AK82/'Population at Risk'!AK$5","v":2.405116306092833E-4},{"$f":"'Population at Risk'!AL82/'Population at Risk'!AL$5","v":1.1858367088729095E-2},{"$f":"'Population at Risk'!AM82/'Population at Risk'!AM$5","v":8.4610087056394192E-3},{"$f":"'Population at Risk'!AN82/'Population at Risk'!AN$5","v":0},{"$f":"'Population at Risk'!AO82/'Population at Risk'!AO$5","v":0},{"$f":"'Population at Risk'!AP82/'Population at Risk'!AP$5","v":1.1232041462833856E-3},{"$f":"'Population at Risk'!AQ82/'Population at Risk'!AQ$5","v":5.9338654713925179E-3},{"$f":"'Population at Risk'!AR82/'Population at Risk'!AR$5","v":4.9723241044530462E-3},{"$f":"'Population at Risk'!AS82/'Population at Risk'!AS$5","v":1.6761652222683874E-3},{"$f":"'Population at Risk'!AT82/'Population at Risk'!AT$5","v":0},{"$f":"'Population at Risk'!AU82/'Population at Risk'!AU$5","v":0},{"$f":"'Population at Risk'!AV82/'Population at Risk'!AV$5","v":3.9178468485236255E-3},{"$f":"'Population at Risk'!AW82/'Population at Risk'!AW$5","v":4.4971621646809953E-3},{"$f":"'Population at Risk'!AX82/'Population at Risk'!AX$5","v":3.8833848046272465E-3},{"$f":"'Population at Risk'!AY82/'Population at Risk'!AY$5","v":4.4630083860409259E-3},{"$f":"'Population at Risk'!AZ82/'Population at Risk'!AZ$5","v":3.7831889517517267E-3},{"$f":"'Population at Risk'!BA82/'Population at Risk'!BA$5","v":1.0604557586936503E-2},{"$f":"'Population at Risk'!BB82/'Population at Risk'!BB$5","v":4.6650135585154301E-3},{"$f":"'Population at Risk'!BC82/'Population at Risk'!BC$5","v":0},80]
[null,"Male 20-24",{"$f":"'Population at Risk'!C83/'Population at Risk'!C$5","v":2.5980636709802699E-3},{"$f":"'Population at Risk'!D83/'Population at Risk'!D$5","v":1.6729224154179243E-3},{"$f":"'Population at Risk'!E83/'Population at Risk'!E$5","v":8.6455527105532546E-4},{"$f":"'Population at Risk'!F83/'Population at Risk'!F$5","v":3.1930201155258081E-3},{"$f":"'Population at Risk'!G83/'Population at Risk'!G$5","v":3.1559241640649357E-3},{"$f":"'Population at Risk'!H83/'Population at Risk'!H$5","v":1.2040767300746649E-2},{"$f":"'Population at Risk'!I83/'Population at Risk'!I$5","v":1.9981404627041231E-3},{"$f":"'Population at Risk'!J83/'Population at Risk'!J$5","v":6.3697957657210431E-3},{"$f":"'Population at Risk'!K83/'Population at Risk'!K$5","v":9.9063786450812076E-3},{"$f":"'Population at Risk'!L83/'Population at Risk'!L$5","v":3.1717065348716559E-3},{"$f":"'Population at Risk'!M83/'Population at Risk'!M$5","v":3.2135767344338294E-3},{"$f":"'Population at Risk'!N83/'Population at Risk'!N$5","v":1.337267983042283E-2},{"$f":"'Population at Risk'!O83/'Population at Risk'!O$5","v":1.3586261547695436E-2},{"$f":"'Population at Risk'!P83/'Population at Risk'!P$5","v":1.6470601435434123E-3},{"$f":"'Population at Risk'!Q83/'Population at Risk'!Q$5","v":1.178074796784039E-3},{"$f":"'Population at Risk'!R83/'Population at Risk'!R$5","v":2.2208347568307917E-3},{"$f":"'Population at Risk'!S83/'Population at Risk'!S$5","v":4.7767100829794575E-3},{"$f":"'Population at Risk'!T83/'Population at Risk'!T$5","v":4.4678027222829139E-3},{"$f":"'Population at Risk'!U83/'Population at Risk'!U$5","v":0},{"$f":"'Population at Risk'!V83/'Population at Risk'!V$5","v":4.6985050422505125E-3},{"$f":"'Population at Risk'!W83/'Population at Risk'!W$5","v":6.7663730537521226E-3},{"$f":"'Population at Risk'!X83/'Population at Risk'!X$5","v":6.6747333943857285E-3},{"$f":"'Population at Risk'!Y83/'Population at Risk'!Y$5","v":6.0201973536670858E-3},{"$f":"'Population at Risk'!Z83/'Population at Risk'!Z$5","v":1.9309895595862343E-2},{"$f":"'Population at Risk'!AA83/'Population at Risk'!AA$5","v":1.2313046541077136E-2},{"$f":"'Population at Risk'!AB83/'Population at Risk'!AB$5","v":1.4251429365035836E-3},{"$f":"'Population at Risk'!AC83/'Population at Risk'!AC$5","v":1.4263632075280688E-2},{"$f":"'Population at Risk'!AD83/'Population at Risk'!AD$5","v":2.6071883784564865E-3},{"$f":"'Population at Risk'!AE83/'Population at Risk'!AE$5","v":2.6604300644628522E-3},{"$f":"'Population at Risk'!AF83/'Population at Risk'!AF$5","v":1.4869467696800327E-2},{"$f":"'Population at Risk'!AG83/'Population at Risk'!AG$5","v":2.4727681317352535E-3},{"$f":"'Population at Risk'!AH83/'Population at Risk'!AH$5","v":9.0911557468567692E-3},{"$f":"'Population at Risk'!AI83/'Population at Risk'!AI$5","v":4.3118150298664176E-3},{"$f":"'Population at Risk'!AJ83/'Population at Risk'!AJ$5","v":4.0110911347622496E-3},{"$f":"'Population at Risk'!AK83/'Population at Risk'!AK$5","v":2.5096865802707826E-4},{"$f":"'Population at Risk'!AL83/'Population at Risk'!AL$5","v":1.6203549773796254E-2},{"$f":"'Population at Risk'!AM83/'Population at Risk'!AM$5","v":1.1612966893784214E-2},{"$f":"'Population at Risk'!AN83/'Population at Risk'!AN$5","v":0},{"$f":"'Population at Risk'!AO83/'Population at Risk'!AO$5","v":0},{"$f":"'Population at Risk'!AP83/'Population at Risk'!AP$5","v":2.0296495976699774E-3},{"$f":"'Population at Risk'!AQ83/'Population at Risk'!AQ$5","v":9.7008699560405757E-3},{"$f":"'Population at Risk'!AR83/'Population at Risk'!AR$5","v":7.2901537995805924E-3},{"$f":"'Population at Risk'!AS83/'Population at Risk'!AS$5","v":1.9981404627041231E-3},{"$f":"'Population at Risk'!AT83/'Population at Risk'!AT$5","v":0},{"$f":"'Population at Risk'!AU83/'Population at Risk'!AU$5","v":0},{"$f":"'Population at Risk'!AV83/'Population at Risk'!AV$5","v":6.099478504314043E-3},{"$f":"'Population at Risk'!AW83/'Population at Risk'!AW$5","v":6.3658739633563411E-3},{"$f":"'Population at Risk'!AX83/'Population at Risk'!AX$5","v":5.0748778696833334E-3},{"$f":"'Population at Risk'!AY83/'Population at Risk'!AY$5","v":6.4698378177207479E-3},{"$f":"'Population at Risk'!AZ83/'Population at Risk'!AZ$5","v":6.1706846957820319E-3},{"$f":"'Population at Risk'!BA83/'Population at Risk'!BA$5","v":1.4977831633515803E-2},{"$f":"'Population at Risk'!BB83/'Population at Risk'!BB$5","v":6.2686119692551088E-3},{"$f":"'Population at Risk'!BC83/'Population at Risk'!BC$5","v":0},81]
[null,"Male 25-29",{"$f":"'Population at Risk'!C84/'Population at Risk'!C$5","v":4.0718051464910168E-3},{"$f":"'Population at Risk'!D84/'Population at Risk'!D$5","v":2.3890062961541246E-3},{"$f":"'Population at Risk'!E84/'Population at Risk'!E$5","v":9.1507754160667621E-4},{"$f":"'Population at Risk'!F84/'Population at Risk'!F$5","v":2.7532760423437564E-3},{"$f":"'Population at Risk'!G84/'Population at Risk'!G$5","v":2.3763053387933298E-3},{"$f":"'Population at Risk'!H84/'Population at Risk'!H$5","v":1.0823768733342671E-2},{"$f":"'Population at Risk'!I84/'Population at Risk'!I$5","v":1.3970051794908677E-3},{"$f":"'Population at Risk'!J84/'Population at Risk'!J$5","v":5.7998313566229301E-3},{"$f":"'Population at Risk'!K84/'Population at Risk'!K$5","v":7.494808103558551E-3},{"$f":"'Population at Risk'!L84/'Population at Risk'!L$5","v":3.3458581395911504E-3},{"$f":"'Population at Risk'!M84/'Population at Risk'!M$5","v":3.3900273420287507E-3},{"$f":"'Population at Risk'!N84/'Population at Risk'!N$5","v":1.7536939225165842E-2},{"$f":"'Population at Risk'!O84/'Population at Risk'!O$5","v":1.2519189555008466E-2},{"$f":"'Population at Risk'!P84/'Population at Risk'!P$5","v":1.4832273600998791E-3},{"$f":"'Population at Risk'!Q84/'Population at Risk'!Q$5","v":9.7053806399442072E-4},{"$f":"'Population at Risk'!R84/'Population at Risk'!R$5","v":2.0949224811555841E-3},{"$f":"'Population at Risk'!S84/'Population at Risk'!S$5","v":5.3029923673299159E-3},{"$f":"'Population at Risk'!T84/'Population at Risk'!T$5","v":6.3293557836044938E-3},{"$f":"'Population at Risk'!U84/'Population at Risk'!U$5","v":0},{"$f":"'Population at Risk'!V84/'Population at Risk'!V$5","v":4.952367967776386E-3},{"$f":"'Population at Risk'!W84/'Population at Risk'!W$5","v":6.707831067352679E-3},{"$f":"'Population at Risk'!X84/'Population at Risk'!X$5","v":6.6169842652008754E-3},{"$f":"'Population at Risk'!Y84/'Population at Risk'!Y$5","v":5.8735938998343154E-3},{"$f":"'Population at Risk'!Z84/'Population at Risk'!Z$5","v":2.2986934512942602E-2},{"$f":"'Population at Risk'!AA84/'Population at Risk'!AA$5","v":1.3134042930425464E-2},{"$f":"'Population at Risk'!AB84/'Population at Risk'!AB$5","v":1.9974639798874187E-3},{"$f":"'Population at Risk'!AC84/'Population at Risk'!AC$5","v":1.6180177720170642E-2},{"$f":"'Population at Risk'!AD84/'Population at Risk'!AD$5","v":2.3680174063251754E-3},{"$f":"'Population at Risk'!AE84/'Population at Risk'!AE$5","v":2.6200351459641147E-3},{"$f":"'Population at Risk'!AF84/'Population at Risk'!AF$5","v":1.399668717876283E-2},{"$f":"'Population at Risk'!AG84/'Population at Risk'!AG$5","v":2.4352225978450815E-3},{"$f":"'Population at Risk'!AH84/'Population at Risk'!AH$5","v":8.1122581017104931E-3},{"$f":"'Population at Risk'!AI84/'Population at Risk'!AI$5","v":5.2135686713867752E-3},{"$f":"'Population at Risk'!AJ84/'Population at Risk'!AJ$5","v":2.885174508678708E-3},{"$f":"'Population at Risk'!AK84/'Population at Risk'!AK$5","v":1.1716202328710612E-4},{"$f":"'Population at Risk'!AL84/'Population at Risk'!AL$5","v":1.3795429128439578E-2},{"$f":"'Population at Risk'!AM84/'Population at Risk'!AM$5","v":1.0342163832137201E-2},{"$f":"'Population at Risk'!AN84/'Population at Risk'!AN$5","v":0},{"$f":"'Population at Risk'!AO84/'Population at Risk'!AO$5","v":0},{"$f":"'Population at Risk'!AP84/'Population at Risk'!AP$5","v":2.7168376308502233E-3},{"$f":"'Population at Risk'!AQ84/'Population at Risk'!AQ$5","v":1.0707140622297957E-2},{"$f":"'Population at Risk'!AR84/'Population at Risk'!AR$5","v":7.7989165718682961E-3},{"$f":"'Population at Risk'!AS84/'Population at Risk'!AS$5","v":1.3970051794908677E-3},{"$f":"'Population at Risk'!AT84/'Population at Risk'!AT$5","v":0},{"$f":"'Population at Risk'!AU84/'Population at Risk'!AU$5","v":0},{"$f":"'Population at Risk'!AV84/'Population at Risk'!AV$5","v":6.0259552732257497E-3},{"$f":"'Population at Risk'!AW84/'Population at Risk'!AW$5","v":5.7005552803564173E-3},{"$f":"'Population at Risk'!AX84/'Population at Risk'!AX$5","v":5.3460435401741623E-3},{"$f":"'Population at Risk'!AY84/'Population at Risk'!AY$5","v":7.3179567039977815E-3},{"$f":"'Population at Risk'!AZ84/'Population at Risk'!AZ$5","v":7.7473683409337996E-3},{"$f":"'Population at Risk'!BA84/'Population at Risk'!BA$5","v":1.3807461023741006E-2},{"$f":"'Population at Risk'!BB84/'Population at Risk'!BB$5","v":6.0067354965735341E-3},{"$f":"'Population at Risk'!BC84/'Population at Risk'!BC$5","v":0},82]
[null,"Male 30-34",{"$f":"'Population at Risk'!C85/'Population at Risk'!C$5","v":3.4141731740886957E-3},{"$f":"'Population at Risk'!D85/'Population at Risk'!D$5","v":2.0998204916080972E-3},{"$f":"'Population at Risk'!E85/'Population at Risk'!E$5","v":9.4987136448145492E-4},{"$f":"'Population at Risk'!F85/'Population at Risk'!F$5","v":2.2622459201423221E-3},{"$f":"'Population at Risk'!G85/'Population at Risk'!G$5","v":1.8587988427894492E-3},{"$f":"'Population at Risk'!H85/'Population at Risk'!H$5","v":9.5421221517789818E-3},{"$f":"'Population at Risk'!I85/'Population at Risk'!I$5","v":1.5384740584266515E-3},{"$f":"'Population at Risk'!J85/'Population at Risk'!J$5","v":5.0891005776610449E-3},{"$f":"'Population at Risk'!K85/'Population at Risk'!K$5","v":7.8630501202073821E-3},{"$f":"'Population at Risk'!L85/'Population at Risk'!L$5","v":2.3340058796341495E-3},{"$f":"'Population at Risk'!M85/'Population at Risk'!M$5","v":2.3648174603668301E-3},{"$f":"'Population at Risk'!N85/'Population at Risk'!N$5","v":1.3758261712561047E-2},{"$f":"'Population at Risk'!O85/'Population at Risk'!O$5","v":1.0898140049445748E-2},{"$f":"'Population at Risk'!P85/'Population at Risk'!P$5","v":1.2193402837630909E-3},{"$f":"'Population at Risk'!Q85/'Population at Risk'!Q$5","v":1.0167541622798694E-3},{"$f":"'Population at Risk'!R85/'Population at Risk'!R$5","v":1.966661921084834E-3},{"$f":"'Population at Risk'!S85/'Population at Risk'!S$5","v":4.802367831352676E-3},{"$f":"'Population at Risk'!T85/'Population at Risk'!T$5","v":5.4677283395995644E-3},{"$f":"'Population at Risk'!U85/'Population at Risk'!U$5","v":0},{"$f":"'Population at Risk'!V85/'Population at Risk'!V$5","v":4.5476071242562012E-3},{"$f":"'Population at Risk'!W85/'Population at Risk'!W$5","v":6.2846413973926991E-3},{"$f":"'Population at Risk'!X85/'Population at Risk'!X$5","v":6.1995260198748061E-3},{"$f":"'Population at Risk'!Y85/'Population at Risk'!Y$5","v":5.2713515082190108E-3},{"$f":"'Population at Risk'!Z85/'Population at Risk'!Z$5","v":2.0128226649669446E-2},{"$f":"'Population at Risk'!AA85/'Population at Risk'!AA$5","v":1.1929702634821649E-2},{"$f":"'Population at Risk'!AB85/'Population at Risk'!AB$5","v":1.7533125384955265E-3},{"$f":"'Population at Risk'!AC85/'Population at Risk'!AC$5","v":1.4460884053816452E-2},{"$f":"'Population at Risk'!AD85/'Population at Risk'!AD$5","v":2.2931166124511436E-3},{"$f":"'Population at Risk'!AE85/'Population at Risk'!AE$5","v":2.720974523446819E-3},{"$f":"'Population at Risk'!AF85/'Population at Risk'!AF$5","v":1.3177799089996329E-2},{"$f":"'Population at Risk'!AG85/'Population at Risk'!AG$5","v":2.5290418939094652E-3},{"$f":"'Population at Risk'!AH85/'Population at Risk'!AH$5","v":7.7552429705951571E-3},{"$f":"'Population at Risk'!AI85/'Population at Risk'!AI$5","v":4.6025517060777517E-3},{"$f":"'Population at Risk'!AJ85/'Population at Risk'!AJ$5","v":3.1793491644655572E-3},{"$f":"'Population at Risk'!AK85/'Population at Risk'!AK$5","v":8.7871517465329591E-5},{"$f":"'Population at Risk'!AL85/'Population at Risk'!AL$5","v":1.252660524257841E-2},{"$f":"'Population at Risk'!AM85/'Population at Risk'!AM$5","v":9.7518444639905898E-3},{"$f":"'Population at Risk'!AN85/'Population at Risk'!AN$5","v":0},{"$f":"'Population at Risk'!AO85/'Population at Risk'!AO$5","v":0},{"$f":"'Population at Risk'!AP85/'Population at Risk'!AP$5","v":1.9011730599629104E-3},{"$f":"'Population at Risk'!AQ85/'Population at Risk'!AQ$5","v":1.0069069742190085E-2},{"$f":"'Population at Risk'!AR85/'Population at Risk'!AR$5","v":6.9578784795874754E-3},{"$f":"'Population at Risk'!AS85/'Population at Risk'!AS$5","v":1.5384740584266515E-3},{"$f":"'Population at Risk'!AT85/'Population at Risk'!AT$5","v":0},{"$f":"'Population at Risk'!AU85/'Population at Risk'!AU$5","v":0},{"$f":"'Population at Risk'!AV85/'Population at Risk'!AV$5","v":5.0499202641821417E-3},{"$f":"'Population at Risk'!AW85/'Population at Risk'!AW$5","v":5.5832834456877702E-3},{"$f":"'Population at Risk'!AX85/'Population at Risk'!AX$5","v":4.0790621231386673E-3},{"$f":"'Population at Risk'!AY85/'Population at Risk'!AY$5","v":6.1694595246793403E-3},{"$f":"'Population at Risk'!AZ85/'Population at Risk'!AZ$5","v":6.0202764354376128E-3},{"$f":"'Population at Risk'!BA85/'Population at Risk'!BA$5","v":1.3500628556546762E-2},{"$f":"'Population at Risk'!BB85/'Population at Risk'!BB$5","v":5.2433178817380801E-3},{"$f":"'Population at Risk'!BC85/'Population at Risk'!BC$5","v":0},83]
[null,"Male 35-39",{"$f":"'Population at Risk'!C86/'Population at Risk'!C$5","v":3.9638072109876602E-3},{"$f":"'Population at Risk'!D86/'Population at Risk'!D$5","v":2.3186952249281204E-3},{"$f":"'Population at Risk'!E86/'Population at Risk'!E$5","v":8.7768468769300421E-4},{"$f":"'Population at Risk'!F86/'Population at Risk'!F$5","v":2.7354331195776046E-3},{"$f":"'Population at Risk'!G86/'Population at Risk'!G$5","v":1.9305320346129937E-3},{"$f":"'Population at Risk'!H86/'Population at Risk'!H$5","v":1.0390818246323257E-2},{"$f":"'Population at Risk'!I86/'Population at Risk'!I$5","v":2.0148771130884271E-3},{"$f":"'Population at Risk'!J86/'Population at Risk'!J$5","v":5.3682243246600987E-3},{"$f":"'Population at Risk'!K86/'Population at Risk'!K$5","v":9.5556232245930239E-3},{"$f":"'Population at Risk'!L86/'Population at Risk'!L$5","v":2.4496731322165579E-3},{"$f":"'Population at Risk'!M86/'Population at Risk'!M$5","v":2.4820116546429879E-3},{"$f":"'Population at Risk'!N86/'Population at Risk'!N$5","v":1.2066800864464414E-2},{"$f":"'Population at Risk'!O86/'Population at Risk'!O$5","v":1.1281388496151184E-2},{"$f":"'Population at Risk'!P86/'Population at Risk'!P$5","v":1.5080823593677192E-3},{"$f":"'Population at Risk'!Q86/'Population at Risk'!Q$5","v":9.6869654980652931E-4},{"$f":"'Population at Risk'!R86/'Population at Risk'!R$5","v":2.1491258999860987E-3},{"$f":"'Population at Risk'!S86/'Population at Risk'!S$5","v":5.4092685201631678E-3},{"$f":"'Population at Risk'!T86/'Population at Risk'!T$5","v":6.0594190747994799E-3},{"$f":"'Population at Risk'!U86/'Population at Risk'!U$5","v":0},{"$f":"'Population at Risk'!V86/'Population at Risk'!V$5","v":5.2298697417357837E-3},{"$f":"'Population at Risk'!W86/'Population at Risk'!W$5","v":7.1093575920549452E-3},{"$f":"'Population at Risk'!X86/'Population at Risk'!X$5","v":7.0130727577908149E-3},{"$f":"'Population at Risk'!Y86/'Population at Risk'!Y$5","v":5.8121567611667813E-3},{"$f":"'Population at Risk'!Z86/'Population at Risk'!Z$5","v":2.0007228818168177E-2},{"$f":"'Population at Risk'!AA86/'Population at Risk'!AA$5","v":1.2450602843030416E-2},{"$f":"'Population at Risk'!AB86/'Population at Risk'!AB$5","v":1.969252012162445E-3},{"$f":"'Population at Risk'!AC86/'Population at Risk'!AC$5","v":1.4448671246429066E-2},{"$f":"'Population at Risk'!AD86/'Population at Risk'!AD$5","v":2.1484760801605846E-3},{"$f":"'Population at Risk'!AE86/'Population at Risk'!AE$5","v":2.4708181871922258E-3},{"$f":"'Population at Risk'!AF86/'Population at Risk'!AF$5","v":1.2757872251257902E-2},{"$f":"'Population at Risk'!AG86/'Population at Risk'!AG$5","v":2.2965311338993539E-3},{"$f":"'Population at Risk'!AH86/'Population at Risk'!AH$5","v":9.1505396854207263E-3},{"$f":"'Population at Risk'!AI86/'Population at Risk'!AI$5","v":5.1366166924816424E-3},{"$f":"'Population at Risk'!AJ86/'Population at Risk'!AJ$5","v":3.2815187564212527E-3},{"$f":"'Population at Risk'!AK86/'Population at Risk'!AK$5","v":3.0934634762034945E-4},{"$f":"'Population at Risk'!AL86/'Population at Risk'!AL$5","v":1.3630249679306502E-2},{"$f":"'Population at Risk'!AM86/'Population at Risk'!AM$5","v":1.1192569900973642E-2},{"$f":"'Population at Risk'!AN86/'Population at Risk'!AN$5","v":0},{"$f":"'Population at Risk'!AO86/'Population at Risk'!AO$5","v":0},{"$f":"'Population at Risk'!AP86/'Population at Risk'!AP$5","v":2.2794277179699969E-3},{"$f":"'Population at Risk'!AQ86/'Population at Risk'!AQ$5","v":1.0177842301059479E-2},{"$f":"'Population at Risk'!AR86/'Population at Risk'!AR$5","v":7.3585801588912352E-3},{"$f":"'Population at Risk'!AS86/'Population at Risk'!AS$5","v":2.0148771130884271E-3},{"$f":"'Population at Risk'!AT86/'Population at Risk'!AT$5","v":0},{"$f":"'Population at Risk'!AU86/'Population at Risk'!AU$5","v":0},{"$f":"'Population at Risk'!AV86/'Population at Risk'!AV$5","v":6.0194466222390454E-3},{"$f":"'Population at Risk'!AW86/'Population at Risk'!AW$5","v":6.8979760941884098E-3},{"$f":"'Population at Risk'!AX86/'Population at Risk'!AX$5","v":3.7029954422300318E-3},{"$f":"'Population at Risk'!AY86/'Population at Risk'!AY$5","v":6.3599190159909936E-3},{"$f":"'Population at Risk'!AZ86/'Population at Risk'!AZ$5","v":5.6939964662088682E-3},{"$f":"'Population at Risk'!BA86/'Population at Risk'!BA$5","v":1.3748391301566004E-2},{"$f":"'Population at Risk'!BB86/'Population at Risk'!BB$5","v":6.2309208788492911E-3},{"$f":"'Population at Risk'!BC86/'Population at Risk'!BC$5","v":0},84]
[null,"Male 40-44",{"$f":"'Population at Risk'!C87/'Population at Risk'!C$5","v":3.239188701472967E-3},{"$f":"'Population at Risk'!D87/'Population at Risk'!D$5","v":1.990980314144475E-3},{"$f":"'Population at Risk'!E87/'Population at Risk'!E$5","v":8.9888480092230403E-4},{"$f":"'Population at Risk'!F87/'Population at Risk'!F$5","v":2.6820066914608545E-3},{"$f":"'Population at Risk'!G87/'Population at Risk'!G$5","v":2.1493256652024661E-3},{"$f":"'Population at Risk'!H87/'Population at Risk'!H$5","v":1.1346459732258271E-2},{"$f":"'Population at Risk'!I87/'Population at Risk'!I$5","v":2.0472013448492041E-3},{"$f":"'Population at Risk'!J87/'Population at Risk'!J$5","v":5.1721248059510543E-3},{"$f":"'Population at Risk'!K87/'Population at Risk'!K$5","v":9.291655732200952E-3},{"$f":"'Population at Risk'!L87/'Population at Risk'!L$5","v":2.8031494566639142E-3},{"$f":"'Population at Risk'!M87/'Population at Risk'!M$5","v":2.8401542759505329E-3},{"$f":"'Population at Risk'!N87/'Population at Risk'!N$5","v":1.0201287619273242E-2},{"$f":"'Population at Risk'!O87/'Population at Risk'!O$5","v":1.3363923292381626E-2},{"$f":"'Population at Risk'!P87/'Population at Risk'!P$5","v":1.5080823593677192E-3},{"$f":"'Population at Risk'!Q87/'Population at Risk'!Q$5","v":1.4981004781891676E-3},{"$f":"'Population at Risk'!R87/'Population at Risk'!R$5","v":2.2012259218039433E-3},{"$f":"'Population at Risk'!S87/'Population at Risk'!S$5","v":5.2598460978180266E-3},{"$f":"'Population at Risk'!T87/'Population at Risk'!T$5","v":5.4812302317842629E-3},{"$f":"'Population at Risk'!U87/'Population at Risk'!U$5","v":0},{"$f":"'Population at Risk'!V87/'Population at Risk'!V$5","v":5.4692396466973396E-3},{"$f":"'Population at Risk'!W87/'Population at Risk'!W$5","v":7.0390342244463005E-3},{"$f":"'Population at Risk'!X87/'Population at Risk'!X$5","v":6.9437018072898227E-3},{"$f":"'Population at Risk'!Y87/'Population at Risk'!Y$5","v":5.850117146399365E-3},{"$f":"'Population at Risk'!Z87/'Population at Risk'!Z$5","v":1.7977509952556914E-2},{"$f":"'Population at Risk'!AA87/'Population at Risk'!AA$5","v":1.1668362493700591E-2},{"$f":"'Population at Risk'!AB87/'Population at Risk'!AB$5","v":1.7051974458479342E-3},{"$f":"'Population at Risk'!AC87/'Population at Risk'!AC$5","v":1.3114997669033722E-2},{"$f":"'Population at Risk'!AD87/'Population at Risk'!AD$5","v":2.4574072812294269E-3},{"$f":"'Population at Risk'!AE87/'Population at Risk'!AE$5","v":2.8505326705053164E-3},{"$f":"'Population at Risk'!AF87/'Population at Risk'!AF$5","v":1.3110978222111009E-2},{"$f":"'Population at Risk'!AG87/'Population at Risk'!AG$5","v":2.6494612432215489E-3},{"$f":"'Population at Risk'!AH87/'Population at Risk'!AH$5","v":9.274843542975442E-3},{"$f":"'Population at Risk'!AI87/'Population at Risk'!AI$5","v":4.9329325746862831E-3},{"$f":"'Population at Risk'!AJ87/'Population at Risk'!AJ$5","v":3.6813676805230022E-3},{"$f":"'Population at Risk'!AK87/'Population at Risk'!AK$5","v":3.569380934080955E-4},{"$f":"'Population at Risk'!AL87/'Population at Risk'!AL$5","v":1.4684033433414736E-2},{"$f":"'Population at Risk'!AM87/'Population at Risk'!AM$5","v":1.1284254468530453E-2},{"$f":"'Population at Risk'!AN87/'Population at Risk'!AN$5","v":0},{"$f":"'Population at Risk'!AO87/'Population at Risk'!AO$5","v":0},{"$f":"'Population at Risk'!AP87/'Population at Risk'!AP$5","v":1.8833304423883251E-3},{"$f":"'Population at Risk'!AQ87/'Population at Risk'!AQ$5","v":8.9008707825414569E-3},{"$f":"'Population at Risk'!AR87/'Population at Risk'!AR$5","v":7.0549472582045096E-3},{"$f":"'Population at Risk'!AS87/'Population at Risk'!AS$5","v":2.0472013448492041E-3},{"$f":"'Population at Risk'!AT87/'Population at Risk'!AT$5","v":0},{"$f":"'Population at Risk'!AU87/'Population at Risk'!AU$5","v":0},{"$f":"'Population at Risk'!AV87/'Population at Risk'!AV$5","v":5.8746489371680026E-3},{"$f":"'Population at Risk'!AW87/'Population at Risk'!AW$5","v":7.0513419093194305E-3},{"$f":"'Population at Risk'!AX87/'Population at Risk'!AX$5","v":3.5272600653106405E-3},{"$f":"'Population at Risk'!AY87/'Population at Risk'!AY$5","v":5.8833398343326694E-3},{"$f":"'Population at Risk'!AZ87/'Population at Risk'!AZ$5","v":4.8918336402625374E-3},{"$f":"'Population at Risk'!BA87/'Population at Risk'!BA$5","v":1.262666063051773E-2},{"$f":"'Population at Risk'!BB87/'Population at Risk'!BB$5","v":6.3967903003927335E-3},{"$f":"'Population at Risk'!BC87/'Population at Risk'!BC$5","v":0},85]
[null,"Male 45-49",{"$f":"'Population at Risk'!C88/'Population at Risk'!C$5","v":4.1667223917885065E-3},{"$f":"'Population at Risk'!D88/'Population at Risk'!D$5","v":2.5373986945145068E-3},{"$f":"'Population at Risk'!E88/'Population at Risk'!E$5","v":1.1115211671332719E-3},{"$f":"'Population at Risk'!F88/'Population at Risk'!F$5","v":4.1053828322648389E-3},{"$f":"'Population at Risk'!G88/'Population at Risk'!G$5","v":3.6238444575579644E-3},{"$f":"'Population at Risk'!H88/'Population at Risk'!H$5","v":1.7825131417470767E-2},{"$f":"'Population at Risk'!I88/'Population at Risk'!I$5","v":3.7661295510618468E-3},{"$f":"'Population at Risk'!J88/'Population at Risk'!J$5","v":8.8399059806733137E-3},{"$f":"'Population at Risk'!K88/'Population at Risk'!K$5","v":1.5560628489925505E-2},{"$f":"'Population at Risk'!L88/'Population at Risk'!L$5","v":4.6291970281579853E-3},{"$f":"'Population at Risk'!M88/'Population at Risk'!M$5","v":4.6903077902195316E-3},{"$f":"'Population at Risk'!N88/'Population at Risk'!N$5","v":1.7752449641761765E-2},{"$f":"'Population at Risk'!O88/'Population at Risk'!O$5","v":2.1127686536169279E-2},{"$f":"'Population at Risk'!P88/'Population at Risk'!P$5","v":2.8454151342980384E-3},{"$f":"'Population at Risk'!Q88/'Population at Risk'!Q$5","v":1.4686046957601477E-3},{"$f":"'Population at Risk'!R88/'Population at Risk'!R$5","v":3.3061059013131007E-3},{"$f":"'Population at Risk'!S88/'Population at Risk'!S$5","v":8.1197080311496451E-3},{"$f":"'Population at Risk'!T88/'Population at Risk'!T$5","v":7.3941521929086719E-3},{"$f":"'Population at Risk'!U88/'Population at Risk'!U$5","v":0},{"$f":"'Population at Risk'!V88/'Population at Risk'!V$5","v":8.5619546817800526E-3},{"$f":"'Population at Risk'!W88/'Population at Risk'!W$5","v":1.2239079107690856E-2},{"$f":"'Population at Risk'!X88/'Population at Risk'!X$5","v":1.2073320431443295E-2},{"$f":"'Population at Risk'!Y88/'Population at Risk'!Y$5","v":9.5417892478363714E-3},{"$f":"'Population at Risk'!Z88/'Population at Risk'!Z$5","v":2.7216416992202355E-2},{"$f":"'Population at Risk'!AA88/'Population at Risk'!AA$5","v":1.8531687279269623E-2},{"$f":"'Population at Risk'!AB88/'Population at Risk'!AB$5","v":2.2026777542847359E-3},{"$f":"'Population at Risk'!AC88/'Population at Risk'!AC$5","v":2.0742962405526661E-2},{"$f":"'Population at Risk'!AD88/'Population at Risk'!AD$5","v":3.593546093193799E-3},{"$f":"'Population at Risk'!AE88/'Population at Risk'!AE$5","v":3.968627643351849E-3},{"$f":"'Population at Risk'!AF88/'Population at Risk'!AF$5","v":2.3807115892903009E-2},{"$f":"'Population at Risk'!AG88/'Population at Risk'!AG$5","v":3.6886878156616397E-3},{"$f":"'Population at Risk'!AH88/'Population at Risk'!AH$5","v":1.4871933414699395E-2},{"$f":"'Population at Risk'!AI88/'Population at Risk'!AI$5","v":6.986220517915794E-3},{"$f":"'Population at Risk'!AJ88/'Population at Risk'!AJ$5","v":5.9094106499940164E-3},{"$f":"'Population at Risk'!AK88/'Population at Risk'!AK$5","v":6.4361181657562568E-4},{"$f":"'Population at Risk'!AL88/'Population at Risk'!AL$5","v":2.3550099149765125E-2},{"$f":"'Population at Risk'!AM88/'Population at Risk'!AM$5","v":1.852277090547879E-2},{"$f":"'Population at Risk'!AN88/'Population at Risk'!AN$5","v":0},{"$f":"'Population at Risk'!AO88/'Population at Risk'!AO$5","v":0},{"$f":"'Population at Risk'!AP88/'Population at Risk'!AP$5","v":2.6640775711171097E-3},{"$f":"'Population at Risk'!AQ88/'Population at Risk'!AQ$5","v":1.5897008365460364E-2},{"$f":"'Population at Risk'!AR88/'Population at Risk'!AR$5","v":1.1102139655428256E-2},{"$f":"'Population at Risk'!AS88/'Population at Risk'!AS$5","v":3.7661295510618468E-3},{"$f":"'Population at Risk'!AT88/'Population at Risk'!AT$5","v":0},{"$f":"'Population at Risk'!AU88/'Population at Risk'!AU$5","v":0},{"$f":"'Population at Risk'!AV88/'Population at Risk'!AV$5","v":8.6074119871890255E-3},{"$f":"'Population at Risk'!AW88/'Population at Risk'!AW$5","v":1.0882762287051069E-2},{"$f":"'Population at Risk'!AX88/'Population at Risk'!AX$5","v":6.1808367325311871E-3},{"$f":"'Population at Risk'!AY88/'Population at Risk'!AY$5","v":1.0030540904570652E-2},{"$f":"'Population at Risk'!AZ88/'Population at Risk'!AZ$5","v":8.1467056366255532E-3},{"$f":"'Population at Risk'!BA88/'Population at Risk'!BA$5","v":2.1004392274552065E-2},{"$f":"'Population at Risk'!BB88/'Population at Risk'!BB$5","v":1.02629830603389E-2},{"$f":"'Population at Risk'!BC88/'Population at Risk'!BC$5","v":0},86]
[null,"Male 50-54",{"$f":"'Population at Risk'!C89/'Population at Risk'!C$5","v":4.0935052251596347E-3},{"$f":"'Population at Risk'!D89/'Population at Risk'!D$5","v":2.4035236713683427E-3},{"$f":"'Population at Risk'!E89/'Population at Risk'!E$5","v":9.2332710708954333E-4},{"$f":"'Population at Risk'!F89/'Population at Risk'!F$5","v":4.3276959820264735E-3},{"$f":"'Population at Risk'!G89/'Population at Risk'!G$5","v":4.6949314893484952E-3},{"$f":"'Population at Risk'!H89/'Population at Risk'!H$5","v":1.9190208074302599E-2},{"$f":"'Population at Risk'!I89/'Population at Risk'!I$5","v":3.8856892193495246E-3},{"$f":"'Population at Risk'!J89/'Population at Risk'!J$5","v":9.7578962171278507E-3},{"$f":"'Population at Risk'!K89/'Population at Risk'!K$5","v":1.6622412551591009E-2},{"$f":"'Population at Risk'!L89/'Population at Risk'!L$5","v":4.9826578849877824E-3},{"$f":"'Population at Risk'!M89/'Population at Risk'!M$5","v":5.0484347397190535E-3},{"$f":"'Population at Risk'!N89/'Population at Risk'!N$5","v":1.817824640438705E-2},{"$f":"'Population at Risk'!O89/'Population at Risk'!O$5","v":2.2332624908935186E-2},{"$f":"'Population at Risk'!P89/'Population at Risk'!P$5","v":2.906937623688266E-3},{"$f":"'Population at Risk'!Q89/'Population at Risk'!Q$5","v":2.2341539520606504E-3},{"$f":"'Population at Risk'!R89/'Population at Risk'!R$5","v":4.3539427443522252E-3},{"$f":"'Population at Risk'!S89/'Population at Risk'!S$5","v":8.0081095670453389E-3},{"$f":"'Population at Risk'!T89/'Population at Risk'!T$5","v":7.6668215796319855E-3},{"$f":"'Population at Risk'!U89/'Population at Risk'!U$5","v":0},{"$f":"'Population at Risk'!V89/'Population at Risk'!V$5","v":8.6323820410896413E-3},{"$f":"'Population at Risk'!W89/'Population at Risk'!W$5","v":1.1328695993798103E-2},{"$f":"'Population at Risk'!X89/'Population at Risk'!X$5","v":1.1175266995176543E-2},{"$f":"'Population at Risk'!Y89/'Population at Risk'!Y$5","v":1.0056612947290449E-2},{"$f":"'Population at Risk'!Z89/'Population at Risk'!Z$5","v":2.7874276343185504E-2},{"$f":"'Population at Risk'!AA89/'Population at Risk'!AA$5","v":1.9115700380197068E-2},{"$f":"'Population at Risk'!AB89/'Population at Risk'!AB$5","v":2.0556606208020313E-3},{"$f":"'Population at Risk'!AC89/'Population at Risk'!AC$5","v":2.1845673049824512E-2},{"$f":"'Population at Risk'!AD89/'Population at Risk'!AD$5","v":3.968482474190984E-3},{"$f":"'Population at Risk'!AE89/'Population at Risk'!AE$5","v":4.0947335684677014E-3},{"$f":"'Population at Risk'!AF89/'Population at Risk'!AF$5","v":2.7363277211431454E-2},{"$f":"'Population at Risk'!AG89/'Population at Risk'!AG$5","v":3.8058984565331306E-3},{"$f":"'Population at Risk'!AH89/'Population at Risk'!AH$5","v":1.4603460287471467E-2},{"$f":"'Population at Risk'!AI89/'Population at Risk'!AI$5","v":7.1677050894845759E-3},{"$f":"'Population at Risk'!AJ89/'Population at Risk'!AJ$5","v":5.8329134247513759E-3},{"$f":"'Population at Risk'!AK89/'Population at Risk'!AK$5","v":4.1257167729206768E-4},{"$f":"'Population at Risk'!AL89/'Population at Risk'!AL$5","v":2.5885984854295194E-2},{"$f":"'Population at Risk'!AM89/'Population at Risk'!AM$5","v":1.8512988612948832E-2},{"$f":"'Population at Risk'!AN89/'Population at Risk'!AN$5","v":0},{"$f":"'Population at Risk'!AO89/'Population at Risk'!AO$5","v":0},{"$f":"'Population at Risk'!AP89/'Population at Risk'!AP$5","v":3.0787199946372824E-3},{"$f":"'Population at Risk'!AQ89/'Population at Risk'!AQ$5","v":1.5783019888487952E-2},{"$f":"'Population at Risk'!AR89/'Population at Risk'!AR$5","v":1.1425196509217963E-2},{"$f":"'Population at Risk'!AS89/'Population at Risk'!AS$5","v":3.8856892193495246E-3},{"$f":"'Population at Risk'!AT89/'Population at Risk'!AT$5","v":0},{"$f":"'Population at Risk'!AU89/'Population at Risk'!AU$5","v":0},{"$f":"'Population at Risk'!AV89/'Population at Risk'!AV$5","v":9.0664739598391077E-3},{"$f":"'Population at Risk'!AW89/'Population at Risk'!AW$5","v":1.0365456394241445E-2},{"$f":"'Population at Risk'!AX89/'Population at Risk'!AX$5","v":7.0861987327892756E-3},{"$f":"'Population at Risk'!AY89/'Population at Risk'!AY$5","v":9.8171696486235808E-3},{"$f":"'Population at Risk'!AZ89/'Population at Risk'!AZ$5","v":8.5012381967379605E-3},{"$f":"'Population at Risk'!BA89/'Population at Risk'!BA$5","v":2.6789077706290049E-2},{"$f":"'Population at Risk'!BB89/'Population at Risk'!BB$5","v":9.9328871139537315E-3},{"$f":"'Population at Risk'!BC89/'Population at Risk'!BC$5","v":0},87]
[null,"Male 55-59",{"$f":"'Population at Risk'!C90/'Population at Risk'!C$5","v":4.0278692164924697E-3},{"$f":"'Population at Risk'!D90/'Population at Risk'!D$5","v":2.4941516196576594E-3},{"$f":"'Population at Risk'!E90/'Population at Risk'!E$5","v":1.1525137972165675E-3},{"$f":"'Population at Risk'!F90/'Population at Risk'!F$5","v":3.7023774278987869E-3},{"$f":"'Population at Risk'!G90/'Population at Risk'!G$5","v":4.0942270756971384E-3},{"$f":"'Population at Risk'!H90/'Population at Risk'!H$5","v":2.0125360192380856E-2},{"$f":"'Population at Risk'!I90/'Population at Risk'!I$5","v":3.1701495657619344E-3},{"$f":"'Population at Risk'!J90/'Population at Risk'!J$5","v":9.9333619389622395E-3},{"$f":"'Population at Risk'!K90/'Population at Risk'!K$5","v":1.6873329399913102E-2},{"$f":"'Population at Risk'!L90/'Population at Risk'!L$5","v":4.7758210480630097E-3},{"$f":"'Population at Risk'!M90/'Population at Risk'!M$5","v":4.8388674169994464E-3},{"$f":"'Population at Risk'!N90/'Population at Risk'!N$5","v":1.8868248904129189E-2},{"$f":"'Population at Risk'!O90/'Population at Risk'!O$5","v":2.2465074383920577E-2},{"$f":"'Population at Risk'!P90/'Population at Risk'!P$5","v":2.8650936603787517E-3},{"$f":"'Population at Risk'!Q90/'Population at Risk'!Q$5","v":1.884143139888099E-3},{"$f":"'Population at Risk'!R90/'Population at Risk'!R$5","v":3.7544108122189745E-3},{"$f":"'Population at Risk'!S90/'Population at Risk'!S$5","v":7.5135971039217752E-3},{"$f":"'Population at Risk'!T90/'Population at Risk'!T$5","v":6.507544789838283E-3},{"$f":"'Population at Risk'!U90/'Population at Risk'!U$5","v":0},{"$f":"'Population at Risk'!V90/'Population at Risk'!V$5","v":7.8758346081234578E-3},{"$f":"'Population at Risk'!W90/'Population at Risk'!W$5","v":1.206824882862317E-2},{"$f":"'Population at Risk'!X90/'Population at Risk'!X$5","v":1.1904803774231637E-2},{"$f":"'Population at Risk'!Y90/'Population at Risk'!Y$5","v":9.7072744730576106E-3},{"$f":"'Population at Risk'!Z90/'Population at Risk'!Z$5","v":2.626177474819251E-2},{"$f":"'Population at Risk'!AA90/'Population at Risk'!AA$5","v":1.8346911526600059E-2},{"$f":"'Population at Risk'!AB90/'Population at Risk'!AB$5","v":2.1412446206307196E-3},{"$f":"'Population at Risk'!AC90/'Population at Risk'!AC$5","v":2.0611503715981409E-2},{"$f":"'Population at Risk'!AD90/'Population at Risk'!AD$5","v":3.9165734144415952E-3},{"$f":"'Population at Risk'!AE90/'Population at Risk'!AE$5","v":4.2652710990167403E-3},{"$f":"'Population at Risk'!AF90/'Population at Risk'!AF$5","v":2.5795046603153238E-2},{"$f":"'Population at Risk'!AG90/'Population at Risk'!AG$5","v":3.9644065776220537E-3},{"$f":"'Population at Risk'!AH90/'Population at Risk'!AH$5","v":1.4599919418706222E-2},{"$f":"'Population at Risk'!AI90/'Population at Risk'!AI$5","v":6.2049388323147051E-3},{"$f":"'Population at Risk'!AJ90/'Population at Risk'!AJ$5","v":5.5393241885702566E-3},{"$f":"'Population at Risk'!AK90/'Population at Risk'!AK$5","v":4.7977982094865839E-4},{"$f":"'Population at Risk'!AL90/'Population at Risk'!AL$5","v":2.7358182008180718E-2},{"$f":"'Population at Risk'!AM90/'Population at Risk'!AM$5","v":1.7837938351692131E-2},{"$f":"'Population at Risk'!AN90/'Population at Risk'!AN$5","v":0},{"$f":"'Population at Risk'!AO90/'Population at Risk'!AO$5","v":0},{"$f":"'Population at Risk'!AP90/'Population at Risk'!AP$5","v":2.6006893293765154E-3},{"$f":"'Population at Risk'!AQ90/'Population at Risk'!AQ$5","v":1.5814345470439698E-2},{"$f":"'Population at Risk'!AR90/'Population at Risk'!AR$5","v":1.1079036249145999E-2},{"$f":"'Population at Risk'!AS90/'Population at Risk'!AS$5","v":3.1701495657619344E-3},{"$f":"'Population at Risk'!AT90/'Population at Risk'!AT$5","v":0},{"$f":"'Population at Risk'!AU90/'Population at Risk'!AU$5","v":0},{"$f":"'Population at Risk'!AV90/'Population at Risk'!AV$5","v":1.0117691941499061E-2},{"$f":"'Population at Risk'!AW90/'Population at Risk'!AW$5","v":1.1025756971198392E-2},{"$f":"'Population at Risk'!AX90/'Population at Risk'!AX$5","v":7.2364411614952197E-3},{"$f":"'Population at Risk'!AY90/'Population at Risk'!AY$5","v":1.009771926890872E-2},{"$f":"'Population at Risk'!AZ90/'Population at Risk'!AZ$5","v":8.4065428394116907E-3},{"$f":"'Population at Risk'!BA90/'Population at Risk'!BA$5","v":2.3690600740820997E-2},{"$f":"'Population at Risk'!BB90/'Population at Risk'!BB$5","v":8.7781434135792962E-3},{"$f":"'Population at Risk'!BC90/'Population at Risk'!BC$5","v":0},88]
[null,"Male 60-64",{"$f":"'Population at Risk'!C91/'Population at Risk'!C$5","v":3.6265157002583447E-3},{"$f":"'Population at Risk'!D91/'Population at Risk'!D$5","v":2.0348790767905902E-3},{"$f":"'Population at Risk'!E91/'Population at Risk'!E$5","v":6.3958183252128191E-4},{"$f":"'Population at Risk'!F91/'Population at Risk'!F$5","v":3.1278705856386301E-3},{"$f":"'Population at Risk'!G91/'Population at Risk'!G$5","v":3.9788967355366559E-3},{"$f":"'Population at Risk'!H91/'Population at Risk'!H$5","v":1.7201617735218357E-2},{"$f":"'Population at Risk'!I91/'Population at Risk'!I$5","v":2.4781879854179588E-3},{"$f":"'Population at Risk'!J91/'Population at Risk'!J$5","v":7.7489985641781599E-3},{"$f":"'Population at Risk'!K91/'Population at Risk'!K$5","v":1.3128081051801549E-2},{"$f":"'Population at Risk'!L91/'Population at Risk'!L$5","v":3.9532503277025432E-3},{"$f":"'Population at Risk'!M91/'Population at Risk'!M$5","v":4.005437810472549E-3},{"$f":"'Population at Risk'!N91/'Population at Risk'!N$5","v":1.521215830650665E-2},{"$f":"'Population at Risk'!O91/'Population at Risk'!O$5","v":1.8572786970883708E-2},{"$f":"'Population at Risk'!P91/'Population at Risk'!P$5","v":2.6497976049745676E-3},{"$f":"'Population at Risk'!Q91/'Population at Risk'!Q$5","v":1.4635754747345056E-3},{"$f":"'Population at Risk'!R91/'Population at Risk'!R$5","v":2.8401242413677217E-3},{"$f":"'Population at Risk'!S91/'Population at Risk'!S$5","v":6.2881809154438474E-3},{"$f":"'Population at Risk'!T91/'Population at Risk'!T$5","v":5.5611184244371741E-3},{"$f":"'Population at Risk'!U91/'Population at Risk'!U$5","v":0},{"$f":"'Population at Risk'!V91/'Population at Risk'!V$5","v":6.749167759093417E-3},{"$f":"'Population at Risk'!W91/'Population at Risk'!W$5","v":1.0092717006283282E-2},{"$f":"'Population at Risk'!X91/'Population at Risk'!X$5","v":9.9560273586404655E-3},{"$f":"'Population at Risk'!Y91/'Population at Risk'!Y$5","v":7.9245628079860318E-3},{"$f":"'Population at Risk'!Z91/'Population at Risk'!Z$5","v":2.1164082782936765E-2},{"$f":"'Population at Risk'!AA91/'Population at Risk'!AA$5","v":1.4897322489020964E-2},{"$f":"'Population at Risk'!AB91/'Population at Risk'!AB$5","v":1.7413234463494957E-3},{"$f":"'Population at Risk'!AC91/'Population at Risk'!AC$5","v":1.6624577532813281E-2},{"$f":"'Population at Risk'!AD91/'Population at Risk'!AD$5","v":3.3817802574495704E-3},{"$f":"'Population at Risk'!AE91/'Population at Risk'!AE$5","v":3.4984807890811463E-3},{"$f":"'Population at Risk'!AF91/'Population at Risk'!AF$5","v":2.2103488822613083E-2},{"$f":"'Population at Risk'!AG91/'Population at Risk'!AG$5","v":3.2517042715326954E-3},{"$f":"'Population at Risk'!AH91/'Population at Risk'!AH$5","v":1.2037971705995921E-2},{"$f":"'Population at Risk'!AI91/'Population at Risk'!AI$5","v":5.2177894726282755E-3},{"$f":"'Population at Risk'!AJ91/'Population at Risk'!AJ$5","v":5.0245171078481142E-3},{"$f":"'Population at Risk'!AK91/'Population at Risk'!AK$5","v":3.5539245996196912E-4},{"$f":"'Population at Risk'!AL91/'Population at Risk'!AL$5","v":2.3166202506927223E-2},{"$f":"'Population at Risk'!AM91/'Population at Risk'!AM$5","v":1.4335656390111008E-2},{"$f":"'Population at Risk'!AN91/'Population at Risk'!AN$5","v":0},{"$f":"'Population at Risk'!AO91/'Population at Risk'!AO$5","v":0},{"$f":"'Population at Risk'!AP91/'Population at Risk'!AP$5","v":2.1653808150173563E-3},{"$f":"'Population at Risk'!AQ91/'Population at Risk'!AQ$5","v":1.1291914735907989E-2},{"$f":"'Population at Risk'!AR91/'Population at Risk'!AR$5","v":9.1155235543032165E-3},{"$f":"'Population at Risk'!AS91/'Population at Risk'!AS$5","v":2.4781879854179588E-3},{"$f":"'Population at Risk'!AT91/'Population at Risk'!AT$5","v":0},{"$f":"'Population at Risk'!AU91/'Population at Risk'!AU$5","v":0},{"$f":"'Population at Risk'!AV91/'Population at Risk'!AV$5","v":9.4225833348311888E-3},{"$f":"'Population at Risk'!AW91/'Population at Risk'!AW$5","v":9.4588292807684018E-3},{"$f":"'Population at Risk'!AX91/'Population at Risk'!AX$5","v":5.6616715823097309E-3},{"$f":"'Population at Risk'!AY91/'Population at Risk'!AY$5","v":8.3385582720276793E-3},{"$f":"'Population at Risk'!AZ91/'Population at Risk'!AZ$5","v":6.838945962110766E-3},{"$f":"'Population at Risk'!BA91/'Population at Risk'!BA$5","v":2.1113200841547639E-2},{"$f":"'Population at Risk'!BB91/'Population at Risk'!BB$5","v":6.9902025465189716E-3},{"$f":"'Population at Risk'!BC91/'Population at Risk'!BC$5","v":0},89]
[null,"Male 65-69",{"$f":"'Population at Risk'!C92/'Population at Risk'!C$5","v":2.5137476543122183E-3},{"$f":"'Population at Risk'!D92/'Population at Risk'!D$5","v":1.4974525032261344E-3},{"$f":"'Population at Risk'!E92/'Population at Risk'!E$5","v":6.0759624729215991E-4},{"$f":"'Population at Risk'!F92/'Population at Risk'!F$5","v":2.6377883263937305E-3},{"$f":"'Population at Risk'!G92/'Population at Risk'!G$5","v":2.6502192807127739E-3},{"$f":"'Population at Risk'!H92/'Population at Risk'!H$5","v":1.3328517875706979E-2},{"$f":"'Population at Risk'!I92/'Population at Risk'!I$5","v":2.5949972275831823E-3},{"$f":"'Population at Risk'!J92/'Population at Risk'!J$5","v":6.1003804535632667E-3},{"$f":"'Population at Risk'!K92/'Population at Risk'!K$5","v":1.0712239970232979E-2},{"$f":"'Population at Risk'!L92/'Population at Risk'!L$5","v":3.6725331934788401E-3},{"$f":"'Population at Risk'!M92/'Population at Risk'!M$5","v":3.7210148849654346E-3},{"$f":"'Population at Risk'!N92/'Population at Risk'!N$5","v":1.1658832089296722E-2},{"$f":"'Population at Risk'!O92/'Population at Risk'!O$5","v":1.5605656487393222E-2},{"$f":"'Population at Risk'!P92/'Population at Risk'!P$5","v":1.6958593014179625E-3},{"$f":"'Population at Risk'!Q92/'Population at Risk'!Q$5","v":1.3699686240634069E-3},{"$f":"'Population at Risk'!R92/'Population at Risk'!R$5","v":2.133127268706706E-3},{"$f":"'Population at Risk'!S92/'Population at Risk'!S$5","v":4.7443224186605928E-3},{"$f":"'Population at Risk'!T92/'Population at Risk'!T$5","v":3.6595274483606547E-3},{"$f":"'Population at Risk'!U92/'Population at Risk'!U$5","v":0},{"$f":"'Population at Risk'!V92/'Population at Risk'!V$5","v":5.6252447130406219E-3},{"$f":"'Population at Risk'!W92/'Population at Risk'!W$5","v":7.8594498934334497E-3},{"$f":"'Population at Risk'!X92/'Population at Risk'!X$5","v":7.7530062632463585E-3},{"$f":"'Population at Risk'!Y92/'Population at Risk'!Y$5","v":6.4200013728236017E-3},{"$f":"'Population at Risk'!Z92/'Population at Risk'!Z$5","v":1.5203889912306409E-2},{"$f":"'Population at Risk'!AA92/'Population at Risk'!AA$5","v":1.1036435488719624E-2},{"$f":"'Population at Risk'!AB92/'Population at Risk'!AB$5","v":1.2830982276078012E-3},{"$f":"'Population at Risk'!AC92/'Population at Risk'!AC$5","v":1.2021012860076031E-2},{"$f":"'Population at Risk'!AD92/'Population at Risk'!AD$5","v":2.4392418308756924E-3},{"$f":"'Population at Risk'!AE92/'Population at Risk'!AE$5","v":2.6147176154979533E-3},{"$f":"'Population at Risk'!AF92/'Population at Risk'!AF$5","v":1.8080732685784535E-2},{"$f":"'Population at Risk'!AG92/'Population at Risk'!AG$5","v":2.4302801563759768E-3},{"$f":"'Population at Risk'!AH92/'Population at Risk'!AH$5","v":9.4024921031069589E-3},{"$f":"'Population at Risk'!AI92/'Population at Risk'!AI$5","v":3.7473802095080977E-3},{"$f":"'Population at Risk'!AJ92/'Population at Risk'!AJ$5","v":3.3704967840658124E-3},{"$f":"'Population at Risk'!AK92/'Population at Risk'!AK$5","v":2.7222323524481618E-4},{"$f":"'Population at Risk'!AL92/'Population at Risk'!AL$5","v":1.7670707369205885E-2},{"$f":"'Population at Risk'!AM92/'Population at Risk'!AM$5","v":1.1325199313340317E-2},{"$f":"'Population at Risk'!AN92/'Population at Risk'!AN$5","v":0},{"$f":"'Population at Risk'!AO92/'Population at Risk'!AO$5","v":0},{"$f":"'Population at Risk'!AP92/'Population at Risk'!AP$5","v":1.4489446879223462E-3},{"$f":"'Population at Risk'!AQ92/'Population at Risk'!AQ$5","v":8.1834842520437275E-3},{"$f":"'Population at Risk'!AR92/'Population at Risk'!AR$5","v":6.8686347080949735E-3},{"$f":"'Population at Risk'!AS92/'Population at Risk'!AS$5","v":2.5949972275831823E-3},{"$f":"'Population at Risk'!AT92/'Population at Risk'!AT$5","v":0},{"$f":"'Population at Risk'!AU92/'Population at Risk'!AU$5","v":0},{"$f":"'Population at Risk'!AV92/'Population at Risk'!AV$5","v":6.5387213741570265E-3},{"$f":"'Population at Risk'!AW92/'Population at Risk'!AW$5","v":7.2614263890503428E-3},{"$f":"'Population at Risk'!AX92/'Population at Risk'!AX$5","v":4.2777711024022903E-3},{"$f":"'Population at Risk'!AY92/'Population at Risk'!AY$5","v":6.4381956367690132E-3},{"$f":"'Population at Risk'!AZ92/'Population at Risk'!AZ$5","v":5.2260474460053396E-3},{"$f":"'Population at Risk'!BA92/'Population at Risk'!BA$5","v":1.4148682269231053E-2},{"$f":"'Population at Risk'!BB92/'Population at Risk'!BB$5","v":5.9835325967019393E-3},{"$f":"'Population at Risk'!BC92/'Population at Risk'!BC$5","v":0},90]
[null,"Male 70-74",{"$f":"'Population at Risk'!C93/'Population at Risk'!C$5","v":1.4620187506689454E-3},{"$f":"'Population at Risk'!D93/'Population at Risk'!D$5","v":8.6495451449885013E-4},{"$f":"'Population at Risk'!E93/'Population at Risk'!E$5","v":3.4209200477793879E-4},{"$f":"'Population at Risk'!F93/'Population at Risk'!F$5","v":1.7370801173812369E-3},{"$f":"'Population at Risk'!G93/'Population at Risk'!G$5","v":2.4177439052116539E-3},{"$f":"'Population at Risk'!H93/'Population at Risk'!H$5","v":9.8847448936460903E-3},{"$f":"'Population at Risk'!I93/'Population at Risk'!I$5","v":1.8035230731703118E-3},{"$f":"'Population at Risk'!J93/'Population at Risk'!J$5","v":4.3784988739284736E-3},{"$f":"'Population at Risk'!K93/'Population at Risk'!K$5","v":7.7878302454216022E-3},{"$f":"'Population at Risk'!L93/'Population at Risk'!L$5","v":2.2371765545181072E-3},{"$f":"'Population at Risk'!M93/'Population at Risk'!M$5","v":2.2667098760166802E-3},{"$f":"'Population at Risk'!N93/'Population at Risk'!N$5","v":8.2938846163696199E-3},{"$f":"'Population at Risk'!O93/'Population at Risk'!O$5","v":1.0704706516145763E-2},{"$f":"'Population at Risk'!P93/'Population at Risk'!P$5","v":1.1750836104313443E-3},{"$f":"'Population at Risk'!Q93/'Population at Risk'!Q$5","v":8.6809893009958468E-4},{"$f":"'Population at Risk'!R93/'Population at Risk'!R$5","v":1.364574061599143E-3},{"$f":"'Population at Risk'!S93/'Population at Risk'!S$5","v":3.4890360336514276E-3},{"$f":"'Population at Risk'!T93/'Population at Risk'!T$5","v":2.4898154785650117E-3},{"$f":"'Population at Risk'!U93/'Population at Risk'!U$5","v":0},{"$f":"'Population at Risk'!V93/'Population at Risk'!V$5","v":3.5463499277864794E-3},{"$f":"'Population at Risk'!W93/'Population at Risk'!W$5","v":6.0085071017013034E-3},{"$f":"'Population at Risk'!X93/'Population at Risk'!X$5","v":5.9271315198753593E-3},{"$f":"'Population at Risk'!Y93/'Population at Risk'!Y$5","v":4.3223268736336112E-3},{"$f":"'Population at Risk'!Z93/'Population at Risk'!Z$5","v":1.1016335587706269E-2},{"$f":"'Population at Risk'!AA93/'Population at Risk'!AA$5","v":7.9529399723864674E-3},{"$f":"'Population at Risk'!AB93/'Population at Risk'!AB$5","v":7.5015341404644571E-4},{"$f":"'Population at Risk'!AC93/'Population at Risk'!AC$5","v":8.6409577758960222E-3},{"$f":"'Population at Risk'!AD93/'Population at Risk'!AD$5","v":1.7713038598560057E-3},{"$f":"'Population at Risk'!AE93/'Population at Risk'!AE$5","v":1.6937702780196102E-3},{"$f":"'Population at Risk'!AF93/'Population at Risk'!AF$5","v":1.2460545838669504E-2},{"$f":"'Population at Risk'!AG93/'Population at Risk'!AG$5","v":1.5742947811006943E-3},{"$f":"'Population at Risk'!AH93/'Population at Risk'!AH$5","v":6.8107658286094309E-3},{"$f":"'Population at Risk'!AI93/'Population at Risk'!AI$5","v":2.676932199943366E-3},{"$f":"'Population at Risk'!AJ93/'Population at Risk'!AJ$5","v":2.5237217299409042E-3},{"$f":"'Population at Risk'!AK93/'Population at Risk'!AK$5","v":2.1491308045643384E-4},{"$f":"'Population at Risk'!AL93/'Population at Risk'!AL$5","v":1.3555448673155926E-2},{"$f":"'Population at Risk'!AM93/'Population at Risk'!AM$5","v":7.9790211885138566E-3},{"$f":"'Population at Risk'!AN93/'Population at Risk'!AN$5","v":0},{"$f":"'Population at Risk'!AO93/'Population at Risk'!AO$5","v":0},{"$f":"'Population at Risk'!AP93/'Population at Risk'!AP$5","v":1.070959117159995E-3},{"$f":"'Population at Risk'!AQ93/'Population at Risk'!AQ$5","v":5.8616584875103911E-3},{"$f":"'Population at Risk'!AR93/'Population at Risk'!AR$5","v":4.931919895615736E-3},{"$f":"'Population at Risk'!AS93/'Population at Risk'!AS$5","v":1.8035230731703118E-3},{"$f":"'Population at Risk'!AT93/'Population at Risk'!AT$5","v":0},{"$f":"'Population at Risk'!AU93/'Population at Risk'!AU$5","v":0},{"$f":"'Population at Risk'!AV93/'Population at Risk'!AV$5","v":5.1313394402908476E-3},{"$f":"'Population at Risk'!AW93/'Population at Risk'!AW$5","v":5.4817473202888704E-3},{"$f":"'Population at Risk'!AX93/'Population at Risk'!AX$5","v":3.0231597896835977E-3},{"$f":"'Population at Risk'!AY93/'Population at Risk'!AY$5","v":4.7564553942730731E-3},{"$f":"'Population at Risk'!AZ93/'Population at Risk'!AZ$5","v":3.6968719088596672E-3},{"$f":"'Population at Risk'!BA93/'Population at Risk'!BA$5","v":1.035607343574072E-2},{"$f":"'Population at Risk'!BB93/'Population at Risk'!BB$5","v":4.6721923614305421E-3},{"$f":"'Population at Risk'!BC93/'Population at Risk'!BC$5","v":0},91]
[null,"Male 75-79",{"$f":"'Population at Risk'!C94/'Population at Risk'!C$5","v":3.9091582755314166E-4},{"$f":"'Population at Risk'!D94/'Population at Risk'!D$5","v":2.463543139500134E-4},{"$f":"'Population at Risk'!E94/'Population at Risk'!E$5","v":1.199583482479482E-4},{"$f":"'Population at Risk'!F94/'Population at Risk'!F$5","v":6.3588747921004298E-4},{"$f":"'Population at Risk'!G94/'Population at Risk'!G$5","v":5.6501837320345276E-4},{"$f":"'Population at Risk'!H94/'Population at Risk'!H$5","v":3.122187360446916E-3},{"$f":"'Population at Risk'!I94/'Population at Risk'!I$5","v":3.8367555038544299E-4},{"$f":"'Population at Risk'!J94/'Population at Risk'!J$5","v":1.4188928213650978E-3},{"$f":"'Population at Risk'!K94/'Population at Risk'!K$5","v":2.3434524302946846E-3},{"$f":"'Population at Risk'!L94/'Population at Risk'!L$5","v":7.3379926432645941E-4},{"$f":"'Population at Risk'!M94/'Population at Risk'!M$5","v":7.4348626446286005E-4},{"$f":"'Population at Risk'!N94/'Population at Risk'!N$5","v":2.5494845102357715E-3},{"$f":"'Population at Risk'!O94/'Population at Risk'!O$5","v":3.6860587307226528E-3},{"$f":"'Population at Risk'!P94/'Population at Risk'!P$5","v":3.6240590185639907E-4},{"$f":"'Population at Risk'!Q94/'Population at Risk'!Q$5","v":3.3516097422505808E-4},{"$f":"'Population at Risk'!R94/'Population at Risk'!R$5","v":6.4170229877108141E-4},{"$f":"'Population at Risk'!S94/'Population at Risk'!S$5","v":1.0277498399605541E-3},{"$f":"'Population at Risk'!T94/'Population at Risk'!T$5","v":8.1790339788894014E-4},{"$f":"'Population at Risk'!U94/'Population at Risk'!U$5","v":0},{"$f":"'Population at Risk'!V94/'Population at Risk'!V$5","v":1.2383914909198288E-3},{"$f":"'Population at Risk'!W94/'Population at Risk'!W$5","v":1.6334832012266588E-3},{"$f":"'Population at Risk'!X94/'Population at Risk'!X$5","v":1.6113602938799927E-3},{"$f":"'Population at Risk'!Y94/'Population at Risk'!Y$5","v":1.452536686718292E-3},{"$f":"'Population at Risk'!Z94/'Population at Risk'!Z$5","v":3.3470758634183365E-3},{"$f":"'Population at Risk'!AA94/'Population at Risk'!AA$5","v":2.4449368868449373E-3},{"$f":"'Population at Risk'!AB94/'Population at Risk'!AB$5","v":2.1043967874077364E-4},{"$f":"'Population at Risk'!AC94/'Population at Risk'!AC$5","v":2.6729200170183616E-3},{"$f":"'Population at Risk'!AD94/'Population at Risk'!AD$5","v":4.8119347324715808E-4},{"$f":"'Population at Risk'!AE94/'Population at Risk'!AE$5","v":4.9827200636158619E-4},{"$f":"'Population at Risk'!AF94/'Population at Risk'!AF$5","v":3.7893266969421689E-3},{"$f":"'Population at Risk'!AG94/'Population at Risk'!AG$5","v":4.6312479877778034E-4},{"$f":"'Population at Risk'!AH94/'Population at Risk'!AH$5","v":2.0667660226559217E-3},{"$f":"'Population at Risk'!AI94/'Population at Risk'!AI$5","v":8.6195743904282E-4},{"$f":"'Population at Risk'!AJ94/'Population at Risk'!AJ$5","v":7.8017176810160497E-4},{"$f":"'Population at Risk'!AK94/'Population at Risk'!AK$5","v":4.0625993272295439E-5},{"$f":"'Population at Risk'!AL94/'Population at Risk'!AL$5","v":4.0929988574867123E-3},{"$f":"'Population at Risk'!AM94/'Population at Risk'!AM$5","v":2.5423283152220745E-3},{"$f":"'Population at Risk'!AN94/'Population at Risk'!AN$5","v":0},{"$f":"'Population at Risk'!AO94/'Population at Risk'!AO$5","v":0},{"$f":"'Population at Risk'!AP94/'Population at Risk'!AP$5","v":3.4997057104778389E-4},{"$f":"'Population at Risk'!AQ94/'Population at Risk'!AQ$5","v":2.0937938660956631E-3},{"$f":"'Population at Risk'!AR94/'Population at Risk'!AR$5","v":1.5141782716303303E-3},{"$f":"'Population at Risk'!AS94/'Population at Risk'!AS$5","v":3.8367555038544299E-4},{"$f":"'Population at Risk'!AT94/'Population at Risk'!AT$5","v":0},{"$f":"'Population at Risk'!AU94/'Population at Risk'!AU$5","v":0},{"$f":"'Population at Risk'!AV94/'Population at Risk'!AV$5","v":1.5538840432788381E-3},{"$f":"'Population at Risk'!AW94/'Population at Risk'!AW$5","v":1.5438178096481212E-3},{"$f":"'Population at Risk'!AX94/'Population at Risk'!AX$5","v":1.0654049672132624E-3},{"$f":"'Population at Risk'!AY94/'Population at Risk'!AY$5","v":1.3845285355607029E-3},{"$f":"'Population at Risk'!AZ94/'Population at Risk'!AZ$5","v":1.1698856355401019E-3},{"$f":"'Population at Risk'!BA94/'Population at Risk'!BA$5","v":2.8060040328132603E-3},{"$f":"'Population at Risk'!BB94/'Population at Risk'!BB$5","v":1.4352678759277503E-3},{"$f":"'Population at Risk'!BC94/'Population at Risk'!BC$5","v":0},92]
[null,"Male 80-84",{"$f":"'Population at Risk'!C95/'Population at Risk'!C$5","v":2.8089760063698807E-4},{"$f":"'Population at Risk'!D95/'Population at Risk'!D$5","v":1.7737510604400966E-4},{"$f":"'Population at Risk'!E95/'Population at Risk'!E$5","v":8.6866390110583178E-5},{"$f":"'Population at Risk'!F95/'Population at Risk'!F$5","v":3.5964127922535216E-4},{"$f":"'Population at Risk'!G95/'Population at Risk'!G$5","v":4.3318075278931376E-4},{"$f":"'Population at Risk'!H95/'Population at Risk'!H$5","v":2.0942136946953131E-3},{"$f":"'Population at Risk'!I95/'Population at Risk'!I$5","v":2.9432644961075078E-4},{"$f":"'Population at Risk'!J95/'Population at Risk'!J$5","v":6.7756117874176014E-4},{"$f":"'Population at Risk'!K95/'Population at Risk'!K$5","v":1.0429650926036783E-3},{"$f":"'Population at Risk'!L95/'Population at Risk'!L$5","v":4.6514051727797421E-4},{"$f":"'Population at Risk'!M95/'Population at Risk'!M$5","v":4.7128091080705882E-4},{"$f":"'Population at Risk'!N95/'Population at Risk'!N$5","v":1.6203049146377947E-3},{"$f":"'Population at Risk'!O95/'Population at Risk'!O$5","v":2.4496327312834008E-3},{"$f":"'Population at Risk'!P95/'Population at Risk'!P$5","v":2.3258886238545012E-4},{"$f":"'Population at Risk'!Q95/'Population at Risk'!Q$5","v":2.1428324581602073E-4},{"$f":"'Population at Risk'!R95/'Population at Risk'!R$5","v":3.0496742911892974E-4},{"$f":"'Population at Risk'!S95/'Population at Risk'!S$5","v":7.0989351094212006E-4},{"$f":"'Population at Risk'!T95/'Population at Risk'!T$5","v":5.5955873841781283E-4},{"$f":"'Population at Risk'!U95/'Population at Risk'!U$5","v":0},{"$f":"'Population at Risk'!V95/'Population at Risk'!V$5","v":9.0579491907278914E-4},{"$f":"'Population at Risk'!W95/'Population at Risk'!W$5","v":1.1842753208893275E-3},{"$f":"'Population at Risk'!X95/'Population at Risk'!X$5","v":1.1682362130629946E-3},{"$f":"'Population at Risk'!Y95/'Population at Risk'!Y$5","v":8.76459813798856E-4},{"$f":"'Population at Risk'!Z95/'Population at Risk'!Z$5","v":2.2872863733109307E-3},{"$f":"'Population at Risk'!AA95/'Population at Risk'!AA$5","v":1.6168342697761475E-3},{"$f":"'Population at Risk'!AB95/'Population at Risk'!AB$5","v":1.4966615082856748E-4},{"$f":"'Population at Risk'!AC95/'Population at Risk'!AC$5","v":1.7786050883081123E-3},{"$f":"'Population at Risk'!AD95/'Population at Risk'!AD$5","v":3.356367286706156E-4},{"$f":"'Population at Risk'!AE95/'Population at Risk'!AE$5","v":3.313117529210547E-4},{"$f":"'Population at Risk'!AF95/'Population at Risk'!AF$5","v":2.4338560800517884E-3},{"$f":"'Population at Risk'!AG95/'Population at Risk'!AG$5","v":3.0794162012972827E-4},{"$f":"'Population at Risk'!AH95/'Population at Risk'!AH$5","v":1.3486817675084956E-3},{"$f":"'Population at Risk'!AI95/'Population at Risk'!AI$5","v":5.6915510287941929E-4},{"$f":"'Population at Risk'!AJ95/'Population at Risk'!AJ$5","v":4.9769578309929975E-4},{"$f":"'Population at Risk'!AK95/'Population at Risk'!AK$5","v":1.7411139973840905E-5},{"$f":"'Population at Risk'!AL95/'Population at Risk'!AL$5","v":2.666214044489584E-3},{"$f":"'Population at Risk'!AM95/'Population at Risk'!AM$5","v":1.668510463982011E-3},{"$f":"'Population at Risk'!AN95/'Population at Risk'!AN$5","v":0},{"$f":"'Population at Risk'!AO95/'Population at Risk'!AO$5","v":0},{"$f":"'Population at Risk'!AP95/'Population at Risk'!AP$5","v":2.3331371403185591E-4},{"$f":"'Population at Risk'!AQ95/'Population at Risk'!AQ$5","v":1.3105484434324844E-3},{"$f":"'Population at Risk'!AR95/'Population at Risk'!AR$5","v":1.0050992178221743E-3},{"$f":"'Population at Risk'!AS95/'Population at Risk'!AS$5","v":2.9432644961075078E-4},{"$f":"'Population at Risk'!AT95/'Population at Risk'!AT$5","v":0},{"$f":"'Population at Risk'!AU95/'Population at Risk'!AU$5","v":0},{"$f":"'Population at Risk'!AV95/'Population at Risk'!AV$5","v":1.1452327202087541E-3},{"$f":"'Population at Risk'!AW95/'Population at Risk'!AW$5","v":9.9804080866018391E-4},{"$f":"'Population at Risk'!AX95/'Population at Risk'!AX$5","v":5.4494851771253068E-4},{"$f":"'Population at Risk'!AY95/'Population at Risk'!AY$5","v":9.416559646746544E-4},{"$f":"'Population at Risk'!AZ95/'Population at Risk'!AZ$5","v":7.3615252576503026E-4},{"$f":"'Population at Risk'!BA95/'Population at Risk'!BA$5","v":1.8659926818208185E-3},{"$f":"'Population at Risk'!BB95/'Population at Risk'!BB$5","v":9.0056023587623533E-4},{"$f":"'Population at Risk'!BC95/'Population at Risk'!BC$5","v":0},93]
[null,"Male 85-89",{"$f":"'Population at Risk'!C96/'Population at Risk'!C$5","v":1.4513042699577716E-4},{"$f":"'Population at Risk'!D96/'Population at Risk'!D$5","v":9.0877369146004946E-5},{"$f":"'Population at Risk'!E96/'Population at Risk'!E$5","v":4.3433195055291589E-5},{"$f":"'Population at Risk'!F96/'Population at Risk'!F$5","v":1.9285112074402943E-4},{"$f":"'Population at Risk'!G96/'Population at Risk'!G$5","v":2.4484129505482951E-4},{"$f":"'Population at Risk'!H96/'Population at Risk'!H$5","v":9.8274978197911275E-4},{"$f":"'Population at Risk'!I96/'Population at Risk'!I$5","v":1.9972151937872377E-4},{"$f":"'Population at Risk'!J96/'Population at Risk'!J$5","v":4.1450801523025332E-4},{"$f":"'Population at Risk'!K96/'Population at Risk'!K$5","v":7.0818617399015201E-4},{"$f":"'Population at Risk'!L96/'Population at Risk'!L$5","v":2.686587470484851E-4},{"$f":"'Population at Risk'!M96/'Population at Risk'!M$5","v":2.7220535365580123E-4},{"$f":"'Population at Risk'!N96/'Population at Risk'!N$5","v":8.6006706369399512E-4},{"$f":"'Population at Risk'!O96/'Population at Risk'!O$5","v":1.2074019149453726E-3},{"$f":"'Population at Risk'!P96/'Population at Risk'!P$5","v":1.2440799615965936E-4},{"$f":"'Population at Risk'!Q96/'Population at Risk'!Q$5","v":5.4944422004107882E-5},{"$f":"'Population at Risk'!R96/'Population at Risk'!R$5","v":1.5248371455946487E-4},{"$f":"'Population at Risk'!S96/'Population at Risk'!S$5","v":3.4028309850141724E-4},{"$f":"'Population at Risk'!T96/'Population at Risk'!T$5","v":2.6398537256001653E-4},{"$f":"'Population at Risk'!U96/'Population at Risk'!U$5","v":0},{"$f":"'Population at Risk'!V96/'Population at Risk'!V$5","v":3.6797918587332058E-4},{"$f":"'Population at Risk'!W96/'Population at Risk'!W$5","v":5.6681867082565053E-4},{"$f":"'Population at Risk'!X96/'Population at Risk'!X$5","v":5.5914202197635736E-4},{"$f":"'Population at Risk'!Y96/'Population at Risk'!Y$5","v":4.2794281988300952E-4},{"$f":"'Population at Risk'!Z96/'Population at Risk'!Z$5","v":1.0941391971270927E-3},{"$f":"'Population at Risk'!AA96/'Population at Risk'!AA$5","v":7.6642143956921272E-4},{"$f":"'Population at Risk'!AB96/'Population at Risk'!AB$5","v":7.8914879527790127E-5},{"$f":"'Population at Risk'!AC96/'Population at Risk'!AC$5","v":8.5316061340676879E-4},{"$f":"'Population at Risk'!AD96/'Population at Risk'!AD$5","v":1.7809295807012256E-4},{"$f":"'Population at Risk'!AE96/'Population at Risk'!AE$5","v":1.6956900740053982E-4},{"$f":"'Population at Risk'!AF96/'Population at Risk'!AF$5","v":1.0559190993455452E-3},{"$f":"'Population at Risk'!AG96/'Population at Risk'!AG$5","v":1.5760791581442786E-4},{"$f":"'Population at Risk'!AH96/'Population at Risk'!AH$5","v":6.2280166399396807E-4},{"$f":"'Population at Risk'!AI96/'Population at Risk'!AI$5","v":2.6582504226969412E-4},{"$f":"'Population at Risk'!AJ96/'Population at Risk'!AJ$5","v":3.7663464666974037E-4},{"$f":"'Population at Risk'!AK96/'Population at Risk'!AK$5","v":2.3214853298454537E-5},{"$f":"'Population at Risk'!AL96/'Population at Risk'!AL$5","v":1.2058013066070009E-3},{"$f":"'Population at Risk'!AM96/'Population at Risk'!AM$5","v":7.2072771588501305E-4},{"$f":"'Population at Risk'!AN96/'Population at Risk'!AN$5","v":0},{"$f":"'Population at Risk'!AO96/'Population at Risk'!AO$5","v":0},{"$f":"'Population at Risk'!AP96/'Population at Risk'!AP$5","v":1.1665685701592795E-4},{"$f":"'Population at Risk'!AQ96/'Population at Risk'!AQ$5","v":6.9690340756645044E-4},{"$f":"'Population at Risk'!AR96/'Population at Risk'!AR$5","v":4.8415833911767578E-4},{"$f":"'Population at Risk'!AS96/'Population at Risk'!AS$5","v":1.9972151937872377E-4},{"$f":"'Population at Risk'!AT96/'Population at Risk'!AT$5","v":0},{"$f":"'Population at Risk'!AU96/'Population at Risk'!AU$5","v":0},{"$f":"'Population at Risk'!AV96/'Population at Risk'!AV$5","v":5.347782746349249E-4},{"$f":"'Population at Risk'!AW96/'Population at Risk'!AW$5","v":5.1007196354012818E-4},{"$f":"'Population at Risk'!AX96/'Population at Risk'!AX$5","v":3.0002783559453944E-4},{"$f":"'Population at Risk'!AY96/'Population at Risk'!AY$5","v":4.708279823373272E-4},{"$f":"'Population at Risk'!AZ96/'Population at Risk'!AZ$5","v":3.8863547756604299E-4},{"$f":"'Population at Risk'!BA96/'Population at Risk'!BA$5","v":8.4180120984397812E-4},{"$f":"'Population at Risk'!BB96/'Population at Risk'!BB$5","v":3.6585259582472062E-4},{"$f":"'Population at Risk'!BC96/'Population at Risk'!BC$5","v":0},94]
[null,"Male 90+",{"$f":"'Population at Risk'!C97/'Population at Risk'!C$5","v":5.8520333466039167E-5},{"$f":"'Population at Risk'!D97/'Population at Risk'!D$5","v":4.379632248000239E-5},{"$f":"'Population at Risk'!E97/'Population at Risk'!E$5","v":3.1023710753779702E-5},{"$f":"'Population at Risk'!F97/'Population at Risk'!F$5","v":5.7334116977954697E-5},{"$f":"'Population at Risk'!G97/'Population at Risk'!G$5","v":7.5335783093793705E-5},{"$f":"'Population at Risk'!H97/'Population at Risk'!H$5","v":3.7396673119559164E-4},{"$f":"'Population at Risk'!I97/'Population at Risk'!I$5","v":7.3581612402687696E-5},{"$f":"'Population at Risk'!J97/'Population at Risk'!J$5","v":1.7935442966693653E-4},{"$f":"'Population at Risk'!K97/'Population at Risk'!K$5","v":3.7340725537662558E-4},{"$f":"'Population at Risk'!L97/'Population at Risk'!L$5","v":1.0425563318299422E-4},{"$f":"'Population at Risk'!M97/'Population at Risk'!M$5","v":1.0563192828434077E-4},{"$f":"'Population at Risk'!N97/'Population at Risk'!N$5","v":3.4940224462568555E-4},{"$f":"'Population at Risk'!O97/'Population at Risk'!O$5","v":4.7019016880084228E-4},{"$f":"'Population at Risk'!P97/'Population at Risk'!P$5","v":4.868138980160584E-5},{"$f":"'Population at Risk'!Q97/'Population at Risk'!Q$5","v":3.8461095402875517E-5},{"$f":"'Population at Risk'!R97/'Population at Risk'!R$5","v":6.9888369173088074E-5},{"$f":"'Population at Risk'!S97/'Population at Risk'!S$5","v":1.6000637458051428E-4},{"$f":"'Population at Risk'!T97/'Population at Risk'!T$5","v":1.2409568795556332E-4},{"$f":"'Population at Risk'!U97/'Population at Risk'!U$5","v":0},{"$f":"'Population at Risk'!V97/'Population at Risk'!V$5","v":1.8398959293666029E-4},{"$f":"'Population at Risk'!W97/'Population at Risk'!W$5","v":2.5482337939135877E-4},{"$f":"'Population at Risk'!X97/'Population at Risk'!X$5","v":2.5137220584527884E-4},{"$f":"'Population at Risk'!Y97/'Population at Risk'!Y$5","v":1.9956948811851886E-4},{"$f":"'Population at Risk'!Z97/'Population at Risk'!Z$5","v":4.6877247226867133E-4},{"$f":"'Population at Risk'!AA97/'Population at Risk'!AA$5","v":3.3498128844185204E-4},{"$f":"'Population at Risk'!AB97/'Population at Risk'!AB$5","v":3.8096838392726265E-5},{"$f":"'Population at Risk'!AC97/'Population at Risk'!AC$5","v":3.7619265142796915E-4},{"$f":"'Population at Risk'!AD97/'Population at Risk'!AD$5","v":5.6510265541481198E-5},{"$f":"'Population at Risk'!AE97/'Population at Risk'!AE$5","v":5.4783833160174397E-5},{"$f":"'Population at Risk'!AF97/'Population at Risk'!AF$5","v":4.7179364013311592E-4},{"$f":"'Population at Risk'!AG97/'Population at Risk'!AG$5","v":5.0919480493892082E-5},{"$f":"'Population at Risk'!AH97/'Population at Risk'!AH$5","v":2.6679125522968315E-4},{"$f":"'Population at Risk'!AI97/'Population at Risk'!AI$5","v":1.3225453835695176E-4},{"$f":"'Population at Risk'!AJ97/'Population at Risk'!AJ$5","v":2.0176856071593235E-4},{"$f":"'Population at Risk'!AK97/'Population at Risk'!AK$5","v":1.1607426649227269E-5},{"$f":"'Population at Risk'!AL97/'Population at Risk'!AL$5","v":4.4196701278025535E-4},{"$f":"'Population at Risk'!AM97/'Population at Risk'!AM$5","v":3.233814095140393E-4},{"$f":"'Population at Risk'!AN97/'Population at Risk'!AN$5","v":0},{"$f":"'Population at Risk'!AO97/'Population at Risk'!AO$5","v":0},{"$f":"'Population at Risk'!AP97/'Population at Risk'!AP$5","v":3.2809741035729738E-5},{"$f":"'Population at Risk'!AQ97/'Population at Risk'!AQ$5","v":2.8986247925330241E-4},{"$f":"'Population at Risk'!AR97/'Population at Risk'!AR$5","v":2.0850694037974078E-4},{"$f":"'Population at Risk'!AS97/'Population at Risk'!AS$5","v":7.3581612402687696E-5},{"$f":"'Population at Risk'!AT97/'Population at Risk'!AT$5","v":0},{"$f":"'Population at Risk'!AU97/'Population at Risk'!AU$5","v":0},{"$f":"'Population at Risk'!AV97/'Population at Risk'!AV$5","v":2.1189327862893251E-4},{"$f":"'Population at Risk'!AW97/'Population at Risk'!AW$5","v":2.0402878541605127E-4},{"$f":"'Population at Risk'!AX97/'Population at Risk'!AX$5","v":9.7968272847196545E-5},{"$f":"'Population at Risk'!AY97/'Population at Risk'!AY$5","v":1.9642354888135371E-4},{"$f":"'Population at Risk'!AZ97/'Population at Risk'!AZ$5","v":1.4723050515300603E-4},{"$f":"'Population at Risk'!BA97/'Population at Risk'!BA$5","v":5.0508072590638685E-4},{"$f":"'Population at Risk'!BB97/'Population at Risk'!BB$5","v":1.8996192475514338E-4},{"$f":"'Population at Risk'!BC97/'Population at Risk'!BC$5","v":0},95]
["SIMD Q2","Female 0-4",{"$f":"'Population at Risk'!C98/'Population at Risk'!C$5","v":0},{"$f":"'Population at Risk'!D98/'Population at Risk'!D$5","v":0},{"$f":"'Population at Risk'!E98/'Population at Risk'!E$5","v":0},{"$f":"'Population at Risk'!F98/'Population at Risk'!F$5","v":0},{"$f":"'Population at Risk'!G98/'Population at Risk'!G$5","v":0},{"$f":"'Population at Risk'!H98/'Population at Risk'!H$5","v":0},{"$f":"'Population at Risk'!I98/'Population at Risk'!I$5","v":0},{"$f":"'Population at Risk'!J98/'Population at Risk'!J$5","v":0},{"$f":"'Population at Risk'!K98/'Population at Risk'!K$5","v":0},{"$f":"'Population at Risk'!L98/'Population at Risk'!L$5","v":0},{"$f":"'Population at Risk'!M98/'Population at Risk'!M$5","v":0},{"$f":"'Population at Risk'!N98/'Population at Risk'!N$5","v":0},{"$f":"'Population at Risk'!O98/'Population at Risk'!O$5","v":0},{"$f":"'Population at Risk'!P98/'Population at Risk'!P$5","v":0},{"$f":"'Population at Risk'!Q98/'Population at Risk'!Q$5","v":0},{"$f":"'Population at Risk'!R98/'Population at Risk'!R$5","v":0},{"$f":"'Population at Risk'!S98/'Population at Risk'!S$5","v":0},{"$f":"'Population at Risk'!T98/'Population at Risk'!T$5","v":0},{"$f":"'Population at Risk'!U98/'Population at Risk'!U$5","v":0},{"$f":"'Population at Risk'!V98/'Population at Risk'!V$5","v":0},{"$f":"'Population at Risk'!W98/'Population at Risk'!W$5","v":0},{"$f":"'Population at Risk'!X98/'Population at Risk'!X$5","v":0},{"$f":"'Population at Risk'!Y98/'Population at Risk'!Y$5","v":0},{"$f":"'Population at Risk'!Z98/'Population at Risk'!Z$5","v":0},{"$f":"'Population at Risk'!AA98/'Population at Risk'!AA$5","v":0},{"$f":"'Population at Risk'!AB98/'Population at Risk'!AB$5","v":0},{"$f":"'Population at Risk'!AC98/'Population at Risk'!AC$5","v":0},{"$f":"'Population at Risk'!AD98/'Population at Risk'!AD$5","v":0},{"$f":"'Population at Risk'!AE98/'Population at Risk'!AE$5","v":0},{"$f":"'Population at Risk'!AF98/'Population at Risk'!AF$5","v":0},{"$f":"'Population at Risk'!AG98/'Population at Risk'!AG$5","v":0},{"$f":"'Population at Risk'!AH98/'Population at Risk'!AH$5","v":0},{"$f":"'Population at Risk'!AI98/'Population at Risk'!AI$5","v":0},{"$f":"'Population at Risk'!AJ98/'Population at Risk'!AJ$5","v":0},{"$f":"'Population at Risk'!AK98/'Population at Risk'!AK$5","v":0},{"$f":"'Population at Risk'!AL98/'Population at Risk'!AL$5","v":0},{"$f":"'Population at Risk'!AM98/'Population at Risk'!AM$5","v":0},{"$f":"'Population at Risk'!AN98/'Population at Risk'!AN$5","v":0},{"$f":"'Population at Risk'!AO98/'Population at Risk'!AO$5","v":0},{"$f":"'Population at Risk'!AP98/'Population at Risk'!AP$5","v":0},{"$f":"'Population at Risk'!AQ98/'Population at Risk'!AQ$5","v":0},{"$f":"'Population at Risk'!AR98/'Population at Risk'!AR$5","v":0},{"$f":"'Population at Risk'!AS98/'Population at Risk'!AS$5","v":0},{"$f":"'Population at Risk'!AT98/'Population at Risk'!AT$5","v":0},{"$f":"'Population at Risk'!AU98/'Population at Risk'!AU$5","v":0},{"$f":"'Population at Risk'!AV98/'Population at Risk'!AV$5","v":0},{"$f":"'Population at Risk'!AW98/'Population at Risk'!AW$5","v":0},{"$f":"'Population at Risk'!AX98/'Population at Risk'!AX$5","v":0},{"$f":"'Population at Risk'!AY98/'Population at Risk'!AY$5","v":0},{"$f":"'Population at Risk'!AZ98/'Population at Risk'!AZ$5","v":0},{"$f":"'Population at Risk'!BA98/'Population at Risk'!BA$5","v":0},{"$f":"'Population at Risk'!BB98/'Population at Risk'!BB$5","v":0},{"$f":"'Population at Risk'!BC98/'Population at Risk'!BC$5","v":0},96]
[null,"Female 5-9",{"$f":"'Population at Risk'!C99/'Population at Risk'!C$5","v":0},{"$f":"'Population at Risk'!D99/'Population at Risk'!D$5","v":0},{"$f":"'Population at Risk'!E99/'Population at Risk'!E$5","v":0},{"$f":"'Population at Risk'!F99/'Population at Risk'!F$5","v":0},{"$f":"'Population at Risk'!G99/'Population at Risk'!G$5","v":0},{"$f":"'Population at Risk'!H99/'Population at Risk'!H$5","v":0},{"$f":"'Population at Risk'!I99/'Population at Risk'!I$5","v":0},{"$f":"'Population at Risk'!J99/'Population at Risk'!J$5","v":0},{"$f":"'Population at Risk'!K99/'Population at Risk'!K$5","v":0},{"$f":"'Population at Risk'!L99/'Population at Risk'!L$5","v":0},{"$f":"'Population at Risk'!M99/'Population at Risk'!M$5","v":0},{"$f":"'Population at Risk'!N99/'Population at Risk'!N$5","v":0},{"$f":"'Population at Risk'!O99/'Population at Risk'!O$5","v":0},{"$f":"'Population at Risk'!P99/'Population at Risk'!P$5","v":0},{"$f":"'Population at Risk'!Q99/'Population at Risk'!Q$5","v":0},{"$f":"'Population at Risk'!R99/'Population at Risk'!R$5","v":0},{"$f":"'Population at Risk'!S99/'Population at Risk'!S$5","v":0},{"$f":"'Population at Risk'!T99/'Population at Risk'!T$5","v":0},{"$f":"'Population at Risk'!U99/'Population at Risk'!U$5","v":0},{"$f":"'Population at Risk'!V99/'Population at Risk'!V$5","v":0},{"$f":"'Population at Risk'!W99/'Population at Risk'!W$5","v":0},{"$f":"'Population at Risk'!X99/'Population at Risk'!X$5","v":0},{"$f":"'Population at Risk'!Y99/'Population at Risk'!Y$5","v":0},{"$f":"'Population at Risk'!Z99/'Population at Risk'!Z$5","v":0},{"$f":"'Population at Risk'!AA99/'Population at Risk'!AA$5","v":0},{"$f":"'Population at Risk'!AB99/'Population at Risk'!AB$5","v":0},{"$f":"'Population at Risk'!AC99/'Population at Risk'!AC$5","v":0},{"$f":"'Population at Risk'!AD99/'Population at Risk'!AD$5","v":0},{"$f":"'Population at Risk'!AE99/'Population at Risk'!AE$5","v":0},{"$f":"'Population at Risk'!AF99/'Population at Risk'!AF$5","v":0},{"$f":"'Population at Risk'!AG99/'Population at Risk'!AG$5","v":0},{"$f":"'Population at Risk'!AH99/'Population at Risk'!AH$5","v":0},{"$f":"'Population at Risk'!AI99/'Population at Risk'!AI$5","v":0},{"$f":"'Population at Risk'!AJ99/'Population at Risk'!AJ$5","v":0},{"$f":"'Population at Risk'!AK99/'Population at Risk'!AK$5","v":0},{"$f":"'Population at Risk'!AL99/'Population at Risk'!AL$5","v":0},{"$f":"'Population at Risk'!AM99/'Population at Risk'!AM$5","v":0},{"$f":"'Population at Risk'!AN99/'Population at Risk'!AN$5","v":0},{"$f":"'Population at Risk'!AO99/'Population at Risk'!AO$5","v":0},{"$f":"'Population at Risk'!AP99/'Population at Risk'!AP$5","v":0},{"$f":"'Population at Risk'!AQ99/'Population at Risk'!AQ$5","v":0},{"$f":"'Population at Risk'!AR99/'Population at Risk'!AR$5","v":0},{"$f":"'Population at Risk'!AS99/'Population at Risk'!AS$5","v":0},{"$f":"'Population at Risk'!AT99/'Population at Risk'!AT$5","v":0},{"$f":"'Population at Risk'!AU99/'Population at Risk'!AU$5","v":0},{"$f":"'Population at Risk'!AV99/'Population at Risk'!AV$5","v":0},{"$f":"'Population at Risk'!AW99/'Population at Risk'!AW$5","v":0},{"$f":"'Population at Risk'!AX99/'Population at Risk'!AX$5","v":0},{"$f":"'Population at Risk'!AY99/'Population at Risk'!AY$5","v":0},{"$f":"'Population at Risk'!AZ99/'Population at Risk'!AZ$5","v":0},{"$f":"'Population at Risk'!BA99/'Population at Risk'!BA$5","v":0},{"$f":"'Population at Risk'!BB99/'Population at Risk'!BB$5","v":0},{"$f":"'Population at Risk'!BC99/'Population at Risk'!BC$5","v":0},97]
[null,"Female 10-15",{"$f":"'Population at Risk'!C100/'Population at Risk'!C$5","v":0},{"$f":"'Population at Risk'!D100/'Population at Risk'!D$5","v":0},{"$f":"'Population at Risk'!E100/'Population at Risk'!E$5","v":0},{"$f":"'Population at Risk'!F100/'Population at Risk'!F$5","v":0},{"$f":"'Population at Risk'!G100/'Population at Risk'!G$5","v":0},{"$f":"'Population at Risk'!H100/'Population at Risk'!H$5","v":0},{"$f":"'Population at Risk'!I100/'Population at Risk'!I$5","v":0},{"$f":"'Population at Risk'!J100/'Population at Risk'!J$5","v":0},{"$f":"'Population at Risk'!K100/'Population at Risk'!K$5","v":0},{"$f":"'Population at Risk'!L100/'Population at Risk'!L$5","v":0},{"$f":"'Population at Risk'!M100/'Population at Risk'!M$5","v":0},{"$f":"'Population at Risk'!N100/'Population at Risk'!N$5","v":0},{"$f":"'Population at Risk'!O100/'Population at Risk'!O$5","v":0},{"$f":"'Population at Risk'!P100/'Population at Risk'!P$5","v":0},{"$f":"'Population at Risk'!Q100/'Population at Risk'!Q$5","v":0},{"$f":"'Population at Risk'!R100/'Population at Risk'!R$5","v":0},{"$f":"'Population at Risk'!S100/'Population at Risk'!S$5","v":0},{"$f":"'Population at Risk'!T100/'Population at Risk'!T$5","v":0},{"$f":"'Population at Risk'!U100/'Population at Risk'!U$5","v":0},{"$f":"'Population at Risk'!V100/'Population at Risk'!V$5","v":0},{"$f":"'Population at Risk'!W100/'Population at Risk'!W$5","v":0},{"$f":"'Population at Risk'!X100/'Population at Risk'!X$5","v":0},{"$f":"'Population at Risk'!Y100/'Population at Risk'!Y$5","v":0},{"$f":"'Population at Risk'!Z100/'Population at Risk'!Z$5","v":0},{"$f":"'Population at Risk'!AA100/'Population at Risk'!AA$5","v":0},{"$f":"'Population at Risk'!AB100/'Population at Risk'!AB$5","v":0},{"$f":"'Population at Risk'!AC100/'Population at Risk'!AC$5","v":0},{"$f":"'Population at Risk'!AD100/'Population at Risk'!AD$5","v":0},{"$f":"'Population at Risk'!AE100/'Population at Risk'!AE$5","v":0},{"$f":"'Population at Risk'!AF100/'Population at Risk'!AF$5","v":0},{"$f":"'Population at Risk'!AG100/'Population at Risk'!AG$5","v":0},{"$f":"'Population at Risk'!AH100/'Population at Risk'!AH$5","v":0},{"$f":"'Population at Risk'!AI100/'Population at Risk'!AI$5","v":0},{"$f":"'Population at Risk'!AJ100/'Population at Risk'!AJ$5","v":0},{"$f":"'Population at Risk'!AK100/'Population at Risk'!AK$5","v":0},{"$f":"'Population at Risk'!AL100/'Population at Risk'!AL$5","v":0},{"$f":"'Population at Risk'!AM100/'Population at Risk'!AM$5","v":0},{"$f":"'Population at Risk'!AN100/'Population at Risk'!AN$5","v":0},{"$f":"'Population at Risk'!AO100/'Population at Risk'!AO$5","v":0},{"$f":"'Population at Risk'!AP100/'Population at Risk'!AP$5","v":0},{"$f":"'Population at Risk'!AQ100/'Population at Risk'!AQ$5","v":0},{"$f":"'Population at Risk'!AR100/'Population at Risk'!AR$5","v":0},{"$f":"'Population at Risk'!AS100/'Population at Risk'!AS$5","v":0},{"$f":"'Population at Risk'!AT100/'Population at Risk'!AT$5","v":0},{"$f":"'Population at Risk'!AU100/'Population at Risk'!AU$5","v":0},{"$f":"'Population at Risk'!AV100/'Population at Risk'!AV$5","v":0},{"$f":"'Population at Risk'!AW100/'Population at Risk'!AW$5","v":0},{"$f":"'Population at Risk'!AX100/'Population at Risk'!AX$5","v":0},{"$f":"'Population at Risk'!AY100/'Population at Risk'!AY$5","v":0},{"$f":"'Population at Risk'!AZ100/'Population at Risk'!AZ$5","v":0},{"$f":"'Population at Risk'!BA100/'Population at Risk'!BA$5","v":0},{"$f":"'Population at Risk'!BB100/'Population at Risk'!BB$5","v":0},{"$f":"'Population at Risk'!BC100/'Population at Risk'!BC$5","v":0},98]
[null,"Female 16-19",{"$f":"'Population at Risk'!C101/'Population at Risk'!C$5","v":6.0063886673291864E-3},{"$f":"'Population at Risk'!D101/'Population at Risk'!D$5","v":3.9059307812711794E-3},{"$f":"'Population at Risk'!E101/'Population at Risk'!E$5","v":2.0696186455712168E-3},{"$f":"'Population at Risk'!F101/'Population at Risk'!F$5","v":4.2218583878969838E-3},{"$f":"'Population at Risk'!G101/'Population at Risk'!G$5","v":4.7037193729389613E-3},{"$f":"'Population at Risk'!H101/'Population at Risk'!H$5","v":6.9278580987870838E-3},{"$f":"'Population at Risk'!I101/'Population at Risk'!I$5","v":4.0254438007720642E-3},{"$f":"'Population at Risk'!J101/'Population at Risk'!J$5","v":6.3453980962470237E-3},{"$f":"'Population at Risk'!K101/'Population at Risk'!K$5","v":8.1748438645992873E-3},{"$f":"'Population at Risk'!L101/'Population at Risk'!L$5","v":8.1038089303990483E-3},{"$f":"'Population at Risk'!M101/'Population at Risk'!M$5","v":7.954355505475845E-3},{"$f":"'Population at Risk'!N101/'Population at Risk'!N$5","v":7.3657800527208023E-3},{"$f":"'Population at Risk'!O101/'Population at Risk'!O$5","v":6.8502600993997605E-3},{"$f":"'Population at Risk'!P101/'Population at Risk'!P$5","v":4.3104254834897696E-3},{"$f":"'Population at Risk'!Q101/'Population at Risk'!Q$5","v":7.7181882593884178E-3},{"$f":"'Population at Risk'!R101/'Population at Risk'!R$5","v":3.06381246037338E-3},{"$f":"'Population at Risk'!S101/'Population at Risk'!S$5","v":6.0861176323781015E-3},{"$f":"'Population at Risk'!T101/'Population at Risk'!T$5","v":4.3196579256238243E-3},{"$f":"'Population at Risk'!U101/'Population at Risk'!U$5","v":5.2106907055967863E-3},{"$f":"'Population at Risk'!V101/'Population at Risk'!V$5","v":9.0675210734601601E-3},{"$f":"'Population at Risk'!W101/'Population at Risk'!W$5","v":5.9716374769605415E-3},{"$f":"'Population at Risk'!X101/'Population at Risk'!X$5","v":6.0794161158858164E-3},{"$f":"'Population at Risk'!Y101/'Population at Risk'!Y$5","v":6.8250893772189378E-3},{"$f":"'Population at Risk'!Z101/'Population at Risk'!Z$5","v":6.0592343520558326E-3},{"$f":"'Population at Risk'!AA101/'Population at Risk'!AA$5","v":7.1952232207988191E-3},{"$f":"'Population at Risk'!AB101/'Population at Risk'!AB$5","v":3.9904506776069944E-3},{"$f":"'Population at Risk'!AC101/'Population at Risk'!AC$5","v":5.8121533854036808E-3},{"$f":"'Population at Risk'!AD101/'Population at Risk'!AD$5","v":5.6526106905682568E-3},{"$f":"'Population at Risk'!AE101/'Population at Risk'!AE$5","v":5.2388569021665238E-3},{"$f":"'Population at Risk'!AF101/'Population at Risk'!AF$5","v":4.5942212625497874E-3},{"$f":"'Population at Risk'!AG101/'Population at Risk'!AG$5","v":5.7963963851489358E-3},{"$f":"'Population at Risk'!AH101/'Population at Risk'!AH$5","v":9.8382830901032163E-3},{"$f":"'Population at Risk'!AI101/'Population at Risk'!AI$5","v":6.4384317345405036E-3},{"$f":"'Population at Risk'!AJ101/'Population at Risk'!AJ$5","v":1.3007640162080201E-2},{"$f":"'Population at Risk'!AK101/'Population at Risk'!AK$5","v":3.9836445945383775E-3},{"$f":"'Population at Risk'!AL101/'Population at Risk'!AL$5","v":5.975288836994201E-3},{"$f":"'Population at Risk'!AM101/'Population at Risk'!AM$5","v":1.0888890347528227E-2},{"$f":"'Population at Risk'!AN101/'Population at Risk'!AN$5","v":3.0189291728861486E-3},{"$f":"'Population at Risk'!AO101/'Population at Risk'!AO$5","v":3.0189291728861486E-3},{"$f":"'Population at Risk'!AP101/'Population at Risk'!AP$5","v":3.3241903137435649E-3},{"$f":"'Population at Risk'!AQ101/'Population at Risk'!AQ$5","v":7.0670970476879183E-3},{"$f":"'Population at Risk'!AR101/'Population at Risk'!AR$5","v":6.2133737732187307E-3},{"$f":"'Population at Risk'!AS101/'Population at Risk'!AS$5","v":4.0254438007720642E-3},{"$f":"'Population at Risk'!AT101/'Population at Risk'!AT$5","v":7.9080907971370836E-4},{"$f":"'Population at Risk'!AU101/'Population at Risk'!AU$5","v":7.9080907971370836E-4},{"$f":"'Population at Risk'!AV101/'Population at Risk'!AV$5","v":7.9327891590636659E-3},{"$f":"'Population at Risk'!AW101/'Population at Risk'!AW$5","v":8.9967793868267528E-3},{"$f":"'Population at Risk'!AX101/'Population at Risk'!AX$5","v":4.6607812296491566E-3},{"$f":"'Population at Risk'!AY101/'Population at Risk'!AY$5","v":5.5183957175949545E-3},{"$f":"'Population at Risk'!AZ101/'Population at Risk'!AZ$5","v":5.125268224353662E-3},{"$f":"'Population at Risk'!BA101/'Population at Risk'!BA$5","v":1.0120559720266941E-2},{"$f":"'Population at Risk'!BB101/'Population at Risk'!BB$5","v":8.3406300233705502E-3},{"$f":"'Population at Risk'!BC101/'Population at Risk'!BC$5","v":4.5026138700825667E-3},99]
[null,"Female 20-24",{"$f":"'Population at Risk'!C102/'Population at Risk'!C$5","v":1.3735151561473313E-2},{"$f":"'Population at Risk'!D102/'Population at Risk'!D$5","v":8.1145566454426579E-3},{"$f":"'Population at Risk'!E102/'Population at Risk'!E$5","v":3.2152039010832213E-3},{"$f":"'Population at Risk'!F102/'Population at Risk'!F$5","v":8.214623684977853E-3},{"$f":"'Population at Risk'!G102/'Population at Risk'!G$5","v":6.1098134203655553E-3},{"$f":"'Population at Risk'!H102/'Population at Risk'!H$5","v":9.3846783774581936E-3},{"$f":"'Population at Risk'!I102/'Population at Risk'!I$5","v":6.1493658061517993E-3},{"$f":"'Population at Risk'!J102/'Population at Risk'!J$5","v":1.0136920797719702E-2},{"$f":"'Population at Risk'!K102/'Population at Risk'!K$5","v":9.3426787023991858E-3},{"$f":"'Population at Risk'!L102/'Population at Risk'!L$5","v":1.0129761162998812E-2},{"$f":"'Population at Risk'!M102/'Population at Risk'!M$5","v":9.9429443818448045E-3},{"$f":"'Population at Risk'!N102/'Population at Risk'!N$5","v":1.7874145906377873E-2},{"$f":"'Population at Risk'!O102/'Population at Risk'!O$5","v":8.8755543896570817E-3},{"$f":"'Population at Risk'!P102/'Population at Risk'!P$5","v":6.1714726978098653E-3},{"$f":"'Population at Risk'!Q102/'Population at Risk'!Q$5","v":1.2989487124948986E-2},{"$f":"'Population at Risk'!R102/'Population at Risk'!R$5","v":3.8903293101485246E-3},{"$f":"'Population at Risk'!S102/'Population at Risk'!S$5","v":1.0375116816230554E-2},{"$f":"'Population at Risk'!T102/'Population at Risk'!T$5","v":1.1038528098854406E-2},{"$f":"'Population at Risk'!U102/'Population at Risk'!U$5","v":6.3588089966604856E-3},{"$f":"'Population at Risk'!V102/'Population at Risk'!V$5","v":1.2717954745660483E-2},{"$f":"'Population at Risk'!W102/'Population at Risk'!W$5","v":8.0772437549639694E-3},{"$f":"'Population at Risk'!X102/'Population at Risk'!X$5","v":8.2230252665738777E-3},{"$f":"'Population at Risk'!Y102/'Population at Risk'!Y$5","v":1.0118465838607123E-2},{"$f":"'Population at Risk'!Z102/'Population at Risk'!Z$5","v":1.1527939408659328E-2},{"$f":"'Population at Risk'!AA102/'Population at Risk'!AA$5","v":1.0841370656474622E-2},{"$f":"'Population at Risk'!AB102/'Population at Risk'!AB$5","v":8.2574672437610089E-3},{"$f":"'Population at Risk'!AC102/'Population at Risk'!AC$5","v":9.4597983483013619E-3},{"$f":"'Population at Risk'!AD102/'Population at Risk'!AD$5","v":7.2735127868135971E-3},{"$f":"'Population at Risk'!AE102/'Population at Risk'!AE$5","v":6.7223785536682252E-3},{"$f":"'Population at Risk'!AF102/'Population at Risk'!AF$5","v":5.7477486791207297E-3},{"$f":"'Population at Risk'!AG102/'Population at Risk'!AG$5","v":7.4378001681952906E-3},{"$f":"'Population at Risk'!AH102/'Population at Risk'!AH$5","v":1.344464759705823E-2},{"$f":"'Population at Risk'!AI102/'Population at Risk'!AI$5","v":1.1962844742620202E-2},{"$f":"'Population at Risk'!AJ102/'Population at Risk'!AJ$5","v":1.6310896150608462E-2},{"$f":"'Population at Risk'!AK102/'Population at Risk'!AK$5","v":8.0835999801581668E-3},{"$f":"'Population at Risk'!AL102/'Population at Risk'!AL$5","v":8.1161677251151195E-3},{"$f":"'Population at Risk'!AM102/'Population at Risk'!AM$5","v":1.3888789555294427E-2},{"$f":"'Population at Risk'!AN102/'Population at Risk'!AN$5","v":5.4217503513057366E-3},{"$f":"'Population at Risk'!AO102/'Population at Risk'!AO$5","v":5.4217503513057366E-3},{"$f":"'Population at Risk'!AP102/'Population at Risk'!AP$5","v":5.2893193942439038E-3},{"$f":"'Population at Risk'!AQ102/'Population at Risk'!AQ$5","v":8.9859777030203997E-3},{"$f":"'Population at Risk'!AR102/'Population at Risk'!AR$5","v":9.9159759032047892E-3},{"$f":"'Population at Risk'!AS102/'Population at Risk'!AS$5","v":6.1493658061517993E-3},{"$f":"'Population at Risk'!AT102/'Population at Risk'!AT$5","v":1.4686454337540296E-3},{"$f":"'Population at Risk'!AU102/'Population at Risk'!AU$5","v":1.4686454337540296E-3},{"$f":"'Population at Risk'!AV102/'Population at Risk'!AV$5","v":1.1260301390214533E-2},{"$f":"'Population at Risk'!AW102/'Population at Risk'!AW$5","v":1.334312560575413E-2},{"$f":"'Population at Risk'!AX102/'Population at Risk'!AX$5","v":9.6450236171919477E-3},{"$f":"'Population at Risk'!AY102/'Population at Risk'!AY$5","v":9.3816438292401109E-3},{"$f":"'Population at Risk'!AZ102/'Population at Risk'!AZ$5","v":1.0670106747948696E-2},{"$f":"'Population at Risk'!BA102/'Population at Risk'!BA$5","v":1.3716252515162475E-2},{"$f":"'Population at Risk'!BB102/'Population at Risk'!BB$5","v":1.1123423869457935E-2},{"$f":"'Population at Risk'!BC102/'Population at Risk'!BC$5","v":5.4947152312872002E-3},100]
[null,"Female 25-29",{"$f":"'Population at Risk'!C103/'Population at Risk'!C$5","v":9.9516872724323968E-3},{"$f":"'Population at Risk'!D103/'Population at Risk'!D$5","v":5.8562181437049705E-3},{"$f":"'Population at Risk'!E103/'Population at Risk'!E$5","v":2.286633453971551E-3},{"$f":"'Population at Risk'!F103/'Population at Risk'!F$5","v":5.386885833005596E-3},{"$f":"'Population at Risk'!G103/'Population at Risk'!G$5","v":4.5589224638981768E-3},{"$f":"'Population at Risk'!H103/'Population at Risk'!H$5","v":6.4180965148025468E-3},{"$f":"'Population at Risk'!I103/'Population at Risk'!I$5","v":3.9625666277312635E-3},{"$f":"'Population at Risk'!J103/'Population at Risk'!J$5","v":6.3691854351712977E-3},{"$f":"'Population at Risk'!K103/'Population at Risk'!K$5","v":6.8620938195695777E-3},{"$f":"'Population at Risk'!L103/'Population at Risk'!L$5","v":6.2533835442335423E-3},{"$f":"'Population at Risk'!M103/'Population at Risk'!M$5","v":6.1380563448793892E-3},{"$f":"'Population at Risk'!N103/'Population at Risk'!N$5","v":1.050382403358149E-2},{"$f":"'Population at Risk'!O103/'Population at Risk'!O$5","v":6.4185219715082106E-3},{"$f":"'Population at Risk'!P103/'Population at Risk'!P$5","v":4.4619211728375609E-3},{"$f":"'Population at Risk'!Q103/'Population at Risk'!Q$5","v":8.2478238536077622E-3},{"$f":"'Population at Risk'!R103/'Population at Risk'!R$5","v":2.3032484529386609E-3},{"$f":"'Population at Risk'!S103/'Population at Risk'!S$5","v":7.3080611652040174E-3},{"$f":"'Population at Risk'!T103/'Population at Risk'!T$5","v":7.9466823303251596E-3},{"$f":"'Population at Risk'!U103/'Population at Risk'!U$5","v":4.411601682305092E-3},{"$f":"'Population at Risk'!V103/'Population at Risk'!V$5","v":8.7822464932530084E-3},{"$f":"'Population at Risk'!W103/'Population at Risk'!W$5","v":5.8402424184795824E-3},{"$f":"'Population at Risk'!X103/'Population at Risk'!X$5","v":5.9456495838150387E-3},{"$f":"'Population at Risk'!Y103/'Population at Risk'!Y$5","v":6.7089297931374409E-3},{"$f":"'Population at Risk'!Z103/'Population at Risk'!Z$5","v":9.5452595934245477E-3},{"$f":"'Population at Risk'!AA103/'Population at Risk'!AA$5","v":7.9536666785987569E-3},{"$f":"'Population at Risk'!AB103/'Population at Risk'!AB$5","v":5.7463080552825115E-3},{"$f":"'Population at Risk'!AC103/'Population at Risk'!AC$5","v":7.3887614185508144E-3},{"$f":"'Population at Risk'!AD103/'Population at Risk'!AD$5","v":5.0176934115570863E-3},{"$f":"'Population at Risk'!AE103/'Population at Risk'!AE$5","v":4.5249845699291726E-3},{"$f":"'Population at Risk'!AF103/'Population at Risk'!AF$5","v":4.518054828836277E-3},{"$f":"'Population at Risk'!AG103/'Population at Risk'!AG$5","v":5.0065509888512806E-3},{"$f":"'Population at Risk'!AH103/'Population at Risk'!AH$5","v":8.982533889092259E-3},{"$f":"'Population at Risk'!AI103/'Population at Risk'!AI$5","v":8.4165473978647411E-3},{"$f":"'Population at Risk'!AJ103/'Population at Risk'!AJ$5","v":1.0901903985127361E-2},{"$f":"'Population at Risk'!AK103/'Population at Risk'!AK$5","v":4.5795053934588855E-3},{"$f":"'Population at Risk'!AL103/'Population at Risk'!AL$5","v":5.1713500150696607E-3},{"$f":"'Population at Risk'!AM103/'Population at Risk'!AM$5","v":9.5698923453760888E-3},{"$f":"'Population at Risk'!AN103/'Population at Risk'!AN$5","v":3.920488619030325E-3},{"$f":"'Population at Risk'!AO103/'Population at Risk'!AO$5","v":3.920488619030325E-3},{"$f":"'Population at Risk'!AP103/'Population at Risk'!AP$5","v":3.751420009586609E-3},{"$f":"'Population at Risk'!AQ103/'Population at Risk'!AQ$5","v":6.3970793575561426E-3},{"$f":"'Population at Risk'!AR103/'Population at Risk'!AR$5","v":6.9444396655288397E-3},{"$f":"'Population at Risk'!AS103/'Population at Risk'!AS$5","v":3.9625666277312635E-3},{"$f":"'Population at Risk'!AT103/'Population at Risk'!AT$5","v":8.2671306431245334E-4},{"$f":"'Population at Risk'!AU103/'Population at Risk'!AU$5","v":8.2671306431245334E-4},{"$f":"'Population at Risk'!AV103/'Population at Risk'!AV$5","v":7.7073378652180342E-3},{"$f":"'Population at Risk'!AW103/'Population at Risk'!AW$5","v":8.6074170662554586E-3},{"$f":"'Population at Risk'!AX103/'Population at Risk'!AX$5","v":5.4731666937061817E-3},{"$f":"'Population at Risk'!AY103/'Population at Risk'!AY$5","v":6.2673816734325994E-3},{"$f":"'Population at Risk'!AZ103/'Population at Risk'!AZ$5","v":6.7091679049015402E-3},{"$f":"'Population at Risk'!BA103/'Population at Risk'!BA$5","v":9.5205295048571992E-3},{"$f":"'Population at Risk'!BB103/'Population at Risk'!BB$5","v":8.0597578001726945E-3},{"$f":"'Population at Risk'!BC103/'Population at Risk'!BC$5","v":3.8121124523263126E-3},101]
[null,"Female 30-34",{"$f":"'Population at Risk'!C104/'Population at Risk'!C$5","v":8.4770680130010854E-3},{"$f":"'Population at Risk'!D104/'Population at Risk'!D$5","v":5.0839085403131387E-3},{"$f":"'Population at Risk'!E104/'Population at Risk'!E$5","v":2.1250217662472462E-3},{"$f":"'Population at Risk'!F104/'Population at Risk'!F$5","v":4.9009554099251947E-3},{"$f":"'Population at Risk'!G104/'Population at Risk'!G$5","v":3.792000927915306E-3},{"$f":"'Population at Risk'!H104/'Population at Risk'!H$5","v":6.1006525443790668E-3},{"$f":"'Population at Risk'!I104/'Population at Risk'!I$5","v":3.3540296099011054E-3},{"$f":"'Population at Risk'!J104/'Population at Risk'!J$5","v":5.287861509474895E-3},{"$f":"'Population at Risk'!K104/'Population at Risk'!K$5","v":6.3719442610288947E-3},{"$f":"'Population at Risk'!L104/'Population at Risk'!L$5","v":6.3642177674988762E-3},{"$f":"'Population at Risk'!M104/'Population at Risk'!M$5","v":6.2468465226337812E-3},{"$f":"'Population at Risk'!N104/'Population at Risk'!N$5","v":7.7603402679633461E-3},{"$f":"'Population at Risk'!O104/'Population at Risk'!O$5","v":6.1026498272410742E-3},{"$f":"'Population at Risk'!P104/'Population at Risk'!P$5","v":3.9423824061372969E-3},{"$f":"'Population at Risk'!Q104/'Population at Risk'!Q$5","v":8.4791544039786379E-3},{"$f":"'Population at Risk'!R104/'Population at Risk'!R$5","v":2.2307051945783881E-3},{"$f":"'Population at Risk'!S104/'Population at Risk'!S$5","v":6.8450033372958585E-3},{"$f":"'Population at Risk'!T104/'Population at Risk'!T$5","v":6.668161610800521E-3},{"$f":"'Population at Risk'!U104/'Population at Risk'!U$5","v":4.2149060658965851E-3},{"$f":"'Population at Risk'!V104/'Population at Risk'!V$5","v":9.3474405745019654E-3},{"$f":"'Population at Risk'!W104/'Population at Risk'!W$5","v":5.7865502608504338E-3},{"$f":"'Population at Risk'!X104/'Population at Risk'!X$5","v":5.89098836741557E-3},{"$f":"'Population at Risk'!Y104/'Population at Risk'!Y$5","v":6.4828170750785546E-3},{"$f":"'Population at Risk'!Z104/'Population at Risk'!Z$5","v":7.9297597362601637E-3},{"$f":"'Population at Risk'!AA104/'Population at Risk'!AA$5","v":7.5451194563313367E-3},{"$f":"'Population at Risk'!AB104/'Population at Risk'!AB$5","v":5.1476360921808876E-3},{"$f":"'Population at Risk'!AC104/'Population at Risk'!AC$5","v":6.5150847981353642E-3},{"$f":"'Population at Risk'!AD104/'Population at Risk'!AD$5","v":4.9915444592096552E-3},{"$f":"'Population at Risk'!AE104/'Population at Risk'!AE$5","v":4.7444410964153447E-3},{"$f":"'Population at Risk'!AF104/'Population at Risk'!AF$5","v":4.7964783757113412E-3},{"$f":"'Population at Risk'!AG104/'Population at Risk'!AG$5","v":5.2493629305738598E-3},{"$f":"'Population at Risk'!AH104/'Population at Risk'!AH$5","v":9.4914321211840708E-3},{"$f":"'Population at Risk'!AI104/'Population at Risk'!AI$5","v":7.8021035354246468E-3},{"$f":"'Population at Risk'!AJ104/'Population at Risk'!AJ$5","v":1.1544473750484518E-2},{"$f":"'Population at Risk'!AK104/'Population at Risk'!AK$5","v":4.9125603311649868E-3},{"$f":"'Population at Risk'!AL104/'Population at Risk'!AL$5","v":5.3272360574636354E-3},{"$f":"'Population at Risk'!AM104/'Population at Risk'!AM$5","v":1.0103130659378252E-2},{"$f":"'Population at Risk'!AN104/'Population at Risk'!AN$5","v":2.4307029437988016E-3},{"$f":"'Population at Risk'!AO104/'Population at Risk'!AO$5","v":2.4307029437988016E-3},{"$f":"'Population at Risk'!AP104/'Population at Risk'!AP$5","v":4.055273343696428E-3},{"$f":"'Population at Risk'!AQ104/'Population at Risk'!AQ$5","v":6.1409579307638582E-3},{"$f":"'Population at Risk'!AR104/'Population at Risk'!AR$5","v":6.5155636576207801E-3},{"$f":"'Population at Risk'!AS104/'Population at Risk'!AS$5","v":3.3540296099011054E-3},{"$f":"'Population at Risk'!AT104/'Population at Risk'!AT$5","v":5.7510474039127195E-4},{"$f":"'Population at Risk'!AU104/'Population at Risk'!AU$5","v":5.7510474039127195E-4},{"$f":"'Population at Risk'!AV104/'Population at Risk'!AV$5","v":6.8095600479508795E-3},{"$f":"'Population at Risk'!AW104/'Population at Risk'!AW$5","v":9.1045120828725356E-3},{"$f":"'Population at Risk'!AX104/'Population at Risk'!AX$5","v":4.1446373424133985E-3},{"$f":"'Population at Risk'!AY104/'Population at Risk'!AY$5","v":5.7584816166787465E-3},{"$f":"'Population at Risk'!AZ104/'Population at Risk'!AZ$5","v":5.7678129570096943E-3},{"$f":"'Population at Risk'!BA104/'Population at Risk'!BA$5","v":9.86652764629984E-3},{"$f":"'Population at Risk'!BB104/'Population at Risk'!BB$5","v":8.3705073359198676E-3},{"$f":"'Population at Risk'!BC104/'Population at Risk'!BC$5","v":3.6421456550888333E-3},102]
[null,"Female 35-39",{"$f":"'Population at Risk'!C105/'Population at Risk'!C$5","v":7.6212973893718472E-3},{"$f":"'Population at Risk'!D105/'Population at Risk'!D$5","v":4.9159937247057594E-3},{"$f":"'Population at Risk'!E105/'Population at Risk'!E$5","v":2.5516063732832824E-3},{"$f":"'Population at Risk'!F105/'Population at Risk'!F$5","v":4.7254817237628501E-3},{"$f":"'Population at Risk'!G105/'Population at Risk'!G$5","v":4.778382104364408E-3},{"$f":"'Population at Risk'!H105/'Population at Risk'!H$5","v":7.3888625971257216E-3},{"$f":"'Population at Risk'!I105/'Population at Risk'!I$5","v":3.872162313264539E-3},{"$f":"'Population at Risk'!J105/'Population at Risk'!J$5","v":6.3746914395748991E-3},{"$f":"'Population at Risk'!K105/'Population at Risk'!K$5","v":7.7395362319331949E-3},{"$f":"'Population at Risk'!L105/'Population at Risk'!L$5","v":7.4717700105693353E-3},{"$f":"'Population at Risk'!M105/'Population at Risk'!M$5","v":7.3339728798732778E-3},{"$f":"'Population at Risk'!N105/'Population at Risk'!N$5","v":7.2742213049627417E-3},{"$f":"'Population at Risk'!O105/'Population at Risk'!O$5","v":7.294006798431724E-3},{"$f":"'Population at Risk'!P105/'Population at Risk'!P$5","v":5.3111735310457809E-3},{"$f":"'Population at Risk'!Q105/'Population at Risk'!Q$5","v":9.6199528033398853E-3},{"$f":"'Population at Risk'!R105/'Population at Risk'!R$5","v":2.9336814717778313E-3},{"$f":"'Population at Risk'!S105/'Population at Risk'!S$5","v":6.8562762127489891E-3},{"$f":"'Population at Risk'!T105/'Population at Risk'!T$5","v":5.4178460487314516E-3},{"$f":"'Population at Risk'!U105/'Population at Risk'!U$5","v":5.1706087709792155E-3},{"$f":"'Population at Risk'!V105/'Population at Risk'!V$5","v":1.0958217932188954E-2},{"$f":"'Population at Risk'!W105/'Population at Risk'!W$5","v":6.5602336818983463E-3},{"$f":"'Population at Risk'!X105/'Population at Risk'!X$5","v":6.6786355540807514E-3},{"$f":"'Population at Risk'!Y105/'Population at Risk'!Y$5","v":7.6774277840952893E-3},{"$f":"'Population at Risk'!Z105/'Population at Risk'!Z$5","v":7.1209131234166957E-3},{"$f":"'Population at Risk'!AA105/'Population at Risk'!AA$5","v":7.7359174662003181E-3},{"$f":"'Population at Risk'!AB105/'Population at Risk'!AB$5","v":5.0004304423728642E-3},{"$f":"'Population at Risk'!AC105/'Population at Risk'!AC$5","v":6.4153327338832226E-3},{"$f":"'Population at Risk'!AD105/'Population at Risk'!AD$5","v":5.6783055206062081E-3},{"$f":"'Population at Risk'!AE105/'Population at Risk'!AE$5","v":5.2452463097111329E-3},{"$f":"'Population at Risk'!AF105/'Population at Risk'!AF$5","v":3.7747532541716399E-3},{"$f":"'Population at Risk'!AG105/'Population at Risk'!AG$5","v":5.8034657782410617E-3},{"$f":"'Population at Risk'!AH105/'Population at Risk'!AH$5","v":1.0250819602952821E-2},{"$f":"'Population at Risk'!AI105/'Population at Risk'!AI$5","v":7.4194620596896585E-3},{"$f":"'Population at Risk'!AJ105/'Population at Risk'!AJ$5","v":1.342597231141022E-2},{"$f":"'Population at Risk'!AK105/'Population at Risk'!AK$5","v":4.8846280900043428E-3},{"$f":"'Population at Risk'!AL105/'Population at Risk'!AL$5","v":6.2765895155957796E-3},{"$f":"'Population at Risk'!AM105/'Population at Risk'!AM$5","v":1.1175669442251783E-2},{"$f":"'Population at Risk'!AN105/'Population at Risk'!AN$5","v":3.347743324046114E-3},{"$f":"'Population at Risk'!AO105/'Population at Risk'!AO$5","v":3.347743324046114E-3},{"$f":"'Population at Risk'!AP105/'Population at Risk'!AP$5","v":3.7106346139910533E-3},{"$f":"'Population at Risk'!AQ105/'Population at Risk'!AQ$5","v":6.8483974310897195E-3},{"$f":"'Population at Risk'!AR105/'Population at Risk'!AR$5","v":6.7897842262537259E-3},{"$f":"'Population at Risk'!AS105/'Population at Risk'!AS$5","v":3.872162313264539E-3},{"$f":"'Population at Risk'!AT105/'Population at Risk'!AT$5","v":1.4698042141036668E-3},{"$f":"'Population at Risk'!AU105/'Population at Risk'!AU$5","v":1.4698042141036668E-3},{"$f":"'Population at Risk'!AV105/'Population at Risk'!AV$5","v":8.5972401511325274E-3},{"$f":"'Population at Risk'!AW105/'Population at Risk'!AW$5","v":9.5535799596189776E-3},{"$f":"'Population at Risk'!AX105/'Population at Risk'!AX$5","v":4.9622084656353975E-3},{"$f":"'Population at Risk'!AY105/'Population at Risk'!AY$5","v":5.9515008020323687E-3},{"$f":"'Population at Risk'!AZ105/'Population at Risk'!AZ$5","v":5.4144276965330789E-3},{"$f":"'Population at Risk'!BA105/'Population at Risk'!BA$5","v":1.0832762291489932E-2},{"$f":"'Population at Risk'!BB105/'Population at Risk'!BB$5","v":8.6493021642819572E-3},{"$f":"'Population at Risk'!BC105/'Population at Risk'!BC$5","v":4.4679786393721785E-3},103]
[null,"Female 40-44",{"$f":"'Population at Risk'!C106/'Population at Risk'!C$5","v":6.8687541880313565E-3},{"$f":"'Population at Risk'!D106/'Population at Risk'!D$5","v":4.5529185198452974E-3},{"$f":"'Population at Risk'!E106/'Population at Risk'!E$5","v":2.5267933453421158E-3},{"$f":"'Population at Risk'!F106/'Population at Risk'!F$5","v":5.2264161821122691E-3},{"$f":"'Population at Risk'!G106/'Population at Risk'!G$5","v":5.6238867126433643E-3},{"$f":"'Population at Risk'!H106/'Population at Risk'!H$5","v":8.0835419865990816E-3},{"$f":"'Population at Risk'!I106/'Population at Risk'!I$5","v":4.204061940115785E-3},{"$f":"'Population at Risk'!J106/'Population at Risk'!J$5","v":6.8031789537916082E-3},{"$f":"'Population at Risk'!K106/'Population at Risk'!K$5","v":8.7854195065187636E-3},{"$f":"'Population at Risk'!L106/'Population at Risk'!L$5","v":8.3978485470906049E-3},{"$f":"'Population at Risk'!M106/'Population at Risk'!M$5","v":8.2429723354068667E-3},{"$f":"'Population at Risk'!N106/'Population at Risk'!N$5","v":6.4725379824900498E-3},{"$f":"'Population at Risk'!O106/'Population at Risk'!O$5","v":7.7878718420755387E-3},{"$f":"'Population at Risk'!P106/'Population at Risk'!P$5","v":5.0538848478809337E-3},{"$f":"'Population at Risk'!Q106/'Population at Risk'!Q$5","v":9.3417339235992436E-3},{"$f":"'Population at Risk'!R106/'Population at Risk'!R$5","v":2.9009638345461079E-3},{"$f":"'Population at Risk'!S106/'Population at Risk'!S$5","v":6.8192535815450369E-3},{"$f":"'Population at Risk'!T106/'Population at Risk'!T$5","v":4.7756089791249883E-3},{"$f":"'Population at Risk'!U106/'Population at Risk'!U$5","v":6.7589657136983197E-3},{"$f":"'Population at Risk'!V106/'Population at Risk'!V$5","v":1.1466165321002076E-2},{"$f":"'Population at Risk'!W106/'Population at Risk'!W$5","v":7.0151939596138904E-3},{"$f":"'Population at Risk'!X106/'Population at Risk'!X$5","v":7.1418071473167768E-3},{"$f":"'Population at Risk'!Y106/'Population at Risk'!Y$5","v":8.0919757206015137E-3},{"$f":"'Population at Risk'!Z106/'Population at Risk'!Z$5","v":6.2460084190750186E-3},{"$f":"'Population at Risk'!AA106/'Population at Risk'!AA$5","v":7.724187492786823E-3},{"$f":"'Population at Risk'!AB106/'Population at Risk'!AB$5","v":4.7264083659767702E-3},{"$f":"'Population at Risk'!AC106/'Population at Risk'!AC$5","v":6.1644045169429468E-3},{"$f":"'Population at Risk'!AD106/'Population at Risk'!AD$5","v":6.3107813970552686E-3},{"$f":"'Population at Risk'!AE106/'Population at Risk'!AE$5","v":5.7270381033347594E-3},{"$f":"'Population at Risk'!AF106/'Population at Risk'!AF$5","v":4.4292467619513999E-3},{"$f":"'Population at Risk'!AG106/'Population at Risk'!AG$5","v":6.3365317243255044E-3},{"$f":"'Population at Risk'!AH106/'Population at Risk'!AH$5","v":1.0708892277662318E-2},{"$f":"'Population at Risk'!AI106/'Population at Risk'!AI$5","v":7.1221407500146978E-3},{"$f":"'Population at Risk'!AJ106/'Population at Risk'!AJ$5","v":1.2718652794516413E-2},{"$f":"'Population at Risk'!AK106/'Population at Risk'!AK$5","v":5.0849089684099876E-3},{"$f":"'Population at Risk'!AL106/'Population at Risk'!AL$5","v":7.4666960990723815E-3},{"$f":"'Population at Risk'!AM106/'Population at Risk'!AM$5","v":1.1634839561950413E-2},{"$f":"'Population at Risk'!AN106/'Population at Risk'!AN$5","v":4.9508880144343934E-3},{"$f":"'Population at Risk'!AO106/'Population at Risk'!AO$5","v":4.9508880144343934E-3},{"$f":"'Population at Risk'!AP106/'Population at Risk'!AP$5","v":3.2327498530982661E-3},{"$f":"'Population at Risk'!AQ106/'Population at Risk'!AQ$5","v":7.9659183508072884E-3},{"$f":"'Population at Risk'!AR106/'Population at Risk'!AR$5","v":6.8778083266001428E-3},{"$f":"'Population at Risk'!AS106/'Population at Risk'!AS$5","v":4.204061940115785E-3},{"$f":"'Population at Risk'!AT106/'Population at Risk'!AT$5","v":6.0521349992503914E-4},{"$f":"'Population at Risk'!AU106/'Population at Risk'!AU$5","v":6.0521349992503914E-4},{"$f":"'Population at Risk'!AV106/'Population at Risk'!AV$5","v":8.9130155595272056E-3},{"$f":"'Population at Risk'!AW106/'Population at Risk'!AW$5","v":1.0023033489764051E-2},{"$f":"'Population at Risk'!AX106/'Population at Risk'!AX$5","v":4.9847128124183241E-3},{"$f":"'Population at Risk'!AY106/'Population at Risk'!AY$5","v":6.0253442860948086E-3},{"$f":"'Population at Risk'!AZ106/'Population at Risk'!AZ$5","v":5.129312127646112E-3},{"$f":"'Population at Risk'!BA106/'Population at Risk'!BA$5","v":1.1222043712125878E-2},{"$f":"'Population at Risk'!BB106/'Population at Risk'!BB$5","v":9.5450803719682228E-3},{"$f":"'Population at Risk'!BC106/'Population at Risk'!BC$5","v":5.8404949534276857E-3},104]
[null,"Female 45-49",{"$f":"'Population at Risk'!C107/'Population at Risk'!C$5","v":7.7299850961742977E-3},{"$f":"'Population at Risk'!D107/'Population at Risk'!D$5","v":5.237170100082747E-3},{"$f":"'Population at Risk'!E107/'Population at Risk'!E$5","v":3.0541311952447352E-3},{"$f":"'Population at Risk'!F107/'Population at Risk'!F$5","v":5.9770427350160239E-3},{"$f":"'Population at Risk'!G107/'Population at Risk'!G$5","v":7.1715073214206762E-3},{"$f":"'Population at Risk'!H107/'Population at Risk'!H$5","v":1.1084994543409431E-2},{"$f":"'Population at Risk'!I107/'Population at Risk'!I$5","v":6.0833849010887417E-3},{"$f":"'Population at Risk'!J107/'Population at Risk'!J$5","v":8.4165036116116716E-3},{"$f":"'Population at Risk'!K107/'Population at Risk'!K$5","v":1.1157119631213103E-2},{"$f":"'Population at Risk'!L107/'Population at Risk'!L$5","v":1.1827710999435333E-2},{"$f":"'Population at Risk'!M107/'Population at Risk'!M$5","v":1.160958000288179E-2},{"$f":"'Population at Risk'!N107/'Population at Risk'!N$5","v":7.2587373481193375E-3},{"$f":"'Population at Risk'!O107/'Population at Risk'!O$5","v":1.0862456863290806E-2},{"$f":"'Population at Risk'!P107/'Population at Risk'!P$5","v":7.4588016422321738E-3},{"$f":"'Population at Risk'!Q107/'Population at Risk'!Q$5","v":1.2602758977860645E-2},{"$f":"'Population at Risk'!R107/'Population at Risk'!R$5","v":4.5201876724094876E-3},{"$f":"'Population at Risk'!S107/'Population at Risk'!S$5","v":8.2410277534258353E-3},{"$f":"'Population at Risk'!T107/'Population at Risk'!T$5","v":4.8087873011008093E-3},{"$f":"'Population at Risk'!U107/'Population at Risk'!U$5","v":8.4769813524406372E-3},{"$f":"'Population at Risk'!V107/'Population at Risk'!V$5","v":1.413721130018156E-2},{"$f":"'Population at Risk'!W107/'Population at Risk'!W$5","v":8.6423961952395469E-3},{"$f":"'Population at Risk'!X107/'Population at Risk'!X$5","v":8.7983778171262777E-3},{"$f":"'Population at Risk'!Y107/'Population at Risk'!Y$5","v":9.9895865480824318E-3},{"$f":"'Population at Risk'!Z107/'Population at Risk'!Z$5","v":7.5787074233313826E-3},{"$f":"'Population at Risk'!AA107/'Population at Risk'!AA$5","v":1.0002020292168975E-2},{"$f":"'Population at Risk'!AB107/'Population at Risk'!AB$5","v":5.5174994032624733E-3},{"$f":"'Population at Risk'!AC107/'Population at Risk'!AC$5","v":7.896239993388383E-3},{"$f":"'Population at Risk'!AD107/'Population at Risk'!AD$5","v":8.0277689571553318E-3},{"$f":"'Population at Risk'!AE107/'Population at Risk'!AE$5","v":7.2794764847110239E-3},{"$f":"'Population at Risk'!AF107/'Population at Risk'!AF$5","v":6.5543848458213035E-3},{"$f":"'Population at Risk'!AG107/'Population at Risk'!AG$5","v":8.0541866230982723E-3},{"$f":"'Population at Risk'!AH107/'Population at Risk'!AH$5","v":1.4035816443174729E-2},{"$f":"'Population at Risk'!AI107/'Population at Risk'!AI$5","v":8.3925204661133151E-3},{"$f":"'Population at Risk'!AJ107/'Population at Risk'!AJ$5","v":1.7147093491985566E-2},{"$f":"'Population at Risk'!AK107/'Population at Risk'!AK$5","v":6.3246422362466716E-3},{"$f":"'Population at Risk'!AL107/'Population at Risk'!AL$5","v":1.0003982244223161E-2},{"$f":"'Population at Risk'!AM107/'Population at Risk'!AM$5","v":1.4739740457334713E-2},{"$f":"'Population at Risk'!AN107/'Population at Risk'!AN$5","v":4.8222804963604857E-3},{"$f":"'Population at Risk'!AO107/'Population at Risk'!AO$5","v":4.8222804963604857E-3},{"$f":"'Population at Risk'!AP107/'Population at Risk'!AP$5","v":4.4108052494000651E-3},{"$f":"'Population at Risk'!AQ107/'Population at Risk'!AQ$5","v":9.7710837862098904E-3},{"$f":"'Population at Risk'!AR107/'Population at Risk'!AR$5","v":8.672542895998718E-3},{"$f":"'Population at Risk'!AS107/'Population at Risk'!AS$5","v":6.0833849010887417E-3},{"$f":"'Population at Risk'!AT107/'Population at Risk'!AT$5","v":1.0703935075763976E-3},{"$f":"'Population at Risk'!AU107/'Population at Risk'!AU$5","v":1.0703935075763976E-3},{"$f":"'Population at Risk'!AV107/'Population at Risk'!AV$5","v":1.2271050890703598E-2},{"$f":"'Population at Risk'!AW107/'Population at Risk'!AW$5","v":1.3675799247550526E-2},{"$f":"'Population at Risk'!AX107/'Population at Risk'!AX$5","v":5.9962077835671928E-3},{"$f":"'Population at Risk'!AY107/'Population at Risk'!AY$5","v":7.3106074798451326E-3},{"$f":"'Population at Risk'!AZ107/'Population at Risk'!AZ$5","v":6.1000951584062584E-3},{"$f":"'Population at Risk'!BA107/'Population at Risk'!BA$5","v":1.4913529407786695E-2},{"$f":"'Population at Risk'!BB107/'Population at Risk'!BB$5","v":1.1744656890942125E-2},{"$f":"'Population at Risk'!BC107/'Population at Risk'!BC$5","v":7.3250507409571902E-3},105]
[null,"Female 50-54",{"$f":"'Population at Risk'!C108/'Population at Risk'!C$5","v":8.0602381309908232E-3},{"$f":"'Population at Risk'!D108/'Population at Risk'!D$5","v":5.5033449540704696E-3},{"$f":"'Population at Risk'!E108/'Population at Risk'!E$5","v":3.2633792508956136E-3},{"$f":"'Population at Risk'!F108/'Population at Risk'!F$5","v":5.572581196556293E-3},{"$f":"'Population at Risk'!G108/'Population at Risk'!G$5","v":7.9576148547302501E-3},{"$f":"'Population at Risk'!H108/'Population at Risk'!H$5","v":1.1452743177550977E-2},{"$f":"'Population at Risk'!I108/'Population at Risk'!I$5","v":6.5323093892714961E-3},{"$f":"'Population at Risk'!J108/'Population at Risk'!J$5","v":8.8211432083237715E-3},{"$f":"'Population at Risk'!K108/'Population at Risk'!K$5","v":1.1505139876590392E-2},{"$f":"'Population at Risk'!L108/'Population at Risk'!L$5","v":1.2802024357626365E-2},{"$f":"'Population at Risk'!M108/'Population at Risk'!M$5","v":1.2565924715762856E-2},{"$f":"'Population at Risk'!N108/'Population at Risk'!N$5","v":8.6577931073313248E-3},{"$f":"'Population at Risk'!O108/'Population at Risk'!O$5","v":1.0257169357354422E-2},{"$f":"'Population at Risk'!P108/'Population at Risk'!P$5","v":7.3203093040474917E-3},{"$f":"'Population at Risk'!Q108/'Population at Risk'!Q$5","v":1.2810116986637145E-2},{"$f":"'Population at Risk'!R108/'Population at Risk'!R$5","v":4.2618912339860886E-3},{"$f":"'Population at Risk'!S108/'Population at Risk'!S$5","v":8.311413152019614E-3},{"$f":"'Population at Risk'!T108/'Population at Risk'!T$5","v":4.5650238895242707E-3},{"$f":"'Population at Risk'!U108/'Population at Risk'!U$5","v":9.8231114384505231E-3},{"$f":"'Population at Risk'!V108/'Population at Risk'!V$5","v":1.4088961432262853E-2},{"$f":"'Population at Risk'!W108/'Population at Risk'!W$5","v":9.3123003975762123E-3},{"$f":"'Population at Risk'!X108/'Population at Risk'!X$5","v":9.4803727338468521E-3},{"$f":"'Population at Risk'!Y108/'Population at Risk'!Y$5","v":1.0146677973427547E-2},{"$f":"'Population at Risk'!Z108/'Population at Risk'!Z$5","v":7.7658360016852439E-3},{"$f":"'Population at Risk'!AA108/'Population at Risk'!AA$5","v":1.0374544159402036E-2},{"$f":"'Population at Risk'!AB108/'Population at Risk'!AB$5","v":5.7128091166522956E-3},{"$f":"'Population at Risk'!AC108/'Population at Risk'!AC$5","v":8.152659386465139E-3},{"$f":"'Population at Risk'!AD108/'Population at Risk'!AD$5","v":8.7688516584484896E-3},{"$f":"'Population at Risk'!AE108/'Population at Risk'!AE$5","v":7.9109056717367645E-3},{"$f":"'Population at Risk'!AF108/'Population at Risk'!AF$5","v":7.8652618149855653E-3},{"$f":"'Population at Risk'!AG108/'Population at Risk'!AG$5","v":8.7528149547177001E-3},{"$f":"'Population at Risk'!AH108/'Population at Risk'!AH$5","v":1.4632556203380564E-2},{"$f":"'Population at Risk'!AI108/'Population at Risk'!AI$5","v":8.1561114388988571E-3},{"$f":"'Population at Risk'!AJ108/'Population at Risk'!AJ$5","v":1.7020182438179748E-2},{"$f":"'Population at Risk'!AK108/'Population at Risk'!AK$5","v":6.1449648999896645E-3},{"$f":"'Population at Risk'!AL108/'Population at Risk'!AL$5","v":1.043397797226433E-2},{"$f":"'Population at Risk'!AM108/'Population at Risk'!AM$5","v":1.5209549257942665E-2},{"$f":"'Population at Risk'!AN108/'Population at Risk'!AN$5","v":6.1928233742734656E-3},{"$f":"'Population at Risk'!AO108/'Population at Risk'!AO$5","v":6.1928233742734656E-3},{"$f":"'Population at Risk'!AP108/'Population at Risk'!AP$5","v":4.2519254719774208E-3},{"$f":"'Population at Risk'!AQ108/'Population at Risk'!AQ$5","v":1.0141259020415159E-2},{"$f":"'Population at Risk'!AR108/'Population at Risk'!AR$5","v":8.9710005887177948E-3},{"$f":"'Population at Risk'!AS108/'Population at Risk'!AS$5","v":6.5323093892714961E-3},{"$f":"'Population at Risk'!AT108/'Population at Risk'!AT$5","v":9.3077696310991096E-4},{"$f":"'Population at Risk'!AU108/'Population at Risk'!AU$5","v":9.3077696310991096E-4},{"$f":"'Population at Risk'!AV108/'Population at Risk'!AV$5","v":1.3850167359212372E-2},{"$f":"'Population at Risk'!AW108/'Population at Risk'!AW$5","v":1.4423087077565131E-2},{"$f":"'Population at Risk'!AX108/'Population at Risk'!AX$5","v":6.3959549691383379E-3},{"$f":"'Population at Risk'!AY108/'Population at Risk'!AY$5","v":7.7692403204878639E-3},{"$f":"'Population at Risk'!AZ108/'Population at Risk'!AZ$5","v":6.362336669857041E-3},{"$f":"'Population at Risk'!BA108/'Population at Risk'!BA$5","v":1.5795046165417499E-2},{"$f":"'Population at Risk'!BB108/'Population at Risk'!BB$5","v":1.1252901273431225E-2},{"$f":"'Population at Risk'!BC108/'Population at Risk'!BC$5","v":8.4882562234267871E-3},106]
[null,"Female 55-59",{"$f":"'Population at Risk'!C109/'Population at Risk'!C$5","v":4.9820827760449866E-3},{"$f":"'Population at Risk'!D109/'Population at Risk'!D$5","v":3.4045070094001957E-3},{"$f":"'Population at Risk'!E109/'Population at Risk'!E$5","v":2.0224165802287574E-3},{"$f":"'Population at Risk'!F109/'Population at Risk'!F$5","v":4.1890595227953697E-3},{"$f":"'Population at Risk'!G109/'Population at Risk'!G$5","v":5.6230830676694482E-3},{"$f":"'Population at Risk'!H109/'Population at Risk'!H$5","v":7.4784492157054195E-3},{"$f":"'Population at Risk'!I109/'Population at Risk'!I$5","v":4.4100117464932771E-3},{"$f":"'Population at Risk'!J109/'Population at Risk'!J$5","v":5.2614266355293648E-3},{"$f":"'Population at Risk'!K109/'Population at Risk'!K$5","v":6.6973930961963715E-3},{"$f":"'Population at Risk'!L109/'Population at Risk'!L$5","v":8.2993622541679517E-3},{"$f":"'Population at Risk'!M109/'Population at Risk'!M$5","v":8.1463023629221344E-3},{"$f":"'Population at Risk'!N109/'Population at Risk'!N$5","v":5.6791861976531674E-3},{"$f":"'Population at Risk'!O109/'Population at Risk'!O$5","v":6.7495640960839346E-3},{"$f":"'Population at Risk'!P109/'Population at Risk'!P$5","v":4.8097781755593169E-3},{"$f":"'Population at Risk'!Q109/'Population at Risk'!Q$5","v":8.4256996792016238E-3},{"$f":"'Population at Risk'!R109/'Population at Risk'!R$5","v":2.3486457710337129E-3},{"$f":"'Population at Risk'!S109/'Population at Risk'!S$5","v":5.3471695598811811E-3},{"$f":"'Population at Risk'!T109/'Population at Risk'!T$5","v":2.8799100091772452E-3},{"$f":"'Population at Risk'!U109/'Population at Risk'!U$5","v":5.8374958141167747E-3},{"$f":"'Population at Risk'!V109/'Population at Risk'!V$5","v":8.5460534505216769E-3},{"$f":"'Population at Risk'!W109/'Population at Risk'!W$5","v":5.8383183629624E-3},{"$f":"'Population at Risk'!X109/'Population at Risk'!X$5","v":5.9436908021300913E-3},{"$f":"'Population at Risk'!Y109/'Population at Risk'!Y$5","v":6.1153620169746032E-3},{"$f":"'Population at Risk'!Z109/'Population at Risk'!Z$5","v":4.8279557484870103E-3},{"$f":"'Population at Risk'!AA109/'Population at Risk'!AA$5","v":6.5389652603701333E-3},{"$f":"'Population at Risk'!AB109/'Population at Risk'!AB$5","v":3.607719135730414E-3},{"$f":"'Population at Risk'!AC109/'Population at Risk'!AC$5","v":5.0852017211071993E-3},{"$f":"'Population at Risk'!AD109/'Population at Risk'!AD$5","v":5.9026356448554224E-3},{"$f":"'Population at Risk'!AE109/'Population at Risk'!AE$5","v":5.2379600972836671E-3},{"$f":"'Population at Risk'!AF109/'Population at Risk'!AF$5","v":4.9851169632577725E-3},{"$f":"'Population at Risk'!AG109/'Population at Risk'!AG$5","v":5.7954041388100404E-3},{"$f":"'Population at Risk'!AH109/'Population at Risk'!AH$5","v":9.3274687914349994E-3},{"$f":"'Population at Risk'!AI109/'Population at Risk'!AI$5","v":5.2813973127213074E-3},{"$f":"'Population at Risk'!AJ109/'Population at Risk'!AJ$5","v":1.1586999306293188E-2},{"$f":"'Population at Risk'!AK109/'Population at Risk'!AK$5","v":4.2349581137053928E-3},{"$f":"'Population at Risk'!AL109/'Population at Risk'!AL$5","v":6.4610517813589487E-3},{"$f":"'Population at Risk'!AM109/'Population at Risk'!AM$5","v":9.5599058234338043E-3},{"$f":"'Population at Risk'!AN109/'Population at Risk'!AN$5","v":3.8431262921692945E-3},{"$f":"'Population at Risk'!AO109/'Population at Risk'!AO$5","v":3.8431262921692945E-3},{"$f":"'Population at Risk'!AP109/'Population at Risk'!AP$5","v":2.6748313572872782E-3},{"$f":"'Population at Risk'!AQ109/'Population at Risk'!AQ$5","v":6.2083880442924556E-3},{"$f":"'Population at Risk'!AR109/'Population at Risk'!AR$5","v":5.732444156617088E-3},{"$f":"'Population at Risk'!AS109/'Population at Risk'!AS$5","v":4.4100117464932771E-3},{"$f":"'Population at Risk'!AT109/'Population at Risk'!AT$5","v":4.5255666089724628E-4},{"$f":"'Population at Risk'!AU109/'Population at Risk'!AU$5","v":4.5255666089724628E-4},{"$f":"'Population at Risk'!AV109/'Population at Risk'!AV$5","v":9.4145471959546194E-3},{"$f":"'Population at Risk'!AW109/'Population at Risk'!AW$5","v":9.3370716241769625E-3},{"$f":"'Population at Risk'!AX109/'Population at Risk'!AX$5","v":3.912494348864242E-3},{"$f":"'Population at Risk'!AY109/'Population at Risk'!AY$5","v":5.0332851118896332E-3},{"$f":"'Population at Risk'!AZ109/'Population at Risk'!AZ$5","v":4.3053790938122859E-3},{"$f":"'Population at Risk'!BA109/'Population at Risk'!BA$5","v":1.0137979458152563E-2},{"$f":"'Population at Risk'!BB109/'Population at Risk'!BB$5","v":7.177387885548352E-3},{"$f":"'Population at Risk'!BC109/'Population at Risk'!BC$5","v":5.0442429044885674E-3},107]
[null,"Female 60-64",{"$f":"'Population at Risk'!C110/'Population at Risk'!C$5","v":4.4516164085236501E-3},{"$f":"'Population at Risk'!D110/'Population at Risk'!D$5","v":3.0847098734878482E-3},{"$f":"'Population at Risk'!E110/'Population at Risk'!E$5","v":1.8863518561766696E-3},{"$f":"'Population at Risk'!F110/'Population at Risk'!F$5","v":3.5148144729266664E-3},{"$f":"'Population at Risk'!G110/'Population at Risk'!G$5","v":5.0387422378094203E-3},{"$f":"'Population at Risk'!H110/'Population at Risk'!H$5","v":6.5812070308130929E-3},{"$f":"'Population at Risk'!I110/'Population at Risk'!I$5","v":4.0027379344073181E-3},{"$f":"'Population at Risk'!J110/'Population at Risk'!J$5","v":4.4744611131211261E-3},{"$f":"'Population at Risk'!K110/'Population at Risk'!K$5","v":5.9437586288961421E-3},{"$f":"'Population at Risk'!L110/'Population at Risk'!L$5","v":8.1629631273611447E-3},{"$f":"'Population at Risk'!M110/'Population at Risk'!M$5","v":8.0124187589803043E-3},{"$f":"'Population at Risk'!N110/'Population at Risk'!N$5","v":4.8904103368680053E-3},{"$f":"'Population at Risk'!O110/'Population at Risk'!O$5","v":5.9087093097031085E-3},{"$f":"'Population at Risk'!P110/'Population at Risk'!P$5","v":3.6279469667075989E-3},{"$f":"'Population at Risk'!Q110/'Population at Risk'!Q$5","v":7.0574236629210186E-3},{"$f":"'Population at Risk'!R110/'Population at Risk'!R$5","v":2.046910029616187E-3},{"$f":"'Population at Risk'!S110/'Population at Risk'!S$5","v":4.59557357415653E-3},{"$f":"'Population at Risk'!T110/'Population at Risk'!T$5","v":2.3642660470851139E-3},{"$f":"'Population at Risk'!U110/'Population at Risk'!U$5","v":6.2670950731643291E-3},{"$f":"'Population at Risk'!V110/'Population at Risk'!V$5","v":7.965145242120204E-3},{"$f":"'Population at Risk'!W110/'Population at Risk'!W$5","v":5.3225270790164744E-3},{"$f":"'Population at Risk'!X110/'Population at Risk'!X$5","v":5.4185902989343877E-3},{"$f":"'Population at Risk'!Y110/'Population at Risk'!Y$5","v":5.5102734800152355E-3},{"$f":"'Population at Risk'!Z110/'Population at Risk'!Z$5","v":3.7982421832248986E-3},{"$f":"'Population at Risk'!AA110/'Population at Risk'!AA$5","v":5.5546363367582645E-3},{"$f":"'Population at Risk'!AB110/'Population at Risk'!AB$5","v":3.3067225920913315E-3},{"$f":"'Population at Risk'!AC110/'Population at Risk'!AC$5","v":4.0554080603756315E-3},{"$f":"'Population at Risk'!AD110/'Population at Risk'!AD$5","v":5.3330143210048317E-3},{"$f":"'Population at Risk'!AE110/'Population at Risk'!AE$5","v":4.746118150349735E-3},{"$f":"'Population at Risk'!AF110/'Population at Risk'!AF$5","v":3.6193314938720808E-3},{"$f":"'Population at Risk'!AG110/'Population at Risk'!AG$5","v":5.2512184630964182E-3},{"$f":"'Population at Risk'!AH110/'Population at Risk'!AH$5","v":8.4423595017061714E-3},{"$f":"'Population at Risk'!AI110/'Population at Risk'!AI$5","v":4.3801003390045003E-3},{"$f":"'Population at Risk'!AJ110/'Population at Risk'!AJ$5","v":9.4909571663551132E-3},{"$f":"'Population at Risk'!AK110/'Population at Risk'!AK$5","v":4.0602348909395515E-3},{"$f":"'Population at Risk'!AL110/'Population at Risk'!AL$5","v":5.6259913152776498E-3},{"$f":"'Population at Risk'!AM110/'Population at Risk'!AM$5","v":8.6802469319928795E-3},{"$f":"'Population at Risk'!AN110/'Population at Risk'!AN$5","v":3.6668360952807947E-3},{"$f":"'Population at Risk'!AO110/'Population at Risk'!AO$5","v":3.6668360952807947E-3},{"$f":"'Population at Risk'!AP110/'Population at Risk'!AP$5","v":2.6170255715698715E-3},{"$f":"'Population at Risk'!AQ110/'Population at Risk'!AQ$5","v":5.0406325709052647E-3},{"$f":"'Population at Risk'!AR110/'Population at Risk'!AR$5","v":5.0202523688426077E-3},{"$f":"'Population at Risk'!AS110/'Population at Risk'!AS$5","v":4.0027379344073181E-3},{"$f":"'Population at Risk'!AT110/'Population at Risk'!AT$5","v":9.6976427335124205E-4},{"$f":"'Population at Risk'!AU110/'Population at Risk'!AU$5","v":9.6976427335124205E-4},{"$f":"'Population at Risk'!AV110/'Population at Risk'!AV$5","v":8.4014931692054564E-3},{"$f":"'Population at Risk'!AW110/'Population at Risk'!AW$5","v":8.4219665967431665E-3},{"$f":"'Population at Risk'!AX110/'Population at Risk'!AX$5","v":3.1804792771412548E-3},{"$f":"'Population at Risk'!AY110/'Population at Risk'!AY$5","v":4.5246472282197744E-3},{"$f":"'Population at Risk'!AZ110/'Population at Risk'!AZ$5","v":3.800325007807383E-3},{"$f":"'Population at Risk'!BA110/'Population at Risk'!BA$5","v":8.6825269616851147E-3},{"$f":"'Population at Risk'!BB110/'Population at Risk'!BB$5","v":6.0373454340119327E-3},{"$f":"'Population at Risk'!BC110/'Population at Risk'!BC$5","v":5.4154642437799329E-3},108]
[null,"Female 65-69",{"$f":"'Population at Risk'!C111/'Population at Risk'!C$5","v":2.8413097182536464E-3},{"$f":"'Population at Risk'!D111/'Population at Risk'!D$5","v":2.0743861749733497E-3},{"$f":"'Population at Risk'!E111/'Population at Risk'!E$5","v":1.3999094988218336E-3},{"$f":"'Population at Risk'!F111/'Population at Risk'!F$5","v":2.5313549957748211E-3},{"$f":"'Population at Risk'!G111/'Population at Risk'!G$5","v":3.7290377735098761E-3},{"$f":"'Population at Risk'!H111/'Population at Risk'!H$5","v":4.5704079709752909E-3},{"$f":"'Population at Risk'!I111/'Population at Risk'!I$5","v":2.9366161631887606E-3},{"$f":"'Population at Risk'!J111/'Population at Risk'!J$5","v":3.1287163399664345E-3},{"$f":"'Population at Risk'!K111/'Population at Risk'!K$5","v":4.4033391846100079E-3},{"$f":"'Population at Risk'!L111/'Population at Risk'!L$5","v":5.44705089810183E-3},{"$f":"'Population at Risk'!M111/'Population at Risk'!M$5","v":5.3465943819815459E-3},{"$f":"'Population at Risk'!N111/'Population at Risk'!N$5","v":3.4015350394891002E-3},{"$f":"'Population at Risk'!O111/'Population at Risk'!O$5","v":4.0131975495733977E-3},{"$f":"'Population at Risk'!P111/'Population at Risk'!P$5","v":2.4244501994713495E-3},{"$f":"'Population at Risk'!Q111/'Population at Risk'!Q$5","v":4.6317964277869947E-3},{"$f":"'Population at Risk'!R111/'Population at Risk'!R$5","v":1.3589596353315496E-3},{"$f":"'Population at Risk'!S111/'Population at Risk'!S$5","v":3.1898599208870283E-3},{"$f":"'Population at Risk'!T111/'Population at Risk'!T$5","v":1.5649589620043564E-3},{"$f":"'Population at Risk'!U111/'Population at Risk'!U$5","v":4.0235664362384682E-3},{"$f":"'Population at Risk'!V111/'Population at Risk'!V$5","v":5.3549179810410564E-3},{"$f":"'Population at Risk'!W111/'Population at Risk'!W$5","v":3.698989872056854E-3},{"$f":"'Population at Risk'!X111/'Population at Risk'!X$5","v":3.765750805778434E-3},{"$f":"'Population at Risk'!Y111/'Population at Risk'!Y$5","v":3.7577114024149711E-3},{"$f":"'Population at Risk'!Z111/'Population at Risk'!Z$5","v":2.2302691053022136E-3},{"$f":"'Population at Risk'!AA111/'Population at Risk'!AA$5","v":3.601848753391547E-3},{"$f":"'Population at Risk'!AB111/'Population at Risk'!AB$5","v":2.1918228383879354E-3},{"$f":"'Population at Risk'!AC111/'Population at Risk'!AC$5","v":2.6321760151374971E-3},{"$f":"'Population at Risk'!AD111/'Population at Risk'!AD$5","v":3.7319444846710338E-3},{"$f":"'Population at Risk'!AE111/'Population at Risk'!AE$5","v":3.2548516935920185E-3},{"$f":"'Population at Risk'!AF111/'Population at Risk'!AF$5","v":2.7643199886576049E-3},{"$f":"'Population at Risk'!AG111/'Population at Risk'!AG$5","v":3.6012456425619263E-3},{"$f":"'Population at Risk'!AH111/'Population at Risk'!AH$5","v":5.469480847043115E-3},{"$f":"'Population at Risk'!AI111/'Population at Risk'!AI$5","v":3.0154470161678094E-3},{"$f":"'Population at Risk'!AJ111/'Population at Risk'!AJ$5","v":6.8789402515113405E-3},{"$f":"'Population at Risk'!AK111/'Population at Risk'!AK$5","v":2.5428111692464726E-3},{"$f":"'Population at Risk'!AL111/'Population at Risk'!AL$5","v":4.0135783515061465E-3},{"$f":"'Population at Risk'!AM111/'Population at Risk'!AM$5","v":5.6207364954149559E-3},{"$f":"'Population at Risk'!AN111/'Population at Risk'!AN$5","v":2.8306729274064834E-3},{"$f":"'Population at Risk'!AO111/'Population at Risk'!AO$5","v":2.8306729274064834E-3},{"$f":"'Population at Risk'!AP111/'Population at Risk'!AP$5","v":1.6308763190081327E-3},{"$f":"'Population at Risk'!AQ111/'Population at Risk'!AQ$5","v":3.8163123046439863E-3},{"$f":"'Population at Risk'!AR111/'Population at Risk'!AR$5","v":3.380320132519341E-3},{"$f":"'Population at Risk'!AS111/'Population at Risk'!AS$5","v":2.9366161631887606E-3},{"$f":"'Population at Risk'!AT111/'Population at Risk'!AT$5","v":5.4521714695805734E-4},{"$f":"'Population at Risk'!AU111/'Population at Risk'!AU$5","v":5.4521714695805734E-4},{"$f":"'Population at Risk'!AV111/'Population at Risk'!AV$5","v":5.8223116415460595E-3},{"$f":"'Population at Risk'!AW111/'Population at Risk'!AW$5","v":5.4592957198984424E-3},{"$f":"'Population at Risk'!AX111/'Population at Risk'!AX$5","v":2.0776214825394194E-3},{"$f":"'Population at Risk'!AY111/'Population at Risk'!AY$5","v":3.1220869036344395E-3},{"$f":"'Population at Risk'!AZ111/'Population at Risk'!AZ$5","v":2.5974403233027473E-3},{"$f":"'Population at Risk'!BA111/'Population at Risk'!BA$5","v":5.7426249942747771E-3},{"$f":"'Population at Risk'!BB111/'Population at Risk'!BB$5","v":4.3065874001684832E-3},{"$f":"'Population at Risk'!BC111/'Population at Risk'!BC$5","v":3.4768070235961352E-3},109]
[null,"Female 70-74",{"$f":"'Population at Risk'!C112/'Population at Risk'!C$5","v":1.9586901036471945E-3},{"$f":"'Population at Risk'!D112/'Population at Risk'!D$5","v":1.4979180775945152E-3},{"$f":"'Population at Risk'!E112/'Population at Risk'!E$5","v":1.0911366138357959E-3},{"$f":"'Population at Risk'!F112/'Population at Risk'!F$5","v":2.0427739982542231E-3},{"$f":"'Population at Risk'!G112/'Population at Risk'!G$5","v":3.0762945930514745E-3},{"$f":"'Population at Risk'!H112/'Population at Risk'!H$5","v":3.681234810589097E-3},{"$f":"'Population at Risk'!I112/'Population at Risk'!I$5","v":2.3484342708541698E-3},{"$f":"'Population at Risk'!J112/'Population at Risk'!J$5","v":2.5484816732817507E-3},{"$f":"'Population at Risk'!K112/'Population at Risk'!K$5","v":3.3864460395802453E-3},{"$f":"'Population at Risk'!L112/'Population at Risk'!L$5","v":4.4312590801972003E-3},{"$f":"'Population at Risk'!M112/'Population at Risk'!M$5","v":4.3495361703969433E-3},{"$f":"'Population at Risk'!N112/'Population at Risk'!N$5","v":2.7331483045707167E-3},{"$f":"'Population at Risk'!O112/'Population at Risk'!O$5","v":3.2734199688019884E-3},{"$f":"'Population at Risk'!P112/'Population at Risk'!P$5","v":2.1694888974236933E-3},{"$f":"'Population at Risk'!Q112/'Population at Risk'!Q$5","v":3.7464647096552154E-3},{"$f":"'Population at Risk'!R112/'Population at Risk'!R$5","v":8.0327168728099691E-4},{"$f":"'Population at Risk'!S112/'Population at Risk'!S$5","v":2.4852851557527686E-3},{"$f":"'Population at Risk'!T112/'Population at Risk'!T$5","v":1.1796903655188777E-3},{"$f":"'Population at Risk'!U112/'Population at Risk'!U$5","v":2.9494787858866736E-3},{"$f":"'Population at Risk'!V112/'Population at Risk'!V$5","v":4.3713616171763732E-3},{"$f":"'Population at Risk'!W112/'Population at Risk'!W$5","v":2.846060261846787E-3},{"$f":"'Population at Risk'!X112/'Population at Risk'!X$5","v":2.8974271612114289E-3},{"$f":"'Population at Risk'!Y112/'Population at Risk'!Y$5","v":3.0650611261016148E-3},{"$f":"'Population at Risk'!Z112/'Population at Risk'!Z$5","v":1.7031500201259368E-3},{"$f":"'Population at Risk'!AA112/'Population at Risk'!AA$5","v":2.8943662308195672E-3},{"$f":"'Population at Risk'!AB112/'Population at Risk'!AB$5","v":1.6083536878470843E-3},{"$f":"'Population at Risk'!AC112/'Population at Risk'!AC$5","v":2.0407646842893951E-3},{"$f":"'Population at Risk'!AD112/'Population at Risk'!AD$5","v":2.8240789156556427E-3},{"$f":"'Population at Risk'!AE112/'Population at Risk'!AE$5","v":2.3798461084315668E-3},{"$f":"'Population at Risk'!AF112/'Population at Risk'!AF$5","v":2.1039546580338435E-3},{"$f":"'Population at Risk'!AG112/'Population at Risk'!AG$5","v":2.6331185672238502E-3},{"$f":"'Population at Risk'!AH112/'Population at Risk'!AH$5","v":4.5412323666999196E-3},{"$f":"'Population at Risk'!AI112/'Population at Risk'!AI$5","v":2.3557207339928088E-3},{"$f":"'Population at Risk'!AJ112/'Population at Risk'!AJ$5","v":4.9956568973511745E-3},{"$f":"'Population at Risk'!AK112/'Population at Risk'!AK$5","v":1.987097470007177E-3},{"$f":"'Population at Risk'!AL112/'Population at Risk'!AL$5","v":3.0718678571466105E-3},{"$f":"'Population at Risk'!AM112/'Population at Risk'!AM$5","v":4.7592475911449527E-3},{"$f":"'Population at Risk'!AN112/'Population at Risk'!AN$5","v":2.4500782480913262E-3},{"$f":"'Population at Risk'!AO112/'Population at Risk'!AO$5","v":2.4500782480913262E-3},{"$f":"'Population at Risk'!AP112/'Population at Risk'!AP$5","v":1.3082464385086978E-3},{"$f":"'Population at Risk'!AQ112/'Population at Risk'!AQ$5","v":3.0899119512032276E-3},{"$f":"'Population at Risk'!AR112/'Population at Risk'!AR$5","v":2.673129769620267E-3},{"$f":"'Population at Risk'!AS112/'Population at Risk'!AS$5","v":2.3484342708541698E-3},{"$f":"'Population at Risk'!AT112/'Population at Risk'!AT$5","v":4.1436503168812351E-4},{"$f":"'Population at Risk'!AU112/'Population at Risk'!AU$5","v":4.1436503168812351E-4},{"$f":"'Population at Risk'!AV112/'Population at Risk'!AV$5","v":4.8356533580713517E-3},{"$f":"'Population at Risk'!AW112/'Population at Risk'!AW$5","v":4.4350452066360723E-3},{"$f":"'Population at Risk'!AX112/'Population at Risk'!AX$5","v":1.8108230954373629E-3},{"$f":"'Population at Risk'!AY112/'Population at Risk'!AY$5","v":2.4486675164347212E-3},{"$f":"'Population at Risk'!AZ112/'Population at Risk'!AZ$5","v":2.0891240449789836E-3},{"$f":"'Population at Risk'!BA112/'Population at Risk'!BA$5","v":4.3069687457060824E-3},{"$f":"'Population at Risk'!BB112/'Population at Risk'!BB$5","v":3.5883240394732532E-3},{"$f":"'Population at Risk'!BC112/'Population at Risk'!BC$5","v":2.5486763350937771E-3},110]
[null,"Female 75-79",{"$f":"'Population at Risk'!C113/'Population at Risk'!C$5","v":5.8714337973165859E-4},{"$f":"'Population at Risk'!D113/'Population at Risk'!D$5","v":4.167385621464418E-4},{"$f":"'Population at Risk'!E113/'Population at Risk'!E$5","v":2.6714724898641094E-4},{"$f":"'Population at Risk'!F113/'Population at Risk'!F$5","v":5.4314260031566766E-4},{"$f":"'Population at Risk'!G113/'Population at Risk'!G$5","v":8.5877828708637045E-4},{"$f":"'Population at Risk'!H113/'Population at Risk'!H$5","v":9.0355730338843778E-4},{"$f":"'Population at Risk'!I113/'Population at Risk'!I$5","v":5.730872705005947E-4},{"$f":"'Population at Risk'!J113/'Population at Risk'!J$5","v":6.1159074998493187E-4},{"$f":"'Population at Risk'!K113/'Population at Risk'!K$5","v":6.9532541819320413E-4},{"$f":"'Population at Risk'!L113/'Population at Risk'!L$5","v":1.0485743513603063E-3},{"$f":"'Population at Risk'!M113/'Population at Risk'!M$5","v":1.0292361575006802E-3},{"$f":"'Population at Risk'!N113/'Population at Risk'!N$5","v":7.932694755055531E-4},{"$f":"'Population at Risk'!O113/'Population at Risk'!O$5","v":8.4503388941565324E-4},{"$f":"'Population at Risk'!P113/'Population at Risk'!P$5","v":5.3198891735923648E-4},{"$f":"'Population at Risk'!Q113/'Population at Risk'!Q$5","v":9.9937863242474515E-4},{"$f":"'Population at Risk'!R113/'Population at Risk'!R$5","v":2.6252707537675283E-4},{"$f":"'Population at Risk'!S113/'Population at Risk'!S$5","v":6.2886445126246612E-4},{"$f":"'Population at Risk'!T113/'Population at Risk'!T$5","v":3.4121334325529348E-4},{"$f":"'Population at Risk'!U113/'Population at Risk'!U$5","v":8.5470190367454646E-4},{"$f":"'Population at Risk'!V113/'Population at Risk'!V$5","v":1.0948162299536221E-3},{"$f":"'Population at Risk'!W113/'Population at Risk'!W$5","v":7.0567562494955034E-4},{"$f":"'Population at Risk'!X113/'Population at Risk'!X$5","v":7.1841195709852008E-4},{"$f":"'Population at Risk'!Y113/'Population at Risk'!Y$5","v":7.5587968551766617E-4},{"$f":"'Population at Risk'!Z113/'Population at Risk'!Z$5","v":5.0464155465116171E-4},{"$f":"'Population at Risk'!AA113/'Population at Risk'!AA$5","v":7.7551016724749177E-4},{"$f":"'Population at Risk'!AB113/'Population at Risk'!AB$5","v":4.4224721004888865E-4},{"$f":"'Population at Risk'!AC113/'Population at Risk'!AC$5","v":5.7763345193450829E-4},{"$f":"'Population at Risk'!AD113/'Population at Risk'!AD$5","v":7.8366334963786389E-4},{"$f":"'Population at Risk'!AE113/'Population at Risk'!AE$5","v":6.5871505712277562E-4},{"$f":"'Population at Risk'!AF113/'Population at Risk'!AF$5","v":4.6842988262000201E-4},{"$f":"'Population at Risk'!AG113/'Population at Risk'!AG$5","v":7.2881806990578992E-4},{"$f":"'Population at Risk'!AH113/'Population at Risk'!AH$5","v":1.1562201697985913E-3},{"$f":"'Population at Risk'!AI113/'Population at Risk'!AI$5","v":6.0523105190094851E-4},{"$f":"'Population at Risk'!AJ113/'Population at Risk'!AJ$5","v":1.1993686405103422E-3},{"$f":"'Population at Risk'!AK113/'Population at Risk'!AK$5","v":5.2212445430846238E-4},{"$f":"'Population at Risk'!AL113/'Population at Risk'!AL$5","v":7.0540360214546593E-4},{"$f":"'Population at Risk'!AM113/'Population at Risk'!AM$5","v":1.1967816714492322E-3},{"$f":"'Population at Risk'!AN113/'Population at Risk'!AN$5","v":4.5257513421744481E-4},{"$f":"'Population at Risk'!AO113/'Population at Risk'!AO$5","v":4.5257513421744481E-4},{"$f":"'Population at Risk'!AP113/'Population at Risk'!AP$5","v":3.0193934790483519E-4},{"$f":"'Population at Risk'!AQ113/'Population at Risk'!AQ$5","v":8.7858397826754927E-4},{"$f":"'Population at Risk'!AR113/'Population at Risk'!AR$5","v":6.9457809501241217E-4},{"$f":"'Population at Risk'!AS113/'Population at Risk'!AS$5","v":5.730872705005947E-4},{"$f":"'Population at Risk'!AT113/'Population at Risk'!AT$5","v":6.586230210481599E-5},{"$f":"'Population at Risk'!AU113/'Population at Risk'!AU$5","v":6.586230210481599E-5},{"$f":"'Population at Risk'!AV113/'Population at Risk'!AV$5","v":1.1918844868140112E-3},{"$f":"'Population at Risk'!AW113/'Population at Risk'!AW$5","v":1.1449878027743098E-3},{"$f":"'Population at Risk'!AX113/'Population at Risk'!AX$5","v":5.0401107747456296E-4},{"$f":"'Population at Risk'!AY113/'Population at Risk'!AY$5","v":6.2829236635435334E-4},{"$f":"'Population at Risk'!AZ113/'Population at Risk'!AZ$5","v":5.5922112350811275E-4},{"$f":"'Population at Risk'!BA113/'Population at Risk'!BA$5","v":1.2434421741451475E-3},{"$f":"'Population at Risk'!BB113/'Population at Risk'!BB$5","v":8.2970281241162016E-4},{"$f":"'Population at Risk'!BC113/'Population at Risk'!BC$5","v":7.3855710570912237E-4},111]
[null,"Female 80-84",{"$f":"'Population at Risk'!C114/'Population at Risk'!C$5","v":5.2068809670232914E-4},{"$f":"'Population at Risk'!D114/'Population at Risk'!D$5","v":3.5667119610416147E-4},{"$f":"'Population at Risk'!E114/'Population at Risk'!E$5","v":2.129617220693559E-4},{"$f":"'Population at Risk'!F114/'Population at Risk'!F$5","v":4.1975891827674555E-4},{"$f":"'Population at Risk'!G114/'Population at Risk'!G$5","v":6.5189079065192666E-4},{"$f":"'Population at Risk'!H114/'Population at Risk'!H$5","v":7.0850088649044966E-4},{"$f":"'Population at Risk'!I114/'Population at Risk'!I$5","v":4.5380213727422655E-4},{"$f":"'Population at Risk'!J114/'Population at Risk'!J$5","v":4.0887246768655562E-4},{"$f":"'Population at Risk'!K114/'Population at Risk'!K$5","v":4.6644746803794102E-4},{"$f":"'Population at Risk'!L114/'Population at Risk'!L$5","v":8.732775179014987E-4},{"$f":"'Population at Risk'!M114/'Population at Risk'!M$5","v":8.5717221271973062E-4},{"$f":"'Population at Risk'!N114/'Population at Risk'!N$5","v":6.4541535932542574E-4},{"$f":"'Population at Risk'!O114/'Population at Risk'!O$5","v":6.2625114270392927E-4},{"$f":"'Population at Risk'!P114/'Population at Risk'!P$5","v":4.8998979230455988E-4},{"$f":"'Population at Risk'!Q114/'Population at Risk'!Q$5","v":7.8743862881101444E-4},{"$f":"'Population at Risk'!R114/'Population at Risk'!R$5","v":2.5089612899930176E-4},{"$f":"'Population at Risk'!S114/'Population at Risk'!S$5","v":4.837695807326338E-4},{"$f":"'Population at Risk'!T114/'Population at Risk'!T$5","v":2.5559639223627224E-4},{"$f":"'Population at Risk'!U114/'Population at Risk'!U$5","v":7.8776741724220258E-4},{"$f":"'Population at Risk'!V114/'Population at Risk'!V$5","v":7.8867738810588358E-4},{"$f":"'Population at Risk'!W114/'Population at Risk'!W$5","v":5.6212564040658097E-4},{"$f":"'Population at Risk'!X114/'Population at Risk'!X$5","v":5.7227112171916335E-4},{"$f":"'Population at Risk'!Y114/'Population at Risk'!Y$5","v":5.3053052793686456E-4},{"$f":"'Population at Risk'!Z114/'Population at Risk'!Z$5","v":4.5461877663909315E-4},{"$f":"'Population at Risk'!AA114/'Population at Risk'!AA$5","v":6.2608719941911186E-4},{"$f":"'Population at Risk'!AB114/'Population at Risk'!AB$5","v":3.662359708217359E-4},{"$f":"'Population at Risk'!AC114/'Population at Risk'!AC$5","v":4.9355702136596438E-4},{"$f":"'Population at Risk'!AD114/'Population at Risk'!AD$5","v":5.7390563241142465E-4},{"$f":"'Population at Risk'!AE114/'Population at Risk'!AE$5","v":4.7488759932107081E-4},{"$f":"'Population at Risk'!AF114/'Population at Risk'!AF$5","v":3.6175773113227878E-4},{"$f":"'Population at Risk'!AG114/'Population at Risk'!AG$5","v":5.2542698062975541E-4},{"$f":"'Population at Risk'!AH114/'Population at Risk'!AH$5","v":8.7999409829205499E-4},{"$f":"'Population at Risk'!AI114/'Population at Risk'!AI$5","v":4.5561492851176988E-4},{"$f":"'Population at Risk'!AJ114/'Population at Risk'!AJ$5","v":9.4392906316371355E-4},{"$f":"'Population at Risk'!AK114/'Population at Risk'!AK$5","v":3.7464124805899413E-4},{"$f":"'Population at Risk'!AL114/'Population at Risk'!AL$5","v":5.9363190462241675E-4},{"$f":"'Population at Risk'!AM114/'Population at Risk'!AM$5","v":8.8399960176129271E-4},{"$f":"'Population at Risk'!AN114/'Population at Risk'!AN$5","v":4.3102393734994744E-4},{"$f":"'Population at Risk'!AO114/'Population at Risk'!AO$5","v":4.3102393734994744E-4},{"$f":"'Population at Risk'!AP114/'Population at Risk'!AP$5","v":2.5268683016149327E-4},{"$f":"'Population at Risk'!AQ114/'Population at Risk'!AQ$5","v":7.3233521666773375E-4},{"$f":"'Population at Risk'!AR114/'Population at Risk'!AR$5","v":5.4740286551481217E-4},{"$f":"'Population at Risk'!AS114/'Population at Risk'!AS$5","v":4.5380213727422655E-4},{"$f":"'Population at Risk'!AT114/'Population at Risk'!AT$5","v":9.8793453157223986E-5},{"$f":"'Population at Risk'!AU114/'Population at Risk'!AU$5","v":9.8793453157223986E-5},{"$f":"'Population at Risk'!AV114/'Population at Risk'!AV$5","v":9.3271168824898528E-4},{"$f":"'Population at Risk'!AW114/'Population at Risk'!AW$5","v":8.9985159940404909E-4},{"$f":"'Population at Risk'!AX114/'Population at Risk'!AX$5","v":3.3600738498304196E-4},{"$f":"'Population at Risk'!AY114/'Population at Risk'!AY$5","v":5.0302333050064444E-4},{"$f":"'Population at Risk'!AZ114/'Population at Risk'!AZ$5","v":4.5041339359476955E-4},{"$f":"'Population at Risk'!BA114/'Population at Risk'!BA$5","v":8.834983868926049E-4},{"$f":"'Population at Risk'!BB114/'Population at Risk'!BB$5","v":5.9019165196599985E-4},{"$f":"'Population at Risk'!BC114/'Population at Risk'!BC$5","v":6.8071829622587789E-4},112]
[null,"Female 85-89",{"$f":"'Population at Risk'!C115/'Population at Risk'!C$5","v":2.928414120303422E-4},{"$f":"'Population at Risk'!D115/'Population at Risk'!D$5","v":1.9920646252439848E-4},{"$f":"'Population at Risk'!E115/'Population at Risk'!E$5","v":1.1719195356479348E-4},{"$f":"'Population at Risk'!F115/'Population at Risk'!F$5","v":3.116391969024323E-4},{"$f":"'Population at Risk'!G115/'Population at Risk'!G$5","v":3.6498077201170743E-4},{"$f":"'Population at Risk'!H115/'Population at Risk'!H$5","v":3.8923814134351868E-4},{"$f":"'Population at Risk'!I115/'Population at Risk'!I$5","v":2.7617101496974357E-4},{"$f":"'Population at Risk'!J115/'Population at Risk'!J$5","v":2.3822261422634054E-4},{"$f":"'Population at Risk'!K115/'Population at Risk'!K$5","v":2.9551330273211175E-4},{"$f":"'Population at Risk'!L115/'Population at Risk'!L$5","v":4.8634182453510637E-4},{"$f":"'Population at Risk'!M115/'Population at Risk'!M$5","v":4.7737252972763453E-4},{"$f":"'Population at Risk'!N115/'Population at Risk'!N$5","v":3.5356419086552207E-4},{"$f":"'Population at Risk'!O115/'Population at Risk'!O$5","v":3.3454081375496405E-4},{"$f":"'Population at Risk'!P115/'Population at Risk'!P$5","v":2.8419407953664472E-4},{"$f":"'Population at Risk'!Q115/'Population at Risk'!Q$5","v":4.4344369986872863E-4},{"$f":"'Population at Risk'!R115/'Population at Risk'!R$5","v":1.1132477246988887E-4},{"$f":"'Population at Risk'!S115/'Population at Risk'!S$5","v":3.0327108174432288E-4},{"$f":"'Population at Risk'!T115/'Population at Risk'!T$5","v":1.7437005409002131E-4},{"$f":"'Population at Risk'!U115/'Population at Risk'!U$5","v":3.2437481886443632E-4},{"$f":"'Population at Risk'!V115/'Population at Risk'!V$5","v":4.9278110974003983E-4},{"$f":"'Population at Risk'!W115/'Population at Risk'!W$5","v":3.6178173674536511E-4},{"$f":"'Population at Risk'!X115/'Population at Risk'!X$5","v":3.6831132654797385E-4},{"$f":"'Population at Risk'!Y115/'Population at Risk'!Y$5","v":3.2387625562621921E-4},{"$f":"'Population at Risk'!Z115/'Population at Risk'!Z$5","v":2.824815699505045E-4},{"$f":"'Population at Risk'!AA115/'Population at Risk'!AA$5","v":3.6467146899245127E-4},{"$f":"'Population at Risk'!AB115/'Population at Risk'!AB$5","v":2.0960675059608785E-4},{"$f":"'Population at Risk'!AC115/'Population at Risk'!AC$5","v":2.867260154380186E-4},{"$f":"'Population at Risk'!AD115/'Population at Risk'!AD$5","v":3.5988887524130157E-4},{"$f":"'Population at Risk'!AE115/'Population at Risk'!AE$5","v":3.1212370439247797E-4},{"$f":"'Population at Risk'!AF115/'Population at Risk'!AF$5","v":1.8551678519604039E-4},{"$f":"'Population at Risk'!AG115/'Population at Risk'!AG$5","v":3.4534112033326667E-4},{"$f":"'Population at Risk'!AH115/'Population at Risk'!AH$5","v":5.140385385891277E-4},{"$f":"'Population at Risk'!AI115/'Population at Risk'!AI$5","v":2.828797307797911E-4},{"$f":"'Population at Risk'!AJ115/'Population at Risk'!AJ$5","v":6.1265586129230455E-4},{"$f":"'Population at Risk'!AK115/'Population at Risk'!AK$5","v":2.3902450668017271E-4},{"$f":"'Population at Risk'!AL115/'Population at Risk'!AL$5","v":3.0302549106248891E-4},{"$f":"'Population at Risk'!AM115/'Population at Risk'!AM$5","v":4.8680684413538816E-4},{"$f":"'Population at Risk'!AN115/'Population at Risk'!AN$5","v":2.0832823638580793E-4},{"$f":"'Population at Risk'!AO115/'Population at Risk'!AO$5","v":2.0832823638580793E-4},{"$f":"'Population at Risk'!AP115/'Population at Risk'!AP$5","v":2.1842420912264671E-4},{"$f":"'Population at Risk'!AQ115/'Population at Risk'!AQ$5","v":3.8526726003533529E-4},{"$f":"'Population at Risk'!AR115/'Population at Risk'!AR$5","v":3.262170139023875E-4},{"$f":"'Population at Risk'!AS115/'Population at Risk'!AS$5","v":2.7617101496974357E-4},{"$f":"'Population at Risk'!AT115/'Population at Risk'!AT$5","v":3.2931151052407995E-5},{"$f":"'Population at Risk'!AU115/'Population at Risk'!AU$5","v":3.2931151052407995E-5},{"$f":"'Population at Risk'!AV115/'Population at Risk'!AV$5","v":5.5404005441745047E-4},{"$f":"'Population at Risk'!AW115/'Population at Risk'!AW$5","v":5.5690543957682655E-4},{"$f":"'Population at Risk'!AX115/'Population at Risk'!AX$5","v":1.8171827963368595E-4},{"$f":"'Population at Risk'!AY115/'Population at Risk'!AY$5","v":3.3167086694945716E-4},{"$f":"'Population at Risk'!AZ115/'Population at Risk'!AZ$5","v":3.0533642037697863E-4},{"$f":"'Population at Risk'!BA115/'Population at Risk'!BA$5","v":5.2559973479490609E-4},{"$f":"'Population at Risk'!BB115/'Population at Risk'!BB$5","v":3.3441180892407351E-4},{"$f":"'Population at Risk'!BC115/'Population at Risk'!BC$5","v":2.8029576903418503E-4},113]
[null,"Female 90+",{"$f":"'Population at Risk'!C116/'Population at Risk'!C$5","v":1.4240417791999184E-4},{"$f":"'Population at Risk'!D116/'Population at Risk'!D$5","v":1.0486336783652322E-4},{"$f":"'Population at Risk'!E116/'Population at Risk'!E$5","v":7.1827326378421809E-5},{"$f":"'Population at Risk'!F116/'Population at Risk'!F$5","v":2.0479147225016981E-4},{"$f":"'Population at Risk'!G116/'Population at Risk'!G$5","v":2.0298395876586938E-4},{"$f":"'Population at Risk'!H116/'Population at Risk'!H$5","v":2.7115466026177707E-4},{"$f":"'Population at Risk'!I116/'Population at Risk'!I$5","v":1.9059689765517514E-4},{"$f":"'Population at Risk'!J116/'Population at Risk'!J$5","v":1.443079297717255E-4},{"$f":"'Population at Risk'!K116/'Population at Risk'!K$5","v":1.7672854379077271E-4},{"$f":"'Population at Risk'!L116/'Population at Risk'!L$5","v":2.9501174411360301E-4},{"$f":"'Population at Risk'!M116/'Population at Risk'!M$5","v":2.8957102902159814E-4},{"$f":"'Population at Risk'!N116/'Population at Risk'!N$5","v":2.1213851451931326E-4},{"$f":"'Population at Risk'!O116/'Population at Risk'!O$5","v":2.1299484335956189E-4},{"$f":"'Population at Risk'!P116/'Population at Risk'!P$5","v":1.9459594608666806E-4},{"$f":"'Population at Risk'!Q116/'Population at Risk'!Q$5","v":2.3965523485552613E-4},{"$f":"'Population at Risk'!R116/'Population at Risk'!R$5","v":5.8154731887255383E-5},{"$f":"'Population at Risk'!S116/'Population at Risk'!S$5","v":1.7473790859506692E-4},{"$f":"'Population at Risk'!T116/'Population at Risk'!T$5","v":1.0537470894648771E-4},{"$f":"'Population at Risk'!U116/'Population at Risk'!U$5","v":2.9348197897258524E-4},{"$f":"'Population at Risk'!V116/'Population at Risk'!V$5","v":3.1410528011143417E-4},{"$f":"'Population at Risk'!W116/'Population at Risk'!W$5","v":2.1554857492121876E-4},{"$f":"'Population at Risk'!X116/'Population at Risk'!X$5","v":2.1943888676900298E-4},{"$f":"'Population at Risk'!Y116/'Population at Risk'!Y$5","v":2.0311740212439959E-4},{"$f":"'Population at Risk'!Z116/'Population at Risk'!Z$5","v":1.656636707105563E-4},{"$f":"'Population at Risk'!AA116/'Population at Risk'!AA$5","v":1.8834243851856253E-4},{"$f":"'Population at Risk'!AB116/'Population at Risk'!AB$5","v":1.0739466754442414E-4},{"$f":"'Population at Risk'!AC116/'Population at Risk'!AC$5","v":1.5426456976430896E-4},{"$f":"'Population at Risk'!AD116/'Population at Risk'!AD$5","v":2.0017487735314999E-4},{"$f":"'Population at Risk'!AE116/'Population at Risk'!AE$5","v":1.7361482125716567E-4},{"$f":"'Population at Risk'!AF116/'Population at Risk'!AF$5","v":6.029295518871313E-5},{"$f":"'Population at Risk'!AG116/'Population at Risk'!AG$5","v":1.920915843162547E-4},{"$f":"'Population at Risk'!AH116/'Population at Risk'!AH$5","v":2.5335384902510348E-4},{"$f":"'Population at Risk'!AI116/'Population at Risk'!AI$5","v":1.5544288196338022E-4},{"$f":"'Population at Risk'!AJ116/'Population at Risk'!AJ$5","v":2.7739141602485453E-4},{"$f":"'Population at Risk'!AK116/'Population at Risk'!AK$5","v":1.0849339310305712E-4},{"$f":"'Population at Risk'!AL116/'Population at Risk'!AL$5","v":1.912537935394397E-4},{"$f":"'Population at Risk'!AM116/'Population at Risk'!AM$5","v":2.0813594286073599E-4},{"$f":"'Population at Risk'!AN116/'Population at Risk'!AN$5","v":8.6204787469989488E-5},{"$f":"'Population at Risk'!AO116/'Population at Risk'!AO$5","v":8.6204787469989488E-5},{"$f":"'Population at Risk'!AP116/'Population at Risk'!AP$5","v":1.0278786311653963E-4},{"$f":"'Population at Risk'!AQ116/'Population at Risk'!AQ$5","v":1.8335665633409726E-4},{"$f":"'Population at Risk'!AR116/'Population at Risk'!AR$5","v":1.8461921486051937E-4},{"$f":"'Population at Risk'!AS116/'Population at Risk'!AS$5","v":1.9059689765517514E-4},{"$f":"'Population at Risk'!AT116/'Population at Risk'!AT$5","v":6.5862302104815982E-6},{"$f":"'Population at Risk'!AU116/'Population at Risk'!AU$5","v":6.5862302104815982E-6},{"$f":"'Population at Risk'!AV116/'Population at Risk'!AV$5","v":4.3764508500201971E-4},{"$f":"'Population at Risk'!AW116/'Population at Risk'!AW$5","v":3.0810136283942986E-4},{"$f":"'Population at Risk'!AX116/'Population at Risk'!AX$5","v":1.1143102053009046E-4},{"$f":"'Population at Risk'!AY116/'Population at Risk'!AY$5","v":1.955841250634764E-4},{"$f":"'Population at Risk'!AZ116/'Population at Risk'!AZ$5","v":1.7797233342415052E-4},{"$f":"'Population at Risk'!BA116/'Population at Risk'!BA$5","v":2.0860378579408724E-4},{"$f":"'Population at Risk'!BB116/'Population at Risk'!BB$5","v":1.8528221845793259E-4},{"$f":"'Population at Risk'!BC116/'Population at Risk'!BC$5","v":2.5360093388807216E-4},114]
[null,"Male 0-4",{"$f":"'Population at Risk'!C117/'Population at Risk'!C$5","v":0},{"$f":"'Population at Risk'!D117/'Population at Risk'!D$5","v":0},{"$f":"'Population at Risk'!E117/'Population at Risk'!E$5","v":0},{"$f":"'Population at Risk'!F117/'Population at Risk'!F$5","v":0},{"$f":"'Population at Risk'!G117/'Population at Risk'!G$5","v":0},{"$f":"'Population at Risk'!H117/'Population at Risk'!H$5","v":0},{"$f":"'Population at Risk'!I117/'Population at Risk'!I$5","v":0},{"$f":"'Population at Risk'!J117/'Population at Risk'!J$5","v":0},{"$f":"'Population at Risk'!K117/'Population at Risk'!K$5","v":0},{"$f":"'Population at Risk'!L117/'Population at Risk'!L$5","v":0},{"$f":"'Population at Risk'!M117/'Population at Risk'!M$5","v":0},{"$f":"'Population at Risk'!N117/'Population at Risk'!N$5","v":0},{"$f":"'Population at Risk'!O117/'Population at Risk'!O$5","v":0},{"$f":"'Population at Risk'!P117/'Population at Risk'!P$5","v":0},{"$f":"'Population at Risk'!Q117/'Population at Risk'!Q$5","v":0},{"$f":"'Population at Risk'!R117/'Population at Risk'!R$5","v":0},{"$f":"'Population at Risk'!S117/'Population at Risk'!S$5","v":0},{"$f":"'Population at Risk'!T117/'Population at Risk'!T$5","v":0},{"$f":"'Population at Risk'!U117/'Population at Risk'!U$5","v":0},{"$f":"'Population at Risk'!V117/'Population at Risk'!V$5","v":0},{"$f":"'Population at Risk'!W117/'Population at Risk'!W$5","v":0},{"$f":"'Population at Risk'!X117/'Population at Risk'!X$5","v":0},{"$f":"'Population at Risk'!Y117/'Population at Risk'!Y$5","v":0},{"$f":"'Population at Risk'!Z117/'Population at Risk'!Z$5","v":0},{"$f":"'Population at Risk'!AA117/'Population at Risk'!AA$5","v":0},{"$f":"'Population at Risk'!AB117/'Population at Risk'!AB$5","v":0},{"$f":"'Population at Risk'!AC117/'Population at Risk'!AC$5","v":0},{"$f":"'Population at Risk'!AD117/'Population at Risk'!AD$5","v":0},{"$f":"'Population at Risk'!AE117/'Population at Risk'!AE$5","v":0},{"$f":"'Population at Risk'!AF117/'Population at Risk'!AF$5","v":0},{"$f":"'Population at Risk'!AG117/'Population at Risk'!AG$5","v":0},{"$f":"'Population at Risk'!AH117/'Population at Risk'!AH$5","v":0},{"$f":"'Population at Risk'!AI117/'Population at Risk'!AI$5","v":0},{"$f":"'Population at Risk'!AJ117/'Population at Risk'!AJ$5","v":0},{"$f":"'Population at Risk'!AK117/'Population at Risk'!AK$5","v":0},{"$f":"'Population at Risk'!AL117/'Population at Risk'!AL$5","v":0},{"$f":"'Population at Risk'!AM117/'Population at Risk'!AM$5","v":0},{"$f":"'Population at Risk'!AN117/'Population at Risk'!AN$5","v":0},{"$f":"'Population at Risk'!AO117/'Population at Risk'!AO$5","v":0},{"$f":"'Population at Risk'!AP117/'Population at Risk'!AP$5","v":0},{"$f":"'Population at Risk'!AQ117/'Population at Risk'!AQ$5","v":0},{"$f":"'Population at Risk'!AR117/'Population at Risk'!AR$5","v":0},{"$f":"'Population at Risk'!AS117/'Population at Risk'!AS$5","v":0},{"$f":"'Population at Risk'!AT117/'Population at Risk'!AT$5","v":0},{"$f":"'Population at Risk'!AU117/'Population at Risk'!AU$5","v":0},{"$f":"'Population at Risk'!AV117/'Population at Risk'!AV$5","v":0},{"$f":"'Population at Risk'!AW117/'Population at Risk'!AW$5","v":0},{"$f":"'Population at Risk'!AX117/'Population at Risk'!AX$5","v":0},{"$f":"'Population at Risk'!AY117/'Population at Risk'!AY$5","v":0},{"$f":"'Population at Risk'!AZ117/'Population at Risk'!AZ$5","v":0},{"$f":"'Population at Risk'!BA117/'Population at Risk'!BA$5","v":0},{"$f":"'Population at Risk'!BB117/'Population at Risk'!BB$5","v":0},{"$f":"'Population at Risk'!BC117/'Population at Risk'!BC$5","v":0},115]
[null,"Male 5-9",{"$f":"'Population at Risk'!C118/'Population at Risk'!C$5","v":0},{"$f":"'Population at Risk'!D118/'Population at Risk'!D$5","v":0},{"$f":"'Population at Risk'!E118/'Population at Risk'!E$5","v":0},{"$f":"'Population at Risk'!F118/'Population at Risk'!F$5","v":0},{"$f":"'Population at Risk'!G118/'Population at Risk'!G$5","v":0},{"$f":"'Population at Risk'!H118/'Population at Risk'!H$5","v":0},{"$f":"'Population at Risk'!I118/'Population at Risk'!I$5","v":0},{"$f":"'Population at Risk'!J118/'Population at Risk'!J$5","v":0},{"$f":"'Population at Risk'!K118/'Population at Risk'!K$5","v":0},{"$f":"'Population at Risk'!L118/'Population at Risk'!L$5","v":0},{"$f":"'Population at Risk'!M118/'Population at Risk'!M$5","v":0},{"$f":"'Population at Risk'!N118/'Population at Risk'!N$5","v":0},{"$f":"'Population at Risk'!O118/'Population at Risk'!O$5","v":0},{"$f":"'Population at Risk'!P118/'Population at Risk'!P$5","v":0},{"$f":"'Population at Risk'!Q118/'Population at Risk'!Q$5","v":0},{"$f":"'Population at Risk'!R118/'Population at Risk'!R$5","v":0},{"$f":"'Population at Risk'!S118/'Population at Risk'!S$5","v":0},{"$f":"'Population at Risk'!T118/'Population at Risk'!T$5","v":0},{"$f":"'Population at Risk'!U118/'Population at Risk'!U$5","v":0},{"$f":"'Population at Risk'!V118/'Population at Risk'!V$5","v":0},{"$f":"'Population at Risk'!W118/'Population at Risk'!W$5","v":0},{"$f":"'Population at Risk'!X118/'Population at Risk'!X$5","v":0},{"$f":"'Population at Risk'!Y118/'Population at Risk'!Y$5","v":0},{"$f":"'Population at Risk'!Z118/'Population at Risk'!Z$5","v":0},{"$f":"'Population at Risk'!AA118/'Population at Risk'!AA$5","v":0},{"$f":"'Population at Risk'!AB118/'Population at Risk'!AB$5","v":0},{"$f":"'Population at Risk'!AC118/'Population at Risk'!AC$5","v":0},{"$f":"'Population at Risk'!AD118/'Population at Risk'!AD$5","v":0},{"$f":"'Population at Risk'!AE118/'Population at Risk'!AE$5","v":0},{"$f":"'Population at Risk'!AF118/'Population at Risk'!AF$5","v":0},{"$f":"'Population at Risk'!AG118/'Population at Risk'!AG$5","v":0},{"$f":"'Population at Risk'!AH118/'Population at Risk'!AH$5","v":0},{"$f":"'Population at Risk'!AI118/'Population at Risk'!AI$5","v":0},{"$f":"'Population at Risk'!AJ118/'Population at Risk'!AJ$5","v":0},{"$f":"'Population at Risk'!AK118/'Population at Risk'!AK$5","v":0},{"$f":"'Population at Risk'!AL118/'Population at Risk'!AL$5","v":0},{"$f":"'Population at Risk'!AM118/'Population at Risk'!AM$5","v":0},{"$f":"'Population at Risk'!AN118/'Population at Risk'!AN$5","v":0},{"$f":"'Population at Risk'!AO118/'Population at Risk'!AO$5","v":0},{"$f":"'Population at Risk'!AP118/'Population at Risk'!AP$5","v":0},{"$f":"'Population at Risk'!AQ118/'Population at Risk'!AQ$5","v":0},{"$f":"'Population at Risk'!AR118/'Population at Risk'!AR$5","v":0},{"$f":"'Population at Risk'!AS118/'Population at Risk'!AS$5","v":0},{"$f":"'Population at Risk'!AT118/'Population at Risk'!AT$5","v":0},{"$f":"'Population at Risk'!AU118/'Population at Risk'!AU$5","v":0},{"$f":"'Population at Risk'!AV118/'Population at Risk'!AV$5","v":0},{"$f":"'Population at Risk'!AW118/'Population at Risk'!AW$5","v":0},{"$f":"'Population at Risk'!AX118/'Population at Risk'!AX$5","v":0},{"$f":"'Population at Risk'!AY118/'Population at Risk'!AY$5","v":0},{"$f":"'Population at Risk'!AZ118/'Population at Risk'!AZ$5","v":0},{"$f":"'Population at Risk'!BA118/'Population at Risk'!BA$5","v":0},{"$f":"'Population at Risk'!BB118/'Population at Risk'!BB$5","v":0},{"$f":"'Population at Risk'!BC118/'Population at Risk'!BC$5","v":0},116]
[null,"Male 10-15",{"$f":"'Population at Risk'!C119/'Population at Risk'!C$5","v":0},{"$f":"'Population at Risk'!D119/'Population at Risk'!D$5","v":0},{"$f":"'Population at Risk'!E119/'Population at Risk'!E$5","v":0},{"$f":"'Population at Risk'!F119/'Population at Risk'!F$5","v":0},{"$f":"'Population at Risk'!G119/'Population at Risk'!G$5","v":0},{"$f":"'Population at Risk'!H119/'Population at Risk'!H$5","v":0},{"$f":"'Population at Risk'!I119/'Population at Risk'!I$5","v":0},{"$f":"'Population at Risk'!J119/'Population at Risk'!J$5","v":0},{"$f":"'Population at Risk'!K119/'Population at Risk'!K$5","v":0},{"$f":"'Population at Risk'!L119/'Population at Risk'!L$5","v":0},{"$f":"'Population at Risk'!M119/'Population at Risk'!M$5","v":0},{"$f":"'Population at Risk'!N119/'Population at Risk'!N$5","v":0},{"$f":"'Population at Risk'!O119/'Population at Risk'!O$5","v":0},{"$f":"'Population at Risk'!P119/'Population at Risk'!P$5","v":0},{"$f":"'Population at Risk'!Q119/'Population at Risk'!Q$5","v":0},{"$f":"'Population at Risk'!R119/'Population at Risk'!R$5","v":0},{"$f":"'Population at Risk'!S119/'Population at Risk'!S$5","v":0},{"$f":"'Population at Risk'!T119/'Population at Risk'!T$5","v":0},{"$f":"'Population at Risk'!U119/'Population at Risk'!U$5","v":0},{"$f":"'Population at Risk'!V119/'Population at Risk'!V$5","v":0},{"$f":"'Population at Risk'!W119/'Population at Risk'!W$5","v":0},{"$f":"'Population at Risk'!X119/'Population at Risk'!X$5","v":0},{"$f":"'Population at Risk'!Y119/'Population at Risk'!Y$5","v":0},{"$f":"'Population at Risk'!Z119/'Population at Risk'!Z$5","v":0},{"$f":"'Population at Risk'!AA119/'Population at Risk'!AA$5","v":0},{"$f":"'Population at Risk'!AB119/'Population at Risk'!AB$5","v":0},{"$f":"'Population at Risk'!AC119/'Population at Risk'!AC$5","v":0},{"$f":"'Population at Risk'!AD119/'Population at Risk'!AD$5","v":0},{"$f":"'Population at Risk'!AE119/'Population at Risk'!AE$5","v":0},{"$f":"'Population at Risk'!AF119/'Population at Risk'!AF$5","v":0},{"$f":"'Population at Risk'!AG119/'Population at Risk'!AG$5","v":0},{"$f":"'Population at Risk'!AH119/'Population at Risk'!AH$5","v":0},{"$f":"'Population at Risk'!AI119/'Population at Risk'!AI$5","v":0},{"$f":"'Population at Risk'!AJ119/'Population at Risk'!AJ$5","v":0},{"$f":"'Population at Risk'!AK119/'Population at Risk'!AK$5","v":0},{"$f":"'Population at Risk'!AL119/'Population at Risk'!AL$5","v":0},{"$f":"'Population at Risk'!AM119/'Population at Risk'!AM$5","v":0},{"$f":"'Population at Risk'!AN119/'Population at Risk'!AN$5","v":0},{"$f":"'Population at Risk'!AO119/'Population at Risk'!AO$5","v":0},{"$f":"'Population at Risk'!AP119/'Population at Risk'!AP$5","v":0},{"$f":"'Population at Risk'!AQ119/'Population at Risk'!AQ$5","v":0},{"$f":"'Population at Risk'!AR119/'Population at Risk'!AR$5","v":0},{"$f":"'Population at Risk'!AS119/'Population at Risk'!AS$5","v":0},{"$f":"'Population at Risk'!AT119/'Population at Risk'!AT$5","v":0},{"$f":"'Population at Risk'!AU119/'Population at Risk'!AU$5","v":0},{"$f":"'Population at Risk'!AV119/'Population at Risk'!AV$5","v":0},{"$f":"'Population at Risk'!AW119/'Population at Risk'!AW$5","v":0},{"$f":"'Population at Risk'!AX119/'Population at Risk'!AX$5","v":0},{"$f":"'Population at Risk'!AY119/'Population at Risk'!AY$5","v":0},{"$f":"'Population at Risk'!AZ119/'Population at Risk'!AZ$5","v":0},{"$f":"'Population at Risk'!BA119/'Population at Risk'!BA$5","v":0},{"$f":"'Population at Risk'!BB119/'Population at Risk'!BB$5","v":0},{"$f":"'Population at Risk'!BC119/'Population at Risk'!BC$5","v":0},117]
[null,"Male 16-19",{"$f":"'Population at Risk'!C120/'Population at Risk'!C$5","v":3.9284910332836867E-3},{"$f":"'Population at Risk'!D120/'Population at Risk'!D$5","v":2.6818141135878117E-3},{"$f":"'Population at Risk'!E120/'Population at Risk'!E$5","v":1.594808947643482E-3},{"$f":"'Population at Risk'!F120/'Population at Risk'!F$5","v":3.6880967041309251E-3},{"$f":"'Population at Risk'!G120/'Population at Risk'!G$5","v":3.4626683271966711E-3},{"$f":"'Population at Risk'!H120/'Population at Risk'!H$5","v":6.4126193605389776E-3},{"$f":"'Population at Risk'!I120/'Population at Risk'!I$5","v":3.4805780664856792E-3},{"$f":"'Population at Risk'!J120/'Population at Risk'!J$5","v":4.4906421005463798E-3},{"$f":"'Population at Risk'!K120/'Population at Risk'!K$5","v":7.1486400620704212E-3},{"$f":"'Population at Risk'!L120/'Population at Risk'!L$5","v":6.5767580145613897E-3},{"$f":"'Population at Risk'!M120/'Population at Risk'!M$5","v":6.663578837205043E-3},{"$f":"'Population at Risk'!N120/'Population at Risk'!N$5","v":3.9289875465050809E-3},{"$f":"'Population at Risk'!O120/'Population at Risk'!O$5","v":7.6566745240539578E-3},{"$f":"'Population at Risk'!P120/'Population at Risk'!P$5","v":4.1119869893937499E-3},{"$f":"'Population at Risk'!Q120/'Population at Risk'!Q$5","v":6.0610021538227248E-3},{"$f":"'Population at Risk'!R120/'Population at Risk'!R$5","v":2.5129622512478256E-3},{"$f":"'Population at Risk'!S120/'Population at Risk'!S$5","v":4.6417502319025927E-3},{"$f":"'Population at Risk'!T120/'Population at Risk'!T$5","v":3.105037407072768E-3},{"$f":"'Population at Risk'!U120/'Population at Risk'!U$5","v":6.1651040232840815E-3},{"$f":"'Population at Risk'!V120/'Population at Risk'!V$5","v":7.0230294064369788E-3},{"$f":"'Population at Risk'!W120/'Population at Risk'!W$5","v":4.8456236407020655E-3},{"$f":"'Population at Risk'!X120/'Population at Risk'!X$5","v":4.7799974483056168E-3},{"$f":"'Population at Risk'!Y120/'Population at Risk'!Y$5","v":6.4018247838217553E-3},{"$f":"'Population at Risk'!Z120/'Population at Risk'!Z$5","v":4.2690462373812894E-3},{"$f":"'Population at Risk'!AA120/'Population at Risk'!AA$5","v":5.0877499710267129E-3},{"$f":"'Population at Risk'!AB120/'Population at Risk'!AB$5","v":2.7911472135930719E-3},{"$f":"'Population at Risk'!AC120/'Population at Risk'!AC$5","v":4.2953058886120929E-3},{"$f":"'Population at Risk'!AD120/'Population at Risk'!AD$5","v":4.0949260981445485E-3},{"$f":"'Population at Risk'!AE120/'Population at Risk'!AE$5","v":4.7994152404081704E-3},{"$f":"'Population at Risk'!AF120/'Population at Risk'!AF$5","v":2.8940657004264303E-3},{"$f":"'Population at Risk'!AG120/'Population at Risk'!AG$5","v":4.4608731558000801E-3},{"$f":"'Population at Risk'!AH120/'Population at Risk'!AH$5","v":6.3806387549306893E-3},{"$f":"'Population at Risk'!AI120/'Population at Risk'!AI$5","v":4.6940237820904465E-3},{"$f":"'Population at Risk'!AJ120/'Population at Risk'!AJ$5","v":8.7492060971136529E-3},{"$f":"'Population at Risk'!AK120/'Population at Risk'!AK$5","v":3.6433366365975295E-3},{"$f":"'Population at Risk'!AL120/'Population at Risk'!AL$5","v":5.7787353707492465E-3},{"$f":"'Population at Risk'!AM120/'Population at Risk'!AM$5","v":6.9002240567527483E-3},{"$f":"'Population at Risk'!AN120/'Population at Risk'!AN$5","v":3.1030580783961694E-3},{"$f":"'Population at Risk'!AO120/'Population at Risk'!AO$5","v":3.1030580783961694E-3},{"$f":"'Population at Risk'!AP120/'Population at Risk'!AP$5","v":2.5133972737873618E-3},{"$f":"'Population at Risk'!AQ120/'Population at Risk'!AQ$5","v":4.0562004175041565E-3},{"$f":"'Population at Risk'!AR120/'Population at Risk'!AR$5","v":4.6780225951610849E-3},{"$f":"'Population at Risk'!AS120/'Population at Risk'!AS$5","v":3.4805780664856792E-3},{"$f":"'Population at Risk'!AT120/'Population at Risk'!AT$5","v":3.6222753557414727E-4},{"$f":"'Population at Risk'!AU120/'Population at Risk'!AU$5","v":3.6222753557414727E-4},{"$f":"'Population at Risk'!AV120/'Population at Risk'!AV$5","v":5.8765193225000442E-3},{"$f":"'Population at Risk'!AW120/'Population at Risk'!AW$5","v":5.7038009248068849E-3},{"$f":"'Population at Risk'!AX120/'Population at Risk'!AX$5","v":3.4993974636374774E-3},{"$f":"'Population at Risk'!AY120/'Population at Risk'!AY$5","v":3.9628692136041196E-3},{"$f":"'Population at Risk'!AZ120/'Population at Risk'!AZ$5","v":3.2103168843259314E-3},{"$f":"'Population at Risk'!BA120/'Population at Risk'!BA$5","v":7.4201742531934158E-3},{"$f":"'Population at Risk'!BB120/'Population at Risk'!BB$5","v":6.9569126332707301E-3},{"$f":"'Population at Risk'!BC120/'Population at Risk'!BC$5","v":6.6185261648430624E-3},118]
[null,"Male 20-24",{"$f":"'Population at Risk'!C121/'Population at Risk'!C$5","v":9.4581076012138065E-3},{"$f":"'Population at Risk'!D121/'Population at Risk'!D$5","v":5.6397557544265167E-3},{"$f":"'Population at Risk'!E121/'Population at Risk'!E$5","v":2.296524884606614E-3},{"$f":"'Population at Risk'!F121/'Population at Risk'!F$5","v":5.7496481951579545E-3},{"$f":"'Population at Risk'!G121/'Population at Risk'!G$5","v":4.5333618231061671E-3},{"$f":"'Population at Risk'!H121/'Population at Risk'!H$5","v":8.2335255470699763E-3},{"$f":"'Population at Risk'!I121/'Population at Risk'!I$5","v":5.1493483723349777E-3},{"$f":"'Population at Risk'!J121/'Population at Risk'!J$5","v":7.4627095777195871E-3},{"$f":"'Population at Risk'!K121/'Population at Risk'!K$5","v":9.4847969450999707E-3},{"$f":"'Population at Risk'!L121/'Population at Risk'!L$5","v":8.8757132497399287E-3},{"$f":"'Population at Risk'!M121/'Population at Risk'!M$5","v":8.9928829440156545E-3},{"$f":"'Population at Risk'!N121/'Population at Risk'!N$5","v":1.1696400869826295E-2},{"$f":"'Population at Risk'!O121/'Population at Risk'!O$5","v":1.030017563208359E-2},{"$f":"'Population at Risk'!P121/'Population at Risk'!P$5","v":6.0453078412089486E-3},{"$f":"'Population at Risk'!Q121/'Population at Risk'!Q$5","v":8.5033467717282631E-3},{"$f":"'Population at Risk'!R121/'Population at Risk'!R$5","v":3.4005681840280208E-3},{"$f":"'Population at Risk'!S121/'Population at Risk'!S$5","v":6.8632486992612329E-3},{"$f":"'Population at Risk'!T121/'Population at Risk'!T$5","v":5.9951579204457067E-3},{"$f":"'Population at Risk'!U121/'Population at Risk'!U$5","v":6.8696873402308324E-3},{"$f":"'Population at Risk'!V121/'Population at Risk'!V$5","v":8.4417583815947234E-3},{"$f":"'Population at Risk'!W121/'Population at Risk'!W$5","v":6.0162788933487421E-3},{"$f":"'Population at Risk'!X121/'Population at Risk'!X$5","v":5.9347980550828149E-3},{"$f":"'Population at Risk'!Y121/'Population at Risk'!Y$5","v":8.7609812056149618E-3},{"$f":"'Population at Risk'!Z121/'Population at Risk'!Z$5","v":8.048682708605084E-3},{"$f":"'Population at Risk'!AA121/'Population at Risk'!AA$5","v":7.5843012028608105E-3},{"$f":"'Population at Risk'!AB121/'Population at Risk'!AB$5","v":5.4720309464604744E-3},{"$f":"'Population at Risk'!AC121/'Population at Risk'!AC$5","v":7.1173611058236936E-3},{"$f":"'Population at Risk'!AD121/'Population at Risk'!AD$5","v":5.3004126884936276E-3},{"$f":"'Population at Risk'!AE121/'Population at Risk'!AE$5","v":6.1909616710590599E-3},{"$f":"'Population at Risk'!AF121/'Population at Risk'!AF$5","v":4.3750664579216463E-3},{"$f":"'Population at Risk'!AG121/'Population at Risk'!AG$5","v":5.7542624139906356E-3},{"$f":"'Population at Risk'!AH121/'Population at Risk'!AH$5","v":8.3388347866163136E-3},{"$f":"'Population at Risk'!AI121/'Population at Risk'!AI$5","v":7.4027572412876047E-3},{"$f":"'Population at Risk'!AJ121/'Population at Risk'!AJ$5","v":1.0811431802012128E-2},{"$f":"'Population at Risk'!AK121/'Population at Risk'!AK$5","v":5.1175190907121366E-3},{"$f":"'Population at Risk'!AL121/'Population at Risk'!AL$5","v":7.2517463476068971E-3},{"$f":"'Population at Risk'!AM121/'Population at Risk'!AM$5","v":8.8382788460985018E-3},{"$f":"'Population at Risk'!AN121/'Population at Risk'!AN$5","v":4.2146012706574844E-3},{"$f":"'Population at Risk'!AO121/'Population at Risk'!AO$5","v":4.2146012706574844E-3},{"$f":"'Population at Risk'!AP121/'Population at Risk'!AP$5","v":4.4249020425361713E-3},{"$f":"'Population at Risk'!AQ121/'Population at Risk'!AQ$5","v":5.4604849758400787E-3},{"$f":"'Population at Risk'!AR121/'Population at Risk'!AR$5","v":7.1008485465062793E-3},{"$f":"'Population at Risk'!AS121/'Population at Risk'!AS$5","v":5.1493483723349777E-3},{"$f":"'Population at Risk'!AT121/'Population at Risk'!AT$5","v":1.9016945617642731E-3},{"$f":"'Population at Risk'!AU121/'Population at Risk'!AU$5","v":1.9016945617642731E-3},{"$f":"'Population at Risk'!AV121/'Population at Risk'!AV$5","v":7.3136120540148531E-3},{"$f":"'Population at Risk'!AW121/'Population at Risk'!AW$5","v":7.6318028599092671E-3},{"$f":"'Population at Risk'!AX121/'Population at Risk'!AX$5","v":6.9543581340859072E-3},{"$f":"'Population at Risk'!AY121/'Population at Risk'!AY$5","v":6.6550575611418455E-3},{"$f":"'Population at Risk'!AZ121/'Population at Risk'!AZ$5","v":7.1137156747132337E-3},{"$f":"'Population at Risk'!BA121/'Population at Risk'!BA$5","v":1.0627522300885938E-2},{"$f":"'Population at Risk'!BB121/'Population at Risk'!BB$5","v":9.7843551071596594E-3},{"$f":"'Population at Risk'!BC121/'Population at Risk'!BC$5","v":7.3749291551108405E-3},119]
[null,"Male 25-29",{"$f":"'Population at Risk'!C122/'Population at Risk'!C$5","v":1.777972591343889E-2},{"$f":"'Population at Risk'!D122/'Population at Risk'!D$5","v":1.056518824977371E-2},{"$f":"'Population at Risk'!E122/'Population at Risk'!E$5","v":4.2478709541733037E-3},{"$f":"'Population at Risk'!F122/'Population at Risk'!F$5","v":1.0585953564924285E-2},{"$f":"'Population at Risk'!G122/'Population at Risk'!G$5","v":6.5277180153878681E-3},{"$f":"'Population at Risk'!H122/'Population at Risk'!H$5","v":1.2674910687962504E-2},{"$f":"'Population at Risk'!I122/'Population at Risk'!I$5","v":8.5276534155395243E-3},{"$f":"'Population at Risk'!J122/'Population at Risk'!J$5","v":1.1851962369301906E-2},{"$f":"'Population at Risk'!K122/'Population at Risk'!K$5","v":1.4234285100596581E-2},{"$f":"'Population at Risk'!L122/'Population at Risk'!L$5","v":1.1374056248833095E-2},{"$f":"'Population at Risk'!M122/'Population at Risk'!M$5","v":1.1524206964144874E-2},{"$f":"'Population at Risk'!N122/'Population at Risk'!N$5","v":1.7055114231748301E-2},{"$f":"'Population at Risk'!O122/'Population at Risk'!O$5","v":1.5586776922207259E-2},{"$f":"'Population at Risk'!P122/'Population at Risk'!P$5","v":8.9616585631385488E-3},{"$f":"'Population at Risk'!Q122/'Population at Risk'!Q$5","v":1.3340818500794775E-2},{"$f":"'Population at Risk'!R122/'Population at Risk'!R$5","v":4.682436194333812E-3},{"$f":"'Population at Risk'!S122/'Population at Risk'!S$5","v":1.2707863716927755E-2},{"$f":"'Population at Risk'!T122/'Population at Risk'!T$5","v":1.3873214543934127E-2},{"$f":"'Population at Risk'!U122/'Population at Risk'!U$5","v":1.2271801743220196E-2},{"$f":"'Population at Risk'!V122/'Population at Risk'!V$5","v":1.3472866461599505E-2},{"$f":"'Population at Risk'!W122/'Population at Risk'!W$5","v":1.0064790942840124E-2},{"$f":"'Population at Risk'!X122/'Population at Risk'!X$5","v":9.9284795088903852E-3},{"$f":"'Population at Risk'!Y122/'Population at Risk'!Y$5","v":1.3952211935872963E-2},{"$f":"'Population at Risk'!Z122/'Population at Risk'!Z$5","v":1.7428061773482054E-2},{"$f":"'Population at Risk'!AA122/'Population at Risk'!AA$5","v":1.3556675025038269E-2},{"$f":"'Population at Risk'!AB122/'Population at Risk'!AB$5","v":1.013109396732529E-2},{"$f":"'Population at Risk'!AC122/'Population at Risk'!AC$5","v":1.3650390846179404E-2},{"$f":"'Population at Risk'!AD122/'Population at Risk'!AD$5","v":8.0956429753742658E-3},{"$f":"'Population at Risk'!AE122/'Population at Risk'!AE$5","v":9.620536784395145E-3},{"$f":"'Population at Risk'!AF122/'Population at Risk'!AF$5","v":6.845441319772853E-3},{"$f":"'Population at Risk'!AG122/'Population at Risk'!AG$5","v":8.9419214917202481E-3},{"$f":"'Population at Risk'!AH122/'Population at Risk'!AH$5","v":1.3381275050867687E-2},{"$f":"'Population at Risk'!AI122/'Population at Risk'!AI$5","v":1.4265803684233157E-2},{"$f":"'Population at Risk'!AJ122/'Population at Risk'!AJ$5","v":1.7905567682937093E-2},{"$f":"'Population at Risk'!AK122/'Population at Risk'!AK$5","v":8.8197753935027878E-3},{"$f":"'Population at Risk'!AL122/'Population at Risk'!AL$5","v":1.0648874058886645E-2},{"$f":"'Population at Risk'!AM122/'Population at Risk'!AM$5","v":1.4229698515841126E-2},{"$f":"'Population at Risk'!AN122/'Population at Risk'!AN$5","v":7.5835251547164036E-3},{"$f":"'Population at Risk'!AO122/'Population at Risk'!AO$5","v":7.5835251547164036E-3},{"$f":"'Population at Risk'!AP122/'Population at Risk'!AP$5","v":7.8622560907183735E-3},{"$f":"'Population at Risk'!AQ122/'Population at Risk'!AQ$5","v":8.949479915452219E-3},{"$f":"'Population at Risk'!AR122/'Population at Risk'!AR$5","v":1.2313478550003504E-2},{"$f":"'Population at Risk'!AS122/'Population at Risk'!AS$5","v":8.5276534155395243E-3},{"$f":"'Population at Risk'!AT122/'Population at Risk'!AT$5","v":3.279230893293677E-3},{"$f":"'Population at Risk'!AU122/'Population at Risk'!AU$5","v":3.279230893293677E-3},{"$f":"'Population at Risk'!AV122/'Population at Risk'!AV$5","v":1.2033564962953614E-2},{"$f":"'Population at Risk'!AW122/'Population at Risk'!AW$5","v":1.220027932982993E-2},{"$f":"'Population at Risk'!AX122/'Population at Risk'!AX$5","v":1.143887089054697E-2},{"$f":"'Population at Risk'!AY122/'Population at Risk'!AY$5","v":1.0881387566553786E-2},{"$f":"'Population at Risk'!AZ122/'Population at Risk'!AZ$5","v":1.1446309626429396E-2},{"$f":"'Population at Risk'!BA122/'Population at Risk'!BA$5","v":1.6912612055009716E-2},{"$f":"'Population at Risk'!BB122/'Population at Risk'!BB$5","v":1.5103295619133613E-2},{"$f":"'Population at Risk'!BC122/'Population at Risk'!BC$5","v":1.3174350444131504E-2},120]
[null,"Male 30-34",{"$f":"'Population at Risk'!C123/'Population at Risk'!C$5","v":1.4128830708949366E-2},{"$f":"'Population at Risk'!D123/'Population at Risk'!D$5","v":8.610409488344295E-3},{"$f":"'Population at Risk'!E123/'Population at Risk'!E$5","v":3.7811368715868075E-3},{"$f":"'Population at Risk'!F123/'Population at Risk'!F$5","v":1.0705064153559157E-2},{"$f":"'Population at Risk'!G123/'Population at Risk'!G$5","v":6.9401837141623776E-3},{"$f":"'Population at Risk'!H123/'Population at Risk'!H$5","v":1.206874090986316E-2},{"$f":"'Population at Risk'!I123/'Population at Risk'!I$5","v":7.2515080980732208E-3},{"$f":"'Population at Risk'!J123/'Population at Risk'!J$5","v":9.392765566449638E-3},{"$f":"'Population at Risk'!K123/'Population at Risk'!K$5","v":1.34986631315735E-2},{"$f":"'Population at Risk'!L123/'Population at Risk'!L$5","v":1.1419873192433632E-2},{"$f":"'Population at Risk'!M123/'Population at Risk'!M$5","v":1.1570628744463686E-2},{"$f":"'Population at Risk'!N123/'Population at Risk'!N$5","v":1.3117631267634064E-2},{"$f":"'Population at Risk'!O123/'Population at Risk'!O$5","v":1.5934992151320396E-2},{"$f":"'Population at Risk'!P123/'Population at Risk'!P$5","v":7.8491768104730734E-3},{"$f":"'Population at Risk'!Q123/'Population at Risk'!Q$5","v":1.3042611969600538E-2},{"$f":"'Population at Risk'!R123/'Population at Risk'!R$5","v":3.9927750494319321E-3},{"$f":"'Population at Risk'!S123/'Population at Risk'!S$5","v":1.2106657949224338E-2},{"$f":"'Population at Risk'!T123/'Population at Risk'!T$5","v":1.2532620525286834E-2},{"$f":"'Population at Risk'!U123/'Population at Risk'!U$5","v":1.0122503132825698E-2},{"$f":"'Population at Risk'!V123/'Population at Risk'!V$5","v":1.3493080814880225E-2},{"$f":"'Population at Risk'!W123/'Population at Risk'!W$5","v":9.8314856358665478E-3},{"$f":"'Population at Risk'!X123/'Population at Risk'!X$5","v":9.6983339477199997E-3},{"$f":"'Population at Risk'!Y123/'Population at Risk'!Y$5","v":1.2694514651004886E-2},{"$f":"'Population at Risk'!Z123/'Population at Risk'!Z$5","v":1.6169801310948823E-2},{"$f":"'Population at Risk'!AA123/'Population at Risk'!AA$5","v":1.3064642229452713E-2},{"$f":"'Population at Risk'!AB123/'Population at Risk'!AB$5","v":8.4158038889699596E-3},{"$f":"'Population at Risk'!AC123/'Population at Risk'!AC$5","v":1.2902837146311349E-2},{"$f":"'Population at Risk'!AD123/'Population at Risk'!AD$5","v":8.0075936862161155E-3},{"$f":"'Population at Risk'!AE123/'Population at Risk'!AE$5","v":9.3150046324507584E-3},{"$f":"'Population at Risk'!AF123/'Population at Risk'!AF$5","v":6.8240493156485624E-3},{"$f":"'Population at Risk'!AG123/'Population at Risk'!AG$5","v":8.6579410260653068E-3},{"$f":"'Population at Risk'!AH123/'Population at Risk'!AH$5","v":1.3309518953146688E-2},{"$f":"'Population at Risk'!AI123/'Population at Risk'!AI$5","v":1.360232164200202E-2},{"$f":"'Population at Risk'!AJ123/'Population at Risk'!AJ$5","v":1.7329208208164439E-2},{"$f":"'Population at Risk'!AK123/'Population at Risk'!AK$5","v":8.2063699619997731E-3},{"$f":"'Population at Risk'!AL123/'Population at Risk'!AL$5","v":9.6608341977528333E-3},{"$f":"'Population at Risk'!AM123/'Population at Risk'!AM$5","v":1.4558907701117835E-2},{"$f":"'Population at Risk'!AN123/'Population at Risk'!AN$5","v":5.1772142883160059E-3},{"$f":"'Population at Risk'!AO123/'Population at Risk'!AO$5","v":5.1772142883160059E-3},{"$f":"'Population at Risk'!AP123/'Population at Risk'!AP$5","v":7.8310153380400215E-3},{"$f":"'Population at Risk'!AQ123/'Population at Risk'!AQ$5","v":9.6189292004663623E-3},{"$f":"'Population at Risk'!AR123/'Population at Risk'!AR$5","v":1.1547208457712003E-2},{"$f":"'Population at Risk'!AS123/'Population at Risk'!AS$5","v":7.2515080980732208E-3},{"$f":"'Population at Risk'!AT123/'Population at Risk'!AT$5","v":1.7109030747619184E-3},{"$f":"'Population at Risk'!AU123/'Population at Risk'!AU$5","v":1.7109030747619184E-3},{"$f":"'Population at Risk'!AV123/'Population at Risk'!AV$5","v":1.101035165472642E-2},{"$f":"'Population at Risk'!AW123/'Population at Risk'!AW$5","v":1.1734026616588022E-2},{"$f":"'Population at Risk'!AX123/'Population at Risk'!AX$5","v":8.0107077490374802E-3},{"$f":"'Population at Risk'!AY123/'Population at Risk'!AY$5","v":1.0032395566382342E-2},{"$f":"'Population at Risk'!AZ123/'Population at Risk'!AZ$5","v":1.0105034019757431E-2},{"$f":"'Population at Risk'!BA123/'Population at Risk'!BA$5","v":1.6411646058119619E-2},{"$f":"'Population at Risk'!BB123/'Population at Risk'!BB$5","v":1.6228757435063728E-2},{"$f":"'Population at Risk'!BC123/'Population at Risk'!BC$5","v":1.0866978332447456E-2},121]
[null,"Male 35-39",{"$f":"'Population at Risk'!C124/'Population at Risk'!C$5","v":7.7786320393555168E-3},{"$f":"'Population at Risk'!D124/'Population at Risk'!D$5","v":5.0189070392011228E-3},{"$f":"'Population at Risk'!E124/'Population at Risk'!E$5","v":2.6076771534439022E-3},{"$f":"'Population at Risk'!F124/'Population at Risk'!F$5","v":6.4766750190267822E-3},{"$f":"'Population at Risk'!G124/'Population at Risk'!G$5","v":4.7898807686324787E-3},{"$f":"'Population at Risk'!H124/'Population at Risk'!H$5","v":7.5717838977176714E-3},{"$f":"'Population at Risk'!I124/'Population at Risk'!I$5","v":5.0204951872348819E-3},{"$f":"'Population at Risk'!J124/'Population at Risk'!J$5","v":5.8801771973995467E-3},{"$f":"'Population at Risk'!K124/'Population at Risk'!K$5","v":1.0006432506052416E-2},{"$f":"'Population at Risk'!L124/'Population at Risk'!L$5","v":7.6281166845726459E-3},{"$f":"'Population at Risk'!M124/'Population at Risk'!M$5","v":7.7288166592881583E-3},{"$f":"'Population at Risk'!N124/'Population at Risk'!N$5","v":6.3484784051783174E-3},{"$f":"'Population at Risk'!O124/'Population at Risk'!O$5","v":9.9620259661402089E-3},{"$f":"'Population at Risk'!P124/'Population at Risk'!P$5","v":4.8384473553123274E-3},{"$f":"'Population at Risk'!Q124/'Population at Risk'!Q$5","v":8.873394543324975E-3},{"$f":"'Population at Risk'!R124/'Population at Risk'!R$5","v":2.558754323425319E-3},{"$f":"'Population at Risk'!S124/'Population at Risk'!S$5","v":7.5193785478280661E-3},{"$f":"'Population at Risk'!T124/'Population at Risk'!T$5","v":6.8059581404431493E-3},{"$f":"'Population at Risk'!U124/'Population at Risk'!U$5","v":6.9750409128198961E-3},{"$f":"'Population at Risk'!V124/'Population at Risk'!V$5","v":9.5594844792328566E-3},{"$f":"'Population at Risk'!W124/'Population at Risk'!W$5","v":6.826498833024143E-3},{"$f":"'Population at Risk'!X124/'Population at Risk'!X$5","v":6.7340448665115351E-3},{"$f":"'Population at Risk'!Y124/'Population at Risk'!Y$5","v":8.5940008809476613E-3},{"$f":"'Population at Risk'!Z124/'Population at Risk'!Z$5","v":8.9553285230154246E-3},{"$f":"'Population at Risk'!AA124/'Population at Risk'!AA$5","v":7.9193459946928623E-3},{"$f":"'Population at Risk'!AB124/'Population at Risk'!AB$5","v":5.0133108882662184E-3},{"$f":"'Population at Risk'!AC124/'Population at Risk'!AC$5","v":7.4734315858820243E-3},{"$f":"'Population at Risk'!AD124/'Population at Risk'!AD$5","v":5.3959176435183576E-3},{"$f":"'Population at Risk'!AE124/'Population at Risk'!AE$5","v":6.2298619120068803E-3},{"$f":"'Population at Risk'!AF124/'Population at Risk'!AF$5","v":4.6527873065399178E-3},{"$f":"'Population at Risk'!AG124/'Population at Risk'!AG$5","v":5.7904187021853466E-3},{"$f":"'Population at Risk'!AH124/'Population at Risk'!AH$5","v":8.6388287471228422E-3},{"$f":"'Population at Risk'!AI124/'Population at Risk'!AI$5","v":8.0935399365151053E-3},{"$f":"'Population at Risk'!AJ124/'Population at Risk'!AJ$5","v":1.2059498698671468E-2},{"$f":"'Population at Risk'!AK124/'Population at Risk'!AK$5","v":5.4733744521899032E-3},{"$f":"'Population at Risk'!AL124/'Population at Risk'!AL$5","v":5.8624969877713769E-3},{"$f":"'Population at Risk'!AM124/'Population at Risk'!AM$5","v":9.2284809468227667E-3},{"$f":"'Population at Risk'!AN124/'Population at Risk'!AN$5","v":3.7195777375474983E-3},{"$f":"'Population at Risk'!AO124/'Population at Risk'!AO$5","v":3.7195777375474983E-3},{"$f":"'Population at Risk'!AP124/'Population at Risk'!AP$5","v":5.0021104701508945E-3},{"$f":"'Population at Risk'!AQ124/'Population at Risk'!AQ$5","v":5.4043732127926937E-3},{"$f":"'Population at Risk'!AR124/'Population at Risk'!AR$5","v":7.1226523431937756E-3},{"$f":"'Population at Risk'!AS124/'Population at Risk'!AS$5","v":5.0204951872348819E-3},{"$f":"'Population at Risk'!AT124/'Population at Risk'!AT$5","v":1.6666770523307527E-3},{"$f":"'Population at Risk'!AU124/'Population at Risk'!AU$5","v":1.6666770523307527E-3},{"$f":"'Population at Risk'!AV124/'Population at Risk'!AV$5","v":7.1470895271576211E-3},{"$f":"'Population at Risk'!AW124/'Population at Risk'!AW$5","v":7.834955254847056E-3},{"$f":"'Population at Risk'!AX124/'Population at Risk'!AX$5","v":4.2751155330362145E-3},{"$f":"'Population at Risk'!AY124/'Population at Risk'!AY$5","v":6.2143831817226547E-3},{"$f":"'Population at Risk'!AZ124/'Population at Risk'!AZ$5","v":5.6612807797546882E-3},{"$f":"'Population at Risk'!BA124/'Population at Risk'!BA$5","v":1.1428453660852515E-2},{"$f":"'Population at Risk'!BB124/'Population at Risk'!BB$5","v":1.0059543087279268E-2},{"$f":"'Population at Risk'!BC124/'Population at Risk'!BC$5","v":7.4880311196692528E-3},122]
[null,"Male 40-44",{"$f":"'Population at Risk'!C125/'Population at Risk'!C$5","v":6.7695890281601915E-3},{"$f":"'Population at Risk'!D125/'Population at Risk'!D$5","v":4.4627279368437351E-3},{"$f":"'Population at Risk'!E125/'Population at Risk'!E$5","v":2.4486214041166657E-3},{"$f":"'Population at Risk'!F125/'Population at Risk'!F$5","v":6.1180317769308368E-3},{"$f":"'Population at Risk'!G125/'Population at Risk'!G$5","v":4.5738914501530304E-3},{"$f":"'Population at Risk'!H125/'Population at Risk'!H$5","v":8.8319878193275862E-3},{"$f":"'Population at Risk'!I125/'Population at Risk'!I$5","v":5.4672341657600191E-3},{"$f":"'Population at Risk'!J125/'Population at Risk'!J$5","v":6.3318780520694702E-3},{"$f":"'Population at Risk'!K125/'Population at Risk'!K$5","v":1.0866360299541293E-2},{"$f":"'Population at Risk'!L125/'Population at Risk'!L$5","v":9.105049914989902E-3},{"$f":"'Population at Risk'!M125/'Population at Risk'!M$5","v":9.2252471188524615E-3},{"$f":"'Population at Risk'!N125/'Population at Risk'!N$5","v":5.9599546349715666E-3},{"$f":"'Population at Risk'!O125/'Population at Risk'!O$5","v":1.1089802490608912E-2},{"$f":"'Population at Risk'!P125/'Population at Risk'!P$5","v":5.4295698828844214E-3},{"$f":"'Population at Risk'!Q125/'Population at Risk'!Q$5","v":9.1402635521467789E-3},{"$f":"'Population at Risk'!R125/'Population at Risk'!R$5","v":3.4073864105915053E-3},{"$f":"'Population at Risk'!S125/'Population at Risk'!S$5","v":7.4739917011087328E-3},{"$f":"'Population at Risk'!T125/'Population at Risk'!T$5","v":5.8265029098996694E-3},{"$f":"'Population at Risk'!U125/'Population at Risk'!U$5","v":9.7748812792335174E-3},{"$f":"'Population at Risk'!V125/'Population at Risk'!V$5","v":1.0354318020202778E-2},{"$f":"'Population at Risk'!W125/'Population at Risk'!W$5","v":7.4876609476027525E-3},{"$f":"'Population at Risk'!X125/'Population at Risk'!X$5","v":7.3862526017668892E-3},{"$f":"'Population at Risk'!Y125/'Population at Risk'!Y$5","v":9.2893488204429421E-3},{"$f":"'Population at Risk'!Z125/'Population at Risk'!Z$5","v":6.908688374262356E-3},{"$f":"'Population at Risk'!AA125/'Population at Risk'!AA$5","v":7.6092651210849498E-3},{"$f":"'Population at Risk'!AB125/'Population at Risk'!AB$5","v":4.4368994569532949E-3},{"$f":"'Population at Risk'!AC125/'Population at Risk'!AC$5","v":6.4835943119696607E-3},{"$f":"'Population at Risk'!AD125/'Population at Risk'!AD$5","v":5.3023468173301778E-3},{"$f":"'Population at Risk'!AE125/'Population at Risk'!AE$5","v":6.1770664720746191E-3},{"$f":"'Population at Risk'!AF125/'Population at Risk'!AF$5","v":3.9556269935078778E-3},{"$f":"'Population at Risk'!AG125/'Population at Risk'!AG$5","v":5.741347357251572E-3},{"$f":"'Population at Risk'!AH125/'Population at Risk'!AH$5","v":9.4452129240052505E-3},{"$f":"'Population at Risk'!AI125/'Population at Risk'!AI$5","v":7.7020459020736044E-3},{"$f":"'Population at Risk'!AJ125/'Population at Risk'!AJ$5","v":1.2018665181633076E-2},{"$f":"'Population at Risk'!AK125/'Population at Risk'!AK$5","v":4.7334118116577921E-3},{"$f":"'Population at Risk'!AL125/'Population at Risk'!AL$5","v":7.2236073995259244E-3},{"$f":"'Population at Risk'!AM125/'Population at Risk'!AM$5","v":1.0206679040393947E-2},{"$f":"'Population at Risk'!AN125/'Population at Risk'!AN$5","v":5.2694017948589564E-3},{"$f":"'Population at Risk'!AO125/'Population at Risk'!AO$5","v":5.2694017948589564E-3},{"$f":"'Population at Risk'!AP125/'Population at Risk'!AP$5","v":3.7257607484162268E-3},{"$f":"'Population at Risk'!AQ125/'Population at Risk'!AQ$5","v":5.7288852301890228E-3},{"$f":"'Population at Risk'!AR125/'Population at Risk'!AR$5","v":7.0506351725365801E-3},{"$f":"'Population at Risk'!AS125/'Population at Risk'!AS$5","v":5.4672341657600191E-3},{"$f":"'Population at Risk'!AT125/'Population at Risk'!AT$5","v":1.4646555914421767E-3},{"$f":"'Population at Risk'!AU125/'Population at Risk'!AU$5","v":1.4646555914421767E-3},{"$f":"'Population at Risk'!AV125/'Population at Risk'!AV$5","v":8.3927251304622367E-3},{"$f":"'Population at Risk'!AW125/'Population at Risk'!AW$5","v":8.4508783952149183E-3},{"$f":"'Population at Risk'!AX125/'Population at Risk'!AX$5","v":4.5601232352386291E-3},{"$f":"'Population at Risk'!AY125/'Population at Risk'!AY$5","v":6.129519779384804E-3},{"$f":"'Population at Risk'!AZ125/'Population at Risk'!AZ$5","v":4.9714044590354108E-3},{"$f":"'Population at Risk'!BA125/'Population at Risk'!BA$5","v":1.0690218144871982E-2},{"$f":"'Population at Risk'!BB125/'Population at Risk'!BB$5","v":1.0871141043365493E-2},{"$f":"'Population at Risk'!BC125/'Population at Risk'!BC$5","v":1.0493790090240714E-2},123]
[null,"Male 45-49",{"$f":"'Population at Risk'!C126/'Population at Risk'!C$5","v":8.372026048490645E-3},{"$f":"'Population at Risk'!D126/'Population at Risk'!D$5","v":5.5242030526451227E-3},{"$f":"'Population at Risk'!E126/'Population at Risk'!E$5","v":3.0378668646399267E-3},{"$f":"'Population at Risk'!F126/'Population at Risk'!F$5","v":8.1841367752910933E-3},{"$f":"'Population at Risk'!G126/'Population at Risk'!G$5","v":7.371020351860629E-3},{"$f":"'Population at Risk'!H126/'Population at Risk'!H$5","v":1.3208802292022688E-2},{"$f":"'Population at Risk'!I126/'Population at Risk'!I$5","v":7.5835209945181222E-3},{"$f":"'Population at Risk'!J126/'Population at Risk'!J$5","v":9.0866599173159927E-3},{"$f":"'Population at Risk'!K126/'Population at Risk'!K$5","v":1.618043413240066E-2},{"$f":"'Population at Risk'!L126/'Population at Risk'!L$5","v":1.2772024351790831E-2},{"$f":"'Population at Risk'!M126/'Population at Risk'!M$5","v":1.2940629865113977E-2},{"$f":"'Population at Risk'!N126/'Population at Risk'!N$5","v":8.2557653987380374E-3},{"$f":"'Population at Risk'!O126/'Population at Risk'!O$5","v":1.6135429756923253E-2},{"$f":"'Population at Risk'!P126/'Population at Risk'!P$5","v":7.217970399926766E-3},{"$f":"'Population at Risk'!Q126/'Population at Risk'!Q$5","v":1.2124886013249892E-2},{"$f":"'Population at Risk'!R126/'Population at Risk'!R$5","v":4.2541105145070006E-3},{"$f":"'Population at Risk'!S126/'Population at Risk'!S$5","v":9.3374043577330867E-3},{"$f":"'Population at Risk'!T126/'Population at Risk'!T$5","v":6.2264947486638418E-3},{"$f":"'Population at Risk'!U126/'Population at Risk'!U$5","v":1.3447488825356077E-2},{"$f":"'Population at Risk'!V126/'Population at Risk'!V$5","v":1.426475220699548E-2},{"$f":"'Population at Risk'!W126/'Population at Risk'!W$5","v":9.9937905058602224E-3},{"$f":"'Population at Risk'!X126/'Population at Risk'!X$5","v":9.8584406588357112E-3},{"$f":"'Population at Risk'!Y126/'Population at Risk'!Y$5","v":1.2985210280478448E-2},{"$f":"'Population at Risk'!Z126/'Population at Risk'!Z$5","v":8.5033595496272468E-3},{"$f":"'Population at Risk'!AA126/'Population at Risk'!AA$5","v":1.0151710747152293E-2},{"$f":"'Population at Risk'!AB126/'Population at Risk'!AB$5","v":5.6927996930015625E-3},{"$f":"'Population at Risk'!AC126/'Population at Risk'!AC$5","v":8.3679757353416068E-3},{"$f":"'Population at Risk'!AD126/'Population at Risk'!AD$5","v":7.7839250286676522E-3},{"$f":"'Population at Risk'!AE126/'Population at Risk'!AE$5","v":8.7952333297224919E-3},{"$f":"'Population at Risk'!AF126/'Population at Risk'!AF$5","v":5.6322305305491925E-3},{"$f":"'Population at Risk'!AG126/'Population at Risk'!AG$5","v":8.1748334524646138E-3},{"$f":"'Population at Risk'!AH126/'Population at Risk'!AH$5","v":1.3063977723693764E-2},{"$f":"'Population at Risk'!AI126/'Population at Risk'!AI$5","v":9.2705034937279867E-3},{"$f":"'Population at Risk'!AJ126/'Population at Risk'!AJ$5","v":1.6253029114328466E-2},{"$f":"'Population at Risk'!AK126/'Population at Risk'!AK$5","v":7.1425725742687912E-3},{"$f":"'Population at Risk'!AL126/'Population at Risk'!AL$5","v":1.1235487151074329E-2},{"$f":"'Population at Risk'!AM126/'Population at Risk'!AM$5","v":1.3447759354667318E-2},{"$f":"'Population at Risk'!AN126/'Population at Risk'!AN$5","v":6.3192473816347022E-3},{"$f":"'Population at Risk'!AO126/'Population at Risk'!AO$5","v":6.3192473816347022E-3},{"$f":"'Population at Risk'!AP126/'Population at Risk'!AP$5","v":5.2514557451116342E-3},{"$f":"'Population at Risk'!AQ126/'Population at Risk'!AQ$5","v":7.7136111055090663E-3},{"$f":"'Population at Risk'!AR126/'Population at Risk'!AR$5","v":9.4129825755984355E-3},{"$f":"'Population at Risk'!AS126/'Population at Risk'!AS$5","v":7.5835209945181222E-3},{"$f":"'Population at Risk'!AT126/'Population at Risk'!AT$5","v":7.6488436415503768E-4},{"$f":"'Population at Risk'!AU126/'Population at Risk'!AU$5","v":7.6488436415503768E-4},{"$f":"'Population at Risk'!AV126/'Population at Risk'!AV$5","v":1.2489222309111047E-2},{"$f":"'Population at Risk'!AW126/'Population at Risk'!AW$5","v":1.2350373823238692E-2},{"$f":"'Population at Risk'!AX126/'Population at Risk'!AX$5","v":6.2651778679280023E-3},{"$f":"'Population at Risk'!AY126/'Population at Risk'!AY$5","v":8.2975842285518166E-3},{"$f":"'Population at Risk'!AZ126/'Population at Risk'!AZ$5","v":6.8453993859632018E-3},{"$f":"'Population at Risk'!BA126/'Population at Risk'!BA$5","v":1.5331556234416703E-2},{"$f":"'Population at Risk'!BB126/'Population at Risk'!BB$5","v":1.3883739671296901E-2},{"$f":"'Population at Risk'!BC126/'Population at Risk'!BC$5","v":1.4436505256993738E-2},124]
[null,"Male 50-54",{"$f":"'Population at Risk'!C127/'Population at Risk'!C$5","v":7.7704763851515002E-3},{"$f":"'Population at Risk'!D127/'Population at Risk'!D$5","v":5.3305978054729811E-3},{"$f":"'Population at Risk'!E127/'Population at Risk'!E$5","v":3.2036573516347222E-3},{"$f":"'Population at Risk'!F127/'Population at Risk'!F$5","v":8.1964252689476855E-3},{"$f":"'Population at Risk'!G127/'Population at Risk'!G$5","v":7.5782377914711688E-3},{"$f":"'Population at Risk'!H127/'Population at Risk'!H$5","v":1.3967457499729673E-2},{"$f":"'Population at Risk'!I127/'Population at Risk'!I$5","v":8.5872223026161078E-3},{"$f":"'Population at Risk'!J127/'Population at Risk'!J$5","v":9.180627444899404E-3},{"$f":"'Population at Risk'!K127/'Population at Risk'!K$5","v":1.5117929076802117E-2},{"$f":"'Population at Risk'!L127/'Population at Risk'!L$5","v":1.4955841987071127E-2},{"$f":"'Population at Risk'!M127/'Population at Risk'!M$5","v":1.5153276422361446E-2},{"$f":"'Population at Risk'!N127/'Population at Risk'!N$5","v":7.6764134409318587E-3},{"$f":"'Population at Risk'!O127/'Population at Risk'!O$5","v":1.6888142765091853E-2},{"$f":"'Population at Risk'!P127/'Population at Risk'!P$5","v":9.25838606068345E-3},{"$f":"'Population at Risk'!Q127/'Population at Risk'!Q$5","v":1.310938530492403E-2},{"$f":"'Population at Risk'!R127/'Population at Risk'!R$5","v":5.1229077322584304E-3},{"$f":"'Population at Risk'!S127/'Population at Risk'!S$5","v":9.5966919664907824E-3},{"$f":"'Population at Risk'!T127/'Population at Risk'!T$5","v":5.9950957554413924E-3},{"$f":"'Population at Risk'!U127/'Population at Risk'!U$5","v":1.4820849386243505E-2},{"$f":"'Population at Risk'!V127/'Population at Risk'!V$5","v":1.3864338109957009E-2},{"$f":"'Population at Risk'!W127/'Population at Risk'!W$5","v":1.0421270562180255E-2},{"$f":"'Population at Risk'!X127/'Population at Risk'!X$5","v":1.0280131184126951E-2},{"$f":"'Population at Risk'!Y127/'Population at Risk'!Y$5","v":1.2800885293306918E-2},{"$f":"'Population at Risk'!Z127/'Population at Risk'!Z$5","v":8.2199142313063387E-3},{"$f":"'Population at Risk'!AA127/'Population at Risk'!AA$5","v":1.0464213882008246E-2},{"$f":"'Population at Risk'!AB127/'Population at Risk'!AB$5","v":5.4960537982772411E-3},{"$f":"'Population at Risk'!AC127/'Population at Risk'!AC$5","v":8.7498649208254571E-3},{"$f":"'Population at Risk'!AD127/'Population at Risk'!AD$5","v":8.579274214688154E-3},{"$f":"'Population at Risk'!AE127/'Population at Risk'!AE$5","v":9.9207771754142512E-3},{"$f":"'Population at Risk'!AF127/'Population at Risk'!AF$5","v":7.3978200385583443E-3},{"$f":"'Population at Risk'!AG127/'Population at Risk'!AG$5","v":9.2209834677100862E-3},{"$f":"'Population at Risk'!AH127/'Population at Risk'!AH$5","v":1.3262071492522636E-2},{"$f":"'Population at Risk'!AI127/'Population at Risk'!AI$5","v":9.3682347052582524E-3},{"$f":"'Population at Risk'!AJ127/'Population at Risk'!AJ$5","v":1.7632554512325128E-2},{"$f":"'Population at Risk'!AK127/'Population at Risk'!AK$5","v":6.9099600574822591E-3},{"$f":"'Population at Risk'!AL127/'Population at Risk'!AL$5","v":1.1394052493932232E-2},{"$f":"'Population at Risk'!AM127/'Population at Risk'!AM$5","v":1.3699195144772679E-2},{"$f":"'Population at Risk'!AN127/'Population at Risk'!AN$5","v":7.1618136991859959E-3},{"$f":"'Population at Risk'!AO127/'Population at Risk'!AO$5","v":7.1618136991859959E-3},{"$f":"'Population at Risk'!AP127/'Population at Risk'!AP$5","v":5.1741020598317575E-3},{"$f":"'Population at Risk'!AQ127/'Population at Risk'!AQ$5","v":8.1425489520925119E-3},{"$f":"'Population at Risk'!AR127/'Population at Risk'!AR$5","v":9.7031614704142285E-3},{"$f":"'Population at Risk'!AS127/'Population at Risk'!AS$5","v":8.5872223026161078E-3},{"$f":"'Population at Risk'!AT127/'Population at Risk'!AT$5","v":2.1181413161216432E-3},{"$f":"'Population at Risk'!AU127/'Population at Risk'!AU$5","v":2.1181413161216432E-3},{"$f":"'Population at Risk'!AV127/'Population at Risk'!AV$5","v":1.3868984011831887E-2},{"$f":"'Population at Risk'!AW127/'Population at Risk'!AW$5","v":1.2490673428501058E-2},{"$f":"'Population at Risk'!AX127/'Population at Risk'!AX$5","v":6.9147930846486473E-3},{"$f":"'Population at Risk'!AY127/'Population at Risk'!AY$5","v":8.3652275782410968E-3},{"$f":"'Population at Risk'!AZ127/'Population at Risk'!AZ$5","v":6.6202423481425765E-3},{"$f":"'Population at Risk'!BA127/'Population at Risk'!BA$5","v":1.6141962119515321E-2},{"$f":"'Population at Risk'!BB127/'Population at Risk'!BB$5","v":1.3775920904434977E-2},{"$f":"'Population at Risk'!BC127/'Population at Risk'!BC$5","v":1.5910871751325013E-2},125]
[null,"Male 55-59",{"$f":"'Population at Risk'!C128/'Population at Risk'!C$5","v":8.1089676005476393E-3},{"$f":"'Population at Risk'!D128/'Population at Risk'!D$5","v":5.5648103164074357E-3},{"$f":"'Population at Risk'!E128/'Population at Risk'!E$5","v":3.3470004637860306E-3},{"$f":"'Population at Risk'!F128/'Population at Risk'!F$5","v":7.3396921759088163E-3},{"$f":"'Population at Risk'!G128/'Population at Risk'!G$5","v":8.5107602350851328E-3},{"$f":"'Population at Risk'!H128/'Population at Risk'!H$5","v":1.3704212062162392E-2},{"$f":"'Population at Risk'!I128/'Population at Risk'!I$5","v":8.8208978566120776E-3},{"$f":"'Population at Risk'!J128/'Population at Risk'!J$5","v":9.0816963863978167E-3},{"$f":"'Population at Risk'!K128/'Population at Risk'!K$5","v":1.4428187466059825E-2},{"$f":"'Population at Risk'!L128/'Population at Risk'!L$5","v":1.5344990410718637E-2},{"$f":"'Population at Risk'!M128/'Population at Risk'!M$5","v":1.5547562055892115E-2},{"$f":"'Population at Risk'!N128/'Population at Risk'!N$5","v":7.5676236205291549E-3},{"$f":"'Population at Risk'!O128/'Population at Risk'!O$5","v":1.6493615459798085E-2},{"$f":"'Population at Risk'!P128/'Population at Risk'!P$5","v":8.4151110573916083E-3},{"$f":"'Population at Risk'!Q128/'Population at Risk'!Q$5","v":1.3055581574087937E-2},{"$f":"'Population at Risk'!R128/'Population at Risk'!R$5","v":4.4813652056437774E-3},{"$f":"'Population at Risk'!S128/'Population at Risk'!S$5","v":9.2964871535966831E-3},{"$f":"'Population at Risk'!T128/'Population at Risk'!T$5","v":5.465660284618366E-3},{"$f":"'Population at Risk'!U128/'Population at Risk'!U$5","v":1.5601891550788373E-2},{"$f":"'Population at Risk'!V128/'Population at Risk'!V$5","v":1.342531560533913E-2},{"$f":"'Population at Risk'!W128/'Population at Risk'!W$5","v":1.0304069114328422E-2},{"$f":"'Population at Risk'!X128/'Population at Risk'!X$5","v":1.016451704171528E-2},{"$f":"'Population at Risk'!Y128/'Population at Risk'!Y$5","v":1.2494535053335202E-2},{"$f":"'Population at Risk'!Z128/'Population at Risk'!Z$5","v":7.8309545726147015E-3},{"$f":"'Population at Risk'!AA128/'Population at Risk'!AA$5","v":1.0225786260780419E-2},{"$f":"'Population at Risk'!AB128/'Population at Risk'!AB$5","v":5.6696325047914326E-3},{"$f":"'Population at Risk'!AC128/'Population at Risk'!AC$5","v":8.434097237411637E-3},{"$f":"'Population at Risk'!AD128/'Population at Risk'!AD$5","v":8.956048757675264E-3},{"$f":"'Population at Risk'!AE128/'Population at Risk'!AE$5","v":1.0107262552449387E-2},{"$f":"'Population at Risk'!AF128/'Population at Risk'!AF$5","v":7.1365040518961654E-3},{"$f":"'Population at Risk'!AG128/'Population at Risk'!AG$5","v":9.3943145029914913E-3},{"$f":"'Population at Risk'!AH128/'Population at Risk'!AH$5","v":1.3150993805493045E-2},{"$f":"'Population at Risk'!AI128/'Population at Risk'!AI$5","v":8.9281869864676344E-3},{"$f":"'Population at Risk'!AJ128/'Population at Risk'!AJ$5","v":1.7646425127103699E-2},{"$f":"'Population at Risk'!AK128/'Population at Risk'!AK$5","v":6.7790968898337779E-3},{"$f":"'Population at Risk'!AL128/'Population at Risk'!AL$5","v":1.0982399371740588E-2},{"$f":"'Population at Risk'!AM128/'Population at Risk'!AM$5","v":1.3087762891698013E-2},{"$f":"'Population at Risk'!AN128/'Population at Risk'!AN$5","v":7.0232729160542781E-3},{"$f":"'Population at Risk'!AO128/'Population at Risk'!AO$5","v":7.0232729160542781E-3},{"$f":"'Population at Risk'!AP128/'Population at Risk'!AP$5","v":4.6958750276927001E-3},{"$f":"'Population at Risk'!AQ128/'Population at Risk'!AQ$5","v":8.1370243720476718E-3},{"$f":"'Population at Risk'!AR128/'Population at Risk'!AR$5","v":9.5364895388677807E-3},{"$f":"'Population at Risk'!AS128/'Population at Risk'!AS$5","v":8.8208978566120776E-3},{"$f":"'Population at Risk'!AT128/'Population at Risk'!AT$5","v":1.6229180125038893E-3},{"$f":"'Population at Risk'!AU128/'Population at Risk'!AU$5","v":1.6229180125038893E-3},{"$f":"'Population at Risk'!AV128/'Population at Risk'!AV$5","v":1.3880642976738439E-2},{"$f":"'Population at Risk'!AW128/'Population at Risk'!AW$5","v":1.2877011313745735E-2},{"$f":"'Population at Risk'!AX128/'Population at Risk'!AX$5","v":7.0908037916764585E-3},{"$f":"'Population at Risk'!AY128/'Population at Risk'!AY$5","v":8.0741705585746452E-3},{"$f":"'Population at Risk'!AZ128/'Population at Risk'!AZ$5","v":6.1906388815934962E-3},{"$f":"'Population at Risk'!BA128/'Population at Risk'!BA$5","v":1.6703760568279994E-2},{"$f":"'Population at Risk'!BB128/'Population at Risk'!BB$5","v":1.3101363836168053E-2},{"$f":"'Population at Risk'!BC128/'Population at Risk'!BC$5","v":1.6749356873775913E-2},126]
[null,"Male 60-64",{"$f":"'Population at Risk'!C129/'Population at Risk'!C$5","v":6.6335453367656868E-3},{"$f":"'Population at Risk'!D129/'Population at Risk'!D$5","v":4.592611663688617E-3},{"$f":"'Population at Risk'!E129/'Population at Risk'!E$5","v":2.8141704054089655E-3},{"$f":"'Population at Risk'!F129/'Population at Risk'!F$5","v":7.3005819156464246E-3},{"$f":"'Population at Risk'!G129/'Population at Risk'!G$5","v":7.9297673777084712E-3},{"$f":"'Population at Risk'!H129/'Population at Risk'!H$5","v":1.2033603353632119E-2},{"$f":"'Population at Risk'!I129/'Population at Risk'!I$5","v":8.4396668017063387E-3},{"$f":"'Population at Risk'!J129/'Population at Risk'!J$5","v":7.6362013523388885E-3},{"$f":"'Population at Risk'!K129/'Population at Risk'!K$5","v":1.3268779544680016E-2},{"$f":"'Population at Risk'!L129/'Population at Risk'!L$5","v":1.3880697208127186E-2},{"$f":"'Population at Risk'!M129/'Population at Risk'!M$5","v":1.4063938487159929E-2},{"$f":"'Population at Risk'!N129/'Population at Risk'!N$5","v":6.2903470449829912E-3},{"$f":"'Population at Risk'!O129/'Population at Risk'!O$5","v":1.3836633391890471E-2},{"$f":"'Population at Risk'!P129/'Population at Risk'!P$5","v":6.6563257881618512E-3},{"$f":"'Population at Risk'!Q129/'Population at Risk'!Q$5","v":1.0293295367359859E-2},{"$f":"'Population at Risk'!R129/'Population at Risk'!R$5","v":4.0840810562072722E-3},{"$f":"'Population at Risk'!S129/'Population at Risk'!S$5","v":7.9135564816413626E-3},{"$f":"'Population at Risk'!T129/'Population at Risk'!T$5","v":4.3285094871474313E-3},{"$f":"'Population at Risk'!U129/'Population at Risk'!U$5","v":1.5723307049238088E-2},{"$f":"'Population at Risk'!V129/'Population at Risk'!V$5","v":1.1053539348100576E-2},{"$f":"'Population at Risk'!W129/'Population at Risk'!W$5","v":9.2744793376389849E-3},{"$f":"'Population at Risk'!X129/'Population at Risk'!X$5","v":9.1488714055089956E-3},{"$f":"'Population at Risk'!Y129/'Population at Risk'!Y$5","v":1.0369229049617148E-2},{"$f":"'Population at Risk'!Z129/'Population at Risk'!Z$5","v":6.2339351179865991E-3},{"$f":"'Population at Risk'!AA129/'Population at Risk'!AA$5","v":8.5943872489489866E-3},{"$f":"'Population at Risk'!AB129/'Population at Risk'!AB$5","v":4.6532277980501115E-3},{"$f":"'Population at Risk'!AC129/'Population at Risk'!AC$5","v":6.8676329249710774E-3},{"$f":"'Population at Risk'!AD129/'Population at Risk'!AD$5","v":8.048022771722535E-3},{"$f":"'Population at Risk'!AE129/'Population at Risk'!AE$5","v":8.965383309919599E-3},{"$f":"'Population at Risk'!AF129/'Population at Risk'!AF$5","v":5.3757917661265081E-3},{"$f":"'Population at Risk'!AG129/'Population at Risk'!AG$5","v":8.3329813603036217E-3},{"$f":"'Population at Risk'!AH129/'Population at Risk'!AH$5","v":1.1415582596563898E-2},{"$f":"'Population at Risk'!AI129/'Population at Risk'!AI$5","v":7.2807924844484444E-3},{"$f":"'Population at Risk'!AJ129/'Population at Risk'!AJ$5","v":1.5493191174511449E-2},{"$f":"'Population at Risk'!AK129/'Population at Risk'!AK$5","v":5.429084018839043E-3},{"$f":"'Population at Risk'!AL129/'Population at Risk'!AL$5","v":1.0177343837925906E-2},{"$f":"'Population at Risk'!AM129/'Population at Risk'!AM$5","v":1.1736823526808739E-2},{"$f":"'Population at Risk'!AN129/'Population at Risk'!AN$5","v":6.9594249804537846E-3},{"$f":"'Population at Risk'!AO129/'Population at Risk'!AO$5","v":6.9594249804537846E-3},{"$f":"'Population at Risk'!AP129/'Population at Risk'!AP$5","v":4.3037922583902023E-3},{"$f":"'Population at Risk'!AQ129/'Population at Risk'!AQ$5","v":7.1189322231279628E-3},{"$f":"'Population at Risk'!AR129/'Population at Risk'!AR$5","v":8.1602910256666304E-3},{"$f":"'Population at Risk'!AS129/'Population at Risk'!AS$5","v":8.4396668017063387E-3},{"$f":"'Population at Risk'!AT129/'Population at Risk'!AT$5","v":1.3108183947146798E-3},{"$f":"'Population at Risk'!AU129/'Population at Risk'!AU$5","v":1.3108183947146798E-3},{"$f":"'Population at Risk'!AV129/'Population at Risk'!AV$5","v":1.2189728286844849E-2},{"$f":"'Population at Risk'!AW129/'Population at Risk'!AW$5","v":1.0805972836270777E-2},{"$f":"'Population at Risk'!AX129/'Population at Risk'!AX$5","v":5.4214784929880475E-3},{"$f":"'Population at Risk'!AY129/'Population at Risk'!AY$5","v":7.2811059481038909E-3},{"$f":"'Population at Risk'!AZ129/'Population at Risk'!AZ$5","v":5.5967887423623956E-3},{"$f":"'Population at Risk'!BA129/'Population at Risk'!BA$5","v":1.3650762313153186E-2},{"$f":"'Population at Risk'!BB129/'Population at Risk'!BB$5","v":1.0734495554147095E-2},{"$f":"'Population at Risk'!BC129/'Population at Risk'!BC$5","v":1.6879702063455102E-2},127]
[null,"Male 65-69",{"$f":"'Population at Risk'!C130/'Population at Risk'!C$5","v":5.9873675216592847E-3},{"$f":"'Population at Risk'!D130/'Population at Risk'!D$5","v":4.5231680100741101E-3},{"$f":"'Population at Risk'!E130/'Population at Risk'!E$5","v":3.2539299115607783E-3},{"$f":"'Population at Risk'!F130/'Population at Risk'!F$5","v":7.7102812802756424E-3},{"$f":"'Population at Risk'!G130/'Population at Risk'!G$5","v":8.4948552340406002E-3},{"$f":"'Population at Risk'!H130/'Population at Risk'!H$5","v":1.2693024526035167E-2},{"$f":"'Population at Risk'!I130/'Population at Risk'!I$5","v":8.5939202474622622E-3},{"$f":"'Population at Risk'!J130/'Population at Risk'!J$5","v":7.8874782633784352E-3},{"$f":"'Population at Risk'!K130/'Population at Risk'!K$5","v":1.2868108504758733E-2},{"$f":"'Population at Risk'!L130/'Population at Risk'!L$5","v":1.5245744761380367E-2},{"$f":"'Population at Risk'!M130/'Population at Risk'!M$5","v":1.5447006249041547E-2},{"$f":"'Population at Risk'!N130/'Population at Risk'!N$5","v":6.9145555905717748E-3},{"$f":"'Population at Risk'!O130/'Population at Risk'!O$5","v":1.3770690814460054E-2},{"$f":"'Population at Risk'!P130/'Population at Risk'!P$5","v":5.9275166161106303E-3},{"$f":"'Population at Risk'!Q130/'Population at Risk'!Q$5","v":1.0397612766872604E-2},{"$f":"'Population at Risk'!R130/'Population at Risk'!R$5","v":3.1747693995238841E-3},{"$f":"'Population at Risk'!S130/'Population at Risk'!S$5","v":7.8468372930639105E-3},{"$f":"'Population at Risk'!T130/'Population at Risk'!T$5","v":3.9572075737736691E-3},{"$f":"'Population at Risk'!U130/'Population at Risk'!U$5","v":1.5310306976525136E-2},{"$f":"'Population at Risk'!V130/'Population at Risk'!V$5","v":1.2236175047237246E-2},{"$f":"'Population at Risk'!W130/'Population at Risk'!W$5","v":9.4998313768503741E-3},{"$f":"'Population at Risk'!X130/'Population at Risk'!X$5","v":9.3711714131597817E-3},{"$f":"'Population at Risk'!Y130/'Population at Risk'!Y$5","v":1.1186615013419344E-2},{"$f":"'Population at Risk'!Z130/'Population at Risk'!Z$5","v":5.1182638150422972E-3},{"$f":"'Population at Risk'!AA130/'Population at Risk'!AA$5","v":7.6866877263767749E-3},{"$f":"'Population at Risk'!AB130/'Population at Risk'!AB$5","v":4.6088086721650656E-3},{"$f":"'Population at Risk'!AC130/'Population at Risk'!AC$5","v":5.8850425622267947E-3},{"$f":"'Population at Risk'!AD130/'Population at Risk'!AD$5","v":8.4848262304460693E-3},{"$f":"'Population at Risk'!AE130/'Population at Risk'!AE$5","v":9.3960017979351114E-3},{"$f":"'Population at Risk'!AF130/'Population at Risk'!AF$5","v":5.0202970907471892E-3},{"$f":"'Population at Risk'!AG130/'Population at Risk'!AG$5","v":8.7332247977554428E-3},{"$f":"'Population at Risk'!AH130/'Population at Risk'!AH$5","v":1.063227567945331E-2},{"$f":"'Population at Risk'!AI130/'Population at Risk'!AI$5","v":7.0689181128014153E-3},{"$f":"'Population at Risk'!AJ130/'Population at Risk'!AJ$5","v":1.4657393410163359E-2},{"$f":"'Population at Risk'!AK130/'Population at Risk'!AK$5","v":5.512971806958979E-3},{"$f":"'Population at Risk'!AL130/'Population at Risk'!AL$5","v":1.0493281583058883E-2},{"$f":"'Population at Risk'!AM130/'Population at Risk'!AM$5","v":1.0897211342620628E-2},{"$f":"'Population at Risk'!AN130/'Population at Risk'!AN$5","v":7.6406765759188342E-3},{"$f":"'Population at Risk'!AO130/'Population at Risk'!AO$5","v":7.6406765759188342E-3},{"$f":"'Population at Risk'!AP130/'Population at Risk'!AP$5","v":3.9137998975513838E-3},{"$f":"'Population at Risk'!AQ130/'Population at Risk'!AQ$5","v":6.4228064570153445E-3},{"$f":"'Population at Risk'!AR130/'Population at Risk'!AR$5","v":8.0024816840880472E-3},{"$f":"'Population at Risk'!AS130/'Population at Risk'!AS$5","v":8.5939202474622622E-3},{"$f":"'Population at Risk'!AT130/'Population at Risk'!AT$5","v":1.4198767739110078E-3},{"$f":"'Population at Risk'!AU130/'Population at Risk'!AU$5","v":1.4198767739110078E-3},{"$f":"'Population at Risk'!AV130/'Population at Risk'!AV$5","v":1.3827900496898667E-2},{"$f":"'Population at Risk'!AW130/'Population at Risk'!AW$5","v":1.0098362422556555E-2},{"$f":"'Population at Risk'!AX130/'Population at Risk'!AX$5","v":5.9980385102558348E-3},{"$f":"'Population at Risk'!AY130/'Population at Risk'!AY$5","v":7.4813222809854852E-3},{"$f":"'Population at Risk'!AZ130/'Population at Risk'!AZ$5","v":5.7747885420916878E-3},{"$f":"'Population at Risk'!BA130/'Population at Risk'!BA$5","v":1.2199224383389577E-2},{"$f":"'Population at Risk'!BB130/'Population at Risk'!BB$5","v":1.1129917391126285E-2},{"$f":"'Population at Risk'!BC130/'Population at Risk'!BC$5","v":1.6436327259557362E-2},128]
[null,"Male 70-74",{"$f":"'Population at Risk'!C131/'Population at Risk'!C$5","v":3.8912098399952024E-3},{"$f":"'Population at Risk'!D131/'Population at Risk'!D$5","v":2.9874576737196064E-3},{"$f":"'Population at Risk'!E131/'Population at Risk'!E$5","v":2.2051003017023512E-3},{"$f":"'Population at Risk'!F131/'Population at Risk'!F$5","v":5.2347394645349682E-3},{"$f":"'Population at Risk'!G131/'Population at Risk'!G$5","v":6.7244466477871662E-3},{"$f":"'Population at Risk'!H131/'Population at Risk'!H$5","v":9.3756272685527556E-3},{"$f":"'Population at Risk'!I131/'Population at Risk'!I$5","v":6.1626599051393532E-3},{"$f":"'Population at Risk'!J131/'Population at Risk'!J$5","v":5.2353136973174366E-3},{"$f":"'Population at Risk'!K131/'Population at Risk'!K$5","v":9.1414533189746443E-3},{"$f":"'Population at Risk'!L131/'Population at Risk'!L$5","v":1.1516141618713472E-2},{"$f":"'Population at Risk'!M131/'Population at Risk'!M$5","v":1.1668168025463393E-2},{"$f":"'Population at Risk'!N131/'Population at Risk'!N$5","v":4.730011928715307E-3},{"$f":"'Population at Risk'!O131/'Population at Risk'!O$5","v":1.0367506536016849E-2},{"$f":"'Population at Risk'!P131/'Population at Risk'!P$5","v":4.2683471795469325E-3},{"$f":"'Population at Risk'!Q131/'Population at Risk'!Q$5","v":7.4210412689051531E-3},{"$f":"'Population at Risk'!R131/'Population at Risk'!R$5","v":1.901718303675198E-3},{"$f":"'Population at Risk'!S131/'Population at Risk'!S$5","v":5.7813747506612282E-3},{"$f":"'Population at Risk'!T131/'Population at Risk'!T$5","v":2.8772080455293746E-3},{"$f":"'Population at Risk'!U131/'Population at Risk'!U$5","v":9.7865883810729307E-3},{"$f":"'Population at Risk'!V131/'Population at Risk'!V$5","v":8.5775762133708869E-3},{"$f":"'Population at Risk'!W131/'Population at Risk'!W$5","v":6.8369692427183463E-3},{"$f":"'Population at Risk'!X131/'Population at Risk'!X$5","v":6.7443734713170354E-3},{"$f":"'Population at Risk'!Y131/'Population at Risk'!Y$5","v":7.6901616402532446E-3},{"$f":"'Population at Risk'!Z131/'Population at Risk'!Z$5","v":3.7887148162129504E-3},{"$f":"'Population at Risk'!AA131/'Population at Risk'!AA$5","v":6.0001776328902443E-3},{"$f":"'Population at Risk'!AB131/'Population at Risk'!AB$5","v":3.1435934516568921E-3},{"$f":"'Population at Risk'!AC131/'Population at Risk'!AC$5","v":4.5237430740026775E-3},{"$f":"'Population at Risk'!AD131/'Population at Risk'!AD$5","v":6.3879770122379793E-3},{"$f":"'Population at Risk'!AE131/'Population at Risk'!AE$5","v":6.937295283502916E-3},{"$f":"'Population at Risk'!AF131/'Population at Risk'!AF$5","v":4.0014176073852135E-3},{"$f":"'Population at Risk'!AG131/'Population at Risk'!AG$5","v":6.4479510010900416E-3},{"$f":"'Population at Risk'!AH131/'Population at Risk'!AH$5","v":8.4145398212843916E-3},{"$f":"'Population at Risk'!AI131/'Population at Risk'!AI$5","v":5.2947710386698149E-3},{"$f":"'Population at Risk'!AJ131/'Population at Risk'!AJ$5","v":1.1313311599218029E-2},{"$f":"'Population at Risk'!AK131/'Population at Risk'!AK$5","v":4.2782958293587914E-3},{"$f":"'Population at Risk'!AL131/'Population at Risk'!AL$5","v":7.2490393722150822E-3},{"$f":"'Population at Risk'!AM131/'Population at Risk'!AM$5","v":8.531397400216462E-3},{"$f":"'Population at Risk'!AN131/'Population at Risk'!AN$5","v":6.1883165656202123E-3},{"$f":"'Population at Risk'!AO131/'Population at Risk'!AO$5","v":6.1883165656202123E-3},{"$f":"'Population at Risk'!AP131/'Population at Risk'!AP$5","v":2.6242298852245456E-3},{"$f":"'Population at Risk'!AQ131/'Population at Risk'!AQ$5","v":5.3701374652479839E-3},{"$f":"'Population at Risk'!AR131/'Population at Risk'!AR$5","v":5.9363785816769141E-3},{"$f":"'Population at Risk'!AS131/'Population at Risk'!AS$5","v":6.1626599051393532E-3},{"$f":"'Population at Risk'!AT131/'Population at Risk'!AT$5","v":1.4816105466897472E-3},{"$f":"'Population at Risk'!AU131/'Population at Risk'!AU$5","v":1.4816105466897472E-3},{"$f":"'Population at Risk'!AV131/'Population at Risk'!AV$5","v":1.0570606246275425E-2},{"$f":"'Population at Risk'!AW131/'Population at Risk'!AW$5","v":8.0837370163072478E-3},{"$f":"'Population at Risk'!AX131/'Population at Risk'!AX$5","v":3.6957611022788478E-3},{"$f":"'Population at Risk'!AY131/'Population at Risk'!AY$5","v":5.2538500182936262E-3},{"$f":"'Population at Risk'!AZ131/'Population at Risk'!AZ$5","v":3.9209501748861172E-3},{"$f":"'Population at Risk'!BA131/'Population at Risk'!BA$5","v":1.0238324873683997E-2},{"$f":"'Population at Risk'!BB131/'Population at Risk'!BB$5","v":8.6672382498528388E-3},{"$f":"'Population at Risk'!BC131/'Population at Risk'!BC$5","v":1.0506358209050392E-2},129]
[null,"Male 75-79",{"$f":"'Population at Risk'!C132/'Population at Risk'!C$5","v":1.5426480036540707E-3},{"$f":"'Population at Risk'!D132/'Population at Risk'!D$5","v":1.1431304084790228E-3},{"$f":"'Population at Risk'!E132/'Population at Risk'!E$5","v":7.9631691825769702E-4},{"$f":"'Population at Risk'!F132/'Population at Risk'!F$5","v":1.865215133838599E-3},{"$f":"'Population at Risk'!G132/'Population at Risk'!G$5","v":2.3800766976947918E-3},{"$f":"'Population at Risk'!H132/'Population at Risk'!H$5","v":3.4368162118599923E-3},{"$f":"'Population at Risk'!I132/'Population at Risk'!I$5","v":2.1725769523382767E-3},{"$f":"'Population at Risk'!J132/'Population at Risk'!J$5","v":1.9911584441937775E-3},{"$f":"'Population at Risk'!K132/'Population at Risk'!K$5","v":3.2543509578034234E-3},{"$f":"'Population at Risk'!L132/'Population at Risk'!L$5","v":4.3521870532095119E-3},{"$f":"'Population at Risk'!M132/'Population at Risk'!M$5","v":4.4096409627835138E-3},{"$f":"'Population at Risk'!N132/'Population at Risk'!N$5","v":2.0224836343722533E-3},{"$f":"'Population at Risk'!O132/'Population at Risk'!O$5","v":3.9420509130669683E-3},{"$f":"'Population at Risk'!P132/'Population at Risk'!P$5","v":1.8015048110522642E-3},{"$f":"'Population at Risk'!Q132/'Population at Risk'!Q$5","v":3.0044878988983803E-3},{"$f":"'Population at Risk'!R132/'Population at Risk'!R$5","v":7.3536703256085691E-4},{"$f":"'Population at Risk'!S132/'Population at Risk'!S$5","v":2.0527415858352929E-3},{"$f":"'Population at Risk'!T132/'Population at Risk'!T$5","v":9.992890493842443E-4},{"$f":"'Population at Risk'!U132/'Population at Risk'!U$5","v":4.156511480996607E-3},{"$f":"'Population at Risk'!V132/'Population at Risk'!V$5","v":3.0296592149439716E-3},{"$f":"'Population at Risk'!W132/'Population at Risk'!W$5","v":2.4616777821172154E-3},{"$f":"'Population at Risk'!X132/'Population at Risk'!X$5","v":2.4283383088675174E-3},{"$f":"'Population at Risk'!Y132/'Population at Risk'!Y$5","v":2.789524346449382E-3},{"$f":"'Population at Risk'!Z132/'Population at Risk'!Z$5","v":1.3494990528051273E-3},{"$f":"'Population at Risk'!AA132/'Population at Risk'!AA$5","v":2.1521202850864852E-3},{"$f":"'Population at Risk'!AB132/'Population at Risk'!AB$5","v":1.1687732274130345E-3},{"$f":"'Population at Risk'!AC132/'Population at Risk'!AC$5","v":1.6706422135858115E-3},{"$f":"'Population at Risk'!AD132/'Population at Risk'!AD$5","v":2.1559390153528713E-3},{"$f":"'Population at Risk'!AE132/'Population at Risk'!AE$5","v":2.2953834874556412E-3},{"$f":"'Population at Risk'!AF132/'Population at Risk'!AF$5","v":1.3443767087234712E-3},{"$f":"'Population at Risk'!AG132/'Population at Risk'!AG$5","v":2.1334712810944069E-3},{"$f":"'Population at Risk'!AH132/'Population at Risk'!AH$5","v":2.9391541143189048E-3},{"$f":"'Population at Risk'!AI132/'Population at Risk'!AI$5","v":1.8681633547054867E-3},{"$f":"'Population at Risk'!AJ132/'Population at Risk'!AJ$5","v":3.749212868282505E-3},{"$f":"'Population at Risk'!AK132/'Population at Risk'!AK$5","v":1.4188685313238554E-3},{"$f":"'Population at Risk'!AL132/'Population at Risk'!AL$5","v":2.655300888214542E-3},{"$f":"'Population at Risk'!AM132/'Population at Risk'!AM$5","v":3.0249469119905158E-3},{"$f":"'Population at Risk'!AN132/'Population at Risk'!AN$5","v":2.4420172611312818E-3},{"$f":"'Population at Risk'!AO132/'Population at Risk'!AO$5","v":2.4420172611312818E-3},{"$f":"'Population at Risk'!AP132/'Population at Risk'!AP$5","v":9.9457635934298186E-4},{"$f":"'Population at Risk'!AQ132/'Population at Risk'!AQ$5","v":2.1450889351793722E-3},{"$f":"'Population at Risk'!AR132/'Population at Risk'!AR$5","v":2.1457409681995662E-3},{"$f":"'Population at Risk'!AS132/'Population at Risk'!AS$5","v":2.1725769523382767E-3},{"$f":"'Population at Risk'!AT132/'Population at Risk'!AT$5","v":2.3579254512506721E-4},{"$f":"'Population at Risk'!AU132/'Population at Risk'!AU$5","v":2.3579254512506721E-4},{"$f":"'Population at Risk'!AV132/'Population at Risk'!AV$5","v":3.7538273908860114E-3},{"$f":"'Population at Risk'!AW132/'Population at Risk'!AW$5","v":2.7791510211616151E-3},{"$f":"'Population at Risk'!AX132/'Population at Risk'!AX$5","v":1.5113937226269047E-3},{"$f":"'Population at Risk'!AY132/'Population at Risk'!AY$5","v":1.9601406999006617E-3},{"$f":"'Population at Risk'!AZ132/'Population at Risk'!AZ$5","v":1.5352063500359587E-3},{"$f":"'Population at Risk'!BA132/'Population at Risk'!BA$5","v":3.5542784692411864E-3},{"$f":"'Population at Risk'!BB132/'Population at Risk'!BB$5","v":2.9872223566741194E-3},{"$f":"'Population at Risk'!BC132/'Population at Risk'!BC$5","v":4.46220856737343E-3},130]
[null,"Male 80-84",{"$f":"'Population at Risk'!C133/'Population at Risk'!C$5","v":1.246835572845853E-3},{"$f":"'Population at Risk'!D133/'Population at Risk'!D$5","v":9.2976330734888832E-4},{"$f":"'Population at Risk'!E133/'Population at Risk'!E$5","v":6.546409021259595E-4},{"$f":"'Population at Risk'!F133/'Population at Risk'!F$5","v":1.3973723939978942E-3},{"$f":"'Population at Risk'!G133/'Population at Risk'!G$5","v":1.5644740910081029E-3},{"$f":"'Population at Risk'!H133/'Population at Risk'!H$5","v":2.1344005045562057E-3},{"$f":"'Population at Risk'!I133/'Population at Risk'!I$5","v":1.3718271613335977E-3},{"$f":"'Population at Risk'!J133/'Population at Risk'!J$5","v":1.2756594287860845E-3},{"$f":"'Population at Risk'!K133/'Population at Risk'!K$5","v":1.9313204282291345E-3},{"$f":"'Population at Risk'!L133/'Population at Risk'!L$5","v":2.7609630598706696E-3},{"$f":"'Population at Risk'!M133/'Population at Risk'!M$5","v":2.7974109698615762E-3},{"$f":"'Population at Risk'!N133/'Population at Risk'!N$5","v":1.346810850691837E-3},{"$f":"'Population at Risk'!O133/'Population at Risk'!O$5","v":2.4474994364607097E-3},{"$f":"'Population at Risk'!P133/'Population at Risk'!P$5","v":1.2904396164275084E-3},{"$f":"'Population at Risk'!Q133/'Population at Risk'!Q$5","v":2.102492611756102E-3},{"$f":"'Population at Risk'!R133/'Population at Risk'!R$5","v":6.153071088774517E-4},{"$f":"'Population at Risk'!S133/'Population at Risk'!S$5","v":1.3956605323048889E-3},{"$f":"'Population at Risk'!T133/'Population at Risk'!T$5","v":7.2748242795172993E-4},{"$f":"'Population at Risk'!U133/'Population at Risk'!U$5","v":2.5512380814392971E-3},{"$f":"'Population at Risk'!V133/'Population at Risk'!V$5","v":2.1938911556490829E-3},{"$f":"'Population at Risk'!W133/'Population at Risk'!W$5","v":1.6938503861276761E-3},{"$f":"'Population at Risk'!X133/'Population at Risk'!X$5","v":1.6709099021831352E-3},{"$f":"'Population at Risk'!Y133/'Population at Risk'!Y$5","v":1.9341998081652512E-3},{"$f":"'Population at Risk'!Z133/'Population at Risk'!Z$5","v":9.5455282249699554E-4},{"$f":"'Population at Risk'!AA133/'Population at Risk'!AA$5","v":1.4751749955571208E-3},{"$f":"'Population at Risk'!AB133/'Population at Risk'!AB$5","v":9.2880512205967085E-4},{"$f":"'Population at Risk'!AC133/'Population at Risk'!AC$5","v":1.1646513603848871E-3},{"$f":"'Population at Risk'!AD133/'Population at Risk'!AD$5","v":1.4096524331153389E-3},{"$f":"'Population at Risk'!AE133/'Population at Risk'!AE$5","v":1.497391107252942E-3},{"$f":"'Population at Risk'!AF133/'Population at Risk'!AF$5","v":9.4637044627244357E-4},{"$f":"'Population at Risk'!AG133/'Population at Risk'!AG$5","v":1.3917678424320559E-3},{"$f":"'Population at Risk'!AH133/'Population at Risk'!AH$5","v":1.9826246688305037E-3},{"$f":"'Population at Risk'!AI133/'Population at Risk'!AI$5","v":1.2752313082660999E-3},{"$f":"'Population at Risk'!AJ133/'Population at Risk'!AJ$5","v":2.3353147950742723E-3},{"$f":"'Population at Risk'!AK133/'Population at Risk'!AK$5","v":1.0144567277098095E-3},{"$f":"'Population at Risk'!AL133/'Population at Risk'!AL$5","v":1.6567261952107825E-3},{"$f":"'Population at Risk'!AM133/'Population at Risk'!AM$5","v":2.0355922134415692E-3},{"$f":"'Population at Risk'!AN133/'Population at Risk'!AN$5","v":1.0551926436987019E-3},{"$f":"'Population at Risk'!AO133/'Population at Risk'!AO$5","v":1.0551926436987019E-3},{"$f":"'Population at Risk'!AP133/'Population at Risk'!AP$5","v":6.4582880476817006E-4},{"$f":"'Population at Risk'!AQ133/'Population at Risk'!AQ$5","v":1.5041115963142285E-3},{"$f":"'Population at Risk'!AR133/'Population at Risk'!AR$5","v":1.4565847494822212E-3},{"$f":"'Population at Risk'!AS133/'Population at Risk'!AS$5","v":1.3718271613335977E-3},{"$f":"'Population at Risk'!AT133/'Population at Risk'!AT$5","v":1.768444088438004E-4},{"$f":"'Population at Risk'!AU133/'Population at Risk'!AU$5","v":1.768444088438004E-4},{"$f":"'Population at Risk'!AV133/'Population at Risk'!AV$5","v":2.3237979086437213E-3},{"$f":"'Population at Risk'!AW133/'Population at Risk'!AW$5","v":1.8795414420572775E-3},{"$f":"'Population at Risk'!AX133/'Population at Risk'!AX$5","v":1.0413430433410253E-3},{"$f":"'Population at Risk'!AY133/'Population at Risk'!AY$5","v":1.3484655878749233E-3},{"$f":"'Population at Risk'!AZ133/'Population at Risk'!AZ$5","v":1.0558459999226901E-3},{"$f":"'Population at Risk'!BA133/'Population at Risk'!BA$5","v":2.1955333201606397E-3},{"$f":"'Population at Risk'!BB133/'Population at Risk'!BB$5","v":1.9817872936488939E-3},{"$f":"'Population at Risk'!BC133/'Population at Risk'!BC$5","v":2.7388728448016226E-3},131]
[null,"Male 85-89",{"$f":"'Population at Risk'!C134/'Population at Risk'!C$5","v":6.3862309828690038E-4},{"$f":"'Population at Risk'!D134/'Population at Risk'!D$5","v":4.3190673804524164E-4},{"$f":"'Population at Risk'!E134/'Population at Risk'!E$5","v":2.5159706313049936E-4},{"$f":"'Population at Risk'!F134/'Population at Risk'!F$5","v":7.5101071395481528E-4},{"$f":"'Population at Risk'!G134/'Population at Risk'!G$5","v":7.7111519177650565E-4},{"$f":"'Population at Risk'!H134/'Population at Risk'!H$5","v":1.1298558975032852E-3},{"$f":"'Population at Risk'!I134/'Population at Risk'!I$5","v":9.3731177086594218E-4},{"$f":"'Population at Risk'!J134/'Population at Risk'!J$5","v":5.9781825629458578E-4},{"$f":"'Population at Risk'!K134/'Population at Risk'!K$5","v":9.4284934291501046E-4},{"$f":"'Population at Risk'!L134/'Population at Risk'!L$5","v":1.3449631372268785E-3},{"$f":"'Population at Risk'!M134/'Population at Risk'!M$5","v":1.3627182083030662E-3},{"$f":"'Population at Risk'!N134/'Population at Risk'!N$5","v":6.5753391700443221E-4},{"$f":"'Population at Risk'!O134/'Population at Risk'!O$5","v":1.3094464772100713E-3},{"$f":"'Population at Risk'!P134/'Population at Risk'!P$5","v":7.3465621727308644E-4},{"$f":"'Population at Risk'!Q134/'Population at Risk'!Q$5","v":9.7337620914634345E-4},{"$f":"'Population at Risk'!R134/'Population at Risk'!R$5","v":2.4011984736681041E-4},{"$f":"'Population at Risk'!S134/'Population at Risk'!S$5","v":6.9732090099466904E-4},{"$f":"'Population at Risk'!T134/'Population at Risk'!T$5","v":3.6240882857668593E-4},{"$f":"'Population at Risk'!U134/'Population at Risk'!U$5","v":1.4046142246126466E-3},{"$f":"'Population at Risk'!V134/'Population at Risk'!V$5","v":1.0572465950080343E-3},{"$f":"'Population at Risk'!W134/'Population at Risk'!W$5","v":8.2956226199874805E-4},{"$f":"'Population at Risk'!X134/'Population at Risk'!X$5","v":8.183271730509659E-4},{"$f":"'Population at Risk'!Y134/'Population at Risk'!Y$5","v":9.2336171746582344E-4},{"$f":"'Population at Risk'!Z134/'Population at Risk'!Z$5","v":4.7250364713601279E-4},{"$f":"'Population at Risk'!AA134/'Population at Risk'!AA$5","v":6.978697575514512E-4},{"$f":"'Population at Risk'!AB134/'Population at Risk'!AB$5","v":4.3494219095297149E-4},{"$f":"'Population at Risk'!AC134/'Population at Risk'!AC$5","v":5.5708845167688011E-4},{"$f":"'Population at Risk'!AD134/'Population at Risk'!AD$5","v":7.3617429792537071E-4},{"$f":"'Population at Risk'!AE134/'Population at Risk'!AE$5","v":8.0107343186371386E-4},{"$f":"'Population at Risk'!AF134/'Population at Risk'!AF$5","v":4.3338459689111898E-4},{"$f":"'Population at Risk'!AG134/'Population at Risk'!AG$5","v":7.4456715850274599E-4},{"$f":"'Population at Risk'!AH134/'Population at Risk'!AH$5","v":9.2788471343099432E-4},{"$f":"'Population at Risk'!AI134/'Population at Risk'!AI$5","v":6.1235970195837092E-4},{"$f":"'Population at Risk'!AJ134/'Population at Risk'!AJ$5","v":1.2470898735600707E-3},{"$f":"'Population at Risk'!AK134/'Population at Risk'!AK$5","v":4.9351948915612358E-4},{"$f":"'Population at Risk'!AL134/'Population at Risk'!AL$5","v":7.7162589913926853E-4},{"$f":"'Population at Risk'!AM134/'Population at Risk'!AM$5","v":9.0809353234369409E-4},{"$f":"'Population at Risk'!AN134/'Population at Risk'!AN$5","v":4.8237377997654952E-4},{"$f":"'Population at Risk'!AO134/'Population at Risk'!AO$5","v":4.8237377997654952E-4},{"$f":"'Population at Risk'!AP134/'Population at Risk'!AP$5","v":3.487475545748118E-4},{"$f":"'Population at Risk'!AQ134/'Population at Risk'!AQ$5","v":6.3369350546894866E-4},{"$f":"'Population at Risk'!AR134/'Population at Risk'!AR$5","v":7.1563256729171524E-4},{"$f":"'Population at Risk'!AS134/'Population at Risk'!AS$5","v":9.3731177086594218E-4},{"$f":"'Population at Risk'!AT134/'Population at Risk'!AT$5","v":2.9474068140633401E-5},{"$f":"'Population at Risk'!AU134/'Population at Risk'!AU$5","v":2.9474068140633401E-5},{"$f":"'Population at Risk'!AV134/'Population at Risk'!AV$5","v":1.3287357272501279E-3},{"$f":"'Population at Risk'!AW134/'Population at Risk'!AW$5","v":9.2370626425891851E-4},{"$f":"'Population at Risk'!AX134/'Population at Risk'!AX$5","v":4.700506792858794E-4},{"$f":"'Population at Risk'!AY134/'Population at Risk'!AY$5","v":6.759705073238983E-4},{"$f":"'Population at Risk'!AZ134/'Population at Risk'!AZ$5","v":5.4515490797195267E-4},{"$f":"'Population at Risk'!BA134/'Population at Risk'!BA$5","v":1.0604840187945731E-3},{"$f":"'Population at Risk'!BB134/'Population at Risk'!BB$5","v":8.6833028170360353E-4},{"$f":"'Population at Risk'!BC134/'Population at Risk'!BC$5","v":1.5079187572503315E-3},132]
[null,"Male 90+",{"$f":"'Population at Risk'!C135/'Population at Risk'!C$5","v":2.5710800060901184E-4},{"$f":"'Population at Risk'!D135/'Population at Risk'!D$5","v":1.9267695799024252E-4},{"$f":"'Population at Risk'!E135/'Population at Risk'!E$5","v":1.3679063626512587E-4},{"$f":"'Population at Risk'!F135/'Population at Risk'!F$5","v":4.1859613564694629E-4},{"$f":"'Population at Risk'!G135/'Population at Risk'!G$5","v":2.5950992030940095E-4},{"$f":"'Population at Risk'!H135/'Population at Risk'!H$5","v":4.3961665830127811E-4},{"$f":"'Population at Risk'!I135/'Population at Risk'!I$5","v":3.4761231237412431E-4},{"$f":"'Population at Risk'!J135/'Population at Risk'!J$5","v":1.7416752348739899E-4},{"$f":"'Population at Risk'!K135/'Population at Risk'!K$5","v":3.0414494932742278E-4},{"$f":"'Population at Risk'!L135/'Population at Risk'!L$5","v":5.8723742611314412E-4},{"$f":"'Population at Risk'!M135/'Population at Risk'!M$5","v":5.9498964024500077E-4},{"$f":"'Population at Risk'!N135/'Population at Risk'!N$5","v":3.0382601682273763E-4},{"$f":"'Population at Risk'!O135/'Population at Risk'!O$5","v":4.7990185028641362E-4},{"$f":"'Population at Risk'!P135/'Population at Risk'!P$5","v":4.0885215569980463E-4},{"$f":"'Population at Risk'!Q135/'Population at Risk'!Q$5","v":4.3477470675203344E-4},{"$f":"'Population at Risk'!R135/'Population at Risk'!R$5","v":1.2756366891361804E-4},{"$f":"'Population at Risk'!S135/'Population at Risk'!S$5","v":3.046003643497532E-4},{"$f":"'Population at Risk'!T135/'Population at Risk'!T$5","v":1.931958828809539E-4},{"$f":"'Population at Risk'!U135/'Population at Risk'!U$5","v":2.5799036778599631E-4},{"$f":"'Population at Risk'!V135/'Population at Risk'!V$5","v":3.8863214757212333E-4},{"$f":"'Population at Risk'!W135/'Population at Risk'!W$5","v":3.7040919605525491E-4},{"$f":"'Population at Risk'!X135/'Population at Risk'!X$5","v":3.6539259819950108E-4},{"$f":"'Population at Risk'!Y135/'Population at Risk'!Y$5","v":3.158869033435712E-4},{"$f":"'Population at Risk'!Z135/'Population at Risk'!Z$5","v":1.9568332861188411E-4},{"$f":"'Population at Risk'!AA135/'Population at Risk'!AA$5","v":2.6581824191021405E-4},{"$f":"'Population at Risk'!AB135/'Population at Risk'!AB$5","v":1.9283151323038148E-4},{"$f":"'Population at Risk'!AC135/'Population at Risk'!AC$5","v":2.3305490036594313E-4},{"$f":"'Population at Risk'!AD135/'Population at Risk'!AD$5","v":3.458401234759296E-4},{"$f":"'Population at Risk'!AE135/'Population at Risk'!AE$5","v":4.1902302589794262E-4},{"$f":"'Population at Risk'!AF135/'Population at Risk'!AF$5","v":1.5920250498041105E-4},{"$f":"'Population at Risk'!AG135/'Population at Risk'!AG$5","v":3.8946589829374405E-4},{"$f":"'Population at Risk'!AH135/'Population at Risk'!AH$5","v":3.1918415721110278E-4},{"$f":"'Population at Risk'!AI135/'Population at Risk'!AI$5","v":2.719871772657739E-4},{"$f":"'Population at Risk'!AJ135/'Population at Risk'!AJ$5","v":5.083678465467804E-4},{"$f":"'Population at Risk'!AK135/'Population at Risk'!AK$5","v":2.1248755783110875E-4},{"$f":"'Population at Risk'!AL135/'Population at Risk'!AL$5","v":3.1772831141028707E-4},{"$f":"'Population at Risk'!AM135/'Population at Risk'!AM$5","v":3.0066631495943337E-4},{"$f":"'Population at Risk'!AN135/'Population at Risk'!AN$5","v":2.7133525123680907E-4},{"$f":"'Population at Risk'!AO135/'Population at Risk'!AO$5","v":2.7133525123680907E-4},{"$f":"'Population at Risk'!AP135/'Population at Risk'!AP$5","v":1.29165760953634E-4},{"$f":"'Population at Risk'!AQ135/'Population at Risk'!AQ$5","v":2.6585991896111062E-4},{"$f":"'Population at Risk'!AR135/'Population at Risk'!AR$5","v":2.9381035359713739E-4},{"$f":"'Population at Risk'!AS135/'Population at Risk'!AS$5","v":3.4761231237412431E-4},{"$f":"'Population at Risk'!AT135/'Population at Risk'!AT$5","v":0},{"$f":"'Population at Risk'!AU135/'Population at Risk'!AU$5","v":0},{"$f":"'Population at Risk'!AV135/'Population at Risk'!AV$5","v":5.2434414348883967E-4},{"$f":"'Population at Risk'!AW135/'Population at Risk'!AW$5","v":3.2932136377926657E-4},{"$f":"'Population at Risk'!AX135/'Population at Risk'!AX$5","v":1.2293633150553771E-4},{"$f":"'Population at Risk'!AY135/'Population at Risk'!AY$5","v":3.1018183947896109E-4},{"$f":"'Population at Risk'!AZ135/'Population at Risk'!AZ$5","v":2.584786201591155E-4},{"$f":"'Population at Risk'!BA135/'Population at Risk'!BA$5","v":3.1483119307963887E-4},{"$f":"'Population at Risk'!BB135/'Population at Risk'!BB$5","v":3.0744708538787876E-4},{"$f":"'Population at Risk'!BC135/'Population at Risk'!BC$5","v":2.7696466969904051E-4},133]
["SIMD Q3","Female 0-4",{"$f":"'Population at Risk'!C136/'Population at Risk'!C$5","v":0},{"$f":"'Population at Risk'!D136/'Population at Risk'!D$5","v":0},{"$f":"'Population at Risk'!E136/'Population at Risk'!E$5","v":0},{"$f":"'Population at Risk'!F136/'Population at Risk'!F$5","v":0},{"$f":"'Population at Risk'!G136/'Population at Risk'!G$5","v":0},{"$f":"'Population at Risk'!H136/'Population at Risk'!H$5","v":0},{"$f":"'Population at Risk'!I136/'Population at Risk'!I$5","v":0},{"$f":"'Population at Risk'!J136/'Population at Risk'!J$5","v":0},{"$f":"'Population at Risk'!K136/'Population at Risk'!K$5","v":0},{"$f":"'Population at Risk'!L136/'Population at Risk'!L$5","v":0},{"$f":"'Population at Risk'!M136/'Population at Risk'!M$5","v":0},{"$f":"'Population at Risk'!N136/'Population at Risk'!N$5","v":0},{"$f":"'Population at Risk'!O136/'Population at Risk'!O$5","v":0},{"$f":"'Population at Risk'!P136/'Population at Risk'!P$5","v":0},{"$f":"'Population at Risk'!Q136/'Population at Risk'!Q$5","v":0},{"$f":"'Population at Risk'!R136/'Population at Risk'!R$5","v":0},{"$f":"'Population at Risk'!S136/'Population at Risk'!S$5","v":0},{"$f":"'Population at Risk'!T136/'Population at Risk'!T$5","v":0},{"$f":"'Population at Risk'!U136/'Population at Risk'!U$5","v":0},{"$f":"'Population at Risk'!V136/'Population at Risk'!V$5","v":0},{"$f":"'Population at Risk'!W136/'Population at Risk'!W$5","v":0},{"$f":"'Population at Risk'!X136/'Population at Risk'!X$5","v":0},{"$f":"'Population at Risk'!Y136/'Population at Risk'!Y$5","v":0},{"$f":"'Population at Risk'!Z136/'Population at Risk'!Z$5","v":0},{"$f":"'Population at Risk'!AA136/'Population at Risk'!AA$5","v":0},{"$f":"'Population at Risk'!AB136/'Population at Risk'!AB$5","v":0},{"$f":"'Population at Risk'!AC136/'Population at Risk'!AC$5","v":0},{"$f":"'Population at Risk'!AD136/'Population at Risk'!AD$5","v":0},{"$f":"'Population at Risk'!AE136/'Population at Risk'!AE$5","v":0},{"$f":"'Population at Risk'!AF136/'Population at Risk'!AF$5","v":0},{"$f":"'Population at Risk'!AG136/'Population at Risk'!AG$5","v":0},{"$f":"'Population at Risk'!AH136/'Population at Risk'!AH$5","v":0},{"$f":"'Population at Risk'!AI136/'Population at Risk'!AI$5","v":0},{"$f":"'Population at Risk'!AJ136/'Population at Risk'!AJ$5","v":0},{"$f":"'Population at Risk'!AK136/'Population at Risk'!AK$5","v":0},{"$f":"'Population at Risk'!AL136/'Population at Risk'!AL$5","v":0},{"$f":"'Population at Risk'!AM136/'Population at Risk'!AM$5","v":0},{"$f":"'Population at Risk'!AN136/'Population at Risk'!AN$5","v":0},{"$f":"'Population at Risk'!AO136/'Population at Risk'!AO$5","v":0},{"$f":"'Population at Risk'!AP136/'Population at Risk'!AP$5","v":0},{"$f":"'Population at Risk'!AQ136/'Population at Risk'!AQ$5","v":0},{"$f":"'Population at Risk'!AR136/'Population at Risk'!AR$5","v":0},{"$f":"'Population at Risk'!AS136/'Population at Risk'!AS$5","v":0},{"$f":"'Population at Risk'!AT136/'Population at Risk'!AT$5","v":0},{"$f":"'Population at Risk'!AU136/'Population at Risk'!AU$5","v":0},{"$f":"'Population at Risk'!AV136/'Population at Risk'!AV$5","v":0},{"$f":"'Population at Risk'!AW136/'Population at Risk'!AW$5","v":0},{"$f":"'Population at Risk'!AX136/'Population at Risk'!AX$5","v":0},{"$f":"'Population at Risk'!AY136/'Population at Risk'!AY$5","v":0},{"$f":"'Population at Risk'!AZ136/'Population at Risk'!AZ$5","v":0},{"$f":"'Population at Risk'!BA136/'Population at Risk'!BA$5","v":0},{"$f":"'Population at Risk'!BB136/'Population at Risk'!BB$5","v":0},{"$f":"'Population at Risk'!BC136/'Population at Risk'!BC$5","v":0},134]
[null,"Female 5-9",{"$f":"'Population at Risk'!C137/'Population at Risk'!C$5","v":0},{"$f":"'Population at Risk'!D137/'Population at Risk'!D$5","v":0},{"$f":"'Population at Risk'!E137/'Population at Risk'!E$5","v":0},{"$f":"'Population at Risk'!F137/'Population at Risk'!F$5","v":0},{"$f":"'Population at Risk'!G137/'Population at Risk'!G$5","v":0},{"$f":"'Population at Risk'!H137/'Population at Risk'!H$5","v":0},{"$f":"'Population at Risk'!I137/'Population at Risk'!I$5","v":0},{"$f":"'Population at Risk'!J137/'Population at Risk'!J$5","v":0},{"$f":"'Population at Risk'!K137/'Population at Risk'!K$5","v":0},{"$f":"'Population at Risk'!L137/'Population at Risk'!L$5","v":0},{"$f":"'Population at Risk'!M137/'Population at Risk'!M$5","v":0},{"$f":"'Population at Risk'!N137/'Population at Risk'!N$5","v":0},{"$f":"'Population at Risk'!O137/'Population at Risk'!O$5","v":0},{"$f":"'Population at Risk'!P137/'Population at Risk'!P$5","v":0},{"$f":"'Population at Risk'!Q137/'Population at Risk'!Q$5","v":0},{"$f":"'Population at Risk'!R137/'Population at Risk'!R$5","v":0},{"$f":"'Population at Risk'!S137/'Population at Risk'!S$5","v":0},{"$f":"'Population at Risk'!T137/'Population at Risk'!T$5","v":0},{"$f":"'Population at Risk'!U137/'Population at Risk'!U$5","v":0},{"$f":"'Population at Risk'!V137/'Population at Risk'!V$5","v":0},{"$f":"'Population at Risk'!W137/'Population at Risk'!W$5","v":0},{"$f":"'Population at Risk'!X137/'Population at Risk'!X$5","v":0},{"$f":"'Population at Risk'!Y137/'Population at Risk'!Y$5","v":0},{"$f":"'Population at Risk'!Z137/'Population at Risk'!Z$5","v":0},{"$f":"'Population at Risk'!AA137/'Population at Risk'!AA$5","v":0},{"$f":"'Population at Risk'!AB137/'Population at Risk'!AB$5","v":0},{"$f":"'Population at Risk'!AC137/'Population at Risk'!AC$5","v":0},{"$f":"'Population at Risk'!AD137/'Population at Risk'!AD$5","v":0},{"$f":"'Population at Risk'!AE137/'Population at Risk'!AE$5","v":0},{"$f":"'Population at Risk'!AF137/'Population at Risk'!AF$5","v":0},{"$f":"'Population at Risk'!AG137/'Population at Risk'!AG$5","v":0},{"$f":"'Population at Risk'!AH137/'Population at Risk'!AH$5","v":0},{"$f":"'Population at Risk'!AI137/'Population at Risk'!AI$5","v":0},{"$f":"'Population at Risk'!AJ137/'Population at Risk'!AJ$5","v":0},{"$f":"'Population at Risk'!AK137/'Population at Risk'!AK$5","v":0},{"$f":"'Population at Risk'!AL137/'Population at Risk'!AL$5","v":0},{"$f":"'Population at Risk'!AM137/'Population at Risk'!AM$5","v":0},{"$f":"'Population at Risk'!AN137/'Population at Risk'!AN$5","v":0},{"$f":"'Population at Risk'!AO137/'Population at Risk'!AO$5","v":0},{"$f":"'Population at Risk'!AP137/'Population at Risk'!AP$5","v":0},{"$f":"'Population at Risk'!AQ137/'Population at Risk'!AQ$5","v":0},{"$f":"'Population at Risk'!AR137/'Population at Risk'!AR$5","v":0},{"$f":"'Population at Risk'!AS137/'Population at Risk'!AS$5","v":0},{"$f":"'Population at Risk'!AT137/'Population at Risk'!AT$5","v":0},{"$f":"'Population at Risk'!AU137/'Population at Risk'!AU$5","v":0},{"$f":"'Population at Risk'!AV137/'Population at Risk'!AV$5","v":0},{"$f":"'Population at Risk'!AW137/'Population at Risk'!AW$5","v":0},{"$f":"'Population at Risk'!AX137/'Population at Risk'!AX$5","v":0},{"$f":"'Population at Risk'!AY137/'Population at Risk'!AY$5","v":0},{"$f":"'Population at Risk'!AZ137/'Population at Risk'!AZ$5","v":0},{"$f":"'Population at Risk'!BA137/'Population at Risk'!BA$5","v":0},{"$f":"'Population at Risk'!BB137/'Population at Risk'!BB$5","v":0},{"$f":"'Population at Risk'!BC137/'Population at Risk'!BC$5","v":0},135]
[null,"Female 10-15",{"$f":"'Population at Risk'!C138/'Population at Risk'!C$5","v":0},{"$f":"'Population at Risk'!D138/'Population at Risk'!D$5","v":0},{"$f":"'Population at Risk'!E138/'Population at Risk'!E$5","v":0},{"$f":"'Population at Risk'!F138/'Population at Risk'!F$5","v":0},{"$f":"'Population at Risk'!G138/'Population at Risk'!G$5","v":0},{"$f":"'Population at Risk'!H138/'Population at Risk'!H$5","v":0},{"$f":"'Population at Risk'!I138/'Population at Risk'!I$5","v":0},{"$f":"'Population at Risk'!J138/'Population at Risk'!J$5","v":0},{"$f":"'Population at Risk'!K138/'Population at Risk'!K$5","v":0},{"$f":"'Population at Risk'!L138/'Population at Risk'!L$5","v":0},{"$f":"'Population at Risk'!M138/'Population at Risk'!M$5","v":0},{"$f":"'Population at Risk'!N138/'Population at Risk'!N$5","v":0},{"$f":"'Population at Risk'!O138/'Population at Risk'!O$5","v":0},{"$f":"'Population at Risk'!P138/'Population at Risk'!P$5","v":0},{"$f":"'Population at Risk'!Q138/'Population at Risk'!Q$5","v":0},{"$f":"'Population at Risk'!R138/'Population at Risk'!R$5","v":0},{"$f":"'Population at Risk'!S138/'Population at Risk'!S$5","v":0},{"$f":"'Population at Risk'!T138/'Population at Risk'!T$5","v":0},{"$f":"'Population at Risk'!U138/'Population at Risk'!U$5","v":0},{"$f":"'Population at Risk'!V138/'Population at Risk'!V$5","v":0},{"$f":"'Population at Risk'!W138/'Population at Risk'!W$5","v":0},{"$f":"'Population at Risk'!X138/'Population at Risk'!X$5","v":0},{"$f":"'Population at Risk'!Y138/'Population at Risk'!Y$5","v":0},{"$f":"'Population at Risk'!Z138/'Population at Risk'!Z$5","v":0},{"$f":"'Population at Risk'!AA138/'Population at Risk'!AA$5","v":0},{"$f":"'Population at Risk'!AB138/'Population at Risk'!AB$5","v":0},{"$f":"'Population at Risk'!AC138/'Population at Risk'!AC$5","v":0},{"$f":"'Population at Risk'!AD138/'Population at Risk'!AD$5","v":0},{"$f":"'Population at Risk'!AE138/'Population at Risk'!AE$5","v":0},{"$f":"'Population at Risk'!AF138/'Population at Risk'!AF$5","v":0},{"$f":"'Population at Risk'!AG138/'Population at Risk'!AG$5","v":0},{"$f":"'Population at Risk'!AH138/'Population at Risk'!AH$5","v":0},{"$f":"'Population at Risk'!AI138/'Population at Risk'!AI$5","v":0},{"$f":"'Population at Risk'!AJ138/'Population at Risk'!AJ$5","v":0},{"$f":"'Population at Risk'!AK138/'Population at Risk'!AK$5","v":0},{"$f":"'Population at Risk'!AL138/'Population at Risk'!AL$5","v":0},{"$f":"'Population at Risk'!AM138/'Population at Risk'!AM$5","v":0},{"$f":"'Population at Risk'!AN138/'Population at Risk'!AN$5","v":0},{"$f":"'Population at Risk'!AO138/'Population at Risk'!AO$5","v":0},{"$f":"'Population at Risk'!AP138/'Population at Risk'!AP$5","v":0},{"$f":"'Population at Risk'!AQ138/'Population at Risk'!AQ$5","v":0},{"$f":"'Population at Risk'!AR138/'Population at Risk'!AR$5","v":0},{"$f":"'Population at Risk'!AS138/'Population at Risk'!AS$5","v":0},{"$f":"'Population at Risk'!AT138/'Population at Risk'!AT$5","v":0},{"$f":"'Population at Risk'!AU138/'Population at Risk'!AU$5","v":0},{"$f":"'Population at Risk'!AV138/'Population at Risk'!AV$5","v":0},{"$f":"'Population at Risk'!AW138/'Population at Risk'!AW$5","v":0},{"$f":"'Population at Risk'!AX138/'Population at Risk'!AX$5","v":0},{"$f":"'Population at Risk'!AY138/'Population at Risk'!AY$5","v":0},{"$f":"'Population at Risk'!AZ138/'Population at Risk'!AZ$5","v":0},{"$f":"'Population at Risk'!BA138/'Population at Risk'!BA$5","v":0},{"$f":"'Population at Risk'!BB138/'Population at Risk'!BB$5","v":0},{"$f":"'Population at Risk'!BC138/'Population at Risk'!BC$5","v":0},136]
[null,"Female 16-19",{"$f":"'Population at Risk'!C139/'Population at Risk'!C$5","v":4.4185077210364557E-3},{"$f":"'Population at Risk'!D139/'Population at Risk'!D$5","v":5.2050905253555255E-3},{"$f":"'Population at Risk'!E139/'Population at Risk'!E$5","v":5.8516265772511865E-3},{"$f":"'Population at Risk'!F139/'Population at Risk'!F$5","v":8.7843804565159705E-3},{"$f":"'Population at Risk'!G139/'Population at Risk'!G$5","v":1.3100154527826653E-2},{"$f":"'Population at Risk'!H139/'Population at Risk'!H$5","v":5.1804177048441159E-3},{"$f":"'Population at Risk'!I139/'Population at Risk'!I$5","v":8.8969566082538424E-3},{"$f":"'Population at Risk'!J139/'Population at Risk'!J$5","v":5.2628471565209006E-3},{"$f":"'Population at Risk'!K139/'Population at Risk'!K$5","v":4.4717580297485016E-3},{"$f":"'Population at Risk'!L139/'Population at Risk'!L$5","v":1.0068501952700057E-2},{"$f":"'Population at Risk'!M139/'Population at Risk'!M$5","v":9.882814936433882E-3},{"$f":"'Population at Risk'!N139/'Population at Risk'!N$5","v":5.3976648475080281E-3},{"$f":"'Population at Risk'!O139/'Population at Risk'!O$5","v":4.2574612520080183E-3},{"$f":"'Population at Risk'!P139/'Population at Risk'!P$5","v":2.0250055566303888E-3},{"$f":"'Population at Risk'!Q139/'Population at Risk'!Q$5","v":6.5281303987173448E-3},{"$f":"'Population at Risk'!R139/'Population at Risk'!R$5","v":3.3852627014544999E-3},{"$f":"'Population at Risk'!S139/'Population at Risk'!S$5","v":5.9402784594408346E-3},{"$f":"'Population at Risk'!T139/'Population at Risk'!T$5","v":3.9720520735767751E-3},{"$f":"'Population at Risk'!U139/'Population at Risk'!U$5","v":1.6302883108202357E-2},{"$f":"'Population at Risk'!V139/'Population at Risk'!V$5","v":6.0024800008093892E-3},{"$f":"'Population at Risk'!W139/'Population at Risk'!W$5","v":6.3620322740699014E-3},{"$f":"'Population at Risk'!X139/'Population at Risk'!X$5","v":6.4768569234133055E-3},{"$f":"'Population at Risk'!Y139/'Population at Risk'!Y$5","v":4.9867150158552928E-3},{"$f":"'Population at Risk'!Z139/'Population at Risk'!Z$5","v":6.140404882709543E-3},{"$f":"'Population at Risk'!AA139/'Population at Risk'!AA$5","v":5.8302614675829487E-3},{"$f":"'Population at Risk'!AB139/'Population at Risk'!AB$5","v":5.8635576829476387E-3},{"$f":"'Population at Risk'!AC139/'Population at Risk'!AC$5","v":5.1987194350175021E-3},{"$f":"'Population at Risk'!AD139/'Population at Risk'!AD$5","v":1.0348959782105632E-2},{"$f":"'Population at Risk'!AE139/'Population at Risk'!AE$5","v":8.1235827264921328E-3},{"$f":"'Population at Risk'!AF139/'Population at Risk'!AF$5","v":5.6450226364974064E-3},{"$f":"'Population at Risk'!AG139/'Population at Risk'!AG$5","v":8.9881259270174641E-3},{"$f":"'Population at Risk'!AH139/'Population at Risk'!AH$5","v":7.011431001640595E-3},{"$f":"'Population at Risk'!AI139/'Population at Risk'!AI$5","v":5.3397317213269109E-3},{"$f":"'Population at Risk'!AJ139/'Population at Risk'!AJ$5","v":8.4133604725671104E-3},{"$f":"'Population at Risk'!AK139/'Population at Risk'!AK$5","v":8.52239298260744E-3},{"$f":"'Population at Risk'!AL139/'Population at Risk'!AL$5","v":4.4580725253328341E-3},{"$f":"'Population at Risk'!AM139/'Population at Risk'!AM$5","v":7.1440765937196117E-3},{"$f":"'Population at Risk'!AN139/'Population at Risk'!AN$5","v":7.7932504579386807E-3},{"$f":"'Population at Risk'!AO139/'Population at Risk'!AO$5","v":7.7932504579386807E-3},{"$f":"'Population at Risk'!AP139/'Population at Risk'!AP$5","v":6.2421679113748097E-3},{"$f":"'Population at Risk'!AQ139/'Population at Risk'!AQ$5","v":6.3724842565883281E-3},{"$f":"'Population at Risk'!AR139/'Population at Risk'!AR$5","v":6.3187293819128585E-3},{"$f":"'Population at Risk'!AS139/'Population at Risk'!AS$5","v":8.8969566082538424E-3},{"$f":"'Population at Risk'!AT139/'Population at Risk'!AT$5","v":8.6553883374033882E-3},{"$f":"'Population at Risk'!AU139/'Population at Risk'!AU$5","v":8.6553883374033882E-3},{"$f":"'Population at Risk'!AV139/'Population at Risk'!AV$5","v":7.104012024208327E-3},{"$f":"'Population at Risk'!AW139/'Population at Risk'!AW$5","v":7.0631391356186088E-3},{"$f":"'Population at Risk'!AX139/'Population at Risk'!AX$5","v":5.2315723165650705E-3},{"$f":"'Population at Risk'!AY139/'Population at Risk'!AY$5","v":6.7417429771239904E-3},{"$f":"'Population at Risk'!AZ139/'Population at Risk'!AZ$5","v":7.1417501928966393E-3},{"$f":"'Population at Risk'!BA139/'Population at Risk'!BA$5","v":4.4733932467051823E-3},{"$f":"'Population at Risk'!BB139/'Population at Risk'!BB$5","v":6.7997398124936288E-3},{"$f":"'Population at Risk'!BC139/'Population at Risk'!BC$5","v":1.4087496601262862E-2},137]
[null,"Female 20-24",{"$f":"'Population at Risk'!C140/'Population at Risk'!C$5","v":1.3184672456212279E-2},{"$f":"'Population at Risk'!D140/'Population at Risk'!D$5","v":1.0074948078405232E-2},{"$f":"'Population at Risk'!E140/'Population at Risk'!E$5","v":7.3298152472880485E-3},{"$f":"'Population at Risk'!F140/'Population at Risk'!F$5","v":1.0007238016873877E-2},{"$f":"'Population at Risk'!G140/'Population at Risk'!G$5","v":1.1688574145064778E-2},{"$f":"'Population at Risk'!H140/'Population at Risk'!H$5","v":5.9248857741180661E-3},{"$f":"'Population at Risk'!I140/'Population at Risk'!I$5","v":1.0795278969397979E-2},{"$f":"'Population at Risk'!J140/'Population at Risk'!J$5","v":9.1721021461055232E-3},{"$f":"'Population at Risk'!K140/'Population at Risk'!K$5","v":6.5415431749463798E-3},{"$f":"'Population at Risk'!L140/'Population at Risk'!L$5","v":1.1859714846906996E-2},{"$f":"'Population at Risk'!M140/'Population at Risk'!M$5","v":1.1640993623627173E-2},{"$f":"'Population at Risk'!N140/'Population at Risk'!N$5","v":9.7067250198883855E-3},{"$f":"'Population at Risk'!O140/'Population at Risk'!O$5","v":5.0640306498704489E-3},{"$f":"'Population at Risk'!P140/'Population at Risk'!P$5","v":2.6670804892205122E-3},{"$f":"'Population at Risk'!Q140/'Population at Risk'!Q$5","v":9.0157219383166856E-3},{"$f":"'Population at Risk'!R140/'Population at Risk'!R$5","v":3.7809427574686618E-3},{"$f":"'Population at Risk'!S140/'Population at Risk'!S$5","v":1.0562729641261599E-2},{"$f":"'Population at Risk'!T140/'Population at Risk'!T$5","v":1.2660224471281964E-2},{"$f":"'Population at Risk'!U140/'Population at Risk'!U$5","v":1.6575354692183453E-2},{"$f":"'Population at Risk'!V140/'Population at Risk'!V$5","v":7.8293217401861608E-3},{"$f":"'Population at Risk'!W140/'Population at Risk'!W$5","v":8.8705583288178607E-3},{"$f":"'Population at Risk'!X140/'Population at Risk'!X$5","v":9.030657917394002E-3},{"$f":"'Population at Risk'!Y140/'Population at Risk'!Y$5","v":7.5224083527826047E-3},{"$f":"'Population at Risk'!Z140/'Population at Risk'!Z$5","v":1.3705612081821257E-2},{"$f":"'Population at Risk'!AA140/'Population at Risk'!AA$5","v":9.3828854949160861E-3},{"$f":"'Population at Risk'!AB140/'Population at Risk'!AB$5","v":1.0299952343887234E-2},{"$f":"'Population at Risk'!AC140/'Population at Risk'!AC$5","v":9.6677478218972542E-3},{"$f":"'Population at Risk'!AD140/'Population at Risk'!AD$5","v":1.0935901693522694E-2},{"$f":"'Population at Risk'!AE140/'Population at Risk'!AE$5","v":9.2889199575273869E-3},{"$f":"'Population at Risk'!AF140/'Population at Risk'!AF$5","v":6.5245008008792483E-3},{"$f":"'Population at Risk'!AG140/'Population at Risk'!AG$5","v":1.0277482868730989E-2},{"$f":"'Population at Risk'!AH140/'Population at Risk'!AH$5","v":8.7287272705780187E-3},{"$f":"'Population at Risk'!AI140/'Population at Risk'!AI$5","v":1.1249742148688114E-2},{"$f":"'Population at Risk'!AJ140/'Population at Risk'!AJ$5","v":9.082205028963659E-3},{"$f":"'Population at Risk'!AK140/'Population at Risk'!AK$5","v":1.0316580978945849E-2},{"$f":"'Population at Risk'!AL140/'Population at Risk'!AL$5","v":5.2029101954130129E-3},{"$f":"'Population at Risk'!AM140/'Population at Risk'!AM$5","v":8.7248501440786979E-3},{"$f":"'Population at Risk'!AN140/'Population at Risk'!AN$5","v":1.0707799409688105E-2},{"$f":"'Population at Risk'!AO140/'Population at Risk'!AO$5","v":1.0707799409688105E-2},{"$f":"'Population at Risk'!AP140/'Population at Risk'!AP$5","v":8.4425084913299243E-3},{"$f":"'Population at Risk'!AQ140/'Population at Risk'!AQ$5","v":8.3939671778625723E-3},{"$f":"'Population at Risk'!AR140/'Population at Risk'!AR$5","v":9.6477800351022526E-3},{"$f":"'Population at Risk'!AS140/'Population at Risk'!AS$5","v":1.0795278969397979E-2},{"$f":"'Population at Risk'!AT140/'Population at Risk'!AT$5","v":1.0049544848126082E-2},{"$f":"'Population at Risk'!AU140/'Population at Risk'!AU$5","v":1.0049544848126082E-2},{"$f":"'Population at Risk'!AV140/'Population at Risk'!AV$5","v":7.7336547084348832E-3},{"$f":"'Population at Risk'!AW140/'Population at Risk'!AW$5","v":8.9718042150147819E-3},{"$f":"'Population at Risk'!AX140/'Population at Risk'!AX$5","v":9.8583385849723287E-3},{"$f":"'Population at Risk'!AY140/'Population at Risk'!AY$5","v":9.3331063971450433E-3},{"$f":"'Population at Risk'!AZ140/'Population at Risk'!AZ$5","v":9.8273458383504788E-3},{"$f":"'Population at Risk'!BA140/'Population at Risk'!BA$5","v":7.1069231419429108E-3},{"$f":"'Population at Risk'!BB140/'Population at Risk'!BB$5","v":8.4976818758712887E-3},{"$f":"'Population at Risk'!BC140/'Population at Risk'!BC$5","v":1.4322942226910709E-2},138]
[null,"Female 25-29",{"$f":"'Population at Risk'!C141/'Population at Risk'!C$5","v":8.6873041639778225E-3},{"$f":"'Population at Risk'!D141/'Population at Risk'!D$5","v":6.897857880452554E-3},{"$f":"'Population at Risk'!E141/'Population at Risk'!E$5","v":5.3114231208647991E-3},{"$f":"'Population at Risk'!F141/'Population at Risk'!F$5","v":6.1327698319072485E-3},{"$f":"'Population at Risk'!G141/'Population at Risk'!G$5","v":8.4471377703359031E-3},{"$f":"'Population at Risk'!H141/'Population at Risk'!H$5","v":4.0794174213082028E-3},{"$f":"'Population at Risk'!I141/'Population at Risk'!I$5","v":5.9275421600526517E-3},{"$f":"'Population at Risk'!J141/'Population at Risk'!J$5","v":5.7398037689956145E-3},{"$f":"'Population at Risk'!K141/'Population at Risk'!K$5","v":4.5642829252350824E-3},{"$f":"'Population at Risk'!L141/'Population at Risk'!L$5","v":8.3180148014088563E-3},{"$f":"'Population at Risk'!M141/'Population at Risk'!M$5","v":8.1646109130263048E-3},{"$f":"'Population at Risk'!N141/'Population at Risk'!N$5","v":7.314713764095049E-3},{"$f":"'Population at Risk'!O141/'Population at Risk'!O$5","v":3.6817548487478118E-3},{"$f":"'Population at Risk'!P141/'Population at Risk'!P$5","v":1.664557505066456E-3},{"$f":"'Population at Risk'!Q141/'Population at Risk'!Q$5","v":5.7280511200918892E-3},{"$f":"'Population at Risk'!R141/'Population at Risk'!R$5","v":2.6275347553769779E-3},{"$f":"'Population at Risk'!S141/'Population at Risk'!S$5","v":7.9658900011076103E-3},{"$f":"'Population at Risk'!T141/'Population at Risk'!T$5","v":1.0504219117666526E-2},{"$f":"'Population at Risk'!U141/'Population at Risk'!U$5","v":1.2641728357854458E-2},{"$f":"'Population at Risk'!V141/'Population at Risk'!V$5","v":5.3381770927169846E-3},{"$f":"'Population at Risk'!W141/'Population at Risk'!W$5","v":6.6012268342533521E-3},{"$f":"'Population at Risk'!X141/'Population at Risk'!X$5","v":6.7203685681877703E-3},{"$f":"'Population at Risk'!Y141/'Population at Risk'!Y$5","v":4.9022003180734597E-3},{"$f":"'Population at Risk'!Z141/'Population at Risk'!Z$5","v":8.7063544726963382E-3},{"$f":"'Population at Risk'!AA141/'Population at Risk'!AA$5","v":6.2542124101783855E-3},{"$f":"'Population at Risk'!AB141/'Population at Risk'!AB$5","v":7.1017787836278636E-3},{"$f":"'Population at Risk'!AC141/'Population at Risk'!AC$5","v":6.2288126779447535E-3},{"$f":"'Population at Risk'!AD141/'Population at Risk'!AD$5","v":7.94094534062912E-3},{"$f":"'Population at Risk'!AE141/'Population at Risk'!AE$5","v":6.758209215080818E-3},{"$f":"'Population at Risk'!AF141/'Population at Risk'!AF$5","v":4.2323484645754297E-3},{"$f":"'Population at Risk'!AG141/'Population at Risk'!AG$5","v":7.4774440676504484E-3},{"$f":"'Population at Risk'!AH141/'Population at Risk'!AH$5","v":6.2408911793376621E-3},{"$f":"'Population at Risk'!AI141/'Population at Risk'!AI$5","v":8.8421181761261358E-3},{"$f":"'Population at Risk'!AJ141/'Population at Risk'!AJ$5","v":6.8929347738650205E-3},{"$f":"'Population at Risk'!AK141/'Population at Risk'!AK$5","v":7.3569193851382745E-3},{"$f":"'Population at Risk'!AL141/'Population at Risk'!AL$5","v":3.1747359665720743E-3},{"$f":"'Population at Risk'!AM141/'Population at Risk'!AM$5","v":6.4824039653427713E-3},{"$f":"'Population at Risk'!AN141/'Population at Risk'!AN$5","v":7.8581041692833923E-3},{"$f":"'Population at Risk'!AO141/'Population at Risk'!AO$5","v":7.8581041692833923E-3},{"$f":"'Population at Risk'!AP141/'Population at Risk'!AP$5","v":5.9070194366805228E-3},{"$f":"'Population at Risk'!AQ141/'Population at Risk'!AQ$5","v":5.729251955942173E-3},{"$f":"'Population at Risk'!AR141/'Population at Risk'!AR$5","v":6.7865178230906284E-3},{"$f":"'Population at Risk'!AS141/'Population at Risk'!AS$5","v":5.9275421600526517E-3},{"$f":"'Population at Risk'!AT141/'Population at Risk'!AT$5","v":8.2225404874369558E-3},{"$f":"'Population at Risk'!AU141/'Population at Risk'!AU$5","v":8.2225404874369558E-3},{"$f":"'Population at Risk'!AV141/'Population at Risk'!AV$5","v":5.5726235374039508E-3},{"$f":"'Population at Risk'!AW141/'Population at Risk'!AW$5","v":6.1563926089053689E-3},{"$f":"'Population at Risk'!AX141/'Population at Risk'!AX$5","v":5.8907475183749098E-3},{"$f":"'Population at Risk'!AY141/'Population at Risk'!AY$5","v":6.6613292691492833E-3},{"$f":"'Population at Risk'!AZ141/'Population at Risk'!AZ$5","v":6.7594249540929808E-3},{"$f":"'Population at Risk'!BA141/'Population at Risk'!BA$5","v":4.6566179430385891E-3},{"$f":"'Population at Risk'!BB141/'Population at Risk'!BB$5","v":5.9480871227504308E-3},{"$f":"'Population at Risk'!BC141/'Population at Risk'!BC$5","v":1.0923853412514605E-2},139]
[null,"Female 30-34",{"$f":"'Population at Risk'!C142/'Population at Risk'!C$5","v":6.859540519282838E-3},{"$f":"'Population at Risk'!D142/'Population at Risk'!D$5","v":6.2986581757159613E-3},{"$f":"'Population at Risk'!E142/'Population at Risk'!E$5","v":5.775891715355092E-3},{"$f":"'Population at Risk'!F142/'Population at Risk'!F$5","v":7.5695469811826819E-3},{"$f":"'Population at Risk'!G142/'Population at Risk'!G$5","v":9.5726492589658235E-3},{"$f":"'Population at Risk'!H142/'Population at Risk'!H$5","v":4.3784186982045977E-3},{"$f":"'Population at Risk'!I142/'Population at Risk'!I$5","v":7.3072951465928664E-3},{"$f":"'Population at Risk'!J142/'Population at Risk'!J$5","v":4.6980600244448086E-3},{"$f":"'Population at Risk'!K142/'Population at Risk'!K$5","v":4.7192963076015566E-3},{"$f":"'Population at Risk'!L142/'Population at Risk'!L$5","v":7.9685183811815923E-3},{"$f":"'Population at Risk'!M142/'Population at Risk'!M$5","v":7.8215600343277212E-3},{"$f":"'Population at Risk'!N142/'Population at Risk'!N$5","v":4.7083215033255485E-3},{"$f":"'Population at Risk'!O142/'Population at Risk'!O$5","v":3.819390544028104E-3},{"$f":"'Population at Risk'!P142/'Population at Risk'!P$5","v":1.3399687915784972E-3},{"$f":"'Population at Risk'!Q142/'Population at Risk'!Q$5","v":5.8831252620909925E-3},{"$f":"'Population at Risk'!R142/'Population at Risk'!R$5","v":2.7757040084997399E-3},{"$f":"'Population at Risk'!S142/'Population at Risk'!S$5","v":7.1989099965226863E-3},{"$f":"'Population at Risk'!T142/'Population at Risk'!T$5","v":8.0487600161459703E-3},{"$f":"'Population at Risk'!U142/'Population at Risk'!U$5","v":1.3866108828348834E-2},{"$f":"'Population at Risk'!V142/'Population at Risk'!V$5","v":6.21095889875056E-3},{"$f":"'Population at Risk'!W142/'Population at Risk'!W$5","v":6.306125674929098E-3},{"$f":"'Population at Risk'!X142/'Population at Risk'!X$5","v":6.4199412983251677E-3},{"$f":"'Population at Risk'!Y142/'Population at Risk'!Y$5","v":4.83010913692532E-3},{"$f":"'Population at Risk'!Z142/'Population at Risk'!Z$5","v":6.913303772573022E-3},{"$f":"'Population at Risk'!AA142/'Population at Risk'!AA$5","v":5.8982960187724236E-3},{"$f":"'Population at Risk'!AB142/'Population at Risk'!AB$5","v":6.7919638981526545E-3},{"$f":"'Population at Risk'!AC142/'Population at Risk'!AC$5","v":5.3445627595820151E-3},{"$f":"'Population at Risk'!AD142/'Population at Risk'!AD$5","v":8.6847166260208466E-3},{"$f":"'Population at Risk'!AE142/'Population at Risk'!AE$5","v":7.2818660773386239E-3},{"$f":"'Population at Risk'!AF142/'Population at Risk'!AF$5","v":3.7084747132599041E-3},{"$f":"'Population at Risk'!AG142/'Population at Risk'!AG$5","v":8.0568305254470583E-3},{"$f":"'Population at Risk'!AH142/'Population at Risk'!AH$5","v":6.9259945965107631E-3},{"$f":"'Population at Risk'!AI142/'Population at Risk'!AI$5","v":7.5649109127226E-3},{"$f":"'Population at Risk'!AJ142/'Population at Risk'!AJ$5","v":7.2963078931617686E-3},{"$f":"'Population at Risk'!AK142/'Population at Risk'!AK$5","v":8.5259641093520279E-3},{"$f":"'Population at Risk'!AL142/'Population at Risk'!AL$5","v":3.4331447080372434E-3},{"$f":"'Population at Risk'!AM142/'Population at Risk'!AM$5","v":7.4001143888563024E-3},{"$f":"'Population at Risk'!AN142/'Population at Risk'!AN$5","v":8.6695388389376547E-3},{"$f":"'Population at Risk'!AO142/'Population at Risk'!AO$5","v":8.6695388389376547E-3},{"$f":"'Population at Risk'!AP142/'Population at Risk'!AP$5","v":6.3207654101549134E-3},{"$f":"'Population at Risk'!AQ142/'Population at Risk'!AQ$5","v":6.3132074214402424E-3},{"$f":"'Population at Risk'!AR142/'Population at Risk'!AR$5","v":6.4815790418982864E-3},{"$f":"'Population at Risk'!AS142/'Population at Risk'!AS$5","v":7.3072951465928664E-3},{"$f":"'Population at Risk'!AT142/'Population at Risk'!AT$5","v":7.3611314839911804E-3},{"$f":"'Population at Risk'!AU142/'Population at Risk'!AU$5","v":7.3611314839911804E-3},{"$f":"'Population at Risk'!AV142/'Population at Risk'!AV$5","v":6.1261954119805019E-3},{"$f":"'Population at Risk'!AW142/'Population at Risk'!AW$5","v":6.6143061087413045E-3},{"$f":"'Population at Risk'!AX142/'Population at Risk'!AX$5","v":4.2397075564774445E-3},{"$f":"'Population at Risk'!AY142/'Population at Risk'!AY$5","v":6.407944085518774E-3},{"$f":"'Population at Risk'!AZ142/'Population at Risk'!AZ$5","v":6.5438053153496593E-3},{"$f":"'Population at Risk'!BA142/'Population at Risk'!BA$5","v":4.6687762144303341E-3},{"$f":"'Population at Risk'!BB142/'Population at Risk'!BB$5","v":6.6143588510440658E-3},{"$f":"'Population at Risk'!BC142/'Population at Risk'!BC$5","v":1.1981853743024493E-2},140]
[null,"Female 35-39",{"$f":"'Population at Risk'!C143/'Population at Risk'!C$5","v":5.4349172422243552E-3},{"$f":"'Population at Risk'!D143/'Population at Risk'!D$5","v":6.3704338189728192E-3},{"$f":"'Population at Risk'!E143/'Population at Risk'!E$5","v":7.1382777576270984E-3},{"$f":"'Population at Risk'!F143/'Population at Risk'!F$5","v":1.031141282118094E-2},{"$f":"'Population at Risk'!G143/'Population at Risk'!G$5","v":1.2433652529172319E-2},{"$f":"'Population at Risk'!H143/'Population at Risk'!H$5","v":5.6514129783164441E-3},{"$f":"'Population at Risk'!I143/'Population at Risk'!I$5","v":8.8176160547778337E-3},{"$f":"'Population at Risk'!J143/'Population at Risk'!J$5","v":6.0512569177115809E-3},{"$f":"'Population at Risk'!K143/'Population at Risk'!K$5","v":5.1826646806239843E-3},{"$f":"'Population at Risk'!L143/'Population at Risk'!L$5","v":9.9476661241762881E-3},{"$f":"'Population at Risk'!M143/'Population at Risk'!M$5","v":9.7642076067038786E-3},{"$f":"'Population at Risk'!N143/'Population at Risk'!N$5","v":4.6677604126320197E-3},{"$f":"'Population at Risk'!O143/'Population at Risk'!O$5","v":4.7618495448433539E-3},{"$f":"'Population at Risk'!P143/'Population at Risk'!P$5","v":2.0605421394344391E-3},{"$f":"'Population at Risk'!Q143/'Population at Risk'!Q$5","v":7.6170733014798439E-3},{"$f":"'Population at Risk'!R143/'Population at Risk'!R$5","v":3.6997035841212786E-3},{"$f":"'Population at Risk'!S143/'Population at Risk'!S$5","v":7.9016817102297594E-3},{"$f":"'Population at Risk'!T143/'Population at Risk'!T$5","v":6.9783458699972266E-3},{"$f":"'Population at Risk'!U143/'Population at Risk'!U$5","v":2.1257971007262986E-2},{"$f":"'Population at Risk'!V143/'Population at Risk'!V$5","v":8.0230764768427481E-3},{"$f":"'Population at Risk'!W143/'Population at Risk'!W$5","v":8.2562430849157115E-3},{"$f":"'Population at Risk'!X143/'Population at Risk'!X$5","v":8.4052552521414643E-3},{"$f":"'Population at Risk'!Y143/'Population at Risk'!Y$5","v":6.2316210150259767E-3},{"$f":"'Population at Risk'!Z143/'Population at Risk'!Z$5","v":6.654088842455259E-3},{"$f":"'Population at Risk'!AA143/'Population at Risk'!AA$5","v":6.9026450463824645E-3},{"$f":"'Population at Risk'!AB143/'Population at Risk'!AB$5","v":6.9455806344466322E-3},{"$f":"'Population at Risk'!AC143/'Population at Risk'!AC$5","v":5.820764185168908E-3},{"$f":"'Population at Risk'!AD143/'Population at Risk'!AD$5","v":1.1649246694625913E-2},{"$f":"'Population at Risk'!AE143/'Population at Risk'!AE$5","v":9.9005112264736999E-3},{"$f":"'Population at Risk'!AF143/'Population at Risk'!AF$5","v":6.52874874720404E-3},{"$f":"'Population at Risk'!AG143/'Population at Risk'!AG$5","v":1.0954162054040102E-2},{"$f":"'Population at Risk'!AH143/'Population at Risk'!AH$5","v":8.9572535818965189E-3},{"$f":"'Population at Risk'!AI143/'Population at Risk'!AI$5","v":7.6269779526512236E-3},{"$f":"'Population at Risk'!AJ143/'Population at Risk'!AJ$5","v":9.323881969264862E-3},{"$f":"'Population at Risk'!AK143/'Population at Risk'!AK$5","v":9.0718832801954009E-3},{"$f":"'Population at Risk'!AL143/'Population at Risk'!AL$5","v":4.6775429485600688E-3},{"$f":"'Population at Risk'!AM143/'Population at Risk'!AM$5","v":9.6790788229900258E-3},{"$f":"'Population at Risk'!AN143/'Population at Risk'!AN$5","v":7.699568457119217E-3},{"$f":"'Population at Risk'!AO143/'Population at Risk'!AO$5","v":7.699568457119217E-3},{"$f":"'Population at Risk'!AP143/'Population at Risk'!AP$5","v":7.3946836512604978E-3},{"$f":"'Population at Risk'!AQ143/'Population at Risk'!AQ$5","v":7.6612255490414337E-3},{"$f":"'Population at Risk'!AR143/'Population at Risk'!AR$5","v":7.5580204910829603E-3},{"$f":"'Population at Risk'!AS143/'Population at Risk'!AS$5","v":8.8176160547778337E-3},{"$f":"'Population at Risk'!AT143/'Population at Risk'!AT$5","v":9.4453576775476028E-3},{"$f":"'Population at Risk'!AU143/'Population at Risk'!AU$5","v":9.4453576775476028E-3},{"$f":"'Population at Risk'!AV143/'Population at Risk'!AV$5","v":7.8248732327440527E-3},{"$f":"'Population at Risk'!AW143/'Population at Risk'!AW$5","v":8.4392662616305184E-3},{"$f":"'Population at Risk'!AX143/'Population at Risk'!AX$5","v":5.9910320538242943E-3},{"$f":"'Population at Risk'!AY143/'Population at Risk'!AY$5","v":8.0279553097172621E-3},{"$f":"'Population at Risk'!AZ143/'Population at Risk'!AZ$5","v":7.8625767485411748E-3},{"$f":"'Population at Risk'!BA143/'Population at Risk'!BA$5","v":5.7887018643136296E-3},{"$f":"'Population at Risk'!BB143/'Population at Risk'!BB$5","v":8.118106477435369E-3},{"$f":"'Population at Risk'!BC143/'Population at Risk'!BC$5","v":1.8369241337680368E-2},141]
[null,"Female 40-44",{"$f":"'Population at Risk'!C144/'Population at Risk'!C$5","v":4.7900031272748115E-3},{"$f":"'Population at Risk'!D144/'Population at Risk'!D$5","v":6.3781182988509539E-3},{"$f":"'Population at Risk'!E144/'Population at Risk'!E$5","v":7.7089595237265331E-3},{"$f":"'Population at Risk'!F144/'Population at Risk'!F$5","v":1.1981976909528689E-2},{"$f":"'Population at Risk'!G144/'Population at Risk'!G$5","v":1.5438942950915392E-2},{"$f":"'Population at Risk'!H144/'Population at Risk'!H$5","v":6.5724084344789963E-3},{"$f":"'Population at Risk'!I144/'Population at Risk'!I$5","v":1.1753559247267679E-2},{"$f":"'Population at Risk'!J144/'Population at Risk'!J$5","v":6.6823165677015028E-3},{"$f":"'Population at Risk'!K144/'Population at Risk'!K$5","v":6.4072605545266977E-3},{"$f":"'Population at Risk'!L144/'Population at Risk'!L$5","v":1.2650397796194987E-2},{"$f":"'Population at Risk'!M144/'Population at Risk'!M$5","v":1.2417094507146538E-2},{"$f":"'Population at Risk'!N144/'Population at Risk'!N$5","v":4.0952076801054312E-3},{"$f":"'Population at Risk'!O144/'Population at Risk'!O$5","v":5.7491688082695908E-3},{"$f":"'Population at Risk'!P144/'Population at Risk'!P$5","v":2.2507460292283872E-3},{"$f":"'Population at Risk'!Q144/'Population at Risk'!Q$5","v":8.4046220757847071E-3},{"$f":"'Population at Risk'!R144/'Population at Risk'!R$5","v":3.9003654734295515E-3},{"$f":"'Population at Risk'!S144/'Population at Risk'!S$5","v":7.8147206367249946E-3},{"$f":"'Population at Risk'!T144/'Population at Risk'!T$5","v":5.5556912336782536E-3},{"$f":"'Population at Risk'!U144/'Population at Risk'!U$5","v":2.2307267565208323E-2},{"$f":"'Population at Risk'!V144/'Population at Risk'!V$5","v":8.5900176411592595E-3},{"$f":"'Population at Risk'!W144/'Population at Risk'!W$5","v":8.2157382128719703E-3},{"$f":"'Population at Risk'!X144/'Population at Risk'!X$5","v":8.3640193310352932E-3},{"$f":"'Population at Risk'!Y144/'Population at Risk'!Y$5","v":6.7617283106738398E-3},{"$f":"'Population at Risk'!Z144/'Population at Risk'!Z$5","v":5.5702452659805715E-3},{"$f":"'Population at Risk'!AA144/'Population at Risk'!AA$5","v":6.7999784117766231E-3},{"$f":"'Population at Risk'!AB144/'Population at Risk'!AB$5","v":7.2563497304184311E-3},{"$f":"'Population at Risk'!AC144/'Population at Risk'!AC$5","v":5.4983903360290342E-3},{"$f":"'Population at Risk'!AD144/'Population at Risk'!AD$5","v":1.3059693603840709E-2},{"$f":"'Population at Risk'!AE144/'Population at Risk'!AE$5","v":1.0608722978440432E-2},{"$f":"'Population at Risk'!AF144/'Population at Risk'!AF$5","v":7.2638893568087856E-3},{"$f":"'Population at Risk'!AG144/'Population at Risk'!AG$5","v":1.1737744449146621E-2},{"$f":"'Population at Risk'!AH144/'Population at Risk'!AH$5","v":9.2870363305257702E-3},{"$f":"'Population at Risk'!AI144/'Population at Risk'!AI$5","v":7.0821938131761355E-3},{"$f":"'Population at Risk'!AJ144/'Population at Risk'!AJ$5","v":9.9263945359378738E-3},{"$f":"'Population at Risk'!AK144/'Population at Risk'!AK$5","v":1.0863228356679683E-2},{"$f":"'Population at Risk'!AL144/'Population at Risk'!AL$5","v":5.4930664686497002E-3},{"$f":"'Population at Risk'!AM144/'Population at Risk'!AM$5","v":1.0002005708878783E-2},{"$f":"'Population at Risk'!AN144/'Population at Risk'!AN$5","v":1.0464906424112739E-2},{"$f":"'Population at Risk'!AO144/'Population at Risk'!AO$5","v":1.0464906424112739E-2},{"$f":"'Population at Risk'!AP144/'Population at Risk'!AP$5","v":8.3563966069982037E-3},{"$f":"'Population at Risk'!AQ144/'Population at Risk'!AQ$5","v":8.460299611683389E-3},{"$f":"'Population at Risk'!AR144/'Population at Risk'!AR$5","v":7.8735194219933923E-3},{"$f":"'Population at Risk'!AS144/'Population at Risk'!AS$5","v":1.1753559247267679E-2},{"$f":"'Population at Risk'!AT144/'Population at Risk'!AT$5","v":9.8430569481811874E-3},{"$f":"'Population at Risk'!AU144/'Population at Risk'!AU$5","v":9.8430569481811874E-3},{"$f":"'Population at Risk'!AV144/'Population at Risk'!AV$5","v":8.7502699174548011E-3},{"$f":"'Population at Risk'!AW144/'Population at Risk'!AW$5","v":8.7853269339226384E-3},{"$f":"'Population at Risk'!AX144/'Population at Risk'!AX$5","v":6.2110051529927889E-3},{"$f":"'Population at Risk'!AY144/'Population at Risk'!AY$5","v":8.39048705885421E-3},{"$f":"'Population at Risk'!AZ144/'Population at Risk'!AZ$5","v":8.6074524405082339E-3},{"$f":"'Population at Risk'!BA144/'Population at Risk'!BA$5","v":6.2363614751538834E-3},{"$f":"'Population at Risk'!BB144/'Population at Risk'!BB$5","v":8.8889854958809113E-3},{"$f":"'Population at Risk'!BC144/'Population at Risk'!BC$5","v":1.9275949776651792E-2},142]
[null,"Female 45-49",{"$f":"'Population at Risk'!C145/'Population at Risk'!C$5","v":5.3020620463613026E-3},{"$f":"'Population at Risk'!D145/'Population at Risk'!D$5","v":8.1982973551171616E-3},{"$f":"'Population at Risk'!E145/'Population at Risk'!E$5","v":1.0646522355092248E-2},{"$f":"'Population at Risk'!F145/'Population at Risk'!F$5","v":1.460078085708953E-2},{"$f":"'Population at Risk'!G145/'Population at Risk'!G$5","v":2.0487846232861887E-2},{"$f":"'Population at Risk'!H145/'Population at Risk'!H$5","v":9.0256012206228788E-3},{"$f":"'Population at Risk'!I145/'Population at Risk'!I$5","v":1.630286159126083E-2},{"$f":"'Population at Risk'!J145/'Population at Risk'!J$5","v":8.7333558349281613E-3},{"$f":"'Population at Risk'!K145/'Population at Risk'!K$5","v":9.2364070698784627E-3},{"$f":"'Population at Risk'!L145/'Population at Risk'!L$5","v":1.8746472684817481E-2},{"$f":"'Population at Risk'!M145/'Population at Risk'!M$5","v":1.8400743340500712E-2},{"$f":"'Population at Risk'!N145/'Population at Risk'!N$5","v":5.5902859042524363E-3},{"$f":"'Population at Risk'!O145/'Population at Risk'!O$5","v":8.1508826788917708E-3},{"$f":"'Population at Risk'!P145/'Population at Risk'!P$5","v":3.5205809355828123E-3},{"$f":"'Population at Risk'!Q145/'Population at Risk'!Q$5","v":1.2458166723350681E-2},{"$f":"'Population at Risk'!R145/'Population at Risk'!R$5","v":4.8119253390495331E-3},{"$f":"'Population at Risk'!S145/'Population at Risk'!S$5","v":9.8416429657147142E-3},{"$f":"'Population at Risk'!T145/'Population at Risk'!T$5","v":5.3273034901550479E-3},{"$f":"'Population at Risk'!U145/'Population at Risk'!U$5","v":2.9613277007257195E-2},{"$f":"'Population at Risk'!V145/'Population at Risk'!V$5","v":1.0423024233765196E-2},{"$f":"'Population at Risk'!W145/'Population at Risk'!W$5","v":1.0984685802070066E-2},{"$f":"'Population at Risk'!X145/'Population at Risk'!X$5","v":1.1182942057466786E-2},{"$f":"'Population at Risk'!Y145/'Population at Risk'!Y$5","v":8.4803782116824825E-3},{"$f":"'Population at Risk'!Z145/'Population at Risk'!Z$5","v":6.526059756601147E-3},{"$f":"'Population at Risk'!AA145/'Population at Risk'!AA$5","v":8.7595885608159861E-3},{"$f":"'Population at Risk'!AB145/'Population at Risk'!AB$5","v":9.2912108447955541E-3},{"$f":"'Population at Risk'!AC145/'Population at Risk'!AC$5","v":7.0832507340691658E-3},{"$f":"'Population at Risk'!AD145/'Population at Risk'!AD$5","v":1.8056581997059357E-2},{"$f":"'Population at Risk'!AE145/'Population at Risk'!AE$5","v":1.4948524517923384E-2},{"$f":"'Population at Risk'!AF145/'Population at Risk'!AF$5","v":9.1988965040170987E-3},{"$f":"'Population at Risk'!AG145/'Population at Risk'!AG$5","v":1.6539404510775686E-2},{"$f":"'Population at Risk'!AH145/'Population at Risk'!AH$5","v":1.1962695559459308E-2},{"$f":"'Population at Risk'!AI145/'Population at Risk'!AI$5","v":8.4333988280521823E-3},{"$f":"'Population at Risk'!AJ145/'Population at Risk'!AJ$5","v":1.4067976832676221E-2},{"$f":"'Population at Risk'!AK145/'Population at Risk'!AK$5","v":1.3751718338100228E-2},{"$f":"'Population at Risk'!AL145/'Population at Risk'!AL$5","v":7.4954191436149365E-3},{"$f":"'Population at Risk'!AM145/'Population at Risk'!AM$5","v":1.1734525687864124E-2},{"$f":"'Population at Risk'!AN145/'Population at Risk'!AN$5","v":1.5151552608422329E-2},{"$f":"'Population at Risk'!AO145/'Population at Risk'!AO$5","v":1.5151552608422329E-2},{"$f":"'Population at Risk'!AP145/'Population at Risk'!AP$5","v":1.189070769910381E-2},{"$f":"'Population at Risk'!AQ145/'Population at Risk'!AQ$5","v":1.2191439557304595E-2},{"$f":"'Population at Risk'!AR145/'Population at Risk'!AR$5","v":1.0291392371782962E-2},{"$f":"'Population at Risk'!AS145/'Population at Risk'!AS$5","v":1.630286159126083E-2},{"$f":"'Population at Risk'!AT145/'Population at Risk'!AT$5","v":1.4959896494313283E-2},{"$f":"'Population at Risk'!AU145/'Population at Risk'!AU$5","v":1.4959896494313283E-2},{"$f":"'Population at Risk'!AV145/'Population at Risk'!AV$5","v":1.1733363090921239E-2},{"$f":"'Population at Risk'!AW145/'Population at Risk'!AW$5","v":1.2531468752780146E-2},{"$f":"'Population at Risk'!AX145/'Population at Risk'!AX$5","v":7.6070054669455794E-3},{"$f":"'Population at Risk'!AY145/'Population at Risk'!AY$5","v":1.1141296699202011E-2},{"$f":"'Population at Risk'!AZ145/'Population at Risk'!AZ$5","v":1.1358259273025023E-2},{"$f":"'Population at Risk'!BA145/'Population at Risk'!BA$5","v":9.622405581822412E-3},{"$f":"'Population at Risk'!BB145/'Population at Risk'!BB$5","v":1.1921587013402138E-2},{"$f":"'Population at Risk'!BC145/'Population at Risk'!BC$5","v":2.5589151098194412E-2},143]
[null,"Female 50-54",{"$f":"'Population at Risk'!C146/'Population at Risk'!C$5","v":5.9003953052244214E-3},{"$f":"'Population at Risk'!D146/'Population at Risk'!D$5","v":8.4625809501780239E-3},{"$f":"'Population at Risk'!E146/'Population at Risk'!E$5","v":1.0620966612521215E-2},{"$f":"'Population at Risk'!F146/'Population at Risk'!F$5","v":1.6385893993680692E-2},{"$f":"'Population at Risk'!G146/'Population at Risk'!G$5","v":2.5522726528109243E-2},{"$f":"'Population at Risk'!H146/'Population at Risk'!H$5","v":1.0022532801988849E-2},{"$f":"'Population at Risk'!I146/'Population at Risk'!I$5","v":1.6755134525728067E-2},{"$f":"'Population at Risk'!J146/'Population at Risk'!J$5","v":9.2629316674716772E-3},{"$f":"'Population at Risk'!K146/'Population at Risk'!K$5","v":9.5184347666686462E-3},{"$f":"'Population at Risk'!L146/'Population at Risk'!L$5","v":2.0289891805029096E-2},{"$f":"'Population at Risk'!M146/'Population at Risk'!M$5","v":1.9915698157618716E-2},{"$f":"'Population at Risk'!N146/'Population at Risk'!N$5","v":6.8835610015048655E-3},{"$f":"'Population at Risk'!O146/'Population at Risk'!O$5","v":8.6955269131955993E-3},{"$f":"'Population at Risk'!P146/'Population at Risk'!P$5","v":3.0208855769839611E-3},{"$f":"'Population at Risk'!Q146/'Population at Risk'!Q$5","v":1.1228220327096314E-2},{"$f":"'Population at Risk'!R146/'Population at Risk'!R$5","v":5.4454281147787434E-3},{"$f":"'Population at Risk'!S146/'Population at Risk'!S$5","v":1.000130558777201E-2},{"$f":"'Population at Risk'!T146/'Population at Risk'!T$5","v":5.2662455704971098E-3},{"$f":"'Population at Risk'!U146/'Population at Risk'!U$5","v":3.0030953692832048E-2},{"$f":"'Population at Risk'!V146/'Population at Risk'!V$5","v":1.1041573944714946E-2},{"$f":"'Population at Risk'!W146/'Population at Risk'!W$5","v":1.1866217720796296E-2},{"$f":"'Population at Risk'!X146/'Population at Risk'!X$5","v":1.2080384237111578E-2},{"$f":"'Population at Risk'!Y146/'Population at Risk'!Y$5","v":8.9886270750215973E-3},{"$f":"'Population at Risk'!Z146/'Population at Risk'!Z$5","v":6.8292088381989328E-3},{"$f":"'Population at Risk'!AA146/'Population at Risk'!AA$5","v":8.83449125814551E-3},{"$f":"'Population at Risk'!AB146/'Population at Risk'!AB$5","v":9.7349841128979049E-3},{"$f":"'Population at Risk'!AC146/'Population at Risk'!AC$5","v":7.2407370681599808E-3},{"$f":"'Population at Risk'!AD146/'Population at Risk'!AD$5","v":2.0466429582411932E-2},{"$f":"'Population at Risk'!AE146/'Population at Risk'!AE$5","v":1.6191214467456326E-2},{"$f":"'Population at Risk'!AF146/'Population at Risk'!AF$5","v":1.0271160513687804E-2},{"$f":"'Population at Risk'!AG146/'Population at Risk'!AG$5","v":1.7914346347487207E-2},{"$f":"'Population at Risk'!AH146/'Population at Risk'!AH$5","v":1.1874682090439622E-2},{"$f":"'Population at Risk'!AI146/'Population at Risk'!AI$5","v":8.2473791829568346E-3},{"$f":"'Population at Risk'!AJ146/'Population at Risk'!AJ$5","v":1.4165109008736125E-2},{"$f":"'Population at Risk'!AK146/'Population at Risk'!AK$5","v":1.5044379861881649E-2},{"$f":"'Population at Risk'!AL146/'Population at Risk'!AL$5","v":8.0394415008127953E-3},{"$f":"'Population at Risk'!AM146/'Population at Risk'!AM$5","v":1.1387461378950477E-2},{"$f":"'Population at Risk'!AN146/'Population at Risk'!AN$5","v":1.6550157464584391E-2},{"$f":"'Population at Risk'!AO146/'Population at Risk'!AO$5","v":1.6550157464584391E-2},{"$f":"'Population at Risk'!AP146/'Population at Risk'!AP$5","v":1.3002475840437108E-2},{"$f":"'Population at Risk'!AQ146/'Population at Risk'!AQ$5","v":1.1766465629381124E-2},{"$f":"'Population at Risk'!AR146/'Population at Risk'!AR$5","v":1.0812214911048503E-2},{"$f":"'Population at Risk'!AS146/'Population at Risk'!AS$5","v":1.6755134525728067E-2},{"$f":"'Population at Risk'!AT146/'Population at Risk'!AT$5","v":1.5066752897844092E-2},{"$f":"'Population at Risk'!AU146/'Population at Risk'!AU$5","v":1.5066752897844092E-2},{"$f":"'Population at Risk'!AV146/'Population at Risk'!AV$5","v":1.3860979359553953E-2},{"$f":"'Population at Risk'!AW146/'Population at Risk'!AW$5","v":1.2714952861942342E-2},{"$f":"'Population at Risk'!AX146/'Population at Risk'!AX$5","v":8.2328103042628581E-3},{"$f":"'Population at Risk'!AY146/'Population at Risk'!AY$5","v":1.2313695280655531E-2},{"$f":"'Population at Risk'!AZ146/'Population at Risk'!AZ$5","v":1.2812253306469491E-2},{"$f":"'Population at Risk'!BA146/'Population at Risk'!BA$5","v":9.4730923917596514E-3},{"$f":"'Population at Risk'!BB146/'Population at Risk'!BB$5","v":1.1840936670753048E-2},{"$f":"'Population at Risk'!BC146/'Population at Risk'!BC$5","v":2.5950070013542711E-2},144]
[null,"Female 55-59",{"$f":"'Population at Risk'!C147/'Population at Risk'!C$5","v":4.475529246553883E-3},{"$f":"'Population at Risk'!D147/'Population at Risk'!D$5","v":6.3541796609087112E-3},{"$f":"'Population at Risk'!E147/'Population at Risk'!E$5","v":7.9358346163115861E-3},{"$f":"'Population at Risk'!F147/'Population at Risk'!F$5","v":1.3267785693234207E-2},{"$f":"'Population at Risk'!G147/'Population at Risk'!G$5","v":1.9632130380069612E-2},{"$f":"'Population at Risk'!H147/'Population at Risk'!H$5","v":7.3959416178637381E-3},{"$f":"'Population at Risk'!I147/'Population at Risk'!I$5","v":1.3769755446253603E-2},{"$f":"'Population at Risk'!J147/'Population at Risk'!J$5","v":6.9570331071880818E-3},{"$f":"'Population at Risk'!K147/'Population at Risk'!K$5","v":7.5647094282319423E-3},{"$f":"'Population at Risk'!L147/'Population at Risk'!L$5","v":1.5711513812201369E-2},{"$f":"'Population at Risk'!M147/'Population at Risk'!M$5","v":1.5421756295689178E-2},{"$f":"'Population at Risk'!N147/'Population at Risk'!N$5","v":5.5486117864558772E-3},{"$f":"'Population at Risk'!O147/'Population at Risk'!O$5","v":6.3268961959885772E-3},{"$f":"'Population at Risk'!P147/'Population at Risk'!P$5","v":2.6421123055151191E-3},{"$f":"'Population at Risk'!Q147/'Population at Risk'!Q$5","v":9.2194273140350051E-3},{"$f":"'Population at Risk'!R147/'Population at Risk'!R$5","v":4.4395831177922772E-3},{"$f":"'Population at Risk'!S147/'Population at Risk'!S$5","v":7.5928492071400981E-3},{"$f":"'Population at Risk'!T147/'Population at Risk'!T$5","v":3.863092779142166E-3},{"$f":"'Population at Risk'!U147/'Population at Risk'!U$5","v":2.3787859737051567E-2},{"$f":"'Population at Risk'!V147/'Population at Risk'!V$5","v":8.2371697270984551E-3},{"$f":"'Population at Risk'!W147/'Population at Risk'!W$5","v":9.0356920776860691E-3},{"$f":"'Population at Risk'!X147/'Population at Risk'!X$5","v":9.1987720700061268E-3},{"$f":"'Population at Risk'!Y147/'Population at Risk'!Y$5","v":6.7262693810291648E-3},{"$f":"'Population at Risk'!Z147/'Population at Risk'!Z$5","v":5.0855493357178667E-3},{"$f":"'Population at Risk'!AA147/'Population at Risk'!AA$5","v":6.8415616764750968E-3},{"$f":"'Population at Risk'!AB147/'Population at Risk'!AB$5","v":7.2528991807896213E-3},{"$f":"'Population at Risk'!AC147/'Population at Risk'!AC$5","v":5.5741114655773931E-3},{"$f":"'Population at Risk'!AD147/'Population at Risk'!AD$5","v":1.6230704329152811E-2},{"$f":"'Population at Risk'!AE147/'Population at Risk'!AE$5","v":1.3039259203377028E-2},{"$f":"'Population at Risk'!AF147/'Population at Risk'!AF$5","v":8.956893559608577E-3},{"$f":"'Population at Risk'!AG147/'Population at Risk'!AG$5","v":1.4426947771796988E-2},{"$f":"'Population at Risk'!AH147/'Population at Risk'!AH$5","v":9.2611670984113683E-3},{"$f":"'Population at Risk'!AI147/'Population at Risk'!AI$5","v":6.0977917257759489E-3},{"$f":"'Population at Risk'!AJ147/'Population at Risk'!AJ$5","v":1.0313347662004667E-2},{"$f":"'Population at Risk'!AK147/'Population at Risk'!AK$5","v":1.0962492072231187E-2},{"$f":"'Population at Risk'!AL147/'Population at Risk'!AL$5","v":6.418163525298292E-3},{"$f":"'Population at Risk'!AM147/'Population at Risk'!AM$5","v":8.384891497924497E-3},{"$f":"'Population at Risk'!AN147/'Population at Risk'!AN$5","v":1.1856815115469346E-2},{"$f":"'Population at Risk'!AO147/'Population at Risk'!AO$5","v":1.1856815115469346E-2},{"$f":"'Population at Risk'!AP147/'Population at Risk'!AP$5","v":9.9369429848252949E-3},{"$f":"'Population at Risk'!AQ147/'Population at Risk'!AQ$5","v":8.6525295812941647E-3},{"$f":"'Population at Risk'!AR147/'Population at Risk'!AR$5","v":8.2986469367204441E-3},{"$f":"'Population at Risk'!AS147/'Population at Risk'!AS$5","v":1.3769755446253603E-2},{"$f":"'Population at Risk'!AT147/'Population at Risk'!AT$5","v":1.1672564438575924E-2},{"$f":"'Population at Risk'!AU147/'Population at Risk'!AU$5","v":1.1672564438575924E-2},{"$f":"'Population at Risk'!AV147/'Population at Risk'!AV$5","v":9.7420197462364487E-3},{"$f":"'Population at Risk'!AW147/'Population at Risk'!AW$5","v":1.0441251276732729E-2},{"$f":"'Population at Risk'!AX147/'Population at Risk'!AX$5","v":5.937324621034119E-3},{"$f":"'Population at Risk'!AY147/'Population at Risk'!AY$5","v":9.5698381015809249E-3},{"$f":"'Population at Risk'!AZ147/'Population at Risk'!AZ$5","v":1.0133070935176324E-2},{"$f":"'Population at Risk'!BA147/'Population at Risk'!BA$5","v":7.553404435309042E-3},{"$f":"'Population at Risk'!BB147/'Population at Risk'!BB$5","v":8.406411811640294E-3},{"$f":"'Population at Risk'!BC147/'Population at Risk'!BC$5","v":2.0555345393381948E-2},145]
[null,"Female 60-64",{"$f":"'Population at Risk'!C148/'Population at Risk'!C$5","v":4.1544371924412977E-3},{"$f":"'Population at Risk'!D148/'Population at Risk'!D$5","v":6.0649359335696587E-3},{"$f":"'Population at Risk'!E148/'Population at Risk'!E$5","v":7.6758529237256519E-3},{"$f":"'Population at Risk'!F148/'Population at Risk'!F$5","v":1.1719016935269123E-2},{"$f":"'Population at Risk'!G148/'Population at Risk'!G$5","v":1.9447295258804662E-2},{"$f":"'Population at Risk'!H148/'Population at Risk'!H$5","v":6.7983495351403482E-3},{"$f":"'Population at Risk'!I148/'Population at Risk'!I$5","v":1.2410320991368693E-2},{"$f":"'Population at Risk'!J148/'Population at Risk'!J$5","v":6.4534616684717959E-3},{"$f":"'Population at Risk'!K148/'Population at Risk'!K$5","v":6.3888478590767173E-3},{"$f":"'Population at Risk'!L148/'Population at Risk'!L$5","v":1.5407839822273868E-2},{"$f":"'Population at Risk'!M148/'Population at Risk'!M$5","v":1.512368277317701E-2},{"$f":"'Population at Risk'!N148/'Population at Risk'!N$5","v":4.5745608145388575E-3},{"$f":"'Population at Risk'!O148/'Population at Risk'!O$5","v":5.2149911714460288E-3},{"$f":"'Population at Risk'!P148/'Population at Risk'!P$5","v":2.2727847789377371E-3},{"$f":"'Population at Risk'!Q148/'Population at Risk'!Q$5","v":8.0394288420233481E-3},{"$f":"'Population at Risk'!R148/'Population at Risk'!R$5","v":3.8551316693740535E-3},{"$f":"'Population at Risk'!S148/'Population at Risk'!S$5","v":6.5066488180506666E-3},{"$f":"'Population at Risk'!T148/'Population at Risk'!T$5","v":3.1524194782016797E-3},{"$f":"'Population at Risk'!U148/'Population at Risk'!U$5","v":2.4136144652674576E-2},{"$f":"'Population at Risk'!V148/'Population at Risk'!V$5","v":7.4673407806406557E-3},{"$f":"'Population at Risk'!W148/'Population at Risk'!W$5","v":7.8075397564471866E-3},{"$f":"'Population at Risk'!X148/'Population at Risk'!X$5","v":7.9484535362188864E-3},{"$f":"'Population at Risk'!Y148/'Population at Risk'!Y$5","v":6.1623291128026347E-3},{"$f":"'Population at Risk'!Z148/'Population at Risk'!Z$5","v":3.7459897650962918E-3},{"$f":"'Population at Risk'!AA148/'Population at Risk'!AA$5","v":5.5715711856324139E-3},{"$f":"'Population at Risk'!AB148/'Population at Risk'!AB$5","v":6.8283202276714318E-3},{"$f":"'Population at Risk'!AC148/'Population at Risk'!AC$5","v":4.4154478463281598E-3},{"$f":"'Population at Risk'!AD148/'Population at Risk'!AD$5","v":1.5261975803627604E-2},{"$f":"'Population at Risk'!AE148/'Population at Risk'!AE$5","v":1.1938262151436252E-2},{"$f":"'Population at Risk'!AF148/'Population at Risk'!AF$5","v":6.2274724048416901E-3},{"$f":"'Population at Risk'!AG148/'Population at Risk'!AG$5","v":1.320877834073466E-2},{"$f":"'Population at Risk'!AH148/'Population at Risk'!AH$5","v":7.7854103365312954E-3},{"$f":"'Population at Risk'!AI148/'Population at Risk'!AI$5","v":5.1098884374256755E-3},{"$f":"'Population at Risk'!AJ148/'Population at Risk'!AJ$5","v":8.7609458542421848E-3},{"$f":"'Population at Risk'!AK148/'Population at Risk'!AK$5","v":9.9075242159076832E-3},{"$f":"'Population at Risk'!AL148/'Population at Risk'!AL$5","v":6.4013620501011757E-3},{"$f":"'Population at Risk'!AM148/'Population at Risk'!AM$5","v":7.0982173828045532E-3},{"$f":"'Population at Risk'!AN148/'Population at Risk'!AN$5","v":1.0739164510322644E-2},{"$f":"'Population at Risk'!AO148/'Population at Risk'!AO$5","v":1.0739164510322644E-2},{"$f":"'Population at Risk'!AP148/'Population at Risk'!AP$5","v":8.9446972203055686E-3},{"$f":"'Population at Risk'!AQ148/'Population at Risk'!AQ$5","v":7.5082103960547493E-3},{"$f":"'Population at Risk'!AR148/'Population at Risk'!AR$5","v":7.3304396676238497E-3},{"$f":"'Population at Risk'!AS148/'Population at Risk'!AS$5","v":1.2410320991368693E-2},{"$f":"'Population at Risk'!AT148/'Population at Risk'!AT$5","v":1.1628012665909602E-2},{"$f":"'Population at Risk'!AU148/'Population at Risk'!AU$5","v":1.1628012665909602E-2},{"$f":"'Population at Risk'!AV148/'Population at Risk'!AV$5","v":9.1331435120966722E-3},{"$f":"'Population at Risk'!AW148/'Population at Risk'!AW$5","v":8.7251644332301207E-3},{"$f":"'Population at Risk'!AX148/'Population at Risk'!AX$5","v":5.879342935281833E-3},{"$f":"'Population at Risk'!AY148/'Population at Risk'!AY$5","v":8.3478141201128002E-3},{"$f":"'Population at Risk'!AZ148/'Population at Risk'!AZ$5","v":8.9092287529717526E-3},{"$f":"'Population at Risk'!BA148/'Population at Risk'!BA$5","v":6.8063644362125432E-3},{"$f":"'Population at Risk'!BB148/'Population at Risk'!BB$5","v":7.0613859217778466E-3},{"$f":"'Population at Risk'!BC148/'Population at Risk'!BC$5","v":2.0856302134134242E-2},146]
[null,"Female 65-69",{"$f":"'Population at Risk'!C149/'Population at Risk'!C$5","v":3.2879990565491363E-3},{"$f":"'Population at Risk'!D149/'Population at Risk'!D$5","v":5.0110572471846783E-3},{"$f":"'Population at Risk'!E149/'Population at Risk'!E$5","v":6.4667561791489185E-3},{"$f":"'Population at Risk'!F149/'Population at Risk'!F$5","v":1.0408194164859642E-2},{"$f":"'Population at Risk'!G149/'Population at Risk'!G$5","v":1.7221105755097277E-2},{"$f":"'Population at Risk'!H149/'Population at Risk'!H$5","v":6.1404342574623537E-3},{"$f":"'Population at Risk'!I149/'Population at Risk'!I$5","v":1.113869180326583E-2},{"$f":"'Population at Risk'!J149/'Population at Risk'!J$5","v":5.3449364835571464E-3},{"$f":"'Population at Risk'!K149/'Population at Risk'!K$5","v":5.8978588510443138E-3},{"$f":"'Population at Risk'!L149/'Population at Risk'!L$5","v":1.3922405554143912E-2},{"$f":"'Population at Risk'!M149/'Population at Risk'!M$5","v":1.3665643430171404E-2},{"$f":"'Population at Risk'!N149/'Population at Risk'!N$5","v":3.9952062081314056E-3},{"$f":"'Population at Risk'!O149/'Population at Risk'!O$5","v":5.054346988262644E-3},{"$f":"'Population at Risk'!P149/'Population at Risk'!P$5","v":1.6750373902218623E-3},{"$f":"'Population at Risk'!Q149/'Population at Risk'!Q$5","v":6.8318305446126897E-3},{"$f":"'Population at Risk'!R149/'Population at Risk'!R$5","v":3.080972545209444E-3},{"$f":"'Population at Risk'!S149/'Population at Risk'!S$5","v":5.7137502134123859E-3},{"$f":"'Population at Risk'!T149/'Population at Risk'!T$5","v":2.5288307818153656E-3},{"$f":"'Population at Risk'!U149/'Population at Risk'!U$5","v":2.0641870978962102E-2},{"$f":"'Population at Risk'!V149/'Population at Risk'!V$5","v":6.5566639461702835E-3},{"$f":"'Population at Risk'!W149/'Population at Risk'!W$5","v":7.1586653052384975E-3},{"$f":"'Population at Risk'!X149/'Population at Risk'!X$5","v":7.2878679244693118E-3},{"$f":"'Population at Risk'!Y149/'Population at Risk'!Y$5","v":5.2689717683318833E-3},{"$f":"'Population at Risk'!Z149/'Population at Risk'!Z$5","v":2.6663596120721496E-3},{"$f":"'Population at Risk'!AA149/'Population at Risk'!AA$5","v":4.3705239703257679E-3},{"$f":"'Population at Risk'!AB149/'Population at Risk'!AB$5","v":5.7077950729760149E-3},{"$f":"'Population at Risk'!AC149/'Population at Risk'!AC$5","v":3.4363783611641892E-3},{"$f":"'Population at Risk'!AD149/'Population at Risk'!AD$5","v":1.3107944909443288E-2},{"$f":"'Population at Risk'!AE149/'Population at Risk'!AE$5","v":1.0083749949193985E-2},{"$f":"'Population at Risk'!AF149/'Population at Risk'!AF$5","v":5.1941367643506915E-3},{"$f":"'Population at Risk'!AG149/'Population at Risk'!AG$5","v":1.1156901752762531E-2},{"$f":"'Population at Risk'!AH149/'Population at Risk'!AH$5","v":6.1606287549965718E-3},{"$f":"'Population at Risk'!AI149/'Population at Risk'!AI$5","v":4.3251426419579769E-3},{"$f":"'Population at Risk'!AJ149/'Population at Risk'!AJ$5","v":8.1476764755919959E-3},{"$f":"'Population at Risk'!AK149/'Population at Risk'!AK$5","v":8.5745479716575722E-3},{"$f":"'Population at Risk'!AL149/'Population at Risk'!AL$5","v":5.5211362176957922E-3},{"$f":"'Population at Risk'!AM149/'Population at Risk'!AM$5","v":5.8815268615317945E-3},{"$f":"'Population at Risk'!AN149/'Population at Risk'!AN$5","v":9.2469616991896798E-3},{"$f":"'Population at Risk'!AO149/'Population at Risk'!AO$5","v":9.2469616991896798E-3},{"$f":"'Population at Risk'!AP149/'Population at Risk'!AP$5","v":7.8504073328727712E-3},{"$f":"'Population at Risk'!AQ149/'Population at Risk'!AQ$5","v":6.4487891883205969E-3},{"$f":"'Population at Risk'!AR149/'Population at Risk'!AR$5","v":6.2296195189755861E-3},{"$f":"'Population at Risk'!AS149/'Population at Risk'!AS$5","v":1.113869180326583E-2},{"$f":"'Population at Risk'!AT149/'Population at Risk'!AT$5","v":8.7392834652232562E-3},{"$f":"'Population at Risk'!AU149/'Population at Risk'!AU$5","v":8.7392834652232562E-3},{"$f":"'Population at Risk'!AV149/'Population at Risk'!AV$5","v":8.113849172029312E-3},{"$f":"'Population at Risk'!AW149/'Population at Risk'!AW$5","v":6.6244043263662634E-3},{"$f":"'Population at Risk'!AX149/'Population at Risk'!AX$5","v":4.5105945835545742E-3},{"$f":"'Population at Risk'!AY149/'Population at Risk'!AY$5","v":7.4923171584211287E-3},{"$f":"'Population at Risk'!AZ149/'Population at Risk'!AZ$5","v":7.8535543616842767E-3},{"$f":"'Population at Risk'!BA149/'Population at Risk'!BA$5","v":5.6245374766493257E-3},{"$f":"'Population at Risk'!BB149/'Population at Risk'!BB$5","v":6.0322510267292705E-3},{"$f":"'Population at Risk'!BC149/'Population at Risk'!BC$5","v":1.7836862678205112E-2},147]
[null,"Female 70-74",{"$f":"'Population at Risk'!C150/'Population at Risk'!C$5","v":2.4804929910238445E-3},{"$f":"'Population at Risk'!D150/'Population at Risk'!D$5","v":3.7275030291078039E-3},{"$f":"'Population at Risk'!E150/'Population at Risk'!E$5","v":4.7803976617133998E-3},{"$f":"'Population at Risk'!F150/'Population at Risk'!F$5","v":7.8259810595098494E-3},{"$f":"'Population at Risk'!G150/'Population at Risk'!G$5","v":1.2838356475522391E-2},{"$f":"'Population at Risk'!H150/'Population at Risk'!H$5","v":4.9525231066851055E-3},{"$f":"'Population at Risk'!I150/'Population at Risk'!I$5","v":8.4036466872163991E-3},{"$f":"'Population at Risk'!J150/'Population at Risk'!J$5","v":4.2668569498141495E-3},{"$f":"'Population at Risk'!K150/'Population at Risk'!K$5","v":4.5835727561040762E-3},{"$f":"'Population at Risk'!L150/'Population at Risk'!L$5","v":1.1328243787851534E-2},{"$f":"'Population at Risk'!M150/'Population at Risk'!M$5","v":1.1119324149321007E-2},{"$f":"'Population at Risk'!N150/'Population at Risk'!N$5","v":3.0255667452090025E-3},{"$f":"'Population at Risk'!O150/'Population at Risk'!O$5","v":3.9909648946281654E-3},{"$f":"'Population at Risk'!P150/'Population at Risk'!P$5","v":1.2860476645305294E-3},{"$f":"'Population at Risk'!Q150/'Population at Risk'!Q$5","v":5.4451261038929288E-3},{"$f":"'Population at Risk'!R150/'Population at Risk'!R$5","v":2.4591248755341435E-3},{"$f":"'Population at Risk'!S150/'Population at Risk'!S$5","v":4.3696986803621876E-3},{"$f":"'Population at Risk'!T150/'Population at Risk'!T$5","v":1.8957339053552601E-3},{"$f":"'Population at Risk'!U150/'Population at Risk'!U$5","v":1.6787943158278938E-2},{"$f":"'Population at Risk'!V150/'Population at Risk'!V$5","v":4.7045354495650945E-3},{"$f":"'Population at Risk'!W150/'Population at Risk'!W$5","v":5.4495117750469474E-3},{"$f":"'Population at Risk'!X150/'Population at Risk'!X$5","v":5.5478668684677832E-3},{"$f":"'Population at Risk'!Y150/'Population at Risk'!Y$5","v":3.971068445300702E-3},{"$f":"'Population at Risk'!Z150/'Population at Risk'!Z$5","v":2.0723520889822339E-3},{"$f":"'Population at Risk'!AA150/'Population at Risk'!AA$5","v":3.4680442686083643E-3},{"$f":"'Population at Risk'!AB150/'Population at Risk'!AB$5","v":4.395132819351096E-3},{"$f":"'Population at Risk'!AC150/'Population at Risk'!AC$5","v":2.6598483076433511E-3},{"$f":"'Population at Risk'!AD150/'Population at Risk'!AD$5","v":1.0246053667123564E-2},{"$f":"'Population at Risk'!AE150/'Population at Risk'!AE$5","v":8.0858210288942446E-3},{"$f":"'Population at Risk'!AF150/'Population at Risk'!AF$5","v":4.3262556847376643E-3},{"$f":"'Population at Risk'!AG150/'Population at Risk'!AG$5","v":8.9463454830120241E-3},{"$f":"'Population at Risk'!AH150/'Population at Risk'!AH$5","v":5.019956332344035E-3},{"$f":"'Population at Risk'!AI150/'Population at Risk'!AI$5","v":3.3349855413224517E-3},{"$f":"'Population at Risk'!AJ150/'Population at Risk'!AJ$5","v":6.167338443330052E-3},{"$f":"'Population at Risk'!AK150/'Population at Risk'!AK$5","v":7.2576050656967114E-3},{"$f":"'Population at Risk'!AL150/'Population at Risk'!AL$5","v":4.5985994262185623E-3},{"$f":"'Population at Risk'!AM150/'Population at Risk'!AM$5","v":4.6094909516798789E-3},{"$f":"'Population at Risk'!AN150/'Population at Risk'!AN$5","v":9.328432727376372E-3},{"$f":"'Population at Risk'!AO150/'Population at Risk'!AO$5","v":9.328432727376372E-3},{"$f":"'Population at Risk'!AP150/'Population at Risk'!AP$5","v":6.793972007335369E-3},{"$f":"'Population at Risk'!AQ150/'Population at Risk'!AQ$5","v":4.9201414632580372E-3},{"$f":"'Population at Risk'!AR150/'Population at Risk'!AR$5","v":4.896490536605607E-3},{"$f":"'Population at Risk'!AS150/'Population at Risk'!AS$5","v":8.4036466872163991E-3},{"$f":"'Population at Risk'!AT150/'Population at Risk'!AT$5","v":8.0670308909753137E-3},{"$f":"'Population at Risk'!AU150/'Population at Risk'!AU$5","v":8.0670308909753137E-3},{"$f":"'Population at Risk'!AV150/'Population at Risk'!AV$5","v":6.4769989052207962E-3},{"$f":"'Population at Risk'!AW150/'Population at Risk'!AW$5","v":5.5913993607685933E-3},{"$f":"'Population at Risk'!AX150/'Population at Risk'!AX$5","v":3.6745792081543725E-3},{"$f":"'Population at Risk'!AY150/'Population at Risk'!AY$5","v":5.8495772410925078E-3},{"$f":"'Population at Risk'!AZ150/'Population at Risk'!AZ$5","v":6.2632335180423625E-3},{"$f":"'Population at Risk'!BA150/'Population at Risk'!BA$5","v":4.0821385397537373E-3},{"$f":"'Population at Risk'!BB150/'Population at Risk'!BB$5","v":4.7612244722442581E-3},{"$f":"'Population at Risk'!BC150/'Population at Risk'!BC$5","v":1.4506642206461017E-2},148]
[null,"Female 75-79",{"$f":"'Population at Risk'!C151/'Population at Risk'!C$5","v":5.2257584824874452E-4},{"$f":"'Population at Risk'!D151/'Population at Risk'!D$5","v":7.0174314734379115E-4},{"$f":"'Population at Risk'!E151/'Population at Risk'!E$5","v":8.5199534778270197E-4},{"$f":"'Population at Risk'!F151/'Population at Risk'!F$5","v":1.3464039560263982E-3},{"$f":"'Population at Risk'!G151/'Population at Risk'!G$5","v":2.4094218078674532E-3},{"$f":"'Population at Risk'!H151/'Population at Risk'!H$5","v":8.3700806112774488E-4},{"$f":"'Population at Risk'!I151/'Population at Risk'!I$5","v":1.5452338242200917E-3},{"$f":"'Population at Risk'!J151/'Population at Risk'!J$5","v":7.958478002009988E-4},{"$f":"'Population at Risk'!K151/'Population at Risk'!K$5","v":8.1352832958964322E-4},{"$f":"'Population at Risk'!L151/'Population at Risk'!L$5","v":1.966825827782976E-3},{"$f":"'Population at Risk'!M151/'Population at Risk'!M$5","v":1.9305529024568468E-3},{"$f":"'Population at Risk'!N151/'Population at Risk'!N$5","v":6.6547486031333359E-4},{"$f":"'Population at Risk'!O151/'Population at Risk'!O$5","v":6.4859746329233971E-4},{"$f":"'Population at Risk'!P151/'Population at Risk'!P$5","v":2.1557680592894322E-4},{"$f":"'Population at Risk'!Q151/'Population at Risk'!Q$5","v":1.056923110423459E-3},{"$f":"'Population at Risk'!R151/'Population at Risk'!R$5","v":5.5256862258751401E-4},{"$f":"'Population at Risk'!S151/'Population at Risk'!S$5","v":7.9589488090974739E-4},{"$f":"'Population at Risk'!T151/'Population at Risk'!T$5","v":3.6199122943262425E-4},{"$f":"'Population at Risk'!U151/'Population at Risk'!U$5","v":3.3912550132072687E-3},{"$f":"'Population at Risk'!V151/'Population at Risk'!V$5","v":8.8948612247371172E-4},{"$f":"'Population at Risk'!W151/'Population at Risk'!W$5","v":9.7738090600902683E-4},{"$f":"'Population at Risk'!X151/'Population at Risk'!X$5","v":9.9502108998999117E-4},{"$f":"'Population at Risk'!Y151/'Population at Risk'!Y$5","v":7.4600683718244968E-4},{"$f":"'Population at Risk'!Z151/'Population at Risk'!Z$5","v":3.9523220193896812E-4},{"$f":"'Population at Risk'!AA151/'Population at Risk'!AA$5","v":6.5958809091133067E-4},{"$f":"'Population at Risk'!AB151/'Population at Risk'!AB$5","v":8.2226594238632173E-4},{"$f":"'Population at Risk'!AC151/'Population at Risk'!AC$5","v":5.0957965891021331E-4},{"$f":"'Population at Risk'!AD151/'Population at Risk'!AD$5","v":1.7835687720288403E-3},{"$f":"'Population at Risk'!AE151/'Population at Risk'!AE$5","v":1.3504289316376133E-3},{"$f":"'Population at Risk'!AF151/'Population at Risk'!AF$5","v":8.8822095960213593E-4},{"$f":"'Population at Risk'!AG151/'Population at Risk'!AG$5","v":1.4941468194154526E-3},{"$f":"'Population at Risk'!AH151/'Population at Risk'!AH$5","v":9.4747637478997395E-4},{"$f":"'Population at Risk'!AI151/'Population at Risk'!AI$5","v":6.1170129889965956E-4},{"$f":"'Population at Risk'!AJ151/'Population at Risk'!AJ$5","v":1.1104084450634609E-3},{"$f":"'Population at Risk'!AK151/'Population at Risk'!AK$5","v":1.3359084402505849E-3},{"$f":"'Population at Risk'!AL151/'Population at Risk'!AL$5","v":8.3083725780165282E-4},{"$f":"'Population at Risk'!AM151/'Population at Risk'!AM$5","v":8.1322404518601702E-4},{"$f":"'Population at Risk'!AN151/'Population at Risk'!AN$5","v":1.7197208275965409E-3},{"$f":"'Population at Risk'!AO151/'Population at Risk'!AO$5","v":1.7197208275965409E-3},{"$f":"'Population at Risk'!AP151/'Population at Risk'!AP$5","v":1.1790609277371764E-3},{"$f":"'Population at Risk'!AQ151/'Population at Risk'!AQ$5","v":9.0245247486707555E-4},{"$f":"'Population at Risk'!AR151/'Population at Risk'!AR$5","v":8.9315187142775809E-4},{"$f":"'Population at Risk'!AS151/'Population at Risk'!AS$5","v":1.5452338242200917E-3},{"$f":"'Population at Risk'!AT151/'Population at Risk'!AT$5","v":1.431799714915266E-3},{"$f":"'Population at Risk'!AU151/'Population at Risk'!AU$5","v":1.431799714915266E-3},{"$f":"'Population at Risk'!AV151/'Population at Risk'!AV$5","v":1.0623428576617101E-3},{"$f":"'Population at Risk'!AW151/'Population at Risk'!AW$5","v":1.1153682526985457E-3},{"$f":"'Population at Risk'!AX151/'Population at Risk'!AX$5","v":7.0986998389031429E-4},{"$f":"'Population at Risk'!AY151/'Population at Risk'!AY$5","v":1.0521024455578567E-3},{"$f":"'Population at Risk'!AZ151/'Population at Risk'!AZ$5","v":1.1291109456810775E-3},{"$f":"'Population at Risk'!BA151/'Population at Risk'!BA$5","v":7.6216777942269089E-4},{"$f":"'Population at Risk'!BB151/'Population at Risk'!BB$5","v":8.0932332793703097E-4},{"$f":"'Population at Risk'!BC151/'Population at Risk'!BC$5","v":2.9304199236107318E-3},149]
[null,"Female 80-84",{"$f":"'Population at Risk'!C152/'Population at Risk'!C$5","v":4.7343670881124948E-4},{"$f":"'Population at Risk'!D152/'Population at Risk'!D$5","v":5.1774416190133272E-4},{"$f":"'Population at Risk'!E152/'Population at Risk'!E$5","v":5.5277784286762862E-4},{"$f":"'Population at Risk'!F152/'Population at Risk'!F$5","v":1.0270856583868857E-3},{"$f":"'Population at Risk'!G152/'Population at Risk'!G$5","v":1.7073051804176083E-3},{"$f":"'Population at Risk'!H152/'Population at Risk'!H$5","v":6.1176856935706036E-4},{"$f":"'Population at Risk'!I152/'Population at Risk'!I$5","v":1.1408892513242806E-3},{"$f":"'Population at Risk'!J152/'Population at Risk'!J$5","v":5.7206191969755218E-4},{"$f":"'Population at Risk'!K152/'Population at Risk'!K$5","v":5.5484881465100088E-4},{"$f":"'Population at Risk'!L152/'Population at Risk'!L$5","v":1.4536806926862926E-3},{"$f":"'Population at Risk'!M152/'Population at Risk'!M$5","v":1.4268713786794276E-3},{"$f":"'Population at Risk'!N152/'Population at Risk'!N$5","v":6.6048379886098367E-4},{"$f":"'Population at Risk'!O152/'Population at Risk'!O$5","v":4.763371670368684E-4},{"$f":"'Population at Risk'!P152/'Population at Risk'!P$5","v":1.4130244422233255E-4},{"$f":"'Population at Risk'!Q152/'Population at Risk'!Q$5","v":8.2275451709610571E-4},{"$f":"'Population at Risk'!R152/'Population at Risk'!R$5","v":5.3751811535750389E-4},{"$f":"'Population at Risk'!S152/'Population at Risk'!S$5","v":5.8608922547383159E-4},{"$f":"'Population at Risk'!T152/'Population at Risk'!T$5","v":2.8691457310410918E-4},{"$f":"'Population at Risk'!U152/'Population at Risk'!U$5","v":2.5384443222632013E-3},{"$f":"'Population at Risk'!V152/'Population at Risk'!V$5","v":6.1704418098755835E-4},{"$f":"'Population at Risk'!W152/'Population at Risk'!W$5","v":7.0771867853702765E-4},{"$f":"'Population at Risk'!X152/'Population at Risk'!X$5","v":7.204918845812666E-4},{"$f":"'Population at Risk'!Y152/'Population at Risk'!Y$5","v":5.2632384218393683E-4},{"$f":"'Population at Risk'!Z152/'Population at Risk'!Z$5","v":3.5677511870598573E-4},{"$f":"'Population at Risk'!AA152/'Population at Risk'!AA$5","v":5.28929522844166E-4},{"$f":"'Population at Risk'!AB152/'Population at Risk'!AB$5","v":6.2852861114894639E-4},{"$f":"'Population at Risk'!AC152/'Population at Risk'!AC$5","v":4.2088149302481781E-4},{"$f":"'Population at Risk'!AD152/'Population at Risk'!AD$5","v":1.2944479423106182E-3},{"$f":"'Population at Risk'!AE152/'Population at Risk'!AE$5","v":9.9361835153519824E-4},{"$f":"'Population at Risk'!AF152/'Population at Risk'!AF$5","v":6.4816124079074776E-4},{"$f":"'Population at Risk'!AG152/'Population at Risk'!AG$5","v":1.0993630726341219E-3},{"$f":"'Population at Risk'!AH152/'Population at Risk'!AH$5","v":7.3574557097227065E-4},{"$f":"'Population at Risk'!AI152/'Population at Risk'!AI$5","v":4.5506685099056183E-4},{"$f":"'Population at Risk'!AJ152/'Population at Risk'!AJ$5","v":7.6695653066011129E-4},{"$f":"'Population at Risk'!AK152/'Population at Risk'!AK$5","v":1.114353838501309E-3},{"$f":"'Population at Risk'!AL152/'Population at Risk'!AL$5","v":5.7692567804795627E-4},{"$f":"'Population at Risk'!AM152/'Population at Risk'!AM$5","v":6.239455875668244E-4},{"$f":"'Population at Risk'!AN152/'Population at Risk'!AN$5","v":9.8535355527153167E-4},{"$f":"'Population at Risk'!AO152/'Population at Risk'!AO$5","v":9.8535355527153167E-4},{"$f":"'Population at Risk'!AP152/'Population at Risk'!AP$5","v":9.2967083726397805E-4},{"$f":"'Population at Risk'!AQ152/'Population at Risk'!AQ$5","v":6.4117906665047309E-4},{"$f":"'Population at Risk'!AR152/'Population at Risk'!AR$5","v":6.7700003619163224E-4},{"$f":"'Population at Risk'!AS152/'Population at Risk'!AS$5","v":1.1408892513242806E-3},{"$f":"'Population at Risk'!AT152/'Population at Risk'!AT$5","v":1.0568045514850774E-3},{"$f":"'Population at Risk'!AU152/'Population at Risk'!AU$5","v":1.0568045514850774E-3},{"$f":"'Population at Risk'!AV152/'Population at Risk'!AV$5","v":8.1131666256206204E-4},{"$f":"'Population at Risk'!AW152/'Population at Risk'!AW$5","v":8.7410065193751281E-4},{"$f":"'Population at Risk'!AX152/'Population at Risk'!AX$5","v":5.2796580051842133E-4},{"$f":"'Population at Risk'!AY152/'Population at Risk'!AY$5","v":8.160933019694393E-4},{"$f":"'Population at Risk'!AZ152/'Population at Risk'!AZ$5","v":9.2337154185228774E-4},{"$f":"'Population at Risk'!BA152/'Population at Risk'!BA$5","v":6.4307906388789548E-4},{"$f":"'Population at Risk'!BB152/'Population at Risk'!BB$5","v":5.5787171593347357E-4},{"$f":"'Population at Risk'!BC152/'Population at Risk'!BC$5","v":2.1934970351585245E-3},150]
[null,"Female 85-89",{"$f":"'Population at Risk'!C153/'Population at Risk'!C$5","v":3.1278952218866986E-4},{"$f":"'Population at Risk'!D153/'Population at Risk'!D$5","v":3.6009347986352237E-4},{"$f":"'Population at Risk'!E153/'Population at Risk'!E$5","v":3.9868490436913037E-4},{"$f":"'Population at Risk'!F153/'Population at Risk'!F$5","v":6.7155600740680978E-4},{"$f":"'Population at Risk'!G153/'Population at Risk'!G$5","v":1.0279189473816073E-3},{"$f":"'Population at Risk'!H153/'Population at Risk'!H$5","v":3.4521630648270751E-4},{"$f":"'Population at Risk'!I153/'Population at Risk'!I$5","v":6.660779893760873E-4},{"$f":"'Population at Risk'!J153/'Population at Risk'!J$5","v":3.6013224478369216E-4},{"$f":"'Population at Risk'!K153/'Population at Risk'!K$5","v":4.0488967555613579E-4},{"$f":"'Population at Risk'!L153/'Population at Risk'!L$5","v":9.9171175704669047E-4},{"$f":"'Population at Risk'!M153/'Population at Risk'!M$5","v":9.734222440657941E-4},{"$f":"'Population at Risk'!N153/'Population at Risk'!N$5","v":3.6933854747390012E-4},{"$f":"'Population at Risk'!O153/'Population at Risk'!O$5","v":2.1569984922424227E-4},{"$f":"'Population at Risk'!P153/'Population at Risk'!P$5","v":9.0578489886110599E-5},{"$f":"'Population at Risk'!Q153/'Population at Risk'!Q$5","v":6.3710734400775364E-4},{"$f":"'Population at Risk'!R153/'Population at Risk'!R$5","v":3.3111115906022233E-4},{"$f":"'Population at Risk'!S153/'Population at Risk'!S$5","v":3.7364352848172724E-4},{"$f":"'Population at Risk'!T153/'Population at Risk'!T$5","v":1.9925750409351852E-4},{"$f":"'Population at Risk'!U153/'Population at Risk'!U$5","v":1.6323329631351296E-3},{"$f":"'Population at Risk'!V153/'Population at Risk'!V$5","v":3.2398501149704734E-4},{"$f":"'Population at Risk'!W153/'Population at Risk'!W$5","v":4.7161956092205853E-4},{"$f":"'Population at Risk'!X153/'Population at Risk'!X$5","v":4.8013155023199697E-4},{"$f":"'Population at Risk'!Y153/'Population at Risk'!Y$5","v":3.0271793656045065E-4},{"$f":"'Population at Risk'!Z153/'Population at Risk'!Z$5","v":2.1513120818450579E-4},{"$f":"'Population at Risk'!AA153/'Population at Risk'!AA$5","v":3.1758896780927336E-4},{"$f":"'Population at Risk'!AB153/'Population at Risk'!AB$5","v":4.053581084351237E-4},{"$f":"'Population at Risk'!AC153/'Population at Risk'!AC$5","v":2.5836480999732846E-4},{"$f":"'Population at Risk'!AD153/'Population at Risk'!AD$5","v":8.3977224144579242E-4},{"$f":"'Population at Risk'!AE153/'Population at Risk'!AE$5","v":6.7067173852583615E-4},{"$f":"'Population at Risk'!AF153/'Population at Risk'!AF$5","v":5.2513063489991146E-4},{"$f":"'Population at Risk'!AG153/'Population at Risk'!AG$5","v":7.4204722774638991E-4},{"$f":"'Population at Risk'!AH153/'Population at Risk'!AH$5","v":4.3067107944998818E-4},{"$f":"'Population at Risk'!AI153/'Population at Risk'!AI$5","v":2.9040610373208488E-4},{"$f":"'Population at Risk'!AJ153/'Population at Risk'!AJ$5","v":4.0026350926706145E-4},{"$f":"'Population at Risk'!AK153/'Population at Risk'!AK$5","v":5.8788745810698978E-4},{"$f":"'Population at Risk'!AL153/'Population at Risk'!AL$5","v":3.6479701648157683E-4},{"$f":"'Population at Risk'!AM153/'Population at Risk'!AM$5","v":3.2992806249037122E-4},{"$f":"'Population at Risk'!AN153/'Population at Risk'!AN$5","v":7.2507148406773065E-4},{"$f":"'Population at Risk'!AO153/'Population at Risk'!AO$5","v":7.2507148406773065E-4},{"$f":"'Population at Risk'!AP153/'Population at Risk'!AP$5","v":6.3455923020402677E-4},{"$f":"'Population at Risk'!AQ153/'Population at Risk'!AQ$5","v":3.657827715032435E-4},{"$f":"'Population at Risk'!AR153/'Population at Risk'!AR$5","v":4.2407279023347203E-4},{"$f":"'Population at Risk'!AS153/'Population at Risk'!AS$5","v":6.660779893760873E-4},{"$f":"'Population at Risk'!AT153/'Population at Risk'!AT$5","v":6.2215106660008595E-4},{"$f":"'Population at Risk'!AU153/'Population at Risk'!AU$5","v":6.2215106660008595E-4},{"$f":"'Population at Risk'!AV153/'Population at Risk'!AV$5","v":4.7996208503052685E-4},{"$f":"'Population at Risk'!AW153/'Population at Risk'!AW$5","v":5.4898267189559629E-4},{"$f":"'Population at Risk'!AX153/'Population at Risk'!AX$5","v":2.9947639945372635E-4},{"$f":"'Population at Risk'!AY153/'Population at Risk'!AY$5","v":5.3277034430457726E-4},{"$f":"'Population at Risk'!AZ153/'Population at Risk'!AZ$5","v":5.93751913436932E-4},{"$f":"'Population at Risk'!BA153/'Population at Risk'!BA$5","v":3.5461973070361315E-4},{"$f":"'Population at Risk'!BB153/'Population at Risk'!BB$5","v":2.8770742582732598E-4},{"$f":"'Population at Risk'!BC153/'Population at Risk'!BC$5","v":1.4105164661780537E-3},151]
[null,"Female 90+",{"$f":"'Population at Risk'!C154/'Population at Risk'!C$5","v":1.7954685563700083E-4},{"$f":"'Population at Risk'!D154/'Population at Risk'!D$5","v":2.0156452104555704E-4},{"$f":"'Population at Risk'!E154/'Population at Risk'!E$5","v":2.1931746273066681E-4},{"$f":"'Population at Risk'!F154/'Population at Risk'!F$5","v":4.5099594615065168E-4},{"$f":"'Population at Risk'!G154/'Population at Risk'!G$5","v":6.8443743179463291E-4},{"$f":"'Population at Risk'!H154/'Population at Risk'!H$5","v":2.0543199877577512E-4},{"$f":"'Population at Risk'!I154/'Population at Risk'!I$5","v":3.8924456809887216E-4},{"$f":"'Population at Risk'!J154/'Population at Risk'!J$5","v":2.1044764921516169E-4},{"$f":"'Population at Risk'!K154/'Population at Risk'!K$5","v":1.6870403148172322E-4},{"$f":"'Population at Risk'!L154/'Population at Risk'!L$5","v":5.7123703718310061E-4},{"$f":"'Population at Risk'!M154/'Population at Risk'!M$5","v":5.6070207363901389E-4},{"$f":"'Population at Risk'!N154/'Population at Risk'!N$5","v":2.196067039034001E-4},{"$f":"'Population at Risk'!O154/'Population at Risk'!O$5","v":1.4529781510244099E-4},{"$f":"'Population at Risk'!P154/'Population at Risk'!P$5","v":8.5143780492943964E-5},{"$f":"'Population at Risk'!Q154/'Population at Risk'!Q$5","v":3.6285583830905177E-4},{"$f":"'Population at Risk'!R154/'Population at Risk'!R$5","v":1.7630594183726126E-4},{"$f":"'Population at Risk'!S154/'Population at Risk'!S$5","v":2.1834696635299604E-4},{"$f":"'Population at Risk'!T154/'Population at Risk'!T$5","v":1.1768773154199667E-4},{"$f":"'Population at Risk'!U154/'Population at Risk'!U$5","v":1.1459643659560909E-3},{"$f":"'Population at Risk'!V154/'Population at Risk'!V$5","v":1.5315655088951328E-4},{"$f":"'Population at Risk'!W154/'Population at Risk'!W$5","v":2.6098211285380176E-4},{"$f":"'Population at Risk'!X154/'Population at Risk'!X$5","v":2.6569242841058971E-4},{"$f":"'Population at Risk'!Y154/'Population at Risk'!Y$5","v":1.6083933562391117E-4},{"$f":"'Population at Risk'!Z154/'Population at Risk'!Z$5","v":1.4583230572507206E-4},{"$f":"'Population at Risk'!AA154/'Population at Risk'!AA$5","v":2.0080564590853328E-4},{"$f":"'Population at Risk'!AB154/'Population at Risk'!AB$5","v":2.343476564390559E-4},{"$f":"'Population at Risk'!AC154/'Population at Risk'!AC$5","v":1.8957058983349234E-4},{"$f":"'Population at Risk'!AD154/'Population at Risk'!AD$5","v":4.5880911632723356E-4},{"$f":"'Population at Risk'!AE154/'Population at Risk'!AE$5","v":3.2625041467697694E-4},{"$f":"'Population at Risk'!AF154/'Population at Risk'!AF$5","v":4.5911421222677966E-4},{"$f":"'Population at Risk'!AG154/'Population at Risk'!AG$5","v":3.6097124995052216E-4},{"$f":"'Population at Risk'!AH154/'Population at Risk'!AH$5","v":2.2083750505717454E-4},{"$f":"'Population at Risk'!AI154/'Population at Risk'!AI$5","v":1.7584892210912675E-4},{"$f":"'Population at Risk'!AJ154/'Population at Risk'!AJ$5","v":2.814756290974819E-4},{"$f":"'Population at Risk'!AK154/'Population at Risk'!AK$5","v":3.7291368611264272E-4},{"$f":"'Population at Risk'!AL154/'Population at Risk'!AL$5","v":2.394482619196253E-4},{"$f":"'Population at Risk'!AM154/'Population at Risk'!AM$5","v":1.4887910302853485E-4},{"$f":"'Population at Risk'!AN154/'Population at Risk'!AN$5","v":6.2281781323766613E-4},{"$f":"'Population at Risk'!AO154/'Population at Risk'!AO$5","v":6.2281781323766613E-4},{"$f":"'Population at Risk'!AP154/'Population at Risk'!AP$5","v":3.9902414475711726E-4},{"$f":"'Population at Risk'!AQ154/'Population at Risk'!AQ$5","v":3.4318615241424002E-4},{"$f":"'Population at Risk'!AR154/'Population at Risk'!AR$5","v":2.545490942810725E-4},{"$f":"'Population at Risk'!AS154/'Population at Risk'!AS$5","v":3.8924456809887216E-4},{"$f":"'Population at Risk'!AT154/'Population at Risk'!AT$5","v":5.0283442369048034E-4},{"$f":"'Population at Risk'!AU154/'Population at Risk'!AU$5","v":5.0283442369048034E-4},{"$f":"'Population at Risk'!AV154/'Population at Risk'!AV$5","v":2.3496051861327042E-4},{"$f":"'Population at Risk'!AW154/'Population at Risk'!AW$5","v":3.0296882325073974E-4},{"$f":"'Population at Risk'!AX154/'Population at Risk'!AX$5","v":2.1517933886675152E-4},{"$f":"'Population at Risk'!AY154/'Population at Risk'!AY$5","v":3.2055808945283292E-4},{"$f":"'Population at Risk'!AZ154/'Population at Risk'!AZ$5","v":3.7873513596069013E-4},{"$f":"'Population at Risk'!BA154/'Population at Risk'!BA$5","v":1.9318836075644596E-4},{"$f":"'Population at Risk'!BB154/'Population at Risk'!BB$5","v":1.7777044197460795E-4},{"$f":"'Population at Risk'!BC154/'Population at Risk'!BC$5","v":9.9024013135765401E-4},152]
[null,"Male 0-4",{"$f":"'Population at Risk'!C155/'Population at Risk'!C$5","v":0},{"$f":"'Population at Risk'!D155/'Population at Risk'!D$5","v":0},{"$f":"'Population at Risk'!E155/'Population at Risk'!E$5","v":0},{"$f":"'Population at Risk'!F155/'Population at Risk'!F$5","v":0},{"$f":"'Population at Risk'!G155/'Population at Risk'!G$5","v":0},{"$f":"'Population at Risk'!H155/'Population at Risk'!H$5","v":0},{"$f":"'Population at Risk'!I155/'Population at Risk'!I$5","v":0},{"$f":"'Population at Risk'!J155/'Population at Risk'!J$5","v":0},{"$f":"'Population at Risk'!K155/'Population at Risk'!K$5","v":0},{"$f":"'Population at Risk'!L155/'Population at Risk'!L$5","v":0},{"$f":"'Population at Risk'!M155/'Population at Risk'!M$5","v":0},{"$f":"'Population at Risk'!N155/'Population at Risk'!N$5","v":0},{"$f":"'Population at Risk'!O155/'Population at Risk'!O$5","v":0},{"$f":"'Population at Risk'!P155/'Population at Risk'!P$5","v":0},{"$f":"'Population at Risk'!Q155/'Population at Risk'!Q$5","v":0},{"$f":"'Population at Risk'!R155/'Population at Risk'!R$5","v":0},{"$f":"'Population at Risk'!S155/'Population at Risk'!S$5","v":0},{"$f":"'Population at Risk'!T155/'Population at Risk'!T$5","v":0},{"$f":"'Population at Risk'!U155/'Population at Risk'!U$5","v":0},{"$f":"'Population at Risk'!V155/'Population at Risk'!V$5","v":0},{"$f":"'Population at Risk'!W155/'Population at Risk'!W$5","v":0},{"$f":"'Population at Risk'!X155/'Population at Risk'!X$5","v":0},{"$f":"'Population at Risk'!Y155/'Population at Risk'!Y$5","v":0},{"$f":"'Population at Risk'!Z155/'Population at Risk'!Z$5","v":0},{"$f":"'Population at Risk'!AA155/'Population at Risk'!AA$5","v":0},{"$f":"'Population at Risk'!AB155/'Population at Risk'!AB$5","v":0},{"$f":"'Population at Risk'!AC155/'Population at Risk'!AC$5","v":0},{"$f":"'Population at Risk'!AD155/'Population at Risk'!AD$5","v":0},{"$f":"'Population at Risk'!AE155/'Population at Risk'!AE$5","v":0},{"$f":"'Population at Risk'!AF155/'Population at Risk'!AF$5","v":0},{"$f":"'Population at Risk'!AG155/'Population at Risk'!AG$5","v":0},{"$f":"'Population at Risk'!AH155/'Population at Risk'!AH$5","v":0},{"$f":"'Population at Risk'!AI155/'Population at Risk'!AI$5","v":0},{"$f":"'Population at Risk'!AJ155/'Population at Risk'!AJ$5","v":0},{"$f":"'Population at Risk'!AK155/'Population at Risk'!AK$5","v":0},{"$f":"'Population at Risk'!AL155/'Population at Risk'!AL$5","v":0},{"$f":"'Population at Risk'!AM155/'Population at Risk'!AM$5","v":0},{"$f":"'Population at Risk'!AN155/'Population at Risk'!AN$5","v":0},{"$f":"'Population at Risk'!AO155/'Population at Risk'!AO$5","v":0},{"$f":"'Population at Risk'!AP155/'Population at Risk'!AP$5","v":0},{"$f":"'Population at Risk'!AQ155/'Population at Risk'!AQ$5","v":0},{"$f":"'Population at Risk'!AR155/'Population at Risk'!AR$5","v":0},{"$f":"'Population at Risk'!AS155/'Population at Risk'!AS$5","v":0},{"$f":"'Population at Risk'!AT155/'Population at Risk'!AT$5","v":0},{"$f":"'Population at Risk'!AU155/'Population at Risk'!AU$5","v":0},{"$f":"'Population at Risk'!AV155/'Population at Risk'!AV$5","v":0},{"$f":"'Population at Risk'!AW155/'Population at Risk'!AW$5","v":0},{"$f":"'Population at Risk'!AX155/'Population at Risk'!AX$5","v":0},{"$f":"'Population at Risk'!AY155/'Population at Risk'!AY$5","v":0},{"$f":"'Population at Risk'!AZ155/'Population at Risk'!AZ$5","v":0},{"$f":"'Population at Risk'!BA155/'Population at Risk'!BA$5","v":0},{"$f":"'Population at Risk'!BB155/'Population at Risk'!BB$5","v":0},{"$f":"'Population at Risk'!BC155/'Population at Risk'!BC$5","v":0},153]
[null,"Male 5-9",{"$f":"'Population at Risk'!C156/'Population at Risk'!C$5","v":0},{"$f":"'Population at Risk'!D156/'Population at Risk'!D$5","v":0},{"$f":"'Population at Risk'!E156/'Population at Risk'!E$5","v":0},{"$f":"'Population at Risk'!F156/'Population at Risk'!F$5","v":0},{"$f":"'Population at Risk'!G156/'Population at Risk'!G$5","v":0},{"$f":"'Population at Risk'!H156/'Population at Risk'!H$5","v":0},{"$f":"'Population at Risk'!I156/'Population at Risk'!I$5","v":0},{"$f":"'Population at Risk'!J156/'Population at Risk'!J$5","v":0},{"$f":"'Population at Risk'!K156/'Population at Risk'!K$5","v":0},{"$f":"'Population at Risk'!L156/'Population at Risk'!L$5","v":0},{"$f":"'Population at Risk'!M156/'Population at Risk'!M$5","v":0},{"$f":"'Population at Risk'!N156/'Population at Risk'!N$5","v":0},{"$f":"'Population at Risk'!O156/'Population at Risk'!O$5","v":0},{"$f":"'Population at Risk'!P156/'Population at Risk'!P$5","v":0},{"$f":"'Population at Risk'!Q156/'Population at Risk'!Q$5","v":0},{"$f":"'Population at Risk'!R156/'Population at Risk'!R$5","v":0},{"$f":"'Population at Risk'!S156/'Population at Risk'!S$5","v":0},{"$f":"'Population at Risk'!T156/'Population at Risk'!T$5","v":0},{"$f":"'Population at Risk'!U156/'Population at Risk'!U$5","v":0},{"$f":"'Population at Risk'!V156/'Population at Risk'!V$5","v":0},{"$f":"'Population at Risk'!W156/'Population at Risk'!W$5","v":0},{"$f":"'Population at Risk'!X156/'Population at Risk'!X$5","v":0},{"$f":"'Population at Risk'!Y156/'Population at Risk'!Y$5","v":0},{"$f":"'Population at Risk'!Z156/'Population at Risk'!Z$5","v":0},{"$f":"'Population at Risk'!AA156/'Population at Risk'!AA$5","v":0},{"$f":"'Population at Risk'!AB156/'Population at Risk'!AB$5","v":0},{"$f":"'Population at Risk'!AC156/'Population at Risk'!AC$5","v":0},{"$f":"'Population at Risk'!AD156/'Population at Risk'!AD$5","v":0},{"$f":"'Population at Risk'!AE156/'Population at Risk'!AE$5","v":0},{"$f":"'Population at Risk'!AF156/'Population at Risk'!AF$5","v":0},{"$f":"'Population at Risk'!AG156/'Population at Risk'!AG$5","v":0},{"$f":"'Population at Risk'!AH156/'Population at Risk'!AH$5","v":0},{"$f":"'Population at Risk'!AI156/'Population at Risk'!AI$5","v":0},{"$f":"'Population at Risk'!AJ156/'Population at Risk'!AJ$5","v":0},{"$f":"'Population at Risk'!AK156/'Population at Risk'!AK$5","v":0},{"$f":"'Population at Risk'!AL156/'Population at Risk'!AL$5","v":0},{"$f":"'Population at Risk'!AM156/'Population at Risk'!AM$5","v":0},{"$f":"'Population at Risk'!AN156/'Population at Risk'!AN$5","v":0},{"$f":"'Population at Risk'!AO156/'Population at Risk'!AO$5","v":0},{"$f":"'Population at Risk'!AP156/'Population at Risk'!AP$5","v":0},{"$f":"'Population at Risk'!AQ156/'Population at Risk'!AQ$5","v":0},{"$f":"'Population at Risk'!AR156/'Population at Risk'!AR$5","v":0},{"$f":"'Population at Risk'!AS156/'Population at Risk'!AS$5","v":0},{"$f":"'Population at Risk'!AT156/'Population at Risk'!AT$5","v":0},{"$f":"'Population at Risk'!AU156/'Population at Risk'!AU$5","v":0},{"$f":"'Population at Risk'!AV156/'Population at Risk'!AV$5","v":0},{"$f":"'Population at Risk'!AW156/'Population at Risk'!AW$5","v":0},{"$f":"'Population at Risk'!AX156/'Population at Risk'!AX$5","v":0},{"$f":"'Population at Risk'!AY156/'Population at Risk'!AY$5","v":0},{"$f":"'Population at Risk'!AZ156/'Population at Risk'!AZ$5","v":0},{"$f":"'Population at Risk'!BA156/'Population at Risk'!BA$5","v":0},{"$f":"'Population at Risk'!BB156/'Population at Risk'!BB$5","v":0},{"$f":"'Population at Risk'!BC156/'Population at Risk'!BC$5","v":0},154]
[null,"Male 10-15",{"$f":"'Population at Risk'!C157/'Population at Risk'!C$5","v":0},{"$f":"'Population at Risk'!D157/'Population at Risk'!D$5","v":0},{"$f":"'Population at Risk'!E157/'Population at Risk'!E$5","v":0},{"$f":"'Population at Risk'!F157/'Population at Risk'!F$5","v":0},{"$f":"'Population at Risk'!G157/'Population at Risk'!G$5","v":0},{"$f":"'Population at Risk'!H157/'Population at Risk'!H$5","v":0},{"$f":"'Population at Risk'!I157/'Population at Risk'!I$5","v":0},{"$f":"'Population at Risk'!J157/'Population at Risk'!J$5","v":0},{"$f":"'Population at Risk'!K157/'Population at Risk'!K$5","v":0},{"$f":"'Population at Risk'!L157/'Population at Risk'!L$5","v":0},{"$f":"'Population at Risk'!M157/'Population at Risk'!M$5","v":0},{"$f":"'Population at Risk'!N157/'Population at Risk'!N$5","v":0},{"$f":"'Population at Risk'!O157/'Population at Risk'!O$5","v":0},{"$f":"'Population at Risk'!P157/'Population at Risk'!P$5","v":0},{"$f":"'Population at Risk'!Q157/'Population at Risk'!Q$5","v":0},{"$f":"'Population at Risk'!R157/'Population at Risk'!R$5","v":0},{"$f":"'Population at Risk'!S157/'Population at Risk'!S$5","v":0},{"$f":"'Population at Risk'!T157/'Population at Risk'!T$5","v":0},{"$f":"'Population at Risk'!U157/'Population at Risk'!U$5","v":0},{"$f":"'Population at Risk'!V157/'Population at Risk'!V$5","v":0},{"$f":"'Population at Risk'!W157/'Population at Risk'!W$5","v":0},{"$f":"'Population at Risk'!X157/'Population at Risk'!X$5","v":0},{"$f":"'Population at Risk'!Y157/'Population at Risk'!Y$5","v":0},{"$f":"'Population at Risk'!Z157/'Population at Risk'!Z$5","v":0},{"$f":"'Population at Risk'!AA157/'Population at Risk'!AA$5","v":0},{"$f":"'Population at Risk'!AB157/'Population at Risk'!AB$5","v":0},{"$f":"'Population at Risk'!AC157/'Population at Risk'!AC$5","v":0},{"$f":"'Population at Risk'!AD157/'Population at Risk'!AD$5","v":0},{"$f":"'Population at Risk'!AE157/'Population at Risk'!AE$5","v":0},{"$f":"'Population at Risk'!AF157/'Population at Risk'!AF$5","v":0},{"$f":"'Population at Risk'!AG157/'Population at Risk'!AG$5","v":0},{"$f":"'Population at Risk'!AH157/'Population at Risk'!AH$5","v":0},{"$f":"'Population at Risk'!AI157/'Population at Risk'!AI$5","v":0},{"$f":"'Population at Risk'!AJ157/'Population at Risk'!AJ$5","v":0},{"$f":"'Population at Risk'!AK157/'Population at Risk'!AK$5","v":0},{"$f":"'Population at Risk'!AL157/'Population at Risk'!AL$5","v":0},{"$f":"'Population at Risk'!AM157/'Population at Risk'!AM$5","v":0},{"$f":"'Population at Risk'!AN157/'Population at Risk'!AN$5","v":0},{"$f":"'Population at Risk'!AO157/'Population at Risk'!AO$5","v":0},{"$f":"'Population at Risk'!AP157/'Population at Risk'!AP$5","v":0},{"$f":"'Population at Risk'!AQ157/'Population at Risk'!AQ$5","v":0},{"$f":"'Population at Risk'!AR157/'Population at Risk'!AR$5","v":0},{"$f":"'Population at Risk'!AS157/'Population at Risk'!AS$5","v":0},{"$f":"'Population at Risk'!AT157/'Population at Risk'!AT$5","v":0},{"$f":"'Population at Risk'!AU157/'Population at Risk'!AU$5","v":0},{"$f":"'Population at Risk'!AV157/'Population at Risk'!AV$5","v":0},{"$f":"'Population at Risk'!AW157/'Population at Risk'!AW$5","v":0},{"$f":"'Population at Risk'!AX157/'Population at Risk'!AX$5","v":0},{"$f":"'Population at Risk'!AY157/'Population at Risk'!AY$5","v":0},{"$f":"'Population at Risk'!AZ157/'Population at Risk'!AZ$5","v":0},{"$f":"'Population at Risk'!BA157/'Population at Risk'!BA$5","v":0},{"$f":"'Population at Risk'!BB157/'Population at Risk'!BB$5","v":0},{"$f":"'Population at Risk'!BC157/'Population at Risk'!BC$5","v":0},155]
[null,"Male 16-19",{"$f":"'Population at Risk'!C158/'Population at Risk'!C$5","v":4.6021306070785266E-3},{"$f":"'Population at Risk'!D158/'Population at Risk'!D$5","v":6.4370306855023951E-3},{"$f":"'Population at Risk'!E158/'Population at Risk'!E$5","v":8.0930961216617772E-3},{"$f":"'Population at Risk'!F158/'Population at Risk'!F$5","v":1.5313119894968939E-2},{"$f":"'Population at Risk'!G158/'Population at Risk'!G$5","v":1.6250965817109768E-2},{"$f":"'Population at Risk'!H158/'Population at Risk'!H$5","v":7.9774337952128651E-3},{"$f":"'Population at Risk'!I158/'Population at Risk'!I$5","v":1.3254497702856551E-2},{"$f":"'Population at Risk'!J158/'Population at Risk'!J$5","v":6.4814333819963876E-3},{"$f":"'Population at Risk'!K158/'Population at Risk'!K$5","v":8.87454294147994E-3},{"$f":"'Population at Risk'!L158/'Population at Risk'!L$5","v":1.5384898085219929E-2},{"$f":"'Population at Risk'!M158/'Population at Risk'!M$5","v":1.5587996557915769E-2},{"$f":"'Population at Risk'!N158/'Population at Risk'!N$5","v":4.7438987012675821E-3},{"$f":"'Population at Risk'!O158/'Population at Risk'!O$5","v":8.5732005933499035E-3},{"$f":"'Population at Risk'!P158/'Population at Risk'!P$5","v":2.7487924462616504E-3},{"$f":"'Population at Risk'!Q158/'Population at Risk'!Q$5","v":9.0048154768655464E-3},{"$f":"'Population at Risk'!R158/'Population at Risk'!R$5","v":4.9641950307004103E-3},{"$f":"'Population at Risk'!S158/'Population at Risk'!S$5","v":7.63129146482286E-3},{"$f":"'Population at Risk'!T158/'Population at Risk'!T$5","v":4.697515314712652E-3},{"$f":"'Population at Risk'!U158/'Population at Risk'!U$5","v":2.9371194278121567E-2},{"$f":"'Population at Risk'!V158/'Population at Risk'!V$5","v":7.0350267842026548E-3},{"$f":"'Population at Risk'!W158/'Population at Risk'!W$5","v":8.5916487207442285E-3},{"$f":"'Population at Risk'!X158/'Population at Risk'!X$5","v":8.4752886330118331E-3},{"$f":"'Population at Risk'!Y158/'Population at Risk'!Y$5","v":7.4364588362839578E-3},{"$f":"'Population at Risk'!Z158/'Population at Risk'!Z$5","v":6.5909203983580194E-3},{"$f":"'Population at Risk'!AA158/'Population at Risk'!AA$5","v":6.9130831547856665E-3},{"$f":"'Population at Risk'!AB158/'Population at Risk'!AB$5","v":6.9374143597287921E-3},{"$f":"'Population at Risk'!AC158/'Population at Risk'!AC$5","v":6.3144158384161667E-3},{"$f":"'Population at Risk'!AD158/'Population at Risk'!AD$5","v":1.3624565009574671E-2},{"$f":"'Population at Risk'!AE158/'Population at Risk'!AE$5","v":1.4003007874719654E-2},{"$f":"'Population at Risk'!AF158/'Population at Risk'!AF$5","v":6.1842407456517345E-3},{"$f":"'Population at Risk'!AG158/'Population at Risk'!AG$5","v":1.3015260984894816E-2},{"$f":"'Population at Risk'!AH158/'Population at Risk'!AH$5","v":7.8849431607058151E-3},{"$f":"'Population at Risk'!AI158/'Population at Risk'!AI$5","v":6.5224356380317403E-3},{"$f":"'Population at Risk'!AJ158/'Population at Risk'!AJ$5","v":8.8009785893253291E-3},{"$f":"'Population at Risk'!AK158/'Population at Risk'!AK$5","v":1.0267451369026898E-2},{"$f":"'Population at Risk'!AL158/'Population at Risk'!AL$5","v":5.8438937293050115E-3},{"$f":"'Population at Risk'!AM158/'Population at Risk'!AM$5","v":8.1239955345883304E-3},{"$f":"'Population at Risk'!AN158/'Population at Risk'!AN$5","v":1.2161597268620433E-2},{"$f":"'Population at Risk'!AO158/'Population at Risk'!AO$5","v":1.2161597268620433E-2},{"$f":"'Population at Risk'!AP158/'Population at Risk'!AP$5","v":9.3440538998989728E-3},{"$f":"'Population at Risk'!AQ158/'Population at Risk'!AQ$5","v":7.6883883638767837E-3},{"$f":"'Population at Risk'!AR158/'Population at Risk'!AR$5","v":8.2010478932946548E-3},{"$f":"'Population at Risk'!AS158/'Population at Risk'!AS$5","v":1.3254497702856551E-2},{"$f":"'Population at Risk'!AT158/'Population at Risk'!AT$5","v":1.3237080270634725E-2},{"$f":"'Population at Risk'!AU158/'Population at Risk'!AU$5","v":1.3237080270634725E-2},{"$f":"'Population at Risk'!AV158/'Population at Risk'!AV$5","v":9.5502701633331192E-3},{"$f":"'Population at Risk'!AW158/'Population at Risk'!AW$5","v":7.4469077068430849E-3},{"$f":"'Population at Risk'!AX158/'Population at Risk'!AX$5","v":5.7370547181184312E-3},{"$f":"'Population at Risk'!AY158/'Population at Risk'!AY$5","v":8.8253265514817106E-3},{"$f":"'Population at Risk'!AZ158/'Population at Risk'!AZ$5","v":8.9354617280122881E-3},{"$f":"'Population at Risk'!BA158/'Population at Risk'!BA$5","v":5.859837262963837E-3},{"$f":"'Population at Risk'!BB158/'Population at Risk'!BB$5","v":9.8546883339203847E-3},{"$f":"'Population at Risk'!BC158/'Population at Risk'!BC$5","v":3.1531344335514543E-2},156]
[null,"Male 20-24",{"$f":"'Population at Risk'!C159/'Population at Risk'!C$5","v":1.5018261431823303E-2},{"$f":"'Population at Risk'!D159/'Population at Risk'!D$5","v":1.229330279484115E-2},{"$f":"'Population at Risk'!E159/'Population at Risk'!E$5","v":9.9521433638941493E-3},{"$f":"'Population at Risk'!F159/'Population at Risk'!F$5","v":1.6273293899194016E-2},{"$f":"'Population at Risk'!G159/'Population at Risk'!G$5","v":1.6390544664618686E-2},{"$f":"'Population at Risk'!H159/'Population at Risk'!H$5","v":9.9662677053767353E-3},{"$f":"'Population at Risk'!I159/'Population at Risk'!I$5","v":1.5658336077178141E-2},{"$f":"'Population at Risk'!J159/'Population at Risk'!J$5","v":1.1785575153591089E-2},{"$f":"'Population at Risk'!K159/'Population at Risk'!K$5","v":1.1982677796560473E-2},{"$f":"'Population at Risk'!L159/'Population at Risk'!L$5","v":1.7600934729945315E-2},{"$f":"'Population at Risk'!M159/'Population at Risk'!M$5","v":1.7833287452847346E-2},{"$f":"'Population at Risk'!N159/'Population at Risk'!N$5","v":9.2926756050537209E-3},{"$f":"'Population at Risk'!O159/'Population at Risk'!O$5","v":1.1596867039176537E-2},{"$f":"'Population at Risk'!P159/'Population at Risk'!P$5","v":3.796769566398905E-3},{"$f":"'Population at Risk'!Q159/'Population at Risk'!Q$5","v":1.1081507418235702E-2},{"$f":"'Population at Risk'!R159/'Population at Risk'!R$5","v":6.5785673984078618E-3},{"$f":"'Population at Risk'!S159/'Population at Risk'!S$5","v":1.2831144704899608E-2},{"$f":"'Population at Risk'!T159/'Population at Risk'!T$5","v":1.3168092129343244E-2},{"$f":"'Population at Risk'!U159/'Population at Risk'!U$5","v":3.4459117696378848E-2},{"$f":"'Population at Risk'!V159/'Population at Risk'!V$5","v":9.3275914231440941E-3},{"$f":"'Population at Risk'!W159/'Population at Risk'!W$5","v":1.1896528089774466E-2},{"$f":"'Population at Risk'!X159/'Population at Risk'!X$5","v":1.1735408717087038E-2},{"$f":"'Population at Risk'!Y159/'Population at Risk'!Y$5","v":1.1507560642087916E-2},{"$f":"'Population at Risk'!Z159/'Population at Risk'!Z$5","v":1.5190563371872867E-2},{"$f":"'Population at Risk'!AA159/'Population at Risk'!AA$5","v":1.0893785242708677E-2},{"$f":"'Population at Risk'!AB159/'Population at Risk'!AB$5","v":1.2128951185406236E-2},{"$f":"'Population at Risk'!AC159/'Population at Risk'!AC$5","v":1.1599890242440739E-2},{"$f":"'Population at Risk'!AD159/'Population at Risk'!AD$5","v":1.4130387183582832E-2},{"$f":"'Population at Risk'!AE159/'Population at Risk'!AE$5","v":1.4715586973669887E-2},{"$f":"'Population at Risk'!AF159/'Population at Risk'!AF$5","v":9.1812189531598806E-3},{"$f":"'Population at Risk'!AG159/'Population at Risk'!AG$5","v":1.3677576040930884E-2},{"$f":"'Population at Risk'!AH159/'Population at Risk'!AH$5","v":9.7172432810931388E-3},{"$f":"'Population at Risk'!AI159/'Population at Risk'!AI$5","v":1.2823346707774033E-2},{"$f":"'Population at Risk'!AJ159/'Population at Risk'!AJ$5","v":1.2795597512150175E-2},{"$f":"'Population at Risk'!AK159/'Population at Risk'!AK$5","v":1.2442602646486814E-2},{"$f":"'Population at Risk'!AL159/'Population at Risk'!AL$5","v":8.0563339140288411E-3},{"$f":"'Population at Risk'!AM159/'Population at Risk'!AM$5","v":9.5390021542644428E-3},{"$f":"'Population at Risk'!AN159/'Population at Risk'!AN$5","v":1.4593916722344518E-2},{"$f":"'Population at Risk'!AO159/'Population at Risk'!AO$5","v":1.4593916722344518E-2},{"$f":"'Population at Risk'!AP159/'Population at Risk'!AP$5","v":1.238926601349678E-2},{"$f":"'Population at Risk'!AQ159/'Population at Risk'!AQ$5","v":8.4621242629166135E-3},{"$f":"'Population at Risk'!AR159/'Population at Risk'!AR$5","v":1.2182843810635845E-2},{"$f":"'Population at Risk'!AS159/'Population at Risk'!AS$5","v":1.5658336077178141E-2},{"$f":"'Population at Risk'!AT159/'Population at Risk'!AT$5","v":1.8151445401050011E-2},{"$f":"'Population at Risk'!AU159/'Population at Risk'!AU$5","v":1.8151445401050011E-2},{"$f":"'Population at Risk'!AV159/'Population at Risk'!AV$5","v":1.0367491267913639E-2},{"$f":"'Population at Risk'!AW159/'Population at Risk'!AW$5","v":9.6447985238736402E-3},{"$f":"'Population at Risk'!AX159/'Population at Risk'!AX$5","v":1.2407596305625622E-2},{"$f":"'Population at Risk'!AY159/'Population at Risk'!AY$5","v":1.1935337046589509E-2},{"$f":"'Population at Risk'!AZ159/'Population at Risk'!AZ$5","v":1.1859181878526446E-2},{"$f":"'Population at Risk'!BA159/'Population at Risk'!BA$5","v":8.711773269273233E-3},{"$f":"'Population at Risk'!BB159/'Population at Risk'!BB$5","v":1.3709413362494684E-2},{"$f":"'Population at Risk'!BC159/'Population at Risk'!BC$5","v":3.6993466976312339E-2},157]
[null,"Male 25-29",{"$f":"'Population at Risk'!C160/'Population at Risk'!C$5","v":1.183590861219469E-2},{"$f":"'Population at Risk'!D160/'Population at Risk'!D$5","v":8.5262476123123109E-3},{"$f":"'Population at Risk'!E160/'Population at Risk'!E$5","v":5.6480903287000938E-3},{"$f":"'Population at Risk'!F160/'Population at Risk'!F$5","v":9.1878175270807827E-3},{"$f":"'Population at Risk'!G160/'Population at Risk'!G$5","v":9.3825039226726591E-3},{"$f":"'Population at Risk'!H160/'Population at Risk'!H$5","v":5.6165072777989971E-3},{"$f":"'Population at Risk'!I160/'Population at Risk'!I$5","v":9.2011365426072789E-3},{"$f":"'Population at Risk'!J160/'Population at Risk'!J$5","v":6.2942188794455753E-3},{"$f":"'Population at Risk'!K160/'Population at Risk'!K$5","v":5.9210685211403781E-3},{"$f":"'Population at Risk'!L160/'Population at Risk'!L$5","v":1.0634875763388658E-2},{"$f":"'Population at Risk'!M160/'Population at Risk'!M$5","v":1.0775268440213035E-2},{"$f":"'Population at Risk'!N160/'Population at Risk'!N$5","v":6.9541030290813091E-3},{"$f":"'Population at Risk'!O160/'Population at Risk'!O$5","v":7.3523920166295408E-3},{"$f":"'Population at Risk'!P160/'Population at Risk'!P$5","v":2.2691556124659197E-3},{"$f":"'Population at Risk'!Q160/'Population at Risk'!Q$5","v":6.6157399537577939E-3},{"$f":"'Population at Risk'!R160/'Population at Risk'!R$5","v":3.2291873892849373E-3},{"$f":"'Population at Risk'!S160/'Population at Risk'!S$5","v":9.2082213587682381E-3},{"$f":"'Population at Risk'!T160/'Population at Risk'!T$5","v":1.152454906631183E-2},{"$f":"'Population at Risk'!U160/'Population at Risk'!U$5","v":2.0119511449410047E-2},{"$f":"'Population at Risk'!V160/'Population at Risk'!V$5","v":5.5163256275895436E-3},{"$f":"'Population at Risk'!W160/'Population at Risk'!W$5","v":7.5247358306052906E-3},{"$f":"'Population at Risk'!X160/'Population at Risk'!X$5","v":7.4228253650041676E-3},{"$f":"'Population at Risk'!Y160/'Population at Risk'!Y$5","v":6.456727941511667E-3},{"$f":"'Population at Risk'!Z160/'Population at Risk'!Z$5","v":9.9252792692671853E-3},{"$f":"'Population at Risk'!AA160/'Population at Risk'!AA$5","v":6.8560971998632494E-3},{"$f":"'Population at Risk'!AB160/'Population at Risk'!AB$5","v":8.3203306783852047E-3},{"$f":"'Population at Risk'!AC160/'Population at Risk'!AC$5","v":7.4979735227209254E-3},{"$f":"'Population at Risk'!AD160/'Population at Risk'!AD$5","v":8.7104175885355066E-3},{"$f":"'Population at Risk'!AE160/'Population at Risk'!AE$5","v":9.3708185052684499E-3},{"$f":"'Population at Risk'!AF160/'Population at Risk'!AF$5","v":5.4978565258549357E-3},{"$f":"'Population at Risk'!AG160/'Population at Risk'!AG$5","v":8.7098178890792494E-3},{"$f":"'Population at Risk'!AH160/'Population at Risk'!AH$5","v":5.7914177430015354E-3},{"$f":"'Population at Risk'!AI160/'Population at Risk'!AI$5","v":9.8654652005188588E-3},{"$f":"'Population at Risk'!AJ160/'Population at Risk'!AJ$5","v":7.7047945518462458E-3},{"$f":"'Population at Risk'!AK160/'Population at Risk'!AK$5","v":8.041613111949614E-3},{"$f":"'Population at Risk'!AL160/'Population at Risk'!AL$5","v":4.0887915021412058E-3},{"$f":"'Population at Risk'!AM160/'Population at Risk'!AM$5","v":5.7381671031641575E-3},{"$f":"'Population at Risk'!AN160/'Population at Risk'!AN$5","v":1.0451397727890803E-2},{"$f":"'Population at Risk'!AO160/'Population at Risk'!AO$5","v":1.0451397727890803E-2},{"$f":"'Population at Risk'!AP160/'Population at Risk'!AP$5","v":6.3452914468839191E-3},{"$f":"'Population at Risk'!AQ160/'Population at Risk'!AQ$5","v":5.6969198353729392E-3},{"$f":"'Population at Risk'!AR160/'Population at Risk'!AR$5","v":7.8883027312164292E-3},{"$f":"'Population at Risk'!AS160/'Population at Risk'!AS$5","v":9.2011365426072789E-3},{"$f":"'Population at Risk'!AT160/'Population at Risk'!AT$5","v":1.0167310328645937E-2},{"$f":"'Population at Risk'!AU160/'Population at Risk'!AU$5","v":1.0167310328645937E-2},{"$f":"'Population at Risk'!AV160/'Population at Risk'!AV$5","v":5.606605194415238E-3},{"$f":"'Population at Risk'!AW160/'Population at Risk'!AW$5","v":5.6958732493206021E-3},{"$f":"'Population at Risk'!AX160/'Population at Risk'!AX$5","v":6.853918529958339E-3},{"$f":"'Population at Risk'!AY160/'Population at Risk'!AY$5","v":7.298600630783917E-3},{"$f":"'Population at Risk'!AZ160/'Population at Risk'!AZ$5","v":7.049136634718573E-3},{"$f":"'Population at Risk'!BA160/'Population at Risk'!BA$5","v":6.1545746291057149E-3},{"$f":"'Population at Risk'!BB160/'Population at Risk'!BB$5","v":8.542397455876068E-3},{"$f":"'Population at Risk'!BC160/'Population at Risk'!BC$5","v":2.159923213766737E-2},158]
[null,"Male 30-34",{"$f":"'Population at Risk'!C161/'Population at Risk'!C$5","v":8.9748952021468324E-3},{"$f":"'Population at Risk'!D161/'Population at Risk'!D$5","v":7.3668899338704651E-3},{"$f":"'Population at Risk'!E161/'Population at Risk'!E$5","v":5.9859746098113991E-3},{"$f":"'Population at Risk'!F161/'Population at Risk'!F$5","v":1.0270592361507921E-2},{"$f":"'Population at Risk'!G161/'Population at Risk'!G$5","v":8.8886879267425188E-3},{"$f":"'Population at Risk'!H161/'Population at Risk'!H$5","v":5.2306135860076862E-3},{"$f":"'Population at Risk'!I161/'Population at Risk'!I$5","v":9.3813431338795415E-3},{"$f":"'Population at Risk'!J161/'Population at Risk'!J$5","v":5.2652788838273967E-3},{"$f":"'Population at Risk'!K161/'Population at Risk'!K$5","v":5.7133117309249261E-3},{"$f":"'Population at Risk'!L161/'Population at Risk'!L$5","v":9.9717124078009239E-3},{"$f":"'Population at Risk'!M161/'Population at Risk'!M$5","v":1.0103350560291005E-2},{"$f":"'Population at Risk'!N161/'Population at Risk'!N$5","v":5.6995766474430337E-3},{"$f":"'Population at Risk'!O161/'Population at Risk'!O$5","v":6.2284594790555986E-3},{"$f":"'Population at Risk'!P161/'Population at Risk'!P$5","v":1.952782954958652E-3},{"$f":"'Population at Risk'!Q161/'Population at Risk'!Q$5","v":5.8178617683799705E-3},{"$f":"'Population at Risk'!R161/'Population at Risk'!R$5","v":3.2548158606284685E-3},{"$f":"'Population at Risk'!S161/'Population at Risk'!S$5","v":8.6715245348158478E-3},{"$f":"'Population at Risk'!T161/'Population at Risk'!T$5","v":1.0200306705681329E-2},{"$f":"'Population at Risk'!U161/'Population at Risk'!U$5","v":2.1979709588284938E-2},{"$f":"'Population at Risk'!V161/'Population at Risk'!V$5","v":5.5305981389157776E-3},{"$f":"'Population at Risk'!W161/'Population at Risk'!W$5","v":7.4621395167780132E-3},{"$f":"'Population at Risk'!X161/'Population at Risk'!X$5","v":7.3610768177471281E-3},{"$f":"'Population at Risk'!Y161/'Population at Risk'!Y$5","v":5.9338823627003105E-3},{"$f":"'Population at Risk'!Z161/'Population at Risk'!Z$5","v":9.1530187800345306E-3},{"$f":"'Population at Risk'!AA161/'Population at Risk'!AA$5","v":6.7608092936012765E-3},{"$f":"'Population at Risk'!AB161/'Population at Risk'!AB$5","v":7.5519624099327455E-3},{"$f":"'Population at Risk'!AC161/'Population at Risk'!AC$5","v":6.9978248489089992E-3},{"$f":"'Population at Risk'!AD161/'Population at Risk'!AD$5","v":9.162861959708446E-3},{"$f":"'Population at Risk'!AE161/'Population at Risk'!AE$5","v":1.0265281810094749E-2},{"$f":"'Population at Risk'!AF161/'Population at Risk'!AF$5","v":4.8785924666240226E-3},{"$f":"'Population at Risk'!AG161/'Population at Risk'!AG$5","v":9.5411873675427371E-3},{"$f":"'Population at Risk'!AH161/'Population at Risk'!AH$5","v":6.3609508302469361E-3},{"$f":"'Population at Risk'!AI161/'Population at Risk'!AI$5","v":9.0493149317108015E-3},{"$f":"'Population at Risk'!AJ161/'Population at Risk'!AJ$5","v":7.6912297727056711E-3},{"$f":"'Population at Risk'!AK161/'Population at Risk'!AK$5","v":9.2706806181427868E-3},{"$f":"'Population at Risk'!AL161/'Population at Risk'!AL$5","v":3.8174972792503203E-3},{"$f":"'Population at Risk'!AM161/'Population at Risk'!AM$5","v":6.6852769091882295E-3},{"$f":"'Population at Risk'!AN161/'Population at Risk'!AN$5","v":9.0098256274920713E-3},{"$f":"'Population at Risk'!AO161/'Population at Risk'!AO$5","v":9.0098256274920713E-3},{"$f":"'Population at Risk'!AP161/'Population at Risk'!AP$5","v":7.0805511742169343E-3},{"$f":"'Population at Risk'!AQ161/'Population at Risk'!AQ$5","v":5.9083775585199701E-3},{"$f":"'Population at Risk'!AR161/'Population at Risk'!AR$5","v":7.6036302592523862E-3},{"$f":"'Population at Risk'!AS161/'Population at Risk'!AS$5","v":9.3813431338795415E-3},{"$f":"'Population at Risk'!AT161/'Population at Risk'!AT$5","v":1.1173974717620784E-2},{"$f":"'Population at Risk'!AU161/'Population at Risk'!AU$5","v":1.1173974717620784E-2},{"$f":"'Population at Risk'!AV161/'Population at Risk'!AV$5","v":5.74905977285773E-3},{"$f":"'Population at Risk'!AW161/'Population at Risk'!AW$5","v":5.8776199574566597E-3},{"$f":"'Population at Risk'!AX161/'Population at Risk'!AX$5","v":5.3719901991565368E-3},{"$f":"'Population at Risk'!AY161/'Population at Risk'!AY$5","v":7.3312432845503836E-3},{"$f":"'Population at Risk'!AZ161/'Population at Risk'!AZ$5","v":7.1588195956382916E-3},{"$f":"'Population at Risk'!BA161/'Population at Risk'!BA$5","v":5.3481131259815176E-3},{"$f":"'Population at Risk'!BB161/'Population at Risk'!BB$5","v":8.8261980358055065E-3},{"$f":"'Population at Risk'!BC161/'Population at Risk'!BC$5","v":2.3596241435067274E-2},159]
[null,"Male 35-39",{"$f":"'Population at Risk'!C162/'Population at Risk'!C$5","v":7.7242335974739233E-3},{"$f":"'Population at Risk'!D162/'Population at Risk'!D$5","v":7.4147490475629831E-3},{"$f":"'Population at Risk'!E162/'Population at Risk'!E$5","v":7.1814126777014643E-3},{"$f":"'Population at Risk'!F162/'Population at Risk'!F$5","v":1.2069417634492456E-2},{"$f":"'Population at Risk'!G162/'Population at Risk'!G$5","v":1.1846380467014309E-2},{"$f":"'Population at Risk'!H162/'Population at Risk'!H$5","v":6.6392989405375151E-3},{"$f":"'Population at Risk'!I162/'Population at Risk'!I$5","v":1.0509139049709433E-2},{"$f":"'Population at Risk'!J162/'Population at Risk'!J$5","v":6.1273687848797474E-3},{"$f":"'Population at Risk'!K162/'Population at Risk'!K$5","v":6.8450579134012824E-3},{"$f":"'Population at Risk'!L162/'Population at Risk'!L$5","v":1.0984786109206198E-2},{"$f":"'Population at Risk'!M162/'Population at Risk'!M$5","v":1.1129798007842922E-2},{"$f":"'Population at Risk'!N162/'Population at Risk'!N$5","v":4.8546465852089445E-3},{"$f":"'Population at Risk'!O162/'Population at Risk'!O$5","v":8.3124511779035255E-3},{"$f":"'Population at Risk'!P162/'Population at Risk'!P$5","v":2.0465244808083875E-3},{"$f":"'Population at Risk'!Q162/'Population at Risk'!Q$5","v":7.1048803267681031E-3},{"$f":"'Population at Risk'!R162/'Population at Risk'!R$5","v":4.0013576195110524E-3},{"$f":"'Population at Risk'!S162/'Population at Risk'!S$5","v":9.1420623507950886E-3},{"$f":"'Population at Risk'!T162/'Population at Risk'!T$5","v":9.2336936660850875E-3},{"$f":"'Population at Risk'!U162/'Population at Risk'!U$5","v":2.8769990622018838E-2},{"$f":"'Population at Risk'!V162/'Population at Risk'!V$5","v":7.9305838609544706E-3},{"$f":"'Population at Risk'!W162/'Population at Risk'!W$5","v":8.7306838280725944E-3},{"$f":"'Population at Risk'!X162/'Population at Risk'!X$5","v":8.6124407330371248E-3},{"$f":"'Population at Risk'!Y162/'Population at Risk'!Y$5","v":7.7744344507715418E-3},{"$f":"'Population at Risk'!Z162/'Population at Risk'!Z$5","v":8.3319501157151591E-3},{"$f":"'Population at Risk'!AA162/'Population at Risk'!AA$5","v":7.2272790535256636E-3},{"$f":"'Population at Risk'!AB162/'Population at Risk'!AB$5","v":7.7131133864927299E-3},{"$f":"'Population at Risk'!AC162/'Population at Risk'!AC$5","v":6.7910768436812638E-3},{"$f":"'Population at Risk'!AD162/'Population at Risk'!AD$5","v":1.1358803208459436E-2},{"$f":"'Population at Risk'!AE162/'Population at Risk'!AE$5","v":1.2381582896876827E-2},{"$f":"'Population at Risk'!AF162/'Population at Risk'!AF$5","v":6.2227220923577716E-3},{"$f":"'Population at Risk'!AG162/'Population at Risk'!AG$5","v":1.1508208397132545E-2},{"$f":"'Population at Risk'!AH162/'Population at Risk'!AH$5","v":7.9319169012817548E-3},{"$f":"'Population at Risk'!AI162/'Population at Risk'!AI$5","v":9.1150129077458113E-3},{"$f":"'Population at Risk'!AJ162/'Population at Risk'!AJ$5","v":9.4377670931659139E-3},{"$f":"'Population at Risk'!AK162/'Population at Risk'!AK$5","v":1.0048093040089683E-2},{"$f":"'Population at Risk'!AL162/'Population at Risk'!AL$5","v":4.7970857510536971E-3},{"$f":"'Population at Risk'!AM162/'Population at Risk'!AM$5","v":8.6994242821296103E-3},{"$f":"'Population at Risk'!AN162/'Population at Risk'!AN$5","v":9.9026690315442423E-3},{"$f":"'Population at Risk'!AO162/'Population at Risk'!AO$5","v":9.9026690315442423E-3},{"$f":"'Population at Risk'!AP162/'Population at Risk'!AP$5","v":8.2233844454154183E-3},{"$f":"'Population at Risk'!AQ162/'Population at Risk'!AQ$5","v":6.1362715581788786E-3},{"$f":"'Population at Risk'!AR162/'Population at Risk'!AR$5","v":8.3408320970191265E-3},{"$f":"'Population at Risk'!AS162/'Population at Risk'!AS$5","v":1.0509139049709433E-2},{"$f":"'Population at Risk'!AT162/'Population at Risk'!AT$5","v":1.3446093922530111E-2},{"$f":"'Population at Risk'!AU162/'Population at Risk'!AU$5","v":1.3446093922530111E-2},{"$f":"'Population at Risk'!AV162/'Population at Risk'!AV$5","v":6.9949699384421462E-3},{"$f":"'Population at Risk'!AW162/'Population at Risk'!AW$5","v":6.9703302745117756E-3},{"$f":"'Population at Risk'!AX162/'Population at Risk'!AX$5","v":6.1582052208848876E-3},{"$f":"'Population at Risk'!AY162/'Population at Risk'!AY$5","v":8.2251829039776108E-3},{"$f":"'Population at Risk'!AZ162/'Population at Risk'!AZ$5","v":7.7405131143115881E-3},{"$f":"'Population at Risk'!BA162/'Population at Risk'!BA$5","v":5.5770659667365476E-3},{"$f":"'Population at Risk'!BB162/'Population at Risk'!BB$5","v":1.0454035757074943E-2},{"$f":"'Population at Risk'!BC162/'Population at Risk'!BC$5","v":3.0885924223658E-2},160]
[null,"Male 40-44",{"$f":"'Population at Risk'!C163/'Population at Risk'!C$5","v":5.9585343353518007E-3},{"$f":"'Population at Risk'!D163/'Population at Risk'!D$5","v":6.9768908117274053E-3},{"$f":"'Population at Risk'!E163/'Population at Risk'!E$5","v":7.9144120406668544E-3},{"$f":"'Population at Risk'!F163/'Population at Risk'!F$5","v":1.4178757427904271E-2},{"$f":"'Population at Risk'!G163/'Population at Risk'!G$5","v":1.4176569518267124E-2},{"$f":"'Population at Risk'!H163/'Population at Risk'!H$5","v":7.4140226563091443E-3},{"$f":"'Population at Risk'!I163/'Population at Risk'!I$5","v":1.3819203205486179E-2},{"$f":"'Population at Risk'!J163/'Population at Risk'!J$5","v":6.8431828952628957E-3},{"$f":"'Population at Risk'!K163/'Population at Risk'!K$5","v":9.0034095077170025E-3},{"$f":"'Population at Risk'!L163/'Population at Risk'!L$5","v":1.312605123364062E-2},{"$f":"'Population at Risk'!M163/'Population at Risk'!M$5","v":1.3299330311819298E-2},{"$f":"'Population at Risk'!N163/'Population at Risk'!N$5","v":4.3949262646399154E-3},{"$f":"'Population at Risk'!O163/'Population at Risk'!O$5","v":8.4653557982328539E-3},{"$f":"'Population at Risk'!P163/'Population at Risk'!P$5","v":2.4351050784302331E-3},{"$f":"'Population at Risk'!Q163/'Population at Risk'!Q$5","v":9.2231872390082219E-3},{"$f":"'Population at Risk'!R163/'Population at Risk'!R$5","v":4.031786194564368E-3},{"$f":"'Population at Risk'!S163/'Population at Risk'!S$5","v":8.973721166522652E-3},{"$f":"'Population at Risk'!T163/'Population at Risk'!T$5","v":6.9023075824597418E-3},{"$f":"'Population at Risk'!U163/'Population at Risk'!U$5","v":3.266411056479715E-2},{"$f":"'Population at Risk'!V163/'Population at Risk'!V$5","v":8.0830950890497504E-3},{"$f":"'Population at Risk'!W163/'Population at Risk'!W$5","v":9.3291581227388613E-3},{"$f":"'Population at Risk'!X163/'Population at Risk'!X$5","v":9.2028096542533799E-3},{"$f":"'Population at Risk'!Y163/'Population at Risk'!Y$5","v":8.2326235533835522E-3},{"$f":"'Population at Risk'!Z163/'Population at Risk'!Z$5","v":6.0457442912811203E-3},{"$f":"'Population at Risk'!AA163/'Population at Risk'!AA$5","v":6.6647470606650957E-3},{"$f":"'Population at Risk'!AB163/'Population at Risk'!AB$5","v":7.5284852147518453E-3},{"$f":"'Population at Risk'!AC163/'Population at Risk'!AC$5","v":5.7512524264999284E-3},{"$f":"'Population at Risk'!AD163/'Population at Risk'!AD$5","v":1.1850881325793419E-2},{"$f":"'Population at Risk'!AE163/'Population at Risk'!AE$5","v":1.2162937386588892E-2},{"$f":"'Population at Risk'!AF163/'Population at Risk'!AF$5","v":6.2585879257431197E-3},{"$f":"'Population at Risk'!AG163/'Population at Risk'!AG$5","v":1.1304985746325462E-2},{"$f":"'Population at Risk'!AH163/'Population at Risk'!AH$5","v":8.1538612288019289E-3},{"$f":"'Population at Risk'!AI163/'Population at Risk'!AI$5","v":8.2027238025453222E-3},{"$f":"'Population at Risk'!AJ163/'Population at Risk'!AJ$5","v":1.0307458941341613E-2},{"$f":"'Population at Risk'!AK163/'Population at Risk'!AK$5","v":1.1187710784608843E-2},{"$f":"'Population at Risk'!AL163/'Population at Risk'!AL$5","v":5.9244584215651167E-3},{"$f":"'Population at Risk'!AM163/'Population at Risk'!AM$5","v":8.6541147806601867E-3},{"$f":"'Population at Risk'!AN163/'Population at Risk'!AN$5","v":1.0147179378002125E-2},{"$f":"'Population at Risk'!AO163/'Population at Risk'!AO$5","v":1.0147179378002125E-2},{"$f":"'Population at Risk'!AP163/'Population at Risk'!AP$5","v":8.0575200033104373E-3},{"$f":"'Population at Risk'!AQ163/'Population at Risk'!AQ$5","v":6.2544187843291341E-3},{"$f":"'Population at Risk'!AR163/'Population at Risk'!AR$5","v":8.2949675533544476E-3},{"$f":"'Population at Risk'!AS163/'Population at Risk'!AS$5","v":1.3819203205486179E-2},{"$f":"'Population at Risk'!AT163/'Population at Risk'!AT$5","v":1.3147291835362774E-2},{"$f":"'Population at Risk'!AU163/'Population at Risk'!AU$5","v":1.3147291835362774E-2},{"$f":"'Population at Risk'!AV163/'Population at Risk'!AV$5","v":7.9252163723973201E-3},{"$f":"'Population at Risk'!AW163/'Population at Risk'!AW$5","v":7.4507619172643402E-3},{"$f":"'Population at Risk'!AX163/'Population at Risk'!AX$5","v":6.2315171878001832E-3},{"$f":"'Population at Risk'!AY163/'Population at Risk'!AY$5","v":8.6708824702029993E-3},{"$f":"'Population at Risk'!AZ163/'Population at Risk'!AZ$5","v":8.0581377804712761E-3},{"$f":"'Population at Risk'!BA163/'Population at Risk'!BA$5","v":6.7865501522938708E-3},{"$f":"'Population at Risk'!BB163/'Population at Risk'!BB$5","v":1.1035283514720528E-2},{"$f":"'Population at Risk'!BC163/'Population at Risk'!BC$5","v":3.5066443259991503E-2},161]
[null,"Male 45-49",{"$f":"'Population at Risk'!C164/'Population at Risk'!C$5","v":5.6956733498221375E-3},{"$f":"'Population at Risk'!D164/'Population at Risk'!D$5","v":7.7884469924379357E-3},{"$f":"'Population at Risk'!E164/'Population at Risk'!E$5","v":9.6796697723790081E-3},{"$f":"'Population at Risk'!F164/'Population at Risk'!F$5","v":1.6602310838897277E-2},{"$f":"'Population at Risk'!G164/'Population at Risk'!G$5","v":1.8286869723627208E-2},{"$f":"'Population at Risk'!H164/'Population at Risk'!H$5","v":9.2988318052217023E-3},{"$f":"'Population at Risk'!I164/'Population at Risk'!I$5","v":1.6631166893999648E-2},{"$f":"'Population at Risk'!J164/'Population at Risk'!J$5","v":8.1852166493128539E-3},{"$f":"'Population at Risk'!K164/'Population at Risk'!K$5","v":1.1092986350840404E-2},{"$f":"'Population at Risk'!L164/'Population at Risk'!L$5","v":1.7608804469361715E-2},{"$f":"'Population at Risk'!M164/'Population at Risk'!M$5","v":1.7841261081938356E-2},{"$f":"'Population at Risk'!N164/'Population at Risk'!N$5","v":4.4790305488179782E-3},{"$f":"'Population at Risk'!O164/'Population at Risk'!O$5","v":1.078582617834835E-2},{"$f":"'Population at Risk'!P164/'Population at Risk'!P$5","v":2.9723124612132442E-3},{"$f":"'Population at Risk'!Q164/'Population at Risk'!Q$5","v":1.0260298073930555E-2},{"$f":"'Population at Risk'!R164/'Population at Risk'!R$5","v":4.5120516347892112E-3},{"$f":"'Population at Risk'!S164/'Population at Risk'!S$5","v":9.531979624995213E-3},{"$f":"'Population at Risk'!T164/'Population at Risk'!T$5","v":5.8840184320955724E-3},{"$f":"'Population at Risk'!U164/'Population at Risk'!U$5","v":4.2668175736412614E-2},{"$f":"'Population at Risk'!V164/'Population at Risk'!V$5","v":9.5567429421178178E-3},{"$f":"'Population at Risk'!W164/'Population at Risk'!W$5","v":1.0828396255729284E-2},{"$f":"'Population at Risk'!X164/'Population at Risk'!X$5","v":1.0681743013811279E-2},{"$f":"'Population at Risk'!Y164/'Population at Risk'!Y$5","v":9.7822812985530871E-3},{"$f":"'Population at Risk'!Z164/'Population at Risk'!Z$5","v":6.1208736218314888E-3},{"$f":"'Population at Risk'!AA164/'Population at Risk'!AA$5","v":7.4819862647040178E-3},{"$f":"'Population at Risk'!AB164/'Population at Risk'!AB$5","v":8.5157356034942632E-3},{"$f":"'Population at Risk'!AC164/'Population at Risk'!AC$5","v":6.3084581478775933E-3},{"$f":"'Population at Risk'!AD164/'Population at Risk'!AD$5","v":1.5147630476775928E-2},{"$f":"'Population at Risk'!AE164/'Population at Risk'!AE$5","v":1.5477276643345925E-2},{"$f":"'Population at Risk'!AF164/'Population at Risk'!AF$5","v":7.009702496571295E-3},{"$f":"'Population at Risk'!AG164/'Population at Risk'!AG$5","v":1.4385537496714213E-2},{"$f":"'Population at Risk'!AH164/'Population at Risk'!AH$5","v":9.3967048225626435E-3},{"$f":"'Population at Risk'!AI164/'Population at Risk'!AI$5","v":8.0984832004040927E-3},{"$f":"'Population at Risk'!AJ164/'Population at Risk'!AJ$5","v":1.1635446548142584E-2},{"$f":"'Population at Risk'!AK164/'Population at Risk'!AK$5","v":1.3202692740736708E-2},{"$f":"'Population at Risk'!AL164/'Population at Risk'!AL$5","v":7.5391767568506983E-3},{"$f":"'Population at Risk'!AM164/'Population at Risk'!AM$5","v":9.4161166454465386E-3},{"$f":"'Population at Risk'!AN164/'Population at Risk'!AN$5","v":1.283847982512991E-2},{"$f":"'Population at Risk'!AO164/'Population at Risk'!AO$5","v":1.283847982512991E-2},{"$f":"'Population at Risk'!AP164/'Population at Risk'!AP$5","v":1.0245415211082541E-2},{"$f":"'Population at Risk'!AQ164/'Population at Risk'!AQ$5","v":7.86931089382026E-3},{"$f":"'Population at Risk'!AR164/'Population at Risk'!AR$5","v":9.5403328408320675E-3},{"$f":"'Population at Risk'!AS164/'Population at Risk'!AS$5","v":1.6631166893999648E-2},{"$f":"'Population at Risk'!AT164/'Population at Risk'!AT$5","v":1.5282414439765411E-2},{"$f":"'Population at Risk'!AU164/'Population at Risk'!AU$5","v":1.5282414439765411E-2},{"$f":"'Population at Risk'!AV164/'Population at Risk'!AV$5","v":9.6795931266583212E-3},{"$f":"'Population at Risk'!AW164/'Population at Risk'!AW$5","v":9.137092109467719E-3},{"$f":"'Population at Risk'!AX164/'Population at Risk'!AX$5","v":7.2995725655543913E-3},{"$f":"'Population at Risk'!AY164/'Population at Risk'!AY$5","v":1.0145793645645775E-2},{"$f":"'Population at Risk'!AZ164/'Population at Risk'!AZ$5","v":9.4999901466545668E-3},{"$f":"'Population at Risk'!BA164/'Population at Risk'!BA$5","v":8.0689541703566989E-3},{"$f":"'Population at Risk'!BB164/'Population at Risk'!BB$5","v":1.2294630868260737E-2},{"$f":"'Population at Risk'!BC164/'Population at Risk'!BC$5","v":4.5806272927595676E-2},162]
[null,"Male 50-54",{"$f":"'Population at Risk'!C165/'Population at Risk'!C$5","v":5.8210326675694193E-3},{"$f":"'Population at Risk'!D165/'Population at Risk'!D$5","v":7.7986446317079034E-3},{"$f":"'Population at Risk'!E165/'Population at Risk'!E$5","v":9.5881704063714435E-3},{"$f":"'Population at Risk'!F165/'Population at Risk'!F$5","v":1.9320817876845368E-2},{"$f":"'Population at Risk'!G165/'Population at Risk'!G$5","v":2.0450304351202611E-2},{"$f":"'Population at Risk'!H165/'Population at Risk'!H$5","v":1.0400435573087688E-2},{"$f":"'Population at Risk'!I165/'Population at Risk'!I$5","v":1.9103202002600038E-2},{"$f":"'Population at Risk'!J165/'Population at Risk'!J$5","v":8.7791552723922462E-3},{"$f":"'Population at Risk'!K165/'Population at Risk'!K$5","v":1.1392796792755009E-2},{"$f":"'Population at Risk'!L165/'Population at Risk'!L$5","v":2.0484473491929802E-2},{"$f":"'Population at Risk'!M165/'Population at Risk'!M$5","v":2.07548922660513E-2},{"$f":"'Population at Risk'!N165/'Population at Risk'!N$5","v":5.7395960326170493E-3},{"$f":"'Population at Risk'!O165/'Population at Risk'!O$5","v":1.2232045979204582E-2},{"$f":"'Population at Risk'!P165/'Population at Risk'!P$5","v":3.0478797271762926E-3},{"$f":"'Population at Risk'!Q165/'Population at Risk'!Q$5","v":1.0477785688963997E-2},{"$f":"'Population at Risk'!R165/'Population at Risk'!R$5","v":5.7399214239285705E-3},{"$f":"'Population at Risk'!S165/'Population at Risk'!S$5","v":9.8633695613888524E-3},{"$f":"'Population at Risk'!T165/'Population at Risk'!T$5","v":5.7815734683224805E-3},{"$f":"'Population at Risk'!U165/'Population at Risk'!U$5","v":4.0690180834724615E-2},{"$f":"'Population at Risk'!V165/'Population at Risk'!V$5","v":9.9110015166963238E-3},{"$f":"'Population at Risk'!W165/'Population at Risk'!W$5","v":1.1284809164295322E-2},{"$f":"'Population at Risk'!X165/'Population at Risk'!X$5","v":1.1131974542317551E-2},{"$f":"'Population at Risk'!Y165/'Population at Risk'!Y$5","v":1.0294869006165809E-2},{"$f":"'Population at Risk'!Z165/'Population at Risk'!Z$5","v":6.1420449756349037E-3},{"$f":"'Population at Risk'!AA165/'Population at Risk'!AA$5","v":7.8181179735532895E-3},{"$f":"'Population at Risk'!AB165/'Population at Risk'!AB$5","v":8.5748726562963045E-3},{"$f":"'Population at Risk'!AC165/'Population at Risk'!AC$5","v":6.7974097238961478E-3},{"$f":"'Population at Risk'!AD165/'Population at Risk'!AD$5","v":1.7551952976774844E-2},{"$f":"'Population at Risk'!AE165/'Population at Risk'!AE$5","v":1.824107604394341E-2},{"$f":"'Population at Risk'!AF165/'Population at Risk'!AF$5","v":8.352356954869777E-3},{"$f":"'Population at Risk'!AG165/'Population at Risk'!AG$5","v":1.6954383478270323E-2},{"$f":"'Population at Risk'!AH165/'Population at Risk'!AH$5","v":9.4814143315876762E-3},{"$f":"'Population at Risk'!AI165/'Population at Risk'!AI$5","v":8.1107397016532846E-3},{"$f":"'Population at Risk'!AJ165/'Population at Risk'!AJ$5","v":1.1729407085543464E-2},{"$f":"'Population at Risk'!AK165/'Population at Risk'!AK$5","v":1.3527016820345388E-2},{"$f":"'Population at Risk'!AL165/'Population at Risk'!AL$5","v":8.4564059765268977E-3},{"$f":"'Population at Risk'!AM165/'Population at Risk'!AM$5","v":9.2919568768336756E-3},{"$f":"'Population at Risk'!AN165/'Population at Risk'!AN$5","v":1.6880223473781916E-2},{"$f":"'Population at Risk'!AO165/'Population at Risk'!AO$5","v":1.6880223473781916E-2},{"$f":"'Population at Risk'!AP165/'Population at Risk'!AP$5","v":1.2044941329350559E-2},{"$f":"'Population at Risk'!AQ165/'Population at Risk'!AQ$5","v":9.0970957139327301E-3},{"$f":"'Population at Risk'!AR165/'Population at Risk'!AR$5","v":1.0233350564655491E-2},{"$f":"'Population at Risk'!AS165/'Population at Risk'!AS$5","v":1.9103202002600038E-2},{"$f":"'Population at Risk'!AT165/'Population at Risk'!AT$5","v":1.7432411908477656E-2},{"$f":"'Population at Risk'!AU165/'Population at Risk'!AU$5","v":1.7432411908477656E-2},{"$f":"'Population at Risk'!AV165/'Population at Risk'!AV$5","v":1.0654600686746478E-2},{"$f":"'Population at Risk'!AW165/'Population at Risk'!AW$5","v":9.426090256777573E-3},{"$f":"'Population at Risk'!AX165/'Population at Risk'!AX$5","v":8.0694493595777073E-3},{"$f":"'Population at Risk'!AY165/'Population at Risk'!AY$5","v":1.1339718712506336E-2},{"$f":"'Population at Risk'!AZ165/'Population at Risk'!AZ$5","v":1.1282010404983462E-2},{"$f":"'Population at Risk'!BA165/'Population at Risk'!BA$5","v":8.9183177672363511E-3},{"$f":"'Population at Risk'!BB165/'Population at Risk'!BB$5","v":1.2491213906793886E-2},{"$f":"'Population at Risk'!BC165/'Population at Risk'!BC$5","v":4.3682803321680647E-2},163]
[null,"Male 55-59",{"$f":"'Population at Risk'!C166/'Population at Risk'!C$5","v":6.2939595097449346E-3},{"$f":"'Population at Risk'!D166/'Population at Risk'!D$5","v":8.6765020196995189E-3},{"$f":"'Population at Risk'!E166/'Population at Risk'!E$5","v":1.0828556888662673E-2},{"$f":"'Population at Risk'!F166/'Population at Risk'!F$5","v":2.184308534609615E-2},{"$f":"'Population at Risk'!G166/'Population at Risk'!G$5","v":2.5186591878533515E-2},{"$f":"'Population at Risk'!H166/'Population at Risk'!H$5","v":1.1106856118327983E-2},{"$f":"'Population at Risk'!I166/'Population at Risk'!I$5","v":2.283178560313303E-2},{"$f":"'Population at Risk'!J166/'Population at Risk'!J$5","v":1.0048928159638515E-2},{"$f":"'Population at Risk'!K166/'Population at Risk'!K$5","v":1.3746108935944154E-2},{"$f":"'Population at Risk'!L166/'Population at Risk'!L$5","v":2.3976828190804867E-2},{"$f":"'Population at Risk'!M166/'Population at Risk'!M$5","v":2.4293350091611043E-2},{"$f":"'Population at Risk'!N166/'Population at Risk'!N$5","v":6.4973721149556738E-3},{"$f":"'Population at Risk'!O166/'Population at Risk'!O$5","v":1.1751281703286048E-2},{"$f":"'Population at Risk'!P166/'Population at Risk'!P$5","v":3.5476406373277109E-3},{"$f":"'Population at Risk'!Q166/'Population at Risk'!Q$5","v":1.3088586638392675E-2},{"$f":"'Population at Risk'!R166/'Population at Risk'!R$5","v":6.8549296174696657E-3},{"$f":"'Population at Risk'!S166/'Population at Risk'!S$5","v":1.1257133532930804E-2},{"$f":"'Population at Risk'!T166/'Population at Risk'!T$5","v":5.9385568428107815E-3},{"$f":"'Population at Risk'!U166/'Population at Risk'!U$5","v":4.8859446244021588E-2},{"$f":"'Population at Risk'!V166/'Population at Risk'!V$5","v":1.0267104748969951E-2},{"$f":"'Population at Risk'!W166/'Population at Risk'!W$5","v":1.3477752120145377E-2},{"$f":"'Population at Risk'!X166/'Population at Risk'!X$5","v":1.329521760667661E-2},{"$f":"'Population at Risk'!Y166/'Population at Risk'!Y$5","v":1.1157398855055706E-2},{"$f":"'Population at Risk'!Z166/'Population at Risk'!Z$5","v":6.6462601424214533E-3},{"$f":"'Population at Risk'!AA166/'Population at Risk'!AA$5","v":8.6409746033574986E-3},{"$f":"'Population at Risk'!AB166/'Population at Risk'!AB$5","v":9.6655237388239661E-3},{"$f":"'Population at Risk'!AC166/'Population at Risk'!AC$5","v":7.5816598744689592E-3},{"$f":"'Population at Risk'!AD166/'Population at Risk'!AD$5","v":2.1295836353433649E-2},{"$f":"'Population at Risk'!AE166/'Population at Risk'!AE$5","v":2.1976465710833653E-2},{"$f":"'Population at Risk'!AF166/'Population at Risk'!AF$5","v":1.0865247286638275E-2},{"$f":"'Population at Risk'!AG166/'Population at Risk'!AG$5","v":2.0426285503165043E-2},{"$f":"'Population at Risk'!AH166/'Population at Risk'!AH$5","v":1.0366344440839264E-2},{"$f":"'Population at Risk'!AI166/'Population at Risk'!AI$5","v":8.8869934498894791E-3},{"$f":"'Population at Risk'!AJ166/'Population at Risk'!AJ$5","v":1.321434124999352E-2},{"$f":"'Population at Risk'!AK166/'Population at Risk'!AK$5","v":1.5852151214586725E-2},{"$f":"'Population at Risk'!AL166/'Population at Risk'!AL$5","v":9.8479630033578725E-3},{"$f":"'Population at Risk'!AM166/'Population at Risk'!AM$5","v":9.3721527293953878E-3},{"$f":"'Population at Risk'!AN166/'Population at Risk'!AN$5","v":2.1960774987900021E-2},{"$f":"'Population at Risk'!AO166/'Population at Risk'!AO$5","v":2.1960774987900021E-2},{"$f":"'Population at Risk'!AP166/'Population at Risk'!AP$5","v":1.3704255923568642E-2},{"$f":"'Population at Risk'!AQ166/'Population at Risk'!AQ$5","v":9.5958154129974146E-3},{"$f":"'Population at Risk'!AR166/'Population at Risk'!AR$5","v":1.1600702824217489E-2},{"$f":"'Population at Risk'!AS166/'Population at Risk'!AS$5","v":2.283178560313303E-2},{"$f":"'Population at Risk'!AT166/'Population at Risk'!AT$5","v":1.9131330331300957E-2},{"$f":"'Population at Risk'!AU166/'Population at Risk'!AU$5","v":1.9131330331300957E-2},{"$f":"'Population at Risk'!AV166/'Population at Risk'!AV$5","v":1.1660024890814569E-2},{"$f":"'Population at Risk'!AW166/'Population at Risk'!AW$5","v":1.1083814890074414E-2},{"$f":"'Population at Risk'!AX166/'Population at Risk'!AX$5","v":8.9010781093737511E-3},{"$f":"'Population at Risk'!AY166/'Population at Risk'!AY$5","v":1.3163393771129408E-2},{"$f":"'Population at Risk'!AZ166/'Population at Risk'!AZ$5","v":1.2789385763959273E-2},{"$f":"'Population at Risk'!BA166/'Population at Risk'!BA$5","v":1.0476620821407445E-2},{"$f":"'Population at Risk'!BB166/'Population at Risk'!BB$5","v":1.3703581752672214E-2},{"$f":"'Population at Risk'!BC166/'Population at Risk'!BC$5","v":5.2452890031454869E-2},164]
[null,"Male 60-64",{"$f":"'Population at Risk'!C167/'Population at Risk'!C$5","v":5.6492772790741235E-3},{"$f":"'Population at Risk'!D167/'Population at Risk'!D$5","v":8.0019047648536602E-3},{"$f":"'Population at Risk'!E167/'Population at Risk'!E$5","v":1.0123878566190047E-2},{"$f":"'Population at Risk'!F167/'Population at Risk'!F$5","v":1.8587340917816237E-2},{"$f":"'Population at Risk'!G167/'Population at Risk'!G$5","v":2.442012092964679E-2},{"$f":"'Population at Risk'!H167/'Population at Risk'!H$5","v":1.0701892933933631E-2},{"$f":"'Population at Risk'!I167/'Population at Risk'!I$5","v":2.0145693179235025E-2},{"$f":"'Population at Risk'!J167/'Population at Risk'!J$5","v":8.8041285002238342E-3},{"$f":"'Population at Risk'!K167/'Population at Risk'!K$5","v":1.1260110511358508E-2},{"$f":"'Population at Risk'!L167/'Population at Risk'!L$5","v":2.3202647603447448E-2},{"$f":"'Population at Risk'!M167/'Population at Risk'!M$5","v":2.3508949423885709E-2},{"$f":"'Population at Risk'!N167/'Population at Risk'!N$5","v":5.4508155326809344E-3},{"$f":"'Population at Risk'!O167/'Population at Risk'!O$5","v":1.1207393489809975E-2},{"$f":"'Population at Risk'!P167/'Population at Risk'!P$5","v":3.1329813420556412E-3},{"$f":"'Population at Risk'!Q167/'Population at Risk'!Q$5","v":1.1528564393053857E-2},{"$f":"'Population at Risk'!R167/'Population at Risk'!R$5","v":5.3396293862395293E-3},{"$f":"'Population at Risk'!S167/'Population at Risk'!S$5","v":9.5795230749611306E-3},{"$f":"'Population at Risk'!T167/'Population at Risk'!T$5","v":4.8815321620515797E-3},{"$f":"'Population at Risk'!U167/'Population at Risk'!U$5","v":4.7067703504466492E-2},{"$f":"'Population at Risk'!V167/'Population at Risk'!V$5","v":8.5090388672970137E-3},{"$f":"'Population at Risk'!W167/'Population at Risk'!W$5","v":1.1274747214065177E-2},{"$f":"'Population at Risk'!X167/'Population at Risk'!X$5","v":1.1122048865048464E-2},{"$f":"'Population at Risk'!Y167/'Population at Risk'!Y$5","v":9.4925513819191232E-3},{"$f":"'Population at Risk'!Z167/'Population at Risk'!Z$5","v":5.5505021042665135E-3},{"$f":"'Population at Risk'!AA167/'Population at Risk'!AA$5","v":7.2753354519428694E-3},{"$f":"'Population at Risk'!AB167/'Population at Risk'!AB$5","v":8.782157194081994E-3},{"$f":"'Population at Risk'!AC167/'Population at Risk'!AC$5","v":6.2364058599909651E-3},{"$f":"'Population at Risk'!AD167/'Population at Risk'!AD$5","v":2.0313699608366619E-2},{"$f":"'Population at Risk'!AE167/'Population at Risk'!AE$5","v":2.0798758246046819E-2},{"$f":"'Population at Risk'!AF167/'Population at Risk'!AF$5","v":8.1436197862670423E-3},{"$f":"'Population at Risk'!AG167/'Population at Risk'!AG$5","v":1.9331651396322022E-2},{"$f":"'Population at Risk'!AH167/'Population at Risk'!AH$5","v":8.9694088198673284E-3},{"$f":"'Population at Risk'!AI167/'Population at Risk'!AI$5","v":7.5512355527545243E-3},{"$f":"'Population at Risk'!AJ167/'Population at Risk'!AJ$5","v":1.2565081708808866E-2},{"$f":"'Population at Risk'!AK167/'Population at Risk'!AK$5","v":1.3775881928684511E-2},{"$f":"'Population at Risk'!AL167/'Population at Risk'!AL$5","v":8.7431361290199391E-3},{"$f":"'Population at Risk'!AM167/'Population at Risk'!AM$5","v":7.9949004783847061E-3},{"$f":"'Population at Risk'!AN167/'Population at Risk'!AN$5","v":1.7539628868223776E-2},{"$f":"'Population at Risk'!AO167/'Population at Risk'!AO$5","v":1.7539628868223776E-2},{"$f":"'Population at Risk'!AP167/'Population at Risk'!AP$5","v":1.2927957438472231E-2},{"$f":"'Population at Risk'!AQ167/'Population at Risk'!AQ$5","v":7.7221799217734666E-3},{"$f":"'Population at Risk'!AR167/'Population at Risk'!AR$5","v":1.0272701206465812E-2},{"$f":"'Population at Risk'!AS167/'Population at Risk'!AS$5","v":2.0145693179235025E-2},{"$f":"'Population at Risk'!AT167/'Population at Risk'!AT$5","v":1.8847903215281681E-2},{"$f":"'Population at Risk'!AU167/'Population at Risk'!AU$5","v":1.8847903215281681E-2},{"$f":"'Population at Risk'!AV167/'Population at Risk'!AV$5","v":1.2118404247701629E-2},{"$f":"'Population at Risk'!AW167/'Population at Risk'!AW$5","v":9.7031654743247268E-3},{"$f":"'Population at Risk'!AX167/'Population at Risk'!AX$5","v":8.1709115457141851E-3},{"$f":"'Population at Risk'!AY167/'Population at Risk'!AY$5","v":1.1354523728952627E-2},{"$f":"'Population at Risk'!AZ167/'Population at Risk'!AZ$5","v":1.1316874034363256E-2},{"$f":"'Population at Risk'!BA167/'Population at Risk'!BA$5","v":9.2218164264479974E-3},{"$f":"'Population at Risk'!BB167/'Population at Risk'!BB$5","v":1.1196585382467603E-2},{"$f":"'Population at Risk'!BC167/'Population at Risk'!BC$5","v":5.0529370791937485E-2},165]
[null,"Male 65-69",{"$f":"'Population at Risk'!C168/'Population at Risk'!C$5","v":5.3273181574976566E-3},{"$f":"'Population at Risk'!D168/'Population at Risk'!D$5","v":8.0782722260312502E-3},{"$f":"'Population at Risk'!E168/'Population at Risk'!E$5","v":1.0552604307256888E-2},{"$f":"'Population at Risk'!F168/'Population at Risk'!F$5","v":2.1668335450870768E-2},{"$f":"'Population at Risk'!G168/'Population at Risk'!G$5","v":2.7951845501870382E-2},{"$f":"'Population at Risk'!H168/'Population at Risk'!H$5","v":1.1451172999385096E-2},{"$f":"'Population at Risk'!I168/'Population at Risk'!I$5","v":2.1805001451828978E-2},{"$f":"'Population at Risk'!J168/'Population at Risk'!J$5","v":9.0141628035086113E-3},{"$f":"'Population at Risk'!K168/'Population at Risk'!K$5","v":1.1911592755196867E-2},{"$f":"'Population at Risk'!L168/'Population at Risk'!L$5","v":2.4919411385673492E-2},{"$f":"'Population at Risk'!M168/'Population at Risk'!M$5","v":2.5248376476301668E-2},{"$f":"'Population at Risk'!N168/'Population at Risk'!N$5","v":5.4804947494856895E-3},{"$f":"'Population at Risk'!O168/'Population at Risk'!O$5","v":1.1678908157277474E-2},{"$f":"'Population at Risk'!P168/'Population at Risk'!P$5","v":3.4075396347399288E-3},{"$f":"'Population at Risk'!Q168/'Population at Risk'!Q$5","v":1.0773805703104241E-2},{"$f":"'Population at Risk'!R168/'Population at Risk'!R$5","v":4.705656386951201E-3},{"$f":"'Population at Risk'!S168/'Population at Risk'!S$5","v":9.6158484769782848E-3},{"$f":"'Population at Risk'!T168/'Population at Risk'!T$5","v":4.3986379941137049E-3},{"$f":"'Population at Risk'!U168/'Population at Risk'!U$5","v":5.1174242121023852E-2},{"$f":"'Population at Risk'!V168/'Population at Risk'!V$5","v":9.1469388253702776E-3},{"$f":"'Population at Risk'!W168/'Population at Risk'!W$5","v":1.2024087470878802E-2},{"$f":"'Population at Risk'!X168/'Population at Risk'!X$5","v":1.1861240511175326E-2},{"$f":"'Population at Risk'!Y168/'Population at Risk'!Y$5","v":9.9718964052649701E-3},{"$f":"'Population at Risk'!Z168/'Population at Risk'!Z$5","v":4.4006819560087548E-3},{"$f":"'Population at Risk'!AA168/'Population at Risk'!AA$5","v":6.5767749311086681E-3},{"$f":"'Population at Risk'!AB168/'Population at Risk'!AB$5","v":8.9291769135358672E-3},{"$f":"'Population at Risk'!AC168/'Population at Risk'!AC$5","v":5.5277698513815322E-3},{"$f":"'Population at Risk'!AD168/'Population at Risk'!AD$5","v":2.1055694941300565E-2},{"$f":"'Population at Risk'!AE168/'Population at Risk'!AE$5","v":2.0461555344221765E-2},{"$f":"'Population at Risk'!AF168/'Population at Risk'!AF$5","v":7.6078517655653885E-3},{"$f":"'Population at Risk'!AG168/'Population at Risk'!AG$5","v":1.9018234178294163E-2},{"$f":"'Population at Risk'!AH168/'Population at Risk'!AH$5","v":8.2884996304604143E-3},{"$f":"'Population at Risk'!AI168/'Population at Risk'!AI$5","v":7.097082908928189E-3},{"$f":"'Population at Risk'!AJ168/'Population at Risk'!AJ$5","v":1.2634489923864138E-2},{"$f":"'Population at Risk'!AK168/'Population at Risk'!AK$5","v":1.4311765489502077E-2},{"$f":"'Population at Risk'!AL168/'Population at Risk'!AL$5","v":1.0401453915621599E-2},{"$f":"'Population at Risk'!AM168/'Population at Risk'!AM$5","v":8.0490632232037302E-3},{"$f":"'Population at Risk'!AN168/'Population at Risk'!AN$5","v":1.6950448407741563E-2},{"$f":"'Population at Risk'!AO168/'Population at Risk'!AO$5","v":1.6950448407741563E-2},{"$f":"'Population at Risk'!AP168/'Population at Risk'!AP$5","v":1.2496681754164258E-2},{"$f":"'Population at Risk'!AQ168/'Population at Risk'!AQ$5","v":8.0329361085130745E-3},{"$f":"'Population at Risk'!AR168/'Population at Risk'!AR$5","v":1.0305325514157767E-2},{"$f":"'Population at Risk'!AS168/'Population at Risk'!AS$5","v":2.1805001451828978E-2},{"$f":"'Population at Risk'!AT168/'Population at Risk'!AT$5","v":1.9616497890819252E-2},{"$f":"'Population at Risk'!AU168/'Population at Risk'!AU$5","v":1.9616497890819252E-2},{"$f":"'Population at Risk'!AV168/'Population at Risk'!AV$5","v":1.2140350502058139E-2},{"$f":"'Population at Risk'!AW168/'Population at Risk'!AW$5","v":8.3130991099520206E-3},{"$f":"'Population at Risk'!AX168/'Population at Risk'!AX$5","v":8.1837783562992705E-3},{"$f":"'Population at Risk'!AY168/'Population at Risk'!AY$5","v":1.2045520964361749E-2},{"$f":"'Population at Risk'!AZ168/'Population at Risk'!AZ$5","v":1.1954262820148833E-2},{"$f":"'Population at Risk'!BA168/'Population at Risk'!BA$5","v":7.9228029432708031E-3},{"$f":"'Population at Risk'!BB168/'Population at Risk'!BB$5","v":1.0721228829638298E-2},{"$f":"'Population at Risk'!BC168/'Population at Risk'!BC$5","v":5.4937931163015423E-2},166]
[null,"Male 70-74",{"$f":"'Population at Risk'!C169/'Population at Risk'!C$5","v":3.2947005063825906E-3},{"$f":"'Population at Risk'!D169/'Population at Risk'!D$5","v":5.4994391692597356E-3},{"$f":"'Population at Risk'!E169/'Population at Risk'!E$5","v":7.4772068339517654E-3},{"$f":"'Population at Risk'!F169/'Population at Risk'!F$5","v":1.4154673738213875E-2},{"$f":"'Population at Risk'!G169/'Population at Risk'!G$5","v":2.0184474795168352E-2},{"$f":"'Population at Risk'!H169/'Population at Risk'!H$5","v":8.6920326085849816E-3},{"$f":"'Population at Risk'!I169/'Population at Risk'!I$5","v":1.6092747309523574E-2},{"$f":"'Population at Risk'!J169/'Population at Risk'!J$5","v":6.4580764878336486E-3},{"$f":"'Population at Risk'!K169/'Population at Risk'!K$5","v":9.0981183927730681E-3},{"$f":"'Population at Risk'!L169/'Population at Risk'!L$5","v":1.9969665288519168E-2},{"$f":"'Population at Risk'!M169/'Population at Risk'!M$5","v":2.0233287998132156E-2},{"$f":"'Population at Risk'!N169/'Population at Risk'!N$5","v":3.8570479946678608E-3},{"$f":"'Population at Risk'!O169/'Population at Risk'!O$5","v":8.9774399798536308E-3},{"$f":"'Population at Risk'!P169/'Population at Risk'!P$5","v":1.8879611489775281E-3},{"$f":"'Population at Risk'!Q169/'Population at Risk'!Q$5","v":8.2011892906408545E-3},{"$f":"'Population at Risk'!R169/'Population at Risk'!R$5","v":3.9123656550513813E-3},{"$f":"'Population at Risk'!S169/'Population at Risk'!S$5","v":6.8487066408515311E-3},{"$f":"'Population at Risk'!T169/'Population at Risk'!T$5","v":2.609090222127125E-3},{"$f":"'Population at Risk'!U169/'Population at Risk'!U$5","v":3.6917084491075079E-2},{"$f":"'Population at Risk'!V169/'Population at Risk'!V$5","v":6.897856172370341E-3},{"$f":"'Population at Risk'!W169/'Population at Risk'!W$5","v":8.807157361090872E-3},{"$f":"'Population at Risk'!X169/'Population at Risk'!X$5","v":8.6878785548315813E-3},{"$f":"'Population at Risk'!Y169/'Population at Risk'!Y$5","v":7.3446403265944567E-3},{"$f":"'Population at Risk'!Z169/'Population at Risk'!Z$5","v":3.1220473290511619E-3},{"$f":"'Population at Risk'!AA169/'Population at Risk'!AA$5","v":4.8264441170536992E-3},{"$f":"'Population at Risk'!AB169/'Population at Risk'!AB$5","v":6.1981718096841658E-3},{"$f":"'Population at Risk'!AC169/'Population at Risk'!AC$5","v":4.0619825587210447E-3},{"$f":"'Population at Risk'!AD169/'Population at Risk'!AD$5","v":1.5817282952673282E-2},{"$f":"'Population at Risk'!AE169/'Population at Risk'!AE$5","v":1.5708907539956074E-2},{"$f":"'Population at Risk'!AF169/'Population at Risk'!AF$5","v":6.3965457581988327E-3},{"$f":"'Population at Risk'!AG169/'Population at Risk'!AG$5","v":1.4600829568140451E-2},{"$f":"'Population at Risk'!AH169/'Population at Risk'!AH$5","v":6.0738085963427287E-3},{"$f":"'Population at Risk'!AI169/'Population at Risk'!AI$5","v":4.8863630551605032E-3},{"$f":"'Population at Risk'!AJ169/'Population at Risk'!AJ$5","v":8.9701061392993119E-3},{"$f":"'Population at Risk'!AK169/'Population at Risk'!AK$5","v":1.0507372131533171E-2},{"$f":"'Population at Risk'!AL169/'Population at Risk'!AL$5","v":7.8249469823942295E-3},{"$f":"'Population at Risk'!AM169/'Population at Risk'!AM$5","v":5.6621669732664212E-3},{"$f":"'Population at Risk'!AN169/'Population at Risk'!AN$5","v":1.4125373673117969E-2},{"$f":"'Population at Risk'!AO169/'Population at Risk'!AO$5","v":1.4125373673117969E-2},{"$f":"'Population at Risk'!AP169/'Population at Risk'!AP$5","v":1.0034587170148452E-2},{"$f":"'Population at Risk'!AQ169/'Population at Risk'!AQ$5","v":5.9415725682792787E-3},{"$f":"'Population at Risk'!AR169/'Population at Risk'!AR$5","v":7.5461009338635091E-3},{"$f":"'Population at Risk'!AS169/'Population at Risk'!AS$5","v":1.6092747309523574E-2},{"$f":"'Population at Risk'!AT169/'Population at Risk'!AT$5","v":1.4659260156677203E-2},{"$f":"'Population at Risk'!AU169/'Population at Risk'!AU$5","v":1.4659260156677203E-2},{"$f":"'Population at Risk'!AV169/'Population at Risk'!AV$5","v":9.1911615829260909E-3},{"$f":"'Population at Risk'!AW169/'Population at Risk'!AW$5","v":6.3252889919600116E-3},{"$f":"'Population at Risk'!AX169/'Population at Risk'!AX$5","v":5.5948548423107548E-3},{"$f":"'Population at Risk'!AY169/'Population at Risk'!AY$5","v":8.7283055722697511E-3},{"$f":"'Population at Risk'!AZ169/'Population at Risk'!AZ$5","v":8.5855395128335912E-3},{"$f":"'Population at Risk'!BA169/'Population at Risk'!BA$5","v":6.051588177774684E-3},{"$f":"'Population at Risk'!BB169/'Population at Risk'!BB$5","v":8.0459128833225962E-3},{"$f":"'Population at Risk'!BC169/'Population at Risk'!BC$5","v":3.9632208752861733E-2},167]
[null,"Male 75-79",{"$f":"'Population at Risk'!C170/'Population at Risk'!C$5","v":1.5596655356789483E-3},{"$f":"'Population at Risk'!D170/'Population at Risk'!D$5","v":2.1593397799565882E-3},{"$f":"'Population at Risk'!E170/'Population at Risk'!E$5","v":2.7008689167473568E-3},{"$f":"'Population at Risk'!F170/'Population at Risk'!F$5","v":5.5302509093478197E-3},{"$f":"'Population at Risk'!G170/'Population at Risk'!G$5","v":7.9280790545267071E-3},{"$f":"'Population at Risk'!H170/'Population at Risk'!H$5","v":3.3606543257056237E-3},{"$f":"'Population at Risk'!I170/'Population at Risk'!I$5","v":6.2316979507054176E-3},{"$f":"'Population at Risk'!J170/'Population at Risk'!J$5","v":2.3657995009674759E-3},{"$f":"'Population at Risk'!K170/'Population at Risk'!K$5","v":3.1527319609201947E-3},{"$f":"'Population at Risk'!L170/'Population at Risk'!L$5","v":7.8366474286009347E-3},{"$f":"'Population at Risk'!M170/'Population at Risk'!M$5","v":7.9401002506468386E-3},{"$f":"'Population at Risk'!N170/'Population at Risk'!N$5","v":1.7549040079517084E-3},{"$f":"'Population at Risk'!O170/'Population at Risk'!O$5","v":3.505914217446106E-3},{"$f":"'Population at Risk'!P170/'Population at Risk'!P$5","v":5.4581783525490797E-4},{"$f":"'Population at Risk'!Q170/'Population at Risk'!Q$5","v":2.8455576395667427E-3},{"$f":"'Population at Risk'!R170/'Population at Risk'!R$5","v":1.621657067725003E-3},{"$f":"'Population at Risk'!S170/'Population at Risk'!S$5","v":2.6617707410334841E-3},{"$f":"'Population at Risk'!T170/'Population at Risk'!T$5","v":1.0898415102465234E-3},{"$f":"'Population at Risk'!U170/'Population at Risk'!U$5","v":1.4875224395247811E-2},{"$f":"'Population at Risk'!V170/'Population at Risk'!V$5","v":2.5622888572197056E-3},{"$f":"'Population at Risk'!W170/'Population at Risk'!W$5","v":3.4857152751770542E-3},{"$f":"'Population at Risk'!X170/'Population at Risk'!X$5","v":3.4385068582115834E-3},{"$f":"'Population at Risk'!Y170/'Population at Risk'!Y$5","v":2.7111511201224638E-3},{"$f":"'Population at Risk'!Z170/'Population at Risk'!Z$5","v":1.1633869620477685E-3},{"$f":"'Population at Risk'!AA170/'Population at Risk'!AA$5","v":1.8598440107805041E-3},{"$f":"'Population at Risk'!AB170/'Population at Risk'!AB$5","v":2.5480538979558297E-3},{"$f":"'Population at Risk'!AC170/'Population at Risk'!AC$5","v":1.4844906341761025E-3},{"$f":"'Population at Risk'!AD170/'Population at Risk'!AD$5","v":5.8268765074344251E-3},{"$f":"'Population at Risk'!AE170/'Population at Risk'!AE$5","v":5.582345764495707E-3},{"$f":"'Population at Risk'!AF170/'Population at Risk'!AF$5","v":2.3781741662732233E-3},{"$f":"'Population at Risk'!AG170/'Population at Risk'!AG$5","v":5.1885771744799788E-3},{"$f":"'Population at Risk'!AH170/'Population at Risk'!AH$5","v":2.4731148919414632E-3},{"$f":"'Population at Risk'!AI170/'Population at Risk'!AI$5","v":1.8766628671126986E-3},{"$f":"'Population at Risk'!AJ170/'Population at Risk'!AJ$5","v":3.4332785081999649E-3},{"$f":"'Population at Risk'!AK170/'Population at Risk'!AK$5","v":4.8573948412992647E-3},{"$f":"'Population at Risk'!AL170/'Population at Risk'!AL$5","v":3.0582830086064595E-3},{"$f":"'Population at Risk'!AM170/'Population at Risk'!AM$5","v":2.1594637316864184E-3},{"$f":"'Population at Risk'!AN170/'Population at Risk'!AN$5","v":5.3032761020167726E-3},{"$f":"'Population at Risk'!AO170/'Population at Risk'!AO$5","v":5.3032761020167726E-3},{"$f":"'Population at Risk'!AP170/'Population at Risk'!AP$5","v":4.0140478884534772E-3},{"$f":"'Population at Risk'!AQ170/'Population at Risk'!AQ$5","v":2.1918862553020873E-3},{"$f":"'Population at Risk'!AR170/'Population at Risk'!AR$5","v":2.9303822046931193E-3},{"$f":"'Population at Risk'!AS170/'Population at Risk'!AS$5","v":6.2316979507054176E-3},{"$f":"'Population at Risk'!AT170/'Population at Risk'!AT$5","v":5.7771969537333354E-3},{"$f":"'Population at Risk'!AU170/'Population at Risk'!AU$5","v":5.7771969537333354E-3},{"$f":"'Population at Risk'!AV170/'Population at Risk'!AV$5","v":3.4887685460188132E-3},{"$f":"'Population at Risk'!AW170/'Population at Risk'!AW$5","v":2.7198647594742155E-3},{"$f":"'Population at Risk'!AX170/'Population at Risk'!AX$5","v":2.1352645124666581E-3},{"$f":"'Population at Risk'!AY170/'Population at Risk'!AY$5","v":3.4966936246329057E-3},{"$f":"'Population at Risk'!AZ170/'Population at Risk'!AZ$5","v":3.4740645540757161E-3},{"$f":"'Population at Risk'!BA170/'Population at Risk'!BA$5","v":1.9466517166735556E-3},{"$f":"'Population at Risk'!BB170/'Population at Risk'!BB$5","v":3.0173034612498086E-3},{"$f":"'Population at Risk'!BC170/'Population at Risk'!BC$5","v":1.5969245854738252E-2},168]
[null,"Male 80-84",{"$f":"'Population at Risk'!C171/'Population at Risk'!C$5","v":1.1011447100450482E-3},{"$f":"'Population at Risk'!D171/'Population at Risk'!D$5","v":1.4883034149286945E-3},{"$f":"'Population at Risk'!E171/'Population at Risk'!E$5","v":1.8384323649223487E-3},{"$f":"'Population at Risk'!F171/'Population at Risk'!F$5","v":3.6352698285223427E-3},{"$f":"'Population at Risk'!G171/'Population at Risk'!G$5","v":4.7326253345470817E-3},{"$f":"'Population at Risk'!H171/'Population at Risk'!H$5","v":2.0726616156233608E-3},{"$f":"'Population at Risk'!I171/'Population at Risk'!I$5","v":4.0712720028388332E-3},{"$f":"'Population at Risk'!J171/'Population at Risk'!J$5","v":1.6738031469344891E-3},{"$f":"'Population at Risk'!K171/'Population at Risk'!K$5","v":2.006283975131033E-3},{"$f":"'Population at Risk'!L171/'Population at Risk'!L$5","v":5.3077369068428503E-3},{"$f":"'Population at Risk'!M171/'Population at Risk'!M$5","v":5.3778051811518464E-3},{"$f":"'Population at Risk'!N171/'Population at Risk'!N$5","v":1.1965254599670737E-3},{"$f":"'Population at Risk'!O171/'Population at Risk'!O$5","v":2.2310363201929768E-3},{"$f":"'Population at Risk'!P171/'Population at Risk'!P$5","v":5.5384456812630366E-4},{"$f":"'Population at Risk'!Q171/'Population at Risk'!Q$5","v":2.2340481181698782E-3},{"$f":"'Population at Risk'!R171/'Population at Risk'!R$5","v":1.2162428007937522E-3},{"$f":"'Population at Risk'!S171/'Population at Risk'!S$5","v":1.8105673061754571E-3},{"$f":"'Population at Risk'!T171/'Population at Risk'!T$5","v":9.1238651779470853E-4},{"$f":"'Population at Risk'!U171/'Population at Risk'!U$5","v":8.8242856581978533E-3},{"$f":"'Population at Risk'!V171/'Population at Risk'!V$5","v":1.5226716569543333E-3},{"$f":"'Population at Risk'!W171/'Population at Risk'!W$5","v":2.2058420726085671E-3},{"$f":"'Population at Risk'!X171/'Population at Risk'!X$5","v":2.1759674832910574E-3},{"$f":"'Population at Risk'!Y171/'Population at Risk'!Y$5","v":1.7494252160249681E-3},{"$f":"'Population at Risk'!Z171/'Population at Risk'!Z$5","v":8.0207735141179929E-4},{"$f":"'Population at Risk'!AA171/'Population at Risk'!AA$5","v":1.2629411947551383E-3},{"$f":"'Population at Risk'!AB171/'Population at Risk'!AB$5","v":1.6583213958170006E-3},{"$f":"'Population at Risk'!AC171/'Population at Risk'!AC$5","v":1.0750029750652894E-3},{"$f":"'Population at Risk'!AD171/'Population at Risk'!AD$5","v":3.865102122899154E-3},{"$f":"'Population at Risk'!AE171/'Population at Risk'!AE$5","v":3.9215785432969146E-3},{"$f":"'Population at Risk'!AF171/'Population at Risk'!AF$5","v":1.5669278385258153E-3},{"$f":"'Population at Risk'!AG171/'Population at Risk'!AG$5","v":3.644957474166587E-3},{"$f":"'Population at Risk'!AH171/'Population at Risk'!AH$5","v":1.5694767583474671E-3},{"$f":"'Population at Risk'!AI171/'Population at Risk'!AI$5","v":1.3640468394154213E-3},{"$f":"'Population at Risk'!AJ171/'Population at Risk'!AJ$5","v":2.2256427538621865E-3},{"$f":"'Population at Risk'!AK171/'Population at Risk'!AK$5","v":2.7215190954797304E-3},{"$f":"'Population at Risk'!AL171/'Population at Risk'!AL$5","v":1.9533089612078555E-3},{"$f":"'Population at Risk'!AM171/'Population at Risk'!AM$5","v":1.3043569348602361E-3},{"$f":"'Population at Risk'!AN171/'Population at Risk'!AN$5","v":3.9774570765125795E-3},{"$f":"'Population at Risk'!AO171/'Population at Risk'!AO$5","v":3.9774570765125795E-3},{"$f":"'Population at Risk'!AP171/'Population at Risk'!AP$5","v":2.8617672951373168E-3},{"$f":"'Population at Risk'!AQ171/'Population at Risk'!AQ$5","v":1.5329475898250506E-3},{"$f":"'Population at Risk'!AR171/'Population at Risk'!AR$5","v":1.9533728175888882E-3},{"$f":"'Population at Risk'!AS171/'Population at Risk'!AS$5","v":4.0712720028388332E-3},{"$f":"'Population at Risk'!AT171/'Population at Risk'!AT$5","v":3.4440981839564118E-3},{"$f":"'Population at Risk'!AU171/'Population at Risk'!AU$5","v":3.4440981839564118E-3},{"$f":"'Population at Risk'!AV171/'Population at Risk'!AV$5","v":2.0213895009121878E-3},{"$f":"'Population at Risk'!AW171/'Population at Risk'!AW$5","v":1.7913766041063942E-3},{"$f":"'Population at Risk'!AX171/'Population at Risk'!AX$5","v":1.6173492902938943E-3},{"$f":"'Population at Risk'!AY171/'Population at Risk'!AY$5","v":2.3132980925997899E-3},{"$f":"'Population at Risk'!AZ171/'Population at Risk'!AZ$5","v":2.3796850118286347E-3},{"$f":"'Population at Risk'!BA171/'Population at Risk'!BA$5","v":1.7072239654249363E-3},{"$f":"'Population at Risk'!BB171/'Population at Risk'!BB$5","v":1.8531881120132908E-3},{"$f":"'Population at Risk'!BC171/'Population at Risk'!BC$5","v":9.4732814392515068E-3},169]
[null,"Male 85-89",{"$f":"'Population at Risk'!C172/'Population at Risk'!C$5","v":5.4883553371330479E-4},{"$f":"'Population at Risk'!D172/'Population at Risk'!D$5","v":6.7753550657780092E-4},{"$f":"'Population at Risk'!E172/'Population at Risk'!E$5","v":7.949148289063243E-4},{"$f":"'Population at Risk'!F172/'Population at Risk'!F$5","v":2.0651426472669482E-3},{"$f":"'Population at Risk'!G172/'Population at Risk'!G$5","v":2.2824669428425886E-3},{"$f":"'Population at Risk'!H172/'Population at Risk'!H$5","v":9.6534924563279828E-4},{"$f":"'Population at Risk'!I172/'Population at Risk'!I$5","v":2.0200372581135211E-3},{"$f":"'Population at Risk'!J172/'Population at Risk'!J$5","v":7.3339784529991741E-4},{"$f":"'Population at Risk'!K172/'Population at Risk'!K$5","v":1.0700181200698844E-3},{"$f":"'Population at Risk'!L172/'Population at Risk'!L$5","v":2.4575059893790327E-3},{"$f":"'Population at Risk'!M172/'Population at Risk'!M$5","v":2.4899479145916057E-3},{"$f":"'Population at Risk'!N172/'Population at Risk'!N$5","v":8.2047460112027928E-4},{"$f":"'Population at Risk'!O172/'Population at Risk'!O$5","v":9.1308822370832243E-4},{"$f":"'Population at Risk'!P172/'Population at Risk'!P$5","v":1.605346574279141E-4},{"$f":"'Population at Risk'!Q172/'Population at Risk'!Q$5","v":1.1414844399408137E-3},{"$f":"'Population at Risk'!R172/'Population at Risk'!R$5","v":6.6940495237485581E-4},{"$f":"'Population at Risk'!S172/'Population at Risk'!S$5","v":9.0432364921382848E-4},{"$f":"'Population at Risk'!T172/'Population at Risk'!T$5","v":4.1517771818915178E-4},{"$f":"'Population at Risk'!U172/'Population at Risk'!U$5","v":5.3666063798835928E-3},{"$f":"'Population at Risk'!V172/'Population at Risk'!V$5","v":6.5632399006652301E-4},{"$f":"'Population at Risk'!W172/'Population at Risk'!W$5","v":1.1320090636353856E-3},{"$f":"'Population at Risk'!X172/'Population at Risk'!X$5","v":1.116677818348268E-3},{"$f":"'Population at Risk'!Y172/'Population at Risk'!Y$5","v":7.6022142895325838E-4},{"$f":"'Population at Risk'!Z172/'Population at Risk'!Z$5","v":3.5531277062541389E-4},{"$f":"'Population at Risk'!AA172/'Population at Risk'!AA$5","v":6.1686449258086364E-4},{"$f":"'Population at Risk'!AB172/'Population at Risk'!AB$5","v":8.1704633706243448E-4},{"$f":"'Population at Risk'!AC172/'Population at Risk'!AC$5","v":5.4337368149694892E-4},{"$f":"'Population at Risk'!AD172/'Population at Risk'!AD$5","v":1.8804573116011664E-3},{"$f":"'Population at Risk'!AE172/'Population at Risk'!AE$5","v":1.916269870613991E-3},{"$f":"'Population at Risk'!AF172/'Population at Risk'!AF$5","v":9.8905374204820949E-4},{"$f":"'Population at Risk'!AG172/'Population at Risk'!AG$5","v":1.7810996542077595E-3},{"$f":"'Population at Risk'!AH172/'Population at Risk'!AH$5","v":7.365357760303838E-4},{"$f":"'Population at Risk'!AI172/'Population at Risk'!AI$5","v":6.7079468767243695E-4},{"$f":"'Population at Risk'!AJ172/'Population at Risk'!AJ$5","v":1.2076357543377783E-3},{"$f":"'Population at Risk'!AK172/'Population at Risk'!AK$5","v":1.636356418168192E-3},{"$f":"'Population at Risk'!AL172/'Population at Risk'!AL$5","v":8.3407718416539812E-4},{"$f":"'Population at Risk'!AM172/'Population at Risk'!AM$5","v":6.2282405500175653E-4},{"$f":"'Population at Risk'!AN172/'Population at Risk'!AN$5","v":2.0076688100492067E-3},{"$f":"'Population at Risk'!AO172/'Population at Risk'!AO$5","v":2.0076688100492067E-3},{"$f":"'Population at Risk'!AP172/'Population at Risk'!AP$5","v":1.5471936605090221E-3},{"$f":"'Population at Risk'!AQ172/'Population at Risk'!AQ$5","v":9.5180029457794194E-4},{"$f":"'Population at Risk'!AR172/'Population at Risk'!AR$5","v":9.7200322330253958E-4},{"$f":"'Population at Risk'!AS172/'Population at Risk'!AS$5","v":2.0200372581135211E-3},{"$f":"'Population at Risk'!AT172/'Population at Risk'!AT$5","v":2.1108988869410266E-3},{"$f":"'Population at Risk'!AU172/'Population at Risk'!AU$5","v":2.1108988869410266E-3},{"$f":"'Population at Risk'!AV172/'Population at Risk'!AV$5","v":1.1304807949545938E-3},{"$f":"'Population at Risk'!AW172/'Population at Risk'!AW$5","v":8.3008859542394885E-4},{"$f":"'Population at Risk'!AX172/'Population at Risk'!AX$5","v":6.1786377382013922E-4},{"$f":"'Population at Risk'!AY172/'Population at Risk'!AY$5","v":1.2707309956517959E-3},{"$f":"'Population at Risk'!AZ172/'Population at Risk'!AZ$5","v":1.3719110448672943E-3},{"$f":"'Population at Risk'!BA172/'Population at Risk'!BA$5","v":7.1828325374585734E-4},{"$f":"'Population at Risk'!BB172/'Population at Risk'!BB$5","v":9.2920418010807254E-4},{"$f":"'Population at Risk'!BC172/'Population at Risk'!BC$5","v":5.76130177325908E-3},170]
[null,"Male 90+",{"$f":"'Population at Risk'!C173/'Population at Risk'!C$5","v":2.1883948496163419E-4},{"$f":"'Population at Risk'!D173/'Population at Risk'!D$5","v":3.0221008207067379E-4},{"$f":"'Population at Risk'!E173/'Population at Risk'!E$5","v":3.7750781449991463E-4},{"$f":"'Population at Risk'!F173/'Population at Risk'!F$5","v":9.0495014880237056E-4},{"$f":"'Population at Risk'!G173/'Population at Risk'!G$5","v":9.4093535194735294E-4},{"$f":"'Population at Risk'!H173/'Population at Risk'!H$5","v":3.845910096237619E-4},{"$f":"'Population at Risk'!I173/'Population at Risk'!I$5","v":7.2534156372415992E-4},{"$f":"'Population at Risk'!J173/'Population at Risk'!J$5","v":3.3121193013544657E-4},{"$f":"'Population at Risk'!K173/'Population at Risk'!K$5","v":5.1590159360512288E-4},{"$f":"'Population at Risk'!L173/'Population at Risk'!L$5","v":1.1900755396508633E-3},{"$f":"'Population at Risk'!M173/'Population at Risk'!M$5","v":1.2057859150564677E-3},{"$f":"'Population at Risk'!N173/'Population at Risk'!N$5","v":2.9628249484898973E-4},{"$f":"'Population at Risk'!O173/'Population at Risk'!O$5","v":3.0149139462067254E-4},{"$f":"'Population at Risk'!P173/'Population at Risk'!P$5","v":9.6320794456748474E-5},{"$f":"'Population at Risk'!Q173/'Population at Risk'!Q$5","v":4.8105415683220002E-4},{"$f":"'Population at Risk'!R173/'Population at Risk'!R$5","v":3.2998835680450643E-4},{"$f":"'Population at Risk'!S173/'Population at Risk'!S$5","v":3.667214798298116E-4},{"$f":"'Population at Risk'!T173/'Population at Risk'!T$5","v":1.7578088874943928E-4},{"$f":"'Population at Risk'!U173/'Population at Risk'!U$5","v":2.1610495489464135E-3},{"$f":"'Population at Risk'!V173/'Population at Risk'!V$5","v":3.3603788291405976E-4},{"$f":"'Population at Risk'!W173/'Population at Risk'!W$5","v":4.7752844868559097E-4},{"$f":"'Population at Risk'!X173/'Population at Risk'!X$5","v":4.7106109253663558E-4},{"$f":"'Population at Risk'!Y173/'Population at Risk'!Y$5","v":3.663717729895221E-4},{"$f":"'Population at Risk'!Z173/'Population at Risk'!Z$5","v":1.7990520031666523E-4},{"$f":"'Population at Risk'!AA173/'Population at Risk'!AA$5","v":2.9212209593411061E-4},{"$f":"'Population at Risk'!AB173/'Population at Risk'!AB$5","v":3.499704244418995E-4},{"$f":"'Population at Risk'!AC173/'Population at Risk'!AC$5","v":2.8343122867708281E-4},{"$f":"'Population at Risk'!AD173/'Population at Risk'!AD$5","v":7.3185365640694039E-4},{"$f":"'Population at Risk'!AE173/'Population at Risk'!AE$5","v":7.2392417334306324E-4},{"$f":"'Population at Risk'!AF173/'Population at Risk'!AF$5","v":4.2229260896440408E-4},{"$f":"'Population at Risk'!AG173/'Population at Risk'!AG$5","v":6.7285986936737588E-4},{"$f":"'Population at Risk'!AH173/'Population at Risk'!AH$5","v":3.059258546164596E-4},{"$f":"'Population at Risk'!AI173/'Population at Risk'!AI$5","v":2.7632444921586562E-4},{"$f":"'Population at Risk'!AJ173/'Population at Risk'!AJ$5","v":3.7925750962674031E-4},{"$f":"'Population at Risk'!AK173/'Population at Risk'!AK$5","v":6.3731776286550643E-4},{"$f":"'Population at Risk'!AL173/'Population at Risk'!AL$5","v":4.2060302449366228E-4},{"$f":"'Population at Risk'!AM173/'Population at Risk'!AM$5","v":2.2973018422195937E-4},{"$f":"'Population at Risk'!AN173/'Population at Risk'!AN$5","v":7.9549141530251596E-4},{"$f":"'Population at Risk'!AO173/'Population at Risk'!AO$5","v":7.9549141530251596E-4},{"$f":"'Population at Risk'!AP173/'Population at Risk'!AP$5","v":7.1949914981713273E-4},{"$f":"'Population at Risk'!AQ173/'Population at Risk'!AQ$5","v":6.086030729753187E-4},{"$f":"'Population at Risk'!AR173/'Population at Risk'!AR$5","v":4.1874137863822644E-4},{"$f":"'Population at Risk'!AS173/'Population at Risk'!AS$5","v":7.2534156372415992E-4},{"$f":"'Population at Risk'!AT173/'Population at Risk'!AT$5","v":7.4066627611965846E-4},{"$f":"'Population at Risk'!AU173/'Population at Risk'!AU$5","v":7.4066627611965846E-4},{"$f":"'Population at Risk'!AV173/'Population at Risk'!AV$5","v":4.1176452796359381E-4},{"$f":"'Population at Risk'!AW173/'Population at Risk'!AW$5","v":3.7341371465879765E-4},{"$f":"'Population at Risk'!AX173/'Population at Risk'!AX$5","v":2.6350072707035353E-4},{"$f":"'Population at Risk'!AY173/'Population at Risk'!AY$5","v":5.4475495432151726E-4},{"$f":"'Population at Risk'!AZ173/'Population at Risk'!AZ$5","v":5.9442917582485343E-4},{"$f":"'Population at Risk'!BA173/'Population at Risk'!BA$5","v":2.4983765347681995E-4},{"$f":"'Population at Risk'!BB173/'Population at Risk'!BB$5","v":4.2284010443120154E-4},{"$f":"'Population at Risk'!BC173/'Population at Risk'!BC$5","v":2.319987291245267E-3},171]
["SIMD Q4","Female 0-4",{"$f":"'Population at Risk'!C174/'Population at Risk'!C$5","v":0},{"$f":"'Population at Risk'!D174/'Population at Risk'!D$5","v":0},{"$f":"'Population at Risk'!E174/'Population at Risk'!E$5","v":0},{"$f":"'Population at Risk'!F174/'Population at Risk'!F$5","v":0},{"$f":"'Population at Risk'!G174/'Population at Risk'!G$5","v":0},{"$f":"'Population at Risk'!H174/'Population at Risk'!H$5","v":0},{"$f":"'Population at Risk'!I174/'Population at Risk'!I$5","v":0},{"$f":"'Population at Risk'!J174/'Population at Risk'!J$5","v":0},{"$f":"'Population at Risk'!K174/'Population at Risk'!K$5","v":0},{"$f":"'Population at Risk'!L174/'Population at Risk'!L$5","v":0},{"$f":"'Population at Risk'!M174/'Population at Risk'!M$5","v":0},{"$f":"'Population at Risk'!N174/'Population at Risk'!N$5","v":0},{"$f":"'Population at Risk'!O174/'Population at Risk'!O$5","v":0},{"$f":"'Population at Risk'!P174/'Population at Risk'!P$5","v":0},{"$f":"'Population at Risk'!Q174/'Population at Risk'!Q$5","v":0},{"$f":"'Population at Risk'!R174/'Population at Risk'!R$5","v":0},{"$f":"'Population at Risk'!S174/'Population at Risk'!S$5","v":0},{"$f":"'Population at Risk'!T174/'Population at Risk'!T$5","v":0},{"$f":"'Population at Risk'!U174/'Population at Risk'!U$5","v":0},{"$f":"'Population at Risk'!V174/'Population at Risk'!V$5","v":0},{"$f":"'Population at Risk'!W174/'Population at Risk'!W$5","v":0},{"$f":"'Population at Risk'!X174/'Population at Risk'!X$5","v":0},{"$f":"'Population at Risk'!Y174/'Population at Risk'!Y$5","v":0},{"$f":"'Population at Risk'!Z174/'Population at Risk'!Z$5","v":0},{"$f":"'Population at Risk'!AA174/'Population at Risk'!AA$5","v":0},{"$f":"'Population at Risk'!AB174/'Population at Risk'!AB$5","v":0},{"$f":"'Population at Risk'!AC174/'Population at Risk'!AC$5","v":0},{"$f":"'Population at Risk'!AD174/'Population at Risk'!AD$5","v":0},{"$f":"'Population at Risk'!AE174/'Population at Risk'!AE$5","v":0},{"$f":"'Population at Risk'!AF174/'Population at Risk'!AF$5","v":0},{"$f":"'Population at Risk'!AG174/'Population at Risk'!AG$5","v":0},{"$f":"'Population at Risk'!AH174/'Population at Risk'!AH$5","v":0},{"$f":"'Population at Risk'!AI174/'Population at Risk'!AI$5","v":0},{"$f":"'Population at Risk'!AJ174/'Population at Risk'!AJ$5","v":0},{"$f":"'Population at Risk'!AK174/'Population at Risk'!AK$5","v":0},{"$f":"'Population at Risk'!AL174/'Population at Risk'!AL$5","v":0},{"$f":"'Population at Risk'!AM174/'Population at Risk'!AM$5","v":0},{"$f":"'Population at Risk'!AN174/'Population at Risk'!AN$5","v":0},{"$f":"'Population at Risk'!AO174/'Population at Risk'!AO$5","v":0},{"$f":"'Population at Risk'!AP174/'Population at Risk'!AP$5","v":0},{"$f":"'Population at Risk'!AQ174/'Population at Risk'!AQ$5","v":0},{"$f":"'Population at Risk'!AR174/'Population at Risk'!AR$5","v":0},{"$f":"'Population at Risk'!AS174/'Population at Risk'!AS$5","v":0},{"$f":"'Population at Risk'!AT174/'Population at Risk'!AT$5","v":0},{"$f":"'Population at Risk'!AU174/'Population at Risk'!AU$5","v":0},{"$f":"'Population at Risk'!AV174/'Population at Risk'!AV$5","v":0},{"$f":"'Population at Risk'!AW174/'Population at Risk'!AW$5","v":0},{"$f":"'Population at Risk'!AX174/'Population at Risk'!AX$5","v":0},{"$f":"'Population at Risk'!AY174/'Population at Risk'!AY$5","v":0},{"$f":"'Population at Risk'!AZ174/'Population at Risk'!AZ$5","v":0},{"$f":"'Population at Risk'!BA174/'Population at Risk'!BA$5","v":0},{"$f":"'Population at Risk'!BB174/'Population at Risk'!BB$5","v":0},{"$f":"'Population at Risk'!BC174/'Population at Risk'!BC$5","v":0},172]
[null,"Female 5-9",{"$f":"'Population at Risk'!C175/'Population at Risk'!C$5","v":0},{"$f":"'Population at Risk'!D175/'Population at Risk'!D$5","v":0},{"$f":"'Population at Risk'!E175/'Population at Risk'!E$5","v":0},{"$f":"'Population at Risk'!F175/'Population at Risk'!F$5","v":0},{"$f":"'Population at Risk'!G175/'Population at Risk'!G$5","v":0},{"$f":"'Population at Risk'!H175/'Population at Risk'!H$5","v":0},{"$f":"'Population at Risk'!I175/'Population at Risk'!I$5","v":0},{"$f":"'Population at Risk'!J175/'Population at Risk'!J$5","v":0},{"$f":"'Population at Risk'!K175/'Population at Risk'!K$5","v":0},{"$f":"'Population at Risk'!L175/'Population at Risk'!L$5","v":0},{"$f":"'Population at Risk'!M175/'Population at Risk'!M$5","v":0},{"$f":"'Population at Risk'!N175/'Population at Risk'!N$5","v":0},{"$f":"'Population at Risk'!O175/'Population at Risk'!O$5","v":0},{"$f":"'Population at Risk'!P175/'Population at Risk'!P$5","v":0},{"$f":"'Population at Risk'!Q175/'Population at Risk'!Q$5","v":0},{"$f":"'Population at Risk'!R175/'Population at Risk'!R$5","v":0},{"$f":"'Population at Risk'!S175/'Population at Risk'!S$5","v":0},{"$f":"'Population at Risk'!T175/'Population at Risk'!T$5","v":0},{"$f":"'Population at Risk'!U175/'Population at Risk'!U$5","v":0},{"$f":"'Population at Risk'!V175/'Population at Risk'!V$5","v":0},{"$f":"'Population at Risk'!W175/'Population at Risk'!W$5","v":0},{"$f":"'Population at Risk'!X175/'Population at Risk'!X$5","v":0},{"$f":"'Population at Risk'!Y175/'Population at Risk'!Y$5","v":0},{"$f":"'Population at Risk'!Z175/'Population at Risk'!Z$5","v":0},{"$f":"'Population at Risk'!AA175/'Population at Risk'!AA$5","v":0},{"$f":"'Population at Risk'!AB175/'Population at Risk'!AB$5","v":0},{"$f":"'Population at Risk'!AC175/'Population at Risk'!AC$5","v":0},{"$f":"'Population at Risk'!AD175/'Population at Risk'!AD$5","v":0},{"$f":"'Population at Risk'!AE175/'Population at Risk'!AE$5","v":0},{"$f":"'Population at Risk'!AF175/'Population at Risk'!AF$5","v":0},{"$f":"'Population at Risk'!AG175/'Population at Risk'!AG$5","v":0},{"$f":"'Population at Risk'!AH175/'Population at Risk'!AH$5","v":0},{"$f":"'Population at Risk'!AI175/'Population at Risk'!AI$5","v":0},{"$f":"'Population at Risk'!AJ175/'Population at Risk'!AJ$5","v":0},{"$f":"'Population at Risk'!AK175/'Population at Risk'!AK$5","v":0},{"$f":"'Population at Risk'!AL175/'Population at Risk'!AL$5","v":0},{"$f":"'Population at Risk'!AM175/'Population at Risk'!AM$5","v":0},{"$f":"'Population at Risk'!AN175/'Population at Risk'!AN$5","v":0},{"$f":"'Population at Risk'!AO175/'Population at Risk'!AO$5","v":0},{"$f":"'Population at Risk'!AP175/'Population at Risk'!AP$5","v":0},{"$f":"'Population at Risk'!AQ175/'Population at Risk'!AQ$5","v":0},{"$f":"'Population at Risk'!AR175/'Population at Risk'!AR$5","v":0},{"$f":"'Population at Risk'!AS175/'Population at Risk'!AS$5","v":0},{"$f":"'Population at Risk'!AT175/'Population at Risk'!AT$5","v":0},{"$f":"'Population at Risk'!AU175/'Population at Risk'!AU$5","v":0},{"$f":"'Population at Risk'!AV175/'Population at Risk'!AV$5","v":0},{"$f":"'Population at Risk'!AW175/'Population at Risk'!AW$5","v":0},{"$f":"'Population at Risk'!AX175/'Population at Risk'!AX$5","v":0},{"$f":"'Population at Risk'!AY175/'Population at Risk'!AY$5","v":0},{"$f":"'Population at Risk'!AZ175/'Population at Risk'!AZ$5","v":0},{"$f":"'Population at Risk'!BA175/'Population at Risk'!BA$5","v":0},{"$f":"'Population at Risk'!BB175/'Population at Risk'!BB$5","v":0},{"$f":"'Population at Risk'!BC175/'Population at Risk'!BC$5","v":0},173]
[null,"Female 10-15",{"$f":"'Population at Risk'!C176/'Population at Risk'!C$5","v":0},{"$f":"'Population at Risk'!D176/'Population at Risk'!D$5","v":0},{"$f":"'Population at Risk'!E176/'Population at Risk'!E$5","v":0},{"$f":"'Population at Risk'!F176/'Population at Risk'!F$5","v":0},{"$f":"'Population at Risk'!G176/'Population at Risk'!G$5","v":0},{"$f":"'Population at Risk'!H176/'Population at Risk'!H$5","v":0},{"$f":"'Population at Risk'!I176/'Population at Risk'!I$5","v":0},{"$f":"'Population at Risk'!J176/'Population at Risk'!J$5","v":0},{"$f":"'Population at Risk'!K176/'Population at Risk'!K$5","v":0},{"$f":"'Population at Risk'!L176/'Population at Risk'!L$5","v":0},{"$f":"'Population at Risk'!M176/'Population at Risk'!M$5","v":0},{"$f":"'Population at Risk'!N176/'Population at Risk'!N$5","v":0},{"$f":"'Population at Risk'!O176/'Population at Risk'!O$5","v":0},{"$f":"'Population at Risk'!P176/'Population at Risk'!P$5","v":0},{"$f":"'Population at Risk'!Q176/'Population at Risk'!Q$5","v":0},{"$f":"'Population at Risk'!R176/'Population at Risk'!R$5","v":0},{"$f":"'Population at Risk'!S176/'Population at Risk'!S$5","v":0},{"$f":"'Population at Risk'!T176/'Population at Risk'!T$5","v":0},{"$f":"'Population at Risk'!U176/'Population at Risk'!U$5","v":0},{"$f":"'Population at Risk'!V176/'Population at Risk'!V$5","v":0},{"$f":"'Population at Risk'!W176/'Population at Risk'!W$5","v":0},{"$f":"'Population at Risk'!X176/'Population at Risk'!X$5","v":0},{"$f":"'Population at Risk'!Y176/'Population at Risk'!Y$5","v":0},{"$f":"'Population at Risk'!Z176/'Population at Risk'!Z$5","v":0},{"$f":"'Population at Risk'!AA176/'Population at Risk'!AA$5","v":0},{"$f":"'Population at Risk'!AB176/'Population at Risk'!AB$5","v":0},{"$f":"'Population at Risk'!AC176/'Population at Risk'!AC$5","v":0},{"$f":"'Population at Risk'!AD176/'Population at Risk'!AD$5","v":0},{"$f":"'Population at Risk'!AE176/'Population at Risk'!AE$5","v":0},{"$f":"'Population at Risk'!AF176/'Population at Risk'!AF$5","v":0},{"$f":"'Population at Risk'!AG176/'Population at Risk'!AG$5","v":0},{"$f":"'Population at Risk'!AH176/'Population at Risk'!AH$5","v":0},{"$f":"'Population at Risk'!AI176/'Population at Risk'!AI$5","v":0},{"$f":"'Population at Risk'!AJ176/'Population at Risk'!AJ$5","v":0},{"$f":"'Population at Risk'!AK176/'Population at Risk'!AK$5","v":0},{"$f":"'Population at Risk'!AL176/'Population at Risk'!AL$5","v":0},{"$f":"'Population at Risk'!AM176/'Population at Risk'!AM$5","v":0},{"$f":"'Population at Risk'!AN176/'Population at Risk'!AN$5","v":0},{"$f":"'Population at Risk'!AO176/'Population at Risk'!AO$5","v":0},{"$f":"'Population at Risk'!AP176/'Population at Risk'!AP$5","v":0},{"$f":"'Population at Risk'!AQ176/'Population at Risk'!AQ$5","v":0},{"$f":"'Population at Risk'!AR176/'Population at Risk'!AR$5","v":0},{"$f":"'Population at Risk'!AS176/'Population at Risk'!AS$5","v":0},{"$f":"'Population at Risk'!AT176/'Population at Risk'!AT$5","v":0},{"$f":"'Population at Risk'!AU176/'Population at Risk'!AU$5","v":0},{"$f":"'Population at Risk'!AV176/'Population at Risk'!AV$5","v":0},{"$f":"'Population at Risk'!AW176/'Population at Risk'!AW$5","v":0},{"$f":"'Population at Risk'!AX176/'Population at Risk'!AX$5","v":0},{"$f":"'Population at Risk'!AY176/'Population at Risk'!AY$5","v":0},{"$f":"'Population at Risk'!AZ176/'Population at Risk'!AZ$5","v":0},{"$f":"'Population at Risk'!BA176/'Population at Risk'!BA$5","v":0},{"$f":"'Population at Risk'!BB176/'Population at Risk'!BB$5","v":0},{"$f":"'Population at Risk'!BC176/'Population at Risk'!BC$5","v":0},174]
[null,"Female 16-19",{"$f":"'Population at Risk'!C177/'Population at Risk'!C$5","v":4.8309488105707137E-3},{"$f":"'Population at Risk'!D177/'Population at Risk'!D$5","v":6.1746920690429067E-3},{"$f":"'Population at Risk'!E177/'Population at Risk'!E$5","v":7.2959505130396262E-3},{"$f":"'Population at Risk'!F177/'Population at Risk'!F$5","v":4.4250207725270033E-3},{"$f":"'Population at Risk'!G177/'Population at Risk'!G$5","v":5.1669389542511575E-3},{"$f":"'Population at Risk'!H177/'Population at Risk'!H$5","v":2.9225543786040387E-3},{"$f":"'Population at Risk'!I177/'Population at Risk'!I$5","v":6.9362318412440364E-3},{"$f":"'Population at Risk'!J177/'Population at Risk'!J$5","v":6.1619671489725374E-3},{"$f":"'Population at Risk'!K177/'Population at Risk'!K$5","v":3.1706401160698765E-3},{"$f":"'Population at Risk'!L177/'Population at Risk'!L$5","v":3.1433472057797126E-3},{"$f":"'Population at Risk'!M177/'Population at Risk'!M$5","v":3.0853764404690561E-3},{"$f":"'Population at Risk'!N177/'Population at Risk'!N$5","v":7.1609561017412868E-3},{"$f":"'Population at Risk'!O177/'Population at Risk'!O$5","v":2.3850540328070147E-3},{"$f":"'Population at Risk'!P177/'Population at Risk'!P$5","v":3.0984508691696195E-3},{"$f":"'Population at Risk'!Q177/'Population at Risk'!Q$5","v":8.7116029434018694E-3},{"$f":"'Population at Risk'!R177/'Population at Risk'!R$5","v":3.5250358932455801E-3},{"$f":"'Population at Risk'!S177/'Population at Risk'!S$5","v":3.871217751362583E-3},{"$f":"'Population at Risk'!T177/'Population at Risk'!T$5","v":2.5463156597916731E-3},{"$f":"'Population at Risk'!U177/'Population at Risk'!U$5","v":9.1289669830266792E-4},{"$f":"'Population at Risk'!V177/'Population at Risk'!V$5","v":4.2095782299813962E-3},{"$f":"'Population at Risk'!W177/'Population at Risk'!W$5","v":3.3793536538803404E-3},{"$f":"'Population at Risk'!X177/'Population at Risk'!X$5","v":3.4403456579441502E-3},{"$f":"'Population at Risk'!Y177/'Population at Risk'!Y$5","v":4.5873786505957774E-3},{"$f":"'Population at Risk'!Z177/'Population at Risk'!Z$5","v":2.4934414268705054E-3},{"$f":"'Population at Risk'!AA177/'Population at Risk'!AA$5","v":3.5540604702562375E-3},{"$f":"'Population at Risk'!AB177/'Population at Risk'!AB$5","v":6.6029499521692682E-3},{"$f":"'Population at Risk'!AC177/'Population at Risk'!AC$5","v":2.9965498209119502E-3},{"$f":"'Population at Risk'!AD177/'Population at Risk'!AD$5","v":6.3340518963748297E-3},{"$f":"'Population at Risk'!AE177/'Population at Risk'!AE$5","v":5.9043742395567828E-3},{"$f":"'Population at Risk'!AF177/'Population at Risk'!AF$5","v":4.607800197841903E-3},{"$f":"'Population at Risk'!AG177/'Population at Risk'!AG$5","v":6.5327406603872106E-3},{"$f":"'Population at Risk'!AH177/'Population at Risk'!AH$5","v":4.6128635217898908E-3},{"$f":"'Population at Risk'!AI177/'Population at Risk'!AI$5","v":3.6371071835911381E-3},{"$f":"'Population at Risk'!AJ177/'Population at Risk'!AJ$5","v":3.5016857535178011E-3},{"$f":"'Population at Risk'!AK177/'Population at Risk'!AK$5","v":8.0323398562087023E-3},{"$f":"'Population at Risk'!AL177/'Population at Risk'!AL$5","v":3.5003165223437553E-3},{"$f":"'Population at Risk'!AM177/'Population at Risk'!AM$5","v":4.0013640510221087E-3},{"$f":"'Population at Risk'!AN177/'Population at Risk'!AN$5","v":8.6523368881851938E-3},{"$f":"'Population at Risk'!AO177/'Population at Risk'!AO$5","v":8.6523368881851938E-3},{"$f":"'Population at Risk'!AP177/'Population at Risk'!AP$5","v":9.5050471613355066E-3},{"$f":"'Population at Risk'!AQ177/'Population at Risk'!AQ$5","v":4.3172652754001704E-3},{"$f":"'Population at Risk'!AR177/'Population at Risk'!AR$5","v":4.4843089450432496E-3},{"$f":"'Population at Risk'!AS177/'Population at Risk'!AS$5","v":6.9362318412440364E-3},{"$f":"'Population at Risk'!AT177/'Population at Risk'!AT$5","v":1.461707875648215E-2},{"$f":"'Population at Risk'!AU177/'Population at Risk'!AU$5","v":1.461707875648215E-2},{"$f":"'Population at Risk'!AV177/'Population at Risk'!AV$5","v":2.7990587777181938E-3},{"$f":"'Population at Risk'!AW177/'Population at Risk'!AW$5","v":5.3857243153130141E-3},{"$f":"'Population at Risk'!AX177/'Population at Risk'!AX$5","v":7.3473008714841125E-3},{"$f":"'Population at Risk'!AY177/'Population at Risk'!AY$5","v":5.5132785695656073E-3},{"$f":"'Population at Risk'!AZ177/'Population at Risk'!AZ$5","v":7.5599872807468917E-3},{"$f":"'Population at Risk'!BA177/'Population at Risk'!BA$5","v":2.6882987446155905E-3},{"$f":"'Population at Risk'!BB177/'Population at Risk'!BB$5","v":3.7354560599253774E-3},{"$f":"'Population at Risk'!BC177/'Population at Risk'!BC$5","v":7.8884385352505815E-4},175]
[null,"Female 20-24",{"$f":"'Population at Risk'!C178/'Population at Risk'!C$5","v":1.1483549298325209E-2},{"$f":"'Population at Risk'!D178/'Population at Risk'!D$5","v":9.8678882662527109E-3},{"$f":"'Population at Risk'!E178/'Population at Risk'!E$5","v":8.4130707077500217E-3},{"$f":"'Population at Risk'!F178/'Population at Risk'!F$5","v":4.9305152368754306E-3},{"$f":"'Population at Risk'!G178/'Population at Risk'!G$5","v":5.5010597180364523E-3},{"$f":"'Population at Risk'!H178/'Population at Risk'!H$5","v":3.5268519902824581E-3},{"$f":"'Population at Risk'!I178/'Population at Risk'!I$5","v":6.6587825675942739E-3},{"$f":"'Population at Risk'!J178/'Population at Risk'!J$5","v":8.7808031872858659E-3},{"$f":"'Population at Risk'!K178/'Population at Risk'!K$5","v":3.3831969953594769E-3},{"$f":"'Population at Risk'!L178/'Population at Risk'!L$5","v":4.0778558345250324E-3},{"$f":"'Population at Risk'!M178/'Population at Risk'!M$5","v":4.0026505173652617E-3},{"$f":"'Population at Risk'!N178/'Population at Risk'!N$5","v":1.5642483690960659E-2},{"$f":"'Population at Risk'!O178/'Population at Risk'!O$5","v":3.149403693172468E-3},{"$f":"'Population at Risk'!P178/'Population at Risk'!P$5","v":4.7075910995671016E-3},{"$f":"'Population at Risk'!Q178/'Population at Risk'!Q$5","v":1.1063935088302146E-2},{"$f":"'Population at Risk'!R178/'Population at Risk'!R$5","v":3.6266219420422827E-3},{"$f":"'Population at Risk'!S178/'Population at Risk'!S$5","v":5.9880606650625553E-3},{"$f":"'Population at Risk'!T178/'Population at Risk'!T$5","v":6.6265564158433906E-3},{"$f":"'Population at Risk'!U178/'Population at Risk'!U$5","v":1.5739598246597723E-3},{"$f":"'Population at Risk'!V178/'Population at Risk'!V$5","v":5.6011743390661558E-3},{"$f":"'Population at Risk'!W178/'Population at Risk'!W$5","v":4.3690996269423812E-3},{"$f":"'Population at Risk'!X178/'Population at Risk'!X$5","v":4.4479549849472111E-3},{"$f":"'Population at Risk'!Y178/'Population at Risk'!Y$5","v":6.3605472333849869E-3},{"$f":"'Population at Risk'!Z178/'Population at Risk'!Z$5","v":8.8817606958583577E-3},{"$f":"'Population at Risk'!AA178/'Population at Risk'!AA$5","v":6.2085278377080784E-3},{"$f":"'Population at Risk'!AB178/'Population at Risk'!AB$5","v":9.7873638320610853E-3},{"$f":"'Population at Risk'!AC178/'Population at Risk'!AC$5","v":6.6933902306841875E-3},{"$f":"'Population at Risk'!AD178/'Population at Risk'!AD$5","v":6.9297001476783214E-3},{"$f":"'Population at Risk'!AE178/'Population at Risk'!AE$5","v":6.5092506487645172E-3},{"$f":"'Population at Risk'!AF178/'Population at Risk'!AF$5","v":5.6286051647484164E-3},{"$f":"'Population at Risk'!AG178/'Population at Risk'!AG$5","v":7.201990364524697E-3},{"$f":"'Population at Risk'!AH178/'Population at Risk'!AH$5","v":5.1937293519725286E-3},{"$f":"'Population at Risk'!AI178/'Population at Risk'!AI$5","v":6.5766712201238801E-3},{"$f":"'Population at Risk'!AJ178/'Population at Risk'!AJ$5","v":4.0507305580763419E-3},{"$f":"'Population at Risk'!AK178/'Population at Risk'!AK$5","v":8.3329048314732864E-3},{"$f":"'Population at Risk'!AL178/'Population at Risk'!AL$5","v":4.0621894565160714E-3},{"$f":"'Population at Risk'!AM178/'Population at Risk'!AM$5","v":4.4962323965548777E-3},{"$f":"'Population at Risk'!AN178/'Population at Risk'!AN$5","v":1.0233474593640357E-2},{"$f":"'Population at Risk'!AO178/'Population at Risk'!AO$5","v":1.0233474593640357E-2},{"$f":"'Population at Risk'!AP178/'Population at Risk'!AP$5","v":9.7079786089948727E-3},{"$f":"'Population at Risk'!AQ178/'Population at Risk'!AQ$5","v":5.4316134994988226E-3},{"$f":"'Population at Risk'!AR178/'Population at Risk'!AR$5","v":6.6730149300534662E-3},{"$f":"'Population at Risk'!AS178/'Population at Risk'!AS$5","v":6.6587825675942739E-3},{"$f":"'Population at Risk'!AT178/'Population at Risk'!AT$5","v":1.461707875648215E-2},{"$f":"'Population at Risk'!AU178/'Population at Risk'!AU$5","v":1.461707875648215E-2},{"$f":"'Population at Risk'!AV178/'Population at Risk'!AV$5","v":3.216545510665992E-3},{"$f":"'Population at Risk'!AW178/'Population at Risk'!AW$5","v":6.0734226317721365E-3},{"$f":"'Population at Risk'!AX178/'Population at Risk'!AX$5","v":1.114148477373411E-2},{"$f":"'Population at Risk'!AY178/'Population at Risk'!AY$5","v":7.546366180271543E-3},{"$f":"'Population at Risk'!AZ178/'Population at Risk'!AZ$5","v":1.0589654761946617E-2},{"$f":"'Population at Risk'!BA178/'Population at Risk'!BA$5","v":3.451025365180944E-3},{"$f":"'Population at Risk'!BB178/'Population at Risk'!BB$5","v":4.5588036234296397E-3},{"$f":"'Population at Risk'!BC178/'Population at Risk'!BC$5","v":1.3600756095259621E-3},176]
[null,"Female 25-29",{"$f":"'Population at Risk'!C179/'Population at Risk'!C$5","v":6.8800516346476728E-3},{"$f":"'Population at Risk'!D179/'Population at Risk'!D$5","v":6.800137369235397E-3},{"$f":"'Population at Risk'!E179/'Population at Risk'!E$5","v":6.6892440747315903E-3},{"$f":"'Population at Risk'!F179/'Population at Risk'!F$5","v":3.6076770279342071E-3},{"$f":"'Population at Risk'!G179/'Population at Risk'!G$5","v":3.5617768934848334E-3},{"$f":"'Population at Risk'!H179/'Population at Risk'!H$5","v":2.3648484281250568E-3},{"$f":"'Population at Risk'!I179/'Population at Risk'!I$5","v":4.6156829950365569E-3},{"$f":"'Population at Risk'!J179/'Population at Risk'!J$5","v":5.080998931547084E-3},{"$f":"'Population at Risk'!K179/'Population at Risk'!K$5","v":2.2789102003202832E-3},{"$f":"'Population at Risk'!L179/'Population at Risk'!L$5","v":2.9162933920623864E-3},{"$f":"'Population at Risk'!M179/'Population at Risk'!M$5","v":2.862510036696039E-3},{"$f":"'Population at Risk'!N179/'Population at Risk'!N$5","v":5.7673780488882069E-3},{"$f":"'Population at Risk'!O179/'Population at Risk'!O$5","v":2.1436840760876053E-3},{"$f":"'Population at Risk'!P179/'Population at Risk'!P$5","v":2.7435809410489092E-3},{"$f":"'Population at Risk'!Q179/'Population at Risk'!Q$5","v":5.6938091178639532E-3},{"$f":"'Population at Risk'!R179/'Population at Risk'!R$5","v":2.8529402489797968E-3},{"$f":"'Population at Risk'!S179/'Population at Risk'!S$5","v":5.0393894337072108E-3},{"$f":"'Population at Risk'!T179/'Population at Risk'!T$5","v":6.7747484896676022E-3},{"$f":"'Population at Risk'!U179/'Population at Risk'!U$5","v":9.4886131226043827E-4},{"$f":"'Population at Risk'!V179/'Population at Risk'!V$5","v":3.9695399380425926E-3},{"$f":"'Population at Risk'!W179/'Population at Risk'!W$5","v":3.1759050091624344E-3},{"$f":"'Population at Risk'!X179/'Population at Risk'!X$5","v":3.2332250860365105E-3},{"$f":"'Population at Risk'!Y179/'Population at Risk'!Y$5","v":4.0039227715403178E-3},{"$f":"'Population at Risk'!Z179/'Population at Risk'!Z$5","v":5.4174028617196375E-3},{"$f":"'Population at Risk'!AA179/'Population at Risk'!AA$5","v":4.067708573305487E-3},{"$f":"'Population at Risk'!AB179/'Population at Risk'!AB$5","v":6.9250216698443414E-3},{"$f":"'Population at Risk'!AC179/'Population at Risk'!AC$5","v":4.2073356301680692E-3},{"$f":"'Population at Risk'!AD179/'Population at Risk'!AD$5","v":5.4487521880352639E-3},{"$f":"'Population at Risk'!AE179/'Population at Risk'!AE$5","v":5.3678946110830928E-3},{"$f":"'Population at Risk'!AF179/'Population at Risk'!AF$5","v":3.3250348807352206E-3},{"$f":"'Population at Risk'!AG179/'Population at Risk'!AG$5","v":5.9391667878302126E-3},{"$f":"'Population at Risk'!AH179/'Population at Risk'!AH$5","v":3.7524380485311581E-3},{"$f":"'Population at Risk'!AI179/'Population at Risk'!AI$5","v":5.8885776710748648E-3},{"$f":"'Population at Risk'!AJ179/'Population at Risk'!AJ$5","v":3.4534346839501114E-3},{"$f":"'Population at Risk'!AK179/'Population at Risk'!AK$5","v":6.8043567652059586E-3},{"$f":"'Population at Risk'!AL179/'Population at Risk'!AL$5","v":2.7799115616041624E-3},{"$f":"'Population at Risk'!AM179/'Population at Risk'!AM$5","v":3.2068012432557879E-3},{"$f":"'Population at Risk'!AN179/'Population at Risk'!AN$5","v":8.2984228820130231E-3},{"$f":"'Population at Risk'!AO179/'Population at Risk'!AO$5","v":8.2984228820130231E-3},{"$f":"'Population at Risk'!AP179/'Population at Risk'!AP$5","v":6.6751244214621709E-3},{"$f":"'Population at Risk'!AQ179/'Population at Risk'!AQ$5","v":3.6792640919317493E-3},{"$f":"'Population at Risk'!AR179/'Population at Risk'!AR$5","v":4.70870854227052E-3},{"$f":"'Population at Risk'!AS179/'Population at Risk'!AS$5","v":4.6156829950365569E-3},{"$f":"'Population at Risk'!AT179/'Population at Risk'!AT$5","v":1.3647406629456991E-2},{"$f":"'Population at Risk'!AU179/'Population at Risk'!AU$5","v":1.3647406629456991E-2},{"$f":"'Population at Risk'!AV179/'Population at Risk'!AV$5","v":2.0438681082566154E-3},{"$f":"'Population at Risk'!AW179/'Population at Risk'!AW$5","v":4.4321020336658421E-3},{"$f":"'Population at Risk'!AX179/'Population at Risk'!AX$5","v":6.2569268871032861E-3},{"$f":"'Population at Risk'!AY179/'Population at Risk'!AY$5","v":4.4694850689146965E-3},{"$f":"'Population at Risk'!AZ179/'Population at Risk'!AZ$5","v":5.7172038891369218E-3},{"$f":"'Population at Risk'!BA179/'Population at Risk'!BA$5","v":2.6198665730788485E-3},{"$f":"'Population at Risk'!BB179/'Population at Risk'!BB$5","v":4.0706138149385696E-3},{"$f":"'Population at Risk'!BC179/'Population at Risk'!BC$5","v":8.1992126317911558E-4},177]
[null,"Female 30-34",{"$f":"'Population at Risk'!C180/'Population at Risk'!C$5","v":5.4456133883017599E-3},{"$f":"'Population at Risk'!D180/'Population at Risk'!D$5","v":6.9145407570085351E-3},{"$f":"'Population at Risk'!E180/'Population at Risk'!E$5","v":8.1392410968579975E-3},{"$f":"'Population at Risk'!F180/'Population at Risk'!F$5","v":4.0421991422337315E-3},{"$f":"'Population at Risk'!G180/'Population at Risk'!G$5","v":3.7372338833116725E-3},{"$f":"'Population at Risk'!H180/'Population at Risk'!H$5","v":2.5692908525016202E-3},{"$f":"'Population at Risk'!I180/'Population at Risk'!I$5","v":5.3616519639313543E-3},{"$f":"'Population at Risk'!J180/'Population at Risk'!J$5","v":4.6022421933162045E-3},{"$f":"'Population at Risk'!K180/'Population at Risk'!K$5","v":3.0602508404300945E-3},{"$f":"'Population at Risk'!L180/'Population at Risk'!L$5","v":2.9979688247890098E-3},{"$f":"'Population at Risk'!M180/'Population at Risk'!M$5","v":2.9426791810516113E-3},{"$f":"'Population at Risk'!N180/'Population at Risk'!N$5","v":4.51334895408987E-3},{"$f":"'Population at Risk'!O180/'Population at Risk'!O$5","v":2.3986367938747233E-3},{"$f":"'Population at Risk'!P180/'Population at Risk'!P$5","v":2.9386520630042211E-3},{"$f":"'Population at Risk'!Q180/'Population at Risk'!Q$5","v":6.3240119288501826E-3},{"$f":"'Population at Risk'!R180/'Population at Risk'!R$5","v":2.5467346201625937E-3},{"$f":"'Population at Risk'!S180/'Population at Risk'!S$5","v":4.9530800449903243E-3},{"$f":"'Population at Risk'!T180/'Population at Risk'!T$5","v":5.7146962915340105E-3},{"$f":"'Population at Risk'!U180/'Population at Risk'!U$5","v":1.411720488972847E-3},{"$f":"'Population at Risk'!V180/'Population at Risk'!V$5","v":4.5117709089607817E-3},{"$f":"'Population at Risk'!W180/'Population at Risk'!W$5","v":3.348770724851023E-3},{"$f":"'Population at Risk'!X180/'Population at Risk'!X$5","v":3.4092107552764726E-3},{"$f":"'Population at Risk'!Y180/'Population at Risk'!Y$5","v":4.0334468759249033E-3},{"$f":"'Population at Risk'!Z180/'Population at Risk'!Z$5","v":4.3196381216739094E-3},{"$f":"'Population at Risk'!AA180/'Population at Risk'!AA$5","v":3.9217798071539897E-3},{"$f":"'Population at Risk'!AB180/'Population at Risk'!AB$5","v":7.178675986287901E-3},{"$f":"'Population at Risk'!AC180/'Population at Risk'!AC$5","v":3.6931653856389145E-3},{"$f":"'Population at Risk'!AD180/'Population at Risk'!AD$5","v":6.3820035509398552E-3},{"$f":"'Population at Risk'!AE180/'Population at Risk'!AE$5","v":6.4294237431519029E-3},{"$f":"'Population at Risk'!AF180/'Population at Risk'!AF$5","v":2.9706424483057618E-3},{"$f":"'Population at Risk'!AG180/'Population at Risk'!AG$5","v":7.1136679698169461E-3},{"$f":"'Population at Risk'!AH180/'Population at Risk'!AH$5","v":4.3310542421754073E-3},{"$f":"'Population at Risk'!AI180/'Population at Risk'!AI$5","v":5.5726052106757256E-3},{"$f":"'Population at Risk'!AJ180/'Population at Risk'!AJ$5","v":4.3145508648831255E-3},{"$f":"'Population at Risk'!AK180/'Population at Risk'!AK$5","v":7.7263356774007188E-3},{"$f":"'Population at Risk'!AL180/'Population at Risk'!AL$5","v":2.6180291614304263E-3},{"$f":"'Population at Risk'!AM180/'Population at Risk'!AM$5","v":3.5472315211054701E-3},{"$f":"'Population at Risk'!AN180/'Population at Risk'!AN$5","v":9.3639791275633346E-3},{"$f":"'Population at Risk'!AO180/'Population at Risk'!AO$5","v":9.3639791275633346E-3},{"$f":"'Population at Risk'!AP180/'Population at Risk'!AP$5","v":8.0419126952150574E-3},{"$f":"'Population at Risk'!AQ180/'Population at Risk'!AQ$5","v":4.2139838066258296E-3},{"$f":"'Population at Risk'!AR180/'Population at Risk'!AR$5","v":4.7657488006864436E-3},{"$f":"'Population at Risk'!AS180/'Population at Risk'!AS$5","v":5.3616519639313543E-3},{"$f":"'Population at Risk'!AT180/'Population at Risk'!AT$5","v":1.2936912574995022E-2},{"$f":"'Population at Risk'!AU180/'Population at Risk'!AU$5","v":1.2936912574995022E-2},{"$f":"'Population at Risk'!AV180/'Population at Risk'!AV$5","v":2.6298234703506624E-3},{"$f":"'Population at Risk'!AW180/'Population at Risk'!AW$5","v":5.2784054598091039E-3},{"$f":"'Population at Risk'!AX180/'Population at Risk'!AX$5","v":5.0779739145333314E-3},{"$f":"'Population at Risk'!AY180/'Population at Risk'!AY$5","v":4.6921813441064865E-3},{"$f":"'Population at Risk'!AZ180/'Population at Risk'!AZ$5","v":5.9882782114666902E-3},{"$f":"'Population at Risk'!BA180/'Population at Risk'!BA$5","v":2.6106740587873438E-3},{"$f":"'Population at Risk'!BB180/'Population at Risk'!BB$5","v":4.8668616270423218E-3},{"$f":"'Population at Risk'!BC180/'Population at Risk'!BC$5","v":1.2198828549738062E-3},178]
[null,"Female 35-39",{"$f":"'Population at Risk'!C181/'Population at Risk'!C$5","v":6.5286652399874382E-3},{"$f":"'Population at Risk'!D181/'Population at Risk'!D$5","v":1.0071426141173234E-2},{"$f":"'Population at Risk'!E181/'Population at Risk'!E$5","v":1.3065902153075943E-2},{"$f":"'Population at Risk'!F181/'Population at Risk'!F$5","v":6.7312216825576076E-3},{"$f":"'Population at Risk'!G181/'Population at Risk'!G$5","v":7.0526034583672072E-3},{"$f":"'Population at Risk'!H181/'Population at Risk'!H$5","v":4.3527191691917835E-3},{"$f":"'Population at Risk'!I181/'Population at Risk'!I$5","v":8.5069326120066173E-3},{"$f":"'Population at Risk'!J181/'Population at Risk'!J$5","v":7.784470738624716E-3},{"$f":"'Population at Risk'!K181/'Population at Risk'!K$5","v":4.9028663398399839E-3},{"$f":"'Population at Risk'!L181/'Population at Risk'!L$5","v":4.4850672699489908E-3},{"$f":"'Population at Risk'!M181/'Population at Risk'!M$5","v":4.4023520097223609E-3},{"$f":"'Population at Risk'!N181/'Population at Risk'!N$5","v":5.885222386326828E-3},{"$f":"'Population at Risk'!O181/'Population at Risk'!O$5","v":4.3594776887135624E-3},{"$f":"'Population at Risk'!P181/'Population at Risk'!P$5","v":4.8742305686481323E-3},{"$f":"'Population at Risk'!Q181/'Population at Risk'!Q$5","v":1.083224458931243E-2},{"$f":"'Population at Risk'!R181/'Population at Risk'!R$5","v":4.6556652054399175E-3},{"$f":"'Population at Risk'!S181/'Population at Risk'!S$5","v":7.0034435049840423E-3},{"$f":"'Population at Risk'!T181/'Population at Risk'!T$5","v":6.5862216933707434E-3},{"$f":"'Population at Risk'!U181/'Population at Risk'!U$5","v":1.6426603652398635E-3},{"$f":"'Population at Risk'!V181/'Population at Risk'!V$5","v":7.4274398230935405E-3},{"$f":"'Population at Risk'!W181/'Population at Risk'!W$5","v":5.5456058051968895E-3},{"$f":"'Population at Risk'!X181/'Population at Risk'!X$5","v":5.6456952443174361E-3},{"$f":"'Population at Risk'!Y181/'Population at Risk'!Y$5","v":6.7318093601053128E-3},{"$f":"'Population at Risk'!Z181/'Population at Risk'!Z$5","v":4.899981144073166E-3},{"$f":"'Population at Risk'!AA181/'Population at Risk'!AA$5","v":5.9549744522658706E-3},{"$f":"'Population at Risk'!AB181/'Population at Risk'!AB$5","v":1.0517694887201924E-2},{"$f":"'Population at Risk'!AC181/'Population at Risk'!AC$5","v":4.9994995440986317E-3},{"$f":"'Population at Risk'!AD181/'Population at Risk'!AD$5","v":9.8586250844259482E-3},{"$f":"'Population at Risk'!AE181/'Population at Risk'!AE$5","v":9.5134419506253624E-3},{"$f":"'Population at Risk'!AF181/'Population at Risk'!AF$5","v":6.4815911451603795E-3},{"$f":"'Population at Risk'!AG181/'Population at Risk'!AG$5","v":1.0525899363680745E-2},{"$f":"'Population at Risk'!AH181/'Population at Risk'!AH$5","v":7.7709509076341375E-3},{"$f":"'Population at Risk'!AI181/'Population at Risk'!AI$5","v":7.40452202568291E-3},{"$f":"'Population at Risk'!AJ181/'Population at Risk'!AJ$5","v":6.8096796791870372E-3},{"$f":"'Population at Risk'!AK181/'Population at Risk'!AK$5","v":1.1616187834901391E-2},{"$f":"'Population at Risk'!AL181/'Population at Risk'!AL$5","v":4.4100413529128751E-3},{"$f":"'Population at Risk'!AM181/'Population at Risk'!AM$5","v":6.1110088756376087E-3},{"$f":"'Population at Risk'!AN181/'Population at Risk'!AN$5","v":1.5694376133364076E-2},{"$f":"'Population at Risk'!AO181/'Population at Risk'!AO$5","v":1.5694376133364076E-2},{"$f":"'Population at Risk'!AP181/'Population at Risk'!AP$5","v":1.1733053607618437E-2},{"$f":"'Population at Risk'!AQ181/'Population at Risk'!AQ$5","v":6.456836563358619E-3},{"$f":"'Population at Risk'!AR181/'Population at Risk'!AR$5","v":7.128060362283954E-3},{"$f":"'Population at Risk'!AS181/'Population at Risk'!AS$5","v":8.5069326120066173E-3},{"$f":"'Population at Risk'!AT181/'Population at Risk'!AT$5","v":2.1743388361717027E-2},{"$f":"'Population at Risk'!AU181/'Population at Risk'!AU$5","v":2.1743388361717027E-2},{"$f":"'Population at Risk'!AV181/'Population at Risk'!AV$5","v":4.0901563279766E-3},{"$f":"'Population at Risk'!AW181/'Population at Risk'!AW$5","v":9.7388447270539292E-3},{"$f":"'Population at Risk'!AX181/'Population at Risk'!AX$5","v":8.7509243447722804E-3},{"$f":"'Population at Risk'!AY181/'Population at Risk'!AY$5","v":7.1891029935543397E-3},{"$f":"'Population at Risk'!AZ181/'Population at Risk'!AZ$5","v":8.7837251797013797E-3},{"$f":"'Population at Risk'!BA181/'Population at Risk'!BA$5","v":3.7446333814452207E-3},{"$f":"'Population at Risk'!BB181/'Population at Risk'!BB$5","v":7.5347303090172353E-3},{"$f":"'Population at Risk'!BC181/'Population at Risk'!BC$5","v":1.4194404853889329E-3},179]
[null,"Female 40-44",{"$f":"'Population at Risk'!C182/'Population at Risk'!C$5","v":5.2269841176625573E-3},{"$f":"'Population at Risk'!D182/'Population at Risk'!D$5","v":1.0069072454297522E-2},{"$f":"'Population at Risk'!E182/'Population at Risk'!E$5","v":1.4184588089927931E-2},{"$f":"'Population at Risk'!F182/'Population at Risk'!F$5","v":7.2693665352915717E-3},{"$f":"'Population at Risk'!G182/'Population at Risk'!G$5","v":8.690540154072451E-3},{"$f":"'Population at Risk'!H182/'Population at Risk'!H$5","v":5.3536929154170722E-3},{"$f":"'Population at Risk'!I182/'Population at Risk'!I$5","v":1.1222676426833254E-2},{"$f":"'Population at Risk'!J182/'Population at Risk'!J$5","v":9.4922882986291177E-3},{"$f":"'Population at Risk'!K182/'Population at Risk'!K$5","v":6.5103635004432571E-3},{"$f":"'Population at Risk'!L182/'Population at Risk'!L$5","v":5.5525874135401547E-3},{"$f":"'Population at Risk'!M182/'Population at Risk'!M$5","v":5.4501845541852041E-3},{"$f":"'Population at Risk'!N182/'Population at Risk'!N$5","v":5.769301339323421E-3},{"$f":"'Population at Risk'!O182/'Population at Risk'!O$5","v":4.487933753206043E-3},{"$f":"'Population at Risk'!P182/'Population at Risk'!P$5","v":5.7966447200855278E-3},{"$f":"'Population at Risk'!Q182/'Population at Risk'!Q$5","v":1.3071059233032537E-2},{"$f":"'Population at Risk'!R182/'Population at Risk'!R$5","v":5.3355767082145589E-3},{"$f":"'Population at Risk'!S182/'Population at Risk'!S$5","v":7.3180740784192667E-3},{"$f":"'Population at Risk'!T182/'Population at Risk'!T$5","v":5.6182994167690318E-3},{"$f":"'Population at Risk'!U182/'Population at Risk'!U$5","v":1.8569204128798457E-3},{"$f":"'Population at Risk'!V182/'Population at Risk'!V$5","v":9.1323569344518869E-3},{"$f":"'Population at Risk'!W182/'Population at Risk'!W$5","v":6.3954357775816472E-3},{"$f":"'Population at Risk'!X182/'Population at Risk'!X$5","v":6.5108633074846501E-3},{"$f":"'Population at Risk'!Y182/'Population at Risk'!Y$5","v":8.2421736673439338E-3},{"$f":"'Population at Risk'!Z182/'Population at Risk'!Z$5","v":4.1285555412161655E-3},{"$f":"'Population at Risk'!AA182/'Population at Risk'!AA$5","v":6.2317898696815591E-3},{"$f":"'Population at Risk'!AB182/'Population at Risk'!AB$5","v":1.1052865236503256E-2},{"$f":"'Population at Risk'!AC182/'Population at Risk'!AC$5","v":5.0730368276351977E-3},{"$f":"'Population at Risk'!AD182/'Population at Risk'!AD$5","v":1.1789734042910879E-2},{"$f":"'Population at Risk'!AE182/'Population at Risk'!AE$5","v":1.1293062082850303E-2},{"$f":"'Population at Risk'!AF182/'Population at Risk'!AF$5","v":7.4948423663641107E-3},{"$f":"'Population at Risk'!AG182/'Population at Risk'!AG$5","v":1.2494913576896038E-2},{"$f":"'Population at Risk'!AH182/'Population at Risk'!AH$5","v":8.4441214782771373E-3},{"$f":"'Population at Risk'!AI182/'Population at Risk'!AI$5","v":7.1464066452101615E-3},{"$f":"'Population at Risk'!AJ182/'Population at Risk'!AJ$5","v":6.5328634320656132E-3},{"$f":"'Population at Risk'!AK182/'Population at Risk'!AK$5","v":1.4778894846630614E-2},{"$f":"'Population at Risk'!AL182/'Population at Risk'!AL$5","v":5.6934322935066608E-3},{"$f":"'Population at Risk'!AM182/'Population at Risk'!AM$5","v":6.8849096059512959E-3},{"$f":"'Population at Risk'!AN182/'Population at Risk'!AN$5","v":1.6840314708181134E-2},{"$f":"'Population at Risk'!AO182/'Population at Risk'!AO$5","v":1.6840314708181134E-2},{"$f":"'Population at Risk'!AP182/'Population at Risk'!AP$5","v":1.4844540608626109E-2},{"$f":"'Population at Risk'!AQ182/'Population at Risk'!AQ$5","v":7.6982447654580476E-3},{"$f":"'Population at Risk'!AR182/'Population at Risk'!AR$5","v":7.7811036973041755E-3},{"$f":"'Population at Risk'!AS182/'Population at Risk'!AS$5","v":1.1222676426833254E-2},{"$f":"'Population at Risk'!AT182/'Population at Risk'!AT$5","v":2.3250808143096567E-2},{"$f":"'Population at Risk'!AU182/'Population at Risk'!AU$5","v":2.3250808143096567E-2},{"$f":"'Population at Risk'!AV182/'Population at Risk'!AV$5","v":5.8661452598611757E-3},{"$f":"'Population at Risk'!AW182/'Population at Risk'!AW$5","v":1.0323938576567836E-2},{"$f":"'Population at Risk'!AX182/'Population at Risk'!AX$5","v":1.0356053130837848E-2},{"$f":"'Population at Risk'!AY182/'Population at Risk'!AY$5","v":8.3010055855442712E-3},{"$f":"'Population at Risk'!AZ182/'Population at Risk'!AZ$5","v":1.0149692432089174E-2},{"$f":"'Population at Risk'!BA182/'Population at Risk'!BA$5","v":4.7091601615144446E-3},{"$f":"'Population at Risk'!BB182/'Population at Risk'!BB$5","v":7.9672564249258782E-3},{"$f":"'Population at Risk'!BC182/'Population at Risk'!BC$5","v":1.6045848965266197E-3},180]
[null,"Female 45-49",{"$f":"'Population at Risk'!C183/'Population at Risk'!C$5","v":6.8648348612781488E-3},{"$f":"'Population at Risk'!D183/'Population at Risk'!D$5","v":1.4794943325928508E-2},{"$f":"'Population at Risk'!E183/'Population at Risk'!E$5","v":2.1545569818768623E-2},{"$f":"'Population at Risk'!F183/'Population at Risk'!F$5","v":1.2284287763597794E-2},{"$f":"'Population at Risk'!G183/'Population at Risk'!G$5","v":1.4729704981191223E-2},{"$f":"'Population at Risk'!H183/'Population at Risk'!H$5","v":8.2495257568257034E-3},{"$f":"'Population at Risk'!I183/'Population at Risk'!I$5","v":1.9052725502814529E-2},{"$f":"'Population at Risk'!J183/'Population at Risk'!J$5","v":1.4270266542094085E-2},{"$f":"'Population at Risk'!K183/'Population at Risk'!K$5","v":1.0302849267657538E-2},{"$f":"'Population at Risk'!L183/'Population at Risk'!L$5","v":9.7160602215609661E-3},{"$f":"'Population at Risk'!M183/'Population at Risk'!M$5","v":9.5368730653306085E-3},{"$f":"'Population at Risk'!N183/'Population at Risk'!N$5","v":8.5399141807474752E-3},{"$f":"'Population at Risk'!O183/'Population at Risk'!O$5","v":6.8882657815145061E-3},{"$f":"'Population at Risk'!P183/'Population at Risk'!P$5","v":9.460412411478672E-3},{"$f":"'Population at Risk'!Q183/'Population at Risk'!Q$5","v":2.0110961036196355E-2},{"$f":"'Population at Risk'!R183/'Population at Risk'!R$5","v":8.3105970779694047E-3},{"$f":"'Population at Risk'!S183/'Population at Risk'!S$5","v":1.0640817638617732E-2},{"$f":"'Population at Risk'!T183/'Population at Risk'!T$5","v":6.7861436174002582E-3},{"$f":"'Population at Risk'!U183/'Population at Risk'!U$5","v":2.3743570974793901E-3},{"$f":"'Population at Risk'!V183/'Population at Risk'!V$5","v":1.3160726253473105E-2},{"$f":"'Population at Risk'!W183/'Population at Risk'!W$5","v":1.0144596257009539E-2},{"$f":"'Population at Risk'!X183/'Population at Risk'!X$5","v":1.0327690220975924E-2},{"$f":"'Population at Risk'!Y183/'Population at Risk'!Y$5","v":1.213853275893453E-2},{"$f":"'Population at Risk'!Z183/'Population at Risk'!Z$5","v":5.8870007347148739E-3},{"$f":"'Population at Risk'!AA183/'Population at Risk'!AA$5","v":9.4906386794978148E-3},{"$f":"'Population at Risk'!AB183/'Population at Risk'!AB$5","v":1.6218865975549501E-2},{"$f":"'Population at Risk'!AC183/'Population at Risk'!AC$5","v":7.9407880526532349E-3},{"$f":"'Population at Risk'!AD183/'Population at Risk'!AD$5","v":1.8039931051807533E-2},{"$f":"'Population at Risk'!AE183/'Population at Risk'!AE$5","v":1.6811654352078858E-2},{"$f":"'Population at Risk'!AF183/'Population at Risk'!AF$5","v":1.2729753129187964E-2},{"$f":"'Population at Risk'!AG183/'Population at Risk'!AG$5","v":1.860081585249335E-2},{"$f":"'Population at Risk'!AH183/'Population at Risk'!AH$5","v":1.2437991465913062E-2},{"$f":"'Population at Risk'!AI183/'Population at Risk'!AI$5","v":9.6395027569251522E-3},{"$f":"'Population at Risk'!AJ183/'Population at Risk'!AJ$5","v":9.7690741160287951E-3},{"$f":"'Population at Risk'!AK183/'Population at Risk'!AK$5","v":2.1588072469031803E-2},{"$f":"'Population at Risk'!AL183/'Population at Risk'!AL$5","v":9.3394499508671069E-3},{"$f":"'Population at Risk'!AM183/'Population at Risk'!AM$5","v":1.0644077858275669E-2},{"$f":"'Population at Risk'!AN183/'Population at Risk'!AN$5","v":2.5164212535429102E-2},{"$f":"'Population at Risk'!AO183/'Population at Risk'!AO$5","v":2.5164212535429102E-2},{"$f":"'Population at Risk'!AP183/'Population at Risk'!AP$5","v":2.4184419024435543E-2},{"$f":"'Population at Risk'!AQ183/'Population at Risk'!AQ$5","v":1.2708322706920145E-2},{"$f":"'Population at Risk'!AR183/'Population at Risk'!AR$5","v":1.1723289843439269E-2},{"$f":"'Population at Risk'!AS183/'Population at Risk'!AS$5","v":1.9052725502814529E-2},{"$f":"'Population at Risk'!AT183/'Population at Risk'!AT$5","v":3.1890817986952237E-2},{"$f":"'Population at Risk'!AU183/'Population at Risk'!AU$5","v":3.1890817986952237E-2},{"$f":"'Population at Risk'!AV183/'Population at Risk'!AV$5","v":8.3678259033796287E-3},{"$f":"'Population at Risk'!AW183/'Population at Risk'!AW$5","v":1.4675315547248626E-2},{"$f":"'Population at Risk'!AX183/'Population at Risk'!AX$5","v":1.5263796723048827E-2},{"$f":"'Population at Risk'!AY183/'Population at Risk'!AY$5","v":1.3321356347371497E-2},{"$f":"'Population at Risk'!AZ183/'Population at Risk'!AZ$5","v":1.6400071853447658E-2},{"$f":"'Population at Risk'!BA183/'Population at Risk'!BA$5","v":8.7418864653807226E-3},{"$f":"'Population at Risk'!BB183/'Population at Risk'!BB$5","v":1.1221322035936792E-2},{"$f":"'Population at Risk'!BC183/'Population at Risk'!BC$5","v":2.0517074997671073E-3},181]
[null,"Female 50-54",{"$f":"'Population at Risk'!C184/'Population at Risk'!C$5","v":7.2534104194637052E-3},{"$f":"'Population at Risk'!D184/'Population at Risk'!D$5","v":1.5225308845783631E-2},{"$f":"'Population at Risk'!E184/'Population at Risk'!E$5","v":2.2009335974100003E-2},{"$f":"'Population at Risk'!F184/'Population at Risk'!F$5","v":1.3965058082033122E-2},{"$f":"'Population at Risk'!G184/'Population at Risk'!G$5","v":1.571630096700544E-2},{"$f":"'Population at Risk'!H184/'Population at Risk'!H$5","v":8.8933533429249364E-3},{"$f":"'Population at Risk'!I184/'Population at Risk'!I$5","v":2.0731481038970788E-2},{"$f":"'Population at Risk'!J184/'Population at Risk'!J$5","v":1.504218131590131E-2},{"$f":"'Population at Risk'!K184/'Population at Risk'!K$5","v":9.2751336299859623E-3},{"$f":"'Population at Risk'!L184/'Population at Risk'!L$5","v":1.0758759367289461E-2},{"$f":"'Population at Risk'!M184/'Population at Risk'!M$5","v":1.0560342369902675E-2},{"$f":"'Population at Risk'!N184/'Population at Risk'!N$5","v":9.5090633200846375E-3},{"$f":"'Population at Risk'!O184/'Population at Risk'!O$5","v":7.1038448894307571E-3},{"$f":"'Population at Risk'!P184/'Population at Risk'!P$5","v":1.059019919552665E-2},{"$f":"'Population at Risk'!Q184/'Population at Risk'!Q$5","v":1.9604933979210822E-2},{"$f":"'Population at Risk'!R184/'Population at Risk'!R$5","v":8.3400672803735504E-3},{"$f":"'Population at Risk'!S184/'Population at Risk'!S$5","v":1.0989906274891648E-2},{"$f":"'Population at Risk'!T184/'Population at Risk'!T$5","v":7.3757593743219198E-3},{"$f":"'Population at Risk'!U184/'Population at Risk'!U$5","v":3.0136070852623026E-3},{"$f":"'Population at Risk'!V184/'Population at Risk'!V$5","v":1.2292764245958774E-2},{"$f":"'Population at Risk'!W184/'Population at Risk'!W$5","v":1.0604632678359463E-2},{"$f":"'Population at Risk'!X184/'Population at Risk'!X$5","v":1.0796029574233626E-2},{"$f":"'Population at Risk'!Y184/'Population at Risk'!Y$5","v":1.2093724590758321E-2},{"$f":"'Population at Risk'!Z184/'Population at Risk'!Z$5","v":6.2131865023741639E-3},{"$f":"'Population at Risk'!AA184/'Population at Risk'!AA$5","v":9.8974180718280833E-3},{"$f":"'Population at Risk'!AB184/'Population at Risk'!AB$5","v":1.6724428863326393E-2},{"$f":"'Population at Risk'!AC184/'Population at Risk'!AC$5","v":8.5168792472670035E-3},{"$f":"'Population at Risk'!AD184/'Population at Risk'!AD$5","v":1.9498800116190818E-2},{"$f":"'Population at Risk'!AE184/'Population at Risk'!AE$5","v":1.8238097751649189E-2},{"$f":"'Population at Risk'!AF184/'Population at Risk'!AF$5","v":1.4189870208626325E-2},{"$f":"'Population at Risk'!AG184/'Population at Risk'!AG$5","v":2.017906689452309E-2},{"$f":"'Population at Risk'!AH184/'Population at Risk'!AH$5","v":1.2508203836722106E-2},{"$f":"'Population at Risk'!AI184/'Population at Risk'!AI$5","v":9.7495161032777472E-3},{"$f":"'Population at Risk'!AJ184/'Population at Risk'!AJ$5","v":9.5390053415571035E-3},{"$f":"'Population at Risk'!AK184/'Population at Risk'!AK$5","v":2.2414913684767706E-2},{"$f":"'Population at Risk'!AL184/'Population at Risk'!AL$5","v":1.0859313268343123E-2},{"$f":"'Population at Risk'!AM184/'Population at Risk'!AM$5","v":1.0577424191533095E-2},{"$f":"'Population at Risk'!AN184/'Population at Risk'!AN$5","v":2.6183522410281924E-2},{"$f":"'Population at Risk'!AO184/'Population at Risk'!AO$5","v":2.6183522410281924E-2},{"$f":"'Population at Risk'!AP184/'Population at Risk'!AP$5","v":2.4535743525379444E-2},{"$f":"'Population at Risk'!AQ184/'Population at Risk'!AQ$5","v":1.3560061014771609E-2},{"$f":"'Population at Risk'!AR184/'Population at Risk'!AR$5","v":1.2247363053155699E-2},{"$f":"'Population at Risk'!AS184/'Population at Risk'!AS$5","v":2.0731481038970788E-2},{"$f":"'Population at Risk'!AT184/'Population at Risk'!AT$5","v":3.317579600107852E-2},{"$f":"'Population at Risk'!AU184/'Population at Risk'!AU$5","v":3.317579600107852E-2},{"$f":"'Population at Risk'!AV184/'Population at Risk'!AV$5","v":8.4641660042409084E-3},{"$f":"'Population at Risk'!AW184/'Population at Risk'!AW$5","v":1.4892165426040627E-2},{"$f":"'Population at Risk'!AX184/'Population at Risk'!AX$5","v":1.7027342957982756E-2},{"$f":"'Population at Risk'!AY184/'Population at Risk'!AY$5","v":1.4063883339512182E-2},{"$f":"'Population at Risk'!AZ184/'Population at Risk'!AZ$5","v":1.7413622474265065E-2},{"$f":"'Population at Risk'!BA184/'Population at Risk'!BA$5","v":9.7938147122522603E-3},{"$f":"'Population at Risk'!BB184/'Population at Risk'!BB$5","v":1.0435829493421216E-2},{"$f":"'Population at Risk'!BC184/'Population at Risk'!BC$5","v":2.6040902881659441E-3},182]
[null,"Female 55-59",{"$f":"'Population at Risk'!C185/'Population at Risk'!C$5","v":7.4835444551989653E-3},{"$f":"'Population at Risk'!D185/'Population at Risk'!D$5","v":1.4832785910533351E-2},{"$f":"'Population at Risk'!E185/'Population at Risk'!E$5","v":2.108202239334531E-2},{"$f":"'Population at Risk'!F185/'Population at Risk'!F$5","v":1.3789009999583426E-2},{"$f":"'Population at Risk'!G185/'Population at Risk'!G$5","v":1.6355532864083467E-2},{"$f":"'Population at Risk'!H185/'Population at Risk'!H$5","v":9.4863768866282512E-3},{"$f":"'Population at Risk'!I185/'Population at Risk'!I$5","v":2.1666190982576317E-2},{"$f":"'Population at Risk'!J185/'Population at Risk'!J$5","v":1.3898197691639172E-2},{"$f":"'Population at Risk'!K185/'Population at Risk'!K$5","v":9.2187747258090837E-3},{"$f":"'Population at Risk'!L185/'Population at Risk'!L$5","v":1.2030797419394071E-2},{"$f":"'Population at Risk'!M185/'Population at Risk'!M$5","v":1.1808921028387265E-2},{"$f":"'Population at Risk'!N185/'Population at Risk'!N$5","v":1.0684938869719888E-2},{"$f":"'Population at Risk'!O185/'Population at Risk'!O$5","v":7.5498038523896136E-3},{"$f":"'Population at Risk'!P185/'Population at Risk'!P$5","v":1.2644616173983592E-2},{"$f":"'Population at Risk'!Q185/'Population at Risk'!Q$5","v":2.0476494190028512E-2},{"$f":"'Population at Risk'!R185/'Population at Risk'!R$5","v":8.5709306934871332E-3},{"$f":"'Population at Risk'!S185/'Population at Risk'!S$5","v":1.1041190580871663E-2},{"$f":"'Population at Risk'!T185/'Population at Risk'!T$5","v":7.3727926405052603E-3},{"$f":"'Population at Risk'!U185/'Population at Risk'!U$5","v":2.9510396426994305E-3},{"$f":"'Population at Risk'!V185/'Population at Risk'!V$5","v":1.1999718031476838E-2},{"$f":"'Population at Risk'!W185/'Population at Risk'!W$5","v":1.0910877364229341E-2},{"$f":"'Population at Risk'!X185/'Population at Risk'!X$5","v":1.1107801493722173E-2},{"$f":"'Population at Risk'!Y185/'Population at Risk'!Y$5","v":1.1458934497665571E-2},{"$f":"'Population at Risk'!Z185/'Population at Risk'!Z$5","v":6.0859528075958586E-3},{"$f":"'Population at Risk'!AA185/'Population at Risk'!AA$5","v":9.9348027313684584E-3},{"$f":"'Population at Risk'!AB185/'Population at Risk'!AB$5","v":1.6431088753164336E-2},{"$f":"'Population at Risk'!AC185/'Population at Risk'!AC$5","v":8.8366596723889849E-3},{"$f":"'Population at Risk'!AD185/'Population at Risk'!AD$5","v":1.9786342682616642E-2},{"$f":"'Population at Risk'!AE185/'Population at Risk'!AE$5","v":1.837379408668675E-2},{"$f":"'Population at Risk'!AF185/'Population at Risk'!AF$5","v":1.3543196213814364E-2},{"$f":"'Population at Risk'!AG185/'Population at Risk'!AG$5","v":2.0329204560158586E-2},{"$f":"'Population at Risk'!AH185/'Population at Risk'!AH$5","v":1.199070496855752E-2},{"$f":"'Population at Risk'!AI185/'Population at Risk'!AI$5","v":9.5656178345790866E-3},{"$f":"'Population at Risk'!AJ185/'Population at Risk'!AJ$5","v":9.1108869886362704E-3},{"$f":"'Population at Risk'!AK185/'Population at Risk'!AK$5","v":2.2648553826466182E-2},{"$f":"'Population at Risk'!AL185/'Population at Risk'!AL$5","v":1.0910171191513926E-2},{"$f":"'Population at Risk'!AM185/'Population at Risk'!AM$5","v":9.6782861140939334E-3},{"$f":"'Population at Risk'!AN185/'Population at Risk'!AN$5","v":2.8324581508846799E-2},{"$f":"'Population at Risk'!AO185/'Population at Risk'!AO$5","v":2.8324581508846799E-2},{"$f":"'Population at Risk'!AP185/'Population at Risk'!AP$5","v":2.4525874572728E-2},{"$f":"'Population at Risk'!AQ185/'Population at Risk'!AQ$5","v":1.411781583510204E-2},{"$f":"'Population at Risk'!AR185/'Population at Risk'!AR$5","v":1.232793796927395E-2},{"$f":"'Population at Risk'!AS185/'Population at Risk'!AS$5","v":2.1666190982576317E-2},{"$f":"'Population at Risk'!AT185/'Population at Risk'!AT$5","v":3.2542235065690851E-2},{"$f":"'Population at Risk'!AU185/'Population at Risk'!AU$5","v":3.2542235065690851E-2},{"$f":"'Population at Risk'!AV185/'Population at Risk'!AV$5","v":9.9070859772570057E-3},{"$f":"'Population at Risk'!AW185/'Population at Risk'!AW$5","v":1.4764024299667769E-2},{"$f":"'Population at Risk'!AX185/'Population at Risk'!AX$5","v":1.5348340163408863E-2},{"$f":"'Population at Risk'!AY185/'Population at Risk'!AY$5","v":1.4377981703650513E-2},{"$f":"'Population at Risk'!AZ185/'Population at Risk'!AZ$5","v":1.7737080200356598E-2},{"$f":"'Population at Risk'!BA185/'Population at Risk'!BA$5","v":1.1297290302384584E-2},{"$f":"'Population at Risk'!BB185/'Population at Risk'!BB$5","v":9.2708104440781224E-3},{"$f":"'Population at Risk'!BC185/'Population at Risk'!BC$5","v":2.5500250882498189E-3},183]
[null,"Female 60-64",{"$f":"'Population at Risk'!C186/'Population at Risk'!C$5","v":6.9206549011917133E-3},{"$f":"'Population at Risk'!D186/'Population at Risk'!D$5","v":1.3397463195247736E-2},{"$f":"'Population at Risk'!E186/'Population at Risk'!E$5","v":1.8902841106378136E-2},{"$f":"'Population at Risk'!F186/'Population at Risk'!F$5","v":1.3902137702405898E-2},{"$f":"'Population at Risk'!G186/'Population at Risk'!G$5","v":1.5487609539928096E-2},{"$f":"'Population at Risk'!H186/'Population at Risk'!H$5","v":8.8208178704365647E-3},{"$f":"'Population at Risk'!I186/'Population at Risk'!I$5","v":1.9526478449110769E-2},{"$f":"'Population at Risk'!J186/'Population at Risk'!J$5","v":1.1578058826178234E-2},{"$f":"'Population at Risk'!K186/'Population at Risk'!K$5","v":7.5582500857565163E-3},{"$f":"'Population at Risk'!L186/'Population at Risk'!L$5","v":1.1587168366176731E-2},{"$f":"'Population at Risk'!M186/'Population at Risk'!M$5","v":1.1373473545338745E-2},{"$f":"'Population at Risk'!N186/'Population at Risk'!N$5","v":7.6357292041636772E-3},{"$f":"'Population at Risk'!O186/'Population at Risk'!O$5","v":6.7376279834204279E-3},{"$f":"'Population at Risk'!P186/'Population at Risk'!P$5","v":1.0099091692568951E-2},{"$f":"'Population at Risk'!Q186/'Population at Risk'!Q$5","v":1.7109391683564342E-2},{"$f":"'Population at Risk'!R186/'Population at Risk'!R$5","v":7.6514438757950259E-3},{"$f":"'Population at Risk'!S186/'Population at Risk'!S$5","v":9.6287246322338382E-3},{"$f":"'Population at Risk'!T186/'Population at Risk'!T$5","v":6.1858319085533837E-3},{"$f":"'Population at Risk'!U186/'Population at Risk'!U$5","v":1.9334397659065232E-3},{"$f":"'Population at Risk'!V186/'Population at Risk'!V$5","v":9.986644434818585E-3},{"$f":"'Population at Risk'!W186/'Population at Risk'!W$5","v":9.9430838677667128E-3},{"$f":"'Population at Risk'!X186/'Population at Risk'!X$5","v":1.0122540850901128E-2},{"$f":"'Population at Risk'!Y186/'Population at Risk'!Y$5","v":9.5416225817162997E-3},{"$f":"'Population at Risk'!Z186/'Population at Risk'!Z$5","v":4.7541962926035495E-3},{"$f":"'Population at Risk'!AA186/'Population at Risk'!AA$5","v":8.1982235456562157E-3},{"$f":"'Population at Risk'!AB186/'Population at Risk'!AB$5","v":1.4792247693108466E-2},{"$f":"'Population at Risk'!AC186/'Population at Risk'!AC$5","v":7.1543296746395778E-3},{"$f":"'Population at Risk'!AD186/'Population at Risk'!AD$5","v":1.8849897854776775E-2},{"$f":"'Population at Risk'!AE186/'Population at Risk'!AE$5","v":1.7534894459659858E-2},{"$f":"'Population at Risk'!AF186/'Population at Risk'!AF$5","v":1.0632898550270499E-2},{"$f":"'Population at Risk'!AG186/'Population at Risk'!AG$5","v":1.9401025979142079E-2},{"$f":"'Population at Risk'!AH186/'Population at Risk'!AH$5","v":1.0165150563001397E-2},{"$f":"'Population at Risk'!AI186/'Population at Risk'!AI$5","v":8.0704096099507069E-3},{"$f":"'Population at Risk'!AJ186/'Population at Risk'!AJ$5","v":8.3220656043387579E-3},{"$f":"'Population at Risk'!AK186/'Population at Risk'!AK$5","v":2.0169274265580833E-2},{"$f":"'Population at Risk'!AL186/'Population at Risk'!AL$5","v":1.0934716008592697E-2},{"$f":"'Population at Risk'!AM186/'Population at Risk'!AM$5","v":8.2556808942536794E-3},{"$f":"'Population at Risk'!AN186/'Population at Risk'!AN$5","v":2.6194913726226739E-2},{"$f":"'Population at Risk'!AO186/'Population at Risk'!AO$5","v":2.6194913726226739E-2},{"$f":"'Population at Risk'!AP186/'Population at Risk'!AP$5","v":2.3171555355597204E-2},{"$f":"'Population at Risk'!AQ186/'Population at Risk'!AQ$5","v":1.2241192492620944E-2},{"$f":"'Population at Risk'!AR186/'Population at Risk'!AR$5","v":1.0856227285394936E-2},{"$f":"'Population at Risk'!AS186/'Population at Risk'!AS$5","v":1.9526478449110769E-2},{"$f":"'Population at Risk'!AT186/'Population at Risk'!AT$5","v":2.9353096029253151E-2},{"$f":"'Population at Risk'!AU186/'Population at Risk'!AU$5","v":2.9353096029253151E-2},{"$f":"'Population at Risk'!AV186/'Population at Risk'!AV$5","v":8.6035220328810839E-3},{"$f":"'Population at Risk'!AW186/'Population at Risk'!AW$5","v":1.2462431313508431E-2},{"$f":"'Population at Risk'!AX186/'Population at Risk'!AX$5","v":1.2858046560736563E-2},{"$f":"'Population at Risk'!AY186/'Population at Risk'!AY$5","v":1.314222357358211E-2},{"$f":"'Population at Risk'!AZ186/'Population at Risk'!AZ$5","v":1.6240930813155467E-2},{"$f":"'Population at Risk'!BA186/'Population at Risk'!BA$5","v":8.4477054497258605E-3},{"$f":"'Population at Risk'!BB186/'Population at Risk'!BB$5","v":7.7256753700651023E-3},{"$f":"'Population at Risk'!BC186/'Population at Risk'!BC$5","v":1.6707060923016055E-3},184]
[null,"Female 65-69",{"$f":"'Population at Risk'!C187/'Population at Risk'!C$5","v":3.5513943822870378E-3},{"$f":"'Population at Risk'!D187/'Population at Risk'!D$5","v":6.6231158691219165E-3},{"$f":"'Population at Risk'!E187/'Population at Risk'!E$5","v":9.2324618865360867E-3},{"$f":"'Population at Risk'!F187/'Population at Risk'!F$5","v":7.431740732231417E-3},{"$f":"'Population at Risk'!G187/'Population at Risk'!G$5","v":8.8479334672634559E-3},{"$f":"'Population at Risk'!H187/'Population at Risk'!H$5","v":4.477571787979708E-3},{"$f":"'Population at Risk'!I187/'Population at Risk'!I$5","v":1.0562101333985895E-2},{"$f":"'Population at Risk'!J187/'Population at Risk'!J$5","v":5.9812075699988872E-3},{"$f":"'Population at Risk'!K187/'Population at Risk'!K$5","v":4.1782875364726009E-3},{"$f":"'Population at Risk'!L187/'Population at Risk'!L$5","v":5.4926833240579844E-3},{"$f":"'Population at Risk'!M187/'Population at Risk'!M$5","v":5.3913852379543414E-3},{"$f":"'Population at Risk'!N187/'Population at Risk'!N$5","v":4.2020140258754255E-3},{"$f":"'Population at Risk'!O187/'Population at Risk'!O$5","v":3.3161035992270464E-3},{"$f":"'Population at Risk'!P187/'Population at Risk'!P$5","v":4.9200672532262275E-3},{"$f":"'Population at Risk'!Q187/'Population at Risk'!Q$5","v":8.5301504042786819E-3},{"$f":"'Population at Risk'!R187/'Population at Risk'!R$5","v":3.47584004703383E-3},{"$f":"'Population at Risk'!S187/'Population at Risk'!S$5","v":4.8846403143531451E-3},{"$f":"'Population at Risk'!T187/'Population at Risk'!T$5","v":2.9622787595221418E-3},{"$f":"'Population at Risk'!U187/'Population at Risk'!U$5","v":1.4952452587656516E-3},{"$f":"'Population at Risk'!V187/'Population at Risk'!V$5","v":5.5288797793125758E-3},{"$f":"'Population at Risk'!W187/'Population at Risk'!W$5","v":5.0978906060081142E-3},{"$f":"'Population at Risk'!X187/'Population at Risk'!X$5","v":5.1898994918497835E-3},{"$f":"'Population at Risk'!Y187/'Population at Risk'!Y$5","v":5.0933658440916662E-3},{"$f":"'Population at Risk'!Z187/'Population at Risk'!Z$5","v":2.0725850353122293E-3},{"$f":"'Population at Risk'!AA187/'Population at Risk'!AA$5","v":3.7023260541584955E-3},{"$f":"'Population at Risk'!AB187/'Population at Risk'!AB$5","v":7.4969289899428863E-3},{"$f":"'Population at Risk'!AC187/'Population at Risk'!AC$5","v":3.3062764291958723E-3},{"$f":"'Population at Risk'!AD187/'Population at Risk'!AD$5","v":9.5541538320529206E-3},{"$f":"'Population at Risk'!AE187/'Population at Risk'!AE$5","v":8.5612708964277091E-3},{"$f":"'Population at Risk'!AF187/'Population at Risk'!AF$5","v":4.953780867622372E-3},{"$f":"'Population at Risk'!AG187/'Population at Risk'!AG$5","v":9.4723945706194392E-3},{"$f":"'Population at Risk'!AH187/'Population at Risk'!AH$5","v":4.4425898368264478E-3},{"$f":"'Population at Risk'!AI187/'Population at Risk'!AI$5","v":3.9763589377351388E-3},{"$f":"'Population at Risk'!AJ187/'Population at Risk'!AJ$5","v":4.5086315105009921E-3},{"$f":"'Population at Risk'!AK187/'Population at Risk'!AK$5","v":1.1055872847398051E-2},{"$f":"'Population at Risk'!AL187/'Population at Risk'!AL$5","v":5.5871376632930948E-3},{"$f":"'Population at Risk'!AM187/'Population at Risk'!AM$5","v":3.4319877646914057E-3},{"$f":"'Population at Risk'!AN187/'Population at Risk'!AN$5","v":1.3507262545077265E-2},{"$f":"'Population at Risk'!AO187/'Population at Risk'!AO$5","v":1.3507262545077265E-2},{"$f":"'Population at Risk'!AP187/'Population at Risk'!AP$5","v":1.1694502358684487E-2},{"$f":"'Population at Risk'!AQ187/'Population at Risk'!AQ$5","v":5.678272433026545E-3},{"$f":"'Population at Risk'!AR187/'Population at Risk'!AR$5","v":5.3807656103950661E-3},{"$f":"'Population at Risk'!AS187/'Population at Risk'!AS$5","v":1.0562101333985895E-2},{"$f":"'Population at Risk'!AT187/'Population at Risk'!AT$5","v":1.3745375305935347E-2},{"$f":"'Population at Risk'!AU187/'Population at Risk'!AU$5","v":1.3745375305935347E-2},{"$f":"'Population at Risk'!AV187/'Population at Risk'!AV$5","v":4.4610761163821275E-3},{"$f":"'Population at Risk'!AW187/'Population at Risk'!AW$5","v":5.6327797036884175E-3},{"$f":"'Population at Risk'!AX187/'Population at Risk'!AX$5","v":6.4804894881653873E-3},{"$f":"'Population at Risk'!AY187/'Population at Risk'!AY$5","v":6.8006108568412875E-3},{"$f":"'Population at Risk'!AZ187/'Population at Risk'!AZ$5","v":8.4486689264524836E-3},{"$f":"'Population at Risk'!BA187/'Population at Risk'!BA$5","v":4.3990337117846392E-3},{"$f":"'Population at Risk'!BB187/'Population at Risk'!BB$5","v":3.8125411692541606E-3},{"$f":"'Population at Risk'!BC187/'Population at Risk'!BC$5","v":1.29205750670675E-3},185]
[null,"Female 70-74",{"$f":"'Population at Risk'!C188/'Population at Risk'!C$5","v":2.5017919939997755E-3},{"$f":"'Population at Risk'!D188/'Population at Risk'!D$5","v":4.7923630336723271E-3},{"$f":"'Population at Risk'!E188/'Population at Risk'!E$5","v":6.7390459118048095E-3},{"$f":"'Population at Risk'!F188/'Population at Risk'!F$5","v":5.9040703542495576E-3},{"$f":"'Population at Risk'!G188/'Population at Risk'!G$5","v":7.0034131353257974E-3},{"$f":"'Population at Risk'!H188/'Population at Risk'!H$5","v":3.7714931598752154E-3},{"$f":"'Population at Risk'!I188/'Population at Risk'!I$5","v":8.4496810671887169E-3},{"$f":"'Population at Risk'!J188/'Population at Risk'!J$5","v":4.7579068700085393E-3},{"$f":"'Population at Risk'!K188/'Population at Risk'!K$5","v":3.2371033132398649E-3},{"$f":"'Population at Risk'!L188/'Population at Risk'!L$5","v":4.7350718310844699E-3},{"$f":"'Population at Risk'!M188/'Population at Risk'!M$5","v":4.6477458947882253E-3},{"$f":"'Population at Risk'!N188/'Population at Risk'!N$5","v":2.9490038193643801E-3},{"$f":"'Population at Risk'!O188/'Population at Risk'!O$5","v":2.4557399506303385E-3},{"$f":"'Population at Risk'!P188/'Population at Risk'!P$5","v":3.4936612008203043E-3},{"$f":"'Population at Risk'!Q188/'Population at Risk'!Q$5","v":6.1067210326021422E-3},{"$f":"'Population at Risk'!R188/'Population at Risk'!R$5","v":2.7152444602711327E-3},{"$f":"'Population at Risk'!S188/'Population at Risk'!S$5","v":3.7020245313884588E-3},{"$f":"'Population at Risk'!T188/'Population at Risk'!T$5","v":2.2305851003176108E-3},{"$f":"'Population at Risk'!U188/'Population at Risk'!U$5","v":1.1657844390376268E-3},{"$f":"'Population at Risk'!V188/'Population at Risk'!V$5","v":4.1396577071043505E-3},{"$f":"'Population at Risk'!W188/'Population at Risk'!W$5","v":3.9466830123370249E-3},{"$f":"'Population at Risk'!X188/'Population at Risk'!X$5","v":4.0179144166177299E-3},{"$f":"'Population at Risk'!Y188/'Population at Risk'!Y$5","v":3.9369131499985876E-3},{"$f":"'Population at Risk'!Z188/'Population at Risk'!Z$5","v":1.4845560176065934E-3},{"$f":"'Population at Risk'!AA188/'Population at Risk'!AA$5","v":2.6316031945147179E-3},{"$f":"'Population at Risk'!AB188/'Population at Risk'!AB$5","v":5.4788520746917192E-3},{"$f":"'Population at Risk'!AC188/'Population at Risk'!AC$5","v":2.4425870551840561E-3},{"$f":"'Population at Risk'!AD188/'Population at Risk'!AD$5","v":7.318911588843611E-3},{"$f":"'Population at Risk'!AE188/'Population at Risk'!AE$5","v":6.4845736257712998E-3},{"$f":"'Population at Risk'!AF188/'Population at Risk'!AF$5","v":4.1433697118592652E-3},{"$f":"'Population at Risk'!AG188/'Population at Risk'!AG$5","v":7.1746871169756053E-3},{"$f":"'Population at Risk'!AH188/'Population at Risk'!AH$5","v":2.9761599231761327E-3},{"$f":"'Population at Risk'!AI188/'Population at Risk'!AI$5","v":2.9142695797733107E-3},{"$f":"'Population at Risk'!AJ188/'Population at Risk'!AJ$5","v":3.4772452172491313E-3},{"$f":"'Population at Risk'!AK188/'Population at Risk'!AK$5","v":8.3190228142308361E-3},{"$f":"'Population at Risk'!AL188/'Population at Risk'!AL$5","v":4.5540673513712864E-3},{"$f":"'Population at Risk'!AM188/'Population at Risk'!AM$5","v":2.2481511891427951E-3},{"$f":"'Population at Risk'!AN188/'Population at Risk'!AN$5","v":1.0218845223893533E-2},{"$f":"'Population at Risk'!AO188/'Population at Risk'!AO$5","v":1.0218845223893533E-2},{"$f":"'Population at Risk'!AP188/'Population at Risk'!AP$5","v":8.8960432543755789E-3},{"$f":"'Population at Risk'!AQ188/'Population at Risk'!AQ$5","v":4.0827692044467113E-3},{"$f":"'Population at Risk'!AR188/'Population at Risk'!AR$5","v":4.0593255808758924E-3},{"$f":"'Population at Risk'!AS188/'Population at Risk'!AS$5","v":8.4496810671887169E-3},{"$f":"'Population at Risk'!AT188/'Population at Risk'!AT$5","v":1.1087071591108227E-2},{"$f":"'Population at Risk'!AU188/'Population at Risk'!AU$5","v":1.1087071591108227E-2},{"$f":"'Population at Risk'!AV188/'Population at Risk'!AV$5","v":4.3999654846508659E-3},{"$f":"'Population at Risk'!AW188/'Population at Risk'!AW$5","v":3.8274015935318732E-3},{"$f":"'Population at Risk'!AX188/'Population at Risk'!AX$5","v":5.2063307476537032E-3},{"$f":"'Population at Risk'!AY188/'Population at Risk'!AY$5","v":5.2074831020911209E-3},{"$f":"'Population at Risk'!AZ188/'Population at Risk'!AZ$5","v":6.4288765762219521E-3},{"$f":"'Population at Risk'!BA188/'Population at Risk'!BA$5","v":3.3823234031113017E-3},{"$f":"'Population at Risk'!BB188/'Population at Risk'!BB$5","v":2.6247366276078818E-3},{"$f":"'Population at Risk'!BC188/'Population at Risk'!BC$5","v":1.0073668696357712E-3},186]
[null,"Female 75-79",{"$f":"'Population at Risk'!C189/'Population at Risk'!C$5","v":1.3655215382648068E-3},{"$f":"'Population at Risk'!D189/'Population at Risk'!D$5","v":2.4632249492702986E-3},{"$f":"'Population at Risk'!E189/'Population at Risk'!E$5","v":3.3951002670606833E-3},{"$f":"'Population at Risk'!F189/'Population at Risk'!F$5","v":2.9489728913725316E-3},{"$f":"'Population at Risk'!G189/'Population at Risk'!G$5","v":3.4584377931046674E-3},{"$f":"'Population at Risk'!H189/'Population at Risk'!H$5","v":1.7060080231700065E-3},{"$f":"'Population at Risk'!I189/'Population at Risk'!I$5","v":4.3737955011599761E-3},{"$f":"'Population at Risk'!J189/'Population at Risk'!J$5","v":2.239231673577066E-3},{"$f":"'Population at Risk'!K189/'Population at Risk'!K$5","v":1.3634896969980871E-3},{"$f":"'Population at Risk'!L189/'Population at Risk'!L$5","v":2.3936750139748378E-3},{"$f":"'Population at Risk'!M189/'Population at Risk'!M$5","v":2.3495299789593068E-3},{"$f":"'Population at Risk'!N189/'Population at Risk'!N$5","v":1.6527939584253721E-3},{"$f":"'Population at Risk'!O189/'Population at Risk'!O$5","v":1.1151668061151489E-3},{"$f":"'Population at Risk'!P189/'Population at Risk'!P$5","v":2.1225061337278826E-3},{"$f":"'Population at Risk'!Q189/'Population at Risk'!Q$5","v":2.9351693857185366E-3},{"$f":"'Population at Risk'!R189/'Population at Risk'!R$5","v":1.5849394839664156E-3},{"$f":"'Population at Risk'!S189/'Population at Risk'!S$5","v":1.8430174244444025E-3},{"$f":"'Population at Risk'!T189/'Population at Risk'!T$5","v":1.1708555407868172E-3},{"$f":"'Population at Risk'!U189/'Population at Risk'!U$5","v":6.179863863205135E-4},{"$f":"'Population at Risk'!V189/'Population at Risk'!V$5","v":2.0920779771704478E-3},{"$f":"'Population at Risk'!W189/'Population at Risk'!W$5","v":1.8489556431136576E-3},{"$f":"'Population at Risk'!X189/'Population at Risk'!X$5","v":1.8823263765878244E-3},{"$f":"'Population at Risk'!Y189/'Population at Risk'!Y$5","v":1.9166941433588962E-3},{"$f":"'Population at Risk'!Z189/'Population at Risk'!Z$5","v":8.5505773647088753E-4},{"$f":"'Population at Risk'!AA189/'Population at Risk'!AA$5","v":1.4067886496147532E-3},{"$f":"'Population at Risk'!AB189/'Population at Risk'!AB$5","v":2.7482553011440409E-3},{"$f":"'Population at Risk'!AC189/'Population at Risk'!AC$5","v":1.3136503882419449E-3},{"$f":"'Population at Risk'!AD189/'Population at Risk'!AD$5","v":3.6271089376503445E-3},{"$f":"'Population at Risk'!AE189/'Population at Risk'!AE$5","v":3.2176552368502831E-3},{"$f":"'Population at Risk'!AF189/'Population at Risk'!AF$5","v":1.7725451940602281E-3},{"$f":"'Population at Risk'!AG189/'Population at Risk'!AG$5","v":3.5600905945381905E-3},{"$f":"'Population at Risk'!AH189/'Population at Risk'!AH$5","v":1.5754579134244916E-3},{"$f":"'Population at Risk'!AI189/'Population at Risk'!AI$5","v":1.4753003701941825E-3},{"$f":"'Population at Risk'!AJ189/'Population at Risk'!AJ$5","v":1.6577639609194894E-3},{"$f":"'Population at Risk'!AK189/'Population at Risk'!AK$5","v":3.8765966159918816E-3},{"$f":"'Population at Risk'!AL189/'Population at Risk'!AL$5","v":2.0083898902264474E-3},{"$f":"'Population at Risk'!AM189/'Population at Risk'!AM$5","v":1.2362946244288179E-3},{"$f":"'Population at Risk'!AN189/'Population at Risk'!AN$5","v":5.1506818486109895E-3},{"$f":"'Population at Risk'!AO189/'Population at Risk'!AO$5","v":5.1506818486109895E-3},{"$f":"'Population at Risk'!AP189/'Population at Risk'!AP$5","v":4.697443643246659E-3},{"$f":"'Population at Risk'!AQ189/'Population at Risk'!AQ$5","v":1.9649476427293401E-3},{"$f":"'Population at Risk'!AR189/'Population at Risk'!AR$5","v":2.049467548641974E-3},{"$f":"'Population at Risk'!AS189/'Population at Risk'!AS$5","v":4.3737955011599761E-3},{"$f":"'Population at Risk'!AT189/'Population at Risk'!AT$5","v":5.0135191423746894E-3},{"$f":"'Population at Risk'!AU189/'Population at Risk'!AU$5","v":5.0135191423746894E-3},{"$f":"'Population at Risk'!AV189/'Population at Risk'!AV$5","v":2.0489811222384343E-3},{"$f":"'Population at Risk'!AW189/'Population at Risk'!AW$5","v":1.97720530843718E-3},{"$f":"'Population at Risk'!AX189/'Population at Risk'!AX$5","v":2.5449504877446383E-3},{"$f":"'Population at Risk'!AY189/'Population at Risk'!AY$5","v":2.6234452883920792E-3},{"$f":"'Population at Risk'!AZ189/'Population at Risk'!AZ$5","v":3.3701504809905344E-3},{"$f":"'Population at Risk'!BA189/'Population at Risk'!BA$5","v":1.7505722235328072E-3},{"$f":"'Population at Risk'!BB189/'Population at Risk'!BB$5","v":1.3417341300503297E-3},{"$f":"'Population at Risk'!BC189/'Population at Risk'!BC$5","v":5.340086817243278E-4},187]
[null,"Female 80-84",{"$f":"'Population at Risk'!C190/'Population at Risk'!C$5","v":1.0541272685591499E-3},{"$f":"'Population at Risk'!D190/'Population at Risk'!D$5","v":1.8522422595035146E-3},{"$f":"'Population at Risk'!E190/'Population at Risk'!E$5","v":2.5294094017785044E-3},{"$f":"'Population at Risk'!F190/'Population at Risk'!F$5","v":2.3744454752059486E-3},{"$f":"'Population at Risk'!G190/'Population at Risk'!G$5","v":2.3611081546507802E-3},{"$f":"'Population at Risk'!H190/'Population at Risk'!H$5","v":1.299881416844515E-3},{"$f":"'Population at Risk'!I190/'Population at Risk'!I$5","v":2.9854840078142528E-3},{"$f":"'Population at Risk'!J190/'Population at Risk'!J$5","v":1.7581043511445142E-3},{"$f":"'Population at Risk'!K190/'Population at Risk'!K$5","v":1.0066031320120105E-3},{"$f":"'Population at Risk'!L190/'Population at Risk'!L$5","v":1.894008015288976E-3},{"$f":"'Population at Risk'!M190/'Population at Risk'!M$5","v":1.8590780228436828E-3},{"$f":"'Population at Risk'!N190/'Population at Risk'!N$5","v":1.6446721207918323E-3},{"$f":"'Population at Risk'!O190/'Population at Risk'!O$5","v":6.9835036055079802E-4},{"$f":"'Population at Risk'!P190/'Population at Risk'!P$5","v":1.4901761813881176E-3},{"$f":"'Population at Risk'!Q190/'Population at Risk'!Q$5","v":2.2811930489005467E-3},{"$f":"'Population at Risk'!R190/'Population at Risk'!R$5","v":1.3487730045674464E-3},{"$f":"'Population at Risk'!S190/'Population at Risk'!S$5","v":1.3763875500118522E-3},{"$f":"'Population at Risk'!T190/'Population at Risk'!T$5","v":1.0034489533139136E-3},{"$f":"'Population at Risk'!U190/'Population at Risk'!U$5","v":3.0899319316025675E-4},{"$f":"'Population at Risk'!V190/'Population at Risk'!V$5","v":1.5205309009331605E-3},{"$f":"'Population at Risk'!W190/'Population at Risk'!W$5","v":1.3785948874552557E-3},{"$f":"'Population at Risk'!X190/'Population at Risk'!X$5","v":1.4034763510693022E-3},{"$f":"'Population at Risk'!Y190/'Population at Risk'!Y$5","v":1.4506869078378323E-3},{"$f":"'Population at Risk'!Z190/'Population at Risk'!Z$5","v":6.4222271293628609E-4},{"$f":"'Population at Risk'!AA190/'Population at Risk'!AA$5","v":1.0358053744265561E-3},{"$f":"'Population at Risk'!AB190/'Population at Risk'!AB$5","v":2.1071169863503447E-3},{"$f":"'Population at Risk'!AC190/'Population at Risk'!AC$5","v":1.0032798476806522E-3},{"$f":"'Population at Risk'!AD190/'Population at Risk'!AD$5","v":2.7510200380138914E-3},{"$f":"'Population at Risk'!AE190/'Population at Risk'!AE$5","v":2.5261416113868452E-3},{"$f":"'Population at Risk'!AF190/'Population at Risk'!AF$5","v":1.6553521233785601E-3},{"$f":"'Population at Risk'!AG190/'Population at Risk'!AG$5","v":2.7949834053611236E-3},{"$f":"'Population at Risk'!AH190/'Population at Risk'!AH$5","v":1.089205471009525E-3},{"$f":"'Population at Risk'!AI190/'Population at Risk'!AI$5","v":1.1434319971806823E-3},{"$f":"'Population at Risk'!AJ190/'Population at Risk'!AJ$5","v":1.1219847340063465E-3},{"$f":"'Population at Risk'!AK190/'Population at Risk'!AK$5","v":3.1537505619049977E-3},{"$f":"'Population at Risk'!AL190/'Population at Risk'!AL$5","v":1.4945245081567902E-3},{"$f":"'Population at Risk'!AM190/'Population at Risk'!AM$5","v":7.834126940619836E-4},{"$f":"'Population at Risk'!AN190/'Population at Risk'!AN$5","v":3.0404906066690421E-3},{"$f":"'Population at Risk'!AO190/'Population at Risk'!AO$5","v":3.0404906066690421E-3},{"$f":"'Population at Risk'!AP190/'Population at Risk'!AP$5","v":3.43261720510825E-3},{"$f":"'Population at Risk'!AQ190/'Population at Risk'!AQ$5","v":1.5133544125582111E-3},{"$f":"'Population at Risk'!AR190/'Population at Risk'!AR$5","v":1.5472945555084325E-3},{"$f":"'Population at Risk'!AS190/'Population at Risk'!AS$5","v":2.9854840078142528E-3},{"$f":"'Population at Risk'!AT190/'Population at Risk'!AT$5","v":3.5781132468400271E-3},{"$f":"'Population at Risk'!AU190/'Population at Risk'!AU$5","v":3.5781132468400271E-3},{"$f":"'Population at Risk'!AV190/'Population at Risk'!AV$5","v":1.8087895552774695E-3},{"$f":"'Population at Risk'!AW190/'Population at Risk'!AW$5","v":1.4423558255884509E-3},{"$f":"'Population at Risk'!AX190/'Population at Risk'!AX$5","v":2.0359603901957107E-3},{"$f":"'Population at Risk'!AY190/'Population at Risk'!AY$5","v":2.041216743013061E-3},{"$f":"'Population at Risk'!AZ190/'Population at Risk'!AZ$5","v":2.6788034060363491E-3},{"$f":"'Population at Risk'!BA190/'Population at Risk'!BA$5","v":1.1433626699826822E-3},{"$f":"'Population at Risk'!BB190/'Population at Risk'!BB$5","v":8.3358801271211978E-4},{"$f":"'Population at Risk'!BC190/'Population at Risk'!BC$5","v":2.670043408621639E-4},188]
[null,"Female 85-89",{"$f":"'Population at Risk'!C191/'Population at Risk'!C$5","v":6.4585478161173298E-4},{"$f":"'Population at Risk'!D191/'Population at Risk'!D$5","v":1.1651547083798149E-3},{"$f":"'Population at Risk'!E191/'Population at Risk'!E$5","v":1.60600581214418E-3},{"$f":"'Population at Risk'!F191/'Population at Risk'!F$5","v":1.4021683093855771E-3},{"$f":"'Population at Risk'!G191/'Population at Risk'!G$5","v":1.541193312435235E-3},{"$f":"'Population at Risk'!H191/'Population at Risk'!H$5","v":7.6252342412133081E-4},{"$f":"'Population at Risk'!I191/'Population at Risk'!I$5","v":1.9411789022002141E-3},{"$f":"'Population at Risk'!J191/'Population at Risk'!J$5","v":1.0816321008070159E-3},{"$f":"'Population at Risk'!K191/'Population at Risk'!K$5","v":6.3141469189844301E-4},{"$f":"'Population at Risk'!L191/'Population at Risk'!L$5","v":1.1073701051956936E-3},{"$f":"'Population at Risk'!M191/'Population at Risk'!M$5","v":1.08694757841841E-3},{"$f":"'Population at Risk'!N191/'Population at Risk'!N$5","v":1.3157376966334657E-3},{"$f":"'Population at Risk'!O191/'Population at Risk'!O$5","v":4.2412901478477793E-4},{"$f":"'Population at Risk'!P191/'Population at Risk'!P$5","v":1.140847046878737E-3},{"$f":"'Population at Risk'!Q191/'Population at Risk'!Q$5","v":1.3028032536610346E-3},{"$f":"'Population at Risk'!R191/'Population at Risk'!R$5","v":8.8693633374279551E-4},{"$f":"'Population at Risk'!S191/'Population at Risk'!S$5","v":9.0558795289956342E-4},{"$f":"'Population at Risk'!T191/'Population at Risk'!T$5","v":8.2712722212943516E-4},{"$f":"'Population at Risk'!U191/'Population at Risk'!U$5","v":3.5778159208029727E-4},{"$f":"'Population at Risk'!V191/'Population at Risk'!V$5","v":9.1303746769981747E-4},{"$f":"'Population at Risk'!W191/'Population at Risk'!W$5","v":8.3619689894826987E-4},{"$f":"'Population at Risk'!X191/'Population at Risk'!X$5","v":8.5128893425515052E-4},{"$f":"'Population at Risk'!Y191/'Population at Risk'!Y$5","v":8.8254110014776826E-4},{"$f":"'Population at Risk'!Z191/'Population at Risk'!Z$5","v":4.1358770948863574E-4},{"$f":"'Population at Risk'!AA191/'Population at Risk'!AA$5","v":6.5855019264177042E-4},{"$f":"'Population at Risk'!AB191/'Population at Risk'!AB$5","v":1.3313850962524407E-3},{"$f":"'Population at Risk'!AC191/'Population at Risk'!AC$5","v":6.7026829504194022E-4},{"$f":"'Population at Risk'!AD191/'Population at Risk'!AD$5","v":1.6849156956539847E-3},{"$f":"'Population at Risk'!AE191/'Population at Risk'!AE$5","v":1.5160881817740683E-3},{"$f":"'Population at Risk'!AF191/'Population at Risk'!AF$5","v":1.0547376361350119E-3},{"$f":"'Population at Risk'!AG191/'Population at Risk'!AG$5","v":1.6774361698575937E-3},{"$f":"'Population at Risk'!AH191/'Population at Risk'!AH$5","v":6.2888649219002338E-4},{"$f":"'Population at Risk'!AI191/'Population at Risk'!AI$5","v":7.8544160554000139E-4},{"$f":"'Population at Risk'!AJ191/'Population at Risk'!AJ$5","v":6.0511536216072625E-4},{"$f":"'Population at Risk'!AK191/'Population at Risk'!AK$5","v":2.0186145362278167E-3},{"$f":"'Population at Risk'!AL191/'Population at Risk'!AL$5","v":8.8651584998276792E-4},{"$f":"'Population at Risk'!AM191/'Population at Risk'!AM$5","v":3.2505235324716334E-4},{"$f":"'Population at Risk'!AN191/'Population at Risk'!AN$5","v":2.2236423839818368E-3},{"$f":"'Population at Risk'!AO191/'Population at Risk'!AO$5","v":2.2236423839818368E-3},{"$f":"'Population at Risk'!AP191/'Population at Risk'!AP$5","v":2.3537946549313715E-3},{"$f":"'Population at Risk'!AQ191/'Population at Risk'!AQ$5","v":1.0134993104603965E-3},{"$f":"'Population at Risk'!AR191/'Population at Risk'!AR$5","v":9.8851081107958452E-4},{"$f":"'Population at Risk'!AS191/'Population at Risk'!AS$5","v":1.9411789022002141E-3},{"$f":"'Population at Risk'!AT191/'Population at Risk'!AT$5","v":2.3091312232514129E-3},{"$f":"'Population at Risk'!AU191/'Population at Risk'!AU$5","v":2.3091312232514129E-3},{"$f":"'Population at Risk'!AV191/'Population at Risk'!AV$5","v":1.0293924298327064E-3},{"$f":"'Population at Risk'!AW191/'Population at Risk'!AW$5","v":9.6736314406936251E-4},{"$f":"'Population at Risk'!AX191/'Population at Risk'!AX$5","v":1.2454013025133338E-3},{"$f":"'Population at Risk'!AY191/'Population at Risk'!AY$5","v":1.3400823679439616E-3},{"$f":"'Population at Risk'!AZ191/'Population at Risk'!AZ$5","v":1.8236110705438897E-3},{"$f":"'Population at Risk'!BA191/'Population at Risk'!BA$5","v":7.1702404727727522E-4},{"$f":"'Population at Risk'!BB191/'Population at Risk'!BB$5","v":3.9681073207871453E-4},{"$f":"'Population at Risk'!BC191/'Population at Risk'!BC$5","v":3.0916292099829502E-4},189]
[null,"Female 90+",{"$f":"'Population at Risk'!C192/'Population at Risk'!C$5","v":2.9755452438540555E-4},{"$f":"'Population at Risk'!D192/'Population at Risk'!D$5","v":6.3563637724860201E-4},{"$f":"'Population at Risk'!E192/'Population at Risk'!E$5","v":9.2340358963432416E-4},{"$f":"'Population at Risk'!F192/'Population at Risk'!F$5","v":1.1370018096163849E-3},{"$f":"'Population at Risk'!G192/'Population at Risk'!G$5","v":9.8636371995855054E-4},{"$f":"'Population at Risk'!H192/'Population at Risk'!H$5","v":4.7243299103169411E-4},{"$f":"'Population at Risk'!I192/'Population at Risk'!I$5","v":1.1425926449659487E-3},{"$f":"'Population at Risk'!J192/'Population at Risk'!J$5","v":7.8499721028469044E-4},{"$f":"'Population at Risk'!K192/'Population at Risk'!K$5","v":4.1179219036854983E-4},{"$f":"'Population at Risk'!L192/'Population at Risk'!L$5","v":5.7731795118434032E-4},{"$f":"'Population at Risk'!M192/'Population at Risk'!M$5","v":5.6667084118764669E-4},{"$f":"'Population at Risk'!N192/'Population at Risk'!N$5","v":7.5939181873598178E-4},{"$f":"'Population at Risk'!O192/'Population at Risk'!O$5","v":2.5959620732516578E-4},{"$f":"'Population at Risk'!P192/'Population at Risk'!P$5","v":5.7042352343936848E-4},{"$f":"'Population at Risk'!Q192/'Population at Risk'!Q$5","v":6.6427517676787928E-4},{"$f":"'Population at Risk'!R192/'Population at Risk'!R$5","v":8.8168818975615159E-4},{"$f":"'Population at Risk'!S192/'Population at Risk'!S$5","v":5.3827329138442031E-4},{"$f":"'Population at Risk'!T192/'Population at Risk'!T$5","v":4.883517610895946E-4},{"$f":"'Population at Risk'!U192/'Population at Risk'!U$5","v":1.7889079604014864E-4},{"$f":"'Population at Risk'!V192/'Population at Risk'!V$5","v":6.2187197603176536E-4},{"$f":"'Population at Risk'!W192/'Population at Risk'!W$5","v":5.7488536802693556E-4},{"$f":"'Population at Risk'!X192/'Population at Risk'!X$5","v":5.8526114230041592E-4},{"$f":"'Population at Risk'!Y192/'Population at Risk'!Y$5","v":6.2240692415484568E-4},{"$f":"'Population at Risk'!Z192/'Population at Risk'!Z$5","v":2.5465849977502518E-4},{"$f":"'Population at Risk'!AA192/'Population at Risk'!AA$5","v":3.7161046584785614E-4},{"$f":"'Population at Risk'!AB192/'Population at Risk'!AB$5","v":7.1843867898868045E-4},{"$f":"'Population at Risk'!AC192/'Population at Risk'!AC$5","v":4.0659484189032544E-4},{"$f":"'Population at Risk'!AD192/'Population at Risk'!AD$5","v":1.0963722889884213E-3},{"$f":"'Population at Risk'!AE192/'Population at Risk'!AE$5","v":9.9190875722452343E-4},{"$f":"'Population at Risk'!AF192/'Population at Risk'!AF$5","v":5.493425188203186E-4},{"$f":"'Population at Risk'!AG192/'Population at Risk'!AG$5","v":1.097471536662149E-3},{"$f":"'Population at Risk'!AH192/'Population at Risk'!AH$5","v":2.9916102647625559E-4},{"$f":"'Population at Risk'!AI192/'Population at Risk'!AI$5","v":4.3576276528069615E-4},{"$f":"'Population at Risk'!AJ192/'Population at Risk'!AJ$5","v":4.4753323659803713E-4},{"$f":"'Population at Risk'!AK192/'Population at Risk'!AK$5","v":1.0548197974453047E-3},{"$f":"'Population at Risk'!AL192/'Population at Risk'!AL$5","v":5.8839547565227963E-4},{"$f":"'Population at Risk'!AM192/'Population at Risk'!AM$5","v":1.4426480846362868E-4},{"$f":"'Population at Risk'!AN192/'Population at Risk'!AN$5","v":1.0891309635829402E-3},{"$f":"'Population at Risk'!AO192/'Population at Risk'!AO$5","v":1.0891309635829402E-3},{"$f":"'Population at Risk'!AP192/'Population at Risk'!AP$5","v":1.535377547900636E-3},{"$f":"'Population at Risk'!AQ192/'Population at Risk'!AQ$5","v":5.5501152715688379E-4},{"$f":"'Population at Risk'!AR192/'Population at Risk'!AR$5","v":5.936211298413444E-4},{"$f":"'Population at Risk'!AS192/'Population at Risk'!AS$5","v":1.1425926449659487E-3},{"$f":"'Population at Risk'!AT192/'Population at Risk'!AT$5","v":1.3521939595616381E-3},{"$f":"'Population at Risk'!AU192/'Population at Risk'!AU$5","v":1.3521939595616381E-3},{"$f":"'Population at Risk'!AV192/'Population at Risk'!AV$5","v":5.9312611433217841E-4},{"$f":"'Population at Risk'!AW192/'Population at Risk'!AW$5","v":4.7113095240104681E-4},{"$f":"'Population at Risk'!AX192/'Population at Risk'!AX$5","v":9.3134358274910174E-4},{"$f":"'Population at Risk'!AY192/'Population at Risk'!AY$5","v":9.0956126044539141E-4},{"$f":"'Population at Risk'!AZ192/'Population at Risk'!AZ$5","v":1.2308375669704561E-3},{"$f":"'Population at Risk'!BA192/'Population at Risk'!BA$5","v":3.5528218558783915E-4},{"$f":"'Population at Risk'!BB192/'Population at Risk'!BB$5","v":1.1704489219587984E-4},{"$f":"'Population at Risk'!BC192/'Population at Risk'!BC$5","v":1.5458146049914751E-4},190]
[null,"Male 0-4",{"$f":"'Population at Risk'!C193/'Population at Risk'!C$5","v":0},{"$f":"'Population at Risk'!D193/'Population at Risk'!D$5","v":0},{"$f":"'Population at Risk'!E193/'Population at Risk'!E$5","v":0},{"$f":"'Population at Risk'!F193/'Population at Risk'!F$5","v":0},{"$f":"'Population at Risk'!G193/'Population at Risk'!G$5","v":0},{"$f":"'Population at Risk'!H193/'Population at Risk'!H$5","v":0},{"$f":"'Population at Risk'!I193/'Population at Risk'!I$5","v":0},{"$f":"'Population at Risk'!J193/'Population at Risk'!J$5","v":0},{"$f":"'Population at Risk'!K193/'Population at Risk'!K$5","v":0},{"$f":"'Population at Risk'!L193/'Population at Risk'!L$5","v":0},{"$f":"'Population at Risk'!M193/'Population at Risk'!M$5","v":0},{"$f":"'Population at Risk'!N193/'Population at Risk'!N$5","v":0},{"$f":"'Population at Risk'!O193/'Population at Risk'!O$5","v":0},{"$f":"'Population at Risk'!P193/'Population at Risk'!P$5","v":0},{"$f":"'Population at Risk'!Q193/'Population at Risk'!Q$5","v":0},{"$f":"'Population at Risk'!R193/'Population at Risk'!R$5","v":0},{"$f":"'Population at Risk'!S193/'Population at Risk'!S$5","v":0},{"$f":"'Population at Risk'!T193/'Population at Risk'!T$5","v":0},{"$f":"'Population at Risk'!U193/'Population at Risk'!U$5","v":0},{"$f":"'Population at Risk'!V193/'Population at Risk'!V$5","v":0},{"$f":"'Population at Risk'!W193/'Population at Risk'!W$5","v":0},{"$f":"'Population at Risk'!X193/'Population at Risk'!X$5","v":0},{"$f":"'Population at Risk'!Y193/'Population at Risk'!Y$5","v":0},{"$f":"'Population at Risk'!Z193/'Population at Risk'!Z$5","v":0},{"$f":"'Population at Risk'!AA193/'Population at Risk'!AA$5","v":0},{"$f":"'Population at Risk'!AB193/'Population at Risk'!AB$5","v":0},{"$f":"'Population at Risk'!AC193/'Population at Risk'!AC$5","v":0},{"$f":"'Population at Risk'!AD193/'Population at Risk'!AD$5","v":0},{"$f":"'Population at Risk'!AE193/'Population at Risk'!AE$5","v":0},{"$f":"'Population at Risk'!AF193/'Population at Risk'!AF$5","v":0},{"$f":"'Population at Risk'!AG193/'Population at Risk'!AG$5","v":0},{"$f":"'Population at Risk'!AH193/'Population at Risk'!AH$5","v":0},{"$f":"'Population at Risk'!AI193/'Population at Risk'!AI$5","v":0},{"$f":"'Population at Risk'!AJ193/'Population at Risk'!AJ$5","v":0},{"$f":"'Population at Risk'!AK193/'Population at Risk'!AK$5","v":0},{"$f":"'Population at Risk'!AL193/'Population at Risk'!AL$5","v":0},{"$f":"'Population at Risk'!AM193/'Population at Risk'!AM$5","v":0},{"$f":"'Population at Risk'!AN193/'Population at Risk'!AN$5","v":0},{"$f":"'Population at Risk'!AO193/'Population at Risk'!AO$5","v":0},{"$f":"'Population at Risk'!AP193/'Population at Risk'!AP$5","v":0},{"$f":"'Population at Risk'!AQ193/'Population at Risk'!AQ$5","v":0},{"$f":"'Population at Risk'!AR193/'Population at Risk'!AR$5","v":0},{"$f":"'Population at Risk'!AS193/'Population at Risk'!AS$5","v":0},{"$f":"'Population at Risk'!AT193/'Population at Risk'!AT$5","v":0},{"$f":"'Population at Risk'!AU193/'Population at Risk'!AU$5","v":0},{"$f":"'Population at Risk'!AV193/'Population at Risk'!AV$5","v":0},{"$f":"'Population at Risk'!AW193/'Population at Risk'!AW$5","v":0},{"$f":"'Population at Risk'!AX193/'Population at Risk'!AX$5","v":0},{"$f":"'Population at Risk'!AY193/'Population at Risk'!AY$5","v":0},{"$f":"'Population at Risk'!AZ193/'Population at Risk'!AZ$5","v":0},{"$f":"'Population at Risk'!BA193/'Population at Risk'!BA$5","v":0},{"$f":"'Population at Risk'!BB193/'Population at Risk'!BB$5","v":0},{"$f":"'Population at Risk'!BC193/'Population at Risk'!BC$5","v":0},191]
[null,"Male 5-9",{"$f":"'Population at Risk'!C194/'Population at Risk'!C$5","v":0},{"$f":"'Population at Risk'!D194/'Population at Risk'!D$5","v":0},{"$f":"'Population at Risk'!E194/'Population at Risk'!E$5","v":0},{"$f":"'Population at Risk'!F194/'Population at Risk'!F$5","v":0},{"$f":"'Population at Risk'!G194/'Population at Risk'!G$5","v":0},{"$f":"'Population at Risk'!H194/'Population at Risk'!H$5","v":0},{"$f":"'Population at Risk'!I194/'Population at Risk'!I$5","v":0},{"$f":"'Population at Risk'!J194/'Population at Risk'!J$5","v":0},{"$f":"'Population at Risk'!K194/'Population at Risk'!K$5","v":0},{"$f":"'Population at Risk'!L194/'Population at Risk'!L$5","v":0},{"$f":"'Population at Risk'!M194/'Population at Risk'!M$5","v":0},{"$f":"'Population at Risk'!N194/'Population at Risk'!N$5","v":0},{"$f":"'Population at Risk'!O194/'Population at Risk'!O$5","v":0},{"$f":"'Population at Risk'!P194/'Population at Risk'!P$5","v":0},{"$f":"'Population at Risk'!Q194/'Population at Risk'!Q$5","v":0},{"$f":"'Population at Risk'!R194/'Population at Risk'!R$5","v":0},{"$f":"'Population at Risk'!S194/'Population at Risk'!S$5","v":0},{"$f":"'Population at Risk'!T194/'Population at Risk'!T$5","v":0},{"$f":"'Population at Risk'!U194/'Population at Risk'!U$5","v":0},{"$f":"'Population at Risk'!V194/'Population at Risk'!V$5","v":0},{"$f":"'Population at Risk'!W194/'Population at Risk'!W$5","v":0},{"$f":"'Population at Risk'!X194/'Population at Risk'!X$5","v":0},{"$f":"'Population at Risk'!Y194/'Population at Risk'!Y$5","v":0},{"$f":"'Population at Risk'!Z194/'Population at Risk'!Z$5","v":0},{"$f":"'Population at Risk'!AA194/'Population at Risk'!AA$5","v":0},{"$f":"'Population at Risk'!AB194/'Population at Risk'!AB$5","v":0},{"$f":"'Population at Risk'!AC194/'Population at Risk'!AC$5","v":0},{"$f":"'Population at Risk'!AD194/'Population at Risk'!AD$5","v":0},{"$f":"'Population at Risk'!AE194/'Population at Risk'!AE$5","v":0},{"$f":"'Population at Risk'!AF194/'Population at Risk'!AF$5","v":0},{"$f":"'Population at Risk'!AG194/'Population at Risk'!AG$5","v":0},{"$f":"'Population at Risk'!AH194/'Population at Risk'!AH$5","v":0},{"$f":"'Population at Risk'!AI194/'Population at Risk'!AI$5","v":0},{"$f":"'Population at Risk'!AJ194/'Population at Risk'!AJ$5","v":0},{"$f":"'Population at Risk'!AK194/'Population at Risk'!AK$5","v":0},{"$f":"'Population at Risk'!AL194/'Population at Risk'!AL$5","v":0},{"$f":"'Population at Risk'!AM194/'Population at Risk'!AM$5","v":0},{"$f":"'Population at Risk'!AN194/'Population at Risk'!AN$5","v":0},{"$f":"'Population at Risk'!AO194/'Population at Risk'!AO$5","v":0},{"$f":"'Population at Risk'!AP194/'Population at Risk'!AP$5","v":0},{"$f":"'Population at Risk'!AQ194/'Population at Risk'!AQ$5","v":0},{"$f":"'Population at Risk'!AR194/'Population at Risk'!AR$5","v":0},{"$f":"'Population at Risk'!AS194/'Population at Risk'!AS$5","v":0},{"$f":"'Population at Risk'!AT194/'Population at Risk'!AT$5","v":0},{"$f":"'Population at Risk'!AU194/'Population at Risk'!AU$5","v":0},{"$f":"'Population at Risk'!AV194/'Population at Risk'!AV$5","v":0},{"$f":"'Population at Risk'!AW194/'Population at Risk'!AW$5","v":0},{"$f":"'Population at Risk'!AX194/'Population at Risk'!AX$5","v":0},{"$f":"'Population at Risk'!AY194/'Population at Risk'!AY$5","v":0},{"$f":"'Population at Risk'!AZ194/'Population at Risk'!AZ$5","v":0},{"$f":"'Population at Risk'!BA194/'Population at Risk'!BA$5","v":0},{"$f":"'Population at Risk'!BB194/'Population at Risk'!BB$5","v":0},{"$f":"'Population at Risk'!BC194/'Population at Risk'!BC$5","v":0},192]
[null,"Male 10-15",{"$f":"'Population at Risk'!C195/'Population at Risk'!C$5","v":0},{"$f":"'Population at Risk'!D195/'Population at Risk'!D$5","v":0},{"$f":"'Population at Risk'!E195/'Population at Risk'!E$5","v":0},{"$f":"'Population at Risk'!F195/'Population at Risk'!F$5","v":0},{"$f":"'Population at Risk'!G195/'Population at Risk'!G$5","v":0},{"$f":"'Population at Risk'!H195/'Population at Risk'!H$5","v":0},{"$f":"'Population at Risk'!I195/'Population at Risk'!I$5","v":0},{"$f":"'Population at Risk'!J195/'Population at Risk'!J$5","v":0},{"$f":"'Population at Risk'!K195/'Population at Risk'!K$5","v":0},{"$f":"'Population at Risk'!L195/'Population at Risk'!L$5","v":0},{"$f":"'Population at Risk'!M195/'Population at Risk'!M$5","v":0},{"$f":"'Population at Risk'!N195/'Population at Risk'!N$5","v":0},{"$f":"'Population at Risk'!O195/'Population at Risk'!O$5","v":0},{"$f":"'Population at Risk'!P195/'Population at Risk'!P$5","v":0},{"$f":"'Population at Risk'!Q195/'Population at Risk'!Q$5","v":0},{"$f":"'Population at Risk'!R195/'Population at Risk'!R$5","v":0},{"$f":"'Population at Risk'!S195/'Population at Risk'!S$5","v":0},{"$f":"'Population at Risk'!T195/'Population at Risk'!T$5","v":0},{"$f":"'Population at Risk'!U195/'Population at Risk'!U$5","v":0},{"$f":"'Population at Risk'!V195/'Population at Risk'!V$5","v":0},{"$f":"'Population at Risk'!W195/'Population at Risk'!W$5","v":0},{"$f":"'Population at Risk'!X195/'Population at Risk'!X$5","v":0},{"$f":"'Population at Risk'!Y195/'Population at Risk'!Y$5","v":0},{"$f":"'Population at Risk'!Z195/'Population at Risk'!Z$5","v":0},{"$f":"'Population at Risk'!AA195/'Population at Risk'!AA$5","v":0},{"$f":"'Population at Risk'!AB195/'Population at Risk'!AB$5","v":0},{"$f":"'Population at Risk'!AC195/'Population at Risk'!AC$5","v":0},{"$f":"'Population at Risk'!AD195/'Population at Risk'!AD$5","v":0},{"$f":"'Population at Risk'!AE195/'Population at Risk'!AE$5","v":0},{"$f":"'Population at Risk'!AF195/'Population at Risk'!AF$5","v":0},{"$f":"'Population at Risk'!AG195/'Population at Risk'!AG$5","v":0},{"$f":"'Population at Risk'!AH195/'Population at Risk'!AH$5","v":0},{"$f":"'Population at Risk'!AI195/'Population at Risk'!AI$5","v":0},{"$f":"'Population at Risk'!AJ195/'Population at Risk'!AJ$5","v":0},{"$f":"'Population at Risk'!AK195/'Population at Risk'!AK$5","v":0},{"$f":"'Population at Risk'!AL195/'Population at Risk'!AL$5","v":0},{"$f":"'Population at Risk'!AM195/'Population at Risk'!AM$5","v":0},{"$f":"'Population at Risk'!AN195/'Population at Risk'!AN$5","v":0},{"$f":"'Population at Risk'!AO195/'Population at Risk'!AO$5","v":0},{"$f":"'Population at Risk'!AP195/'Population at Risk'!AP$5","v":0},{"$f":"'Population at Risk'!AQ195/'Population at Risk'!AQ$5","v":0},{"$f":"'Population at Risk'!AR195/'Population at Risk'!AR$5","v":0},{"$f":"'Population at Risk'!AS195/'Population at Risk'!AS$5","v":0},{"$f":"'Population at Risk'!AT195/'Population at Risk'!AT$5","v":0},{"$f":"'Population at Risk'!AU195/'Population at Risk'!AU$5","v":0},{"$f":"'Population at Risk'!AV195/'Population at Risk'!AV$5","v":0},{"$f":"'Population at Risk'!AW195/'Population at Risk'!AW$5","v":0},{"$f":"'Population at Risk'!AX195/'Population at Risk'!AX$5","v":0},{"$f":"'Population at Risk'!AY195/'Population at Risk'!AY$5","v":0},{"$f":"'Population at Risk'!AZ195/'Population at Risk'!AZ$5","v":0},{"$f":"'Population at Risk'!BA195/'Population at Risk'!BA$5","v":0},{"$f":"'Population at Risk'!BB195/'Population at Risk'!BB$5","v":0},{"$f":"'Population at Risk'!BC195/'Population at Risk'!BC$5","v":0},193]
[null,"Male 16-19",{"$f":"'Population at Risk'!C196/'Population at Risk'!C$5","v":5.2929864901890078E-3},{"$f":"'Population at Risk'!D196/'Population at Risk'!D$5","v":8.6996079262627174E-3},{"$f":"'Population at Risk'!E196/'Population at Risk'!E$5","v":1.1756622245436523E-2},{"$f":"'Population at Risk'!F196/'Population at Risk'!F$5","v":9.5895014142078801E-3},{"$f":"'Population at Risk'!G196/'Population at Risk'!G$5","v":8.3136327768315293E-3},{"$f":"'Population at Risk'!H196/'Population at Risk'!H$5","v":5.5718085524082911E-3},{"$f":"'Population at Risk'!I196/'Population at Risk'!I$5","v":1.1691775021656246E-2},{"$f":"'Population at Risk'!J196/'Population at Risk'!J$5","v":9.2521672071332675E-3},{"$f":"'Population at Risk'!K196/'Population at Risk'!K$5","v":7.7505558433298418E-3},{"$f":"'Population at Risk'!L196/'Population at Risk'!L$5","v":5.5618889243173745E-3},{"$f":"'Population at Risk'!M196/'Population at Risk'!M$5","v":5.6353122996023863E-3},{"$f":"'Population at Risk'!N196/'Population at Risk'!N$5","v":7.6771127052938527E-3},{"$f":"'Population at Risk'!O196/'Population at Risk'!O$5","v":5.4690423402633257E-3},{"$f":"'Population at Risk'!P196/'Population at Risk'!P$5","v":6.3702024124135575E-3},{"$f":"'Population at Risk'!Q196/'Population at Risk'!Q$5","v":1.0655211547985799E-2},{"$f":"'Population at Risk'!R196/'Population at Risk'!R$5","v":5.8363267382563347E-3},{"$f":"'Population at Risk'!S196/'Population at Risk'!S$5","v":5.8298040933434389E-3},{"$f":"'Population at Risk'!T196/'Population at Risk'!T$5","v":3.7053393719966511E-3},{"$f":"'Population at Risk'!U196/'Population at Risk'!U$5","v":2.2232250492580526E-3},{"$f":"'Population at Risk'!V196/'Population at Risk'!V$5","v":7.5654058504700363E-3},{"$f":"'Population at Risk'!W196/'Population at Risk'!W$5","v":5.955058723424422E-3},{"$f":"'Population at Risk'!X196/'Population at Risk'!X$5","v":5.8744070140690132E-3},{"$f":"'Population at Risk'!Y196/'Population at Risk'!Y$5","v":9.1751306903909927E-3},{"$f":"'Population at Risk'!Z196/'Population at Risk'!Z$5","v":3.42400309079898E-3},{"$f":"'Population at Risk'!AA196/'Population at Risk'!AA$5","v":5.2703802516609246E-3},{"$f":"'Population at Risk'!AB196/'Population at Risk'!AB$5","v":9.1845658968878058E-3},{"$f":"'Population at Risk'!AC196/'Population at Risk'!AC$5","v":4.7279708842069912E-3},{"$f":"'Population at Risk'!AD196/'Population at Risk'!AD$5","v":1.053625557868542E-2},{"$f":"'Population at Risk'!AE196/'Population at Risk'!AE$5","v":1.2596495948273979E-2},{"$f":"'Population at Risk'!AF196/'Population at Risk'!AF$5","v":7.7611661023156524E-3},{"$f":"'Population at Risk'!AG196/'Population at Risk'!AG$5","v":1.1707961869959186E-2},{"$f":"'Population at Risk'!AH196/'Population at Risk'!AH$5","v":6.1524908526238075E-3},{"$f":"'Population at Risk'!AI196/'Population at Risk'!AI$5","v":5.0317029878442134E-3},{"$f":"'Population at Risk'!AJ196/'Population at Risk'!AJ$5","v":4.840443939685927E-3},{"$f":"'Population at Risk'!AK196/'Population at Risk'!AK$5","v":1.2652350463757322E-2},{"$f":"'Population at Risk'!AL196/'Population at Risk'!AL$5","v":6.4874196177601116E-3},{"$f":"'Population at Risk'!AM196/'Population at Risk'!AM$5","v":5.1769658509920949E-3},{"$f":"'Population at Risk'!AN196/'Population at Risk'!AN$5","v":1.6501182374796149E-2},{"$f":"'Population at Risk'!AO196/'Population at Risk'!AO$5","v":1.6501182374796149E-2},{"$f":"'Population at Risk'!AP196/'Population at Risk'!AP$5","v":1.5532270780040172E-2},{"$f":"'Population at Risk'!AQ196/'Population at Risk'!AQ$5","v":5.7217732573880357E-3},{"$f":"'Population at Risk'!AR196/'Population at Risk'!AR$5","v":7.043759321018514E-3},{"$f":"'Population at Risk'!AS196/'Population at Risk'!AS$5","v":1.1691775021656246E-2},{"$f":"'Population at Risk'!AT196/'Population at Risk'!AT$5","v":2.4426772404339561E-2},{"$f":"'Population at Risk'!AU196/'Population at Risk'!AU$5","v":2.4426772404339561E-2},{"$f":"'Population at Risk'!AV196/'Population at Risk'!AV$5","v":4.594808268412587E-3},{"$f":"'Population at Risk'!AW196/'Population at Risk'!AW$5","v":6.959326408512676E-3},{"$f":"'Population at Risk'!AX196/'Population at Risk'!AX$5","v":1.0528126584601274E-2},{"$f":"'Population at Risk'!AY196/'Population at Risk'!AY$5","v":8.6408287838516153E-3},{"$f":"'Population at Risk'!AZ196/'Population at Risk'!AZ$5","v":1.0743746096350147E-2},{"$f":"'Population at Risk'!BA196/'Population at Risk'!BA$5","v":4.0940526371752682E-3},{"$f":"'Population at Risk'!BB196/'Population at Risk'!BB$5","v":5.9934108480412069E-3},{"$f":"'Population at Risk'!BC196/'Population at Risk'!BC$5","v":2.3867355852027774E-3},194]
[null,"Male 20-24",{"$f":"'Population at Risk'!C197/'Population at Risk'!C$5","v":1.3116069531822528E-2},{"$f":"'Population at Risk'!D197/'Population at Risk'!D$5","v":1.3143972845114323E-2},{"$f":"'Population at Risk'!E197/'Population at Risk'!E$5","v":1.3239732049879252E-2},{"$f":"'Population at Risk'!F197/'Population at Risk'!F$5","v":1.1471935546726639E-2},{"$f":"'Population at Risk'!G197/'Population at Risk'!G$5","v":9.299439034953845E-3},{"$f":"'Population at Risk'!H197/'Population at Risk'!H$5","v":6.0543344564567211E-3},{"$f":"'Population at Risk'!I197/'Population at Risk'!I$5","v":1.2104425904773525E-2},{"$f":"'Population at Risk'!J197/'Population at Risk'!J$5","v":1.3445370383308661E-2},{"$f":"'Population at Risk'!K197/'Population at Risk'!K$5","v":1.014311873409688E-2},{"$f":"'Population at Risk'!L197/'Population at Risk'!L$5","v":6.7372314894561395E-3},{"$f":"'Population at Risk'!M197/'Population at Risk'!M$5","v":6.8261707478202496E-3},{"$f":"'Population at Risk'!N197/'Population at Risk'!N$5","v":1.6771074744941675E-2},{"$f":"'Population at Risk'!O197/'Population at Risk'!O$5","v":6.107097279960714E-3},{"$f":"'Population at Risk'!P197/'Population at Risk'!P$5","v":8.4511352004686523E-3},{"$f":"'Population at Risk'!Q197/'Population at Risk'!Q$5","v":1.3387317073110363E-2},{"$f":"'Population at Risk'!R197/'Population at Risk'!R$5","v":5.9693484302963656E-3},{"$f":"'Population at Risk'!S197/'Population at Risk'!S$5","v":8.6944783990366911E-3},{"$f":"'Population at Risk'!T197/'Population at Risk'!T$5","v":8.7481438718932901E-3},{"$f":"'Population at Risk'!U197/'Population at Risk'!U$5","v":2.9854736375750993E-3},{"$f":"'Population at Risk'!V197/'Population at Risk'!V$5","v":8.8525434431448655E-3},{"$f":"'Population at Risk'!W197/'Population at Risk'!W$5","v":7.7890287107532635E-3},{"$f":"'Population at Risk'!X197/'Population at Risk'!X$5","v":7.683538822421925E-3},{"$f":"'Population at Risk'!Y197/'Population at Risk'!Y$5","v":1.208812699526278E-2},{"$f":"'Population at Risk'!Z197/'Population at Risk'!Z$5","v":1.1176263370507559E-2},{"$f":"'Population at Risk'!AA197/'Population at Risk'!AA$5","v":8.6560285625600832E-3},{"$f":"'Population at Risk'!AB197/'Population at Risk'!AB$5","v":1.3372101239898942E-2},{"$f":"'Population at Risk'!AC197/'Population at Risk'!AC$5","v":9.4462759400876246E-3},{"$f":"'Population at Risk'!AD197/'Population at Risk'!AD$5","v":1.170595473055139E-2},{"$f":"'Population at Risk'!AE197/'Population at Risk'!AE$5","v":1.3968797132882687E-2},{"$f":"'Population at Risk'!AF197/'Population at Risk'!AF$5","v":8.1335452839924136E-3},{"$f":"'Population at Risk'!AG197/'Population at Risk'!AG$5","v":1.2983463407011649E-2},{"$f":"'Population at Risk'!AH197/'Population at Risk'!AH$5","v":7.3449043340092605E-3},{"$f":"'Population at Risk'!AI197/'Population at Risk'!AI$5","v":8.6117544976758772E-3},{"$f":"'Population at Risk'!AJ197/'Population at Risk'!AJ$5","v":5.262882683513063E-3},{"$f":"'Population at Risk'!AK197/'Population at Risk'!AK$5","v":1.5887585336242686E-2},{"$f":"'Population at Risk'!AL197/'Population at Risk'!AL$5","v":7.36749592249501E-3},{"$f":"'Population at Risk'!AM197/'Population at Risk'!AM$5","v":6.8020829572600482E-3},{"$f":"'Population at Risk'!AN197/'Population at Risk'!AN$5","v":1.730285925130446E-2},{"$f":"'Population at Risk'!AO197/'Population at Risk'!AO$5","v":1.730285925130446E-2},{"$f":"'Population at Risk'!AP197/'Population at Risk'!AP$5","v":1.6381393691234016E-2},{"$f":"'Population at Risk'!AQ197/'Population at Risk'!AQ$5","v":7.3842348808322317E-3},{"$f":"'Population at Risk'!AR197/'Population at Risk'!AR$5","v":1.0033056500114839E-2},{"$f":"'Population at Risk'!AS197/'Population at Risk'!AS$5","v":1.2104425904773525E-2},{"$f":"'Population at Risk'!AT197/'Population at Risk'!AT$5","v":2.9325189330343483E-2},{"$f":"'Population at Risk'!AU197/'Population at Risk'!AU$5","v":2.9325189330343483E-2},{"$f":"'Population at Risk'!AV197/'Population at Risk'!AV$5","v":4.515587436198577E-3},{"$f":"'Population at Risk'!AW197/'Population at Risk'!AW$5","v":7.6935264452163803E-3},{"$f":"'Population at Risk'!AX197/'Population at Risk'!AX$5","v":1.5832251241379085E-2},{"$f":"'Population at Risk'!AY197/'Population at Risk'!AY$5","v":1.1646250738306245E-2},{"$f":"'Population at Risk'!AZ197/'Population at Risk'!AZ$5","v":1.4673284248553171E-2},{"$f":"'Population at Risk'!BA197/'Population at Risk'!BA$5","v":6.0217455829304394E-3},{"$f":"'Population at Risk'!BB197/'Population at Risk'!BB$5","v":7.4388263674612836E-3},{"$f":"'Population at Risk'!BC197/'Population at Risk'!BC$5","v":3.2050449287008721E-3},195]
[null,"Male 25-29",{"$f":"'Population at Risk'!C198/'Population at Risk'!C$5","v":1.0923705629947024E-2},{"$f":"'Population at Risk'!D198/'Population at Risk'!D$5","v":1.0261198208374334E-2},{"$f":"'Population at Risk'!E198/'Population at Risk'!E$5","v":9.7313436398676761E-3},{"$f":"'Population at Risk'!F198/'Population at Risk'!F$5","v":7.0011168716821951E-3},{"$f":"'Population at Risk'!G198/'Population at Risk'!G$5","v":5.5573705398120881E-3},{"$f":"'Population at Risk'!H198/'Population at Risk'!H$5","v":3.9597768729947077E-3},{"$f":"'Population at Risk'!I198/'Population at Risk'!I$5","v":7.1305305273637555E-3},{"$f":"'Population at Risk'!J198/'Population at Risk'!J$5","v":7.0793397665482828E-3},{"$f":"'Population at Risk'!K198/'Population at Risk'!K$5","v":6.1946421715093408E-3},{"$f":"'Population at Risk'!L198/'Population at Risk'!L$5","v":4.6838862037875207E-3},{"$f":"'Population at Risk'!M198/'Population at Risk'!M$5","v":4.7457189263054728E-3},{"$f":"'Population at Risk'!N198/'Population at Risk'!N$5","v":8.1055481083673348E-3},{"$f":"'Population at Risk'!O198/'Population at Risk'!O$5","v":4.4235931119826185E-3},{"$f":"'Population at Risk'!P198/'Population at Risk'!P$5","v":4.9026718760269246E-3},{"$f":"'Population at Risk'!Q198/'Population at Risk'!Q$5","v":6.9361569285606118E-3},{"$f":"'Population at Risk'!R198/'Population at Risk'!R$5","v":4.6338598351343008E-3},{"$f":"'Population at Risk'!S198/'Population at Risk'!S$5","v":7.0836706828259271E-3},{"$f":"'Population at Risk'!T198/'Population at Risk'!T$5","v":9.5392783258948059E-3},{"$f":"'Population at Risk'!U198/'Population at Risk'!U$5","v":1.1676873993903655E-3},{"$f":"'Population at Risk'!V198/'Population at Risk'!V$5","v":5.3314229710726378E-3},{"$f":"'Population at Risk'!W198/'Population at Risk'!W$5","v":5.0043675326835561E-3},{"$f":"'Population at Risk'!X198/'Population at Risk'!X$5","v":4.9365914091390435E-3},{"$f":"'Population at Risk'!Y198/'Population at Risk'!Y$5","v":6.7544952067701419E-3},{"$f":"'Population at Risk'!Z198/'Population at Risk'!Z$5","v":7.8933546389417068E-3},{"$f":"'Population at Risk'!AA198/'Population at Risk'!AA$5","v":5.9469058834679496E-3},{"$f":"'Population at Risk'!AB198/'Population at Risk'!AB$5","v":1.014859997925846E-2},{"$f":"'Population at Risk'!AC198/'Population at Risk'!AC$5","v":6.6352582660394446E-3},{"$f":"'Population at Risk'!AD198/'Population at Risk'!AD$5","v":8.1593490146379209E-3},{"$f":"'Population at Risk'!AE198/'Population at Risk'!AE$5","v":1.012080625103378E-2},{"$f":"'Population at Risk'!AF198/'Population at Risk'!AF$5","v":4.7413159058192879E-3},{"$f":"'Population at Risk'!AG198/'Population at Risk'!AG$5","v":9.4069028535340091E-3},{"$f":"'Population at Risk'!AH198/'Population at Risk'!AH$5","v":4.807370473963673E-3},{"$f":"'Population at Risk'!AI198/'Population at Risk'!AI$5","v":7.8986225139471202E-3},{"$f":"'Population at Risk'!AJ198/'Population at Risk'!AJ$5","v":4.2581367152136149E-3},{"$f":"'Population at Risk'!AK198/'Population at Risk'!AK$5","v":1.0543126282864239E-2},{"$f":"'Population at Risk'!AL198/'Population at Risk'!AL$5","v":4.1323872570805855E-3},{"$f":"'Population at Risk'!AM198/'Population at Risk'!AM$5","v":4.2833438435414713E-3},{"$f":"'Population at Risk'!AN198/'Population at Risk'!AN$5","v":1.242824581699755E-2},{"$f":"'Population at Risk'!AO198/'Population at Risk'!AO$5","v":1.242824581699755E-2},{"$f":"'Population at Risk'!AP198/'Population at Risk'!AP$5","v":1.0144252436308529E-2},{"$f":"'Population at Risk'!AQ198/'Population at Risk'!AQ$5","v":5.7501528314951433E-3},{"$f":"'Population at Risk'!AR198/'Population at Risk'!AR$5","v":7.0611962023411617E-3},{"$f":"'Population at Risk'!AS198/'Population at Risk'!AS$5","v":7.1305305273637555E-3},{"$f":"'Population at Risk'!AT198/'Population at Risk'!AT$5","v":2.2043389349982262E-2},{"$f":"'Population at Risk'!AU198/'Population at Risk'!AU$5","v":2.2043389349982262E-2},{"$f":"'Population at Risk'!AV198/'Population at Risk'!AV$5","v":3.3009448568391913E-3},{"$f":"'Population at Risk'!AW198/'Population at Risk'!AW$5","v":5.2023406249281394E-3},{"$f":"'Population at Risk'!AX198/'Population at Risk'!AX$5","v":7.9299782301485156E-3},{"$f":"'Population at Risk'!AY198/'Population at Risk'!AY$5","v":6.8421178302852529E-3},{"$f":"'Population at Risk'!AZ198/'Population at Risk'!AZ$5","v":8.272662681330983E-3},{"$f":"'Population at Risk'!BA198/'Population at Risk'!BA$5","v":4.4143576235963966E-3},{"$f":"'Population at Risk'!BB198/'Population at Risk'!BB$5","v":5.815103209558521E-3},{"$f":"'Population at Risk'!BC198/'Population at Risk'!BC$5","v":1.253566781036384E-3},196]
[null,"Male 30-34",{"$f":"'Population at Risk'!C199/'Population at Risk'!C$5","v":8.0767852348433058E-3},{"$f":"'Population at Risk'!D199/'Population at Risk'!D$5","v":9.3446435429445935E-3},{"$f":"'Population at Risk'!E199/'Population at Risk'!E$5","v":1.0515423270564582E-2},{"$f":"'Population at Risk'!F199/'Population at Risk'!F$5","v":6.8306025639191612E-3},{"$f":"'Population at Risk'!G199/'Population at Risk'!G$5","v":4.832496121575729E-3},{"$f":"'Population at Risk'!H199/'Population at Risk'!H$5","v":3.7489011815334504E-3},{"$f":"'Population at Risk'!I199/'Population at Risk'!I$5","v":7.1912158935540848E-3},{"$f":"'Population at Risk'!J199/'Population at Risk'!J$5","v":6.6114744081956882E-3},{"$f":"'Population at Risk'!K199/'Population at Risk'!K$5","v":7.7061348613576197E-3},{"$f":"'Population at Risk'!L199/'Population at Risk'!L$5","v":4.9462455628135104E-3},{"$f":"'Population at Risk'!M199/'Population at Risk'!M$5","v":5.0115417327212652E-3},{"$f":"'Population at Risk'!N199/'Population at Risk'!N$5","v":5.1426266940963221E-3},{"$f":"'Population at Risk'!O199/'Population at Risk'!O$5","v":4.7028603539007131E-3},{"$f":"'Population at Risk'!P199/'Population at Risk'!P$5","v":4.4342637350052441E-3},{"$f":"'Population at Risk'!Q199/'Population at Risk'!Q$5","v":7.3062262768832055E-3},{"$f":"'Population at Risk'!R199/'Population at Risk'!R$5","v":3.6312833008836074E-3},{"$f":"'Population at Risk'!S199/'Population at Risk'!S$5","v":7.183265349719789E-3},{"$f":"'Population at Risk'!T199/'Population at Risk'!T$5","v":9.0356113774178858E-3},{"$f":"'Population at Risk'!U199/'Population at Risk'!U$5","v":1.0742724074391363E-3},{"$f":"'Population at Risk'!V199/'Population at Risk'!V$5","v":5.5220741118006504E-3},{"$f":"'Population at Risk'!W199/'Population at Risk'!W$5","v":5.0075109796261967E-3},{"$f":"'Population at Risk'!X199/'Population at Risk'!X$5","v":4.9396922831397589E-3},{"$f":"'Population at Risk'!Y199/'Population at Risk'!Y$5","v":6.6238396722898283E-3},{"$f":"'Population at Risk'!Z199/'Population at Risk'!Z$5","v":6.5402081294088435E-3},{"$f":"'Population at Risk'!AA199/'Population at Risk'!AA$5","v":5.4910543017858337E-3},{"$f":"'Population at Risk'!AB199/'Population at Risk'!AB$5","v":9.4189620722529496E-3},{"$f":"'Population at Risk'!AC199/'Population at Risk'!AC$5","v":5.5386891876427194E-3},{"$f":"'Population at Risk'!AD199/'Population at Risk'!AD$5","v":8.2680963964969888E-3},{"$f":"'Population at Risk'!AE199/'Population at Risk'!AE$5","v":1.0587688682257065E-2},{"$f":"'Population at Risk'!AF199/'Population at Risk'!AF$5","v":5.0439530912971143E-3},{"$f":"'Population at Risk'!AG199/'Population at Risk'!AG$5","v":9.8408522411226329E-3},{"$f":"'Population at Risk'!AH199/'Population at Risk'!AH$5","v":5.4041245064459873E-3},{"$f":"'Population at Risk'!AI199/'Population at Risk'!AI$5","v":8.0417043260785758E-3},{"$f":"'Population at Risk'!AJ199/'Population at Risk'!AJ$5","v":4.9958686081229648E-3},{"$f":"'Population at Risk'!AK199/'Population at Risk'!AK$5","v":1.0732991904483617E-2},{"$f":"'Population at Risk'!AL199/'Population at Risk'!AL$5","v":3.5037466900079239E-3},{"$f":"'Population at Risk'!AM199/'Population at Risk'!AM$5","v":4.6573916444071495E-3},{"$f":"'Population at Risk'!AN199/'Population at Risk'!AN$5","v":1.242824581699755E-2},{"$f":"'Population at Risk'!AO199/'Population at Risk'!AO$5","v":1.242824581699755E-2},{"$f":"'Population at Risk'!AP199/'Population at Risk'!AP$5","v":1.1175514613443628E-2},{"$f":"'Population at Risk'!AQ199/'Population at Risk'!AQ$5","v":4.5277261201556182E-3},{"$f":"'Population at Risk'!AR199/'Population at Risk'!AR$5","v":6.77387307553613E-3},{"$f":"'Population at Risk'!AS199/'Population at Risk'!AS$5","v":7.1912158935540848E-3},{"$f":"'Population at Risk'!AT199/'Population at Risk'!AT$5","v":1.9642148680049556E-2},{"$f":"'Population at Risk'!AU199/'Population at Risk'!AU$5","v":1.9642148680049556E-2},{"$f":"'Population at Risk'!AV199/'Population at Risk'!AV$5","v":3.1067716299662978E-3},{"$f":"'Population at Risk'!AW199/'Population at Risk'!AW$5","v":6.003959148895054E-3},{"$f":"'Population at Risk'!AX199/'Population at Risk'!AX$5","v":6.4924487441483398E-3},{"$f":"'Population at Risk'!AY199/'Population at Risk'!AY$5","v":6.4598766107162439E-3},{"$f":"'Population at Risk'!AZ199/'Population at Risk'!AZ$5","v":7.5809343300071025E-3},{"$f":"'Population at Risk'!BA199/'Population at Risk'!BA$5","v":3.4423889725292999E-3},{"$f":"'Population at Risk'!BB199/'Population at Risk'!BB$5","v":7.5278169604529399E-3},{"$f":"'Population at Risk'!BC199/'Population at Risk'!BC$5","v":1.1532814385534734E-3},197]
[null,"Male 35-39",{"$f":"'Population at Risk'!C200/'Population at Risk'!C$5","v":5.987938649167605E-3},{"$f":"'Population at Risk'!D200/'Population at Risk'!D$5","v":8.7243168689271691E-3},{"$f":"'Population at Risk'!E200/'Population at Risk'!E$5","v":1.1189265232320828E-2},{"$f":"'Population at Risk'!F200/'Population at Risk'!F$5","v":6.146462630298985E-3},{"$f":"'Population at Risk'!G200/'Population at Risk'!G$5","v":5.6948397942939216E-3},{"$f":"'Population at Risk'!H200/'Population at Risk'!H$5","v":4.1433410261232954E-3},{"$f":"'Population at Risk'!I200/'Population at Risk'!I$5","v":8.0382273444228932E-3},{"$f":"'Population at Risk'!J200/'Population at Risk'!J$5","v":7.346572136124805E-3},{"$f":"'Population at Risk'!K200/'Population at Risk'!K$5","v":7.3584569574627126E-3},{"$f":"'Population at Risk'!L200/'Population at Risk'!L$5","v":3.9792841720730204E-3},{"$f":"'Population at Risk'!M200/'Population at Risk'!M$5","v":4.0318153317397314E-3},{"$f":"'Population at Risk'!N200/'Population at Risk'!N$5","v":3.9496517364102724E-3},{"$f":"'Population at Risk'!O200/'Population at Risk'!O$5","v":4.9286255520348951E-3},{"$f":"'Population at Risk'!P200/'Population at Risk'!P$5","v":4.1608088200123195E-3},{"$f":"'Population at Risk'!Q200/'Population at Risk'!Q$5","v":8.3632872931420632E-3},{"$f":"'Population at Risk'!R200/'Population at Risk'!R$5","v":4.0919660345698269E-3},{"$f":"'Population at Risk'!S200/'Population at Risk'!S$5","v":6.5154345423785072E-3},{"$f":"'Population at Risk'!T200/'Population at Risk'!T$5","v":6.7070553918282651E-3},{"$f":"'Population at Risk'!U200/'Population at Risk'!U$5","v":2.2016920455346103E-3},{"$f":"'Population at Risk'!V200/'Population at Risk'!V$5","v":6.0147966845390671E-3},{"$f":"'Population at Risk'!W200/'Population at Risk'!W$5","v":5.1683581237481607E-3},{"$f":"'Population at Risk'!X200/'Population at Risk'!X$5","v":5.0983610109402609E-3},{"$f":"'Population at Risk'!Y200/'Population at Risk'!Y$5","v":7.2898081393221936E-3},{"$f":"'Population at Risk'!Z200/'Population at Risk'!Z$5","v":4.5657202032384301E-3},{"$f":"'Population at Risk'!AA200/'Population at Risk'!AA$5","v":4.9511395634073705E-3},{"$f":"'Population at Risk'!AB200/'Population at Risk'!AB$5","v":8.8024524752657422E-3},{"$f":"'Population at Risk'!AC200/'Population at Risk'!AC$5","v":4.4644788050237309E-3},{"$f":"'Population at Risk'!AD200/'Population at Risk'!AD$5","v":8.2328599558433805E-3},{"$f":"'Population at Risk'!AE200/'Population at Risk'!AE$5","v":1.017567030103619E-2},{"$f":"'Population at Risk'!AF200/'Population at Risk'!AF$5","v":4.5921882063338958E-3},{"$f":"'Population at Risk'!AG200/'Population at Risk'!AG$5","v":9.4578968925189359E-3},{"$f":"'Population at Risk'!AH200/'Population at Risk'!AH$5","v":5.742233687954409E-3},{"$f":"'Population at Risk'!AI200/'Population at Risk'!AI$5","v":6.852008053503872E-3},{"$f":"'Population at Risk'!AJ200/'Population at Risk'!AJ$5","v":5.7714485425543497E-3},{"$f":"'Population at Risk'!AK200/'Population at Risk'!AK$5","v":1.0076491337357569E-2},{"$f":"'Population at Risk'!AL200/'Population at Risk'!AL$5","v":4.1137270566271476E-3},{"$f":"'Population at Risk'!AM200/'Population at Risk'!AM$5","v":4.7652718709544836E-3},{"$f":"'Population at Risk'!AN200/'Population at Risk'!AN$5","v":1.1161083054142477E-2},{"$f":"'Population at Risk'!AO200/'Population at Risk'!AO$5","v":1.1161083054142477E-2},{"$f":"'Population at Risk'!AP200/'Population at Risk'!AP$5","v":1.0595324218074669E-2},{"$f":"'Population at Risk'!AQ200/'Population at Risk'!AQ$5","v":4.6601575139460965E-3},{"$f":"'Population at Risk'!AR200/'Population at Risk'!AR$5","v":6.3219542289285934E-3},{"$f":"'Population at Risk'!AS200/'Population at Risk'!AS$5","v":8.0382273444228932E-3},{"$f":"'Population at Risk'!AT200/'Population at Risk'!AT$5","v":2.0555191297474001E-2},{"$f":"'Population at Risk'!AU200/'Population at Risk'!AU$5","v":2.0555191297474001E-2},{"$f":"'Population at Risk'!AV200/'Population at Risk'!AV$5","v":3.4140365645659487E-3},{"$f":"'Population at Risk'!AW200/'Population at Risk'!AW$5","v":6.5609863454913781E-3},{"$f":"'Population at Risk'!AX200/'Population at Risk'!AX$5","v":7.7870853141021401E-3},{"$f":"'Population at Risk'!AY200/'Population at Risk'!AY$5","v":6.0900969541910358E-3},{"$f":"'Population at Risk'!AZ200/'Population at Risk'!AZ$5","v":6.7836173941358147E-3},{"$f":"'Population at Risk'!BA200/'Population at Risk'!BA$5","v":2.8380798380235293E-3},{"$f":"'Population at Risk'!BB200/'Population at Risk'!BB$5","v":7.345807968683735E-3},{"$f":"'Population at Risk'!BC200/'Population at Risk'!BC$5","v":2.3636189033085192E-3},198]
[null,"Male 40-44",{"$f":"'Population at Risk'!C201/'Population at Risk'!C$5","v":5.0196762293022047E-3},{"$f":"'Population at Risk'!D201/'Population at Risk'!D$5","v":8.8832297444996124E-3},{"$f":"'Population at Risk'!E201/'Population at Risk'!E$5","v":1.2344963988710772E-2},{"$f":"'Population at Risk'!F201/'Population at Risk'!F$5","v":7.262282000107108E-3},{"$f":"'Population at Risk'!G201/'Population at Risk'!G$5","v":7.1299394224559904E-3},{"$f":"'Population at Risk'!H201/'Population at Risk'!H$5","v":4.9448708209712143E-3},{"$f":"'Population at Risk'!I201/'Population at Risk'!I$5","v":1.0450649074125136E-2},{"$f":"'Population at Risk'!J201/'Population at Risk'!J$5","v":8.1636613599260863E-3},{"$f":"'Population at Risk'!K201/'Population at Risk'!K$5","v":7.9424614778962621E-3},{"$f":"'Population at Risk'!L201/'Population at Risk'!L$5","v":5.1868914345302806E-3},{"$f":"'Population at Risk'!M201/'Population at Risk'!M$5","v":5.2553644086479508E-3},{"$f":"'Population at Risk'!N201/'Population at Risk'!N$5","v":4.0262763732718471E-3},{"$f":"'Population at Risk'!O201/'Population at Risk'!O$5","v":5.8553756558363283E-3},{"$f":"'Population at Risk'!P201/'Population at Risk'!P$5","v":4.9654935446373444E-3},{"$f":"'Population at Risk'!Q201/'Population at Risk'!Q$5","v":1.111449979958689E-2},{"$f":"'Population at Risk'!R201/'Population at Risk'!R$5","v":4.9679925659143536E-3},{"$f":"'Population at Risk'!S201/'Population at Risk'!S$5","v":6.6687941160912716E-3},{"$f":"'Population at Risk'!T201/'Population at Risk'!T$5","v":5.5997874739219201E-3},{"$f":"'Population at Risk'!U201/'Population at Risk'!U$5","v":2.4218612500880713E-3},{"$f":"'Population at Risk'!V201/'Population at Risk'!V$5","v":6.6053637015909281E-3},{"$f":"'Population at Risk'!W201/'Population at Risk'!W$5","v":5.5061980469748185E-3},{"$f":"'Population at Risk'!X201/'Population at Risk'!X$5","v":5.4316254348205301E-3},{"$f":"'Population at Risk'!Y201/'Population at Risk'!Y$5","v":8.0549953736084451E-3},{"$f":"'Population at Risk'!Z201/'Population at Risk'!Z$5","v":3.9681992131718998E-3},{"$f":"'Population at Risk'!AA201/'Population at Risk'!AA$5","v":5.1803038735674855E-3},{"$f":"'Population at Risk'!AB201/'Population at Risk'!AB$5","v":9.2763927094920533E-3},{"$f":"'Population at Risk'!AC201/'Population at Risk'!AC$5","v":4.5305270549265263E-3},{"$f":"'Population at Risk'!AD201/'Population at Risk'!AD$5","v":9.3077918595119886E-3},{"$f":"'Population at Risk'!AE201/'Population at Risk'!AE$5","v":1.1216901680677101E-2},{"$f":"'Population at Risk'!AF201/'Population at Risk'!AF$5","v":5.5568194567768153E-3},{"$f":"'Population at Risk'!AG201/'Population at Risk'!AG$5","v":1.0425681690823198E-2},{"$f":"'Population at Risk'!AH201/'Population at Risk'!AH$5","v":6.2388253259931577E-3},{"$f":"'Population at Risk'!AI201/'Population at Risk'!AI$5","v":6.6478802874500118E-3},{"$f":"'Population at Risk'!AJ201/'Population at Risk'!AJ$5","v":5.5274126633765765E-3},{"$f":"'Population at Risk'!AK201/'Population at Risk'!AK$5","v":1.2266575138998502E-2},{"$f":"'Population at Risk'!AL201/'Population at Risk'!AL$5","v":5.2205985316094517E-3},{"$f":"'Population at Risk'!AM201/'Population at Risk'!AM$5","v":5.3488382362907568E-3},{"$f":"'Population at Risk'!AN201/'Population at Risk'!AN$5","v":1.426395676628997E-2},{"$f":"'Population at Risk'!AO201/'Population at Risk'!AO$5","v":1.426395676628997E-2},{"$f":"'Population at Risk'!AP201/'Population at Risk'!AP$5","v":1.1845334378634038E-2},{"$f":"'Population at Risk'!AQ201/'Population at Risk'!AQ$5","v":5.1300893640919215E-3},{"$f":"'Population at Risk'!AR201/'Population at Risk'!AR$5","v":6.7813773415958062E-3},{"$f":"'Population at Risk'!AS201/'Population at Risk'!AS$5","v":1.0450649074125136E-2},{"$f":"'Population at Risk'!AT201/'Population at Risk'!AT$5","v":2.4946939217859416E-2},{"$f":"'Population at Risk'!AU201/'Population at Risk'!AU$5","v":2.4946939217859416E-2},{"$f":"'Population at Risk'!AV201/'Population at Risk'!AV$5","v":3.7710001731934874E-3},{"$f":"'Population at Risk'!AW201/'Population at Risk'!AW$5","v":6.9589023015649036E-3},{"$f":"'Population at Risk'!AX201/'Population at Risk'!AX$5","v":8.764636680209114E-3},{"$f":"'Population at Risk'!AY201/'Population at Risk'!AY$5","v":6.6666741806233228E-3},{"$f":"'Population at Risk'!AZ201/'Population at Risk'!AZ$5","v":7.5488498635700781E-3},{"$f":"'Population at Risk'!BA201/'Population at Risk'!BA$5","v":3.8816787022294911E-3},{"$f":"'Population at Risk'!BB201/'Population at Risk'!BB$5","v":8.0733684451650099E-3},{"$f":"'Population at Risk'!BC201/'Population at Risk'!BC$5","v":2.5999807936393712E-3},199]
[null,"Male 45-49",{"$f":"'Population at Risk'!C202/'Population at Risk'!C$5","v":6.3487221110758406E-3},{"$f":"'Population at Risk'!D202/'Population at Risk'!D$5","v":1.2459969346352151E-2},{"$f":"'Population at Risk'!E202/'Population at Risk'!E$5","v":1.7927023364099872E-2},{"$f":"'Population at Risk'!F202/'Population at Risk'!F$5","v":1.2567139838995042E-2},{"$f":"'Population at Risk'!G202/'Population at Risk'!G$5","v":1.178678058416204E-2},{"$f":"'Population at Risk'!H202/'Population at Risk'!H$5","v":8.4813232634986697E-3},{"$f":"'Population at Risk'!I202/'Population at Risk'!I$5","v":1.938805714556021E-2},{"$f":"'Population at Risk'!J202/'Population at Risk'!J$5","v":1.3765956136512183E-2},{"$f":"'Population at Risk'!K202/'Population at Risk'!K$5","v":1.3458368126705658E-2},{"$f":"'Population at Risk'!L202/'Population at Risk'!L$5","v":9.2656939405382933E-3},{"$f":"'Population at Risk'!M202/'Population at Risk'!M$5","v":9.3880118315874568E-3},{"$f":"'Population at Risk'!N202/'Population at Risk'!N$5","v":6.5038447654568133E-3},{"$f":"'Population at Risk'!O202/'Population at Risk'!O$5","v":8.9233503204570273E-3},{"$f":"'Population at Risk'!P202/'Population at Risk'!P$5","v":8.8445694309933782E-3},{"$f":"'Population at Risk'!Q202/'Population at Risk'!Q$5","v":1.6569678849509481E-2},{"$f":"'Population at Risk'!R202/'Population at Risk'!R$5","v":6.9518360061674783E-3},{"$f":"'Population at Risk'!S202/'Population at Risk'!S$5","v":1.0104165843469319E-2},{"$f":"'Population at Risk'!T202/'Population at Risk'!T$5","v":7.0473274309961909E-3},{"$f":"'Population at Risk'!U202/'Population at Risk'!U$5","v":4.2776711404337552E-3},{"$f":"'Population at Risk'!V202/'Population at Risk'!V$5","v":1.0739680814317991E-2},{"$f":"'Population at Risk'!W202/'Population at Risk'!W$5","v":9.9801950176901626E-3},{"$f":"'Population at Risk'!X202/'Population at Risk'!X$5","v":9.8450292997248855E-3},{"$f":"'Population at Risk'!Y202/'Population at Risk'!Y$5","v":1.3350942054568635E-2},{"$f":"'Population at Risk'!Z202/'Population at Risk'!Z$5","v":5.5320981708486747E-3},{"$f":"'Population at Risk'!AA202/'Population at Risk'!AA$5","v":8.0696408649944366E-3},{"$f":"'Population at Risk'!AB202/'Population at Risk'!AB$5","v":1.3601800849526941E-2},{"$f":"'Population at Risk'!AC202/'Population at Risk'!AC$5","v":7.0826861584434722E-3},{"$f":"'Population at Risk'!AD202/'Population at Risk'!AD$5","v":1.5018964490093368E-2},{"$f":"'Population at Risk'!AE202/'Population at Risk'!AE$5","v":1.7982312718630235E-2},{"$f":"'Population at Risk'!AF202/'Population at Risk'!AF$5","v":1.0375469022572447E-2},{"$f":"'Population at Risk'!AG202/'Population at Risk'!AG$5","v":1.6713872850667919E-2},{"$f":"'Population at Risk'!AH202/'Population at Risk'!AH$5","v":9.6771235036466428E-3},{"$f":"'Population at Risk'!AI202/'Population at Risk'!AI$5","v":8.967957206915891E-3},{"$f":"'Population at Risk'!AJ202/'Population at Risk'!AJ$5","v":7.7541272288121719E-3},{"$f":"'Population at Risk'!AK202/'Population at Risk'!AK$5","v":2.0982934342947238E-2},{"$f":"'Population at Risk'!AL202/'Population at Risk'!AL$5","v":9.1957796441403412E-3},{"$f":"'Population at Risk'!AM202/'Population at Risk'!AM$5","v":8.383169254269145E-3},{"$f":"'Population at Risk'!AN202/'Population at Risk'!AN$5","v":2.5369018151769025E-2},{"$f":"'Population at Risk'!AO202/'Population at Risk'!AO$5","v":2.5369018151769025E-2},{"$f":"'Population at Risk'!AP202/'Population at Risk'!AP$5","v":1.9971015532385093E-2},{"$f":"'Population at Risk'!AQ202/'Population at Risk'!AQ$5","v":8.5672173398494526E-3},{"$f":"'Population at Risk'!AR202/'Population at Risk'!AR$5","v":1.0614254963142311E-2},{"$f":"'Population at Risk'!AS202/'Population at Risk'!AS$5","v":1.938805714556021E-2},{"$f":"'Population at Risk'!AT202/'Population at Risk'!AT$5","v":3.2865199583803274E-2},{"$f":"'Population at Risk'!AU202/'Population at Risk'!AU$5","v":3.2865199583803274E-2},{"$f":"'Population at Risk'!AV202/'Population at Risk'!AV$5","v":7.1873807025406014E-3},{"$f":"'Population at Risk'!AW202/'Population at Risk'!AW$5","v":1.0708527554540843E-2},{"$f":"'Population at Risk'!AX202/'Population at Risk'!AX$5","v":1.4748244931485063E-2},{"$f":"'Population at Risk'!AY202/'Population at Risk'!AY$5","v":1.1544837996724816E-2},{"$f":"'Population at Risk'!AZ202/'Population at Risk'!AZ$5","v":1.2711194494021848E-2},{"$f":"'Population at Risk'!BA202/'Population at Risk'!BA$5","v":7.4009137644512318E-3},{"$f":"'Population at Risk'!BB202/'Population at Risk'!BB$5","v":1.1306216613050859E-2},{"$f":"'Population at Risk'!BC202/'Population at Risk'!BC$5","v":4.5922791019628985E-3},200]
[null,"Male 50-54",{"$f":"'Population at Risk'!C203/'Population at Risk'!C$5","v":6.5549982807497848E-3},{"$f":"'Population at Risk'!D203/'Population at Risk'!D$5","v":1.3339055159560046E-2},{"$f":"'Population at Risk'!E203/'Population at Risk'!E$5","v":1.9405331983788424E-2},{"$f":"'Population at Risk'!F203/'Population at Risk'!F$5","v":1.490194856035148E-2},{"$f":"'Population at Risk'!G203/'Population at Risk'!G$5","v":1.3292783840026292E-2},{"$f":"'Population at Risk'!H203/'Population at Risk'!H$5","v":9.1327502009059466E-3},{"$f":"'Population at Risk'!I203/'Population at Risk'!I$5","v":2.2244161117898873E-2},{"$f":"'Population at Risk'!J203/'Population at Risk'!J$5","v":1.4214739965200745E-2},{"$f":"'Population at Risk'!K203/'Population at Risk'!K$5","v":1.2607370610497104E-2},{"$f":"'Population at Risk'!L203/'Population at Risk'!L$5","v":1.0983380846888081E-2},{"$f":"'Population at Risk'!M203/'Population at Risk'!M$5","v":1.1128374194434708E-2},{"$f":"'Population at Risk'!N203/'Population at Risk'!N$5","v":7.1899439964948882E-3},{"$f":"'Population at Risk'!O203/'Population at Risk'!O$5","v":9.4064616435390949E-3},{"$f":"'Population at Risk'!P203/'Population at Risk'!P$5","v":9.4801073541785318E-3},{"$f":"'Population at Risk'!Q203/'Population at Risk'!Q$5","v":1.7954968558518792E-2},{"$f":"'Population at Risk'!R203/'Population at Risk'!R$5","v":8.6936830591669359E-3},{"$f":"'Population at Risk'!S203/'Population at Risk'!S$5","v":1.0479997317743177E-2},{"$f":"'Population at Risk'!T203/'Population at Risk'!T$5","v":6.9810516244350985E-3},{"$f":"'Population at Risk'!U203/'Population at Risk'!U$5","v":3.3270775536706982E-3},{"$f":"'Population at Risk'!V203/'Population at Risk'!V$5","v":1.0246001938175955E-2},{"$f":"'Population at Risk'!W203/'Population at Risk'!W$5","v":1.0232098978473207E-2},{"$f":"'Population at Risk'!X203/'Population at Risk'!X$5","v":1.0093521625799674E-2},{"$f":"'Population at Risk'!Y203/'Population at Risk'!Y$5","v":1.3295543954757147E-2},{"$f":"'Population at Risk'!Z203/'Population at Risk'!Z$5","v":5.3911372429370193E-3},{"$f":"'Population at Risk'!AA203/'Population at Risk'!AA$5","v":8.4334493156157028E-3},{"$f":"'Population at Risk'!AB203/'Population at Risk'!AB$5","v":1.4367818037428802E-2},{"$f":"'Population at Risk'!AC203/'Population at Risk'!AC$5","v":7.525676922912128E-3},{"$f":"'Population at Risk'!AD203/'Population at Risk'!AD$5","v":1.6347742537360908E-2},{"$f":"'Population at Risk'!AE203/'Population at Risk'!AE$5","v":1.9380795135313478E-2},{"$f":"'Population at Risk'!AF203/'Population at Risk'!AF$5","v":1.1823635193567541E-2},{"$f":"'Population at Risk'!AG203/'Population at Risk'!AG$5","v":1.8013708842960632E-2},{"$f":"'Population at Risk'!AH203/'Population at Risk'!AH$5","v":9.9103582944882578E-3},{"$f":"'Population at Risk'!AI203/'Population at Risk'!AI$5","v":9.0823115463000547E-3},{"$f":"'Population at Risk'!AJ203/'Population at Risk'!AJ$5","v":7.984610840708924E-3},{"$f":"'Population at Risk'!AK203/'Population at Risk'!AK$5","v":2.1224444081491659E-2},{"$f":"'Population at Risk'!AL203/'Population at Risk'!AL$5","v":1.0430507089964812E-2},{"$f":"'Population at Risk'!AM203/'Population at Risk'!AM$5","v":8.54738000309712E-3},{"$f":"'Population at Risk'!AN203/'Population at Risk'!AN$5","v":2.7618487741581058E-2},{"$f":"'Population at Risk'!AO203/'Population at Risk'!AO$5","v":2.7618487741581058E-2},{"$f":"'Population at Risk'!AP203/'Population at Risk'!AP$5","v":2.2594553765861954E-2},{"$f":"'Population at Risk'!AQ203/'Population at Risk'!AQ$5","v":9.4805506421593959E-3},{"$f":"'Population at Risk'!AR203/'Population at Risk'!AR$5","v":1.1256768213433412E-2},{"$f":"'Population at Risk'!AS203/'Population at Risk'!AS$5","v":2.2244161117898873E-2},{"$f":"'Population at Risk'!AT203/'Population at Risk'!AT$5","v":3.6163937088497279E-2},{"$f":"'Population at Risk'!AU203/'Population at Risk'!AU$5","v":3.6163937088497279E-2},{"$f":"'Population at Risk'!AV203/'Population at Risk'!AV$5","v":7.3602730218457028E-3},{"$f":"'Population at Risk'!AW203/'Population at Risk'!AW$5","v":1.1004021319162841E-2},{"$f":"'Population at Risk'!AX203/'Population at Risk'!AX$5","v":1.5842372858312716E-2},{"$f":"'Population at Risk'!AY203/'Population at Risk'!AY$5","v":1.2648719714396368E-2},{"$f":"'Population at Risk'!AZ203/'Population at Risk'!AZ$5","v":1.44969306298359E-2},{"$f":"'Population at Risk'!BA203/'Population at Risk'!BA$5","v":8.0877735105719956E-3},{"$f":"'Population at Risk'!BB203/'Population at Risk'!BB$5","v":1.1116775055177958E-2},{"$f":"'Population at Risk'!BC203/'Population at Risk'!BC$5","v":3.5717726348600317E-3},201]
[null,"Male 55-59",{"$f":"'Population at Risk'!C204/'Population at Risk'!C$5","v":9.2346736617144442E-3},{"$f":"'Population at Risk'!D204/'Population at Risk'!D$5","v":1.8742755988941307E-2},{"$f":"'Population at Risk'!E204/'Population at Risk'!E$5","v":2.7245103228212476E-2},{"$f":"'Population at Risk'!F204/'Population at Risk'!F$5","v":2.0304940638365351E-2},{"$f":"'Population at Risk'!G204/'Population at Risk'!G$5","v":1.9159890466905072E-2},{"$f":"'Population at Risk'!H204/'Population at Risk'!H$5","v":1.3585128486846955E-2},{"$f":"'Population at Risk'!I204/'Population at Risk'!I$5","v":3.1841021901605419E-2},{"$f":"'Population at Risk'!J204/'Population at Risk'!J$5","v":1.9480404828316259E-2},{"$f":"'Population at Risk'!K204/'Population at Risk'!K$5","v":1.6394077243640708E-2},{"$f":"'Population at Risk'!L204/'Population at Risk'!L$5","v":1.572763042389996E-2},{"$f":"'Population at Risk'!M204/'Population at Risk'!M$5","v":1.5935253360400747E-2},{"$f":"'Population at Risk'!N204/'Population at Risk'!N$5","v":1.2082924195376382E-2},{"$f":"'Population at Risk'!O204/'Population at Risk'!O$5","v":1.3877031897266768E-2},{"$f":"'Population at Risk'!P204/'Population at Risk'!P$5","v":1.5726761832560585E-2},{"$f":"'Population at Risk'!Q204/'Population at Risk'!Q$5","v":2.6082154504853156E-2},{"$f":"'Population at Risk'!R204/'Population at Risk'!R$5","v":1.0141890737953041E-2},{"$f":"'Population at Risk'!S204/'Population at Risk'!S$5","v":1.4949120050689265E-2},{"$f":"'Population at Risk'!T204/'Population at Risk'!T$5","v":9.9731220057632068E-3},{"$f":"'Population at Risk'!U204/'Population at Risk'!U$5","v":4.7968471780239792E-3},{"$f":"'Population at Risk'!V204/'Population at Risk'!V$5","v":1.4725208398560811E-2},{"$f":"'Population at Risk'!W204/'Population at Risk'!W$5","v":1.4831607983316591E-2},{"$f":"'Population at Risk'!X204/'Population at Risk'!X$5","v":1.4630737665843729E-2},{"$f":"'Population at Risk'!Y204/'Population at Risk'!Y$5","v":1.8618265549183916E-2},{"$f":"'Population at Risk'!Z204/'Population at Risk'!Z$5","v":7.2647833604073519E-3},{"$f":"'Population at Risk'!AA204/'Population at Risk'!AA$5","v":1.1515667643544319E-2},{"$f":"'Population at Risk'!AB204/'Population at Risk'!AB$5","v":2.0050326950758982E-2},{"$f":"'Population at Risk'!AC204/'Population at Risk'!AC$5","v":1.0736347519400813E-2},{"$f":"'Population at Risk'!AD204/'Population at Risk'!AD$5","v":2.406136573636072E-2},{"$f":"'Population at Risk'!AE204/'Population at Risk'!AE$5","v":2.8693865869760138E-2},{"$f":"'Population at Risk'!AF204/'Population at Risk'!AF$5","v":1.6109623096279047E-2},{"$f":"'Population at Risk'!AG204/'Population at Risk'!AG$5","v":2.6669852384694943E-2},{"$f":"'Population at Risk'!AH204/'Population at Risk'!AH$5","v":1.277679516562562E-2},{"$f":"'Population at Risk'!AI204/'Population at Risk'!AI$5","v":1.2846401993730661E-2},{"$f":"'Population at Risk'!AJ204/'Population at Risk'!AJ$5","v":1.1860626711936837E-2},{"$f":"'Population at Risk'!AK204/'Population at Risk'!AK$5","v":2.8939911790012166E-2},{"$f":"'Population at Risk'!AL204/'Population at Risk'!AL$5","v":1.5154357796157984E-2},{"$f":"'Population at Risk'!AM204/'Population at Risk'!AM$5","v":1.0388157207888955E-2},{"$f":"'Population at Risk'!AN204/'Population at Risk'!AN$5","v":3.783727698915558E-2},{"$f":"'Population at Risk'!AO204/'Population at Risk'!AO$5","v":3.783727698915558E-2},{"$f":"'Population at Risk'!AP204/'Population at Risk'!AP$5","v":3.2172138100706058E-2},{"$f":"'Population at Risk'!AQ204/'Population at Risk'!AQ$5","v":1.4356800097236302E-2},{"$f":"'Population at Risk'!AR204/'Population at Risk'!AR$5","v":1.5916638303136083E-2},{"$f":"'Population at Risk'!AS204/'Population at Risk'!AS$5","v":3.1841021901605419E-2},{"$f":"'Population at Risk'!AT204/'Population at Risk'!AT$5","v":5.0269840765111887E-2},{"$f":"'Population at Risk'!AU204/'Population at Risk'!AU$5","v":5.0269840765111887E-2},{"$f":"'Population at Risk'!AV204/'Population at Risk'!AV$5","v":1.1428035109515181E-2},{"$f":"'Population at Risk'!AW204/'Population at Risk'!AW$5","v":1.4810926516407469E-2},{"$f":"'Population at Risk'!AX204/'Population at Risk'!AX$5","v":2.213112043990588E-2},{"$f":"'Population at Risk'!AY204/'Population at Risk'!AY$5","v":1.8353051368466339E-2},{"$f":"'Population at Risk'!AZ204/'Population at Risk'!AZ$5","v":2.1046928173512142E-2},{"$f":"'Population at Risk'!BA204/'Population at Risk'!BA$5","v":1.2957522885197361E-2},{"$f":"'Population at Risk'!BB204/'Population at Risk'!BB$5","v":1.4680219775355302E-2},{"$f":"'Population at Risk'!BC204/'Population at Risk'!BC$5","v":5.1496387468241735E-3},202]
[null,"Male 60-64",{"$f":"'Population at Risk'!C205/'Population at Risk'!C$5","v":8.8877061541933807E-3},{"$f":"'Population at Risk'!D205/'Population at Risk'!D$5","v":1.6924242585929016E-2},{"$f":"'Population at Risk'!E205/'Population at Risk'!E$5","v":2.4116554155844166E-2},{"$f":"'Population at Risk'!F205/'Population at Risk'!F$5","v":2.0364369732916665E-2},{"$f":"'Population at Risk'!G205/'Population at Risk'!G$5","v":1.8801984667398748E-2},{"$f":"'Population at Risk'!H205/'Population at Risk'!H$5","v":1.2381968688985083E-2},{"$f":"'Population at Risk'!I205/'Population at Risk'!I$5","v":3.0482684706304816E-2},{"$f":"'Population at Risk'!J205/'Population at Risk'!J$5","v":1.542072481743853E-2},{"$f":"'Population at Risk'!K205/'Population at Risk'!K$5","v":1.2576948810793021E-2},{"$f":"'Population at Risk'!L205/'Population at Risk'!L$5","v":1.5940989751355966E-2},{"$f":"'Population at Risk'!M205/'Population at Risk'!M$5","v":1.6151429278080602E-2},{"$f":"'Population at Risk'!N205/'Population at Risk'!N$5","v":9.0913789537674962E-3},{"$f":"'Population at Risk'!O205/'Population at Risk'!O$5","v":1.2884239472184089E-2},{"$f":"'Population at Risk'!P205/'Population at Risk'!P$5","v":1.41438067200022E-2},{"$f":"'Population at Risk'!Q205/'Population at Risk'!Q$5","v":1.9984485076977157E-2},{"$f":"'Population at Risk'!R205/'Population at Risk'!R$5","v":1.0504101121451365E-2},{"$f":"'Population at Risk'!S205/'Population at Risk'!S$5","v":1.2680525516681158E-2},{"$f":"'Population at Risk'!T205/'Population at Risk'!T$5","v":8.6696701185095468E-3},{"$f":"'Population at Risk'!U205/'Population at Risk'!U$5","v":4.1511177502130585E-3},{"$f":"'Population at Risk'!V205/'Population at Risk'!V$5","v":1.1417079388473176E-2},{"$f":"'Population at Risk'!W205/'Population at Risk'!W$5","v":1.2683539183723648E-2},{"$f":"'Population at Risk'!X205/'Population at Risk'!X$5","v":1.2511761009342292E-2},{"$f":"'Population at Risk'!Y205/'Population at Risk'!Y$5","v":1.4599034767041734E-2},{"$f":"'Population at Risk'!Z205/'Population at Risk'!Z$5","v":6.1550992213176454E-3},{"$f":"'Population at Risk'!AA205/'Population at Risk'!AA$5","v":9.7811474819666094E-3},{"$f":"'Population at Risk'!AB205/'Population at Risk'!AB$5","v":1.8392106994893256E-2},{"$f":"'Population at Risk'!AC205/'Population at Risk'!AC$5","v":9.2203447691828408E-3},{"$f":"'Population at Risk'!AD205/'Population at Risk'!AD$5","v":2.2356178334974056E-2},{"$f":"'Population at Risk'!AE205/'Population at Risk'!AE$5","v":2.624487317113168E-2},{"$f":"'Population at Risk'!AF205/'Population at Risk'!AF$5","v":1.3491097787343231E-2},{"$f":"'Population at Risk'!AG205/'Population at Risk'!AG$5","v":2.4393607208807021E-2},{"$f":"'Population at Risk'!AH205/'Population at Risk'!AH$5","v":1.0686286294156341E-2},{"$f":"'Population at Risk'!AI205/'Population at Risk'!AI$5","v":1.0420665195225942E-2},{"$f":"'Population at Risk'!AJ205/'Population at Risk'!AJ$5","v":1.0020184635946639E-2},{"$f":"'Population at Risk'!AK205/'Population at Risk'!AK$5","v":2.7969365967786149E-2},{"$f":"'Population at Risk'!AL205/'Population at Risk'!AL$5","v":1.4004087264642378E-2},{"$f":"'Population at Risk'!AM205/'Population at Risk'!AM$5","v":8.6491705387269271E-3},{"$f":"'Population at Risk'!AN205/'Population at Risk'!AN$5","v":3.5023735879705545E-2},{"$f":"'Population at Risk'!AO205/'Population at Risk'!AO$5","v":3.5023735879705545E-2},{"$f":"'Population at Risk'!AP205/'Population at Risk'!AP$5","v":2.9678173906852869E-2},{"$f":"'Population at Risk'!AQ205/'Population at Risk'!AQ$5","v":1.1743276487698592E-2},{"$f":"'Population at Risk'!AR205/'Population at Risk'!AR$5","v":1.3988013081414192E-2},{"$f":"'Population at Risk'!AS205/'Population at Risk'!AS$5","v":3.0482684706304816E-2},{"$f":"'Population at Risk'!AT205/'Population at Risk'!AT$5","v":4.6001646737885406E-2},{"$f":"'Population at Risk'!AU205/'Population at Risk'!AU$5","v":4.6001646737885406E-2},{"$f":"'Population at Risk'!AV205/'Population at Risk'!AV$5","v":1.0009117998602223E-2},{"$f":"'Population at Risk'!AW205/'Population at Risk'!AW$5","v":1.2426444891383753E-2},{"$f":"'Population at Risk'!AX205/'Population at Risk'!AX$5","v":1.7709550635928894E-2},{"$f":"'Population at Risk'!AY205/'Population at Risk'!AY$5","v":1.6317551460446306E-2},{"$f":"'Population at Risk'!AZ205/'Population at Risk'!AZ$5","v":1.9121197260390792E-2},{"$f":"'Population at Risk'!BA205/'Population at Risk'!BA$5","v":1.0557981610160812E-2},{"$f":"'Population at Risk'!BB205/'Population at Risk'!BB$5","v":1.0642490838964317E-2},{"$f":"'Population at Risk'!BC205/'Population at Risk'!BC$5","v":4.4564181462901512E-3},203]
[null,"Male 65-69",{"$f":"'Population at Risk'!C206/'Population at Risk'!C$5","v":5.5565909581230749E-3},{"$f":"'Population at Risk'!D206/'Population at Risk'!D$5","v":1.1410517036939898E-2},{"$f":"'Population at Risk'!E206/'Population at Risk'!E$5","v":1.6644535331059362E-2},{"$f":"'Population at Risk'!F206/'Population at Risk'!F$5","v":1.4201629496414642E-2},{"$f":"'Population at Risk'!G206/'Population at Risk'!G$5","v":1.3315138724037908E-2},{"$f":"'Population at Risk'!H206/'Population at Risk'!H$5","v":8.4463280362871637E-3},{"$f":"'Population at Risk'!I206/'Population at Risk'!I$5","v":2.1941868045524605E-2},{"$f":"'Population at Risk'!J206/'Population at Risk'!J$5","v":1.0016416325591856E-2},{"$f":"'Population at Risk'!K206/'Population at Risk'!K$5","v":8.8040894260405407E-3},{"$f":"'Population at Risk'!L206/'Population at Risk'!L$5","v":1.0894526773050103E-2},{"$f":"'Population at Risk'!M206/'Population at Risk'!M$5","v":1.1038347143916005E-2},{"$f":"'Population at Risk'!N206/'Population at Risk'!N$5","v":5.7955409849308279E-3},{"$f":"'Population at Risk'!O206/'Population at Risk'!O$5","v":8.0579509238037448E-3},{"$f":"'Population at Risk'!P206/'Population at Risk'!P$5","v":9.5880659591802697E-3},{"$f":"'Population at Risk'!Q206/'Population at Risk'!Q$5","v":1.3269460771229749E-2},{"$f":"'Population at Risk'!R206/'Population at Risk'!R$5","v":6.3605952987148559E-3},{"$f":"'Population at Risk'!S206/'Population at Risk'!S$5","v":8.5596590882532388E-3},{"$f":"'Population at Risk'!T206/'Population at Risk'!T$5","v":4.9600655194965478E-3},{"$f":"'Population at Risk'!U206/'Population at Risk'!U$5","v":3.2565090079741421E-3},{"$f":"'Population at Risk'!V206/'Population at Risk'!V$5","v":8.1343234210956988E-3},{"$f":"'Population at Risk'!W206/'Population at Risk'!W$5","v":9.2808083429610048E-3},{"$f":"'Population at Risk'!X206/'Population at Risk'!X$5","v":9.1551146946153659E-3},{"$f":"'Population at Risk'!Y206/'Population at Risk'!Y$5","v":9.9004529060643283E-3},{"$f":"'Population at Risk'!Z206/'Population at Risk'!Z$5","v":3.6129434782571739E-3},{"$f":"'Population at Risk'!AA206/'Population at Risk'!AA$5","v":6.1306587690738625E-3},{"$f":"'Population at Risk'!AB206/'Population at Risk'!AB$5","v":1.2266131660743784E-2},{"$f":"'Population at Risk'!AC206/'Population at Risk'!AC$5","v":5.7599355006996986E-3},{"$f":"'Population at Risk'!AD206/'Population at Risk'!AD$5","v":1.527890442108921E-2},{"$f":"'Population at Risk'!AE206/'Population at Risk'!AE$5","v":1.7743216192904233E-2},{"$f":"'Population at Risk'!AF206/'Population at Risk'!AF$5","v":7.7870039666146779E-3},{"$f":"'Population at Risk'!AG206/'Population at Risk'!AG$5","v":1.6491641762122752E-2},{"$f":"'Population at Risk'!AH206/'Population at Risk'!AH$5","v":6.7295410458536554E-3},{"$f":"'Population at Risk'!AI206/'Population at Risk'!AI$5","v":6.5736063297431348E-3},{"$f":"'Population at Risk'!AJ206/'Population at Risk'!AJ$5","v":7.4619874436226081E-3},{"$f":"'Population at Risk'!AK206/'Population at Risk'!AK$5","v":1.7999657316140023E-2},{"$f":"'Population at Risk'!AL206/'Population at Risk'!AL$5","v":1.0374837512687992E-2},{"$f":"'Population at Risk'!AM206/'Population at Risk'!AM$5","v":5.1439229337949316E-3},{"$f":"'Population at Risk'!AN206/'Population at Risk'!AN$5","v":2.3184318371337359E-2},{"$f":"'Population at Risk'!AO206/'Population at Risk'!AO$5","v":2.3184318371337359E-2},{"$f":"'Population at Risk'!AP206/'Population at Risk'!AP$5","v":2.0336199783150901E-2},{"$f":"'Population at Risk'!AQ206/'Population at Risk'!AQ$5","v":7.5108650718067283E-3},{"$f":"'Population at Risk'!AR206/'Population at Risk'!AR$5","v":9.2980199191127644E-3},{"$f":"'Population at Risk'!AS206/'Population at Risk'!AS$5","v":2.1941868045524605E-2},{"$f":"'Population at Risk'!AT206/'Population at Risk'!AT$5","v":3.052153579900501E-2},{"$f":"'Population at Risk'!AU206/'Population at Risk'!AU$5","v":3.052153579900501E-2},{"$f":"'Population at Risk'!AV206/'Population at Risk'!AV$5","v":6.5997831609340227E-3},{"$f":"'Population at Risk'!AW206/'Population at Risk'!AW$5","v":8.1246562923973642E-3},{"$f":"'Population at Risk'!AX206/'Population at Risk'!AX$5","v":1.1201225003593255E-2},{"$f":"'Population at Risk'!AY206/'Population at Risk'!AY$5","v":1.1398537196301054E-2},{"$f":"'Population at Risk'!AZ206/'Population at Risk'!AZ$5","v":1.3015323461126665E-2},{"$f":"'Population at Risk'!BA206/'Population at Risk'!BA$5","v":7.6563624375858962E-3},{"$f":"'Population at Risk'!BB206/'Population at Risk'!BB$5","v":7.2794905539539951E-3},{"$f":"'Population at Risk'!BC206/'Population at Risk'!BC$5","v":3.496014015971589E-3},204]
[null,"Male 70-74",{"$f":"'Population at Risk'!C207/'Population at Risk'!C$5","v":4.0043693535169551E-3},{"$f":"'Population at Risk'!D207/'Population at Risk'!D$5","v":7.6672798312094285E-3},{"$f":"'Population at Risk'!E207/'Population at Risk'!E$5","v":1.0945156128247114E-2},{"$f":"'Population at Risk'!F207/'Population at Risk'!F$5","v":1.1646412068082462E-2},{"$f":"'Population at Risk'!G207/'Population at Risk'!G$5","v":1.0933964280688064E-2},{"$f":"'Population at Risk'!H207/'Population at Risk'!H$5","v":6.9787673200991168E-3},{"$f":"'Population at Risk'!I207/'Population at Risk'!I$5","v":1.6842892529382918E-2},{"$f":"'Population at Risk'!J207/'Population at Risk'!J$5","v":8.257887381365769E-3},{"$f":"'Population at Risk'!K207/'Population at Risk'!K$5","v":6.8771566460014786E-3},{"$f":"'Population at Risk'!L207/'Population at Risk'!L$5","v":8.5459440783849806E-3},{"$f":"'Population at Risk'!M207/'Population at Risk'!M$5","v":8.6587604376777011E-3},{"$f":"'Population at Risk'!N207/'Population at Risk'!N$5","v":4.0618321432848541E-3},{"$f":"'Population at Risk'!O207/'Population at Risk'!O$5","v":6.5751681329922736E-3},{"$f":"'Population at Risk'!P207/'Population at Risk'!P$5","v":6.6851289584386455E-3},{"$f":"'Population at Risk'!Q207/'Population at Risk'!Q$5","v":1.0547520100208261E-2},{"$f":"'Population at Risk'!R207/'Population at Risk'!R$5","v":4.5409404581031312E-3},{"$f":"'Population at Risk'!S207/'Population at Risk'!S$5","v":6.3986011125137954E-3},{"$f":"'Population at Risk'!T207/'Population at Risk'!T$5","v":3.490093050396925E-3},{"$f":"'Population at Risk'!U207/'Population at Risk'!U$5","v":2.6302572756714223E-3},{"$f":"'Population at Risk'!V207/'Population at Risk'!V$5","v":5.8702244217334852E-3},{"$f":"'Population at Risk'!W207/'Population at Risk'!W$5","v":6.9627136160633875E-3},{"$f":"'Population at Risk'!X207/'Population at Risk'!X$5","v":6.8684148390120731E-3},{"$f":"'Population at Risk'!Y207/'Population at Risk'!Y$5","v":7.6761688483480001E-3},{"$f":"'Population at Risk'!Z207/'Population at Risk'!Z$5","v":2.3356402283682739E-3},{"$f":"'Population at Risk'!AA207/'Population at Risk'!AA$5","v":4.2107010104078151E-3},{"$f":"'Population at Risk'!AB207/'Population at Risk'!AB$5","v":8.5355050881000902E-3},{"$f":"'Population at Risk'!AC207/'Population at Risk'!AC$5","v":4.0323632600029564E-3},{"$f":"'Population at Risk'!AD207/'Population at Risk'!AD$5","v":1.1841371847460693E-2},{"$f":"'Population at Risk'!AE207/'Population at Risk'!AE$5","v":1.3495883333373666E-2},{"$f":"'Population at Risk'!AF207/'Population at Risk'!AF$5","v":5.9320352797784266E-3},{"$f":"'Population at Risk'!AG207/'Population at Risk'!AG$5","v":1.254390809296514E-2},{"$f":"'Population at Risk'!AH207/'Population at Risk'!AH$5","v":4.4967906291124389E-3},{"$f":"'Population at Risk'!AI207/'Population at Risk'!AI$5","v":4.8487137597485516E-3},{"$f":"'Population at Risk'!AJ207/'Population at Risk'!AJ$5","v":6.1257710874390251E-3},{"$f":"'Population at Risk'!AK207/'Population at Risk'!AK$5","v":1.3971447816937307E-2},{"$f":"'Population at Risk'!AL207/'Population at Risk'!AL$5","v":8.4039902432526386E-3},{"$f":"'Population at Risk'!AM207/'Population at Risk'!AM$5","v":3.5195262178596906E-3},{"$f":"'Population at Risk'!AN207/'Population at Risk'!AN$5","v":1.8244477809262638E-2},{"$f":"'Population at Risk'!AO207/'Population at Risk'!AO$5","v":1.8244477809262638E-2},{"$f":"'Population at Risk'!AP207/'Population at Risk'!AP$5","v":1.4861792625984471E-2},{"$f":"'Population at Risk'!AQ207/'Population at Risk'!AQ$5","v":5.7286259022254708E-3},{"$f":"'Population at Risk'!AR207/'Population at Risk'!AR$5","v":6.8400001579267669E-3},{"$f":"'Population at Risk'!AS207/'Population at Risk'!AS$5","v":1.6842892529382918E-2},{"$f":"'Population at Risk'!AT207/'Population at Risk'!AT$5","v":1.9768167701043331E-2},{"$f":"'Population at Risk'!AU207/'Population at Risk'!AU$5","v":1.9768167701043331E-2},{"$f":"'Population at Risk'!AV207/'Population at Risk'!AV$5","v":5.7015878195051323E-3},{"$f":"'Population at Risk'!AW207/'Population at Risk'!AW$5","v":5.3477084343587404E-3},{"$f":"'Population at Risk'!AX207/'Population at Risk'!AX$5","v":9.4159803979429902E-3},{"$f":"'Population at Risk'!AY207/'Population at Risk'!AY$5","v":8.5569701383722135E-3},{"$f":"'Population at Risk'!AZ207/'Population at Risk'!AZ$5","v":9.7743265329944123E-3},{"$f":"'Population at Risk'!BA207/'Population at Risk'!BA$5","v":5.1223417726638503E-3},{"$f":"'Population at Risk'!BB207/'Population at Risk'!BB$5","v":5.0829360476486755E-3},{"$f":"'Population at Risk'!BC207/'Population at Risk'!BC$5","v":2.8237036282847453E-3},205]
[null,"Male 75-79",{"$f":"'Population at Risk'!C208/'Population at Risk'!C$5","v":2.3602375961406046E-3},{"$f":"'Population at Risk'!D208/'Population at Risk'!D$5","v":4.7979368939843024E-3},{"$f":"'Population at Risk'!E208/'Population at Risk'!E$5","v":6.9777441750185926E-3},{"$f":"'Population at Risk'!F208/'Population at Risk'!F$5","v":7.9887435765133106E-3},{"$f":"'Population at Risk'!G208/'Population at Risk'!G$5","v":6.4007253060002064E-3},{"$f":"'Population at Risk'!H208/'Population at Risk'!H$5","v":4.0087169406735085E-3},{"$f":"'Population at Risk'!I208/'Population at Risk'!I$5","v":1.0776322205766721E-2},{"$f":"'Population at Risk'!J208/'Population at Risk'!J$5","v":4.7273867665539853E-3},{"$f":"'Population at Risk'!K208/'Population at Risk'!K$5","v":3.7094169343621398E-3},{"$f":"'Population at Risk'!L208/'Population at Risk'!L$5","v":5.4960971569932206E-3},{"$f":"'Population at Risk'!M208/'Population at Risk'!M$5","v":5.5686520047530264E-3},{"$f":"'Population at Risk'!N208/'Population at Risk'!N$5","v":2.739393916464035E-3},{"$f":"'Population at Risk'!O208/'Population at Risk'!O$5","v":3.3053691771643425E-3},{"$f":"'Population at Risk'!P208/'Population at Risk'!P$5","v":4.540882007922081E-3},{"$f":"'Population at Risk'!Q208/'Population at Risk'!Q$5","v":6.0717800051467803E-3},{"$f":"'Population at Risk'!R208/'Population at Risk'!R$5","v":2.9600121462213715E-3},{"$f":"'Population at Risk'!S208/'Population at Risk'!S$5","v":3.9758889883624825E-3},{"$f":"'Population at Risk'!T208/'Population at Risk'!T$5","v":2.4197351480637636E-3},{"$f":"'Population at Risk'!U208/'Population at Risk'!U$5","v":1.2017903997615504E-3},{"$f":"'Population at Risk'!V208/'Population at Risk'!V$5","v":3.7826351244630153E-3},{"$f":"'Population at Risk'!W208/'Population at Risk'!W$5","v":4.1984762699727226E-3},{"$f":"'Population at Risk'!X208/'Population at Risk'!X$5","v":4.1416146496952482E-3},{"$f":"'Population at Risk'!Y208/'Population at Risk'!Y$5","v":4.6398191931634929E-3},{"$f":"'Population at Risk'!Z208/'Population at Risk'!Z$5","v":1.5893963900812586E-3},{"$f":"'Population at Risk'!AA208/'Population at Risk'!AA$5","v":2.5645461354933318E-3},{"$f":"'Population at Risk'!AB208/'Population at Risk'!AB$5","v":5.3569106462279577E-3},{"$f":"'Population at Risk'!AC208/'Population at Risk'!AC$5","v":2.5923010755103289E-3},{"$f":"'Population at Risk'!AD208/'Population at Risk'!AD$5","v":6.8217782957346786E-3},{"$f":"'Population at Risk'!AE208/'Population at Risk'!AE$5","v":7.7326761625700199E-3},{"$f":"'Population at Risk'!AF208/'Population at Risk'!AF$5","v":3.7249009850927645E-3},{"$f":"'Population at Risk'!AG208/'Population at Risk'!AG$5","v":7.187227149191234E-3},{"$f":"'Population at Risk'!AH208/'Population at Risk'!AH$5","v":2.5149045729687728E-3},{"$f":"'Population at Risk'!AI208/'Population at Risk'!AI$5","v":3.0254767479687391E-3},{"$f":"'Population at Risk'!AJ208/'Population at Risk'!AJ$5","v":3.1333832188976799E-3},{"$f":"'Population at Risk'!AK208/'Population at Risk'!AK$5","v":8.8431205900384204E-3},{"$f":"'Population at Risk'!AL208/'Population at Risk'!AL$5","v":4.984411397975225E-3},{"$f":"'Population at Risk'!AM208/'Population at Risk'!AM$5","v":1.9589287657515381E-3},{"$f":"'Population at Risk'!AN208/'Population at Risk'!AN$5","v":1.2869355451096447E-2},{"$f":"'Population at Risk'!AO208/'Population at Risk'!AO$5","v":1.2869355451096447E-2},{"$f":"'Population at Risk'!AP208/'Population at Risk'!AP$5","v":9.9771107816997474E-3},{"$f":"'Population at Risk'!AQ208/'Population at Risk'!AQ$5","v":3.4284831884057853E-3},{"$f":"'Population at Risk'!AR208/'Population at Risk'!AR$5","v":4.2335561192027426E-3},{"$f":"'Population at Risk'!AS208/'Population at Risk'!AS$5","v":1.0776322205766721E-2},{"$f":"'Population at Risk'!AT208/'Population at Risk'!AT$5","v":1.2750024163062652E-2},{"$f":"'Population at Risk'!AU208/'Population at Risk'!AU$5","v":1.2750024163062652E-2},{"$f":"'Population at Risk'!AV208/'Population at Risk'!AV$5","v":3.5199825517788328E-3},{"$f":"'Population at Risk'!AW208/'Population at Risk'!AW$5","v":3.000110060207829E-3},{"$f":"'Population at Risk'!AX208/'Population at Risk'!AX$5","v":5.4985640852242773E-3},{"$f":"'Population at Risk'!AY208/'Population at Risk'!AY$5","v":5.556677228631352E-3},{"$f":"'Population at Risk'!AZ208/'Population at Risk'!AZ$5","v":6.6094202444994758E-3},{"$f":"'Population at Risk'!BA208/'Population at Risk'!BA$5","v":2.9840151938937687E-3},{"$f":"'Population at Risk'!BB208/'Population at Risk'!BB$5","v":3.1036289552760169E-3},{"$f":"'Population at Risk'!BC208/'Population at Risk'!BC$5","v":1.2901779394862464E-3},206]
[null,"Male 80-84",{"$f":"'Population at Risk'!C209/'Population at Risk'!C$5","v":1.6068581848725097E-3},{"$f":"'Population at Risk'!D209/'Population at Risk'!D$5","v":3.1345535332039202E-3},{"$f":"'Population at Risk'!E209/'Population at Risk'!E$5","v":4.5013199581340748E-3},{"$f":"'Population at Risk'!F209/'Population at Risk'!F$5","v":4.7979385063053517E-3},{"$f":"'Population at Risk'!G209/'Population at Risk'!G$5","v":4.3377983861855708E-3},{"$f":"'Population at Risk'!H209/'Population at Risk'!H$5","v":2.7481633714382843E-3},{"$f":"'Population at Risk'!I209/'Population at Risk'!I$5","v":7.0264932933319776E-3},{"$f":"'Population at Risk'!J209/'Population at Risk'!J$5","v":3.2472751603274059E-3},{"$f":"'Population at Risk'!K209/'Population at Risk'!K$5","v":2.6661434215727881E-3},{"$f":"'Population at Risk'!L209/'Population at Risk'!L$5","v":4.1153042751870417E-3},{"$f":"'Population at Risk'!M209/'Population at Risk'!M$5","v":4.1696310577461091E-3},{"$f":"'Population at Risk'!N209/'Population at Risk'!N$5","v":2.4023706901482702E-3},{"$f":"'Population at Risk'!O209/'Population at Risk'!O$5","v":2.0380932475795943E-3},{"$f":"'Population at Risk'!P209/'Population at Risk'!P$5","v":3.2869655285226859E-3},{"$f":"'Population at Risk'!Q209/'Population at Risk'!Q$5","v":4.0437312865234153E-3},{"$f":"'Population at Risk'!R209/'Population at Risk'!R$5","v":2.2450333669408471E-3},{"$f":"'Population at Risk'!S209/'Population at Risk'!S$5","v":2.6402387813344612E-3},{"$f":"'Population at Risk'!T209/'Population at Risk'!T$5","v":1.767193770254333E-3},{"$f":"'Population at Risk'!U209/'Population at Risk'!U$5","v":1.1471635634087527E-3},{"$f":"'Population at Risk'!V209/'Population at Risk'!V$5","v":2.7155338472460802E-3},{"$f":"'Population at Risk'!W209/'Population at Risk'!W$5","v":2.6470253190721189E-3},{"$f":"'Population at Risk'!X209/'Population at Risk'!X$5","v":2.6111756110162683E-3},{"$f":"'Population at Risk'!Y209/'Population at Risk'!Y$5","v":3.2552823281376602E-3},{"$f":"'Population at Risk'!Z209/'Population at Risk'!Z$5","v":1.1391811036204728E-3},{"$f":"'Population at Risk'!AA209/'Population at Risk'!AA$5","v":1.7434187808522191E-3},{"$f":"'Population at Risk'!AB209/'Population at Risk'!AB$5","v":3.5093480948421726E-3},{"$f":"'Population at Risk'!AC209/'Population at Risk'!AC$5","v":1.8085545295475174E-3},{"$f":"'Population at Risk'!AD209/'Population at Risk'!AD$5","v":4.7405577987308777E-3},{"$f":"'Population at Risk'!AE209/'Population at Risk'!AE$5","v":5.4193318891815707E-3},{"$f":"'Population at Risk'!AF209/'Population at Risk'!AF$5","v":2.2416824932911207E-3},{"$f":"'Population at Risk'!AG209/'Population at Risk'!AG$5","v":5.0370620035713812E-3},{"$f":"'Population at Risk'!AH209/'Population at Risk'!AH$5","v":1.6337132032153733E-3},{"$f":"'Population at Risk'!AI209/'Population at Risk'!AI$5","v":2.082144056605016E-3},{"$f":"'Population at Risk'!AJ209/'Population at Risk'!AJ$5","v":2.3916644859219007E-3},{"$f":"'Population at Risk'!AK209/'Population at Risk'!AK$5","v":5.8388107884005521E-3},{"$f":"'Population at Risk'!AL209/'Population at Risk'!AL$5","v":3.3409612190332854E-3},{"$f":"'Population at Risk'!AM209/'Population at Risk'!AM$5","v":1.1691630182943961E-3},{"$f":"'Population at Risk'!AN209/'Population at Risk'!AN$5","v":7.239012441241751E-3},{"$f":"'Population at Risk'!AO209/'Population at Risk'!AO$5","v":7.239012441241751E-3},{"$f":"'Population at Risk'!AP209/'Population at Risk'!AP$5","v":7.0151560183826338E-3},{"$f":"'Population at Risk'!AQ209/'Population at Risk'!AQ$5","v":2.1306565563574413E-3},{"$f":"'Population at Risk'!AR209/'Population at Risk'!AR$5","v":2.8688251561597758E-3},{"$f":"'Population at Risk'!AS209/'Population at Risk'!AS$5","v":7.0264932933319776E-3},{"$f":"'Population at Risk'!AT209/'Population at Risk'!AT$5","v":7.4702784743935361E-3},{"$f":"'Population at Risk'!AU209/'Population at Risk'!AU$5","v":7.4702784743935361E-3},{"$f":"'Population at Risk'!AV209/'Population at Risk'!AV$5","v":2.691083434747043E-3},{"$f":"'Population at Risk'!AW209/'Population at Risk'!AW$5","v":2.0510956534073935E-3},{"$f":"'Population at Risk'!AX209/'Population at Risk'!AX$5","v":3.7208328396254511E-3},{"$f":"'Population at Risk'!AY209/'Population at Risk'!AY$5","v":3.7452931737676155E-3},{"$f":"'Population at Risk'!AZ209/'Population at Risk'!AZ$5","v":4.6033089507760581E-3},{"$f":"'Population at Risk'!BA209/'Population at Risk'!BA$5","v":2.4472082277964776E-3},{"$f":"'Population at Risk'!BB209/'Population at Risk'!BB$5","v":1.7814196809619993E-3},{"$f":"'Population at Risk'!BC209/'Population at Risk'!BC$5","v":1.2315334876914169E-3},207]
[null,"Male 85-89",{"$f":"'Population at Risk'!C210/'Population at Risk'!C$5","v":7.4284263628532409E-4},{"$f":"'Population at Risk'!D210/'Population at Risk'!D$5","v":1.6855618055907871E-3},{"$f":"'Population at Risk'!E210/'Population at Risk'!E$5","v":2.527628477008069E-3},{"$f":"'Population at Risk'!F210/'Population at Risk'!F$5","v":2.9327252483529044E-3},{"$f":"'Population at Risk'!G210/'Population at Risk'!G$5","v":1.978149101192117E-3},{"$f":"'Population at Risk'!H210/'Population at Risk'!H$5","v":1.2683830945099772E-3},{"$f":"'Population at Risk'!I210/'Population at Risk'!I$5","v":4.0692149712225597E-3},{"$f":"'Population at Risk'!J210/'Population at Risk'!J$5","v":1.7940746742140363E-3},{"$f":"'Population at Risk'!K210/'Population at Risk'!K$5","v":1.2171524315875771E-3},{"$f":"'Population at Risk'!L210/'Population at Risk'!L$5","v":2.0666769276706854E-3},{"$f":"'Population at Risk'!M210/'Population at Risk'!M$5","v":2.0939594566312695E-3},{"$f":"'Population at Risk'!N210/'Population at Risk'!N$5","v":1.3135264205127234E-3},{"$f":"'Population at Risk'!O210/'Population at Risk'!O$5","v":8.230761192148363E-4},{"$f":"'Population at Risk'!P210/'Population at Risk'!P$5","v":1.7530482818787659E-3},{"$f":"'Population at Risk'!Q210/'Population at Risk'!Q$5","v":2.4361316924927001E-3},{"$f":"'Population at Risk'!R210/'Population at Risk'!R$5","v":1.0867677445063973E-3},{"$f":"'Population at Risk'!S210/'Population at Risk'!S$5","v":1.4657207940496455E-3},{"$f":"'Population at Risk'!T210/'Population at Risk'!T$5","v":1.0892616773550414E-3},{"$f":"'Population at Risk'!U210/'Population at Risk'!U$5","v":6.5552203623357296E-4},{"$f":"'Population at Risk'!V210/'Population at Risk'!V$5","v":1.3617486448066853E-3},{"$f":"'Population at Risk'!W210/'Population at Risk'!W$5","v":1.3235126595360594E-3},{"$f":"'Population at Risk'!X210/'Population at Risk'!X$5","v":1.3055878055081341E-3},{"$f":"'Population at Risk'!Y210/'Population at Risk'!Y$5","v":1.7179370465705147E-3},{"$f":"'Population at Risk'!Z210/'Population at Risk'!Z$5","v":5.8209653198970266E-4},{"$f":"'Population at Risk'!AA210/'Population at Risk'!AA$5","v":8.8906235160782373E-4},{"$f":"'Population at Risk'!AB210/'Population at Risk'!AB$5","v":1.8332720123142938E-3},{"$f":"'Population at Risk'!AC210/'Population at Risk'!AC$5","v":9.4049585515537356E-4},{"$f":"'Population at Risk'!AD210/'Population at Risk'!AD$5","v":2.4627775881211635E-3},{"$f":"'Population at Risk'!AE210/'Population at Risk'!AE$5","v":2.9298446508143052E-3},{"$f":"'Population at Risk'!AF210/'Population at Risk'!AF$5","v":1.2978161803264383E-3},{"$f":"'Population at Risk'!AG210/'Population at Risk'!AG$5","v":2.7231786996556005E-3},{"$f":"'Population at Risk'!AH210/'Population at Risk'!AH$5","v":8.0320983260708087E-4},{"$f":"'Population at Risk'!AI210/'Population at Risk'!AI$5","v":1.1936046298887931E-3},{"$f":"'Population at Risk'!AJ210/'Population at Risk'!AJ$5","v":1.0595981899653992E-3},{"$f":"'Population at Risk'!AK210/'Population at Risk'!AK$5","v":2.7953143371761036E-3},{"$f":"'Population at Risk'!AL210/'Population at Risk'!AL$5","v":1.6542623511718209E-3},{"$f":"'Population at Risk'!AM210/'Population at Risk'!AM$5","v":4.9941069324495725E-4},{"$f":"'Population at Risk'!AN210/'Population at Risk'!AN$5","v":3.9067686190828498E-3},{"$f":"'Population at Risk'!AO210/'Population at Risk'!AO$5","v":3.9067686190828498E-3},{"$f":"'Population at Risk'!AP210/'Population at Risk'!AP$5","v":3.8234651515395407E-3},{"$f":"'Population at Risk'!AQ210/'Population at Risk'!AQ$5","v":1.2492448864636465E-3},{"$f":"'Population at Risk'!AR210/'Population at Risk'!AR$5","v":1.5146260365143051E-3},{"$f":"'Population at Risk'!AS210/'Population at Risk'!AS$5","v":4.0692149712225597E-3},{"$f":"'Population at Risk'!AT210/'Population at Risk'!AT$5","v":3.4262179469022984E-3},{"$f":"'Population at Risk'!AU210/'Population at Risk'!AU$5","v":3.4262179469022984E-3},{"$f":"'Population at Risk'!AV210/'Population at Risk'!AV$5","v":1.2263165019100449E-3},{"$f":"'Population at Risk'!AW210/'Population at Risk'!AW$5","v":1.0829478916311423E-3},{"$f":"'Population at Risk'!AX210/'Population at Risk'!AX$5","v":2.1773762542993381E-3},{"$f":"'Population at Risk'!AY210/'Population at Risk'!AY$5","v":2.0332537654229143E-3},{"$f":"'Population at Risk'!AZ210/'Population at Risk'!AZ$5","v":2.5912270877260814E-3},{"$f":"'Population at Risk'!BA210/'Population at Risk'!BA$5","v":9.315179705805945E-4},{"$f":"'Population at Risk'!BB210/'Population at Risk'!BB$5","v":8.709162884703108E-4},{"$f":"'Population at Risk'!BC210/'Population at Risk'!BC$5","v":7.0373342153795266E-4},208]
[null,"Male 90+",{"$f":"'Population at Risk'!C211/'Population at Risk'!C$5","v":2.1600388714679638E-4},{"$f":"'Population at Risk'!D211/'Population at Risk'!D$5","v":6.6535334431215283E-4},{"$f":"'Population at Risk'!E211/'Population at Risk'!E$5","v":1.0659795971175833E-3},{"$f":"'Population at Risk'!F211/'Population at Risk'!F$5","v":1.1144355943741037E-3},{"$f":"'Population at Risk'!G211/'Population at Risk'!G$5","v":9.8907455059605849E-4},{"$f":"'Population at Risk'!H211/'Population at Risk'!H$5","v":5.4806676923270623E-4},{"$f":"'Population at Risk'!I211/'Population at Risk'!I$5","v":1.4549809344778339E-3},{"$f":"'Population at Risk'!J211/'Population at Risk'!J$5","v":6.8174837620133368E-4},{"$f":"'Population at Risk'!K211/'Population at Risk'!K$5","v":4.6367711679526748E-4},{"$f":"'Population at Risk'!L211/'Population at Risk'!L$5","v":7.761319466361526E-4},{"$f":"'Population at Risk'!M211/'Population at Risk'!M$5","v":7.863777872065031E-4},{"$f":"'Population at Risk'!N211/'Population at Risk'!N$5","v":7.1725455856944771E-4},{"$f":"'Population at Risk'!O211/'Population at Risk'!O$5","v":4.3113511006491424E-4},{"$f":"'Population at Risk'!P211/'Population at Risk'!P$5","v":7.5478467692002415E-4},{"$f":"'Population at Risk'!Q211/'Population at Risk'!Q$5","v":7.6670134484541834E-4},{"$f":"'Population at Risk'!R211/'Population at Risk'!R$5","v":7.0067920369491408E-4},{"$f":"'Population at Risk'!S211/'Population at Risk'!S$5","v":5.785229094394628E-4},{"$f":"'Population at Risk'!T211/'Population at Risk'!T$5","v":5.3574408839606933E-4},{"$f":"'Population at Risk'!U211/'Population at Risk'!U$5","v":1.092536727055955E-4},{"$f":"'Population at Risk'!V211/'Population at Risk'!V$5","v":5.5744096571033904E-4},{"$f":"'Population at Risk'!W211/'Population at Risk'!W$5","v":5.8455142462842638E-4},{"$f":"'Population at Risk'!X211/'Population at Risk'!X$5","v":5.7663461409942596E-4},{"$f":"'Population at Risk'!Y211/'Population at Risk'!Y$5","v":6.760614792433832E-4},{"$f":"'Population at Risk'!Z211/'Population at Risk'!Z$5","v":2.3647671612081673E-4},{"$f":"'Population at Risk'!AA211/'Population at Risk'!AA$5","v":3.677350922763258E-4},{"$f":"'Population at Risk'!AB211/'Population at Risk'!AB$5","v":7.5127405404416499E-4},{"$f":"'Population at Risk'!AC211/'Population at Risk'!AC$5","v":4.0968569448056037E-4},{"$f":"'Population at Risk'!AD211/'Population at Risk'!AD$5","v":1.0714431447538084E-3},{"$f":"'Population at Risk'!AE211/'Population at Risk'!AE$5","v":1.2212578905197904E-3},{"$f":"'Population at Risk'!AF211/'Population at Risk'!AF$5","v":4.8878791207099628E-4},{"$f":"'Population at Risk'!AG211/'Population at Risk'!AG$5","v":1.1351125641851001E-3},{"$f":"'Population at Risk'!AH211/'Population at Risk'!AH$5","v":2.9827937958466842E-4},{"$f":"'Population at Risk'!AI211/'Population at Risk'!AI$5","v":4.6500229998149007E-4},{"$f":"'Population at Risk'!AJ211/'Population at Risk'!AJ$5","v":2.7246810599110261E-4},{"$f":"'Population at Risk'!AK211/'Population at Risk'!AK$5","v":1.2800972198283092E-3},{"$f":"'Population at Risk'!AL211/'Population at Risk'!AL$5","v":5.406086114940592E-4},{"$f":"'Population at Risk'!AM211/'Population at Risk'!AM$5","v":2.0905563903277283E-4},{"$f":"'Population at Risk'!AN211/'Population at Risk'!AN$5","v":1.8959318298490302E-3},{"$f":"'Population at Risk'!AO211/'Population at Risk'!AO$5","v":1.8959318298490302E-3},{"$f":"'Population at Risk'!AP211/'Population at Risk'!AP$5","v":1.5917430030014397E-3},{"$f":"'Population at Risk'!AQ211/'Population at Risk'!AQ$5","v":5.2745895206242853E-4},{"$f":"'Population at Risk'!AR211/'Population at Risk'!AR$5","v":6.2309324658673868E-4},{"$f":"'Population at Risk'!AS211/'Population at Risk'!AS$5","v":1.4549809344778339E-3},{"$f":"'Population at Risk'!AT211/'Population at Risk'!AT$5","v":1.4041876831566795E-3},{"$f":"'Population at Risk'!AU211/'Population at Risk'!AU$5","v":1.4041876831566795E-3},{"$f":"'Population at Risk'!AV211/'Population at Risk'!AV$5","v":6.4722259823030148E-4},{"$f":"'Population at Risk'!AW211/'Population at Risk'!AW$5","v":3.7884042852114166E-4},{"$f":"'Population at Risk'!AX211/'Population at Risk'!AX$5","v":8.2685174213898913E-4},{"$f":"'Population at Risk'!AY211/'Population at Risk'!AY$5","v":8.7920012169345871E-4},{"$f":"'Population at Risk'!AZ211/'Population at Risk'!AZ$5","v":1.1105258947397493E-3},{"$f":"'Population at Risk'!BA211/'Population at Risk'!BA$5","v":3.9471100448330279E-4},{"$f":"'Population at Risk'!BB211/'Population at Risk'!BB$5","v":1.8210067849833771E-4},{"$f":"'Population at Risk'!BC211/'Population at Risk'!BC$5","v":1.1728890358965878E-4},209]
["SIMD Q5 (least deprived)","Female 0-4",{"$f":"'Population at Risk'!C212/'Population at Risk'!C$5","v":0},{"$f":"'Population at Risk'!D212/'Population at Risk'!D$5","v":0},{"$f":"'Population at Risk'!E212/'Population at Risk'!E$5","v":0},{"$f":"'Population at Risk'!F212/'Population at Risk'!F$5","v":0},{"$f":"'Population at Risk'!G212/'Population at Risk'!G$5","v":0},{"$f":"'Population at Risk'!H212/'Population at Risk'!H$5","v":0},{"$f":"'Population at Risk'!I212/'Population at Risk'!I$5","v":0},{"$f":"'Population at Risk'!J212/'Population at Risk'!J$5","v":0},{"$f":"'Population at Risk'!K212/'Population at Risk'!K$5","v":0},{"$f":"'Population at Risk'!L212/'Population at Risk'!L$5","v":0},{"$f":"'Population at Risk'!M212/'Population at Risk'!M$5","v":0},{"$f":"'Population at Risk'!N212/'Population at Risk'!N$5","v":0},{"$f":"'Population at Risk'!O212/'Population at Risk'!O$5","v":0},{"$f":"'Population at Risk'!P212/'Population at Risk'!P$5","v":0},{"$f":"'Population at Risk'!Q212/'Population at Risk'!Q$5","v":0},{"$f":"'Population at Risk'!R212/'Population at Risk'!R$5","v":0},{"$f":"'Population at Risk'!S212/'Population at Risk'!S$5","v":0},{"$f":"'Population at Risk'!T212/'Population at Risk'!T$5","v":0},{"$f":"'Population at Risk'!U212/'Population at Risk'!U$5","v":0},{"$f":"'Population at Risk'!V212/'Population at Risk'!V$5","v":0},{"$f":"'Population at Risk'!W212/'Population at Risk'!W$5","v":0},{"$f":"'Population at Risk'!X212/'Population at Risk'!X$5","v":0},{"$f":"'Population at Risk'!Y212/'Population at Risk'!Y$5","v":0},{"$f":"'Population at Risk'!Z212/'Population at Risk'!Z$5","v":0},{"$f":"'Population at Risk'!AA212/'Population at Risk'!AA$5","v":0},{"$f":"'Population at Risk'!AB212/'Population at Risk'!AB$5","v":0},{"$f":"'Population at Risk'!AC212/'Population at Risk'!AC$5","v":0},{"$f":"'Population at Risk'!AD212/'Population at Risk'!AD$5","v":0},{"$f":"'Population at Risk'!AE212/'Population at Risk'!AE$5","v":0},{"$f":"'Population at Risk'!AF212/'Population at Risk'!AF$5","v":0},{"$f":"'Population at Risk'!AG212/'Population at Risk'!AG$5","v":0},{"$f":"'Population at Risk'!AH212/'Population at Risk'!AH$5","v":0},{"$f":"'Population at Risk'!AI212/'Population at Risk'!AI$5","v":0},{"$f":"'Population at Risk'!AJ212/'Population at Risk'!AJ$5","v":0},{"$f":"'Population at Risk'!AK212/'Population at Risk'!AK$5","v":0},{"$f":"'Population at Risk'!AL212/'Population at Risk'!AL$5","v":0},{"$f":"'Population at Risk'!AM212/'Population at Risk'!AM$5","v":0},{"$f":"'Population at Risk'!AN212/'Population at Risk'!AN$5","v":0},{"$f":"'Population at Risk'!AO212/'Population at Risk'!AO$5","v":0},{"$f":"'Population at Risk'!AP212/'Population at Risk'!AP$5","v":0},{"$f":"'Population at Risk'!AQ212/'Population at Risk'!AQ$5","v":0},{"$f":"'Population at Risk'!AR212/'Population at Risk'!AR$5","v":0},{"$f":"'Population at Risk'!AS212/'Population at Risk'!AS$5","v":0},{"$f":"'Population at Risk'!AT212/'Population at Risk'!AT$5","v":0},{"$f":"'Population at Risk'!AU212/'Population at Risk'!AU$5","v":0},{"$f":"'Population at Risk'!AV212/'Population at Risk'!AV$5","v":0},{"$f":"'Population at Risk'!AW212/'Population at Risk'!AW$5","v":0},{"$f":"'Population at Risk'!AX212/'Population at Risk'!AX$5","v":0},{"$f":"'Population at Risk'!AY212/'Population at Risk'!AY$5","v":0},{"$f":"'Population at Risk'!AZ212/'Population at Risk'!AZ$5","v":0},{"$f":"'Population at Risk'!BA212/'Population at Risk'!BA$5","v":0},{"$f":"'Population at Risk'!BB212/'Population at Risk'!BB$5","v":0},{"$f":"'Population at Risk'!BC212/'Population at Risk'!BC$5","v":0},210]
[null,"Female 5-9",{"$f":"'Population at Risk'!C213/'Population at Risk'!C$5","v":0},{"$f":"'Population at Risk'!D213/'Population at Risk'!D$5","v":0},{"$f":"'Population at Risk'!E213/'Population at Risk'!E$5","v":0},{"$f":"'Population at Risk'!F213/'Population at Risk'!F$5","v":0},{"$f":"'Population at Risk'!G213/'Population at Risk'!G$5","v":0},{"$f":"'Population at Risk'!H213/'Population at Risk'!H$5","v":0},{"$f":"'Population at Risk'!I213/'Population at Risk'!I$5","v":0},{"$f":"'Population at Risk'!J213/'Population at Risk'!J$5","v":0},{"$f":"'Population at Risk'!K213/'Population at Risk'!K$5","v":0},{"$f":"'Population at Risk'!L213/'Population at Risk'!L$5","v":0},{"$f":"'Population at Risk'!M213/'Population at Risk'!M$5","v":0},{"$f":"'Population at Risk'!N213/'Population at Risk'!N$5","v":0},{"$f":"'Population at Risk'!O213/'Population at Risk'!O$5","v":0},{"$f":"'Population at Risk'!P213/'Population at Risk'!P$5","v":0},{"$f":"'Population at Risk'!Q213/'Population at Risk'!Q$5","v":0},{"$f":"'Population at Risk'!R213/'Population at Risk'!R$5","v":0},{"$f":"'Population at Risk'!S213/'Population at Risk'!S$5","v":0},{"$f":"'Population at Risk'!T213/'Population at Risk'!T$5","v":0},{"$f":"'Population at Risk'!U213/'Population at Risk'!U$5","v":0},{"$f":"'Population at Risk'!V213/'Population at Risk'!V$5","v":0},{"$f":"'Population at Risk'!W213/'Population at Risk'!W$5","v":0},{"$f":"'Population at Risk'!X213/'Population at Risk'!X$5","v":0},{"$f":"'Population at Risk'!Y213/'Population at Risk'!Y$5","v":0},{"$f":"'Population at Risk'!Z213/'Population at Risk'!Z$5","v":0},{"$f":"'Population at Risk'!AA213/'Population at Risk'!AA$5","v":0},{"$f":"'Population at Risk'!AB213/'Population at Risk'!AB$5","v":0},{"$f":"'Population at Risk'!AC213/'Population at Risk'!AC$5","v":0},{"$f":"'Population at Risk'!AD213/'Population at Risk'!AD$5","v":0},{"$f":"'Population at Risk'!AE213/'Population at Risk'!AE$5","v":0},{"$f":"'Population at Risk'!AF213/'Population at Risk'!AF$5","v":0},{"$f":"'Population at Risk'!AG213/'Population at Risk'!AG$5","v":0},{"$f":"'Population at Risk'!AH213/'Population at Risk'!AH$5","v":0},{"$f":"'Population at Risk'!AI213/'Population at Risk'!AI$5","v":0},{"$f":"'Population at Risk'!AJ213/'Population at Risk'!AJ$5","v":0},{"$f":"'Population at Risk'!AK213/'Population at Risk'!AK$5","v":0},{"$f":"'Population at Risk'!AL213/'Population at Risk'!AL$5","v":0},{"$f":"'Population at Risk'!AM213/'Population at Risk'!AM$5","v":0},{"$f":"'Population at Risk'!AN213/'Population at Risk'!AN$5","v":0},{"$f":"'Population at Risk'!AO213/'Population at Risk'!AO$5","v":0},{"$f":"'Population at Risk'!AP213/'Population at Risk'!AP$5","v":0},{"$f":"'Population at Risk'!AQ213/'Population at Risk'!AQ$5","v":0},{"$f":"'Population at Risk'!AR213/'Population at Risk'!AR$5","v":0},{"$f":"'Population at Risk'!AS213/'Population at Risk'!AS$5","v":0},{"$f":"'Population at Risk'!AT213/'Population at Risk'!AT$5","v":0},{"$f":"'Population at Risk'!AU213/'Population at Risk'!AU$5","v":0},{"$f":"'Population at Risk'!AV213/'Population at Risk'!AV$5","v":0},{"$f":"'Population at Risk'!AW213/'Population at Risk'!AW$5","v":0},{"$f":"'Population at Risk'!AX213/'Population at Risk'!AX$5","v":0},{"$f":"'Population at Risk'!AY213/'Population at Risk'!AY$5","v":0},{"$f":"'Population at Risk'!AZ213/'Population at Risk'!AZ$5","v":0},{"$f":"'Population at Risk'!BA213/'Population at Risk'!BA$5","v":0},{"$f":"'Population at Risk'!BB213/'Population at Risk'!BB$5","v":0},{"$f":"'Population at Risk'!BC213/'Population at Risk'!BC$5","v":0},211]
[null,"Female 10-15",{"$f":"'Population at Risk'!C214/'Population at Risk'!C$5","v":0},{"$f":"'Population at Risk'!D214/'Population at Risk'!D$5","v":0},{"$f":"'Population at Risk'!E214/'Population at Risk'!E$5","v":0},{"$f":"'Population at Risk'!F214/'Population at Risk'!F$5","v":0},{"$f":"'Population at Risk'!G214/'Population at Risk'!G$5","v":0},{"$f":"'Population at Risk'!H214/'Population at Risk'!H$5","v":0},{"$f":"'Population at Risk'!I214/'Population at Risk'!I$5","v":0},{"$f":"'Population at Risk'!J214/'Population at Risk'!J$5","v":0},{"$f":"'Population at Risk'!K214/'Population at Risk'!K$5","v":0},{"$f":"'Population at Risk'!L214/'Population at Risk'!L$5","v":0},{"$f":"'Population at Risk'!M214/'Population at Risk'!M$5","v":0},{"$f":"'Population at Risk'!N214/'Population at Risk'!N$5","v":0},{"$f":"'Population at Risk'!O214/'Population at Risk'!O$5","v":0},{"$f":"'Population at Risk'!P214/'Population at Risk'!P$5","v":0},{"$f":"'Population at Risk'!Q214/'Population at Risk'!Q$5","v":0},{"$f":"'Population at Risk'!R214/'Population at Risk'!R$5","v":0},{"$f":"'Population at Risk'!S214/'Population at Risk'!S$5","v":0},{"$f":"'Population at Risk'!T214/'Population at Risk'!T$5","v":0},{"$f":"'Population at Risk'!U214/'Population at Risk'!U$5","v":0},{"$f":"'Population at Risk'!V214/'Population at Risk'!V$5","v":0},{"$f":"'Population at Risk'!W214/'Population at Risk'!W$5","v":0},{"$f":"'Population at Risk'!X214/'Population at Risk'!X$5","v":0},{"$f":"'Population at Risk'!Y214/'Population at Risk'!Y$5","v":0},{"$f":"'Population at Risk'!Z214/'Population at Risk'!Z$5","v":0},{"$f":"'Population at Risk'!AA214/'Population at Risk'!AA$5","v":0},{"$f":"'Population at Risk'!AB214/'Population at Risk'!AB$5","v":0},{"$f":"'Population at Risk'!AC214/'Population at Risk'!AC$5","v":0},{"$f":"'Population at Risk'!AD214/'Population at Risk'!AD$5","v":0},{"$f":"'Population at Risk'!AE214/'Population at Risk'!AE$5","v":0},{"$f":"'Population at Risk'!AF214/'Population at Risk'!AF$5","v":0},{"$f":"'Population at Risk'!AG214/'Population at Risk'!AG$5","v":0},{"$f":"'Population at Risk'!AH214/'Population at Risk'!AH$5","v":0},{"$f":"'Population at Risk'!AI214/'Population at Risk'!AI$5","v":0},{"$f":"'Population at Risk'!AJ214/'Population at Risk'!AJ$5","v":0},{"$f":"'Population at Risk'!AK214/'Population at Risk'!AK$5","v":0},{"$f":"'Population at Risk'!AL214/'Population at Risk'!AL$5","v":0},{"$f":"'Population at Risk'!AM214/'Population at Risk'!AM$5","v":0},{"$f":"'Population at Risk'!AN214/'Population at Risk'!AN$5","v":0},{"$f":"'Population at Risk'!AO214/'Population at Risk'!AO$5","v":0},{"$f":"'Population at Risk'!AP214/'Population at Risk'!AP$5","v":0},{"$f":"'Population at Risk'!AQ214/'Population at Risk'!AQ$5","v":0},{"$f":"'Population at Risk'!AR214/'Population at Risk'!AR$5","v":0},{"$f":"'Population at Risk'!AS214/'Population at Risk'!AS$5","v":0},{"$f":"'Population at Risk'!AT214/'Population at Risk'!AT$5","v":0},{"$f":"'Population at Risk'!AU214/'Population at Risk'!AU$5","v":0},{"$f":"'Population at Risk'!AV214/'Population at Risk'!AV$5","v":0},{"$f":"'Population at Risk'!AW214/'Population at Risk'!AW$5","v":0},{"$f":"'Population at Risk'!AX214/'Population at Risk'!AX$5","v":0},{"$f":"'Population at Risk'!AY214/'Population at Risk'!AY$5","v":0},{"$f":"'Population at Risk'!AZ214/'Population at Risk'!AZ$5","v":0},{"$f":"'Population at Risk'!BA214/'Population at Risk'!BA$5","v":0},{"$f":"'Population at Risk'!BB214/'Population at Risk'!BB$5","v":0},{"$f":"'Population at Risk'!BC214/'Population at Risk'!BC$5","v":0},212]
[null,"Female 16-19",{"$f":"'Population at Risk'!C215/'Population at Risk'!C$5","v":9.402969891122737E-3},{"$f":"'Population at Risk'!D215/'Population at Risk'!D$5","v":8.3897286807351739E-3},{"$f":"'Population at Risk'!E215/'Population at Risk'!E$5","v":7.4637806548429886E-3},{"$f":"'Population at Risk'!F215/'Population at Risk'!F$5","v":3.6886837611337349E-3},{"$f":"'Population at Risk'!G215/'Population at Risk'!G$5","v":1.6523647571265096E-3},{"$f":"'Population at Risk'!H215/'Population at Risk'!H$5","v":2.9344225157212152E-3},{"$f":"'Population at Risk'!I215/'Population at Risk'!I$5","v":1.7202459081200922E-3},{"$f":"'Population at Risk'!J215/'Population at Risk'!J$5","v":8.9508050255577183E-3},{"$f":"'Population at Risk'!K215/'Population at Risk'!K$5","v":2.9835767522074751E-3},{"$f":"'Population at Risk'!L215/'Population at Risk'!L$5","v":1.7490520478581938E-3},{"$f":"'Population at Risk'!M215/'Population at Risk'!M$5","v":1.7167953866799202E-3},{"$f":"'Population at Risk'!N215/'Population at Risk'!N$5","v":5.133639922274523E-3},{"$f":"'Population at Risk'!O215/'Population at Risk'!O$5","v":2.3256862880887417E-3},{"$f":"'Population at Risk'!P215/'Population at Risk'!P$5","v":1.1684080812864612E-2},{"$f":"'Population at Risk'!Q215/'Population at Risk'!Q$5","v":3.677143236463344E-3},{"$f":"'Population at Risk'!R215/'Population at Risk'!R$5","v":1.3741350148306566E-2},{"$f":"'Population at Risk'!S215/'Population at Risk'!S$5","v":6.4972360811819301E-3},{"$f":"'Population at Risk'!T215/'Population at Risk'!T$5","v":9.128261418755201E-3},{"$f":"'Population at Risk'!U215/'Population at Risk'!U$5","v":0},{"$f":"'Population at Risk'!V215/'Population at Risk'!V$5","v":4.8677422019693514E-3},{"$f":"'Population at Risk'!W215/'Population at Risk'!W$5","v":6.4926334986090501E-3},{"$f":"'Population at Risk'!X215/'Population at Risk'!X$5","v":6.6098152940915348E-3},{"$f":"'Population at Risk'!Y215/'Population at Risk'!Y$5","v":6.1099233188585461E-3},{"$f":"'Population at Risk'!Z215/'Population at Risk'!Z$5","v":2.7699880773111906E-3},{"$f":"'Population at Risk'!AA215/'Population at Risk'!AA$5","v":4.3526173792707862E-3},{"$f":"'Population at Risk'!AB215/'Population at Risk'!AB$5","v":7.8747036350843447E-3},{"$f":"'Population at Risk'!AC215/'Population at Risk'!AC$5","v":4.8731406103353081E-3},{"$f":"'Population at Risk'!AD215/'Population at Risk'!AD$5","v":1.9340260391339822E-3},{"$f":"'Population at Risk'!AE215/'Population at Risk'!AE$5","v":1.7783990967824648E-3},{"$f":"'Population at Risk'!AF215/'Population at Risk'!AF$5","v":2.8569364523832116E-3},{"$f":"'Population at Risk'!AG215/'Population at Risk'!AG$5","v":1.9676632304423168E-3},{"$f":"'Population at Risk'!AH215/'Population at Risk'!AH$5","v":3.2865491066537871E-3},{"$f":"'Population at Risk'!AI215/'Population at Risk'!AI$5","v":7.197511380326981E-3},{"$f":"'Population at Risk'!AJ215/'Population at Risk'!AJ$5","v":3.5681031343497349E-3},{"$f":"'Population at Risk'!AK215/'Population at Risk'!AK$5","v":4.4554276390149656E-3},{"$f":"'Population at Risk'!AL215/'Population at Risk'!AL$5","v":2.0086397309962531E-3},{"$f":"'Population at Risk'!AM215/'Population at Risk'!AM$5","v":2.8746969119945909E-3},{"$f":"'Population at Risk'!AN215/'Population at Risk'!AN$5","v":1.1800386540415657E-3},{"$f":"'Population at Risk'!AO215/'Population at Risk'!AO$5","v":1.1800386540415657E-3},{"$f":"'Population at Risk'!AP215/'Population at Risk'!AP$5","v":3.4093680506579924E-3},{"$f":"'Population at Risk'!AQ215/'Population at Risk'!AQ$5","v":5.1577672819352561E-3},{"$f":"'Population at Risk'!AR215/'Population at Risk'!AR$5","v":5.0021622672547072E-3},{"$f":"'Population at Risk'!AS215/'Population at Risk'!AS$5","v":1.7202459081200922E-3},{"$f":"'Population at Risk'!AT215/'Population at Risk'!AT$5","v":0},{"$f":"'Population at Risk'!AU215/'Population at Risk'!AU$5","v":0},{"$f":"'Population at Risk'!AV215/'Population at Risk'!AV$5","v":4.7848190148284111E-3},{"$f":"'Population at Risk'!AW215/'Population at Risk'!AW$5","v":3.8120007878554066E-3},{"$f":"'Population at Risk'!AX215/'Population at Risk'!AX$5","v":1.1632412082909147E-2},{"$f":"'Population at Risk'!AY215/'Population at Risk'!AY$5","v":5.3213560818013905E-3},{"$f":"'Population at Risk'!AZ215/'Population at Risk'!AZ$5","v":4.2498487809084556E-3},{"$f":"'Population at Risk'!BA215/'Population at Risk'!BA$5","v":1.3179378538778995E-3},{"$f":"'Population at Risk'!BB215/'Population at Risk'!BB$5","v":4.6481167932384011E-3},{"$f":"'Population at Risk'!BC215/'Population at Risk'!BC$5","v":0},213]
[null,"Female 20-24",{"$f":"'Population at Risk'!C216/'Population at Risk'!C$5","v":1.6572849778661858E-2},{"$f":"'Population at Risk'!D216/'Population at Risk'!D$5","v":1.2107538425788787E-2},{"$f":"'Population at Risk'!E216/'Population at Risk'!E$5","v":8.1803035977079143E-3},{"$f":"'Population at Risk'!F216/'Population at Risk'!F$5","v":3.4074115789122085E-3},{"$f":"'Population at Risk'!G216/'Population at Risk'!G$5","v":2.2689187709796846E-3},{"$f":"'Population at Risk'!H216/'Population at Risk'!H$5","v":2.8598185534571162E-3},{"$f":"'Population at Risk'!I216/'Population at Risk'!I$5","v":1.6629043778494225E-3},{"$f":"'Population at Risk'!J216/'Population at Risk'!J$5","v":9.3270716879093763E-3},{"$f":"'Population at Risk'!K216/'Population at Risk'!K$5","v":2.672406170688904E-3},{"$f":"'Population at Risk'!L216/'Population at Risk'!L$5","v":2.0799537866421766E-3},{"$f":"'Population at Risk'!M216/'Population at Risk'!M$5","v":2.0415945138896347E-3},{"$f":"'Population at Risk'!N216/'Population at Risk'!N$5","v":6.3033300311471996E-3},{"$f":"'Population at Risk'!O216/'Population at Risk'!O$5","v":2.3256862880887417E-3},{"$f":"'Population at Risk'!P216/'Population at Risk'!P$5","v":1.2294377236852241E-2},{"$f":"'Population at Risk'!Q216/'Population at Risk'!Q$5","v":3.6874433575738857E-3},{"$f":"'Population at Risk'!R216/'Population at Risk'!R$5","v":1.4423693738558608E-2},{"$f":"'Population at Risk'!S216/'Population at Risk'!S$5","v":1.2218807264353695E-2},{"$f":"'Population at Risk'!T216/'Population at Risk'!T$5","v":2.0364721263721717E-2},{"$f":"'Population at Risk'!U216/'Population at Risk'!U$5","v":0},{"$f":"'Population at Risk'!V216/'Population at Risk'!V$5","v":5.7593227529947567E-3},{"$f":"'Population at Risk'!W216/'Population at Risk'!W$5","v":1.1773195730506487E-2},{"$f":"'Population at Risk'!X216/'Population at Risk'!X$5","v":1.1985683346596792E-2},{"$f":"'Population at Risk'!Y216/'Population at Risk'!Y$5","v":6.6717553481788726E-3},{"$f":"'Population at Risk'!Z216/'Population at Risk'!Z$5","v":7.183378477000295E-3},{"$f":"'Population at Risk'!AA216/'Population at Risk'!AA$5","v":6.2024327203097744E-3},{"$f":"'Population at Risk'!AB216/'Population at Risk'!AB$5","v":1.1063512937995606E-2},{"$f":"'Population at Risk'!AC216/'Population at Risk'!AC$5","v":7.4290627620097237E-3},{"$f":"'Population at Risk'!AD216/'Population at Risk'!AD$5","v":2.2737419173122992E-3},{"$f":"'Population at Risk'!AE216/'Population at Risk'!AE$5","v":1.9840642984511854E-3},{"$f":"'Population at Risk'!AF216/'Population at Risk'!AF$5","v":3.589484260686599E-3},{"$f":"'Population at Risk'!AG216/'Population at Risk'!AG$5","v":2.1952161210376867E-3},{"$f":"'Population at Risk'!AH216/'Population at Risk'!AH$5","v":3.7311780726046939E-3},{"$f":"'Population at Risk'!AI216/'Population at Risk'!AI$5","v":1.3947330665226925E-2},{"$f":"'Population at Risk'!AJ216/'Population at Risk'!AJ$5","v":4.400240261088542E-3},{"$f":"'Population at Risk'!AK216/'Population at Risk'!AK$5","v":4.6589207282968989E-3},{"$f":"'Population at Risk'!AL216/'Population at Risk'!AL$5","v":1.9537159883518244E-3},{"$f":"'Population at Risk'!AM216/'Population at Risk'!AM$5","v":3.137693325798416E-3},{"$f":"'Population at Risk'!AN216/'Population at Risk'!AN$5","v":1.9969884914549573E-3},{"$f":"'Population at Risk'!AO216/'Population at Risk'!AO$5","v":1.9969884914549573E-3},{"$f":"'Population at Risk'!AP216/'Population at Risk'!AP$5","v":3.8896560101752886E-3},{"$f":"'Population at Risk'!AQ216/'Population at Risk'!AQ$5","v":6.0886477405733041E-3},{"$f":"'Population at Risk'!AR216/'Population at Risk'!AR$5","v":7.5252174396530473E-3},{"$f":"'Population at Risk'!AS216/'Population at Risk'!AS$5","v":1.6629043778494225E-3},{"$f":"'Population at Risk'!AT216/'Population at Risk'!AT$5","v":0},{"$f":"'Population at Risk'!AU216/'Population at Risk'!AU$5","v":0},{"$f":"'Population at Risk'!AV216/'Population at Risk'!AV$5","v":4.5887198748764272E-3},{"$f":"'Population at Risk'!AW216/'Population at Risk'!AW$5","v":4.4608519857882419E-3},{"$f":"'Population at Risk'!AX216/'Population at Risk'!AX$5","v":1.2379745820079288E-2},{"$f":"'Population at Risk'!AY216/'Population at Risk'!AY$5","v":8.12214175136498E-3},{"$f":"'Population at Risk'!AZ216/'Population at Risk'!AZ$5","v":4.7294555398824508E-3},{"$f":"'Population at Risk'!BA216/'Population at Risk'!BA$5","v":1.5246732035058051E-3},{"$f":"'Population at Risk'!BB216/'Population at Risk'!BB$5","v":4.3397650649400297E-3},{"$f":"'Population at Risk'!BC216/'Population at Risk'!BC$5","v":0},214]
[null,"Female 25-29",{"$f":"'Population at Risk'!C217/'Population at Risk'!C$5","v":1.5769504965226128E-2},{"$f":"'Population at Risk'!D217/'Population at Risk'!D$5","v":1.1124377411884491E-2},{"$f":"'Population at Risk'!E217/'Population at Risk'!E$5","v":7.0480664028124721E-3},{"$f":"'Population at Risk'!F217/'Population at Risk'!F$5","v":2.7460466619150061E-3},{"$f":"'Population at Risk'!G217/'Population at Risk'!G$5","v":1.5303018461113162E-3},{"$f":"'Population at Risk'!H217/'Population at Risk'!H$5","v":2.0409907071856181E-3},{"$f":"'Population at Risk'!I217/'Population at Risk'!I$5","v":1.1001488446440119E-3},{"$f":"'Population at Risk'!J217/'Population at Risk'!J$5","v":4.9020060183528431E-3},{"$f":"'Population at Risk'!K217/'Population at Risk'!K$5","v":1.6492200146043031E-3},{"$f":"'Population at Risk'!L217/'Population at Risk'!L$5","v":2.0320264307210328E-3},{"$f":"'Population at Risk'!M217/'Population at Risk'!M$5","v":1.9945510518943532E-3},{"$f":"'Population at Risk'!N217/'Population at Risk'!N$5","v":4.4119675019275769E-3},{"$f":"'Population at Risk'!O217/'Population at Risk'!O$5","v":2.1198323362227271E-3},{"$f":"'Population at Risk'!P217/'Population at Risk'!P$5","v":7.9467553525300744E-3},{"$f":"'Population at Risk'!Q217/'Population at Risk'!Q$5","v":3.1868882590494556E-3},{"$f":"'Population at Risk'!R217/'Population at Risk'!R$5","v":1.0047343990605643E-2},{"$f":"'Population at Risk'!S217/'Population at Risk'!S$5","v":7.9743747069582985E-3},{"$f":"'Population at Risk'!T217/'Population at Risk'!T$5","v":1.4863041561074259E-2},{"$f":"'Population at Risk'!U217/'Population at Risk'!U$5","v":0},{"$f":"'Population at Risk'!V217/'Population at Risk'!V$5","v":4.7060089361107846E-3},{"$f":"'Population at Risk'!W217/'Population at Risk'!W$5","v":4.6398197286072985E-3},{"$f":"'Population at Risk'!X217/'Population at Risk'!X$5","v":4.7235611575097208E-3},{"$f":"'Population at Risk'!Y217/'Population at Risk'!Y$5","v":4.2519284142423603E-3},{"$f":"'Population at Risk'!Z217/'Population at Risk'!Z$5","v":5.4153790072854696E-3},{"$f":"'Population at Risk'!AA217/'Population at Risk'!AA$5","v":4.4046291411433021E-3},{"$f":"'Population at Risk'!AB217/'Population at Risk'!AB$5","v":1.0158629543589809E-2},{"$f":"'Population at Risk'!AC217/'Population at Risk'!AC$5","v":5.2778085095062091E-3},{"$f":"'Population at Risk'!AD217/'Population at Risk'!AD$5","v":2.1442669758158488E-3},{"$f":"'Population at Risk'!AE217/'Population at Risk'!AE$5","v":2.0703830314008956E-3},{"$f":"'Population at Risk'!AF217/'Population at Risk'!AF$5","v":2.1295370514740068E-3},{"$f":"'Population at Risk'!AG217/'Population at Risk'!AG$5","v":2.2907212285418494E-3},{"$f":"'Population at Risk'!AH217/'Population at Risk'!AH$5","v":2.6455679053432254E-3},{"$f":"'Population at Risk'!AI217/'Population at Risk'!AI$5","v":1.0379609941494391E-2},{"$f":"'Population at Risk'!AJ217/'Population at Risk'!AJ$5","v":3.7402403551202996E-3},{"$f":"'Population at Risk'!AK217/'Population at Risk'!AK$5","v":4.2423363871733405E-3},{"$f":"'Population at Risk'!AL217/'Population at Risk'!AL$5","v":1.21382643880791E-3},{"$f":"'Population at Risk'!AM217/'Population at Risk'!AM$5","v":2.2820638451893529E-3},{"$f":"'Population at Risk'!AN217/'Population at Risk'!AN$5","v":2.083242210901436E-3},{"$f":"'Population at Risk'!AO217/'Population at Risk'!AO$5","v":2.083242210901436E-3},{"$f":"'Population at Risk'!AP217/'Population at Risk'!AP$5","v":3.0589903306541401E-3},{"$f":"'Population at Risk'!AQ217/'Population at Risk'!AQ$5","v":4.2903660504737132E-3},{"$f":"'Population at Risk'!AR217/'Population at Risk'!AR$5","v":5.4471099893262324E-3},{"$f":"'Population at Risk'!AS217/'Population at Risk'!AS$5","v":1.1001488446440119E-3},{"$f":"'Population at Risk'!AT217/'Population at Risk'!AT$5","v":0},{"$f":"'Population at Risk'!AU217/'Population at Risk'!AU$5","v":0},{"$f":"'Population at Risk'!AV217/'Population at Risk'!AV$5","v":2.8836657111114992E-3},{"$f":"'Population at Risk'!AW217/'Population at Risk'!AW$5","v":3.1023497608664661E-3},{"$f":"'Population at Risk'!AX217/'Population at Risk'!AX$5","v":6.3616045084203534E-3},{"$f":"'Population at Risk'!AY217/'Population at Risk'!AY$5","v":4.0723871731131647E-3},{"$f":"'Population at Risk'!AZ217/'Population at Risk'!AZ$5","v":3.56258006735796E-3},{"$f":"'Population at Risk'!BA217/'Population at Risk'!BA$5","v":7.4683866548616031E-4},{"$f":"'Population at Risk'!BB217/'Population at Risk'!BB$5","v":3.6160299692580438E-3},{"$f":"'Population at Risk'!BC217/'Population at Risk'!BC$5","v":0},215]
[null,"Female 30-34",{"$f":"'Population at Risk'!C218/'Population at Risk'!C$5","v":1.3490946799397633E-2},{"$f":"'Population at Risk'!D218/'Population at Risk'!D$5","v":1.1667474474260241E-2},{"$f":"'Population at Risk'!E218/'Population at Risk'!E$5","v":1.0022262450854797E-2},{"$f":"'Population at Risk'!F218/'Population at Risk'!F$5","v":3.3608332280153806E-3},{"$f":"'Population at Risk'!G218/'Population at Risk'!G$5","v":1.17393018331827E-3},{"$f":"'Population at Risk'!H218/'Population at Risk'!H$5","v":2.3979879309971421E-3},{"$f":"'Population at Risk'!I218/'Population at Risk'!I$5","v":1.9426678965549322E-3},{"$f":"'Population at Risk'!J218/'Population at Risk'!J$5","v":4.1762385024612051E-3},{"$f":"'Population at Risk'!K218/'Population at Risk'!K$5","v":2.1937737930113844E-3},{"$f":"'Population at Risk'!L218/'Population at Risk'!L$5","v":2.0320264307210328E-3},{"$f":"'Population at Risk'!M218/'Population at Risk'!M$5","v":1.9945510518943532E-3},{"$f":"'Population at Risk'!N218/'Population at Risk'!N$5","v":4.2738777522584818E-3},{"$f":"'Population at Risk'!O218/'Population at Risk'!O$5","v":2.4493077433189285E-3},{"$f":"'Population at Risk'!P218/'Population at Risk'!P$5","v":8.4805487584237692E-3},{"$f":"'Population at Risk'!Q218/'Population at Risk'!Q$5","v":3.6946891354914017E-3},{"$f":"'Population at Risk'!R218/'Population at Risk'!R$5","v":9.9402675004748552E-3},{"$f":"'Population at Risk'!S218/'Population at Risk'!S$5","v":7.2499588683887428E-3},{"$f":"'Population at Risk'!T218/'Population at Risk'!T$5","v":1.2136326061087945E-2},{"$f":"'Population at Risk'!U218/'Population at Risk'!U$5","v":0},{"$f":"'Population at Risk'!V218/'Population at Risk'!V$5","v":6.3256094141229376E-3},{"$f":"'Population at Risk'!W218/'Population at Risk'!W$5","v":4.8943854072990038E-3},{"$f":"'Population at Risk'!X218/'Population at Risk'!X$5","v":4.9827213452405851E-3},{"$f":"'Population at Risk'!Y218/'Population at Risk'!Y$5","v":4.6508010861591609E-3},{"$f":"'Population at Risk'!Z218/'Population at Risk'!Z$5","v":4.0500777343661105E-3},{"$f":"'Population at Risk'!AA218/'Population at Risk'!AA$5","v":4.1566987997038105E-3},{"$f":"'Population at Risk'!AB218/'Population at Risk'!AB$5","v":1.0687434917091745E-2},{"$f":"'Population at Risk'!AC218/'Population at Risk'!AC$5","v":4.6642963518140268E-3},{"$f":"'Population at Risk'!AD218/'Population at Risk'!AD$5","v":2.2014474285042716E-3},{"$f":"'Population at Risk'!AE218/'Population at Risk'!AE$5","v":2.2554835010956775E-3},{"$f":"'Population at Risk'!AF218/'Population at Risk'!AF$5","v":2.2291645158704519E-3},{"$f":"'Population at Risk'!AG218/'Population at Risk'!AG$5","v":2.495520808577048E-3},{"$f":"'Population at Risk'!AH218/'Population at Risk'!AH$5","v":3.1179907455830872E-3},{"$f":"'Population at Risk'!AI218/'Population at Risk'!AI$5","v":9.0159171445519694E-3},{"$f":"'Population at Risk'!AJ218/'Population at Risk'!AJ$5","v":4.5654509778832314E-3},{"$f":"'Population at Risk'!AK218/'Population at Risk'!AK$5","v":4.64290033789357E-3},{"$f":"'Population at Risk'!AL218/'Population at Risk'!AL$5","v":1.754045897837804E-3},{"$f":"'Population at Risk'!AM218/'Population at Risk'!AM$5","v":2.6825893363858514E-3},{"$f":"'Population at Risk'!AN218/'Population at Risk'!AN$5","v":1.5045638189843703E-3},{"$f":"'Population at Risk'!AO218/'Population at Risk'!AO$5","v":1.5045638189843703E-3},{"$f":"'Population at Risk'!AP218/'Population at Risk'!AP$5","v":3.8352378769667505E-3},{"$f":"'Population at Risk'!AQ218/'Population at Risk'!AQ$5","v":4.3958668549935586E-3},{"$f":"'Population at Risk'!AR218/'Population at Risk'!AR$5","v":5.3229257759215562E-3},{"$f":"'Population at Risk'!AS218/'Population at Risk'!AS$5","v":1.9426678965549322E-3},{"$f":"'Population at Risk'!AT218/'Population at Risk'!AT$5","v":0},{"$f":"'Population at Risk'!AU218/'Population at Risk'!AU$5","v":0},{"$f":"'Population at Risk'!AV218/'Population at Risk'!AV$5","v":3.0336830024409989E-3},{"$f":"'Population at Risk'!AW218/'Population at Risk'!AW$5","v":3.6637273366423029E-3},{"$f":"'Population at Risk'!AX218/'Population at Risk'!AX$5","v":4.9530292699423301E-3},{"$f":"'Population at Risk'!AY218/'Population at Risk'!AY$5","v":4.4337316555206384E-3},{"$f":"'Population at Risk'!AZ218/'Population at Risk'!AZ$5","v":4.0268705402177075E-3},{"$f":"'Population at Risk'!BA218/'Population at Risk'!BA$5","v":9.0059956720389917E-4},{"$f":"'Population at Risk'!BB218/'Population at Risk'!BB$5","v":4.2615762590718963E-3},{"$f":"'Population at Risk'!BC218/'Population at Risk'!BC$5","v":0},216]
[null,"Female 35-39",{"$f":"'Population at Risk'!C219/'Population at Risk'!C$5","v":1.5059422533757399E-2},{"$f":"'Population at Risk'!D219/'Population at Risk'!D$5","v":1.4342863317994425E-2},{"$f":"'Population at Risk'!E219/'Population at Risk'!E$5","v":1.3636163800943459E-2},{"$f":"'Population at Risk'!F219/'Population at Risk'!F$5","v":4.9128743904194418E-3},{"$f":"'Population at Risk'!G219/'Population at Risk'!G$5","v":2.2025180911211563E-3},{"$f":"'Population at Risk'!H219/'Population at Risk'!H$5","v":3.6221821303365331E-3},{"$f":"'Population at Risk'!I219/'Population at Risk'!I$5","v":2.7085739999817807E-3},{"$f":"'Population at Risk'!J219/'Population at Risk'!J$5","v":6.3698882257400254E-3},{"$f":"'Population at Risk'!K219/'Population at Risk'!K$5","v":3.7753777982185203E-3},{"$f":"'Population at Risk'!L219/'Population at Risk'!L$5","v":2.4985686740426425E-3},{"$f":"'Population at Risk'!M219/'Population at Risk'!M$5","v":2.4524891515676334E-3},{"$f":"'Population at Risk'!N219/'Population at Risk'!N$5","v":4.9398462466011227E-3},{"$f":"'Population at Risk'!O219/'Population at Risk'!O$5","v":3.1413364599720841E-3},{"$f":"'Population at Risk'!P219/'Population at Risk'!P$5","v":1.5215258292276013E-2},{"$f":"'Population at Risk'!Q219/'Population at Risk'!Q$5","v":6.023017128716981E-3},{"$f":"'Population at Risk'!R219/'Population at Risk'!R$5","v":1.9185570321659302E-2},{"$f":"'Population at Risk'!S219/'Population at Risk'!S$5","v":9.3898562586462297E-3},{"$f":"'Population at Risk'!T219/'Population at Risk'!T$5","v":1.4680789069844952E-2},{"$f":"'Population at Risk'!U219/'Population at Risk'!U$5","v":0},{"$f":"'Population at Risk'!V219/'Population at Risk'!V$5","v":8.2483944856332741E-3},{"$f":"'Population at Risk'!W219/'Population at Risk'!W$5","v":6.8878550013175641E-3},{"$f":"'Population at Risk'!X219/'Population at Risk'!X$5","v":7.0121699216423167E-3},{"$f":"'Population at Risk'!Y219/'Population at Risk'!Y$5","v":6.4722248545013746E-3},{"$f":"'Population at Risk'!Z219/'Population at Risk'!Z$5","v":3.994542280890404E-3},{"$f":"'Population at Risk'!AA219/'Population at Risk'!AA$5","v":6.0568131960594841E-3},{"$f":"'Population at Risk'!AB219/'Population at Risk'!AB$5","v":1.2955843328534391E-2},{"$f":"'Population at Risk'!AC219/'Population at Risk'!AC$5","v":6.6696650982112663E-3},{"$f":"'Population at Risk'!AD219/'Population at Risk'!AD$5","v":3.0968590674567927E-3},{"$f":"'Population at Risk'!AE219/'Population at Risk'!AE$5","v":2.9926445708003345E-3},{"$f":"'Population at Risk'!AF219/'Population at Risk'!AF$5","v":3.6137909953486082E-3},{"$f":"'Population at Risk'!AG219/'Population at Risk'!AG$5","v":3.3111334201644253E-3},{"$f":"'Population at Risk'!AH219/'Population at Risk'!AH$5","v":4.7922304761462593E-3},{"$f":"'Population at Risk'!AI219/'Population at Risk'!AI$5","v":1.1418464536892112E-2},{"$f":"'Population at Risk'!AJ219/'Population at Risk'!AJ$5","v":6.3940852166082312E-3},{"$f":"'Population at Risk'!AK219/'Population at Risk'!AK$5","v":4.6344644034229717E-3},{"$f":"'Population at Risk'!AL219/'Population at Risk'!AL$5","v":2.6360779210930934E-3},{"$f":"'Population at Risk'!AM219/'Population at Risk'!AM$5","v":4.0233347011224604E-3},{"$f":"'Population at Risk'!AN219/'Population at Risk'!AN$5","v":2.8469771057081862E-3},{"$f":"'Population at Risk'!AO219/'Population at Risk'!AO$5","v":2.8469771057081862E-3},{"$f":"'Population at Risk'!AP219/'Population at Risk'!AP$5","v":4.9409352794857458E-3},{"$f":"'Population at Risk'!AQ219/'Population at Risk'!AQ$5","v":6.847248645756079E-3},{"$f":"'Population at Risk'!AR219/'Population at Risk'!AR$5","v":7.0878821187970592E-3},{"$f":"'Population at Risk'!AS219/'Population at Risk'!AS$5","v":2.7085739999817807E-3},{"$f":"'Population at Risk'!AT219/'Population at Risk'!AT$5","v":0},{"$f":"'Population at Risk'!AU219/'Population at Risk'!AU$5","v":0},{"$f":"'Population at Risk'!AV219/'Population at Risk'!AV$5","v":5.3477628003437104E-3},{"$f":"'Population at Risk'!AW219/'Population at Risk'!AW$5","v":5.73642490547502E-3},{"$f":"'Population at Risk'!AX219/'Population at Risk'!AX$5","v":7.3006887383157745E-3},{"$f":"'Population at Risk'!AY219/'Population at Risk'!AY$5","v":5.9976547680983192E-3},{"$f":"'Population at Risk'!AZ219/'Population at Risk'!AZ$5","v":5.1954264210903826E-3},{"$f":"'Population at Risk'!BA219/'Population at Risk'!BA$5","v":1.7171722073549022E-3},{"$f":"'Population at Risk'!BB219/'Population at Risk'!BB$5","v":6.3624295617572667E-3},{"$f":"'Population at Risk'!BC219/'Population at Risk'!BC$5","v":0},217]
[null,"Female 40-44",{"$f":"'Population at Risk'!C220/'Population at Risk'!C$5","v":1.3877233338110643E-2},{"$f":"'Population at Risk'!D220/'Population at Risk'!D$5","v":1.4263079431133363E-2},{"$f":"'Population at Risk'!E220/'Population at Risk'!E$5","v":1.4507997985609613E-2},{"$f":"'Population at Risk'!F220/'Population at Risk'!F$5","v":6.0577877266215366E-3},{"$f":"'Population at Risk'!G220/'Population at Risk'!G$5","v":2.543383986175621E-3},{"$f":"'Population at Risk'!H220/'Population at Risk'!H$5","v":4.6180618887988892E-3},{"$f":"'Population at Risk'!I220/'Population at Risk'!I$5","v":4.1891449967563872E-3},{"$f":"'Population at Risk'!J220/'Population at Risk'!J$5","v":8.1008361131693803E-3},{"$f":"'Population at Risk'!K220/'Population at Risk'!K$5","v":4.8651775750238671E-3},{"$f":"'Population at Risk'!L220/'Population at Risk'!L$5","v":2.6996029351725103E-3},{"$f":"'Population at Risk'!M220/'Population at Risk'!M$5","v":2.649815864912156E-3},{"$f":"'Population at Risk'!N220/'Population at Risk'!N$5","v":5.8034557302726469E-3},{"$f":"'Population at Risk'!O220/'Population at Risk'!O$5","v":4.1055090367951991E-3},{"$f":"'Population at Risk'!P220/'Population at Risk'!P$5","v":1.766963555697567E-2},{"$f":"'Population at Risk'!Q220/'Population at Risk'!Q$5","v":6.9976508095457284E-3},{"$f":"'Population at Risk'!R220/'Population at Risk'!R$5","v":2.1663287954822981E-2},{"$f":"'Population at Risk'!S220/'Population at Risk'!S$5","v":9.8372609825085819E-3},{"$f":"'Population at Risk'!T220/'Population at Risk'!T$5","v":1.3991935859077367E-2},{"$f":"'Population at Risk'!U220/'Population at Risk'!U$5","v":0},{"$f":"'Population at Risk'!V220/'Population at Risk'!V$5","v":1.004484740882495E-2},{"$f":"'Population at Risk'!W220/'Population at Risk'!W$5","v":7.9121718593416768E-3},{"$f":"'Population at Risk'!X220/'Population at Risk'!X$5","v":8.054974083561213E-3},{"$f":"'Population at Risk'!Y220/'Population at Risk'!Y$5","v":8.0334327376008138E-3},{"$f":"'Population at Risk'!Z220/'Population at Risk'!Z$5","v":3.7198063199583077E-3},{"$f":"'Population at Risk'!AA220/'Population at Risk'!AA$5","v":6.6090088937403096E-3},{"$f":"'Population at Risk'!AB220/'Population at Risk'!AB$5","v":1.3139573007025325E-2},{"$f":"'Population at Risk'!AC220/'Population at Risk'!AC$5","v":7.2153558507194529E-3},{"$f":"'Population at Risk'!AD220/'Population at Risk'!AD$5","v":3.5760497314743559E-3},{"$f":"'Population at Risk'!AE220/'Population at Risk'!AE$5","v":3.4556898625574066E-3},{"$f":"'Population at Risk'!AF220/'Population at Risk'!AF$5","v":4.7197356534078808E-3},{"$f":"'Population at Risk'!AG220/'Population at Risk'!AG$5","v":3.8234577889004681E-3},{"$f":"'Population at Risk'!AH220/'Population at Risk'!AH$5","v":5.351619483637232E-3},{"$f":"'Population at Risk'!AI220/'Population at Risk'!AI$5","v":1.1474016553657176E-2},{"$f":"'Population at Risk'!AJ220/'Population at Risk'!AJ$5","v":6.621966660386721E-3},{"$f":"'Population at Risk'!AK220/'Population at Risk'!AK$5","v":6.1147601588160587E-3},{"$f":"'Population at Risk'!AL220/'Population at Risk'!AL$5","v":3.3785175887427305E-3},{"$f":"'Population at Risk'!AM220/'Population at Risk'!AM$5","v":4.3301333897215674E-3},{"$f":"'Population at Risk'!AN220/'Population at Risk'!AN$5","v":2.0749155177195253E-3},{"$f":"'Population at Risk'!AO220/'Population at Risk'!AO$5","v":2.0749155177195253E-3},{"$f":"'Population at Risk'!AP220/'Population at Risk'!AP$5","v":6.1995432473314609E-3},{"$f":"'Population at Risk'!AQ220/'Population at Risk'!AQ$5","v":7.8076229204820389E-3},{"$f":"'Population at Risk'!AR220/'Population at Risk'!AR$5","v":7.683941097310935E-3},{"$f":"'Population at Risk'!AS220/'Population at Risk'!AS$5","v":4.1891449967563872E-3},{"$f":"'Population at Risk'!AT220/'Population at Risk'!AT$5","v":0},{"$f":"'Population at Risk'!AU220/'Population at Risk'!AU$5","v":0},{"$f":"'Population at Risk'!AV220/'Population at Risk'!AV$5","v":6.6612484004281306E-3},{"$f":"'Population at Risk'!AW220/'Population at Risk'!AW$5","v":6.5782052244602596E-3},{"$f":"'Population at Risk'!AX220/'Population at Risk'!AX$5","v":9.2467713830718737E-3},{"$f":"'Population at Risk'!AY220/'Population at Risk'!AY$5","v":7.0876089905537931E-3},{"$f":"'Population at Risk'!AZ220/'Population at Risk'!AZ$5","v":6.3540575040925452E-3},{"$f":"'Population at Risk'!BA220/'Population at Risk'!BA$5","v":1.6896974520372236E-3},{"$f":"'Population at Risk'!BB220/'Population at Risk'!BB$5","v":7.9712500139191705E-3},{"$f":"'Population at Risk'!BC220/'Population at Risk'!BC$5","v":0},218]
[null,"Female 45-49",{"$f":"'Population at Risk'!C221/'Population at Risk'!C$5","v":2.2795161527962866E-2},{"$f":"'Population at Risk'!D221/'Population at Risk'!D$5","v":2.3535359757960915E-2},{"$f":"'Population at Risk'!E221/'Population at Risk'!E$5","v":2.4028809545360873E-2},{"$f":"'Population at Risk'!F221/'Population at Risk'!F$5","v":1.074343566962333E-2},{"$f":"'Population at Risk'!G221/'Population at Risk'!G$5","v":5.3398848581282495E-3},{"$f":"'Population at Risk'!H221/'Population at Risk'!H$5","v":9.0466024788274507E-3},{"$f":"'Population at Risk'!I221/'Population at Risk'!I$5","v":6.6243763602922764E-3},{"$f":"'Population at Risk'!J221/'Population at Risk'!J$5","v":1.6248852119889225E-2},{"$f":"'Population at Risk'!K221/'Population at Risk'!K$5","v":8.8572411022620253E-3},{"$f":"'Population at Risk'!L221/'Population at Risk'!L$5","v":5.5607520038144032E-3},{"$f":"'Population at Risk'!M221/'Population at Risk'!M$5","v":5.4581985700826305E-3},{"$f":"'Population at Risk'!N221/'Population at Risk'!N$5","v":1.1378710200251621E-2},{"$f":"'Population at Risk'!O221/'Population at Risk'!O$5","v":7.2578205771457764E-3},{"$f":"'Population at Risk'!P221/'Population at Risk'!P$5","v":3.2832437718573269E-2},{"$f":"'Population at Risk'!Q221/'Population at Risk'!Q$5","v":1.3195328477132513E-2},{"$f":"'Population at Risk'!R221/'Population at Risk'!R$5","v":3.9191226765645563E-2},{"$f":"'Population at Risk'!S221/'Population at Risk'!S$5","v":1.6649784188403047E-2},{"$f":"'Population at Risk'!T221/'Population at Risk'!T$5","v":2.3017206811812858E-2},{"$f":"'Population at Risk'!U221/'Population at Risk'!U$5","v":0},{"$f":"'Population at Risk'!V221/'Population at Risk'!V$5","v":1.6688687464934061E-2},{"$f":"'Population at Risk'!W221/'Population at Risk'!W$5","v":1.339817963107178E-2},{"$f":"'Population at Risk'!X221/'Population at Risk'!X$5","v":1.3639995643896502E-2},{"$f":"'Population at Risk'!Y221/'Population at Risk'!Y$5","v":1.4577729855520697E-2},{"$f":"'Population at Risk'!Z221/'Population at Risk'!Z$5","v":6.4800358176656525E-3},{"$f":"'Population at Risk'!AA221/'Population at Risk'!AA$5","v":1.2236912759548942E-2},{"$f":"'Population at Risk'!AB221/'Population at Risk'!AB$5","v":2.1805799353284819E-2},{"$f":"'Population at Risk'!AC221/'Population at Risk'!AC$5","v":1.3334328432366335E-2},{"$f":"'Population at Risk'!AD221/'Population at Risk'!AD$5","v":6.3227488402115761E-3},{"$f":"'Population at Risk'!AE221/'Population at Risk'!AE$5","v":5.8342638443996233E-3},{"$f":"'Population at Risk'!AF221/'Population at Risk'!AF$5","v":9.4686711031531853E-3},{"$f":"'Population at Risk'!AG221/'Population at Risk'!AG$5","v":6.4551688448863413E-3},{"$f":"'Population at Risk'!AH221/'Population at Risk'!AH$5","v":9.9584051746331604E-3},{"$f":"'Population at Risk'!AI221/'Population at Risk'!AI$5","v":1.9484765602186753E-2},{"$f":"'Population at Risk'!AJ221/'Population at Risk'!AJ$5","v":1.1622889786973317E-2},{"$f":"'Population at Risk'!AK221/'Population at Risk'!AK$5","v":1.0821902500118464E-2},{"$f":"'Population at Risk'!AL221/'Population at Risk'!AL$5","v":6.9113551413711406E-3},{"$f":"'Population at Risk'!AM221/'Population at Risk'!AM$5","v":8.5979728979135306E-3},{"$f":"'Population at Risk'!AN221/'Population at Risk'!AN$5","v":5.5835574578146849E-3},{"$f":"'Population at Risk'!AO221/'Population at Risk'!AO$5","v":5.5835574578146849E-3},{"$f":"'Population at Risk'!AP221/'Population at Risk'!AP$5","v":1.137349802785826E-2},{"$f":"'Population at Risk'!AQ221/'Population at Risk'!AQ$5","v":1.5574744323077877E-2},{"$f":"'Population at Risk'!AR221/'Population at Risk'!AR$5","v":1.3568572353032392E-2},{"$f":"'Population at Risk'!AS221/'Population at Risk'!AS$5","v":6.6243763602922764E-3},{"$f":"'Population at Risk'!AT221/'Population at Risk'!AT$5","v":0},{"$f":"'Population at Risk'!AU221/'Population at Risk'!AU$5","v":0},{"$f":"'Population at Risk'!AV221/'Population at Risk'!AV$5","v":1.3735055057031965E-2},{"$f":"'Population at Risk'!AW221/'Population at Risk'!AW$5","v":1.1669501269052435E-2},{"$f":"'Population at Risk'!AX221/'Population at Risk'!AX$5","v":1.9080801761893734E-2},{"$f":"'Population at Risk'!AY221/'Population at Risk'!AY$5","v":1.2522410470532236E-2},{"$f":"'Population at Risk'!AZ221/'Population at Risk'!AZ$5","v":1.177435760374693E-2},{"$f":"'Population at Risk'!BA221/'Population at Risk'!BA$5","v":3.8361905905198146E-3},{"$f":"'Population at Risk'!BB221/'Population at Risk'!BB$5","v":1.4780409502236152E-2},{"$f":"'Population at Risk'!BC221/'Population at Risk'!BC$5","v":0},219]
[null,"Female 50-54",{"$f":"'Population at Risk'!C222/'Population at Risk'!C$5","v":2.4286080127235338E-2},{"$f":"'Population at Risk'!D222/'Population at Risk'!D$5","v":2.3781545529487705E-2},{"$f":"'Population at Risk'!E222/'Population at Risk'!E$5","v":2.3199554433333474E-2},{"$f":"'Population at Risk'!F222/'Population at Risk'!F$5","v":1.1020260392398902E-2},{"$f":"'Population at Risk'!G222/'Population at Risk'!G$5","v":5.5826068971340792E-3},{"$f":"'Population at Risk'!H222/'Population at Risk'!H$5","v":9.3140120711374813E-3},{"$f":"'Population at Risk'!I222/'Population at Risk'!I$5","v":5.9659697849285412E-3},{"$f":"'Population at Risk'!J222/'Population at Risk'!J$5","v":1.594025449014699E-2},{"$f":"'Population at Risk'!K222/'Population at Risk'!K$5","v":9.4277074783399185E-3},{"$f":"'Population at Risk'!L222/'Population at Risk'!L$5","v":6.690625916940039E-3},{"$f":"'Population at Risk'!M222/'Population at Risk'!M$5","v":6.5672349329281062E-3},{"$f":"'Population at Risk'!N222/'Population at Risk'!N$5","v":1.2111531114787731E-2},{"$f":"'Population at Risk'!O222/'Population at Risk'!O$5","v":6.9339178406450557E-3},{"$f":"'Population at Risk'!P222/'Population at Risk'!P$5","v":3.5835669980060082E-2},{"$f":"'Population at Risk'!Q222/'Population at Risk'!Q$5","v":1.2401243408726333E-2},{"$f":"'Population at Risk'!R222/'Population at Risk'!R$5","v":3.924288479741047E-2},{"$f":"'Population at Risk'!S222/'Population at Risk'!S$5","v":1.6420938271418946E-2},{"$f":"'Population at Risk'!T222/'Population at Risk'!T$5","v":2.3436469686526764E-2},{"$f":"'Population at Risk'!U222/'Population at Risk'!U$5","v":0},{"$f":"'Population at Risk'!V222/'Population at Risk'!V$5","v":1.5355951292822719E-2},{"$f":"'Population at Risk'!W222/'Population at Risk'!W$5","v":1.2990348497369146E-2},{"$f":"'Population at Risk'!X222/'Population at Risk'!X$5","v":1.3224803801398094E-2},{"$f":"'Population at Risk'!Y222/'Population at Risk'!Y$5","v":1.3849890613452674E-2},{"$f":"'Population at Risk'!Z222/'Population at Risk'!Z$5","v":6.5837163907483025E-3},{"$f":"'Population at Risk'!AA222/'Population at Risk'!AA$5","v":1.279355698749109E-2},{"$f":"'Population at Risk'!AB222/'Population at Risk'!AB$5","v":2.1901281780666471E-2},{"$f":"'Population at Risk'!AC222/'Population at Risk'!AC$5","v":1.3930163674527552E-2},{"$f":"'Population at Risk'!AD222/'Population at Risk'!AD$5","v":6.6482655780584193E-3},{"$f":"'Population at Risk'!AE222/'Population at Risk'!AE$5","v":6.1451599903030053E-3},{"$f":"'Population at Risk'!AF222/'Population at Risk'!AF$5","v":9.5888319039546203E-3},{"$f":"'Population at Risk'!AG222/'Population at Risk'!AG$5","v":6.7991517651920762E-3},{"$f":"'Population at Risk'!AH222/'Population at Risk'!AH$5","v":1.043247023634899E-2},{"$f":"'Population at Risk'!AI222/'Population at Risk'!AI$5","v":1.9393214669136391E-2},{"$f":"'Population at Risk'!AJ222/'Population at Risk'!AJ$5","v":1.0961088233266653E-2},{"$f":"'Population at Risk'!AK222/'Population at Risk'!AK$5","v":1.0154317605630637E-2},{"$f":"'Population at Risk'!AL222/'Population at Risk'!AL$5","v":6.6796896059061863E-3},{"$f":"'Population at Risk'!AM222/'Population at Risk'!AM$5","v":8.4601656667971457E-3},{"$f":"'Population at Risk'!AN222/'Population at Risk'!AN$5","v":4.9879779956477849E-3},{"$f":"'Population at Risk'!AO222/'Population at Risk'!AO$5","v":4.9879779956477849E-3},{"$f":"'Population at Risk'!AP222/'Population at Risk'!AP$5","v":1.2538588069736423E-2},{"$f":"'Population at Risk'!AQ222/'Population at Risk'!AQ$5","v":1.6841535437228002E-2},{"$f":"'Population at Risk'!AR222/'Population at Risk'!AR$5","v":1.3777369577466995E-2},{"$f":"'Population at Risk'!AS222/'Population at Risk'!AS$5","v":5.9659697849285412E-3},{"$f":"'Population at Risk'!AT222/'Population at Risk'!AT$5","v":0},{"$f":"'Population at Risk'!AU222/'Population at Risk'!AU$5","v":0},{"$f":"'Population at Risk'!AV222/'Population at Risk'!AV$5","v":1.5407708131893001E-2},{"$f":"'Population at Risk'!AW222/'Population at Risk'!AW$5","v":1.2803508178477184E-2},{"$f":"'Population at Risk'!AX222/'Population at Risk'!AX$5","v":1.8281326827736179E-2},{"$f":"'Population at Risk'!AY222/'Population at Risk'!AY$5","v":1.2730930465833847E-2},{"$f":"'Population at Risk'!AZ222/'Population at Risk'!AZ$5","v":1.256543359716868E-2},{"$f":"'Population at Risk'!BA222/'Population at Risk'!BA$5","v":4.3448567461688509E-3},{"$f":"'Population at Risk'!BB222/'Population at Risk'!BB$5","v":1.3871854545508074E-2},{"$f":"'Population at Risk'!BC222/'Population at Risk'!BC$5","v":0},220]
[null,"Female 55-59",{"$f":"'Population at Risk'!C223/'Population at Risk'!C$5","v":1.9859931522943398E-2},{"$f":"'Population at Risk'!D223/'Population at Risk'!D$5","v":1.8554472496515151E-2},{"$f":"'Population at Risk'!E223/'Population at Risk'!E$5","v":1.7313707371985121E-2},{"$f":"'Population at Risk'!F223/'Population at Risk'!F$5","v":9.073692754680205E-3},{"$f":"'Population at Risk'!G223/'Population at Risk'!G$5","v":5.33289611109042E-3},{"$f":"'Population at Risk'!H223/'Population at Risk'!H$5","v":8.5653499648612377E-3},{"$f":"'Population at Risk'!I223/'Population at Risk'!I$5","v":4.6601837373858234E-3},{"$f":"'Population at Risk'!J223/'Population at Risk'!J$5","v":1.2296882597582201E-2},{"$f":"'Population at Risk'!K223/'Population at Risk'!K$5","v":7.0660544699848527E-3},{"$f":"'Population at Risk'!L223/'Population at Risk'!L$5","v":5.243273179503672E-3},{"$f":"'Population at Risk'!M223/'Population at Risk'!M$5","v":5.1465748070204237E-3},{"$f":"'Population at Risk'!N223/'Population at Risk'!N$5","v":1.0621328732216165E-2},{"$f":"'Population at Risk'!O223/'Population at Risk'!O$5","v":5.9437122172492207E-3},{"$f":"'Population at Risk'!P223/'Population at Risk'!P$5","v":2.8586282795781466E-2},{"$f":"'Population at Risk'!Q223/'Population at Risk'!Q$5","v":9.2379698509681783E-3},{"$f":"'Population at Risk'!R223/'Population at Risk'!R$5","v":3.1017962565210389E-2},{"$f":"'Population at Risk'!S223/'Population at Risk'!S$5","v":1.3175997161879732E-2},{"$f":"'Population at Risk'!T223/'Population at Risk'!T$5","v":1.938384454550791E-2},{"$f":"'Population at Risk'!U223/'Population at Risk'!U$5","v":0},{"$f":"'Population at Risk'!V223/'Population at Risk'!V$5","v":1.1165249001846978E-2},{"$f":"'Population at Risk'!W223/'Population at Risk'!W$5","v":1.0632101520165596E-2},{"$f":"'Population at Risk'!X223/'Population at Risk'!X$5","v":1.0823994185314795E-2},{"$f":"'Population at Risk'!Y223/'Population at Risk'!Y$5","v":1.0382009383776867E-2},{"$f":"'Population at Risk'!Z223/'Population at Risk'!Z$5","v":5.2421587195443662E-3},{"$f":"'Population at Risk'!AA223/'Population at Risk'!AA$5","v":1.0083736632523562E-2},{"$f":"'Population at Risk'!AB223/'Population at Risk'!AB$5","v":1.706186582777975E-2},{"$f":"'Population at Risk'!AC223/'Population at Risk'!AC$5","v":1.1037564952522451E-2},{"$f":"'Population at Risk'!AD223/'Population at Risk'!AD$5","v":5.4036576625590763E-3},{"$f":"'Population at Risk'!AE223/'Population at Risk'!AE$5","v":4.734617461671556E-3},{"$f":"'Population at Risk'!AF223/'Population at Risk'!AF$5","v":7.3993053035258322E-3},{"$f":"'Population at Risk'!AG223/'Population at Risk'!AG$5","v":5.2384938264961427E-3},{"$f":"'Population at Risk'!AH223/'Population at Risk'!AH$5","v":8.1089305653909583E-3},{"$f":"'Population at Risk'!AI223/'Population at Risk'!AI$5","v":1.5491561336132291E-2},{"$f":"'Population at Risk'!AJ223/'Population at Risk'!AJ$5","v":9.1122586876209964E-3},{"$f":"'Population at Risk'!AK223/'Population at Risk'!AK$5","v":7.7716243900990004E-3},{"$f":"'Population at Risk'!AL223/'Population at Risk'!AL$5","v":6.0806369570999223E-3},{"$f":"'Population at Risk'!AM223/'Population at Risk'!AM$5","v":6.5362121648386241E-3},{"$f":"'Population at Risk'!AN223/'Population at Risk'!AN$5","v":3.4909569195054938E-3},{"$f":"'Population at Risk'!AO223/'Population at Risk'!AO$5","v":3.4909569195054938E-3},{"$f":"'Population at Risk'!AP223/'Population at Risk'!AP$5","v":1.0298277091002879E-2},{"$f":"'Population at Risk'!AQ223/'Population at Risk'!AQ$5","v":1.3379419982192069E-2},{"$f":"'Population at Risk'!AR223/'Population at Risk'!AR$5","v":1.1007536565105671E-2},{"$f":"'Population at Risk'!AS223/'Population at Risk'!AS$5","v":4.6601837373858234E-3},{"$f":"'Population at Risk'!AT223/'Population at Risk'!AT$5","v":0},{"$f":"'Population at Risk'!AU223/'Population at Risk'!AU$5","v":0},{"$f":"'Population at Risk'!AV223/'Population at Risk'!AV$5","v":1.4827200027053098E-2},{"$f":"'Population at Risk'!AW223/'Population at Risk'!AW$5","v":9.9938518344987771E-3},{"$f":"'Population at Risk'!AX223/'Population at Risk'!AX$5","v":1.422524683305851E-2},{"$f":"'Population at Risk'!AY223/'Population at Risk'!AY$5","v":1.0555453828511746E-2},{"$f":"'Population at Risk'!AZ223/'Population at Risk'!AZ$5","v":1.0548795908918026E-2},{"$f":"'Population at Risk'!BA223/'Population at Risk'!BA$5","v":3.1877878853040376E-3},{"$f":"'Population at Risk'!BB223/'Population at Risk'!BB$5","v":9.3809060868209719E-3},{"$f":"'Population at Risk'!BC223/'Population at Risk'!BC$5","v":0},221]
[null,"Female 60-64",{"$f":"'Population at Risk'!C224/'Population at Risk'!C$5","v":1.5654929164073388E-2},{"$f":"'Population at Risk'!D224/'Population at Risk'!D$5","v":1.5900277453830696E-2},{"$f":"'Population at Risk'!E224/'Population at Risk'!E$5","v":1.601387949120546E-2},{"$f":"'Population at Risk'!F224/'Population at Risk'!F$5","v":8.4672248584805009E-3},{"$f":"'Population at Risk'!G224/'Population at Risk'!G$5","v":3.9191417729154427E-3},{"$f":"'Population at Risk'!H224/'Population at Risk'!H$5","v":7.9919206366893484E-3},{"$f":"'Population at Risk'!I224/'Population at Risk'!I$5","v":4.3154252466098319E-3},{"$f":"'Population at Risk'!J224/'Population at Risk'!J$5","v":1.1614305852199757E-2},{"$f":"'Population at Risk'!K224/'Population at Risk'!K$5","v":8.208311395583907E-3},{"$f":"'Population at Risk'!L224/'Population at Risk'!L$5","v":5.0472629671857779E-3},{"$f":"'Population at Risk'!M224/'Population at Risk'!M$5","v":4.9541794871318092E-3},{"$f":"'Population at Risk'!N224/'Population at Risk'!N$5","v":7.921790131020269E-3},{"$f":"'Population at Risk'!O224/'Population at Risk'!O$5","v":5.3281134518912664E-3},{"$f":"'Population at Risk'!P224/'Population at Risk'!P$5","v":2.5608277583109122E-2},{"$f":"'Population at Risk'!Q224/'Population at Risk'!Q$5","v":8.0720124911372437E-3},{"$f":"'Population at Risk'!R224/'Population at Risk'!R$5","v":2.6919813287193887E-2},{"$f":"'Population at Risk'!S224/'Population at Risk'!S$5","v":1.1479205143872503E-2},{"$f":"'Population at Risk'!T224/'Population at Risk'!T$5","v":1.6499703308429668E-2},{"$f":"'Population at Risk'!U224/'Population at Risk'!U$5","v":0},{"$f":"'Population at Risk'!V224/'Population at Risk'!V$5","v":9.3078524389229016E-3},{"$f":"'Population at Risk'!W224/'Population at Risk'!W$5","v":9.857143098526068E-3},{"$f":"'Population at Risk'!X224/'Population at Risk'!X$5","v":1.0035048986308049E-2},{"$f":"'Population at Risk'!Y224/'Population at Risk'!Y$5","v":9.2562493301143155E-3},{"$f":"'Population at Risk'!Z224/'Population at Risk'!Z$5","v":4.6054374340001192E-3},{"$f":"'Population at Risk'!AA224/'Population at Risk'!AA$5","v":8.7874252698158292E-3},{"$f":"'Population at Risk'!AB224/'Population at Risk'!AB$5","v":1.4823205418997881E-2},{"$f":"'Population at Risk'!AC224/'Population at Risk'!AC$5","v":9.7504652061670225E-3},{"$f":"'Population at Risk'!AD224/'Population at Risk'!AD$5","v":4.8667088433345983E-3},{"$f":"'Population at Risk'!AE224/'Population at Risk'!AE$5","v":4.5531920706804339E-3},{"$f":"'Population at Risk'!AF224/'Population at Risk'!AF$5","v":8.504948624742336E-3},{"$f":"'Population at Risk'!AG224/'Population at Risk'!AG$5","v":5.037760441302842E-3},{"$f":"'Population at Risk'!AH224/'Population at Risk'!AH$5","v":6.807630036992674E-3},{"$f":"'Population at Risk'!AI224/'Population at Risk'!AI$5","v":1.3209791705579487E-2},{"$f":"'Population at Risk'!AJ224/'Population at Risk'!AJ$5","v":7.868014529471945E-3},{"$f":"'Population at Risk'!AK224/'Population at Risk'!AK$5","v":7.8493406339999912E-3},{"$f":"'Population at Risk'!AL224/'Population at Risk'!AL$5","v":5.3746454002830766E-3},{"$f":"'Population at Risk'!AM224/'Population at Risk'!AM$5","v":5.1314301504978002E-3},{"$f":"'Population at Risk'!AN224/'Population at Risk'!AN$5","v":3.6885582545718421E-3},{"$f":"'Population at Risk'!AO224/'Population at Risk'!AO$5","v":3.6885582545718421E-3},{"$f":"'Population at Risk'!AP224/'Population at Risk'!AP$5","v":9.6896086642705836E-3},{"$f":"'Population at Risk'!AQ224/'Population at Risk'!AQ$5","v":1.1187876993336374E-2},{"$f":"'Population at Risk'!AR224/'Population at Risk'!AR$5","v":9.6658547840584429E-3},{"$f":"'Population at Risk'!AS224/'Population at Risk'!AS$5","v":4.3154252466098319E-3},{"$f":"'Population at Risk'!AT224/'Population at Risk'!AT$5","v":0},{"$f":"'Population at Risk'!AU224/'Population at Risk'!AU$5","v":0},{"$f":"'Population at Risk'!AV224/'Population at Risk'!AV$5","v":1.449992018000682E-2},{"$f":"'Population at Risk'!AW224/'Population at Risk'!AW$5","v":8.7663400275693141E-3},{"$f":"'Population at Risk'!AX224/'Population at Risk'!AX$5","v":1.2527648315964235E-2},{"$f":"'Population at Risk'!AY224/'Population at Risk'!AY$5","v":9.5001068191585721E-3},{"$f":"'Population at Risk'!AZ224/'Population at Risk'!AZ$5","v":9.2224626989624234E-3},{"$f":"'Population at Risk'!BA224/'Population at Risk'!BA$5","v":2.5127269213573002E-3},{"$f":"'Population at Risk'!BB224/'Population at Risk'!BB$5","v":7.9306776723389316E-3},{"$f":"'Population at Risk'!BC224/'Population at Risk'!BC$5","v":0},222]
[null,"Female 65-69",{"$f":"'Population at Risk'!C225/'Population at Risk'!C$5","v":1.4020392861112573E-2},{"$f":"'Population at Risk'!D225/'Population at Risk'!D$5","v":1.3784124986174333E-2},{"$f":"'Population at Risk'!E225/'Population at Risk'!E$5","v":1.34952545205398E-2},{"$f":"'Population at Risk'!F225/'Population at Risk'!F$5","v":9.6081430900225064E-3},{"$f":"'Population at Risk'!G225/'Population at Risk'!G$5","v":4.2003879547918071E-3},{"$f":"'Population at Risk'!H225/'Population at Risk'!H$5","v":8.0207437999831148E-3},{"$f":"'Population at Risk'!I225/'Population at Risk'!I$5","v":4.4116290540141207E-3},{"$f":"'Population at Risk'!J225/'Population at Risk'!J$5","v":1.1495878441232975E-2},{"$f":"'Population at Risk'!K225/'Population at Risk'!K$5","v":7.4918824038170658E-3},{"$f":"'Population at Risk'!L225/'Population at Risk'!L$5","v":4.427919212696977E-3},{"$f":"'Population at Risk'!M225/'Population at Risk'!M$5","v":4.3462578979615828E-3},{"$f":"'Population at Risk'!N225/'Population at Risk'!N$5","v":8.4101244678865521E-3},{"$f":"'Population at Risk'!O225/'Population at Risk'!O$5","v":5.0218293039910053E-3},{"$f":"'Population at Risk'!P225/'Population at Risk'!P$5","v":2.4138664653643026E-2},{"$f":"'Population at Risk'!Q225/'Population at Risk'!Q$5","v":8.1543137100456835E-3},{"$f":"'Population at Risk'!R225/'Population at Risk'!R$5","v":2.4083916243924624E-2},{"$f":"'Population at Risk'!S225/'Population at Risk'!S$5","v":1.1064082600836278E-2},{"$f":"'Population at Risk'!T225/'Population at Risk'!T$5","v":1.5835490032774905E-2},{"$f":"'Population at Risk'!U225/'Population at Risk'!U$5","v":0},{"$f":"'Population at Risk'!V225/'Population at Risk'!V$5","v":8.3738035220807718E-3},{"$f":"'Population at Risk'!W225/'Population at Risk'!W$5","v":1.0206087671019446E-2},{"$f":"'Population at Risk'!X225/'Population at Risk'!X$5","v":1.0390291458034056E-2},{"$f":"'Population at Risk'!Y225/'Population at Risk'!Y$5","v":8.7893123164932644E-3},{"$f":"'Population at Risk'!Z225/'Population at Risk'!Z$5","v":3.5492420673565598E-3},{"$f":"'Population at Risk'!AA225/'Population at Risk'!AA$5","v":7.6422624948396583E-3},{"$f":"'Population at Risk'!AB225/'Population at Risk'!AB$5","v":1.2968219562291853E-2},{"$f":"'Population at Risk'!AC225/'Population at Risk'!AC$5","v":8.5808780207587317E-3},{"$f":"'Population at Risk'!AD225/'Population at Risk'!AD$5","v":4.6282107447899439E-3},{"$f":"'Population at Risk'!AE225/'Population at Risk'!AE$5","v":4.1752716592134542E-3},{"$f":"'Population at Risk'!AF225/'Population at Risk'!AF$5","v":7.9889324747231261E-3},{"$f":"'Population at Risk'!AG225/'Population at Risk'!AG$5","v":4.6196202729780894E-3},{"$f":"'Population at Risk'!AH225/'Population at Risk'!AH$5","v":5.721997740660973E-3},{"$f":"'Population at Risk'!AI225/'Population at Risk'!AI$5","v":1.2399027879569958E-2},{"$f":"'Population at Risk'!AJ225/'Population at Risk'!AJ$5","v":7.0447699938080257E-3},{"$f":"'Population at Risk'!AK225/'Population at Risk'!AK$5","v":7.4983751683163277E-3},{"$f":"'Population at Risk'!AL225/'Population at Risk'!AL$5","v":5.5778106114944262E-3},{"$f":"'Population at Risk'!AM225/'Population at Risk'!AM$5","v":4.2687902250465384E-3},{"$f":"'Population at Risk'!AN225/'Population at Risk'!AN$5","v":3.1164547096560928E-3},{"$f":"'Population at Risk'!AO225/'Population at Risk'!AO$5","v":3.1164547096560928E-3},{"$f":"'Population at Risk'!AP225/'Population at Risk'!AP$5","v":1.0619636687256856E-2},{"$f":"'Population at Risk'!AQ225/'Population at Risk'!AQ$5","v":1.0267933094640216E-2},{"$f":"'Population at Risk'!AR225/'Population at Risk'!AR$5","v":8.9998295011417869E-3},{"$f":"'Population at Risk'!AS225/'Population at Risk'!AS$5","v":4.4116290540141207E-3},{"$f":"'Population at Risk'!AT225/'Population at Risk'!AT$5","v":0},{"$f":"'Population at Risk'!AU225/'Population at Risk'!AU$5","v":0},{"$f":"'Population at Risk'!AV225/'Population at Risk'!AV$5","v":1.4758942983527453E-2},{"$f":"'Population at Risk'!AW225/'Population at Risk'!AW$5","v":7.4152041587979946E-3},{"$f":"'Population at Risk'!AX225/'Population at Risk'!AX$5","v":1.2774307371283442E-2},{"$f":"'Population at Risk'!AY225/'Population at Risk'!AY$5","v":1.0133089591398831E-2},{"$f":"'Population at Risk'!AZ225/'Population at Risk'!AZ$5","v":1.0127247551886076E-2},{"$f":"'Population at Risk'!BA225/'Population at Risk'!BA$5","v":1.6526699239419321E-3},{"$f":"'Population at Risk'!BB225/'Population at Risk'!BB$5","v":6.2735092699033514E-3},{"$f":"'Population at Risk'!BC225/'Population at Risk'!BC$5","v":0},223]
[null,"Female 70-74",{"$f":"'Population at Risk'!C226/'Population at Risk'!C$5","v":1.0790173858995366E-2},{"$f":"'Population at Risk'!D226/'Population at Risk'!D$5","v":1.025077022532043E-2},{"$f":"'Population at Risk'!E226/'Population at Risk'!E$5","v":9.7221571486335173E-3},{"$f":"'Population at Risk'!F226/'Population at Risk'!F$5","v":6.9139678316716005E-3},{"$f":"'Population at Risk'!G226/'Population at Risk'!G$5","v":3.4532833778525528E-3},{"$f":"'Population at Risk'!H226/'Population at Risk'!H$5","v":6.1792464989665818E-3},{"$f":"'Population at Risk'!I226/'Population at Risk'!I$5","v":3.3418090084156964E-3},{"$f":"'Population at Risk'!J226/'Population at Risk'!J$5","v":8.8557233076955715E-3},{"$f":"'Population at Risk'!K226/'Population at Risk'!K$5","v":5.1260248026116766E-3},{"$f":"'Population at Risk'!L226/'Population at Risk'!L$5","v":4.2642589543221395E-3},{"$f":"'Population at Risk'!M226/'Population at Risk'!M$5","v":4.1856159222669036E-3},{"$f":"'Population at Risk'!N226/'Population at Risk'!N$5","v":6.758721613984252E-3},{"$f":"'Population at Risk'!O226/'Population at Risk'!O$5","v":3.4463534439153963E-3},{"$f":"'Population at Risk'!P226/'Population at Risk'!P$5","v":2.0196929083659877E-2},{"$f":"'Population at Risk'!Q226/'Population at Risk'!Q$5","v":6.8784687077936375E-3},{"$f":"'Population at Risk'!R226/'Population at Risk'!R$5","v":2.0734216625491447E-2},{"$f":"'Population at Risk'!S226/'Population at Risk'!S$5","v":8.2832594780573483E-3},{"$f":"'Population at Risk'!T226/'Population at Risk'!T$5","v":1.1788583297646952E-2},{"$f":"'Population at Risk'!U226/'Population at Risk'!U$5","v":0},{"$f":"'Population at Risk'!V226/'Population at Risk'!V$5","v":5.9245870005935636E-3},{"$f":"'Population at Risk'!W226/'Population at Risk'!W$5","v":7.6840466252177716E-3},{"$f":"'Population at Risk'!X226/'Population at Risk'!X$5","v":7.8227315487248584E-3},{"$f":"'Population at Risk'!Y226/'Population at Risk'!Y$5","v":6.5371853463991473E-3},{"$f":"'Population at Risk'!Z226/'Population at Risk'!Z$5","v":2.1250398555611562E-3},{"$f":"'Population at Risk'!AA226/'Population at Risk'!AA$5","v":5.8155176858731223E-3},{"$f":"'Population at Risk'!AB226/'Population at Risk'!AB$5","v":9.8039250062047778E-3},{"$f":"'Population at Risk'!AC226/'Population at Risk'!AC$5","v":6.6208047733818673E-3},{"$f":"'Population at Risk'!AD226/'Population at Risk'!AD$5","v":3.7179657744349746E-3},{"$f":"'Population at Risk'!AE226/'Population at Risk'!AE$5","v":3.3282724669672923E-3},{"$f":"'Population at Risk'!AF226/'Population at Risk'!AF$5","v":6.351694461384806E-3},{"$f":"'Population at Risk'!AG226/'Population at Risk'!AG$5","v":3.6824801395781131E-3},{"$f":"'Population at Risk'!AH226/'Population at Risk'!AH$5","v":4.1755118648066558E-3},{"$f":"'Population at Risk'!AI226/'Population at Risk'!AI$5","v":9.2589001225776447E-3},{"$f":"'Population at Risk'!AJ226/'Population at Risk'!AJ$5","v":5.0586541160356421E-3},{"$f":"'Population at Risk'!AK226/'Population at Risk'!AK$5","v":6.5178184155365E-3},{"$f":"'Population at Risk'!AL226/'Population at Risk'!AL$5","v":4.3418184873564572E-3},{"$f":"'Population at Risk'!AM226/'Population at Risk'!AM$5","v":2.83766354821642E-3},{"$f":"'Population at Risk'!AN226/'Population at Risk'!AN$5","v":2.7498129791083169E-3},{"$f":"'Population at Risk'!AO226/'Population at Risk'!AO$5","v":2.7498129791083169E-3},{"$f":"'Population at Risk'!AP226/'Population at Risk'!AP$5","v":8.6068239017647753E-3},{"$f":"'Population at Risk'!AQ226/'Population at Risk'!AQ$5","v":7.7148755891916993E-3},{"$f":"'Population at Risk'!AR226/'Population at Risk'!AR$5","v":6.8558198906701721E-3},{"$f":"'Population at Risk'!AS226/'Population at Risk'!AS$5","v":3.3418090084156964E-3},{"$f":"'Population at Risk'!AT226/'Population at Risk'!AT$5","v":0},{"$f":"'Population at Risk'!AU226/'Population at Risk'!AU$5","v":0},{"$f":"'Population at Risk'!AV226/'Population at Risk'!AV$5","v":1.1881081113751975E-2},{"$f":"'Population at Risk'!AW226/'Population at Risk'!AW$5","v":5.7044031992997202E-3},{"$f":"'Population at Risk'!AX226/'Population at Risk'!AX$5","v":1.0222362405559009E-2},{"$f":"'Population at Risk'!AY226/'Population at Risk'!AY$5","v":7.7700516263868261E-3},{"$f":"'Population at Risk'!AZ226/'Population at Risk'!AZ$5","v":7.8994683348399351E-3},{"$f":"'Population at Risk'!BA226/'Population at Risk'!BA$5","v":8.1763669921337703E-4},{"$f":"'Population at Risk'!BB226/'Population at Risk'!BB$5","v":4.4437357328482073E-3},{"$f":"'Population at Risk'!BC226/'Population at Risk'!BC$5","v":0},224]
[null,"Female 75-79",{"$f":"'Population at Risk'!C227/'Population at Risk'!C$5","v":4.5090307789931163E-3},{"$f":"'Population at Risk'!D227/'Population at Risk'!D$5","v":3.9871948059091384E-3},{"$f":"'Population at Risk'!E227/'Population at Risk'!E$5","v":3.5123743500572488E-3},{"$f":"'Population at Risk'!F227/'Population at Risk'!F$5","v":2.5970390534697063E-3},{"$f":"'Population at Risk'!G227/'Population at Risk'!G$5","v":1.1706237590089058E-3},{"$f":"'Population at Risk'!H227/'Population at Risk'!H$5","v":2.2422088809103745E-3},{"$f":"'Population at Risk'!I227/'Population at Risk'!I$5","v":1.4114986468385198E-3},{"$f":"'Population at Risk'!J227/'Population at Risk'!J$5","v":3.519308583391216E-3},{"$f":"'Population at Risk'!K227/'Population at Risk'!K$5","v":1.9518966181126837E-3},{"$f":"'Population at Risk'!L227/'Population at Risk'!L$5","v":1.5763794738474508E-3},{"$f":"'Population at Risk'!M227/'Population at Risk'!M$5","v":1.5473073037890759E-3},{"$f":"'Population at Risk'!N227/'Population at Risk'!N$5","v":2.6566825542049736E-3},{"$f":"'Population at Risk'!O227/'Population at Risk'!O$5","v":1.150807627719221E-3},{"$f":"'Population at Risk'!P227/'Population at Risk'!P$5","v":8.8107697739199138E-3},{"$f":"'Population at Risk'!Q227/'Population at Risk'!Q$5","v":2.6052852819595509E-3},{"$f":"'Population at Risk'!R227/'Population at Risk'!R$5","v":7.6585397355825565E-3},{"$f":"'Population at Risk'!S227/'Population at Risk'!S$5","v":3.1715780933472496E-3},{"$f":"'Population at Risk'!T227/'Population at Risk'!T$5","v":4.822286815804446E-3},{"$f":"'Population at Risk'!U227/'Population at Risk'!U$5","v":0},{"$f":"'Population at Risk'!V227/'Population at Risk'!V$5","v":2.1178756468798699E-3},{"$f":"'Population at Risk'!W227/'Population at Risk'!W$5","v":2.6252244841723374E-3},{"$f":"'Population at Risk'!X227/'Population at Risk'!X$5","v":2.6726056460176502E-3},{"$f":"'Population at Risk'!Y227/'Population at Risk'!Y$5","v":2.492873191432936E-3},{"$f":"'Population at Risk'!Z227/'Population at Risk'!Z$5","v":8.9693070175857952E-4},{"$f":"'Population at Risk'!AA227/'Population at Risk'!AA$5","v":2.225721963923304E-3},{"$f":"'Population at Risk'!AB227/'Population at Risk'!AB$5","v":3.7636580727899282E-3},{"$f":"'Population at Risk'!AC227/'Population at Risk'!AC$5","v":2.5895083902663174E-3},{"$f":"'Population at Risk'!AD227/'Population at Risk'!AD$5","v":1.3253495956584102E-3},{"$f":"'Population at Risk'!AE227/'Population at Risk'!AE$5","v":1.2061791716591291E-3},{"$f":"'Population at Risk'!AF227/'Population at Risk'!AF$5","v":2.4292348498113868E-3},{"$f":"'Population at Risk'!AG227/'Population at Risk'!AG$5","v":1.3345454401618778E-3},{"$f":"'Population at Risk'!AH227/'Population at Risk'!AH$5","v":1.4889096149579193E-3},{"$f":"'Population at Risk'!AI227/'Population at Risk'!AI$5","v":3.6592167764184294E-3},{"$f":"'Population at Risk'!AJ227/'Population at Risk'!AJ$5","v":1.8773696783330321E-3},{"$f":"'Population at Risk'!AK227/'Population at Risk'!AK$5","v":2.2424113821385193E-3},{"$f":"'Population at Risk'!AL227/'Population at Risk'!AL$5","v":1.5203434276469733E-3},{"$f":"'Population at Risk'!AM227/'Population at Risk'!AM$5","v":1.0260403268861971E-3},{"$f":"'Population at Risk'!AN227/'Population at Risk'!AN$5","v":6.7875661484106465E-4},{"$f":"'Population at Risk'!AO227/'Population at Risk'!AO$5","v":6.7875661484106465E-4},{"$f":"'Population at Risk'!AP227/'Population at Risk'!AP$5","v":3.435245172108694E-3},{"$f":"'Population at Risk'!AQ227/'Population at Risk'!AQ$5","v":2.407674561459662E-3},{"$f":"'Population at Risk'!AR227/'Population at Risk'!AR$5","v":2.6117542383498693E-3},{"$f":"'Population at Risk'!AS227/'Population at Risk'!AS$5","v":1.4114986468385198E-3},{"$f":"'Population at Risk'!AT227/'Population at Risk'!AT$5","v":0},{"$f":"'Population at Risk'!AU227/'Population at Risk'!AU$5","v":0},{"$f":"'Population at Risk'!AV227/'Population at Risk'!AV$5","v":4.5137999192272817E-3},{"$f":"'Population at Risk'!AW227/'Population at Risk'!AW$5","v":2.0190879237396158E-3},{"$f":"'Population at Risk'!AX227/'Population at Risk'!AX$5","v":4.1128388955651062E-3},{"$f":"'Population at Risk'!AY227/'Population at Risk'!AY$5","v":2.8530297685785424E-3},{"$f":"'Population at Risk'!AZ227/'Population at Risk'!AZ$5","v":3.0856031035877622E-3},{"$f":"'Population at Risk'!BA227/'Population at Risk'!BA$5","v":2.772503183925423E-4},{"$f":"'Population at Risk'!BB227/'Population at Risk'!BB$5","v":1.4034850163053665E-3},{"$f":"'Population at Risk'!BC227/'Population at Risk'!BC$5","v":0},225]
[null,"Female 80-84",{"$f":"'Population at Risk'!C228/'Population at Risk'!C$5","v":3.5190240211303565E-3},{"$f":"'Population at Risk'!D228/'Population at Risk'!D$5","v":3.0545258111003221E-3},{"$f":"'Population at Risk'!E228/'Population at Risk'!E$5","v":2.6349278469847302E-3},{"$f":"'Population at Risk'!F228/'Population at Risk'!F$5","v":2.0483688309056837E-3},{"$f":"'Population at Risk'!G228/'Population at Risk'!G$5","v":9.7819245615812659E-4},{"$f":"'Population at Risk'!H228/'Population at Risk'!H$5","v":1.6744700937567859E-3},{"$f":"'Population at Risk'!I228/'Population at Risk'!I$5","v":8.4689918810311189E-4},{"$f":"'Population at Risk'!J228/'Population at Risk'!J$5","v":2.4183484115816644E-3},{"$f":"'Population at Risk'!K228/'Population at Risk'!K$5","v":1.2258862906439415E-3},{"$f":"'Population at Risk'!L228/'Population at Risk'!L$5","v":1.2733984607681357E-3},{"$f":"'Population at Risk'!M228/'Population at Risk'!M$5","v":1.2499139779911755E-3},{"$f":"'Population at Risk'!N228/'Population at Risk'!N$5","v":2.1337967234568772E-3},{"$f":"'Population at Risk'!O228/'Population at Risk'!O$5","v":9.2254826354350769E-4},{"$f":"'Population at Risk'!P228/'Population at Risk'!P$5","v":6.4988053815466726E-3},{"$f":"'Population at Risk'!Q228/'Population at Risk'!Q$5","v":1.8551774372822509E-3},{"$f":"'Population at Risk'!R228/'Population at Risk'!R$5","v":6.3684648603373663E-3},{"$f":"'Population at Risk'!S228/'Population at Risk'!S$5","v":2.4843124533463069E-3},{"$f":"'Population at Risk'!T228/'Population at Risk'!T$5","v":4.0673148483822167E-3},{"$f":"'Population at Risk'!U228/'Population at Risk'!U$5","v":0},{"$f":"'Population at Risk'!V228/'Population at Risk'!V$5","v":1.3932162092057426E-3},{"$f":"'Population at Risk'!W228/'Population at Risk'!W$5","v":1.9344726254957808E-3},{"$f":"'Population at Risk'!X228/'Population at Risk'!X$5","v":1.9693868056379184E-3},{"$f":"'Population at Risk'!Y228/'Population at Risk'!Y$5","v":1.6854396598197704E-3},{"$f":"'Population at Risk'!Z228/'Population at Risk'!Z$5","v":7.6275373694024756E-4},{"$f":"'Population at Risk'!AA228/'Population at Risk'!AA$5","v":1.7003912163452916E-3},{"$f":"'Population at Risk'!AB228/'Population at Risk'!AB$5","v":2.9049479028196304E-3},{"$f":"'Population at Risk'!AC228/'Population at Risk'!AC$5","v":2.0140620813182469E-3},{"$f":"'Population at Risk'!AD228/'Population at Risk'!AD$5","v":1.1307025428306898E-3},{"$f":"'Population at Risk'!AE228/'Population at Risk'!AE$5","v":1.0357408104464262E-3},{"$f":"'Population at Risk'!AF228/'Population at Risk'!AF$5","v":1.7719124786859527E-3},{"$f":"'Population at Risk'!AG228/'Population at Risk'!AG$5","v":1.1459683670955252E-3},{"$f":"'Population at Risk'!AH228/'Population at Risk'!AH$5","v":1.0672928146057577E-3},{"$f":"'Population at Risk'!AI228/'Population at Risk'!AI$5","v":2.9550163754702105E-3},{"$f":"'Population at Risk'!AJ228/'Population at Risk'!AJ$5","v":1.2625106133767989E-3},{"$f":"'Population at Risk'!AK228/'Population at Risk'!AK$5","v":1.84546278343698E-3},{"$f":"'Population at Risk'!AL228/'Population at Risk'!AL$5","v":1.1938267183536637E-3},{"$f":"'Population at Risk'!AM228/'Population at Risk'!AM$5","v":6.5315067105024133E-4},{"$f":"'Population at Risk'!AN228/'Population at Risk'!AN$5","v":7.9680124350907584E-4},{"$f":"'Population at Risk'!AO228/'Population at Risk'!AO$5","v":7.9680124350907584E-4},{"$f":"'Population at Risk'!AP228/'Population at Risk'!AP$5","v":2.6479098509723862E-3},{"$f":"'Population at Risk'!AQ228/'Population at Risk'!AQ$5","v":1.7082383760076935E-3},{"$f":"'Population at Risk'!AR228/'Population at Risk'!AR$5","v":2.0132004084668286E-3},{"$f":"'Population at Risk'!AS228/'Population at Risk'!AS$5","v":8.4689918810311189E-4},{"$f":"'Population at Risk'!AT228/'Population at Risk'!AT$5","v":0},{"$f":"'Population at Risk'!AU228/'Population at Risk'!AU$5","v":0},{"$f":"'Population at Risk'!AV228/'Population at Risk'!AV$5","v":3.2132135018228111E-3},{"$f":"'Population at Risk'!AW228/'Population at Risk'!AW$5","v":1.5344063699065987E-3},{"$f":"'Population at Risk'!AX228/'Population at Risk'!AX$5","v":2.8944807980774978E-3},{"$f":"'Population at Risk'!AY228/'Population at Risk'!AY$5","v":2.1784348793725881E-3},{"$f":"'Population at Risk'!AZ228/'Population at Risk'!AZ$5","v":2.4220511728330666E-3},{"$f":"'Population at Risk'!BA228/'Population at Risk'!BA$5","v":1.8483354559502816E-4},{"$f":"'Population at Risk'!BB228/'Population at Risk'!BB$5","v":8.873886743306417E-4},{"$f":"'Population at Risk'!BC228/'Population at Risk'!BC$5","v":0},226]
[null,"Female 85-89",{"$f":"'Population at Risk'!C229/'Population at Risk'!C$5","v":2.5800176113999203E-3},{"$f":"'Population at Risk'!D229/'Population at Risk'!D$5","v":2.0995508313633431E-3},{"$f":"'Population at Risk'!E229/'Population at Risk'!E$5","v":1.6720661975954184E-3},{"$f":"'Population at Risk'!F229/'Population at Risk'!F$5","v":1.3220339648447399E-3},{"$f":"'Population at Risk'!G229/'Population at Risk'!G$5","v":5.6125796664810543E-4},{"$f":"'Population at Risk'!H229/'Population at Risk'!H$5","v":9.9354287751877968E-4},{"$f":"'Population at Risk'!I229/'Population at Risk'!I$5","v":4.4741843899787044E-4},{"$f":"'Population at Risk'!J229/'Population at Risk'!J$5","v":1.3550279037656018E-3},{"$f":"'Population at Risk'!K229/'Population at Risk'!K$5","v":5.3558138911628523E-4},{"$f":"'Population at Risk'!L229/'Population at Risk'!L$5","v":6.8500055130975583E-4},{"$f":"'Population at Risk'!M229/'Population at Risk'!M$5","v":6.7236751919525297E-4},{"$f":"'Population at Risk'!N229/'Population at Risk'!N$5","v":1.3890805402701951E-3},{"$f":"'Population at Risk'!O229/'Population at Risk'!O$5","v":5.6113760359862851E-4},{"$f":"'Population at Risk'!P229/'Population at Risk'!P$5","v":3.7900112800347409E-3},{"$f":"'Population at Risk'!Q229/'Population at Risk'!Q$5","v":1.2189252476006126E-3},{"$f":"'Population at Risk'!R229/'Population at Risk'!R$5","v":4.4231138579835091E-3},{"$f":"'Population at Risk'!S229/'Population at Risk'!S$5","v":1.6550579293279522E-3},{"$f":"'Population at Risk'!T229/'Population at Risk'!T$5","v":2.8395191402706388E-3},{"$f":"'Population at Risk'!U229/'Population at Risk'!U$5","v":0},{"$f":"'Population at Risk'!V229/'Population at Risk'!V$5","v":7.5271077074538437E-4},{"$f":"'Population at Risk'!W229/'Population at Risk'!W$5","v":1.1977931166412624E-3},{"$f":"'Population at Risk'!X229/'Population at Risk'!X$5","v":1.2194113934244281E-3},{"$f":"'Population at Risk'!Y229/'Population at Risk'!Y$5","v":9.3197340795452813E-4},{"$f":"'Population at Risk'!Z229/'Population at Risk'!Z$5","v":5.1132302809148123E-4},{"$f":"'Population at Risk'!AA229/'Population at Risk'!AA$5","v":1.0420963199237754E-3},{"$f":"'Population at Risk'!AB229/'Population at Risk'!AB$5","v":1.9705387646976806E-3},{"$f":"'Population at Risk'!AC229/'Population at Risk'!AC$5","v":1.2834047743276796E-3},{"$f":"'Population at Risk'!AD229/'Population at Risk'!AD$5","v":6.7798411659093587E-4},{"$f":"'Population at Risk'!AE229/'Population at Risk'!AE$5","v":6.2931087216998045E-4},{"$f":"'Population at Risk'!AF229/'Population at Risk'!AF$5","v":1.2574862751964825E-3},{"$f":"'Population at Risk'!AG229/'Population at Risk'!AG$5","v":6.9628457747576233E-4},{"$f":"'Population at Risk'!AH229/'Population at Risk'!AH$5","v":5.5773879589443099E-4},{"$f":"'Population at Risk'!AI229/'Population at Risk'!AI$5","v":2.0238040031636852E-3},{"$f":"'Population at Risk'!AJ229/'Population at Risk'!AJ$5","v":5.1648161456323597E-4},{"$f":"'Population at Risk'!AK229/'Population at Risk'!AK$5","v":1.1142416805657238E-3},{"$f":"'Population at Risk'!AL229/'Population at Risk'!AL$5","v":6.7854253650015926E-4},{"$f":"'Population at Risk'!AM229/'Population at Risk'!AM$5","v":2.9213648196065338E-4},{"$f":"'Population at Risk'!AN229/'Population at Risk'!AN$5","v":4.1315620033803932E-4},{"$f":"'Population at Risk'!AO229/'Population at Risk'!AO$5","v":4.1315620033803932E-4},{"$f":"'Population at Risk'!AP229/'Population at Risk'!AP$5","v":1.7066262826865215E-3},{"$f":"'Population at Risk'!AQ229/'Population at Risk'!AQ$5","v":9.8638436409893056E-4},{"$f":"'Population at Risk'!AR229/'Population at Risk'!AR$5","v":1.2825785722483044E-3},{"$f":"'Population at Risk'!AS229/'Population at Risk'!AS$5","v":4.4741843899787044E-4},{"$f":"'Population at Risk'!AT229/'Population at Risk'!AT$5","v":0},{"$f":"'Population at Risk'!AU229/'Population at Risk'!AU$5","v":0},{"$f":"'Population at Risk'!AV229/'Population at Risk'!AV$5","v":1.9253779316477952E-3},{"$f":"'Population at Risk'!AW229/'Population at Risk'!AW$5","v":8.5384315183018576E-4},{"$f":"'Population at Risk'!AX229/'Population at Risk'!AX$5","v":1.7113353623669876E-3},{"$f":"'Population at Risk'!AY229/'Population at Risk'!AY$5","v":1.382963962588228E-3},{"$f":"'Population at Risk'!AZ229/'Population at Risk'!AZ$5","v":1.5661904579693077E-3},{"$f":"'Population at Risk'!BA229/'Population at Risk'!BA$5","v":8.4015247997740089E-5},{"$f":"'Population at Risk'!BB229/'Population at Risk'!BB$5","v":6.3862281165217726E-4},{"$f":"'Population at Risk'!BC229/'Population at Risk'!BC$5","v":0},227]
[null,"Female 90+",{"$f":"'Population at Risk'!C230/'Population at Risk'!C$5","v":1.5720107306669282E-3},{"$f":"'Population at Risk'!D230/'Population at Risk'!D$5","v":1.3090824904715666E-3},{"$f":"'Population at Risk'!E230/'Population at Risk'!E$5","v":1.0741601733778618E-3},{"$f":"'Population at Risk'!F230/'Population at Risk'!F$5","v":6.7408055915008482E-4},{"$f":"'Population at Risk'!G230/'Population at Risk'!G$5","v":3.5279072189309485E-4},{"$f":"'Population at Risk'!H230/'Population at Risk'!H$5","v":6.4679102333953101E-4},{"$f":"'Population at Risk'!I230/'Population at Risk'!I$5","v":3.6752228917682209E-4},{"$f":"'Population at Risk'!J230/'Population at Risk'!J$5","v":7.6220319586815116E-4},{"$f":"'Population at Risk'!K230/'Population at Risk'!K$5","v":2.1423255564651406E-4},{"$f":"'Population at Risk'!L230/'Population at Risk'!L$5","v":3.9958365493069091E-4},{"$f":"'Population at Risk'!M230/'Population at Risk'!M$5","v":3.9221438619723087E-4},{"$f":"'Population at Risk'!N230/'Population at Risk'!N$5","v":6.1795598179320457E-4},{"$f":"'Population at Risk'!O230/'Population at Risk'!O$5","v":2.5203638127735005E-4},{"$f":"'Population at Risk'!P230/'Population at Risk'!P$5","v":2.2429505299143386E-3},{"$f":"'Population at Risk'!Q230/'Population at Risk'!Q$5","v":7.6350262761796595E-4},{"$f":"'Population at Risk'!R230/'Population at Risk'!R$5","v":2.4299823046946434E-3},{"$f":"'Population at Risk'!S230/'Population at Risk'!S$5","v":1.0530842231291349E-3},{"$f":"'Population at Risk'!T230/'Population at Risk'!T$5","v":1.7624601560300515E-3},{"$f":"'Population at Risk'!U230/'Population at Risk'!U$5","v":0},{"$f":"'Population at Risk'!V230/'Population at Risk'!V$5","v":5.7505232796075951E-4},{"$f":"'Population at Risk'!W230/'Population at Risk'!W$5","v":7.9362979507519222E-4},{"$f":"'Population at Risk'!X230/'Population at Risk'!X$5","v":8.0795356128735116E-4},{"$f":"'Population at Risk'!Y230/'Population at Risk'!Y$5","v":5.9156441262147121E-4},{"$f":"'Population at Risk'!Z230/'Population at Risk'!Z$5","v":3.3362920981855516E-4},{"$f":"'Population at Risk'!AA230/'Population at Risk'!AA$5","v":5.9222068748701444E-4},{"$f":"'Population at Risk'!AB230/'Population at Risk'!AB$5","v":1.2324738252190777E-3},{"$f":"'Population at Risk'!AC230/'Population at Risk'!AC$5","v":7.4722132654450938E-4},{"$f":"'Population at Risk'!AD230/'Population at Risk'!AD$5","v":3.8054592350588015E-4},{"$f":"'Population at Risk'!AE230/'Population at Risk'!AE$5","v":3.4087672242540606E-4},{"$f":"'Population at Risk'!AF230/'Population at Risk'!AF$5","v":8.5737700581578361E-4},{"$f":"'Population at Risk'!AG230/'Population at Risk'!AG$5","v":3.7715414613270456E-4},{"$f":"'Population at Risk'!AH230/'Population at Risk'!AH$5","v":2.8188094652115944E-4},{"$f":"'Population at Risk'!AI230/'Population at Risk'!AI$5","v":1.262464534594668E-3},{"$f":"'Population at Risk'!AJ230/'Population at Risk'!AJ$5","v":3.7711355983982309E-4},{"$f":"'Population at Risk'!AK230/'Population at Risk'!AK$5","v":7.1729308186418473E-4},{"$f":"'Population at Risk'!AL230/'Population at Risk'!AL$5","v":3.7243312153768143E-4},{"$f":"'Population at Risk'!AM230/'Population at Risk'!AM$5","v":1.5675616105205792E-4},{"$f":"'Population at Risk'!AN230/'Population at Risk'!AN$5","v":2.0657810016901966E-4},{"$f":"'Population at Risk'!AO230/'Population at Risk'!AO$5","v":2.0657810016901966E-4},{"$f":"'Population at Risk'!AP230/'Population at Risk'!AP$5","v":1.1612096356423754E-3},{"$f":"'Population at Risk'!AQ230/'Population at Risk'!AQ$5","v":4.4387296384451879E-4},{"$f":"'Population at Risk'!AR230/'Population at Risk'!AR$5","v":7.7966463389281216E-4},{"$f":"'Population at Risk'!AS230/'Population at Risk'!AS$5","v":3.6752228917682209E-4},{"$f":"'Population at Risk'!AT230/'Population at Risk'!AT$5","v":0},{"$f":"'Population at Risk'!AU230/'Population at Risk'!AU$5","v":0},{"$f":"'Population at Risk'!AV230/'Population at Risk'!AV$5","v":1.4918491258463051E-3},{"$f":"'Population at Risk'!AW230/'Population at Risk'!AW$5","v":4.2189896913962118E-4},{"$f":"'Population at Risk'!AX230/'Population at Risk'!AX$5","v":1.0141246591804372E-3},{"$f":"'Population at Risk'!AY230/'Population at Risk'!AY$5","v":8.3724424984454415E-4},{"$f":"'Population at Risk'!AZ230/'Population at Risk'!AZ$5","v":8.8358089996056074E-4},{"$f":"'Population at Risk'!BA230/'Population at Risk'!BA$5","v":5.8810673598418059E-5},{"$f":"'Population at Risk'!BB230/'Population at Risk'!BB$5","v":3.972827956208312E-4},{"$f":"'Population at Risk'!BC230/'Population at Risk'!BC$5","v":0},228]
[null,"Male 0-4",{"$f":"'Population at Risk'!C231/'Population at Risk'!C$5","v":0},{"$f":"'Population at Risk'!D231/'Population at Risk'!D$5","v":0},{"$f":"'Population at Risk'!E231/'Population at Risk'!E$5","v":0},{"$f":"'Population at Risk'!F231/'Population at Risk'!F$5","v":0},{"$f":"'Population at Risk'!G231/'Population at Risk'!G$5","v":0},{"$f":"'Population at Risk'!H231/'Population at Risk'!H$5","v":0},{"$f":"'Population at Risk'!I231/'Population at Risk'!I$5","v":0},{"$f":"'Population at Risk'!J231/'Population at Risk'!J$5","v":0},{"$f":"'Population at Risk'!K231/'Population at Risk'!K$5","v":0},{"$f":"'Population at Risk'!L231/'Population at Risk'!L$5","v":0},{"$f":"'Population at Risk'!M231/'Population at Risk'!M$5","v":0},{"$f":"'Population at Risk'!N231/'Population at Risk'!N$5","v":0},{"$f":"'Population at Risk'!O231/'Population at Risk'!O$5","v":0},{"$f":"'Population at Risk'!P231/'Population at Risk'!P$5","v":0},{"$f":"'Population at Risk'!Q231/'Population at Risk'!Q$5","v":0},{"$f":"'Population at Risk'!R231/'Population at Risk'!R$5","v":0},{"$f":"'Population at Risk'!S231/'Population at Risk'!S$5","v":0},{"$f":"'Population at Risk'!T231/'Population at Risk'!T$5","v":0},{"$f":"'Population at Risk'!U231/'Population at Risk'!U$5","v":0},{"$f":"'Population at Risk'!V231/'Population at Risk'!V$5","v":0},{"$f":"'Population at Risk'!W231/'Population at Risk'!W$5","v":0},{"$f":"'Population at Risk'!X231/'Population at Risk'!X$5","v":0},{"$f":"'Population at Risk'!Y231/'Population at Risk'!Y$5","v":0},{"$f":"'Population at Risk'!Z231/'Population at Risk'!Z$5","v":0},{"$f":"'Population at Risk'!AA231/'Population at Risk'!AA$5","v":0},{"$f":"'Population at Risk'!AB231/'Population at Risk'!AB$5","v":0},{"$f":"'Population at Risk'!AC231/'Population at Risk'!AC$5","v":0},{"$f":"'Population at Risk'!AD231/'Population at Risk'!AD$5","v":0},{"$f":"'Population at Risk'!AE231/'Population at Risk'!AE$5","v":0},{"$f":"'Population at Risk'!AF231/'Population at Risk'!AF$5","v":0},{"$f":"'Population at Risk'!AG231/'Population at Risk'!AG$5","v":0},{"$f":"'Population at Risk'!AH231/'Population at Risk'!AH$5","v":0},{"$f":"'Population at Risk'!AI231/'Population at Risk'!AI$5","v":0},{"$f":"'Population at Risk'!AJ231/'Population at Risk'!AJ$5","v":0},{"$f":"'Population at Risk'!AK231/'Population at Risk'!AK$5","v":0},{"$f":"'Population at Risk'!AL231/'Population at Risk'!AL$5","v":0},{"$f":"'Population at Risk'!AM231/'Population at Risk'!AM$5","v":0},{"$f":"'Population at Risk'!AN231/'Population at Risk'!AN$5","v":0},{"$f":"'Population at Risk'!AO231/'Population at Risk'!AO$5","v":0},{"$f":"'Population at Risk'!AP231/'Population at Risk'!AP$5","v":0},{"$f":"'Population at Risk'!AQ231/'Population at Risk'!AQ$5","v":0},{"$f":"'Population at Risk'!AR231/'Population at Risk'!AR$5","v":0},{"$f":"'Population at Risk'!AS231/'Population at Risk'!AS$5","v":0},{"$f":"'Population at Risk'!AT231/'Population at Risk'!AT$5","v":0},{"$f":"'Population at Risk'!AU231/'Population at Risk'!AU$5","v":0},{"$f":"'Population at Risk'!AV231/'Population at Risk'!AV$5","v":0},{"$f":"'Population at Risk'!AW231/'Population at Risk'!AW$5","v":0},{"$f":"'Population at Risk'!AX231/'Population at Risk'!AX$5","v":0},{"$f":"'Population at Risk'!AY231/'Population at Risk'!AY$5","v":0},{"$f":"'Population at Risk'!AZ231/'Population at Risk'!AZ$5","v":0},{"$f":"'Population at Risk'!BA231/'Population at Risk'!BA$5","v":0},{"$f":"'Population at Risk'!BB231/'Population at Risk'!BB$5","v":0},{"$f":"'Population at Risk'!BC231/'Population at Risk'!BC$5","v":0},229]
[null,"Male 5-9",{"$f":"'Population at Risk'!C232/'Population at Risk'!C$5","v":0},{"$f":"'Population at Risk'!D232/'Population at Risk'!D$5","v":0},{"$f":"'Population at Risk'!E232/'Population at Risk'!E$5","v":0},{"$f":"'Population at Risk'!F232/'Population at Risk'!F$5","v":0},{"$f":"'Population at Risk'!G232/'Population at Risk'!G$5","v":0},{"$f":"'Population at Risk'!H232/'Population at Risk'!H$5","v":0},{"$f":"'Population at Risk'!I232/'Population at Risk'!I$5","v":0},{"$f":"'Population at Risk'!J232/'Population at Risk'!J$5","v":0},{"$f":"'Population at Risk'!K232/'Population at Risk'!K$5","v":0},{"$f":"'Population at Risk'!L232/'Population at Risk'!L$5","v":0},{"$f":"'Population at Risk'!M232/'Population at Risk'!M$5","v":0},{"$f":"'Population at Risk'!N232/'Population at Risk'!N$5","v":0},{"$f":"'Population at Risk'!O232/'Population at Risk'!O$5","v":0},{"$f":"'Population at Risk'!P232/'Population at Risk'!P$5","v":0},{"$f":"'Population at Risk'!Q232/'Population at Risk'!Q$5","v":0},{"$f":"'Population at Risk'!R232/'Population at Risk'!R$5","v":0},{"$f":"'Population at Risk'!S232/'Population at Risk'!S$5","v":0},{"$f":"'Population at Risk'!T232/'Population at Risk'!T$5","v":0},{"$f":"'Population at Risk'!U232/'Population at Risk'!U$5","v":0},{"$f":"'Population at Risk'!V232/'Population at Risk'!V$5","v":0},{"$f":"'Population at Risk'!W232/'Population at Risk'!W$5","v":0},{"$f":"'Population at Risk'!X232/'Population at Risk'!X$5","v":0},{"$f":"'Population at Risk'!Y232/'Population at Risk'!Y$5","v":0},{"$f":"'Population at Risk'!Z232/'Population at Risk'!Z$5","v":0},{"$f":"'Population at Risk'!AA232/'Population at Risk'!AA$5","v":0},{"$f":"'Population at Risk'!AB232/'Population at Risk'!AB$5","v":0},{"$f":"'Population at Risk'!AC232/'Population at Risk'!AC$5","v":0},{"$f":"'Population at Risk'!AD232/'Population at Risk'!AD$5","v":0},{"$f":"'Population at Risk'!AE232/'Population at Risk'!AE$5","v":0},{"$f":"'Population at Risk'!AF232/'Population at Risk'!AF$5","v":0},{"$f":"'Population at Risk'!AG232/'Population at Risk'!AG$5","v":0},{"$f":"'Population at Risk'!AH232/'Population at Risk'!AH$5","v":0},{"$f":"'Population at Risk'!AI232/'Population at Risk'!AI$5","v":0},{"$f":"'Population at Risk'!AJ232/'Population at Risk'!AJ$5","v":0},{"$f":"'Population at Risk'!AK232/'Population at Risk'!AK$5","v":0},{"$f":"'Population at Risk'!AL232/'Population at Risk'!AL$5","v":0},{"$f":"'Population at Risk'!AM232/'Population at Risk'!AM$5","v":0},{"$f":"'Population at Risk'!AN232/'Population at Risk'!AN$5","v":0},{"$f":"'Population at Risk'!AO232/'Population at Risk'!AO$5","v":0},{"$f":"'Population at Risk'!AP232/'Population at Risk'!AP$5","v":0},{"$f":"'Population at Risk'!AQ232/'Population at Risk'!AQ$5","v":0},{"$f":"'Population at Risk'!AR232/'Population at Risk'!AR$5","v":0},{"$f":"'Population at Risk'!AS232/'Population at Risk'!AS$5","v":0},{"$f":"'Population at Risk'!AT232/'Population at Risk'!AT$5","v":0},{"$f":"'Population at Risk'!AU232/'Population at Risk'!AU$5","v":0},{"$f":"'Population at Risk'!AV232/'Population at Risk'!AV$5","v":0},{"$f":"'Population at Risk'!AW232/'Population at Risk'!AW$5","v":0},{"$f":"'Population at Risk'!AX232/'Population at Risk'!AX$5","v":0},{"$f":"'Population at Risk'!AY232/'Population at Risk'!AY$5","v":0},{"$f":"'Population at Risk'!AZ232/'Population at Risk'!AZ$5","v":0},{"$f":"'Population at Risk'!BA232/'Population at Risk'!BA$5","v":0},{"$f":"'Population at Risk'!BB232/'Population at Risk'!BB$5","v":0},{"$f":"'Population at Risk'!BC232/'Population at Risk'!BC$5","v":0},230]
[null,"Male 10-15",{"$f":"'Population at Risk'!C233/'Population at Risk'!C$5","v":0},{"$f":"'Population at Risk'!D233/'Population at Risk'!D$5","v":0},{"$f":"'Population at Risk'!E233/'Population at Risk'!E$5","v":0},{"$f":"'Population at Risk'!F233/'Population at Risk'!F$5","v":0},{"$f":"'Population at Risk'!G233/'Population at Risk'!G$5","v":0},{"$f":"'Population at Risk'!H233/'Population at Risk'!H$5","v":0},{"$f":"'Population at Risk'!I233/'Population at Risk'!I$5","v":0},{"$f":"'Population at Risk'!J233/'Population at Risk'!J$5","v":0},{"$f":"'Population at Risk'!K233/'Population at Risk'!K$5","v":0},{"$f":"'Population at Risk'!L233/'Population at Risk'!L$5","v":0},{"$f":"'Population at Risk'!M233/'Population at Risk'!M$5","v":0},{"$f":"'Population at Risk'!N233/'Population at Risk'!N$5","v":0},{"$f":"'Population at Risk'!O233/'Population at Risk'!O$5","v":0},{"$f":"'Population at Risk'!P233/'Population at Risk'!P$5","v":0},{"$f":"'Population at Risk'!Q233/'Population at Risk'!Q$5","v":0},{"$f":"'Population at Risk'!R233/'Population at Risk'!R$5","v":0},{"$f":"'Population at Risk'!S233/'Population at Risk'!S$5","v":0},{"$f":"'Population at Risk'!T233/'Population at Risk'!T$5","v":0},{"$f":"'Population at Risk'!U233/'Population at Risk'!U$5","v":0},{"$f":"'Population at Risk'!V233/'Population at Risk'!V$5","v":0},{"$f":"'Population at Risk'!W233/'Population at Risk'!W$5","v":0},{"$f":"'Population at Risk'!X233/'Population at Risk'!X$5","v":0},{"$f":"'Population at Risk'!Y233/'Population at Risk'!Y$5","v":0},{"$f":"'Population at Risk'!Z233/'Population at Risk'!Z$5","v":0},{"$f":"'Population at Risk'!AA233/'Population at Risk'!AA$5","v":0},{"$f":"'Population at Risk'!AB233/'Population at Risk'!AB$5","v":0},{"$f":"'Population at Risk'!AC233/'Population at Risk'!AC$5","v":0},{"$f":"'Population at Risk'!AD233/'Population at Risk'!AD$5","v":0},{"$f":"'Population at Risk'!AE233/'Population at Risk'!AE$5","v":0},{"$f":"'Population at Risk'!AF233/'Population at Risk'!AF$5","v":0},{"$f":"'Population at Risk'!AG233/'Population at Risk'!AG$5","v":0},{"$f":"'Population at Risk'!AH233/'Population at Risk'!AH$5","v":0},{"$f":"'Population at Risk'!AI233/'Population at Risk'!AI$5","v":0},{"$f":"'Population at Risk'!AJ233/'Population at Risk'!AJ$5","v":0},{"$f":"'Population at Risk'!AK233/'Population at Risk'!AK$5","v":0},{"$f":"'Population at Risk'!AL233/'Population at Risk'!AL$5","v":0},{"$f":"'Population at Risk'!AM233/'Population at Risk'!AM$5","v":0},{"$f":"'Population at Risk'!AN233/'Population at Risk'!AN$5","v":0},{"$f":"'Population at Risk'!AO233/'Population at Risk'!AO$5","v":0},{"$f":"'Population at Risk'!AP233/'Population at Risk'!AP$5","v":0},{"$f":"'Population at Risk'!AQ233/'Population at Risk'!AQ$5","v":0},{"$f":"'Population at Risk'!AR233/'Population at Risk'!AR$5","v":0},{"$f":"'Population at Risk'!AS233/'Population at Risk'!AS$5","v":0},{"$f":"'Population at Risk'!AT233/'Population at Risk'!AT$5","v":0},{"$f":"'Population at Risk'!AU233/'Population at Risk'!AU$5","v":0},{"$f":"'Population at Risk'!AV233/'Population at Risk'!AV$5","v":0},{"$f":"'Population at Risk'!AW233/'Population at Risk'!AW$5","v":0},{"$f":"'Population at Risk'!AX233/'Population at Risk'!AX$5","v":0},{"$f":"'Population at Risk'!AY233/'Population at Risk'!AY$5","v":0},{"$f":"'Population at Risk'!AZ233/'Population at Risk'!AZ$5","v":0},{"$f":"'Population at Risk'!BA233/'Population at Risk'!BA$5","v":0},{"$f":"'Population at Risk'!BB233/'Population at Risk'!BB$5","v":0},{"$f":"'Population at Risk'!BC233/'Population at Risk'!BC$5","v":0},231]
[null,"Male 16-19",{"$f":"'Population at Risk'!C234/'Population at Risk'!C$5","v":9.2964915585512578E-3},{"$f":"'Population at Risk'!D234/'Population at Risk'!D$5","v":9.5793005396294546E-3},{"$f":"'Population at Risk'!E234/'Population at Risk'!E$5","v":9.88100020253589E-3},{"$f":"'Population at Risk'!F234/'Population at Risk'!F$5","v":5.6803913690061615E-3},{"$f":"'Population at Risk'!G234/'Population at Risk'!G$5","v":4.5703469404624357E-3},{"$f":"'Population at Risk'!H234/'Population at Risk'!H$5","v":4.3527760503248476E-3},{"$f":"'Population at Risk'!I234/'Population at Risk'!I$5","v":3.3251707144099293E-3},{"$f":"'Population at Risk'!J234/'Population at Risk'!J$5","v":1.0328104035488049E-2},{"$f":"'Population at Risk'!K234/'Population at Risk'!K$5","v":4.3800012800423753E-3},{"$f":"'Population at Risk'!L234/'Population at Risk'!L$5","v":2.4760583395860157E-3},{"$f":"'Population at Risk'!M234/'Population at Risk'!M$5","v":2.5087451773076665E-3},{"$f":"'Population at Risk'!N234/'Population at Risk'!N$5","v":5.2909206069701072E-3},{"$f":"'Population at Risk'!O234/'Population at Risk'!O$5","v":4.2258846031084036E-3},{"$f":"'Population at Risk'!P234/'Population at Risk'!P$5","v":1.7087078463742085E-2},{"$f":"'Population at Risk'!Q234/'Population at Risk'!Q$5","v":4.2380242545656602E-3},{"$f":"'Population at Risk'!R234/'Population at Risk'!R$5","v":2.0607430907648935E-2},{"$f":"'Population at Risk'!S234/'Population at Risk'!S$5","v":8.4071912446522842E-3},{"$f":"'Population at Risk'!T234/'Population at Risk'!T$5","v":1.2094377710289496E-2},{"$f":"'Population at Risk'!U234/'Population at Risk'!U$5","v":0},{"$f":"'Population at Risk'!V234/'Population at Risk'!V$5","v":5.4276646077404955E-3},{"$f":"'Population at Risk'!W234/'Population at Risk'!W$5","v":7.7154453059879516E-3},{"$f":"'Population at Risk'!X234/'Population at Risk'!X$5","v":7.6109519867334488E-3},{"$f":"'Population at Risk'!Y234/'Population at Risk'!Y$5","v":8.4874882091535587E-3},{"$f":"'Population at Risk'!Z234/'Population at Risk'!Z$5","v":2.8806456596909059E-3},{"$f":"'Population at Risk'!AA234/'Population at Risk'!AA$5","v":5.2212734343887839E-3},{"$f":"'Population at Risk'!AB234/'Population at Risk'!AB$5","v":9.1229356633611373E-3},{"$f":"'Population at Risk'!AC234/'Population at Risk'!AC$5","v":6.1902625550129689E-3},{"$f":"'Population at Risk'!AD234/'Population at Risk'!AD$5","v":3.0943489646166954E-3},{"$f":"'Population at Risk'!AE234/'Population at Risk'!AE$5","v":2.8148308027333285E-3},{"$f":"'Population at Risk'!AF234/'Population at Risk'!AF$5","v":3.3262525814825934E-3},{"$f":"'Population at Risk'!AG234/'Population at Risk'!AG$5","v":2.6162777207342468E-3},{"$f":"'Population at Risk'!AH234/'Population at Risk'!AH$5","v":3.6221631974066217E-3},{"$f":"'Population at Risk'!AI234/'Population at Risk'!AI$5","v":9.3021828768681675E-3},{"$f":"'Population at Risk'!AJ234/'Population at Risk'!AJ$5","v":5.100234168721008E-3},{"$f":"'Population at Risk'!AK234/'Population at Risk'!AK$5","v":7.5950864524199019E-3},{"$f":"'Population at Risk'!AL234/'Population at Risk'!AL$5","v":3.2578883524194634E-3},{"$f":"'Population at Risk'!AM234/'Population at Risk'!AM$5","v":3.0672336943361406E-3},{"$f":"'Population at Risk'!AN234/'Population at Risk'!AN$5","v":1.6592389612205955E-3},{"$f":"'Population at Risk'!AO234/'Population at Risk'!AO$5","v":1.6592389612205955E-3},{"$f":"'Population at Risk'!AP234/'Population at Risk'!AP$5","v":4.5495936315892603E-3},{"$f":"'Population at Risk'!AQ234/'Population at Risk'!AQ$5","v":5.5520709005874328E-3},{"$f":"'Population at Risk'!AR234/'Population at Risk'!AR$5","v":6.3442475450486476E-3},{"$f":"'Population at Risk'!AS234/'Population at Risk'!AS$5","v":3.3251707144099293E-3},{"$f":"'Population at Risk'!AT234/'Population at Risk'!AT$5","v":0},{"$f":"'Population at Risk'!AU234/'Population at Risk'!AU$5","v":0},{"$f":"'Population at Risk'!AV234/'Population at Risk'!AV$5","v":5.5310583247032705E-3},{"$f":"'Population at Risk'!AW234/'Population at Risk'!AW$5","v":4.0780040226422089E-3},{"$f":"'Population at Risk'!AX234/'Population at Risk'!AX$5","v":1.378385980654318E-2},{"$f":"'Population at Risk'!AY234/'Population at Risk'!AY$5","v":6.2083984930776607E-3},{"$f":"'Population at Risk'!AZ234/'Population at Risk'!AZ$5","v":4.9286590790838126E-3},{"$f":"'Population at Risk'!BA234/'Population at Risk'!BA$5","v":1.6415037749762885E-3},{"$f":"'Population at Risk'!BB234/'Population at Risk'!BB$5","v":6.638665511600624E-3},{"$f":"'Population at Risk'!BC234/'Population at Risk'!BC$5","v":0},232]
[null,"Male 20-24",{"$f":"'Population at Risk'!C235/'Population at Risk'!C$5","v":1.5473865654740801E-2},{"$f":"'Population at Risk'!D235/'Population at Risk'!D$5","v":1.2886270562473304E-2},{"$f":"'Population at Risk'!E235/'Population at Risk'!E$5","v":1.0669687747046691E-2},{"$f":"'Population at Risk'!F235/'Population at Risk'!F$5","v":5.9288379099964898E-3},{"$f":"'Population at Risk'!G235/'Population at Risk'!G$5","v":1.2105978503010621E-2},{"$f":"'Population at Risk'!H235/'Population at Risk'!H$5","v":4.7560202385367595E-3},{"$f":"'Population at Risk'!I235/'Population at Risk'!I$5","v":2.7330170255424075E-3},{"$f":"'Population at Risk'!J235/'Population at Risk'!J$5","v":1.1701154655590558E-2},{"$f":"'Population at Risk'!K235/'Population at Risk'!K$5","v":4.57528796131815E-3},{"$f":"'Population at Risk'!L235/'Population at Risk'!L$5","v":2.7193202115453436E-3},{"$f":"'Population at Risk'!M235/'Population at Risk'!M$5","v":2.7552183877098233E-3},{"$f":"'Population at Risk'!N235/'Population at Risk'!N$5","v":6.7134794494101832E-3},{"$f":"'Population at Risk'!O235/'Population at Risk'!O$5","v":4.7918512910247076E-3},{"$f":"'Population at Risk'!P235/'Population at Risk'!P$5","v":2.0298230383539981E-2},{"$f":"'Population at Risk'!Q235/'Population at Risk'!Q$5","v":5.38086225579685E-3},{"$f":"'Population at Risk'!R235/'Population at Risk'!R$5","v":2.2589708830629194E-2},{"$f":"'Population at Risk'!S235/'Population at Risk'!S$5","v":1.3670913405497713E-2},{"$f":"'Population at Risk'!T235/'Population at Risk'!T$5","v":2.208177207654715E-2},{"$f":"'Population at Risk'!U235/'Population at Risk'!U$5","v":0},{"$f":"'Population at Risk'!V235/'Population at Risk'!V$5","v":6.3782725333899606E-3},{"$f":"'Population at Risk'!W235/'Population at Risk'!W$5","v":1.2656161657895832E-2},{"$f":"'Population at Risk'!X235/'Population at Risk'!X$5","v":1.2484754268146244E-2},{"$f":"'Population at Risk'!Y235/'Population at Risk'!Y$5","v":9.7490213830981262E-3},{"$f":"'Population at Risk'!Z235/'Population at Risk'!Z$5","v":6.8776509595355811E-3},{"$f":"'Population at Risk'!AA235/'Population at Risk'!AA$5","v":7.138465327179328E-3},{"$f":"'Population at Risk'!AB235/'Population at Risk'!AB$5","v":1.2222218201301789E-2},{"$f":"'Population at Risk'!AC235/'Population at Risk'!AC$5","v":8.9190080247850759E-3},{"$f":"'Population at Risk'!AD235/'Population at Risk'!AD$5","v":5.0904637643334602E-3},{"$f":"'Population at Risk'!AE235/'Population at Risk'!AE$5","v":2.7243944717218159E-3},{"$f":"'Population at Risk'!AF235/'Population at Risk'!AF$5","v":3.0341913792060731E-3},{"$f":"'Population at Risk'!AG235/'Population at Risk'!AG$5","v":2.5322206052086488E-3},{"$f":"'Population at Risk'!AH235/'Population at Risk'!AH$5","v":4.2039614311869594E-3},{"$f":"'Population at Risk'!AI235/'Population at Risk'!AI$5","v":1.5416675192406491E-2},{"$f":"'Population at Risk'!AJ235/'Population at Risk'!AJ$5","v":5.7268343665924457E-3},{"$f":"'Population at Risk'!AK235/'Population at Risk'!AK$5","v":9.8962467517457985E-3},{"$f":"'Population at Risk'!AL235/'Population at Risk'!AL$5","v":3.43483436517068E-3},{"$f":"'Population at Risk'!AM235/'Population at Risk'!AM$5","v":3.4473768739500974E-3},{"$f":"'Population at Risk'!AN235/'Population at Risk'!AN$5","v":2.5994743725789335E-3},{"$f":"'Population at Risk'!AO235/'Population at Risk'!AO$5","v":2.5994743725789335E-3},{"$f":"'Population at Risk'!AP235/'Population at Risk'!AP$5","v":5.2525690364702395E-3},{"$f":"'Population at Risk'!AQ235/'Population at Risk'!AQ$5","v":6.4339882999587218E-3},{"$f":"'Population at Risk'!AR235/'Population at Risk'!AR$5","v":8.9760716465030286E-3},{"$f":"'Population at Risk'!AS235/'Population at Risk'!AS$5","v":2.7330170255424075E-3},{"$f":"'Population at Risk'!AT235/'Population at Risk'!AT$5","v":0},{"$f":"'Population at Risk'!AU235/'Population at Risk'!AU$5","v":0},{"$f":"'Population at Risk'!AV235/'Population at Risk'!AV$5","v":6.0229508634614664E-3},{"$f":"'Population at Risk'!AW235/'Population at Risk'!AW$5","v":4.8442414541775116E-3},{"$f":"'Population at Risk'!AX235/'Population at Risk'!AX$5","v":1.5800362877375292E-2},{"$f":"'Population at Risk'!AY235/'Population at Risk'!AY$5","v":8.8830307578746624E-3},{"$f":"'Population at Risk'!AZ235/'Population at Risk'!AZ$5","v":5.7390858197844752E-3},{"$f":"'Population at Risk'!BA235/'Population at Risk'!BA$5","v":2.0822779367754771E-3},{"$f":"'Population at Risk'!BB235/'Population at Risk'!BB$5","v":7.1264664217526785E-3},{"$f":"'Population at Risk'!BC235/'Population at Risk'!BC$5","v":0},233]
[null,"Male 25-29",{"$f":"'Population at Risk'!C236/'Population at Risk'!C$5","v":2.2499213808303678E-2},{"$f":"'Population at Risk'!D236/'Population at Risk'!D$5","v":1.5923973663553744E-2},{"$f":"'Population at Risk'!E236/'Population at Risk'!E$5","v":1.0200503064008331E-2},{"$f":"'Population at Risk'!F236/'Population at Risk'!F$5","v":4.617696143580677E-3},{"$f":"'Population at Risk'!G236/'Population at Risk'!G$5","v":9.4187308677040164E-3},{"$f":"'Population at Risk'!H236/'Population at Risk'!H$5","v":3.3031896087434248E-3},{"$f":"'Population at Risk'!I236/'Population at Risk'!I$5","v":1.8806693191454687E-3},{"$f":"'Population at Risk'!J236/'Population at Risk'!J$5","v":6.0826935658477663E-3},{"$f":"'Population at Risk'!K236/'Population at Risk'!K$5","v":3.1918735763486581E-3},{"$f":"'Population at Risk'!L236/'Population at Risk'!L$5","v":2.2559515929377765E-3},{"$f":"'Population at Risk'!M236/'Population at Risk'!M$5","v":2.2857327666877402E-3},{"$f":"'Population at Risk'!N236/'Population at Risk'!N$5","v":6.2073845170395915E-3},{"$f":"'Population at Risk'!O236/'Population at Risk'!O$5","v":3.8288913140379242E-3},{"$f":"'Population at Risk'!P236/'Population at Risk'!P$5","v":1.6335095624237402E-2},{"$f":"'Population at Risk'!Q236/'Population at Risk'!Q$5","v":4.0623825318684718E-3},{"$f":"'Population at Risk'!R236/'Population at Risk'!R$5","v":1.5749731288935191E-2},{"$f":"'Population at Risk'!S236/'Population at Risk'!S$5","v":1.1671013911069556E-2},{"$f":"'Population at Risk'!T236/'Population at Risk'!T$5","v":2.1531119454012135E-2},{"$f":"'Population at Risk'!U236/'Population at Risk'!U$5","v":0},{"$f":"'Population at Risk'!V236/'Population at Risk'!V$5","v":6.2312483173063149E-3},{"$f":"'Population at Risk'!W236/'Population at Risk'!W$5","v":7.0140215122831504E-3},{"$f":"'Population at Risk'!X236/'Population at Risk'!X$5","v":6.9190278521541453E-3},{"$f":"'Population at Risk'!Y236/'Population at Risk'!Y$5","v":6.7632484198705267E-3},{"$f":"'Population at Risk'!Z236/'Population at Risk'!Z$5","v":7.2584271225811748E-3},{"$f":"'Population at Risk'!AA236/'Population at Risk'!AA$5","v":6.1323520580145062E-3},{"$f":"'Population at Risk'!AB236/'Population at Risk'!AB$5","v":1.4588134948941669E-2},{"$f":"'Population at Risk'!AC236/'Population at Risk'!AC$5","v":7.8793745220541653E-3},{"$f":"'Population at Risk'!AD236/'Population at Risk'!AD$5","v":4.3815443708137758E-3},{"$f":"'Population at Risk'!AE236/'Population at Risk'!AE$5","v":2.7610718000536045E-3},{"$f":"'Population at Risk'!AF236/'Population at Risk'!AF$5","v":3.1962431475096951E-3},{"$f":"'Population at Risk'!AG236/'Population at Risk'!AG$5","v":2.5663107810292816E-3},{"$f":"'Population at Risk'!AH236/'Population at Risk'!AH$5","v":3.2544780583838332E-3},{"$f":"'Population at Risk'!AI236/'Population at Risk'!AI$5","v":1.4744969693292302E-2},{"$f":"'Population at Risk'!AJ236/'Population at Risk'!AJ$5","v":5.4510877491695279E-3},{"$f":"'Population at Risk'!AK236/'Population at Risk'!AK$5","v":8.9323812434267229E-3},{"$f":"'Population at Risk'!AL236/'Population at Risk'!AL$5","v":2.1953358852701368E-3},{"$f":"'Population at Risk'!AM236/'Population at Risk'!AM$5","v":2.8884027178888937E-3},{"$f":"'Population at Risk'!AN236/'Population at Risk'!AN$5","v":2.4761300582384423E-3},{"$f":"'Population at Risk'!AO236/'Population at Risk'!AO$5","v":2.4761300582384423E-3},{"$f":"'Population at Risk'!AP236/'Population at Risk'!AP$5","v":4.1962817192953122E-3},{"$f":"'Population at Risk'!AQ236/'Population at Risk'!AQ$5","v":5.0118559685474748E-3},{"$f":"'Population at Risk'!AR236/'Population at Risk'!AR$5","v":8.0413489951629228E-3},{"$f":"'Population at Risk'!AS236/'Population at Risk'!AS$5","v":1.8806693191454687E-3},{"$f":"'Population at Risk'!AT236/'Population at Risk'!AT$5","v":0},{"$f":"'Population at Risk'!AU236/'Population at Risk'!AU$5","v":0},{"$f":"'Population at Risk'!AV236/'Population at Risk'!AV$5","v":3.9476405595092346E-3},{"$f":"'Population at Risk'!AW236/'Population at Risk'!AW$5","v":3.5330543550850853E-3},{"$f":"'Population at Risk'!AX236/'Population at Risk'!AX$5","v":7.8267822109409583E-3},{"$f":"'Population at Risk'!AY236/'Population at Risk'!AY$5","v":5.8468037461266043E-3},{"$f":"'Population at Risk'!AZ236/'Population at Risk'!AZ$5","v":4.8462700729332217E-3},{"$f":"'Population at Risk'!BA236/'Population at Risk'!BA$5","v":1.3911668290135051E-3},{"$f":"'Population at Risk'!BB236/'Population at Risk'!BB$5","v":6.2407347427889046E-3},{"$f":"'Population at Risk'!BC236/'Population at Risk'!BC$5","v":0},234]
[null,"Male 30-34",{"$f":"'Population at Risk'!C237/'Population at Risk'!C$5","v":1.9471734937484615E-2},{"$f":"'Population at Risk'!D237/'Population at Risk'!D$5","v":1.5416540087495633E-2},{"$f":"'Population at Risk'!E237/'Population at Risk'!E$5","v":1.1916933868048193E-2},{"$f":"'Population at Risk'!F237/'Population at Risk'!F$5","v":5.2019302055422217E-3},{"$f":"'Population at Risk'!G237/'Population at Risk'!G$5","v":4.4387122479984447E-3},{"$f":"'Population at Risk'!H237/'Population at Risk'!H$5","v":2.9844936760042755E-3},{"$f":"'Population at Risk'!I237/'Population at Risk'!I$5","v":2.0959266508548901E-3},{"$f":"'Population at Risk'!J237/'Population at Risk'!J$5","v":5.0259544294081124E-3},{"$f":"'Population at Risk'!K237/'Population at Risk'!K$5","v":3.2751398435577534E-3},{"$f":"'Population at Risk'!L237/'Population at Risk'!L$5","v":2.6103347933609522E-3},{"$f":"'Population at Risk'!M237/'Population at Risk'!M$5","v":2.6447942357842816E-3},{"$f":"'Population at Risk'!N237/'Population at Risk'!N$5","v":4.2789570604126253E-3},{"$f":"'Population at Risk'!O237/'Population at Risk'!O$5","v":4.1041710817138538E-3},{"$f":"'Population at Risk'!P237/'Population at Risk'!P$5","v":1.3793303442878548E-2},{"$f":"'Population at Risk'!Q237/'Population at Risk'!Q$5","v":4.4176929573963263E-3},{"$f":"'Population at Risk'!R237/'Population at Risk'!R$5","v":1.2832607145854151E-2},{"$f":"'Population at Risk'!S237/'Population at Risk'!S$5","v":9.9213844558654046E-3},{"$f":"'Population at Risk'!T237/'Population at Risk'!T$5","v":1.7105251212957008E-2},{"$f":"'Population at Risk'!U237/'Population at Risk'!U$5","v":0},{"$f":"'Population at Risk'!V237/'Population at Risk'!V$5","v":7.4134312906018835E-3},{"$f":"'Population at Risk'!W237/'Population at Risk'!W$5","v":6.8485300408587992E-3},{"$f":"'Population at Risk'!X237/'Population at Risk'!X$5","v":6.7557776970079385E-3},{"$f":"'Population at Risk'!Y237/'Population at Risk'!Y$5","v":6.9051657637628928E-3},{"$f":"'Population at Risk'!Z237/'Population at Risk'!Z$5","v":5.6664948613730027E-3},{"$f":"'Population at Risk'!AA237/'Population at Risk'!AA$5","v":5.160624261023164E-3},{"$f":"'Population at Risk'!AB237/'Population at Risk'!AB$5","v":1.3860781216063194E-2},{"$f":"'Population at Risk'!AC237/'Population at Risk'!AC$5","v":6.4452100774366273E-3},{"$f":"'Population at Risk'!AD237/'Population at Risk'!AD$5","v":3.1818797368504425E-3},{"$f":"'Population at Risk'!AE237/'Population at Risk'!AE$5","v":3.0028764587141034E-3},{"$f":"'Population at Risk'!AF237/'Population at Risk'!AF$5","v":3.0509593680774359E-3},{"$f":"'Population at Risk'!AG237/'Population at Risk'!AG$5","v":2.7910589757019072E-3},{"$f":"'Population at Risk'!AH237/'Population at Risk'!AH$5","v":3.0434877998655472E-3},{"$f":"'Population at Risk'!AI237/'Population at Risk'!AI$5","v":1.2115383909205737E-2},{"$f":"'Population at Risk'!AJ237/'Population at Risk'!AJ$5","v":5.5380731919754253E-3},{"$f":"'Population at Risk'!AK237/'Population at Risk'!AK$5","v":6.9682581969029199E-3},{"$f":"'Population at Risk'!AL237/'Population at Risk'!AL$5","v":2.0400055160293257E-3},{"$f":"'Population at Risk'!AM237/'Population at Risk'!AM$5","v":2.5584054882456181E-3},{"$f":"'Population at Risk'!AN237/'Population at Risk'!AN$5","v":2.2560296086172474E-3},{"$f":"'Population at Risk'!AO237/'Population at Risk'!AO$5","v":2.2560296086172474E-3},{"$f":"'Population at Risk'!AP237/'Population at Risk'!AP$5","v":4.4634607051680479E-3},{"$f":"'Population at Risk'!AQ237/'Population at Risk'!AQ$5","v":4.4668000144083599E-3},{"$f":"'Population at Risk'!AR237/'Population at Risk'!AR$5","v":7.0758241274823334E-3},{"$f":"'Population at Risk'!AS237/'Population at Risk'!AS$5","v":2.0959266508548901E-3},{"$f":"'Population at Risk'!AT237/'Population at Risk'!AT$5","v":0},{"$f":"'Population at Risk'!AU237/'Population at Risk'!AU$5","v":0},{"$f":"'Population at Risk'!AV237/'Population at Risk'!AV$5","v":2.9471366160523484E-3},{"$f":"'Population at Risk'!AW237/'Population at Risk'!AW$5","v":3.4450944956223857E-3},{"$f":"'Population at Risk'!AX237/'Population at Risk'!AX$5","v":6.1637559738776174E-3},{"$f":"'Population at Risk'!AY237/'Population at Risk'!AY$5","v":5.5391606957472823E-3},{"$f":"'Population at Risk'!AZ237/'Population at Risk'!AZ$5","v":4.4259740843071542E-3},{"$f":"'Population at Risk'!BA237/'Population at Risk'!BA$5","v":1.2701958004036349E-3},{"$f":"'Population at Risk'!BB237/'Population at Risk'!BB$5","v":5.7099310587120835E-3},{"$f":"'Population at Risk'!BC237/'Population at Risk'!BC$5","v":0},235]
[null,"Male 35-39",{"$f":"'Population at Risk'!C238/'Population at Risk'!C$5","v":1.803245420472151E-2},{"$f":"'Population at Risk'!D238/'Population at Risk'!D$5","v":1.6429674589019734E-2},{"$f":"'Population at Risk'!E238/'Population at Risk'!E$5","v":1.5102403400901326E-2},{"$f":"'Population at Risk'!F238/'Population at Risk'!F$5","v":6.1914522198938332E-3},{"$f":"'Population at Risk'!G238/'Population at Risk'!G$5","v":4.3884976456883065E-3},{"$f":"'Population at Risk'!H238/'Population at Risk'!H$5","v":4.469176447618595E-3},{"$f":"'Population at Risk'!I238/'Population at Risk'!I$5","v":3.3512677444895978E-3},{"$f":"'Population at Risk'!J238/'Population at Risk'!J$5","v":6.8052171607402706E-3},{"$f":"'Population at Risk'!K238/'Population at Risk'!K$5","v":4.5612104534777341E-3},{"$f":"'Population at Risk'!L238/'Population at Risk'!L$5","v":3.0586712595975876E-3},{"$f":"'Population at Risk'!M238/'Population at Risk'!M$5","v":3.0990492626146973E-3},{"$f":"'Population at Risk'!N238/'Population at Risk'!N$5","v":5.1050122772129235E-3},{"$f":"'Population at Risk'!O238/'Population at Risk'!O$5","v":5.2640965650341699E-3},{"$f":"'Population at Risk'!P238/'Population at Risk'!P$5","v":1.7960146601590427E-2},{"$f":"'Population at Risk'!Q238/'Population at Risk'!Q$5","v":5.839023465808414E-3},{"$f":"'Population at Risk'!R238/'Population at Risk'!R$5","v":2.1216108534913392E-2},{"$f":"'Population at Risk'!S238/'Population at Risk'!S$5","v":1.1042740743633482E-2},{"$f":"'Population at Risk'!T238/'Population at Risk'!T$5","v":1.7661033835547554E-2},{"$f":"'Population at Risk'!U238/'Population at Risk'!U$5","v":0},{"$f":"'Population at Risk'!V238/'Population at Risk'!V$5","v":8.8990494571411956E-3},{"$f":"'Population at Risk'!W238/'Population at Risk'!W$5","v":8.1627112440631529E-3},{"$f":"'Population at Risk'!X238/'Population at Risk'!X$5","v":8.052160425778403E-3},{"$f":"'Population at Risk'!Y238/'Population at Risk'!Y$5","v":8.6874840707450753E-3},{"$f":"'Population at Risk'!Z238/'Population at Risk'!Z$5","v":5.2656325668894582E-3},{"$f":"'Population at Risk'!AA238/'Population at Risk'!AA$5","v":6.4007597501867346E-3},{"$f":"'Population at Risk'!AB238/'Population at Risk'!AB$5","v":1.4619967212357227E-2},{"$f":"'Population at Risk'!AC238/'Population at Risk'!AC$5","v":7.604457649235394E-3},{"$f":"'Population at Risk'!AD238/'Population at Risk'!AD$5","v":4.0561913904287291E-3},{"$f":"'Population at Risk'!AE238/'Population at Risk'!AE$5","v":4.3556866895319846E-3},{"$f":"'Population at Risk'!AF238/'Population at Risk'!AF$5","v":3.3071754620412667E-3},{"$f":"'Population at Risk'!AG238/'Population at Risk'!AG$5","v":4.048444415648539E-3},{"$f":"'Population at Risk'!AH238/'Population at Risk'!AH$5","v":4.4144480659648712E-3},{"$f":"'Population at Risk'!AI238/'Population at Risk'!AI$5","v":1.3139643991030341E-2},{"$f":"'Population at Risk'!AJ238/'Population at Risk'!AJ$5","v":6.84563294693585E-3},{"$f":"'Population at Risk'!AK238/'Population at Risk'!AK$5","v":6.4555159288386911E-3},{"$f":"'Population at Risk'!AL238/'Population at Risk'!AL$5","v":3.1879569366328902E-3},{"$f":"'Population at Risk'!AM238/'Population at Risk'!AM$5","v":3.7209751679736633E-3},{"$f":"'Population at Risk'!AN238/'Population at Risk'!AN$5","v":3.6773230518119468E-3},{"$f":"'Population at Risk'!AO238/'Population at Risk'!AO$5","v":3.6773230518119468E-3},{"$f":"'Population at Risk'!AP238/'Population at Risk'!AP$5","v":5.6648743892313879E-3},{"$f":"'Population at Risk'!AQ238/'Population at Risk'!AQ$5","v":5.8404003037519298E-3},{"$f":"'Population at Risk'!AR238/'Population at Risk'!AR$5","v":8.202079175014601E-3},{"$f":"'Population at Risk'!AS238/'Population at Risk'!AS$5","v":3.3512677444895978E-3},{"$f":"'Population at Risk'!AT238/'Population at Risk'!AT$5","v":0},{"$f":"'Population at Risk'!AU238/'Population at Risk'!AU$5","v":0},{"$f":"'Population at Risk'!AV238/'Population at Risk'!AV$5","v":5.039789014540913E-3},{"$f":"'Population at Risk'!AW238/'Population at Risk'!AW$5","v":4.9869600794198556E-3},{"$f":"'Population at Risk'!AX238/'Population at Risk'!AX$5","v":8.2856043002263371E-3},{"$f":"'Population at Risk'!AY238/'Population at Risk'!AY$5","v":6.6714097311433304E-3},{"$f":"'Population at Risk'!AZ238/'Population at Risk'!AZ$5","v":5.4002788107118784E-3},{"$f":"'Population at Risk'!BA238/'Population at Risk'!BA$5","v":1.4412909174359757E-3},{"$f":"'Population at Risk'!BB238/'Population at Risk'!BB$5","v":7.8590135149591376E-3},{"$f":"'Population at Risk'!BC238/'Population at Risk'!BC$5","v":0},236]
[null,"Male 40-44",{"$f":"'Population at Risk'!C239/'Population at Risk'!C$5","v":1.6357459224945109E-2},{"$f":"'Population at Risk'!D239/'Population at Risk'!D$5","v":1.6540860614724463E-2},{"$f":"'Population at Risk'!E239/'Population at Risk'!E$5","v":1.679238774007075E-2},{"$f":"'Population at Risk'!F239/'Population at Risk'!F$5","v":8.0501187908758789E-3},{"$f":"'Population at Risk'!G239/'Population at Risk'!G$5","v":5.0853199069969225E-3},{"$f":"'Population at Risk'!H239/'Population at Risk'!H$5","v":5.8329324959727992E-3},{"$f":"'Population at Risk'!I239/'Population at Risk'!I$5","v":4.6545385340133298E-3},{"$f":"'Population at Risk'!J239/'Population at Risk'!J$5","v":9.52542153066273E-3},{"$f":"'Population at Risk'!K239/'Population at Risk'!K$5","v":6.4465107742485307E-3},{"$f":"'Population at Risk'!L239/'Population at Risk'!L$5","v":3.3238192325657991E-3},{"$f":"'Population at Risk'!M239/'Population at Risk'!M$5","v":3.3676974959063735E-3},{"$f":"'Population at Risk'!N239/'Population at Risk'!N$5","v":5.1322148293117499E-3},{"$f":"'Population at Risk'!O239/'Population at Risk'!O$5","v":6.6075378759022658E-3},{"$f":"'Population at Risk'!P239/'Population at Risk'!P$5","v":2.2162769810639679E-2},{"$f":"'Population at Risk'!Q239/'Population at Risk'!Q$5","v":7.9280963057976467E-3},{"$f":"'Population at Risk'!R239/'Population at Risk'!R$5","v":2.5897456387030067E-2},{"$f":"'Population at Risk'!S239/'Population at Risk'!S$5","v":1.2039867029191239E-2},{"$f":"'Population at Risk'!T239/'Population at Risk'!T$5","v":1.745855403897166E-2},{"$f":"'Population at Risk'!U239/'Population at Risk'!U$5","v":0},{"$f":"'Population at Risk'!V239/'Population at Risk'!V$5","v":1.0152436704625871E-2},{"$f":"'Population at Risk'!W239/'Population at Risk'!W$5","v":9.9526441444626364E-3},{"$f":"'Population at Risk'!X239/'Population at Risk'!X$5","v":9.817851558841342E-3},{"$f":"'Population at Risk'!Y239/'Population at Risk'!Y$5","v":1.0820484913618166E-2},{"$f":"'Population at Risk'!Z239/'Population at Risk'!Z$5","v":4.7574405701756133E-3},{"$f":"'Population at Risk'!AA239/'Population at Risk'!AA$5","v":7.2065689912222267E-3},{"$f":"'Population at Risk'!AB239/'Population at Risk'!AB$5","v":1.4939143053330299E-2},{"$f":"'Population at Risk'!AC239/'Population at Risk'!AC$5","v":8.3906960199821648E-3},{"$f":"'Population at Risk'!AD239/'Population at Risk'!AD$5","v":4.1936894036636013E-3},{"$f":"'Population at Risk'!AE239/'Population at Risk'!AE$5","v":4.2755962694981569E-3},{"$f":"'Population at Risk'!AF239/'Population at Risk'!AF$5","v":4.3329304181824084E-3},{"$f":"'Population at Risk'!AG239/'Population at Risk'!AG$5","v":3.9740034292221858E-3},{"$f":"'Population at Risk'!AH239/'Population at Risk'!AH$5","v":5.2511066660481118E-3},{"$f":"'Population at Risk'!AI239/'Population at Risk'!AI$5","v":1.3776736474039146E-2},{"$f":"'Population at Risk'!AJ239/'Population at Risk'!AJ$5","v":7.5286079277206326E-3},{"$f":"'Population at Risk'!AK239/'Population at Risk'!AK$5","v":7.9083496622928354E-3},{"$f":"'Population at Risk'!AL239/'Population at Risk'!AL$5","v":3.9934549526504538E-3},{"$f":"'Population at Risk'!AM239/'Population at Risk'!AM$5","v":4.3668649624145064E-3},{"$f":"'Population at Risk'!AN239/'Population at Risk'!AN$5","v":2.7730632849729429E-3},{"$f":"'Population at Risk'!AO239/'Population at Risk'!AO$5","v":2.7730632849729429E-3},{"$f":"'Population at Risk'!AP239/'Population at Risk'!AP$5","v":6.1642098217168304E-3},{"$f":"'Population at Risk'!AQ239/'Population at Risk'!AQ$5","v":6.8453569644972741E-3},{"$f":"'Population at Risk'!AR239/'Population at Risk'!AR$5","v":9.0239575770730916E-3},{"$f":"'Population at Risk'!AS239/'Population at Risk'!AS$5","v":4.6545385340133298E-3},{"$f":"'Population at Risk'!AT239/'Population at Risk'!AT$5","v":0},{"$f":"'Population at Risk'!AU239/'Population at Risk'!AU$5","v":0},{"$f":"'Population at Risk'!AV239/'Population at Risk'!AV$5","v":6.9818353723900108E-3},{"$f":"'Population at Risk'!AW239/'Population at Risk'!AW$5","v":5.9907765205269112E-3},{"$f":"'Population at Risk'!AX239/'Population at Risk'!AX$5","v":1.1568033927017574E-2},{"$f":"'Population at Risk'!AY239/'Population at Risk'!AY$5","v":7.8458558192300212E-3},{"$f":"'Population at Risk'!AZ239/'Population at Risk'!AZ$5","v":6.0643502189896724E-3},{"$f":"'Population at Risk'!BA239/'Population at Risk'!BA$5","v":1.5572568533216292E-3},{"$f":"'Population at Risk'!BB239/'Population at Risk'!BB$5","v":1.0201763843942729E-2},{"$f":"'Population at Risk'!BC239/'Population at Risk'!BC$5","v":0},237]
[null,"Male 45-49",{"$f":"'Population at Risk'!C240/'Population at Risk'!C$5","v":1.6236673432354493E-2},{"$f":"'Population at Risk'!D240/'Population at Risk'!D$5","v":1.6713324765280296E-2},{"$f":"'Population at Risk'!E240/'Population at Risk'!E$5","v":1.7224888583315591E-2},{"$f":"'Population at Risk'!F240/'Population at Risk'!F$5","v":8.7446730683215495E-3},{"$f":"'Population at Risk'!G240/'Population at Risk'!G$5","v":4.2306197809068736E-3},{"$f":"'Population at Risk'!H240/'Population at Risk'!H$5","v":7.0853671790704177E-3},{"$f":"'Population at Risk'!I240/'Population at Risk'!I$5","v":6.1187812523994739E-3},{"$f":"'Population at Risk'!J240/'Population at Risk'!J$5","v":1.2012281648304233E-2},{"$f":"'Population at Risk'!K240/'Population at Risk'!K$5","v":9.0061087462928978E-3},{"$f":"'Population at Risk'!L240/'Population at Risk'!L$5","v":4.4166243325849961E-3},{"$f":"'Population at Risk'!M240/'Population at Risk'!M$5","v":4.4749288888745855E-3},{"$f":"'Population at Risk'!N240/'Population at Risk'!N$5","v":6.9860549480388187E-3},{"$f":"'Population at Risk'!O240/'Population at Risk'!O$5","v":7.8370134943093403E-3},{"$f":"'Population at Risk'!P240/'Population at Risk'!P$5","v":2.5754217208355145E-2},{"$f":"'Population at Risk'!Q240/'Population at Risk'!Q$5","v":8.6436707304084152E-3},{"$f":"'Population at Risk'!R240/'Population at Risk'!R$5","v":2.9365198523473982E-2},{"$f":"'Population at Risk'!S240/'Population at Risk'!S$5","v":1.2960298618741695E-2},{"$f":"'Population at Risk'!T240/'Population at Risk'!T$5","v":1.7996600841205447E-2},{"$f":"'Population at Risk'!U240/'Population at Risk'!U$5","v":0},{"$f":"'Population at Risk'!V240/'Population at Risk'!V$5","v":1.083655556038657E-2},{"$f":"'Population at Risk'!W240/'Population at Risk'!W$5","v":1.0761025799074009E-2},{"$f":"'Population at Risk'!X240/'Population at Risk'!X$5","v":1.0615284981825799E-2},{"$f":"'Population at Risk'!Y240/'Population at Risk'!Y$5","v":1.2502015677050182E-2},{"$f":"'Population at Risk'!Z240/'Population at Risk'!Z$5","v":4.8478604852897787E-3},{"$f":"'Population at Risk'!AA240/'Population at Risk'!AA$5","v":8.2033834977383834E-3},{"$f":"'Population at Risk'!AB240/'Population at Risk'!AB$5","v":1.5251906711880639E-2},{"$f":"'Population at Risk'!AC240/'Population at Risk'!AC$5","v":9.5190200472183243E-3},{"$f":"'Population at Risk'!AD240/'Population at Risk'!AD$5","v":4.5562215272500076E-3},{"$f":"'Population at Risk'!AE240/'Population at Risk'!AE$5","v":5.1830473082081895E-3},{"$f":"'Population at Risk'!AF240/'Population at Risk'!AF$5","v":5.0291583749049809E-3},{"$f":"'Population at Risk'!AG240/'Population at Risk'!AG$5","v":4.8174445102735965E-3},{"$f":"'Population at Risk'!AH240/'Population at Risk'!AH$5","v":6.0304347084206393E-3},{"$f":"'Population at Risk'!AI240/'Population at Risk'!AI$5","v":1.4672046766438645E-2},{"$f":"'Population at Risk'!AJ240/'Population at Risk'!AJ$5","v":9.0645483893589968E-3},{"$f":"'Population at Risk'!AK240/'Population at Risk'!AK$5","v":8.9953428960287685E-3},{"$f":"'Population at Risk'!AL240/'Population at Risk'!AL$5","v":5.2801846011107535E-3},{"$f":"'Population at Risk'!AM240/'Population at Risk'!AM$5","v":4.9763679990017465E-3},{"$f":"'Population at Risk'!AN240/'Population at Risk'!AN$5","v":4.0335988175635362E-3},{"$f":"'Population at Risk'!AO240/'Population at Risk'!AO$5","v":4.0335988175635362E-3},{"$f":"'Population at Risk'!AP240/'Population at Risk'!AP$5","v":7.3784371953086883E-3},{"$f":"'Population at Risk'!AQ240/'Population at Risk'!AQ$5","v":8.6488299014557297E-3},{"$f":"'Population at Risk'!AR240/'Population at Risk'!AR$5","v":9.9530229003311627E-3},{"$f":"'Population at Risk'!AS240/'Population at Risk'!AS$5","v":6.1187812523994739E-3},{"$f":"'Population at Risk'!AT240/'Population at Risk'!AT$5","v":0},{"$f":"'Population at Risk'!AU240/'Population at Risk'!AU$5","v":0},{"$f":"'Population at Risk'!AV240/'Population at Risk'!AV$5","v":8.1946612044392457E-3},{"$f":"'Population at Risk'!AW240/'Population at Risk'!AW$5","v":6.9180274526243306E-3},{"$f":"'Population at Risk'!AX240/'Population at Risk'!AX$5","v":1.4171334336382421E-2},{"$f":"'Population at Risk'!AY240/'Population at Risk'!AY$5","v":8.9081865258786256E-3},{"$f":"'Population at Risk'!AZ240/'Population at Risk'!AZ$5","v":7.3233062574227159E-3},{"$f":"'Population at Risk'!BA240/'Population at Risk'!BA$5","v":2.6896649315320139E-3},{"$f":"'Population at Risk'!BB240/'Population at Risk'!BB$5","v":1.2049144754167152E-2},{"$f":"'Population at Risk'!BC240/'Population at Risk'!BC$5","v":0},238]
[null,"Male 50-54",{"$f":"'Population at Risk'!C241/'Population at Risk'!C$5","v":1.6584796413818711E-2},{"$f":"'Population at Risk'!D241/'Population at Risk'!D$5","v":1.6631908051550813E-2},{"$f":"'Population at Risk'!E241/'Population at Risk'!E$5","v":1.6763507639119636E-2},{"$f":"'Population at Risk'!F241/'Population at Risk'!F$5","v":1.0307086954489805E-2},{"$f":"'Population at Risk'!G241/'Population at Risk'!G$5","v":4.6390934149254694E-3},{"$f":"'Population at Risk'!H241/'Population at Risk'!H$5","v":7.7199379988730742E-3},{"$f":"'Population at Risk'!I241/'Population at Risk'!I$5","v":5.0562384001863921E-3},{"$f":"'Population at Risk'!J241/'Population at Risk'!J$5","v":1.1576986939383416E-2},{"$f":"'Population at Risk'!K241/'Population at Risk'!K$5","v":8.6470612215237431E-3},{"$f":"'Population at Risk'!L241/'Population at Risk'!L$5","v":5.1434106151622737E-3},{"$f":"'Population at Risk'!M241/'Population at Risk'!M$5","v":5.2113095921071124E-3},{"$f":"'Population at Risk'!N241/'Population at Risk'!N$5","v":6.8968333011928569E-3},{"$f":"'Population at Risk'!O241/'Population at Risk'!O$5","v":7.1625717133877104E-3},{"$f":"'Population at Risk'!P241/'Population at Risk'!P$5","v":2.8745678260374923E-2},{"$f":"'Population at Risk'!Q241/'Population at Risk'!Q$5","v":9.9715019799837094E-3},{"$f":"'Population at Risk'!R241/'Population at Risk'!R$5","v":2.8686063715992933E-2},{"$f":"'Population at Risk'!S241/'Population at Risk'!S$5","v":1.2635589621488967E-2},{"$f":"'Population at Risk'!T241/'Population at Risk'!T$5","v":1.7836689311516656E-2},{"$f":"'Population at Risk'!U241/'Population at Risk'!U$5","v":0},{"$f":"'Population at Risk'!V241/'Population at Risk'!V$5","v":1.0524120726323832E-2},{"$f":"'Population at Risk'!W241/'Population at Risk'!W$5","v":1.0081581842095438E-2},{"$f":"'Population at Risk'!X241/'Population at Risk'!X$5","v":9.9450430023736575E-3},{"$f":"'Population at Risk'!Y241/'Population at Risk'!Y$5","v":1.209564040647685E-2},{"$f":"'Population at Risk'!Z241/'Population at Risk'!Z$5","v":4.768040990616727E-3},{"$f":"'Population at Risk'!AA241/'Population at Risk'!AA$5","v":8.6669204091347537E-3},{"$f":"'Population at Risk'!AB241/'Population at Risk'!AB$5","v":1.5026374094665156E-2},{"$f":"'Population at Risk'!AC241/'Population at Risk'!AC$5","v":1.0097713692541232E-2},{"$f":"'Population at Risk'!AD241/'Population at Risk'!AD$5","v":4.6557023466222789E-3},{"$f":"'Population at Risk'!AE241/'Population at Risk'!AE$5","v":5.1648611773021961E-3},{"$f":"'Population at Risk'!AF241/'Population at Risk'!AF$5","v":7.4480269358454393E-3},{"$f":"'Population at Risk'!AG241/'Population at Risk'!AG$5","v":4.8005411962024607E-3},{"$f":"'Population at Risk'!AH241/'Population at Risk'!AH$5","v":6.3041794081353277E-3},{"$f":"'Population at Risk'!AI241/'Population at Risk'!AI$5","v":1.4583366200322193E-2},{"$f":"'Population at Risk'!AJ241/'Population at Risk'!AJ$5","v":8.3612644625983851E-3},{"$f":"'Population at Risk'!AK241/'Population at Risk'!AK$5","v":7.9838725553958486E-3},{"$f":"'Population at Risk'!AL241/'Population at Risk'!AL$5","v":5.860670011803691E-3},{"$f":"'Population at Risk'!AM241/'Population at Risk'!AM$5","v":5.3760762720139344E-3},{"$f":"'Population at Risk'!AN241/'Population at Risk'!AN$5","v":3.7370106692132762E-3},{"$f":"'Population at Risk'!AO241/'Population at Risk'!AO$5","v":3.7370106692132762E-3},{"$f":"'Population at Risk'!AP241/'Population at Risk'!AP$5","v":9.2336355257020327E-3},{"$f":"'Population at Risk'!AQ241/'Population at Risk'!AQ$5","v":9.8239816030619778E-3},{"$f":"'Population at Risk'!AR241/'Population at Risk'!AR$5","v":1.0126244290273154E-2},{"$f":"'Population at Risk'!AS241/'Population at Risk'!AS$5","v":5.0562384001863921E-3},{"$f":"'Population at Risk'!AT241/'Population at Risk'!AT$5","v":0},{"$f":"'Population at Risk'!AU241/'Population at Risk'!AU$5","v":0},{"$f":"'Population at Risk'!AV241/'Population at Risk'!AV$5","v":1.001178922545224E-2},{"$f":"'Population at Risk'!AW241/'Population at Risk'!AW$5","v":7.0602598845457901E-3},{"$f":"'Population at Risk'!AX241/'Population at Risk'!AX$5","v":1.3673345679983439E-2},{"$f":"'Population at Risk'!AY241/'Population at Risk'!AY$5","v":9.1799964774454453E-3},{"$f":"'Population at Risk'!AZ241/'Population at Risk'!AZ$5","v":8.3650897233355434E-3},{"$f":"'Population at Risk'!BA241/'Population at Risk'!BA$5","v":2.8689759269674812E-3},{"$f":"'Population at Risk'!BB241/'Population at Risk'!BB$5","v":1.1591375346953203E-2},{"$f":"'Population at Risk'!BC241/'Population at Risk'!BC$5","v":0},239]
[null,"Male 55-59",{"$f":"'Population at Risk'!C242/'Population at Risk'!C$5","v":2.1241015342640116E-2},{"$f":"'Population at Risk'!D242/'Population at Risk'!D$5","v":2.0338997026409338E-2},{"$f":"'Population at Risk'!E242/'Population at Risk'!E$5","v":1.9652038266567334E-2},{"$f":"'Population at Risk'!F242/'Population at Risk'!F$5","v":1.215016344570197E-2},{"$f":"'Population at Risk'!G242/'Population at Risk'!G$5","v":5.4681021314437438E-3},{"$f":"'Population at Risk'!H242/'Population at Risk'!H$5","v":1.0687597779496485E-2},{"$f":"'Population at Risk'!I242/'Population at Risk'!I$5","v":5.8096578276542483E-3},{"$f":"'Population at Risk'!J242/'Population at Risk'!J$5","v":1.3444141168762551E-2},{"$f":"'Population at Risk'!K242/'Population at Risk'!K$5","v":9.8284641889106877E-3},{"$f":"'Population at Risk'!L242/'Population at Risk'!L$5","v":6.286591543788674E-3},{"$f":"'Population at Risk'!M242/'Population at Risk'!M$5","v":6.3695818329627509E-3},{"$f":"'Population at Risk'!N242/'Population at Risk'!N$5","v":9.9111892723984171E-3},{"$f":"'Population at Risk'!O242/'Population at Risk'!O$5","v":9.946485486410141E-3},{"$f":"'Population at Risk'!P242/'Population at Risk'!P$5","v":3.5719912063191132E-2},{"$f":"'Population at Risk'!Q242/'Population at Risk'!Q$5","v":1.0336985733964707E-2},{"$f":"'Population at Risk'!R242/'Population at Risk'!R$5","v":3.9401138551327569E-2},{"$f":"'Population at Risk'!S242/'Population at Risk'!S$5","v":1.5635111397189851E-2},{"$f":"'Population at Risk'!T242/'Population at Risk'!T$5","v":2.2421341775240723E-2},{"$f":"'Population at Risk'!U242/'Population at Risk'!U$5","v":0},{"$f":"'Population at Risk'!V242/'Population at Risk'!V$5","v":1.1878993453656953E-2},{"$f":"'Population at Risk'!W242/'Population at Risk'!W$5","v":1.3187679101269448E-2},{"$f":"'Population at Risk'!X242/'Population at Risk'!X$5","v":1.3009073161119064E-2},{"$f":"'Population at Risk'!Y242/'Population at Risk'!Y$5","v":1.3847303350269291E-2},{"$f":"'Population at Risk'!Z242/'Population at Risk'!Z$5","v":5.702111202081298E-3},{"$f":"'Population at Risk'!AA242/'Population at Risk'!AA$5","v":1.0903811681709482E-2},{"$f":"'Population at Risk'!AB242/'Population at Risk'!AB$5","v":1.8266024323091271E-2},{"$f":"'Population at Risk'!AC242/'Population at Risk'!AC$5","v":1.2778966478297188E-2},{"$f":"'Population at Risk'!AD242/'Population at Risk'!AD$5","v":5.6786349711300263E-3},{"$f":"'Population at Risk'!AE242/'Population at Risk'!AE$5","v":6.3787309519522731E-3},{"$f":"'Population at Risk'!AF242/'Population at Risk'!AF$5","v":9.0606375642258066E-3},{"$f":"'Population at Risk'!AG242/'Population at Risk'!AG$5","v":5.9287867888703511E-3},{"$f":"'Population at Risk'!AH242/'Population at Risk'!AH$5","v":7.8079969032224718E-3},{"$f":"'Population at Risk'!AI242/'Population at Risk'!AI$5","v":1.7814059674029142E-2},{"$f":"'Population at Risk'!AJ242/'Population at Risk'!AJ$5","v":9.9692378386533644E-3},{"$f":"'Population at Risk'!AK242/'Population at Risk'!AK$5","v":9.0622645117479934E-3},{"$f":"'Population at Risk'!AL242/'Population at Risk'!AL$5","v":7.0599865228995959E-3},{"$f":"'Population at Risk'!AM242/'Population at Risk'!AM$5","v":6.3524259854069271E-3},{"$f":"'Population at Risk'!AN242/'Population at Risk'!AN$5","v":5.9020729677565489E-3},{"$f":"'Population at Risk'!AO242/'Population at Risk'!AO$5","v":5.9020729677565489E-3},{"$f":"'Population at Risk'!AP242/'Population at Risk'!AP$5","v":1.0322423541215034E-2},{"$f":"'Population at Risk'!AQ242/'Population at Risk'!AQ$5","v":1.2686948086082854E-2},{"$f":"'Population at Risk'!AR242/'Population at Risk'!AR$5","v":1.255372652566495E-2},{"$f":"'Population at Risk'!AS242/'Population at Risk'!AS$5","v":5.8096578276542483E-3},{"$f":"'Population at Risk'!AT242/'Population at Risk'!AT$5","v":0},{"$f":"'Population at Risk'!AU242/'Population at Risk'!AU$5","v":0},{"$f":"'Population at Risk'!AV242/'Population at Risk'!AV$5","v":1.4940439187833329E-2},{"$f":"'Population at Risk'!AW242/'Population at Risk'!AW$5","v":9.0469740103294918E-3},{"$f":"'Population at Risk'!AX242/'Population at Risk'!AX$5","v":1.5979991481741878E-2},{"$f":"'Population at Risk'!AY242/'Population at Risk'!AY$5","v":1.1636294196803966E-2},{"$f":"'Population at Risk'!AZ242/'Population at Risk'!AZ$5","v":1.0271587016192168E-2},{"$f":"'Population at Risk'!BA242/'Population at Risk'!BA$5","v":3.1327899362184174E-3},{"$f":"'Population at Risk'!BB242/'Population at Risk'!BB$5","v":1.3492760371949922E-2},{"$f":"'Population at Risk'!BC242/'Population at Risk'!BC$5","v":0},240]
[null,"Male 60-64",{"$f":"'Population at Risk'!C243/'Population at Risk'!C$5","v":1.882406211342522E-2},{"$f":"'Population at Risk'!D243/'Population at Risk'!D$5","v":1.8331106271372504E-2},{"$f":"'Population at Risk'!E243/'Population at Risk'!E$5","v":1.7994716372753485E-2},{"$f":"'Population at Risk'!F243/'Population at Risk'!F$5","v":1.1275219610617454E-2},{"$f":"'Population at Risk'!G243/'Population at Risk'!G$5","v":4.513669759409927E-3},{"$f":"'Population at Risk'!H243/'Population at Risk'!H$5","v":1.0032018328073763E-2},{"$f":"'Population at Risk'!I243/'Population at Risk'!I$5","v":6.1259429242887199E-3},{"$f":"'Population at Risk'!J243/'Population at Risk'!J$5","v":1.2775090012007231E-2},{"$f":"'Population at Risk'!K243/'Population at Risk'!K$5","v":1.0970360443223961E-2},{"$f":"'Population at Risk'!L243/'Population at Risk'!L$5","v":5.9817871053019517E-3},{"$f":"'Population at Risk'!M243/'Population at Risk'!M$5","v":6.0607536228797082E-3},{"$f":"'Population at Risk'!N243/'Population at Risk'!N$5","v":8.0627220706750314E-3},{"$f":"'Population at Risk'!O243/'Population at Risk'!O$5","v":8.6227388043001053E-3},{"$f":"'Population at Risk'!P243/'Population at Risk'!P$5","v":3.1574003804537773E-2},{"$f":"'Population at Risk'!Q243/'Population at Risk'!Q$5","v":8.735971108502159E-3},{"$f":"'Population at Risk'!R243/'Population at Risk'!R$5","v":3.3344068733171493E-2},{"$f":"'Population at Risk'!S243/'Population at Risk'!S$5","v":1.3325223805660232E-2},{"$f":"'Population at Risk'!T243/'Population at Risk'!T$5","v":1.928771360999991E-2},{"$f":"'Population at Risk'!U243/'Population at Risk'!U$5","v":0},{"$f":"'Population at Risk'!V243/'Population at Risk'!V$5","v":9.6712937268924066E-3},{"$f":"'Population at Risk'!W243/'Population at Risk'!W$5","v":1.1351027049111484E-2},{"$f":"'Population at Risk'!X243/'Population at Risk'!X$5","v":1.1197295612198989E-2},{"$f":"'Population at Risk'!Y243/'Population at Risk'!Y$5","v":1.2218208838472903E-2},{"$f":"'Population at Risk'!Z243/'Population at Risk'!Z$5","v":5.0749429666110766E-3},{"$f":"'Population at Risk'!AA243/'Population at Risk'!AA$5","v":9.4438044947465702E-3},{"$f":"'Population at Risk'!AB243/'Population at Risk'!AB$5","v":1.6530780741595971E-2},{"$f":"'Population at Risk'!AC243/'Population at Risk'!AC$5","v":1.1032658126025633E-2},{"$f":"'Population at Risk'!AD243/'Population at Risk'!AD$5","v":5.0982969177289627E-3},{"$f":"'Population at Risk'!AE243/'Population at Risk'!AE$5","v":5.8912372652098061E-3},{"$f":"'Population at Risk'!AF243/'Population at Risk'!AF$5","v":7.5189060415172277E-3},{"$f":"'Population at Risk'!AG243/'Population at Risk'!AG$5","v":5.4756800265084978E-3},{"$f":"'Population at Risk'!AH243/'Population at Risk'!AH$5","v":6.8203374214374788E-3},{"$f":"'Population at Risk'!AI243/'Population at Risk'!AI$5","v":1.4990235287235799E-2},{"$f":"'Population at Risk'!AJ243/'Population at Risk'!AJ$5","v":8.3929053598919365E-3},{"$f":"'Population at Risk'!AK243/'Population at Risk'!AK$5","v":8.6027176298135097E-3},{"$f":"'Population at Risk'!AL243/'Population at Risk'!AL$5","v":7.212141404858638E-3},{"$f":"'Population at Risk'!AM243/'Population at Risk'!AM$5","v":5.2682640890981975E-3},{"$f":"'Population at Risk'!AN243/'Population at Risk'!AN$5","v":4.3659169898473101E-3},{"$f":"'Population at Risk'!AO243/'Population at Risk'!AO$5","v":4.3659169898473101E-3},{"$f":"'Population at Risk'!AP243/'Population at Risk'!AP$5","v":1.0357062546386896E-2},{"$f":"'Population at Risk'!AQ243/'Population at Risk'!AQ$5","v":1.035270590550256E-2},{"$f":"'Population at Risk'!AR243/'Population at Risk'!AR$5","v":1.1029921545983309E-2},{"$f":"'Population at Risk'!AS243/'Population at Risk'!AS$5","v":6.1259429242887199E-3},{"$f":"'Population at Risk'!AT243/'Population at Risk'!AT$5","v":0},{"$f":"'Population at Risk'!AU243/'Population at Risk'!AU$5","v":0},{"$f":"'Population at Risk'!AV243/'Population at Risk'!AV$5","v":1.4029631665152581E-2},{"$f":"'Population at Risk'!AW243/'Population at Risk'!AW$5","v":8.1799723343395827E-3},{"$f":"'Population at Risk'!AX243/'Population at Risk'!AX$5","v":1.4409142804531814E-2},{"$f":"'Population at Risk'!AY243/'Population at Risk'!AY$5","v":1.0338453614581336E-2},{"$f":"'Population at Risk'!AZ243/'Population at Risk'!AZ$5","v":9.4229732831570684E-3},{"$f":"'Population at Risk'!BA243/'Population at Risk'!BA$5","v":3.0883531995344678E-3},{"$f":"'Population at Risk'!BB243/'Population at Risk'!BB$5","v":1.0016508319061089E-2},{"$f":"'Population at Risk'!BC243/'Population at Risk'!BC$5","v":0},241]
[null,"Male 65-69",{"$f":"'Population at Risk'!C244/'Population at Risk'!C$5","v":1.5394070070126229E-2},{"$f":"'Population at Risk'!D244/'Population at Risk'!D$5","v":1.5408167198620832E-2},{"$f":"'Population at Risk'!E244/'Population at Risk'!E$5","v":1.5503976436640617E-2},{"$f":"'Population at Risk'!F244/'Population at Risk'!F$5","v":1.2443667037766821E-2},{"$f":"'Population at Risk'!G244/'Population at Risk'!G$5","v":4.4504687624282498E-3},{"$f":"'Population at Risk'!H244/'Population at Risk'!H$5","v":1.0312770347461668E-2},{"$f":"'Population at Risk'!I244/'Population at Risk'!I$5","v":6.2046407522234528E-3},{"$f":"'Population at Risk'!J244/'Population at Risk'!J$5","v":1.3076392454481644E-2},{"$f":"'Population at Risk'!K244/'Population at Risk'!K$5","v":1.1504160277713598E-2},{"$f":"'Population at Risk'!L244/'Population at Risk'!L$5","v":6.0140422311342904E-3},{"$f":"'Population at Risk'!M244/'Population at Risk'!M$5","v":6.0934345537292049E-3},{"$f":"'Population at Risk'!N244/'Population at Risk'!N$5","v":7.389584132281227E-3},{"$f":"'Population at Risk'!O244/'Population at Risk'!O$5","v":8.3661174699472835E-3},{"$f":"'Population at Risk'!P244/'Population at Risk'!P$5","v":2.918639225676067E-2},{"$f":"'Population at Risk'!Q244/'Population at Risk'!Q$5","v":8.1763156940817105E-3},{"$f":"'Population at Risk'!R244/'Population at Risk'!R$5","v":2.7749821565545511E-2},{"$f":"'Population at Risk'!S244/'Population at Risk'!S$5","v":1.2585783102333931E-2},{"$f":"'Population at Risk'!T244/'Population at Risk'!T$5","v":1.7782684694651739E-2},{"$f":"'Population at Risk'!U244/'Population at Risk'!U$5","v":0},{"$f":"'Population at Risk'!V244/'Population at Risk'!V$5","v":8.6856887756344529E-3},{"$f":"'Population at Risk'!W244/'Population at Risk'!W$5","v":1.1584566639431295E-2},{"$f":"'Population at Risk'!X244/'Population at Risk'!X$5","v":1.1427672283723832E-2},{"$f":"'Population at Risk'!Y244/'Population at Risk'!Y$5","v":1.1800636335503427E-2},{"$f":"'Population at Risk'!Z244/'Population at Risk'!Z$5","v":4.1669386377942595E-3},{"$f":"'Population at Risk'!AA244/'Population at Risk'!AA$5","v":8.0558763807039961E-3},{"$f":"'Population at Risk'!AB244/'Population at Risk'!AB$5","v":1.4010955274756667E-2},{"$f":"'Population at Risk'!AC244/'Population at Risk'!AC$5","v":9.6227726335056645E-3},{"$f":"'Population at Risk'!AD244/'Population at Risk'!AD$5","v":4.9611234044208757E-3},{"$f":"'Population at Risk'!AE244/'Population at Risk'!AE$5","v":5.7085269184482179E-3},{"$f":"'Population at Risk'!AF244/'Population at Risk'!AF$5","v":7.6999690476392832E-3},{"$f":"'Population at Risk'!AG244/'Population at Risk'!AG$5","v":5.3058577376818329E-3},{"$f":"'Population at Risk'!AH244/'Population at Risk'!AH$5","v":5.4706629753950263E-3},{"$f":"'Population at Risk'!AI244/'Population at Risk'!AI$5","v":1.375819309005623E-2},{"$f":"'Population at Risk'!AJ244/'Population at Risk'!AJ$5","v":8.3929023575009965E-3},{"$f":"'Population at Risk'!AK244/'Population at Risk'!AK$5","v":7.9735023237109109E-3},{"$f":"'Population at Risk'!AL244/'Population at Risk'!AL$5","v":7.1066305242704327E-3},{"$f":"'Population at Risk'!AM244/'Population at Risk'!AM$5","v":4.2426736040830203E-3},{"$f":"'Population at Risk'!AN244/'Population at Risk'!AN$5","v":4.7109525627954544E-3},{"$f":"'Population at Risk'!AO244/'Population at Risk'!AO$5","v":4.7109525627954544E-3},{"$f":"'Population at Risk'!AP244/'Population at Risk'!AP$5","v":1.1244987952069217E-2},{"$f":"'Population at Risk'!AQ244/'Population at Risk'!AQ$5","v":9.3672742499384259E-3},{"$f":"'Population at Risk'!AR244/'Population at Risk'!AR$5","v":1.0101600066872373E-2},{"$f":"'Population at Risk'!AS244/'Population at Risk'!AS$5","v":6.2046407522234528E-3},{"$f":"'Population at Risk'!AT244/'Population at Risk'!AT$5","v":0},{"$f":"'Population at Risk'!AU244/'Population at Risk'!AU$5","v":0},{"$f":"'Population at Risk'!AV244/'Population at Risk'!AV$5","v":1.5177794354756226E-2},{"$f":"'Population at Risk'!AW244/'Population at Risk'!AW$5","v":6.5444912827113564E-3},{"$f":"'Population at Risk'!AX244/'Population at Risk'!AX$5","v":1.4618183454896344E-2},{"$f":"'Population at Risk'!AY244/'Population at Risk'!AY$5","v":1.0658761246134818E-2},{"$f":"'Population at Risk'!AZ244/'Population at Risk'!AZ$5","v":9.8108477467008133E-3},{"$f":"'Population at Risk'!BA244/'Population at Risk'!BA$5","v":1.993289430822707E-3},{"$f":"'Population at Risk'!BB244/'Population at Risk'!BB$5","v":8.4809200067346505E-3},{"$f":"'Population at Risk'!BC244/'Population at Risk'!BC$5","v":0},242]
[null,"Male 70-74",{"$f":"'Population at Risk'!C245/'Population at Risk'!C$5","v":1.0059287658296293E-2},{"$f":"'Population at Risk'!D245/'Population at Risk'!D$5","v":1.0176959725483742E-2},{"$f":"'Population at Risk'!E245/'Population at Risk'!E$5","v":1.0335984291093744E-2},{"$f":"'Population at Risk'!F245/'Population at Risk'!F$5","v":9.2220550807498892E-3},{"$f":"'Population at Risk'!G245/'Population at Risk'!G$5","v":3.7148540909525064E-3},{"$f":"'Population at Risk'!H245/'Population at Risk'!H$5","v":7.8008159100611723E-3},{"$f":"'Population at Risk'!I245/'Population at Risk'!I$5","v":4.0029940336925507E-3},{"$f":"'Population at Risk'!J245/'Population at Risk'!J$5","v":8.8966170092098333E-3},{"$f":"'Population at Risk'!K245/'Population at Risk'!K$5","v":7.4305559826543573E-3},{"$f":"'Population at Risk'!L245/'Population at Risk'!L$5","v":4.2873543249297187E-3},{"$f":"'Population at Risk'!M245/'Population at Risk'!M$5","v":4.3439523674046092E-3},{"$f":"'Population at Risk'!N245/'Population at Risk'!N$5","v":5.7699492539730127E-3},{"$f":"'Population at Risk'!O245/'Population at Risk'!O$5","v":5.4413772162258756E-3},{"$f":"'Population at Risk'!P245/'Population at Risk'!P$5","v":2.31811573678832E-2},{"$f":"'Population at Risk'!Q245/'Population at Risk'!Q$5","v":6.8404215944581235E-3},{"$f":"'Population at Risk'!R245/'Population at Risk'!R$5","v":2.1254390494871211E-2},{"$f":"'Population at Risk'!S245/'Population at Risk'!S$5","v":9.0293707922486054E-3},{"$f":"'Population at Risk'!T245/'Population at Risk'!T$5","v":1.2402604656946288E-2},{"$f":"'Population at Risk'!U245/'Population at Risk'!U$5","v":0},{"$f":"'Population at Risk'!V245/'Population at Risk'!V$5","v":5.7006310579939719E-3},{"$f":"'Population at Risk'!W245/'Population at Risk'!W$5","v":9.0867790368773377E-3},{"$f":"'Population at Risk'!X245/'Population at Risk'!X$5","v":8.9637132039618178E-3},{"$f":"'Population at Risk'!Y245/'Population at Risk'!Y$5","v":7.9072701083659318E-3},{"$f":"'Population at Risk'!Z245/'Population at Risk'!Z$5","v":2.4918766569763965E-3},{"$f":"'Population at Risk'!AA245/'Population at Risk'!AA$5","v":5.8299864143820622E-3},{"$f":"'Population at Risk'!AB245/'Population at Risk'!AB$5","v":9.4247787520504254E-3},{"$f":"'Population at Risk'!AC245/'Population at Risk'!AC$5","v":7.0354739845354605E-3},{"$f":"'Population at Risk'!AD245/'Population at Risk'!AD$5","v":3.6669172989197778E-3},{"$f":"'Population at Risk'!AE245/'Population at Risk'!AE$5","v":4.0425846584459272E-3},{"$f":"'Population at Risk'!AF245/'Population at Risk'!AF$5","v":6.5153584249255476E-3},{"$f":"'Population at Risk'!AG245/'Population at Risk'!AG$5","v":3.7574280364574158E-3},{"$f":"'Population at Risk'!AH245/'Population at Risk'!AH$5","v":3.841643666395209E-3},{"$f":"'Population at Risk'!AI245/'Population at Risk'!AI$5","v":9.6141590267862804E-3},{"$f":"'Population at Risk'!AJ245/'Population at Risk'!AJ$5","v":5.595268238333998E-3},{"$f":"'Population at Risk'!AK245/'Population at Risk'!AK$5","v":6.3584005737055034E-3},{"$f":"'Population at Risk'!AL245/'Population at Risk'!AL$5","v":5.431998776967103E-3},{"$f":"'Population at Risk'!AM245/'Population at Risk'!AM$5","v":2.5445964014987233E-3},{"$f":"'Population at Risk'!AN245/'Population at Risk'!AN$5","v":3.0658580170573593E-3},{"$f":"'Population at Risk'!AO245/'Population at Risk'!AO$5","v":3.0658580170573593E-3},{"$f":"'Population at Risk'!AP245/'Population at Risk'!AP$5","v":8.607274728744339E-3},{"$f":"'Population at Risk'!AQ245/'Population at Risk'!AQ$5","v":6.8560859746415286E-3},{"$f":"'Population at Risk'!AR245/'Population at Risk'!AR$5","v":7.2245822492908547E-3},{"$f":"'Population at Risk'!AS245/'Population at Risk'!AS$5","v":4.0029940336925507E-3},{"$f":"'Population at Risk'!AT245/'Population at Risk'!AT$5","v":0},{"$f":"'Population at Risk'!AU245/'Population at Risk'!AU$5","v":0},{"$f":"'Population at Risk'!AV245/'Population at Risk'!AV$5","v":1.2192483293742831E-2},{"$f":"'Population at Risk'!AW245/'Population at Risk'!AW$5","v":5.0254122559024034E-3},{"$f":"'Population at Risk'!AX245/'Population at Risk'!AX$5","v":1.0134078100633662E-2},{"$f":"'Population at Risk'!AY245/'Population at Risk'!AY$5","v":8.2365114198801621E-3},{"$f":"'Population at Risk'!AZ245/'Population at Risk'!AZ$5","v":7.4717862245170952E-3},{"$f":"'Population at Risk'!BA245/'Population at Risk'!BA$5","v":1.0069194031990993E-3},{"$f":"'Population at Risk'!BB245/'Population at Risk'!BB$5","v":5.4203692874148562E-3},{"$f":"'Population at Risk'!BC245/'Population at Risk'!BC$5","v":0},243]
[null,"Male 75-79",{"$f":"'Population at Risk'!C246/'Population at Risk'!C$5","v":4.7842204688657436E-3},{"$f":"'Population at Risk'!D246/'Population at Risk'!D$5","v":4.6848991193193896E-3},{"$f":"'Population at Risk'!E246/'Population at Risk'!E$5","v":4.6224867246980657E-3},{"$f":"'Population at Risk'!F246/'Population at Risk'!F$5","v":3.8032122552561385E-3},{"$f":"'Population at Risk'!G246/'Population at Risk'!G$5","v":1.4538855498169882E-3},{"$f":"'Population at Risk'!H246/'Population at Risk'!H$5","v":3.4047382529378187E-3},{"$f":"'Population at Risk'!I246/'Population at Risk'!I$5","v":1.7098347728924212E-3},{"$f":"'Population at Risk'!J246/'Population at Risk'!J$5","v":4.4832259735657215E-3},{"$f":"'Population at Risk'!K246/'Population at Risk'!K$5","v":2.8635827565281781E-3},{"$f":"'Population at Risk'!L246/'Population at Risk'!L$5","v":2.2920610726763387E-3},{"$f":"'Population at Risk'!M246/'Population at Risk'!M$5","v":2.3223189333789309E-3},{"$f":"'Population at Risk'!N246/'Population at Risk'!N$5","v":2.9780800228459115E-3},{"$f":"'Population at Risk'!O246/'Population at Risk'!O$5","v":2.3045274766815152E-3},{"$f":"'Population at Risk'!P246/'Population at Risk'!P$5","v":1.2158682840334974E-2},{"$f":"'Population at Risk'!Q246/'Population at Risk'!Q$5","v":3.2921591611087321E-3},{"$f":"'Population at Risk'!R246/'Population at Risk'!R$5","v":1.0988577076201366E-2},{"$f":"'Population at Risk'!S246/'Population at Risk'!S$5","v":4.010215109170736E-3},{"$f":"'Population at Risk'!T246/'Population at Risk'!T$5","v":5.8099413839530854E-3},{"$f":"'Population at Risk'!U246/'Population at Risk'!U$5","v":0},{"$f":"'Population at Risk'!V246/'Population at Risk'!V$5","v":2.406197399220821E-3},{"$f":"'Population at Risk'!W246/'Population at Risk'!W$5","v":3.614770867456883E-3},{"$f":"'Population at Risk'!X246/'Population at Risk'!X$5","v":3.5658145996972116E-3},{"$f":"'Population at Risk'!Y246/'Population at Risk'!Y$5","v":3.7134152016733038E-3},{"$f":"'Population at Risk'!Z246/'Population at Risk'!Z$5","v":1.084417659322867E-3},{"$f":"'Population at Risk'!AA246/'Population at Risk'!AA$5","v":2.7117978257858236E-3},{"$f":"'Population at Risk'!AB246/'Population at Risk'!AB$5","v":4.3629775864021426E-3},{"$f":"'Population at Risk'!AC246/'Population at Risk'!AC$5","v":3.3592186694225822E-3},{"$f":"'Population at Risk'!AD246/'Population at Risk'!AD$5","v":1.5327876178485912E-3},{"$f":"'Population at Risk'!AE246/'Population at Risk'!AE$5","v":1.7309317226228962E-3},{"$f":"'Population at Risk'!AF246/'Population at Risk'!AF$5","v":2.7528410922979586E-3},{"$f":"'Population at Risk'!AG246/'Population at Risk'!AG$5","v":1.6088349245052171E-3},{"$f":"'Population at Risk'!AH246/'Population at Risk'!AH$5","v":1.6446019824132604E-3},{"$f":"'Population at Risk'!AI246/'Population at Risk'!AI$5","v":4.448011131653282E-3},{"$f":"'Population at Risk'!AJ246/'Population at Risk'!AJ$5","v":2.2497965338708677E-3},{"$f":"'Population at Risk'!AK246/'Population at Risk'!AK$5","v":3.0827862201538952E-3},{"$f":"'Population at Risk'!AL246/'Population at Risk'!AL$5","v":2.2162327289678924E-3},{"$f":"'Population at Risk'!AM246/'Population at Risk'!AM$5","v":1.1381495085644032E-3},{"$f":"'Population at Risk'!AN246/'Population at Risk'!AN$5","v":1.0321911862305735E-3},{"$f":"'Population at Risk'!AO246/'Population at Risk'!AO$5","v":1.0321911862305735E-3},{"$f":"'Population at Risk'!AP246/'Population at Risk'!AP$5","v":4.1274385803379329E-3},{"$f":"'Population at Risk'!AQ246/'Population at Risk'!AQ$5","v":2.7431472738103329E-3},{"$f":"'Population at Risk'!AR246/'Population at Risk'!AR$5","v":3.2952627424890288E-3},{"$f":"'Population at Risk'!AS246/'Population at Risk'!AS$5","v":1.7098347728924212E-3},{"$f":"'Population at Risk'!AT246/'Population at Risk'!AT$5","v":0},{"$f":"'Population at Risk'!AU246/'Population at Risk'!AU$5","v":0},{"$f":"'Population at Risk'!AV246/'Population at Risk'!AV$5","v":5.5450911378427765E-3},{"$f":"'Population at Risk'!AW246/'Population at Risk'!AW$5","v":2.1031239856499442E-3},{"$f":"'Population at Risk'!AX246/'Population at Risk'!AX$5","v":5.5256907441920107E-3},{"$f":"'Population at Risk'!AY246/'Population at Risk'!AY$5","v":3.5682994768912752E-3},{"$f":"'Population at Risk'!AZ246/'Population at Risk'!AZ$5","v":3.498374820337366E-3},{"$f":"'Population at Risk'!BA246/'Population at Risk'!BA$5","v":4.125892344658726E-4},{"$f":"'Population at Risk'!BB246/'Population at Risk'!BB$5","v":2.3793604271211627E-3},{"$f":"'Population at Risk'!BC246/'Population at Risk'!BC$5","v":0},244]
[null,"Male 80-84",{"$f":"'Population at Risk'!C247/'Population at Risk'!C$5","v":3.5408394297450599E-3},{"$f":"'Population at Risk'!D247/'Population at Risk'!D$5","v":3.2440109022091306E-3},{"$f":"'Population at Risk'!E247/'Population at Risk'!E$5","v":2.9992944291009648E-3},{"$f":"'Population at Risk'!F247/'Population at Risk'!F$5","v":3.1613603129333136E-3},{"$f":"'Population at Risk'!G247/'Population at Risk'!G$5","v":8.7694683957215158E-4},{"$f":"'Population at Risk'!H247/'Population at Risk'!H$5","v":2.4424601176004633E-3},{"$f":"'Population at Risk'!I247/'Population at Risk'!I$5","v":1.2558108501469763E-3},{"$f":"'Population at Risk'!J247/'Population at Risk'!J$5","v":3.1206769031682964E-3},{"$f":"'Population at Risk'!K247/'Population at Risk'!K$5","v":1.916943828750268E-3},{"$f":"'Population at Risk'!L247/'Population at Risk'!L$5","v":1.4961041728401825E-3},{"$f":"'Population at Risk'!M247/'Population at Risk'!M$5","v":1.5158544806299773E-3},{"$f":"'Population at Risk'!N247/'Population at Risk'!N$5","v":2.3076591646223059E-3},{"$f":"'Population at Risk'!O247/'Population at Risk'!O$5","v":1.4403296729259469E-3},{"$f":"'Population at Risk'!P247/'Population at Risk'!P$5","v":9.0568765883443682E-3},{"$f":"'Population at Risk'!Q247/'Population at Risk'!Q$5","v":2.2620970922955707E-3},{"$f":"'Population at Risk'!R247/'Population at Risk'!R$5","v":8.0108011416303269E-3},{"$f":"'Population at Risk'!S247/'Population at Risk'!S$5","v":2.9599018022620142E-3},{"$f":"'Population at Risk'!T247/'Population at Risk'!T$5","v":4.5762100765112277E-3},{"$f":"'Population at Risk'!U247/'Population at Risk'!U$5","v":0},{"$f":"'Population at Risk'!V247/'Population at Risk'!V$5","v":1.7623770140238984E-3},{"$f":"'Population at Risk'!W247/'Population at Risk'!W$5","v":2.6180068076598023E-3},{"$f":"'Population at Risk'!X247/'Population at Risk'!X$5","v":2.5825501087508042E-3},{"$f":"'Population at Risk'!Y247/'Population at Risk'!Y$5","v":2.635692867175451E-3},{"$f":"'Population at Risk'!Z247/'Population at Risk'!Z$5","v":7.2046926681039794E-4},{"$f":"'Population at Risk'!AA247/'Population at Risk'!AA$5","v":1.8826401627981635E-3},{"$f":"'Population at Risk'!AB247/'Population at Risk'!AB$5","v":3.0109046698671266E-3},{"$f":"'Population at Risk'!AC247/'Population at Risk'!AC$5","v":2.3642537863892196E-3},{"$f":"'Population at Risk'!AD247/'Population at Risk'!AD$5","v":1.0858557046360656E-3},{"$f":"'Population at Risk'!AE247/'Population at Risk'!AE$5","v":1.2898078487134602E-3},{"$f":"'Population at Risk'!AF247/'Population at Risk'!AF$5","v":1.9407529700700605E-3},{"$f":"'Population at Risk'!AG247/'Population at Risk'!AG$5","v":1.1988271321105358E-3},{"$f":"'Population at Risk'!AH247/'Population at Risk'!AH$5","v":1.0889716901942596E-3},{"$f":"'Population at Risk'!AI247/'Population at Risk'!AI$5","v":3.3039604164428402E-3},{"$f":"'Population at Risk'!AJ247/'Population at Risk'!AJ$5","v":1.3968516941066376E-3},{"$f":"'Population at Risk'!AK247/'Population at Risk'!AK$5","v":2.0694135872313347E-3},{"$f":"'Population at Risk'!AL247/'Population at Risk'!AL$5","v":1.6776263685414326E-3},{"$f":"'Population at Risk'!AM247/'Population at Risk'!AM$5","v":6.1965917688506394E-4},{"$f":"'Population at Risk'!AN247/'Population at Risk'!AN$5","v":7.5068449907678071E-4},{"$f":"'Population at Risk'!AO247/'Population at Risk'!AO$5","v":7.5068449907678071E-4},{"$f":"'Population at Risk'!AP247/'Population at Risk'!AP$5","v":3.2094855194510878E-3},{"$f":"'Population at Risk'!AQ247/'Population at Risk'!AQ$5","v":1.6492889600801795E-3},{"$f":"'Population at Risk'!AR247/'Population at Risk'!AR$5","v":2.3647885526220202E-3},{"$f":"'Population at Risk'!AS247/'Population at Risk'!AS$5","v":1.2558108501469763E-3},{"$f":"'Population at Risk'!AT247/'Population at Risk'!AT$5","v":0},{"$f":"'Population at Risk'!AU247/'Population at Risk'!AU$5","v":0},{"$f":"'Population at Risk'!AV247/'Population at Risk'!AV$5","v":4.0707274406571563E-3},{"$f":"'Population at Risk'!AW247/'Population at Risk'!AW$5","v":1.5249992644831691E-3},{"$f":"'Population at Risk'!AX247/'Population at Risk'!AX$5","v":3.8826136593609851E-3},{"$f":"'Population at Risk'!AY247/'Population at Risk'!AY$5","v":2.7150986546410306E-3},{"$f":"'Population at Risk'!AZ247/'Population at Risk'!AZ$5","v":2.7694451539395453E-3},{"$f":"'Population at Risk'!BA247/'Population at Risk'!BA$5","v":2.7076168511822886E-4},{"$f":"'Population at Risk'!BB247/'Population at Risk'!BB$5","v":1.2155428268988547E-3},{"$f":"'Population at Risk'!BC247/'Population at Risk'!BC$5","v":0},245]
[null,"Male 85-89",{"$f":"'Population at Risk'!C248/'Population at Risk'!C$5","v":1.9532698676843949E-3},{"$f":"'Population at Risk'!D248/'Population at Risk'!D$5","v":1.7628744108779144E-3},{"$f":"'Population at Risk'!E248/'Population at Risk'!E$5","v":1.6041853600514667E-3},{"$f":"'Population at Risk'!F248/'Population at Risk'!F$5","v":1.3795026820072641E-3},{"$f":"'Population at Risk'!G248/'Population at Risk'!G$5","v":6.0001625865462992E-4},{"$f":"'Population at Risk'!H248/'Population at Risk'!H$5","v":1.2563963693939556E-3},{"$f":"'Population at Risk'!I248/'Population at Risk'!I$5","v":7.7280667701352381E-4},{"$f":"'Population at Risk'!J248/'Population at Risk'!J$5","v":1.2966192766685177E-3},{"$f":"'Population at Risk'!K248/'Population at Risk'!K$5","v":8.0464308861122368E-4},{"$f":"'Population at Risk'!L248/'Population at Risk'!L$5","v":7.7384698595181847E-4},{"$f":"'Population at Risk'!M248/'Population at Risk'!M$5","v":7.8406266239481584E-4},{"$f":"'Population at Risk'!N248/'Population at Risk'!N$5","v":1.3196705314506764E-3},{"$f":"'Population at Risk'!O248/'Population at Risk'!O$5","v":8.0018315162552604E-4},{"$f":"'Population at Risk'!P248/'Population at Risk'!P$5","v":4.4439339571788498E-3},{"$f":"'Population at Risk'!Q248/'Population at Risk'!Q$5","v":1.0199634210796991E-3},{"$f":"'Population at Risk'!R248/'Population at Risk'!R$5","v":4.1805638610840478E-3},{"$f":"'Population at Risk'!S248/'Population at Risk'!S$5","v":1.5663540335484039E-3},{"$f":"'Population at Risk'!T248/'Population at Risk'!T$5","v":2.5462555387203386E-3},{"$f":"'Population at Risk'!U248/'Population at Risk'!U$5","v":0},{"$f":"'Population at Risk'!V248/'Population at Risk'!V$5","v":7.1535598355213588E-4},{"$f":"'Population at Risk'!W248/'Population at Risk'!W$5","v":1.2789803899805915E-3},{"$f":"'Population at Risk'!X248/'Population at Risk'!X$5","v":1.261658654045691E-3},{"$f":"'Population at Risk'!Y248/'Population at Risk'!Y$5","v":1.0852852982487151E-3},{"$f":"'Population at Risk'!Z248/'Population at Risk'!Z$5","v":3.5280711519065878E-4},{"$f":"'Population at Risk'!AA248/'Population at Risk'!AA$5","v":9.1177191740897607E-4},{"$f":"'Population at Risk'!AB248/'Population at Risk'!AB$5","v":1.65883175333211E-3},{"$f":"'Population at Risk'!AC248/'Population at Risk'!AC$5","v":1.1733991310627382E-3},{"$f":"'Population at Risk'!AD248/'Population at Risk'!AD$5","v":6.0744971302829182E-4},{"$f":"'Population at Risk'!AE248/'Population at Risk'!AE$5","v":6.7607028501337496E-4},{"$f":"'Population at Risk'!AF248/'Population at Risk'!AF$5","v":9.2220176591981595E-4},{"$f":"'Population at Risk'!AG248/'Population at Risk'!AG$5","v":6.2838150790923996E-4},{"$f":"'Population at Risk'!AH248/'Population at Risk'!AH$5","v":4.8080329011500935E-4},{"$f":"'Population at Risk'!AI248/'Population at Risk'!AI$5","v":1.7777532255384245E-3},{"$f":"'Population at Risk'!AJ248/'Population at Risk'!AJ$5","v":6.9224508734488238E-4},{"$f":"'Population at Risk'!AK248/'Population at Risk'!AK$5","v":1.2693825612398392E-3},{"$f":"'Population at Risk'!AL248/'Population at Risk'!AL$5","v":8.0349473440668616E-4},{"$f":"'Population at Risk'!AM248/'Population at Risk'!AM$5","v":2.7505279790306406E-4},{"$f":"'Population at Risk'!AN248/'Population at Risk'!AN$5","v":4.6917781192298792E-4},{"$f":"'Population at Risk'!AO248/'Population at Risk'!AO$5","v":4.6917781192298792E-4},{"$f":"'Population at Risk'!AP248/'Population at Risk'!AP$5","v":1.7756026360220005E-3},{"$f":"'Population at Risk'!AQ248/'Population at Risk'!AQ$5","v":8.0480767124187463E-4},{"$f":"'Population at Risk'!AR248/'Population at Risk'!AR$5","v":1.2134967562173558E-3},{"$f":"'Population at Risk'!AS248/'Population at Risk'!AS$5","v":7.7280667701352381E-4},{"$f":"'Population at Risk'!AT248/'Population at Risk'!AT$5","v":0},{"$f":"'Population at Risk'!AU248/'Population at Risk'!AU$5","v":0},{"$f":"'Population at Risk'!AV248/'Population at Risk'!AV$5","v":2.1049091777429942E-3},{"$f":"'Population at Risk'!AW248/'Population at Risk'!AW$5","v":6.7187467595057648E-4},{"$f":"'Population at Risk'!AX248/'Population at Risk'!AX$5","v":1.6093152269235388E-3},{"$f":"'Population at Risk'!AY248/'Population at Risk'!AY$5","v":1.3818878610772577E-3},{"$f":"'Population at Risk'!AZ248/'Population at Risk'!AZ$5","v":1.4529835490739165E-3},{"$f":"'Population at Risk'!BA248/'Population at Risk'!BA$5","v":7.7360481462351112E-5},{"$f":"'Population at Risk'!BB248/'Population at Risk'!BB$5","v":5.49580533438312E-4},{"$f":"'Population at Risk'!BC248/'Population at Risk'!BC$5","v":0},246]
[null,"Male 90+",{"$f":"'Population at Risk'!C249/'Population at Risk'!C$5","v":9.5512315115844871E-4},{"$f":"'Population at Risk'!D249/'Population at Risk'!D$5","v":8.3112686266276106E-4},{"$f":"'Population at Risk'!E249/'Population at Risk'!E$5","v":7.2606493784319927E-4},{"$f":"'Population at Risk'!F249/'Population at Risk'!F$5","v":4.9815374628040096E-4},{"$f":"'Population at Risk'!G249/'Population at Risk'!G$5","v":1.6154283886855422E-4},{"$f":"'Population at Risk'!H249/'Population at Risk'!H$5","v":6.1061502940011581E-4},{"$f":"'Population at Risk'!I249/'Population at Risk'!I$5","v":2.2218191964138811E-4},{"$f":"'Population at Risk'!J249/'Population at Risk'!J$5","v":5.2743834983126148E-4},{"$f":"'Population at Risk'!K249/'Population at Risk'!K$5","v":2.1299375875002979E-4},{"$f":"'Population at Risk'!L249/'Population at Risk'!L$5","v":3.2427873697028585E-4},{"$f":"'Population at Risk'!M249/'Population at Risk'!M$5","v":3.2855959186068473E-4},{"$f":"'Population at Risk'!N249/'Population at Risk'!N$5","v":4.3048076159620994E-4},{"$f":"'Population at Risk'!O249/'Population at Risk'!O$5","v":3.2007326065021038E-4},{"$f":"'Population at Risk'!P249/'Population at Risk'!P$5","v":1.8889204739686387E-3},{"$f":"'Population at Risk'!Q249/'Population at Risk'!Q$5","v":6.362148072081293E-4},{"$f":"'Population at Risk'!R249/'Population at Risk'!R$5","v":1.7399553500042546E-3},{"$f":"'Population at Risk'!S249/'Population at Risk'!S$5","v":7.3878641663315404E-4},{"$f":"'Population at Risk'!T249/'Population at Risk'!T$5","v":1.2316578094461572E-3},{"$f":"'Population at Risk'!U249/'Population at Risk'!U$5","v":0},{"$f":"'Population at Risk'!V249/'Population at Risk'!V$5","v":3.2516181070551636E-4},{"$f":"'Population at Risk'!W249/'Population at Risk'!W$5","v":5.464188520574358E-4},{"$f":"'Population at Risk'!X249/'Population at Risk'!X$5","v":5.3901848600074122E-4},{"$f":"'Population at Risk'!Y249/'Population at Risk'!Y$5","v":4.6134078880258973E-4},{"$f":"'Population at Risk'!Z249/'Population at Risk'!Z$5","v":1.8568795536350461E-4},{"$f":"'Population at Risk'!AA249/'Population at Risk'!AA$5","v":3.8231706060667383E-4},{"$f":"'Population at Risk'!AB249/'Population at Risk'!AB$5","v":7.6689709199273428E-4},{"$f":"'Population at Risk'!AC249/'Population at Risk'!AC$5","v":5.0524045230056734E-4},{"$f":"'Population at Risk'!AD249/'Population at Risk'!AD$5","v":2.2031854876673797E-4},{"$f":"'Population at Risk'!AE249/'Population at Risk'!AE$5","v":2.6851018411878729E-4},{"$f":"'Population at Risk'!AF249/'Population at Risk'!AF$5","v":5.7809662938257118E-4},{"$f":"'Population at Risk'!AG249/'Population at Risk'!AG$5","v":2.4956996058806693E-4},{"$f":"'Population at Risk'!AH249/'Population at Risk'!AH$5","v":1.7990321782449027E-4},{"$f":"'Population at Risk'!AI249/'Population at Risk'!AI$5","v":8.7920176528328881E-4},{"$f":"'Population at Risk'!AJ249/'Population at Risk'!AJ$5","v":2.9667646600494958E-4},{"$f":"'Population at Risk'!AK249/'Population at Risk'!AK$5","v":5.0135277628800376E-4},{"$f":"'Population at Risk'!AL249/'Population at Risk'!AL$5","v":3.7084372357231669E-4},{"$f":"'Population at Risk'!AM249/'Population at Risk'!AM$5","v":1.2646105650715591E-4},{"$f":"'Population at Risk'!AN249/'Population at Risk'!AN$5","v":1.8767112476919518E-4},{"$f":"'Population at Risk'!AO249/'Population at Risk'!AO$5","v":1.8767112476919518E-4},{"$f":"'Population at Risk'!AP249/'Population at Risk'!AP$5","v":7.2364182902028701E-4},{"$f":"'Population at Risk'!AQ249/'Population at Risk'!AQ$5","v":2.1537106695205095E-4},{"$f":"'Population at Risk'!AR249/'Population at Risk'!AR$5","v":5.356427086121772E-4},{"$f":"'Population at Risk'!AS249/'Population at Risk'!AS$5","v":2.2218191964138811E-4},{"$f":"'Population at Risk'!AT249/'Population at Risk'!AT$5","v":0},{"$f":"'Population at Risk'!AU249/'Population at Risk'!AU$5","v":0},{"$f":"'Population at Risk'!AV249/'Population at Risk'!AV$5","v":1.1034545909754021E-3},{"$f":"'Population at Risk'!AW249/'Population at Risk'!AW$5","v":2.2812488997391665E-4},{"$f":"'Population at Risk'!AX249/'Population at Risk'!AX$5","v":7.0899901605722346E-4},{"$f":"'Population at Risk'!AY249/'Population at Risk'!AY$5","v":5.4491272799817502E-4},{"$f":"'Population at Risk'!AZ249/'Population at Risk'!AZ$5","v":5.3877410125056295E-4},{"$f":"'Population at Risk'!BA249/'Population at Risk'!BA$5","v":2.5786827154117037E-5},{"$f":"'Population at Risk'!BB249/'Population at Risk'!BB$5","v":2.9742005339014534E-4},{"$f":"'Population at Risk'!BC249/'Population at Risk'!BC$5","v":0},247]

{"sheet":"Targeting","index":18,"n_rows":249,"n_cols":7,"rows_kept":249,"cut":false,"hidden":true,"merged":[]}
["Calculating how many will be treated in each group, for each targeting strategy"]
[]
["SIMD","group","Even distribution","Targeting to SIMD Q1","Targeting to SIMD Q1 & Q2","Proportionate to need",1]
[null,null,null,null,null,null,2]
["All quintiles","16+ Males and Females",null,null,null,null,3]
["Q1 and Q2","16+ Males and Females",null,null,null,null,4]
["SIMD Q1 (most deprived)","16+ Males and Females",null,null,null,null,5]
["SIMD Q2",null,null,null,null,null,6]
["SIMD Q3",null,null,null,null,null,7]
["SIMD Q4",null,null,null,null,null,8]
["SIMD Q5 (least deprived)",null,null,null,null,null,9]
["SIMD Q1 (most deprived)","16+ Females",null,null,null,null,10]
["SIMD Q2",null,null,null,null,null,11]
["SIMD Q3",null,null,null,null,null,12]
["SIMD Q4",null,null,null,null,null,13]
["SIMD Q5 (least deprived)",null,null,null,null,null,14]
["SIMD Q1 (most deprived)","16+ Males",null,null,null,null,15]
["SIMD Q2",null,null,null,null,null,16]
["SIMD Q3",null,null,null,null,null,17]
["SIMD Q4",null,null,null,null,null,18]
["SIMD Q5 (least deprived)",null,null,null,null,null,19]
["All quintiles","Female 0-4",null,null,null,null,20]
[null,"Female 5-9",null,null,null,null,21]
[null,"Female 10-15",null,null,null,null,22]
[null,"Female 16-19",null,null,null,null,23]
[null,"Female 20-24",null,null,null,null,24]
[null,"Female 25-29",null,null,null,null,25]
[null,"Female 30-34",null,null,null,null,26]
[null,"Female 35-39",null,null,null,null,27]
[null,"Female 40-44",null,null,null,null,28]
[null,"Female 45-49",null,null,null,null,29]
[null,"Female 50-54",null,null,null,null,30]
[null,"Female 55-59",null,null,null,null,31]
[null,"Female 60-64",null,null,null,null,32]
[null,"Female 65-69",null,null,null,null,33]
[null,"Female 70-74",null,null,null,null,34]
[null,"Female 75-79",null,null,null,null,35]
[null,"Female 80-84",null,null,null,null,36]
[null,"Female 85-89",null,null,null,null,37]
[null,"Female 90+",null,null,null,null,38]
[null,"Male 0-4",null,null,null,null,39]
[null,"Male 5-9",null,null,null,null,40]
[null,"Male 10-15",null,null,null,null,41]
[null,"Male 16-19",null,null,null,null,42]
[null,"Male 20-24",null,null,null,null,43]
[null,"Male 25-29",null,null,null,null,44]
[null,"Male 30-34",null,null,null,null,45]
[null,"Male 35-39",null,null,null,null,46]
[null,"Male 40-44",null,null,null,null,47]
[null,"Male 45-49",null,null,null,null,48]
[null,"Male 50-54",null,null,null,null,49]
[null,"Male 55-59",null,null,null,null,50]
[null,"Male 60-64",null,null,null,null,51]
[null,"Male 65-69",null,null,null,null,52]
[null,"Male 70-74",null,null,null,null,53]
[null,"Male 75-79",null,null,null,null,54]
[null,"Male 80-84",null,null,null,null,55]
[null,"Male 85-89",null,null,null,null,56]
[null,"Male 90+",null,null,null,null,57]
["SIMD Q1 (most deprived)","Female 0-4",{"$f":"ROUND(Options!$B$21*HLOOKUP(Calculations!$E$2,Pop2016fraction!$C$3:$BC$251,Pop2016fraction!$BD60,FALSE),0)","v":0},{"$f":"ROUND(Options!$B$21*HLOOKUP(Calculations!$E$2,Pop2016fractionQ1!$C$3:$BC$251,Pop2016fractionQ1!$BD60,FALSE),0)","v":0},{"$f":"ROUND(Options!$B$21*HLOOKUP(Calculations!$E$2,'Pop2016fractionQ1&2'!$C$3:$BC$251,'Pop2016fractionQ1&2'!$BD60,FALSE),0)","v":0},{"$f":"ROUND(Options!$B$21*HLOOKUP(Calculations!$E$2,PARfraction!$C$3:$BC$251,PARfraction!$BD60,FALSE),0)","v":0},58]
[null,"Female 5-9",{"$f":"ROUND(Options!$B$21*HLOOKUP(Calculations!$E$2,Pop2016fraction!$C$3:$BC$251,Pop2016fraction!$BD61,FALSE),0)","v":0},{"$f":"ROUND(Options!$B$21*HLOOKUP(Calculations!$E$2,Pop2016fractionQ1!$C$3:$BC$251,Pop2016fractionQ1!$BD61,FALSE),0)","v":0},{"$f":"ROUND(Options!$B$21*HLOOKUP(Calculations!$E$2,'Pop2016fractionQ1&2'!$C$3:$BC$251,'Pop2016fractionQ1&2'!$BD61,FALSE),0)","v":0},{"$f":"ROUND(Options!$B$21*HLOOKUP(Calculations!$E$2,PARfraction!$C$3:$BC$251,PARfraction!$BD61,FALSE),0)","v":0},59]
[null,"Female 10-15",{"$f":"ROUND(Options!$B$21*HLOOKUP(Calculations!$E$2,Pop2016fraction!$C$3:$BC$251,Pop2016fraction!$BD62,FALSE),0)","v":0},{"$f":"ROUND(Options!$B$21*HLOOKUP(Calculations!$E$2,Pop2016fractionQ1!$C$3:$BC$251,Pop2016fractionQ1!$BD62,FALSE),0)","v":0},{"$f":"ROUND(Options!$B$21*HLOOKUP(Calculations!$E$2,'Pop2016fractionQ1&2'!$C$3:$BC$251,'Pop2016fractionQ1&2'!$BD62,FALSE),0)","v":0},{"$f":"ROUND(Options!$B$21*HLOOKUP(Calculations!$E$2,PARfraction!$C$3:$BC$251,PARfraction!$BD62,FALSE),0)","v":0},60]
[null,"Female 16-19",{"$f":"ROUND(Options!$B$21*HLOOKUP(Calculations!$E$2,Pop2016fraction!$C$3:$BC$251,Pop2016fraction!$BD63,FALSE),0)","v":1825},{"$f":"ROUND(Options!$B$21*HLOOKUP(Calculations!$E$2,Pop2016fractionQ1!$C$3:$BC$251,Pop2016fractionQ1!$BD63,FALSE),0)","v":9394},{"$f":"ROUND(Options!$B$21*HLOOKUP(Calculations!$E$2,'Pop2016fractionQ1&2'!$C$3:$BC$251,'Pop2016fractionQ1&2'!$BD63,FALSE),0)","v":4631},{"$f":"ROUND(Options!$B$21*HLOOKUP(Calculations!$E$2,PARfraction!$C$3:$BC$251,PARfraction!$BD63,FALSE),0)","v":1859},61]
[null,"Female 20-24",{"$f":"ROUND(Options!$B$21*HLOOKUP(Calculations!$E$2,Pop2016fraction!$C$3:$BC$251,Pop2016fraction!$BD64,FALSE),0)","v":2845},{"$f":"ROUND(Options!$B$21*HLOOKUP(Calculations!$E$2,Pop2016fractionQ1!$C$3:$BC$251,Pop2016fractionQ1!$BD64,FALSE),0)","v":14639},{"$f":"ROUND(Options!$B$21*HLOOKUP(Calculations!$E$2,'Pop2016fractionQ1&2'!$C$3:$BC$251,'Pop2016fractionQ1&2'!$BD64,FALSE),0)","v":7217},{"$f":"ROUND(Options!$B$21*HLOOKUP(Calculations!$E$2,PARfraction!$C$3:$BC$251,PARfraction!$BD64,FALSE),0)","v":2898},62]
[null,"Female 25-29",{"$f":"ROUND(Options!$B$21*HLOOKUP(Calculations!$E$2,Pop2016fraction!$C$3:$BC$251,Pop2016fraction!$BD65,FALSE),0)","v":3412},{"$f":"ROUND(Options!$B$21*HLOOKUP(Calculations!$E$2,Pop2016fractionQ1!$C$3:$BC$251,Pop2016fractionQ1!$BD65,FALSE),0)","v":17560},{"$f":"ROUND(Options!$B$21*HLOOKUP(Calculations!$E$2,'Pop2016fractionQ1&2'!$C$3:$BC$251,'Pop2016fractionQ1&2'!$BD65,FALSE),0)","v":8657},{"$f":"ROUND(Options!$B$21*HLOOKUP(Calculations!$E$2,PARfraction!$C$3:$BC$251,PARfraction!$BD65,FALSE),0)","v":2083},63]
[null,"Female 30-34",{"$f":"ROUND(Options!$B$21*HLOOKUP(Calculations!$E$2,Pop2016fraction!$C$3:$BC$251,Pop2016fraction!$BD66,FALSE),0)","v":3118},{"$f":"ROUND(Options!$B$21*HLOOKUP(Calculations!$E$2,Pop2016fractionQ1!$C$3:$BC$251,Pop2016fractionQ1!$BD66,FALSE),0)","v":16046},{"$f":"ROUND(Options!$B$21*HLOOKUP(Calculations!$E$2,'Pop2016fractionQ1&2'!$C$3:$BC$251,'Pop2016fractionQ1&2'!$BD66,FALSE),0)","v":7911},{"$f":"ROUND(Options!$B$21*HLOOKUP(Calculations!$E$2,PARfraction!$C$3:$BC$251,PARfraction!$BD66,FALSE),0)","v":1904},64]
[null,"Female 35-39",{"$f":"ROUND(Options!$B$21*HLOOKUP(Calculations!$E$2,Pop2016fraction!$C$3:$BC$251,Pop2016fraction!$BD67,FALSE),0)","v":2649},{"$f":"ROUND(Options!$B$21*HLOOKUP(Calculations!$E$2,Pop2016fractionQ1!$C$3:$BC$251,Pop2016fractionQ1!$BD67,FALSE),0)","v":13633},{"$f":"ROUND(Options!$B$21*HLOOKUP(Calculations!$E$2,'Pop2016fractionQ1&2'!$C$3:$BC$251,'Pop2016fractionQ1&2'!$BD67,FALSE),0)","v":6721},{"$f":"ROUND(Options!$B$21*HLOOKUP(Calculations!$E$2,PARfraction!$C$3:$BC$251,PARfraction!$BD67,FALSE),0)","v":1529},65]
[null,"Female 40-44",{"$f":"ROUND(Options!$B$21*HLOOKUP(Calculations!$E$2,Pop2016fraction!$C$3:$BC$251,Pop2016fraction!$BD68,FALSE),0)","v":2545},{"$f":"ROUND(Options!$B$21*HLOOKUP(Calculations!$E$2,Pop2016fractionQ1!$C$3:$BC$251,Pop2016fractionQ1!$BD68,FALSE),0)","v":13098},{"$f":"ROUND(Options!$B$21*HLOOKUP(Calculations!$E$2,'Pop2016fractionQ1&2'!$C$3:$BC$251,'Pop2016fractionQ1&2'!$BD68,FALSE),0)","v":6457},{"$f":"ROUND(Options!$B$21*HLOOKUP(Calculations!$E$2,PARfraction!$C$3:$BC$251,PARfraction!$BD68,FALSE),0)","v":1469},66]
[null,"Female 45-49",{"$f":"ROUND(Options!$B$21*HLOOKUP(Calculations!$E$2,Pop2016fraction!$C$3:$BC$251,Pop2016fraction!$BD69,FALSE),0)","v":2964},{"$f":"ROUND(Options!$B$21*HLOOKUP(Calculations!$E$2,Pop2016fractionQ1!$C$3:$BC$251,Pop2016fractionQ1!$BD69,FALSE),0)","v":15251},{"$f":"ROUND(Options!$B$21*HLOOKUP(Calculations!$E$2,'Pop2016fractionQ1&2'!$C$3:$BC$251,'Pop2016fractionQ1&2'!$BD69,FALSE),0)","v":7519},{"$f":"ROUND(Options!$B$21*HLOOKUP(Calculations!$E$2,PARfraction!$C$3:$BC$251,PARfraction!$BD69,FALSE),0)","v":1679},67]
[null,"Female 50-54",{"$f":"ROUND(Options!$B$21*HLOOKUP(Calculations!$E$2,Pop2016fraction!$C$3:$BC$251,Pop2016fraction!$BD70,FALSE),0)","v":3002},{"$f":"ROUND(Options!$B$21*HLOOKUP(Calculations!$E$2,Pop2016fractionQ1!$C$3:$BC$251,Pop2016fractionQ1!$BD70,FALSE),0)","v":15449},{"$f":"ROUND(Options!$B$21*HLOOKUP(Calculations!$E$2,'Pop2016fractionQ1&2'!$C$3:$BC$251,'Pop2016fractionQ1&2'!$BD70,FALSE),0)","v":7616},{"$f":"ROUND(Options!$B$21*HLOOKUP(Calculations!$E$2,PARfraction!$C$3:$BC$251,PARfraction!$BD70,FALSE),0)","v":1701},68]
[null,"Female 55-59",{"$f":"ROUND(Options!$B$21*HLOOKUP(Calculations!$E$2,Pop2016fraction!$C$3:$BC$251,Pop2016fraction!$BD71,FALSE),0)","v":2686},{"$f":"ROUND(Options!$B$21*HLOOKUP(Calculations!$E$2,Pop2016fractionQ1!$C$3:$BC$251,Pop2016fractionQ1!$BD71,FALSE),0)","v":13824},{"$f":"ROUND(Options!$B$21*HLOOKUP(Calculations!$E$2,'Pop2016fractionQ1&2'!$C$3:$BC$251,'Pop2016fractionQ1&2'!$BD71,FALSE),0)","v":6815},{"$f":"ROUND(Options!$B$21*HLOOKUP(Calculations!$E$2,PARfraction!$C$3:$BC$251,PARfraction!$BD71,FALSE),0)","v":1875},69]
[null,"Female 60-64",{"$f":"ROUND(Options!$B$21*HLOOKUP(Calculations!$E$2,Pop2016fraction!$C$3:$BC$251,Pop2016fraction!$BD72,FALSE),0)","v":2209},{"$f":"ROUND(Options!$B$21*HLOOKUP(Calculations!$E$2,Pop2016fractionQ1!$C$3:$BC$251,Pop2016fractionQ1!$BD72,FALSE),0)","v":11366},{"$f":"ROUND(Options!$B$21*HLOOKUP(Calculations!$E$2,'Pop2016fractionQ1&2'!$C$3:$BC$251,'Pop2016fractionQ1&2'!$BD72,FALSE),0)","v":5604},{"$f":"ROUND(Options!$B$21*HLOOKUP(Calculations!$E$2,PARfraction!$C$3:$BC$251,PARfraction!$BD72,FALSE),0)","v":1542},70]
[null,"Female 65-69",{"$f":"ROUND(Options!$B$21*HLOOKUP(Calculations!$E$2,Pop2016fraction!$C$3:$BC$251,Pop2016fraction!$BD73,FALSE),0)","v":2099},{"$f":"ROUND(Options!$B$21*HLOOKUP(Calculations!$E$2,Pop2016fractionQ1!$C$3:$BC$251,Pop2016fractionQ1!$BD73,FALSE),0)","v":10802},{"$f":"ROUND(Options!$B$21*HLOOKUP(Calculations!$E$2,'Pop2016fractionQ1&2'!$C$3:$BC$251,'Pop2016fractionQ1&2'!$BD73,FALSE),0)","v":5325},{"$f":"ROUND(Options!$B$21*HLOOKUP(Calculations!$E$2,PARfraction!$C$3:$BC$251,PARfraction!$BD73,FALSE),0)","v":771},71]
[null,"Female 70-74",{"$f":"ROUND(Options!$B$21*HLOOKUP(Calculations!$E$2,Pop2016fraction!$C$3:$BC$251,Pop2016fraction!$BD74,FALSE),0)","v":1647},{"$f":"ROUND(Options!$B$21*HLOOKUP(Calculations!$E$2,Pop2016fractionQ1!$C$3:$BC$251,Pop2016fractionQ1!$BD74,FALSE),0)","v":8477},{"$f":"ROUND(Options!$B$21*HLOOKUP(Calculations!$E$2,'Pop2016fractionQ1&2'!$C$3:$BC$251,'Pop2016fractionQ1&2'!$BD74,FALSE),0)","v":4179},{"$f":"ROUND(Options!$B$21*HLOOKUP(Calculations!$E$2,PARfraction!$C$3:$BC$251,PARfraction!$BD74,FALSE),0)","v":605},72]
[null,"Female 75-79",{"$f":"ROUND(Options!$B$21*HLOOKUP(Calculations!$E$2,Pop2016fraction!$C$3:$BC$251,Pop2016fraction!$BD75,FALSE),0)","v":1447},{"$f":"ROUND(Options!$B$21*HLOOKUP(Calculations!$E$2,Pop2016fractionQ1!$C$3:$BC$251,Pop2016fractionQ1!$BD75,FALSE),0)","v":7447},{"$f":"ROUND(Options!$B$21*HLOOKUP(Calculations!$E$2,'Pop2016fractionQ1&2'!$C$3:$BC$251,'Pop2016fractionQ1&2'!$BD75,FALSE),0)","v":3671},{"$f":"ROUND(Options!$B$21*HLOOKUP(Calculations!$E$2,PARfraction!$C$3:$BC$251,PARfraction!$BD75,FALSE),0)","v":174},73]
[null,"Female 80-84",{"$f":"ROUND(Options!$B$21*HLOOKUP(Calculations!$E$2,Pop2016fraction!$C$3:$BC$251,Pop2016fraction!$BD76,FALSE),0)","v":1117},{"$f":"ROUND(Options!$B$21*HLOOKUP(Calculations!$E$2,Pop2016fractionQ1!$C$3:$BC$251,Pop2016fractionQ1!$BD76,FALSE),0)","v":5749},{"$f":"ROUND(Options!$B$21*HLOOKUP(Calculations!$E$2,'Pop2016fractionQ1&2'!$C$3:$BC$251,'Pop2016fractionQ1&2'!$BD76,FALSE),0)","v":2834},{"$f":"ROUND(Options!$B$21*HLOOKUP(Calculations!$E$2,PARfraction!$C$3:$BC$251,PARfraction!$BD76,FALSE),0)","v":135},74]
[null,"Female 85-89",{"$f":"ROUND(Options!$B$21*HLOOKUP(Calculations!$E$2,Pop2016fraction!$C$3:$BC$251,Pop2016fraction!$BD77,FALSE),0)","v":671},{"$f":"ROUND(Options!$B$21*HLOOKUP(Calculations!$E$2,Pop2016fractionQ1!$C$3:$BC$251,Pop2016fractionQ1!$BD77,FALSE),0)","v":3451},{"$f":"ROUND(Options!$B$21*HLOOKUP(Calculations!$E$2,'Pop2016fractionQ1&2'!$C$3:$BC$251,'Pop2016fractionQ1&2'!$BD77,FALSE),0)","v":1701},{"$f":"ROUND(Options!$B$21*HLOOKUP(Calculations!$E$2,PARfraction!$C$3:$BC$251,PARfraction!$BD77,FALSE),0)","v":81},75]
[null,"Female 90+",{"$f":"ROUND(Options!$B$21*HLOOKUP(Calculations!$E$2,Pop2016fraction!$C$3:$BC$251,Pop2016fraction!$BD78,FALSE),0)","v":365},{"$f":"ROUND(Options!$B$21*HLOOKUP(Calculations!$E$2,Pop2016fractionQ1!$C$3:$BC$251,Pop2016fractionQ1!$BD78,FALSE),0)","v":1877},{"$f":"ROUND(Options!$B$21*HLOOKUP(Calculations!$E$2,'Pop2016fractionQ1&2'!$C$3:$BC$251,'Pop2016fractionQ1&2'!$BD78,FALSE),0)","v":926},{"$f":"ROUND(Options!$B$21*HLOOKUP(Calculations!$E$2,PARfraction!$C$3:$BC$251,PARfraction!$BD78,FALSE),0)","v":44},76]
[null,"Male 0-4",{"$f":"ROUND(Options!$B$21*HLOOKUP(Calculations!$E$2,Pop2016fraction!$C$3:$BC$251,Pop2016fraction!$BD79,FALSE),0)","v":0},{"$f":"ROUND(Options!$B$21*HLOOKUP(Calculations!$E$2,Pop2016fractionQ1!$C$3:$BC$251,Pop2016fractionQ1!$BD79,FALSE),0)","v":0},{"$f":"ROUND(Options!$B$21*HLOOKUP(Calculations!$E$2,'Pop2016fractionQ1&2'!$C$3:$BC$251,'Pop2016fractionQ1&2'!$BD79,FALSE),0)","v":0},{"$f":"ROUND(Options!$B$21*HLOOKUP(Calculations!$E$2,PARfraction!$C$3:$BC$251,PARfraction!$BD79,FALSE),0)","v":0},77]
[null,"Male 5-9",{"$f":"ROUND(Options!$B$21*HLOOKUP(Calculations!$E$2,Pop2016fraction!$C$3:$BC$251,Pop2016fraction!$BD80,FALSE),0)","v":0},{"$f":"ROUND(Options!$B$21*HLOOKUP(Calculations!$E$2,Pop2016fractionQ1!$C$3:$BC$251,Pop2016fractionQ1!$BD80,FALSE),0)","v":0},{"$f":"ROUND(Options!$B$21*HLOOKUP(Calculations!$E$2,'Pop2016fractionQ1&2'!$C$3:$BC$251,'Pop2016fractionQ1&2'!$BD80,FALSE),0)","v":0},{"$f":"ROUND(Options!$B$21*HLOOKUP(Calculations!$E$2,PARfraction!$C$3:$BC$251,PARfraction!$BD80,FALSE),0)","v":0},78]
[null,"Male 10-15",{"$f":"ROUND(Options!$B$21*HLOOKUP(Calculations!$E$2,Pop2016fraction!$C$3:$BC$251,Pop2016fraction!$BD81,FALSE),0)","v":0},{"$f":"ROUND(Options!$B$21*HLOOKUP(Calculations!$E$2,Pop2016fractionQ1!$C$3:$BC$251,Pop2016fractionQ1!$BD81,FALSE),0)","v":0},{"$f":"ROUND(Options!$B$21*HLOOKUP(Calculations!$E$2,'Pop2016fractionQ1&2'!$C$3:$BC$251,'Pop2016fractionQ1&2'!$BD81,FALSE),0)","v":0},{"$f":"ROUND(Options!$B$21*HLOOKUP(Calculations!$E$2,PARfraction!$C$3:$BC$251,PARfraction!$BD81,FALSE),0)","v":0},79]
[null,"Male 16-19",{"$f":"ROUND(Options!$B$21*HLOOKUP(Calculations!$E$2,Pop2016fraction!$C$3:$BC$251,Pop2016fraction!$BD82,FALSE),0)","v":1917},{"$f":"ROUND(Options!$B$21*HLOOKUP(Calculations!$E$2,Pop2016fractionQ1!$C$3:$BC$251,Pop2016fractionQ1!$BD82,FALSE),0)","v":9867},{"$f":"ROUND(Options!$B$21*HLOOKUP(Calculations!$E$2,'Pop2016fractionQ1&2'!$C$3:$BC$251,'Pop2016fractionQ1&2'!$BD82,FALSE),0)","v":4864},{"$f":"ROUND(Options!$B$21*HLOOKUP(Calculations!$E$2,PARfraction!$C$3:$BC$251,PARfraction!$BD82,FALSE),0)","v":1688},80]
[null,"Male 20-24",{"$f":"ROUND(Options!$B$21*HLOOKUP(Calculations!$E$2,Pop2016fraction!$C$3:$BC$251,Pop2016fraction!$BD83,FALSE),0)","v":2811},{"$f":"ROUND(Options!$B$21*HLOOKUP(Calculations!$E$2,Pop2016fractionQ1!$C$3:$BC$251,Pop2016fractionQ1!$BD83,FALSE),0)","v":14467},{"$f":"ROUND(Options!$B$21*HLOOKUP(Calculations!$E$2,'Pop2016fractionQ1&2'!$C$3:$BC$251,'Pop2016fractionQ1&2'!$BD83,FALSE),0)","v":7132},{"$f":"ROUND(Options!$B$21*HLOOKUP(Calculations!$E$2,PARfraction!$C$3:$BC$251,PARfraction!$BD83,FALSE),0)","v":2474},81]
[null,"Male 25-29",{"$f":"ROUND(Options!$B$21*HLOOKUP(Calculations!$E$2,Pop2016fraction!$C$3:$BC$251,Pop2016fraction!$BD84,FALSE),0)","v":3221},{"$f":"ROUND(Options!$B$21*HLOOKUP(Calculations!$E$2,Pop2016fractionQ1!$C$3:$BC$251,Pop2016fractionQ1!$BD84,FALSE),0)","v":16576},{"$f":"ROUND(Options!$B$21*HLOOKUP(Calculations!$E$2,'Pop2016fractionQ1&2'!$C$3:$BC$251,'Pop2016fractionQ1&2'!$BD84,FALSE),0)","v":8172},{"$f":"ROUND(Options!$B$21*HLOOKUP(Calculations!$E$2,PARfraction!$C$3:$BC$251,PARfraction!$BD84,FALSE),0)","v":2647},82]
[null,"Male 30-34",{"$f":"ROUND(Options!$B$21*HLOOKUP(Calculations!$E$2,Pop2016fraction!$C$3:$BC$251,Pop2016fraction!$BD85,FALSE),0)","v":2874},{"$f":"ROUND(Options!$B$21*HLOOKUP(Calculations!$E$2,Pop2016fractionQ1!$C$3:$BC$251,Pop2016fractionQ1!$BD85,FALSE),0)","v":14788},{"$f":"ROUND(Options!$B$21*HLOOKUP(Calculations!$E$2,'Pop2016fractionQ1&2'!$C$3:$BC$251,'Pop2016fractionQ1&2'!$BD85,FALSE),0)","v":7290},{"$f":"ROUND(Options!$B$21*HLOOKUP(Calculations!$E$2,PARfraction!$C$3:$BC$251,PARfraction!$BD85,FALSE),0)","v":2361},83]
[null,"Male 35-39",{"$f":"ROUND(Options!$B$21*HLOOKUP(Calculations!$E$2,Pop2016fraction!$C$3:$BC$251,Pop2016fraction!$BD86,FALSE),0)","v":2494},{"$f":"ROUND(Options!$B$21*HLOOKUP(Calculations!$E$2,Pop2016fractionQ1!$C$3:$BC$251,Pop2016fractionQ1!$BD86,FALSE),0)","v":12834},{"$f":"ROUND(Options!$B$21*HLOOKUP(Calculations!$E$2,'Pop2016fractionQ1&2'!$C$3:$BC$251,'Pop2016fractionQ1&2'!$BD86,FALSE),0)","v":6327},{"$f":"ROUND(Options!$B$21*HLOOKUP(Calculations!$E$2,PARfraction!$C$3:$BC$251,PARfraction!$BD86,FALSE),0)","v":2497},84]
[null,"Male 40-44",{"$f":"ROUND(Options!$B$21*HLOOKUP(Calculations!$E$2,Pop2016fraction!$C$3:$BC$251,Pop2016fraction!$BD87,FALSE),0)","v":2391},{"$f":"ROUND(Options!$B$21*HLOOKUP(Calculations!$E$2,Pop2016fractionQ1!$C$3:$BC$251,Pop2016fractionQ1!$BD87,FALSE),0)","v":12304},{"$f":"ROUND(Options!$B$21*HLOOKUP(Calculations!$E$2,'Pop2016fractionQ1&2'!$C$3:$BC$251,'Pop2016fractionQ1&2'!$BD87,FALSE),0)","v":6066},{"$f":"ROUND(Options!$B$21*HLOOKUP(Calculations!$E$2,PARfraction!$C$3:$BC$251,PARfraction!$BD87,FALSE),0)","v":2394},85]
[null,"Male 45-49",{"$f":"ROUND(Options!$B$21*HLOOKUP(Calculations!$E$2,Pop2016fraction!$C$3:$BC$251,Pop2016fraction!$BD88,FALSE),0)","v":2713},{"$f":"ROUND(Options!$B$21*HLOOKUP(Calculations!$E$2,Pop2016fractionQ1!$C$3:$BC$251,Pop2016fractionQ1!$BD88,FALSE),0)","v":13960},{"$f":"ROUND(Options!$B$21*HLOOKUP(Calculations!$E$2,'Pop2016fractionQ1&2'!$C$3:$BC$251,'Pop2016fractionQ1&2'!$BD88,FALSE),0)","v":6882},{"$f":"ROUND(Options!$B$21*HLOOKUP(Calculations!$E$2,PARfraction!$C$3:$BC$251,PARfraction!$BD88,FALSE),0)","v":3768},86]
[null,"Male 50-54",{"$f":"ROUND(Options!$B$21*HLOOKUP(Calculations!$E$2,Pop2016fraction!$C$3:$BC$251,Pop2016fraction!$BD89,FALSE),0)","v":2792},{"$f":"ROUND(Options!$B$21*HLOOKUP(Calculations!$E$2,Pop2016fractionQ1!$C$3:$BC$251,Pop2016fractionQ1!$BD89,FALSE),0)","v":14366},{"$f":"ROUND(Options!$B$21*HLOOKUP(Calculations!$E$2,'Pop2016fractionQ1&2'!$C$3:$BC$251,'Pop2016fractionQ1&2'!$BD89,FALSE),0)","v":7082},{"$f":"ROUND(Options!$B$21*HLOOKUP(Calculations!$E$2,PARfraction!$C$3:$BC$251,PARfraction!$BD89,FALSE),0)","v":3878},87]
[null,"Male 55-59",{"$f":"ROUND(Options!$B$21*HLOOKUP(Calculations!$E$2,Pop2016fraction!$C$3:$BC$251,Pop2016fraction!$BD90,FALSE),0)","v":2514},{"$f":"ROUND(Options!$B$21*HLOOKUP(Calculations!$E$2,Pop2016fractionQ1!$C$3:$BC$251,Pop2016fractionQ1!$BD90,FALSE),0)","v":12938},{"$f":"ROUND(Options!$B$21*HLOOKUP(Calculations!$E$2,'Pop2016fractionQ1&2'!$C$3:$BC$251,'Pop2016fractionQ1&2'!$BD90,FALSE),0)","v":6378},{"$f":"ROUND(Options!$B$21*HLOOKUP(Calculations!$E$2,PARfraction!$C$3:$BC$251,PARfraction!$BD90,FALSE),0)","v":3760},88]
[null,"Male 60-64",{"$f":"ROUND(Options!$B$21*HLOOKUP(Calculations!$E$2,Pop2016fraction!$C$3:$BC$251,Pop2016fraction!$BD91,FALSE),0)","v":2068},{"$f":"ROUND(Options!$B$21*HLOOKUP(Calculations!$E$2,Pop2016fractionQ1!$C$3:$BC$251,Pop2016fractionQ1!$BD91,FALSE),0)","v":10645},{"$f":"ROUND(Options!$B$21*HLOOKUP(Calculations!$E$2,'Pop2016fractionQ1&2'!$C$3:$BC$251,'Pop2016fractionQ1&2'!$BD91,FALSE),0)","v":5248},{"$f":"ROUND(Options!$B$21*HLOOKUP(Calculations!$E$2,PARfraction!$C$3:$BC$251,PARfraction!$BD91,FALSE),0)","v":3094},89]
[null,"Male 65-69",{"$f":"ROUND(Options!$B$21*HLOOKUP(Calculations!$E$2,Pop2016fraction!$C$3:$BC$251,Pop2016fraction!$BD92,FALSE),0)","v":1933},{"$f":"ROUND(Options!$B$21*HLOOKUP(Calculations!$E$2,Pop2016fractionQ1!$C$3:$BC$251,Pop2016fractionQ1!$BD92,FALSE),0)","v":9948},{"$f":"ROUND(Options!$B$21*HLOOKUP(Calculations!$E$2,'Pop2016fractionQ1&2'!$C$3:$BC$251,'Pop2016fractionQ1&2'!$BD92,FALSE),0)","v":4904},{"$f":"ROUND(Options!$B$21*HLOOKUP(Calculations!$E$2,PARfraction!$C$3:$BC$251,PARfraction!$BD92,FALSE),0)","v":2331},90]
[null,"Male 70-74",{"$f":"ROUND(Options!$B$21*HLOOKUP(Calculations!$E$2,Pop2016fraction!$C$3:$BC$251,Pop2016fraction!$BD93,FALSE),0)","v":1388},{"$f":"ROUND(Options!$B$21*HLOOKUP(Calculations!$E$2,Pop2016fractionQ1!$C$3:$BC$251,Pop2016fractionQ1!$BD93,FALSE),0)","v":7143},{"$f":"ROUND(Options!$B$21*HLOOKUP(Calculations!$E$2,'Pop2016fractionQ1&2'!$C$3:$BC$251,'Pop2016fractionQ1&2'!$BD93,FALSE),0)","v":3521},{"$f":"ROUND(Options!$B$21*HLOOKUP(Calculations!$E$2,PARfraction!$C$3:$BC$251,PARfraction!$BD93,FALSE),0)","v":1674},91]
[null,"Male 75-79",{"$f":"ROUND(Options!$B$21*HLOOKUP(Calculations!$E$2,Pop2016fraction!$C$3:$BC$251,Pop2016fraction!$BD94,FALSE),0)","v":1052},{"$f":"ROUND(Options!$B$21*HLOOKUP(Calculations!$E$2,Pop2016fractionQ1!$C$3:$BC$251,Pop2016fractionQ1!$BD94,FALSE),0)","v":5414},{"$f":"ROUND(Options!$B$21*HLOOKUP(Calculations!$E$2,'Pop2016fractionQ1&2'!$C$3:$BC$251,'Pop2016fractionQ1&2'!$BD94,FALSE),0)","v":2669},{"$f":"ROUND(Options!$B$21*HLOOKUP(Calculations!$E$2,PARfraction!$C$3:$BC$251,PARfraction!$BD94,FALSE),0)","v":514},92]
[null,"Male 80-84",{"$f":"ROUND(Options!$B$21*HLOOKUP(Calculations!$E$2,Pop2016fraction!$C$3:$BC$251,Pop2016fraction!$BD95,FALSE),0)","v":698},{"$f":"ROUND(Options!$B$21*HLOOKUP(Calculations!$E$2,Pop2016fractionQ1!$C$3:$BC$251,Pop2016fractionQ1!$BD95,FALSE),0)","v":3594},{"$f":"ROUND(Options!$B$21*HLOOKUP(Calculations!$E$2,'Pop2016fractionQ1&2'!$C$3:$BC$251,'Pop2016fractionQ1&2'!$BD95,FALSE),0)","v":1772},{"$f":"ROUND(Options!$B$21*HLOOKUP(Calculations!$E$2,PARfraction!$C$3:$BC$251,PARfraction!$BD95,FALSE),0)","v":341},93]
[null,"Male 85-89",{"$f":"ROUND(Options!$B$21*HLOOKUP(Calculations!$E$2,Pop2016fraction!$C$3:$BC$251,Pop2016fraction!$BD96,FALSE),0)","v":336},{"$f":"ROUND(Options!$B$21*HLOOKUP(Calculations!$E$2,Pop2016fractionQ1!$C$3:$BC$251,Pop2016fractionQ1!$BD96,FALSE),0)","v":1731},{"$f":"ROUND(Options!$B$21*HLOOKUP(Calculations!$E$2,'Pop2016fractionQ1&2'!$C$3:$BC$251,'Pop2016fractionQ1&2'!$BD96,FALSE),0)","v":853},{"$f":"ROUND(Options!$B$21*HLOOKUP(Calculations!$E$2,PARfraction!$C$3:$BC$251,PARfraction!$BD96,FALSE),0)","v":164},94]
[null,"Male 90+",{"$f":"ROUND(Options!$B$21*HLOOKUP(Calculations!$E$2,Pop2016fraction!$C$3:$BC$251,Pop2016fraction!$BD97,FALSE),0)","v":145},{"$f":"ROUND(Options!$B$21*HLOOKUP(Calculations!$E$2,Pop2016fractionQ1!$C$3:$BC$251,Pop2016fractionQ1!$BD97,FALSE),0)","v":746},{"$f":"ROUND(Options!$B$21*HLOOKUP(Calculations!$E$2,'Pop2016fractionQ1&2'!$C$3:$BC$251,'Pop2016fractionQ1&2'!$BD97,FALSE),0)","v":368},{"$f":"ROUND(Options!$B$21*HLOOKUP(Calculations!$E$2,PARfraction!$C$3:$BC$251,PARfraction!$BD97,FALSE),0)","v":71},95]
["SIMD Q2","Female 0-4",{"$f":"ROUND(Options!$B$21*HLOOKUP(Calculations!$E$2,Pop2016fraction!$C$3:$BC$251,Pop2016fraction!$BD98,FALSE),0)","v":0},{"$f":"ROUND(Options!$B$21*HLOOKUP(Calculations!$E$2,Pop2016fractionQ1!$C$3:$BC$251,Pop2016fractionQ1!$BD98,FALSE),0)","v":0},{"$f":"ROUND(Options!$B$21*HLOOKUP(Calculations!$E$2,'Pop2016fractionQ1&2'!$C$3:$BC$251,'Pop2016fractionQ1&2'!$BD98,FALSE),0)","v":0},{"$f":"ROUND(Options!$B$21*HLOOKUP(Calculations!$E$2,PARfraction!$C$3:$BC$251,PARfraction!$BD98,FALSE),0)","v":0},96]
[null,"Female 5-9",{"$f":"ROUND(Options!$B$21*HLOOKUP(Calculations!$E$2,Pop2016fraction!$C$3:$BC$251,Pop2016fraction!$BD99,FALSE),0)","v":0},{"$f":"ROUND(Options!$B$21*HLOOKUP(Calculations!$E$2,Pop2016fractionQ1!$C$3:$BC$251,Pop2016fractionQ1!$BD99,FALSE),0)","v":0},{"$f":"ROUND(Options!$B$21*HLOOKUP(Calculations!$E$2,'Pop2016fractionQ1&2'!$C$3:$BC$251,'Pop2016fractionQ1&2'!$BD99,FALSE),0)","v":0},{"$f":"ROUND(Options!$B$21*HLOOKUP(Calculations!$E$2,PARfraction!$C$3:$BC$251,PARfraction!$BD99,FALSE),0)","v":0},97]
[null,"Female 10-15",{"$f":"ROUND(Options!$B$21*HLOOKUP(Calculations!$E$2,Pop2016fraction!$C$3:$BC$251,Pop2016fraction!$BD100,FALSE),0)","v":0},{"$f":"ROUND(Options!$B$21*HLOOKUP(Calculations!$E$2,Pop2016fractionQ1!$C$3:$BC$251,Pop2016fractionQ1!$BD100,FALSE),0)","v":0},{"$f":"ROUND(Options!$B$21*HLOOKUP(Calculations!$E$2,'Pop2016fractionQ1&2'!$C$3:$BC$251,'Pop2016fractionQ1&2'!$BD100,FALSE),0)","v":0},{"$f":"ROUND(Options!$B$21*HLOOKUP(Calculations!$E$2,PARfraction!$C$3:$BC$251,PARfraction!$BD100,FALSE),0)","v":0},98]
[null,"Female 16-19",{"$f":"ROUND(Options!$B$21*HLOOKUP(Calculations!$E$2,Pop2016fraction!$C$3:$BC$251,Pop2016fraction!$BD101,FALSE),0)","v":1748},{"$f":"ROUND(Options!$B$21*HLOOKUP(Calculations!$E$2,Pop2016fractionQ1!$C$3:$BC$251,Pop2016fractionQ1!$BD101,FALSE),0)","v":0},{"$f":"ROUND(Options!$B$21*HLOOKUP(Calculations!$E$2,'Pop2016fractionQ1&2'!$C$3:$BC$251,'Pop2016fractionQ1&2'!$BD101,FALSE),0)","v":4435},{"$f":"ROUND(Options!$B$21*HLOOKUP(Calculations!$E$2,PARfraction!$C$3:$BC$251,PARfraction!$BD101,FALSE),0)","v":2109},99]
[null,"Female 20-24",{"$f":"ROUND(Options!$B$21*HLOOKUP(Calculations!$E$2,Pop2016fraction!$C$3:$BC$251,Pop2016fraction!$BD102,FALSE),0)","v":2790},{"$f":"ROUND(Options!$B$21*HLOOKUP(Calculations!$E$2,Pop2016fractionQ1!$C$3:$BC$251,Pop2016fractionQ1!$BD102,FALSE),0)","v":0},{"$f":"ROUND(Options!$B$21*HLOOKUP(Calculations!$E$2,'Pop2016fractionQ1&2'!$C$3:$BC$251,'Pop2016fractionQ1&2'!$BD102,FALSE),0)","v":7078},{"$f":"ROUND(Options!$B$21*HLOOKUP(Calculations!$E$2,PARfraction!$C$3:$BC$251,PARfraction!$BD102,FALSE),0)","v":3365},100]
[null,"Female 25-29",{"$f":"ROUND(Options!$B$21*HLOOKUP(Calculations!$E$2,Pop2016fraction!$C$3:$BC$251,Pop2016fraction!$BD103,FALSE),0)","v":3070},{"$f":"ROUND(Options!$B$21*HLOOKUP(Calculations!$E$2,Pop2016fractionQ1!$C$3:$BC$251,Pop2016fractionQ1!$BD103,FALSE),0)","v":0},{"$f":"ROUND(Options!$B$21*HLOOKUP(Calculations!$E$2,'Pop2016fractionQ1&2'!$C$3:$BC$251,'Pop2016fractionQ1&2'!$BD103,FALSE),0)","v":7790},{"$f":"ROUND(Options!$B$21*HLOOKUP(Calculations!$E$2,PARfraction!$C$3:$BC$251,PARfraction!$BD103,FALSE),0)","v":2357},101]
[null,"Female 30-34",{"$f":"ROUND(Options!$B$21*HLOOKUP(Calculations!$E$2,Pop2016fraction!$C$3:$BC$251,Pop2016fraction!$BD104,FALSE),0)","v":2881},{"$f":"ROUND(Options!$B$21*HLOOKUP(Calculations!$E$2,Pop2016fractionQ1!$C$3:$BC$251,Pop2016fractionQ1!$BD104,FALSE),0)","v":0},{"$f":"ROUND(Options!$B$21*HLOOKUP(Calculations!$E$2,'Pop2016fractionQ1&2'!$C$3:$BC$251,'Pop2016fractionQ1&2'!$BD104,FALSE),0)","v":7309},{"$f":"ROUND(Options!$B$21*HLOOKUP(Calculations!$E$2,PARfraction!$C$3:$BC$251,PARfraction!$BD104,FALSE),0)","v":2211},102]
[null,"Female 35-39",{"$f":"ROUND(Options!$B$21*HLOOKUP(Calculations!$E$2,Pop2016fraction!$C$3:$BC$251,Pop2016fraction!$BD105,FALSE),0)","v":2496},{"$f":"ROUND(Options!$B$21*HLOOKUP(Calculations!$E$2,Pop2016fractionQ1!$C$3:$BC$251,Pop2016fractionQ1!$BD105,FALSE),0)","v":0},{"$f":"ROUND(Options!$B$21*HLOOKUP(Calculations!$E$2,'Pop2016fractionQ1&2'!$C$3:$BC$251,'Pop2016fractionQ1&2'!$BD105,FALSE),0)","v":6333},{"$f":"ROUND(Options!$B$21*HLOOKUP(Calculations!$E$2,PARfraction!$C$3:$BC$251,PARfraction!$BD105,FALSE),0)","v":2304},103]
[null,"Female 40-44",{"$f":"ROUND(Options!$B$21*HLOOKUP(Calculations!$E$2,Pop2016fraction!$C$3:$BC$251,Pop2016fraction!$BD106,FALSE),0)","v":2528},{"$f":"ROUND(Options!$B$21*HLOOKUP(Calculations!$E$2,Pop2016fractionQ1!$C$3:$BC$251,Pop2016fractionQ1!$BD106,FALSE),0)","v":0},{"$f":"ROUND(Options!$B$21*HLOOKUP(Calculations!$E$2,'Pop2016fractionQ1&2'!$C$3:$BC$251,'Pop2016fractionQ1&2'!$BD106,FALSE),0)","v":6415},{"$f":"ROUND(Options!$B$21*HLOOKUP(Calculations!$E$2,PARfraction!$C$3:$BC$251,PARfraction!$BD106,FALSE),0)","v":2334},104]
[null,"Female 45-49",{"$f":"ROUND(Options!$B$21*HLOOKUP(Calculations!$E$2,Pop2016fraction!$C$3:$BC$251,Pop2016fraction!$BD107,FALSE),0)","v":2962},{"$f":"ROUND(Options!$B$21*HLOOKUP(Calculations!$E$2,Pop2016fractionQ1!$C$3:$BC$251,Pop2016fractionQ1!$BD107,FALSE),0)","v":0},{"$f":"ROUND(Options!$B$21*HLOOKUP(Calculations!$E$2,'Pop2016fractionQ1&2'!$C$3:$BC$251,'Pop2016fractionQ1&2'!$BD107,FALSE),0)","v":7514},{"$f":"ROUND(Options!$B$21*HLOOKUP(Calculations!$E$2,PARfraction!$C$3:$BC$251,PARfraction!$BD107,FALSE),0)","v":2943},105]
[null,"Female 50-54",{"$f":"ROUND(Options!$B$21*HLOOKUP(Calculations!$E$2,Pop2016fraction!$C$3:$BC$251,Pop2016fraction!$BD108,FALSE),0)","v":3063},{"$f":"ROUND(Options!$B$21*HLOOKUP(Calculations!$E$2,Pop2016fractionQ1!$C$3:$BC$251,Pop2016fractionQ1!$BD108,FALSE),0)","v":0},{"$f":"ROUND(Options!$B$21*HLOOKUP(Calculations!$E$2,'Pop2016fractionQ1&2'!$C$3:$BC$251,'Pop2016fractionQ1&2'!$BD108,FALSE),0)","v":7772},{"$f":"ROUND(Options!$B$21*HLOOKUP(Calculations!$E$2,PARfraction!$C$3:$BC$251,PARfraction!$BD108,FALSE),0)","v":3045},106]
[null,"Female 55-59",{"$f":"ROUND(Options!$B$21*HLOOKUP(Calculations!$E$2,Pop2016fraction!$C$3:$BC$251,Pop2016fraction!$BD109,FALSE),0)","v":2818},{"$f":"ROUND(Options!$B$21*HLOOKUP(Calculations!$E$2,Pop2016fractionQ1!$C$3:$BC$251,Pop2016fractionQ1!$BD109,FALSE),0)","v":0},{"$f":"ROUND(Options!$B$21*HLOOKUP(Calculations!$E$2,'Pop2016fractionQ1&2'!$C$3:$BC$251,'Pop2016fractionQ1&2'!$BD109,FALSE),0)","v":7150},{"$f":"ROUND(Options!$B$21*HLOOKUP(Calculations!$E$2,PARfraction!$C$3:$BC$251,PARfraction!$BD109,FALSE),0)","v":1945},107]
[null,"Female 60-64",{"$f":"ROUND(Options!$B$21*HLOOKUP(Calculations!$E$2,Pop2016fraction!$C$3:$BC$251,Pop2016fraction!$BD110,FALSE),0)","v":2468},{"$f":"ROUND(Options!$B$21*HLOOKUP(Calculations!$E$2,Pop2016fractionQ1!$C$3:$BC$251,Pop2016fractionQ1!$BD110,FALSE),0)","v":0},{"$f":"ROUND(Options!$B$21*HLOOKUP(Calculations!$E$2,'Pop2016fractionQ1&2'!$C$3:$BC$251,'Pop2016fractionQ1&2'!$BD110,FALSE),0)","v":6262},{"$f":"ROUND(Options!$B$21*HLOOKUP(Calculations!$E$2,PARfraction!$C$3:$BC$251,PARfraction!$BD110,FALSE),0)","v":1704},108]
[null,"Female 65-69",{"$f":"ROUND(Options!$B$21*HLOOKUP(Calculations!$E$2,Pop2016fraction!$C$3:$BC$251,Pop2016fraction!$BD111,FALSE),0)","v":2463},{"$f":"ROUND(Options!$B$21*HLOOKUP(Calculations!$E$2,Pop2016fractionQ1!$C$3:$BC$251,Pop2016fractionQ1!$BD111,FALSE),0)","v":0},{"$f":"ROUND(Options!$B$21*HLOOKUP(Calculations!$E$2,'Pop2016fractionQ1&2'!$C$3:$BC$251,'Pop2016fractionQ1&2'!$BD111,FALSE),0)","v":6250},{"$f":"ROUND(Options!$B$21*HLOOKUP(Calculations!$E$2,PARfraction!$C$3:$BC$251,PARfraction!$BD111,FALSE),0)","v":1147},109]
[null,"Female 70-74",{"$f":"ROUND(Options!$B$21*HLOOKUP(Calculations!$E$2,Pop2016fraction!$C$3:$BC$251,Pop2016fraction!$BD112,FALSE),0)","v":1948},{"$f":"ROUND(Options!$B$21*HLOOKUP(Calculations!$E$2,Pop2016fractionQ1!$C$3:$BC$251,Pop2016fractionQ1!$BD112,FALSE),0)","v":0},{"$f":"ROUND(Options!$B$21*HLOOKUP(Calculations!$E$2,'Pop2016fractionQ1&2'!$C$3:$BC$251,'Pop2016fractionQ1&2'!$BD112,FALSE),0)","v":4942},{"$f":"ROUND(Options!$B$21*HLOOKUP(Calculations!$E$2,PARfraction!$C$3:$BC$251,PARfraction!$BD112,FALSE),0)","v":907},110]
[null,"Female 75-79",{"$f":"ROUND(Options!$B$21*HLOOKUP(Calculations!$E$2,Pop2016fraction!$C$3:$BC$251,Pop2016fraction!$BD113,FALSE),0)","v":1676},{"$f":"ROUND(Options!$B$21*HLOOKUP(Calculations!$E$2,Pop2016fractionQ1!$C$3:$BC$251,Pop2016fractionQ1!$BD113,FALSE),0)","v":0},{"$f":"ROUND(Options!$B$21*HLOOKUP(Calculations!$E$2,'Pop2016fractionQ1&2'!$C$3:$BC$251,'Pop2016fractionQ1&2'!$BD113,FALSE),0)","v":4252},{"$f":"ROUND(Options!$B$21*HLOOKUP(Calculations!$E$2,PARfraction!$C$3:$BC$251,PARfraction!$BD113,FALSE),0)","v":236},111]
[null,"Female 80-84",{"$f":"ROUND(Options!$B$21*HLOOKUP(Calculations!$E$2,Pop2016fraction!$C$3:$BC$251,Pop2016fraction!$BD114,FALSE),0)","v":1321},{"$f":"ROUND(Options!$B$21*HLOOKUP(Calculations!$E$2,Pop2016fractionQ1!$C$3:$BC$251,Pop2016fractionQ1!$BD114,FALSE),0)","v":0},{"$f":"ROUND(Options!$B$21*HLOOKUP(Calculations!$E$2,'Pop2016fractionQ1&2'!$C$3:$BC$251,'Pop2016fractionQ1&2'!$BD114,FALSE),0)","v":3351},{"$f":"ROUND(Options!$B$21*HLOOKUP(Calculations!$E$2,PARfraction!$C$3:$BC$251,PARfraction!$BD114,FALSE),0)","v":186},112]
[null,"Female 85-89",{"$f":"ROUND(Options!$B$21*HLOOKUP(Calculations!$E$2,Pop2016fraction!$C$3:$BC$251,Pop2016fraction!$BD115,FALSE),0)","v":787},{"$f":"ROUND(Options!$B$21*HLOOKUP(Calculations!$E$2,Pop2016fractionQ1!$C$3:$BC$251,Pop2016fractionQ1!$BD115,FALSE),0)","v":0},{"$f":"ROUND(Options!$B$21*HLOOKUP(Calculations!$E$2,'Pop2016fractionQ1&2'!$C$3:$BC$251,'Pop2016fractionQ1&2'!$BD115,FALSE),0)","v":1997},{"$f":"ROUND(Options!$B$21*HLOOKUP(Calculations!$E$2,PARfraction!$C$3:$BC$251,PARfraction!$BD115,FALSE),0)","v":111},113]
[null,"Female 90+",{"$f":"ROUND(Options!$B$21*HLOOKUP(Calculations!$E$2,Pop2016fraction!$C$3:$BC$251,Pop2016fraction!$BD116,FALSE),0)","v":445},{"$f":"ROUND(Options!$B$21*HLOOKUP(Calculations!$E$2,Pop2016fractionQ1!$C$3:$BC$251,Pop2016fractionQ1!$BD116,FALSE),0)","v":0},{"$f":"ROUND(Options!$B$21*HLOOKUP(Calculations!$E$2,'Pop2016fractionQ1&2'!$C$3:$BC$251,'Pop2016fractionQ1&2'!$BD116,FALSE),0)","v":1130},{"$f":"ROUND(Options!$B$21*HLOOKUP(Calculations!$E$2,PARfraction!$C$3:$BC$251,PARfraction!$BD116,FALSE),0)","v":63},114]
[null,"Male 0-4",{"$f":"ROUND(Options!$B$21*HLOOKUP(Calculations!$E$2,Pop2016fraction!$C$3:$BC$251,Pop2016fraction!$BD117,FALSE),0)","v":0},{"$f":"ROUND(Options!$B$21*HLOOKUP(Calculations!$E$2,Pop2016fractionQ1!$C$3:$BC$251,Pop2016fractionQ1!$BD117,FALSE),0)","v":0},{"$f":"ROUND(Options!$B$21*HLOOKUP(Calculations!$E$2,'Pop2016fractionQ1&2'!$C$3:$BC$251,'Pop2016fractionQ1&2'!$BD117,FALSE),0)","v":0},{"$f":"ROUND(Options!$B$21*HLOOKUP(Calculations!$E$2,PARfraction!$C$3:$BC$251,PARfraction!$BD117,FALSE),0)","v":0},115]
[null,"Male 5-9",{"$f":"ROUND(Options!$B$21*HLOOKUP(Calculations!$E$2,Pop2016fraction!$C$3:$BC$251,Pop2016fraction!$BD118,FALSE),0)","v":0},{"$f":"ROUND(Options!$B$21*HLOOKUP(Calculations!$E$2,Pop2016fractionQ1!$C$3:$BC$251,Pop2016fractionQ1!$BD118,FALSE),0)","v":0},{"$f":"ROUND(Options!$B$21*HLOOKUP(Calculations!$E$2,'Pop2016fractionQ1&2'!$C$3:$BC$251,'Pop2016fractionQ1&2'!$BD118,FALSE),0)","v":0},{"$f":"ROUND(Options!$B$21*HLOOKUP(Calculations!$E$2,PARfraction!$C$3:$BC$251,PARfraction!$BD118,FALSE),0)","v":0},116]
[null,"Male 10-15",{"$f":"ROUND(Options!$B$21*HLOOKUP(Calculations!$E$2,Pop2016fraction!$C$3:$BC$251,Pop2016fraction!$BD119,FALSE),0)","v":0},{"$f":"ROUND(Options!$B$21*HLOOKUP(Calculations!$E$2,Pop2016fractionQ1!$C$3:$BC$251,Pop2016fractionQ1!$BD119,FALSE),0)","v":0},{"$f":"ROUND(Options!$B$21*HLOOKUP(Calculations!$E$2,'Pop2016fractionQ1&2'!$C$3:$BC$251,'Pop2016fractionQ1&2'!$BD119,FALSE),0)","v":0},{"$f":"ROUND(Options!$B$21*HLOOKUP(Calculations!$E$2,PARfraction!$C$3:$BC$251,PARfraction!$BD119,FALSE),0)","v":0},117]
[null,"Male 16-19",{"$f":"ROUND(Options!$B$21*HLOOKUP(Calculations!$E$2,Pop2016fraction!$C$3:$BC$251,Pop2016fraction!$BD120,FALSE),0)","v":1791},{"$f":"ROUND(Options!$B$21*HLOOKUP(Calculations!$E$2,Pop2016fractionQ1!$C$3:$BC$251,Pop2016fractionQ1!$BD120,FALSE),0)","v":0},{"$f":"ROUND(Options!$B$21*HLOOKUP(Calculations!$E$2,'Pop2016fractionQ1&2'!$C$3:$BC$251,'Pop2016fractionQ1&2'!$BD120,FALSE),0)","v":4545},{"$f":"ROUND(Options!$B$21*HLOOKUP(Calculations!$E$2,PARfraction!$C$3:$BC$251,PARfraction!$BD120,FALSE),0)","v":1588},118]
[null,"Male 20-24",{"$f":"ROUND(Options!$B$21*HLOOKUP(Calculations!$E$2,Pop2016fraction!$C$3:$BC$251,Pop2016fraction!$BD121,FALSE),0)","v":2719},{"$f":"ROUND(Options!$B$21*HLOOKUP(Calculations!$E$2,Pop2016fractionQ1!$C$3:$BC$251,Pop2016fractionQ1!$BD121,FALSE),0)","v":0},{"$f":"ROUND(Options!$B$21*HLOOKUP(Calculations!$E$2,'Pop2016fractionQ1&2'!$C$3:$BC$251,'Pop2016fractionQ1&2'!$BD121,FALSE),0)","v":6899},{"$f":"ROUND(Options!$B$21*HLOOKUP(Calculations!$E$2,PARfraction!$C$3:$BC$251,PARfraction!$BD121,FALSE),0)","v":2410},119]
[null,"Male 25-29",{"$f":"ROUND(Options!$B$21*HLOOKUP(Calculations!$E$2,Pop2016fraction!$C$3:$BC$251,Pop2016fraction!$BD122,FALSE),0)","v":2995},{"$f":"ROUND(Options!$B$21*HLOOKUP(Calculations!$E$2,Pop2016fractionQ1!$C$3:$BC$251,Pop2016fractionQ1!$BD122,FALSE),0)","v":0},{"$f":"ROUND(Options!$B$21*HLOOKUP(Calculations!$E$2,'Pop2016fractionQ1&2'!$C$3:$BC$251,'Pop2016fractionQ1&2'!$BD122,FALSE),0)","v":7598},{"$f":"ROUND(Options!$B$21*HLOOKUP(Calculations!$E$2,PARfraction!$C$3:$BC$251,PARfraction!$BD122,FALSE),0)","v":4179},120]
[null,"Male 30-34",{"$f":"ROUND(Options!$B$21*HLOOKUP(Calculations!$E$2,Pop2016fraction!$C$3:$BC$251,Pop2016fraction!$BD123,FALSE),0)","v":2809},{"$f":"ROUND(Options!$B$21*HLOOKUP(Calculations!$E$2,Pop2016fractionQ1!$C$3:$BC$251,Pop2016fractionQ1!$BD123,FALSE),0)","v":0},{"$f":"ROUND(Options!$B$21*HLOOKUP(Calculations!$E$2,'Pop2016fractionQ1&2'!$C$3:$BC$251,'Pop2016fractionQ1&2'!$BD123,FALSE),0)","v":7125},{"$f":"ROUND(Options!$B$21*HLOOKUP(Calculations!$E$2,PARfraction!$C$3:$BC$251,PARfraction!$BD123,FALSE),0)","v":3919},121]
[null,"Male 35-39",{"$f":"ROUND(Options!$B$21*HLOOKUP(Calculations!$E$2,Pop2016fraction!$C$3:$BC$251,Pop2016fraction!$BD124,FALSE),0)","v":2445},{"$f":"ROUND(Options!$B$21*HLOOKUP(Calculations!$E$2,Pop2016fractionQ1!$C$3:$BC$251,Pop2016fractionQ1!$BD124,FALSE),0)","v":0},{"$f":"ROUND(Options!$B$21*HLOOKUP(Calculations!$E$2,'Pop2016fractionQ1&2'!$C$3:$BC$251,'Pop2016fractionQ1&2'!$BD124,FALSE),0)","v":6204},{"$f":"ROUND(Options!$B$21*HLOOKUP(Calculations!$E$2,PARfraction!$C$3:$BC$251,PARfraction!$BD124,FALSE),0)","v":2417},122]
[null,"Male 40-44",{"$f":"ROUND(Options!$B$21*HLOOKUP(Calculations!$E$2,Pop2016fraction!$C$3:$BC$251,Pop2016fraction!$BD125,FALSE),0)","v":2420},{"$f":"ROUND(Options!$B$21*HLOOKUP(Calculations!$E$2,Pop2016fractionQ1!$C$3:$BC$251,Pop2016fractionQ1!$BD125,FALSE),0)","v":0},{"$f":"ROUND(Options!$B$21*HLOOKUP(Calculations!$E$2,'Pop2016fractionQ1&2'!$C$3:$BC$251,'Pop2016fractionQ1&2'!$BD125,FALSE),0)","v":6141},{"$f":"ROUND(Options!$B$21*HLOOKUP(Calculations!$E$2,PARfraction!$C$3:$BC$251,PARfraction!$BD125,FALSE),0)","v":2393},123]
[null,"Male 45-49",{"$f":"ROUND(Options!$B$21*HLOOKUP(Calculations!$E$2,Pop2016fraction!$C$3:$BC$251,Pop2016fraction!$BD126,FALSE),0)","v":2774},{"$f":"ROUND(Options!$B$21*HLOOKUP(Calculations!$E$2,Pop2016fractionQ1!$C$3:$BC$251,Pop2016fractionQ1!$BD126,FALSE),0)","v":0},{"$f":"ROUND(Options!$B$21*HLOOKUP(Calculations!$E$2,'Pop2016fractionQ1&2'!$C$3:$BC$251,'Pop2016fractionQ1&2'!$BD126,FALSE),0)","v":7038},{"$f":"ROUND(Options!$B$21*HLOOKUP(Calculations!$E$2,PARfraction!$C$3:$BC$251,PARfraction!$BD126,FALSE),0)","v":3195},124]
[null,"Male 50-54",{"$f":"ROUND(Options!$B$21*HLOOKUP(Calculations!$E$2,Pop2016fraction!$C$3:$BC$251,Pop2016fraction!$BD127,FALSE),0)","v":2859},{"$f":"ROUND(Options!$B$21*HLOOKUP(Calculations!$E$2,Pop2016fractionQ1!$C$3:$BC$251,Pop2016fractionQ1!$BD127,FALSE),0)","v":0},{"$f":"ROUND(Options!$B$21*HLOOKUP(Calculations!$E$2,'Pop2016fractionQ1&2'!$C$3:$BC$251,'Pop2016fractionQ1&2'!$BD127,FALSE),0)","v":7255},{"$f":"ROUND(Options!$B$21*HLOOKUP(Calculations!$E$2,PARfraction!$C$3:$BC$251,PARfraction!$BD127,FALSE),0)","v":3293},125]
[null,"Male 55-59",{"$f":"ROUND(Options!$B$21*HLOOKUP(Calculations!$E$2,Pop2016fraction!$C$3:$BC$251,Pop2016fraction!$BD128,FALSE),0)","v":2649},{"$f":"ROUND(Options!$B$21*HLOOKUP(Calculations!$E$2,Pop2016fractionQ1!$C$3:$BC$251,Pop2016fractionQ1!$BD128,FALSE),0)","v":0},{"$f":"ROUND(Options!$B$21*HLOOKUP(Calculations!$E$2,'Pop2016fractionQ1&2'!$C$3:$BC$251,'Pop2016fractionQ1&2'!$BD128,FALSE),0)","v":6721},{"$f":"ROUND(Options!$B$21*HLOOKUP(Calculations!$E$2,PARfraction!$C$3:$BC$251,PARfraction!$BD128,FALSE),0)","v":3237},126]
[null,"Male 60-64",{"$f":"ROUND(Options!$B$21*HLOOKUP(Calculations!$E$2,Pop2016fraction!$C$3:$BC$251,Pop2016fraction!$BD129,FALSE),0)","v":2267},{"$f":"ROUND(Options!$B$21*HLOOKUP(Calculations!$E$2,Pop2016fractionQ1!$C$3:$BC$251,Pop2016fractionQ1!$BD129,FALSE),0)","v":0},{"$f":"ROUND(Options!$B$21*HLOOKUP(Calculations!$E$2,'Pop2016fractionQ1&2'!$C$3:$BC$251,'Pop2016fractionQ1&2'!$BD129,FALSE),0)","v":5751},{"$f":"ROUND(Options!$B$21*HLOOKUP(Calculations!$E$2,PARfraction!$C$3:$BC$251,PARfraction!$BD129,FALSE),0)","v":2769},127]
[null,"Male 65-69",{"$f":"ROUND(Options!$B$21*HLOOKUP(Calculations!$E$2,Pop2016fraction!$C$3:$BC$251,Pop2016fraction!$BD130,FALSE),0)","v":2248},{"$f":"ROUND(Options!$B$21*HLOOKUP(Calculations!$E$2,Pop2016fractionQ1!$C$3:$BC$251,Pop2016fractionQ1!$BD130,FALSE),0)","v":0},{"$f":"ROUND(Options!$B$21*HLOOKUP(Calculations!$E$2,'Pop2016fractionQ1&2'!$C$3:$BC$251,'Pop2016fractionQ1&2'!$BD130,FALSE),0)","v":5702},{"$f":"ROUND(Options!$B$21*HLOOKUP(Calculations!$E$2,PARfraction!$C$3:$BC$251,PARfraction!$BD130,FALSE),0)","v":2716},128]
[null,"Male 70-74",{"$f":"ROUND(Options!$B$21*HLOOKUP(Calculations!$E$2,Pop2016fraction!$C$3:$BC$251,Pop2016fraction!$BD131,FALSE),0)","v":1667},{"$f":"ROUND(Options!$B$21*HLOOKUP(Calculations!$E$2,Pop2016fractionQ1!$C$3:$BC$251,Pop2016fractionQ1!$BD131,FALSE),0)","v":0},{"$f":"ROUND(Options!$B$21*HLOOKUP(Calculations!$E$2,'Pop2016fractionQ1&2'!$C$3:$BC$251,'Pop2016fractionQ1&2'!$BD131,FALSE),0)","v":4230},{"$f":"ROUND(Options!$B$21*HLOOKUP(Calculations!$E$2,PARfraction!$C$3:$BC$251,PARfraction!$BD131,FALSE),0)","v":2015},129]
[null,"Male 75-79",{"$f":"ROUND(Options!$B$21*HLOOKUP(Calculations!$E$2,Pop2016fraction!$C$3:$BC$251,Pop2016fraction!$BD132,FALSE),0)","v":1262},{"$f":"ROUND(Options!$B$21*HLOOKUP(Calculations!$E$2,Pop2016fractionQ1!$C$3:$BC$251,Pop2016fractionQ1!$BD132,FALSE),0)","v":0},{"$f":"ROUND(Options!$B$21*HLOOKUP(Calculations!$E$2,'Pop2016fractionQ1&2'!$C$3:$BC$251,'Pop2016fractionQ1&2'!$BD132,FALSE),0)","v":3202},{"$f":"ROUND(Options!$B$21*HLOOKUP(Calculations!$E$2,PARfraction!$C$3:$BC$251,PARfraction!$BD132,FALSE),0)","v":728},130]
[null,"Male 80-84",{"$f":"ROUND(Options!$B$21*HLOOKUP(Calculations!$E$2,Pop2016fraction!$C$3:$BC$251,Pop2016fraction!$BD133,FALSE),0)","v":857},{"$f":"ROUND(Options!$B$21*HLOOKUP(Calculations!$E$2,Pop2016fractionQ1!$C$3:$BC$251,Pop2016fractionQ1!$BD133,FALSE),0)","v":0},{"$f":"ROUND(Options!$B$21*HLOOKUP(Calculations!$E$2,'Pop2016fractionQ1&2'!$C$3:$BC$251,'Pop2016fractionQ1&2'!$BD133,FALSE),0)","v":2174},{"$f":"ROUND(Options!$B$21*HLOOKUP(Calculations!$E$2,PARfraction!$C$3:$BC$251,PARfraction!$BD133,FALSE),0)","v":494},131]
[null,"Male 85-89",{"$f":"ROUND(Options!$B$21*HLOOKUP(Calculations!$E$2,Pop2016fraction!$C$3:$BC$251,Pop2016fraction!$BD134,FALSE),0)","v":421},{"$f":"ROUND(Options!$B$21*HLOOKUP(Calculations!$E$2,Pop2016fractionQ1!$C$3:$BC$251,Pop2016fractionQ1!$BD134,FALSE),0)","v":0},{"$f":"ROUND(Options!$B$21*HLOOKUP(Calculations!$E$2,'Pop2016fractionQ1&2'!$C$3:$BC$251,'Pop2016fractionQ1&2'!$BD134,FALSE),0)","v":1068},{"$f":"ROUND(Options!$B$21*HLOOKUP(Calculations!$E$2,PARfraction!$C$3:$BC$251,PARfraction!$BD134,FALSE),0)","v":243},132]
[null,"Male 90+",{"$f":"ROUND(Options!$B$21*HLOOKUP(Calculations!$E$2,Pop2016fraction!$C$3:$BC$251,Pop2016fraction!$BD135,FALSE),0)","v":173},{"$f":"ROUND(Options!$B$21*HLOOKUP(Calculations!$E$2,Pop2016fractionQ1!$C$3:$BC$251,Pop2016fractionQ1!$BD135,FALSE),0)","v":0},{"$f":"ROUND(Options!$B$21*HLOOKUP(Calculations!$E$2,'Pop2016fractionQ1&2'!$C$3:$BC$251,'Pop2016fractionQ1&2'!$BD135,FALSE),0)","v":439},{"$f":"ROUND(Options!$B$21*HLOOKUP(Calculations!$E$2,PARfraction!$C$3:$BC$251,PARfraction!$BD135,FALSE),0)","v":100},133]
["SIMD Q3","Female 0-4",{"$f":"ROUND(Options!$B$21*HLOOKUP(Calculations!$E$2,Pop2016fraction!$C$3:$BC$251,Pop2016fraction!$BD136,FALSE),0)","v":0},{"$f":"ROUND(Options!$B$21*HLOOKUP(Calculations!$E$2,Pop2016fractionQ1!$C$3:$BC$251,Pop2016fractionQ1!$BD136,FALSE),0)","v":0},{"$f":"ROUND(Options!$B$21*HLOOKUP(Calculations!$E$2,'Pop2016fractionQ1&2'!$C$3:$BC$251,'Pop2016fractionQ1&2'!$BD136,FALSE),0)","v":0},{"$f":"ROUND(Options!$B$21*HLOOKUP(Calculations!$E$2,PARfraction!$C$3:$BC$251,PARfraction!$BD136,FALSE),0)","v":0},134]
[null,"Female 5-9",{"$f":"ROUND(Options!$B$21*HLOOKUP(Calculations!$E$2,Pop2016fraction!$C$3:$BC$251,Pop2016fraction!$BD137,FALSE),0)","v":0},{"$f":"ROUND(Options!$B$21*HLOOKUP(Calculations!$E$2,Pop2016fractionQ1!$C$3:$BC$251,Pop2016fractionQ1!$BD137,FALSE),0)","v":0},{"$f":"ROUND(Options!$B$21*HLOOKUP(Calculations!$E$2,'Pop2016fractionQ1&2'!$C$3:$BC$251,'Pop2016fractionQ1&2'!$BD137,FALSE),0)","v":0},{"$f":"ROUND(Options!$B$21*HLOOKUP(Calculations!$E$2,PARfraction!$C$3:$BC$251,PARfraction!$BD137,FALSE),0)","v":0},135]
[null,"Female 10-15",{"$f":"ROUND(Options!$B$21*HLOOKUP(Calculations!$E$2,Pop2016fraction!$C$3:$BC$251,Pop2016fraction!$BD138,FALSE),0)","v":0},{"$f":"ROUND(Options!$B$21*HLOOKUP(Calculations!$E$2,Pop2016fractionQ1!$C$3:$BC$251,Pop2016fractionQ1!$BD138,FALSE),0)","v":0},{"$f":"ROUND(Options!$B$21*HLOOKUP(Calculations!$E$2,'Pop2016fractionQ1&2'!$C$3:$BC$251,'Pop2016fractionQ1&2'!$BD138,FALSE),0)","v":0},{"$f":"ROUND(Options!$B$21*HLOOKUP(Calculations!$E$2,PARfraction!$C$3:$BC$251,PARfraction!$BD138,FALSE),0)","v":0},136]
[null,"Female 16-19",{"$f":"ROUND(Options!$B$21*HLOOKUP(Calculations!$E$2,Pop2016fraction!$C$3:$BC$251,Pop2016fraction!$BD139,FALSE),0)","v":1729},{"$f":"ROUND(Options!$B$21*HLOOKUP(Calculations!$E$2,Pop2016fractionQ1!$C$3:$BC$251,Pop2016fractionQ1!$BD139,FALSE),0)","v":0},{"$f":"ROUND(Options!$B$21*HLOOKUP(Calculations!$E$2,'Pop2016fractionQ1&2'!$C$3:$BC$251,'Pop2016fractionQ1&2'!$BD139,FALSE),0)","v":0},{"$f":"ROUND(Options!$B$21*HLOOKUP(Calculations!$E$2,PARfraction!$C$3:$BC$251,PARfraction!$BD139,FALSE),0)","v":2144},137]
[null,"Female 20-24",{"$f":"ROUND(Options!$B$21*HLOOKUP(Calculations!$E$2,Pop2016fraction!$C$3:$BC$251,Pop2016fraction!$BD140,FALSE),0)","v":2639},{"$f":"ROUND(Options!$B$21*HLOOKUP(Calculations!$E$2,Pop2016fractionQ1!$C$3:$BC$251,Pop2016fractionQ1!$BD140,FALSE),0)","v":0},{"$f":"ROUND(Options!$B$21*HLOOKUP(Calculations!$E$2,'Pop2016fractionQ1&2'!$C$3:$BC$251,'Pop2016fractionQ1&2'!$BD140,FALSE),0)","v":0},{"$f":"ROUND(Options!$B$21*HLOOKUP(Calculations!$E$2,PARfraction!$C$3:$BC$251,PARfraction!$BD140,FALSE),0)","v":3274},138]
[null,"Female 25-29",{"$f":"ROUND(Options!$B$21*HLOOKUP(Calculations!$E$2,Pop2016fraction!$C$3:$BC$251,Pop2016fraction!$BD141,FALSE),0)","v":2755},{"$f":"ROUND(Options!$B$21*HLOOKUP(Calculations!$E$2,Pop2016fractionQ1!$C$3:$BC$251,Pop2016fractionQ1!$BD141,FALSE),0)","v":0},{"$f":"ROUND(Options!$B$21*HLOOKUP(Calculations!$E$2,'Pop2016fractionQ1&2'!$C$3:$BC$251,'Pop2016fractionQ1&2'!$BD141,FALSE),0)","v":0},{"$f":"ROUND(Options!$B$21*HLOOKUP(Calculations!$E$2,PARfraction!$C$3:$BC$251,PARfraction!$BD141,FALSE),0)","v":2303},139]
[null,"Female 30-34",{"$f":"ROUND(Options!$B$21*HLOOKUP(Calculations!$E$2,Pop2016fraction!$C$3:$BC$251,Pop2016fraction!$BD142,FALSE),0)","v":2631},{"$f":"ROUND(Options!$B$21*HLOOKUP(Calculations!$E$2,Pop2016fractionQ1!$C$3:$BC$251,Pop2016fractionQ1!$BD142,FALSE),0)","v":0},{"$f":"ROUND(Options!$B$21*HLOOKUP(Calculations!$E$2,'Pop2016fractionQ1&2'!$C$3:$BC$251,'Pop2016fractionQ1&2'!$BD142,FALSE),0)","v":0},{"$f":"ROUND(Options!$B$21*HLOOKUP(Calculations!$E$2,PARfraction!$C$3:$BC$251,PARfraction!$BD142,FALSE),0)","v":2200},140]
[null,"Female 35-39",{"$f":"ROUND(Options!$B$21*HLOOKUP(Calculations!$E$2,Pop2016fraction!$C$3:$BC$251,Pop2016fraction!$BD143,FALSE),0)","v":2416},{"$f":"ROUND(Options!$B$21*HLOOKUP(Calculations!$E$2,Pop2016fractionQ1!$C$3:$BC$251,Pop2016fractionQ1!$BD143,FALSE),0)","v":0},{"$f":"ROUND(Options!$B$21*HLOOKUP(Calculations!$E$2,'Pop2016fractionQ1&2'!$C$3:$BC$251,'Pop2016fractionQ1&2'!$BD143,FALSE),0)","v":0},{"$f":"ROUND(Options!$B$21*HLOOKUP(Calculations!$E$2,PARfraction!$C$3:$BC$251,PARfraction!$BD143,FALSE),0)","v":2565},141]
[null,"Female 40-44",{"$f":"ROUND(Options!$B$21*HLOOKUP(Calculations!$E$2,Pop2016fraction!$C$3:$BC$251,Pop2016fraction!$BD144,FALSE),0)","v":2517},{"$f":"ROUND(Options!$B$21*HLOOKUP(Calculations!$E$2,Pop2016fractionQ1!$C$3:$BC$251,Pop2016fractionQ1!$BD144,FALSE),0)","v":0},{"$f":"ROUND(Options!$B$21*HLOOKUP(Calculations!$E$2,'Pop2016fractionQ1&2'!$C$3:$BC$251,'Pop2016fractionQ1&2'!$BD144,FALSE),0)","v":0},{"$f":"ROUND(Options!$B$21*HLOOKUP(Calculations!$E$2,PARfraction!$C$3:$BC$251,PARfraction!$BD144,FALSE),0)","v":2672},142]
[null,"Female 45-49",{"$f":"ROUND(Options!$B$21*HLOOKUP(Calculations!$E$2,Pop2016fraction!$C$3:$BC$251,Pop2016fraction!$BD145,FALSE),0)","v":3061},{"$f":"ROUND(Options!$B$21*HLOOKUP(Calculations!$E$2,Pop2016fractionQ1!$C$3:$BC$251,Pop2016fractionQ1!$BD145,FALSE),0)","v":0},{"$f":"ROUND(Options!$B$21*HLOOKUP(Calculations!$E$2,'Pop2016fractionQ1&2'!$C$3:$BC$251,'Pop2016fractionQ1&2'!$BD145,FALSE),0)","v":0},{"$f":"ROUND(Options!$B$21*HLOOKUP(Calculations!$E$2,PARfraction!$C$3:$BC$251,PARfraction!$BD145,FALSE),0)","v":3493},143]
[null,"Female 50-54",{"$f":"ROUND(Options!$B$21*HLOOKUP(Calculations!$E$2,Pop2016fraction!$C$3:$BC$251,Pop2016fraction!$BD146,FALSE),0)","v":3216},{"$f":"ROUND(Options!$B$21*HLOOKUP(Calculations!$E$2,Pop2016fractionQ1!$C$3:$BC$251,Pop2016fractionQ1!$BD146,FALSE),0)","v":0},{"$f":"ROUND(Options!$B$21*HLOOKUP(Calculations!$E$2,'Pop2016fractionQ1&2'!$C$3:$BC$251,'Pop2016fractionQ1&2'!$BD146,FALSE),0)","v":0},{"$f":"ROUND(Options!$B$21*HLOOKUP(Calculations!$E$2,PARfraction!$C$3:$BC$251,PARfraction!$BD146,FALSE),0)","v":3669},144]
[null,"Female 55-59",{"$f":"ROUND(Options!$B$21*HLOOKUP(Calculations!$E$2,Pop2016fraction!$C$3:$BC$251,Pop2016fraction!$BD147,FALSE),0)","v":2960},{"$f":"ROUND(Options!$B$21*HLOOKUP(Calculations!$E$2,Pop2016fractionQ1!$C$3:$BC$251,Pop2016fractionQ1!$BD147,FALSE),0)","v":0},{"$f":"ROUND(Options!$B$21*HLOOKUP(Calculations!$E$2,'Pop2016fractionQ1&2'!$C$3:$BC$251,'Pop2016fractionQ1&2'!$BD147,FALSE),0)","v":0},{"$f":"ROUND(Options!$B$21*HLOOKUP(Calculations!$E$2,PARfraction!$C$3:$BC$251,PARfraction!$BD147,FALSE),0)","v":2816},145]
[null,"Female 60-64",{"$f":"ROUND(Options!$B$21*HLOOKUP(Calculations!$E$2,Pop2016fraction!$C$3:$BC$251,Pop2016fraction!$BD148,FALSE),0)","v":2615},{"$f":"ROUND(Options!$B$21*HLOOKUP(Calculations!$E$2,Pop2016fractionQ1!$C$3:$BC$251,Pop2016fractionQ1!$BD148,FALSE),0)","v":0},{"$f":"ROUND(Options!$B$21*HLOOKUP(Calculations!$E$2,'Pop2016fractionQ1&2'!$C$3:$BC$251,'Pop2016fractionQ1&2'!$BD148,FALSE),0)","v":0},{"$f":"ROUND(Options!$B$21*HLOOKUP(Calculations!$E$2,PARfraction!$C$3:$BC$251,PARfraction!$BD148,FALSE),0)","v":2488},146]
[null,"Female 65-69",{"$f":"ROUND(Options!$B$21*HLOOKUP(Calculations!$E$2,Pop2016fraction!$C$3:$BC$251,Pop2016fraction!$BD149,FALSE),0)","v":2651},{"$f":"ROUND(Options!$B$21*HLOOKUP(Calculations!$E$2,Pop2016fractionQ1!$C$3:$BC$251,Pop2016fractionQ1!$BD149,FALSE),0)","v":0},{"$f":"ROUND(Options!$B$21*HLOOKUP(Calculations!$E$2,'Pop2016fractionQ1&2'!$C$3:$BC$251,'Pop2016fractionQ1&2'!$BD149,FALSE),0)","v":0},{"$f":"ROUND(Options!$B$21*HLOOKUP(Calculations!$E$2,PARfraction!$C$3:$BC$251,PARfraction!$BD149,FALSE),0)","v":2114},147]
[null,"Female 70-74",{"$f":"ROUND(Options!$B$21*HLOOKUP(Calculations!$E$2,Pop2016fraction!$C$3:$BC$251,Pop2016fraction!$BD150,FALSE),0)","v":2084},{"$f":"ROUND(Options!$B$21*HLOOKUP(Calculations!$E$2,Pop2016fractionQ1!$C$3:$BC$251,Pop2016fractionQ1!$BD150,FALSE),0)","v":0},{"$f":"ROUND(Options!$B$21*HLOOKUP(Calculations!$E$2,'Pop2016fractionQ1&2'!$C$3:$BC$251,'Pop2016fractionQ1&2'!$BD150,FALSE),0)","v":0},{"$f":"ROUND(Options!$B$21*HLOOKUP(Calculations!$E$2,PARfraction!$C$3:$BC$251,PARfraction!$BD150,FALSE),0)","v":1662},148]
[null,"Female 75-79",{"$f":"ROUND(Options!$B$21*HLOOKUP(Calculations!$E$2,Pop2016fraction!$C$3:$BC$251,Pop2016fraction!$BD151,FALSE),0)","v":1665},{"$f":"ROUND(Options!$B$21*HLOOKUP(Calculations!$E$2,Pop2016fractionQ1!$C$3:$BC$251,Pop2016fractionQ1!$BD151,FALSE),0)","v":0},{"$f":"ROUND(Options!$B$21*HLOOKUP(Calculations!$E$2,'Pop2016fractionQ1&2'!$C$3:$BC$251,'Pop2016fractionQ1&2'!$BD151,FALSE),0)","v":0},{"$f":"ROUND(Options!$B$21*HLOOKUP(Calculations!$E$2,PARfraction!$C$3:$BC$251,PARfraction!$BD151,FALSE),0)","v":303},149]
[null,"Female 80-84",{"$f":"ROUND(Options!$B$21*HLOOKUP(Calculations!$E$2,Pop2016fraction!$C$3:$BC$251,Pop2016fraction!$BD152,FALSE),0)","v":1262},{"$f":"ROUND(Options!$B$21*HLOOKUP(Calculations!$E$2,Pop2016fractionQ1!$C$3:$BC$251,Pop2016fractionQ1!$BD152,FALSE),0)","v":0},{"$f":"ROUND(Options!$B$21*HLOOKUP(Calculations!$E$2,'Pop2016fractionQ1&2'!$C$3:$BC$251,'Pop2016fractionQ1&2'!$BD152,FALSE),0)","v":0},{"$f":"ROUND(Options!$B$21*HLOOKUP(Calculations!$E$2,PARfraction!$C$3:$BC$251,PARfraction!$BD152,FALSE),0)","v":230},150]
[null,"Female 85-89",{"$f":"ROUND(Options!$B$21*HLOOKUP(Calculations!$E$2,Pop2016fraction!$C$3:$BC$251,Pop2016fraction!$BD153,FALSE),0)","v":791},{"$f":"ROUND(Options!$B$21*HLOOKUP(Calculations!$E$2,Pop2016fractionQ1!$C$3:$BC$251,Pop2016fractionQ1!$BD153,FALSE),0)","v":0},{"$f":"ROUND(Options!$B$21*HLOOKUP(Calculations!$E$2,'Pop2016fractionQ1&2'!$C$3:$BC$251,'Pop2016fractionQ1&2'!$BD153,FALSE),0)","v":0},{"$f":"ROUND(Options!$B$21*HLOOKUP(Calculations!$E$2,PARfraction!$C$3:$BC$251,PARfraction!$BD153,FALSE),0)","v":144},151]
[null,"Female 90+",{"$f":"ROUND(Options!$B$21*HLOOKUP(Calculations!$E$2,Pop2016fraction!$C$3:$BC$251,Pop2016fraction!$BD154,FALSE),0)","v":475},{"$f":"ROUND(Options!$B$21*HLOOKUP(Calculations!$E$2,Pop2016fractionQ1!$C$3:$BC$251,Pop2016fractionQ1!$BD154,FALSE),0)","v":0},{"$f":"ROUND(Options!$B$21*HLOOKUP(Calculations!$E$2,'Pop2016fractionQ1&2'!$C$3:$BC$251,'Pop2016fractionQ1&2'!$BD154,FALSE),0)","v":0},{"$f":"ROUND(Options!$B$21*HLOOKUP(Calculations!$E$2,PARfraction!$C$3:$BC$251,PARfraction!$BD154,FALSE),0)","v":86},152]
[null,"Male 0-4",{"$f":"ROUND(Options!$B$21*HLOOKUP(Calculations!$E$2,Pop2016fraction!$C$3:$BC$251,Pop2016fraction!$BD155,FALSE),0)","v":0},{"$f":"ROUND(Options!$B$21*HLOOKUP(Calculations!$E$2,Pop2016fractionQ1!$C$3:$BC$251,Pop2016fractionQ1!$BD155,FALSE),0)","v":0},{"$f":"ROUND(Options!$B$21*HLOOKUP(Calculations!$E$2,'Pop2016fractionQ1&2'!$C$3:$BC$251,'Pop2016fractionQ1&2'!$BD155,FALSE),0)","v":0},{"$f":"ROUND(Options!$B$21*HLOOKUP(Calculations!$E$2,PARfraction!$C$3:$BC$251,PARfraction!$BD155,FALSE),0)","v":0},153]
[null,"Male 5-9",{"$f":"ROUND(Options!$B$21*HLOOKUP(Calculations!$E$2,Pop2016fraction!$C$3:$BC$251,Pop2016fraction!$BD156,FALSE),0)","v":0},{"$f":"ROUND(Options!$B$21*HLOOKUP(Calculations!$E$2,Pop2016fractionQ1!$C$3:$BC$251,Pop2016fractionQ1!$BD156,FALSE),0)","v":0},{"$f":"ROUND(Options!$B$21*HLOOKUP(Calculations!$E$2,'Pop2016fractionQ1&2'!$C$3:$BC$251,'Pop2016fractionQ1&2'!$BD156,FALSE),0)","v":0},{"$f":"ROUND(Options!$B$21*HLOOKUP(Calculations!$E$2,PARfraction!$C$3:$BC$251,PARfraction!$BD156,FALSE),0)","v":0},154]
[null,"Male 10-15",{"$f":"ROUND(Options!$B$21*HLOOKUP(Calculations!$E$2,Pop2016fraction!$C$3:$BC$251,Pop2016fraction!$BD157,FALSE),0)","v":0},{"$f":"ROUND(Options!$B$21*HLOOKUP(Calculations!$E$2,Pop2016fractionQ1!$C$3:$BC$251,Pop2016fractionQ1!$BD157,FALSE),0)","v":0},{"$f":"ROUND(Options!$B$21*HLOOKUP(Calculations!$E$2,'Pop2016fractionQ1&2'!$C$3:$BC$251,'Pop2016fractionQ1&2'!$BD157,FALSE),0)","v":0},{"$f":"ROUND(Options!$B$21*HLOOKUP(Calculations!$E$2,PARfraction!$C$3:$BC$251,PARfraction!$BD157,FALSE),0)","v":0},155]
[null,"Male 16-19",{"$f":"ROUND(Options!$B$21*HLOOKUP(Calculations!$E$2,Pop2016fraction!$C$3:$BC$251,Pop2016fraction!$BD158,FALSE),0)","v":1794},{"$f":"ROUND(Options!$B$21*HLOOKUP(Calculations!$E$2,Pop2016fractionQ1!$C$3:$BC$251,Pop2016fractionQ1!$BD158,FALSE),0)","v":0},{"$f":"ROUND(Options!$B$21*HLOOKUP(Calculations!$E$2,'Pop2016fractionQ1&2'!$C$3:$BC$251,'Pop2016fractionQ1&2'!$BD158,FALSE),0)","v":0},{"$f":"ROUND(Options!$B$21*HLOOKUP(Calculations!$E$2,PARfraction!$C$3:$BC$251,PARfraction!$BD158,FALSE),0)","v":2783},156]
[null,"Male 20-24",{"$f":"ROUND(Options!$B$21*HLOOKUP(Calculations!$E$2,Pop2016fraction!$C$3:$BC$251,Pop2016fraction!$BD159,FALSE),0)","v":2665},{"$f":"ROUND(Options!$B$21*HLOOKUP(Calculations!$E$2,Pop2016fractionQ1!$C$3:$BC$251,Pop2016fractionQ1!$BD159,FALSE),0)","v":0},{"$f":"ROUND(Options!$B$21*HLOOKUP(Calculations!$E$2,'Pop2016fractionQ1&2'!$C$3:$BC$251,'Pop2016fractionQ1&2'!$BD159,FALSE),0)","v":0},{"$f":"ROUND(Options!$B$21*HLOOKUP(Calculations!$E$2,PARfraction!$C$3:$BC$251,PARfraction!$BD159,FALSE),0)","v":4135},157]
[null,"Male 25-29",{"$f":"ROUND(Options!$B$21*HLOOKUP(Calculations!$E$2,Pop2016fraction!$C$3:$BC$251,Pop2016fraction!$BD160,FALSE),0)","v":2717},{"$f":"ROUND(Options!$B$21*HLOOKUP(Calculations!$E$2,Pop2016fractionQ1!$C$3:$BC$251,Pop2016fractionQ1!$BD160,FALSE),0)","v":0},{"$f":"ROUND(Options!$B$21*HLOOKUP(Calculations!$E$2,'Pop2016fractionQ1&2'!$C$3:$BC$251,'Pop2016fractionQ1&2'!$BD160,FALSE),0)","v":0},{"$f":"ROUND(Options!$B$21*HLOOKUP(Calculations!$E$2,PARfraction!$C$3:$BC$251,PARfraction!$BD160,FALSE),0)","v":2677},158]
[null,"Male 30-34",{"$f":"ROUND(Options!$B$21*HLOOKUP(Calculations!$E$2,Pop2016fraction!$C$3:$BC$251,Pop2016fraction!$BD161,FALSE),0)","v":2619},{"$f":"ROUND(Options!$B$21*HLOOKUP(Calculations!$E$2,Pop2016fractionQ1!$C$3:$BC$251,Pop2016fractionQ1!$BD161,FALSE),0)","v":0},{"$f":"ROUND(Options!$B$21*HLOOKUP(Calculations!$E$2,'Pop2016fractionQ1&2'!$C$3:$BC$251,'Pop2016fractionQ1&2'!$BD161,FALSE),0)","v":0},{"$f":"ROUND(Options!$B$21*HLOOKUP(Calculations!$E$2,PARfraction!$C$3:$BC$251,PARfraction!$BD161,FALSE),0)","v":2581},159]
[null,"Male 35-39",{"$f":"ROUND(Options!$B$21*HLOOKUP(Calculations!$E$2,Pop2016fraction!$C$3:$BC$251,Pop2016fraction!$BD162,FALSE),0)","v":2420},{"$f":"ROUND(Options!$B$21*HLOOKUP(Calculations!$E$2,Pop2016fractionQ1!$C$3:$BC$251,Pop2016fractionQ1!$BD162,FALSE),0)","v":0},{"$f":"ROUND(Options!$B$21*HLOOKUP(Calculations!$E$2,'Pop2016fractionQ1&2'!$C$3:$BC$251,'Pop2016fractionQ1&2'!$BD162,FALSE),0)","v":0},{"$f":"ROUND(Options!$B$21*HLOOKUP(Calculations!$E$2,PARfraction!$C$3:$BC$251,PARfraction!$BD162,FALSE),0)","v":2831},160]
[null,"Male 40-44",{"$f":"ROUND(Options!$B$21*HLOOKUP(Calculations!$E$2,Pop2016fraction!$C$3:$BC$251,Pop2016fraction!$BD163,FALSE),0)","v":2407},{"$f":"ROUND(Options!$B$21*HLOOKUP(Calculations!$E$2,Pop2016fractionQ1!$C$3:$BC$251,Pop2016fractionQ1!$BD163,FALSE),0)","v":0},{"$f":"ROUND(Options!$B$21*HLOOKUP(Calculations!$E$2,'Pop2016fractionQ1&2'!$C$3:$BC$251,'Pop2016fractionQ1&2'!$BD163,FALSE),0)","v":0},{"$f":"ROUND(Options!$B$21*HLOOKUP(Calculations!$E$2,PARfraction!$C$3:$BC$251,PARfraction!$BD163,FALSE),0)","v":2815},161]
[null,"Male 45-49",{"$f":"ROUND(Options!$B$21*HLOOKUP(Calculations!$E$2,Pop2016fraction!$C$3:$BC$251,Pop2016fraction!$BD164,FALSE),0)","v":2847},{"$f":"ROUND(Options!$B$21*HLOOKUP(Calculations!$E$2,Pop2016fractionQ1!$C$3:$BC$251,Pop2016fractionQ1!$BD164,FALSE),0)","v":0},{"$f":"ROUND(Options!$B$21*HLOOKUP(Calculations!$E$2,'Pop2016fractionQ1&2'!$C$3:$BC$251,'Pop2016fractionQ1&2'!$BD164,FALSE),0)","v":0},{"$f":"ROUND(Options!$B$21*HLOOKUP(Calculations!$E$2,PARfraction!$C$3:$BC$251,PARfraction!$BD164,FALSE),0)","v":3238},162]
[null,"Male 50-54",{"$f":"ROUND(Options!$B$21*HLOOKUP(Calculations!$E$2,Pop2016fraction!$C$3:$BC$251,Pop2016fraction!$BD165,FALSE),0)","v":3053},{"$f":"ROUND(Options!$B$21*HLOOKUP(Calculations!$E$2,Pop2016fractionQ1!$C$3:$BC$251,Pop2016fractionQ1!$BD165,FALSE),0)","v":0},{"$f":"ROUND(Options!$B$21*HLOOKUP(Calculations!$E$2,'Pop2016fractionQ1&2'!$C$3:$BC$251,'Pop2016fractionQ1&2'!$BD165,FALSE),0)","v":0},{"$f":"ROUND(Options!$B$21*HLOOKUP(Calculations!$E$2,PARfraction!$C$3:$BC$251,PARfraction!$BD165,FALSE),0)","v":3473},163]
[null,"Male 55-59",{"$f":"ROUND(Options!$B$21*HLOOKUP(Calculations!$E$2,Pop2016fraction!$C$3:$BC$251,Pop2016fraction!$BD166,FALSE),0)","v":2839},{"$f":"ROUND(Options!$B$21*HLOOKUP(Calculations!$E$2,Pop2016fractionQ1!$C$3:$BC$251,Pop2016fractionQ1!$BD166,FALSE),0)","v":0},{"$f":"ROUND(Options!$B$21*HLOOKUP(Calculations!$E$2,'Pop2016fractionQ1&2'!$C$3:$BC$251,'Pop2016fractionQ1&2'!$BD166,FALSE),0)","v":0},{"$f":"ROUND(Options!$B$21*HLOOKUP(Calculations!$E$2,PARfraction!$C$3:$BC$251,PARfraction!$BD166,FALSE),0)","v":3937},164]
[null,"Male 60-64",{"$f":"ROUND(Options!$B$21*HLOOKUP(Calculations!$E$2,Pop2016fraction!$C$3:$BC$251,Pop2016fraction!$BD167,FALSE),0)","v":2514},{"$f":"ROUND(Options!$B$21*HLOOKUP(Calculations!$E$2,Pop2016fractionQ1!$C$3:$BC$251,Pop2016fractionQ1!$BD167,FALSE),0)","v":0},{"$f":"ROUND(Options!$B$21*HLOOKUP(Calculations!$E$2,'Pop2016fractionQ1&2'!$C$3:$BC$251,'Pop2016fractionQ1&2'!$BD167,FALSE),0)","v":0},{"$f":"ROUND(Options!$B$21*HLOOKUP(Calculations!$E$2,PARfraction!$C$3:$BC$251,PARfraction!$BD167,FALSE),0)","v":3486},165]
[null,"Male 65-69",{"$f":"ROUND(Options!$B$21*HLOOKUP(Calculations!$E$2,Pop2016fraction!$C$3:$BC$251,Pop2016fraction!$BD168,FALSE),0)","v":2523},{"$f":"ROUND(Options!$B$21*HLOOKUP(Calculations!$E$2,Pop2016fractionQ1!$C$3:$BC$251,Pop2016fractionQ1!$BD168,FALSE),0)","v":0},{"$f":"ROUND(Options!$B$21*HLOOKUP(Calculations!$E$2,'Pop2016fractionQ1&2'!$C$3:$BC$251,'Pop2016fractionQ1&2'!$BD168,FALSE),0)","v":0},{"$f":"ROUND(Options!$B$21*HLOOKUP(Calculations!$E$2,PARfraction!$C$3:$BC$251,PARfraction!$BD168,FALSE),0)","v":3497},166]
[null,"Male 70-74",{"$f":"ROUND(Options!$B$21*HLOOKUP(Calculations!$E$2,Pop2016fraction!$C$3:$BC$251,Pop2016fraction!$BD169,FALSE),0)","v":1848},{"$f":"ROUND(Options!$B$21*HLOOKUP(Calculations!$E$2,Pop2016fractionQ1!$C$3:$BC$251,Pop2016fractionQ1!$BD169,FALSE),0)","v":0},{"$f":"ROUND(Options!$B$21*HLOOKUP(Calculations!$E$2,'Pop2016fractionQ1&2'!$C$3:$BC$251,'Pop2016fractionQ1&2'!$BD169,FALSE),0)","v":0},{"$f":"ROUND(Options!$B$21*HLOOKUP(Calculations!$E$2,PARfraction!$C$3:$BC$251,PARfraction!$BD169,FALSE),0)","v":2561},167]
[null,"Male 75-79",{"$f":"ROUND(Options!$B$21*HLOOKUP(Calculations!$E$2,Pop2016fraction!$C$3:$BC$251,Pop2016fraction!$BD170,FALSE),0)","v":1372},{"$f":"ROUND(Options!$B$21*HLOOKUP(Calculations!$E$2,Pop2016fractionQ1!$C$3:$BC$251,Pop2016fractionQ1!$BD170,FALSE),0)","v":0},{"$f":"ROUND(Options!$B$21*HLOOKUP(Calculations!$E$2,'Pop2016fractionQ1&2'!$C$3:$BC$251,'Pop2016fractionQ1&2'!$BD170,FALSE),0)","v":0},{"$f":"ROUND(Options!$B$21*HLOOKUP(Calculations!$E$2,PARfraction!$C$3:$BC$251,PARfraction!$BD170,FALSE),0)","v":995},168]
[null,"Male 80-84",{"$f":"ROUND(Options!$B$21*HLOOKUP(Calculations!$E$2,Pop2016fraction!$C$3:$BC$251,Pop2016fraction!$BD171,FALSE),0)","v":915},{"$f":"ROUND(Options!$B$21*HLOOKUP(Calculations!$E$2,Pop2016fractionQ1!$C$3:$BC$251,Pop2016fractionQ1!$BD171,FALSE),0)","v":0},{"$f":"ROUND(Options!$B$21*HLOOKUP(Calculations!$E$2,'Pop2016fractionQ1&2'!$C$3:$BC$251,'Pop2016fractionQ1&2'!$BD171,FALSE),0)","v":0},{"$f":"ROUND(Options!$B$21*HLOOKUP(Calculations!$E$2,PARfraction!$C$3:$BC$251,PARfraction!$BD171,FALSE),0)","v":663},169]
[null,"Male 85-89",{"$f":"ROUND(Options!$B$21*HLOOKUP(Calculations!$E$2,Pop2016fraction!$C$3:$BC$251,Pop2016fraction!$BD172,FALSE),0)","v":455},{"$f":"ROUND(Options!$B$21*HLOOKUP(Calculations!$E$2,Pop2016fractionQ1!$C$3:$BC$251,Pop2016fractionQ1!$BD172,FALSE),0)","v":0},{"$f":"ROUND(Options!$B$21*HLOOKUP(Calculations!$E$2,'Pop2016fractionQ1&2'!$C$3:$BC$251,'Pop2016fractionQ1&2'!$BD172,FALSE),0)","v":0},{"$f":"ROUND(Options!$B$21*HLOOKUP(Calculations!$E$2,PARfraction!$C$3:$BC$251,PARfraction!$BD172,FALSE),0)","v":330},170]
[null,"Male 90+",{"$f":"ROUND(Options!$B$21*HLOOKUP(Calculations!$E$2,Pop2016fraction!$C$3:$BC$251,Pop2016fraction!$BD173,FALSE),0)","v":196},{"$f":"ROUND(Options!$B$21*HLOOKUP(Calculations!$E$2,Pop2016fractionQ1!$C$3:$BC$251,Pop2016fractionQ1!$BD173,FALSE),0)","v":0},{"$f":"ROUND(Options!$B$21*HLOOKUP(Calculations!$E$2,'Pop2016fractionQ1&2'!$C$3:$BC$251,'Pop2016fractionQ1&2'!$BD173,FALSE),0)","v":0},{"$f":"ROUND(Options!$B$21*HLOOKUP(Calculations!$E$2,PARfraction!$C$3:$BC$251,PARfraction!$BD173,FALSE),0)","v":142},171]
["SIMD Q4","Female 0-4",{"$f":"ROUND(Options!$B$21*HLOOKUP(Calculations!$E$2,Pop2016fraction!$C$3:$BC$251,Pop2016fraction!$BD174,FALSE),0)","v":0},{"$f":"ROUND(Options!$B$21*HLOOKUP(Calculations!$E$2,Pop2016fractionQ1!$C$3:$BC$251,Pop2016fractionQ1!$BD174,FALSE),0)","v":0},{"$f":"ROUND(Options!$B$21*HLOOKUP(Calculations!$E$2,'Pop2016fractionQ1&2'!$C$3:$BC$251,'Pop2016fractionQ1&2'!$BD174,FALSE),0)","v":0},{"$f":"ROUND(Options!$B$21*HLOOKUP(Calculations!$E$2,PARfraction!$C$3:$BC$251,PARfraction!$BD174,FALSE),0)","v":0},172]
[null,"Female 5-9",{"$f":"ROUND(Options!$B$21*HLOOKUP(Calculations!$E$2,Pop2016fraction!$C$3:$BC$251,Pop2016fraction!$BD175,FALSE),0)","v":0},{"$f":"ROUND(Options!$B$21*HLOOKUP(Calculations!$E$2,Pop2016fractionQ1!$C$3:$BC$251,Pop2016fractionQ1!$BD175,FALSE),0)","v":0},{"$f":"ROUND(Options!$B$21*HLOOKUP(Calculations!$E$2,'Pop2016fractionQ1&2'!$C$3:$BC$251,'Pop2016fractionQ1&2'!$BD175,FALSE),0)","v":0},{"$f":"ROUND(Options!$B$21*HLOOKUP(Calculations!$E$2,PARfraction!$C$3:$BC$251,PARfraction!$BD175,FALSE),0)","v":0},173]
[null,"Female 10-15",{"$f":"ROUND(Options!$B$21*HLOOKUP(Calculations!$E$2,Pop2016fraction!$C$3:$BC$251,Pop2016fraction!$BD176,FALSE),0)","v":0},{"$f":"ROUND(Options!$B$21*HLOOKUP(Calculations!$E$2,Pop2016fractionQ1!$C$3:$BC$251,Pop2016fractionQ1!$BD176,FALSE),0)","v":0},{"$f":"ROUND(Options!$B$21*HLOOKUP(Calculations!$E$2,'Pop2016fractionQ1&2'!$C$3:$BC$251,'Pop2016fractionQ1&2'!$BD176,FALSE),0)","v":0},{"$f":"ROUND(Options!$B$21*HLOOKUP(Calculations!$E$2,PARfraction!$C$3:$BC$251,PARfraction!$BD176,FALSE),0)","v":0},174]
[null,"Female 16-19",{"$f":"ROUND(Options!$B$21*HLOOKUP(Calculations!$E$2,Pop2016fraction!$C$3:$BC$251,Pop2016fraction!$BD177,FALSE),0)","v":1770},{"$f":"ROUND(Options!$B$21*HLOOKUP(Calculations!$E$2,Pop2016fractionQ1!$C$3:$BC$251,Pop2016fractionQ1!$BD177,FALSE),0)","v":0},{"$f":"ROUND(Options!$B$21*HLOOKUP(Calculations!$E$2,'Pop2016fractionQ1&2'!$C$3:$BC$251,'Pop2016fractionQ1&2'!$BD177,FALSE),0)","v":0},{"$f":"ROUND(Options!$B$21*HLOOKUP(Calculations!$E$2,PARfraction!$C$3:$BC$251,PARfraction!$BD177,FALSE),0)","v":1522},175]
[null,"Female 20-24",{"$f":"ROUND(Options!$B$21*HLOOKUP(Calculations!$E$2,Pop2016fraction!$C$3:$BC$251,Pop2016fraction!$BD178,FALSE),0)","v":2634},{"$f":"ROUND(Options!$B$21*HLOOKUP(Calculations!$E$2,Pop2016fractionQ1!$C$3:$BC$251,Pop2016fractionQ1!$BD178,FALSE),0)","v":0},{"$f":"ROUND(Options!$B$21*HLOOKUP(Calculations!$E$2,'Pop2016fractionQ1&2'!$C$3:$BC$251,'Pop2016fractionQ1&2'!$BD178,FALSE),0)","v":0},{"$f":"ROUND(Options!$B$21*HLOOKUP(Calculations!$E$2,PARfraction!$C$3:$BC$251,PARfraction!$BD178,FALSE),0)","v":2265},176]
[null,"Female 25-29",{"$f":"ROUND(Options!$B$21*HLOOKUP(Calculations!$E$2,Pop2016fraction!$C$3:$BC$251,Pop2016fraction!$BD179,FALSE),0)","v":2528},{"$f":"ROUND(Options!$B$21*HLOOKUP(Calculations!$E$2,Pop2016fractionQ1!$C$3:$BC$251,Pop2016fractionQ1!$BD179,FALSE),0)","v":0},{"$f":"ROUND(Options!$B$21*HLOOKUP(Calculations!$E$2,'Pop2016fractionQ1&2'!$C$3:$BC$251,'Pop2016fractionQ1&2'!$BD179,FALSE),0)","v":0},{"$f":"ROUND(Options!$B$21*HLOOKUP(Calculations!$E$2,PARfraction!$C$3:$BC$251,PARfraction!$BD179,FALSE),0)","v":1598},177]
[null,"Female 30-34",{"$f":"ROUND(Options!$B$21*HLOOKUP(Calculations!$E$2,Pop2016fraction!$C$3:$BC$251,Pop2016fraction!$BD180,FALSE),0)","v":2558},{"$f":"ROUND(Options!$B$21*HLOOKUP(Calculations!$E$2,Pop2016fractionQ1!$C$3:$BC$251,Pop2016fractionQ1!$BD180,FALSE),0)","v":0},{"$f":"ROUND(Options!$B$21*HLOOKUP(Calculations!$E$2,'Pop2016fractionQ1&2'!$C$3:$BC$251,'Pop2016fractionQ1&2'!$BD180,FALSE),0)","v":0},{"$f":"ROUND(Options!$B$21*HLOOKUP(Calculations!$E$2,PARfraction!$C$3:$BC$251,PARfraction!$BD180,FALSE),0)","v":1617},178]
[null,"Female 35-39",{"$f":"ROUND(Options!$B$21*HLOOKUP(Calculations!$E$2,Pop2016fraction!$C$3:$BC$251,Pop2016fraction!$BD181,FALSE),0)","v":2480},{"$f":"ROUND(Options!$B$21*HLOOKUP(Calculations!$E$2,Pop2016fractionQ1!$C$3:$BC$251,Pop2016fractionQ1!$BD181,FALSE),0)","v":0},{"$f":"ROUND(Options!$B$21*HLOOKUP(Calculations!$E$2,'Pop2016fractionQ1&2'!$C$3:$BC$251,'Pop2016fractionQ1&2'!$BD181,FALSE),0)","v":0},{"$f":"ROUND(Options!$B$21*HLOOKUP(Calculations!$E$2,PARfraction!$C$3:$BC$251,PARfraction!$BD181,FALSE),0)","v":2419},179]
[null,"Female 40-44",{"$f":"ROUND(Options!$B$21*HLOOKUP(Calculations!$E$2,Pop2016fraction!$C$3:$BC$251,Pop2016fraction!$BD182,FALSE),0)","v":2707},{"$f":"ROUND(Options!$B$21*HLOOKUP(Calculations!$E$2,Pop2016fractionQ1!$C$3:$BC$251,Pop2016fractionQ1!$BD182,FALSE),0)","v":0},{"$f":"ROUND(Options!$B$21*HLOOKUP(Calculations!$E$2,'Pop2016fractionQ1&2'!$C$3:$BC$251,'Pop2016fractionQ1&2'!$BD182,FALSE),0)","v":0},{"$f":"ROUND(Options!$B$21*HLOOKUP(Calculations!$E$2,PARfraction!$C$3:$BC$251,PARfraction!$BD182,FALSE),0)","v":2641},180]
[null,"Female 45-49",{"$f":"ROUND(Options!$B$21*HLOOKUP(Calculations!$E$2,Pop2016fraction!$C$3:$BC$251,Pop2016fraction!$BD183,FALSE),0)","v":3190},{"$f":"ROUND(Options!$B$21*HLOOKUP(Calculations!$E$2,Pop2016fractionQ1!$C$3:$BC$251,Pop2016fractionQ1!$BD183,FALSE),0)","v":0},{"$f":"ROUND(Options!$B$21*HLOOKUP(Calculations!$E$2,'Pop2016fractionQ1&2'!$C$3:$BC$251,'Pop2016fractionQ1&2'!$BD183,FALSE),0)","v":0},{"$f":"ROUND(Options!$B$21*HLOOKUP(Calculations!$E$2,PARfraction!$C$3:$BC$251,PARfraction!$BD183,FALSE),0)","v":3979},181]
[null,"Female 50-54",{"$f":"ROUND(Options!$B$21*HLOOKUP(Calculations!$E$2,Pop2016fraction!$C$3:$BC$251,Pop2016fraction!$BD184,FALSE),0)","v":3332},{"$f":"ROUND(Options!$B$21*HLOOKUP(Calculations!$E$2,Pop2016fractionQ1!$C$3:$BC$251,Pop2016fractionQ1!$BD184,FALSE),0)","v":0},{"$f":"ROUND(Options!$B$21*HLOOKUP(Calculations!$E$2,'Pop2016fractionQ1&2'!$C$3:$BC$251,'Pop2016fractionQ1&2'!$BD184,FALSE),0)","v":0},{"$f":"ROUND(Options!$B$21*HLOOKUP(Calculations!$E$2,PARfraction!$C$3:$BC$251,PARfraction!$BD184,FALSE),0)","v":4157},182]
[null,"Female 55-59",{"$f":"ROUND(Options!$B$21*HLOOKUP(Calculations!$E$2,Pop2016fraction!$C$3:$BC$251,Pop2016fraction!$BD185,FALSE),0)","v":3010},{"$f":"ROUND(Options!$B$21*HLOOKUP(Calculations!$E$2,Pop2016fractionQ1!$C$3:$BC$251,Pop2016fractionQ1!$BD185,FALSE),0)","v":0},{"$f":"ROUND(Options!$B$21*HLOOKUP(Calculations!$E$2,'Pop2016fractionQ1&2'!$C$3:$BC$251,'Pop2016fractionQ1&2'!$BD185,FALSE),0)","v":0},{"$f":"ROUND(Options!$B$21*HLOOKUP(Calculations!$E$2,PARfraction!$C$3:$BC$251,PARfraction!$BD185,FALSE),0)","v":4184},183]
[null,"Female 60-64",{"$f":"ROUND(Options!$B$21*HLOOKUP(Calculations!$E$2,Pop2016fraction!$C$3:$BC$251,Pop2016fraction!$BD186,FALSE),0)","v":2651},{"$f":"ROUND(Options!$B$21*HLOOKUP(Calculations!$E$2,Pop2016fractionQ1!$C$3:$BC$251,Pop2016fractionQ1!$BD186,FALSE),0)","v":0},{"$f":"ROUND(Options!$B$21*HLOOKUP(Calculations!$E$2,'Pop2016fractionQ1&2'!$C$3:$BC$251,'Pop2016fractionQ1&2'!$BD186,FALSE),0)","v":0},{"$f":"ROUND(Options!$B$21*HLOOKUP(Calculations!$E$2,PARfraction!$C$3:$BC$251,PARfraction!$BD186,FALSE),0)","v":3684},184]
[null,"Female 65-69",{"$f":"ROUND(Options!$B$21*HLOOKUP(Calculations!$E$2,Pop2016fraction!$C$3:$BC$251,Pop2016fraction!$BD187,FALSE),0)","v":2638},{"$f":"ROUND(Options!$B$21*HLOOKUP(Calculations!$E$2,Pop2016fractionQ1!$C$3:$BC$251,Pop2016fractionQ1!$BD187,FALSE),0)","v":0},{"$f":"ROUND(Options!$B$21*HLOOKUP(Calculations!$E$2,'Pop2016fractionQ1&2'!$C$3:$BC$251,'Pop2016fractionQ1&2'!$BD187,FALSE),0)","v":0},{"$f":"ROUND(Options!$B$21*HLOOKUP(Calculations!$E$2,PARfraction!$C$3:$BC$251,PARfraction!$BD187,FALSE),0)","v":1826},185]
[null,"Female 70-74",{"$f":"ROUND(Options!$B$21*HLOOKUP(Calculations!$E$2,Pop2016fraction!$C$3:$BC$251,Pop2016fraction!$BD188,FALSE),0)","v":1990},{"$f":"ROUND(Options!$B$21*HLOOKUP(Calculations!$E$2,Pop2016fractionQ1!$C$3:$BC$251,Pop2016fractionQ1!$BD188,FALSE),0)","v":0},{"$f":"ROUND(Options!$B$21*HLOOKUP(Calculations!$E$2,'Pop2016fractionQ1&2'!$C$3:$BC$251,'Pop2016fractionQ1&2'!$BD188,FALSE),0)","v":0},{"$f":"ROUND(Options!$B$21*HLOOKUP(Calculations!$E$2,PARfraction!$C$3:$BC$251,PARfraction!$BD188,FALSE),0)","v":1378},186]
[null,"Female 75-79",{"$f":"ROUND(Options!$B$21*HLOOKUP(Calculations!$E$2,Pop2016fraction!$C$3:$BC$251,Pop2016fraction!$BD189,FALSE),0)","v":1566},{"$f":"ROUND(Options!$B$21*HLOOKUP(Calculations!$E$2,Pop2016fractionQ1!$C$3:$BC$251,Pop2016fractionQ1!$BD189,FALSE),0)","v":0},{"$f":"ROUND(Options!$B$21*HLOOKUP(Calculations!$E$2,'Pop2016fractionQ1&2'!$C$3:$BC$251,'Pop2016fractionQ1&2'!$BD189,FALSE),0)","v":0},{"$f":"ROUND(Options!$B$21*HLOOKUP(Calculations!$E$2,PARfraction!$C$3:$BC$251,PARfraction!$BD189,FALSE),0)","v":696},187]
[null,"Female 80-84",{"$f":"ROUND(Options!$B$21*HLOOKUP(Calculations!$E$2,Pop2016fraction!$C$3:$BC$251,Pop2016fraction!$BD190,FALSE),0)","v":1182},{"$f":"ROUND(Options!$B$21*HLOOKUP(Calculations!$E$2,Pop2016fractionQ1!$C$3:$BC$251,Pop2016fractionQ1!$BD190,FALSE),0)","v":0},{"$f":"ROUND(Options!$B$21*HLOOKUP(Calculations!$E$2,'Pop2016fractionQ1&2'!$C$3:$BC$251,'Pop2016fractionQ1&2'!$BD190,FALSE),0)","v":0},{"$f":"ROUND(Options!$B$21*HLOOKUP(Calculations!$E$2,PARfraction!$C$3:$BC$251,PARfraction!$BD190,FALSE),0)","v":525},188]
[null,"Female 85-89",{"$f":"ROUND(Options!$B$21*HLOOKUP(Calculations!$E$2,Pop2016fraction!$C$3:$BC$251,Pop2016fraction!$BD191,FALSE),0)","v":755},{"$f":"ROUND(Options!$B$21*HLOOKUP(Calculations!$E$2,Pop2016fractionQ1!$C$3:$BC$251,Pop2016fractionQ1!$BD191,FALSE),0)","v":0},{"$f":"ROUND(Options!$B$21*HLOOKUP(Calculations!$E$2,'Pop2016fractionQ1&2'!$C$3:$BC$251,'Pop2016fractionQ1&2'!$BD191,FALSE),0)","v":0},{"$f":"ROUND(Options!$B$21*HLOOKUP(Calculations!$E$2,PARfraction!$C$3:$BC$251,PARfraction!$BD191,FALSE),0)","v":335},189]
[null,"Female 90+",{"$f":"ROUND(Options!$B$21*HLOOKUP(Calculations!$E$2,Pop2016fraction!$C$3:$BC$251,Pop2016fraction!$BD192,FALSE),0)","v":453},{"$f":"ROUND(Options!$B$21*HLOOKUP(Calculations!$E$2,Pop2016fractionQ1!$C$3:$BC$251,Pop2016fractionQ1!$BD192,FALSE),0)","v":0},{"$f":"ROUND(Options!$B$21*HLOOKUP(Calculations!$E$2,'Pop2016fractionQ1&2'!$C$3:$BC$251,'Pop2016fractionQ1&2'!$BD192,FALSE),0)","v":0},{"$f":"ROUND(Options!$B$21*HLOOKUP(Calculations!$E$2,PARfraction!$C$3:$BC$251,PARfraction!$BD192,FALSE),0)","v":201},190]
[null,"Male 0-4",{"$f":"ROUND(Options!$B$21*HLOOKUP(Calculations!$E$2,Pop2016fraction!$C$3:$BC$251,Pop2016fraction!$BD193,FALSE),0)","v":0},{"$f":"ROUND(Options!$B$21*HLOOKUP(Calculations!$E$2,Pop2016fractionQ1!$C$3:$BC$251,Pop2016fractionQ1!$BD193,FALSE),0)","v":0},{"$f":"ROUND(Options!$B$21*HLOOKUP(Calculations!$E$2,'Pop2016fractionQ1&2'!$C$3:$BC$251,'Pop2016fractionQ1&2'!$BD193,FALSE),0)","v":0},{"$f":"ROUND(Options!$B$21*HLOOKUP(Calculations!$E$2,PARfraction!$C$3:$BC$251,PARfraction!$BD193,FALSE),0)","v":0},191]
[null,"Male 5-9",{"$f":"ROUND(Options!$B$21*HLOOKUP(Calculations!$E$2,Pop2016fraction!$C$3:$BC$251,Pop2016fraction!$BD194,FALSE),0)","v":0},{"$f":"ROUND(Options!$B$21*HLOOKUP(Calculations!$E$2,Pop2016fractionQ1!$C$3:$BC$251,Pop2016fractionQ1!$BD194,FALSE),0)","v":0},{"$f":"ROUND(Options!$B$21*HLOOKUP(Calculations!$E$2,'Pop2016fractionQ1&2'!$C$3:$BC$251,'Pop2016fractionQ1&2'!$BD194,FALSE),0)","v":0},{"$f":"ROUND(Options!$B$21*HLOOKUP(Calculations!$E$2,PARfraction!$C$3:$BC$251,PARfraction!$BD194,FALSE),0)","v":0},192]
[null,"Male 10-15",{"$f":"ROUND(Options!$B$21*HLOOKUP(Calculations!$E$2,Pop2016fraction!$C$3:$BC$251,Pop2016fraction!$BD195,FALSE),0)","v":0},{"$f":"ROUND(Options!$B$21*HLOOKUP(Calculations!$E$2,Pop2016fractionQ1!$C$3:$BC$251,Pop2016fractionQ1!$BD195,FALSE),0)","v":0},{"$f":"ROUND(Options!$B$21*HLOOKUP(Calculations!$E$2,'Pop2016fractionQ1&2'!$C$3:$BC$251,'Pop2016fractionQ1&2'!$BD195,FALSE),0)","v":0},{"$f":"ROUND(Options!$B$21*HLOOKUP(Calculations!$E$2,PARfraction!$C$3:$BC$251,PARfraction!$BD195,FALSE),0)","v":0},193]
[null,"Male 16-19",{"$f":"ROUND(Options!$B$21*HLOOKUP(Calculations!$E$2,Pop2016fraction!$C$3:$BC$251,Pop2016fraction!$BD196,FALSE),0)","v":1870},{"$f":"ROUND(Options!$B$21*HLOOKUP(Calculations!$E$2,Pop2016fractionQ1!$C$3:$BC$251,Pop2016fractionQ1!$BD196,FALSE),0)","v":0},{"$f":"ROUND(Options!$B$21*HLOOKUP(Calculations!$E$2,'Pop2016fractionQ1&2'!$C$3:$BC$251,'Pop2016fractionQ1&2'!$BD196,FALSE),0)","v":0},{"$f":"ROUND(Options!$B$21*HLOOKUP(Calculations!$E$2,PARfraction!$C$3:$BC$251,PARfraction!$BD196,FALSE),0)","v":2391},194]
[null,"Male 20-24",{"$f":"ROUND(Options!$B$21*HLOOKUP(Calculations!$E$2,Pop2016fraction!$C$3:$BC$251,Pop2016fraction!$BD197,FALSE),0)","v":2663},{"$f":"ROUND(Options!$B$21*HLOOKUP(Calculations!$E$2,Pop2016fractionQ1!$C$3:$BC$251,Pop2016fractionQ1!$BD197,FALSE),0)","v":0},{"$f":"ROUND(Options!$B$21*HLOOKUP(Calculations!$E$2,'Pop2016fractionQ1&2'!$C$3:$BC$251,'Pop2016fractionQ1&2'!$BD197,FALSE),0)","v":0},{"$f":"ROUND(Options!$B$21*HLOOKUP(Calculations!$E$2,PARfraction!$C$3:$BC$251,PARfraction!$BD197,FALSE),0)","v":3405},195]
[null,"Male 25-29",{"$f":"ROUND(Options!$B$21*HLOOKUP(Calculations!$E$2,Pop2016fraction!$C$3:$BC$251,Pop2016fraction!$BD198,FALSE),0)","v":2549},{"$f":"ROUND(Options!$B$21*HLOOKUP(Calculations!$E$2,Pop2016fractionQ1!$C$3:$BC$251,Pop2016fractionQ1!$BD198,FALSE),0)","v":0},{"$f":"ROUND(Options!$B$21*HLOOKUP(Calculations!$E$2,'Pop2016fractionQ1&2'!$C$3:$BC$251,'Pop2016fractionQ1&2'!$BD198,FALSE),0)","v":0},{"$f":"ROUND(Options!$B$21*HLOOKUP(Calculations!$E$2,PARfraction!$C$3:$BC$251,PARfraction!$BD198,FALSE),0)","v":2396},196]
[null,"Male 30-34",{"$f":"ROUND(Options!$B$21*HLOOKUP(Calculations!$E$2,Pop2016fraction!$C$3:$BC$251,Pop2016fraction!$BD199,FALSE),0)","v":2446},{"$f":"ROUND(Options!$B$21*HLOOKUP(Calculations!$E$2,Pop2016fractionQ1!$C$3:$BC$251,Pop2016fractionQ1!$BD199,FALSE),0)","v":0},{"$f":"ROUND(Options!$B$21*HLOOKUP(Calculations!$E$2,'Pop2016fractionQ1&2'!$C$3:$BC$251,'Pop2016fractionQ1&2'!$BD199,FALSE),0)","v":0},{"$f":"ROUND(Options!$B$21*HLOOKUP(Calculations!$E$2,PARfraction!$C$3:$BC$251,PARfraction!$BD199,FALSE),0)","v":2299},197]
[null,"Male 35-39",{"$f":"ROUND(Options!$B$21*HLOOKUP(Calculations!$E$2,Pop2016fraction!$C$3:$BC$251,Pop2016fraction!$BD200,FALSE),0)","v":2421},{"$f":"ROUND(Options!$B$21*HLOOKUP(Calculations!$E$2,Pop2016fractionQ1!$C$3:$BC$251,Pop2016fractionQ1!$BD200,FALSE),0)","v":0},{"$f":"ROUND(Options!$B$21*HLOOKUP(Calculations!$E$2,'Pop2016fractionQ1&2'!$C$3:$BC$251,'Pop2016fractionQ1&2'!$BD200,FALSE),0)","v":0},{"$f":"ROUND(Options!$B$21*HLOOKUP(Calculations!$E$2,PARfraction!$C$3:$BC$251,PARfraction!$BD200,FALSE),0)","v":2146},198]
[null,"Male 40-44",{"$f":"ROUND(Options!$B$21*HLOOKUP(Calculations!$E$2,Pop2016fraction!$C$3:$BC$251,Pop2016fraction!$BD201,FALSE),0)","v":2597},{"$f":"ROUND(Options!$B$21*HLOOKUP(Calculations!$E$2,Pop2016fractionQ1!$C$3:$BC$251,Pop2016fractionQ1!$BD201,FALSE),0)","v":0},{"$f":"ROUND(Options!$B$21*HLOOKUP(Calculations!$E$2,'Pop2016fractionQ1&2'!$C$3:$BC$251,'Pop2016fractionQ1&2'!$BD201,FALSE),0)","v":0},{"$f":"ROUND(Options!$B$21*HLOOKUP(Calculations!$E$2,PARfraction!$C$3:$BC$251,PARfraction!$BD201,FALSE),0)","v":2301},199]
[null,"Male 45-49",{"$f":"ROUND(Options!$B$21*HLOOKUP(Calculations!$E$2,Pop2016fraction!$C$3:$BC$251,Pop2016fraction!$BD202,FALSE),0)","v":3013},{"$f":"ROUND(Options!$B$21*HLOOKUP(Calculations!$E$2,Pop2016fractionQ1!$C$3:$BC$251,Pop2016fractionQ1!$BD202,FALSE),0)","v":0},{"$f":"ROUND(Options!$B$21*HLOOKUP(Calculations!$E$2,'Pop2016fractionQ1&2'!$C$3:$BC$251,'Pop2016fractionQ1&2'!$BD202,FALSE),0)","v":0},{"$f":"ROUND(Options!$B$21*HLOOKUP(Calculations!$E$2,PARfraction!$C$3:$BC$251,PARfraction!$BD202,FALSE),0)","v":3602},200]
[null,"Male 50-54",{"$f":"ROUND(Options!$B$21*HLOOKUP(Calculations!$E$2,Pop2016fraction!$C$3:$BC$251,Pop2016fraction!$BD203,FALSE),0)","v":3195},{"$f":"ROUND(Options!$B$21*HLOOKUP(Calculations!$E$2,Pop2016fractionQ1!$C$3:$BC$251,Pop2016fractionQ1!$BD203,FALSE),0)","v":0},{"$f":"ROUND(Options!$B$21*HLOOKUP(Calculations!$E$2,'Pop2016fractionQ1&2'!$C$3:$BC$251,'Pop2016fractionQ1&2'!$BD203,FALSE),0)","v":0},{"$f":"ROUND(Options!$B$21*HLOOKUP(Calculations!$E$2,PARfraction!$C$3:$BC$251,PARfraction!$BD203,FALSE),0)","v":3820},201]
[null,"Male 55-59",{"$f":"ROUND(Options!$B$21*HLOOKUP(Calculations!$E$2,Pop2016fraction!$C$3:$BC$251,Pop2016fraction!$BD204,FALSE),0)","v":2910},{"$f":"ROUND(Options!$B$21*HLOOKUP(Calculations!$E$2,Pop2016fractionQ1!$C$3:$BC$251,Pop2016fractionQ1!$BD204,FALSE),0)","v":0},{"$f":"ROUND(Options!$B$21*HLOOKUP(Calculations!$E$2,'Pop2016fractionQ1&2'!$C$3:$BC$251,'Pop2016fractionQ1&2'!$BD204,FALSE),0)","v":0},{"$f":"ROUND(Options!$B$21*HLOOKUP(Calculations!$E$2,PARfraction!$C$3:$BC$251,PARfraction!$BD204,FALSE),0)","v":5402},202]
[null,"Male 60-64",{"$f":"ROUND(Options!$B$21*HLOOKUP(Calculations!$E$2,Pop2016fraction!$C$3:$BC$251,Pop2016fraction!$BD205,FALSE),0)","v":2557},{"$f":"ROUND(Options!$B$21*HLOOKUP(Calculations!$E$2,Pop2016fractionQ1!$C$3:$BC$251,Pop2016fractionQ1!$BD205,FALSE),0)","v":0},{"$f":"ROUND(Options!$B$21*HLOOKUP(Calculations!$E$2,'Pop2016fractionQ1&2'!$C$3:$BC$251,'Pop2016fractionQ1&2'!$BD205,FALSE),0)","v":0},{"$f":"ROUND(Options!$B$21*HLOOKUP(Calculations!$E$2,PARfraction!$C$3:$BC$251,PARfraction!$BD205,FALSE),0)","v":4747},203]
[null,"Male 65-69",{"$f":"ROUND(Options!$B$21*HLOOKUP(Calculations!$E$2,Pop2016fraction!$C$3:$BC$251,Pop2016fraction!$BD206,FALSE),0)","v":2504},{"$f":"ROUND(Options!$B$21*HLOOKUP(Calculations!$E$2,Pop2016fractionQ1!$C$3:$BC$251,Pop2016fractionQ1!$BD206,FALSE),0)","v":0},{"$f":"ROUND(Options!$B$21*HLOOKUP(Calculations!$E$2,'Pop2016fractionQ1&2'!$C$3:$BC$251,'Pop2016fractionQ1&2'!$BD206,FALSE),0)","v":0},{"$f":"ROUND(Options!$B$21*HLOOKUP(Calculations!$E$2,PARfraction!$C$3:$BC$251,PARfraction!$BD206,FALSE),0)","v":3156},204]
[null,"Male 70-74",{"$f":"ROUND(Options!$B$21*HLOOKUP(Calculations!$E$2,Pop2016fraction!$C$3:$BC$251,Pop2016fraction!$BD207,FALSE),0)","v":1842},{"$f":"ROUND(Options!$B$21*HLOOKUP(Calculations!$E$2,Pop2016fractionQ1!$C$3:$BC$251,Pop2016fractionQ1!$BD207,FALSE),0)","v":0},{"$f":"ROUND(Options!$B$21*HLOOKUP(Calculations!$E$2,'Pop2016fractionQ1&2'!$C$3:$BC$251,'Pop2016fractionQ1&2'!$BD207,FALSE),0)","v":0},{"$f":"ROUND(Options!$B$21*HLOOKUP(Calculations!$E$2,PARfraction!$C$3:$BC$251,PARfraction!$BD207,FALSE),0)","v":2321},205]
[null,"Male 75-79",{"$f":"ROUND(Options!$B$21*HLOOKUP(Calculations!$E$2,Pop2016fraction!$C$3:$BC$251,Pop2016fraction!$BD208,FALSE),0)","v":1307},{"$f":"ROUND(Options!$B$21*HLOOKUP(Calculations!$E$2,Pop2016fractionQ1!$C$3:$BC$251,Pop2016fractionQ1!$BD208,FALSE),0)","v":0},{"$f":"ROUND(Options!$B$21*HLOOKUP(Calculations!$E$2,'Pop2016fractionQ1&2'!$C$3:$BC$251,'Pop2016fractionQ1&2'!$BD208,FALSE),0)","v":0},{"$f":"ROUND(Options!$B$21*HLOOKUP(Calculations!$E$2,PARfraction!$C$3:$BC$251,PARfraction!$BD208,FALSE),0)","v":1437},206]
[null,"Male 80-84",{"$f":"ROUND(Options!$B$21*HLOOKUP(Calculations!$E$2,Pop2016fraction!$C$3:$BC$251,Pop2016fraction!$BD209,FALSE),0)","v":886},{"$f":"ROUND(Options!$B$21*HLOOKUP(Calculations!$E$2,Pop2016fractionQ1!$C$3:$BC$251,Pop2016fractionQ1!$BD209,FALSE),0)","v":0},{"$f":"ROUND(Options!$B$21*HLOOKUP(Calculations!$E$2,'Pop2016fractionQ1&2'!$C$3:$BC$251,'Pop2016fractionQ1&2'!$BD209,FALSE),0)","v":0},{"$f":"ROUND(Options!$B$21*HLOOKUP(Calculations!$E$2,PARfraction!$C$3:$BC$251,PARfraction!$BD209,FALSE),0)","v":974},207]
[null,"Male 85-89",{"$f":"ROUND(Options!$B$21*HLOOKUP(Calculations!$E$2,Pop2016fraction!$C$3:$BC$251,Pop2016fraction!$BD210,FALSE),0)","v":468},{"$f":"ROUND(Options!$B$21*HLOOKUP(Calculations!$E$2,Pop2016fractionQ1!$C$3:$BC$251,Pop2016fractionQ1!$BD210,FALSE),0)","v":0},{"$f":"ROUND(Options!$B$21*HLOOKUP(Calculations!$E$2,'Pop2016fractionQ1&2'!$C$3:$BC$251,'Pop2016fractionQ1&2'!$BD210,FALSE),0)","v":0},{"$f":"ROUND(Options!$B$21*HLOOKUP(Calculations!$E$2,PARfraction!$C$3:$BC$251,PARfraction!$BD210,FALSE),0)","v":514},208]
[null,"Male 90+",{"$f":"ROUND(Options!$B$21*HLOOKUP(Calculations!$E$2,Pop2016fraction!$C$3:$BC$251,Pop2016fraction!$BD211,FALSE),0)","v":192},{"$f":"ROUND(Options!$B$21*HLOOKUP(Calculations!$E$2,Pop2016fractionQ1!$C$3:$BC$251,Pop2016fractionQ1!$BD211,FALSE),0)","v":0},{"$f":"ROUND(Options!$B$21*HLOOKUP(Calculations!$E$2,'Pop2016fractionQ1&2'!$C$3:$BC$251,'Pop2016fractionQ1&2'!$BD211,FALSE),0)","v":0},{"$f":"ROUND(Options!$B$21*HLOOKUP(Calculations!$E$2,PARfraction!$C$3:$BC$251,PARfraction!$BD211,FALSE),0)","v":211},209]
["SIMD Q5 (least deprived)","Female 0-4",{"$f":"ROUND(Options!$B$21*HLOOKUP(Calculations!$E$2,Pop2016fraction!$C$3:$BC$251,Pop2016fraction!$BD212,FALSE),0)","v":0},{"$f":"ROUND(Options!$B$21*HLOOKUP(Calculations!$E$2,Pop2016fractionQ1!$C$3:$BC$251,Pop2016fractionQ1!$BD212,FALSE),0)","v":0},{"$f":"ROUND(Options!$B$21*HLOOKUP(Calculations!$E$2,'Pop2016fractionQ1&2'!$C$3:$BC$251,'Pop2016fractionQ1&2'!$BD212,FALSE),0)","v":0},{"$f":"ROUND(Options!$B$21*HLOOKUP(Calculations!$E$2,PARfraction!$C$3:$BC$251,PARfraction!$BD212,FALSE),0)","v":0},210]
[null,"Female 5-9",{"$f":"ROUND(Options!$B$21*HLOOKUP(Calculations!$E$2,Pop2016fraction!$C$3:$BC$251,Pop2016fraction!$BD213,FALSE),0)","v":0},{"$f":"ROUND(Options!$B$21*HLOOKUP(Calculations!$E$2,Pop2016fractionQ1!$C$3:$BC$251,Pop2016fractionQ1!$BD213,FALSE),0)","v":0},{"$f":"ROUND(Options!$B$21*HLOOKUP(Calculations!$E$2,'Pop2016fractionQ1&2'!$C$3:$BC$251,'Pop2016fractionQ1&2'!$BD213,FALSE),0)","v":0},{"$f":"ROUND(Options!$B$21*HLOOKUP(Calculations!$E$2,PARfraction!$C$3:$BC$251,PARfraction!$BD213,FALSE),0)","v":0},211]
[null,"Female 10-15",{"$f":"ROUND(Options!$B$21*HLOOKUP(Calculations!$E$2,Pop2016fraction!$C$3:$BC$251,Pop2016fraction!$BD214,FALSE),0)","v":0},{"$f":"ROUND(Options!$B$21*HLOOKUP(Calculations!$E$2,Pop2016fractionQ1!$C$3:$BC$251,Pop2016fractionQ1!$BD214,FALSE),0)","v":0},{"$f":"ROUND(Options!$B$21*HLOOKUP(Calculations!$E$2,'Pop2016fractionQ1&2'!$C$3:$BC$251,'Pop2016fractionQ1&2'!$BD214,FALSE),0)","v":0},{"$f":"ROUND(Options!$B$21*HLOOKUP(Calculations!$E$2,PARfraction!$C$3:$BC$251,PARfraction!$BD214,FALSE),0)","v":0},212]
[null,"Female 16-19",{"$f":"ROUND(Options!$B$21*HLOOKUP(Calculations!$E$2,Pop2016fraction!$C$3:$BC$251,Pop2016fraction!$BD215,FALSE),0)","v":1910},{"$f":"ROUND(Options!$B$21*HLOOKUP(Calculations!$E$2,Pop2016fractionQ1!$C$3:$BC$251,Pop2016fractionQ1!$BD215,FALSE),0)","v":0},{"$f":"ROUND(Options!$B$21*HLOOKUP(Calculations!$E$2,'Pop2016fractionQ1&2'!$C$3:$BC$251,'Pop2016fractionQ1&2'!$BD215,FALSE),0)","v":0},{"$f":"ROUND(Options!$B$21*HLOOKUP(Calculations!$E$2,PARfraction!$C$3:$BC$251,PARfraction!$BD215,FALSE),0)","v":1698},213]
[null,"Female 20-24",{"$f":"ROUND(Options!$B$21*HLOOKUP(Calculations!$E$2,Pop2016fraction!$C$3:$BC$251,Pop2016fraction!$BD216,FALSE),0)","v":2874},{"$f":"ROUND(Options!$B$21*HLOOKUP(Calculations!$E$2,Pop2016fractionQ1!$C$3:$BC$251,Pop2016fractionQ1!$BD216,FALSE),0)","v":0},{"$f":"ROUND(Options!$B$21*HLOOKUP(Calculations!$E$2,'Pop2016fractionQ1&2'!$C$3:$BC$251,'Pop2016fractionQ1&2'!$BD216,FALSE),0)","v":0},{"$f":"ROUND(Options!$B$21*HLOOKUP(Calculations!$E$2,PARfraction!$C$3:$BC$251,PARfraction!$BD216,FALSE),0)","v":2554},214]
[null,"Female 25-29",{"$f":"ROUND(Options!$B$21*HLOOKUP(Calculations!$E$2,Pop2016fraction!$C$3:$BC$251,Pop2016fraction!$BD217,FALSE),0)","v":2447},{"$f":"ROUND(Options!$B$21*HLOOKUP(Calculations!$E$2,Pop2016fractionQ1!$C$3:$BC$251,Pop2016fractionQ1!$BD217,FALSE),0)","v":0},{"$f":"ROUND(Options!$B$21*HLOOKUP(Calculations!$E$2,'Pop2016fractionQ1&2'!$C$3:$BC$251,'Pop2016fractionQ1&2'!$BD217,FALSE),0)","v":0},{"$f":"ROUND(Options!$B$21*HLOOKUP(Calculations!$E$2,PARfraction!$C$3:$BC$251,PARfraction!$BD217,FALSE),0)","v":1849},215]
[null,"Female 30-34",{"$f":"ROUND(Options!$B$21*HLOOKUP(Calculations!$E$2,Pop2016fraction!$C$3:$BC$251,Pop2016fraction!$BD218,FALSE),0)","v":2392},{"$f":"ROUND(Options!$B$21*HLOOKUP(Calculations!$E$2,Pop2016fractionQ1!$C$3:$BC$251,Pop2016fractionQ1!$BD218,FALSE),0)","v":0},{"$f":"ROUND(Options!$B$21*HLOOKUP(Calculations!$E$2,'Pop2016fractionQ1&2'!$C$3:$BC$251,'Pop2016fractionQ1&2'!$BD218,FALSE),0)","v":0},{"$f":"ROUND(Options!$B$21*HLOOKUP(Calculations!$E$2,PARfraction!$C$3:$BC$251,PARfraction!$BD218,FALSE),0)","v":1807},216]
[null,"Female 35-39",{"$f":"ROUND(Options!$B$21*HLOOKUP(Calculations!$E$2,Pop2016fraction!$C$3:$BC$251,Pop2016fraction!$BD219,FALSE),0)","v":2546},{"$f":"ROUND(Options!$B$21*HLOOKUP(Calculations!$E$2,Pop2016fractionQ1!$C$3:$BC$251,Pop2016fractionQ1!$BD219,FALSE),0)","v":0},{"$f":"ROUND(Options!$B$21*HLOOKUP(Calculations!$E$2,'Pop2016fractionQ1&2'!$C$3:$BC$251,'Pop2016fractionQ1&2'!$BD219,FALSE),0)","v":0},{"$f":"ROUND(Options!$B$21*HLOOKUP(Calculations!$E$2,PARfraction!$C$3:$BC$251,PARfraction!$BD219,FALSE),0)","v":2406},217]
[null,"Female 40-44",{"$f":"ROUND(Options!$B$21*HLOOKUP(Calculations!$E$2,Pop2016fraction!$C$3:$BC$251,Pop2016fraction!$BD220,FALSE),0)","v":2760},{"$f":"ROUND(Options!$B$21*HLOOKUP(Calculations!$E$2,Pop2016fractionQ1!$C$3:$BC$251,Pop2016fractionQ1!$BD220,FALSE),0)","v":0},{"$f":"ROUND(Options!$B$21*HLOOKUP(Calculations!$E$2,'Pop2016fractionQ1&2'!$C$3:$BC$251,'Pop2016fractionQ1&2'!$BD220,FALSE),0)","v":0},{"$f":"ROUND(Options!$B$21*HLOOKUP(Calculations!$E$2,PARfraction!$C$3:$BC$251,PARfraction!$BD220,FALSE),0)","v":2608},218]
[null,"Female 45-49",{"$f":"ROUND(Options!$B$21*HLOOKUP(Calculations!$E$2,Pop2016fraction!$C$3:$BC$251,Pop2016fraction!$BD221,FALSE),0)","v":3159},{"$f":"ROUND(Options!$B$21*HLOOKUP(Calculations!$E$2,Pop2016fractionQ1!$C$3:$BC$251,Pop2016fractionQ1!$BD221,FALSE),0)","v":0},{"$f":"ROUND(Options!$B$21*HLOOKUP(Calculations!$E$2,'Pop2016fractionQ1&2'!$C$3:$BC$251,'Pop2016fractionQ1&2'!$BD221,FALSE),0)","v":0},{"$f":"ROUND(Options!$B$21*HLOOKUP(Calculations!$E$2,PARfraction!$C$3:$BC$251,PARfraction!$BD221,FALSE),0)","v":4605},219]
[null,"Female 50-54",{"$f":"ROUND(Options!$B$21*HLOOKUP(Calculations!$E$2,Pop2016fraction!$C$3:$BC$251,Pop2016fraction!$BD222,FALSE),0)","v":3208},{"$f":"ROUND(Options!$B$21*HLOOKUP(Calculations!$E$2,Pop2016fractionQ1!$C$3:$BC$251,Pop2016fractionQ1!$BD222,FALSE),0)","v":0},{"$f":"ROUND(Options!$B$21*HLOOKUP(Calculations!$E$2,'Pop2016fractionQ1&2'!$C$3:$BC$251,'Pop2016fractionQ1&2'!$BD222,FALSE),0)","v":0},{"$f":"ROUND(Options!$B$21*HLOOKUP(Calculations!$E$2,PARfraction!$C$3:$BC$251,PARfraction!$BD222,FALSE),0)","v":4676},220]
[null,"Female 55-59",{"$f":"ROUND(Options!$B$21*HLOOKUP(Calculations!$E$2,Pop2016fraction!$C$3:$BC$251,Pop2016fraction!$BD223,FALSE),0)","v":2897},{"$f":"ROUND(Options!$B$21*HLOOKUP(Calculations!$E$2,Pop2016fractionQ1!$C$3:$BC$251,Pop2016fractionQ1!$BD223,FALSE),0)","v":0},{"$f":"ROUND(Options!$B$21*HLOOKUP(Calculations!$E$2,'Pop2016fractionQ1&2'!$C$3:$BC$251,'Pop2016fractionQ1&2'!$BD223,FALSE),0)","v":0},{"$f":"ROUND(Options!$B$21*HLOOKUP(Calculations!$E$2,PARfraction!$C$3:$BC$251,PARfraction!$BD223,FALSE),0)","v":3736},221]
[null,"Female 60-64",{"$f":"ROUND(Options!$B$21*HLOOKUP(Calculations!$E$2,Pop2016fraction!$C$3:$BC$251,Pop2016fraction!$BD224,FALSE),0)","v":2544},{"$f":"ROUND(Options!$B$21*HLOOKUP(Calculations!$E$2,Pop2016fractionQ1!$C$3:$BC$251,Pop2016fractionQ1!$BD224,FALSE),0)","v":0},{"$f":"ROUND(Options!$B$21*HLOOKUP(Calculations!$E$2,'Pop2016fractionQ1&2'!$C$3:$BC$251,'Pop2016fractionQ1&2'!$BD224,FALSE),0)","v":0},{"$f":"ROUND(Options!$B$21*HLOOKUP(Calculations!$E$2,PARfraction!$C$3:$BC$251,PARfraction!$BD224,FALSE),0)","v":3280},222]
[null,"Female 65-69",{"$f":"ROUND(Options!$B$21*HLOOKUP(Calculations!$E$2,Pop2016fraction!$C$3:$BC$251,Pop2016fraction!$BD225,FALSE),0)","v":2553},{"$f":"ROUND(Options!$B$21*HLOOKUP(Calculations!$E$2,Pop2016fractionQ1!$C$3:$BC$251,Pop2016fractionQ1!$BD225,FALSE),0)","v":0},{"$f":"ROUND(Options!$B$21*HLOOKUP(Calculations!$E$2,'Pop2016fractionQ1&2'!$C$3:$BC$251,'Pop2016fractionQ1&2'!$BD225,FALSE),0)","v":0},{"$f":"ROUND(Options!$B$21*HLOOKUP(Calculations!$E$2,PARfraction!$C$3:$BC$251,PARfraction!$BD225,FALSE),0)","v":3054},223]
[null,"Female 70-74",{"$f":"ROUND(Options!$B$21*HLOOKUP(Calculations!$E$2,Pop2016fraction!$C$3:$BC$251,Pop2016fraction!$BD226,FALSE),0)","v":1945},{"$f":"ROUND(Options!$B$21*HLOOKUP(Calculations!$E$2,Pop2016fractionQ1!$C$3:$BC$251,Pop2016fractionQ1!$BD226,FALSE),0)","v":0},{"$f":"ROUND(Options!$B$21*HLOOKUP(Calculations!$E$2,'Pop2016fractionQ1&2'!$C$3:$BC$251,'Pop2016fractionQ1&2'!$BD226,FALSE),0)","v":0},{"$f":"ROUND(Options!$B$21*HLOOKUP(Calculations!$E$2,PARfraction!$C$3:$BC$251,PARfraction!$BD226,FALSE),0)","v":2327},224]
[null,"Female 75-79",{"$f":"ROUND(Options!$B$21*HLOOKUP(Calculations!$E$2,Pop2016fraction!$C$3:$BC$251,Pop2016fraction!$BD227,FALSE),0)","v":1534},{"$f":"ROUND(Options!$B$21*HLOOKUP(Calculations!$E$2,Pop2016fractionQ1!$C$3:$BC$251,Pop2016fractionQ1!$BD227,FALSE),0)","v":0},{"$f":"ROUND(Options!$B$21*HLOOKUP(Calculations!$E$2,'Pop2016fractionQ1&2'!$C$3:$BC$251,'Pop2016fractionQ1&2'!$BD227,FALSE),0)","v":0},{"$f":"ROUND(Options!$B$21*HLOOKUP(Calculations!$E$2,PARfraction!$C$3:$BC$251,PARfraction!$BD227,FALSE),0)","v":886},225]
[null,"Female 80-84",{"$f":"ROUND(Options!$B$21*HLOOKUP(Calculations!$E$2,Pop2016fraction!$C$3:$BC$251,Pop2016fraction!$BD228,FALSE),0)","v":1182},{"$f":"ROUND(Options!$B$21*HLOOKUP(Calculations!$E$2,Pop2016fractionQ1!$C$3:$BC$251,Pop2016fractionQ1!$BD228,FALSE),0)","v":0},{"$f":"ROUND(Options!$B$21*HLOOKUP(Calculations!$E$2,'Pop2016fractionQ1&2'!$C$3:$BC$251,'Pop2016fractionQ1&2'!$BD228,FALSE),0)","v":0},{"$f":"ROUND(Options!$B$21*HLOOKUP(Calculations!$E$2,PARfraction!$C$3:$BC$251,PARfraction!$BD228,FALSE),0)","v":683},226]
[null,"Female 85-89",{"$f":"ROUND(Options!$B$21*HLOOKUP(Calculations!$E$2,Pop2016fraction!$C$3:$BC$251,Pop2016fraction!$BD229,FALSE),0)","v":753},{"$f":"ROUND(Options!$B$21*HLOOKUP(Calculations!$E$2,Pop2016fractionQ1!$C$3:$BC$251,Pop2016fractionQ1!$BD229,FALSE),0)","v":0},{"$f":"ROUND(Options!$B$21*HLOOKUP(Calculations!$E$2,'Pop2016fractionQ1&2'!$C$3:$BC$251,'Pop2016fractionQ1&2'!$BD229,FALSE),0)","v":0},{"$f":"ROUND(Options!$B$21*HLOOKUP(Calculations!$E$2,PARfraction!$C$3:$BC$251,PARfraction!$BD229,FALSE),0)","v":435},227]
[null,"Female 90+",{"$f":"ROUND(Options!$B$21*HLOOKUP(Calculations!$E$2,Pop2016fraction!$C$3:$BC$251,Pop2016fraction!$BD230,FALSE),0)","v":458},{"$f":"ROUND(Options!$B$21*HLOOKUP(Calculations!$E$2,Pop2016fractionQ1!$C$3:$BC$251,Pop2016fractionQ1!$BD230,FALSE),0)","v":0},{"$f":"ROUND(Options!$B$21*HLOOKUP(Calculations!$E$2,'Pop2016fractionQ1&2'!$C$3:$BC$251,'Pop2016fractionQ1&2'!$BD230,FALSE),0)","v":0},{"$f":"ROUND(Options!$B$21*HLOOKUP(Calculations!$E$2,PARfraction!$C$3:$BC$251,PARfraction!$BD230,FALSE),0)","v":265},228]
[null,"Male 0-4",{"$f":"ROUND(Options!$B$21*HLOOKUP(Calculations!$E$2,Pop2016fraction!$C$3:$BC$251,Pop2016fraction!$BD231,FALSE),0)","v":0},{"$f":"ROUND(Options!$B$21*HLOOKUP(Calculations!$E$2,Pop2016fractionQ1!$C$3:$BC$251,Pop2016fractionQ1!$BD231,FALSE),0)","v":0},{"$f":"ROUND(Options!$B$21*HLOOKUP(Calculations!$E$2,'Pop2016fractionQ1&2'!$C$3:$BC$251,'Pop2016fractionQ1&2'!$BD231,FALSE),0)","v":0},{"$f":"ROUND(Options!$B$21*HLOOKUP(Calculations!$E$2,PARfraction!$C$3:$BC$251,PARfraction!$BD231,FALSE),0)","v":0},229]
[null,"Male 5-9",{"$f":"ROUND(Options!$B$21*HLOOKUP(Calculations!$E$2,Pop2016fraction!$C$3:$BC$251,Pop2016fraction!$BD232,FALSE),0)","v":0},{"$f":"ROUND(Options!$B$21*HLOOKUP(Calculations!$E$2,Pop2016fractionQ1!$C$3:$BC$251,Pop2016fractionQ1!$BD232,FALSE),0)","v":0},{"$f":"ROUND(Options!$B$21*HLOOKUP(Calculations!$E$2,'Pop2016fractionQ1&2'!$C$3:$BC$251,'Pop2016fractionQ1&2'!$BD232,FALSE),0)","v":0},{"$f":"ROUND(Options!$B$21*HLOOKUP(Calculations!$E$2,PARfraction!$C$3:$BC$251,PARfraction!$BD232,FALSE),0)","v":0},230]
[null,"Male 10-15",{"$f":"ROUND(Options!$B$21*HLOOKUP(Calculations!$E$2,Pop2016fraction!$C$3:$BC$251,Pop2016fraction!$BD233,FALSE),0)","v":0},{"$f":"ROUND(Options!$B$21*HLOOKUP(Calculations!$E$2,Pop2016fractionQ1!$C$3:$BC$251,Pop2016fractionQ1!$BD233,FALSE),0)","v":0},{"$f":"ROUND(Options!$B$21*HLOOKUP(Calculations!$E$2,'Pop2016fractionQ1&2'!$C$3:$BC$251,'Pop2016fractionQ1&2'!$BD233,FALSE),0)","v":0},{"$f":"ROUND(Options!$B$21*HLOOKUP(Calculations!$E$2,PARfraction!$C$3:$BC$251,PARfraction!$BD233,FALSE),0)","v":0},231]
[null,"Male 16-19",{"$f":"ROUND(Options!$B$21*HLOOKUP(Calculations!$E$2,Pop2016fraction!$C$3:$BC$251,Pop2016fraction!$BD234,FALSE),0)","v":2034},{"$f":"ROUND(Options!$B$21*HLOOKUP(Calculations!$E$2,Pop2016fractionQ1!$C$3:$BC$251,Pop2016fractionQ1!$BD234,FALSE),0)","v":0},{"$f":"ROUND(Options!$B$21*HLOOKUP(Calculations!$E$2,'Pop2016fractionQ1&2'!$C$3:$BC$251,'Pop2016fractionQ1&2'!$BD234,FALSE),0)","v":0},{"$f":"ROUND(Options!$B$21*HLOOKUP(Calculations!$E$2,PARfraction!$C$3:$BC$251,PARfraction!$BD234,FALSE),0)","v":2153},232]
[null,"Male 20-24",{"$f":"ROUND(Options!$B$21*HLOOKUP(Calculations!$E$2,Pop2016fraction!$C$3:$BC$251,Pop2016fraction!$BD235,FALSE),0)","v":2878},{"$f":"ROUND(Options!$B$21*HLOOKUP(Calculations!$E$2,Pop2016fractionQ1!$C$3:$BC$251,Pop2016fractionQ1!$BD235,FALSE),0)","v":0},{"$f":"ROUND(Options!$B$21*HLOOKUP(Calculations!$E$2,'Pop2016fractionQ1&2'!$C$3:$BC$251,'Pop2016fractionQ1&2'!$BD235,FALSE),0)","v":0},{"$f":"ROUND(Options!$B$21*HLOOKUP(Calculations!$E$2,PARfraction!$C$3:$BC$251,PARfraction!$BD235,FALSE),0)","v":3046},233]
[null,"Male 25-29",{"$f":"ROUND(Options!$B$21*HLOOKUP(Calculations!$E$2,Pop2016fraction!$C$3:$BC$251,Pop2016fraction!$BD236,FALSE),0)","v":2592},{"$f":"ROUND(Options!$B$21*HLOOKUP(Calculations!$E$2,Pop2016fractionQ1!$C$3:$BC$251,Pop2016fractionQ1!$BD236,FALSE),0)","v":0},{"$f":"ROUND(Options!$B$21*HLOOKUP(Calculations!$E$2,'Pop2016fractionQ1&2'!$C$3:$BC$251,'Pop2016fractionQ1&2'!$BD236,FALSE),0)","v":0},{"$f":"ROUND(Options!$B$21*HLOOKUP(Calculations!$E$2,PARfraction!$C$3:$BC$251,PARfraction!$BD236,FALSE),0)","v":2729},234]
[null,"Male 30-34",{"$f":"ROUND(Options!$B$21*HLOOKUP(Calculations!$E$2,Pop2016fraction!$C$3:$BC$251,Pop2016fraction!$BD237,FALSE),0)","v":2281},{"$f":"ROUND(Options!$B$21*HLOOKUP(Calculations!$E$2,Pop2016fractionQ1!$C$3:$BC$251,Pop2016fractionQ1!$BD237,FALSE),0)","v":0},{"$f":"ROUND(Options!$B$21*HLOOKUP(Calculations!$E$2,'Pop2016fractionQ1&2'!$C$3:$BC$251,'Pop2016fractionQ1&2'!$BD237,FALSE),0)","v":0},{"$f":"ROUND(Options!$B$21*HLOOKUP(Calculations!$E$2,PARfraction!$C$3:$BC$251,PARfraction!$BD237,FALSE),0)","v":2401},235]
[null,"Male 35-39",{"$f":"ROUND(Options!$B$21*HLOOKUP(Calculations!$E$2,Pop2016fraction!$C$3:$BC$251,Pop2016fraction!$BD238,FALSE),0)","v":2413},{"$f":"ROUND(Options!$B$21*HLOOKUP(Calculations!$E$2,Pop2016fractionQ1!$C$3:$BC$251,Pop2016fractionQ1!$BD238,FALSE),0)","v":0},{"$f":"ROUND(Options!$B$21*HLOOKUP(Calculations!$E$2,'Pop2016fractionQ1&2'!$C$3:$BC$251,'Pop2016fractionQ1&2'!$BD238,FALSE),0)","v":0},{"$f":"ROUND(Options!$B$21*HLOOKUP(Calculations!$E$2,PARfraction!$C$3:$BC$251,PARfraction!$BD238,FALSE),0)","v":2784},236]
[null,"Male 40-44",{"$f":"ROUND(Options!$B$21*HLOOKUP(Calculations!$E$2,Pop2016fraction!$C$3:$BC$251,Pop2016fraction!$BD239,FALSE),0)","v":2655},{"$f":"ROUND(Options!$B$21*HLOOKUP(Calculations!$E$2,Pop2016fractionQ1!$C$3:$BC$251,Pop2016fractionQ1!$BD239,FALSE),0)","v":0},{"$f":"ROUND(Options!$B$21*HLOOKUP(Calculations!$E$2,'Pop2016fractionQ1&2'!$C$3:$BC$251,'Pop2016fractionQ1&2'!$BD239,FALSE),0)","v":0},{"$f":"ROUND(Options!$B$21*HLOOKUP(Calculations!$E$2,PARfraction!$C$3:$BC$251,PARfraction!$BD239,FALSE),0)","v":3063},237]
[null,"Male 45-49",{"$f":"ROUND(Options!$B$21*HLOOKUP(Calculations!$E$2,Pop2016fraction!$C$3:$BC$251,Pop2016fraction!$BD240,FALSE),0)","v":2976},{"$f":"ROUND(Options!$B$21*HLOOKUP(Calculations!$E$2,Pop2016fractionQ1!$C$3:$BC$251,Pop2016fractionQ1!$BD240,FALSE),0)","v":0},{"$f":"ROUND(Options!$B$21*HLOOKUP(Calculations!$E$2,'Pop2016fractionQ1&2'!$C$3:$BC$251,'Pop2016fractionQ1&2'!$BD240,FALSE),0)","v":0},{"$f":"ROUND(Options!$B$21*HLOOKUP(Calculations!$E$2,PARfraction!$C$3:$BC$251,PARfraction!$BD240,FALSE),0)","v":3378},238]
[null,"Male 50-54",{"$f":"ROUND(Options!$B$21*HLOOKUP(Calculations!$E$2,Pop2016fraction!$C$3:$BC$251,Pop2016fraction!$BD241,FALSE),0)","v":3028},{"$f":"ROUND(Options!$B$21*HLOOKUP(Calculations!$E$2,Pop2016fractionQ1!$C$3:$BC$251,Pop2016fractionQ1!$BD241,FALSE),0)","v":0},{"$f":"ROUND(Options!$B$21*HLOOKUP(Calculations!$E$2,'Pop2016fractionQ1&2'!$C$3:$BC$251,'Pop2016fractionQ1&2'!$BD241,FALSE),0)","v":0},{"$f":"ROUND(Options!$B$21*HLOOKUP(Calculations!$E$2,PARfraction!$C$3:$BC$251,PARfraction!$BD241,FALSE),0)","v":3437},239]
[null,"Male 55-59",{"$f":"ROUND(Options!$B$21*HLOOKUP(Calculations!$E$2,Pop2016fraction!$C$3:$BC$251,Pop2016fraction!$BD242,FALSE),0)","v":2754},{"$f":"ROUND(Options!$B$21*HLOOKUP(Calculations!$E$2,Pop2016fractionQ1!$C$3:$BC$251,Pop2016fractionQ1!$BD242,FALSE),0)","v":0},{"$f":"ROUND(Options!$B$21*HLOOKUP(Calculations!$E$2,'Pop2016fractionQ1&2'!$C$3:$BC$251,'Pop2016fractionQ1&2'!$BD242,FALSE),0)","v":0},{"$f":"ROUND(Options!$B$21*HLOOKUP(Calculations!$E$2,PARfraction!$C$3:$BC$251,PARfraction!$BD242,FALSE),0)","v":4261},240]
[null,"Male 60-64",{"$f":"ROUND(Options!$B$21*HLOOKUP(Calculations!$E$2,Pop2016fraction!$C$3:$BC$251,Pop2016fraction!$BD243,FALSE),0)","v":2420},{"$f":"ROUND(Options!$B$21*HLOOKUP(Calculations!$E$2,Pop2016fractionQ1!$C$3:$BC$251,Pop2016fractionQ1!$BD243,FALSE),0)","v":0},{"$f":"ROUND(Options!$B$21*HLOOKUP(Calculations!$E$2,'Pop2016fractionQ1&2'!$C$3:$BC$251,'Pop2016fractionQ1&2'!$BD243,FALSE),0)","v":0},{"$f":"ROUND(Options!$B$21*HLOOKUP(Calculations!$E$2,PARfraction!$C$3:$BC$251,PARfraction!$BD243,FALSE),0)","v":3743},241]
[null,"Male 65-69",{"$f":"ROUND(Options!$B$21*HLOOKUP(Calculations!$E$2,Pop2016fraction!$C$3:$BC$251,Pop2016fraction!$BD244,FALSE),0)","v":2396},{"$f":"ROUND(Options!$B$21*HLOOKUP(Calculations!$E$2,Pop2016fractionQ1!$C$3:$BC$251,Pop2016fractionQ1!$BD244,FALSE),0)","v":0},{"$f":"ROUND(Options!$B$21*HLOOKUP(Calculations!$E$2,'Pop2016fractionQ1&2'!$C$3:$BC$251,'Pop2016fractionQ1&2'!$BD244,FALSE),0)","v":0},{"$f":"ROUND(Options!$B$21*HLOOKUP(Calculations!$E$2,PARfraction!$C$3:$BC$251,PARfraction!$BD244,FALSE),0)","v":3428},242]
[null,"Male 70-74",{"$f":"ROUND(Options!$B$21*HLOOKUP(Calculations!$E$2,Pop2016fraction!$C$3:$BC$251,Pop2016fraction!$BD245,FALSE),0)","v":1713},{"$f":"ROUND(Options!$B$21*HLOOKUP(Calculations!$E$2,Pop2016fractionQ1!$C$3:$BC$251,Pop2016fractionQ1!$BD245,FALSE),0)","v":0},{"$f":"ROUND(Options!$B$21*HLOOKUP(Calculations!$E$2,'Pop2016fractionQ1&2'!$C$3:$BC$251,'Pop2016fractionQ1&2'!$BD245,FALSE),0)","v":0},{"$f":"ROUND(Options!$B$21*HLOOKUP(Calculations!$E$2,PARfraction!$C$3:$BC$251,PARfraction!$BD245,FALSE),0)","v":2452},243]
[null,"Male 75-79",{"$f":"ROUND(Options!$B$21*HLOOKUP(Calculations!$E$2,Pop2016fraction!$C$3:$BC$251,Pop2016fraction!$BD246,FALSE),0)","v":1246},{"$f":"ROUND(Options!$B$21*HLOOKUP(Calculations!$E$2,Pop2016fractionQ1!$C$3:$BC$251,Pop2016fractionQ1!$BD246,FALSE),0)","v":0},{"$f":"ROUND(Options!$B$21*HLOOKUP(Calculations!$E$2,'Pop2016fractionQ1&2'!$C$3:$BC$251,'Pop2016fractionQ1&2'!$BD246,FALSE),0)","v":0},{"$f":"ROUND(Options!$B$21*HLOOKUP(Calculations!$E$2,PARfraction!$C$3:$BC$251,PARfraction!$BD246,FALSE),0)","v":1118},244]
[null,"Male 80-84",{"$f":"ROUND(Options!$B$21*HLOOKUP(Calculations!$E$2,Pop2016fraction!$C$3:$BC$251,Pop2016fraction!$BD247,FALSE),0)","v":894},{"$f":"ROUND(Options!$B$21*HLOOKUP(Calculations!$E$2,Pop2016fractionQ1!$C$3:$BC$251,Pop2016fractionQ1!$BD247,FALSE),0)","v":0},{"$f":"ROUND(Options!$B$21*HLOOKUP(Calculations!$E$2,'Pop2016fractionQ1&2'!$C$3:$BC$251,'Pop2016fractionQ1&2'!$BD247,FALSE),0)","v":0},{"$f":"ROUND(Options!$B$21*HLOOKUP(Calculations!$E$2,PARfraction!$C$3:$BC$251,PARfraction!$BD247,FALSE),0)","v":803},245]
[null,"Male 85-89",{"$f":"ROUND(Options!$B$21*HLOOKUP(Calculations!$E$2,Pop2016fraction!$C$3:$BC$251,Pop2016fraction!$BD248,FALSE),0)","v":459},{"$f":"ROUND(Options!$B$21*HLOOKUP(Calculations!$E$2,Pop2016fractionQ1!$C$3:$BC$251,Pop2016fractionQ1!$BD248,FALSE),0)","v":0},{"$f":"ROUND(Options!$B$21*HLOOKUP(Calculations!$E$2,'Pop2016fractionQ1&2'!$C$3:$BC$251,'Pop2016fractionQ1&2'!$BD248,FALSE),0)","v":0},{"$f":"ROUND(Options!$B$21*HLOOKUP(Calculations!$E$2,PARfraction!$C$3:$BC$251,PARfraction!$BD248,FALSE),0)","v":412},246]
[null,"Male 90+",{"$f":"ROUND(Options!$B$21*HLOOKUP(Calculations!$E$2,Pop2016fraction!$C$3:$BC$251,Pop2016fraction!$BD249,FALSE),0)","v":202},{"$f":"ROUND(Options!$B$21*HLOOKUP(Calculations!$E$2,Pop2016fractionQ1!$C$3:$BC$251,Pop2016fractionQ1!$BD249,FALSE),0)","v":0},{"$f":"ROUND(Options!$B$21*HLOOKUP(Calculations!$E$2,'Pop2016fractionQ1&2'!$C$3:$BC$251,'Pop2016fractionQ1&2'!$BD249,FALSE),0)","v":0},{"$f":"ROUND(Options!$B$21*HLOOKUP(Calculations!$E$2,PARfraction!$C$3:$BC$251,PARfraction!$BD249,FALSE),0)","v":182},247]